{"text_format":"1","workbook":"xlsx","n_sheets":77,"sheets":["ACS_Notes","StartInstruction","ACS_Table_B08303","PopulationCharacteristics","SchoolEnrolEduAttain","HousingCharacteristics","CntyDataLink","CntyQuery","BuildingPermitsSince2000","EmploymentAndWages","EmpVsHUxCounty","HHIncome-10YearComparison","HHIncomeByAge","HHIncomeByTenure","Updates","CntyDataLinkPrior5YearEstimates","CntyDataLinkPrior10YearEstimate","StatisticallySignificantCalcs","OwnerHousingCost","OwnerHousingCostPrior5Year","OwnerHousingCostPrior10Year","ACS_Source_Table_List","ACS_Table_B01001","ACS_Table_B01002","ACS_Tbl_B11001_B11002_B25010","ACS_Table_B19001","ACS_Table_B19037","DisabilityByAge","DisabilityByAgePrior5YearEst","DisabilityByAgePrior10YearEst","ACS_Table_B18101","ACS_Table_B18102","ACS_Table_B18103","ACS_Table_B18104","ACS_Table_B18105","ACS_Table_B18106","ACS_Table_B18107","ACS_Table_C18108","ACS_Table_B19049","ACS_Table_B25118","ACS_TableB19201_ACS_Tbl_B19202","ACS_TableB19101_ACS_Tbl_B19113","ACS_Table_B25119","ACS_Table_B25001","ACS_Table_B25003","ACS_Table_B25004","ACS_Table_B25008","ACS_Table_B25024","ACS_Table_B25032","ACS_Table_B25034","ACS_Table_B25041","PovertyCharacteristics","ACS_Table_ B17001","ACS_Table_B17010","ACS_Table_B17017","ACS_Table_B03002","RentalHousingCost","RentalHousingCost-Prior5Yr","RentalHousingCost-Prior10Yr","ACS_Table_B25063_&_B25064","ACS_Table_B25070","ACS_Table_B25074","PlaceOfBirthAndPriorRes","ACS_Table_B05002","ACS_Table_B07003","ACS_Table_B14001","ACS_Table_B15002","ACS_Table_B25075_&_B25077","ACS_Table_B25088","ACS_Table_B25091","ACS_Table_B25106","PopComparison","HousingComparison","Housing_EmploymentComparison","DropDownList","CntyQryCensus","SmallTownEmploymentandWages"],"not_rendered":{"charts":188,"images":168,"macros":1,"external_links":0,"defined_names":74,"comments":0,"pivot_tables":0},"unopened":[],"bounds":{"document_bytes":16777216,"sheet_cells":100000,"rows_first":2000,"rows_last":500,"rows_between":2000,"halvings":0,"cell_chars":16384,"cell_head_chars":4096},"cells_cut":0,"cells_raw":0,"read":"row_number_cap","date_system":"1900"}

{"sheet":"ACS_Notes","index":0,"n_rows":28,"n_cols":1,"rows_kept":28,"cut":false,"hidden":true,"merged":[[31,240,31,254],[31,180,31,194],[31,195,31,209],[31,210,31,224],[31,225,31,239],[31,120,31,134],[31,135,31,149],[31,150,31,164],[31,165,31,179],[31,60,31,74],[31,75,31,89],[31,90,31,104],[31,105,31,119],[29,0,29,14],[31,15,31,29],[31,30,31,44],[31,45,31,59],[10,0,12,14],[14,0,14,14],[18,0,19,14],[3,0,5,14],[7,0,8,14],[25,0,25,14],[20,0,21,14],[22,0,22,14],[23,0,23,14],[24,0,24,14]]}
["NOTES:"]
[]
[]
["Data are based on a sample and are subject to sampling variability. The degree of uncertainty for an estimate arising from sampling variability is represented through the use of a margin of error. The value shown here is the 90 percent margin of error. The margin of error can be interpreted roughly as providing a 90 percent probability that the interval defined by the estimate minus the margin of error and the estimate plus the margin of error (the lower and upper confidence bounds) contains the true value. In addition to sampling variability, the ACS estimates are subject to non-sampling error (for a discussion of nonsampling variability, see Accuracy of the Data). The effect of nonsampling error is not represented in these tables."]
[]
[]
[]
["In addition to sampling variability, the ACS estimates are subject to nonsampling error (for a discussion of nonsampling variability, see Accuracy of the Data. The link is located at the end of this worksheet.).  The effect of nonsampling error is not represented in these tables."]
[]
[]
["While the 2005-2009 American Community Survey (ACS) data generally reflect the November 2008 Office of Management and Budget (OMB) definitions of metropolitan and micropolitan statistical areas; in certain instances the names, codes, and boundaries of the principal cities shown in ACS tables may differ from the OMB definitions due to differences in the effective dates of the geographic entities."]
[]
[]
[]
["Estimates of urban and rural population, housing units, and characteristics reflect boundaries of urban areas defined based on Census 2000 data.  Boundaries for urban areas have not been updated since Census 2000.  As a result, data for urban and rural areas from the ACS do not necessarily reflect the results of ongoing urbanization."]
[]
["Explanation of Symbols:"]
[]
["1. An '**' entry in the margin of error column indicates that either no sample observations or too few sample observations were available to compute a standard error and thus the margin of error. A statistical test is not appropriate."]
[]
["2. An '-' entry in the estimate column indicates that either no sample observations or too few sample observations were available to compute an estimate, or a ratio of medians cannot be calculated because one or both of the median estimates falls in the lowest interval or upper interval of an open-ended distribution."]
[]
["3. An '-' following a median estimate means the median falls in the lowest interval of an open-ended distribution."]
["4. An '+' following a median estimate means the median falls in the upper interval of an open-ended distribution."]
["5. An '***' entry in the margin of error column indicates that the median falls in the lowest interval or upper interval of an open-ended distribution. A statistical test is not appropriate."]
["6. An '*****' entry in the margin of error column indicates that the estimate is controlled. A statistical test for sampling variability is not appropriate."]
[]
["Accuracy of Data "]

{"sheet":"StartInstruction","index":1,"n_rows":31,"n_cols":16,"rows_kept":31,"cut":false,"hidden":false,"merged":[[26,1,29,3]]}
["Demographic Profiles for Municipalities in Sullivan County"]
[]
["To view or print a Demographic Profile follow the steps below"]
[]
[]
["Step 1. ",null,"Select the municipality you wish to"]
[null,null,"Profile from the drop down box below. "]
[]
[]
[]
[]
["Step 2. ",null,"Click one of the profile topic buttons below to review or print"]
[null,null,"the information for the selected geography."]
[null,null,"Don't forget to adjust the axis on charts as necessary. "]
[]
[]
[]
[]
[]
[]
[]
[]
[]
[]
[]
[]
[]
[]
[null,null,null,null,null,null,null,null,null,null,null,null,null,null,"Updated:","2023-12-07"]
[]
[null,null,null,null,null,null,null,null,null,null,null,null,null,null,"Next Update:","Spring 2024 Annual Employment Date"]

{"sheet":"ACS_Table_B08303","index":2,"n_rows":19,"n_cols":32,"rows_kept":19,"cut":false,"hidden":true,"merged":[]}
[null,"B08303: TRAVEL TIME TO WORK"]
[null,"Universe: Workers 16 years and over who did not work at home"]
[null,"Data Set: 2006-2010 American Community Survey 3-Year Estimates"]
[]
[null,null,"Acworth",null,"Charlestown",null,"Claremont",null,"Cornish",null,"Croydon",null,"Goshen",null,"Grantham",null,"Langdon",null,"Lempster",null,"Newport",null,"Plainfield",null,"Springfield",null,"Sunapee",null,"Unity",null,"Washington"]
[null,null,"Estimate","Margin of Error","Estimate","Margin of Error","Estimate","Margin of Error","Estimate","Margin of Error","Estimate","Margin of Error","Estimate","Margin of Error","Estimate","Margin of Error","Estimate","Margin of Error","Estimate","Margin of Error","Estimate","Margin of Error","Estimate","Margin of Error","Estimate","Margin of Error","Estimate","Margin of Error","Estimate","Margin of Error","Estimate","Margin of Error"]
[null,"Population Older than 16 not working at home",381,107,1821,291,5128,504,926,183,341,86,388,109,1486,352,315,84,368,74,3094,419,961,132,393,161,1545,227,554,99,468,123]
[null,"Less than 5 minutes",5,7,88,81,370,149,11,9,9,11,4,5,52,58,5,5,4,7,28,33,131,112,20,26,59,45,2,4,28,26]
[null,"5 to 9 minutes",10,12,273,135,784,208,52,29,22,23,78,67,20,28,33,20,10,13,721,270,112,100,3,4,96,65,39,22,35,24]
[null,"10 to 14 minutes",4,5,186,105,933,296,23,19,37,21,58,28,17,26,34,24,37,24,393,161,88,32,49,46,196,107,35,16,11,15]
[null,"15 to 19 minutes",9,12,333,171,173,102,141,63,30,18,68,30,361,282,35,19,28,17,299,192,74,51,47,60,249,125,118,56,19,15]
[null,"20 to 24 minutes",47,35,337,171,411,153,233,150,53,34,52,25,325,147,16,10,61,27,299,153,192,78,116,90,122,86,92,37,31,20]
[null,"25 to 29 minutes",12,9,57,56,244,213,80,34,52,23,36,27,172,150,18,15,23,21,70,94,139,57,39,33,161,114,68,39,51,32]
[null,"30 to 34 minutes",146,69,84,61,558,187,177,48,77,42,33,30,335,248,42,27,29,20,473,233,119,59,56,34,213,138,45,18,137,74]
[null,"35 to 39 minutes",22,22,77,72,508,204,87,32,0,12,5,5,48,75,33,28,26,19,47,44,44,31,21,18,54,34,14,13,17,28]
[null,"40 to 44 minutes",6,6,156,151,349,156,31,19,8,8,2,3,16,24,11,8,31,19,190,133,8,9,9,14,0,12,19,15,15,12]
[null,"45 to 59 minutes",78,47,65,82,532,200,73,33,19,14,28,21,140,142,68,48,41,26,316,159,22,32,13,19,166,85,72,26,66,39]
[null,"60 to 89 minutes",26,18,46,53,168,117,8,9,11,12,14,10,0,12,18,11,54,31,201,217,7,9,20,18,223,103,41,23,51,26]
[null,"90 or more minutes",16,13,119,99,98,86,10,11,23,25,10,11,0,12,2,3,24,17,57,82,25,25,0,12,6,9,9,11,7,10]

{"sheet":"PopulationCharacteristics","index":3,"n_rows":64,"n_cols":23,"rows_kept":64,"cut":false,"hidden":true,"merged":[[45,1,45,8],[3,1,3,3],[19,15,19,17],[2,8,2,12],[18,15,18,21],[19,11,19,13],[19,18,19,20],[33,11,33,12],[18,2,18,8],[48,3,48,4],[48,6,48,7],[48,9,48,10],[62,1,62,8],[63,1,63,3]]}
[]
[null,{"$f":"CntyDataLink!A35","v":"Grantham"}]
[null,null,null,null,null,null,"Land Area:",null,{"$f":"((CntyDataLink!F35*10.764)/43560)/640","v":26.781004897985536},null,null,null,null,"Water Area:",{"$f":"((CntyDataLink!G35*10.764)/43560)/640","v":0.87158538610537184}]
[null,"POPULATION CHARACTERISTICS"]
[]
[]
[]
[]
[]
[]
[]
[]
[]
[]
[]
[]
[]
[]
[null,"Population ",{"$f":"\"Source:  US Census;  Office of Planning and Devolpment, NH BEA; \"& L20&\", \"&P20&\", and \"&S20&\" American Community Survey Table B01001\"","v":"Source:  US Census;  Office of Planning and Devolpment, NH BEA; 2008-2012, 2013-2017, and 2018-2022 American Community Survey Table B01001"},null,null,null,null,null,null,null,null,null,null,"Population by Age ",null,{"$f":"\"Source: \"& L20&\", \"&P20&\", and \"&S20&\"  American Community Survey Tables B01001 and B01002\"","v":"Source: 2008-2012, 2013-2017, and 2018-2022  American Community Survey Tables B01001 and B01002"}]
[null,null,null,null,null,null,null,null,null,null,null,"2008-2012",null,null,null,"2013-2017",null,null,"2018-2022"]
[null,null,1990,2000,2010,2020,"2018-2022",2025,2030,null,null,"Estimate",null,"Margin of Error","Percent Change","Estimate","Margin of Error","Percent Change","Estimate","Margin of Error",null,"Percent Change","Statistically Significant Change"]
[null,null,{"$f":"CntyDataLink!$F$20","v":1247},{"$f":"CntyDataLink!$G$20","v":2167},{"$f":"CntyDataLink!$H$20","v":2985},{"$f":"CntyDataLink!$I$20","v":3404},{"$f":"CntyDataLink!$B$132","v":12955},{"$f":"CntyDataLink!$J$20","v":3474},{"$f":"CntyDataLink!$K$20","v":3512},null,"Under 15 yrs.",{"$f":"CntyDataLinkPrior10YearEstimate!$D$132","v":2477},null,{"$f":"CntyDataLinkPrior10YearEstimate!$E$132","v":286.22543562723422},{"$f":"L22/SUM($L$22:$L$29)","v":0.18618460613349369},{"$f":"CntyDataLinkPrior5YearEstimates!$D$132","v":2331},{"$f":"CntyDataLinkPrior5YearEstimates!$E$132","v":289.45811441381289},{"$f":"P22/SUM($P$22:$P$29)","v":0.1789223211544366},{"$f":"CntyDataLink!$D$132","v":2122},{"$f":"CntyDataLink!$E$132","v":318.86987941792182},{"$f":"S22/SUM($S$22:$S$29)","v":0.16379776148205327},{"$f":"(S22-P22)/P22","v":-8.9661089661089655E-2},{"$f":"StatisticallySignificantCalcs!$A3","v":"Y"}]
[null,null,null,null,null,null,null,null,null,null,"15 to 24 yrs.",{"$f":"CntyDataLinkPrior10YearEstimate!$F$132","v":1510},null,{"$f":"CntyDataLinkPrior10YearEstimate!$G$132","v":222.89683712426248},{"$f":"L23/SUM($L$22:$L$29)","v":0.1134996993385448},{"$f":"CntyDataLinkPrior5YearEstimates!$F$132","v":1479},{"$f":"CntyDataLinkPrior5YearEstimates!$G$132","v":235.78167867754271},0.11352471599631563,{"$f":"CntyDataLink!$F$132","v":1212},{"$f":"CntyDataLink!$G$132","v":244.48312825223749},9.3554612118873018E-2,-0.18052738336713997,{"$f":"StatisticallySignificantCalcs!$A4","v":"Y"}]
[null,"Percent Change",null,null,null,null,null,null,null,null,"25 to 34 yrs.",{"$f":"CntyDataLinkPrior10YearEstimate!$H$132","v":1680},null,{"$f":"CntyDataLinkPrior10YearEstimate!$I$132","v":220.28617750553482},{"$f":"L24/SUM($L$22:$L$29)","v":0.12627781118460613},{"$f":"CntyDataLinkPrior5YearEstimates!$H$132","v":1819},{"$f":"CntyDataLinkPrior5YearEstimates!$I$132","v":231.08872754853275},0.1396223518575376,{"$f":"CntyDataLink!$H$132","v":1770},{"$f":"CntyDataLink!$I$132","v":260.68755244545144},0.13662678502508685,-2.6937877954920284E-2,{"$f":"StatisticallySignificantCalcs!$A5","v":"Y"}]
[null,null,null,{"$f":"C21&\"-2020\"","v":"1990-2020"},{"$f":"D21&\"-2020\"","v":"2000-2020"},{"$f":"E21&\"-2020\"","v":"2010-2020"},{"$f":"F21&\"-2030\"","v":"2020-2030"},{"$f":"G21&\"-\"&H21","v":"2018-2022-2025"},{"$f":"H21&\"-\"&I21","v":"2025-2030"},null,"35 to 44 yrs.",{"$f":"CntyDataLinkPrior10YearEstimate!$J$132","v":1714},null,{"$f":"CntyDataLinkPrior10YearEstimate!$K$132","v":247.53787588973125},0.12883343355381841,{"$f":"CntyDataLinkPrior5YearEstimates!$J$132","v":1361},{"$f":"CntyDataLinkPrior5YearEstimates!$K$132","v":246.05283985355666},0.10446730119742094,{"$f":"CntyDataLink!$J$132","v":1583},{"$f":"CntyDataLink!$K$132","v":307.40852297878797},0.12219220378232343,0.16311535635562086,{"$f":"StatisticallySignificantCalcs!$A6","v":"Y"}]
[null,null,null,{"$f":"(D22-C22)/C22","v":0.73777064955894145},0.37748038763267189,0.14036850921273031,2.8058166862514691,-0.73184098803550757,1.0938399539435808E-2,null,"45 to 54 yrs.",{"$f":"CntyDataLinkPrior10YearEstimate!$L$132","v":2050},null,{"$f":"CntyDataLinkPrior10YearEstimate!$M$132","v":214.61360627881913},0.15408899579073962,{"$f":"CntyDataLinkPrior5YearEstimates!$L$132","v":1990},{"$f":"CntyDataLinkPrior5YearEstimates!$M$132","v":243.9549138672964},0.15274792754068162,{"$f":"CntyDataLink!$L$132","v":2099},{"$f":"CntyDataLink!$M$132","v":283.68644662725779},0.16202238517946738,5.4773869346733665E-2,{"$f":"StatisticallySignificantCalcs!$A7","v":"Y"}]
[null,null,null,null,null,null,null,null,null,null,"55 to 64 yrs.",{"$f":"CntyDataLinkPrior10YearEstimate!$N$132","v":1748},null,{"$f":"CntyDataLinkPrior10YearEstimate!$O$132","v":219.81128269495176},0.13138905592303066,{"$f":"CntyDataLinkPrior5YearEstimates!$N$132","v":1865},{"$f":"CntyDataLinkPrior5YearEstimates!$O$132","v":258.64454372748713},0.14315320847405588,{"$f":"CntyDataLink!$N$132","v":1714},{"$f":"CntyDataLink!$O$132","v":310.46255812899562},0.13230412967966038,-8.0965147453083114E-2,{"$f":"StatisticallySignificantCalcs!$A8","v":"Y"}]
[null,null,null,null,null,null,null,null,null,null,"65 to 74 yrs.",{"$f":"CntyDataLinkPrior10YearEstimate!$P$132","v":1030},null,{"$f":"CntyDataLinkPrior10YearEstimate!$Q$132","v":163.76812876747417},7.7420324714371616E-2,{"$f":"CntyDataLinkPrior5YearEstimates!$P$132","v":1261},{"$f":"CntyDataLinkPrior5YearEstimates!$Q$132","v":206.54055291879124},9.6791525944120355E-2,{"$f":"CntyDataLink!$P$132","v":1646},{"$f":"CntyDataLink!$Q$132","v":300.17494898808593},0.12705519104592822,0.30531324345757338,{"$f":"StatisticallySignificantCalcs!$A9","v":"Y"}]
[null,null,null,null,null,null,null,null,null,null,"Over 74 yrs. ",{"$f":"CntyDataLinkPrior10YearEstimate!$R$132","v":1095},null,{"$f":"CntyDataLinkPrior10YearEstimate!$S$132","v":162.95091285414759},8.2306073361395074E-2,{"$f":"CntyDataLinkPrior5YearEstimates!$R$132","v":922},{"$f":"CntyDataLinkPrior5YearEstimates!$S$132","v":165.34811761855653},7.0770647835431383E-2,{"$f":"CntyDataLink!$R$132","v":809},{"$f":"CntyDataLink!$S$132","v":190.12101409365562},6.244693168660749E-2,-0.12255965292841649,{"$f":"StatisticallySignificantCalcs!$A10","v":"Y"}]
[null,null,null,null,null,null,null,null,null,null,"Median Age (years)",{"$f":"CntyDataLinkPrior10YearEstimate!$AX132","v":41.5},null,{"$f":"CntyDataLinkPrior10YearEstimate!$AY$132","v":1.9},null,{"$f":"CntyDataLinkPrior5YearEstimates!$AX132","v":42.8},{"$f":"CntyDataLinkPrior5YearEstimates!$AY$132","v":3.6},null,{"$f":"CntyDataLink!$AX$132","v":44.1},{"$f":"CntyDataLink!$AY$132","v":2.8}]
[]
[null,"Population By Race",null,null,null,null,null,null,null,null,null,null,"Statistically Significant Change"]
[null,null,null,null,null,null,null,null,null,null,null,null,{"$f":"IF(L36=\"\",\"-\",StatisticallySignificantCalcs!A20)","v":"Y"}]
[null,null,{"$f":"L20","v":"2008-2012"},null,null,{"$f":"P20","v":"2013-2017"},null,null,{"$f":"S20","v":"2018-2022"},null,null,"Statistically Significant Change"]
[null,null,"Estimate","Margin of Error",null,"Estimate","Margin of Error",null,"Estimate","Margin of Error",null,"2012-2022","2017-2022"]
[null,"White",{"$f":"CntyDataLinkPrior10YearEstimate!$AL$132","v":13020},{"$f":"CntyDataLinkPrior10YearEstimate!$AM$132","v":139},{"$f":"IF(C$36=\"-\",\"-\",VALUE(C36/$C$41))","v":0.97865303668069759},{"$f":"CntyDataLinkPrior5YearEstimates!$AL$132","v":12459},{"$f":"CntyDataLinkPrior5YearEstimates!$AM$132","v":134},{"$f":"IF(F$36=\"-\",\"-\",VALUE(F36/$F$41))","v":0.95632483880871966},{"$f":"CntyDataLink!$AL$132","v":12009},{"$f":"CntyDataLink!$AM$132","v":199},{"$f":"IF(I$36=\"-\",\"-\",VALUE(I36/$I$41))","v":0.92697800077190273},{"$f":"StatisticallySignificantCalcs!A20","v":"Y"},{"$f":"StatisticallySignificantCalcs!J20","v":"Y"}]
[null,"Black",{"$f":"CntyDataLinkPrior10YearEstimate!$AN132","v":40},{"$f":"CntyDataLinkPrior10YearEstimate!$AO$132","v":34},{"$f":"IF(C$37=\"-\",\"-\",VALUE(C37/$C$41))","v":3.0066145520144319E-3},{"$f":"CntyDataLinkPrior5YearEstimates!$AN132","v":66},{"$f":"CntyDataLinkPrior5YearEstimates!$AO$132","v":73},{"$f":"IF(F$37=\"-\",\"-\",VALUE(F37/$F$41))","v":5.0660116671783851E-3},{"$f":"CntyDataLink!$AN$132","v":187},{"$f":"CntyDataLink!$AO$132","v":95},{"$f":"IF(I$37=\"-\",\"-\",VALUE(I37/$I$41))","v":1.4434581242763412E-2},{"$f":"StatisticallySignificantCalcs!A21","v":"Y"},{"$f":"StatisticallySignificantCalcs!J21","v":"Y"}]
[null,"American Indian",{"$f":"CntyDataLinkPrior10YearEstimate!$AP$132","v":0},{"$f":"CntyDataLinkPrior10YearEstimate!$AQ$132","v":18},{"$f":"IF(C$38=\"-\",\"-\",VALUE(C38/$C$41))","v":0},{"$f":"CntyDataLinkPrior5YearEstimates!$AP$132","v":0},{"$f":"CntyDataLinkPrior5YearEstimates!$AQ$132","v":18},{"$f":"IF(F$38=\"-\",\"-\",VALUE(F38/$F$41))","v":0},{"$f":"CntyDataLink!$AP$132","v":0},{"$f":"CntyDataLink!$AQ$132","v":19},{"$f":"IF(I$38=\"-\",\"-\",VALUE(I38/$I$41))","v":0},{"$f":"StatisticallySignificantCalcs!A22","v":"N"},{"$f":"StatisticallySignificantCalcs!J22","v":"N"}]
[null,"Asian &Pacific Is.",{"$f":"CntyDataLinkPrior10YearEstimate!$AR$132","v":24},{"$f":"CntyDataLinkPrior10YearEstimate!$AS$132","v":32.449961479175904},{"$f":"IF(C$39=\"-\",\"-\",VALUE(C39/$C$41))","v":1.8039687312086591E-3},{"$f":"CntyDataLinkPrior5YearEstimates!$AR$132","v":69},{"$f":"CntyDataLinkPrior5YearEstimates!$AS$132","v":53.851648071345039},{"$f":"IF(F$39=\"-\",\"-\",VALUE(F39/$F$41))","v":5.2962849247774023E-3},{"$f":"CntyDataLink!$AR$132","v":72},{"$f":"CntyDataLink!$AS$132","v":82.225300242686856},{"$f":"IF(I$39=\"-\",\"-\",VALUE(I39/$I$41))","v":5.5576997298340406E-3},{"$f":"StatisticallySignificantCalcs!A23","v":"N"},{"$f":"StatisticallySignificantCalcs!J23","v":"N"}]
[null,"Other*",{"$f":"CntyDataLinkPrior10YearEstimate!$AT$132","v":88},{"$f":"CntyDataLinkPrior10YearEstimate!$AU$132","v":82.292162445763935},{"$f":"IF(C$40=\"-\",\"-\",VALUE(C40/$C$41))","v":6.6145520144317502E-3},{"$f":"CntyDataLinkPrior5YearEstimates!$AT$132","v":121},{"$f":"CntyDataLinkPrior5YearEstimates!$AU$132","v":83.952367447261423},{"$f":"IF(F$40=\"-\",\"-\",VALUE(F40/$F$41))","v":9.2876880564937061E-3},{"$f":"CntyDataLink!$AT$132","v":295},{"$f":"CntyDataLink!$AU$132","v":151.19854496654392},{"$f":"IF(I$40=\"-\",\"-\",VALUE(I40/$I$41))","v":2.2771130837514472E-2},{"$f":"StatisticallySignificantCalcs!A24","v":"Y"},{"$f":"StatisticallySignificantCalcs!J24","v":"Y"}]
[null,"Total Population",{"$f":"CntyDataLinkPrior10YearEstimate!$B$132","v":13304},{"$f":"CntyDataLinkPrior10YearEstimate!$C$132","v":16},null,{"$f":"CntyDataLinkPrior5YearEstimates!$B$132","v":13028},{"$f":"CntyDataLinkPrior5YearEstimates!$C$132","v":23},null,{"$f":"CntyDataLink!$B$132","v":12955},{"$f":"CntyDataLink!$C$132","v":37}]
[null,"Hispanic",{"$f":"CntyDataLinkPrior10YearEstimate!$AV$132","v":132},{"$f":"CntyDataLinkPrior10YearEstimate!$AW$132","v":89},{"$f":"IF(C$42=\"-\",\"-\",VALUE(C42/$C$41))","v":9.9218280216476253E-3},{"$f":"CntyDataLinkPrior5YearEstimates!$AV132","v":313},{"$f":"CntyDataLinkPrior5YearEstimates!$AW$132","v":76},{"$f":"IF(F$42=\"-\",\"-\",VALUE(F42/$F$41))","v":2.4025176542830824E-2},{"$f":"CntyDataLink!$AV$132","v":392},{"$f":"CntyDataLink!$AW$132","v":120},{"$f":"IF(I$42=\"-\",\"-\",VALUE(I42/$I$41))","v":3.0258587417985334E-2},{"$f":"StatisticallySignificantCalcs!A26","v":"Y"},{"$f":"StatisticallySignificantCalcs!J26","v":"Y"}]
[]
[null,"*","Other includes population of 2 or more races"]
[]
[null,{"$f":"\"Source: \"& L20&\", \"&P20&\", and \"&S20&\" American Community Survey Table B03002\"","v":"Source: 2008-2012, 2013-2017, and 2018-2022 American Community Survey Table B03002"}]
[null,null,null,null,null,null,null,null,null,null,null,null,null,"Percent Change"]
[null,null,"Households and Families"]
[null,null,null,{"$f":"C34","v":"2008-2012"},null,null,{"$f":"F34","v":"2013-2017"},null,null,{"$f":"I34","v":"2018-2022"},null,null,null,{"$f":"L35","v":"2012-2022"},null,{"$f":"$M$35","v":"2017-2022"}]
[null,null,null,"Estimate","Margin of Error",null,"Estimate","Margin of Error",null,"Estimate","Margin of Error"]
[null,null,"Total Households",{"$f":"CntyDataLinkPrior10YearEstimate!$T$132","v":13185},{"$f":"CntyDataLinkPrior10YearEstimate!$U$132","v":65},null,{"$f":"CntyDataLinkPrior5YearEstimates!$T$132","v":5567},{"$f":"CntyDataLinkPrior5YearEstimates!$U$132","v":221},null,{"$f":"CntyDataLink!$T$132","v":5208},{"$f":"CntyDataLink!$U$132","v":341},null,null,{"$f":"(J51-D51)/D51","v":-0.60500568828213874},null,{"$f":"(J51-G51)/G51","v":-6.4487156457697148E-2}]
[null,null,"Persons per Household",{"$f":"CntyDataLinkPrior10YearEstimate!$BD$132","v":2.2999999999999998},{"$f":"CntyDataLinkPrior10YearEstimate!$BE$132","v":0.1},null,{"$f":"CntyDataLinkPrior5YearEstimates!$BD$132","v":2.3161487336087658},{"$f":"CntyDataLinkPrior5YearEstimates!$BE$132","v":9.3420316006919815E-2},null,{"$f":"CntyDataLink!$BD$132","v":2.4644777265745006},{"$f":"CntyDataLink!$BE$132","v":0.16284251354400892},null,null,{"$f":"(J52-D52)/D52","v":7.151205503239165E-2},null,{"$f":"(J52-G52)/G52","v":6.4041221020648784E-2}]
[null,null,"Family Households",{"$f":"CntyDataLinkPrior10YearEstimate!$V$132","v":10610},{"$f":"CntyDataLinkPrior10YearEstimate!$U$132","v":65},null,{"$f":"CntyDataLinkPrior5YearEstimates!$V$132","v":3293},{"$f":"CntyDataLinkPrior5YearEstimates!$U$132","v":221},null,{"$f":"CntyDataLink!$V$132","v":2804},{"$f":"CntyDataLink!$U$132","v":341},null,null,-0.73572101790763433,null,-0.14849681141815974]
[null,null,"Persons per Family Household",{"$f":"CntyDataLinkPrior10YearEstimate!$BF$132","v":2.42},{"$f":"CntyDataLinkPrior10YearEstimate!$BG$132","v":0.11},null,{"$f":"CntyDataLinkPrior5YearEstimates!$BF$132","v":3.0288490737928941},{"$f":"CntyDataLinkPrior5YearEstimates!$BG$132","v":0.28712106681908589},null,{"$f":"CntyDataLink!$BF$132","v":3.4436519258202569},{"$f":"CntyDataLink!$BG$132","v":0.33677192246821819},null,null,0.4229966635620897,null,0.13695065086485919]
[null,null,"Married-Couple Family Hh",{"$f":"CntyDataLinkPrior10YearEstimate!$X$132","v":6949},{"$f":"CntyDataLinkPrior10YearEstimate!$Y$132","v":700},null,{"$f":"CntyDataLinkPrior5YearEstimates!$X$132","v":2320},{"$f":"CntyDataLinkPrior5YearEstimates!$Y$132","v":247},null,{"$f":"CntyDataLink!$X$132","v":1921},{"$f":"CntyDataLink!$Y$132","v":272},null,null,-0.72355734638077418,null,-0.17198275862068965]
[null,null,"Single-Parent Family Hh",{"$f":"CntyDataLinkPrior10YearEstimate!$Z$132","v":6913},{"$f":"CntyDataLinkPrior10YearEstimate!$AA$132","v":697},null,{"$f":"CntyDataLinkPrior5YearEstimates!$Z$132","v":973},{"$f":"CntyDataLinkPrior5YearEstimates!$AA$132","v":219},null,{"$f":"CntyDataLink!$Z$132","v":883},{"$f":"CntyDataLink!$AA$132","v":184},null,null,{"$f":"(J56-D56)/D56","v":-0.87226963691595549},null,-9.249743062692703E-2]
[null,null,"Non-Family Households",{"$f":"CntyDataLinkPrior10YearEstimate!$AF$132","v":1000},{"$f":"CntyDataLinkPrior10YearEstimate!$AG$132","v":370},null,{"$f":"CntyDataLinkPrior5YearEstimates!$AF$132","v":2274},{"$f":"CntyDataLinkPrior5YearEstimates!$AG$132","v":299},null,{"$f":"CntyDataLink!$AF$132","v":2404},{"$f":"CntyDataLink!$AG$132","v":338},null,null,1.4039999999999999,null,5.7167985927880388E-2]
[null,null,"Persons per Non-Family Hh",{"$f":"CntyDataLinkPrior10YearEstimate!$BH$132","v":2.13},{"$f":"CntyDataLinkPrior10YearEstimate!$BI$132","v":0.17},null,{"$f":"CntyDataLinkPrior5YearEstimates!$BH$132","v":1.2840809146877747},{"$f":"CntyDataLinkPrior5YearEstimates!$BI$132","v":0.25713039663557724},null,{"$f":"CntyDataLink!$BH$132","v":1.3223793677204658},{"$f":"CntyDataLink!$BI$132","v":0.26412770651737438},null,null,-0.37916461609367796,null,2.9825576094636826E-2]
[]
[]
[null,"As a result of changes in the American Community Survey, direct comparisons between the data should be made with caution."]
[]
[null,"Source: 2005-2009, 2010-2014, and 2018-2022 American Community Survey Table B11001"]
[null,"POPULATION CHARACTERISTICS"]

{"sheet":"SchoolEnrolEduAttain","index":4,"n_rows":67,"n_cols":17,"rows_kept":67,"cut":false,"hidden":true,"merged":[[20,15,20,16],[49,15,49,16],[20,5,20,7],[49,5,49,7],[20,8,20,10],[20,11,20,13],[49,8,49,10]]}
[]
[null,null,{"$f":"CntyDataLink!A50","v":"Grantham"}]
[null,null,"SOCIAL CHARACTERISTICS"]
[]
[]
[]
[]
[]
[]
[]
[]
[]
[]
[]
[]
[]
[]
[]
[]
[]
[null,null,"School Enrollment",null,null,"2008-2012",null,null,"2013-2017",null,null,"2018-2022",null,null,null,"Statistically Significant Change"]
[null,null,null,null,null,"Estimate"," Margin of Error","Percent of Population","Estimate"," Margin of Error","Percent of Population","Estimate"," Margin of Error","Percent of Population",null,"2012-2022","2017-2022"]
[null,null,"Population 3 years and over",null,null,{"$f":"CntyDataLinkPrior10YearEstimate!$B$140","v":2457},{"$f":"CntyDataLinkPrior10YearEstimate!$C$140","v":226},null,{"$f":"CntyDataLinkPrior5YearEstimates!$B$140","v":2545},{"$f":"CntyDataLinkPrior5YearEstimates!$C$140","v":288},null,{"$f":"CntyDataLink!$B$140","v":2565},{"$f":"CntyDataLink!$C$140","v":315},null,null,{"$f":"StatisticallySignificantCalcs!$A$45","v":"N"},{"$f":"StatisticallySignificantCalcs!$J$45","v":"N"}]
[null,null,"Population 3 years & over enrolled in school",null,null,{"$f":"CntyDataLinkPrior10YearEstimate!$D$140","v":641},{"$f":"CntyDataLinkPrior10YearEstimate!$E$140","v":130},{"$f":"F24/$F$23","v":0.26088726088726089},{"$f":"CntyDataLinkPrior5YearEstimates!$D$140","v":746},{"$f":"CntyDataLinkPrior5YearEstimates!$E$140","v":178},{"$f":"I24/$I$23","v":0.29312377210216112},{"$f":"CntyDataLink!$D$140","v":696},{"$f":"CntyDataLink!$E$140","v":177},{"$f":"L24/$L$23","v":0.27134502923976606},null,{"$f":"StatisticallySignificantCalcs!$A$46","v":"N"},{"$f":"StatisticallySignificantCalcs!$J$46","v":"N"}]
[null,null,"Preprimary (Nursery, Preschool, Kindergarten)",null,null,{"$f":"CntyDataLinkPrior10YearEstimate!$F$140","v":52},{"$f":"CntyDataLinkPrior10YearEstimate!$G$140","v":28.284271247461902},2.1164021164021163E-2,{"$f":"CntyDataLinkPrior5YearEstimates!$F$140","v":48},{"$f":"CntyDataLinkPrior5YearEstimates!$G$140","v":29.068883707497267},{"$f":"I25/$I$23","v":1.8860510805500982E-2},{"$f":"CntyDataLink!$F$140","v":81},{"$f":"CntyDataLink!$G$140","v":74.813100457072352},3.1578947368421054E-2,null,{"$f":"StatisticallySignificantCalcs!$A$47","v":"N"},{"$f":"StatisticallySignificantCalcs!$J$47","v":"N"}]
[null,null,"        Nursery school and Preschool",null,null,{"$f":"CntyDataLinkPrior10YearEstimate!$H$140","v":25},{"$f":"CntyDataLinkPrior10YearEstimate!$I$140","v":20},1.0175010175010175E-2,{"$f":"CntyDataLinkPrior5YearEstimates!$H$140","v":12},{"$f":"CntyDataLinkPrior5YearEstimates!$I$140","v":13},4.7151277013752456E-3,{"$f":"CntyDataLink!$H$140","v":71},{"$f":"CntyDataLink!$I$140","v":74},2.7680311890838208E-2,null,{"$f":"StatisticallySignificantCalcs!$A$48","v":"N"},{"$f":"StatisticallySignificantCalcs!$J$48","v":"N"}]
[null,null,"        Kindergarten",null,null,{"$f":"CntyDataLinkPrior10YearEstimate!$J$140","v":27},{"$f":"CntyDataLinkPrior10YearEstimate!$K$140","v":20},1.098901098901099E-2,{"$f":"CntyDataLinkPrior5YearEstimates!$J$140","v":36},{"$f":"CntyDataLinkPrior5YearEstimates!$K$140","v":26},1.4145383104125737E-2,{"$f":"CntyDataLink!$J$140","v":10},{"$f":"CntyDataLink!$K$140","v":11},3.8986354775828458E-3,null,{"$f":"StatisticallySignificantCalcs!$A$49","v":"N"},{"$f":"StatisticallySignificantCalcs!$J$49","v":"N"}]
[null,null,"Elementary through High school",null,null,{"$f":"CntyDataLinkPrior10YearEstimate!$P$140","v":411},{"$f":"CntyDataLinkPrior10YearEstimate!$Q$140","v":94.688964510126524},0.16727716727716727,{"$f":"CntyDataLinkPrior5YearEstimates!$P$140","v":429},{"$f":"CntyDataLinkPrior5YearEstimates!$Q$140","v":131.58647346897021},0.16856581532416504,{"$f":"CntyDataLink!$P$140","v":382},{"$f":"CntyDataLink!$Q$140","v":110.65260954898443},0.14892787524366471,null,{"$f":"StatisticallySignificantCalcs!$A$50","v":"N"},{"$f":"StatisticallySignificantCalcs!$J$50","v":"N"}]
[null,null,"        Elementary school (grades 1-8)",null,null,{"$f":"CntyDataLinkPrior10YearEstimate!$L$140","v":302},{"$f":"CntyDataLinkPrior10YearEstimate!$M$140","v":77.077882690172544},0.12291412291412292,{"$f":"CntyDataLinkPrior5YearEstimates!$L$140","v":230},{"$f":"CntyDataLinkPrior5YearEstimates!$M$140","v":60.21627686929839},9.0373280943025547E-2,{"$f":"CntyDataLink!$L$140","v":225},{"$f":"CntyDataLink!$M$140","v":84.02380615040002},8.771929824561403E-2,null,{"$f":"StatisticallySignificantCalcs!$A$51","v":"N"},{"$f":"StatisticallySignificantCalcs!$J$51","v":"N"}]
[null,null,"        High school (grades 9-12)",null,null,{"$f":"CntyDataLinkPrior10YearEstimate!$N$140","v":109},{"$f":"CntyDataLinkPrior10YearEstimate!$O$140","v":55},4.4363044363044363E-2,{"$f":"CntyDataLinkPrior5YearEstimates!$N$140","v":199},{"$f":"CntyDataLinkPrior5YearEstimates!$O$140","v":117},7.8192534381139489E-2,{"$f":"CntyDataLink!$N$140","v":157},{"$f":"CntyDataLink!$O$140","v":72},6.1208576998050684E-2,null,{"$f":"StatisticallySignificantCalcs!$A$52","v":"N"},{"$f":"StatisticallySignificantCalcs!$J$52","v":"N"}]
[null,null,"College or Graduate School",null,null,{"$f":"CntyDataLinkPrior10YearEstimate!$R$140","v":178},{"$f":"CntyDataLinkPrior10YearEstimate!$S$140","v":61.773780845922005},7.2446072446072443E-2,{"$f":"CntyDataLinkPrior5YearEstimates!$R$140","v":269},{"$f":"CntyDataLinkPrior5YearEstimates!$S$140","v":75.133215025047349},0.10569744597249509,{"$f":"CntyDataLink!$R$140","v":233},{"$f":"CntyDataLink!$S$140","v":93.770997648526702},9.0838206627680315E-2,null,{"$f":"StatisticallySignificantCalcs!$A$53","v":"N"},{"$f":"StatisticallySignificantCalcs!$J$53","v":"N"}]
[]
[null,null,{"$f":"\"Source: \"&F21&\", \"& I21&\" and \"&L21&\" American Community Survey Table B14001\"","v":"Source: 2008-2012, 2013-2017 and 2018-2022 American Community Survey Table B14001"}]
[]
[]
[]
[]
[]
[]
[]
[]
[]
[]
[]
[]
[]
[]
[]
[]
[null,null,"Educational Attainment",null,null,{"$f":"F21","v":"2008-2012"},null,null,{"$f":"I21","v":"2013-2017"},null,null,{"$f":"L21","v":"2018-2022"},null,null,null,"Statistically Significant Change"]
[null,null,null,null,null,"Estimate"," Margin of Error","Percent of Population","Estimate"," Margin of Error","Percent of Population","Estimate"," Margin of Error","Percent of Population",null,{"$f":"P22","v":"2012-2022"},{"$f":"Q22","v":"2017-2022"}]
[null,null,"Population 25 years and over",null,null,{"$f":"CntyDataLinkPrior10YearEstimate!$V$140","v":1802},{"$f":"CntyDataLinkPrior10YearEstimate!$W$140","v":168},null,{"$f":"CntyDataLinkPrior5YearEstimates!$V$140","v":1759},{"$f":"CntyDataLinkPrior5YearEstimates!$W$140","v":151},null,{"$f":"CntyDataLink!$V$140","v":1873},{"$f":"CntyDataLink!$W$140","v":233},null,null,{"$f":"StatisticallySignificantCalcs!A54","v":"N"},{"$f":"StatisticallySignificantCalcs!$J$54","v":"N"}]
[null,null,"Less than 9th Grade",null,null,{"$f":"CntyDataLinkPrior10YearEstimate!$X$140","v":43},{"$f":"CntyDataLinkPrior10YearEstimate!$Y$140","v":125.03999360204718},{"$f":"F53/$F$52","v":2.3862375138734741E-2},{"$f":"CntyDataLinkPrior5YearEstimates!$X$140","v":0},{"$f":"CntyDataLinkPrior5YearEstimates!$Y$140","v":26.944387170614959},{"$f":"I53/$I$52","v":0},{"$f":"CntyDataLink!$X$140","v":20},{"$f":"CntyDataLink!$Y$140","v":25.258661880630179},{"$f":"L53/$L$52","v":1.0678056593699947E-2},null,{"$f":"StatisticallySignificantCalcs!A55","v":"N"},{"$f":"StatisticallySignificantCalcs!$J$55","v":"N"}]
[null,null,"9th to 12th Grade, no Diploma",null,null,{"$f":"CntyDataLinkPrior10YearEstimate!$Z$140","v":49},{"$f":"CntyDataLinkPrior10YearEstimate!$AA$140","v":173.46181135915768},{"$f":"F54/$F$52","v":2.7192008879023309E-2},{"$f":"CntyDataLinkPrior5YearEstimates!$Z$140","v":74},{"$f":"CntyDataLinkPrior5YearEstimates!$AA$140","v":43.069710934716056},{"$f":"I54/$I$52","v":4.2069357589539509E-2},{"$f":"CntyDataLink!$Z$140","v":13},{"$f":"CntyDataLink!$AA$140","v":29},{"$f":"L54/$L$52","v":6.9407367859049655E-3},null,{"$f":"StatisticallySignificantCalcs!A56","v":"N"},{"$f":"StatisticallySignificantCalcs!$J$56","v":"Y"}]
[null,null,"High School Graduate ",null,null,{"$f":"CntyDataLinkPrior10YearEstimate!$AB$140","v":392},{"$f":"CntyDataLinkPrior10YearEstimate!$AC$140","v":79.39773296511683},0.21753607103218647,{"$f":"CntyDataLinkPrior5YearEstimates!$AB$140","v":451},{"$f":"CntyDataLinkPrior5YearEstimates!$AC$140","v":82.365041127896006},0.25639567936327456,{"$f":"CntyDataLink!$AB$140","v":449},{"$f":"CntyDataLink!$AC$140","v":91.219515455849688},0.23972237052856379,null,{"$f":"StatisticallySignificantCalcs!A57","v":"N"},{"$f":"StatisticallySignificantCalcs!$J$57","v":"N"}]
[null,null,"Some College, No Degree",null,null,{"$f":"CntyDataLinkPrior10YearEstimate!$AD$140","v":349},{"$f":"CntyDataLinkPrior10YearEstimate!$AE$140","v":81.706792863261981},0.19367369589345171,{"$f":"CntyDataLinkPrior5YearEstimates!$AD$140","v":236},{"$f":"CntyDataLinkPrior5YearEstimates!$AE$140","v":61.603571325045756},0.13416714042069358,{"$f":"CntyDataLink!$AD$140","v":277},{"$f":"CntyDataLink!$AE$140","v":119.74138799930456},0.14789108382274427,null,{"$f":"StatisticallySignificantCalcs!A58","v":"N"},{"$f":"StatisticallySignificantCalcs!$J$58","v":"N"}]
[null,null,"Associate Degree",null,null,{"$f":"CntyDataLinkPrior10YearEstimate!$AF$140","v":104},{"$f":"CntyDataLinkPrior10YearEstimate!$AG$140","v":50.931326312987373},5.7713651498335183E-2,{"$f":"CntyDataLinkPrior5YearEstimates!$AF$140","v":133},{"$f":"CntyDataLinkPrior5YearEstimates!$AG$140","v":44.10215414239989},7.5611142694712904E-2,{"$f":"CntyDataLink!$AF$140","v":221},{"$f":"CntyDataLink!$AG$140","v":78.924014089502563},0.1179925253603844,null,{"$f":"StatisticallySignificantCalcs!A59","v":"N"},{"$f":"StatisticallySignificantCalcs!$J$59","v":"N"}]
[null,null,"Bachelor's Degree",null,null,{"$f":"CntyDataLinkPrior10YearEstimate!$AH$140","v":543},{"$f":"CntyDataLinkPrior10YearEstimate!$AI$140","v":106.96261028976434},0.30133185349611541,{"$f":"CntyDataLinkPrior5YearEstimates!$AH$140","v":374},{"$f":"CntyDataLinkPrior5YearEstimates!$AI$140","v":79.93122043357026},0.21262080727686186,{"$f":"CntyDataLink!$AH$140","v":446},{"$f":"CntyDataLink!$AI$140","v":106.5269918846862},0.2381206620395088,null,{"$f":"StatisticallySignificantCalcs!A60","v":"N"},{"$f":"StatisticallySignificantCalcs!$J$60","v":"N"}]
[null,null,"Graduate or Professional Degree",null,null,{"$f":"CntyDataLinkPrior10YearEstimate!$AJ$140","v":156},{"$f":"CntyDataLinkPrior10YearEstimate!$AK$140","v":102.81536850101739},8.6570477247502775E-2,{"$f":"CntyDataLinkPrior5YearEstimates!$AJ$140","v":491},{"$f":"CntyDataLinkPrior5YearEstimates!$AK$140","v":91.515026088615627},0.27913587265491757,{"$f":"CntyDataLink!$AJ$140","v":433},{"$f":"CntyDataLink!$AK$140","v":132.02651248896942},0.23117992525360384,null,{"$f":"StatisticallySignificantCalcs!A61","v":"N"},{"$f":"StatisticallySignificantCalcs!$J$61","v":"N"}]
[]
[null,null,"Percent of High School Graduate or Higher",null,null,null,null,{"$f":"SUM(F55:F59)/F52","v":0.85682574916759158},null,null,{"$f":"SUM(I55:I59)/I52","v":0.95793064241046044},null,null,{"$f":"SUM(L55:L59)/L52","v":0.97490656700480516}]
[null,null,"Percent of Bachelor's Degree or Higher",null,null,null,null,{"$f":"SUM(F58:F59)/F52","v":0.38790233074361818},null,null,{"$f":"SUM(I58:I59)/I52","v":0.49175667993177941},null,null,{"$f":"SUM(L58:L59)/L52","v":0.46930058729311264}]
[]
[null,null,{"$f":"\"Source: \"&F21&\", \"&I21&\" and \"&L21&\" American Community Survey Table B15002\"","v":"Source: 2008-2012, 2013-2017 and 2018-2022 American Community Survey Table B15002"},null,null,null,null,"Data from the American Community Survey are estimates"]
[]
[null,null,"As a result of changes in the American Community Survey, direct comparisons between the data should be made with caution."]
[null,null,"be made with caution."]

{"sheet":"HousingCharacteristics","index":5,"n_rows":112,"n_cols":16,"rows_kept":112,"cut":false,"hidden":true,"merged":[[68,14,68,15],[85,14,85,15],[27,2,27,4],[27,5,27,7],[27,8,27,10],[27,11,27,12],[27,14,27,15],[85,2,85,4],[85,6,85,8],[85,10,85,12],[68,3,68,5],[68,6,68,8],[68,9,68,11],[68,12,68,13]]}
[]
[null,{"$f":"CntyDataLink!$A35","v":"Grantham"}]
[]
[null,"HOUSING CHARACTERISTICS"]
[]
[]
[]
[]
[]
[]
[]
[]
[]
[]
[]
[]
[]
[]
[]
[]
[]
[]
[]
[]
[]
[]
[null,null,null,{"$f":"\"Source:  \"& \" \"&D69&\", \"&G69&\" and \"&J69& \" American Community Survey Table B25004; B25024; B25032\"","v":"Source:   2008-2012, 2013-2017 and 2018-2022 American Community Survey Table B25004; B25024; B25032"}]
[null,null,"2008-2012",null,null,"2013-2017",null,null,"2018-2022",null,null,"Percent Change",null,null,"Statistically Significant Change"]
[null,null,"Estimate","Margin of Error","%","Estimate","Margin of Error","%","Estimate","Margin of Error","%","2012-2022","2017-2022",null,{"$f":"L29","v":"2012-2022"},{"$f":"M29","v":"2017-2022"}]
[null,"Total Units",{"$f":"CntyDataLinkPrior10YearEstimate!$B$108","v":6408},{"$f":"CntyDataLinkPrior5YearEstimates!$C$108","v":221},null,{"$f":"CntyDataLinkPrior5YearEstimates!$B$108","v":6317},{"$f":"CntyDataLinkPrior5YearEstimates!$C$108","v":221},null,{"$f":"CntyDataLink!$B$108","v":5933},{"$f":"CntyDataLink!$C$108","v":312},null,{"$f":"IF(I30=\"-\",\"-\",(I30-C30)/C30)","v":-7.4126092384519351E-2},{"$f":"IF(I30=\"-\",\"-\",(I30-F30)/F30)","v":-6.0788348899794203E-2},null,{"$f":"StatisticallySignificantCalcs!$A60","v":"N"},{"$f":"StatisticallySignificantCalcs!$J60","v":"N"}]
[null,"Occupied Units",{"$f":"CntyDataLinkPrior10YearEstimate!$D$108","v":5721},{"$f":"CntyDataLinkPrior5YearEstimates!$E$108","v":221},{"$f":"ROUND(C31/C30,2)*100&\"% of Total\"","v":"89% of Total"},{"$f":"CntyDataLinkPrior5YearEstimates!$D$108","v":5567},{"$f":"CntyDataLinkPrior5YearEstimates!$E$108","v":221},{"$f":"ROUND(F31/F30,2)*100&\"% of Total\"","v":"88% of Total"},{"$f":"CntyDataLink!$D$108","v":5208},{"$f":"CntyDataLink!$E$108","v":341},{"$f":"ROUND(I31/I30,2)*100&\"% of Total\"","v":"88% of Total"},{"$f":"IF(I31=\"-\",\"-\",(I31-C31)/C31)","v":-8.9669638175144201E-2},-6.4487156457697148E-2,null,{"$f":"StatisticallySignificantCalcs!$A61","v":"N"},{"$f":"StatisticallySignificantCalcs!$J61","v":"N"}]
[null,"Owner Occupied",{"$f":"CntyDataLinkPrior10YearEstimate!$F$108","v":3466},{"$f":"CntyDataLinkPrior5YearEstimates!$G$108","v":298},{"$f":"ROUND(C32/C31,2)*100&\"% of Occ.\"","v":"61% of Occ."},{"$f":"CntyDataLinkPrior5YearEstimates!$F$108","v":3163},{"$f":"CntyDataLinkPrior5YearEstimates!$G$108","v":298},{"$f":"ROUND(F32/F31,2)*100&\"% of Occ.\"","v":"57% of Occ."},{"$f":"CntyDataLink!$F$108","v":2884},{"$f":"CntyDataLink!$G$108","v":282},{"$f":"ROUND(I32/I31,2)*100&\"% of Occ.\"","v":"55% of Occ."},{"$f":"IF(I32=\"-\",\"-\",(I32-C32)/C32)","v":-0.16791690709751875},-8.8207398039835599E-2,null,{"$f":"StatisticallySignificantCalcs!$A62","v":"Y"},{"$f":"StatisticallySignificantCalcs!$J62","v":"N"}]
[null,"Renter Occupied",{"$f":"CntyDataLinkPrior10YearEstimate!$H$108","v":2255},{"$f":"CntyDataLinkPrior5YearEstimates!$I$108","v":276},{"$f":"ROUND(C33/C31,2)*100&\"% of Occ.\"","v":"39% of Occ."},{"$f":"CntyDataLinkPrior5YearEstimates!$H$108","v":2404},{"$f":"CntyDataLinkPrior5YearEstimates!$I$108","v":276},{"$f":"ROUND(F33/F31,2)*100&\"% of Occ.\"","v":"43% of Occ."},{"$f":"CntyDataLink!$H$108","v":2324},{"$f":"CntyDataLink!$I$108","v":297},{"$f":"ROUND(I33/I31,2)*100&\"% of Occ.\"","v":"45% of Occ."},{"$f":"IF(I33=\"-\",\"-\",(I33-C33)/C33)","v":3.0598669623059866E-2},-3.3277870216306155E-2,null,{"$f":"StatisticallySignificantCalcs!$A63","v":"N"},{"$f":"StatisticallySignificantCalcs!$J63","v":"N"}]
[null,"Vacant Units",{"$f":"CntyDataLinkPrior10YearEstimate!$J$108","v":687},{"$f":"CntyDataLinkPrior5YearEstimates!$K$108","v":181},{"$f":"ROUND(C34/C30,2)*100&\"% of Total\"","v":"11% of Total"},{"$f":"CntyDataLinkPrior5YearEstimates!$J$108","v":750},{"$f":"CntyDataLinkPrior5YearEstimates!$K$108","v":181},{"$f":"ROUND(F34/F30,2)*100&\"% of Total\"","v":"12% of Total"},{"$f":"CntyDataLink!$J$108","v":725},{"$f":"CntyDataLink!$K$108","v":214},{"$f":"ROUND(I34/I30,2)*100&\"% of Total\"","v":"12% of Total"},{"$f":"IF(I34=\"-\",I34,VALUE((I34-C34)/C34))","v":5.5312954876273655E-2},-3.3333333333333333E-2,null,{"$f":"StatisticallySignificantCalcs!$A64","v":"N"},{"$f":"StatisticallySignificantCalcs!$J64","v":"N"}]
[null,"Vacant For Sale",{"$f":"CntyDataLinkPrior10YearEstimate!$P$108","v":124},{"$f":"CntyDataLinkPrior5YearEstimates!$Q$108","v":71},{"$f":"ROUND(C35/(C$34),3)*100&\"% Vac.\"","v":"18% Vac."},{"$f":"CntyDataLinkPrior5YearEstimates!$P$108","v":89},{"$f":"CntyDataLinkPrior5YearEstimates!$Q$108","v":71},{"$f":"ROUND(F35/(F$34),3)*100&\"% Vac.\"","v":"11.9% Vac."},{"$f":"CntyDataLink!$P$108","v":0},{"$f":"CntyDataLink!$Q$108","v":19},{"$f":"ROUND(I35/(I$34),3)*100&\"% Vac.\"","v":"0% Vac."},{"$f":"IF(I35=\"-\",I35,VALUE((I35-C35)/C35))","v":-1},-1,null,{"$f":"StatisticallySignificantCalcs!$A65","v":"Y"},{"$f":"StatisticallySignificantCalcs!$J65","v":"Y"}]
[null,"Vacant For Rent",{"$f":"CntyDataLinkPrior10YearEstimate!$L$108","v":125},{"$f":"CntyDataLinkPrior5YearEstimates!$M$108","v":130},{"$f":"ROUND(C36/(C$34),3)*100&\"% Vac.\"","v":"18.2% Vac."},{"$f":"CntyDataLinkPrior5YearEstimates!$L$108","v":201},{"$f":"CntyDataLinkPrior5YearEstimates!$M$108","v":130},{"$f":"ROUND(F36/(F$34),3)*100&\"% Vac.\"","v":"26.8% Vac."},{"$f":"CntyDataLink!$L$108","v":224},{"$f":"CntyDataLink!$M$108","v":125},{"$f":"ROUND(I36/(I$34),3)*100&\"% Vac.\"","v":"30.9% Vac."},{"$f":"IF(I36=\"-\",I36,VALUE((I36-C36)/C36))","v":0.79200000000000004},0.11442786069651742,null,{"$f":"StatisticallySignificantCalcs!$A66","v":"N"},{"$f":"StatisticallySignificantCalcs!$J66","v":"N"}]
[null,"Vacant Seasonal",{"$f":"CntyDataLinkPrior10YearEstimate!$T$108","v":105},{"$f":"CntyDataLinkPrior5YearEstimates!$U$108","v":116},{"$f":"ROUND(C37/(C$34),3)*100&\"% Vac.\"","v":"15.3% Vac."},{"$f":"CntyDataLinkPrior5YearEstimates!$T$108","v":160},{"$f":"CntyDataLinkPrior5YearEstimates!$U$108","v":116},{"$f":"ROUND(F37/(F$34),3)*100&\"% Vac.\"","v":"21.3% Vac."},{"$f":"CntyDataLink!$T$108","v":156},{"$f":"CntyDataLink!$U$108","v":107},{"$f":"ROUND(I37/(I$34),3)*100&\"% Vac.\"","v":"21.5% Vac."},{"$f":"IF(I37=\"-\",I37,VALUE((I37-C37)/C37))","v":0.48571428571428571},-2.5000000000000001E-2,null,{"$f":"StatisticallySignificantCalcs!$A67","v":"N"},{"$f":"StatisticallySignificantCalcs!$J67","v":"N"}]
[]
[null,"Data from the American Community Survey are estimates"]
[]
[null,"Data from the American Community Survey are estimates"]
[]
[]
[null,"HOUSING CHARACTERISTICS"]
[]
[]
[]
[]
[]
[]
[]
[]
[]
[]
[]
[]
[]
[]
[]
[]
[]
[]
[]
[]
[null,null,null,{"$f":"\"Source: \"& \" \"&D69&\", \"&G69&\" and \"&J69& \"  American Community Survey Table B25024; B25032\"","v":"Source:  2008-2012, 2013-2017 and 2018-2022  American Community Survey Table B25024; B25032"}]
[]
[null,null,"Units by Type"]
[]
[null,null,null,{"$f":"C28","v":"2008-2012"},null,null,{"$f":"F28","v":"2013-2017"},null,null,{"$f":"I28","v":"2018-2022"},null,null,"Percent Change",null,"Statistically Significant Change"]
[null,null,null,"Estimate","Margin of Error","% of Total","Estimate","Margin of Error","% of Total","Estimate","Margin of Error","% of Total",{"$f":"O29","v":"2012-2022"},{"$f":"P29","v":"2017-2022"},{"$f":"O29","v":"2012-2022"},{"$f":"P29","v":"2017-2022"}]
[null,null,"Total Units",{"$f":"CntyDataLinkPrior10YearEstimate!$B$108","v":6408},{"$f":"CntyDataLinkPrior10YearEstimate!$C$108","v":215},null,{"$f":"CntyDataLinkPrior5YearEstimates!$B$108","v":6317},{"$f":"CntyDataLinkPrior5YearEstimates!$C$108","v":221},null,{"$f":"CntyDataLink!$B$108","v":5933},{"$f":"CntyDataLink!$C$108","v":312},null,null,null,{"$f":"StatisticallySignificantCalcs!$A70","v":"Y"},{"$f":"StatisticallySignificantCalcs!$J70","v":"Y"}]
[null,null,"Single Family Units",{"$f":"CntyDataLinkPrior10YearEstimate!$AT$108","v":3300},{"$f":"CntyDataLinkPrior10YearEstimate!$AU$108","v":242},{"$f":"IF(D72=\"-\",\"-\",($D$72/$D$71))","v":0.51498127340823974},{"$f":"CntyDataLinkPrior5YearEstimates!$AT$108","v":3105},{"$f":"CntyDataLinkPrior5YearEstimates!$AU$108","v":302},{"$f":"IF(G72=\"-\",\"-\",($G$72/$G$71))","v":0.49153078993192972},{"$f":"CntyDataLink!$AT$108","v":2939},{"$f":"CntyDataLink!$AU$108","v":334},{"$f":"IF(J72=\"-\",\"-\",($J$72/$J$71))","v":0.49536490814090678},{"$f":"IF(J72=\"-\",\"-\",($J72-$D72)/$D72)","v":-0.10939393939393939},{"$f":"IF(J72=\"-\",\"-\",($J72-$G72)/$G72)","v":-5.3462157809983896E-2},{"$f":"StatisticallySignificantCalcs!$A71","v":"N"},{"$f":"StatisticallySignificantCalcs!$J71","v":"N"}]
[null,null,"SF Owner Occ.",{"$f":"CntyDataLinkPrior10YearEstimate!$AF$108","v":2708},{"$f":"CntyDataLinkPrior10YearEstimate!$AG$108","v":253},null,{"$f":"CntyDataLinkPrior5YearEstimates!$AF$108","v":2607},{"$f":"CntyDataLinkPrior5YearEstimates!$AG$108","v":284},null,{"$f":"CntyDataLink!$AF$108","v":2377},{"$f":"CntyDataLink!$AG$108","v":257},null,null,null,{"$f":"StatisticallySignificantCalcs!$A72","v":"N"},{"$f":"StatisticallySignificantCalcs!$J72","v":"N"}]
[null,null,"SF Renter Occ.",{"$f":"CntyDataLinkPrior10YearEstimate!$AN$108","v":229},{"$f":"CntyDataLinkPrior10YearEstimate!$AO$108","v":130},null,{"$f":"CntyDataLinkPrior5YearEstimates!$AN$108","v":291},{"$f":"CntyDataLinkPrior5YearEstimates!$AO$108","v":117},null,{"$f":"CntyDataLink!$AN$108","v":345},{"$f":"CntyDataLink!$AO$108","v":212},null,null,null,{"$f":"StatisticallySignificantCalcs!$A73","v":"N"},{"$f":"StatisticallySignificantCalcs!$J73","v":"N"}]
[null,null,"Multi-family Units",{"$f":"CntyDataLinkPrior10YearEstimate!$AV$108","v":2684},{"$f":"CntyDataLinkPrior10YearEstimate!$AW$108","v":336.02083268749868},{"$f":"IF(D75=\"-\",\"-\",$D$75/$D$71)","v":0.41885143570536831},{"$f":"CntyDataLinkPrior5YearEstimates!$AV$108","v":2816},{"$f":"CntyDataLinkPrior5YearEstimates!$AW$108","v":388.84958531545328},{"$f":"IF(G75=\"-\",\"-\",$G$75/$G$71)","v":0.44578122526515751},{"$f":"CntyDataLink!$AV$108","v":2490},{"$f":"CntyDataLink!$AW$108","v":377.345995076137},{"$f":"IF(J75=\"-\",\"-\",$J$75/$J$71)","v":0.4196864992415304},{"$f":"IF(J75=\"-\",\"-\",($J75-$D75)/$D75)","v":-7.2280178837555886E-2},{"$f":"IF(J75=\"-\",\"-\",($J75-$G75)/$G75)","v":-0.11576704545454546},{"$f":"StatisticallySignificantCalcs!$A74","v":"N"},{"$f":"StatisticallySignificantCalcs!$J74","v":"N"}]
[null,null,"MF Owner Occ.",{"$f":"CntyDataLinkPrior10YearEstimate!$AH$108","v":385},{"$f":"CntyDataLinkPrior10YearEstimate!$AI$108","v":233.67070847669376},null,{"$f":"CntyDataLinkPrior5YearEstimates!$AH$108","v":298},{"$f":"CntyDataLinkPrior5YearEstimates!$AI$108","v":118.56221995222593},null,{"$f":"CntyDataLink!$AH$108","v":136},{"$f":"CntyDataLink!$AI$108","v":100.34440691936945},null,null,null,{"$f":"StatisticallySignificantCalcs!$A75","v":"N"},{"$f":"StatisticallySignificantCalcs!$J75","v":"Y"}]
[null,null,"MF Renter Occ.",{"$f":"CntyDataLinkPrior10YearEstimate!$AP$108","v":2149},{"$f":"CntyDataLinkPrior10YearEstimate!$AQ$108","v":319.91405095744074},null,{"$f":"CntyDataLinkPrior5YearEstimates!$AP$108","v":2046},{"$f":"CntyDataLinkPrior5YearEstimates!$AQ$108","v":330.59643071273473},null,{"$f":"CntyDataLink!$AP$108","v":1865},{"$f":"CntyDataLink!$AQ$108","v":325.42280190545961},null,null,null,{"$f":"StatisticallySignificantCalcs!$A76","v":"N"},{"$f":"StatisticallySignificantCalcs!$J76","v":"N"}]
[null,null,"Mobile Home & Other",{"$f":"CntyDataLinkPrior10YearEstimate!$AX$108","v":424},{"$f":"CntyDataLinkPrior10YearEstimate!$AY$108","v":102.59142264341595},{"$f":"IF(D78=\"-\",\"-\",($D$78/$D$71))","v":6.6167290886392005E-2},{"$f":"CntyDataLinkPrior5YearEstimates!$AX$108","v":396},{"$f":"CntyDataLinkPrior5YearEstimates!$AY$108","v":127.27922061357856},{"$f":"IF(G78=\"-\",\"-\",($G$78/$G$71))","v":6.268798480291278E-2},{"$f":"CntyDataLink!$AX$108","v":504},{"$f":"CntyDataLink!$AY$108","v":184.97837711473198},{"$f":"IF(J78=\"-\",\"-\",($J$78/$J$71))","v":8.4948592617562782E-2},{"$f":"IF(J78=\"-\",\"-\",($J78-$D78)/$D78)","v":0.18867924528301888},{"$f":"IF(J78=\"-\",\"-\",($J78-$G78)/$G78)","v":0.27272727272727271},{"$f":"StatisticallySignificantCalcs!$A77","v":"N"},{"$f":"StatisticallySignificantCalcs!$J77","v":"N"}]
[]
[null,"Data from the American Community Survey are estimates"]
[]
[]
[null,"Units by Number of Bedrooms "]
[null,null,null,{"$f":"\"Source: \"& \" \"&D69&\", \"&G69&\" and \"&J69& \" American Community Survey Table B25041\"","v":"Source:  2008-2012, 2013-2017 and 2018-2022 American Community Survey Table B25041"}]
[]
[null,null,{"$f":"C28","v":"2008-2012"},null,null,null,{"$f":"F28","v":"2013-2017"},null,null,null,{"$f":"I28","v":"2018-2022"},null,null,null,"Statistically Significant Change"]
[null,"Bedrooms","Estimate","Margin of Error","% of Total",null,"Estimate","Margin of Error","% of Total",null,"Estimate","Margin of Error","% of Total",null,{"$f":"O29","v":"2012-2022"},{"$f":"P29","v":"2017-2022"}]
[null,"No Bedrooms",{"$f":"CntyDataLinkPrior10YearEstimate!$BR$108","v":117},{"$f":"CntyDataLinkPrior10YearEstimate!$BS$108","v":84},{"$f":"C88/SUM($C$88:$C$92)","v":1.8258426966292134E-2},null,{"$f":"CntyDataLinkPrior5YearEstimates!$BR$108","v":137},{"$f":"CntyDataLinkPrior5YearEstimates!$BS$108","v":104},{"$f":"G88/SUM($G$88:$G$92)","v":2.1687509893936995E-2},null,{"$f":"CntyDataLink!$BT$108","v":24},{"$f":"CntyDataLink!$BU$108","v":26},{"$f":"K88/SUM($K$88:$K$92)","v":4.0451710770267992E-3},null,{"$f":"StatisticallySignificantCalcs!$A78","v":"N"},{"$f":"StatisticallySignificantCalcs!$J78","v":"Y"}]
[null,"1 Bedroom",{"$f":"CntyDataLinkPrior10YearEstimate!$BT$108","v":1111},{"$f":"CntyDataLinkPrior10YearEstimate!$BU$108","v":175},{"$f":"C89/SUM($C$88:$C$92)","v":0.17337702871410737},null,{"$f":"CntyDataLinkPrior5YearEstimates!$BT$108","v":1149},{"$f":"CntyDataLinkPrior5YearEstimates!$BU$108","v":227},{"$f":"G89/SUM($G$88:$G$92)","v":0.18189013772360296},null,{"$f":"CntyDataLink!$BV$108","v":1277},{"$f":"CntyDataLink!$BW$108","v":232},{"$f":"K89/SUM($K$88:$K$92)","v":0.21523681105680095},null,{"$f":"StatisticallySignificantCalcs!$A79","v":"Y"},{"$f":"StatisticallySignificantCalcs!$J79","v":"N"}]
[null,"2 Bedrooms",{"$f":"CntyDataLinkPrior10YearEstimate!$BV$108","v":2050},{"$f":"CntyDataLinkPrior10YearEstimate!$BW$108","v":239},{"$f":"C90/SUM($C$88:$C$92)","v":0.31991260923845194},null,{"$f":"CntyDataLinkPrior5YearEstimates!$BV$108","v":2057},{"$f":"CntyDataLinkPrior5YearEstimates!$BW$108","v":302},{"$f":"G90/SUM($G$88:$G$92)","v":0.32562925439290802},null,{"$f":"CntyDataLink!$BX$108","v":1981},{"$f":"CntyDataLink!$BY$108","v":314},{"$f":"K90/SUM($K$88:$K$92)","v":0.33389516264958707},null,{"$f":"StatisticallySignificantCalcs!$A80","v":"Y"},{"$f":"StatisticallySignificantCalcs!$J80","v":"N"}]
[null,"3 Bedrooms",{"$f":"CntyDataLinkPrior10YearEstimate!$BX$108","v":2328},{"$f":"CntyDataLinkPrior10YearEstimate!$BY$108","v":234},{"$f":"C91/SUM($C$88:$C$92)","v":0.36329588014981273},null,{"$f":"CntyDataLinkPrior5YearEstimates!$BX$108","v":2180},{"$f":"CntyDataLinkPrior5YearEstimates!$BY$108","v":280},{"$f":"G91/SUM($G$88:$G$92)","v":0.34510052239987338},null,{"$f":"CntyDataLink!$BZ$108","v":1899},{"$f":"CntyDataLink!$CA$108","v":284},{"$f":"K91/SUM($K$88:$K$92)","v":0.32007416146974549},null,{"$f":"StatisticallySignificantCalcs!$A81","v":"Y"},{"$f":"StatisticallySignificantCalcs!$J81","v":"N"}]
[null,"4+ Bedrooms",{"$f":"CntyDataLinkPrior10YearEstimate!$BZ$108","v":802},{"$f":"CntyDataLinkPrior10YearEstimate!$CA$108","v":184.29595763336752},{"$f":"C92/SUM($C$88:$C$92)","v":0.12515605493133583},null,{"$f":"CntyDataLinkPrior5YearEstimates!$BZ$108","v":794},{"$f":"CntyDataLinkPrior5YearEstimates!$CA$108","v":194.19577750301369},{"$f":"G92/SUM($G$88:$G$92)","v":0.12569257558967864},null,{"$f":"CntyDataLink!$CB$108","v":752},{"$f":"CntyDataLink!$CC$108","v":190.66462702871763},{"$f":"K92/SUM($K$88:$K$92)","v":0.1267486937468397},null,{"$f":"StatisticallySignificantCalcs!$A82","v":"Y"},{"$f":"StatisticallySignificantCalcs!$J82","v":"N"}]
[]
[]
[null,"Data from the American Community Survey are estimates"]
[]
[null,"Units by Year Built   "]
[null,{"$f":"\"Source: \"&K86& \" American Community Survey Table B25034\"","v":"Source: 2018-2022 American Community Survey Table B25034"}]
[]
[null,null,null,"Year Built",null,null,"Units  ",null,"% of Total",null,"Margin of Error"]
[null,null,null,null,null,"2020 or later",{"$f":"CntyDataLink!$AZ$108","v":0},null,{"$f":"G101/SUM($G$101:$G$110)","v":0},null,{"$f":"CntyDataLink!$BA$108","v":19}]
[null,null,null,null,null,"2010 through 2019",{"$f":"CntyDataLink!$BB$108","v":44},null,7.4161469745491317E-3,null,{"$f":"CntyDataLink!$BC$108","v":60}]
[null,null,null,null,null,"2000 through 2009",{"$f":"CntyDataLink!$BD$108","v":178},null,3.0001685487948761E-2,null,{"$f":"CntyDataLink!$BE$108","v":79}]
[null,null,null,null,null,"1990 through 1999",{"$f":"CntyDataLink!$BF$108","v":192},null,3.2361368616214393E-2,null,{"$f":"CntyDataLink!$BG$108","v":93}]
[null,null,null,null,null,"1980 through 1989",{"$f":"CntyDataLink!$BH$108","v":705},null,0.11882690038766223,null,{"$f":"CntyDataLink!$BI$108","v":198}]
[null,null,null,null,null,"1970 through 1979",{"$f":"CntyDataLink!$BJ$108","v":905},null,0.15253665936288555,null,{"$f":"CntyDataLink!$BK$108","v":216}]
[null,null,null,null,null,"1960 through 1969",{"$f":"CntyDataLink!$BL$108","v":596},null,0.10045508174616552,null,{"$f":"CntyDataLink!$BM$108","v":212}]
[null,null,null,null,null,"1950 through 1959",{"$f":"CntyDataLink!$BN$108","v":464},null,7.8206640822518117E-2,null,{"$f":"CntyDataLink!$BO$108","v":211}]
[null,null,null,null,null,"1940 through 1949",{"$f":"CntyDataLink!$BP$108","v":506},null,8.5285690207315024E-2,null,{"$f":"CntyDataLink!$BQ$108","v":158}]
[null,null,null,null,null,"1939 and earlier",{"$f":"CntyDataLink!$BR$108","v":2343},null,0.39490982639474126,null,{"$f":"CntyDataLink!$BS$108","v":318}]
[]
[null,"Data from the American Community Survey are estimates"]

{"sheet":"CntyDataLink","index":6,"n_rows":167,"n_cols":263,"rows_kept":167,"cut":false,"hidden":true,"merged":[]}
[1,{"$f":"A1+1","v":2},{"$f":"B1+1","v":3},4,5,6,7,8,9,10,11,12,13,14,15,{"$f":"O1+1","v":16},17,18,19,20,21,22,23,24,25,26,27,28,29,30,31,32,33,34,35,36,37,38,39,40,41,42,43,44,45,46,47,48,49,50,51,52,53,54,55,56,57,58,59,60,61,62,63,64,65,66,{"$f":"BN1+1","v":67},68,69,70,71,72,73,74,75,76,77,78,79,80,81,82,83,84,85,86,87,88,89,90,91,92,93,94,95,96,97,98,99,100,101,102,103,104,105,106,107,108,109,110,111,112,113,114,115,116,117,118,119,120,121,122,123,124,125,126,127,128,129,130,{"$f":"DZ1+1","v":131},132,133,134,135,136,137,138,139,140,141,142,143,144,145,146,147,148,149,150,151,152,153,154,155,156,157,158,159,160,161,162,163,164,165,166,167,168,169,170,171,172,173,174,175,176,177,178,179,180,181,182,183,184,185,186,187,188,189,190,191,192,193,194,{"$f":"GL1+1","v":195},196,197,198,199,200,201,202,203,204,205,206,207,208,209,210,211,212,213,214,215,216,217,218,219,220,221,222,223,224,225,226,227,228,229,230,231,232,233,234,235,236,237,238,239,240,241,242,243,244,245,246,247,248,249,250,251,252,253,254,255]
[]
["Census 1990 Data -           Query Name:  DPCnty90Census"]
["TownName","Cnty_Code","Census_Cnty_Code","LandAcres","WaterAcres","HousingUnits90Cen","Persons90Cen","Families90Cen","Households90cen","MalePop90cen","FemalePop90cen","WhitePop","BlackPop","AmerIndianPop","AsianPIPop","OtherRacePop","HispanicOrPop","AgeUnder15_90cen","Age15to24_90cen","Age25to34_90cen","Age35to44_90cen","Age45to54_90cen","Age55to64_90cen","Age65to74_90cen","Age75andOver_90cen","PersonsInHH90cen","PersonsInFamHH90cen","PersonsInGC","PersonsPerHH90cen","PersonsPerFam90Cen","SinglePersonHH90cen","MarriedCoupleHH90cen","SingleParentHH90cen","NonFamilyHH90cen","TotalHousingUnits","OccupiedHousingUnits","VacantHousingUnits","OwnerOccHU","RenterOccHU","VacantForRent90","VacantForSale90","VacantSeasonalRec","SingFamHU90cen","MultiFamHU90cen","MobileHom90cen","SingFamOwnHU90cen","MultiFamOwnHU90cen","MobileHomOwnHU90cen","SingFamRntrHU90cen","MultiFamRntrHU90cen","MobileHomRntrHU90cen","HU<5yrs90cen","HU5to20yrs90cen","HU20to50yrs90cen","HU>50yrs90cen","Units0Bedroom90cen","Units1Bedroom90cen","Units2Bedroom90cen","Units3Bedroom90cen","Units4+Bedroom90cen","HI<5K","HI5Kto10K","HI10Kto15K","HI15Kto25K","HI25Kto35K","HI35Kto50K","HI50Kto75K","HI75Kto100K","HI>100K","MedHI","HH<25HI<5K","HH<25HI5Kto10K","HH<25HI10Kto15K","HH<25HI15Kto25K","HH<25HI25Kto35K","HH<25HI35Kto50K","HH<25HI50Kto75K","HH<25HI75Kto100K","HH<25HI>100K","HH25to34HI<5K","HH25to34HI5Kto10K","HH25to34HI10Kto15K","HH25to34HI15Kto25K","HH25to34HI25Kto35K","HH25to34HI35Kto50K","HH25to34HI50Kto75K","HH25to34HI75Kto100K","HH25to34HI>100K","HH35to44HI<5K","HH35to44HI5Kto10K","HH35to44HI10Kto15K","HH35to44HI15Kto25K","HH35to44HI25Kto35K","HH35to44HI35Kto50K","HH35to44HI50Kto75K","HH35to44HI75Kto100K","HH35to44HI>100K","HH45to54HI<5K","HH45to54HI5Kto10K","HH45to54HI10Kto15K","HH45to54HI15Kto25K","HH45to54HI25Kto35K","HH45to54HI35Kto50K","HH45to54HI50Kto75K","HH45to54HI75Kto100K","HH45to54HI>100K","HH55to64HI<5K","HH55to64HI5Kto10K","HH55to64HI10Kto15K","HH55to64HI15Kto25K","HH55to64HI25Kto35K","HH55to64HI35Kto50K","HH55to64HI50Kto75K","HH55to64HI75Kto100K","HH55to64HI>100K","HH65to74HI<5K","HH65to74HI5Kto10K","HH65to74HI10Kto15K","HH65to74HI15Kto25K","HH65to74HI25Kto35K","HH65to74HI35Kto50K","HH65to74HI50Kto75K","HH65to74HI75Kto100K","HH65to74HI>100K","HH>75HI<5K","HH>75HI5Kto10K","HH>75HI10Kto15K","HH>75HI15Kto25K","HH>75HI25Kto35K","HH>75HI35Kto50K","HH>75HI50Kto75K","HH>75HI75Kto100K","HH>75HI>100K","SchoolEnrollment1thru12","Pop25andOver","HSGradorHigher","CollGradorHigher","NativePop","ForeignBornPop","BornStateOfRes","NativePop2","ForeignBornPop2","DroveAlone","CarPooled","PublicTranspt","Walked","OtherMeans","WorkedAtHome","HHInc<10K","HHInc10to15K","HHInc15to25K","HHInc25to35K","HHInc35to50K","HHInc50to75K","HHInc75to100K","HHInc100to150K","HHInc>150K"]
[{"$f":"VLOOKUP(DropDownList!$A$47,CntyQuery!$A$4:$FI$46,A1)","v":"Grantham"},{"$f":"VLOOKUP(DropDownList!$A$47,CntyQuery!$A$4:$FA$46,B1)","v":19035},{"$f":"VLOOKUP(DropDownList!$A$47,CntyQuery!$A$4:$FA$46,C1)","v":"31220"},{"$f":"VLOOKUP(DropDownList!$A$47,CntyQuery!$A$4:$FA$46,D1)","v":17402.240000000002},{"$f":"VLOOKUP(DropDownList!$A$47,CntyQuery!$A$4:$FA$46,E1)","v":548.63},{"$f":"VLOOKUP(DropDownList!$A$47,CntyQuery!$A$4:$FA$46,F1)","v":1289},{"$f":"VLOOKUP(DropDownList!$A$47,CntyQuery!$A$4:$FA$46,G1)","v":1247},{"$f":"VLOOKUP(DropDownList!$A$47,CntyQuery!$A$4:$FA$46,H1)","v":404},{"$f":"VLOOKUP(DropDownList!$A$47,CntyQuery!$A$4:$FA$46,I1)","v":494},{"$f":"VLOOKUP(DropDownList!$A$47,CntyQuery!$A$4:$FA$46,J1)","v":622},{"$f":"VLOOKUP(DropDownList!$A$47,CntyQuery!$A$4:$FA$46,K1)","v":625},{"$f":"VLOOKUP(DropDownList!$A$47,CntyQuery!$A$4:$FA$46,L1)","v":1236},{"$f":"VLOOKUP(DropDownList!$A$47,CntyQuery!$A$4:$FA$46,M1)","v":2},{"$f":"VLOOKUP(DropDownList!$A$47,CntyQuery!$A$4:$FA$46,N1)","v":1},{"$f":"VLOOKUP(DropDownList!$A$47,CntyQuery!$A$4:$FA$46,O1)","v":6},{"$f":"VLOOKUP(DropDownList!$A$47,CntyQuery!$A$4:$FA$46,P1)","v":2},{"$f":"VLOOKUP(DropDownList!$A$47,CntyQuery!$A$4:$FA$46,Q1)","v":5},{"$f":"VLOOKUP(DropDownList!$A$47,CntyQuery!$A$4:$FA$46,R1)","v":210},{"$f":"VLOOKUP(DropDownList!$A$47,CntyQuery!$A$4:$FA$46,S1)","v":112},{"$f":"VLOOKUP(DropDownList!$A$47,CntyQuery!$A$4:$FA$46,T1)","v":142},{"$f":"VLOOKUP(DropDownList!$A$47,CntyQuery!$A$4:$FA$46,U1)","v":208},{"$f":"VLOOKUP(DropDownList!$A$47,CntyQuery!$A$4:$FA$46,V1)","v":145},{"$f":"VLOOKUP(DropDownList!$A$47,CntyQuery!$A$4:$FA$46,W1)","v":191},{"$f":"VLOOKUP(DropDownList!$A$47,CntyQuery!$A$4:$FA$46,X1)","v":179},{"$f":"VLOOKUP(DropDownList!$A$47,CntyQuery!$A$4:$FA$46,Y1)","v":60},{"$f":"VLOOKUP(DropDownList!$A$47,CntyQuery!$A$4:$FA$46,Z1)","v":1247},{"$f":"VLOOKUP(DropDownList!$A$47,CntyQuery!$A$4:$FA$46,AA1)","v":1131},{"$f":"VLOOKUP(DropDownList!$A$47,CntyQuery!$A$4:$FA$46,AB1)","v":0},{"$f":"VLOOKUP(DropDownList!$A$47,CntyQuery!$A$4:$FA$46,AC1)","v":2.5242914979757085},{"$f":"VLOOKUP(DropDownList!$A$47,CntyQuery!$A$4:$FA$46,AD1)","v":2.7995049504950495},{"$f":"VLOOKUP(DropDownList!$A$47,CntyQuery!$A$4:$FA$46,AE1)","v":67},{"$f":"VLOOKUP(DropDownList!$A$47,CntyQuery!$A$4:$FA$46,AF1)","v":377},{"$f":"VLOOKUP(DropDownList!$A$47,CntyQuery!$A$4:$FA$46,AG1)","v":27},{"$f":"VLOOKUP(DropDownList!$A$47,CntyQuery!$A$4:$FA$46,AH1)","v":23},{"$f":"VLOOKUP(DropDownList!$A$47,CntyQuery!$A$4:$FA$46,AI1)","v":1289},{"$f":"VLOOKUP(DropDownList!$A$47,CntyQuery!$A$4:$FA$46,AJ1)","v":494},{"$f":"VLOOKUP(DropDownList!$A$47,CntyQuery!$A$4:$FA$46,AK1)","v":795},{"$f":"VLOOKUP(DropDownList!$A$47,CntyQuery!$A$4:$FA$46,AL1)","v":430},{"$f":"VLOOKUP(DropDownList!$A$47,CntyQuery!$A$4:$FA$46,AM1)","v":64},{"$f":"VLOOKUP(DropDownList!$A$47,CntyQuery!$A$4:$FA$46,AN1)","v":8},{"$f":"VLOOKUP(DropDownList!$A$47,CntyQuery!$A$4:$FA$46,AO1)","v":14},{"$f":"VLOOKUP(DropDownList!$A$47,CntyQuery!$A$4:$FA$46,AP1)","v":721},{"$f":"VLOOKUP(DropDownList!$A$47,CntyQuery!$A$4:$FA$46,AQ1)","v":923},{"$f":"VLOOKUP(DropDownList!$A$47,CntyQuery!$A$4:$FA$46,AR1)","v":339},{"$f":"VLOOKUP(DropDownList!$A$47,CntyQuery!$A$4:$FA$46,AS1)","v":27},{"$f":"VLOOKUP(DropDownList!$A$47,CntyQuery!$A$4:$FA$46,AT1)","v":391},{"$f":"VLOOKUP(DropDownList!$A$47,CntyQuery!$A$4:$FA$46,AU1)","v":25},{"$f":"VLOOKUP(DropDownList!$A$47,CntyQuery!$A$4:$FA$46,AV1)","v":27},{"$f":"VLOOKUP(DropDownList!$A$47,CntyQuery!$A$4:$FA$46,AW1)","v":35},{"$f":"VLOOKUP(DropDownList!$A$47,CntyQuery!$A$4:$FA$46,AX1)","v":22},{"$f":"VLOOKUP(DropDownList!$A$47,CntyQuery!$A$4:$FA$46,AY1)","v":7},{"$f":"VLOOKUP(DropDownList!$A$47,CntyQuery!$A$4:$FA$46,AZ1)","v":488},{"$f":"VLOOKUP(DropDownList!$A$47,CntyQuery!$A$4:$FA$46,BA1)","v":590},{"$f":"VLOOKUP(DropDownList!$A$47,CntyQuery!$A$4:$FA$46,BB1)","v":71},{"$f":"VLOOKUP(DropDownList!$A$47,CntyQuery!$A$4:$FA$46,BC1)","v":140},{"$f":"VLOOKUP(DropDownList!$A$47,CntyQuery!$A$4:$FA$46,BD1)","v":4},{"$f":"VLOOKUP(DropDownList!$A$47,CntyQuery!$A$4:$FA$46,BE1)","v":17},{"$f":"VLOOKUP(DropDownList!$A$47,CntyQuery!$A$4:$FA$46,BF1)","v":229},{"$f":"VLOOKUP(DropDownList!$A$47,CntyQuery!$A$4:$FA$46,BG1)","v":727},{"$f":"VLOOKUP(DropDownList!$A$47,CntyQuery!$A$4:$FA$46,BH1)","v":312},{"$f":"VLOOKUP(DropDownList!$A$47,CntyQuery!$A$4:$FA$46,BI1)","v":12},{"$f":"VLOOKUP(DropDownList!$A$47,CntyQuery!$A$4:$FA$46,BJ1)","v":16},{"$f":"VLOOKUP(DropDownList!$A$47,CntyQuery!$A$4:$FA$46,BK1)","v":24},{"$f":"VLOOKUP(DropDownList!$A$47,CntyQuery!$A$4:$FA$46,BL1)","v":43},{"$f":"VLOOKUP(DropDownList!$A$47,CntyQuery!$A$4:$FA$46,BM1)","v":77},{"$f":"VLOOKUP(DropDownList!$A$47,CntyQuery!$A$4:$FA$46,BN1)","v":133},{"$f":"VLOOKUP(DropDownList!$A$47,CntyQuery!$A$4:$FA$46,BO1)","v":116},{"$f":"VLOOKUP(DropDownList!$A$47,CntyQuery!$A$4:$FA$46,BP1)","v":36},{"$f":"VLOOKUP(DropDownList!$A$47,CntyQuery!$A$4:$FA$46,BQ1)","v":33},{"$f":"VLOOKUP(DropDownList!$A$47,CntyQuery!$A$4:$FA$46,BR1)","v":42738},{"$f":"VLOOKUP(DropDownList!$A$47,CntyQuery!$A$4:$FA$46,BS1)","v":0},{"$f":"VLOOKUP(DropDownList!$A$47,CntyQuery!$A$4:$FA$46,BT1)","v":1},{"$f":"VLOOKUP(DropDownList!$A$47,CntyQuery!$A$4:$FA$46,BU1)","v":2},{"$f":"VLOOKUP(DropDownList!$A$47,CntyQuery!$A$4:$FA$46,BV1)","v":2},{"$f":"VLOOKUP(DropDownList!$A$47,CntyQuery!$A$4:$FA$46,BW1)","v":0},{"$f":"VLOOKUP(DropDownList!$A$47,CntyQuery!$A$4:$FA$46,BX1)","v":0},{"$f":"VLOOKUP(DropDownList!$A$47,CntyQuery!$A$4:$FA$46,BY1)","v":0},{"$f":"VLOOKUP(DropDownList!$A$47,CntyQuery!$A$4:$FA$46,BZ1)","v":3},{"$f":"VLOOKUP(DropDownList!$A$47,CntyQuery!$A$4:$FA$46,CA1)","v":0},{"$f":"VLOOKUP(DropDownList!$A$47,CntyQuery!$A$4:$FA$46,CB1)","v":0},{"$f":"VLOOKUP(DropDownList!$A$47,CntyQuery!$A$4:$FA$46,CC1)","v":0},{"$f":"VLOOKUP(DropDownList!$A$47,CntyQuery!$A$4:$FA$46,CD1)","v":2},{"$f":"VLOOKUP(DropDownList!$A$47,CntyQuery!$A$4:$FA$46,CE1)","v":4},{"$f":"VLOOKUP(DropDownList!$A$47,CntyQuery!$A$4:$FA$46,CF1)","v":15},{"$f":"VLOOKUP(DropDownList!$A$47,CntyQuery!$A$4:$FA$46,CG1)","v":21},{"$f":"VLOOKUP(DropDownList!$A$47,CntyQuery!$A$4:$FA$46,CH1)","v":16},{"$f":"VLOOKUP(DropDownList!$A$47,CntyQuery!$A$4:$FA$46,CI1)","v":3},{"$f":"VLOOKUP(DropDownList!$A$47,CntyQuery!$A$4:$FA$46,CJ1)","v":2},{"$f":"VLOOKUP(DropDownList!$A$47,CntyQuery!$A$4:$FA$46,CK1)","v":0},{"$f":"VLOOKUP(DropDownList!$A$47,CntyQuery!$A$4:$FA$46,CL1)","v":0},{"$f":"VLOOKUP(DropDownList!$A$47,CntyQuery!$A$4:$FA$46,CM1)","v":0},{"$f":"VLOOKUP(DropDownList!$A$47,CntyQuery!$A$4:$FA$46,CN1)","v":9},{"$f":"VLOOKUP(DropDownList!$A$47,CntyQuery!$A$4:$FA$46,CO1)","v":15},{"$f":"VLOOKUP(DropDownList!$A$47,CntyQuery!$A$4:$FA$46,CP1)","v":27},{"$f":"VLOOKUP(DropDownList!$A$47,CntyQuery!$A$4:$FA$46,CQ1)","v":29},{"$f":"VLOOKUP(DropDownList!$A$47,CntyQuery!$A$4:$FA$46,CR1)","v":10},{"$f":"VLOOKUP(DropDownList!$A$47,CntyQuery!$A$4:$FA$46,CS1)","v":0},{"$f":"VLOOKUP(DropDownList!$A$47,CntyQuery!$A$4:$FA$46,CT1)","v":0},{"$f":"VLOOKUP(DropDownList!$A$47,CntyQuery!$A$4:$FA$46,CU1)","v":3},{"$f":"VLOOKUP(DropDownList!$A$47,CntyQuery!$A$4:$FA$46,CV1)","v":6},{"$f":"VLOOKUP(DropDownList!$A$47,CntyQuery!$A$4:$FA$46,CW1)","v":7},{"$f":"VLOOKUP(DropDownList!$A$47,CntyQuery!$A$4:$FA$46,CX1)","v":7},{"$f":"VLOOKUP(DropDownList!$A$47,CntyQuery!$A$4:$FA$46,CY1)","v":31},{"$f":"VLOOKUP(DropDownList!$A$47,CntyQuery!$A$4:$FA$46,CZ1)","v":17},{"$f":"VLOOKUP(DropDownList!$A$47,CntyQuery!$A$4:$FA$46,DA1)","v":3},{"$f":"VLOOKUP(DropDownList!$A$47,CntyQuery!$A$4:$FA$46,DB1)","v":8},{"$f":"VLOOKUP(DropDownList!$A$47,CntyQuery!$A$4:$FA$46,DC1)","v":6},{"$f":"VLOOKUP(DropDownList!$A$47,CntyQuery!$A$4:$FA$46,DD1)","v":6},{"$f":"VLOOKUP(DropDownList!$A$47,CntyQuery!$A$4:$FA$46,DE1)","v":3},{"$f":"VLOOKUP(DropDownList!$A$47,CntyQuery!$A$4:$FA$46,DF1)","v":8},{"$f":"VLOOKUP(DropDownList!$A$47,CntyQuery!$A$4:$FA$46,DG1)","v":10},{"$f":"VLOOKUP(DropDownList!$A$47,CntyQuery!$A$4:$FA$46,DH1)","v":22},{"$f":"VLOOKUP(DropDownList!$A$47,CntyQuery!$A$4:$FA$46,DI1)","v":27},{"$f":"VLOOKUP(DropDownList!$A$47,CntyQuery!$A$4:$FA$46,DJ1)","v":6},{"$f":"VLOOKUP(DropDownList!$A$47,CntyQuery!$A$4:$FA$46,DK1)","v":14},{"$f":"VLOOKUP(DropDownList!$A$47,CntyQuery!$A$4:$FA$46,DL1)","v":4},{"$f":"VLOOKUP(DropDownList!$A$47,CntyQuery!$A$4:$FA$46,DM1)","v":2},{"$f":"VLOOKUP(DropDownList!$A$47,CntyQuery!$A$4:$FA$46,DN1)","v":8},{"$f":"VLOOKUP(DropDownList!$A$47,CntyQuery!$A$4:$FA$46,DO1)","v":6},{"$f":"VLOOKUP(DropDownList!$A$47,CntyQuery!$A$4:$FA$46,DP1)","v":27},{"$f":"VLOOKUP(DropDownList!$A$47,CntyQuery!$A$4:$FA$46,DQ1)","v":22},{"$f":"VLOOKUP(DropDownList!$A$47,CntyQuery!$A$4:$FA$46,DR1)","v":23},{"$f":"VLOOKUP(DropDownList!$A$47,CntyQuery!$A$4:$FA$46,DS1)","v":6},{"$f":"VLOOKUP(DropDownList!$A$47,CntyQuery!$A$4:$FA$46,DT1)","v":7},{"$f":"VLOOKUP(DropDownList!$A$47,CntyQuery!$A$4:$FA$46,DU1)","v":2},{"$f":"VLOOKUP(DropDownList!$A$47,CntyQuery!$A$4:$FA$46,DV1)","v":4},{"$f":"VLOOKUP(DropDownList!$A$47,CntyQuery!$A$4:$FA$46,DW1)","v":3},{"$f":"VLOOKUP(DropDownList!$A$47,CntyQuery!$A$4:$FA$46,DX1)","v":7},{"$f":"VLOOKUP(DropDownList!$A$47,CntyQuery!$A$4:$FA$46,DY1)","v":3},{"$f":"VLOOKUP(DropDownList!$A$47,CntyQuery!$A$4:$FA$46,DZ1)","v":10},{"$f":"VLOOKUP(DropDownList!$A$47,CntyQuery!$A$4:$FA$46,EA1)","v":4},{"$f":"VLOOKUP(DropDownList!$A$47,CntyQuery!$A$4:$FA$46,EB1)","v":5},{"$f":"VLOOKUP(DropDownList!$A$47,CntyQuery!$A$4:$FA$46,EC1)","v":2},{"$f":"VLOOKUP(DropDownList!$A$47,CntyQuery!$A$4:$FA$46,ED1)","v":170},{"$f":"VLOOKUP(DropDownList!$A$47,CntyQuery!$A$4:$FA$46,EE1)","v":925},{"$f":"VLOOKUP(DropDownList!$A$47,CntyQuery!$A$4:$FA$46,EF1)","v":817},{"$f":"VLOOKUP(DropDownList!$A$47,CntyQuery!$A$4:$FA$46,EG1)","v":398},{"$f":"VLOOKUP(DropDownList!$A$47,CntyQuery!$A$4:$FA$46,EH1)","v":1196},{"$f":"VLOOKUP(DropDownList!$A$47,CntyQuery!$A$4:$FA$46,EI1)","v":51},{"$f":"VLOOKUP(DropDownList!$A$47,CntyQuery!$A$4:$FA$46,EJ1)","v":540},{"$f":"VLOOKUP(DropDownList!$A$47,CntyQuery!$A$4:$FA$46,EK1)","v":1196},{"$f":"VLOOKUP(DropDownList!$A$47,CntyQuery!$A$4:$FA$46,EL1)","v":51},{"$f":"VLOOKUP(DropDownList!$A$47,CntyQuery!$A$4:$FA$46,EM1)","v":407},{"$f":"VLOOKUP(DropDownList!$A$47,CntyQuery!$A$4:$FA$46,EN1)","v":78},{"$f":"VLOOKUP(DropDownList!$A$47,CntyQuery!$A$4:$FA$46,EO1)","v":0},{"$f":"VLOOKUP(DropDownList!$A$47,CntyQuery!$A$4:$FA$46,EP1)","v":13},{"$f":"VLOOKUP(DropDownList!$A$47,CntyQuery!$A$4:$FA$46,EQ1)","v":3},{"$f":"VLOOKUP(DropDownList!$A$47,CntyQuery!$A$4:$FA$46,ER1)","v":38},{"$f":"VLOOKUP(DropDownList!$A$47,CntyQuery!$A$4:$FA$46,ES1)","v":28},{"$f":"VLOOKUP(DropDownList!$A$47,CntyQuery!$A$4:$FA$46,ET1)","v":24},{"$f":"VLOOKUP(DropDownList!$A$47,CntyQuery!$A$4:$FA$46,EU1)","v":43},{"$f":"VLOOKUP(DropDownList!$A$47,CntyQuery!$A$4:$FA$46,EV1)","v":77},{"$f":"VLOOKUP(DropDownList!$A$47,CntyQuery!$A$4:$FA$46,EW1)","v":133},{"$f":"VLOOKUP(DropDownList!$A$47,CntyQuery!$A$4:$FA$46,EX1)","v":116},{"$f":"VLOOKUP(DropDownList!$A$47,CntyQuery!$A$4:$FA$46,EY1)","v":36},{"$f":"VLOOKUP(DropDownList!$A$47,CntyQuery!$A$4:$FA$46,EZ1)","v":29},{"$f":"VLOOKUP(DropDownList!$A$47,CntyQuery!$A$4:$FA$46,FA1)","v":4}]
[]
[]
["Census 1990 Data -    Query Name:  TownSTF1Qry1"]
["NAME","COUSUBFP","Census_Cnty_Code","FIPS","LandAcres","WaterAcres","HousingUnits90Cen","P01Persons90Cen","P02Families90Cen","P03Households90cen","P05MalePop90cen","P05FemalePop90cen","P06WhitePop","P06BlackPop","P06AmerIndianPop","P06AsianPIPop","P06OtherRacePop","P08HispanicOrPop","P11AgeUnder15_90cen","P11Age15to24_90cen","P11Age25to34_90cen","P11Age35to44_90cen","P11Age45to54_90cen","P11Age55to64_90cen","P11Age65to74_90cen","P11Age75andOver_90cen","P15PersonsInHH90cen","P15PersonsInFamHH90cen","P15PersonsInGC","PersonsPerHH90cen","PersonsPerFam90Cen","P16SinglePersonHH90cen","P16MarriedCoupleHH90cen","P16SingleParentHH90cen","P16NonFamilyHH90cen","H01TotalHousingUnits","H02OccupiedHousingUnits","H02VacantHousingUnits","H03OwnerOccHU","H03RenterOccHU","H05VacantForRent90","H05VacantForSale90","H05VacantSeasonalRec","H23OOHUVal<15k","H23OOHUVal15to19k","H23OOHUVal20to24k","H23OOHUVal25to29k","H23OOHUVal30to34k","H23OOHUVal35to39k","H23OOHUVal40to44k","H23OOHUVal45to49k","H23OOHUVal50to59k","H23OOHUVal60to74k","H23OOHUVal75to99k","H23OOHUVal100to124k","H23OOHUVal125to149k","H23OOHUVal150to174k","H23OOHUVal175to199k","H23OOHUVal200to249k","H23OOHUVal250to299k","H23OOHUVal300to399k","H23OOHUVal400to499k","H23OOHUVal500kOrMore","H23BOOHUMedVal","H41SingFamHU90cen","H41MultiFamHU90cen","H41MobileHom90cen","H43SingFamOwnHU90cen","H43MultiFamOwnHU90cen","H43MobileHomOwnHU90cen","H43SingFamRntrHU90cen","H43MultiFamRntrHU90cen","H43MobileHomRntrHU90cen","H41HU1UnitDet","H41HU1UnitAtt","H41HU2Unit","H41HU3to4Unit","H41HU5to9Unit","H41HU10to19Unit","H41HU20to49Unit","H41HU50PlusUnit","H41HUMobilH","H41HUOther"]
[{"$f":"VLOOKUP(DropDownList!$B$47,CntyQuery!$A$51:$CE$93,A$1)","v":"Grantham"},{"$f":"VLOOKUP(DropDownList!$B$47,CntyQuery!$A$51:$CE$93,B$1)","v":1007},{"$f":"VLOOKUP(DropDownList!$B$47,CntyQuery!$A$51:$CE$93,C$1)","v":19035},{"$f":"VLOOKUP(DropDownList!$B$47,CntyQuery!$A$51:$CE$93,D$1)","v":"31220"},{"$f":"VLOOKUP(DropDownList!$B$47,CntyQuery!$A$51:$CE$93,E$1)","v":17402.240000000002},{"$f":"VLOOKUP(DropDownList!$B$47,CntyQuery!$A$51:$CE$93,F$1)","v":548.63},{"$f":"VLOOKUP(DropDownList!$B$47,CntyQuery!$A$51:$CE$93,G$1)","v":1289},{"$f":"VLOOKUP(DropDownList!$B$47,CntyQuery!$A$51:$CE$93,H$1)","v":1247},{"$f":"VLOOKUP(DropDownList!$B$47,CntyQuery!$A$51:$CE$93,I$1)","v":404},{"$f":"VLOOKUP(DropDownList!$B$47,CntyQuery!$A$51:$CE$93,J$1)","v":494},{"$f":"VLOOKUP(DropDownList!$B$47,CntyQuery!$A$51:$CE$93,K$1)","v":622},{"$f":"VLOOKUP(DropDownList!$B$47,CntyQuery!$A$51:$CE$93,L$1)","v":625},{"$f":"VLOOKUP(DropDownList!$B$47,CntyQuery!$A$51:$CE$93,M$1)","v":1236},{"$f":"VLOOKUP(DropDownList!$B$47,CntyQuery!$A$51:$CE$93,N$1)","v":2},{"$f":"VLOOKUP(DropDownList!$B$47,CntyQuery!$A$51:$CE$93,O$1)","v":1},{"$f":"VLOOKUP(DropDownList!$B$47,CntyQuery!$A$51:$CE$93,P$1)","v":6},{"$f":"VLOOKUP(DropDownList!$B$47,CntyQuery!$A$51:$CE$93,Q$1)","v":2},{"$f":"VLOOKUP(DropDownList!$B$47,CntyQuery!$A$51:$CE$93,R$1)","v":5},{"$f":"VLOOKUP(DropDownList!$B$47,CntyQuery!$A$51:$CE$93,S$1)","v":210},{"$f":"VLOOKUP(DropDownList!$B$47,CntyQuery!$A$51:$CE$93,T$1)","v":112},{"$f":"VLOOKUP(DropDownList!$B$47,CntyQuery!$A$51:$CE$93,U$1)","v":142},{"$f":"VLOOKUP(DropDownList!$B$47,CntyQuery!$A$51:$CE$93,V$1)","v":208},{"$f":"VLOOKUP(DropDownList!$B$47,CntyQuery!$A$51:$CE$93,W$1)","v":145},{"$f":"VLOOKUP(DropDownList!$B$47,CntyQuery!$A$51:$CE$93,X$1)","v":191},{"$f":"VLOOKUP(DropDownList!$B$47,CntyQuery!$A$51:$CE$93,Y$1)","v":179},{"$f":"VLOOKUP(DropDownList!$B$47,CntyQuery!$A$51:$CE$93,Z$1)","v":60},{"$f":"VLOOKUP(DropDownList!$B$47,CntyQuery!$A$51:$CE$93,AA$1)","v":1247},{"$f":"VLOOKUP(DropDownList!$B$47,CntyQuery!$A$51:$CE$93,AB$1)","v":1131},{"$f":"VLOOKUP(DropDownList!$B$47,CntyQuery!$A$51:$CE$93,AC$1)","v":0},{"$f":"VLOOKUP(DropDownList!$B$47,CntyQuery!$A$51:$CE$93,AD$1)","v":2.5242914979757085},{"$f":"VLOOKUP(DropDownList!$B$47,CntyQuery!$A$51:$CE$93,AE$1)","v":2.7995049504950495},{"$f":"VLOOKUP(DropDownList!$B$47,CntyQuery!$A$51:$CE$93,AF$1)","v":67},{"$f":"VLOOKUP(DropDownList!$B$47,CntyQuery!$A$51:$CE$93,AG$1)","v":377},{"$f":"VLOOKUP(DropDownList!$B$47,CntyQuery!$A$51:$CE$93,AH$1)","v":27},{"$f":"VLOOKUP(DropDownList!$B$47,CntyQuery!$A$51:$CE$93,AI$1)","v":23},{"$f":"VLOOKUP(DropDownList!$B$47,CntyQuery!$A$51:$CE$93,AJ$1)","v":1289},{"$f":"VLOOKUP(DropDownList!$B$47,CntyQuery!$A$51:$CE$93,AK$1)","v":494},{"$f":"VLOOKUP(DropDownList!$B$47,CntyQuery!$A$51:$CE$93,AL$1)","v":795},{"$f":"VLOOKUP(DropDownList!$B$47,CntyQuery!$A$51:$CE$93,AM$1)","v":430},{"$f":"VLOOKUP(DropDownList!$B$47,CntyQuery!$A$51:$CE$93,AN$1)","v":64},{"$f":"VLOOKUP(DropDownList!$B$47,CntyQuery!$A$51:$CE$93,AO$1)","v":8},{"$f":"VLOOKUP(DropDownList!$B$47,CntyQuery!$A$51:$CE$93,AP$1)","v":14},{"$f":"VLOOKUP(DropDownList!$B$47,CntyQuery!$A$51:$CE$93,AQ$1)","v":721},{"$f":"VLOOKUP(DropDownList!$B$47,CntyQuery!$A$51:$CE$93,AR$1)","v":1},{"$f":"VLOOKUP(DropDownList!$B$47,CntyQuery!$A$51:$CE$93,AS$1)","v":1},{"$f":"VLOOKUP(DropDownList!$B$47,CntyQuery!$A$51:$CE$93,AT$1)","v":0},{"$f":"VLOOKUP(DropDownList!$B$47,CntyQuery!$A$51:$CE$93,AU$1)","v":2},{"$f":"VLOOKUP(DropDownList!$B$47,CntyQuery!$A$51:$CE$93,AV$1)","v":2},{"$f":"VLOOKUP(DropDownList!$B$47,CntyQuery!$A$51:$CE$93,AW$1)","v":0},{"$f":"VLOOKUP(DropDownList!$B$47,CntyQuery!$A$51:$CE$93,AX$1)","v":1},{"$f":"VLOOKUP(DropDownList!$B$47,CntyQuery!$A$51:$CE$93,AY$1)","v":0},{"$f":"VLOOKUP(DropDownList!$B$47,CntyQuery!$A$51:$CE$93,AZ$1)","v":8},{"$f":"VLOOKUP(DropDownList!$B$47,CntyQuery!$A$51:$CE$93,BA$1)","v":14},{"$f":"VLOOKUP(DropDownList!$B$47,CntyQuery!$A$51:$CE$93,BB$1)","v":44},{"$f":"VLOOKUP(DropDownList!$B$47,CntyQuery!$A$51:$CE$93,BC$1)","v":40},{"$f":"VLOOKUP(DropDownList!$B$47,CntyQuery!$A$51:$CE$93,BD$1)","v":37},{"$f":"VLOOKUP(DropDownList!$B$47,CntyQuery!$A$51:$CE$93,BE$1)","v":46},{"$f":"VLOOKUP(DropDownList!$B$47,CntyQuery!$A$51:$CE$93,BF$1)","v":59},{"$f":"VLOOKUP(DropDownList!$B$47,CntyQuery!$A$51:$CE$93,BG$1)","v":42},{"$f":"VLOOKUP(DropDownList!$B$47,CntyQuery!$A$51:$CE$93,BH$1)","v":22},{"$f":"VLOOKUP(DropDownList!$B$47,CntyQuery!$A$51:$CE$93,BI$1)","v":14},{"$f":"VLOOKUP(DropDownList!$B$47,CntyQuery!$A$51:$CE$93,BJ$1)","v":11},{"$f":"VLOOKUP(DropDownList!$B$47,CntyQuery!$A$51:$CE$93,BK$1)","v":4},{"$f":"VLOOKUP(DropDownList!$B$47,CntyQuery!$A$51:$CE$93,BL$1)","v":163000},{"$f":"VLOOKUP(DropDownList!$B$47,CntyQuery!$A$51:$CE$93,BM$1)","v":923},{"$f":"VLOOKUP(DropDownList!$B$47,CntyQuery!$A$51:$CE$93,BN$1)","v":339},{"$f":"VLOOKUP(DropDownList!$B$47,CntyQuery!$A$51:$CE$93,BO$1)","v":27},{"$f":"VLOOKUP(DropDownList!$B$47,CntyQuery!$A$51:$CE$93,BP$1)","v":391},{"$f":"VLOOKUP(DropDownList!$B$47,CntyQuery!$A$51:$CE$93,BQ$1)","v":25},{"$f":"VLOOKUP(DropDownList!$B$47,CntyQuery!$A$51:$CE$93,BR$1)","v":14},{"$f":"VLOOKUP(DropDownList!$B$47,CntyQuery!$A$51:$CE$93,BS$1)","v":35},{"$f":"VLOOKUP(DropDownList!$B$47,CntyQuery!$A$51:$CE$93,BT$1)","v":22},{"$f":"VLOOKUP(DropDownList!$B$47,CntyQuery!$A$51:$CE$93,BU$1)","v":7},{"$f":"VLOOKUP(DropDownList!$B$47,CntyQuery!$A$51:$CE$93,BV$1)","v":923},{"$f":"VLOOKUP(DropDownList!$B$47,CntyQuery!$A$51:$CE$93,BW$1)","v":322},{"$f":"VLOOKUP(DropDownList!$B$47,CntyQuery!$A$51:$CE$93,BX$1)","v":9},{"$f":"VLOOKUP(DropDownList!$B$47,CntyQuery!$A$51:$CE$93,BY$1)","v":5},{"$f":"VLOOKUP(DropDownList!$B$47,CntyQuery!$A$51:$CE$93,BZ$1)","v":1},{"$f":"VLOOKUP(DropDownList!$B$47,CntyQuery!$A$51:$CE$93,CA$1)","v":2},{"$f":"VLOOKUP(DropDownList!$B$47,CntyQuery!$A$51:$CE$93,CB$1)","v":0},{"$f":"VLOOKUP(DropDownList!$B$47,CntyQuery!$A$51:$CE$93,CC$1)","v":0},{"$f":"VLOOKUP(DropDownList!$B$47,CntyQuery!$A$51:$CE$93,CD$1)","v":21},{"$f":"VLOOKUP(DropDownList!$B$47,CntyQuery!$A$51:$CE$93,CE$1)","v":6}]
[]
[]
["Census 1990 Data -          Query Name: TownSTF3Qry1"]
["NAME","FIPS","COUSUBFP","LandAcres","WaterAcres","HousingUnits90Cen","P01Persons90Cen","P02Families90Cen","P03Households90cen","H25HU<5yrs90cen","H25HU5to20yrs90cen","H25HU20to50yrs90cen","H25HU>50yrs90cen","H31Units0Bedroom90cen","H31Units1Bedroom90cen","H31Units2Bedroom90cen","H31Units3Bedroom90cen","H31Units4Bedroom90cen","H31Units5+Bedroom90cen","P80HI<5K","P80HI5Kto10K","P80HI10Kto15K","P80HI15Kto25K","P80HI25Kto35K","P80HI35Kto50K","P80HI50Kto75K","P80HI75Kto100K","P80HI>100K","P80AMedHI","P86HH<25HI<5K","P86HH<25HI5Kto10K","P86HH<25HI10Kto15K","P86HH<25HI15Kto25K","P86HH<25HI25Kto35K","P86HH<25HI35Kto50K","P86HH<25HI50Kto75K","P86HH<25HI75Kto100K","P86HH<25HI>100K","P86HH25to34HI<5K","P86HH25to34HI5Kto10K","P86HH25to34HI10Kto15K","P86HH25to34HI15Kto25K","P86HH25to34HI25Kto35K","P86HH25to34HI35Kto50K","P86HH25to34HI50Kto75K","P86HH25to34HI75Kto100K","P86HH25to34HI>100K","P86HH35to44HI<5K","P86HH35to44HI5Kto10K","P86HH35to44HI10Kto15K","P86HH35to44HI15Kto25K","P86HH35to44HI25Kto35K","P86HH35to44HI35Kto50K","P86HH35to44HI50Kto75K","P86HH35to44HI75Kto100K","P86HH35to44HI>100K","P86HH45to54HI<5K","P86HH45to54HI5Kto10K","P86HH45to54HI10Kto15K","P86HH45to54HI15Kto25K","P86HH45to54HI25Kto35K","P86HH45to54HI35Kto50K","P86HH45to54HI50Kto75K","P86HH45to54HI75Kto100K","P86HH45to54HI>100K","P86HH55to64HI<5K","P86HH55to64HI5Kto10K","P86HH55to64HI10Kto15K","P86HH55to64HI15Kto25K","P86HH55to64HI25Kto35K","P86HH55to64HI35Kto50K","P86HH55to64HI50Kto75K","P86HH55to64HI75Kto100K","P86HH55to64HI>100K","P86HH65to74HI<5K","P86HH65to74HI5Kto10K","P86HH65to74HI10Kto15K","P86HH65to74HI15Kto25K","P86HH65to74HI25Kto35K","P86HH65to74HI35Kto50K","P86HH65to74HI50Kto75K","P86HH65to74HI75Kto100K","P86HH65to74HI>100K","P86HH>75HI<5K","P86HH>75HI5Kto10K","P86HH>75HI10Kto15K","P86HH>75HI15Kto25K","P86HH>75HI25Kto35K","P86HH>75HI35Kto50K","P86HH>75HI50Kto75K","P86HH>75HI75Kto100K","P86HH>75HI>100K","P54SchlEnrlPrePrim","P54SchlEnrlElemThrHS","P54SchlEnrlCollege","P54NotEnrlInSch","P57Pop25andOver","P57LessThan9thGrade","P579thto12thNoDip","P57HSGrad","P57SomeCollege","P57AssocDeg","P57BachelDeg","P57GradorProfDeg","P57HSGradorHigher","P57CollGradorHigher","P42NativePop","P42ForeignBornPop","P42BornStateOfRes","P37NativePop2","P37ForeignBornPop2","P49DroveAlone","P49CarPooled","P49PublicTranspt","P49Walked","P49OtherMeans","P49WorkedAtHome","P80HHInc<10K","P80HHInc10to15K","P80HHInc15to25K","P80HHInc25to35K","P80HHInc35to50K","P80HHInc50to75K","P80HHInc75to100K","P80HHInc100to150K","P80HHInc>150K","H25YearStBlt89to90","H25YearStBlt85to88","H25YearStBlt80to84","H25YearStBlt70to79","H25YearStBlt60to69","H25YearStBlt50to59","H25YearStBlt40to49","H25YearStBlt39earlier","P107FamInc<10K","P107FamInc10to15K","P107FamInc15to25K","P107FamInc25to35K","P107FamInc35to50K","P107FamInc50to75K","P107FamInc75to100K","P107FamInc100to150K","P107FamInc>150K","P107AMedFamInc","P110NonFamInc<10K","P110NonFamInc10to15K","P110NonFamInc15to25K","P110NonFamInc25to35K","P110NonFamInc35to50K","P110NonFamInc50to75K","P110NonFamInc75to100K","P110NonFamInc100to150K","P110NonFamInc>150K","P110AMedNonFamInc","H16HU1Room","H16HU2Room","H16HU3Room","H16HU4Room","H16HU5Room","H16HU6Room","H16HU7Room","H16HU8Room","H16HU9+Room","H43GrossRnt<100","H43GrossRnt100to149","H43GrossRnt150to199","H43GrossRnt200to249","H43GrossRnt250to299","H43GrossRnt300to349","H43GrossRnt350to399","H43GrossRnt400to449","H43GrossRnt450to499","H43GrossRnt500to549","H43GrossRnt550to599","H43GrossRnt600to649","H43GrossRnt650to699","H43GrossRnt700to749","H43GrossRnt750to999","H43GrossRnt1000Plus","H43NoCashRent","H43MedGrossRent","H51GrossRnt<20PctHHInc","H51GrossRnt20to24PctHHInc","H51GrossRnt25to29PctHHInc","H51GrossRnt30to34PctHHInc","H51GrossRnt35PctOrMoreHHInc","H51GrossRntAsPctHHIncNotComp","H52HUwMtgMoOwnCst<200","H52HUwMtgMoOwnCst200to299","H52HUwMtgMoOwnCst300to399","H52HUwMtgMoOwnCst400to499","H52HUwMtgMoOwnCst500to599","H52HUwMtgMoOwnCst600to699","H52HUwMtgMoOwnCst700to799","H52HUwMtgMoOwnCst800to899","H52HUwMtgMoOwnCst900to999","H52HUwMtgMoOwnCst1000to1249","H52HUwMtgMoOwnCst1250to1499","H52HUwMtgMoOwnCst1500to1999","H52HUwMtgMoOwnCst2000More","H52HUwNoMtgMoOwnCst<100","H52HUwNoMtgMoOwnCst100to149","H52HUwNoMtgMoOwnCst150to199","H52HUwNoMtgMoOwnCst200to249","H52HUwNoMtgMoOwnCst250to299","H52HUwNoMtgMoOwnCst300to349","H52HUwNoMtgMoOwnCst350to399","H52HUwNoMtgMoOwnCst400More","H52AMedMoOwnCstWMortg","H52AMedMoOwnCstWNoMortg","H58HUwMtgMOC<20pHHInc","H58HUwMtgMOC20to24pHHInc","H58HUwMtgMOC25to29pHHInc","H58HUwMtgMOC30to34pHHInc","H58wMtgMOC>35pHHInc","H58HUwMtgMOCNotComp","H58HUwNoMtgMOC<20pHHInc","H58HUwNoMtgMOC20to24pHHInc","H58HUwNoMtgMOC25to29pHHInc","H58HUwNoMtgMOC30to34pHHInc","H58wNoMtgMOC>35pHHInc","H58HUwNoMtgMOCNotComp","H61OOHUVal<15k","H61OOHUVal15to19k","H61OOHUVal20to24k","H61OOHUVal25to29k","H61OOHUVal30to34k","H61OOHUVal35to39k","H61OOHUVal40to44k","H61OOHUVal45to49k","H61OOHUVal50to59k","H61OOHUVal60to74k","H61OOHUVal75to99k","H61OOHUVal100to124k","H61OOHUVal125to149k","H61OOHUVal150to174k","H61OOHUVal175to199k","H61OOHUVal200to249k","H61OOHUVal250to299k","H61OOHUVal300to399k","H61OOHUVal400to499k","H61OOHUVal500kOrMore","H61aOOHUMedVal"]
[]
[]
[]
["Other Demo Data -             Query Name: QryAllTowns-ACSDemographicSheet"]
["TOWN_NAME","FIPS","TOWNCNTY","COUSUB","POP80","POP90CDCEN","POP2000CEN","POP2010CEN","POP2020CEN","POP2025-Proj","POP2030-Proj","POP2035-Proj","SF80","MF80","MH80","SF81","MF81","MH81","SF82","MF82","MH82","SF83","MF83","MH83","SF84_OSP","MF84_OSP","MH84_OSP","SF85_OSP","MF85_OSP","MH85_OSP","SF86_OSP","MF86_OSP","MH86_OSP","SF87_OSP","MF87_OSP","MH87_OSP","SF88_OSP","MF88_OSP","MH88_OSP","SF89_OSP","MF89_OSP","MH89_OSP","SF90_OSP","MF90_OSP","MH90_OSP","SF91_OSP","MF91_OSP","MH91_OSP","SF92_OSP","MF92_OSP","MH92_OSP","SF93_OSP","MF93_OSP","MH93_OSP","SF94_OSP","MF94_OSP","MH94_OSP","SF95_OSP","MF95_OSP","MH95_OSP","SF96_OSP","MF96_OSP","MH96_OSP","SF97_OSP","MF97_OSP","MH97_OSP","SF98_OSP","MF98_OSP","MH98_OSP","SF99_OSP","MF99_OSP","MH99_OSP","SF00_OSP","MF00_OSP","MH00_OSP","SF01_OSP","MF01_OSP","MH01_OSP","SF02_OSP","MF02_OSP","MH02_OSP","SF03_OSP","MF03_OSP","MH03_OSP","SF04_OSP","MF04_OSP","MH04_OSP","SF05_OSP","MF05_OSP","MH05_OSP","SF06_OSP","MF06_OSP","MH06_OSP","SF07_OSP","MF07_OSP","MH07_OSP","SF08_OSP","MF08_OSP","MH08_OSP","SF09_OSP","MF09_OSP","MH09_OSP","SF10_OSP","MF10_OSP","MH10_OSP","SF11_OSP","MF11_OSP","MH11_OSP","SF12_OSP","MF12_OSP","MH12_OSP","SF13_OSP","MF13_OSP","MH13_OSP","SF14_OSP","MF14_OSP","MH14_OSP","SF15_OSP","MF15_OSP","MH15_OSP","SF16_OSP","MF16_OSP","MH16_OSP","SF17_OSP","MF17_OSP","MH17_OSP","SF18_OSP","MF18_OSP","MH18_OSP","SF19_OSP","MF19_OSP","MH19_OSP","SF20_OSP","MF20_OSP","MH20_OSP","SF20 Census_OSP","MF20 Census OSP","MH20 Census_OSP","SF21_OSP","MF21_OSP","MH21_OSP","COMMENTS","CNTY_CODE"]
[{"$f":"VLOOKUP(DropDownList!$B$47,CntyQuery!$A$117:$FZ$160,A$1)","v":"Grantham"},{"$f":"VLOOKUP(DropDownList!$B$47,CntyQuery!$A$117:$FZ$160,B$1)","v":19035},{"$f":"VLOOKUP(DropDownList!$B$47,CntyQuery!$A$117:$FZ$160,C$1)","v":1007},{"$f":"VLOOKUP(DropDownList!$B$47,CntyQuery!$A$117:$FZ$160,D$1)","v":"31220"},{"$f":"VLOOKUP(DropDownList!$B$47,CntyQuery!$A$117:$FZ$160,E$1)","v":704},{"$f":"VLOOKUP(DropDownList!$B$47,CntyQuery!$A$117:$FZ$160,F$1)","v":1247},{"$f":"VLOOKUP(DropDownList!$B$47,CntyQuery!$A$117:$FZ$160,G$1)","v":2167},{"$f":"VLOOKUP(DropDownList!$B$47,CntyQuery!$A$117:$FZ$160,H$1)","v":2985},{"$f":"VLOOKUP(DropDownList!$B$47,CntyQuery!$A$117:$FZ$160,I$1)","v":3404},{"$f":"VLOOKUP(DropDownList!$B$47,CntyQuery!$A$117:$FZ$160,J$1)","v":3474},{"$f":"VLOOKUP(DropDownList!$B$47,CntyQuery!$A$117:$FZ$160,K$1)","v":3512},{"$f":"VLOOKUP(DropDownList!$B$47,CntyQuery!$A$117:$FZ$160,L$1)","v":3512},{"$f":"VLOOKUP(DropDownList!$B$47,CntyQuery!$A$117:$FZ$160,M$1)","v":78},{"$f":"VLOOKUP(DropDownList!$B$47,CntyQuery!$A$117:$FZ$160,N$1)","v":10},{"$f":"VLOOKUP(DropDownList!$B$47,CntyQuery!$A$117:$FZ$160,O$1)","v":0},{"$f":"VLOOKUP(DropDownList!$B$47,CntyQuery!$A$117:$FZ$160,P$1)","v":81},{"$f":"VLOOKUP(DropDownList!$B$47,CntyQuery!$A$117:$FZ$160,Q$1)","v":0},{"$f":"VLOOKUP(DropDownList!$B$47,CntyQuery!$A$117:$FZ$160,R$1)","v":0},{"$f":"VLOOKUP(DropDownList!$B$47,CntyQuery!$A$117:$FZ$160,S$1)","v":6},{"$f":"VLOOKUP(DropDownList!$B$47,CntyQuery!$A$117:$FZ$160,T$1)","v":0},{"$f":"VLOOKUP(DropDownList!$B$47,CntyQuery!$A$117:$FZ$160,U$1)","v":0},{"$f":"VLOOKUP(DropDownList!$B$47,CntyQuery!$A$117:$FZ$160,V$1)","v":0},{"$f":"VLOOKUP(DropDownList!$B$47,CntyQuery!$A$117:$FZ$160,W$1)","v":0},{"$f":"VLOOKUP(DropDownList!$B$47,CntyQuery!$A$117:$FZ$160,X$1)","v":0},{"$f":"VLOOKUP(DropDownList!$B$47,CntyQuery!$A$117:$FZ$160,Y$1)","v":9},{"$f":"VLOOKUP(DropDownList!$B$47,CntyQuery!$A$117:$FZ$160,Z$1)","v":0},{"$f":"VLOOKUP(DropDownList!$B$47,CntyQuery!$A$117:$FZ$160,AA$1)","v":0},{"$f":"VLOOKUP(DropDownList!$B$47,CntyQuery!$A$117:$FZ$160,AB$1)","v":7},{"$f":"VLOOKUP(DropDownList!$B$47,CntyQuery!$A$117:$FZ$160,AC$1)","v":0},{"$f":"VLOOKUP(DropDownList!$B$47,CntyQuery!$A$117:$FZ$160,AD$1)","v":0},{"$f":"VLOOKUP(DropDownList!$B$47,CntyQuery!$A$117:$FZ$160,AE$1)","v":52},{"$f":"VLOOKUP(DropDownList!$B$47,CntyQuery!$A$117:$FZ$160,AF$1)","v":0},{"$f":"VLOOKUP(DropDownList!$B$47,CntyQuery!$A$117:$FZ$160,AG$1)","v":0},{"$f":"VLOOKUP(DropDownList!$B$47,CntyQuery!$A$117:$FZ$160,AH$1)","v":61},{"$f":"VLOOKUP(DropDownList!$B$47,CntyQuery!$A$117:$FZ$160,AI$1)","v":0},{"$f":"VLOOKUP(DropDownList!$B$47,CntyQuery!$A$117:$FZ$160,AJ$1)","v":0},{"$f":"VLOOKUP(DropDownList!$B$47,CntyQuery!$A$117:$FZ$160,AK$1)","v":63},{"$f":"VLOOKUP(DropDownList!$B$47,CntyQuery!$A$117:$FZ$160,AL$1)","v":0},{"$f":"VLOOKUP(DropDownList!$B$47,CntyQuery!$A$117:$FZ$160,AM$1)","v":3},{"$f":"VLOOKUP(DropDownList!$B$47,CntyQuery!$A$117:$FZ$160,AN$1)","v":58},{"$f":"VLOOKUP(DropDownList!$B$47,CntyQuery!$A$117:$FZ$160,AO$1)","v":0},{"$f":"VLOOKUP(DropDownList!$B$47,CntyQuery!$A$117:$FZ$160,AP$1)","v":5},{"$f":"VLOOKUP(DropDownList!$B$47,CntyQuery!$A$117:$FZ$160,AQ$1)","v":27},{"$f":"VLOOKUP(DropDownList!$B$47,CntyQuery!$A$117:$FZ$160,AR$1)","v":0},{"$f":"VLOOKUP(DropDownList!$B$47,CntyQuery!$A$117:$FZ$160,AS$1)","v":2},{"$f":"VLOOKUP(DropDownList!$B$47,CntyQuery!$A$117:$FZ$160,AT$1)","v":27},{"$f":"VLOOKUP(DropDownList!$B$47,CntyQuery!$A$117:$FZ$160,AU$1)","v":0},{"$f":"VLOOKUP(DropDownList!$B$47,CntyQuery!$A$117:$FZ$160,AV$1)","v":1},{"$f":"VLOOKUP(DropDownList!$B$47,CntyQuery!$A$117:$FZ$160,AW$1)","v":17},{"$f":"VLOOKUP(DropDownList!$B$47,CntyQuery!$A$117:$FZ$160,AX$1)","v":0},{"$f":"VLOOKUP(DropDownList!$B$47,CntyQuery!$A$117:$FZ$160,AY$1)","v":0},{"$f":"VLOOKUP(DropDownList!$B$47,CntyQuery!$A$117:$FZ$160,AZ$1)","v":22},{"$f":"VLOOKUP(DropDownList!$B$47,CntyQuery!$A$117:$FZ$160,BA$1)","v":0},{"$f":"VLOOKUP(DropDownList!$B$47,CntyQuery!$A$117:$FZ$160,BB$1)","v":1},{"$f":"VLOOKUP(DropDownList!$B$47,CntyQuery!$A$117:$FZ$160,BC$1)","v":27},{"$f":"VLOOKUP(DropDownList!$B$47,CntyQuery!$A$117:$FZ$160,BD$1)","v":0},{"$f":"VLOOKUP(DropDownList!$B$47,CntyQuery!$A$117:$FZ$160,BE$1)","v":2},{"$f":"VLOOKUP(DropDownList!$B$47,CntyQuery!$A$117:$FZ$160,BF$1)","v":22},{"$f":"VLOOKUP(DropDownList!$B$47,CntyQuery!$A$117:$FZ$160,BG$1)","v":0},{"$f":"VLOOKUP(DropDownList!$B$47,CntyQuery!$A$117:$FZ$160,BH$1)","v":1},{"$f":"VLOOKUP(DropDownList!$B$47,CntyQuery!$A$117:$FZ$160,BI$1)","v":24},{"$f":"VLOOKUP(DropDownList!$B$47,CntyQuery!$A$117:$FZ$160,BJ$1)","v":0},{"$f":"VLOOKUP(DropDownList!$B$47,CntyQuery!$A$117:$FZ$160,BK$1)","v":2},{"$f":"VLOOKUP(DropDownList!$B$47,CntyQuery!$A$117:$FZ$160,BL$1)","v":25},{"$f":"VLOOKUP(DropDownList!$B$47,CntyQuery!$A$117:$FZ$160,BM$1)","v":0},{"$f":"VLOOKUP(DropDownList!$B$47,CntyQuery!$A$117:$FZ$160,BN$1)","v":0},{"$f":"VLOOKUP(DropDownList!$B$47,CntyQuery!$A$117:$FZ$160,BO$1)","v":21},{"$f":"VLOOKUP(DropDownList!$B$47,CntyQuery!$A$117:$FZ$160,BP$1)","v":0},{"$f":"VLOOKUP(DropDownList!$B$47,CntyQuery!$A$117:$FZ$160,BQ$1)","v":2},{"$f":"VLOOKUP(DropDownList!$B$47,CntyQuery!$A$117:$FZ$160,BR$1)","v":21},{"$f":"VLOOKUP(DropDownList!$B$47,CntyQuery!$A$117:$FZ$160,BS$1)","v":0},{"$f":"VLOOKUP(DropDownList!$B$47,CntyQuery!$A$117:$FZ$160,BT$1)","v":3},{"$f":"VLOOKUP(DropDownList!$B$47,CntyQuery!$A$117:$FZ$160,BU$1)","v":34},{"$f":"VLOOKUP(DropDownList!$B$47,CntyQuery!$A$117:$FZ$160,BV$1)","v":0},{"$f":"VLOOKUP(DropDownList!$B$47,CntyQuery!$A$117:$FZ$160,BW$1)","v":1},{"$f":"VLOOKUP(DropDownList!$B$47,CntyQuery!$A$117:$FZ$160,BX$1)","v":28},{"$f":"VLOOKUP(DropDownList!$B$47,CntyQuery!$A$117:$FZ$160,BY$1)","v":2},{"$f":"VLOOKUP(DropDownList!$B$47,CntyQuery!$A$117:$FZ$160,BZ$1)","v":0},{"$f":"VLOOKUP(DropDownList!$B$47,CntyQuery!$A$117:$FZ$160,CA$1)","v":45},{"$f":"VLOOKUP(DropDownList!$B$47,CntyQuery!$A$117:$FZ$160,CB$1)","v":2},{"$f":"VLOOKUP(DropDownList!$B$47,CntyQuery!$A$117:$FZ$160,CC$1)","v":0},{"$f":"VLOOKUP(DropDownList!$B$47,CntyQuery!$A$117:$FZ$160,CD$1)","v":59},{"$f":"VLOOKUP(DropDownList!$B$47,CntyQuery!$A$117:$FZ$160,CE$1)","v":0},{"$f":"VLOOKUP(DropDownList!$B$47,CntyQuery!$A$117:$FZ$160,CF$1)","v":0},{"$f":"VLOOKUP(DropDownList!$B$47,CntyQuery!$A$117:$FZ$160,CG$1)","v":42},{"$f":"VLOOKUP(DropDownList!$B$47,CntyQuery!$A$117:$FZ$160,CH$1)","v":0},{"$f":"VLOOKUP(DropDownList!$B$47,CntyQuery!$A$117:$FZ$160,CI$1)","v":0},{"$f":"VLOOKUP(DropDownList!$B$47,CntyQuery!$A$117:$FZ$160,CJ$1)","v":31},{"$f":"VLOOKUP(DropDownList!$B$47,CntyQuery!$A$117:$FZ$160,CK$1)","v":0},{"$f":"VLOOKUP(DropDownList!$B$47,CntyQuery!$A$117:$FZ$160,CL$1)","v":0},{"$f":"VLOOKUP(DropDownList!$B$47,CntyQuery!$A$117:$FZ$160,CM$1)","v":23},{"$f":"VLOOKUP(DropDownList!$B$47,CntyQuery!$A$117:$FZ$160,CN$1)","v":0},{"$f":"VLOOKUP(DropDownList!$B$47,CntyQuery!$A$117:$FZ$160,CO$1)","v":0},{"$f":"VLOOKUP(DropDownList!$B$47,CntyQuery!$A$117:$FZ$160,CP$1)","v":23},{"$f":"VLOOKUP(DropDownList!$B$47,CntyQuery!$A$117:$FZ$160,CQ$1)","v":0},{"$f":"VLOOKUP(DropDownList!$B$47,CntyQuery!$A$117:$FZ$160,CR$1)","v":0},{"$f":"VLOOKUP(DropDownList!$B$47,CntyQuery!$A$117:$FZ$160,CS$1)","v":15},{"$f":"VLOOKUP(DropDownList!$B$47,CntyQuery!$A$117:$FZ$160,CT$1)","v":0},{"$f":"VLOOKUP(DropDownList!$B$47,CntyQuery!$A$117:$FZ$160,CU$1)","v":0},{"$f":"VLOOKUP(DropDownList!$B$47,CntyQuery!$A$117:$FZ$160,CV$1)","v":6},{"$f":"VLOOKUP(DropDownList!$B$47,CntyQuery!$A$117:$FZ$160,CW$1)","v":0},{"$f":"VLOOKUP(DropDownList!$B$47,CntyQuery!$A$117:$FZ$160,CX$1)","v":0},{"$f":"VLOOKUP(DropDownList!$B$47,CntyQuery!$A$117:$FZ$160,CY$1)","v":5},{"$f":"VLOOKUP(DropDownList!$B$47,CntyQuery!$A$117:$FZ$160,CZ$1)","v":0},{"$f":"VLOOKUP(DropDownList!$B$47,CntyQuery!$A$117:$FZ$160,DA$1)","v":0},{"$f":"VLOOKUP(DropDownList!$B$47,CntyQuery!$A$117:$FZ$160,DB$1)","v":6},{"$f":"VLOOKUP(DropDownList!$B$47,CntyQuery!$A$117:$FZ$160,DC$1)","v":0},{"$f":"VLOOKUP(DropDownList!$B$47,CntyQuery!$A$117:$FZ$160,DD$1)","v":0},{"$f":"VLOOKUP(DropDownList!$B$47,CntyQuery!$A$117:$FZ$160,DE$1)","v":3},{"$f":"VLOOKUP(DropDownList!$B$47,CntyQuery!$A$117:$FZ$160,DF$1)","v":0},{"$f":"VLOOKUP(DropDownList!$B$47,CntyQuery!$A$117:$FZ$160,DG$1)","v":0},{"$f":"VLOOKUP(DropDownList!$B$47,CntyQuery!$A$117:$FZ$160,DH$1)","v":5},{"$f":"VLOOKUP(DropDownList!$B$47,CntyQuery!$A$117:$FZ$160,DI$1)","v":2},{"$f":"VLOOKUP(DropDownList!$B$47,CntyQuery!$A$117:$FZ$160,DJ$1)","v":0},{"$f":"VLOOKUP(DropDownList!$B$47,CntyQuery!$A$117:$FZ$160,DK$1)","v":7},{"$f":"VLOOKUP(DropDownList!$B$47,CntyQuery!$A$117:$FZ$160,DL$1)","v":0},{"$f":"VLOOKUP(DropDownList!$B$47,CntyQuery!$A$117:$FZ$160,DM$1)","v":0},{"$f":"VLOOKUP(DropDownList!$B$47,CntyQuery!$A$117:$FZ$160,DN$1)","v":17},{"$f":"VLOOKUP(DropDownList!$B$47,CntyQuery!$A$117:$FZ$160,DO$1)","v":0},{"$f":"VLOOKUP(DropDownList!$B$47,CntyQuery!$A$117:$FZ$160,DP$1)","v":0},{"$f":"VLOOKUP(DropDownList!$B$47,CntyQuery!$A$117:$FZ$160,DQ$1)","v":3},{"$f":"VLOOKUP(DropDownList!$B$47,CntyQuery!$A$117:$FZ$160,DR$1)","v":0},{"$f":"VLOOKUP(DropDownList!$B$47,CntyQuery!$A$117:$FZ$160,DS$1)","v":0},{"$f":"VLOOKUP(DropDownList!$B$47,CntyQuery!$A$117:$FZ$160,DT$1)","v":3},{"$f":"VLOOKUP(DropDownList!$B$47,CntyQuery!$A$117:$FZ$160,DU$1)","v":1},{"$f":"VLOOKUP(DropDownList!$B$47,CntyQuery!$A$117:$FZ$160,DV$1)","v":0},{"$f":"VLOOKUP(DropDownList!$B$47,CntyQuery!$A$117:$FZ$160,DW$1)","v":6},{"$f":"VLOOKUP(DropDownList!$B$47,CntyQuery!$A$117:$FZ$160,DX$1)","v":0},{"$f":"VLOOKUP(DropDownList!$B$47,CntyQuery!$A$117:$FZ$160,DY$1)","v":0},{"$f":"VLOOKUP(DropDownList!$B$47,CntyQuery!$A$117:$FZ$160,DZ$1)","v":4},{"$f":"VLOOKUP(DropDownList!$B$47,CntyQuery!$A$117:$FZ$160,EA$1)","v":0},{"$f":"VLOOKUP(DropDownList!$B$47,CntyQuery!$A$117:$FZ$160,EB$1)","v":0},{"$f":"VLOOKUP(DropDownList!$B$47,CntyQuery!$A$117:$FZ$160,EC$1)","v":4},{"$f":"VLOOKUP(DropDownList!$B$47,CntyQuery!$A$117:$FZ$160,ED$1)","v":1},{"$f":"VLOOKUP(DropDownList!$B$47,CntyQuery!$A$117:$FZ$160,EE$1)","v":0},{"$f":"VLOOKUP(DropDownList!$B$47,CntyQuery!$A$117:$FZ$160,EF$1)","v":0},{"$f":"VLOOKUP(DropDownList!$B$47,CntyQuery!$A$117:$FZ$160,EG$1)","v":0},{"$f":"VLOOKUP(DropDownList!$B$47,CntyQuery!$A$117:$FZ$160,EH$1)","v":0},{"$f":"VLOOKUP(DropDownList!$B$47,CntyQuery!$A$117:$FZ$160,EI$1)","v":6},{"$f":"VLOOKUP(DropDownList!$B$47,CntyQuery!$A$117:$FZ$160,EJ$1)","v":0},{"$f":"VLOOKUP(DropDownList!$B$47,CntyQuery!$A$117:$FZ$160,EK$1)","v":0},{"$f":"VLOOKUP(DropDownList!$B$47,CntyQuery!$A$117:$FZ$160,EL$1)","v":""},{"$f":"VLOOKUP(DropDownList!$B$47,CntyQuery!$A$117:$FZ$160,EM$1)","v":10}]
[]
[]
["NH Employment Data","Query Name: DPQryEmploymentByCnty"]
["AreaName","COUNTYCODE","TOTP & G2001","TOT2001","GOODPRO2001","SERVICEPROMAN2001","WAGEP & G2001","WAGETOT2001","WAGEGOODPRO2001","WAGESERVICEPRO2001","TOTP & G2002","TOT2002","GOODPRO2002","SERVICEPROMAN2002","WAGEP & G2002","WAGETOT2002","WAGEGOODPRO2002","WAGESERVICEPRO2002","TOTP & G2003","TOT2003","GOODPRO2003","SERVICEPROMAN2003","WAGEP & G2003","WAGETOT2003","WAGEGOODPRO2003","WAGESERVICEPRO2003","TOTP & G2004","TOT2004","GOODPRO2004","SERVICEPROMAN2004","WAGEP & G2004","WAGETOT2004","WAGEGOODPRO2004","WAGESERVICEPRO2004","TOTP & G2005","TOT2005","GOODPRO2005","SERVICEPROMAN2005","WAGEP & G2005","WAGETOT2005","WAGEGOODPRO2005","WAGESERVICEPRO2005","TOTP & G2006","TOT2006","GOODPRO2006","SERVICEPROMAN2006","WAGEP & G2006","WAGETOT2006","WAGEGOODPRO2006","WAGESERVICEPRO2006","TOTP & G2007","TOT2007","GOODPRO2007","SERVICEPROMAN2007","WAGEP & G2007","WAGETOT2007","WAGEGOODPRO2007","WAGESERVICEPRO2007","TOTP & G2008","TOT2008","GOODPRO2008","SERVICEPROMAN2008","WAGEP & G2008","WAGETOT2008","WAGEGOODPRO2008","WAGESERVICEPRO2008","TOTP & G2009","TOT2009","GOODPRO2009","SERVICEPROMAN2009","WAGEP & G2009","WAGETOT2009","WAGEGOODPRO2009","WAGESERVICEPRO2009","TOTP & G2010","TOT2010","GOODPRO2010","SERVICEPROMAN2010","WAGEP & G2010","WAGETOT2010","WAGEGOODPRO2010","WAGESERVICEPRO2010","TOTP & G2011","TOT2011","GOODPRO2011","SERVICEPROMAN2011","WAGEP & G2011","WAGETOT2011","WAGEGOODPRO2011","WAGESERVICEPRO2011","TOTP & G2012","TOT2012","GOODPRO2012","SERVICEPROMAN2012","WAGEP & G2012","WAGETOT2012","WAGEGOODPRO2012","WAGESERVICEPRO2012","TOTP & G2013","TOT2013","GOODPRO2013","SERVICEPROMAN2013","WAGEP & G2013","WAGETOT2013","WAGEGOODPRO2013","WAGESERVICEPRO2013","TOTP & G2014","TOT2014","GOODPRO2014","SERVICEPROMAN2014","WAGEP & G2014","WAGETOT2014","WAGEGOODPRO2014","WAGESERVICEPRO2014","TOTP & G2015","TOT2015","GOODPRO2015","SERVICEPROMAN2015","WAGEP & G2015","WAGETOT2015","WAGEGOODPRO2015","WAGESERVICEPRO2015","TOTP & G2016","TOT2016","GOODPRO2016","SERVICEPROMAN2016","WAGEP & G2016","WAGETOT2016","WAGEGOODPRO2016","WAGESERVICEPRO2016","TOTP & G2017","TOT2017","GOODPRO2017","SERVICEPROMAN2017","WAGEP & G2017","WAGETOT2017","WAGEGOODPRO2017","WAGESERVICEPRO2017","TOTP & G2018","TOT2018","GOODPRO2018","SERVICEPROMAN2018","WAGEP & G2018","WAGETOT2018","WAGEGOODPRO2018","WAGESERVICEPRO2018","TOTP & G2019","TOT2019","TOTGov2019","GOODPRO2019","SERVICEPROMAN2019","WAGEP & G2019","WAGETOT2019","WAGEGov2019","WAGEGOODPRO2019","WAGESERVICEPRO2019","TOTP & G2020","TOT2020","TOTGov2020","GOODPRO2020","SERVICEPROMAN2020","WAGEP & G2020","WAGETOT2020","WAGEGov2020","WAGEGOODPRO2020","WAGESERVICEPRO2020","TOTP & G2021","TOT2021","TOTGov2021","GOODPRO2021","SERVICEPROMAN2021","WAGEP & G2021","WAGETOT2021","WAGEGov2021","WAGEGOODPRO2021","WAGESERVICEPRO2021","TOTP & G2022","TOT2022","TOTGov2022","GOODPRO2022","SERVICEPROMAN2022","WAGEP & G2022","WAGETOT2022","WAGEGov2022","WAGEGOODPRO2022","WAGESERVICEPRO2022"]
[{"$f":"VLOOKUP(DropDownList!$B$47,CntyQuery!$A$171:$GZ$185,A$1)","v":"Grantham"},{"$f":"VLOOKUP(DropDownList!$B$47,CntyQuery!$A$171:$GZ$185,B$1)","v":10},{"$f":"VLOOKUP(DropDownList!$B$47,CntyQuery!$A$171:$GZ$185,C$1)","v":300},{"$f":"VLOOKUP(DropDownList!$B$47,CntyQuery!$A$171:$GZ$185,D$1)","v":276},{"$f":"VLOOKUP(DropDownList!$B$47,CntyQuery!$A$171:$GZ$185,E$1)","v":92},{"$f":"VLOOKUP(DropDownList!$B$47,CntyQuery!$A$171:$GZ$185,F$1)","v":183},{"$f":"VLOOKUP(DropDownList!$B$47,CntyQuery!$A$171:$GZ$185,G$1)","v":514.5},{"$f":"VLOOKUP(DropDownList!$B$47,CntyQuery!$A$171:$GZ$185,H$1)","v":503.81},{"$f":"VLOOKUP(DropDownList!$B$47,CntyQuery!$A$171:$GZ$185,I$1)","v":592.91999999999996},{"$f":"VLOOKUP(DropDownList!$B$47,CntyQuery!$A$171:$GZ$185,J$1)","v":458.92},{"$f":"VLOOKUP(DropDownList!$B$47,CntyQuery!$A$171:$GZ$185,K$1)","v":307},{"$f":"VLOOKUP(DropDownList!$B$47,CntyQuery!$A$171:$GZ$185,L$1)","v":279},{"$f":"VLOOKUP(DropDownList!$B$47,CntyQuery!$A$171:$GZ$185,M$1)","v":99},{"$f":"VLOOKUP(DropDownList!$B$47,CntyQuery!$A$171:$GZ$185,N$1)","v":180},{"$f":"VLOOKUP(DropDownList!$B$47,CntyQuery!$A$171:$GZ$185,O$1)","v":512.86},{"$f":"VLOOKUP(DropDownList!$B$47,CntyQuery!$A$171:$GZ$185,P$1)","v":508.88},{"$f":"VLOOKUP(DropDownList!$B$47,CntyQuery!$A$171:$GZ$185,Q$1)","v":622.42999999999995},{"$f":"VLOOKUP(DropDownList!$B$47,CntyQuery!$A$171:$GZ$185,R$1)","v":446.7},{"$f":"VLOOKUP(DropDownList!$B$47,CntyQuery!$A$171:$GZ$185,S$1)","v":347},{"$f":"VLOOKUP(DropDownList!$B$47,CntyQuery!$A$171:$GZ$185,T$1)","v":321},{"$f":"VLOOKUP(DropDownList!$B$47,CntyQuery!$A$171:$GZ$185,U$1)","v":110},{"$f":"VLOOKUP(DropDownList!$B$47,CntyQuery!$A$171:$GZ$185,V$1)","v":211},{"$f":"VLOOKUP(DropDownList!$B$47,CntyQuery!$A$171:$GZ$185,W$1)","v":547.54},{"$f":"VLOOKUP(DropDownList!$B$47,CntyQuery!$A$171:$GZ$185,X$1)","v":540.41},{"$f":"VLOOKUP(DropDownList!$B$47,CntyQuery!$A$171:$GZ$185,Y$1)","v":673.42},{"$f":"VLOOKUP(DropDownList!$B$47,CntyQuery!$A$171:$GZ$185,Z$1)","v":471.28},{"$f":"VLOOKUP(DropDownList!$B$47,CntyQuery!$A$171:$GZ$185,AA$1)","v":391},{"$f":"VLOOKUP(DropDownList!$B$47,CntyQuery!$A$171:$GZ$185,AB$1)","v":363},{"$f":"VLOOKUP(DropDownList!$B$47,CntyQuery!$A$171:$GZ$185,AC$1)","v":144},{"$f":"VLOOKUP(DropDownList!$B$47,CntyQuery!$A$171:$GZ$185,AD$1)","v":219},{"$f":"VLOOKUP(DropDownList!$B$47,CntyQuery!$A$171:$GZ$185,AE$1)","v":546.82000000000005},{"$f":"VLOOKUP(DropDownList!$B$47,CntyQuery!$A$171:$GZ$185,AF$1)","v":539.5},{"$f":"VLOOKUP(DropDownList!$B$47,CntyQuery!$A$171:$GZ$185,AG$1)","v":621.96},{"$f":"VLOOKUP(DropDownList!$B$47,CntyQuery!$A$171:$GZ$185,AH$1)","v":485.19},{"$f":"VLOOKUP(DropDownList!$B$47,CntyQuery!$A$171:$GZ$185,AI$1)","v":393},{"$f":"VLOOKUP(DropDownList!$B$47,CntyQuery!$A$171:$GZ$185,AJ$1)","v":361},{"$f":"VLOOKUP(DropDownList!$B$47,CntyQuery!$A$171:$GZ$185,AK$1)","v":139},{"$f":"VLOOKUP(DropDownList!$B$47,CntyQuery!$A$171:$GZ$185,AL$1)","v":221},{"$f":"VLOOKUP(DropDownList!$B$47,CntyQuery!$A$171:$GZ$185,AM$1)","v":587.76},{"$f":"VLOOKUP(DropDownList!$B$47,CntyQuery!$A$171:$GZ$185,AN$1)","v":585.82000000000005},{"$f":"VLOOKUP(DropDownList!$B$47,CntyQuery!$A$171:$GZ$185,AO$1)","v":619.88},{"$f":"VLOOKUP(DropDownList!$B$47,CntyQuery!$A$171:$GZ$185,AP$1)","v":564.37},{"$f":"VLOOKUP(DropDownList!$B$47,CntyQuery!$A$171:$GZ$185,AQ$1)","v":366},{"$f":"VLOOKUP(DropDownList!$B$47,CntyQuery!$A$171:$GZ$185,AR$1)","v":335},{"$f":"VLOOKUP(DropDownList!$B$47,CntyQuery!$A$171:$GZ$185,AS$1)","v":123},{"$f":"VLOOKUP(DropDownList!$B$47,CntyQuery!$A$171:$GZ$185,AT$1)","v":212},{"$f":"VLOOKUP(DropDownList!$B$47,CntyQuery!$A$171:$GZ$185,AU$1)","v":641.34},{"$f":"VLOOKUP(DropDownList!$B$47,CntyQuery!$A$171:$GZ$185,AV$1)","v":638.70000000000005},{"$f":"VLOOKUP(DropDownList!$B$47,CntyQuery!$A$171:$GZ$185,AW$1)","v":643.65},{"$f":"VLOOKUP(DropDownList!$B$47,CntyQuery!$A$171:$GZ$185,AX$1)","v":635.84},{"$f":"VLOOKUP(DropDownList!$B$47,CntyQuery!$A$171:$GZ$185,AY$1)","v":338},{"$f":"VLOOKUP(DropDownList!$B$47,CntyQuery!$A$171:$GZ$185,AZ$1)","v":305},{"$f":"VLOOKUP(DropDownList!$B$47,CntyQuery!$A$171:$GZ$185,BA$1)","v":105},{"$f":"VLOOKUP(DropDownList!$B$47,CntyQuery!$A$171:$GZ$185,BB$1)","v":200},{"$f":"VLOOKUP(DropDownList!$B$47,CntyQuery!$A$171:$GZ$185,BC$1)","v":710.04},{"$f":"VLOOKUP(DropDownList!$B$47,CntyQuery!$A$171:$GZ$185,BD$1)","v":709.77},{"$f":"VLOOKUP(DropDownList!$B$47,CntyQuery!$A$171:$GZ$185,BE$1)","v":744.2},{"$f":"VLOOKUP(DropDownList!$B$47,CntyQuery!$A$171:$GZ$185,BF$1)","v":691.7},{"$f":"VLOOKUP(DropDownList!$B$47,CntyQuery!$A$171:$GZ$185,BG$1)","v":351},{"$f":"VLOOKUP(DropDownList!$B$47,CntyQuery!$A$171:$GZ$185,BH$1)","v":310},{"$f":"VLOOKUP(DropDownList!$B$47,CntyQuery!$A$171:$GZ$185,BI$1)","v":103},{"$f":"VLOOKUP(DropDownList!$B$47,CntyQuery!$A$171:$GZ$185,BJ$1)","v":208},{"$f":"VLOOKUP(DropDownList!$B$47,CntyQuery!$A$171:$GZ$185,BK$1)","v":635.95000000000005},{"$f":"VLOOKUP(DropDownList!$B$47,CntyQuery!$A$171:$GZ$185,BL$1)","v":636.19000000000005},{"$f":"VLOOKUP(DropDownList!$B$47,CntyQuery!$A$171:$GZ$185,BM$1)","v":675.32},{"$f":"VLOOKUP(DropDownList!$B$47,CntyQuery!$A$171:$GZ$185,BN$1)","v":616.84},{"$f":"VLOOKUP(DropDownList!$B$47,CntyQuery!$A$171:$GZ$185,BO$1)","v":318},{"$f":"VLOOKUP(DropDownList!$B$47,CntyQuery!$A$171:$GZ$185,BP$1)","v":279},{"$f":"VLOOKUP(DropDownList!$B$47,CntyQuery!$A$171:$GZ$185,BQ$1)","v":82},{"$f":"VLOOKUP(DropDownList!$B$47,CntyQuery!$A$171:$GZ$185,BR$1)","v":197},{"$f":"VLOOKUP(DropDownList!$B$47,CntyQuery!$A$171:$GZ$185,BS$1)","v":636.91999999999996},{"$f":"VLOOKUP(DropDownList!$B$47,CntyQuery!$A$171:$GZ$185,BT$1)","v":634.61},{"$f":"VLOOKUP(DropDownList!$B$47,CntyQuery!$A$171:$GZ$185,BU$1)","v":694.39},{"$f":"VLOOKUP(DropDownList!$B$47,CntyQuery!$A$171:$GZ$185,BV$1)","v":609.57000000000005},{"$f":"VLOOKUP(DropDownList!$B$47,CntyQuery!$A$171:$GZ$185,BW$1)","v":287},{"$f":"VLOOKUP(DropDownList!$B$47,CntyQuery!$A$171:$GZ$185,BX$1)","v":249},{"$f":"VLOOKUP(DropDownList!$B$47,CntyQuery!$A$171:$GZ$185,BY$1)","v":67},{"$f":"VLOOKUP(DropDownList!$B$47,CntyQuery!$A$171:$GZ$185,BZ$1)","v":182},{"$f":"VLOOKUP(DropDownList!$B$47,CntyQuery!$A$171:$GZ$185,CA$1)","v":640.54},{"$f":"VLOOKUP(DropDownList!$B$47,CntyQuery!$A$171:$GZ$185,CB$1)","v":648.77},{"$f":"VLOOKUP(DropDownList!$B$47,CntyQuery!$A$171:$GZ$185,CC$1)","v":871.25},{"$f":"VLOOKUP(DropDownList!$B$47,CntyQuery!$A$171:$GZ$185,CD$1)","v":567.49},{"$f":"VLOOKUP(DropDownList!$B$47,CntyQuery!$A$171:$GZ$185,CE$1)","v":270},{"$f":"VLOOKUP(DropDownList!$B$47,CntyQuery!$A$171:$GZ$185,CF$1)","v":228},{"$f":"VLOOKUP(DropDownList!$B$47,CntyQuery!$A$171:$GZ$185,CG$1)","v":38},{"$f":"VLOOKUP(DropDownList!$B$47,CntyQuery!$A$171:$GZ$185,CH$1)","v":190},{"$f":"VLOOKUP(DropDownList!$B$47,CntyQuery!$A$171:$GZ$185,CI$1)","v":592},{"$f":"VLOOKUP(DropDownList!$B$47,CntyQuery!$A$171:$GZ$185,CJ$1)","v":602.09},{"$f":"VLOOKUP(DropDownList!$B$47,CntyQuery!$A$171:$GZ$185,CK$1)","v":777.31},{"$f":"VLOOKUP(DropDownList!$B$47,CntyQuery!$A$171:$GZ$185,CL$1)","v":567.35},{"$f":"VLOOKUP(DropDownList!$B$47,CntyQuery!$A$171:$GZ$185,CM$1)","v":268},{"$f":"VLOOKUP(DropDownList!$B$47,CntyQuery!$A$171:$GZ$185,CN$1)","v":222},{"$f":"VLOOKUP(DropDownList!$B$47,CntyQuery!$A$171:$GZ$185,CO$1)","v":25},{"$f":"VLOOKUP(DropDownList!$B$47,CntyQuery!$A$171:$GZ$185,CP$1)","v":197},{"$f":"VLOOKUP(DropDownList!$B$47,CntyQuery!$A$171:$GZ$185,CQ$1)","v":674.11},{"$f":"VLOOKUP(DropDownList!$B$47,CntyQuery!$A$171:$GZ$185,CR$1)","v":707.19},{"$f":"VLOOKUP(DropDownList!$B$47,CntyQuery!$A$171:$GZ$185,CS$1)","v":713.75},{"$f":"VLOOKUP(DropDownList!$B$47,CntyQuery!$A$171:$GZ$185,CT$1)","v":706.36},{"$f":"VLOOKUP(DropDownList!$B$47,CntyQuery!$A$171:$GZ$185,CU$1)","v":293},{"$f":"VLOOKUP(DropDownList!$B$47,CntyQuery!$A$171:$GZ$185,CV$1)","v":245},{"$f":"VLOOKUP(DropDownList!$B$47,CntyQuery!$A$171:$GZ$185,CW$1)","v":36},{"$f":"VLOOKUP(DropDownList!$B$47,CntyQuery!$A$171:$GZ$185,CX$1)","v":209},{"$f":"VLOOKUP(DropDownList!$B$47,CntyQuery!$A$171:$GZ$185,CY$1)","v":694.66},{"$f":"VLOOKUP(DropDownList!$B$47,CntyQuery!$A$171:$GZ$185,CZ$1)","v":726.57},{"$f":"VLOOKUP(DropDownList!$B$47,CntyQuery!$A$171:$GZ$185,DA$1)","v":885.64},{"$f":"VLOOKUP(DropDownList!$B$47,CntyQuery!$A$171:$GZ$185,DB$1)","v":698.82},{"$f":"VLOOKUP(DropDownList!$B$47,CntyQuery!$A$171:$GZ$185,DC$1)","v":303},{"$f":"VLOOKUP(DropDownList!$B$47,CntyQuery!$A$171:$GZ$185,DD$1)","v":258},{"$f":"VLOOKUP(DropDownList!$B$47,CntyQuery!$A$171:$GZ$185,DE$1)","v":43},{"$f":"VLOOKUP(DropDownList!$B$47,CntyQuery!$A$171:$GZ$185,DF$1)","v":215},{"$f":"VLOOKUP(DropDownList!$B$47,CntyQuery!$A$171:$GZ$185,DG$1)","v":688.99},{"$f":"VLOOKUP(DropDownList!$B$47,CntyQuery!$A$171:$GZ$185,DH$1)","v":712.76},{"$f":"VLOOKUP(DropDownList!$B$47,CntyQuery!$A$171:$GZ$185,DI$1)","v":770.97},{"$f":"VLOOKUP(DropDownList!$B$47,CntyQuery!$A$171:$GZ$185,DJ$1)","v":701},{"$f":"VLOOKUP(DropDownList!$B$47,CntyQuery!$A$171:$GZ$185,DK$1)","v":314},{"$f":"VLOOKUP(DropDownList!$B$47,CntyQuery!$A$171:$GZ$185,DL$1)","v":270},{"$f":"VLOOKUP(DropDownList!$B$47,CntyQuery!$A$171:$GZ$185,DM$1)","v":42},{"$f":"VLOOKUP(DropDownList!$B$47,CntyQuery!$A$171:$GZ$185,DN$1)","v":228},{"$f":"VLOOKUP(DropDownList!$B$47,CntyQuery!$A$171:$GZ$185,DO$1)","v":653.34},{"$f":"VLOOKUP(DropDownList!$B$47,CntyQuery!$A$171:$GZ$185,DP$1)","v":663.48},{"$f":"VLOOKUP(DropDownList!$B$47,CntyQuery!$A$171:$GZ$185,DQ$1)","v":829.78},{"$f":"VLOOKUP(DropDownList!$B$47,CntyQuery!$A$171:$GZ$185,DR$1)","v":633.16},{"$f":"VLOOKUP(DropDownList!$B$47,CntyQuery!$A$171:$GZ$185,DS$1)","v":324},{"$f":"VLOOKUP(DropDownList!$B$47,CntyQuery!$A$171:$GZ$185,DT$1)","v":279},{"$f":"VLOOKUP(DropDownList!$B$47,CntyQuery!$A$171:$GZ$185,DU$1)","v":42},{"$f":"VLOOKUP(DropDownList!$B$47,CntyQuery!$A$171:$GZ$185,DV$1)","v":237},{"$f":"VLOOKUP(DropDownList!$B$47,CntyQuery!$A$171:$GZ$185,DW$1)","v":620.96},{"$f":"VLOOKUP(DropDownList!$B$47,CntyQuery!$A$171:$GZ$185,DX$1)","v":625.71},{"$f":"VLOOKUP(DropDownList!$B$47,CntyQuery!$A$171:$GZ$185,DY$1)","v":823.99},{"$f":"VLOOKUP(DropDownList!$B$47,CntyQuery!$A$171:$GZ$185,DZ$1)","v":590.66999999999996},{"$f":"VLOOKUP(DropDownList!$B$47,CntyQuery!$A$171:$GZ$185,EA$1)","v":310},{"$f":"VLOOKUP(DropDownList!$B$47,CntyQuery!$A$171:$GZ$185,EB$1)","v":268},{"$f":"VLOOKUP(DropDownList!$B$47,CntyQuery!$A$171:$GZ$185,EC$1)","v":40},{"$f":"VLOOKUP(DropDownList!$B$47,CntyQuery!$A$171:$GZ$185,ED$1)","v":228},{"$f":"VLOOKUP(DropDownList!$B$47,CntyQuery!$A$171:$GZ$185,EE$1)","v":626.41999999999996},{"$f":"VLOOKUP(DropDownList!$B$47,CntyQuery!$A$171:$GZ$185,EF$1)","v":621.05999999999995},{"$f":"VLOOKUP(DropDownList!$B$47,CntyQuery!$A$171:$GZ$185,EG$1)","v":853.2},{"$f":"VLOOKUP(DropDownList!$B$47,CntyQuery!$A$171:$GZ$185,EH$1)","v":580.4},{"$f":"VLOOKUP(DropDownList!$B$47,CntyQuery!$A$171:$GZ$185,EI$1)","v":328},{"$f":"VLOOKUP(DropDownList!$B$47,CntyQuery!$A$171:$GZ$185,EJ$1)","v":284},{"$f":"VLOOKUP(DropDownList!$B$47,CntyQuery!$A$171:$GZ$185,EK$1)","v":45},{"$f":"VLOOKUP(DropDownList!$B$47,CntyQuery!$A$171:$GZ$185,EL$1)","v":239},{"$f":"VLOOKUP(DropDownList!$B$47,CntyQuery!$A$171:$GZ$185,EM$1)","v":694.36},{"$f":"VLOOKUP(DropDownList!$B$47,CntyQuery!$A$171:$GZ$185,EN$1)","v":700.3},{"$f":"VLOOKUP(DropDownList!$B$47,CntyQuery!$A$171:$GZ$185,EO$1)","v":908.77},{"$f":"VLOOKUP(DropDownList!$B$47,CntyQuery!$A$171:$GZ$185,EP$1)","v":660.76},{"$f":"VLOOKUP(DropDownList!$B$47,CntyQuery!$A$171:$GZ$185,EQ$1)","v":325},{"$f":"VLOOKUP(DropDownList!$B$47,CntyQuery!$A$171:$GZ$185,ER$1)","v":269},{"$f":"VLOOKUP(DropDownList!$B$47,CntyQuery!$A$171:$GZ$185,ES$1)","v":56},{"$f":"VLOOKUP(DropDownList!$B$47,CntyQuery!$A$171:$GZ$185,ET$1)","v":48},{"$f":"VLOOKUP(DropDownList!$B$47,CntyQuery!$A$171:$GZ$185,EU$1)","v":221},{"$f":"VLOOKUP(DropDownList!$B$47,CntyQuery!$A$171:$GZ$185,EV$1)","v":673.63},{"$f":"VLOOKUP(DropDownList!$B$47,CntyQuery!$A$171:$GZ$185,EW$1)","v":702.55},{"$f":"VLOOKUP(DropDownList!$B$47,CntyQuery!$A$171:$GZ$185,EX$1)","v":534.71},{"$f":"VLOOKUP(DropDownList!$B$47,CntyQuery!$A$171:$GZ$185,EY$1)","v":914.68},{"$f":"VLOOKUP(DropDownList!$B$47,CntyQuery!$A$171:$GZ$185,EZ$1)","v":656.28},{"$f":"VLOOKUP(DropDownList!$B$47,CntyQuery!$A$171:$GZ$185,FA$1)","v":311},{"$f":"VLOOKUP(DropDownList!$B$47,CntyQuery!$A$171:$GZ$185,FB$1)","v":256},{"$f":"VLOOKUP(DropDownList!$B$47,CntyQuery!$A$171:$GZ$185,FC$1)","v":55},{"$f":"VLOOKUP(DropDownList!$B$47,CntyQuery!$A$171:$GZ$185,FD$1)","v":39},{"$f":"VLOOKUP(DropDownList!$B$47,CntyQuery!$A$171:$GZ$185,FE$1)","v":217},{"$f":"VLOOKUP(DropDownList!$B$47,CntyQuery!$A$171:$GZ$185,FF$1)","v":786.22},{"$f":"VLOOKUP(DropDownList!$B$47,CntyQuery!$A$171:$GZ$185,FG$1)","v":823.72},{"$f":"VLOOKUP(DropDownList!$B$47,CntyQuery!$A$171:$GZ$185,FH$1)","v":611.27},{"$f":"VLOOKUP(DropDownList!$B$47,CntyQuery!$A$171:$GZ$185,FI$1)","v":1051.57},{"$f":"VLOOKUP(DropDownList!$B$47,CntyQuery!$A$171:$GZ$185,FJ$1)","v":783.25},{"$f":"VLOOKUP(DropDownList!$B$47,CntyQuery!$A$171:$GZ$185,FK$1)","v":350},{"$f":"VLOOKUP(DropDownList!$B$47,CntyQuery!$A$171:$GZ$185,FL$1)","v":300},{"$f":"VLOOKUP(DropDownList!$B$47,CntyQuery!$A$171:$GZ$185,FM$1)","v":50},{"$f":"VLOOKUP(DropDownList!$B$47,CntyQuery!$A$171:$GZ$185,FN$1)","v":31},{"$f":"VLOOKUP(DropDownList!$B$47,CntyQuery!$A$171:$GZ$185,FO$1)","v":270},{"$f":"VLOOKUP(DropDownList!$B$47,CntyQuery!$A$171:$GZ$185,FP$1)","v":775.7},{"$f":"VLOOKUP(DropDownList!$B$47,CntyQuery!$A$171:$GZ$185,FQ$1)","v":793.58},{"$f":"VLOOKUP(DropDownList!$B$47,CntyQuery!$A$171:$GZ$185,FR$1)","v":667.46},{"$f":"VLOOKUP(DropDownList!$B$47,CntyQuery!$A$171:$GZ$185,FS$1)","v":941.04},{"$f":"VLOOKUP(DropDownList!$B$47,CntyQuery!$A$171:$GZ$185,FT$1)","v":776.72},{"$f":"VLOOKUP(DropDownList!$B$47,CntyQuery!$A$171:$GZ$185,FU$1)","v":"365"},{"$f":"VLOOKUP(DropDownList!$B$47,CntyQuery!$A$171:$GZ$185,FV$1)","v":"318"},{"$f":"VLOOKUP(DropDownList!$B$47,CntyQuery!$A$171:$GZ$185,FW$1)","v":"47"},{"$f":"VLOOKUP(DropDownList!$B$47,CntyQuery!$A$171:$GZ$185,FX$1)","v":"27"},{"$f":"VLOOKUP(DropDownList!$B$47,CntyQuery!$A$171:$GZ$185,FY$1)","v":"291"},{"$f":"VLOOKUP(DropDownList!$B$47,CntyQuery!$A$171:$GZ$185,FZ$1)","v":"801"},{"$f":"VLOOKUP(DropDownList!$B$47,CntyQuery!$A$171:$GZ$185,GA$1)","v":"804"},{"$f":"VLOOKUP(DropDownList!$B$47,CntyQuery!$A$171:$GZ$185,GB$1)","v":"781"},{"$f":"VLOOKUP(DropDownList!$B$47,CntyQuery!$A$171:$GZ$185,GC$1)","v":"1012"},{"$f":"VLOOKUP(DropDownList!$B$47,CntyQuery!$A$171:$GZ$185,GD$1)","v":"785"}]
[]
[]
["Labor Force and Unemployment Rate","Query Name: DPQryUnempByCnty"]
["PlaceName","LaborForce1990","LaborForce1991","LaborForce1992","LaborForce1993","LaborForce1994","LaborForce1995","LaborForce1996","LaborForce1997","LaborForce1998","LaborForce1999","LaborForce2000","LaborForce2001","LaborForce2002","LaborForce2003","NumberEmployed1990","NumberEmployed1991","NumberEmployed1992","NumberEmployed1993","NumberEmployed1994","NumberEmployed1995","NumberEmployed1996","NumberEmployed1997","NumberEmployed1998","NumberEmployed1999","NumberEmployed2000","NumberEmployed2001","NumberEmployed2002","NumberEmployed2003","UnempRate1990","UnempRate1991","UnempRate1992","UnempRate1993","UnempRate1994","UnempRate1995","UnempRate1996","UnempRate1997","UnempRate1998","UnempRate1999","UnempRate2000","UnempRate2001","UnempRate2002","UnempRate2003","NumbUnEmployed1990","NumbUnEmployed1991","NumbUnEmployed1992","NumbUnEmployed1993","NumbUnEmployed1994","NumbUnEmployed1995","NumbUnEmployed1996","NumbUnEmployed1997","NumbUnEmployed1998","NumbUnEmployed1999","NumbUnEmployed2000","NumbUnEmployed2001","NumbUnEmployed2002","NumbUnEmployed2003","LaborForce2004","NumberEmployed2004","UnempRate2004","NumbUnEmployed2004","LaborForce2005","NumberEmployed2005","NumbUnEmp2005","UnempRate2005","LaborForce2006","NumberEmployed2006","NumbUnEmp2006","UnempRate2006","LaborForce2007","NumberEmployed2007","NumbUnEmp2007","UnempRate2007","LaborForce2008","NumberEmployed2008","NumbUnEmp2008","UnempRate2008","LaborForce2009","NumberEmployed2009","NumbUnEmp2009","UnempRate2009"]
[{"$f":"VLOOKUP(DropDownList!$B$47,CntyQuery!$A$220:$CC$229,A$1)","v":"Grafton County"},{"$f":"VLOOKUP(DropDownList!$B$47,CntyQuery!$A$220:$CC$229,B$1)","v":40114},{"$f":"VLOOKUP(DropDownList!$B$47,CntyQuery!$A$220:$CC$229,C$1)","v":40615},{"$f":"VLOOKUP(DropDownList!$B$47,CntyQuery!$A$220:$CC$229,D$1)","v":40202},{"$f":"VLOOKUP(DropDownList!$B$47,CntyQuery!$A$220:$CC$229,E$1)","v":40214},{"$f":"VLOOKUP(DropDownList!$B$47,CntyQuery!$A$220:$CC$229,F$1)","v":41480},{"$f":"VLOOKUP(DropDownList!$B$47,CntyQuery!$A$220:$CC$229,G$1)","v":42160},{"$f":"VLOOKUP(DropDownList!$B$47,CntyQuery!$A$220:$CC$229,H$1)","v":41465},{"$f":"VLOOKUP(DropDownList!$B$47,CntyQuery!$A$220:$CC$229,I$1)","v":42872},{"$f":"VLOOKUP(DropDownList!$B$47,CntyQuery!$A$220:$CC$229,J$1)","v":43915},{"$f":"VLOOKUP(DropDownList!$B$47,CntyQuery!$A$220:$CC$229,K$1)","v":44610},{"$f":"VLOOKUP(DropDownList!$B$47,CntyQuery!$A$220:$CC$229,L$1)","v":44860},{"$f":"VLOOKUP(DropDownList!$B$47,CntyQuery!$A$220:$CC$229,M$1)","v":45010},{"$f":"VLOOKUP(DropDownList!$B$47,CntyQuery!$A$220:$CC$229,N$1)","v":45440},{"$f":"VLOOKUP(DropDownList!$B$47,CntyQuery!$A$220:$CC$229,O$1)","v":45680},{"$f":"VLOOKUP(DropDownList!$B$47,CntyQuery!$A$220:$CC$229,P$1)","v":37935},{"$f":"VLOOKUP(DropDownList!$B$47,CntyQuery!$A$220:$CC$229,Q$1)","v":37753},{"$f":"VLOOKUP(DropDownList!$B$47,CntyQuery!$A$220:$CC$229,R$1)","v":37788},{"$f":"VLOOKUP(DropDownList!$B$47,CntyQuery!$A$220:$CC$229,S$1)","v":38153},{"$f":"VLOOKUP(DropDownList!$B$47,CntyQuery!$A$220:$CC$229,T$1)","v":40169},{"$f":"VLOOKUP(DropDownList!$B$47,CntyQuery!$A$220:$CC$229,U$1)","v":40853},{"$f":"VLOOKUP(DropDownList!$B$47,CntyQuery!$A$220:$CC$229,V$1)","v":40117},{"$f":"VLOOKUP(DropDownList!$B$47,CntyQuery!$A$220:$CC$229,W$1)","v":41781},{"$f":"VLOOKUP(DropDownList!$B$47,CntyQuery!$A$220:$CC$229,X$1)","v":42942},{"$f":"VLOOKUP(DropDownList!$B$47,CntyQuery!$A$220:$CC$229,Y$1)","v":43752},{"$f":"VLOOKUP(DropDownList!$B$47,CntyQuery!$A$220:$CC$229,Z$1)","v":43800},{"$f":"VLOOKUP(DropDownList!$B$47,CntyQuery!$A$220:$CC$229,AA$1)","v":43800},{"$f":"VLOOKUP(DropDownList!$B$47,CntyQuery!$A$220:$CC$229,AB$1)","v":44110},{"$f":"VLOOKUP(DropDownList!$B$47,CntyQuery!$A$220:$CC$229,AC$1)","v":44300},{"$f":"VLOOKUP(DropDownList!$B$47,CntyQuery!$A$220:$CC$229,AD$1)","v":5.4},{"$f":"VLOOKUP(DropDownList!$B$47,CntyQuery!$A$220:$CC$229,AE$1)","v":7},{"$f":"VLOOKUP(DropDownList!$B$47,CntyQuery!$A$220:$CC$229,AF$1)","v":6},{"$f":"VLOOKUP(DropDownList!$B$47,CntyQuery!$A$220:$CC$229,AG$1)","v":5.1000000000000005},{"$f":"VLOOKUP(DropDownList!$B$47,CntyQuery!$A$220:$CC$229,AH$1)","v":3.2},{"$f":"VLOOKUP(DropDownList!$B$47,CntyQuery!$A$220:$CC$229,AI$1)","v":3.1},{"$f":"VLOOKUP(DropDownList!$B$47,CntyQuery!$A$220:$CC$229,AJ$1)","v":3.3000000000000003},{"$f":"VLOOKUP(DropDownList!$B$47,CntyQuery!$A$220:$CC$229,AK$1)","v":2.5},{"$f":"VLOOKUP(DropDownList!$B$47,CntyQuery!$A$220:$CC$229,AL$1)","v":2.2000000000000002},{"$f":"VLOOKUP(DropDownList!$B$47,CntyQuery!$A$220:$CC$229,AM$1)","v":1.9000000000000001},{"$f":"VLOOKUP(DropDownList!$B$47,CntyQuery!$A$220:$CC$229,AN$1)","v":2.4},{"$f":"VLOOKUP(DropDownList!$B$47,CntyQuery!$A$220:$CC$229,AO$1)","v":2.7},{"$f":"VLOOKUP(DropDownList!$B$47,CntyQuery!$A$220:$CC$229,AP$1)","v":2.9},{"$f":"VLOOKUP(DropDownList!$B$47,CntyQuery!$A$220:$CC$229,AQ$1)","v":3},{"$f":"VLOOKUP(DropDownList!$B$47,CntyQuery!$A$220:$CC$229,AR$1)","v":2179},{"$f":"VLOOKUP(DropDownList!$B$47,CntyQuery!$A$220:$CC$229,AS$1)","v":2862},{"$f":"VLOOKUP(DropDownList!$B$47,CntyQuery!$A$220:$CC$229,AT$1)","v":2414},{"$f":"VLOOKUP(DropDownList!$B$47,CntyQuery!$A$220:$CC$229,AU$1)","v":2061},{"$f":"VLOOKUP(DropDownList!$B$47,CntyQuery!$A$220:$CC$229,AV$1)","v":1311},{"$f":"VLOOKUP(DropDownList!$B$47,CntyQuery!$A$220:$CC$229,AW$1)","v":1307},{"$f":"VLOOKUP(DropDownList!$B$47,CntyQuery!$A$220:$CC$229,AX$1)","v":1348},{"$f":"VLOOKUP(DropDownList!$B$47,CntyQuery!$A$220:$CC$229,AY$1)","v":1091},{"$f":"VLOOKUP(DropDownList!$B$47,CntyQuery!$A$220:$CC$229,AZ$1)","v":973},{"$f":"VLOOKUP(DropDownList!$B$47,CntyQuery!$A$220:$CC$229,BA$1)","v":858},{"$f":"VLOOKUP(DropDownList!$B$47,CntyQuery!$A$220:$CC$229,BB$1)","v":1060},{"$f":"VLOOKUP(DropDownList!$B$47,CntyQuery!$A$220:$CC$229,BC$1)","v":1210},{"$f":"VLOOKUP(DropDownList!$B$47,CntyQuery!$A$220:$CC$229,BD$1)","v":1330},{"$f":"VLOOKUP(DropDownList!$B$47,CntyQuery!$A$220:$CC$229,BE$1)","v":1380},{"$f":"VLOOKUP(DropDownList!$B$47,CntyQuery!$A$220:$CC$229,BF$1)","v":46400},{"$f":"VLOOKUP(DropDownList!$B$47,CntyQuery!$A$220:$CC$229,BG$1)","v":45110},{"$f":"VLOOKUP(DropDownList!$B$47,CntyQuery!$A$220:$CC$229,BH$1)","v":2.8},{"$f":"VLOOKUP(DropDownList!$B$47,CntyQuery!$A$220:$CC$229,BI$1)","v":1290},{"$f":"VLOOKUP(DropDownList!$B$47,CntyQuery!$A$220:$CC$229,BJ$1)","v":46770},{"$f":"VLOOKUP(DropDownList!$B$47,CntyQuery!$A$220:$CC$229,BK$1)","v":45450},{"$f":"VLOOKUP(DropDownList!$B$47,CntyQuery!$A$220:$CC$229,BL$1)","v":1320},{"$f":"VLOOKUP(DropDownList!$B$47,CntyQuery!$A$220:$CC$229,BM$1)","v":2.8},{"$f":"VLOOKUP(DropDownList!$B$47,CntyQuery!$A$220:$CC$229,BN$1)","v":47850},{"$f":"VLOOKUP(DropDownList!$B$47,CntyQuery!$A$220:$CC$229,BO$1)","v":46480},{"$f":"VLOOKUP(DropDownList!$B$47,CntyQuery!$A$220:$CC$229,BP$1)","v":1370},{"$f":"VLOOKUP(DropDownList!$B$47,CntyQuery!$A$220:$CC$229,BQ$1)","v":2.9},{"$f":"VLOOKUP(DropDownList!$B$47,CntyQuery!$A$220:$CC$229,BR$1)","v":48290},{"$f":"VLOOKUP(DropDownList!$B$47,CntyQuery!$A$220:$CC$229,BS$1)","v":46860},{"$f":"VLOOKUP(DropDownList!$B$47,CntyQuery!$A$220:$CC$229,BT$1)","v":1430},{"$f":"VLOOKUP(DropDownList!$B$47,CntyQuery!$A$220:$CC$229,BU$1)","v":3},{"$f":"VLOOKUP(DropDownList!$B$47,CntyQuery!$A$220:$CC$229,BV$1)","v":48800},{"$f":"VLOOKUP(DropDownList!$B$47,CntyQuery!$A$220:$CC$229,BW$1)","v":47260},{"$f":"VLOOKUP(DropDownList!$B$47,CntyQuery!$A$220:$CC$229,BX$1)","v":1540},{"$f":"VLOOKUP(DropDownList!$B$47,CntyQuery!$A$220:$CC$229,BY$1)","v":3.1},{"$f":"VLOOKUP(DropDownList!$B$47,CntyQuery!$A$220:$CC$229,BZ$1)","v":48890},{"$f":"VLOOKUP(DropDownList!$B$47,CntyQuery!$A$220:$CC$229,CA$1)","v":46380},{"$f":"VLOOKUP(DropDownList!$B$47,CntyQuery!$A$220:$CC$229,CB$1)","v":2510},{"$f":"VLOOKUP(DropDownList!$B$47,CntyQuery!$A$220:$CC$229,CC$1)","v":5.0999999999999996}]
[]
[null,null,null,null,null,null,null,null,null,null,null,null,{"$f":"IF((CntyDataLink!$BL$25)=\"n\",NA(),IF(VALUE(CntyDataLink!$BL$25)=\"\",NA(),VALUE(CntyDataLink!$BL$25)))","v":636.19000000000005}]
["Census 2000   -           Query Name:  TownAllQuery3",2,{"$f":"B33+1","v":3},{"$f":"C33+1","v":4},5,6,7,8,9,10,11,12,13,14,15,16,17,18,19,20,21,22,23,24,25,26,27,28,29,30,31,32,33,34,35,36,37,38,39,40,41,42,43,44,45,46,47,48,49,50,51,52,53,54,55,56,57,58,59,60,61,62,63,64,65,66,67,{"$f":"BO33+1","v":68},69,70,71,72,73,74,75,76,77,78,79,80,81,82,83,84,85,86,87,88,89,90,91,92,93,94,95,96,97,98,99,100,101,102]
["NAME","COUNTY","LOGRECNO","COUSUB","TRACT","AREALAND","AREAWATR","POP100","HU100","2000Population","PopOfOneRace","PopWhite","PopBlack","PopAmIndian","PopAsian","PopHawaiian","PopOtherRace","Pop2orMoreRaces","PopHispanicLatino","PopNotHispanicLatino","PopMale","PopMale<15","PopMale15to24","PopMale25to34","PopMale35to44","PopMale45to54","PopMale55to64","PopMale65to74","PopMale75to84","PopMale85andOver","PopFemale","PopFemale<15","PopFemale15to24","PopFemale25to34","PopFemale35t44","PopFemale45to54","PopFemale55to64","PopFemale65to74","PopFemale75to84","PopFemale85andOver","Households2000","PopInHH","AvgHHSize","HHs1Person","HHs2orMorePerson","HHsFamily","HHMarriedCoupleFam","HHSingleParentFam","HHsNonFamily","Families","PopInFam","AvgFamSize","TotHsUnits","OccHsUnits","OwnerOccHU","RenterOccHU","VctHsUnits","VctHUForRent","VctHUForSale","VctHUSeasonal","PopInOccHU","PopInOwnOccHU","PopInRntOccHU","AvgHHSize2","AvgHHSizOwnOcc","AvgHHSizRntOcc","OwnOccWhtHsHldr","OwnOccBlkHsHldr","OwnOccAmIHsHldr","OwnOccAsnHsHldr","OwnOccPIsHsHldr","OwnOccORHsHldr","OwnOcc2RcHsHldr","RntOccWhtHsHldr","RntOccBlkHsHldr","RntOccAmIHsHldr","RntOccAsnHsHldr","RntOccPIsHsHldr","RntOccORHsHldr","RntOcc2RcHsHldr","OwnOccHH15to24","OwnOccHH25to34","OwnOccHH35to44","OwnOccHH45to54","OwnOccHH55to64","OwnOccHH65to74","OwnOccHH75to84","OwnOccHH85Over","RntOccHH15to24","RntOccHH25to34","RntOccHH35to44","RntOccHH45to54","RntOccHH55to64","RntOccHH65to74","RntOccHH75to84","RntOccHH85Over","P27TotalPop","P27PopInHseHlds","P27PopInGrpQtrs","Median Age Total","Median Age (Male)","Median Age (Female)"]
[{"$f":"VLOOKUP(DropDownList!$B$47,CntyQryCensus!$A$4:$CW$46,A$1)","v":"Grantham"},{"$f":"VLOOKUP(DropDownList!$B$47,CntyQryCensus!$A$4:$CW$46,B$1)","v":"019"},{"$f":"VLOOKUP(DropDownList!$B$47,CntyQryCensus!$A$4:$CW$46,C$1)","v":"0036868"},{"$f":"VLOOKUP(DropDownList!$B$47,CntyQryCensus!$A$4:$CW$46,D$1)","v":"31220"},{"$f":"VLOOKUP(DropDownList!$B$47,CntyQryCensus!$A$4:$CW$46,E$1)","v":""},{"$f":"VLOOKUP(DropDownList!$B$47,CntyQryCensus!$A$4:$CW$46,F$1)","v":"      69361907"},{"$f":"VLOOKUP(DropDownList!$B$47,CntyQryCensus!$A$4:$CW$46,G$1)","v":"       2257377"},{"$f":"VLOOKUP(DropDownList!$B$47,CntyQryCensus!$A$4:$CW$46,H$1)","v":2167},{"$f":"VLOOKUP(DropDownList!$B$47,CntyQryCensus!$A$4:$CW$46,I$1)","v":"     1513"},{"$f":"VLOOKUP(DropDownList!$B$47,CntyQryCensus!$A$4:$CW$46,J$1)","v":2167},{"$f":"VLOOKUP(DropDownList!$B$47,CntyQryCensus!$A$4:$CW$46,K$1)","v":2149},{"$f":"VLOOKUP(DropDownList!$B$47,CntyQryCensus!$A$4:$CW$46,L$1)","v":2130},{"$f":"VLOOKUP(DropDownList!$B$47,CntyQryCensus!$A$4:$CW$46,M$1)","v":6},{"$f":"VLOOKUP(DropDownList!$B$47,CntyQryCensus!$A$4:$CW$46,N$1)","v":2},{"$f":"VLOOKUP(DropDownList!$B$47,CntyQryCensus!$A$4:$CW$46,O$1)","v":9},{"$f":"VLOOKUP(DropDownList!$B$47,CntyQryCensus!$A$4:$CW$46,P$1)","v":0},{"$f":"VLOOKUP(DropDownList!$B$47,CntyQryCensus!$A$4:$CW$46,Q$1)","v":2},{"$f":"VLOOKUP(DropDownList!$B$47,CntyQryCensus!$A$4:$CW$46,R$1)","v":18},{"$f":"VLOOKUP(DropDownList!$B$47,CntyQryCensus!$A$4:$CW$46,S$1)","v":12},{"$f":"VLOOKUP(DropDownList!$B$47,CntyQryCensus!$A$4:$CW$46,T$1)","v":2155},{"$f":"VLOOKUP(DropDownList!$B$47,CntyQryCensus!$A$4:$CW$46,U$1)","v":1062},{"$f":"VLOOKUP(DropDownList!$B$47,CntyQryCensus!$A$4:$CW$46,V$1)","v":175},{"$f":"VLOOKUP(DropDownList!$B$47,CntyQryCensus!$A$4:$CW$46,W$1)","v":65},{"$f":"VLOOKUP(DropDownList!$B$47,CntyQryCensus!$A$4:$CW$46,X$1)","v":120},{"$f":"VLOOKUP(DropDownList!$B$47,CntyQryCensus!$A$4:$CW$46,Y$1)","v":154},{"$f":"VLOOKUP(DropDownList!$B$47,CntyQryCensus!$A$4:$CW$46,Z$1)","v":171},{"$f":"VLOOKUP(DropDownList!$B$47,CntyQryCensus!$A$4:$CW$46,AA$1)","v":123},{"$f":"VLOOKUP(DropDownList!$B$47,CntyQryCensus!$A$4:$CW$46,AB$1)","v":166},{"$f":"VLOOKUP(DropDownList!$B$47,CntyQryCensus!$A$4:$CW$46,AC$1)","v":77},{"$f":"VLOOKUP(DropDownList!$B$47,CntyQryCensus!$A$4:$CW$46,AD$1)","v":11},{"$f":"VLOOKUP(DropDownList!$B$47,CntyQryCensus!$A$4:$CW$46,AE$1)","v":1105},{"$f":"VLOOKUP(DropDownList!$B$47,CntyQryCensus!$A$4:$CW$46,AF$1)","v":178},{"$f":"VLOOKUP(DropDownList!$B$47,CntyQryCensus!$A$4:$CW$46,AG$1)","v":77},{"$f":"VLOOKUP(DropDownList!$B$47,CntyQryCensus!$A$4:$CW$46,AH$1)","v":110},{"$f":"VLOOKUP(DropDownList!$B$47,CntyQryCensus!$A$4:$CW$46,AI$1)","v":174},{"$f":"VLOOKUP(DropDownList!$B$47,CntyQryCensus!$A$4:$CW$46,AJ$1)","v":168},{"$f":"VLOOKUP(DropDownList!$B$47,CntyQryCensus!$A$4:$CW$46,AK$1)","v":181},{"$f":"VLOOKUP(DropDownList!$B$47,CntyQryCensus!$A$4:$CW$46,AL$1)","v":153},{"$f":"VLOOKUP(DropDownList!$B$47,CntyQryCensus!$A$4:$CW$46,AM$1)","v":57},{"$f":"VLOOKUP(DropDownList!$B$47,CntyQryCensus!$A$4:$CW$46,AN$1)","v":7},{"$f":"VLOOKUP(DropDownList!$B$47,CntyQryCensus!$A$4:$CW$46,AO$1)","v":924},{"$f":"VLOOKUP(DropDownList!$B$47,CntyQryCensus!$A$4:$CW$46,AP$1)","v":2167},{"$f":"VLOOKUP(DropDownList!$B$47,CntyQryCensus!$A$4:$CW$46,AQ$1)","v":2.35},{"$f":"VLOOKUP(DropDownList!$B$47,CntyQryCensus!$A$4:$CW$46,AR$1)","v":177},{"$f":"VLOOKUP(DropDownList!$B$47,CntyQryCensus!$A$4:$CW$46,AS$1)","v":747},{"$f":"VLOOKUP(DropDownList!$B$47,CntyQryCensus!$A$4:$CW$46,AT$1)","v":708},{"$f":"VLOOKUP(DropDownList!$B$47,CntyQryCensus!$A$4:$CW$46,AU$1)","v":649},{"$f":"VLOOKUP(DropDownList!$B$47,CntyQryCensus!$A$4:$CW$46,AV$1)","v":59},{"$f":"VLOOKUP(DropDownList!$B$47,CntyQryCensus!$A$4:$CW$46,AW$1)","v":39},{"$f":"VLOOKUP(DropDownList!$B$47,CntyQryCensus!$A$4:$CW$46,AX$1)","v":708},{"$f":"VLOOKUP(DropDownList!$B$47,CntyQryCensus!$A$4:$CW$46,AY$1)","v":1889},{"$f":"VLOOKUP(DropDownList!$B$47,CntyQryCensus!$A$4:$CW$46,AZ$1)","v":2.67},{"$f":"VLOOKUP(DropDownList!$B$47,CntyQryCensus!$A$4:$CW$46,BA$1)","v":1513},{"$f":"VLOOKUP(DropDownList!$B$47,CntyQryCensus!$A$4:$CW$46,BB$1)","v":924},{"$f":"VLOOKUP(DropDownList!$B$47,CntyQryCensus!$A$4:$CW$46,BC$1)","v":819},{"$f":"VLOOKUP(DropDownList!$B$47,CntyQryCensus!$A$4:$CW$46,BD$1)","v":105},{"$f":"VLOOKUP(DropDownList!$B$47,CntyQryCensus!$A$4:$CW$46,BE$1)","v":589},{"$f":"VLOOKUP(DropDownList!$B$47,CntyQryCensus!$A$4:$CW$46,BF$1)","v":7},{"$f":"VLOOKUP(DropDownList!$B$47,CntyQryCensus!$A$4:$CW$46,BG$1)","v":25},{"$f":"VLOOKUP(DropDownList!$B$47,CntyQryCensus!$A$4:$CW$46,BH$1)","v":533},{"$f":"VLOOKUP(DropDownList!$B$47,CntyQryCensus!$A$4:$CW$46,BI$1)","v":2167},{"$f":"VLOOKUP(DropDownList!$B$47,CntyQryCensus!$A$4:$CW$46,BJ$1)","v":1915},{"$f":"VLOOKUP(DropDownList!$B$47,CntyQryCensus!$A$4:$CW$46,BK$1)","v":252},{"$f":"VLOOKUP(DropDownList!$B$47,CntyQryCensus!$A$4:$CW$46,BL$1)","v":2.35},{"$f":"VLOOKUP(DropDownList!$B$47,CntyQryCensus!$A$4:$CW$46,BM$1)","v":2.34},{"$f":"VLOOKUP(DropDownList!$B$47,CntyQryCensus!$A$4:$CW$46,BN$1)","v":2.4},{"$f":"VLOOKUP(DropDownList!$B$47,CntyQryCensus!$A$4:$CW$46,BO$1)","v":812},{"$f":"VLOOKUP(DropDownList!$B$47,CntyQryCensus!$A$4:$CW$46,BP$1)","v":2},{"$f":"VLOOKUP(DropDownList!$B$47,CntyQryCensus!$A$4:$CW$46,BQ$1)","v":0},{"$f":"VLOOKUP(DropDownList!$B$47,CntyQryCensus!$A$4:$CW$46,BR$1)","v":2},{"$f":"VLOOKUP(DropDownList!$B$47,CntyQryCensus!$A$4:$CW$46,BS$1)","v":0},{"$f":"VLOOKUP(DropDownList!$B$47,CntyQryCensus!$A$4:$CW$46,BT$1)","v":0},{"$f":"VLOOKUP(DropDownList!$B$47,CntyQryCensus!$A$4:$CW$46,BU$1)","v":3},{"$f":"VLOOKUP(DropDownList!$B$47,CntyQryCensus!$A$4:$CW$46,BV$1)","v":101},{"$f":"VLOOKUP(DropDownList!$B$47,CntyQryCensus!$A$4:$CW$46,BW$1)","v":1},{"$f":"VLOOKUP(DropDownList!$B$47,CntyQryCensus!$A$4:$CW$46,BX$1)","v":0},{"$f":"VLOOKUP(DropDownList!$B$47,CntyQryCensus!$A$4:$CW$46,BY$1)","v":2},{"$f":"VLOOKUP(DropDownList!$B$47,CntyQryCensus!$A$4:$CW$46,BZ$1)","v":0},{"$f":"VLOOKUP(DropDownList!$B$47,CntyQryCensus!$A$4:$CW$46,CA$1)","v":0},{"$f":"VLOOKUP(DropDownList!$B$47,CntyQryCensus!$A$4:$CW$46,CB$1)","v":1},{"$f":"VLOOKUP(DropDownList!$B$47,CntyQryCensus!$A$4:$CW$46,CC$1)","v":3},{"$f":"VLOOKUP(DropDownList!$B$47,CntyQryCensus!$A$4:$CW$46,CD$1)","v":66},{"$f":"VLOOKUP(DropDownList!$B$47,CntyQryCensus!$A$4:$CW$46,CE$1)","v":144},{"$f":"VLOOKUP(DropDownList!$B$47,CntyQryCensus!$A$4:$CW$46,CF$1)","v":178},{"$f":"VLOOKUP(DropDownList!$B$47,CntyQryCensus!$A$4:$CW$46,CG$1)","v":147},{"$f":"VLOOKUP(DropDownList!$B$47,CntyQryCensus!$A$4:$CW$46,CH$1)","v":182},{"$f":"VLOOKUP(DropDownList!$B$47,CntyQryCensus!$A$4:$CW$46,CI$1)","v":88},{"$f":"VLOOKUP(DropDownList!$B$47,CntyQryCensus!$A$4:$CW$46,CJ$1)","v":11},{"$f":"VLOOKUP(DropDownList!$B$47,CntyQryCensus!$A$4:$CW$46,CK$1)","v":9},{"$f":"VLOOKUP(DropDownList!$B$47,CntyQryCensus!$A$4:$CW$46,CL$1)","v":33},{"$f":"VLOOKUP(DropDownList!$B$47,CntyQryCensus!$A$4:$CW$46,CM$1)","v":25},{"$f":"VLOOKUP(DropDownList!$B$47,CntyQryCensus!$A$4:$CW$46,CN$1)","v":19},{"$f":"VLOOKUP(DropDownList!$B$47,CntyQryCensus!$A$4:$CW$46,CO$1)","v":13},{"$f":"VLOOKUP(DropDownList!$B$47,CntyQryCensus!$A$4:$CW$46,CP$1)","v":3},{"$f":"VLOOKUP(DropDownList!$B$47,CntyQryCensus!$A$4:$CW$46,CQ$1)","v":2},{"$f":"VLOOKUP(DropDownList!$B$47,CntyQryCensus!$A$4:$CW$46,CR$1)","v":1},{"$f":"VLOOKUP(DropDownList!$B$47,CntyQryCensus!$A$4:$CW$46,CS$1)","v":2167},{"$f":"VLOOKUP(DropDownList!$B$47,CntyQryCensus!$A$4:$CW$46,CT$1)","v":2167},{"$f":"VLOOKUP(DropDownList!$B$47,CntyQryCensus!$A$4:$CW$46,CU$1)","v":0},{"$f":"VLOOKUP(DropDownList!$B$47,CntyQryCensus!$A$4:$CW$46,CV$1)","v":"Sullivan"},{"$f":"VLOOKUP(DropDownList!$B$47,CntyQryCensus!$A$4:$CW$46,CW$1)","v":36.799999999999997},{"$f":"VLOOKUP(DropDownList!$B$47,CntyQryCensus!$A$4:$CW$46,CX$1)","v":{"$error":"#REF!"}}]
[]
[]
["Census 2000 DemoProfile Sample Data Tables 2&3   -  DPTab23TownQry"]
["NAME","COUSUB","AREANAME","PopInSchool","Preschool","Kindergarten","Elementary","HighSchool","College","Pop25andOver","HighSchoolGrad","SomeCollege","AssocDegree","BachelDegree","GradDegree","HSGradorHigher","CollegeGradorHigher","Pop5to20yrs","Pop5to20wDis","Pop21to64","Pop21to64wDis","Pop65over","Pop65overwDis","Pop5yrsOver","SameHUin95","DiffHUinUSin95","HUinSameCountyin95","HUinSameStatein95","TotalPop","NativePop","NatPopBornUS","NatPopBornInStatRes","NatPopBornDiffState","NatPopBornOutUS","FornBornPop","FornPopEnt90to00","FornPopNatCit","FornPopNotCit","Households","HHIncLessThn10k","HHInc10to15K","HHInc15to25K","HHInc25to35K","HHInc35to50K","HHInc50to75K","HHInc75to100K","HHInc100to150K","HHInc150to200K","HHIncOver200K","MedianHHInc","HHwithPubAssistInc","MeanPubAssist","FamilyHH","FHHIncLessThn10k","FHHInc10to15K","FHHInc15to25K","FHHInc25to35K","FHHInc35to50K","FHHInc50to75K","FHHInc75to100K","FHHInc100to150K","FHHInc150to200K","FHHIncOver200K","MedianFHHInc","PerCapitaInc","PovStatFamilies","PovStatFHHwChilUnd18","PovStatFHHwChilUnd5","PovStFmalHH","DP3088","DP3089","PovStatIndiv","PovStatIndiv18yrOver","PovStatIndiv65yrOver","DP3093","DP3094","DP3095"]
[{"$f":"VLOOKUP(DropDownList!$B$47,CntyQryCensus!$A$53:$BY$96,A$1)","v":"Grantham"},{"$f":"VLOOKUP(DropDownList!$B$47,CntyQryCensus!$A$53:$BY$96,B$1)","v":"31220"},{"$f":"VLOOKUP(DropDownList!$B$47,CntyQryCensus!$A$53:$BY$96,C$1)","v":"Grantham town, Sullivan County, New Hampshire"},{"$f":"VLOOKUP(DropDownList!$B$47,CntyQryCensus!$A$53:$BY$96,D$1)","v":434},{"$f":"VLOOKUP(DropDownList!$B$47,CntyQryCensus!$A$53:$BY$96,E$1)","v":32},{"$f":"VLOOKUP(DropDownList!$B$47,CntyQryCensus!$A$53:$BY$96,F$1)","v":32},{"$f":"VLOOKUP(DropDownList!$B$47,CntyQryCensus!$A$53:$BY$96,G$1)","v":193},{"$f":"VLOOKUP(DropDownList!$B$47,CntyQryCensus!$A$53:$BY$96,H$1)","v":104},{"$f":"VLOOKUP(DropDownList!$B$47,CntyQryCensus!$A$53:$BY$96,I$1)","v":73},{"$f":"VLOOKUP(DropDownList!$B$47,CntyQryCensus!$A$53:$BY$96,J$1)","v":1672},{"$f":"VLOOKUP(DropDownList!$B$47,CntyQryCensus!$A$53:$BY$96,K$1)","v":291},{"$f":"VLOOKUP(DropDownList!$B$47,CntyQryCensus!$A$53:$BY$96,L$1)","v":343},{"$f":"VLOOKUP(DropDownList!$B$47,CntyQryCensus!$A$53:$BY$96,M$1)","v":127},{"$f":"VLOOKUP(DropDownList!$B$47,CntyQryCensus!$A$53:$BY$96,N$1)","v":491},{"$f":"VLOOKUP(DropDownList!$B$47,CntyQryCensus!$A$53:$BY$96,O$1)","v":365},{"$f":"VLOOKUP(DropDownList!$B$47,CntyQryCensus!$A$53:$BY$96,P$1)","v":1617},{"$f":"VLOOKUP(DropDownList!$B$47,CntyQryCensus!$A$53:$BY$96,Q$1)","v":856},{"$f":"VLOOKUP(DropDownList!$B$47,CntyQryCensus!$A$53:$BY$96,R$1)","v":350},{"$f":"VLOOKUP(DropDownList!$B$47,CntyQryCensus!$A$53:$BY$96,S$1)","v":19},{"$f":"VLOOKUP(DropDownList!$B$47,CntyQryCensus!$A$53:$BY$96,T$1)","v":1236},{"$f":"VLOOKUP(DropDownList!$B$47,CntyQryCensus!$A$53:$BY$96,U$1)","v":92},{"$f":"VLOOKUP(DropDownList!$B$47,CntyQryCensus!$A$53:$BY$96,V$1)","v":478},{"$f":"VLOOKUP(DropDownList!$B$47,CntyQryCensus!$A$53:$BY$96,W$1)","v":82},{"$f":"VLOOKUP(DropDownList!$B$47,CntyQryCensus!$A$53:$BY$96,X$1)","v":2064},{"$f":"VLOOKUP(DropDownList!$B$47,CntyQryCensus!$A$53:$BY$96,Y$1)","v":940},{"$f":"VLOOKUP(DropDownList!$B$47,CntyQryCensus!$A$53:$BY$96,Z$1)","v":1095},{"$f":"VLOOKUP(DropDownList!$B$47,CntyQryCensus!$A$53:$BY$96,AA$1)","v":303},{"$f":"VLOOKUP(DropDownList!$B$47,CntyQryCensus!$A$53:$BY$96,AB$1)","v":792},{"$f":"VLOOKUP(DropDownList!$B$47,CntyQryCensus!$A$53:$BY$96,AC$1)","v":2173},{"$f":"VLOOKUP(DropDownList!$B$47,CntyQryCensus!$A$53:$BY$96,AD$1)","v":2083},{"$f":"VLOOKUP(DropDownList!$B$47,CntyQryCensus!$A$53:$BY$96,AE$1)","v":2058},{"$f":"VLOOKUP(DropDownList!$B$47,CntyQryCensus!$A$53:$BY$96,AF$1)","v":720},{"$f":"VLOOKUP(DropDownList!$B$47,CntyQryCensus!$A$53:$BY$96,AG$1)","v":1338},{"$f":"VLOOKUP(DropDownList!$B$47,CntyQryCensus!$A$53:$BY$96,AH$1)","v":25},{"$f":"VLOOKUP(DropDownList!$B$47,CntyQryCensus!$A$53:$BY$96,AI$1)","v":90},{"$f":"VLOOKUP(DropDownList!$B$47,CntyQryCensus!$A$53:$BY$96,AJ$1)","v":26},{"$f":"VLOOKUP(DropDownList!$B$47,CntyQryCensus!$A$53:$BY$96,AK$1)","v":40},{"$f":"VLOOKUP(DropDownList!$B$47,CntyQryCensus!$A$53:$BY$96,AL$1)","v":50},{"$f":"VLOOKUP(DropDownList!$B$47,CntyQryCensus!$A$53:$BY$96,AM$1)","v":933},{"$f":"VLOOKUP(DropDownList!$B$47,CntyQryCensus!$A$53:$BY$96,AN$1)","v":36},{"$f":"VLOOKUP(DropDownList!$B$47,CntyQryCensus!$A$53:$BY$96,AO$1)","v":12},{"$f":"VLOOKUP(DropDownList!$B$47,CntyQryCensus!$A$53:$BY$96,AP$1)","v":52},{"$f":"VLOOKUP(DropDownList!$B$47,CntyQryCensus!$A$53:$BY$96,AQ$1)","v":68},{"$f":"VLOOKUP(DropDownList!$B$47,CntyQryCensus!$A$53:$BY$96,AR$1)","v":147},{"$f":"VLOOKUP(DropDownList!$B$47,CntyQryCensus!$A$53:$BY$96,AS$1)","v":259},{"$f":"VLOOKUP(DropDownList!$B$47,CntyQryCensus!$A$53:$BY$96,AT$1)","v":163},{"$f":"VLOOKUP(DropDownList!$B$47,CntyQryCensus!$A$53:$BY$96,AU$1)","v":129},{"$f":"VLOOKUP(DropDownList!$B$47,CntyQryCensus!$A$53:$BY$96,AV$1)","v":35},{"$f":"VLOOKUP(DropDownList!$B$47,CntyQryCensus!$A$53:$BY$96,AW$1)","v":32},{"$f":"VLOOKUP(DropDownList!$B$47,CntyQryCensus!$A$53:$BY$96,AX$1)","v":63239},{"$f":"VLOOKUP(DropDownList!$B$47,CntyQryCensus!$A$53:$BY$96,AY$1)","v":4},{"$f":"VLOOKUP(DropDownList!$B$47,CntyQryCensus!$A$53:$BY$96,AZ$1)","v":1475},{"$f":"VLOOKUP(DropDownList!$B$47,CntyQryCensus!$A$53:$BY$96,BA$1)","v":709},{"$f":"VLOOKUP(DropDownList!$B$47,CntyQryCensus!$A$53:$BY$96,BB$1)","v":7},{"$f":"VLOOKUP(DropDownList!$B$47,CntyQryCensus!$A$53:$BY$96,BC$1)","v":12},{"$f":"VLOOKUP(DropDownList!$B$47,CntyQryCensus!$A$53:$BY$96,BD$1)","v":26},{"$f":"VLOOKUP(DropDownList!$B$47,CntyQryCensus!$A$53:$BY$96,BE$1)","v":44},{"$f":"VLOOKUP(DropDownList!$B$47,CntyQryCensus!$A$53:$BY$96,BF$1)","v":103},{"$f":"VLOOKUP(DropDownList!$B$47,CntyQryCensus!$A$53:$BY$96,BG$1)","v":211},{"$f":"VLOOKUP(DropDownList!$B$47,CntyQryCensus!$A$53:$BY$96,BH$1)","v":148},{"$f":"VLOOKUP(DropDownList!$B$47,CntyQryCensus!$A$53:$BY$96,BI$1)","v":105},{"$f":"VLOOKUP(DropDownList!$B$47,CntyQryCensus!$A$53:$BY$96,BJ$1)","v":29},{"$f":"VLOOKUP(DropDownList!$B$47,CntyQryCensus!$A$53:$BY$96,BK$1)","v":24},{"$f":"VLOOKUP(DropDownList!$B$47,CntyQryCensus!$A$53:$BY$96,BL$1)","v":69271},{"$f":"VLOOKUP(DropDownList!$B$47,CntyQryCensus!$A$53:$BY$96,BM$1)","v":32174},{"$f":"VLOOKUP(DropDownList!$B$47,CntyQryCensus!$A$53:$BY$96,BN$1)","v":10},{"$f":"VLOOKUP(DropDownList!$B$47,CntyQryCensus!$A$53:$BY$96,BO$1)","v":8},{"$f":"VLOOKUP(DropDownList!$B$47,CntyQryCensus!$A$53:$BY$96,BP$1)","v":8},{"$f":"VLOOKUP(DropDownList!$B$47,CntyQryCensus!$A$53:$BY$96,BQ$1)","v":5},{"$f":"VLOOKUP(DropDownList!$B$47,CntyQryCensus!$A$53:$BY$96,BR$1)","v":5},{"$f":"VLOOKUP(DropDownList!$B$47,CntyQryCensus!$A$53:$BY$96,BS$1)","v":5},{"$f":"VLOOKUP(DropDownList!$B$47,CntyQryCensus!$A$53:$BY$96,BT$1)","v":54},{"$f":"VLOOKUP(DropDownList!$B$47,CntyQryCensus!$A$53:$BY$96,BU$1)","v":46},{"$f":"VLOOKUP(DropDownList!$B$47,CntyQryCensus!$A$53:$BY$96,BV$1)","v":18},{"$f":"VLOOKUP(DropDownList!$B$47,CntyQryCensus!$A$53:$BY$96,BW$1)","v":8},{"$f":"VLOOKUP(DropDownList!$B$47,CntyQryCensus!$A$53:$BY$96,BX$1)","v":0},{"$f":"VLOOKUP(DropDownList!$B$47,CntyQryCensus!$A$53:$BY$96,BY$1)","v":31}]
[]
[]
["Census 2000 DemoProfile Sample Data Table 4   -  DPTab4TownQry"]
["NAME","COUSUB","TotHousingUnits","1UnitDet","1UnitAtt","2Units","3to4Units","5to9Units","10to19Units","20orMoreUnits","MobileHomes","BoatRvVan","SingleFamilyUnits","MultiFamUnits","MobileHomeUnits","YearBuilt99to00","YearBuilt95to98","YearBUilt90to94","YearBuilt80to89","YearBuilt70to79","YearBuilt60to69","YearBuilt40to59","YearBuilt39orEarlier","Rooms1","Rooms2","Rooms3","Rooms4","Rooms5","Rooms6","Rooms7","Rooms8","Rooms9orMore","MedianRooms","OccHU1","YrHHMvdIn99to00","YrHHMvdIn95to98","YrHHMvdIn90to94","YrHHMvdIn80to89","YrHHMvdIn70to79","YrHHMvdIn69orBefore","HeatFuelNatGas","HeatFuelBotGas","HeatFuelElectric","HeatFuelOil","HeatFuelCoal","HeatFuelWood","HeatFuelSolar","HeatFuelOther","HeatFuelNone","LackCompPlumb","LackCompKit","NoTelephone","OccHU","OccPerRm1orLess","OccPerRm1to1_5","OccPerRm1_5orMore","SpecOwnOccUnits","Value<50K","Value50to100K","Value100to150K","Value150to200K","Value200to300K","Value300to500K","Value500Kto1mil","Value1MilorMore","MedianValue","WithMortg","MnthOwnCst<300","MnthOwnCst300to500","MnthOwnCst500to700","MnthOwnCst700to1000","MnthOwnCst1000to1500","MnthOwnCst1500to2000","MnthOwnCst2000orMore","MediMnthOwnCst","NotMrtg","NotMrtgMediMnthOwnCst","OwnCst%HHInc<15","OwnCst%HHInc15to20","OwnCst%HHInc20to25","OwnCst%HHInc25to30","OwnCst%HHInc30to35","OwnCst%HHInc35orMor","NotComputed","SpecRntOccUnits","Rnt<200","Rnt200to300","Rnt300to500","Rnt500to750","Rnt750to1000","Rnt1000to1500","Rnt1500orMore","NoRent","MedianRent","Rnt%HHInc<15","Rnt%HHInc15to20","Rnt%HHInc20to25","Rnt%HHInc25to30","Rnt%HHInc30to35","Rnt%HHInc35orMore","Rnt%NotCompute"]
[{"$f":"VLOOKUP(DropDownList!$B$47,CntyQryCensus!$A$103:$CX$146,A$1)","v":"Grantham"},{"$f":"VLOOKUP(DropDownList!$B$47,CntyQryCensus!$A$103:$CX$146,B$1)","v":"31220"},{"$f":"VLOOKUP(DropDownList!$B$47,CntyQryCensus!$A$103:$CX$146,C$1)","v":1518},{"$f":"VLOOKUP(DropDownList!$B$47,CntyQryCensus!$A$103:$CX$146,D$1)","v":1168},{"$f":"VLOOKUP(DropDownList!$B$47,CntyQryCensus!$A$103:$CX$146,E$1)","v":296},{"$f":"VLOOKUP(DropDownList!$B$47,CntyQryCensus!$A$103:$CX$146,F$1)","v":19},{"$f":"VLOOKUP(DropDownList!$B$47,CntyQryCensus!$A$103:$CX$146,G$1)","v":9},{"$f":"VLOOKUP(DropDownList!$B$47,CntyQryCensus!$A$103:$CX$146,H$1)","v":0},{"$f":"VLOOKUP(DropDownList!$B$47,CntyQryCensus!$A$103:$CX$146,I$1)","v":0},{"$f":"VLOOKUP(DropDownList!$B$47,CntyQryCensus!$A$103:$CX$146,J$1)","v":0},{"$f":"VLOOKUP(DropDownList!$B$47,CntyQryCensus!$A$103:$CX$146,K$1)","v":26},{"$f":"VLOOKUP(DropDownList!$B$47,CntyQryCensus!$A$103:$CX$146,L$1)","v":0},{"$f":"VLOOKUP(DropDownList!$B$47,CntyQryCensus!$A$103:$CX$146,M$1)","v":1168},{"$f":"VLOOKUP(DropDownList!$B$47,CntyQryCensus!$A$103:$CX$146,N$1)","v":324},{"$f":"VLOOKUP(DropDownList!$B$47,CntyQryCensus!$A$103:$CX$146,O$1)","v":26},{"$f":"VLOOKUP(DropDownList!$B$47,CntyQryCensus!$A$103:$CX$146,P$1)","v":24},{"$f":"VLOOKUP(DropDownList!$B$47,CntyQryCensus!$A$103:$CX$146,Q$1)","v":124},{"$f":"VLOOKUP(DropDownList!$B$47,CntyQryCensus!$A$103:$CX$146,R$1)","v":192},{"$f":"VLOOKUP(DropDownList!$B$47,CntyQryCensus!$A$103:$CX$146,S$1)","v":672},{"$f":"VLOOKUP(DropDownList!$B$47,CntyQryCensus!$A$103:$CX$146,T$1)","v":338},{"$f":"VLOOKUP(DropDownList!$B$47,CntyQryCensus!$A$103:$CX$146,U$1)","v":44},{"$f":"VLOOKUP(DropDownList!$B$47,CntyQryCensus!$A$103:$CX$146,V$1)","v":49},{"$f":"VLOOKUP(DropDownList!$B$47,CntyQryCensus!$A$103:$CX$146,W$1)","v":75},{"$f":"VLOOKUP(DropDownList!$B$47,CntyQryCensus!$A$103:$CX$146,X$1)","v":10},{"$f":"VLOOKUP(DropDownList!$B$47,CntyQryCensus!$A$103:$CX$146,Y$1)","v":5},{"$f":"VLOOKUP(DropDownList!$B$47,CntyQryCensus!$A$103:$CX$146,Z$1)","v":23},{"$f":"VLOOKUP(DropDownList!$B$47,CntyQryCensus!$A$103:$CX$146,AA$1)","v":158},{"$f":"VLOOKUP(DropDownList!$B$47,CntyQryCensus!$A$103:$CX$146,AB$1)","v":291},{"$f":"VLOOKUP(DropDownList!$B$47,CntyQryCensus!$A$103:$CX$146,AC$1)","v":459},{"$f":"VLOOKUP(DropDownList!$B$47,CntyQryCensus!$A$103:$CX$146,AD$1)","v":248},{"$f":"VLOOKUP(DropDownList!$B$47,CntyQryCensus!$A$103:$CX$146,AE$1)","v":195},{"$f":"VLOOKUP(DropDownList!$B$47,CntyQryCensus!$A$103:$CX$146,AF$1)","v":129},{"$f":"VLOOKUP(DropDownList!$B$47,CntyQryCensus!$A$103:$CX$146,AG$1)","v":6.1},{"$f":"VLOOKUP(DropDownList!$B$47,CntyQryCensus!$A$103:$CX$146,AH$1)","v":925},{"$f":"VLOOKUP(DropDownList!$B$47,CntyQryCensus!$A$103:$CX$146,AI$1)","v":173},{"$f":"VLOOKUP(DropDownList!$B$47,CntyQryCensus!$A$103:$CX$146,AJ$1)","v":332},{"$f":"VLOOKUP(DropDownList!$B$47,CntyQryCensus!$A$103:$CX$146,AK$1)","v":156},{"$f":"VLOOKUP(DropDownList!$B$47,CntyQryCensus!$A$103:$CX$146,AL$1)","v":170},{"$f":"VLOOKUP(DropDownList!$B$47,CntyQryCensus!$A$103:$CX$146,AM$1)","v":65},{"$f":"VLOOKUP(DropDownList!$B$47,CntyQryCensus!$A$103:$CX$146,AN$1)","v":29},{"$f":"VLOOKUP(DropDownList!$B$47,CntyQryCensus!$A$103:$CX$146,AO$1)","v":9},{"$f":"VLOOKUP(DropDownList!$B$47,CntyQryCensus!$A$103:$CX$146,AP$1)","v":436},{"$f":"VLOOKUP(DropDownList!$B$47,CntyQryCensus!$A$103:$CX$146,AQ$1)","v":47},{"$f":"VLOOKUP(DropDownList!$B$47,CntyQryCensus!$A$103:$CX$146,AR$1)","v":340},{"$f":"VLOOKUP(DropDownList!$B$47,CntyQryCensus!$A$103:$CX$146,AS$1)","v":0},{"$f":"VLOOKUP(DropDownList!$B$47,CntyQryCensus!$A$103:$CX$146,AT$1)","v":93},{"$f":"VLOOKUP(DropDownList!$B$47,CntyQryCensus!$A$103:$CX$146,AU$1)","v":0},{"$f":"VLOOKUP(DropDownList!$B$47,CntyQryCensus!$A$103:$CX$146,AV$1)","v":0},{"$f":"VLOOKUP(DropDownList!$B$47,CntyQryCensus!$A$103:$CX$146,AW$1)","v":0},{"$f":"VLOOKUP(DropDownList!$B$47,CntyQryCensus!$A$103:$CX$146,AX$1)","v":0},{"$f":"VLOOKUP(DropDownList!$B$47,CntyQryCensus!$A$103:$CX$146,AY$1)","v":5},{"$f":"VLOOKUP(DropDownList!$B$47,CntyQryCensus!$A$103:$CX$146,AZ$1)","v":10},{"$f":"VLOOKUP(DropDownList!$B$47,CntyQryCensus!$A$103:$CX$146,BA$1)","v":925},{"$f":"VLOOKUP(DropDownList!$B$47,CntyQryCensus!$A$103:$CX$146,BB$1)","v":923},{"$f":"VLOOKUP(DropDownList!$B$47,CntyQryCensus!$A$103:$CX$146,BC$1)","v":2},{"$f":"VLOOKUP(DropDownList!$B$47,CntyQryCensus!$A$103:$CX$146,BD$1)","v":0},{"$f":"VLOOKUP(DropDownList!$B$47,CntyQryCensus!$A$103:$CX$146,BE$1)","v":710},{"$f":"VLOOKUP(DropDownList!$B$47,CntyQryCensus!$A$103:$CX$146,BF$1)","v":5},{"$f":"VLOOKUP(DropDownList!$B$47,CntyQryCensus!$A$103:$CX$146,BG$1)","v":93},{"$f":"VLOOKUP(DropDownList!$B$47,CntyQryCensus!$A$103:$CX$146,BH$1)","v":228},{"$f":"VLOOKUP(DropDownList!$B$47,CntyQryCensus!$A$103:$CX$146,BI$1)","v":155},{"$f":"VLOOKUP(DropDownList!$B$47,CntyQryCensus!$A$103:$CX$146,BJ$1)","v":150},{"$f":"VLOOKUP(DropDownList!$B$47,CntyQryCensus!$A$103:$CX$146,BK$1)","v":72},{"$f":"VLOOKUP(DropDownList!$B$47,CntyQryCensus!$A$103:$CX$146,BL$1)","v":7},{"$f":"VLOOKUP(DropDownList!$B$47,CntyQryCensus!$A$103:$CX$146,BM$1)","v":0},{"$f":"VLOOKUP(DropDownList!$B$47,CntyQryCensus!$A$103:$CX$146,BN$1)","v":159200},{"$f":"VLOOKUP(DropDownList!$B$47,CntyQryCensus!$A$103:$CX$146,BO$1)","v":459},{"$f":"VLOOKUP(DropDownList!$B$47,CntyQryCensus!$A$103:$CX$146,BP$1)","v":0},{"$f":"VLOOKUP(DropDownList!$B$47,CntyQryCensus!$A$103:$CX$146,BQ$1)","v":2},{"$f":"VLOOKUP(DropDownList!$B$47,CntyQryCensus!$A$103:$CX$146,BR$1)","v":32},{"$f":"VLOOKUP(DropDownList!$B$47,CntyQryCensus!$A$103:$CX$146,BS$1)","v":60},{"$f":"VLOOKUP(DropDownList!$B$47,CntyQryCensus!$A$103:$CX$146,BT$1)","v":226},{"$f":"VLOOKUP(DropDownList!$B$47,CntyQryCensus!$A$103:$CX$146,BU$1)","v":97},{"$f":"VLOOKUP(DropDownList!$B$47,CntyQryCensus!$A$103:$CX$146,BV$1)","v":42},{"$f":"VLOOKUP(DropDownList!$B$47,CntyQryCensus!$A$103:$CX$146,BW$1)","v":1300},{"$f":"VLOOKUP(DropDownList!$B$47,CntyQryCensus!$A$103:$CX$146,BX$1)","v":251},{"$f":"VLOOKUP(DropDownList!$B$47,CntyQryCensus!$A$103:$CX$146,BY$1)","v":510},{"$f":"VLOOKUP(DropDownList!$B$47,CntyQryCensus!$A$103:$CX$146,BZ$1)","v":252},{"$f":"VLOOKUP(DropDownList!$B$47,CntyQryCensus!$A$103:$CX$146,CA$1)","v":111},{"$f":"VLOOKUP(DropDownList!$B$47,CntyQryCensus!$A$103:$CX$146,CB$1)","v":132},{"$f":"VLOOKUP(DropDownList!$B$47,CntyQryCensus!$A$103:$CX$146,CC$1)","v":73},{"$f":"VLOOKUP(DropDownList!$B$47,CntyQryCensus!$A$103:$CX$146,CD$1)","v":38},{"$f":"VLOOKUP(DropDownList!$B$47,CntyQryCensus!$A$103:$CX$146,CE$1)","v":97},{"$f":"VLOOKUP(DropDownList!$B$47,CntyQryCensus!$A$103:$CX$146,CF$1)","v":7},{"$f":"VLOOKUP(DropDownList!$B$47,CntyQryCensus!$A$103:$CX$146,CG$1)","v":103},{"$f":"VLOOKUP(DropDownList!$B$47,CntyQryCensus!$A$103:$CX$146,CH$1)","v":0},{"$f":"VLOOKUP(DropDownList!$B$47,CntyQryCensus!$A$103:$CX$146,CI$1)","v":0},{"$f":"VLOOKUP(DropDownList!$B$47,CntyQryCensus!$A$103:$CX$146,CJ$1)","v":6},{"$f":"VLOOKUP(DropDownList!$B$47,CntyQryCensus!$A$103:$CX$146,CK$1)","v":17},{"$f":"VLOOKUP(DropDownList!$B$47,CntyQryCensus!$A$103:$CX$146,CL$1)","v":19},{"$f":"VLOOKUP(DropDownList!$B$47,CntyQryCensus!$A$103:$CX$146,CM$1)","v":52},{"$f":"VLOOKUP(DropDownList!$B$47,CntyQryCensus!$A$103:$CX$146,CN$1)","v":4},{"$f":"VLOOKUP(DropDownList!$B$47,CntyQryCensus!$A$103:$CX$146,CO$1)","v":5},{"$f":"VLOOKUP(DropDownList!$B$47,CntyQryCensus!$A$103:$CX$146,CP$1)","v":1040},{"$f":"VLOOKUP(DropDownList!$B$47,CntyQryCensus!$A$103:$CX$146,CQ$1)","v":26},{"$f":"VLOOKUP(DropDownList!$B$47,CntyQryCensus!$A$103:$CX$146,CR$1)","v":15},{"$f":"VLOOKUP(DropDownList!$B$47,CntyQryCensus!$A$103:$CX$146,CS$1)","v":10},{"$f":"VLOOKUP(DropDownList!$B$47,CntyQryCensus!$A$103:$CX$146,CT$1)","v":20},{"$f":"VLOOKUP(DropDownList!$B$47,CntyQryCensus!$A$103:$CX$146,CU$1)","v":2},{"$f":"VLOOKUP(DropDownList!$B$47,CntyQryCensus!$A$103:$CX$146,CV$1)","v":22},{"$f":"VLOOKUP(DropDownList!$B$47,CntyQryCensus!$A$103:$CX$146,CW$1)","v":8}]
[]
[]
["Census 2000 SummaryFile3 Sample Data  -  SF3TownQry1SocialChar"]
["TOWN_NAME","LOGRECNO","COUSUB","P01TotalPopulation","P02SampleCountOfPop","P03Pop100pctCount","P05UrbanPopulation","P05RuralPopulation","P06WhiteAlone","P06BlackOrAfAm","P06AmIndAlone","P06AsianAlone","P06HawaiianOrPI","P06OtherRace","P06TwoPlusRaces","P07NotHispanicOrLatino","P07HispanicOrLatino","P08MalePop","P08FemalePop","P09PopInHouseholds","P09PopInFamHH","P09PopInNonFamHH","P09PopInGroupQtr","P13TotalHH","P13FamilyHH","P13FamHHolder15to24yrs","P13FamHHolder25to34yrs","P13FamHHolder35to44yrs","P13FamHHolder45to54yrs","P13FamHHolder55to64yrs","P13FamHHolder65to74yrs","P13FamHHolder75to84yrs","P13FamHHolder85yrsOver","P13NonFamilyHH","P13NonFamHHolder15to24yrs","P13NonFamHHolder25to34yrs","P13NonFamHHolder35to44yrs","P13NonFamHHolder45to54yrs","P13NonFamHHolder55to64yrs","P13NonFamHHolder65to74yrs","P13NonFamHHolder75to84yrs","P13NonFamHHolder85yrsOver","P18Pop15yrsOver","P18MaritalStatNeverMarried","P18MaritalStatNowMarried","P18MaritalStatSeparated","P18MaritalStatWidowed","P18MaritalStatWidowFemale","P18MaritalStatDivorced","P18MaritalStatDivorcedFemale","P21NativeBornPop","P21NatPopBornInState","P21NatPopBornOtherState","P021005","P021006","P021007","P021008","P21NatPopBornOutUS","P21ForeignBornPop","P021014","P021015","P24Pop5YrsPlus","P24ResSameHouseIn95","P24ResDiffHouseIn95","P24ResDiffHouseInUSIn95","P24ResDiffHouseSameCountyIn95","P24ResDiffHouseDiffCountyIn95","P24ResDiffHouseDiffCntySamStIn95","P24ResDiffHouseDiffCntyDifStIn95","P24ResDiffHouseDiffCntyNEStIn95","P24ResDiffHouseDiffCntyMWStIn95","P24ResDiffHouseDiffCntySoStIn95","P24ResDiffHouseDiffCntyWstStIn95","P24ResDiffInPR","P24ResDiffElsewhereIn95","P26Workers16yrsOver","P26WorkedInState","P26WorkedInCnty","P26WorkedOutsideCnty","P26WorkedOutsideState","P30Workers16Over","P30TranspToWrkCar","P30TranspToWrkPublic","P30TranspToWrkOther","P30WrkdAtHome","P31WrkrsNotWrkAtHom","P31TravTim<5min","P31TravTim5to9Min","P31TravTim10to14Min","P31TravTim15to19Min","P31TravTim20to24Min","P31TravTim25to29Min","P31TravTim30to34Min","P31TravTim35to39Min","P31TravTim40to44Min","P31TravTim45to59Min","P31TravTim60to89Min","P31TravTim90MinMore","P31WorkAtHome","P36SchEnrlPop3yrOver","P36NurserSchEnrl","P36KinderSchEnrl","P36ElemSchEnrl","P36HighSchEnrl","P36CollGradSchEnrl","P37Pop25yrsOver","P37EduAtain<9grd","P37EduAtainHSnoDip","P37EduAtainHSgrad","P37EduAtainCollNoDeg","P37EduAtainAssocDeg","P37EduAtainBachDeg","P37EduAtainGradProfDeg","P42NIPop5to15","P42NIPop5to15wDisabl","P42NIPop16to20","P42NIPop16to20wDisab","P42NIPop16to20wDisEmp","P42NIPop16to21NoDis","P42NIPop16to21NoDisEmpl","P42NIPop21to64","P42NIPop21to64wDis","P42NIPop21to64wDisEmp","P42NIPop21to64NoDis","P42NIPop21to64NoDisEmp","P42NIPop65to74","P42NIPop65to74wDis","P42NIPop75Over","P42NIPop75OverwDis","P43Pop16YrsOver","P43Pop16OvrInLaborForce","P43Pop16OvrCivlLabFrc","P43Pop16OvrCivlLbrFrcEmp","P48Families","P48MarriedFam","P48MarrFamNoWorkers","P48MarrFam1Worker","P48MarrFam2Worker","P48MarrFamHusbWifeWorked","P48MarrFamOther","P48MarrFam3PlusWorker","P48MarrFam3WorkHsbWif","P48MarrFam3PlsWrkOther","P48OtherFam","P48MaleHHNoWif","P48MaleHHNoWifNoWorker","P48MaleHHNoWif1Worker","P48MaleHHNoWif2Worker","P48MaleHHNoWif3PlusWorker","P48FemaleHHNoHsb","P48FemaleHHNoHsbNoWorker","P48FemaleHHNoHsb1Worker","P48FemaleHHNoHsb2Worker","P48FemaleHHNoHsb3Worker","P49EmpCivPop16YrOver","P49IndustAgricult","P49IndustConst","P49IndustMnftg","P49IndustWhlslTrd","P49IndustRtlTrd","P49IndustTrspWrhsUtlt","P49IndustInfrm","P49IndustFinInsRE","P49IndustPrfsScntfMngmt","P49IndustEduHlthSocSrv","P49IndustArtsEntRec","P49IndustOthrSrvc","P49IndustPubAdm","P50OccupMngmtProfs","P50OccupService","P50OccupSalesOff","P50OccupFarmFishForest","P50OccupConstExtrctMaint","P50OccupPrdctTrnspMatMv"]
[{"$f":"VLOOKUP(DropDownList!$B$47,CntyQryCensus!$A$103:$CX$146,A$1)","v":"Grantham"},{"$f":"VLOOKUP(DropDownList!$B$47,CntyQryCensus!$A$156:$FR$198,B$1)","v":"0004212"},{"$f":"VLOOKUP(DropDownList!$B$47,CntyQryCensus!$A$156:$FR$198,C$1)","v":"31220"},{"$f":"VLOOKUP(DropDownList!$B$47,CntyQryCensus!$A$156:$FR$198,D$1)","v":2173},{"$f":"VLOOKUP(DropDownList!$B$47,CntyQryCensus!$A$156:$FR$198,E$1)","v":973},{"$f":"VLOOKUP(DropDownList!$B$47,CntyQryCensus!$A$156:$FR$198,F$1)","v":2167},{"$f":"VLOOKUP(DropDownList!$B$47,CntyQryCensus!$A$156:$FR$198,G$1)","v":0},{"$f":"VLOOKUP(DropDownList!$B$47,CntyQryCensus!$A$156:$FR$198,H$1)","v":2173},{"$f":"VLOOKUP(DropDownList!$B$47,CntyQryCensus!$A$156:$FR$198,I$1)","v":2133},{"$f":"VLOOKUP(DropDownList!$B$47,CntyQryCensus!$A$156:$FR$198,J$1)","v":2},{"$f":"VLOOKUP(DropDownList!$B$47,CntyQryCensus!$A$156:$FR$198,K$1)","v":0},{"$f":"VLOOKUP(DropDownList!$B$47,CntyQryCensus!$A$156:$FR$198,L$1)","v":9},{"$f":"VLOOKUP(DropDownList!$B$47,CntyQryCensus!$A$156:$FR$198,M$1)","v":0},{"$f":"VLOOKUP(DropDownList!$B$47,CntyQryCensus!$A$156:$FR$198,N$1)","v":11},{"$f":"VLOOKUP(DropDownList!$B$47,CntyQryCensus!$A$156:$FR$198,O$1)","v":18},{"$f":"VLOOKUP(DropDownList!$B$47,CntyQryCensus!$A$156:$FR$198,P$1)","v":2165},{"$f":"VLOOKUP(DropDownList!$B$47,CntyQryCensus!$A$156:$FR$198,Q$1)","v":8},{"$f":"VLOOKUP(DropDownList!$B$47,CntyQryCensus!$A$156:$FR$198,R$1)","v":1068},{"$f":"VLOOKUP(DropDownList!$B$47,CntyQryCensus!$A$156:$FR$198,S$1)","v":1105},{"$f":"VLOOKUP(DropDownList!$B$47,CntyQryCensus!$A$156:$FR$198,T$1)","v":2173},{"$f":"VLOOKUP(DropDownList!$B$47,CntyQryCensus!$A$156:$FR$198,U$1)","v":1899},{"$f":"VLOOKUP(DropDownList!$B$47,CntyQryCensus!$A$156:$FR$198,V$1)","v":274},{"$f":"VLOOKUP(DropDownList!$B$47,CntyQryCensus!$A$156:$FR$198,W$1)","v":0},{"$f":"VLOOKUP(DropDownList!$B$47,CntyQryCensus!$A$156:$FR$198,X$1)","v":933},{"$f":"VLOOKUP(DropDownList!$B$47,CntyQryCensus!$A$156:$FR$198,Y$1)","v":709},{"$f":"VLOOKUP(DropDownList!$B$47,CntyQryCensus!$A$156:$FR$198,Z$1)","v":7},{"$f":"VLOOKUP(DropDownList!$B$47,CntyQryCensus!$A$156:$FR$198,AA$1)","v":89},{"$f":"VLOOKUP(DropDownList!$B$47,CntyQryCensus!$A$156:$FR$198,AB$1)","v":135},{"$f":"VLOOKUP(DropDownList!$B$47,CntyQryCensus!$A$156:$FR$198,AC$1)","v":148},{"$f":"VLOOKUP(DropDownList!$B$47,CntyQryCensus!$A$156:$FR$198,AD$1)","v":114},{"$f":"VLOOKUP(DropDownList!$B$47,CntyQryCensus!$A$156:$FR$198,AE$1)","v":149},{"$f":"VLOOKUP(DropDownList!$B$47,CntyQryCensus!$A$156:$FR$198,AF$1)","v":63},{"$f":"VLOOKUP(DropDownList!$B$47,CntyQryCensus!$A$156:$FR$198,AG$1)","v":4},{"$f":"VLOOKUP(DropDownList!$B$47,CntyQryCensus!$A$156:$FR$198,AH$1)","v":224},{"$f":"VLOOKUP(DropDownList!$B$47,CntyQryCensus!$A$156:$FR$198,AI$1)","v":8},{"$f":"VLOOKUP(DropDownList!$B$47,CntyQryCensus!$A$156:$FR$198,AJ$1)","v":16},{"$f":"VLOOKUP(DropDownList!$B$47,CntyQryCensus!$A$156:$FR$198,AK$1)","v":23},{"$f":"VLOOKUP(DropDownList!$B$47,CntyQryCensus!$A$156:$FR$198,AL$1)","v":55},{"$f":"VLOOKUP(DropDownList!$B$47,CntyQryCensus!$A$156:$FR$198,AM$1)","v":42},{"$f":"VLOOKUP(DropDownList!$B$47,CntyQryCensus!$A$156:$FR$198,AN$1)","v":37},{"$f":"VLOOKUP(DropDownList!$B$47,CntyQryCensus!$A$156:$FR$198,AO$1)","v":31},{"$f":"VLOOKUP(DropDownList!$B$47,CntyQryCensus!$A$156:$FR$198,AP$1)","v":12},{"$f":"VLOOKUP(DropDownList!$B$47,CntyQryCensus!$A$156:$FR$198,AQ$1)","v":1817},{"$f":"VLOOKUP(DropDownList!$B$47,CntyQryCensus!$A$156:$FR$198,AR$1)","v":239},{"$f":"VLOOKUP(DropDownList!$B$47,CntyQryCensus!$A$156:$FR$198,AS$1)","v":1336},{"$f":"VLOOKUP(DropDownList!$B$47,CntyQryCensus!$A$156:$FR$198,AT$1)","v":3},{"$f":"VLOOKUP(DropDownList!$B$47,CntyQryCensus!$A$156:$FR$198,AU$1)","v":87},{"$f":"VLOOKUP(DropDownList!$B$47,CntyQryCensus!$A$156:$FR$198,AV$1)","v":59},{"$f":"VLOOKUP(DropDownList!$B$47,CntyQryCensus!$A$156:$FR$198,AW$1)","v":152},{"$f":"VLOOKUP(DropDownList!$B$47,CntyQryCensus!$A$156:$FR$198,AX$1)","v":84},{"$f":"VLOOKUP(DropDownList!$B$47,CntyQryCensus!$A$156:$FR$198,AY$1)","v":2083},{"$f":"VLOOKUP(DropDownList!$B$47,CntyQryCensus!$A$156:$FR$198,AZ$1)","v":720},{"$f":"VLOOKUP(DropDownList!$B$47,CntyQryCensus!$A$156:$FR$198,BA$1)","v":1338},{"$f":"VLOOKUP(DropDownList!$B$47,CntyQryCensus!$A$156:$FR$198,BB$1)","v":965},{"$f":"VLOOKUP(DropDownList!$B$47,CntyQryCensus!$A$156:$FR$198,BC$1)","v":174},{"$f":"VLOOKUP(DropDownList!$B$47,CntyQryCensus!$A$156:$FR$198,BD$1)","v":125},{"$f":"VLOOKUP(DropDownList!$B$47,CntyQryCensus!$A$156:$FR$198,BE$1)","v":74},{"$f":"VLOOKUP(DropDownList!$B$47,CntyQryCensus!$A$156:$FR$198,BF$1)","v":25},{"$f":"VLOOKUP(DropDownList!$B$47,CntyQryCensus!$A$156:$FR$198,BG$1)","v":90},{"$f":"VLOOKUP(DropDownList!$B$47,CntyQryCensus!$A$156:$FR$198,BH$1)","v":40},{"$f":"VLOOKUP(DropDownList!$B$47,CntyQryCensus!$A$156:$FR$198,BI$1)","v":50},{"$f":"VLOOKUP(DropDownList!$B$47,CntyQryCensus!$A$156:$FR$198,BJ$1)","v":2064},{"$f":"VLOOKUP(DropDownList!$B$47,CntyQryCensus!$A$156:$FR$198,BK$1)","v":940},{"$f":"VLOOKUP(DropDownList!$B$47,CntyQryCensus!$A$156:$FR$198,BL$1)","v":1124},{"$f":"VLOOKUP(DropDownList!$B$47,CntyQryCensus!$A$156:$FR$198,BM$1)","v":1095},{"$f":"VLOOKUP(DropDownList!$B$47,CntyQryCensus!$A$156:$FR$198,BN$1)","v":303},{"$f":"VLOOKUP(DropDownList!$B$47,CntyQryCensus!$A$156:$FR$198,BO$1)","v":792},{"$f":"VLOOKUP(DropDownList!$B$47,CntyQryCensus!$A$156:$FR$198,BP$1)","v":281},{"$f":"VLOOKUP(DropDownList!$B$47,CntyQryCensus!$A$156:$FR$198,BQ$1)","v":511},{"$f":"VLOOKUP(DropDownList!$B$47,CntyQryCensus!$A$156:$FR$198,BR$1)","v":285},{"$f":"VLOOKUP(DropDownList!$B$47,CntyQryCensus!$A$156:$FR$198,BS$1)","v":54},{"$f":"VLOOKUP(DropDownList!$B$47,CntyQryCensus!$A$156:$FR$198,BT$1)","v":109},{"$f":"VLOOKUP(DropDownList!$B$47,CntyQryCensus!$A$156:$FR$198,BU$1)","v":63},{"$f":"VLOOKUP(DropDownList!$B$47,CntyQryCensus!$A$156:$FR$198,BV$1)","v":0},{"$f":"VLOOKUP(DropDownList!$B$47,CntyQryCensus!$A$156:$FR$198,BW$1)","v":29},{"$f":"VLOOKUP(DropDownList!$B$47,CntyQryCensus!$A$156:$FR$198,BX$1)","v":1051},{"$f":"VLOOKUP(DropDownList!$B$47,CntyQryCensus!$A$156:$FR$198,BY$1)","v":948},{"$f":"VLOOKUP(DropDownList!$B$47,CntyQryCensus!$A$156:$FR$198,BZ$1)","v":341},{"$f":"VLOOKUP(DropDownList!$B$47,CntyQryCensus!$A$156:$FR$198,CA$1)","v":607},{"$f":"VLOOKUP(DropDownList!$B$47,CntyQryCensus!$A$156:$FR$198,CB$1)","v":103},{"$f":"VLOOKUP(DropDownList!$B$47,CntyQryCensus!$A$156:$FR$198,CC$1)","v":1051},{"$f":"VLOOKUP(DropDownList!$B$47,CntyQryCensus!$A$156:$FR$198,CD$1)","v":937},{"$f":"VLOOKUP(DropDownList!$B$47,CntyQryCensus!$A$156:$FR$198,CE$1)","v":13},{"$f":"VLOOKUP(DropDownList!$B$47,CntyQryCensus!$A$156:$FR$198,CF$1)","v":10},{"$f":"VLOOKUP(DropDownList!$B$47,CntyQryCensus!$A$156:$FR$198,CG$1)","v":82},{"$f":"VLOOKUP(DropDownList!$B$47,CntyQryCensus!$A$156:$FR$198,CH$1)","v":969},{"$f":"VLOOKUP(DropDownList!$B$47,CntyQryCensus!$A$156:$FR$198,CI$1)","v":29},{"$f":"VLOOKUP(DropDownList!$B$47,CntyQryCensus!$A$156:$FR$198,CJ$1)","v":50},{"$f":"VLOOKUP(DropDownList!$B$47,CntyQryCensus!$A$156:$FR$198,CK$1)","v":59},{"$f":"VLOOKUP(DropDownList!$B$47,CntyQryCensus!$A$156:$FR$198,CL$1)","v":118},{"$f":"VLOOKUP(DropDownList!$B$47,CntyQryCensus!$A$156:$FR$198,CM$1)","v":254},{"$f":"VLOOKUP(DropDownList!$B$47,CntyQryCensus!$A$156:$FR$198,CN$1)","v":175},{"$f":"VLOOKUP(DropDownList!$B$47,CntyQryCensus!$A$156:$FR$198,CO$1)","v":110},{"$f":"VLOOKUP(DropDownList!$B$47,CntyQryCensus!$A$156:$FR$198,CP$1)","v":22},{"$f":"VLOOKUP(DropDownList!$B$47,CntyQryCensus!$A$156:$FR$198,CQ$1)","v":31},{"$f":"VLOOKUP(DropDownList!$B$47,CntyQryCensus!$A$156:$FR$198,CR$1)","v":40},{"$f":"VLOOKUP(DropDownList!$B$47,CntyQryCensus!$A$156:$FR$198,CS$1)","v":19},{"$f":"VLOOKUP(DropDownList!$B$47,CntyQryCensus!$A$156:$FR$198,CT$1)","v":62},{"$f":"VLOOKUP(DropDownList!$B$47,CntyQryCensus!$A$156:$FR$198,CU$1)","v":82},{"$f":"VLOOKUP(DropDownList!$B$47,CntyQryCensus!$A$156:$FR$198,CV$1)","v":2113},{"$f":"VLOOKUP(DropDownList!$B$47,CntyQryCensus!$A$156:$FR$198,CW$1)","v":32},{"$f":"VLOOKUP(DropDownList!$B$47,CntyQryCensus!$A$156:$FR$198,CX$1)","v":32},{"$f":"VLOOKUP(DropDownList!$B$47,CntyQryCensus!$A$156:$FR$198,CY$1)","v":193},{"$f":"VLOOKUP(DropDownList!$B$47,CntyQryCensus!$A$156:$FR$198,CZ$1)","v":104},{"$f":"VLOOKUP(DropDownList!$B$47,CntyQryCensus!$A$156:$FR$198,DA$1)","v":73},{"$f":"VLOOKUP(DropDownList!$B$47,CntyQryCensus!$A$156:$FR$198,DB$1)","v":1672},{"$f":"VLOOKUP(DropDownList!$B$47,CntyQryCensus!$A$156:$FR$198,DC$1)","v":16},{"$f":"VLOOKUP(DropDownList!$B$47,CntyQryCensus!$A$156:$FR$198,DD$1)","v":39},{"$f":"VLOOKUP(DropDownList!$B$47,CntyQryCensus!$A$156:$FR$198,DE$1)","v":291},{"$f":"VLOOKUP(DropDownList!$B$47,CntyQryCensus!$A$156:$FR$198,DF$1)","v":343},{"$f":"VLOOKUP(DropDownList!$B$47,CntyQryCensus!$A$156:$FR$198,DG$1)","v":127},{"$f":"VLOOKUP(DropDownList!$B$47,CntyQryCensus!$A$156:$FR$198,DH$1)","v":491},{"$f":"VLOOKUP(DropDownList!$B$47,CntyQryCensus!$A$156:$FR$198,DI$1)","v":365},{"$f":"VLOOKUP(DropDownList!$B$47,CntyQryCensus!$A$156:$FR$198,DJ$1)","v":276},{"$f":"VLOOKUP(DropDownList!$B$47,CntyQryCensus!$A$156:$FR$198,DK$1)","v":14},{"$f":"VLOOKUP(DropDownList!$B$47,CntyQryCensus!$A$156:$FR$198,DL$1)","v":74},{"$f":"VLOOKUP(DropDownList!$B$47,CntyQryCensus!$A$156:$FR$198,DM$1)","v":5},{"$f":"VLOOKUP(DropDownList!$B$47,CntyQryCensus!$A$156:$FR$198,DN$1)","v":5},{"$f":"VLOOKUP(DropDownList!$B$47,CntyQryCensus!$A$156:$FR$198,DO$1)","v":69},{"$f":"VLOOKUP(DropDownList!$B$47,CntyQryCensus!$A$156:$FR$198,DP$1)","v":37},{"$f":"VLOOKUP(DropDownList!$B$47,CntyQryCensus!$A$156:$FR$198,DQ$1)","v":1236},{"$f":"VLOOKUP(DropDownList!$B$47,CntyQryCensus!$A$156:$FR$198,DR$1)","v":92},{"$f":"VLOOKUP(DropDownList!$B$47,CntyQryCensus!$A$156:$FR$198,DS$1)","v":62},{"$f":"VLOOKUP(DropDownList!$B$47,CntyQryCensus!$A$156:$FR$198,DT$1)","v":1144},{"$f":"VLOOKUP(DropDownList!$B$47,CntyQryCensus!$A$156:$FR$198,DU$1)","v":903},{"$f":"VLOOKUP(DropDownList!$B$47,CntyQryCensus!$A$156:$FR$198,DV$1)","v":326},{"$f":"VLOOKUP(DropDownList!$B$47,CntyQryCensus!$A$156:$FR$198,DW$1)","v":34},{"$f":"VLOOKUP(DropDownList!$B$47,CntyQryCensus!$A$156:$FR$198,DX$1)","v":152},{"$f":"VLOOKUP(DropDownList!$B$47,CntyQryCensus!$A$156:$FR$198,DY$1)","v":48},{"$f":"VLOOKUP(DropDownList!$B$47,CntyQryCensus!$A$156:$FR$198,DZ$1)","v":1788},{"$f":"VLOOKUP(DropDownList!$B$47,CntyQryCensus!$A$156:$FR$198,EA$1)","v":1091},{"$f":"VLOOKUP(DropDownList!$B$47,CntyQryCensus!$A$156:$FR$198,EB$1)","v":1091},{"$f":"VLOOKUP(DropDownList!$B$47,CntyQryCensus!$A$156:$FR$198,EC$1)","v":1077},{"$f":"VLOOKUP(DropDownList!$B$47,CntyQryCensus!$A$156:$FR$198,ED$1)","v":709},{"$f":"VLOOKUP(DropDownList!$B$47,CntyQryCensus!$A$156:$FR$198,EE$1)","v":656},{"$f":"VLOOKUP(DropDownList!$B$47,CntyQryCensus!$A$156:$FR$198,EF$1)","v":153},{"$f":"VLOOKUP(DropDownList!$B$47,CntyQryCensus!$A$156:$FR$198,EG$1)","v":127},{"$f":"VLOOKUP(DropDownList!$B$47,CntyQryCensus!$A$156:$FR$198,EH$1)","v":322},{"$f":"VLOOKUP(DropDownList!$B$47,CntyQryCensus!$A$156:$FR$198,EI$1)","v":306},{"$f":"VLOOKUP(DropDownList!$B$47,CntyQryCensus!$A$156:$FR$198,EJ$1)","v":16},{"$f":"VLOOKUP(DropDownList!$B$47,CntyQryCensus!$A$156:$FR$198,EK$1)","v":54},{"$f":"VLOOKUP(DropDownList!$B$47,CntyQryCensus!$A$156:$FR$198,EL$1)","v":49},{"$f":"VLOOKUP(DropDownList!$B$47,CntyQryCensus!$A$156:$FR$198,EM$1)","v":5},{"$f":"VLOOKUP(DropDownList!$B$47,CntyQryCensus!$A$156:$FR$198,EN$1)","v":53},{"$f":"VLOOKUP(DropDownList!$B$47,CntyQryCensus!$A$156:$FR$198,EO$1)","v":17},{"$f":"VLOOKUP(DropDownList!$B$47,CntyQryCensus!$A$156:$FR$198,EP$1)","v":3},{"$f":"VLOOKUP(DropDownList!$B$47,CntyQryCensus!$A$156:$FR$198,EQ$1)","v":4},{"$f":"VLOOKUP(DropDownList!$B$47,CntyQryCensus!$A$156:$FR$198,ER$1)","v":8},{"$f":"VLOOKUP(DropDownList!$B$47,CntyQryCensus!$A$156:$FR$198,ES$1)","v":2},{"$f":"VLOOKUP(DropDownList!$B$47,CntyQryCensus!$A$156:$FR$198,ET$1)","v":36},{"$f":"VLOOKUP(DropDownList!$B$47,CntyQryCensus!$A$156:$FR$198,EU$1)","v":2},{"$f":"VLOOKUP(DropDownList!$B$47,CntyQryCensus!$A$156:$FR$198,EV$1)","v":22},{"$f":"VLOOKUP(DropDownList!$B$47,CntyQryCensus!$A$156:$FR$198,EW$1)","v":10},{"$f":"VLOOKUP(DropDownList!$B$47,CntyQryCensus!$A$156:$FR$198,EX$1)","v":2},{"$f":"VLOOKUP(DropDownList!$B$47,CntyQryCensus!$A$156:$FR$198,EY$1)","v":1077},{"$f":"VLOOKUP(DropDownList!$B$47,CntyQryCensus!$A$156:$FR$198,EZ$1)","v":13},{"$f":"VLOOKUP(DropDownList!$B$47,CntyQryCensus!$A$156:$FR$198,FA$1)","v":54},{"$f":"VLOOKUP(DropDownList!$B$47,CntyQryCensus!$A$156:$FR$198,FB$1)","v":147},{"$f":"VLOOKUP(DropDownList!$B$47,CntyQryCensus!$A$156:$FR$198,FC$1)","v":37},{"$f":"VLOOKUP(DropDownList!$B$47,CntyQryCensus!$A$156:$FR$198,FD$1)","v":141},{"$f":"VLOOKUP(DropDownList!$B$47,CntyQryCensus!$A$156:$FR$198,FE$1)","v":47},{"$f":"VLOOKUP(DropDownList!$B$47,CntyQryCensus!$A$156:$FR$198,FF$1)","v":31},{"$f":"VLOOKUP(DropDownList!$B$47,CntyQryCensus!$A$156:$FR$198,FG$1)","v":58},{"$f":"VLOOKUP(DropDownList!$B$47,CntyQryCensus!$A$156:$FR$198,FH$1)","v":102},{"$f":"VLOOKUP(DropDownList!$B$47,CntyQryCensus!$A$156:$FR$198,FI$1)","v":324},{"$f":"VLOOKUP(DropDownList!$B$47,CntyQryCensus!$A$156:$FR$198,FJ$1)","v":42},{"$f":"VLOOKUP(DropDownList!$B$47,CntyQryCensus!$A$156:$FR$198,FK$1)","v":48},{"$f":"VLOOKUP(DropDownList!$B$47,CntyQryCensus!$A$156:$FR$198,FL$1)","v":33},{"$f":"VLOOKUP(DropDownList!$B$47,CntyQryCensus!$A$156:$FR$198,FM$1)","v":516},{"$f":"VLOOKUP(DropDownList!$B$47,CntyQryCensus!$A$156:$FR$198,FN$1)","v":93},{"$f":"VLOOKUP(DropDownList!$B$47,CntyQryCensus!$A$156:$FR$198,FO$1)","v":287},{"$f":"VLOOKUP(DropDownList!$B$47,CntyQryCensus!$A$156:$FR$198,FP$1)","v":4},{"$f":"VLOOKUP(DropDownList!$B$47,CntyQryCensus!$A$156:$FR$198,FQ$1)","v":78},{"$f":"VLOOKUP(DropDownList!$B$47,CntyQryCensus!$A$156:$FR$198,FR$1)","v":99}]
[]
[]
["Census 2000 SummaryFile3 Sample Data  -  SF3TownQry2aIncomeChar"]
["NAME","LOGRECNO","COUNTY","TotalPop","P52Households1","P52HHInc<10K","P52HHInc10to15K","P52HHInc15to20K","P52HHInc20to25K","P52HHInc25to30K","P52HHInc30to35K","P52HHInc35to40K","P52HHInc40to45K","P52HHInc45to50K","P52HHInc50to60K","P52HHInc60to75K","P52HHInc75to100K","P52HHInc100to125K","P52HHInc125to150K","P52HHInc150to200K","P52HHInc>200K","P53MedianHHInc","P54AggregHHInc","P55Households2","P55HHUnder25yrs","P55HH<25HHInc<10K","P55HH<25HHInc10to15K","P55HH<25HHInc15to20K","P55HH<25HHInc20to25K","P55HH<25HHInc25to30K","P55HH<25HHInc30to35K","P55HH<25HHInc35to40K","P55HH<25HHInc40to45K","P55HH<25HHInc45to50K","P55HH<25HHInc50to60K","P55HH<25HHInc60to75K","P55HH<25HHInc75to100K","P55HH<25HHInc100to125K","P55HH<25HHInc125to150K","P55HH<25HHInc150to200K","P55HH<25HHInc>200K","P55HH25to34yrs","P55HH25to34HHInc<10K","P55HH25to34HHInc10to15K","P55HH25to34HHInc15to20K","P55HH25to34HHInc20to25K","P55HH25to34HHInc25to30K","P55HH25to34HHInc30to35K","P55HH25to34HHInc35to40K","P55HH25to34HHInc40to45K","P55HH25to34HHInc45to50K","P55HH25to34HHInc50to60K","P55HH25to34HHInc60to75K","P55HH25to34HHInc75to100K","P55HH25to34HHInc100to125K","P55HH25to34HHInc125to150K","P55HH25to34HHInc150to200K","P55HH25to34HHInc>200K","P55HH35to44yrs","P55HH35to44HHInc<10K","P55HH35to44HHInc10to15K","P55HH35to44HHInc15to20K","P55HH35to44HHInc20to25K","P55HH35to44HHInc25to30K","P55HH35to44HHInc30to35K","P55HH35to44HHInc35to40K","P55HH35to44HHInc40to45K","P55HH35to44HHInc45to50K","P55HH35to44HHInc50to60K","P55HH35to44HHInc60to75K","P55HH35to44HHInc75to100K","P55HH35to44HHInc100to125K","P55HH35to44HHInc125to150K","P55HH35to44HHInc150to200K","P55HH35to44HHInc>200K","P55HH45to54yrs","P55HH45to55HHInc<10K","P55HH45to55HHInc10to15K","P55HH45to55HHInc15to20K","P55HH45to55HHInc20to25K","P55HH45to55HHInc25to30K","P55HH45to55HHInc30to35K","P55HH45to55HHInc35to40K","P55HH45to55HHInc40to45K","P55HH45to55HHInc45to50K","P55HH45to55HHInc50to60K","P55HH45to55HHInc60to75K","P55HH45to55HHInc75to100K","P55HH45to55HHInc100to125K","P55HH45to55HHInc125to150K","P55HH45to55HHInc150to200K","P55HH45to55HHInc>200K","P55HH55to64yrs","P55HH55to64HHInc<10K","P55HH55to64HHInc10to15K","P55HH55to64HHInc15to20K","P55HH55to64HHInc20to25K","P55HH55to64HHInc25to30K","P55HH55to64HHInc30to35K","P55HH55to64HHInc35to40K","P55HH55to64HHInc40to45K","P55HH55to64HHInc45to50K","P55HH55to64HHInc50to60K","P55HH55to64HHInc60to75K","P55HH55to64HHInc75to100K","P55HH55to64HHInc100to125K","P55HH55to64HHInc125to150K","P55HH55to64HHInc150to200K","P55HH55to64HHInc>200K","P55HH65to74yrs","P55HH65to74HHInc<10K","P55HH65to74HHInc10to15K","P55HH65to74HHInc15to20K","P55HH65to74HHInc20to25K","P55HH65to74HHInc25to30K","P55HH65to74HHInc30to35K","P55HH65to74HHInc35to40K","P55HH65to74HHInc40to45K","P55HH65to74HHInc45to50K","P55HH65to74HHInc50to60K","P55HH65to74HHInc60to75K","P55HH65to74HHInc75to100K","P55HH65to74HHInc100to125K","P55HH65to74HHInc125to150K","P55HH65to74HHInc150to200K","P55HH65to74HHInc>200K","P55HH>75yrs","P55HH>75HHInc<10K","P55HH>75HHInc10to15K","P55HH>75HHInc15to20K","P55HH>75HHInc20to25K","P55HH>75HHInc25to30K","P55HH>75HHInc30to35K","P55HH>75HHInc35to40K","P55HH>75HHInc40to45K","P55HH>75HHInc45to50K","P55HH>75HHInc50to60K","P55HH>75HHInc60to75K","P55HH>75HHInc75to100K","P55HH>75HHInc100to125K","P55HH>75HHInc125to150K","P55HH>75HHInc150to200K","P55HH>75HHInc>200K","P56MedHHInc","P56MedHHIncHH<25y","P56MedHHIncHH25to34y","P56MedHHIncHH35to44y","P56MedHHIncHH45to54y","P56MedHHIncHH55to64y","P56MedHHIncHH65to74y","P56MedHHIncHH>75y","P58Households3","P58HHwithEarnings","P58HHNoEarnings","P59HHwWageSalInc","P59HHNoWageSalInc","P60HHwSelfEmpInc","P60HHNoSelfEmpInc","P61HHwIndDivInc","P61HHNoIndDivInc","P62HHwSocSecInc","P62HHNoSocSecInc","P63HHwSSI","P63HHNoSSI","P64HHwPubAssInc","P64HHNoPubAssInc","P65HHwRetInc","P65HHNoRetInc","P66HHwOtherTypInc","P66HHNoOtherTypInc","P67AggregEarnings","P68AggregWageSalInc","P69AggregSelfEmpInc","P70AggregIntDivInc","P71AggregSocSecInc","P72AggregSSIInc","P73AggregPublicAssInc","P74AggregRetireInc","P76Families1","P76FamInc<10K","P76FamInc10to15K","P76FamInc15to20K","P76FamInc20to25K","P76FamInc25to30K","P76FamInc30to35K","P76FamInc35to40K","P76FamInc40to45K","P76FamInc45to50K","P76FamInc50to60K","P76FamInc60to75K","P76FamInc75to100K","P76FamInc100to125K","P76FamInc125to150K","P76FamInc150to200K","P76FamInc>200K","P77MedFamInc","P78AggregFamInc","P79NonFamHH","P79NonFamHHwInc<10K","P79NonFamHHwInc10to15K","P79NonFamHHwInc15to20K","P79NonFamHHwInc20to25K","P79NonFamHHwInc25to30K","P79NonFamHHwInc30to35K","P79NonFamHHwInc35to40K","P79NonFamHHwInc40to45K","P79NonFamHHwInc45to50K","P79NonFamHHwInc50to60K","P79NonFamHHwInc60to75K","P79NonFamHHwInc75to100K","P79NonFamHHwInc100to125K","P79NonFamHHwInc125to150K","P79NonFamHHwInc150to200K","P79NonFamHHwInc200KorMore","P80MedNonFamInc","P82PerCapitaInc"]
[{"$f":"VLOOKUP(DropDownList!$B$47,CntyQryCensus!$A$206:$HH$248,A$1)","v":"Grantham"},{"$f":"VLOOKUP(DropDownList!$B$47,CntyQryCensus!$A$206:$HH$248,B$1)","v":"0004212"},{"$f":"VLOOKUP(DropDownList!$B$47,CntyQryCensus!$A$206:$HH$248,C$1)","v":"31220"},{"$f":"VLOOKUP(DropDownList!$B$47,CntyQryCensus!$A$206:$HH$248,D$1)","v":2167},{"$f":"VLOOKUP(DropDownList!$B$47,CntyQryCensus!$A$206:$HH$248,E$1)","v":933},{"$f":"VLOOKUP(DropDownList!$B$47,CntyQryCensus!$A$206:$HH$248,F$1)","v":36},{"$f":"VLOOKUP(DropDownList!$B$47,CntyQryCensus!$A$206:$HH$248,G$1)","v":12},{"$f":"VLOOKUP(DropDownList!$B$47,CntyQryCensus!$A$206:$HH$248,H$1)","v":14},{"$f":"VLOOKUP(DropDownList!$B$47,CntyQryCensus!$A$206:$HH$248,I$1)","v":38},{"$f":"VLOOKUP(DropDownList!$B$47,CntyQryCensus!$A$206:$HH$248,J$1)","v":42},{"$f":"VLOOKUP(DropDownList!$B$47,CntyQryCensus!$A$206:$HH$248,K$1)","v":26},{"$f":"VLOOKUP(DropDownList!$B$47,CntyQryCensus!$A$206:$HH$248,L$1)","v":48},{"$f":"VLOOKUP(DropDownList!$B$47,CntyQryCensus!$A$206:$HH$248,M$1)","v":59},{"$f":"VLOOKUP(DropDownList!$B$47,CntyQryCensus!$A$206:$HH$248,N$1)","v":40},{"$f":"VLOOKUP(DropDownList!$B$47,CntyQryCensus!$A$206:$HH$248,O$1)","v":113},{"$f":"VLOOKUP(DropDownList!$B$47,CntyQryCensus!$A$206:$HH$248,P$1)","v":146},{"$f":"VLOOKUP(DropDownList!$B$47,CntyQryCensus!$A$206:$HH$248,Q$1)","v":163},{"$f":"VLOOKUP(DropDownList!$B$47,CntyQryCensus!$A$206:$HH$248,R$1)","v":84},{"$f":"VLOOKUP(DropDownList!$B$47,CntyQryCensus!$A$206:$HH$248,S$1)","v":45},{"$f":"VLOOKUP(DropDownList!$B$47,CntyQryCensus!$A$206:$HH$248,T$1)","v":35},{"$f":"VLOOKUP(DropDownList!$B$47,CntyQryCensus!$A$206:$HH$248,U$1)","v":32},{"$f":"VLOOKUP(DropDownList!$B$47,CntyQryCensus!$A$206:$HH$248,V$1)","v":63239},{"$f":"VLOOKUP(DropDownList!$B$47,CntyQryCensus!$A$206:$HH$248,W$1)","v":70319700},{"$f":"VLOOKUP(DropDownList!$B$47,CntyQryCensus!$A$206:$HH$248,X$1)","v":933},{"$f":"VLOOKUP(DropDownList!$B$47,CntyQryCensus!$A$206:$HH$248,Y$1)","v":15},{"$f":"VLOOKUP(DropDownList!$B$47,CntyQryCensus!$A$206:$HH$248,Z$1)","v":3},{"$f":"VLOOKUP(DropDownList!$B$47,CntyQryCensus!$A$206:$HH$248,AA$1)","v":0},{"$f":"VLOOKUP(DropDownList!$B$47,CntyQryCensus!$A$206:$HH$248,AB$1)","v":0},{"$f":"VLOOKUP(DropDownList!$B$47,CntyQryCensus!$A$206:$HH$248,AC$1)","v":3},{"$f":"VLOOKUP(DropDownList!$B$47,CntyQryCensus!$A$206:$HH$248,AD$1)","v":4},{"$f":"VLOOKUP(DropDownList!$B$47,CntyQryCensus!$A$206:$HH$248,AE$1)","v":0},{"$f":"VLOOKUP(DropDownList!$B$47,CntyQryCensus!$A$206:$HH$248,AF$1)","v":0},{"$f":"VLOOKUP(DropDownList!$B$47,CntyQryCensus!$A$206:$HH$248,AG$1)","v":0},{"$f":"VLOOKUP(DropDownList!$B$47,CntyQryCensus!$A$206:$HH$248,AH$1)","v":0},{"$f":"VLOOKUP(DropDownList!$B$47,CntyQryCensus!$A$206:$HH$248,AI$1)","v":3},{"$f":"VLOOKUP(DropDownList!$B$47,CntyQryCensus!$A$206:$HH$248,AJ$1)","v":2},{"$f":"VLOOKUP(DropDownList!$B$47,CntyQryCensus!$A$206:$HH$248,AK$1)","v":0},{"$f":"VLOOKUP(DropDownList!$B$47,CntyQryCensus!$A$206:$HH$248,AL$1)","v":0},{"$f":"VLOOKUP(DropDownList!$B$47,CntyQryCensus!$A$206:$HH$248,AM$1)","v":0},{"$f":"VLOOKUP(DropDownList!$B$47,CntyQryCensus!$A$206:$HH$248,AN$1)","v":0},{"$f":"VLOOKUP(DropDownList!$B$47,CntyQryCensus!$A$206:$HH$248,AO$1)","v":0},{"$f":"VLOOKUP(DropDownList!$B$47,CntyQryCensus!$A$206:$HH$248,AP$1)","v":105},{"$f":"VLOOKUP(DropDownList!$B$47,CntyQryCensus!$A$206:$HH$248,AQ$1)","v":0},{"$f":"VLOOKUP(DropDownList!$B$47,CntyQryCensus!$A$206:$HH$248,AR$1)","v":0},{"$f":"VLOOKUP(DropDownList!$B$47,CntyQryCensus!$A$206:$HH$248,AS$1)","v":0},{"$f":"VLOOKUP(DropDownList!$B$47,CntyQryCensus!$A$206:$HH$248,AT$1)","v":0},{"$f":"VLOOKUP(DropDownList!$B$47,CntyQryCensus!$A$206:$HH$248,AU$1)","v":2},{"$f":"VLOOKUP(DropDownList!$B$47,CntyQryCensus!$A$206:$HH$248,AV$1)","v":0},{"$f":"VLOOKUP(DropDownList!$B$47,CntyQryCensus!$A$206:$HH$248,AW$1)","v":9},{"$f":"VLOOKUP(DropDownList!$B$47,CntyQryCensus!$A$206:$HH$248,AX$1)","v":10},{"$f":"VLOOKUP(DropDownList!$B$47,CntyQryCensus!$A$206:$HH$248,AY$1)","v":6},{"$f":"VLOOKUP(DropDownList!$B$47,CntyQryCensus!$A$206:$HH$248,AZ$1)","v":9},{"$f":"VLOOKUP(DropDownList!$B$47,CntyQryCensus!$A$206:$HH$248,BA$1)","v":26},{"$f":"VLOOKUP(DropDownList!$B$47,CntyQryCensus!$A$206:$HH$248,BB$1)","v":22},{"$f":"VLOOKUP(DropDownList!$B$47,CntyQryCensus!$A$206:$HH$248,BC$1)","v":5},{"$f":"VLOOKUP(DropDownList!$B$47,CntyQryCensus!$A$206:$HH$248,BD$1)","v":7},{"$f":"VLOOKUP(DropDownList!$B$47,CntyQryCensus!$A$206:$HH$248,BE$1)","v":7},{"$f":"VLOOKUP(DropDownList!$B$47,CntyQryCensus!$A$206:$HH$248,BF$1)","v":2},{"$f":"VLOOKUP(DropDownList!$B$47,CntyQryCensus!$A$206:$HH$248,BG$1)","v":158},{"$f":"VLOOKUP(DropDownList!$B$47,CntyQryCensus!$A$206:$HH$248,BH$1)","v":5},{"$f":"VLOOKUP(DropDownList!$B$47,CntyQryCensus!$A$206:$HH$248,BI$1)","v":3},{"$f":"VLOOKUP(DropDownList!$B$47,CntyQryCensus!$A$206:$HH$248,BJ$1)","v":5},{"$f":"VLOOKUP(DropDownList!$B$47,CntyQryCensus!$A$206:$HH$248,BK$1)","v":8},{"$f":"VLOOKUP(DropDownList!$B$47,CntyQryCensus!$A$206:$HH$248,BL$1)","v":2},{"$f":"VLOOKUP(DropDownList!$B$47,CntyQryCensus!$A$206:$HH$248,BM$1)","v":3},{"$f":"VLOOKUP(DropDownList!$B$47,CntyQryCensus!$A$206:$HH$248,BN$1)","v":6},{"$f":"VLOOKUP(DropDownList!$B$47,CntyQryCensus!$A$206:$HH$248,BO$1)","v":4},{"$f":"VLOOKUP(DropDownList!$B$47,CntyQryCensus!$A$206:$HH$248,BP$1)","v":9},{"$f":"VLOOKUP(DropDownList!$B$47,CntyQryCensus!$A$206:$HH$248,BQ$1)","v":31},{"$f":"VLOOKUP(DropDownList!$B$47,CntyQryCensus!$A$206:$HH$248,BR$1)","v":21},{"$f":"VLOOKUP(DropDownList!$B$47,CntyQryCensus!$A$206:$HH$248,BS$1)","v":40},{"$f":"VLOOKUP(DropDownList!$B$47,CntyQryCensus!$A$206:$HH$248,BT$1)","v":12},{"$f":"VLOOKUP(DropDownList!$B$47,CntyQryCensus!$A$206:$HH$248,BU$1)","v":0},{"$f":"VLOOKUP(DropDownList!$B$47,CntyQryCensus!$A$206:$HH$248,BV$1)","v":6},{"$f":"VLOOKUP(DropDownList!$B$47,CntyQryCensus!$A$206:$HH$248,BW$1)","v":3},{"$f":"VLOOKUP(DropDownList!$B$47,CntyQryCensus!$A$206:$HH$248,BX$1)","v":203},{"$f":"VLOOKUP(DropDownList!$B$47,CntyQryCensus!$A$206:$HH$248,BY$1)","v":5},{"$f":"VLOOKUP(DropDownList!$B$47,CntyQryCensus!$A$206:$HH$248,BZ$1)","v":0},{"$f":"VLOOKUP(DropDownList!$B$47,CntyQryCensus!$A$206:$HH$248,CA$1)","v":3},{"$f":"VLOOKUP(DropDownList!$B$47,CntyQryCensus!$A$206:$HH$248,CB$1)","v":5},{"$f":"VLOOKUP(DropDownList!$B$47,CntyQryCensus!$A$206:$HH$248,CC$1)","v":8},{"$f":"VLOOKUP(DropDownList!$B$47,CntyQryCensus!$A$206:$HH$248,CD$1)","v":4},{"$f":"VLOOKUP(DropDownList!$B$47,CntyQryCensus!$A$206:$HH$248,CE$1)","v":8},{"$f":"VLOOKUP(DropDownList!$B$47,CntyQryCensus!$A$206:$HH$248,CF$1)","v":8},{"$f":"VLOOKUP(DropDownList!$B$47,CntyQryCensus!$A$206:$HH$248,CG$1)","v":7},{"$f":"VLOOKUP(DropDownList!$B$47,CntyQryCensus!$A$206:$HH$248,CH$1)","v":25},{"$f":"VLOOKUP(DropDownList!$B$47,CntyQryCensus!$A$206:$HH$248,CI$1)","v":41},{"$f":"VLOOKUP(DropDownList!$B$47,CntyQryCensus!$A$206:$HH$248,CJ$1)","v":33},{"$f":"VLOOKUP(DropDownList!$B$47,CntyQryCensus!$A$206:$HH$248,CK$1)","v":24},{"$f":"VLOOKUP(DropDownList!$B$47,CntyQryCensus!$A$206:$HH$248,CL$1)","v":16},{"$f":"VLOOKUP(DropDownList!$B$47,CntyQryCensus!$A$206:$HH$248,CM$1)","v":9},{"$f":"VLOOKUP(DropDownList!$B$47,CntyQryCensus!$A$206:$HH$248,CN$1)","v":7},{"$f":"VLOOKUP(DropDownList!$B$47,CntyQryCensus!$A$206:$HH$248,CO$1)","v":156},{"$f":"VLOOKUP(DropDownList!$B$47,CntyQryCensus!$A$206:$HH$248,CP$1)","v":5},{"$f":"VLOOKUP(DropDownList!$B$47,CntyQryCensus!$A$206:$HH$248,CQ$1)","v":0},{"$f":"VLOOKUP(DropDownList!$B$47,CntyQryCensus!$A$206:$HH$248,CR$1)","v":0},{"$f":"VLOOKUP(DropDownList!$B$47,CntyQryCensus!$A$206:$HH$248,CS$1)","v":5},{"$f":"VLOOKUP(DropDownList!$B$47,CntyQryCensus!$A$206:$HH$248,CT$1)","v":7},{"$f":"VLOOKUP(DropDownList!$B$47,CntyQryCensus!$A$206:$HH$248,CU$1)","v":8},{"$f":"VLOOKUP(DropDownList!$B$47,CntyQryCensus!$A$206:$HH$248,CV$1)","v":9},{"$f":"VLOOKUP(DropDownList!$B$47,CntyQryCensus!$A$206:$HH$248,CW$1)","v":11},{"$f":"VLOOKUP(DropDownList!$B$47,CntyQryCensus!$A$206:$HH$248,CX$1)","v":9},{"$f":"VLOOKUP(DropDownList!$B$47,CntyQryCensus!$A$206:$HH$248,CY$1)","v":16},{"$f":"VLOOKUP(DropDownList!$B$47,CntyQryCensus!$A$206:$HH$248,CZ$1)","v":23},{"$f":"VLOOKUP(DropDownList!$B$47,CntyQryCensus!$A$206:$HH$248,DA$1)","v":24},{"$f":"VLOOKUP(DropDownList!$B$47,CntyQryCensus!$A$206:$HH$248,DB$1)","v":16},{"$f":"VLOOKUP(DropDownList!$B$47,CntyQryCensus!$A$206:$HH$248,DC$1)","v":8},{"$f":"VLOOKUP(DropDownList!$B$47,CntyQryCensus!$A$206:$HH$248,DD$1)","v":5},{"$f":"VLOOKUP(DropDownList!$B$47,CntyQryCensus!$A$206:$HH$248,DE$1)","v":10},{"$f":"VLOOKUP(DropDownList!$B$47,CntyQryCensus!$A$206:$HH$248,DF$1)","v":186},{"$f":"VLOOKUP(DropDownList!$B$47,CntyQryCensus!$A$206:$HH$248,DG$1)","v":13},{"$f":"VLOOKUP(DropDownList!$B$47,CntyQryCensus!$A$206:$HH$248,DH$1)","v":5},{"$f":"VLOOKUP(DropDownList!$B$47,CntyQryCensus!$A$206:$HH$248,DI$1)","v":6},{"$f":"VLOOKUP(DropDownList!$B$47,CntyQryCensus!$A$206:$HH$248,DJ$1)","v":7},{"$f":"VLOOKUP(DropDownList!$B$47,CntyQryCensus!$A$206:$HH$248,DK$1)","v":16},{"$f":"VLOOKUP(DropDownList!$B$47,CntyQryCensus!$A$206:$HH$248,DL$1)","v":11},{"$f":"VLOOKUP(DropDownList!$B$47,CntyQryCensus!$A$206:$HH$248,DM$1)","v":10},{"$f":"VLOOKUP(DropDownList!$B$47,CntyQryCensus!$A$206:$HH$248,DN$1)","v":4},{"$f":"VLOOKUP(DropDownList!$B$47,CntyQryCensus!$A$206:$HH$248,DO$1)","v":7},{"$f":"VLOOKUP(DropDownList!$B$47,CntyQryCensus!$A$206:$HH$248,DP$1)","v":22},{"$f":"VLOOKUP(DropDownList!$B$47,CntyQryCensus!$A$206:$HH$248,DQ$1)","v":16},{"$f":"VLOOKUP(DropDownList!$B$47,CntyQryCensus!$A$206:$HH$248,DR$1)","v":33},{"$f":"VLOOKUP(DropDownList!$B$47,CntyQryCensus!$A$206:$HH$248,DS$1)","v":16},{"$f":"VLOOKUP(DropDownList!$B$47,CntyQryCensus!$A$206:$HH$248,DT$1)","v":6},{"$f":"VLOOKUP(DropDownList!$B$47,CntyQryCensus!$A$206:$HH$248,DU$1)","v":6},{"$f":"VLOOKUP(DropDownList!$B$47,CntyQryCensus!$A$206:$HH$248,DV$1)","v":8},{"$f":"VLOOKUP(DropDownList!$B$47,CntyQryCensus!$A$206:$HH$248,DW$1)","v":110},{"$f":"VLOOKUP(DropDownList!$B$47,CntyQryCensus!$A$206:$HH$248,DX$1)","v":5},{"$f":"VLOOKUP(DropDownList!$B$47,CntyQryCensus!$A$206:$HH$248,DY$1)","v":4},{"$f":"VLOOKUP(DropDownList!$B$47,CntyQryCensus!$A$206:$HH$248,DZ$1)","v":0},{"$f":"VLOOKUP(DropDownList!$B$47,CntyQryCensus!$A$206:$HH$248,EA$1)","v":10},{"$f":"VLOOKUP(DropDownList!$B$47,CntyQryCensus!$A$206:$HH$248,EB$1)","v":3},{"$f":"VLOOKUP(DropDownList!$B$47,CntyQryCensus!$A$206:$HH$248,EC$1)","v":0},{"$f":"VLOOKUP(DropDownList!$B$47,CntyQryCensus!$A$206:$HH$248,ED$1)","v":6},{"$f":"VLOOKUP(DropDownList!$B$47,CntyQryCensus!$A$206:$HH$248,EE$1)","v":22},{"$f":"VLOOKUP(DropDownList!$B$47,CntyQryCensus!$A$206:$HH$248,EF$1)","v":2},{"$f":"VLOOKUP(DropDownList!$B$47,CntyQryCensus!$A$206:$HH$248,EG$1)","v":7},{"$f":"VLOOKUP(DropDownList!$B$47,CntyQryCensus!$A$206:$HH$248,EH$1)","v":17},{"$f":"VLOOKUP(DropDownList!$B$47,CntyQryCensus!$A$206:$HH$248,EI$1)","v":11},{"$f":"VLOOKUP(DropDownList!$B$47,CntyQryCensus!$A$206:$HH$248,EJ$1)","v":11},{"$f":"VLOOKUP(DropDownList!$B$47,CntyQryCensus!$A$206:$HH$248,EK$1)","v":8},{"$f":"VLOOKUP(DropDownList!$B$47,CntyQryCensus!$A$206:$HH$248,EL$1)","v":2},{"$f":"VLOOKUP(DropDownList!$B$47,CntyQryCensus!$A$206:$HH$248,EM$1)","v":2},{"$f":"VLOOKUP(DropDownList!$B$47,CntyQryCensus!$A$206:$HH$248,EN$1)","v":63239},{"$f":"VLOOKUP(DropDownList!$B$47,CntyQryCensus!$A$206:$HH$248,EO$1)","v":25938},{"$f":"VLOOKUP(DropDownList!$B$47,CntyQryCensus!$A$206:$HH$248,EP$1)","v":72031},{"$f":"VLOOKUP(DropDownList!$B$47,CntyQryCensus!$A$206:$HH$248,EQ$1)","v":60833},{"$f":"VLOOKUP(DropDownList!$B$47,CntyQryCensus!$A$206:$HH$248,ER$1)","v":67159},{"$f":"VLOOKUP(DropDownList!$B$47,CntyQryCensus!$A$206:$HH$248,ES$1)","v":67000},{"$f":"VLOOKUP(DropDownList!$B$47,CntyQryCensus!$A$206:$HH$248,ET$1)","v":55000},{"$f":"VLOOKUP(DropDownList!$B$47,CntyQryCensus!$A$206:$HH$248,EU$1)","v":52500},{"$f":"VLOOKUP(DropDownList!$B$47,CntyQryCensus!$A$206:$HH$248,EV$1)","v":933},{"$f":"VLOOKUP(DropDownList!$B$47,CntyQryCensus!$A$206:$HH$248,EW$1)","v":695},{"$f":"VLOOKUP(DropDownList!$B$47,CntyQryCensus!$A$206:$HH$248,EX$1)","v":238},{"$f":"VLOOKUP(DropDownList!$B$47,CntyQryCensus!$A$206:$HH$248,EY$1)","v":659},{"$f":"VLOOKUP(DropDownList!$B$47,CntyQryCensus!$A$206:$HH$248,EZ$1)","v":274},{"$f":"VLOOKUP(DropDownList!$B$47,CntyQryCensus!$A$206:$HH$248,FA$1)","v":169},{"$f":"VLOOKUP(DropDownList!$B$47,CntyQryCensus!$A$206:$HH$248,FB$1)","v":764},{"$f":"VLOOKUP(DropDownList!$B$47,CntyQryCensus!$A$206:$HH$248,FC$1)","v":586},{"$f":"VLOOKUP(DropDownList!$B$47,CntyQryCensus!$A$206:$HH$248,FD$1)","v":347},{"$f":"VLOOKUP(DropDownList!$B$47,CntyQryCensus!$A$206:$HH$248,FE$1)","v":327},{"$f":"VLOOKUP(DropDownList!$B$47,CntyQryCensus!$A$206:$HH$248,FF$1)","v":606},{"$f":"VLOOKUP(DropDownList!$B$47,CntyQryCensus!$A$206:$HH$248,FG$1)","v":8},{"$f":"VLOOKUP(DropDownList!$B$47,CntyQryCensus!$A$206:$HH$248,FH$1)","v":925},{"$f":"VLOOKUP(DropDownList!$B$47,CntyQryCensus!$A$206:$HH$248,FI$1)","v":4},{"$f":"VLOOKUP(DropDownList!$B$47,CntyQryCensus!$A$206:$HH$248,FJ$1)","v":929},{"$f":"VLOOKUP(DropDownList!$B$47,CntyQryCensus!$A$206:$HH$248,FK$1)","v":246},{"$f":"VLOOKUP(DropDownList!$B$47,CntyQryCensus!$A$206:$HH$248,FL$1)","v":687},{"$f":"VLOOKUP(DropDownList!$B$47,CntyQryCensus!$A$206:$HH$248,FM$1)","v":120},{"$f":"VLOOKUP(DropDownList!$B$47,CntyQryCensus!$A$206:$HH$248,FN$1)","v":813},{"$f":"VLOOKUP(DropDownList!$B$47,CntyQryCensus!$A$206:$HH$248,FO$1)","v":46919500},{"$f":"VLOOKUP(DropDownList!$B$47,CntyQryCensus!$A$206:$HH$248,FP$1)","v":40081600},{"$f":"VLOOKUP(DropDownList!$B$47,CntyQryCensus!$A$206:$HH$248,FQ$1)","v":6837900},{"$f":"VLOOKUP(DropDownList!$B$47,CntyQryCensus!$A$206:$HH$248,FR$1)","v":9066700},{"$f":"VLOOKUP(DropDownList!$B$47,CntyQryCensus!$A$206:$HH$248,FS$1)","v":4370300},{"$f":"VLOOKUP(DropDownList!$B$47,CntyQryCensus!$A$206:$HH$248,FT$1)","v":48700},{"$f":"VLOOKUP(DropDownList!$B$47,CntyQryCensus!$A$206:$HH$248,FU$1)","v":5900},{"$f":"VLOOKUP(DropDownList!$B$47,CntyQryCensus!$A$206:$HH$248,FV$1)","v":8358900},{"$f":"VLOOKUP(DropDownList!$B$47,CntyQryCensus!$A$206:$HH$248,FW$1)","v":709},{"$f":"VLOOKUP(DropDownList!$B$47,CntyQryCensus!$A$206:$HH$248,FX$1)","v":7},{"$f":"VLOOKUP(DropDownList!$B$47,CntyQryCensus!$A$206:$HH$248,FY$1)","v":12},{"$f":"VLOOKUP(DropDownList!$B$47,CntyQryCensus!$A$206:$HH$248,FZ$1)","v":9},{"$f":"VLOOKUP(DropDownList!$B$47,CntyQryCensus!$A$206:$HH$248,GA$1)","v":17},{"$f":"VLOOKUP(DropDownList!$B$47,CntyQryCensus!$A$206:$HH$248,GB$1)","v":22},{"$f":"VLOOKUP(DropDownList!$B$47,CntyQryCensus!$A$206:$HH$248,GC$1)","v":22},{"$f":"VLOOKUP(DropDownList!$B$47,CntyQryCensus!$A$206:$HH$248,GD$1)","v":31},{"$f":"VLOOKUP(DropDownList!$B$47,CntyQryCensus!$A$206:$HH$248,GE$1)","v":42},{"$f":"VLOOKUP(DropDownList!$B$47,CntyQryCensus!$A$206:$HH$248,GF$1)","v":30},{"$f":"VLOOKUP(DropDownList!$B$47,CntyQryCensus!$A$206:$HH$248,GG$1)","v":96},{"$f":"VLOOKUP(DropDownList!$B$47,CntyQryCensus!$A$206:$HH$248,GH$1)","v":115},{"$f":"VLOOKUP(DropDownList!$B$47,CntyQryCensus!$A$206:$HH$248,GI$1)","v":148},{"$f":"VLOOKUP(DropDownList!$B$47,CntyQryCensus!$A$206:$HH$248,GJ$1)","v":70},{"$f":"VLOOKUP(DropDownList!$B$47,CntyQryCensus!$A$206:$HH$248,GK$1)","v":35},{"$f":"VLOOKUP(DropDownList!$B$47,CntyQryCensus!$A$206:$HH$248,GL$1)","v":29},{"$f":"VLOOKUP(DropDownList!$B$47,CntyQryCensus!$A$206:$HH$248,GM$1)","v":24},{"$f":"VLOOKUP(DropDownList!$B$47,CntyQryCensus!$A$206:$HH$248,GN$1)","v":69271},{"$f":"VLOOKUP(DropDownList!$B$47,CntyQryCensus!$A$206:$HH$248,GO$1)","v":56337300},{"$f":"VLOOKUP(DropDownList!$B$47,CntyQryCensus!$A$206:$HH$248,GP$1)","v":224},{"$f":"VLOOKUP(DropDownList!$B$47,CntyQryCensus!$A$206:$HH$248,GQ$1)","v":29},{"$f":"VLOOKUP(DropDownList!$B$47,CntyQryCensus!$A$206:$HH$248,GR$1)","v":3},{"$f":"VLOOKUP(DropDownList!$B$47,CntyQryCensus!$A$206:$HH$248,GS$1)","v":5},{"$f":"VLOOKUP(DropDownList!$B$47,CntyQryCensus!$A$206:$HH$248,GT$1)","v":24},{"$f":"VLOOKUP(DropDownList!$B$47,CntyQryCensus!$A$206:$HH$248,GU$1)","v":20},{"$f":"VLOOKUP(DropDownList!$B$47,CntyQryCensus!$A$206:$HH$248,GV$1)","v":4},{"$f":"VLOOKUP(DropDownList!$B$47,CntyQryCensus!$A$206:$HH$248,GW$1)","v":14},{"$f":"VLOOKUP(DropDownList!$B$47,CntyQryCensus!$A$206:$HH$248,GX$1)","v":17},{"$f":"VLOOKUP(DropDownList!$B$47,CntyQryCensus!$A$206:$HH$248,GY$1)","v":12},{"$f":"VLOOKUP(DropDownList!$B$47,CntyQryCensus!$A$206:$HH$248,GZ$1)","v":16},{"$f":"VLOOKUP(DropDownList!$B$47,CntyQryCensus!$A$206:$HH$248,HA$1)","v":31},{"$f":"VLOOKUP(DropDownList!$B$47,CntyQryCensus!$A$206:$HH$248,HB$1)","v":13},{"$f":"VLOOKUP(DropDownList!$B$47,CntyQryCensus!$A$206:$HH$248,HC$1)","v":12},{"$f":"VLOOKUP(DropDownList!$B$47,CntyQryCensus!$A$206:$HH$248,HD$1)","v":10},{"$f":"VLOOKUP(DropDownList!$B$47,CntyQryCensus!$A$206:$HH$248,HE$1)","v":6},{"$f":"VLOOKUP(DropDownList!$B$47,CntyQryCensus!$A$206:$HH$248,HF$1)","v":8},{"$f":"VLOOKUP(DropDownList!$B$47,CntyQryCensus!$A$206:$HH$248,HG$1)","v":44000},{"$f":"VLOOKUP(DropDownList!$B$47,CntyQryCensus!$A$206:$HH$248,HH$1)","v":32174}]
[]
[]
["Census 2000 SummaryFile3 Sample Data  -  SF3TownQry2bPovertyChar"]
["NAME","LOGRECNO","COUNTY","TotalPop","P52Households1","P82PerCapitaInc","P87PopForPovStatus","P87PopWIncBelowPovStatus","P87PopUnder5yrBelowPoverty","P87Pop5yrBelowPoverty","P87Pop5to11yrBelowPoverty","P87Pop12to17yrBelowPoverty","P87Pop18to64yrBelowPoverty","P87Pop65to74yrBelowPoverty","P87PopOver75yrBelowPoverty","P87PopWIncAbovePovStatus","P87PopUnder5yrAbovePoverty","P87Pop5yrAbovePoverty","P87Pop5to11yrAbovePoverty","P87Pop12to17yrAbovePoverty","P87Pop18to64yrAbovePoverty","P87Pop65to74yrAbovePoverty","P87PopOver75yrAbovePoverty","P90Families","P90FamWIncBelowPov","P90MarCupFamWIncBelowPov","P90MCFamWRltdChld<18WIncBelowPov","P90MCFamWRltdChld<5WIncBelowPov","P90MaleHhlrWIncBelowPov","P90MaleHhlrWRltdChld<18yrWIncBelowPov","P90MaleHhlrWRltdChld<5yrWIncBelowPov","P90FemaleHhlrWIncBelowPov","P90FemaleHhlrWRltdChld<18yWIncBelowPov","P90FemaleHhlrWRltdChld<5yWIncBelowPov","P90FamWIncAbovePov","P90MarCupFamWIncAbovePov","P90MCFamWRltdChld<18WIncAbovePov","P90MCFamWRltdChld<5WIncAbovePov","P90MaleHhlrWIncAbovePov","P90MaleHhlrWRltdChld<18yrWIncAbovePov","P90MaleHhlrWRltdChld<5yrWIncAbovePov","P90FemaleHhlrWIncAbovePov","P90FemaleHhlrWRltdChld<18yWIncAbovePov","P90FemaleHhlrWRltdChld<5yWIncAbovePov","P92Households","P92HHwIncBelowPov","P92FamHHwIncBelowPov","P92MCFamHHwIncBelowPov","P92MaleFamHHwIncBelowPov","P92FemaleFamHHwIncBelowPov","P92NonFamHHwIncBelowPov","P92NonFamMaleHHwIncBelowPov","P92NonFamFemaleHHwIncBelowPov","P92HHwIncAbovePov","P92FamHHwIncAbovePov","P92MCFamHHwIncAbovePov","P92MaleFamHHwIncAbovePov","P92FemaleFamHHwIncAbovePov","P92NonFamHHwIncAbovePov","P92NonFamMaleHHwIncAbovePov","P92NonFamFemaleHHwIncAbovePov"]
[{"$f":"VLOOKUP(DropDownList!$B$47,CntyQryCensus!$A$256:$BI$298,A$1)","v":"Grantham"},{"$f":"VLOOKUP(DropDownList!$B$47,CntyQryCensus!$A$256:$BI$298,B$1)","v":"0004212"},{"$f":"VLOOKUP(DropDownList!$B$47,CntyQryCensus!$A$256:$BI$298,C$1)","v":"31220"},{"$f":"VLOOKUP(DropDownList!$B$47,CntyQryCensus!$A$256:$BI$298,D$1)","v":2167},{"$f":"VLOOKUP(DropDownList!$B$47,CntyQryCensus!$A$256:$BI$298,E$1)","v":933},{"$f":"VLOOKUP(DropDownList!$B$47,CntyQryCensus!$A$256:$BI$298,F$1)","v":32174},{"$f":"VLOOKUP(DropDownList!$B$47,CntyQryCensus!$A$256:$BI$298,G$1)","v":2173},{"$f":"VLOOKUP(DropDownList!$B$47,CntyQryCensus!$A$256:$BI$298,H$1)","v":54},{"$f":"VLOOKUP(DropDownList!$B$47,CntyQryCensus!$A$256:$BI$298,I$1)","v":8},{"$f":"VLOOKUP(DropDownList!$B$47,CntyQryCensus!$A$256:$BI$298,J$1)","v":0},{"$f":"VLOOKUP(DropDownList!$B$47,CntyQryCensus!$A$256:$BI$298,K$1)","v":0},{"$f":"VLOOKUP(DropDownList!$B$47,CntyQryCensus!$A$256:$BI$298,L$1)","v":0},{"$f":"VLOOKUP(DropDownList!$B$47,CntyQryCensus!$A$256:$BI$298,M$1)","v":28},{"$f":"VLOOKUP(DropDownList!$B$47,CntyQryCensus!$A$256:$BI$298,N$1)","v":13},{"$f":"VLOOKUP(DropDownList!$B$47,CntyQryCensus!$A$256:$BI$298,O$1)","v":5},{"$f":"VLOOKUP(DropDownList!$B$47,CntyQryCensus!$A$256:$BI$298,P$1)","v":2119},{"$f":"VLOOKUP(DropDownList!$B$47,CntyQryCensus!$A$256:$BI$298,Q$1)","v":101},{"$f":"VLOOKUP(DropDownList!$B$47,CntyQryCensus!$A$256:$BI$298,R$1)","v":30},{"$f":"VLOOKUP(DropDownList!$B$47,CntyQryCensus!$A$256:$BI$298,S$1)","v":164},{"$f":"VLOOKUP(DropDownList!$B$47,CntyQryCensus!$A$256:$BI$298,T$1)","v":132},{"$f":"VLOOKUP(DropDownList!$B$47,CntyQryCensus!$A$256:$BI$298,U$1)","v":1232},{"$f":"VLOOKUP(DropDownList!$B$47,CntyQryCensus!$A$256:$BI$298,V$1)","v":313},{"$f":"VLOOKUP(DropDownList!$B$47,CntyQryCensus!$A$256:$BI$298,W$1)","v":147},{"$f":"VLOOKUP(DropDownList!$B$47,CntyQryCensus!$A$256:$BI$298,X$1)","v":709},{"$f":"VLOOKUP(DropDownList!$B$47,CntyQryCensus!$A$256:$BI$298,Y$1)","v":10},{"$f":"VLOOKUP(DropDownList!$B$47,CntyQryCensus!$A$256:$BI$298,Z$1)","v":3},{"$f":"VLOOKUP(DropDownList!$B$47,CntyQryCensus!$A$256:$BI$298,AA$1)","v":3},{"$f":"VLOOKUP(DropDownList!$B$47,CntyQryCensus!$A$256:$BI$298,AB$1)","v":3},{"$f":"VLOOKUP(DropDownList!$B$47,CntyQryCensus!$A$256:$BI$298,AC$1)","v":2},{"$f":"VLOOKUP(DropDownList!$B$47,CntyQryCensus!$A$256:$BI$298,AD$1)","v":0},{"$f":"VLOOKUP(DropDownList!$B$47,CntyQryCensus!$A$256:$BI$298,AE$1)","v":0},{"$f":"VLOOKUP(DropDownList!$B$47,CntyQryCensus!$A$256:$BI$298,AF$1)","v":5},{"$f":"VLOOKUP(DropDownList!$B$47,CntyQryCensus!$A$256:$BI$298,AG$1)","v":5},{"$f":"VLOOKUP(DropDownList!$B$47,CntyQryCensus!$A$256:$BI$298,AH$1)","v":5},{"$f":"VLOOKUP(DropDownList!$B$47,CntyQryCensus!$A$256:$BI$298,AI$1)","v":699},{"$f":"VLOOKUP(DropDownList!$B$47,CntyQryCensus!$A$256:$BI$298,AJ$1)","v":653},{"$f":"VLOOKUP(DropDownList!$B$47,CntyQryCensus!$A$256:$BI$298,AK$1)","v":204},{"$f":"VLOOKUP(DropDownList!$B$47,CntyQryCensus!$A$256:$BI$298,AL$1)","v":42},{"$f":"VLOOKUP(DropDownList!$B$47,CntyQryCensus!$A$256:$BI$298,AM$1)","v":15},{"$f":"VLOOKUP(DropDownList!$B$47,CntyQryCensus!$A$256:$BI$298,AN$1)","v":5},{"$f":"VLOOKUP(DropDownList!$B$47,CntyQryCensus!$A$256:$BI$298,AO$1)","v":0},{"$f":"VLOOKUP(DropDownList!$B$47,CntyQryCensus!$A$256:$BI$298,AP$1)","v":31},{"$f":"VLOOKUP(DropDownList!$B$47,CntyQryCensus!$A$256:$BI$298,AQ$1)","v":21},{"$f":"VLOOKUP(DropDownList!$B$47,CntyQryCensus!$A$256:$BI$298,AR$1)","v":0},{"$f":"VLOOKUP(DropDownList!$B$47,CntyQryCensus!$A$256:$BI$298,AS$1)","v":933},{"$f":"VLOOKUP(DropDownList!$B$47,CntyQryCensus!$A$256:$BI$298,AT$1)","v":39},{"$f":"VLOOKUP(DropDownList!$B$47,CntyQryCensus!$A$256:$BI$298,AU$1)","v":10},{"$f":"VLOOKUP(DropDownList!$B$47,CntyQryCensus!$A$256:$BI$298,AV$1)","v":3},{"$f":"VLOOKUP(DropDownList!$B$47,CntyQryCensus!$A$256:$BI$298,AW$1)","v":2},{"$f":"VLOOKUP(DropDownList!$B$47,CntyQryCensus!$A$256:$BI$298,AX$1)","v":5},{"$f":"VLOOKUP(DropDownList!$B$47,CntyQryCensus!$A$256:$BI$298,AY$1)","v":29},{"$f":"VLOOKUP(DropDownList!$B$47,CntyQryCensus!$A$256:$BI$298,AZ$1)","v":5},{"$f":"VLOOKUP(DropDownList!$B$47,CntyQryCensus!$A$256:$BI$298,BA$1)","v":24},{"$f":"VLOOKUP(DropDownList!$B$47,CntyQryCensus!$A$256:$BI$298,BB$1)","v":894},{"$f":"VLOOKUP(DropDownList!$B$47,CntyQryCensus!$A$256:$BI$298,BC$1)","v":699},{"$f":"VLOOKUP(DropDownList!$B$47,CntyQryCensus!$A$256:$BI$298,BD$1)","v":653},{"$f":"VLOOKUP(DropDownList!$B$47,CntyQryCensus!$A$256:$BI$298,BE$1)","v":15},{"$f":"VLOOKUP(DropDownList!$B$47,CntyQryCensus!$A$256:$BI$298,BF$1)","v":31},{"$f":"VLOOKUP(DropDownList!$B$47,CntyQryCensus!$A$256:$BI$298,BG$1)","v":195},{"$f":"VLOOKUP(DropDownList!$B$47,CntyQryCensus!$A$256:$BI$298,BH$1)","v":93},{"$f":"VLOOKUP(DropDownList!$B$47,CntyQryCensus!$A$256:$BI$298,BI$1)","v":102}]
[null,null,null,null,null,null,null,null,null,null,null,null,null,null,null,null,null,null,{"$f":"SUM(R60:T60)","v":326}]
[]
["Census 2000 SummaryFile3 Sample Data  -  SF3TownQry7HousingA"]
["NAME","LOGRECNO","COUNTY","TotalPop","H1HousingUnitsTotal","H2SampleHU","H2SampleOccHU","H2SampleVacHU","H3HU100pctCount","H5HUTotal","H5HUUrban","H5HUUrbanInUrbanAreas","H5HUUrbanInUrbanClusters","H5HURural","H5HURuralFarm","H5HURuralNonFarm","H7HUOcc","H7HUOwnrOcc","H7HURentrOcc","H8HUVacant","H8HUVacantForRent","H8HUVacantForSale","H8HUVacRentedorSold","H8HUVacSeasonal","H8HUVacForMigrantWrkrs","H8HUOtherVacant","H14OccHUa","H14OwnerOccHU","H14OwnOccHuHh15to24","H14OwnOccHuHh25to34","H14OwnOccHuHh35to44","H14OwnOccHuHh45to54","H14OwnOccHuHh55to59","H14OwnOccHuHh60to64","H14OwnOccHuHh65to74","H14OwnOccHuHh75to84","H14OwnOccHuHh85Over","H14RenterOccHU1","H14RntrOccHuHh15to24","H14RntrOccHuHh25to34","H14RntrOccHuHh35to44","H14RntrOccHuHh45to54","H14RntrOccHuHh55to59","H14RntrOccHuHh60to64","H14RntrOccHuHh65to74","H14RntrOccHuHh75to84","H14RntrOccHuHh85Over","H15PopInOccHU","H15PopInOwnOccHU1","H15PopInRentOccHU1","H17OccupHUb","H17OwnOccHU2","H17OwnOccHU1PersonHH","H17OwnOccHU2PersonHH","H17OwnOccHU3PersonHH","H17OwnOccHU4PersonHH","H17OwnOccHU5PersonHH","H17OwnOccHU6PersonHH","H17OwnOccHU7PlusPersonHH","H17RentOccHU2","H17RntOccHU1PersonHH","H17RntOccHU2PersonHH","H17RntOccHU3PersonHH","H17RntOccHU4PersonHH","H17RntOccHU5PersonHH","H17RntOccHU6PersonHH","H17RntOccHU7PlusPersonHH","H18AvgHHSize","H18AvgHHSizeOwnOcc","H18AvgHHSizeRentOcc","H23TotHU","H23HU1Room","H23HU2Room","H23HU3Room","H23HU4Room","H23HU5Room","H23HU6Room","H23HU7Room","H23HU8Room","H23HU9orMoreRoom","H24MedianNumRooms","H25AggregNumRooms","H30TotalHU","H30Det1HU","H30Att1HU","H30Units2","H30Units3or4","H30Units5to9","H30Units10to19","H30Units20to49","H30Units50orMore","H30UnitsMobileHome","H30UnitsBoatRv","H32OccHUcTotal","H32OwnerOccHU3","H32OwnOccHU1Det","H32OwnOccHU1Att","H32OwnOccHU2Unit","H32OwnOccHU3to4Unit","H32OwnOccHU5to9Unit","H32OwnOccHU10to19Unit","H32OwnOccHU20to49Unit","H32OwnOccHU50plusUnit","H32OwnOccHUMobHom","H32OwnOccHUBoatRVOth","H32RentrOccHU3","H32RntrOccHU1Det","H32RntrOccHU1Att","H32RntrOccHU2Unit","H32RntrOccHU3to4Unit","H32RntrOccHU5to9Unit","H32RntrOccHU10to19Unit","H32RntrOccHU20to49Unit","H32RntrOccHU50PlusUnit","H32RntrOccHUMobHom","H32RntrOccHUBoatRVOth","H33TotPopInOccHU","H33PopInOwnOccHU2","H33PopInOOHU1Det","H33PopInOOHU1Att","H33PopInOOHU2unit","H33PopInOOHU3to4Unit","H33PopInOOHU5to9Unit","H33PopInOOHU10to19Unit","H33PopInOOHU20to49Unit","H33PopInOOHU50PlusUnit","H33PopInOOHUMobilHome","H33PopInOOHUOtherUnit","H33PopInRentOccHU2","H33PopInROHU1Det","H33PopInROHU1Att","H33PopInROHU2Unit","H33PopInROHU3to4Unit","H33PopInROHU5to9Unit","H33PopInROHU10to19Unit","H33PopInROHU20to49Unit","H33PopInROHU50PlusUnit","H33PopInROHUMobilHome","H33PopInROHUOtherUnit","H36OccHousingUnitsdTotal","H36OwnerOccHU4","H36OOHUBuilt99to0300","H36OOHUBuilt95to98","H36OOHUBuilt90to94","H36OOHUBuilt80to89","H36OOHUBuilt70to79","H36OOHUBuilt60to69","H36OOHUBuilt50to59","H36OOHUBuilt40to49","H36OOHUBuilt39Earlier","H36RentOccHU4","H36ROHUBuilt99to0300","H36ROHUBuilt95to98","H36ROHUBuilt90to94","H36ROHUBuilt80to89","H36ROHUBuilt70to79","H36ROHUBuilt60to69","H36ROHUBuilt50to59","H36ROHUBuilt40to49","H36ROHUBuilt39Earlier","H40OccupHousUnitse","H40HeatFuelUtilGas","H40HeatFuelBotGas","H40HeatFuelElect","H40HeatFuelOilKero","H40HeatFuelCoal","H40HeatFuelWood","H40HeatFuelSolar","H40HeatFuelOther","H40HeatFuelNone","H41TotalHU","H41HUNoBdrm","H41HU1Bdrm","H41HU2Bdrm","H41HU3Bdrm","H41HU4Bdrm","H41HU5MoreBdrm","H42OccuHousUnitf","H42OwnerOccHU5","H42OOHUNoBdrm","H42OOHU1Bdrm","H42OOHU2Bdrm","H42OOHU3Bdrm","H42OOHU4Bdrm","H42OOHU5PlusBdrm","H42RentOccHU5","H42ROHUNoBdrm","H42ROHU1Bdrm","H42ROHU2Bdrm","H42ROHU3Bdrm","H42ROHU4Bdrm","H42ROHU5PlusBdrm","H48OccupHousUnitsg","H48OwnerOccHU6","H48OOHUwCompltPlumFacil","H48OOHULackCompltPlumFacil","H48RentOccHU6","H48ROHUwCompltPlumFacil","H48ROHULackCompltPlumFacil","H51OccupHousUnitf","H51OwnerOccHU7","H51OOHUwCompleteKitFacil","H51OOHULackCompleteKitFacil","H51RenterOccHU7","H51ROHUwCompleteKitFacil","H51ROHULackCompleteKitFacil"]
[{"$f":"VLOOKUP(DropDownList!$B47,CntyQryCensus!$A$306:$GX$348,A$1)","v":"Grantham"},{"$f":"VLOOKUP(DropDownList!$B47,CntyQryCensus!$A$306:$GX$348,B$1)","v":"0004212"},{"$f":"VLOOKUP(DropDownList!$B47,CntyQryCensus!$A$306:$GX$348,C$1)","v":"31220"},{"$f":"VLOOKUP(DropDownList!$B47,CntyQryCensus!$A$306:$GX$348,D$1)","v":2167},{"$f":"VLOOKUP(DropDownList!$B47,CntyQryCensus!$A$306:$GX$348,E$1)","v":1518},{"$f":"VLOOKUP(DropDownList!$B47,CntyQryCensus!$A$306:$GX$348,F$1)","v":666},{"$f":"VLOOKUP(DropDownList!$B47,CntyQryCensus!$A$306:$GX$348,G$1)","v":418},{"$f":"VLOOKUP(DropDownList!$B47,CntyQryCensus!$A$306:$GX$348,H$1)","v":248},{"$f":"VLOOKUP(DropDownList!$B47,CntyQryCensus!$A$306:$GX$348,I$1)","v":1513},{"$f":"VLOOKUP(DropDownList!$B47,CntyQryCensus!$A$306:$GX$348,J$1)","v":1518},{"$f":"VLOOKUP(DropDownList!$B47,CntyQryCensus!$A$306:$GX$348,K$1)","v":0},{"$f":"VLOOKUP(DropDownList!$B47,CntyQryCensus!$A$306:$GX$348,L$1)","v":0},{"$f":"VLOOKUP(DropDownList!$B47,CntyQryCensus!$A$306:$GX$348,M$1)","v":0},{"$f":"VLOOKUP(DropDownList!$B47,CntyQryCensus!$A$306:$GX$348,N$1)","v":1518},{"$f":"VLOOKUP(DropDownList!$B47,CntyQryCensus!$A$306:$GX$348,O$1)","v":5},{"$f":"VLOOKUP(DropDownList!$B47,CntyQryCensus!$A$306:$GX$348,P$1)","v":1513},{"$f":"VLOOKUP(DropDownList!$B47,CntyQryCensus!$A$306:$GX$348,Q$1)","v":925},{"$f":"VLOOKUP(DropDownList!$B47,CntyQryCensus!$A$306:$GX$348,R$1)","v":816},{"$f":"VLOOKUP(DropDownList!$B47,CntyQryCensus!$A$306:$GX$348,S$1)","v":109},{"$f":"VLOOKUP(DropDownList!$B47,CntyQryCensus!$A$306:$GX$348,T$1)","v":593},{"$f":"VLOOKUP(DropDownList!$B47,CntyQryCensus!$A$306:$GX$348,U$1)","v":2},{"$f":"VLOOKUP(DropDownList!$B47,CntyQryCensus!$A$306:$GX$348,V$1)","v":28},{"$f":"VLOOKUP(DropDownList!$B47,CntyQryCensus!$A$306:$GX$348,W$1)","v":12},{"$f":"VLOOKUP(DropDownList!$B47,CntyQryCensus!$A$306:$GX$348,X$1)","v":548},{"$f":"VLOOKUP(DropDownList!$B47,CntyQryCensus!$A$306:$GX$348,Y$1)","v":0},{"$f":"VLOOKUP(DropDownList!$B47,CntyQryCensus!$A$306:$GX$348,Z$1)","v":3},{"$f":"VLOOKUP(DropDownList!$B47,CntyQryCensus!$A$306:$GX$348,AA$1)","v":925},{"$f":"VLOOKUP(DropDownList!$B47,CntyQryCensus!$A$306:$GX$348,AB$1)","v":816},{"$f":"VLOOKUP(DropDownList!$B47,CntyQryCensus!$A$306:$GX$348,AC$1)","v":5},{"$f":"VLOOKUP(DropDownList!$B47,CntyQryCensus!$A$306:$GX$348,AD$1)","v":80},{"$f":"VLOOKUP(DropDownList!$B47,CntyQryCensus!$A$306:$GX$348,AE$1)","v":125},{"$f":"VLOOKUP(DropDownList!$B47,CntyQryCensus!$A$306:$GX$348,AF$1)","v":177},{"$f":"VLOOKUP(DropDownList!$B47,CntyQryCensus!$A$306:$GX$348,AG$1)","v":67},{"$f":"VLOOKUP(DropDownList!$B47,CntyQryCensus!$A$306:$GX$348,AH$1)","v":83},{"$f":"VLOOKUP(DropDownList!$B47,CntyQryCensus!$A$306:$GX$348,AI$1)","v":179},{"$f":"VLOOKUP(DropDownList!$B47,CntyQryCensus!$A$306:$GX$348,AJ$1)","v":84},{"$f":"VLOOKUP(DropDownList!$B47,CntyQryCensus!$A$306:$GX$348,AK$1)","v":16},{"$f":"VLOOKUP(DropDownList!$B47,CntyQryCensus!$A$306:$GX$348,AL$1)","v":109},{"$f":"VLOOKUP(DropDownList!$B47,CntyQryCensus!$A$306:$GX$348,AM$1)","v":8},{"$f":"VLOOKUP(DropDownList!$B47,CntyQryCensus!$A$306:$GX$348,AN$1)","v":38},{"$f":"VLOOKUP(DropDownList!$B47,CntyQryCensus!$A$306:$GX$348,AO$1)","v":26},{"$f":"VLOOKUP(DropDownList!$B47,CntyQryCensus!$A$306:$GX$348,AP$1)","v":16},{"$f":"VLOOKUP(DropDownList!$B47,CntyQryCensus!$A$306:$GX$348,AQ$1)","v":14},{"$f":"VLOOKUP(DropDownList!$B47,CntyQryCensus!$A$306:$GX$348,AR$1)","v":2},{"$f":"VLOOKUP(DropDownList!$B47,CntyQryCensus!$A$306:$GX$348,AS$1)","v":3},{"$f":"VLOOKUP(DropDownList!$B47,CntyQryCensus!$A$306:$GX$348,AT$1)","v":2},{"$f":"VLOOKUP(DropDownList!$B47,CntyQryCensus!$A$306:$GX$348,AU$1)","v":0},{"$f":"VLOOKUP(DropDownList!$B47,CntyQryCensus!$A$306:$GX$348,AV$1)","v":2173},{"$f":"VLOOKUP(DropDownList!$B47,CntyQryCensus!$A$306:$GX$348,AW$1)","v":1914},{"$f":"VLOOKUP(DropDownList!$B47,CntyQryCensus!$A$306:$GX$348,AX$1)","v":259},{"$f":"VLOOKUP(DropDownList!$B47,CntyQryCensus!$A$306:$GX$348,AY$1)","v":925},{"$f":"VLOOKUP(DropDownList!$B47,CntyQryCensus!$A$306:$GX$348,AZ$1)","v":816},{"$f":"VLOOKUP(DropDownList!$B47,CntyQryCensus!$A$306:$GX$348,BA$1)","v":152},{"$f":"VLOOKUP(DropDownList!$B47,CntyQryCensus!$A$306:$GX$348,BB$1)","v":433},{"$f":"VLOOKUP(DropDownList!$B47,CntyQryCensus!$A$306:$GX$348,BC$1)","v":96},{"$f":"VLOOKUP(DropDownList!$B47,CntyQryCensus!$A$306:$GX$348,BD$1)","v":93},{"$f":"VLOOKUP(DropDownList!$B47,CntyQryCensus!$A$306:$GX$348,BE$1)","v":32},{"$f":"VLOOKUP(DropDownList!$B47,CntyQryCensus!$A$306:$GX$348,BF$1)","v":8},{"$f":"VLOOKUP(DropDownList!$B47,CntyQryCensus!$A$306:$GX$348,BG$1)","v":2},{"$f":"VLOOKUP(DropDownList!$B47,CntyQryCensus!$A$306:$GX$348,BH$1)","v":109},{"$f":"VLOOKUP(DropDownList!$B47,CntyQryCensus!$A$306:$GX$348,BI$1)","v":23},{"$f":"VLOOKUP(DropDownList!$B47,CntyQryCensus!$A$306:$GX$348,BJ$1)","v":44},{"$f":"VLOOKUP(DropDownList!$B47,CntyQryCensus!$A$306:$GX$348,BK$1)","v":20},{"$f":"VLOOKUP(DropDownList!$B47,CntyQryCensus!$A$306:$GX$348,BL$1)","v":14},{"$f":"VLOOKUP(DropDownList!$B47,CntyQryCensus!$A$306:$GX$348,BM$1)","v":4},{"$f":"VLOOKUP(DropDownList!$B47,CntyQryCensus!$A$306:$GX$348,BN$1)","v":2},{"$f":"VLOOKUP(DropDownList!$B47,CntyQryCensus!$A$306:$GX$348,BO$1)","v":2},{"$f":"VLOOKUP(DropDownList!$B47,CntyQryCensus!$A$306:$GX$348,BP$1)","v":2},{"$f":"VLOOKUP(DropDownList!$B47,CntyQryCensus!$A$306:$GX$348,BQ$1)","v":2},{"$f":"VLOOKUP(DropDownList!$B47,CntyQryCensus!$A$306:$GX$348,BR$1)","v":2},{"$f":"VLOOKUP(DropDownList!$B47,CntyQryCensus!$A$306:$GX$348,BS$1)","v":1518},{"$f":"VLOOKUP(DropDownList!$B47,CntyQryCensus!$A$306:$GX$348,BT$1)","v":10},{"$f":"VLOOKUP(DropDownList!$B47,CntyQryCensus!$A$306:$GX$348,BU$1)","v":5},{"$f":"VLOOKUP(DropDownList!$B47,CntyQryCensus!$A$306:$GX$348,BV$1)","v":23},{"$f":"VLOOKUP(DropDownList!$B47,CntyQryCensus!$A$306:$GX$348,BW$1)","v":158},{"$f":"VLOOKUP(DropDownList!$B47,CntyQryCensus!$A$306:$GX$348,BX$1)","v":291},{"$f":"VLOOKUP(DropDownList!$B47,CntyQryCensus!$A$306:$GX$348,BY$1)","v":459},{"$f":"VLOOKUP(DropDownList!$B47,CntyQryCensus!$A$306:$GX$348,BZ$1)","v":248},{"$f":"VLOOKUP(DropDownList!$B47,CntyQryCensus!$A$306:$GX$348,CA$1)","v":195},{"$f":"VLOOKUP(DropDownList!$B47,CntyQryCensus!$A$306:$GX$348,CB$1)","v":129},{"$f":"VLOOKUP(DropDownList!$B47,CntyQryCensus!$A$306:$GX$348,CC$1)","v":6},{"$f":"VLOOKUP(DropDownList!$B47,CntyQryCensus!$A$306:$GX$348,CD$1)","v":9516},{"$f":"VLOOKUP(DropDownList!$B47,CntyQryCensus!$A$306:$GX$348,CE$1)","v":1518},{"$f":"VLOOKUP(DropDownList!$B47,CntyQryCensus!$A$306:$GX$348,CF$1)","v":1168},{"$f":"VLOOKUP(DropDownList!$B47,CntyQryCensus!$A$306:$GX$348,CG$1)","v":296},{"$f":"VLOOKUP(DropDownList!$B47,CntyQryCensus!$A$306:$GX$348,CH$1)","v":19},{"$f":"VLOOKUP(DropDownList!$B47,CntyQryCensus!$A$306:$GX$348,CI$1)","v":9},{"$f":"VLOOKUP(DropDownList!$B47,CntyQryCensus!$A$306:$GX$348,CJ$1)","v":0},{"$f":"VLOOKUP(DropDownList!$B47,CntyQryCensus!$A$306:$GX$348,CK$1)","v":0},{"$f":"VLOOKUP(DropDownList!$B47,CntyQryCensus!$A$306:$GX$348,CL$1)","v":0},{"$f":"VLOOKUP(DropDownList!$B47,CntyQryCensus!$A$306:$GX$348,CM$1)","v":0},{"$f":"VLOOKUP(DropDownList!$B47,CntyQryCensus!$A$306:$GX$348,CN$1)","v":26},{"$f":"VLOOKUP(DropDownList!$B47,CntyQryCensus!$A$306:$GX$348,CO$1)","v":0},{"$f":"VLOOKUP(DropDownList!$B47,CntyQryCensus!$A$306:$GX$348,CP$1)","v":925},{"$f":"VLOOKUP(DropDownList!$B47,CntyQryCensus!$A$306:$GX$348,CQ$1)","v":816},{"$f":"VLOOKUP(DropDownList!$B47,CntyQryCensus!$A$306:$GX$348,CR$1)","v":735},{"$f":"VLOOKUP(DropDownList!$B47,CntyQryCensus!$A$306:$GX$348,CS$1)","v":62},{"$f":"VLOOKUP(DropDownList!$B47,CntyQryCensus!$A$306:$GX$348,CT$1)","v":0},{"$f":"VLOOKUP(DropDownList!$B47,CntyQryCensus!$A$306:$GX$348,CU$1)","v":0},{"$f":"VLOOKUP(DropDownList!$B47,CntyQryCensus!$A$306:$GX$348,CV$1)","v":0},{"$f":"VLOOKUP(DropDownList!$B47,CntyQryCensus!$A$306:$GX$348,CW$1)","v":0},{"$f":"VLOOKUP(DropDownList!$B47,CntyQryCensus!$A$306:$GX$348,CX$1)","v":0},{"$f":"VLOOKUP(DropDownList!$B47,CntyQryCensus!$A$306:$GX$348,CY$1)","v":0},{"$f":"VLOOKUP(DropDownList!$B47,CntyQryCensus!$A$306:$GX$348,CZ$1)","v":19},{"$f":"VLOOKUP(DropDownList!$B47,CntyQryCensus!$A$306:$GX$348,DA$1)","v":0},{"$f":"VLOOKUP(DropDownList!$B47,CntyQryCensus!$A$306:$GX$348,DB$1)","v":109},{"$f":"VLOOKUP(DropDownList!$B47,CntyQryCensus!$A$306:$GX$348,DC$1)","v":75},{"$f":"VLOOKUP(DropDownList!$B47,CntyQryCensus!$A$306:$GX$348,DD$1)","v":16},{"$f":"VLOOKUP(DropDownList!$B47,CntyQryCensus!$A$306:$GX$348,DE$1)","v":10},{"$f":"VLOOKUP(DropDownList!$B47,CntyQryCensus!$A$306:$GX$348,DF$1)","v":5},{"$f":"VLOOKUP(DropDownList!$B47,CntyQryCensus!$A$306:$GX$348,DG$1)","v":0},{"$f":"VLOOKUP(DropDownList!$B47,CntyQryCensus!$A$306:$GX$348,DH$1)","v":0},{"$f":"VLOOKUP(DropDownList!$B47,CntyQryCensus!$A$306:$GX$348,DI$1)","v":0},{"$f":"VLOOKUP(DropDownList!$B47,CntyQryCensus!$A$306:$GX$348,DJ$1)","v":0},{"$f":"VLOOKUP(DropDownList!$B47,CntyQryCensus!$A$306:$GX$348,DK$1)","v":3},{"$f":"VLOOKUP(DropDownList!$B47,CntyQryCensus!$A$306:$GX$348,DL$1)","v":0},{"$f":"VLOOKUP(DropDownList!$B47,CntyQryCensus!$A$306:$GX$348,DM$1)","v":2173},{"$f":"VLOOKUP(DropDownList!$B47,CntyQryCensus!$A$306:$GX$348,DN$1)","v":1914},{"$f":"VLOOKUP(DropDownList!$B47,CntyQryCensus!$A$306:$GX$348,DO$1)","v":1770},{"$f":"VLOOKUP(DropDownList!$B47,CntyQryCensus!$A$306:$GX$348,DP$1)","v":99},{"$f":"VLOOKUP(DropDownList!$B47,CntyQryCensus!$A$306:$GX$348,DQ$1)","v":0},{"$f":"VLOOKUP(DropDownList!$B47,CntyQryCensus!$A$306:$GX$348,DR$1)","v":0},{"$f":"VLOOKUP(DropDownList!$B47,CntyQryCensus!$A$306:$GX$348,DS$1)","v":0},{"$f":"VLOOKUP(DropDownList!$B47,CntyQryCensus!$A$306:$GX$348,DT$1)","v":0},{"$f":"VLOOKUP(DropDownList!$B47,CntyQryCensus!$A$306:$GX$348,DU$1)","v":0},{"$f":"VLOOKUP(DropDownList!$B47,CntyQryCensus!$A$306:$GX$348,DV$1)","v":0},{"$f":"VLOOKUP(DropDownList!$B47,CntyQryCensus!$A$306:$GX$348,DW$1)","v":45},{"$f":"VLOOKUP(DropDownList!$B47,CntyQryCensus!$A$306:$GX$348,DX$1)","v":0},{"$f":"VLOOKUP(DropDownList!$B47,CntyQryCensus!$A$306:$GX$348,DY$1)","v":259},{"$f":"VLOOKUP(DropDownList!$B47,CntyQryCensus!$A$306:$GX$348,DZ$1)","v":200},{"$f":"VLOOKUP(DropDownList!$B47,CntyQryCensus!$A$306:$GX$348,EA$1)","v":26},{"$f":"VLOOKUP(DropDownList!$B47,CntyQryCensus!$A$306:$GX$348,EB$1)","v":21},{"$f":"VLOOKUP(DropDownList!$B47,CntyQryCensus!$A$306:$GX$348,EC$1)","v":10},{"$f":"VLOOKUP(DropDownList!$B47,CntyQryCensus!$A$306:$GX$348,ED$1)","v":0},{"$f":"VLOOKUP(DropDownList!$B47,CntyQryCensus!$A$306:$GX$348,EE$1)","v":0},{"$f":"VLOOKUP(DropDownList!$B47,CntyQryCensus!$A$306:$GX$348,EF$1)","v":0},{"$f":"VLOOKUP(DropDownList!$B47,CntyQryCensus!$A$306:$GX$348,EG$1)","v":0},{"$f":"VLOOKUP(DropDownList!$B47,CntyQryCensus!$A$306:$GX$348,EH$1)","v":2},{"$f":"VLOOKUP(DropDownList!$B47,CntyQryCensus!$A$306:$GX$348,EI$1)","v":0},{"$f":"VLOOKUP(DropDownList!$B47,CntyQryCensus!$A$306:$GX$348,EJ$1)","v":925},{"$f":"VLOOKUP(DropDownList!$B47,CntyQryCensus!$A$306:$GX$348,EK$1)","v":816},{"$f":"VLOOKUP(DropDownList!$B47,CntyQryCensus!$A$306:$GX$348,EL$1)","v":22},{"$f":"VLOOKUP(DropDownList!$B47,CntyQryCensus!$A$306:$GX$348,EM$1)","v":102},{"$f":"VLOOKUP(DropDownList!$B47,CntyQryCensus!$A$306:$GX$348,EN$1)","v":112},{"$f":"VLOOKUP(DropDownList!$B47,CntyQryCensus!$A$306:$GX$348,EO$1)","v":281},{"$f":"VLOOKUP(DropDownList!$B47,CntyQryCensus!$A$306:$GX$348,EP$1)","v":181},{"$f":"VLOOKUP(DropDownList!$B47,CntyQryCensus!$A$306:$GX$348,EQ$1)","v":20},{"$f":"VLOOKUP(DropDownList!$B47,CntyQryCensus!$A$306:$GX$348,ER$1)","v":26},{"$f":"VLOOKUP(DropDownList!$B47,CntyQryCensus!$A$306:$GX$348,ES$1)","v":12},{"$f":"VLOOKUP(DropDownList!$B47,CntyQryCensus!$A$306:$GX$348,ET$1)","v":60},{"$f":"VLOOKUP(DropDownList!$B47,CntyQryCensus!$A$306:$GX$348,EU$1)","v":109},{"$f":"VLOOKUP(DropDownList!$B47,CntyQryCensus!$A$306:$GX$348,EV$1)","v":2},{"$f":"VLOOKUP(DropDownList!$B47,CntyQryCensus!$A$306:$GX$348,EW$1)","v":7},{"$f":"VLOOKUP(DropDownList!$B47,CntyQryCensus!$A$306:$GX$348,EX$1)","v":13},{"$f":"VLOOKUP(DropDownList!$B47,CntyQryCensus!$A$306:$GX$348,EY$1)","v":27},{"$f":"VLOOKUP(DropDownList!$B47,CntyQryCensus!$A$306:$GX$348,EZ$1)","v":37},{"$f":"VLOOKUP(DropDownList!$B47,CntyQryCensus!$A$306:$GX$348,FA$1)","v":10},{"$f":"VLOOKUP(DropDownList!$B47,CntyQryCensus!$A$306:$GX$348,FB$1)","v":2},{"$f":"VLOOKUP(DropDownList!$B47,CntyQryCensus!$A$306:$GX$348,FC$1)","v":3},{"$f":"VLOOKUP(DropDownList!$B47,CntyQryCensus!$A$306:$GX$348,FD$1)","v":8},{"$f":"VLOOKUP(DropDownList!$B47,CntyQryCensus!$A$306:$GX$348,FE$1)","v":925},{"$f":"VLOOKUP(DropDownList!$B47,CntyQryCensus!$A$306:$GX$348,FF$1)","v":9},{"$f":"VLOOKUP(DropDownList!$B47,CntyQryCensus!$A$306:$GX$348,FG$1)","v":436},{"$f":"VLOOKUP(DropDownList!$B47,CntyQryCensus!$A$306:$GX$348,FH$1)","v":47},{"$f":"VLOOKUP(DropDownList!$B47,CntyQryCensus!$A$306:$GX$348,FI$1)","v":340},{"$f":"VLOOKUP(DropDownList!$B47,CntyQryCensus!$A$306:$GX$348,FJ$1)","v":0},{"$f":"VLOOKUP(DropDownList!$B47,CntyQryCensus!$A$306:$GX$348,FK$1)","v":93},{"$f":"VLOOKUP(DropDownList!$B47,CntyQryCensus!$A$306:$GX$348,FL$1)","v":0},{"$f":"VLOOKUP(DropDownList!$B47,CntyQryCensus!$A$306:$GX$348,FM$1)","v":0},{"$f":"VLOOKUP(DropDownList!$B47,CntyQryCensus!$A$306:$GX$348,FN$1)","v":0},{"$f":"VLOOKUP(DropDownList!$B47,CntyQryCensus!$A$306:$GX$348,FO$1)","v":1518},{"$f":"VLOOKUP(DropDownList!$B47,CntyQryCensus!$A$306:$GX$348,FP$1)","v":10},{"$f":"VLOOKUP(DropDownList!$B47,CntyQryCensus!$A$306:$GX$348,FQ$1)","v":23},{"$f":"VLOOKUP(DropDownList!$B47,CntyQryCensus!$A$306:$GX$348,FR$1)","v":310},{"$f":"VLOOKUP(DropDownList!$B47,CntyQryCensus!$A$306:$GX$348,FS$1)","v":936},{"$f":"VLOOKUP(DropDownList!$B47,CntyQryCensus!$A$306:$GX$348,FT$1)","v":203},{"$f":"VLOOKUP(DropDownList!$B47,CntyQryCensus!$A$306:$GX$348,FU$1)","v":36},{"$f":"VLOOKUP(DropDownList!$B47,CntyQryCensus!$A$306:$GX$348,FV$1)","v":925},{"$f":"VLOOKUP(DropDownList!$B47,CntyQryCensus!$A$306:$GX$348,FW$1)","v":816},{"$f":"VLOOKUP(DropDownList!$B47,CntyQryCensus!$A$306:$GX$348,FX$1)","v":0},{"$f":"VLOOKUP(DropDownList!$B47,CntyQryCensus!$A$306:$GX$348,FY$1)","v":9},{"$f":"VLOOKUP(DropDownList!$B47,CntyQryCensus!$A$306:$GX$348,FZ$1)","v":127},{"$f":"VLOOKUP(DropDownList!$B47,CntyQryCensus!$A$306:$GX$348,GA$1)","v":515},{"$f":"VLOOKUP(DropDownList!$B47,CntyQryCensus!$A$306:$GX$348,GB$1)","v":140},{"$f":"VLOOKUP(DropDownList!$B47,CntyQryCensus!$A$306:$GX$348,GC$1)","v":25},{"$f":"VLOOKUP(DropDownList!$B47,CntyQryCensus!$A$306:$GX$348,GD$1)","v":109},{"$f":"VLOOKUP(DropDownList!$B47,CntyQryCensus!$A$306:$GX$348,GE$1)","v":6},{"$f":"VLOOKUP(DropDownList!$B47,CntyQryCensus!$A$306:$GX$348,GF$1)","v":3},{"$f":"VLOOKUP(DropDownList!$B47,CntyQryCensus!$A$306:$GX$348,GG$1)","v":37},{"$f":"VLOOKUP(DropDownList!$B47,CntyQryCensus!$A$306:$GX$348,GH$1)","v":59},{"$f":"VLOOKUP(DropDownList!$B47,CntyQryCensus!$A$306:$GX$348,GI$1)","v":4},{"$f":"VLOOKUP(DropDownList!$B47,CntyQryCensus!$A$306:$GX$348,GJ$1)","v":0},{"$f":"VLOOKUP(DropDownList!$B47,CntyQryCensus!$A$306:$GX$348,GK$1)","v":925},{"$f":"VLOOKUP(DropDownList!$B47,CntyQryCensus!$A$306:$GX$348,GL$1)","v":816},{"$f":"VLOOKUP(DropDownList!$B47,CntyQryCensus!$A$306:$GX$348,GM$1)","v":816},{"$f":"VLOOKUP(DropDownList!$B47,CntyQryCensus!$A$306:$GX$348,GN$1)","v":0},{"$f":"VLOOKUP(DropDownList!$B47,CntyQryCensus!$A$306:$GX$348,GO$1)","v":109},{"$f":"VLOOKUP(DropDownList!$B47,CntyQryCensus!$A$306:$GX$348,GP$1)","v":109},{"$f":"VLOOKUP(DropDownList!$B47,CntyQryCensus!$A$306:$GX$348,GQ$1)","v":0},{"$f":"VLOOKUP(DropDownList!$B47,CntyQryCensus!$A$306:$GX$348,GR$1)","v":925},{"$f":"VLOOKUP(DropDownList!$B47,CntyQryCensus!$A$306:$GX$348,GS$1)","v":816},{"$f":"VLOOKUP(DropDownList!$B47,CntyQryCensus!$A$306:$GX$348,GT$1)","v":811},{"$f":"VLOOKUP(DropDownList!$B47,CntyQryCensus!$A$306:$GX$348,GU$1)","v":5},{"$f":"VLOOKUP(DropDownList!$B47,CntyQryCensus!$A$306:$GX$348,GV$1)","v":109},{"$f":"VLOOKUP(DropDownList!$B47,CntyQryCensus!$A$306:$GX$348,GW$1)","v":109},{"$f":"VLOOKUP(DropDownList!$B47,CntyQryCensus!$A$306:$GX$348,GX$1)","v":0}]
[]
[]
["Census 2000 SummaryFile3 Sample Data  -  SF3TownQry8HousingCostA"]
["NAME","LOGRECNO","COUNTY","TotalPop","H62RntrOccHU","H62RntrOccHUwRent","H62ROHUGRent<100","H62ROHUGRent100to149","H62ROHUGRent150to199","H62ROHUGRent200to249","H62ROHUGRent250to299","H62ROHUGRent300to349","H62ROHUGRent350to399","H62ROHUGRent400to449","H62ROHUGRent450to499","H62ROHUGRent500to549","H62ROHUGRent550to599","H62ROHUGRent600to649","H62ROHUGRent650to699","H62ROHUGRent700to749","H62ROHUGRent750to799","H62ROHUGRent800to899","H62ROHUGRent900to999","H62ROHUGRent1000to1249","H62ROHUGRent1250to1499","H62ROHUGRent1500to1999","H62ROHUGRent2000>","H62ROHUNoGRent","H63MedianGrossRnt","H69RenterOccHsU","H69GRnt<10PctHHInc","H69GRnt10to15PctHHInc","H69GRnt15to20PctHHInc","H69GRnt20to25PctHHInc","H69GRnt25to30PctHHInc","H69GRnt30to35PctHHInc","H69GRnt35to40PctHHInc","H69GRnt40to50PctHHInc","H69GRnt>50PctHHInc","H69GRntPctNotcomputed","H73RenterOccHU","H73ROHUHhInc<10k","H73ROHUHhInc<10kRnt<20pct","H73ROHUHhInc<10kRnt20to25pct","H73ROHUHhInc<10kRnt25to30pct","H73ROHUHhInc<10kRnt30to35pct","H73ROHUHhInc<10kRnt>35pct","H73ROHUHhInc<10kPctNotComput","H73ROHUHhInc10to20k","H73ROHUHhInc10to20kRnt<20pct","H73ROHUHhInc10to20kRnt20to25pct","H73ROHUHhInc10to20kRnt25to30pct","H73ROHUHhInc10to20kRnt30to35pct","H73ROHUHhInc10to20kRnt>35pct","H73ROHUHhInc10to20kRntPctNC","H73ROHUHhInc20to35k","H73ROHUHhInc20to35kRnt<20pct","H73ROHUHhInc20to35kRnt20to25pct","H73ROHUHhInc20to35kRnt25to30pct","H73ROHUHhInc20to35kRnt30to35pct","H73ROHUHhInc20to35kRnt>35pct","H73ROHUHhInc20to35kRntPctNC","H73ROHUHhInc35to40k","H73ROHUHhInc35to40kRnt<20pct","H73ROHUHhInc35to40kRnt20to25pct","H73ROHUHhInc35to40kRnt25to30pct","H73ROHUHhInc35to40kRnt30to35pct","H73ROHUHhInc35to40kRnt>35pct","H73ROHUHhInc35to40kRntPctNC","H73ROHUHhInc50to75k","H73ROHUHhInc50to75kRnt<20pct","H73ROHUHhInc50to75kRnt20to25pct","H73ROHUHhInc50to75kRnt25to30pct","H73ROHUHhInc50to75kRnt30to35pct","H73ROHUHhInc50to75kRnt>35pct","H73ROHUHhInc50to75kRntPctNC","H73ROHUHhInc75to100k","H73ROHUHhInc75to100kRnt<20pct","H73ROHUHhInc75to100kRnt20to25pct","H73ROHUHhInc75to100kRnt25to30pct","H73ROHUHhInc75to100kRnt30to35pct","H73ROHUHhInc75to100kRnt>35pct","H73ROHUHhInc75to100kRntPctNC","H73ROHUHhInc>100k","H73ROHUHhInc>100kRnt<20pct","H73ROHUHhInc>100kRnt20to25pct","H73ROHUHhInc>100kRnt25to30pct","H73ROHUHhInc>100kRnt30to35pct","H73ROHUHhInc>100kRnt>35pct","H73ROHUHhInc>100kRntPctNC","H73ROHUHhInc>100kRntPctNC"]
[{"$f":"VLOOKUP(DropDownList!$B$47,CntyQryCensus!$A$357:$CM$399,A$1)","v":"Grantham"},{"$f":"VLOOKUP(DropDownList!$B$47,CntyQryCensus!$A$357:$CM$399,B$1)","v":"0004212"},{"$f":"VLOOKUP(DropDownList!$B$47,CntyQryCensus!$A$357:$CM$399,C$1)","v":"31220"},{"$f":"VLOOKUP(DropDownList!$B$47,CntyQryCensus!$A$357:$CM$399,D$1)","v":2167},{"$f":"VLOOKUP(DropDownList!$B$47,CntyQryCensus!$A$357:$CM$399,E$1)","v":103},{"$f":"VLOOKUP(DropDownList!$B$47,CntyQryCensus!$A$357:$CM$399,F$1)","v":98},{"$f":"VLOOKUP(DropDownList!$B$47,CntyQryCensus!$A$357:$CM$399,G$1)","v":0},{"$f":"VLOOKUP(DropDownList!$B$47,CntyQryCensus!$A$357:$CM$399,H$1)","v":0},{"$f":"VLOOKUP(DropDownList!$B$47,CntyQryCensus!$A$357:$CM$399,I$1)","v":0},{"$f":"VLOOKUP(DropDownList!$B$47,CntyQryCensus!$A$357:$CM$399,J$1)","v":0},{"$f":"VLOOKUP(DropDownList!$B$47,CntyQryCensus!$A$357:$CM$399,K$1)","v":0},{"$f":"VLOOKUP(DropDownList!$B$47,CntyQryCensus!$A$357:$CM$399,L$1)","v":0},{"$f":"VLOOKUP(DropDownList!$B$47,CntyQryCensus!$A$357:$CM$399,M$1)","v":0},{"$f":"VLOOKUP(DropDownList!$B$47,CntyQryCensus!$A$357:$CM$399,N$1)","v":3},{"$f":"VLOOKUP(DropDownList!$B$47,CntyQryCensus!$A$357:$CM$399,O$1)","v":3},{"$f":"VLOOKUP(DropDownList!$B$47,CntyQryCensus!$A$357:$CM$399,P$1)","v":3},{"$f":"VLOOKUP(DropDownList!$B$47,CntyQryCensus!$A$357:$CM$399,Q$1)","v":5},{"$f":"VLOOKUP(DropDownList!$B$47,CntyQryCensus!$A$357:$CM$399,R$1)","v":3},{"$f":"VLOOKUP(DropDownList!$B$47,CntyQryCensus!$A$357:$CM$399,S$1)","v":2},{"$f":"VLOOKUP(DropDownList!$B$47,CntyQryCensus!$A$357:$CM$399,T$1)","v":4},{"$f":"VLOOKUP(DropDownList!$B$47,CntyQryCensus!$A$357:$CM$399,U$1)","v":4},{"$f":"VLOOKUP(DropDownList!$B$47,CntyQryCensus!$A$357:$CM$399,V$1)","v":8},{"$f":"VLOOKUP(DropDownList!$B$47,CntyQryCensus!$A$357:$CM$399,W$1)","v":7},{"$f":"VLOOKUP(DropDownList!$B$47,CntyQryCensus!$A$357:$CM$399,X$1)","v":44},{"$f":"VLOOKUP(DropDownList!$B$47,CntyQryCensus!$A$357:$CM$399,Y$1)","v":8},{"$f":"VLOOKUP(DropDownList!$B$47,CntyQryCensus!$A$357:$CM$399,Z$1)","v":2},{"$f":"VLOOKUP(DropDownList!$B$47,CntyQryCensus!$A$357:$CM$399,AA$1)","v":2},{"$f":"VLOOKUP(DropDownList!$B$47,CntyQryCensus!$A$357:$CM$399,AB$1)","v":5},{"$f":"VLOOKUP(DropDownList!$B$47,CntyQryCensus!$A$357:$CM$399,AC$1)","v":1040},{"$f":"VLOOKUP(DropDownList!$B$47,CntyQryCensus!$A$357:$CM$399,AD$1)","v":103},{"$f":"VLOOKUP(DropDownList!$B$47,CntyQryCensus!$A$357:$CM$399,AE$1)","v":7},{"$f":"VLOOKUP(DropDownList!$B$47,CntyQryCensus!$A$357:$CM$399,AF$1)","v":19},{"$f":"VLOOKUP(DropDownList!$B$47,CntyQryCensus!$A$357:$CM$399,AG$1)","v":15},{"$f":"VLOOKUP(DropDownList!$B$47,CntyQryCensus!$A$357:$CM$399,AH$1)","v":10},{"$f":"VLOOKUP(DropDownList!$B$47,CntyQryCensus!$A$357:$CM$399,AI$1)","v":20},{"$f":"VLOOKUP(DropDownList!$B$47,CntyQryCensus!$A$357:$CM$399,AJ$1)","v":2},{"$f":"VLOOKUP(DropDownList!$B$47,CntyQryCensus!$A$357:$CM$399,AK$1)","v":7},{"$f":"VLOOKUP(DropDownList!$B$47,CntyQryCensus!$A$357:$CM$399,AL$1)","v":2},{"$f":"VLOOKUP(DropDownList!$B$47,CntyQryCensus!$A$357:$CM$399,AM$1)","v":13},{"$f":"VLOOKUP(DropDownList!$B$47,CntyQryCensus!$A$357:$CM$399,AN$1)","v":8},{"$f":"VLOOKUP(DropDownList!$B$47,CntyQryCensus!$A$357:$CM$399,AO$1)","v":103},{"$f":"VLOOKUP(DropDownList!$B$47,CntyQryCensus!$A$357:$CM$399,AP$1)","v":8},{"$f":"VLOOKUP(DropDownList!$B$47,CntyQryCensus!$A$357:$CM$399,AQ$1)","v":0},{"$f":"VLOOKUP(DropDownList!$B$47,CntyQryCensus!$A$357:$CM$399,AR$1)","v":0},{"$f":"VLOOKUP(DropDownList!$B$47,CntyQryCensus!$A$357:$CM$399,AS$1)","v":0},{"$f":"VLOOKUP(DropDownList!$B$47,CntyQryCensus!$A$357:$CM$399,AT$1)","v":0},{"$f":"VLOOKUP(DropDownList!$B$47,CntyQryCensus!$A$357:$CM$399,AU$1)","v":5},{"$f":"VLOOKUP(DropDownList!$B$47,CntyQryCensus!$A$357:$CM$399,AV$1)","v":3},{"$f":"VLOOKUP(DropDownList!$B$47,CntyQryCensus!$A$357:$CM$399,AW$1)","v":6},{"$f":"VLOOKUP(DropDownList!$B$47,CntyQryCensus!$A$357:$CM$399,AX$1)","v":0},{"$f":"VLOOKUP(DropDownList!$B$47,CntyQryCensus!$A$357:$CM$399,AY$1)","v":0},{"$f":"VLOOKUP(DropDownList!$B$47,CntyQryCensus!$A$357:$CM$399,AZ$1)","v":0},{"$f":"VLOOKUP(DropDownList!$B$47,CntyQryCensus!$A$357:$CM$399,BA$1)","v":0},{"$f":"VLOOKUP(DropDownList!$B$47,CntyQryCensus!$A$357:$CM$399,BB$1)","v":6},{"$f":"VLOOKUP(DropDownList!$B$47,CntyQryCensus!$A$357:$CM$399,BC$1)","v":0},{"$f":"VLOOKUP(DropDownList!$B$47,CntyQryCensus!$A$357:$CM$399,BD$1)","v":13},{"$f":"VLOOKUP(DropDownList!$B$47,CntyQryCensus!$A$357:$CM$399,BE$1)","v":0},{"$f":"VLOOKUP(DropDownList!$B$47,CntyQryCensus!$A$357:$CM$399,BF$1)","v":0},{"$f":"VLOOKUP(DropDownList!$B$47,CntyQryCensus!$A$357:$CM$399,BG$1)","v":6},{"$f":"VLOOKUP(DropDownList!$B$47,CntyQryCensus!$A$357:$CM$399,BH$1)","v":2},{"$f":"VLOOKUP(DropDownList!$B$47,CntyQryCensus!$A$357:$CM$399,BI$1)","v":5},{"$f":"VLOOKUP(DropDownList!$B$47,CntyQryCensus!$A$357:$CM$399,BJ$1)","v":0},{"$f":"VLOOKUP(DropDownList!$B$47,CntyQryCensus!$A$357:$CM$399,BK$1)","v":17},{"$f":"VLOOKUP(DropDownList!$B$47,CntyQryCensus!$A$357:$CM$399,BL$1)","v":2},{"$f":"VLOOKUP(DropDownList!$B$47,CntyQryCensus!$A$357:$CM$399,BM$1)","v":2},{"$f":"VLOOKUP(DropDownList!$B$47,CntyQryCensus!$A$357:$CM$399,BN$1)","v":5},{"$f":"VLOOKUP(DropDownList!$B$47,CntyQryCensus!$A$357:$CM$399,BO$1)","v":0},{"$f":"VLOOKUP(DropDownList!$B$47,CntyQryCensus!$A$357:$CM$399,BP$1)","v":6},{"$f":"VLOOKUP(DropDownList!$B$47,CntyQryCensus!$A$357:$CM$399,BQ$1)","v":2},{"$f":"VLOOKUP(DropDownList!$B$47,CntyQryCensus!$A$357:$CM$399,BR$1)","v":28},{"$f":"VLOOKUP(DropDownList!$B$47,CntyQryCensus!$A$357:$CM$399,BS$1)","v":14},{"$f":"VLOOKUP(DropDownList!$B$47,CntyQryCensus!$A$357:$CM$399,BT$1)","v":5},{"$f":"VLOOKUP(DropDownList!$B$47,CntyQryCensus!$A$357:$CM$399,BU$1)","v":9},{"$f":"VLOOKUP(DropDownList!$B$47,CntyQryCensus!$A$357:$CM$399,BV$1)","v":0},{"$f":"VLOOKUP(DropDownList!$B$47,CntyQryCensus!$A$357:$CM$399,BW$1)","v":0},{"$f":"VLOOKUP(DropDownList!$B$47,CntyQryCensus!$A$357:$CM$399,BX$1)","v":0},{"$f":"VLOOKUP(DropDownList!$B$47,CntyQryCensus!$A$357:$CM$399,BY$1)","v":27},{"$f":"VLOOKUP(DropDownList!$B$47,CntyQryCensus!$A$357:$CM$399,BZ$1)","v":21},{"$f":"VLOOKUP(DropDownList!$B$47,CntyQryCensus!$A$357:$CM$399,CA$1)","v":3},{"$f":"VLOOKUP(DropDownList!$B$47,CntyQryCensus!$A$357:$CM$399,CB$1)","v":0},{"$f":"VLOOKUP(DropDownList!$B$47,CntyQryCensus!$A$357:$CM$399,CC$1)","v":0},{"$f":"VLOOKUP(DropDownList!$B$47,CntyQryCensus!$A$357:$CM$399,CD$1)","v":0},{"$f":"VLOOKUP(DropDownList!$B$47,CntyQryCensus!$A$357:$CM$399,CE$1)","v":3},{"$f":"VLOOKUP(DropDownList!$B$47,CntyQryCensus!$A$357:$CM$399,CF$1)","v":4},{"$f":"VLOOKUP(DropDownList!$B$47,CntyQryCensus!$A$357:$CM$399,CG$1)","v":4},{"$f":"VLOOKUP(DropDownList!$B$47,CntyQryCensus!$A$357:$CM$399,CH$1)","v":0},{"$f":"VLOOKUP(DropDownList!$B$47,CntyQryCensus!$A$357:$CM$399,CI$1)","v":0},{"$f":"VLOOKUP(DropDownList!$B$47,CntyQryCensus!$A$357:$CM$399,CJ$1)","v":0},{"$f":"VLOOKUP(DropDownList!$B$47,CntyQryCensus!$A$357:$CM$399,CK$1)","v":0},{"$f":"VLOOKUP(DropDownList!$B$47,CntyQryCensus!$A$357:$CM$399,CL$1)","v":0},{"$f":"VLOOKUP(DropDownList!$B$47,CntyQryCensus!$A$357:$CM$399,CM$1)","v":0}]
[]
[]
["Census 2000 SummaryFile3 Sample Data  -  SF3TownQry8HousingCostB"]
["NAME","LOGRECNO","COUNTY","TotalPop","H74SpecOwnerOccHU","H74OOHU<10k","H74OOHU10to15k","H74OOHU15to20k","H74OOHU20to25k","H74OOHU25to30k","H74OOHU30to35k","H74OOHU35to40k","H74OOHU40to50k","H74OOHU50to60k","H74OOHU60to70k","H74OOHU70to80k","H74OOHU80to90k","H74OOHU90to100k","H74OOHU100to125k","H74OOHU125to150k","H74OOHU150to175k","H74OOHU175to200k","H74OOHU200to250k","H74OOHU250to300k","H74OOHU300to400k","H74OOHU400to500k","H74OOHU500to750k","H74OOHU750to1000k","H74OOHU1000kmore","H76OOHUMedianVal","H84OwnerOccHU","H84AllOOHU<10k","H84AllOOHU10to15k","H84AllOOHU15to20k","H84AllOOHU20to25k","H84AllOOHU25to30k","H84AllOOHU30to35k","H84AllOOHU35to40k","H84AllOOHU40to50k","H84AllOOHU50to60k","H84AllOOHU60to70k","H84AllOOHU70to80k","H84AllOOHU80to90k","H84AllOOHU90to100k","H84AllOOHU100to125k","H84AllOOHU125to150k","H84AllOOHU150to175k","H84AllOOHU175to200k","H84AllOOHU200to250k","H84AllOOHU250to300k","H84AllOOHU300to400k","H84AllOOHU400to500k","H84AllOOHU500to750k","H84AllOOHU750to1000k","H84AllOOHU1000kmore","H85OOHUMedVal","H90SOOHU","H90HUwMorgt","H90HUwMtgHC<200","H90HUwMtgHC200to300","H90HUwMtgHC300to400","H90HUwMtgHC400to500","H90HUwMtgHC500to600","H90HUwMtgHC600to700","H90HUwMtgHC700to800","H90HUwMtgHC800to900","H90HUwMtgHC900to1000","H90HUwMtgHC1000to1250","H90HUwMtgHC1250to1500","H90HUwMtgHC1500to2000","H90HUwMtgHC2000to2500","H90HUwMtgHC2500to3000","H90HUwMtgHC3000orMore","H90HUwOutMorgt","H90HUwOutMtgHC<100","H90HUwOutMtgHC100to150","H90HUwOutMtgHC150to200","H90HUwOutMtgHC200to250","H90HUwOutMtgHC250to300","H90HUwOutMtgHC300to350","H90HUwOutMtgHC350to400","H90HUwOutMtgHC400to500","H90HUwOutMtgHC500to600","H90HUwOutMtgHC600to700","H90HUwOutMtgHC700to800","H90HUwOutMtgHC800to900","H90HUwOutMtgHC900to1000","H90HUwOutMtgHC1000orMore","H91MedianOCHUwMtg","H91MedianOCHUwOutMtg","H94SpecOOHU","H94HUwMortg","H94HUwMtgHC<10pct","H94HUwMtgHC10to15pct","H94HUwMtgHC15to20pct","H94HUwMtgHC20to25pct","H94HUwMtgHC25to30pct","H94HUwMtgHC30to35pct","H94HUwMtgHC35to40pct","H94HUwMtgHC40to50pct","H94HUwMtgHC50pctOrMore","H94HUwMtgHCpctNotComp","H94HUWOutMortg","H94HUWOutMortgHC<10pct","H94HUWOutMortgHC10to15pct","H94HUWOutMortgHC15to20pct","H94HUWOutMortgHC20to25pct","H94HUWOutMortgHC25to30pct","H94HUWOutMortgHC30to35pct","H94HUWOutMortgHC35to40pct","H94HUWOutMortgHC40to50pct","H94HUWOutMortgHC50pctOrMore","H94HUWOutMortgHCpctNotComp","H97SpecifOwnOccHU","H97SOOHUInc<10k","H97SOOHUInc<10kHC<20pct","H97SOOHUInc<10kHC20to25pct","H97SOOHUInc<10kHC25to30pct","H97SOOHUInc<10kHC30to35pct","H97SOOHUInc<10kHC>35pct","H97SOOHUInc<10kHCpctNotComput","H97SOOHUInc10to20k","H97SOOHUInc10to20kHC<20pct","H97SOOHUInc10to20kHC20to25pct","H97SOOHUInc10to20kHC25to30pct","H97SOOHUInc10to20kHC30to35pct","H97SOOHUInc10to20kHC>35pct","H97SOOHUInc10to20kHCpctNotComput","H97SOOHUInc20to35k","H97SOOHUInc20to35kRC<20pct","H97SOOHUInc20to35kRC20to25pct","H97SOOHUInc20to35kRC25to30pct","H97SOOHUInc20to35kRC30to35pct","H97SOOHUInc20to35kRC>35pct","H97SOOHUInc20to35kRCpctNotComput","H97SOOHUInc35to50k","H97SOOHUInc35to50kRC<20pct","H97SOOHUInc35to50kRC20to25pct","H97SOOHUInc35to50kRC25to30pct","H97SOOHUInc35to50kRC30to35pct","H97SOOHUInc35to50kRC>35pct","H97SOOHUInc35to50kRCpctNotCompute","H97SOOHUInc50to75k","H97SOOHUInc50to75kRC<20pct","H97SOOHUInc50to75kRC20to25pct","H97SOOHUInc50to75kRC25to30pct","H97SOOHUInc50to75kRC30to35pct","H97SOOHUInc50to75kRC>35pct","H97SOOHUInc50to75kRCpctNotComput","H97SOOHUInc75to100k","H97SOOHUInc75to100kRC<20pct","H97SOOHUInc75to100kRC20to25pct","H97SOOHUInc75to100kRC25to30pct","H97SOOHUInc75to100kRC30to35pct","H97SOOHUInc75to100kRC>35pct","H97SOOHUInc75to100kRCpctNotCompute","H97SOOHUInc100to150k","H97SOOHUInc100to150kRC<20pct","H97SOOHUInc100to150kRC20to25pct","H97SOOHUInc100to150kRC25to30pct","H97SOOHUInc100to150kRC30to35pct","H97SOOHUInc100to150kRC>35pct","H97SOOHUInc100to150kRCpctNotCompute","H97SOOHUInc>150k","H97SOOHUInc>150kRC<20pct","H97SOOHUInc>150kRC20to25pct","H97SOOHUInc>150kRC25to30pct","H97SOOHUInc>150kRC30to35pct","H97SOOHUInc>150kRC>35pct","H97SOOHUInc>150kRCpctNotCompute"]
[{"$f":"VLOOKUP(DropDownList!$B$47,CntyQryCensus!$A$408:$FN$450,A$1)","v":"Grantham"},{"$f":"VLOOKUP(DropDownList!$B$47,CntyQryCensus!$A$408:$FN$450,B$1)","v":"0004212"},{"$f":"VLOOKUP(DropDownList!$B$47,CntyQryCensus!$A$408:$FN$450,C$1)","v":"31220"},{"$f":"VLOOKUP(DropDownList!$B$47,CntyQryCensus!$A$408:$FN$450,D$1)","v":2167},{"$f":"VLOOKUP(DropDownList!$B$47,CntyQryCensus!$A$408:$FN$450,E$1)","v":710},{"$f":"VLOOKUP(DropDownList!$B$47,CntyQryCensus!$A$408:$FN$450,F$1)","v":0},{"$f":"VLOOKUP(DropDownList!$B$47,CntyQryCensus!$A$408:$FN$450,G$1)","v":0},{"$f":"VLOOKUP(DropDownList!$B$47,CntyQryCensus!$A$408:$FN$450,H$1)","v":0},{"$f":"VLOOKUP(DropDownList!$B$47,CntyQryCensus!$A$408:$FN$450,I$1)","v":0},{"$f":"VLOOKUP(DropDownList!$B$47,CntyQryCensus!$A$408:$FN$450,J$1)","v":0},{"$f":"VLOOKUP(DropDownList!$B$47,CntyQryCensus!$A$408:$FN$450,K$1)","v":0},{"$f":"VLOOKUP(DropDownList!$B$47,CntyQryCensus!$A$408:$FN$450,L$1)","v":0},{"$f":"VLOOKUP(DropDownList!$B$47,CntyQryCensus!$A$408:$FN$450,M$1)","v":5},{"$f":"VLOOKUP(DropDownList!$B$47,CntyQryCensus!$A$408:$FN$450,N$1)","v":3},{"$f":"VLOOKUP(DropDownList!$B$47,CntyQryCensus!$A$408:$FN$450,O$1)","v":11},{"$f":"VLOOKUP(DropDownList!$B$47,CntyQryCensus!$A$408:$FN$450,P$1)","v":16},{"$f":"VLOOKUP(DropDownList!$B$47,CntyQryCensus!$A$408:$FN$450,Q$1)","v":20},{"$f":"VLOOKUP(DropDownList!$B$47,CntyQryCensus!$A$408:$FN$450,R$1)","v":43},{"$f":"VLOOKUP(DropDownList!$B$47,CntyQryCensus!$A$408:$FN$450,S$1)","v":89},{"$f":"VLOOKUP(DropDownList!$B$47,CntyQryCensus!$A$408:$FN$450,T$1)","v":139},{"$f":"VLOOKUP(DropDownList!$B$47,CntyQryCensus!$A$408:$FN$450,U$1)","v":79},{"$f":"VLOOKUP(DropDownList!$B$47,CntyQryCensus!$A$408:$FN$450,V$1)","v":76},{"$f":"VLOOKUP(DropDownList!$B$47,CntyQryCensus!$A$408:$FN$450,W$1)","v":81},{"$f":"VLOOKUP(DropDownList!$B$47,CntyQryCensus!$A$408:$FN$450,X$1)","v":69},{"$f":"VLOOKUP(DropDownList!$B$47,CntyQryCensus!$A$408:$FN$450,Y$1)","v":46},{"$f":"VLOOKUP(DropDownList!$B$47,CntyQryCensus!$A$408:$FN$450,Z$1)","v":26},{"$f":"VLOOKUP(DropDownList!$B$47,CntyQryCensus!$A$408:$FN$450,AA$1)","v":5},{"$f":"VLOOKUP(DropDownList!$B$47,CntyQryCensus!$A$408:$FN$450,AB$1)","v":2},{"$f":"VLOOKUP(DropDownList!$B$47,CntyQryCensus!$A$408:$FN$450,AC$1)","v":0},{"$f":"VLOOKUP(DropDownList!$B$47,CntyQryCensus!$A$408:$FN$450,AD$1)","v":159200},{"$f":"VLOOKUP(DropDownList!$B$47,CntyQryCensus!$A$408:$FN$450,AE$1)","v":816},{"$f":"VLOOKUP(DropDownList!$B$47,CntyQryCensus!$A$408:$FN$450,AF$1)","v":0},{"$f":"VLOOKUP(DropDownList!$B$47,CntyQryCensus!$A$408:$FN$450,AG$1)","v":0},{"$f":"VLOOKUP(DropDownList!$B$47,CntyQryCensus!$A$408:$FN$450,AH$1)","v":0},{"$f":"VLOOKUP(DropDownList!$B$47,CntyQryCensus!$A$408:$FN$450,AI$1)","v":0},{"$f":"VLOOKUP(DropDownList!$B$47,CntyQryCensus!$A$408:$FN$450,AJ$1)","v":0},{"$f":"VLOOKUP(DropDownList!$B$47,CntyQryCensus!$A$408:$FN$450,AK$1)","v":0},{"$f":"VLOOKUP(DropDownList!$B$47,CntyQryCensus!$A$408:$FN$450,AL$1)","v":10},{"$f":"VLOOKUP(DropDownList!$B$47,CntyQryCensus!$A$408:$FN$450,AM$1)","v":7},{"$f":"VLOOKUP(DropDownList!$B$47,CntyQryCensus!$A$408:$FN$450,AN$1)","v":6},{"$f":"VLOOKUP(DropDownList!$B$47,CntyQryCensus!$A$408:$FN$450,AO$1)","v":13},{"$f":"VLOOKUP(DropDownList!$B$47,CntyQryCensus!$A$408:$FN$450,AP$1)","v":19},{"$f":"VLOOKUP(DropDownList!$B$47,CntyQryCensus!$A$408:$FN$450,AQ$1)","v":22},{"$f":"VLOOKUP(DropDownList!$B$47,CntyQryCensus!$A$408:$FN$450,AR$1)","v":43},{"$f":"VLOOKUP(DropDownList!$B$47,CntyQryCensus!$A$408:$FN$450,AS$1)","v":97},{"$f":"VLOOKUP(DropDownList!$B$47,CntyQryCensus!$A$408:$FN$450,AT$1)","v":150},{"$f":"VLOOKUP(DropDownList!$B$47,CntyQryCensus!$A$408:$FN$450,AU$1)","v":91},{"$f":"VLOOKUP(DropDownList!$B$47,CntyQryCensus!$A$408:$FN$450,AV$1)","v":83},{"$f":"VLOOKUP(DropDownList!$B$47,CntyQryCensus!$A$408:$FN$450,AW$1)","v":98},{"$f":"VLOOKUP(DropDownList!$B$47,CntyQryCensus!$A$408:$FN$450,AX$1)","v":78},{"$f":"VLOOKUP(DropDownList!$B$47,CntyQryCensus!$A$408:$FN$450,AY$1)","v":57},{"$f":"VLOOKUP(DropDownList!$B$47,CntyQryCensus!$A$408:$FN$450,AZ$1)","v":28},{"$f":"VLOOKUP(DropDownList!$B$47,CntyQryCensus!$A$408:$FN$450,BA$1)","v":12},{"$f":"VLOOKUP(DropDownList!$B$47,CntyQryCensus!$A$408:$FN$450,BB$1)","v":2},{"$f":"VLOOKUP(DropDownList!$B$47,CntyQryCensus!$A$408:$FN$450,BC$1)","v":0},{"$f":"VLOOKUP(DropDownList!$B$47,CntyQryCensus!$A$408:$FN$450,BD$1)","v":161300},{"$f":"VLOOKUP(DropDownList!$B$47,CntyQryCensus!$A$408:$FN$450,BE$1)","v":710},{"$f":"VLOOKUP(DropDownList!$B$47,CntyQryCensus!$A$408:$FN$450,BF$1)","v":459},{"$f":"VLOOKUP(DropDownList!$B$47,CntyQryCensus!$A$408:$FN$450,BG$1)","v":0},{"$f":"VLOOKUP(DropDownList!$B$47,CntyQryCensus!$A$408:$FN$450,BH$1)","v":0},{"$f":"VLOOKUP(DropDownList!$B$47,CntyQryCensus!$A$408:$FN$450,BI$1)","v":2},{"$f":"VLOOKUP(DropDownList!$B$47,CntyQryCensus!$A$408:$FN$450,BJ$1)","v":0},{"$f":"VLOOKUP(DropDownList!$B$47,CntyQryCensus!$A$408:$FN$450,BK$1)","v":13},{"$f":"VLOOKUP(DropDownList!$B$47,CntyQryCensus!$A$408:$FN$450,BL$1)","v":19},{"$f":"VLOOKUP(DropDownList!$B$47,CntyQryCensus!$A$408:$FN$450,BM$1)","v":15},{"$f":"VLOOKUP(DropDownList!$B$47,CntyQryCensus!$A$408:$FN$450,BN$1)","v":19},{"$f":"VLOOKUP(DropDownList!$B$47,CntyQryCensus!$A$408:$FN$450,BO$1)","v":26},{"$f":"VLOOKUP(DropDownList!$B$47,CntyQryCensus!$A$408:$FN$450,BP$1)","v":113},{"$f":"VLOOKUP(DropDownList!$B$47,CntyQryCensus!$A$408:$FN$450,BQ$1)","v":113},{"$f":"VLOOKUP(DropDownList!$B$47,CntyQryCensus!$A$408:$FN$450,BR$1)","v":97},{"$f":"VLOOKUP(DropDownList!$B$47,CntyQryCensus!$A$408:$FN$450,BS$1)","v":25},{"$f":"VLOOKUP(DropDownList!$B$47,CntyQryCensus!$A$408:$FN$450,BT$1)","v":7},{"$f":"VLOOKUP(DropDownList!$B$47,CntyQryCensus!$A$408:$FN$450,BU$1)","v":10},{"$f":"VLOOKUP(DropDownList!$B$47,CntyQryCensus!$A$408:$FN$450,BV$1)","v":251},{"$f":"VLOOKUP(DropDownList!$B$47,CntyQryCensus!$A$408:$FN$450,BW$1)","v":0},{"$f":"VLOOKUP(DropDownList!$B$47,CntyQryCensus!$A$408:$FN$450,BX$1)","v":2},{"$f":"VLOOKUP(DropDownList!$B$47,CntyQryCensus!$A$408:$FN$450,BY$1)","v":2},{"$f":"VLOOKUP(DropDownList!$B$47,CntyQryCensus!$A$408:$FN$450,BZ$1)","v":5},{"$f":"VLOOKUP(DropDownList!$B$47,CntyQryCensus!$A$408:$FN$450,CA$1)","v":19},{"$f":"VLOOKUP(DropDownList!$B$47,CntyQryCensus!$A$408:$FN$450,CB$1)","v":22},{"$f":"VLOOKUP(DropDownList!$B$47,CntyQryCensus!$A$408:$FN$450,CC$1)","v":6},{"$f":"VLOOKUP(DropDownList!$B$47,CntyQryCensus!$A$408:$FN$450,CD$1)","v":59},{"$f":"VLOOKUP(DropDownList!$B$47,CntyQryCensus!$A$408:$FN$450,CE$1)","v":51},{"$f":"VLOOKUP(DropDownList!$B$47,CntyQryCensus!$A$408:$FN$450,CF$1)","v":38},{"$f":"VLOOKUP(DropDownList!$B$47,CntyQryCensus!$A$408:$FN$450,CG$1)","v":20},{"$f":"VLOOKUP(DropDownList!$B$47,CntyQryCensus!$A$408:$FN$450,CH$1)","v":19},{"$f":"VLOOKUP(DropDownList!$B$47,CntyQryCensus!$A$408:$FN$450,CI$1)","v":6},{"$f":"VLOOKUP(DropDownList!$B$47,CntyQryCensus!$A$408:$FN$450,CJ$1)","v":2},{"$f":"VLOOKUP(DropDownList!$B$47,CntyQryCensus!$A$408:$FN$450,CK$1)","v":1300},{"$f":"VLOOKUP(DropDownList!$B$47,CntyQryCensus!$A$408:$FN$450,CL$1)","v":521},{"$f":"VLOOKUP(DropDownList!$B$47,CntyQryCensus!$A$408:$FN$450,CM$1)","v":710},{"$f":"VLOOKUP(DropDownList!$B$47,CntyQryCensus!$A$408:$FN$450,CN$1)","v":459},{"$f":"VLOOKUP(DropDownList!$B$47,CntyQryCensus!$A$408:$FN$450,CO$1)","v":35},{"$f":"VLOOKUP(DropDownList!$B$47,CntyQryCensus!$A$408:$FN$450,CP$1)","v":51},{"$f":"VLOOKUP(DropDownList!$B$47,CntyQryCensus!$A$408:$FN$450,CQ$1)","v":79},{"$f":"VLOOKUP(DropDownList!$B$47,CntyQryCensus!$A$408:$FN$450,CR$1)","v":110},{"$f":"VLOOKUP(DropDownList!$B$47,CntyQryCensus!$A$408:$FN$450,CS$1)","v":71},{"$f":"VLOOKUP(DropDownList!$B$47,CntyQryCensus!$A$408:$FN$450,CT$1)","v":38},{"$f":"VLOOKUP(DropDownList!$B$47,CntyQryCensus!$A$408:$FN$450,CU$1)","v":18},{"$f":"VLOOKUP(DropDownList!$B$47,CntyQryCensus!$A$408:$FN$450,CV$1)","v":25},{"$f":"VLOOKUP(DropDownList!$B$47,CntyQryCensus!$A$408:$FN$450,CW$1)","v":29},{"$f":"VLOOKUP(DropDownList!$B$47,CntyQryCensus!$A$408:$FN$450,CX$1)","v":3},{"$f":"VLOOKUP(DropDownList!$B$47,CntyQryCensus!$A$408:$FN$450,CY$1)","v":251},{"$f":"VLOOKUP(DropDownList!$B$47,CntyQryCensus!$A$408:$FN$450,CZ$1)","v":95},{"$f":"VLOOKUP(DropDownList!$B$47,CntyQryCensus!$A$408:$FN$450,DA$1)","v":71},{"$f":"VLOOKUP(DropDownList!$B$47,CntyQryCensus!$A$408:$FN$450,DB$1)","v":32},{"$f":"VLOOKUP(DropDownList!$B$47,CntyQryCensus!$A$408:$FN$450,DC$1)","v":22},{"$f":"VLOOKUP(DropDownList!$B$47,CntyQryCensus!$A$408:$FN$450,DD$1)","v":2},{"$f":"VLOOKUP(DropDownList!$B$47,CntyQryCensus!$A$408:$FN$450,DE$1)","v":0},{"$f":"VLOOKUP(DropDownList!$B$47,CntyQryCensus!$A$408:$FN$450,DF$1)","v":6},{"$f":"VLOOKUP(DropDownList!$B$47,CntyQryCensus!$A$408:$FN$450,DG$1)","v":5},{"$f":"VLOOKUP(DropDownList!$B$47,CntyQryCensus!$A$408:$FN$450,DH$1)","v":14},{"$f":"VLOOKUP(DropDownList!$B$47,CntyQryCensus!$A$408:$FN$450,DI$1)","v":4},{"$f":"VLOOKUP(DropDownList!$B$47,CntyQryCensus!$A$408:$FN$450,DJ$1)","v":710},{"$f":"VLOOKUP(DropDownList!$B$47,CntyQryCensus!$A$408:$FN$450,DK$1)","v":25},{"$f":"VLOOKUP(DropDownList!$B$47,CntyQryCensus!$A$408:$FN$450,DL$1)","v":0},{"$f":"VLOOKUP(DropDownList!$B$47,CntyQryCensus!$A$408:$FN$450,DM$1)","v":0},{"$f":"VLOOKUP(DropDownList!$B$47,CntyQryCensus!$A$408:$FN$450,DN$1)","v":0},{"$f":"VLOOKUP(DropDownList!$B$47,CntyQryCensus!$A$408:$FN$450,DO$1)","v":0},{"$f":"VLOOKUP(DropDownList!$B$47,CntyQryCensus!$A$408:$FN$450,DP$1)","v":18},{"$f":"VLOOKUP(DropDownList!$B$47,CntyQryCensus!$A$408:$FN$450,DQ$1)","v":7},{"$f":"VLOOKUP(DropDownList!$B$47,CntyQryCensus!$A$408:$FN$450,DR$1)","v":14},{"$f":"VLOOKUP(DropDownList!$B$47,CntyQryCensus!$A$408:$FN$450,DS$1)","v":2},{"$f":"VLOOKUP(DropDownList!$B$47,CntyQryCensus!$A$408:$FN$450,DT$1)","v":0},{"$f":"VLOOKUP(DropDownList!$B$47,CntyQryCensus!$A$408:$FN$450,DU$1)","v":0},{"$f":"VLOOKUP(DropDownList!$B$47,CntyQryCensus!$A$408:$FN$450,DV$1)","v":0},{"$f":"VLOOKUP(DropDownList!$B$47,CntyQryCensus!$A$408:$FN$450,DW$1)","v":12},{"$f":"VLOOKUP(DropDownList!$B$47,CntyQryCensus!$A$408:$FN$450,DX$1)","v":0},{"$f":"VLOOKUP(DropDownList!$B$47,CntyQryCensus!$A$408:$FN$450,DY$1)","v":80},{"$f":"VLOOKUP(DropDownList!$B$47,CntyQryCensus!$A$408:$FN$450,DZ$1)","v":16},{"$f":"VLOOKUP(DropDownList!$B$47,CntyQryCensus!$A$408:$FN$450,EA$1)","v":23},{"$f":"VLOOKUP(DropDownList!$B$47,CntyQryCensus!$A$408:$FN$450,EB$1)","v":10},{"$f":"VLOOKUP(DropDownList!$B$47,CntyQryCensus!$A$408:$FN$450,EC$1)","v":0},{"$f":"VLOOKUP(DropDownList!$B$47,CntyQryCensus!$A$408:$FN$450,ED$1)","v":31},{"$f":"VLOOKUP(DropDownList!$B$47,CntyQryCensus!$A$408:$FN$450,EE$1)","v":0},{"$f":"VLOOKUP(DropDownList!$B$47,CntyQryCensus!$A$408:$FN$450,EF$1)","v":101},{"$f":"VLOOKUP(DropDownList!$B$47,CntyQryCensus!$A$408:$FN$450,EG$1)","v":52},{"$f":"VLOOKUP(DropDownList!$B$47,CntyQryCensus!$A$408:$FN$450,EH$1)","v":11},{"$f":"VLOOKUP(DropDownList!$B$47,CntyQryCensus!$A$408:$FN$450,EI$1)","v":15},{"$f":"VLOOKUP(DropDownList!$B$47,CntyQryCensus!$A$408:$FN$450,EJ$1)","v":6},{"$f":"VLOOKUP(DropDownList!$B$47,CntyQryCensus!$A$408:$FN$450,EK$1)","v":17},{"$f":"VLOOKUP(DropDownList!$B$47,CntyQryCensus!$A$408:$FN$450,EL$1)","v":0},{"$f":"VLOOKUP(DropDownList!$B$47,CntyQryCensus!$A$408:$FN$450,EM$1)","v":211},{"$f":"VLOOKUP(DropDownList!$B$47,CntyQryCensus!$A$408:$FN$450,EN$1)","v":84},{"$f":"VLOOKUP(DropDownList!$B$47,CntyQryCensus!$A$408:$FN$450,EO$1)","v":46},{"$f":"VLOOKUP(DropDownList!$B$47,CntyQryCensus!$A$408:$FN$450,EP$1)","v":38},{"$f":"VLOOKUP(DropDownList!$B$47,CntyQryCensus!$A$408:$FN$450,EQ$1)","v":26},{"$f":"VLOOKUP(DropDownList!$B$47,CntyQryCensus!$A$408:$FN$450,ER$1)","v":17},{"$f":"VLOOKUP(DropDownList!$B$47,CntyQryCensus!$A$408:$FN$450,ES$1)","v":0},{"$f":"VLOOKUP(DropDownList!$B$47,CntyQryCensus!$A$408:$FN$450,ET$1)","v":120},{"$f":"VLOOKUP(DropDownList!$B$47,CntyQryCensus!$A$408:$FN$450,EU$1)","v":75},{"$f":"VLOOKUP(DropDownList!$B$47,CntyQryCensus!$A$408:$FN$450,EV$1)","v":39},{"$f":"VLOOKUP(DropDownList!$B$47,CntyQryCensus!$A$408:$FN$450,EW$1)","v":4},{"$f":"VLOOKUP(DropDownList!$B$47,CntyQryCensus!$A$408:$FN$450,EX$1)","v":2},{"$f":"VLOOKUP(DropDownList!$B$47,CntyQryCensus!$A$408:$FN$450,EY$1)","v":0},{"$f":"VLOOKUP(DropDownList!$B$47,CntyQryCensus!$A$408:$FN$450,EZ$1)","v":0},{"$f":"VLOOKUP(DropDownList!$B$47,CntyQryCensus!$A$408:$FN$450,FA$1)","v":103},{"$f":"VLOOKUP(DropDownList!$B$47,CntyQryCensus!$A$408:$FN$450,FB$1)","v":80},{"$f":"VLOOKUP(DropDownList!$B$47,CntyQryCensus!$A$408:$FN$450,FC$1)","v":11},{"$f":"VLOOKUP(DropDownList!$B$47,CntyQryCensus!$A$408:$FN$450,FD$1)","v":6},{"$f":"VLOOKUP(DropDownList!$B$47,CntyQryCensus!$A$408:$FN$450,FE$1)","v":4},{"$f":"VLOOKUP(DropDownList!$B$47,CntyQryCensus!$A$408:$FN$450,FF$1)","v":2},{"$f":"VLOOKUP(DropDownList!$B$47,CntyQryCensus!$A$408:$FN$450,FG$1)","v":0},{"$f":"VLOOKUP(DropDownList!$B$47,CntyQryCensus!$A$408:$FN$450,FH$1)","v":56},{"$f":"VLOOKUP(DropDownList!$B$47,CntyQryCensus!$A$408:$FN$450,FI$1)","v":54},{"$f":"VLOOKUP(DropDownList!$B$47,CntyQryCensus!$A$408:$FN$450,FJ$1)","v":2},{"$f":"VLOOKUP(DropDownList!$B$47,CntyQryCensus!$A$408:$FN$450,FK$1)","v":0},{"$f":"VLOOKUP(DropDownList!$B$47,CntyQryCensus!$A$408:$FN$450,FL$1)","v":0},{"$f":"VLOOKUP(DropDownList!$B$47,CntyQryCensus!$A$408:$FN$450,FM$1)","v":0},{"$f":"VLOOKUP(DropDownList!$B$47,CntyQryCensus!$A$408:$FN$450,FN$1)","v":0}]
[]
[]
["Census 2000 SummaryFile3 Sample Data  -  SF3TownQry9HHIncomeByTenure"]
["NAME","LOGRECNO","COUNTY","TotalPop","HCT11OccHU","HCT11OwnOccHU","HCT11OOHUInc<5K","HCT11OOHUInc5to10K","HCT11OOHUInc10to15K","HCT11OOHUInc15to20K","HCT11OOHUInc20to25K","HCT11OOHUInc25to35K","HCT11OOHUInc35to50K","HCT11OOHUInc50to75K","HCT11OOHUInc75to100K","HCT11OOHUInc100to150K","HCT11OOHUInc>150K","HCT11RentOccHU","HCT11ROHUInc<5K","HCT11ROHUInc5to10K","HCT11ROHUInc10to15K","HCT11ROHUInc15to20K","HCT11ROHUInc20to25K","HCT11ROHUInc25to35K","HCT11ROHUInc35to50K","HCT11ROHUInc50to75K","HCT11ROHUInc75to100K","HCT11ROHUInc100to150K","HCT11ROHUInc>150K","HCT12MedHHInc","HCT12MedOwnOccHHInc","HCT12MedRentOccHHInc","Summary Level"]
[{"$f":"VLOOKUP(DropDownList!$B$47,CntyQryCensus!$A$459:$AG$501,A$1)","v":"Grantham"},{"$f":"VLOOKUP(DropDownList!$B$47,CntyQryCensus!$A$459:$AG$501,B$1)","v":"0004212"},{"$f":"VLOOKUP(DropDownList!$B$47,CntyQryCensus!$A$459:$AG$501,C$1)","v":"31220"},{"$f":"VLOOKUP(DropDownList!$B$47,CntyQryCensus!$A$459:$AG$501,D$1)","v":"Grantham town"},{"$f":"VLOOKUP(DropDownList!$B$47,CntyQryCensus!$A$459:$AG$501,E$1)","v":"019"},{"$f":"VLOOKUP(DropDownList!$B$47,CntyQryCensus!$A$459:$AG$501,F$1)","v":2167},{"$f":"VLOOKUP(DropDownList!$B$47,CntyQryCensus!$A$459:$AG$501,G$1)","v":925},{"$f":"VLOOKUP(DropDownList!$B$47,CntyQryCensus!$A$459:$AG$501,H$1)","v":816},{"$f":"VLOOKUP(DropDownList!$B$47,CntyQryCensus!$A$459:$AG$501,I$1)","v":15},{"$f":"VLOOKUP(DropDownList!$B$47,CntyQryCensus!$A$459:$AG$501,J$1)","v":10},{"$f":"VLOOKUP(DropDownList!$B$47,CntyQryCensus!$A$459:$AG$501,K$1)","v":9},{"$f":"VLOOKUP(DropDownList!$B$47,CntyQryCensus!$A$459:$AG$501,L$1)","v":12},{"$f":"VLOOKUP(DropDownList!$B$47,CntyQryCensus!$A$459:$AG$501,M$1)","v":32},{"$f":"VLOOKUP(DropDownList!$B$47,CntyQryCensus!$A$459:$AG$501,N$1)","v":62},{"$f":"VLOOKUP(DropDownList!$B$47,CntyQryCensus!$A$459:$AG$501,O$1)","v":124},{"$f":"VLOOKUP(DropDownList!$B$47,CntyQryCensus!$A$459:$AG$501,P$1)","v":229},{"$f":"VLOOKUP(DropDownList!$B$47,CntyQryCensus!$A$459:$AG$501,Q$1)","v":135},{"$f":"VLOOKUP(DropDownList!$B$47,CntyQryCensus!$A$459:$AG$501,R$1)","v":124},{"$f":"VLOOKUP(DropDownList!$B$47,CntyQryCensus!$A$459:$AG$501,S$1)","v":64},{"$f":"VLOOKUP(DropDownList!$B$47,CntyQryCensus!$A$459:$AG$501,T$1)","v":109},{"$f":"VLOOKUP(DropDownList!$B$47,CntyQryCensus!$A$459:$AG$501,U$1)","v":8},{"$f":"VLOOKUP(DropDownList!$B$47,CntyQryCensus!$A$459:$AG$501,V$1)","v":0},{"$f":"VLOOKUP(DropDownList!$B$47,CntyQryCensus!$A$459:$AG$501,W$1)","v":3},{"$f":"VLOOKUP(DropDownList!$B$47,CntyQryCensus!$A$459:$AG$501,X$1)","v":3},{"$f":"VLOOKUP(DropDownList!$B$47,CntyQryCensus!$A$459:$AG$501,Y$1)","v":7},{"$f":"VLOOKUP(DropDownList!$B$47,CntyQryCensus!$A$459:$AG$501,Z$1)","v":6},{"$f":"VLOOKUP(DropDownList!$B$47,CntyQryCensus!$A$459:$AG$501,AA$1)","v":23},{"$f":"VLOOKUP(DropDownList!$B$47,CntyQryCensus!$A$459:$AG$501,AB$1)","v":28},{"$f":"VLOOKUP(DropDownList!$B$47,CntyQryCensus!$A$459:$AG$501,AC$1)","v":27},{"$f":"VLOOKUP(DropDownList!$B$47,CntyQryCensus!$A$459:$AG$501,AD$1)","v":2},{"$f":"VLOOKUP(DropDownList!$B$47,CntyQryCensus!$A$459:$AG$501,AE$1)","v":2},{"$f":"VLOOKUP(DropDownList!$B$47,CntyQryCensus!$A$459:$AG$501,AF$1)","v":63207},{"$f":"VLOOKUP(DropDownList!$B$47,CntyQryCensus!$A$459:$AG$501,AG$1)","v":64342}]
[]
[]
[]
[]
[]
[{"$f":"VLOOKUP(DropDownList!$B$47,CntyQryCensus!$A$510:$DA$552,A$1)","v":"Grantham"}]
[]
[]
[]
[]
[]
[]
[]
["Census 2000 SummaryFile3 Sample Data - SF3TownQry10Disabil"]
["NAME","LOGRECNO","COUNTY","TotalPop","PCT026001-NonInstPop5yrs+","PCT026002-MaleNonInstPop5yrs+","PCT026003","PCT026004","PCT026005","PCT026006","PCT026007","PCT026008","PCT026009","PCT026010","PCT026011","PCT026012","PCT026013","PCT026014","PCT026015","PCT026016","PCT026017","PCT026018","PCT026019","PCT026020","PCT026021","PCT026022","PCT026023","PCT026024","PCT026025","PCT026026","PCT026027","PCT026028","PCT026029","PCT026030","PCT026031","PCT026032","PCT026033","PCT026034","PCT026035","PCT026036","PCT026037","PCT026038","PCT026039","PCT026040","PCT026041","PCT026042","PCT026043","PCT026044","PCT026045","PCT026046","PCT026047","PCT026048","PCT026049","PCT026050","PCT026051","PCT026052","PCT026053","PCT026054","PCT026055","PCT026056","PCT026057","PCT026058","PCT026059","PCT026060","PCT026061","PCT026062","PCT026063","PCT026064","PCT026065","PCT026066","PCT026067","PCT026068","PCT026069","PCT026070","PCT026071","PCT026072","PCT026073","PCT026074","PCT026075","PCT026076","PCT026077","PCT026078","PCT026079","PCT026080","PCT026081","PCT026082","PCT026083","PCT026084","PCT026085","PCT026086","PCT026087","PCT026088","PCT026089","PCT026090","PCT026091","PCT026092","PCT026093","PCT026094","PCT026095","PCT026096","PCT026097","PCT026098","PCT026099","PCT026100","PCT026101"]
[{"$f":"VLOOKUP(DropDownList!$B$47,CntyQryCensus!$A$510:$DA$552,A$1)","v":"Grantham"},{"$f":"VLOOKUP(DropDownList!$B$47,CntyQryCensus!$A$510:$DA$552,B$1)","v":"0000232"},{"$f":"VLOOKUP(DropDownList!$B$47,CntyQryCensus!$A$510:$DA$552,C$1)","v":"019"},{"$f":"VLOOKUP(DropDownList!$B$47,CntyQryCensus!$A$510:$DA$552,D$1)","v":2985},{"$f":"VLOOKUP(DropDownList!$B$47,CntyQryCensus!$A$510:$DA$552,E$1)","v":2959},{"$f":"VLOOKUP(DropDownList!$B$47,CntyQryCensus!$A$510:$DA$552,F$1)","v":2898},{"$f":"VLOOKUP(DropDownList!$B$47,CntyQryCensus!$A$510:$DA$552,G$1)","v":13},{"$f":"VLOOKUP(DropDownList!$B$47,CntyQryCensus!$A$510:$DA$552,H$1)","v":1},{"$f":"VLOOKUP(DropDownList!$B$47,CntyQryCensus!$A$510:$DA$552,I$1)","v":29},{"$f":"VLOOKUP(DropDownList!$B$47,CntyQryCensus!$A$510:$DA$552,J$1)","v":0},{"$f":"VLOOKUP(DropDownList!$B$47,CntyQryCensus!$A$510:$DA$552,K$1)","v":18},{"$f":"VLOOKUP(DropDownList!$B$47,CntyQryCensus!$A$510:$DA$552,L$1)","v":26},{"$f":"VLOOKUP(DropDownList!$B$47,CntyQryCensus!$A$510:$DA$552,M$1)","v":53},{"$f":"VLOOKUP(DropDownList!$B$47,CntyQryCensus!$A$510:$DA$552,N$1)","v":2932},{"$f":"VLOOKUP(DropDownList!$B$47,CntyQryCensus!$A$510:$DA$552,O$1)","v":539},{"$f":"VLOOKUP(DropDownList!$B$47,CntyQryCensus!$A$510:$DA$552,P$1)","v":192},{"$f":"VLOOKUP(DropDownList!$B$47,CntyQryCensus!$A$510:$DA$552,Q$1)","v":237},{"$f":"VLOOKUP(DropDownList!$B$47,CntyQryCensus!$A$510:$DA$552,R$1)","v":432},{"$f":"VLOOKUP(DropDownList!$B$47,CntyQryCensus!$A$510:$DA$552,S$1)","v":468},{"$f":"VLOOKUP(DropDownList!$B$47,CntyQryCensus!$A$510:$DA$552,T$1)","v":492},{"$f":"VLOOKUP(DropDownList!$B$47,CntyQryCensus!$A$510:$DA$552,U$1)","v":371},{"$f":"VLOOKUP(DropDownList!$B$47,CntyQryCensus!$A$510:$DA$552,V$1)","v":254},{"$f":"VLOOKUP(DropDownList!$B$47,CntyQryCensus!$A$510:$DA$552,W$1)","v":47.3},{"$f":"VLOOKUP(DropDownList!$B$47,CntyQryCensus!$A$510:$DA$552,X$1)","v":47},{"$f":"VLOOKUP(DropDownList!$B$47,CntyQryCensus!$A$510:$DA$552,Y$1)","v":47.6},{"$f":"VLOOKUP(DropDownList!$B$47,CntyQryCensus!$A$510:$DA$552,Z$1)","v":1249},{"$f":"VLOOKUP(DropDownList!$B$47,CntyQryCensus!$A$510:$DA$552,AA$1)","v":2985},{"$f":"VLOOKUP(DropDownList!$B$47,CntyQryCensus!$A$510:$DA$552,AB$1)","v":1602},{"$f":"VLOOKUP(DropDownList!$B$47,CntyQryCensus!$A$510:$DA$552,AC$1)","v":1383},{"$f":"VLOOKUP(DropDownList!$B$47,CntyQryCensus!$A$510:$DA$552,AD$1)","v":2.39},{"$f":"VLOOKUP(DropDownList!$B$47,CntyQryCensus!$A$510:$DA$552,AE$1)","v":919},{"$f":"VLOOKUP(DropDownList!$B$47,CntyQryCensus!$A$510:$DA$552,AF$1)","v":822},{"$f":"VLOOKUP(DropDownList!$B$47,CntyQryCensus!$A$510:$DA$552,AG$1)","v":97},{"$f":"VLOOKUP(DropDownList!$B$47,CntyQryCensus!$A$510:$DA$552,AH$1)","v":330},{"$f":"VLOOKUP(DropDownList!$B$47,CntyQryCensus!$A$510:$DA$552,AI$1)","v":2.74},{"$f":"VLOOKUP(DropDownList!$B$47,CntyQryCensus!$A$510:$DA$552,AJ$1)","v":4.1909090909090905},{"$f":"VLOOKUP(DropDownList!$B$47,CntyQryCensus!$A$510:$DA$552,AK$1)","v":2.4},{"$f":"VLOOKUP(DropDownList!$B$47,CntyQryCensus!$A$510:$DA$552,AL$1)","v":2.33},{"$f":"VLOOKUP(DropDownList!$B$47,CntyQryCensus!$A$510:$DA$552,AM$1)","v":1773},{"$f":"VLOOKUP(DropDownList!$B$47,CntyQryCensus!$A$510:$DA$552,AN$1)","v":1249},{"$f":"VLOOKUP(DropDownList!$B$47,CntyQryCensus!$A$510:$DA$552,AO$1)","v":1094},{"$f":"VLOOKUP(DropDownList!$B$47,CntyQryCensus!$A$510:$DA$552,AP$1)","v":155},{"$f":"VLOOKUP(DropDownList!$B$47,CntyQryCensus!$A$510:$DA$552,AQ$1)","v":524},{"$f":"VLOOKUP(DropDownList!$B$47,CntyQryCensus!$A$510:$DA$552,AR$1)","v":7},{"$f":"VLOOKUP(DropDownList!$B$47,CntyQryCensus!$A$510:$DA$552,AS$1)","v":0},{"$f":"VLOOKUP(DropDownList!$B$47,CntyQryCensus!$A$510:$DA$552,AT$1)","v":24},{"$f":"VLOOKUP(DropDownList!$B$47,CntyQryCensus!$A$510:$DA$552,AU$1)","v":7},{"$f":"VLOOKUP(DropDownList!$B$47,CntyQryCensus!$A$510:$DA$552,AV$1)","v":475},{"$f":"VLOOKUP(DropDownList!$B$47,CntyQryCensus!$A$510:$DA$552,AW$1)","v":11},{"$f":"VLOOKUP(DropDownList!$B$47,CntyQryCensus!$A$510:$DA$552,AX$1)","v":2.1},{"$f":"VLOOKUP(DropDownList!$B$47,CntyQryCensus!$A$510:$DA$552,AY$1)","v":4.3},{"$f":"VLOOKUP(DropDownList!$B$47,CntyQryCensus!$A$510:$DA$552,AZ$1)","v":1773},{"$f":"VLOOKUP(DropDownList!$B$47,CntyQryCensus!$A$510:$DA$552,BA$1)","v":1455},{"$f":"VLOOKUP(DropDownList!$B$47,CntyQryCensus!$A$510:$DA$552,BB$1)","v":304},{"$f":"VLOOKUP(DropDownList!$B$47,CntyQryCensus!$A$510:$DA$552,BC$1)","v":14},{"$f":"VLOOKUP(DropDownList!$B$47,CntyQryCensus!$A$510:$DA$552,BD$1)","v":0},{"$f":"VLOOKUP(DropDownList!$B$47,CntyQryCensus!$A$510:$DA$552,BE$1)","v":0},{"$f":"VLOOKUP(DropDownList!$B$47,CntyQryCensus!$A$510:$DA$552,BF$1)","v":0},{"$f":"VLOOKUP(DropDownList!$B$47,CntyQryCensus!$A$510:$DA$552,BG$1)","v":0},{"$f":"VLOOKUP(DropDownList!$B$47,CntyQryCensus!$A$510:$DA$552,BH$1)","v":0},{"$f":"VLOOKUP(DropDownList!$B$47,CntyQryCensus!$A$510:$DA$552,BI$1)","v":0},{"$f":"VLOOKUP(DropDownList!$B$47,CntyQryCensus!$A$510:$DA$552,BJ$1)","v":0},{"$f":"VLOOKUP(DropDownList!$B$47,CntyQryCensus!$A$510:$DA$552,BK$1)","v":0},{"$f":"VLOOKUP(DropDownList!$B$47,CntyQryCensus!$A$510:$DA$552,BL$1)","v":0},{"$f":"VLOOKUP(DropDownList!$B$47,CntyQryCensus!$A$510:$DA$552,BM$1)","v":0},{"$f":"VLOOKUP(DropDownList!$B$47,CntyQryCensus!$A$510:$DA$552,BN$1)","v":0},{"$f":"VLOOKUP(DropDownList!$B$47,CntyQryCensus!$A$510:$DA$552,BO$1)","v":0},{"$f":"VLOOKUP(DropDownList!$B$47,CntyQryCensus!$A$510:$DA$552,BP$1)","v":0},{"$f":"VLOOKUP(DropDownList!$B$47,CntyQryCensus!$A$510:$DA$552,BQ$1)","v":0},{"$f":"VLOOKUP(DropDownList!$B$47,CntyQryCensus!$A$510:$DA$552,BR$1)","v":0},{"$f":"VLOOKUP(DropDownList!$B$47,CntyQryCensus!$A$510:$DA$552,BS$1)","v":0},{"$f":"VLOOKUP(DropDownList!$B$47,CntyQryCensus!$A$510:$DA$552,BT$1)","v":0},{"$f":"VLOOKUP(DropDownList!$B$47,CntyQryCensus!$A$510:$DA$552,BU$1)","v":0},{"$f":"VLOOKUP(DropDownList!$B$47,CntyQryCensus!$A$510:$DA$552,BV$1)","v":0},{"$f":"VLOOKUP(DropDownList!$B$47,CntyQryCensus!$A$510:$DA$552,BW$1)","v":0},{"$f":"VLOOKUP(DropDownList!$B$47,CntyQryCensus!$A$510:$DA$552,BX$1)","v":0},{"$f":"VLOOKUP(DropDownList!$B$47,CntyQryCensus!$A$510:$DA$552,BY$1)","v":0},{"$f":"VLOOKUP(DropDownList!$B$47,CntyQryCensus!$A$510:$DA$552,BZ$1)","v":0},{"$f":"VLOOKUP(DropDownList!$B$47,CntyQryCensus!$A$510:$DA$552,CA$1)","v":0},{"$f":"VLOOKUP(DropDownList!$B$47,CntyQryCensus!$A$510:$DA$552,CB$1)","v":0},{"$f":"VLOOKUP(DropDownList!$B$47,CntyQryCensus!$A$510:$DA$552,CC$1)","v":0},{"$f":"VLOOKUP(DropDownList!$B$47,CntyQryCensus!$A$510:$DA$552,CD$1)","v":0},{"$f":"VLOOKUP(DropDownList!$B$47,CntyQryCensus!$A$510:$DA$552,CE$1)","v":0},{"$f":"VLOOKUP(DropDownList!$B$47,CntyQryCensus!$A$510:$DA$552,CF$1)","v":0},{"$f":"VLOOKUP(DropDownList!$B$47,CntyQryCensus!$A$510:$DA$552,CG$1)","v":0},{"$f":"VLOOKUP(DropDownList!$B$47,CntyQryCensus!$A$510:$DA$552,CH$1)","v":0},{"$f":"VLOOKUP(DropDownList!$B$47,CntyQryCensus!$A$510:$DA$552,CI$1)","v":0},{"$f":"VLOOKUP(DropDownList!$B$47,CntyQryCensus!$A$510:$DA$552,CJ$1)","v":0},{"$f":"VLOOKUP(DropDownList!$B$47,CntyQryCensus!$A$510:$DA$552,CK$1)","v":0},{"$f":"VLOOKUP(DropDownList!$B$47,CntyQryCensus!$A$510:$DA$552,CL$1)","v":0},{"$f":"VLOOKUP(DropDownList!$B$47,CntyQryCensus!$A$510:$DA$552,CM$1)","v":0},{"$f":"VLOOKUP(DropDownList!$B$47,CntyQryCensus!$A$510:$DA$552,CN$1)","v":0},{"$f":"VLOOKUP(DropDownList!$B$47,CntyQryCensus!$A$510:$DA$552,CO$1)","v":0},{"$f":"VLOOKUP(DropDownList!$B$47,CntyQryCensus!$A$510:$DA$552,CP$1)","v":0},{"$f":"VLOOKUP(DropDownList!$B$47,CntyQryCensus!$A$510:$DA$552,CQ$1)","v":0},{"$f":"VLOOKUP(DropDownList!$B$47,CntyQryCensus!$A$510:$DA$552,CR$1)","v":0},{"$f":"VLOOKUP(DropDownList!$B$47,CntyQryCensus!$A$510:$DA$552,CS$1)","v":0},{"$f":"VLOOKUP(DropDownList!$B$47,CntyQryCensus!$A$510:$DA$552,CT$1)","v":0},{"$f":"VLOOKUP(DropDownList!$B$47,CntyQryCensus!$A$510:$DA$552,CU$1)","v":0},{"$f":"VLOOKUP(DropDownList!$B$47,CntyQryCensus!$A$510:$DA$552,CV$1)","v":0},{"$f":"VLOOKUP(DropDownList!$B$47,CntyQryCensus!$A$510:$DA$552,CW$1)","v":0},{"$f":"VLOOKUP(DropDownList!$B$47,CntyQryCensus!$A$510:$DA$552,CX$1)","v":0},{"$f":"VLOOKUP(DropDownList!$B$47,CntyQryCensus!$A$510:$DA$552,CY$1)","v":0},{"$f":"VLOOKUP(DropDownList!$B$47,CntyQryCensus!$A$510:$DA$552,CZ$1)","v":0},{"$f":"VLOOKUP(DropDownList!$B$47,CntyQryCensus!$A$510:$DA$552,DA$1)","v":0}]
[]
[]
[]
[]
[{"$f":"VLOOKUP(DropDownList!$B$47,CntyQryCensus!$A$510:$DA$552,A$1)","v":"Grantham"}]
[]
[]
[]
["ACS",2,{"$f":"B105+1","v":3},{"$f":"C105+1","v":4},5,6,7,8,9,10,11,{"$f":"K105+1","v":12},13,14,15,{"$f":"O105+1","v":16},17,18,19,20,21,22,23,24,25,26,27,28,29,30,31,32,33,34,35,36,37,38,39,40,41,42,43,44,45,46,47,48,49,50,51,52,53,54,55,56,57,58,59,60,61,62,63,64,65,66,67,{"$f":"BO105+1","v":68},69,70,71,72,73,74,75,76,77,78,79,80,81,82,83,84,85,86,87,88,89,90,91,92,93,94,95,96,97,98,99,100,101,102,103,104,105,106,107,108,109,110,111,112,113,114,115,116,117,118,119,120,121,122,123,124,125]
["Househould Data (Housing Unit Type)"]
["NAME","TotalHU",{"$f":"\"MOE \"&B107","v":"MOE TotalHU"},"TotalOccHU",{"$f":"\"MOE \"&D107","v":"MOE TotalOccHU"},"TotalOwnerOccUn",{"$f":"\"MOE \"&F107","v":"MOE TotalOwnerOccUn"},"TotalRenterOccn",{"$f":"\"MOE \"&H107","v":"MOE TotalRenterOccn"},"TotalVacantUntis",{"$f":"\"MOE \"&J107","v":"MOE TotalVacantUntis"},"VacantUnitsForRent",{"$f":"\"MOE \"&L107","v":"MOE VacantUnitsForRent"},"VacantUnitRentedNotOcc",{"$f":"\"MOE \"&N107","v":"MOE VacantUnitRentedNotOcc"},"VacantUnitForSale",{"$f":"\"MOE \"&P107","v":"MOE VacantUnitForSale"},"VacantUnitSoldNotOcc",{"$f":"\"MOE \"&R107","v":"MOE VacantUnitSoldNotOcc"},"VacantUnitSeasonalRec",{"$f":"\"MOE \"&T107","v":"MOE VacantUnitSeasonalRec"},"TotalPopInHousingUnits",{"$f":"\"MOE \"&V107","v":"MOE TotalPopInHousingUnits"},"OwnerOccPopHousingUnits",{"$f":"\"MOE \"&X107","v":"MOE OwnerOccPopHousingUnits"},"RenterOccPopHousingUnits",{"$f":"\"MOE \"&Z107","v":"MOE RenterOccPopHousingUnits"},"TotalUntis",{"$f":"\"MOE \"&AB107","v":"MOE TotalUntis"},"TotalOwnerOccUnits",{"$f":"\"MOE \"&AD107","v":"MOE TotalOwnerOccUnits"},"SigFamOwnerOcc",{"$f":"\"MOE \"&AF107","v":"MOE SigFamOwnerOcc"},"MultiFamOwnerOcc",{"$f":"\"MOE \"&AH107","v":"MOE MultiFamOwnerOcc"},"MobileOwnerOcc",{"$f":"\"MOE \"&AJ107","v":"MOE MobileOwnerOcc"},"TotalRenterOccUnits",{"$f":"\"MOE \"&AL107","v":"MOE TotalRenterOccUnits"},"SigFamRenterOcc",{"$f":"\"MOE \"&AN107","v":"MOE SigFamRenterOcc"},"MultiFamRenterOcc",{"$f":"\"MOE \"&AP107","v":"MOE MultiFamRenterOcc"},"MobileRenterOcc",{"$f":"\"MOE \"&AR107","v":"MOE MobileRenterOcc"},"TotalSigFamilyUnits",{"$f":"\"MOE \"&AT107","v":"MOE TotalSigFamilyUnits"},"TotalMultiFamilyUnits",{"$f":"\"MOE \"&AV107","v":"MOE TotalMultiFamilyUnits"},"TotalMobileUnits",{"$f":"\"MOE \"&AX107","v":"MOE TotalMobileUnits"},"YrHouseBuilt2014Later",{"$f":"\"MOE \"&AZ107","v":"MOE YrHouseBuilt2014Later"},"YrHouseBuilt2010-2013",{"$f":"\"MOE \"&BB107","v":"MOE YrHouseBuilt2010-2013"},"YrHouseBuilt2000-2009",{"$f":"\"MOE \"&BD107","v":"MOE YrHouseBuilt2000-2009"},"YrHouseBuilt1990-1999",{"$f":"\"MOE \"&BF107","v":"MOE YrHouseBuilt1990-1999"},"YrHouseBuilt1980-1989",{"$f":"\"MOE \"&BH107","v":"MOE YrHouseBuilt1980-1989"},"YrHouseBuilt1970-1979",{"$f":"\"MOE \"&BJ107","v":"MOE YrHouseBuilt1970-1979"},"YrHouseBuilt1960-1969",{"$f":"\"MOE \"&BL107","v":"MOE YrHouseBuilt1960-1969"},"YrHouseBuilt1950-1959",{"$f":"\"MOE \"&BN107","v":"MOE YrHouseBuilt1950-1959"},"YrHouseBuilt1940-1949",{"$f":"\"MOE \"&BP107","v":"MOE YrHouseBuilt1940-1949"},"YrHouseBuilt1939orEarlier",{"$f":"\"MOE \"&BR107","v":"MOE YrHouseBuilt1939orEarlier"},"NoBedrooms",{"$f":"\"MOE \"&BT107","v":"MOE NoBedrooms"},"1Bedroom",{"$f":"\"MOE \"&BV107","v":"MOE 1Bedroom"},"2Bedroom",{"$f":"\"MOE \"&BX107","v":"MOE 2Bedroom"},"3Bedroom",{"$f":"\"MOE \"&BZ107","v":"MOE 3Bedroom"},"4+Bedroom",{"$f":"\"MOE \"&CB107","v":"MOE 4+Bedroom"}]
[{"$f":"VLOOKUP(DropDownList!$B$47,CntyQryCensus!$A$530:$AY$544,A$1)","v":"Grantham"},5933,312,5208,341,2884,282,2324,297,725,214,224,125,40,54,0,19,43,59,156,107,12835,114,7595,629,5240,623,5208,341,2884,282,2377,257,136,100.34440691936945,371,164.10362579784763,2324,297,345,212,1865,325.42280190545961,114,83.198557679805958,2939,334,2490,377.345995076137,504,184.97837711473198,0,19,44,60,178,79,192,93,705,198,905,216,596,212,464,211,506,158,2343,318,24,26,1277,232,1981,314,1899,284,752,190.66462702871763,81,79,36,74,28,76,114,30,114,142,91,44,40,134,119,76,105,14,132,142,84,108,151,154,137,30,701,207.10383868967759,300,141.01418368376991,207.27517941133232,197.81304304822774]
[]
["Disability Data"]
["NAME","TotalPop","PCT026001-NonInstPop5yrs+","PCT026002-MaleNonInstPop5yrs+","Male5To15NonInstitPop","Male5To15-NoDisability","Male5To15-1Disability","Male5To15-2orMoreDisabilities","Male16To20-NonInstitutionalPop","Male16To20-NoDisability","Male16To20-1Disability","Male16To20-2orMoreDisabilities","Male21To64-NonInstitutionalPop","Male21To64-NoDisability","Male21To64-1Disability","Male21To64-2orMoreDisabilities","Male65To74-NonInstitutionalPop","Male65To74-NoDisability","Male65To74-1Disability","Male65To74-2orMoreDisabilities","Male75Over-NonInstitutionalPop","Male75Over-NoDisability","Male75Over-1Disability","Male75Over-2orMoreDisabilities","PCT026002-FemaleNonInstPop5yrs+","FemaleNonInstPop5To15NonInstPop","Female5To15-NoDisability","Female5To15-1Disability","Female5To15-2orMoreDisabilities","FemaleNonInstPop16To20NonInstPop","Female16To20-NoDisability","Female16To20-1Disability","Female16To20-2orMoreDisabilities","FemaleNonInstPop21To64NonInstPop","Female21To64-NoDisability","Female21To64-1Disability","Female21To64-2orMoreDisabilities","FemaleNonInstPop65To74NonInstPop","Female65To74-NoDisability","Female65To74-1Disability","Female65To74-2orMoreDisabilities","FemaleNonInstPop75OverNonInstPop","Female75Over-NoDisability","Female75Over-1Disability","Female75Over-2orMoreDisabilities","Male5To15-SensoryDisability","Male16To20-SensoryDisability","Male21To64-SensoryDisability","Male65To74-SensoryDisability","Male75Over-SensoryDisability","Female5To15-SensoryDisability","Female16To20-SensoryDisability","Female21To64-SensoryDisability","Female65To74-SensoryDisability","Female75Over-SensoryDisability","Male5To15-PhysicalDisabil","Male16To20-PhysicalDisabil","Male21To64-PhysicalDisabil","Male65To74-PhysicalDisabil","Male75Over-PhysicalDisabil","Female5To15-PhysicalDisabil","Female16To20-PhysicalDisabil","Female21To64-PhysicalDisabil","Female65To74-PhysicalDisabil","Female75Over-PhysicalDisabil","Male5To15-MentalDisabil","Male16To20-MentalDisabil","Male21To64-MentalDisabil","Male65To74-MentalDisabil","Male75Over-MentalDisabil","Female5To15-MentalDisabil","Female16To20-MentalDisabil","Female21To64-MentalDisabil","Female65To74-MentalDisabil","Female75Over-MentalDisabil","Male5To15-SelfCareDisabil","Male16To20-SelfCareDisabil","Male21To64-SelfCareDisabil","Male65To74-SelfCareDisabil","Male75Over-SelfCareDisabil","Female5To15-SelfCareDisabil","Female16To20-SelfCareDisabil","Female21To64-SelfCareDisabil","Female65To74-SelfCareDisabil","Female75Over-SelfCareDisabil","Male16To20-GoOutsideHomeDisabil","Male21To64-GoOutsideHomeDisabil","Male65To74-GoOutsideHomeDisabil","Male75Over-GoOutsideHomeDisabil","Female16To20-GoOutsideHomeDisabil","Female21To64-GoOutsideHomeDisabil","Female65To74-GoOutsideHomeDisabil","Female75Over-GoOutsideHomeDisabil","Male16To20-EmploymentDisabil","Male21To64-EmploymentDisabil","Female16To20-EmploymentDisabil","Female21To64-EmploymentDisabil"]
[{"$f":"VLOOKUP(DropDownList!$B$47,CntyQryCensus!$A$530:$AY$544,A$1)","v":"Grantham"},3394,23,0,16.970562748477139,0,16.970562748477139,0,16.970562748477139,758,203.29535164385831,0,16.970562748477139,758,203.29535164385831,298,140.52046114356443,0,16.970562748477139,298,140.52046114356443,1474,234.01922997907673,44,63.150613615387776,1430,240.05207768315609,417,165.8493292117879,100,81.859635963031252,317,151.38031576133008,447,172.73389939441535,145,139.08630414242805,302,133.64505228402584,0,16.970562748477139,0,16.970562748477139,0,16.970562748477139,44,63.150613615387776,82,76.478755219995577,109,124.57929201917949,0,16.970562748477139,0,16.970562748477139,0,16.970562748477139,0,16.970562748477139,18,29.546573405388315,0,16.970562748477139,0,16.970562748477139,0,16.970562748477139,0,16.970562748477139,48,69.050706006528273,0,16.970562748477139,0,16.970562748477139,0,16.970562748477139,0,16.970562748477139,36,38.897300677553446,36,64.132674979295857,0,16.970562748477139,0,16.970562748477139,0,16.970562748477139,0,16.970562748477139,0,16.970562748477139,0,15.556349186104045,14,15,12,21.095023109728988,50,49.365980188789933,0,12,0,12,44,62,0,12,143,131,102,98]
[]
["Househould Income By Age"]
["NAME","TotalHouseholds",{"$f":"\"MOE \"&B115","v":"MOE TotalHouseholds"},"HHInc<10K",{"$f":"\"MOE \"&D115","v":"MOE HHInc<10K"},"HHInc10to15K",{"$f":"\"MOE \"&F115","v":"MOE HHInc10to15K"},"HHInc15to20K",{"$f":"\"MOE \"&H115","v":"MOE HHInc15to20K"},"HHInc20to25K",{"$f":"\"MOE \"&J115","v":"MOE HHInc20to25K"},"HHInc25to30K",{"$f":"\"MOE \"&L115","v":"MOE HHInc25to30K"},"HHInc30to35K",{"$f":"\"MOE \"&N115","v":"MOE HHInc30to35K"},"HHInc35to40K",{"$f":"\"MOE \"&P115","v":"MOE HHInc35to40K"},"HHInc40to45K",{"$f":"\"MOE \"&R115","v":"MOE HHInc40to45K"},"HHInc45to50K",{"$f":"\"MOE \"&T115","v":"MOE HHInc45to50K"},"HHInc50to60K",{"$f":"\"MOE \"&V115","v":"MOE HHInc50to60K"},"HHInc60to75K",{"$f":"\"MOE \"&X115","v":"MOE HHInc60to75K"},"HHInc75to100K",{"$f":"\"MOE \"&Z115","v":"MOE HHInc75to100K"},"HHInc100to125K",{"$f":"\"MOE \"&AB115","v":"MOE HHInc100to125K"},"HHInc125to150K",{"$f":"\"MOE \"&AD115","v":"MOE HHInc125to150K"},"HHInc150to200K",{"$f":"\"MOE \"&AF115","v":"MOE HHInc150to200K"},"HHInc>200K",{"$f":"\"MOE \"&AH115","v":"MOE HHInc>200K"},"TotalHH",{"$f":"\"MOE \"&AJ115","v":"MOE TotalHH"},"HHAgeHHUnder25yrs",{"$f":"\"MOE \"&AL115","v":"MOE HHAgeHHUnder25yrs"},"HHAgeHH<25HHInc<10K",{"$f":"\"MOE \"&AN115","v":"MOE HHAgeHH<25HHInc<10K"},"HHAgeHH<25HHInc10to15K",{"$f":"\"MOE \"&AP115","v":"MOE HHAgeHH<25HHInc10to15K"},"HHAgeHH<25HHInc15to20K",{"$f":"\"MOE \"&AR115","v":"MOE HHAgeHH<25HHInc15to20K"},"HHAgeHH<25HHInc20to25K",{"$f":"\"MOE \"&AT115","v":"MOE HHAgeHH<25HHInc20to25K"},"HHAgeHH<25HHInc25to30K",{"$f":"\"MOE \"&AV115","v":"MOE HHAgeHH<25HHInc25to30K"},"HHAgeHH<25HHInc30to35K",{"$f":"\"MOE \"&AX115","v":"MOE HHAgeHH<25HHInc30to35K"},"HHAgeHH<25HHInc35to40K",{"$f":"\"MOE \"&AZ115","v":"MOE HHAgeHH<25HHInc35to40K"},"HHAgeHH<25HHInc40to45K",{"$f":"\"MOE \"&BB115","v":"MOE HHAgeHH<25HHInc40to45K"},"HHAgeHH<25HHInc45to50K",{"$f":"\"MOE \"&BD115","v":"MOE HHAgeHH<25HHInc45to50K"},"HHAgeHH<25HHInc50to60K",{"$f":"\"MOE \"&BF115","v":"MOE HHAgeHH<25HHInc50to60K"},"HHAgeHH<25HHInc60to75K",{"$f":"\"MOE \"&BH115","v":"MOE HHAgeHH<25HHInc60to75K"},"HHAgeHH<25HHInc75to100K",{"$f":"\"MOE \"&BJ115","v":"MOE HHAgeHH<25HHInc75to100K"},"HHAgeHH<25HHInc100to125K",{"$f":"\"MOE \"&BL115","v":"MOE HHAgeHH<25HHInc100to125K"},"HHAgeHH<25HHInc125to150K",{"$f":"\"MOE \"&BN115","v":"MOE HHAgeHH<25HHInc125to150K"},"HHAgeHH<25HHInc150to200K",{"$f":"\"MOE \"&BP115","v":"MOE HHAgeHH<25HHInc150to200K"},"HHAge<25HHInc>200K",{"$f":"\"MOE \"&BR115","v":"MOE HHAge<25HHInc>200K"},"HHAgeHH25to44yrs",{"$f":"\"MOE \"&BT115","v":"MOE HHAgeHH25to44yrs"},"HHAgeHH25To44yrsHHInc<10K",{"$f":"\"MOE \"&BV115","v":"MOE HHAgeHH25To44yrsHHInc<10K"},"HHAgeHH25To44yrsHHInc10to15K",{"$f":"\"MOE \"&BX115","v":"MOE HHAgeHH25To44yrsHHInc10to15K"},"HHAgeHH25To44yrsHHInc15to20K",{"$f":"\"MOE \"&BZ115","v":"MOE HHAgeHH25To44yrsHHInc15to20K"},"HHAgeHH25To44yrsHHInc20to25K",{"$f":"\"MOE \"&CB115","v":"MOE HHAgeHH25To44yrsHHInc20to25K"},"HHAgeHH25To44yrsHHInc25to30K",{"$f":"\"MOE \"&CD115","v":"MOE HHAgeHH25To44yrsHHInc25to30K"},"HHAgeHH25To44yrsHHInc30to35K",{"$f":"\"MOE \"&CF115","v":"MOE HHAgeHH25To44yrsHHInc30to35K"},"HHAgeHH25To44yrsHHInc35to40K",{"$f":"\"MOE \"&CH115","v":"MOE HHAgeHH25To44yrsHHInc35to40K"},"HHAgeHH25To44yrsHHInc40to45K",{"$f":"\"MOE \"&CJ115","v":"MOE HHAgeHH25To44yrsHHInc40to45K"},"HHAgeHH25To44yrsHHInc45to50K",{"$f":"\"MOE \"&CL115","v":"MOE HHAgeHH25To44yrsHHInc45to50K"},"HHAgeHH25To44yrsHHInc50to60K",{"$f":"\"MOE \"&CN115","v":"MOE HHAgeHH25To44yrsHHInc50to60K"},"HHAgeHH25To44yrsHHInc60to75K",{"$f":"\"MOE \"&CP115","v":"MOE HHAgeHH25To44yrsHHInc60to75K"},"HHAgeHH25To44yrsHHInc75to100K",{"$f":"\"MOE \"&CR115","v":"MOE HHAgeHH25To44yrsHHInc75to100K"},"HHAgeHH25To44yrsHHInc100to125K",{"$f":"\"MOE \"&CT115","v":"MOE HHAgeHH25To44yrsHHInc100to125K"},"HHAgeHH25To44yrsHHInc125to150K",{"$f":"\"MOE \"&CV115","v":"MOE HHAgeHH25To44yrsHHInc125to150K"},"HHAgeHH25To44yrsHHInc150to200K",{"$f":"\"MOE \"&CX115","v":"MOE HHAgeHH25To44yrsHHInc150to200K"},"HHAge25To44yrsHHInc>200K",{"$f":"\"MOE \"&CZ115","v":"MOE HHAge25To44yrsHHInc>200K"},"HHAgeHH45To64yrs",{"$f":"\"MOE \"&DB115","v":"MOE HHAgeHH45To64yrs"},"HHAgeHH45To64yrsHHInc<10K",{"$f":"\"MOE \"&DD115","v":"MOE HHAgeHH45To64yrsHHInc<10K"},"HHAgeHH45To64yrsHHInc10to15K",{"$f":"\"MOE \"&DF115","v":"MOE HHAgeHH45To64yrsHHInc10to15K"},"HHAgeHH45To64yrsHHInc15to20K",{"$f":"\"MOE \"&DH115","v":"MOE HHAgeHH45To64yrsHHInc15to20K"},"HHAgeHH45To64yrsHHInc20to25K",{"$f":"\"MOE \"&DJ115","v":"MOE HHAgeHH45To64yrsHHInc20to25K"},"HHAgeHH45To64yrsHHInc25to30K",{"$f":"\"MOE \"&DL115","v":"MOE HHAgeHH45To64yrsHHInc25to30K"},"HHAgeHH45To64yrsHHInc30to35K",{"$f":"\"MOE \"&DN115","v":"MOE HHAgeHH45To64yrsHHInc30to35K"},"HHAgeHH45To64yrsHHInc35to40K",{"$f":"\"MOE \"&DP115","v":"MOE HHAgeHH45To64yrsHHInc35to40K"},"HHAgeHH45To64yrsHHInc40to45K",{"$f":"\"MOE \"&DR115","v":"MOE HHAgeHH45To64yrsHHInc40to45K"},"HHAgeHH45To64yrsHHInc45to50K",{"$f":"\"MOE \"&DT115","v":"MOE HHAgeHH45To64yrsHHInc45to50K"},"HHAgeHH45To64yrsHHInc50to60K",{"$f":"\"MOE \"&DV115","v":"MOE HHAgeHH45To64yrsHHInc50to60K"},"HHAgeHH45To64yrsHHInc60to75K",{"$f":"\"MOE \"&DX115","v":"MOE HHAgeHH45To64yrsHHInc60to75K"},"HHAgeHH45To64yrsHHInc75to100K",{"$f":"\"MOE \"&DZ115","v":"MOE HHAgeHH45To64yrsHHInc75to100K"},"HHAgeHH45To64yrsHHInc100to125K",{"$f":"\"MOE \"&EB115","v":"MOE HHAgeHH45To64yrsHHInc100to125K"},"HHAgeHH45To64yrsHHInc125to150K",{"$f":"\"MOE \"&ED115","v":"MOE HHAgeHH45To64yrsHHInc125to150K"},"HHAgeHH45To64yrsHHInc150to200K",{"$f":"\"MOE \"&EF115","v":"MOE HHAgeHH45To64yrsHHInc150to200K"},"HHAge45To64yrsHHInc>200K",{"$f":"\"MOE \"&EH115","v":"MOE HHAge45To64yrsHHInc>200K"},"HHAgeHH65yrsorOlder",{"$f":"\"MOE \"&EJ115","v":"MOE HHAgeHH65yrsorOlder"},"HHAgeHH65yrsorOlderHHInc<10K",{"$f":"\"MOE \"&EL115","v":"MOE HHAgeHH65yrsorOlderHHInc<10K"},"HHAgeHH65yrsorOlderHHInc10to15K",{"$f":"\"MOE \"&EN115","v":"MOE HHAgeHH65yrsorOlderHHInc10to15K"},"HHAgeHH65yrsorOlderHHInc15to20K",{"$f":"\"MOE \"&EP115","v":"MOE HHAgeHH65yrsorOlderHHInc15to20K"},"HHAgeHH65yrsorOlderHHInc20to25K",{"$f":"\"MOE \"&ER115","v":"MOE HHAgeHH65yrsorOlderHHInc20to25K"},"HHAgeHH65yrsorOlderHHInc25to30K",{"$f":"\"MOE \"&ET115","v":"MOE HHAgeHH65yrsorOlderHHInc25to30K"},"HHAgeHH65yrsorOlderHHInc30to35K",{"$f":"\"MOE \"&EV115","v":"MOE HHAgeHH65yrsorOlderHHInc30to35K"},"HHAgeHH65yrsorOlderHHInc35to40K",{"$f":"\"MOE \"&EX115","v":"MOE HHAgeHH65yrsorOlderHHInc35to40K"},"HHAgeHH65yrsorOlderHHInc40to45K",{"$f":"\"MOE \"&EZ115","v":"MOE HHAgeHH65yrsorOlderHHInc40to45K"},"HHAgeHH65yrsorOlderHHInc45to50K",{"$f":"\"MOE \"&FB115","v":"MOE HHAgeHH65yrsorOlderHHInc45to50K"},"HHAgeHH65yrsorOlderHHInc50to60K",{"$f":"\"MOE \"&FD115","v":"MOE HHAgeHH65yrsorOlderHHInc50to60K"},"HHAgeHH65yrsorOlderHHInc60to75K",{"$f":"\"MOE \"&FF115","v":"MOE HHAgeHH65yrsorOlderHHInc60to75K"},"HHAgeHH65yrsorOlderHHInc75to100K",{"$f":"\"MOE \"&FH115","v":"MOE HHAgeHH65yrsorOlderHHInc75to100K"},"HHAgeHH65yrsorOlderHHInc100to125K",{"$f":"\"MOE \"&FJ115","v":"MOE HHAgeHH65yrsorOlderHHInc100to125K"},"HHAgeHH65yrsorOlderHHInc125to150K",{"$f":"\"MOE \"&FL115","v":"MOE HHAgeHH65yrsorOlderHHInc125to150K"},"HHAgeHH65yrsorOlderHHInc150to200K",{"$f":"\"MOE \"&FN115","v":"MOE HHAgeHH65yrsorOlderHHInc150to200K"},"HHAge65yrsorOlderHHInc>200K",{"$f":"\"MOE \"&FP115","v":"MOE HHAge65yrsorOlderHHInc>200K"},"MedianHHInc",{"$f":"\"MOE \"&FR115","v":"MOE MedianHHInc"},"HH under 25 years",{"$f":"\"MOE \"&FT115","v":"MOE HH under 25 years"},"Householder 25 to 44 years",{"$f":"\"MOE \"&FV115","v":"MOE Householder 25 to 44 years"},"Householder 45 to 64 years",{"$f":"\"MOE \"&FX115","v":"MOE Householder 45 to 64 years"},"Householder 65 years and over",{"$f":"\"MOE \"&FZ115","v":"MOE Householder 65 years and over"}]
[{"$f":"VLOOKUP(DropDownList!$B$47,CntyQryCensus!$A$530:$AY$544,A$1)","v":"Grantham"},1149,128,0,12,0,12,50,76,0,12,0,12,91,92,0,12,37,44,0,12,131,91,88,67,101,88,106,80,46,42,283,156,216,152,1149,128,13,22,0,12,0,12,0,12,0,12,0,12,0,12,0,12,0,12,0,12,0,12,13,22,0,12,0,12,0,12,0,12,0,12,209,136,0,12,0,12,0,12,0,12,0,12,0,12,0,12,0,12,0,12,0,12,18,27,0,12,17,26,0,12,69,73,105,122,515,150,0,12,0,12,0,12,0,12,0,12,20,30,0,12,37,44,0,12,0,12,0,12,101,88,0,12,32,36,214,141,111,87,412,141,0,12,0,12,50,76,0,12,0,12,71,87,0,12,0,12,0,12,131,91,57,58,0,12,89,72,14,21,0,12,0,12,114132,45553,"-","**",237552,133359,175687,26891,58991,11528]
[]
["Number of Households by Income"]
["NAME","HHIncLessThn10k",{"$f":"\"MOE \"&B119","v":"MOE HHIncLessThn10k"},"HHInc10to15K",{"$f":"\"MOE \"&D119","v":"MOE HHInc10to15K"},"HHInc15to25K",{"$f":"\"MOE \"&F119","v":"MOE HHInc15to25K"},"HHInc25to35K",{"$f":"\"MOE \"&H119","v":"MOE HHInc25to35K"},"HHInc35to50K",{"$f":"\"MOE \"&J119","v":"MOE HHInc35to50K"},"HHInc50to75K",{"$f":"\"MOE \"&L119","v":"MOE HHInc50to75K"},"HHInc75to100K",{"$f":"\"MOE \"&N119","v":"MOE HHInc75to100K"},"HHInc100to150K",{"$f":"\"MOE \"&P119","v":"MOE HHInc100to150K"},"HHInc150to200K",{"$f":"\"MOE \"&R119","v":"MOE HHInc150to200K"},"HHIncOver200K",{"$f":"\"MOE \"&T119","v":"MOE HHIncOver200K"}]
[{"$f":"VLOOKUP(DropDownList!$B$47,CntyQryCensus!$A$530:$AY$544,A$1)","v":"Grantham"},0,12,0,12,50,76.941536246685374,91,92.779308037945611,37,47.159304490206381,219,113.00442469213318,101,88,152,90.354855984612144,283,156,216,152,null,null,null,null,null,null,null,null,null,null,null,null,null,null,null,null,null,null,null,null,null,null,null,null,null,null,null,null,null,null,null,null,null,null,null,null,null,null,null,null,null,null,null,null,null,null,null,null,null,null,null,null,null,71,144,93,171,118,131,100,66,49,292,122,333,132,307,97,186,97,22,28,12,20,0,16,null,null,null,null,null,null,null,null,null,null,null,null,null,null,"Charlestown",null,"Estimate","Margin Of Error",2310,107,null,null,133,93,71,53,340,130.81666560496029,246,117.00427342623003,368,162.24980739587951,625,179.74426277353055,307,97,208,100.96038827183659,12,20,0,16]
[]
["POVERTY DATA"]
["NAME","TotalPop",{"$f":"\"MOE \"&B123","v":"MOE TotalPop"},"Total Individuals living in Poverty",{"$f":"\"MOE \"&D123","v":"MOE Total Individuals living in Poverty"},"Under 5 yrs.",{"$f":"\"MOE \"&F123","v":"MOE Under 5 yrs."},"5 to 17 yrs.",{"$f":"\"MOE \"&H123","v":"MOE 5 to 17 yrs."},"18 to 64 yrs.",{"$f":"\"MOE \"&J123","v":"MOE 18 to 64 yrs."},"65 to 74 yrs.",{"$f":"\"MOE \"&L123","v":"MOE 65 to 74 yrs."},"75 yrs. & Over",{"$f":"\"MOE \"&N123","v":"MOE 75 yrs. & Over"},"Total Individuals  Not living Poverty",{"$f":"\"MOE \"&P123","v":"MOE Total Individuals  Not living Poverty"},"Under 5 yrs.",{"$f":"\"MOE \"&R123","v":"MOE Under 5 yrs."},"5 to 17 yrs.",{"$f":"\"MOE \"&T123","v":"MOE 5 to 17 yrs."},"18 to 64 yrs.",{"$f":"\"MOE \"&V123","v":"MOE 18 to 64 yrs."},"65 to 74 yrs.",{"$f":"\"MOE \"&X123","v":"MOE 65 to 74 yrs."},"75 yrs. & Over",{"$f":"\"MOE \"&Z123","v":"MOE 75 yrs. & Over"},"Total HH",{"$f":"\"MOE \"&AB123","v":"MOE Total HH"},"Total Households Below Poverty",{"$f":"\"MOE \"&AD123","v":"MOE Total Households Below Poverty"},"Family Households in Poverty",{"$f":"\"MOE \"&AF123","v":"MOE Family Households in Poverty"},"Married Couple Fam HH",{"$f":"\"MOE \"&AH123","v":"MOE Married Couple Fam HH"},"Other Family",{"$f":"\"MOE \"&AJ123","v":"MOE Other Family"},"Male Head of Family HH no wife",{"$f":"\"MOE \"&AL123","v":"MOE Male Head of Family HH no wife"},"Female Head of Family HH no husband",{"$f":"\"MOE \"&AN123","v":"MOE Female Head of Family HH no husband"},"Non-Family HH",{"$f":"\"MOE \"&AP123","v":"MOE Non-Family HH"},"Non-Family Male HH",{"$f":"\"MOE \"&AR123","v":"MOE Non-Family Male HH"},"Non-Family Female HH",{"$f":"\"MOE \"&AT123","v":"MOE Non-Family Female HH"},"Total Households at or Above Poverty",{"$f":"\"MOE \"&AV123","v":"MOE Total Households at or Above Poverty"},"Family Households above Poverty",{"$f":"\"MOE \"&AX123","v":"MOE Family Households above Poverty"},"Married Couple Fam HH",{"$f":"\"MOE \"&AZ123","v":"MOE Married Couple Fam HH"},"Other Family",{"$f":"\"MOE \"&BB123","v":"MOE Other Family"},"Male Head of Family HH no wife",{"$f":"\"MOE \"&BD123","v":"MOE Male Head of Family HH no wife"},"Female Head of Family HH no husband",{"$f":"\"MOE \"&BF123","v":"MOE Female Head of Family HH no husband"},"Non-Family HH",{"$f":"\"MOE \"&BH123","v":"MOE Non-Family HH"},"Non-Family Male HH",{"$f":"\"MOE \"&BJ123","v":"MOE Non-Family Male HH"},"Non-Family Female HH",{"$f":"\"MOE \"&BL123","v":"MOE Non-Family Female HH"},"Married Couple with Children Below Poverty",{"$f":"\"MOE \"&BN123","v":"MOE Married Couple with Children Below Poverty"},"Male HH with children below poverty",{"$f":"\"MOE \"&BP123","v":"MOE Male HH with children below poverty"},"Female HH with children below poverty",{"$f":"\"MOE \"&BR123","v":"MOE Female HH with children below poverty"},"Married Couple with Children At or Above Poverty",{"$f":"\"MOE \"&BT123","v":"MOE Married Couple with Children At or Above Poverty"},"Male HH with children at or above poverty",{"$f":"\"MOE \"&BV123","v":"MOE Male HH with children at or above poverty"},"Female HH with children at or above poverty",{"$f":"\"MOE \"&BX123","v":"MOE Female HH with children at or above poverty"}]
[{"$f":"VLOOKUP(DropDownList!$B$47,CntyQryCensus!$A$530:$AY$544,A$1)","v":"Grantham"},3348,19,477,288,7,37,54,68.154236845554948,388,277.82728447724497,0,16.970562748477139,28,45.607017003965517,2871,290,89,64.140470843298303,337,105.80642702596096,1555,259.54190413110558,586,119.5198728245642,304,141.42842712835352,1131,153,96,73,43,40,28,35,15,18,8,12,7,13,53,62,25,42,28,44,1035,150,687,104,596,102,91,49,47,38,44,29,348,139,213,132,135,67,21,33,8,12,7,13,180,50,7,12,23,24,null,null,null,null,null,11,0,11,0,11,0,11,5,5,6,9,2,3,0,11,2,3,876,135,460,79,25,16,0,11,24,16,7,11,9,10,0,11,19,16,56,25,24,12,77,32,93,24,82,27,44,21,416,77,9,9,13,15,14,13,5,6,0,11,9,15,15,11,29,17,57,27,54,24,71,26,112,29,28,14,null,null,null,null,null,null,null,null,null,null,null,null,null,null,"Acworth",null,"Estimate","Margin Of Error",928,135,52,26,0,11.401754250991379,2,31.432467291003423,43,31.511902513177461,3,11.704699910719626,4,4.2426406871192848,876,135,34,18.357559750685819,81,38.665229858362409,495,70.823724838503097,194,39.623225512317902,72,25.238858928247925]
[]
["Household Income By Tenure"]
["NAME","TotalOccHU",{"$f":"\"MOE \"&B127","v":"MOE TotalOccHU"},"OwnOccHU",{"$f":"\"MOE \"&D127","v":"MOE OwnOccHU"},"OOHUInc<5K",{"$f":"\"MOE \"&F127","v":"MOE OOHUInc<5K"},"OOHUInc5to10K",{"$f":"\"MOE \"&H127","v":"MOE OOHUInc5to10K"},"OOHUInc10to15K",{"$f":"\"MOE \"&J127","v":"MOE OOHUInc10to15K"},"OOHUInc15to20K",{"$f":"\"MOE \"&L127","v":"MOE OOHUInc15to20K"},"OOHUInc20to25K",{"$f":"\"MOE \"&N127","v":"MOE OOHUInc20to25K"},"OOHUInc25to35K",{"$f":"\"MOE \"&P127","v":"MOE OOHUInc25to35K"},"OOHUInc35to50K",{"$f":"\"MOE \"&R127","v":"MOE OOHUInc35to50K"},"OOHUInc50to75K",{"$f":"\"MOE \"&T127","v":"MOE OOHUInc50to75K"},"OOHUInc75to100K",{"$f":"\"MOE \"&V127","v":"MOE OOHUInc75to100K"},"OOHUInc100to150K",{"$f":"\"MOE \"&X127","v":"MOE OOHUInc100to150K"},"OOHUInc>150K",{"$f":"\"MOE \"&Z127","v":"MOE OOHUInc>150K"},"RentOccHU",{"$f":"\"MOE \"&AB127","v":"MOE RentOccHU"},"ROHUInc<5K",{"$f":"\"MOE \"&AD127","v":"MOE ROHUInc<5K"},"ROHUInc5to10K",{"$f":"\"MOE \"&AF127","v":"MOE ROHUInc5to10K"},"ROHUInc10to15K",{"$f":"\"MOE \"&AH127","v":"MOE ROHUInc10to15K"},"ROHUInc15to20K",{"$f":"\"MOE \"&AJ127","v":"MOE ROHUInc15to20K"},"ROHUInc20to25K",{"$f":"\"MOE \"&AL127","v":"MOE ROHUInc20to25K"},"ROHUInc25to35K",{"$f":"\"MOE \"&AN127","v":"MOE ROHUInc25to35K"},"ROHUInc35to50K",{"$f":"\"MOE \"&AP127","v":"MOE ROHUInc35to50K"},"ROHUInc50to75K",{"$f":"\"MOE \"&AR127","v":"MOE ROHUInc50to75K"},"ROHUInc75to100K",{"$f":"\"MOE \"&AT127","v":"MOE ROHUInc75to100K"},"ROHUInc100to150K",{"$f":"\"MOE \"&AV127","v":"MOE ROHUInc100to150K"},"ROHUInc>150K",{"$f":"\"MOE \"&AX127","v":"MOE ROHUInc>150K"},"Total OCC HUInc<5K",{"$f":"\"MOE \"&AZ127","v":"MOE Total OCC HUInc<5K"},"Total OCC HUInc5to10K",{"$f":"\"MOE \"&BB127","v":"MOE Total OCC HUInc5to10K"},"Total OCC HUInc10to15K",{"$f":"\"MOE \"&BD127","v":"MOE Total OCC HUInc10to15K"},"Total OCC HUInc15to20K",{"$f":"\"MOE \"&BF127","v":"MOE Total OCC HUInc15to20K"},"Total OCC HUInc20to25K",{"$f":"\"MOE \"&BH127","v":"MOE Total OCC HUInc20to25K"},"Total OCC HUInc25to35K",{"$f":"\"MOE \"&BJ127","v":"MOE Total OCC HUInc25to35K"},"Total OCC HUInc35to50K",{"$f":"\"MOE \"&BL127","v":"MOE Total OCC HUInc35to50K"},"Total OCC HUInc50to75K",{"$f":"\"MOE \"&BN127","v":"MOE Total OCC HUInc50to75K"},"Total OCC HUInc75to100K",{"$f":"\"MOE \"&BP127","v":"MOE Total OCC HUInc75to100K"},"Total OCC HUInc100to150K",{"$f":"\"MOE \"&BR127","v":"MOE Total OCC HUInc100to150K"},"Total OCC HUInc>150K",{"$f":"\"MOE \"&BT127","v":"MOE Total OCC HUInc>150K"},"MedHHInc",{"$f":"\"MOE \"&BV127","v":"MOE MedHHInc"},"MedOwnOccHHInc",{"$f":"\"MOE \"&BX127","v":"MOE MedOwnOccHHInc"},"MedRentOccHHInc",{"$f":"\"MOE \"&BZ127","v":"MOE MedRentOccHHInc"}]
[{"$f":"VLOOKUP(DropDownList!$B$47,CntyQryCensus!$A$530:$AY$544,A$1)","v":"Grantham"},1149,128,1091,138,0,12,0,12,0,12,50,76,0,12,91,92,37,44,206,105,101,88,152,84,454,167,58,72,0,12,0,12,0,12,0,12,0,12,0,12,0,12,13,22,0,12,0,12,45,65,0,16.970562748477139,0,16.970562748477139,0,16.970562748477139,50,76.941536246685374,0,16.970562748477139,91,92.779308037945611,37,45.607017003965517,219,107.28000745712129,101,88.814413244698073,152,84.852813742385706,499,179.20379460268134,114132,45553,113021,34366,"-","**"]
[]
["Population Data"]
["NAME","Total Population","MOE Total Population","Under 15 Years","MOE Under 15 yrs.","15 to 24 yrs.","MOE 15 to 24 yrs.","25 to 34 yrs.","MOE 25 to 34 yrs.","35 to 44 yrs.","MOE 35 to 44 yrs.","45 to 54 yrs.","MOE 45 to 54 yrs.","55 to 64 yrs.","MOE 55 to 64 yrs.","65 to 74 yrs.","MOE 65 to 74 yrs.","Over 74 yrs. ","MOE Over 74 yrs. ","TotalHH","MOE TotalHH","FamilyHH","MOE FamilyHH","MarriedFamilyHH","MOE MarriedFamilyHH","SingleFamilyHH","MOE SingleFamilyHH","Sfamily-MaleHH","MOE Sfamily-MaleHH","Sfamily-FemaleHH","MOE Sfamily-FemaleHH","NonFamilyHH","MOE NonFamilyHH","NonFamilyHH-LivingAlone","MOE NonFamilyHH-LivingAlone","NonFamilyHH-NotLivingAlone","MOE NonFamilyHH-NotLivingAlone","PopRaceWhite","MOE PopRaceWhite","PopRaceBlack","MOE PopRaceBlack","PopRaceAmerican Indian","MOE PopRaceAmerican Indian","PopRaceAsian &Pacific Is.","MOE PopRaceAsian &Pacific Is.","PopRaceOther*","MOE PopRaceOther*","PopRaceHispanic or Latino:","MOE PopRaceHispanic or Latino:","MedianAgeTotalPop","MOE MedianAgeTotalPop","MedianAgeMale","MOE MedianAgeMale","MedianAgeFemale","MOE MedianAgeFemale","AvgHHSizeTotal","MOE AvgHHSizeTotal","AvgHHSizeFamilyHH","MOE AvgHHSizeFamilyHH","AvgHHSizeNonFamilyHH","MOE AvgHHSizeNonFamilyHH"]
[{"$f":"VLOOKUP(DropDownList!$B$47,CntyQryCensus!$A$530:$AY$544,A$1)","v":"Grantham"},12955,37,2122,318.86987941792182,1212,244.48312825223749,1770,260.68755244545144,1583,307.40852297878797,2099,283.68644662725779,1714,310.46255812899562,1646,300.17494898808593,809,190.12101409365562,5208,341,2804,237,1921,272,883,184,190,101,693,165,2404,338,1958,325,446,163,12009,199,187,95,0,19,72,82.225300242686856,295,151.19854496654392,392,120,44.1,2.8,42.7,3.2,45.2,3.1,2.4644777265745006,0.16284251354400892,3.4436519258202569,0.33677192246821819,1.3223793677204658,0.26412770651737438,null,null,null,null,null,null,null,null,null,null,null,null,null,null,null,null,null,null,null,null,null,null,null,null,null,null,"Plainfield",null,"Estimate","Margin Of Error",2694,356,449,131.7269904006009,372,112.40996397117117,389,134.72564715005083,207,92.271338995378187,327,92.617492948146676,412,90.393583843102491,383,95.399161421890909,155,67.904344485459845,84,72,null,null,null,null,null,null,null,null,null,null,null,null,null,null,null,null,null,null,null,null,null,null,null,null,null,null,null,null,null,null,null,null,null,null,"Charlestown",null,"Estimate","Margin Of Error",5019,17,1004,224.53062151964929,304,132.66876045248935,631,193.38303958723992,568,187.2378166931029,540,178.95809565370325,974,226.13933757752099,547,174.43623476789449,451,158.43295111813072]
[]
["Nativity and Prior Place of Residence"]
["NAME","TotalPop",{"$f":"\"MOE \"&B135","v":"MOE TotalPop"},"Native:",{"$f":"\"MOE \"&D135","v":"MOE Native:"},"NatBornInStateOfResidence",{"$f":"\"MOE \"&F135","v":"MOE NatBornInStateOfResidence"},"Born in other state in the United States:",{"$f":"\"MOE \"&H135","v":"MOE Born in other state in the United States:"},"Northeast",{"$f":"\"MOE \"&J135","v":"MOE Northeast"},"Midwest",{"$f":"\"MOE \"&L135","v":"MOE Midwest"},"South",{"$f":"\"MOE \"&N135","v":"MOE South"},"West",{"$f":"\"MOE \"&P135","v":"MOE West"},"Born outside the United States:",{"$f":"\"MOE \"&R135","v":"MOE Born outside the United States:"},"Puerto Rico",{"$f":"\"MOE \"&T135","v":"MOE Puerto Rico"},"U.S. Island Areas",{"$f":"\"MOE \"&V135","v":"MOE U.S. Island Areas"},"Born abroad of American parent(s)",{"$f":"\"MOE \"&X135","v":"MOE Born abroad of American parent(s)"},"Foreign born:",{"$f":"\"MOE \"&Z135","v":"MOE Foreign born:"},"Naturalized U.S. citizen",{"$f":"\"MOE \"&AB135","v":"MOE Naturalized U.S. citizen"},"Not a U.S. citizen",{"$f":"\"MOE \"&AD135","v":"MOE Not a U.S. citizen"},"CurrentResidenceTotal:",{"$f":"\"MOE \"&AF135","v":"MOE CurrentResidenceTotal:"},"SameHouse:",{"$f":"\"MOE \"&AH135","v":"MOE SameHouse:"},"DifferentHouse:",{"$f":"\"MOE \"&AJ135","v":"MOE DifferentHouse:"},"DiffHouseInNH",{"$f":"\"MOE \"&AL135","v":"MOE DiffHouseInNH"},"DiffHouseInNHSameCnty",{"$f":"\"MOE \"&AN135","v":"MOE DiffHouseInNHSameCnty"},"DiffHouseInNHDiffCnty",{"$f":"\"MOE \"&AP135","v":"MOE DiffHouseInNHDiffCnty"},"DiffHouseInDiffState",{"$f":"\"MOE \"&AR135","v":"MOE DiffHouseInDiffState"},"DiffHouseInElsewhere",{"$f":"\"MOE \"&AT135","v":"MOE DiffHouseInElsewhere"}]
[{"$f":"VLOOKUP(DropDownList!$B$47,CntyQryCensus!$A$530:$AY$544,A$1)","v":"Grantham"},12955,37,12475,165,7208,595,5156,554,4096,573,231,109,364,141,465,208,111,106,0,19,0,19,111,106,480,156,352,123,128,101,12832,72,11177,585,1655,585.33323842064533,1481,571.94842424820092,1044,490,437,295,174,123]
[]
["School Enrollment - Education"]
["NAME","Total Pop 3 Years and Older","MOE Total Pop 3 Years and Older","SchEnrlPop3yrOver",{"$f":"\"MOE \"&D139","v":"MOE SchEnrlPop3yrOver"},"TotalEnrollNursy&Kinder",{"$f":"\"MOE \"&F139","v":"MOE TotalEnrollNursy&Kinder"},"NurserSchEnrl",{"$f":"\"MOE \"&H139","v":"MOE NurserSchEnrl"},"KinderSchEnrl",{"$f":"\"MOE \"&J139","v":"MOE KinderSchEnrl"},"ElemSchEnrl (1-8)",{"$f":"\"MOE \"&L139","v":"MOE ElemSchEnrl (1-8)"},"HighSchEnrl(9-12)",{"$f":"\"MOE \"&N139","v":"MOE HighSchEnrl(9-12)"},"TotalElementry&HSEnroll",{"$f":"\"MOE \"&P139","v":"MOE TotalElementry&HSEnroll"},"CollGradSchEnrl",{"$f":"\"MOE \"&R139","v":"MOE CollGradSchEnrl"},"PopNotEnrolled","MOE PopNotEnrolled","Pop25yrsOver",{"$f":"\"MOE \"&V139","v":"MOE Pop25yrsOver"},"EduAtain<9grd",{"$f":"\"MOE \"&X139","v":"MOE EduAtain<9grd"},"EduAtainHSnoDip",{"$f":"\"MOE \"&Z139","v":"MOE EduAtainHSnoDip"},"EduAtainHSgrad",{"$f":"\"MOE \"&AB139","v":"MOE EduAtainHSgrad"},"EduAtainCollNoDeg",{"$f":"\"MOE \"&AD139","v":"MOE EduAtainCollNoDeg"},"EduAtainAssocDeg",{"$f":"\"MOE \"&AF139","v":"MOE EduAtainAssocDeg"},"EduAtainBachDeg",{"$f":"\"MOE \"&AH139","v":"MOE EduAtainBachDeg"},"EduAtainGradProfDeg",{"$f":"\"MOE \"&AJ139","v":"MOE EduAtainGradProfDeg"}]
[{"$f":"VLOOKUP(DropDownList!$B$47,CntyQryCensus!$A$530:$AY$544,A$1)","v":"Grantham"},2565,315,696,177,81,74.813100457072352,71,74,10,11,225,84.02380615040002,157,72,382,110.65260954898443,233,93.770997648526702,1869,215,1873,233,20,25.258661880630179,13,29,449,91.219515455849688,277,119.74138799930456,221,78.924014089502563,446,106.5269918846862,433,132.02651248896942,null,null,null,null,null,null,null,null,null,null,null,null,null,null,null,null,null,null,null,null,null,null,null,null,null,null,null,null,null,null,null,null,null,null,null,null,null,null,null,null,null,null,null,null,null,null,null,null,null,null,null,null,null,null,null,null,null,null,null,null,null,null,null,null,null,null,null,null,null,null,null,null,null,null,null,null,null,null,"Grantham",null,"Estimate","Margin Of Error",2452,44,502,90,78,37.589892258425003,39,33,39,18,141,45.221676218380054,124,56,265,71.979163651712426,159,67.675697262754525,1950,96]
[]
["Occupied Owner Housing Value"]
["NAME","Estimate; Total:","Margin of Error; Total:","Estimate; Total: - Less than $10,000","Margin of Error; Total: - Less than $10,000","Estimate; Total: - $10,000 to $14,999","Margin of Error; Total: - $10,000 to $14,999","Estimate; Total: - $15,000 to $19,999","Margin of Error; Total: - $15,000 to $19,999","Estimate; Total: - $20,000 to $24,999","Margin of Error; Total: - $20,000 to $24,999","Estimate; Total: - $25,000 to $29,999","Margin of Error; Total: - $25,000 to $29,999","Estimate; Total: - $30,000 to $34,999","Margin of Error; Total: - $30,000 to $34,999","Estimate; Total: - $35,000 to $39,999","Margin of Error; Total: - $35,000 to $39,999","Estimate; Total: - $40,000 to $49,999","Margin of Error; Total: - $40,000 to $49,999","Estimate; Total: - $50,000 to $59,999","Margin of Error; Total: - $50,000 to $59,999","Estimate; Total: - $60,000 to $69,999","Margin of Error; Total: - $60,000 to $69,999","Estimate; Total: - $70,000 to $79,999","Margin of Error; Total: - $70,000 to $79,999","Estimate; Total: - $80,000 to $89,999","Margin of Error; Total: - $80,000 to $89,999","Estimate; Total: - $90,000 to $99,999","Margin of Error; Total: - $90,000 to $99,999","Estimate; Total: - $100,000 to $124,999","Margin of Error; Total: - $100,000 to $124,999","Estimate; Total: - $125,000 to $149,999","Margin of Error; Total: - $125,000 to $149,999","Estimate; Total: - $150,000 to $174,999","Margin of Error; Total: - $150,000 to $174,999","Estimate; Total: - $175,000 to $199,999","Margin of Error; Total: - $175,000 to $199,999","Estimate; Total: - $200,000 to $249,999","Margin of Error; Total: - $200,000 to $249,999","Estimate; Total: - $250,000 to $299,999","Margin of Error; Total: - $250,000 to $299,999","Estimate; Total: - $300,000 to $399,999","Margin of Error; Total: - $300,000 to $399,999","Estimate; Total: - $400,000 to $499,999","Margin of Error; Total: - $400,000 to $499,999","Estimate; Total: - $500,000 to $749,999","Margin of Error; Total: - $500,000 to $749,999","Estimate; Total: - $750,000 to $999,999","Margin of Error; Total: - $750,000 to $999,999","Estimate; Total: - $1,000,000 to $1,499,999","Margin of Error; Total: - $1,000,000 to $1,499,999","Estimate; Total: - $1,500,000 to $1,999,999","Margin of Error; Total: - $1,500,000 to $1,999,999","Estimate; Total: - $2,000,000 or more","Margin of Error; Total: - $2,000,000 or more","MedianOwnOCCHomeValue","MOE MedianOwnOCCHomeValue","OnwerOccHsU","MOE OnwerOccHsU","OwnerCosts>20PctHHInc","MOE OwnerCosts>20PctHHInc","OwnerCosts20to29.9PctHHInc","MOE OwnerCosts20to29.9PctHHInc","OwnerCosts<30PctHHInc","MOE OwnerCosts<30PctHHInc","OwnerCosts>30PctHHInc","MOE OwnerCosts>30PctHHInc","OwnerCosts30to34.9PctHHInc","MOE OwnerCosts30to34.9PctHHInc","OwnerCosts<35PctHHInc","MOE OwnerCosts<35PctHHInc","OwnerCosts>35PctHHInc","MOE OwnerCosts>35PctHHInc","OwnerCosts>50PctHHInc","MOE OwnerCosts>50PctHHInc","OwnerCostsPctNotcomputed","MOE OwnerCostsPctNotcomputed","OwnerOHUHhInc<20k","MOE OwnerOHUHhInc<20k","OwnerOHUHhInc<20kHCosts<20pct","MOE OwnerOHUHhInc<20kHCosts<20pct","OwnerOHUHhInc<20kHCosts20to29pct","MOE OwnerOHUHhInc<20kHCosts20to29pct","OwnerOHUHhInc>20kHCosts30pct","MOE OwnerOHUHhInc>20kHCosts30pct","OwnerOHUHhInc20kTo34999","MOE OwnerOHUHhInc20kTo34999","OwnerOHUHhInc20kTo34999HCosts<20pct","MOE OwnerOHUHhInc20kTo34999HCosts<20pct","OwnerOHUHhInc20kTo34999HCosts20to29pct","MOE OwnerOHUHhInc20kTo34999HCosts20to29pct","OwnerOHUHhInc20kTo34999HCosts30pct","MOE OwnerOHUHhInc20kTo34999HCosts30pct","OwnerOHUHhInc35kTo49999","MOE OwnerOHUHhInc35kTo49999","OwnerOHUHhInc35kTo49999HCosts<20pct","MOE OwnerOHUHhInc35kTo49999HCosts<20pct","OwnerOHUHhInc35kTo49999HCosts20to29pct","MOE OwnerOHUHhInc35kTo49999HCosts20to29pct","OwnerOHUHhInc35kTo49999HCosts30pct","MOE OwnerOHUHhInc35kTo49999HCosts30pct","OwnerOHUHhInc50kTo74999","MOE OwnerOHUHhInc50kTo74999","OwnerOHUHhInc50kTo74999HCosts<20pct","MOE OwnerOHUHhInc50kTo74999HCosts<20pct","OwnerOHUHhInc50kTo74999HCosts20to29pct","MOE OwnerOHUHhInc50kTo74999HCosts20to29pct","OwnerOHUHhInc50kTo74999HCosts30pct","MOE OwnerOHUHhInc50kTo74999HCosts30pct","OwnerOHUHhInc>75000","MOE OwnerOHUHhInc>75000","OwnerOHUHhInc>75000HCosts<20pct","MOE OwnerOHUHhInc>75000HCosts<20pct","OwnerOHUHhInc>75000HCosts20to29pct","MOE OwnerOHUHhInc>75000HCosts20to29pct","OwnerOHUHhInc>75000HCosts30pct","MOE OwnerOHUHhInc>75000HCosts30pct","ZeroOrNegativeIncome","MOE ZeroOrNegativeIncome"]
[{"$f":"VLOOKUP(DropDownList!$B$47,CntyQryCensus!$A$530:$AY$544,A$1)","v":"Grantham"},2884,282,15,23,96,100,14,22,0,19,30,33,60,57,0,19,66,68,56,61,18,18,50,37,129,123,124,71,486,171,642,146,475,193,275,170,180,82,103,66,15,24,50,65,0,19,0,19,0,19,0,19,0,19,136600,8160,2884,282,1254,283.67763394388356,790,227.40932258814721,2044,363.57667691973865,737,208.44183841062235,257,125.7179382586272,2301,384.69858330906288,480,166.26184168353242,224,127.4244874425634,103,104,30,34,0,19,0,19,30,34,415,159,0,19,76,67,339,155,409,154,63,43,165,89,181,116,664,188,360,169,139,76,165,94,1263,252,831,209,410,157,22,28,103,104,5,6,13,8,27,19,82,29,35,21,115,67,35,19,65,21,13,15,12,9,10,13,0,11,0,11,0,11,null,null,null,null,null,null,null,null,null,null,null,null,"Washington",null,"Estimate","Margin Of Error",null,null,216500,14812,null,null,null,null,null,null,null,null,null,null,null,null,null,null,null,null,null,null,"Washington",null,"Estimate","Margin Of Error",440,58,0,85,0,85,2,3,0,85,2,4,5,8,0,85,3,5,2,4,3,4,0,85,0,85,0,85,20,14,56,28,36,18,85,34,51,21,41,28,51,21,36,23,31,20,10,9,6,7,null,null,null,null,null,null,null,null,null,null,null,null,null,null,null,null,"Washington",null,"Estimate","Margin Of Error",null,null,205900,28906]
[]
["Occupied Rental Housing Value"]
["NAME","RntrOccHU","MOE RntrOccHU","RntrOccHUwRent","MOE RntrOccHUwRent","ROHUGRent<100","MOE ROHUGRent<100","ROHUGRent100to149","MOE ROHUGRent100to149","ROHUGRent150to199","MOE ROHUGRent150to199","ROHUGRent200to249","MOE ROHUGRent200to249","ROHUGRent250to299","MOE ROHUGRent250to299","ROHUGRent300to349","MOE ROHUGRent300to349","ROHUGRent350to399","MOE ROHUGRent350to399","ROHUGRent400to449","MOE ROHUGRent400to449","ROHUGRent450to499","MOE ROHUGRent450to499","ROHUGRent500to549","MOE ROHUGRent500to549","ROHUGRent550to599","MOE ROHUGRent550to599","ROHUGRent600to649","MOE ROHUGRent600to649","ROHUGRent650to699","MOE ROHUGRent650to699","ROHUGRent700to749","MOE ROHUGRent700to749","ROHUGRent750to799","MOE ROHUGRent750to799","ROHUGRent800to899","MOE ROHUGRent800to899","ROHUGRent900to999","MOE ROHUGRent900to999","ROHUGRent1000to1249","MOE ROHUGRent1000to1249","ROHUGRent1250to1499","MOE ROHUGRent1250to1499","ROHUGRent1500to1999","MOE ROHUGRent1500to1999","ROHUGRent$2,000 to $2,499","MOE ROHUGRent$2,000 to $2,499","ROHUGRent$2,500 to $2,999","MOE ROHUGRent$2,500 to $2,999","ROHUGRent$3,000 to $3,499","MOE ROHUGRent$3,000 to $3,499","ROHUGRent$3,500 or more","MOE ROHUGRent$3,500 or more","ROHUNoGRent","MOE ROHUNoGRent","MedianGrossRnt","MOE MedianGrossRnt","H73RenterOccHU","MOE H73RenterOccHU","H73ROHUHhInc<10k","MOE H73ROHUHhInc<10k","H73ROHUHhInc<10kRnt<20pct","MOE H73ROHUHhInc<10kRnt<20pct","H73ROHUHhInc<10kRnt20to25pct","MOE H73ROHUHhInc<10kRnt20to25pct","H73ROHUHhInc<10kRnt25to30pct","MOE H73ROHUHhInc<10kRnt25to30pct","H73ROHUHhInc<10kRnt30to35pct","MOE H73ROHUHhInc<10kRnt30to35pct","H73ROHUHhInc<10kRnt35to39.9","MOE H73ROHUHhInc<10kRnt35to39.9","H73ROHUHhInc<10kRnt40to49.9","MOE H73ROHUHhInc<10kRnt40to49.9","H73ROHUHhInc<10kRnt>50pct","MOE H73ROHUHhInc<10kRnt>50pct","H73ROHUHhInc<10kPctNotComput","MOE H73ROHUHhInc<10kPctNotComput","H73ROHUHhInc10to20k","MOE H73ROHUHhInc10to20k","H73ROHUHhInc10to20kRnt<20pct","MOE H73ROHUHhInc10to20kRnt<20pct","H73ROHUHhInc10to20kRnt20to25pct","MOE H73ROHUHhInc10to20kRnt20to25pct","H73ROHUHhInc10to20kRnt25to30pct","MOE H73ROHUHhInc10to20kRnt25to30pct","H73ROHUHhInc10to20kRnt30to35pct","MOE H73ROHUHhInc10to20kRnt30to35pct","H73ROHUHhInc10to20kRnt35to39.9","MOE H73ROHUHhInc10to20kRnt35to39.9","H73ROHUHhInc10to20kRnt40to49.9","MOE H73ROHUHhInc10to20kRnt40to49.9","H73ROHUHhInc10to20kRnt>50pct","MOE H73ROHUHhInc10to20kRnt>50pct","H73ROHUHhInc10to20kRntPctNC","MOE H73ROHUHhInc10to20kRntPctNC","H73ROHUHhInc20to34.9k","MOE H73ROHUHhInc20to34.9k","H73ROHUHhInc20to34.9kRnt<20pct","MOE H73ROHUHhInc20to34.9kRnt<20pct","H73ROHUHhInc20to34.9kRnt20to25pct","MOE H73ROHUHhInc20to34.9kRnt20to25pct","H73ROHUHhInc20to34.9kRnt25to30pct","MOE H73ROHUHhInc20to34.9kRnt25to30pct","H73ROHUHhInc20to34.9kRnt30to35pct","MOE H73ROHUHhInc20to34.9kRnt30to35pct","H73ROHUHhInc20to34.9kRnt35to39.9","MOE H73ROHUHhInc20to34.9kRnt35to39.9","H73ROHUHhInc20to34.9kRnt40to49.9","MOE H73ROHUHhInc20to34.9kRnt40to49.9","H73ROHUHhInc20to34.9kRnt>50pct","MOE H73ROHUHhInc20to34.9kRnt>50pct","H73ROHUHhInc20to34.9kRntPctNC","MOE H73ROHUHhInc20to34.9kRntPctNC","H73ROHUHhInc35to49.9k","MOE H73ROHUHhInc35to49.9k","H73ROHUHhInc35to49.9kRnt<20pct","MOE H73ROHUHhInc35to49.9kRnt<20pct","H73ROHUHhInc35to49.9kRnt20to25pct","MOE H73ROHUHhInc35to49.9kRnt20to25pct","H73ROHUHhInc35to49.9kRnt25to30pct","MOE H73ROHUHhInc35to49.9kRnt25to30pct","H73ROHUHhInc35to49.9kRnt30to35pct","MOE H73ROHUHhInc35to49.9kRnt30to35pct","H73ROHUHhInc35to49.9kRnt35to39.9","MOE H73ROHUHhInc35to49.9kRnt35to39.9","H73ROHUHhInc35to49.9kRnt40to49.9","MOE H73ROHUHhInc35to49.9kRnt40to49.9","H73ROHUHhInc35to49.9kRnt>50pct","MOE H73ROHUHhInc35to49.9kRnt>50pct","H73ROHUHhInc35to49.9kRntPctNC","MOE H73ROHUHhInc35to49.9kRntPctNC","H73ROHUHhInc50to74.9k","MOE H73ROHUHhInc50to74.9k","H73ROHUHhInc50to74.9kRnt<20pct","MOE H73ROHUHhInc50to74.9kRnt<20pct","H73ROHUHhInc50to74.9kRnt20to25pct","MOE H73ROHUHhInc50to74.9kRnt20to25pct","H73ROHUHhInc50to74.9kRnt25to30pct","MOE H73ROHUHhInc50to74.9kRnt25to30pct","H73ROHUHhInc50to74.9kRnt30to35pct","MOE H73ROHUHhInc50to74.9kRnt30to35pct","H73ROHUHhInc50to74.9kRnt35to39.9","MOE H73ROHUHhInc50to74.9kRnt35to39.9","H73ROHUHhInc50to74.9kRnt40to49.9","MOE H73ROHUHhInc50to74.9kRnt40to49.9","H73ROHUHhInc50to74.9kRnt>50pct","MOE H73ROHUHhInc50to74.9kRnt>50pct","H73ROHUHhInc50to74.9kRntPctNC","MOE H73ROHUHhInc50to74.9kRntPctNC","H73ROHUHhInc75to99.9k","MOE H73ROHUHhInc75to99.9k","H73ROHUHhInc75to99.9kRnt<20pct","MOE H73ROHUHhInc75to99.9kRnt<20pct","H73ROHUHhInc75to99.9kRnt20to25pct","MOE H73ROHUHhInc75to99.9kRnt20to25pct","H73ROHUHhInc75to99.9kRnt25to30pct","MOE H73ROHUHhInc75to99.9kRnt25to30pct","H73ROHUHhInc75to99.9kRnt30to35pct","MOE H73ROHUHhInc75to99.9kRnt30to35pct","H73ROHUHhInc75to99.9kRnt35to39.9","MOE H73ROHUHhInc75to99.9kRnt35to39.9","H73ROHUHhInc75to99.9kRnt40to49.9","MOE H73ROHUHhInc75to99.9kRnt40to49.9","H73ROHUHhInc75to99.9kRnt>50pct","MOE H73ROHUHhInc75to99.9kRnt>50pct","H73ROHUHhInc75to99.9kRntPctNC","MOE H73ROHUHhInc75to99.9kRntPctNC","H73ROHUHhInc>100k","MOE H73ROHUHhInc>100k","H73ROHUHhInc>100kRnt<20pct","MOE H73ROHUHhInc>100kRnt<20pct","H73ROHUHhInc>100kRnt20to25pct","MOE H73ROHUHhInc>100kRnt20to25pct","H73ROHUHhInc>100kRnt25to30pct","MOE H73ROHUHhInc>100kRnt25to30pct","H73ROHUHhInc>100kRnt30to35pct","MOE H73ROHUHhInc>100kRnt30to35pct","H73ROHUHhInc>100kRnt35to39.9","MOE H73ROHUHhInc>100kRnt35to39.9","H73ROHUHhInc>100kRnt40to49.9","MOE H73ROHUHhInc>100kRnt40to49.9","H73ROHUHhInc>100kRnt>50pct","MOE H73ROHUHhInc>100kRnt>50pct","H73ROHUHhInc>100kRntPctNC","MOE H73ROHUHhInc>100kRntPctNC"]
[null,2324,297,2324,297,0,19,0,19,19,21,46,39,92,78,30,37,65,63,18,30,46,52,27,23,10,17,14,15,130,111,31,33,146,103,146,84,360,188,663,184,422,179,59,71,0,19,0,19,0,19,0,19,0,19,995,58,2324,297,243,135,0,19,9,14,0,19,0,19,0,19,0,19,199,122,35,55,378,127,24,29,0,19,48,57,93,77,14,21,13,21,186,114,0,19,727,225,21,27,48,36,16,19,7,10,160,165,199,105,276,133,0,19,533,239,72,91,73,63,104,88,59,74,189,127,36,57,0,19,0,19,229,106,45,29,146,89,28,35,10,23,0,19,0,19,0,19,0,19,166,81,166,81,0,19,0,19,0,19,0,19,0,19,0,19,0,19,48,36,48,36,0,19,0,19,0,19,0,19,0,19,0,19,0,19,"Estimate","Margin Of Error",106,47,88,43,0,114,0,114,0,114,0,114,0,114,0,114,0,114,0,114,0,114,0,114,0,114,0,114,0,114,0,114,0,114,0,114,21,35,7,11,20,23,40,39,0,114,null,null,null,null,null,null,18,24,null,null,null,null,null,null,null,null,null,null,null,null,null,null,"Grantham",null,"Estimate","Margin Of Error",1450,388]
[]
[]
[]
[]
[]
["Occupied Rental Housing Cost Burdern All Incomes"]
["NAME","RntrOccHU","MOE RntrOccHU","RntrOccHUwRent","MOE RntrOccHUwRent","ROHUGRent<100","MOE ROHUGRent<100","ROHUGRent100to149","MOE ROHUGRent100to149","ROHUGRent150to199","MOE ROHUGRent150to199","ROHUGRent200to249","MOE ROHUGRent200to249","ROHUGRent250to299","MOE ROHUGRent250to299","ROHUGRent300to349","MOE ROHUGRent300to349","ROHUGRent350to399","MOE ROHUGRent350to399","ROHUGRent400to449","MOE ROHUGRent400to449","ROHUGRent450to499","MOE ROHUGRent450to499","ROHUGRent500to549","MOE ROHUGRent500to549","ROHUGRent550to599","MOE ROHUGRent550to599","ROHUGRent600to649","MOE ROHUGRent600to649","ROHUGRent650to699","MOE ROHUGRent650to699","ROHUGRent700to749","MOE ROHUGRent700to749","ROHUGRent750to799","MOE ROHUGRent750to799","ROHUGRent800to899","MOE ROHUGRent800to899","ROHUGRent900to999","MOE ROHUGRent900to999","ROHUGRent1000to1249","MOE ROHUGRent1000to1249","ROHUGRent1250to1499","MOE ROHUGRent1250to1499","ROHUGRent1500to1999","MOE ROHUGRent1500to1999","ROHUGRent2000-2499","MOE ROHUGRent2000-2499","ROHUGRent2500-2999","MOE ROHUGRent2500-2999","ROHUGRent3000-3499","MOE ROHUGRent3000-3499","ROHUGRent3500<","MOE ROHUGRent3500<","ROHUNoGRent","MOE ROHUNoGRent","MedianGrossRnt","MOE MedianGrossRnt","H73RenterOccHU","MOE H73RenterOccHU","H73ROHUHhInc<10k","MOE H73ROHUHhInc<10k","H73ROHUHhInc<10kRnt<20pct","MOE H73ROHUHhInc<10kRnt<20pct","H73ROHUHhInc<10kRnt20to25pct","MOE H73ROHUHhInc<10kRnt20to25pct","H73ROHUHhInc<10kRnt25to30pct","MOE H73ROHUHhInc<10kRnt25to30pct","H73ROHUHhInc<10kRnt30to35pct","MOE H73ROHUHhInc<10kRnt30to35pct","H73ROHUHhInc<10kRnt35to39.9","MOE H73ROHUHhInc<10kRnt35to39.9","H73ROHUHhInc<10kRnt40to49.9","MOE H73ROHUHhInc<10kRnt40to49.9","H73ROHUHhInc<10kRnt>50pct","MOE H73ROHUHhInc<10kRnt>50pct","H73ROHUHhInc<10kPctNotComput","MOE H73ROHUHhInc<10kPctNotComput","H73ROHUHhInc10to20k","MOE H73ROHUHhInc10to20k","H73ROHUHhInc10to20kRnt<20pct","MOE H73ROHUHhInc10to20kRnt<20pct","H73ROHUHhInc10to20kRnt20to25pct","MOE H73ROHUHhInc10to20kRnt20to25pct","H73ROHUHhInc10to20kRnt25to30pct","MOE H73ROHUHhInc10to20kRnt25to30pct","H73ROHUHhInc10to20kRnt30to35pct","MOE H73ROHUHhInc10to20kRnt30to35pct","H73ROHUHhInc10to20kRnt35to39.9","MOE H73ROHUHhInc10to20kRnt35to39.9","H73ROHUHhInc10to20kRnt40to49.9","MOE H73ROHUHhInc10to20kRnt40to49.9","H73ROHUHhInc10to20kRnt>50pct","MOE H73ROHUHhInc10to20kRnt>50pct","H73ROHUHhInc10to20kRntPctNC","MOE H73ROHUHhInc10to20kRntPctNC","H73ROHUHhInc20to34.9k","MOE H73ROHUHhInc20to34.9k","H73ROHUHhInc20to34.9kRnt<20pct","MOE H73ROHUHhInc20to34.9kRnt<20pct","H73ROHUHhInc20to34.9kRnt20to25pct","MOE H73ROHUHhInc20to34.9kRnt20to25pct","H73ROHUHhInc20to34.9kRnt25to30pct","MOE H73ROHUHhInc20to34.9kRnt25to30pct","H73ROHUHhInc20to34.9kRnt30to35pct","MOE H73ROHUHhInc20to34.9kRnt30to35pct","H73ROHUHhInc20to34.9kRnt35to39.9","MOE H73ROHUHhInc20to34.9kRnt35to39.9","H73ROHUHhInc20to34.9kRnt40to49.9","MOE H73ROHUHhInc20to34.9kRnt40to49.9","H73ROHUHhInc20to34.9kRnt>50pct","MOE H73ROHUHhInc20to34.9kRnt>50pct","H73ROHUHhInc20to34.9kRntPctNC","MOE H73ROHUHhInc20to34.9kRntPctNC","H73ROHUHhInc35to49.9k","MOE H73ROHUHhInc35to49.9k","H73ROHUHhInc35to49.9kRnt<20pct","MOE H73ROHUHhInc35to49.9kRnt<20pct","H73ROHUHhInc35to49.9kRnt20to25pct","MOE H73ROHUHhInc35to49.9kRnt20to25pct","H73ROHUHhInc35to49.9kRnt25to30pct","MOE H73ROHUHhInc35to49.9kRnt25to30pct","H73ROHUHhInc35to49.9kRnt30to35pct","MOE H73ROHUHhInc35to49.9kRnt30to35pct","H73ROHUHhInc35to49.9kRnt35to39.9","MOE H73ROHUHhInc35to49.9kRnt35to39.9","H73ROHUHhInc35to49.9kRnt40to49.9","MOE H73ROHUHhInc35to49.9kRnt40to49.9","H73ROHUHhInc35to49.9kRnt>50pct","MOE H73ROHUHhInc35to49.9kRnt>50pct","H73ROHUHhInc35to49.9kRntPctNC","MOE H73ROHUHhInc35to49.9kRntPctNC","H73ROHUHhInc50to74.9k","MOE H73ROHUHhInc50to74.9k","H73ROHUHhInc50to74.9kRnt<20pct","MOE H73ROHUHhInc50to74.9kRnt<20pct","H73ROHUHhInc50to74.9kRnt20to25pct","MOE H73ROHUHhInc50to74.9kRnt20to25pct","H73ROHUHhInc50to74.9kRnt25to30pct","MOE H73ROHUHhInc50to74.9kRnt25to30pct","H73ROHUHhInc50to74.9kRnt30to35pct","MOE H73ROHUHhInc50to74.9kRnt30to35pct","H73ROHUHhInc50to74.9kRnt35to39.9","MOE H73ROHUHhInc50to74.9kRnt35to39.9","H73ROHUHhInc50to74.9kRnt40to49.9","MOE H73ROHUHhInc50to74.9kRnt40to49.9","H73ROHUHhInc50to74.9kRnt>50pct","MOE H73ROHUHhInc50to74.9kRnt>50pct","H73ROHUHhInc50to74.9kRntPctNC","MOE H73ROHUHhInc50to74.9kRntPctNC","H73ROHUHhInc75to99.9k","MOE H73ROHUHhInc75to99.9k","H73ROHUHhInc75to99.9kRnt<20pct","MOE H73ROHUHhInc75to99.9kRnt<20pct","H73ROHUHhInc75to99.9kRnt20to25pct","MOE H73ROHUHhInc75to99.9kRnt20to25pct","H73ROHUHhInc75to99.9kRnt25to30pct","MOE H73ROHUHhInc75to99.9kRnt25to30pct","H73ROHUHhInc75to99.9kRnt30to35pct","MOE H73ROHUHhInc75to99.9kRnt30to35pct","H73ROHUHhInc75to99.9kRnt35to39.9","MOE H73ROHUHhInc75to99.9kRnt35to39.9","H73ROHUHhInc75to99.9kRnt40to49.9","MOE H73ROHUHhInc75to99.9kRnt40to49.9","H73ROHUHhInc75to99.9kRnt>50pct","MOE H73ROHUHhInc75to99.9kRnt>50pct","H73ROHUHhInc75to99.9kRntPctNC","MOE H73ROHUHhInc75to99.9kRntPctNC","H73ROHUHhInc>100k","MOE H73ROHUHhInc>100k","H73ROHUHhInc>100kRnt<20pct","MOE H73ROHUHhInc>100kRnt<20pct","H73ROHUHhInc>100kRnt20to25pct","MOE H73ROHUHhInc>100kRnt20to25pct","H73ROHUHhInc>100kRnt25to30pct","MOE H73ROHUHhInc>100kRnt25to30pct","H73ROHUHhInc>100kRnt30to35pct","MOE H73ROHUHhInc>100kRnt30to35pct","H73ROHUHhInc>100kRnt35to39.9","MOE H73ROHUHhInc>100kRnt35to39.9","H73ROHUHhInc>100kRnt40to49.9","MOE H73ROHUHhInc>100kRnt40to49.9","H73ROHUHhInc>100kRnt>50pct","MOE H73ROHUHhInc>100kRnt>50pct","H73ROHUHhInc>100kRntPctNC","MOE H73ROHUHhInc>100kRntPctNC"]
[{"$f":"VLOOKUP(DropDownList!$B$47,CntyQryCensus!$A$530:$AY$544,A$1)","v":"Grantham"},2324,297,376,144.91721774861674,276,107,196,105,848,208.50659461993044,1441,325.80055248571938,169,121,1017,241.0726031717416,1272,302.49793387724156,661,200,35,55]
[]
["Income By Household Type and Tenure"]
["NAME","TotalFamilyHouseholds",{"$f":"\"MOE \"&B159","v":"MOE TotalFamilyHouseholds"},"FamInc<10K",{"$f":"\"MOE \"&D159","v":"MOE FamInc<10K"},"FamInc10to15K",{"$f":"\"MOE \"&F159","v":"MOE FamInc10to15K"},"FamInc15to20K",{"$f":"\"MOE \"&H159","v":"MOE FamInc15to20K"},"FamInc20to25K",{"$f":"\"MOE \"&J159","v":"MOE FamInc20to25K"},"FamInc25to30K",{"$f":"\"MOE \"&L159","v":"MOE FamInc25to30K"},"FamInc30to35K",{"$f":"\"MOE \"&N159","v":"MOE FamInc30to35K"},"FamInc35to40K",{"$f":"\"MOE \"&P159","v":"MOE FamInc35to40K"},"FamInc40to45K",{"$f":"\"MOE \"&R159","v":"MOE FamInc40to45K"},"FamInc45to50K",{"$f":"\"MOE \"&T159","v":"MOE FamInc45to50K"},"FamInc50to60K",{"$f":"\"MOE \"&V159","v":"MOE FamInc50to60K"},"FamInc60to75K",{"$f":"\"MOE \"&X159","v":"MOE FamInc60to75K"},"FamInc75to100K",{"$f":"\"MOE \"&Z159","v":"MOE FamInc75to100K"},"FamInc100to125K",{"$f":"\"MOE \"&AB159","v":"MOE FamInc100to125K"},"FamInc125to150K",{"$f":"\"MOE \"&AD159","v":"MOE FamInc125to150K"},"FamInc150to200K",{"$f":"\"MOE \"&AF159","v":"MOE FamInc150to200K"},"FamInc>200K",{"$f":"\"MOE \"&AH159","v":"MOE FamInc>200K"},"MedFamInc",{"$f":"\"MOE \"&AJ159","v":"MOE MedFamInc"},"TotalNonNonFamilyHouseholds",{"$f":"\"MOE \"&AL159","v":"MOE TotalNonNonFamilyHouseholds"},"NonFamInc<10K",{"$f":"\"MOE \"&AN159","v":"MOE NonFamInc<10K"},"NonFamInc10to15K",{"$f":"\"MOE \"&AP159","v":"MOE NonFamInc10to15K"},"NonFamInc15to20K",{"$f":"\"MOE \"&AR159","v":"MOE NonFamInc15to20K"},"NonFamInc20to25K",{"$f":"\"MOE \"&AT159","v":"MOE NonFamInc20to25K"},"NonFamInc25to30K",{"$f":"\"MOE \"&AV159","v":"MOE NonFamInc25to30K"},"NonFamInc30to35K",{"$f":"\"MOE \"&AX159","v":"MOE NonFamInc30to35K"},"NonFamInc35to40K",{"$f":"\"MOE \"&AZ159","v":"MOE NonFamInc35to40K"},"NonFamInc40to45K",{"$f":"\"MOE \"&BB159","v":"MOE NonFamInc40to45K"},"NonFamInc45to50K",{"$f":"\"MOE \"&BD159","v":"MOE NonFamInc45to50K"},"NonFamInc50to60K",{"$f":"\"MOE \"&BF159","v":"MOE NonFamInc50to60K"},"NonFamInc60to75K",{"$f":"\"MOE \"&BH159","v":"MOE NonFamInc60to75K"},"NonFamInc75to100K",{"$f":"\"MOE \"&BJ159","v":"MOE NonFamInc75to100K"},"NonFamInc100to125K",{"$f":"\"MOE \"&BL159","v":"MOE NonFamInc100to125K"},"NonFamInc125to150K",{"$f":"\"MOE \"&BN159","v":"MOE NonFamInc125to150K"},"NonFamInc150to200K",{"$f":"\"MOE \"&BP159","v":"MOE NonFamInc150to200K"},"NonFamInc>200K",{"$f":"\"MOE \"&BR159","v":"MOE NonFamInc>200K"},"MedNonFamInc",{"$f":"\"MOE \"&BT159","v":"MOE MedNonFamInc"},"PerCapitaIncome","MOE PerCapitaIncome"]
[{"$f":"VLOOKUP(DropDownList!$B$47,CntyQryCensus!$A$530:$AY$544,A$1)","v":"Grantham"},979,125,0,12,0,12,0,12,0,12,0,12,55,63,0,12,37,44,0,12,77,78,75,64,101,88,106,80,46,42,283,156,199,153,128828,72833,170,118,0,12,0,12,50,76,0,12,0,12,36,63,0,12,0,12,0,12,54,46,13,22,0,12,0,12,0,12,0,12,17,26,"-","**"]
[]
[]
[]
["2010 Census"]
[]
["TownName","LOGRECNO","COUNTY","TotalPop","TotalPop1Race","TotalPopWhite","TotalPopAfricanAmerican","TotalPopAmericanIndAlaska","TotalPopAsian","TotalPopNativeHawaiianPIsland","TotalPopSomeOtherRace","TotalPopTwoOrMoreRaces","TotalPopHispanicLatino","TotalNonHispanicLatino","TotPopUnder15yrs","TotPop15to24yrs","TotPop25to34yrs","TotPop35to44yrs","TotPop45to54yrs","TotPop55to64yrs","TotPop65to74yrs","TotPopOver74yrs","MedianAge","MedianAgeMale","MedianAgeFemale","TotalHH","TotalPopInHouseholds","TotalPopInFamilyHH","TotalPopInNonFamilyHH","AvgHHSize","TotalFamilyHH","TotalFamilyHHSpouse","TotalSingleParentHH","TotalNonFamilyHH","AvgFamilyHHSize","AvgNonFamilyHHSize","AverageHHSizeOwnerOccupied","AverageHHSizeRentalOccupied","TotalHousingUnits","TotalOccupiedHU","TotalOwnerOccupiedHUs","TotalRentalOccupiedHU","TotalVacantHU","VacantHUForRent","VacantHURentNotOccupied","VacantHUForSale","VacantHUsSoldNotOccupied","VacantHUSeasonalRecreational","VacantHUsAllOtherVacants","HomeOwnerVacancyRate","HomeRentalVacancyRate","Total HH","Total Single Family HU","Total Multi-Family HU","Total Manufacture HU"]
[{"$f":"VLOOKUP(DropDownList!$B$47,CntyQryCensus!$A$530:$BC$544,A$1)","v":"Grantham"},{"$f":"VLOOKUP(DropDownList!$B$47,CntyQryCensus!$A$530:$BC$544,B$1)","v":"0000232"},{"$f":"VLOOKUP(DropDownList!$B$47,CntyQryCensus!$A$530:$BC$544,C$1)","v":"019"},{"$f":"VLOOKUP(DropDownList!$B$47,CntyQryCensus!$A$530:$BC$544,D$1)","v":2985},{"$f":"VLOOKUP(DropDownList!$B$47,CntyQryCensus!$A$530:$BC$544,E$1)","v":2959},{"$f":"VLOOKUP(DropDownList!$B$47,CntyQryCensus!$A$530:$BC$544,F$1)","v":2898},{"$f":"VLOOKUP(DropDownList!$B$47,CntyQryCensus!$A$530:$BC$544,G$1)","v":13},{"$f":"VLOOKUP(DropDownList!$B$47,CntyQryCensus!$A$530:$BC$544,H$1)","v":1},{"$f":"VLOOKUP(DropDownList!$B$47,CntyQryCensus!$A$530:$BC$544,I$1)","v":29},{"$f":"VLOOKUP(DropDownList!$B$47,CntyQryCensus!$A$530:$BC$544,J$1)","v":0},{"$f":"VLOOKUP(DropDownList!$B$47,CntyQryCensus!$A$530:$BC$544,K$1)","v":18},{"$f":"VLOOKUP(DropDownList!$B$47,CntyQryCensus!$A$530:$BC$544,L$1)","v":26},{"$f":"VLOOKUP(DropDownList!$B$47,CntyQryCensus!$A$530:$BC$544,M$1)","v":53},{"$f":"VLOOKUP(DropDownList!$B$47,CntyQryCensus!$A$530:$BC$544,N$1)","v":2932},{"$f":"VLOOKUP(DropDownList!$B$47,CntyQryCensus!$A$530:$BC$544,O$1)","v":539},{"$f":"VLOOKUP(DropDownList!$B$47,CntyQryCensus!$A$530:$BC$544,P$1)","v":192},{"$f":"VLOOKUP(DropDownList!$B$47,CntyQryCensus!$A$530:$BC$544,Q$1)","v":237},{"$f":"VLOOKUP(DropDownList!$B$47,CntyQryCensus!$A$530:$BC$544,R$1)","v":432},{"$f":"VLOOKUP(DropDownList!$B$47,CntyQryCensus!$A$530:$BC$544,S$1)","v":468},{"$f":"VLOOKUP(DropDownList!$B$47,CntyQryCensus!$A$530:$BC$544,T$1)","v":492},{"$f":"VLOOKUP(DropDownList!$B$47,CntyQryCensus!$A$530:$BC$544,U$1)","v":371},{"$f":"VLOOKUP(DropDownList!$B$47,CntyQryCensus!$A$530:$BC$544,V$1)","v":254},{"$f":"VLOOKUP(DropDownList!$B$47,CntyQryCensus!$A$530:$BC$544,W$1)","v":47.3},{"$f":"VLOOKUP(DropDownList!$B$47,CntyQryCensus!$A$530:$BC$544,X$1)","v":47},{"$f":"VLOOKUP(DropDownList!$B$47,CntyQryCensus!$A$530:$BC$544,Y$1)","v":47.6},{"$f":"VLOOKUP(DropDownList!$B$47,CntyQryCensus!$A$530:$BC$544,Z$1)","v":1249},{"$f":"VLOOKUP(DropDownList!$B$47,CntyQryCensus!$A$530:$BC$544,AA$1)","v":2985},{"$f":"VLOOKUP(DropDownList!$B$47,CntyQryCensus!$A$530:$BC$544,AB$1)","v":1602},{"$f":"VLOOKUP(DropDownList!$B$47,CntyQryCensus!$A$530:$BC$544,AC$1)","v":1383},{"$f":"VLOOKUP(DropDownList!$B$47,CntyQryCensus!$A$530:$BC$544,AD$1)","v":2.39},{"$f":"VLOOKUP(DropDownList!$B$47,CntyQryCensus!$A$530:$BC$544,AE$1)","v":919},{"$f":"VLOOKUP(DropDownList!$B$47,CntyQryCensus!$A$530:$BC$544,AF$1)","v":822},{"$f":"VLOOKUP(DropDownList!$B$47,CntyQryCensus!$A$530:$BC$544,AG$1)","v":97},{"$f":"VLOOKUP(DropDownList!$B$47,CntyQryCensus!$A$530:$BC$544,AH$1)","v":330},{"$f":"VLOOKUP(DropDownList!$B$47,CntyQryCensus!$A$530:$BC$544,AI$1)","v":2.74},{"$f":"VLOOKUP(DropDownList!$B$47,CntyQryCensus!$A$530:$BC$544,AJ$1)","v":4.1909090909090905},{"$f":"VLOOKUP(DropDownList!$B$47,CntyQryCensus!$A$530:$BC$544,AK$1)","v":2.4},{"$f":"VLOOKUP(DropDownList!$B$47,CntyQryCensus!$A$530:$BC$544,AL$1)","v":2.33},{"$f":"VLOOKUP(DropDownList!$B$47,CntyQryCensus!$A$530:$BC$544,AM$1)","v":1773},{"$f":"VLOOKUP(DropDownList!$B$47,CntyQryCensus!$A$530:$BC$544,AN$1)","v":1249},{"$f":"VLOOKUP(DropDownList!$B$47,CntyQryCensus!$A$530:$BC$544,AO$1)","v":1094},{"$f":"VLOOKUP(DropDownList!$B$47,CntyQryCensus!$A$530:$BC$544,AP$1)","v":155},{"$f":"VLOOKUP(DropDownList!$B$47,CntyQryCensus!$A$530:$BC$544,AQ$1)","v":524},{"$f":"VLOOKUP(DropDownList!$B$47,CntyQryCensus!$A$530:$BC$544,AR$1)","v":7},{"$f":"VLOOKUP(DropDownList!$B$47,CntyQryCensus!$A$530:$BC$544,AS$1)","v":0},{"$f":"VLOOKUP(DropDownList!$B$47,CntyQryCensus!$A$530:$BC$544,AT$1)","v":24},{"$f":"VLOOKUP(DropDownList!$B$47,CntyQryCensus!$A$530:$BC$544,AU$1)","v":7},{"$f":"VLOOKUP(DropDownList!$B$47,CntyQryCensus!$A$530:$BC$544,AV$1)","v":475},{"$f":"VLOOKUP(DropDownList!$B$47,CntyQryCensus!$A$530:$BC$544,AW$1)","v":11},{"$f":"VLOOKUP(DropDownList!$B$47,CntyQryCensus!$A$530:$BC$544,AX$1)","v":2.1},{"$f":"VLOOKUP(DropDownList!$B$47,CntyQryCensus!$A$530:$BC$544,AY$1)","v":4.3},{"$f":"VLOOKUP(DropDownList!$B$47,CntyQryCensus!$A$530:$BC$544,AZ$1)","v":1773},{"$f":"VLOOKUP(DropDownList!$B$47,CntyQryCensus!$A$530:$BC$544,BA$1)","v":1455},{"$f":"VLOOKUP(DropDownList!$B$47,CntyQryCensus!$A$530:$BC$544,BB$1)","v":304},{"$f":"VLOOKUP(DropDownList!$B$47,CntyQryCensus!$A$530:$BC$544,BC$1)","v":14}]

{"sheet":"CntyQuery","index":7,"n_rows":230,"n_cols":243,"rows_kept":230,"cut":false,"hidden":true,"merged":[]}
["CountyName","Cnty_Code","Census_Cnty_Code","LandAcres","WaterAcres","HousingUnits90Cen","Persons90Cen","Families90Cen","Households90cen","MalePop90cen","FemalePop90cen","WhitePop","BlackPop","AmerIndianPop","AsianPIPop","OtherRacePop","HispanicOrPop","AgeUnder15_90cen","Age15to24_90cen","Age25to34_90cen","Age35to44_90cen","Age45to54_90cen","Age55to64_90cen","Age65to74_90cen","Age75andOver_90cen","PersonsInHH90cen","PersonsInFamHH90cen","PersonsInGC","PersonsPerHH90cen","PersonsPerFam90Cen","SinglePersonHH90cen","MarriedCoupleHH90cen","SingleParentHH90cen","NonFamilyHH90cen","TotalHousingUnits","OccupiedHousingUnits","VacantHousingUnits","OwnerOccHU","RenterOccHU","VacantForRent90","VacantForSale90","VacantSeasonalRec","SingFamHU90cen","MultiFamHU90cen","MobileHom90cen","SingFamOwnHU90cen","MultiFamOwnHU90cen","MobileHomOwnHU90cen","SingFamRntrHU90cen","MultiFamRntrHU90cen","MobileHomRntrHU90cen","HU<5yrs90cen","HU5to20yrs90cen","HU20to50yrs90cen","HU>50yrs90cen","Units0Bedroom90cen","Units1Bedroom90cen","Units2Bedroom90cen","Units3Bedroom90cen","Units4+Bedroom90cen","HI<5K","HI5Kto10K","HI10Kto15K","HI15Kto25K","HI25Kto35K","HI35Kto50K","HI50Kto75K","HI75Kto100K","HI>100K","MedHI","HH<25HI<5K","HH<25HI5Kto10K","HH<25HI10Kto15K","HH<25HI15Kto25K","HH<25HI25Kto35K","HH<25HI35Kto50K","HH<25HI50Kto75K","HH<25HI75Kto100K","HH<25HI>100K","HH25to34HI<5K","HH25to34HI5Kto10K","HH25to34HI10Kto15K","HH25to34HI15Kto25K","HH25to34HI25Kto35K","HH25to34HI35Kto50K","HH25to34HI50Kto75K","HH25to34HI75Kto100K","HH25to34HI>100K","HH35to44HI<5K","HH35to44HI5Kto10K","HH35to44HI10Kto15K","HH35to44HI15Kto25K","HH35to44HI25Kto35K","HH35to44HI35Kto50K","HH35to44HI50Kto75K","HH35to44HI75Kto100K","HH35to44HI>100K","HH45to54HI<5K","HH45to54HI5Kto10K","HH45to54HI10Kto15K","HH45to54HI15Kto25K","HH45to54HI25Kto35K","HH45to54HI35Kto50K","HH45to54HI50Kto75K","HH45to54HI75Kto100K","HH45to54HI>100K","HH55to64HI<5K","HH55to64HI5Kto10K","HH55to64HI10Kto15K","HH55to64HI15Kto25K","HH55to64HI25Kto35K","HH55to64HI35Kto50K","HH55to64HI50Kto75K","HH55to64HI75Kto100K","HH55to64HI>100K","HH65to74HI<5K","HH65to74HI5Kto10K","HH65to74HI10Kto15K","HH65to74HI15Kto25K","HH65to74HI25Kto35K","HH65to74HI35Kto50K","HH65to74HI50Kto75K","HH65to74HI75Kto100K","HH65to74HI>100K","HH>75HI<5K","HH>75HI5Kto10K","HH>75HI10Kto15K","HH>75HI15Kto25K","HH>75HI25Kto35K","HH>75HI35Kto50K","HH>75HI50Kto75K","HH>75HI75Kto100K","HH>75HI>100K","SchoolEnrollment1thru12","Pop25andOver","HSGradorHigher","CollGradorHigher","NativePop","ForeignBornPop","BornStateOfRes","NativePop2","ForeignBornPop2","DroveAlone","CarPooled","PublicTranspt","Walked","OtherMeans","WorkedAtHome","HHInc<10K","HHInc10to15K","HHInc15to25K","HHInc25to35K","HHInc35to50K","HHInc50to75K","HHInc75to100K","HHInc100to150K","HHInc>150K"]
["Census 1990 Data -           Query Name:  DPCnty90Census"]
["NAME","FIPS","COUSUBFP","LandAcres","WaterAcres","HousingUnits90Cen","Persons90Cen","Families90Cen","Households90cen","MalePop90cen","FemalePop90cen","WhitePop","BlackPop","AmerIndianPop","AsianPIPop","OtherRacePop","HispanicOrPop","AgeUnder15_90cen","Age15to24_90cen","Age25to34_90cen","Age35to44_90cen","Age45to54_90cen","Age55to64_90cen","Age65to74_90cen","Age75andOver_90cen","PersonsInHH90cen","PersonsInFamHH90cen","PersonsInGC","PersonsPerHH90cen","PersonsPerFam90Cen","SinglePersonHH90cen","MarriedCoupleHH90cen","SingleParentHH90cen","NonFamilyHH90cen","TotalHousingUnits","OccupiedHousingUnits","VacantHousingUnits","OwnerOccHU","RenterOccHU","VacantForRent90","VacantForSale90","VacantSeasonalRec","SingFamHU90cen","MultiFamHU90cen","MobileHom90cen","SingFamOwnHU90cen","MultiFamOwnHU90cen","MobileHomOwnHU90cen","SingFamRntrHU90cen","MultiFamRntrHU90cen","MobileHomRntrHU90cen","HU<5yrs90cen","HU5to20yrs90cen","HU20to50yrs90cen","HU>50yrs90cen","Units0Bedroom90cen","Units1Bedroom90cen","Units2Bedroom90cen","Units3Bedroom90cen","Units4+Bedroom90cen","HI<5K","HI5Kto10K","HI10Kto15K","HI15Kto25K","HI25Kto35K","HI35Kto50K","HI50Kto75K","HI75Kto100K","HI>100K","MedHI","HH<25HI<5K","HH<25HI5Kto10K","HH<25HI10Kto15K","HH<25HI15Kto25K","HH<25HI25Kto35K","HH<25HI35Kto50K","HH<25HI50Kto75K","HH<25HI75Kto100K","HH<25HI>100K","HH25to34HI<5K","HH25to34HI5Kto10K","HH25to34HI10Kto15K","HH25to34HI15Kto25K","HH25to34HI25Kto35K","HH25to34HI35Kto50K","HH25to34HI50Kto75K","HH25to34HI75Kto100K","HH25to34HI>100K","HH35to44HI<5K","HH35to44HI5Kto10K","HH35to44HI10Kto15K","HH35to44HI15Kto25K","HH35to44HI25Kto35K","HH35to44HI35Kto50K","HH35to44HI50Kto75K","HH35to44HI75Kto100K","HH35to44HI>100K","HH45to54HI<5K","HH45to54HI5Kto10K","HH45to54HI10Kto15K","HH45to54HI15Kto25K","HH45to54HI25Kto35K","HH45to54HI35Kto50K","HH45to54HI50Kto75K","HH45to54HI75Kto100K","HH45to54HI>100K","HH55to64HI<5K","HH55to64HI5Kto10K","HH55to64HI10Kto15K","HH55to64HI15Kto25K","HH55to64HI25Kto35K","HH55to64HI35Kto50K","HH55to64HI50Kto75K","HH55to64HI75Kto100K","HH55to64HI>100K","HH65to74HI<5K","HH65to74HI5Kto10K","HH65to74HI10Kto15K","HH65to74HI15Kto25K","HH65to74HI25Kto35K","HH65to74HI35Kto50K","HH65to74HI50Kto75K","HH65to74HI75Kto100K","HH65to74HI>100K","HH>75HI<5K","HH>75HI5Kto10K","HH>75HI10Kto15K","HH>75HI15Kto25K","HH>75HI25Kto35K","HH>75HI35Kto50K","HH>75HI50Kto75K","HH>75HI75Kto100K","HH>75HI>100K","SchoolEnrollment1thru12","Pop25andOver","HSGradorHigher","CollGradorHigher","NativePop","ForeignBornPop","BornStateOfRes","NativePop2","ForeignBornPop2","DroveAlone","CarPooled","PublicTranspt","Walked","OtherMeans","WorkedAtHome","HHInc<10K","HHInc10to15K","HHInc15to25K","HHInc25to35K","HHInc35to50K","HHInc50to75K","HHInc75to100K","HHInc100to150K","HHInc>150K","YearStBlt89to90","YearStBlt85to88","YearStBlt80to84","YearStBlt70to79","YearStBlt60to69","YearStBlt50to59","YearStBlt40to49","YearStBlt39earlier"]
["Acworth",19005,"00260",24916.99,81.95,507,776,219,285,394,382,773,0,0,3,0,1,189,72,124,149,74,80,57,31,776,693,0,2.7228070175438597,3.1643835616438358,53,189,30,13,507,285,222,246,39,1,3,194,448,10,49,222,5,49,30,5,4,56,180,88,179,8,42,189,140,124,19,18,22,52,40,105,24,2,5,33661,0,0,2,0,0,6,0,0,0,0,0,6,8,9,29,3,0,0,6,5,2,17,14,27,5,0,0,2,4,2,2,8,25,0,2,5,3,7,2,6,5,5,14,0,0,0,0,3,15,4,9,2,0,0,8,2,5,4,0,4,0,0,0,147,499,409,134,758,18,272,758,18,272,34,0,17,10,25,37,22,52,40,105,24,2,5,0,27,29,45,135,36,30,22,179]
["Charlestown",19010,"11380",22927.95,1417.51,2051,4630,1338,1837,2293,2337,4599,9,12,7,3,23,980,561,698,738,535,450,398,270,4620,4001,10,2.5149700598802394,2.9902840059790732,398,1128,210,101,2051,1837,214,1440,397,62,29,70,1052,379,620,883,45,620,77,270,50,369,557,486,639,4,275,714,847,211,59,176,147,477,328,371,218,39,34,26400,5,5,12,22,36,20,7,0,0,0,6,28,102,85,88,57,0,7,6,13,6,106,26,128,85,22,7,10,7,12,13,83,75,35,9,13,19,41,9,95,57,29,20,8,7,19,51,51,56,24,31,14,0,0,0,53,29,83,17,0,0,0,0,820,3089,2408,496,4532,98,1629,4532,98,1866,225,5,52,23,102,235,147,477,328,371,218,39,28,6,132,237,101,456,271,132,83,639]
["Claremont",19015,"12900",27615.9,577.09,6228,13902,3752,5610,6600,7302,13684,36,83,79,20,71,2891,1883,2200,1952,1370,1275,1343,988,13758,11522,144,2.4524064171122997,3.0708955223880596,1552,2985,767,306,6228,5610,618,3248,2362,333,54,40,2818,2899,511,2466,389,511,202,2072,88,448,1430,1803,2547,95,1087,2214,1956,876,357,678,597,1108,1103,1060,516,146,32,25532,61,37,65,48,65,51,0,0,0,36,112,81,280,349,220,90,16,0,64,44,64,173,260,433,129,63,10,46,19,40,96,94,121,122,48,22,9,60,77,205,166,150,82,11,0,59,142,157,218,147,77,80,0,0,82,264,113,88,22,8,13,8,0,2214,9128,6167,1069,13397,505,8280,13397,505,4468,1069,31,326,100,240,1035,597,1108,1103,1060,516,146,11,21,164,284,280,1150,570,729,504,2547]
["Cornish",19020,"15060",26855.13,414.56,689,1659,475,605,837,822,1644,null,8,2,2,5,383,169,242,378,184,142,97,64,1659,1489,0,2.7421487603305783,3.134736842105263,100,430,45,30,689,605,84,514,91,7,8,37,573,50,66,457,20,66,53,24,14,81,191,141,276,8,48,171,277,185,13,29,40,97,134,138,110,25,18,34018,0,0,3,3,0,3,0,0,0,0,5,4,18,30,31,11,4,0,0,0,2,33,52,47,71,2,7,0,4,0,11,19,28,17,7,8,0,0,14,13,18,13,9,7,0,6,5,15,10,14,11,1,3,3,7,15,2,9,1,5,1,2,0,307,1107,964,261,1630,29,838,1630,29,672,74,2,32,7,72,42,40,97,134,138,110,25,16,2,24,57,66,125,68,48,25,276]
["Croydon",19025,"16340",23554.03,474.73,309,627,175,229,311,316,626,0,0,1,0,0,137,79,100,113,62,57,52,27,627,552,0,2.7379912663755457,3.1542857142857144,41,149,26,13,309,229,80,194,35,0,6,62,267,7,35,164,4,35,26,3,6,71,80,58,87,0,29,85,115,67,4,30,8,38,35,57,29,11,8,33214,0,3,0,0,3,0,0,0,0,0,0,0,13,6,11,3,0,0,0,1,0,5,11,9,10,3,0,2,0,2,2,12,13,16,1,0,0,0,3,9,3,19,0,5,3,0,13,3,9,0,5,0,2,2,2,13,0,0,0,0,0,0,3,97,399,296,49,604,11,357,604,11,205,65,0,2,4,10,34,8,38,35,57,29,11,3,5,7,64,29,51,22,14,22,87]
["Goshen",19030,"30500",14364.03,55.97,394,742,210,263,360,382,741,0,1,0,0,4,169,78,121,128,78,81,56,31,735,672,7,2.79467680608365,3.2,44,184,26,9,394,263,131,236,27,1,12,112,338,13,43,216,5,43,12,5,10,47,134,88,118,3,0,154,150,80,8,30,27,30,54,70,44,5,2,32813,0,0,0,3,0,0,0,0,0,2,0,3,2,10,24,8,0,0,0,2,4,8,10,30,14,3,0,3,0,2,3,13,11,10,0,0,0,2,3,5,17,5,12,2,0,0,14,11,4,4,0,0,0,2,3,12,4,5,0,0,0,0,0,126,502,387,59,691,18,401,691,18,281,40,0,12,5,13,38,27,30,54,70,44,5,2,0,8,39,41,93,30,43,15,118]
["Grantham",19035,"31220",17402.240000000002,548.63,1289,1247,404,494,622,625,1236,2,1,6,2,5,210,112,142,208,145,191,179,60,1247,1131,0,2.5242914979757085,2.7995049504950495,67,377,27,23,1289,494,795,430,64,8,14,721,923,339,27,391,25,27,35,22,7,488,590,71,140,4,17,229,727,312,12,16,24,43,77,133,116,36,33,42738,0,1,2,2,0,0,0,3,0,0,0,2,4,15,21,16,3,2,0,0,0,9,15,27,29,10,0,0,3,6,7,7,31,17,3,8,6,6,3,8,10,22,27,6,14,4,2,8,6,27,22,23,6,7,2,4,3,7,3,10,4,5,2,170,925,817,398,1196,51,540,1196,51,407,78,0,13,3,38,28,24,43,77,133,116,36,29,4,111,377,187,403,21,32,18,140]
["Langdon",19040,"40900",10443.68,2.41,243,580,159,208,297,283,579,0,0,1,0,1,136,58,97,116,63,44,46,20,580,516,0,2.7884615384615383,3.2452830188679247,37,142,17,12,243,208,35,189,19,1,4,13,203,9,31,161,6,31,15,1,3,52,49,63,83,5,23,78,80,61,5,17,11,26,53,67,33,0,5,34205,0,0,0,0,0,4,0,0,0,0,0,2,6,9,7,4,0,3,2,1,3,5,23,21,8,0,0,0,2,0,4,6,10,11,0,2,2,0,0,5,8,15,7,0,0,1,11,0,6,4,7,3,0,0,0,3,6,0,3,3,0,0,0,96,402,323,52,555,25,185,555,25,251,34,0,2,7,9,22,11,26,53,67,33,0,5,0,23,29,9,40,43,10,10,83]
["Lempster",19045,"41700",20689.22,267.01,554,947,253,325,509,438,947,0,0,0,0,7,236,129,153,174,93,72,56,34,947,859,0,2.913846153846154,3.3952569169960474,60,227,26,12,554,325,229,270,55,0,5,200,430,14,110,222,7,110,37,7,11,122,227,91,122,20,39,192,187,124,16,22,41,66,67,74,37,13,3,28750,0,0,4,4,3,7,0,0,0,2,5,6,7,27,9,6,3,0,9,6,3,15,12,35,21,10,0,0,0,0,2,7,9,5,0,3,5,3,4,11,12,11,2,0,0,0,5,20,18,6,3,0,0,0,0,3,4,9,0,0,3,0,0,223,589,448,93,963,16,466,963,16,307,48,0,0,6,52,38,41,66,67,74,37,13,3,0,24,98,56,171,64,14,13,122]
["Newport",19050,"52580",27855.05,75.28,2675,6110,1645,2352,2974,3136,6066,5,10,25,4,15,1372,813,1039,866,587,567,481,385,6044,5151,66,2.5697278911564627,3.131306990881459,563,1286,359,144,2675,2352,323,1538,814,120,40,74,1445,906,324,1218,96,324,110,647,57,340,652,696,1017,22,345,843,1166,329,118,252,261,342,509,479,286,29,27,28036,5,11,5,54,44,0,5,0,0,0,47,39,116,126,118,42,5,0,14,8,50,31,151,117,97,7,0,0,14,8,25,54,83,47,17,5,17,15,21,42,86,66,79,0,15,35,69,86,32,28,82,7,0,7,47,88,52,42,20,13,9,0,0,1095,3879,2843,508,5872,190,3867,5872,190,2127,444,9,99,69,56,370,261,342,509,479,286,29,27,0,50,290,211,441,304,164,228,1017]
["Plainfield",19055,"62340",33417.72,496.57,784,2056,581,726,1045,1011,2034,4,6,11,1,6,478,233,336,425,248,158,119,59,2056,1869,0,2.831955922865014,3.2168674698795181,113,518,63,32,784,726,58,630,96,17,6,15,656,71,57,552,31,57,54,34,8,146,252,128,258,3,39,200,378,164,20,17,29,89,125,196,183,51,18,40066,0,0,3,3,5,4,0,0,0,0,2,3,23,25,43,36,4,4,2,0,0,20,35,71,79,18,2,5,2,4,17,22,42,40,17,9,3,0,4,5,20,25,22,8,3,6,6,6,9,12,11,6,4,0,4,7,9,12,6,0,0,0,0,402,1345,1215,418,2015,41,1018,2015,41,887,145,3,59,12,45,37,29,89,125,196,183,51,11,7,34,112,66,186,69,36,23,258]
["Springfield",19060,"72740",27914.6,564.19000000000005,481,788,226,302,415,373,783,2,2,1,0,4,157,111,101,152,86,72,64,45,788,685,0,2.6092715231788079,3.0309734513274336,52,200,26,24,481,302,179,258,44,17,6,143,413,10,58,217,2,58,32,5,7,89,204,71,130,2,46,174,178,94,8,28,37,46,58,78,46,6,8,32562,0,0,3,2,6,0,0,0,0,0,0,4,6,11,20,4,0,0,0,5,9,15,13,17,19,0,3,5,0,0,10,20,10,13,2,2,0,6,4,7,2,13,4,4,0,0,7,7,6,6,9,6,0,3,3,10,10,0,0,9,0,0,0,143,532,405,127,788,12,411,788,12,273,74,7,0,6,36,36,37,46,58,78,46,6,3,5,10,79,50,154,37,25,9,130]
["Sunapee",19065,"75060",13484.2,2614.92,1904,2559,719,991,1264,1295,2546,0,2,10,1,11,552,291,393,457,287,229,223,127,2558,2214,1,2.5812310797174569,3.0792767732962449,207,615,104,65,1904,991,913,735,256,28,28,823,1455,347,102,645,38,102,96,142,18,183,339,710,642,18,183,564,710,399,60,64,74,162,195,248,164,10,42,32679,0,0,0,16,15,0,0,0,0,23,7,29,0,38,72,27,0,0,7,6,0,53,23,56,84,0,10,20,7,0,15,17,68,19,10,17,0,12,12,26,47,39,18,0,0,10,10,15,52,30,3,16,0,15,0,22,18,0,25,10,0,0,0,485,1762,1462,371,2547,60,1271,2547,60,1101,66,0,85,43,50,124,74,162,195,248,164,10,25,17,12,171,71,268,158,382,170,642]
["Unity",19070,"77940",23657.16,149.15,558,1341,310,393,682,659,1335,3,3,0,0,3,234,179,198,255,124,91,80,180,1105,982,236,2.8117048346055982,3.1677419354838712,54,272,38,29,558,393,165,355,38,1,10,138,436,9,113,282,2,113,21,7,10,80,274,106,98,7,45,155,248,103,22,12,32,77,84,83,67,10,13,31458,0,0,2,4,4,2,0,3,0,5,2,0,14,16,35,21,0,0,2,0,9,22,26,30,28,0,7,5,2,6,16,14,9,12,5,4,4,1,5,8,11,6,6,2,2,6,2,9,13,13,1,0,0,0,0,5,1,0,0,0,0,0,0,196,928,662,78,1282,59,774,1282,59,426,79,0,9,3,53,34,32,77,84,83,67,10,9,4,26,54,65,209,49,35,22,98]
["Washington",19075,"78980",29121.19,1402.81,866,628,184,253,318,310,628,0,0,0,0,9,126,62,81,105,66,84,72,32,628,548,0,2.4822134387351777,2.9782608695652173,59,158,26,10,866,253,613,234,19,2,4,588,795,7,64,223,2,64,16,2,1,116,394,201,154,49,181,348,207,80,8,27,23,33,39,62,38,6,4,33333,0,0,3,0,0,3,0,0,0,6,0,2,8,10,12,3,0,0,2,0,5,3,7,17,18,4,4,0,0,5,4,2,14,9,0,0,0,4,0,11,12,6,2,2,0,0,17,8,5,2,7,4,0,0,0,6,0,2,6,3,2,0,0,93,426,322,90,601,28,287,601,28,189,62,0,7,2,27,35,23,33,39,62,38,6,4,0,18,98,159,235,96,76,29,154]
[]
[]
[]
[]
[]
[]
[]
[]
[]
[]
[]
[]
[]
[]
[]
[]
[]
[]
[]
[]
[]
[]
[]
[]
[]
[]
[]
[]
[]
[]
["Census 1990 Data -    Query Name:  CountySTF1Qry1"]
["NAME","COUSUBFP","Census_Cnty_Code","FIPS","LandAcres","WaterAcres","HousingUnits90Cen","P01Persons90Cen","P02Families90Cen","P03Households90cen","P05MalePop90cen","P05FemalePop90cen","P06WhitePop","P06BlackPop","P06AmerIndianPop","P06AsianPIPop","P06OtherRacePop","P08HispanicOrPop","P11AgeUnder15_90cen","P11Age15to24_90cen","P11Age25to34_90cen","P11Age35to44_90cen","P11Age45to54_90cen","P11Age55to64_90cen","P11Age65to74_90cen","P11Age75andOver_90cen","P15PersonsInHH90cen","P15PersonsInFamHH90cen","P15PersonsInGC","PersonsPerHH90cen","PersonsPerFam90Cen","P16SinglePersonHH90cen","P16MarriedCoupleHH90cen","P16SingleParentHH90cen","P16NonFamilyHH90cen","H01TotalHousingUnits","H02OccupiedHousingUnits","H02VacantHousingUnits","H03OwnerOccHU","H03RenterOccHU","H05VacantForRent90","H05VacantForSale90","H05VacantSeasonalRec","H23OOHUVal<15k","H23OOHUVal15to19k","H23OOHUVal20to24k","H23OOHUVal25to29k","H23OOHUVal30to34k","H23OOHUVal35to39k","H23OOHUVal40to44k","H23OOHUVal45to49k","H23OOHUVal50to59k","H23OOHUVal60to74k","H23OOHUVal75to99k","H23OOHUVal100to124k","H23OOHUVal125to149k","H23OOHUVal150to174k","H23OOHUVal175to199k","H23OOHUVal200to249k","H23OOHUVal250to299k","H23OOHUVal300to399k","H23OOHUVal400to499k","H23OOHUVal500kOrMore","H23BOOHUMedVal","H41SingFamHU90cen","H41MultiFamHU90cen","H41MobileHom90cen","H43SingFamOwnHU90cen","H43MultiFamOwnHU90cen","H43MobileHomOwnHU90cen","H43SingFamRntrHU90cen","H43MultiFamRntrHU90cen","H43MobileHomRntrHU90cen","H41HU1UnitDet","H41HU1UnitAtt","H41HU2Unit","H41HU3to4Unit","H41HU5to9Unit","H41HU10to19Unit","H41HU20to49Unit","H41HU50PlusUnit","H41HUMobilH","H41HUOther"]
["Acworth",1001,19005,"00260",24916.99,81.95,507,776,219,285,394,382,773,0,0,3,0,1,189,72,124,149,74,80,57,31,776,693,0,2.7228070175438597,3.1643835616438358,53,189,30,13,507,285,222,246,39,1,3,194,4,2,2,1,1,1,6,0,7,20,36,19,7,6,1,1,1,0,0,1,84700,448,10,49,222,5,19,30,5,4,448,3,7,0,0,0,0,0,38,11]
["Charlestown",1002,19010,"11380",22927.95,1417.51,2051,4630,1338,1837,2293,2337,4599,9,12,7,3,23,980,561,698,738,535,450,398,270,4620,4001,10,2.5149700598802394,2.9902840059790732,398,1128,210,101,2051,1837,214,1440,397,62,29,70,0,0,2,4,7,11,18,15,46,130,273,133,47,14,9,11,2,1,0,1,86800,1052,379,620,883,45,512,77,270,50,1052,13,72,118,123,0,53,0,605,15]
["Claremont",1003,19015,"12900",27615.9,577.09,6228,13902,3752,5610,6600,7302,13684,36,83,79,20,71,2891,1883,2200,1952,1370,1275,1343,988,13758,11522,144,2.4524064171122997,3.0708955223880596,1552,2985,767,306,6228,5610,618,3248,2362,333,54,40,16,11,18,17,29,20,57,45,168,450,850,294,141,49,40,17,8,2,0,0,83400,2818,2899,511,2466,389,393,202,2072,88,2818,80,742,808,492,181,319,277,421,90]
["Cornish",1004,19020,"15060",26855.13,414.56,689,1659,475,605,837,822,1644,3,8,2,2,5,383,169,242,378,184,142,97,64,1659,1489,0,2.7421487603305783,3.134736842105263,100,430,45,30,689,605,84,514,91,7,8,37,3,3,0,2,6,5,3,5,13,29,53,54,38,26,5,9,4,1,0,0,103500,573,50,66,457,20,37,53,24,14,573,15,24,11,0,0,0,0,53,13]
["Croydon",1005,19025,"16340",23554.03,474.73,309,627,175,229,311,316,626,0,0,1,0,0,137,79,100,113,62,57,52,27,627,552,0,2.7379912663755457,3.1542857142857144,41,149,26,13,309,229,80,194,35,0,6,62,1,2,1,2,2,3,7,1,11,12,33,16,12,5,1,4,1,0,0,3,87500,267,7,35,164,4,26,26,3,6,267,1,6,0,0,0,0,0,34,1]
["Goshen",1006,19030,"30500",14364.03,55.97,394,742,210,263,360,382,741,0,1,0,0,4,169,78,121,128,78,81,56,31,735,672,7,2.79467680608365,3.2,44,184,26,9,394,263,131,236,27,1,12,112,0,0,2,0,0,0,3,3,3,12,45,37,19,6,4,3,4,2,0,1,102700,338,13,43,216,5,15,12,5,10,338,4,7,2,0,0,0,0,41,2]
["Grantham",1007,19035,"31220",17402.240000000002,548.63,1289,1247,404,494,622,625,1236,2,1,6,2,5,210,112,142,208,145,191,179,60,1247,1131,0,2.5242914979757085,2.7995049504950495,67,377,27,23,1289,494,795,430,64,8,14,721,1,1,0,2,2,0,1,0,8,14,44,40,37,46,59,42,22,14,11,4,163000,923,339,27,391,25,14,35,22,7,923,322,9,5,1,2,0,0,21,6]
["Langdon",1008,19040,"40900",10443.68,2.41,243,580,159,208,297,283,579,0,0,1,0,1,136,58,97,116,63,44,46,20,580,516,0,2.7884615384615383,3.2452830188679247,37,142,17,12,243,208,35,189,19,1,4,13,1,0,0,0,1,2,3,1,6,23,31,16,9,5,1,3,1,0,0,0,86700,203,9,31,161,6,22,15,1,3,203,4,5,0,0,0,0,0,27,4]
["Lempster",1009,19045,"41700",20689.22,267.01,554,947,253,325,509,438,947,0,0,0,0,7,236,129,153,174,93,72,56,34,947,859,0,2.913846153846154,3.3952569169960474,60,227,26,12,554,325,229,270,55,0,5,200,2,1,0,3,7,1,2,4,11,22,29,22,11,8,4,2,2,0,0,0,85800,430,14,110,222,7,41,37,7,11,430,2,9,3,0,0,0,0,61,49]
["Newport",1010,19050,"52580",27855.05,75.28,2675,6110,1645,2352,2974,3136,6066,5,10,25,4,15,1372,813,1039,866,587,567,481,385,6044,5151,66,2.5697278911564627,3.131306990881459,563,1286,359,144,2675,2352,323,1538,814,120,40,74,3,2,3,6,10,17,17,32,90,199,387,134,81,36,14,17,4,0,3,1,84600,1445,906,324,1218,96,224,110,647,57,1445,58,235,278,192,115,28,0,283,41]
["Plainfield",1011,19055,"62340",33417.72,496.57,784,2056,581,726,1045,1011,2034,4,6,11,1,6,478,233,336,425,248,158,119,59,2056,1869,0,2.831955922865014,3.2168674698795181,113,518,63,32,784,726,58,630,96,17,6,15,2,1,0,0,1,1,2,3,9,30,72,58,62,37,15,15,3,1,1,0,115300,656,71,57,552,31,47,54,34,8,656,15,42,5,1,8,0,0,48,9]
["Springfield",1012,19060,"72740",27914.6,564.19000000000005,481,788,226,302,415,373,783,2,2,1,0,4,157,111,101,152,86,72,64,45,788,685,0,2.6092715231788079,3.0309734513274336,52,200,26,24,481,302,179,258,44,17,6,143,2,0,2,3,0,3,1,1,10,14,31,13,18,17,4,12,4,4,2,1,107700,413,10,58,217,2,39,32,5,7,413,4,2,4,0,0,0,0,53,5]
["Sunapee",1013,19065,"75060",13484.2,2614.92,1904,2559,719,991,1264,1295,2546,0,2,10,1,11,552,291,393,457,287,229,223,127,2558,2214,1,2.5812310797174569,3.0792767732962449,207,615,104,65,1904,991,913,735,256,28,28,823,0,1,1,0,1,0,3,2,12,18,96,105,67,70,49,40,17,17,20,25,137300,1455,347,102,645,38,52,96,142,18,1455,134,76,79,55,3,0,0,70,32]
["Unity",1014,19070,"77940",23657.16,149.15,558,1341,310,393,682,659,1335,3,3,0,0,3,234,179,198,255,124,91,80,180,1105,982,236,2.8117048346055982,3.1677419354838712,54,272,38,29,558,393,165,355,38,1,10,138,1,0,1,2,1,4,3,4,11,19,40,36,12,6,3,1,3,0,0,0,92200,436,9,113,282,2,71,21,7,10,436,3,6,0,0,0,0,0,110,3]
["Washington",1015,19075,"78980",29121.19,1402.81,866,628,184,253,318,310,628,0,0,0,0,9,126,62,81,105,66,84,72,32,628,548,0,2.4822134387351777,2.9782608695652173,59,158,26,10,866,253,613,234,19,2,4,588,0,0,2,0,4,4,3,6,10,20,40,30,20,17,5,4,1,0,0,0,96300,795,7,64,223,2,9,16,2,1,795,2,5,0,0,0,0,0,44,20]
[]
[]
[]
[]
[]
[]
[]
[]
[]
[]
[]
[]
[]
[]
[]
[]
[]
[]
[]
[]
[]
[]
[]
[]
[]
[]
[]
[]
[]
[]
[]
["Census 1990 Data -          Query Name: CountySTF3Qry1"]
[]
["NAME","FIPS","COUSUBFP","LandAcres","WaterAcres","HousingUnits90Cen","P01Persons90Cen","P02Families90Cen","P03Households90cen","H25HU<5yrs90cen","H25HU5to20yrs90cen","H25HU20to50yrs90cen","H25HU>50yrs90cen","H31Units0Bedroom90cen","H31Units1Bedroom90cen","H31Units2Bedroom90cen","H31Units3Bedroom90cen","H31Units4Bedroom90cen","H31Units5+Bedroom90cen","P80HI<5K","P80HI5Kto10K","P80HI10Kto15K","P80HI15Kto25K","P80HI25Kto35K","P80HI35Kto50K","P80HI50Kto75K","P80HI75Kto100K","P80HI>100K","P80AMedHI","P86HH<25HI<5K","P86HH<25HI5Kto10K","P86HH<25HI10Kto15K","P86HH<25HI15Kto25K","P86HH<25HI25Kto35K","P86HH<25HI35Kto50K","P86HH<25HI50Kto75K","P86HH<25HI75Kto100K","P86HH<25HI>100K","P86HH25to34HI<5K","P86HH25to34HI5Kto10K","P86HH25to34HI10Kto15K","P86HH25to34HI15Kto25K","P86HH25to34HI25Kto35K","P86HH25to34HI35Kto50K","P86HH25to34HI50Kto75K","P86HH25to34HI75Kto100K","P86HH25to34HI>100K","P86HH35to44HI<5K","P86HH35to44HI5Kto10K","P86HH35to44HI10Kto15K","P86HH35to44HI15Kto25K","P86HH35to44HI25Kto35K","P86HH35to44HI35Kto50K","P86HH35to44HI50Kto75K","P86HH35to44HI75Kto100K","P86HH35to44HI>100K","P86HH45to54HI<5K","P86HH45to54HI5Kto10K","P86HH45to54HI10Kto15K","P86HH45to54HI15Kto25K","P86HH45to54HI25Kto35K","P86HH45to54HI35Kto50K","P86HH45to54HI50Kto75K","P86HH45to54HI75Kto100K","P86HH45to54HI>100K","P86HH55to64HI<5K","P86HH55to64HI5Kto10K","P86HH55to64HI10Kto15K","P86HH55to64HI15Kto25K","P86HH55to64HI25Kto35K","P86HH55to64HI35Kto50K","P86HH55to64HI50Kto75K","P86HH55to64HI75Kto100K","P86HH55to64HI>100K","P86HH65to74HI<5K","P86HH65to74HI5Kto10K","P86HH65to74HI10Kto15K","P86HH65to74HI15Kto25K","P86HH65to74HI25Kto35K","P86HH65to74HI35Kto50K","P86HH65to74HI50Kto75K","P86HH65to74HI75Kto100K","P86HH65to74HI>100K","P86HH>75HI<5K","P86HH>75HI5Kto10K","P86HH>75HI10Kto15K","P86HH>75HI15Kto25K","P86HH>75HI25Kto35K","P86HH>75HI35Kto50K","P86HH>75HI50Kto75K","P86HH>75HI75Kto100K","P86HH>75HI>100K","P54SchlEnrlPrePrim","P54SchlEnrlElemThrHS","P54SchlEnrlCollege","P54NotEnrlInSch","P57Pop25andOver","P57LessThan9thGrade","P579thto12thNoDip","P57HSGrad","P57SomeCollege","P57AssocDeg","P57BachelDeg","P57GradorProfDeg","P57HSGradorHigher","P57CollGradorHigher","P42NativePop","P42ForeignBornPop","P42BornStateOfRes","P37NativePop2","P37ForeignBornPop2","P49DroveAlone","P49CarPooled","P49PublicTranspt","P49Walked","P49OtherMeans","P49WorkedAtHome","P80HHInc<10K","P80HHInc10to15K","P80HHInc15to25K","P80HHInc25to35K","P80HHInc35to50K","P80HHInc50to75K","P80HHInc75to100K","P80HHInc100to150K","P80HHInc>150K","H25YearStBlt89to90","H25YearStBlt85to88","H25YearStBlt80to84","H25YearStBlt70to79","H25YearStBlt60to69","H25YearStBlt50to59","H25YearStBlt40to49","H25YearStBlt39earlier","P107FamInc<10K","P107FamInc10to15K","P107FamInc15to25K","P107FamInc25to35K","P107FamInc35to50K","P107FamInc50to75K","P107FamInc75to100K","P107FamInc100to150K","P107FamInc>150K","P107AMedFamInc","P110NonFamInc<10K","P110NonFamInc10to15K","P110NonFamInc15to25K","P110NonFamInc25to35K","P110NonFamInc35to50K","P110NonFamInc50to75K","P110NonFamInc75to100K","P110NonFamInc100to150K","P110NonFamInc>150K","P110AMedNonFamInc","H16HU1Room","H16HU2Room","H16HU3Room","H16HU4Room","H16HU5Room","H16HU6Room","H16HU7Room","H16HU8Room","H16HU9+Room","H43GrossRnt<100","H43GrossRnt100to149","H43GrossRnt150to199","H43GrossRnt200to249","H43GrossRnt250to299","H43GrossRnt300to349","H43GrossRnt350to399","H43GrossRnt400to449","H43GrossRnt450to499","H43GrossRnt500to549","H43GrossRnt550to599","H43GrossRnt600to649","H43GrossRnt650to699","H43GrossRnt700to749","H43GrossRnt750to999","H43GrossRnt1000Plus","H43NoCashRent","H43MedGrossRent","H51GrossRnt<20PctHHInc","H51GrossRnt20to24PctHHInc","H51GrossRnt25to29PctHHInc","H51GrossRnt30to34PctHHInc","H51GrossRnt35PctOrMoreHHInc","H51GrossRntAsPctHHIncNotComp","H52HUwMtgMoOwnCst<200","H52HUwMtgMoOwnCst200to299","H52HUwMtgMoOwnCst300to399","H52HUwMtgMoOwnCst400to499","H52HUwMtgMoOwnCst500to599","H52HUwMtgMoOwnCst600to699","H52HUwMtgMoOwnCst700to799","H52HUwMtgMoOwnCst800to899","H52HUwMtgMoOwnCst900to999","H52HUwMtgMoOwnCst1000to1249","H52HUwMtgMoOwnCst1250to1499","H52HUwMtgMoOwnCst1500to1999","H52HUwMtgMoOwnCst2000More","H52HUwNoMtgMoOwnCst<100","H52HUwNoMtgMoOwnCst100to149","H52HUwNoMtgMoOwnCst150to199","H52HUwNoMtgMoOwnCst200to249","H52HUwNoMtgMoOwnCst250to299","H52HUwNoMtgMoOwnCst300to349","H52HUwNoMtgMoOwnCst350to399","H52HUwNoMtgMoOwnCst400More","H52AMedMoOwnCstWMortg","H52AMedMoOwnCstWNoMortg","H58HUwMtgMOC<20pHHInc","H58HUwMtgMOC20to24pHHInc","H58HUwMtgMOC25to29pHHInc","H58HUwMtgMOC30to34pHHInc","H58wMtgMOC>35pHHInc","H58HUwMtgMOCNotComp","H58HUwNoMtgMOC<20pHHInc","H58HUwNoMtgMOC20to24pHHInc","H58HUwNoMtgMOC25to29pHHInc","H58HUwNoMtgMOC30to34pHHInc","H58wNoMtgMOC>35pHHInc","H58HUwNoMtgMOCNotComp","H61OOHUVal<15k","H61OOHUVal15to19k","H61OOHUVal20to24k","H61OOHUVal25to29k","H61OOHUVal30to34k","H61OOHUVal35to39k","H61OOHUVal40to44k","H61OOHUVal45to49k","H61OOHUVal50to59k","H61OOHUVal60to74k","H61OOHUVal75to99k","H61OOHUVal100to124k","H61OOHUVal125to149k","H61OOHUVal150to174k","H61OOHUVal175to199k","H61OOHUVal200to249k","H61OOHUVal250to299k","H61OOHUVal300to399k","H61OOHUVal400to499k","H61OOHUVal500kOrMore","H61aOOHUMedVal"]
[]
[]
[]
[]
[]
[]
[]
[]
[]
[]
[]
[]
[]
[]
[]
["Other Demo Data -             Query Name: QryAllTowns-ACSDemographicSheet",null,null,null,"2023-01-25"]
[]
["TOWN_NAME","FIPS","TOWNCNTY","COUSUB","POP80","POP90CDCEN","POP2000CEN","POP2010CEN","POP2020CEN","POP2025-Proj","POP2030-Proj","POP2035-Proj","SF80","MF80","MH80","SF81","MF81","MH81","SF82","MF82","MH82","SF83","MF83","MH83","SF84_OSP","MF84_OSP","MH84_OSP","SF85_OSP","MF85_OSP","MH85_OSP","SF86_OSP","MF86_OSP","MH86_OSP","SF87_OSP","MF87_OSP","MH87_OSP","SF88_OSP","MF88_OSP","MH88_OSP","SF89_OSP","MF89_OSP","MH89_OSP","SF90_OSP","MF90_OSP","MH90_OSP","SF91_OSP","MF91_OSP","MH91_OSP","SF92_OSP","MF92_OSP","MH92_OSP","SF93_OSP","MF93_OSP","MH93_OSP","SF94_OSP","MF94_OSP","MH94_OSP","SF95_OSP","MF95_OSP","MH95_OSP","SF96_OSP","MF96_OSP","MH96_OSP","SF97_OSP","MF97_OSP","MH97_OSP","SF98_OSP","MF98_OSP","MH98_OSP","SF99_OSP","MF99_OSP","MH99_OSP","SF00_OSP","MF00_OSP","MH00_OSP","SF01_OSP","MF01_OSP","MH01_OSP","SF02_OSP","MF02_OSP","MH02_OSP","SF03_OSP","MF03_OSP","MH03_OSP","SF04_OSP","MF04_OSP","MH04_OSP","SF05_OSP","MF05_OSP","MH05_OSP","SF06_OSP","MF06_OSP","MH06_OSP","SF07_OSP","MF07_OSP","MH07_OSP","SF08_OSP","MF08_OSP","MH08_OSP","SF09_OSP","MF09_OSP","MH09_OSP","SF10_OSP","MF10_OSP","MH10_OSP","SF11_OSP","MF11_OSP","MH11_OSP","SF12_OSP","MF12_OSP","MH12_OSP","SF13_OSP","MF13_OSP","MH13_OSP","SF14_OSP","MF14_OSP","MH14_OSP","SF15_OSP","MF15_OSP","MH15_OSP","SF16_OSP","MF16_OSP","MH16_OSP","SF17_OSP","MF17_OSP","MH17_OSP","SF18_OSP","MF18_OSP","MH18_OSP","SF19_OSP","MF19_OSP","MH19_OSP","SF20_OSP","MF20_OSP","MH20_OSP","SF20 Census_OSP","MF20 Census OSP","MH20 Census_OSP","SF21_OSP","MF21_OSP","MH21_OSP","COMMENTS","CNTY_CODE"]
["Acworth",19005,1001,"00260",590,776,836,891,853,870,880,880,6,0,0,4,0,0,3,0,0,6,0,1,3,0,0,3,0,1,2,0,1,4,0,1,1,0,1,3,0,5,0,0,1,1,0,1,0,0,1,1,0,0,2,1,1,2,0,0,2,0,2,3,0,0,4,0,2,0,0,1,0,0,1,2,0,2,6,0,0,11,0,2,11,0,1,10,0,0,10,0,0,9,0,0,3,0,2,4,0,0,5,0,0,4,0,0,0,0,0,1,0,2,0,0,0,1,0,0,0,0,0,0,0,0,3,0,2,1,0,0,2,0,0,null,null,null,1,0,0,"",10]
["Charlestown",19010,1002,"11380",4417,4630,4749,5114,4806,4904,4958,4958,9,2,18,13,0,19,5,12,16,8,0,21,9,0,15,7,2,16,5,0,27,20,0,35,37,17,36,9,35,25,9,0,11,9,0,12,2,0,13,5,0,21,4,0,9,2,0,29,0,4,0,0,-3,3,2,0,12,3,21,27,10,-11,22,5,0,18,6,0,7,11,0,14,14,0,7,6,0,10,5,0,-2,13,0,0,5,0,5,7,4,1,2,1,6,3,-4,0,5,-1,0,2,0,-1,5,0,3,0,0,2,2,2,1,1,0,11,-4,2,2,1,0,1,2,6,3,null,null,null,4,3,-2,"",10]
["Claremont",19015,1003,"12900",14557,13902,13151,13355,12949,13214,13360,13360,20,-1,20,14,-3,12,7,6,4,12,-18,7,6,-13,7,11,20,14,16,10,11,34,5,10,87,0,22,18,40,5,5,-2,0,3,4,4,5,0,3,5,-3,9,3,-61,16,3,-25,11,1,-50,12,6,-21,8,19,-2,3,10,0,3,7,-25,3,5,-2,5,19,-8,1,3,-3,11,15,0,7,5,1,6,18,0,0,10,0,1,2,0,-1,1,0,14,1,0,1,-2,3,3,2,0,4,-1,-5,5,0,0,-1,1,-2,2,3,0,-2,-2,-2,0,0,0,3,-1,0,1,-3,0,-1,null,null,null,1,0,1,"2006  Did not submit data to OEP. Used Census Data",10]
["Cornish",19020,1004,"15060",1390,1659,1661,1640,1616,1649,1667,1667,9,0,0,4,0,1,9,0,2,10,0,3,10,0,2,7,0,1,10,0,3,10,0,3,14,0,0,6,0,0,2,0,0,2,0,0,2,0,0,3,0,0,1,0,0,3,0,0,2,0,3,4,0,3,2,0,1,4,0,0,6,0,0,-1,0,1,7,0,1,9,0,0,5,2,0,5,2,0,6,0,0,6,0,0,6,0,-1,2,0,0,1,0,1,1,0,0,3,0,0,3,0,0,1,0,0,0,0,0,3,0,0,1,0,1,0,0,0,1,2,0,3,0,0,null,null,null,3,0,0,"",10]
["Croydon",19025,1005,"16340",457,627,661,764,801,817,826,826,1,0,1,0,0,0,2,0,2,7,0,1,0,0,0,6,0,2,0,0,0,12,0,7,11,1,2,10,1,1,2,0,0,5,0,3,3,0,1,4,0,2,8,0,1,4,0,0,3,0,0,3,0,0,6,0,4,3,0,1,7,0,2,1,0,0,9,0,3,6,0,0,2,0,1,7,0,1,11,0,0,8,0,0,2,0,1,3,0,0,1,0,0,0,0,0,1,0,0,1,0,-1,0,0,0,0,0,0,3,0,1,3,0,0,2,0,1,1,0,2,4,0,1,null,null,null,6,0,0,"",10]
["Goshen",19030,1006,"30500",549,742,741,810,796,812,821,821,8,0,1,6,0,0,3,0,0,8,0,0,6,1,2,5,0,0,6,0,0,10,0,1,5,0,5,8,0,0,2,-1,4,3,0,2,3,0,2,3,0,2,4,0,3,3,0,0,2,0,0,3,0,0,4,0,0,4,0,0,5,0,0,6,0,0,5,0,0,7,0,2,9,0,0,8,0,0,7,0,0,3,0,0,0,-1,1,1,0,0,1,0,0,0,0,0,0,0,0,0,0,1,0,0,0,3,1,0,1,0,0,0,0,0,0,0,0,0,0,0,1,0,0,null,null,null,1,0,0,"2000, 2001, 2004, 2005, 2006 Did not submit data to OEP. Used Census Data",10]
["Grantham",19035,1007,"31220",704,1247,2167,2985,3404,3474,3512,3512,78,10,0,81,0,0,6,0,0,0,0,0,9,0,0,7,0,0,52,0,0,61,0,0,63,0,3,58,0,5,27,0,2,27,0,1,17,0,0,22,0,1,27,0,2,22,0,1,24,0,2,25,0,0,21,0,2,21,0,3,34,0,1,28,2,0,45,2,0,59,0,0,42,0,0,31,0,0,23,0,0,23,0,0,15,0,0,6,0,0,5,0,0,6,0,0,3,0,0,5,2,0,7,0,0,17,0,0,3,0,0,3,1,0,6,0,0,4,0,0,4,1,0,null,null,null,6,0,0,"",10]
["Langdon",19040,1008,"40900",437,580,586,688,651,664,672,672,1,0,0,1,0,2,2,0,0,3,0,0,2,0,0,2,0,1,3,0,0,5,0,0,8,0,2,3,0,0,4,0,0,7,0,2,6,0,1,0,0,1,2,0,0,3,0,2,4,0,0,4,0,0,1,0,2,4,0,0,3,0,0,1,0,0,5,1,0,0,0,0,6,0,0,8,0,0,5,0,0,6,0,0,2,0,0,1,0,0,1,0,0,0,0,0,3,0,0,0,0,0,0,0,0,2,0,0,1,0,0,1,0,0,0,0,0,1,0,0,1,0,0,null,null,null,2,0,0,"2006  Did not submit data to OEP. Used Census Data",10]
["Lempster",19045,1009,"41700",637,947,971,1154,1118,1141,1153,1153,6,0,0,2,0,2,3,0,3,8,0,2,5,0,3,7,0,4,15,4,0,15,0,6,12,0,4,11,0,5,3,0,3,2,0,3,4,0,2,2,0,0,4,0,3,4,0,0,7,0,3,8,0,0,4,0,0,5,0,5,9,0,4,11,0,0,12,0,2,11,0,0,23,0,0,13,0,3,14,0,0,10,0,2,7,0,0,6,0,0,1,0,1,3,0,2,3,0,0,4,0,0,1,0,1,1,0,2,2,0,0,0,0,-2,5,1,1,0,0,2,7,2,1,null,null,null,5,0,0,"",10]
["Newport",19050,1010,"52580",6229,6110,6269,6507,6299,6428,6499,6499,11,51,9,8,48,7,13,0,12,7,6,6,5,-17,7,15,6,14,26,10,16,25,0,37,64,2,24,13,-5,6,5,-5,6,4,0,3,4,2,5,3,1,2,4,0,13,8,0,11,5,0,6,6,27,3,4,4,3,7,0,3,8,0,9,4,0,0,12,1,7,9,1,-1,24,7,7,20,0,0,11,0,9,45,26,34,3,0,4,0,6,2,3,4,3,-2,3,-3,3,2,0,3,0,0,0,-9,-2,4,0,4,-1,0,8,-6,0,2,3,2,1,4,2,1,2,0,4,null,null,null,8,2,4,"",10]
["Plainfield",19055,1011,"62340",1749,2056,2241,2364,2459,2509,2537,2537,9,0,3,13,2,0,8,2,0,21,0,0,8,0,-1,10,0,0,24,0,1,20,3,3,26,2,3,28,0,4,11,6,5,9,0,2,5,0,1,11,0,1,4,0,2,7,0,1,4,0,4,6,0,1,12,0,2,13,0,7,18,0,2,12,0,0,15,0,0,15,0,0,19,0,0,12,0,0,6,0,0,9,0,0,3,0,0,3,3,0,5,0,0,3,0,0,3,0,0,5,0,0,7,2,0,4,2,0,4,0,0,8,2,0,5,0,0,5,5,0,2,6,0,null,null,null,10,3,0,"",10]
["Springfield",19060,1012,"72740",532,788,945,1311,1259,1285,1299,1299,5,0,1,6,0,7,7,0,4,8,0,9,8,0,2,15,0,5,12,8,3,10,0,3,13,2,2,11,0,2,2,0,7,6,0,2,5,0,1,6,0,4,6,0,7,10,2,2,8,2,2,9,0,5,1,0,7,12,2,4,6,0,6,12,0,2,19,0,3,20,0,1,24,0,1,14,0,-2,15,0,0,2,0,0,5,0,0,4,0,1,2,0,0,6,0,1,2,0,0,5,0,0,1,0,0,3,0,1,2,1,0,4,0,-1,2,0,0,4,0,0,6,2,0,null,null,null,5,0,0,"",10]
["Sunapee",19065,1013,"75060",2312,2559,3055,3365,3342,3410,3448,3448,20,0,0,12,0,0,0,0,0,19,0,-2,34,0,2,21,0,1,52,0,1,24,16,1,40,4,-1,9,3,2,11,1,0,10,6,1,9,0,0,7,1,2,13,0,0,23,0,0,21,2,0,19,6,0,17,5,0,15,0,3,29,8,0,20,2,0,20,0,0,29,2,0,24,14,1,35,2,2,25,9,0,16,4,0,11,5,1,3,2,1,9,0,1,8,0,1,4,5,0,8,4,0,7,8,0,11,0,0,10,3,2,3,0,0,6,-1,0,8,2,0,14,0,-2,null,null,null,11,2,0,"2003 Did not submit data to OEP. Used Census Data",10]
["Unity",19070,1014,"77940",1092,1341,1530,1671,1518,1549,1566,1566,0,0,0,12,0,5,10,0,3,9,0,4,13,0,0,6,0,6,13,0,8,16,0,5,18,0,9,7,0,7,3,0,4,9,0,5,4,1,7,4,0,8,10,0,0,2,0,5,4,0,10,4,0,6,4,0,3,6,0,-1,2,0,8,5,0,10,6,0,4,8,0,3,10,0,3,11,0,4,7,0,0,5,2,0,7,0,0,1,0,5,-2,0,0,-5,0,2,-1,0,1,-5,0,0,5,0,2,-2,0,0,0,0,0,-1,0,2,2,0,1,1,0,0,3,0,0,null,null,null,3,0,1,"",10]
["Washington",19075,1015,"78980",411,628,895,1123,1192,1216,1230,1230,13,0,0,15,0,0,7,0,-1,0,0,0,20,0,1,11,0,1,19,0,3,23,0,0,18,0,0,11,0,4,4,0,1,9,0,0,3,0,1,3,0,0,7,0,1,1,0,2,4,0,1,1,0,-1,6,0,2,12,0,4,7,0,2,10,0,1,14,0,1,25,0,0,32,0,0,30,0,0,15,0,3,25,0,0,9,0,0,6,0,0,2,0,0,3,0,0,3,0,0,2,0,1,3,0,0,3,0,0,1,0,1,7,0,0,5,0,1,10,0,0,6,0,2,null,null,null,12,1,0,"",10]
[]
[]
[]
[]
[]
[]
[]
[]
[]
[]
[]
[]
[]
[]
[]
[]
[]
[]
[]
[]
[]
[]
[]
[]
[]
[]
[]
[]
[]
[]
[]
[]
[]
[]
[]
["NH Employment Data","Query Name: DPQryEmploymentByCnty-Good-Serv-Total","Updated:","2022-10-04"]
[]
["AreaName","COUNTYCODE","TOTP & G2001","TOT2001","GOODPRO2001","SERVICEPROMAN2001","WAGEP & G2001","WAGETOT2001","WAGEGOODPRO2001","WAGESERVICEPRO2001","TOTP & G2002","TOT2002","GOODPRO2002","SERVICEPROMAN2002","WAGEP & G2002","WAGETOT2002","WAGEGOODPRO2002","WAGESERVICEPRO2002","TOTP & G2003","TOT2003","GOODPRO2003","SERVICEPROMAN2003","WAGEP & G2003","WAGETOT2003","WAGEGOODPRO2003","WAGESERVICEPRO2003","TOTP & G2004","TOT2004","GOODPRO2004","SERVICEPROMAN2004","WAGEP & G2004","WAGETOT2004","WAGEGOODPRO2004","WAGESERVICEPRO2004","TOTP & G2005","TOT2005","GOODPRO2005","SERVICEPROMAN2005","WAGEP & G2005","WAGETOT2005","WAGEGOODPRO2005","WAGESERVICEPRO2005","TOTP & G2006","TOT2006","GOODPRO2006","SERVICEPROMAN2006","WAGEP & G2006","WAGETOT2006","WAGEGOODPRO2006","WAGESERVICEPRO2006","TOTP & G2007","TOT2007","GOODPRO2007","SERVICEPROMAN2007","WAGEP & G2007","WAGETOT2007","WAGEGOODPRO2007","WAGESERVICEPRO2007","TOTP & G2008","TOT2008","GOODPRO2008","SERVICEPROMAN2008","WAGEP & G2008","WAGETOT2008","WAGEGOODPRO2008","WAGESERVICEPRO2008","TOTP & G2009","TOT2009","GOODPRO2009","SERVICEPROMAN2009","WAGEP & G2009","WAGETOT2009","WAGEGOODPRO2009","WAGESERVICEPRO2009","TOTP & G2010","TOT2010","GOODPRO2010","SERVICEPROMAN2010","WAGEP & G2010","WAGETOT2010","WAGEGOODPRO2010","WAGESERVICEPRO2010","TOTP & G2011","TOT2011","GOODPRO2011","SERVICEPROMAN2011","WAGEP & G2011","WAGETOT2011","WAGEGOODPRO2011","WAGESERVICEPRO2011","TOTP & G2012","TOT2012","GOODPRO2012","SERVICEPROMAN2012","WAGEP & G2012","WAGETOT2012","WAGEGOODPRO2012","WAGESERVICEPRO2012","TOTP & G2013","TOT2013","GOODPRO2013","SERVICEPROMAN2013","WAGEP & G2013","WAGETOT2013","WAGEGOODPRO2013","WAGESERVICEPRO2013","TOTP & G2014","TOT2014","GOODPRO2014","SERVICEPROMAN2014","WAGEP & G2014","WAGETOT2014","WAGEGOODPRO2014","WAGESERVICEPRO2014","TOTP & G2015","TOT2015","GOODPRO2015","SERVICEPROMAN2015","WAGEP & G2015","WAGETOT2015","WAGEGOODPRO2015","WAGESERVICEPRO2015","TOTP & G2016","TOT2016","GOODPRO2016","SERVICEPROMAN2016","WAGEP & G2016","WAGETOT2016","WAGEGOODPRO2016","WAGESERVICEPRO2016","TOTP & G2017","TOT2017","GOODPRO2017","SERVICEPROMAN2017","WAGEP & G2017","WAGETOT2017","WAGEGOODPRO2017","WAGESERVICEPRO2017","TOTP & G2018","TOT2018","GOODPRO2018","SERVICEPROMAN2018","WAGEP & G2018","WAGETOT2018","WAGEGOODPRO2018","WAGESERVICEPRO2018","TOTP & G2019","TOT2019","TOTGov2019","GOODPRO2019","SERVICEPROMAN2019","WAGEP & G2019","WAGETOT2019","WAGEGov2019","WAGEGOODPRO2019","WAGESERVICEPRO2019","TOTP & G2020","TOT2020","TOTGov2020","GOODPRO2020","SERVICEPROMAN2020","WAGEP & G2020","WAGETOT2020","WAGEGov2020","WAGEGOODPRO2020","WAGESERVICEPRO2020","TOTP & G2021","TOT2021","TOTGov2021","GOODPRO2021","SERVICEPROMAN2021","WAGEP & G2021","WAGETOT2021","WAGEGov2021","WAGEGOODPRO2021","WAGESERVICEPRO2021","TOTP & G2022","TOT2022","TOTGov2022","GOODPRO2022","SERVICEPROMAN2022","WAGEP & G2022","WAGETOT2022","WAGEGov2022","WAGEGOODPRO2022","WAGESERVICEPRO2022"]
["Acworth",10,89,72,64,7,578.72,624,551.35,1269.44,94,77,70,7,504.34,528.30999999999995,530.91999999999996,500.18,97,78,74,5,538.22,566.1,581.54999999999995,322.35000000000002,98,75,"n","n",548.75,614.73,"n","n",102,81,76,6,582.30999999999995,632.73,606.52,993.67,99,78,72,6,663.38,744.67,654.92999999999995,1788.76,97,74,68,7,653,733.26,658.76,1508.89,88,70,65,5,694.94,770.13,770.11,770.35,107,92,"n","n",718.2,782.26,"n","n",83,69,64,5,974.89,1111.9100000000001,1138.97,746.85,91,77,69,7,637.09,698.52,723.71,463.81,95,81,73,8,870.72,957.56,1035.69,253.57,103,84,"n","n",836.51,923.65,"n","n",104,86,73,13,935.72,1034.3499999999999,1150.56,369.51,106,89,73,16,916.47,992.96,1116.08,422.03,124,107,82,25,673.64,698.45,783.75,422.29,119,100,80,20,727.47,767.13,855.47,416.7,117,98,86,12,727.25,760.55,821,329.08,112,95,17,83,12,979.14,829.52,1814.8,896.99,367.87,113,98,15,"n","n",870.22,910.02,612.55999999999995,"n","n",102,87,15,"n","n",875.37,915.49,646.44000000000005,"n","n","102","85","17","74","12","885","942","593","1044","306"]
["Charlestown",10,1864,1400,897,503,542.15,559.34,557.57000000000005,562.49,1906,1465,898,567,580.07000000000005,578.64,574.96,584.46,1819,1365,801,565,608.9,616.79,625.41999999999996,604.57000000000005,1960,1507,792,715,608.95000000000005,611.57000000000005,667.02,550.20000000000005,2016,1546,805,740,629.04999999999995,639.38,711.71,560.69000000000005,1939,1475,787,688,645.22,659.3,744.67,561.62,1989,1517,843,674,699.13,720.6,767.99,661.32,2038,1545,938,606,717.26,744.45,808.35,645.54,1954,1466,886,580,728.4,748.26,796.97,673.83,1934,1454,888,566,748.13,767.31,816.45,690.23,1883,1433,874,560,784.1,794.26,869.44,676.87,2078,1627,939,688,789.25,799.25,907.74,651.33000000000004,1909,1688,1005,684,809.12,832.52,937.59,678.1,2063,1824,1067,757,806.75,833.66,955.9,661.24,2259,2027,1144,883,853.81,876.91,1022.99,687.63,2205,1969,1192,777,871.39,895.49,1013.74,714.18,2122,1901,1239,662,935.33,973.32,1086.42,761.6,2161,1930,1290,640,952.73,996.54,1087.02,814.24,2080,1851,229,1272,579,971.62,1015.53,617.07000000000005,1089.21,853.69,1897,1696,200,1145,552,1029.26,1065.5999999999999,721.69,1100.79,992.54,1905,1717,188,1095,622,1097.57,1138.21,726.37,1208.9000000000001,1013.91,"1929","1738","191","1191","547","1141","1186","733","1215","1121"]
["Claremont",10,5923,5179,1458,3722,535.84,531.41,678.37,473.84,5614,4874,1203,3670,571.30999999999995,566,778.7,496.27,5358,4606,985,3621,581.1,572.86,743.82,526.34,5451,4668,1015,3653,604.91999999999996,600.32000000000005,790.78,547.4,5680,4870,1050,3820,609.48,605.49,803.92,550.94000000000005,5837,5033,986,4047,635.4,629.47,890.34,565.91999999999996,5869,5038,958,4079,665.45,661.28,957.2,591.75,5661,4820,843,3977,678.45,673.93,928.54,619.92999999999995,5474,4581,659,3922,669.32,656.74,892.8,617.07000000000005,5549,4624,626,3998,699.91,694.57,985.54,648.97,5817,4905,"n","n",691.88,687.13,"n","n",5899,5032,"n","n",702.47,699.84,"n","n",5988,5094,"n","n",725.24,728.15,"n","n",5667,4752,813,3939,760.44,768.97,1028.5999999999999,715.4,5704,4788,817,3971,783.12,786.03,1088.51,723.79,5833,4874,889,3984,767.32,779.29,1090.74,709.78,"n","n","n","n","n","n","n","n",5773,4956,"n","n",804.85,799,"n","n",5671,4863,808,"n","n",811.94,803.1,865.13,"n","n",5606,4813,794,"n","n",883.25,876.24,925.72,"n","n",5734,4935,799,"n","n",949.23,949.99,944.53,"n","n","5677","4890","19","951","788","995","996","1494","944","991"]
["Cornish",10,163,82,29,54,501.97,538.21,430.48,595.76,163,81,25,56,532.45000000000005,544.67999999999995,566.59,534.83000000000004,151,72,21,51,517.14,487.17,455.52,500.49,139,64,"n","n",486.43,377.64,"n","n",135,59,22,37,455.4,376.31,385.25,371.14,141,66,22,44,505.73,452.04,406.22,475.26,138,62,21,41,566.5,527.63,461.81,560.47,147,67,19,49,512.61,450.33,479.17,439.33,140,61,"n","n",543.83000000000004,446.89,"n","n",141,64,"n","n",554.23,454.43,"n","n",138,63,21,43,586.1,502.45,520.22,493.86,"n","n","n","n","n","n","n","n","n","n","n","n","n","n","n","n",129,54,19,35,612.39,535.27,518.62,544.27,123,53,20,33,615.32000000000005,528.49,567.51,505.4,114,48,18,29,610.96,538.16,544.35,534.28,117,52,"n","n",623.27,498.92,"n","n",112,43,16,27,654.52,566.24,699.35,488.48,118,46,73,19,26,651.91999999999996,575.95000000000005,699.41,572.30999999999995,578.62,124,54,71,26,27,685.73,623.04,732.96,640.16999999999996,606.74,130,56,74,25,31,763.74,778.8,752.3,686.52,852.97,"135","59","76","28","31","762","776","751","713","834"]
["Croydon",10,79,55,19,37,331.81,421.3,547.88,356,83,57,25,32,322.66000000000003,412.16,478.45,359.85,82,56,29,27,332.17,427.64,497.02,352.48,115,94,32,62,344.62,387.92,523.49,318.58999999999997,112,94,34,60,381.26,420.21,569.41,335.19,116,96,34,63,395.54,430.34,603.91999999999996,337.56,115,93,29,64,397.48,437.62,642.55999999999995,344.35,114,89,25,64,378.06,428.74,620.58000000000004,352.71,107,84,20,63,400.82,452.55,698.06,373.62,114,92,32,60,418.29,467.94,603.22,394.65,104,94,23,71,394.34,408.83,558.71,360.27,89,79,20,59,446.18,471.37,578.12,436.09,106,95,19,77,387.83,402,610.15,351.03,86,74,20,54,489.47,532.51,579.23,515.53,108,96,13,83,381.22,394.85,670.22,350.16,125,111,"n","n",381.46,403.73,"n","n",134,123,22,101,513.44000000000005,535.49,787.59,481.18,163,152,"n","n",453.99,463.72,"n","n",142,132,0,14,118,545.67999999999995,557.69000000000005,0,877.21,518.34,86,77,9,16,61,968.31,1045.6099999999999,330.54,912.05,1080.4100000000001,106,99,7,8,92,887.74,920.08,399.39,807.28,929.73,"102","95","6","","","1079","1124","408","",""]
["Goshen",10,96,35,9,26,383.74,346.95,664.23,238.81,101,36,9,26,383.23,342.61,622.82000000000005,241.45,56,40,13,27,354.85,334.51,530.38,236.27,56,41,16,25,393.76,429.46,681.34,271.08999999999997,43,25,8,17,310.95,299.39999999999998,435.93,232.13,34,17,4,13,330.82,283.75,524.23,210.1,41,21,6,15,391.95,366.67,512.53,310.88,42,25,7,17,408.23,409.13,489.31,374.88,44,28,7,21,488.6,599.22,419.68,656.95,33,19,"n","n",450.91,541.13,"n","n",34,20,"n","n",436.3,508.25,"n","n",31,17,"n","n",423.41,480.81,"n","n",32,21,"n","n",428.53,467.25,"n","n","n","n","n","n","n","n","n","n","n","n","n","n","n","n","n","n","n","n","n","n","n","n","n","n",40,28,"n","n",467.77,470.6,"n","n",40,27,"n","n",483.45,518.13,"n","n",40,29,11,"n","n",502.3,535.57000000000005,411.96,"n","n",36,25,11,"n","n",560.1,622.39,422.22,"n","n",26,15,11,"n","n",697.91,915.79,389.53,"n","n","28","17","11","5","12","588","713","399","677","730"]
["Grantham",10,300,276,92,183,514.5,503.81,592.91999999999996,458.92,307,279,99,180,512.86,508.88,622.42999999999995,446.7,347,321,110,211,547.54,540.41,673.42,471.28,391,363,144,219,546.82000000000005,539.5,621.96,485.19,393,361,139,221,587.76,585.82000000000005,619.88,564.37,366,335,123,212,641.34,638.70000000000005,643.65,635.84,338,305,105,200,710.04,709.77,744.2,691.7,351,310,103,208,635.95000000000005,636.19000000000005,675.32,616.84,318,279,82,197,636.91999999999996,634.61,694.39,609.57000000000005,287,249,67,182,640.54,648.77,871.25,567.49,270,228,38,190,592,602.09,777.31,567.35,268,222,25,197,674.11,707.19,713.75,706.36,293,245,36,209,694.66,726.57,885.64,698.82,303,258,43,215,688.99,712.76,770.97,701,314,270,42,228,653.34,663.48,829.78,633.16,324,279,42,237,620.96,625.71,823.99,590.66999999999996,310,268,40,228,626.41999999999996,621.05999999999995,853.2,580.4,328,284,45,239,694.36,700.3,908.77,660.76,325,269,56,48,221,673.63,702.55,534.71,914.68,656.28,311,256,55,39,217,786.22,823.72,611.27,1051.57,783.25,350,300,50,31,270,775.7,793.58,667.46,941.04,776.72,"365","318","47","27","291","801","804","781","1012","785"]
["Langdon",10,85,77,43,34,450.12,473.72,521.24,413.95,59,52,43,9,498.62,519.30999999999995,494.91,639.45000000000005,58,48,39,9,414.81,447.93,437.27,494.12,49,37,"n","n",390.52,446.72,"n","n",54,44,24,20,466.5,502.86,438.37,579.55999999999995,56,48,24,24,504.76,534.16,438.65,627.36,82,74,32,42,410.81,415.56,439.02,397.64,84,70,38,32,487.96,547.51,483.37,622.96,62,58,"n","n",522.80999999999995,512.98,"n","n",56,53,35,19,619.97,597.36,601.35,589.87,58,53,35,18,591.75,587.94000000000005,581.39,600.59,61,54,35,19,605.46,623.98,603.80999999999995,661.88,221,73,"n","n",765.46,778.83,"n","n",202,67,37,30,822.43,834.32,692.29,1008.04,205,72,43,29,837.12,842.89,688.15,1073.44,198,62,33,30,879.47,888.97,697.58,1101.3900000000001,217,61,30,31,894.63,920.6,722.9,1115.5899999999999,217,56,30,26,887.15,883.2,736.78,1054.81,210,50,160,31,18,910.55,859.33,926.41,761.83,1025.54,198,47,152,"n","n",990.54,934.98,1007.58,"n","n",204,50,155,"n","n",982.8,995.34,978.77,"n","n","223","66","157","49","16","1016","1080","989","1034","1218"]
["Lempster",10,52,43,24,19,443.5,499.93,544.79999999999995,441.64,49,37,17,20,456.87,541.37,538.49,543.78,100,38,11,27,428.84,465.43,502.88,450.97,84,28,7,20,453.46,466.18,549.66999999999996,435.48,98,44,21,23,556.33000000000004,635.14,587.97,677.75,107,53,21,32,593.36,681.16,717.77,656.78,117,64,19,45,597.1,648.29999999999995,587.78,673.92,130,72,20,52,656.81,742.55,684.59,764.31,125,65,9,56,646.29,700.26,510.95,730.4,126,67,"n","n",648.98,688.71,"n","n",114,53,"n","n",693.51,815.29,"n","n",121,57,"n","n",764.24,950.86,"n","n",133,65,"n","n",852.33,1128.69,"n","n",119,52,"n","n",788.26,1032.5,"n","n",113,68,"n","n",877.78,984.44,"n","n",117,96,"n","n",893.97,936.51,"n","n",117,96,"n","n",805.04,825.86,"n","n",119,99,"n","n",810.37,831.97,"n","n",114,94,20,"n","n",816.41,852.53,648.07000000000005,"n","n",118,94,24,"n","n",929.53,1016.01,587.85,"n","n",133,106,27,"n","n",791.95,857.43,534.47,"n","n","136","109","27","50","59","842","926","506","967","891"]
["Newport",10,4059,3298,1800,1498,564.20000000000005,589.62,703.59,452.71,3973,3184,1657,1527,585.16,609.16999999999996,736.26,471.23,3795,3042,1563,1479,597.66999999999996,624.22,744.09,497.54,3686,3028,1518,1511,637.45000000000005,646.9,760,533.29999999999995,3797,3134,1559,1575,655.37,665.73,793.28,539.5,3787,3079,1518,1561,689.73,708.53,862.55,558.79999999999995,3768,3112,1550,1562,723.55,743.12,907.57,579.88,3759,3134,1556,1578,743.26,759.01,942.68,577.88,3355,2936,1433,1503,782.33,796.91,1014.77,589.22,3250,2843,1322,1521,775.99,788.36,1021.53,585.63,3198,2752,1215,1537,812.81,833.18,1133.55,595.70000000000005,3284,2829,1250,1578,870.46,899.4,1278.26,599.24,3480,3043,1460,1582,866.1,886.95,1168.5,627.12,3746,3312,1560,1752,873.01,892.93,1172.74,643.79,3668,3238,1481,1756,829.04,841.03,1047.1199999999999,667.2,3628,3200,1471,1729,890.13,910.93,1192.23,671.6,3547,3106,1419,1687,883.43,903.64,1101.21,737.48,3370,2915,1271,1644,869.72,889.78,1144.82,692.53,3330,2871,459,1231,1640,890.05,910.68,760.99,1178.17,709.85,3147,2710,437,1136,1574,992.78,1019.98,824.07,1307.5999999999999,812.4,3193,2763,430,1227,1536,1099,1139.49,838.82,1517.56,837.6,"3111","2697","414","1216","1481","1111","1145","886","1436","907"]
["Plainfield",10,372,343,82,261,482.94,498.63,397.09,530.71,400,368,85,283,495.04,513.05999999999995,382.14,552.55999999999995,411,378,79,299,517.87,536.41999999999996,412.4,569.35,441,407,75,332,516.15,532.79999999999995,406.5,561.34,424,393,75,318,532.16999999999996,545.41999999999996,384.06,583.46,396,366,77,289,581.94000000000005,599.5,426.15,645.79999999999995,394,362,88,274,619.88,637.21,438.31,701.45,428,393,86,308,667.28,684.04,450.34,749.34,400,369,72,296,687.06,704.4,466.74,762.35,423,390,72,319,679.24,692.15,520.67999999999995,730.78,444,413,79,334,683.9,693.39,464.11,747.41,421,386,86,300,635.16999999999996,650.97,471.15,702.62,409,378,84,293,667.89,675.33,485.82,729.76,404,373,84,289,769.83,779.61,570.69000000000005,840.6,423,392,87,305,761.8,769.6,620.78,812.29,470,436,97,339,750.94,759.99,665.01,787.21,480,444,111,333,793.94,804.62,700.33,839.33,504,467,116,351,830.89,842.02,739.86,875.86,521,488,34,112,376,870.77,881.51,716.02,745.09,922.16,499,465,34,118,346,932.97,948.31,725.32,786.24,1003.74,545,511,34,131,380,954.66,966.62,772.46,784.33,1029.6099999999999,"577","543","34","137","406","1013","1024","831","918","1060"]
["Springfield",10,191,177,"n","n",712.09,742.82,"n","n",221,205,"n","n",586.61,615.16999999999996,"n","n",229,213,"n","n",760.38,796.92,"n","n",235,220,"n","n",841.49,876.16,"n","n",142,124,26,98,853.87,933.07,435.21,1064.51,133,116,26,90,806.41,875.03,488.61,984.22,126,108,20,89,838.43,899.9,486.71,992.5,119,98,13,85,739.99,809.24,547.20000000000005,848.07,109,91,11,79,863.95,947.28,541.51,1005.79,114,99,9,90,902.23,963.67,578.88,1003.37,"n","n","n","n","n","n","n","n",113,99,10,89,1317.12,1417.34,1141.68,1448.46,101,90,11,79,1096.1500000000001,1158.6400000000001,727.6,1218.4000000000001,118,106,12,94,1115.17,1184.02,660.88,1249.93,126,113,20,94,1037.5999999999999,1081.42,1015.46,1095.3,118,107,16,91,1060.0899999999999,1093.8399999999999,1101.68,1092.43,131,115,20,95,913.24,974.26,939.78,981.46,133,116,18,98,921.83,984.08,938.18,992.73,134,116,18,26,90,979.26,985.9,937.27,915.34,1006.46,123,106,17,29,77,951.68,1016.33,551.88,798.19,1097.98,135,119,17,29,90,1024.1300000000001,1083.77,604.01,964.23,1122.31,"140","122","18","40","82","1155","1227","665","1124","1277"]
["Sunapee",10,663,433,179,254,463.96,486.73,505.41,473.61,669,444,156,288,469.79,452.43,594.16999999999996,375.45,714,479,180,299,494.53,519.82000000000005,592.30999999999995,476.19,710,531,192,339,551.25,537.74,699.11,446.52,713,540,196,344,585.75,571.99,657.93,523.15,660,479,188,291,589.6,568.98,654.89,513.53,649,461,177,284,620.72,604.58000000000004,678.34,558.74,688,488,163,325,578.70000000000005,542.65,801.13,413.27,639,429,143,285,610.86,565.99,736.8,480.13,617,406,139,267,588.26,525.25,729.43,419.08,589,380,138,242,605.66,544.99,784.85,408.63,605,397,137,260,639.95000000000005,598.09,825.3,478.56,610,404,139,265,691.89,654.26,892.68,529.05999999999995,639,436,155,280,746.73,716.19,899.21,614.76,658,459,164,295,817.84,811.46,882.76,771.69,640,444,144,300,836.01,826.95,861.97,810.14,631,434,126,307,800.37,766.64,857.45,729.28,658,458,125,333,815.96,781.59,947.76,719.27,660,455,206,117,338,860.83,813.01,966.65,1056.04,728.57,622,423,199,112,311,993.65,1013.54,951.34,1095.69,983.94,658,452,206,117,335,958.28,943.57,990.59,1158.93,868.71,"669","456","212","105","352","976","983","960","1295","890"]
["Unity",10,62,23,"n","n",312.2,328.34,"n","n",65,25,"n","n",300.49,348.46,"n","n",62,23,14,10,353.29,378.96,355.87,410.4,58,20,14,6,425.7,586.42999999999995,420.66,992.46,73,29,20,9,436.29,585.62,436.96,930.14,68,26,18,9,484.55,664.69,513.51,981.88,66,23,14,9,481.61,641.77,603.95000000000005,697.66,67,21,12,9,503.53,745.02,1073.42,279.52,263,19,5,14,577.77,380.17,602.91999999999996,298.8,266,19,4,15,599.5,300.93,345.88,287.47000000000003,250,16,"n","n",634.26,296.04000000000002,"n","n",241,19,"n","n",651.32000000000005,309.39999999999998,"n","n",211,13,"n","n",675.88,392.17,"n","n","n","n","n","n","n","n","n","n","n","n",0,"n","n","n",0,"n","n","n",0,"n","n","n",0,"n","n","n","n","n","n","n","n","n",208,4,"n","n",757.5,414.18,"n","n",204,6,198,"n","n",777.23,827.22,775.76,"n","n",209,8,201,"n","n",871.14,816.01,873.43,"n","n",189,8,180,"n","n",912.37,782.86,918.36,"n","n","191","10","181","n","n","909","767","916","n","n"]
["Washington",10,87,51,37,14,362.4,377.35,276.42,651.24,91,50,33,17,359.92,405.36,316.75,583.01,90,48,"n","n",375.85,431.4,"n","n",80,45,33,12,400.41,417.23,335.91,630.63,82,43,31,12,422.08,455.32,361.6,702.4,87,40,31,9,373.15,445.46,344.61,797.46,85,36,28,8,420.6,510.01,349.47,1101.54,83,27,21,5,437.58,605.67999999999995,433.02,1288.3699999999999,88,30,18,12,532.98,851.46,428.26,1478.95,82,32,16,15,647.61,1022.21,380.66,1705.59,"n","n","n","n","n","n","n","n","n","n","n","n","n","n","n","n","n","n","n","n","n","n","n","n","n","n","n","n","n","n","n","n",55,20,"n","n",667.69,776.49,"n","n",69,23,11,12,544.57000000000005,653.33000000000004,442.94,840.66,"n","n","n","n","n","n","n","n",65,23,"n","n",585.63,629.91999999999996,"n","n",72,26,46,"n","n",579.97,691.87,517.53,"n","n",72,26,46,12,14,572.73,698.9,503.17,419.93,940.44,76,30,46,"n","n",762.56,1128.31,526.6,"n","n","77","31","47","17","14","663","854","538","511","1278"]
[]
[]
["NH Employment Data","Query Name: DPQryEmploymentByCnty-Good-Serv-Total","Updated:","2023-10-24"]
[]
["AreaName","COUNTYCODE","TOTP & G2001","TOT2001","GOODPRO2001","SERVICEPROMAN2001","WAGEP & G2001","WAGETOT2001","WAGEGOODPRO2001","WAGESERVICEPRO2001","TOTP & G2002","TOT2002","GOODPRO2002","SERVICEPROMAN2002","WAGEP & G2002","WAGETOT2002","WAGEGOODPRO2002","WAGESERVICEPRO2002","TOTP & G2003","TOT2003","GOODPRO2003","SERVICEPROMAN2003","WAGEP & G2003","WAGETOT2003","WAGEGOODPRO2003","WAGESERVICEPRO2003","TOTP & G2004","TOT2004","GOODPRO2004","SERVICEPROMAN2004","WAGEP & G2004","WAGETOT2004","WAGEGOODPRO2004","WAGESERVICEPRO2004","TOTP & G2005","TOT2005","GOODPRO2005","SERVICEPROMAN2005","WAGEP & G2005","WAGETOT2005","WAGEGOODPRO2005","WAGESERVICEPRO2005","TOTP & G2006","TOT2006","GOODPRO2006","SERVICEPROMAN2006","WAGEP & G2006","WAGETOT2006","WAGEGOODPRO2006","WAGESERVICEPRO2006","TOTP & G2007","TOT2007","GOODPRO2007","SERVICEPROMAN2007","WAGEP & G2007","WAGETOT2007","WAGEGOODPRO2007","WAGESERVICEPRO2007","TOTP & G2008","TOT2008","GOODPRO2008","SERVICEPROMAN2008","WAGEP & G2008","WAGETOT2008","WAGEGOODPRO2008","WAGESERVICEPRO2008","TOTP & G2009","TOT2009","GOODPRO2009","SERVICEPROMAN2009","WAGEP & G2009","WAGETOT2009","WAGEGOODPRO2009","WAGESERVICEPRO2009","TOTP & G2010","TOT2010","GOODPRO2010","SERVICEPROMAN2010","WAGEP & G2010","WAGETOT2010","WAGEGOODPRO2010","WAGESERVICEPRO2010","TOTP & G2011","TOT2011","GOODPRO2011","SERVICEPROMAN2011","WAGEP & G2011","WAGETOT2011","WAGEGOODPRO2011","WAGESERVICEPRO2011","TOTP & G2012","TOT2012","GOODPRO2012","SERVICEPROMAN2012","WAGEP & G2012","WAGETOT2012","WAGEGOODPRO2012","WAGESERVICEPRO2012","TOTP & G2013","TOT2013","GOODPRO2013","SERVICEPROMAN2013","WAGEP & G2013","WAGETOT2013","WAGEGOODPRO2013","WAGESERVICEPRO2013","TOTP & G2014","TOT2014","GOODPRO2014","SERVICEPROMAN2014","WAGEP & G2014","WAGETOT2014","WAGEGOODPRO2014","WAGESERVICEPRO2014","TOTP & G2015","TOT2015","GOODPRO2015","SERVICEPROMAN2015","WAGEP & G2015","WAGETOT2015","WAGEGOODPRO2015","WAGESERVICEPRO2015","TOTP & G2016","TOT2016","GOODPRO2016","SERVICEPROMAN2016","WAGEP & G2016","WAGETOT2016","WAGEGOODPRO2016","WAGESERVICEPRO2016","TOTP & G2017","TOT2017","GOODPRO2017","SERVICEPROMAN2017","WAGEP & G2017","WAGETOT2017","WAGEGOODPRO2017","WAGESERVICEPRO2017","TOTP & G2018","TOT2018","GOODPRO2018","SERVICEPROMAN2018","WAGEP & G2018","WAGETOT2018","WAGEGOODPRO2018","WAGESERVICEPRO2018","TOTP & G2019","TOT2019","TOTGov2019","GOODPRO2019","SERVICEPROMAN2019","WAGEP & G2019","WAGETOT2019","WAGEGov2019","WAGEGOODPRO2019","WAGESERVICEPRO2019","TOTP & G2020","TOT2020","TOTGov2020","GOODPRO2020","SERVICEPROMAN2020","WAGEP & G2020","WAGETOT2020","WAGEGov2020","WAGEGOODPRO2020","WAGESERVICEPRO2020","TOTP & G2021","TOT2021","TOTGov2021","GOODPRO2021","SERVICEPROMAN2021","WAGEP & G2021","WAGETOT2021","WAGEGov2021","WAGEGOODPRO2021","WAGESERVICEPRO2021","TOTP & G2022","TOT2022","GOODPRO2022","SERVICEPROMAN2022","WAGEP & G2022","WAGETOT2022","WAGEGOODPRO2022","WAGESERVICEPRO2022","PlaceTownIDNumber","COUNTYCODE"]
["Belknap County",1,26173,22708,6138,16570,541.07000000000005,538.34,689.88,482.21,26052,22334,5408,16926,561.11,555.84,731.15,499.83,26286,22376,5281,17095,579.91,573.04,754.28,517.04999999999995,26931,23030,5431,17599,610.04,602.01,777.41,547.89,26940,22891,5467,17424,636.41999999999996,634.14,819.42,576,27237,23042,5133,17909,657.93,655.07000000000005,862.32,595.66999999999996,27266,23032,4820,18212,674.29,668.31,921.91,601.17999999999995,26793,22507,4572,17935,689.74,680.53,938.61,614.74,25570,21280,3944,17337,692.98,680.87,934.72,623.12,24943,20713,3480,17234,698.61,690.71,945.91,639.19000000000005,24953,20748,3411,17337,706.01,697.17,959.24,645.61,25196,20972,3400,17572,708.66,703.81,960.55,654.13,25517,21311,3517,17794,718.36,714.81,997.67,658.89,25490,21315,3554,17761,748.41,745.98,1036.05,687.93,25584,21457,3597,17859,776.57,774.35,1066.24,715.55,25708,21577,3626,17951,797.95,796.89,1088.81,737.93,25829,21725,3676,18049,823.13,823.31,1139.79,758.85,25898,21803,3774,18029,851.06,851.82,1167.98,785.64,26080,22008,4072,3799,18209,854.12,849.87,877.08,1177.3,781.56,23895,20018,3878,3578,16439,949.48,948,957.09,1212.92,890.34,24938,21021,3917,3619,17402,965.32,969.25,944.22,1287.7,903.02,25226,21338,3632,17706,1005,1007,1332,941,1016,1]
["Carroll County",2,19495,16938,2563,14374,467.52,460.32,627.98,430.42,19756,17153,2497,14656,481.01,472.65,645.74,443.16,20167,17534,2567,14967,492.28,481.72,647.55999999999995,453.27,20405,17701,2526,15175,519.72,511.1,687.06,481.81,20205,17448,2541,14906,533.86,524.08000000000004,703.81,493.43,20294,17504,2588,14916,575.59,568.1,737.84,538.66,20402,17510,2544,14966,573.29999999999995,562.55999999999995,760.1,528.99,20584,17636,2552,15084,584.17999999999995,570.32000000000005,770.38,536.47,19942,16904,2265,14639,587.36,570.99,765.31,540.91999999999996,19810,16754,2124,14630,600.19000000000005,586.5,775.97,558.99,19997,17005,2189,14816,617.28,603.41999999999996,798.39,574.61,20082,17083,2162,14921,627.16999999999996,615.41,800.29,588.62,19971,16958,2084,14874,645.66999999999996,633.79,805.62,609.71,20015,16952,2024,14928,640.24,627.02,843.7,597.64,19806,16828,1996,14832,667.3,653.87,884.26,622.86,19997,17053,2030,15023,686.74,674.21,909.04,642.48,20005,17047,2057,14991,692.33,677.15,941.62,640.87,20015,17037,2078,14959,710.33,694.81,905.58,665.54,20228,17268,2960,2128,15140,735.27,721.26,816.99,942.12,690.22,17882,15000,2883,2074,12926,841.07,832.06,888,1019.76,801.94,18856,16033,2823,2145,13888,872.88,865.29,916,1033.17,839.36,19410,16536,2187,14349,918,915,1060,893,1017,2]
["Cheshire County",3,32349,27819,"n","n",571.92999999999995,577.30999999999995,"n","n",32369,27595,7795,19800,584.33000000000004,590.97,743.2,531.04,32548,27626,7754,19873,598.89,603.04,763.11,540.59,33075,28132,7648,20484,631.09,634.67999999999995,807.42,570.17999999999995,33995,28886,8110,20776,656.03,666.98,828.9,603.78,34194,29151,7889,21262,723.95,741.43,987.42,650.15,33638,28601,7473,21128,707.44,717.07,867.3,663.94,33220,28351,7351,21000,746.75,752.8,902.94,700.24,32207,27212,6761,20451,742.41,745.7,870.79,704.34,31527,26585,6300,20286,754.45,756.21,900.6,711.38,31690,26854,6240,20614,768.13,768.69,935.64,718.15,32021,27158,6245,20914,790.24,793.9,933.87,752.11,31923,27008,6032,20975,796.52,797.61,965.3,749.39,31904,26935,6025,20910,810.83,815.88,993.69,764.64,32067,27097,6073,21024,830.63,834.25,1010.79,783.25,32005,27109,6177,20932,838.96,843.47,1028.03,789.01,31743,26953,6194,20759,867.06,873.07,1043.75,822.14,31642,26825,6445,20380,895.81,907.01,1090.07,849.12,31737,26923,4814,6652,20272,913.17,927.09,835.36,1100.44,870.2,29801,25226,4575,6410,18816,1000.19,1013.03,929.37,1159.32,963.2,30189,26304,3884,6689,19615,1014.16,1025.44,937.75,1193.71,968.06,31326,26866,7145,19722,1081,1104,1278,1041,1018,3]
["Coos County",4,13872,11234,"n","n",489.02,487.7,"n","n",13737,11021,2332,8689,490.8,484.33,650.88,439.63,13946,11225,2578,8647,525.08000000000004,519.66,703.37,464.89,14103,11341,2590,8751,542.98,540.59,726.42,485.6,14026,11222,2533,8689,556.04,552.64,754.89,493.68,13898,10991,2334,8657,572.86,571.41999999999996,766.73,518.76,13876,11050,2184,8866,583.63,572.30999999999995,758.88,526.34,13566,10747,1988,8759,602.53,587.51,755.51,549.38,13002,10134,1720,8414,609.67999999999995,592.77,751.35,560.36,12832,9977,1593,8384,608.57000000000005,589.54,744.88,560.02,12555,9785,1473,8312,620.23,600.46,757.95,572.54,12371,9564,1568,7995,640.94000000000005,622.74,825.56,582.97,12515,9564,1649,7915,667.37,647.75,855.89,604.39,12064,9083,1293,7789,675.59,651.58000000000004,777.89,630.61,11974,9046,1222,7824,694.46,666.94,788.97,647.89,11990,9038,1167,7870,706.62,682.98,853.55,657.68,11999,9070,1223,7846,729.45,705.37,867.99,680.02,11970,9060,1296,7764,749.69,723.06,852.68,701.43,12083,9226,2857,1304,7921,766.79,735.31,868.44,914.39,705.82,10860,8144,2716,1260,6884,857.08,825.46,951.91,905.94,810.72,11341,8617,2724,1357,7260,875.17,849.5,956.35,872.32,845.23,11633,8928,1393,7535,954,944,1180,900,1019,4]
["Grafton County",5,49352,43256,8085,35171,617.73,624.04999999999995,672.45,612.92999999999995,49690,43362,7763,35599,658.93,668.77,701.81,661.56,50615,44009,7790,36220,704.15,717.01,753.77,709.11,51355,44704,7636,37069,728.96,740.6,770.78,734.38,51541,44954,7698,37256,768.82,783.94,809.26,778.7,52267,45531,7761,37770,803.4,820.96,855.22,813.92,52729,45992,7672,38320,843.04,860.73,901.98,852.47,52901,46166,7347,38819,867.61,884.82,928.14,876.62,51401,44646,6446,38200,879.4,895.26,899.95,894.47,51256,44376,6289,38086,905.77,925.54,949.83,921.53,51663,44867,6681,38186,926.58,946.3,981.6,940.12,52026,45246,6818,38428,950.95,973.52,996.15,969.5,52153,45454,6717,38736,965.05,986.68,1028.75,979.39,52226,45565,6778,38787,1004.06,1029.1500000000001,1069.54,1022.09,52654,46056,6882,39174,1037.55,1061.83,1078.8900000000001,1058.83,53361,46686,6801,39885,1058.5999999999999,1086.92,1082.4000000000001,1087.69,53790,47161,6781,40380,1079.6300000000001,1108.6099999999999,1125.3,1105.81,54119,47417,6926,40491,1105.33,1135.81,1167.74,1130.3399999999999,54388,47685,6703,6855,40830,1142.8,1174.8,915.17,1156.02,1177.95,50622,44208,6414,6338,37870,1251.72,1287.53,1004.85,1194.47,1303.1099999999999,52299,45834,6465,6526,39308,1284.3900000000001,1324,1003.57,1309.54,1326.4,53193,47047,6756,40292,1320,1356,1348,1358,1020,5]
["Hillsborough County",6,192842,173003,47169,125834,756.14,762.49,941.37,695.43,188573,168164,42086,126078,768.52,773.3,968.23,708.23,190864,169969,41006,128962,801.91,806.79,1014.82,740.64,193543,172567,40910,131656,839.56,844.4,1064.01,776.16,196190,174854,40181,134673,866.71,873.18,1101.58,805.03,196502,175094,39123,135971,897.24,904,1171.1600000000001,827.13,197183,175821,38588,137233,946.54,951.14,1248.82,867.44,195976,174253,36628,137625,973.54,979.17,1267.17,902.52,187240,165260,33003,132257,959.3,962.96,1236.24,894.76,184628,162829,32117,130712,980.99,986.25,1287.9100000000001,912.12,186437,165030,32694,132336,1013.7,1018.86,1329.81,942.03,188425,167133,31642,135492,1029.82,1035.95,1325.69,968.28,190568,169383,30861,138522,1038.74,1045.24,1365.43,973.9,193565,172574,31422,141152,1092.9000000000001,1101.22,1393.55,1036.1500000000001,196842,175848,31842,144005,1099.51,1106.52,1401.46,1041.3,199729,178867,32654,146213,1118.6300000000001,1126.21,1436.51,1056.9100000000001,201740,180839,33513,147327,1147.78,1156.08,1490.14,1080.0899999999999,203961,182874,34296,148577,1182,1189.98,1525.57,1112.51,205989,184819,21170,35047,149772,1219.73,1229.8399999999999,1131.48,1558.29,1152.98,192746,172283,20463,33774,138510,1350.41,1366.74,1212.8699999999999,1698.45,1285.8599999999999,196932,176563,20368,33764,142800,1406.98,1425.94,1242.6500000000001,1745.36,1350.42,200919,180392,34516,145876,1452,1472,1832,1386,1021,6]
["Merrimack County",7,71543,56168,12137,44031,631.86,633.92999999999995,772.48,595.74,71850,56025,11403,44622,653.27,655.12,799.93,618.12,72840,56631,11036,45595,667.06,666.91,826.68,628.24,72381,56515,10742,45773,690.51,689.4,845.49,652.77,72963,56979,11012,45967,710.07,710.67,861.87,674.44,74077,57818,10760,47058,739.28,739.89,906.79,701.73,74070,57629,10051,47579,774.05,772.96,972.47,730.82,73959,57295,9822,47472,795.3,789.49,978.78,750.33,72134,55582,8724,46857,810.16,788.36,966.04,755.28,71882,55306,8662,46645,821.15,806.64,998.67,770.98,72140,55913,9059,46854,835.3,821.63,1012.78,784.67,72901,56946,9282,47664,850.4,842.26,1036.72,804.39,73510,57805,9457,48348,866.04,857.51,1050.8699999999999,819.69,74884,58800,9698,49103,892.44,882.46,1086.78,842.11,75670,59563,9801,49762,929.04,918.53,1114.06,880.02,76413,60219,9936,50283,946.35,937.29,1126.3800000000001,899.92,76803,60570,10042,50528,980.03,971.23,1164.72,932.78,77469,61326,10142,51184,1012.33,1004.39,1186.1199999999999,968.39,77816,61536,16281,10313,51222,1038.6300000000001,1030.98,1067.56,1209.32,995.07,73101,57299,15802,9711,47587,1132,1126.1500000000001,1153.22,1268.4000000000001,1097.1199999999999,73335,57980,15355,9834,48146,1169.23,1172.8,1155.74,1298.8699999999999,1147.05,75215,59610,10148,49462,1250,1269,1360,1250,1022,7]
["New Hampshire",1026,610446,531225,127190,404035,682.38,691.51,842.11,644.1,603100,521320,115244,406076,695.8,703.84,868.13,657.22,604198,520362,111472,408890,717.94,724.91,888.81,680.22,613327,529515,111893,417622,753.7,760.58,928.63,715.56,620909,536173,112033,424140,779.84,788.93,958.48,744.15,627301,541435,110189,431246,816.3,827.48,1013.11,780.04,630171,543800,107673,436127,843.46,852.45,1054.1600000000001,802.65,628819,541768,104441,437326,863.66,870.64,1074.5999999999999,821.93,604915,517658,92952,424706,864.05,867.37,1066.42,823.81,600540,513386,89428,423957,883.88,890.13,1119.47,841.75,605864,520338,90996,429342,909.31,916.27,1140.95,868.65,612432,527263,90404,436858,928.33,938.02,1152.07,893.72,618756,534106,90890,443216,941.75,950.79,1173.1099999999999,905.2,626567,541441,92176,449265,983.96,996.35,1200.71,954.42,636798,552276,93968,458308,1010.64,1021.89,1224.55,980.34,647375,562836,96138,466699,1030.04,1042.6300000000001,1251.03,999.7,653496,569023,97995,471029,1060.3399999999999,1073.99,1294.46,1028.1199999999999,658816,574044,100089,473955,1091.97,1106.44,1317.59,1061.8499999999999,665374,580394,84980,101907,478487,1128.27,1145.04,1013.77,1346.98,1102.03,624442,542824,81618,97843,444981,1247.45,1269.51,1100.73,1431.08,1233.99,647978,567574,80404,99578,467996,1386.82,1425,1117.32,1483.75,1412.5,670634,589201,102750,486451,1389,1423,1549,1396,1026]
["Rockingham County",8,130960,117604,24384,93220,704.6,714.62,913.02,662.73,130242,116589,22286,94302,712.56,720.57,945.47,667.42,130329,116466,21075,95392,725.68,731.51,920.38,689.79,133803,119786,21944,97841,774.11,781.14,964.22,740.08,136154,122028,22051,99976,796.86,803.2,996.54,760.55,138063,123549,22274,101275,842.13,851.8,1013.05,816.33,138382,123679,22407,101273,849.04,856.27,1052.77,812.8,137191,122378,22407,99970,839.01,841.86,1081.82,788.07,131375,116492,19644,96848,839.06,840.45,1104.3599999999999,786.93,131892,117079,18689,98391,862.17,865.32,1199.72,801.8,133444,119079,18941,100138,880.6,883.65,1146.49,833.93,135396,121125,18942,102183,907.06,912.95,1200.98,859.56,137505,123255,19558,103698,919.22,924.42,1204.8699999999999,871.53,139972,125705,20107,105598,967.99,976.63,1214.5999999999999,931.32,143650,129571,20954,108617,999.45,1007.52,1260.8800000000001,958.65,146926,132843,21711,111132,1008.63,1016.49,1289.1199999999999,963.24,149059,134948,22384,112564,1040.5999999999999,1049.82,1335.62,992.99,149817,135525,22957,112568,1068.69,1079.1600000000001,1345.67,1024.8,151694,137342,14352,23611,113731,1110.28,1122.81,990.42,1388.53,1067.6400000000001,141876,128387,13488,23301,105086,1204.1600000000001,1216.3900000000001,1087.78,1435.04,1167.9100000000001,147153,133559,13593,23930,109629,1266.5,1282.33,1110.97,1480.19,1239.1400000000001,151310,137387,24619,112767,1327,1345,1543,1301,1023,8]
["Strafford County",9,43645,34821,9068,25753,655.37,655.92,770.85,615.45000000000005,42874,33684,7630,26054,655.35,652.99,800.21,609.88,43046,33530,7366,26164,668.52,656.47,806.84,614.13,43436,33873,7230,26643,693.72,673.65,820.17,633.9,43773,34267,7211,27056,709.03,692.76,828.02,656.71,44557,35064,7140,27925,723.22,705.71,858.22,666.71,45570,35960,6960,29000,746.96,729.16,880.17,692.91,46580,36991,6754,30237,803.35,784.14,900.05,758.25,44375,35115,5981,29133,822.2,798.7,916.04,774.61,44144,34793,5960,28833,843.68,824.98,964.85,796.07,44154,34870,6008,28863,879.87,868.02,1098.93,819.95,45017,35667,6036,29631,875.8,864.35,1039.17,828.73,45379,36187,6365,29822,896.63,880.93,1050.44,844.76,46249,36899,6431,30469,915.86,906.58,1082.2,869.52,46826,37517,6657,30860,954.37,941.53,1121.8,902.65,47632,38313,6879,31434,967.61,953.88,1119.03,917.74,48165,38780,6935,31845,990.95,980.7,1148.01,944.26,48371,39036,6997,32039,1004.47,991.1,1131.83,960.36,48714,39366,9348,7127,32239,1034.79,1028.5999999999999,1060.8599999999999,1146.21,1002.6,45799,36761,9038,6439,30321,1109.92,1099.0999999999999,1153.96,1214.9000000000001,1074.5,46804,37871,8933,6556,31316,1140.3699999999999,1132.99,1171.6600000000001,1259.19,1106.57,47470,38529,6974,31554,1186,1184,1296,1159,1024,9]
["Sullivan County",10,14086,11544,"n","n",536.78,549.33000000000004,"n","n",13793,11231,4452,6779,561.15,569.74,685.65,493.64,13370,10809,4059,6750,577.41,588.45000000000005,688.92,528.03,13551,11127,4066,7061,602.70000000000005,607.34,721.67,541.5,13862,11386,4086,7300,615.79,621.85,741.34,554.98,13826,11306,3928,7377,642.61,650.96,800.27,571.45000000000005,13873,11351,3958,7393,676.8,687.32,843.22,603.85,13799,11227,3909,7318,687.34,698.53,866.24,608.95000000000005,13185,10586,3466,7121,698.02,705.82,887.35,617.47,13076,10479,3303,7176,714.38,723.66,917.55,634.42999999999995,13190,10617,3204,7413,723.57,732.12,955.94,635.39,13597,11070,3448,7622,757.15,771.77,1038.8399999999999,650.94000000000005,13793,11373,3704,7670,768.35,784.88,1012.65,674.88,13873,11439,3932,7507,795.94,816.28,1039.17,699.53,14090,11709,3948,7761,803.2,815.31,1021.57,710.37,14204,11783,4061,7722,810.76,830.28,1066.2,706.22,13997,11636,4031,7605,821.95,836.22,1048.48,723.72,13966,11628,3919,7708,836.09,849.04,1063.6199999999999,739.94,13735,11390,2344,3818,7573,854.16,864.16,805.53,1081.23,754.74,13162,10897,2266,3666,7231,933.76,950.68,852.41,1145.6400000000001,851.82,13487,11250,2237,3748,7502,996.61,1021.24,872.79,1258.53,902.68,13460,11234,3901,7333,1031,1058,1256,952,1025,10]
[]
[]
[]
[]
[]
[]
[]
[]
[]
[]
[]
[]
[]
[]
[]
["Labor Force and Unemployment Rate","Query Name: DPQryUnempByTown",null,"2021-11-02",null,null,null,null,null,null,null,null,null,null,null,null,"2011-01-06"]
[]
["PlaceName","LaborForce1990","LaborForce1991","LaborForce1992","LaborForce1993","LaborForce1994","LaborForce1995","LaborForce1996","LaborForce1997","LaborForce1998","LaborForce1999","LaborForce2000","LaborForce2001","LaborForce2002","LaborForce2003","NumberEmployed1990","NumberEmployed1991","NumberEmployed1992","NumberEmployed1993","NumberEmployed1994","NumberEmployed1995","NumberEmployed1996","NumberEmployed1997","NumberEmployed1998","NumberEmployed1999","NumberEmployed2000","NumberEmployed2001","NumberEmployed2002","NumberEmployed2003","UnempRate1990","UnempRate1991","UnempRate1992","UnempRate1993","UnempRate1994","UnempRate1995","UnempRate1996","UnempRate1997","UnempRate1998","UnempRate1999","UnempRate2000","UnempRate2001","UnempRate2002","UnempRate2003","NumbUnEmployed1990","NumbUnEmployed1991","NumbUnEmployed1992","NumbUnEmployed1993","NumbUnEmployed1994","NumbUnEmployed1995","NumbUnEmployed1996","NumbUnEmployed1997","NumbUnEmployed1998","NumbUnEmployed1999","NumbUnEmployed2000","NumbUnEmployed2001","NumbUnEmployed2002","NumbUnEmployed2003","LaborForce2004","NumberEmployed2004","UnempRate2004","NumbUnEmployed2004","LaborForce2005","NumberEmployed2005","NumbUnEmp2005","UnempRate2005","LaborForce2006","NumberEmployed2006","NumbUnEmp2006","UnempRate2006","LaborForce2007","NumberEmployed2007","NumbUnEmp2007","UnempRate2007","LaborForce2008","NumberEmployed2008","NumbUnEmp2008","UnempRate2008","LaborForce2009","NumberEmployed2009","NumbUnEmp2009","UnempRate2009","LaborForce2010","NumbEmployed2010","NumbUnEmp2010","UnempRate2010","LaborForce2011","NumbEmployed2011","NumbUnEmp2011","UnempRate2011","LaborForce2012","NumbEmployed2012","NumbUnEmp2012","UnempRate2012","LaborForce2013","NumbEmployed2013","NumbUnEmp2013","UnempRate2013","LaborForce2014","NumbEmployed2014","NumbUnEmp2014","UnempRate2014","LaborForce2015","NumbEmployed2015","NumbUnEmp2015","UnempRate2015","LaborForce2016","NumbEmployed2016","NumbUnEmp2016","UnempRate2016","LaborForce2017","NumbEmployed2017","NumbUnEmp2017","UnempRate2017","LaborForce2018","NumbEmployed2018","NumbUnEmp2018","UnempRate2018","LaborForce2019","NumbEmployed2019","NumbUnEmp2019","UnempRate2019","LaborForce2020","NumbEmployed2020","NumbUnEmp2020","UnempRate2020"]
["Belknap County",26619,26520,26408,26623,27572,27616,28480,29594,30760,30439,30960,31390,31670,31540,25000,24372,24252,24846,26311,26592,27445,28730,29987,29698,30200,30450,30440,30320,6.1000000000000005,8.1,8.1999999999999993,6.7,4.6000000000000005,3.7,3.6,2.9,2.5,2.4,2.4,3,3.9,3.9,1619,2148,2156,1777,1261,1024,1035,864,773,741,760,940,1230,1220,31680,30570,3.5000000000000004,1110,31920,30860,1060,3.3000000000000003,32520,31440,1080,3.3000000000000003,32410,31250,1160,3.6000000000000005,32650,31310,1340,4.0999999999999996,32540,30370,2170,6.7,32270,30210,2060,6.4,32050,30290,1760,5.5,32060,30320,1740,5.4,31990,30390,1600,5,31670,30350,1320,4.2,31620,30570,1050,3.3000000000000003,31420,30530,890,2.8,31140,30280,860,2.8,31340,30510,830,2.5,31570,30760,810,2.5,31130,28970,2160,6.9]
["Carroll County",19324,18897,18852,18996,19567,19855,20981,21505,22123,21678,23640,23920,24250,24400,18361,17657,17635,17968,18767,19122,20149,20819,21552,21119,23010,23180,23380,23540,5,6.6000000000000005,6.5,5.4,4.0999999999999996,3.7,4,3.2,2.6,2.6,2.7,3.1,3.6000000000000005,3.5000000000000004,963,1240,1217,1028,800,733,832,686,571,559,630,740,870,860,24790,24000,3.2,790,24950,24110,840,3.4000000000000004,25330,24510,820,3.2,25500,24620,880,3.4000000000000004,25910,24980,930,3.6000000000000005,25870,24420,1450,5.6,24940,23530,1410,5.7,24770,23420,1350,5.4,24670,23370,1300,5.3,24430,23230,1200,4.9000000000000004,24220,23200,1020,4.2,23810,22990,820,3.5000000000000004,23700,23000,700,2.9,23580,22920,660,2.8,23760,23130,630,2.6,23990,23370,620,2.6,23140,21360,1780,7.7]
["Cheshire County",38410,38311,38329,38523,38955,38976,38787,38174,39489,39308,39900,40180,40340,40090,36711,36037,35991,36592,37381,37634,37535,36858,38288,38226,38860,38970,38920,38670,4.4000000000000004,5.9,6.1000000000000005,5,4,3.4,3.2,3.4,3,2.8000000000000003,2.6,3,3.5000000000000004,3.5000000000000004,1699,2274,2338,1931,1574,1342,1252,1316,1201,1082,1040,1210,1420,1420,40910,39540,3.3000000000000003,1370,41900,40570,1330,3.2,42480,41110,1370,3.2,42090,40600,1490,3.5000000000000004,42150,40610,1540,3.7000000000000006,42040,39630,2410,5.7,42620,40260,2360,5.5,42550,40410,2140,5,42620,40450,2170,5.0999999999999996,41950,39960,1990,4.7,42100,40400,1700,4,41570,40260,1310,3.2,41460,40320,1140,2.7,41010,39900,1110,2.7,40820,39740,1080,2.6,40700,39620,1080,2.6,39850,37410,2440,6.1]
["Coos County",17316,17562,17691,17474,17190,16840,16932,16758,17345,16954,17130,17070,16780,16520,16173,16077,15763,15823,15986,15760,15851,15916,16647,16238,16510,16170,15670,15660,6.6000000000000005,8.5,10.9,9.4,7,6.4,6.4,5,4,4.2,3.6000000000000005,5.3,6.6000000000000005,5.2,1143,1485,1928,1651,1204,1080,1081,842,698,716,620,900,1110,860,16510,15760,4.5,750,16660,15980,680,4.0999999999999996,16820,16120,700,4.0999999999999996,16700,15930,770,4.5999999999999996,16500,15650,850,5.2,16390,15090,1300,7.9,16590,15370,1220,7.4000000000000012,16350,15160,1190,7.3,16090,14900,1190,7.4000000000000012,15930,14960,970,6.1,15180,14320,860,5.7,14820,14180,640,4.3,14660,14110,550,3.8,14480,13960,520,3.6000000000000005,14630,14140,490,3.1,14720,14240,480,3.1,14400,13260,1140,7.9]
["Grafton County",40114,40615,40202,40214,41480,42160,41465,42872,43915,44610,44860,45010,45440,45680,37935,37753,37788,38153,40169,40853,40117,41781,42942,43752,43800,43800,44110,44300,5.4,7,6,5.1000000000000005,3.2,3.1,3.3000000000000003,2.5,2.2000000000000002,1.9000000000000001,2.4,2.7,2.9,3,2179,2862,2414,2061,1311,1307,1348,1091,973,858,1060,1210,1330,1380,46400,45110,2.8,1290,46770,45450,1320,2.8,47850,46480,1370,2.9,48290,46860,1430,3,48800,47260,1540,3.1,48890,46380,2510,5.0999999999999996,48330,46010,2320,4.8,48730,46560,2170,4.5,48730,46560,2170,4.4000000000000004,48360,46320,2040,4.2,48550,46880,1670,3.4000000000000004,48690,47360,1330,2.7,48810,47660,1150,2.4,49340,48210,1130,2.2999999999999998,49480,48400,1080,2.2999999999999998,49590,48470,1120,2.2999999999999998,48150,45340,2810,5.8]
["Hillsborough County",198164,189890,190456,190604,188801,191601,195500,201780,205929,209122,212570,216250,216670,219660,187400,176384,175915,178170,179148,183552,188683,196133,200444,203336,207150,208620,206320,209650,5.4,7.1000000000000005,7.6000000000000005,6.5,5.1000000000000005,4.2,3.5,2.8000000000000003,2.7,2.8000000000000003,2.5,3.5000000000000004,4.8,4.5999999999999996,10764,13506,14541,12434,9653,8049,6817,5647,5485,5786,5420,7630,10350,10010,223190,214540,3.9,8650,226190,217990,8200,3.6000000000000005,226540,218490,8050,3.6000000000000005,228220,220130,8090,3.5000000000000004,229000,220160,8840,3.9,229680,214830,14850,6.5,226150,212240,13910,6.2,225080,212340,12740,5.7,226900,213780,13120,5.8,227770,215530,12240,5.4,229070,218780,10290,4.5,229930,221740,8190,3.6000000000000005,232310,225270,7040,3,234250,227290,6960,3,238660,232110,6550,2.8,242760,236250,6510,2.8,240130,223340,16790,7.0000000000000009]
["Merrimack County",60263,65585,66290,66666,69983,71079,71419,72912,75415,75893,74790,76070,77020,77330,57132,61167,62035,63545,67602,69099,69490,71047,73647,74264,73010,73900,74390,74600,5.2,6.7,6.4,4.7,3.4,2.8000000000000003,2.7,2.6,2.3000000000000003,2.1,2.4,2.8,3.4000000000000004,3.5000000000000004,3131,4418,4255,3121,2381,1980,1929,1865,1768,1629,1780,2170,2630,2730,77130,74700,3.2,2430,78130,75670,2460,3.1,79560,77070,2490,3.1,80320,77660,2660,3.3000000000000003,81100,78140,2960,3.6000000000000005,81730,77120,4610,5.6,81400,77050,4350,5.3,81100,77110,3990,4.9000000000000004,81160,77140,4020,4.9000000000000004,80880,77140,3740,4.5999999999999996,81050,77950,3100,3.8,81370,78870,2500,3.1,82030,79940,2090,2.6,82120,80090,2030,2.5,83170,81240,1930,2.2999999999999998,83810,81880,1930,2.2999999999999998,82620,77820,4800,5.8]
["New Hampshire",620037,614452,615648,619307,624566,631050,641246,656094,670560,684904,687910,697760,702280,707520,585032,569621,568909,580137,594935,605929,617629,635469,651292,666066,669620,673780,670880,677030,5.6000000000000005,7.3,7.6000000000000005,6.3,4.7,4,3.7,3.1,2.9,2.8000000000000003,2.7,3.4000000000000004,4.5,4.3,35005,44831,46739,39170,29631,25121,23617,20625,19268,18838,18290,23980,31400,30490,716190,689150,3.8,27040,725850,700030,25820,3.6000000000000005,731860,706780,25080,3.4000000000000004,737940,712010,25930,3.5000000000000004,742780,714100,28680,3.9,744230,697800,46430,6.2,738260,695140,43120,5.8,736300,696530,39770,5.4,741100,700370,40730,5.5,741280,703530,37750,5.0999999999999996,743320,711550,31770,4.3,745700,720580,25120,3.4000000000000004,752480,731000,21480,2.9,755010,733840,21170,2.8,764560,744340,20220,2.6,773440,753320,20120,2.6,761740,710820,50920,6.7]
["Rockingham County",142104,139032,141005,142966,143631,145349,149229,152776,155665,166617,160550,163720,165150,166410,133279,128005,128734,132204,135218,138531,142657,146942,150092,161203,155770,157160,156130,157690,6.2,7.9,8.7000000000000011,7.5,5.9,4.7,4.4000000000000004,3.8000000000000003,3.6,3.2,3,4,5.5,5.2,8825,11027,12271,10762,8413,6818,6572,5834,5573,5414,4780,6560,9020,8720,168380,160630,4.5999999999999996,7750,170880,163840,7040,4.0999999999999996,171540,165100,6440,3.8,173680,167110,6570,3.8,174270,166880,7390,4.2,174580,163080,11500,6.6000000000000005,172360,162060,10300,6,172120,162480,9640,5.6,174770,164610,10160,5.8,175740,166180,9560,5.4,176960,168800,8160,4.5999999999999996,178900,172490,6410,3.6000000000000005,181950,176430,5520,3,183290,177720,5570,3,185760,180410,5350,2.7,188610,183380,5230,2.7,185980,172830,13150,7.1]
["Strafford County",57148,58093,56919,57516,56837,56813,57427,58489,58418,58546,61810,62520,63500,64900,53769,53786,52695,54172,54547,54625,55244,56626,56777,57105,60150,60480,60740,62330,5.9,7.4,7.4,5.8,4,3.9,3.8000000000000003,3.2,2.8000000000000003,2.5,2.7,3.3000000000000003,4.3,4,3379,4307,4224,3344,2290,2188,2183,1863,1641,1441,1660,2040,2760,2570,65950,63730,3.4000000000000004,2220,66510,64270,2240,3.4000000000000004,66850,64740,2110,3.2,68210,65980,2230,3.3000000000000003,69670,67150,2520,3.6000000000000005,69750,65430,4320,6.2,69570,65630,3940,5.7,69620,65930,3690,5.3,70050,66260,3790,5.4,70150,66730,3420,4.9000000000000004,70750,67920,2830,4,71300,69080,2220,3.1,72510,70660,1850,2.5,72580,70760,1820,2.5,73730,71970,1760,2.4,74520,72730,1790,2.4,73220,68610,4610,6.3]
["Sullivan County",20576,19947,19495,19727,20552,20761,21028,21231,21496,21735,21700,21660,21460,21000,19273,18384,18102,18664,19808,20161,20459,20618,20914,21126,21160,21070,20780,20270,6.3,7.8,7.1000000000000005,5.4,3.6,2.9,2.7,2.9,2.7,2.8000000000000003,2.5,2.7,3.2,3.5000000000000004,1303,1563,1393,1063,744,600,569,613,582,609,540,590,680,730,21270,20590,3.2,680,21950,21300,650,2.9,22370,21720,650,2.9,22550,21880,670,3,22750,21980,770,3.4000000000000004,22800,21490,1310,5.8,24040,22790,1250,5.2,23960,22860,1100,4.5999999999999996,24040,22960,1080,4.5,24090,23100,990,4.0999999999999996,23780,22940,840,3.5000000000000004,23700,23050,650,2.7,23620,23070,550,2.2999999999999998,23260,22720,540,2.2999999999999998,23210,22700,510,2.2999999999999998,23170,22630,540,2.2999999999999998,23110,21870,1240,5.4]

{"sheet":"BuildingPermitsSince2000","index":8,"n_rows":41,"n_cols":25,"rows_kept":41,"cut":false,"hidden":true,"merged":[[3,1,3,3]]}
[]
[null,{"$f":"CntyDataLink!A35","v":"Grantham"}]
[]
[null,"HOUSING CHARACTERISTICS"]
[]
[]
[]
[]
[]
[]
[]
[]
[]
[]
[]
[]
[]
[]
[]
[]
[]
[]
[]
[]
[]
[]
[]
[]
[]
[]
[]
[]
[]
[]
[null,"Housing Units Authorized by Permit",null,null,null,"Source: Office of Planning and Devolpment, NH BEA"]
[]
[null,"Year",2000,{"$f":"C37+1","v":2001},{"$f":"D37+1","v":2002},2003,2004,2005,2006,2007,2008,2009,2010,2011,2012,2013,2014,2015,2016,2017,2018,2019,2020,2021,"Total"]
[null,"Single Family",{"$f":"CntyDataLink!$BU$20","v":34},{"$f":"CntyDataLink!$BX$20","v":28},{"$f":"CntyDataLink!$CA$20","v":45},{"$f":"CntyDataLink!$CD$20","v":59},{"$f":"CntyDataLink!$CG$20","v":42},{"$f":"CntyDataLink!$CJ$20","v":31},{"$f":"CntyDataLink!$CM$20","v":23},{"$f":"CntyDataLink!$CO$20","v":0},{"$f":"CntyDataLink!$CS$20","v":15},{"$f":"CntyDataLink!$CV$20","v":6},{"$f":"CntyDataLink!$CY$20","v":5},{"$f":"CntyDataLink!$DB$20","v":6},{"$f":"CntyDataLink!$DE$20","v":3},{"$f":"CntyDataLink!$DH$20","v":5},{"$f":"CntyDataLink!$DK$20","v":7},{"$f":"CntyDataLink!$DN$20","v":17},{"$f":"CntyDataLink!$DQ$20","v":3},{"$f":"CntyDataLink!$DT$20","v":3},{"$f":"CntyDataLink!$DW$20","v":6},{"$f":"CntyDataLink!$DZ$20","v":4},{"$f":"CntyDataLink!$EC$20","v":4},{"$f":"CntyDataLink!$EC$20","v":4},{"$f":"SUM(C38:X38)","v":350}]
[null,"Multi-family",{"$f":"CntyDataLink!$BV$20","v":0},{"$f":"CntyDataLink!$BY$20","v":2},{"$f":"CntyDataLink!$CB$20","v":2},{"$f":"CntyDataLink!$CE$20","v":0},{"$f":"CntyDataLink!$CH$20","v":0},{"$f":"CntyDataLink!$CK$20","v":0},{"$f":"CntyDataLink!$CN$20","v":0},{"$f":"CntyDataLink!$CP$20","v":23},{"$f":"CntyDataLink!$CT$20","v":0},{"$f":"CntyDataLink!$CW$20","v":0},{"$f":"CntyDataLink!$CZ$20","v":0},{"$f":"CntyDataLink!$DC$20","v":0},{"$f":"CntyDataLink!$DF$20","v":0},{"$f":"CntyDataLink!$DI$20","v":2},{"$f":"CntyDataLink!$DL$20","v":0},{"$f":"CntyDataLink!$DO$20","v":0},{"$f":"CntyDataLink!$DR$20","v":0},{"$f":"CntyDataLink!$DU$20","v":1},{"$f":"CntyDataLink!$DX$20","v":0},{"$f":"CntyDataLink!$EA$20","v":0},{"$f":"CntyDataLink!$ED$20","v":1},{"$f":"CntyDataLink!$ED$20","v":1},{"$f":"SUM(C39:X39)","v":32}]
[null,"Manufactured",{"$f":"CntyDataLink!$BW$20","v":1},{"$f":"CntyDataLink!$BZ$20","v":0},{"$f":"CntyDataLink!$CC$20","v":0},{"$f":"CntyDataLink!$CF$20","v":0},{"$f":"CntyDataLink!$CI$20","v":0},{"$f":"CntyDataLink!$CL$20","v":0},{"$f":"CntyDataLink!$CO$20","v":0},{"$f":"CntyDataLink!$CR$20","v":0},{"$f":"CntyDataLink!$CU$20","v":0},{"$f":"CntyDataLink!$CX$20","v":0},{"$f":"CntyDataLink!$DA$20","v":0},{"$f":"CntyDataLink!$DD$20","v":0},{"$f":"CntyDataLink!$DG$20","v":0},{"$f":"CntyDataLink!$DJ$20","v":0},{"$f":"CntyDataLink!$DM$20","v":0},{"$f":"CntyDataLink!$DP$20","v":0},{"$f":"CntyDataLink!$DR$20","v":0},{"$f":"CntyDataLink!$DV$20","v":0},{"$f":"CntyDataLink!$DY$20","v":0},{"$f":"CntyDataLink!$EB$20","v":0},{"$f":"CntyDataLink!$EE$20","v":0},{"$f":"CntyDataLink!$EE$20","v":0},{"$f":"SUM(C40:X40)","v":1}]
[null,"Total",{"$f":"SUM(C38:C40)","v":35},{"$f":"SUM(D38:D40)","v":30},47,59,42,31,23,23,15,6,5,6,3,7,7,17,3,4,{"$f":"SUM(U38:U40)","v":6},{"$f":"SUM(V38:V40)","v":4},{"$f":"SUM(W38:W40)","v":5},{"$f":"SUM(X38:X40)","v":5},{"$f":"SUM(C41:W41)","v":378}]

{"sheet":"EmploymentAndWages","index":9,"n_rows":0,"n_cols":0,"rows_kept":0,"cut":false,"hidden":true,"merged":[[3,1,3,3],[35,1,35,2],[73,1,73,2],[41,1,41,3]]}

{"sheet":"EmpVsHUxCounty","index":10,"n_rows":124,"n_cols":14,"rows_kept":124,"cut":false,"hidden":true,"merged":[[79,0,80,9],[64,0,64,11]]}
[]
[{"$f":"CntyDataLink!A35","v":"Grantham"}]
[]
[]
[]
[]
[]
[]
[]
[]
[]
[]
[]
[]
[]
[]
[]
[]
[]
[]
[]
[]
[]
[]
[]
[]
[]
[]
[]
[]
[]
[]
[]
[]
[]
[]
[]
[]
[]
[]
[]
[]
[]
["Housing Units "]
[{"$f":"CntyDataLink!A20","v":"Grantham"}]
[null,null,null,"Source: Office of Planning and Devolpment, NH BEA"]
["Units Authorized By Permit",2010,{"$f":"B47+1","v":2011},{"$f":"C47+1","v":2012},2013,2014,2015,2016,2017,2018,2019,2020,2021]
["Single Family",{"$f":"CntyDataLink!$CY$20","v":5},{"$f":"CntyDataLink!$DB$20","v":6},{"$f":"CntyDataLink!$DE$20","v":3},{"$f":"CntyDataLink!$DH$20","v":5},{"$f":"CntyDataLink!$DK$20","v":7},{"$f":"CntyDataLink!$DN$20","v":17},{"$f":"CntyDataLink!$DQ$20","v":3},{"$f":"CntyDataLink!$DT$20","v":3},{"$f":"CntyDataLink!$DW$20","v":6},{"$f":"CntyDataLink!$DZ$20","v":4},{"$f":"CntyDataLink!$EC$20","v":4},{"$f":"CntyDataLink!$EI$20","v":6}]
["Multi-family",{"$f":"CntyDataLink!$CZ$20","v":0},{"$f":"CntyDataLink!$DC$20","v":0},{"$f":"CntyDataLink!$DF$20","v":0},{"$f":"CntyDataLink!$DI$20","v":2},{"$f":"CntyDataLink!$DL$20","v":0},{"$f":"CntyDataLink!$DO$20","v":0},{"$f":"CntyDataLink!$DR$20","v":0},{"$f":"CntyDataLink!$DU$20","v":1},{"$f":"CntyDataLink!$DX$20","v":0},{"$f":"CntyDataLink!$EA$20","v":0},{"$f":"CntyDataLink!$ED$20","v":1},{"$f":"CntyDataLink!$EJ$20","v":0}]
["Mobile Home",{"$f":"CntyDataLink!$DA$20","v":0},{"$f":"CntyDataLink!$DD$20","v":0},{"$f":"CntyDataLink!$DG$20","v":0},{"$f":"CntyDataLink!$DJ$20","v":0},{"$f":"CntyDataLink!$DM$20","v":0},{"$f":"CntyDataLink!$DP$20","v":0},{"$f":"CntyDataLink!$DR$20","v":0},{"$f":"CntyDataLink!$DV$20","v":0},{"$f":"CntyDataLink!$DY$20","v":0},{"$f":"CntyDataLink!$EB$20","v":0},{"$f":"CntyDataLink!$EE$20","v":0},{"$f":"CntyDataLink!$EK$20","v":0}]
["Total",{"$f":"SUM(B48:B50)","v":5},6,3,7,7,17,3,4,{"$f":"SUM(J48:J50)","v":6},{"$f":"SUM(K48:K50)","v":4},{"$f":"SUM(L48:L50)","v":5},{"$f":"SUM(M48:M50)","v":6}]
[]
["Total Housing Units","2010 Census",2011,{"$f":"C53+1","v":2012},2013,2014,2015,2016,2017,2018,2019,2020,2021,2022]
["Single Family",{"$f":"CntyDataLink!$BA$167","v":1455},{"$f":"B48+B54","v":1460},1466,1469,1474,1481,1498,1501,1504,1510,{"$f":"K54+K48","v":1514},1518,1524]
["Multi Family",{"$f":"CntyDataLink!$BB$167","v":304},304,304,304,306,306,306,306,307,307,307,308,308]
["Mobile Home",{"$f":"CntyDataLink!$BC$167","v":14},14,14,14,14,14,14,14,14,14,14,14,14]
["Total",{"$f":"SUM(B54:B56)","v":1773},1778,1784,1787,1794,1801,1818,1821,1825,1831,1835,1840,{"$f":"SUM(N54:N56)","v":1846}]
[]
["Percent Change","2000-2010 Census"," 10-11"," 11-12","12-13","13-14","14-15","15-16","16-17","17-18","18-19","19-20","20-21","21-22"]
["Single Family",{"$f":"(B54-CntyDataLink!CF$65)/CntyDataLink!CF$65","v":0.24571917808219179},{"$f":"(C54-B54)/B54","v":3.4364261168384879E-3},4.10958904109589E-3,2.0463847203274215E-3,3.4036759700476512E-3,4.7489823609226595E-3,1.1478730587440918E-2,2.0026702269692926E-3,1.9986675549633578E-3,3.9893617021276593E-3,2.6490066225165563E-3,2.6420079260237781E-3,3.952569169960474E-3]
["Multi Family",{"$f":"(B55-SUM(CntyDataLink!CG65:CM65))/SUM(CntyDataLink!CG65:CM65)","v":-6.1728395061728392E-2},0,0,0,6.5789473684210523E-3,0,0,0,3.2679738562091504E-3,0,0,3.2573289902280132E-3,0]
["Mobile Home",{"$f":"(B56-SUM(CntyDataLink!CN65))/(CntyDataLink!CN65)","v":-0.46153846153846156},0,0,0,0,0,0,0,0,0,0,0,0]
["Total",{"$f":"(B57-CntyDataLink!$CE65)/CntyDataLink!$CE65","v":0.16798418972332016},2.8200789622109417E-3,3.3745781777277839E-3,1.6816143497757848E-3,3.9171796306659203E-3,3.9018952062430325E-3,9.4392004441976683E-3,1.6501650165016502E-3,2.1965952773201538E-3,3.2876712328767125E-3,2.1845985800109228E-3,2.7247956403269754E-3,3.2608695652173911E-3]
[]
[]
[]
[]
["Private Employment"]
[{"$f":"CntyDataLink!A25","v":"Grantham"}]
[null,null,2011,{"$f":"C70+1","v":2012},2013,2014,2015,2016,2017,2018,2019,2020,2021,2022]
["Goods Producing",null,{"$f":"IF((CntyDataLink!$CG$25)=\"n\",NA(),IF(VALUE(CntyDataLink!$CG$25)=\"\",NA(),VALUE(CntyDataLink!$CG$25)))","v":38},{"$f":"IF((CntyDataLink!$CO$25)=\"n\",NA(),IF(VALUE(CntyDataLink!$CO$25)=\"\",NA(),VALUE(CntyDataLink!$CO$25)))","v":25},{"$f":"IF((CntyDataLink!$CW$25)=\"n\",NA(),IF(VALUE(CntyDataLink!$CW$25)=\"\",NA(),VALUE(CntyDataLink!$CW$25)))","v":36},{"$f":"IF((CntyDataLink!$DE$25)=\"n\",NA(),IF(VALUE(CntyDataLink!$DE$25)=\"\",NA(),VALUE(CntyDataLink!$DE$25)))","v":43},{"$f":"IF((CntyDataLink!$DM$25)=\"n\",NA(),IF(VALUE(CntyDataLink!$DM$25)=\"\",NA(),VALUE(CntyDataLink!$DM$25)))","v":42},{"$f":"IF((CntyDataLink!$DU$25)=\"n\",NA(),IF(VALUE(CntyDataLink!$DU$25)=\"\",NA(),VALUE(CntyDataLink!$DU$25)))","v":42},{"$f":"IF((CntyDataLink!$EC$25)=\"n\",NA(),IF(VALUE(CntyDataLink!$EC$25)=\"\",NA(),VALUE(CntyDataLink!$EC$25)))","v":40},{"$f":"IF((CntyDataLink!$EK$25)=\"n\",NA(),IF(VALUE(CntyDataLink!$EK$25)=\"\",NA(),VALUE(CntyDataLink!$EK$25)))","v":45},{"$f":"IF((CntyDataLink!$ET$25)=\"n\",NA(),IF(VALUE(CntyDataLink!$ET$25)=\"\",NA(),VALUE(CntyDataLink!$ET$25)))","v":48},{"$f":"IF((CntyDataLink!$FD$25)=\"n\",NA(),IF(VALUE(CntyDataLink!$FD$25)=\"\",NA(),VALUE(CntyDataLink!$FD$25)))","v":39},{"$f":"IF((CntyDataLink!$FN$25)=\"n\",NA(),IF(VALUE(CntyDataLink!$FN$25)=\"\",NA(),VALUE(CntyDataLink!$FN$25)))","v":31},{"$f":"IF((CntyDataLink!$FX$25)=\"n\",NA(),IF(VALUE(CntyDataLink!$FX$25)=\"\",NA(),VALUE(CntyDataLink!$FX$25)))","v":27}]
["Service Providing",null,{"$f":"IF((CntyDataLink!$CH$25)=\"n\",NA(),IF(VALUE(CntyDataLink!$CH$25)=\"\",NA(),VALUE(CntyDataLink!$CH$25)))","v":190},{"$f":"IF((CntyDataLink!$CP$25)=\"n\",NA(),IF(VALUE(CntyDataLink!$CP$25)=\"\",NA(),VALUE(CntyDataLink!$CP$25)))","v":197},{"$f":"IF((CntyDataLink!$CX$25)=\"n\",NA(),IF(VALUE(CntyDataLink!$CX$25)=\"\",NA(),VALUE(CntyDataLink!$CX$25)))","v":209},{"$f":"IF((CntyDataLink!$DF$25)=\"n\",NA(),IF(VALUE(CntyDataLink!$DF$25)=\"\",NA(),VALUE(CntyDataLink!$DF$25)))","v":215},{"$f":"IF((CntyDataLink!$DN$25)=\"n\",NA(),IF(VALUE(CntyDataLink!$DN$25)=\"\",NA(),VALUE(CntyDataLink!$DN$25)))","v":228},{"$f":"IF((CntyDataLink!$DV$25)=\"n\",NA(),IF(VALUE(CntyDataLink!$DV$25)=\"\",NA(),VALUE(CntyDataLink!$DV$25)))","v":237},{"$f":"IF((CntyDataLink!$ED$25)=\"n\",NA(),IF(VALUE(CntyDataLink!$ED$25)=\"\",NA(),VALUE(CntyDataLink!$ED$25)))","v":228},{"$f":"IF((CntyDataLink!$EL$25)=\"n\",NA(),IF(VALUE(CntyDataLink!$EL$25)=\"\",NA(),VALUE(CntyDataLink!$EL$25)))","v":239},{"$f":"IF((CntyDataLink!$EU$25)=\"n\",NA(),IF(VALUE(CntyDataLink!$EU$25)=\"\",NA(),VALUE(CntyDataLink!$EU$25)))","v":221},{"$f":"IF((CntyDataLink!$FE$25)=\"n\",NA(),IF(VALUE(CntyDataLink!$FE$25)=\"\",NA(),VALUE(CntyDataLink!$FE$25)))","v":217},{"$f":"IF((CntyDataLink!$FO$25)=\"n\",NA(),IF(VALUE(CntyDataLink!$FO$25)=\"\",NA(),VALUE(CntyDataLink!$FO$25)))","v":270},{"$f":"IF((CntyDataLink!$FY$25)=\"n\",NA(),IF(VALUE(CntyDataLink!$FY$25)=\"\",NA(),VALUE(CntyDataLink!$FY$25)))","v":291}]
["Total Private Emp",null,{"$f":"IF((CntyDataLink!$CF$25)=\"n\",NA(),IF(VALUE(CntyDataLink!$CF$25)=\"\",NA(),VALUE(CntyDataLink!$CF$25)))","v":228},{"$f":"IF((CntyDataLink!$CN$25)=\"n\",NA(),IF(VALUE(CntyDataLink!$CN$25)=\"\",NA(),VALUE(CntyDataLink!$CN$25)))","v":222},{"$f":"IF((CntyDataLink!$CV$25)=\"n\",NA(),IF(VALUE(CntyDataLink!$CV$25)=\"\",NA(),VALUE(CntyDataLink!$CV$25)))","v":245},{"$f":"IF((CntyDataLink!$DD$25)=\"n\",NA(),IF(VALUE(CntyDataLink!$DD$25)=\"\",NA(),VALUE(CntyDataLink!$DD$25)))","v":258},{"$f":"IF((CntyDataLink!$DL$25)=\"n\",NA(),IF(VALUE(CntyDataLink!$DL$25)=\"\",NA(),VALUE(CntyDataLink!$DL$25)))","v":270},{"$f":"IF((CntyDataLink!$DT$25)=\"n\",NA(),IF(VALUE(CntyDataLink!$DT$25)=\"\",NA(),VALUE(CntyDataLink!$DT$25)))","v":279},{"$f":"IF((CntyDataLink!$EB$25)=\"n\",NA(),IF(VALUE(CntyDataLink!$EB$25)=\"\",NA(),VALUE(CntyDataLink!$EB$25)))","v":268},{"$f":"IF((CntyDataLink!$EJ$25)=\"n\",NA(),IF(VALUE(CntyDataLink!$EJ$25)=\"\",NA(),VALUE(CntyDataLink!$EJ$25)))","v":284},{"$f":"IF((CntyDataLink!$ER$25)=\"n\",NA(),IF(VALUE(CntyDataLink!$ER$25)=\"\",NA(),VALUE(CntyDataLink!$ER$25)))","v":269},{"$f":"IF((CntyDataLink!$FB$25)=\"n\",NA(),IF(VALUE(CntyDataLink!$FB$25)=\"\",NA(),VALUE(CntyDataLink!$FB$25)))","v":256},{"$f":"IF((CntyDataLink!$FL$25)=\"n\",NA(),IF(VALUE(CntyDataLink!$FL$25)=\"\",NA(),VALUE(CntyDataLink!$FL$25)))","v":300},{"$f":"IF((CntyDataLink!$FV$25)=\"n\",NA(),IF(VALUE(CntyDataLink!$FV$25)=\"\",NA(),VALUE(CntyDataLink!$FV$25)))","v":318}]
[]
["Percent Change",null,null,"11-12","12-13","13-14","14-15","15-16","16-17","17-18","18-19","19-20","20-21","21-22"]
["Goods Producing",null,null,{"$f":"(D71-C71)/C71","v":-0.34210526315789475},0.44,0.19444444444444445,-2.3255813953488372E-2,0,-4.7619047619047616E-2,0.125,6.6666666666666666E-2,-0.1875,-0.20512820512820512,{"$f":"(N71-M71)/M71","v":-0.12903225806451613}]
["Service Providing",null,null,3.6842105263157891E-2,6.0913705583756347E-2,2.8708133971291867E-2,6.0465116279069767E-2,3.9473684210526314E-2,-3.7974683544303799E-2,4.8245614035087717E-2,-7.5313807531380755E-2,-1.8099547511312219E-2,0.24423963133640553,7.7777777777777779E-2]
["Total Private Emp",null,null,-2.6315789473684209E-2,{"$f":"(E73-D73)/D73","v":0.1036036036036036},5.3061224489795916E-2,4.6511627906976744E-2,3.3333333333333333E-2,-3.9426523297491037E-2,5.9701492537313432E-2,-5.2816901408450703E-2,-4.8327137546468404E-2,0.171875,{"$f":"(N73-M73)/M73","v":0.06}]
[]
["Source: New Hampshire Department of Employment Security"]
[]
[]
[]
[{"$f":"A2","v":"Grantham"}]
[]
[]
[]
[]
[]
[]
[]
[]
[]
[]
[]
[]
[]
[]
[]
[]
[]
[]
[]
[]
[]
[]
[]
[]
[]
[]
[]
[]
[]
[]
[]
[]
[]
[]
[]
[null,null,2012,{"$f":"C120+1","v":2013},{"$f":"D120+1","v":2014},{"$f":"E120+1","v":2015},{"$f":"F120+1","v":2016},{"$f":"G120+1","v":2017},{"$f":"H120+1","v":2018},{"$f":"I120+1","v":2019},{"$f":"J120+1","v":2020},{"$f":"K120+1","v":2021},{"$f":"L120+1","v":2022}]
["Total Housing Units",null,{"$f":"C$57","v":1778},1784,1787,1794,1801,1818,1821,1825,1831,1835,{"$f":"N$57","v":1846}]
["Private & Government Emp.",null,{"$f":"VALUE(CntyDataLink!$CM$25)","v":268},{"$f":"VALUE(CntyDataLink!$CU$25)","v":293},{"$f":"VALUE(CntyDataLink!$DC$25)","v":303},{"$f":"VALUE(CntyDataLink!$DK$25)","v":314},{"$f":"VALUE(CntyDataLink!$DS$25)","v":324},{"$f":"VALUE(CntyDataLink!$EA$25)","v":310},{"$f":"VALUE(CntyDataLink!$EI$25)","v":328},{"$f":"VALUE(CntyDataLink!$EQ$25)","v":325},{"$f":"VALUE(CntyDataLink!$FA$25)","v":311},{"$f":"VALUE(CntyDataLink!$FK$25)","v":350},{"$f":"VALUE(CntyDataLink!$FU$25)","v":365}]
[]
["Source: New Hampshire Department of Employment Security and Office of Planning and Devolpment, NH BEA"]

{"sheet":"HHIncome-10YearComparison","index":11,"n_rows":50,"n_cols":17,"rows_kept":50,"cut":false,"hidden":true,"merged":[[28,1,28,2],[26,1,26,4],[27,15,27,16],[3,1,3,3],[27,4,27,7],[27,8,27,10],[27,11,27,13]],"read":"row_number_cap"}
[]
[null,{"$f":"CntyDataLink!A35","v":"Grantham"}]
[]
[null,"INCOME CHARACTERISTICS"]
[]
[]
[]
[]
[]
[]
[]
[]
[]
[]
[]
[]
[]
[]
[]
[]
[]
[]
[]
[]
[]
[]
[null,"Households By Household Income"]
[null,null,null,null,"2007-2011",null,null,null,"2013-2017",null,null,"2018-2022",null,null,null,"Statistically Significant Change"]
[null,"Household Income",null,null,"Estimate","Margin of Error",null,null,"Estimate"," Margin of Error",null,"Estimate"," Margin of Error",null,null,"2012-2022","2017-2022"]
[null,"Less than $10,000",null,null,{"$f":"CntyDataLinkPrior10YearEstimate!$B$120","v":9},{"$f":"CntyDataLinkPrior10YearEstimate!$C$120","v":15},{"$f":"E30/SUM($E$30:$E$39)","v":8.0428954423592495E-3},null,{"$f":"CntyDataLinkPrior5YearEstimates!$B$120","v":0},{"$f":"CntyDataLinkPrior5YearEstimates!$C$120","v":11},{"$f":"I30/SUM($I$30:$I$39)","v":0},{"$f":"CntyDataLink!$B$120","v":0},{"$f":"CntyDataLink!$C$120","v":12},{"$f":"L30/SUM($L$30:$L$39)","v":0},null,{"$f":"StatisticallySignificantCalcs!$A$83","v":"N"},{"$f":"StatisticallySignificantCalcs!$J$83","v":"N"}]
[null,"$10,000 to $14,999",null,null,{"$f":"CntyDataLinkPrior10YearEstimate!$D$120","v":20},{"$f":"CntyDataLinkPrior10YearEstimate!$E$120","v":24},{"$f":"E31/SUM($E$30:$E$39)","v":1.7873100983020553E-2},null,{"$f":"CntyDataLinkPrior5YearEstimates!$D$120","v":0},{"$f":"CntyDataLinkPrior5YearEstimates!$E$120","v":11},{"$f":"I31/SUM($I$30:$I$39)","v":0},{"$f":"CntyDataLink!$D$120","v":0},{"$f":"CntyDataLink!$E$120","v":12},{"$f":"L31/SUM($L$30:$L$39)","v":0},null,{"$f":"StatisticallySignificantCalcs!$A$84","v":"N"},{"$f":"StatisticallySignificantCalcs!$J$84","v":"N"}]
[null,"$15,000 to $24,999",null,null,{"$f":"CntyDataLinkPrior10YearEstimate!$F$120","v":23},{"$f":"CntyDataLinkPrior10YearEstimate!$G$120","v":19.104973174542799},2.0554066130473638E-2,null,{"$f":"CntyDataLinkPrior5YearEstimates!$F$120","v":34},{"$f":"CntyDataLinkPrior5YearEstimates!$G$120","v":39.560080889704963},2.9488291413703384E-2,{"$f":"CntyDataLink!$F$120","v":50},{"$f":"CntyDataLink!$G$120","v":76.941536246685374},4.3516100957354219E-2,null,{"$f":"StatisticallySignificantCalcs!$A$85","v":"N"},{"$f":"StatisticallySignificantCalcs!$J$85","v":"N"}]
[null,"$25,000 to $34,999",null,null,{"$f":"CntyDataLinkPrior10YearEstimate!$H$120","v":31},{"$f":"CntyDataLinkPrior10YearEstimate!$I$120","v":32.984845004941285},2.7703306523681859E-2,null,{"$f":"CntyDataLinkPrior5YearEstimates!$H$120","v":63},{"$f":"CntyDataLinkPrior5YearEstimates!$I$120","v":55.027265968790417},5.464006938421509E-2,{"$f":"CntyDataLink!$H$120","v":91},{"$f":"CntyDataLink!$I$120","v":92.779308037945611},7.919930374238468E-2,null,{"$f":"StatisticallySignificantCalcs!$A$86","v":"N"},{"$f":"StatisticallySignificantCalcs!$J$86","v":"N"}]
[null,"$35,000 to $49,999",null,null,{"$f":"CntyDataLinkPrior10YearEstimate!$J$120","v":189},{"$f":"CntyDataLinkPrior10YearEstimate!$K$120","v":63.229739838148944},0.16890080428954424,null,{"$f":"CntyDataLinkPrior5YearEstimates!$J$120","v":107},{"$f":"CntyDataLinkPrior5YearEstimates!$K$120","v":86.319175158246267},9.2801387684301823E-2,{"$f":"CntyDataLink!$J$120","v":37},{"$f":"CntyDataLink!$K$120","v":47.159304490206381},3.2201914708442123E-2,null,{"$f":"StatisticallySignificantCalcs!$A$87","v":"Y"},{"$f":"StatisticallySignificantCalcs!$J$87","v":"N"}]
[null,"$50,000 to $74,999",null,null,{"$f":"CntyDataLinkPrior10YearEstimate!$L$120","v":169},{"$f":"CntyDataLinkPrior10YearEstimate!$M$120","v":56.36488268416781},0.15102770330652368,null,{"$f":"CntyDataLinkPrior5YearEstimates!$L$120","v":195},{"$f":"CntyDataLinkPrior5YearEstimates!$M$120","v":96.208107766445551},0.16912402428447529,{"$f":"CntyDataLink!$L$120","v":219},{"$f":"CntyDataLink!$M$120","v":113.00442469213318},0.1906005221932115,null,{"$f":"StatisticallySignificantCalcs!$A$88","v":"N"},{"$f":"StatisticallySignificantCalcs!$J$88","v":"N"}]
[null,"$75,000 to $99,999",null,null,{"$f":"CntyDataLinkPrior10YearEstimate!$N$120","v":194},{"$f":"CntyDataLinkPrior10YearEstimate!$O$120","v":71},0.17336907953529937,null,{"$f":"CntyDataLinkPrior5YearEstimates!$N$120","v":138},{"$f":"CntyDataLinkPrior5YearEstimates!$O$120","v":68},0.1196877710320902,{"$f":"CntyDataLink!$N$120","v":101},{"$f":"CntyDataLink!$O$120","v":88},8.7902523933855531E-2,null,{"$f":"StatisticallySignificantCalcs!$A$89","v":"N"},{"$f":"StatisticallySignificantCalcs!$J$89","v":"N"}]
[null,"$100,000 to $149,999",null,null,{"$f":"CntyDataLinkPrior10YearEstimate!$P$120","v":327},{"$f":"CntyDataLinkPrior10YearEstimate!$Q$120","v":85.632937588290176},0.29222520107238603,null,{"$f":"CntyDataLinkPrior5YearEstimates!$P$120","v":411},{"$f":"CntyDataLinkPrior5YearEstimates!$Q$120","v":141.99295757184581},0.35646140503035562,{"$f":"CntyDataLink!$P$120","v":152},{"$f":"CntyDataLink!$Q$120","v":90.354855984612144},0.13228894691035684,null,{"$f":"StatisticallySignificantCalcs!$A$90","v":"Y"},{"$f":"StatisticallySignificantCalcs!$J$90","v":"N"}]
[null,"$150,000 to $199,999",null,null,{"$f":"CntyDataLinkPrior10YearEstimate!$R$120","v":77},{"$f":"CntyDataLinkPrior10YearEstimate!$S$120","v":46},6.8811438784629128E-2,null,{"$f":"CntyDataLinkPrior5YearEstimates!$R$120","v":65},{"$f":"CntyDataLinkPrior5YearEstimates!$S$120","v":37},5.6374674761491758E-2,{"$f":"CntyDataLink!$R$120","v":283},{"$f":"CntyDataLink!$S$120","v":156},0.24630113141862489,null,{"$f":"StatisticallySignificantCalcs!$A$91","v":"Y"},{"$f":"StatisticallySignificantCalcs!$J$91","v":"N"}]
[null,"Greater than $200,000",null,null,{"$f":"CntyDataLinkPrior10YearEstimate!$T$120","v":80},{"$f":"CntyDataLinkPrior10YearEstimate!$U$120","v":38},7.1492403932082213E-2,null,{"$f":"CntyDataLinkPrior5YearEstimates!$T$120","v":140},{"$f":"CntyDataLinkPrior5YearEstimates!$U$120","v":72},0.12142237640936687,{"$f":"CntyDataLink!$T$120","v":216},{"$f":"CntyDataLink!$U$120","v":152},0.18798955613577023,null,{"$f":"StatisticallySignificantCalcs!$A$92","v":"N"},{"$f":"StatisticallySignificantCalcs!$J$92","v":"N"}]
[null,null,null,null,491895,null,null,null,491895]
[null,null,"Median HH Income",null,{"$f":"CntyDataLinkPrior10YearEstimate!$BV$128","v":89157},{"$f":"CntyDataLinkPrior10YearEstimate!$BW$128","v":7657},null,null,{"$f":"CntyDataLinkPrior5YearEstimates!$BV$128","v":104962},{"$f":"CntyDataLinkPrior5YearEstimates!$BW$128","v":25696},null,{"$f":"CntyDataLink!$BV$128","v":114132},{"$f":"CntyDataLink!$BW$128","v":45553}]
[null,null,"HH Income in 2022 Dollars",null,{"$f":"($E$50)*E41","v":113645.13809158778},{"$f":"($E$50)*F41","v":9760.0953639903491},null,null,{"$f":"($E$49)*I41","v":125316.80038348564},{"$f":"($E$49)*J41","v":30679.107702349869}]
[]
[null,{"$f":"\"Source:  \"& \" \"&E28&\", \"&I28&\" and \"&L28& \"  American Community Survey; Tables B25119; B19001\"","v":"Source:   2007-2011, 2013-2017 and 2018-2022  American Community Survey; Tables B25119; B19001"}]
[]
[null,"Data from the American Community Survey are estimates."]
[]
[null,"CPI Adjustment Factor"]
[null,"2013-2017",null,null,1.1939254242819843]
[null,"2007-2011",null,null,1.2746631009521157]

{"sheet":"HHIncomeByAge","index":12,"n_rows":80,"n_cols":22,"rows_kept":80,"cut":false,"hidden":true,"merged":[[21,6,21,15]]}
[]
[null,null,{"$f":"CntyDataLink!A55","v":"Grantham"}]
[null,null,"INCOME CHARACTERISTICS"]
[]
[]
[]
[]
[]
[]
[]
[]
[]
[]
[]
[]
[]
[]
[]
[]
[]
[null,null,{"$f":"HHIncomeByAge!C2","v":"Grantham"},"Household Income in 2022"]
[null,null,null,null,null,null,"Households by Age of Householder "]
[null,null,null,"Households","MOE Households",null,"Under 25","MOE Under 25",null,"25 to 44","MOE 25 to 44",null,"45 to 64","MOE 45 to 64",null,"65 & Over","MOE 65 & Over",null,"Family Households","Margin of Error Family HH","Non-Family HH","Margin of Error Non-Family HH"]
[null,null,"Less Than $10,000",{"$f":"CntyDataLink!$D$116","v":0},{"$f":"CntyDataLink!$E$116","v":12},null,{"$f":"CntyDataLink!$AN$116","v":0},{"$f":"CntyDataLink!$AO$116","v":12},null,{"$f":"CntyDataLink!$BV$116","v":0},{"$f":"CntyDataLink!$BW$116","v":12},null,{"$f":"CntyDataLink!$DD$116","v":0},{"$f":"CntyDataLink!$DE$116","v":12},null,{"$f":"CntyDataLink!$EL$116","v":0},{"$f":"CntyDataLink!$EM$116","v":12},null,{"$f":"CntyDataLink!$D$160","v":0},{"$f":"CntyDataLink!$E$160","v":12},{"$f":"CntyDataLink!$AN$160","v":0},{"$f":"CntyDataLink!$AO$160","v":12}]
[null,null,"$10,000 to $14,999",{"$f":"CntyDataLink!$F$116","v":0},{"$f":"CntyDataLink!$G$116","v":12},null,{"$f":"CntyDataLink!$AP$116","v":0},{"$f":"CntyDataLink!$AQ$116","v":12},null,{"$f":"CntyDataLink!$BX$116","v":0},{"$f":"CntyDataLink!$BY$116","v":12},null,{"$f":"CntyDataLink!$DF$116","v":0},{"$f":"CntyDataLink!$DG$116","v":12},null,{"$f":"CntyDataLink!$EN$116","v":0},{"$f":"CntyDataLink!$EO$116","v":12},null,{"$f":"CntyDataLink!$F$160","v":0},{"$f":"CntyDataLink!$G$160","v":12},{"$f":"CntyDataLink!$AP$160","v":0},{"$f":"CntyDataLink!$AQ$160","v":12}]
[null,null,"$15,000 to $19,999",{"$f":"CntyDataLink!$H$116","v":50},{"$f":"CntyDataLink!$I$116","v":76},null,{"$f":"CntyDataLink!$AR$116","v":0},{"$f":"CntyDataLink!$AS$116","v":12},null,{"$f":"CntyDataLink!$BZ$116","v":0},{"$f":"CntyDataLink!$CA$116","v":12},null,{"$f":"CntyDataLink!$DH$116","v":0},{"$f":"CntyDataLink!$DI$116","v":12},null,{"$f":"CntyDataLink!$EP$116","v":50},{"$f":"CntyDataLink!$EQ$116","v":76},null,{"$f":"CntyDataLink!$H$160","v":0},{"$f":"CntyDataLink!$I$160","v":12},{"$f":"CntyDataLink!$AR$160","v":50},{"$f":"CntyDataLink!$AS$160","v":76}]
[null,null,"$20,000 to $24,999",{"$f":"CntyDataLink!$J$116","v":0},{"$f":"CntyDataLink!$K$116","v":12},null,{"$f":"CntyDataLink!$AT$116","v":0},{"$f":"CntyDataLink!$AU$116","v":12},null,{"$f":"CntyDataLink!$CB$116","v":0},{"$f":"CntyDataLink!$CC$116","v":12},null,{"$f":"CntyDataLink!$DJ$116","v":0},{"$f":"CntyDataLink!$DK$116","v":12},null,{"$f":"CntyDataLink!$ER$116","v":0},{"$f":"CntyDataLink!$ES$116","v":12},null,{"$f":"CntyDataLink!$J$160","v":0},{"$f":"CntyDataLink!$K$160","v":12},{"$f":"CntyDataLink!$AT$160","v":0},{"$f":"CntyDataLink!$AU$160","v":12}]
[null,null,"$25,000 to $29,999",{"$f":"CntyDataLink!$L$116","v":0},{"$f":"CntyDataLink!$M$116","v":12},null,{"$f":"CntyDataLink!$AV$116","v":0},{"$f":"CntyDataLink!$AW$116","v":12},null,{"$f":"CntyDataLink!$CD$116","v":0},{"$f":"CntyDataLink!$CE$116","v":12},null,{"$f":"CntyDataLink!$DL$116","v":0},{"$f":"CntyDataLink!$DM$116","v":12},null,{"$f":"CntyDataLink!$ET$116","v":0},{"$f":"CntyDataLink!$EU$116","v":12},null,{"$f":"CntyDataLink!$L$160","v":0},{"$f":"CntyDataLink!$M$160","v":12},{"$f":"CntyDataLink!$AV$160","v":0},{"$f":"CntyDataLink!$AW$160","v":12}]
[null,null,"$30,000 to $34,999",{"$f":"CntyDataLink!$N$116","v":91},{"$f":"CntyDataLink!$O$116","v":92},null,{"$f":"CntyDataLink!$AX$116","v":0},{"$f":"CntyDataLink!$AY$116","v":12},null,{"$f":"CntyDataLink!$CF$116","v":0},{"$f":"CntyDataLink!$CG$116","v":12},null,{"$f":"CntyDataLink!$DN$116","v":20},{"$f":"CntyDataLink!$DO$116","v":30},null,{"$f":"CntyDataLink!$EV$116","v":71},{"$f":"CntyDataLink!$EW$116","v":87},null,{"$f":"CntyDataLink!$N$160","v":55},{"$f":"CntyDataLink!$O$160","v":63},{"$f":"CntyDataLink!$AX$160","v":36},{"$f":"CntyDataLink!$AY$160","v":63}]
[null,null,"$35,000 to $39,999",{"$f":"CntyDataLink!$P$116","v":0},{"$f":"CntyDataLink!$Q$116","v":12},null,{"$f":"CntyDataLink!$AZ$116","v":0},{"$f":"CntyDataLink!$BA$116","v":12},null,{"$f":"CntyDataLink!$CH$116","v":0},{"$f":"CntyDataLink!$CI$116","v":12},null,{"$f":"CntyDataLink!$DP$116","v":0},{"$f":"CntyDataLink!$DQ$116","v":12},null,{"$f":"CntyDataLink!$EX$116","v":0},{"$f":"CntyDataLink!$EY$116","v":12},null,{"$f":"CntyDataLink!$P$160","v":0},{"$f":"CntyDataLink!$Q$160","v":12},{"$f":"CntyDataLink!$AZ$160","v":0},{"$f":"CntyDataLink!$BA$160","v":12}]
[null,null,"$40,000 to $44,999",{"$f":"CntyDataLink!$R$116","v":37},{"$f":"CntyDataLink!$S$116","v":44},null,{"$f":"CntyDataLink!$BB$116","v":0},{"$f":"CntyDataLink!$BC$116","v":12},null,{"$f":"CntyDataLink!$CJ$116","v":0},{"$f":"CntyDataLink!$CK$116","v":12},null,{"$f":"CntyDataLink!$DR$116","v":37},{"$f":"CntyDataLink!$DS$116","v":44},null,{"$f":"CntyDataLink!$EZ$116","v":0},{"$f":"CntyDataLink!$FA$116","v":12},null,{"$f":"CntyDataLink!$R$160","v":37},{"$f":"CntyDataLink!$S$160","v":44},{"$f":"CntyDataLink!$BB$160","v":0},{"$f":"CntyDataLink!$BC$160","v":12}]
[null,null,"$45,000 to $49,999",{"$f":"CntyDataLink!$T$116","v":0},{"$f":"CntyDataLink!$U$116","v":12},null,{"$f":"CntyDataLink!$BD$116","v":0},{"$f":"CntyDataLink!$BE$116","v":12},null,{"$f":"CntyDataLink!$CL$116","v":0},{"$f":"CntyDataLink!$CM$116","v":12},null,{"$f":"CntyDataLink!$DT$116","v":0},{"$f":"CntyDataLink!$DU$116","v":12},null,{"$f":"CntyDataLink!$FB$116","v":0},{"$f":"CntyDataLink!$FC$116","v":12},null,{"$f":"CntyDataLink!$T$160","v":0},{"$f":"CntyDataLink!$U$160","v":12},{"$f":"CntyDataLink!$BD$160","v":0},{"$f":"CntyDataLink!$BE$160","v":12}]
[null,null,"$50,000 to $59,999",{"$f":"CntyDataLink!$V$116","v":131},{"$f":"CntyDataLink!$W$116","v":91},null,{"$f":"CntyDataLink!$BF$116","v":0},{"$f":"CntyDataLink!$BG$116","v":12},null,{"$f":"CntyDataLink!$CN$116","v":0},{"$f":"CntyDataLink!$CO$116","v":12},null,{"$f":"CntyDataLink!$DV$116","v":0},{"$f":"CntyDataLink!$DW$116","v":12},null,{"$f":"CntyDataLink!$FD$116","v":131},{"$f":"CntyDataLink!$FE$116","v":91},null,{"$f":"CntyDataLink!$V$160","v":77},{"$f":"CntyDataLink!$W$160","v":78},{"$f":"CntyDataLink!$BF$160","v":54},{"$f":"CntyDataLink!$BG$160","v":46}]
[null,null,"$60,000 to $74,999",{"$f":"CntyDataLink!$X$116","v":88},{"$f":"CntyDataLink!$Y$116","v":67},null,{"$f":"CntyDataLink!$BH$116","v":13},{"$f":"CntyDataLink!$BI$116","v":22},null,{"$f":"CntyDataLink!$CP$116","v":18},{"$f":"CntyDataLink!$CQ$116","v":27},null,{"$f":"CntyDataLink!$DX$116","v":0},{"$f":"CntyDataLink!$DY$116","v":12},null,{"$f":"CntyDataLink!$FF$116","v":57},{"$f":"CntyDataLink!$FG$116","v":58},null,{"$f":"CntyDataLink!$X$160","v":75},{"$f":"CntyDataLink!$Y$160","v":64},{"$f":"CntyDataLink!$BH$160","v":13},{"$f":"CntyDataLink!$BI$160","v":22}]
[null,null,"$75,000 to $99,999",{"$f":"CntyDataLink!$Z$116","v":101},{"$f":"CntyDataLink!$AA$116","v":88},null,{"$f":"CntyDataLink!$BJ$116","v":0},{"$f":"CntyDataLink!$BK$116","v":12},null,{"$f":"CntyDataLink!$CR$116","v":0},{"$f":"CntyDataLink!$CS$116","v":12},null,{"$f":"CntyDataLink!$DZ$116","v":101},{"$f":"CntyDataLink!$EA$116","v":88},null,{"$f":"CntyDataLink!$FH$116","v":0},{"$f":"CntyDataLink!$FI$116","v":12},null,{"$f":"CntyDataLink!$Z$160","v":101},{"$f":"CntyDataLink!$AA$160","v":88},{"$f":"CntyDataLink!$BJ$160","v":0},{"$f":"CntyDataLink!$BK$160","v":12}]
[null,null,"$100,000 to $124,999",{"$f":"CntyDataLink!$AB$116","v":106},{"$f":"CntyDataLink!$AC$116","v":80},null,{"$f":"CntyDataLink!$BL$116","v":0},{"$f":"CntyDataLink!$BM$116","v":12},null,{"$f":"CntyDataLink!$CT$116","v":17},{"$f":"CntyDataLink!$CU$116","v":26},null,{"$f":"CntyDataLink!$EB$116","v":0},{"$f":"CntyDataLink!$EC$116","v":12},null,{"$f":"CntyDataLink!$FJ$116","v":89},{"$f":"CntyDataLink!$FK$116","v":72},null,{"$f":"CntyDataLink!$AB$160","v":106},{"$f":"CntyDataLink!$AC$160","v":80},{"$f":"CntyDataLink!$BL$160","v":0},{"$f":"CntyDataLink!$BM$160","v":12}]
[null,null,"$125,000 to $149,999",{"$f":"CntyDataLink!$AD$116","v":46},{"$f":"CntyDataLink!$AE$116","v":42},null,{"$f":"CntyDataLink!$BN$116","v":0},{"$f":"CntyDataLink!$BO$116","v":12},null,{"$f":"CntyDataLink!$CV$116","v":0},{"$f":"CntyDataLink!$CW$116","v":12},null,{"$f":"CntyDataLink!$ED$116","v":32},{"$f":"CntyDataLink!$EE$116","v":36},null,{"$f":"CntyDataLink!$FL$116","v":14},{"$f":"CntyDataLink!$FM$116","v":21},null,{"$f":"CntyDataLink!$AD$160","v":46},{"$f":"CntyDataLink!$AE$160","v":42},{"$f":"CntyDataLink!$BN$160","v":0},{"$f":"CntyDataLink!$BO$160","v":12}]
[null,null,"$150,000 to $199,999",{"$f":"CntyDataLink!$AF$116","v":283},{"$f":"CntyDataLink!$AG$116","v":156},null,{"$f":"CntyDataLink!$BP$116","v":0},{"$f":"CntyDataLink!$BQ$116","v":12},null,{"$f":"CntyDataLink!$CX$116","v":69},{"$f":"CntyDataLink!$CY$116","v":73},null,{"$f":"CntyDataLink!$EF$116","v":214},{"$f":"CntyDataLink!$EG$116","v":141},null,{"$f":"CntyDataLink!$FN$116","v":0},{"$f":"CntyDataLink!$FO$116","v":12},null,{"$f":"CntyDataLink!$AF$160","v":283},{"$f":"CntyDataLink!$AG$160","v":156},{"$f":"CntyDataLink!$BP$160","v":0},{"$f":"CntyDataLink!$BQ$160","v":12}]
[null,null,"$200,000 or More",{"$f":"CntyDataLink!$AH$116","v":216},{"$f":"CntyDataLink!$AI$116","v":152},null,{"$f":"CntyDataLink!$BR$116","v":0},{"$f":"CntyDataLink!$BS$116","v":12},null,{"$f":"CntyDataLink!$CZ$116","v":105},{"$f":"CntyDataLink!$DA$116","v":122},null,{"$f":"CntyDataLink!$EH$116","v":111},{"$f":"CntyDataLink!$EI$116","v":87},null,{"$f":"CntyDataLink!$FP$116","v":0},{"$f":"CntyDataLink!$FQ$116","v":12},null,{"$f":"CntyDataLink!$AH$160","v":199},{"$f":"CntyDataLink!$AI$160","v":153},{"$f":"CntyDataLink!$BR$160","v":17},{"$f":"CntyDataLink!$BS$160","v":26}]
[]
[null,null,"Total Households",{"$f":"CntyDataLink!$B$116","v":1149},{"$f":"CntyDataLink!$C$116","v":128},null,{"$f":"CntyDataLink!$AL$116","v":13},{"$f":"CntyDataLink!$AM$116","v":22},null,{"$f":"CntyDataLink!$BT$116","v":209},{"$f":"CntyDataLink!$BU$116","v":136},null,{"$f":"CntyDataLink!$DB$116","v":515},{"$f":"CntyDataLink!$DC$116","v":150},null,{"$f":"CntyDataLink!$EJ$116","v":412},{"$f":"CntyDataLink!$EK$116","v":141},null,{"$f":"CntyDataLink!$B$160","v":979},{"$f":"CntyDataLink!$C$160","v":125},{"$f":"CntyDataLink!$AL$160","v":170},{"$f":"CntyDataLink!$AM$160","v":118}]
[null,null,"Median Household Inc ",{"$f":"CntyDataLink!$FR$116","v":114132},{"$f":"CntyDataLink!$FS$116","v":45553},null,{"$f":"CntyDataLink!$FT$116","v":"-"},{"$f":"CntyDataLink!$FU$116","v":"**"},null,{"$f":"CntyDataLink!$FV$116","v":237552},{"$f":"CntyDataLink!$FW$116","v":133359},null,{"$f":"CntyDataLink!$FX$116","v":175687},{"$f":"CntyDataLink!$FY$116","v":26891},null,{"$f":"CntyDataLink!$FZ$116","v":58991},{"$f":"CntyDataLink!$GA$116","v":11528},null,{"$f":"CntyDataLink!$AJ$160","v":128828},{"$f":"CntyDataLink!$AK$160","v":72833},{"$f":"CntyDataLink!BT$160","v":"-"},{"$f":"CntyDataLink!$BU$160","v":"**"}]
[]
[null,null,"Source: 2018-2022 American Community Survey Table B19001; B19037; 19101; B19102; B19112; B19113; B19049"]
[null,null,"Data from the American Community Survey are estimates"]
[]
[null,null,{"$f":"C2","v":"Grantham"}]
[null,null,"INCOME CHARACTERISTICS"]
[]
[]
[]
[]
[]
[]
[]
[]
[]
[]
[]
[]
[]
[]
[]
[]
[]
[]
[]
[]
[]
[]
[]
[]
[]
[]
[]
[]
[]
[]
[]
[null,null,"Source: 2018-2022 American Community Survey Table B19001; B19102",null,null,null,null,null,null,null,null,null,null,null,null,"Data from the American Community Survey are estimates"]

{"sheet":"HHIncomeByTenure","index":13,"n_rows":64,"n_cols":17,"rows_kept":64,"cut":false,"hidden":true,"merged":[[2,3,2,5],[58,3,58,6],[58,8,58,11],[58,13,58,16],[59,3,59,6],[59,8,59,11],[59,13,59,16],[63,3,63,4],[63,8,63,9],[63,13,63,14],[61,3,61,4],[61,8,61,9],[61,13,61,14],[62,3,62,4],[62,8,62,9],[62,13,62,14]]}
[]
[null,null,null,{"$f":"CntyDataLink!A80","v":"Grantham"}]
[null,null,null,"INCOME CHARACTERISTICS"]
[]
[]
[]
[]
[]
[]
[]
[]
[]
[]
[]
[]
[]
[]
[]
[]
[]
[]
[]
[]
[]
[]
[]
[]
[null,null,null,null,{"$f":"D2","v":"Grantham"}]
[null,null,null,null,"Household Income By Tenure"]
[null,null,null,null,null,"2022 Household Income 1",null,"Occupied Housing Units","MOE Occupied Housing Units","Owner Occupied Housing Units","MOE Owner Occupied Housing Units","Renter Occupied Housing Units","MOE Renter Occupied Housing Units"]
[]
[null,null,null,null,null,"Total",null,{"$f":"CntyDataLink!$B$128","v":1149},{"$f":"CntyDataLink!$C$128","v":128},{"$f":"CntyDataLink!$D$128","v":1091},{"$f":"CntyDataLink!$E$128","v":138},{"$f":"CntyDataLink!$AB$128","v":58},{"$f":"CntyDataLink!$AC$128","v":72}]
[null,null,null,4999,{"$f":"VALUE(RIGHT(F33,7))","v":5000},"Less Than $5,000",null,{"$f":"CntyDataLink!$AZ$128","v":0},{"$f":"CntyDataLink!$BA$128","v":16.970562748477139},{"$f":"CntyDataLink!$F$128","v":0},{"$f":"CntyDataLink!$G$128","v":12},{"$f":"CntyDataLink!$AD$128","v":0},{"$f":"CntyDataLink!$AE$128","v":12}]
[null,null,{"$f":"VALUE(RIGHT($F33,7))","v":5000},4999,10000,"$5,000 to $10,000",null,{"$f":"CntyDataLink!$BB$128","v":0},{"$f":"CntyDataLink!$BC$128","v":16.970562748477139},{"$f":"CntyDataLink!$H$128","v":0},{"$f":"CntyDataLink!$I$128","v":12},{"$f":"CntyDataLink!$AF$128","v":0},{"$f":"CntyDataLink!$AG$128","v":12}]
[null,null,10000,4999,15000,"$10,000 to $15,000",null,{"$f":"CntyDataLink!$BD$128","v":0},{"$f":"CntyDataLink!$BE$128","v":16.970562748477139},{"$f":"CntyDataLink!$J$128","v":0},{"$f":"CntyDataLink!$K$128","v":12},{"$f":"CntyDataLink!$AH$128","v":0},{"$f":"CntyDataLink!$AI$128","v":12}]
[null,null,15000,4999,20000,"$15,000 to $20,000",null,{"$f":"CntyDataLink!$BF$128","v":50},{"$f":"CntyDataLink!$BG$128","v":76.941536246685374},{"$f":"CntyDataLink!$L$128","v":50},{"$f":"CntyDataLink!$M$128","v":76},{"$f":"CntyDataLink!$AJ$128","v":0},{"$f":"CntyDataLink!$AK$128","v":12}]
[null,null,20000,4999,25000,"$20,000 to $25,000",null,{"$f":"CntyDataLink!$BH$128","v":0},{"$f":"CntyDataLink!$BI$128","v":16.970562748477139},{"$f":"CntyDataLink!$N$128","v":0},{"$f":"CntyDataLink!$O$128","v":12},{"$f":"CntyDataLink!$AL$128","v":0},{"$f":"CntyDataLink!$AM$128","v":12}]
[null,null,25000,9999,35000,"$25,000 to $35,000",null,{"$f":"CntyDataLink!$BJ$128","v":91},{"$f":"CntyDataLink!$BK$128","v":92.779308037945611},{"$f":"CntyDataLink!$P$128","v":91},{"$f":"CntyDataLink!$Q$128","v":92},{"$f":"CntyDataLink!$AN$128","v":0},{"$f":"CntyDataLink!$AO$128","v":12}]
[null,null,35000,14999,50000,"$35,000 to $50,000",null,{"$f":"CntyDataLink!$BL$128","v":37},{"$f":"CntyDataLink!$BM$128","v":45.607017003965517},{"$f":"CntyDataLink!$R$128","v":37},{"$f":"CntyDataLink!$S$128","v":44},{"$f":"CntyDataLink!$AP$128","v":0},{"$f":"CntyDataLink!$AQ$128","v":12}]
[null,null,50000,24999,75000,"$50,000 to $75,000",null,{"$f":"CntyDataLink!$BN$128","v":219},{"$f":"CntyDataLink!$BO$128","v":107.28000745712129},{"$f":"CntyDataLink!$T$128","v":206},{"$f":"CntyDataLink!$U$128","v":105},{"$f":"CntyDataLink!$AR$128","v":13},{"$f":"CntyDataLink!$AS$128","v":22}]
[null,null,75000,24999,100000,"$75,000 to $100,000",null,{"$f":"CntyDataLink!$BP$128","v":101},{"$f":"CntyDataLink!$BQ$128","v":88.814413244698073},{"$f":"CntyDataLink!$V$128","v":101},{"$f":"CntyDataLink!$W$128","v":88},{"$f":"CntyDataLink!$AT$128","v":0},{"$f":"CntyDataLink!$AU$128","v":12}]
[null,null,100000,49999,150000,"$100,000 to $150,000",null,{"$f":"CntyDataLink!$BR$128","v":152},{"$f":"CntyDataLink!$BS$128","v":84.852813742385706},{"$f":"CntyDataLink!$X$128","v":152},{"$f":"CntyDataLink!$Y$128","v":84},{"$f":"CntyDataLink!$AV$128","v":0},{"$f":"CntyDataLink!$AW$128","v":12}]
[null,null,150000,null,null,"$150,000 and More",null,{"$f":"CntyDataLink!$BT$128","v":499},{"$f":"CntyDataLink!$BU$128","v":179.20379460268134},{"$f":"CntyDataLink!$Z$128","v":454},{"$f":"CntyDataLink!$AA$128","v":167},{"$f":"CntyDataLink!$AX$128","v":45},{"$f":"CntyDataLink!$AY$128","v":65}]
[]
[]
[null,null,null,null,null,"Median Household Income 2",null,{"$f":"CntyDataLink!$BV$128","v":114132},{"$f":"CntyDataLink!$BW$128","v":45553},{"$f":"CntyDataLink!$BX$128","v":113021},{"$f":"CntyDataLink!$BY$128","v":34366},{"$f":"CntyDataLink!$BZ$128","v":"-"},{"$f":"CntyDataLink!$CA$128","v":"**"}]
[]
[]
[null,null,null,null,null,"Data from the American Community Survey are estimates"]
[]
[null,null,null,"Source:",1,"2018-2022 American Community Survey Table B25118;  2022 Inflation Adjusted dollars"]
[null,null,null,null,2,"2018-2022 American Community Survey Table B25119;  2022 Inflation Adjusted dollars"]
[]
[]
[]
[null,null,null,"HOUSEHOLD INCOME IN THE PAST 12 MONTHS BY PERCENT OF MEDIAN THRESHOLD"]
[]
[]
[null,null,null,"All Occupied Housing Units",null,null,null,null,"Owner Occupied Households",null,null,null,null,"Renter Occupied Households"]
[]
[null,null,null,"HOUSEHOLD INCOME",null,"Estimate","Margin Of Error",null,"HOUSEHOLD INCOME",null,"Estimate","Margin Of Error",null,"HOUSEHOLD INCOME",null,"Estimate","Margin Of Error"]
[null,null,{"$f":"$H$46*0.3","v":34239.599999999999},"30% of Median Household Income",null,{"$f":"IF($C$62<$C$36,((($C$62-$C$35)/$D$35)*$H$35)+SUM($H$33:$H$34),IF($C$62<$C$37,((($C$62-$C$36)/$D$36)*$H$36)+SUM($H$33:$H$35),IF($C$62<$C$38,((($C$62-$C$37)/$D$37)*$H$37)+SUM($H$33:$H$36),IF($C$62<$C$39,((($C$62-$C$38)/$D$38)*$H$38)+SUM($H$33:$H$37),IF($C$62<$C$40,((($C$62-$C$39)/$D$39)*$H$39)+SUM($H$33:$H$38),IF($C$62<$C$41,((($C$62-$C$40)/$D$40)*$H$40)+SUM($H$33:$H$39),IF($C$62<$C$42,((($C$62-$C$41)/$D$41)*$H$41)+SUM($H$33:$H$40),\"False\")))))))","v":134.08876887688768},{"$f":"IF($C$62<$C$36,((($C$62-$C$35)/$D$35)*$I$35)+SQRT(SUM(($I$33^2),($I$34^2))),IF($C$62<$C$37,((($C$62-$C$36)/$D$36)*$I$36)+SQRT(SUM(($I$33^2),($I$34^2),($I$35^2))),IF($C$62<$C$38,((($C$62-$C$37)/$D$37)*$I$37)+SQRT(SUM(($I$33^2),($I$34^2),($I$35^2),($I$36^2))),IF($C$62<$C$39,((($C$62-$C$38)/$D$38)*$I$38)+SQRT(SUM(($I$33^2),($I$34^2),($I$35^2),($I$36^2),($I$37^2))),IF($C$62<$C$40,((($C$62-$C$39)/$D$39)*$I$39)+SQRT(SUM(($I$33^2),($I$34^2),($I$35^2),($I$36^2),($I$37^2),($I$38^2))),IF($C$62<$C$41,((($C$62-$C$40)/$D$40)*$I$40)+SQRT(SUM(($I$33^2),($I$34^2),($I$35^2),($I$36^2),($I$37^2),($I$38^2),($I$39^2))),IF($C$62<$C$42,((($C$62-$C$41)/$D$41)*$I$41)+SQRT((($I$33^2)+($I$34^2)+($I$35^2)+($I$36^2)+($I$37^2)+($I$38^2)+($I$39^2)+($I$40^2))),\"False\")))))))","v":169.82812691552965},{"$f":"$J$46*0.3","v":33906.299999999996},"30% of Median Household Income",null,{"$f":"IF($H$62<$C$36,((($H$62-$C$35)/$D$35)*$J$35)+SUM($J$33:$J$34),IF($H$62<$C$37,((($H$62-$C$36)/$D$36)*$J$36)+SUM($J$33:$J$35),IF($H$62<$C$38,((($H$62-$C$37)/$D$37)*$J$37)+SUM($J$33:$J$36),IF($H$62<$C$39,((($H$62-$C$38)/$D$38)*$J$38)+SUM($J$33:$J$37),IF($H$62<$C$40,((($H$62-$C$39)/$D$39)*$J$39)+SUM($J$33:$J$38),IF($H$62<$C$41,((($H$62-$C$40)/$D$40)*$J$40)+SUM($J$33:$J$39),IF($H$62<$C$42,((($H$62-$C$41)/$D$41)*$J$41)+SUM($J$33:$J$40),\"False\")))))))","v":131.05543554355432},{"$f":"IF($H$62<$C$36,((($H$62-$C$35)/$D$35)*$K$35)+SQRT(SUM(($K$33^2),($K$34^2))),IF($H$62<$C$37,((($H$62-$C$36)/$D$36)*$K$36)+SQRT(SUM(($K$33^2),($K$34^2),($K$35^2))),IF($H$62<$C$38,((($H$62-$C$37)/$D$37)*$K$37)+SQRT(SUM(($K$33^2),($K$34^2),($K$35^2),($K$36^2))),IF($H$62<$C$39,((($H$62-$C$38)/$D$38)*$K$38)+SQRT(SUM(($K$33^2),($K$34^2),($K$35^2),($K$36^2),($K$37^2))),IF($H$62<$C$40,((($H$62-$C$39)/$D$39)*$K$39)+SQRT(SUM(($K$33^2),($K$34^2),($K$35^2),($K$36^2),($K$37^2),($K$38^2))),IF($H$62<$C$41,((($H$62-$C$40)/$D$40)*$K$40)+SQRT(SUM(($K$33^2),($K$34^2),($K$35^2),($K$36^2),($K$37^2),($K$38^2),($K$39^2))),IF($H$62<$C$42,((($H$62-$C$41)/$D$41)*$K$41)+SQRT((($K$33^2)+($K$34^2)+($K$35^2)+($K$36^2)+($K$37^2)+($K$38^2)+($K$39^2)+($K$40^2))),\"False\")))))))","v":161.64558999614661},{"$f":"$L$46*0.3","v":{"$error":"#VALUE!"}},"30% of Median Household Income",null,{"$f":"IF($M$62<$C$36,((($M$62-$C$35)/$D$35)*$L$35)+SUM($L$33:$L$34),IF($M$62<$C$37,((($M$62-$C$36)/$D$36)*$L$36)+SUM($L$33:$L$35),IF($M$62<$C$38,((($M$62-$C$37)/$D$37)*$L$37)+SUM($L$33:$L$36),IF($M$62<$C$39,((($M$62-$C$38)/$D$38)*$L$38)+SUM($L$33:$L$37),IF($M$62<$C$40,((($M$62-$C$39)/$D$39)*$L$39)+SUM($L$33:$L$38),IF($M$62<$C$41,((($M$62-$C$40)/$D$40)*$L$40)+SUM($L$33:$L$39),IF($M$62<$C$42,((($M$62-$C$41)/$D$41)*$L$41)+SUM($L$33:$L$40),\"False\")))))))","v":{"$error":"#VALUE!"}},{"$f":"IF($M$62<$C$36,((($M$62-$C$35)/$D$35)*$M$35)+SQRT(SUM(($M$33^2),($M$34^2))),IF($M$62<$C$37,((($M$62-$C$36)/$D$36)*$M$36)+SQRT(SUM(($M$33^2),($M$34^2),($M$35^2))),IF($M$62<$C$38,((($M$62-$C$37)/$D$37)*$M$37)+SQRT(SUM(($M$33^2),($M$34^2),($M$35^2),($M$36^2))),IF($M$62<$C$39,((($M$62-$C$38)/$D$38)*$M$38)+SQRT(SUM(($M$33^2),($M$34^2),($M$35^2),($M$36^2),($M$37^2))),IF($M$62<$C$40,((($M$62-$C$39)/$D$39)*$M$39)+SQRT(SUM(($M$33^2),($M$34^2),($M$35^2),($M$36^2),($M$37^2),($M$38^2))),IF($M$62<$C$41,((($M$62-$C$40)/$D$40)*$M$40)+SQRT(SUM(($M$33^2),($M$34^2),($M$35^2),($M$36^2),($M$37^2),($M$38^2),($M$39^2))),IF($M$62<$C$42,((($M$62-$C$41)/$D$41)*$M$41)+SQRT((($M$33^2)+($M$34^2)+($M$35^2)+($M$36^2)+($M$37^2)+($M$38^2)+($M$39^2)+($M$40^2))),\"False\")))))))","v":{"$error":"#VALUE!"}}]
[490,null,{"$f":"$H$46*0.5","v":57066},"50% of Median Household Income",null,{"$f":"IF($C$63<$C$36,((($C$63-$C$35)/$D$35)*$H$35)+SUM($H$33:$H$34),IF($C$63<$C$37,((($C$63-$C$36)/$D$36)*$H$36)+SUM($H$33:$H$35),IF($C$63<$C$38,((($C$63-$C$37)/$D$37)*$H$37)+SUM($H$33:$H$36),IF($C$63<$C$39,((($C$63-$C$38)/$D$38)*$H$38)+SUM($H$33:$H$37),IF($C$63<$C$40,((($C$63-$C$39)/$D$39)*$H$39)+SUM($H$33:$H$38),IF($C$63<$C$41,((($C$63-$C$40)/$D$40)*$H$40)+SUM($H$33:$H$39),IF($C$63<$C$42,((($C$63-$C$41)/$D$41)*$H$41)+SUM($H$33:$H$40),\"False\")))))))","v":239.90063602544103},{"$f":"IF($C$63<$C$36,((($C$63-$C$35)/$D$35)*$I$35)+SQRT(SUM(($I$33^2),($I$34^2))),IF($C$63<$C$37,((($C$63-$C$36)/$D$36)*$I$36)+SQRT(SUM(($I$33^2),($I$34^2),($I$35^2))),IF($C$63<$C$38,((($C$63-$C$37)/$D$37)*$I$37)+SQRT(SUM(($I$33^2),($I$34^2),($I$35^2),($I$36^2))),IF($C$63<$C$39,((($C$63-$C$38)/$D$38)*$I$38)+SQRT(SUM(($I$33^2),($I$34^2),($I$35^2),($I$36^2),($I$37^2))),IF($C$63<$C$40,((($C$63-$C$39)/$D$39)*$I$39)+SQRT(SUM(($I$33^2),($I$34^2),($I$35^2),($I$36^2),($I$37^2),($I$38^2))),IF($C$63<$C$41,((($C$63-$C$40)/$D$40)*$I$40)+SQRT(SUM(($I$33^2),($I$34^2),($I$35^2),($I$36^2),($I$37^2),($I$38^2),($I$39^2))),IF($C$63<$C$42,((($C$63-$C$41)/$D$41)*$I$41)+SQRT((($I$33^2)+($I$34^2)+($I$35^2)+($I$36^2)+($I$37^2)+($I$38^2)+($I$39^2)+($I$40^2))),\"False\")))))))","v":163.58948421271106},{"$f":"$J$46*0.5","v":56510.5},"50% of Median Household Income",null,{"$f":"IF($H$63<$C$36,((($H$63-$C$35)/$D$35)*$J$35)+SUM($J$33:$J$34),IF($H$63<$C$37,((($H$63-$C$36)/$D$36)*$J$36)+SUM($J$33:$J$35),IF($H$63<$C$38,((($H$63-$C$37)/$D$37)*$J$37)+SUM($J$33:$J$36),IF($H$63<$C$39,((($H$63-$C$38)/$D$38)*$J$38)+SUM($J$33:$J$37),IF($H$63<$C$40,((($H$63-$C$39)/$D$39)*$J$39)+SUM($J$33:$J$38),IF($H$63<$C$41,((($H$63-$C$40)/$D$40)*$J$40)+SUM($J$33:$J$39),IF($H$63<$C$42,((($H$63-$C$41)/$D$41)*$J$41)+SUM($J$33:$J$40),\"False\")))))))","v":231.64866594663786},{"$f":"IF($H$63<$C$36,((($H$63-$C$35)/$D$35)*$K$35)+SQRT(SUM(($K$33^2),($K$34^2))),IF($H$63<$C$37,((($H$63-$C$36)/$D$36)*$K$36)+SQRT(SUM(($K$33^2),($K$34^2),($K$35^2))),IF($H$63<$C$38,((($H$63-$C$37)/$D$37)*$K$37)+SQRT(SUM(($K$33^2),($K$34^2),($K$35^2),($K$36^2))),IF($H$63<$C$39,((($H$63-$C$38)/$D$38)*$K$38)+SQRT(SUM(($K$33^2),($K$34^2),($K$35^2),($K$36^2),($K$37^2))),IF($H$63<$C$40,((($H$63-$C$39)/$D$39)*$K$39)+SQRT(SUM(($K$33^2),($K$34^2),($K$35^2),($K$36^2),($K$37^2),($K$38^2))),IF($H$63<$C$41,((($H$63-$C$40)/$D$40)*$K$40)+SQRT(SUM(($K$33^2),($K$34^2),($K$35^2),($K$36^2),($K$37^2),($K$38^2),($K$39^2))),IF($H$63<$C$42,((($H$63-$C$41)/$D$41)*$K$41)+SQRT((($K$33^2)+($K$34^2)+($K$35^2)+($K$36^2)+($K$37^2)+($K$38^2)+($K$39^2)+($K$40^2))),\"False\")))))))","v":156.77471130665981},{"$f":"$L$46*0.5","v":{"$error":"#VALUE!"}},"50% of Median Household Income",null,{"$f":"IF($M$63<$C$36,((($M$63-$C$35)/$D$35)*$L$35)+SUM($L$33:$L$34),IF($M$63<$C$37,((($M$63-$C$36)/$D$36)*$L$36)+SUM($L$33:$L$35),IF($M$63<$C$38,((($M$63-$C$37)/$D$37)*$L$37)+SUM($L$33:$L$36),IF($M$63<$C$39,((($M$63-$C$38)/$D$38)*$L$38)+SUM($L$33:$L$37),IF($M$63<$C$40,((($M$63-$C$39)/$D$39)*$L$39)+SUM($L$33:$L$38),IF($M$63<$C$41,((($M$63-$C$40)/$D$40)*$L$40)+SUM($L$33:$L$39),IF($M$63<$C$42,((($M$63-$C$41)/$D$41)*$L$41)+SUM($L$33:$L$40),\"False\")))))))","v":{"$error":"#VALUE!"}},{"$f":"IF($M$63<$C$36,((($M$63-$C$35)/$D$35)*$M$35)+SQRT(SUM(($M$33^2),($M$34^2))),IF($M$63<$C$37,((($M$63-$C$36)/$D$36)*$M$36)+SQRT(SUM(($M$33^2),($M$34^2),($M$35^2))),IF($M$63<$C$38,((($M$63-$C$37)/$D$37)*$M$37)+SQRT(SUM(($M$33^2),($M$34^2),($M$35^2),($M$36^2))),IF($M$63<$C$39,((($M$63-$C$38)/$D$38)*$M$38)+SQRT(SUM(($M$33^2),($M$34^2),($M$35^2),($M$36^2),($M$37^2))),IF($M$63<$C$40,((($M$63-$C$39)/$D$39)*$M$39)+SQRT(SUM(($M$33^2),($M$34^2),($M$35^2),($M$36^2),($M$37^2),($M$38^2))),IF($M$63<$C$41,((($M$63-$C$40)/$D$40)*$M$40)+SQRT(SUM(($M$33^2),($M$34^2),($M$35^2),($M$36^2),($M$37^2),($M$38^2),($M$39^2))),IF($M$63<$C$42,((($M$63-$C$41)/$D$41)*$M$41)+SQRT((($M$33^2)+($M$34^2)+($M$35^2)+($M$36^2)+($M$37^2)+($M$38^2)+($M$39^2)+($M$40^2))),\"False\")))))))","v":{"$error":"#VALUE!"}}]
[null,null,{"$f":"$H$46*0.8","v":91305.600000000006},"80% of Median Household Income",null,{"$f":"IF($C$64<$C$36,((($C$64-$C$35)/$D$35)*$H$35)+SUM($H$33:$H$34),IF($C$64<$C$37,((($C$64-$C$36)/$D$36)*$H$36)+SUM($H$33:$H$35),IF($C$64<$C$38,((($C$64-$C$37)/$D$37)*$H$37)+SUM($H$33:$H$36),IF($C$64<$C$39,((($C$64-$C$38)/$D$38)*$H$38)+SUM($H$33:$H$37),IF($C$64<$C$40,((($C$64-$C$39)/$D$39)*$H$39)+SUM($H$33:$H$38),IF($C$64<$C$41,((($C$64-$C$40)/$D$40)*$H$40)+SUM($H$33:$H$39),IF($C$64<$C$42,((($C$64-$C$41)/$D$41)*$H$41)+SUM($H$33:$H$40),\"False\")))))))","v":462.87725909036362},{"$f":"IF($C$64<$C$36,((($C$64-$C$35)/$D$35)*$I$35)+SQRT(SUM(($I$33^2),($I$34^2))),IF($C$64<$C$37,((($C$64-$C$36)/$D$36)*$I$36)+SQRT(SUM(($I$33^2),($I$34^2),($I$35^2))),IF($C$64<$C$38,((($C$64-$C$37)/$D$37)*$I$37)+SQRT(SUM(($I$33^2),($I$34^2),($I$35^2),($I$36^2))),IF($C$64<$C$39,((($C$64-$C$38)/$D$38)*$I$38)+SQRT(SUM(($I$33^2),($I$34^2),($I$35^2),($I$36^2),($I$37^2))),IF($C$64<$C$40,((($C$64-$C$39)/$D$39)*$I$39)+SQRT(SUM(($I$33^2),($I$34^2),($I$35^2),($I$36^2),($I$37^2),($I$38^2))),IF($C$64<$C$41,((($C$64-$C$40)/$D$40)*$I$40)+SQRT(SUM(($I$33^2),($I$34^2),($I$35^2),($I$36^2),($I$37^2),($I$38^2),($I$39^2))),IF($C$64<$C$42,((($C$64-$C$41)/$D$41)*$I$41)+SQRT((($I$33^2)+($I$34^2)+($I$35^2)+($I$36^2)+($I$37^2)+($I$38^2)+($I$39^2)+($I$40^2))),\"False\")))))))","v":229.01106078770567},{"$f":"$J$46*0.8","v":90416.8},"80% of Median Household Income",null,{"$f":"IF($H$64<$C$36,((($H$64-$C$35)/$D$35)*$J$35)+SUM($J$33:$J$34),IF($H$64<$C$37,((($H$64-$C$36)/$D$36)*$J$36)+SUM($J$33:$J$35),IF($H$64<$C$38,((($H$64-$C$37)/$D$37)*$J$37)+SUM($J$33:$J$36),IF($H$64<$C$39,((($H$64-$C$38)/$D$38)*$J$38)+SUM($J$33:$J$37),IF($H$64<$C$40,((($H$64-$C$39)/$D$39)*$J$39)+SUM($J$33:$J$38),IF($H$64<$C$41,((($H$64-$C$40)/$D$40)*$J$40)+SUM($J$33:$J$39),IF($H$64<$C$42,((($H$64-$C$41)/$D$41)*$J$41)+SUM($J$33:$J$40),\"False\")))))))","v":446.28636345453822},{"$f":"IF($H$64<$C$36,((($H$64-$C$35)/$D$35)*$K$35)+SQRT(SUM(($K$33^2),($K$34^2))),IF($H$64<$C$37,((($H$64-$C$36)/$D$36)*$K$36)+SQRT(SUM(($K$33^2),($K$34^2),($K$35^2))),IF($H$64<$C$38,((($H$64-$C$37)/$D$37)*$K$37)+SQRT(SUM(($K$33^2),($K$34^2),($K$35^2),($K$36^2))),IF($H$64<$C$39,((($H$64-$C$38)/$D$38)*$K$38)+SQRT(SUM(($K$33^2),($K$34^2),($K$35^2),($K$36^2),($K$37^2))),IF($H$64<$C$40,((($H$64-$C$39)/$D$39)*$K$39)+SQRT(SUM(($K$33^2),($K$34^2),($K$35^2),($K$36^2),($K$37^2),($K$38^2))),IF($H$64<$C$41,((($H$64-$C$40)/$D$40)*$K$40)+SQRT(SUM(($K$33^2),($K$34^2),($K$35^2),($K$36^2),($K$37^2),($K$38^2),($K$39^2))),IF($H$64<$C$42,((($H$64-$C$41)/$D$41)*$K$41)+SQRT((($K$33^2)+($K$34^2)+($K$35^2)+($K$36^2)+($K$37^2)+($K$38^2)+($K$39^2)+($K$40^2))),\"False\")))))))","v":220.93364008927068},{"$f":"$L$46*0.8","v":{"$error":"#VALUE!"}},"80% of Median Household Income",null,{"$f":"IF($M$64<$C$36,((($M$64-$C$35)/$D$35)*$L$35)+SUM($L$33:$L$34),IF($M$64<$C$37,((($M$64-$C$36)/$D$36)*$L$36)+SUM($L$33:$L$35),IF($M$64<$C$38,((($M$64-$C$37)/$D$37)*$L$37)+SUM($L$33:$L$36),IF($M$64<$C$39,((($M$64-$C$38)/$D$38)*$L$38)+SUM($L$33:$L$37),IF($M$64<$C$40,((($M$64-$C$39)/$D$39)*$L$39)+SUM($L$33:$L$38),IF($M$64<$C$41,((($M$64-$C$40)/$D$40)*$L$40)+SUM($L$33:$L$39),IF($M$64<$C$42,((($M$64-$C$41)/$D$41)*$L$41)+SUM($L$33:$L$40),\"False\")))))))","v":{"$error":"#VALUE!"}},{"$f":"IF($M$64<$C$36,((($M$64-$C$35)/$D$35)*$M$35)+SQRT(SUM(($M$33^2),($M$34^2))),IF($M$64<$C$37,((($M$64-$C$36)/$D$36)*$M$36)+SQRT(SUM(($M$33^2),($M$34^2),($M$35^2))),IF($M$64<$C$38,((($M$64-$C$37)/$D$37)*$M$37)+SQRT(SUM(($M$33^2),($M$34^2),($M$35^2),($M$36^2))),IF($M$64<$C$39,((($M$64-$C$38)/$D$38)*$M$38)+SQRT(SUM(($M$33^2),($M$34^2),($M$35^2),($M$36^2),($M$37^2))),IF($M$64<$C$40,((($M$64-$C$39)/$D$39)*$M$39)+SQRT(SUM(($M$33^2),($M$34^2),($M$35^2),($M$36^2),($M$37^2),($M$38^2))),IF($M$64<$C$41,((($M$64-$C$40)/$D$40)*$M$40)+SQRT(SUM(($M$33^2),($M$34^2),($M$35^2),($M$36^2),($M$37^2),($M$38^2),($M$39^2))),IF($M$64<$C$42,((($M$64-$C$41)/$D$41)*$M$41)+SQRT((($M$33^2)+($M$34^2)+($M$35^2)+($M$36^2)+($M$37^2)+($M$38^2)+($M$39^2)+($M$40^2))),\"False\")))))))","v":{"$error":"#VALUE!"}}]

{"sheet":"Updates","index":14,"n_rows":60,"n_cols":3,"rows_kept":60,"cut":false,"hidden":false,"merged":[[1,2,1,11],[30,2,30,11],[23,2,23,11],[22,2,22,11],[21,2,21,11],[20,2,20,11],[19,2,19,11],[18,2,18,11],[17,2,17,11],[9,2,9,11],[5,2,5,11],[6,2,6,11],[7,2,7,11],[4,2,4,11],[3,2,3,11],[2,2,2,11],[31,2,31,11],[32,2,32,11],[29,2,29,11],[24,2,24,11],[10,2,10,11],[26,2,26,11],[27,2,27,11],[58,2,58,11],[45,2,45,11],[59,2,59,11],[48,2,48,11],[49,2,49,11],[54,2,54,11],[50,2,50,11],[51,2,51,11],[52,2,52,11],[53,2,53,11],[55,2,55,11],[56,2,56,11],[57,2,57,11],[46,2,46,11],[0,2,0,11],[25,2,25,11],[47,2,47,11],[42,2,42,11],[41,2,41,11],[40,2,40,11],[39,2,39,11],[38,2,38,11],[37,2,37,11],[36,2,36,11],[33,2,33,11],[34,2,34,11],[35,2,35,11],[43,2,43,11],[44,2,44,11],[28,2,28,11]]}
["Important Notes"]
["Date",null,"Task"]
["2023-12-07",null,"Updated 2018-2022 Amreican Community Survey Data. Updated CPI Adjustement Factor  factor 1.19 for 2013-2017 and 1.27 for 2008-2012"]
["2023-10-26",null,"Updated Employment and Wage Information for 2022."]
["2023-10-18",null,"Updated 2008-2012 and 2013-2017 Amreican Community Survey Data; updated error in Poverty worksheet.  Added 10 Year Disability Comparison Worksheet"]
["2023-01-25",null,"Updated Permit Data and appropriate worksheets."]
["2022-12-14",null,"Updated historical data 2017-2021 ACS Data"]
["2022-11-01",null,"Updated NH Population Estimates through 2030"]
["2022-03-21",null,"Updated 2017-2021 Amreican Community Survey Data."]
["2022-11-01",null,"Updated NH Population Estimates through 2030"]
["2022-10-04",null,"Updated 2021 Annual Wage and Employment count for County"]
["2022-08-26",null,"Updated CPI Adjustement factor to adjust 2011 (1.19) and 2016 (1.08) dollars to 2021 dollars. Updated 2007-2011 and 2012-2016 ACS Data"]
["2022-03-21",null,"Updated 2016-2020 Amreican Community Survey Data."]
["2022-03-14",null,"Updated CPI Adjustement factor to adjust 2010 (1.19) and 2015 (1.09) dollars to 2020 dollars. "]
["2022-02-17",null,"Updated Permit Data and all appropriate charts."]
["2021-11-02",null,"Updated 2020 Annual Wage and Employment count"]
["2021-09-09",null,"Updated with 2020 Decennial Population data"]
["2020-12-17",null,"Updated 2015-2019 Amreican Community Survey Data and added 2019 NH Permit data."]
["2020-10-01",null,"Updated 2019 Employment and Wage data by industry sector"]
["2020-09-11",null,"Updated historical data 2005-2009 and 2010-2014 ACS Data"]
["2019-12-31",null,"Updated Visual Basic Code changing the footer font from Gotham Medium to Verdana."]
["2019-12-30",null,"Updated with 2014-2018 ACS Data. Updated 2018 Permit data. Updated CPI Adjustment Factor (1.02437673) to the 2009-2013 and 2014-2018 Income Comparison Table. This factor was provided by Census"]
["2019-11-27",null,"Updated the 2009-2013 ACS data for comparison purposes."]
["2018-12-18",null,"Updated 2017 Annual Employment and Wage data; updated Housing and Employment worksheet. Updated 2017 Permit data"]
["2018-12-13",null,"Updated the 2008-2012 ACS data for comparison purposes. Updated CPI Adjustment Factor (1.0676) to the 2008-2012 and 2013-2017  Income Comparison Table. This factor was provided by Census."]
["2018-12-06",null,"Updated 2013-2017 ACS data"]
["2018-12-05",null,"Updated labels in workbook to reflect 2013-2017 data set and 2008-2012 comparison data set. Updated footer text. "]
["2018-08-20",null,"Updated Chart with new formatting."]
["2018-05-09",null,"Reviewed that unemployment rate data does not need to updated. There are no cities or towns that needed this update. Only a select number of locations are updated with this data."]
["2017-12-18",null,"Updated 2016 NH Permit Data"]
["2017-12-12",null,"Updated Charts with 2012-2016 data; updated code to reflect additional data points in various tables. Updated CPI Adjustment Factor (1.06686838) to the 2007-2011 and 2012-2016 Income Comparison Table. This factor was provided by Census."]
["2017-11-16",null,"Updated 2007-2012 ACS data in preparation for the 2016 ACS Data"]
["2017-10-13",null,"Updated 2016 Annual Employment and Wage data; updated Housing and Employment worksheet"]
["2017-05-15",null,"Reviewed that unemployment rate data does not need to updated. There are no cities or towns that needed this update. Only a select number of locations are updated with this data."]
["2017-01-05",null,"Verified Charts; Added 2015 Permit Data; Updated Housing and Permit data"]
["2016-12-29",null,"Updated the 2006-2010 ACS data for comparison purposes."]
["2016-12-23",null,"Updated Charts with 2011-2015 data; updated code to reflect additional data points in various tables. Updated CPI Adjustment Factor (1.08710584) to the 2006-2010 and 2011-2015 Income Comparison Table. This factor was provided by Census."]
["2016-12-19",null,"Updated 2011-2015 ACS Data. Updated Charts to reflect changes."]
["2016-10-31",null,"Updated 2015 Annual Employment and Wage data"]
["2016-01-14",null,"Fixed error in School Attainment worksheet - Graduate or Professional Degree data."]
["2016-01-07",null,"Fixed formula in Poverty worksheet; fixed Non-Family Persons per Household data; fixed legend of Rental Cost Charts."]
["2015-12-23",null,"Fixed Table ACS_B25074"]
["2015-12-16",null,"Updated Code to correct an error on the OwnerHousingCost worksheet; updated column names on CntyDataLink."]
["2015-12-11",null,"Updated Code to correct an error on the RentalHousingCost worksheet; updated column names on CntyDataLink."]
["2015-12-10",null,"Updated 2010-2014 ACS Data. Updated Charts to reflect changes."]
["2015-12-07",null,"Updated Permit Data and all appropriate charts."]
["2015-12-03",null,"Updated the CPI Adjustment Factor (1.1034264) to the 2005-2009 and 2010-2014 Income Comparison Table. This factor was provided by Census. Updated RentalHousingCost and OwnerCost worksheet to eliminate a printed page. Charts were moved and reduced in size."]
["2015-11-24",null,"Updated charts with correctly sized logo; updated color schemes on charts."]
["2015-10-06",null,"Added County Comparison Employment and Housing data. Added Visual basic code to automatically update footer. Visual basic code will run when Ctrl-j is selected. "]
["2015-09-29",null,"Updated Employment Information"]
["2015-09-18",null,"Updated Charts and code to allow for prior 5 year estimates to be update. Updated RentalHousingCost worksheet to accommodate changes to Table B25074"]
["2015-09-01",null,"Updated Code to include Prior 5 year estimates."]
["2015-08-19",null,"Updated Owner Cost Chart and data. Added Table B25106. Housing Cost burden by Income. Updated 2005-2009 ACS Estimate data"]
["2015-08-06",null,"Corrected the Employment vs. Housing worksheet."]
["2015-03-17",null,"Added Labor Force Data"]
["2014-12-30",null,"Corrected Rental Cost formula."]
["2014-12-17",null,"Corrected and verified household pie charts. All Permit data and employment data has been updated through 2013."]
["2011-10-14",null,"Reformatted the code in the worksheet and corrected an error in the Income Comparison Sheet"]
["2010-12-21",null,"Added Margin of Error information on all applicable ACS Sheets"]
["2010-12-07",null,"Created a calculated Table B19001 in anticipation for the 5 year data.  Table C19001 will not be provided"]

{"sheet":"CntyDataLinkPrior5YearEstimates","index":15,"n_rows":160,"n_cols":255,"rows_kept":160,"cut":false,"hidden":true,"merged":[]}
[1,{"$f":"A1+1","v":2},{"$f":"B1+1","v":3},4,5,6,7,8,9,10,11,12,13,14,15,{"$f":"O1+1","v":16},17,18,19,20,21,22,23,24,25,26,27,28,29,30,31,32,33,34,35,36,37,38,39,40,41,42,43,44,45,46,47,48,49,50,51,52,53,54,55,56,57,58,59,60,61,62,63,64,65,66,{"$f":"BN1+1","v":67},68,69,70,71,72,73,74,75,76,77,78,79,80,81,82,83,84,85,86,87,88,89,90,91,92,93,94,95,96,97,98,99,100,101,102,103,104,105,106,107,108,109,110,111,112,113,114,115,116,117,118,119,120,121,122,123,124,125,126,127,128,129,130,{"$f":"DZ1+1","v":131},132,133,134,135,136,137,138,139,140,141,142,143,144,145,146,147,148,149,150,151,152,153,154,155,156,157,158,159,160,161,162,163,164,165,166,167,168,169,170,171,172,173,174,175,176,177,178,179,180,181,182,183,184,185,186,187,188,189,190,191,192,193,194,{"$f":"GL1+1","v":195},196,197,198,199,200,201,202,203,204,205,206,207,208,209,210,211,212,213,214,215,216,217,218,219,220,221,222,223,224,225,226,227,228,229,230,231,232,233,234,235,236,237,238,239,240,241,242,243,244,245,246,247,248,249,250,251,252,253,254,255]
[]
["Census 1990 Data -           Query Name:  DPCnty90Census"]
["TownName","Cnty_Code","Census_Cnty_Code","LandAcres","WaterAcres","HousingUnits90Cen","Persons90Cen","Families90Cen","Households90cen","MalePop90cen","FemalePop90cen","WhitePop","BlackPop","AmerIndianPop","AsianPIPop","OtherRacePop","HispanicOrPop","AgeUnder15_90cen","Age15to24_90cen","Age25to34_90cen","Age35to44_90cen","Age45to54_90cen","Age55to64_90cen","Age65to74_90cen","Age75andOver_90cen","PersonsInHH90cen","PersonsInFamHH90cen","PersonsInGC","PersonsPerHH90cen","PersonsPerFam90Cen","SinglePersonHH90cen","MarriedCoupleHH90cen","SingleParentHH90cen","NonFamilyHH90cen","TotalHousingUnits","OccupiedHousingUnits","VacantHousingUnits","OwnerOccHU","RenterOccHU","VacantForRent90","VacantForSale90","VacantSeasonalRec","SingFamHU90cen","MultiFamHU90cen","MobileHom90cen","SingFamOwnHU90cen","MultiFamOwnHU90cen","MobileHomOwnHU90cen","SingFamRntrHU90cen","MultiFamRntrHU90cen","MobileHomRntrHU90cen","HU<5yrs90cen","HU5to20yrs90cen","HU20to50yrs90cen","HU>50yrs90cen","Units0Bedroom90cen","Units1Bedroom90cen","Units2Bedroom90cen","Units3Bedroom90cen","Units4+Bedroom90cen","HI<5K","HI5Kto10K","HI10Kto15K","HI15Kto25K","HI25Kto35K","HI35Kto50K","HI50Kto75K","HI75Kto100K","HI>100K","MedHI","HH<25HI<5K","HH<25HI5Kto10K","HH<25HI10Kto15K","HH<25HI15Kto25K","HH<25HI25Kto35K","HH<25HI35Kto50K","HH<25HI50Kto75K","HH<25HI75Kto100K","HH<25HI>100K","HH25to34HI<5K","HH25to34HI5Kto10K","HH25to34HI10Kto15K","HH25to34HI15Kto25K","HH25to34HI25Kto35K","HH25to34HI35Kto50K","HH25to34HI50Kto75K","HH25to34HI75Kto100K","HH25to34HI>100K","HH35to44HI<5K","HH35to44HI5Kto10K","HH35to44HI10Kto15K","HH35to44HI15Kto25K","HH35to44HI25Kto35K","HH35to44HI35Kto50K","HH35to44HI50Kto75K","HH35to44HI75Kto100K","HH35to44HI>100K","HH45to54HI<5K","HH45to54HI5Kto10K","HH45to54HI10Kto15K","HH45to54HI15Kto25K","HH45to54HI25Kto35K","HH45to54HI35Kto50K","HH45to54HI50Kto75K","HH45to54HI75Kto100K","HH45to54HI>100K","HH55to64HI<5K","HH55to64HI5Kto10K","HH55to64HI10Kto15K","HH55to64HI15Kto25K","HH55to64HI25Kto35K","HH55to64HI35Kto50K","HH55to64HI50Kto75K","HH55to64HI75Kto100K","HH55to64HI>100K","HH65to74HI<5K","HH65to74HI5Kto10K","HH65to74HI10Kto15K","HH65to74HI15Kto25K","HH65to74HI25Kto35K","HH65to74HI35Kto50K","HH65to74HI50Kto75K","HH65to74HI75Kto100K","HH65to74HI>100K","HH>75HI<5K","HH>75HI5Kto10K","HH>75HI10Kto15K","HH>75HI15Kto25K","HH>75HI25Kto35K","HH>75HI35Kto50K","HH>75HI50Kto75K","HH>75HI75Kto100K","HH>75HI>100K","SchoolEnrollment1thru12","Pop25andOver","HSGradorHigher","CollGradorHigher","NativePop","ForeignBornPop","BornStateOfRes","NativePop2","ForeignBornPop2","DroveAlone","CarPooled","PublicTranspt","Walked","OtherMeans","WorkedAtHome","HHInc<10K","HHInc10to15K","HHInc15to25K","HHInc25to35K","HHInc35to50K","HHInc50to75K","HHInc75to100K","HHInc100to150K","HHInc>150K"]
[{"$f":"VLOOKUP(DropDownList!$A$47,CntyQuery!$A$4:$FI$46,A1)","v":"Grantham"},{"$f":"VLOOKUP(DropDownList!$A$47,CntyQuery!$A$4:$FA$46,B1)","v":19035},{"$f":"VLOOKUP(DropDownList!$A$47,CntyQuery!$A$4:$FA$46,C1)","v":"31220"},{"$f":"VLOOKUP(DropDownList!$A$47,CntyQuery!$A$4:$FA$46,D1)","v":17402.240000000002},{"$f":"VLOOKUP(DropDownList!$A$47,CntyQuery!$A$4:$FA$46,E1)","v":548.63},{"$f":"VLOOKUP(DropDownList!$A$47,CntyQuery!$A$4:$FA$46,F1)","v":1289},{"$f":"VLOOKUP(DropDownList!$A$47,CntyQuery!$A$4:$FA$46,G1)","v":1247},{"$f":"VLOOKUP(DropDownList!$A$47,CntyQuery!$A$4:$FA$46,H1)","v":404},{"$f":"VLOOKUP(DropDownList!$A$47,CntyQuery!$A$4:$FA$46,I1)","v":494},{"$f":"VLOOKUP(DropDownList!$A$47,CntyQuery!$A$4:$FA$46,J1)","v":622},{"$f":"VLOOKUP(DropDownList!$A$47,CntyQuery!$A$4:$FA$46,K1)","v":625},{"$f":"VLOOKUP(DropDownList!$A$47,CntyQuery!$A$4:$FA$46,L1)","v":1236},{"$f":"VLOOKUP(DropDownList!$A$47,CntyQuery!$A$4:$FA$46,M1)","v":2},{"$f":"VLOOKUP(DropDownList!$A$47,CntyQuery!$A$4:$FA$46,N1)","v":1},{"$f":"VLOOKUP(DropDownList!$A$47,CntyQuery!$A$4:$FA$46,O1)","v":6},{"$f":"VLOOKUP(DropDownList!$A$47,CntyQuery!$A$4:$FA$46,P1)","v":2},{"$f":"VLOOKUP(DropDownList!$A$47,CntyQuery!$A$4:$FA$46,Q1)","v":5},{"$f":"VLOOKUP(DropDownList!$A$47,CntyQuery!$A$4:$FA$46,R1)","v":210},{"$f":"VLOOKUP(DropDownList!$A$47,CntyQuery!$A$4:$FA$46,S1)","v":112},{"$f":"VLOOKUP(DropDownList!$A$47,CntyQuery!$A$4:$FA$46,T1)","v":142},{"$f":"VLOOKUP(DropDownList!$A$47,CntyQuery!$A$4:$FA$46,U1)","v":208},{"$f":"VLOOKUP(DropDownList!$A$47,CntyQuery!$A$4:$FA$46,V1)","v":145},{"$f":"VLOOKUP(DropDownList!$A$47,CntyQuery!$A$4:$FA$46,W1)","v":191},{"$f":"VLOOKUP(DropDownList!$A$47,CntyQuery!$A$4:$FA$46,X1)","v":179},{"$f":"VLOOKUP(DropDownList!$A$47,CntyQuery!$A$4:$FA$46,Y1)","v":60},{"$f":"VLOOKUP(DropDownList!$A$47,CntyQuery!$A$4:$FA$46,Z1)","v":1247},{"$f":"VLOOKUP(DropDownList!$A$47,CntyQuery!$A$4:$FA$46,AA1)","v":1131},{"$f":"VLOOKUP(DropDownList!$A$47,CntyQuery!$A$4:$FA$46,AB1)","v":0},{"$f":"VLOOKUP(DropDownList!$A$47,CntyQuery!$A$4:$FA$46,AC1)","v":2.5242914979757085},{"$f":"VLOOKUP(DropDownList!$A$47,CntyQuery!$A$4:$FA$46,AD1)","v":2.7995049504950495},{"$f":"VLOOKUP(DropDownList!$A$47,CntyQuery!$A$4:$FA$46,AE1)","v":67},{"$f":"VLOOKUP(DropDownList!$A$47,CntyQuery!$A$4:$FA$46,AF1)","v":377},{"$f":"VLOOKUP(DropDownList!$A$47,CntyQuery!$A$4:$FA$46,AG1)","v":27},{"$f":"VLOOKUP(DropDownList!$A$47,CntyQuery!$A$4:$FA$46,AH1)","v":23},{"$f":"VLOOKUP(DropDownList!$A$47,CntyQuery!$A$4:$FA$46,AI1)","v":1289},{"$f":"VLOOKUP(DropDownList!$A$47,CntyQuery!$A$4:$FA$46,AJ1)","v":494},{"$f":"VLOOKUP(DropDownList!$A$47,CntyQuery!$A$4:$FA$46,AK1)","v":795},{"$f":"VLOOKUP(DropDownList!$A$47,CntyQuery!$A$4:$FA$46,AL1)","v":430},{"$f":"VLOOKUP(DropDownList!$A$47,CntyQuery!$A$4:$FA$46,AM1)","v":64},{"$f":"VLOOKUP(DropDownList!$A$47,CntyQuery!$A$4:$FA$46,AN1)","v":8},{"$f":"VLOOKUP(DropDownList!$A$47,CntyQuery!$A$4:$FA$46,AO1)","v":14},{"$f":"VLOOKUP(DropDownList!$A$47,CntyQuery!$A$4:$FA$46,AP1)","v":721},{"$f":"VLOOKUP(DropDownList!$A$47,CntyQuery!$A$4:$FA$46,AQ1)","v":923},{"$f":"VLOOKUP(DropDownList!$A$47,CntyQuery!$A$4:$FA$46,AR1)","v":339},{"$f":"VLOOKUP(DropDownList!$A$47,CntyQuery!$A$4:$FA$46,AS1)","v":27},{"$f":"VLOOKUP(DropDownList!$A$47,CntyQuery!$A$4:$FA$46,AT1)","v":391},{"$f":"VLOOKUP(DropDownList!$A$47,CntyQuery!$A$4:$FA$46,AU1)","v":25},{"$f":"VLOOKUP(DropDownList!$A$47,CntyQuery!$A$4:$FA$46,AV1)","v":27},{"$f":"VLOOKUP(DropDownList!$A$47,CntyQuery!$A$4:$FA$46,AW1)","v":35},{"$f":"VLOOKUP(DropDownList!$A$47,CntyQuery!$A$4:$FA$46,AX1)","v":22},{"$f":"VLOOKUP(DropDownList!$A$47,CntyQuery!$A$4:$FA$46,AY1)","v":7},{"$f":"VLOOKUP(DropDownList!$A$47,CntyQuery!$A$4:$FA$46,AZ1)","v":488},{"$f":"VLOOKUP(DropDownList!$A$47,CntyQuery!$A$4:$FA$46,BA1)","v":590},{"$f":"VLOOKUP(DropDownList!$A$47,CntyQuery!$A$4:$FA$46,BB1)","v":71},{"$f":"VLOOKUP(DropDownList!$A$47,CntyQuery!$A$4:$FA$46,BC1)","v":140},{"$f":"VLOOKUP(DropDownList!$A$47,CntyQuery!$A$4:$FA$46,BD1)","v":4},{"$f":"VLOOKUP(DropDownList!$A$47,CntyQuery!$A$4:$FA$46,BE1)","v":17},{"$f":"VLOOKUP(DropDownList!$A$47,CntyQuery!$A$4:$FA$46,BF1)","v":229},{"$f":"VLOOKUP(DropDownList!$A$47,CntyQuery!$A$4:$FA$46,BG1)","v":727},{"$f":"VLOOKUP(DropDownList!$A$47,CntyQuery!$A$4:$FA$46,BH1)","v":312},{"$f":"VLOOKUP(DropDownList!$A$47,CntyQuery!$A$4:$FA$46,BI1)","v":12},{"$f":"VLOOKUP(DropDownList!$A$47,CntyQuery!$A$4:$FA$46,BJ1)","v":16},{"$f":"VLOOKUP(DropDownList!$A$47,CntyQuery!$A$4:$FA$46,BK1)","v":24},{"$f":"VLOOKUP(DropDownList!$A$47,CntyQuery!$A$4:$FA$46,BL1)","v":43},{"$f":"VLOOKUP(DropDownList!$A$47,CntyQuery!$A$4:$FA$46,BM1)","v":77},{"$f":"VLOOKUP(DropDownList!$A$47,CntyQuery!$A$4:$FA$46,BN1)","v":133},{"$f":"VLOOKUP(DropDownList!$A$47,CntyQuery!$A$4:$FA$46,BO1)","v":116},{"$f":"VLOOKUP(DropDownList!$A$47,CntyQuery!$A$4:$FA$46,BP1)","v":36},{"$f":"VLOOKUP(DropDownList!$A$47,CntyQuery!$A$4:$FA$46,BQ1)","v":33},{"$f":"VLOOKUP(DropDownList!$A$47,CntyQuery!$A$4:$FA$46,BR1)","v":42738},{"$f":"VLOOKUP(DropDownList!$A$47,CntyQuery!$A$4:$FA$46,BS1)","v":0},{"$f":"VLOOKUP(DropDownList!$A$47,CntyQuery!$A$4:$FA$46,BT1)","v":1},{"$f":"VLOOKUP(DropDownList!$A$47,CntyQuery!$A$4:$FA$46,BU1)","v":2},{"$f":"VLOOKUP(DropDownList!$A$47,CntyQuery!$A$4:$FA$46,BV1)","v":2},{"$f":"VLOOKUP(DropDownList!$A$47,CntyQuery!$A$4:$FA$46,BW1)","v":0},{"$f":"VLOOKUP(DropDownList!$A$47,CntyQuery!$A$4:$FA$46,BX1)","v":0},{"$f":"VLOOKUP(DropDownList!$A$47,CntyQuery!$A$4:$FA$46,BY1)","v":0},{"$f":"VLOOKUP(DropDownList!$A$47,CntyQuery!$A$4:$FA$46,BZ1)","v":3},{"$f":"VLOOKUP(DropDownList!$A$47,CntyQuery!$A$4:$FA$46,CA1)","v":0},{"$f":"VLOOKUP(DropDownList!$A$47,CntyQuery!$A$4:$FA$46,CB1)","v":0},{"$f":"VLOOKUP(DropDownList!$A$47,CntyQuery!$A$4:$FA$46,CC1)","v":0},{"$f":"VLOOKUP(DropDownList!$A$47,CntyQuery!$A$4:$FA$46,CD1)","v":2},{"$f":"VLOOKUP(DropDownList!$A$47,CntyQuery!$A$4:$FA$46,CE1)","v":4},{"$f":"VLOOKUP(DropDownList!$A$47,CntyQuery!$A$4:$FA$46,CF1)","v":15},{"$f":"VLOOKUP(DropDownList!$A$47,CntyQuery!$A$4:$FA$46,CG1)","v":21},{"$f":"VLOOKUP(DropDownList!$A$47,CntyQuery!$A$4:$FA$46,CH1)","v":16},{"$f":"VLOOKUP(DropDownList!$A$47,CntyQuery!$A$4:$FA$46,CI1)","v":3},{"$f":"VLOOKUP(DropDownList!$A$47,CntyQuery!$A$4:$FA$46,CJ1)","v":2},{"$f":"VLOOKUP(DropDownList!$A$47,CntyQuery!$A$4:$FA$46,CK1)","v":0},{"$f":"VLOOKUP(DropDownList!$A$47,CntyQuery!$A$4:$FA$46,CL1)","v":0},{"$f":"VLOOKUP(DropDownList!$A$47,CntyQuery!$A$4:$FA$46,CM1)","v":0},{"$f":"VLOOKUP(DropDownList!$A$47,CntyQuery!$A$4:$FA$46,CN1)","v":9},{"$f":"VLOOKUP(DropDownList!$A$47,CntyQuery!$A$4:$FA$46,CO1)","v":15},{"$f":"VLOOKUP(DropDownList!$A$47,CntyQuery!$A$4:$FA$46,CP1)","v":27},{"$f":"VLOOKUP(DropDownList!$A$47,CntyQuery!$A$4:$FA$46,CQ1)","v":29},{"$f":"VLOOKUP(DropDownList!$A$47,CntyQuery!$A$4:$FA$46,CR1)","v":10},{"$f":"VLOOKUP(DropDownList!$A$47,CntyQuery!$A$4:$FA$46,CS1)","v":0},{"$f":"VLOOKUP(DropDownList!$A$47,CntyQuery!$A$4:$FA$46,CT1)","v":0},{"$f":"VLOOKUP(DropDownList!$A$47,CntyQuery!$A$4:$FA$46,CU1)","v":3},{"$f":"VLOOKUP(DropDownList!$A$47,CntyQuery!$A$4:$FA$46,CV1)","v":6},{"$f":"VLOOKUP(DropDownList!$A$47,CntyQuery!$A$4:$FA$46,CW1)","v":7},{"$f":"VLOOKUP(DropDownList!$A$47,CntyQuery!$A$4:$FA$46,CX1)","v":7},{"$f":"VLOOKUP(DropDownList!$A$47,CntyQuery!$A$4:$FA$46,CY1)","v":31},{"$f":"VLOOKUP(DropDownList!$A$47,CntyQuery!$A$4:$FA$46,CZ1)","v":17},{"$f":"VLOOKUP(DropDownList!$A$47,CntyQuery!$A$4:$FA$46,DA1)","v":3},{"$f":"VLOOKUP(DropDownList!$A$47,CntyQuery!$A$4:$FA$46,DB1)","v":8},{"$f":"VLOOKUP(DropDownList!$A$47,CntyQuery!$A$4:$FA$46,DC1)","v":6},{"$f":"VLOOKUP(DropDownList!$A$47,CntyQuery!$A$4:$FA$46,DD1)","v":6},{"$f":"VLOOKUP(DropDownList!$A$47,CntyQuery!$A$4:$FA$46,DE1)","v":3},{"$f":"VLOOKUP(DropDownList!$A$47,CntyQuery!$A$4:$FA$46,DF1)","v":8},{"$f":"VLOOKUP(DropDownList!$A$47,CntyQuery!$A$4:$FA$46,DG1)","v":10},{"$f":"VLOOKUP(DropDownList!$A$47,CntyQuery!$A$4:$FA$46,DH1)","v":22},{"$f":"VLOOKUP(DropDownList!$A$47,CntyQuery!$A$4:$FA$46,DI1)","v":27},{"$f":"VLOOKUP(DropDownList!$A$47,CntyQuery!$A$4:$FA$46,DJ1)","v":6},{"$f":"VLOOKUP(DropDownList!$A$47,CntyQuery!$A$4:$FA$46,DK1)","v":14},{"$f":"VLOOKUP(DropDownList!$A$47,CntyQuery!$A$4:$FA$46,DL1)","v":4},{"$f":"VLOOKUP(DropDownList!$A$47,CntyQuery!$A$4:$FA$46,DM1)","v":2},{"$f":"VLOOKUP(DropDownList!$A$47,CntyQuery!$A$4:$FA$46,DN1)","v":8},{"$f":"VLOOKUP(DropDownList!$A$47,CntyQuery!$A$4:$FA$46,DO1)","v":6},{"$f":"VLOOKUP(DropDownList!$A$47,CntyQuery!$A$4:$FA$46,DP1)","v":27},{"$f":"VLOOKUP(DropDownList!$A$47,CntyQuery!$A$4:$FA$46,DQ1)","v":22},{"$f":"VLOOKUP(DropDownList!$A$47,CntyQuery!$A$4:$FA$46,DR1)","v":23},{"$f":"VLOOKUP(DropDownList!$A$47,CntyQuery!$A$4:$FA$46,DS1)","v":6},{"$f":"VLOOKUP(DropDownList!$A$47,CntyQuery!$A$4:$FA$46,DT1)","v":7},{"$f":"VLOOKUP(DropDownList!$A$47,CntyQuery!$A$4:$FA$46,DU1)","v":2},{"$f":"VLOOKUP(DropDownList!$A$47,CntyQuery!$A$4:$FA$46,DV1)","v":4},{"$f":"VLOOKUP(DropDownList!$A$47,CntyQuery!$A$4:$FA$46,DW1)","v":3},{"$f":"VLOOKUP(DropDownList!$A$47,CntyQuery!$A$4:$FA$46,DX1)","v":7},{"$f":"VLOOKUP(DropDownList!$A$47,CntyQuery!$A$4:$FA$46,DY1)","v":3},{"$f":"VLOOKUP(DropDownList!$A$47,CntyQuery!$A$4:$FA$46,DZ1)","v":10},{"$f":"VLOOKUP(DropDownList!$A$47,CntyQuery!$A$4:$FA$46,EA1)","v":4},{"$f":"VLOOKUP(DropDownList!$A$47,CntyQuery!$A$4:$FA$46,EB1)","v":5},{"$f":"VLOOKUP(DropDownList!$A$47,CntyQuery!$A$4:$FA$46,EC1)","v":2},{"$f":"VLOOKUP(DropDownList!$A$47,CntyQuery!$A$4:$FA$46,ED1)","v":170},{"$f":"VLOOKUP(DropDownList!$A$47,CntyQuery!$A$4:$FA$46,EE1)","v":925},{"$f":"VLOOKUP(DropDownList!$A$47,CntyQuery!$A$4:$FA$46,EF1)","v":817},{"$f":"VLOOKUP(DropDownList!$A$47,CntyQuery!$A$4:$FA$46,EG1)","v":398},{"$f":"VLOOKUP(DropDownList!$A$47,CntyQuery!$A$4:$FA$46,EH1)","v":1196},{"$f":"VLOOKUP(DropDownList!$A$47,CntyQuery!$A$4:$FA$46,EI1)","v":51},{"$f":"VLOOKUP(DropDownList!$A$47,CntyQuery!$A$4:$FA$46,EJ1)","v":540},{"$f":"VLOOKUP(DropDownList!$A$47,CntyQuery!$A$4:$FA$46,EK1)","v":1196},{"$f":"VLOOKUP(DropDownList!$A$47,CntyQuery!$A$4:$FA$46,EL1)","v":51},{"$f":"VLOOKUP(DropDownList!$A$47,CntyQuery!$A$4:$FA$46,EM1)","v":407},{"$f":"VLOOKUP(DropDownList!$A$47,CntyQuery!$A$4:$FA$46,EN1)","v":78},{"$f":"VLOOKUP(DropDownList!$A$47,CntyQuery!$A$4:$FA$46,EO1)","v":0},{"$f":"VLOOKUP(DropDownList!$A$47,CntyQuery!$A$4:$FA$46,EP1)","v":13},{"$f":"VLOOKUP(DropDownList!$A$47,CntyQuery!$A$4:$FA$46,EQ1)","v":3},{"$f":"VLOOKUP(DropDownList!$A$47,CntyQuery!$A$4:$FA$46,ER1)","v":38},{"$f":"VLOOKUP(DropDownList!$A$47,CntyQuery!$A$4:$FA$46,ES1)","v":28},{"$f":"VLOOKUP(DropDownList!$A$47,CntyQuery!$A$4:$FA$46,ET1)","v":24},{"$f":"VLOOKUP(DropDownList!$A$47,CntyQuery!$A$4:$FA$46,EU1)","v":43},{"$f":"VLOOKUP(DropDownList!$A$47,CntyQuery!$A$4:$FA$46,EV1)","v":77},{"$f":"VLOOKUP(DropDownList!$A$47,CntyQuery!$A$4:$FA$46,EW1)","v":133},{"$f":"VLOOKUP(DropDownList!$A$47,CntyQuery!$A$4:$FA$46,EX1)","v":116},{"$f":"VLOOKUP(DropDownList!$A$47,CntyQuery!$A$4:$FA$46,EY1)","v":36},{"$f":"VLOOKUP(DropDownList!$A$47,CntyQuery!$A$4:$FA$46,EZ1)","v":29},{"$f":"VLOOKUP(DropDownList!$A$47,CntyQuery!$A$4:$FA$46,FA1)","v":4}]
[]
[]
["Census 1990 Data -    Query Name:  TownSTF1Qry1"]
["NAME","COUSUBFP","Census_Cnty_Code","FIPS","LandAcres","WaterAcres","HousingUnits90Cen","P01Persons90Cen","P02Families90Cen","P03Households90cen","P05MalePop90cen","P05FemalePop90cen","P06WhitePop","P06BlackPop","P06AmerIndianPop","P06AsianPIPop","P06OtherRacePop","P08HispanicOrPop","P11AgeUnder15_90cen","P11Age15to24_90cen","P11Age25to34_90cen","P11Age35to44_90cen","P11Age45to54_90cen","P11Age55to64_90cen","P11Age65to74_90cen","P11Age75andOver_90cen","P15PersonsInHH90cen","P15PersonsInFamHH90cen","P15PersonsInGC","PersonsPerHH90cen","PersonsPerFam90Cen","P16SinglePersonHH90cen","P16MarriedCoupleHH90cen","P16SingleParentHH90cen","P16NonFamilyHH90cen","H01TotalHousingUnits","H02OccupiedHousingUnits","H02VacantHousingUnits","H03OwnerOccHU","H03RenterOccHU","H05VacantForRent90","H05VacantForSale90","H05VacantSeasonalRec","H23OOHUVal<15k","H23OOHUVal15to19k","H23OOHUVal20to24k","H23OOHUVal25to29k","H23OOHUVal30to34k","H23OOHUVal35to39k","H23OOHUVal40to44k","H23OOHUVal45to49k","H23OOHUVal50to59k","H23OOHUVal60to74k","H23OOHUVal75to99k","H23OOHUVal100to124k","H23OOHUVal125to149k","H23OOHUVal150to174k","H23OOHUVal175to199k","H23OOHUVal200to249k","H23OOHUVal250to299k","H23OOHUVal300to399k","H23OOHUVal400to499k","H23OOHUVal500kOrMore","H23BOOHUMedVal","H41SingFamHU90cen","H41MultiFamHU90cen","H41MobileHom90cen","H43SingFamOwnHU90cen","H43MultiFamOwnHU90cen","H43MobileHomOwnHU90cen","H43SingFamRntrHU90cen","H43MultiFamRntrHU90cen","H43MobileHomRntrHU90cen","H41HU1UnitDet","H41HU1UnitAtt","H41HU2Unit","H41HU3to4Unit","H41HU5to9Unit","H41HU10to19Unit","H41HU20to49Unit","H41HU50PlusUnit","H41HUMobilH","H41HUOther"]
[{"$f":"VLOOKUP(DropDownList!$B$47,CntyQuery!$A$51:$CE$93,A$1)","v":"Grantham"},{"$f":"VLOOKUP(DropDownList!$B$47,CntyQuery!$A$51:$CE$93,B$1)","v":1007},{"$f":"VLOOKUP(DropDownList!$B$47,CntyQuery!$A$51:$CE$93,C$1)","v":19035},{"$f":"VLOOKUP(DropDownList!$B$47,CntyQuery!$A$51:$CE$93,D$1)","v":"31220"},{"$f":"VLOOKUP(DropDownList!$B$47,CntyQuery!$A$51:$CE$93,E$1)","v":17402.240000000002},{"$f":"VLOOKUP(DropDownList!$B$47,CntyQuery!$A$51:$CE$93,F$1)","v":548.63},{"$f":"VLOOKUP(DropDownList!$B$47,CntyQuery!$A$51:$CE$93,G$1)","v":1289},{"$f":"VLOOKUP(DropDownList!$B$47,CntyQuery!$A$51:$CE$93,H$1)","v":1247},{"$f":"VLOOKUP(DropDownList!$B$47,CntyQuery!$A$51:$CE$93,I$1)","v":404},{"$f":"VLOOKUP(DropDownList!$B$47,CntyQuery!$A$51:$CE$93,J$1)","v":494},{"$f":"VLOOKUP(DropDownList!$B$47,CntyQuery!$A$51:$CE$93,K$1)","v":622},{"$f":"VLOOKUP(DropDownList!$B$47,CntyQuery!$A$51:$CE$93,L$1)","v":625},{"$f":"VLOOKUP(DropDownList!$B$47,CntyQuery!$A$51:$CE$93,M$1)","v":1236},{"$f":"VLOOKUP(DropDownList!$B$47,CntyQuery!$A$51:$CE$93,N$1)","v":2},{"$f":"VLOOKUP(DropDownList!$B$47,CntyQuery!$A$51:$CE$93,O$1)","v":1},{"$f":"VLOOKUP(DropDownList!$B$47,CntyQuery!$A$51:$CE$93,P$1)","v":6},{"$f":"VLOOKUP(DropDownList!$B$47,CntyQuery!$A$51:$CE$93,Q$1)","v":2},{"$f":"VLOOKUP(DropDownList!$B$47,CntyQuery!$A$51:$CE$93,R$1)","v":5},{"$f":"VLOOKUP(DropDownList!$B$47,CntyQuery!$A$51:$CE$93,S$1)","v":210},{"$f":"VLOOKUP(DropDownList!$B$47,CntyQuery!$A$51:$CE$93,T$1)","v":112},{"$f":"VLOOKUP(DropDownList!$B$47,CntyQuery!$A$51:$CE$93,U$1)","v":142},{"$f":"VLOOKUP(DropDownList!$B$47,CntyQuery!$A$51:$CE$93,V$1)","v":208},{"$f":"VLOOKUP(DropDownList!$B$47,CntyQuery!$A$51:$CE$93,W$1)","v":145},{"$f":"VLOOKUP(DropDownList!$B$47,CntyQuery!$A$51:$CE$93,X$1)","v":191},{"$f":"VLOOKUP(DropDownList!$B$47,CntyQuery!$A$51:$CE$93,Y$1)","v":179},{"$f":"VLOOKUP(DropDownList!$B$47,CntyQuery!$A$51:$CE$93,Z$1)","v":60},{"$f":"VLOOKUP(DropDownList!$B$47,CntyQuery!$A$51:$CE$93,AA$1)","v":1247},{"$f":"VLOOKUP(DropDownList!$B$47,CntyQuery!$A$51:$CE$93,AB$1)","v":1131},{"$f":"VLOOKUP(DropDownList!$B$47,CntyQuery!$A$51:$CE$93,AC$1)","v":0},{"$f":"VLOOKUP(DropDownList!$B$47,CntyQuery!$A$51:$CE$93,AD$1)","v":2.5242914979757085},{"$f":"VLOOKUP(DropDownList!$B$47,CntyQuery!$A$51:$CE$93,AE$1)","v":2.7995049504950495},{"$f":"VLOOKUP(DropDownList!$B$47,CntyQuery!$A$51:$CE$93,AF$1)","v":67},{"$f":"VLOOKUP(DropDownList!$B$47,CntyQuery!$A$51:$CE$93,AG$1)","v":377},{"$f":"VLOOKUP(DropDownList!$B$47,CntyQuery!$A$51:$CE$93,AH$1)","v":27},{"$f":"VLOOKUP(DropDownList!$B$47,CntyQuery!$A$51:$CE$93,AI$1)","v":23},{"$f":"VLOOKUP(DropDownList!$B$47,CntyQuery!$A$51:$CE$93,AJ$1)","v":1289},{"$f":"VLOOKUP(DropDownList!$B$47,CntyQuery!$A$51:$CE$93,AK$1)","v":494},{"$f":"VLOOKUP(DropDownList!$B$47,CntyQuery!$A$51:$CE$93,AL$1)","v":795},{"$f":"VLOOKUP(DropDownList!$B$47,CntyQuery!$A$51:$CE$93,AM$1)","v":430},{"$f":"VLOOKUP(DropDownList!$B$47,CntyQuery!$A$51:$CE$93,AN$1)","v":64},{"$f":"VLOOKUP(DropDownList!$B$47,CntyQuery!$A$51:$CE$93,AO$1)","v":8},{"$f":"VLOOKUP(DropDownList!$B$47,CntyQuery!$A$51:$CE$93,AP$1)","v":14},{"$f":"VLOOKUP(DropDownList!$B$47,CntyQuery!$A$51:$CE$93,AQ$1)","v":721},{"$f":"VLOOKUP(DropDownList!$B$47,CntyQuery!$A$51:$CE$93,AR$1)","v":1},{"$f":"VLOOKUP(DropDownList!$B$47,CntyQuery!$A$51:$CE$93,AS$1)","v":1},{"$f":"VLOOKUP(DropDownList!$B$47,CntyQuery!$A$51:$CE$93,AT$1)","v":0},{"$f":"VLOOKUP(DropDownList!$B$47,CntyQuery!$A$51:$CE$93,AU$1)","v":2},{"$f":"VLOOKUP(DropDownList!$B$47,CntyQuery!$A$51:$CE$93,AV$1)","v":2},{"$f":"VLOOKUP(DropDownList!$B$47,CntyQuery!$A$51:$CE$93,AW$1)","v":0},{"$f":"VLOOKUP(DropDownList!$B$47,CntyQuery!$A$51:$CE$93,AX$1)","v":1},{"$f":"VLOOKUP(DropDownList!$B$47,CntyQuery!$A$51:$CE$93,AY$1)","v":0},{"$f":"VLOOKUP(DropDownList!$B$47,CntyQuery!$A$51:$CE$93,AZ$1)","v":8},{"$f":"VLOOKUP(DropDownList!$B$47,CntyQuery!$A$51:$CE$93,BA$1)","v":14},{"$f":"VLOOKUP(DropDownList!$B$47,CntyQuery!$A$51:$CE$93,BB$1)","v":44},{"$f":"VLOOKUP(DropDownList!$B$47,CntyQuery!$A$51:$CE$93,BC$1)","v":40},{"$f":"VLOOKUP(DropDownList!$B$47,CntyQuery!$A$51:$CE$93,BD$1)","v":37},{"$f":"VLOOKUP(DropDownList!$B$47,CntyQuery!$A$51:$CE$93,BE$1)","v":46},{"$f":"VLOOKUP(DropDownList!$B$47,CntyQuery!$A$51:$CE$93,BF$1)","v":59},{"$f":"VLOOKUP(DropDownList!$B$47,CntyQuery!$A$51:$CE$93,BG$1)","v":42},{"$f":"VLOOKUP(DropDownList!$B$47,CntyQuery!$A$51:$CE$93,BH$1)","v":22},{"$f":"VLOOKUP(DropDownList!$B$47,CntyQuery!$A$51:$CE$93,BI$1)","v":14},{"$f":"VLOOKUP(DropDownList!$B$47,CntyQuery!$A$51:$CE$93,BJ$1)","v":11},{"$f":"VLOOKUP(DropDownList!$B$47,CntyQuery!$A$51:$CE$93,BK$1)","v":4},{"$f":"VLOOKUP(DropDownList!$B$47,CntyQuery!$A$51:$CE$93,BL$1)","v":163000},{"$f":"VLOOKUP(DropDownList!$B$47,CntyQuery!$A$51:$CE$93,BM$1)","v":923},{"$f":"VLOOKUP(DropDownList!$B$47,CntyQuery!$A$51:$CE$93,BN$1)","v":339},{"$f":"VLOOKUP(DropDownList!$B$47,CntyQuery!$A$51:$CE$93,BO$1)","v":27},{"$f":"VLOOKUP(DropDownList!$B$47,CntyQuery!$A$51:$CE$93,BP$1)","v":391},{"$f":"VLOOKUP(DropDownList!$B$47,CntyQuery!$A$51:$CE$93,BQ$1)","v":25},{"$f":"VLOOKUP(DropDownList!$B$47,CntyQuery!$A$51:$CE$93,BR$1)","v":14},{"$f":"VLOOKUP(DropDownList!$B$47,CntyQuery!$A$51:$CE$93,BS$1)","v":35},{"$f":"VLOOKUP(DropDownList!$B$47,CntyQuery!$A$51:$CE$93,BT$1)","v":22},{"$f":"VLOOKUP(DropDownList!$B$47,CntyQuery!$A$51:$CE$93,BU$1)","v":7},{"$f":"VLOOKUP(DropDownList!$B$47,CntyQuery!$A$51:$CE$93,BV$1)","v":923},{"$f":"VLOOKUP(DropDownList!$B$47,CntyQuery!$A$51:$CE$93,BW$1)","v":322},{"$f":"VLOOKUP(DropDownList!$B$47,CntyQuery!$A$51:$CE$93,BX$1)","v":9},{"$f":"VLOOKUP(DropDownList!$B$47,CntyQuery!$A$51:$CE$93,BY$1)","v":5},{"$f":"VLOOKUP(DropDownList!$B$47,CntyQuery!$A$51:$CE$93,BZ$1)","v":1},{"$f":"VLOOKUP(DropDownList!$B$47,CntyQuery!$A$51:$CE$93,CA$1)","v":2},{"$f":"VLOOKUP(DropDownList!$B$47,CntyQuery!$A$51:$CE$93,CB$1)","v":0},{"$f":"VLOOKUP(DropDownList!$B$47,CntyQuery!$A$51:$CE$93,CC$1)","v":0},{"$f":"VLOOKUP(DropDownList!$B$47,CntyQuery!$A$51:$CE$93,CD$1)","v":21},{"$f":"VLOOKUP(DropDownList!$B$47,CntyQuery!$A$51:$CE$93,CE$1)","v":6}]
[]
[]
["Census 1990 Data -          Query Name: TownSTF3Qry1"]
["NAME","FIPS","COUSUBFP","LandAcres","WaterAcres","HousingUnits90Cen","P01Persons90Cen","P02Families90Cen","P03Households90cen","H25HU<5yrs90cen","H25HU5to20yrs90cen","H25HU20to50yrs90cen","H25HU>50yrs90cen","H31Units0Bedroom90cen","H31Units1Bedroom90cen","H31Units2Bedroom90cen","H31Units3Bedroom90cen","H31Units4Bedroom90cen","H31Units5+Bedroom90cen","P80HI<5K","P80HI5Kto10K","P80HI10Kto15K","P80HI15Kto25K","P80HI25Kto35K","P80HI35Kto50K","P80HI50Kto75K","P80HI75Kto100K","P80HI>100K","P80AMedHI","P86HH<25HI<5K","P86HH<25HI5Kto10K","P86HH<25HI10Kto15K","P86HH<25HI15Kto25K","P86HH<25HI25Kto35K","P86HH<25HI35Kto50K","P86HH<25HI50Kto75K","P86HH<25HI75Kto100K","P86HH<25HI>100K","P86HH25to34HI<5K","P86HH25to34HI5Kto10K","P86HH25to34HI10Kto15K","P86HH25to34HI15Kto25K","P86HH25to34HI25Kto35K","P86HH25to34HI35Kto50K","P86HH25to34HI50Kto75K","P86HH25to34HI75Kto100K","P86HH25to34HI>100K","P86HH35to44HI<5K","P86HH35to44HI5Kto10K","P86HH35to44HI10Kto15K","P86HH35to44HI15Kto25K","P86HH35to44HI25Kto35K","P86HH35to44HI35Kto50K","P86HH35to44HI50Kto75K","P86HH35to44HI75Kto100K","P86HH35to44HI>100K","P86HH45to54HI<5K","P86HH45to54HI5Kto10K","P86HH45to54HI10Kto15K","P86HH45to54HI15Kto25K","P86HH45to54HI25Kto35K","P86HH45to54HI35Kto50K","P86HH45to54HI50Kto75K","P86HH45to54HI75Kto100K","P86HH45to54HI>100K","P86HH55to64HI<5K","P86HH55to64HI5Kto10K","P86HH55to64HI10Kto15K","P86HH55to64HI15Kto25K","P86HH55to64HI25Kto35K","P86HH55to64HI35Kto50K","P86HH55to64HI50Kto75K","P86HH55to64HI75Kto100K","P86HH55to64HI>100K","P86HH65to74HI<5K","P86HH65to74HI5Kto10K","P86HH65to74HI10Kto15K","P86HH65to74HI15Kto25K","P86HH65to74HI25Kto35K","P86HH65to74HI35Kto50K","P86HH65to74HI50Kto75K","P86HH65to74HI75Kto100K","P86HH65to74HI>100K","P86HH>75HI<5K","P86HH>75HI5Kto10K","P86HH>75HI10Kto15K","P86HH>75HI15Kto25K","P86HH>75HI25Kto35K","P86HH>75HI35Kto50K","P86HH>75HI50Kto75K","P86HH>75HI75Kto100K","P86HH>75HI>100K","P54SchlEnrlPrePrim","P54SchlEnrlElemThrHS","P54SchlEnrlCollege","P54NotEnrlInSch","P57Pop25andOver","P57LessThan9thGrade","P579thto12thNoDip","P57HSGrad","P57SomeCollege","P57AssocDeg","P57BachelDeg","P57GradorProfDeg","P57HSGradorHigher","P57CollGradorHigher","P42NativePop","P42ForeignBornPop","P42BornStateOfRes","P37NativePop2","P37ForeignBornPop2","P49DroveAlone","P49CarPooled","P49PublicTranspt","P49Walked","P49OtherMeans","P49WorkedAtHome","P80HHInc<10K","P80HHInc10to15K","P80HHInc15to25K","P80HHInc25to35K","P80HHInc35to50K","P80HHInc50to75K","P80HHInc75to100K","P80HHInc100to150K","P80HHInc>150K","H25YearStBlt89to90","H25YearStBlt85to88","H25YearStBlt80to84","H25YearStBlt70to79","H25YearStBlt60to69","H25YearStBlt50to59","H25YearStBlt40to49","H25YearStBlt39earlier","P107FamInc<10K","P107FamInc10to15K","P107FamInc15to25K","P107FamInc25to35K","P107FamInc35to50K","P107FamInc50to75K","P107FamInc75to100K","P107FamInc100to150K","P107FamInc>150K","P107AMedFamInc","P110NonFamInc<10K","P110NonFamInc10to15K","P110NonFamInc15to25K","P110NonFamInc25to35K","P110NonFamInc35to50K","P110NonFamInc50to75K","P110NonFamInc75to100K","P110NonFamInc100to150K","P110NonFamInc>150K","P110AMedNonFamInc","H16HU1Room","H16HU2Room","H16HU3Room","H16HU4Room","H16HU5Room","H16HU6Room","H16HU7Room","H16HU8Room","H16HU9+Room","H43GrossRnt<100","H43GrossRnt100to149","H43GrossRnt150to199","H43GrossRnt200to249","H43GrossRnt250to299","H43GrossRnt300to349","H43GrossRnt350to399","H43GrossRnt400to449","H43GrossRnt450to499","H43GrossRnt500to549","H43GrossRnt550to599","H43GrossRnt600to649","H43GrossRnt650to699","H43GrossRnt700to749","H43GrossRnt750to999","H43GrossRnt1000Plus","H43NoCashRent","H43MedGrossRent","H51GrossRnt<20PctHHInc","H51GrossRnt20to24PctHHInc","H51GrossRnt25to29PctHHInc","H51GrossRnt30to34PctHHInc","H51GrossRnt35PctOrMoreHHInc","H51GrossRntAsPctHHIncNotComp","H52HUwMtgMoOwnCst<200","H52HUwMtgMoOwnCst200to299","H52HUwMtgMoOwnCst300to399","H52HUwMtgMoOwnCst400to499","H52HUwMtgMoOwnCst500to599","H52HUwMtgMoOwnCst600to699","H52HUwMtgMoOwnCst700to799","H52HUwMtgMoOwnCst800to899","H52HUwMtgMoOwnCst900to999","H52HUwMtgMoOwnCst1000to1249","H52HUwMtgMoOwnCst1250to1499","H52HUwMtgMoOwnCst1500to1999","H52HUwMtgMoOwnCst2000More","H52HUwNoMtgMoOwnCst<100","H52HUwNoMtgMoOwnCst100to149","H52HUwNoMtgMoOwnCst150to199","H52HUwNoMtgMoOwnCst200to249","H52HUwNoMtgMoOwnCst250to299","H52HUwNoMtgMoOwnCst300to349","H52HUwNoMtgMoOwnCst350to399","H52HUwNoMtgMoOwnCst400More","H52AMedMoOwnCstWMortg","H52AMedMoOwnCstWNoMortg","H58HUwMtgMOC<20pHHInc","H58HUwMtgMOC20to24pHHInc","H58HUwMtgMOC25to29pHHInc","H58HUwMtgMOC30to34pHHInc","H58wMtgMOC>35pHHInc","H58HUwMtgMOCNotComp","H58HUwNoMtgMOC<20pHHInc","H58HUwNoMtgMOC20to24pHHInc","H58HUwNoMtgMOC25to29pHHInc","H58HUwNoMtgMOC30to34pHHInc","H58wNoMtgMOC>35pHHInc","H58HUwNoMtgMOCNotComp","H61OOHUVal<15k","H61OOHUVal15to19k","H61OOHUVal20to24k","H61OOHUVal25to29k","H61OOHUVal30to34k","H61OOHUVal35to39k","H61OOHUVal40to44k","H61OOHUVal45to49k","H61OOHUVal50to59k","H61OOHUVal60to74k","H61OOHUVal75to99k","H61OOHUVal100to124k","H61OOHUVal125to149k","H61OOHUVal150to174k","H61OOHUVal175to199k","H61OOHUVal200to249k","H61OOHUVal250to299k","H61OOHUVal300to399k","H61OOHUVal400to499k","H61OOHUVal500kOrMore","H61aOOHUMedVal"]
[]
[]
[]
["Other Demo Data -             Query Name: QryAllTowns-ACSDemographicSheet"]
["TOWN_NAME","FIPS","TOWNCNTY","COUSUB","POP80","POP90CDCEN","POP2000CEN","POP2010CEN","POP2020-Proj","POP2025-Proj","POP2030-Proj","SF80","MF80","MH80","SF81","MF81","MH81","SF82","MF82","MH82","SF83","MF83","MH83","SF84_OSP","MF84_OSP","MH84_OSP","SF85_OSP","MF85_OSP","MH85_OSP","SF86_OSP","MF86_OSP","MH86_OSP","SF87_OSP","MF87_OSP","MH87_OSP","SF88_OSP","MF88_OSP","MH88_OSP","SF89_OSP","MF89_OSP","MH89_OSP","SF90_OSP","MF90_OSP","MH90_OSP","SF91_OSP","MF91_OSP","MH91_OSP","SF92_OSP","MF92_OSP","MH92_OSP","SF93_OSP","MF93_OSP","MH93_OSP","SF94_OSP","MF94_OSP","MH94_OSP","SF95_OSP","MF95_OSP","MH95_OSP","SF96_OSP","MF96_OSP","MH96_OSP","SF97_OSP","MF97_OSP","MH97_OSP","SF98_OSP","MF98_OSP","MH98_OSP","SF99_OSP","MF99_OSP","MH99_OSP","SF00_OSP","MF00_OSP","MH00_OSP","SF01_OSP","MF01_OSP","MH01_OSP","SF02_OSP","MF02_OSP","MH02_OSP","SF03_OSP","MF03_OSP","MH03_OSP","SF04_OSP","MF04_OSP","MH04_OSP","SF05_OSP","MF05_OSP","MH05_OSP","SF06_OSP","MF06_OSP","MH06_OSP","SF07_OSP","MF07_OSP","MH07_OSP","SF08_OSP","MF08_OSP","MH08_OSP","SF09_OSP","MF09_OSP","MH09_OSP","SF10_OSP","MF10_OSP","MH10_OSP","SF11_OSP","MF11_OSP","MH11_OSP","SF12_OSP","MF12_OSP","MH12_OSP","SF13_OSP","MF13_OSP","MH13_OSP","SF14_OSP","MF14_OSP","MH14_OSP","SF15_OSP","MF15_OSP","MH15_OSP","SF16_OSP","MF16_OSP","MH16_OSP","SF17_OSP","MF17_OSP","MH17_OSP","SF18_OSP","MF18_OSP","MH18_OSP","COMMENTS","CNTY_CODE"]
[{"$f":"VLOOKUP(DropDownList!$B$47,CntyQuery!$A$117:$DZ$160,A$1)","v":"Grantham"},{"$f":"VLOOKUP(DropDownList!$B$47,CntyQuery!$A$117:$DZ$160,B$1)","v":19035},{"$f":"VLOOKUP(DropDownList!$B$47,CntyQuery!$A$117:$DZ$160,C$1)","v":1007},{"$f":"VLOOKUP(DropDownList!$B$47,CntyQuery!$A$117:$DZ$160,D$1)","v":"31220"},{"$f":"VLOOKUP(DropDownList!$B$47,CntyQuery!$A$117:$DZ$160,E$1)","v":704},{"$f":"VLOOKUP(DropDownList!$B$47,CntyQuery!$A$117:$DZ$160,F$1)","v":1247},{"$f":"VLOOKUP(DropDownList!$B$47,CntyQuery!$A$117:$DZ$160,G$1)","v":2167},{"$f":"VLOOKUP(DropDownList!$B$47,CntyQuery!$A$117:$DZ$160,H$1)","v":2985},{"$f":"VLOOKUP(DropDownList!$B$47,CntyQuery!$A$117:$DZ$160,I$1)","v":3404},{"$f":"VLOOKUP(DropDownList!$B$47,CntyQuery!$A$117:$DZ$160,J$1)","v":3474},{"$f":"VLOOKUP(DropDownList!$B$47,CntyQuery!$A$117:$DZ$160,K$1)","v":3512},{"$f":"VLOOKUP(DropDownList!$B$47,CntyQuery!$A$117:$DZ$160,L$1)","v":3512},{"$f":"VLOOKUP(DropDownList!$B$47,CntyQuery!$A$117:$DZ$160,M$1)","v":78},{"$f":"VLOOKUP(DropDownList!$B$47,CntyQuery!$A$117:$DZ$160,N$1)","v":10},{"$f":"VLOOKUP(DropDownList!$B$47,CntyQuery!$A$117:$DZ$160,O$1)","v":0},{"$f":"VLOOKUP(DropDownList!$B$47,CntyQuery!$A$117:$DZ$160,P$1)","v":81},{"$f":"VLOOKUP(DropDownList!$B$47,CntyQuery!$A$117:$DZ$160,Q$1)","v":0},{"$f":"VLOOKUP(DropDownList!$B$47,CntyQuery!$A$117:$DZ$160,R$1)","v":0},{"$f":"VLOOKUP(DropDownList!$B$47,CntyQuery!$A$117:$DZ$160,S$1)","v":6},{"$f":"VLOOKUP(DropDownList!$B$47,CntyQuery!$A$117:$DZ$160,T$1)","v":0},{"$f":"VLOOKUP(DropDownList!$B$47,CntyQuery!$A$117:$DZ$160,U$1)","v":0},{"$f":"VLOOKUP(DropDownList!$B$47,CntyQuery!$A$117:$DZ$160,V$1)","v":0},{"$f":"VLOOKUP(DropDownList!$B$47,CntyQuery!$A$117:$DZ$160,W$1)","v":0},{"$f":"VLOOKUP(DropDownList!$B$47,CntyQuery!$A$117:$DZ$160,X$1)","v":0},{"$f":"VLOOKUP(DropDownList!$B$47,CntyQuery!$A$117:$DZ$160,Y$1)","v":9},{"$f":"VLOOKUP(DropDownList!$B$47,CntyQuery!$A$117:$DZ$160,Z$1)","v":0},{"$f":"VLOOKUP(DropDownList!$B$47,CntyQuery!$A$117:$DZ$160,AA$1)","v":0},{"$f":"VLOOKUP(DropDownList!$B$47,CntyQuery!$A$117:$DZ$160,AB$1)","v":7},{"$f":"VLOOKUP(DropDownList!$B$47,CntyQuery!$A$117:$DZ$160,AC$1)","v":0},{"$f":"VLOOKUP(DropDownList!$B$47,CntyQuery!$A$117:$DZ$160,AD$1)","v":0},{"$f":"VLOOKUP(DropDownList!$B$47,CntyQuery!$A$117:$DZ$160,AE$1)","v":52},{"$f":"VLOOKUP(DropDownList!$B$47,CntyQuery!$A$117:$DZ$160,AF$1)","v":0},{"$f":"VLOOKUP(DropDownList!$B$47,CntyQuery!$A$117:$DZ$160,AG$1)","v":0},{"$f":"VLOOKUP(DropDownList!$B$47,CntyQuery!$A$117:$DZ$160,AH$1)","v":61},{"$f":"VLOOKUP(DropDownList!$B$47,CntyQuery!$A$117:$DZ$160,AI$1)","v":0},{"$f":"VLOOKUP(DropDownList!$B$47,CntyQuery!$A$117:$DZ$160,AJ$1)","v":0},{"$f":"VLOOKUP(DropDownList!$B$47,CntyQuery!$A$117:$DZ$160,AK$1)","v":63},{"$f":"VLOOKUP(DropDownList!$B$47,CntyQuery!$A$117:$DZ$160,AL$1)","v":0},{"$f":"VLOOKUP(DropDownList!$B$47,CntyQuery!$A$117:$DZ$160,AM$1)","v":3},{"$f":"VLOOKUP(DropDownList!$B$47,CntyQuery!$A$117:$DZ$160,AN$1)","v":58},{"$f":"VLOOKUP(DropDownList!$B$47,CntyQuery!$A$117:$DZ$160,AO$1)","v":0},{"$f":"VLOOKUP(DropDownList!$B$47,CntyQuery!$A$117:$DZ$160,AP$1)","v":5},{"$f":"VLOOKUP(DropDownList!$B$47,CntyQuery!$A$117:$DZ$160,AQ$1)","v":27},{"$f":"VLOOKUP(DropDownList!$B$47,CntyQuery!$A$117:$DZ$160,AR$1)","v":0},{"$f":"VLOOKUP(DropDownList!$B$47,CntyQuery!$A$117:$DZ$160,AS$1)","v":2},{"$f":"VLOOKUP(DropDownList!$B$47,CntyQuery!$A$117:$DZ$160,AT$1)","v":27},{"$f":"VLOOKUP(DropDownList!$B$47,CntyQuery!$A$117:$DZ$160,AU$1)","v":0},{"$f":"VLOOKUP(DropDownList!$B$47,CntyQuery!$A$117:$DZ$160,AV$1)","v":1},{"$f":"VLOOKUP(DropDownList!$B$47,CntyQuery!$A$117:$DZ$160,AW$1)","v":17},{"$f":"VLOOKUP(DropDownList!$B$47,CntyQuery!$A$117:$DZ$160,AX$1)","v":0},{"$f":"VLOOKUP(DropDownList!$B$47,CntyQuery!$A$117:$DZ$160,AY$1)","v":0},{"$f":"VLOOKUP(DropDownList!$B$47,CntyQuery!$A$117:$DZ$160,AZ$1)","v":22},{"$f":"VLOOKUP(DropDownList!$B$47,CntyQuery!$A$117:$DZ$160,BA$1)","v":0},{"$f":"VLOOKUP(DropDownList!$B$47,CntyQuery!$A$117:$DZ$160,BB$1)","v":1},{"$f":"VLOOKUP(DropDownList!$B$47,CntyQuery!$A$117:$DZ$160,BC$1)","v":27},{"$f":"VLOOKUP(DropDownList!$B$47,CntyQuery!$A$117:$DZ$160,BD$1)","v":0},{"$f":"VLOOKUP(DropDownList!$B$47,CntyQuery!$A$117:$DZ$160,BE$1)","v":2},{"$f":"VLOOKUP(DropDownList!$B$47,CntyQuery!$A$117:$DZ$160,BF$1)","v":22},{"$f":"VLOOKUP(DropDownList!$B$47,CntyQuery!$A$117:$DZ$160,BG$1)","v":0},{"$f":"VLOOKUP(DropDownList!$B$47,CntyQuery!$A$117:$DZ$160,BH$1)","v":1},{"$f":"VLOOKUP(DropDownList!$B$47,CntyQuery!$A$117:$DZ$160,BI$1)","v":24},{"$f":"VLOOKUP(DropDownList!$B$47,CntyQuery!$A$117:$DZ$160,BJ$1)","v":0},{"$f":"VLOOKUP(DropDownList!$B$47,CntyQuery!$A$117:$DZ$160,BK$1)","v":2},{"$f":"VLOOKUP(DropDownList!$B$47,CntyQuery!$A$117:$DZ$160,BL$1)","v":25},{"$f":"VLOOKUP(DropDownList!$B$47,CntyQuery!$A$117:$DZ$160,BM$1)","v":0},{"$f":"VLOOKUP(DropDownList!$B$47,CntyQuery!$A$117:$DZ$160,BN$1)","v":0},{"$f":"VLOOKUP(DropDownList!$B$47,CntyQuery!$A$117:$DZ$160,BO$1)","v":21},{"$f":"VLOOKUP(DropDownList!$B$47,CntyQuery!$A$117:$DZ$160,BP$1)","v":0},{"$f":"VLOOKUP(DropDownList!$B$47,CntyQuery!$A$117:$DZ$160,BQ$1)","v":2},{"$f":"VLOOKUP(DropDownList!$B$47,CntyQuery!$A$117:$DZ$160,BR$1)","v":21},{"$f":"VLOOKUP(DropDownList!$B$47,CntyQuery!$A$117:$DZ$160,BS$1)","v":0},{"$f":"VLOOKUP(DropDownList!$B$47,CntyQuery!$A$117:$DZ$160,BT$1)","v":3},{"$f":"VLOOKUP(DropDownList!$B$47,CntyQuery!$A$117:$DZ$160,BU$1)","v":34},{"$f":"VLOOKUP(DropDownList!$B$47,CntyQuery!$A$117:$DZ$160,BV$1)","v":0},{"$f":"VLOOKUP(DropDownList!$B$47,CntyQuery!$A$117:$DZ$160,BW$1)","v":1},{"$f":"VLOOKUP(DropDownList!$B$47,CntyQuery!$A$117:$DZ$160,BX$1)","v":28},{"$f":"VLOOKUP(DropDownList!$B$47,CntyQuery!$A$117:$DZ$160,BY$1)","v":2},{"$f":"VLOOKUP(DropDownList!$B$47,CntyQuery!$A$117:$DZ$160,BZ$1)","v":0},{"$f":"VLOOKUP(DropDownList!$B$47,CntyQuery!$A$117:$DZ$160,CA$1)","v":45},{"$f":"VLOOKUP(DropDownList!$B$47,CntyQuery!$A$117:$DZ$160,CB$1)","v":2},{"$f":"VLOOKUP(DropDownList!$B$47,CntyQuery!$A$117:$DZ$160,CC$1)","v":0},{"$f":"VLOOKUP(DropDownList!$B$47,CntyQuery!$A$117:$DZ$160,CD$1)","v":59},{"$f":"VLOOKUP(DropDownList!$B$47,CntyQuery!$A$117:$DZ$160,CE$1)","v":0},{"$f":"VLOOKUP(DropDownList!$B$47,CntyQuery!$A$117:$DZ$160,CF$1)","v":0},{"$f":"VLOOKUP(DropDownList!$B$47,CntyQuery!$A$117:$DZ$160,CG$1)","v":42},{"$f":"VLOOKUP(DropDownList!$B$47,CntyQuery!$A$117:$DZ$160,CH$1)","v":0},{"$f":"VLOOKUP(DropDownList!$B$47,CntyQuery!$A$117:$DZ$160,CI$1)","v":0},{"$f":"VLOOKUP(DropDownList!$B$47,CntyQuery!$A$117:$DZ$160,CJ$1)","v":31},{"$f":"VLOOKUP(DropDownList!$B$47,CntyQuery!$A$117:$DZ$160,CK$1)","v":0},{"$f":"VLOOKUP(DropDownList!$B$47,CntyQuery!$A$117:$DZ$160,CL$1)","v":0},{"$f":"VLOOKUP(DropDownList!$B$47,CntyQuery!$A$117:$DZ$160,CM$1)","v":23},{"$f":"VLOOKUP(DropDownList!$B$47,CntyQuery!$A$117:$DZ$160,CN$1)","v":0},{"$f":"VLOOKUP(DropDownList!$B$47,CntyQuery!$A$117:$DZ$160,CO$1)","v":0},{"$f":"VLOOKUP(DropDownList!$B$47,CntyQuery!$A$117:$DZ$160,CP$1)","v":23},{"$f":"VLOOKUP(DropDownList!$B$47,CntyQuery!$A$117:$DZ$160,CQ$1)","v":0},{"$f":"VLOOKUP(DropDownList!$B$47,CntyQuery!$A$117:$DZ$160,CR$1)","v":0},{"$f":"VLOOKUP(DropDownList!$B$47,CntyQuery!$A$117:$DZ$160,CS$1)","v":15},{"$f":"VLOOKUP(DropDownList!$B$47,CntyQuery!$A$117:$DZ$160,CT$1)","v":0},{"$f":"VLOOKUP(DropDownList!$B$47,CntyQuery!$A$117:$DZ$160,CU$1)","v":0},{"$f":"VLOOKUP(DropDownList!$B$47,CntyQuery!$A$117:$DZ$160,CV$1)","v":6},{"$f":"VLOOKUP(DropDownList!$B$47,CntyQuery!$A$117:$DZ$160,CW$1)","v":0},{"$f":"VLOOKUP(DropDownList!$B$47,CntyQuery!$A$117:$DZ$160,CX$1)","v":0},{"$f":"VLOOKUP(DropDownList!$B$47,CntyQuery!$A$117:$DZ$160,CY$1)","v":5},{"$f":"VLOOKUP(DropDownList!$B$47,CntyQuery!$A$117:$DZ$160,CZ$1)","v":0},{"$f":"VLOOKUP(DropDownList!$B$47,CntyQuery!$A$117:$DZ$160,DA$1)","v":0},{"$f":"VLOOKUP(DropDownList!$B$47,CntyQuery!$A$117:$DZ$160,DB$1)","v":6},{"$f":"VLOOKUP(DropDownList!$B$47,CntyQuery!$A$117:$DZ$160,DC$1)","v":0},{"$f":"VLOOKUP(DropDownList!$B$47,CntyQuery!$A$117:$DZ$160,DD$1)","v":0},{"$f":"VLOOKUP(DropDownList!$B$47,CntyQuery!$A$117:$DZ$160,DE$1)","v":3},{"$f":"VLOOKUP(DropDownList!$B$47,CntyQuery!$A$117:$DZ$160,DF$1)","v":0},{"$f":"VLOOKUP(DropDownList!$B$47,CntyQuery!$A$117:$DZ$160,DG$1)","v":0},{"$f":"VLOOKUP(DropDownList!$B$47,CntyQuery!$A$117:$DZ$160,DH$1)","v":5},{"$f":"VLOOKUP(DropDownList!$B$47,CntyQuery!$A$117:$DZ$160,DI$1)","v":2},{"$f":"VLOOKUP(DropDownList!$B$47,CntyQuery!$A$117:$DZ$160,DJ$1)","v":0},{"$f":"VLOOKUP(DropDownList!$B$47,CntyQuery!$A$117:$DZ$160,DK$1)","v":7},{"$f":"VLOOKUP(DropDownList!$B$47,CntyQuery!$A$117:$DZ$160,DL$1)","v":0},{"$f":"VLOOKUP(DropDownList!$B$47,CntyQuery!$A$117:$DZ$160,DM$1)","v":0},{"$f":"VLOOKUP(DropDownList!$B$47,CntyQuery!$A$117:$DZ$160,DN$1)","v":17},{"$f":"VLOOKUP(DropDownList!$B$47,CntyQuery!$A$117:$DZ$160,DO$1)","v":0},{"$f":"VLOOKUP(DropDownList!$B$47,CntyQuery!$A$117:$DZ$160,DP$1)","v":0},{"$f":"VLOOKUP(DropDownList!$B$47,CntyQuery!$A$117:$DZ$160,DQ$1)","v":3},{"$f":"VLOOKUP(DropDownList!$B$47,CntyQuery!$A$117:$DZ$160,DR$1)","v":0},{"$f":"VLOOKUP(DropDownList!$B$47,CntyQuery!$A$117:$DZ$160,DS$1)","v":0},{"$f":"VLOOKUP(DropDownList!$B$47,CntyQuery!$A$117:$DZ$160,DT$1)","v":3},{"$f":"VLOOKUP(DropDownList!$B$47,CntyQuery!$A$117:$DZ$160,DU$1)","v":1},{"$f":"VLOOKUP(DropDownList!$B$47,CntyQuery!$A$117:$DZ$160,DV$1)","v":0},{"$f":"VLOOKUP(DropDownList!$B$47,CntyQuery!$A$117:$DZ$160,DW$1)","v":6},{"$f":"VLOOKUP(DropDownList!$B$47,CntyQuery!$A$117:$DZ$160,DX$1)","v":0},{"$f":"VLOOKUP(DropDownList!$B$47,CntyQuery!$A$117:$DZ$160,DY$1)","v":0}]
[]
[]
["NH Employment Data","Query Name: DPQryEmploymentByCnty"]
["AreaName","COUNTYCODE","TOTP & G2001","TOT2001","GOODPRO2001","SERVICEPROMAN2001","WAGEP & G2001","WAGETOT2001","WAGEGOODPRO2001","WAGESERVICEPRO2001","TOTP & G2002","TOT2002","GOODPRO2002","SERVICEPROMAN2002","WAGEP & G2002","WAGETOT2002","WAGEGOODPRO2002","WAGESERVICEPRO2002","TOTP & G2003","TOT2003","GOODPRO2003","SERVICEPROMAN2003","WAGEP & G2003","WAGETOT2003","WAGEGOODPRO2003","WAGESERVICEPRO2003","TOTP & G2004","TOT2004","GOODPRO2004","SERVICEPROMAN2004","WAGEP & G2004","WAGETOT2004","WAGEGOODPRO2004","WAGESERVICEPRO2004","TOTP & G2005","TOT2005","GOODPRO2005","SERVICEPROMAN2005","WAGEP & G2005","WAGETOT2005","WAGEGOODPRO2005","WAGESERVICEPRO2005","TOTP & G2006","TOT2006","GOODPRO2006","SERVICEPROMAN2006","WAGEP & G2006","WAGETOT2006","WAGEGOODPRO2006","WAGESERVICEPRO2006","TOTP & G2007","TOT2007","GOODPRO2007","SERVICEPROMAN2007","WAGEP & G2007","WAGETOT2007","WAGEGOODPRO2007","WAGESERVICEPRO2007","TOTP & G2008","TOT2008","GOODPRO2008","SERVICEPROMAN2008","WAGEP & G2008","WAGETOT2008","WAGEGOODPRO2008","WAGESERVICEPRO2008","TOTP & G2009","TOT2009","GOODPRO2009","SERVICEPROMAN2009","WAGEP & G2009","WAGETOT2009","WAGEGOODPRO2009","WAGESERVICEPRO2009","TOTP & G2010","TOT2010","GOODPRO2010","SERVICEPROMAN2010","WAGEP & G2010","WAGETOT2010","WAGEGOODPRO2010","WAGESERVICEPRO2010","TOTP & G2011","TOT2011","GOODPRO2011","SERVICEPROMAN2011","WAGEP & G2011","WAGETOT2011","WAGEGOODPRO2011","WAGESERVICEPRO2011","TOTP & G2012","TOT2012","GOODPRO2012","SERVICEPROMAN2012","WAGEP & G2012","WAGETOT2012","WAGEGOODPRO2012","WAGESERVICEPRO2012","TOTP & G2013","TOT2013","GOODPRO2013","SERVICEPROMAN2013","WAGEP & G2013","WAGETOT2013","WAGEGOODPRO2013","WAGESERVICEPRO2013","TOTP & G2014","TOT2014","GOODPRO2014","SERVICEPROMAN2014","WAGEP & G2014","WAGETOT2014","WAGEGOODPRO2014","WAGESERVICEPRO2014","TOTP & G2015","TOT2015","GOODPRO2015","SERVICEPROMAN2015","WAGEP & G2015","WAGETOT2015","WAGEGOODPRO2015","WAGESERVICEPRO2015","TOTP & G2016","TOT2016","GOODPRO2016","SERVICEPROMAN2016","WAGEP & G2016","WAGETOT2016","WAGEGOODPRO2016","WAGESERVICEPRO2016","TOTP & G2017","TOT2017","GOODPRO2017","SERVICEPROMAN2017","WAGEP & G2017","WAGETOT2017","WAGEGOODPRO2017","WAGESERVICEPRO2017","TOTP & G2018","TOT2018","GOODPRO2018","SERVICEPROMAN2018","WAGEP & G2018","WAGETOT2018","WAGEGOODPRO2018","WAGESERVICEPRO2018","TOTP & G2019","TOT2019","TOTGov2019","GOODPRO2019","SERVICEPROMAN2019","WAGEP & G2019","WAGETOT2019","WAGEGov2019","WAGEGOODPRO2019","WAGESERVICEPRO2019","SummaryLevel"]
[{"$f":"VLOOKUP(DropDownList!$B$47,CntyQuery!$A$171:$FZ$185,A$1)","v":"Grantham"},{"$f":"VLOOKUP(DropDownList!$B$47,CntyQuery!$A$171:$FZ$185,B$1)","v":10},{"$f":"VLOOKUP(DropDownList!$B$47,CntyQuery!$A$171:$FZ$185,C$1)","v":300},{"$f":"VLOOKUP(DropDownList!$B$47,CntyQuery!$A$171:$FZ$185,D$1)","v":276},{"$f":"VLOOKUP(DropDownList!$B$47,CntyQuery!$A$171:$FZ$185,E$1)","v":92},{"$f":"VLOOKUP(DropDownList!$B$47,CntyQuery!$A$171:$FZ$185,F$1)","v":183},{"$f":"VLOOKUP(DropDownList!$B$47,CntyQuery!$A$171:$FZ$185,G$1)","v":514.5},{"$f":"VLOOKUP(DropDownList!$B$47,CntyQuery!$A$171:$FZ$185,H$1)","v":503.81},{"$f":"VLOOKUP(DropDownList!$B$47,CntyQuery!$A$171:$FZ$185,I$1)","v":592.91999999999996},{"$f":"VLOOKUP(DropDownList!$B$47,CntyQuery!$A$171:$FZ$185,J$1)","v":458.92},{"$f":"VLOOKUP(DropDownList!$B$47,CntyQuery!$A$171:$FZ$185,K$1)","v":307},{"$f":"VLOOKUP(DropDownList!$B$47,CntyQuery!$A$171:$FZ$185,L$1)","v":279},{"$f":"VLOOKUP(DropDownList!$B$47,CntyQuery!$A$171:$FZ$185,M$1)","v":99},{"$f":"VLOOKUP(DropDownList!$B$47,CntyQuery!$A$171:$FZ$185,N$1)","v":180},{"$f":"VLOOKUP(DropDownList!$B$47,CntyQuery!$A$171:$FZ$185,O$1)","v":512.86},{"$f":"VLOOKUP(DropDownList!$B$47,CntyQuery!$A$171:$FZ$185,P$1)","v":508.88},{"$f":"VLOOKUP(DropDownList!$B$47,CntyQuery!$A$171:$FZ$185,Q$1)","v":622.42999999999995},{"$f":"VLOOKUP(DropDownList!$B$47,CntyQuery!$A$171:$FZ$185,R$1)","v":446.7},{"$f":"VLOOKUP(DropDownList!$B$47,CntyQuery!$A$171:$FZ$185,S$1)","v":347},{"$f":"VLOOKUP(DropDownList!$B$47,CntyQuery!$A$171:$FZ$185,T$1)","v":321},{"$f":"VLOOKUP(DropDownList!$B$47,CntyQuery!$A$171:$FZ$185,U$1)","v":110},{"$f":"VLOOKUP(DropDownList!$B$47,CntyQuery!$A$171:$FZ$185,V$1)","v":211},{"$f":"VLOOKUP(DropDownList!$B$47,CntyQuery!$A$171:$FZ$185,W$1)","v":547.54},{"$f":"VLOOKUP(DropDownList!$B$47,CntyQuery!$A$171:$FZ$185,X$1)","v":540.41},{"$f":"VLOOKUP(DropDownList!$B$47,CntyQuery!$A$171:$FZ$185,Y$1)","v":673.42},{"$f":"VLOOKUP(DropDownList!$B$47,CntyQuery!$A$171:$FZ$185,Z$1)","v":471.28},{"$f":"VLOOKUP(DropDownList!$B$47,CntyQuery!$A$171:$FZ$185,AA$1)","v":391},{"$f":"VLOOKUP(DropDownList!$B$47,CntyQuery!$A$171:$FZ$185,AB$1)","v":363},{"$f":"VLOOKUP(DropDownList!$B$47,CntyQuery!$A$171:$FZ$185,AC$1)","v":144},{"$f":"VLOOKUP(DropDownList!$B$47,CntyQuery!$A$171:$FZ$185,AD$1)","v":219},{"$f":"VLOOKUP(DropDownList!$B$47,CntyQuery!$A$171:$FZ$185,AE$1)","v":546.82000000000005},{"$f":"VLOOKUP(DropDownList!$B$47,CntyQuery!$A$171:$FZ$185,AF$1)","v":539.5},{"$f":"VLOOKUP(DropDownList!$B$47,CntyQuery!$A$171:$FZ$185,AG$1)","v":621.96},{"$f":"VLOOKUP(DropDownList!$B$47,CntyQuery!$A$171:$FZ$185,AH$1)","v":485.19},{"$f":"VLOOKUP(DropDownList!$B$47,CntyQuery!$A$171:$FZ$185,AI$1)","v":393},{"$f":"VLOOKUP(DropDownList!$B$47,CntyQuery!$A$171:$FZ$185,AJ$1)","v":361},{"$f":"VLOOKUP(DropDownList!$B$47,CntyQuery!$A$171:$FZ$185,AK$1)","v":139},{"$f":"VLOOKUP(DropDownList!$B$47,CntyQuery!$A$171:$FZ$185,AL$1)","v":221},{"$f":"VLOOKUP(DropDownList!$B$47,CntyQuery!$A$171:$FZ$185,AM$1)","v":587.76},{"$f":"VLOOKUP(DropDownList!$B$47,CntyQuery!$A$171:$FZ$185,AN$1)","v":585.82000000000005},{"$f":"VLOOKUP(DropDownList!$B$47,CntyQuery!$A$171:$FZ$185,AO$1)","v":619.88},{"$f":"VLOOKUP(DropDownList!$B$47,CntyQuery!$A$171:$FZ$185,AP$1)","v":564.37},{"$f":"VLOOKUP(DropDownList!$B$47,CntyQuery!$A$171:$FZ$185,AQ$1)","v":366},{"$f":"VLOOKUP(DropDownList!$B$47,CntyQuery!$A$171:$FZ$185,AR$1)","v":335},{"$f":"VLOOKUP(DropDownList!$B$47,CntyQuery!$A$171:$FZ$185,AS$1)","v":123},{"$f":"VLOOKUP(DropDownList!$B$47,CntyQuery!$A$171:$FZ$185,AT$1)","v":212},{"$f":"VLOOKUP(DropDownList!$B$47,CntyQuery!$A$171:$FZ$185,AU$1)","v":641.34},{"$f":"VLOOKUP(DropDownList!$B$47,CntyQuery!$A$171:$FZ$185,AV$1)","v":638.70000000000005},{"$f":"VLOOKUP(DropDownList!$B$47,CntyQuery!$A$171:$FZ$185,AW$1)","v":643.65},{"$f":"VLOOKUP(DropDownList!$B$47,CntyQuery!$A$171:$FZ$185,AX$1)","v":635.84},{"$f":"VLOOKUP(DropDownList!$B$47,CntyQuery!$A$171:$FZ$185,AY$1)","v":338},{"$f":"VLOOKUP(DropDownList!$B$47,CntyQuery!$A$171:$FZ$185,AZ$1)","v":305},{"$f":"VLOOKUP(DropDownList!$B$47,CntyQuery!$A$171:$FZ$185,BA$1)","v":105},{"$f":"VLOOKUP(DropDownList!$B$47,CntyQuery!$A$171:$FZ$185,BB$1)","v":200},{"$f":"VLOOKUP(DropDownList!$B$47,CntyQuery!$A$171:$FZ$185,BC$1)","v":710.04},{"$f":"VLOOKUP(DropDownList!$B$47,CntyQuery!$A$171:$FZ$185,BD$1)","v":709.77},{"$f":"VLOOKUP(DropDownList!$B$47,CntyQuery!$A$171:$FZ$185,BE$1)","v":744.2},{"$f":"VLOOKUP(DropDownList!$B$47,CntyQuery!$A$171:$FZ$185,BF$1)","v":691.7},{"$f":"VLOOKUP(DropDownList!$B$47,CntyQuery!$A$171:$FZ$185,BG$1)","v":351},{"$f":"VLOOKUP(DropDownList!$B$47,CntyQuery!$A$171:$FZ$185,BH$1)","v":310},{"$f":"VLOOKUP(DropDownList!$B$47,CntyQuery!$A$171:$FZ$185,BI$1)","v":103},{"$f":"VLOOKUP(DropDownList!$B$47,CntyQuery!$A$171:$FZ$185,BJ$1)","v":208},{"$f":"VLOOKUP(DropDownList!$B$47,CntyQuery!$A$171:$FZ$185,BK$1)","v":635.95000000000005},{"$f":"VLOOKUP(DropDownList!$B$47,CntyQuery!$A$171:$FZ$185,BL$1)","v":636.19000000000005},{"$f":"VLOOKUP(DropDownList!$B$47,CntyQuery!$A$171:$FZ$185,BM$1)","v":675.32},{"$f":"VLOOKUP(DropDownList!$B$47,CntyQuery!$A$171:$FZ$185,BN$1)","v":616.84},{"$f":"VLOOKUP(DropDownList!$B$47,CntyQuery!$A$171:$FZ$185,BO$1)","v":318},{"$f":"VLOOKUP(DropDownList!$B$47,CntyQuery!$A$171:$FZ$185,BP$1)","v":279},{"$f":"VLOOKUP(DropDownList!$B$47,CntyQuery!$A$171:$FZ$185,BQ$1)","v":82},{"$f":"VLOOKUP(DropDownList!$B$47,CntyQuery!$A$171:$FZ$185,BR$1)","v":197},{"$f":"VLOOKUP(DropDownList!$B$47,CntyQuery!$A$171:$FZ$185,BS$1)","v":636.91999999999996},{"$f":"VLOOKUP(DropDownList!$B$47,CntyQuery!$A$171:$FZ$185,BT$1)","v":634.61},{"$f":"VLOOKUP(DropDownList!$B$47,CntyQuery!$A$171:$FZ$185,BU$1)","v":694.39},{"$f":"VLOOKUP(DropDownList!$B$47,CntyQuery!$A$171:$FZ$185,BV$1)","v":609.57000000000005},{"$f":"VLOOKUP(DropDownList!$B$47,CntyQuery!$A$171:$FZ$185,BW$1)","v":287},{"$f":"VLOOKUP(DropDownList!$B$47,CntyQuery!$A$171:$FZ$185,BX$1)","v":249},{"$f":"VLOOKUP(DropDownList!$B$47,CntyQuery!$A$171:$FZ$185,BY$1)","v":67},{"$f":"VLOOKUP(DropDownList!$B$47,CntyQuery!$A$171:$FZ$185,BZ$1)","v":182},{"$f":"VLOOKUP(DropDownList!$B$47,CntyQuery!$A$171:$FZ$185,CA$1)","v":640.54},{"$f":"VLOOKUP(DropDownList!$B$47,CntyQuery!$A$171:$FZ$185,CB$1)","v":648.77},{"$f":"VLOOKUP(DropDownList!$B$47,CntyQuery!$A$171:$FZ$185,CC$1)","v":871.25},{"$f":"VLOOKUP(DropDownList!$B$47,CntyQuery!$A$171:$FZ$185,CD$1)","v":567.49},{"$f":"VLOOKUP(DropDownList!$B$47,CntyQuery!$A$171:$FZ$185,CE$1)","v":270},{"$f":"VLOOKUP(DropDownList!$B$47,CntyQuery!$A$171:$FZ$185,CF$1)","v":228},{"$f":"VLOOKUP(DropDownList!$B$47,CntyQuery!$A$171:$FZ$185,CG$1)","v":38},{"$f":"VLOOKUP(DropDownList!$B$47,CntyQuery!$A$171:$FZ$185,CH$1)","v":190},{"$f":"VLOOKUP(DropDownList!$B$47,CntyQuery!$A$171:$FZ$185,CI$1)","v":592},{"$f":"VLOOKUP(DropDownList!$B$47,CntyQuery!$A$171:$FZ$185,CJ$1)","v":602.09},{"$f":"VLOOKUP(DropDownList!$B$47,CntyQuery!$A$171:$FZ$185,CK$1)","v":777.31},{"$f":"VLOOKUP(DropDownList!$B$47,CntyQuery!$A$171:$FZ$185,CL$1)","v":567.35},{"$f":"VLOOKUP(DropDownList!$B$47,CntyQuery!$A$171:$FZ$185,CM$1)","v":268},{"$f":"VLOOKUP(DropDownList!$B$47,CntyQuery!$A$171:$FZ$185,CN$1)","v":222},{"$f":"VLOOKUP(DropDownList!$B$47,CntyQuery!$A$171:$FZ$185,CO$1)","v":25},{"$f":"VLOOKUP(DropDownList!$B$47,CntyQuery!$A$171:$FZ$185,CP$1)","v":197},{"$f":"VLOOKUP(DropDownList!$B$47,CntyQuery!$A$171:$FZ$185,CQ$1)","v":674.11},{"$f":"VLOOKUP(DropDownList!$B$47,CntyQuery!$A$171:$FZ$185,CR$1)","v":707.19},{"$f":"VLOOKUP(DropDownList!$B$47,CntyQuery!$A$171:$FZ$185,CS$1)","v":713.75},{"$f":"VLOOKUP(DropDownList!$B$47,CntyQuery!$A$171:$FZ$185,CT$1)","v":706.36},{"$f":"VLOOKUP(DropDownList!$B$47,CntyQuery!$A$171:$FZ$185,CU$1)","v":293},{"$f":"VLOOKUP(DropDownList!$B$47,CntyQuery!$A$171:$FZ$185,CV$1)","v":245},{"$f":"VLOOKUP(DropDownList!$B$47,CntyQuery!$A$171:$FZ$185,CW$1)","v":36},{"$f":"VLOOKUP(DropDownList!$B$47,CntyQuery!$A$171:$FZ$185,CX$1)","v":209},{"$f":"VLOOKUP(DropDownList!$B$47,CntyQuery!$A$171:$FZ$185,CY$1)","v":694.66},{"$f":"VLOOKUP(DropDownList!$B$47,CntyQuery!$A$171:$FZ$185,CZ$1)","v":726.57},{"$f":"VLOOKUP(DropDownList!$B$47,CntyQuery!$A$171:$FZ$185,DA$1)","v":885.64},{"$f":"VLOOKUP(DropDownList!$B$47,CntyQuery!$A$171:$FZ$185,DB$1)","v":698.82},{"$f":"VLOOKUP(DropDownList!$B$47,CntyQuery!$A$171:$FZ$185,DC$1)","v":303},{"$f":"VLOOKUP(DropDownList!$B$47,CntyQuery!$A$171:$FZ$185,DD$1)","v":258},{"$f":"VLOOKUP(DropDownList!$B$47,CntyQuery!$A$171:$FZ$185,DE$1)","v":43},{"$f":"VLOOKUP(DropDownList!$B$47,CntyQuery!$A$171:$FZ$185,DF$1)","v":215},{"$f":"VLOOKUP(DropDownList!$B$47,CntyQuery!$A$171:$FZ$185,DG$1)","v":688.99},{"$f":"VLOOKUP(DropDownList!$B$47,CntyQuery!$A$171:$FZ$185,DH$1)","v":712.76},{"$f":"VLOOKUP(DropDownList!$B$47,CntyQuery!$A$171:$FZ$185,DI$1)","v":770.97},{"$f":"VLOOKUP(DropDownList!$B$47,CntyQuery!$A$171:$FZ$185,DJ$1)","v":701},{"$f":"VLOOKUP(DropDownList!$B$47,CntyQuery!$A$171:$FZ$185,DK$1)","v":314},{"$f":"VLOOKUP(DropDownList!$B$47,CntyQuery!$A$171:$FZ$185,DL$1)","v":270},{"$f":"VLOOKUP(DropDownList!$B$47,CntyQuery!$A$171:$FZ$185,DM$1)","v":42},{"$f":"VLOOKUP(DropDownList!$B$47,CntyQuery!$A$171:$FZ$185,DN$1)","v":228},{"$f":"VLOOKUP(DropDownList!$B$47,CntyQuery!$A$171:$FZ$185,DO$1)","v":653.34},{"$f":"VLOOKUP(DropDownList!$B$47,CntyQuery!$A$171:$FZ$185,DP$1)","v":663.48},{"$f":"VLOOKUP(DropDownList!$B$47,CntyQuery!$A$171:$FZ$185,DQ$1)","v":829.78},{"$f":"VLOOKUP(DropDownList!$B$47,CntyQuery!$A$171:$FZ$185,DR$1)","v":633.16},{"$f":"VLOOKUP(DropDownList!$B$47,CntyQuery!$A$171:$FZ$185,DS$1)","v":324},{"$f":"VLOOKUP(DropDownList!$B$47,CntyQuery!$A$171:$FZ$185,DT$1)","v":279},{"$f":"VLOOKUP(DropDownList!$B$47,CntyQuery!$A$171:$FZ$185,DU$1)","v":42},{"$f":"VLOOKUP(DropDownList!$B$47,CntyQuery!$A$171:$FZ$185,DV$1)","v":237},{"$f":"VLOOKUP(DropDownList!$B$47,CntyQuery!$A$171:$FZ$185,DW$1)","v":620.96},{"$f":"VLOOKUP(DropDownList!$B$47,CntyQuery!$A$171:$FZ$185,DX$1)","v":625.71},{"$f":"VLOOKUP(DropDownList!$B$47,CntyQuery!$A$171:$FZ$185,DY$1)","v":823.99},{"$f":"VLOOKUP(DropDownList!$B$47,CntyQuery!$A$171:$FZ$185,DZ$1)","v":590.66999999999996},{"$f":"VLOOKUP(DropDownList!$B$47,CntyQuery!$A$171:$FZ$185,EA$1)","v":310},{"$f":"VLOOKUP(DropDownList!$B$47,CntyQuery!$A$171:$FZ$185,EB$1)","v":268},{"$f":"VLOOKUP(DropDownList!$B$47,CntyQuery!$A$171:$FZ$185,EC$1)","v":40},{"$f":"VLOOKUP(DropDownList!$B$47,CntyQuery!$A$171:$FZ$185,ED$1)","v":228},{"$f":"VLOOKUP(DropDownList!$B$47,CntyQuery!$A$171:$FZ$185,EE$1)","v":626.41999999999996},{"$f":"VLOOKUP(DropDownList!$B$47,CntyQuery!$A$171:$FZ$185,EF$1)","v":621.05999999999995},{"$f":"VLOOKUP(DropDownList!$B$47,CntyQuery!$A$171:$FZ$185,EG$1)","v":853.2},{"$f":"VLOOKUP(DropDownList!$B$47,CntyQuery!$A$171:$FZ$185,EH$1)","v":580.4},{"$f":"VLOOKUP(DropDownList!$B$47,CntyQuery!$A$171:$FZ$185,EI$1)","v":328},{"$f":"VLOOKUP(DropDownList!$B$47,CntyQuery!$A$171:$FZ$185,EJ$1)","v":284},{"$f":"VLOOKUP(DropDownList!$B$47,CntyQuery!$A$171:$FZ$185,EK$1)","v":45},{"$f":"VLOOKUP(DropDownList!$B$47,CntyQuery!$A$171:$FZ$185,EL$1)","v":239},{"$f":"VLOOKUP(DropDownList!$B$47,CntyQuery!$A$171:$FZ$185,EM$1)","v":694.36},{"$f":"VLOOKUP(DropDownList!$B$47,CntyQuery!$A$171:$FZ$185,EN$1)","v":700.3},{"$f":"VLOOKUP(DropDownList!$B$47,CntyQuery!$A$171:$FZ$185,EO$1)","v":908.77},{"$f":"VLOOKUP(DropDownList!$B$47,CntyQuery!$A$171:$FZ$185,EP$1)","v":660.76},{"$f":"VLOOKUP(DropDownList!$B$47,CntyQuery!$A$171:$FZ$185,EQ$1)","v":325},{"$f":"VLOOKUP(DropDownList!$B$47,CntyQuery!$A$171:$FZ$185,ER$1)","v":269},{"$f":"VLOOKUP(DropDownList!$B$47,CntyQuery!$A$171:$FZ$185,ES$1)","v":56},{"$f":"VLOOKUP(DropDownList!$B$47,CntyQuery!$A$171:$FZ$185,ET$1)","v":48},{"$f":"VLOOKUP(DropDownList!$B$47,CntyQuery!$A$171:$FZ$185,EU$1)","v":221},{"$f":"VLOOKUP(DropDownList!$B$47,CntyQuery!$A$171:$FZ$185,EV$1)","v":673.63},{"$f":"VLOOKUP(DropDownList!$B$47,CntyQuery!$A$171:$FZ$185,EW$1)","v":702.55},{"$f":"VLOOKUP(DropDownList!$B$47,CntyQuery!$A$171:$FZ$185,EX$1)","v":534.71},{"$f":"VLOOKUP(DropDownList!$B$47,CntyQuery!$A$171:$FZ$185,EY$1)","v":914.68},{"$f":"VLOOKUP(DropDownList!$B$47,CntyQuery!$A$171:$FZ$185,EZ$1)","v":656.28}]
[]
[]
["Labor Force and Unemployment Rate","Query Name: DPQryUnempByCnty"]
["PlaceName","LaborForce1990","LaborForce1991","LaborForce1992","LaborForce1993","LaborForce1994","LaborForce1995","LaborForce1996","LaborForce1997","LaborForce1998","LaborForce1999","LaborForce2000","LaborForce2001","LaborForce2002","LaborForce2003","NumberEmployed1990","NumberEmployed1991","NumberEmployed1992","NumberEmployed1993","NumberEmployed1994","NumberEmployed1995","NumberEmployed1996","NumberEmployed1997","NumberEmployed1998","NumberEmployed1999","NumberEmployed2000","NumberEmployed2001","NumberEmployed2002","NumberEmployed2003","UnempRate1990","UnempRate1991","UnempRate1992","UnempRate1993","UnempRate1994","UnempRate1995","UnempRate1996","UnempRate1997","UnempRate1998","UnempRate1999","UnempRate2000","UnempRate2001","UnempRate2002","UnempRate2003","NumbUnEmployed1990","NumbUnEmployed1991","NumbUnEmployed1992","NumbUnEmployed1993","NumbUnEmployed1994","NumbUnEmployed1995","NumbUnEmployed1996","NumbUnEmployed1997","NumbUnEmployed1998","NumbUnEmployed1999","NumbUnEmployed2000","NumbUnEmployed2001","NumbUnEmployed2002","NumbUnEmployed2003","LaborForce2004","NumberEmployed2004","UnempRate2004","NumbUnEmployed2004","LaborForce2005","NumberEmployed2005","NumbUnEmp2005","UnempRate2005","LaborForce2006","NumberEmployed2006","NumbUnEmp2006","UnempRate2006","LaborForce2007","NumberEmployed2007","NumbUnEmp2007","UnempRate2007","LaborForce2008","NumberEmployed2008","NumbUnEmp2008","UnempRate2008","LaborForce2009","NumberEmployed2009","NumbUnEmp2009","UnempRate2009"]
[{"$f":"VLOOKUP(DropDownList!$B$47,CntyQuery!$A$220:$CC$229,A$1)","v":"Grafton County"},{"$f":"VLOOKUP(DropDownList!$B$47,CntyQuery!$A$220:$CC$229,B$1)","v":40114},{"$f":"VLOOKUP(DropDownList!$B$47,CntyQuery!$A$220:$CC$229,C$1)","v":40615},{"$f":"VLOOKUP(DropDownList!$B$47,CntyQuery!$A$220:$CC$229,D$1)","v":40202},{"$f":"VLOOKUP(DropDownList!$B$47,CntyQuery!$A$220:$CC$229,E$1)","v":40214},{"$f":"VLOOKUP(DropDownList!$B$47,CntyQuery!$A$220:$CC$229,F$1)","v":41480},{"$f":"VLOOKUP(DropDownList!$B$47,CntyQuery!$A$220:$CC$229,G$1)","v":42160},{"$f":"VLOOKUP(DropDownList!$B$47,CntyQuery!$A$220:$CC$229,H$1)","v":41465},{"$f":"VLOOKUP(DropDownList!$B$47,CntyQuery!$A$220:$CC$229,I$1)","v":42872},{"$f":"VLOOKUP(DropDownList!$B$47,CntyQuery!$A$220:$CC$229,J$1)","v":43915},{"$f":"VLOOKUP(DropDownList!$B$47,CntyQuery!$A$220:$CC$229,K$1)","v":44610},{"$f":"VLOOKUP(DropDownList!$B$47,CntyQuery!$A$220:$CC$229,L$1)","v":44860},{"$f":"VLOOKUP(DropDownList!$B$47,CntyQuery!$A$220:$CC$229,M$1)","v":45010},{"$f":"VLOOKUP(DropDownList!$B$47,CntyQuery!$A$220:$CC$229,N$1)","v":45440},{"$f":"VLOOKUP(DropDownList!$B$47,CntyQuery!$A$220:$CC$229,O$1)","v":45680},{"$f":"VLOOKUP(DropDownList!$B$47,CntyQuery!$A$220:$CC$229,P$1)","v":37935},{"$f":"VLOOKUP(DropDownList!$B$47,CntyQuery!$A$220:$CC$229,Q$1)","v":37753},{"$f":"VLOOKUP(DropDownList!$B$47,CntyQuery!$A$220:$CC$229,R$1)","v":37788},{"$f":"VLOOKUP(DropDownList!$B$47,CntyQuery!$A$220:$CC$229,S$1)","v":38153},{"$f":"VLOOKUP(DropDownList!$B$47,CntyQuery!$A$220:$CC$229,T$1)","v":40169},{"$f":"VLOOKUP(DropDownList!$B$47,CntyQuery!$A$220:$CC$229,U$1)","v":40853},{"$f":"VLOOKUP(DropDownList!$B$47,CntyQuery!$A$220:$CC$229,V$1)","v":40117},{"$f":"VLOOKUP(DropDownList!$B$47,CntyQuery!$A$220:$CC$229,W$1)","v":41781},{"$f":"VLOOKUP(DropDownList!$B$47,CntyQuery!$A$220:$CC$229,X$1)","v":42942},{"$f":"VLOOKUP(DropDownList!$B$47,CntyQuery!$A$220:$CC$229,Y$1)","v":43752},{"$f":"VLOOKUP(DropDownList!$B$47,CntyQuery!$A$220:$CC$229,Z$1)","v":43800},{"$f":"VLOOKUP(DropDownList!$B$47,CntyQuery!$A$220:$CC$229,AA$1)","v":43800},{"$f":"VLOOKUP(DropDownList!$B$47,CntyQuery!$A$220:$CC$229,AB$1)","v":44110},{"$f":"VLOOKUP(DropDownList!$B$47,CntyQuery!$A$220:$CC$229,AC$1)","v":44300},{"$f":"VLOOKUP(DropDownList!$B$47,CntyQuery!$A$220:$CC$229,AD$1)","v":5.4},{"$f":"VLOOKUP(DropDownList!$B$47,CntyQuery!$A$220:$CC$229,AE$1)","v":7},{"$f":"VLOOKUP(DropDownList!$B$47,CntyQuery!$A$220:$CC$229,AF$1)","v":6},{"$f":"VLOOKUP(DropDownList!$B$47,CntyQuery!$A$220:$CC$229,AG$1)","v":5.1000000000000005},{"$f":"VLOOKUP(DropDownList!$B$47,CntyQuery!$A$220:$CC$229,AH$1)","v":3.2},{"$f":"VLOOKUP(DropDownList!$B$47,CntyQuery!$A$220:$CC$229,AI$1)","v":3.1},{"$f":"VLOOKUP(DropDownList!$B$47,CntyQuery!$A$220:$CC$229,AJ$1)","v":3.3000000000000003},{"$f":"VLOOKUP(DropDownList!$B$47,CntyQuery!$A$220:$CC$229,AK$1)","v":2.5},{"$f":"VLOOKUP(DropDownList!$B$47,CntyQuery!$A$220:$CC$229,AL$1)","v":2.2000000000000002},{"$f":"VLOOKUP(DropDownList!$B$47,CntyQuery!$A$220:$CC$229,AM$1)","v":1.9000000000000001},{"$f":"VLOOKUP(DropDownList!$B$47,CntyQuery!$A$220:$CC$229,AN$1)","v":2.4},{"$f":"VLOOKUP(DropDownList!$B$47,CntyQuery!$A$220:$CC$229,AO$1)","v":2.7},{"$f":"VLOOKUP(DropDownList!$B$47,CntyQuery!$A$220:$CC$229,AP$1)","v":2.9},{"$f":"VLOOKUP(DropDownList!$B$47,CntyQuery!$A$220:$CC$229,AQ$1)","v":3},{"$f":"VLOOKUP(DropDownList!$B$47,CntyQuery!$A$220:$CC$229,AR$1)","v":2179},{"$f":"VLOOKUP(DropDownList!$B$47,CntyQuery!$A$220:$CC$229,AS$1)","v":2862},{"$f":"VLOOKUP(DropDownList!$B$47,CntyQuery!$A$220:$CC$229,AT$1)","v":2414},{"$f":"VLOOKUP(DropDownList!$B$47,CntyQuery!$A$220:$CC$229,AU$1)","v":2061},{"$f":"VLOOKUP(DropDownList!$B$47,CntyQuery!$A$220:$CC$229,AV$1)","v":1311},{"$f":"VLOOKUP(DropDownList!$B$47,CntyQuery!$A$220:$CC$229,AW$1)","v":1307},{"$f":"VLOOKUP(DropDownList!$B$47,CntyQuery!$A$220:$CC$229,AX$1)","v":1348},{"$f":"VLOOKUP(DropDownList!$B$47,CntyQuery!$A$220:$CC$229,AY$1)","v":1091},{"$f":"VLOOKUP(DropDownList!$B$47,CntyQuery!$A$220:$CC$229,AZ$1)","v":973},{"$f":"VLOOKUP(DropDownList!$B$47,CntyQuery!$A$220:$CC$229,BA$1)","v":858},{"$f":"VLOOKUP(DropDownList!$B$47,CntyQuery!$A$220:$CC$229,BB$1)","v":1060},{"$f":"VLOOKUP(DropDownList!$B$47,CntyQuery!$A$220:$CC$229,BC$1)","v":1210},{"$f":"VLOOKUP(DropDownList!$B$47,CntyQuery!$A$220:$CC$229,BD$1)","v":1330},{"$f":"VLOOKUP(DropDownList!$B$47,CntyQuery!$A$220:$CC$229,BE$1)","v":1380},{"$f":"VLOOKUP(DropDownList!$B$47,CntyQuery!$A$220:$CC$229,BF$1)","v":46400},{"$f":"VLOOKUP(DropDownList!$B$47,CntyQuery!$A$220:$CC$229,BG$1)","v":45110},{"$f":"VLOOKUP(DropDownList!$B$47,CntyQuery!$A$220:$CC$229,BH$1)","v":2.8},{"$f":"VLOOKUP(DropDownList!$B$47,CntyQuery!$A$220:$CC$229,BI$1)","v":1290},{"$f":"VLOOKUP(DropDownList!$B$47,CntyQuery!$A$220:$CC$229,BJ$1)","v":46770},{"$f":"VLOOKUP(DropDownList!$B$47,CntyQuery!$A$220:$CC$229,BK$1)","v":45450},{"$f":"VLOOKUP(DropDownList!$B$47,CntyQuery!$A$220:$CC$229,BL$1)","v":1320},{"$f":"VLOOKUP(DropDownList!$B$47,CntyQuery!$A$220:$CC$229,BM$1)","v":2.8},{"$f":"VLOOKUP(DropDownList!$B$47,CntyQuery!$A$220:$CC$229,BN$1)","v":47850},{"$f":"VLOOKUP(DropDownList!$B$47,CntyQuery!$A$220:$CC$229,BO$1)","v":46480},{"$f":"VLOOKUP(DropDownList!$B$47,CntyQuery!$A$220:$CC$229,BP$1)","v":1370},{"$f":"VLOOKUP(DropDownList!$B$47,CntyQuery!$A$220:$CC$229,BQ$1)","v":2.9},{"$f":"VLOOKUP(DropDownList!$B$47,CntyQuery!$A$220:$CC$229,BR$1)","v":48290},{"$f":"VLOOKUP(DropDownList!$B$47,CntyQuery!$A$220:$CC$229,BS$1)","v":46860},{"$f":"VLOOKUP(DropDownList!$B$47,CntyQuery!$A$220:$CC$229,BT$1)","v":1430},{"$f":"VLOOKUP(DropDownList!$B$47,CntyQuery!$A$220:$CC$229,BU$1)","v":3},{"$f":"VLOOKUP(DropDownList!$B$47,CntyQuery!$A$220:$CC$229,BV$1)","v":48800},{"$f":"VLOOKUP(DropDownList!$B$47,CntyQuery!$A$220:$CC$229,BW$1)","v":47260},{"$f":"VLOOKUP(DropDownList!$B$47,CntyQuery!$A$220:$CC$229,BX$1)","v":1540},{"$f":"VLOOKUP(DropDownList!$B$47,CntyQuery!$A$220:$CC$229,BY$1)","v":3.1},{"$f":"VLOOKUP(DropDownList!$B$47,CntyQuery!$A$220:$CC$229,BZ$1)","v":48890},{"$f":"VLOOKUP(DropDownList!$B$47,CntyQuery!$A$220:$CC$229,CA$1)","v":46380},{"$f":"VLOOKUP(DropDownList!$B$47,CntyQuery!$A$220:$CC$229,CB$1)","v":2510},{"$f":"VLOOKUP(DropDownList!$B$47,CntyQuery!$A$220:$CC$229,CC$1)","v":5.0999999999999996}]
[]
[null,null,null,null,null,null,null,null,null,null,null,null,{"$f":"IF((CntyDataLink!$BL$25)=\"n\",NA(),IF(VALUE(CntyDataLink!$BL$25)=\"\",NA(),VALUE(CntyDataLink!$BL$25)))","v":636.19000000000005}]
["Census 2000   -           Query Name:  TownAllQuery3",2,{"$f":"B33+1","v":3},{"$f":"C33+1","v":4},5,6,7,8,9,10,11,12,13,14,15,16,17,18,19,20,21,22,23,24,25,26,27,28,29,30,31,32,33,34,35,36,37,38,39,40,41,42,43,44,45,46,47,48,49,50,51,52,53,54,55,56,57,58,59,60,61,62,63,64,65,66,67,{"$f":"BO33+1","v":68},69,70,71,72,73,74,75,76,77,78,79,80,81,82,83,84,85,86,87,88,89,90,91,92,93,94,95,96,97,98,99,100,101,102]
["NAME","COUNTY","LOGRECNO","COUSUB","TRACT","AREALAND","AREAWATR","POP100","HU100","2000Population","PopOfOneRace","PopWhite","PopBlack","PopAmIndian","PopAsian","PopHawaiian","PopOtherRace","Pop2orMoreRaces","PopHispanicLatino","PopNotHispanicLatino","PopMale","PopMale<15","PopMale15to24","PopMale25to34","PopMale35to44","PopMale45to54","PopMale55to64","PopMale65to74","PopMale75to84","PopMale85andOver","PopFemale","PopFemale<15","PopFemale15to24","PopFemale25to34","PopFemale35t44","PopFemale45to54","PopFemale55to64","PopFemale65to74","PopFemale75to84","PopFemale85andOver","Households2000","PopInHH","AvgHHSize","HHs1Person","HHs2orMorePerson","HHsFamily","HHMarriedCoupleFam","HHSingleParentFam","HHsNonFamily","Families","PopInFam","AvgFamSize","TotHsUnits","OccHsUnits","OwnerOccHU","RenterOccHU","VctHsUnits","VctHUForRent","VctHUForSale","VctHUSeasonal","PopInOccHU","PopInOwnOccHU","PopInRntOccHU","AvgHHSize2","AvgHHSizOwnOcc","AvgHHSizRntOcc","OwnOccWhtHsHldr","OwnOccBlkHsHldr","OwnOccAmIHsHldr","OwnOccAsnHsHldr","OwnOccPIsHsHldr","OwnOccORHsHldr","OwnOcc2RcHsHldr","RntOccWhtHsHldr","RntOccBlkHsHldr","RntOccAmIHsHldr","RntOccAsnHsHldr","RntOccPIsHsHldr","RntOccORHsHldr","RntOcc2RcHsHldr","OwnOccHH15to24","OwnOccHH25to34","OwnOccHH35to44","OwnOccHH45to54","OwnOccHH55to64","OwnOccHH65to74","OwnOccHH75to84","OwnOccHH85Over","RntOccHH15to24","RntOccHH25to34","RntOccHH35to44","RntOccHH45to54","RntOccHH55to64","RntOccHH65to74","RntOccHH75to84","RntOccHH85Over","P27TotalPop","P27PopInHseHlds","P27PopInGrpQtrs","Median Age Total","Median Age (Male)","Median Age (Female)"]
[{"$f":"VLOOKUP(DropDownList!$B$47,CntyQryCensus!$A$4:$CW$46,A$1)","v":"Grantham"},{"$f":"VLOOKUP(DropDownList!$B$47,CntyQryCensus!$A$4:$CW$46,B$1)","v":"019"},{"$f":"VLOOKUP(DropDownList!$B$47,CntyQryCensus!$A$4:$CW$46,C$1)","v":"0036868"},{"$f":"VLOOKUP(DropDownList!$B$47,CntyQryCensus!$A$4:$CW$46,D$1)","v":"31220"},{"$f":"VLOOKUP(DropDownList!$B$47,CntyQryCensus!$A$4:$CW$46,E$1)","v":""},{"$f":"VLOOKUP(DropDownList!$B$47,CntyQryCensus!$A$4:$CW$46,F$1)","v":"      69361907"},{"$f":"VLOOKUP(DropDownList!$B$47,CntyQryCensus!$A$4:$CW$46,G$1)","v":"       2257377"},{"$f":"VLOOKUP(DropDownList!$B$47,CntyQryCensus!$A$4:$CW$46,H$1)","v":2167},{"$f":"VLOOKUP(DropDownList!$B$47,CntyQryCensus!$A$4:$CW$46,I$1)","v":"     1513"},{"$f":"VLOOKUP(DropDownList!$B$47,CntyQryCensus!$A$4:$CW$46,J$1)","v":2167},{"$f":"VLOOKUP(DropDownList!$B$47,CntyQryCensus!$A$4:$CW$46,K$1)","v":2149},{"$f":"VLOOKUP(DropDownList!$B$47,CntyQryCensus!$A$4:$CW$46,L$1)","v":2130},{"$f":"VLOOKUP(DropDownList!$B$47,CntyQryCensus!$A$4:$CW$46,M$1)","v":6},{"$f":"VLOOKUP(DropDownList!$B$47,CntyQryCensus!$A$4:$CW$46,N$1)","v":2},{"$f":"VLOOKUP(DropDownList!$B$47,CntyQryCensus!$A$4:$CW$46,O$1)","v":9},{"$f":"VLOOKUP(DropDownList!$B$47,CntyQryCensus!$A$4:$CW$46,P$1)","v":0},{"$f":"VLOOKUP(DropDownList!$B$47,CntyQryCensus!$A$4:$CW$46,Q$1)","v":2},{"$f":"VLOOKUP(DropDownList!$B$47,CntyQryCensus!$A$4:$CW$46,R$1)","v":18},{"$f":"VLOOKUP(DropDownList!$B$47,CntyQryCensus!$A$4:$CW$46,S$1)","v":12},{"$f":"VLOOKUP(DropDownList!$B$47,CntyQryCensus!$A$4:$CW$46,T$1)","v":2155},{"$f":"VLOOKUP(DropDownList!$B$47,CntyQryCensus!$A$4:$CW$46,U$1)","v":1062},{"$f":"VLOOKUP(DropDownList!$B$47,CntyQryCensus!$A$4:$CW$46,V$1)","v":175},{"$f":"VLOOKUP(DropDownList!$B$47,CntyQryCensus!$A$4:$CW$46,W$1)","v":65},{"$f":"VLOOKUP(DropDownList!$B$47,CntyQryCensus!$A$4:$CW$46,X$1)","v":120},{"$f":"VLOOKUP(DropDownList!$B$47,CntyQryCensus!$A$4:$CW$46,Y$1)","v":154},{"$f":"VLOOKUP(DropDownList!$B$47,CntyQryCensus!$A$4:$CW$46,Z$1)","v":171},{"$f":"VLOOKUP(DropDownList!$B$47,CntyQryCensus!$A$4:$CW$46,AA$1)","v":123},{"$f":"VLOOKUP(DropDownList!$B$47,CntyQryCensus!$A$4:$CW$46,AB$1)","v":166},{"$f":"VLOOKUP(DropDownList!$B$47,CntyQryCensus!$A$4:$CW$46,AC$1)","v":77},{"$f":"VLOOKUP(DropDownList!$B$47,CntyQryCensus!$A$4:$CW$46,AD$1)","v":11},{"$f":"VLOOKUP(DropDownList!$B$47,CntyQryCensus!$A$4:$CW$46,AE$1)","v":1105},{"$f":"VLOOKUP(DropDownList!$B$47,CntyQryCensus!$A$4:$CW$46,AF$1)","v":178},{"$f":"VLOOKUP(DropDownList!$B$47,CntyQryCensus!$A$4:$CW$46,AG$1)","v":77},{"$f":"VLOOKUP(DropDownList!$B$47,CntyQryCensus!$A$4:$CW$46,AH$1)","v":110},{"$f":"VLOOKUP(DropDownList!$B$47,CntyQryCensus!$A$4:$CW$46,AI$1)","v":174},{"$f":"VLOOKUP(DropDownList!$B$47,CntyQryCensus!$A$4:$CW$46,AJ$1)","v":168},{"$f":"VLOOKUP(DropDownList!$B$47,CntyQryCensus!$A$4:$CW$46,AK$1)","v":181},{"$f":"VLOOKUP(DropDownList!$B$47,CntyQryCensus!$A$4:$CW$46,AL$1)","v":153},{"$f":"VLOOKUP(DropDownList!$B$47,CntyQryCensus!$A$4:$CW$46,AM$1)","v":57},{"$f":"VLOOKUP(DropDownList!$B$47,CntyQryCensus!$A$4:$CW$46,AN$1)","v":7},{"$f":"VLOOKUP(DropDownList!$B$47,CntyQryCensus!$A$4:$CW$46,AO$1)","v":924},{"$f":"VLOOKUP(DropDownList!$B$47,CntyQryCensus!$A$4:$CW$46,AP$1)","v":2167},{"$f":"VLOOKUP(DropDownList!$B$47,CntyQryCensus!$A$4:$CW$46,AQ$1)","v":2.35},{"$f":"VLOOKUP(DropDownList!$B$47,CntyQryCensus!$A$4:$CW$46,AR$1)","v":177},{"$f":"VLOOKUP(DropDownList!$B$47,CntyQryCensus!$A$4:$CW$46,AS$1)","v":747},{"$f":"VLOOKUP(DropDownList!$B$47,CntyQryCensus!$A$4:$CW$46,AT$1)","v":708},{"$f":"VLOOKUP(DropDownList!$B$47,CntyQryCensus!$A$4:$CW$46,AU$1)","v":649},{"$f":"VLOOKUP(DropDownList!$B$47,CntyQryCensus!$A$4:$CW$46,AV$1)","v":59},{"$f":"VLOOKUP(DropDownList!$B$47,CntyQryCensus!$A$4:$CW$46,AW$1)","v":39},{"$f":"VLOOKUP(DropDownList!$B$47,CntyQryCensus!$A$4:$CW$46,AX$1)","v":708},{"$f":"VLOOKUP(DropDownList!$B$47,CntyQryCensus!$A$4:$CW$46,AY$1)","v":1889},{"$f":"VLOOKUP(DropDownList!$B$47,CntyQryCensus!$A$4:$CW$46,AZ$1)","v":2.67},{"$f":"VLOOKUP(DropDownList!$B$47,CntyQryCensus!$A$4:$CW$46,BA$1)","v":1513},{"$f":"VLOOKUP(DropDownList!$B$47,CntyQryCensus!$A$4:$CW$46,BB$1)","v":924},{"$f":"VLOOKUP(DropDownList!$B$47,CntyQryCensus!$A$4:$CW$46,BC$1)","v":819},{"$f":"VLOOKUP(DropDownList!$B$47,CntyQryCensus!$A$4:$CW$46,BD$1)","v":105},{"$f":"VLOOKUP(DropDownList!$B$47,CntyQryCensus!$A$4:$CW$46,BE$1)","v":589},{"$f":"VLOOKUP(DropDownList!$B$47,CntyQryCensus!$A$4:$CW$46,BF$1)","v":7},{"$f":"VLOOKUP(DropDownList!$B$47,CntyQryCensus!$A$4:$CW$46,BG$1)","v":25},{"$f":"VLOOKUP(DropDownList!$B$47,CntyQryCensus!$A$4:$CW$46,BH$1)","v":533},{"$f":"VLOOKUP(DropDownList!$B$47,CntyQryCensus!$A$4:$CW$46,BI$1)","v":2167},{"$f":"VLOOKUP(DropDownList!$B$47,CntyQryCensus!$A$4:$CW$46,BJ$1)","v":1915},{"$f":"VLOOKUP(DropDownList!$B$47,CntyQryCensus!$A$4:$CW$46,BK$1)","v":252},{"$f":"VLOOKUP(DropDownList!$B$47,CntyQryCensus!$A$4:$CW$46,BL$1)","v":2.35},{"$f":"VLOOKUP(DropDownList!$B$47,CntyQryCensus!$A$4:$CW$46,BM$1)","v":2.34},{"$f":"VLOOKUP(DropDownList!$B$47,CntyQryCensus!$A$4:$CW$46,BN$1)","v":2.4},{"$f":"VLOOKUP(DropDownList!$B$47,CntyQryCensus!$A$4:$CW$46,BO$1)","v":812},{"$f":"VLOOKUP(DropDownList!$B$47,CntyQryCensus!$A$4:$CW$46,BP$1)","v":2},{"$f":"VLOOKUP(DropDownList!$B$47,CntyQryCensus!$A$4:$CW$46,BQ$1)","v":0},{"$f":"VLOOKUP(DropDownList!$B$47,CntyQryCensus!$A$4:$CW$46,BR$1)","v":2},{"$f":"VLOOKUP(DropDownList!$B$47,CntyQryCensus!$A$4:$CW$46,BS$1)","v":0},{"$f":"VLOOKUP(DropDownList!$B$47,CntyQryCensus!$A$4:$CW$46,BT$1)","v":0},{"$f":"VLOOKUP(DropDownList!$B$47,CntyQryCensus!$A$4:$CW$46,BU$1)","v":3},{"$f":"VLOOKUP(DropDownList!$B$47,CntyQryCensus!$A$4:$CW$46,BV$1)","v":101},{"$f":"VLOOKUP(DropDownList!$B$47,CntyQryCensus!$A$4:$CW$46,BW$1)","v":1},{"$f":"VLOOKUP(DropDownList!$B$47,CntyQryCensus!$A$4:$CW$46,BX$1)","v":0},{"$f":"VLOOKUP(DropDownList!$B$47,CntyQryCensus!$A$4:$CW$46,BY$1)","v":2},{"$f":"VLOOKUP(DropDownList!$B$47,CntyQryCensus!$A$4:$CW$46,BZ$1)","v":0},{"$f":"VLOOKUP(DropDownList!$B$47,CntyQryCensus!$A$4:$CW$46,CA$1)","v":0},{"$f":"VLOOKUP(DropDownList!$B$47,CntyQryCensus!$A$4:$CW$46,CB$1)","v":1},{"$f":"VLOOKUP(DropDownList!$B$47,CntyQryCensus!$A$4:$CW$46,CC$1)","v":3},{"$f":"VLOOKUP(DropDownList!$B$47,CntyQryCensus!$A$4:$CW$46,CD$1)","v":66},{"$f":"VLOOKUP(DropDownList!$B$47,CntyQryCensus!$A$4:$CW$46,CE$1)","v":144},{"$f":"VLOOKUP(DropDownList!$B$47,CntyQryCensus!$A$4:$CW$46,CF$1)","v":178},{"$f":"VLOOKUP(DropDownList!$B$47,CntyQryCensus!$A$4:$CW$46,CG$1)","v":147},{"$f":"VLOOKUP(DropDownList!$B$47,CntyQryCensus!$A$4:$CW$46,CH$1)","v":182},{"$f":"VLOOKUP(DropDownList!$B$47,CntyQryCensus!$A$4:$CW$46,CI$1)","v":88},{"$f":"VLOOKUP(DropDownList!$B$47,CntyQryCensus!$A$4:$CW$46,CJ$1)","v":11},{"$f":"VLOOKUP(DropDownList!$B$47,CntyQryCensus!$A$4:$CW$46,CK$1)","v":9},{"$f":"VLOOKUP(DropDownList!$B$47,CntyQryCensus!$A$4:$CW$46,CL$1)","v":33},{"$f":"VLOOKUP(DropDownList!$B$47,CntyQryCensus!$A$4:$CW$46,CM$1)","v":25},{"$f":"VLOOKUP(DropDownList!$B$47,CntyQryCensus!$A$4:$CW$46,CN$1)","v":19},{"$f":"VLOOKUP(DropDownList!$B$47,CntyQryCensus!$A$4:$CW$46,CO$1)","v":13},{"$f":"VLOOKUP(DropDownList!$B$47,CntyQryCensus!$A$4:$CW$46,CP$1)","v":3},{"$f":"VLOOKUP(DropDownList!$B$47,CntyQryCensus!$A$4:$CW$46,CQ$1)","v":2},{"$f":"VLOOKUP(DropDownList!$B$47,CntyQryCensus!$A$4:$CW$46,CR$1)","v":1},{"$f":"VLOOKUP(DropDownList!$B$47,CntyQryCensus!$A$4:$CW$46,CS$1)","v":2167},{"$f":"VLOOKUP(DropDownList!$B$47,CntyQryCensus!$A$4:$CW$46,CT$1)","v":2167},{"$f":"VLOOKUP(DropDownList!$B$47,CntyQryCensus!$A$4:$CW$46,CU$1)","v":0},{"$f":"VLOOKUP(DropDownList!$B$47,CntyQryCensus!$A$4:$CW$46,CV$1)","v":"Sullivan"},{"$f":"VLOOKUP(DropDownList!$B$47,CntyQryCensus!$A$4:$CW$46,CW$1)","v":36.799999999999997},{"$f":"VLOOKUP(DropDownList!$B$47,CntyQryCensus!$A$4:$CW$46,CX$1)","v":{"$error":"#REF!"}}]
[]
[]
["Census 2000 DemoProfile Sample Data Tables 2&3   -  DPTab23TownQry"]
["NAME","COUSUB","AREANAME","PopInSchool","Preschool","Kindergarten","Elementary","HighSchool","College","Pop25andOver","HighSchoolGrad","SomeCollege","AssocDegree","BachelDegree","GradDegree","HSGradorHigher","CollegeGradorHigher","Pop5to20yrs","Pop5to20wDis","Pop21to64","Pop21to64wDis","Pop65over","Pop65overwDis","Pop5yrsOver","SameHUin95","DiffHUinUSin95","HUinSameCountyin95","HUinSameStatein95","TotalPop","NativePop","NatPopBornUS","NatPopBornInStatRes","NatPopBornDiffState","NatPopBornOutUS","FornBornPop","FornPopEnt90to00","FornPopNatCit","FornPopNotCit","Households","HHIncLessThn10k","HHInc10to15K","HHInc15to25K","HHInc25to35K","HHInc35to50K","HHInc50to75K","HHInc75to100K","HHInc100to150K","HHInc150to200K","HHIncOver200K","MedianHHInc","HHwithPubAssistInc","MeanPubAssist","FamilyHH","FHHIncLessThn10k","FHHInc10to15K","FHHInc15to25K","FHHInc25to35K","FHHInc35to50K","FHHInc50to75K","FHHInc75to100K","FHHInc100to150K","FHHInc150to200K","FHHIncOver200K","MedianFHHInc","PerCapitaInc","PovStatFamilies","PovStatFHHwChilUnd18","PovStatFHHwChilUnd5","PovStFmalHH","DP3088","DP3089","PovStatIndiv","PovStatIndiv18yrOver","PovStatIndiv65yrOver","DP3093","DP3094","DP3095"]
[{"$f":"VLOOKUP(DropDownList!$B$47,CntyQryCensus!$A$53:$BY$96,A$1)","v":"Grantham"},{"$f":"VLOOKUP(DropDownList!$B$47,CntyQryCensus!$A$53:$BY$96,B$1)","v":"31220"},{"$f":"VLOOKUP(DropDownList!$B$47,CntyQryCensus!$A$53:$BY$96,C$1)","v":"Grantham town, Sullivan County, New Hampshire"},{"$f":"VLOOKUP(DropDownList!$B$47,CntyQryCensus!$A$53:$BY$96,D$1)","v":434},{"$f":"VLOOKUP(DropDownList!$B$47,CntyQryCensus!$A$53:$BY$96,E$1)","v":32},{"$f":"VLOOKUP(DropDownList!$B$47,CntyQryCensus!$A$53:$BY$96,F$1)","v":32},{"$f":"VLOOKUP(DropDownList!$B$47,CntyQryCensus!$A$53:$BY$96,G$1)","v":193},{"$f":"VLOOKUP(DropDownList!$B$47,CntyQryCensus!$A$53:$BY$96,H$1)","v":104},{"$f":"VLOOKUP(DropDownList!$B$47,CntyQryCensus!$A$53:$BY$96,I$1)","v":73},{"$f":"VLOOKUP(DropDownList!$B$47,CntyQryCensus!$A$53:$BY$96,J$1)","v":1672},{"$f":"VLOOKUP(DropDownList!$B$47,CntyQryCensus!$A$53:$BY$96,K$1)","v":291},{"$f":"VLOOKUP(DropDownList!$B$47,CntyQryCensus!$A$53:$BY$96,L$1)","v":343},{"$f":"VLOOKUP(DropDownList!$B$47,CntyQryCensus!$A$53:$BY$96,M$1)","v":127},{"$f":"VLOOKUP(DropDownList!$B$47,CntyQryCensus!$A$53:$BY$96,N$1)","v":491},{"$f":"VLOOKUP(DropDownList!$B$47,CntyQryCensus!$A$53:$BY$96,O$1)","v":365},{"$f":"VLOOKUP(DropDownList!$B$47,CntyQryCensus!$A$53:$BY$96,P$1)","v":1617},{"$f":"VLOOKUP(DropDownList!$B$47,CntyQryCensus!$A$53:$BY$96,Q$1)","v":856},{"$f":"VLOOKUP(DropDownList!$B$47,CntyQryCensus!$A$53:$BY$96,R$1)","v":350},{"$f":"VLOOKUP(DropDownList!$B$47,CntyQryCensus!$A$53:$BY$96,S$1)","v":19},{"$f":"VLOOKUP(DropDownList!$B$47,CntyQryCensus!$A$53:$BY$96,T$1)","v":1236},{"$f":"VLOOKUP(DropDownList!$B$47,CntyQryCensus!$A$53:$BY$96,U$1)","v":92},{"$f":"VLOOKUP(DropDownList!$B$47,CntyQryCensus!$A$53:$BY$96,V$1)","v":478},{"$f":"VLOOKUP(DropDownList!$B$47,CntyQryCensus!$A$53:$BY$96,W$1)","v":82},{"$f":"VLOOKUP(DropDownList!$B$47,CntyQryCensus!$A$53:$BY$96,X$1)","v":2064},{"$f":"VLOOKUP(DropDownList!$B$47,CntyQryCensus!$A$53:$BY$96,Y$1)","v":940},{"$f":"VLOOKUP(DropDownList!$B$47,CntyQryCensus!$A$53:$BY$96,Z$1)","v":1095},{"$f":"VLOOKUP(DropDownList!$B$47,CntyQryCensus!$A$53:$BY$96,AA$1)","v":303},{"$f":"VLOOKUP(DropDownList!$B$47,CntyQryCensus!$A$53:$BY$96,AB$1)","v":792},{"$f":"VLOOKUP(DropDownList!$B$47,CntyQryCensus!$A$53:$BY$96,AC$1)","v":2173},{"$f":"VLOOKUP(DropDownList!$B$47,CntyQryCensus!$A$53:$BY$96,AD$1)","v":2083},{"$f":"VLOOKUP(DropDownList!$B$47,CntyQryCensus!$A$53:$BY$96,AE$1)","v":2058},{"$f":"VLOOKUP(DropDownList!$B$47,CntyQryCensus!$A$53:$BY$96,AF$1)","v":720},{"$f":"VLOOKUP(DropDownList!$B$47,CntyQryCensus!$A$53:$BY$96,AG$1)","v":1338},{"$f":"VLOOKUP(DropDownList!$B$47,CntyQryCensus!$A$53:$BY$96,AH$1)","v":25},{"$f":"VLOOKUP(DropDownList!$B$47,CntyQryCensus!$A$53:$BY$96,AI$1)","v":90},{"$f":"VLOOKUP(DropDownList!$B$47,CntyQryCensus!$A$53:$BY$96,AJ$1)","v":26},{"$f":"VLOOKUP(DropDownList!$B$47,CntyQryCensus!$A$53:$BY$96,AK$1)","v":40},{"$f":"VLOOKUP(DropDownList!$B$47,CntyQryCensus!$A$53:$BY$96,AL$1)","v":50},{"$f":"VLOOKUP(DropDownList!$B$47,CntyQryCensus!$A$53:$BY$96,AM$1)","v":933},{"$f":"VLOOKUP(DropDownList!$B$47,CntyQryCensus!$A$53:$BY$96,AN$1)","v":36},{"$f":"VLOOKUP(DropDownList!$B$47,CntyQryCensus!$A$53:$BY$96,AO$1)","v":12},{"$f":"VLOOKUP(DropDownList!$B$47,CntyQryCensus!$A$53:$BY$96,AP$1)","v":52},{"$f":"VLOOKUP(DropDownList!$B$47,CntyQryCensus!$A$53:$BY$96,AQ$1)","v":68},{"$f":"VLOOKUP(DropDownList!$B$47,CntyQryCensus!$A$53:$BY$96,AR$1)","v":147},{"$f":"VLOOKUP(DropDownList!$B$47,CntyQryCensus!$A$53:$BY$96,AS$1)","v":259},{"$f":"VLOOKUP(DropDownList!$B$47,CntyQryCensus!$A$53:$BY$96,AT$1)","v":163},{"$f":"VLOOKUP(DropDownList!$B$47,CntyQryCensus!$A$53:$BY$96,AU$1)","v":129},{"$f":"VLOOKUP(DropDownList!$B$47,CntyQryCensus!$A$53:$BY$96,AV$1)","v":35},{"$f":"VLOOKUP(DropDownList!$B$47,CntyQryCensus!$A$53:$BY$96,AW$1)","v":32},{"$f":"VLOOKUP(DropDownList!$B$47,CntyQryCensus!$A$53:$BY$96,AX$1)","v":63239},{"$f":"VLOOKUP(DropDownList!$B$47,CntyQryCensus!$A$53:$BY$96,AY$1)","v":4},{"$f":"VLOOKUP(DropDownList!$B$47,CntyQryCensus!$A$53:$BY$96,AZ$1)","v":1475},{"$f":"VLOOKUP(DropDownList!$B$47,CntyQryCensus!$A$53:$BY$96,BA$1)","v":709},{"$f":"VLOOKUP(DropDownList!$B$47,CntyQryCensus!$A$53:$BY$96,BB$1)","v":7},{"$f":"VLOOKUP(DropDownList!$B$47,CntyQryCensus!$A$53:$BY$96,BC$1)","v":12},{"$f":"VLOOKUP(DropDownList!$B$47,CntyQryCensus!$A$53:$BY$96,BD$1)","v":26},{"$f":"VLOOKUP(DropDownList!$B$47,CntyQryCensus!$A$53:$BY$96,BE$1)","v":44},{"$f":"VLOOKUP(DropDownList!$B$47,CntyQryCensus!$A$53:$BY$96,BF$1)","v":103},{"$f":"VLOOKUP(DropDownList!$B$47,CntyQryCensus!$A$53:$BY$96,BG$1)","v":211},{"$f":"VLOOKUP(DropDownList!$B$47,CntyQryCensus!$A$53:$BY$96,BH$1)","v":148},{"$f":"VLOOKUP(DropDownList!$B$47,CntyQryCensus!$A$53:$BY$96,BI$1)","v":105},{"$f":"VLOOKUP(DropDownList!$B$47,CntyQryCensus!$A$53:$BY$96,BJ$1)","v":29},{"$f":"VLOOKUP(DropDownList!$B$47,CntyQryCensus!$A$53:$BY$96,BK$1)","v":24},{"$f":"VLOOKUP(DropDownList!$B$47,CntyQryCensus!$A$53:$BY$96,BL$1)","v":69271},{"$f":"VLOOKUP(DropDownList!$B$47,CntyQryCensus!$A$53:$BY$96,BM$1)","v":32174},{"$f":"VLOOKUP(DropDownList!$B$47,CntyQryCensus!$A$53:$BY$96,BN$1)","v":10},{"$f":"VLOOKUP(DropDownList!$B$47,CntyQryCensus!$A$53:$BY$96,BO$1)","v":8},{"$f":"VLOOKUP(DropDownList!$B$47,CntyQryCensus!$A$53:$BY$96,BP$1)","v":8},{"$f":"VLOOKUP(DropDownList!$B$47,CntyQryCensus!$A$53:$BY$96,BQ$1)","v":5},{"$f":"VLOOKUP(DropDownList!$B$47,CntyQryCensus!$A$53:$BY$96,BR$1)","v":5},{"$f":"VLOOKUP(DropDownList!$B$47,CntyQryCensus!$A$53:$BY$96,BS$1)","v":5},{"$f":"VLOOKUP(DropDownList!$B$47,CntyQryCensus!$A$53:$BY$96,BT$1)","v":54},{"$f":"VLOOKUP(DropDownList!$B$47,CntyQryCensus!$A$53:$BY$96,BU$1)","v":46},{"$f":"VLOOKUP(DropDownList!$B$47,CntyQryCensus!$A$53:$BY$96,BV$1)","v":18},{"$f":"VLOOKUP(DropDownList!$B$47,CntyQryCensus!$A$53:$BY$96,BW$1)","v":8},{"$f":"VLOOKUP(DropDownList!$B$47,CntyQryCensus!$A$53:$BY$96,BX$1)","v":0},{"$f":"VLOOKUP(DropDownList!$B$47,CntyQryCensus!$A$53:$BY$96,BY$1)","v":31}]
[]
[]
["Census 2000 DemoProfile Sample Data Table 4   -  DPTab4TownQry"]
["NAME","COUSUB","TotHousingUnits","1UnitDet","1UnitAtt","2Units","3to4Units","5to9Units","10to19Units","20orMoreUnits","MobileHomes","BoatRvVan","SingleFamilyUnits","MultiFamUnits","MobileHomeUnits","YearBuilt99to00","YearBuilt95to98","YearBUilt90to94","YearBuilt80to89","YearBuilt70to79","YearBuilt60to69","YearBuilt40to59","YearBuilt39orEarlier","Rooms1","Rooms2","Rooms3","Rooms4","Rooms5","Rooms6","Rooms7","Rooms8","Rooms9orMore","MedianRooms","OccHU1","YrHHMvdIn99to00","YrHHMvdIn95to98","YrHHMvdIn90to94","YrHHMvdIn80to89","YrHHMvdIn70to79","YrHHMvdIn69orBefore","HeatFuelNatGas","HeatFuelBotGas","HeatFuelElectric","HeatFuelOil","HeatFuelCoal","HeatFuelWood","HeatFuelSolar","HeatFuelOther","HeatFuelNone","LackCompPlumb","LackCompKit","NoTelephone","OccHU","OccPerRm1orLess","OccPerRm1to1_5","OccPerRm1_5orMore","SpecOwnOccUnits","Value<50K","Value50to100K","Value100to150K","Value150to200K","Value200to300K","Value300to500K","Value500Kto1mil","Value1MilorMore","MedianValue","WithMortg","MnthOwnCst<300","MnthOwnCst300to500","MnthOwnCst500to700","MnthOwnCst700to1000","MnthOwnCst1000to1500","MnthOwnCst1500to2000","MnthOwnCst2000orMore","MediMnthOwnCst","NotMrtg","NotMrtgMediMnthOwnCst","OwnCst%HHInc<15","OwnCst%HHInc15to20","OwnCst%HHInc20to25","OwnCst%HHInc25to30","OwnCst%HHInc30to35","OwnCst%HHInc35orMor","NotComputed","SpecRntOccUnits","Rnt<200","Rnt200to300","Rnt300to500","Rnt500to750","Rnt750to1000","Rnt1000to1500","Rnt1500orMore","NoRent","MedianRent","Rnt%HHInc<15","Rnt%HHInc15to20","Rnt%HHInc20to25","Rnt%HHInc25to30","Rnt%HHInc30to35","Rnt%HHInc35orMore","Rnt%NotCompute"]
[{"$f":"VLOOKUP(DropDownList!$B$47,CntyQryCensus!$A$103:$CX$146,A$1)","v":"Grantham"},{"$f":"VLOOKUP(DropDownList!$B$47,CntyQryCensus!$A$103:$CX$146,B$1)","v":"31220"},{"$f":"VLOOKUP(DropDownList!$B$47,CntyQryCensus!$A$103:$CX$146,C$1)","v":1518},{"$f":"VLOOKUP(DropDownList!$B$47,CntyQryCensus!$A$103:$CX$146,D$1)","v":1168},{"$f":"VLOOKUP(DropDownList!$B$47,CntyQryCensus!$A$103:$CX$146,E$1)","v":296},{"$f":"VLOOKUP(DropDownList!$B$47,CntyQryCensus!$A$103:$CX$146,F$1)","v":19},{"$f":"VLOOKUP(DropDownList!$B$47,CntyQryCensus!$A$103:$CX$146,G$1)","v":9},{"$f":"VLOOKUP(DropDownList!$B$47,CntyQryCensus!$A$103:$CX$146,H$1)","v":0},{"$f":"VLOOKUP(DropDownList!$B$47,CntyQryCensus!$A$103:$CX$146,I$1)","v":0},{"$f":"VLOOKUP(DropDownList!$B$47,CntyQryCensus!$A$103:$CX$146,J$1)","v":0},{"$f":"VLOOKUP(DropDownList!$B$47,CntyQryCensus!$A$103:$CX$146,K$1)","v":26},{"$f":"VLOOKUP(DropDownList!$B$47,CntyQryCensus!$A$103:$CX$146,L$1)","v":0},{"$f":"VLOOKUP(DropDownList!$B$47,CntyQryCensus!$A$103:$CX$146,M$1)","v":1168},{"$f":"VLOOKUP(DropDownList!$B$47,CntyQryCensus!$A$103:$CX$146,N$1)","v":324},{"$f":"VLOOKUP(DropDownList!$B$47,CntyQryCensus!$A$103:$CX$146,O$1)","v":26},{"$f":"VLOOKUP(DropDownList!$B$47,CntyQryCensus!$A$103:$CX$146,P$1)","v":24},{"$f":"VLOOKUP(DropDownList!$B$47,CntyQryCensus!$A$103:$CX$146,Q$1)","v":124},{"$f":"VLOOKUP(DropDownList!$B$47,CntyQryCensus!$A$103:$CX$146,R$1)","v":192},{"$f":"VLOOKUP(DropDownList!$B$47,CntyQryCensus!$A$103:$CX$146,S$1)","v":672},{"$f":"VLOOKUP(DropDownList!$B$47,CntyQryCensus!$A$103:$CX$146,T$1)","v":338},{"$f":"VLOOKUP(DropDownList!$B$47,CntyQryCensus!$A$103:$CX$146,U$1)","v":44},{"$f":"VLOOKUP(DropDownList!$B$47,CntyQryCensus!$A$103:$CX$146,V$1)","v":49},{"$f":"VLOOKUP(DropDownList!$B$47,CntyQryCensus!$A$103:$CX$146,W$1)","v":75},{"$f":"VLOOKUP(DropDownList!$B$47,CntyQryCensus!$A$103:$CX$146,X$1)","v":10},{"$f":"VLOOKUP(DropDownList!$B$47,CntyQryCensus!$A$103:$CX$146,Y$1)","v":5},{"$f":"VLOOKUP(DropDownList!$B$47,CntyQryCensus!$A$103:$CX$146,Z$1)","v":23},{"$f":"VLOOKUP(DropDownList!$B$47,CntyQryCensus!$A$103:$CX$146,AA$1)","v":158},{"$f":"VLOOKUP(DropDownList!$B$47,CntyQryCensus!$A$103:$CX$146,AB$1)","v":291},{"$f":"VLOOKUP(DropDownList!$B$47,CntyQryCensus!$A$103:$CX$146,AC$1)","v":459},{"$f":"VLOOKUP(DropDownList!$B$47,CntyQryCensus!$A$103:$CX$146,AD$1)","v":248},{"$f":"VLOOKUP(DropDownList!$B$47,CntyQryCensus!$A$103:$CX$146,AE$1)","v":195},{"$f":"VLOOKUP(DropDownList!$B$47,CntyQryCensus!$A$103:$CX$146,AF$1)","v":129},{"$f":"VLOOKUP(DropDownList!$B$47,CntyQryCensus!$A$103:$CX$146,AG$1)","v":6.1},{"$f":"VLOOKUP(DropDownList!$B$47,CntyQryCensus!$A$103:$CX$146,AH$1)","v":925},{"$f":"VLOOKUP(DropDownList!$B$47,CntyQryCensus!$A$103:$CX$146,AI$1)","v":173},{"$f":"VLOOKUP(DropDownList!$B$47,CntyQryCensus!$A$103:$CX$146,AJ$1)","v":332},{"$f":"VLOOKUP(DropDownList!$B$47,CntyQryCensus!$A$103:$CX$146,AK$1)","v":156},{"$f":"VLOOKUP(DropDownList!$B$47,CntyQryCensus!$A$103:$CX$146,AL$1)","v":170},{"$f":"VLOOKUP(DropDownList!$B$47,CntyQryCensus!$A$103:$CX$146,AM$1)","v":65},{"$f":"VLOOKUP(DropDownList!$B$47,CntyQryCensus!$A$103:$CX$146,AN$1)","v":29},{"$f":"VLOOKUP(DropDownList!$B$47,CntyQryCensus!$A$103:$CX$146,AO$1)","v":9},{"$f":"VLOOKUP(DropDownList!$B$47,CntyQryCensus!$A$103:$CX$146,AP$1)","v":436},{"$f":"VLOOKUP(DropDownList!$B$47,CntyQryCensus!$A$103:$CX$146,AQ$1)","v":47},{"$f":"VLOOKUP(DropDownList!$B$47,CntyQryCensus!$A$103:$CX$146,AR$1)","v":340},{"$f":"VLOOKUP(DropDownList!$B$47,CntyQryCensus!$A$103:$CX$146,AS$1)","v":0},{"$f":"VLOOKUP(DropDownList!$B$47,CntyQryCensus!$A$103:$CX$146,AT$1)","v":93},{"$f":"VLOOKUP(DropDownList!$B$47,CntyQryCensus!$A$103:$CX$146,AU$1)","v":0},{"$f":"VLOOKUP(DropDownList!$B$47,CntyQryCensus!$A$103:$CX$146,AV$1)","v":0},{"$f":"VLOOKUP(DropDownList!$B$47,CntyQryCensus!$A$103:$CX$146,AW$1)","v":0},{"$f":"VLOOKUP(DropDownList!$B$47,CntyQryCensus!$A$103:$CX$146,AX$1)","v":0},{"$f":"VLOOKUP(DropDownList!$B$47,CntyQryCensus!$A$103:$CX$146,AY$1)","v":5},{"$f":"VLOOKUP(DropDownList!$B$47,CntyQryCensus!$A$103:$CX$146,AZ$1)","v":10},{"$f":"VLOOKUP(DropDownList!$B$47,CntyQryCensus!$A$103:$CX$146,BA$1)","v":925},{"$f":"VLOOKUP(DropDownList!$B$47,CntyQryCensus!$A$103:$CX$146,BB$1)","v":923},{"$f":"VLOOKUP(DropDownList!$B$47,CntyQryCensus!$A$103:$CX$146,BC$1)","v":2},{"$f":"VLOOKUP(DropDownList!$B$47,CntyQryCensus!$A$103:$CX$146,BD$1)","v":0},{"$f":"VLOOKUP(DropDownList!$B$47,CntyQryCensus!$A$103:$CX$146,BE$1)","v":710},{"$f":"VLOOKUP(DropDownList!$B$47,CntyQryCensus!$A$103:$CX$146,BF$1)","v":5},{"$f":"VLOOKUP(DropDownList!$B$47,CntyQryCensus!$A$103:$CX$146,BG$1)","v":93},{"$f":"VLOOKUP(DropDownList!$B$47,CntyQryCensus!$A$103:$CX$146,BH$1)","v":228},{"$f":"VLOOKUP(DropDownList!$B$47,CntyQryCensus!$A$103:$CX$146,BI$1)","v":155},{"$f":"VLOOKUP(DropDownList!$B$47,CntyQryCensus!$A$103:$CX$146,BJ$1)","v":150},{"$f":"VLOOKUP(DropDownList!$B$47,CntyQryCensus!$A$103:$CX$146,BK$1)","v":72},{"$f":"VLOOKUP(DropDownList!$B$47,CntyQryCensus!$A$103:$CX$146,BL$1)","v":7},{"$f":"VLOOKUP(DropDownList!$B$47,CntyQryCensus!$A$103:$CX$146,BM$1)","v":0},{"$f":"VLOOKUP(DropDownList!$B$47,CntyQryCensus!$A$103:$CX$146,BN$1)","v":159200},{"$f":"VLOOKUP(DropDownList!$B$47,CntyQryCensus!$A$103:$CX$146,BO$1)","v":459},{"$f":"VLOOKUP(DropDownList!$B$47,CntyQryCensus!$A$103:$CX$146,BP$1)","v":0},{"$f":"VLOOKUP(DropDownList!$B$47,CntyQryCensus!$A$103:$CX$146,BQ$1)","v":2},{"$f":"VLOOKUP(DropDownList!$B$47,CntyQryCensus!$A$103:$CX$146,BR$1)","v":32},{"$f":"VLOOKUP(DropDownList!$B$47,CntyQryCensus!$A$103:$CX$146,BS$1)","v":60},{"$f":"VLOOKUP(DropDownList!$B$47,CntyQryCensus!$A$103:$CX$146,BT$1)","v":226},{"$f":"VLOOKUP(DropDownList!$B$47,CntyQryCensus!$A$103:$CX$146,BU$1)","v":97},{"$f":"VLOOKUP(DropDownList!$B$47,CntyQryCensus!$A$103:$CX$146,BV$1)","v":42},{"$f":"VLOOKUP(DropDownList!$B$47,CntyQryCensus!$A$103:$CX$146,BW$1)","v":1300},{"$f":"VLOOKUP(DropDownList!$B$47,CntyQryCensus!$A$103:$CX$146,BX$1)","v":251},{"$f":"VLOOKUP(DropDownList!$B$47,CntyQryCensus!$A$103:$CX$146,BY$1)","v":510},{"$f":"VLOOKUP(DropDownList!$B$47,CntyQryCensus!$A$103:$CX$146,BZ$1)","v":252},{"$f":"VLOOKUP(DropDownList!$B$47,CntyQryCensus!$A$103:$CX$146,CA$1)","v":111},{"$f":"VLOOKUP(DropDownList!$B$47,CntyQryCensus!$A$103:$CX$146,CB$1)","v":132},{"$f":"VLOOKUP(DropDownList!$B$47,CntyQryCensus!$A$103:$CX$146,CC$1)","v":73},{"$f":"VLOOKUP(DropDownList!$B$47,CntyQryCensus!$A$103:$CX$146,CD$1)","v":38},{"$f":"VLOOKUP(DropDownList!$B$47,CntyQryCensus!$A$103:$CX$146,CE$1)","v":97},{"$f":"VLOOKUP(DropDownList!$B$47,CntyQryCensus!$A$103:$CX$146,CF$1)","v":7},{"$f":"VLOOKUP(DropDownList!$B$47,CntyQryCensus!$A$103:$CX$146,CG$1)","v":103},{"$f":"VLOOKUP(DropDownList!$B$47,CntyQryCensus!$A$103:$CX$146,CH$1)","v":0},{"$f":"VLOOKUP(DropDownList!$B$47,CntyQryCensus!$A$103:$CX$146,CI$1)","v":0},{"$f":"VLOOKUP(DropDownList!$B$47,CntyQryCensus!$A$103:$CX$146,CJ$1)","v":6},{"$f":"VLOOKUP(DropDownList!$B$47,CntyQryCensus!$A$103:$CX$146,CK$1)","v":17},{"$f":"VLOOKUP(DropDownList!$B$47,CntyQryCensus!$A$103:$CX$146,CL$1)","v":19},{"$f":"VLOOKUP(DropDownList!$B$47,CntyQryCensus!$A$103:$CX$146,CM$1)","v":52},{"$f":"VLOOKUP(DropDownList!$B$47,CntyQryCensus!$A$103:$CX$146,CN$1)","v":4},{"$f":"VLOOKUP(DropDownList!$B$47,CntyQryCensus!$A$103:$CX$146,CO$1)","v":5},{"$f":"VLOOKUP(DropDownList!$B$47,CntyQryCensus!$A$103:$CX$146,CP$1)","v":1040},{"$f":"VLOOKUP(DropDownList!$B$47,CntyQryCensus!$A$103:$CX$146,CQ$1)","v":26},{"$f":"VLOOKUP(DropDownList!$B$47,CntyQryCensus!$A$103:$CX$146,CR$1)","v":15},{"$f":"VLOOKUP(DropDownList!$B$47,CntyQryCensus!$A$103:$CX$146,CS$1)","v":10},{"$f":"VLOOKUP(DropDownList!$B$47,CntyQryCensus!$A$103:$CX$146,CT$1)","v":20},{"$f":"VLOOKUP(DropDownList!$B$47,CntyQryCensus!$A$103:$CX$146,CU$1)","v":2},{"$f":"VLOOKUP(DropDownList!$B$47,CntyQryCensus!$A$103:$CX$146,CV$1)","v":22},{"$f":"VLOOKUP(DropDownList!$B$47,CntyQryCensus!$A$103:$CX$146,CW$1)","v":8}]
[]
[]
["Census 2000 SummaryFile3 Sample Data  -  SF3TownQry1SocialChar"]
["TOWN_NAME","LOGRECNO","COUSUB","P01TotalPopulation","P02SampleCountOfPop","P03Pop100pctCount","P05UrbanPopulation","P05RuralPopulation","P06WhiteAlone","P06BlackOrAfAm","P06AmIndAlone","P06AsianAlone","P06HawaiianOrPI","P06OtherRace","P06TwoPlusRaces","P07NotHispanicOrLatino","P07HispanicOrLatino","P08MalePop","P08FemalePop","P09PopInHouseholds","P09PopInFamHH","P09PopInNonFamHH","P09PopInGroupQtr","P13TotalHH","P13FamilyHH","P13FamHHolder15to24yrs","P13FamHHolder25to34yrs","P13FamHHolder35to44yrs","P13FamHHolder45to54yrs","P13FamHHolder55to64yrs","P13FamHHolder65to74yrs","P13FamHHolder75to84yrs","P13FamHHolder85yrsOver","P13NonFamilyHH","P13NonFamHHolder15to24yrs","P13NonFamHHolder25to34yrs","P13NonFamHHolder35to44yrs","P13NonFamHHolder45to54yrs","P13NonFamHHolder55to64yrs","P13NonFamHHolder65to74yrs","P13NonFamHHolder75to84yrs","P13NonFamHHolder85yrsOver","P18Pop15yrsOver","P18MaritalStatNeverMarried","P18MaritalStatNowMarried","P18MaritalStatSeparated","P18MaritalStatWidowed","P18MaritalStatWidowFemale","P18MaritalStatDivorced","P18MaritalStatDivorcedFemale","P21NativeBornPop","P21NatPopBornInState","P21NatPopBornOtherState","P021005","P021006","P021007","P021008","P21NatPopBornOutUS","P21ForeignBornPop","P021014","P021015","P24Pop5YrsPlus","P24ResSameHouseIn95","P24ResDiffHouseIn95","P24ResDiffHouseInUSIn95","P24ResDiffHouseSameCountyIn95","P24ResDiffHouseDiffCountyIn95","P24ResDiffHouseDiffCntySamStIn95","P24ResDiffHouseDiffCntyDifStIn95","P24ResDiffHouseDiffCntyNEStIn95","P24ResDiffHouseDiffCntyMWStIn95","P24ResDiffHouseDiffCntySoStIn95","P24ResDiffHouseDiffCntyWstStIn95","P24ResDiffInPR","P24ResDiffElsewhereIn95","P26Workers16yrsOver","P26WorkedInState","P26WorkedInCnty","P26WorkedOutsideCnty","P26WorkedOutsideState","P30Workers16Over","P30TranspToWrkCar","P30TranspToWrkPublic","P30TranspToWrkOther","P30WrkdAtHome","P31WrkrsNotWrkAtHom","P31TravTim<5min","P31TravTim5to9Min","P31TravTim10to14Min","P31TravTim15to19Min","P31TravTim20to24Min","P31TravTim25to29Min","P31TravTim30to34Min","P31TravTim35to39Min","P31TravTim40to44Min","P31TravTim45to59Min","P31TravTim60to89Min","P31TravTim90MinMore","P31WorkAtHome","P36SchEnrlPop3yrOver","P36NurserSchEnrl","P36KinderSchEnrl","P36ElemSchEnrl","P36HighSchEnrl","P36CollGradSchEnrl","P37Pop25yrsOver","P37EduAtain<9grd","P37EduAtainHSnoDip","P37EduAtainHSgrad","P37EduAtainCollNoDeg","P37EduAtainAssocDeg","P37EduAtainBachDeg","P37EduAtainGradProfDeg","P42NIPop5to15","P42NIPop5to15wDisabl","P42NIPop16to20","P42NIPop16to20wDisab","P42NIPop16to20wDisEmp","P42NIPop16to21NoDis","P42NIPop16to21NoDisEmpl","P42NIPop21to64","P42NIPop21to64wDis","P42NIPop21to64wDisEmp","P42NIPop21to64NoDis","P42NIPop21to64NoDisEmp","P42NIPop65to74","P42NIPop65to74wDis","P42NIPop75Over","P42NIPop75OverwDis","P43Pop16YrsOver","P43Pop16OvrInLaborForce","P43Pop16OvrCivlLabFrc","P43Pop16OvrCivlLbrFrcEmp","P48Families","P48MarriedFam","P48MarrFamNoWorkers","P48MarrFam1Worker","P48MarrFam2Worker","P48MarrFamHusbWifeWorked","P48MarrFamOther","P48MarrFam3PlusWorker","P48MarrFam3WorkHsbWif","P48MarrFam3PlsWrkOther","P48OtherFam","P48MaleHHNoWif","P48MaleHHNoWifNoWorker","P48MaleHHNoWif1Worker","P48MaleHHNoWif2Worker","P48MaleHHNoWif3PlusWorker","P48FemaleHHNoHsb","P48FemaleHHNoHsbNoWorker","P48FemaleHHNoHsb1Worker","P48FemaleHHNoHsb2Worker","P48FemaleHHNoHsb3Worker","P49EmpCivPop16YrOver","P49IndustAgricult","P49IndustConst","P49IndustMnftg","P49IndustWhlslTrd","P49IndustRtlTrd","P49IndustTrspWrhsUtlt","P49IndustInfrm","P49IndustFinInsRE","P49IndustPrfsScntfMngmt","P49IndustEduHlthSocSrv","P49IndustArtsEntRec","P49IndustOthrSrvc","P49IndustPubAdm","P50OccupMngmtProfs","P50OccupService","P50OccupSalesOff","P50OccupFarmFishForest","P50OccupConstExtrctMaint","P50OccupPrdctTrnspMatMv"]
[{"$f":"VLOOKUP(DropDownList!$B$47,CntyQryCensus!$A$103:$CX$146,A$1)","v":"Grantham"},{"$f":"VLOOKUP(DropDownList!$B$47,CntyQryCensus!$A$156:$FR$198,B$1)","v":"0004212"},{"$f":"VLOOKUP(DropDownList!$B$47,CntyQryCensus!$A$156:$FR$198,C$1)","v":"31220"},{"$f":"VLOOKUP(DropDownList!$B$47,CntyQryCensus!$A$156:$FR$198,D$1)","v":2173},{"$f":"VLOOKUP(DropDownList!$B$47,CntyQryCensus!$A$156:$FR$198,E$1)","v":973},{"$f":"VLOOKUP(DropDownList!$B$47,CntyQryCensus!$A$156:$FR$198,F$1)","v":2167},{"$f":"VLOOKUP(DropDownList!$B$47,CntyQryCensus!$A$156:$FR$198,G$1)","v":0},{"$f":"VLOOKUP(DropDownList!$B$47,CntyQryCensus!$A$156:$FR$198,H$1)","v":2173},{"$f":"VLOOKUP(DropDownList!$B$47,CntyQryCensus!$A$156:$FR$198,I$1)","v":2133},{"$f":"VLOOKUP(DropDownList!$B$47,CntyQryCensus!$A$156:$FR$198,J$1)","v":2},{"$f":"VLOOKUP(DropDownList!$B$47,CntyQryCensus!$A$156:$FR$198,K$1)","v":0},{"$f":"VLOOKUP(DropDownList!$B$47,CntyQryCensus!$A$156:$FR$198,L$1)","v":9},{"$f":"VLOOKUP(DropDownList!$B$47,CntyQryCensus!$A$156:$FR$198,M$1)","v":0},{"$f":"VLOOKUP(DropDownList!$B$47,CntyQryCensus!$A$156:$FR$198,N$1)","v":11},{"$f":"VLOOKUP(DropDownList!$B$47,CntyQryCensus!$A$156:$FR$198,O$1)","v":18},{"$f":"VLOOKUP(DropDownList!$B$47,CntyQryCensus!$A$156:$FR$198,P$1)","v":2165},{"$f":"VLOOKUP(DropDownList!$B$47,CntyQryCensus!$A$156:$FR$198,Q$1)","v":8},{"$f":"VLOOKUP(DropDownList!$B$47,CntyQryCensus!$A$156:$FR$198,R$1)","v":1068},{"$f":"VLOOKUP(DropDownList!$B$47,CntyQryCensus!$A$156:$FR$198,S$1)","v":1105},{"$f":"VLOOKUP(DropDownList!$B$47,CntyQryCensus!$A$156:$FR$198,T$1)","v":2173},{"$f":"VLOOKUP(DropDownList!$B$47,CntyQryCensus!$A$156:$FR$198,U$1)","v":1899},{"$f":"VLOOKUP(DropDownList!$B$47,CntyQryCensus!$A$156:$FR$198,V$1)","v":274},{"$f":"VLOOKUP(DropDownList!$B$47,CntyQryCensus!$A$156:$FR$198,W$1)","v":0},{"$f":"VLOOKUP(DropDownList!$B$47,CntyQryCensus!$A$156:$FR$198,X$1)","v":933},{"$f":"VLOOKUP(DropDownList!$B$47,CntyQryCensus!$A$156:$FR$198,Y$1)","v":709},{"$f":"VLOOKUP(DropDownList!$B$47,CntyQryCensus!$A$156:$FR$198,Z$1)","v":7},{"$f":"VLOOKUP(DropDownList!$B$47,CntyQryCensus!$A$156:$FR$198,AA$1)","v":89},{"$f":"VLOOKUP(DropDownList!$B$47,CntyQryCensus!$A$156:$FR$198,AB$1)","v":135},{"$f":"VLOOKUP(DropDownList!$B$47,CntyQryCensus!$A$156:$FR$198,AC$1)","v":148},{"$f":"VLOOKUP(DropDownList!$B$47,CntyQryCensus!$A$156:$FR$198,AD$1)","v":114},{"$f":"VLOOKUP(DropDownList!$B$47,CntyQryCensus!$A$156:$FR$198,AE$1)","v":149},{"$f":"VLOOKUP(DropDownList!$B$47,CntyQryCensus!$A$156:$FR$198,AF$1)","v":63},{"$f":"VLOOKUP(DropDownList!$B$47,CntyQryCensus!$A$156:$FR$198,AG$1)","v":4},{"$f":"VLOOKUP(DropDownList!$B$47,CntyQryCensus!$A$156:$FR$198,AH$1)","v":224},{"$f":"VLOOKUP(DropDownList!$B$47,CntyQryCensus!$A$156:$FR$198,AI$1)","v":8},{"$f":"VLOOKUP(DropDownList!$B$47,CntyQryCensus!$A$156:$FR$198,AJ$1)","v":16},{"$f":"VLOOKUP(DropDownList!$B$47,CntyQryCensus!$A$156:$FR$198,AK$1)","v":23},{"$f":"VLOOKUP(DropDownList!$B$47,CntyQryCensus!$A$156:$FR$198,AL$1)","v":55},{"$f":"VLOOKUP(DropDownList!$B$47,CntyQryCensus!$A$156:$FR$198,AM$1)","v":42},{"$f":"VLOOKUP(DropDownList!$B$47,CntyQryCensus!$A$156:$FR$198,AN$1)","v":37},{"$f":"VLOOKUP(DropDownList!$B$47,CntyQryCensus!$A$156:$FR$198,AO$1)","v":31},{"$f":"VLOOKUP(DropDownList!$B$47,CntyQryCensus!$A$156:$FR$198,AP$1)","v":12},{"$f":"VLOOKUP(DropDownList!$B$47,CntyQryCensus!$A$156:$FR$198,AQ$1)","v":1817},{"$f":"VLOOKUP(DropDownList!$B$47,CntyQryCensus!$A$156:$FR$198,AR$1)","v":239},{"$f":"VLOOKUP(DropDownList!$B$47,CntyQryCensus!$A$156:$FR$198,AS$1)","v":1336},{"$f":"VLOOKUP(DropDownList!$B$47,CntyQryCensus!$A$156:$FR$198,AT$1)","v":3},{"$f":"VLOOKUP(DropDownList!$B$47,CntyQryCensus!$A$156:$FR$198,AU$1)","v":87},{"$f":"VLOOKUP(DropDownList!$B$47,CntyQryCensus!$A$156:$FR$198,AV$1)","v":59},{"$f":"VLOOKUP(DropDownList!$B$47,CntyQryCensus!$A$156:$FR$198,AW$1)","v":152},{"$f":"VLOOKUP(DropDownList!$B$47,CntyQryCensus!$A$156:$FR$198,AX$1)","v":84},{"$f":"VLOOKUP(DropDownList!$B$47,CntyQryCensus!$A$156:$FR$198,AY$1)","v":2083},{"$f":"VLOOKUP(DropDownList!$B$47,CntyQryCensus!$A$156:$FR$198,AZ$1)","v":720},{"$f":"VLOOKUP(DropDownList!$B$47,CntyQryCensus!$A$156:$FR$198,BA$1)","v":1338},{"$f":"VLOOKUP(DropDownList!$B$47,CntyQryCensus!$A$156:$FR$198,BB$1)","v":965},{"$f":"VLOOKUP(DropDownList!$B$47,CntyQryCensus!$A$156:$FR$198,BC$1)","v":174},{"$f":"VLOOKUP(DropDownList!$B$47,CntyQryCensus!$A$156:$FR$198,BD$1)","v":125},{"$f":"VLOOKUP(DropDownList!$B$47,CntyQryCensus!$A$156:$FR$198,BE$1)","v":74},{"$f":"VLOOKUP(DropDownList!$B$47,CntyQryCensus!$A$156:$FR$198,BF$1)","v":25},{"$f":"VLOOKUP(DropDownList!$B$47,CntyQryCensus!$A$156:$FR$198,BG$1)","v":90},{"$f":"VLOOKUP(DropDownList!$B$47,CntyQryCensus!$A$156:$FR$198,BH$1)","v":40},{"$f":"VLOOKUP(DropDownList!$B$47,CntyQryCensus!$A$156:$FR$198,BI$1)","v":50},{"$f":"VLOOKUP(DropDownList!$B$47,CntyQryCensus!$A$156:$FR$198,BJ$1)","v":2064},{"$f":"VLOOKUP(DropDownList!$B$47,CntyQryCensus!$A$156:$FR$198,BK$1)","v":940},{"$f":"VLOOKUP(DropDownList!$B$47,CntyQryCensus!$A$156:$FR$198,BL$1)","v":1124},{"$f":"VLOOKUP(DropDownList!$B$47,CntyQryCensus!$A$156:$FR$198,BM$1)","v":1095},{"$f":"VLOOKUP(DropDownList!$B$47,CntyQryCensus!$A$156:$FR$198,BN$1)","v":303},{"$f":"VLOOKUP(DropDownList!$B$47,CntyQryCensus!$A$156:$FR$198,BO$1)","v":792},{"$f":"VLOOKUP(DropDownList!$B$47,CntyQryCensus!$A$156:$FR$198,BP$1)","v":281},{"$f":"VLOOKUP(DropDownList!$B$47,CntyQryCensus!$A$156:$FR$198,BQ$1)","v":511},{"$f":"VLOOKUP(DropDownList!$B$47,CntyQryCensus!$A$156:$FR$198,BR$1)","v":285},{"$f":"VLOOKUP(DropDownList!$B$47,CntyQryCensus!$A$156:$FR$198,BS$1)","v":54},{"$f":"VLOOKUP(DropDownList!$B$47,CntyQryCensus!$A$156:$FR$198,BT$1)","v":109},{"$f":"VLOOKUP(DropDownList!$B$47,CntyQryCensus!$A$156:$FR$198,BU$1)","v":63},{"$f":"VLOOKUP(DropDownList!$B$47,CntyQryCensus!$A$156:$FR$198,BV$1)","v":0},{"$f":"VLOOKUP(DropDownList!$B$47,CntyQryCensus!$A$156:$FR$198,BW$1)","v":29},{"$f":"VLOOKUP(DropDownList!$B$47,CntyQryCensus!$A$156:$FR$198,BX$1)","v":1051},{"$f":"VLOOKUP(DropDownList!$B$47,CntyQryCensus!$A$156:$FR$198,BY$1)","v":948},{"$f":"VLOOKUP(DropDownList!$B$47,CntyQryCensus!$A$156:$FR$198,BZ$1)","v":341},{"$f":"VLOOKUP(DropDownList!$B$47,CntyQryCensus!$A$156:$FR$198,CA$1)","v":607},{"$f":"VLOOKUP(DropDownList!$B$47,CntyQryCensus!$A$156:$FR$198,CB$1)","v":103},{"$f":"VLOOKUP(DropDownList!$B$47,CntyQryCensus!$A$156:$FR$198,CC$1)","v":1051},{"$f":"VLOOKUP(DropDownList!$B$47,CntyQryCensus!$A$156:$FR$198,CD$1)","v":937},{"$f":"VLOOKUP(DropDownList!$B$47,CntyQryCensus!$A$156:$FR$198,CE$1)","v":13},{"$f":"VLOOKUP(DropDownList!$B$47,CntyQryCensus!$A$156:$FR$198,CF$1)","v":10},{"$f":"VLOOKUP(DropDownList!$B$47,CntyQryCensus!$A$156:$FR$198,CG$1)","v":82},{"$f":"VLOOKUP(DropDownList!$B$47,CntyQryCensus!$A$156:$FR$198,CH$1)","v":969},{"$f":"VLOOKUP(DropDownList!$B$47,CntyQryCensus!$A$156:$FR$198,CI$1)","v":29},{"$f":"VLOOKUP(DropDownList!$B$47,CntyQryCensus!$A$156:$FR$198,CJ$1)","v":50},{"$f":"VLOOKUP(DropDownList!$B$47,CntyQryCensus!$A$156:$FR$198,CK$1)","v":59},{"$f":"VLOOKUP(DropDownList!$B$47,CntyQryCensus!$A$156:$FR$198,CL$1)","v":118},{"$f":"VLOOKUP(DropDownList!$B$47,CntyQryCensus!$A$156:$FR$198,CM$1)","v":254},{"$f":"VLOOKUP(DropDownList!$B$47,CntyQryCensus!$A$156:$FR$198,CN$1)","v":175},{"$f":"VLOOKUP(DropDownList!$B$47,CntyQryCensus!$A$156:$FR$198,CO$1)","v":110},{"$f":"VLOOKUP(DropDownList!$B$47,CntyQryCensus!$A$156:$FR$198,CP$1)","v":22},{"$f":"VLOOKUP(DropDownList!$B$47,CntyQryCensus!$A$156:$FR$198,CQ$1)","v":31},{"$f":"VLOOKUP(DropDownList!$B$47,CntyQryCensus!$A$156:$FR$198,CR$1)","v":40},{"$f":"VLOOKUP(DropDownList!$B$47,CntyQryCensus!$A$156:$FR$198,CS$1)","v":19},{"$f":"VLOOKUP(DropDownList!$B$47,CntyQryCensus!$A$156:$FR$198,CT$1)","v":62},{"$f":"VLOOKUP(DropDownList!$B$47,CntyQryCensus!$A$156:$FR$198,CU$1)","v":82},{"$f":"VLOOKUP(DropDownList!$B$47,CntyQryCensus!$A$156:$FR$198,CV$1)","v":2113},{"$f":"VLOOKUP(DropDownList!$B$47,CntyQryCensus!$A$156:$FR$198,CW$1)","v":32},{"$f":"VLOOKUP(DropDownList!$B$47,CntyQryCensus!$A$156:$FR$198,CX$1)","v":32},{"$f":"VLOOKUP(DropDownList!$B$47,CntyQryCensus!$A$156:$FR$198,CY$1)","v":193},{"$f":"VLOOKUP(DropDownList!$B$47,CntyQryCensus!$A$156:$FR$198,CZ$1)","v":104},{"$f":"VLOOKUP(DropDownList!$B$47,CntyQryCensus!$A$156:$FR$198,DA$1)","v":73},{"$f":"VLOOKUP(DropDownList!$B$47,CntyQryCensus!$A$156:$FR$198,DB$1)","v":1672},{"$f":"VLOOKUP(DropDownList!$B$47,CntyQryCensus!$A$156:$FR$198,DC$1)","v":16},{"$f":"VLOOKUP(DropDownList!$B$47,CntyQryCensus!$A$156:$FR$198,DD$1)","v":39},{"$f":"VLOOKUP(DropDownList!$B$47,CntyQryCensus!$A$156:$FR$198,DE$1)","v":291},{"$f":"VLOOKUP(DropDownList!$B$47,CntyQryCensus!$A$156:$FR$198,DF$1)","v":343},{"$f":"VLOOKUP(DropDownList!$B$47,CntyQryCensus!$A$156:$FR$198,DG$1)","v":127},{"$f":"VLOOKUP(DropDownList!$B$47,CntyQryCensus!$A$156:$FR$198,DH$1)","v":491},{"$f":"VLOOKUP(DropDownList!$B$47,CntyQryCensus!$A$156:$FR$198,DI$1)","v":365},{"$f":"VLOOKUP(DropDownList!$B$47,CntyQryCensus!$A$156:$FR$198,DJ$1)","v":276},{"$f":"VLOOKUP(DropDownList!$B$47,CntyQryCensus!$A$156:$FR$198,DK$1)","v":14},{"$f":"VLOOKUP(DropDownList!$B$47,CntyQryCensus!$A$156:$FR$198,DL$1)","v":74},{"$f":"VLOOKUP(DropDownList!$B$47,CntyQryCensus!$A$156:$FR$198,DM$1)","v":5},{"$f":"VLOOKUP(DropDownList!$B$47,CntyQryCensus!$A$156:$FR$198,DN$1)","v":5},{"$f":"VLOOKUP(DropDownList!$B$47,CntyQryCensus!$A$156:$FR$198,DO$1)","v":69},{"$f":"VLOOKUP(DropDownList!$B$47,CntyQryCensus!$A$156:$FR$198,DP$1)","v":37},{"$f":"VLOOKUP(DropDownList!$B$47,CntyQryCensus!$A$156:$FR$198,DQ$1)","v":1236},{"$f":"VLOOKUP(DropDownList!$B$47,CntyQryCensus!$A$156:$FR$198,DR$1)","v":92},{"$f":"VLOOKUP(DropDownList!$B$47,CntyQryCensus!$A$156:$FR$198,DS$1)","v":62},{"$f":"VLOOKUP(DropDownList!$B$47,CntyQryCensus!$A$156:$FR$198,DT$1)","v":1144},{"$f":"VLOOKUP(DropDownList!$B$47,CntyQryCensus!$A$156:$FR$198,DU$1)","v":903},{"$f":"VLOOKUP(DropDownList!$B$47,CntyQryCensus!$A$156:$FR$198,DV$1)","v":326},{"$f":"VLOOKUP(DropDownList!$B$47,CntyQryCensus!$A$156:$FR$198,DW$1)","v":34},{"$f":"VLOOKUP(DropDownList!$B$47,CntyQryCensus!$A$156:$FR$198,DX$1)","v":152},{"$f":"VLOOKUP(DropDownList!$B$47,CntyQryCensus!$A$156:$FR$198,DY$1)","v":48},{"$f":"VLOOKUP(DropDownList!$B$47,CntyQryCensus!$A$156:$FR$198,DZ$1)","v":1788},{"$f":"VLOOKUP(DropDownList!$B$47,CntyQryCensus!$A$156:$FR$198,EA$1)","v":1091},{"$f":"VLOOKUP(DropDownList!$B$47,CntyQryCensus!$A$156:$FR$198,EB$1)","v":1091},{"$f":"VLOOKUP(DropDownList!$B$47,CntyQryCensus!$A$156:$FR$198,EC$1)","v":1077},{"$f":"VLOOKUP(DropDownList!$B$47,CntyQryCensus!$A$156:$FR$198,ED$1)","v":709},{"$f":"VLOOKUP(DropDownList!$B$47,CntyQryCensus!$A$156:$FR$198,EE$1)","v":656},{"$f":"VLOOKUP(DropDownList!$B$47,CntyQryCensus!$A$156:$FR$198,EF$1)","v":153},{"$f":"VLOOKUP(DropDownList!$B$47,CntyQryCensus!$A$156:$FR$198,EG$1)","v":127},{"$f":"VLOOKUP(DropDownList!$B$47,CntyQryCensus!$A$156:$FR$198,EH$1)","v":322},{"$f":"VLOOKUP(DropDownList!$B$47,CntyQryCensus!$A$156:$FR$198,EI$1)","v":306},{"$f":"VLOOKUP(DropDownList!$B$47,CntyQryCensus!$A$156:$FR$198,EJ$1)","v":16},{"$f":"VLOOKUP(DropDownList!$B$47,CntyQryCensus!$A$156:$FR$198,EK$1)","v":54},{"$f":"VLOOKUP(DropDownList!$B$47,CntyQryCensus!$A$156:$FR$198,EL$1)","v":49},{"$f":"VLOOKUP(DropDownList!$B$47,CntyQryCensus!$A$156:$FR$198,EM$1)","v":5},{"$f":"VLOOKUP(DropDownList!$B$47,CntyQryCensus!$A$156:$FR$198,EN$1)","v":53},{"$f":"VLOOKUP(DropDownList!$B$47,CntyQryCensus!$A$156:$FR$198,EO$1)","v":17},{"$f":"VLOOKUP(DropDownList!$B$47,CntyQryCensus!$A$156:$FR$198,EP$1)","v":3},{"$f":"VLOOKUP(DropDownList!$B$47,CntyQryCensus!$A$156:$FR$198,EQ$1)","v":4},{"$f":"VLOOKUP(DropDownList!$B$47,CntyQryCensus!$A$156:$FR$198,ER$1)","v":8},{"$f":"VLOOKUP(DropDownList!$B$47,CntyQryCensus!$A$156:$FR$198,ES$1)","v":2},{"$f":"VLOOKUP(DropDownList!$B$47,CntyQryCensus!$A$156:$FR$198,ET$1)","v":36},{"$f":"VLOOKUP(DropDownList!$B$47,CntyQryCensus!$A$156:$FR$198,EU$1)","v":2},{"$f":"VLOOKUP(DropDownList!$B$47,CntyQryCensus!$A$156:$FR$198,EV$1)","v":22},{"$f":"VLOOKUP(DropDownList!$B$47,CntyQryCensus!$A$156:$FR$198,EW$1)","v":10},{"$f":"VLOOKUP(DropDownList!$B$47,CntyQryCensus!$A$156:$FR$198,EX$1)","v":2},{"$f":"VLOOKUP(DropDownList!$B$47,CntyQryCensus!$A$156:$FR$198,EY$1)","v":1077},{"$f":"VLOOKUP(DropDownList!$B$47,CntyQryCensus!$A$156:$FR$198,EZ$1)","v":13},{"$f":"VLOOKUP(DropDownList!$B$47,CntyQryCensus!$A$156:$FR$198,FA$1)","v":54},{"$f":"VLOOKUP(DropDownList!$B$47,CntyQryCensus!$A$156:$FR$198,FB$1)","v":147},{"$f":"VLOOKUP(DropDownList!$B$47,CntyQryCensus!$A$156:$FR$198,FC$1)","v":37},{"$f":"VLOOKUP(DropDownList!$B$47,CntyQryCensus!$A$156:$FR$198,FD$1)","v":141},{"$f":"VLOOKUP(DropDownList!$B$47,CntyQryCensus!$A$156:$FR$198,FE$1)","v":47},{"$f":"VLOOKUP(DropDownList!$B$47,CntyQryCensus!$A$156:$FR$198,FF$1)","v":31},{"$f":"VLOOKUP(DropDownList!$B$47,CntyQryCensus!$A$156:$FR$198,FG$1)","v":58},{"$f":"VLOOKUP(DropDownList!$B$47,CntyQryCensus!$A$156:$FR$198,FH$1)","v":102},{"$f":"VLOOKUP(DropDownList!$B$47,CntyQryCensus!$A$156:$FR$198,FI$1)","v":324},{"$f":"VLOOKUP(DropDownList!$B$47,CntyQryCensus!$A$156:$FR$198,FJ$1)","v":42},{"$f":"VLOOKUP(DropDownList!$B$47,CntyQryCensus!$A$156:$FR$198,FK$1)","v":48},{"$f":"VLOOKUP(DropDownList!$B$47,CntyQryCensus!$A$156:$FR$198,FL$1)","v":33},{"$f":"VLOOKUP(DropDownList!$B$47,CntyQryCensus!$A$156:$FR$198,FM$1)","v":516},{"$f":"VLOOKUP(DropDownList!$B$47,CntyQryCensus!$A$156:$FR$198,FN$1)","v":93},{"$f":"VLOOKUP(DropDownList!$B$47,CntyQryCensus!$A$156:$FR$198,FO$1)","v":287},{"$f":"VLOOKUP(DropDownList!$B$47,CntyQryCensus!$A$156:$FR$198,FP$1)","v":4},{"$f":"VLOOKUP(DropDownList!$B$47,CntyQryCensus!$A$156:$FR$198,FQ$1)","v":78},{"$f":"VLOOKUP(DropDownList!$B$47,CntyQryCensus!$A$156:$FR$198,FR$1)","v":99}]
[]
[]
["Census 2000 SummaryFile3 Sample Data  -  SF3TownQry2aIncomeChar"]
["NAME","LOGRECNO","COUNTY","TotalPop","P52Households1","P52HHInc<10K","P52HHInc10to15K","P52HHInc15to20K","P52HHInc20to25K","P52HHInc25to30K","P52HHInc30to35K","P52HHInc35to40K","P52HHInc40to45K","P52HHInc45to50K","P52HHInc50to60K","P52HHInc60to75K","P52HHInc75to100K","P52HHInc100to125K","P52HHInc125to150K","P52HHInc150to200K","P52HHInc>200K","P53MedianHHInc","P54AggregHHInc","P55Households2","P55HHUnder25yrs","P55HH<25HHInc<10K","P55HH<25HHInc10to15K","P55HH<25HHInc15to20K","P55HH<25HHInc20to25K","P55HH<25HHInc25to30K","P55HH<25HHInc30to35K","P55HH<25HHInc35to40K","P55HH<25HHInc40to45K","P55HH<25HHInc45to50K","P55HH<25HHInc50to60K","P55HH<25HHInc60to75K","P55HH<25HHInc75to100K","P55HH<25HHInc100to125K","P55HH<25HHInc125to150K","P55HH<25HHInc150to200K","P55HH<25HHInc>200K","P55HH25to34yrs","P55HH25to34HHInc<10K","P55HH25to34HHInc10to15K","P55HH25to34HHInc15to20K","P55HH25to34HHInc20to25K","P55HH25to34HHInc25to30K","P55HH25to34HHInc30to35K","P55HH25to34HHInc35to40K","P55HH25to34HHInc40to45K","P55HH25to34HHInc45to50K","P55HH25to34HHInc50to60K","P55HH25to34HHInc60to75K","P55HH25to34HHInc75to100K","P55HH25to34HHInc100to125K","P55HH25to34HHInc125to150K","P55HH25to34HHInc150to200K","P55HH25to34HHInc>200K","P55HH35to44yrs","P55HH35to44HHInc<10K","P55HH35to44HHInc10to15K","P55HH35to44HHInc15to20K","P55HH35to44HHInc20to25K","P55HH35to44HHInc25to30K","P55HH35to44HHInc30to35K","P55HH35to44HHInc35to40K","P55HH35to44HHInc40to45K","P55HH35to44HHInc45to50K","P55HH35to44HHInc50to60K","P55HH35to44HHInc60to75K","P55HH35to44HHInc75to100K","P55HH35to44HHInc100to125K","P55HH35to44HHInc125to150K","P55HH35to44HHInc150to200K","P55HH35to44HHInc>200K","P55HH45to54yrs","P55HH45to55HHInc<10K","P55HH45to55HHInc10to15K","P55HH45to55HHInc15to20K","P55HH45to55HHInc20to25K","P55HH45to55HHInc25to30K","P55HH45to55HHInc30to35K","P55HH45to55HHInc35to40K","P55HH45to55HHInc40to45K","P55HH45to55HHInc45to50K","P55HH45to55HHInc50to60K","P55HH45to55HHInc60to75K","P55HH45to55HHInc75to100K","P55HH45to55HHInc100to125K","P55HH45to55HHInc125to150K","P55HH45to55HHInc150to200K","P55HH45to55HHInc>200K","P55HH55to64yrs","P55HH55to64HHInc<10K","P55HH55to64HHInc10to15K","P55HH55to64HHInc15to20K","P55HH55to64HHInc20to25K","P55HH55to64HHInc25to30K","P55HH55to64HHInc30to35K","P55HH55to64HHInc35to40K","P55HH55to64HHInc40to45K","P55HH55to64HHInc45to50K","P55HH55to64HHInc50to60K","P55HH55to64HHInc60to75K","P55HH55to64HHInc75to100K","P55HH55to64HHInc100to125K","P55HH55to64HHInc125to150K","P55HH55to64HHInc150to200K","P55HH55to64HHInc>200K","P55HH65to74yrs","P55HH65to74HHInc<10K","P55HH65to74HHInc10to15K","P55HH65to74HHInc15to20K","P55HH65to74HHInc20to25K","P55HH65to74HHInc25to30K","P55HH65to74HHInc30to35K","P55HH65to74HHInc35to40K","P55HH65to74HHInc40to45K","P55HH65to74HHInc45to50K","P55HH65to74HHInc50to60K","P55HH65to74HHInc60to75K","P55HH65to74HHInc75to100K","P55HH65to74HHInc100to125K","P55HH65to74HHInc125to150K","P55HH65to74HHInc150to200K","P55HH65to74HHInc>200K","P55HH>75yrs","P55HH>75HHInc<10K","P55HH>75HHInc10to15K","P55HH>75HHInc15to20K","P55HH>75HHInc20to25K","P55HH>75HHInc25to30K","P55HH>75HHInc30to35K","P55HH>75HHInc35to40K","P55HH>75HHInc40to45K","P55HH>75HHInc45to50K","P55HH>75HHInc50to60K","P55HH>75HHInc60to75K","P55HH>75HHInc75to100K","P55HH>75HHInc100to125K","P55HH>75HHInc125to150K","P55HH>75HHInc150to200K","P55HH>75HHInc>200K","P56MedHHInc","P56MedHHIncHH<25y","P56MedHHIncHH25to34y","P56MedHHIncHH35to44y","P56MedHHIncHH45to54y","P56MedHHIncHH55to64y","P56MedHHIncHH65to74y","P56MedHHIncHH>75y","P58Households3","P58HHwithEarnings","P58HHNoEarnings","P59HHwWageSalInc","P59HHNoWageSalInc","P60HHwSelfEmpInc","P60HHNoSelfEmpInc","P61HHwIndDivInc","P61HHNoIndDivInc","P62HHwSocSecInc","P62HHNoSocSecInc","P63HHwSSI","P63HHNoSSI","P64HHwPubAssInc","P64HHNoPubAssInc","P65HHwRetInc","P65HHNoRetInc","P66HHwOtherTypInc","P66HHNoOtherTypInc","P67AggregEarnings","P68AggregWageSalInc","P69AggregSelfEmpInc","P70AggregIntDivInc","P71AggregSocSecInc","P72AggregSSIInc","P73AggregPublicAssInc","P74AggregRetireInc","P76Families1","P76FamInc<10K","P76FamInc10to15K","P76FamInc15to20K","P76FamInc20to25K","P76FamInc25to30K","P76FamInc30to35K","P76FamInc35to40K","P76FamInc40to45K","P76FamInc45to50K","P76FamInc50to60K","P76FamInc60to75K","P76FamInc75to100K","P76FamInc100to125K","P76FamInc125to150K","P76FamInc150to200K","P76FamInc>200K","P77MedFamInc","P78AggregFamInc","P79NonFamHH","P79NonFamHHwInc<10K","P79NonFamHHwInc10to15K","P79NonFamHHwInc15to20K","P79NonFamHHwInc20to25K","P79NonFamHHwInc25to30K","P79NonFamHHwInc30to35K","P79NonFamHHwInc35to40K","P79NonFamHHwInc40to45K","P79NonFamHHwInc45to50K","P79NonFamHHwInc50to60K","P79NonFamHHwInc60to75K","P79NonFamHHwInc75to100K","P79NonFamHHwInc100to125K","P79NonFamHHwInc125to150K","P79NonFamHHwInc150to200K","P79NonFamHHwInc200KorMore","P80MedNonFamInc","P82PerCapitaInc"]
[{"$f":"VLOOKUP(DropDownList!$B$47,CntyQryCensus!$A$206:$HH$248,A$1)","v":"Grantham"},{"$f":"VLOOKUP(DropDownList!$B$47,CntyQryCensus!$A$206:$HH$248,B$1)","v":"0004212"},{"$f":"VLOOKUP(DropDownList!$B$47,CntyQryCensus!$A$206:$HH$248,C$1)","v":"31220"},{"$f":"VLOOKUP(DropDownList!$B$47,CntyQryCensus!$A$206:$HH$248,D$1)","v":2167},{"$f":"VLOOKUP(DropDownList!$B$47,CntyQryCensus!$A$206:$HH$248,E$1)","v":933},{"$f":"VLOOKUP(DropDownList!$B$47,CntyQryCensus!$A$206:$HH$248,F$1)","v":36},{"$f":"VLOOKUP(DropDownList!$B$47,CntyQryCensus!$A$206:$HH$248,G$1)","v":12},{"$f":"VLOOKUP(DropDownList!$B$47,CntyQryCensus!$A$206:$HH$248,H$1)","v":14},{"$f":"VLOOKUP(DropDownList!$B$47,CntyQryCensus!$A$206:$HH$248,I$1)","v":38},{"$f":"VLOOKUP(DropDownList!$B$47,CntyQryCensus!$A$206:$HH$248,J$1)","v":42},{"$f":"VLOOKUP(DropDownList!$B$47,CntyQryCensus!$A$206:$HH$248,K$1)","v":26},{"$f":"VLOOKUP(DropDownList!$B$47,CntyQryCensus!$A$206:$HH$248,L$1)","v":48},{"$f":"VLOOKUP(DropDownList!$B$47,CntyQryCensus!$A$206:$HH$248,M$1)","v":59},{"$f":"VLOOKUP(DropDownList!$B$47,CntyQryCensus!$A$206:$HH$248,N$1)","v":40},{"$f":"VLOOKUP(DropDownList!$B$47,CntyQryCensus!$A$206:$HH$248,O$1)","v":113},{"$f":"VLOOKUP(DropDownList!$B$47,CntyQryCensus!$A$206:$HH$248,P$1)","v":146},{"$f":"VLOOKUP(DropDownList!$B$47,CntyQryCensus!$A$206:$HH$248,Q$1)","v":163},{"$f":"VLOOKUP(DropDownList!$B$47,CntyQryCensus!$A$206:$HH$248,R$1)","v":84},{"$f":"VLOOKUP(DropDownList!$B$47,CntyQryCensus!$A$206:$HH$248,S$1)","v":45},{"$f":"VLOOKUP(DropDownList!$B$47,CntyQryCensus!$A$206:$HH$248,T$1)","v":35},{"$f":"VLOOKUP(DropDownList!$B$47,CntyQryCensus!$A$206:$HH$248,U$1)","v":32},{"$f":"VLOOKUP(DropDownList!$B$47,CntyQryCensus!$A$206:$HH$248,V$1)","v":63239},{"$f":"VLOOKUP(DropDownList!$B$47,CntyQryCensus!$A$206:$HH$248,W$1)","v":70319700},{"$f":"VLOOKUP(DropDownList!$B$47,CntyQryCensus!$A$206:$HH$248,X$1)","v":933},{"$f":"VLOOKUP(DropDownList!$B$47,CntyQryCensus!$A$206:$HH$248,Y$1)","v":15},{"$f":"VLOOKUP(DropDownList!$B$47,CntyQryCensus!$A$206:$HH$248,Z$1)","v":3},{"$f":"VLOOKUP(DropDownList!$B$47,CntyQryCensus!$A$206:$HH$248,AA$1)","v":0},{"$f":"VLOOKUP(DropDownList!$B$47,CntyQryCensus!$A$206:$HH$248,AB$1)","v":0},{"$f":"VLOOKUP(DropDownList!$B$47,CntyQryCensus!$A$206:$HH$248,AC$1)","v":3},{"$f":"VLOOKUP(DropDownList!$B$47,CntyQryCensus!$A$206:$HH$248,AD$1)","v":4},{"$f":"VLOOKUP(DropDownList!$B$47,CntyQryCensus!$A$206:$HH$248,AE$1)","v":0},{"$f":"VLOOKUP(DropDownList!$B$47,CntyQryCensus!$A$206:$HH$248,AF$1)","v":0},{"$f":"VLOOKUP(DropDownList!$B$47,CntyQryCensus!$A$206:$HH$248,AG$1)","v":0},{"$f":"VLOOKUP(DropDownList!$B$47,CntyQryCensus!$A$206:$HH$248,AH$1)","v":0},{"$f":"VLOOKUP(DropDownList!$B$47,CntyQryCensus!$A$206:$HH$248,AI$1)","v":3},{"$f":"VLOOKUP(DropDownList!$B$47,CntyQryCensus!$A$206:$HH$248,AJ$1)","v":2},{"$f":"VLOOKUP(DropDownList!$B$47,CntyQryCensus!$A$206:$HH$248,AK$1)","v":0},{"$f":"VLOOKUP(DropDownList!$B$47,CntyQryCensus!$A$206:$HH$248,AL$1)","v":0},{"$f":"VLOOKUP(DropDownList!$B$47,CntyQryCensus!$A$206:$HH$248,AM$1)","v":0},{"$f":"VLOOKUP(DropDownList!$B$47,CntyQryCensus!$A$206:$HH$248,AN$1)","v":0},{"$f":"VLOOKUP(DropDownList!$B$47,CntyQryCensus!$A$206:$HH$248,AO$1)","v":0},{"$f":"VLOOKUP(DropDownList!$B$47,CntyQryCensus!$A$206:$HH$248,AP$1)","v":105},{"$f":"VLOOKUP(DropDownList!$B$47,CntyQryCensus!$A$206:$HH$248,AQ$1)","v":0},{"$f":"VLOOKUP(DropDownList!$B$47,CntyQryCensus!$A$206:$HH$248,AR$1)","v":0},{"$f":"VLOOKUP(DropDownList!$B$47,CntyQryCensus!$A$206:$HH$248,AS$1)","v":0},{"$f":"VLOOKUP(DropDownList!$B$47,CntyQryCensus!$A$206:$HH$248,AT$1)","v":0},{"$f":"VLOOKUP(DropDownList!$B$47,CntyQryCensus!$A$206:$HH$248,AU$1)","v":2},{"$f":"VLOOKUP(DropDownList!$B$47,CntyQryCensus!$A$206:$HH$248,AV$1)","v":0},{"$f":"VLOOKUP(DropDownList!$B$47,CntyQryCensus!$A$206:$HH$248,AW$1)","v":9},{"$f":"VLOOKUP(DropDownList!$B$47,CntyQryCensus!$A$206:$HH$248,AX$1)","v":10},{"$f":"VLOOKUP(DropDownList!$B$47,CntyQryCensus!$A$206:$HH$248,AY$1)","v":6},{"$f":"VLOOKUP(DropDownList!$B$47,CntyQryCensus!$A$206:$HH$248,AZ$1)","v":9},{"$f":"VLOOKUP(DropDownList!$B$47,CntyQryCensus!$A$206:$HH$248,BA$1)","v":26},{"$f":"VLOOKUP(DropDownList!$B$47,CntyQryCensus!$A$206:$HH$248,BB$1)","v":22},{"$f":"VLOOKUP(DropDownList!$B$47,CntyQryCensus!$A$206:$HH$248,BC$1)","v":5},{"$f":"VLOOKUP(DropDownList!$B$47,CntyQryCensus!$A$206:$HH$248,BD$1)","v":7},{"$f":"VLOOKUP(DropDownList!$B$47,CntyQryCensus!$A$206:$HH$248,BE$1)","v":7},{"$f":"VLOOKUP(DropDownList!$B$47,CntyQryCensus!$A$206:$HH$248,BF$1)","v":2},{"$f":"VLOOKUP(DropDownList!$B$47,CntyQryCensus!$A$206:$HH$248,BG$1)","v":158},{"$f":"VLOOKUP(DropDownList!$B$47,CntyQryCensus!$A$206:$HH$248,BH$1)","v":5},{"$f":"VLOOKUP(DropDownList!$B$47,CntyQryCensus!$A$206:$HH$248,BI$1)","v":3},{"$f":"VLOOKUP(DropDownList!$B$47,CntyQryCensus!$A$206:$HH$248,BJ$1)","v":5},{"$f":"VLOOKUP(DropDownList!$B$47,CntyQryCensus!$A$206:$HH$248,BK$1)","v":8},{"$f":"VLOOKUP(DropDownList!$B$47,CntyQryCensus!$A$206:$HH$248,BL$1)","v":2},{"$f":"VLOOKUP(DropDownList!$B$47,CntyQryCensus!$A$206:$HH$248,BM$1)","v":3},{"$f":"VLOOKUP(DropDownList!$B$47,CntyQryCensus!$A$206:$HH$248,BN$1)","v":6},{"$f":"VLOOKUP(DropDownList!$B$47,CntyQryCensus!$A$206:$HH$248,BO$1)","v":4},{"$f":"VLOOKUP(DropDownList!$B$47,CntyQryCensus!$A$206:$HH$248,BP$1)","v":9},{"$f":"VLOOKUP(DropDownList!$B$47,CntyQryCensus!$A$206:$HH$248,BQ$1)","v":31},{"$f":"VLOOKUP(DropDownList!$B$47,CntyQryCensus!$A$206:$HH$248,BR$1)","v":21},{"$f":"VLOOKUP(DropDownList!$B$47,CntyQryCensus!$A$206:$HH$248,BS$1)","v":40},{"$f":"VLOOKUP(DropDownList!$B$47,CntyQryCensus!$A$206:$HH$248,BT$1)","v":12},{"$f":"VLOOKUP(DropDownList!$B$47,CntyQryCensus!$A$206:$HH$248,BU$1)","v":0},{"$f":"VLOOKUP(DropDownList!$B$47,CntyQryCensus!$A$206:$HH$248,BV$1)","v":6},{"$f":"VLOOKUP(DropDownList!$B$47,CntyQryCensus!$A$206:$HH$248,BW$1)","v":3},{"$f":"VLOOKUP(DropDownList!$B$47,CntyQryCensus!$A$206:$HH$248,BX$1)","v":203},{"$f":"VLOOKUP(DropDownList!$B$47,CntyQryCensus!$A$206:$HH$248,BY$1)","v":5},{"$f":"VLOOKUP(DropDownList!$B$47,CntyQryCensus!$A$206:$HH$248,BZ$1)","v":0},{"$f":"VLOOKUP(DropDownList!$B$47,CntyQryCensus!$A$206:$HH$248,CA$1)","v":3},{"$f":"VLOOKUP(DropDownList!$B$47,CntyQryCensus!$A$206:$HH$248,CB$1)","v":5},{"$f":"VLOOKUP(DropDownList!$B$47,CntyQryCensus!$A$206:$HH$248,CC$1)","v":8},{"$f":"VLOOKUP(DropDownList!$B$47,CntyQryCensus!$A$206:$HH$248,CD$1)","v":4},{"$f":"VLOOKUP(DropDownList!$B$47,CntyQryCensus!$A$206:$HH$248,CE$1)","v":8},{"$f":"VLOOKUP(DropDownList!$B$47,CntyQryCensus!$A$206:$HH$248,CF$1)","v":8},{"$f":"VLOOKUP(DropDownList!$B$47,CntyQryCensus!$A$206:$HH$248,CG$1)","v":7},{"$f":"VLOOKUP(DropDownList!$B$47,CntyQryCensus!$A$206:$HH$248,CH$1)","v":25},{"$f":"VLOOKUP(DropDownList!$B$47,CntyQryCensus!$A$206:$HH$248,CI$1)","v":41},{"$f":"VLOOKUP(DropDownList!$B$47,CntyQryCensus!$A$206:$HH$248,CJ$1)","v":33},{"$f":"VLOOKUP(DropDownList!$B$47,CntyQryCensus!$A$206:$HH$248,CK$1)","v":24},{"$f":"VLOOKUP(DropDownList!$B$47,CntyQryCensus!$A$206:$HH$248,CL$1)","v":16},{"$f":"VLOOKUP(DropDownList!$B$47,CntyQryCensus!$A$206:$HH$248,CM$1)","v":9},{"$f":"VLOOKUP(DropDownList!$B$47,CntyQryCensus!$A$206:$HH$248,CN$1)","v":7},{"$f":"VLOOKUP(DropDownList!$B$47,CntyQryCensus!$A$206:$HH$248,CO$1)","v":156},{"$f":"VLOOKUP(DropDownList!$B$47,CntyQryCensus!$A$206:$HH$248,CP$1)","v":5},{"$f":"VLOOKUP(DropDownList!$B$47,CntyQryCensus!$A$206:$HH$248,CQ$1)","v":0},{"$f":"VLOOKUP(DropDownList!$B$47,CntyQryCensus!$A$206:$HH$248,CR$1)","v":0},{"$f":"VLOOKUP(DropDownList!$B$47,CntyQryCensus!$A$206:$HH$248,CS$1)","v":5},{"$f":"VLOOKUP(DropDownList!$B$47,CntyQryCensus!$A$206:$HH$248,CT$1)","v":7},{"$f":"VLOOKUP(DropDownList!$B$47,CntyQryCensus!$A$206:$HH$248,CU$1)","v":8},{"$f":"VLOOKUP(DropDownList!$B$47,CntyQryCensus!$A$206:$HH$248,CV$1)","v":9},{"$f":"VLOOKUP(DropDownList!$B$47,CntyQryCensus!$A$206:$HH$248,CW$1)","v":11},{"$f":"VLOOKUP(DropDownList!$B$47,CntyQryCensus!$A$206:$HH$248,CX$1)","v":9},{"$f":"VLOOKUP(DropDownList!$B$47,CntyQryCensus!$A$206:$HH$248,CY$1)","v":16},{"$f":"VLOOKUP(DropDownList!$B$47,CntyQryCensus!$A$206:$HH$248,CZ$1)","v":23},{"$f":"VLOOKUP(DropDownList!$B$47,CntyQryCensus!$A$206:$HH$248,DA$1)","v":24},{"$f":"VLOOKUP(DropDownList!$B$47,CntyQryCensus!$A$206:$HH$248,DB$1)","v":16},{"$f":"VLOOKUP(DropDownList!$B$47,CntyQryCensus!$A$206:$HH$248,DC$1)","v":8},{"$f":"VLOOKUP(DropDownList!$B$47,CntyQryCensus!$A$206:$HH$248,DD$1)","v":5},{"$f":"VLOOKUP(DropDownList!$B$47,CntyQryCensus!$A$206:$HH$248,DE$1)","v":10},{"$f":"VLOOKUP(DropDownList!$B$47,CntyQryCensus!$A$206:$HH$248,DF$1)","v":186},{"$f":"VLOOKUP(DropDownList!$B$47,CntyQryCensus!$A$206:$HH$248,DG$1)","v":13},{"$f":"VLOOKUP(DropDownList!$B$47,CntyQryCensus!$A$206:$HH$248,DH$1)","v":5},{"$f":"VLOOKUP(DropDownList!$B$47,CntyQryCensus!$A$206:$HH$248,DI$1)","v":6},{"$f":"VLOOKUP(DropDownList!$B$47,CntyQryCensus!$A$206:$HH$248,DJ$1)","v":7},{"$f":"VLOOKUP(DropDownList!$B$47,CntyQryCensus!$A$206:$HH$248,DK$1)","v":16},{"$f":"VLOOKUP(DropDownList!$B$47,CntyQryCensus!$A$206:$HH$248,DL$1)","v":11},{"$f":"VLOOKUP(DropDownList!$B$47,CntyQryCensus!$A$206:$HH$248,DM$1)","v":10},{"$f":"VLOOKUP(DropDownList!$B$47,CntyQryCensus!$A$206:$HH$248,DN$1)","v":4},{"$f":"VLOOKUP(DropDownList!$B$47,CntyQryCensus!$A$206:$HH$248,DO$1)","v":7},{"$f":"VLOOKUP(DropDownList!$B$47,CntyQryCensus!$A$206:$HH$248,DP$1)","v":22},{"$f":"VLOOKUP(DropDownList!$B$47,CntyQryCensus!$A$206:$HH$248,DQ$1)","v":16},{"$f":"VLOOKUP(DropDownList!$B$47,CntyQryCensus!$A$206:$HH$248,DR$1)","v":33},{"$f":"VLOOKUP(DropDownList!$B$47,CntyQryCensus!$A$206:$HH$248,DS$1)","v":16},{"$f":"VLOOKUP(DropDownList!$B$47,CntyQryCensus!$A$206:$HH$248,DT$1)","v":6},{"$f":"VLOOKUP(DropDownList!$B$47,CntyQryCensus!$A$206:$HH$248,DU$1)","v":6},{"$f":"VLOOKUP(DropDownList!$B$47,CntyQryCensus!$A$206:$HH$248,DV$1)","v":8},{"$f":"VLOOKUP(DropDownList!$B$47,CntyQryCensus!$A$206:$HH$248,DW$1)","v":110},{"$f":"VLOOKUP(DropDownList!$B$47,CntyQryCensus!$A$206:$HH$248,DX$1)","v":5},{"$f":"VLOOKUP(DropDownList!$B$47,CntyQryCensus!$A$206:$HH$248,DY$1)","v":4},{"$f":"VLOOKUP(DropDownList!$B$47,CntyQryCensus!$A$206:$HH$248,DZ$1)","v":0},{"$f":"VLOOKUP(DropDownList!$B$47,CntyQryCensus!$A$206:$HH$248,EA$1)","v":10},{"$f":"VLOOKUP(DropDownList!$B$47,CntyQryCensus!$A$206:$HH$248,EB$1)","v":3},{"$f":"VLOOKUP(DropDownList!$B$47,CntyQryCensus!$A$206:$HH$248,EC$1)","v":0},{"$f":"VLOOKUP(DropDownList!$B$47,CntyQryCensus!$A$206:$HH$248,ED$1)","v":6},{"$f":"VLOOKUP(DropDownList!$B$47,CntyQryCensus!$A$206:$HH$248,EE$1)","v":22},{"$f":"VLOOKUP(DropDownList!$B$47,CntyQryCensus!$A$206:$HH$248,EF$1)","v":2},{"$f":"VLOOKUP(DropDownList!$B$47,CntyQryCensus!$A$206:$HH$248,EG$1)","v":7},{"$f":"VLOOKUP(DropDownList!$B$47,CntyQryCensus!$A$206:$HH$248,EH$1)","v":17},{"$f":"VLOOKUP(DropDownList!$B$47,CntyQryCensus!$A$206:$HH$248,EI$1)","v":11},{"$f":"VLOOKUP(DropDownList!$B$47,CntyQryCensus!$A$206:$HH$248,EJ$1)","v":11},{"$f":"VLOOKUP(DropDownList!$B$47,CntyQryCensus!$A$206:$HH$248,EK$1)","v":8},{"$f":"VLOOKUP(DropDownList!$B$47,CntyQryCensus!$A$206:$HH$248,EL$1)","v":2},{"$f":"VLOOKUP(DropDownList!$B$47,CntyQryCensus!$A$206:$HH$248,EM$1)","v":2},{"$f":"VLOOKUP(DropDownList!$B$47,CntyQryCensus!$A$206:$HH$248,EN$1)","v":63239},{"$f":"VLOOKUP(DropDownList!$B$47,CntyQryCensus!$A$206:$HH$248,EO$1)","v":25938},{"$f":"VLOOKUP(DropDownList!$B$47,CntyQryCensus!$A$206:$HH$248,EP$1)","v":72031},{"$f":"VLOOKUP(DropDownList!$B$47,CntyQryCensus!$A$206:$HH$248,EQ$1)","v":60833},{"$f":"VLOOKUP(DropDownList!$B$47,CntyQryCensus!$A$206:$HH$248,ER$1)","v":67159},{"$f":"VLOOKUP(DropDownList!$B$47,CntyQryCensus!$A$206:$HH$248,ES$1)","v":67000},{"$f":"VLOOKUP(DropDownList!$B$47,CntyQryCensus!$A$206:$HH$248,ET$1)","v":55000},{"$f":"VLOOKUP(DropDownList!$B$47,CntyQryCensus!$A$206:$HH$248,EU$1)","v":52500},{"$f":"VLOOKUP(DropDownList!$B$47,CntyQryCensus!$A$206:$HH$248,EV$1)","v":933},{"$f":"VLOOKUP(DropDownList!$B$47,CntyQryCensus!$A$206:$HH$248,EW$1)","v":695},{"$f":"VLOOKUP(DropDownList!$B$47,CntyQryCensus!$A$206:$HH$248,EX$1)","v":238},{"$f":"VLOOKUP(DropDownList!$B$47,CntyQryCensus!$A$206:$HH$248,EY$1)","v":659},{"$f":"VLOOKUP(DropDownList!$B$47,CntyQryCensus!$A$206:$HH$248,EZ$1)","v":274},{"$f":"VLOOKUP(DropDownList!$B$47,CntyQryCensus!$A$206:$HH$248,FA$1)","v":169},{"$f":"VLOOKUP(DropDownList!$B$47,CntyQryCensus!$A$206:$HH$248,FB$1)","v":764},{"$f":"VLOOKUP(DropDownList!$B$47,CntyQryCensus!$A$206:$HH$248,FC$1)","v":586},{"$f":"VLOOKUP(DropDownList!$B$47,CntyQryCensus!$A$206:$HH$248,FD$1)","v":347},{"$f":"VLOOKUP(DropDownList!$B$47,CntyQryCensus!$A$206:$HH$248,FE$1)","v":327},{"$f":"VLOOKUP(DropDownList!$B$47,CntyQryCensus!$A$206:$HH$248,FF$1)","v":606},{"$f":"VLOOKUP(DropDownList!$B$47,CntyQryCensus!$A$206:$HH$248,FG$1)","v":8},{"$f":"VLOOKUP(DropDownList!$B$47,CntyQryCensus!$A$206:$HH$248,FH$1)","v":925},{"$f":"VLOOKUP(DropDownList!$B$47,CntyQryCensus!$A$206:$HH$248,FI$1)","v":4},{"$f":"VLOOKUP(DropDownList!$B$47,CntyQryCensus!$A$206:$HH$248,FJ$1)","v":929},{"$f":"VLOOKUP(DropDownList!$B$47,CntyQryCensus!$A$206:$HH$248,FK$1)","v":246},{"$f":"VLOOKUP(DropDownList!$B$47,CntyQryCensus!$A$206:$HH$248,FL$1)","v":687},{"$f":"VLOOKUP(DropDownList!$B$47,CntyQryCensus!$A$206:$HH$248,FM$1)","v":120},{"$f":"VLOOKUP(DropDownList!$B$47,CntyQryCensus!$A$206:$HH$248,FN$1)","v":813},{"$f":"VLOOKUP(DropDownList!$B$47,CntyQryCensus!$A$206:$HH$248,FO$1)","v":46919500},{"$f":"VLOOKUP(DropDownList!$B$47,CntyQryCensus!$A$206:$HH$248,FP$1)","v":40081600},{"$f":"VLOOKUP(DropDownList!$B$47,CntyQryCensus!$A$206:$HH$248,FQ$1)","v":6837900},{"$f":"VLOOKUP(DropDownList!$B$47,CntyQryCensus!$A$206:$HH$248,FR$1)","v":9066700},{"$f":"VLOOKUP(DropDownList!$B$47,CntyQryCensus!$A$206:$HH$248,FS$1)","v":4370300},{"$f":"VLOOKUP(DropDownList!$B$47,CntyQryCensus!$A$206:$HH$248,FT$1)","v":48700},{"$f":"VLOOKUP(DropDownList!$B$47,CntyQryCensus!$A$206:$HH$248,FU$1)","v":5900},{"$f":"VLOOKUP(DropDownList!$B$47,CntyQryCensus!$A$206:$HH$248,FV$1)","v":8358900},{"$f":"VLOOKUP(DropDownList!$B$47,CntyQryCensus!$A$206:$HH$248,FW$1)","v":709},{"$f":"VLOOKUP(DropDownList!$B$47,CntyQryCensus!$A$206:$HH$248,FX$1)","v":7},{"$f":"VLOOKUP(DropDownList!$B$47,CntyQryCensus!$A$206:$HH$248,FY$1)","v":12},{"$f":"VLOOKUP(DropDownList!$B$47,CntyQryCensus!$A$206:$HH$248,FZ$1)","v":9},{"$f":"VLOOKUP(DropDownList!$B$47,CntyQryCensus!$A$206:$HH$248,GA$1)","v":17},{"$f":"VLOOKUP(DropDownList!$B$47,CntyQryCensus!$A$206:$HH$248,GB$1)","v":22},{"$f":"VLOOKUP(DropDownList!$B$47,CntyQryCensus!$A$206:$HH$248,GC$1)","v":22},{"$f":"VLOOKUP(DropDownList!$B$47,CntyQryCensus!$A$206:$HH$248,GD$1)","v":31},{"$f":"VLOOKUP(DropDownList!$B$47,CntyQryCensus!$A$206:$HH$248,GE$1)","v":42},{"$f":"VLOOKUP(DropDownList!$B$47,CntyQryCensus!$A$206:$HH$248,GF$1)","v":30},{"$f":"VLOOKUP(DropDownList!$B$47,CntyQryCensus!$A$206:$HH$248,GG$1)","v":96},{"$f":"VLOOKUP(DropDownList!$B$47,CntyQryCensus!$A$206:$HH$248,GH$1)","v":115},{"$f":"VLOOKUP(DropDownList!$B$47,CntyQryCensus!$A$206:$HH$248,GI$1)","v":148},{"$f":"VLOOKUP(DropDownList!$B$47,CntyQryCensus!$A$206:$HH$248,GJ$1)","v":70},{"$f":"VLOOKUP(DropDownList!$B$47,CntyQryCensus!$A$206:$HH$248,GK$1)","v":35},{"$f":"VLOOKUP(DropDownList!$B$47,CntyQryCensus!$A$206:$HH$248,GL$1)","v":29},{"$f":"VLOOKUP(DropDownList!$B$47,CntyQryCensus!$A$206:$HH$248,GM$1)","v":24},{"$f":"VLOOKUP(DropDownList!$B$47,CntyQryCensus!$A$206:$HH$248,GN$1)","v":69271},{"$f":"VLOOKUP(DropDownList!$B$47,CntyQryCensus!$A$206:$HH$248,GO$1)","v":56337300},{"$f":"VLOOKUP(DropDownList!$B$47,CntyQryCensus!$A$206:$HH$248,GP$1)","v":224},{"$f":"VLOOKUP(DropDownList!$B$47,CntyQryCensus!$A$206:$HH$248,GQ$1)","v":29},{"$f":"VLOOKUP(DropDownList!$B$47,CntyQryCensus!$A$206:$HH$248,GR$1)","v":3},{"$f":"VLOOKUP(DropDownList!$B$47,CntyQryCensus!$A$206:$HH$248,GS$1)","v":5},{"$f":"VLOOKUP(DropDownList!$B$47,CntyQryCensus!$A$206:$HH$248,GT$1)","v":24},{"$f":"VLOOKUP(DropDownList!$B$47,CntyQryCensus!$A$206:$HH$248,GU$1)","v":20},{"$f":"VLOOKUP(DropDownList!$B$47,CntyQryCensus!$A$206:$HH$248,GV$1)","v":4},{"$f":"VLOOKUP(DropDownList!$B$47,CntyQryCensus!$A$206:$HH$248,GW$1)","v":14},{"$f":"VLOOKUP(DropDownList!$B$47,CntyQryCensus!$A$206:$HH$248,GX$1)","v":17},{"$f":"VLOOKUP(DropDownList!$B$47,CntyQryCensus!$A$206:$HH$248,GY$1)","v":12},{"$f":"VLOOKUP(DropDownList!$B$47,CntyQryCensus!$A$206:$HH$248,GZ$1)","v":16},{"$f":"VLOOKUP(DropDownList!$B$47,CntyQryCensus!$A$206:$HH$248,HA$1)","v":31},{"$f":"VLOOKUP(DropDownList!$B$47,CntyQryCensus!$A$206:$HH$248,HB$1)","v":13},{"$f":"VLOOKUP(DropDownList!$B$47,CntyQryCensus!$A$206:$HH$248,HC$1)","v":12},{"$f":"VLOOKUP(DropDownList!$B$47,CntyQryCensus!$A$206:$HH$248,HD$1)","v":10},{"$f":"VLOOKUP(DropDownList!$B$47,CntyQryCensus!$A$206:$HH$248,HE$1)","v":6},{"$f":"VLOOKUP(DropDownList!$B$47,CntyQryCensus!$A$206:$HH$248,HF$1)","v":8},{"$f":"VLOOKUP(DropDownList!$B$47,CntyQryCensus!$A$206:$HH$248,HG$1)","v":44000},{"$f":"VLOOKUP(DropDownList!$B$47,CntyQryCensus!$A$206:$HH$248,HH$1)","v":32174}]
[]
[]
["Census 2000 SummaryFile3 Sample Data  -  SF3TownQry2bPovertyChar"]
["NAME","LOGRECNO","COUNTY","TotalPop","P52Households1","P82PerCapitaInc","P87PopForPovStatus","P87PopWIncBelowPovStatus","P87PopUnder5yrBelowPoverty","P87Pop5yrBelowPoverty","P87Pop5to11yrBelowPoverty","P87Pop12to17yrBelowPoverty","P87Pop18to64yrBelowPoverty","P87Pop65to74yrBelowPoverty","P87PopOver75yrBelowPoverty","P87PopWIncAbovePovStatus","P87PopUnder5yrAbovePoverty","P87Pop5yrAbovePoverty","P87Pop5to11yrAbovePoverty","P87Pop12to17yrAbovePoverty","P87Pop18to64yrAbovePoverty","P87Pop65to74yrAbovePoverty","P87PopOver75yrAbovePoverty","P90Families","P90FamWIncBelowPov","P90MarCupFamWIncBelowPov","P90MCFamWRltdChld<18WIncBelowPov","P90MCFamWRltdChld<5WIncBelowPov","P90MaleHhlrWIncBelowPov","P90MaleHhlrWRltdChld<18yrWIncBelowPov","P90MaleHhlrWRltdChld<5yrWIncBelowPov","P90FemaleHhlrWIncBelowPov","P90FemaleHhlrWRltdChld<18yWIncBelowPov","P90FemaleHhlrWRltdChld<5yWIncBelowPov","P90FamWIncAbovePov","P90MarCupFamWIncAbovePov","P90MCFamWRltdChld<18WIncAbovePov","P90MCFamWRltdChld<5WIncAbovePov","P90MaleHhlrWIncAbovePov","P90MaleHhlrWRltdChld<18yrWIncAbovePov","P90MaleHhlrWRltdChld<5yrWIncAbovePov","P90FemaleHhlrWIncAbovePov","P90FemaleHhlrWRltdChld<18yWIncAbovePov","P90FemaleHhlrWRltdChld<5yWIncAbovePov","P92Households","P92HHwIncBelowPov","P92FamHHwIncBelowPov","P92MCFamHHwIncBelowPov","P92MaleFamHHwIncBelowPov","P92FemaleFamHHwIncBelowPov","P92NonFamHHwIncBelowPov","P92NonFamMaleHHwIncBelowPov","P92NonFamFemaleHHwIncBelowPov","P92HHwIncAbovePov","P92FamHHwIncAbovePov","P92MCFamHHwIncAbovePov","P92MaleFamHHwIncAbovePov","P92FemaleFamHHwIncAbovePov","P92NonFamHHwIncAbovePov","P92NonFamMaleHHwIncAbovePov","P92NonFamFemaleHHwIncAbovePov"]
[{"$f":"VLOOKUP(DropDownList!$B$47,CntyQryCensus!$A$256:$BI$298,A$1)","v":"Grantham"},{"$f":"VLOOKUP(DropDownList!$B$47,CntyQryCensus!$A$256:$BI$298,B$1)","v":"0004212"},{"$f":"VLOOKUP(DropDownList!$B$47,CntyQryCensus!$A$256:$BI$298,C$1)","v":"31220"},{"$f":"VLOOKUP(DropDownList!$B$47,CntyQryCensus!$A$256:$BI$298,D$1)","v":2167},{"$f":"VLOOKUP(DropDownList!$B$47,CntyQryCensus!$A$256:$BI$298,E$1)","v":933},{"$f":"VLOOKUP(DropDownList!$B$47,CntyQryCensus!$A$256:$BI$298,F$1)","v":32174},{"$f":"VLOOKUP(DropDownList!$B$47,CntyQryCensus!$A$256:$BI$298,G$1)","v":2173},{"$f":"VLOOKUP(DropDownList!$B$47,CntyQryCensus!$A$256:$BI$298,H$1)","v":54},{"$f":"VLOOKUP(DropDownList!$B$47,CntyQryCensus!$A$256:$BI$298,I$1)","v":8},{"$f":"VLOOKUP(DropDownList!$B$47,CntyQryCensus!$A$256:$BI$298,J$1)","v":0},{"$f":"VLOOKUP(DropDownList!$B$47,CntyQryCensus!$A$256:$BI$298,K$1)","v":0},{"$f":"VLOOKUP(DropDownList!$B$47,CntyQryCensus!$A$256:$BI$298,L$1)","v":0},{"$f":"VLOOKUP(DropDownList!$B$47,CntyQryCensus!$A$256:$BI$298,M$1)","v":28},{"$f":"VLOOKUP(DropDownList!$B$47,CntyQryCensus!$A$256:$BI$298,N$1)","v":13},{"$f":"VLOOKUP(DropDownList!$B$47,CntyQryCensus!$A$256:$BI$298,O$1)","v":5},{"$f":"VLOOKUP(DropDownList!$B$47,CntyQryCensus!$A$256:$BI$298,P$1)","v":2119},{"$f":"VLOOKUP(DropDownList!$B$47,CntyQryCensus!$A$256:$BI$298,Q$1)","v":101},{"$f":"VLOOKUP(DropDownList!$B$47,CntyQryCensus!$A$256:$BI$298,R$1)","v":30},{"$f":"VLOOKUP(DropDownList!$B$47,CntyQryCensus!$A$256:$BI$298,S$1)","v":164},{"$f":"VLOOKUP(DropDownList!$B$47,CntyQryCensus!$A$256:$BI$298,T$1)","v":132},{"$f":"VLOOKUP(DropDownList!$B$47,CntyQryCensus!$A$256:$BI$298,U$1)","v":1232},{"$f":"VLOOKUP(DropDownList!$B$47,CntyQryCensus!$A$256:$BI$298,V$1)","v":313},{"$f":"VLOOKUP(DropDownList!$B$47,CntyQryCensus!$A$256:$BI$298,W$1)","v":147},{"$f":"VLOOKUP(DropDownList!$B$47,CntyQryCensus!$A$256:$BI$298,X$1)","v":709},{"$f":"VLOOKUP(DropDownList!$B$47,CntyQryCensus!$A$256:$BI$298,Y$1)","v":10},{"$f":"VLOOKUP(DropDownList!$B$47,CntyQryCensus!$A$256:$BI$298,Z$1)","v":3},{"$f":"VLOOKUP(DropDownList!$B$47,CntyQryCensus!$A$256:$BI$298,AA$1)","v":3},{"$f":"VLOOKUP(DropDownList!$B$47,CntyQryCensus!$A$256:$BI$298,AB$1)","v":3},{"$f":"VLOOKUP(DropDownList!$B$47,CntyQryCensus!$A$256:$BI$298,AC$1)","v":2},{"$f":"VLOOKUP(DropDownList!$B$47,CntyQryCensus!$A$256:$BI$298,AD$1)","v":0},{"$f":"VLOOKUP(DropDownList!$B$47,CntyQryCensus!$A$256:$BI$298,AE$1)","v":0},{"$f":"VLOOKUP(DropDownList!$B$47,CntyQryCensus!$A$256:$BI$298,AF$1)","v":5},{"$f":"VLOOKUP(DropDownList!$B$47,CntyQryCensus!$A$256:$BI$298,AG$1)","v":5},{"$f":"VLOOKUP(DropDownList!$B$47,CntyQryCensus!$A$256:$BI$298,AH$1)","v":5},{"$f":"VLOOKUP(DropDownList!$B$47,CntyQryCensus!$A$256:$BI$298,AI$1)","v":699},{"$f":"VLOOKUP(DropDownList!$B$47,CntyQryCensus!$A$256:$BI$298,AJ$1)","v":653},{"$f":"VLOOKUP(DropDownList!$B$47,CntyQryCensus!$A$256:$BI$298,AK$1)","v":204},{"$f":"VLOOKUP(DropDownList!$B$47,CntyQryCensus!$A$256:$BI$298,AL$1)","v":42},{"$f":"VLOOKUP(DropDownList!$B$47,CntyQryCensus!$A$256:$BI$298,AM$1)","v":15},{"$f":"VLOOKUP(DropDownList!$B$47,CntyQryCensus!$A$256:$BI$298,AN$1)","v":5},{"$f":"VLOOKUP(DropDownList!$B$47,CntyQryCensus!$A$256:$BI$298,AO$1)","v":0},{"$f":"VLOOKUP(DropDownList!$B$47,CntyQryCensus!$A$256:$BI$298,AP$1)","v":31},{"$f":"VLOOKUP(DropDownList!$B$47,CntyQryCensus!$A$256:$BI$298,AQ$1)","v":21},{"$f":"VLOOKUP(DropDownList!$B$47,CntyQryCensus!$A$256:$BI$298,AR$1)","v":0},{"$f":"VLOOKUP(DropDownList!$B$47,CntyQryCensus!$A$256:$BI$298,AS$1)","v":933},{"$f":"VLOOKUP(DropDownList!$B$47,CntyQryCensus!$A$256:$BI$298,AT$1)","v":39},{"$f":"VLOOKUP(DropDownList!$B$47,CntyQryCensus!$A$256:$BI$298,AU$1)","v":10},{"$f":"VLOOKUP(DropDownList!$B$47,CntyQryCensus!$A$256:$BI$298,AV$1)","v":3},{"$f":"VLOOKUP(DropDownList!$B$47,CntyQryCensus!$A$256:$BI$298,AW$1)","v":2},{"$f":"VLOOKUP(DropDownList!$B$47,CntyQryCensus!$A$256:$BI$298,AX$1)","v":5},{"$f":"VLOOKUP(DropDownList!$B$47,CntyQryCensus!$A$256:$BI$298,AY$1)","v":29},{"$f":"VLOOKUP(DropDownList!$B$47,CntyQryCensus!$A$256:$BI$298,AZ$1)","v":5},{"$f":"VLOOKUP(DropDownList!$B$47,CntyQryCensus!$A$256:$BI$298,BA$1)","v":24},{"$f":"VLOOKUP(DropDownList!$B$47,CntyQryCensus!$A$256:$BI$298,BB$1)","v":894},{"$f":"VLOOKUP(DropDownList!$B$47,CntyQryCensus!$A$256:$BI$298,BC$1)","v":699},{"$f":"VLOOKUP(DropDownList!$B$47,CntyQryCensus!$A$256:$BI$298,BD$1)","v":653},{"$f":"VLOOKUP(DropDownList!$B$47,CntyQryCensus!$A$256:$BI$298,BE$1)","v":15},{"$f":"VLOOKUP(DropDownList!$B$47,CntyQryCensus!$A$256:$BI$298,BF$1)","v":31},{"$f":"VLOOKUP(DropDownList!$B$47,CntyQryCensus!$A$256:$BI$298,BG$1)","v":195},{"$f":"VLOOKUP(DropDownList!$B$47,CntyQryCensus!$A$256:$BI$298,BH$1)","v":93},{"$f":"VLOOKUP(DropDownList!$B$47,CntyQryCensus!$A$256:$BI$298,BI$1)","v":102}]
[null,null,null,null,null,null,null,null,null,null,null,null,null,null,null,null,null,null,{"$f":"SUM(R60:T60)","v":326}]
[]
["Census 2000 SummaryFile3 Sample Data  -  SF3TownQry7HousingA"]
["NAME","LOGRECNO","COUNTY","TotalPop","H1HousingUnitsTotal","H2SampleHU","H2SampleOccHU","H2SampleVacHU","H3HU100pctCount","H5HUTotal","H5HUUrban","H5HUUrbanInUrbanAreas","H5HUUrbanInUrbanClusters","H5HURural","H5HURuralFarm","H5HURuralNonFarm","H7HUOcc","H7HUOwnrOcc","H7HURentrOcc","H8HUVacant","H8HUVacantForRent","H8HUVacantForSale","H8HUVacRentedorSold","H8HUVacSeasonal","H8HUVacForMigrantWrkrs","H8HUOtherVacant","H14OccHUa","H14OwnerOccHU","H14OwnOccHuHh15to24","H14OwnOccHuHh25to34","H14OwnOccHuHh35to44","H14OwnOccHuHh45to54","H14OwnOccHuHh55to59","H14OwnOccHuHh60to64","H14OwnOccHuHh65to74","H14OwnOccHuHh75to84","H14OwnOccHuHh85Over","H14RenterOccHU1","H14RntrOccHuHh15to24","H14RntrOccHuHh25to34","H14RntrOccHuHh35to44","H14RntrOccHuHh45to54","H14RntrOccHuHh55to59","H14RntrOccHuHh60to64","H14RntrOccHuHh65to74","H14RntrOccHuHh75to84","H14RntrOccHuHh85Over","H15PopInOccHU","H15PopInOwnOccHU1","H15PopInRentOccHU1","H17OccupHUb","H17OwnOccHU2","H17OwnOccHU1PersonHH","H17OwnOccHU2PersonHH","H17OwnOccHU3PersonHH","H17OwnOccHU4PersonHH","H17OwnOccHU5PersonHH","H17OwnOccHU6PersonHH","H17OwnOccHU7PlusPersonHH","H17RentOccHU2","H17RntOccHU1PersonHH","H17RntOccHU2PersonHH","H17RntOccHU3PersonHH","H17RntOccHU4PersonHH","H17RntOccHU5PersonHH","H17RntOccHU6PersonHH","H17RntOccHU7PlusPersonHH","H18AvgHHSize","H18AvgHHSizeOwnOcc","H18AvgHHSizeRentOcc","H23TotHU","H23HU1Room","H23HU2Room","H23HU3Room","H23HU4Room","H23HU5Room","H23HU6Room","H23HU7Room","H23HU8Room","H23HU9orMoreRoom","H24MedianNumRooms","H25AggregNumRooms","H30TotalHU","H30Det1HU","H30Att1HU","H30Units2","H30Units3or4","H30Units5to9","H30Units10to19","H30Units20to49","H30Units50orMore","H30UnitsMobileHome","H30UnitsBoatRv","H32OccHUcTotal","H32OwnerOccHU3","H32OwnOccHU1Det","H32OwnOccHU1Att","H32OwnOccHU2Unit","H32OwnOccHU3to4Unit","H32OwnOccHU5to9Unit","H32OwnOccHU10to19Unit","H32OwnOccHU20to49Unit","H32OwnOccHU50plusUnit","H32OwnOccHUMobHom","H32OwnOccHUBoatRVOth","H32RentrOccHU3","H32RntrOccHU1Det","H32RntrOccHU1Att","H32RntrOccHU2Unit","H32RntrOccHU3to4Unit","H32RntrOccHU5to9Unit","H32RntrOccHU10to19Unit","H32RntrOccHU20to49Unit","H32RntrOccHU50PlusUnit","H32RntrOccHUMobHom","H32RntrOccHUBoatRVOth","H33TotPopInOccHU","H33PopInOwnOccHU2","H33PopInOOHU1Det","H33PopInOOHU1Att","H33PopInOOHU2unit","H33PopInOOHU3to4Unit","H33PopInOOHU5to9Unit","H33PopInOOHU10to19Unit","H33PopInOOHU20to49Unit","H33PopInOOHU50PlusUnit","H33PopInOOHUMobilHome","H33PopInOOHUOtherUnit","H33PopInRentOccHU2","H33PopInROHU1Det","H33PopInROHU1Att","H33PopInROHU2Unit","H33PopInROHU3to4Unit","H33PopInROHU5to9Unit","H33PopInROHU10to19Unit","H33PopInROHU20to49Unit","H33PopInROHU50PlusUnit","H33PopInROHUMobilHome","H33PopInROHUOtherUnit","H36OccHousingUnitsdTotal","H36OwnerOccHU4","H36OOHUBuilt99to0300","H36OOHUBuilt95to98","H36OOHUBuilt90to94","H36OOHUBuilt80to89","H36OOHUBuilt70to79","H36OOHUBuilt60to69","H36OOHUBuilt50to59","H36OOHUBuilt40to49","H36OOHUBuilt39Earlier","H36RentOccHU4","H36ROHUBuilt99to0300","H36ROHUBuilt95to98","H36ROHUBuilt90to94","H36ROHUBuilt80to89","H36ROHUBuilt70to79","H36ROHUBuilt60to69","H36ROHUBuilt50to59","H36ROHUBuilt40to49","H36ROHUBuilt39Earlier","H40OccupHousUnitse","H40HeatFuelUtilGas","H40HeatFuelBotGas","H40HeatFuelElect","H40HeatFuelOilKero","H40HeatFuelCoal","H40HeatFuelWood","H40HeatFuelSolar","H40HeatFuelOther","H40HeatFuelNone","H41TotalHU","H41HUNoBdrm","H41HU1Bdrm","H41HU2Bdrm","H41HU3Bdrm","H41HU4Bdrm","H41HU5MoreBdrm","H42OccuHousUnitf","H42OwnerOccHU5","H42OOHUNoBdrm","H42OOHU1Bdrm","H42OOHU2Bdrm","H42OOHU3Bdrm","H42OOHU4Bdrm","H42OOHU5PlusBdrm","H42RentOccHU5","H42ROHUNoBdrm","H42ROHU1Bdrm","H42ROHU2Bdrm","H42ROHU3Bdrm","H42ROHU4Bdrm","H42ROHU5PlusBdrm","H48OccupHousUnitsg","H48OwnerOccHU6","H48OOHUwCompltPlumFacil","H48OOHULackCompltPlumFacil","H48RentOccHU6","H48ROHUwCompltPlumFacil","H48ROHULackCompltPlumFacil","H51OccupHousUnitf","H51OwnerOccHU7","H51OOHUwCompleteKitFacil","H51OOHULackCompleteKitFacil","H51RenterOccHU7","H51ROHUwCompleteKitFacil","H51ROHULackCompleteKitFacil"]
[{"$f":"VLOOKUP(DropDownList!$B47,CntyQryCensus!$A$306:$GX$348,A$1)","v":"Grantham"},{"$f":"VLOOKUP(DropDownList!$B47,CntyQryCensus!$A$306:$GX$348,B$1)","v":"0004212"},{"$f":"VLOOKUP(DropDownList!$B47,CntyQryCensus!$A$306:$GX$348,C$1)","v":"31220"},{"$f":"VLOOKUP(DropDownList!$B47,CntyQryCensus!$A$306:$GX$348,D$1)","v":2167},{"$f":"VLOOKUP(DropDownList!$B47,CntyQryCensus!$A$306:$GX$348,E$1)","v":1518},{"$f":"VLOOKUP(DropDownList!$B47,CntyQryCensus!$A$306:$GX$348,F$1)","v":666},{"$f":"VLOOKUP(DropDownList!$B47,CntyQryCensus!$A$306:$GX$348,G$1)","v":418},{"$f":"VLOOKUP(DropDownList!$B47,CntyQryCensus!$A$306:$GX$348,H$1)","v":248},{"$f":"VLOOKUP(DropDownList!$B47,CntyQryCensus!$A$306:$GX$348,I$1)","v":1513},{"$f":"VLOOKUP(DropDownList!$B47,CntyQryCensus!$A$306:$GX$348,J$1)","v":1518},{"$f":"VLOOKUP(DropDownList!$B47,CntyQryCensus!$A$306:$GX$348,K$1)","v":0},{"$f":"VLOOKUP(DropDownList!$B47,CntyQryCensus!$A$306:$GX$348,L$1)","v":0},{"$f":"VLOOKUP(DropDownList!$B47,CntyQryCensus!$A$306:$GX$348,M$1)","v":0},{"$f":"VLOOKUP(DropDownList!$B47,CntyQryCensus!$A$306:$GX$348,N$1)","v":1518},{"$f":"VLOOKUP(DropDownList!$B47,CntyQryCensus!$A$306:$GX$348,O$1)","v":5},{"$f":"VLOOKUP(DropDownList!$B47,CntyQryCensus!$A$306:$GX$348,P$1)","v":1513},{"$f":"VLOOKUP(DropDownList!$B47,CntyQryCensus!$A$306:$GX$348,Q$1)","v":925},{"$f":"VLOOKUP(DropDownList!$B47,CntyQryCensus!$A$306:$GX$348,R$1)","v":816},{"$f":"VLOOKUP(DropDownList!$B47,CntyQryCensus!$A$306:$GX$348,S$1)","v":109},{"$f":"VLOOKUP(DropDownList!$B47,CntyQryCensus!$A$306:$GX$348,T$1)","v":593},{"$f":"VLOOKUP(DropDownList!$B47,CntyQryCensus!$A$306:$GX$348,U$1)","v":2},{"$f":"VLOOKUP(DropDownList!$B47,CntyQryCensus!$A$306:$GX$348,V$1)","v":28},{"$f":"VLOOKUP(DropDownList!$B47,CntyQryCensus!$A$306:$GX$348,W$1)","v":12},{"$f":"VLOOKUP(DropDownList!$B47,CntyQryCensus!$A$306:$GX$348,X$1)","v":548},{"$f":"VLOOKUP(DropDownList!$B47,CntyQryCensus!$A$306:$GX$348,Y$1)","v":0},{"$f":"VLOOKUP(DropDownList!$B47,CntyQryCensus!$A$306:$GX$348,Z$1)","v":3},{"$f":"VLOOKUP(DropDownList!$B47,CntyQryCensus!$A$306:$GX$348,AA$1)","v":925},{"$f":"VLOOKUP(DropDownList!$B47,CntyQryCensus!$A$306:$GX$348,AB$1)","v":816},{"$f":"VLOOKUP(DropDownList!$B47,CntyQryCensus!$A$306:$GX$348,AC$1)","v":5},{"$f":"VLOOKUP(DropDownList!$B47,CntyQryCensus!$A$306:$GX$348,AD$1)","v":80},{"$f":"VLOOKUP(DropDownList!$B47,CntyQryCensus!$A$306:$GX$348,AE$1)","v":125},{"$f":"VLOOKUP(DropDownList!$B47,CntyQryCensus!$A$306:$GX$348,AF$1)","v":177},{"$f":"VLOOKUP(DropDownList!$B47,CntyQryCensus!$A$306:$GX$348,AG$1)","v":67},{"$f":"VLOOKUP(DropDownList!$B47,CntyQryCensus!$A$306:$GX$348,AH$1)","v":83},{"$f":"VLOOKUP(DropDownList!$B47,CntyQryCensus!$A$306:$GX$348,AI$1)","v":179},{"$f":"VLOOKUP(DropDownList!$B47,CntyQryCensus!$A$306:$GX$348,AJ$1)","v":84},{"$f":"VLOOKUP(DropDownList!$B47,CntyQryCensus!$A$306:$GX$348,AK$1)","v":16},{"$f":"VLOOKUP(DropDownList!$B47,CntyQryCensus!$A$306:$GX$348,AL$1)","v":109},{"$f":"VLOOKUP(DropDownList!$B47,CntyQryCensus!$A$306:$GX$348,AM$1)","v":8},{"$f":"VLOOKUP(DropDownList!$B47,CntyQryCensus!$A$306:$GX$348,AN$1)","v":38},{"$f":"VLOOKUP(DropDownList!$B47,CntyQryCensus!$A$306:$GX$348,AO$1)","v":26},{"$f":"VLOOKUP(DropDownList!$B47,CntyQryCensus!$A$306:$GX$348,AP$1)","v":16},{"$f":"VLOOKUP(DropDownList!$B47,CntyQryCensus!$A$306:$GX$348,AQ$1)","v":14},{"$f":"VLOOKUP(DropDownList!$B47,CntyQryCensus!$A$306:$GX$348,AR$1)","v":2},{"$f":"VLOOKUP(DropDownList!$B47,CntyQryCensus!$A$306:$GX$348,AS$1)","v":3},{"$f":"VLOOKUP(DropDownList!$B47,CntyQryCensus!$A$306:$GX$348,AT$1)","v":2},{"$f":"VLOOKUP(DropDownList!$B47,CntyQryCensus!$A$306:$GX$348,AU$1)","v":0},{"$f":"VLOOKUP(DropDownList!$B47,CntyQryCensus!$A$306:$GX$348,AV$1)","v":2173},{"$f":"VLOOKUP(DropDownList!$B47,CntyQryCensus!$A$306:$GX$348,AW$1)","v":1914},{"$f":"VLOOKUP(DropDownList!$B47,CntyQryCensus!$A$306:$GX$348,AX$1)","v":259},{"$f":"VLOOKUP(DropDownList!$B47,CntyQryCensus!$A$306:$GX$348,AY$1)","v":925},{"$f":"VLOOKUP(DropDownList!$B47,CntyQryCensus!$A$306:$GX$348,AZ$1)","v":816},{"$f":"VLOOKUP(DropDownList!$B47,CntyQryCensus!$A$306:$GX$348,BA$1)","v":152},{"$f":"VLOOKUP(DropDownList!$B47,CntyQryCensus!$A$306:$GX$348,BB$1)","v":433},{"$f":"VLOOKUP(DropDownList!$B47,CntyQryCensus!$A$306:$GX$348,BC$1)","v":96},{"$f":"VLOOKUP(DropDownList!$B47,CntyQryCensus!$A$306:$GX$348,BD$1)","v":93},{"$f":"VLOOKUP(DropDownList!$B47,CntyQryCensus!$A$306:$GX$348,BE$1)","v":32},{"$f":"VLOOKUP(DropDownList!$B47,CntyQryCensus!$A$306:$GX$348,BF$1)","v":8},{"$f":"VLOOKUP(DropDownList!$B47,CntyQryCensus!$A$306:$GX$348,BG$1)","v":2},{"$f":"VLOOKUP(DropDownList!$B47,CntyQryCensus!$A$306:$GX$348,BH$1)","v":109},{"$f":"VLOOKUP(DropDownList!$B47,CntyQryCensus!$A$306:$GX$348,BI$1)","v":23},{"$f":"VLOOKUP(DropDownList!$B47,CntyQryCensus!$A$306:$GX$348,BJ$1)","v":44},{"$f":"VLOOKUP(DropDownList!$B47,CntyQryCensus!$A$306:$GX$348,BK$1)","v":20},{"$f":"VLOOKUP(DropDownList!$B47,CntyQryCensus!$A$306:$GX$348,BL$1)","v":14},{"$f":"VLOOKUP(DropDownList!$B47,CntyQryCensus!$A$306:$GX$348,BM$1)","v":4},{"$f":"VLOOKUP(DropDownList!$B47,CntyQryCensus!$A$306:$GX$348,BN$1)","v":2},{"$f":"VLOOKUP(DropDownList!$B47,CntyQryCensus!$A$306:$GX$348,BO$1)","v":2},{"$f":"VLOOKUP(DropDownList!$B47,CntyQryCensus!$A$306:$GX$348,BP$1)","v":2},{"$f":"VLOOKUP(DropDownList!$B47,CntyQryCensus!$A$306:$GX$348,BQ$1)","v":2},{"$f":"VLOOKUP(DropDownList!$B47,CntyQryCensus!$A$306:$GX$348,BR$1)","v":2},{"$f":"VLOOKUP(DropDownList!$B47,CntyQryCensus!$A$306:$GX$348,BS$1)","v":1518},{"$f":"VLOOKUP(DropDownList!$B47,CntyQryCensus!$A$306:$GX$348,BT$1)","v":10},{"$f":"VLOOKUP(DropDownList!$B47,CntyQryCensus!$A$306:$GX$348,BU$1)","v":5},{"$f":"VLOOKUP(DropDownList!$B47,CntyQryCensus!$A$306:$GX$348,BV$1)","v":23},{"$f":"VLOOKUP(DropDownList!$B47,CntyQryCensus!$A$306:$GX$348,BW$1)","v":158},{"$f":"VLOOKUP(DropDownList!$B47,CntyQryCensus!$A$306:$GX$348,BX$1)","v":291},{"$f":"VLOOKUP(DropDownList!$B47,CntyQryCensus!$A$306:$GX$348,BY$1)","v":459},{"$f":"VLOOKUP(DropDownList!$B47,CntyQryCensus!$A$306:$GX$348,BZ$1)","v":248},{"$f":"VLOOKUP(DropDownList!$B47,CntyQryCensus!$A$306:$GX$348,CA$1)","v":195},{"$f":"VLOOKUP(DropDownList!$B47,CntyQryCensus!$A$306:$GX$348,CB$1)","v":129},{"$f":"VLOOKUP(DropDownList!$B47,CntyQryCensus!$A$306:$GX$348,CC$1)","v":6},{"$f":"VLOOKUP(DropDownList!$B47,CntyQryCensus!$A$306:$GX$348,CD$1)","v":9516},{"$f":"VLOOKUP(DropDownList!$B47,CntyQryCensus!$A$306:$GX$348,CE$1)","v":1518},{"$f":"VLOOKUP(DropDownList!$B47,CntyQryCensus!$A$306:$GX$348,CF$1)","v":1168},{"$f":"VLOOKUP(DropDownList!$B47,CntyQryCensus!$A$306:$GX$348,CG$1)","v":296},{"$f":"VLOOKUP(DropDownList!$B47,CntyQryCensus!$A$306:$GX$348,CH$1)","v":19},{"$f":"VLOOKUP(DropDownList!$B47,CntyQryCensus!$A$306:$GX$348,CI$1)","v":9},{"$f":"VLOOKUP(DropDownList!$B47,CntyQryCensus!$A$306:$GX$348,CJ$1)","v":0},{"$f":"VLOOKUP(DropDownList!$B47,CntyQryCensus!$A$306:$GX$348,CK$1)","v":0},{"$f":"VLOOKUP(DropDownList!$B47,CntyQryCensus!$A$306:$GX$348,CL$1)","v":0},{"$f":"VLOOKUP(DropDownList!$B47,CntyQryCensus!$A$306:$GX$348,CM$1)","v":0},{"$f":"VLOOKUP(DropDownList!$B47,CntyQryCensus!$A$306:$GX$348,CN$1)","v":26},{"$f":"VLOOKUP(DropDownList!$B47,CntyQryCensus!$A$306:$GX$348,CO$1)","v":0},{"$f":"VLOOKUP(DropDownList!$B47,CntyQryCensus!$A$306:$GX$348,CP$1)","v":925},{"$f":"VLOOKUP(DropDownList!$B47,CntyQryCensus!$A$306:$GX$348,CQ$1)","v":816},{"$f":"VLOOKUP(DropDownList!$B47,CntyQryCensus!$A$306:$GX$348,CR$1)","v":735},{"$f":"VLOOKUP(DropDownList!$B47,CntyQryCensus!$A$306:$GX$348,CS$1)","v":62},{"$f":"VLOOKUP(DropDownList!$B47,CntyQryCensus!$A$306:$GX$348,CT$1)","v":0},{"$f":"VLOOKUP(DropDownList!$B47,CntyQryCensus!$A$306:$GX$348,CU$1)","v":0},{"$f":"VLOOKUP(DropDownList!$B47,CntyQryCensus!$A$306:$GX$348,CV$1)","v":0},{"$f":"VLOOKUP(DropDownList!$B47,CntyQryCensus!$A$306:$GX$348,CW$1)","v":0},{"$f":"VLOOKUP(DropDownList!$B47,CntyQryCensus!$A$306:$GX$348,CX$1)","v":0},{"$f":"VLOOKUP(DropDownList!$B47,CntyQryCensus!$A$306:$GX$348,CY$1)","v":0},{"$f":"VLOOKUP(DropDownList!$B47,CntyQryCensus!$A$306:$GX$348,CZ$1)","v":19},{"$f":"VLOOKUP(DropDownList!$B47,CntyQryCensus!$A$306:$GX$348,DA$1)","v":0},{"$f":"VLOOKUP(DropDownList!$B47,CntyQryCensus!$A$306:$GX$348,DB$1)","v":109},{"$f":"VLOOKUP(DropDownList!$B47,CntyQryCensus!$A$306:$GX$348,DC$1)","v":75},{"$f":"VLOOKUP(DropDownList!$B47,CntyQryCensus!$A$306:$GX$348,DD$1)","v":16},{"$f":"VLOOKUP(DropDownList!$B47,CntyQryCensus!$A$306:$GX$348,DE$1)","v":10},{"$f":"VLOOKUP(DropDownList!$B47,CntyQryCensus!$A$306:$GX$348,DF$1)","v":5},{"$f":"VLOOKUP(DropDownList!$B47,CntyQryCensus!$A$306:$GX$348,DG$1)","v":0},{"$f":"VLOOKUP(DropDownList!$B47,CntyQryCensus!$A$306:$GX$348,DH$1)","v":0},{"$f":"VLOOKUP(DropDownList!$B47,CntyQryCensus!$A$306:$GX$348,DI$1)","v":0},{"$f":"VLOOKUP(DropDownList!$B47,CntyQryCensus!$A$306:$GX$348,DJ$1)","v":0},{"$f":"VLOOKUP(DropDownList!$B47,CntyQryCensus!$A$306:$GX$348,DK$1)","v":3},{"$f":"VLOOKUP(DropDownList!$B47,CntyQryCensus!$A$306:$GX$348,DL$1)","v":0},{"$f":"VLOOKUP(DropDownList!$B47,CntyQryCensus!$A$306:$GX$348,DM$1)","v":2173},{"$f":"VLOOKUP(DropDownList!$B47,CntyQryCensus!$A$306:$GX$348,DN$1)","v":1914},{"$f":"VLOOKUP(DropDownList!$B47,CntyQryCensus!$A$306:$GX$348,DO$1)","v":1770},{"$f":"VLOOKUP(DropDownList!$B47,CntyQryCensus!$A$306:$GX$348,DP$1)","v":99},{"$f":"VLOOKUP(DropDownList!$B47,CntyQryCensus!$A$306:$GX$348,DQ$1)","v":0},{"$f":"VLOOKUP(DropDownList!$B47,CntyQryCensus!$A$306:$GX$348,DR$1)","v":0},{"$f":"VLOOKUP(DropDownList!$B47,CntyQryCensus!$A$306:$GX$348,DS$1)","v":0},{"$f":"VLOOKUP(DropDownList!$B47,CntyQryCensus!$A$306:$GX$348,DT$1)","v":0},{"$f":"VLOOKUP(DropDownList!$B47,CntyQryCensus!$A$306:$GX$348,DU$1)","v":0},{"$f":"VLOOKUP(DropDownList!$B47,CntyQryCensus!$A$306:$GX$348,DV$1)","v":0},{"$f":"VLOOKUP(DropDownList!$B47,CntyQryCensus!$A$306:$GX$348,DW$1)","v":45},{"$f":"VLOOKUP(DropDownList!$B47,CntyQryCensus!$A$306:$GX$348,DX$1)","v":0},{"$f":"VLOOKUP(DropDownList!$B47,CntyQryCensus!$A$306:$GX$348,DY$1)","v":259},{"$f":"VLOOKUP(DropDownList!$B47,CntyQryCensus!$A$306:$GX$348,DZ$1)","v":200},{"$f":"VLOOKUP(DropDownList!$B47,CntyQryCensus!$A$306:$GX$348,EA$1)","v":26},{"$f":"VLOOKUP(DropDownList!$B47,CntyQryCensus!$A$306:$GX$348,EB$1)","v":21},{"$f":"VLOOKUP(DropDownList!$B47,CntyQryCensus!$A$306:$GX$348,EC$1)","v":10},{"$f":"VLOOKUP(DropDownList!$B47,CntyQryCensus!$A$306:$GX$348,ED$1)","v":0},{"$f":"VLOOKUP(DropDownList!$B47,CntyQryCensus!$A$306:$GX$348,EE$1)","v":0},{"$f":"VLOOKUP(DropDownList!$B47,CntyQryCensus!$A$306:$GX$348,EF$1)","v":0},{"$f":"VLOOKUP(DropDownList!$B47,CntyQryCensus!$A$306:$GX$348,EG$1)","v":0},{"$f":"VLOOKUP(DropDownList!$B47,CntyQryCensus!$A$306:$GX$348,EH$1)","v":2},{"$f":"VLOOKUP(DropDownList!$B47,CntyQryCensus!$A$306:$GX$348,EI$1)","v":0},{"$f":"VLOOKUP(DropDownList!$B47,CntyQryCensus!$A$306:$GX$348,EJ$1)","v":925},{"$f":"VLOOKUP(DropDownList!$B47,CntyQryCensus!$A$306:$GX$348,EK$1)","v":816},{"$f":"VLOOKUP(DropDownList!$B47,CntyQryCensus!$A$306:$GX$348,EL$1)","v":22},{"$f":"VLOOKUP(DropDownList!$B47,CntyQryCensus!$A$306:$GX$348,EM$1)","v":102},{"$f":"VLOOKUP(DropDownList!$B47,CntyQryCensus!$A$306:$GX$348,EN$1)","v":112},{"$f":"VLOOKUP(DropDownList!$B47,CntyQryCensus!$A$306:$GX$348,EO$1)","v":281},{"$f":"VLOOKUP(DropDownList!$B47,CntyQryCensus!$A$306:$GX$348,EP$1)","v":181},{"$f":"VLOOKUP(DropDownList!$B47,CntyQryCensus!$A$306:$GX$348,EQ$1)","v":20},{"$f":"VLOOKUP(DropDownList!$B47,CntyQryCensus!$A$306:$GX$348,ER$1)","v":26},{"$f":"VLOOKUP(DropDownList!$B47,CntyQryCensus!$A$306:$GX$348,ES$1)","v":12},{"$f":"VLOOKUP(DropDownList!$B47,CntyQryCensus!$A$306:$GX$348,ET$1)","v":60},{"$f":"VLOOKUP(DropDownList!$B47,CntyQryCensus!$A$306:$GX$348,EU$1)","v":109},{"$f":"VLOOKUP(DropDownList!$B47,CntyQryCensus!$A$306:$GX$348,EV$1)","v":2},{"$f":"VLOOKUP(DropDownList!$B47,CntyQryCensus!$A$306:$GX$348,EW$1)","v":7},{"$f":"VLOOKUP(DropDownList!$B47,CntyQryCensus!$A$306:$GX$348,EX$1)","v":13},{"$f":"VLOOKUP(DropDownList!$B47,CntyQryCensus!$A$306:$GX$348,EY$1)","v":27},{"$f":"VLOOKUP(DropDownList!$B47,CntyQryCensus!$A$306:$GX$348,EZ$1)","v":37},{"$f":"VLOOKUP(DropDownList!$B47,CntyQryCensus!$A$306:$GX$348,FA$1)","v":10},{"$f":"VLOOKUP(DropDownList!$B47,CntyQryCensus!$A$306:$GX$348,FB$1)","v":2},{"$f":"VLOOKUP(DropDownList!$B47,CntyQryCensus!$A$306:$GX$348,FC$1)","v":3},{"$f":"VLOOKUP(DropDownList!$B47,CntyQryCensus!$A$306:$GX$348,FD$1)","v":8},{"$f":"VLOOKUP(DropDownList!$B47,CntyQryCensus!$A$306:$GX$348,FE$1)","v":925},{"$f":"VLOOKUP(DropDownList!$B47,CntyQryCensus!$A$306:$GX$348,FF$1)","v":9},{"$f":"VLOOKUP(DropDownList!$B47,CntyQryCensus!$A$306:$GX$348,FG$1)","v":436},{"$f":"VLOOKUP(DropDownList!$B47,CntyQryCensus!$A$306:$GX$348,FH$1)","v":47},{"$f":"VLOOKUP(DropDownList!$B47,CntyQryCensus!$A$306:$GX$348,FI$1)","v":340},{"$f":"VLOOKUP(DropDownList!$B47,CntyQryCensus!$A$306:$GX$348,FJ$1)","v":0},{"$f":"VLOOKUP(DropDownList!$B47,CntyQryCensus!$A$306:$GX$348,FK$1)","v":93},{"$f":"VLOOKUP(DropDownList!$B47,CntyQryCensus!$A$306:$GX$348,FL$1)","v":0},{"$f":"VLOOKUP(DropDownList!$B47,CntyQryCensus!$A$306:$GX$348,FM$1)","v":0},{"$f":"VLOOKUP(DropDownList!$B47,CntyQryCensus!$A$306:$GX$348,FN$1)","v":0},{"$f":"VLOOKUP(DropDownList!$B47,CntyQryCensus!$A$306:$GX$348,FO$1)","v":1518},{"$f":"VLOOKUP(DropDownList!$B47,CntyQryCensus!$A$306:$GX$348,FP$1)","v":10},{"$f":"VLOOKUP(DropDownList!$B47,CntyQryCensus!$A$306:$GX$348,FQ$1)","v":23},{"$f":"VLOOKUP(DropDownList!$B47,CntyQryCensus!$A$306:$GX$348,FR$1)","v":310},{"$f":"VLOOKUP(DropDownList!$B47,CntyQryCensus!$A$306:$GX$348,FS$1)","v":936},{"$f":"VLOOKUP(DropDownList!$B47,CntyQryCensus!$A$306:$GX$348,FT$1)","v":203},{"$f":"VLOOKUP(DropDownList!$B47,CntyQryCensus!$A$306:$GX$348,FU$1)","v":36},{"$f":"VLOOKUP(DropDownList!$B47,CntyQryCensus!$A$306:$GX$348,FV$1)","v":925},{"$f":"VLOOKUP(DropDownList!$B47,CntyQryCensus!$A$306:$GX$348,FW$1)","v":816},{"$f":"VLOOKUP(DropDownList!$B47,CntyQryCensus!$A$306:$GX$348,FX$1)","v":0},{"$f":"VLOOKUP(DropDownList!$B47,CntyQryCensus!$A$306:$GX$348,FY$1)","v":9},{"$f":"VLOOKUP(DropDownList!$B47,CntyQryCensus!$A$306:$GX$348,FZ$1)","v":127},{"$f":"VLOOKUP(DropDownList!$B47,CntyQryCensus!$A$306:$GX$348,GA$1)","v":515},{"$f":"VLOOKUP(DropDownList!$B47,CntyQryCensus!$A$306:$GX$348,GB$1)","v":140},{"$f":"VLOOKUP(DropDownList!$B47,CntyQryCensus!$A$306:$GX$348,GC$1)","v":25},{"$f":"VLOOKUP(DropDownList!$B47,CntyQryCensus!$A$306:$GX$348,GD$1)","v":109},{"$f":"VLOOKUP(DropDownList!$B47,CntyQryCensus!$A$306:$GX$348,GE$1)","v":6},{"$f":"VLOOKUP(DropDownList!$B47,CntyQryCensus!$A$306:$GX$348,GF$1)","v":3},{"$f":"VLOOKUP(DropDownList!$B47,CntyQryCensus!$A$306:$GX$348,GG$1)","v":37},{"$f":"VLOOKUP(DropDownList!$B47,CntyQryCensus!$A$306:$GX$348,GH$1)","v":59},{"$f":"VLOOKUP(DropDownList!$B47,CntyQryCensus!$A$306:$GX$348,GI$1)","v":4},{"$f":"VLOOKUP(DropDownList!$B47,CntyQryCensus!$A$306:$GX$348,GJ$1)","v":0},{"$f":"VLOOKUP(DropDownList!$B47,CntyQryCensus!$A$306:$GX$348,GK$1)","v":925},{"$f":"VLOOKUP(DropDownList!$B47,CntyQryCensus!$A$306:$GX$348,GL$1)","v":816},{"$f":"VLOOKUP(DropDownList!$B47,CntyQryCensus!$A$306:$GX$348,GM$1)","v":816},{"$f":"VLOOKUP(DropDownList!$B47,CntyQryCensus!$A$306:$GX$348,GN$1)","v":0},{"$f":"VLOOKUP(DropDownList!$B47,CntyQryCensus!$A$306:$GX$348,GO$1)","v":109},{"$f":"VLOOKUP(DropDownList!$B47,CntyQryCensus!$A$306:$GX$348,GP$1)","v":109},{"$f":"VLOOKUP(DropDownList!$B47,CntyQryCensus!$A$306:$GX$348,GQ$1)","v":0},{"$f":"VLOOKUP(DropDownList!$B47,CntyQryCensus!$A$306:$GX$348,GR$1)","v":925},{"$f":"VLOOKUP(DropDownList!$B47,CntyQryCensus!$A$306:$GX$348,GS$1)","v":816},{"$f":"VLOOKUP(DropDownList!$B47,CntyQryCensus!$A$306:$GX$348,GT$1)","v":811},{"$f":"VLOOKUP(DropDownList!$B47,CntyQryCensus!$A$306:$GX$348,GU$1)","v":5},{"$f":"VLOOKUP(DropDownList!$B47,CntyQryCensus!$A$306:$GX$348,GV$1)","v":109},{"$f":"VLOOKUP(DropDownList!$B47,CntyQryCensus!$A$306:$GX$348,GW$1)","v":109},{"$f":"VLOOKUP(DropDownList!$B47,CntyQryCensus!$A$306:$GX$348,GX$1)","v":0}]
[]
[]
["Census 2000 SummaryFile3 Sample Data  -  SF3TownQry8HousingCostA"]
["NAME","LOGRECNO","COUNTY","TotalPop","H62RntrOccHU","H62RntrOccHUwRent","H62ROHUGRent<100","H62ROHUGRent100to149","H62ROHUGRent150to199","H62ROHUGRent200to249","H62ROHUGRent250to299","H62ROHUGRent300to349","H62ROHUGRent350to399","H62ROHUGRent400to449","H62ROHUGRent450to499","H62ROHUGRent500to549","H62ROHUGRent550to599","H62ROHUGRent600to649","H62ROHUGRent650to699","H62ROHUGRent700to749","H62ROHUGRent750to799","H62ROHUGRent800to899","H62ROHUGRent900to999","H62ROHUGRent1000to1249","H62ROHUGRent1250to1499","H62ROHUGRent1500to1999","H62ROHUGRent2000>","H62ROHUNoGRent","H63MedianGrossRnt","H69RenterOccHsU","H69GRnt<10PctHHInc","H69GRnt10to15PctHHInc","H69GRnt15to20PctHHInc","H69GRnt20to25PctHHInc","H69GRnt25to30PctHHInc","H69GRnt30to35PctHHInc","H69GRnt35to40PctHHInc","H69GRnt40to50PctHHInc","H69GRnt>50PctHHInc","H69GRntPctNotcomputed","H73RenterOccHU","H73ROHUHhInc<10k","H73ROHUHhInc<10kRnt<20pct","H73ROHUHhInc<10kRnt20to25pct","H73ROHUHhInc<10kRnt25to30pct","H73ROHUHhInc<10kRnt30to35pct","H73ROHUHhInc<10kRnt>35pct","H73ROHUHhInc<10kPctNotComput","H73ROHUHhInc10to20k","H73ROHUHhInc10to20kRnt<20pct","H73ROHUHhInc10to20kRnt20to25pct","H73ROHUHhInc10to20kRnt25to30pct","H73ROHUHhInc10to20kRnt30to35pct","H73ROHUHhInc10to20kRnt>35pct","H73ROHUHhInc10to20kRntPctNC","H73ROHUHhInc20to35k","H73ROHUHhInc20to35kRnt<20pct","H73ROHUHhInc20to35kRnt20to25pct","H73ROHUHhInc20to35kRnt25to30pct","H73ROHUHhInc20to35kRnt30to35pct","H73ROHUHhInc20to35kRnt>35pct","H73ROHUHhInc20to35kRntPctNC","H73ROHUHhInc35to40k","H73ROHUHhInc35to40kRnt<20pct","H73ROHUHhInc35to40kRnt20to25pct","H73ROHUHhInc35to40kRnt25to30pct","H73ROHUHhInc35to40kRnt30to35pct","H73ROHUHhInc35to40kRnt>35pct","H73ROHUHhInc35to40kRntPctNC","H73ROHUHhInc50to75k","H73ROHUHhInc50to75kRnt<20pct","H73ROHUHhInc50to75kRnt20to25pct","H73ROHUHhInc50to75kRnt25to30pct","H73ROHUHhInc50to75kRnt30to35pct","H73ROHUHhInc50to75kRnt>35pct","H73ROHUHhInc50to75kRntPctNC","H73ROHUHhInc75to100k","H73ROHUHhInc75to100kRnt<20pct","H73ROHUHhInc75to100kRnt20to25pct","H73ROHUHhInc75to100kRnt25to30pct","H73ROHUHhInc75to100kRnt30to35pct","H73ROHUHhInc75to100kRnt>35pct","H73ROHUHhInc75to100kRntPctNC","H73ROHUHhInc>100k","H73ROHUHhInc>100kRnt<20pct","H73ROHUHhInc>100kRnt20to25pct","H73ROHUHhInc>100kRnt25to30pct","H73ROHUHhInc>100kRnt30to35pct","H73ROHUHhInc>100kRnt>35pct","H73ROHUHhInc>100kRntPctNC","H73ROHUHhInc>100kRntPctNC"]
[{"$f":"VLOOKUP(DropDownList!$B$47,CntyQryCensus!$A$357:$CM$399,A$1)","v":"Grantham"},{"$f":"VLOOKUP(DropDownList!$B$47,CntyQryCensus!$A$357:$CM$399,B$1)","v":"0004212"},{"$f":"VLOOKUP(DropDownList!$B$47,CntyQryCensus!$A$357:$CM$399,C$1)","v":"31220"},{"$f":"VLOOKUP(DropDownList!$B$47,CntyQryCensus!$A$357:$CM$399,D$1)","v":2167},{"$f":"VLOOKUP(DropDownList!$B$47,CntyQryCensus!$A$357:$CM$399,E$1)","v":103},{"$f":"VLOOKUP(DropDownList!$B$47,CntyQryCensus!$A$357:$CM$399,F$1)","v":98},{"$f":"VLOOKUP(DropDownList!$B$47,CntyQryCensus!$A$357:$CM$399,G$1)","v":0},{"$f":"VLOOKUP(DropDownList!$B$47,CntyQryCensus!$A$357:$CM$399,H$1)","v":0},{"$f":"VLOOKUP(DropDownList!$B$47,CntyQryCensus!$A$357:$CM$399,I$1)","v":0},{"$f":"VLOOKUP(DropDownList!$B$47,CntyQryCensus!$A$357:$CM$399,J$1)","v":0},{"$f":"VLOOKUP(DropDownList!$B$47,CntyQryCensus!$A$357:$CM$399,K$1)","v":0},{"$f":"VLOOKUP(DropDownList!$B$47,CntyQryCensus!$A$357:$CM$399,L$1)","v":0},{"$f":"VLOOKUP(DropDownList!$B$47,CntyQryCensus!$A$357:$CM$399,M$1)","v":0},{"$f":"VLOOKUP(DropDownList!$B$47,CntyQryCensus!$A$357:$CM$399,N$1)","v":3},{"$f":"VLOOKUP(DropDownList!$B$47,CntyQryCensus!$A$357:$CM$399,O$1)","v":3},{"$f":"VLOOKUP(DropDownList!$B$47,CntyQryCensus!$A$357:$CM$399,P$1)","v":3},{"$f":"VLOOKUP(DropDownList!$B$47,CntyQryCensus!$A$357:$CM$399,Q$1)","v":5},{"$f":"VLOOKUP(DropDownList!$B$47,CntyQryCensus!$A$357:$CM$399,R$1)","v":3},{"$f":"VLOOKUP(DropDownList!$B$47,CntyQryCensus!$A$357:$CM$399,S$1)","v":2},{"$f":"VLOOKUP(DropDownList!$B$47,CntyQryCensus!$A$357:$CM$399,T$1)","v":4},{"$f":"VLOOKUP(DropDownList!$B$47,CntyQryCensus!$A$357:$CM$399,U$1)","v":4},{"$f":"VLOOKUP(DropDownList!$B$47,CntyQryCensus!$A$357:$CM$399,V$1)","v":8},{"$f":"VLOOKUP(DropDownList!$B$47,CntyQryCensus!$A$357:$CM$399,W$1)","v":7},{"$f":"VLOOKUP(DropDownList!$B$47,CntyQryCensus!$A$357:$CM$399,X$1)","v":44},{"$f":"VLOOKUP(DropDownList!$B$47,CntyQryCensus!$A$357:$CM$399,Y$1)","v":8},{"$f":"VLOOKUP(DropDownList!$B$47,CntyQryCensus!$A$357:$CM$399,Z$1)","v":2},{"$f":"VLOOKUP(DropDownList!$B$47,CntyQryCensus!$A$357:$CM$399,AA$1)","v":2},{"$f":"VLOOKUP(DropDownList!$B$47,CntyQryCensus!$A$357:$CM$399,AB$1)","v":5},{"$f":"VLOOKUP(DropDownList!$B$47,CntyQryCensus!$A$357:$CM$399,AC$1)","v":1040},{"$f":"VLOOKUP(DropDownList!$B$47,CntyQryCensus!$A$357:$CM$399,AD$1)","v":103},{"$f":"VLOOKUP(DropDownList!$B$47,CntyQryCensus!$A$357:$CM$399,AE$1)","v":7},{"$f":"VLOOKUP(DropDownList!$B$47,CntyQryCensus!$A$357:$CM$399,AF$1)","v":19},{"$f":"VLOOKUP(DropDownList!$B$47,CntyQryCensus!$A$357:$CM$399,AG$1)","v":15},{"$f":"VLOOKUP(DropDownList!$B$47,CntyQryCensus!$A$357:$CM$399,AH$1)","v":10},{"$f":"VLOOKUP(DropDownList!$B$47,CntyQryCensus!$A$357:$CM$399,AI$1)","v":20},{"$f":"VLOOKUP(DropDownList!$B$47,CntyQryCensus!$A$357:$CM$399,AJ$1)","v":2},{"$f":"VLOOKUP(DropDownList!$B$47,CntyQryCensus!$A$357:$CM$399,AK$1)","v":7},{"$f":"VLOOKUP(DropDownList!$B$47,CntyQryCensus!$A$357:$CM$399,AL$1)","v":2},{"$f":"VLOOKUP(DropDownList!$B$47,CntyQryCensus!$A$357:$CM$399,AM$1)","v":13},{"$f":"VLOOKUP(DropDownList!$B$47,CntyQryCensus!$A$357:$CM$399,AN$1)","v":8},{"$f":"VLOOKUP(DropDownList!$B$47,CntyQryCensus!$A$357:$CM$399,AO$1)","v":103},{"$f":"VLOOKUP(DropDownList!$B$47,CntyQryCensus!$A$357:$CM$399,AP$1)","v":8},{"$f":"VLOOKUP(DropDownList!$B$47,CntyQryCensus!$A$357:$CM$399,AQ$1)","v":0},{"$f":"VLOOKUP(DropDownList!$B$47,CntyQryCensus!$A$357:$CM$399,AR$1)","v":0},{"$f":"VLOOKUP(DropDownList!$B$47,CntyQryCensus!$A$357:$CM$399,AS$1)","v":0},{"$f":"VLOOKUP(DropDownList!$B$47,CntyQryCensus!$A$357:$CM$399,AT$1)","v":0},{"$f":"VLOOKUP(DropDownList!$B$47,CntyQryCensus!$A$357:$CM$399,AU$1)","v":5},{"$f":"VLOOKUP(DropDownList!$B$47,CntyQryCensus!$A$357:$CM$399,AV$1)","v":3},{"$f":"VLOOKUP(DropDownList!$B$47,CntyQryCensus!$A$357:$CM$399,AW$1)","v":6},{"$f":"VLOOKUP(DropDownList!$B$47,CntyQryCensus!$A$357:$CM$399,AX$1)","v":0},{"$f":"VLOOKUP(DropDownList!$B$47,CntyQryCensus!$A$357:$CM$399,AY$1)","v":0},{"$f":"VLOOKUP(DropDownList!$B$47,CntyQryCensus!$A$357:$CM$399,AZ$1)","v":0},{"$f":"VLOOKUP(DropDownList!$B$47,CntyQryCensus!$A$357:$CM$399,BA$1)","v":0},{"$f":"VLOOKUP(DropDownList!$B$47,CntyQryCensus!$A$357:$CM$399,BB$1)","v":6},{"$f":"VLOOKUP(DropDownList!$B$47,CntyQryCensus!$A$357:$CM$399,BC$1)","v":0},{"$f":"VLOOKUP(DropDownList!$B$47,CntyQryCensus!$A$357:$CM$399,BD$1)","v":13},{"$f":"VLOOKUP(DropDownList!$B$47,CntyQryCensus!$A$357:$CM$399,BE$1)","v":0},{"$f":"VLOOKUP(DropDownList!$B$47,CntyQryCensus!$A$357:$CM$399,BF$1)","v":0},{"$f":"VLOOKUP(DropDownList!$B$47,CntyQryCensus!$A$357:$CM$399,BG$1)","v":6},{"$f":"VLOOKUP(DropDownList!$B$47,CntyQryCensus!$A$357:$CM$399,BH$1)","v":2},{"$f":"VLOOKUP(DropDownList!$B$47,CntyQryCensus!$A$357:$CM$399,BI$1)","v":5},{"$f":"VLOOKUP(DropDownList!$B$47,CntyQryCensus!$A$357:$CM$399,BJ$1)","v":0},{"$f":"VLOOKUP(DropDownList!$B$47,CntyQryCensus!$A$357:$CM$399,BK$1)","v":17},{"$f":"VLOOKUP(DropDownList!$B$47,CntyQryCensus!$A$357:$CM$399,BL$1)","v":2},{"$f":"VLOOKUP(DropDownList!$B$47,CntyQryCensus!$A$357:$CM$399,BM$1)","v":2},{"$f":"VLOOKUP(DropDownList!$B$47,CntyQryCensus!$A$357:$CM$399,BN$1)","v":5},{"$f":"VLOOKUP(DropDownList!$B$47,CntyQryCensus!$A$357:$CM$399,BO$1)","v":0},{"$f":"VLOOKUP(DropDownList!$B$47,CntyQryCensus!$A$357:$CM$399,BP$1)","v":6},{"$f":"VLOOKUP(DropDownList!$B$47,CntyQryCensus!$A$357:$CM$399,BQ$1)","v":2},{"$f":"VLOOKUP(DropDownList!$B$47,CntyQryCensus!$A$357:$CM$399,BR$1)","v":28},{"$f":"VLOOKUP(DropDownList!$B$47,CntyQryCensus!$A$357:$CM$399,BS$1)","v":14},{"$f":"VLOOKUP(DropDownList!$B$47,CntyQryCensus!$A$357:$CM$399,BT$1)","v":5},{"$f":"VLOOKUP(DropDownList!$B$47,CntyQryCensus!$A$357:$CM$399,BU$1)","v":9},{"$f":"VLOOKUP(DropDownList!$B$47,CntyQryCensus!$A$357:$CM$399,BV$1)","v":0},{"$f":"VLOOKUP(DropDownList!$B$47,CntyQryCensus!$A$357:$CM$399,BW$1)","v":0},{"$f":"VLOOKUP(DropDownList!$B$47,CntyQryCensus!$A$357:$CM$399,BX$1)","v":0},{"$f":"VLOOKUP(DropDownList!$B$47,CntyQryCensus!$A$357:$CM$399,BY$1)","v":27},{"$f":"VLOOKUP(DropDownList!$B$47,CntyQryCensus!$A$357:$CM$399,BZ$1)","v":21},{"$f":"VLOOKUP(DropDownList!$B$47,CntyQryCensus!$A$357:$CM$399,CA$1)","v":3},{"$f":"VLOOKUP(DropDownList!$B$47,CntyQryCensus!$A$357:$CM$399,CB$1)","v":0},{"$f":"VLOOKUP(DropDownList!$B$47,CntyQryCensus!$A$357:$CM$399,CC$1)","v":0},{"$f":"VLOOKUP(DropDownList!$B$47,CntyQryCensus!$A$357:$CM$399,CD$1)","v":0},{"$f":"VLOOKUP(DropDownList!$B$47,CntyQryCensus!$A$357:$CM$399,CE$1)","v":3},{"$f":"VLOOKUP(DropDownList!$B$47,CntyQryCensus!$A$357:$CM$399,CF$1)","v":4},{"$f":"VLOOKUP(DropDownList!$B$47,CntyQryCensus!$A$357:$CM$399,CG$1)","v":4},{"$f":"VLOOKUP(DropDownList!$B$47,CntyQryCensus!$A$357:$CM$399,CH$1)","v":0},{"$f":"VLOOKUP(DropDownList!$B$47,CntyQryCensus!$A$357:$CM$399,CI$1)","v":0},{"$f":"VLOOKUP(DropDownList!$B$47,CntyQryCensus!$A$357:$CM$399,CJ$1)","v":0},{"$f":"VLOOKUP(DropDownList!$B$47,CntyQryCensus!$A$357:$CM$399,CK$1)","v":0},{"$f":"VLOOKUP(DropDownList!$B$47,CntyQryCensus!$A$357:$CM$399,CL$1)","v":0},{"$f":"VLOOKUP(DropDownList!$B$47,CntyQryCensus!$A$357:$CM$399,CM$1)","v":0}]
[]
[]
["Census 2000 SummaryFile3 Sample Data  -  SF3TownQry8HousingCostB"]
["NAME","LOGRECNO","COUNTY","TotalPop","H74SpecOwnerOccHU","H74OOHU<10k","H74OOHU10to15k","H74OOHU15to20k","H74OOHU20to25k","H74OOHU25to30k","H74OOHU30to35k","H74OOHU35to40k","H74OOHU40to50k","H74OOHU50to60k","H74OOHU60to70k","H74OOHU70to80k","H74OOHU80to90k","H74OOHU90to100k","H74OOHU100to125k","H74OOHU125to150k","H74OOHU150to175k","H74OOHU175to200k","H74OOHU200to250k","H74OOHU250to300k","H74OOHU300to400k","H74OOHU400to500k","H74OOHU500to750k","H74OOHU750to1000k","H74OOHU1000kmore","H76OOHUMedianVal","H84OwnerOccHU","H84AllOOHU<10k","H84AllOOHU10to15k","H84AllOOHU15to20k","H84AllOOHU20to25k","H84AllOOHU25to30k","H84AllOOHU30to35k","H84AllOOHU35to40k","H84AllOOHU40to50k","H84AllOOHU50to60k","H84AllOOHU60to70k","H84AllOOHU70to80k","H84AllOOHU80to90k","H84AllOOHU90to100k","H84AllOOHU100to125k","H84AllOOHU125to150k","H84AllOOHU150to175k","H84AllOOHU175to200k","H84AllOOHU200to250k","H84AllOOHU250to300k","H84AllOOHU300to400k","H84AllOOHU400to500k","H84AllOOHU500to750k","H84AllOOHU750to1000k","H84AllOOHU1000kmore","H85OOHUMedVal","H90SOOHU","H90HUwMorgt","H90HUwMtgHC<200","H90HUwMtgHC200to300","H90HUwMtgHC300to400","H90HUwMtgHC400to500","H90HUwMtgHC500to600","H90HUwMtgHC600to700","H90HUwMtgHC700to800","H90HUwMtgHC800to900","H90HUwMtgHC900to1000","H90HUwMtgHC1000to1250","H90HUwMtgHC1250to1500","H90HUwMtgHC1500to2000","H90HUwMtgHC2000to2500","H90HUwMtgHC2500to3000","H90HUwMtgHC3000orMore","H90HUwOutMorgt","H90HUwOutMtgHC<100","H90HUwOutMtgHC100to150","H90HUwOutMtgHC150to200","H90HUwOutMtgHC200to250","H90HUwOutMtgHC250to300","H90HUwOutMtgHC300to350","H90HUwOutMtgHC350to400","H90HUwOutMtgHC400to500","H90HUwOutMtgHC500to600","H90HUwOutMtgHC600to700","H90HUwOutMtgHC700to800","H90HUwOutMtgHC800to900","H90HUwOutMtgHC900to1000","H90HUwOutMtgHC1000orMore","H91MedianOCHUwMtg","H91MedianOCHUwOutMtg","H94SpecOOHU","H94HUwMortg","H94HUwMtgHC<10pct","H94HUwMtgHC10to15pct","H94HUwMtgHC15to20pct","H94HUwMtgHC20to25pct","H94HUwMtgHC25to30pct","H94HUwMtgHC30to35pct","H94HUwMtgHC35to40pct","H94HUwMtgHC40to50pct","H94HUwMtgHC50pctOrMore","H94HUwMtgHCpctNotComp","H94HUWOutMortg","H94HUWOutMortgHC<10pct","H94HUWOutMortgHC10to15pct","H94HUWOutMortgHC15to20pct","H94HUWOutMortgHC20to25pct","H94HUWOutMortgHC25to30pct","H94HUWOutMortgHC30to35pct","H94HUWOutMortgHC35to40pct","H94HUWOutMortgHC40to50pct","H94HUWOutMortgHC50pctOrMore","H94HUWOutMortgHCpctNotComp","H97SpecifOwnOccHU","H97SOOHUInc<10k","H97SOOHUInc<10kHC<20pct","H97SOOHUInc<10kHC20to25pct","H97SOOHUInc<10kHC25to30pct","H97SOOHUInc<10kHC30to35pct","H97SOOHUInc<10kHC>35pct","H97SOOHUInc<10kHCpctNotComput","H97SOOHUInc10to20k","H97SOOHUInc10to20kHC<20pct","H97SOOHUInc10to20kHC20to25pct","H97SOOHUInc10to20kHC25to30pct","H97SOOHUInc10to20kHC30to35pct","H97SOOHUInc10to20kHC>35pct","H97SOOHUInc10to20kHCpctNotComput","H97SOOHUInc20to35k","H97SOOHUInc20to35kRC<20pct","H97SOOHUInc20to35kRC20to25pct","H97SOOHUInc20to35kRC25to30pct","H97SOOHUInc20to35kRC30to35pct","H97SOOHUInc20to35kRC>35pct","H97SOOHUInc20to35kRCpctNotComput","H97SOOHUInc35to50k","H97SOOHUInc35to50kRC<20pct","H97SOOHUInc35to50kRC20to25pct","H97SOOHUInc35to50kRC25to30pct","H97SOOHUInc35to50kRC30to35pct","H97SOOHUInc35to50kRC>35pct","H97SOOHUInc35to50kRCpctNotCompute","H97SOOHUInc50to75k","H97SOOHUInc50to75kRC<20pct","H97SOOHUInc50to75kRC20to25pct","H97SOOHUInc50to75kRC25to30pct","H97SOOHUInc50to75kRC30to35pct","H97SOOHUInc50to75kRC>35pct","H97SOOHUInc50to75kRCpctNotComput","H97SOOHUInc75to100k","H97SOOHUInc75to100kRC<20pct","H97SOOHUInc75to100kRC20to25pct","H97SOOHUInc75to100kRC25to30pct","H97SOOHUInc75to100kRC30to35pct","H97SOOHUInc75to100kRC>35pct","H97SOOHUInc75to100kRCpctNotCompute","H97SOOHUInc100to150k","H97SOOHUInc100to150kRC<20pct","H97SOOHUInc100to150kRC20to25pct","H97SOOHUInc100to150kRC25to30pct","H97SOOHUInc100to150kRC30to35pct","H97SOOHUInc100to150kRC>35pct","H97SOOHUInc100to150kRCpctNotCompute","H97SOOHUInc>150k","H97SOOHUInc>150kRC<20pct","H97SOOHUInc>150kRC20to25pct","H97SOOHUInc>150kRC25to30pct","H97SOOHUInc>150kRC30to35pct","H97SOOHUInc>150kRC>35pct","H97SOOHUInc>150kRCpctNotCompute"]
[{"$f":"VLOOKUP(DropDownList!$B$47,CntyQryCensus!$A$408:$FN$450,A$1)","v":"Grantham"},{"$f":"VLOOKUP(DropDownList!$B$47,CntyQryCensus!$A$408:$FN$450,B$1)","v":"0004212"},{"$f":"VLOOKUP(DropDownList!$B$47,CntyQryCensus!$A$408:$FN$450,C$1)","v":"31220"},{"$f":"VLOOKUP(DropDownList!$B$47,CntyQryCensus!$A$408:$FN$450,D$1)","v":2167},{"$f":"VLOOKUP(DropDownList!$B$47,CntyQryCensus!$A$408:$FN$450,E$1)","v":710},{"$f":"VLOOKUP(DropDownList!$B$47,CntyQryCensus!$A$408:$FN$450,F$1)","v":0},{"$f":"VLOOKUP(DropDownList!$B$47,CntyQryCensus!$A$408:$FN$450,G$1)","v":0},{"$f":"VLOOKUP(DropDownList!$B$47,CntyQryCensus!$A$408:$FN$450,H$1)","v":0},{"$f":"VLOOKUP(DropDownList!$B$47,CntyQryCensus!$A$408:$FN$450,I$1)","v":0},{"$f":"VLOOKUP(DropDownList!$B$47,CntyQryCensus!$A$408:$FN$450,J$1)","v":0},{"$f":"VLOOKUP(DropDownList!$B$47,CntyQryCensus!$A$408:$FN$450,K$1)","v":0},{"$f":"VLOOKUP(DropDownList!$B$47,CntyQryCensus!$A$408:$FN$450,L$1)","v":0},{"$f":"VLOOKUP(DropDownList!$B$47,CntyQryCensus!$A$408:$FN$450,M$1)","v":5},{"$f":"VLOOKUP(DropDownList!$B$47,CntyQryCensus!$A$408:$FN$450,N$1)","v":3},{"$f":"VLOOKUP(DropDownList!$B$47,CntyQryCensus!$A$408:$FN$450,O$1)","v":11},{"$f":"VLOOKUP(DropDownList!$B$47,CntyQryCensus!$A$408:$FN$450,P$1)","v":16},{"$f":"VLOOKUP(DropDownList!$B$47,CntyQryCensus!$A$408:$FN$450,Q$1)","v":20},{"$f":"VLOOKUP(DropDownList!$B$47,CntyQryCensus!$A$408:$FN$450,R$1)","v":43},{"$f":"VLOOKUP(DropDownList!$B$47,CntyQryCensus!$A$408:$FN$450,S$1)","v":89},{"$f":"VLOOKUP(DropDownList!$B$47,CntyQryCensus!$A$408:$FN$450,T$1)","v":139},{"$f":"VLOOKUP(DropDownList!$B$47,CntyQryCensus!$A$408:$FN$450,U$1)","v":79},{"$f":"VLOOKUP(DropDownList!$B$47,CntyQryCensus!$A$408:$FN$450,V$1)","v":76},{"$f":"VLOOKUP(DropDownList!$B$47,CntyQryCensus!$A$408:$FN$450,W$1)","v":81},{"$f":"VLOOKUP(DropDownList!$B$47,CntyQryCensus!$A$408:$FN$450,X$1)","v":69},{"$f":"VLOOKUP(DropDownList!$B$47,CntyQryCensus!$A$408:$FN$450,Y$1)","v":46},{"$f":"VLOOKUP(DropDownList!$B$47,CntyQryCensus!$A$408:$FN$450,Z$1)","v":26},{"$f":"VLOOKUP(DropDownList!$B$47,CntyQryCensus!$A$408:$FN$450,AA$1)","v":5},{"$f":"VLOOKUP(DropDownList!$B$47,CntyQryCensus!$A$408:$FN$450,AB$1)","v":2},{"$f":"VLOOKUP(DropDownList!$B$47,CntyQryCensus!$A$408:$FN$450,AC$1)","v":0},{"$f":"VLOOKUP(DropDownList!$B$47,CntyQryCensus!$A$408:$FN$450,AD$1)","v":159200},{"$f":"VLOOKUP(DropDownList!$B$47,CntyQryCensus!$A$408:$FN$450,AE$1)","v":816},{"$f":"VLOOKUP(DropDownList!$B$47,CntyQryCensus!$A$408:$FN$450,AF$1)","v":0},{"$f":"VLOOKUP(DropDownList!$B$47,CntyQryCensus!$A$408:$FN$450,AG$1)","v":0},{"$f":"VLOOKUP(DropDownList!$B$47,CntyQryCensus!$A$408:$FN$450,AH$1)","v":0},{"$f":"VLOOKUP(DropDownList!$B$47,CntyQryCensus!$A$408:$FN$450,AI$1)","v":0},{"$f":"VLOOKUP(DropDownList!$B$47,CntyQryCensus!$A$408:$FN$450,AJ$1)","v":0},{"$f":"VLOOKUP(DropDownList!$B$47,CntyQryCensus!$A$408:$FN$450,AK$1)","v":0},{"$f":"VLOOKUP(DropDownList!$B$47,CntyQryCensus!$A$408:$FN$450,AL$1)","v":10},{"$f":"VLOOKUP(DropDownList!$B$47,CntyQryCensus!$A$408:$FN$450,AM$1)","v":7},{"$f":"VLOOKUP(DropDownList!$B$47,CntyQryCensus!$A$408:$FN$450,AN$1)","v":6},{"$f":"VLOOKUP(DropDownList!$B$47,CntyQryCensus!$A$408:$FN$450,AO$1)","v":13},{"$f":"VLOOKUP(DropDownList!$B$47,CntyQryCensus!$A$408:$FN$450,AP$1)","v":19},{"$f":"VLOOKUP(DropDownList!$B$47,CntyQryCensus!$A$408:$FN$450,AQ$1)","v":22},{"$f":"VLOOKUP(DropDownList!$B$47,CntyQryCensus!$A$408:$FN$450,AR$1)","v":43},{"$f":"VLOOKUP(DropDownList!$B$47,CntyQryCensus!$A$408:$FN$450,AS$1)","v":97},{"$f":"VLOOKUP(DropDownList!$B$47,CntyQryCensus!$A$408:$FN$450,AT$1)","v":150},{"$f":"VLOOKUP(DropDownList!$B$47,CntyQryCensus!$A$408:$FN$450,AU$1)","v":91},{"$f":"VLOOKUP(DropDownList!$B$47,CntyQryCensus!$A$408:$FN$450,AV$1)","v":83},{"$f":"VLOOKUP(DropDownList!$B$47,CntyQryCensus!$A$408:$FN$450,AW$1)","v":98},{"$f":"VLOOKUP(DropDownList!$B$47,CntyQryCensus!$A$408:$FN$450,AX$1)","v":78},{"$f":"VLOOKUP(DropDownList!$B$47,CntyQryCensus!$A$408:$FN$450,AY$1)","v":57},{"$f":"VLOOKUP(DropDownList!$B$47,CntyQryCensus!$A$408:$FN$450,AZ$1)","v":28},{"$f":"VLOOKUP(DropDownList!$B$47,CntyQryCensus!$A$408:$FN$450,BA$1)","v":12},{"$f":"VLOOKUP(DropDownList!$B$47,CntyQryCensus!$A$408:$FN$450,BB$1)","v":2},{"$f":"VLOOKUP(DropDownList!$B$47,CntyQryCensus!$A$408:$FN$450,BC$1)","v":0},{"$f":"VLOOKUP(DropDownList!$B$47,CntyQryCensus!$A$408:$FN$450,BD$1)","v":161300},{"$f":"VLOOKUP(DropDownList!$B$47,CntyQryCensus!$A$408:$FN$450,BE$1)","v":710},{"$f":"VLOOKUP(DropDownList!$B$47,CntyQryCensus!$A$408:$FN$450,BF$1)","v":459},{"$f":"VLOOKUP(DropDownList!$B$47,CntyQryCensus!$A$408:$FN$450,BG$1)","v":0},{"$f":"VLOOKUP(DropDownList!$B$47,CntyQryCensus!$A$408:$FN$450,BH$1)","v":0},{"$f":"VLOOKUP(DropDownList!$B$47,CntyQryCensus!$A$408:$FN$450,BI$1)","v":2},{"$f":"VLOOKUP(DropDownList!$B$47,CntyQryCensus!$A$408:$FN$450,BJ$1)","v":0},{"$f":"VLOOKUP(DropDownList!$B$47,CntyQryCensus!$A$408:$FN$450,BK$1)","v":13},{"$f":"VLOOKUP(DropDownList!$B$47,CntyQryCensus!$A$408:$FN$450,BL$1)","v":19},{"$f":"VLOOKUP(DropDownList!$B$47,CntyQryCensus!$A$408:$FN$450,BM$1)","v":15},{"$f":"VLOOKUP(DropDownList!$B$47,CntyQryCensus!$A$408:$FN$450,BN$1)","v":19},{"$f":"VLOOKUP(DropDownList!$B$47,CntyQryCensus!$A$408:$FN$450,BO$1)","v":26},{"$f":"VLOOKUP(DropDownList!$B$47,CntyQryCensus!$A$408:$FN$450,BP$1)","v":113},{"$f":"VLOOKUP(DropDownList!$B$47,CntyQryCensus!$A$408:$FN$450,BQ$1)","v":113},{"$f":"VLOOKUP(DropDownList!$B$47,CntyQryCensus!$A$408:$FN$450,BR$1)","v":97},{"$f":"VLOOKUP(DropDownList!$B$47,CntyQryCensus!$A$408:$FN$450,BS$1)","v":25},{"$f":"VLOOKUP(DropDownList!$B$47,CntyQryCensus!$A$408:$FN$450,BT$1)","v":7},{"$f":"VLOOKUP(DropDownList!$B$47,CntyQryCensus!$A$408:$FN$450,BU$1)","v":10},{"$f":"VLOOKUP(DropDownList!$B$47,CntyQryCensus!$A$408:$FN$450,BV$1)","v":251},{"$f":"VLOOKUP(DropDownList!$B$47,CntyQryCensus!$A$408:$FN$450,BW$1)","v":0},{"$f":"VLOOKUP(DropDownList!$B$47,CntyQryCensus!$A$408:$FN$450,BX$1)","v":2},{"$f":"VLOOKUP(DropDownList!$B$47,CntyQryCensus!$A$408:$FN$450,BY$1)","v":2},{"$f":"VLOOKUP(DropDownList!$B$47,CntyQryCensus!$A$408:$FN$450,BZ$1)","v":5},{"$f":"VLOOKUP(DropDownList!$B$47,CntyQryCensus!$A$408:$FN$450,CA$1)","v":19},{"$f":"VLOOKUP(DropDownList!$B$47,CntyQryCensus!$A$408:$FN$450,CB$1)","v":22},{"$f":"VLOOKUP(DropDownList!$B$47,CntyQryCensus!$A$408:$FN$450,CC$1)","v":6},{"$f":"VLOOKUP(DropDownList!$B$47,CntyQryCensus!$A$408:$FN$450,CD$1)","v":59},{"$f":"VLOOKUP(DropDownList!$B$47,CntyQryCensus!$A$408:$FN$450,CE$1)","v":51},{"$f":"VLOOKUP(DropDownList!$B$47,CntyQryCensus!$A$408:$FN$450,CF$1)","v":38},{"$f":"VLOOKUP(DropDownList!$B$47,CntyQryCensus!$A$408:$FN$450,CG$1)","v":20},{"$f":"VLOOKUP(DropDownList!$B$47,CntyQryCensus!$A$408:$FN$450,CH$1)","v":19},{"$f":"VLOOKUP(DropDownList!$B$47,CntyQryCensus!$A$408:$FN$450,CI$1)","v":6},{"$f":"VLOOKUP(DropDownList!$B$47,CntyQryCensus!$A$408:$FN$450,CJ$1)","v":2},{"$f":"VLOOKUP(DropDownList!$B$47,CntyQryCensus!$A$408:$FN$450,CK$1)","v":1300},{"$f":"VLOOKUP(DropDownList!$B$47,CntyQryCensus!$A$408:$FN$450,CL$1)","v":521},{"$f":"VLOOKUP(DropDownList!$B$47,CntyQryCensus!$A$408:$FN$450,CM$1)","v":710},{"$f":"VLOOKUP(DropDownList!$B$47,CntyQryCensus!$A$408:$FN$450,CN$1)","v":459},{"$f":"VLOOKUP(DropDownList!$B$47,CntyQryCensus!$A$408:$FN$450,CO$1)","v":35},{"$f":"VLOOKUP(DropDownList!$B$47,CntyQryCensus!$A$408:$FN$450,CP$1)","v":51},{"$f":"VLOOKUP(DropDownList!$B$47,CntyQryCensus!$A$408:$FN$450,CQ$1)","v":79},{"$f":"VLOOKUP(DropDownList!$B$47,CntyQryCensus!$A$408:$FN$450,CR$1)","v":110},{"$f":"VLOOKUP(DropDownList!$B$47,CntyQryCensus!$A$408:$FN$450,CS$1)","v":71},{"$f":"VLOOKUP(DropDownList!$B$47,CntyQryCensus!$A$408:$FN$450,CT$1)","v":38},{"$f":"VLOOKUP(DropDownList!$B$47,CntyQryCensus!$A$408:$FN$450,CU$1)","v":18},{"$f":"VLOOKUP(DropDownList!$B$47,CntyQryCensus!$A$408:$FN$450,CV$1)","v":25},{"$f":"VLOOKUP(DropDownList!$B$47,CntyQryCensus!$A$408:$FN$450,CW$1)","v":29},{"$f":"VLOOKUP(DropDownList!$B$47,CntyQryCensus!$A$408:$FN$450,CX$1)","v":3},{"$f":"VLOOKUP(DropDownList!$B$47,CntyQryCensus!$A$408:$FN$450,CY$1)","v":251},{"$f":"VLOOKUP(DropDownList!$B$47,CntyQryCensus!$A$408:$FN$450,CZ$1)","v":95},{"$f":"VLOOKUP(DropDownList!$B$47,CntyQryCensus!$A$408:$FN$450,DA$1)","v":71},{"$f":"VLOOKUP(DropDownList!$B$47,CntyQryCensus!$A$408:$FN$450,DB$1)","v":32},{"$f":"VLOOKUP(DropDownList!$B$47,CntyQryCensus!$A$408:$FN$450,DC$1)","v":22},{"$f":"VLOOKUP(DropDownList!$B$47,CntyQryCensus!$A$408:$FN$450,DD$1)","v":2},{"$f":"VLOOKUP(DropDownList!$B$47,CntyQryCensus!$A$408:$FN$450,DE$1)","v":0},{"$f":"VLOOKUP(DropDownList!$B$47,CntyQryCensus!$A$408:$FN$450,DF$1)","v":6},{"$f":"VLOOKUP(DropDownList!$B$47,CntyQryCensus!$A$408:$FN$450,DG$1)","v":5},{"$f":"VLOOKUP(DropDownList!$B$47,CntyQryCensus!$A$408:$FN$450,DH$1)","v":14},{"$f":"VLOOKUP(DropDownList!$B$47,CntyQryCensus!$A$408:$FN$450,DI$1)","v":4},{"$f":"VLOOKUP(DropDownList!$B$47,CntyQryCensus!$A$408:$FN$450,DJ$1)","v":710},{"$f":"VLOOKUP(DropDownList!$B$47,CntyQryCensus!$A$408:$FN$450,DK$1)","v":25},{"$f":"VLOOKUP(DropDownList!$B$47,CntyQryCensus!$A$408:$FN$450,DL$1)","v":0},{"$f":"VLOOKUP(DropDownList!$B$47,CntyQryCensus!$A$408:$FN$450,DM$1)","v":0},{"$f":"VLOOKUP(DropDownList!$B$47,CntyQryCensus!$A$408:$FN$450,DN$1)","v":0},{"$f":"VLOOKUP(DropDownList!$B$47,CntyQryCensus!$A$408:$FN$450,DO$1)","v":0},{"$f":"VLOOKUP(DropDownList!$B$47,CntyQryCensus!$A$408:$FN$450,DP$1)","v":18},{"$f":"VLOOKUP(DropDownList!$B$47,CntyQryCensus!$A$408:$FN$450,DQ$1)","v":7},{"$f":"VLOOKUP(DropDownList!$B$47,CntyQryCensus!$A$408:$FN$450,DR$1)","v":14},{"$f":"VLOOKUP(DropDownList!$B$47,CntyQryCensus!$A$408:$FN$450,DS$1)","v":2},{"$f":"VLOOKUP(DropDownList!$B$47,CntyQryCensus!$A$408:$FN$450,DT$1)","v":0},{"$f":"VLOOKUP(DropDownList!$B$47,CntyQryCensus!$A$408:$FN$450,DU$1)","v":0},{"$f":"VLOOKUP(DropDownList!$B$47,CntyQryCensus!$A$408:$FN$450,DV$1)","v":0},{"$f":"VLOOKUP(DropDownList!$B$47,CntyQryCensus!$A$408:$FN$450,DW$1)","v":12},{"$f":"VLOOKUP(DropDownList!$B$47,CntyQryCensus!$A$408:$FN$450,DX$1)","v":0},{"$f":"VLOOKUP(DropDownList!$B$47,CntyQryCensus!$A$408:$FN$450,DY$1)","v":80},{"$f":"VLOOKUP(DropDownList!$B$47,CntyQryCensus!$A$408:$FN$450,DZ$1)","v":16},{"$f":"VLOOKUP(DropDownList!$B$47,CntyQryCensus!$A$408:$FN$450,EA$1)","v":23},{"$f":"VLOOKUP(DropDownList!$B$47,CntyQryCensus!$A$408:$FN$450,EB$1)","v":10},{"$f":"VLOOKUP(DropDownList!$B$47,CntyQryCensus!$A$408:$FN$450,EC$1)","v":0},{"$f":"VLOOKUP(DropDownList!$B$47,CntyQryCensus!$A$408:$FN$450,ED$1)","v":31},{"$f":"VLOOKUP(DropDownList!$B$47,CntyQryCensus!$A$408:$FN$450,EE$1)","v":0},{"$f":"VLOOKUP(DropDownList!$B$47,CntyQryCensus!$A$408:$FN$450,EF$1)","v":101},{"$f":"VLOOKUP(DropDownList!$B$47,CntyQryCensus!$A$408:$FN$450,EG$1)","v":52},{"$f":"VLOOKUP(DropDownList!$B$47,CntyQryCensus!$A$408:$FN$450,EH$1)","v":11},{"$f":"VLOOKUP(DropDownList!$B$47,CntyQryCensus!$A$408:$FN$450,EI$1)","v":15},{"$f":"VLOOKUP(DropDownList!$B$47,CntyQryCensus!$A$408:$FN$450,EJ$1)","v":6},{"$f":"VLOOKUP(DropDownList!$B$47,CntyQryCensus!$A$408:$FN$450,EK$1)","v":17},{"$f":"VLOOKUP(DropDownList!$B$47,CntyQryCensus!$A$408:$FN$450,EL$1)","v":0},{"$f":"VLOOKUP(DropDownList!$B$47,CntyQryCensus!$A$408:$FN$450,EM$1)","v":211},{"$f":"VLOOKUP(DropDownList!$B$47,CntyQryCensus!$A$408:$FN$450,EN$1)","v":84},{"$f":"VLOOKUP(DropDownList!$B$47,CntyQryCensus!$A$408:$FN$450,EO$1)","v":46},{"$f":"VLOOKUP(DropDownList!$B$47,CntyQryCensus!$A$408:$FN$450,EP$1)","v":38},{"$f":"VLOOKUP(DropDownList!$B$47,CntyQryCensus!$A$408:$FN$450,EQ$1)","v":26},{"$f":"VLOOKUP(DropDownList!$B$47,CntyQryCensus!$A$408:$FN$450,ER$1)","v":17},{"$f":"VLOOKUP(DropDownList!$B$47,CntyQryCensus!$A$408:$FN$450,ES$1)","v":0},{"$f":"VLOOKUP(DropDownList!$B$47,CntyQryCensus!$A$408:$FN$450,ET$1)","v":120},{"$f":"VLOOKUP(DropDownList!$B$47,CntyQryCensus!$A$408:$FN$450,EU$1)","v":75},{"$f":"VLOOKUP(DropDownList!$B$47,CntyQryCensus!$A$408:$FN$450,EV$1)","v":39},{"$f":"VLOOKUP(DropDownList!$B$47,CntyQryCensus!$A$408:$FN$450,EW$1)","v":4},{"$f":"VLOOKUP(DropDownList!$B$47,CntyQryCensus!$A$408:$FN$450,EX$1)","v":2},{"$f":"VLOOKUP(DropDownList!$B$47,CntyQryCensus!$A$408:$FN$450,EY$1)","v":0},{"$f":"VLOOKUP(DropDownList!$B$47,CntyQryCensus!$A$408:$FN$450,EZ$1)","v":0},{"$f":"VLOOKUP(DropDownList!$B$47,CntyQryCensus!$A$408:$FN$450,FA$1)","v":103},{"$f":"VLOOKUP(DropDownList!$B$47,CntyQryCensus!$A$408:$FN$450,FB$1)","v":80},{"$f":"VLOOKUP(DropDownList!$B$47,CntyQryCensus!$A$408:$FN$450,FC$1)","v":11},{"$f":"VLOOKUP(DropDownList!$B$47,CntyQryCensus!$A$408:$FN$450,FD$1)","v":6},{"$f":"VLOOKUP(DropDownList!$B$47,CntyQryCensus!$A$408:$FN$450,FE$1)","v":4},{"$f":"VLOOKUP(DropDownList!$B$47,CntyQryCensus!$A$408:$FN$450,FF$1)","v":2},{"$f":"VLOOKUP(DropDownList!$B$47,CntyQryCensus!$A$408:$FN$450,FG$1)","v":0},{"$f":"VLOOKUP(DropDownList!$B$47,CntyQryCensus!$A$408:$FN$450,FH$1)","v":56},{"$f":"VLOOKUP(DropDownList!$B$47,CntyQryCensus!$A$408:$FN$450,FI$1)","v":54},{"$f":"VLOOKUP(DropDownList!$B$47,CntyQryCensus!$A$408:$FN$450,FJ$1)","v":2},{"$f":"VLOOKUP(DropDownList!$B$47,CntyQryCensus!$A$408:$FN$450,FK$1)","v":0},{"$f":"VLOOKUP(DropDownList!$B$47,CntyQryCensus!$A$408:$FN$450,FL$1)","v":0},{"$f":"VLOOKUP(DropDownList!$B$47,CntyQryCensus!$A$408:$FN$450,FM$1)","v":0},{"$f":"VLOOKUP(DropDownList!$B$47,CntyQryCensus!$A$408:$FN$450,FN$1)","v":0}]
[]
[]
["Census 2000 SummaryFile3 Sample Data  -  SF3TownQry9HHIncomeByTenure"]
["NAME","LOGRECNO","COUNTY","TotalPop","HCT11OccHU","HCT11OwnOccHU","HCT11OOHUInc<5K","HCT11OOHUInc5to10K","HCT11OOHUInc10to15K","HCT11OOHUInc15to20K","HCT11OOHUInc20to25K","HCT11OOHUInc25to35K","HCT11OOHUInc35to50K","HCT11OOHUInc50to75K","HCT11OOHUInc75to100K","HCT11OOHUInc100to150K","HCT11OOHUInc>150K","HCT11RentOccHU","HCT11ROHUInc<5K","HCT11ROHUInc5to10K","HCT11ROHUInc10to15K","HCT11ROHUInc15to20K","HCT11ROHUInc20to25K","HCT11ROHUInc25to35K","HCT11ROHUInc35to50K","HCT11ROHUInc50to75K","HCT11ROHUInc75to100K","HCT11ROHUInc100to150K","HCT11ROHUInc>150K","HCT12MedHHInc","HCT12MedOwnOccHHInc","HCT12MedRentOccHHInc","Summary Level"]
[{"$f":"VLOOKUP(DropDownList!$B$47,CntyQryCensus!$A$459:$AG$501,A$1)","v":"Grantham"},{"$f":"VLOOKUP(DropDownList!$B$47,CntyQryCensus!$A$459:$AG$501,B$1)","v":"0004212"},{"$f":"VLOOKUP(DropDownList!$B$47,CntyQryCensus!$A$459:$AG$501,C$1)","v":"31220"},{"$f":"VLOOKUP(DropDownList!$B$47,CntyQryCensus!$A$459:$AG$501,D$1)","v":"Grantham town"},{"$f":"VLOOKUP(DropDownList!$B$47,CntyQryCensus!$A$459:$AG$501,E$1)","v":"019"},{"$f":"VLOOKUP(DropDownList!$B$47,CntyQryCensus!$A$459:$AG$501,F$1)","v":2167},{"$f":"VLOOKUP(DropDownList!$B$47,CntyQryCensus!$A$459:$AG$501,G$1)","v":925},{"$f":"VLOOKUP(DropDownList!$B$47,CntyQryCensus!$A$459:$AG$501,H$1)","v":816},{"$f":"VLOOKUP(DropDownList!$B$47,CntyQryCensus!$A$459:$AG$501,I$1)","v":15},{"$f":"VLOOKUP(DropDownList!$B$47,CntyQryCensus!$A$459:$AG$501,J$1)","v":10},{"$f":"VLOOKUP(DropDownList!$B$47,CntyQryCensus!$A$459:$AG$501,K$1)","v":9},{"$f":"VLOOKUP(DropDownList!$B$47,CntyQryCensus!$A$459:$AG$501,L$1)","v":12},{"$f":"VLOOKUP(DropDownList!$B$47,CntyQryCensus!$A$459:$AG$501,M$1)","v":32},{"$f":"VLOOKUP(DropDownList!$B$47,CntyQryCensus!$A$459:$AG$501,N$1)","v":62},{"$f":"VLOOKUP(DropDownList!$B$47,CntyQryCensus!$A$459:$AG$501,O$1)","v":124},{"$f":"VLOOKUP(DropDownList!$B$47,CntyQryCensus!$A$459:$AG$501,P$1)","v":229},{"$f":"VLOOKUP(DropDownList!$B$47,CntyQryCensus!$A$459:$AG$501,Q$1)","v":135},{"$f":"VLOOKUP(DropDownList!$B$47,CntyQryCensus!$A$459:$AG$501,R$1)","v":124},{"$f":"VLOOKUP(DropDownList!$B$47,CntyQryCensus!$A$459:$AG$501,S$1)","v":64},{"$f":"VLOOKUP(DropDownList!$B$47,CntyQryCensus!$A$459:$AG$501,T$1)","v":109},{"$f":"VLOOKUP(DropDownList!$B$47,CntyQryCensus!$A$459:$AG$501,U$1)","v":8},{"$f":"VLOOKUP(DropDownList!$B$47,CntyQryCensus!$A$459:$AG$501,V$1)","v":0},{"$f":"VLOOKUP(DropDownList!$B$47,CntyQryCensus!$A$459:$AG$501,W$1)","v":3},{"$f":"VLOOKUP(DropDownList!$B$47,CntyQryCensus!$A$459:$AG$501,X$1)","v":3},{"$f":"VLOOKUP(DropDownList!$B$47,CntyQryCensus!$A$459:$AG$501,Y$1)","v":7},{"$f":"VLOOKUP(DropDownList!$B$47,CntyQryCensus!$A$459:$AG$501,Z$1)","v":6},{"$f":"VLOOKUP(DropDownList!$B$47,CntyQryCensus!$A$459:$AG$501,AA$1)","v":23},{"$f":"VLOOKUP(DropDownList!$B$47,CntyQryCensus!$A$459:$AG$501,AB$1)","v":28},{"$f":"VLOOKUP(DropDownList!$B$47,CntyQryCensus!$A$459:$AG$501,AC$1)","v":27},{"$f":"VLOOKUP(DropDownList!$B$47,CntyQryCensus!$A$459:$AG$501,AD$1)","v":2},{"$f":"VLOOKUP(DropDownList!$B$47,CntyQryCensus!$A$459:$AG$501,AE$1)","v":2},{"$f":"VLOOKUP(DropDownList!$B$47,CntyQryCensus!$A$459:$AG$501,AF$1)","v":63207},{"$f":"VLOOKUP(DropDownList!$B$47,CntyQryCensus!$A$459:$AG$501,AG$1)","v":64342}]
[]
[]
[]
[]
[]
[{"$f":"VLOOKUP(DropDownList!$B$47,CntyQryCensus!$A$510:$DA$552,A$1)","v":"Grantham"}]
[]
[]
[]
[]
[]
[]
[]
["Census 2000 SummaryFile3 Sample Data - SF3TownQry10Disabil"]
["NAME","LOGRECNO","COUNTY","TotalPop","PCT026001-NonInstPop5yrs+","PCT026002-MaleNonInstPop5yrs+","PCT026003","PCT026004","PCT026005","PCT026006","PCT026007","PCT026008","PCT026009","PCT026010","PCT026011","PCT026012","PCT026013","PCT026014","PCT026015","PCT026016","PCT026017","PCT026018","PCT026019","PCT026020","PCT026021","PCT026022","PCT026023","PCT026024","PCT026025","PCT026026","PCT026027","PCT026028","PCT026029","PCT026030","PCT026031","PCT026032","PCT026033","PCT026034","PCT026035","PCT026036","PCT026037","PCT026038","PCT026039","PCT026040","PCT026041","PCT026042","PCT026043","PCT026044","PCT026045","PCT026046","PCT026047","PCT026048","PCT026049","PCT026050","PCT026051","PCT026052","PCT026053","PCT026054","PCT026055","PCT026056","PCT026057","PCT026058","PCT026059","PCT026060","PCT026061","PCT026062","PCT026063","PCT026064","PCT026065","PCT026066","PCT026067","PCT026068","PCT026069","PCT026070","PCT026071","PCT026072","PCT026073","PCT026074","PCT026075","PCT026076","PCT026077","PCT026078","PCT026079","PCT026080","PCT026081","PCT026082","PCT026083","PCT026084","PCT026085","PCT026086","PCT026087","PCT026088","PCT026089","PCT026090","PCT026091","PCT026092","PCT026093","PCT026094","PCT026095","PCT026096","PCT026097","PCT026098","PCT026099","PCT026100","PCT026101"]
[{"$f":"VLOOKUP(DropDownList!$B$47,CntyQryCensus!$A$510:$DA$552,A$1)","v":"Grantham"},{"$f":"VLOOKUP(DropDownList!$B$47,CntyQryCensus!$A$510:$DA$552,B$1)","v":"0000232"},{"$f":"VLOOKUP(DropDownList!$B$47,CntyQryCensus!$A$510:$DA$552,C$1)","v":"019"},{"$f":"VLOOKUP(DropDownList!$B$47,CntyQryCensus!$A$510:$DA$552,D$1)","v":2985},{"$f":"VLOOKUP(DropDownList!$B$47,CntyQryCensus!$A$510:$DA$552,E$1)","v":2959},{"$f":"VLOOKUP(DropDownList!$B$47,CntyQryCensus!$A$510:$DA$552,F$1)","v":2898},{"$f":"VLOOKUP(DropDownList!$B$47,CntyQryCensus!$A$510:$DA$552,G$1)","v":13},{"$f":"VLOOKUP(DropDownList!$B$47,CntyQryCensus!$A$510:$DA$552,H$1)","v":1},{"$f":"VLOOKUP(DropDownList!$B$47,CntyQryCensus!$A$510:$DA$552,I$1)","v":29},{"$f":"VLOOKUP(DropDownList!$B$47,CntyQryCensus!$A$510:$DA$552,J$1)","v":0},{"$f":"VLOOKUP(DropDownList!$B$47,CntyQryCensus!$A$510:$DA$552,K$1)","v":18},{"$f":"VLOOKUP(DropDownList!$B$47,CntyQryCensus!$A$510:$DA$552,L$1)","v":26},{"$f":"VLOOKUP(DropDownList!$B$47,CntyQryCensus!$A$510:$DA$552,M$1)","v":53},{"$f":"VLOOKUP(DropDownList!$B$47,CntyQryCensus!$A$510:$DA$552,N$1)","v":2932},{"$f":"VLOOKUP(DropDownList!$B$47,CntyQryCensus!$A$510:$DA$552,O$1)","v":539},{"$f":"VLOOKUP(DropDownList!$B$47,CntyQryCensus!$A$510:$DA$552,P$1)","v":192},{"$f":"VLOOKUP(DropDownList!$B$47,CntyQryCensus!$A$510:$DA$552,Q$1)","v":237},{"$f":"VLOOKUP(DropDownList!$B$47,CntyQryCensus!$A$510:$DA$552,R$1)","v":432},{"$f":"VLOOKUP(DropDownList!$B$47,CntyQryCensus!$A$510:$DA$552,S$1)","v":468},{"$f":"VLOOKUP(DropDownList!$B$47,CntyQryCensus!$A$510:$DA$552,T$1)","v":492},{"$f":"VLOOKUP(DropDownList!$B$47,CntyQryCensus!$A$510:$DA$552,U$1)","v":371},{"$f":"VLOOKUP(DropDownList!$B$47,CntyQryCensus!$A$510:$DA$552,V$1)","v":254},{"$f":"VLOOKUP(DropDownList!$B$47,CntyQryCensus!$A$510:$DA$552,W$1)","v":47.3},{"$f":"VLOOKUP(DropDownList!$B$47,CntyQryCensus!$A$510:$DA$552,X$1)","v":47},{"$f":"VLOOKUP(DropDownList!$B$47,CntyQryCensus!$A$510:$DA$552,Y$1)","v":47.6},{"$f":"VLOOKUP(DropDownList!$B$47,CntyQryCensus!$A$510:$DA$552,Z$1)","v":1249},{"$f":"VLOOKUP(DropDownList!$B$47,CntyQryCensus!$A$510:$DA$552,AA$1)","v":2985},{"$f":"VLOOKUP(DropDownList!$B$47,CntyQryCensus!$A$510:$DA$552,AB$1)","v":1602},{"$f":"VLOOKUP(DropDownList!$B$47,CntyQryCensus!$A$510:$DA$552,AC$1)","v":1383},{"$f":"VLOOKUP(DropDownList!$B$47,CntyQryCensus!$A$510:$DA$552,AD$1)","v":2.39},{"$f":"VLOOKUP(DropDownList!$B$47,CntyQryCensus!$A$510:$DA$552,AE$1)","v":919},{"$f":"VLOOKUP(DropDownList!$B$47,CntyQryCensus!$A$510:$DA$552,AF$1)","v":822},{"$f":"VLOOKUP(DropDownList!$B$47,CntyQryCensus!$A$510:$DA$552,AG$1)","v":97},{"$f":"VLOOKUP(DropDownList!$B$47,CntyQryCensus!$A$510:$DA$552,AH$1)","v":330},{"$f":"VLOOKUP(DropDownList!$B$47,CntyQryCensus!$A$510:$DA$552,AI$1)","v":2.74},{"$f":"VLOOKUP(DropDownList!$B$47,CntyQryCensus!$A$510:$DA$552,AJ$1)","v":4.1909090909090905},{"$f":"VLOOKUP(DropDownList!$B$47,CntyQryCensus!$A$510:$DA$552,AK$1)","v":2.4},{"$f":"VLOOKUP(DropDownList!$B$47,CntyQryCensus!$A$510:$DA$552,AL$1)","v":2.33},{"$f":"VLOOKUP(DropDownList!$B$47,CntyQryCensus!$A$510:$DA$552,AM$1)","v":1773},{"$f":"VLOOKUP(DropDownList!$B$47,CntyQryCensus!$A$510:$DA$552,AN$1)","v":1249},{"$f":"VLOOKUP(DropDownList!$B$47,CntyQryCensus!$A$510:$DA$552,AO$1)","v":1094},{"$f":"VLOOKUP(DropDownList!$B$47,CntyQryCensus!$A$510:$DA$552,AP$1)","v":155},{"$f":"VLOOKUP(DropDownList!$B$47,CntyQryCensus!$A$510:$DA$552,AQ$1)","v":524},{"$f":"VLOOKUP(DropDownList!$B$47,CntyQryCensus!$A$510:$DA$552,AR$1)","v":7},{"$f":"VLOOKUP(DropDownList!$B$47,CntyQryCensus!$A$510:$DA$552,AS$1)","v":0},{"$f":"VLOOKUP(DropDownList!$B$47,CntyQryCensus!$A$510:$DA$552,AT$1)","v":24},{"$f":"VLOOKUP(DropDownList!$B$47,CntyQryCensus!$A$510:$DA$552,AU$1)","v":7},{"$f":"VLOOKUP(DropDownList!$B$47,CntyQryCensus!$A$510:$DA$552,AV$1)","v":475},{"$f":"VLOOKUP(DropDownList!$B$47,CntyQryCensus!$A$510:$DA$552,AW$1)","v":11},{"$f":"VLOOKUP(DropDownList!$B$47,CntyQryCensus!$A$510:$DA$552,AX$1)","v":2.1},{"$f":"VLOOKUP(DropDownList!$B$47,CntyQryCensus!$A$510:$DA$552,AY$1)","v":4.3},{"$f":"VLOOKUP(DropDownList!$B$47,CntyQryCensus!$A$510:$DA$552,AZ$1)","v":1773},{"$f":"VLOOKUP(DropDownList!$B$47,CntyQryCensus!$A$510:$DA$552,BA$1)","v":1455},{"$f":"VLOOKUP(DropDownList!$B$47,CntyQryCensus!$A$510:$DA$552,BB$1)","v":304},{"$f":"VLOOKUP(DropDownList!$B$47,CntyQryCensus!$A$510:$DA$552,BC$1)","v":14},{"$f":"VLOOKUP(DropDownList!$B$47,CntyQryCensus!$A$510:$DA$552,BD$1)","v":0},{"$f":"VLOOKUP(DropDownList!$B$47,CntyQryCensus!$A$510:$DA$552,BE$1)","v":0},{"$f":"VLOOKUP(DropDownList!$B$47,CntyQryCensus!$A$510:$DA$552,BF$1)","v":0},{"$f":"VLOOKUP(DropDownList!$B$47,CntyQryCensus!$A$510:$DA$552,BG$1)","v":0},{"$f":"VLOOKUP(DropDownList!$B$47,CntyQryCensus!$A$510:$DA$552,BH$1)","v":0},{"$f":"VLOOKUP(DropDownList!$B$47,CntyQryCensus!$A$510:$DA$552,BI$1)","v":0},{"$f":"VLOOKUP(DropDownList!$B$47,CntyQryCensus!$A$510:$DA$552,BJ$1)","v":0},{"$f":"VLOOKUP(DropDownList!$B$47,CntyQryCensus!$A$510:$DA$552,BK$1)","v":0},{"$f":"VLOOKUP(DropDownList!$B$47,CntyQryCensus!$A$510:$DA$552,BL$1)","v":0},{"$f":"VLOOKUP(DropDownList!$B$47,CntyQryCensus!$A$510:$DA$552,BM$1)","v":0},{"$f":"VLOOKUP(DropDownList!$B$47,CntyQryCensus!$A$510:$DA$552,BN$1)","v":0},{"$f":"VLOOKUP(DropDownList!$B$47,CntyQryCensus!$A$510:$DA$552,BO$1)","v":0},{"$f":"VLOOKUP(DropDownList!$B$47,CntyQryCensus!$A$510:$DA$552,BP$1)","v":0},{"$f":"VLOOKUP(DropDownList!$B$47,CntyQryCensus!$A$510:$DA$552,BQ$1)","v":0},{"$f":"VLOOKUP(DropDownList!$B$47,CntyQryCensus!$A$510:$DA$552,BR$1)","v":0},{"$f":"VLOOKUP(DropDownList!$B$47,CntyQryCensus!$A$510:$DA$552,BS$1)","v":0},{"$f":"VLOOKUP(DropDownList!$B$47,CntyQryCensus!$A$510:$DA$552,BT$1)","v":0},{"$f":"VLOOKUP(DropDownList!$B$47,CntyQryCensus!$A$510:$DA$552,BU$1)","v":0},{"$f":"VLOOKUP(DropDownList!$B$47,CntyQryCensus!$A$510:$DA$552,BV$1)","v":0},{"$f":"VLOOKUP(DropDownList!$B$47,CntyQryCensus!$A$510:$DA$552,BW$1)","v":0},{"$f":"VLOOKUP(DropDownList!$B$47,CntyQryCensus!$A$510:$DA$552,BX$1)","v":0},{"$f":"VLOOKUP(DropDownList!$B$47,CntyQryCensus!$A$510:$DA$552,BY$1)","v":0},{"$f":"VLOOKUP(DropDownList!$B$47,CntyQryCensus!$A$510:$DA$552,BZ$1)","v":0},{"$f":"VLOOKUP(DropDownList!$B$47,CntyQryCensus!$A$510:$DA$552,CA$1)","v":0},{"$f":"VLOOKUP(DropDownList!$B$47,CntyQryCensus!$A$510:$DA$552,CB$1)","v":0},{"$f":"VLOOKUP(DropDownList!$B$47,CntyQryCensus!$A$510:$DA$552,CC$1)","v":0},{"$f":"VLOOKUP(DropDownList!$B$47,CntyQryCensus!$A$510:$DA$552,CD$1)","v":0},{"$f":"VLOOKUP(DropDownList!$B$47,CntyQryCensus!$A$510:$DA$552,CE$1)","v":0},{"$f":"VLOOKUP(DropDownList!$B$47,CntyQryCensus!$A$510:$DA$552,CF$1)","v":0},{"$f":"VLOOKUP(DropDownList!$B$47,CntyQryCensus!$A$510:$DA$552,CG$1)","v":0},{"$f":"VLOOKUP(DropDownList!$B$47,CntyQryCensus!$A$510:$DA$552,CH$1)","v":0},{"$f":"VLOOKUP(DropDownList!$B$47,CntyQryCensus!$A$510:$DA$552,CI$1)","v":0},{"$f":"VLOOKUP(DropDownList!$B$47,CntyQryCensus!$A$510:$DA$552,CJ$1)","v":0},{"$f":"VLOOKUP(DropDownList!$B$47,CntyQryCensus!$A$510:$DA$552,CK$1)","v":0},{"$f":"VLOOKUP(DropDownList!$B$47,CntyQryCensus!$A$510:$DA$552,CL$1)","v":0},{"$f":"VLOOKUP(DropDownList!$B$47,CntyQryCensus!$A$510:$DA$552,CM$1)","v":0},{"$f":"VLOOKUP(DropDownList!$B$47,CntyQryCensus!$A$510:$DA$552,CN$1)","v":0},{"$f":"VLOOKUP(DropDownList!$B$47,CntyQryCensus!$A$510:$DA$552,CO$1)","v":0},{"$f":"VLOOKUP(DropDownList!$B$47,CntyQryCensus!$A$510:$DA$552,CP$1)","v":0},{"$f":"VLOOKUP(DropDownList!$B$47,CntyQryCensus!$A$510:$DA$552,CQ$1)","v":0},{"$f":"VLOOKUP(DropDownList!$B$47,CntyQryCensus!$A$510:$DA$552,CR$1)","v":0},{"$f":"VLOOKUP(DropDownList!$B$47,CntyQryCensus!$A$510:$DA$552,CS$1)","v":0},{"$f":"VLOOKUP(DropDownList!$B$47,CntyQryCensus!$A$510:$DA$552,CT$1)","v":0},{"$f":"VLOOKUP(DropDownList!$B$47,CntyQryCensus!$A$510:$DA$552,CU$1)","v":0},{"$f":"VLOOKUP(DropDownList!$B$47,CntyQryCensus!$A$510:$DA$552,CV$1)","v":0},{"$f":"VLOOKUP(DropDownList!$B$47,CntyQryCensus!$A$510:$DA$552,CW$1)","v":0},{"$f":"VLOOKUP(DropDownList!$B$47,CntyQryCensus!$A$510:$DA$552,CX$1)","v":0},{"$f":"VLOOKUP(DropDownList!$B$47,CntyQryCensus!$A$510:$DA$552,CY$1)","v":0},{"$f":"VLOOKUP(DropDownList!$B$47,CntyQryCensus!$A$510:$DA$552,CZ$1)","v":0},{"$f":"VLOOKUP(DropDownList!$B$47,CntyQryCensus!$A$510:$DA$552,DA$1)","v":0}]
[]
[]
[]
[]
[{"$f":"VLOOKUP(DropDownList!$B$47,CntyQryCensus!$A$510:$DA$552,A$1)","v":"Grantham"}]
[]
[]
[]
["ACS",2,{"$f":"B105+1","v":3},{"$f":"C105+1","v":4},5,6,7,8,9,10,11,{"$f":"K105+1","v":12},13,14,15,{"$f":"O105+1","v":16},17,18,19,20,21,22,23,24,25,26,27,28,29,30,31,32,33,34,35,36,37,38,39,40,41,42,43,44,45,46,47,48,49,50,51,52,53,54,55,56,57,58,59,60,61,62,63,64,65,66,67,{"$f":"BO105+1","v":68},69,70,71,72,73,74,75,76,77,78,79,80,81,82,83,84,85,86,87,88,89,90,91,92,93,94,95,96,97,98,99,100,101,102,103,104,105,106,107,108,109,110,111,112,113,114,115,116,117,118,119,120,121,122,123,124,125]
["Househould Data (Housing Unit Type)"]
["NAME","TotalHU",{"$f":"\"MOE \"&B107","v":"MOE TotalHU"},"TotalOccHU",{"$f":"\"MOE \"&D107","v":"MOE TotalOccHU"},"TotalOwnerOccUn",{"$f":"\"MOE \"&F107","v":"MOE TotalOwnerOccUn"},"TotalRenterOccn",{"$f":"\"MOE \"&H107","v":"MOE TotalRenterOccn"},"TotalVacantUntis",{"$f":"\"MOE \"&J107","v":"MOE TotalVacantUntis"},"VacantUnitsForRent",{"$f":"\"MOE \"&L107","v":"MOE VacantUnitsForRent"},"VacantUnitRentedNotOcc",{"$f":"\"MOE \"&N107","v":"MOE VacantUnitRentedNotOcc"},"VacantUnitForSale",{"$f":"\"MOE \"&P107","v":"MOE VacantUnitForSale"},"VacantUnitSoldNotOcc",{"$f":"\"MOE \"&R107","v":"MOE VacantUnitSoldNotOcc"},"VacantUnitSeasonalRec",{"$f":"\"MOE \"&T107","v":"MOE VacantUnitSeasonalRec"},"TotalPopInHousingUnits",{"$f":"\"MOE \"&V107","v":"MOE TotalPopInHousingUnits"},"OwnerOccPopHousingUnits",{"$f":"\"MOE \"&X107","v":"MOE OwnerOccPopHousingUnits"},"RenterOccPopHousingUnits",{"$f":"\"MOE \"&Z107","v":"MOE RenterOccPopHousingUnits"},"TotalUntis",{"$f":"\"MOE \"&AB107","v":"MOE TotalUntis"},"TotalOwnerOccUnits",{"$f":"\"MOE \"&AD107","v":"MOE TotalOwnerOccUnits"},"SigFamOwnerOcc",{"$f":"\"MOE \"&AF107","v":"MOE SigFamOwnerOcc"},"MultiFamOwnerOcc",{"$f":"\"MOE \"&AH107","v":"MOE MultiFamOwnerOcc"},"MobileOwnerOcc",{"$f":"\"MOE \"&AJ107","v":"MOE MobileOwnerOcc"},"TotalRenterOccUnits",{"$f":"\"MOE \"&AL107","v":"MOE TotalRenterOccUnits"},"SigFamRenterOcc",{"$f":"\"MOE \"&AN107","v":"MOE SigFamRenterOcc"},"MultiFamRenterOcc",{"$f":"\"MOE \"&AP107","v":"MOE MultiFamRenterOcc"},"MobileRenterOcc",{"$f":"\"MOE \"&AR107","v":"MOE MobileRenterOcc"},"TotalSigFamilyUnits",{"$f":"\"MOE \"&AT107","v":"MOE TotalSigFamilyUnits"},"TotalMultiFamilyUnits",{"$f":"\"MOE \"&AV107","v":"MOE TotalMultiFamilyUnits"},"TotalMobileUnits",{"$f":"\"MOE \"&AX107","v":"MOE TotalMobileUnits"},"YrHouseBuilt2014Later",{"$f":"\"MOE \"&AZ107","v":"MOE YrHouseBuilt2014Later"},"YrHouseBuilt2010-2013",{"$f":"\"MOE \"&BB107","v":"MOE YrHouseBuilt2010-2013"},"YrHouseBuilt2000-2009",{"$f":"\"MOE \"&BD107","v":"MOE YrHouseBuilt2000-2009"},"YrHouseBuilt1990-1999",{"$f":"\"MOE \"&BF107","v":"MOE YrHouseBuilt1990-1999"},"YrHouseBuilt1980-1989",{"$f":"\"MOE \"&BH107","v":"MOE YrHouseBuilt1980-1989"},"YrHouseBuilt1970-1979",{"$f":"\"MOE \"&BJ107","v":"MOE YrHouseBuilt1970-1979"},"YrHouseBuilt1960-1969",{"$f":"\"MOE \"&BL107","v":"MOE YrHouseBuilt1960-1969"},"YrHouseBuilt1950-1959",{"$f":"\"MOE \"&BN107","v":"MOE YrHouseBuilt1950-1959"},"YrHouseBuilt1940-1949",{"$f":"\"MOE \"&BP107","v":"MOE YrHouseBuilt1940-1949"},"YrHouseBuilt1939orEarlier",{"$f":"\"MOE \"&BR107","v":"MOE YrHouseBuilt1939orEarlier"},"NoBedrooms",{"$f":"\"MOE \"&BT107","v":"MOE NoBedrooms"},"1Bedroom",{"$f":"\"MOE \"&BV107","v":"MOE 1Bedroom"},"2Bedroom",{"$f":"\"MOE \"&BX107","v":"MOE 2Bedroom"},"3Bedroom",{"$f":"\"MOE \"&BZ107","v":"MOE 3Bedroom"},"4+Bedroom",{"$f":"\"MOE \"&CB107","v":"MOE 4+Bedroom"}]
[{"$f":"VLOOKUP(DropDownList!$B$47,CntyQryCensus!$A$530:$AY$544,A$1)","v":"Grantham"},6317,221,5567,221,3163,298,2404,276,750,181,201,130,0,18,89,71,0,18,160,116,12894,92,7691,650,5203,637,5567,221,3163,298,2607,284,298,118.56221995222593,258,88.842557369765089,2404,276,291,117,2046,330.59643071273473,67,77.129760793094647,3105,302,2816,388.84958531545328,396,127.27922061357856,0,18,18,21,209,87,135,66,571,142,849,178,619,174,684,145,679,161,137,104,1149,227,2057,302,2180,280,794,194.19577750301369,171,50.089919145472777,81,79,36,74,28,76,114,30,114,142,91,44,40,134,119,76,105,14,132,142,84,108,151,154,137,30,701,207.10383868967759,300,141.01418368376991,207.27517941133232,197.81304304822774]
[]
["Disability Data"]
["NAME","TotalPop","PCT026001-NonInstPop5yrs+","PCT026002-MaleNonInstPop5yrs+","Male5To15NonInstitPop","Male5To15-NoDisability","Male5To15-1Disability","Male5To15-2orMoreDisabilities","Male16To20-NonInstitutionalPop","Male16To20-NoDisability","Male16To20-1Disability","Male16To20-2orMoreDisabilities","Male21To64-NonInstitutionalPop","Male21To64-NoDisability","Male21To64-1Disability","Male21To64-2orMoreDisabilities","Male65To74-NonInstitutionalPop","Male65To74-NoDisability","Male65To74-1Disability","Male65To74-2orMoreDisabilities","Male75Over-NonInstitutionalPop","Male75Over-NoDisability","Male75Over-1Disability","Male75Over-2orMoreDisabilities","PCT026002-FemaleNonInstPop5yrs+","FemaleNonInstPop5To15NonInstPop","Female5To15-NoDisability","Female5To15-1Disability","Female5To15-2orMoreDisabilities","FemaleNonInstPop16To20NonInstPop","Female16To20-NoDisability","Female16To20-1Disability","Female16To20-2orMoreDisabilities","FemaleNonInstPop21To64NonInstPop","Female21To64-NoDisability","Female21To64-1Disability","Female21To64-2orMoreDisabilities","FemaleNonInstPop65To74NonInstPop","Female65To74-NoDisability","Female65To74-1Disability","Female65To74-2orMoreDisabilities","FemaleNonInstPop75OverNonInstPop","Female75Over-NoDisability","Female75Over-1Disability","Female75Over-2orMoreDisabilities","Male5To15-SensoryDisability","Male16To20-SensoryDisability","Male21To64-SensoryDisability","Male65To74-SensoryDisability","Male75Over-SensoryDisability","Female5To15-SensoryDisability","Female16To20-SensoryDisability","Female21To64-SensoryDisability","Female65To74-SensoryDisability","Female75Over-SensoryDisability","Male5To15-PhysicalDisabil","Male16To20-PhysicalDisabil","Male21To64-PhysicalDisabil","Male65To74-PhysicalDisabil","Male75Over-PhysicalDisabil","Female5To15-PhysicalDisabil","Female16To20-PhysicalDisabil","Female21To64-PhysicalDisabil","Female65To74-PhysicalDisabil","Female75Over-PhysicalDisabil","Male5To15-MentalDisabil","Male16To20-MentalDisabil","Male21To64-MentalDisabil","Male65To74-MentalDisabil","Male75Over-MentalDisabil","Female5To15-MentalDisabil","Female16To20-MentalDisabil","Female21To64-MentalDisabil","Female65To74-MentalDisabil","Female75Over-MentalDisabil","Male5To15-SelfCareDisabil","Male16To20-SelfCareDisabil","Male21To64-SelfCareDisabil","Male65To74-SelfCareDisabil","Male75Over-SelfCareDisabil","Female5To15-SelfCareDisabil","Female16To20-SelfCareDisabil","Female21To64-SelfCareDisabil","Female65To74-SelfCareDisabil","Female75Over-SelfCareDisabil","Male16To20-GoOutsideHomeDisabil","Male21To64-GoOutsideHomeDisabil","Male65To74-GoOutsideHomeDisabil","Male75Over-GoOutsideHomeDisabil","Female16To20-GoOutsideHomeDisabil","Female21To64-GoOutsideHomeDisabil","Female65To74-GoOutsideHomeDisabil","Female75Over-GoOutsideHomeDisabil","Male16To20-EmploymentDisabil","Male21To64-EmploymentDisabil","Female16To20-EmploymentDisabil","Female21To64-EmploymentDisabil"]
[{"$f":"VLOOKUP(DropDownList!$B$47,CntyQryCensus!$A$530:$AY$544,A$1)","v":"Grantham"},2933,35,100,80.212218520621903,0,15.556349186104045,100,80.212218520621903,513,222.71955459725578,44,54.12947441089743,469,215.77998053572995,320,100.65783625729296,0,15.556349186104045,320,100.65783625729296,1428,154.67385040788247,176,104.7377677822093,1252,178.33115263464205,258,88.391176030189797,41,48.270073544588683,217,78.409183135650636,314,101.6070863670443,94,72.73238618387272,220,85.586213843118443,0,15.556349186104045,31,50.219518117958877,0,15.556349186104045,79,71.847059786744225,0,15.556349186104045,84,70.837842993699354,0,15.556349186104045,31,50.219518117958877,0,15.556349186104045,0,15.556349186104045,0,15.556349186104045,55,66.483080554378645,44,54.12947441089743,0,15.556349186104045,73,68.8839603971781,0,15.556349186104045,52,65.924198895398035,31,50.219518117958877,0,15.556349186104045,0,15.556349186104045,29,46.324939287601879,53,64.938432380216881,31,50.219518117958877,0,15.556349186104045,0,15.556349186104045,0,15.556349186104045,43,64.938432380216881,0,15.556349186104045,16,17.029386365926403,12,20.248456731316587,19,14.7648230602334,13,19,31,49,145,108,31,49,51,49,84,69,751,211]
[]
["Househould Income By Age"]
["NAME","TotalHouseholds",{"$f":"\"MOE \"&B115","v":"MOE TotalHouseholds"},"HHInc<10K",{"$f":"\"MOE \"&D115","v":"MOE HHInc<10K"},"HHInc10to15K",{"$f":"\"MOE \"&F115","v":"MOE HHInc10to15K"},"HHInc15to20K",{"$f":"\"MOE \"&H115","v":"MOE HHInc15to20K"},"HHInc20to25K",{"$f":"\"MOE \"&J115","v":"MOE HHInc20to25K"},"HHInc25to30K",{"$f":"\"MOE \"&L115","v":"MOE HHInc25to30K"},"HHInc30to35K",{"$f":"\"MOE \"&N115","v":"MOE HHInc30to35K"},"HHInc35to40K",{"$f":"\"MOE \"&P115","v":"MOE HHInc35to40K"},"HHInc40to45K",{"$f":"\"MOE \"&R115","v":"MOE HHInc40to45K"},"HHInc45to50K",{"$f":"\"MOE \"&T115","v":"MOE HHInc45to50K"},"HHInc50to60K",{"$f":"\"MOE \"&V115","v":"MOE HHInc50to60K"},"HHInc60to75K",{"$f":"\"MOE \"&X115","v":"MOE HHInc60to75K"},"HHInc75to100K",{"$f":"\"MOE \"&Z115","v":"MOE HHInc75to100K"},"HHInc100to125K",{"$f":"\"MOE \"&AB115","v":"MOE HHInc100to125K"},"HHInc125to150K",{"$f":"\"MOE \"&AD115","v":"MOE HHInc125to150K"},"HHInc150to200K",{"$f":"\"MOE \"&AF115","v":"MOE HHInc150to200K"},"HHInc>200K",{"$f":"\"MOE \"&AH115","v":"MOE HHInc>200K"},"TotalHH",{"$f":"\"MOE \"&AJ115","v":"MOE TotalHH"},"HHAgeHHUnder25yrs",{"$f":"\"MOE \"&AL115","v":"MOE HHAgeHHUnder25yrs"},"HHAgeHH<25HHInc<10K",{"$f":"\"MOE \"&AN115","v":"MOE HHAgeHH<25HHInc<10K"},"HHAgeHH<25HHInc10to15K",{"$f":"\"MOE \"&AP115","v":"MOE HHAgeHH<25HHInc10to15K"},"HHAgeHH<25HHInc15to20K",{"$f":"\"MOE \"&AR115","v":"MOE HHAgeHH<25HHInc15to20K"},"HHAgeHH<25HHInc20to25K",{"$f":"\"MOE \"&AT115","v":"MOE HHAgeHH<25HHInc20to25K"},"HHAgeHH<25HHInc25to30K",{"$f":"\"MOE \"&AV115","v":"MOE HHAgeHH<25HHInc25to30K"},"HHAgeHH<25HHInc30to35K",{"$f":"\"MOE \"&AX115","v":"MOE HHAgeHH<25HHInc30to35K"},"HHAgeHH<25HHInc35to40K",{"$f":"\"MOE \"&AZ115","v":"MOE HHAgeHH<25HHInc35to40K"},"HHAgeHH<25HHInc40to45K",{"$f":"\"MOE \"&BB115","v":"MOE HHAgeHH<25HHInc40to45K"},"HHAgeHH<25HHInc45to50K",{"$f":"\"MOE \"&BD115","v":"MOE HHAgeHH<25HHInc45to50K"},"HHAgeHH<25HHInc50to60K",{"$f":"\"MOE \"&BF115","v":"MOE HHAgeHH<25HHInc50to60K"},"HHAgeHH<25HHInc60to75K",{"$f":"\"MOE \"&BH115","v":"MOE HHAgeHH<25HHInc60to75K"},"HHAgeHH<25HHInc75to100K",{"$f":"\"MOE \"&BJ115","v":"MOE HHAgeHH<25HHInc75to100K"},"HHAgeHH<25HHInc100to125K",{"$f":"\"MOE \"&BL115","v":"MOE HHAgeHH<25HHInc100to125K"},"HHAgeHH<25HHInc125to150K",{"$f":"\"MOE \"&BN115","v":"MOE HHAgeHH<25HHInc125to150K"},"HHAgeHH<25HHInc150to200K",{"$f":"\"MOE \"&BP115","v":"MOE HHAgeHH<25HHInc150to200K"},"HHAge<25HHInc>200K",{"$f":"\"MOE \"&BR115","v":"MOE HHAge<25HHInc>200K"},"HHAgeHH25to44yrs",{"$f":"\"MOE \"&BT115","v":"MOE HHAgeHH25to44yrs"},"HHAgeHH25To44yrsHHInc<10K",{"$f":"\"MOE \"&BV115","v":"MOE HHAgeHH25To44yrsHHInc<10K"},"HHAgeHH25To44yrsHHInc10to15K",{"$f":"\"MOE \"&BX115","v":"MOE HHAgeHH25To44yrsHHInc10to15K"},"HHAgeHH25To44yrsHHInc15to20K",{"$f":"\"MOE \"&BZ115","v":"MOE HHAgeHH25To44yrsHHInc15to20K"},"HHAgeHH25To44yrsHHInc20to25K",{"$f":"\"MOE \"&CB115","v":"MOE HHAgeHH25To44yrsHHInc20to25K"},"HHAgeHH25To44yrsHHInc25to30K",{"$f":"\"MOE \"&CD115","v":"MOE HHAgeHH25To44yrsHHInc25to30K"},"HHAgeHH25To44yrsHHInc30to35K",{"$f":"\"MOE \"&CF115","v":"MOE HHAgeHH25To44yrsHHInc30to35K"},"HHAgeHH25To44yrsHHInc35to40K",{"$f":"\"MOE \"&CH115","v":"MOE HHAgeHH25To44yrsHHInc35to40K"},"HHAgeHH25To44yrsHHInc40to45K",{"$f":"\"MOE \"&CJ115","v":"MOE HHAgeHH25To44yrsHHInc40to45K"},"HHAgeHH25To44yrsHHInc45to50K",{"$f":"\"MOE \"&CL115","v":"MOE HHAgeHH25To44yrsHHInc45to50K"},"HHAgeHH25To44yrsHHInc50to60K",{"$f":"\"MOE \"&CN115","v":"MOE HHAgeHH25To44yrsHHInc50to60K"},"HHAgeHH25To44yrsHHInc60to75K",{"$f":"\"MOE \"&CP115","v":"MOE HHAgeHH25To44yrsHHInc60to75K"},"HHAgeHH25To44yrsHHInc75to100K",{"$f":"\"MOE \"&CR115","v":"MOE HHAgeHH25To44yrsHHInc75to100K"},"HHAgeHH25To44yrsHHInc100to125K",{"$f":"\"MOE \"&CT115","v":"MOE HHAgeHH25To44yrsHHInc100to125K"},"HHAgeHH25To44yrsHHInc125to150K",{"$f":"\"MOE \"&CV115","v":"MOE HHAgeHH25To44yrsHHInc125to150K"},"HHAgeHH25To44yrsHHInc150to200K",{"$f":"\"MOE \"&CX115","v":"MOE HHAgeHH25To44yrsHHInc150to200K"},"HHAge25To44yrsHHInc>200K",{"$f":"\"MOE \"&CZ115","v":"MOE HHAge25To44yrsHHInc>200K"},"HHAgeHH45To64yrs",{"$f":"\"MOE \"&DB115","v":"MOE HHAgeHH45To64yrs"},"HHAgeHH45To64yrsHHInc<10K",{"$f":"\"MOE \"&DD115","v":"MOE HHAgeHH45To64yrsHHInc<10K"},"HHAgeHH45To64yrsHHInc10to15K",{"$f":"\"MOE \"&DF115","v":"MOE HHAgeHH45To64yrsHHInc10to15K"},"HHAgeHH45To64yrsHHInc15to20K",{"$f":"\"MOE \"&DH115","v":"MOE HHAgeHH45To64yrsHHInc15to20K"},"HHAgeHH45To64yrsHHInc20to25K",{"$f":"\"MOE \"&DJ115","v":"MOE HHAgeHH45To64yrsHHInc20to25K"},"HHAgeHH45To64yrsHHInc25to30K",{"$f":"\"MOE \"&DL115","v":"MOE HHAgeHH45To64yrsHHInc25to30K"},"HHAgeHH45To64yrsHHInc30to35K",{"$f":"\"MOE \"&DN115","v":"MOE HHAgeHH45To64yrsHHInc30to35K"},"HHAgeHH45To64yrsHHInc35to40K",{"$f":"\"MOE \"&DP115","v":"MOE HHAgeHH45To64yrsHHInc35to40K"},"HHAgeHH45To64yrsHHInc40to45K",{"$f":"\"MOE \"&DR115","v":"MOE HHAgeHH45To64yrsHHInc40to45K"},"HHAgeHH45To64yrsHHInc45to50K",{"$f":"\"MOE \"&DT115","v":"MOE HHAgeHH45To64yrsHHInc45to50K"},"HHAgeHH45To64yrsHHInc50to60K",{"$f":"\"MOE \"&DV115","v":"MOE HHAgeHH45To64yrsHHInc50to60K"},"HHAgeHH45To64yrsHHInc60to75K",{"$f":"\"MOE \"&DX115","v":"MOE HHAgeHH45To64yrsHHInc60to75K"},"HHAgeHH45To64yrsHHInc75to100K",{"$f":"\"MOE \"&DZ115","v":"MOE HHAgeHH45To64yrsHHInc75to100K"},"HHAgeHH45To64yrsHHInc100to125K",{"$f":"\"MOE \"&EB115","v":"MOE HHAgeHH45To64yrsHHInc100to125K"},"HHAgeHH45To64yrsHHInc125to150K",{"$f":"\"MOE \"&ED115","v":"MOE HHAgeHH45To64yrsHHInc125to150K"},"HHAgeHH45To64yrsHHInc150to200K",{"$f":"\"MOE \"&EF115","v":"MOE HHAgeHH45To64yrsHHInc150to200K"},"HHAge45To64yrsHHInc>200K",{"$f":"\"MOE \"&EH115","v":"MOE HHAge45To64yrsHHInc>200K"},"HHAgeHH65yrsorOlder",{"$f":"\"MOE \"&EJ115","v":"MOE HHAgeHH65yrsorOlder"},"HHAgeHH65yrsorOlderHHInc<10K",{"$f":"\"MOE \"&EL115","v":"MOE HHAgeHH65yrsorOlderHHInc<10K"},"HHAgeHH65yrsorOlderHHInc10to15K",{"$f":"\"MOE \"&EN115","v":"MOE HHAgeHH65yrsorOlderHHInc10to15K"},"HHAgeHH65yrsorOlderHHInc15to20K",{"$f":"\"MOE \"&EP115","v":"MOE HHAgeHH65yrsorOlderHHInc15to20K"},"HHAgeHH65yrsorOlderHHInc20to25K",{"$f":"\"MOE \"&ER115","v":"MOE HHAgeHH65yrsorOlderHHInc20to25K"},"HHAgeHH65yrsorOlderHHInc25to30K",{"$f":"\"MOE \"&ET115","v":"MOE HHAgeHH65yrsorOlderHHInc25to30K"},"HHAgeHH65yrsorOlderHHInc30to35K",{"$f":"\"MOE \"&EV115","v":"MOE HHAgeHH65yrsorOlderHHInc30to35K"},"HHAgeHH65yrsorOlderHHInc35to40K",{"$f":"\"MOE \"&EX115","v":"MOE HHAgeHH65yrsorOlderHHInc35to40K"},"HHAgeHH65yrsorOlderHHInc40to45K",{"$f":"\"MOE \"&EZ115","v":"MOE HHAgeHH65yrsorOlderHHInc40to45K"},"HHAgeHH65yrsorOlderHHInc45to50K",{"$f":"\"MOE \"&FB115","v":"MOE HHAgeHH65yrsorOlderHHInc45to50K"},"HHAgeHH65yrsorOlderHHInc50to60K",{"$f":"\"MOE \"&FD115","v":"MOE HHAgeHH65yrsorOlderHHInc50to60K"},"HHAgeHH65yrsorOlderHHInc60to75K",{"$f":"\"MOE \"&FF115","v":"MOE HHAgeHH65yrsorOlderHHInc60to75K"},"HHAgeHH65yrsorOlderHHInc75to100K",{"$f":"\"MOE \"&FH115","v":"MOE HHAgeHH65yrsorOlderHHInc75to100K"},"HHAgeHH65yrsorOlderHHInc100to125K",{"$f":"\"MOE \"&FJ115","v":"MOE HHAgeHH65yrsorOlderHHInc100to125K"},"HHAgeHH65yrsorOlderHHInc125to150K",{"$f":"\"MOE \"&FL115","v":"MOE HHAgeHH65yrsorOlderHHInc125to150K"},"HHAgeHH65yrsorOlderHHInc150to200K",{"$f":"\"MOE \"&FN115","v":"MOE HHAgeHH65yrsorOlderHHInc150to200K"},"HHAge65yrsorOlderHHInc>200K",{"$f":"\"MOE \"&FP115","v":"MOE HHAge65yrsorOlderHHInc>200K"},"MedianHHInc",{"$f":"\"MOE \"&FR115","v":"MOE MedianHHInc"},"HH under 25 years",{"$f":"\"MOE \"&FT115","v":"MOE HH under 25 years"},"Householder 25 to 44 years",{"$f":"\"MOE \"&FV115","v":"MOE Householder 25 to 44 years"},"Householder 45 to 64 years",{"$f":"\"MOE \"&FX115","v":"MOE Householder 45 to 64 years"},"Householder 65 years and over",{"$f":"\"MOE \"&FZ115","v":"MOE Householder 65 years and over"}]
[{"$f":"VLOOKUP(DropDownList!$B$47,CntyQryCensus!$A$530:$AY$544,A$1)","v":"Grantham"},1153,125,0,11,0,11,34,38,0,11,51,52,12,18,0,11,81,79,26,33,43,34,152,90,138,68,258,109,153,91,65,37,140,72,1153,125,22,35,0,11,0,11,0,11,0,11,0,11,0,11,0,11,0,11,0,11,0,11,0,11,0,11,22,35,0,11,0,11,0,11,244,103,0,11,0,11,0,11,0,11,0,11,0,11,0,11,0,11,17,28,0,11,54,60,32,33,104,79,0,11,18,18,19,22,568,110,0,11,0,11,24,34,0,11,0,11,0,11,0,11,69,76,0,11,11,16,98,65,44,43,98,91,95,78,35,32,94,61,319,93,0,11,0,11,10,15,0,11,51,52,12,18,0,11,12,19,9,15,32,29,0,11,62,50,34,28,58,50,12,17,27,29,104962,25696,"-","**",103929,27844,112317,29836,80464,16967]
[]
["Number of Households by Income"]
["NAME","HHIncLessThn10k",{"$f":"\"MOE \"&B119","v":"MOE HHIncLessThn10k"},"HHInc10to15K",{"$f":"\"MOE \"&D119","v":"MOE HHInc10to15K"},"HHInc15to25K",{"$f":"\"MOE \"&F119","v":"MOE HHInc15to25K"},"HHInc25to35K",{"$f":"\"MOE \"&H119","v":"MOE HHInc25to35K"},"HHInc35to50K",{"$f":"\"MOE \"&J119","v":"MOE HHInc35to50K"},"HHInc50to75K",{"$f":"\"MOE \"&L119","v":"MOE HHInc50to75K"},"HHInc75to100K",{"$f":"\"MOE \"&N119","v":"MOE HHInc75to100K"},"HHInc100to150K",{"$f":"\"MOE \"&P119","v":"MOE HHInc100to150K"},"HHInc150to200K",{"$f":"\"MOE \"&R119","v":"MOE HHInc150to200K"},"HHIncOver200K",{"$f":"\"MOE \"&T119","v":"MOE HHIncOver200K"}]
[{"$f":"VLOOKUP(DropDownList!$B$47,CntyQryCensus!$A$530:$AY$544,A$1)","v":"Grantham"},0,11,0,11,34,39.560080889704963,63,55.027265968790417,107,86.319175158246267,195,96.208107766445551,138,68,411,141.99295757184581,65,37,140,72,null,null,null,null,null,null,null,null,null,null,null,null,null,null,null,null,null,null,null,null,null,null,null,null,null,null,null,null,null,null,null,null,null,null,null,null,null,null,null,null,null,null,null,null,null,null,null,null,null,null,null,null,null,71,144,93,171,118,131,100,66,49,292,122,333,132,307,97,186,97,22,28,12,20,0,16,null,null,null,null,null,null,null,null,null,null,null,null,null,null,"Charlestown",null,"Estimate","Margin Of Error",2310,107,null,null,133,93,71,53,340,130.81666560496029,246,117.00427342623003,368,162.24980739587951,625,179.74426277353055,307,97,208,100.96038827183659,12,20,0,16]
[]
["POVERTY DATA"]
["NAME","TotalPop",{"$f":"\"MOE \"&B123","v":"MOE TotalPop"},"Total Individuals living in Poverty",{"$f":"\"MOE \"&D123","v":"MOE Total Individuals living in Poverty"},"Under 5 yrs.",{"$f":"\"MOE \"&F123","v":"MOE Under 5 yrs."},"5 to 17 yrs.",{"$f":"\"MOE \"&H123","v":"MOE 5 to 17 yrs."},"18 to 64 yrs.",{"$f":"\"MOE \"&J123","v":"MOE 18 to 64 yrs."},"65 to 74 yrs.",{"$f":"\"MOE \"&L123","v":"MOE 65 to 74 yrs."},"75 yrs. & Over",{"$f":"\"MOE \"&N123","v":"MOE 75 yrs. & Over"},"Total Individuals  Not living Poverty",{"$f":"\"MOE \"&P123","v":"MOE Total Individuals  Not living Poverty"},"Under 5 yrs.",{"$f":"\"MOE \"&R123","v":"MOE Under 5 yrs."},"5 to 17 yrs.",{"$f":"\"MOE \"&T123","v":"MOE 5 to 17 yrs."},"18 to 64 yrs.",{"$f":"\"MOE \"&V123","v":"MOE 18 to 64 yrs."},"65 to 74 yrs.",{"$f":"\"MOE \"&X123","v":"MOE 65 to 74 yrs."},"75 yrs. & Over",{"$f":"\"MOE \"&Z123","v":"MOE 75 yrs. & Over"},"Total HH",{"$f":"\"MOE \"&AB123","v":"MOE Total HH"},"Total Households Below Poverty",{"$f":"\"MOE \"&AD123","v":"MOE Total Households Below Poverty"},"Family Households in Poverty",{"$f":"\"MOE \"&AF123","v":"MOE Family Households in Poverty"},"Married Couple Fam HH",{"$f":"\"MOE \"&AH123","v":"MOE Married Couple Fam HH"},"Other Family",{"$f":"\"MOE \"&AJ123","v":"MOE Other Family"},"Male Head of Family HH no wife",{"$f":"\"MOE \"&AL123","v":"MOE Male Head of Family HH no wife"},"Female Head of Family HH no husband",{"$f":"\"MOE \"&AN123","v":"MOE Female Head of Family HH no husband"},"Non-Family HH",{"$f":"\"MOE \"&AP123","v":"MOE Non-Family HH"},"Non-Family Male HH",{"$f":"\"MOE \"&AR123","v":"MOE Non-Family Male HH"},"Non-Family Female HH",{"$f":"\"MOE \"&AT123","v":"MOE Non-Family Female HH"},"Total Households at or Above Poverty",{"$f":"\"MOE \"&AV123","v":"MOE Total Households at or Above Poverty"},"Family Households above Poverty",{"$f":"\"MOE \"&AX123","v":"MOE Family Households above Poverty"},"Married Couple Fam HH",{"$f":"\"MOE \"&AZ123","v":"MOE Married Couple Fam HH"},"Other Family",{"$f":"\"MOE \"&BB123","v":"MOE Other Family"},"Male Head of Family HH no wife",{"$f":"\"MOE \"&BD123","v":"MOE Male Head of Family HH no wife"},"Female Head of Family HH no husband",{"$f":"\"MOE \"&BF123","v":"MOE Female Head of Family HH no husband"},"Non-Family HH",{"$f":"\"MOE \"&BH123","v":"MOE Non-Family HH"},"Non-Family Male HH",{"$f":"\"MOE \"&BJ123","v":"MOE Non-Family Male HH"},"Non-Family Female HH",{"$f":"\"MOE \"&BL123","v":"MOE Non-Family Female HH"},"Married Couple with Children Below Poverty",{"$f":"\"MOE \"&BN123","v":"MOE Married Couple with Children Below Poverty"},"Male HH with children below poverty",{"$f":"\"MOE \"&BP123","v":"MOE Male HH with children below poverty"},"Female HH with children below poverty",{"$f":"\"MOE \"&BR123","v":"MOE Female HH with children below poverty"},"Married Couple with Children At or Above Poverty",{"$f":"\"MOE \"&BT123","v":"MOE Married Couple with Children At or Above Poverty"},"Male HH with children at or above poverty",{"$f":"\"MOE \"&BV123","v":"MOE Male HH with children at or above poverty"},"Female HH with children at or above poverty",{"$f":"\"MOE \"&BX123","v":"MOE Female HH with children at or above poverty"}]
[{"$f":"VLOOKUP(DropDownList!$B$47,CntyQryCensus!$A$530:$AY$544,A$1)","v":"Grantham"},3404,16,190,102,11,64.288412641781719,11,35.608987629529715,161,103.00970828033637,7,17.029386365926403,0,15.556349186104045,3214,104,137,73.824115301166998,450,153.06534552275377,1893,268.01679051880313,338,101.23734488813898,1064,156.48642113614844,1553,140,120,86,27,26,11,17,16,19,7,12,9,14,93,85,50,61,43,61,1433,133,867,91,662,114,205,82,92,72,113,52,566,159,566,159,321,109,0,11,7,12,9,14,241,61,14,23,62,42]
[]
["Household Income By Tenure"]
["NAME","TotalOccHU",{"$f":"\"MOE \"&B127","v":"MOE TotalOccHU"},"OwnOccHU",{"$f":"\"MOE \"&D127","v":"MOE OwnOccHU"},"OOHUInc<5K",{"$f":"\"MOE \"&F127","v":"MOE OOHUInc<5K"},"OOHUInc5to10K",{"$f":"\"MOE \"&H127","v":"MOE OOHUInc5to10K"},"OOHUInc10to15K",{"$f":"\"MOE \"&J127","v":"MOE OOHUInc10to15K"},"OOHUInc15to20K",{"$f":"\"MOE \"&L127","v":"MOE OOHUInc15to20K"},"OOHUInc20to25K",{"$f":"\"MOE \"&N127","v":"MOE OOHUInc20to25K"},"OOHUInc25to35K",{"$f":"\"MOE \"&P127","v":"MOE OOHUInc25to35K"},"OOHUInc35to50K",{"$f":"\"MOE \"&R127","v":"MOE OOHUInc35to50K"},"OOHUInc50to75K",{"$f":"\"MOE \"&T127","v":"MOE OOHUInc50to75K"},"OOHUInc75to100K",{"$f":"\"MOE \"&V127","v":"MOE OOHUInc75to100K"},"OOHUInc100to150K",{"$f":"\"MOE \"&X127","v":"MOE OOHUInc100to150K"},"OOHUInc>150K",{"$f":"\"MOE \"&Z127","v":"MOE OOHUInc>150K"},"RentOccHU",{"$f":"\"MOE \"&AB127","v":"MOE RentOccHU"},"ROHUInc<5K",{"$f":"\"MOE \"&AD127","v":"MOE ROHUInc<5K"},"ROHUInc5to10K",{"$f":"\"MOE \"&AF127","v":"MOE ROHUInc5to10K"},"ROHUInc10to15K",{"$f":"\"MOE \"&AH127","v":"MOE ROHUInc10to15K"},"ROHUInc15to20K",{"$f":"\"MOE \"&AJ127","v":"MOE ROHUInc15to20K"},"ROHUInc20to25K",{"$f":"\"MOE \"&AL127","v":"MOE ROHUInc20to25K"},"ROHUInc25to35K",{"$f":"\"MOE \"&AN127","v":"MOE ROHUInc25to35K"},"ROHUInc35to50K",{"$f":"\"MOE \"&AP127","v":"MOE ROHUInc35to50K"},"ROHUInc50to75K",{"$f":"\"MOE \"&AR127","v":"MOE ROHUInc50to75K"},"ROHUInc75to100K",{"$f":"\"MOE \"&AT127","v":"MOE ROHUInc75to100K"},"ROHUInc100to150K",{"$f":"\"MOE \"&AV127","v":"MOE ROHUInc100to150K"},"ROHUInc>150K",{"$f":"\"MOE \"&AX127","v":"MOE ROHUInc>150K"},"Total OCC HUInc<5K",{"$f":"\"MOE \"&AZ127","v":"MOE Total OCC HUInc<5K"},"Total OCC HUInc5to10K",{"$f":"\"MOE \"&BB127","v":"MOE Total OCC HUInc5to10K"},"Total OCC HUInc10to15K",{"$f":"\"MOE \"&BD127","v":"MOE Total OCC HUInc10to15K"},"Total OCC HUInc15to20K",{"$f":"\"MOE \"&BF127","v":"MOE Total OCC HUInc15to20K"},"Total OCC HUInc20to25K",{"$f":"\"MOE \"&BH127","v":"MOE Total OCC HUInc20to25K"},"Total OCC HUInc25to35K",{"$f":"\"MOE \"&BJ127","v":"MOE Total OCC HUInc25to35K"},"Total OCC HUInc35to50K",{"$f":"\"MOE \"&BL127","v":"MOE Total OCC HUInc35to50K"},"Total OCC HUInc50to75K",{"$f":"\"MOE \"&BN127","v":"MOE Total OCC HUInc50to75K"},"Total OCC HUInc75to100K",{"$f":"\"MOE \"&BP127","v":"MOE Total OCC HUInc75to100K"},"Total OCC HUInc100to150K",{"$f":"\"MOE \"&BR127","v":"MOE Total OCC HUInc100to150K"},"Total OCC HUInc>150K",{"$f":"\"MOE \"&BT127","v":"MOE Total OCC HUInc>150K"},"MedHHInc",{"$f":"\"MOE \"&BV127","v":"MOE MedHHInc"},"MedOwnOccHHInc",{"$f":"\"MOE \"&BX127","v":"MOE MedOwnOccHHInc"},"MedRentOccHHInc",{"$f":"\"MOE \"&BZ127","v":"MOE MedRentOccHHInc"}]
[{"$f":"VLOOKUP(DropDownList!$B$47,CntyQryCensus!$A$530:$AY$544,A$1)","v":"Grantham"},1153,125,1050,136,0,11,0,11,0,11,34,38,0,11,63,55,90,80,195,99,119,69,344,104,205,76,103,80,0,11,0,11,0,11,0,11,0,11,0,11,17,28,0,11,19,23,67,72,0,11,0,15.556349186104045,0,15.556349186104045,0,15.556349186104045,34,39.560080889704963,0,15.556349186104045,63,56.089214649520635,107,84.758480401668365,195,99.609236519511583,138,72.73238618387272,411,126.49110640673517,205,76.791926658991954,104962,25696,103788,28731,121292,46567]
[]
["Population Data"]
["NAME","Total Population","MOE Total Population","Under 15 Years","MOE Under 15 yrs.","15 to 24 yrs.","MOE 15 to 24 yrs.","25 to 34 yrs.","MOE 25 to 34 yrs.","35 to 44 yrs.","MOE 35 to 44 yrs.","45 to 54 yrs.","MOE 45 to 54 yrs.","55 to 64 yrs.","MOE 55 to 64 yrs.","65 to 74 yrs.","MOE 65 to 74 yrs.","Over 74 yrs. ","MOE Over 74 yrs. ","TotalHH","MOE TotalHH","FamilyHH","MOE FamilyHH","MarriedFamilyHH","MOE MarriedFamilyHH","SingleFamilyHH","MOE SingleFamilyHH","Sfamily-MaleHH","MOE Sfamily-MaleHH","Sfamily-FemaleHH","MOE Sfamily-FemaleHH","NonFamilyHH","MOE NonFamilyHH","NonFamilyHH-LivingAlone","MOE NonFamilyHH-LivingAlone","NonFamilyHH-NotLivingAlone","MOE NonFamilyHH-NotLivingAlone","PopRaceWhite","MOE PopRaceWhite","PopRaceBlack","MOE PopRaceBlack","PopRaceAmerican Indian","MOE PopRaceAmerican Indian","PopRaceAsian &Pacific Is.","MOE PopRaceAsian &Pacific Is.","PopRaceOther*","MOE PopRaceOther*","PopRaceHispanic or Latino:","MOE PopRaceHispanic or Latino:","MedianAgeTotalPop","MOE MedianAgeTotalPop","MedianAgeMale","MOE MedianAgeMale","MedianAgeFemale","MOE MedianAgeFemale","AvgHHSizeTotal","MOE AvgHHSizeTotal","AvgHHSizeFamilyHH","MOE AvgHHSizeFamilyHH","AvgHHSizeNonFamilyHH","MOE AvgHHSizeNonFamilyHH"]
[{"$f":"VLOOKUP(DropDownList!$B$47,CntyQryCensus!$A$530:$AY$544,A$1)","v":"Grantham"},13028,23,2331,289.45811441381289,1479,235.78167867754271,1819,231.08872754853275,1361,246.05283985355666,1990,243.9549138672964,1865,258.64454372748713,1261,206.54055291879124,922,165.34811761855653,5567,221,3293,274,2320,247,973,219,179,81,794,223,2274,299,1837,288,437,141,12459,134,66,73,0,18,69,53.851648071345039,121,83.952367447261423,313,76,42.8,3.6,40.4,5.5,43.4,2.7,2.3161487336087658,9.3420316006919815E-2,3.0288490737928941,0.28712106681908589,1.2840809146877747,0.25713039663557724,null,null,null,null,null,null,null,null,null,null,null,null,null,null,null,null,null,null,null,33,160,112,164,81,200,109,64,70,127,82,116,79,190,121,116,81,181,91,117,75,55,49,139,96,91,59,73,63,84,72,null,null,null,null,null,null,null,null,null,null,null,null,null,null,null,null,null,null,null,null,null,null,null,null,null,null,null,null,null,null,null,null,null,null,"Charlestown",null,"Estimate","Margin Of Error",5019,17,1004,224.53062151964929,304,132.66876045248935,631,193.38303958723992,568,187.2378166931029,540,178.95809565370325,974,226.13933757752099,547,174.43623476789449,451,158.43295111813072]
[]
["Nativity and Prior Place of Residence"]
["NAME","TotalPop",{"$f":"\"MOE \"&B135","v":"MOE TotalPop"},"Native:",{"$f":"\"MOE \"&D135","v":"MOE Native:"},"NatBornInStateOfResidence",{"$f":"\"MOE \"&F135","v":"MOE NatBornInStateOfResidence"},"Born in other state in the United States:",{"$f":"\"MOE \"&H135","v":"MOE Born in other state in the United States:"},"Northeast",{"$f":"\"MOE \"&J135","v":"MOE Northeast"},"Midwest",{"$f":"\"MOE \"&L135","v":"MOE Midwest"},"South",{"$f":"\"MOE \"&N135","v":"MOE South"},"West",{"$f":"\"MOE \"&P135","v":"MOE West"},"Born outside the United States:",{"$f":"\"MOE \"&R135","v":"MOE Born outside the United States:"},"Puerto Rico",{"$f":"\"MOE \"&T135","v":"MOE Puerto Rico"},"U.S. Island Areas",{"$f":"\"MOE \"&V135","v":"MOE U.S. Island Areas"},"Born abroad of American parent(s)",{"$f":"\"MOE \"&X135","v":"MOE Born abroad of American parent(s)"},"Foreign born:",{"$f":"\"MOE \"&Z135","v":"MOE Foreign born:"},"Naturalized U.S. citizen",{"$f":"\"MOE \"&AB135","v":"MOE Naturalized U.S. citizen"},"Not a U.S. citizen",{"$f":"\"MOE \"&AD135","v":"MOE Not a U.S. citizen"},"CurrentResidenceTotal:",{"$f":"\"MOE \"&AF135","v":"MOE CurrentResidenceTotal:"},"SameHouse:",{"$f":"\"MOE \"&AH135","v":"MOE SameHouse:"},"DifferentHouse:",{"$f":"\"MOE \"&AJ135","v":"MOE DifferentHouse:"},"DiffHouseInNH",{"$f":"\"MOE \"&AL135","v":"MOE DiffHouseInNH"},"DiffHouseInNHSameCnty",{"$f":"\"MOE \"&AN135","v":"MOE DiffHouseInNHSameCnty"},"DiffHouseInNHDiffCnty",{"$f":"\"MOE \"&AP135","v":"MOE DiffHouseInNHDiffCnty"},"DiffHouseInDiffState",{"$f":"\"MOE \"&AR135","v":"MOE DiffHouseInDiffState"},"DiffHouseInElsewhere",{"$f":"\"MOE \"&AT135","v":"MOE DiffHouseInElsewhere"}]
[{"$f":"VLOOKUP(DropDownList!$B$47,CntyQryCensus!$A$530:$AY$544,A$1)","v":"Grantham"},13028,23,12776,120,7440,525,5265,554,3988,505,403,179,494,163,380,158,71,66,1,4,0,18,70,66,252,115,140,88,112,71,10983,515,1967,478.95511271934453,1545,442.32680226276136,1279,398,266,193,411,183,11,16]
[]
["School Enrollment - Education"]
["NAME","Total Pop 3 Years and Older","MOE Total Pop 3 Years and Older","SchEnrlPop3yrOver",{"$f":"\"MOE \"&D139","v":"MOE SchEnrlPop3yrOver"},"TotalEnrollNursy&Kinder",{"$f":"\"MOE \"&F139","v":"MOE TotalEnrollNursy&Kinder"},"NurserSchEnrl",{"$f":"\"MOE \"&H139","v":"MOE NurserSchEnrl"},"KinderSchEnrl",{"$f":"\"MOE \"&J139","v":"MOE KinderSchEnrl"},"ElemSchEnrl (1-8)",{"$f":"\"MOE \"&L139","v":"MOE ElemSchEnrl (1-8)"},"HighSchEnrl(9-12)",{"$f":"\"MOE \"&N139","v":"MOE HighSchEnrl(9-12)"},"TotalElementry&HSEnroll",{"$f":"\"MOE \"&P139","v":"MOE TotalElementry&HSEnroll"},"CollGradSchEnrl",{"$f":"\"MOE \"&R139","v":"MOE CollGradSchEnrl"},"PopNotEnrolled","MOE PopNotEnrolled","Pop25yrsOver",{"$f":"\"MOE \"&V139","v":"MOE Pop25yrsOver"},"EduAtain<9grd",{"$f":"\"MOE \"&X139","v":"MOE EduAtain<9grd"},"EduAtainHSnoDip",{"$f":"\"MOE \"&Z139","v":"MOE EduAtainHSnoDip"},"EduAtainHSgrad",{"$f":"\"MOE \"&AB139","v":"MOE EduAtainHSgrad"},"EduAtainCollNoDeg",{"$f":"\"MOE \"&AD139","v":"MOE EduAtainCollNoDeg"},"EduAtainAssocDeg",{"$f":"\"MOE \"&AF139","v":"MOE EduAtainAssocDeg"},"EduAtainBachDeg",{"$f":"\"MOE \"&AH139","v":"MOE EduAtainBachDeg"},"EduAtainGradProfDeg",{"$f":"\"MOE \"&AJ139","v":"MOE EduAtainGradProfDeg"}]
[{"$f":"VLOOKUP(DropDownList!$B$47,CntyQryCensus!$A$530:$AY$544,A$1)","v":"Grantham"},2545,288,746,178,48,29.068883707497267,12,13,36,26,230,60.21627686929839,199,117,429,131.58647346897021,269,75.133215025047349,1799,167,1759,151,0,26.944387170614959,74,43.069710934716056,451,82.365041127896006,236,61.603571325045756,133,44.10215414239989,374,79.93122043357026,491,91.515026088615627]
[]
["Occupied Owner Housing Value"]
["NAME","Estimate; Total:","Margin of Error; Total:","Estimate; Total: - Less than $10,000","Margin of Error; Total: - Less than $10,000","Estimate; Total: - $10,000 to $14,999","Margin of Error; Total: - $10,000 to $14,999","Estimate; Total: - $15,000 to $19,999","Margin of Error; Total: - $15,000 to $19,999","Estimate; Total: - $20,000 to $24,999","Margin of Error; Total: - $20,000 to $24,999","Estimate; Total: - $25,000 to $29,999","Margin of Error; Total: - $25,000 to $29,999","Estimate; Total: - $30,000 to $34,999","Margin of Error; Total: - $30,000 to $34,999","Estimate; Total: - $35,000 to $39,999","Margin of Error; Total: - $35,000 to $39,999","Estimate; Total: - $40,000 to $49,999","Margin of Error; Total: - $40,000 to $49,999","Estimate; Total: - $50,000 to $59,999","Margin of Error; Total: - $50,000 to $59,999","Estimate; Total: - $60,000 to $69,999","Margin of Error; Total: - $60,000 to $69,999","Estimate; Total: - $70,000 to $79,999","Margin of Error; Total: - $70,000 to $79,999","Estimate; Total: - $80,000 to $89,999","Margin of Error; Total: - $80,000 to $89,999","Estimate; Total: - $90,000 to $99,999","Margin of Error; Total: - $90,000 to $99,999","Estimate; Total: - $100,000 to $124,999","Margin of Error; Total: - $100,000 to $124,999","Estimate; Total: - $125,000 to $149,999","Margin of Error; Total: - $125,000 to $149,999","Estimate; Total: - $150,000 to $174,999","Margin of Error; Total: - $150,000 to $174,999","Estimate; Total: - $175,000 to $199,999","Margin of Error; Total: - $175,000 to $199,999","Estimate; Total: - $200,000 to $249,999","Margin of Error; Total: - $200,000 to $249,999","Estimate; Total: - $250,000 to $299,999","Margin of Error; Total: - $250,000 to $299,999","Estimate; Total: - $300,000 to $399,999","Margin of Error; Total: - $300,000 to $399,999","Estimate; Total: - $400,000 to $499,999","Margin of Error; Total: - $400,000 to $499,999","Estimate; Total: - $500,000 to $749,999","Margin of Error; Total: - $500,000 to $749,999","Estimate; Total: - $750,000 to $999,999","Margin of Error; Total: - $750,000 to $999,999","Estimate; Total: - $1,000,000 to $1,499,999","Margin of Error; Total: - $1,000,000 to $1,499,999","Estimate; Total: - $1,500,000 to $1,999,999","Margin of Error; Total: - $1,500,000 to $1,999,999","Estimate; Total: - $2,000,000 or more","Margin of Error; Total: - $2,000,000 or more","MedianOwnOCCHomeValue","MOE MedianOwnOCCHomeValue","OnwerOccHsU","MOE OnwerOccHsU","OwnerCosts>20PctHHInc","MOE OwnerCosts>20PctHHInc","OwnerCosts20to29.9PctHHInc","MOE OwnerCosts20to29.9PctHHInc","OwnerCosts<30PctHHInc","MOE OwnerCosts<30PctHHInc","OwnerCosts>30PctHHInc","MOE OwnerCosts>30PctHHInc","OwnerCosts30to34.9PctHHInc","MOE OwnerCosts30to34.9PctHHInc","OwnerCosts<35PctHHInc","MOE OwnerCosts<35PctHHInc","OwnerCosts>35PctHHInc","MOE OwnerCosts>35PctHHInc","OwnerCosts>50PctHHInc","MOE OwnerCosts>50PctHHInc","OwnerCostsPctNotcomputed","MOE OwnerCostsPctNotcomputed","OwnerOHUHhInc<20k","MOE OwnerOHUHhInc<20k","OwnerOHUHhInc<20kHCosts<20pct","MOE OwnerOHUHhInc<20kHCosts<20pct","OwnerOHUHhInc<20kHCosts20to29pct","MOE OwnerOHUHhInc<20kHCosts20to29pct","OwnerOHUHhInc>20kHCosts30pct","MOE OwnerOHUHhInc>20kHCosts30pct","OwnerOHUHhInc20kTo34999","MOE OwnerOHUHhInc20kTo34999","OwnerOHUHhInc20kTo34999HCosts<20pct","MOE OwnerOHUHhInc20kTo34999HCosts<20pct","OwnerOHUHhInc20kTo34999HCosts20to29pct","MOE OwnerOHUHhInc20kTo34999HCosts20to29pct","OwnerOHUHhInc20kTo34999HCosts30pct","MOE OwnerOHUHhInc20kTo34999HCosts30pct","OwnerOHUHhInc35kTo49999","MOE OwnerOHUHhInc35kTo49999","OwnerOHUHhInc35kTo49999HCosts<20pct","MOE OwnerOHUHhInc35kTo49999HCosts<20pct","OwnerOHUHhInc35kTo49999HCosts20to29pct","MOE OwnerOHUHhInc35kTo49999HCosts20to29pct","OwnerOHUHhInc35kTo49999HCosts30pct","MOE OwnerOHUHhInc35kTo49999HCosts30pct","OwnerOHUHhInc50kTo74999","MOE OwnerOHUHhInc50kTo74999","OwnerOHUHhInc50kTo74999HCosts<20pct","MOE OwnerOHUHhInc50kTo74999HCosts<20pct","OwnerOHUHhInc50kTo74999HCosts20to29pct","MOE OwnerOHUHhInc50kTo74999HCosts20to29pct","OwnerOHUHhInc50kTo74999HCosts30pct","MOE OwnerOHUHhInc50kTo74999HCosts30pct","OwnerOHUHhInc>75000","MOE OwnerOHUHhInc>75000","OwnerOHUHhInc>75000HCosts<20pct","MOE OwnerOHUHhInc>75000HCosts<20pct","OwnerOHUHhInc>75000HCosts20to29pct","MOE OwnerOHUHhInc>75000HCosts20to29pct","OwnerOHUHhInc>75000HCosts30pct","MOE OwnerOHUHhInc>75000HCosts30pct","ZeroOrNegativeIncome","MOE ZeroOrNegativeIncome"]
[{"$f":"VLOOKUP(DropDownList!$B$47,CntyQryCensus!$A$530:$AY$544,A$1)","v":"Grantham"},3297,239,14,21,30,29,0,17,31,30,16,25,10,16,12,19,10,12,70,47,133,66,119,63,248,107,182,98,471,129,614,175,627,179,342,89,228,97,92,50,26,28,11,17,0,17,0,17,0,17,11,18,0,17,137300,5643,3297,239,1144,193.80918450888751,946,205.57723609388273,2090,282.53141418256484,1162,224.00892839349061,257,102.41581909060729,2347,300.52121389346212,905,199.22600231897442,475,154.30489298787643,45,59.481089431852205,427,131,0,17,47,47,380,128,386,118,52,51,47,33,287,103,433,117,109,62,129,67,195,92,678,128,233,68,232,97,213,89,1328,198,750,162,491,148,87,56,45,57]
[]
["Occupied Rental Housing Value"]
["NAME","RntrOccHU","MOE RntrOccHU","RntrOccHUwRent","MOE RntrOccHUwRent","ROHUGRent<100","MOE ROHUGRent<100","ROHUGRent100to149","MOE ROHUGRent100to149","ROHUGRent150to199","MOE ROHUGRent150to199","ROHUGRent200to249","MOE ROHUGRent200to249","ROHUGRent250to299","MOE ROHUGRent250to299","ROHUGRent300to349","MOE ROHUGRent300to349","ROHUGRent350to399","MOE ROHUGRent350to399","ROHUGRent400to449","MOE ROHUGRent400to449","ROHUGRent450to499","MOE ROHUGRent450to499","ROHUGRent500to549","MOE ROHUGRent500to549","ROHUGRent550to599","MOE ROHUGRent550to599","ROHUGRent600to649","MOE ROHUGRent600to649","ROHUGRent650to699","MOE ROHUGRent650to699","ROHUGRent700to749","MOE ROHUGRent700to749","ROHUGRent750to799","MOE ROHUGRent750to799","ROHUGRent800to899","MOE ROHUGRent800to899","ROHUGRent900to999","MOE ROHUGRent900to999","ROHUGRent1000to1249","MOE ROHUGRent1000to1249","ROHUGRent1250to1499","MOE ROHUGRent1250to1499","ROHUGRent1500to1999","MOE ROHUGRent1500to1999","ROHUGRent$2,000 to $2,499","MOE ROHUGRent$2,000 to $2,499","ROHUGRent$2,500 to $2,999","MOE ROHUGRent$2,500 to $2,999","ROHUGRent$3,000 to $3,499","MOE ROHUGRent$3,000 to $3,499","ROHUGRent$3,500 or more","MOE ROHUGRent$3,500 or more","ROHUNoGRent","MOE ROHUNoGRent","MedianGrossRnt","MOE MedianGrossRnt","H73RenterOccHU","MOE H73RenterOccHU","H73ROHUHhInc<10k","MOE H73ROHUHhInc<10k","H73ROHUHhInc<10kRnt<20pct","MOE H73ROHUHhInc<10kRnt<20pct","H73ROHUHhInc<10kRnt20to25pct","MOE H73ROHUHhInc<10kRnt20to25pct","H73ROHUHhInc<10kRnt25to30pct","MOE H73ROHUHhInc<10kRnt25to30pct","H73ROHUHhInc<10kRnt30to35pct","MOE H73ROHUHhInc<10kRnt30to35pct","H73ROHUHhInc<10kRnt35to39.9","MOE H73ROHUHhInc<10kRnt35to39.9","H73ROHUHhInc<10kRnt40to49.9","MOE H73ROHUHhInc<10kRnt40to49.9","H73ROHUHhInc<10kRnt>50pct","MOE H73ROHUHhInc<10kRnt>50pct","H73ROHUHhInc<10kPctNotComput","MOE H73ROHUHhInc<10kPctNotComput","H73ROHUHhInc10to20k","MOE H73ROHUHhInc10to20k","H73ROHUHhInc10to20kRnt<20pct","MOE H73ROHUHhInc10to20kRnt<20pct","H73ROHUHhInc10to20kRnt20to25pct","MOE H73ROHUHhInc10to20kRnt20to25pct","H73ROHUHhInc10to20kRnt25to30pct","MOE H73ROHUHhInc10to20kRnt25to30pct","H73ROHUHhInc10to20kRnt30to35pct","MOE H73ROHUHhInc10to20kRnt30to35pct","H73ROHUHhInc10to20kRnt35to39.9","MOE H73ROHUHhInc10to20kRnt35to39.9","H73ROHUHhInc10to20kRnt40to49.9","MOE H73ROHUHhInc10to20kRnt40to49.9","H73ROHUHhInc10to20kRnt>50pct","MOE H73ROHUHhInc10to20kRnt>50pct","H73ROHUHhInc10to20kRntPctNC","MOE H73ROHUHhInc10to20kRntPctNC","H73ROHUHhInc20to34.9k","MOE H73ROHUHhInc20to34.9k","H73ROHUHhInc20to34.9kRnt<20pct","MOE H73ROHUHhInc20to34.9kRnt<20pct","H73ROHUHhInc20to34.9kRnt20to25pct","MOE H73ROHUHhInc20to34.9kRnt20to25pct","H73ROHUHhInc20to34.9kRnt25to30pct","MOE H73ROHUHhInc20to34.9kRnt25to30pct","H73ROHUHhInc20to34.9kRnt30to35pct","MOE H73ROHUHhInc20to34.9kRnt30to35pct","H73ROHUHhInc20to34.9kRnt35to39.9","MOE H73ROHUHhInc20to34.9kRnt35to39.9","H73ROHUHhInc20to34.9kRnt40to49.9","MOE H73ROHUHhInc20to34.9kRnt40to49.9","H73ROHUHhInc20to34.9kRnt>50pct","MOE H73ROHUHhInc20to34.9kRnt>50pct","H73ROHUHhInc20to34.9kRntPctNC","MOE H73ROHUHhInc20to34.9kRntPctNC","H73ROHUHhInc35to49.9k","MOE H73ROHUHhInc35to49.9k","H73ROHUHhInc35to49.9kRnt<20pct","MOE H73ROHUHhInc35to49.9kRnt<20pct","H73ROHUHhInc35to49.9kRnt20to25pct","MOE H73ROHUHhInc35to49.9kRnt20to25pct","H73ROHUHhInc35to49.9kRnt25to30pct","MOE H73ROHUHhInc35to49.9kRnt25to30pct","H73ROHUHhInc35to49.9kRnt30to35pct","MOE H73ROHUHhInc35to49.9kRnt30to35pct","H73ROHUHhInc35to49.9kRnt35to39.9","MOE H73ROHUHhInc35to49.9kRnt35to39.9","H73ROHUHhInc35to49.9kRnt40to49.9","MOE H73ROHUHhInc35to49.9kRnt40to49.9","H73ROHUHhInc35to49.9kRnt>50pct","MOE H73ROHUHhInc35to49.9kRnt>50pct","H73ROHUHhInc35to49.9kRntPctNC","MOE H73ROHUHhInc35to49.9kRntPctNC","H73ROHUHhInc50to74.9k","MOE H73ROHUHhInc50to74.9k","H73ROHUHhInc50to74.9kRnt<20pct","MOE H73ROHUHhInc50to74.9kRnt<20pct","H73ROHUHhInc50to74.9kRnt20to25pct","MOE H73ROHUHhInc50to74.9kRnt20to25pct","H73ROHUHhInc50to74.9kRnt25to30pct","MOE H73ROHUHhInc50to74.9kRnt25to30pct","H73ROHUHhInc50to74.9kRnt30to35pct","MOE H73ROHUHhInc50to74.9kRnt30to35pct","H73ROHUHhInc50to74.9kRnt35to39.9","MOE H73ROHUHhInc50to74.9kRnt35to39.9","H73ROHUHhInc50to74.9kRnt40to49.9","MOE H73ROHUHhInc50to74.9kRnt40to49.9","H73ROHUHhInc50to74.9kRnt>50pct","MOE H73ROHUHhInc50to74.9kRnt>50pct","H73ROHUHhInc50to74.9kRntPctNC","MOE H73ROHUHhInc50to74.9kRntPctNC","H73ROHUHhInc75to99.9k","MOE H73ROHUHhInc75to99.9k","H73ROHUHhInc75to99.9kRnt<20pct","MOE H73ROHUHhInc75to99.9kRnt<20pct","H73ROHUHhInc75to99.9kRnt20to25pct","MOE H73ROHUHhInc75to99.9kRnt20to25pct","H73ROHUHhInc75to99.9kRnt25to30pct","MOE H73ROHUHhInc75to99.9kRnt25to30pct","H73ROHUHhInc75to99.9kRnt30to35pct","MOE H73ROHUHhInc75to99.9kRnt30to35pct","H73ROHUHhInc75to99.9kRnt35to39.9","MOE H73ROHUHhInc75to99.9kRnt35to39.9","H73ROHUHhInc75to99.9kRnt40to49.9","MOE H73ROHUHhInc75to99.9kRnt40to49.9","H73ROHUHhInc75to99.9kRnt>50pct","MOE H73ROHUHhInc75to99.9kRnt>50pct","H73ROHUHhInc75to99.9kRntPctNC","MOE H73ROHUHhInc75to99.9kRntPctNC","H73ROHUHhInc>100k","MOE H73ROHUHhInc>100k","H73ROHUHhInc>100kRnt<20pct","MOE H73ROHUHhInc>100kRnt<20pct","H73ROHUHhInc>100kRnt20to25pct","MOE H73ROHUHhInc>100kRnt20to25pct","H73ROHUHhInc>100kRnt25to30pct","MOE H73ROHUHhInc>100kRnt25to30pct","H73ROHUHhInc>100kRnt30to35pct","MOE H73ROHUHhInc>100kRnt30to35pct","H73ROHUHhInc>100kRnt35to39.9","MOE H73ROHUHhInc>100kRnt35to39.9","H73ROHUHhInc>100kRnt40to49.9","MOE H73ROHUHhInc>100kRnt40to49.9","H73ROHUHhInc>100kRnt>50pct","MOE H73ROHUHhInc>100kRnt>50pct","H73ROHUHhInc>100kRntPctNC","MOE H73ROHUHhInc>100kRntPctNC"]
[null,2404,276,2354,275,9,15,0,18,19,30,191,130,43,49,73,66,46,30,54,68,18,14,71,53,84,62,75,55,46,47,138,87,133,90,288,103,234,110,696,159,66,61,70,56,0,18,0,18,0,18,0,18,50,37,861,53,2404,276,269,155,9,15,0,18,15,25,82,104,7,11,0,18,39,31,117,99,402,137,0,18,35,47,57,49,36,28,49,51,32,38,193,76,0,18,599,160,20,25,28,26,42,30,134,81,87,59,127,78,131,92,30,29,478,180,46,38,97,63,163,80,119,93,42,55,0,18,0,18,11,19,418,170,270,160,122,66,26,23,0,18,0,18,0,18,0,18,0,18,136,103,105,92,15,25,7,13,0,18,0,18,0,18,0,18,9,15,102,83,102,83,0,18,0,18,0,18,0,18,0,18,0,18,0,18]
[]
[]
[]
[]
[]
["Occupied Rental Housing Cost Burdern All Incomes"]
["NAME","RntrOccHU","MOE RntrOccHU","RntrOccHUwRent","MOE RntrOccHUwRent","ROHUGRent<100","MOE ROHUGRent<100","ROHUGRent100to149","MOE ROHUGRent100to149","ROHUGRent150to199","MOE ROHUGRent150to199","ROHUGRent200to249","MOE ROHUGRent200to249","ROHUGRent250to299","MOE ROHUGRent250to299","ROHUGRent300to349","MOE ROHUGRent300to349","ROHUGRent350to399","MOE ROHUGRent350to399","ROHUGRent400to449","MOE ROHUGRent400to449","ROHUGRent450to499","MOE ROHUGRent450to499","ROHUGRent500to549","MOE ROHUGRent500to549","ROHUGRent550to599","MOE ROHUGRent550to599","ROHUGRent600to649","MOE ROHUGRent600to649","ROHUGRent650to699","MOE ROHUGRent650to699","ROHUGRent700to749","MOE ROHUGRent700to749","ROHUGRent750to799","MOE ROHUGRent750to799","ROHUGRent800to899","MOE ROHUGRent800to899","ROHUGRent900to999","MOE ROHUGRent900to999","ROHUGRent1000to1249","MOE ROHUGRent1000to1249","ROHUGRent1250to1499","MOE ROHUGRent1250to1499","ROHUGRent1500to1999","MOE ROHUGRent1500to1999","ROHUGRent2000-2499","MOE ROHUGRent2000-2499","ROHUGRent2500-2999","MOE ROHUGRent2500-2999","ROHUGRent3000-3499","MOE ROHUGRent3000-3499","ROHUGRent3500<","MOE ROHUGRent3500<","ROHUNoGRent","MOE ROHUNoGRent","MedianGrossRnt","MOE MedianGrossRnt","H73RenterOccHU","MOE H73RenterOccHU","H73ROHUHhInc<10k","MOE H73ROHUHhInc<10k","H73ROHUHhInc<10kRnt<20pct","MOE H73ROHUHhInc<10kRnt<20pct","H73ROHUHhInc<10kRnt20to25pct","MOE H73ROHUHhInc<10kRnt20to25pct","H73ROHUHhInc<10kRnt25to30pct","MOE H73ROHUHhInc<10kRnt25to30pct","H73ROHUHhInc<10kRnt30to35pct","MOE H73ROHUHhInc<10kRnt30to35pct","H73ROHUHhInc<10kRnt35to39.9","MOE H73ROHUHhInc<10kRnt35to39.9","H73ROHUHhInc<10kRnt40to49.9","MOE H73ROHUHhInc<10kRnt40to49.9","H73ROHUHhInc<10kRnt>50pct","MOE H73ROHUHhInc<10kRnt>50pct","H73ROHUHhInc<10kPctNotComput","MOE H73ROHUHhInc<10kPctNotComput","H73ROHUHhInc10to20k","MOE H73ROHUHhInc10to20k","H73ROHUHhInc10to20kRnt<20pct","MOE H73ROHUHhInc10to20kRnt<20pct","H73ROHUHhInc10to20kRnt20to25pct","MOE H73ROHUHhInc10to20kRnt20to25pct","H73ROHUHhInc10to20kRnt25to30pct","MOE H73ROHUHhInc10to20kRnt25to30pct","H73ROHUHhInc10to20kRnt30to35pct","MOE H73ROHUHhInc10to20kRnt30to35pct","H73ROHUHhInc10to20kRnt35to39.9","MOE H73ROHUHhInc10to20kRnt35to39.9","H73ROHUHhInc10to20kRnt40to49.9","MOE H73ROHUHhInc10to20kRnt40to49.9","H73ROHUHhInc10to20kRnt>50pct","MOE H73ROHUHhInc10to20kRnt>50pct","H73ROHUHhInc10to20kRntPctNC","MOE H73ROHUHhInc10to20kRntPctNC","H73ROHUHhInc20to34.9k","MOE H73ROHUHhInc20to34.9k","H73ROHUHhInc20to34.9kRnt<20pct","MOE H73ROHUHhInc20to34.9kRnt<20pct","H73ROHUHhInc20to34.9kRnt20to25pct","MOE H73ROHUHhInc20to34.9kRnt20to25pct","H73ROHUHhInc20to34.9kRnt25to30pct","MOE H73ROHUHhInc20to34.9kRnt25to30pct","H73ROHUHhInc20to34.9kRnt30to35pct","MOE H73ROHUHhInc20to34.9kRnt30to35pct","H73ROHUHhInc20to34.9kRnt35to39.9","MOE H73ROHUHhInc20to34.9kRnt35to39.9","H73ROHUHhInc20to34.9kRnt40to49.9","MOE H73ROHUHhInc20to34.9kRnt40to49.9","H73ROHUHhInc20to34.9kRnt>50pct","MOE H73ROHUHhInc20to34.9kRnt>50pct","H73ROHUHhInc20to34.9kRntPctNC","MOE H73ROHUHhInc20to34.9kRntPctNC","H73ROHUHhInc35to49.9k","MOE H73ROHUHhInc35to49.9k","H73ROHUHhInc35to49.9kRnt<20pct","MOE H73ROHUHhInc35to49.9kRnt<20pct","H73ROHUHhInc35to49.9kRnt20to25pct","MOE H73ROHUHhInc35to49.9kRnt20to25pct","H73ROHUHhInc35to49.9kRnt25to30pct","MOE H73ROHUHhInc35to49.9kRnt25to30pct","H73ROHUHhInc35to49.9kRnt30to35pct","MOE H73ROHUHhInc35to49.9kRnt30to35pct","H73ROHUHhInc35to49.9kRnt35to39.9","MOE H73ROHUHhInc35to49.9kRnt35to39.9","H73ROHUHhInc35to49.9kRnt40to49.9","MOE H73ROHUHhInc35to49.9kRnt40to49.9","H73ROHUHhInc35to49.9kRnt>50pct","MOE H73ROHUHhInc35to49.9kRnt>50pct","H73ROHUHhInc35to49.9kRntPctNC","MOE H73ROHUHhInc35to49.9kRntPctNC","H73ROHUHhInc50to74.9k","MOE H73ROHUHhInc50to74.9k","H73ROHUHhInc50to74.9kRnt<20pct","MOE H73ROHUHhInc50to74.9kRnt<20pct","H73ROHUHhInc50to74.9kRnt20to25pct","MOE H73ROHUHhInc50to74.9kRnt20to25pct","H73ROHUHhInc50to74.9kRnt25to30pct","MOE H73ROHUHhInc50to74.9kRnt25to30pct","H73ROHUHhInc50to74.9kRnt30to35pct","MOE H73ROHUHhInc50to74.9kRnt30to35pct","H73ROHUHhInc50to74.9kRnt35to39.9","MOE H73ROHUHhInc50to74.9kRnt35to39.9","H73ROHUHhInc50to74.9kRnt40to49.9","MOE H73ROHUHhInc50to74.9kRnt40to49.9","H73ROHUHhInc50to74.9kRnt>50pct","MOE H73ROHUHhInc50to74.9kRnt>50pct","H73ROHUHhInc50to74.9kRntPctNC","MOE H73ROHUHhInc50to74.9kRntPctNC","H73ROHUHhInc75to99.9k","MOE H73ROHUHhInc75to99.9k","H73ROHUHhInc75to99.9kRnt<20pct","MOE H73ROHUHhInc75to99.9kRnt<20pct","H73ROHUHhInc75to99.9kRnt20to25pct","MOE H73ROHUHhInc75to99.9kRnt20to25pct","H73ROHUHhInc75to99.9kRnt25to30pct","MOE H73ROHUHhInc75to99.9kRnt25to30pct","H73ROHUHhInc75to99.9kRnt30to35pct","MOE H73ROHUHhInc75to99.9kRnt30to35pct","H73ROHUHhInc75to99.9kRnt35to39.9","MOE H73ROHUHhInc75to99.9kRnt35to39.9","H73ROHUHhInc75to99.9kRnt40to49.9","MOE H73ROHUHhInc75to99.9kRnt40to49.9","H73ROHUHhInc75to99.9kRnt>50pct","MOE H73ROHUHhInc75to99.9kRnt>50pct","H73ROHUHhInc75to99.9kRntPctNC","MOE H73ROHUHhInc75to99.9kRntPctNC","H73ROHUHhInc>100k","MOE H73ROHUHhInc>100k","H73ROHUHhInc>100kRnt<20pct","MOE H73ROHUHhInc>100kRnt<20pct","H73ROHUHhInc>100kRnt20to25pct","MOE H73ROHUHhInc>100kRnt20to25pct","H73ROHUHhInc>100kRnt25to30pct","MOE H73ROHUHhInc>100kRnt25to30pct","H73ROHUHhInc>100kRnt30to35pct","MOE H73ROHUHhInc>100kRnt30to35pct","H73ROHUHhInc>100kRnt35to39.9","MOE H73ROHUHhInc>100kRnt35to39.9","H73ROHUHhInc>100kRnt40to49.9","MOE H73ROHUHhInc>100kRnt40to49.9","H73ROHUHhInc>100kRnt>50pct","MOE H73ROHUHhInc>100kRnt>50pct","H73ROHUHhInc>100kRntPctNC","MOE H73ROHUHhInc>100kRntPctNC"]
[{"$f":"VLOOKUP(DropDownList!$B$47,CntyQryCensus!$A$530:$AY$544,A$1)","v":"Grantham"},2404,276,552,176.42278764377349,297,109,310,99,1159,229.79773715160906,1078,236.64530420018903,371,146,1530,272.25539480421685,707,186.23909364040622,363,125,167,103]
[]
["Income By Household Type and Tenure"]
["NAME","TotalFamilyHouseholds",{"$f":"\"MOE \"&B159","v":"MOE TotalFamilyHouseholds"},"FamInc<10K",{"$f":"\"MOE \"&D159","v":"MOE FamInc<10K"},"FamInc10to15K",{"$f":"\"MOE \"&F159","v":"MOE FamInc10to15K"},"FamInc15to20K",{"$f":"\"MOE \"&H159","v":"MOE FamInc15to20K"},"FamInc20to25K",{"$f":"\"MOE \"&J159","v":"MOE FamInc20to25K"},"FamInc25to30K",{"$f":"\"MOE \"&L159","v":"MOE FamInc25to30K"},"FamInc30to35K",{"$f":"\"MOE \"&N159","v":"MOE FamInc30to35K"},"FamInc35to40K",{"$f":"\"MOE \"&P159","v":"MOE FamInc35to40K"},"FamInc40to45K",{"$f":"\"MOE \"&R159","v":"MOE FamInc40to45K"},"FamInc45to50K",{"$f":"\"MOE \"&T159","v":"MOE FamInc45to50K"},"FamInc50to60K",{"$f":"\"MOE \"&V159","v":"MOE FamInc50to60K"},"FamInc60to75K",{"$f":"\"MOE \"&X159","v":"MOE FamInc60to75K"},"FamInc75to100K",{"$f":"\"MOE \"&Z159","v":"MOE FamInc75to100K"},"FamInc100to125K",{"$f":"\"MOE \"&AB159","v":"MOE FamInc100to125K"},"FamInc125to150K",{"$f":"\"MOE \"&AD159","v":"MOE FamInc125to150K"},"FamInc150to200K",{"$f":"\"MOE \"&AF159","v":"MOE FamInc150to200K"},"FamInc>200K",{"$f":"\"MOE \"&AH159","v":"MOE FamInc>200K"},"MedFamInc",{"$f":"\"MOE \"&AJ159","v":"MOE MedFamInc"},"TotalNonNonFamilyHouseholds",{"$f":"\"MOE \"&AL159","v":"MOE TotalNonNonFamilyHouseholds"},"NonFamInc<10K",{"$f":"\"MOE \"&AN159","v":"MOE NonFamInc<10K"},"NonFamInc10to15K",{"$f":"\"MOE \"&AP159","v":"MOE NonFamInc10to15K"},"NonFamInc15to20K",{"$f":"\"MOE \"&AR159","v":"MOE NonFamInc15to20K"},"NonFamInc20to25K",{"$f":"\"MOE \"&AT159","v":"MOE NonFamInc20to25K"},"NonFamInc25to30K",{"$f":"\"MOE \"&AV159","v":"MOE NonFamInc25to30K"},"NonFamInc30to35K",{"$f":"\"MOE \"&AX159","v":"MOE NonFamInc30to35K"},"NonFamInc35to40K",{"$f":"\"MOE \"&AZ159","v":"MOE NonFamInc35to40K"},"NonFamInc40to45K",{"$f":"\"MOE \"&BB159","v":"MOE NonFamInc40to45K"},"NonFamInc45to50K",{"$f":"\"MOE \"&BD159","v":"MOE NonFamInc45to50K"},"NonFamInc50to60K",{"$f":"\"MOE \"&BF159","v":"MOE NonFamInc50to60K"},"NonFamInc60to75K",{"$f":"\"MOE \"&BH159","v":"MOE NonFamInc60to75K"},"NonFamInc75to100K",{"$f":"\"MOE \"&BJ159","v":"MOE NonFamInc75to100K"},"NonFamInc100to125K",{"$f":"\"MOE \"&BL159","v":"MOE NonFamInc100to125K"},"NonFamInc125to150K",{"$f":"\"MOE \"&BN159","v":"MOE NonFamInc125to150K"},"NonFamInc150to200K",{"$f":"\"MOE \"&BP159","v":"MOE NonFamInc150to200K"},"NonFamInc>200K",{"$f":"\"MOE \"&BR159","v":"MOE NonFamInc>200K"},"MedNonFamInc",{"$f":"\"MOE \"&BT159","v":"MOE MedNonFamInc"},"PerCapitaIncome","MOE PerCapitaIncome"]
[{"$f":"VLOOKUP(DropDownList!$B$47,CntyQryCensus!$A$530:$AY$544,A$1)","v":"Grantham"},868,97,0,11,0,11,24,34,0,11,0,11,0,11,0,11,12,19,9,15,67,56,98,65,124,68,231,108,143,91,52,29,108,66,113400,11503,285,117,0,11,0,11,10,15,0,11,51,52,12,18,0,11,69,76,17,28,0,11,30,40,14,22,40,49,10,15,0,11,32,29,null,null,47574,20612]

{"sheet":"CntyDataLinkPrior10YearEstimate","index":16,"n_rows":160,"n_cols":255,"rows_kept":160,"cut":false,"hidden":true,"merged":[]}
[1,{"$f":"A1+1","v":2},{"$f":"B1+1","v":3},4,5,6,7,8,9,10,11,12,13,14,15,{"$f":"O1+1","v":16},17,18,19,20,21,22,23,24,25,26,27,28,29,30,31,32,33,34,35,36,37,38,39,40,41,42,43,44,45,46,47,48,49,50,51,52,53,54,55,56,57,58,59,60,61,62,63,64,65,66,{"$f":"BN1+1","v":67},68,69,70,71,72,73,74,75,76,77,78,79,80,81,82,83,84,85,86,87,88,89,90,91,92,93,94,95,96,97,98,99,100,101,102,103,104,105,106,107,108,109,110,111,112,113,114,115,116,117,118,119,120,121,122,123,124,125,126,127,128,129,130,{"$f":"DZ1+1","v":131},132,133,134,135,136,137,138,139,140,141,142,143,144,145,146,147,148,149,150,151,152,153,154,155,156,157,158,159,160,161,162,163,164,165,166,167,168,169,170,171,172,173,174,175,176,177,178,179,180,181,182,183,184,185,186,187,188,189,190,191,192,193,194,{"$f":"GL1+1","v":195},196,197,198,199,200,201,202,203,204,205,206,207,208,209,210,211,212,213,214,215,216,217,218,219,220,221,222,223,224,225,226,227,228,229,230,231,232,233,234,235,236,237,238,239,240,241,242,243,244,245,246,247,248,249,250,251,252,253,254,255]
[]
["Census 1990 Data -           Query Name:  DPCnty90Census"]
["TownName","Cnty_Code","Census_Cnty_Code","LandAcres","WaterAcres","HousingUnits90Cen","Persons90Cen","Families90Cen","Households90cen","MalePop90cen","FemalePop90cen","WhitePop","BlackPop","AmerIndianPop","AsianPIPop","OtherRacePop","HispanicOrPop","AgeUnder15_90cen","Age15to24_90cen","Age25to34_90cen","Age35to44_90cen","Age45to54_90cen","Age55to64_90cen","Age65to74_90cen","Age75andOver_90cen","PersonsInHH90cen","PersonsInFamHH90cen","PersonsInGC","PersonsPerHH90cen","PersonsPerFam90Cen","SinglePersonHH90cen","MarriedCoupleHH90cen","SingleParentHH90cen","NonFamilyHH90cen","TotalHousingUnits","OccupiedHousingUnits","VacantHousingUnits","OwnerOccHU","RenterOccHU","VacantForRent90","VacantForSale90","VacantSeasonalRec","SingFamHU90cen","MultiFamHU90cen","MobileHom90cen","SingFamOwnHU90cen","MultiFamOwnHU90cen","MobileHomOwnHU90cen","SingFamRntrHU90cen","MultiFamRntrHU90cen","MobileHomRntrHU90cen","HU<5yrs90cen","HU5to20yrs90cen","HU20to50yrs90cen","HU>50yrs90cen","Units0Bedroom90cen","Units1Bedroom90cen","Units2Bedroom90cen","Units3Bedroom90cen","Units4+Bedroom90cen","HI<5K","HI5Kto10K","HI10Kto15K","HI15Kto25K","HI25Kto35K","HI35Kto50K","HI50Kto75K","HI75Kto100K","HI>100K","MedHI","HH<25HI<5K","HH<25HI5Kto10K","HH<25HI10Kto15K","HH<25HI15Kto25K","HH<25HI25Kto35K","HH<25HI35Kto50K","HH<25HI50Kto75K","HH<25HI75Kto100K","HH<25HI>100K","HH25to34HI<5K","HH25to34HI5Kto10K","HH25to34HI10Kto15K","HH25to34HI15Kto25K","HH25to34HI25Kto35K","HH25to34HI35Kto50K","HH25to34HI50Kto75K","HH25to34HI75Kto100K","HH25to34HI>100K","HH35to44HI<5K","HH35to44HI5Kto10K","HH35to44HI10Kto15K","HH35to44HI15Kto25K","HH35to44HI25Kto35K","HH35to44HI35Kto50K","HH35to44HI50Kto75K","HH35to44HI75Kto100K","HH35to44HI>100K","HH45to54HI<5K","HH45to54HI5Kto10K","HH45to54HI10Kto15K","HH45to54HI15Kto25K","HH45to54HI25Kto35K","HH45to54HI35Kto50K","HH45to54HI50Kto75K","HH45to54HI75Kto100K","HH45to54HI>100K","HH55to64HI<5K","HH55to64HI5Kto10K","HH55to64HI10Kto15K","HH55to64HI15Kto25K","HH55to64HI25Kto35K","HH55to64HI35Kto50K","HH55to64HI50Kto75K","HH55to64HI75Kto100K","HH55to64HI>100K","HH65to74HI<5K","HH65to74HI5Kto10K","HH65to74HI10Kto15K","HH65to74HI15Kto25K","HH65to74HI25Kto35K","HH65to74HI35Kto50K","HH65to74HI50Kto75K","HH65to74HI75Kto100K","HH65to74HI>100K","HH>75HI<5K","HH>75HI5Kto10K","HH>75HI10Kto15K","HH>75HI15Kto25K","HH>75HI25Kto35K","HH>75HI35Kto50K","HH>75HI50Kto75K","HH>75HI75Kto100K","HH>75HI>100K","SchoolEnrollment1thru12","Pop25andOver","HSGradorHigher","CollGradorHigher","NativePop","ForeignBornPop","BornStateOfRes","NativePop2","ForeignBornPop2","DroveAlone","CarPooled","PublicTranspt","Walked","OtherMeans","WorkedAtHome","HHInc<10K","HHInc10to15K","HHInc15to25K","HHInc25to35K","HHInc35to50K","HHInc50to75K","HHInc75to100K","HHInc100to150K","HHInc>150K"]
[{"$f":"VLOOKUP(DropDownList!$A$47,CntyQuery!$A$4:$FI$46,A1)","v":"Grantham"},{"$f":"VLOOKUP(DropDownList!$A$47,CntyQuery!$A$4:$FA$46,B1)","v":19035},{"$f":"VLOOKUP(DropDownList!$A$47,CntyQuery!$A$4:$FA$46,C1)","v":"31220"},{"$f":"VLOOKUP(DropDownList!$A$47,CntyQuery!$A$4:$FA$46,D1)","v":17402.240000000002},{"$f":"VLOOKUP(DropDownList!$A$47,CntyQuery!$A$4:$FA$46,E1)","v":548.63},{"$f":"VLOOKUP(DropDownList!$A$47,CntyQuery!$A$4:$FA$46,F1)","v":1289},{"$f":"VLOOKUP(DropDownList!$A$47,CntyQuery!$A$4:$FA$46,G1)","v":1247},{"$f":"VLOOKUP(DropDownList!$A$47,CntyQuery!$A$4:$FA$46,H1)","v":404},{"$f":"VLOOKUP(DropDownList!$A$47,CntyQuery!$A$4:$FA$46,I1)","v":494},{"$f":"VLOOKUP(DropDownList!$A$47,CntyQuery!$A$4:$FA$46,J1)","v":622},{"$f":"VLOOKUP(DropDownList!$A$47,CntyQuery!$A$4:$FA$46,K1)","v":625},{"$f":"VLOOKUP(DropDownList!$A$47,CntyQuery!$A$4:$FA$46,L1)","v":1236},{"$f":"VLOOKUP(DropDownList!$A$47,CntyQuery!$A$4:$FA$46,M1)","v":2},{"$f":"VLOOKUP(DropDownList!$A$47,CntyQuery!$A$4:$FA$46,N1)","v":1},{"$f":"VLOOKUP(DropDownList!$A$47,CntyQuery!$A$4:$FA$46,O1)","v":6},{"$f":"VLOOKUP(DropDownList!$A$47,CntyQuery!$A$4:$FA$46,P1)","v":2},{"$f":"VLOOKUP(DropDownList!$A$47,CntyQuery!$A$4:$FA$46,Q1)","v":5},{"$f":"VLOOKUP(DropDownList!$A$47,CntyQuery!$A$4:$FA$46,R1)","v":210},{"$f":"VLOOKUP(DropDownList!$A$47,CntyQuery!$A$4:$FA$46,S1)","v":112},{"$f":"VLOOKUP(DropDownList!$A$47,CntyQuery!$A$4:$FA$46,T1)","v":142},{"$f":"VLOOKUP(DropDownList!$A$47,CntyQuery!$A$4:$FA$46,U1)","v":208},{"$f":"VLOOKUP(DropDownList!$A$47,CntyQuery!$A$4:$FA$46,V1)","v":145},{"$f":"VLOOKUP(DropDownList!$A$47,CntyQuery!$A$4:$FA$46,W1)","v":191},{"$f":"VLOOKUP(DropDownList!$A$47,CntyQuery!$A$4:$FA$46,X1)","v":179},{"$f":"VLOOKUP(DropDownList!$A$47,CntyQuery!$A$4:$FA$46,Y1)","v":60},{"$f":"VLOOKUP(DropDownList!$A$47,CntyQuery!$A$4:$FA$46,Z1)","v":1247},{"$f":"VLOOKUP(DropDownList!$A$47,CntyQuery!$A$4:$FA$46,AA1)","v":1131},{"$f":"VLOOKUP(DropDownList!$A$47,CntyQuery!$A$4:$FA$46,AB1)","v":0},{"$f":"VLOOKUP(DropDownList!$A$47,CntyQuery!$A$4:$FA$46,AC1)","v":2.5242914979757085},{"$f":"VLOOKUP(DropDownList!$A$47,CntyQuery!$A$4:$FA$46,AD1)","v":2.7995049504950495},{"$f":"VLOOKUP(DropDownList!$A$47,CntyQuery!$A$4:$FA$46,AE1)","v":67},{"$f":"VLOOKUP(DropDownList!$A$47,CntyQuery!$A$4:$FA$46,AF1)","v":377},{"$f":"VLOOKUP(DropDownList!$A$47,CntyQuery!$A$4:$FA$46,AG1)","v":27},{"$f":"VLOOKUP(DropDownList!$A$47,CntyQuery!$A$4:$FA$46,AH1)","v":23},{"$f":"VLOOKUP(DropDownList!$A$47,CntyQuery!$A$4:$FA$46,AI1)","v":1289},{"$f":"VLOOKUP(DropDownList!$A$47,CntyQuery!$A$4:$FA$46,AJ1)","v":494},{"$f":"VLOOKUP(DropDownList!$A$47,CntyQuery!$A$4:$FA$46,AK1)","v":795},{"$f":"VLOOKUP(DropDownList!$A$47,CntyQuery!$A$4:$FA$46,AL1)","v":430},{"$f":"VLOOKUP(DropDownList!$A$47,CntyQuery!$A$4:$FA$46,AM1)","v":64},{"$f":"VLOOKUP(DropDownList!$A$47,CntyQuery!$A$4:$FA$46,AN1)","v":8},{"$f":"VLOOKUP(DropDownList!$A$47,CntyQuery!$A$4:$FA$46,AO1)","v":14},{"$f":"VLOOKUP(DropDownList!$A$47,CntyQuery!$A$4:$FA$46,AP1)","v":721},{"$f":"VLOOKUP(DropDownList!$A$47,CntyQuery!$A$4:$FA$46,AQ1)","v":923},{"$f":"VLOOKUP(DropDownList!$A$47,CntyQuery!$A$4:$FA$46,AR1)","v":339},{"$f":"VLOOKUP(DropDownList!$A$47,CntyQuery!$A$4:$FA$46,AS1)","v":27},{"$f":"VLOOKUP(DropDownList!$A$47,CntyQuery!$A$4:$FA$46,AT1)","v":391},{"$f":"VLOOKUP(DropDownList!$A$47,CntyQuery!$A$4:$FA$46,AU1)","v":25},{"$f":"VLOOKUP(DropDownList!$A$47,CntyQuery!$A$4:$FA$46,AV1)","v":27},{"$f":"VLOOKUP(DropDownList!$A$47,CntyQuery!$A$4:$FA$46,AW1)","v":35},{"$f":"VLOOKUP(DropDownList!$A$47,CntyQuery!$A$4:$FA$46,AX1)","v":22},{"$f":"VLOOKUP(DropDownList!$A$47,CntyQuery!$A$4:$FA$46,AY1)","v":7},{"$f":"VLOOKUP(DropDownList!$A$47,CntyQuery!$A$4:$FA$46,AZ1)","v":488},{"$f":"VLOOKUP(DropDownList!$A$47,CntyQuery!$A$4:$FA$46,BA1)","v":590},{"$f":"VLOOKUP(DropDownList!$A$47,CntyQuery!$A$4:$FA$46,BB1)","v":71},{"$f":"VLOOKUP(DropDownList!$A$47,CntyQuery!$A$4:$FA$46,BC1)","v":140},{"$f":"VLOOKUP(DropDownList!$A$47,CntyQuery!$A$4:$FA$46,BD1)","v":4},{"$f":"VLOOKUP(DropDownList!$A$47,CntyQuery!$A$4:$FA$46,BE1)","v":17},{"$f":"VLOOKUP(DropDownList!$A$47,CntyQuery!$A$4:$FA$46,BF1)","v":229},{"$f":"VLOOKUP(DropDownList!$A$47,CntyQuery!$A$4:$FA$46,BG1)","v":727},{"$f":"VLOOKUP(DropDownList!$A$47,CntyQuery!$A$4:$FA$46,BH1)","v":312},{"$f":"VLOOKUP(DropDownList!$A$47,CntyQuery!$A$4:$FA$46,BI1)","v":12},{"$f":"VLOOKUP(DropDownList!$A$47,CntyQuery!$A$4:$FA$46,BJ1)","v":16},{"$f":"VLOOKUP(DropDownList!$A$47,CntyQuery!$A$4:$FA$46,BK1)","v":24},{"$f":"VLOOKUP(DropDownList!$A$47,CntyQuery!$A$4:$FA$46,BL1)","v":43},{"$f":"VLOOKUP(DropDownList!$A$47,CntyQuery!$A$4:$FA$46,BM1)","v":77},{"$f":"VLOOKUP(DropDownList!$A$47,CntyQuery!$A$4:$FA$46,BN1)","v":133},{"$f":"VLOOKUP(DropDownList!$A$47,CntyQuery!$A$4:$FA$46,BO1)","v":116},{"$f":"VLOOKUP(DropDownList!$A$47,CntyQuery!$A$4:$FA$46,BP1)","v":36},{"$f":"VLOOKUP(DropDownList!$A$47,CntyQuery!$A$4:$FA$46,BQ1)","v":33},{"$f":"VLOOKUP(DropDownList!$A$47,CntyQuery!$A$4:$FA$46,BR1)","v":42738},{"$f":"VLOOKUP(DropDownList!$A$47,CntyQuery!$A$4:$FA$46,BS1)","v":0},{"$f":"VLOOKUP(DropDownList!$A$47,CntyQuery!$A$4:$FA$46,BT1)","v":1},{"$f":"VLOOKUP(DropDownList!$A$47,CntyQuery!$A$4:$FA$46,BU1)","v":2},{"$f":"VLOOKUP(DropDownList!$A$47,CntyQuery!$A$4:$FA$46,BV1)","v":2},{"$f":"VLOOKUP(DropDownList!$A$47,CntyQuery!$A$4:$FA$46,BW1)","v":0},{"$f":"VLOOKUP(DropDownList!$A$47,CntyQuery!$A$4:$FA$46,BX1)","v":0},{"$f":"VLOOKUP(DropDownList!$A$47,CntyQuery!$A$4:$FA$46,BY1)","v":0},{"$f":"VLOOKUP(DropDownList!$A$47,CntyQuery!$A$4:$FA$46,BZ1)","v":3},{"$f":"VLOOKUP(DropDownList!$A$47,CntyQuery!$A$4:$FA$46,CA1)","v":0},{"$f":"VLOOKUP(DropDownList!$A$47,CntyQuery!$A$4:$FA$46,CB1)","v":0},{"$f":"VLOOKUP(DropDownList!$A$47,CntyQuery!$A$4:$FA$46,CC1)","v":0},{"$f":"VLOOKUP(DropDownList!$A$47,CntyQuery!$A$4:$FA$46,CD1)","v":2},{"$f":"VLOOKUP(DropDownList!$A$47,CntyQuery!$A$4:$FA$46,CE1)","v":4},{"$f":"VLOOKUP(DropDownList!$A$47,CntyQuery!$A$4:$FA$46,CF1)","v":15},{"$f":"VLOOKUP(DropDownList!$A$47,CntyQuery!$A$4:$FA$46,CG1)","v":21},{"$f":"VLOOKUP(DropDownList!$A$47,CntyQuery!$A$4:$FA$46,CH1)","v":16},{"$f":"VLOOKUP(DropDownList!$A$47,CntyQuery!$A$4:$FA$46,CI1)","v":3},{"$f":"VLOOKUP(DropDownList!$A$47,CntyQuery!$A$4:$FA$46,CJ1)","v":2},{"$f":"VLOOKUP(DropDownList!$A$47,CntyQuery!$A$4:$FA$46,CK1)","v":0},{"$f":"VLOOKUP(DropDownList!$A$47,CntyQuery!$A$4:$FA$46,CL1)","v":0},{"$f":"VLOOKUP(DropDownList!$A$47,CntyQuery!$A$4:$FA$46,CM1)","v":0},{"$f":"VLOOKUP(DropDownList!$A$47,CntyQuery!$A$4:$FA$46,CN1)","v":9},{"$f":"VLOOKUP(DropDownList!$A$47,CntyQuery!$A$4:$FA$46,CO1)","v":15},{"$f":"VLOOKUP(DropDownList!$A$47,CntyQuery!$A$4:$FA$46,CP1)","v":27},{"$f":"VLOOKUP(DropDownList!$A$47,CntyQuery!$A$4:$FA$46,CQ1)","v":29},{"$f":"VLOOKUP(DropDownList!$A$47,CntyQuery!$A$4:$FA$46,CR1)","v":10},{"$f":"VLOOKUP(DropDownList!$A$47,CntyQuery!$A$4:$FA$46,CS1)","v":0},{"$f":"VLOOKUP(DropDownList!$A$47,CntyQuery!$A$4:$FA$46,CT1)","v":0},{"$f":"VLOOKUP(DropDownList!$A$47,CntyQuery!$A$4:$FA$46,CU1)","v":3},{"$f":"VLOOKUP(DropDownList!$A$47,CntyQuery!$A$4:$FA$46,CV1)","v":6},{"$f":"VLOOKUP(DropDownList!$A$47,CntyQuery!$A$4:$FA$46,CW1)","v":7},{"$f":"VLOOKUP(DropDownList!$A$47,CntyQuery!$A$4:$FA$46,CX1)","v":7},{"$f":"VLOOKUP(DropDownList!$A$47,CntyQuery!$A$4:$FA$46,CY1)","v":31},{"$f":"VLOOKUP(DropDownList!$A$47,CntyQuery!$A$4:$FA$46,CZ1)","v":17},{"$f":"VLOOKUP(DropDownList!$A$47,CntyQuery!$A$4:$FA$46,DA1)","v":3},{"$f":"VLOOKUP(DropDownList!$A$47,CntyQuery!$A$4:$FA$46,DB1)","v":8},{"$f":"VLOOKUP(DropDownList!$A$47,CntyQuery!$A$4:$FA$46,DC1)","v":6},{"$f":"VLOOKUP(DropDownList!$A$47,CntyQuery!$A$4:$FA$46,DD1)","v":6},{"$f":"VLOOKUP(DropDownList!$A$47,CntyQuery!$A$4:$FA$46,DE1)","v":3},{"$f":"VLOOKUP(DropDownList!$A$47,CntyQuery!$A$4:$FA$46,DF1)","v":8},{"$f":"VLOOKUP(DropDownList!$A$47,CntyQuery!$A$4:$FA$46,DG1)","v":10},{"$f":"VLOOKUP(DropDownList!$A$47,CntyQuery!$A$4:$FA$46,DH1)","v":22},{"$f":"VLOOKUP(DropDownList!$A$47,CntyQuery!$A$4:$FA$46,DI1)","v":27},{"$f":"VLOOKUP(DropDownList!$A$47,CntyQuery!$A$4:$FA$46,DJ1)","v":6},{"$f":"VLOOKUP(DropDownList!$A$47,CntyQuery!$A$4:$FA$46,DK1)","v":14},{"$f":"VLOOKUP(DropDownList!$A$47,CntyQuery!$A$4:$FA$46,DL1)","v":4},{"$f":"VLOOKUP(DropDownList!$A$47,CntyQuery!$A$4:$FA$46,DM1)","v":2},{"$f":"VLOOKUP(DropDownList!$A$47,CntyQuery!$A$4:$FA$46,DN1)","v":8},{"$f":"VLOOKUP(DropDownList!$A$47,CntyQuery!$A$4:$FA$46,DO1)","v":6},{"$f":"VLOOKUP(DropDownList!$A$47,CntyQuery!$A$4:$FA$46,DP1)","v":27},{"$f":"VLOOKUP(DropDownList!$A$47,CntyQuery!$A$4:$FA$46,DQ1)","v":22},{"$f":"VLOOKUP(DropDownList!$A$47,CntyQuery!$A$4:$FA$46,DR1)","v":23},{"$f":"VLOOKUP(DropDownList!$A$47,CntyQuery!$A$4:$FA$46,DS1)","v":6},{"$f":"VLOOKUP(DropDownList!$A$47,CntyQuery!$A$4:$FA$46,DT1)","v":7},{"$f":"VLOOKUP(DropDownList!$A$47,CntyQuery!$A$4:$FA$46,DU1)","v":2},{"$f":"VLOOKUP(DropDownList!$A$47,CntyQuery!$A$4:$FA$46,DV1)","v":4},{"$f":"VLOOKUP(DropDownList!$A$47,CntyQuery!$A$4:$FA$46,DW1)","v":3},{"$f":"VLOOKUP(DropDownList!$A$47,CntyQuery!$A$4:$FA$46,DX1)","v":7},{"$f":"VLOOKUP(DropDownList!$A$47,CntyQuery!$A$4:$FA$46,DY1)","v":3},{"$f":"VLOOKUP(DropDownList!$A$47,CntyQuery!$A$4:$FA$46,DZ1)","v":10},{"$f":"VLOOKUP(DropDownList!$A$47,CntyQuery!$A$4:$FA$46,EA1)","v":4},{"$f":"VLOOKUP(DropDownList!$A$47,CntyQuery!$A$4:$FA$46,EB1)","v":5},{"$f":"VLOOKUP(DropDownList!$A$47,CntyQuery!$A$4:$FA$46,EC1)","v":2},{"$f":"VLOOKUP(DropDownList!$A$47,CntyQuery!$A$4:$FA$46,ED1)","v":170},{"$f":"VLOOKUP(DropDownList!$A$47,CntyQuery!$A$4:$FA$46,EE1)","v":925},{"$f":"VLOOKUP(DropDownList!$A$47,CntyQuery!$A$4:$FA$46,EF1)","v":817},{"$f":"VLOOKUP(DropDownList!$A$47,CntyQuery!$A$4:$FA$46,EG1)","v":398},{"$f":"VLOOKUP(DropDownList!$A$47,CntyQuery!$A$4:$FA$46,EH1)","v":1196},{"$f":"VLOOKUP(DropDownList!$A$47,CntyQuery!$A$4:$FA$46,EI1)","v":51},{"$f":"VLOOKUP(DropDownList!$A$47,CntyQuery!$A$4:$FA$46,EJ1)","v":540},{"$f":"VLOOKUP(DropDownList!$A$47,CntyQuery!$A$4:$FA$46,EK1)","v":1196},{"$f":"VLOOKUP(DropDownList!$A$47,CntyQuery!$A$4:$FA$46,EL1)","v":51},{"$f":"VLOOKUP(DropDownList!$A$47,CntyQuery!$A$4:$FA$46,EM1)","v":407},{"$f":"VLOOKUP(DropDownList!$A$47,CntyQuery!$A$4:$FA$46,EN1)","v":78},{"$f":"VLOOKUP(DropDownList!$A$47,CntyQuery!$A$4:$FA$46,EO1)","v":0},{"$f":"VLOOKUP(DropDownList!$A$47,CntyQuery!$A$4:$FA$46,EP1)","v":13},{"$f":"VLOOKUP(DropDownList!$A$47,CntyQuery!$A$4:$FA$46,EQ1)","v":3},{"$f":"VLOOKUP(DropDownList!$A$47,CntyQuery!$A$4:$FA$46,ER1)","v":38},{"$f":"VLOOKUP(DropDownList!$A$47,CntyQuery!$A$4:$FA$46,ES1)","v":28},{"$f":"VLOOKUP(DropDownList!$A$47,CntyQuery!$A$4:$FA$46,ET1)","v":24},{"$f":"VLOOKUP(DropDownList!$A$47,CntyQuery!$A$4:$FA$46,EU1)","v":43},{"$f":"VLOOKUP(DropDownList!$A$47,CntyQuery!$A$4:$FA$46,EV1)","v":77},{"$f":"VLOOKUP(DropDownList!$A$47,CntyQuery!$A$4:$FA$46,EW1)","v":133},{"$f":"VLOOKUP(DropDownList!$A$47,CntyQuery!$A$4:$FA$46,EX1)","v":116},{"$f":"VLOOKUP(DropDownList!$A$47,CntyQuery!$A$4:$FA$46,EY1)","v":36},{"$f":"VLOOKUP(DropDownList!$A$47,CntyQuery!$A$4:$FA$46,EZ1)","v":29},{"$f":"VLOOKUP(DropDownList!$A$47,CntyQuery!$A$4:$FA$46,FA1)","v":4}]
[]
[]
["Census 1990 Data -    Query Name:  TownSTF1Qry1"]
["NAME","COUSUBFP","Census_Cnty_Code","FIPS","LandAcres","WaterAcres","HousingUnits90Cen","P01Persons90Cen","P02Families90Cen","P03Households90cen","P05MalePop90cen","P05FemalePop90cen","P06WhitePop","P06BlackPop","P06AmerIndianPop","P06AsianPIPop","P06OtherRacePop","P08HispanicOrPop","P11AgeUnder15_90cen","P11Age15to24_90cen","P11Age25to34_90cen","P11Age35to44_90cen","P11Age45to54_90cen","P11Age55to64_90cen","P11Age65to74_90cen","P11Age75andOver_90cen","P15PersonsInHH90cen","P15PersonsInFamHH90cen","P15PersonsInGC","PersonsPerHH90cen","PersonsPerFam90Cen","P16SinglePersonHH90cen","P16MarriedCoupleHH90cen","P16SingleParentHH90cen","P16NonFamilyHH90cen","H01TotalHousingUnits","H02OccupiedHousingUnits","H02VacantHousingUnits","H03OwnerOccHU","H03RenterOccHU","H05VacantForRent90","H05VacantForSale90","H05VacantSeasonalRec","H23OOHUVal<15k","H23OOHUVal15to19k","H23OOHUVal20to24k","H23OOHUVal25to29k","H23OOHUVal30to34k","H23OOHUVal35to39k","H23OOHUVal40to44k","H23OOHUVal45to49k","H23OOHUVal50to59k","H23OOHUVal60to74k","H23OOHUVal75to99k","H23OOHUVal100to124k","H23OOHUVal125to149k","H23OOHUVal150to174k","H23OOHUVal175to199k","H23OOHUVal200to249k","H23OOHUVal250to299k","H23OOHUVal300to399k","H23OOHUVal400to499k","H23OOHUVal500kOrMore","H23BOOHUMedVal","H41SingFamHU90cen","H41MultiFamHU90cen","H41MobileHom90cen","H43SingFamOwnHU90cen","H43MultiFamOwnHU90cen","H43MobileHomOwnHU90cen","H43SingFamRntrHU90cen","H43MultiFamRntrHU90cen","H43MobileHomRntrHU90cen","H41HU1UnitDet","H41HU1UnitAtt","H41HU2Unit","H41HU3to4Unit","H41HU5to9Unit","H41HU10to19Unit","H41HU20to49Unit","H41HU50PlusUnit","H41HUMobilH","H41HUOther"]
[{"$f":"VLOOKUP(DropDownList!$B$47,CntyQuery!$A$51:$CE$93,A$1)","v":"Grantham"},{"$f":"VLOOKUP(DropDownList!$B$47,CntyQuery!$A$51:$CE$93,B$1)","v":1007},{"$f":"VLOOKUP(DropDownList!$B$47,CntyQuery!$A$51:$CE$93,C$1)","v":19035},{"$f":"VLOOKUP(DropDownList!$B$47,CntyQuery!$A$51:$CE$93,D$1)","v":"31220"},{"$f":"VLOOKUP(DropDownList!$B$47,CntyQuery!$A$51:$CE$93,E$1)","v":17402.240000000002},{"$f":"VLOOKUP(DropDownList!$B$47,CntyQuery!$A$51:$CE$93,F$1)","v":548.63},{"$f":"VLOOKUP(DropDownList!$B$47,CntyQuery!$A$51:$CE$93,G$1)","v":1289},{"$f":"VLOOKUP(DropDownList!$B$47,CntyQuery!$A$51:$CE$93,H$1)","v":1247},{"$f":"VLOOKUP(DropDownList!$B$47,CntyQuery!$A$51:$CE$93,I$1)","v":404},{"$f":"VLOOKUP(DropDownList!$B$47,CntyQuery!$A$51:$CE$93,J$1)","v":494},{"$f":"VLOOKUP(DropDownList!$B$47,CntyQuery!$A$51:$CE$93,K$1)","v":622},{"$f":"VLOOKUP(DropDownList!$B$47,CntyQuery!$A$51:$CE$93,L$1)","v":625},{"$f":"VLOOKUP(DropDownList!$B$47,CntyQuery!$A$51:$CE$93,M$1)","v":1236},{"$f":"VLOOKUP(DropDownList!$B$47,CntyQuery!$A$51:$CE$93,N$1)","v":2},{"$f":"VLOOKUP(DropDownList!$B$47,CntyQuery!$A$51:$CE$93,O$1)","v":1},{"$f":"VLOOKUP(DropDownList!$B$47,CntyQuery!$A$51:$CE$93,P$1)","v":6},{"$f":"VLOOKUP(DropDownList!$B$47,CntyQuery!$A$51:$CE$93,Q$1)","v":2},{"$f":"VLOOKUP(DropDownList!$B$47,CntyQuery!$A$51:$CE$93,R$1)","v":5},{"$f":"VLOOKUP(DropDownList!$B$47,CntyQuery!$A$51:$CE$93,S$1)","v":210},{"$f":"VLOOKUP(DropDownList!$B$47,CntyQuery!$A$51:$CE$93,T$1)","v":112},{"$f":"VLOOKUP(DropDownList!$B$47,CntyQuery!$A$51:$CE$93,U$1)","v":142},{"$f":"VLOOKUP(DropDownList!$B$47,CntyQuery!$A$51:$CE$93,V$1)","v":208},{"$f":"VLOOKUP(DropDownList!$B$47,CntyQuery!$A$51:$CE$93,W$1)","v":145},{"$f":"VLOOKUP(DropDownList!$B$47,CntyQuery!$A$51:$CE$93,X$1)","v":191},{"$f":"VLOOKUP(DropDownList!$B$47,CntyQuery!$A$51:$CE$93,Y$1)","v":179},{"$f":"VLOOKUP(DropDownList!$B$47,CntyQuery!$A$51:$CE$93,Z$1)","v":60},{"$f":"VLOOKUP(DropDownList!$B$47,CntyQuery!$A$51:$CE$93,AA$1)","v":1247},{"$f":"VLOOKUP(DropDownList!$B$47,CntyQuery!$A$51:$CE$93,AB$1)","v":1131},{"$f":"VLOOKUP(DropDownList!$B$47,CntyQuery!$A$51:$CE$93,AC$1)","v":0},{"$f":"VLOOKUP(DropDownList!$B$47,CntyQuery!$A$51:$CE$93,AD$1)","v":2.5242914979757085},{"$f":"VLOOKUP(DropDownList!$B$47,CntyQuery!$A$51:$CE$93,AE$1)","v":2.7995049504950495},{"$f":"VLOOKUP(DropDownList!$B$47,CntyQuery!$A$51:$CE$93,AF$1)","v":67},{"$f":"VLOOKUP(DropDownList!$B$47,CntyQuery!$A$51:$CE$93,AG$1)","v":377},{"$f":"VLOOKUP(DropDownList!$B$47,CntyQuery!$A$51:$CE$93,AH$1)","v":27},{"$f":"VLOOKUP(DropDownList!$B$47,CntyQuery!$A$51:$CE$93,AI$1)","v":23},{"$f":"VLOOKUP(DropDownList!$B$47,CntyQuery!$A$51:$CE$93,AJ$1)","v":1289},{"$f":"VLOOKUP(DropDownList!$B$47,CntyQuery!$A$51:$CE$93,AK$1)","v":494},{"$f":"VLOOKUP(DropDownList!$B$47,CntyQuery!$A$51:$CE$93,AL$1)","v":795},{"$f":"VLOOKUP(DropDownList!$B$47,CntyQuery!$A$51:$CE$93,AM$1)","v":430},{"$f":"VLOOKUP(DropDownList!$B$47,CntyQuery!$A$51:$CE$93,AN$1)","v":64},{"$f":"VLOOKUP(DropDownList!$B$47,CntyQuery!$A$51:$CE$93,AO$1)","v":8},{"$f":"VLOOKUP(DropDownList!$B$47,CntyQuery!$A$51:$CE$93,AP$1)","v":14},{"$f":"VLOOKUP(DropDownList!$B$47,CntyQuery!$A$51:$CE$93,AQ$1)","v":721},{"$f":"VLOOKUP(DropDownList!$B$47,CntyQuery!$A$51:$CE$93,AR$1)","v":1},{"$f":"VLOOKUP(DropDownList!$B$47,CntyQuery!$A$51:$CE$93,AS$1)","v":1},{"$f":"VLOOKUP(DropDownList!$B$47,CntyQuery!$A$51:$CE$93,AT$1)","v":0},{"$f":"VLOOKUP(DropDownList!$B$47,CntyQuery!$A$51:$CE$93,AU$1)","v":2},{"$f":"VLOOKUP(DropDownList!$B$47,CntyQuery!$A$51:$CE$93,AV$1)","v":2},{"$f":"VLOOKUP(DropDownList!$B$47,CntyQuery!$A$51:$CE$93,AW$1)","v":0},{"$f":"VLOOKUP(DropDownList!$B$47,CntyQuery!$A$51:$CE$93,AX$1)","v":1},{"$f":"VLOOKUP(DropDownList!$B$47,CntyQuery!$A$51:$CE$93,AY$1)","v":0},{"$f":"VLOOKUP(DropDownList!$B$47,CntyQuery!$A$51:$CE$93,AZ$1)","v":8},{"$f":"VLOOKUP(DropDownList!$B$47,CntyQuery!$A$51:$CE$93,BA$1)","v":14},{"$f":"VLOOKUP(DropDownList!$B$47,CntyQuery!$A$51:$CE$93,BB$1)","v":44},{"$f":"VLOOKUP(DropDownList!$B$47,CntyQuery!$A$51:$CE$93,BC$1)","v":40},{"$f":"VLOOKUP(DropDownList!$B$47,CntyQuery!$A$51:$CE$93,BD$1)","v":37},{"$f":"VLOOKUP(DropDownList!$B$47,CntyQuery!$A$51:$CE$93,BE$1)","v":46},{"$f":"VLOOKUP(DropDownList!$B$47,CntyQuery!$A$51:$CE$93,BF$1)","v":59},{"$f":"VLOOKUP(DropDownList!$B$47,CntyQuery!$A$51:$CE$93,BG$1)","v":42},{"$f":"VLOOKUP(DropDownList!$B$47,CntyQuery!$A$51:$CE$93,BH$1)","v":22},{"$f":"VLOOKUP(DropDownList!$B$47,CntyQuery!$A$51:$CE$93,BI$1)","v":14},{"$f":"VLOOKUP(DropDownList!$B$47,CntyQuery!$A$51:$CE$93,BJ$1)","v":11},{"$f":"VLOOKUP(DropDownList!$B$47,CntyQuery!$A$51:$CE$93,BK$1)","v":4},{"$f":"VLOOKUP(DropDownList!$B$47,CntyQuery!$A$51:$CE$93,BL$1)","v":163000},{"$f":"VLOOKUP(DropDownList!$B$47,CntyQuery!$A$51:$CE$93,BM$1)","v":923},{"$f":"VLOOKUP(DropDownList!$B$47,CntyQuery!$A$51:$CE$93,BN$1)","v":339},{"$f":"VLOOKUP(DropDownList!$B$47,CntyQuery!$A$51:$CE$93,BO$1)","v":27},{"$f":"VLOOKUP(DropDownList!$B$47,CntyQuery!$A$51:$CE$93,BP$1)","v":391},{"$f":"VLOOKUP(DropDownList!$B$47,CntyQuery!$A$51:$CE$93,BQ$1)","v":25},{"$f":"VLOOKUP(DropDownList!$B$47,CntyQuery!$A$51:$CE$93,BR$1)","v":14},{"$f":"VLOOKUP(DropDownList!$B$47,CntyQuery!$A$51:$CE$93,BS$1)","v":35},{"$f":"VLOOKUP(DropDownList!$B$47,CntyQuery!$A$51:$CE$93,BT$1)","v":22},{"$f":"VLOOKUP(DropDownList!$B$47,CntyQuery!$A$51:$CE$93,BU$1)","v":7},{"$f":"VLOOKUP(DropDownList!$B$47,CntyQuery!$A$51:$CE$93,BV$1)","v":923},{"$f":"VLOOKUP(DropDownList!$B$47,CntyQuery!$A$51:$CE$93,BW$1)","v":322},{"$f":"VLOOKUP(DropDownList!$B$47,CntyQuery!$A$51:$CE$93,BX$1)","v":9},{"$f":"VLOOKUP(DropDownList!$B$47,CntyQuery!$A$51:$CE$93,BY$1)","v":5},{"$f":"VLOOKUP(DropDownList!$B$47,CntyQuery!$A$51:$CE$93,BZ$1)","v":1},{"$f":"VLOOKUP(DropDownList!$B$47,CntyQuery!$A$51:$CE$93,CA$1)","v":2},{"$f":"VLOOKUP(DropDownList!$B$47,CntyQuery!$A$51:$CE$93,CB$1)","v":0},{"$f":"VLOOKUP(DropDownList!$B$47,CntyQuery!$A$51:$CE$93,CC$1)","v":0},{"$f":"VLOOKUP(DropDownList!$B$47,CntyQuery!$A$51:$CE$93,CD$1)","v":21},{"$f":"VLOOKUP(DropDownList!$B$47,CntyQuery!$A$51:$CE$93,CE$1)","v":6}]
[]
[]
["Census 1990 Data -          Query Name: TownSTF3Qry1"]
["NAME","FIPS","COUSUBFP","LandAcres","WaterAcres","HousingUnits90Cen","P01Persons90Cen","P02Families90Cen","P03Households90cen","H25HU<5yrs90cen","H25HU5to20yrs90cen","H25HU20to50yrs90cen","H25HU>50yrs90cen","H31Units0Bedroom90cen","H31Units1Bedroom90cen","H31Units2Bedroom90cen","H31Units3Bedroom90cen","H31Units4Bedroom90cen","H31Units5+Bedroom90cen","P80HI<5K","P80HI5Kto10K","P80HI10Kto15K","P80HI15Kto25K","P80HI25Kto35K","P80HI35Kto50K","P80HI50Kto75K","P80HI75Kto100K","P80HI>100K","P80AMedHI","P86HH<25HI<5K","P86HH<25HI5Kto10K","P86HH<25HI10Kto15K","P86HH<25HI15Kto25K","P86HH<25HI25Kto35K","P86HH<25HI35Kto50K","P86HH<25HI50Kto75K","P86HH<25HI75Kto100K","P86HH<25HI>100K","P86HH25to34HI<5K","P86HH25to34HI5Kto10K","P86HH25to34HI10Kto15K","P86HH25to34HI15Kto25K","P86HH25to34HI25Kto35K","P86HH25to34HI35Kto50K","P86HH25to34HI50Kto75K","P86HH25to34HI75Kto100K","P86HH25to34HI>100K","P86HH35to44HI<5K","P86HH35to44HI5Kto10K","P86HH35to44HI10Kto15K","P86HH35to44HI15Kto25K","P86HH35to44HI25Kto35K","P86HH35to44HI35Kto50K","P86HH35to44HI50Kto75K","P86HH35to44HI75Kto100K","P86HH35to44HI>100K","P86HH45to54HI<5K","P86HH45to54HI5Kto10K","P86HH45to54HI10Kto15K","P86HH45to54HI15Kto25K","P86HH45to54HI25Kto35K","P86HH45to54HI35Kto50K","P86HH45to54HI50Kto75K","P86HH45to54HI75Kto100K","P86HH45to54HI>100K","P86HH55to64HI<5K","P86HH55to64HI5Kto10K","P86HH55to64HI10Kto15K","P86HH55to64HI15Kto25K","P86HH55to64HI25Kto35K","P86HH55to64HI35Kto50K","P86HH55to64HI50Kto75K","P86HH55to64HI75Kto100K","P86HH55to64HI>100K","P86HH65to74HI<5K","P86HH65to74HI5Kto10K","P86HH65to74HI10Kto15K","P86HH65to74HI15Kto25K","P86HH65to74HI25Kto35K","P86HH65to74HI35Kto50K","P86HH65to74HI50Kto75K","P86HH65to74HI75Kto100K","P86HH65to74HI>100K","P86HH>75HI<5K","P86HH>75HI5Kto10K","P86HH>75HI10Kto15K","P86HH>75HI15Kto25K","P86HH>75HI25Kto35K","P86HH>75HI35Kto50K","P86HH>75HI50Kto75K","P86HH>75HI75Kto100K","P86HH>75HI>100K","P54SchlEnrlPrePrim","P54SchlEnrlElemThrHS","P54SchlEnrlCollege","P54NotEnrlInSch","P57Pop25andOver","P57LessThan9thGrade","P579thto12thNoDip","P57HSGrad","P57SomeCollege","P57AssocDeg","P57BachelDeg","P57GradorProfDeg","P57HSGradorHigher","P57CollGradorHigher","P42NativePop","P42ForeignBornPop","P42BornStateOfRes","P37NativePop2","P37ForeignBornPop2","P49DroveAlone","P49CarPooled","P49PublicTranspt","P49Walked","P49OtherMeans","P49WorkedAtHome","P80HHInc<10K","P80HHInc10to15K","P80HHInc15to25K","P80HHInc25to35K","P80HHInc35to50K","P80HHInc50to75K","P80HHInc75to100K","P80HHInc100to150K","P80HHInc>150K","H25YearStBlt89to90","H25YearStBlt85to88","H25YearStBlt80to84","H25YearStBlt70to79","H25YearStBlt60to69","H25YearStBlt50to59","H25YearStBlt40to49","H25YearStBlt39earlier","P107FamInc<10K","P107FamInc10to15K","P107FamInc15to25K","P107FamInc25to35K","P107FamInc35to50K","P107FamInc50to75K","P107FamInc75to100K","P107FamInc100to150K","P107FamInc>150K","P107AMedFamInc","P110NonFamInc<10K","P110NonFamInc10to15K","P110NonFamInc15to25K","P110NonFamInc25to35K","P110NonFamInc35to50K","P110NonFamInc50to75K","P110NonFamInc75to100K","P110NonFamInc100to150K","P110NonFamInc>150K","P110AMedNonFamInc","H16HU1Room","H16HU2Room","H16HU3Room","H16HU4Room","H16HU5Room","H16HU6Room","H16HU7Room","H16HU8Room","H16HU9+Room","H43GrossRnt<100","H43GrossRnt100to149","H43GrossRnt150to199","H43GrossRnt200to249","H43GrossRnt250to299","H43GrossRnt300to349","H43GrossRnt350to399","H43GrossRnt400to449","H43GrossRnt450to499","H43GrossRnt500to549","H43GrossRnt550to599","H43GrossRnt600to649","H43GrossRnt650to699","H43GrossRnt700to749","H43GrossRnt750to999","H43GrossRnt1000Plus","H43NoCashRent","H43MedGrossRent","H51GrossRnt<20PctHHInc","H51GrossRnt20to24PctHHInc","H51GrossRnt25to29PctHHInc","H51GrossRnt30to34PctHHInc","H51GrossRnt35PctOrMoreHHInc","H51GrossRntAsPctHHIncNotComp","H52HUwMtgMoOwnCst<200","H52HUwMtgMoOwnCst200to299","H52HUwMtgMoOwnCst300to399","H52HUwMtgMoOwnCst400to499","H52HUwMtgMoOwnCst500to599","H52HUwMtgMoOwnCst600to699","H52HUwMtgMoOwnCst700to799","H52HUwMtgMoOwnCst800to899","H52HUwMtgMoOwnCst900to999","H52HUwMtgMoOwnCst1000to1249","H52HUwMtgMoOwnCst1250to1499","H52HUwMtgMoOwnCst1500to1999","H52HUwMtgMoOwnCst2000More","H52HUwNoMtgMoOwnCst<100","H52HUwNoMtgMoOwnCst100to149","H52HUwNoMtgMoOwnCst150to199","H52HUwNoMtgMoOwnCst200to249","H52HUwNoMtgMoOwnCst250to299","H52HUwNoMtgMoOwnCst300to349","H52HUwNoMtgMoOwnCst350to399","H52HUwNoMtgMoOwnCst400More","H52AMedMoOwnCstWMortg","H52AMedMoOwnCstWNoMortg","H58HUwMtgMOC<20pHHInc","H58HUwMtgMOC20to24pHHInc","H58HUwMtgMOC25to29pHHInc","H58HUwMtgMOC30to34pHHInc","H58wMtgMOC>35pHHInc","H58HUwMtgMOCNotComp","H58HUwNoMtgMOC<20pHHInc","H58HUwNoMtgMOC20to24pHHInc","H58HUwNoMtgMOC25to29pHHInc","H58HUwNoMtgMOC30to34pHHInc","H58wNoMtgMOC>35pHHInc","H58HUwNoMtgMOCNotComp","H61OOHUVal<15k","H61OOHUVal15to19k","H61OOHUVal20to24k","H61OOHUVal25to29k","H61OOHUVal30to34k","H61OOHUVal35to39k","H61OOHUVal40to44k","H61OOHUVal45to49k","H61OOHUVal50to59k","H61OOHUVal60to74k","H61OOHUVal75to99k","H61OOHUVal100to124k","H61OOHUVal125to149k","H61OOHUVal150to174k","H61OOHUVal175to199k","H61OOHUVal200to249k","H61OOHUVal250to299k","H61OOHUVal300to399k","H61OOHUVal400to499k","H61OOHUVal500kOrMore","H61aOOHUMedVal"]
[]
[]
[]
["Other Demo Data -             Query Name: QryAllTowns-ACSDemographicSheet"]
["TOWN_NAME","FIPS","TOWNCNTY","COUSUB","POP80","POP90CDCEN","POP2000CEN","POP2010CEN","POP2020-Proj","POP2025-Proj","POP2030-Proj","SF80","MF80","MH80","SF81","MF81","MH81","SF82","MF82","MH82","SF83","MF83","MH83","SF84_OSP","MF84_OSP","MH84_OSP","SF85_OSP","MF85_OSP","MH85_OSP","SF86_OSP","MF86_OSP","MH86_OSP","SF87_OSP","MF87_OSP","MH87_OSP","SF88_OSP","MF88_OSP","MH88_OSP","SF89_OSP","MF89_OSP","MH89_OSP","SF90_OSP","MF90_OSP","MH90_OSP","SF91_OSP","MF91_OSP","MH91_OSP","SF92_OSP","MF92_OSP","MH92_OSP","SF93_OSP","MF93_OSP","MH93_OSP","SF94_OSP","MF94_OSP","MH94_OSP","SF95_OSP","MF95_OSP","MH95_OSP","SF96_OSP","MF96_OSP","MH96_OSP","SF97_OSP","MF97_OSP","MH97_OSP","SF98_OSP","MF98_OSP","MH98_OSP","SF99_OSP","MF99_OSP","MH99_OSP","SF00_OSP","MF00_OSP","MH00_OSP","SF01_OSP","MF01_OSP","MH01_OSP","SF02_OSP","MF02_OSP","MH02_OSP","SF03_OSP","MF03_OSP","MH03_OSP","SF04_OSP","MF04_OSP","MH04_OSP","SF05_OSP","MF05_OSP","MH05_OSP","SF06_OSP","MF06_OSP","MH06_OSP","SF07_OSP","MF07_OSP","MH07_OSP","SF08_OSP","MF08_OSP","MH08_OSP","SF09_OSP","MF09_OSP","MH09_OSP","SF10_OSP","MF10_OSP","MH10_OSP","SF11_OSP","MF11_OSP","MH11_OSP","SF12_OSP","MF12_OSP","MH12_OSP","SF13_OSP","MF13_OSP","MH13_OSP","SF14_OSP","MF14_OSP","MH14_OSP","SF15_OSP","MF15_OSP","MH15_OSP","SF16_OSP","MF16_OSP","MH16_OSP","SF17_OSP","MF17_OSP","MH17_OSP","SF18_OSP","MF18_OSP","MH18_OSP","COMMENTS","CNTY_CODE"]
[{"$f":"VLOOKUP(DropDownList!$B$47,CntyQuery!$A$117:$DZ$160,A$1)","v":"Grantham"},{"$f":"VLOOKUP(DropDownList!$B$47,CntyQuery!$A$117:$DZ$160,B$1)","v":19035},{"$f":"VLOOKUP(DropDownList!$B$47,CntyQuery!$A$117:$DZ$160,C$1)","v":1007},{"$f":"VLOOKUP(DropDownList!$B$47,CntyQuery!$A$117:$DZ$160,D$1)","v":"31220"},{"$f":"VLOOKUP(DropDownList!$B$47,CntyQuery!$A$117:$DZ$160,E$1)","v":704},{"$f":"VLOOKUP(DropDownList!$B$47,CntyQuery!$A$117:$DZ$160,F$1)","v":1247},{"$f":"VLOOKUP(DropDownList!$B$47,CntyQuery!$A$117:$DZ$160,G$1)","v":2167},{"$f":"VLOOKUP(DropDownList!$B$47,CntyQuery!$A$117:$DZ$160,H$1)","v":2985},{"$f":"VLOOKUP(DropDownList!$B$47,CntyQuery!$A$117:$DZ$160,I$1)","v":3404},{"$f":"VLOOKUP(DropDownList!$B$47,CntyQuery!$A$117:$DZ$160,J$1)","v":3474},{"$f":"VLOOKUP(DropDownList!$B$47,CntyQuery!$A$117:$DZ$160,K$1)","v":3512},{"$f":"VLOOKUP(DropDownList!$B$47,CntyQuery!$A$117:$DZ$160,L$1)","v":3512},{"$f":"VLOOKUP(DropDownList!$B$47,CntyQuery!$A$117:$DZ$160,M$1)","v":78},{"$f":"VLOOKUP(DropDownList!$B$47,CntyQuery!$A$117:$DZ$160,N$1)","v":10},{"$f":"VLOOKUP(DropDownList!$B$47,CntyQuery!$A$117:$DZ$160,O$1)","v":0},{"$f":"VLOOKUP(DropDownList!$B$47,CntyQuery!$A$117:$DZ$160,P$1)","v":81},{"$f":"VLOOKUP(DropDownList!$B$47,CntyQuery!$A$117:$DZ$160,Q$1)","v":0},{"$f":"VLOOKUP(DropDownList!$B$47,CntyQuery!$A$117:$DZ$160,R$1)","v":0},{"$f":"VLOOKUP(DropDownList!$B$47,CntyQuery!$A$117:$DZ$160,S$1)","v":6},{"$f":"VLOOKUP(DropDownList!$B$47,CntyQuery!$A$117:$DZ$160,T$1)","v":0},{"$f":"VLOOKUP(DropDownList!$B$47,CntyQuery!$A$117:$DZ$160,U$1)","v":0},{"$f":"VLOOKUP(DropDownList!$B$47,CntyQuery!$A$117:$DZ$160,V$1)","v":0},{"$f":"VLOOKUP(DropDownList!$B$47,CntyQuery!$A$117:$DZ$160,W$1)","v":0},{"$f":"VLOOKUP(DropDownList!$B$47,CntyQuery!$A$117:$DZ$160,X$1)","v":0},{"$f":"VLOOKUP(DropDownList!$B$47,CntyQuery!$A$117:$DZ$160,Y$1)","v":9},{"$f":"VLOOKUP(DropDownList!$B$47,CntyQuery!$A$117:$DZ$160,Z$1)","v":0},{"$f":"VLOOKUP(DropDownList!$B$47,CntyQuery!$A$117:$DZ$160,AA$1)","v":0},{"$f":"VLOOKUP(DropDownList!$B$47,CntyQuery!$A$117:$DZ$160,AB$1)","v":7},{"$f":"VLOOKUP(DropDownList!$B$47,CntyQuery!$A$117:$DZ$160,AC$1)","v":0},{"$f":"VLOOKUP(DropDownList!$B$47,CntyQuery!$A$117:$DZ$160,AD$1)","v":0},{"$f":"VLOOKUP(DropDownList!$B$47,CntyQuery!$A$117:$DZ$160,AE$1)","v":52},{"$f":"VLOOKUP(DropDownList!$B$47,CntyQuery!$A$117:$DZ$160,AF$1)","v":0},{"$f":"VLOOKUP(DropDownList!$B$47,CntyQuery!$A$117:$DZ$160,AG$1)","v":0},{"$f":"VLOOKUP(DropDownList!$B$47,CntyQuery!$A$117:$DZ$160,AH$1)","v":61},{"$f":"VLOOKUP(DropDownList!$B$47,CntyQuery!$A$117:$DZ$160,AI$1)","v":0},{"$f":"VLOOKUP(DropDownList!$B$47,CntyQuery!$A$117:$DZ$160,AJ$1)","v":0},{"$f":"VLOOKUP(DropDownList!$B$47,CntyQuery!$A$117:$DZ$160,AK$1)","v":63},{"$f":"VLOOKUP(DropDownList!$B$47,CntyQuery!$A$117:$DZ$160,AL$1)","v":0},{"$f":"VLOOKUP(DropDownList!$B$47,CntyQuery!$A$117:$DZ$160,AM$1)","v":3},{"$f":"VLOOKUP(DropDownList!$B$47,CntyQuery!$A$117:$DZ$160,AN$1)","v":58},{"$f":"VLOOKUP(DropDownList!$B$47,CntyQuery!$A$117:$DZ$160,AO$1)","v":0},{"$f":"VLOOKUP(DropDownList!$B$47,CntyQuery!$A$117:$DZ$160,AP$1)","v":5},{"$f":"VLOOKUP(DropDownList!$B$47,CntyQuery!$A$117:$DZ$160,AQ$1)","v":27},{"$f":"VLOOKUP(DropDownList!$B$47,CntyQuery!$A$117:$DZ$160,AR$1)","v":0},{"$f":"VLOOKUP(DropDownList!$B$47,CntyQuery!$A$117:$DZ$160,AS$1)","v":2},{"$f":"VLOOKUP(DropDownList!$B$47,CntyQuery!$A$117:$DZ$160,AT$1)","v":27},{"$f":"VLOOKUP(DropDownList!$B$47,CntyQuery!$A$117:$DZ$160,AU$1)","v":0},{"$f":"VLOOKUP(DropDownList!$B$47,CntyQuery!$A$117:$DZ$160,AV$1)","v":1},{"$f":"VLOOKUP(DropDownList!$B$47,CntyQuery!$A$117:$DZ$160,AW$1)","v":17},{"$f":"VLOOKUP(DropDownList!$B$47,CntyQuery!$A$117:$DZ$160,AX$1)","v":0},{"$f":"VLOOKUP(DropDownList!$B$47,CntyQuery!$A$117:$DZ$160,AY$1)","v":0},{"$f":"VLOOKUP(DropDownList!$B$47,CntyQuery!$A$117:$DZ$160,AZ$1)","v":22},{"$f":"VLOOKUP(DropDownList!$B$47,CntyQuery!$A$117:$DZ$160,BA$1)","v":0},{"$f":"VLOOKUP(DropDownList!$B$47,CntyQuery!$A$117:$DZ$160,BB$1)","v":1},{"$f":"VLOOKUP(DropDownList!$B$47,CntyQuery!$A$117:$DZ$160,BC$1)","v":27},{"$f":"VLOOKUP(DropDownList!$B$47,CntyQuery!$A$117:$DZ$160,BD$1)","v":0},{"$f":"VLOOKUP(DropDownList!$B$47,CntyQuery!$A$117:$DZ$160,BE$1)","v":2},{"$f":"VLOOKUP(DropDownList!$B$47,CntyQuery!$A$117:$DZ$160,BF$1)","v":22},{"$f":"VLOOKUP(DropDownList!$B$47,CntyQuery!$A$117:$DZ$160,BG$1)","v":0},{"$f":"VLOOKUP(DropDownList!$B$47,CntyQuery!$A$117:$DZ$160,BH$1)","v":1},{"$f":"VLOOKUP(DropDownList!$B$47,CntyQuery!$A$117:$DZ$160,BI$1)","v":24},{"$f":"VLOOKUP(DropDownList!$B$47,CntyQuery!$A$117:$DZ$160,BJ$1)","v":0},{"$f":"VLOOKUP(DropDownList!$B$47,CntyQuery!$A$117:$DZ$160,BK$1)","v":2},{"$f":"VLOOKUP(DropDownList!$B$47,CntyQuery!$A$117:$DZ$160,BL$1)","v":25},{"$f":"VLOOKUP(DropDownList!$B$47,CntyQuery!$A$117:$DZ$160,BM$1)","v":0},{"$f":"VLOOKUP(DropDownList!$B$47,CntyQuery!$A$117:$DZ$160,BN$1)","v":0},{"$f":"VLOOKUP(DropDownList!$B$47,CntyQuery!$A$117:$DZ$160,BO$1)","v":21},{"$f":"VLOOKUP(DropDownList!$B$47,CntyQuery!$A$117:$DZ$160,BP$1)","v":0},{"$f":"VLOOKUP(DropDownList!$B$47,CntyQuery!$A$117:$DZ$160,BQ$1)","v":2},{"$f":"VLOOKUP(DropDownList!$B$47,CntyQuery!$A$117:$DZ$160,BR$1)","v":21},{"$f":"VLOOKUP(DropDownList!$B$47,CntyQuery!$A$117:$DZ$160,BS$1)","v":0},{"$f":"VLOOKUP(DropDownList!$B$47,CntyQuery!$A$117:$DZ$160,BT$1)","v":3},{"$f":"VLOOKUP(DropDownList!$B$47,CntyQuery!$A$117:$DZ$160,BU$1)","v":34},{"$f":"VLOOKUP(DropDownList!$B$47,CntyQuery!$A$117:$DZ$160,BV$1)","v":0},{"$f":"VLOOKUP(DropDownList!$B$47,CntyQuery!$A$117:$DZ$160,BW$1)","v":1},{"$f":"VLOOKUP(DropDownList!$B$47,CntyQuery!$A$117:$DZ$160,BX$1)","v":28},{"$f":"VLOOKUP(DropDownList!$B$47,CntyQuery!$A$117:$DZ$160,BY$1)","v":2},{"$f":"VLOOKUP(DropDownList!$B$47,CntyQuery!$A$117:$DZ$160,BZ$1)","v":0},{"$f":"VLOOKUP(DropDownList!$B$47,CntyQuery!$A$117:$DZ$160,CA$1)","v":45},{"$f":"VLOOKUP(DropDownList!$B$47,CntyQuery!$A$117:$DZ$160,CB$1)","v":2},{"$f":"VLOOKUP(DropDownList!$B$47,CntyQuery!$A$117:$DZ$160,CC$1)","v":0},{"$f":"VLOOKUP(DropDownList!$B$47,CntyQuery!$A$117:$DZ$160,CD$1)","v":59},{"$f":"VLOOKUP(DropDownList!$B$47,CntyQuery!$A$117:$DZ$160,CE$1)","v":0},{"$f":"VLOOKUP(DropDownList!$B$47,CntyQuery!$A$117:$DZ$160,CF$1)","v":0},{"$f":"VLOOKUP(DropDownList!$B$47,CntyQuery!$A$117:$DZ$160,CG$1)","v":42},{"$f":"VLOOKUP(DropDownList!$B$47,CntyQuery!$A$117:$DZ$160,CH$1)","v":0},{"$f":"VLOOKUP(DropDownList!$B$47,CntyQuery!$A$117:$DZ$160,CI$1)","v":0},{"$f":"VLOOKUP(DropDownList!$B$47,CntyQuery!$A$117:$DZ$160,CJ$1)","v":31},{"$f":"VLOOKUP(DropDownList!$B$47,CntyQuery!$A$117:$DZ$160,CK$1)","v":0},{"$f":"VLOOKUP(DropDownList!$B$47,CntyQuery!$A$117:$DZ$160,CL$1)","v":0},{"$f":"VLOOKUP(DropDownList!$B$47,CntyQuery!$A$117:$DZ$160,CM$1)","v":23},{"$f":"VLOOKUP(DropDownList!$B$47,CntyQuery!$A$117:$DZ$160,CN$1)","v":0},{"$f":"VLOOKUP(DropDownList!$B$47,CntyQuery!$A$117:$DZ$160,CO$1)","v":0},{"$f":"VLOOKUP(DropDownList!$B$47,CntyQuery!$A$117:$DZ$160,CP$1)","v":23},{"$f":"VLOOKUP(DropDownList!$B$47,CntyQuery!$A$117:$DZ$160,CQ$1)","v":0},{"$f":"VLOOKUP(DropDownList!$B$47,CntyQuery!$A$117:$DZ$160,CR$1)","v":0},{"$f":"VLOOKUP(DropDownList!$B$47,CntyQuery!$A$117:$DZ$160,CS$1)","v":15},{"$f":"VLOOKUP(DropDownList!$B$47,CntyQuery!$A$117:$DZ$160,CT$1)","v":0},{"$f":"VLOOKUP(DropDownList!$B$47,CntyQuery!$A$117:$DZ$160,CU$1)","v":0},{"$f":"VLOOKUP(DropDownList!$B$47,CntyQuery!$A$117:$DZ$160,CV$1)","v":6},{"$f":"VLOOKUP(DropDownList!$B$47,CntyQuery!$A$117:$DZ$160,CW$1)","v":0},{"$f":"VLOOKUP(DropDownList!$B$47,CntyQuery!$A$117:$DZ$160,CX$1)","v":0},{"$f":"VLOOKUP(DropDownList!$B$47,CntyQuery!$A$117:$DZ$160,CY$1)","v":5},{"$f":"VLOOKUP(DropDownList!$B$47,CntyQuery!$A$117:$DZ$160,CZ$1)","v":0},{"$f":"VLOOKUP(DropDownList!$B$47,CntyQuery!$A$117:$DZ$160,DA$1)","v":0},{"$f":"VLOOKUP(DropDownList!$B$47,CntyQuery!$A$117:$DZ$160,DB$1)","v":6},{"$f":"VLOOKUP(DropDownList!$B$47,CntyQuery!$A$117:$DZ$160,DC$1)","v":0},{"$f":"VLOOKUP(DropDownList!$B$47,CntyQuery!$A$117:$DZ$160,DD$1)","v":0},{"$f":"VLOOKUP(DropDownList!$B$47,CntyQuery!$A$117:$DZ$160,DE$1)","v":3},{"$f":"VLOOKUP(DropDownList!$B$47,CntyQuery!$A$117:$DZ$160,DF$1)","v":0},{"$f":"VLOOKUP(DropDownList!$B$47,CntyQuery!$A$117:$DZ$160,DG$1)","v":0},{"$f":"VLOOKUP(DropDownList!$B$47,CntyQuery!$A$117:$DZ$160,DH$1)","v":5},{"$f":"VLOOKUP(DropDownList!$B$47,CntyQuery!$A$117:$DZ$160,DI$1)","v":2},{"$f":"VLOOKUP(DropDownList!$B$47,CntyQuery!$A$117:$DZ$160,DJ$1)","v":0},{"$f":"VLOOKUP(DropDownList!$B$47,CntyQuery!$A$117:$DZ$160,DK$1)","v":7},{"$f":"VLOOKUP(DropDownList!$B$47,CntyQuery!$A$117:$DZ$160,DL$1)","v":0},{"$f":"VLOOKUP(DropDownList!$B$47,CntyQuery!$A$117:$DZ$160,DM$1)","v":0},{"$f":"VLOOKUP(DropDownList!$B$47,CntyQuery!$A$117:$DZ$160,DN$1)","v":17},{"$f":"VLOOKUP(DropDownList!$B$47,CntyQuery!$A$117:$DZ$160,DO$1)","v":0},{"$f":"VLOOKUP(DropDownList!$B$47,CntyQuery!$A$117:$DZ$160,DP$1)","v":0},{"$f":"VLOOKUP(DropDownList!$B$47,CntyQuery!$A$117:$DZ$160,DQ$1)","v":3},{"$f":"VLOOKUP(DropDownList!$B$47,CntyQuery!$A$117:$DZ$160,DR$1)","v":0},{"$f":"VLOOKUP(DropDownList!$B$47,CntyQuery!$A$117:$DZ$160,DS$1)","v":0},{"$f":"VLOOKUP(DropDownList!$B$47,CntyQuery!$A$117:$DZ$160,DT$1)","v":3},{"$f":"VLOOKUP(DropDownList!$B$47,CntyQuery!$A$117:$DZ$160,DU$1)","v":1},{"$f":"VLOOKUP(DropDownList!$B$47,CntyQuery!$A$117:$DZ$160,DV$1)","v":0},{"$f":"VLOOKUP(DropDownList!$B$47,CntyQuery!$A$117:$DZ$160,DW$1)","v":6},{"$f":"VLOOKUP(DropDownList!$B$47,CntyQuery!$A$117:$DZ$160,DX$1)","v":0},{"$f":"VLOOKUP(DropDownList!$B$47,CntyQuery!$A$117:$DZ$160,DY$1)","v":0}]
[]
[]
["NH Employment Data","Query Name: DPQryEmploymentByCnty"]
["AreaName","COUNTYCODE","TOTP & G2001","TOT2001","GOODPRO2001","SERVICEPROMAN2001","WAGEP & G2001","WAGETOT2001","WAGEGOODPRO2001","WAGESERVICEPRO2001","TOTP & G2002","TOT2002","GOODPRO2002","SERVICEPROMAN2002","WAGEP & G2002","WAGETOT2002","WAGEGOODPRO2002","WAGESERVICEPRO2002","TOTP & G2003","TOT2003","GOODPRO2003","SERVICEPROMAN2003","WAGEP & G2003","WAGETOT2003","WAGEGOODPRO2003","WAGESERVICEPRO2003","TOTP & G2004","TOT2004","GOODPRO2004","SERVICEPROMAN2004","WAGEP & G2004","WAGETOT2004","WAGEGOODPRO2004","WAGESERVICEPRO2004","TOTP & G2005","TOT2005","GOODPRO2005","SERVICEPROMAN2005","WAGEP & G2005","WAGETOT2005","WAGEGOODPRO2005","WAGESERVICEPRO2005","TOTP & G2006","TOT2006","GOODPRO2006","SERVICEPROMAN2006","WAGEP & G2006","WAGETOT2006","WAGEGOODPRO2006","WAGESERVICEPRO2006","TOTP & G2007","TOT2007","GOODPRO2007","SERVICEPROMAN2007","WAGEP & G2007","WAGETOT2007","WAGEGOODPRO2007","WAGESERVICEPRO2007","TOTP & G2008","TOT2008","GOODPRO2008","SERVICEPROMAN2008","WAGEP & G2008","WAGETOT2008","WAGEGOODPRO2008","WAGESERVICEPRO2008","TOTP & G2009","TOT2009","GOODPRO2009","SERVICEPROMAN2009","WAGEP & G2009","WAGETOT2009","WAGEGOODPRO2009","WAGESERVICEPRO2009","TOTP & G2010","TOT2010","GOODPRO2010","SERVICEPROMAN2010","WAGEP & G2010","WAGETOT2010","WAGEGOODPRO2010","WAGESERVICEPRO2010","TOTP & G2011","TOT2011","GOODPRO2011","SERVICEPROMAN2011","WAGEP & G2011","WAGETOT2011","WAGEGOODPRO2011","WAGESERVICEPRO2011","TOTP & G2012","TOT2012","GOODPRO2012","SERVICEPROMAN2012","WAGEP & G2012","WAGETOT2012","WAGEGOODPRO2012","WAGESERVICEPRO2012","TOTP & G2013","TOT2013","GOODPRO2013","SERVICEPROMAN2013","WAGEP & G2013","WAGETOT2013","WAGEGOODPRO2013","WAGESERVICEPRO2013","TOTP & G2014","TOT2014","GOODPRO2014","SERVICEPROMAN2014","WAGEP & G2014","WAGETOT2014","WAGEGOODPRO2014","WAGESERVICEPRO2014","TOTP & G2015","TOT2015","GOODPRO2015","SERVICEPROMAN2015","WAGEP & G2015","WAGETOT2015","WAGEGOODPRO2015","WAGESERVICEPRO2015","TOTP & G2016","TOT2016","GOODPRO2016","SERVICEPROMAN2016","WAGEP & G2016","WAGETOT2016","WAGEGOODPRO2016","WAGESERVICEPRO2016","TOTP & G2017","TOT2017","GOODPRO2017","SERVICEPROMAN2017","WAGEP & G2017","WAGETOT2017","WAGEGOODPRO2017","WAGESERVICEPRO2017","TOTP & G2018","TOT2018","GOODPRO2018","SERVICEPROMAN2018","WAGEP & G2018","WAGETOT2018","WAGEGOODPRO2018","WAGESERVICEPRO2018","TOTP & G2019","TOT2019","TOTGov2019","GOODPRO2019","SERVICEPROMAN2019","WAGEP & G2019","WAGETOT2019","WAGEGov2019","WAGEGOODPRO2019","WAGESERVICEPRO2019","SummaryLevel"]
[{"$f":"VLOOKUP(DropDownList!$B$47,CntyQuery!$A$171:$FZ$185,A$1)","v":"Grantham"},{"$f":"VLOOKUP(DropDownList!$B$47,CntyQuery!$A$171:$FZ$185,B$1)","v":10},{"$f":"VLOOKUP(DropDownList!$B$47,CntyQuery!$A$171:$FZ$185,C$1)","v":300},{"$f":"VLOOKUP(DropDownList!$B$47,CntyQuery!$A$171:$FZ$185,D$1)","v":276},{"$f":"VLOOKUP(DropDownList!$B$47,CntyQuery!$A$171:$FZ$185,E$1)","v":92},{"$f":"VLOOKUP(DropDownList!$B$47,CntyQuery!$A$171:$FZ$185,F$1)","v":183},{"$f":"VLOOKUP(DropDownList!$B$47,CntyQuery!$A$171:$FZ$185,G$1)","v":514.5},{"$f":"VLOOKUP(DropDownList!$B$47,CntyQuery!$A$171:$FZ$185,H$1)","v":503.81},{"$f":"VLOOKUP(DropDownList!$B$47,CntyQuery!$A$171:$FZ$185,I$1)","v":592.91999999999996},{"$f":"VLOOKUP(DropDownList!$B$47,CntyQuery!$A$171:$FZ$185,J$1)","v":458.92},{"$f":"VLOOKUP(DropDownList!$B$47,CntyQuery!$A$171:$FZ$185,K$1)","v":307},{"$f":"VLOOKUP(DropDownList!$B$47,CntyQuery!$A$171:$FZ$185,L$1)","v":279},{"$f":"VLOOKUP(DropDownList!$B$47,CntyQuery!$A$171:$FZ$185,M$1)","v":99},{"$f":"VLOOKUP(DropDownList!$B$47,CntyQuery!$A$171:$FZ$185,N$1)","v":180},{"$f":"VLOOKUP(DropDownList!$B$47,CntyQuery!$A$171:$FZ$185,O$1)","v":512.86},{"$f":"VLOOKUP(DropDownList!$B$47,CntyQuery!$A$171:$FZ$185,P$1)","v":508.88},{"$f":"VLOOKUP(DropDownList!$B$47,CntyQuery!$A$171:$FZ$185,Q$1)","v":622.42999999999995},{"$f":"VLOOKUP(DropDownList!$B$47,CntyQuery!$A$171:$FZ$185,R$1)","v":446.7},{"$f":"VLOOKUP(DropDownList!$B$47,CntyQuery!$A$171:$FZ$185,S$1)","v":347},{"$f":"VLOOKUP(DropDownList!$B$47,CntyQuery!$A$171:$FZ$185,T$1)","v":321},{"$f":"VLOOKUP(DropDownList!$B$47,CntyQuery!$A$171:$FZ$185,U$1)","v":110},{"$f":"VLOOKUP(DropDownList!$B$47,CntyQuery!$A$171:$FZ$185,V$1)","v":211},{"$f":"VLOOKUP(DropDownList!$B$47,CntyQuery!$A$171:$FZ$185,W$1)","v":547.54},{"$f":"VLOOKUP(DropDownList!$B$47,CntyQuery!$A$171:$FZ$185,X$1)","v":540.41},{"$f":"VLOOKUP(DropDownList!$B$47,CntyQuery!$A$171:$FZ$185,Y$1)","v":673.42},{"$f":"VLOOKUP(DropDownList!$B$47,CntyQuery!$A$171:$FZ$185,Z$1)","v":471.28},{"$f":"VLOOKUP(DropDownList!$B$47,CntyQuery!$A$171:$FZ$185,AA$1)","v":391},{"$f":"VLOOKUP(DropDownList!$B$47,CntyQuery!$A$171:$FZ$185,AB$1)","v":363},{"$f":"VLOOKUP(DropDownList!$B$47,CntyQuery!$A$171:$FZ$185,AC$1)","v":144},{"$f":"VLOOKUP(DropDownList!$B$47,CntyQuery!$A$171:$FZ$185,AD$1)","v":219},{"$f":"VLOOKUP(DropDownList!$B$47,CntyQuery!$A$171:$FZ$185,AE$1)","v":546.82000000000005},{"$f":"VLOOKUP(DropDownList!$B$47,CntyQuery!$A$171:$FZ$185,AF$1)","v":539.5},{"$f":"VLOOKUP(DropDownList!$B$47,CntyQuery!$A$171:$FZ$185,AG$1)","v":621.96},{"$f":"VLOOKUP(DropDownList!$B$47,CntyQuery!$A$171:$FZ$185,AH$1)","v":485.19},{"$f":"VLOOKUP(DropDownList!$B$47,CntyQuery!$A$171:$FZ$185,AI$1)","v":393},{"$f":"VLOOKUP(DropDownList!$B$47,CntyQuery!$A$171:$FZ$185,AJ$1)","v":361},{"$f":"VLOOKUP(DropDownList!$B$47,CntyQuery!$A$171:$FZ$185,AK$1)","v":139},{"$f":"VLOOKUP(DropDownList!$B$47,CntyQuery!$A$171:$FZ$185,AL$1)","v":221},{"$f":"VLOOKUP(DropDownList!$B$47,CntyQuery!$A$171:$FZ$185,AM$1)","v":587.76},{"$f":"VLOOKUP(DropDownList!$B$47,CntyQuery!$A$171:$FZ$185,AN$1)","v":585.82000000000005},{"$f":"VLOOKUP(DropDownList!$B$47,CntyQuery!$A$171:$FZ$185,AO$1)","v":619.88},{"$f":"VLOOKUP(DropDownList!$B$47,CntyQuery!$A$171:$FZ$185,AP$1)","v":564.37},{"$f":"VLOOKUP(DropDownList!$B$47,CntyQuery!$A$171:$FZ$185,AQ$1)","v":366},{"$f":"VLOOKUP(DropDownList!$B$47,CntyQuery!$A$171:$FZ$185,AR$1)","v":335},{"$f":"VLOOKUP(DropDownList!$B$47,CntyQuery!$A$171:$FZ$185,AS$1)","v":123},{"$f":"VLOOKUP(DropDownList!$B$47,CntyQuery!$A$171:$FZ$185,AT$1)","v":212},{"$f":"VLOOKUP(DropDownList!$B$47,CntyQuery!$A$171:$FZ$185,AU$1)","v":641.34},{"$f":"VLOOKUP(DropDownList!$B$47,CntyQuery!$A$171:$FZ$185,AV$1)","v":638.70000000000005},{"$f":"VLOOKUP(DropDownList!$B$47,CntyQuery!$A$171:$FZ$185,AW$1)","v":643.65},{"$f":"VLOOKUP(DropDownList!$B$47,CntyQuery!$A$171:$FZ$185,AX$1)","v":635.84},{"$f":"VLOOKUP(DropDownList!$B$47,CntyQuery!$A$171:$FZ$185,AY$1)","v":338},{"$f":"VLOOKUP(DropDownList!$B$47,CntyQuery!$A$171:$FZ$185,AZ$1)","v":305},{"$f":"VLOOKUP(DropDownList!$B$47,CntyQuery!$A$171:$FZ$185,BA$1)","v":105},{"$f":"VLOOKUP(DropDownList!$B$47,CntyQuery!$A$171:$FZ$185,BB$1)","v":200},{"$f":"VLOOKUP(DropDownList!$B$47,CntyQuery!$A$171:$FZ$185,BC$1)","v":710.04},{"$f":"VLOOKUP(DropDownList!$B$47,CntyQuery!$A$171:$FZ$185,BD$1)","v":709.77},{"$f":"VLOOKUP(DropDownList!$B$47,CntyQuery!$A$171:$FZ$185,BE$1)","v":744.2},{"$f":"VLOOKUP(DropDownList!$B$47,CntyQuery!$A$171:$FZ$185,BF$1)","v":691.7},{"$f":"VLOOKUP(DropDownList!$B$47,CntyQuery!$A$171:$FZ$185,BG$1)","v":351},{"$f":"VLOOKUP(DropDownList!$B$47,CntyQuery!$A$171:$FZ$185,BH$1)","v":310},{"$f":"VLOOKUP(DropDownList!$B$47,CntyQuery!$A$171:$FZ$185,BI$1)","v":103},{"$f":"VLOOKUP(DropDownList!$B$47,CntyQuery!$A$171:$FZ$185,BJ$1)","v":208},{"$f":"VLOOKUP(DropDownList!$B$47,CntyQuery!$A$171:$FZ$185,BK$1)","v":635.95000000000005},{"$f":"VLOOKUP(DropDownList!$B$47,CntyQuery!$A$171:$FZ$185,BL$1)","v":636.19000000000005},{"$f":"VLOOKUP(DropDownList!$B$47,CntyQuery!$A$171:$FZ$185,BM$1)","v":675.32},{"$f":"VLOOKUP(DropDownList!$B$47,CntyQuery!$A$171:$FZ$185,BN$1)","v":616.84},{"$f":"VLOOKUP(DropDownList!$B$47,CntyQuery!$A$171:$FZ$185,BO$1)","v":318},{"$f":"VLOOKUP(DropDownList!$B$47,CntyQuery!$A$171:$FZ$185,BP$1)","v":279},{"$f":"VLOOKUP(DropDownList!$B$47,CntyQuery!$A$171:$FZ$185,BQ$1)","v":82},{"$f":"VLOOKUP(DropDownList!$B$47,CntyQuery!$A$171:$FZ$185,BR$1)","v":197},{"$f":"VLOOKUP(DropDownList!$B$47,CntyQuery!$A$171:$FZ$185,BS$1)","v":636.91999999999996},{"$f":"VLOOKUP(DropDownList!$B$47,CntyQuery!$A$171:$FZ$185,BT$1)","v":634.61},{"$f":"VLOOKUP(DropDownList!$B$47,CntyQuery!$A$171:$FZ$185,BU$1)","v":694.39},{"$f":"VLOOKUP(DropDownList!$B$47,CntyQuery!$A$171:$FZ$185,BV$1)","v":609.57000000000005},{"$f":"VLOOKUP(DropDownList!$B$47,CntyQuery!$A$171:$FZ$185,BW$1)","v":287},{"$f":"VLOOKUP(DropDownList!$B$47,CntyQuery!$A$171:$FZ$185,BX$1)","v":249},{"$f":"VLOOKUP(DropDownList!$B$47,CntyQuery!$A$171:$FZ$185,BY$1)","v":67},{"$f":"VLOOKUP(DropDownList!$B$47,CntyQuery!$A$171:$FZ$185,BZ$1)","v":182},{"$f":"VLOOKUP(DropDownList!$B$47,CntyQuery!$A$171:$FZ$185,CA$1)","v":640.54},{"$f":"VLOOKUP(DropDownList!$B$47,CntyQuery!$A$171:$FZ$185,CB$1)","v":648.77},{"$f":"VLOOKUP(DropDownList!$B$47,CntyQuery!$A$171:$FZ$185,CC$1)","v":871.25},{"$f":"VLOOKUP(DropDownList!$B$47,CntyQuery!$A$171:$FZ$185,CD$1)","v":567.49},{"$f":"VLOOKUP(DropDownList!$B$47,CntyQuery!$A$171:$FZ$185,CE$1)","v":270},{"$f":"VLOOKUP(DropDownList!$B$47,CntyQuery!$A$171:$FZ$185,CF$1)","v":228},{"$f":"VLOOKUP(DropDownList!$B$47,CntyQuery!$A$171:$FZ$185,CG$1)","v":38},{"$f":"VLOOKUP(DropDownList!$B$47,CntyQuery!$A$171:$FZ$185,CH$1)","v":190},{"$f":"VLOOKUP(DropDownList!$B$47,CntyQuery!$A$171:$FZ$185,CI$1)","v":592},{"$f":"VLOOKUP(DropDownList!$B$47,CntyQuery!$A$171:$FZ$185,CJ$1)","v":602.09},{"$f":"VLOOKUP(DropDownList!$B$47,CntyQuery!$A$171:$FZ$185,CK$1)","v":777.31},{"$f":"VLOOKUP(DropDownList!$B$47,CntyQuery!$A$171:$FZ$185,CL$1)","v":567.35},{"$f":"VLOOKUP(DropDownList!$B$47,CntyQuery!$A$171:$FZ$185,CM$1)","v":268},{"$f":"VLOOKUP(DropDownList!$B$47,CntyQuery!$A$171:$FZ$185,CN$1)","v":222},{"$f":"VLOOKUP(DropDownList!$B$47,CntyQuery!$A$171:$FZ$185,CO$1)","v":25},{"$f":"VLOOKUP(DropDownList!$B$47,CntyQuery!$A$171:$FZ$185,CP$1)","v":197},{"$f":"VLOOKUP(DropDownList!$B$47,CntyQuery!$A$171:$FZ$185,CQ$1)","v":674.11},{"$f":"VLOOKUP(DropDownList!$B$47,CntyQuery!$A$171:$FZ$185,CR$1)","v":707.19},{"$f":"VLOOKUP(DropDownList!$B$47,CntyQuery!$A$171:$FZ$185,CS$1)","v":713.75},{"$f":"VLOOKUP(DropDownList!$B$47,CntyQuery!$A$171:$FZ$185,CT$1)","v":706.36},{"$f":"VLOOKUP(DropDownList!$B$47,CntyQuery!$A$171:$FZ$185,CU$1)","v":293},{"$f":"VLOOKUP(DropDownList!$B$47,CntyQuery!$A$171:$FZ$185,CV$1)","v":245},{"$f":"VLOOKUP(DropDownList!$B$47,CntyQuery!$A$171:$FZ$185,CW$1)","v":36},{"$f":"VLOOKUP(DropDownList!$B$47,CntyQuery!$A$171:$FZ$185,CX$1)","v":209},{"$f":"VLOOKUP(DropDownList!$B$47,CntyQuery!$A$171:$FZ$185,CY$1)","v":694.66},{"$f":"VLOOKUP(DropDownList!$B$47,CntyQuery!$A$171:$FZ$185,CZ$1)","v":726.57},{"$f":"VLOOKUP(DropDownList!$B$47,CntyQuery!$A$171:$FZ$185,DA$1)","v":885.64},{"$f":"VLOOKUP(DropDownList!$B$47,CntyQuery!$A$171:$FZ$185,DB$1)","v":698.82},{"$f":"VLOOKUP(DropDownList!$B$47,CntyQuery!$A$171:$FZ$185,DC$1)","v":303},{"$f":"VLOOKUP(DropDownList!$B$47,CntyQuery!$A$171:$FZ$185,DD$1)","v":258},{"$f":"VLOOKUP(DropDownList!$B$47,CntyQuery!$A$171:$FZ$185,DE$1)","v":43},{"$f":"VLOOKUP(DropDownList!$B$47,CntyQuery!$A$171:$FZ$185,DF$1)","v":215},{"$f":"VLOOKUP(DropDownList!$B$47,CntyQuery!$A$171:$FZ$185,DG$1)","v":688.99},{"$f":"VLOOKUP(DropDownList!$B$47,CntyQuery!$A$171:$FZ$185,DH$1)","v":712.76},{"$f":"VLOOKUP(DropDownList!$B$47,CntyQuery!$A$171:$FZ$185,DI$1)","v":770.97},{"$f":"VLOOKUP(DropDownList!$B$47,CntyQuery!$A$171:$FZ$185,DJ$1)","v":701},{"$f":"VLOOKUP(DropDownList!$B$47,CntyQuery!$A$171:$FZ$185,DK$1)","v":314},{"$f":"VLOOKUP(DropDownList!$B$47,CntyQuery!$A$171:$FZ$185,DL$1)","v":270},{"$f":"VLOOKUP(DropDownList!$B$47,CntyQuery!$A$171:$FZ$185,DM$1)","v":42},{"$f":"VLOOKUP(DropDownList!$B$47,CntyQuery!$A$171:$FZ$185,DN$1)","v":228},{"$f":"VLOOKUP(DropDownList!$B$47,CntyQuery!$A$171:$FZ$185,DO$1)","v":653.34},{"$f":"VLOOKUP(DropDownList!$B$47,CntyQuery!$A$171:$FZ$185,DP$1)","v":663.48},{"$f":"VLOOKUP(DropDownList!$B$47,CntyQuery!$A$171:$FZ$185,DQ$1)","v":829.78},{"$f":"VLOOKUP(DropDownList!$B$47,CntyQuery!$A$171:$FZ$185,DR$1)","v":633.16},{"$f":"VLOOKUP(DropDownList!$B$47,CntyQuery!$A$171:$FZ$185,DS$1)","v":324},{"$f":"VLOOKUP(DropDownList!$B$47,CntyQuery!$A$171:$FZ$185,DT$1)","v":279},{"$f":"VLOOKUP(DropDownList!$B$47,CntyQuery!$A$171:$FZ$185,DU$1)","v":42},{"$f":"VLOOKUP(DropDownList!$B$47,CntyQuery!$A$171:$FZ$185,DV$1)","v":237},{"$f":"VLOOKUP(DropDownList!$B$47,CntyQuery!$A$171:$FZ$185,DW$1)","v":620.96},{"$f":"VLOOKUP(DropDownList!$B$47,CntyQuery!$A$171:$FZ$185,DX$1)","v":625.71},{"$f":"VLOOKUP(DropDownList!$B$47,CntyQuery!$A$171:$FZ$185,DY$1)","v":823.99},{"$f":"VLOOKUP(DropDownList!$B$47,CntyQuery!$A$171:$FZ$185,DZ$1)","v":590.66999999999996},{"$f":"VLOOKUP(DropDownList!$B$47,CntyQuery!$A$171:$FZ$185,EA$1)","v":310},{"$f":"VLOOKUP(DropDownList!$B$47,CntyQuery!$A$171:$FZ$185,EB$1)","v":268},{"$f":"VLOOKUP(DropDownList!$B$47,CntyQuery!$A$171:$FZ$185,EC$1)","v":40},{"$f":"VLOOKUP(DropDownList!$B$47,CntyQuery!$A$171:$FZ$185,ED$1)","v":228},{"$f":"VLOOKUP(DropDownList!$B$47,CntyQuery!$A$171:$FZ$185,EE$1)","v":626.41999999999996},{"$f":"VLOOKUP(DropDownList!$B$47,CntyQuery!$A$171:$FZ$185,EF$1)","v":621.05999999999995},{"$f":"VLOOKUP(DropDownList!$B$47,CntyQuery!$A$171:$FZ$185,EG$1)","v":853.2},{"$f":"VLOOKUP(DropDownList!$B$47,CntyQuery!$A$171:$FZ$185,EH$1)","v":580.4},{"$f":"VLOOKUP(DropDownList!$B$47,CntyQuery!$A$171:$FZ$185,EI$1)","v":328},{"$f":"VLOOKUP(DropDownList!$B$47,CntyQuery!$A$171:$FZ$185,EJ$1)","v":284},{"$f":"VLOOKUP(DropDownList!$B$47,CntyQuery!$A$171:$FZ$185,EK$1)","v":45},{"$f":"VLOOKUP(DropDownList!$B$47,CntyQuery!$A$171:$FZ$185,EL$1)","v":239},{"$f":"VLOOKUP(DropDownList!$B$47,CntyQuery!$A$171:$FZ$185,EM$1)","v":694.36},{"$f":"VLOOKUP(DropDownList!$B$47,CntyQuery!$A$171:$FZ$185,EN$1)","v":700.3},{"$f":"VLOOKUP(DropDownList!$B$47,CntyQuery!$A$171:$FZ$185,EO$1)","v":908.77},{"$f":"VLOOKUP(DropDownList!$B$47,CntyQuery!$A$171:$FZ$185,EP$1)","v":660.76},{"$f":"VLOOKUP(DropDownList!$B$47,CntyQuery!$A$171:$FZ$185,EQ$1)","v":325},{"$f":"VLOOKUP(DropDownList!$B$47,CntyQuery!$A$171:$FZ$185,ER$1)","v":269},{"$f":"VLOOKUP(DropDownList!$B$47,CntyQuery!$A$171:$FZ$185,ES$1)","v":56},{"$f":"VLOOKUP(DropDownList!$B$47,CntyQuery!$A$171:$FZ$185,ET$1)","v":48},{"$f":"VLOOKUP(DropDownList!$B$47,CntyQuery!$A$171:$FZ$185,EU$1)","v":221},{"$f":"VLOOKUP(DropDownList!$B$47,CntyQuery!$A$171:$FZ$185,EV$1)","v":673.63},{"$f":"VLOOKUP(DropDownList!$B$47,CntyQuery!$A$171:$FZ$185,EW$1)","v":702.55},{"$f":"VLOOKUP(DropDownList!$B$47,CntyQuery!$A$171:$FZ$185,EX$1)","v":534.71},{"$f":"VLOOKUP(DropDownList!$B$47,CntyQuery!$A$171:$FZ$185,EY$1)","v":914.68},{"$f":"VLOOKUP(DropDownList!$B$47,CntyQuery!$A$171:$FZ$185,EZ$1)","v":656.28}]
[]
[]
["Labor Force and Unemployment Rate","Query Name: DPQryUnempByCnty"]
["PlaceName","LaborForce1990","LaborForce1991","LaborForce1992","LaborForce1993","LaborForce1994","LaborForce1995","LaborForce1996","LaborForce1997","LaborForce1998","LaborForce1999","LaborForce2000","LaborForce2001","LaborForce2002","LaborForce2003","NumberEmployed1990","NumberEmployed1991","NumberEmployed1992","NumberEmployed1993","NumberEmployed1994","NumberEmployed1995","NumberEmployed1996","NumberEmployed1997","NumberEmployed1998","NumberEmployed1999","NumberEmployed2000","NumberEmployed2001","NumberEmployed2002","NumberEmployed2003","UnempRate1990","UnempRate1991","UnempRate1992","UnempRate1993","UnempRate1994","UnempRate1995","UnempRate1996","UnempRate1997","UnempRate1998","UnempRate1999","UnempRate2000","UnempRate2001","UnempRate2002","UnempRate2003","NumbUnEmployed1990","NumbUnEmployed1991","NumbUnEmployed1992","NumbUnEmployed1993","NumbUnEmployed1994","NumbUnEmployed1995","NumbUnEmployed1996","NumbUnEmployed1997","NumbUnEmployed1998","NumbUnEmployed1999","NumbUnEmployed2000","NumbUnEmployed2001","NumbUnEmployed2002","NumbUnEmployed2003","LaborForce2004","NumberEmployed2004","UnempRate2004","NumbUnEmployed2004","LaborForce2005","NumberEmployed2005","NumbUnEmp2005","UnempRate2005","LaborForce2006","NumberEmployed2006","NumbUnEmp2006","UnempRate2006","LaborForce2007","NumberEmployed2007","NumbUnEmp2007","UnempRate2007","LaborForce2008","NumberEmployed2008","NumbUnEmp2008","UnempRate2008","LaborForce2009","NumberEmployed2009","NumbUnEmp2009","UnempRate2009"]
[{"$f":"VLOOKUP(DropDownList!$B$47,CntyQuery!$A$220:$CC$229,A$1)","v":"Grafton County"},{"$f":"VLOOKUP(DropDownList!$B$47,CntyQuery!$A$220:$CC$229,B$1)","v":40114},{"$f":"VLOOKUP(DropDownList!$B$47,CntyQuery!$A$220:$CC$229,C$1)","v":40615},{"$f":"VLOOKUP(DropDownList!$B$47,CntyQuery!$A$220:$CC$229,D$1)","v":40202},{"$f":"VLOOKUP(DropDownList!$B$47,CntyQuery!$A$220:$CC$229,E$1)","v":40214},{"$f":"VLOOKUP(DropDownList!$B$47,CntyQuery!$A$220:$CC$229,F$1)","v":41480},{"$f":"VLOOKUP(DropDownList!$B$47,CntyQuery!$A$220:$CC$229,G$1)","v":42160},{"$f":"VLOOKUP(DropDownList!$B$47,CntyQuery!$A$220:$CC$229,H$1)","v":41465},{"$f":"VLOOKUP(DropDownList!$B$47,CntyQuery!$A$220:$CC$229,I$1)","v":42872},{"$f":"VLOOKUP(DropDownList!$B$47,CntyQuery!$A$220:$CC$229,J$1)","v":43915},{"$f":"VLOOKUP(DropDownList!$B$47,CntyQuery!$A$220:$CC$229,K$1)","v":44610},{"$f":"VLOOKUP(DropDownList!$B$47,CntyQuery!$A$220:$CC$229,L$1)","v":44860},{"$f":"VLOOKUP(DropDownList!$B$47,CntyQuery!$A$220:$CC$229,M$1)","v":45010},{"$f":"VLOOKUP(DropDownList!$B$47,CntyQuery!$A$220:$CC$229,N$1)","v":45440},{"$f":"VLOOKUP(DropDownList!$B$47,CntyQuery!$A$220:$CC$229,O$1)","v":45680},{"$f":"VLOOKUP(DropDownList!$B$47,CntyQuery!$A$220:$CC$229,P$1)","v":37935},{"$f":"VLOOKUP(DropDownList!$B$47,CntyQuery!$A$220:$CC$229,Q$1)","v":37753},{"$f":"VLOOKUP(DropDownList!$B$47,CntyQuery!$A$220:$CC$229,R$1)","v":37788},{"$f":"VLOOKUP(DropDownList!$B$47,CntyQuery!$A$220:$CC$229,S$1)","v":38153},{"$f":"VLOOKUP(DropDownList!$B$47,CntyQuery!$A$220:$CC$229,T$1)","v":40169},{"$f":"VLOOKUP(DropDownList!$B$47,CntyQuery!$A$220:$CC$229,U$1)","v":40853},{"$f":"VLOOKUP(DropDownList!$B$47,CntyQuery!$A$220:$CC$229,V$1)","v":40117},{"$f":"VLOOKUP(DropDownList!$B$47,CntyQuery!$A$220:$CC$229,W$1)","v":41781},{"$f":"VLOOKUP(DropDownList!$B$47,CntyQuery!$A$220:$CC$229,X$1)","v":42942},{"$f":"VLOOKUP(DropDownList!$B$47,CntyQuery!$A$220:$CC$229,Y$1)","v":43752},{"$f":"VLOOKUP(DropDownList!$B$47,CntyQuery!$A$220:$CC$229,Z$1)","v":43800},{"$f":"VLOOKUP(DropDownList!$B$47,CntyQuery!$A$220:$CC$229,AA$1)","v":43800},{"$f":"VLOOKUP(DropDownList!$B$47,CntyQuery!$A$220:$CC$229,AB$1)","v":44110},{"$f":"VLOOKUP(DropDownList!$B$47,CntyQuery!$A$220:$CC$229,AC$1)","v":44300},{"$f":"VLOOKUP(DropDownList!$B$47,CntyQuery!$A$220:$CC$229,AD$1)","v":5.4},{"$f":"VLOOKUP(DropDownList!$B$47,CntyQuery!$A$220:$CC$229,AE$1)","v":7},{"$f":"VLOOKUP(DropDownList!$B$47,CntyQuery!$A$220:$CC$229,AF$1)","v":6},{"$f":"VLOOKUP(DropDownList!$B$47,CntyQuery!$A$220:$CC$229,AG$1)","v":5.1000000000000005},{"$f":"VLOOKUP(DropDownList!$B$47,CntyQuery!$A$220:$CC$229,AH$1)","v":3.2},{"$f":"VLOOKUP(DropDownList!$B$47,CntyQuery!$A$220:$CC$229,AI$1)","v":3.1},{"$f":"VLOOKUP(DropDownList!$B$47,CntyQuery!$A$220:$CC$229,AJ$1)","v":3.3000000000000003},{"$f":"VLOOKUP(DropDownList!$B$47,CntyQuery!$A$220:$CC$229,AK$1)","v":2.5},{"$f":"VLOOKUP(DropDownList!$B$47,CntyQuery!$A$220:$CC$229,AL$1)","v":2.2000000000000002},{"$f":"VLOOKUP(DropDownList!$B$47,CntyQuery!$A$220:$CC$229,AM$1)","v":1.9000000000000001},{"$f":"VLOOKUP(DropDownList!$B$47,CntyQuery!$A$220:$CC$229,AN$1)","v":2.4},{"$f":"VLOOKUP(DropDownList!$B$47,CntyQuery!$A$220:$CC$229,AO$1)","v":2.7},{"$f":"VLOOKUP(DropDownList!$B$47,CntyQuery!$A$220:$CC$229,AP$1)","v":2.9},{"$f":"VLOOKUP(DropDownList!$B$47,CntyQuery!$A$220:$CC$229,AQ$1)","v":3},{"$f":"VLOOKUP(DropDownList!$B$47,CntyQuery!$A$220:$CC$229,AR$1)","v":2179},{"$f":"VLOOKUP(DropDownList!$B$47,CntyQuery!$A$220:$CC$229,AS$1)","v":2862},{"$f":"VLOOKUP(DropDownList!$B$47,CntyQuery!$A$220:$CC$229,AT$1)","v":2414},{"$f":"VLOOKUP(DropDownList!$B$47,CntyQuery!$A$220:$CC$229,AU$1)","v":2061},{"$f":"VLOOKUP(DropDownList!$B$47,CntyQuery!$A$220:$CC$229,AV$1)","v":1311},{"$f":"VLOOKUP(DropDownList!$B$47,CntyQuery!$A$220:$CC$229,AW$1)","v":1307},{"$f":"VLOOKUP(DropDownList!$B$47,CntyQuery!$A$220:$CC$229,AX$1)","v":1348},{"$f":"VLOOKUP(DropDownList!$B$47,CntyQuery!$A$220:$CC$229,AY$1)","v":1091},{"$f":"VLOOKUP(DropDownList!$B$47,CntyQuery!$A$220:$CC$229,AZ$1)","v":973},{"$f":"VLOOKUP(DropDownList!$B$47,CntyQuery!$A$220:$CC$229,BA$1)","v":858},{"$f":"VLOOKUP(DropDownList!$B$47,CntyQuery!$A$220:$CC$229,BB$1)","v":1060},{"$f":"VLOOKUP(DropDownList!$B$47,CntyQuery!$A$220:$CC$229,BC$1)","v":1210},{"$f":"VLOOKUP(DropDownList!$B$47,CntyQuery!$A$220:$CC$229,BD$1)","v":1330},{"$f":"VLOOKUP(DropDownList!$B$47,CntyQuery!$A$220:$CC$229,BE$1)","v":1380},{"$f":"VLOOKUP(DropDownList!$B$47,CntyQuery!$A$220:$CC$229,BF$1)","v":46400},{"$f":"VLOOKUP(DropDownList!$B$47,CntyQuery!$A$220:$CC$229,BG$1)","v":45110},{"$f":"VLOOKUP(DropDownList!$B$47,CntyQuery!$A$220:$CC$229,BH$1)","v":2.8},{"$f":"VLOOKUP(DropDownList!$B$47,CntyQuery!$A$220:$CC$229,BI$1)","v":1290},{"$f":"VLOOKUP(DropDownList!$B$47,CntyQuery!$A$220:$CC$229,BJ$1)","v":46770},{"$f":"VLOOKUP(DropDownList!$B$47,CntyQuery!$A$220:$CC$229,BK$1)","v":45450},{"$f":"VLOOKUP(DropDownList!$B$47,CntyQuery!$A$220:$CC$229,BL$1)","v":1320},{"$f":"VLOOKUP(DropDownList!$B$47,CntyQuery!$A$220:$CC$229,BM$1)","v":2.8},{"$f":"VLOOKUP(DropDownList!$B$47,CntyQuery!$A$220:$CC$229,BN$1)","v":47850},{"$f":"VLOOKUP(DropDownList!$B$47,CntyQuery!$A$220:$CC$229,BO$1)","v":46480},{"$f":"VLOOKUP(DropDownList!$B$47,CntyQuery!$A$220:$CC$229,BP$1)","v":1370},{"$f":"VLOOKUP(DropDownList!$B$47,CntyQuery!$A$220:$CC$229,BQ$1)","v":2.9},{"$f":"VLOOKUP(DropDownList!$B$47,CntyQuery!$A$220:$CC$229,BR$1)","v":48290},{"$f":"VLOOKUP(DropDownList!$B$47,CntyQuery!$A$220:$CC$229,BS$1)","v":46860},{"$f":"VLOOKUP(DropDownList!$B$47,CntyQuery!$A$220:$CC$229,BT$1)","v":1430},{"$f":"VLOOKUP(DropDownList!$B$47,CntyQuery!$A$220:$CC$229,BU$1)","v":3},{"$f":"VLOOKUP(DropDownList!$B$47,CntyQuery!$A$220:$CC$229,BV$1)","v":48800},{"$f":"VLOOKUP(DropDownList!$B$47,CntyQuery!$A$220:$CC$229,BW$1)","v":47260},{"$f":"VLOOKUP(DropDownList!$B$47,CntyQuery!$A$220:$CC$229,BX$1)","v":1540},{"$f":"VLOOKUP(DropDownList!$B$47,CntyQuery!$A$220:$CC$229,BY$1)","v":3.1},{"$f":"VLOOKUP(DropDownList!$B$47,CntyQuery!$A$220:$CC$229,BZ$1)","v":48890},{"$f":"VLOOKUP(DropDownList!$B$47,CntyQuery!$A$220:$CC$229,CA$1)","v":46380},{"$f":"VLOOKUP(DropDownList!$B$47,CntyQuery!$A$220:$CC$229,CB$1)","v":2510},{"$f":"VLOOKUP(DropDownList!$B$47,CntyQuery!$A$220:$CC$229,CC$1)","v":5.0999999999999996}]
[]
[null,null,null,null,null,null,null,null,null,null,null,null,{"$f":"IF((CntyDataLink!$BL$25)=\"n\",NA(),IF(VALUE(CntyDataLink!$BL$25)=\"\",NA(),VALUE(CntyDataLink!$BL$25)))","v":636.19000000000005}]
["Census 2000   -           Query Name:  TownAllQuery3",2,{"$f":"B33+1","v":3},{"$f":"C33+1","v":4},5,6,7,8,9,10,11,12,13,14,15,16,17,18,19,20,21,22,23,24,25,26,27,28,29,30,31,32,33,34,35,36,37,38,39,40,41,42,43,44,45,46,47,48,49,50,51,52,53,54,55,56,57,58,59,60,61,62,63,64,65,66,67,{"$f":"BO33+1","v":68},69,70,71,72,73,74,75,76,77,78,79,80,81,82,83,84,85,86,87,88,89,90,91,92,93,94,95,96,97,98,99,100,101,102]
["NAME","COUNTY","LOGRECNO","COUSUB","TRACT","AREALAND","AREAWATR","POP100","HU100","2000Population","PopOfOneRace","PopWhite","PopBlack","PopAmIndian","PopAsian","PopHawaiian","PopOtherRace","Pop2orMoreRaces","PopHispanicLatino","PopNotHispanicLatino","PopMale","PopMale<15","PopMale15to24","PopMale25to34","PopMale35to44","PopMale45to54","PopMale55to64","PopMale65to74","PopMale75to84","PopMale85andOver","PopFemale","PopFemale<15","PopFemale15to24","PopFemale25to34","PopFemale35t44","PopFemale45to54","PopFemale55to64","PopFemale65to74","PopFemale75to84","PopFemale85andOver","Households2000","PopInHH","AvgHHSize","HHs1Person","HHs2orMorePerson","HHsFamily","HHMarriedCoupleFam","HHSingleParentFam","HHsNonFamily","Families","PopInFam","AvgFamSize","TotHsUnits","OccHsUnits","OwnerOccHU","RenterOccHU","VctHsUnits","VctHUForRent","VctHUForSale","VctHUSeasonal","PopInOccHU","PopInOwnOccHU","PopInRntOccHU","AvgHHSize2","AvgHHSizOwnOcc","AvgHHSizRntOcc","OwnOccWhtHsHldr","OwnOccBlkHsHldr","OwnOccAmIHsHldr","OwnOccAsnHsHldr","OwnOccPIsHsHldr","OwnOccORHsHldr","OwnOcc2RcHsHldr","RntOccWhtHsHldr","RntOccBlkHsHldr","RntOccAmIHsHldr","RntOccAsnHsHldr","RntOccPIsHsHldr","RntOccORHsHldr","RntOcc2RcHsHldr","OwnOccHH15to24","OwnOccHH25to34","OwnOccHH35to44","OwnOccHH45to54","OwnOccHH55to64","OwnOccHH65to74","OwnOccHH75to84","OwnOccHH85Over","RntOccHH15to24","RntOccHH25to34","RntOccHH35to44","RntOccHH45to54","RntOccHH55to64","RntOccHH65to74","RntOccHH75to84","RntOccHH85Over","P27TotalPop","P27PopInHseHlds","P27PopInGrpQtrs","Median Age Total","Median Age (Male)","Median Age (Female)"]
[{"$f":"VLOOKUP(DropDownList!$B$47,CntyQryCensus!$A$4:$CW$46,A$1)","v":"Grantham"},{"$f":"VLOOKUP(DropDownList!$B$47,CntyQryCensus!$A$4:$CW$46,B$1)","v":"019"},{"$f":"VLOOKUP(DropDownList!$B$47,CntyQryCensus!$A$4:$CW$46,C$1)","v":"0036868"},{"$f":"VLOOKUP(DropDownList!$B$47,CntyQryCensus!$A$4:$CW$46,D$1)","v":"31220"},{"$f":"VLOOKUP(DropDownList!$B$47,CntyQryCensus!$A$4:$CW$46,E$1)","v":""},{"$f":"VLOOKUP(DropDownList!$B$47,CntyQryCensus!$A$4:$CW$46,F$1)","v":"      69361907"},{"$f":"VLOOKUP(DropDownList!$B$47,CntyQryCensus!$A$4:$CW$46,G$1)","v":"       2257377"},{"$f":"VLOOKUP(DropDownList!$B$47,CntyQryCensus!$A$4:$CW$46,H$1)","v":2167},{"$f":"VLOOKUP(DropDownList!$B$47,CntyQryCensus!$A$4:$CW$46,I$1)","v":"     1513"},{"$f":"VLOOKUP(DropDownList!$B$47,CntyQryCensus!$A$4:$CW$46,J$1)","v":2167},{"$f":"VLOOKUP(DropDownList!$B$47,CntyQryCensus!$A$4:$CW$46,K$1)","v":2149},{"$f":"VLOOKUP(DropDownList!$B$47,CntyQryCensus!$A$4:$CW$46,L$1)","v":2130},{"$f":"VLOOKUP(DropDownList!$B$47,CntyQryCensus!$A$4:$CW$46,M$1)","v":6},{"$f":"VLOOKUP(DropDownList!$B$47,CntyQryCensus!$A$4:$CW$46,N$1)","v":2},{"$f":"VLOOKUP(DropDownList!$B$47,CntyQryCensus!$A$4:$CW$46,O$1)","v":9},{"$f":"VLOOKUP(DropDownList!$B$47,CntyQryCensus!$A$4:$CW$46,P$1)","v":0},{"$f":"VLOOKUP(DropDownList!$B$47,CntyQryCensus!$A$4:$CW$46,Q$1)","v":2},{"$f":"VLOOKUP(DropDownList!$B$47,CntyQryCensus!$A$4:$CW$46,R$1)","v":18},{"$f":"VLOOKUP(DropDownList!$B$47,CntyQryCensus!$A$4:$CW$46,S$1)","v":12},{"$f":"VLOOKUP(DropDownList!$B$47,CntyQryCensus!$A$4:$CW$46,T$1)","v":2155},{"$f":"VLOOKUP(DropDownList!$B$47,CntyQryCensus!$A$4:$CW$46,U$1)","v":1062},{"$f":"VLOOKUP(DropDownList!$B$47,CntyQryCensus!$A$4:$CW$46,V$1)","v":175},{"$f":"VLOOKUP(DropDownList!$B$47,CntyQryCensus!$A$4:$CW$46,W$1)","v":65},{"$f":"VLOOKUP(DropDownList!$B$47,CntyQryCensus!$A$4:$CW$46,X$1)","v":120},{"$f":"VLOOKUP(DropDownList!$B$47,CntyQryCensus!$A$4:$CW$46,Y$1)","v":154},{"$f":"VLOOKUP(DropDownList!$B$47,CntyQryCensus!$A$4:$CW$46,Z$1)","v":171},{"$f":"VLOOKUP(DropDownList!$B$47,CntyQryCensus!$A$4:$CW$46,AA$1)","v":123},{"$f":"VLOOKUP(DropDownList!$B$47,CntyQryCensus!$A$4:$CW$46,AB$1)","v":166},{"$f":"VLOOKUP(DropDownList!$B$47,CntyQryCensus!$A$4:$CW$46,AC$1)","v":77},{"$f":"VLOOKUP(DropDownList!$B$47,CntyQryCensus!$A$4:$CW$46,AD$1)","v":11},{"$f":"VLOOKUP(DropDownList!$B$47,CntyQryCensus!$A$4:$CW$46,AE$1)","v":1105},{"$f":"VLOOKUP(DropDownList!$B$47,CntyQryCensus!$A$4:$CW$46,AF$1)","v":178},{"$f":"VLOOKUP(DropDownList!$B$47,CntyQryCensus!$A$4:$CW$46,AG$1)","v":77},{"$f":"VLOOKUP(DropDownList!$B$47,CntyQryCensus!$A$4:$CW$46,AH$1)","v":110},{"$f":"VLOOKUP(DropDownList!$B$47,CntyQryCensus!$A$4:$CW$46,AI$1)","v":174},{"$f":"VLOOKUP(DropDownList!$B$47,CntyQryCensus!$A$4:$CW$46,AJ$1)","v":168},{"$f":"VLOOKUP(DropDownList!$B$47,CntyQryCensus!$A$4:$CW$46,AK$1)","v":181},{"$f":"VLOOKUP(DropDownList!$B$47,CntyQryCensus!$A$4:$CW$46,AL$1)","v":153},{"$f":"VLOOKUP(DropDownList!$B$47,CntyQryCensus!$A$4:$CW$46,AM$1)","v":57},{"$f":"VLOOKUP(DropDownList!$B$47,CntyQryCensus!$A$4:$CW$46,AN$1)","v":7},{"$f":"VLOOKUP(DropDownList!$B$47,CntyQryCensus!$A$4:$CW$46,AO$1)","v":924},{"$f":"VLOOKUP(DropDownList!$B$47,CntyQryCensus!$A$4:$CW$46,AP$1)","v":2167},{"$f":"VLOOKUP(DropDownList!$B$47,CntyQryCensus!$A$4:$CW$46,AQ$1)","v":2.35},{"$f":"VLOOKUP(DropDownList!$B$47,CntyQryCensus!$A$4:$CW$46,AR$1)","v":177},{"$f":"VLOOKUP(DropDownList!$B$47,CntyQryCensus!$A$4:$CW$46,AS$1)","v":747},{"$f":"VLOOKUP(DropDownList!$B$47,CntyQryCensus!$A$4:$CW$46,AT$1)","v":708},{"$f":"VLOOKUP(DropDownList!$B$47,CntyQryCensus!$A$4:$CW$46,AU$1)","v":649},{"$f":"VLOOKUP(DropDownList!$B$47,CntyQryCensus!$A$4:$CW$46,AV$1)","v":59},{"$f":"VLOOKUP(DropDownList!$B$47,CntyQryCensus!$A$4:$CW$46,AW$1)","v":39},{"$f":"VLOOKUP(DropDownList!$B$47,CntyQryCensus!$A$4:$CW$46,AX$1)","v":708},{"$f":"VLOOKUP(DropDownList!$B$47,CntyQryCensus!$A$4:$CW$46,AY$1)","v":1889},{"$f":"VLOOKUP(DropDownList!$B$47,CntyQryCensus!$A$4:$CW$46,AZ$1)","v":2.67},{"$f":"VLOOKUP(DropDownList!$B$47,CntyQryCensus!$A$4:$CW$46,BA$1)","v":1513},{"$f":"VLOOKUP(DropDownList!$B$47,CntyQryCensus!$A$4:$CW$46,BB$1)","v":924},{"$f":"VLOOKUP(DropDownList!$B$47,CntyQryCensus!$A$4:$CW$46,BC$1)","v":819},{"$f":"VLOOKUP(DropDownList!$B$47,CntyQryCensus!$A$4:$CW$46,BD$1)","v":105},{"$f":"VLOOKUP(DropDownList!$B$47,CntyQryCensus!$A$4:$CW$46,BE$1)","v":589},{"$f":"VLOOKUP(DropDownList!$B$47,CntyQryCensus!$A$4:$CW$46,BF$1)","v":7},{"$f":"VLOOKUP(DropDownList!$B$47,CntyQryCensus!$A$4:$CW$46,BG$1)","v":25},{"$f":"VLOOKUP(DropDownList!$B$47,CntyQryCensus!$A$4:$CW$46,BH$1)","v":533},{"$f":"VLOOKUP(DropDownList!$B$47,CntyQryCensus!$A$4:$CW$46,BI$1)","v":2167},{"$f":"VLOOKUP(DropDownList!$B$47,CntyQryCensus!$A$4:$CW$46,BJ$1)","v":1915},{"$f":"VLOOKUP(DropDownList!$B$47,CntyQryCensus!$A$4:$CW$46,BK$1)","v":252},{"$f":"VLOOKUP(DropDownList!$B$47,CntyQryCensus!$A$4:$CW$46,BL$1)","v":2.35},{"$f":"VLOOKUP(DropDownList!$B$47,CntyQryCensus!$A$4:$CW$46,BM$1)","v":2.34},{"$f":"VLOOKUP(DropDownList!$B$47,CntyQryCensus!$A$4:$CW$46,BN$1)","v":2.4},{"$f":"VLOOKUP(DropDownList!$B$47,CntyQryCensus!$A$4:$CW$46,BO$1)","v":812},{"$f":"VLOOKUP(DropDownList!$B$47,CntyQryCensus!$A$4:$CW$46,BP$1)","v":2},{"$f":"VLOOKUP(DropDownList!$B$47,CntyQryCensus!$A$4:$CW$46,BQ$1)","v":0},{"$f":"VLOOKUP(DropDownList!$B$47,CntyQryCensus!$A$4:$CW$46,BR$1)","v":2},{"$f":"VLOOKUP(DropDownList!$B$47,CntyQryCensus!$A$4:$CW$46,BS$1)","v":0},{"$f":"VLOOKUP(DropDownList!$B$47,CntyQryCensus!$A$4:$CW$46,BT$1)","v":0},{"$f":"VLOOKUP(DropDownList!$B$47,CntyQryCensus!$A$4:$CW$46,BU$1)","v":3},{"$f":"VLOOKUP(DropDownList!$B$47,CntyQryCensus!$A$4:$CW$46,BV$1)","v":101},{"$f":"VLOOKUP(DropDownList!$B$47,CntyQryCensus!$A$4:$CW$46,BW$1)","v":1},{"$f":"VLOOKUP(DropDownList!$B$47,CntyQryCensus!$A$4:$CW$46,BX$1)","v":0},{"$f":"VLOOKUP(DropDownList!$B$47,CntyQryCensus!$A$4:$CW$46,BY$1)","v":2},{"$f":"VLOOKUP(DropDownList!$B$47,CntyQryCensus!$A$4:$CW$46,BZ$1)","v":0},{"$f":"VLOOKUP(DropDownList!$B$47,CntyQryCensus!$A$4:$CW$46,CA$1)","v":0},{"$f":"VLOOKUP(DropDownList!$B$47,CntyQryCensus!$A$4:$CW$46,CB$1)","v":1},{"$f":"VLOOKUP(DropDownList!$B$47,CntyQryCensus!$A$4:$CW$46,CC$1)","v":3},{"$f":"VLOOKUP(DropDownList!$B$47,CntyQryCensus!$A$4:$CW$46,CD$1)","v":66},{"$f":"VLOOKUP(DropDownList!$B$47,CntyQryCensus!$A$4:$CW$46,CE$1)","v":144},{"$f":"VLOOKUP(DropDownList!$B$47,CntyQryCensus!$A$4:$CW$46,CF$1)","v":178},{"$f":"VLOOKUP(DropDownList!$B$47,CntyQryCensus!$A$4:$CW$46,CG$1)","v":147},{"$f":"VLOOKUP(DropDownList!$B$47,CntyQryCensus!$A$4:$CW$46,CH$1)","v":182},{"$f":"VLOOKUP(DropDownList!$B$47,CntyQryCensus!$A$4:$CW$46,CI$1)","v":88},{"$f":"VLOOKUP(DropDownList!$B$47,CntyQryCensus!$A$4:$CW$46,CJ$1)","v":11},{"$f":"VLOOKUP(DropDownList!$B$47,CntyQryCensus!$A$4:$CW$46,CK$1)","v":9},{"$f":"VLOOKUP(DropDownList!$B$47,CntyQryCensus!$A$4:$CW$46,CL$1)","v":33},{"$f":"VLOOKUP(DropDownList!$B$47,CntyQryCensus!$A$4:$CW$46,CM$1)","v":25},{"$f":"VLOOKUP(DropDownList!$B$47,CntyQryCensus!$A$4:$CW$46,CN$1)","v":19},{"$f":"VLOOKUP(DropDownList!$B$47,CntyQryCensus!$A$4:$CW$46,CO$1)","v":13},{"$f":"VLOOKUP(DropDownList!$B$47,CntyQryCensus!$A$4:$CW$46,CP$1)","v":3},{"$f":"VLOOKUP(DropDownList!$B$47,CntyQryCensus!$A$4:$CW$46,CQ$1)","v":2},{"$f":"VLOOKUP(DropDownList!$B$47,CntyQryCensus!$A$4:$CW$46,CR$1)","v":1},{"$f":"VLOOKUP(DropDownList!$B$47,CntyQryCensus!$A$4:$CW$46,CS$1)","v":2167},{"$f":"VLOOKUP(DropDownList!$B$47,CntyQryCensus!$A$4:$CW$46,CT$1)","v":2167},{"$f":"VLOOKUP(DropDownList!$B$47,CntyQryCensus!$A$4:$CW$46,CU$1)","v":0},{"$f":"VLOOKUP(DropDownList!$B$47,CntyQryCensus!$A$4:$CW$46,CV$1)","v":"Sullivan"},{"$f":"VLOOKUP(DropDownList!$B$47,CntyQryCensus!$A$4:$CW$46,CW$1)","v":36.799999999999997},{"$f":"VLOOKUP(DropDownList!$B$47,CntyQryCensus!$A$4:$CW$46,CX$1)","v":{"$error":"#REF!"}}]
[]
[]
["Census 2000 DemoProfile Sample Data Tables 2&3   -  DPTab23TownQry"]
["NAME","COUSUB","AREANAME","PopInSchool","Preschool","Kindergarten","Elementary","HighSchool","College","Pop25andOver","HighSchoolGrad","SomeCollege","AssocDegree","BachelDegree","GradDegree","HSGradorHigher","CollegeGradorHigher","Pop5to20yrs","Pop5to20wDis","Pop21to64","Pop21to64wDis","Pop65over","Pop65overwDis","Pop5yrsOver","SameHUin95","DiffHUinUSin95","HUinSameCountyin95","HUinSameStatein95","TotalPop","NativePop","NatPopBornUS","NatPopBornInStatRes","NatPopBornDiffState","NatPopBornOutUS","FornBornPop","FornPopEnt90to00","FornPopNatCit","FornPopNotCit","Households","HHIncLessThn10k","HHInc10to15K","HHInc15to25K","HHInc25to35K","HHInc35to50K","HHInc50to75K","HHInc75to100K","HHInc100to150K","HHInc150to200K","HHIncOver200K","MedianHHInc","HHwithPubAssistInc","MeanPubAssist","FamilyHH","FHHIncLessThn10k","FHHInc10to15K","FHHInc15to25K","FHHInc25to35K","FHHInc35to50K","FHHInc50to75K","FHHInc75to100K","FHHInc100to150K","FHHInc150to200K","FHHIncOver200K","MedianFHHInc","PerCapitaInc","PovStatFamilies","PovStatFHHwChilUnd18","PovStatFHHwChilUnd5","PovStFmalHH","DP3088","DP3089","PovStatIndiv","PovStatIndiv18yrOver","PovStatIndiv65yrOver","DP3093","DP3094","DP3095"]
[{"$f":"VLOOKUP(DropDownList!$B$47,CntyQryCensus!$A$53:$BY$96,A$1)","v":"Grantham"},{"$f":"VLOOKUP(DropDownList!$B$47,CntyQryCensus!$A$53:$BY$96,B$1)","v":"31220"},{"$f":"VLOOKUP(DropDownList!$B$47,CntyQryCensus!$A$53:$BY$96,C$1)","v":"Grantham town, Sullivan County, New Hampshire"},{"$f":"VLOOKUP(DropDownList!$B$47,CntyQryCensus!$A$53:$BY$96,D$1)","v":434},{"$f":"VLOOKUP(DropDownList!$B$47,CntyQryCensus!$A$53:$BY$96,E$1)","v":32},{"$f":"VLOOKUP(DropDownList!$B$47,CntyQryCensus!$A$53:$BY$96,F$1)","v":32},{"$f":"VLOOKUP(DropDownList!$B$47,CntyQryCensus!$A$53:$BY$96,G$1)","v":193},{"$f":"VLOOKUP(DropDownList!$B$47,CntyQryCensus!$A$53:$BY$96,H$1)","v":104},{"$f":"VLOOKUP(DropDownList!$B$47,CntyQryCensus!$A$53:$BY$96,I$1)","v":73},{"$f":"VLOOKUP(DropDownList!$B$47,CntyQryCensus!$A$53:$BY$96,J$1)","v":1672},{"$f":"VLOOKUP(DropDownList!$B$47,CntyQryCensus!$A$53:$BY$96,K$1)","v":291},{"$f":"VLOOKUP(DropDownList!$B$47,CntyQryCensus!$A$53:$BY$96,L$1)","v":343},{"$f":"VLOOKUP(DropDownList!$B$47,CntyQryCensus!$A$53:$BY$96,M$1)","v":127},{"$f":"VLOOKUP(DropDownList!$B$47,CntyQryCensus!$A$53:$BY$96,N$1)","v":491},{"$f":"VLOOKUP(DropDownList!$B$47,CntyQryCensus!$A$53:$BY$96,O$1)","v":365},{"$f":"VLOOKUP(DropDownList!$B$47,CntyQryCensus!$A$53:$BY$96,P$1)","v":1617},{"$f":"VLOOKUP(DropDownList!$B$47,CntyQryCensus!$A$53:$BY$96,Q$1)","v":856},{"$f":"VLOOKUP(DropDownList!$B$47,CntyQryCensus!$A$53:$BY$96,R$1)","v":350},{"$f":"VLOOKUP(DropDownList!$B$47,CntyQryCensus!$A$53:$BY$96,S$1)","v":19},{"$f":"VLOOKUP(DropDownList!$B$47,CntyQryCensus!$A$53:$BY$96,T$1)","v":1236},{"$f":"VLOOKUP(DropDownList!$B$47,CntyQryCensus!$A$53:$BY$96,U$1)","v":92},{"$f":"VLOOKUP(DropDownList!$B$47,CntyQryCensus!$A$53:$BY$96,V$1)","v":478},{"$f":"VLOOKUP(DropDownList!$B$47,CntyQryCensus!$A$53:$BY$96,W$1)","v":82},{"$f":"VLOOKUP(DropDownList!$B$47,CntyQryCensus!$A$53:$BY$96,X$1)","v":2064},{"$f":"VLOOKUP(DropDownList!$B$47,CntyQryCensus!$A$53:$BY$96,Y$1)","v":940},{"$f":"VLOOKUP(DropDownList!$B$47,CntyQryCensus!$A$53:$BY$96,Z$1)","v":1095},{"$f":"VLOOKUP(DropDownList!$B$47,CntyQryCensus!$A$53:$BY$96,AA$1)","v":303},{"$f":"VLOOKUP(DropDownList!$B$47,CntyQryCensus!$A$53:$BY$96,AB$1)","v":792},{"$f":"VLOOKUP(DropDownList!$B$47,CntyQryCensus!$A$53:$BY$96,AC$1)","v":2173},{"$f":"VLOOKUP(DropDownList!$B$47,CntyQryCensus!$A$53:$BY$96,AD$1)","v":2083},{"$f":"VLOOKUP(DropDownList!$B$47,CntyQryCensus!$A$53:$BY$96,AE$1)","v":2058},{"$f":"VLOOKUP(DropDownList!$B$47,CntyQryCensus!$A$53:$BY$96,AF$1)","v":720},{"$f":"VLOOKUP(DropDownList!$B$47,CntyQryCensus!$A$53:$BY$96,AG$1)","v":1338},{"$f":"VLOOKUP(DropDownList!$B$47,CntyQryCensus!$A$53:$BY$96,AH$1)","v":25},{"$f":"VLOOKUP(DropDownList!$B$47,CntyQryCensus!$A$53:$BY$96,AI$1)","v":90},{"$f":"VLOOKUP(DropDownList!$B$47,CntyQryCensus!$A$53:$BY$96,AJ$1)","v":26},{"$f":"VLOOKUP(DropDownList!$B$47,CntyQryCensus!$A$53:$BY$96,AK$1)","v":40},{"$f":"VLOOKUP(DropDownList!$B$47,CntyQryCensus!$A$53:$BY$96,AL$1)","v":50},{"$f":"VLOOKUP(DropDownList!$B$47,CntyQryCensus!$A$53:$BY$96,AM$1)","v":933},{"$f":"VLOOKUP(DropDownList!$B$47,CntyQryCensus!$A$53:$BY$96,AN$1)","v":36},{"$f":"VLOOKUP(DropDownList!$B$47,CntyQryCensus!$A$53:$BY$96,AO$1)","v":12},{"$f":"VLOOKUP(DropDownList!$B$47,CntyQryCensus!$A$53:$BY$96,AP$1)","v":52},{"$f":"VLOOKUP(DropDownList!$B$47,CntyQryCensus!$A$53:$BY$96,AQ$1)","v":68},{"$f":"VLOOKUP(DropDownList!$B$47,CntyQryCensus!$A$53:$BY$96,AR$1)","v":147},{"$f":"VLOOKUP(DropDownList!$B$47,CntyQryCensus!$A$53:$BY$96,AS$1)","v":259},{"$f":"VLOOKUP(DropDownList!$B$47,CntyQryCensus!$A$53:$BY$96,AT$1)","v":163},{"$f":"VLOOKUP(DropDownList!$B$47,CntyQryCensus!$A$53:$BY$96,AU$1)","v":129},{"$f":"VLOOKUP(DropDownList!$B$47,CntyQryCensus!$A$53:$BY$96,AV$1)","v":35},{"$f":"VLOOKUP(DropDownList!$B$47,CntyQryCensus!$A$53:$BY$96,AW$1)","v":32},{"$f":"VLOOKUP(DropDownList!$B$47,CntyQryCensus!$A$53:$BY$96,AX$1)","v":63239},{"$f":"VLOOKUP(DropDownList!$B$47,CntyQryCensus!$A$53:$BY$96,AY$1)","v":4},{"$f":"VLOOKUP(DropDownList!$B$47,CntyQryCensus!$A$53:$BY$96,AZ$1)","v":1475},{"$f":"VLOOKUP(DropDownList!$B$47,CntyQryCensus!$A$53:$BY$96,BA$1)","v":709},{"$f":"VLOOKUP(DropDownList!$B$47,CntyQryCensus!$A$53:$BY$96,BB$1)","v":7},{"$f":"VLOOKUP(DropDownList!$B$47,CntyQryCensus!$A$53:$BY$96,BC$1)","v":12},{"$f":"VLOOKUP(DropDownList!$B$47,CntyQryCensus!$A$53:$BY$96,BD$1)","v":26},{"$f":"VLOOKUP(DropDownList!$B$47,CntyQryCensus!$A$53:$BY$96,BE$1)","v":44},{"$f":"VLOOKUP(DropDownList!$B$47,CntyQryCensus!$A$53:$BY$96,BF$1)","v":103},{"$f":"VLOOKUP(DropDownList!$B$47,CntyQryCensus!$A$53:$BY$96,BG$1)","v":211},{"$f":"VLOOKUP(DropDownList!$B$47,CntyQryCensus!$A$53:$BY$96,BH$1)","v":148},{"$f":"VLOOKUP(DropDownList!$B$47,CntyQryCensus!$A$53:$BY$96,BI$1)","v":105},{"$f":"VLOOKUP(DropDownList!$B$47,CntyQryCensus!$A$53:$BY$96,BJ$1)","v":29},{"$f":"VLOOKUP(DropDownList!$B$47,CntyQryCensus!$A$53:$BY$96,BK$1)","v":24},{"$f":"VLOOKUP(DropDownList!$B$47,CntyQryCensus!$A$53:$BY$96,BL$1)","v":69271},{"$f":"VLOOKUP(DropDownList!$B$47,CntyQryCensus!$A$53:$BY$96,BM$1)","v":32174},{"$f":"VLOOKUP(DropDownList!$B$47,CntyQryCensus!$A$53:$BY$96,BN$1)","v":10},{"$f":"VLOOKUP(DropDownList!$B$47,CntyQryCensus!$A$53:$BY$96,BO$1)","v":8},{"$f":"VLOOKUP(DropDownList!$B$47,CntyQryCensus!$A$53:$BY$96,BP$1)","v":8},{"$f":"VLOOKUP(DropDownList!$B$47,CntyQryCensus!$A$53:$BY$96,BQ$1)","v":5},{"$f":"VLOOKUP(DropDownList!$B$47,CntyQryCensus!$A$53:$BY$96,BR$1)","v":5},{"$f":"VLOOKUP(DropDownList!$B$47,CntyQryCensus!$A$53:$BY$96,BS$1)","v":5},{"$f":"VLOOKUP(DropDownList!$B$47,CntyQryCensus!$A$53:$BY$96,BT$1)","v":54},{"$f":"VLOOKUP(DropDownList!$B$47,CntyQryCensus!$A$53:$BY$96,BU$1)","v":46},{"$f":"VLOOKUP(DropDownList!$B$47,CntyQryCensus!$A$53:$BY$96,BV$1)","v":18},{"$f":"VLOOKUP(DropDownList!$B$47,CntyQryCensus!$A$53:$BY$96,BW$1)","v":8},{"$f":"VLOOKUP(DropDownList!$B$47,CntyQryCensus!$A$53:$BY$96,BX$1)","v":0},{"$f":"VLOOKUP(DropDownList!$B$47,CntyQryCensus!$A$53:$BY$96,BY$1)","v":31}]
[]
[]
["Census 2000 DemoProfile Sample Data Table 4   -  DPTab4TownQry"]
["NAME","COUSUB","TotHousingUnits","1UnitDet","1UnitAtt","2Units","3to4Units","5to9Units","10to19Units","20orMoreUnits","MobileHomes","BoatRvVan","SingleFamilyUnits","MultiFamUnits","MobileHomeUnits","YearBuilt99to00","YearBuilt95to98","YearBUilt90to94","YearBuilt80to89","YearBuilt70to79","YearBuilt60to69","YearBuilt40to59","YearBuilt39orEarlier","Rooms1","Rooms2","Rooms3","Rooms4","Rooms5","Rooms6","Rooms7","Rooms8","Rooms9orMore","MedianRooms","OccHU1","YrHHMvdIn99to00","YrHHMvdIn95to98","YrHHMvdIn90to94","YrHHMvdIn80to89","YrHHMvdIn70to79","YrHHMvdIn69orBefore","HeatFuelNatGas","HeatFuelBotGas","HeatFuelElectric","HeatFuelOil","HeatFuelCoal","HeatFuelWood","HeatFuelSolar","HeatFuelOther","HeatFuelNone","LackCompPlumb","LackCompKit","NoTelephone","OccHU","OccPerRm1orLess","OccPerRm1to1_5","OccPerRm1_5orMore","SpecOwnOccUnits","Value<50K","Value50to100K","Value100to150K","Value150to200K","Value200to300K","Value300to500K","Value500Kto1mil","Value1MilorMore","MedianValue","WithMortg","MnthOwnCst<300","MnthOwnCst300to500","MnthOwnCst500to700","MnthOwnCst700to1000","MnthOwnCst1000to1500","MnthOwnCst1500to2000","MnthOwnCst2000orMore","MediMnthOwnCst","NotMrtg","NotMrtgMediMnthOwnCst","OwnCst%HHInc<15","OwnCst%HHInc15to20","OwnCst%HHInc20to25","OwnCst%HHInc25to30","OwnCst%HHInc30to35","OwnCst%HHInc35orMor","NotComputed","SpecRntOccUnits","Rnt<200","Rnt200to300","Rnt300to500","Rnt500to750","Rnt750to1000","Rnt1000to1500","Rnt1500orMore","NoRent","MedianRent","Rnt%HHInc<15","Rnt%HHInc15to20","Rnt%HHInc20to25","Rnt%HHInc25to30","Rnt%HHInc30to35","Rnt%HHInc35orMore","Rnt%NotCompute"]
[{"$f":"VLOOKUP(DropDownList!$B$47,CntyQryCensus!$A$103:$CX$146,A$1)","v":"Grantham"},{"$f":"VLOOKUP(DropDownList!$B$47,CntyQryCensus!$A$103:$CX$146,B$1)","v":"31220"},{"$f":"VLOOKUP(DropDownList!$B$47,CntyQryCensus!$A$103:$CX$146,C$1)","v":1518},{"$f":"VLOOKUP(DropDownList!$B$47,CntyQryCensus!$A$103:$CX$146,D$1)","v":1168},{"$f":"VLOOKUP(DropDownList!$B$47,CntyQryCensus!$A$103:$CX$146,E$1)","v":296},{"$f":"VLOOKUP(DropDownList!$B$47,CntyQryCensus!$A$103:$CX$146,F$1)","v":19},{"$f":"VLOOKUP(DropDownList!$B$47,CntyQryCensus!$A$103:$CX$146,G$1)","v":9},{"$f":"VLOOKUP(DropDownList!$B$47,CntyQryCensus!$A$103:$CX$146,H$1)","v":0},{"$f":"VLOOKUP(DropDownList!$B$47,CntyQryCensus!$A$103:$CX$146,I$1)","v":0},{"$f":"VLOOKUP(DropDownList!$B$47,CntyQryCensus!$A$103:$CX$146,J$1)","v":0},{"$f":"VLOOKUP(DropDownList!$B$47,CntyQryCensus!$A$103:$CX$146,K$1)","v":26},{"$f":"VLOOKUP(DropDownList!$B$47,CntyQryCensus!$A$103:$CX$146,L$1)","v":0},{"$f":"VLOOKUP(DropDownList!$B$47,CntyQryCensus!$A$103:$CX$146,M$1)","v":1168},{"$f":"VLOOKUP(DropDownList!$B$47,CntyQryCensus!$A$103:$CX$146,N$1)","v":324},{"$f":"VLOOKUP(DropDownList!$B$47,CntyQryCensus!$A$103:$CX$146,O$1)","v":26},{"$f":"VLOOKUP(DropDownList!$B$47,CntyQryCensus!$A$103:$CX$146,P$1)","v":24},{"$f":"VLOOKUP(DropDownList!$B$47,CntyQryCensus!$A$103:$CX$146,Q$1)","v":124},{"$f":"VLOOKUP(DropDownList!$B$47,CntyQryCensus!$A$103:$CX$146,R$1)","v":192},{"$f":"VLOOKUP(DropDownList!$B$47,CntyQryCensus!$A$103:$CX$146,S$1)","v":672},{"$f":"VLOOKUP(DropDownList!$B$47,CntyQryCensus!$A$103:$CX$146,T$1)","v":338},{"$f":"VLOOKUP(DropDownList!$B$47,CntyQryCensus!$A$103:$CX$146,U$1)","v":44},{"$f":"VLOOKUP(DropDownList!$B$47,CntyQryCensus!$A$103:$CX$146,V$1)","v":49},{"$f":"VLOOKUP(DropDownList!$B$47,CntyQryCensus!$A$103:$CX$146,W$1)","v":75},{"$f":"VLOOKUP(DropDownList!$B$47,CntyQryCensus!$A$103:$CX$146,X$1)","v":10},{"$f":"VLOOKUP(DropDownList!$B$47,CntyQryCensus!$A$103:$CX$146,Y$1)","v":5},{"$f":"VLOOKUP(DropDownList!$B$47,CntyQryCensus!$A$103:$CX$146,Z$1)","v":23},{"$f":"VLOOKUP(DropDownList!$B$47,CntyQryCensus!$A$103:$CX$146,AA$1)","v":158},{"$f":"VLOOKUP(DropDownList!$B$47,CntyQryCensus!$A$103:$CX$146,AB$1)","v":291},{"$f":"VLOOKUP(DropDownList!$B$47,CntyQryCensus!$A$103:$CX$146,AC$1)","v":459},{"$f":"VLOOKUP(DropDownList!$B$47,CntyQryCensus!$A$103:$CX$146,AD$1)","v":248},{"$f":"VLOOKUP(DropDownList!$B$47,CntyQryCensus!$A$103:$CX$146,AE$1)","v":195},{"$f":"VLOOKUP(DropDownList!$B$47,CntyQryCensus!$A$103:$CX$146,AF$1)","v":129},{"$f":"VLOOKUP(DropDownList!$B$47,CntyQryCensus!$A$103:$CX$146,AG$1)","v":6.1},{"$f":"VLOOKUP(DropDownList!$B$47,CntyQryCensus!$A$103:$CX$146,AH$1)","v":925},{"$f":"VLOOKUP(DropDownList!$B$47,CntyQryCensus!$A$103:$CX$146,AI$1)","v":173},{"$f":"VLOOKUP(DropDownList!$B$47,CntyQryCensus!$A$103:$CX$146,AJ$1)","v":332},{"$f":"VLOOKUP(DropDownList!$B$47,CntyQryCensus!$A$103:$CX$146,AK$1)","v":156},{"$f":"VLOOKUP(DropDownList!$B$47,CntyQryCensus!$A$103:$CX$146,AL$1)","v":170},{"$f":"VLOOKUP(DropDownList!$B$47,CntyQryCensus!$A$103:$CX$146,AM$1)","v":65},{"$f":"VLOOKUP(DropDownList!$B$47,CntyQryCensus!$A$103:$CX$146,AN$1)","v":29},{"$f":"VLOOKUP(DropDownList!$B$47,CntyQryCensus!$A$103:$CX$146,AO$1)","v":9},{"$f":"VLOOKUP(DropDownList!$B$47,CntyQryCensus!$A$103:$CX$146,AP$1)","v":436},{"$f":"VLOOKUP(DropDownList!$B$47,CntyQryCensus!$A$103:$CX$146,AQ$1)","v":47},{"$f":"VLOOKUP(DropDownList!$B$47,CntyQryCensus!$A$103:$CX$146,AR$1)","v":340},{"$f":"VLOOKUP(DropDownList!$B$47,CntyQryCensus!$A$103:$CX$146,AS$1)","v":0},{"$f":"VLOOKUP(DropDownList!$B$47,CntyQryCensus!$A$103:$CX$146,AT$1)","v":93},{"$f":"VLOOKUP(DropDownList!$B$47,CntyQryCensus!$A$103:$CX$146,AU$1)","v":0},{"$f":"VLOOKUP(DropDownList!$B$47,CntyQryCensus!$A$103:$CX$146,AV$1)","v":0},{"$f":"VLOOKUP(DropDownList!$B$47,CntyQryCensus!$A$103:$CX$146,AW$1)","v":0},{"$f":"VLOOKUP(DropDownList!$B$47,CntyQryCensus!$A$103:$CX$146,AX$1)","v":0},{"$f":"VLOOKUP(DropDownList!$B$47,CntyQryCensus!$A$103:$CX$146,AY$1)","v":5},{"$f":"VLOOKUP(DropDownList!$B$47,CntyQryCensus!$A$103:$CX$146,AZ$1)","v":10},{"$f":"VLOOKUP(DropDownList!$B$47,CntyQryCensus!$A$103:$CX$146,BA$1)","v":925},{"$f":"VLOOKUP(DropDownList!$B$47,CntyQryCensus!$A$103:$CX$146,BB$1)","v":923},{"$f":"VLOOKUP(DropDownList!$B$47,CntyQryCensus!$A$103:$CX$146,BC$1)","v":2},{"$f":"VLOOKUP(DropDownList!$B$47,CntyQryCensus!$A$103:$CX$146,BD$1)","v":0},{"$f":"VLOOKUP(DropDownList!$B$47,CntyQryCensus!$A$103:$CX$146,BE$1)","v":710},{"$f":"VLOOKUP(DropDownList!$B$47,CntyQryCensus!$A$103:$CX$146,BF$1)","v":5},{"$f":"VLOOKUP(DropDownList!$B$47,CntyQryCensus!$A$103:$CX$146,BG$1)","v":93},{"$f":"VLOOKUP(DropDownList!$B$47,CntyQryCensus!$A$103:$CX$146,BH$1)","v":228},{"$f":"VLOOKUP(DropDownList!$B$47,CntyQryCensus!$A$103:$CX$146,BI$1)","v":155},{"$f":"VLOOKUP(DropDownList!$B$47,CntyQryCensus!$A$103:$CX$146,BJ$1)","v":150},{"$f":"VLOOKUP(DropDownList!$B$47,CntyQryCensus!$A$103:$CX$146,BK$1)","v":72},{"$f":"VLOOKUP(DropDownList!$B$47,CntyQryCensus!$A$103:$CX$146,BL$1)","v":7},{"$f":"VLOOKUP(DropDownList!$B$47,CntyQryCensus!$A$103:$CX$146,BM$1)","v":0},{"$f":"VLOOKUP(DropDownList!$B$47,CntyQryCensus!$A$103:$CX$146,BN$1)","v":159200},{"$f":"VLOOKUP(DropDownList!$B$47,CntyQryCensus!$A$103:$CX$146,BO$1)","v":459},{"$f":"VLOOKUP(DropDownList!$B$47,CntyQryCensus!$A$103:$CX$146,BP$1)","v":0},{"$f":"VLOOKUP(DropDownList!$B$47,CntyQryCensus!$A$103:$CX$146,BQ$1)","v":2},{"$f":"VLOOKUP(DropDownList!$B$47,CntyQryCensus!$A$103:$CX$146,BR$1)","v":32},{"$f":"VLOOKUP(DropDownList!$B$47,CntyQryCensus!$A$103:$CX$146,BS$1)","v":60},{"$f":"VLOOKUP(DropDownList!$B$47,CntyQryCensus!$A$103:$CX$146,BT$1)","v":226},{"$f":"VLOOKUP(DropDownList!$B$47,CntyQryCensus!$A$103:$CX$146,BU$1)","v":97},{"$f":"VLOOKUP(DropDownList!$B$47,CntyQryCensus!$A$103:$CX$146,BV$1)","v":42},{"$f":"VLOOKUP(DropDownList!$B$47,CntyQryCensus!$A$103:$CX$146,BW$1)","v":1300},{"$f":"VLOOKUP(DropDownList!$B$47,CntyQryCensus!$A$103:$CX$146,BX$1)","v":251},{"$f":"VLOOKUP(DropDownList!$B$47,CntyQryCensus!$A$103:$CX$146,BY$1)","v":510},{"$f":"VLOOKUP(DropDownList!$B$47,CntyQryCensus!$A$103:$CX$146,BZ$1)","v":252},{"$f":"VLOOKUP(DropDownList!$B$47,CntyQryCensus!$A$103:$CX$146,CA$1)","v":111},{"$f":"VLOOKUP(DropDownList!$B$47,CntyQryCensus!$A$103:$CX$146,CB$1)","v":132},{"$f":"VLOOKUP(DropDownList!$B$47,CntyQryCensus!$A$103:$CX$146,CC$1)","v":73},{"$f":"VLOOKUP(DropDownList!$B$47,CntyQryCensus!$A$103:$CX$146,CD$1)","v":38},{"$f":"VLOOKUP(DropDownList!$B$47,CntyQryCensus!$A$103:$CX$146,CE$1)","v":97},{"$f":"VLOOKUP(DropDownList!$B$47,CntyQryCensus!$A$103:$CX$146,CF$1)","v":7},{"$f":"VLOOKUP(DropDownList!$B$47,CntyQryCensus!$A$103:$CX$146,CG$1)","v":103},{"$f":"VLOOKUP(DropDownList!$B$47,CntyQryCensus!$A$103:$CX$146,CH$1)","v":0},{"$f":"VLOOKUP(DropDownList!$B$47,CntyQryCensus!$A$103:$CX$146,CI$1)","v":0},{"$f":"VLOOKUP(DropDownList!$B$47,CntyQryCensus!$A$103:$CX$146,CJ$1)","v":6},{"$f":"VLOOKUP(DropDownList!$B$47,CntyQryCensus!$A$103:$CX$146,CK$1)","v":17},{"$f":"VLOOKUP(DropDownList!$B$47,CntyQryCensus!$A$103:$CX$146,CL$1)","v":19},{"$f":"VLOOKUP(DropDownList!$B$47,CntyQryCensus!$A$103:$CX$146,CM$1)","v":52},{"$f":"VLOOKUP(DropDownList!$B$47,CntyQryCensus!$A$103:$CX$146,CN$1)","v":4},{"$f":"VLOOKUP(DropDownList!$B$47,CntyQryCensus!$A$103:$CX$146,CO$1)","v":5},{"$f":"VLOOKUP(DropDownList!$B$47,CntyQryCensus!$A$103:$CX$146,CP$1)","v":1040},{"$f":"VLOOKUP(DropDownList!$B$47,CntyQryCensus!$A$103:$CX$146,CQ$1)","v":26},{"$f":"VLOOKUP(DropDownList!$B$47,CntyQryCensus!$A$103:$CX$146,CR$1)","v":15},{"$f":"VLOOKUP(DropDownList!$B$47,CntyQryCensus!$A$103:$CX$146,CS$1)","v":10},{"$f":"VLOOKUP(DropDownList!$B$47,CntyQryCensus!$A$103:$CX$146,CT$1)","v":20},{"$f":"VLOOKUP(DropDownList!$B$47,CntyQryCensus!$A$103:$CX$146,CU$1)","v":2},{"$f":"VLOOKUP(DropDownList!$B$47,CntyQryCensus!$A$103:$CX$146,CV$1)","v":22},{"$f":"VLOOKUP(DropDownList!$B$47,CntyQryCensus!$A$103:$CX$146,CW$1)","v":8}]
[]
[]
["Census 2000 SummaryFile3 Sample Data  -  SF3TownQry1SocialChar"]
["TOWN_NAME","LOGRECNO","COUSUB","P01TotalPopulation","P02SampleCountOfPop","P03Pop100pctCount","P05UrbanPopulation","P05RuralPopulation","P06WhiteAlone","P06BlackOrAfAm","P06AmIndAlone","P06AsianAlone","P06HawaiianOrPI","P06OtherRace","P06TwoPlusRaces","P07NotHispanicOrLatino","P07HispanicOrLatino","P08MalePop","P08FemalePop","P09PopInHouseholds","P09PopInFamHH","P09PopInNonFamHH","P09PopInGroupQtr","P13TotalHH","P13FamilyHH","P13FamHHolder15to24yrs","P13FamHHolder25to34yrs","P13FamHHolder35to44yrs","P13FamHHolder45to54yrs","P13FamHHolder55to64yrs","P13FamHHolder65to74yrs","P13FamHHolder75to84yrs","P13FamHHolder85yrsOver","P13NonFamilyHH","P13NonFamHHolder15to24yrs","P13NonFamHHolder25to34yrs","P13NonFamHHolder35to44yrs","P13NonFamHHolder45to54yrs","P13NonFamHHolder55to64yrs","P13NonFamHHolder65to74yrs","P13NonFamHHolder75to84yrs","P13NonFamHHolder85yrsOver","P18Pop15yrsOver","P18MaritalStatNeverMarried","P18MaritalStatNowMarried","P18MaritalStatSeparated","P18MaritalStatWidowed","P18MaritalStatWidowFemale","P18MaritalStatDivorced","P18MaritalStatDivorcedFemale","P21NativeBornPop","P21NatPopBornInState","P21NatPopBornOtherState","P021005","P021006","P021007","P021008","P21NatPopBornOutUS","P21ForeignBornPop","P021014","P021015","P24Pop5YrsPlus","P24ResSameHouseIn95","P24ResDiffHouseIn95","P24ResDiffHouseInUSIn95","P24ResDiffHouseSameCountyIn95","P24ResDiffHouseDiffCountyIn95","P24ResDiffHouseDiffCntySamStIn95","P24ResDiffHouseDiffCntyDifStIn95","P24ResDiffHouseDiffCntyNEStIn95","P24ResDiffHouseDiffCntyMWStIn95","P24ResDiffHouseDiffCntySoStIn95","P24ResDiffHouseDiffCntyWstStIn95","P24ResDiffInPR","P24ResDiffElsewhereIn95","P26Workers16yrsOver","P26WorkedInState","P26WorkedInCnty","P26WorkedOutsideCnty","P26WorkedOutsideState","P30Workers16Over","P30TranspToWrkCar","P30TranspToWrkPublic","P30TranspToWrkOther","P30WrkdAtHome","P31WrkrsNotWrkAtHom","P31TravTim<5min","P31TravTim5to9Min","P31TravTim10to14Min","P31TravTim15to19Min","P31TravTim20to24Min","P31TravTim25to29Min","P31TravTim30to34Min","P31TravTim35to39Min","P31TravTim40to44Min","P31TravTim45to59Min","P31TravTim60to89Min","P31TravTim90MinMore","P31WorkAtHome","P36SchEnrlPop3yrOver","P36NurserSchEnrl","P36KinderSchEnrl","P36ElemSchEnrl","P36HighSchEnrl","P36CollGradSchEnrl","P37Pop25yrsOver","P37EduAtain<9grd","P37EduAtainHSnoDip","P37EduAtainHSgrad","P37EduAtainCollNoDeg","P37EduAtainAssocDeg","P37EduAtainBachDeg","P37EduAtainGradProfDeg","P42NIPop5to15","P42NIPop5to15wDisabl","P42NIPop16to20","P42NIPop16to20wDisab","P42NIPop16to20wDisEmp","P42NIPop16to21NoDis","P42NIPop16to21NoDisEmpl","P42NIPop21to64","P42NIPop21to64wDis","P42NIPop21to64wDisEmp","P42NIPop21to64NoDis","P42NIPop21to64NoDisEmp","P42NIPop65to74","P42NIPop65to74wDis","P42NIPop75Over","P42NIPop75OverwDis","P43Pop16YrsOver","P43Pop16OvrInLaborForce","P43Pop16OvrCivlLabFrc","P43Pop16OvrCivlLbrFrcEmp","P48Families","P48MarriedFam","P48MarrFamNoWorkers","P48MarrFam1Worker","P48MarrFam2Worker","P48MarrFamHusbWifeWorked","P48MarrFamOther","P48MarrFam3PlusWorker","P48MarrFam3WorkHsbWif","P48MarrFam3PlsWrkOther","P48OtherFam","P48MaleHHNoWif","P48MaleHHNoWifNoWorker","P48MaleHHNoWif1Worker","P48MaleHHNoWif2Worker","P48MaleHHNoWif3PlusWorker","P48FemaleHHNoHsb","P48FemaleHHNoHsbNoWorker","P48FemaleHHNoHsb1Worker","P48FemaleHHNoHsb2Worker","P48FemaleHHNoHsb3Worker","P49EmpCivPop16YrOver","P49IndustAgricult","P49IndustConst","P49IndustMnftg","P49IndustWhlslTrd","P49IndustRtlTrd","P49IndustTrspWrhsUtlt","P49IndustInfrm","P49IndustFinInsRE","P49IndustPrfsScntfMngmt","P49IndustEduHlthSocSrv","P49IndustArtsEntRec","P49IndustOthrSrvc","P49IndustPubAdm","P50OccupMngmtProfs","P50OccupService","P50OccupSalesOff","P50OccupFarmFishForest","P50OccupConstExtrctMaint","P50OccupPrdctTrnspMatMv"]
[{"$f":"VLOOKUP(DropDownList!$B$47,CntyQryCensus!$A$103:$CX$146,A$1)","v":"Grantham"},{"$f":"VLOOKUP(DropDownList!$B$47,CntyQryCensus!$A$156:$FR$198,B$1)","v":"0004212"},{"$f":"VLOOKUP(DropDownList!$B$47,CntyQryCensus!$A$156:$FR$198,C$1)","v":"31220"},{"$f":"VLOOKUP(DropDownList!$B$47,CntyQryCensus!$A$156:$FR$198,D$1)","v":2173},{"$f":"VLOOKUP(DropDownList!$B$47,CntyQryCensus!$A$156:$FR$198,E$1)","v":973},{"$f":"VLOOKUP(DropDownList!$B$47,CntyQryCensus!$A$156:$FR$198,F$1)","v":2167},{"$f":"VLOOKUP(DropDownList!$B$47,CntyQryCensus!$A$156:$FR$198,G$1)","v":0},{"$f":"VLOOKUP(DropDownList!$B$47,CntyQryCensus!$A$156:$FR$198,H$1)","v":2173},{"$f":"VLOOKUP(DropDownList!$B$47,CntyQryCensus!$A$156:$FR$198,I$1)","v":2133},{"$f":"VLOOKUP(DropDownList!$B$47,CntyQryCensus!$A$156:$FR$198,J$1)","v":2},{"$f":"VLOOKUP(DropDownList!$B$47,CntyQryCensus!$A$156:$FR$198,K$1)","v":0},{"$f":"VLOOKUP(DropDownList!$B$47,CntyQryCensus!$A$156:$FR$198,L$1)","v":9},{"$f":"VLOOKUP(DropDownList!$B$47,CntyQryCensus!$A$156:$FR$198,M$1)","v":0},{"$f":"VLOOKUP(DropDownList!$B$47,CntyQryCensus!$A$156:$FR$198,N$1)","v":11},{"$f":"VLOOKUP(DropDownList!$B$47,CntyQryCensus!$A$156:$FR$198,O$1)","v":18},{"$f":"VLOOKUP(DropDownList!$B$47,CntyQryCensus!$A$156:$FR$198,P$1)","v":2165},{"$f":"VLOOKUP(DropDownList!$B$47,CntyQryCensus!$A$156:$FR$198,Q$1)","v":8},{"$f":"VLOOKUP(DropDownList!$B$47,CntyQryCensus!$A$156:$FR$198,R$1)","v":1068},{"$f":"VLOOKUP(DropDownList!$B$47,CntyQryCensus!$A$156:$FR$198,S$1)","v":1105},{"$f":"VLOOKUP(DropDownList!$B$47,CntyQryCensus!$A$156:$FR$198,T$1)","v":2173},{"$f":"VLOOKUP(DropDownList!$B$47,CntyQryCensus!$A$156:$FR$198,U$1)","v":1899},{"$f":"VLOOKUP(DropDownList!$B$47,CntyQryCensus!$A$156:$FR$198,V$1)","v":274},{"$f":"VLOOKUP(DropDownList!$B$47,CntyQryCensus!$A$156:$FR$198,W$1)","v":0},{"$f":"VLOOKUP(DropDownList!$B$47,CntyQryCensus!$A$156:$FR$198,X$1)","v":933},{"$f":"VLOOKUP(DropDownList!$B$47,CntyQryCensus!$A$156:$FR$198,Y$1)","v":709},{"$f":"VLOOKUP(DropDownList!$B$47,CntyQryCensus!$A$156:$FR$198,Z$1)","v":7},{"$f":"VLOOKUP(DropDownList!$B$47,CntyQryCensus!$A$156:$FR$198,AA$1)","v":89},{"$f":"VLOOKUP(DropDownList!$B$47,CntyQryCensus!$A$156:$FR$198,AB$1)","v":135},{"$f":"VLOOKUP(DropDownList!$B$47,CntyQryCensus!$A$156:$FR$198,AC$1)","v":148},{"$f":"VLOOKUP(DropDownList!$B$47,CntyQryCensus!$A$156:$FR$198,AD$1)","v":114},{"$f":"VLOOKUP(DropDownList!$B$47,CntyQryCensus!$A$156:$FR$198,AE$1)","v":149},{"$f":"VLOOKUP(DropDownList!$B$47,CntyQryCensus!$A$156:$FR$198,AF$1)","v":63},{"$f":"VLOOKUP(DropDownList!$B$47,CntyQryCensus!$A$156:$FR$198,AG$1)","v":4},{"$f":"VLOOKUP(DropDownList!$B$47,CntyQryCensus!$A$156:$FR$198,AH$1)","v":224},{"$f":"VLOOKUP(DropDownList!$B$47,CntyQryCensus!$A$156:$FR$198,AI$1)","v":8},{"$f":"VLOOKUP(DropDownList!$B$47,CntyQryCensus!$A$156:$FR$198,AJ$1)","v":16},{"$f":"VLOOKUP(DropDownList!$B$47,CntyQryCensus!$A$156:$FR$198,AK$1)","v":23},{"$f":"VLOOKUP(DropDownList!$B$47,CntyQryCensus!$A$156:$FR$198,AL$1)","v":55},{"$f":"VLOOKUP(DropDownList!$B$47,CntyQryCensus!$A$156:$FR$198,AM$1)","v":42},{"$f":"VLOOKUP(DropDownList!$B$47,CntyQryCensus!$A$156:$FR$198,AN$1)","v":37},{"$f":"VLOOKUP(DropDownList!$B$47,CntyQryCensus!$A$156:$FR$198,AO$1)","v":31},{"$f":"VLOOKUP(DropDownList!$B$47,CntyQryCensus!$A$156:$FR$198,AP$1)","v":12},{"$f":"VLOOKUP(DropDownList!$B$47,CntyQryCensus!$A$156:$FR$198,AQ$1)","v":1817},{"$f":"VLOOKUP(DropDownList!$B$47,CntyQryCensus!$A$156:$FR$198,AR$1)","v":239},{"$f":"VLOOKUP(DropDownList!$B$47,CntyQryCensus!$A$156:$FR$198,AS$1)","v":1336},{"$f":"VLOOKUP(DropDownList!$B$47,CntyQryCensus!$A$156:$FR$198,AT$1)","v":3},{"$f":"VLOOKUP(DropDownList!$B$47,CntyQryCensus!$A$156:$FR$198,AU$1)","v":87},{"$f":"VLOOKUP(DropDownList!$B$47,CntyQryCensus!$A$156:$FR$198,AV$1)","v":59},{"$f":"VLOOKUP(DropDownList!$B$47,CntyQryCensus!$A$156:$FR$198,AW$1)","v":152},{"$f":"VLOOKUP(DropDownList!$B$47,CntyQryCensus!$A$156:$FR$198,AX$1)","v":84},{"$f":"VLOOKUP(DropDownList!$B$47,CntyQryCensus!$A$156:$FR$198,AY$1)","v":2083},{"$f":"VLOOKUP(DropDownList!$B$47,CntyQryCensus!$A$156:$FR$198,AZ$1)","v":720},{"$f":"VLOOKUP(DropDownList!$B$47,CntyQryCensus!$A$156:$FR$198,BA$1)","v":1338},{"$f":"VLOOKUP(DropDownList!$B$47,CntyQryCensus!$A$156:$FR$198,BB$1)","v":965},{"$f":"VLOOKUP(DropDownList!$B$47,CntyQryCensus!$A$156:$FR$198,BC$1)","v":174},{"$f":"VLOOKUP(DropDownList!$B$47,CntyQryCensus!$A$156:$FR$198,BD$1)","v":125},{"$f":"VLOOKUP(DropDownList!$B$47,CntyQryCensus!$A$156:$FR$198,BE$1)","v":74},{"$f":"VLOOKUP(DropDownList!$B$47,CntyQryCensus!$A$156:$FR$198,BF$1)","v":25},{"$f":"VLOOKUP(DropDownList!$B$47,CntyQryCensus!$A$156:$FR$198,BG$1)","v":90},{"$f":"VLOOKUP(DropDownList!$B$47,CntyQryCensus!$A$156:$FR$198,BH$1)","v":40},{"$f":"VLOOKUP(DropDownList!$B$47,CntyQryCensus!$A$156:$FR$198,BI$1)","v":50},{"$f":"VLOOKUP(DropDownList!$B$47,CntyQryCensus!$A$156:$FR$198,BJ$1)","v":2064},{"$f":"VLOOKUP(DropDownList!$B$47,CntyQryCensus!$A$156:$FR$198,BK$1)","v":940},{"$f":"VLOOKUP(DropDownList!$B$47,CntyQryCensus!$A$156:$FR$198,BL$1)","v":1124},{"$f":"VLOOKUP(DropDownList!$B$47,CntyQryCensus!$A$156:$FR$198,BM$1)","v":1095},{"$f":"VLOOKUP(DropDownList!$B$47,CntyQryCensus!$A$156:$FR$198,BN$1)","v":303},{"$f":"VLOOKUP(DropDownList!$B$47,CntyQryCensus!$A$156:$FR$198,BO$1)","v":792},{"$f":"VLOOKUP(DropDownList!$B$47,CntyQryCensus!$A$156:$FR$198,BP$1)","v":281},{"$f":"VLOOKUP(DropDownList!$B$47,CntyQryCensus!$A$156:$FR$198,BQ$1)","v":511},{"$f":"VLOOKUP(DropDownList!$B$47,CntyQryCensus!$A$156:$FR$198,BR$1)","v":285},{"$f":"VLOOKUP(DropDownList!$B$47,CntyQryCensus!$A$156:$FR$198,BS$1)","v":54},{"$f":"VLOOKUP(DropDownList!$B$47,CntyQryCensus!$A$156:$FR$198,BT$1)","v":109},{"$f":"VLOOKUP(DropDownList!$B$47,CntyQryCensus!$A$156:$FR$198,BU$1)","v":63},{"$f":"VLOOKUP(DropDownList!$B$47,CntyQryCensus!$A$156:$FR$198,BV$1)","v":0},{"$f":"VLOOKUP(DropDownList!$B$47,CntyQryCensus!$A$156:$FR$198,BW$1)","v":29},{"$f":"VLOOKUP(DropDownList!$B$47,CntyQryCensus!$A$156:$FR$198,BX$1)","v":1051},{"$f":"VLOOKUP(DropDownList!$B$47,CntyQryCensus!$A$156:$FR$198,BY$1)","v":948},{"$f":"VLOOKUP(DropDownList!$B$47,CntyQryCensus!$A$156:$FR$198,BZ$1)","v":341},{"$f":"VLOOKUP(DropDownList!$B$47,CntyQryCensus!$A$156:$FR$198,CA$1)","v":607},{"$f":"VLOOKUP(DropDownList!$B$47,CntyQryCensus!$A$156:$FR$198,CB$1)","v":103},{"$f":"VLOOKUP(DropDownList!$B$47,CntyQryCensus!$A$156:$FR$198,CC$1)","v":1051},{"$f":"VLOOKUP(DropDownList!$B$47,CntyQryCensus!$A$156:$FR$198,CD$1)","v":937},{"$f":"VLOOKUP(DropDownList!$B$47,CntyQryCensus!$A$156:$FR$198,CE$1)","v":13},{"$f":"VLOOKUP(DropDownList!$B$47,CntyQryCensus!$A$156:$FR$198,CF$1)","v":10},{"$f":"VLOOKUP(DropDownList!$B$47,CntyQryCensus!$A$156:$FR$198,CG$1)","v":82},{"$f":"VLOOKUP(DropDownList!$B$47,CntyQryCensus!$A$156:$FR$198,CH$1)","v":969},{"$f":"VLOOKUP(DropDownList!$B$47,CntyQryCensus!$A$156:$FR$198,CI$1)","v":29},{"$f":"VLOOKUP(DropDownList!$B$47,CntyQryCensus!$A$156:$FR$198,CJ$1)","v":50},{"$f":"VLOOKUP(DropDownList!$B$47,CntyQryCensus!$A$156:$FR$198,CK$1)","v":59},{"$f":"VLOOKUP(DropDownList!$B$47,CntyQryCensus!$A$156:$FR$198,CL$1)","v":118},{"$f":"VLOOKUP(DropDownList!$B$47,CntyQryCensus!$A$156:$FR$198,CM$1)","v":254},{"$f":"VLOOKUP(DropDownList!$B$47,CntyQryCensus!$A$156:$FR$198,CN$1)","v":175},{"$f":"VLOOKUP(DropDownList!$B$47,CntyQryCensus!$A$156:$FR$198,CO$1)","v":110},{"$f":"VLOOKUP(DropDownList!$B$47,CntyQryCensus!$A$156:$FR$198,CP$1)","v":22},{"$f":"VLOOKUP(DropDownList!$B$47,CntyQryCensus!$A$156:$FR$198,CQ$1)","v":31},{"$f":"VLOOKUP(DropDownList!$B$47,CntyQryCensus!$A$156:$FR$198,CR$1)","v":40},{"$f":"VLOOKUP(DropDownList!$B$47,CntyQryCensus!$A$156:$FR$198,CS$1)","v":19},{"$f":"VLOOKUP(DropDownList!$B$47,CntyQryCensus!$A$156:$FR$198,CT$1)","v":62},{"$f":"VLOOKUP(DropDownList!$B$47,CntyQryCensus!$A$156:$FR$198,CU$1)","v":82},{"$f":"VLOOKUP(DropDownList!$B$47,CntyQryCensus!$A$156:$FR$198,CV$1)","v":2113},{"$f":"VLOOKUP(DropDownList!$B$47,CntyQryCensus!$A$156:$FR$198,CW$1)","v":32},{"$f":"VLOOKUP(DropDownList!$B$47,CntyQryCensus!$A$156:$FR$198,CX$1)","v":32},{"$f":"VLOOKUP(DropDownList!$B$47,CntyQryCensus!$A$156:$FR$198,CY$1)","v":193},{"$f":"VLOOKUP(DropDownList!$B$47,CntyQryCensus!$A$156:$FR$198,CZ$1)","v":104},{"$f":"VLOOKUP(DropDownList!$B$47,CntyQryCensus!$A$156:$FR$198,DA$1)","v":73},{"$f":"VLOOKUP(DropDownList!$B$47,CntyQryCensus!$A$156:$FR$198,DB$1)","v":1672},{"$f":"VLOOKUP(DropDownList!$B$47,CntyQryCensus!$A$156:$FR$198,DC$1)","v":16},{"$f":"VLOOKUP(DropDownList!$B$47,CntyQryCensus!$A$156:$FR$198,DD$1)","v":39},{"$f":"VLOOKUP(DropDownList!$B$47,CntyQryCensus!$A$156:$FR$198,DE$1)","v":291},{"$f":"VLOOKUP(DropDownList!$B$47,CntyQryCensus!$A$156:$FR$198,DF$1)","v":343},{"$f":"VLOOKUP(DropDownList!$B$47,CntyQryCensus!$A$156:$FR$198,DG$1)","v":127},{"$f":"VLOOKUP(DropDownList!$B$47,CntyQryCensus!$A$156:$FR$198,DH$1)","v":491},{"$f":"VLOOKUP(DropDownList!$B$47,CntyQryCensus!$A$156:$FR$198,DI$1)","v":365},{"$f":"VLOOKUP(DropDownList!$B$47,CntyQryCensus!$A$156:$FR$198,DJ$1)","v":276},{"$f":"VLOOKUP(DropDownList!$B$47,CntyQryCensus!$A$156:$FR$198,DK$1)","v":14},{"$f":"VLOOKUP(DropDownList!$B$47,CntyQryCensus!$A$156:$FR$198,DL$1)","v":74},{"$f":"VLOOKUP(DropDownList!$B$47,CntyQryCensus!$A$156:$FR$198,DM$1)","v":5},{"$f":"VLOOKUP(DropDownList!$B$47,CntyQryCensus!$A$156:$FR$198,DN$1)","v":5},{"$f":"VLOOKUP(DropDownList!$B$47,CntyQryCensus!$A$156:$FR$198,DO$1)","v":69},{"$f":"VLOOKUP(DropDownList!$B$47,CntyQryCensus!$A$156:$FR$198,DP$1)","v":37},{"$f":"VLOOKUP(DropDownList!$B$47,CntyQryCensus!$A$156:$FR$198,DQ$1)","v":1236},{"$f":"VLOOKUP(DropDownList!$B$47,CntyQryCensus!$A$156:$FR$198,DR$1)","v":92},{"$f":"VLOOKUP(DropDownList!$B$47,CntyQryCensus!$A$156:$FR$198,DS$1)","v":62},{"$f":"VLOOKUP(DropDownList!$B$47,CntyQryCensus!$A$156:$FR$198,DT$1)","v":1144},{"$f":"VLOOKUP(DropDownList!$B$47,CntyQryCensus!$A$156:$FR$198,DU$1)","v":903},{"$f":"VLOOKUP(DropDownList!$B$47,CntyQryCensus!$A$156:$FR$198,DV$1)","v":326},{"$f":"VLOOKUP(DropDownList!$B$47,CntyQryCensus!$A$156:$FR$198,DW$1)","v":34},{"$f":"VLOOKUP(DropDownList!$B$47,CntyQryCensus!$A$156:$FR$198,DX$1)","v":152},{"$f":"VLOOKUP(DropDownList!$B$47,CntyQryCensus!$A$156:$FR$198,DY$1)","v":48},{"$f":"VLOOKUP(DropDownList!$B$47,CntyQryCensus!$A$156:$FR$198,DZ$1)","v":1788},{"$f":"VLOOKUP(DropDownList!$B$47,CntyQryCensus!$A$156:$FR$198,EA$1)","v":1091},{"$f":"VLOOKUP(DropDownList!$B$47,CntyQryCensus!$A$156:$FR$198,EB$1)","v":1091},{"$f":"VLOOKUP(DropDownList!$B$47,CntyQryCensus!$A$156:$FR$198,EC$1)","v":1077},{"$f":"VLOOKUP(DropDownList!$B$47,CntyQryCensus!$A$156:$FR$198,ED$1)","v":709},{"$f":"VLOOKUP(DropDownList!$B$47,CntyQryCensus!$A$156:$FR$198,EE$1)","v":656},{"$f":"VLOOKUP(DropDownList!$B$47,CntyQryCensus!$A$156:$FR$198,EF$1)","v":153},{"$f":"VLOOKUP(DropDownList!$B$47,CntyQryCensus!$A$156:$FR$198,EG$1)","v":127},{"$f":"VLOOKUP(DropDownList!$B$47,CntyQryCensus!$A$156:$FR$198,EH$1)","v":322},{"$f":"VLOOKUP(DropDownList!$B$47,CntyQryCensus!$A$156:$FR$198,EI$1)","v":306},{"$f":"VLOOKUP(DropDownList!$B$47,CntyQryCensus!$A$156:$FR$198,EJ$1)","v":16},{"$f":"VLOOKUP(DropDownList!$B$47,CntyQryCensus!$A$156:$FR$198,EK$1)","v":54},{"$f":"VLOOKUP(DropDownList!$B$47,CntyQryCensus!$A$156:$FR$198,EL$1)","v":49},{"$f":"VLOOKUP(DropDownList!$B$47,CntyQryCensus!$A$156:$FR$198,EM$1)","v":5},{"$f":"VLOOKUP(DropDownList!$B$47,CntyQryCensus!$A$156:$FR$198,EN$1)","v":53},{"$f":"VLOOKUP(DropDownList!$B$47,CntyQryCensus!$A$156:$FR$198,EO$1)","v":17},{"$f":"VLOOKUP(DropDownList!$B$47,CntyQryCensus!$A$156:$FR$198,EP$1)","v":3},{"$f":"VLOOKUP(DropDownList!$B$47,CntyQryCensus!$A$156:$FR$198,EQ$1)","v":4},{"$f":"VLOOKUP(DropDownList!$B$47,CntyQryCensus!$A$156:$FR$198,ER$1)","v":8},{"$f":"VLOOKUP(DropDownList!$B$47,CntyQryCensus!$A$156:$FR$198,ES$1)","v":2},{"$f":"VLOOKUP(DropDownList!$B$47,CntyQryCensus!$A$156:$FR$198,ET$1)","v":36},{"$f":"VLOOKUP(DropDownList!$B$47,CntyQryCensus!$A$156:$FR$198,EU$1)","v":2},{"$f":"VLOOKUP(DropDownList!$B$47,CntyQryCensus!$A$156:$FR$198,EV$1)","v":22},{"$f":"VLOOKUP(DropDownList!$B$47,CntyQryCensus!$A$156:$FR$198,EW$1)","v":10},{"$f":"VLOOKUP(DropDownList!$B$47,CntyQryCensus!$A$156:$FR$198,EX$1)","v":2},{"$f":"VLOOKUP(DropDownList!$B$47,CntyQryCensus!$A$156:$FR$198,EY$1)","v":1077},{"$f":"VLOOKUP(DropDownList!$B$47,CntyQryCensus!$A$156:$FR$198,EZ$1)","v":13},{"$f":"VLOOKUP(DropDownList!$B$47,CntyQryCensus!$A$156:$FR$198,FA$1)","v":54},{"$f":"VLOOKUP(DropDownList!$B$47,CntyQryCensus!$A$156:$FR$198,FB$1)","v":147},{"$f":"VLOOKUP(DropDownList!$B$47,CntyQryCensus!$A$156:$FR$198,FC$1)","v":37},{"$f":"VLOOKUP(DropDownList!$B$47,CntyQryCensus!$A$156:$FR$198,FD$1)","v":141},{"$f":"VLOOKUP(DropDownList!$B$47,CntyQryCensus!$A$156:$FR$198,FE$1)","v":47},{"$f":"VLOOKUP(DropDownList!$B$47,CntyQryCensus!$A$156:$FR$198,FF$1)","v":31},{"$f":"VLOOKUP(DropDownList!$B$47,CntyQryCensus!$A$156:$FR$198,FG$1)","v":58},{"$f":"VLOOKUP(DropDownList!$B$47,CntyQryCensus!$A$156:$FR$198,FH$1)","v":102},{"$f":"VLOOKUP(DropDownList!$B$47,CntyQryCensus!$A$156:$FR$198,FI$1)","v":324},{"$f":"VLOOKUP(DropDownList!$B$47,CntyQryCensus!$A$156:$FR$198,FJ$1)","v":42},{"$f":"VLOOKUP(DropDownList!$B$47,CntyQryCensus!$A$156:$FR$198,FK$1)","v":48},{"$f":"VLOOKUP(DropDownList!$B$47,CntyQryCensus!$A$156:$FR$198,FL$1)","v":33},{"$f":"VLOOKUP(DropDownList!$B$47,CntyQryCensus!$A$156:$FR$198,FM$1)","v":516},{"$f":"VLOOKUP(DropDownList!$B$47,CntyQryCensus!$A$156:$FR$198,FN$1)","v":93},{"$f":"VLOOKUP(DropDownList!$B$47,CntyQryCensus!$A$156:$FR$198,FO$1)","v":287},{"$f":"VLOOKUP(DropDownList!$B$47,CntyQryCensus!$A$156:$FR$198,FP$1)","v":4},{"$f":"VLOOKUP(DropDownList!$B$47,CntyQryCensus!$A$156:$FR$198,FQ$1)","v":78},{"$f":"VLOOKUP(DropDownList!$B$47,CntyQryCensus!$A$156:$FR$198,FR$1)","v":99}]
[]
[]
["Census 2000 SummaryFile3 Sample Data  -  SF3TownQry2aIncomeChar"]
["NAME","LOGRECNO","COUNTY","TotalPop","P52Households1","P52HHInc<10K","P52HHInc10to15K","P52HHInc15to20K","P52HHInc20to25K","P52HHInc25to30K","P52HHInc30to35K","P52HHInc35to40K","P52HHInc40to45K","P52HHInc45to50K","P52HHInc50to60K","P52HHInc60to75K","P52HHInc75to100K","P52HHInc100to125K","P52HHInc125to150K","P52HHInc150to200K","P52HHInc>200K","P53MedianHHInc","P54AggregHHInc","P55Households2","P55HHUnder25yrs","P55HH<25HHInc<10K","P55HH<25HHInc10to15K","P55HH<25HHInc15to20K","P55HH<25HHInc20to25K","P55HH<25HHInc25to30K","P55HH<25HHInc30to35K","P55HH<25HHInc35to40K","P55HH<25HHInc40to45K","P55HH<25HHInc45to50K","P55HH<25HHInc50to60K","P55HH<25HHInc60to75K","P55HH<25HHInc75to100K","P55HH<25HHInc100to125K","P55HH<25HHInc125to150K","P55HH<25HHInc150to200K","P55HH<25HHInc>200K","P55HH25to34yrs","P55HH25to34HHInc<10K","P55HH25to34HHInc10to15K","P55HH25to34HHInc15to20K","P55HH25to34HHInc20to25K","P55HH25to34HHInc25to30K","P55HH25to34HHInc30to35K","P55HH25to34HHInc35to40K","P55HH25to34HHInc40to45K","P55HH25to34HHInc45to50K","P55HH25to34HHInc50to60K","P55HH25to34HHInc60to75K","P55HH25to34HHInc75to100K","P55HH25to34HHInc100to125K","P55HH25to34HHInc125to150K","P55HH25to34HHInc150to200K","P55HH25to34HHInc>200K","P55HH35to44yrs","P55HH35to44HHInc<10K","P55HH35to44HHInc10to15K","P55HH35to44HHInc15to20K","P55HH35to44HHInc20to25K","P55HH35to44HHInc25to30K","P55HH35to44HHInc30to35K","P55HH35to44HHInc35to40K","P55HH35to44HHInc40to45K","P55HH35to44HHInc45to50K","P55HH35to44HHInc50to60K","P55HH35to44HHInc60to75K","P55HH35to44HHInc75to100K","P55HH35to44HHInc100to125K","P55HH35to44HHInc125to150K","P55HH35to44HHInc150to200K","P55HH35to44HHInc>200K","P55HH45to54yrs","P55HH45to55HHInc<10K","P55HH45to55HHInc10to15K","P55HH45to55HHInc15to20K","P55HH45to55HHInc20to25K","P55HH45to55HHInc25to30K","P55HH45to55HHInc30to35K","P55HH45to55HHInc35to40K","P55HH45to55HHInc40to45K","P55HH45to55HHInc45to50K","P55HH45to55HHInc50to60K","P55HH45to55HHInc60to75K","P55HH45to55HHInc75to100K","P55HH45to55HHInc100to125K","P55HH45to55HHInc125to150K","P55HH45to55HHInc150to200K","P55HH45to55HHInc>200K","P55HH55to64yrs","P55HH55to64HHInc<10K","P55HH55to64HHInc10to15K","P55HH55to64HHInc15to20K","P55HH55to64HHInc20to25K","P55HH55to64HHInc25to30K","P55HH55to64HHInc30to35K","P55HH55to64HHInc35to40K","P55HH55to64HHInc40to45K","P55HH55to64HHInc45to50K","P55HH55to64HHInc50to60K","P55HH55to64HHInc60to75K","P55HH55to64HHInc75to100K","P55HH55to64HHInc100to125K","P55HH55to64HHInc125to150K","P55HH55to64HHInc150to200K","P55HH55to64HHInc>200K","P55HH65to74yrs","P55HH65to74HHInc<10K","P55HH65to74HHInc10to15K","P55HH65to74HHInc15to20K","P55HH65to74HHInc20to25K","P55HH65to74HHInc25to30K","P55HH65to74HHInc30to35K","P55HH65to74HHInc35to40K","P55HH65to74HHInc40to45K","P55HH65to74HHInc45to50K","P55HH65to74HHInc50to60K","P55HH65to74HHInc60to75K","P55HH65to74HHInc75to100K","P55HH65to74HHInc100to125K","P55HH65to74HHInc125to150K","P55HH65to74HHInc150to200K","P55HH65to74HHInc>200K","P55HH>75yrs","P55HH>75HHInc<10K","P55HH>75HHInc10to15K","P55HH>75HHInc15to20K","P55HH>75HHInc20to25K","P55HH>75HHInc25to30K","P55HH>75HHInc30to35K","P55HH>75HHInc35to40K","P55HH>75HHInc40to45K","P55HH>75HHInc45to50K","P55HH>75HHInc50to60K","P55HH>75HHInc60to75K","P55HH>75HHInc75to100K","P55HH>75HHInc100to125K","P55HH>75HHInc125to150K","P55HH>75HHInc150to200K","P55HH>75HHInc>200K","P56MedHHInc","P56MedHHIncHH<25y","P56MedHHIncHH25to34y","P56MedHHIncHH35to44y","P56MedHHIncHH45to54y","P56MedHHIncHH55to64y","P56MedHHIncHH65to74y","P56MedHHIncHH>75y","P58Households3","P58HHwithEarnings","P58HHNoEarnings","P59HHwWageSalInc","P59HHNoWageSalInc","P60HHwSelfEmpInc","P60HHNoSelfEmpInc","P61HHwIndDivInc","P61HHNoIndDivInc","P62HHwSocSecInc","P62HHNoSocSecInc","P63HHwSSI","P63HHNoSSI","P64HHwPubAssInc","P64HHNoPubAssInc","P65HHwRetInc","P65HHNoRetInc","P66HHwOtherTypInc","P66HHNoOtherTypInc","P67AggregEarnings","P68AggregWageSalInc","P69AggregSelfEmpInc","P70AggregIntDivInc","P71AggregSocSecInc","P72AggregSSIInc","P73AggregPublicAssInc","P74AggregRetireInc","P76Families1","P76FamInc<10K","P76FamInc10to15K","P76FamInc15to20K","P76FamInc20to25K","P76FamInc25to30K","P76FamInc30to35K","P76FamInc35to40K","P76FamInc40to45K","P76FamInc45to50K","P76FamInc50to60K","P76FamInc60to75K","P76FamInc75to100K","P76FamInc100to125K","P76FamInc125to150K","P76FamInc150to200K","P76FamInc>200K","P77MedFamInc","P78AggregFamInc","P79NonFamHH","P79NonFamHHwInc<10K","P79NonFamHHwInc10to15K","P79NonFamHHwInc15to20K","P79NonFamHHwInc20to25K","P79NonFamHHwInc25to30K","P79NonFamHHwInc30to35K","P79NonFamHHwInc35to40K","P79NonFamHHwInc40to45K","P79NonFamHHwInc45to50K","P79NonFamHHwInc50to60K","P79NonFamHHwInc60to75K","P79NonFamHHwInc75to100K","P79NonFamHHwInc100to125K","P79NonFamHHwInc125to150K","P79NonFamHHwInc150to200K","P79NonFamHHwInc200KorMore","P80MedNonFamInc","P82PerCapitaInc"]
[{"$f":"VLOOKUP(DropDownList!$B$47,CntyQryCensus!$A$206:$HH$248,A$1)","v":"Grantham"},{"$f":"VLOOKUP(DropDownList!$B$47,CntyQryCensus!$A$206:$HH$248,B$1)","v":"0004212"},{"$f":"VLOOKUP(DropDownList!$B$47,CntyQryCensus!$A$206:$HH$248,C$1)","v":"31220"},{"$f":"VLOOKUP(DropDownList!$B$47,CntyQryCensus!$A$206:$HH$248,D$1)","v":2167},{"$f":"VLOOKUP(DropDownList!$B$47,CntyQryCensus!$A$206:$HH$248,E$1)","v":933},{"$f":"VLOOKUP(DropDownList!$B$47,CntyQryCensus!$A$206:$HH$248,F$1)","v":36},{"$f":"VLOOKUP(DropDownList!$B$47,CntyQryCensus!$A$206:$HH$248,G$1)","v":12},{"$f":"VLOOKUP(DropDownList!$B$47,CntyQryCensus!$A$206:$HH$248,H$1)","v":14},{"$f":"VLOOKUP(DropDownList!$B$47,CntyQryCensus!$A$206:$HH$248,I$1)","v":38},{"$f":"VLOOKUP(DropDownList!$B$47,CntyQryCensus!$A$206:$HH$248,J$1)","v":42},{"$f":"VLOOKUP(DropDownList!$B$47,CntyQryCensus!$A$206:$HH$248,K$1)","v":26},{"$f":"VLOOKUP(DropDownList!$B$47,CntyQryCensus!$A$206:$HH$248,L$1)","v":48},{"$f":"VLOOKUP(DropDownList!$B$47,CntyQryCensus!$A$206:$HH$248,M$1)","v":59},{"$f":"VLOOKUP(DropDownList!$B$47,CntyQryCensus!$A$206:$HH$248,N$1)","v":40},{"$f":"VLOOKUP(DropDownList!$B$47,CntyQryCensus!$A$206:$HH$248,O$1)","v":113},{"$f":"VLOOKUP(DropDownList!$B$47,CntyQryCensus!$A$206:$HH$248,P$1)","v":146},{"$f":"VLOOKUP(DropDownList!$B$47,CntyQryCensus!$A$206:$HH$248,Q$1)","v":163},{"$f":"VLOOKUP(DropDownList!$B$47,CntyQryCensus!$A$206:$HH$248,R$1)","v":84},{"$f":"VLOOKUP(DropDownList!$B$47,CntyQryCensus!$A$206:$HH$248,S$1)","v":45},{"$f":"VLOOKUP(DropDownList!$B$47,CntyQryCensus!$A$206:$HH$248,T$1)","v":35},{"$f":"VLOOKUP(DropDownList!$B$47,CntyQryCensus!$A$206:$HH$248,U$1)","v":32},{"$f":"VLOOKUP(DropDownList!$B$47,CntyQryCensus!$A$206:$HH$248,V$1)","v":63239},{"$f":"VLOOKUP(DropDownList!$B$47,CntyQryCensus!$A$206:$HH$248,W$1)","v":70319700},{"$f":"VLOOKUP(DropDownList!$B$47,CntyQryCensus!$A$206:$HH$248,X$1)","v":933},{"$f":"VLOOKUP(DropDownList!$B$47,CntyQryCensus!$A$206:$HH$248,Y$1)","v":15},{"$f":"VLOOKUP(DropDownList!$B$47,CntyQryCensus!$A$206:$HH$248,Z$1)","v":3},{"$f":"VLOOKUP(DropDownList!$B$47,CntyQryCensus!$A$206:$HH$248,AA$1)","v":0},{"$f":"VLOOKUP(DropDownList!$B$47,CntyQryCensus!$A$206:$HH$248,AB$1)","v":0},{"$f":"VLOOKUP(DropDownList!$B$47,CntyQryCensus!$A$206:$HH$248,AC$1)","v":3},{"$f":"VLOOKUP(DropDownList!$B$47,CntyQryCensus!$A$206:$HH$248,AD$1)","v":4},{"$f":"VLOOKUP(DropDownList!$B$47,CntyQryCensus!$A$206:$HH$248,AE$1)","v":0},{"$f":"VLOOKUP(DropDownList!$B$47,CntyQryCensus!$A$206:$HH$248,AF$1)","v":0},{"$f":"VLOOKUP(DropDownList!$B$47,CntyQryCensus!$A$206:$HH$248,AG$1)","v":0},{"$f":"VLOOKUP(DropDownList!$B$47,CntyQryCensus!$A$206:$HH$248,AH$1)","v":0},{"$f":"VLOOKUP(DropDownList!$B$47,CntyQryCensus!$A$206:$HH$248,AI$1)","v":3},{"$f":"VLOOKUP(DropDownList!$B$47,CntyQryCensus!$A$206:$HH$248,AJ$1)","v":2},{"$f":"VLOOKUP(DropDownList!$B$47,CntyQryCensus!$A$206:$HH$248,AK$1)","v":0},{"$f":"VLOOKUP(DropDownList!$B$47,CntyQryCensus!$A$206:$HH$248,AL$1)","v":0},{"$f":"VLOOKUP(DropDownList!$B$47,CntyQryCensus!$A$206:$HH$248,AM$1)","v":0},{"$f":"VLOOKUP(DropDownList!$B$47,CntyQryCensus!$A$206:$HH$248,AN$1)","v":0},{"$f":"VLOOKUP(DropDownList!$B$47,CntyQryCensus!$A$206:$HH$248,AO$1)","v":0},{"$f":"VLOOKUP(DropDownList!$B$47,CntyQryCensus!$A$206:$HH$248,AP$1)","v":105},{"$f":"VLOOKUP(DropDownList!$B$47,CntyQryCensus!$A$206:$HH$248,AQ$1)","v":0},{"$f":"VLOOKUP(DropDownList!$B$47,CntyQryCensus!$A$206:$HH$248,AR$1)","v":0},{"$f":"VLOOKUP(DropDownList!$B$47,CntyQryCensus!$A$206:$HH$248,AS$1)","v":0},{"$f":"VLOOKUP(DropDownList!$B$47,CntyQryCensus!$A$206:$HH$248,AT$1)","v":0},{"$f":"VLOOKUP(DropDownList!$B$47,CntyQryCensus!$A$206:$HH$248,AU$1)","v":2},{"$f":"VLOOKUP(DropDownList!$B$47,CntyQryCensus!$A$206:$HH$248,AV$1)","v":0},{"$f":"VLOOKUP(DropDownList!$B$47,CntyQryCensus!$A$206:$HH$248,AW$1)","v":9},{"$f":"VLOOKUP(DropDownList!$B$47,CntyQryCensus!$A$206:$HH$248,AX$1)","v":10},{"$f":"VLOOKUP(DropDownList!$B$47,CntyQryCensus!$A$206:$HH$248,AY$1)","v":6},{"$f":"VLOOKUP(DropDownList!$B$47,CntyQryCensus!$A$206:$HH$248,AZ$1)","v":9},{"$f":"VLOOKUP(DropDownList!$B$47,CntyQryCensus!$A$206:$HH$248,BA$1)","v":26},{"$f":"VLOOKUP(DropDownList!$B$47,CntyQryCensus!$A$206:$HH$248,BB$1)","v":22},{"$f":"VLOOKUP(DropDownList!$B$47,CntyQryCensus!$A$206:$HH$248,BC$1)","v":5},{"$f":"VLOOKUP(DropDownList!$B$47,CntyQryCensus!$A$206:$HH$248,BD$1)","v":7},{"$f":"VLOOKUP(DropDownList!$B$47,CntyQryCensus!$A$206:$HH$248,BE$1)","v":7},{"$f":"VLOOKUP(DropDownList!$B$47,CntyQryCensus!$A$206:$HH$248,BF$1)","v":2},{"$f":"VLOOKUP(DropDownList!$B$47,CntyQryCensus!$A$206:$HH$248,BG$1)","v":158},{"$f":"VLOOKUP(DropDownList!$B$47,CntyQryCensus!$A$206:$HH$248,BH$1)","v":5},{"$f":"VLOOKUP(DropDownList!$B$47,CntyQryCensus!$A$206:$HH$248,BI$1)","v":3},{"$f":"VLOOKUP(DropDownList!$B$47,CntyQryCensus!$A$206:$HH$248,BJ$1)","v":5},{"$f":"VLOOKUP(DropDownList!$B$47,CntyQryCensus!$A$206:$HH$248,BK$1)","v":8},{"$f":"VLOOKUP(DropDownList!$B$47,CntyQryCensus!$A$206:$HH$248,BL$1)","v":2},{"$f":"VLOOKUP(DropDownList!$B$47,CntyQryCensus!$A$206:$HH$248,BM$1)","v":3},{"$f":"VLOOKUP(DropDownList!$B$47,CntyQryCensus!$A$206:$HH$248,BN$1)","v":6},{"$f":"VLOOKUP(DropDownList!$B$47,CntyQryCensus!$A$206:$HH$248,BO$1)","v":4},{"$f":"VLOOKUP(DropDownList!$B$47,CntyQryCensus!$A$206:$HH$248,BP$1)","v":9},{"$f":"VLOOKUP(DropDownList!$B$47,CntyQryCensus!$A$206:$HH$248,BQ$1)","v":31},{"$f":"VLOOKUP(DropDownList!$B$47,CntyQryCensus!$A$206:$HH$248,BR$1)","v":21},{"$f":"VLOOKUP(DropDownList!$B$47,CntyQryCensus!$A$206:$HH$248,BS$1)","v":40},{"$f":"VLOOKUP(DropDownList!$B$47,CntyQryCensus!$A$206:$HH$248,BT$1)","v":12},{"$f":"VLOOKUP(DropDownList!$B$47,CntyQryCensus!$A$206:$HH$248,BU$1)","v":0},{"$f":"VLOOKUP(DropDownList!$B$47,CntyQryCensus!$A$206:$HH$248,BV$1)","v":6},{"$f":"VLOOKUP(DropDownList!$B$47,CntyQryCensus!$A$206:$HH$248,BW$1)","v":3},{"$f":"VLOOKUP(DropDownList!$B$47,CntyQryCensus!$A$206:$HH$248,BX$1)","v":203},{"$f":"VLOOKUP(DropDownList!$B$47,CntyQryCensus!$A$206:$HH$248,BY$1)","v":5},{"$f":"VLOOKUP(DropDownList!$B$47,CntyQryCensus!$A$206:$HH$248,BZ$1)","v":0},{"$f":"VLOOKUP(DropDownList!$B$47,CntyQryCensus!$A$206:$HH$248,CA$1)","v":3},{"$f":"VLOOKUP(DropDownList!$B$47,CntyQryCensus!$A$206:$HH$248,CB$1)","v":5},{"$f":"VLOOKUP(DropDownList!$B$47,CntyQryCensus!$A$206:$HH$248,CC$1)","v":8},{"$f":"VLOOKUP(DropDownList!$B$47,CntyQryCensus!$A$206:$HH$248,CD$1)","v":4},{"$f":"VLOOKUP(DropDownList!$B$47,CntyQryCensus!$A$206:$HH$248,CE$1)","v":8},{"$f":"VLOOKUP(DropDownList!$B$47,CntyQryCensus!$A$206:$HH$248,CF$1)","v":8},{"$f":"VLOOKUP(DropDownList!$B$47,CntyQryCensus!$A$206:$HH$248,CG$1)","v":7},{"$f":"VLOOKUP(DropDownList!$B$47,CntyQryCensus!$A$206:$HH$248,CH$1)","v":25},{"$f":"VLOOKUP(DropDownList!$B$47,CntyQryCensus!$A$206:$HH$248,CI$1)","v":41},{"$f":"VLOOKUP(DropDownList!$B$47,CntyQryCensus!$A$206:$HH$248,CJ$1)","v":33},{"$f":"VLOOKUP(DropDownList!$B$47,CntyQryCensus!$A$206:$HH$248,CK$1)","v":24},{"$f":"VLOOKUP(DropDownList!$B$47,CntyQryCensus!$A$206:$HH$248,CL$1)","v":16},{"$f":"VLOOKUP(DropDownList!$B$47,CntyQryCensus!$A$206:$HH$248,CM$1)","v":9},{"$f":"VLOOKUP(DropDownList!$B$47,CntyQryCensus!$A$206:$HH$248,CN$1)","v":7},{"$f":"VLOOKUP(DropDownList!$B$47,CntyQryCensus!$A$206:$HH$248,CO$1)","v":156},{"$f":"VLOOKUP(DropDownList!$B$47,CntyQryCensus!$A$206:$HH$248,CP$1)","v":5},{"$f":"VLOOKUP(DropDownList!$B$47,CntyQryCensus!$A$206:$HH$248,CQ$1)","v":0},{"$f":"VLOOKUP(DropDownList!$B$47,CntyQryCensus!$A$206:$HH$248,CR$1)","v":0},{"$f":"VLOOKUP(DropDownList!$B$47,CntyQryCensus!$A$206:$HH$248,CS$1)","v":5},{"$f":"VLOOKUP(DropDownList!$B$47,CntyQryCensus!$A$206:$HH$248,CT$1)","v":7},{"$f":"VLOOKUP(DropDownList!$B$47,CntyQryCensus!$A$206:$HH$248,CU$1)","v":8},{"$f":"VLOOKUP(DropDownList!$B$47,CntyQryCensus!$A$206:$HH$248,CV$1)","v":9},{"$f":"VLOOKUP(DropDownList!$B$47,CntyQryCensus!$A$206:$HH$248,CW$1)","v":11},{"$f":"VLOOKUP(DropDownList!$B$47,CntyQryCensus!$A$206:$HH$248,CX$1)","v":9},{"$f":"VLOOKUP(DropDownList!$B$47,CntyQryCensus!$A$206:$HH$248,CY$1)","v":16},{"$f":"VLOOKUP(DropDownList!$B$47,CntyQryCensus!$A$206:$HH$248,CZ$1)","v":23},{"$f":"VLOOKUP(DropDownList!$B$47,CntyQryCensus!$A$206:$HH$248,DA$1)","v":24},{"$f":"VLOOKUP(DropDownList!$B$47,CntyQryCensus!$A$206:$HH$248,DB$1)","v":16},{"$f":"VLOOKUP(DropDownList!$B$47,CntyQryCensus!$A$206:$HH$248,DC$1)","v":8},{"$f":"VLOOKUP(DropDownList!$B$47,CntyQryCensus!$A$206:$HH$248,DD$1)","v":5},{"$f":"VLOOKUP(DropDownList!$B$47,CntyQryCensus!$A$206:$HH$248,DE$1)","v":10},{"$f":"VLOOKUP(DropDownList!$B$47,CntyQryCensus!$A$206:$HH$248,DF$1)","v":186},{"$f":"VLOOKUP(DropDownList!$B$47,CntyQryCensus!$A$206:$HH$248,DG$1)","v":13},{"$f":"VLOOKUP(DropDownList!$B$47,CntyQryCensus!$A$206:$HH$248,DH$1)","v":5},{"$f":"VLOOKUP(DropDownList!$B$47,CntyQryCensus!$A$206:$HH$248,DI$1)","v":6},{"$f":"VLOOKUP(DropDownList!$B$47,CntyQryCensus!$A$206:$HH$248,DJ$1)","v":7},{"$f":"VLOOKUP(DropDownList!$B$47,CntyQryCensus!$A$206:$HH$248,DK$1)","v":16},{"$f":"VLOOKUP(DropDownList!$B$47,CntyQryCensus!$A$206:$HH$248,DL$1)","v":11},{"$f":"VLOOKUP(DropDownList!$B$47,CntyQryCensus!$A$206:$HH$248,DM$1)","v":10},{"$f":"VLOOKUP(DropDownList!$B$47,CntyQryCensus!$A$206:$HH$248,DN$1)","v":4},{"$f":"VLOOKUP(DropDownList!$B$47,CntyQryCensus!$A$206:$HH$248,DO$1)","v":7},{"$f":"VLOOKUP(DropDownList!$B$47,CntyQryCensus!$A$206:$HH$248,DP$1)","v":22},{"$f":"VLOOKUP(DropDownList!$B$47,CntyQryCensus!$A$206:$HH$248,DQ$1)","v":16},{"$f":"VLOOKUP(DropDownList!$B$47,CntyQryCensus!$A$206:$HH$248,DR$1)","v":33},{"$f":"VLOOKUP(DropDownList!$B$47,CntyQryCensus!$A$206:$HH$248,DS$1)","v":16},{"$f":"VLOOKUP(DropDownList!$B$47,CntyQryCensus!$A$206:$HH$248,DT$1)","v":6},{"$f":"VLOOKUP(DropDownList!$B$47,CntyQryCensus!$A$206:$HH$248,DU$1)","v":6},{"$f":"VLOOKUP(DropDownList!$B$47,CntyQryCensus!$A$206:$HH$248,DV$1)","v":8},{"$f":"VLOOKUP(DropDownList!$B$47,CntyQryCensus!$A$206:$HH$248,DW$1)","v":110},{"$f":"VLOOKUP(DropDownList!$B$47,CntyQryCensus!$A$206:$HH$248,DX$1)","v":5},{"$f":"VLOOKUP(DropDownList!$B$47,CntyQryCensus!$A$206:$HH$248,DY$1)","v":4},{"$f":"VLOOKUP(DropDownList!$B$47,CntyQryCensus!$A$206:$HH$248,DZ$1)","v":0},{"$f":"VLOOKUP(DropDownList!$B$47,CntyQryCensus!$A$206:$HH$248,EA$1)","v":10},{"$f":"VLOOKUP(DropDownList!$B$47,CntyQryCensus!$A$206:$HH$248,EB$1)","v":3},{"$f":"VLOOKUP(DropDownList!$B$47,CntyQryCensus!$A$206:$HH$248,EC$1)","v":0},{"$f":"VLOOKUP(DropDownList!$B$47,CntyQryCensus!$A$206:$HH$248,ED$1)","v":6},{"$f":"VLOOKUP(DropDownList!$B$47,CntyQryCensus!$A$206:$HH$248,EE$1)","v":22},{"$f":"VLOOKUP(DropDownList!$B$47,CntyQryCensus!$A$206:$HH$248,EF$1)","v":2},{"$f":"VLOOKUP(DropDownList!$B$47,CntyQryCensus!$A$206:$HH$248,EG$1)","v":7},{"$f":"VLOOKUP(DropDownList!$B$47,CntyQryCensus!$A$206:$HH$248,EH$1)","v":17},{"$f":"VLOOKUP(DropDownList!$B$47,CntyQryCensus!$A$206:$HH$248,EI$1)","v":11},{"$f":"VLOOKUP(DropDownList!$B$47,CntyQryCensus!$A$206:$HH$248,EJ$1)","v":11},{"$f":"VLOOKUP(DropDownList!$B$47,CntyQryCensus!$A$206:$HH$248,EK$1)","v":8},{"$f":"VLOOKUP(DropDownList!$B$47,CntyQryCensus!$A$206:$HH$248,EL$1)","v":2},{"$f":"VLOOKUP(DropDownList!$B$47,CntyQryCensus!$A$206:$HH$248,EM$1)","v":2},{"$f":"VLOOKUP(DropDownList!$B$47,CntyQryCensus!$A$206:$HH$248,EN$1)","v":63239},{"$f":"VLOOKUP(DropDownList!$B$47,CntyQryCensus!$A$206:$HH$248,EO$1)","v":25938},{"$f":"VLOOKUP(DropDownList!$B$47,CntyQryCensus!$A$206:$HH$248,EP$1)","v":72031},{"$f":"VLOOKUP(DropDownList!$B$47,CntyQryCensus!$A$206:$HH$248,EQ$1)","v":60833},{"$f":"VLOOKUP(DropDownList!$B$47,CntyQryCensus!$A$206:$HH$248,ER$1)","v":67159},{"$f":"VLOOKUP(DropDownList!$B$47,CntyQryCensus!$A$206:$HH$248,ES$1)","v":67000},{"$f":"VLOOKUP(DropDownList!$B$47,CntyQryCensus!$A$206:$HH$248,ET$1)","v":55000},{"$f":"VLOOKUP(DropDownList!$B$47,CntyQryCensus!$A$206:$HH$248,EU$1)","v":52500},{"$f":"VLOOKUP(DropDownList!$B$47,CntyQryCensus!$A$206:$HH$248,EV$1)","v":933},{"$f":"VLOOKUP(DropDownList!$B$47,CntyQryCensus!$A$206:$HH$248,EW$1)","v":695},{"$f":"VLOOKUP(DropDownList!$B$47,CntyQryCensus!$A$206:$HH$248,EX$1)","v":238},{"$f":"VLOOKUP(DropDownList!$B$47,CntyQryCensus!$A$206:$HH$248,EY$1)","v":659},{"$f":"VLOOKUP(DropDownList!$B$47,CntyQryCensus!$A$206:$HH$248,EZ$1)","v":274},{"$f":"VLOOKUP(DropDownList!$B$47,CntyQryCensus!$A$206:$HH$248,FA$1)","v":169},{"$f":"VLOOKUP(DropDownList!$B$47,CntyQryCensus!$A$206:$HH$248,FB$1)","v":764},{"$f":"VLOOKUP(DropDownList!$B$47,CntyQryCensus!$A$206:$HH$248,FC$1)","v":586},{"$f":"VLOOKUP(DropDownList!$B$47,CntyQryCensus!$A$206:$HH$248,FD$1)","v":347},{"$f":"VLOOKUP(DropDownList!$B$47,CntyQryCensus!$A$206:$HH$248,FE$1)","v":327},{"$f":"VLOOKUP(DropDownList!$B$47,CntyQryCensus!$A$206:$HH$248,FF$1)","v":606},{"$f":"VLOOKUP(DropDownList!$B$47,CntyQryCensus!$A$206:$HH$248,FG$1)","v":8},{"$f":"VLOOKUP(DropDownList!$B$47,CntyQryCensus!$A$206:$HH$248,FH$1)","v":925},{"$f":"VLOOKUP(DropDownList!$B$47,CntyQryCensus!$A$206:$HH$248,FI$1)","v":4},{"$f":"VLOOKUP(DropDownList!$B$47,CntyQryCensus!$A$206:$HH$248,FJ$1)","v":929},{"$f":"VLOOKUP(DropDownList!$B$47,CntyQryCensus!$A$206:$HH$248,FK$1)","v":246},{"$f":"VLOOKUP(DropDownList!$B$47,CntyQryCensus!$A$206:$HH$248,FL$1)","v":687},{"$f":"VLOOKUP(DropDownList!$B$47,CntyQryCensus!$A$206:$HH$248,FM$1)","v":120},{"$f":"VLOOKUP(DropDownList!$B$47,CntyQryCensus!$A$206:$HH$248,FN$1)","v":813},{"$f":"VLOOKUP(DropDownList!$B$47,CntyQryCensus!$A$206:$HH$248,FO$1)","v":46919500},{"$f":"VLOOKUP(DropDownList!$B$47,CntyQryCensus!$A$206:$HH$248,FP$1)","v":40081600},{"$f":"VLOOKUP(DropDownList!$B$47,CntyQryCensus!$A$206:$HH$248,FQ$1)","v":6837900},{"$f":"VLOOKUP(DropDownList!$B$47,CntyQryCensus!$A$206:$HH$248,FR$1)","v":9066700},{"$f":"VLOOKUP(DropDownList!$B$47,CntyQryCensus!$A$206:$HH$248,FS$1)","v":4370300},{"$f":"VLOOKUP(DropDownList!$B$47,CntyQryCensus!$A$206:$HH$248,FT$1)","v":48700},{"$f":"VLOOKUP(DropDownList!$B$47,CntyQryCensus!$A$206:$HH$248,FU$1)","v":5900},{"$f":"VLOOKUP(DropDownList!$B$47,CntyQryCensus!$A$206:$HH$248,FV$1)","v":8358900},{"$f":"VLOOKUP(DropDownList!$B$47,CntyQryCensus!$A$206:$HH$248,FW$1)","v":709},{"$f":"VLOOKUP(DropDownList!$B$47,CntyQryCensus!$A$206:$HH$248,FX$1)","v":7},{"$f":"VLOOKUP(DropDownList!$B$47,CntyQryCensus!$A$206:$HH$248,FY$1)","v":12},{"$f":"VLOOKUP(DropDownList!$B$47,CntyQryCensus!$A$206:$HH$248,FZ$1)","v":9},{"$f":"VLOOKUP(DropDownList!$B$47,CntyQryCensus!$A$206:$HH$248,GA$1)","v":17},{"$f":"VLOOKUP(DropDownList!$B$47,CntyQryCensus!$A$206:$HH$248,GB$1)","v":22},{"$f":"VLOOKUP(DropDownList!$B$47,CntyQryCensus!$A$206:$HH$248,GC$1)","v":22},{"$f":"VLOOKUP(DropDownList!$B$47,CntyQryCensus!$A$206:$HH$248,GD$1)","v":31},{"$f":"VLOOKUP(DropDownList!$B$47,CntyQryCensus!$A$206:$HH$248,GE$1)","v":42},{"$f":"VLOOKUP(DropDownList!$B$47,CntyQryCensus!$A$206:$HH$248,GF$1)","v":30},{"$f":"VLOOKUP(DropDownList!$B$47,CntyQryCensus!$A$206:$HH$248,GG$1)","v":96},{"$f":"VLOOKUP(DropDownList!$B$47,CntyQryCensus!$A$206:$HH$248,GH$1)","v":115},{"$f":"VLOOKUP(DropDownList!$B$47,CntyQryCensus!$A$206:$HH$248,GI$1)","v":148},{"$f":"VLOOKUP(DropDownList!$B$47,CntyQryCensus!$A$206:$HH$248,GJ$1)","v":70},{"$f":"VLOOKUP(DropDownList!$B$47,CntyQryCensus!$A$206:$HH$248,GK$1)","v":35},{"$f":"VLOOKUP(DropDownList!$B$47,CntyQryCensus!$A$206:$HH$248,GL$1)","v":29},{"$f":"VLOOKUP(DropDownList!$B$47,CntyQryCensus!$A$206:$HH$248,GM$1)","v":24},{"$f":"VLOOKUP(DropDownList!$B$47,CntyQryCensus!$A$206:$HH$248,GN$1)","v":69271},{"$f":"VLOOKUP(DropDownList!$B$47,CntyQryCensus!$A$206:$HH$248,GO$1)","v":56337300},{"$f":"VLOOKUP(DropDownList!$B$47,CntyQryCensus!$A$206:$HH$248,GP$1)","v":224},{"$f":"VLOOKUP(DropDownList!$B$47,CntyQryCensus!$A$206:$HH$248,GQ$1)","v":29},{"$f":"VLOOKUP(DropDownList!$B$47,CntyQryCensus!$A$206:$HH$248,GR$1)","v":3},{"$f":"VLOOKUP(DropDownList!$B$47,CntyQryCensus!$A$206:$HH$248,GS$1)","v":5},{"$f":"VLOOKUP(DropDownList!$B$47,CntyQryCensus!$A$206:$HH$248,GT$1)","v":24},{"$f":"VLOOKUP(DropDownList!$B$47,CntyQryCensus!$A$206:$HH$248,GU$1)","v":20},{"$f":"VLOOKUP(DropDownList!$B$47,CntyQryCensus!$A$206:$HH$248,GV$1)","v":4},{"$f":"VLOOKUP(DropDownList!$B$47,CntyQryCensus!$A$206:$HH$248,GW$1)","v":14},{"$f":"VLOOKUP(DropDownList!$B$47,CntyQryCensus!$A$206:$HH$248,GX$1)","v":17},{"$f":"VLOOKUP(DropDownList!$B$47,CntyQryCensus!$A$206:$HH$248,GY$1)","v":12},{"$f":"VLOOKUP(DropDownList!$B$47,CntyQryCensus!$A$206:$HH$248,GZ$1)","v":16},{"$f":"VLOOKUP(DropDownList!$B$47,CntyQryCensus!$A$206:$HH$248,HA$1)","v":31},{"$f":"VLOOKUP(DropDownList!$B$47,CntyQryCensus!$A$206:$HH$248,HB$1)","v":13},{"$f":"VLOOKUP(DropDownList!$B$47,CntyQryCensus!$A$206:$HH$248,HC$1)","v":12},{"$f":"VLOOKUP(DropDownList!$B$47,CntyQryCensus!$A$206:$HH$248,HD$1)","v":10},{"$f":"VLOOKUP(DropDownList!$B$47,CntyQryCensus!$A$206:$HH$248,HE$1)","v":6},{"$f":"VLOOKUP(DropDownList!$B$47,CntyQryCensus!$A$206:$HH$248,HF$1)","v":8},{"$f":"VLOOKUP(DropDownList!$B$47,CntyQryCensus!$A$206:$HH$248,HG$1)","v":44000},{"$f":"VLOOKUP(DropDownList!$B$47,CntyQryCensus!$A$206:$HH$248,HH$1)","v":32174}]
[]
[]
["Census 2000 SummaryFile3 Sample Data  -  SF3TownQry2bPovertyChar"]
["NAME","LOGRECNO","COUNTY","TotalPop","P52Households1","P82PerCapitaInc","P87PopForPovStatus","P87PopWIncBelowPovStatus","P87PopUnder5yrBelowPoverty","P87Pop5yrBelowPoverty","P87Pop5to11yrBelowPoverty","P87Pop12to17yrBelowPoverty","P87Pop18to64yrBelowPoverty","P87Pop65to74yrBelowPoverty","P87PopOver75yrBelowPoverty","P87PopWIncAbovePovStatus","P87PopUnder5yrAbovePoverty","P87Pop5yrAbovePoverty","P87Pop5to11yrAbovePoverty","P87Pop12to17yrAbovePoverty","P87Pop18to64yrAbovePoverty","P87Pop65to74yrAbovePoverty","P87PopOver75yrAbovePoverty","P90Families","P90FamWIncBelowPov","P90MarCupFamWIncBelowPov","P90MCFamWRltdChld<18WIncBelowPov","P90MCFamWRltdChld<5WIncBelowPov","P90MaleHhlrWIncBelowPov","P90MaleHhlrWRltdChld<18yrWIncBelowPov","P90MaleHhlrWRltdChld<5yrWIncBelowPov","P90FemaleHhlrWIncBelowPov","P90FemaleHhlrWRltdChld<18yWIncBelowPov","P90FemaleHhlrWRltdChld<5yWIncBelowPov","P90FamWIncAbovePov","P90MarCupFamWIncAbovePov","P90MCFamWRltdChld<18WIncAbovePov","P90MCFamWRltdChld<5WIncAbovePov","P90MaleHhlrWIncAbovePov","P90MaleHhlrWRltdChld<18yrWIncAbovePov","P90MaleHhlrWRltdChld<5yrWIncAbovePov","P90FemaleHhlrWIncAbovePov","P90FemaleHhlrWRltdChld<18yWIncAbovePov","P90FemaleHhlrWRltdChld<5yWIncAbovePov","P92Households","P92HHwIncBelowPov","P92FamHHwIncBelowPov","P92MCFamHHwIncBelowPov","P92MaleFamHHwIncBelowPov","P92FemaleFamHHwIncBelowPov","P92NonFamHHwIncBelowPov","P92NonFamMaleHHwIncBelowPov","P92NonFamFemaleHHwIncBelowPov","P92HHwIncAbovePov","P92FamHHwIncAbovePov","P92MCFamHHwIncAbovePov","P92MaleFamHHwIncAbovePov","P92FemaleFamHHwIncAbovePov","P92NonFamHHwIncAbovePov","P92NonFamMaleHHwIncAbovePov","P92NonFamFemaleHHwIncAbovePov"]
[{"$f":"VLOOKUP(DropDownList!$B$47,CntyQryCensus!$A$256:$BI$298,A$1)","v":"Grantham"},{"$f":"VLOOKUP(DropDownList!$B$47,CntyQryCensus!$A$256:$BI$298,B$1)","v":"0004212"},{"$f":"VLOOKUP(DropDownList!$B$47,CntyQryCensus!$A$256:$BI$298,C$1)","v":"31220"},{"$f":"VLOOKUP(DropDownList!$B$47,CntyQryCensus!$A$256:$BI$298,D$1)","v":2167},{"$f":"VLOOKUP(DropDownList!$B$47,CntyQryCensus!$A$256:$BI$298,E$1)","v":933},{"$f":"VLOOKUP(DropDownList!$B$47,CntyQryCensus!$A$256:$BI$298,F$1)","v":32174},{"$f":"VLOOKUP(DropDownList!$B$47,CntyQryCensus!$A$256:$BI$298,G$1)","v":2173},{"$f":"VLOOKUP(DropDownList!$B$47,CntyQryCensus!$A$256:$BI$298,H$1)","v":54},{"$f":"VLOOKUP(DropDownList!$B$47,CntyQryCensus!$A$256:$BI$298,I$1)","v":8},{"$f":"VLOOKUP(DropDownList!$B$47,CntyQryCensus!$A$256:$BI$298,J$1)","v":0},{"$f":"VLOOKUP(DropDownList!$B$47,CntyQryCensus!$A$256:$BI$298,K$1)","v":0},{"$f":"VLOOKUP(DropDownList!$B$47,CntyQryCensus!$A$256:$BI$298,L$1)","v":0},{"$f":"VLOOKUP(DropDownList!$B$47,CntyQryCensus!$A$256:$BI$298,M$1)","v":28},{"$f":"VLOOKUP(DropDownList!$B$47,CntyQryCensus!$A$256:$BI$298,N$1)","v":13},{"$f":"VLOOKUP(DropDownList!$B$47,CntyQryCensus!$A$256:$BI$298,O$1)","v":5},{"$f":"VLOOKUP(DropDownList!$B$47,CntyQryCensus!$A$256:$BI$298,P$1)","v":2119},{"$f":"VLOOKUP(DropDownList!$B$47,CntyQryCensus!$A$256:$BI$298,Q$1)","v":101},{"$f":"VLOOKUP(DropDownList!$B$47,CntyQryCensus!$A$256:$BI$298,R$1)","v":30},{"$f":"VLOOKUP(DropDownList!$B$47,CntyQryCensus!$A$256:$BI$298,S$1)","v":164},{"$f":"VLOOKUP(DropDownList!$B$47,CntyQryCensus!$A$256:$BI$298,T$1)","v":132},{"$f":"VLOOKUP(DropDownList!$B$47,CntyQryCensus!$A$256:$BI$298,U$1)","v":1232},{"$f":"VLOOKUP(DropDownList!$B$47,CntyQryCensus!$A$256:$BI$298,V$1)","v":313},{"$f":"VLOOKUP(DropDownList!$B$47,CntyQryCensus!$A$256:$BI$298,W$1)","v":147},{"$f":"VLOOKUP(DropDownList!$B$47,CntyQryCensus!$A$256:$BI$298,X$1)","v":709},{"$f":"VLOOKUP(DropDownList!$B$47,CntyQryCensus!$A$256:$BI$298,Y$1)","v":10},{"$f":"VLOOKUP(DropDownList!$B$47,CntyQryCensus!$A$256:$BI$298,Z$1)","v":3},{"$f":"VLOOKUP(DropDownList!$B$47,CntyQryCensus!$A$256:$BI$298,AA$1)","v":3},{"$f":"VLOOKUP(DropDownList!$B$47,CntyQryCensus!$A$256:$BI$298,AB$1)","v":3},{"$f":"VLOOKUP(DropDownList!$B$47,CntyQryCensus!$A$256:$BI$298,AC$1)","v":2},{"$f":"VLOOKUP(DropDownList!$B$47,CntyQryCensus!$A$256:$BI$298,AD$1)","v":0},{"$f":"VLOOKUP(DropDownList!$B$47,CntyQryCensus!$A$256:$BI$298,AE$1)","v":0},{"$f":"VLOOKUP(DropDownList!$B$47,CntyQryCensus!$A$256:$BI$298,AF$1)","v":5},{"$f":"VLOOKUP(DropDownList!$B$47,CntyQryCensus!$A$256:$BI$298,AG$1)","v":5},{"$f":"VLOOKUP(DropDownList!$B$47,CntyQryCensus!$A$256:$BI$298,AH$1)","v":5},{"$f":"VLOOKUP(DropDownList!$B$47,CntyQryCensus!$A$256:$BI$298,AI$1)","v":699},{"$f":"VLOOKUP(DropDownList!$B$47,CntyQryCensus!$A$256:$BI$298,AJ$1)","v":653},{"$f":"VLOOKUP(DropDownList!$B$47,CntyQryCensus!$A$256:$BI$298,AK$1)","v":204},{"$f":"VLOOKUP(DropDownList!$B$47,CntyQryCensus!$A$256:$BI$298,AL$1)","v":42},{"$f":"VLOOKUP(DropDownList!$B$47,CntyQryCensus!$A$256:$BI$298,AM$1)","v":15},{"$f":"VLOOKUP(DropDownList!$B$47,CntyQryCensus!$A$256:$BI$298,AN$1)","v":5},{"$f":"VLOOKUP(DropDownList!$B$47,CntyQryCensus!$A$256:$BI$298,AO$1)","v":0},{"$f":"VLOOKUP(DropDownList!$B$47,CntyQryCensus!$A$256:$BI$298,AP$1)","v":31},{"$f":"VLOOKUP(DropDownList!$B$47,CntyQryCensus!$A$256:$BI$298,AQ$1)","v":21},{"$f":"VLOOKUP(DropDownList!$B$47,CntyQryCensus!$A$256:$BI$298,AR$1)","v":0},{"$f":"VLOOKUP(DropDownList!$B$47,CntyQryCensus!$A$256:$BI$298,AS$1)","v":933},{"$f":"VLOOKUP(DropDownList!$B$47,CntyQryCensus!$A$256:$BI$298,AT$1)","v":39},{"$f":"VLOOKUP(DropDownList!$B$47,CntyQryCensus!$A$256:$BI$298,AU$1)","v":10},{"$f":"VLOOKUP(DropDownList!$B$47,CntyQryCensus!$A$256:$BI$298,AV$1)","v":3},{"$f":"VLOOKUP(DropDownList!$B$47,CntyQryCensus!$A$256:$BI$298,AW$1)","v":2},{"$f":"VLOOKUP(DropDownList!$B$47,CntyQryCensus!$A$256:$BI$298,AX$1)","v":5},{"$f":"VLOOKUP(DropDownList!$B$47,CntyQryCensus!$A$256:$BI$298,AY$1)","v":29},{"$f":"VLOOKUP(DropDownList!$B$47,CntyQryCensus!$A$256:$BI$298,AZ$1)","v":5},{"$f":"VLOOKUP(DropDownList!$B$47,CntyQryCensus!$A$256:$BI$298,BA$1)","v":24},{"$f":"VLOOKUP(DropDownList!$B$47,CntyQryCensus!$A$256:$BI$298,BB$1)","v":894},{"$f":"VLOOKUP(DropDownList!$B$47,CntyQryCensus!$A$256:$BI$298,BC$1)","v":699},{"$f":"VLOOKUP(DropDownList!$B$47,CntyQryCensus!$A$256:$BI$298,BD$1)","v":653},{"$f":"VLOOKUP(DropDownList!$B$47,CntyQryCensus!$A$256:$BI$298,BE$1)","v":15},{"$f":"VLOOKUP(DropDownList!$B$47,CntyQryCensus!$A$256:$BI$298,BF$1)","v":31},{"$f":"VLOOKUP(DropDownList!$B$47,CntyQryCensus!$A$256:$BI$298,BG$1)","v":195},{"$f":"VLOOKUP(DropDownList!$B$47,CntyQryCensus!$A$256:$BI$298,BH$1)","v":93},{"$f":"VLOOKUP(DropDownList!$B$47,CntyQryCensus!$A$256:$BI$298,BI$1)","v":102}]
[null,null,null,null,null,null,null,null,null,null,null,null,null,null,null,null,null,null,{"$f":"SUM(R60:T60)","v":326}]
[]
["Census 2000 SummaryFile3 Sample Data  -  SF3TownQry7HousingA"]
["NAME","LOGRECNO","COUNTY","TotalPop","H1HousingUnitsTotal","H2SampleHU","H2SampleOccHU","H2SampleVacHU","H3HU100pctCount","H5HUTotal","H5HUUrban","H5HUUrbanInUrbanAreas","H5HUUrbanInUrbanClusters","H5HURural","H5HURuralFarm","H5HURuralNonFarm","H7HUOcc","H7HUOwnrOcc","H7HURentrOcc","H8HUVacant","H8HUVacantForRent","H8HUVacantForSale","H8HUVacRentedorSold","H8HUVacSeasonal","H8HUVacForMigrantWrkrs","H8HUOtherVacant","H14OccHUa","H14OwnerOccHU","H14OwnOccHuHh15to24","H14OwnOccHuHh25to34","H14OwnOccHuHh35to44","H14OwnOccHuHh45to54","H14OwnOccHuHh55to59","H14OwnOccHuHh60to64","H14OwnOccHuHh65to74","H14OwnOccHuHh75to84","H14OwnOccHuHh85Over","H14RenterOccHU1","H14RntrOccHuHh15to24","H14RntrOccHuHh25to34","H14RntrOccHuHh35to44","H14RntrOccHuHh45to54","H14RntrOccHuHh55to59","H14RntrOccHuHh60to64","H14RntrOccHuHh65to74","H14RntrOccHuHh75to84","H14RntrOccHuHh85Over","H15PopInOccHU","H15PopInOwnOccHU1","H15PopInRentOccHU1","H17OccupHUb","H17OwnOccHU2","H17OwnOccHU1PersonHH","H17OwnOccHU2PersonHH","H17OwnOccHU3PersonHH","H17OwnOccHU4PersonHH","H17OwnOccHU5PersonHH","H17OwnOccHU6PersonHH","H17OwnOccHU7PlusPersonHH","H17RentOccHU2","H17RntOccHU1PersonHH","H17RntOccHU2PersonHH","H17RntOccHU3PersonHH","H17RntOccHU4PersonHH","H17RntOccHU5PersonHH","H17RntOccHU6PersonHH","H17RntOccHU7PlusPersonHH","H18AvgHHSize","H18AvgHHSizeOwnOcc","H18AvgHHSizeRentOcc","H23TotHU","H23HU1Room","H23HU2Room","H23HU3Room","H23HU4Room","H23HU5Room","H23HU6Room","H23HU7Room","H23HU8Room","H23HU9orMoreRoom","H24MedianNumRooms","H25AggregNumRooms","H30TotalHU","H30Det1HU","H30Att1HU","H30Units2","H30Units3or4","H30Units5to9","H30Units10to19","H30Units20to49","H30Units50orMore","H30UnitsMobileHome","H30UnitsBoatRv","H32OccHUcTotal","H32OwnerOccHU3","H32OwnOccHU1Det","H32OwnOccHU1Att","H32OwnOccHU2Unit","H32OwnOccHU3to4Unit","H32OwnOccHU5to9Unit","H32OwnOccHU10to19Unit","H32OwnOccHU20to49Unit","H32OwnOccHU50plusUnit","H32OwnOccHUMobHom","H32OwnOccHUBoatRVOth","H32RentrOccHU3","H32RntrOccHU1Det","H32RntrOccHU1Att","H32RntrOccHU2Unit","H32RntrOccHU3to4Unit","H32RntrOccHU5to9Unit","H32RntrOccHU10to19Unit","H32RntrOccHU20to49Unit","H32RntrOccHU50PlusUnit","H32RntrOccHUMobHom","H32RntrOccHUBoatRVOth","H33TotPopInOccHU","H33PopInOwnOccHU2","H33PopInOOHU1Det","H33PopInOOHU1Att","H33PopInOOHU2unit","H33PopInOOHU3to4Unit","H33PopInOOHU5to9Unit","H33PopInOOHU10to19Unit","H33PopInOOHU20to49Unit","H33PopInOOHU50PlusUnit","H33PopInOOHUMobilHome","H33PopInOOHUOtherUnit","H33PopInRentOccHU2","H33PopInROHU1Det","H33PopInROHU1Att","H33PopInROHU2Unit","H33PopInROHU3to4Unit","H33PopInROHU5to9Unit","H33PopInROHU10to19Unit","H33PopInROHU20to49Unit","H33PopInROHU50PlusUnit","H33PopInROHUMobilHome","H33PopInROHUOtherUnit","H36OccHousingUnitsdTotal","H36OwnerOccHU4","H36OOHUBuilt99to0300","H36OOHUBuilt95to98","H36OOHUBuilt90to94","H36OOHUBuilt80to89","H36OOHUBuilt70to79","H36OOHUBuilt60to69","H36OOHUBuilt50to59","H36OOHUBuilt40to49","H36OOHUBuilt39Earlier","H36RentOccHU4","H36ROHUBuilt99to0300","H36ROHUBuilt95to98","H36ROHUBuilt90to94","H36ROHUBuilt80to89","H36ROHUBuilt70to79","H36ROHUBuilt60to69","H36ROHUBuilt50to59","H36ROHUBuilt40to49","H36ROHUBuilt39Earlier","H40OccupHousUnitse","H40HeatFuelUtilGas","H40HeatFuelBotGas","H40HeatFuelElect","H40HeatFuelOilKero","H40HeatFuelCoal","H40HeatFuelWood","H40HeatFuelSolar","H40HeatFuelOther","H40HeatFuelNone","H41TotalHU","H41HUNoBdrm","H41HU1Bdrm","H41HU2Bdrm","H41HU3Bdrm","H41HU4Bdrm","H41HU5MoreBdrm","H42OccuHousUnitf","H42OwnerOccHU5","H42OOHUNoBdrm","H42OOHU1Bdrm","H42OOHU2Bdrm","H42OOHU3Bdrm","H42OOHU4Bdrm","H42OOHU5PlusBdrm","H42RentOccHU5","H42ROHUNoBdrm","H42ROHU1Bdrm","H42ROHU2Bdrm","H42ROHU3Bdrm","H42ROHU4Bdrm","H42ROHU5PlusBdrm","H48OccupHousUnitsg","H48OwnerOccHU6","H48OOHUwCompltPlumFacil","H48OOHULackCompltPlumFacil","H48RentOccHU6","H48ROHUwCompltPlumFacil","H48ROHULackCompltPlumFacil","H51OccupHousUnitf","H51OwnerOccHU7","H51OOHUwCompleteKitFacil","H51OOHULackCompleteKitFacil","H51RenterOccHU7","H51ROHUwCompleteKitFacil","H51ROHULackCompleteKitFacil"]
[{"$f":"VLOOKUP(DropDownList!$B47,CntyQryCensus!$A$306:$GX$348,A$1)","v":"Grantham"},{"$f":"VLOOKUP(DropDownList!$B47,CntyQryCensus!$A$306:$GX$348,B$1)","v":"0004212"},{"$f":"VLOOKUP(DropDownList!$B47,CntyQryCensus!$A$306:$GX$348,C$1)","v":"31220"},{"$f":"VLOOKUP(DropDownList!$B47,CntyQryCensus!$A$306:$GX$348,D$1)","v":2167},{"$f":"VLOOKUP(DropDownList!$B47,CntyQryCensus!$A$306:$GX$348,E$1)","v":1518},{"$f":"VLOOKUP(DropDownList!$B47,CntyQryCensus!$A$306:$GX$348,F$1)","v":666},{"$f":"VLOOKUP(DropDownList!$B47,CntyQryCensus!$A$306:$GX$348,G$1)","v":418},{"$f":"VLOOKUP(DropDownList!$B47,CntyQryCensus!$A$306:$GX$348,H$1)","v":248},{"$f":"VLOOKUP(DropDownList!$B47,CntyQryCensus!$A$306:$GX$348,I$1)","v":1513},{"$f":"VLOOKUP(DropDownList!$B47,CntyQryCensus!$A$306:$GX$348,J$1)","v":1518},{"$f":"VLOOKUP(DropDownList!$B47,CntyQryCensus!$A$306:$GX$348,K$1)","v":0},{"$f":"VLOOKUP(DropDownList!$B47,CntyQryCensus!$A$306:$GX$348,L$1)","v":0},{"$f":"VLOOKUP(DropDownList!$B47,CntyQryCensus!$A$306:$GX$348,M$1)","v":0},{"$f":"VLOOKUP(DropDownList!$B47,CntyQryCensus!$A$306:$GX$348,N$1)","v":1518},{"$f":"VLOOKUP(DropDownList!$B47,CntyQryCensus!$A$306:$GX$348,O$1)","v":5},{"$f":"VLOOKUP(DropDownList!$B47,CntyQryCensus!$A$306:$GX$348,P$1)","v":1513},{"$f":"VLOOKUP(DropDownList!$B47,CntyQryCensus!$A$306:$GX$348,Q$1)","v":925},{"$f":"VLOOKUP(DropDownList!$B47,CntyQryCensus!$A$306:$GX$348,R$1)","v":816},{"$f":"VLOOKUP(DropDownList!$B47,CntyQryCensus!$A$306:$GX$348,S$1)","v":109},{"$f":"VLOOKUP(DropDownList!$B47,CntyQryCensus!$A$306:$GX$348,T$1)","v":593},{"$f":"VLOOKUP(DropDownList!$B47,CntyQryCensus!$A$306:$GX$348,U$1)","v":2},{"$f":"VLOOKUP(DropDownList!$B47,CntyQryCensus!$A$306:$GX$348,V$1)","v":28},{"$f":"VLOOKUP(DropDownList!$B47,CntyQryCensus!$A$306:$GX$348,W$1)","v":12},{"$f":"VLOOKUP(DropDownList!$B47,CntyQryCensus!$A$306:$GX$348,X$1)","v":548},{"$f":"VLOOKUP(DropDownList!$B47,CntyQryCensus!$A$306:$GX$348,Y$1)","v":0},{"$f":"VLOOKUP(DropDownList!$B47,CntyQryCensus!$A$306:$GX$348,Z$1)","v":3},{"$f":"VLOOKUP(DropDownList!$B47,CntyQryCensus!$A$306:$GX$348,AA$1)","v":925},{"$f":"VLOOKUP(DropDownList!$B47,CntyQryCensus!$A$306:$GX$348,AB$1)","v":816},{"$f":"VLOOKUP(DropDownList!$B47,CntyQryCensus!$A$306:$GX$348,AC$1)","v":5},{"$f":"VLOOKUP(DropDownList!$B47,CntyQryCensus!$A$306:$GX$348,AD$1)","v":80},{"$f":"VLOOKUP(DropDownList!$B47,CntyQryCensus!$A$306:$GX$348,AE$1)","v":125},{"$f":"VLOOKUP(DropDownList!$B47,CntyQryCensus!$A$306:$GX$348,AF$1)","v":177},{"$f":"VLOOKUP(DropDownList!$B47,CntyQryCensus!$A$306:$GX$348,AG$1)","v":67},{"$f":"VLOOKUP(DropDownList!$B47,CntyQryCensus!$A$306:$GX$348,AH$1)","v":83},{"$f":"VLOOKUP(DropDownList!$B47,CntyQryCensus!$A$306:$GX$348,AI$1)","v":179},{"$f":"VLOOKUP(DropDownList!$B47,CntyQryCensus!$A$306:$GX$348,AJ$1)","v":84},{"$f":"VLOOKUP(DropDownList!$B47,CntyQryCensus!$A$306:$GX$348,AK$1)","v":16},{"$f":"VLOOKUP(DropDownList!$B47,CntyQryCensus!$A$306:$GX$348,AL$1)","v":109},{"$f":"VLOOKUP(DropDownList!$B47,CntyQryCensus!$A$306:$GX$348,AM$1)","v":8},{"$f":"VLOOKUP(DropDownList!$B47,CntyQryCensus!$A$306:$GX$348,AN$1)","v":38},{"$f":"VLOOKUP(DropDownList!$B47,CntyQryCensus!$A$306:$GX$348,AO$1)","v":26},{"$f":"VLOOKUP(DropDownList!$B47,CntyQryCensus!$A$306:$GX$348,AP$1)","v":16},{"$f":"VLOOKUP(DropDownList!$B47,CntyQryCensus!$A$306:$GX$348,AQ$1)","v":14},{"$f":"VLOOKUP(DropDownList!$B47,CntyQryCensus!$A$306:$GX$348,AR$1)","v":2},{"$f":"VLOOKUP(DropDownList!$B47,CntyQryCensus!$A$306:$GX$348,AS$1)","v":3},{"$f":"VLOOKUP(DropDownList!$B47,CntyQryCensus!$A$306:$GX$348,AT$1)","v":2},{"$f":"VLOOKUP(DropDownList!$B47,CntyQryCensus!$A$306:$GX$348,AU$1)","v":0},{"$f":"VLOOKUP(DropDownList!$B47,CntyQryCensus!$A$306:$GX$348,AV$1)","v":2173},{"$f":"VLOOKUP(DropDownList!$B47,CntyQryCensus!$A$306:$GX$348,AW$1)","v":1914},{"$f":"VLOOKUP(DropDownList!$B47,CntyQryCensus!$A$306:$GX$348,AX$1)","v":259},{"$f":"VLOOKUP(DropDownList!$B47,CntyQryCensus!$A$306:$GX$348,AY$1)","v":925},{"$f":"VLOOKUP(DropDownList!$B47,CntyQryCensus!$A$306:$GX$348,AZ$1)","v":816},{"$f":"VLOOKUP(DropDownList!$B47,CntyQryCensus!$A$306:$GX$348,BA$1)","v":152},{"$f":"VLOOKUP(DropDownList!$B47,CntyQryCensus!$A$306:$GX$348,BB$1)","v":433},{"$f":"VLOOKUP(DropDownList!$B47,CntyQryCensus!$A$306:$GX$348,BC$1)","v":96},{"$f":"VLOOKUP(DropDownList!$B47,CntyQryCensus!$A$306:$GX$348,BD$1)","v":93},{"$f":"VLOOKUP(DropDownList!$B47,CntyQryCensus!$A$306:$GX$348,BE$1)","v":32},{"$f":"VLOOKUP(DropDownList!$B47,CntyQryCensus!$A$306:$GX$348,BF$1)","v":8},{"$f":"VLOOKUP(DropDownList!$B47,CntyQryCensus!$A$306:$GX$348,BG$1)","v":2},{"$f":"VLOOKUP(DropDownList!$B47,CntyQryCensus!$A$306:$GX$348,BH$1)","v":109},{"$f":"VLOOKUP(DropDownList!$B47,CntyQryCensus!$A$306:$GX$348,BI$1)","v":23},{"$f":"VLOOKUP(DropDownList!$B47,CntyQryCensus!$A$306:$GX$348,BJ$1)","v":44},{"$f":"VLOOKUP(DropDownList!$B47,CntyQryCensus!$A$306:$GX$348,BK$1)","v":20},{"$f":"VLOOKUP(DropDownList!$B47,CntyQryCensus!$A$306:$GX$348,BL$1)","v":14},{"$f":"VLOOKUP(DropDownList!$B47,CntyQryCensus!$A$306:$GX$348,BM$1)","v":4},{"$f":"VLOOKUP(DropDownList!$B47,CntyQryCensus!$A$306:$GX$348,BN$1)","v":2},{"$f":"VLOOKUP(DropDownList!$B47,CntyQryCensus!$A$306:$GX$348,BO$1)","v":2},{"$f":"VLOOKUP(DropDownList!$B47,CntyQryCensus!$A$306:$GX$348,BP$1)","v":2},{"$f":"VLOOKUP(DropDownList!$B47,CntyQryCensus!$A$306:$GX$348,BQ$1)","v":2},{"$f":"VLOOKUP(DropDownList!$B47,CntyQryCensus!$A$306:$GX$348,BR$1)","v":2},{"$f":"VLOOKUP(DropDownList!$B47,CntyQryCensus!$A$306:$GX$348,BS$1)","v":1518},{"$f":"VLOOKUP(DropDownList!$B47,CntyQryCensus!$A$306:$GX$348,BT$1)","v":10},{"$f":"VLOOKUP(DropDownList!$B47,CntyQryCensus!$A$306:$GX$348,BU$1)","v":5},{"$f":"VLOOKUP(DropDownList!$B47,CntyQryCensus!$A$306:$GX$348,BV$1)","v":23},{"$f":"VLOOKUP(DropDownList!$B47,CntyQryCensus!$A$306:$GX$348,BW$1)","v":158},{"$f":"VLOOKUP(DropDownList!$B47,CntyQryCensus!$A$306:$GX$348,BX$1)","v":291},{"$f":"VLOOKUP(DropDownList!$B47,CntyQryCensus!$A$306:$GX$348,BY$1)","v":459},{"$f":"VLOOKUP(DropDownList!$B47,CntyQryCensus!$A$306:$GX$348,BZ$1)","v":248},{"$f":"VLOOKUP(DropDownList!$B47,CntyQryCensus!$A$306:$GX$348,CA$1)","v":195},{"$f":"VLOOKUP(DropDownList!$B47,CntyQryCensus!$A$306:$GX$348,CB$1)","v":129},{"$f":"VLOOKUP(DropDownList!$B47,CntyQryCensus!$A$306:$GX$348,CC$1)","v":6},{"$f":"VLOOKUP(DropDownList!$B47,CntyQryCensus!$A$306:$GX$348,CD$1)","v":9516},{"$f":"VLOOKUP(DropDownList!$B47,CntyQryCensus!$A$306:$GX$348,CE$1)","v":1518},{"$f":"VLOOKUP(DropDownList!$B47,CntyQryCensus!$A$306:$GX$348,CF$1)","v":1168},{"$f":"VLOOKUP(DropDownList!$B47,CntyQryCensus!$A$306:$GX$348,CG$1)","v":296},{"$f":"VLOOKUP(DropDownList!$B47,CntyQryCensus!$A$306:$GX$348,CH$1)","v":19},{"$f":"VLOOKUP(DropDownList!$B47,CntyQryCensus!$A$306:$GX$348,CI$1)","v":9},{"$f":"VLOOKUP(DropDownList!$B47,CntyQryCensus!$A$306:$GX$348,CJ$1)","v":0},{"$f":"VLOOKUP(DropDownList!$B47,CntyQryCensus!$A$306:$GX$348,CK$1)","v":0},{"$f":"VLOOKUP(DropDownList!$B47,CntyQryCensus!$A$306:$GX$348,CL$1)","v":0},{"$f":"VLOOKUP(DropDownList!$B47,CntyQryCensus!$A$306:$GX$348,CM$1)","v":0},{"$f":"VLOOKUP(DropDownList!$B47,CntyQryCensus!$A$306:$GX$348,CN$1)","v":26},{"$f":"VLOOKUP(DropDownList!$B47,CntyQryCensus!$A$306:$GX$348,CO$1)","v":0},{"$f":"VLOOKUP(DropDownList!$B47,CntyQryCensus!$A$306:$GX$348,CP$1)","v":925},{"$f":"VLOOKUP(DropDownList!$B47,CntyQryCensus!$A$306:$GX$348,CQ$1)","v":816},{"$f":"VLOOKUP(DropDownList!$B47,CntyQryCensus!$A$306:$GX$348,CR$1)","v":735},{"$f":"VLOOKUP(DropDownList!$B47,CntyQryCensus!$A$306:$GX$348,CS$1)","v":62},{"$f":"VLOOKUP(DropDownList!$B47,CntyQryCensus!$A$306:$GX$348,CT$1)","v":0},{"$f":"VLOOKUP(DropDownList!$B47,CntyQryCensus!$A$306:$GX$348,CU$1)","v":0},{"$f":"VLOOKUP(DropDownList!$B47,CntyQryCensus!$A$306:$GX$348,CV$1)","v":0},{"$f":"VLOOKUP(DropDownList!$B47,CntyQryCensus!$A$306:$GX$348,CW$1)","v":0},{"$f":"VLOOKUP(DropDownList!$B47,CntyQryCensus!$A$306:$GX$348,CX$1)","v":0},{"$f":"VLOOKUP(DropDownList!$B47,CntyQryCensus!$A$306:$GX$348,CY$1)","v":0},{"$f":"VLOOKUP(DropDownList!$B47,CntyQryCensus!$A$306:$GX$348,CZ$1)","v":19},{"$f":"VLOOKUP(DropDownList!$B47,CntyQryCensus!$A$306:$GX$348,DA$1)","v":0},{"$f":"VLOOKUP(DropDownList!$B47,CntyQryCensus!$A$306:$GX$348,DB$1)","v":109},{"$f":"VLOOKUP(DropDownList!$B47,CntyQryCensus!$A$306:$GX$348,DC$1)","v":75},{"$f":"VLOOKUP(DropDownList!$B47,CntyQryCensus!$A$306:$GX$348,DD$1)","v":16},{"$f":"VLOOKUP(DropDownList!$B47,CntyQryCensus!$A$306:$GX$348,DE$1)","v":10},{"$f":"VLOOKUP(DropDownList!$B47,CntyQryCensus!$A$306:$GX$348,DF$1)","v":5},{"$f":"VLOOKUP(DropDownList!$B47,CntyQryCensus!$A$306:$GX$348,DG$1)","v":0},{"$f":"VLOOKUP(DropDownList!$B47,CntyQryCensus!$A$306:$GX$348,DH$1)","v":0},{"$f":"VLOOKUP(DropDownList!$B47,CntyQryCensus!$A$306:$GX$348,DI$1)","v":0},{"$f":"VLOOKUP(DropDownList!$B47,CntyQryCensus!$A$306:$GX$348,DJ$1)","v":0},{"$f":"VLOOKUP(DropDownList!$B47,CntyQryCensus!$A$306:$GX$348,DK$1)","v":3},{"$f":"VLOOKUP(DropDownList!$B47,CntyQryCensus!$A$306:$GX$348,DL$1)","v":0},{"$f":"VLOOKUP(DropDownList!$B47,CntyQryCensus!$A$306:$GX$348,DM$1)","v":2173},{"$f":"VLOOKUP(DropDownList!$B47,CntyQryCensus!$A$306:$GX$348,DN$1)","v":1914},{"$f":"VLOOKUP(DropDownList!$B47,CntyQryCensus!$A$306:$GX$348,DO$1)","v":1770},{"$f":"VLOOKUP(DropDownList!$B47,CntyQryCensus!$A$306:$GX$348,DP$1)","v":99},{"$f":"VLOOKUP(DropDownList!$B47,CntyQryCensus!$A$306:$GX$348,DQ$1)","v":0},{"$f":"VLOOKUP(DropDownList!$B47,CntyQryCensus!$A$306:$GX$348,DR$1)","v":0},{"$f":"VLOOKUP(DropDownList!$B47,CntyQryCensus!$A$306:$GX$348,DS$1)","v":0},{"$f":"VLOOKUP(DropDownList!$B47,CntyQryCensus!$A$306:$GX$348,DT$1)","v":0},{"$f":"VLOOKUP(DropDownList!$B47,CntyQryCensus!$A$306:$GX$348,DU$1)","v":0},{"$f":"VLOOKUP(DropDownList!$B47,CntyQryCensus!$A$306:$GX$348,DV$1)","v":0},{"$f":"VLOOKUP(DropDownList!$B47,CntyQryCensus!$A$306:$GX$348,DW$1)","v":45},{"$f":"VLOOKUP(DropDownList!$B47,CntyQryCensus!$A$306:$GX$348,DX$1)","v":0},{"$f":"VLOOKUP(DropDownList!$B47,CntyQryCensus!$A$306:$GX$348,DY$1)","v":259},{"$f":"VLOOKUP(DropDownList!$B47,CntyQryCensus!$A$306:$GX$348,DZ$1)","v":200},{"$f":"VLOOKUP(DropDownList!$B47,CntyQryCensus!$A$306:$GX$348,EA$1)","v":26},{"$f":"VLOOKUP(DropDownList!$B47,CntyQryCensus!$A$306:$GX$348,EB$1)","v":21},{"$f":"VLOOKUP(DropDownList!$B47,CntyQryCensus!$A$306:$GX$348,EC$1)","v":10},{"$f":"VLOOKUP(DropDownList!$B47,CntyQryCensus!$A$306:$GX$348,ED$1)","v":0},{"$f":"VLOOKUP(DropDownList!$B47,CntyQryCensus!$A$306:$GX$348,EE$1)","v":0},{"$f":"VLOOKUP(DropDownList!$B47,CntyQryCensus!$A$306:$GX$348,EF$1)","v":0},{"$f":"VLOOKUP(DropDownList!$B47,CntyQryCensus!$A$306:$GX$348,EG$1)","v":0},{"$f":"VLOOKUP(DropDownList!$B47,CntyQryCensus!$A$306:$GX$348,EH$1)","v":2},{"$f":"VLOOKUP(DropDownList!$B47,CntyQryCensus!$A$306:$GX$348,EI$1)","v":0},{"$f":"VLOOKUP(DropDownList!$B47,CntyQryCensus!$A$306:$GX$348,EJ$1)","v":925},{"$f":"VLOOKUP(DropDownList!$B47,CntyQryCensus!$A$306:$GX$348,EK$1)","v":816},{"$f":"VLOOKUP(DropDownList!$B47,CntyQryCensus!$A$306:$GX$348,EL$1)","v":22},{"$f":"VLOOKUP(DropDownList!$B47,CntyQryCensus!$A$306:$GX$348,EM$1)","v":102},{"$f":"VLOOKUP(DropDownList!$B47,CntyQryCensus!$A$306:$GX$348,EN$1)","v":112},{"$f":"VLOOKUP(DropDownList!$B47,CntyQryCensus!$A$306:$GX$348,EO$1)","v":281},{"$f":"VLOOKUP(DropDownList!$B47,CntyQryCensus!$A$306:$GX$348,EP$1)","v":181},{"$f":"VLOOKUP(DropDownList!$B47,CntyQryCensus!$A$306:$GX$348,EQ$1)","v":20},{"$f":"VLOOKUP(DropDownList!$B47,CntyQryCensus!$A$306:$GX$348,ER$1)","v":26},{"$f":"VLOOKUP(DropDownList!$B47,CntyQryCensus!$A$306:$GX$348,ES$1)","v":12},{"$f":"VLOOKUP(DropDownList!$B47,CntyQryCensus!$A$306:$GX$348,ET$1)","v":60},{"$f":"VLOOKUP(DropDownList!$B47,CntyQryCensus!$A$306:$GX$348,EU$1)","v":109},{"$f":"VLOOKUP(DropDownList!$B47,CntyQryCensus!$A$306:$GX$348,EV$1)","v":2},{"$f":"VLOOKUP(DropDownList!$B47,CntyQryCensus!$A$306:$GX$348,EW$1)","v":7},{"$f":"VLOOKUP(DropDownList!$B47,CntyQryCensus!$A$306:$GX$348,EX$1)","v":13},{"$f":"VLOOKUP(DropDownList!$B47,CntyQryCensus!$A$306:$GX$348,EY$1)","v":27},{"$f":"VLOOKUP(DropDownList!$B47,CntyQryCensus!$A$306:$GX$348,EZ$1)","v":37},{"$f":"VLOOKUP(DropDownList!$B47,CntyQryCensus!$A$306:$GX$348,FA$1)","v":10},{"$f":"VLOOKUP(DropDownList!$B47,CntyQryCensus!$A$306:$GX$348,FB$1)","v":2},{"$f":"VLOOKUP(DropDownList!$B47,CntyQryCensus!$A$306:$GX$348,FC$1)","v":3},{"$f":"VLOOKUP(DropDownList!$B47,CntyQryCensus!$A$306:$GX$348,FD$1)","v":8},{"$f":"VLOOKUP(DropDownList!$B47,CntyQryCensus!$A$306:$GX$348,FE$1)","v":925},{"$f":"VLOOKUP(DropDownList!$B47,CntyQryCensus!$A$306:$GX$348,FF$1)","v":9},{"$f":"VLOOKUP(DropDownList!$B47,CntyQryCensus!$A$306:$GX$348,FG$1)","v":436},{"$f":"VLOOKUP(DropDownList!$B47,CntyQryCensus!$A$306:$GX$348,FH$1)","v":47},{"$f":"VLOOKUP(DropDownList!$B47,CntyQryCensus!$A$306:$GX$348,FI$1)","v":340},{"$f":"VLOOKUP(DropDownList!$B47,CntyQryCensus!$A$306:$GX$348,FJ$1)","v":0},{"$f":"VLOOKUP(DropDownList!$B47,CntyQryCensus!$A$306:$GX$348,FK$1)","v":93},{"$f":"VLOOKUP(DropDownList!$B47,CntyQryCensus!$A$306:$GX$348,FL$1)","v":0},{"$f":"VLOOKUP(DropDownList!$B47,CntyQryCensus!$A$306:$GX$348,FM$1)","v":0},{"$f":"VLOOKUP(DropDownList!$B47,CntyQryCensus!$A$306:$GX$348,FN$1)","v":0},{"$f":"VLOOKUP(DropDownList!$B47,CntyQryCensus!$A$306:$GX$348,FO$1)","v":1518},{"$f":"VLOOKUP(DropDownList!$B47,CntyQryCensus!$A$306:$GX$348,FP$1)","v":10},{"$f":"VLOOKUP(DropDownList!$B47,CntyQryCensus!$A$306:$GX$348,FQ$1)","v":23},{"$f":"VLOOKUP(DropDownList!$B47,CntyQryCensus!$A$306:$GX$348,FR$1)","v":310},{"$f":"VLOOKUP(DropDownList!$B47,CntyQryCensus!$A$306:$GX$348,FS$1)","v":936},{"$f":"VLOOKUP(DropDownList!$B47,CntyQryCensus!$A$306:$GX$348,FT$1)","v":203},{"$f":"VLOOKUP(DropDownList!$B47,CntyQryCensus!$A$306:$GX$348,FU$1)","v":36},{"$f":"VLOOKUP(DropDownList!$B47,CntyQryCensus!$A$306:$GX$348,FV$1)","v":925},{"$f":"VLOOKUP(DropDownList!$B47,CntyQryCensus!$A$306:$GX$348,FW$1)","v":816},{"$f":"VLOOKUP(DropDownList!$B47,CntyQryCensus!$A$306:$GX$348,FX$1)","v":0},{"$f":"VLOOKUP(DropDownList!$B47,CntyQryCensus!$A$306:$GX$348,FY$1)","v":9},{"$f":"VLOOKUP(DropDownList!$B47,CntyQryCensus!$A$306:$GX$348,FZ$1)","v":127},{"$f":"VLOOKUP(DropDownList!$B47,CntyQryCensus!$A$306:$GX$348,GA$1)","v":515},{"$f":"VLOOKUP(DropDownList!$B47,CntyQryCensus!$A$306:$GX$348,GB$1)","v":140},{"$f":"VLOOKUP(DropDownList!$B47,CntyQryCensus!$A$306:$GX$348,GC$1)","v":25},{"$f":"VLOOKUP(DropDownList!$B47,CntyQryCensus!$A$306:$GX$348,GD$1)","v":109},{"$f":"VLOOKUP(DropDownList!$B47,CntyQryCensus!$A$306:$GX$348,GE$1)","v":6},{"$f":"VLOOKUP(DropDownList!$B47,CntyQryCensus!$A$306:$GX$348,GF$1)","v":3},{"$f":"VLOOKUP(DropDownList!$B47,CntyQryCensus!$A$306:$GX$348,GG$1)","v":37},{"$f":"VLOOKUP(DropDownList!$B47,CntyQryCensus!$A$306:$GX$348,GH$1)","v":59},{"$f":"VLOOKUP(DropDownList!$B47,CntyQryCensus!$A$306:$GX$348,GI$1)","v":4},{"$f":"VLOOKUP(DropDownList!$B47,CntyQryCensus!$A$306:$GX$348,GJ$1)","v":0},{"$f":"VLOOKUP(DropDownList!$B47,CntyQryCensus!$A$306:$GX$348,GK$1)","v":925},{"$f":"VLOOKUP(DropDownList!$B47,CntyQryCensus!$A$306:$GX$348,GL$1)","v":816},{"$f":"VLOOKUP(DropDownList!$B47,CntyQryCensus!$A$306:$GX$348,GM$1)","v":816},{"$f":"VLOOKUP(DropDownList!$B47,CntyQryCensus!$A$306:$GX$348,GN$1)","v":0},{"$f":"VLOOKUP(DropDownList!$B47,CntyQryCensus!$A$306:$GX$348,GO$1)","v":109},{"$f":"VLOOKUP(DropDownList!$B47,CntyQryCensus!$A$306:$GX$348,GP$1)","v":109},{"$f":"VLOOKUP(DropDownList!$B47,CntyQryCensus!$A$306:$GX$348,GQ$1)","v":0},{"$f":"VLOOKUP(DropDownList!$B47,CntyQryCensus!$A$306:$GX$348,GR$1)","v":925},{"$f":"VLOOKUP(DropDownList!$B47,CntyQryCensus!$A$306:$GX$348,GS$1)","v":816},{"$f":"VLOOKUP(DropDownList!$B47,CntyQryCensus!$A$306:$GX$348,GT$1)","v":811},{"$f":"VLOOKUP(DropDownList!$B47,CntyQryCensus!$A$306:$GX$348,GU$1)","v":5},{"$f":"VLOOKUP(DropDownList!$B47,CntyQryCensus!$A$306:$GX$348,GV$1)","v":109},{"$f":"VLOOKUP(DropDownList!$B47,CntyQryCensus!$A$306:$GX$348,GW$1)","v":109},{"$f":"VLOOKUP(DropDownList!$B47,CntyQryCensus!$A$306:$GX$348,GX$1)","v":0}]
[]
[]
["Census 2000 SummaryFile3 Sample Data  -  SF3TownQry8HousingCostA"]
["NAME","LOGRECNO","COUNTY","TotalPop","H62RntrOccHU","H62RntrOccHUwRent","H62ROHUGRent<100","H62ROHUGRent100to149","H62ROHUGRent150to199","H62ROHUGRent200to249","H62ROHUGRent250to299","H62ROHUGRent300to349","H62ROHUGRent350to399","H62ROHUGRent400to449","H62ROHUGRent450to499","H62ROHUGRent500to549","H62ROHUGRent550to599","H62ROHUGRent600to649","H62ROHUGRent650to699","H62ROHUGRent700to749","H62ROHUGRent750to799","H62ROHUGRent800to899","H62ROHUGRent900to999","H62ROHUGRent1000to1249","H62ROHUGRent1250to1499","H62ROHUGRent1500to1999","H62ROHUGRent2000>","H62ROHUNoGRent","H63MedianGrossRnt","H69RenterOccHsU","H69GRnt<10PctHHInc","H69GRnt10to15PctHHInc","H69GRnt15to20PctHHInc","H69GRnt20to25PctHHInc","H69GRnt25to30PctHHInc","H69GRnt30to35PctHHInc","H69GRnt35to40PctHHInc","H69GRnt40to50PctHHInc","H69GRnt>50PctHHInc","H69GRntPctNotcomputed","H73RenterOccHU","H73ROHUHhInc<10k","H73ROHUHhInc<10kRnt<20pct","H73ROHUHhInc<10kRnt20to25pct","H73ROHUHhInc<10kRnt25to30pct","H73ROHUHhInc<10kRnt30to35pct","H73ROHUHhInc<10kRnt>35pct","H73ROHUHhInc<10kPctNotComput","H73ROHUHhInc10to20k","H73ROHUHhInc10to20kRnt<20pct","H73ROHUHhInc10to20kRnt20to25pct","H73ROHUHhInc10to20kRnt25to30pct","H73ROHUHhInc10to20kRnt30to35pct","H73ROHUHhInc10to20kRnt>35pct","H73ROHUHhInc10to20kRntPctNC","H73ROHUHhInc20to35k","H73ROHUHhInc20to35kRnt<20pct","H73ROHUHhInc20to35kRnt20to25pct","H73ROHUHhInc20to35kRnt25to30pct","H73ROHUHhInc20to35kRnt30to35pct","H73ROHUHhInc20to35kRnt>35pct","H73ROHUHhInc20to35kRntPctNC","H73ROHUHhInc35to40k","H73ROHUHhInc35to40kRnt<20pct","H73ROHUHhInc35to40kRnt20to25pct","H73ROHUHhInc35to40kRnt25to30pct","H73ROHUHhInc35to40kRnt30to35pct","H73ROHUHhInc35to40kRnt>35pct","H73ROHUHhInc35to40kRntPctNC","H73ROHUHhInc50to75k","H73ROHUHhInc50to75kRnt<20pct","H73ROHUHhInc50to75kRnt20to25pct","H73ROHUHhInc50to75kRnt25to30pct","H73ROHUHhInc50to75kRnt30to35pct","H73ROHUHhInc50to75kRnt>35pct","H73ROHUHhInc50to75kRntPctNC","H73ROHUHhInc75to100k","H73ROHUHhInc75to100kRnt<20pct","H73ROHUHhInc75to100kRnt20to25pct","H73ROHUHhInc75to100kRnt25to30pct","H73ROHUHhInc75to100kRnt30to35pct","H73ROHUHhInc75to100kRnt>35pct","H73ROHUHhInc75to100kRntPctNC","H73ROHUHhInc>100k","H73ROHUHhInc>100kRnt<20pct","H73ROHUHhInc>100kRnt20to25pct","H73ROHUHhInc>100kRnt25to30pct","H73ROHUHhInc>100kRnt30to35pct","H73ROHUHhInc>100kRnt>35pct","H73ROHUHhInc>100kRntPctNC","H73ROHUHhInc>100kRntPctNC"]
[{"$f":"VLOOKUP(DropDownList!$B$47,CntyQryCensus!$A$357:$CM$399,A$1)","v":"Grantham"},{"$f":"VLOOKUP(DropDownList!$B$47,CntyQryCensus!$A$357:$CM$399,B$1)","v":"0004212"},{"$f":"VLOOKUP(DropDownList!$B$47,CntyQryCensus!$A$357:$CM$399,C$1)","v":"31220"},{"$f":"VLOOKUP(DropDownList!$B$47,CntyQryCensus!$A$357:$CM$399,D$1)","v":2167},{"$f":"VLOOKUP(DropDownList!$B$47,CntyQryCensus!$A$357:$CM$399,E$1)","v":103},{"$f":"VLOOKUP(DropDownList!$B$47,CntyQryCensus!$A$357:$CM$399,F$1)","v":98},{"$f":"VLOOKUP(DropDownList!$B$47,CntyQryCensus!$A$357:$CM$399,G$1)","v":0},{"$f":"VLOOKUP(DropDownList!$B$47,CntyQryCensus!$A$357:$CM$399,H$1)","v":0},{"$f":"VLOOKUP(DropDownList!$B$47,CntyQryCensus!$A$357:$CM$399,I$1)","v":0},{"$f":"VLOOKUP(DropDownList!$B$47,CntyQryCensus!$A$357:$CM$399,J$1)","v":0},{"$f":"VLOOKUP(DropDownList!$B$47,CntyQryCensus!$A$357:$CM$399,K$1)","v":0},{"$f":"VLOOKUP(DropDownList!$B$47,CntyQryCensus!$A$357:$CM$399,L$1)","v":0},{"$f":"VLOOKUP(DropDownList!$B$47,CntyQryCensus!$A$357:$CM$399,M$1)","v":0},{"$f":"VLOOKUP(DropDownList!$B$47,CntyQryCensus!$A$357:$CM$399,N$1)","v":3},{"$f":"VLOOKUP(DropDownList!$B$47,CntyQryCensus!$A$357:$CM$399,O$1)","v":3},{"$f":"VLOOKUP(DropDownList!$B$47,CntyQryCensus!$A$357:$CM$399,P$1)","v":3},{"$f":"VLOOKUP(DropDownList!$B$47,CntyQryCensus!$A$357:$CM$399,Q$1)","v":5},{"$f":"VLOOKUP(DropDownList!$B$47,CntyQryCensus!$A$357:$CM$399,R$1)","v":3},{"$f":"VLOOKUP(DropDownList!$B$47,CntyQryCensus!$A$357:$CM$399,S$1)","v":2},{"$f":"VLOOKUP(DropDownList!$B$47,CntyQryCensus!$A$357:$CM$399,T$1)","v":4},{"$f":"VLOOKUP(DropDownList!$B$47,CntyQryCensus!$A$357:$CM$399,U$1)","v":4},{"$f":"VLOOKUP(DropDownList!$B$47,CntyQryCensus!$A$357:$CM$399,V$1)","v":8},{"$f":"VLOOKUP(DropDownList!$B$47,CntyQryCensus!$A$357:$CM$399,W$1)","v":7},{"$f":"VLOOKUP(DropDownList!$B$47,CntyQryCensus!$A$357:$CM$399,X$1)","v":44},{"$f":"VLOOKUP(DropDownList!$B$47,CntyQryCensus!$A$357:$CM$399,Y$1)","v":8},{"$f":"VLOOKUP(DropDownList!$B$47,CntyQryCensus!$A$357:$CM$399,Z$1)","v":2},{"$f":"VLOOKUP(DropDownList!$B$47,CntyQryCensus!$A$357:$CM$399,AA$1)","v":2},{"$f":"VLOOKUP(DropDownList!$B$47,CntyQryCensus!$A$357:$CM$399,AB$1)","v":5},{"$f":"VLOOKUP(DropDownList!$B$47,CntyQryCensus!$A$357:$CM$399,AC$1)","v":1040},{"$f":"VLOOKUP(DropDownList!$B$47,CntyQryCensus!$A$357:$CM$399,AD$1)","v":103},{"$f":"VLOOKUP(DropDownList!$B$47,CntyQryCensus!$A$357:$CM$399,AE$1)","v":7},{"$f":"VLOOKUP(DropDownList!$B$47,CntyQryCensus!$A$357:$CM$399,AF$1)","v":19},{"$f":"VLOOKUP(DropDownList!$B$47,CntyQryCensus!$A$357:$CM$399,AG$1)","v":15},{"$f":"VLOOKUP(DropDownList!$B$47,CntyQryCensus!$A$357:$CM$399,AH$1)","v":10},{"$f":"VLOOKUP(DropDownList!$B$47,CntyQryCensus!$A$357:$CM$399,AI$1)","v":20},{"$f":"VLOOKUP(DropDownList!$B$47,CntyQryCensus!$A$357:$CM$399,AJ$1)","v":2},{"$f":"VLOOKUP(DropDownList!$B$47,CntyQryCensus!$A$357:$CM$399,AK$1)","v":7},{"$f":"VLOOKUP(DropDownList!$B$47,CntyQryCensus!$A$357:$CM$399,AL$1)","v":2},{"$f":"VLOOKUP(DropDownList!$B$47,CntyQryCensus!$A$357:$CM$399,AM$1)","v":13},{"$f":"VLOOKUP(DropDownList!$B$47,CntyQryCensus!$A$357:$CM$399,AN$1)","v":8},{"$f":"VLOOKUP(DropDownList!$B$47,CntyQryCensus!$A$357:$CM$399,AO$1)","v":103},{"$f":"VLOOKUP(DropDownList!$B$47,CntyQryCensus!$A$357:$CM$399,AP$1)","v":8},{"$f":"VLOOKUP(DropDownList!$B$47,CntyQryCensus!$A$357:$CM$399,AQ$1)","v":0},{"$f":"VLOOKUP(DropDownList!$B$47,CntyQryCensus!$A$357:$CM$399,AR$1)","v":0},{"$f":"VLOOKUP(DropDownList!$B$47,CntyQryCensus!$A$357:$CM$399,AS$1)","v":0},{"$f":"VLOOKUP(DropDownList!$B$47,CntyQryCensus!$A$357:$CM$399,AT$1)","v":0},{"$f":"VLOOKUP(DropDownList!$B$47,CntyQryCensus!$A$357:$CM$399,AU$1)","v":5},{"$f":"VLOOKUP(DropDownList!$B$47,CntyQryCensus!$A$357:$CM$399,AV$1)","v":3},{"$f":"VLOOKUP(DropDownList!$B$47,CntyQryCensus!$A$357:$CM$399,AW$1)","v":6},{"$f":"VLOOKUP(DropDownList!$B$47,CntyQryCensus!$A$357:$CM$399,AX$1)","v":0},{"$f":"VLOOKUP(DropDownList!$B$47,CntyQryCensus!$A$357:$CM$399,AY$1)","v":0},{"$f":"VLOOKUP(DropDownList!$B$47,CntyQryCensus!$A$357:$CM$399,AZ$1)","v":0},{"$f":"VLOOKUP(DropDownList!$B$47,CntyQryCensus!$A$357:$CM$399,BA$1)","v":0},{"$f":"VLOOKUP(DropDownList!$B$47,CntyQryCensus!$A$357:$CM$399,BB$1)","v":6},{"$f":"VLOOKUP(DropDownList!$B$47,CntyQryCensus!$A$357:$CM$399,BC$1)","v":0},{"$f":"VLOOKUP(DropDownList!$B$47,CntyQryCensus!$A$357:$CM$399,BD$1)","v":13},{"$f":"VLOOKUP(DropDownList!$B$47,CntyQryCensus!$A$357:$CM$399,BE$1)","v":0},{"$f":"VLOOKUP(DropDownList!$B$47,CntyQryCensus!$A$357:$CM$399,BF$1)","v":0},{"$f":"VLOOKUP(DropDownList!$B$47,CntyQryCensus!$A$357:$CM$399,BG$1)","v":6},{"$f":"VLOOKUP(DropDownList!$B$47,CntyQryCensus!$A$357:$CM$399,BH$1)","v":2},{"$f":"VLOOKUP(DropDownList!$B$47,CntyQryCensus!$A$357:$CM$399,BI$1)","v":5},{"$f":"VLOOKUP(DropDownList!$B$47,CntyQryCensus!$A$357:$CM$399,BJ$1)","v":0},{"$f":"VLOOKUP(DropDownList!$B$47,CntyQryCensus!$A$357:$CM$399,BK$1)","v":17},{"$f":"VLOOKUP(DropDownList!$B$47,CntyQryCensus!$A$357:$CM$399,BL$1)","v":2},{"$f":"VLOOKUP(DropDownList!$B$47,CntyQryCensus!$A$357:$CM$399,BM$1)","v":2},{"$f":"VLOOKUP(DropDownList!$B$47,CntyQryCensus!$A$357:$CM$399,BN$1)","v":5},{"$f":"VLOOKUP(DropDownList!$B$47,CntyQryCensus!$A$357:$CM$399,BO$1)","v":0},{"$f":"VLOOKUP(DropDownList!$B$47,CntyQryCensus!$A$357:$CM$399,BP$1)","v":6},{"$f":"VLOOKUP(DropDownList!$B$47,CntyQryCensus!$A$357:$CM$399,BQ$1)","v":2},{"$f":"VLOOKUP(DropDownList!$B$47,CntyQryCensus!$A$357:$CM$399,BR$1)","v":28},{"$f":"VLOOKUP(DropDownList!$B$47,CntyQryCensus!$A$357:$CM$399,BS$1)","v":14},{"$f":"VLOOKUP(DropDownList!$B$47,CntyQryCensus!$A$357:$CM$399,BT$1)","v":5},{"$f":"VLOOKUP(DropDownList!$B$47,CntyQryCensus!$A$357:$CM$399,BU$1)","v":9},{"$f":"VLOOKUP(DropDownList!$B$47,CntyQryCensus!$A$357:$CM$399,BV$1)","v":0},{"$f":"VLOOKUP(DropDownList!$B$47,CntyQryCensus!$A$357:$CM$399,BW$1)","v":0},{"$f":"VLOOKUP(DropDownList!$B$47,CntyQryCensus!$A$357:$CM$399,BX$1)","v":0},{"$f":"VLOOKUP(DropDownList!$B$47,CntyQryCensus!$A$357:$CM$399,BY$1)","v":27},{"$f":"VLOOKUP(DropDownList!$B$47,CntyQryCensus!$A$357:$CM$399,BZ$1)","v":21},{"$f":"VLOOKUP(DropDownList!$B$47,CntyQryCensus!$A$357:$CM$399,CA$1)","v":3},{"$f":"VLOOKUP(DropDownList!$B$47,CntyQryCensus!$A$357:$CM$399,CB$1)","v":0},{"$f":"VLOOKUP(DropDownList!$B$47,CntyQryCensus!$A$357:$CM$399,CC$1)","v":0},{"$f":"VLOOKUP(DropDownList!$B$47,CntyQryCensus!$A$357:$CM$399,CD$1)","v":0},{"$f":"VLOOKUP(DropDownList!$B$47,CntyQryCensus!$A$357:$CM$399,CE$1)","v":3},{"$f":"VLOOKUP(DropDownList!$B$47,CntyQryCensus!$A$357:$CM$399,CF$1)","v":4},{"$f":"VLOOKUP(DropDownList!$B$47,CntyQryCensus!$A$357:$CM$399,CG$1)","v":4},{"$f":"VLOOKUP(DropDownList!$B$47,CntyQryCensus!$A$357:$CM$399,CH$1)","v":0},{"$f":"VLOOKUP(DropDownList!$B$47,CntyQryCensus!$A$357:$CM$399,CI$1)","v":0},{"$f":"VLOOKUP(DropDownList!$B$47,CntyQryCensus!$A$357:$CM$399,CJ$1)","v":0},{"$f":"VLOOKUP(DropDownList!$B$47,CntyQryCensus!$A$357:$CM$399,CK$1)","v":0},{"$f":"VLOOKUP(DropDownList!$B$47,CntyQryCensus!$A$357:$CM$399,CL$1)","v":0},{"$f":"VLOOKUP(DropDownList!$B$47,CntyQryCensus!$A$357:$CM$399,CM$1)","v":0}]
[]
[]
["Census 2000 SummaryFile3 Sample Data  -  SF3TownQry8HousingCostB"]
["NAME","LOGRECNO","COUNTY","TotalPop","H74SpecOwnerOccHU","H74OOHU<10k","H74OOHU10to15k","H74OOHU15to20k","H74OOHU20to25k","H74OOHU25to30k","H74OOHU30to35k","H74OOHU35to40k","H74OOHU40to50k","H74OOHU50to60k","H74OOHU60to70k","H74OOHU70to80k","H74OOHU80to90k","H74OOHU90to100k","H74OOHU100to125k","H74OOHU125to150k","H74OOHU150to175k","H74OOHU175to200k","H74OOHU200to250k","H74OOHU250to300k","H74OOHU300to400k","H74OOHU400to500k","H74OOHU500to750k","H74OOHU750to1000k","H74OOHU1000kmore","H76OOHUMedianVal","H84OwnerOccHU","H84AllOOHU<10k","H84AllOOHU10to15k","H84AllOOHU15to20k","H84AllOOHU20to25k","H84AllOOHU25to30k","H84AllOOHU30to35k","H84AllOOHU35to40k","H84AllOOHU40to50k","H84AllOOHU50to60k","H84AllOOHU60to70k","H84AllOOHU70to80k","H84AllOOHU80to90k","H84AllOOHU90to100k","H84AllOOHU100to125k","H84AllOOHU125to150k","H84AllOOHU150to175k","H84AllOOHU175to200k","H84AllOOHU200to250k","H84AllOOHU250to300k","H84AllOOHU300to400k","H84AllOOHU400to500k","H84AllOOHU500to750k","H84AllOOHU750to1000k","H84AllOOHU1000kmore","H85OOHUMedVal","H90SOOHU","H90HUwMorgt","H90HUwMtgHC<200","H90HUwMtgHC200to300","H90HUwMtgHC300to400","H90HUwMtgHC400to500","H90HUwMtgHC500to600","H90HUwMtgHC600to700","H90HUwMtgHC700to800","H90HUwMtgHC800to900","H90HUwMtgHC900to1000","H90HUwMtgHC1000to1250","H90HUwMtgHC1250to1500","H90HUwMtgHC1500to2000","H90HUwMtgHC2000to2500","H90HUwMtgHC2500to3000","H90HUwMtgHC3000orMore","H90HUwOutMorgt","H90HUwOutMtgHC<100","H90HUwOutMtgHC100to150","H90HUwOutMtgHC150to200","H90HUwOutMtgHC200to250","H90HUwOutMtgHC250to300","H90HUwOutMtgHC300to350","H90HUwOutMtgHC350to400","H90HUwOutMtgHC400to500","H90HUwOutMtgHC500to600","H90HUwOutMtgHC600to700","H90HUwOutMtgHC700to800","H90HUwOutMtgHC800to900","H90HUwOutMtgHC900to1000","H90HUwOutMtgHC1000orMore","H91MedianOCHUwMtg","H91MedianOCHUwOutMtg","H94SpecOOHU","H94HUwMortg","H94HUwMtgHC<10pct","H94HUwMtgHC10to15pct","H94HUwMtgHC15to20pct","H94HUwMtgHC20to25pct","H94HUwMtgHC25to30pct","H94HUwMtgHC30to35pct","H94HUwMtgHC35to40pct","H94HUwMtgHC40to50pct","H94HUwMtgHC50pctOrMore","H94HUwMtgHCpctNotComp","H94HUWOutMortg","H94HUWOutMortgHC<10pct","H94HUWOutMortgHC10to15pct","H94HUWOutMortgHC15to20pct","H94HUWOutMortgHC20to25pct","H94HUWOutMortgHC25to30pct","H94HUWOutMortgHC30to35pct","H94HUWOutMortgHC35to40pct","H94HUWOutMortgHC40to50pct","H94HUWOutMortgHC50pctOrMore","H94HUWOutMortgHCpctNotComp","H97SpecifOwnOccHU","H97SOOHUInc<10k","H97SOOHUInc<10kHC<20pct","H97SOOHUInc<10kHC20to25pct","H97SOOHUInc<10kHC25to30pct","H97SOOHUInc<10kHC30to35pct","H97SOOHUInc<10kHC>35pct","H97SOOHUInc<10kHCpctNotComput","H97SOOHUInc10to20k","H97SOOHUInc10to20kHC<20pct","H97SOOHUInc10to20kHC20to25pct","H97SOOHUInc10to20kHC25to30pct","H97SOOHUInc10to20kHC30to35pct","H97SOOHUInc10to20kHC>35pct","H97SOOHUInc10to20kHCpctNotComput","H97SOOHUInc20to35k","H97SOOHUInc20to35kRC<20pct","H97SOOHUInc20to35kRC20to25pct","H97SOOHUInc20to35kRC25to30pct","H97SOOHUInc20to35kRC30to35pct","H97SOOHUInc20to35kRC>35pct","H97SOOHUInc20to35kRCpctNotComput","H97SOOHUInc35to50k","H97SOOHUInc35to50kRC<20pct","H97SOOHUInc35to50kRC20to25pct","H97SOOHUInc35to50kRC25to30pct","H97SOOHUInc35to50kRC30to35pct","H97SOOHUInc35to50kRC>35pct","H97SOOHUInc35to50kRCpctNotCompute","H97SOOHUInc50to75k","H97SOOHUInc50to75kRC<20pct","H97SOOHUInc50to75kRC20to25pct","H97SOOHUInc50to75kRC25to30pct","H97SOOHUInc50to75kRC30to35pct","H97SOOHUInc50to75kRC>35pct","H97SOOHUInc50to75kRCpctNotComput","H97SOOHUInc75to100k","H97SOOHUInc75to100kRC<20pct","H97SOOHUInc75to100kRC20to25pct","H97SOOHUInc75to100kRC25to30pct","H97SOOHUInc75to100kRC30to35pct","H97SOOHUInc75to100kRC>35pct","H97SOOHUInc75to100kRCpctNotCompute","H97SOOHUInc100to150k","H97SOOHUInc100to150kRC<20pct","H97SOOHUInc100to150kRC20to25pct","H97SOOHUInc100to150kRC25to30pct","H97SOOHUInc100to150kRC30to35pct","H97SOOHUInc100to150kRC>35pct","H97SOOHUInc100to150kRCpctNotCompute","H97SOOHUInc>150k","H97SOOHUInc>150kRC<20pct","H97SOOHUInc>150kRC20to25pct","H97SOOHUInc>150kRC25to30pct","H97SOOHUInc>150kRC30to35pct","H97SOOHUInc>150kRC>35pct","H97SOOHUInc>150kRCpctNotCompute"]
[{"$f":"VLOOKUP(DropDownList!$B$47,CntyQryCensus!$A$408:$FN$450,A$1)","v":"Grantham"},{"$f":"VLOOKUP(DropDownList!$B$47,CntyQryCensus!$A$408:$FN$450,B$1)","v":"0004212"},{"$f":"VLOOKUP(DropDownList!$B$47,CntyQryCensus!$A$408:$FN$450,C$1)","v":"31220"},{"$f":"VLOOKUP(DropDownList!$B$47,CntyQryCensus!$A$408:$FN$450,D$1)","v":2167},{"$f":"VLOOKUP(DropDownList!$B$47,CntyQryCensus!$A$408:$FN$450,E$1)","v":710},{"$f":"VLOOKUP(DropDownList!$B$47,CntyQryCensus!$A$408:$FN$450,F$1)","v":0},{"$f":"VLOOKUP(DropDownList!$B$47,CntyQryCensus!$A$408:$FN$450,G$1)","v":0},{"$f":"VLOOKUP(DropDownList!$B$47,CntyQryCensus!$A$408:$FN$450,H$1)","v":0},{"$f":"VLOOKUP(DropDownList!$B$47,CntyQryCensus!$A$408:$FN$450,I$1)","v":0},{"$f":"VLOOKUP(DropDownList!$B$47,CntyQryCensus!$A$408:$FN$450,J$1)","v":0},{"$f":"VLOOKUP(DropDownList!$B$47,CntyQryCensus!$A$408:$FN$450,K$1)","v":0},{"$f":"VLOOKUP(DropDownList!$B$47,CntyQryCensus!$A$408:$FN$450,L$1)","v":0},{"$f":"VLOOKUP(DropDownList!$B$47,CntyQryCensus!$A$408:$FN$450,M$1)","v":5},{"$f":"VLOOKUP(DropDownList!$B$47,CntyQryCensus!$A$408:$FN$450,N$1)","v":3},{"$f":"VLOOKUP(DropDownList!$B$47,CntyQryCensus!$A$408:$FN$450,O$1)","v":11},{"$f":"VLOOKUP(DropDownList!$B$47,CntyQryCensus!$A$408:$FN$450,P$1)","v":16},{"$f":"VLOOKUP(DropDownList!$B$47,CntyQryCensus!$A$408:$FN$450,Q$1)","v":20},{"$f":"VLOOKUP(DropDownList!$B$47,CntyQryCensus!$A$408:$FN$450,R$1)","v":43},{"$f":"VLOOKUP(DropDownList!$B$47,CntyQryCensus!$A$408:$FN$450,S$1)","v":89},{"$f":"VLOOKUP(DropDownList!$B$47,CntyQryCensus!$A$408:$FN$450,T$1)","v":139},{"$f":"VLOOKUP(DropDownList!$B$47,CntyQryCensus!$A$408:$FN$450,U$1)","v":79},{"$f":"VLOOKUP(DropDownList!$B$47,CntyQryCensus!$A$408:$FN$450,V$1)","v":76},{"$f":"VLOOKUP(DropDownList!$B$47,CntyQryCensus!$A$408:$FN$450,W$1)","v":81},{"$f":"VLOOKUP(DropDownList!$B$47,CntyQryCensus!$A$408:$FN$450,X$1)","v":69},{"$f":"VLOOKUP(DropDownList!$B$47,CntyQryCensus!$A$408:$FN$450,Y$1)","v":46},{"$f":"VLOOKUP(DropDownList!$B$47,CntyQryCensus!$A$408:$FN$450,Z$1)","v":26},{"$f":"VLOOKUP(DropDownList!$B$47,CntyQryCensus!$A$408:$FN$450,AA$1)","v":5},{"$f":"VLOOKUP(DropDownList!$B$47,CntyQryCensus!$A$408:$FN$450,AB$1)","v":2},{"$f":"VLOOKUP(DropDownList!$B$47,CntyQryCensus!$A$408:$FN$450,AC$1)","v":0},{"$f":"VLOOKUP(DropDownList!$B$47,CntyQryCensus!$A$408:$FN$450,AD$1)","v":159200},{"$f":"VLOOKUP(DropDownList!$B$47,CntyQryCensus!$A$408:$FN$450,AE$1)","v":816},{"$f":"VLOOKUP(DropDownList!$B$47,CntyQryCensus!$A$408:$FN$450,AF$1)","v":0},{"$f":"VLOOKUP(DropDownList!$B$47,CntyQryCensus!$A$408:$FN$450,AG$1)","v":0},{"$f":"VLOOKUP(DropDownList!$B$47,CntyQryCensus!$A$408:$FN$450,AH$1)","v":0},{"$f":"VLOOKUP(DropDownList!$B$47,CntyQryCensus!$A$408:$FN$450,AI$1)","v":0},{"$f":"VLOOKUP(DropDownList!$B$47,CntyQryCensus!$A$408:$FN$450,AJ$1)","v":0},{"$f":"VLOOKUP(DropDownList!$B$47,CntyQryCensus!$A$408:$FN$450,AK$1)","v":0},{"$f":"VLOOKUP(DropDownList!$B$47,CntyQryCensus!$A$408:$FN$450,AL$1)","v":10},{"$f":"VLOOKUP(DropDownList!$B$47,CntyQryCensus!$A$408:$FN$450,AM$1)","v":7},{"$f":"VLOOKUP(DropDownList!$B$47,CntyQryCensus!$A$408:$FN$450,AN$1)","v":6},{"$f":"VLOOKUP(DropDownList!$B$47,CntyQryCensus!$A$408:$FN$450,AO$1)","v":13},{"$f":"VLOOKUP(DropDownList!$B$47,CntyQryCensus!$A$408:$FN$450,AP$1)","v":19},{"$f":"VLOOKUP(DropDownList!$B$47,CntyQryCensus!$A$408:$FN$450,AQ$1)","v":22},{"$f":"VLOOKUP(DropDownList!$B$47,CntyQryCensus!$A$408:$FN$450,AR$1)","v":43},{"$f":"VLOOKUP(DropDownList!$B$47,CntyQryCensus!$A$408:$FN$450,AS$1)","v":97},{"$f":"VLOOKUP(DropDownList!$B$47,CntyQryCensus!$A$408:$FN$450,AT$1)","v":150},{"$f":"VLOOKUP(DropDownList!$B$47,CntyQryCensus!$A$408:$FN$450,AU$1)","v":91},{"$f":"VLOOKUP(DropDownList!$B$47,CntyQryCensus!$A$408:$FN$450,AV$1)","v":83},{"$f":"VLOOKUP(DropDownList!$B$47,CntyQryCensus!$A$408:$FN$450,AW$1)","v":98},{"$f":"VLOOKUP(DropDownList!$B$47,CntyQryCensus!$A$408:$FN$450,AX$1)","v":78},{"$f":"VLOOKUP(DropDownList!$B$47,CntyQryCensus!$A$408:$FN$450,AY$1)","v":57},{"$f":"VLOOKUP(DropDownList!$B$47,CntyQryCensus!$A$408:$FN$450,AZ$1)","v":28},{"$f":"VLOOKUP(DropDownList!$B$47,CntyQryCensus!$A$408:$FN$450,BA$1)","v":12},{"$f":"VLOOKUP(DropDownList!$B$47,CntyQryCensus!$A$408:$FN$450,BB$1)","v":2},{"$f":"VLOOKUP(DropDownList!$B$47,CntyQryCensus!$A$408:$FN$450,BC$1)","v":0},{"$f":"VLOOKUP(DropDownList!$B$47,CntyQryCensus!$A$408:$FN$450,BD$1)","v":161300},{"$f":"VLOOKUP(DropDownList!$B$47,CntyQryCensus!$A$408:$FN$450,BE$1)","v":710},{"$f":"VLOOKUP(DropDownList!$B$47,CntyQryCensus!$A$408:$FN$450,BF$1)","v":459},{"$f":"VLOOKUP(DropDownList!$B$47,CntyQryCensus!$A$408:$FN$450,BG$1)","v":0},{"$f":"VLOOKUP(DropDownList!$B$47,CntyQryCensus!$A$408:$FN$450,BH$1)","v":0},{"$f":"VLOOKUP(DropDownList!$B$47,CntyQryCensus!$A$408:$FN$450,BI$1)","v":2},{"$f":"VLOOKUP(DropDownList!$B$47,CntyQryCensus!$A$408:$FN$450,BJ$1)","v":0},{"$f":"VLOOKUP(DropDownList!$B$47,CntyQryCensus!$A$408:$FN$450,BK$1)","v":13},{"$f":"VLOOKUP(DropDownList!$B$47,CntyQryCensus!$A$408:$FN$450,BL$1)","v":19},{"$f":"VLOOKUP(DropDownList!$B$47,CntyQryCensus!$A$408:$FN$450,BM$1)","v":15},{"$f":"VLOOKUP(DropDownList!$B$47,CntyQryCensus!$A$408:$FN$450,BN$1)","v":19},{"$f":"VLOOKUP(DropDownList!$B$47,CntyQryCensus!$A$408:$FN$450,BO$1)","v":26},{"$f":"VLOOKUP(DropDownList!$B$47,CntyQryCensus!$A$408:$FN$450,BP$1)","v":113},{"$f":"VLOOKUP(DropDownList!$B$47,CntyQryCensus!$A$408:$FN$450,BQ$1)","v":113},{"$f":"VLOOKUP(DropDownList!$B$47,CntyQryCensus!$A$408:$FN$450,BR$1)","v":97},{"$f":"VLOOKUP(DropDownList!$B$47,CntyQryCensus!$A$408:$FN$450,BS$1)","v":25},{"$f":"VLOOKUP(DropDownList!$B$47,CntyQryCensus!$A$408:$FN$450,BT$1)","v":7},{"$f":"VLOOKUP(DropDownList!$B$47,CntyQryCensus!$A$408:$FN$450,BU$1)","v":10},{"$f":"VLOOKUP(DropDownList!$B$47,CntyQryCensus!$A$408:$FN$450,BV$1)","v":251},{"$f":"VLOOKUP(DropDownList!$B$47,CntyQryCensus!$A$408:$FN$450,BW$1)","v":0},{"$f":"VLOOKUP(DropDownList!$B$47,CntyQryCensus!$A$408:$FN$450,BX$1)","v":2},{"$f":"VLOOKUP(DropDownList!$B$47,CntyQryCensus!$A$408:$FN$450,BY$1)","v":2},{"$f":"VLOOKUP(DropDownList!$B$47,CntyQryCensus!$A$408:$FN$450,BZ$1)","v":5},{"$f":"VLOOKUP(DropDownList!$B$47,CntyQryCensus!$A$408:$FN$450,CA$1)","v":19},{"$f":"VLOOKUP(DropDownList!$B$47,CntyQryCensus!$A$408:$FN$450,CB$1)","v":22},{"$f":"VLOOKUP(DropDownList!$B$47,CntyQryCensus!$A$408:$FN$450,CC$1)","v":6},{"$f":"VLOOKUP(DropDownList!$B$47,CntyQryCensus!$A$408:$FN$450,CD$1)","v":59},{"$f":"VLOOKUP(DropDownList!$B$47,CntyQryCensus!$A$408:$FN$450,CE$1)","v":51},{"$f":"VLOOKUP(DropDownList!$B$47,CntyQryCensus!$A$408:$FN$450,CF$1)","v":38},{"$f":"VLOOKUP(DropDownList!$B$47,CntyQryCensus!$A$408:$FN$450,CG$1)","v":20},{"$f":"VLOOKUP(DropDownList!$B$47,CntyQryCensus!$A$408:$FN$450,CH$1)","v":19},{"$f":"VLOOKUP(DropDownList!$B$47,CntyQryCensus!$A$408:$FN$450,CI$1)","v":6},{"$f":"VLOOKUP(DropDownList!$B$47,CntyQryCensus!$A$408:$FN$450,CJ$1)","v":2},{"$f":"VLOOKUP(DropDownList!$B$47,CntyQryCensus!$A$408:$FN$450,CK$1)","v":1300},{"$f":"VLOOKUP(DropDownList!$B$47,CntyQryCensus!$A$408:$FN$450,CL$1)","v":521},{"$f":"VLOOKUP(DropDownList!$B$47,CntyQryCensus!$A$408:$FN$450,CM$1)","v":710},{"$f":"VLOOKUP(DropDownList!$B$47,CntyQryCensus!$A$408:$FN$450,CN$1)","v":459},{"$f":"VLOOKUP(DropDownList!$B$47,CntyQryCensus!$A$408:$FN$450,CO$1)","v":35},{"$f":"VLOOKUP(DropDownList!$B$47,CntyQryCensus!$A$408:$FN$450,CP$1)","v":51},{"$f":"VLOOKUP(DropDownList!$B$47,CntyQryCensus!$A$408:$FN$450,CQ$1)","v":79},{"$f":"VLOOKUP(DropDownList!$B$47,CntyQryCensus!$A$408:$FN$450,CR$1)","v":110},{"$f":"VLOOKUP(DropDownList!$B$47,CntyQryCensus!$A$408:$FN$450,CS$1)","v":71},{"$f":"VLOOKUP(DropDownList!$B$47,CntyQryCensus!$A$408:$FN$450,CT$1)","v":38},{"$f":"VLOOKUP(DropDownList!$B$47,CntyQryCensus!$A$408:$FN$450,CU$1)","v":18},{"$f":"VLOOKUP(DropDownList!$B$47,CntyQryCensus!$A$408:$FN$450,CV$1)","v":25},{"$f":"VLOOKUP(DropDownList!$B$47,CntyQryCensus!$A$408:$FN$450,CW$1)","v":29},{"$f":"VLOOKUP(DropDownList!$B$47,CntyQryCensus!$A$408:$FN$450,CX$1)","v":3},{"$f":"VLOOKUP(DropDownList!$B$47,CntyQryCensus!$A$408:$FN$450,CY$1)","v":251},{"$f":"VLOOKUP(DropDownList!$B$47,CntyQryCensus!$A$408:$FN$450,CZ$1)","v":95},{"$f":"VLOOKUP(DropDownList!$B$47,CntyQryCensus!$A$408:$FN$450,DA$1)","v":71},{"$f":"VLOOKUP(DropDownList!$B$47,CntyQryCensus!$A$408:$FN$450,DB$1)","v":32},{"$f":"VLOOKUP(DropDownList!$B$47,CntyQryCensus!$A$408:$FN$450,DC$1)","v":22},{"$f":"VLOOKUP(DropDownList!$B$47,CntyQryCensus!$A$408:$FN$450,DD$1)","v":2},{"$f":"VLOOKUP(DropDownList!$B$47,CntyQryCensus!$A$408:$FN$450,DE$1)","v":0},{"$f":"VLOOKUP(DropDownList!$B$47,CntyQryCensus!$A$408:$FN$450,DF$1)","v":6},{"$f":"VLOOKUP(DropDownList!$B$47,CntyQryCensus!$A$408:$FN$450,DG$1)","v":5},{"$f":"VLOOKUP(DropDownList!$B$47,CntyQryCensus!$A$408:$FN$450,DH$1)","v":14},{"$f":"VLOOKUP(DropDownList!$B$47,CntyQryCensus!$A$408:$FN$450,DI$1)","v":4},{"$f":"VLOOKUP(DropDownList!$B$47,CntyQryCensus!$A$408:$FN$450,DJ$1)","v":710},{"$f":"VLOOKUP(DropDownList!$B$47,CntyQryCensus!$A$408:$FN$450,DK$1)","v":25},{"$f":"VLOOKUP(DropDownList!$B$47,CntyQryCensus!$A$408:$FN$450,DL$1)","v":0},{"$f":"VLOOKUP(DropDownList!$B$47,CntyQryCensus!$A$408:$FN$450,DM$1)","v":0},{"$f":"VLOOKUP(DropDownList!$B$47,CntyQryCensus!$A$408:$FN$450,DN$1)","v":0},{"$f":"VLOOKUP(DropDownList!$B$47,CntyQryCensus!$A$408:$FN$450,DO$1)","v":0},{"$f":"VLOOKUP(DropDownList!$B$47,CntyQryCensus!$A$408:$FN$450,DP$1)","v":18},{"$f":"VLOOKUP(DropDownList!$B$47,CntyQryCensus!$A$408:$FN$450,DQ$1)","v":7},{"$f":"VLOOKUP(DropDownList!$B$47,CntyQryCensus!$A$408:$FN$450,DR$1)","v":14},{"$f":"VLOOKUP(DropDownList!$B$47,CntyQryCensus!$A$408:$FN$450,DS$1)","v":2},{"$f":"VLOOKUP(DropDownList!$B$47,CntyQryCensus!$A$408:$FN$450,DT$1)","v":0},{"$f":"VLOOKUP(DropDownList!$B$47,CntyQryCensus!$A$408:$FN$450,DU$1)","v":0},{"$f":"VLOOKUP(DropDownList!$B$47,CntyQryCensus!$A$408:$FN$450,DV$1)","v":0},{"$f":"VLOOKUP(DropDownList!$B$47,CntyQryCensus!$A$408:$FN$450,DW$1)","v":12},{"$f":"VLOOKUP(DropDownList!$B$47,CntyQryCensus!$A$408:$FN$450,DX$1)","v":0},{"$f":"VLOOKUP(DropDownList!$B$47,CntyQryCensus!$A$408:$FN$450,DY$1)","v":80},{"$f":"VLOOKUP(DropDownList!$B$47,CntyQryCensus!$A$408:$FN$450,DZ$1)","v":16},{"$f":"VLOOKUP(DropDownList!$B$47,CntyQryCensus!$A$408:$FN$450,EA$1)","v":23},{"$f":"VLOOKUP(DropDownList!$B$47,CntyQryCensus!$A$408:$FN$450,EB$1)","v":10},{"$f":"VLOOKUP(DropDownList!$B$47,CntyQryCensus!$A$408:$FN$450,EC$1)","v":0},{"$f":"VLOOKUP(DropDownList!$B$47,CntyQryCensus!$A$408:$FN$450,ED$1)","v":31},{"$f":"VLOOKUP(DropDownList!$B$47,CntyQryCensus!$A$408:$FN$450,EE$1)","v":0},{"$f":"VLOOKUP(DropDownList!$B$47,CntyQryCensus!$A$408:$FN$450,EF$1)","v":101},{"$f":"VLOOKUP(DropDownList!$B$47,CntyQryCensus!$A$408:$FN$450,EG$1)","v":52},{"$f":"VLOOKUP(DropDownList!$B$47,CntyQryCensus!$A$408:$FN$450,EH$1)","v":11},{"$f":"VLOOKUP(DropDownList!$B$47,CntyQryCensus!$A$408:$FN$450,EI$1)","v":15},{"$f":"VLOOKUP(DropDownList!$B$47,CntyQryCensus!$A$408:$FN$450,EJ$1)","v":6},{"$f":"VLOOKUP(DropDownList!$B$47,CntyQryCensus!$A$408:$FN$450,EK$1)","v":17},{"$f":"VLOOKUP(DropDownList!$B$47,CntyQryCensus!$A$408:$FN$450,EL$1)","v":0},{"$f":"VLOOKUP(DropDownList!$B$47,CntyQryCensus!$A$408:$FN$450,EM$1)","v":211},{"$f":"VLOOKUP(DropDownList!$B$47,CntyQryCensus!$A$408:$FN$450,EN$1)","v":84},{"$f":"VLOOKUP(DropDownList!$B$47,CntyQryCensus!$A$408:$FN$450,EO$1)","v":46},{"$f":"VLOOKUP(DropDownList!$B$47,CntyQryCensus!$A$408:$FN$450,EP$1)","v":38},{"$f":"VLOOKUP(DropDownList!$B$47,CntyQryCensus!$A$408:$FN$450,EQ$1)","v":26},{"$f":"VLOOKUP(DropDownList!$B$47,CntyQryCensus!$A$408:$FN$450,ER$1)","v":17},{"$f":"VLOOKUP(DropDownList!$B$47,CntyQryCensus!$A$408:$FN$450,ES$1)","v":0},{"$f":"VLOOKUP(DropDownList!$B$47,CntyQryCensus!$A$408:$FN$450,ET$1)","v":120},{"$f":"VLOOKUP(DropDownList!$B$47,CntyQryCensus!$A$408:$FN$450,EU$1)","v":75},{"$f":"VLOOKUP(DropDownList!$B$47,CntyQryCensus!$A$408:$FN$450,EV$1)","v":39},{"$f":"VLOOKUP(DropDownList!$B$47,CntyQryCensus!$A$408:$FN$450,EW$1)","v":4},{"$f":"VLOOKUP(DropDownList!$B$47,CntyQryCensus!$A$408:$FN$450,EX$1)","v":2},{"$f":"VLOOKUP(DropDownList!$B$47,CntyQryCensus!$A$408:$FN$450,EY$1)","v":0},{"$f":"VLOOKUP(DropDownList!$B$47,CntyQryCensus!$A$408:$FN$450,EZ$1)","v":0},{"$f":"VLOOKUP(DropDownList!$B$47,CntyQryCensus!$A$408:$FN$450,FA$1)","v":103},{"$f":"VLOOKUP(DropDownList!$B$47,CntyQryCensus!$A$408:$FN$450,FB$1)","v":80},{"$f":"VLOOKUP(DropDownList!$B$47,CntyQryCensus!$A$408:$FN$450,FC$1)","v":11},{"$f":"VLOOKUP(DropDownList!$B$47,CntyQryCensus!$A$408:$FN$450,FD$1)","v":6},{"$f":"VLOOKUP(DropDownList!$B$47,CntyQryCensus!$A$408:$FN$450,FE$1)","v":4},{"$f":"VLOOKUP(DropDownList!$B$47,CntyQryCensus!$A$408:$FN$450,FF$1)","v":2},{"$f":"VLOOKUP(DropDownList!$B$47,CntyQryCensus!$A$408:$FN$450,FG$1)","v":0},{"$f":"VLOOKUP(DropDownList!$B$47,CntyQryCensus!$A$408:$FN$450,FH$1)","v":56},{"$f":"VLOOKUP(DropDownList!$B$47,CntyQryCensus!$A$408:$FN$450,FI$1)","v":54},{"$f":"VLOOKUP(DropDownList!$B$47,CntyQryCensus!$A$408:$FN$450,FJ$1)","v":2},{"$f":"VLOOKUP(DropDownList!$B$47,CntyQryCensus!$A$408:$FN$450,FK$1)","v":0},{"$f":"VLOOKUP(DropDownList!$B$47,CntyQryCensus!$A$408:$FN$450,FL$1)","v":0},{"$f":"VLOOKUP(DropDownList!$B$47,CntyQryCensus!$A$408:$FN$450,FM$1)","v":0},{"$f":"VLOOKUP(DropDownList!$B$47,CntyQryCensus!$A$408:$FN$450,FN$1)","v":0}]
[]
[]
["Census 2000 SummaryFile3 Sample Data  -  SF3TownQry9HHIncomeByTenure"]
["NAME","LOGRECNO","COUNTY","TotalPop","HCT11OccHU","HCT11OwnOccHU","HCT11OOHUInc<5K","HCT11OOHUInc5to10K","HCT11OOHUInc10to15K","HCT11OOHUInc15to20K","HCT11OOHUInc20to25K","HCT11OOHUInc25to35K","HCT11OOHUInc35to50K","HCT11OOHUInc50to75K","HCT11OOHUInc75to100K","HCT11OOHUInc100to150K","HCT11OOHUInc>150K","HCT11RentOccHU","HCT11ROHUInc<5K","HCT11ROHUInc5to10K","HCT11ROHUInc10to15K","HCT11ROHUInc15to20K","HCT11ROHUInc20to25K","HCT11ROHUInc25to35K","HCT11ROHUInc35to50K","HCT11ROHUInc50to75K","HCT11ROHUInc75to100K","HCT11ROHUInc100to150K","HCT11ROHUInc>150K","HCT12MedHHInc","HCT12MedOwnOccHHInc","HCT12MedRentOccHHInc","Summary Level"]
[{"$f":"VLOOKUP(DropDownList!$B$47,CntyQryCensus!$A$459:$AG$501,A$1)","v":"Grantham"},{"$f":"VLOOKUP(DropDownList!$B$47,CntyQryCensus!$A$459:$AG$501,B$1)","v":"0004212"},{"$f":"VLOOKUP(DropDownList!$B$47,CntyQryCensus!$A$459:$AG$501,C$1)","v":"31220"},{"$f":"VLOOKUP(DropDownList!$B$47,CntyQryCensus!$A$459:$AG$501,D$1)","v":"Grantham town"},{"$f":"VLOOKUP(DropDownList!$B$47,CntyQryCensus!$A$459:$AG$501,E$1)","v":"019"},{"$f":"VLOOKUP(DropDownList!$B$47,CntyQryCensus!$A$459:$AG$501,F$1)","v":2167},{"$f":"VLOOKUP(DropDownList!$B$47,CntyQryCensus!$A$459:$AG$501,G$1)","v":925},{"$f":"VLOOKUP(DropDownList!$B$47,CntyQryCensus!$A$459:$AG$501,H$1)","v":816},{"$f":"VLOOKUP(DropDownList!$B$47,CntyQryCensus!$A$459:$AG$501,I$1)","v":15},{"$f":"VLOOKUP(DropDownList!$B$47,CntyQryCensus!$A$459:$AG$501,J$1)","v":10},{"$f":"VLOOKUP(DropDownList!$B$47,CntyQryCensus!$A$459:$AG$501,K$1)","v":9},{"$f":"VLOOKUP(DropDownList!$B$47,CntyQryCensus!$A$459:$AG$501,L$1)","v":12},{"$f":"VLOOKUP(DropDownList!$B$47,CntyQryCensus!$A$459:$AG$501,M$1)","v":32},{"$f":"VLOOKUP(DropDownList!$B$47,CntyQryCensus!$A$459:$AG$501,N$1)","v":62},{"$f":"VLOOKUP(DropDownList!$B$47,CntyQryCensus!$A$459:$AG$501,O$1)","v":124},{"$f":"VLOOKUP(DropDownList!$B$47,CntyQryCensus!$A$459:$AG$501,P$1)","v":229},{"$f":"VLOOKUP(DropDownList!$B$47,CntyQryCensus!$A$459:$AG$501,Q$1)","v":135},{"$f":"VLOOKUP(DropDownList!$B$47,CntyQryCensus!$A$459:$AG$501,R$1)","v":124},{"$f":"VLOOKUP(DropDownList!$B$47,CntyQryCensus!$A$459:$AG$501,S$1)","v":64},{"$f":"VLOOKUP(DropDownList!$B$47,CntyQryCensus!$A$459:$AG$501,T$1)","v":109},{"$f":"VLOOKUP(DropDownList!$B$47,CntyQryCensus!$A$459:$AG$501,U$1)","v":8},{"$f":"VLOOKUP(DropDownList!$B$47,CntyQryCensus!$A$459:$AG$501,V$1)","v":0},{"$f":"VLOOKUP(DropDownList!$B$47,CntyQryCensus!$A$459:$AG$501,W$1)","v":3},{"$f":"VLOOKUP(DropDownList!$B$47,CntyQryCensus!$A$459:$AG$501,X$1)","v":3},{"$f":"VLOOKUP(DropDownList!$B$47,CntyQryCensus!$A$459:$AG$501,Y$1)","v":7},{"$f":"VLOOKUP(DropDownList!$B$47,CntyQryCensus!$A$459:$AG$501,Z$1)","v":6},{"$f":"VLOOKUP(DropDownList!$B$47,CntyQryCensus!$A$459:$AG$501,AA$1)","v":23},{"$f":"VLOOKUP(DropDownList!$B$47,CntyQryCensus!$A$459:$AG$501,AB$1)","v":28},{"$f":"VLOOKUP(DropDownList!$B$47,CntyQryCensus!$A$459:$AG$501,AC$1)","v":27},{"$f":"VLOOKUP(DropDownList!$B$47,CntyQryCensus!$A$459:$AG$501,AD$1)","v":2},{"$f":"VLOOKUP(DropDownList!$B$47,CntyQryCensus!$A$459:$AG$501,AE$1)","v":2},{"$f":"VLOOKUP(DropDownList!$B$47,CntyQryCensus!$A$459:$AG$501,AF$1)","v":63207},{"$f":"VLOOKUP(DropDownList!$B$47,CntyQryCensus!$A$459:$AG$501,AG$1)","v":64342}]
[]
[]
[]
[]
[]
[{"$f":"VLOOKUP(DropDownList!$B$47,CntyQryCensus!$A$510:$DA$552,A$1)","v":"Grantham"}]
[]
[]
[]
[]
[]
[]
[]
["Census 2000 SummaryFile3 Sample Data - SF3TownQry10Disabil"]
["NAME","LOGRECNO","COUNTY","TotalPop","PCT026001-NonInstPop5yrs+","PCT026002-MaleNonInstPop5yrs+","PCT026003","PCT026004","PCT026005","PCT026006","PCT026007","PCT026008","PCT026009","PCT026010","PCT026011","PCT026012","PCT026013","PCT026014","PCT026015","PCT026016","PCT026017","PCT026018","PCT026019","PCT026020","PCT026021","PCT026022","PCT026023","PCT026024","PCT026025","PCT026026","PCT026027","PCT026028","PCT026029","PCT026030","PCT026031","PCT026032","PCT026033","PCT026034","PCT026035","PCT026036","PCT026037","PCT026038","PCT026039","PCT026040","PCT026041","PCT026042","PCT026043","PCT026044","PCT026045","PCT026046","PCT026047","PCT026048","PCT026049","PCT026050","PCT026051","PCT026052","PCT026053","PCT026054","PCT026055","PCT026056","PCT026057","PCT026058","PCT026059","PCT026060","PCT026061","PCT026062","PCT026063","PCT026064","PCT026065","PCT026066","PCT026067","PCT026068","PCT026069","PCT026070","PCT026071","PCT026072","PCT026073","PCT026074","PCT026075","PCT026076","PCT026077","PCT026078","PCT026079","PCT026080","PCT026081","PCT026082","PCT026083","PCT026084","PCT026085","PCT026086","PCT026087","PCT026088","PCT026089","PCT026090","PCT026091","PCT026092","PCT026093","PCT026094","PCT026095","PCT026096","PCT026097","PCT026098","PCT026099","PCT026100","PCT026101"]
[{"$f":"VLOOKUP(DropDownList!$B$47,CntyQryCensus!$A$510:$DA$552,A$1)","v":"Grantham"},{"$f":"VLOOKUP(DropDownList!$B$47,CntyQryCensus!$A$510:$DA$552,B$1)","v":"0000232"},{"$f":"VLOOKUP(DropDownList!$B$47,CntyQryCensus!$A$510:$DA$552,C$1)","v":"019"},{"$f":"VLOOKUP(DropDownList!$B$47,CntyQryCensus!$A$510:$DA$552,D$1)","v":2985},{"$f":"VLOOKUP(DropDownList!$B$47,CntyQryCensus!$A$510:$DA$552,E$1)","v":2959},{"$f":"VLOOKUP(DropDownList!$B$47,CntyQryCensus!$A$510:$DA$552,F$1)","v":2898},{"$f":"VLOOKUP(DropDownList!$B$47,CntyQryCensus!$A$510:$DA$552,G$1)","v":13},{"$f":"VLOOKUP(DropDownList!$B$47,CntyQryCensus!$A$510:$DA$552,H$1)","v":1},{"$f":"VLOOKUP(DropDownList!$B$47,CntyQryCensus!$A$510:$DA$552,I$1)","v":29},{"$f":"VLOOKUP(DropDownList!$B$47,CntyQryCensus!$A$510:$DA$552,J$1)","v":0},{"$f":"VLOOKUP(DropDownList!$B$47,CntyQryCensus!$A$510:$DA$552,K$1)","v":18},{"$f":"VLOOKUP(DropDownList!$B$47,CntyQryCensus!$A$510:$DA$552,L$1)","v":26},{"$f":"VLOOKUP(DropDownList!$B$47,CntyQryCensus!$A$510:$DA$552,M$1)","v":53},{"$f":"VLOOKUP(DropDownList!$B$47,CntyQryCensus!$A$510:$DA$552,N$1)","v":2932},{"$f":"VLOOKUP(DropDownList!$B$47,CntyQryCensus!$A$510:$DA$552,O$1)","v":539},{"$f":"VLOOKUP(DropDownList!$B$47,CntyQryCensus!$A$510:$DA$552,P$1)","v":192},{"$f":"VLOOKUP(DropDownList!$B$47,CntyQryCensus!$A$510:$DA$552,Q$1)","v":237},{"$f":"VLOOKUP(DropDownList!$B$47,CntyQryCensus!$A$510:$DA$552,R$1)","v":432},{"$f":"VLOOKUP(DropDownList!$B$47,CntyQryCensus!$A$510:$DA$552,S$1)","v":468},{"$f":"VLOOKUP(DropDownList!$B$47,CntyQryCensus!$A$510:$DA$552,T$1)","v":492},{"$f":"VLOOKUP(DropDownList!$B$47,CntyQryCensus!$A$510:$DA$552,U$1)","v":371},{"$f":"VLOOKUP(DropDownList!$B$47,CntyQryCensus!$A$510:$DA$552,V$1)","v":254},{"$f":"VLOOKUP(DropDownList!$B$47,CntyQryCensus!$A$510:$DA$552,W$1)","v":47.3},{"$f":"VLOOKUP(DropDownList!$B$47,CntyQryCensus!$A$510:$DA$552,X$1)","v":47},{"$f":"VLOOKUP(DropDownList!$B$47,CntyQryCensus!$A$510:$DA$552,Y$1)","v":47.6},{"$f":"VLOOKUP(DropDownList!$B$47,CntyQryCensus!$A$510:$DA$552,Z$1)","v":1249},{"$f":"VLOOKUP(DropDownList!$B$47,CntyQryCensus!$A$510:$DA$552,AA$1)","v":2985},{"$f":"VLOOKUP(DropDownList!$B$47,CntyQryCensus!$A$510:$DA$552,AB$1)","v":1602},{"$f":"VLOOKUP(DropDownList!$B$47,CntyQryCensus!$A$510:$DA$552,AC$1)","v":1383},{"$f":"VLOOKUP(DropDownList!$B$47,CntyQryCensus!$A$510:$DA$552,AD$1)","v":2.39},{"$f":"VLOOKUP(DropDownList!$B$47,CntyQryCensus!$A$510:$DA$552,AE$1)","v":919},{"$f":"VLOOKUP(DropDownList!$B$47,CntyQryCensus!$A$510:$DA$552,AF$1)","v":822},{"$f":"VLOOKUP(DropDownList!$B$47,CntyQryCensus!$A$510:$DA$552,AG$1)","v":97},{"$f":"VLOOKUP(DropDownList!$B$47,CntyQryCensus!$A$510:$DA$552,AH$1)","v":330},{"$f":"VLOOKUP(DropDownList!$B$47,CntyQryCensus!$A$510:$DA$552,AI$1)","v":2.74},{"$f":"VLOOKUP(DropDownList!$B$47,CntyQryCensus!$A$510:$DA$552,AJ$1)","v":4.1909090909090905},{"$f":"VLOOKUP(DropDownList!$B$47,CntyQryCensus!$A$510:$DA$552,AK$1)","v":2.4},{"$f":"VLOOKUP(DropDownList!$B$47,CntyQryCensus!$A$510:$DA$552,AL$1)","v":2.33},{"$f":"VLOOKUP(DropDownList!$B$47,CntyQryCensus!$A$510:$DA$552,AM$1)","v":1773},{"$f":"VLOOKUP(DropDownList!$B$47,CntyQryCensus!$A$510:$DA$552,AN$1)","v":1249},{"$f":"VLOOKUP(DropDownList!$B$47,CntyQryCensus!$A$510:$DA$552,AO$1)","v":1094},{"$f":"VLOOKUP(DropDownList!$B$47,CntyQryCensus!$A$510:$DA$552,AP$1)","v":155},{"$f":"VLOOKUP(DropDownList!$B$47,CntyQryCensus!$A$510:$DA$552,AQ$1)","v":524},{"$f":"VLOOKUP(DropDownList!$B$47,CntyQryCensus!$A$510:$DA$552,AR$1)","v":7},{"$f":"VLOOKUP(DropDownList!$B$47,CntyQryCensus!$A$510:$DA$552,AS$1)","v":0},{"$f":"VLOOKUP(DropDownList!$B$47,CntyQryCensus!$A$510:$DA$552,AT$1)","v":24},{"$f":"VLOOKUP(DropDownList!$B$47,CntyQryCensus!$A$510:$DA$552,AU$1)","v":7},{"$f":"VLOOKUP(DropDownList!$B$47,CntyQryCensus!$A$510:$DA$552,AV$1)","v":475},{"$f":"VLOOKUP(DropDownList!$B$47,CntyQryCensus!$A$510:$DA$552,AW$1)","v":11},{"$f":"VLOOKUP(DropDownList!$B$47,CntyQryCensus!$A$510:$DA$552,AX$1)","v":2.1},{"$f":"VLOOKUP(DropDownList!$B$47,CntyQryCensus!$A$510:$DA$552,AY$1)","v":4.3},{"$f":"VLOOKUP(DropDownList!$B$47,CntyQryCensus!$A$510:$DA$552,AZ$1)","v":1773},{"$f":"VLOOKUP(DropDownList!$B$47,CntyQryCensus!$A$510:$DA$552,BA$1)","v":1455},{"$f":"VLOOKUP(DropDownList!$B$47,CntyQryCensus!$A$510:$DA$552,BB$1)","v":304},{"$f":"VLOOKUP(DropDownList!$B$47,CntyQryCensus!$A$510:$DA$552,BC$1)","v":14},{"$f":"VLOOKUP(DropDownList!$B$47,CntyQryCensus!$A$510:$DA$552,BD$1)","v":0},{"$f":"VLOOKUP(DropDownList!$B$47,CntyQryCensus!$A$510:$DA$552,BE$1)","v":0},{"$f":"VLOOKUP(DropDownList!$B$47,CntyQryCensus!$A$510:$DA$552,BF$1)","v":0},{"$f":"VLOOKUP(DropDownList!$B$47,CntyQryCensus!$A$510:$DA$552,BG$1)","v":0},{"$f":"VLOOKUP(DropDownList!$B$47,CntyQryCensus!$A$510:$DA$552,BH$1)","v":0},{"$f":"VLOOKUP(DropDownList!$B$47,CntyQryCensus!$A$510:$DA$552,BI$1)","v":0},{"$f":"VLOOKUP(DropDownList!$B$47,CntyQryCensus!$A$510:$DA$552,BJ$1)","v":0},{"$f":"VLOOKUP(DropDownList!$B$47,CntyQryCensus!$A$510:$DA$552,BK$1)","v":0},{"$f":"VLOOKUP(DropDownList!$B$47,CntyQryCensus!$A$510:$DA$552,BL$1)","v":0},{"$f":"VLOOKUP(DropDownList!$B$47,CntyQryCensus!$A$510:$DA$552,BM$1)","v":0},{"$f":"VLOOKUP(DropDownList!$B$47,CntyQryCensus!$A$510:$DA$552,BN$1)","v":0},{"$f":"VLOOKUP(DropDownList!$B$47,CntyQryCensus!$A$510:$DA$552,BO$1)","v":0},{"$f":"VLOOKUP(DropDownList!$B$47,CntyQryCensus!$A$510:$DA$552,BP$1)","v":0},{"$f":"VLOOKUP(DropDownList!$B$47,CntyQryCensus!$A$510:$DA$552,BQ$1)","v":0},{"$f":"VLOOKUP(DropDownList!$B$47,CntyQryCensus!$A$510:$DA$552,BR$1)","v":0},{"$f":"VLOOKUP(DropDownList!$B$47,CntyQryCensus!$A$510:$DA$552,BS$1)","v":0},{"$f":"VLOOKUP(DropDownList!$B$47,CntyQryCensus!$A$510:$DA$552,BT$1)","v":0},{"$f":"VLOOKUP(DropDownList!$B$47,CntyQryCensus!$A$510:$DA$552,BU$1)","v":0},{"$f":"VLOOKUP(DropDownList!$B$47,CntyQryCensus!$A$510:$DA$552,BV$1)","v":0},{"$f":"VLOOKUP(DropDownList!$B$47,CntyQryCensus!$A$510:$DA$552,BW$1)","v":0},{"$f":"VLOOKUP(DropDownList!$B$47,CntyQryCensus!$A$510:$DA$552,BX$1)","v":0},{"$f":"VLOOKUP(DropDownList!$B$47,CntyQryCensus!$A$510:$DA$552,BY$1)","v":0},{"$f":"VLOOKUP(DropDownList!$B$47,CntyQryCensus!$A$510:$DA$552,BZ$1)","v":0},{"$f":"VLOOKUP(DropDownList!$B$47,CntyQryCensus!$A$510:$DA$552,CA$1)","v":0},{"$f":"VLOOKUP(DropDownList!$B$47,CntyQryCensus!$A$510:$DA$552,CB$1)","v":0},{"$f":"VLOOKUP(DropDownList!$B$47,CntyQryCensus!$A$510:$DA$552,CC$1)","v":0},{"$f":"VLOOKUP(DropDownList!$B$47,CntyQryCensus!$A$510:$DA$552,CD$1)","v":0},{"$f":"VLOOKUP(DropDownList!$B$47,CntyQryCensus!$A$510:$DA$552,CE$1)","v":0},{"$f":"VLOOKUP(DropDownList!$B$47,CntyQryCensus!$A$510:$DA$552,CF$1)","v":0},{"$f":"VLOOKUP(DropDownList!$B$47,CntyQryCensus!$A$510:$DA$552,CG$1)","v":0},{"$f":"VLOOKUP(DropDownList!$B$47,CntyQryCensus!$A$510:$DA$552,CH$1)","v":0},{"$f":"VLOOKUP(DropDownList!$B$47,CntyQryCensus!$A$510:$DA$552,CI$1)","v":0},{"$f":"VLOOKUP(DropDownList!$B$47,CntyQryCensus!$A$510:$DA$552,CJ$1)","v":0},{"$f":"VLOOKUP(DropDownList!$B$47,CntyQryCensus!$A$510:$DA$552,CK$1)","v":0},{"$f":"VLOOKUP(DropDownList!$B$47,CntyQryCensus!$A$510:$DA$552,CL$1)","v":0},{"$f":"VLOOKUP(DropDownList!$B$47,CntyQryCensus!$A$510:$DA$552,CM$1)","v":0},{"$f":"VLOOKUP(DropDownList!$B$47,CntyQryCensus!$A$510:$DA$552,CN$1)","v":0},{"$f":"VLOOKUP(DropDownList!$B$47,CntyQryCensus!$A$510:$DA$552,CO$1)","v":0},{"$f":"VLOOKUP(DropDownList!$B$47,CntyQryCensus!$A$510:$DA$552,CP$1)","v":0},{"$f":"VLOOKUP(DropDownList!$B$47,CntyQryCensus!$A$510:$DA$552,CQ$1)","v":0},{"$f":"VLOOKUP(DropDownList!$B$47,CntyQryCensus!$A$510:$DA$552,CR$1)","v":0},{"$f":"VLOOKUP(DropDownList!$B$47,CntyQryCensus!$A$510:$DA$552,CS$1)","v":0},{"$f":"VLOOKUP(DropDownList!$B$47,CntyQryCensus!$A$510:$DA$552,CT$1)","v":0},{"$f":"VLOOKUP(DropDownList!$B$47,CntyQryCensus!$A$510:$DA$552,CU$1)","v":0},{"$f":"VLOOKUP(DropDownList!$B$47,CntyQryCensus!$A$510:$DA$552,CV$1)","v":0},{"$f":"VLOOKUP(DropDownList!$B$47,CntyQryCensus!$A$510:$DA$552,CW$1)","v":0},{"$f":"VLOOKUP(DropDownList!$B$47,CntyQryCensus!$A$510:$DA$552,CX$1)","v":0},{"$f":"VLOOKUP(DropDownList!$B$47,CntyQryCensus!$A$510:$DA$552,CY$1)","v":0},{"$f":"VLOOKUP(DropDownList!$B$47,CntyQryCensus!$A$510:$DA$552,CZ$1)","v":0},{"$f":"VLOOKUP(DropDownList!$B$47,CntyQryCensus!$A$510:$DA$552,DA$1)","v":0}]
[]
[]
[]
[]
[{"$f":"VLOOKUP(DropDownList!$B$47,CntyQryCensus!$A$510:$DA$552,A$1)","v":"Grantham"}]
[]
[]
[]
["ACS",2,{"$f":"B105+1","v":3},{"$f":"C105+1","v":4},5,6,7,8,9,10,11,{"$f":"K105+1","v":12},13,14,15,{"$f":"O105+1","v":16},17,18,19,20,21,22,23,24,25,26,27,28,29,30,31,32,33,34,35,36,37,38,39,40,41,42,43,44,45,46,47,48,49,50,51,52,53,54,55,56,57,58,59,60,61,62,63,64,65,66,67,{"$f":"BO105+1","v":68},69,70,71,72,73,74,75,76,77,78,79,80,81,82,83,84,85,86,87,88,89,90,91,92,93,94,95,96,97,98,99,100,101,102,103,104,105,106,107,108,109,110,111,112,113,114,115,116,117,118,119,120,121,122,123,124,125]
["Househould Data (Housing Unit Type)"]
["NAME","TotalHU",{"$f":"\"MOE \"&B107","v":"MOE TotalHU"},"TotalOccHU",{"$f":"\"MOE \"&D107","v":"MOE TotalOccHU"},"TotalOwnerOccUn",{"$f":"\"MOE \"&F107","v":"MOE TotalOwnerOccUn"},"TotalRenterOccn",{"$f":"\"MOE \"&H107","v":"MOE TotalRenterOccn"},"TotalVacantUntis",{"$f":"\"MOE \"&J107","v":"MOE TotalVacantUntis"},"VacantUnitsForRent",{"$f":"\"MOE \"&L107","v":"MOE VacantUnitsForRent"},"VacantUnitRentedNotOcc",{"$f":"\"MOE \"&N107","v":"MOE VacantUnitRentedNotOcc"},"VacantUnitForSale",{"$f":"\"MOE \"&P107","v":"MOE VacantUnitForSale"},"VacantUnitSoldNotOcc",{"$f":"\"MOE \"&R107","v":"MOE VacantUnitSoldNotOcc"},"VacantUnitSeasonalRec",{"$f":"\"MOE \"&T107","v":"MOE VacantUnitSeasonalRec"},"TotalPopInHousingUnits",{"$f":"\"MOE \"&V107","v":"MOE TotalPopInHousingUnits"},"OwnerOccPopHousingUnits",{"$f":"\"MOE \"&X107","v":"MOE OwnerOccPopHousingUnits"},"RenterOccPopHousingUnits",{"$f":"\"MOE \"&Z107","v":"MOE RenterOccPopHousingUnits"},"TotalUntis",{"$f":"\"MOE \"&AB107","v":"MOE TotalUntis"},"TotalOwnerOccUnits",{"$f":"\"MOE \"&AD107","v":"MOE TotalOwnerOccUnits"},"SigFamOwnerOcc",{"$f":"\"MOE \"&AF107","v":"MOE SigFamOwnerOcc"},"MultiFamOwnerOcc",{"$f":"\"MOE \"&AH107","v":"MOE MultiFamOwnerOcc"},"MobileOwnerOcc",{"$f":"\"MOE \"&AJ107","v":"MOE MobileOwnerOcc"},"TotalRenterOccUnits",{"$f":"\"MOE \"&AL107","v":"MOE TotalRenterOccUnits"},"SigFamRenterOcc",{"$f":"\"MOE \"&AN107","v":"MOE SigFamRenterOcc"},"MultiFamRenterOcc",{"$f":"\"MOE \"&AP107","v":"MOE MultiFamRenterOcc"},"MobileRenterOcc",{"$f":"\"MOE \"&AR107","v":"MOE MobileRenterOcc"},"TotalSigFamilyUnits",{"$f":"\"MOE \"&AT107","v":"MOE TotalSigFamilyUnits"},"TotalMultiFamilyUnits",{"$f":"\"MOE \"&AV107","v":"MOE TotalMultiFamilyUnits"},"TotalMobileUnits",{"$f":"\"MOE \"&AX107","v":"MOE TotalMobileUnits"},"YrHouseBuilt2014Later",{"$f":"\"MOE \"&AZ107","v":"MOE YrHouseBuilt2014Later"},"YrHouseBuilt2010-2013",{"$f":"\"MOE \"&BB107","v":"MOE YrHouseBuilt2010-2013"},"YrHouseBuilt2000-2009",{"$f":"\"MOE \"&BD107","v":"MOE YrHouseBuilt2000-2009"},"YrHouseBuilt1990-1999",{"$f":"\"MOE \"&BF107","v":"MOE YrHouseBuilt1990-1999"},"YrHouseBuilt1980-1989",{"$f":"\"MOE \"&BH107","v":"MOE YrHouseBuilt1980-1989"},"YrHouseBuilt1970-1979",{"$f":"\"MOE \"&BJ107","v":"MOE YrHouseBuilt1970-1979"},"YrHouseBuilt1960-1969",{"$f":"\"MOE \"&BL107","v":"MOE YrHouseBuilt1960-1969"},"YrHouseBuilt1950-1959",{"$f":"\"MOE \"&BN107","v":"MOE YrHouseBuilt1950-1959"},"YrHouseBuilt1940-1949",{"$f":"\"MOE \"&BP107","v":"MOE YrHouseBuilt1940-1949"},"YrHouseBuilt1939orEarlier",{"$f":"\"MOE \"&BR107","v":"MOE YrHouseBuilt1939orEarlier"},"NoBedrooms",{"$f":"\"MOE \"&BT107","v":"MOE NoBedrooms"},"1Bedroom",{"$f":"\"MOE \"&BV107","v":"MOE 1Bedroom"},"2Bedroom",{"$f":"\"MOE \"&BX107","v":"MOE 2Bedroom"},"3Bedroom",{"$f":"\"MOE \"&BZ107","v":"MOE 3Bedroom"},"4+Bedroom",{"$f":"\"MOE \"&CB107","v":"MOE 4+Bedroom"}]
[{"$f":"VLOOKUP(DropDownList!$B$47,CntyQryCensus!$A$530:$AY$544,A$1)","v":"Grantham"},6408,215,5721,232,3466,228,2255,221,687,170,125,90,0,18,124,85,0,18,105,67,13185,65,8392,506,4793,502,5928,244,3536,244,2708,253,385,233.67070847669376,443,164.07315441594946,2392,259,229,130,2149,319.91405095744074,14,115.91807451816995,3300,242,2684,336.02083268749868,424,102.59142264341595,0,18,160,80,289,124,567,143,884,171,541,178,700,156,421,131,2846,274,117,84,1111,175,2050,239,2328,234,802,184.29595763336752,171,50.089919145472777,81,79,36,74,28,76,114,30,114,142,91,44,40,134,119,76,105,14,132,142,84,108,151,154,137,30,701,207.10383868967759,300,141.01418368376991,207.27517941133232,197.81304304822774]
[]
["Disability Data"]
["NAME","TotalPop","PCT026001-NonInstPop5yrs+","PCT026002-MaleNonInstPop5yrs+","Male5To15NonInstitPop","Male5To15-NoDisability","Male5To15-1Disability","Male5To15-2orMoreDisabilities","Male16To20-NonInstitutionalPop","Male16To20-NoDisability","Male16To20-1Disability","Male16To20-2orMoreDisabilities","Male21To64-NonInstitutionalPop","Male21To64-NoDisability","Male21To64-1Disability","Male21To64-2orMoreDisabilities","Male65To74-NonInstitutionalPop","Male65To74-NoDisability","Male65To74-1Disability","Male65To74-2orMoreDisabilities","Male75Over-NonInstitutionalPop","Male75Over-NoDisability","Male75Over-1Disability","Male75Over-2orMoreDisabilities","PCT026002-FemaleNonInstPop5yrs+","FemaleNonInstPop5To15NonInstPop","Female5To15-NoDisability","Female5To15-1Disability","Female5To15-2orMoreDisabilities","FemaleNonInstPop16To20NonInstPop","Female16To20-NoDisability","Female16To20-1Disability","Female16To20-2orMoreDisabilities","FemaleNonInstPop21To64NonInstPop","Female21To64-NoDisability","Female21To64-1Disability","Female21To64-2orMoreDisabilities","FemaleNonInstPop65To74NonInstPop","Female65To74-NoDisability","Female65To74-1Disability","Female65To74-2orMoreDisabilities","FemaleNonInstPop75OverNonInstPop","Female75Over-NoDisability","Female75Over-1Disability","Female75Over-2orMoreDisabilities","Male5To15-SensoryDisability","Male16To20-SensoryDisability","Male21To64-SensoryDisability","Male65To74-SensoryDisability","Male75Over-SensoryDisability","Female5To15-SensoryDisability","Female16To20-SensoryDisability","Female21To64-SensoryDisability","Female65To74-SensoryDisability","Female75Over-SensoryDisability","Male5To15-PhysicalDisabil","Male16To20-PhysicalDisabil","Male21To64-PhysicalDisabil","Male65To74-PhysicalDisabil","Male75Over-PhysicalDisabil","Female5To15-PhysicalDisabil","Female16To20-PhysicalDisabil","Female21To64-PhysicalDisabil","Female65To74-PhysicalDisabil","Female75Over-PhysicalDisabil","Male5To15-MentalDisabil","Male16To20-MentalDisabil","Male21To64-MentalDisabil","Male65To74-MentalDisabil","Male75Over-MentalDisabil","Female5To15-MentalDisabil","Female16To20-MentalDisabil","Female21To64-MentalDisabil","Female65To74-MentalDisabil","Female75Over-MentalDisabil","Male5To15-SelfCareDisabil","Male16To20-SelfCareDisabil","Male21To64-SelfCareDisabil","Male65To74-SelfCareDisabil","Male75Over-SelfCareDisabil","Female5To15-SelfCareDisabil","Female16To20-SelfCareDisabil","Female21To64-SelfCareDisabil","Female65To74-SelfCareDisabil","Female75Over-SelfCareDisabil","Male16To20-GoOutsideHomeDisabil","Male21To64-GoOutsideHomeDisabil","Male65To74-GoOutsideHomeDisabil","Male75Over-GoOutsideHomeDisabil","Female16To20-GoOutsideHomeDisabil","Female21To64-GoOutsideHomeDisabil","Female65To74-GoOutsideHomeDisabil","Female75Over-GoOutsideHomeDisabil","Male16To20-EmploymentDisabil","Male21To64-EmploymentDisabil","Female16To20-EmploymentDisabil","Female21To64-EmploymentDisabil"]
[{"$f":"VLOOKUP(DropDownList!$B$47,CntyQryCensus!$A$530:$AY$544,A$1)","v":"Grantham"},2936,33,138,64.350602172784676,0,15.556349186104045,138,64.350602172784676,446,99.724620831567975,11,11.313708498984761,435,101.13851887386922,342,97.744565066299216,17,19.697715603592208,325,97,1408,104.66135867644753,35,26.92582403567252,1373,106.06601717798213,284,79.39773296511683,40,26.627053911388696,244,75.604232685743199,318,73.409808608931812,64,39,254,71.028163428319047,0,15.556349186104045,0,15.556349186104045,12,21.095023109728988,13,21.95449840010015,5,13.038404810405298,45,37.363083384538811,0,15.556349186104045,0,15.556349186104045,12,21.095023109728988,0,15.556349186104045,8,16.278820596099706,6,14.866068747318506,11,11.313708498984761,5,13.601470508735444,29,25.495097567963924,0,15.556349186104045,37,35.171010790137949,0,15.556349186104045,12,21.095023109728988,13,17.804493814764857,15,14.7648230602334,27,18.601075237738275,0,15.556349186104045,12,21.095023109728988,0,15.556349186104045,3,12.083045973594572,0,15.556349186104045,0,15.556349186104045,16,17.029386365926403,12,20.248456731316587,19,14.7648230602334,11,12,0,11,11,12,41,43,49,31,55,36]
[]
["Househould Income By Age"]
["NAME","TotalHouseholds",{"$f":"\"MOE \"&B115","v":"MOE TotalHouseholds"},"HHInc<10K",{"$f":"\"MOE \"&D115","v":"MOE HHInc<10K"},"HHInc10to15K",{"$f":"\"MOE \"&F115","v":"MOE HHInc10to15K"},"HHInc15to20K",{"$f":"\"MOE \"&H115","v":"MOE HHInc15to20K"},"HHInc20to25K",{"$f":"\"MOE \"&J115","v":"MOE HHInc20to25K"},"HHInc25to30K",{"$f":"\"MOE \"&L115","v":"MOE HHInc25to30K"},"HHInc30to35K",{"$f":"\"MOE \"&N115","v":"MOE HHInc30to35K"},"HHInc35to40K",{"$f":"\"MOE \"&P115","v":"MOE HHInc35to40K"},"HHInc40to45K",{"$f":"\"MOE \"&R115","v":"MOE HHInc40to45K"},"HHInc45to50K",{"$f":"\"MOE \"&T115","v":"MOE HHInc45to50K"},"HHInc50to60K",{"$f":"\"MOE \"&V115","v":"MOE HHInc50to60K"},"HHInc60to75K",{"$f":"\"MOE \"&X115","v":"MOE HHInc60to75K"},"HHInc75to100K",{"$f":"\"MOE \"&Z115","v":"MOE HHInc75to100K"},"HHInc100to125K",{"$f":"\"MOE \"&AB115","v":"MOE HHInc100to125K"},"HHInc125to150K",{"$f":"\"MOE \"&AD115","v":"MOE HHInc125to150K"},"HHInc150to200K",{"$f":"\"MOE \"&AF115","v":"MOE HHInc150to200K"},"HHInc>200K",{"$f":"\"MOE \"&AH115","v":"MOE HHInc>200K"},"TotalHH",{"$f":"\"MOE \"&AJ115","v":"MOE TotalHH"},"HHAgeHHUnder25yrs",{"$f":"\"MOE \"&AL115","v":"MOE HHAgeHHUnder25yrs"},"HHAgeHH<25HHInc<10K",{"$f":"\"MOE \"&AN115","v":"MOE HHAgeHH<25HHInc<10K"},"HHAgeHH<25HHInc10to15K",{"$f":"\"MOE \"&AP115","v":"MOE HHAgeHH<25HHInc10to15K"},"HHAgeHH<25HHInc15to20K",{"$f":"\"MOE \"&AR115","v":"MOE HHAgeHH<25HHInc15to20K"},"HHAgeHH<25HHInc20to25K",{"$f":"\"MOE \"&AT115","v":"MOE HHAgeHH<25HHInc20to25K"},"HHAgeHH<25HHInc25to30K",{"$f":"\"MOE \"&AV115","v":"MOE HHAgeHH<25HHInc25to30K"},"HHAgeHH<25HHInc30to35K",{"$f":"\"MOE \"&AX115","v":"MOE HHAgeHH<25HHInc30to35K"},"HHAgeHH<25HHInc35to40K",{"$f":"\"MOE \"&AZ115","v":"MOE HHAgeHH<25HHInc35to40K"},"HHAgeHH<25HHInc40to45K",{"$f":"\"MOE \"&BB115","v":"MOE HHAgeHH<25HHInc40to45K"},"HHAgeHH<25HHInc45to50K",{"$f":"\"MOE \"&BD115","v":"MOE HHAgeHH<25HHInc45to50K"},"HHAgeHH<25HHInc50to60K",{"$f":"\"MOE \"&BF115","v":"MOE HHAgeHH<25HHInc50to60K"},"HHAgeHH<25HHInc60to75K",{"$f":"\"MOE \"&BH115","v":"MOE HHAgeHH<25HHInc60to75K"},"HHAgeHH<25HHInc75to100K",{"$f":"\"MOE \"&BJ115","v":"MOE HHAgeHH<25HHInc75to100K"},"HHAgeHH<25HHInc100to125K",{"$f":"\"MOE \"&BL115","v":"MOE HHAgeHH<25HHInc100to125K"},"HHAgeHH<25HHInc125to150K",{"$f":"\"MOE \"&BN115","v":"MOE HHAgeHH<25HHInc125to150K"},"HHAgeHH<25HHInc150to200K",{"$f":"\"MOE \"&BP115","v":"MOE HHAgeHH<25HHInc150to200K"},"HHAge<25HHInc>200K",{"$f":"\"MOE \"&BR115","v":"MOE HHAge<25HHInc>200K"},"HHAgeHH25to44yrs",{"$f":"\"MOE \"&BT115","v":"MOE HHAgeHH25to44yrs"},"HHAgeHH25To44yrsHHInc<10K",{"$f":"\"MOE \"&BV115","v":"MOE HHAgeHH25To44yrsHHInc<10K"},"HHAgeHH25To44yrsHHInc10to15K",{"$f":"\"MOE \"&BX115","v":"MOE HHAgeHH25To44yrsHHInc10to15K"},"HHAgeHH25To44yrsHHInc15to20K",{"$f":"\"MOE \"&BZ115","v":"MOE HHAgeHH25To44yrsHHInc15to20K"},"HHAgeHH25To44yrsHHInc20to25K",{"$f":"\"MOE \"&CB115","v":"MOE HHAgeHH25To44yrsHHInc20to25K"},"HHAgeHH25To44yrsHHInc25to30K",{"$f":"\"MOE \"&CD115","v":"MOE HHAgeHH25To44yrsHHInc25to30K"},"HHAgeHH25To44yrsHHInc30to35K",{"$f":"\"MOE \"&CF115","v":"MOE HHAgeHH25To44yrsHHInc30to35K"},"HHAgeHH25To44yrsHHInc35to40K",{"$f":"\"MOE \"&CH115","v":"MOE HHAgeHH25To44yrsHHInc35to40K"},"HHAgeHH25To44yrsHHInc40to45K",{"$f":"\"MOE \"&CJ115","v":"MOE HHAgeHH25To44yrsHHInc40to45K"},"HHAgeHH25To44yrsHHInc45to50K",{"$f":"\"MOE \"&CL115","v":"MOE HHAgeHH25To44yrsHHInc45to50K"},"HHAgeHH25To44yrsHHInc50to60K",{"$f":"\"MOE \"&CN115","v":"MOE HHAgeHH25To44yrsHHInc50to60K"},"HHAgeHH25To44yrsHHInc60to75K",{"$f":"\"MOE \"&CP115","v":"MOE HHAgeHH25To44yrsHHInc60to75K"},"HHAgeHH25To44yrsHHInc75to100K",{"$f":"\"MOE \"&CR115","v":"MOE HHAgeHH25To44yrsHHInc75to100K"},"HHAgeHH25To44yrsHHInc100to125K",{"$f":"\"MOE \"&CT115","v":"MOE HHAgeHH25To44yrsHHInc100to125K"},"HHAgeHH25To44yrsHHInc125to150K",{"$f":"\"MOE \"&CV115","v":"MOE HHAgeHH25To44yrsHHInc125to150K"},"HHAgeHH25To44yrsHHInc150to200K",{"$f":"\"MOE \"&CX115","v":"MOE HHAgeHH25To44yrsHHInc150to200K"},"HHAge25To44yrsHHInc>200K",{"$f":"\"MOE \"&CZ115","v":"MOE HHAge25To44yrsHHInc>200K"},"HHAgeHH45To64yrs",{"$f":"\"MOE \"&DB115","v":"MOE HHAgeHH45To64yrs"},"HHAgeHH45To64yrsHHInc<10K",{"$f":"\"MOE \"&DD115","v":"MOE HHAgeHH45To64yrsHHInc<10K"},"HHAgeHH45To64yrsHHInc10to15K",{"$f":"\"MOE \"&DF115","v":"MOE HHAgeHH45To64yrsHHInc10to15K"},"HHAgeHH45To64yrsHHInc15to20K",{"$f":"\"MOE \"&DH115","v":"MOE HHAgeHH45To64yrsHHInc15to20K"},"HHAgeHH45To64yrsHHInc20to25K",{"$f":"\"MOE \"&DJ115","v":"MOE HHAgeHH45To64yrsHHInc20to25K"},"HHAgeHH45To64yrsHHInc25to30K",{"$f":"\"MOE \"&DL115","v":"MOE HHAgeHH45To64yrsHHInc25to30K"},"HHAgeHH45To64yrsHHInc30to35K",{"$f":"\"MOE \"&DN115","v":"MOE HHAgeHH45To64yrsHHInc30to35K"},"HHAgeHH45To64yrsHHInc35to40K",{"$f":"\"MOE \"&DP115","v":"MOE HHAgeHH45To64yrsHHInc35to40K"},"HHAgeHH45To64yrsHHInc40to45K",{"$f":"\"MOE \"&DR115","v":"MOE HHAgeHH45To64yrsHHInc40to45K"},"HHAgeHH45To64yrsHHInc45to50K",{"$f":"\"MOE \"&DT115","v":"MOE HHAgeHH45To64yrsHHInc45to50K"},"HHAgeHH45To64yrsHHInc50to60K",{"$f":"\"MOE \"&DV115","v":"MOE HHAgeHH45To64yrsHHInc50to60K"},"HHAgeHH45To64yrsHHInc60to75K",{"$f":"\"MOE \"&DX115","v":"MOE HHAgeHH45To64yrsHHInc60to75K"},"HHAgeHH45To64yrsHHInc75to100K",{"$f":"\"MOE \"&DZ115","v":"MOE HHAgeHH45To64yrsHHInc75to100K"},"HHAgeHH45To64yrsHHInc100to125K",{"$f":"\"MOE \"&EB115","v":"MOE HHAgeHH45To64yrsHHInc100to125K"},"HHAgeHH45To64yrsHHInc125to150K",{"$f":"\"MOE \"&ED115","v":"MOE HHAgeHH45To64yrsHHInc125to150K"},"HHAgeHH45To64yrsHHInc150to200K",{"$f":"\"MOE \"&EF115","v":"MOE HHAgeHH45To64yrsHHInc150to200K"},"HHAge45To64yrsHHInc>200K",{"$f":"\"MOE \"&EH115","v":"MOE HHAge45To64yrsHHInc>200K"},"HHAgeHH65yrsorOlder",{"$f":"\"MOE \"&EJ115","v":"MOE HHAgeHH65yrsorOlder"},"HHAgeHH65yrsorOlderHHInc<10K",{"$f":"\"MOE \"&EL115","v":"MOE HHAgeHH65yrsorOlderHHInc<10K"},"HHAgeHH65yrsorOlderHHInc10to15K",{"$f":"\"MOE \"&EN115","v":"MOE HHAgeHH65yrsorOlderHHInc10to15K"},"HHAgeHH65yrsorOlderHHInc15to20K",{"$f":"\"MOE \"&EP115","v":"MOE HHAgeHH65yrsorOlderHHInc15to20K"},"HHAgeHH65yrsorOlderHHInc20to25K",{"$f":"\"MOE \"&ER115","v":"MOE HHAgeHH65yrsorOlderHHInc20to25K"},"HHAgeHH65yrsorOlderHHInc25to30K",{"$f":"\"MOE \"&ET115","v":"MOE HHAgeHH65yrsorOlderHHInc25to30K"},"HHAgeHH65yrsorOlderHHInc30to35K",{"$f":"\"MOE \"&EV115","v":"MOE HHAgeHH65yrsorOlderHHInc30to35K"},"HHAgeHH65yrsorOlderHHInc35to40K",{"$f":"\"MOE \"&EX115","v":"MOE HHAgeHH65yrsorOlderHHInc35to40K"},"HHAgeHH65yrsorOlderHHInc40to45K",{"$f":"\"MOE \"&EZ115","v":"MOE HHAgeHH65yrsorOlderHHInc40to45K"},"HHAgeHH65yrsorOlderHHInc45to50K",{"$f":"\"MOE \"&FB115","v":"MOE HHAgeHH65yrsorOlderHHInc45to50K"},"HHAgeHH65yrsorOlderHHInc50to60K",{"$f":"\"MOE \"&FD115","v":"MOE HHAgeHH65yrsorOlderHHInc50to60K"},"HHAgeHH65yrsorOlderHHInc60to75K",{"$f":"\"MOE \"&FF115","v":"MOE HHAgeHH65yrsorOlderHHInc60to75K"},"HHAgeHH65yrsorOlderHHInc75to100K",{"$f":"\"MOE \"&FH115","v":"MOE HHAgeHH65yrsorOlderHHInc75to100K"},"HHAgeHH65yrsorOlderHHInc100to125K",{"$f":"\"MOE \"&FJ115","v":"MOE HHAgeHH65yrsorOlderHHInc100to125K"},"HHAgeHH65yrsorOlderHHInc125to150K",{"$f":"\"MOE \"&FL115","v":"MOE HHAgeHH65yrsorOlderHHInc125to150K"},"HHAgeHH65yrsorOlderHHInc150to200K",{"$f":"\"MOE \"&FN115","v":"MOE HHAgeHH65yrsorOlderHHInc150to200K"},"HHAge65yrsorOlderHHInc>200K",{"$f":"\"MOE \"&FP115","v":"MOE HHAge65yrsorOlderHHInc>200K"},"MedianHHInc",{"$f":"\"MOE \"&FR115","v":"MOE MedianHHInc"},"HH under 25 years",{"$f":"\"MOE \"&FT115","v":"MOE HH under 25 years"},"Householder 25 to 44 years",{"$f":"\"MOE \"&FV115","v":"MOE Householder 25 to 44 years"},"Householder 45 to 64 years",{"$f":"\"MOE \"&FX115","v":"MOE Householder 45 to 64 years"},"Householder 65 years and over",{"$f":"\"MOE \"&FZ115","v":"MOE Householder 65 years and over"}]
[{"$f":"VLOOKUP(DropDownList!$B$47,CntyQryCensus!$A$530:$AY$544,A$1)","v":"Grantham"},1119,80,9,15,20,24,9,13,14,14,6,8,25,32,100,49,33,21,56,34,44,24,125,51,194,71,157,58,170,63,77,46,80,38,1119,80,0,11,0,11,0,11,0,11,0,11,0,11,0,11,0,11,0,11,0,11,0,11,0,11,0,11,0,11,0,11,0,11,0,11,300,68,0,11,0,11,0,11,0,11,0,11,19,30,12,19,12,20,21,24,0,11,17,28,58,51,37,35,73,45,30,26,21,17,492,74,9,15,0,11,0,11,7,10,6,8,0,11,57,37,7,10,18,27,14,14,61,34,106,49,74,40,63,31,25,25,45,29,327,60,0,11,20,24,9,13,7,10,0,11,6,9,31,29,14,13,17,18,30,20,47,33,30,24,46,36,34,32,22,28,14,14,89157,7657,"-","**",115909,28184,88083,9651,69583,17250]
[]
["Number of Households by Income"]
["NAME","HHIncLessThn10k",{"$f":"\"MOE \"&B119","v":"MOE HHIncLessThn10k"},"HHInc10to15K",{"$f":"\"MOE \"&D119","v":"MOE HHInc10to15K"},"HHInc15to25K",{"$f":"\"MOE \"&F119","v":"MOE HHInc15to25K"},"HHInc25to35K",{"$f":"\"MOE \"&H119","v":"MOE HHInc25to35K"},"HHInc35to50K",{"$f":"\"MOE \"&J119","v":"MOE HHInc35to50K"},"HHInc50to75K",{"$f":"\"MOE \"&L119","v":"MOE HHInc50to75K"},"HHInc75to100K",{"$f":"\"MOE \"&N119","v":"MOE HHInc75to100K"},"HHInc100to150K",{"$f":"\"MOE \"&P119","v":"MOE HHInc100to150K"},"HHInc150to200K",{"$f":"\"MOE \"&R119","v":"MOE HHInc150to200K"},"HHIncOver200K",{"$f":"\"MOE \"&T119","v":"MOE HHIncOver200K"}]
[{"$f":"VLOOKUP(DropDownList!$B$47,CntyQryCensus!$A$530:$AY$544,A$1)","v":"Grantham"},9,15,20,24,23,19.104973174542799,31,32.984845004941285,189,63.229739838148944,169,56.36488268416781,194,71,327,85.632937588290176,77,46,80,38,112,50,167,63,261,67,126,55,62,42,63,37,null,null,null,null,null,null,null,null,null,null,null,null,null,null,null,null,null,null,null,null,null,null,null,null,null,null,null,null,null,null,null,null,null,null,null,null,null,null,null,null,null,71,144,93,171,118,131,100,66,49,292,122,333,132,307,97,186,97,22,28,12,20,0,16,null,null,null,null,null,null,null,null,null,null,null,null,null,null,"Charlestown",null,"Estimate","Margin Of Error",2310,107,null,null,133,93,71,53,340,130.81666560496029,246,117.00427342623003,368,162.24980739587951,625,179.74426277353055,307,97,208,100.96038827183659,12,20,0,16]
[]
["POVERTY DATA"]
["NAME","TotalPop",{"$f":"\"MOE \"&B123","v":"MOE TotalPop"},"Total Individuals living in Poverty",{"$f":"\"MOE \"&D123","v":"MOE Total Individuals living in Poverty"},"Under 5 yrs.",{"$f":"\"MOE \"&F123","v":"MOE Under 5 yrs."},"5 to 17 yrs.",{"$f":"\"MOE \"&H123","v":"MOE 5 to 17 yrs."},"18 to 64 yrs.",{"$f":"\"MOE \"&J123","v":"MOE 18 to 64 yrs."},"65 to 74 yrs.",{"$f":"\"MOE \"&L123","v":"MOE 65 to 74 yrs."},"75 yrs. & Over",{"$f":"\"MOE \"&N123","v":"MOE 75 yrs. & Over"},"Total Individuals  Not living Poverty",{"$f":"\"MOE \"&P123","v":"MOE Total Individuals  Not living Poverty"},"Under 5 yrs.",{"$f":"\"MOE \"&R123","v":"MOE Under 5 yrs."},"5 to 17 yrs.",{"$f":"\"MOE \"&T123","v":"MOE 5 to 17 yrs."},"18 to 64 yrs.",{"$f":"\"MOE \"&V123","v":"MOE 18 to 64 yrs."},"65 to 74 yrs.",{"$f":"\"MOE \"&X123","v":"MOE 65 to 74 yrs."},"75 yrs. & Over",{"$f":"\"MOE \"&Z123","v":"MOE 75 yrs. & Over"},"Total HH",{"$f":"\"MOE \"&AB123","v":"MOE Total HH"},"Total Households Below Poverty",{"$f":"\"MOE \"&AD123","v":"MOE Total Households Below Poverty"},"Family Households in Poverty",{"$f":"\"MOE \"&AF123","v":"MOE Family Households in Poverty"},"Married Couple Fam HH",{"$f":"\"MOE \"&AH123","v":"MOE Married Couple Fam HH"},"Other Family",{"$f":"\"MOE \"&AJ123","v":"MOE Other Family"},"Male Head of Family HH no wife",{"$f":"\"MOE \"&AL123","v":"MOE Male Head of Family HH no wife"},"Female Head of Family HH no husband",{"$f":"\"MOE \"&AN123","v":"MOE Female Head of Family HH no husband"},"Non-Family HH",{"$f":"\"MOE \"&AP123","v":"MOE Non-Family HH"},"Non-Family Male HH",{"$f":"\"MOE \"&AR123","v":"MOE Non-Family Male HH"},"Non-Family Female HH",{"$f":"\"MOE \"&AT123","v":"MOE Non-Family Female HH"},"Total Households at or Above Poverty",{"$f":"\"MOE \"&AV123","v":"MOE Total Households at or Above Poverty"},"Family Households above Poverty",{"$f":"\"MOE \"&AX123","v":"MOE Family Households above Poverty"},"Married Couple Fam HH",{"$f":"\"MOE \"&AZ123","v":"MOE Married Couple Fam HH"},"Other Family",{"$f":"\"MOE \"&BB123","v":"MOE Other Family"},"Male Head of Family HH no wife",{"$f":"\"MOE \"&BD123","v":"MOE Male Head of Family HH no wife"},"Female Head of Family HH no husband",{"$f":"\"MOE \"&BF123","v":"MOE Female Head of Family HH no husband"},"Non-Family HH",{"$f":"\"MOE \"&BH123","v":"MOE Non-Family HH"},"Non-Family Male HH",{"$f":"\"MOE \"&BJ123","v":"MOE Non-Family Male HH"},"Non-Family Female HH",{"$f":"\"MOE \"&BL123","v":"MOE Non-Family Female HH"},"Married Couple with Children Below Poverty",{"$f":"\"MOE \"&BN123","v":"MOE Married Couple with Children Below Poverty"},"Male HH with children below poverty",{"$f":"\"MOE \"&BP123","v":"MOE Male HH with children below poverty"},"Female HH with children below poverty",{"$f":"\"MOE \"&BR123","v":"MOE Female HH with children below poverty"},"Married Couple with Children At or Above Poverty",{"$f":"\"MOE \"&BT123","v":"MOE Married Couple with Children At or Above Poverty"},"Male HH with children at or above poverty",{"$f":"\"MOE \"&BV123","v":"MOE Male HH with children at or above poverty"},"Female HH with children at or above poverty",{"$f":"\"MOE \"&BX123","v":"MOE Female HH with children at or above poverty"}]
[{"$f":"VLOOKUP(DropDownList!$B$47,CntyQryCensus!$A$530:$AY$544,A$1)","v":"Grantham"},3349,23,161,113,8,17.029386365926403,26,42.871902220452036,127,95.310020459550842,0,15.556349186104045,0,15.556349186104045,3188,114,75,57.974132162542979,525,148.13169816079204,1860,240.29357045081335,458,107.48953437428223,904,155,1458,100,61,56,8,13,0,11,8,13,0,11,8,13,53,54,53,54,0,11,1397,107,1026,79,872,102,154,87,83,82,71,41,371,123,205,103,166,79,0,11,0,11,8,13,236,67,83,82,32,28]
[]
["Household Income By Tenure"]
["NAME","TotalOccHU",{"$f":"\"MOE \"&B127","v":"MOE TotalOccHU"},"OwnOccHU",{"$f":"\"MOE \"&D127","v":"MOE OwnOccHU"},"OOHUInc<5K",{"$f":"\"MOE \"&F127","v":"MOE OOHUInc<5K"},"OOHUInc5to10K",{"$f":"\"MOE \"&H127","v":"MOE OOHUInc5to10K"},"OOHUInc10to15K",{"$f":"\"MOE \"&J127","v":"MOE OOHUInc10to15K"},"OOHUInc15to20K",{"$f":"\"MOE \"&L127","v":"MOE OOHUInc15to20K"},"OOHUInc20to25K",{"$f":"\"MOE \"&N127","v":"MOE OOHUInc20to25K"},"OOHUInc25to35K",{"$f":"\"MOE \"&P127","v":"MOE OOHUInc25to35K"},"OOHUInc35to50K",{"$f":"\"MOE \"&R127","v":"MOE OOHUInc35to50K"},"OOHUInc50to75K",{"$f":"\"MOE \"&T127","v":"MOE OOHUInc50to75K"},"OOHUInc75to100K",{"$f":"\"MOE \"&V127","v":"MOE OOHUInc75to100K"},"OOHUInc100to150K",{"$f":"\"MOE \"&X127","v":"MOE OOHUInc100to150K"},"OOHUInc>150K",{"$f":"\"MOE \"&Z127","v":"MOE OOHUInc>150K"},"RentOccHU",{"$f":"\"MOE \"&AB127","v":"MOE RentOccHU"},"ROHUInc<5K",{"$f":"\"MOE \"&AD127","v":"MOE ROHUInc<5K"},"ROHUInc5to10K",{"$f":"\"MOE \"&AF127","v":"MOE ROHUInc5to10K"},"ROHUInc10to15K",{"$f":"\"MOE \"&AH127","v":"MOE ROHUInc10to15K"},"ROHUInc15to20K",{"$f":"\"MOE \"&AJ127","v":"MOE ROHUInc15to20K"},"ROHUInc20to25K",{"$f":"\"MOE \"&AL127","v":"MOE ROHUInc20to25K"},"ROHUInc25to35K",{"$f":"\"MOE \"&AN127","v":"MOE ROHUInc25to35K"},"ROHUInc35to50K",{"$f":"\"MOE \"&AP127","v":"MOE ROHUInc35to50K"},"ROHUInc50to75K",{"$f":"\"MOE \"&AR127","v":"MOE ROHUInc50to75K"},"ROHUInc75to100K",{"$f":"\"MOE \"&AT127","v":"MOE ROHUInc75to100K"},"ROHUInc100to150K",{"$f":"\"MOE \"&AV127","v":"MOE ROHUInc100to150K"},"ROHUInc>150K",{"$f":"\"MOE \"&AX127","v":"MOE ROHUInc>150K"},"Total OCC HUInc<5K",{"$f":"\"MOE \"&AZ127","v":"MOE Total OCC HUInc<5K"},"Total OCC HUInc5to10K",{"$f":"\"MOE \"&BB127","v":"MOE Total OCC HUInc5to10K"},"Total OCC HUInc10to15K",{"$f":"\"MOE \"&BD127","v":"MOE Total OCC HUInc10to15K"},"Total OCC HUInc15to20K",{"$f":"\"MOE \"&BF127","v":"MOE Total OCC HUInc15to20K"},"Total OCC HUInc20to25K",{"$f":"\"MOE \"&BH127","v":"MOE Total OCC HUInc20to25K"},"Total OCC HUInc25to35K",{"$f":"\"MOE \"&BJ127","v":"MOE Total OCC HUInc25to35K"},"Total OCC HUInc35to50K",{"$f":"\"MOE \"&BL127","v":"MOE Total OCC HUInc35to50K"},"Total OCC HUInc50to75K",{"$f":"\"MOE \"&BN127","v":"MOE Total OCC HUInc50to75K"},"Total OCC HUInc75to100K",{"$f":"\"MOE \"&BP127","v":"MOE Total OCC HUInc75to100K"},"Total OCC HUInc100to150K",{"$f":"\"MOE \"&BR127","v":"MOE Total OCC HUInc100to150K"},"Total OCC HUInc>150K",{"$f":"\"MOE \"&BT127","v":"MOE Total OCC HUInc>150K"},"MedHHInc",{"$f":"\"MOE \"&BV127","v":"MOE MedHHInc"},"MedOwnOccHHInc",{"$f":"\"MOE \"&BX127","v":"MOE MedOwnOccHHInc"},"MedRentOccHHInc",{"$f":"\"MOE \"&BZ127","v":"MOE MedRentOccHHInc"}]
[{"$f":"VLOOKUP(DropDownList!$B$47,CntyQryCensus!$A$530:$AY$544,A$1)","v":"Grantham"},1119,80,1003,96,9,15,0,11,20,24,9,13,14,14,31,33,153,58,152,50,182,66,276,76,157,57,116,57,0,11,0,11,0,11,0,11,0,11,0,11,36,33,17,28,12,18,51,40,0,11,9,18.601075237738275,0,15.556349186104045,20,26.40075756488817,9,17.029386365926403,14,17.804493814764857,31,34.785054261852174,189,66.730802482811484,169,57.30619512757761,194,68.410525505948286,327,85.883642214335552,157,58.051701094799967,89157,7657,89564,7633,76042,51462]
[]
["Population Data"]
["NAME","Total Population","MOE Total Population","Under 15 Years","MOE Under 15 yrs.","15 to 24 yrs.","MOE 15 to 24 yrs.","25 to 34 yrs.","MOE 25 to 34 yrs.","35 to 44 yrs.","MOE 35 to 44 yrs.","45 to 54 yrs.","MOE 45 to 54 yrs.","55 to 64 yrs.","MOE 55 to 64 yrs.","65 to 74 yrs.","MOE 65 to 74 yrs.","Over 74 yrs. ","MOE Over 74 yrs. ","TotalHH","MOE TotalHH","FamilyHH","MOE FamilyHH","MarriedFamilyHH","MOE MarriedFamilyHH","SingleFamilyHH","MOE SingleFamilyHH","Sfamily-MaleHH","MOE Sfamily-MaleHH","Sfamily-FemaleHH","MOE Sfamily-FemaleHH","NonFamilyHH","MOE NonFamilyHH","NonFamilyHH-LivingAlone","MOE NonFamilyHH-LivingAlone","NonFamilyHH-NotLivingAlone","MOE NonFamilyHH-NotLivingAlone","PopRaceWhite","MOE PopRaceWhite","PopRaceBlack","MOE PopRaceBlack","PopRaceAmerican Indian","MOE PopRaceAmerican Indian","PopRaceAsian &Pacific Is.","MOE PopRaceAsian &Pacific Is.","PopRaceOther*","MOE PopRaceOther*","PopRaceHispanic or Latino:","MOE PopRaceHispanic or Latino:","MedianAgeTotalPop","MOE MedianAgeTotalPop","MedianAgeMale","MOE MedianAgeMale","MedianAgeFemale","MOE MedianAgeFemale","AvgHHSizeTotal","MOE AvgHHSizeTotal","AvgHHSizeFamilyHH","MOE AvgHHSizeFamilyHH","AvgHHSizeNonFamilyHH","MOE AvgHHSizeNonFamilyHH"]
[{"$f":"VLOOKUP(DropDownList!$B$47,CntyQryCensus!$A$530:$AY$544,A$1)","v":"Grantham"},13304,16,2477,286.22543562723422,1510,222.89683712426248,1680,220.28617750553482,1714,247.53787588973125,2050,214.61360627881913,1748,219.81128269495176,1030,163.76812876747417,1095,162.95091285414759,13185,65,10610,353,6949,700,6913,697,36,32,1189,451,1000,370,189,96,2472,635,13020,139,40,34,0,18,24,32.449961479175904,88,82.292162445763935,132,89,41.5,1.9,40.700000000000003,1.9,42.4,2.2999999999999998,2.2999999999999998,0.1,2.42,0.11,2.13,0.17,null,null,null,null,null,null,null,null,null,null,null,null,null,null,null,null,null,null,null,33,160,112,164,81,200,109,64,70,127,82,116,79,190,121,116,81,181,91,117,75,55,49,139,96,91,59,73,63,84,72,null,null,null,null,null,null,null,null,null,null,null,null,null,null,null,null,null,null,null,null,null,null,null,null,null,null,null,null,null,null,null,null,null,null,"Charlestown",null,"Estimate","Margin Of Error",5019,17,1004,224.53062151964929,304,132.66876045248935,631,193.38303958723992,568,187.2378166931029,540,178.95809565370325,974,226.13933757752099,547,174.43623476789449,451,158.43295111813072]
[]
["Nativity and Prior Place of Residence"]
["NAME","TotalPop",{"$f":"\"MOE \"&B135","v":"MOE TotalPop"},"Native:",{"$f":"\"MOE \"&D135","v":"MOE Native:"},"NatBornInStateOfResidence",{"$f":"\"MOE \"&F135","v":"MOE NatBornInStateOfResidence"},"Born in other state in the United States:",{"$f":"\"MOE \"&H135","v":"MOE Born in other state in the United States:"},"Northeast",{"$f":"\"MOE \"&J135","v":"MOE Northeast"},"Midwest",{"$f":"\"MOE \"&L135","v":"MOE Midwest"},"South",{"$f":"\"MOE \"&N135","v":"MOE South"},"West",{"$f":"\"MOE \"&P135","v":"MOE West"},"Born outside the United States:",{"$f":"\"MOE \"&R135","v":"MOE Born outside the United States:"},"Puerto Rico",{"$f":"\"MOE \"&T135","v":"MOE Puerto Rico"},"U.S. Island Areas",{"$f":"\"MOE \"&V135","v":"MOE U.S. Island Areas"},"Born abroad of American parent(s)",{"$f":"\"MOE \"&X135","v":"MOE Born abroad of American parent(s)"},"Foreign born:",{"$f":"\"MOE \"&Z135","v":"MOE Foreign born:"},"Naturalized U.S. citizen",{"$f":"\"MOE \"&AB135","v":"MOE Naturalized U.S. citizen"},"Not a U.S. citizen",{"$f":"\"MOE \"&AD135","v":"MOE Not a U.S. citizen"},"CurrentResidenceTotal:",{"$f":"\"MOE \"&AF135","v":"MOE CurrentResidenceTotal:"},"SameHouse:",{"$f":"\"MOE \"&AH135","v":"MOE SameHouse:"},"DifferentHouse:",{"$f":"\"MOE \"&AJ135","v":"MOE DifferentHouse:"},"DiffHouseInNH",{"$f":"\"MOE \"&AL135","v":"MOE DiffHouseInNH"},"DiffHouseInNHSameCnty",{"$f":"\"MOE \"&AN135","v":"MOE DiffHouseInNHSameCnty"},"DiffHouseInNHDiffCnty",{"$f":"\"MOE \"&AP135","v":"MOE DiffHouseInNHDiffCnty"},"DiffHouseInDiffState",{"$f":"\"MOE \"&AR135","v":"MOE DiffHouseInDiffState"},"DiffHouseInElsewhere",{"$f":"\"MOE \"&AT135","v":"MOE DiffHouseInElsewhere"}]
[{"$f":"VLOOKUP(DropDownList!$B$47,CntyQryCensus!$A$530:$AY$544,A$1)","v":"Grantham"},13304,16,13061,99,7509,440,5498,441,4472,433,252,95,431,143,343,133,54,41,0,18,0,18,54,41,243,99,166,88,77,56,13173,78,10816,612,2357,597.16245695790349,2090,570.20171869260446,1432,341,658,457,259,177,8,12]
[]
["School Enrollment - Education"]
["NAME","Total Pop 3 Years and Older","MOE Total Pop 3 Years and Older","SchEnrlPop3yrOver",{"$f":"\"MOE \"&D139","v":"MOE SchEnrlPop3yrOver"},"TotalEnrollNursy&Kinder",{"$f":"\"MOE \"&F139","v":"MOE TotalEnrollNursy&Kinder"},"NurserSchEnrl",{"$f":"\"MOE \"&H139","v":"MOE NurserSchEnrl"},"KinderSchEnrl",{"$f":"\"MOE \"&J139","v":"MOE KinderSchEnrl"},"ElemSchEnrl (1-8)",{"$f":"\"MOE \"&L139","v":"MOE ElemSchEnrl (1-8)"},"HighSchEnrl(9-12)",{"$f":"\"MOE \"&N139","v":"MOE HighSchEnrl(9-12)"},"TotalElementry&HSEnroll",{"$f":"\"MOE \"&P139","v":"MOE TotalElementry&HSEnroll"},"CollGradSchEnrl",{"$f":"\"MOE \"&R139","v":"MOE CollGradSchEnrl"},"PopNotEnrolled","MOE PopNotEnrolled","Pop25yrsOver",{"$f":"\"MOE \"&V139","v":"MOE Pop25yrsOver"},"EduAtain<9grd",{"$f":"\"MOE \"&X139","v":"MOE EduAtain<9grd"},"EduAtainHSnoDip",{"$f":"\"MOE \"&Z139","v":"MOE EduAtainHSnoDip"},"EduAtainHSgrad",{"$f":"\"MOE \"&AB139","v":"MOE EduAtainHSgrad"},"EduAtainCollNoDeg",{"$f":"\"MOE \"&AD139","v":"MOE EduAtainCollNoDeg"},"EduAtainAssocDeg",{"$f":"\"MOE \"&AF139","v":"MOE EduAtainAssocDeg"},"EduAtainBachDeg",{"$f":"\"MOE \"&AH139","v":"MOE EduAtainBachDeg"},"EduAtainGradProfDeg",{"$f":"\"MOE \"&AJ139","v":"MOE EduAtainGradProfDeg"}]
[{"$f":"VLOOKUP(DropDownList!$B$47,CntyQryCensus!$A$530:$AY$544,A$1)","v":"Grantham"},2457,226,641,130,52,28.284271247461902,25,20,27,20,302,77.077882690172544,109,55,411,94.688964510126524,178,61.773780845922005,1816,167,1802,168,43,125.03999360204718,49,173.46181135915768,392,79.39773296511683,349,81.706792863261981,104,50.931326312987373,543,106.96261028976434,156,102.81536850101739]
[]
["Occupied Owner Housing Value"]
["NAME","Estimate; Total:","Margin of Error; Total:","Estimate; Total: - Less than $10,000","Margin of Error; Total: - Less than $10,000","Estimate; Total: - $10,000 to $14,999","Margin of Error; Total: - $10,000 to $14,999","Estimate; Total: - $15,000 to $19,999","Margin of Error; Total: - $15,000 to $19,999","Estimate; Total: - $20,000 to $24,999","Margin of Error; Total: - $20,000 to $24,999","Estimate; Total: - $25,000 to $29,999","Margin of Error; Total: - $25,000 to $29,999","Estimate; Total: - $30,000 to $34,999","Margin of Error; Total: - $30,000 to $34,999","Estimate; Total: - $35,000 to $39,999","Margin of Error; Total: - $35,000 to $39,999","Estimate; Total: - $40,000 to $49,999","Margin of Error; Total: - $40,000 to $49,999","Estimate; Total: - $50,000 to $59,999","Margin of Error; Total: - $50,000 to $59,999","Estimate; Total: - $60,000 to $69,999","Margin of Error; Total: - $60,000 to $69,999","Estimate; Total: - $70,000 to $79,999","Margin of Error; Total: - $70,000 to $79,999","Estimate; Total: - $80,000 to $89,999","Margin of Error; Total: - $80,000 to $89,999","Estimate; Total: - $90,000 to $99,999","Margin of Error; Total: - $90,000 to $99,999","Estimate; Total: - $100,000 to $124,999","Margin of Error; Total: - $100,000 to $124,999","Estimate; Total: - $125,000 to $149,999","Margin of Error; Total: - $125,000 to $149,999","Estimate; Total: - $150,000 to $174,999","Margin of Error; Total: - $150,000 to $174,999","Estimate; Total: - $175,000 to $199,999","Margin of Error; Total: - $175,000 to $199,999","Estimate; Total: - $200,000 to $249,999","Margin of Error; Total: - $200,000 to $249,999","Estimate; Total: - $250,000 to $299,999","Margin of Error; Total: - $250,000 to $299,999","Estimate; Total: - $300,000 to $399,999","Margin of Error; Total: - $300,000 to $399,999","Estimate; Total: - $400,000 to $499,999","Margin of Error; Total: - $400,000 to $499,999","Estimate; Total: - $500,000 to $749,999","Margin of Error; Total: - $500,000 to $749,999","Estimate; Total: - $750,000 to $999,999","Margin of Error; Total: - $750,000 to $999,999","Estimate; Total: - $1,000,000 to $1,499,999","Margin of Error; Total: - $1,000,000 to $1,499,999","Estimate; Total: - $1,500,000 to $1,999,999","Margin of Error; Total: - $1,500,000 to $1,999,999","Estimate; Total: - $2,000,000 or more","Margin of Error; Total: - $2,000,000 or more","MedianOwnOCCHomeValue","MOE MedianOwnOCCHomeValue","OnwerOccHsU","MOE OnwerOccHsU","OwnerCosts>20PctHHInc","MOE OwnerCosts>20PctHHInc","OwnerCosts20to29.9PctHHInc","MOE OwnerCosts20to29.9PctHHInc","OwnerCosts<30PctHHInc","MOE OwnerCosts<30PctHHInc","OwnerCosts>30PctHHInc","MOE OwnerCosts>30PctHHInc","OwnerCosts30to34.9PctHHInc","MOE OwnerCosts30to34.9PctHHInc","OwnerCosts<35PctHHInc","MOE OwnerCosts<35PctHHInc","OwnerCosts>35PctHHInc","MOE OwnerCosts>35PctHHInc","OwnerCosts>50PctHHInc","MOE OwnerCosts>50PctHHInc","OwnerCostsPctNotcomputed","MOE OwnerCostsPctNotcomputed","OwnerOHUHhInc<20k","MOE OwnerOHUHhInc<20k","OwnerOHUHhInc<20kHCosts<20pct","MOE OwnerOHUHhInc<20kHCosts<20pct","OwnerOHUHhInc<20kHCosts20to29pct","MOE OwnerOHUHhInc<20kHCosts20to29pct","OwnerOHUHhInc>20kHCosts30pct","MOE OwnerOHUHhInc>20kHCosts30pct","OwnerOHUHhInc20kTo34999","MOE OwnerOHUHhInc20kTo34999","OwnerOHUHhInc20kTo34999HCosts<20pct","MOE OwnerOHUHhInc20kTo34999HCosts<20pct","OwnerOHUHhInc20kTo34999HCosts20to29pct","MOE OwnerOHUHhInc20kTo34999HCosts20to29pct","OwnerOHUHhInc20kTo34999HCosts30pct","MOE OwnerOHUHhInc20kTo34999HCosts30pct","OwnerOHUHhInc35kTo49999","MOE OwnerOHUHhInc35kTo49999","OwnerOHUHhInc35kTo49999HCosts<20pct","MOE OwnerOHUHhInc35kTo49999HCosts<20pct","OwnerOHUHhInc35kTo49999HCosts20to29pct","MOE OwnerOHUHhInc35kTo49999HCosts20to29pct","OwnerOHUHhInc35kTo49999HCosts30pct","MOE OwnerOHUHhInc35kTo49999HCosts30pct","OwnerOHUHhInc50kTo74999","MOE OwnerOHUHhInc50kTo74999","OwnerOHUHhInc50kTo74999HCosts<20pct","MOE OwnerOHUHhInc50kTo74999HCosts<20pct","OwnerOHUHhInc50kTo74999HCosts20to29pct","MOE OwnerOHUHhInc50kTo74999HCosts20to29pct","OwnerOHUHhInc50kTo74999HCosts30pct","MOE OwnerOHUHhInc50kTo74999HCosts30pct","OwnerOHUHhInc>75000","MOE OwnerOHUHhInc>75000","OwnerOHUHhInc>75000HCosts<20pct","MOE OwnerOHUHhInc>75000HCosts<20pct","OwnerOHUHhInc>75000HCosts20to29pct","MOE OwnerOHUHhInc>75000HCosts20to29pct","OwnerOHUHhInc>75000HCosts30pct","MOE OwnerOHUHhInc>75000HCosts30pct","ZeroOrNegativeIncome","MOE ZeroOrNegativeIncome"]
[{"$f":"VLOOKUP(DropDownList!$B$47,CntyQryCensus!$A$530:$AY$544,A$1)","v":"Grantham"},3282,242,53,56,16,19,51,44,10,16,52,39,16,25,0,85,50,34,26,30,71,58,128,65,113,76,179,81,327,100,634,146,592,150,347,122,289,104,132,72,164,96,10,16,16,19,0,85,6,11,null,null,null,null,146600,6257,3282,242,1222,210.89807964986309,934,193.11654512236905,2156,285.95803887983288,1106,220.60598359972016,302,110.60289327137876,2458,306.6023483276017,804,190.87692369692047,369,136.70405992508049,20,88.056799851005266,391,129,55,58,33,27,303,112,508,142,77,47,104,67,327,127,561,130,153,70,169,71,239,117,745,159,277,85,315,121,153,88,1057,168,660,145,313,107,84,52,20,23,2485,259]
[]
["Occupied Rental Housing Value"]
["NAME","RntrOccHU","MOE RntrOccHU","RntrOccHUwRent","MOE RntrOccHUwRent","ROHUGRent<100","MOE ROHUGRent<100","ROHUGRent100to149","MOE ROHUGRent100to149","ROHUGRent150to199","MOE ROHUGRent150to199","ROHUGRent200to249","MOE ROHUGRent200to249","ROHUGRent250to299","MOE ROHUGRent250to299","ROHUGRent300to349","MOE ROHUGRent300to349","ROHUGRent350to399","MOE ROHUGRent350to399","ROHUGRent400to449","MOE ROHUGRent400to449","ROHUGRent450to499","MOE ROHUGRent450to499","ROHUGRent500to549","MOE ROHUGRent500to549","ROHUGRent550to599","MOE ROHUGRent550to599","ROHUGRent600to649","MOE ROHUGRent600to649","ROHUGRent650to699","MOE ROHUGRent650to699","ROHUGRent700to749","MOE ROHUGRent700to749","ROHUGRent750to799","MOE ROHUGRent750to799","ROHUGRent800to899","MOE ROHUGRent800to899","ROHUGRent900to999","MOE ROHUGRent900to999","ROHUGRent1000to1249","MOE ROHUGRent1000to1249","ROHUGRent1250to1499","MOE ROHUGRent1250to1499","ROHUGRent1500to1999","MOE ROHUGRent1500to1999","ROHUGRent$2,000 to $2,499","MOE ROHUGRent$2,000 to $2,499","ROHUGRent$2,500 to $2,999","MOE ROHUGRent$2,500 to $2,999","ROHUGRent$3,000 to $3,499","MOE ROHUGRent$3,000 to $3,499","ROHUGRent$3,500 or more","MOE ROHUGRent$3,500 or more","ROHUNoGRent","MOE ROHUNoGRent","MedianGrossRnt","MOE MedianGrossRnt","H73RenterOccHU","MOE H73RenterOccHU","H73ROHUHhInc<10k","MOE H73ROHUHhInc<10k","H73ROHUHhInc<10kRnt<20pct","MOE H73ROHUHhInc<10kRnt<20pct","H73ROHUHhInc<10kRnt20to25pct","MOE H73ROHUHhInc<10kRnt20to25pct","H73ROHUHhInc<10kRnt25to30pct","MOE H73ROHUHhInc<10kRnt25to30pct","H73ROHUHhInc<10kRnt30to35pct","MOE H73ROHUHhInc<10kRnt30to35pct","H73ROHUHhInc<10kRnt35to39.9","MOE H73ROHUHhInc<10kRnt35to39.9","H73ROHUHhInc<10kRnt40to49.9","MOE H73ROHUHhInc<10kRnt40to49.9","H73ROHUHhInc<10kRnt>50pct","MOE H73ROHUHhInc<10kRnt>50pct","H73ROHUHhInc<10kPctNotComput","MOE H73ROHUHhInc<10kPctNotComput","H73ROHUHhInc10to20k","MOE H73ROHUHhInc10to20k","H73ROHUHhInc10to20kRnt<20pct","MOE H73ROHUHhInc10to20kRnt<20pct","H73ROHUHhInc10to20kRnt20to25pct","MOE H73ROHUHhInc10to20kRnt20to25pct","H73ROHUHhInc10to20kRnt25to30pct","MOE H73ROHUHhInc10to20kRnt25to30pct","H73ROHUHhInc10to20kRnt30to35pct","MOE H73ROHUHhInc10to20kRnt30to35pct","H73ROHUHhInc10to20kRnt35to39.9","MOE H73ROHUHhInc10to20kRnt35to39.9","H73ROHUHhInc10to20kRnt40to49.9","MOE H73ROHUHhInc10to20kRnt40to49.9","H73ROHUHhInc10to20kRnt>50pct","MOE H73ROHUHhInc10to20kRnt>50pct","H73ROHUHhInc10to20kRntPctNC","MOE H73ROHUHhInc10to20kRntPctNC","H73ROHUHhInc20to34.9k","MOE H73ROHUHhInc20to34.9k","H73ROHUHhInc20to34.9kRnt<20pct","MOE H73ROHUHhInc20to34.9kRnt<20pct","H73ROHUHhInc20to34.9kRnt20to25pct","MOE H73ROHUHhInc20to34.9kRnt20to25pct","H73ROHUHhInc20to34.9kRnt25to30pct","MOE H73ROHUHhInc20to34.9kRnt25to30pct","H73ROHUHhInc20to34.9kRnt30to35pct","MOE H73ROHUHhInc20to34.9kRnt30to35pct","H73ROHUHhInc20to34.9kRnt35to39.9","MOE H73ROHUHhInc20to34.9kRnt35to39.9","H73ROHUHhInc20to34.9kRnt40to49.9","MOE H73ROHUHhInc20to34.9kRnt40to49.9","H73ROHUHhInc20to34.9kRnt>50pct","MOE H73ROHUHhInc20to34.9kRnt>50pct","H73ROHUHhInc20to34.9kRntPctNC","MOE H73ROHUHhInc20to34.9kRntPctNC","H73ROHUHhInc35to49.9k","MOE H73ROHUHhInc35to49.9k","H73ROHUHhInc35to49.9kRnt<20pct","MOE H73ROHUHhInc35to49.9kRnt<20pct","H73ROHUHhInc35to49.9kRnt20to25pct","MOE H73ROHUHhInc35to49.9kRnt20to25pct","H73ROHUHhInc35to49.9kRnt25to30pct","MOE H73ROHUHhInc35to49.9kRnt25to30pct","H73ROHUHhInc35to49.9kRnt30to35pct","MOE H73ROHUHhInc35to49.9kRnt30to35pct","H73ROHUHhInc35to49.9kRnt35to39.9","MOE H73ROHUHhInc35to49.9kRnt35to39.9","H73ROHUHhInc35to49.9kRnt40to49.9","MOE H73ROHUHhInc35to49.9kRnt40to49.9","H73ROHUHhInc35to49.9kRnt>50pct","MOE H73ROHUHhInc35to49.9kRnt>50pct","H73ROHUHhInc35to49.9kRntPctNC","MOE H73ROHUHhInc35to49.9kRntPctNC","H73ROHUHhInc50to74.9k","MOE H73ROHUHhInc50to74.9k","H73ROHUHhInc50to74.9kRnt<20pct","MOE H73ROHUHhInc50to74.9kRnt<20pct","H73ROHUHhInc50to74.9kRnt20to25pct","MOE H73ROHUHhInc50to74.9kRnt20to25pct","H73ROHUHhInc50to74.9kRnt25to30pct","MOE H73ROHUHhInc50to74.9kRnt25to30pct","H73ROHUHhInc50to74.9kRnt30to35pct","MOE H73ROHUHhInc50to74.9kRnt30to35pct","H73ROHUHhInc50to74.9kRnt35to39.9","MOE H73ROHUHhInc50to74.9kRnt35to39.9","H73ROHUHhInc50to74.9kRnt40to49.9","MOE H73ROHUHhInc50to74.9kRnt40to49.9","H73ROHUHhInc50to74.9kRnt>50pct","MOE H73ROHUHhInc50to74.9kRnt>50pct","H73ROHUHhInc50to74.9kRntPctNC","MOE H73ROHUHhInc50to74.9kRntPctNC","H73ROHUHhInc75to99.9k","MOE H73ROHUHhInc75to99.9k","H73ROHUHhInc75to99.9kRnt<20pct","MOE H73ROHUHhInc75to99.9kRnt<20pct","H73ROHUHhInc75to99.9kRnt20to25pct","MOE H73ROHUHhInc75to99.9kRnt20to25pct","H73ROHUHhInc75to99.9kRnt25to30pct","MOE H73ROHUHhInc75to99.9kRnt25to30pct","H73ROHUHhInc75to99.9kRnt30to35pct","MOE H73ROHUHhInc75to99.9kRnt30to35pct","H73ROHUHhInc75to99.9kRnt35to39.9","MOE H73ROHUHhInc75to99.9kRnt35to39.9","H73ROHUHhInc75to99.9kRnt40to49.9","MOE H73ROHUHhInc75to99.9kRnt40to49.9","H73ROHUHhInc75to99.9kRnt>50pct","MOE H73ROHUHhInc75to99.9kRnt>50pct","H73ROHUHhInc75to99.9kRntPctNC","MOE H73ROHUHhInc75to99.9kRntPctNC","H73ROHUHhInc>100k","MOE H73ROHUHhInc>100k","H73ROHUHhInc>100kRnt<20pct","MOE H73ROHUHhInc>100kRnt<20pct","H73ROHUHhInc>100kRnt20to25pct","MOE H73ROHUHhInc>100kRnt20to25pct","H73ROHUHhInc>100kRnt25to30pct","MOE H73ROHUHhInc>100kRnt25to30pct","H73ROHUHhInc>100kRnt30to35pct","MOE H73ROHUHhInc>100kRnt30to35pct","H73ROHUHhInc>100kRnt35to39.9","MOE H73ROHUHhInc>100kRnt35to39.9","H73ROHUHhInc>100kRnt40to49.9","MOE H73ROHUHhInc>100kRnt40to49.9","H73ROHUHhInc>100kRnt>50pct","MOE H73ROHUHhInc>100kRnt>50pct","H73ROHUHhInc>100kRntPctNC","MOE H73ROHUHhInc>100kRntPctNC"]
[null,2255,221,2219,218,37,35,0,18,34,35,137,71,56,50,99,79,40,36,73,53,20,22,31,34,23,30,118,81,146,93,223,97,91,55,383,132,160,72,433,149,115,83,0,18,0,18,null,null,null,null,null,null,36,27,790,66,2255,221,311,128,25,30,0,18,10,15,67,64,181,93,null,null,null,null,28,44,499,123,29,32,22,24,102,60,45,41,292,103,null,null,null,null,9,14,682,146,20,15,9,15,163,98,83,49,400,143,null,null,null,null,7,12,397,139,107,96,65,52,106,59,43,51,56,61,null,null,null,null,20,21,284,100,163,93,89,58,32,46,0,18,0,18,null,null,null,null,0,18,23,36,0,18,23,36,0,18,0,18,0,18,null,null,null,null,0,18,59,33,59,33,0,18,0,18,0,18,0,18,null,null,null,null,0,18]
[]
[]
[]
[]
[]
["Occupied Rental Housing Cost Burdern All Incomes"]
["NAME","RntrOccHU","MOE RntrOccHU","RntrOccHUwRent","MOE RntrOccHUwRent","ROHUGRent<100","MOE ROHUGRent<100","ROHUGRent100to149","MOE ROHUGRent100to149","ROHUGRent150to199","MOE ROHUGRent150to199","ROHUGRent200to249","MOE ROHUGRent200to249","ROHUGRent250to299","MOE ROHUGRent250to299","ROHUGRent300to349","MOE ROHUGRent300to349","ROHUGRent350to399","MOE ROHUGRent350to399","ROHUGRent400to449","MOE ROHUGRent400to449","ROHUGRent450to499","MOE ROHUGRent450to499","ROHUGRent500to549","MOE ROHUGRent500to549","ROHUGRent550to599","MOE ROHUGRent550to599","ROHUGRent600to649","MOE ROHUGRent600to649","ROHUGRent650to699","MOE ROHUGRent650to699","ROHUGRent700to749","MOE ROHUGRent700to749","ROHUGRent750to799","MOE ROHUGRent750to799","ROHUGRent800to899","MOE ROHUGRent800to899","ROHUGRent900to999","MOE ROHUGRent900to999","ROHUGRent1000to1249","MOE ROHUGRent1000to1249","ROHUGRent1250to1499","MOE ROHUGRent1250to1499","ROHUGRent1500to1999","MOE ROHUGRent1500to1999","ROHUGRent2000-2499","MOE ROHUGRent2000-2499","ROHUGRent2500-2999","MOE ROHUGRent2500-2999","ROHUGRent3000-3499","MOE ROHUGRent3000-3499","ROHUGRent3500<","MOE ROHUGRent3500<","ROHUNoGRent","MOE ROHUNoGRent","MedianGrossRnt","MOE MedianGrossRnt","H73RenterOccHU","MOE H73RenterOccHU","H73ROHUHhInc<10k","MOE H73ROHUHhInc<10k","H73ROHUHhInc<10kRnt<20pct","MOE H73ROHUHhInc<10kRnt<20pct","H73ROHUHhInc<10kRnt20to25pct","MOE H73ROHUHhInc<10kRnt20to25pct","H73ROHUHhInc<10kRnt25to30pct","MOE H73ROHUHhInc<10kRnt25to30pct","H73ROHUHhInc<10kRnt30to35pct","MOE H73ROHUHhInc<10kRnt30to35pct","H73ROHUHhInc<10kRnt35to39.9","MOE H73ROHUHhInc<10kRnt35to39.9","H73ROHUHhInc<10kRnt40to49.9","MOE H73ROHUHhInc<10kRnt40to49.9","H73ROHUHhInc<10kRnt>50pct","MOE H73ROHUHhInc<10kRnt>50pct","H73ROHUHhInc<10kPctNotComput","MOE H73ROHUHhInc<10kPctNotComput","H73ROHUHhInc10to20k","MOE H73ROHUHhInc10to20k","H73ROHUHhInc10to20kRnt<20pct","MOE H73ROHUHhInc10to20kRnt<20pct","H73ROHUHhInc10to20kRnt20to25pct","MOE H73ROHUHhInc10to20kRnt20to25pct","H73ROHUHhInc10to20kRnt25to30pct","MOE H73ROHUHhInc10to20kRnt25to30pct","H73ROHUHhInc10to20kRnt30to35pct","MOE H73ROHUHhInc10to20kRnt30to35pct","H73ROHUHhInc10to20kRnt35to39.9","MOE H73ROHUHhInc10to20kRnt35to39.9","H73ROHUHhInc10to20kRnt40to49.9","MOE H73ROHUHhInc10to20kRnt40to49.9","H73ROHUHhInc10to20kRnt>50pct","MOE H73ROHUHhInc10to20kRnt>50pct","H73ROHUHhInc10to20kRntPctNC","MOE H73ROHUHhInc10to20kRntPctNC","H73ROHUHhInc20to34.9k","MOE H73ROHUHhInc20to34.9k","H73ROHUHhInc20to34.9kRnt<20pct","MOE H73ROHUHhInc20to34.9kRnt<20pct","H73ROHUHhInc20to34.9kRnt20to25pct","MOE H73ROHUHhInc20to34.9kRnt20to25pct","H73ROHUHhInc20to34.9kRnt25to30pct","MOE H73ROHUHhInc20to34.9kRnt25to30pct","H73ROHUHhInc20to34.9kRnt30to35pct","MOE H73ROHUHhInc20to34.9kRnt30to35pct","H73ROHUHhInc20to34.9kRnt35to39.9","MOE H73ROHUHhInc20to34.9kRnt35to39.9","H73ROHUHhInc20to34.9kRnt40to49.9","MOE H73ROHUHhInc20to34.9kRnt40to49.9","H73ROHUHhInc20to34.9kRnt>50pct","MOE H73ROHUHhInc20to34.9kRnt>50pct","H73ROHUHhInc20to34.9kRntPctNC","MOE H73ROHUHhInc20to34.9kRntPctNC","H73ROHUHhInc35to49.9k","MOE H73ROHUHhInc35to49.9k","H73ROHUHhInc35to49.9kRnt<20pct","MOE H73ROHUHhInc35to49.9kRnt<20pct","H73ROHUHhInc35to49.9kRnt20to25pct","MOE H73ROHUHhInc35to49.9kRnt20to25pct","H73ROHUHhInc35to49.9kRnt25to30pct","MOE H73ROHUHhInc35to49.9kRnt25to30pct","H73ROHUHhInc35to49.9kRnt30to35pct","MOE H73ROHUHhInc35to49.9kRnt30to35pct","H73ROHUHhInc35to49.9kRnt35to39.9","MOE H73ROHUHhInc35to49.9kRnt35to39.9","H73ROHUHhInc35to49.9kRnt40to49.9","MOE H73ROHUHhInc35to49.9kRnt40to49.9","H73ROHUHhInc35to49.9kRnt>50pct","MOE H73ROHUHhInc35to49.9kRnt>50pct","H73ROHUHhInc35to49.9kRntPctNC","MOE H73ROHUHhInc35to49.9kRntPctNC","H73ROHUHhInc50to74.9k","MOE H73ROHUHhInc50to74.9k","H73ROHUHhInc50to74.9kRnt<20pct","MOE H73ROHUHhInc50to74.9kRnt<20pct","H73ROHUHhInc50to74.9kRnt20to25pct","MOE H73ROHUHhInc50to74.9kRnt20to25pct","H73ROHUHhInc50to74.9kRnt25to30pct","MOE H73ROHUHhInc50to74.9kRnt25to30pct","H73ROHUHhInc50to74.9kRnt30to35pct","MOE H73ROHUHhInc50to74.9kRnt30to35pct","H73ROHUHhInc50to74.9kRnt35to39.9","MOE H73ROHUHhInc50to74.9kRnt35to39.9","H73ROHUHhInc50to74.9kRnt40to49.9","MOE H73ROHUHhInc50to74.9kRnt40to49.9","H73ROHUHhInc50to74.9kRnt>50pct","MOE H73ROHUHhInc50to74.9kRnt>50pct","H73ROHUHhInc50to74.9kRntPctNC","MOE H73ROHUHhInc50to74.9kRntPctNC","H73ROHUHhInc75to99.9k","MOE H73ROHUHhInc75to99.9k","H73ROHUHhInc75to99.9kRnt<20pct","MOE H73ROHUHhInc75to99.9kRnt<20pct","H73ROHUHhInc75to99.9kRnt20to25pct","MOE H73ROHUHhInc75to99.9kRnt20to25pct","H73ROHUHhInc75to99.9kRnt25to30pct","MOE H73ROHUHhInc75to99.9kRnt25to30pct","H73ROHUHhInc75to99.9kRnt30to35pct","MOE H73ROHUHhInc75to99.9kRnt30to35pct","H73ROHUHhInc75to99.9kRnt35to39.9","MOE H73ROHUHhInc75to99.9kRnt35to39.9","H73ROHUHhInc75to99.9kRnt40to49.9","MOE H73ROHUHhInc75to99.9kRnt40to49.9","H73ROHUHhInc75to99.9kRnt>50pct","MOE H73ROHUHhInc75to99.9kRnt>50pct","H73ROHUHhInc75to99.9kRntPctNC","MOE H73ROHUHhInc75to99.9kRntPctNC","H73ROHUHhInc>100k","MOE H73ROHUHhInc>100k","H73ROHUHhInc>100kRnt<20pct","MOE H73ROHUHhInc>100kRnt<20pct","H73ROHUHhInc>100kRnt20to25pct","MOE H73ROHUHhInc>100kRnt20to25pct","H73ROHUHhInc>100kRnt25to30pct","MOE H73ROHUHhInc>100kRnt25to30pct","H73ROHUHhInc>100kRnt30to35pct","MOE H73ROHUHhInc>100kRnt30to35pct","H73ROHUHhInc>100kRnt35to39.9","MOE H73ROHUHhInc>100kRnt35to39.9","H73ROHUHhInc>100kRnt40to49.9","MOE H73ROHUHhInc>100kRnt40to49.9","H73ROHUHhInc>100kRnt>50pct","MOE H73ROHUHhInc>100kRnt>50pct","H73ROHUHhInc>100kRntPctNC","MOE H73ROHUHhInc>100kRntPctNC"]
[{"$f":"VLOOKUP(DropDownList!$B$47,CntyQryCensus!$A$530:$AY$544,A$1)","v":"Grantham"},2255,221,403,133.36791218280356,208,95,413,119,1024,202.41788458533006,1167,236.37893307145626,238,100,1262,225.77200889392822,929,214.18449990603895,468,143,64,53]
[]
["Income By Household Type and Tenure"]
["NAME","TotalFamilyHouseholds",{"$f":"\"MOE \"&B159","v":"MOE TotalFamilyHouseholds"},"FamInc<10K",{"$f":"\"MOE \"&D159","v":"MOE FamInc<10K"},"FamInc10to15K",{"$f":"\"MOE \"&F159","v":"MOE FamInc10to15K"},"FamInc15to20K",{"$f":"\"MOE \"&H159","v":"MOE FamInc15to20K"},"FamInc20to25K",{"$f":"\"MOE \"&J159","v":"MOE FamInc20to25K"},"FamInc25to30K",{"$f":"\"MOE \"&L159","v":"MOE FamInc25to30K"},"FamInc30to35K",{"$f":"\"MOE \"&N159","v":"MOE FamInc30to35K"},"FamInc35to40K",{"$f":"\"MOE \"&P159","v":"MOE FamInc35to40K"},"FamInc40to45K",{"$f":"\"MOE \"&R159","v":"MOE FamInc40to45K"},"FamInc45to50K",{"$f":"\"MOE \"&T159","v":"MOE FamInc45to50K"},"FamInc50to60K",{"$f":"\"MOE \"&V159","v":"MOE FamInc50to60K"},"FamInc60to75K",{"$f":"\"MOE \"&X159","v":"MOE FamInc60to75K"},"FamInc75to100K",{"$f":"\"MOE \"&Z159","v":"MOE FamInc75to100K"},"FamInc100to125K",{"$f":"\"MOE \"&AB159","v":"MOE FamInc100to125K"},"FamInc125to150K",{"$f":"\"MOE \"&AD159","v":"MOE FamInc125to150K"},"FamInc150to200K",{"$f":"\"MOE \"&AF159","v":"MOE FamInc150to200K"},"FamInc>200K",{"$f":"\"MOE \"&AH159","v":"MOE FamInc>200K"},"MedFamInc",{"$f":"\"MOE \"&AJ159","v":"MOE MedFamInc"},"TotalNonNonFamilyHouseholds",{"$f":"\"MOE \"&AL159","v":"MOE TotalNonNonFamilyHouseholds"},"NonFamInc<10K",{"$f":"\"MOE \"&AN159","v":"MOE NonFamInc<10K"},"NonFamInc10to15K",{"$f":"\"MOE \"&AP159","v":"MOE NonFamInc10to15K"},"NonFamInc15to20K",{"$f":"\"MOE \"&AR159","v":"MOE NonFamInc15to20K"},"NonFamInc20to25K",{"$f":"\"MOE \"&AT159","v":"MOE NonFamInc20to25K"},"NonFamInc25to30K",{"$f":"\"MOE \"&AV159","v":"MOE NonFamInc25to30K"},"NonFamInc30to35K",{"$f":"\"MOE \"&AX159","v":"MOE NonFamInc30to35K"},"NonFamInc35to40K",{"$f":"\"MOE \"&AZ159","v":"MOE NonFamInc35to40K"},"NonFamInc40to45K",{"$f":"\"MOE \"&BB159","v":"MOE NonFamInc40to45K"},"NonFamInc45to50K",{"$f":"\"MOE \"&BD159","v":"MOE NonFamInc45to50K"},"NonFamInc50to60K",{"$f":"\"MOE \"&BF159","v":"MOE NonFamInc50to60K"},"NonFamInc60to75K",{"$f":"\"MOE \"&BH159","v":"MOE NonFamInc60to75K"},"NonFamInc75to100K",{"$f":"\"MOE \"&BJ159","v":"MOE NonFamInc75to100K"},"NonFamInc100to125K",{"$f":"\"MOE \"&BL159","v":"MOE NonFamInc100to125K"},"NonFamInc125to150K",{"$f":"\"MOE \"&BN159","v":"MOE NonFamInc125to150K"},"NonFamInc150to200K",{"$f":"\"MOE \"&BP159","v":"MOE NonFamInc150to200K"},"NonFamInc>200K",{"$f":"\"MOE \"&BR159","v":"MOE NonFamInc>200K"},"MedNonFamInc",{"$f":"\"MOE \"&BT159","v":"MOE MedNonFamInc"},"PerCapitaIncome","MOE PerCapitaIncome"]
[{"$f":"VLOOKUP(DropDownList!$B$47,CntyQryCensus!$A$530:$AY$544,A$1)","v":"Grantham"},918,73,9,15,5,7,9,13,10,12,6,8,0,11,82,45,33,21,38,28,33,24,91,43,151,62,137,56,170,63,64,41,80,38,96894,15462,null,null,null,null,null,null,null,null,null,null,null,null,null,null,null,null,null,null,null,null,null,null,null,null,null,null,"Grantham",null,"Estimate","Margin Of Error",201,77,0,11,11,17]

{"sheet":"StatisticallySignificantCalcs","index":17,"n_rows":271,"n_cols":16,"rows_kept":271,"cut":false,"hidden":true,"merged":[]}
[]
["Statistically Significant Change  10 Year","Standard Error Estimate  1","Standard Error Estimate  2","Square Root of Sum of Squared SE","Difference between the estimates","Value","Test Statistic (90%) Confidence Interval",null,null,"Statistically Significant Change  5Year","Standard Error Estimate  1","Standard Error Estimate  2","Square Root of Sum of Squared SE","Difference between the estimates","Value","Test Statistic (90%) Confidence Interval"]
[{"$f":"IF(F3>G3,\"Y\",\"N\")","v":"Y"},{"$f":"PopulationCharacteristics!Q22/1.645","v":175.96237958286497},{"$f":"PopulationCharacteristics!T22/1.645","v":193.84187198657861},{"$f":"SQRT((B3^2)+(C3^2))","v":261.79654383456892},{"$f":"(PopulationCharacteristics!M22-PopulationCharacteristics!S22)","v":-2122},{"$f":"ABS((E3/D3))","v":8.1055309933385011},1.645,"Population By Age Under 15 yrs.",null,{"$f":"IF(O3>P3,\"Y\",\"N\")","v":"N"},{"$f":"PopulationCharacteristics!P22/1.645","v":1417.0212765957447},{"$f":"PopulationCharacteristics!T22/1.645","v":193.84187198657861},{"$f":"SQRT((K3^2)+(L3^2))","v":1430.218154569538},{"$f":"(PopulationCharacteristics!P22-PopulationCharacteristics!S22)","v":209},{"$f":"ABS((N3/M3))","v":0.14613155296081673},1.645]
["Y",{"$f":"PopulationCharacteristics!Q23/1.645","v":143.33232746355179},{"$f":"PopulationCharacteristics!T23/1.645","v":148.62196246336626},206.4767391804246,{"$f":"(PopulationCharacteristics!M23-PopulationCharacteristics!S23)","v":-1212},5.8699106001520285,1.645,"Population By Age 15 to 24 yrs.",null,{"$f":"IF(O4>P4,\"Y\",\"N\")","v":"N"},{"$f":"PopulationCharacteristics!P23/1.645","v":899.08814589665656},{"$f":"PopulationCharacteristics!T23/1.645","v":148.62196246336626},911.28918671207214,{"$f":"(PopulationCharacteristics!P23-PopulationCharacteristics!S23)","v":267},0.29299151563877868,1.645]
["Y",{"$f":"PopulationCharacteristics!Q24/1.645","v":140.47946963436641},{"$f":"PopulationCharacteristics!T24/1.645","v":158.4726762586331},211.7736303445885,{"$f":"(PopulationCharacteristics!M24-PopulationCharacteristics!S24)","v":-1770},8.3579811004794884,1.645,"Population By Age 25 to 34 yrs.",null,"N",{"$f":"PopulationCharacteristics!P24/1.645","v":1105.775075987842},{"$f":"PopulationCharacteristics!T24/1.645","v":158.4726762586331},1117.0730091612147,{"$f":"(PopulationCharacteristics!P24-PopulationCharacteristics!S24)","v":49},4.3864635165424874E-2,1.645]
["Y",{"$f":"PopulationCharacteristics!Q25/1.645","v":149.57619443985206},{"$f":"PopulationCharacteristics!T25/1.645","v":186.87448205397445},239.36396969061499,{"$f":"(PopulationCharacteristics!M25-PopulationCharacteristics!S25)","v":-1583},6.6133595713927802,1.645,"Population By Age 35 to 44 yrs.",null,"N",{"$f":"PopulationCharacteristics!P25/1.645","v":827.35562310030389},{"$f":"PopulationCharacteristics!T25/1.645","v":186.87448205397445},848.19773586035546,{"$f":"(PopulationCharacteristics!P25-PopulationCharacteristics!S25)","v":-222},0.26173142253771514,1.645]
["Y",{"$f":"PopulationCharacteristics!Q26/1.645","v":148.30085949379719},{"$f":"PopulationCharacteristics!T26/1.645","v":172.45376694666126},227.44987724923558,{"$f":"(PopulationCharacteristics!M26-PopulationCharacteristics!S26)","v":-2099},9.2284068269685307,1.645,"Population By Age 45 to 54 yrs.",null,"N",{"$f":"PopulationCharacteristics!P26/1.645","v":1209.7264437689969},{"$f":"PopulationCharacteristics!T26/1.645","v":172.45376694666126},1221.9567793044389,{"$f":"(PopulationCharacteristics!P26-PopulationCharacteristics!S26)","v":-109},8.9201190947232098E-2,1.645]
["Y",{"$f":"PopulationCharacteristics!Q27/1.645","v":157.23072567020495},{"$f":"PopulationCharacteristics!T27/1.645","v":188.73103837628912},245.64385997083573,{"$f":"(PopulationCharacteristics!M27-PopulationCharacteristics!S27)","v":-1714},6.9775812845617065,1.645,"Population By Age 55 to 64 yrs.",null,"N",{"$f":"PopulationCharacteristics!P27/1.645","v":1133.7386018237082},{"$f":"PopulationCharacteristics!T27/1.645","v":188.73103837628912},1149.3400811386373,{"$f":"(PopulationCharacteristics!P27-PopulationCharacteristics!S27)","v":151},0.13137973910246489,1.645]
["Y",{"$f":"PopulationCharacteristics!Q28/1.645","v":125.55656712388524},{"$f":"PopulationCharacteristics!T28/1.645","v":182.47717263713429},221.50027106434251,{"$f":"(PopulationCharacteristics!M28-PopulationCharacteristics!S28)","v":-1646},7.4311421475500659,1.645,"Population By Age 65 to 74 yrs.",null,"N",{"$f":"PopulationCharacteristics!P28/1.645","v":766.56534954407289},{"$f":"PopulationCharacteristics!T28/1.645","v":182.47717263713429},787.98499583130967,{"$f":"(PopulationCharacteristics!P28-PopulationCharacteristics!S28)","v":-385},0.48858798332045916,1.645]
["Y",{"$f":"PopulationCharacteristics!Q29/1.645","v":100.5155730203991},{"$f":"PopulationCharacteristics!T29/1.645","v":115.57508455541375},153.16977701103511,{"$f":"(PopulationCharacteristics!M29-PopulationCharacteristics!S29)","v":-809},5.2817208184726656,1.645,"Population By Age Over 74 yrs. ",null,"N",{"$f":"PopulationCharacteristics!P29/1.645","v":560.48632218844989},{"$f":"PopulationCharacteristics!T29/1.645","v":115.57508455541375},572.27835668521129,{"$f":"(PopulationCharacteristics!P29-PopulationCharacteristics!S29)","v":113},0.19745635787193858,1.645]
["N",{"$f":"PopulationCharacteristics!Q$30/1.645","v":2.188449848024316},{"$f":"PopulationCharacteristics!T$30/1.645","v":1.7021276595744679},2.7724630397547427,{"$f":"(PopulationCharacteristics!P30-PopulationCharacteristics!S30)","v":-1.3000000000000043},0.46889714357202206,1.645,"Population By Age Median Age        ",null,"N",{"$f":"PopulationCharacteristics!P30/1.645","v":26.018237082066868},{"$f":"PopulationCharacteristics!T30/1.645","v":1.7021276595744679},{"$f":"SQRT((K11^2)+(L11^2))","v":26.073854709807062},{"$f":"(PopulationCharacteristics!P30-PopulationCharacteristics!S30)","v":-1.3000000000000043},4.9858374009848265E-2,1.645]
["Y",{"$f":"PopulationCharacteristics!E51/1.645","v":39.513677811550153},{"$f":"PopulationCharacteristics!K51/1.645","v":207.29483282674772},211.02719836756654,{"$f":"PopulationCharacteristics!D51-PopulationCharacteristics!J51","v":7977},37.800814595025258,1.645,"Total Households",null,"N",{"$f":"PopulationCharacteristics!H51/1.645","v":134.34650455927053},{"$f":"PopulationCharacteristics!K51/1.645","v":207.29483282674772},247.02253136902993,{"$f":"PopulationCharacteristics!G51-PopulationCharacteristics!J51","v":359},1.4533087245538974,1.645]
["N",{"$f":"PopulationCharacteristics!E52/1.645","v":6.0790273556231005E-2},{"$f":"PopulationCharacteristics!K52/1.645","v":9.8992409449245547E-2},0.11616778592883863,{"$f":"PopulationCharacteristics!D52-PopulationCharacteristics!J52","v":-0.16447772657450077},1.4158634879660663,1.645,"Persons per Household",null,"N",{"$f":"PopulationCharacteristics!H52/1.645","v":5.6790465657702016E-2},{"$f":"PopulationCharacteristics!K52/1.645","v":9.8992409449245547E-2},0.11412560675933212,{"$f":"PopulationCharacteristics!G52-PopulationCharacteristics!J52","v":-0.14832899296573476},1.299699490566834,1.645]
["Y",{"$f":"PopulationCharacteristics!E53/1.645","v":39.513677811550153},{"$f":"PopulationCharacteristics!K53/1.645","v":207.29483282674772},211.02719836756654,{"$f":"PopulationCharacteristics!D53-PopulationCharacteristics!J53","v":7806},36.990492507053673,1.645,"Family Households",null,"Y",{"$f":"PopulationCharacteristics!H53/1.645","v":134.34650455927053},{"$f":"PopulationCharacteristics!K53/1.645","v":207.29483282674772},247.02253136902993,{"$f":"PopulationCharacteristics!G53-PopulationCharacteristics!J53","v":489},1.9795765078185399,1.645]
["Y",{"$f":"PopulationCharacteristics!E54/1.645","v":6.6869300911854099E-2},{"$f":"PopulationCharacteristics!K54/1.645","v":0.204724572929008},0.21536864712721027,{"$f":"PopulationCharacteristics!D54-PopulationCharacteristics!J54","v":-1.023651925820257},4.7530220367481055,1.645,"Persons per Family Household",null,"N",{"$f":"PopulationCharacteristics!H54/1.645","v":0.17454168195689113},{"$f":"PopulationCharacteristics!K54/1.645","v":0.204724572929008},0.26902964427978054,{"$f":"PopulationCharacteristics!G54-PopulationCharacteristics!J54","v":-0.41480285202736278},1.5418481228633067,1.645]
["Y",{"$f":"PopulationCharacteristics!E55/1.645","v":425.531914893617},{"$f":"PopulationCharacteristics!K55/1.645","v":165.34954407294833},456.52807396496479,{"$f":"PopulationCharacteristics!D55-PopulationCharacteristics!J55","v":5028},11.013561458185071,1.645,"Married-Couple Family Hh",null,"Y",{"$f":"PopulationCharacteristics!H55/1.645","v":150.15197568389058},{"$f":"PopulationCharacteristics!K55/1.645","v":165.34954407294833},223.35193647449657,{"$f":"PopulationCharacteristics!G55-PopulationCharacteristics!J55","v":399},1.786418359733182,1.645]
["Y",{"$f":"PopulationCharacteristics!E56/1.645","v":423.70820668693011},{"$f":"PopulationCharacteristics!K56/1.645","v":111.85410334346504},438.22366988630915,{"$f":"PopulationCharacteristics!D56-PopulationCharacteristics!J56","v":6030},13.760096531445681,1.645,"Single-Parent Family Hh",null,"N",{"$f":"PopulationCharacteristics!H56/1.645","v":133.13069908814589},{"$f":"PopulationCharacteristics!K56/1.645","v":111.85410334346504},173.88249904596211,{"$f":"PopulationCharacteristics!G56-PopulationCharacteristics!J56","v":90},0.51759090474200298,1.645]
["Y",{"$f":"PopulationCharacteristics!E57/1.645","v":224.92401215805472},{"$f":"PopulationCharacteristics!K57/1.645","v":205.47112462006078},304.64601474155097,{"$f":"PopulationCharacteristics!D57-PopulationCharacteristics!J57","v":-1404},4.6086274957218638,1.645,"Non-Family Households*",null,"N",{"$f":"PopulationCharacteristics!H57/1.645","v":181.76291793313069},{"$f":"PopulationCharacteristics!K57/1.645","v":205.47112462006078},274.32852820696309,{"$f":"PopulationCharacteristics!G57-PopulationCharacteristics!J57","v":-130},0.47388436357564473,1.645]
["Y",{"$f":"PopulationCharacteristics!E58/1.645","v":0.10334346504559271},{"$f":"PopulationCharacteristics!K58/1.645","v":0.16056395532971088},0.19094673476849774,{"$f":"PopulationCharacteristics!D58-PopulationCharacteristics!J58","v":0.80762063227953407},4.2295597945609629,1.645,"Persons per Non-Family Hh",null,"N",{"$f":"PopulationCharacteristics!H58/1.645","v":0.1563102715109892},{"$f":"PopulationCharacteristics!K58/1.645","v":0.16056395532971088},0.22408410191479572,{"$f":"PopulationCharacteristics!G58-PopulationCharacteristics!J58","v":-3.8298453032691082E-2},0.17091106734226705,1.645]
["Y",{"$f":"PopulationCharacteristics!D36/1.645","v":84.498480243161097},{"$f":"PopulationCharacteristics!J36/1.645","v":120.97264437689969},147.56142399334499,{"$f":"PopulationCharacteristics!C36-PopulationCharacteristics!I36","v":1011},6.8513841398385802,1.645,"Ethnicity -White",null,"Y",{"$f":"PopulationCharacteristics!G36/1.645","v":81.458966565349542},{"$f":"PopulationCharacteristics!J36/1.645","v":120.97264437689969},145.84218841417109,{"$f":"PopulationCharacteristics!F36-PopulationCharacteristics!I36","v":450},{"$f":"ABS((N20/M20))","v":3.0855269308086899},1.645]
["Y",{"$f":"PopulationCharacteristics!D37/1.645","v":20.668693009118542},{"$f":"PopulationCharacteristics!J37/1.645","v":57.750759878419451},61.33795837195796,{"$f":"PopulationCharacteristics!C37-PopulationCharacteristics!I37","v":-147},2.3965584101867399,1.645,"Ethnicity -Black",null,"Y",{"$f":"PopulationCharacteristics!G37/1.645","v":44.376899696048632},{"$f":"PopulationCharacteristics!J37/1.645","v":57.750759878419451},72.831720377648793,{"$f":"PopulationCharacteristics!F37-PopulationCharacteristics!I37","v":-121},{"$f":"ABS((N21/M21))","v":1.6613640234308331},1.645]
["N",{"$f":"PopulationCharacteristics!D38/1.645","v":10.94224924012158},{"$f":"PopulationCharacteristics!J38/1.645","v":11.550151975683891},15.910337177267355,{"$f":"PopulationCharacteristics!C38-PopulationCharacteristics!I38","v":0},0,1.645,"Ethnicity -American Indian",null,"N",{"$f":"PopulationCharacteristics!G38/1.645","v":10.94224924012158},{"$f":"PopulationCharacteristics!J38/1.645","v":11.550151975683891},15.910337177267355,{"$f":"PopulationCharacteristics!F38-PopulationCharacteristics!I38","v":0},0,1.645]
["N",{"$f":"PopulationCharacteristics!D39/1.645","v":19.726420352082616},{"$f":"PopulationCharacteristics!J39/1.645","v":49.984984949961614},53.736676305433591,{"$f":"PopulationCharacteristics!C39-PopulationCharacteristics!I39","v":-48},0.89324467570664534,1.645,"Ethnicity -Asian &Pacific Is",null,"N",{"$f":"PopulationCharacteristics!G39/1.645","v":32.736564177109443},{"$f":"PopulationCharacteristics!J39/1.645","v":49.984984949961614},59.750994590633333,{"$f":"PopulationCharacteristics!F39-PopulationCharacteristics!I39","v":-3},5.0208369259016235E-2,1.645]
["Y",{"$f":"PopulationCharacteristics!D40/1.645","v":50.025630666117891},{"$f":"PopulationCharacteristics!J40/1.645","v":91.914009098202996},104.64582548791604,{"$f":"PopulationCharacteristics!C40-PopulationCharacteristics!I40","v":-207},1.9781008849120627,1.645,"Ethnicity -Other*",null,"Y",{"$f":"PopulationCharacteristics!G40/1.645","v":51.034873828122443},{"$f":"PopulationCharacteristics!J40/1.645","v":91.914009098202996},105.1320284934944,{"$f":"PopulationCharacteristics!F40-PopulationCharacteristics!I40","v":-174},1.6550617589459635,1.645]
["Y",{"$f":"PopulationCharacteristics!D42/1.645","v":54.10334346504559},{"$f":"PopulationCharacteristics!J42/1.645","v":72.948328267477208},90.821970751114549,{"$f":"PopulationCharacteristics!C42-PopulationCharacteristics!I42","v":-260},2.8627434292578302,1.645,"Ethnicity -Hispanic",null,"Y",{"$f":"PopulationCharacteristics!G42/1.645","v":46.200607902735563},{"$f":"PopulationCharacteristics!J42/1.645","v":72.948328267477208},86.347870660497037,{"$f":"PopulationCharacteristics!F42-PopulationCharacteristics!I41","v":-12642},146.40777940785449,1.645]
["Y",{"$f":"PlaceOfBirthAndPriorRes!E8/1.645","v":60.182370820668694},{"$f":"PlaceOfBirthAndPriorRes!M8/1.645","v":100.30395136778115},116.97350305768687,{"$f":"PlaceOfBirthAndPriorRes!D8-PlaceOfBirthAndPriorRes!L8","v":586},5.0096815490855837,1.645,"Place of Birth - United States Native",null,"Y",{"$f":"PlaceOfBirthAndPriorRes!I8/1.645","v":72.948328267477208},{"$f":"PlaceOfBirthAndPriorRes!M8/1.645","v":100.30395136778115},124.0255669489554,{"$f":"PlaceOfBirthAndPriorRes!H8-PlaceOfBirthAndPriorRes!L8","v":301},2.4269189603775896,1.645]
["N",{"$f":"PlaceOfBirthAndPriorRes!E9/1.645","v":267.47720364741639},{"$f":"PlaceOfBirthAndPriorRes!M9/1.645","v":361.70212765957444},449.85829282620159,{"$f":"PlaceOfBirthAndPriorRes!D9-PlaceOfBirthAndPriorRes!L9","v":301},0.6690995915824729,1.645,"Place of Birth - New Hampshire Native",null,"N",{"$f":"PlaceOfBirthAndPriorRes!I9/1.645","v":319.14893617021278},{"$f":"PlaceOfBirthAndPriorRes!M9/1.645","v":361.70212765957444},482.37378930870779,{"$f":"PlaceOfBirthAndPriorRes!H9-PlaceOfBirthAndPriorRes!L9","v":232},0.48095482205299822,1.645]
["N",{"$f":"PlaceOfBirthAndPriorRes!E10/1.645","v":268.08510638297872},{"$f":"PlaceOfBirthAndPriorRes!M10/1.645","v":336.77811550151978},430.45223120008103,{"$f":"PlaceOfBirthAndPriorRes!D10-PlaceOfBirthAndPriorRes!L10","v":342},0.79451324725747086,1.645,"Place of Birth - Born in Different State",null,"N",{"$f":"PlaceOfBirthAndPriorRes!I10/1.645","v":336.77811550151978},{"$f":"PlaceOfBirthAndPriorRes!M10/1.645","v":336.77811550151978},476.27617845270191,{"$f":"PlaceOfBirthAndPriorRes!H10-PlaceOfBirthAndPriorRes!L10","v":109},0.22885881119251608,1.645]
["N",{"$f":"PlaceOfBirthAndPriorRes!E11/1.645","v":263.22188449848022},{"$f":"PlaceOfBirthAndPriorRes!M11/1.645","v":348.32826747720367},436.59860558939215,{"$f":"PlaceOfBirthAndPriorRes!D11-PlaceOfBirthAndPriorRes!L11","v":376},0.86120293373913492,1.645,"Place of Birth - Northeast",null,"N",{"$f":"PlaceOfBirthAndPriorRes!I11/1.645","v":306.99088145896656},{"$f":"PlaceOfBirthAndPriorRes!M11/1.645","v":348.32826747720367},464.3016080336397,{"$f":"PlaceOfBirthAndPriorRes!H11-PlaceOfBirthAndPriorRes!L11","v":-108},0.23260742183812372,1.645]
["N",{"$f":"PlaceOfBirthAndPriorRes!E12/1.645","v":57.750759878419451},{"$f":"PlaceOfBirthAndPriorRes!M12/1.645","v":66.261398176291792},87.896092943952567,{"$f":"PlaceOfBirthAndPriorRes!D12-PlaceOfBirthAndPriorRes!L12","v":21},0.23891846948636006,1.645,"Place of Birth - Midwest",null,"N",{"$f":"PlaceOfBirthAndPriorRes!I12/1.645","v":108.8145896656535},{"$f":"PlaceOfBirthAndPriorRes!M12/1.645","v":66.261398176291792},127.40167900142302,{"$f":"PlaceOfBirthAndPriorRes!H12-PlaceOfBirthAndPriorRes!L12","v":172},1.3500607005193301,1.645]
["N",{"$f":"PlaceOfBirthAndPriorRes!E13/1.645","v":86.930091185410333},{"$f":"PlaceOfBirthAndPriorRes!M13/1.645","v":85.714285714285708},122.08103672976388,{"$f":"PlaceOfBirthAndPriorRes!D13-PlaceOfBirthAndPriorRes!L13","v":67},0.54881578494709093,1.645,"Place of Birth - South",null,"N",{"$f":"PlaceOfBirthAndPriorRes!I13/1.645","v":99.088145896656528},{"$f":"PlaceOfBirthAndPriorRes!M13/1.645","v":85.714285714285708},131.01679065198968,{"$f":"PlaceOfBirthAndPriorRes!H13-PlaceOfBirthAndPriorRes!L13","v":130},0.99223923401779468,1.645]
["N",{"$f":"PlaceOfBirthAndPriorRes!E14/1.645","v":80.851063829787236},{"$f":"PlaceOfBirthAndPriorRes!M14/1.645","v":126.44376899696049},150.08304781208648,{"$f":"PlaceOfBirthAndPriorRes!D14-PlaceOfBirthAndPriorRes!L14","v":-122},0.81288327881475164,1.645,"Place of Birth - West",null,"N",{"$f":"PlaceOfBirthAndPriorRes!I14/1.645","v":96.048632218844986},{"$f":"PlaceOfBirthAndPriorRes!M14/1.645","v":126.44376899696049},158.78717350361663,{"$f":"PlaceOfBirthAndPriorRes!H14-PlaceOfBirthAndPriorRes!L14","v":-85},0.53530772117474579,1.645]
["N",{"$f":"PlaceOfBirthAndPriorRes!E15/1.645","v":24.924012158054712},{"$f":"PlaceOfBirthAndPriorRes!M15/1.645","v":64.437689969604861},69.089957813518552,{"$f":"PlaceOfBirthAndPriorRes!D15-PlaceOfBirthAndPriorRes!L15","v":-57},0.82501135915945001,1.645,"Place of Birth - Native Born Outside US",null,"N",{"$f":"PlaceOfBirthAndPriorRes!I15/1.645","v":40.121580547112458},{"$f":"PlaceOfBirthAndPriorRes!M15/1.645","v":64.437689969604861},75.907556371005299,{"$f":"PlaceOfBirthAndPriorRes!H15-PlaceOfBirthAndPriorRes!L15","v":-40},0.52695676046395501,1.645]
["Y",{"$f":"PlaceOfBirthAndPriorRes!E16/1.645","v":60.182370820668694},{"$f":"PlaceOfBirthAndPriorRes!M16/1.645","v":94.832826747720361},112.31733074890812,{"$f":"PlaceOfBirthAndPriorRes!D16-PlaceOfBirthAndPriorRes!L16","v":-237},2.1100928807667909,1.645,"Place of Birth - Foreign Born",null,"Y",{"$f":"PlaceOfBirthAndPriorRes!I16/1.645","v":69.908814589665653},{"$f":"PlaceOfBirthAndPriorRes!M16/1.645","v":94.832826747720361},117.8155651274287,{"$f":"PlaceOfBirthAndPriorRes!H16-PlaceOfBirthAndPriorRes!L16","v":-228},1.9352281657639752,1.645]
["Y",{"$f":"PlaceOfBirthAndPriorRes!E17/1.645","v":53.495440729483285},{"$f":"PlaceOfBirthAndPriorRes!M17/1.645","v":74.772036474164139},91.938129289949075,{"$f":"PlaceOfBirthAndPriorRes!D17-PlaceOfBirthAndPriorRes!L17","v":-186},2.023099680584147,1.645,"Place of Birth - Naturalized Citizen",null,"Y",{"$f":"PlaceOfBirthAndPriorRes!I17/1.645","v":53.495440729483285},{"$f":"PlaceOfBirthAndPriorRes!M17/1.645","v":74.772036474164139},91.938129289949075,{"$f":"PlaceOfBirthAndPriorRes!H17-PlaceOfBirthAndPriorRes!L17","v":-212},2.3058985606658022,1.645]
["N",{"$f":"PlaceOfBirthAndPriorRes!E18/1.645","v":34.042553191489361},{"$f":"PlaceOfBirthAndPriorRes!M18/1.645","v":61.398176291793312},70.204212692355668,{"$f":"PlaceOfBirthAndPriorRes!D18-PlaceOfBirthAndPriorRes!L18","v":-51},0.72645213220307558,1.645,"Place of Birth - Not a Citizen",null,"N",{"$f":"PlaceOfBirthAndPriorRes!I18/1.645","v":43.161094224924014},{"$f":"PlaceOfBirthAndPriorRes!M18/1.645","v":61.398176291793312},75.050756869274139,{"$f":"PlaceOfBirthAndPriorRes!H18-PlaceOfBirthAndPriorRes!L18","v":-16},0.21318905587946732,1.645]
["Y",{"$f":"PlaceOfBirthAndPriorRes!E43/1.645","v":47.416413373860181},{"$f":"PlaceOfBirthAndPriorRes!I43/1.645","v":313.06990881458967},316.64030707163022,{"$f":"PlaceOfBirthAndPriorRes!D43-PlaceOfBirthAndPriorRes!H43","v":2190},6.91636519763916,1.645,"Place of Residence for Population Total:",null,"Y",{"$f":"PlaceOfBirthAndPriorRes!I43/1.645","v":313.06990881458967},{"$f":"PlaceOfBirthAndPriorRes!M43/1.645","v":43.768996960486319},{"$f":"SQRT((K37^2)+(L37^2))","v":316.11468314537774},{"$f":"PlaceOfBirthAndPriorRes!H43-PlaceOfBirthAndPriorRes!L43","v":-1849},5.849143043917592,1.645]
["Y",{"$f":"PlaceOfBirthAndPriorRes!E44/1.645","v":372.03647416413372},{"$f":"PlaceOfBirthAndPriorRes!I44/1.645","v":291.15812323364406},472.42374075973152,{"$f":"PlaceOfBirthAndPriorRes!D44-PlaceOfBirthAndPriorRes!H44","v":8849},18.73106543242179,1.645,"Place of Residence for Population  Same house ",null,"Y",{"$f":"PlaceOfBirthAndPriorRes!I8/1.645","v":72.948328267477208},{"$f":"PlaceOfBirthAndPriorRes!M8/1.645","v":100.30395136778115},{"$f":"SQRT((K38^2)+(L38^2))","v":124.0255669489554},{"$f":"PlaceOfBirthAndPriorRes!H8-PlaceOfBirthAndPriorRes!L8","v":301},2.4269189603775896,1.645]
["Y",{"$f":"PlaceOfBirthAndPriorRes!E45/1.645","v":363.01669115981974},{"$f":"PlaceOfBirthAndPriorRes!I45/1.645","v":268.89167310806164},451.75640551903257,{"$f":"PlaceOfBirthAndPriorRes!D45-PlaceOfBirthAndPriorRes!H45","v":812},1.7974288578533288,1.645,"Place of Residence for Population  Different house",null,"N",{"$f":"PlaceOfBirthAndPriorRes!I9/1.645","v":319.14893617021278},{"$f":"PlaceOfBirthAndPriorRes!M9/1.645","v":361.70212765957444},482.37378930870779,{"$f":"PlaceOfBirthAndPriorRes!H9-PlaceOfBirthAndPriorRes!L9","v":232},0.48095482205299822,1.645]
["Y",{"$f":"PlaceOfBirthAndPriorRes!E46/1.645","v":346.627184615565},{"$f":"PlaceOfBirthAndPriorRes!I46/1.645","v":241.94528875379939},422.71494871209882,{"$f":"PlaceOfBirthAndPriorRes!D46-PlaceOfBirthAndPriorRes!H46","v":811},1.9185505562812566,1.645,"Place of Residence for Population in New Hampshire",null,"N",{"$f":"PlaceOfBirthAndPriorRes!I10/1.645","v":336.77811550151978},{"$f":"PlaceOfBirthAndPriorRes!M10/1.645","v":336.77811550151978},476.27617845270191,{"$f":"PlaceOfBirthAndPriorRes!H10-PlaceOfBirthAndPriorRes!L10","v":109},0.22885881119251608,1.645]
["Y",{"$f":"PlaceOfBirthAndPriorRes!E47/1.645","v":207.29483282674772},{"$f":"PlaceOfBirthAndPriorRes!I47/1.645","v":117.32522796352583},238.19394793605187,{"$f":"PlaceOfBirthAndPriorRes!D47-PlaceOfBirthAndPriorRes!H47","v":1166},4.8951705536743404,1.645,"Place of Residence for Population Same county",null,"N",{"$f":"PlaceOfBirthAndPriorRes!I11/1.645","v":306.99088145896656},{"$f":"PlaceOfBirthAndPriorRes!M11/1.645","v":348.32826747720367},464.3016080336397,{"$f":"PlaceOfBirthAndPriorRes!H11-PlaceOfBirthAndPriorRes!L11","v":-108},0.23260742183812372,1.645]
["N",{"$f":"PlaceOfBirthAndPriorRes!E48/1.645","v":277.81155015197567},{"$f":"PlaceOfBirthAndPriorRes!I48/1.645","v":111.24620060790274},299.25737175136959,{"$f":"PlaceOfBirthAndPriorRes!D48-PlaceOfBirthAndPriorRes!H48","v":247},0.8253764929981865,1.645,"Place of Residence for Population Different county",null,"N",{"$f":"PlaceOfBirthAndPriorRes!I12/1.645","v":108.8145896656535},{"$f":"PlaceOfBirthAndPriorRes!M12/1.645","v":66.261398176291792},127.40167900142302,{"$f":"PlaceOfBirthAndPriorRes!H12-PlaceOfBirthAndPriorRes!L12","v":172},1.3500607005193301,1.645]
["Y",{"$f":"PlaceOfBirthAndPriorRes!E49/1.645","v":107.59878419452887},{"$f":"PlaceOfBirthAndPriorRes!I49/1.645","v":9.7264437689969601},108.03750306505725,{"$f":"PlaceOfBirthAndPriorRes!D49-PlaceOfBirthAndPriorRes!H49","v":248},2.2954991828222941,1.645,"Place of Residence for Population in Different state",null,"N",{"$f":"PlaceOfBirthAndPriorRes!I13/1.645","v":99.088145896656528},{"$f":"PlaceOfBirthAndPriorRes!M13/1.645","v":85.714285714285708},131.01679065198968,{"$f":"PlaceOfBirthAndPriorRes!H13-PlaceOfBirthAndPriorRes!L13","v":130},0.99223923401779468,1.645]
["N",{"$f":"PlaceOfBirthAndPriorRes!E50/1.645","v":7.2948328267477205},{"$f":"PlaceOfBirthAndPriorRes!I50/1.645","v":0},7.2948328267477205,{"$f":"PlaceOfBirthAndPriorRes!D50-PlaceOfBirthAndPriorRes!H50","v":8},1.0966666666666667,1.645,"Place of Residence for Population Elsewhere",null,"N",{"$f":"PlaceOfBirthAndPriorRes!I14/1.645","v":96.048632218844986},{"$f":"PlaceOfBirthAndPriorRes!M14/1.645","v":126.44376899696049},158.78717350361663,{"$f":"PlaceOfBirthAndPriorRes!H14-PlaceOfBirthAndPriorRes!L14","v":-85},0.53530772117474579,1.645]
["N",{"$f":"SchoolEnrolEduAttain!G23/1.645","v":137.38601823708206},{"$f":"SchoolEnrolEduAttain!M23/1.645","v":191.48936170212767},{"$f":"SQRT((B45^2)+(C45^2))","v":235.67582322361392},{"$f":"SchoolEnrolEduAttain!F23-SchoolEnrolEduAttain!L23","v":-108},0.4582565938362182,1.645,"Total Population 3 years & over",null,"N",{"$f":"SchoolEnrolEduAttain!J23/1.645","v":175.07598784194528},{"$f":"SchoolEnrolEduAttain!M23/1.645","v":191.48936170212767},{"$f":"SQRT((K45^2)+(L45^2))","v":259.46055030374316},{"$f":"SchoolEnrolEduAttain!I23-SchoolEnrolEduAttain!L23","v":-20},7.7083009253570769E-2,1.645]
["N",{"$f":"SchoolEnrolEduAttain!G24/1.645","v":79.027355623100306},{"$f":"SchoolEnrolEduAttain!M24/1.645","v":107.59878419452887},{"$f":"SQRT((B46^2)+(C46^2))","v":133.50213967169501},{"$f":"SchoolEnrolEduAttain!F24-SchoolEnrolEduAttain!L24","v":-55},0.41197841574116018,1.645,"Population 3 years & over enrolled in school",null,"N",{"$f":"SchoolEnrolEduAttain!J24/1.645","v":108.20668693009118},{"$f":"SchoolEnrolEduAttain!M24/1.645","v":107.59878419452887},{"$f":"SQRT((K46^2)+(L46^2))","v":152.59811747373413},{"$f":"SchoolEnrolEduAttain!I24-SchoolEnrolEduAttain!L24","v":50},0.32765803948142558,1.645]
["N",{"$f":"SchoolEnrolEduAttain!G25/1.645","v":17.194085864718481},{"$f":"SchoolEnrolEduAttain!M25/1.645","v":45.479088423752188},48.620819332656069,{"$f":"SchoolEnrolEduAttain!F25-SchoolEnrolEduAttain!L25","v":-29},0.5964523098960246,1.645,"Preprimary (Nursery, Preschool, Kindergarten)",null,"N",{"$f":"SchoolEnrolEduAttain!J25/1.645","v":17.671053925530252},{"$f":"SchoolEnrolEduAttain!M25/1.645","v":45.479088423752188},48.791532366738267,{"$f":"SchoolEnrolEduAttain!I25-SchoolEnrolEduAttain!L25","v":-33},0.67634686592660631,1.645]
["N",{"$f":"SchoolEnrolEduAttain!G26/1.645","v":12.1580547112462},{"$f":"SchoolEnrolEduAttain!M26/1.645","v":44.984802431610944},46.598827712429916,{"$f":"SchoolEnrolEduAttain!F26-SchoolEnrolEduAttain!L26","v":-46},0.9871492966276878,1.645,"Nursery school and Preschool",null,"N",{"$f":"SchoolEnrolEduAttain!J26/1.645","v":7.9027355623100304},{"$f":"SchoolEnrolEduAttain!M26/1.645","v":44.984802431610944},45.673686945317534,{"$f":"SchoolEnrolEduAttain!I26-SchoolEnrolEduAttain!L26","v":-59},1.2917722204173552,1.645]
["N",{"$f":"SchoolEnrolEduAttain!G27/1.645","v":12.1580547112462},{"$f":"SchoolEnrolEduAttain!M27/1.645","v":6.6869300911854106},13.87563794591286,{"$f":"SchoolEnrolEduAttain!F27-SchoolEnrolEduAttain!L27","v":17},1.2251688943071217,1.645,"Kindergarten",null,"N",{"$f":"SchoolEnrolEduAttain!J27/1.645","v":15.805471124620061},{"$f":"SchoolEnrolEduAttain!M27/1.645","v":6.6869300911854106},17.161816672939946,{"$f":"SchoolEnrolEduAttain!I27-SchoolEnrolEduAttain!L27","v":26},1.5149911280077792,1.645]
["N",{"$f":"SchoolEnrolEduAttain!G28/1.645","v":57.561680553268403},{"$f":"SchoolEnrolEduAttain!M28/1.645","v":67.266024041935822},88.532847342253746,{"$f":"SchoolEnrolEduAttain!F28-SchoolEnrolEduAttain!L28","v":29},0.32756203906885162,1.645,"Elementary through High school",null,"N",{"$f":"SchoolEnrolEduAttain!J28/1.645","v":79.991777184784326},{"$f":"SchoolEnrolEduAttain!M28/1.645","v":67.266024041935822},104.51508220151995,{"$f":"SchoolEnrolEduAttain!I28-SchoolEnrolEduAttain!L28","v":47},0.44969586216635521,1.645]
["N",{"$f":"SchoolEnrolEduAttain!G29/1.645","v":46.855855738706715},{"$f":"SchoolEnrolEduAttain!M29/1.645","v":51.078301611185424},69.314241772450501,{"$f":"SchoolEnrolEduAttain!F29-SchoolEnrolEduAttain!L29","v":77},1.1108828147147713,1.645,"Elementary school (grades 1-8)",null,"N",{"$f":"SchoolEnrolEduAttain!J29/1.645","v":36.605639434223946},{"$f":"SchoolEnrolEduAttain!M29/1.645","v":51.078301611185424},62.840796731674551,{"$f":"SchoolEnrolEduAttain!I29-SchoolEnrolEduAttain!L29","v":5},7.9566145880511696E-2,1.645]
["N",{"$f":"SchoolEnrolEduAttain!G30/1.645","v":33.434650455927049},{"$f":"SchoolEnrolEduAttain!M30/1.645","v":43.768996960486319},55.078134917924402,{"$f":"SchoolEnrolEduAttain!F30-SchoolEnrolEduAttain!L30","v":-48},0.87148920477296477,1.645,"High school (grades 9-12)",null,"N",{"$f":"SchoolEnrolEduAttain!J30/1.645","v":71.124620060790278},{"$f":"SchoolEnrolEduAttain!M30/1.645","v":43.768996960486319},83.51309282812386,{"$f":"SchoolEnrolEduAttain!I30-SchoolEnrolEduAttain!L30","v":42},0.50291515471040116,1.645]
["N",{"$f":"SchoolEnrolEduAttain!G31/1.645","v":37.552450362262618},{"$f":"SchoolEnrolEduAttain!M31/1.645","v":57.003645986946324},68.261278804423966,{"$f":"SchoolEnrolEduAttain!F31-SchoolEnrolEduAttain!L31","v":-55},0.80572765355863052,1.645,"College or Graduate School",null,"N",{"$f":"SchoolEnrolEduAttain!J31/1.645","v":45.673686945317534},{"$f":"SchoolEnrolEduAttain!M31/1.645","v":57.003645986946324},73.044516118487437,{"$f":"SchoolEnrolEduAttain!I31-SchoolEnrolEduAttain!L31","v":36},0.49285014006531919,1.645]
["N",{"$f":"SchoolEnrolEduAttain!G52/1.645","v":102.12765957446808},{"$f":"SchoolEnrolEduAttain!M52/1.645","v":141.64133738601822},{"$f":"SQRT((B54^2)+(C54^2))","v":174.62052372690411},{"$f":"SchoolEnrolEduAttain!I52-SchoolEnrolEduAttain!L52","v":-114},0.65284422224210636,1.645,"Population 25 years and over",null,"N",{"$f":"SchoolEnrolEduAttain!J52/1.645","v":91.79331306990882},{"$f":"SchoolEnrolEduAttain!M52/1.645","v":141.64133738601822},{"$f":"SQRT((K54^2)+(L54^2))","v":168.78471726092423},{"$f":"SchoolEnrolEduAttain!I52-SchoolEnrolEduAttain!L52","v":-114},0.67541660080377686,1.645]
["N",{"$f":"SchoolEnrolEduAttain!G53/1.645","v":76.01215416537822},{"$f":"SchoolEnrolEduAttain!M53/1.645","v":15.354809653878528},{"$f":"SQRT((B55^2)+(C55^2))","v":77.547519369532822},{"$f":"SchoolEnrolEduAttain!I53-SchoolEnrolEduAttain!L53","v":-20},0.25790638001836175,1.645,"Less than 9th Grade",null,"N",{"$f":"SchoolEnrolEduAttain!J53/1.645","v":16.379566669066843},{"$f":"SchoolEnrolEduAttain!M53/1.645","v":15.354809653878528},{"$f":"SQRT((K55^2)+(L55^2))","v":22.451289133883755},{"$f":"SchoolEnrolEduAttain!I53-SchoolEnrolEduAttain!L53","v":-20},0.89081744396653639,1.645]
["N",{"$f":"SchoolEnrolEduAttain!G54/1.645","v":105.44790964082533},{"$f":"SchoolEnrolEduAttain!M54/1.645","v":17.62917933130699},106.91141010909475,{"$f":"SchoolEnrolEduAttain!I54-SchoolEnrolEduAttain!L54","v":61},0.57056585389486736,1.645,"9th to 12th Grade, no Diploma",null,"Y",{"$f":"SchoolEnrolEduAttain!J54/1.645","v":26.182195097091828},{"$f":"SchoolEnrolEduAttain!M54/1.645","v":17.62917933130699},31.564145861999197,{"$f":"SchoolEnrolEduAttain!I54-SchoolEnrolEduAttain!L54","v":61},1.9325724911643913,1.645]
["N",{"$f":"SchoolEnrolEduAttain!G55/1.645","v":48.26609906694032},{"$f":"SchoolEnrolEduAttain!M55/1.645","v":55.452592982279448},73.516028099986769,{"$f":"SchoolEnrolEduAttain!I55-SchoolEnrolEduAttain!L55","v":2},2.720495178656639E-2,1.645,"High School Graduate ",null,"N",{"$f":"SchoolEnrolEduAttain!J55/1.645","v":50.069933816350158},{"$f":"SchoolEnrolEduAttain!M55/1.645","v":55.452592982279448},74.712705350777071,{"$f":"SchoolEnrolEduAttain!I55-SchoolEnrolEduAttain!L55","v":2},2.6769208672206092E-2,1.645]
["N",{"$f":"SchoolEnrolEduAttain!G56/1.645","v":49.669782895599987},{"$f":"SchoolEnrolEduAttain!M56/1.645","v":72.791117324805199},88.122835260161665,{"$f":"SchoolEnrolEduAttain!I56-SchoolEnrolEduAttain!L56","v":-41},0.46525965578566864,1.645,"Some College, No Degree",null,"N",{"$f":"SchoolEnrolEduAttain!J56/1.645","v":37.448979528903195},{"$f":"SchoolEnrolEduAttain!M56/1.645","v":72.791117324805199},81.859470002863844,{"$f":"SchoolEnrolEduAttain!I56-SchoolEnrolEduAttain!L56","v":-41},0.50085836126920469,1.645]
["N",{"$f":"SchoolEnrolEduAttain!G57/1.645","v":30.961292591481687},{"$f":"SchoolEnrolEduAttain!M57/1.645","v":47.978124066566906},57.100805842669374,{"$f":"SchoolEnrolEduAttain!I57-SchoolEnrolEduAttain!L57","v":-88},1.5411341171343116,1.645,"Associate Degree",null,"N",{"$f":"SchoolEnrolEduAttain!J57/1.645","v":26.809820147355556},{"$f":"SchoolEnrolEduAttain!M57/1.645","v":47.978124066566906},54.960593567395527,{"$f":"SchoolEnrolEduAttain!I57-SchoolEnrolEduAttain!L57","v":-88},1.6011471908885015,1.645]
["N",{"$f":"SchoolEnrolEduAttain!G58/1.645","v":65.022863398033039},{"$f":"SchoolEnrolEduAttain!M58/1.645","v":64.758049777924739},91.769154815326942,{"$f":"SchoolEnrolEduAttain!I58-SchoolEnrolEduAttain!L58","v":-72},0.78457734676635404,1.645,"Bachelor's Degree",null,"N",{"$f":"SchoolEnrolEduAttain!J58/1.645","v":48.590407558401374},{"$f":"SchoolEnrolEduAttain!M58/1.645","v":64.758049777924739},80.960686247905087,{"$f":"SchoolEnrolEduAttain!I58-SchoolEnrolEduAttain!L58","v":-72},0.88932052502041448,1.645]
["N",{"$f":"SchoolEnrolEduAttain!G59/1.645","v":62.50174376961543},{"$f":"SchoolEnrolEduAttain!M59/1.645","v":80.259278108795996},101.72521662197492,{"$f":"SchoolEnrolEduAttain!I59-SchoolEnrolEduAttain!L59","v":58},0.57016344546638897,1.645,"Graduate or Professional Degree",null,"N",{"$f":"SchoolEnrolEduAttain!J59/1.645","v":55.632234704325612},{"$f":"SchoolEnrolEduAttain!M59/1.645","v":80.259278108795996},97.654990966884185,{"$f":"SchoolEnrolEduAttain!I59-SchoolEnrolEduAttain!L59","v":58},0.59392765721178964,1.645]
["Y",{"$f":"HousingCharacteristics!D32/1.645","v":181.15501519756839},{"$f":"HousingCharacteristics!J32/1.645","v":171.42857142857142},249.40909091946116,{"$f":"HousingCharacteristics!C32-HousingCharacteristics!I32","v":582},2.333515582188376,1.645,"Total Housing Units",null,"N",{"$f":"HousingCharacteristics!G32/1.645","v":181.15501519756839},{"$f":"HousingCharacteristics!J32/1.645","v":171.42857142857142},{"$f":"SQRT((K62^2)+(L62^2))","v":249.40909091946116},{"$f":"HousingCharacteristics!F32-HousingCharacteristics!I32","v":279},{"$f":"ABS((N62/M62))","v":1.1186440677500977},1.645]
["N",{"$f":"HousingCharacteristics!D33/1.645","v":167.78115501519756},{"$f":"HousingCharacteristics!J33/1.645","v":180.54711246200608},246.47063881241925,{"$f":"HousingCharacteristics!C33-HousingCharacteristics!I33","v":-69},0.27995220985536395,1.645,"Occupied Units",null,"N",{"$f":"HousingCharacteristics!G33/1.645","v":167.78115501519756},{"$f":"HousingCharacteristics!J33/1.645","v":180.54711246200608},{"$f":"SQRT((K63^2)+(L63^2))","v":246.47063881241925},{"$f":"HousingCharacteristics!F33-HousingCharacteristics!I33","v":80},{"$f":"ABS((N63/M63))","v":0.32458227229607411},1.645]
["N",{"$f":"HousingCharacteristics!D34/1.645","v":110.03039513677811},{"$f":"HousingCharacteristics!J34/1.645","v":130.09118541033433},170.38311059322021,{"$f":"HousingCharacteristics!C34-HousingCharacteristics!I34","v":-38},0.22302680041288128,1.645,"Owner Occupied",null,"N",{"$f":"HousingCharacteristics!G34/1.645","v":110.03039513677811},{"$f":"HousingCharacteristics!J34/1.645","v":130.09118541033433},170.38311059322021,{"$f":"HousingCharacteristics!F34-HousingCharacteristics!I34","v":25},0.14672815816636925,1.645]
["Y",{"$f":"HousingCharacteristics!D35/1.645","v":43.161094224924014},{"$f":"HousingCharacteristics!J35/1.645","v":11.550151975683891},44.67981720367893,{"$f":"HousingCharacteristics!C35-HousingCharacteristics!I35","v":124},2.775302312333316,1.645,"Renter Occupied",null,"Y",{"$f":"HousingCharacteristics!G35/1.645","v":43.161094224924014},{"$f":"HousingCharacteristics!J35/1.645","v":11.550151975683891},44.67981720367893,{"$f":"HousingCharacteristics!F35-HousingCharacteristics!I35","v":89},1.9919508532069767,1.645]
["N",{"$f":"HousingCharacteristics!D36/1.645","v":79.027355623100306},{"$f":"HousingCharacteristics!J36/1.645","v":75.98784194528875},109.6333665463309,{"$f":"HousingCharacteristics!C36-HousingCharacteristics!I36","v":-99},0.90300975988147492,1.645,"Vacant Units",null,"N",{"$f":"HousingCharacteristics!G36/1.645","v":79.027355623100306},{"$f":"HousingCharacteristics!J36/1.645","v":75.98784194528875},109.6333665463309,{"$f":"HousingCharacteristics!F36-HousingCharacteristics!I36","v":-23},0.20979014623509015,1.645]
["N",{"$f":"HousingCharacteristics!D37/1.645","v":70.516717325227958},{"$f":"HousingCharacteristics!J37/1.645","v":65.045592705167167},95.935064250213543,{"$f":"HousingCharacteristics!C37-HousingCharacteristics!I37","v":-51},0.53160958820003579,1.645,"Vacant For Sale",null,"N",{"$f":"HousingCharacteristics!G37/1.645","v":70.516717325227958},{"$f":"HousingCharacteristics!J37/1.645","v":65.045592705167167},95.935064250213543,{"$f":"HousingCharacteristics!F37-HousingCharacteristics!I37","v":4},4.1694869662747908E-2,1.645]
[{"$f":"IF(F68>G68,\"Y\",\"N\")","v":{"$error":"#DIV/0!"}},{"$f":"HousingCharacteristics!D38/1.645","v":0},{"$f":"HousingCharacteristics!J38/1.645","v":0},0,{"$f":"HousingCharacteristics!C38-HousingCharacteristics!I38","v":0},{"$f":"ABS((E68/D68))","v":{"$error":"#DIV/0!"}},1.645,"Vacant For Rent",null,{"$error":"#DIV/0!"},{"$f":"HousingCharacteristics!G38/1.645","v":0},{"$f":"HousingCharacteristics!J38/1.645","v":0},0,{"$f":"HousingCharacteristics!F38-HousingCharacteristics!I38","v":0},{"$error":"#DIV/0!"},1.645]
[{"$error":"#DIV/0!"},{"$f":"HousingCharacteristics!D39/1.645","v":0},{"$f":"HousingCharacteristics!J39/1.645","v":0},0,{"$f":"HousingCharacteristics!C39-HousingCharacteristics!I39","v":0},{"$error":"#DIV/0!"},1.645,"Vacant Seasonal",null,{"$f":"IF(O69>P69,\"Y\",\"N\")","v":{"$error":"#DIV/0!"}},{"$f":"HousingCharacteristics!G39/1.645","v":0},{"$f":"HousingCharacteristics!J39/1.645","v":0},0,{"$f":"HousingCharacteristics!F39-HousingCharacteristics!I39","v":0},{"$error":"#DIV/0!"},1.645]
["Y",{"$f":"HousingCharacteristics!E71/1.645","v":130.69908814589667},{"$f":"HousingCharacteristics!K71/1.645","v":189.66565349544072},230.33738680036606,{"$f":"HousingCharacteristics!D71-HousingCharacteristics!J71","v":475},2.0621923631168202,1.645,"Total Housing Units",null,"Y",{"$f":"HousingCharacteristics!H71/1.645","v":134.34650455927053},{"$f":"HousingCharacteristics!K71/1.645","v":189.66565349544072},232.42642578490657,{"$f":"HousingCharacteristics!G71-HousingCharacteristics!J71","v":384},1.6521357186611971,1.645]
["N",{"$f":"HousingCharacteristics!E72/1.645","v":147.11246200607903},{"$f":"HousingCharacteristics!K72/1.645","v":203.03951367781156},250.73316611890871,{"$f":"HousingCharacteristics!D72-HousingCharacteristics!J72","v":361},1.4397776153346937,1.645,"Single Family Units",null,"N",{"$f":"HousingCharacteristics!H72/1.645","v":183.58662613981764},{"$f":"HousingCharacteristics!K72/1.645","v":203.03951367781156},273.73179101434931,{"$f":"HousingCharacteristics!G72-HousingCharacteristics!J72","v":166},0.60643303207444432,1.645]
["N",{"$f":"HousingCharacteristics!E73/1.645","v":153.79939209726444},{"$f":"HousingCharacteristics!K73/1.645","v":156.23100303951367},219.23133745023912,{"$f":"HousingCharacteristics!D73-HousingCharacteristics!J73","v":331},1.5098206481321585,1.645,"SF Owner Occ.",null,"N",{"$f":"HousingCharacteristics!H73/1.645","v":172.64437689969606},{"$f":"HousingCharacteristics!K73/1.645","v":156.23100303951367},232.83944508140547,{"$f":"HousingCharacteristics!G73-HousingCharacteristics!J73","v":230},0.98780513722486862,1.645]
["N",{"$f":"HousingCharacteristics!E74/1.645","v":79.027355623100306},{"$f":"HousingCharacteristics!K74/1.645","v":128.87537993920972},151.17601162636757,{"$f":"HousingCharacteristics!D74-HousingCharacteristics!J74","v":-116},0.76731750462298676,1.645,"SF Renter Occ.",null,"N",{"$f":"HousingCharacteristics!H74/1.645","v":71.124620060790278},{"$f":"HousingCharacteristics!K74/1.645","v":128.87537993920972},147.1991003140557,{"$f":"HousingCharacteristics!G74-HousingCharacteristics!J74","v":-54},0.36685006827343813,1.645]
["N",{"$f":"HousingCharacteristics!E75/1.645","v":204.26798339665572},{"$f":"HousingCharacteristics!K75/1.645","v":229.38966266026566},307.15635493397639,{"$f":"HousingCharacteristics!D75-HousingCharacteristics!J75","v":194},0.63160015048915563,1.645,"Multi-family Units",null,"N",{"$f":"HousingCharacteristics!H75/1.645","v":236.38272663553391},{"$f":"HousingCharacteristics!K75/1.645","v":229.38966266026566},329.38793357838722,{"$f":"HousingCharacteristics!G75-HousingCharacteristics!J75","v":326},0.9897144575346718,1.645]
["N",{"$f":"HousingCharacteristics!E76/1.645","v":142.04906290376519},{"$f":"HousingCharacteristics!K76/1.645","v":60.99963946466228},154.59266569490489,{"$f":"HousingCharacteristics!D76-HousingCharacteristics!J76","v":249},1.6106844324129317,1.645,"MF Owner Occ.",null,"Y",{"$f":"HousingCharacteristics!H76/1.645","v":72.074297843298439},{"$f":"HousingCharacteristics!K76/1.645","v":60.99963946466228},94.422774924396691,{"$f":"HousingCharacteristics!G76-HousingCharacteristics!J76","v":162},1.7156877684405236,1.645]
["N",{"$f":"HousingCharacteristics!E77/1.645","v":194.47662672184848},{"$f":"HousingCharacteristics!K77/1.645","v":197.82541149268062},277.40953799997146,{"$f":"HousingCharacteristics!D77-HousingCharacteristics!J77","v":284},1.0237571571891275,1.645,"MF Renter Occ.",null,"N",{"$f":"HousingCharacteristics!H77/1.645","v":200.97047459740713},{"$f":"HousingCharacteristics!K77/1.645","v":197.82541149268062},282.00004448963386,{"$f":"HousingCharacteristics!G77-HousingCharacteristics!J77","v":181},0.64184387037092627,1.645]
["N",{"$f":"HousingCharacteristics!E78/1.645","v":62.365606470161673},{"$f":"HousingCharacteristics!K78/1.645","v":112.44886146792217},128.58543975047496,{"$f":"HousingCharacteristics!D78-HousingCharacteristics!J78","v":-80},0.62215442242327834,1.645,"Mobile Home & Other",null,"N",{"$f":"HousingCharacteristics!H78/1.645","v":77.373386391233169},{"$f":"HousingCharacteristics!K78/1.645","v":112.44886146792217},136.49684013587648,{"$f":"HousingCharacteristics!G78-HousingCharacteristics!J78","v":-108},0.79122710747362979,1.645]
["N",{"$f":"HousingCharacteristics!$D88/1.645","v":51.063829787234042},{"$f":"HousingCharacteristics!L88/1.645","v":15.805471124620061},53.453976746457407,{"$f":"HousingCharacteristics!$D88-HousingCharacteristics!$K88","v":60},1.1224609215623311,1.645,"No Bedrooms",null,"Y",{"$f":"HousingCharacteristics!H88/1.645","v":63.221884498480243},{"$f":"HousingCharacteristics!L88/1.645","v":15.805471124620061},65.167626909458463,{"$f":"HousingCharacteristics!G88-HousingCharacteristics!K88","v":113},1.7339897946107214,1.645]
["Y",{"$f":"HousingCharacteristics!$D89/1.645","v":106.38297872340425},{"$f":"HousingCharacteristics!L89/1.645","v":141.03343465045592},176.65720435739013,{"$f":"HousingCharacteristics!$D89-HousingCharacteristics!$K89","v":-1102},6.2380699615882937,1.645,"1 Bedroom",null,"N",{"$f":"HousingCharacteristics!H89/1.645","v":137.99392097264439},{"$f":"HousingCharacteristics!L89/1.645","v":141.03343465045592},197.31384116353533,{"$f":"HousingCharacteristics!G89-HousingCharacteristics!K89","v":-128},0.64871272712142147,1.645]
["Y",{"$f":"HousingCharacteristics!$D90/1.645","v":145.28875379939208},{"$f":"HousingCharacteristics!L90/1.645","v":190.88145896656536},239.8844583498167,{"$f":"HousingCharacteristics!$D90-HousingCharacteristics!$K90","v":-1742},7.261829348943027,1.645,"2 Bedrooms",null,"N",{"$f":"HousingCharacteristics!H90/1.645","v":183.58662613981764},{"$f":"HousingCharacteristics!L90/1.645","v":190.88145896656536},264.83916000962876,{"$f":"HousingCharacteristics!G90-HousingCharacteristics!K90","v":76},0.28696662531793588,1.645]
["Y",{"$f":"HousingCharacteristics!$D91/1.645","v":142.24924012158056},{"$f":"HousingCharacteristics!L91/1.645","v":172.64437689969606},223.69829500971031,{"$f":"HousingCharacteristics!$D91-HousingCharacteristics!$K91","v":-1665},7.4430607525539054,1.645,"3 Bedrooms",null,"N",{"$f":"HousingCharacteristics!H91/1.645","v":170.21276595744681},{"$f":"HousingCharacteristics!L91/1.645","v":172.64437689969606},242.44270780943043,{"$f":"HousingCharacteristics!G91-HousingCharacteristics!K91","v":281},1.1590367165049036,1.645]
["Y",{"$f":"HousingCharacteristics!$D92/1.645","v":112.0340167983997},{"$f":"HousingCharacteristics!L92/1.645","v":115.90554834572501},161.20085935660299,{"$f":"HousingCharacteristics!$D92-HousingCharacteristics!$K92","v":-567.70404236663251},3.5217184612569414,1.645,"4+ Bedrooms",null,"N",{"$f":"HousingCharacteristics!H92/1.645","v":118.05214437873173},{"$f":"HousingCharacteristics!L92/1.645","v":115.90554834572501},165.4400342412323,{"$f":"HousingCharacteristics!G92-HousingCharacteristics!K92","v":42},0.25386841941025434,1.645]
["N",{"$f":"'HHIncome-10YearComparison'!$F$30/1.645","v":9.1185410334346511},{"$f":"'HHIncome-10YearComparison'!$M$30/1.645","v":7.2948328267477205},{"$f":"SQRT((B83^2)+(C83^2))","v":11.677430220242277},{"$f":"'HHIncome-10YearComparison'!$E$30-'HHIncome-10YearComparison'!$L$30","v":9},0.77071751492027096,1.645,"Household Income Less than $10,000",null,"N",{"$f":"'HHIncome-10YearComparison'!$F$30/1.645","v":9.1185410334346511},{"$f":"'HHIncome-10YearComparison'!$J$30/1.645","v":6.6869300911854106},{"$f":"SQRT((K83^2)+(L83^2))","v":11.307644521421444},{"$f":"'HHIncome-10YearComparison'!$E$30-'HHIncome-10YearComparison'!$I$30","v":9},0.79592173090958129,1.645]
["N",{"$f":"'HHIncome-10YearComparison'!$F$31/1.645","v":14.589665653495441},{"$f":"'HHIncome-10YearComparison'!$M$31/1.645","v":7.2948328267477205},{"$f":"SQRT((B84^2)+(C84^2))","v":16.31174208510485},{"$f":"'HHIncome-10YearComparison'!$E$31-'HHIncome-10YearComparison'!$L$31","v":20},1.2261106076623847,1.645,"Household Income $10,000 to $14,999",null,"N",{"$f":"'HHIncome-10YearComparison'!$F$31/1.645","v":14.589665653495441},{"$f":"'HHIncome-10YearComparison'!$J$31/1.645","v":6.6869300911854106},{"$f":"SQRT((K84^2)+(L84^2))","v":16.049092744612871},{"$f":"'HHIncome-10YearComparison'!$E$31-'HHIncome-10YearComparison'!$I$31","v":20},1.2461763613842478,1.645]
["N",{"$f":"'HHIncome-10YearComparison'!$F$32/1.645","v":11.613965455649117},{"$f":"'HHIncome-10YearComparison'!$M$32/1.645","v":46.772970362726667},48.193308147060399,{"$f":"'HHIncome-10YearComparison'!$E$32-'HHIncome-10YearComparison'!$L$32","v":-27},0.56024375661472192,1.645,"Household Income $15,000 to $24,999",null,"N",{"$f":"'HHIncome-10YearComparison'!$F$32/1.645","v":11.613965455649117},{"$f":"'HHIncome-10YearComparison'!$J$32/1.645","v":24.04868139191791},26.70624028752437,{"$f":"'HHIncome-10YearComparison'!$E$32-'HHIncome-10YearComparison'!$I$32","v":-11},0.41188875265001534,1.645]
["N",{"$f":"'HHIncome-10YearComparison'!$F$33/1.645","v":20.051577510602606},{"$f":"'HHIncome-10YearComparison'!$M$33/1.645","v":56.400795159845359},59.859130091628792,{"$f":"'HHIncome-10YearComparison'!$E$33-'HHIncome-10YearComparison'!$L$33","v":-60},1.0023533570928207,1.645,"Household Income $25,000 to $34,999",null,"N",{"$f":"'HHIncome-10YearComparison'!$F$33/1.645","v":20.051577510602606},{"$f":"'HHIncome-10YearComparison'!$J$33/1.645","v":33.4512255129425},39.000644212390128,{"$f":"'HHIncome-10YearComparison'!$E$33-'HHIncome-10YearComparison'!$I$33","v":-32},0.82049926728733136,1.645]
["Y",{"$f":"'HHIncome-10YearComparison'!$F$34/1.645","v":38.43753181650392},{"$f":"'HHIncome-10YearComparison'!$M$34/1.645","v":28.668270206812391},47.95115815906388,{"$f":"'HHIncome-10YearComparison'!$E$34-'HHIncome-10YearComparison'!$L$34","v":152},3.1698921535072135,1.645,"Household Income $35,000 to $49,999",null,"N",{"$f":"'HHIncome-10YearComparison'!$F$34/1.645","v":38.43753181650392},{"$f":"'HHIncome-10YearComparison'!$J$34/1.645","v":52.473662710180101},65.045592705167167,{"$f":"'HHIncome-10YearComparison'!$E$34-'HHIncome-10YearComparison'!$I$34","v":82},1.2606542056074768,1.645]
["N",{"$f":"'HHIncome-10YearComparison'!$F$35/1.645","v":34.264366373354292},{"$f":"'HHIncome-10YearComparison'!$M$35/1.645","v":68.695698900992824},76.766827799924869,{"$f":"'HHIncome-10YearComparison'!$E$35-'HHIncome-10YearComparison'!$L$35","v":-50},0.65132299240387437,1.645,"Household Income $50,000 to $74,999",null,"N",{"$f":"'HHIncome-10YearComparison'!$F$35/1.645","v":34.264366373354292},{"$f":"'HHIncome-10YearComparison'!$J$35/1.645","v":58.485171894495778},67.783199500290422,{"$f":"'HHIncome-10YearComparison'!$E$35-'HHIncome-10YearComparison'!$I$35","v":-26},0.38357587413513289,1.645]
["N",{"$f":"'HHIncome-10YearComparison'!$F$36/1.645","v":43.161094224924014},{"$f":"'HHIncome-10YearComparison'!$M$36/1.645","v":53.495440729483285},68.736033006963879,{"$f":"'HHIncome-10YearComparison'!$E$36-'HHIncome-10YearComparison'!$L$36","v":93},1.3530021435857065,1.645,"Household Income $75,000 to $99,999",null,"N",{"$f":"'HHIncome-10YearComparison'!$F$36/1.645","v":43.161094224924014},{"$f":"'HHIncome-10YearComparison'!$J$36/1.645","v":41.337386018237083},59.763362836385909,{"$f":"'HHIncome-10YearComparison'!$E$36-'HHIncome-10YearComparison'!$I$36","v":56},0.93702893114149444,1.645]
["Y",{"$f":"'HHIncome-10YearComparison'!$F$37/1.645","v":52.056497014158161},{"$f":"'HHIncome-10YearComparison'!$M$37/1.645","v":54.926964124384284},75.675955688094589,{"$f":"'HHIncome-10YearComparison'!$E$37-'HHIncome-10YearComparison'!$L$37","v":175},2.3124914434021631,1.645,"Household Income $100,000 to $149,999",null,"N",{"$f":"'HHIncome-10YearComparison'!$F$37/1.645","v":52.056497014158161},{"$f":"'HHIncome-10YearComparison'!$J$37/1.645","v":86.317907338508093},100.80009924937735,{"$f":"'HHIncome-10YearComparison'!$E$37-'HHIncome-10YearComparison'!$I$37","v":-84},0.83333251282010889,1.645]
["Y",{"$f":"'HHIncome-10YearComparison'!$F$38/1.645","v":27.96352583586626},{"$f":"'HHIncome-10YearComparison'!$M$38/1.645","v":94.832826747720361},98.869731496228439,{"$f":"'HHIncome-10YearComparison'!$E$38-'HHIncome-10YearComparison'!$L$38","v":-206},2.0835497060883412,1.645,"Household Income $150,000 to $199,999",null,"N",{"$f":"'HHIncome-10YearComparison'!$F$38/1.645","v":27.96352583586626},{"$f":"'HHIncome-10YearComparison'!$J$38/1.645","v":22.492401215805472},35.886862354153052,{"$f":"'HHIncome-10YearComparison'!$E$38-'HHIncome-10YearComparison'!$I$38","v":12},0.33438420672102265,1.645]
["N",{"$f":"'HHIncome-10YearComparison'!$F$39/1.645","v":23.100303951367781},{"$f":"'HHIncome-10YearComparison'!$M$39/1.645","v":92.401215805471125},95.244993175362367,{"$f":"'HHIncome-10YearComparison'!$E$39-'HHIncome-10YearComparison'!$L$39","v":-136},1.4278965798191687,1.645,"Household Income Greater than $200,000",null,"N",{"$f":"'HHIncome-10YearComparison'!$F$39/1.645","v":23.100303951367781},{"$f":"'HHIncome-10YearComparison'!$J$39/1.645","v":43.768996960486319},49.490899542972933,{"$f":"'HHIncome-10YearComparison'!$E$39-'HHIncome-10YearComparison'!$I$39","v":-60},1.2123440986943876,1.645]
["N",{"$f":"'HHIncome-10YearComparison'!$F$41/1.645","v":4654.711246200608},{"$f":"'HHIncome-10YearComparison'!$M$41/1.645","v":27691.793313069909},28080.273390394363,{"$f":"'HHIncome-10YearComparison'!$E$41-'HHIncome-10YearComparison'!$I$41","v":-15805},0.56285064537179819,1.645,"Median Household Income",null,"N",{"$f":"'HHIncome-10YearComparison'!$F$41/1.645","v":4654.711246200608},{"$f":"'HHIncome-10YearComparison'!$J$41/1.645","v":15620.668693009118},16299.436407503837,{"$f":"'HHIncome-10YearComparison'!$E$41-'HHIncome-10YearComparison'!$I$41","v":-15805},0.96966542921225107,1.645]
["N",{"$f":"PovertyCharacteristics!$E$54/1.645","v":34.042553191489361},{"$f":"PovertyCharacteristics!$M54/1.645","v":44.376899696048632},55.930355393368849,{"$f":"PovertyCharacteristics!$D54-PovertyCharacteristics!$L54","v":-35},0.62577825143141552,1.645,"Total Households Below Poverty Level",null,"N",{"$f":"PovertyCharacteristics!$I$54/1.645","v":52.27963525835866},{"$f":"PovertyCharacteristics!$M54/1.645","v":44.376899696048632},68.574554241206542,{"$f":"PovertyCharacteristics!$H54-PovertyCharacteristics!$L54","v":24},0.34998404678769851,1.645]
["N",{"$f":"PovertyCharacteristics!$E$55/1.645","v":7.9027355623100304},{"$f":"PovertyCharacteristics!$M55/1.645","v":24.316109422492399},25.568073975456642,{"$f":"PovertyCharacteristics!$D55-PovertyCharacteristics!$L55","v":-35},1.3688946626796086,1.645,"Family Households Below Poverty Level",null,"N",{"$f":"PovertyCharacteristics!$I$55/1.645","v":15.805471124620061},{"$f":"PovertyCharacteristics!$M55/1.645","v":24.316109422492399},29.001484357146655,{"$f":"PovertyCharacteristics!$H55-PovertyCharacteristics!$L55","v":-16},0.55169589952581921,1.645]
["N",{"$f":"PovertyCharacteristics!$E$56/1.645","v":6.6869300911854106},{"$f":"PovertyCharacteristics!$M56/1.645","v":21.276595744680851},22.302658149354578,{"$f":"PovertyCharacteristics!$D56-PovertyCharacteristics!$L56","v":-28},1.2554557314420522,1.645,"Married Couple Fam HH Below Poverty Level",null,"N",{"$f":"PovertyCharacteristics!$I$56/1.645","v":10.334346504559271},{"$f":"PovertyCharacteristics!$M56/1.645","v":21.276595744680851},23.653588399202089,{"$f":"PovertyCharacteristics!$H56-PovertyCharacteristics!$L56","v":-17},0.71870701870222209,1.645]
["N",{"$f":"PovertyCharacteristics!$E$57/1.645","v":6.6869300911854106},{"$f":"PovertyCharacteristics!$M57/1.645","v":20.060790273556229},21.145929642463326,{"$f":"PovertyCharacteristics!$D57-PovertyCharacteristics!$L57","v":-21},0.99309892518651521,1.645,"M C Fam HH w/Children Below Poverty Level",null,"N",{"$f":"PovertyCharacteristics!$I$57/1.645","v":6.6869300911854106},{"$f":"PovertyCharacteristics!$M57/1.645","v":20.060790273556229},21.145929642463326,{"$f":"PovertyCharacteristics!$H57-PovertyCharacteristics!$L57","v":-21},0.99309892518651521,1.645]
["N",{"$f":"PovertyCharacteristics!$E$58/1.645","v":6.6869300911854106},{"$f":"PovertyCharacteristics!$M58/1.645","v":7.2948328267477205},9.8959395720970864,{"$f":"PovertyCharacteristics!$D58-PovertyCharacteristics!$L58","v":-8},0.80841237375347974,1.645,"Male Head of Family HH  Below Poverty Level",null,"N",{"$f":"PovertyCharacteristics!$I$58/1.645","v":7.2948328267477205},{"$f":"PovertyCharacteristics!$M58/1.645","v":7.2948328267477205},10.316451518831089,{"$f":"PovertyCharacteristics!$H58-PovertyCharacteristics!$L58","v":-1},9.6932554587655886E-2,1.645]
["N",{"$f":"PovertyCharacteristics!$E$59/1.645","v":6.6869300911854106},{"$f":"PovertyCharacteristics!$M59/1.645","v":7.2948328267477205},9.8959395720970864,{"$f":"PovertyCharacteristics!$D59-PovertyCharacteristics!$L59","v":-8},0.80841237375347974,1.645,"Male Head of HH w/Children Below Poverty Level",null,"N",{"$f":"PovertyCharacteristics!$I$59/1.645","v":7.2948328267477205},{"$f":"PovertyCharacteristics!$M59/1.645","v":7.2948328267477205},10.316451518831089,{"$f":"PovertyCharacteristics!$H59-PovertyCharacteristics!$L59","v":-1},9.6932554587655886E-2,1.645]
["N",{"$f":"PovertyCharacteristics!$E$60/1.645","v":7.9027355623100304},{"$f":"PovertyCharacteristics!$M60/1.645","v":7.9027355623100304},11.176155812067012,{"$f":"PovertyCharacteristics!$D60-PovertyCharacteristics!$L60","v":1},8.9476204234759285E-2,1.645,"Female Head of Family HH  Below Poverty Level",null,"N",{"$f":"PovertyCharacteristics!$I$60/1.645","v":8.5106382978723403},{"$f":"PovertyCharacteristics!$M60/1.645","v":7.9027355623100304},11.613965455649119,{"$f":"PovertyCharacteristics!$H60-PovertyCharacteristics!$L60","v":2},0.1722064705321803,1.645]
["N",{"$f":"PovertyCharacteristics!$E$61/1.645","v":7.9027355623100304},{"$f":"PovertyCharacteristics!$M61/1.645","v":7.9027355623100304},11.176155812067012,{"$f":"PovertyCharacteristics!$D61-PovertyCharacteristics!$L61","v":1},8.9476204234759285E-2,1.645,"Female Head of HH w/Children Below Poverty Level",null,"N",{"$f":"PovertyCharacteristics!$I$61/1.645","v":8.5106382978723403},{"$f":"PovertyCharacteristics!$M61/1.645","v":7.9027355623100304},11.613965455649119,{"$f":"PovertyCharacteristics!$H61-PovertyCharacteristics!$L61","v":2},0.1722064705321803,1.645]
["N",{"$f":"PovertyCharacteristics!$E$62/1.645","v":32.826747720364743},{"$f":"PovertyCharacteristics!$M62/1.645","v":37.689969604863222},49.981288245822412,{"$f":"PovertyCharacteristics!$D62-PovertyCharacteristics!$L62","v":0},0,1.645,"Non-Family HH  Below Poverty Level",null,"N",{"$f":"PovertyCharacteristics!$I$62/1.645","v":51.671732522796354},{"$f":"PovertyCharacteristics!$M62/1.645","v":37.689969604863222},63.957030502697073,{"$f":"PovertyCharacteristics!$H62-PovertyCharacteristics!$L62","v":40},0.62541990592126062,1.645]
["Y",{"$f":"PovertyCharacteristics!$E$68/1.645","v":65.045592705167167},{"$f":"PovertyCharacteristics!$M68/1.645","v":91.1854103343465},112.00762558062571,{"$f":"PovertyCharacteristics!$D68-PovertyCharacteristics!$L68","v":362},3.2319228099288999,1.645,"Total Households At or Above Poverty Level",null,"Y",{"$f":"PovertyCharacteristics!$I$68/1.645","v":80.851063829787236},{"$f":"PovertyCharacteristics!$M68/1.645","v":91.1854103343465},121.86744265902799,{"$f":"PovertyCharacteristics!$H68-PovertyCharacteristics!$L68","v":398},3.2658435371747419,1.645]
["Y",{"$f":"PovertyCharacteristics!$E$69/1.645","v":48.024316109422493},{"$f":"PovertyCharacteristics!$M69/1.645","v":63.221884498480243},79.393586751808314,{"$f":"PovertyCharacteristics!$D69-PovertyCharacteristics!$L69","v":339},4.2698662936056193,1.645,"Family Households At or Above Poverty Level",null,"Y",{"$f":"PovertyCharacteristics!$I$69/1.645","v":55.319148936170215},{"$f":"PovertyCharacteristics!$M69/1.645","v":63.221884498480243},84.007231346839177,{"$f":"PovertyCharacteristics!$H69-PovertyCharacteristics!$L69","v":180},2.1426726856029474,1.645]
["Y",{"$f":"PovertyCharacteristics!$E$70/1.645","v":62.006079027355625},{"$f":"PovertyCharacteristics!$M70/1.645","v":62.006079027355625},87.689837910064256,{"$f":"PovertyCharacteristics!$D70-PovertyCharacteristics!$L70","v":276},3.147457066610944,1.645,"Married Couple Fam HH At or Above Poverty Level",null,"N",{"$f":"PovertyCharacteristics!$I$70/1.645","v":69.300911854103347},{"$f":"PovertyCharacteristics!$M70/1.645","v":62.006079027355625},92.991237329959617,{"$f":"PovertyCharacteristics!$H70-PovertyCharacteristics!$L70","v":66},0.70974429306508791,1.645]
["N",{"$f":"PovertyCharacteristics!$E$71/1.645","v":40.729483282674771},{"$f":"PovertyCharacteristics!$M71/1.645","v":30.3951367781155},50.820814124077479,{"$f":"PovertyCharacteristics!$D71-PovertyCharacteristics!$L71","v":56},1.1019107223130604,1.645,"M C Fam HH w/Children At or Above Poverty Level",null,"N",{"$f":"PovertyCharacteristics!$I$71/1.645","v":37.08206686930091},{"$f":"PovertyCharacteristics!$M71/1.645","v":30.3951367781155},47.947304648537376,{"$f":"PovertyCharacteristics!$H71-PovertyCharacteristics!$L71","v":61},1.2722300126595498,1.645]
["N",{"$f":"PovertyCharacteristics!$E$72/1.645","v":49.848024316109424},{"$f":"PovertyCharacteristics!$M72/1.645","v":23.100303951367781},54.940418371769013,{"$f":"PovertyCharacteristics!$D72-PovertyCharacteristics!$L72","v":36},0.65525529413329886,1.645,"Male Head of Family HH  At or Above Poverty Level",null,"N",{"$f":"PovertyCharacteristics!$I$72/1.645","v":43.768996960486319},{"$f":"PovertyCharacteristics!$M72/1.645","v":23.100303951367781},49.490899542972933,{"$f":"PovertyCharacteristics!$H72-PovertyCharacteristics!$L72","v":45},0.90925807402079073,1.645]
["N",{"$f":"PovertyCharacteristics!$E$73/1.645","v":49.848024316109424},{"$f":"PovertyCharacteristics!$M73/1.645","v":7.2948328267477205},50.378964997205259,{"$f":"PovertyCharacteristics!$D73-PovertyCharacteristics!$L73","v":76},1.5085661248542135,1.645,"Male Head of HH w/Children At or Above Poverty Level",null,"N",{"$f":"PovertyCharacteristics!$I$73/1.645","v":13.98176291793313},{"$f":"PovertyCharacteristics!$M73/1.645","v":7.2948328267477205},15.770360815894039,{"$f":"PovertyCharacteristics!$H73-PovertyCharacteristics!$L73","v":7},0.4438706305910961,1.645]
["N",{"$f":"PovertyCharacteristics!$E$74/1.645","v":24.924012158054712},{"$f":"PovertyCharacteristics!$M74/1.645","v":17.62917933130699},30.52858244252819,{"$f":"PovertyCharacteristics!$D74-PovertyCharacteristics!$L74","v":27},0.88441708850481515,1.645,"Female Head of Family HH  At or Above Poverty Level",null,"Y",{"$f":"PovertyCharacteristics!$I$74/1.645","v":31.610942249240122},{"$f":"PovertyCharacteristics!$M74/1.645","v":17.62917933130699},36.194469657396219,{"$f":"PovertyCharacteristics!$H74-PovertyCharacteristics!$L74","v":69},1.9063685876082475,1.645]
["N",{"$f":"PovertyCharacteristics!$E$75/1.645","v":17.021276595744681},{"$f":"PovertyCharacteristics!$M75/1.645","v":14.589665653495441},22.418345184906716,{"$f":"PovertyCharacteristics!$D75-PovertyCharacteristics!$L75","v":9},0.40145692850065057,1.645,"Female Head of HH w/Children At or Above Poverty Level",null,"N",{"$f":"PovertyCharacteristics!$I$75/1.645","v":25.531914893617021},{"$f":"PovertyCharacteristics!$M75/1.645","v":14.589665653495441},29.406411239994711,{"$f":"PovertyCharacteristics!$H75-PovertyCharacteristics!$L75","v":39},1.3262413995951114,1.645]
["N",{"$f":"PovertyCharacteristics!$E$76/1.645","v":74.772036474164139},{"$f":"PovertyCharacteristics!$M76/1.645","v":84.498480243161097},112.83107108371178,{"$f":"PovertyCharacteristics!$D76-PovertyCharacteristics!$L76","v":23},0.20384455965091219,1.645,"Non-Family HH  At or Above Poverty Level",null,"Y",{"$f":"PovertyCharacteristics!$I$76/1.645","v":96.656534954407292},{"$f":"PovertyCharacteristics!$M76/1.645","v":84.498480243161097},128.38410693226965,{"$f":"PovertyCharacteristics!$H76-PovertyCharacteristics!$L76","v":218},1.6980294929730526,1.645]
["N",{"$f":"PovertyCharacteristics!$E24/1.645","v":68.693009118541028},{"$f":"PovertyCharacteristics!M24/1.645","v":175.07598784194528},188.07001627211321,{"$f":"PovertyCharacteristics!H24-PovertyCharacteristics!L24","v":-287},1.5260274109018408,1.645,"Total Individuals Living in Poverty",null,{"$f":"IF(O112>P112,\"Y\",\"N\")","v":"N"},{"$f":"PovertyCharacteristics!$I24/1.645","v":62.006079027355625},{"$f":"PovertyCharacteristics!$M24/1.645","v":175.07598784194528},185.73194489688532,{"$f":"PovertyCharacteristics!$H24-PovertyCharacteristics!$L24","v":-287},1.5452376819686924,1.645]
["N",{"$f":"PovertyCharacteristics!$E25/1.645","v":10.352210556794166},{"$f":"PovertyCharacteristics!M25/1.645","v":22.492401215805472},24.760379154305536,{"$f":"PovertyCharacteristics!H25-PovertyCharacteristics!L25","v":4},0.16154841471013773,1.645,"Individuals Under 5 yrs. Living in Poverty",null,"N",{"$f":"PovertyCharacteristics!$I25/1.645","v":39.081101909897704},{"$f":"PovertyCharacteristics!$M25/1.645","v":22.492401215805472},45.091469691556711,{"$f":"PovertyCharacteristics!$H25-PovertyCharacteristics!$L25","v":4},8.870857453442002E-2,1.645]
["N",{"$f":"PovertyCharacteristics!$E26/1.645","v":26.061946638572667},{"$f":"PovertyCharacteristics!M26/1.645","v":41.431147018574435},48.946552543223497,{"$f":"PovertyCharacteristics!H26-PovertyCharacteristics!L26","v":-43},0.87850926706283872,1.645,"Individuals 5 to 17 yrs. Living in Poverty",null,"N",{"$f":"PovertyCharacteristics!$I26/1.645","v":21.646800990595573},{"$f":"PovertyCharacteristics!$M26/1.645","v":41.431147018574435},46.745309244898344,{"$f":"PovertyCharacteristics!$H26-PovertyCharacteristics!$L26","v":-43},0.91987839410203287,1.645]
["N",{"$f":"PovertyCharacteristics!$E27/1.645","v":57.939222163860691},{"$f":"PovertyCharacteristics!M27/1.645","v":168.89196624756534},178.5537726510475,{"$f":"PovertyCharacteristics!H27-PovertyCharacteristics!L27","v":-227},1.2713256999818889,1.645,"Individuals 18 to 64 yrs. Living in Poverty",null,"N",{"$f":"PovertyCharacteristics!$I27/1.645","v":62.619883453092015},{"$f":"PovertyCharacteristics!$M27/1.645","v":168.89196624756534},180.12702758511165,{"$f":"PovertyCharacteristics!$H27-PovertyCharacteristics!$L27","v":-227},1.2602217615162747,1.645]
["N",{"$f":"PovertyCharacteristics!$E28/1.645","v":9.4567472255951639},{"$f":"PovertyCharacteristics!M28/1.645","v":10.316451518831087},13.994971955284301,{"$f":"PovertyCharacteristics!H28-PovertyCharacteristics!L28","v":7},0.50017963754167438,1.645,"Individuals 65 to 74 yrs. Living in Poverty",null,"N",{"$f":"PovertyCharacteristics!$I28/1.645","v":10.352210556794166},{"$f":"PovertyCharacteristics!$M28/1.645","v":10.316451518831087},14.614972985010708,{"$f":"PovertyCharacteristics!$H28-PovertyCharacteristics!$L28","v":7},0.47896085796253501,1.645]
["N",{"$f":"PovertyCharacteristics!$E29/1.645","v":9.4567472255951639},{"$f":"PovertyCharacteristics!M29/1.645","v":27.724630397547426},29.293091314666885,{"$f":"PovertyCharacteristics!H29-PovertyCharacteristics!L29","v":-28},0.95585678203858804,1.645,"Individuals 75 yrs. & Over Living in Poverty",null,"N",{"$f":"PovertyCharacteristics!$I29/1.645","v":9.4567472255951639},{"$f":"PovertyCharacteristics!$M29/1.645","v":27.724630397547426},29.293091314666885,{"$f":"PovertyCharacteristics!$H29-PovertyCharacteristics!$L29","v":-28},0.95585678203858804,1.645]
[null,null,null,null,null,null,null,"Under 5",null,"Y",{"$f":"DisabilityByAgePrior5YearEst!$E$31/1.645","v":48.761227064207844},{"$f":"DisabilityByAge!$E$31/1.645","v":10.316451518831087},{"$f":"SQRT((K118^2)+(L118^2))","v":49.840610316765058},{"$f":"DisabilityByAge!$D$31-DisabilityByAgePrior5YearEst!$D$31","v":-100},2.0063959763823891,1.645]
[null,null,null,null,null,null,null,"5 to 17",null,"N",{"$f":"DisabilityByAgePrior5YearEst!$F$31/1.645","v":311.85410334346506},{"$f":"DisabilityByAge!$F$31/1.645","v":460.790273556231},{"$f":"SQRT((K119^2)+(L119^2))","v":556.39972859103977},{"$f":"DisabilityByAge!$D$31-DisabilityByAgePrior5YearEst!$D$31","v":-100},0.17972690291066112,1.645]
[null,null,null,null,null,null,null,"18 to 34",null,"N",{"$f":"DisabilityByAgePrior5YearEst!$I$31/1.645","v":61.190174016591463},{"$f":"DisabilityByAge!$I$31/1.645","v":85.422772731650113},105.07753088716871,{"$f":"DisabilityByAge!$D$31-DisabilityByAgePrior5YearEst!$D$31","v":-100},0.95167824325239514,1.645]
[null,null,null,null,null,null,null,"35 to 64",null,"N",{"$f":"DisabilityByAgePrior5YearEst!$K$31/1.645","v":94.026656782907281},{"$f":"DisabilityByAge!$K$31/1.645","v":142.26093007846609},170.52619861053861,{"$f":"DisabilityByAge!$D$31-DisabilityByAgePrior5YearEst!$D$31","v":-100},0.58642015605114151,1.645]
[null,null,null,null,null,null,null,"65 to 74",null,"N",{"$f":"DisabilityByAgePrior5YearEst!$M$31/1.645","v":53.733237708322065},{"$f":"DisabilityByAge!$M$31/1.645","v":100.82026091902},114.24528807087982,{"$f":"DisabilityByAge!$D$31-DisabilityByAgePrior5YearEst!$D$31","v":-100},0.87530962272998258,1.645]
[null,null,null,null,null,null,null,"75 and Over",null,"N",{"$f":"DisabilityByAgePrior5YearEst!$O$31/1.645","v":61.767225755042126},{"$f":"DisabilityByAge!$O$31/1.645","v":105.00540996620994},121.82498224767431,{"$f":"DisabilityByAge!$D$31-DisabilityByAgePrior5YearEst!$D$31","v":-100},0.82084969892871906,1.645]
[null,null,null,null,null,null,null,"With a Disability -Under 5",null,"Y",{"$f":"DisabilityByAgePrior5YearEst!$E$33/1.645","v":9.4567472255951639},{"$f":"DisabilityByAge!$E$33/1.645","v":10.316451518831087},13.994971955284301,{"$f":"DisabilityByAge!$D$31-DisabilityByAgePrior5YearEst!$D$31","v":-100},7.1454233934524911,1.645]
[null,null,null,null,null,null,null,"With a Disability -5 to 17",null,"Y",{"$f":"DisabilityByAgePrior5YearEst!$F$33/1.645","v":26.747720364741642},{"$f":"DisabilityByAge!$F$33/1.645","v":0},26.747720364741642,{"$f":"DisabilityByAge!$D$31-DisabilityByAgePrior5YearEst!$D$31","v":-100},3.7386363636363633,1.645]
[null,null,null,null,null,null,null,"With a Disability -18 to 34",null,"Y",{"$f":"DisabilityByAgePrior5YearEst!$I$33/1.645","v":9.4567472255951639},{"$f":"DisabilityByAge!$I$33/1.645","v":10.316451518831087},13.994971955284301,{"$f":"DisabilityByAge!$D$31-DisabilityByAgePrior5YearEst!$D$31","v":-100},7.1454233934524911,1.645]
[null,null,null,null,null,null,null,"With a Disability -35 to 64",null,"N",{"$f":"DisabilityByAgePrior5YearEst!$K$33/1.645","v":63.670375551495013},{"$f":"DisabilityByAge!$K$33/1.645","v":38.389430769232689},74.348269096557473,{"$f":"DisabilityByAge!$D$31-DisabilityByAgePrior5YearEst!$D$31","v":-100},{"$f":"ABS((N127/M127))","v":1.3450212253109504},1.645]
[null,null,null,null,null,null,null,"With a Disability -65 to 74",null,"Y",{"$f":"DisabilityByAgePrior5YearEst!$M$33/1.645","v":29.343509753549352},{"$f":"DisabilityByAge!$M$33/1.645","v":49.762696634061548},57.769953617345813,{"$f":"DisabilityByAge!$D$31-DisabilityByAgePrior5YearEst!$D$31","v":-100},1.7310036400994155,1.645]
[null,null,null,null,null,null,null,"With a Disability -75 and Over",null,"N",{"$f":"DisabilityByAgePrior5YearEst!$O$33/1.645","v":44.21421652515059},{"$f":"DisabilityByAge!$O$33/1.645","v":84.550944767433464},95.413621689979266,{"$f":"DisabilityByAge!$D$31-DisabilityByAgePrior5YearEst!$D$31","v":-100},1.0480683808955804,1.645]
[null,null,null,null,null,null,null,"Hearing Disability - Under 5",null,"Y",{"$f":"DisabilityByAgePrior5YearEst!$E$38/1.645","v":9.4567472255951639},{"$f":"DisabilityByAge!$E$38/1.645","v":10.316451518831087},13.994971955284301,{"$f":"DisabilityByAge!$D$31-DisabilityByAgePrior5YearEst!$D$31","v":-100},7.1454233934524911,1.645]
[null,null,null,null,null,null,null,"Hearing Disability - 5 to 17",null,"Y",{"$f":"DisabilityByAgePrior5YearEst!$F$38/1.645","v":18.844984802431611},{"$f":"DisabilityByAge!$F$38/1.645","v":0},18.844984802431611,{"$f":"DisabilityByAge!$D$31-DisabilityByAgePrior5YearEst!$D$31","v":-100},5.306451612903226,1.645]
[null,null,null,null,null,null,null,"Hearing Disability - 18 to 34",null,"Y",{"$f":"DisabilityByAgePrior5YearEst!$I$38/1.645","v":9.4567472255951639},{"$f":"DisabilityByAge!$I$38/1.645","v":10.316451518831087},13.994971955284301,{"$f":"DisabilityByAge!$D$31-DisabilityByAgePrior5YearEst!$D$31","v":-100},7.1454233934524911,1.645]
[null,null,null,null,null,null,null,"Hearing Disability - 35 to 64",null,"Y",{"$f":"DisabilityByAgePrior5YearEst!$K$38/1.645","v":43.676024186470656},{"$f":"DisabilityByAge!$K$38/1.645","v":38.389430769232689},58.149320576623069,{"$f":"DisabilityByAge!$D$31-DisabilityByAgePrior5YearEst!$D$31","v":-100},1.7197105487798521,1.645]
[null,null,null,null,null,null,null,"Hearing Disability - 65 to 74",null,"Y",{"$f":"DisabilityByAgePrior5YearEst!$M$38/1.645","v":9.4567472255951639},{"$f":"DisabilityByAge!$M$38/1.645","v":46.491644510635609},47.443683219076867,{"$f":"DisabilityByAge!$D$31-DisabilityByAgePrior5YearEst!$D$31","v":-100},2.1077621553587664,1.645]
[null,null,null,null,null,null,null,"Hearing Disability - 75 and Over",null,"N",{"$f":"DisabilityByAgePrior5YearEst!$O$38/1.645","v":43.062518537203253},{"$f":"DisabilityByAge!$O$38/1.645","v":75.732092412875076},87.11905832823966,{"$f":"DisabilityByAge!$D$31-DisabilityByAgePrior5YearEst!$D$31","v":-100},1.147854463982251,1.645]
[null,null,null,null,null,null,null,"Visual Disability - Under 5",null,"Y",{"$f":"DisabilityByAgePrior5YearEst!$E$39/1.645","v":9.4567472255951639},{"$f":"DisabilityByAge!$E$39/1.645","v":10.316451518831087},13.994971955284301,{"$f":"DisabilityByAge!$D$31-DisabilityByAgePrior5YearEst!$D$31","v":-100},7.1454233934524911,1.645]
[null,null,null,null,null,null,null,"Visual Disability - 5 to 17",null,"Y",{"$f":"DisabilityByAgePrior5YearEst!$F$39/1.645","v":18.844984802431611},{"$f":"DisabilityByAge!$F$39/1.645","v":0},18.844984802431611,{"$f":"DisabilityByAge!$D$31-DisabilityByAgePrior5YearEst!$D$31","v":-100},5.306451612903226,1.645]
[null,null,null,null,null,null,null,"Visual Disability - 18 to 34",null,"Y",{"$f":"DisabilityByAgePrior5YearEst!$I$39/1.645","v":9.4567472255951639},{"$f":"DisabilityByAge!$I$39/1.645","v":10.316451518831087},13.994971955284301,{"$f":"DisabilityByAge!$D$31-DisabilityByAgePrior5YearEst!$D$31","v":-100},7.1454233934524911,1.645]
[null,null,null,null,null,null,null,"Visual Disability - 35 to 64",null,"Y",{"$f":"DisabilityByAgePrior5YearEst!$K$39/1.645","v":9.4567472255951639},{"$f":"DisabilityByAge!$K$39/1.645","v":10.316451518831087},{"$f":"SQRT((K140^2)+(L140^2))","v":20.298854537463832},{"$f":"DisabilityByAge!$D$31-DisabilityByAgePrior5YearEst!$D$31","v":-100},{"$f":"ABS((N140/M140))","v":4.9263863542368211},1.645]
[null,null,null,null,null,null,null,"Visual Disability - 65 to 74",null,"Y",{"$f":"DisabilityByAgePrior5YearEst!$M$39/1.645","v":9.4567472255951639},{"$f":"DisabilityByAge!$M$39/1.645","v":17.961442799628156},20.298854537463832,{"$f":"DisabilityByAge!$D$31-DisabilityByAgePrior5YearEst!$D$31","v":-100},4.9263863542368211,1.645]
[null,null,null,null,null,null,null,"Visual Disability - 75 and Over",null,"Y",{"$f":"DisabilityByAgePrior5YearEst!$O$39/1.645","v":40.415246537616198},{"$f":"DisabilityByAge!$O$39/1.645","v":10.316451518831087},41.711165467254574,{"$f":"DisabilityByAge!$D$31-DisabilityByAgePrior5YearEst!$D$31","v":-100},2.3974396035158785,1.645]
[null,null,null,null,null,null,null,"Cognative Disability - 5 to 17",null,"Y",{"$f":"DisabilityByAgePrior5YearEst!$F$40/1.645","v":26.747720364741642},{"$f":"DisabilityByAge!$F$40/1.645","v":0},26.747720364741642,{"$f":"DisabilityByAge!$D$31-DisabilityByAgePrior5YearEst!$D$31","v":-100},3.7386363636363633,1.645]
[null,null,null,null,null,null,null,"Cognative Disability - 18 to 34",null,"Y",{"$f":"DisabilityByAgePrior5YearEst!$I$40/1.645","v":9.4567472255951639},{"$f":"DisabilityByAge!$I$40/1.645","v":10.316451518831087},13.994971955284301,{"$f":"DisabilityByAge!$D$31-DisabilityByAgePrior5YearEst!$D$31","v":-100},7.1454233934524911,1.645]
[null,null,null,null,null,null,null,"Cognative Disability - 35 to 64",null,{"$f":"IF(O144>P144,\"Y\",\"N\")","v":"Y"},{"$f":"DisabilityByAgePrior5YearEst!$K$40/1.645","v":41.874747961810392},{"$f":"DisabilityByAge!$K$40/1.645","v":10.316451518831087},{"$f":"SQRT((K145^2)+(L145^2))","v":43.028178405316446},{"$f":"DisabilityByAge!$D$31-DisabilityByAgePrior5YearEst!$D$31","v":-100},{"$f":"ABS((N145/M145))","v":2.3240584125598094},1.645]
[null,null,null,null,null,null,null,"Cognative Disability - 65 to 74",null,"Y",{"$f":"DisabilityByAgePrior5YearEst!$M$40/1.645","v":9.4567472255951639},{"$f":"DisabilityByAge!$M$40/1.645","v":41.976113073877372},{"$f":"SQRT((K145^2)+(L145^2))","v":43.028178405316446},{"$f":"DisabilityByAge!$D$31-DisabilityByAgePrior5YearEst!$D$31","v":-100},{"$f":"ABS((N145/M145))","v":2.3240584125598094},1.645]
[null,null,null,null,null,null,null,"Cognative Disability - 75 and Over",null,"Y",{"$f":"DisabilityByAgePrior5YearEst!$O$40/1.645","v":40.07550084826628},{"$f":"DisabilityByAge!$O$40/1.645","v":10.316451518831087},{"$f":"SQRT((K146^2)+(L146^2))","v":41.382060608188468},{"$f":"DisabilityByAge!$D$31-DisabilityByAgePrior5YearEst!$D$31","v":-100},{"$f":"ABS((N146/M146))","v":2.4165060543218218},1.645]
[null,null,null,null,null,null,null,"Amblatory Disability - 5 to 17",null,"Y",{"$f":"DisabilityByAgePrior5YearEst!$F$41/1.645","v":18.844984802431611},{"$f":"DisabilityByAge!$F$41/1.645","v":0},{"$f":"SQRT((K147^2)+(L147^2))","v":18.844984802431611},{"$f":"DisabilityByAge!$D$31-DisabilityByAgePrior5YearEst!$D$31","v":-100},{"$f":"ABS((N147/M147))","v":5.306451612903226},1.645]
[null,null,null,null,null,null,null,"Amblatory Disability - 18 to 34",null,"Y",{"$f":"DisabilityByAgePrior5YearEst!$I$41/1.645","v":9.4567472255951639},{"$f":"DisabilityByAge!$I$41/1.645","v":10.316451518831087},{"$f":"SQRT((K148^2)+(L148^2))","v":13.994971955284301},{"$f":"DisabilityByAge!$D$31-DisabilityByAgePrior5YearEst!$D$31","v":-100},{"$f":"ABS((N148/M148))","v":7.1454233934524911},1.645]
[null,null,null,null,null,null,null,"Amblatory Disability - 35 to 64",null,"Y",{"$f":"DisabilityByAgePrior5YearEst!$K$41/1.645","v":9.4567472255951639},{"$f":"DisabilityByAge!$K$41/1.645","v":10.316451518831087},{"$f":"SQRT((K150^2)+(L150^2))","v":36.771834978326112},{"$f":"DisabilityByAge!$D$31-DisabilityByAgePrior5YearEst!$D$31","v":-100},{"$f":"ABS((N150/M150))","v":2.7194726632201398},1.645]
[null,null,null,null,null,null,null,"Amblatory Disability - 65 to 74",null,"Y",{"$f":"DisabilityByAgePrior5YearEst!$M$41/1.645","v":28.16105731769111},{"$f":"DisabilityByAge!$M$41/1.645","v":23.645775487874435},{"$f":"SQRT((K150^2)+(L150^2))","v":36.771834978326112},{"$f":"DisabilityByAge!$D$31-DisabilityByAgePrior5YearEst!$D$31","v":-100},{"$f":"ABS((N150/M150))","v":2.7194726632201398},1.645]
[null,null,null,null,null,null,null,"Amblatory Disability - 75 and Over",null,"Y",{"$f":"DisabilityByAgePrior5YearEst!$O$41/1.645","v":39.476250687061935},{"$f":"DisabilityByAge!$O$41/1.645","v":38.986428558842462},{"$f":"SQRT((K151^2)+(L151^2))","v":55.482573661299135},{"$f":"DisabilityByAge!$D$31-DisabilityByAgePrior5YearEst!$D$31","v":-100},{"$f":"ABS((N151/M151))","v":1.8023677237913207},1.645]
[null,null,null,null,null,null,null,"Self Care Disability - 5 to 17",null,"Y",{"$f":"DisabilityByAgePrior5YearEst!$F$42/1.645","v":18.844984802431611},{"$f":"DisabilityByAge!$F$42/1.645","v":0},{"$f":"SQRT((K152^2)+(L152^2))","v":18.844984802431611},{"$f":"DisabilityByAge!$D$31-DisabilityByAgePrior5YearEst!$D$31","v":-100},{"$f":"ABS((N152/M152))","v":5.306451612903226},1.645]
[null,null,null,null,null,null,null,"Self Care Disability - 18 to 34",null,"Y",{"$f":"DisabilityByAgePrior5YearEst!$I$42/1.645","v":9.4567472255951639},{"$f":"DisabilityByAge!$I$42/1.645","v":10.316451518831087},{"$f":"SQRT((K153^2)+(L153^2))","v":13.994971955284301},{"$f":"DisabilityByAge!$D$31-DisabilityByAgePrior5YearEst!$D$31","v":-100},{"$f":"ABS((N153/M153))","v":7.1454233934524911},1.645]
[null,null,null,null,null,null,null,"Self Care Disability - 35 to 64",null,"Y",{"$f":"DisabilityByAgePrior5YearEst!$K$42/1.645","v":9.4567472255951639},{"$f":"DisabilityByAge!$K$42/1.645","v":10.316451518831087},{"$f":"SQRT((K155^2)+(L155^2))","v":13.994971955284301},{"$f":"DisabilityByAge!$D$31-DisabilityByAgePrior5YearEst!$D$31","v":-100},{"$f":"ABS((N155/M155))","v":7.1454233934524911},1.645]
[null,null,null,null,null,null,null,"Self Care Disability - 65 to 74",null,"Y",{"$f":"DisabilityByAgePrior5YearEst!$M$42/1.645","v":9.4567472255951639},{"$f":"DisabilityByAge!$M$42/1.645","v":10.316451518831087},{"$f":"SQRT((K155^2)+(L155^2))","v":13.994971955284301},{"$f":"DisabilityByAge!$D$31-DisabilityByAgePrior5YearEst!$D$31","v":-100},{"$f":"ABS((N155/M155))","v":7.1454233934524911},1.645]
[null,null,null,null,null,null,null,"Self Care Disability - 75 and Over",null,"Y",{"$f":"DisabilityByAgePrior5YearEst!$O$42/1.645","v":39.476250687061935},{"$f":"DisabilityByAge!$O$42/1.645","v":10.316451518831087},{"$f":"SQRT((K156^2)+(L156^2))","v":40.802004120485918},{"$f":"DisabilityByAge!$D$31-DisabilityByAgePrior5YearEst!$D$31","v":-100},{"$f":"ABS((N156/M156))","v":2.450860004442573},1.645]
[null,null,null,null,null,null,null,"Independant Living Disability - 18 to 34",null,"Y",{"$f":"DisabilityByAgePrior5YearEst!$I$43/1.645","v":9.4567472255951639},{"$f":"DisabilityByAge!$I$43/1.645","v":9.4567472255951639},{"$f":"SQRT((K157^2)+(L157^2))","v":13.373860182370819},{"$f":"DisabilityByAge!$D$31-DisabilityByAgePrior5YearEst!$D$31","v":-100},{"$f":"ABS((N157/M157))","v":7.4772727272727284},1.645]
[null,null,null,null,null,null,null,"Independant Living Disability - 35 to 64",null,"Y",{"$f":"DisabilityByAgePrior5YearEst!$K$43/1.645","v":10.352210556794166},{"$f":"DisabilityByAge!$K$43/1.645","v":9.1185410334346511},{"$f":"SQRT((K159^2)+(L159^2))","v":17.775308835517865},{"$f":"DisabilityByAge!$D$31-DisabilityByAgePrior5YearEst!$D$31","v":-100},{"$f":"ABS((N159/M159))","v":5.6257812972669292},1.645]
[null,null,null,null,null,null,null,"Independant Living Disability - 65 to 74",null,"Y",{"$f":"DisabilityByAgePrior5YearEst!$M$43/1.645","v":12.309092237882423},{"$f":"DisabilityByAge!$M$43/1.645","v":12.823722255154399},{"$f":"SQRT((K159^2)+(L159^2))","v":17.775308835517865},{"$f":"DisabilityByAge!$D$31-DisabilityByAgePrior5YearEst!$D$31","v":-100},{"$f":"ABS((N159/M159))","v":5.6257812972669292},1.645]
[null,null,null,null,null,null,null,"Independant Living Disability - 75 and Over",null,"Y",{"$f":"DisabilityByAgePrior5YearEst!$O$43/1.645","v":8.9755763284093621},{"$f":"DisabilityByAge!$O$43/1.645","v":30.009714400480203},{"$f":"SQRT((K160^2)+(L160^2))","v":31.323217089333134},{"$f":"DisabilityByAge!$D$31-DisabilityByAgePrior5YearEst!$D$31","v":-100},3.1925200950720409,1.645]
[null,null,null,null,null,null,null,"No Disability - Under 5",null,"Y",{"$f":"DisabilityByAgePrior5YearEst!$E$47/1.645","v":48.761227064207844},{"$f":"DisabilityByAge!$E$47/1.645","v":10.316451518831087},{"$f":"SQRT((K161^2)+(L161^2))","v":49.840610316765058},{"$f":"DisabilityByAge!$D$47-DisabilityByAgePrior5YearEst!$D$47","v":-100},2.0063959763823891,1.645]
[null,null,null,null,null,null,null,"No Disability - 5 to 17",null,"N",{"$f":"DisabilityByAgePrior5YearEst!$F$47/1.645","v":285.10638297872339},{"$f":"DisabilityByAge!$F$47/1.645","v":460.790273556231},{"$f":"SQRT((K162^2)+(L162^2))","v":541.86098385031994},{"$f":"DisabilityByAge!$D$47-DisabilityByAgePrior5YearEst!$D$47","v":-100},0.18454917955049396,1.645]
[null,null,null,null,null,null,null,"No Disability - 18 to 34",null,"N",{"$f":"DisabilityByAgePrior5YearEst!$I$47/1.645","v":61.190174016591463},{"$f":"DisabilityByAge!$I$47/1.645","v":85.422772731650113},105.07753088716871,{"$f":"DisabilityByAge!$D$47-DisabilityByAgePrior5YearEst!$D$47","v":-100},0.95167824325239514,1.645]
[null,null,null,null,null,null,null,"No Disability - 35 to 64",null,"N",{"$f":"DisabilityByAgePrior5YearEst!$K$47/1.645","v":108.40799552257876},{"$f":"DisabilityByAge!$K$47/1.645","v":145.92831470100674},181.78934656546713,{"$f":"DisabilityByAge!$D$47-DisabilityByAgePrior5YearEst!$D$47","v":-100},0.55008724047526825,1.645]
[null,null,null,null,null,null,null,"No Disability - 65 to 74",null,{"$f":"IF(O165>P165,\"Y\",\"N\")","v":"N"},{"$f":"DisabilityByAgePrior5YearEst!$M$47/1.645","v":47.665156921368165},{"$f":"DisabilityByAge!$M$47/1.645","v":92.024508061598837},103.63627390213293,{"$f":"DisabilityByAge!$D$47-DisabilityByAgePrior5YearEst!$D$47","v":-100},0.96491311617815612,1.645]
[null,null,null,null,null,null,null,"No Disability - 75 and Over",null,"N",{"$f":"DisabilityByAgePrior5YearEst!$O$47/1.645","v":52.028093521652551},{"$f":"DisabilityByAge!$O$47/1.645","v":81.243192877827255},96.474757861741566,{"$f":"DisabilityByAge!$D$47-DisabilityByAgePrior5YearEst!$D$47","v":-100},{"$f":"ABS((N166/M166))","v":1.0365405647693926},1.645]
[{"$f":"IF(F167>G167,\"Y\",\"N\")","v":"N"},null,null,null,null,null,null,"Renter Total:",null,"N",{"$f":"'RentalHousingCost-Prior5Yr'!$F$52/1.645","v":167.78115501519756},{"$f":"RentalHousingCost!$F$52/1.645","v":180.54711246200608},246.47063881241925,{"$f":"'RentalHousingCost-Prior5Yr'!$E$52-RentalHousingCost!$E$52","v":80},{"$f":"ABS((N167/M167))","v":0.32458227229607411},1.645]
["N",null,null,null,null,null,null,"Renter Less than 20.0 percent",null,"N",{"$f":"'RentalHousingCost-Prior5Yr'!$F$53/1.645","v":107.24789522417841},{"$f":"RentalHousingCost!$F$53/1.645","v":88.095573099463067},138.79099765380747,{"$f":"'RentalHousingCost-Prior5Yr'!$E$53-RentalHousingCost!$E$53","v":176},1.2680937739132374,1.645]
["N",null,null,null,null,null,null,"Renter 20.0 to 24.9 percent",null,"N",{"$f":"'RentalHousingCost-Prior5Yr'!$F$54/1.645","v":66.261398176291792},{"$f":"RentalHousingCost!$F$54/1.645","v":65.045592705167167},92.852043696644515,{"$f":"'RentalHousingCost-Prior5Yr'!$E$54-RentalHousingCost!$E$54","v":21},0.22616626585634214,1.645]
["N",null,null,null,null,null,null,"Renter 25.0 to 29.9 percent",null,"N",{"$f":"'RentalHousingCost-Prior5Yr'!$F$55/1.645","v":60.182370820668694},{"$f":"RentalHousingCost!$F$55/1.645","v":63.829787234042556},87.727757841743667,{"$f":"'RentalHousingCost-Prior5Yr'!$E$55-RentalHousingCost!$E$55","v":114},1.2994746794469556,1.645]
["N",null,null,null,null,null,null,"Renter 30.0 to 34.9 percent",null,"Y",{"$f":"'RentalHousingCost-Prior5Yr'!$F$56/1.645","v":139.69467304049184},{"$f":"RentalHousingCost!$F$56/1.645","v":126.75172925223735},188.62821248244495,{"$f":"'RentalHousingCost-Prior5Yr'!$E$56-RentalHousingCost!$E$56","v":311},1.6487459426513085,1.645]
["N",null,null,null,null,null,null,"Renter 35.0 to 39.9 percent",null,"N",{"$f":"'RentalHousingCost-Prior5Yr'!$F$57/1.645","v":143.85732778126993},{"$f":"RentalHousingCost!$F$57/1.645","v":198.05504710378077},244.7871165720299,{"$f":"'RentalHousingCost-Prior5Yr'!$E$57-RentalHousingCost!$E$57","v":-363},1.4829211809976337,1.645]
["N",null,null,null,null,null,null,"Renter 40.0 to 49.9 percent",null,"Y",{"$f":"'RentalHousingCost-Prior5Yr'!$F$58/1.645","v":88.753799392097264},{"$f":"RentalHousingCost!$F$58/1.645","v":73.556231003039514},115.27252936370034,{"$f":"'RentalHousingCost-Prior5Yr'!$E$58-RentalHousingCost!$E$58","v":202},1.7523689392002739,1.645]
["N",null,null,null,null,null,null,"Renter 50.0 percent or more",null,"Y",{"$f":"'RentalHousingCost-Prior5Yr'!$F$59/1.645","v":165.50479927308015},{"$f":"RentalHousingCost!$F$59/1.645","v":146.54869493722893},221.06188855211462,{"$f":"'RentalHousingCost-Prior5Yr'!$E$59-RentalHousingCost!$E$59","v":513},2.3206171057344509,1.645]
["N",null,null,null,null,null,null,"Renter Not computed",null,"Y",{"$f":"'RentalHousingCost-Prior5Yr'!$F$60/1.645","v":113.21525449264816},{"$f":"RentalHousingCost!$F$60/1.645","v":183.88932150592191},{"$f":"SQRT((K175^2)+(L175^2))","v":215.94669808483621},{"$f":"'RentalHousingCost-Prior5Yr'!$E$60-RentalHousingCost!$E$60","v":-565},2.616386381504364,1.645]
["N",null,null,null,null,null,null,"Renter Less than $10,000:",null,"N",{"$f":"'RentalHousingCost-Prior5Yr'!$I$52/1.645","v":94.224924012158056},{"$f":"RentalHousingCost!$I$52/1.645","v":82.066869300911847},{"$f":"SQRT((K176^2)+(L176^2))","v":124.95322061455603},{"$f":"'RentalHousingCost-Prior5Yr'!$H$52-RentalHousingCost!$H$52","v":26},0.20807787003907935,1.645]
["N",null,null,null,null,null,null,"Renter Less than 20.0 percent",null,"N",{"$f":"'RentalHousingCost-Prior5Yr'!$I$53/1.645","v":9.1185410334346511},{"$f":"RentalHousingCost!$I$53/1.645","v":11.550151975683891},14.71576709654736,{"$f":"'RentalHousingCost-Prior5Yr'!$H$53-RentalHousingCost!$H$53","v":9},0.6115889128274935,1.645]
["N",null,null,null,null,null,null,"Renter 20.0 to 24.9 percent",null,"N",{"$f":"'RentalHousingCost-Prior5Yr'!$I$54/1.645","v":10.94224924012158},{"$f":"RentalHousingCost!$I$54/1.645","v":8.5106382978723403},13.862315198773713,{"$f":"'RentalHousingCost-Prior5Yr'!$H$54-RentalHousingCost!$H$54","v":-9},0.64924219879202849,1.645]
["N",null,null,null,null,null,null,"Renter 25.0 to 29.9 percent",null,"N",{"$f":"'RentalHousingCost-Prior5Yr'!$I$55/1.645","v":15.19756838905775},{"$f":"RentalHousingCost!$I$55/1.645","v":11.550151975683891},19.088533091924113,{"$f":"'RentalHousingCost-Prior5Yr'!$H$55-RentalHousingCost!$H$55","v":15},0.78581208559950211,1.645]
["N",null,null,null,null,null,null,"Renter 30.0 to 34.9 percent",null,"N",{"$f":"'RentalHousingCost-Prior5Yr'!$I$56/1.645","v":20.82898686809947},{"$f":"RentalHousingCost!$I$56/1.645","v":18.418550039566099},27.80449027605902,{"$f":"'RentalHousingCost-Prior5Yr'!$H$56-RentalHousingCost!$H$56","v":15},0.53948120792977483,1.645]
["N",null,null,null,null,null,null,"Renter 35.0 to 39.9 percent",null,"N",{"$f":"'RentalHousingCost-Prior5Yr'!$I$57/1.645","v":67.205565128346308},{"$f":"RentalHousingCost!$I$57/1.645","v":76.814951442941108},102.06431672921639,{"$f":"'RentalHousingCost-Prior5Yr'!$H$57-RentalHousingCost!$H$57","v":-71},0.69563979141082044,1.645]
["N",null,null,null,null,null,null,"Renter 40.0 to 49.9 percent",null,"N",{"$f":"'RentalHousingCost-Prior5Yr'!$I$58/1.645","v":63.221884498480243},{"$f":"RentalHousingCost!$I$58/1.645","v":11.550151975683891},64.268286815509342,{"$f":"'RentalHousingCost-Prior5Yr'!$H$58-RentalHousingCost!$H$58","v":82},1.275901444757535,1.645]
["N",null,null,null,null,null,null,"Renter 50.0 percent or more",null,"N",{"$f":"'RentalHousingCost-Prior5Yr'!$I$59/1.645","v":66.564655587561163},{"$f":"RentalHousingCost!$I$59/1.645","v":21.740492087839108},70.025012457778487,{"$f":"'RentalHousingCost-Prior5Yr'!$H$59-RentalHousingCost!$H$59","v":97},1.3852193180042067,1.645]
["N",null,null,null,null,null,null,"Renter Not computed",null,"Y",{"$f":"'RentalHousingCost-Prior5Yr'!$I$60/1.645","v":22.794326151067082},{"$f":"RentalHousingCost!$I$60/1.645","v":75.941627283855368},{"$f":"SQRT((K184^2)+(L184^2))","v":79.288788988111222},{"$f":"'RentalHousingCost-Prior5Yr'!$H$60-RentalHousingCost!$H$60","v":-153},1.9296548976544621,1.645]
["N",null,null,null,null,null,null,"Renter $10,000 to $19,999:",null,"N",{"$f":"'RentalHousingCost-Prior5Yr'!$K$52/1.645","v":83.282674772036472},{"$f":"RentalHousingCost!$K$52/1.645","v":77.203647416413375},{"$f":"SQRT((K185^2)+(L185^2))","v":113.56234891715947},{"$f":"'RentalHousingCost-Prior5Yr'!$J$52-RentalHousingCost!$J$52","v":24},0.21133765045232838,1.645]
["N",null,null,null,null,null,null,"Renter Less than 20.0 percent",null,"N",{"$f":"'RentalHousingCost-Prior5Yr'!$K$53/1.645","v":10.94224924012158},{"$f":"RentalHousingCost!$K$53/1.645","v":17.62917933130699},20.748994730548343,{"$f":"'RentalHousingCost-Prior5Yr'!$J$53-RentalHousingCost!$J$53","v":-24},1.1566825435000601,1.645]
["N",null,null,null,null,null,null,"Renter 20.0 to 24.9 percent",null,"N",{"$f":"'RentalHousingCost-Prior5Yr'!$K$54/1.645","v":28.571428571428569},{"$f":"RentalHousingCost!$K$54/1.645","v":11.550151975683891},30.817730955955199,{"$f":"'RentalHousingCost-Prior5Yr'!$J$54-RentalHousingCost!$J$54","v":35},1.135709830487589,1.645]
["N",null,null,null,null,null,null,"Renter 25.0 to 29.9 percent",null,"N",{"$f":"'RentalHousingCost-Prior5Yr'!$K$55/1.645","v":29.787234042553191},{"$f":"RentalHousingCost!$K$55/1.645","v":34.650455927051674},45.693909964659298,{"$f":"'RentalHousingCost-Prior5Yr'!$J$55-RentalHousingCost!$J$55","v":9},0.1969627901608946,1.645]
["N",null,null,null,null,null,null,"Renter 30.0 to 34.9 percent",null,"N",{"$f":"'RentalHousingCost-Prior5Yr'!$K$56/1.645","v":42.700569796561567},{"$f":"RentalHousingCost!$K$56/1.645","v":40.556726575370043},58.891312869219959,{"$f":"'RentalHousingCost-Prior5Yr'!$J$56-RentalHousingCost!$J$56","v":20},0.33960866256138716,1.645]
["N",null,null,null,null,null,null,"Renter 35.0 to 39.9 percent",null,"N",{"$f":"'RentalHousingCost-Prior5Yr'!$K$57/1.645","v":62.602176713461034},{"$f":"RentalHousingCost!$K$57/1.645","v":85.554616421636169},106.01238097654773,{"$f":"'RentalHousingCost-Prior5Yr'!$J$57-RentalHousingCost!$J$57","v":4},3.773144196133929E-2,1.645]
["N",null,null,null,null,null,null,"Renter 40.0 to 49.9 percent",null,"N",{"$f":"'RentalHousingCost-Prior5Yr'!$K$58/1.645","v":17.021276595744681},{"$f":"RentalHousingCost!$K$58/1.645","v":46.808510638297875},49.807233662636705,{"$f":"'RentalHousingCost-Prior5Yr'!$J$58-RentalHousingCost!$J$58","v":-57},1.1444120825116013,1.645]
["N",null,null,null,null,null,null,"Renter 50.0 percent or more",null,"N",{"$f":"'RentalHousingCost-Prior5Yr'!$K$59/1.645","v":45.968059757834801},{"$f":"RentalHousingCost!$K$59/1.645","v":61.934519766322332},77.129418878822378,{"$f":"'RentalHousingCost-Prior5Yr'!$J$59-RentalHousingCost!$J$59","v":-37},0.47971319553347735,1.645]
["N",null,null,null,null,null,null,"Renter Not computed",null,"N",{"$f":"'RentalHousingCost-Prior5Yr'!$K$60/1.645","v":60.243743843776485},{"$f":"RentalHousingCost!$K$60/1.645","v":71.613935256189166},{"$f":"SQRT((K193^2)+(L193^2))","v":93.583462188530987},{"$f":"'RentalHousingCost-Prior5Yr'!$J$60-RentalHousingCost!$J$60","v":61},0.65182456999839211,1.645]
["N",null,null,null,null,null,null,"Renter $20,000 to $34,999:",null,"N",{"$f":"'RentalHousingCost-Prior5Yr'!$M$52/1.645","v":97.264437689969597},{"$f":"RentalHousingCost!$M$52/1.645","v":136.77811550151975},{"$f":"SQRT((K194^2)+(L194^2))","v":167.83510872071153},{"$f":"'RentalHousingCost-Prior5Yr'!$L$52-RentalHousingCost!$L$52","v":-128},0.76265330284976474,1.645]
["N",null,null,null,null,null,null,"Renter Less than 20.0 percent",null,"N",{"$f":"'RentalHousingCost-Prior5Yr'!$M$53/1.645","v":15.19756838905775},{"$f":"RentalHousingCost!$M$53/1.645","v":16.413373860182372},22.36883828933021,{"$f":"'RentalHousingCost-Prior5Yr'!$L$53-RentalHousingCost!$L$53","v":-1},4.4705048472588473E-2,1.645]
["N",null,null,null,null,null,null,"Renter 20.0 to 24.9 percent",null,"N",{"$f":"'RentalHousingCost-Prior5Yr'!$M$54/1.645","v":15.805471124620061},{"$f":"RentalHousingCost!$M$54/1.645","v":21.88449848024316},26.995262384406708,{"$f":"'RentalHousingCost-Prior5Yr'!$L$54-RentalHousingCost!$L$54","v":-20},0.740870739287669,1.645]
["N",null,null,null,null,null,null,"Renter 25.0 to 29.9 percent",null,"N",{"$f":"'RentalHousingCost-Prior5Yr'!$M$55/1.645","v":18.237082066869302},{"$f":"RentalHousingCost!$M$55/1.645","v":11.550151975683891},21.586967665124259,{"$f":"'RentalHousingCost-Prior5Yr'!$L$55-RentalHousingCost!$L$55","v":26},1.2044303953818118,1.645]
["N",null,null,null,null,null,null,"Renter 30.0 to 34.9 percent",null,"N",{"$f":"'RentalHousingCost-Prior5Yr'!$M$56/1.645","v":28.519645241920731},{"$f":"RentalHousingCost!$M$56/1.645","v":29.69404192539772},41.171668542728376,{"$f":"'RentalHousingCost-Prior5Yr'!$L$56-RentalHousingCost!$L$56","v":5},0.12144273421445013,1.645]
["N",null,null,null,null,null,null,"Renter 35.0 to 39.9 percent",null,"N",{"$f":"'RentalHousingCost-Prior5Yr'!$M$57/1.645","v":95.326437287264639},{"$f":"RentalHousingCost!$M$57/1.645","v":143.90612736896264},172.61547769599022,{"$f":"'RentalHousingCost-Prior5Yr'!$L$57-RentalHousingCost!$L$57","v":-163},0.94429539097922044,1.645]
["N",null,null,null,null,null,null,"Renter 40.0 to 49.9 percent",null,"Y",{"$f":"'RentalHousingCost-Prior5Yr'!$M$58/1.645","v":49.240121580547111},{"$f":"RentalHousingCost!$M$58/1.645","v":6.0790273556230998},49.613951131284388,{"$f":"'RentalHousingCost-Prior5Yr'!$L$58-RentalHousingCost!$L$58","v":127},2.5597638789932891,1.645]
["N",null,null,null,null,null,null,"Renter 50.0 percent or more",null,"Y",{"$f":"'RentalHousingCost-Prior5Yr'!$M$59/1.645","v":56.903073185831296},{"$f":"RentalHousingCost!$M$59/1.645","v":30.309910911411329},64.472090375989552,{"$f":"'RentalHousingCost-Prior5Yr'!$L$59-RentalHousingCost!$L$59","v":132},2.0473975518739955,1.645]
["N",null,null,null,null,null,null,"Renter Not computed",null,"Y",{"$f":"'RentalHousingCost-Prior5Yr'!$M$60/1.645","v":81.624384056577938},{"$f":"RentalHousingCost!$M$60/1.645","v":143.77767184351566},165.33166361395331,{"$f":"'RentalHousingCost-Prior5Yr'!$L$60-RentalHousingCost!$L$60","v":-290},1.7540499724066478,1.645]
["N",null,null,null,null,null,null,"Renter $35,000 to $49,999:",null,"N",{"$f":"'RentalHousingCost-Prior5Yr'!$O$52/1.645","v":109.42249240121581},{"$f":"RentalHousingCost!$O$52/1.645","v":145.28875379939208},181.88486419676184,{"$f":"'RentalHousingCost-Prior5Yr'!$N$52-RentalHousingCost!$N$52","v":-55},0.30238909786633683,1.645]
["N",null,null,null,null,null,null,"Renter Less than 20.0 percent",null,"N",{"$f":"'RentalHousingCost-Prior5Yr'!$O$53/1.645","v":23.100303951367781},{"$f":"RentalHousingCost!$O$53/1.645","v":55.319148936170215},59.948580314030458,{"$f":"'RentalHousingCost-Prior5Yr'!$N$53-RentalHousingCost!$N$53","v":-26},0.43370501626232705,1.645]
["N",null,null,null,null,null,null,"Renter 20.0 to 24.9 percent",null,"N",{"$f":"'RentalHousingCost-Prior5Yr'!$O$54/1.645","v":38.297872340425535},{"$f":"RentalHousingCost!$O$54/1.645","v":38.297872340425535},54.161370473863215,{"$f":"'RentalHousingCost-Prior5Yr'!$N$54-RentalHousingCost!$N$54","v":24},0.44312024954356977,1.645]
["N",null,null,null,null,null,null,"Renter 25.0 to 29.9 percent",null,"N",{"$f":"'RentalHousingCost-Prior5Yr'!$O$55/1.645","v":48.632218844984799},{"$f":"RentalHousingCost!$O$55/1.645","v":53.495440729483285},72.296990868418263,{"$f":"'RentalHousingCost-Prior5Yr'!$N$55-RentalHousingCost!$N$55","v":59},0.81607822526640139,1.645]
["N",null,null,null,null,null,null,"Renter 30.0 to 34.9 percent",null,"N",{"$f":"'RentalHousingCost-Prior5Yr'!$O$56/1.645","v":66.071505039885409},{"$f":"RentalHousingCost!$O$56/1.645","v":85.957532791881434},108.41651729281371,{"$f":"'RentalHousingCost-Prior5Yr'!$N$56-RentalHousingCost!$N$56","v":57},0.52575014788616714,1.645]
["N",null,null,null,null,null,null,"Renter 35.0 to 39.9 percent",null,{"$f":"IF(O208>P208,\"Y\",\"N\")","v":"N"},{"$f":"'RentalHousingCost-Prior5Yr'!$O$57/1.645","v":67.47994189246765},{"$f":"RentalHousingCost!$O$57/1.645","v":96.530284008817063},117.77791935941853,{"$f":"'RentalHousingCost-Prior5Yr'!$N$57-RentalHousingCost!$N$57","v":-123},1.044338367233721,1.645]
["N",null,null,null,null,null,null,"Renter 40.0 to 49.9 percent",null,"N",{"$f":"'RentalHousingCost-Prior5Yr'!$O$58/1.645","v":56.534954407294833},{"$f":"RentalHousingCost!$O$58/1.645","v":44.984802431610944},72.248415343493704,{"$f":"'RentalHousingCost-Prior5Yr'!$N$58-RentalHousingCost!$N$58","v":60},0.83046804161363896,1.645]
["N",null,null,null,null,null,null,"Renter 50.0 percent or more",null,"N",{"$f":"'RentalHousingCost-Prior5Yr'!$O$59/1.645","v":122.60645944718024},{"$f":"RentalHousingCost!$O$59/1.645","v":130.94233522349236},179.38293969035769,{"$f":"'RentalHousingCost-Prior5Yr'!$N$59-RentalHousingCost!$N$59","v":117},0.65223593838945804,1.645]
["N",null,null,null,null,null,null,"Renter Not computed",null,"Y",{"$f":"'RentalHousingCost-Prior5Yr'!$O$60/1.645","v":36.842115682679051},{"$f":"RentalHousingCost!$O$60/1.645","v":85.407630110030667},93.015078180839708,{"$f":"'RentalHousingCost-Prior5Yr'!$N$60-RentalHousingCost!$N$60","v":-183},1.9674229552784099,1.645]
["N",null,null,null,null,null,null,"Renter $50,000 to $74,999:",null,"N",{"$f":"'RentalHousingCost-Prior5Yr'!$Q$52/1.645","v":103.34346504559271},{"$f":"RentalHousingCost!$Q$52/1.645","v":64.437689969604861},121.78705865669208,{"$f":"'RentalHousingCost-Prior5Yr'!$P$52-RentalHousingCost!$P$52","v":189},1.5518890273290513,1.645]
["N",null,null,null,null,null,null,"Renter Less than 20.0 percent",null,"Y",{"$f":"'RentalHousingCost-Prior5Yr'!$Q$53/1.645","v":97.264437689969597},{"$f":"RentalHousingCost!$Q$53/1.645","v":17.62917933130699},98.84917198965988,{"$f":"'RentalHousingCost-Prior5Yr'!$P$53-RentalHousingCost!$P$53","v":225},2.2761950906734567,1.645]
["N",null,null,null,null,null,null,"Renter 20.0 to 24.9 percent",null,"N",{"$f":"'RentalHousingCost-Prior5Yr'!$Q$54/1.645","v":40.121580547112458},{"$f":"RentalHousingCost!$Q$54/1.645","v":54.10334346504559},67.356610660685149,{"$f":"'RentalHousingCost-Prior5Yr'!$P$54-RentalHousingCost!$P$54","v":-24},0.35631246531839483,1.645]
["N",null,null,null,null,null,null,"Renter 25.0 to 29.9 percent",null,"N",{"$f":"'RentalHousingCost-Prior5Yr'!$Q$55/1.645","v":13.98176291793313},{"$f":"RentalHousingCost!$Q$55/1.645","v":21.276595744680851},25.459442664281973,{"$f":"'RentalHousingCost-Prior5Yr'!$P$55-RentalHousingCost!$P$55","v":-2},7.8556315091919765E-2,1.645]
["N",null,null,null,null,null,null,"Renter 30.0 to 34.9 percent",null,"N",{"$f":"'RentalHousingCost-Prior5Yr'!$Q$56/1.645","v":106.13953909376893},{"$f":"RentalHousingCost!$Q$56/1.645","v":60.750747028120109},122.29576862472531,{"$f":"'RentalHousingCost-Prior5Yr'!$P$56-RentalHousingCost!$P$56","v":199},1.6272026598945379,1.645]
["N",null,null,null,null,null,null,"Renter 35.0 to 39.9 percent",null,"N",{"$f":"'RentalHousingCost-Prior5Yr'!$Q$57/1.645","v":21.88449848024316},{"$f":"RentalHousingCost!$Q$57/1.645","v":24.407124498340099},32.781686961003679,{"$f":"'RentalHousingCost-Prior5Yr'!$P$57-RentalHousingCost!$P$57","v":-10},0.30504836471337682,1.645]
["N",null,null,null,null,null,null,"Renter 40.0 to 49.9 percent",null,"N",{"$f":"'RentalHousingCost-Prior5Yr'!$Q$58/1.645","v":10.94224924012158},{"$f":"RentalHousingCost!$Q$58/1.645","v":13.98176291793313},17.754506828583867,{"$f":"'RentalHousingCost-Prior5Yr'!$P$58-RentalHousingCost!$P$58","v":-10},0.5632372724597734,1.645]
["N",null,null,null,null,null,null,"Renter 50.0 percent or more",null,"N",{"$f":"'RentalHousingCost-Prior5Yr'!$Q$59/1.645","v":106.70208328552282},{"$f":"RentalHousingCost!$Q$59/1.645","v":62.338936137601308},123.57781975839589,{"$f":"'RentalHousingCost-Prior5Yr'!$P$59-RentalHousingCost!$P$59","v":189},1.5294006672840603,1.645]
["N",null,null,null,null,null,null,"Renter Not computed",null,"N",{"$f":"'RentalHousingCost-Prior5Yr'!$Q$60/1.645","v":18.952531632972519},{"$f":"RentalHousingCost!$Q$60/1.645","v":20.005450057026547},27.557512356579057,{"$f":"'RentalHousingCost-Prior5Yr'!$P$60-RentalHousingCost!$P$60","v":0},0,1.645]
["N",null,null,null,null,null,null,"Renter $75,000 to $99,999:",null,"N",{"$f":"'RentalHousingCost-Prior5Yr'!$S$52/1.645","v":62.61398176291793},{"$f":"RentalHousingCost!$S$52/1.645","v":49.240121580547111},79.656137776533456,{"$f":"'RentalHousingCost-Prior5Yr'!$R$52-RentalHousingCost!$R$52","v":-30},0.37661881227736277,1.645]
["N",null,null,null,null,null,null,"Renter Less than 20.0 percent",null,"N",{"$f":"'RentalHousingCost-Prior5Yr'!$S$53/1.645","v":55.927051671732521},{"$f":"RentalHousingCost!$S$53/1.645","v":49.240121580547111},74.514593751557825,{"$f":"'RentalHousingCost-Prior5Yr'!$R$53-RentalHousingCost!$R$53","v":-61},0.81863158515474987,1.645]
["N",null,null,null,null,null,null,"Renter 20.0 to 24.9 percent",null,"N",{"$f":"'RentalHousingCost-Prior5Yr'!$S$54/1.645","v":15.19756838905775},{"$f":"RentalHousingCost!$S$54/1.645","v":11.550151975683891},19.088533091924113,{"$f":"'RentalHousingCost-Prior5Yr'!$R$54-RentalHousingCost!$R$54","v":15},0.78581208559950211,1.645]
["N",null,null,null,null,null,null,"Renter 25.0 to 29.9 percent",null,"N",{"$f":"'RentalHousingCost-Prior5Yr'!$S$55/1.645","v":7.9027355623100304},{"$f":"RentalHousingCost!$S$55/1.645","v":11.550151975683891},13.994971955284301,{"$f":"'RentalHousingCost-Prior5Yr'!$R$55-RentalHousingCost!$R$55","v":7},0.50017963754167438,1.645]
["N",null,null,null,null,null,null,"Renter 30.0 to 34.9 percent",null,"N",{"$f":"'RentalHousingCost-Prior5Yr'!$S$56/1.645","v":58.491490175926678},{"$f":"RentalHousingCost!$S$56/1.645","v":51.878720055431685},78.183476627676114,{"$f":"'RentalHousingCost-Prior5Yr'!$R$56-RentalHousingCost!$R$56","v":-39},0.49882662785290388,1.645]
["N",null,null,null,null,null,null,"Renter 35.0 to 39.9 percent",null,"N",{"$f":"'RentalHousingCost-Prior5Yr'!$S$57/1.645","v":21.88449848024316},{"$f":"RentalHousingCost!$S$57/1.645","v":23.100303951367781},31.820674354534709,{"$f":"'RentalHousingCost-Prior5Yr'!$R$57-RentalHousingCost!$R$57","v":0},0,1.645]
["N",null,null,null,null,null,null,"Renter 40.0 to 49.9 percent",null,"N",{"$f":"'RentalHousingCost-Prior5Yr'!$S$58/1.645","v":10.94224924012158},{"$f":"RentalHousingCost!$S$58/1.645","v":11.550151975683891},15.910337177267355,{"$f":"'RentalHousingCost-Prior5Yr'!$R$58-RentalHousingCost!$R$58","v":0},0,1.645]
["N",null,null,null,null,null,null,"Renter 50.0 percent or more",null,"N",{"$f":"'RentalHousingCost-Prior5Yr'!$S$59/1.645","v":59.506194983660883},{"$f":"RentalHousingCost!$S$59/1.645","v":53.148919135305512},79.785931383200079,{"$f":"'RentalHousingCost-Prior5Yr'!$R$59-RentalHousingCost!$R$59","v":-39},0.4888079806036072,1.645]
["N",null,null,null,null,null,null,"Renter Not computed",null,"N",{"$f":"'RentalHousingCost-Prior5Yr'!$S$60/1.645","v":18.952531632972519},{"$f":"RentalHousingCost!$S$60/1.645","v":20.005450057026547},27.557512356579057,{"$f":"'RentalHousingCost-Prior5Yr'!$R$60-RentalHousingCost!$R$60","v":0},0,1.645]
["N",null,null,null,null,null,null,"Renter $100,000 or more:",null,"N",{"$f":"'RentalHousingCost-Prior5Yr'!$U$52/1.645","v":50.455927051671729},{"$f":"RentalHousingCost!$U$52/1.645","v":21.88449848024316},54.997562203932127,{"$f":"'RentalHousingCost-Prior5Yr'!$T$52-RentalHousingCost!$T$52","v":54},0.98186170142899887,1.645]
[{"$f":"IF(F231>G231,\"Y\",\"N\")","v":"N"},null,null,null,null,null,null,"Renter Less than 20.0 percent",null,"N",{"$f":"'RentalHousingCost-Prior5Yr'!$U$53/1.645","v":50.455927051671729},{"$f":"RentalHousingCost!$U$53/1.645","v":21.88449848024316},54.997562203932127,{"$f":"'RentalHousingCost-Prior5Yr'!$T$53-RentalHousingCost!$T$53","v":54},{"$f":"ABS((N231/M231))","v":0.98186170142899887},1.645]
["N",null,null,null,null,null,null,"Renter 20.0 to 24.9 percent",null,"N",{"$f":"'RentalHousingCost-Prior5Yr'!$U$54/1.645","v":10.94224924012158},{"$f":"RentalHousingCost!$U$54/1.645","v":11.550151975683891},15.910337177267355,{"$f":"'RentalHousingCost-Prior5Yr'!$T$54-RentalHousingCost!$T$54","v":0},0,1.645]
["N",null,null,null,null,null,null,"Renter 25.0 to 29.9 percent",null,"N",{"$f":"'RentalHousingCost-Prior5Yr'!$U$55/1.645","v":10.94224924012158},{"$f":"RentalHousingCost!$U$55/1.645","v":11.550151975683891},15.910337177267355,{"$f":"'RentalHousingCost-Prior5Yr'!$T$55-RentalHousingCost!$T$55","v":0},0,1.645]
["N",null,null,null,null,null,null,"Renter 30.0 to 34.9 percent",null,"N",{"$f":"'RentalHousingCost-Prior5Yr'!$U$56/1.645","v":52.775621374925585},{"$f":"RentalHousingCost!$U$56/1.645","v":27.308300845247661},59.422298058591238,{"$f":"'RentalHousingCost-Prior5Yr'!$T$56-RentalHousingCost!$T$56","v":54},0.90874977515604038,1.645]
["N",null,null,null,null,null,null,"Renter 35.0 to 39.9 percent",null,"N",{"$f":"'RentalHousingCost-Prior5Yr'!$U$57/1.645","v":21.88449848024316},{"$f":"RentalHousingCost!$U$57/1.645","v":23.100303951367781},31.820674354534709,{"$f":"'RentalHousingCost-Prior5Yr'!$T$57-RentalHousingCost!$T$57","v":0},0,1.645]
["N",null,null,null,null,null,null,"Renter 40.0 to 49.9 percent",null,"N",{"$f":"'RentalHousingCost-Prior5Yr'!$U$58/1.645","v":10.94224924012158},{"$f":"RentalHousingCost!$U$58/1.645","v":11.550151975683891},15.910337177267355,{"$f":"'RentalHousingCost-Prior5Yr'!$T$58-RentalHousingCost!$T$58","v":0},0,1.645]
["N",null,null,null,null,null,null,"Renter 50.0 percent or more",null,"N",{"$f":"'RentalHousingCost-Prior5Yr'!$U$59/1.645","v":53.898042913842836},{"$f":"RentalHousingCost!$U$59/1.645","v":29.650452032236348},61.51543168716605,{"$f":"'RentalHousingCost-Prior5Yr'!$T$59-RentalHousingCost!$T$59","v":54},0.87782851422736596,1.645]
["N",null,null,null,null,null,null,"Renter Not computed",null,"N",{"$f":"'RentalHousingCost-Prior5Yr'!$U$60/1.645","v":18.952531632972519},{"$f":"RentalHousingCost!$U$60/1.645","v":20.005450057026547},27.557512356579057,{"$f":"'RentalHousingCost-Prior5Yr'!$T$60-RentalHousingCost!$T$60","v":0},0,1.645]
[null,null,null,null,null,null,null,"Total Owner Housing",null,"Y",{"$f":"OwnerHousingCostPrior5Year!$F$50/1.645","v":145.28875379939208},{"$f":"OwnerHousingCost!$F$50/1.645","v":171.42857142857142},224.71443452217568,{"$f":"OwnerHousingCostPrior5Year!$E$50-OwnerHousingCost!$E$50","v":413},1.8378881662772917,1.645]
[null,null,null,null,null,null,null,"Monthly Costs Less than 20% of HH Income",null,"N",{"$f":"OwnerHousingCostPrior5Year!$F$51/1.645","v":117.8171334400532},{"$f":"OwnerHousingCost!$F$51/1.645","v":172.44840969233044},208.85241424854334,{"$f":"OwnerHousingCostPrior5Year!$E$51-OwnerHousingCost!$E$51","v":-110},0.52668771101250134,1.645]
[null,null,null,null,null,null,null,"Monthly Costs 20% to 29.9% of HH Income",null,"N",{"$f":"OwnerHousingCostPrior5Year!$F$52/1.645","v":124.97096419081016},{"$f":"OwnerHousingCost!$F$52/1.645","v":138.24274929370651},186.35664630772723,{"$f":"OwnerHousingCostPrior5Year!$E$52-OwnerHousingCost!$E$52","v":156},0.83710456852931414,1.645]
[null,null,null,null,null,null,null,"Monthly Costs Less Than 30% of HH Income",null,"N",{"$f":"OwnerHousingCostPrior5Year!$F$53/1.645","v":171.75161956386921},{"$f":"OwnerHousingCost!$F$53/1.645","v":221.0192564861633},279.90736067582878,{"$f":"OwnerHousingCostPrior5Year!$E$53-OwnerHousingCost!$E$53","v":46},0.16434008698068617,1.645]
[null,null,null,null,null,null,null,"Monthly Costs 30% or More of HH Income",null,"Y",{"$f":"OwnerHousingCostPrior5Year!$F$54/1.645","v":136.17564036078457},{"$f":"OwnerHousingCost!$F$54/1.645","v":126.71236377545432},186.01029047134142,{"$f":"OwnerHousingCostPrior5Year!$E$54-OwnerHousingCost!$E$54","v":425},2.2848198286399626,1.645]
[null,null,null,null,null,null,null,"Monthly Costs 35% or More of HH Income",null,"Y",{"$f":"OwnerHousingCostPrior5Year!$F$56/1.645","v":121.11003180484768},{"$f":"OwnerHousingCost!$F$56/1.645","v":101.07102837904706},157.74343910720773,{"$f":"OwnerHousingCostPrior5Year!$E$56-OwnerHousingCost!$E$56","v":425},2.6942483465899061,1.645]
[null,null,null,null,null,null,null,"Monthly Costs 50% or More of HH Income",null,"Y",{"$f":"OwnerHousingCostPrior5Year!$F$57/1.645","v":93.802366557979596},{"$f":"OwnerHousingCost!$F$57/1.645","v":77.461694493959513},121.65195471406568,{"$f":"OwnerHousingCostPrior5Year!$E$57-OwnerHousingCost!$E$57","v":251},2.0632631887416668,1.645]
[null,null,null,null,null,null,null,"Percent not computed",null,"N",{"$f":"OwnerHousingCostPrior5Year!$F$58/1.645","v":36.158716979849366},{"$f":"OwnerHousingCost!$F$58/1.645","v":63.221884498480243},72.831720377648793,{"$f":"OwnerHousingCostPrior5Year!$E$58-OwnerHousingCost!$E$58","v":-58},0.79635630875196961,1.645]
[null,null,null,null,null,null,null,"Owner Less than $20,000:",null,"Y",{"$f":"OwnerHousingCostPrior5Year!$I$50/1.645","v":79.635258358662611},{"$f":"OwnerHousingCost!$I$50/1.645","v":20.668693009118542},82.27374577929541,{"$f":"OwnerHousingCostPrior5Year!$H$50-OwnerHousingCost!$H$50","v":397},4.8253546284981104,1.645]
[null,null,null,null,null,null,null,"Owner Less than 20.0 percent",null,"N",{"$f":"OwnerHousingCostPrior5Year!$I$51/1.645","v":10.334346504559271},{"$f":"OwnerHousingCost!$I$51/1.645","v":11.550151975683891},15.498539554993267,{"$f":"OwnerHousingCostPrior5Year!$H$51-OwnerHousingCost!$H$51","v":0},0,1.645]
[null,null,null,null,null,null,null,"Owner 20.0 to 24.9 percent",null,"N",{"$f":"OwnerHousingCostPrior5Year!$I$52/1.645","v":28.571428571428569},{"$f":"OwnerHousingCost!$I$52/1.645","v":11.550151975683891},30.817730955955199,{"$f":"OwnerHousingCostPrior5Year!$H$52-OwnerHousingCost!$H$52","v":47},1.5250960580833337,1.645]
[null,null,null,null,null,null,null,"Owner 25.0 to 29.9 percent",null,"N",{"$f":"OwnerHousingCostPrior5Year!$I$53/1.645","v":30.382976290820181},{"$f":"OwnerHousingCost!$I$53/1.645","v":16.334381571482556},34.495467377777764,{"$f":"OwnerHousingCostPrior5Year!$H$53-OwnerHousingCost!$H$53","v":47},1.3624978460294104,1.645]
[null,null,null,null,null,null,null,"Owner 30.0 or more",null,"Y",{"$f":"OwnerHousingCostPrior5Year!$I$54/1.645","v":77.81155015197568},{"$f":"OwnerHousingCost!$I$54/1.645","v":20.668693009118542},80.509826777596615,{"$f":"OwnerHousingCostPrior5Year!$H$54-OwnerHousingCost!$H$54","v":350},4.3472954049057044,1.645]
[null,null,null,null,null,null,null,"Owner $20,000 to $34,999:",null,"N",{"$f":"OwnerHousingCostPrior5Year!$J$50/1.645","v":234.65045592705167},{"$f":"OwnerHousingCost!$J$50/1.645","v":252.27963525835867},344.53715450276724,{"$f":"OwnerHousingCostPrior5Year!$K$50-OwnerHousingCost!$K$50","v":-41},0.11900022817327441,1.645]
[null,null,null,null,null,null,null,"Owner Less than 20.0 percent",null,"N",{"$f":"OwnerHousingCostPrior5Year!$J$51/1.645","v":31.610942249240122},{"$f":"OwnerHousingCost!$J$51/1.645","v":0},31.610942249240122,{"$f":"OwnerHousingCostPrior5Year!$K$51-OwnerHousingCost!$K$51","v":32},1.0123076923076924,1.645]
[null,null,null,null,null,null,null,"Owner 20.0 to 24.9 percent",null,"N",{"$f":"OwnerHousingCostPrior5Year!$J$52/1.645","v":28.571428571428569},{"$f":"OwnerHousingCost!$J$52/1.645","v":46.200607902735563},54.321475506419709,{"$f":"OwnerHousingCostPrior5Year!$K$52-OwnerHousingCost!$K$52","v":-34},0.62590346972408517,1.645]
[null,null,null,null,null,null,null,"Owner 25.0 to 29.9 percent",null,"N",{"$f":"OwnerHousingCostPrior5Year!$J$53/1.645","v":60.182370820668694},{"$f":"OwnerHousingCost!$J$53/1.645","v":46.200607902735563},75.87103484320474,{"$f":"OwnerHousingCostPrior5Year!$K$53-OwnerHousingCost!$K$53","v":-8.8965711919708426},0.11725912544038074,1.645]
[null,null,null,null,null,null,null,"Owner 30.0 or more",null,"N",{"$f":"OwnerHousingCostPrior5Year!$J$54/1.645","v":174.46808510638297},{"$f":"OwnerHousingCost!$J$54/1.645","v":206.07902735562311},270.01421858214752,{"$f":"OwnerHousingCostPrior5Year!$K$54-OwnerHousingCost!$K$54","v":-52},0.19258245092815299,1.645]
[null,null,null,null,null,null,null,"Owner $35,000 to $49,999:",null,"N",{"$f":"OwnerHousingCostPrior5Year!$M$50/1.645","v":71.124620060790278},{"$f":"OwnerHousingCost!$M$50/1.645","v":93.61702127659575},117.5706521692142,{"$f":"OwnerHousingCostPrior5Year!$L$50-OwnerHousingCost!$L$50","v":24},0.2041325752404424,1.645]
[null,null,null,null,null,null,null,"Owner Less than 20.0 percent",null,"N",{"$f":"OwnerHousingCostPrior5Year!$M$51/1.645","v":37.689969604863222},{"$f":"OwnerHousingCost!$M$51/1.645","v":26.13981762917933},{"$f":"SQRT((K258^2)+(L258^2))","v":45.867459865380255},{"$f":"OwnerHousingCostPrior5Year!$L$51-OwnerHousingCost!$L$51","v":46},1.0028896331954886,1.645]
[null,null,null,null,null,null,null,"Owner 20.0 to 24.9 percent",null,"N",{"$f":"OwnerHousingCostPrior5Year!$M$52/1.645","v":40.729483282674771},{"$f":"OwnerHousingCost!$M$52/1.645","v":54.10334346504559},67.720473880285098,{"$f":"OwnerHousingCostPrior5Year!$L$52-OwnerHousingCost!$L$52","v":-36},0.53159698887577311,1.645]
[null,null,null,null,null,null,null,"Owner 25.0 to 29.9 percent",null,"N",{"$f":"OwnerHousingCostPrior5Year!$M$53/1.645","v":55.492563621526777},{"$f":"OwnerHousingCost!$M$53/1.645","v":60.087118750889083},81.791726091779253,{"$f":"OwnerHousingCostPrior5Year!$L$53-OwnerHousingCost!$L$53","v":10},0.12226175528780145,1.645]
[null,null,null,null,null,null,null,"Owner 30.0 or more",null,"N",{"$f":"OwnerHousingCostPrior5Year!$M$54/1.645","v":55.927051671732521},{"$f":"OwnerHousingCost!$M$54/1.645","v":70.516717325227958},90.002458472081443,{"$f":"OwnerHousingCostPrior5Year!$L$54-OwnerHousingCost!$L$54","v":14},0.15555130646062038,1.645]
[null,null,null,null,null,null,null,"Owner $50,000 to $74,999:",null,"N",{"$f":"OwnerHousingCostPrior5Year!$O$50/1.645","v":77.81155015197568},{"$f":"OwnerHousingCost!$O$50/1.645","v":114.28571428571428},138.26012377706505,{"$f":"OwnerHousingCostPrior5Year!$N$50-OwnerHousingCost!$N$50","v":14},0.10125840782967935,1.645]
[null,null,null,null,null,null,null,"Owner Less than 20.0 percent",null,"N",{"$f":"OwnerHousingCostPrior5Year!$O$51/1.645","v":41.337386018237083},{"$f":"OwnerHousingCost!$O$51/1.645","v":102.73556231003039},110.74012482374616,{"$f":"OwnerHousingCostPrior5Year!$N$51-OwnerHousingCost!$N$51","v":-127},1.1468291209002432,1.645]
[null,null,null,null,null,null,null,"Owner 20.0 to 24.9 percent",null,"N",{"$f":"OwnerHousingCostPrior5Year!$O$52/1.645","v":58.966565349544069},{"$f":"OwnerHousingCost!$O$52/1.645","v":46.200607902735563},74.910293015742255,{"$f":"OwnerHousingCostPrior5Year!$N$52-OwnerHousingCost!$N$52","v":93},1.2414849315895244,1.645]
[null,null,null,null,null,null,null,"Owner 25.0 to 29.9 percent",null,"N",{"$f":"OwnerHousingCostPrior5Year!$O$53/1.645","v":72.012744093964329},{"$f":"OwnerHousingCost!$O$53/1.645","v":112.6458695813586},133.69714748521469,{"$f":"OwnerHousingCostPrior5Year!$N$53-OwnerHousingCost!$N$53","v":-34},0.25430609881755328,1.645]
[null,null,null,null,null,null,null,"Owner 30.0 or more",null,"N",{"$f":"OwnerHousingCostPrior5Year!$O$54/1.645","v":54.10334346504559},{"$f":"OwnerHousingCost!$O$54/1.645","v":57.142857142857139},78.692298838867771,{"$f":"OwnerHousingCostPrior5Year!$N$54-OwnerHousingCost!$N$54","v":48},0.60997074311281652,1.645]
[null,null,null,null,null,null,null,"Owner $75,000 or more",null,"N",{"$f":"OwnerHousingCostPrior5Year!$Q$50/1.645","v":120.36474164133739},{"$f":"OwnerHousingCost!$Q$50/1.645","v":153.19148936170214},194.82120891536013,{"$f":"OwnerHousingCostPrior5Year!$P$50-OwnerHousingCost!$P$50","v":65},0.33363923959756958,1.645]
[null,null,null,null,null,null,null,"Owner Less than 20.0 percent",null,"N",{"$f":"OwnerHousingCostPrior5Year!$Q$51/1.645","v":98.480243161094222},{"$f":"OwnerHousingCost!$Q$51/1.645","v":127.05167173252279},160.74976075595563,{"$f":"OwnerHousingCostPrior5Year!$P$51-OwnerHousingCost!$P$51","v":-81},0.50388877482045658,1.645]
[null,null,null,null,null,null,null,"Owner 20.0 to 24.9 percent",null,"N",{"$f":"OwnerHousingCostPrior5Year!$Q$52/1.645","v":89.969604863221889},{"$f":"OwnerHousingCost!$Q$52/1.645","v":95.440729483282681},131.16197102645805,{"$f":"OwnerHousingCostPrior5Year!$P$52-OwnerHousingCost!$P$52","v":81},0.61755705076786815,1.645]
[null,null,null,null,null,null,null,"Owner 25.0 to 29.9 percent",null,"N",{"$f":"OwnerHousingCostPrior5Year!$Q$53/1.645","v":133.38998497755566},{"$f":"OwnerHousingCost!$Q$53/1.645","v":158.90582158728444},207.47035505498707,{"$f":"OwnerHousingCostPrior5Year!$P$53-OwnerHousingCost!$P$53","v":0},0,1.645]
[null,null,null,null,null,null,null,"Owner 30.0 or more",null,"Y",{"$f":"OwnerHousingCostPrior5Year!$Q$54/1.645","v":34.042553191489361},{"$f":"OwnerHousingCost!$Q$54/1.645","v":17.021276595744681},38.060731531911316,{"$f":"OwnerHousingCostPrior5Year!$P$54-OwnerHousingCost!$P$54","v":65},1.7077969178154644,1.645]

{"sheet":"OwnerHousingCost","index":18,"n_rows":112,"n_cols":17,"rows_kept":112,"cut":false,"hidden":true,"merged":[]}
[]
[null,null,"HIDE THIS COLUMN",{"$f":"CntyDataLink!$A35","v":"Grantham"}]
[null,null,null,"OWNER HOUSING COST CHARACTERISTICS"]
[]
[]
[]
[]
[]
[]
[]
[]
[]
[]
[]
[]
[]
[]
[]
[]
[]
[]
[]
[]
[]
[]
[]
[]
[]
[]
[]
[]
[]
[]
[]
[]
[]
[null,null,null,"Income in 2022 Inflation Adjusted Dollars"]
[null,null,null,"Source: 2018-2022 American Community Survey Table B25106"]
[null,null,null,"Data from the American Community Survey are estimates."]
[]
[]
[null,null,null,{"$f":"CntyDataLink!A$35","v":"Grantham"}]
[]
[null,null,null,{"$f":"D3","v":"OWNER HOUSING COST CHARACTERISTICS"}]
[]
[null,null,null,"Owner Households by "]
[null,null,null,"Selected Monthly Housing Costs as a Percent of 2022 Household Income",null,null,null,"By Household Income"]
[null,null,"H73RenterOccHU",null,"Specified Owner Occ Housing Units","Margin of Error Owner Occ Housing Units",null,"Less than $20,000",{"$f":"\"Margin of Error \"&H48","v":"Margin of Error Less than $20,000"},"$20,000 to $34,999",{"$f":"\"Margin of Error \"&J48","v":"Margin of Error $20,000 to $34,999"},"$35,000 to $49,999",{"$f":"\"Margin of Error \"&L48","v":"Margin of Error $35,000 to $49,999"},"$50,000 to $74,999",{"$f":"\"Margin of Error \"&N48","v":"Margin of Error $50,000 to $74,999"},"$75,000 or More",{"$f":"\"Margin of Error \"&P48","v":"Margin of Error $75,000 or More"}]
[]
[null,null,null,"Total Households",{"$f":"CntyDataLink!$BF144","v":2884},{"$f":"CntyDataLink!$BG$144","v":282},null,{"$f":"CntyDataLink!$BZ$144","v":30},{"$f":"CntyDataLink!$CA$144","v":34},{"$f":"CntyDataLink!$CH$144","v":415},{"$f":"CntyDataLink!$CI$144","v":159},{"$f":"CntyDataLink!$CP$144","v":409},{"$f":"CntyDataLink!$CQ$144","v":154},{"$f":"CntyDataLink!$CX$144","v":664},{"$f":"CntyDataLink!$CY$144","v":188},{"$f":"CntyDataLink!$DF$144","v":1263},{"$f":"CntyDataLink!$DG$144","v":252}]
[null,null,null,"Monthly Costs Less than 20% of HH Income",{"$f":"CntyDataLink!$BH$144","v":1254},{"$f":"CntyDataLink!$BI$144","v":283.67763394388356},null,{"$f":"CntyDataLink!$CB$144","v":0},{"$f":"CntyDataLink!$CC$144","v":19},{"$f":"CntyDataLink!CJ$144","v":0},{"$f":"CntyDataLink!CK$144","v":19},{"$f":"CntyDataLink!CR$144","v":63},{"$f":"CntyDataLink!CS$144","v":43},{"$f":"CntyDataLink!CZ$144","v":360},{"$f":"CntyDataLink!DA$144","v":169},{"$f":"CntyDataLink!DH$144","v":831},{"$f":"CntyDataLink!DI$144","v":209}]
[null,null,null,"Monthly Costs 20% to 29.9% of HH Income",{"$f":"CntyDataLink!$BJ$144","v":790},{"$f":"CntyDataLink!$BK$144","v":227.40932258814721},null,{"$f":"CntyDataLink!$CD$144","v":0},{"$f":"CntyDataLink!$CE$144","v":19},{"$f":"CntyDataLink!CL$144","v":76},{"$f":"CntyDataLink!CM$144","v":67},{"$f":"CntyDataLink!CT$144","v":165},{"$f":"CntyDataLink!CU$144","v":89},{"$f":"CntyDataLink!DB$144","v":139},{"$f":"CntyDataLink!DC$144","v":76},{"$f":"CntyDataLink!DJ$144","v":410},{"$f":"CntyDataLink!DK$144","v":157}]
[null,null,null,"Monthly Costs Less Than 30% of HH Income",{"$f":"CntyDataLink!$BL$144","v":2044},{"$f":"CntyDataLink!$BM$144","v":363.57667691973865},null,{"$f":"H52+H51","v":0},{"$f":"SQRT((I52^2)+(I51^2))","v":26.870057685088806},{"$f":"J52+J51","v":76},{"$f":"SQRT((K52^2)+(K51^2))","v":69.641941385920603},{"$f":"L52+L51","v":228},{"$f":"SQRT((M52^2)+(M51^2))","v":98.843310345212544},{"$f":"N52+N51","v":499},{"$f":"SQRT((O52^2)+(O51^2))","v":185.30245546133489},{"$f":"P52+P51","v":1241},{"$f":"SQRT((Q52^2)+(Q51^2))","v":261.40007651108289}]
[null,null,null,"Monthly Costs 30% or More of HH Income",{"$f":"CntyDataLink!$BN$144","v":737},{"$f":"CntyDataLink!$BO$144","v":208.44183841062235},null,{"$f":"CntyDataLink!$CF$144","v":30},{"$f":"CntyDataLink!$CG$144","v":34},{"$f":"CntyDataLink!CN$144","v":339},{"$f":"CntyDataLink!CO$144","v":155},{"$f":"CntyDataLink!CV$144","v":181},{"$f":"CntyDataLink!CW$144","v":116},{"$f":"CntyDataLink!DD$144","v":165},{"$f":"CntyDataLink!DE$144","v":94},{"$f":"CntyDataLink!$DL$144","v":22},{"$f":"CntyDataLink!$DM$144","v":28}]
[]
[null,null,null,"Monthly Costs 35% or More of HH Income",{"$f":"CntyDataLink!$BT$144","v":480},{"$f":"CntyDataLink!$BU$144","v":166.26184168353242},null,"NA","NA","NA","NA","NA","NA","NA","NA","NA","NA"]
[null,null,null,"Monthly Costs 50% or More of HH Income",{"$f":"CntyDataLink!$BV$144","v":224},{"$f":"CntyDataLink!$BW$144","v":127.4244874425634},null,"NA","NA","NA","NA","NA","NA","NA","NA","NA","NA"]
[null,null,null,"Percent not computed",{"$f":"CntyDataLink!$BX$144","v":103},{"$f":"CntyDataLink!$BY$144","v":104},null,"NA","NA","NA","NA","NA","NA","NA","NA","NA","NA"]
[]
[null,null,null,"Percent of Owner Households Paying ",null,null,null,"By Household Income"]
[null,null,null,{"$f":"D53","v":"Monthly Costs Less Than 30% of HH Income"},{"$f":"E53/E$50","v":0.70873786407766992},null,null,{"$f":"H53/H$50","v":0},null,{"$f":"J53/J$50","v":0.18313253012048192},null,{"$f":"L53/L$50","v":0.55745721271393645},null,{"$f":"N53/N$50","v":0.75150602409638556},null,{"$f":"P53/P$50","v":0.98258115597783058}]
[null,null,null,{"$f":"D54","v":"Monthly Costs 30% or More of HH Income"},{"$f":"E54/E$50","v":0.25554785020804438},null,null,{"$f":"H54/H50","v":1},null,{"$f":"J54/J50","v":0.81686746987951808},null,{"$f":"L54/L50","v":0.44254278728606355},null,{"$f":"N54/N50","v":0.24849397590361447},null,{"$f":"P54/P50","v":1.7418844022169439E-2}]
[]
[null,null,null,"Monthly Costs 35% or More of HH Income",{"$f":"E56/E$50","v":0.16643550624133149},null,null,"NA","NA","NA","NA","NA","NA","NA","NA","NA","NA"]
[null,null,null,"Monthly Costs 50% or More of HH Income",{"$f":"E57/E$50","v":7.7669902912621352E-2},null,null,"NA","NA","NA","NA","NA","NA","NA","NA","NA","NA"]
[null,null,null,"Percent not computed",{"$f":"E58/$E$50","v":3.5714285714285712E-2},null,null,"NA","NA","NA","NA","NA","NA","NA","NA","NA","NA"]
[]
[null,null,null,{"$f":"D37","v":"Income in 2022 Inflation Adjusted Dollars"}]
[null,null,null,"Source: Source: 2018-2022 American Community Survey Table B25091; B25106",null,null,null,null,"NA indicates that the American Community Survey does not provide that data."]
[null,null,null,"Data from the American Community Survey are estimates."]
[]
[]
[null,null,"H62ROHUGRent250to299",{"$f":"D3","v":"OWNER HOUSING COST CHARACTERISTICS"}]
[null,null,"H62ROHUGRent300to349"]
[null,null,"H62ROHUGRent350to399","Value of Owner Occupied Housing Units"]
[null,null,"H62ROHUGRent400to449"]
[null,null,"H62ROHUGRent450to499","Owner Occupied Housing Units",{"$f":"CntyDataLink!$B$144","v":2884},{"$f":"CntyDataLink!$C$144","v":282}]
[null,null,"H62ROHUGRent500to549"]
[null,null,"H62ROHUGRent550to599","Value","Housing Units","Margin of Error"]
[null,null,"H62ROHUGRent600to649","Less than $10,000",{"$f":"CntyDataLink!$D$144","v":15},{"$f":"CntyDataLink!$E$144","v":23}]
[null,null,"H62ROHUGRent650to699","$10,000 to $14,999",{"$f":"CntyDataLink!$F$144","v":96},{"$f":"CntyDataLink!$G$144","v":100}]
[null,null,"H62ROHUGRent700to749","$15,000 to $19,999",{"$f":"CntyDataLink!$H$144","v":14},{"$f":"CntyDataLink!$I$144","v":22}]
[null,null,"H62ROHUGRent750to799","$20,000 to $24,999",{"$f":"CntyDataLink!$J$144","v":0},{"$f":"CntyDataLink!$K$144","v":19}]
[null,null,"H62ROHUGRent800to899","$25,000 to $29,999",{"$f":"CntyDataLink!$L$144","v":30},{"$f":"CntyDataLink!$M$144","v":33}]
[null,null,"H62ROHUGRent900to999","$30,000 to $34,999",{"$f":"CntyDataLink!$N$144","v":60},{"$f":"CntyDataLink!$O$144","v":57}]
[null,null,"H62ROHUGRent1000to1249","$35,000 to $39,999",{"$f":"CntyDataLink!$P$144","v":0},{"$f":"CntyDataLink!$Q$144","v":19}]
[null,null,"H62ROHUGRent1250to1499","$40,000 to $49,999",{"$f":"CntyDataLink!$R$144","v":66},{"$f":"CntyDataLink!$S$144","v":68}]
[null,null,"H62ROHUGRent1500to1999","$50,000 to $59,999",{"$f":"CntyDataLink!$T$144","v":56},{"$f":"CntyDataLink!$U$144","v":61}]
[null,null,"H62ROHUGRent2000>","$60,000 to $69,999",{"$f":"CntyDataLink!$V$144","v":18},{"$f":"CntyDataLink!$W$144","v":18}]
[null,null,"H62ROHUNoGRent","$70,000 to $79,999",{"$f":"CntyDataLink!$X$144","v":50},{"$f":"CntyDataLink!$Y$144","v":37}]
[null,null,"H63MedianGrossRnt","$80,000 to $89,999",{"$f":"CntyDataLink!$Z$144","v":129},{"$f":"CntyDataLink!$AA$144","v":123}]
[null,null,null,"$90,000 to $99,999",{"$f":"CntyDataLink!$AB$144","v":124},{"$f":"CntyDataLink!$AC$144","v":71}]
[null,null,null,"$100,000 to $124,999",{"$f":"CntyDataLink!$AD$144","v":486},{"$f":"CntyDataLink!$AE$144","v":171}]
[null,null,null,"$125,000 to $149,999",{"$f":"CntyDataLink!$AF$144","v":642},{"$f":"CntyDataLink!$AG$144","v":146}]
[null,null,null,"$150,000 to $174,999",{"$f":"CntyDataLink!$AH$144","v":475},{"$f":"CntyDataLink!$AI$144","v":193}]
[null,null,null,"$175,000 to $199,999",{"$f":"CntyDataLink!$AJ$144","v":275},{"$f":"CntyDataLink!$AK$144","v":170}]
[null,null,null,"$200,000 to $249,999",{"$f":"CntyDataLink!$AL$144","v":180},{"$f":"CntyDataLink!$AM$144","v":82}]
[null,null,null,"$250,000 to $299,999",{"$f":"CntyDataLink!$AN$144","v":103},{"$f":"CntyDataLink!$AO$144","v":66}]
[null,null,null,"$300,000 to $399,999",{"$f":"CntyDataLink!$AP$144","v":15},{"$f":"CntyDataLink!$AQ$144","v":24}]
[null,null,null,"$400,000 to $499,999",{"$f":"CntyDataLink!$AR$144","v":50},{"$f":"CntyDataLink!$AS$144","v":65}]
[null,null,null,"$500,000 to $749,999",{"$f":"CntyDataLink!$AT$144","v":0},{"$f":"CntyDataLink!$AU$144","v":19}]
[null,null,null,"$750,000 to $999,999",{"$f":"CntyDataLink!$AV$144","v":0},{"$f":"CntyDataLink!$AW$144","v":19}]
[null,null,null,"$1,000,000 to $1,499,999",{"$f":"CntyDataLink!$AX$144","v":0},{"$f":"CntyDataLink!$AY$144","v":19}]
[null,null,null,"$1,500,000 to $1,999,999",{"$f":"CntyDataLink!$AZ$144","v":0},{"$f":"CntyDataLink!$BA$144","v":19}]
[null,null,null,"$2,000,000 or more",{"$f":"CntyDataLink!$BB$144","v":0},{"$f":"CntyDataLink!$BC$144","v":19}]
[]
[null,null,null,"Median Value",{"$f":"CntyDataLink!$BD$144","v":136600},{"$f":"CntyDataLink!$BE$144","v":8160}]
[]
[]
[]
[null,null,null,"Source: 2018-2022 American Community Survey Tables B25075 and B25077"]
[null,null,null,"Data from the American Community Survey are estimates."]

{"sheet":"OwnerHousingCostPrior5Year","index":19,"n_rows":112,"n_cols":17,"rows_kept":112,"cut":false,"hidden":true,"merged":[]}
[]
[null,null,"HIDE THIS COLUMN",{"$f":"CntyDataLink!$A35","v":"Grantham"}]
[null,null,null,"OWNER HOUSING COST CHARACTERISTICS"]
[]
[]
[]
[]
[]
[]
[]
[]
[]
[]
[]
[]
[]
[]
[]
[]
[]
[]
[]
[]
[]
[]
[]
[]
[]
[]
[]
[]
[]
[]
[]
[]
[]
[null,null,null,"Income in 2017 Inflation Adjusted Dollars"]
[null,null,null,"Source: 2013-2017 American Community Survey Table B25106"]
[null,null,null,"Data from the American Community Survey are estimates."]
[]
[]
[null,null,null,{"$f":"CntyDataLinkPrior5YearEstimates!$A$108","v":"Grantham"}]
[]
[null,null,null,{"$f":"D3","v":"OWNER HOUSING COST CHARACTERISTICS"}]
[]
[null,null,null,"Owner Households by "]
[null,null,null,"Selected Monthly Housing Costs as a Percent of 2017 Household Income",null,null,null,"By Household Income"]
[null,null,"H73RenterOccHU",null,"Specified Owner Occ Housing Units","Margin of Error Owner Occ Housing Units",null,"Less than $20,000",{"$f":"\"Margin of Error \"&H48","v":"Margin of Error Less than $20,000"},"$20,000 to $34,999",{"$f":"\"Margin of Error \"&J48","v":"Margin of Error $20,000 to $34,999"},"$35,000 to $49,999",{"$f":"\"Margin of Error \"&L48","v":"Margin of Error $35,000 to $49,999"},"$50,000 to $74,999",{"$f":"\"Margin of Error \"&N48","v":"Margin of Error $50,000 to $74,999"},"$75,000 or More",{"$f":"\"Margin of Error \"&P48","v":"Margin of Error $75,000 or More"}]
[]
[null,null,null,"Total Households",{"$f":"CntyDataLinkPrior5YearEstimates!$BF144","v":3297},{"$f":"CntyDataLinkPrior5YearEstimates!$BG$144","v":239},null,{"$f":"CntyDataLinkPrior5YearEstimates!$BZ$144","v":427},{"$f":"CntyDataLinkPrior5YearEstimates!$CA$144","v":131},{"$f":"CntyDataLinkPrior5YearEstimates!$CH$144","v":386},{"$f":"CntyDataLinkPrior5YearEstimates!$CI$144","v":118},{"$f":"CntyDataLinkPrior5YearEstimates!$CP$144","v":433},{"$f":"CntyDataLinkPrior5YearEstimates!$CQ$144","v":117},{"$f":"CntyDataLinkPrior5YearEstimates!$CX$144","v":678},{"$f":"CntyDataLinkPrior5YearEstimates!$CY$144","v":128},{"$f":"CntyDataLinkPrior5YearEstimates!$DF$144","v":1328},{"$f":"CntyDataLinkPrior5YearEstimates!$DG$144","v":198}]
[null,null,null,"Monthly Costs Less than 20% of HH Income",{"$f":"CntyDataLinkPrior5YearEstimates!$BH$144","v":1144},{"$f":"CntyDataLinkPrior5YearEstimates!$BI$144","v":193.80918450888751},null,{"$f":"CntyDataLinkPrior5YearEstimates!$CB$144","v":0},{"$f":"CntyDataLinkPrior5YearEstimates!$CC$144","v":17},{"$f":"CntyDataLinkPrior5YearEstimates!CJ$144","v":52},{"$f":"CntyDataLinkPrior5YearEstimates!CK$144","v":51},{"$f":"CntyDataLinkPrior5YearEstimates!CR$144","v":109},{"$f":"CntyDataLinkPrior5YearEstimates!CS$144","v":62},{"$f":"CntyDataLinkPrior5YearEstimates!CZ$144","v":233},{"$f":"CntyDataLinkPrior5YearEstimates!DA$144","v":68},{"$f":"CntyDataLinkPrior5YearEstimates!DH$144","v":750},{"$f":"CntyDataLinkPrior5YearEstimates!DI$144","v":162}]
[null,null,null,"Monthly Costs 20% to 29.9% of HH Income",{"$f":"CntyDataLinkPrior5YearEstimates!$BJ$144","v":946},{"$f":"CntyDataLinkPrior5YearEstimates!$BK$144","v":205.57723609388273},null,{"$f":"CntyDataLinkPrior5YearEstimates!$CD$144","v":47},{"$f":"CntyDataLinkPrior5YearEstimates!$CE$144","v":47},{"$f":"CntyDataLinkPrior5YearEstimates!CL$144","v":47},{"$f":"CntyDataLinkPrior5YearEstimates!CM$144","v":33},{"$f":"CntyDataLinkPrior5YearEstimates!CT$144","v":129},{"$f":"CntyDataLinkPrior5YearEstimates!CU$144","v":67},{"$f":"CntyDataLinkPrior5YearEstimates!DB$144","v":232},{"$f":"CntyDataLinkPrior5YearEstimates!DC$144","v":97},{"$f":"CntyDataLinkPrior5YearEstimates!DJ$144","v":491},{"$f":"CntyDataLinkPrior5YearEstimates!DK$144","v":148}]
[null,null,null,"Monthly Costs Less Than 30% of HH Income",{"$f":"CntyDataLinkPrior5YearEstimates!$BL$144","v":2090},{"$f":"CntyDataLinkPrior5YearEstimates!$BM$144","v":282.53141418256484},null,{"$f":"H52+H51","v":47},{"$f":"SQRT((I52^2)+(I51^2))","v":49.979995998399197},{"$f":"J52+J51","v":99},{"$f":"SQRT((K52^2)+(K51^2))","v":60.745370193949761},{"$f":"L52+L51","v":238},{"$f":"SQRT((M52^2)+(M51^2))","v":91.285267157411553},{"$f":"N52+N51","v":465},{"$f":"SQRT((O52^2)+(O51^2))","v":118.46096403457132},{"$f":"P52+P51","v":1241},{"$f":"SQRT((Q52^2)+(Q51^2))","v":219.42652528807906}]
[null,null,null,"Monthly Costs 30% or More of HH Income",{"$f":"CntyDataLinkPrior5YearEstimates!$BN$144","v":1162},{"$f":"CntyDataLinkPrior5YearEstimates!$BO$144","v":224.00892839349061},null,{"$f":"CntyDataLinkPrior5YearEstimates!$CF$144","v":380},{"$f":"CntyDataLinkPrior5YearEstimates!$CG$144","v":128},{"$f":"CntyDataLinkPrior5YearEstimates!CN$144","v":287},{"$f":"CntyDataLinkPrior5YearEstimates!CO$144","v":103},{"$f":"CntyDataLinkPrior5YearEstimates!CV$144","v":195},{"$f":"CntyDataLinkPrior5YearEstimates!CW$144","v":92},{"$f":"CntyDataLinkPrior5YearEstimates!DD$144","v":213},{"$f":"CntyDataLinkPrior5YearEstimates!DE$144","v":89},{"$f":"CntyDataLinkPrior5YearEstimates!$DL$144","v":87},{"$f":"CntyDataLinkPrior5YearEstimates!$DM$144","v":56}]
[]
[null,null,null,"Monthly Costs 35% or More of HH Income",{"$f":"CntyDataLinkPrior5YearEstimates!$BT$144","v":905},{"$f":"CntyDataLinkPrior5YearEstimates!$BU$144","v":199.22600231897442},null,"NA","NA","NA","NA","NA","NA","NA","NA","NA","NA"]
[null,null,null,"Monthly Costs 50% or More of HH Income",{"$f":"CntyDataLinkPrior5YearEstimates!$BV$144","v":475},{"$f":"CntyDataLinkPrior5YearEstimates!$BW$144","v":154.30489298787643},null,"NA","NA","NA","NA","NA","NA","NA","NA","NA","NA"]
[null,null,null,"Percent not computed",{"$f":"CntyDataLinkPrior5YearEstimates!$BX$144","v":45},{"$f":"CntyDataLinkPrior5YearEstimates!$BY$144","v":59.481089431852205},null,"NA","NA","NA","NA","NA","NA","NA","NA","NA","NA"]
[]
[null,null,null,"Percent of Owner Households Paying ",null,null,null,"By Household Income"]
[null,null,null,{"$f":"D53","v":"Monthly Costs Less Than 30% of HH Income"},{"$f":"E53/E$50","v":0.63390961480133456},null,null,{"$f":"H53/H$50","v":0.11007025761124122},null,{"$f":"J53/J$50","v":0.25647668393782386},null,{"$f":"L53/L$50","v":0.54965357967667439},null,{"$f":"N53/N$50","v":0.68584070796460173},null,{"$f":"P53/P$50","v":0.93448795180722888}]
[null,null,null,{"$f":"D54","v":"Monthly Costs 30% or More of HH Income"},{"$f":"E54/E$50","v":0.35244161358811038},null,null,{"$f":"H54/H50","v":0.88992974238875877},null,{"$f":"J54/J50","v":0.74352331606217614},null,{"$f":"L54/L50","v":0.45034642032332561},null,{"$f":"N54/N50","v":0.31415929203539822},null,{"$f":"P54/P50","v":6.551204819277108E-2}]
[]
[null,null,null,"Monthly Costs 35% or More of HH Income",{"$f":"E56/E$50","v":0.27449196239005158},null,null,"NA","NA","NA","NA","NA","NA","NA","NA","NA","NA"]
[null,null,null,"Monthly Costs 50% or More of HH Income",{"$f":"E57/E$50","v":0.14407036700030332},null,null,"NA","NA","NA","NA","NA","NA","NA","NA","NA","NA"]
[null,null,null,"Percent not computed",{"$f":"E58/$E$50","v":1.364877161055505E-2},null,null,"NA","NA","NA","NA","NA","NA","NA","NA","NA","NA"]
[]
[null,null,"H62ROHUGRent200to249",{"$f":"D37","v":"Income in 2017 Inflation Adjusted Dollars"}]
[null,null,null,"Source: 2013-2017 American Community Survey Table B25091; B25106",null,null,null,null,"NA indicates that the American Community Survey does not provide that data."]
[null,null,null,"Data from the American Community Survey are estimates."]
[]
[null,null,"H62ROHUGRent250to299","OWNER HOUSING COST CHARACTERISTICS"]
[null,null,"H62ROHUGRent300to349"]
[null,null,"H62ROHUGRent350to399","Value of Owner Occupied Housing Units"]
[null,null,"H62ROHUGRent400to449"]
[null,null,"H62ROHUGRent450to499","Owner Occupied Housing Units",{"$f":"CntyDataLinkPrior5YearEstimates!$B$144","v":3297},{"$f":"CntyDataLinkPrior5YearEstimates!$C$144","v":239}]
[null,null,"H62ROHUGRent500to549"]
[null,null,"H62ROHUGRent550to599","Value","Housing Units","Margin of Error"]
[null,null,"H62ROHUGRent600to649","Less than $10,000",{"$f":"CntyDataLinkPrior5YearEstimates!$D$144","v":14},{"$f":"CntyDataLinkPrior5YearEstimates!$E$144","v":21}]
[null,null,"H62ROHUGRent650to699","$10,000 to $14,999",{"$f":"CntyDataLinkPrior5YearEstimates!$F$144","v":30},{"$f":"CntyDataLinkPrior5YearEstimates!$G$144","v":29}]
[null,null,"H62ROHUGRent700to749","$15,000 to $19,999",{"$f":"CntyDataLinkPrior5YearEstimates!$H$144","v":0},{"$f":"CntyDataLinkPrior5YearEstimates!$I$144","v":17}]
[null,null,"H62ROHUGRent750to799","$20,000 to $24,999",{"$f":"CntyDataLinkPrior5YearEstimates!$J$144","v":31},{"$f":"CntyDataLinkPrior5YearEstimates!$K$144","v":30}]
[null,null,"H62ROHUGRent800to899","$25,000 to $29,999",{"$f":"CntyDataLinkPrior5YearEstimates!$L$144","v":16},{"$f":"CntyDataLinkPrior5YearEstimates!$M$144","v":25}]
[null,null,"H62ROHUGRent900to999","$30,000 to $34,999",{"$f":"CntyDataLinkPrior5YearEstimates!$N$144","v":10},{"$f":"CntyDataLinkPrior5YearEstimates!$O$144","v":16}]
[null,null,"H62ROHUGRent1000to1249","$35,000 to $39,999",{"$f":"CntyDataLinkPrior5YearEstimates!$P$144","v":12},{"$f":"CntyDataLinkPrior5YearEstimates!$Q$144","v":19}]
[null,null,"H62ROHUGRent1250to1499","$40,000 to $49,999",{"$f":"CntyDataLinkPrior5YearEstimates!$R$144","v":10},{"$f":"CntyDataLinkPrior5YearEstimates!$S$144","v":12}]
[null,null,"H62ROHUGRent1500to1999","$50,000 to $59,999",{"$f":"CntyDataLinkPrior5YearEstimates!$T$144","v":70},{"$f":"CntyDataLinkPrior5YearEstimates!$U$144","v":47}]
[null,null,"H62ROHUGRent2000>","$60,000 to $69,999",{"$f":"CntyDataLinkPrior5YearEstimates!$V$144","v":133},{"$f":"CntyDataLinkPrior5YearEstimates!$W$144","v":66}]
[null,null,"H62ROHUNoGRent","$70,000 to $79,999",{"$f":"CntyDataLinkPrior5YearEstimates!$X$144","v":119},{"$f":"CntyDataLinkPrior5YearEstimates!$Y$144","v":63}]
[null,null,"H63MedianGrossRnt","$80,000 to $89,999",{"$f":"CntyDataLinkPrior5YearEstimates!$Z$144","v":248},{"$f":"CntyDataLinkPrior5YearEstimates!$AA$144","v":107}]
[null,null,null,"$90,000 to $99,999",{"$f":"CntyDataLinkPrior5YearEstimates!$AB$144","v":182},{"$f":"CntyDataLinkPrior5YearEstimates!$AC$144","v":98}]
[null,null,null,"$100,000 to $124,999",{"$f":"CntyDataLinkPrior5YearEstimates!$AD$144","v":471},{"$f":"CntyDataLinkPrior5YearEstimates!$AE$144","v":129}]
[null,null,null,"$125,000 to $149,999",{"$f":"CntyDataLinkPrior5YearEstimates!$AF$144","v":614},{"$f":"CntyDataLinkPrior5YearEstimates!$AG$144","v":175}]
[null,null,null,"$150,000 to $174,999",{"$f":"CntyDataLinkPrior5YearEstimates!$AH$144","v":627},{"$f":"CntyDataLinkPrior5YearEstimates!$AI$144","v":179}]
[null,null,null,"$175,000 to $199,999",{"$f":"CntyDataLinkPrior5YearEstimates!$AJ$144","v":342},{"$f":"CntyDataLinkPrior5YearEstimates!$AK$144","v":89}]
[null,null,null,"$200,000 to $249,999",{"$f":"CntyDataLinkPrior5YearEstimates!$AL$144","v":228},{"$f":"CntyDataLinkPrior5YearEstimates!$AM$144","v":97}]
[null,null,null,"$250,000 to $299,999",{"$f":"CntyDataLinkPrior5YearEstimates!$AN$144","v":92},{"$f":"CntyDataLinkPrior5YearEstimates!$AO$144","v":50}]
[null,null,null,"$300,000 to $399,999",{"$f":"CntyDataLinkPrior5YearEstimates!$AP$144","v":26},{"$f":"CntyDataLinkPrior5YearEstimates!$AQ$144","v":28}]
[null,null,null,"$400,000 to $499,999",{"$f":"CntyDataLinkPrior5YearEstimates!$AR$144","v":11},{"$f":"CntyDataLinkPrior5YearEstimates!$AS$144","v":17}]
[null,null,null,"$500,000 to $749,999",{"$f":"CntyDataLinkPrior5YearEstimates!$AT$144","v":0},{"$f":"CntyDataLinkPrior5YearEstimates!$AU$144","v":17}]
[null,null,null,"$750,000 to $999,999",{"$f":"CntyDataLinkPrior5YearEstimates!$AV$144","v":0},{"$f":"CntyDataLinkPrior5YearEstimates!$AW$144","v":17}]
[null,null,null,"$1,000,000 to $1,499,999",{"$f":"CntyDataLinkPrior5YearEstimates!$AX$144","v":0},{"$f":"CntyDataLinkPrior5YearEstimates!$AY$144","v":17}]
[null,null,null,"$1,500,000 to $1,999,999",{"$f":"CntyDataLinkPrior5YearEstimates!$AZ$144","v":11},{"$f":"CntyDataLinkPrior5YearEstimates!$BA$144","v":18}]
[null,null,null,"$2,000,000 or more",{"$f":"CntyDataLinkPrior5YearEstimates!$BB$144","v":0},{"$f":"CntyDataLinkPrior5YearEstimates!$BC$144","v":17}]
[]
[null,null,null,"Median Value",{"$f":"CntyDataLinkPrior5YearEstimates!$BD$144","v":137300},{"$f":"CntyDataLinkPrior5YearEstimates!$BE$144","v":5643}]
[]
[]
[]
[]
[null,null,null,"Source: 2013-2017 American Community Survey Tables B25075 and B25077"]
[null,null,null,"Data from the American Community Survey are estimates."]

{"sheet":"OwnerHousingCostPrior10Year","index":20,"n_rows":112,"n_cols":17,"rows_kept":112,"cut":false,"hidden":true,"merged":[]}
[]
[null,null,"HIDE THIS COLUMN",{"$f":"CntyDataLink!$A35","v":"Grantham"}]
[null,null,null,"OWNER HOUSING COST CHARACTERISTICS"]
[]
[]
[]
[]
[]
[]
[]
[]
[]
[]
[]
[]
[]
[]
[]
[]
[]
[]
[]
[]
[]
[]
[]
[]
[]
[]
[]
[]
[]
[]
[]
[]
[]
[null,null,null,"Income in 2012 Inflation Adjusted Dollars"]
[null,null,null,"Source: 2008-2012 American Community Survey Table B25106"]
[null,null,null,"Data from the American Community Survey are estimates."]
[]
[]
[null,null,null,{"$f":"CntyDataLinkPrior10YearEstimate!$A$108","v":"Grantham"}]
[]
[null,null,null,{"$f":"D3","v":"OWNER HOUSING COST CHARACTERISTICS"}]
[]
[null,null,null,"Owner Households by "]
[null,null,null,"Selected Monthly Housing Costs as a Percent of 2012 Household Income",null,null,null,"By Household Income"]
[null,null,"H73RenterOccHU",null,"Specified Owner Occ Housing Units","Margin of Error Owner Occ Housing Units",null,"Less than $20,000",{"$f":"\"Margin of Error \"&H48","v":"Margin of Error Less than $20,000"},"$20,000 to $34,999",{"$f":"\"Margin of Error \"&J48","v":"Margin of Error $20,000 to $34,999"},"$35,000 to $49,999",{"$f":"\"Margin of Error \"&L48","v":"Margin of Error $35,000 to $49,999"},"$50,000 to $74,999",{"$f":"\"Margin of Error \"&N48","v":"Margin of Error $50,000 to $74,999"},"$75,000 or More",{"$f":"\"Margin of Error \"&P48","v":"Margin of Error $75,000 or More"}]
[]
[null,null,null,"Total Households",{"$f":"CntyDataLinkPrior10YearEstimate!$BF144","v":3282},{"$f":"CntyDataLinkPrior10YearEstimate!$BG$144","v":242},null,{"$f":"CntyDataLinkPrior10YearEstimate!$BZ$144","v":391},{"$f":"CntyDataLinkPrior10YearEstimate!$CA$144","v":129},{"$f":"CntyDataLinkPrior10YearEstimate!$CH$144","v":508},{"$f":"CntyDataLinkPrior10YearEstimate!$CI$144","v":142},{"$f":"CntyDataLinkPrior10YearEstimate!$CP$144","v":561},{"$f":"CntyDataLinkPrior10YearEstimate!$CQ$144","v":130},{"$f":"CntyDataLinkPrior10YearEstimate!$CX$144","v":745},{"$f":"CntyDataLinkPrior10YearEstimate!$CY$144","v":159},{"$f":"CntyDataLinkPrior10YearEstimate!$DF$144","v":1057},{"$f":"CntyDataLinkPrior10YearEstimate!$DG$144","v":168}]
[null,null,null,"Monthly Costs Less than 20% of HH Income",{"$f":"CntyDataLinkPrior10YearEstimate!$BH$144","v":1222},{"$f":"CntyDataLinkPrior10YearEstimate!$BI$144","v":210.89807964986309},null,{"$f":"CntyDataLinkPrior10YearEstimate!$CB$144","v":55},{"$f":"CntyDataLinkPrior10YearEstimate!$CC$144","v":58},{"$f":"CntyDataLinkPrior10YearEstimate!CJ$144","v":77},{"$f":"CntyDataLinkPrior10YearEstimate!CK$144","v":47},{"$f":"CntyDataLinkPrior10YearEstimate!CR$144","v":153},{"$f":"CntyDataLinkPrior10YearEstimate!CS$144","v":70},{"$f":"CntyDataLinkPrior10YearEstimate!CZ$144","v":277},{"$f":"CntyDataLinkPrior10YearEstimate!DA$144","v":85},{"$f":"CntyDataLinkPrior10YearEstimate!DH$144","v":660},{"$f":"CntyDataLinkPrior10YearEstimate!DI$144","v":145}]
[null,null,null,"Monthly Costs 20% to 29.9% of HH Income",{"$f":"CntyDataLinkPrior10YearEstimate!$BJ$144","v":934},{"$f":"CntyDataLinkPrior10YearEstimate!$BK$144","v":193.11654512236905},null,{"$f":"CntyDataLinkPrior10YearEstimate!$CD$144","v":33},{"$f":"CntyDataLinkPrior10YearEstimate!$CE$144","v":27},{"$f":"CntyDataLinkPrior10YearEstimate!CL$144","v":104},{"$f":"CntyDataLinkPrior10YearEstimate!CM$144","v":67},{"$f":"CntyDataLinkPrior10YearEstimate!CT$144","v":169},{"$f":"CntyDataLinkPrior10YearEstimate!CU$144","v":71},{"$f":"CntyDataLinkPrior10YearEstimate!DB$144","v":315},{"$f":"CntyDataLinkPrior10YearEstimate!DC$144","v":121},{"$f":"CntyDataLinkPrior10YearEstimate!DJ$144","v":313},{"$f":"CntyDataLinkPrior10YearEstimate!DK$144","v":107}]
[null,null,null,"Monthly Costs Less Than 30% of HH Income",{"$f":"CntyDataLinkPrior10YearEstimate!$BL$144","v":2156},{"$f":"CntyDataLinkPrior10YearEstimate!$BM$144","v":285.95803887983288},null,{"$f":"H52+H51","v":88},{"$f":"SQRT((I52^2)+(I51^2))","v":63.976558206893252},{"$f":"J52+J51","v":181},{"$f":"SQRT((K52^2)+(K51^2))","v":81.841309862440497},{"$f":"L52+L51","v":322},{"$f":"SQRT((M52^2)+(M51^2))","v":99.704563586628268},{"$f":"N52+N51","v":592},{"$f":"SQRT((O52^2)+(O51^2))","v":147.87156589419075},{"$f":"P52+P51","v":973},{"$f":"SQRT((Q52^2)+(Q51^2))","v":180.20543831971332}]
[null,null,null,"Monthly Costs 30% or More of HH Income",{"$f":"CntyDataLinkPrior10YearEstimate!$BN$144","v":1106},{"$f":"CntyDataLinkPrior10YearEstimate!$BO$144","v":220.60598359972016},null,{"$f":"CntyDataLinkPrior10YearEstimate!$CF$144","v":303},{"$f":"CntyDataLinkPrior10YearEstimate!$CG$144","v":112},{"$f":"CntyDataLinkPrior10YearEstimate!CN$144","v":327},{"$f":"CntyDataLinkPrior10YearEstimate!CO$144","v":127},{"$f":"CntyDataLinkPrior10YearEstimate!CV$144","v":239},{"$f":"CntyDataLinkPrior10YearEstimate!CW$144","v":117},{"$f":"CntyDataLinkPrior10YearEstimate!DD$144","v":153},{"$f":"CntyDataLinkPrior10YearEstimate!DE$144","v":88},{"$f":"CntyDataLinkPrior10YearEstimate!$DL$144","v":84},{"$f":"CntyDataLinkPrior10YearEstimate!$DM$144","v":52}]
[]
[null,null,null,"Monthly Costs 35% or More of HH Income",{"$f":"CntyDataLinkPrior10YearEstimate!$BT$144","v":804},{"$f":"CntyDataLinkPrior10YearEstimate!$BU$144","v":190.87692369692047},null,"NA","NA","NA","NA","NA","NA","NA","NA","NA","NA"]
[null,null,null,"Monthly Costs 50% or More of HH Income",{"$f":"CntyDataLinkPrior10YearEstimate!$BV$144","v":369},{"$f":"CntyDataLinkPrior10YearEstimate!$BW$144","v":136.70405992508049},null,"NA","NA","NA","NA","NA","NA","NA","NA","NA","NA"]
[null,null,null,"Percent not computed",{"$f":"CntyDataLinkPrior10YearEstimate!$BX$144","v":20},{"$f":"CntyDataLinkPrior10YearEstimate!$BY$144","v":88.056799851005266},null,"NA","NA","NA","NA","NA","NA","NA","NA","NA","NA"]
[]
[null,null,null,"Percent of Owner Households Paying ",null,null,null,"By Household Income"]
[null,null,null,{"$f":"D53","v":"Monthly Costs Less Than 30% of HH Income"},{"$f":"E53/E$50","v":0.65691651432053622},null,null,{"$f":"H53/H$50","v":0.22506393861892582},null,{"$f":"J53/J$50","v":0.35629921259842517},null,{"$f":"L53/L$50","v":0.57397504456327986},null,{"$f":"N53/N$50","v":0.79463087248322151},null,{"$f":"P53/P$50","v":0.92052980132450335}]
[null,null,null,{"$f":"D54","v":"Monthly Costs 30% or More of HH Income"},{"$f":"E54/E$50","v":0.33698964046313223},null,null,{"$f":"H54/H50","v":0.77493606138107418},null,{"$f":"J54/J50","v":0.64370078740157477},null,{"$f":"L54/L50","v":0.42602495543672014},null,{"$f":"N54/N50","v":0.20536912751677852},null,{"$f":"P54/P50","v":7.9470198675496692E-2}]
[]
[null,null,null,"Monthly Costs 35% or More of HH Income",{"$f":"E56/E$50","v":0.2449725776965265},null,null,"NA","NA","NA","NA","NA","NA","NA","NA","NA","NA"]
[null,null,null,"Monthly Costs 50% or More of HH Income",{"$f":"E57/E$50","v":0.11243144424131626},null,null,"NA","NA","NA","NA","NA","NA","NA","NA","NA","NA"]
[null,null,null,"Percent not computed",{"$f":"E58/$E$50","v":6.0938452163315053E-3},null,null,"NA","NA","NA","NA","NA","NA","NA","NA","NA","NA"]
[]
[null,null,"H62ROHUGRent200to249",{"$f":"D37","v":"Income in 2012 Inflation Adjusted Dollars"}]
[null,null,null,"Source: 2013-2017 American Community Survey Table B25091; B25106",null,null,null,null,"NA indicates that the American Community Survey does not provide that data."]
[null,null,null,"Data from the American Community Survey are estimates."]
[]
[null,null,"H62ROHUGRent250to299","OWNER HOUSING COST CHARACTERISTICS"]
[null,null,"H62ROHUGRent300to349"]
[null,null,"H62ROHUGRent350to399","Value of Owner Occupied Housing Units"]
[null,null,"H62ROHUGRent400to449"]
[null,null,"H62ROHUGRent450to499","Owner Occupied Housing Units",{"$f":"CntyDataLinkPrior10YearEstimate!$B$144","v":3282},{"$f":"CntyDataLinkPrior10YearEstimate!$C$144","v":242}]
[null,null,"H62ROHUGRent500to549"]
[null,null,"H62ROHUGRent550to599","Value","Housing Units","Margin of Error"]
[null,null,"H62ROHUGRent600to649","Less than $10,000",{"$f":"CntyDataLinkPrior10YearEstimate!$D$144","v":53},{"$f":"CntyDataLinkPrior10YearEstimate!$E$144","v":56}]
[null,null,"H62ROHUGRent650to699","$10,000 to $14,999",{"$f":"CntyDataLinkPrior10YearEstimate!$F$144","v":16},{"$f":"CntyDataLinkPrior10YearEstimate!$G$144","v":19}]
[null,null,"H62ROHUGRent700to749","$15,000 to $19,999",{"$f":"CntyDataLinkPrior10YearEstimate!$H$144","v":51},{"$f":"CntyDataLinkPrior10YearEstimate!$I$144","v":44}]
[null,null,"H62ROHUGRent750to799","$20,000 to $24,999",{"$f":"CntyDataLinkPrior10YearEstimate!$J$144","v":10},{"$f":"CntyDataLinkPrior10YearEstimate!$K$144","v":16}]
[null,null,"H62ROHUGRent800to899","$25,000 to $29,999",{"$f":"CntyDataLinkPrior10YearEstimate!$L$144","v":52},{"$f":"CntyDataLinkPrior10YearEstimate!$M$144","v":39}]
[null,null,"H62ROHUGRent900to999","$30,000 to $34,999",{"$f":"CntyDataLinkPrior10YearEstimate!$N$144","v":16},{"$f":"CntyDataLinkPrior10YearEstimate!$O$144","v":25}]
[null,null,"H62ROHUGRent1000to1249","$35,000 to $39,999",{"$f":"CntyDataLinkPrior10YearEstimate!$P$144","v":0},{"$f":"CntyDataLinkPrior10YearEstimate!$Q$144","v":85}]
[null,null,"H62ROHUGRent1250to1499","$40,000 to $49,999",{"$f":"CntyDataLinkPrior10YearEstimate!$R$144","v":50},{"$f":"CntyDataLinkPrior10YearEstimate!$S$144","v":34}]
[null,null,"H62ROHUGRent1500to1999","$50,000 to $59,999",{"$f":"CntyDataLinkPrior10YearEstimate!$T$144","v":26},{"$f":"CntyDataLinkPrior10YearEstimate!$U$144","v":30}]
[null,null,"H62ROHUGRent2000>","$60,000 to $69,999",{"$f":"CntyDataLinkPrior10YearEstimate!$V$144","v":71},{"$f":"CntyDataLinkPrior10YearEstimate!$W$144","v":58}]
[null,null,"H62ROHUNoGRent","$70,000 to $79,999",{"$f":"CntyDataLinkPrior10YearEstimate!$X$144","v":128},{"$f":"CntyDataLinkPrior10YearEstimate!$Y$144","v":65}]
[null,null,"H63MedianGrossRnt","$80,000 to $89,999",{"$f":"CntyDataLinkPrior10YearEstimate!$Z$144","v":113},{"$f":"CntyDataLinkPrior10YearEstimate!$AA$144","v":76}]
[null,null,null,"$90,000 to $99,999",{"$f":"CntyDataLinkPrior10YearEstimate!$AB$144","v":179},{"$f":"CntyDataLinkPrior10YearEstimate!$AC$144","v":81}]
[null,null,null,"$100,000 to $124,999",{"$f":"CntyDataLinkPrior10YearEstimate!$AD$144","v":327},{"$f":"CntyDataLinkPrior10YearEstimate!$AE$144","v":100}]
[null,null,null,"$125,000 to $149,999",{"$f":"CntyDataLinkPrior10YearEstimate!$AF$144","v":634},{"$f":"CntyDataLinkPrior10YearEstimate!$AG$144","v":146}]
[null,null,null,"$150,000 to $174,999",{"$f":"CntyDataLinkPrior10YearEstimate!$AH$144","v":592},{"$f":"CntyDataLinkPrior10YearEstimate!$AI$144","v":150}]
[null,null,null,"$175,000 to $199,999",{"$f":"CntyDataLinkPrior10YearEstimate!$AJ$144","v":347},{"$f":"CntyDataLinkPrior10YearEstimate!$AK$144","v":122}]
[null,null,null,"$200,000 to $249,999",{"$f":"CntyDataLinkPrior10YearEstimate!$AL$144","v":289},{"$f":"CntyDataLinkPrior10YearEstimate!$AM$144","v":104}]
[null,null,null,"$250,000 to $299,999",{"$f":"CntyDataLinkPrior10YearEstimate!$AN$144","v":132},{"$f":"CntyDataLinkPrior10YearEstimate!$AO$144","v":72}]
[null,null,null,"$300,000 to $399,999",{"$f":"CntyDataLinkPrior10YearEstimate!$AP$144","v":164},{"$f":"CntyDataLinkPrior10YearEstimate!$AQ$144","v":96}]
[null,null,null,"$400,000 to $499,999",{"$f":"CntyDataLinkPrior10YearEstimate!$AR$144","v":10},{"$f":"CntyDataLinkPrior10YearEstimate!$AS$144","v":16}]
[null,null,null,"$500,000 to $749,999",{"$f":"CntyDataLinkPrior10YearEstimate!$AT$144","v":16},{"$f":"CntyDataLinkPrior10YearEstimate!$AU$144","v":19}]
[null,null,null,"$750,000 to $999,999",{"$f":"CntyDataLinkPrior10YearEstimate!$AV$144","v":0},{"$f":"CntyDataLinkPrior10YearEstimate!$AW$144","v":85}]
[null,null,null,"$1,000,000 to $1,499,999",{"$f":"CntyDataLinkPrior10YearEstimate!$AX$144","v":6},{"$f":"CntyDataLinkPrior10YearEstimate!$AY$144","v":11}]
[null,null,null,"$1,500,000 to $1,999,999",{"$f":"CntyDataLinkPrior10YearEstimate!$AZ$144","v":0},{"$f":"CntyDataLinkPrior10YearEstimate!$BA$144","v":0}]
[null,null,null,"$2,000,000 or more",{"$f":"CntyDataLinkPrior10YearEstimate!$BB$144","v":0},{"$f":"CntyDataLinkPrior10YearEstimate!$BC$144","v":0}]
[]
[null,null,null,"Median Value",{"$f":"CntyDataLinkPrior10YearEstimate!$BD$144","v":146600},{"$f":"CntyDataLinkPrior10YearEstimate!$BE$144","v":6257}]
[]
[]
[]
[]
[null,null,null,"Source: 2008-2012 American Community Survey Tables B25075 and B25077"]
[null,null,null,"Data from the American Community Survey are estimates."]

{"sheet":"ACS_Source_Table_List","index":21,"n_rows":45,"n_cols":4,"rows_kept":45,"cut":false,"hidden":true,"merged":[]}
[]
["ACS Table B01001","x"]
["ACS Table B01002","x"]
["ACS Table B03002","x"]
["ACS Table B05002 ","x"]
["ACS Table B07003","x","Replaces C07001"]
["ACS Table B11001","x"]
["ACS Table B11002","x"]
["ACS Table B14001 & B15002","x","Replaces C15002"]
["ACS Table B17001 ","x"]
["ACS Table B17010 ","x","Replaces C17010","Poverty Status by family type"]
["ACS Table B17017","x","Replaces C17017","Poverty Status by HH type"]
["ACS Table B18001 ",null,"Removed Disability Tables"]
["ACS Table C18001 ",null,"Removed Disability Tables"]
["ACS Table B18003",null,"Removed Disability Tables"]
["ACS Table B18004",null,"Removed Disability Tables"]
["ACS Table B18005",null,"Removed Disability Tables"]
["ACS Table B18006",null,"Removed Disability Tables"]
["ACS Table B18007",null,"Removed Disability Tables"]
["ACS Table B18008",null,"Removed Disability Tables"]
["ACS Table B19001","x"]
["ACS Table B19037 ","x"]
["ACS Table B19049 ","x"]
["ACS Table B19101& B19113 ","s"]
["ACS Table B19201 & B19202","s"]
["ACS Table B25001, B25003 & B25004 ","x"]
["ACS Table B25008","x"]
["ACS Table B25010","x"]
["ACS Table B25024","x"]
["ACS Table B25075 & B25077","x"]
["ACS Table B25088","x"]
["ACS Table B25091","x"]
["ACS Table B25118 & B25119","x"]
[]
[]
[]
[]
[]
[]
["Tables Removed from 5 Year Estimates"]
["ACS Table C19001 ","x","May have to consolidate this table from Table B19001. This has already been done. For 5 year estimates remove worksheet."]
["ACS Table B25094","x","No Comparison Table for B25094 Removed"]
["ACS Table B25101",null,"No Comparison Table for B25101 Removed"]
["ACS Table B25104 & B25105",null,"No Comparison Table for B25104 & B25105 Removed"]
["ACS Table B25106","x","No Comparison Table for  B25106 Removed"]

{"sheet":"ACS_Table_B01001","index":22,"n_rows":265,"n_cols":76,"rows_kept":265,"cut":false,"hidden":true,"merged":[[65103,10,65103,11],[65103,12,65103,13],[65103,14,65103,15],[65103,2,65103,3],[65103,4,65103,5],[65103,6,65103,7],[65103,8,65103,9],[65021,14,65021,15],[65083,2,65083,3],[65083,4,65083,5],[65083,6,65083,7],[65083,8,65083,9],[65083,10,65083,11],[65083,12,65083,13],[65083,14,65083,15],[65021,2,65021,3],[65021,4,65021,5],[65021,6,65021,7],[65021,8,65021,9],[64939,10,64939,11],[64939,12,64939,13],[64939,6,64939,7],[64939,8,64939,9],[65021,10,65021,11],[65021,12,65021,13],[64939,14,64939,15],[65001,2,65001,3],[65001,4,65001,5],[65001,6,65001,7],[65001,8,65001,9],[65001,10,65001,11],[65001,12,65001,13],[65001,14,65001,15],[64939,2,64939,3],[64939,4,64939,5],[64857,14,64857,15],[64919,2,64919,3],[64919,4,64919,5],[64919,6,64919,7],[64919,8,64919,9],[64919,10,64919,11],[64919,12,64919,13],[64919,14,64919,15],[64857,2,64857,3],[64857,4,64857,5],[64857,6,64857,7],[64857,8,64857,9],[64775,10,64775,11],[64775,12,64775,13],[64775,6,64775,7],[64775,8,64775,9],[64857,10,64857,11],[64857,12,64857,13],[64775,14,64775,15],[64837,2,64837,3],[64837,4,64837,5],[64837,6,64837,7],[64837,8,64837,9],[64837,10,64837,11],[64837,12,64837,13],[64837,14,64837,15],[64775,2,64775,3],[64775,4,64775,5],[64693,14,64693,15],[64755,2,64755,3],[64755,4,64755,5],[64755,6,64755,7],[64755,8,64755,9],[64755,10,64755,11],[64755,12,64755,13],[64755,14,64755,15],[64693,2,64693,3],[64693,4,64693,5],[64693,6,64693,7],[64693,8,64693,9],[64611,10,64611,11],[64611,12,64611,13],[64611,6,64611,7],[64611,8,64611,9],[64693,10,64693,11],[64693,12,64693,13],[64611,14,64611,15],[64673,2,64673,3],[64673,4,64673,5],[64673,6,64673,7],[64673,8,64673,9],[64673,10,64673,11],[64673,12,64673,13],[64673,14,64673,15],[64611,2,64611,3],[64611,4,64611,5],[64529,14,64529,15],[64591,2,64591,3],[64591,4,64591,5],[64591,6,64591,7],[64591,8,64591,9],[64591,10,64591,11],[64591,12,64591,13],[64591,14,64591,15],[64529,2,64529,3],[64529,4,64529,5],[64529,6,64529,7],[64529,8,64529,9],[64447,10,64447,11],[64447,12,64447,13],[64447,6,64447,7],[64447,8,64447,9],[64529,10,64529,11],[64529,12,64529,13],[64447,14,64447,15],[64509,2,64509,3],[64509,4,64509,5],[64509,6,64509,7],[64509,8,64509,9],[64509,10,64509,11],[64509,12,64509,13],[64509,14,64509,15],[64447,2,64447,3],[64447,4,64447,5],[64365,14,64365,15],[64427,2,64427,3],[64427,4,64427,5],[64427,6,64427,7],[64427,8,64427,9],[64427,10,64427,11],[64427,12,64427,13],[64427,14,64427,15],[64365,2,64365,3],[64365,4,64365,5],[64365,6,64365,7],[64365,8,64365,9],[64283,10,64283,11],[64283,12,64283,13],[64283,6,64283,7],[64283,8,64283,9],[64365,10,64365,11],[64365,12,64365,13],[64283,14,64283,15],[64345,2,64345,3],[64345,4,64345,5],[64345,6,64345,7],[64345,8,64345,9],[64345,10,64345,11],[64345,12,64345,13],[64345,14,64345,15],[64283,2,64283,3],[64283,4,64283,5],[64201,14,64201,15],[64263,2,64263,3],[64263,4,64263,5],[64263,6,64263,7],[64263,8,64263,9],[64263,10,64263,11],[64263,12,64263,13],[64263,14,64263,15],[64201,2,64201,3],[64201,4,64201,5],[64201,6,64201,7],[64201,8,64201,9],[64119,10,64119,11],[64119,12,64119,13],[64119,6,64119,7],[64119,8,64119,9],[64201,10,64201,11],[64201,12,64201,13],[64119,14,64119,15],[64181,2,64181,3],[64181,4,64181,5],[64181,6,64181,7],[64181,8,64181,9],[64181,10,64181,11],[64181,12,64181,13],[64181,14,64181,15],[64119,2,64119,3],[64119,4,64119,5],[64037,14,64037,15],[64099,2,64099,3],[64099,4,64099,5],[64099,6,64099,7],[64099,8,64099,9],[64099,10,64099,11],[64099,12,64099,13],[64099,14,64099,15],[64037,2,64037,3],[64037,4,64037,5],[64037,6,64037,7],[64037,8,64037,9],[63955,10,63955,11],[63955,12,63955,13],[63955,6,63955,7],[63955,8,63955,9],[64037,10,64037,11],[64037,12,64037,13],[63955,14,63955,15],[64017,2,64017,3],[64017,4,64017,5],[64017,6,64017,7],[64017,8,64017,9],[64017,10,64017,11],[64017,12,64017,13],[64017,14,64017,15],[63955,2,63955,3],[63955,4,63955,5],[63873,14,63873,15],[63935,2,63935,3],[63935,4,63935,5],[63935,6,63935,7],[63935,8,63935,9],[63935,10,63935,11],[63935,12,63935,13],[63935,14,63935,15],[63873,2,63873,3],[63873,4,63873,5],[63873,6,63873,7],[63873,8,63873,9],[63791,10,63791,11],[63791,12,63791,13],[63791,6,63791,7],[63791,8,63791,9],[63873,10,63873,11],[63873,12,63873,13],[63791,14,63791,15],[63853,2,63853,3],[63853,4,63853,5],[63853,6,63853,7],[63853,8,63853,9],[63853,10,63853,11],[63853,12,63853,13],[63853,14,63853,15],[63791,2,63791,3],[63791,4,63791,5],[63709,14,63709,15],[63771,2,63771,3],[63771,4,63771,5],[63771,6,63771,7],[63771,8,63771,9],[63771,10,63771,11],[63771,12,63771,13],[63771,14,63771,15],[63709,2,63709,3],[63709,4,63709,5],[63709,6,63709,7],[63709,8,63709,9],[63627,10,63627,11],[63627,12,63627,13],[63627,6,63627,7],[63627,8,63627,9],[63709,10,63709,11],[63709,12,63709,13],[63627,14,63627,15],[63689,2,63689,3],[63689,4,63689,5],[63689,6,63689,7],[63689,8,63689,9],[63689,10,63689,11],[63689,12,63689,13],[63689,14,63689,15],[63627,2,63627,3],[63627,4,63627,5],[63545,14,63545,15],[63607,2,63607,3],[63607,4,63607,5],[63607,6,63607,7],[63607,8,63607,9],[63607,10,63607,11],[63607,12,63607,13],[63607,14,63607,15],[63545,2,63545,3],[63545,4,63545,5],[63545,6,63545,7],[63545,8,63545,9],[63463,10,63463,11],[63463,12,63463,13],[63463,6,63463,7],[63463,8,63463,9],[63545,10,63545,11],[63545,12,63545,13],[63463,14,63463,15],[63525,2,63525,3],[63525,4,63525,5],[63525,6,63525,7],[63525,8,63525,9],[63525,10,63525,11],[63525,12,63525,13],[63525,14,63525,15],[63463,2,63463,3],[63463,4,63463,5],[63381,14,63381,15],[63443,2,63443,3],[63443,4,63443,5],[63443,6,63443,7],[63443,8,63443,9],[63443,10,63443,11],[63443,12,63443,13],[63443,14,63443,15],[63381,2,63381,3],[63381,4,63381,5],[63381,6,63381,7],[63381,8,63381,9],[63299,10,63299,11],[63299,12,63299,13],[63299,6,63299,7],[63299,8,63299,9],[63381,10,63381,11],[63381,12,63381,13],[63299,14,63299,15],[63361,2,63361,3],[63361,4,63361,5],[63361,6,63361,7],[63361,8,63361,9],[63361,10,63361,11],[63361,12,63361,13],[63361,14,63361,15],[63299,2,63299,3],[63299,4,63299,5],[63217,14,63217,15],[63279,2,63279,3],[63279,4,63279,5],[63279,6,63279,7],[63279,8,63279,9],[63279,10,63279,11],[63279,12,63279,13],[63279,14,63279,15],[63217,2,63217,3],[63217,4,63217,5],[63217,6,63217,7],[63217,8,63217,9],[63135,10,63135,11],[63135,12,63135,13],[63135,6,63135,7],[63135,8,63135,9],[63217,10,63217,11],[63217,12,63217,13],[63135,14,63135,15],[63197,2,63197,3],[63197,4,63197,5],[63197,6,63197,7],[63197,8,63197,9],[63197,10,63197,11],[63197,12,63197,13],[63197,14,63197,15],[63135,2,63135,3],[63135,4,63135,5],[63053,14,63053,15],[63115,2,63115,3],[63115,4,63115,5],[63115,6,63115,7],[63115,8,63115,9],[63115,10,63115,11],[63115,12,63115,13],[63115,14,63115,15],[63053,2,63053,3],[63053,4,63053,5],[63053,6,63053,7],[63053,8,63053,9],[62971,10,62971,11],[62971,12,62971,13],[62971,6,62971,7],[62971,8,62971,9],[63053,10,63053,11],[63053,12,63053,13],[62971,14,62971,15],[63033,2,63033,3],[63033,4,63033,5],[63033,6,63033,7],[63033,8,63033,9],[63033,10,63033,11],[63033,12,63033,13],[63033,14,63033,15],[62971,2,62971,3],[62971,4,62971,5],[62889,14,62889,15],[62951,2,62951,3],[62951,4,62951,5],[62951,6,62951,7],[62951,8,62951,9],[62951,10,62951,11],[62951,12,62951,13],[62951,14,62951,15],[62889,2,62889,3],[62889,4,62889,5],[62889,6,62889,7],[62889,8,62889,9],[62807,10,62807,11],[62807,12,62807,13],[62807,6,62807,7],[62807,8,62807,9],[62889,10,62889,11],[62889,12,62889,13],[62807,14,62807,15],[62869,2,62869,3],[62869,4,62869,5],[62869,6,62869,7],[62869,8,62869,9],[62869,10,62869,11],[62869,12,62869,13],[62869,14,62869,15],[62807,2,62807,3],[62807,4,62807,5],[62725,14,62725,15],[62787,2,62787,3],[62787,4,62787,5],[62787,6,62787,7],[62787,8,62787,9],[62787,10,62787,11],[62787,12,62787,13],[62787,14,62787,15],[62725,2,62725,3],[62725,4,62725,5],[62725,6,62725,7],[62725,8,62725,9],[62643,10,62643,11],[62643,12,62643,13],[62643,6,62643,7],[62643,8,62643,9],[62725,10,62725,11],[62725,12,62725,13],[62643,14,62643,15],[62705,2,62705,3],[62705,4,62705,5],[62705,6,62705,7],[62705,8,62705,9],[62705,10,62705,11],[62705,12,62705,13],[62705,14,62705,15],[62643,2,62643,3],[62643,4,62643,5],[62561,14,62561,15],[62623,2,62623,3],[62623,4,62623,5],[62623,6,62623,7],[62623,8,62623,9],[62623,10,62623,11],[62623,12,62623,13],[62623,14,62623,15],[62561,2,62561,3],[62561,4,62561,5],[62561,6,62561,7],[62561,8,62561,9],[62479,10,62479,11],[62479,12,62479,13],[62479,6,62479,7],[62479,8,62479,9],[62561,10,62561,11],[62561,12,62561,13],[62479,14,62479,15],[62541,2,62541,3],[62541,4,62541,5],[62541,6,62541,7],[62541,8,62541,9],[62541,10,62541,11],[62541,12,62541,13],[62541,14,62541,15],[62479,2,62479,3],[62479,4,62479,5],[62397,14,62397,15],[62459,2,62459,3],[62459,4,62459,5],[62459,6,62459,7],[62459,8,62459,9],[62459,10,62459,11],[62459,12,62459,13],[62459,14,62459,15],[62397,2,62397,3],[62397,4,62397,5],[62397,6,62397,7],[62397,8,62397,9],[62315,10,62315,11],[62315,12,62315,13],[62315,6,62315,7],[62315,8,62315,9],[62397,10,62397,11],[62397,12,62397,13],[62315,14,62315,15],[62377,2,62377,3],[62377,4,62377,5],[62377,6,62377,7],[62377,8,62377,9],[62377,10,62377,11],[62377,12,62377,13],[62377,14,62377,15],[62315,2,62315,3],[62315,4,62315,5],[62233,14,62233,15],[62295,2,62295,3],[62295,4,62295,5],[62295,6,62295,7],[62295,8,62295,9],[62295,10,62295,11],[62295,12,62295,13],[62295,14,62295,15],[62233,2,62233,3],[62233,4,62233,5],[62233,6,62233,7],[62233,8,62233,9],[62151,10,62151,11],[62151,12,62151,13],[62151,6,62151,7],[62151,8,62151,9],[62233,10,62233,11],[62233,12,62233,13],[62151,14,62151,15],[62213,2,62213,3],[62213,4,62213,5],[62213,6,62213,7],[62213,8,62213,9],[62213,10,62213,11],[62213,12,62213,13],[62213,14,62213,15],[62151,2,62151,3],[62151,4,62151,5],[62069,14,62069,15],[62131,2,62131,3],[62131,4,62131,5],[62131,6,62131,7],[62131,8,62131,9],[62131,10,62131,11],[62131,12,62131,13],[62131,14,62131,15],[62069,2,62069,3],[62069,4,62069,5],[62069,6,62069,7],[62069,8,62069,9],[61987,10,61987,11],[61987,12,61987,13],[61987,6,61987,7],[61987,8,61987,9],[62069,10,62069,11],[62069,12,62069,13],[61987,14,61987,15],[62049,2,62049,3],[62049,4,62049,5],[62049,6,62049,7],[62049,8,62049,9],[62049,10,62049,11],[62049,12,62049,13],[62049,14,62049,15],[61987,2,61987,3],[61987,4,61987,5],[61905,14,61905,15],[61967,2,61967,3],[61967,4,61967,5],[61967,6,61967,7],[61967,8,61967,9],[61967,10,61967,11],[61967,12,61967,13],[61967,14,61967,15],[61905,2,61905,3],[61905,4,61905,5],[61905,6,61905,7],[61905,8,61905,9],[61823,10,61823,11],[61823,12,61823,13],[61823,6,61823,7],[61823,8,61823,9],[61905,10,61905,11],[61905,12,61905,13],[61823,14,61823,15],[61885,2,61885,3],[61885,4,61885,5],[61885,6,61885,7],[61885,8,61885,9],[61885,10,61885,11],[61885,12,61885,13],[61885,14,61885,15],[61823,2,61823,3],[61823,4,61823,5],[61741,14,61741,15],[61803,2,61803,3],[61803,4,61803,5],[61803,6,61803,7],[61803,8,61803,9],[61803,10,61803,11],[61803,12,61803,13],[61803,14,61803,15],[61741,2,61741,3],[61741,4,61741,5],[61741,6,61741,7],[61741,8,61741,9],[61659,10,61659,11],[61659,12,61659,13],[61659,6,61659,7],[61659,8,61659,9],[61741,10,61741,11],[61741,12,61741,13],[61659,14,61659,15],[61721,2,61721,3],[61721,4,61721,5],[61721,6,61721,7],[61721,8,61721,9],[61721,10,61721,11],[61721,12,61721,13],[61721,14,61721,15],[61659,2,61659,3],[61659,4,61659,5],[61577,14,61577,15],[61639,2,61639,3],[61639,4,61639,5],[61639,6,61639,7],[61639,8,61639,9],[61639,10,61639,11],[61639,12,61639,13],[61639,14,61639,15],[61577,2,61577,3],[61577,4,61577,5],[61577,6,61577,7],[61577,8,61577,9],[61495,10,61495,11],[61495,12,61495,13],[61495,6,61495,7],[61495,8,61495,9],[61577,10,61577,11],[61577,12,61577,13],[61495,14,61495,15],[61557,2,61557,3],[61557,4,61557,5],[61557,6,61557,7],[61557,8,61557,9],[61557,10,61557,11],[61557,12,61557,13],[61557,14,61557,15],[61495,2,61495,3],[61495,4,61495,5],[61413,14,61413,15],[61475,2,61475,3],[61475,4,61475,5],[61475,6,61475,7],[61475,8,61475,9],[61475,10,61475,11],[61475,12,61475,13],[61475,14,61475,15],[61413,2,61413,3],[61413,4,61413,5],[61413,6,61413,7],[61413,8,61413,9],[61331,10,61331,11],[61331,12,61331,13],[61331,6,61331,7],[61331,8,61331,9],[61413,10,61413,11],[61413,12,61413,13],[61331,14,61331,15],[61393,2,61393,3],[61393,4,61393,5],[61393,6,61393,7],[61393,8,61393,9],[61393,10,61393,11],[61393,12,61393,13],[61393,14,61393,15],[61331,2,61331,3],[61331,4,61331,5],[61249,14,61249,15],[61311,2,61311,3],[61311,4,61311,5],[61311,6,61311,7],[61311,8,61311,9],[61311,10,61311,11],[61311,12,61311,13],[61311,14,61311,15],[61249,2,61249,3],[61249,4,61249,5],[61249,6,61249,7],[61249,8,61249,9],[61167,10,61167,11],[61167,12,61167,13],[61167,6,61167,7],[61167,8,61167,9],[61249,10,61249,11],[61249,12,61249,13],[61167,14,61167,15],[61229,2,61229,3],[61229,4,61229,5],[61229,6,61229,7],[61229,8,61229,9],[61229,10,61229,11],[61229,12,61229,13],[61229,14,61229,15],[61167,2,61167,3],[61167,4,61167,5],[61085,14,61085,15],[61147,2,61147,3],[61147,4,61147,5],[61147,6,61147,7],[61147,8,61147,9],[61147,10,61147,11],[61147,12,61147,13],[61147,14,61147,15],[61085,2,61085,3],[61085,4,61085,5],[61085,6,61085,7],[61085,8,61085,9],[61003,10,61003,11],[61003,12,61003,13],[61003,6,61003,7],[61003,8,61003,9],[61085,10,61085,11],[61085,12,61085,13],[61003,14,61003,15],[61065,2,61065,3],[61065,4,61065,5],[61065,6,61065,7],[61065,8,61065,9],[61065,10,61065,11],[61065,12,61065,13],[61065,14,61065,15],[61003,2,61003,3],[61003,4,61003,5],[60921,14,60921,15],[60983,2,60983,3],[60983,4,60983,5],[60983,6,60983,7],[60983,8,60983,9],[60983,10,60983,11],[60983,12,60983,13],[60983,14,60983,15],[60921,2,60921,3],[60921,4,60921,5],[60921,6,60921,7],[60921,8,60921,9],[60839,10,60839,11],[60839,12,60839,13],[60839,6,60839,7],[60839,8,60839,9],[60921,10,60921,11],[60921,12,60921,13],[60839,14,60839,15],[60901,2,60901,3],[60901,4,60901,5],[60901,6,60901,7],[60901,8,60901,9],[60901,10,60901,11],[60901,12,60901,13],[60901,14,60901,15],[60839,2,60839,3],[60839,4,60839,5],[60757,14,60757,15],[60819,2,60819,3],[60819,4,60819,5],[60819,6,60819,7],[60819,8,60819,9],[60819,10,60819,11],[60819,12,60819,13],[60819,14,60819,15],[60757,2,60757,3],[60757,4,60757,5],[60757,6,60757,7],[60757,8,60757,9],[60675,10,60675,11],[60675,12,60675,13],[60675,6,60675,7],[60675,8,60675,9],[60757,10,60757,11],[60757,12,60757,13],[60675,14,60675,15],[60737,2,60737,3],[60737,4,60737,5],[60737,6,60737,7],[60737,8,60737,9],[60737,10,60737,11],[60737,12,60737,13],[60737,14,60737,15],[60675,2,60675,3],[60675,4,60675,5],[60593,14,60593,15],[60655,2,60655,3],[60655,4,60655,5],[60655,6,60655,7],[60655,8,60655,9],[60655,10,60655,11],[60655,12,60655,13],[60655,14,60655,15],[60593,2,60593,3],[60593,4,60593,5],[60593,6,60593,7],[60593,8,60593,9],[60511,10,60511,11],[60511,12,60511,13],[60511,6,60511,7],[60511,8,60511,9],[60593,10,60593,11],[60593,12,60593,13],[60511,14,60511,15],[60573,2,60573,3],[60573,4,60573,5],[60573,6,60573,7],[60573,8,60573,9],[60573,10,60573,11],[60573,12,60573,13],[60573,14,60573,15],[60511,2,60511,3],[60511,4,60511,5],[60429,14,60429,15],[60491,2,60491,3],[60491,4,60491,5],[60491,6,60491,7],[60491,8,60491,9],[60491,10,60491,11],[60491,12,60491,13],[60491,14,60491,15],[60429,2,60429,3],[60429,4,60429,5],[60429,6,60429,7],[60429,8,60429,9],[60347,10,60347,11],[60347,12,60347,13],[60347,6,60347,7],[60347,8,60347,9],[60429,10,60429,11],[60429,12,60429,13],[60347,14,60347,15],[60409,2,60409,3],[60409,4,60409,5],[60409,6,60409,7],[60409,8,60409,9],[60409,10,60409,11],[60409,12,60409,13],[60409,14,60409,15],[60347,2,60347,3],[60347,4,60347,5],[60265,14,60265,15],[60327,2,60327,3],[60327,4,60327,5],[60327,6,60327,7],[60327,8,60327,9],[60327,10,60327,11],[60327,12,60327,13],[60327,14,60327,15],[60265,2,60265,3],[60265,4,60265,5],[60265,6,60265,7],[60265,8,60265,9],[60183,10,60183,11],[60183,12,60183,13],[60183,6,60183,7],[60183,8,60183,9],[60265,10,60265,11],[60265,12,60265,13],[60183,14,60183,15],[60245,2,60245,3],[60245,4,60245,5],[60245,6,60245,7],[60245,8,60245,9],[60245,10,60245,11],[60245,12,60245,13],[60245,14,60245,15],[60183,2,60183,3],[60183,4,60183,5],[60101,14,60101,15],[60163,2,60163,3],[60163,4,60163,5],[60163,6,60163,7],[60163,8,60163,9],[60163,10,60163,11],[60163,12,60163,13],[60163,14,60163,15],[60101,2,60101,3],[60101,4,60101,5],[60101,6,60101,7],[60101,8,60101,9],[60019,10,60019,11],[60019,12,60019,13],[60019,6,60019,7],[60019,8,60019,9],[60101,10,60101,11],[60101,12,60101,13],[60019,14,60019,15],[60081,2,60081,3],[60081,4,60081,5],[60081,6,60081,7],[60081,8,60081,9],[60081,10,60081,11],[60081,12,60081,13],[60081,14,60081,15],[60019,2,60019,3],[60019,4,60019,5],[59937,14,59937,15],[59999,2,59999,3],[59999,4,59999,5],[59999,6,59999,7],[59999,8,59999,9],[59999,10,59999,11],[59999,12,59999,13],[59999,14,59999,15],[59937,2,59937,3],[59937,4,59937,5],[59937,6,59937,7],[59937,8,59937,9],[59855,10,59855,11],[59855,12,59855,13],[59855,6,59855,7],[59855,8,59855,9],[59937,10,59937,11],[59937,12,59937,13],[59855,14,59855,15],[59917,2,59917,3],[59917,4,59917,5],[59917,6,59917,7],[59917,8,59917,9],[59917,10,59917,11],[59917,12,59917,13],[59917,14,59917,15],[59855,2,59855,3],[59855,4,59855,5],[59773,14,59773,15],[59835,2,59835,3],[59835,4,59835,5],[59835,6,59835,7],[59835,8,59835,9],[59835,10,59835,11],[59835,12,59835,13],[59835,14,59835,15],[59773,2,59773,3],[59773,4,59773,5],[59773,6,59773,7],[59773,8,59773,9],[59691,10,59691,11],[59691,12,59691,13],[59691,6,59691,7],[59691,8,59691,9],[59773,10,59773,11],[59773,12,59773,13],[59691,14,59691,15],[59753,2,59753,3],[59753,4,59753,5],[59753,6,59753,7],[59753,8,59753,9],[59753,10,59753,11],[59753,12,59753,13],[59753,14,59753,15],[59691,2,59691,3],[59691,4,59691,5],[59609,14,59609,15],[59671,2,59671,3],[59671,4,59671,5],[59671,6,59671,7],[59671,8,59671,9],[59671,10,59671,11],[59671,12,59671,13],[59671,14,59671,15],[59609,2,59609,3],[59609,4,59609,5],[59609,6,59609,7],[59609,8,59609,9],[59527,10,59527,11],[59527,12,59527,13],[59527,6,59527,7],[59527,8,59527,9],[59609,10,59609,11],[59609,12,59609,13],[59527,14,59527,15],[59589,2,59589,3],[59589,4,59589,5],[59589,6,59589,7],[59589,8,59589,9],[59589,10,59589,11],[59589,12,59589,13],[59589,14,59589,15],[59527,2,59527,3],[59527,4,59527,5],[59445,14,59445,15],[59507,2,59507,3],[59507,4,59507,5],[59507,6,59507,7],[59507,8,59507,9],[59507,10,59507,11],[59507,12,59507,13],[59507,14,59507,15],[59445,2,59445,3],[59445,4,59445,5],[59445,6,59445,7],[59445,8,59445,9],[59363,10,59363,11],[59363,12,59363,13],[59363,6,59363,7],[59363,8,59363,9],[59445,10,59445,11],[59445,12,59445,13],[59363,14,59363,15],[59425,2,59425,3],[59425,4,59425,5],[59425,6,59425,7],[59425,8,59425,9],[59425,10,59425,11],[59425,12,59425,13],[59425,14,59425,15],[59363,2,59363,3],[59363,4,59363,5],[59281,14,59281,15],[59343,2,59343,3],[59343,4,59343,5],[59343,6,59343,7],[59343,8,59343,9],[59343,10,59343,11],[59343,12,59343,13],[59343,14,59343,15],[59281,2,59281,3],[59281,4,59281,5],[59281,6,59281,7],[59281,8,59281,9],[59199,10,59199,11]],"merged_total":58578,"flags":["merged_cut"]}
[null,"B01001. GENDER BY AGE"]
[null,"Universe:  TOTAL POPULATION"]
[null,"Data Set: 2018-2022 American Community Survey 5-Year Estimates"]
[]
[null,null,"Acworth",null,"Charlestown",null,"Claremont",null,"Cornish",null,"Croydon",null,"Goshen",null,"Grantham",null,"Langdon",null,"Lempster",null,"Newport",null,"Plainfield",null,"Springfield",null,"Sunapee",null,"Unity",null,"Washington"]
[null,null,"Estimate","Margin Of Error","Estimate","Margin Of Error","Estimate","Margin Of Error","Estimate","Margin Of Error","Estimate","Margin Of Error","Estimate","Margin Of Error","Estimate","Margin Of Error","Estimate","Margin Of Error","Estimate","Margin Of Error","Estimate","Margin Of Error","Estimate","Margin Of Error","Estimate","Margin Of Error","Estimate","Margin Of Error","Estimate","Margin Of Error","Estimate","Margin Of Error"]
[null,"Total:",927,278,4855,16,13018,24,1914,235,796,166,1077,316,3394,23,717,196,957,200,6347,17,2478,16,939,398,3377,18,1518,200,1042,173]
[null,"Male:",439,104,2402,226,6565,289,947,143,426,91,457,134,1458,156,376,135,455,101,3380,233,1180,109,563,294,1987,168,710,104,500,99]
[null,"Under 5 years",20,14,152,112,328,146,36,25,19,16,32,48,0,12,43,33,48,30,100,80,80,64,4,7,23,33,11,11,4,7]
[null,"5 to 9 years",57,59,96,88,338,116,42,26,21,17,41,41,247,86,47,43,27,24,114,70,20,15,50,66,61,41,14,11,22,21]
[null,"10 to 14 years",9,12,49,61,336,165,60,32,29,31,18,18,175,108,10,12,21,19,46,36,89,51,13,17,104,60,54,42,13,12]
[null,"15 to 17 years",15,30,154,98,200,122,16,15,6,7,21,18,0,12,6,9,14,16,225,125,59,49,25,27,52,35,17,19,0,12]
[null,"18 and 19 years",3,6,82,66,119,80,10,9,1,3,10,13,31,44,4,5,0,12,194,94,38,39,15,14,27,22,13,24,0,12]
[null,"20 years",0,12,17,29,212,123,4,7,7,11,1,2,0,12,0,12,0,12,156,100,35,32,0,12,21,24,11,10,19,23]
[null,"21 years",0,12,14,23,14,24,0,12,2,5,0,12,0,12,0,12,2,5,16,25,22,20,0,12,13,20,0,12,3,4]
[null,"22 to 24 years",9,12,50,37,161,84,27,24,3,4,2,4,8,12,3,4,7,10,236,113,11,13,26,37,21,23,16,21,7,10]
[null,"25 to 29 years",39,39,180,118,336,131,47,27,19,19,10,11,0,12,5,7,18,16,377,149,85,72,43,36,127,90,43,30,16,15]
[null,"30 to 34 years",31,22,110,96,513,122,33,24,25,20,24,19,24,42,72,49,11,10,322,137,67,38,14,17,187,90,21,18,24,16]
[null,"35 to 39 years",11,12,186,110,494,176,76,50,28,19,17,11,79,67,10,8,27,18,81,92,57,19,22,32,80,57,20,17,35,28]
[null,"40 to 44 years",22,20,114,76,462,186,40,22,25,20,40,22,18,27,35,34,39,25,117,89,55,36,13,13,84,41,28,17,29,34]
[null,"45 to 49 years",23,31,113,101,592,172,47,26,13,10,13,16,135,103,14,12,28,20,136,80,60,46,20,17,110,68,14,10,24,21]
[null,"50 to 54 years",15,13,151,86,466,118,39,22,38,28,40,29,131,77,11,7,28,20,313,104,44,29,62,77,150,101,79,49,28,20]
[null,"55 to 59 years",89,41,156,107,396,141,67,30,6,7,63,47,172,118,26,18,36,27,336,229,63,30,142,170,319,270,71,45,93,45]
[null,"60 and 61 years",2,4,83,65,230,130,31,19,36,28,7,5,0,12,6,5,23,12,89,91,44,29,21,17,78,67,45,21,30,34]
[null,"62 to 64 years",12,10,66,81,121,79,66,58,42,39,28,19,22,32,19,16,20,15,81,74,83,60,11,13,116,69,35,19,16,8]
[null,"65 and 66 years",11,7,185,97,136,76,47,28,23,16,6,7,109,96,6,6,45,28,46,47,23,18,22,19,46,33,49,29,21,16]
[null,"67 to 69 years",14,15,112,78,436,193,89,49,16,11,35,32,60,59,28,16,20,12,155,107,51,32,6,7,110,65,55,27,13,9]
[null,"70 to 74 years",22,17,87,89,323,151,63,30,35,31,11,6,40,57,11,7,25,18,75,48,105,54,27,21,115,69,54,27,60,19]
[null,"75 to 79 years",15,9,191,203,216,104,68,65,12,8,28,18,131,93,16,12,8,6,45,42,63,50,9,12,116,89,39,20,28,21]
[null,"80 to 84 years",9,9,40,46,80,44,37,31,7,6,9,10,35,58,2,3,4,4,0,17,0,12,18,19,5,8,14,7,10,11]
[null,"85 years and over",11,12,14,19,56,38,2,7,13,11,1,2,41,62,2,3,4,5,120,97,26,26,0,12,22,29,7,8,5,5]
[null,"Female:",488,197,2453,227,6453,286,967,156,370,91,620,228,1936,154,341,86,502,132,2967,233,1298,110,376,132,1390,166,808,130,542,117]
[null,"Under 5 years",12,16,161,106,381,124,54,30,30,36,7,8,0,12,2,3,23,20,90,60,149,73,15,25,47,38,0,12,18,17]
[null,"5 to 9 years",14,14,189,134,392,142,48,25,12,16,22,17,69,60,26,20,36,27,64,86,43,30,4,6,29,28,37,32,11,15]
[null,"10 to 14 years",97,125,145,100,330,145,25,22,22,17,31,29,70,78,25,28,45,39,91,89,34,30,4,6,51,49,55,35,32,29]
[null,"15 to 17 years",0,12,49,39,257,91,9,9,2,3,58,63,197,114,1,4,19,20,0,17,67,45,3,5,31,27,5,6,14,16]
[null,"18 and 19 years",0,12,12,22,172,67,0,12,10,13,22,30,43,44,0,12,6,7,30,26,18,38,16,16,13,21,16,12,5,6]
[null,"20 years",8,12,0,12,0,19,0,12,5,7,0,12,104,144,0,12,17,15,83,110,23,34,0,12,12,22,20,30,0,12]
[null,"21 years",0,12,33,57,0,19,0,12,0,12,1,3,0,12,0,12,0,12,14,23,22,30,0,12,14,24,20,28,0,12]
[null,"22 to 24 years",16,26,0,12,256,108,16,17,4,6,0,12,88,88,15,24,0,12,53,49,23,27,0,12,58,50,31,21,19,28]
[null,"25 to 29 years",34,29,186,105,340,157,88,57,25,21,18,19,0,12,28,18,24,18,191,105,29,28,38,41,107,109,33,20,29,19]
[null,"30 to 34 years",18,20,59,56,427,142,57,32,24,21,52,30,0,12,44,29,49,54,119,97,176,119,21,21,111,65,22,17,26,22]
[null,"35 to 39 years",37,46,195,100,328,164,62,32,24,16,13,11,65,65,13,12,37,33,115,91,77,69,31,40,67,50,47,30,17,16]
[null,"40 to 44 years",34,30,85,66,324,126,19,13,27,20,54,31,158,141,10,10,31,19,338,134,64,36,0,12,78,48,16,14,8,10]
[null,"45 to 49 years",5,6,110,106,415,133,48,22,2,3,10,10,17,26,3,4,45,40,417,153,47,23,37,23,52,33,45,26,54,30]
[null,"50 to 54 years",24,22,175,77,551,142,66,32,29,21,29,23,163,96,15,9,24,16,108,69,96,51,93,82,35,30,43,28,31,22]
[null,"55 to 59 years",69,39,210,128,453,172,62,27,25,13,50,35,342,170,37,19,20,17,178,104,67,27,17,17,89,60,50,19,83,40]
[null,"60 and 61 years",12,11,107,73,66,49,15,9,17,17,9,7,0,12,21,17,22,12,77,59,60,32,5,6,62,41,29,17,14,9]
[null,"62 to 64 years",8,9,155,108,362,125,150,135,11,9,33,22,172,134,21,11,18,14,282,197,53,28,8,12,61,41,38,25,11,9]
[null,"65 and 66 years",32,26,81,57,185,96,37,17,18,11,12,9,34,49,4,4,2,4,39,43,16,13,11,14,64,58,11,9,48,25]
[null,"67 to 69 years",16,12,113,83,329,135,51,26,19,12,10,7,101,86,29,13,26,15,98,101,41,41,9,11,64,51,42,23,44,26]
[null,"70 to 74 years",27,14,218,99,420,203,57,23,9,7,25,16,73,65,14,6,18,13,172,117,108,59,39,29,193,88,58,25,44,23]
[null,"75 to 79 years",11,9,96,75,204,100,41,23,16,10,43,29,145,121,9,6,5,5,129,99,32,21,10,9,107,98,63,40,25,21]
[null,"80 to 84 years",3,4,11,18,167,100,32,21,32,50,11,11,76,75,0,12,35,39,99,77,24,29,7,13,5,9,14,16,8,6]
[null,"85 years and over",11,12,63,53,94,90,30,27,7,8,110,109,19,28,24,25,0,12,180,88,29,24,8,13,40,50,113,60,1,2]
[]
[]
[]
[]
[]
[]
[]
[]
[]
[]
[]
[]
[]
[null,"Calculated B01001. GENDER BY AGE"]
[null,"Universe:  TOTAL POPULATION"]
[null,"Data Set: 2018-2022 American Community Survey 5-Year Estimates"]
[]
[null,null,"Acworth",null,"Charlestown",null,"Claremont",null,"Cornish",null,"Croydon",null,"Goshen",null,"Grantham",null,"Langdon",null,"Lempster",null,"Newport",null,"Plainfield",null,"Springfield",null,"Sunapee",null,"Unity",null,"Washington"]
[null,null,"Estimate","Margin Of Error","Estimate","Margin Of Error","Estimate","Margin Of Error","Estimate","Margin Of Error","Estimate","Margin Of Error","Estimate","Margin Of Error","Estimate","Margin Of Error","Estimate","Margin Of Error","Estimate","Margin Of Error","Estimate","Margin Of Error","Estimate","Margin Of Error","Estimate","Margin Of Error","Estimate","Margin Of Error","Estimate","Margin Of Error","Estimate","Margin Of Error"]
[null,"Total",{"$f":"C7","v":927},278,4855,16,13018,24,1914,235,796,166,1077,316,3394,23,717,196,957,200,6347,17,2478,16,{"$f":"Y7","v":939},398,3377,18,1518,200,1042,173]
[null,"Under 15 yrs.",{"$f":"C9+C10+C11+C33+C34+C35","v":209},{"$f":"SQRT((D9^2)+(D10^2)+(D11^2)+(D33^2)+(D34^2)+(D35^2))","v":141.06027080648894},{"$f":"E9+E10+E11+E33+E34+E35","v":792},{"$f":"SQRT((F9^2)+(F10^2)+(F11^2)+(F33^2)+(F34^2)+(F35^2))","v":251.39809068487375},{"$f":"G9+G10+G11+G33+G34+G35","v":2105},{"$f":"SQRT((H9^2)+(H10^2)+(H11^2)+(H33^2)+(H34^2)+(H35^2))","v":344.32833168358366},{"$f":"I9+I10+I11+I33+I34+I35","v":265},{"$f":"SQRT((J9^2)+(J10^2)+(J11^2)+(J33^2)+(J34^2)+(J35^2))","v":65.833122362531157},{"$f":"K9+K10+K11+K33+K34+K35","v":133},{"$f":"SQRT((L9^2)+(L10^2)+(L11^2)+(L33^2)+(L34^2)+(L35^2))","v":57.853262656482912},{"$f":"M9+M10+M11+M33+M34+M35","v":151},{"$f":"SQRT((N9^2)+(N10^2)+(N11^2)+(N33^2)+(N34^2)+(N35^2))","v":74.182208109492137},{"$f":"O9+O10+O11+O33+O34+O35","v":561},{"$f":"SQRT((P9^2)+(P10^2)+(P11^2)+(P33^2)+(P34^2)+(P35^2))","v":170.38779298999091},{"$f":"Q9+Q10+Q11+Q33+Q34+Q35","v":153},{"$f":"SQRT((R9^2)+(R10^2)+(R11^2)+(R33^2)+(R34^2)+(R35^2))","v":65.383484153110103},{"$f":"S9+S10+S11+S33+S34+S35","v":200},{"$f":"SQRT((T9^2)+(T10^2)+(T11^2)+(T33^2)+(T34^2)+(T35^2))","v":66.985072964056698},{"$f":"U9+U10+U11+U33+U34+U35","v":505},{"$f":"SQRT((V9^2)+(V10^2)+(V11^2)+(V33^2)+(V34^2)+(V35^2))","v":177.51901306620653},{"$f":"W9+W10+W11+W33+W34+W35","v":415},{"$f":"SQRT((X9^2)+(X10^2)+(X11^2)+(X33^2)+(X34^2)+(X35^2))","v":118.53691408164801},{"$f":"Y9+Y10+Y11+Y33+Y34+Y35","v":90},{"$f":"SQRT((Z9^2)+(Z10^2)+(Z11^2)+(Z33^2)+(Z34^2)+(Z35^2))","v":73.423429503122506},{"$f":"AA9+AA10+AA11+AA33+AA34+AA35","v":315},{"$f":"SQRT((AB9^2)+(AB10^2)+(AB11^2)+(AB33^2)+(AB34^2)+(AB35^2))","v":104.87611739571598},{"$f":"AC9+AC10+AC11+AC33+AC34+AC35","v":171},{"$f":"SQRT((AD9^2)+(AD10^2)+(AD11^2)+(AD33^2)+(AD34^2)+(AD35^2))","v":66.32495759516172},{"$f":"AE9+AE10+AE11+AE33+AE34+AE35","v":100},{"$f":"SQRT((AF9^2)+(AF10^2)+(AF11^2)+(AF33^2)+(AF34^2)+(AF35^2))","v":44.598206241955516}]
[null,"15 to 24 yrs.",{"$f":"C12+C13+C14+C15+C16+C36+C37+C38+C39+C40","v":51},{"$f":"SQRT((D12^2)+(D13^2)+(D14^2)+(D15^2)+(D16^2)+(D36^2)+(D37^2)+(D38^2)+(D39^2)+(D40^2))","v":51.185935568278907},{"$f":"E12+E13+E14+E15+E16+E36+E37+E38+E39+E40","v":411},{"$f":"SQRT((F12^2)+(F13^2)+(F14^2)+(F15^2)+(F16^2)+(F36^2)+(F37^2)+(F38^2)+(F39^2)+(F40^2))","v":149.13416778190035},{"$f":"G12+G13+G14+G15+G16+G36+G37+G38+G39+G40","v":1391},{"$f":"SQRT((H12^2)+(H13^2)+(H14^2)+(H15^2)+(H16^2)+(H36^2)+(H37^2)+(H38^2)+(H39^2)+(H40^2))","v":263.06082946725456},{"$f":"I12+I13+I14+I15+I16+I36+I37+I38+I39+I40","v":82},{"$f":"SQRT((J12^2)+(J13^2)+(J14^2)+(J15^2)+(J16^2)+(J36^2)+(J37^2)+(J38^2)+(J39^2)+(J40^2))","v":43.324358044868937},{"$f":"K12+K13+K14+K15+K16+K36+K37+K38+K39+K40","v":40},{"$f":"SQRT((L12^2)+(L13^2)+(L14^2)+(L15^2)+(L16^2)+(L36^2)+(L37^2)+(L38^2)+(L39^2)+(L40^2))","v":25.03996805109783},{"$f":"M12+M13+M14+M15+M16+M36+M37+M38+M39+M40","v":115},{"$f":"SQRT((N12^2)+(N13^2)+(N14^2)+(N15^2)+(N16^2)+(N36^2)+(N37^2)+(N38^2)+(N39^2)+(N40^2))","v":76.30858405186143},{"$f":"O12+O13+O14+O15+O16+O36+O37+O38+O39+O40","v":471},{"$f":"SQRT((P12^2)+(P13^2)+(P14^2)+(P15^2)+(P16^2)+(P36^2)+(P37^2)+(P38^2)+(P39^2)+(P40^2))","v":214.63457317030731},{"$f":"Q12+Q13+Q14+Q15+Q16+Q36+Q37+Q38+Q39+Q40","v":29},{"$f":"SQRT((R12^2)+(R13^2)+(R14^2)+(R15^2)+(R16^2)+(R36^2)+(R37^2)+(R38^2)+(R39^2)+(R40^2))","v":37.868192457522973},{"$f":"S12+S13+S14+S15+S16+S36+S37+S38+S39+S40","v":65},{"$f":"SQRT((T12^2)+(T13^2)+(T14^2)+(T15^2)+(T16^2)+(T36^2)+(T37^2)+(T38^2)+(T39^2)+(T40^2))","v":40.385641012617342},{"$f":"U12+U13+U14+U15+U16+U36+U37+U38+U39+U40","v":1007},{"$f":"SQRT((V12^2)+(V13^2)+(V14^2)+(V15^2)+(V16^2)+(V36^2)+(V37^2)+(V38^2)+(V39^2)+(V40^2))","v":252.68557536986555},{"$f":"W12+W13+W14+W15+W16+W36+W37+W38+W39+W40","v":318},{"$f":"SQRT((X12^2)+(X13^2)+(X14^2)+(X15^2)+(X16^2)+(X36^2)+(X37^2)+(X38^2)+(X39^2)+(X40^2))","v":108.4850220076486},{"$f":"Y12+Y13+Y14+Y15+Y16+Y36+Y37+Y38+Y39+Y40","v":85},{"$f":"SQRT((Z12^2)+(Z13^2)+(Z14^2)+(Z15^2)+(Z16^2)+(Z36^2)+(Z37^2)+(Z38^2)+(Z39^2)+(Z40^2))","v":57.40209055426466},{"$f":"AA12+AA13+AA14+AA15+AA16+AA36+AA37+AA38+AA39+AA40","v":262},{"$f":"SQRT((AB12^2)+(AB13^2)+(AB14^2)+(AB15^2)+(AB16^2)+(AB36^2)+(AB37^2)+(AB38^2)+(AB39^2)+(AB40^2))","v":89.129119820628773},{"$f":"AC12+AC13+AC14+AC15+AC16+AC36+AC37+AC38+AC39+AC40","v":149},{"$f":"SQRT((AD12^2)+(AD13^2)+(AD14^2)+(AD15^2)+(AD16^2)+(AD36^2)+(AD37^2)+(AD38^2)+(AD39^2)+(AD40^2))","v":62.665780135573193},{"$f":"AE12+AE13+AE14+AE15+AE16+AE36+AE37+AE38+AE39+AE40","v":67},{"$f":"SQRT((AF12^2)+(AF13^2)+(AF14^2)+(AF15^2)+(AF16^2)+(AF36^2)+(AF37^2)+(AF38^2)+(AF39^2)+(AF40^2))","v":47.927027865287037}]
[null,"25 to 34 yrs.",{"$f":"C17+C18+C41+C42","v":122},{"$f":"SQRT((D17^2)+(D18^2)+(D41^2)+(D42^2))","v":56.97367813297646},{"$f":"E17+E18+E41+E42","v":535},{"$f":"SQRT((F17^2)+(F18^2)+(F41^2)+(F42^2))","v":193.13466804279341},{"$f":"G17+G18+G41+G42","v":1616},{"$f":"SQRT((H17^2)+(H18^2)+(H41^2)+(H42^2))","v":277.23275419762365},{"$f":"I17+I18+I41+I42","v":225},{"$f":"SQRT((J17^2)+(J18^2)+(J41^2)+(J42^2))","v":74.686009399351363},{"$f":"K17+K18+K41+K42","v":93},{"$f":"SQRT((L17^2)+(L18^2)+(L41^2)+(L42^2))","v":40.533936399022487},{"$f":"M17+M18+M41+M42","v":104},{"$f":"SQRT((N17^2)+(N18^2)+(N41^2)+(N42^2))","v":41.749251490296203},{"$f":"O17+O18+O41+O42","v":24},{"$f":"SQRT((P17^2)+(P18^2)+(P41^2)+(P42^2))","v":46.861498055439924},{"$f":"Q17+Q18+Q41+Q42","v":149},{"$f":"SQRT((R17^2)+(R18^2)+(R41^2)+(R42^2))","v":60.124870062229654},{"$f":"S17+S18+S41+S42","v":102},{"$f":"SQRT((T17^2)+(T18^2)+(T41^2)+(T42^2))","v":59.966657402259798},{"$f":"U17+U18+U41+U42","v":1009},{"$f":"SQRT((V17^2)+(V18^2)+(V41^2)+(V42^2))","v":247.79830507894923},{"$f":"W17+W18+W41+W42","v":357},{"$f":"SQRT((X17^2)+(X18^2)+(X41^2)+(X42^2))","v":146.87749997872376},{"$f":"Y17+Y18+Y41+Y42","v":116},{"$f":"SQRT((Z17^2)+(Z18^2)+(Z41^2)+(Z42^2))","v":60.885137759555079},{"$f":"AA17+AA18+AA41+AA42","v":532},{"$f":"SQRT((AB17^2)+(AB18^2)+(AB41^2)+(AB42^2))","v":179.73869922751749},{"$f":"AC17+AC18+AC41+AC42","v":119},{"$f":"SQRT((AD17^2)+(AD18^2)+(AD41^2)+(AD42^2))","v":43.737855457258078},{"$f":"AE17+AE18+AE41+AE42","v":95},{"$f":"SQRT((AF17^2)+(AF18^2)+(AF41^2)+(AF42^2))","v":36.414282912066248}]
[null,"35 to 44 yrs.",{"$f":"C19+C20+C43+C44","v":104},{"$f":"SQRT((D19^2)+(D20^2)+(D43^2)+(D44^2))","v":59.665735560705194},{"$f":"E19+E20+E43+E44","v":580},{"$f":"SQRT((F19^2)+(F20^2)+(F43^2)+(F44^2))","v":179.5327268216021},{"$f":"G19+G20+G43+G44","v":1608},{"$f":"SQRT((H19^2)+(H20^2)+(H43^2)+(H44^2))","v":329.1564977332211},{"$f":"I19+I20+I43+I44","v":197},{"$f":"SQRT((J19^2)+(J20^2)+(J43^2)+(J44^2))","v":64.629714528226103},{"$f":"K19+K20+K43+K44","v":104},{"$f":"SQRT((L19^2)+(L20^2)+(L43^2)+(L44^2))","v":37.643060449437421},{"$f":"M19+M20+M43+M44","v":124},{"$f":"SQRT((N19^2)+(N20^2)+(N43^2)+(N44^2))","v":41.073105555825698},{"$f":"O19+O20+O43+O44","v":320},{"$f":"SQRT((P19^2)+(P20^2)+(P43^2)+(P44^2))","v":171.24251808473269},{"$f":"Q19+Q20+Q43+Q44","v":68},{"$f":"SQRT((R19^2)+(R20^2)+(R43^2)+(R44^2))","v":38.262252939417984},{"$f":"S19+S20+S43+S44","v":134},{"$f":"SQRT((T19^2)+(T20^2)+(T43^2)+(T44^2))","v":48.979587585033826},{"$f":"U19+U20+U43+U44","v":651},{"$f":"SQRT((V19^2)+(V20^2)+(V43^2)+(V44^2))","v":206.45096270058903},{"$f":"W19+W20+W43+W44","v":253},{"$f":"SQRT((X19^2)+(X20^2)+(X43^2)+(X44^2))","v":87.829380050185947},{"$f":"Y19+Y20+Y43+Y44","v":66},{"$f":"SQRT((Z19^2)+(Z20^2)+(Z43^2)+(Z44^2))","v":54.194095619356915},{"$f":"AA19+AA20+AA43+AA44","v":309},{"$f":"SQRT((AB19^2)+(AB20^2)+(AB43^2)+(AB44^2))","v":98.661035875364703},{"$f":"AC19+AC20+AC43+AC44","v":111},{"$f":"SQRT((AD19^2)+(AD20^2)+(AD43^2)+(AD44^2))","v":40.914545090957567},{"$f":"AE19+AE20+AE43+AE44","v":89},{"$f":"SQRT((AF19^2)+(AF20^2)+(AF43^2)+(AF44^2))","v":47.916594202843754}]
[null,"45 to 54 yrs.",{"$f":"C21+C22+C45+C46","v":67},{"$f":"SQRT((D21^2)+(D22^2)+(D45^2)+(D46^2))","v":40.620192023179804},{"$f":"E21+E22+E45+E46","v":549},{"$f":"SQRT((F21^2)+(F22^2)+(F45^2)+(F46^2))","v":186.44570255170808},{"$f":"G21+G22+G45+G46","v":2024},{"$f":"SQRT((H21^2)+(H22^2)+(H45^2)+(H46^2))","v":285.23849670056808},{"$f":"I21+I22+I45+I46","v":200},{"$f":"SQRT((J21^2)+(J22^2)+(J45^2)+(J46^2))","v":51.652686280579829},{"$f":"K21+K22+K45+K46","v":82},{"$f":"SQRT((L21^2)+(L22^2)+(L45^2)+(L46^2))","v":36.523964735499348},{"$f":"M21+M22+M45+M46","v":92},{"$f":"SQRT((N21^2)+(N22^2)+(N45^2)+(N46^2))","v":41.54515615568198},{"$f":"O21+O22+O45+O46","v":446},{"$f":"SQRT((P21^2)+(P22^2)+(P45^2)+(P46^2))","v":162.57306049896459},{"$f":"Q21+Q22+Q45+Q46","v":43},{"$f":"SQRT((R21^2)+(R22^2)+(R45^2)+(R46^2))","v":17.029386365926403},{"$f":"S21+S22+S45+S46","v":125},{"$f":"SQRT((T21^2)+(T22^2)+(T45^2)+(T46^2))","v":51.536394906900505},{"$f":"U21+U22+U45+U46","v":974},{"$f":"SQRT((V21^2)+(V22^2)+(V45^2)+(V46^2))","v":213.03990236573054},{"$f":"W21+W22+W45+W46","v":247},{"$f":"SQRT((X21^2)+(X22^2)+(X45^2)+(X46^2))","v":78.019228399158109},{"$f":"Y21+Y22+Y45+Y46","v":212},{"$f":"SQRT((Z21^2)+(Z22^2)+(Z45^2)+(Z46^2))","v":116.06463716395274},{"$f":"AA21+AA22+AA45+AA46","v":347},{"$f":"SQRT((AB21^2)+(AB22^2)+(AB45^2)+(AB46^2))","v":129.66880889404359},{"$f":"AC21+AC22+AC45+AC46","v":181},{"$f":"SQRT((AD21^2)+(AD22^2)+(AD45^2)+(AD46^2))","v":62.936475910238251},{"$f":"AE21+AE22+AE45+AE46","v":137},{"$f":"SQRT((AF21^2)+(AF22^2)+(AF45^2)+(AF46^2))","v":47.169905660283021}]
[null,"55 to 64 yrs.",{"$f":"C23+C24+C25+C47+C48+C49","v":192},{"$f":"SQRT((D23^2)+(D24^2)+(D25^2)+(D47^2)+(D48^2)+(D49^2))","v":59.329587896765304},{"$f":"E23+E24+E25+E47+E48+E49","v":777},{"$f":"SQRT((F23^2)+(F24^2)+(F25^2)+(F47^2)+(F48^2)+(F49^2))","v":235.82196674610276},{"$f":"G23+G24+G25+G47+G48+G49","v":1628},{"$f":"SQRT((H23^2)+(H24^2)+(H25^2)+(H47^2)+(H48^2)+(H49^2))","v":301.05149061248642},{"$f":"I23+I24+I25+I47+I48+I49","v":391},{"$f":"SQRT((J23^2)+(J24^2)+(J25^2)+(J47^2)+(J48^2)+(J49^2))","v":153.81807436059},{"$f":"K23+K24+K25+K47+K48+K49","v":137},{"$f":"SQRT((L23^2)+(L24^2)+(L25^2)+(L47^2)+(L48^2)+(L49^2))","v":53.786615435440815},{"$f":"M23+M24+M25+M47+M48+M49","v":190},{"$f":"SQRT((N23^2)+(N24^2)+(N25^2)+(N47^2)+(N48^2)+(N49^2))","v":65.977268812826736},{"$f":"O23+O24+O25+O47+O48+O49","v":708},{"$f":"SQRT((P23^2)+(P24^2)+(P25^2)+(P47^2)+(P48^2)+(P49^2))","v":249.18266392347601},{"$f":"Q23+Q24+Q25+Q47+Q48+Q49","v":130},{"$f":"SQRT((R23^2)+(R24^2)+(R25^2)+(R47^2)+(R48^2)+(R49^2))","v":37.094473981982816},{"$f":"S23+S24+S25+S47+S48+S49","v":139},{"$f":"SQRT((T23^2)+(T24^2)+(T25^2)+(T47^2)+(T48^2)+(T49^2))","v":41.557189510360296},{"$f":"U23+U24+U25+U47+U48+U49","v":1043},{"$f":"SQRT((V23^2)+(V24^2)+(V25^2)+(V47^2)+(V48^2)+(V49^2))","v":345.40411115098209},{"$f":"W23+W24+W25+W47+W48+W49","v":370},{"$f":"SQRT((X23^2)+(X24^2)+(X25^2)+(X47^2)+(X48^2)+(X49^2))","v":88.758098222077749},{"$f":"Y23+Y24+Y25+Y47+Y48+Y49","v":204},{"$f":"SQRT((Z23^2)+(Z24^2)+(Z25^2)+(Z47^2)+(Z48^2)+(Z49^2))","v":172.70495071074251},{"$f":"AA23+AA24+AA25+AA47+AA48+AA49","v":725},{"$f":"SQRT((AB23^2)+(AB24^2)+(AB25^2)+(AB47^2)+(AB48^2)+(AB49^2))","v":298.51633121154362},{"$f":"AC23+AC24+AC25+AC47+AC48+AC49","v":268},{"$f":"SQRT((AD23^2)+(AD24^2)+(AD25^2)+(AD47^2)+(AD48^2)+(AD49^2))","v":64.046857846423663},{"$f":"AE23+AE24+AE25+AE47+AE48+AE49","v":247},{"$f":"SQRT((AF23^2)+(AF24^2)+(AF25^2)+(AF47^2)+(AF48^2)+(AF49^2))","v":70.760158281337951}]
[null,"65 to 74 yrs.",{"$f":"C26+C27+C28+C50+C51+C52","v":122},{"$f":"SQRT((D26^2)+(D27^2)+(D28^2)+(D50^2)+(D51^2)+(D52^2))","v":39.736632972611055},{"$f":"E26+E27+E28+E50+E51+E52","v":796},{"$f":"SQRT((F26^2)+(F27^2)+(F28^2)+(F50^2)+(F51^2)+(F52^2))","v":208.21383239352758},{"$f":"G26+G27+G28+G50+G51+G52","v":1829},{"$f":"SQRT((H26^2)+(H27^2)+(H28^2)+(H50^2)+(H51^2)+(H52^2))","v":366.7096944450746},{"$f":"I26+I27+I28+I50+I51+I52","v":344},{"$f":"SQRT((J26^2)+(J27^2)+(J28^2)+(J50^2)+(J51^2)+(J52^2))","v":74.692703793610264},{"$f":"K26+K27+K28+K50+K51+K52","v":120},{"$f":"SQRT((L26^2)+(L27^2)+(L28^2)+(L50^2)+(L51^2)+(L52^2))","v":40.64480286580315},{"$f":"M26+M27+M28+M50+M51+M52","v":99},{"$f":"SQRT((N26^2)+(N27^2)+(N28^2)+(N50^2)+(N51^2)+(N52^2))","v":38.665229858362409},{"$f":"O26+O27+O28+O50+O51+O52","v":417},{"$f":"SQRT((P26^2)+(P27^2)+(P28^2)+(P50^2)+(P51^2)+(P52^2))","v":173.11268006705922},{"$f":"Q26+Q27+Q28+Q50+Q51+Q52","v":92},{"$f":"SQRT((R26^2)+(R27^2)+(R28^2)+(R50^2)+(R51^2)+(R52^2))","v":23.706539182259394},{"$f":"S26+S27+S28+S50+S51+S52","v":136},{"$f":"SQRT((T26^2)+(T27^2)+(T28^2)+(T50^2)+(T51^2)+(T52^2))","v":40.767634221279017},{"$f":"U26+U27+U28+U50+U51+U52","v":585},{"$f":"SQRT((V26^2)+(V27^2)+(V28^2)+(V50^2)+(V51^2)+(V52^2))","v":204.2082270624766},{"$f":"W26+W27+W28+W50+W51+W52","v":344},{"$f":"SQRT((X26^2)+(X27^2)+(X28^2)+(X50^2)+(X51^2)+(X52^2))","v":97.954070869974572},{"$f":"Y26+Y27+Y28+Y50+Y51+Y52","v":114},{"$f":"SQRT((Z26^2)+(Z27^2)+(Z28^2)+(Z50^2)+(Z51^2)+(Z52^2))","v":44.82186966202994},{"$f":"AA26+AA27+AA28+AA50+AA51+AA52","v":592},{"$f":"SQRT((AB26^2)+(AB27^2)+(AB28^2)+(AB50^2)+(AB51^2)+(AB52^2))","v":154.22062118925601},{"$f":"AC26+AC27+AC28+AC50+AC51+AC52","v":269},{"$f":"SQRT((AD26^2)+(AD27^2)+(AD28^2)+(AD50^2)+(AD51^2)+(AD52^2))","v":59.447455790807396},{"$f":"AE26+AE27+AE28+AE50+AE51+AE52","v":230},{"$f":"SQRT((AF26^2)+(AF27^2)+(AF28^2)+(AF50^2)+(AF51^2)+(AF52^2))","v":50.279220359906141}]
[null,"Over 74 yrs. ",{"$f":"C29+C30+C31+C53+C54+C55","v":60},{"$f":"SQRT((D29^2)+(D30^2)+(D31^2)+(D53^2)+(D54^2)+(D55^2))","v":23.388031127053001},{"$f":"E29+E30+E31+E53+E54+E55","v":415},{"$f":"SQRT((F29^2)+(F30^2)+(F31^2)+(F53^2)+(F54^2)+(F55^2))","v":229.00655012466348},{"$f":"G29+G30+G31+G53+G54+G55","v":817},{"$f":"SQRT((H29^2)+(H30^2)+(H31^2)+(H53^2)+(H54^2)+(H55^2))","v":205.65991344936427},{"$f":"I29+I30+I31+I53+I54+I55","v":210},{"$f":"SQRT((J29^2)+(J30^2)+(J31^2)+(J53^2)+(J54^2)+(J55^2))","v":83.270643086264201},{"$f":"K29+K30+K31+K53+K54+K55","v":87},{"$f":"SQRT((L29^2)+(L30^2)+(L31^2)+(L53^2)+(L54^2)+(L55^2))","v":53.712196007983138},{"$f":"M29+M30+M31+M53+M54+M55","v":202},{"$f":"SQRT((N29^2)+(N30^2)+(N31^2)+(N53^2)+(N54^2)+(N55^2))","v":115.19982638875807},{"$f":"O29+O30+O31+O53+O54+O55","v":447},{"$f":"SQRT((P29^2)+(P30^2)+(P31^2)+(P53^2)+(P54^2)+(P55^2))","v":192.1119465311827},{"$f":"Q29+Q30+Q31+Q53+Q54+Q55","v":53},{"$f":"SQRT((R29^2)+(R30^2)+(R31^2)+(R53^2)+(R54^2)+(R55^2))","v":31.096623610932426},{"$f":"S29+S30+S31+S53+S54+S55","v":56},{"$f":"SQRT((T29^2)+(T30^2)+(T31^2)+(T53^2)+(T54^2)+(T55^2))","v":42.035699113967404},{"$f":"U29+U30+U31+U53+U54+U55","v":573},{"$f":"SQRT((V29^2)+(V30^2)+(V31^2)+(V53^2)+(V54^2)+(V55^2))","v":186.91174387929721},{"$f":"W29+W30+W31+W53+W54+W55","v":174},{"$f":"SQRT((X29^2)+(X30^2)+(X31^2)+(X53^2)+(X54^2)+(X55^2))","v":71.958321270024086},{"$f":"Y29+Y30+Y31+Y53+Y54+Y55","v":52},{"$f":"SQRT((Z29^2)+(Z30^2)+(Z31^2)+(Z53^2)+(Z54^2)+(Z55^2))","v":32.680269276736382},{"$f":"AA29+AA30+AA31+AA53+AA54+AA55","v":295},{"$f":"SQRT((AB29^2)+(AB30^2)+(AB31^2)+(AB53^2)+(AB54^2)+(AB55^2))","v":144.95171609884446},{"$f":"AC29+AC30+AC31+AC53+AC54+AC55","v":250},{"$f":"SQRT((AD29^2)+(AD30^2)+(AD31^2)+(AD53^2)+(AD54^2)+(AD55^2))","v":77.259303646874784},{"$f":"AE29+AE30+AE31+AE53+AE54+AE55","v":77},{"$f":"SQRT((AF29^2)+(AF30^2)+(AF31^2)+(AF53^2)+(AF54^2)+(AF55^2))","v":32.680269276736382}]
[]
[]
[]
[]
[]
[]
[]
[]
[]
[]
[]
[]
[]
[]
[]
[]
[]
[]
[]
[]
[]
[]
[]
[]
[]
[]
[]
[]
[]
[]
[]
[]
[]
[]
[]
[]
[]
[]
[]
[]
[]
[]
[]
[]
[]
[]
[]
[]
[]
[]
[]
[]
[]
[]
[]
[]
[]
[]
[]
[]
[]
[]
[]
[]
[]
[]
[]
[]
[]
[]
[]
[]
[]
[]
[]
[]
[null,"Calculated B01001. GENDER BY AGE"]
[null,"Universe:  TOTAL POPULATION"]
[null,"Data Set: 2013-2017 American Community Survey 5-Year Estimates"]
[]
[null,null,"Acworth",null,"Charlestown",null,"Claremont",null,"Cornish",null,"Croydon",null,"Goshen",null,"Grantham",null,"Langdon",null,"Lempster",null,"Newport",null,"Plainfield",null,"Springfield",null,"Sunapee",null,"Unity",null,"Washington"]
[null,null,"Estimate","Margin Of Error","Estimate","Margin Of Error","Estimate","Margin Of Error","Estimate","Margin Of Error","Estimate","Margin Of Error","Estimate","Margin Of Error","Estimate","Margin Of Error","Estimate","Margin Of Error","Estimate","Margin Of Error","Estimate","Margin Of Error","Estimate","Margin Of Error","Estimate","Margin Of Error","Estimate","Margin Of Error","Estimate","Margin Of Error","Estimate","Margin Of Error",null,null,null,null,null,null,null,null,null,null,"Estimate","Margin Of Error","Estimate","Margin Of Error","Estimate","Margin Of Error","Estimate","Margin Of Error","Estimate","Margin Of Error","Estimate","Margin Of Error","Estimate","Margin Of Error","Estimate","Margin Of Error","Estimate","Margin Of Error","Estimate","Margin Of Error","Estimate","Margin Of Error","Estimate","Margin Of Error","Estimate","Margin Of Error","Estimate","Margin Of Error","Estimate","Margin Of Error","Estimate","Margin Of Error","Estimate","Margin Of Error"]
[null,"Total",1031,143,5008,21,13028,23,1777,205,809,193,732,141,2941,35,887,143,858,129,6385,18,2439,249,1011,183,3404,16,1498,193,1265,206,null,null,null,null,null,null,null,null,null,null,1836,240,691,109,9401,30,4523,25,4542,22,4077,20,4471,16,7665,30,20557,24,10181,17,5177,23,29423,51,5822,18,8494,17,798,129,7214,17,13097,27]
[null,"Under 15 yrs.",108,35.566838487557476,950,197.82820830205182,2331,289.45811441381289,319,81.308056181414145,68,30.773365106858236,148,43.08131845707603,481,185.02162035827055,214,71.56116265125938,90,29.478805945967352,1016,279.95892555873263,379,91.038453413928337,103,40.865633483405098,428,149.49247472699085,114,42.01190307520001,111,48.805737367649719,null,null,null,null,null,null,null,null,null,null,494,81.301906496711382,57,31.496031496047245,1693,285.04561038542585,828,148.2700239428051,806,181.48829163337231,872,182.65815065307106,1065,209.01913787976449,1654,321.3627234139019,3103,379.76045081077098,1825,268.4809117982133,843,191.59331929897763,5616,474.16558289272746,1367,216.84787294322257,1384,277.45089655648979,126,35.735136770411273,1616,233.79905902291395,2804,324.07097987940853]
[null,"15 to 24 yrs.",83,35.284557528754704,311,127.29493312775651,1479,235.78167867754271,186,58.008620049092706,165,67.69785816405124,71,36.578682316343766,244,105.00952337764419,74,31.496031496047245,69,49.203658400570177,847,204.10781464706344,335,101.75460677532,95,44.966654311834233,426,127.41271522104849,150,50.527220386639122,138,61.838499334961227,null,null,null,null,null,null,null,null,null,null,223,172.78888853164142,69,199.83493188129046,1367,253.25678668102856,702,204.87313147409057,470,169.29264603047588,463,167.10176540060851,389,184.03260580668851,1007,235.0957251844448,2532,428.31530441953623,1325,247.69537742961614,554,266.4169664266899,3727,438.85874720688889,853,186.23372412106247,599,237.49526311065659,45,255.62472493872733,683,157.89870170460554,1542,275.31436577120343]
[null,"25 to 34 yrs.",102,31.128764832546761,704,177.67948671695333,1819,231.08872754853275,103,35.749125863438955,85,39.534794801541594,89,30.740852297878796,208,90.846023578360331,74,29.597297173897484,66,25.019992006393608,537,167.65142409177443,157,44.955533585978046,66,37.429934544425805,329,110.78808600206071,112,42.201895692018383,64,28.0178514522438,null,null,null,null,null,null,null,null,null,null,107,41.581245772583578,49,22.693611435820433,1640,258.80108191427638,466,115.90944741478151,541,149.70971912337555,470,143.90621946253748,590,148.32059870429327,576,188.09572031282372,3848,398.70415096911142,987,179.89163404672269,248,98.168222964460341,2750,379.13717834050516,569,136.58330791132568,793,226.31615055050756,90,121.64292005702592,520,148.81532179181013,1040,183.82328470571949]
[null,"35 to 44 yrs.",97,33.090784215548595,380,152.77761616153069,1361,246.05283985355666,147,42.391036788453285,94,37.775653535048207,63,25.03996805109783,342,120.68139873236471,124,37.255872020394314,98,37.868192457522973,1008,254.65663156493687,284,71.035202540712163,118,47.254629402842639,436,148.93287078412206,152,40.36087214122113,238,97.918333319149184,null,null,null,null,null,null,null,null,null,null,330,63.482280992415511,78,33.136083051561783,1452,253.59613561724476,960,160.49299050114308,639,128.55349081219072,557,129.67266481413884,807,157.23867208800766,1034,181.09389829588406,2906,262.13355374694021,1864,257.27028588626399,685,144.33987668000827,4851,401.55946010522524,1013,169.94999264489539,1509,269.06504789734396,133,38.183766184073569,1389,228.34184898962346,2212,254.6644851564505]
[null,"45 to 54 yrs.",146,38.665229858362409,685,189.54682798717576,1990,243.9549138672964,246,55.226805085936306,84,30.951575081084322,122,36.783148315499041,598,174.2469511928401,156,43.289721643826724,159,50.34878350069642,800,180.23040808920121,391,84.894051617295304,185,54.890800686453829,484,133.62260287840527,213,48.969378186781178,224,63.757352517180323,null,null,null,null,null,null,null,null,null,null,414,68.753181744556372,131,38.974350539810153,1322,190.84810714282708,764,154.463587942272,834,144.08677940741129,657,128.46400274006723,730,146.78555787270082,1500,232.25632391820895,3292,333.37816365203048,1820,247.78014448296699,1013,196.22945752358385,5289,423.48317558080157,1254,191.15961916681044,1256,257.17309346041628,142,28.0178514522438,1370,211.72859986312668,2167,238.62522917746983]
[null,"55 to 64 yrs.",209,40.853396431630991,974,212.51823451177077,1865,258.64454372748713,394,65.475186139483412,187,48.270073544588683,93,32.03123475609393,496,138.89204440859814,113,28.792360097775937,217,46.195237849804386,857,194.5379140424817,452,79.113842025273939,210,55.928525816438253,560,158.0442975877333,349,64.861390672726102,214,50.645829048402398,null,null,null,null,null,null,null,null,null,null,157,41.340053217188775,159,44.50842616853577,1031,198.38094666575216,445,115.26057435220423,560,107.25670142233538,596,138.30039768561767,523,119.00420160649792,998,192.97668252926312,2056,252.91105155765732,1443,242.30971916124207,905,185.68791021496256,3277,323.2723310151984,407,93.300589494386372,1265,256.59111442136884,139,41.928510586473259,991,195.94386951369518,2009,263.51470547200967]
[null,"65 to 74 yrs.",192,41.569219381653056,521,179.95555006723188,1261,206.54055291879124,257,54.607691765904185,90,29.120439557122072,86,29.308701779505689,258,93.95743717237076,99,22.561028345356956,111,34.698703145794944,872,225.23543238131961,330,70.256672281001187,175,57.122675007390889,345,106.36258740741502,221,48.908077042549934,204,38.144462245521304,null,null,null,null,null,null,null,null,null,null,75,20.928449536456348,94,33.045423283716609,543,136.24243098242192,185,139.30900904105232,328,94.609724658726279,214,70.562029449272501,252,70.753091805234916,349,152.34500319997372,1277,209.12914670126688,601,143.80542409798039,405,129.38315191708693,2049,254.22234362856463,298,106,899,186.66011893278113,41,15.066519173319364,370,111.74972035759194,892,192.05467971387731]
[null,"Over 74 yrs. ",94,33.689761055846034,483,156.32977963267268,922,165.34811761855653,125,38.105117766515299,36,16.431676725154983,60,24.186773244895647,314,117.56700217322886,33,14.594519519326424,48,21,448,150.2664300500947,111,46.421977553740639,59,29.933259094191531,396,106.90182411914213,187,64.953829756219918,72,19.261360284258224,null,null,null,null,null,null,null,null,null,null,36,115.35163631262454,54,20.760539492026695,353,110.75197515168747,173,182.3567931281969,364,97.596106479715672,248,86.804377769787621,115,127.23993083933989,547,176.78518037437414,1543,223.98660674245681,316,98.427638394914254,524,137.08391590555036,1864,256.32791498391276,61,168.54079624826744,789,180.94197965093673,82,119.05040949110591,275,101.70054080485511,431,183.61917111238685]
[]
[]
[]
[]
[]
[]
[]
[]
[]
[]
[]
[]
[]
[]
[]
[]
[]
[]
[]
[]
[]
[]
[]
[]
[]
[]
[]
[]
[]
[]
[]
[]
[]
[]
[]
[]
[]
[]
[]
[]
[]
[]
[]
[]
[]
[]
[]
[]
[]
[]
[]
[]
[]
[]
[]
[]
[]
[]
[]
[]
[]
[]
[]
[]
[]
[]
[]
[]
[]
[]
[]
[]
[]
[]
[]
[]
[null,"Calculated B01001. GENDER BY AGE"]
[null,"Universe:  TOTAL POPULATION"]
[null,"Data Set: 2008-2012 American Community Survey 5-Year Estimates"]
[]
[null,null,"Acworth",null,"Charlestown",null,"Claremont",null,"Cornish",null,"Croydon",null,"Goshen",null,"Grantham",null,"Langdon",null,"Lempster",null,"Newport",null,"Plainfield",null,"Springfield",null,"Sunapee",null,"Unity",null,"Washington"]
[null,null,"Estimate","Margin Of Error","Estimate","Margin Of Error","Estimate","Margin Of Error","Estimate","Margin Of Error","Estimate","Margin Of Error","Estimate","Margin Of Error","Estimate","Margin Of Error","Estimate","Margin Of Error","Estimate","Margin Of Error","Estimate","Margin Of Error","Estimate","Margin Of Error","Estimate","Margin Of Error","Estimate","Margin Of Error","Estimate","Margin Of Error","Estimate","Margin Of Error"]
[null,"Total",746,184,5081,16,13304,16,1665,226,615,113,767,114,2936,33,776,133,1212,178,6498,22,2570,212,1354,195,3349,23,1590,160,1071,171]
[null,"Under 15 yrs.",130,53.851648071345039,724,183.13110058097723,2477,286.22543562723422,276,66.234432133143557,81,34.423828956117013,66,32.603680773802211,472,108.5679510721281,120,58.506409905240297,240,59.883219686319471,1225,278.68082101213929,430,100.45396955820114,301,71.330218000508026,530,139.26593266122194,118,35.665109000254013,140,41.581245772583578]
[null,"15 to 24 yrs.",67,31.256999216175569,462,152.22680447279973,1510,222.89683712426248,202,63.953107821277925,31,29.529646120466801,79,34.669871646719429,233,77.730302971235105,122,50.299105359837164,131,45.210618221829257,797,210.98578151145637,351,81.012344738317509,112,47.518417482066887,366,113.55175031676086,211,60.124870062229654,97,38.820097887563342]
[null,"25 to 34 yrs.",107,51.185935568278907,679,186.41620101268023,1680,220.28617750553482,144,40.70626487409524,81,40.11234224026316,74,36.152454965050438,221,84.563585543660579,114,47.968739820845826,79,33.136083051561783,557,174.09480176042018,209,80.193515947363224,111,44.966654311834233,270,93.733665243603909,124,43.497126341863094,53,26.944387170614959]
[null,"35 to 44 yrs.",86,33.585711247493329,534,144.39529078193652,1714,247.53787588973125,211,61.35959582656978,82,26.851443164195103,65,31.080540535840107,486,104.86658190291128,85,33.271609519228249,254,61.155539405682624,808,229.57569557773314,307,67.838042424586519,303,68.782265156070579,405,120.20815280171308,222,63.545259461269019,150,42.296571965113202]
[null,"45 to 54 yrs.",130,42.906875905849866,1101,213.36588293351869,2050,214.61360627881913,254,53.197744313081543,111,32.03123475609393,168,38.065732621348559,425,91.010988347561636,104,33.526109228480422,208,46.743983570080971,1142,195.26136330569855,475,92.395887354362259,164,51.205468457968429,495,121.74974332621815,311,67.69785816405124,151,43.783558557979269]
[null,"55 to 64 yrs.",94,30.675723300355934,782,176.36609651517495,1748,219.81128269495176,368,59.16079783099616,127,37.469987990390386,158,34.583232931581165,497,100.29955134495867,119,35.637059362410923,160,41.303752856126764,976,185.53705829294589,467,94.525128934056468,162,46.130250378683186,555,135.77923257994942,277,52.668776329054772,191,47.549973711874962]
[null,"65 to 74 yrs.",116,38.131351929875237,434,153.0686120666154,1030,163.76812876747417,147,42.988370520409354,57,18.627936010197157,84,33.391615714128001,284,80.461170759565761,70,27.404379212089442,67,27.982137159266443,579,157.03184390434953,217,59.455865984778995,143,44.21538193886829,458,118.05930712993364,154,44.034077712607996,183,42.778499272414876]
[null,"Over 74 yrs. ",16,14.628738838327793,365,126.00793625799925,1095,162.95091285414759,63,22.516660498395403,45,28.705400188814647,73,24.959967948697368,318,86.827415025439976,42,23.558437978779494,73,31.937438845342623,414,108.2450922675019,114,47.444704657105831,58,26.814175355583846,270,95.582425162788169,173,66.603303221386852,106,35.735136770411273]

{"sheet":"ACS_Table_B01002","index":23,"n_rows":49,"n_cols":32,"rows_kept":49,"cut":false,"hidden":true,"merged":[[64938,16,64938,17],[64938,18,64938,19],[64938,20,64938,21],[64938,22,64938,23],[64918,16,64918,17],[64918,18,64918,19],[64918,20,64918,21],[64918,22,64918,23],[64856,16,64856,17],[64856,18,64856,19],[64856,20,64856,21],[64856,22,64856,23],[64836,16,64836,17],[64836,18,64836,19],[64836,20,64836,21],[64836,22,64836,23],[64774,16,64774,17],[64774,18,64774,19],[64774,20,64774,21],[64774,22,64774,23],[64754,16,64754,17],[64754,18,64754,19],[64754,20,64754,21],[64754,22,64754,23],[64692,16,64692,17],[64692,18,64692,19],[64692,20,64692,21],[64692,22,64692,23],[64672,16,64672,17],[64672,18,64672,19],[64672,20,64672,21],[64672,22,64672,23],[64610,16,64610,17],[64610,18,64610,19],[64610,20,64610,21],[64610,22,64610,23],[64590,16,64590,17],[64590,18,64590,19],[64590,20,64590,21],[64590,22,64590,23],[64528,16,64528,17],[64528,18,64528,19],[64528,20,64528,21],[64528,22,64528,23],[64508,16,64508,17],[64508,18,64508,19],[64508,20,64508,21],[64508,22,64508,23],[64446,16,64446,17],[64446,18,64446,19],[64446,20,64446,21],[64446,22,64446,23],[64426,16,64426,17],[64426,18,64426,19],[64426,20,64426,21],[64426,22,64426,23],[64364,16,64364,17],[64364,18,64364,19],[64364,20,64364,21],[64364,22,64364,23],[64344,16,64344,17],[64344,18,64344,19],[64344,20,64344,21],[64344,22,64344,23],[64282,16,64282,17],[64282,18,64282,19],[64282,20,64282,21],[64282,22,64282,23],[64262,16,64262,17],[64262,18,64262,19],[64262,20,64262,21],[64262,22,64262,23],[64200,16,64200,17],[64200,18,64200,19],[64200,20,64200,21],[64200,22,64200,23],[64180,16,64180,17],[64180,18,64180,19],[64180,20,64180,21],[64180,22,64180,23],[64118,16,64118,17],[64118,18,64118,19],[64118,20,64118,21],[64118,22,64118,23],[64098,16,64098,17],[64098,18,64098,19],[64098,20,64098,21],[64098,22,64098,23],[64036,16,64036,17],[64036,18,64036,19],[64036,20,64036,21],[64036,22,64036,23],[64016,16,64016,17],[64016,18,64016,19],[64016,20,64016,21],[64016,22,64016,23],[63954,16,63954,17],[63954,18,63954,19],[63954,20,63954,21],[63954,22,63954,23],[63934,16,63934,17],[63934,18,63934,19],[63934,20,63934,21],[63934,22,63934,23],[63872,16,63872,17],[63872,18,63872,19],[63872,20,63872,21],[63872,22,63872,23],[63852,16,63852,17],[63852,18,63852,19],[63852,20,63852,21],[63852,22,63852,23],[63790,16,63790,17],[63790,18,63790,19],[63790,20,63790,21],[63790,22,63790,23],[63770,16,63770,17],[63770,18,63770,19],[63770,20,63770,21],[63770,22,63770,23],[63708,16,63708,17],[63708,18,63708,19],[63708,20,63708,21],[63708,22,63708,23],[63688,16,63688,17],[63688,18,63688,19],[63688,20,63688,21],[63688,22,63688,23],[63626,16,63626,17],[63626,18,63626,19],[63626,20,63626,21],[63626,22,63626,23],[63606,16,63606,17],[63606,18,63606,19],[63606,20,63606,21],[63606,22,63606,23],[63544,16,63544,17],[63544,18,63544,19],[63544,20,63544,21],[63544,22,63544,23],[63524,16,63524,17],[63524,18,63524,19],[63524,20,63524,21],[63524,22,63524,23],[63462,16,63462,17],[63462,18,63462,19],[63462,20,63462,21],[63462,22,63462,23],[63442,16,63442,17],[63442,18,63442,19],[63442,20,63442,21],[63442,22,63442,23],[63380,16,63380,17],[63380,18,63380,19],[63380,20,63380,21],[63380,22,63380,23],[63360,16,63360,17],[63360,18,63360,19],[63360,20,63360,21],[63360,22,63360,23],[63298,16,63298,17],[63298,18,63298,19],[63298,20,63298,21],[63298,22,63298,23],[63278,16,63278,17],[63278,18,63278,19],[63278,20,63278,21],[63278,22,63278,23],[63216,16,63216,17],[63216,18,63216,19],[63216,20,63216,21],[63216,22,63216,23],[63196,16,63196,17],[63196,18,63196,19],[63196,20,63196,21],[63196,22,63196,23],[63134,16,63134,17],[63134,18,63134,19],[63134,20,63134,21],[63134,22,63134,23],[63114,16,63114,17],[63114,18,63114,19],[63114,20,63114,21],[63114,22,63114,23],[63052,16,63052,17],[63052,18,63052,19],[63052,20,63052,21],[63052,22,63052,23],[63032,16,63032,17],[63032,18,63032,19],[63032,20,63032,21],[63032,22,63032,23],[62970,16,62970,17],[62970,18,62970,19],[62970,20,62970,21],[62970,22,62970,23],[62950,16,62950,17],[62950,18,62950,19],[62950,20,62950,21],[62950,22,62950,23],[62888,16,62888,17],[62888,18,62888,19],[62888,20,62888,21],[62888,22,62888,23],[62868,16,62868,17],[62868,18,62868,19],[62868,20,62868,21],[62868,22,62868,23],[62806,16,62806,17],[62806,18,62806,19],[62806,20,62806,21],[62806,22,62806,23],[62786,16,62786,17],[62786,18,62786,19],[62786,20,62786,21],[62786,22,62786,23],[62724,16,62724,17],[62724,18,62724,19],[62724,20,62724,21],[62724,22,62724,23],[62704,16,62704,17],[62704,18,62704,19],[62704,20,62704,21],[62704,22,62704,23],[62642,16,62642,17],[62642,18,62642,19],[62642,20,62642,21],[62642,22,62642,23],[62622,16,62622,17],[62622,18,62622,19],[62622,20,62622,21],[62622,22,62622,23],[62560,16,62560,17],[62560,18,62560,19],[62560,20,62560,21],[62560,22,62560,23],[62540,16,62540,17],[62540,18,62540,19],[62540,20,62540,21],[62540,22,62540,23],[62478,16,62478,17],[62478,18,62478,19],[62478,20,62478,21],[62478,22,62478,23],[62458,16,62458,17],[62458,18,62458,19],[62458,20,62458,21],[62458,22,62458,23],[62396,16,62396,17],[62396,18,62396,19],[62396,20,62396,21],[62396,22,62396,23],[62376,16,62376,17],[62376,18,62376,19],[62376,20,62376,21],[62376,22,62376,23],[62314,16,62314,17],[62314,18,62314,19],[62314,20,62314,21],[62314,22,62314,23],[62294,16,62294,17],[62294,18,62294,19],[62294,20,62294,21],[62294,22,62294,23],[62232,16,62232,17],[62232,18,62232,19],[62232,20,62232,21],[62232,22,62232,23],[62212,16,62212,17],[62212,18,62212,19],[62212,20,62212,21],[62212,22,62212,23],[62150,16,62150,17],[62150,18,62150,19],[62150,20,62150,21],[62150,22,62150,23],[62130,16,62130,17],[62130,18,62130,19],[62130,20,62130,21],[62130,22,62130,23],[62068,16,62068,17],[62068,18,62068,19],[62068,20,62068,21],[62068,22,62068,23],[62048,16,62048,17],[62048,18,62048,19],[62048,20,62048,21],[62048,22,62048,23],[61986,16,61986,17],[61986,18,61986,19],[61986,20,61986,21],[61986,22,61986,23],[61966,16,61966,17],[61966,18,61966,19],[61966,20,61966,21],[61966,22,61966,23],[61904,16,61904,17],[61904,18,61904,19],[61904,20,61904,21],[61904,22,61904,23],[61884,16,61884,17],[61884,18,61884,19],[61884,20,61884,21],[61884,22,61884,23],[61822,16,61822,17],[61822,18,61822,19],[61822,20,61822,21],[61822,22,61822,23],[61802,16,61802,17],[61802,18,61802,19],[61802,20,61802,21],[61802,22,61802,23],[61740,16,61740,17],[61740,18,61740,19],[61740,20,61740,21],[61740,22,61740,23],[61720,16,61720,17],[61720,18,61720,19],[61720,20,61720,21],[61720,22,61720,23],[61658,16,61658,17],[61658,18,61658,19],[61658,20,61658,21],[61658,22,61658,23],[61638,16,61638,17],[61638,18,61638,19],[61638,20,61638,21],[61638,22,61638,23],[61576,16,61576,17],[61576,18,61576,19],[61576,20,61576,21],[61576,22,61576,23],[61556,16,61556,17],[61556,18,61556,19],[61556,20,61556,21],[61556,22,61556,23],[61494,16,61494,17],[61494,18,61494,19],[61494,20,61494,21],[61494,22,61494,23],[61474,16,61474,17],[61474,18,61474,19],[61474,20,61474,21],[61474,22,61474,23],[61412,16,61412,17],[61412,18,61412,19],[61412,20,61412,21],[61412,22,61412,23],[61392,16,61392,17],[61392,18,61392,19],[61392,20,61392,21],[61392,22,61392,23],[61330,16,61330,17],[61330,18,61330,19],[61330,20,61330,21],[61330,22,61330,23],[61310,16,61310,17],[61310,18,61310,19],[61310,20,61310,21],[61310,22,61310,23],[61248,16,61248,17],[61248,18,61248,19],[61248,20,61248,21],[61248,22,61248,23],[61228,16,61228,17],[61228,18,61228,19],[61228,20,61228,21],[61228,22,61228,23],[61166,16,61166,17],[61166,18,61166,19],[61166,20,61166,21],[61166,22,61166,23],[61146,16,61146,17],[61146,18,61146,19],[61146,20,61146,21],[61146,22,61146,23],[61084,16,61084,17],[61084,18,61084,19],[61084,20,61084,21],[61084,22,61084,23],[61064,16,61064,17],[61064,18,61064,19],[61064,20,61064,21],[61064,22,61064,23],[61002,16,61002,17],[61002,18,61002,19],[61002,20,61002,21],[61002,22,61002,23],[60982,16,60982,17],[60982,18,60982,19],[60982,20,60982,21],[60982,22,60982,23],[60920,16,60920,17],[60920,18,60920,19],[60920,20,60920,21],[60920,22,60920,23],[60900,16,60900,17],[60900,18,60900,19],[60900,20,60900,21],[60900,22,60900,23],[60838,16,60838,17],[60838,18,60838,19],[60838,20,60838,21],[60838,22,60838,23],[60818,16,60818,17],[60818,18,60818,19],[60818,20,60818,21],[60818,22,60818,23],[60756,16,60756,17],[60756,18,60756,19],[60756,20,60756,21],[60756,22,60756,23],[60736,16,60736,17],[60736,18,60736,19],[60736,20,60736,21],[60736,22,60736,23],[60674,16,60674,17],[60674,18,60674,19],[60674,20,60674,21],[60674,22,60674,23],[60654,16,60654,17],[60654,18,60654,19],[60654,20,60654,21],[60654,22,60654,23],[60592,16,60592,17],[60592,18,60592,19],[60592,20,60592,21],[60592,22,60592,23],[60572,16,60572,17],[60572,18,60572,19],[60572,20,60572,21],[60572,22,60572,23],[60510,16,60510,17],[60510,18,60510,19],[60510,20,60510,21],[60510,22,60510,23],[60490,16,60490,17],[60490,18,60490,19],[60490,20,60490,21],[60490,22,60490,23],[60428,16,60428,17],[60428,18,60428,19],[60428,20,60428,21],[60428,22,60428,23],[60408,16,60408,17],[60408,18,60408,19],[60408,20,60408,21],[60408,22,60408,23],[60346,16,60346,17],[60346,18,60346,19],[60346,20,60346,21],[60346,22,60346,23],[60326,16,60326,17],[60326,18,60326,19],[60326,20,60326,21],[60326,22,60326,23],[60264,16,60264,17],[60264,18,60264,19],[60264,20,60264,21],[60264,22,60264,23],[60244,16,60244,17],[60244,18,60244,19],[60244,20,60244,21],[60244,22,60244,23],[60182,16,60182,17],[60182,18,60182,19],[60182,20,60182,21],[60182,22,60182,23],[60162,16,60162,17],[60162,18,60162,19],[60162,20,60162,21],[60162,22,60162,23],[60100,16,60100,17],[60100,18,60100,19],[60100,20,60100,21],[60100,22,60100,23],[60080,16,60080,17],[60080,18,60080,19],[60080,20,60080,21],[60080,22,60080,23],[60018,16,60018,17],[60018,18,60018,19],[60018,20,60018,21],[60018,22,60018,23],[59998,16,59998,17],[59998,18,59998,19],[59998,20,59998,21],[59998,22,59998,23],[59936,16,59936,17],[59936,18,59936,19],[59936,20,59936,21],[59936,22,59936,23],[59916,16,59916,17],[59916,18,59916,19],[59916,20,59916,21],[59916,22,59916,23],[59854,16,59854,17],[59854,18,59854,19],[59854,20,59854,21],[59854,22,59854,23],[59834,16,59834,17],[59834,18,59834,19],[59834,20,59834,21],[59834,22,59834,23],[59772,16,59772,17],[59772,18,59772,19],[59772,20,59772,21],[59772,22,59772,23],[59752,16,59752,17],[59752,18,59752,19],[59752,20,59752,21],[59752,22,59752,23],[59690,16,59690,17],[59690,18,59690,19],[59690,20,59690,21],[59690,22,59690,23],[59670,16,59670,17],[59670,18,59670,19],[59670,20,59670,21],[59670,22,59670,23],[59608,16,59608,17],[59608,18,59608,19],[59608,20,59608,21],[59608,22,59608,23],[59588,16,59588,17],[59588,18,59588,19],[59588,20,59588,21],[59588,22,59588,23],[59526,16,59526,17],[59526,18,59526,19],[59526,20,59526,21],[59526,22,59526,23],[59506,16,59506,17],[59506,18,59506,19],[59506,20,59506,21],[59506,22,59506,23],[59444,16,59444,17],[59444,18,59444,19],[59444,20,59444,21],[59444,22,59444,23],[59424,16,59424,17],[59424,18,59424,19],[59424,20,59424,21],[59424,22,59424,23],[59362,16,59362,17],[59362,18,59362,19],[59362,20,59362,21],[59362,22,59362,23],[59342,16,59342,17],[59342,18,59342,19],[59342,20,59342,21],[59342,22,59342,23],[59280,16,59280,17],[59280,18,59280,19],[59280,20,59280,21],[59280,22,59280,23],[59260,16,59260,17],[59260,18,59260,19],[59260,20,59260,21],[59260,22,59260,23],[59198,16,59198,17],[59198,18,59198,19],[59198,20,59198,21],[59198,22,59198,23],[59178,16,59178,17],[59178,18,59178,19],[59178,20,59178,21],[59178,22,59178,23],[59116,16,59116,17],[59116,18,59116,19],[59116,20,59116,21],[59116,22,59116,23],[59096,16,59096,17],[59096,18,59096,19],[59096,20,59096,21],[59096,22,59096,23],[59034,16,59034,17],[59034,18,59034,19],[59034,20,59034,21],[59034,22,59034,23],[59014,16,59014,17],[59014,18,59014,19],[59014,20,59014,21],[59014,22,59014,23],[58952,16,58952,17],[58952,18,58952,19],[58952,20,58952,21],[58952,22,58952,23],[58932,16,58932,17],[58932,18,58932,19],[58932,20,58932,21],[58932,22,58932,23],[58870,16,58870,17],[58870,18,58870,19],[58870,20,58870,21],[58870,22,58870,23],[58850,16,58850,17],[58850,18,58850,19],[58850,20,58850,21],[58850,22,58850,23],[58788,16,58788,17],[58788,18,58788,19],[58788,20,58788,21],[58788,22,58788,23],[58768,16,58768,17],[58768,18,58768,19],[58768,20,58768,21],[58768,22,58768,23],[58706,16,58706,17],[58706,18,58706,19],[58706,20,58706,21],[58706,22,58706,23],[58686,16,58686,17],[58686,18,58686,19],[58686,20,58686,21],[58686,22,58686,23],[58624,16,58624,17],[58624,18,58624,19],[58624,20,58624,21],[58624,22,58624,23],[58604,16,58604,17],[58604,18,58604,19],[58604,20,58604,21],[58604,22,58604,23],[58542,16,58542,17],[58542,18,58542,19],[58542,20,58542,21],[58542,22,58542,23],[58522,16,58522,17],[58522,18,58522,19],[58522,20,58522,21],[58522,22,58522,23],[58460,16,58460,17],[58460,18,58460,19],[58460,20,58460,21],[58460,22,58460,23],[58440,16,58440,17],[58440,18,58440,19],[58440,20,58440,21],[58440,22,58440,23],[58378,16,58378,17],[58378,18,58378,19],[58378,20,58378,21],[58378,22,58378,23],[58358,16,58358,17],[58358,18,58358,19],[58358,20,58358,21],[58358,22,58358,23],[58296,16,58296,17],[58296,18,58296,19],[58296,20,58296,21],[58296,22,58296,23],[58276,16,58276,17],[58276,18,58276,19],[58276,20,58276,21],[58276,22,58276,23],[58214,16,58214,17],[58214,18,58214,19],[58214,20,58214,21],[58214,22,58214,23],[58194,16,58194,17],[58194,18,58194,19],[58194,20,58194,21],[58194,22,58194,23],[58132,16,58132,17],[58132,18,58132,19],[58132,20,58132,21],[58132,22,58132,23],[58112,16,58112,17],[58112,18,58112,19],[58112,20,58112,21],[58112,22,58112,23],[58050,16,58050,17],[58050,18,58050,19],[58050,20,58050,21],[58050,22,58050,23],[58030,16,58030,17],[58030,18,58030,19],[58030,20,58030,21],[58030,22,58030,23],[57968,16,57968,17],[57968,18,57968,19],[57968,20,57968,21],[57968,22,57968,23],[57948,16,57948,17],[57948,18,57948,19],[57948,20,57948,21],[57948,22,57948,23],[57886,16,57886,17],[57886,18,57886,19],[57886,20,57886,21],[57886,22,57886,23],[57866,16,57866,17],[57866,18,57866,19],[57866,20,57866,21],[57866,22,57866,23],[57804,16,57804,17],[57804,18,57804,19],[57804,20,57804,21],[57804,22,57804,23],[57784,16,57784,17],[57784,18,57784,19],[57784,20,57784,21],[57784,22,57784,23],[57722,16,57722,17],[57722,18,57722,19],[57722,20,57722,21],[57722,22,57722,23],[57702,16,57702,17],[57702,18,57702,19],[57702,20,57702,21],[57702,22,57702,23],[57640,16,57640,17],[57640,18,57640,19],[57640,20,57640,21],[57640,22,57640,23],[57620,16,57620,17],[57620,18,57620,19],[57620,20,57620,21],[57620,22,57620,23],[57558,16,57558,17],[57558,18,57558,19],[57558,20,57558,21],[57558,22,57558,23],[57538,16,57538,17],[57538,18,57538,19],[57538,20,57538,21],[57538,22,57538,23],[57476,16,57476,17],[57476,18,57476,19],[57476,20,57476,21],[57476,22,57476,23],[57456,16,57456,17],[57456,18,57456,19],[57456,20,57456,21],[57456,22,57456,23],[57394,16,57394,17],[57394,18,57394,19],[57394,20,57394,21],[57394,22,57394,23],[57374,16,57374,17],[57374,18,57374,19],[57374,20,57374,21],[57374,22,57374,23],[57312,16,57312,17],[57312,18,57312,19],[57312,20,57312,21],[57312,22,57312,23],[57292,16,57292,17],[57292,18,57292,19],[57292,20,57292,21],[57292,22,57292,23],[57230,16,57230,17],[57230,18,57230,19],[57230,20,57230,21],[57230,22,57230,23],[57210,16,57210,17],[57210,18,57210,19],[57210,20,57210,21],[57210,22,57210,23],[57148,16,57148,17],[57148,18,57148,19],[57148,20,57148,21],[57148,22,57148,23],[57128,16,57128,17],[57128,18,57128,19],[57128,20,57128,21],[57128,22,57128,23],[57066,16,57066,17],[57066,18,57066,19],[57066,20,57066,21],[57066,22,57066,23],[57046,16,57046,17],[57046,18,57046,19],[57046,20,57046,21],[57046,22,57046,23],[56984,16,56984,17],[56984,18,56984,19],[56984,20,56984,21],[56984,22,56984,23],[56964,16,56964,17],[56964,18,56964,19],[56964,20,56964,21],[56964,22,56964,23],[56902,16,56902,17],[56902,18,56902,19],[56902,20,56902,21],[56902,22,56902,23],[56882,16,56882,17],[56882,18,56882,19],[56882,20,56882,21],[56882,22,56882,23],[56820,16,56820,17],[56820,18,56820,19],[56820,20,56820,21],[56820,22,56820,23],[56800,16,56800,17],[56800,18,56800,19],[56800,20,56800,21],[56800,22,56800,23],[56738,16,56738,17],[56738,18,56738,19],[56738,20,56738,21],[56738,22,56738,23],[56718,16,56718,17],[56718,18,56718,19],[56718,20,56718,21],[56718,22,56718,23],[56656,16,56656,17],[56656,18,56656,19],[56656,20,56656,21],[56656,22,56656,23],[56636,16,56636,17],[56636,18,56636,19],[56636,20,56636,21],[56636,22,56636,23],[56574,16,56574,17],[56574,18,56574,19],[56574,20,56574,21],[56574,22,56574,23],[56554,16,56554,17],[56554,18,56554,19],[56554,20,56554,21],[56554,22,56554,23],[56492,16,56492,17],[56492,18,56492,19],[56492,20,56492,21],[56492,22,56492,23],[56472,16,56472,17],[56472,18,56472,19],[56472,20,56472,21],[56472,22,56472,23],[56410,16,56410,17],[56410,18,56410,19],[56410,20,56410,21],[56410,22,56410,23],[56390,16,56390,17],[56390,18,56390,19],[56390,20,56390,21],[56390,22,56390,23],[56328,16,56328,17],[56328,18,56328,19],[56328,20,56328,21],[56328,22,56328,23],[56308,16,56308,17],[56308,18,56308,19],[56308,20,56308,21],[56308,22,56308,23],[56246,16,56246,17],[56246,18,56246,19],[56246,20,56246,21],[56246,22,56246,23],[56226,16,56226,17],[56226,18,56226,19],[56226,20,56226,21],[56226,22,56226,23],[56164,16,56164,17],[56164,18,56164,19],[56164,20,56164,21],[56164,22,56164,23],[56144,16,56144,17],[56144,18,56144,19],[56144,20,56144,21],[56144,22,56144,23],[56082,16,56082,17],[56082,18,56082,19],[56082,20,56082,21],[56082,22,56082,23],[56062,16,56062,17],[56062,18,56062,19],[56062,20,56062,21],[56062,22,56062,23],[56000,16,56000,17],[56000,18,56000,19],[56000,20,56000,21],[56000,22,56000,23],[55980,16,55980,17],[55980,18,55980,19],[55980,20,55980,21],[55980,22,55980,23],[55918,16,55918,17],[55918,18,55918,19],[55918,20,55918,21],[55918,22,55918,23],[55898,16,55898,17],[55898,18,55898,19],[55898,20,55898,21],[55898,22,55898,23],[55836,16,55836,17],[55836,18,55836,19],[55836,20,55836,21],[55836,22,55836,23],[55816,16,55816,17],[55816,18,55816,19],[55816,20,55816,21],[55816,22,55816,23],[55754,16,55754,17],[55754,18,55754,19],[55754,20,55754,21],[55754,22,55754,23],[55734,16,55734,17],[55734,18,55734,19],[55734,20,55734,21],[55734,22,55734,23],[55672,16,55672,17],[55672,18,55672,19],[55672,20,55672,21],[55672,22,55672,23],[55652,16,55652,17],[55652,18,55652,19],[55652,20,55652,21],[55652,22,55652,23],[55590,16,55590,17],[55590,18,55590,19],[55590,20,55590,21],[55590,22,55590,23],[55570,16,55570,17],[55570,18,55570,19],[55570,20,55570,21],[55570,22,55570,23],[55508,16,55508,17],[55508,18,55508,19],[55508,20,55508,21],[55508,22,55508,23],[55488,16,55488,17],[55488,18,55488,19],[55488,20,55488,21],[55488,22,55488,23],[55426,16,55426,17],[55426,18,55426,19],[55426,20,55426,21],[55426,22,55426,23],[55406,16,55406,17],[55406,18,55406,19],[55406,20,55406,21],[55406,22,55406,23],[55344,16,55344,17],[55344,18,55344,19],[55344,20,55344,21],[55344,22,55344,23],[55324,16,55324,17],[55324,18,55324,19],[55324,20,55324,21],[55324,22,55324,23],[55262,16,55262,17],[55262,18,55262,19],[55262,20,55262,21],[55262,22,55262,23],[55242,16,55242,17],[55242,18,55242,19],[55242,20,55242,21],[55242,22,55242,23],[55180,16,55180,17],[55180,18,55180,19],[55180,20,55180,21],[55180,22,55180,23],[55160,16,55160,17],[55160,18,55160,19],[55160,20,55160,21],[55160,22,55160,23],[55098,16,55098,17],[55098,18,55098,19],[55098,20,55098,21],[55098,22,55098,23],[55078,16,55078,17],[55078,18,55078,19],[55078,20,55078,21],[55078,22,55078,23],[55016,16,55016,17],[55016,18,55016,19],[55016,20,55016,21],[55016,22,55016,23],[54996,16,54996,17],[54996,18,54996,19],[54996,20,54996,21],[54996,22,54996,23],[54934,16,54934,17],[54934,18,54934,19],[54934,20,54934,21],[54934,22,54934,23],[54914,16,54914,17],[54914,18,54914,19],[54914,20,54914,21],[54914,22,54914,23],[54852,16,54852,17],[54852,18,54852,19],[54852,20,54852,21],[54852,22,54852,23],[54832,16,54832,17],[54832,18,54832,19],[54832,20,54832,21],[54832,22,54832,23],[54770,16,54770,17],[54770,18,54770,19],[54770,20,54770,21],[54770,22,54770,23],[54750,16,54750,17],[54750,18,54750,19],[54750,20,54750,21],[54750,22,54750,23]],"merged_total":58608,"flags":["merged_cut"]}
[null,"B01001. GENDER BY AGE"]
[null,"Universe:  TOTAL POPULATION, Median Age"]
[null,"Data Set: 2018-2022 American Community Survey 5-Year Estimates"]
[]
[null,null,"Acworth",null,"Charlestown",null,"Claremont",null,"Cornish",null,"Croydon",null,"Goshen",null,"Grantham",null,"Langdon",null,"Lempster",null,"Newport",null,"Plainfield",null,"Springfield",null,"Sunapee",null,"Unity",null,"Washington"]
[null,null,"Estimate","Margin Of Error","Estimate","Margin Of Error","Estimate","Margin Of Error","Estimate","Margin Of Error","Estimate","Margin Of Error","Estimate","Margin Of Error","Estimate","Margin Of Error","Estimate","Margin Of Error","Estimate","Margin Of Error","Estimate","Margin Of Error","Estimate","Margin Of Error","Estimate","Margin Of Error","Estimate","Margin Of Error","Estimate","Margin Of Error","Estimate","Margin Of Error"]
[null,"Total:",41.5,16.5,49.1,9.6,44.1,2.2000000000000002,54.3,7.2,51,15.4,50.5,10.3,52.1,6.9,41.2,13.5,43.2,8.6,45,3.4,40.299999999999997,6.2,51.5,5.4,52.8,6.5,56.7,4.4000000000000004,55.8,2.7]
[null,"Male:",46.2,12.3,44.7,11.7,42.9,3.5,53,11.2,51.1,11.8,47.5,9.6,50.3,7.6,34.9,10.7,47.7,8.3000000000000007,33.200000000000003,5.2,40.700000000000003,8.1999999999999993,51.6,9.3000000000000007,52.9,6.1,56.6,5,55.8,2.1]
[null,"Female:",40.9,18.600000000000001,50.1,7.1,45.1,2.4,54.5,6.1,45,16.100000000000001,54.4,15,54.7,8.6999999999999993,50.6,20.6,38.799999999999997,9.6,49.2,3.9,38.799999999999997,8.9,51.4,5.3,52.4,9.6,56.8,5.0999999999999996,56.2,5.7]
[]
[]
[]
[]
[]
[]
[]
[]
[]
[]
[]
[null,"B01001. GENDER BY AGE"]
[null,"Universe:  TOTAL POPULATION, Median Age"]
[null,"Data Set: 2013-2017 American Community Survey 5-Year Estimates"]
[]
[null,null,"Acworth",null,"Charlestown",null,"Claremont",null,"Cornish",null,"Croydon",null,"Goshen",null,"Grantham",null,"Langdon",null,"Lempster",null,"Newport",null,"Plainfield",null,"Springfield",null,"Sunapee",null,"Unity",null,"Washington"]
[null,null,"Estimate","Margin Of Error","Estimate","Margin Of Error","Estimate","Margin Of Error","Estimate","Margin Of Error","Estimate","Margin Of Error","Estimate","Margin Of Error","Estimate","Margin Of Error","Estimate","Margin Of Error","Estimate","Margin Of Error","Estimate","Margin Of Error","Estimate","Margin Of Error","Estimate","Margin Of Error","Estimate","Margin Of Error","Estimate","Margin Of Error","Estimate","Margin Of Error"]
[null,"Total:",53.7,2.7,47.2,3.2,42.8,3.6,50.6,5.2,44.3,7.2,44.2,10.7,47.6,4.0999999999999996,42,7,51.8,5.9,43.1,3.8,46.9,4.7,51.3,3.9,48.5,7,55.2,3,47.8,3.8]
[null,"Male:",53.8,2.7,46.3,7.4,40.4,5.5,47.6,4.8,49.4,7.8,43.5,9,46.8,3.5,42,5.2,52.2,6.2,42.9,3.5,47.2,3.8,49.8,3.8,39.799999999999997,6.9,54.6,2.9,47,4.9000000000000004]
[null,"Female:",53.7,4.2,47.6,3.7,43.4,2.7,53.8,4.7,40.6,12.2,44.5,17,49.1,5.2,42.1,10.9,50.8,6.3,43.5,6,45.6,7.6,53.4,5.8,52.4,3.6,56,4.8,48,4.0999999999999996]
[]
[]
[]
[]
[]
[]
[]
[]
[]
[]
[]
[null,"B01001. GENDER BY AGE"]
[null,"Universe:  TOTAL POPULATION, Median Age"]
[null,"Data Set: 2008-2012 American Community Survey 5-Year Estimates"]
[]
[null,null,"Acworth",null,"Charlestown",null,"Claremont",null,"Cornish",null,"Croydon",null,"Goshen",null,"Grantham",null,"Langdon",null,"Lempster",null,"Newport",null,"Plainfield",null,"Springfield",null,"Sunapee",null,"Unity",null,"Washington"]
[null,null,"Estimate","Margin Of Error","Estimate","Margin Of Error","Estimate","Margin Of Error","Estimate","Margin Of Error","Estimate","Margin Of Error","Estimate","Margin Of Error","Estimate","Margin Of Error","Estimate","Margin Of Error","Estimate","Margin Of Error","Estimate","Margin Of Error","Estimate","Margin Of Error","Estimate","Margin Of Error","Estimate","Margin Of Error","Estimate","Margin Of Error","Estimate","Margin Of Error"]
[null,"Total:",42.8,11.2,47,3.6,41.5,1.9,45,6.3,47.8,4.2,52.1,3.1,47.4,5.2,40.200000000000003,8.1,40.799999999999997,3.7,42.6,4.8,44.5,3.5,41.2,4,47.2,4.3,49.8,2.8,51.3,3.8]
[null,"Male:",40.6,12.7,46.2,6.2,40.700000000000003,1.9,46.6,7.3,46.2,5.7,52,4,44.9,4.0999999999999996,35.299999999999997,9.1,43,3.2,38.6,4.0999999999999996,43.1,2.8,40.299999999999997,3.3,47.4,5.7,47.8,3.3,49.2,5.5]
[null,"Female:",47.1,11,47.2,3.7,42.4,2.2999999999999998,44,5.6,48.8,5.2,52.1,4.0999999999999996,49.4,4.2,42.8,6.6,39.200000000000003,2.7,45.3,4.8,45.6,2.2999999999999998,42.2,5.8,47,5.0999999999999996,52.1,4.5999999999999996,52,4.8]

{"sheet":"ACS_Tbl_B11001_B11002_B25010","index":24,"n_rows":202,"n_cols":32,"rows_kept":202,"cut":false,"hidden":true,"merged":[]}
[null,"B11001. HOUSEHOLD TYPE (INCLUDING LIVING ALONE)"]
[null,"Universe:  HOUSEHOLDS"]
[null,"Data Set: 2018-2022 American Community Survey 5-Year Estimates"]
[]
[null,null,"Acworth",null,"Charlestown",null,"Claremont",null,"Cornish",null,"Croydon",null,"Goshen",null,"Grantham",null,"Langdon",null,"Lempster",null,"Newport",null,"Plainfield",null,"Springfield",null,"Sunapee",null,"Unity",null,"Washington"]
[null,null,"Estimate","Margin Of Error","Estimate","Margin Of Error","Estimate","Margin Of Error","Estimate","Margin Of Error","Estimate","Margin Of Error","Estimate","Margin Of Error","Estimate","Margin Of Error","Estimate","Margin Of Error","Estimate","Margin Of Error","Estimate","Margin Of Error","Estimate","Margin Of Error","Estimate","Margin Of Error","Estimate","Margin Of Error","Estimate","Margin Of Error","Estimate","Margin Of Error"]
[null,"Total:",239,42,1847,209,5203,325,762,147,232,49,303,72,1149,128,226,45,316,61,2478,224,831,84,294,83,1122,162,478,77,413,71]
[null,"Family households:",186,35,1172,135,2826,285,420,62,179,42,202,64,979,125,177,43,214,46,1342,202,662,79,214,75,721,107,330,55,342,64]
[null,"Married-couple family",147,33,917,162,1875,290,370,59,134,36,158,54,867,162,169,42,166,43,1067,224,562,91,175,55,621,110,291,55,307,63]
[null,"Other family:",39,23,255,101,951,199,50,21,45,28,44,24,112,89,8,7,48,23,275,131,100,56,39,42,100,55,39,17,35,23]
[null,"Male householder, no spouse present",22,16,96,83,192,85,20,13,31,26,13,20,112,89,0,12,23,18,38,33,46,42,0,12,53,39,25,15,21,20]
[null,"Female householder, no spouse present",17,16,159,77,759,193,30,16,14,12,31,16,0,12,8,7,25,14,237,118,54,40,39,42,47,38,14,10,14,13]
[null,"Nonfamily households:",53,27,675,221,2377,316,342,135,53,22,101,31,170,118,49,18,102,38,1136,263,169,72,80,34,401,154,148,45,71,32]
[null,"Householder living alone",49,26,645,215,1885,325,300,133,39,18,82,30,140,108,40,16,86,37,775,215,110,55,67,31,195,92,122,44,65,31]
[null,"Householder not living alone",4,4,30,33,492,183,42,21,14,11,19,12,30,34,9,8,16,12,361,160,59,36,13,15,206,127,26,16,6,6]
[]
[]
[]
[]
[]
[]
[]
[]
[]
[]
[]
[]
[]
[]
[]
[]
[]
[null,"B11002. HOUSEHOLD TYPE BY RELATIVES AND NONRELATIVES FOR POPULATION IN HOUSEHOLDS "]
[null,"Universe:  POPULATION IN HOUSEHOLDS"]
[null,"Data Set: 2018-2022 American Community Survey 5-Year Estimates"]
[]
[null,null,"Acworth",null,"Charlestown",null,"Claremont",null,"Cornish",null,"Croydon",null,"Goshen",null,"Grantham",null,"Langdon",null,"Lempster",null,"Newport",null,"Plainfield",null,"Springfield",null,"Sunapee",null,"Unity",null,"Washington"]
[null,null,"Estimate","Margin Of Error","Estimate","Margin Of Error","Estimate","Margin Of Error","Estimate","Margin Of Error","Estimate","Margin Of Error","Estimate","Margin Of Error","Estimate","Margin Of Error","Estimate","Margin Of Error","Estimate","Margin Of Error","Estimate","Margin Of Error","Estimate","Margin Of Error","Estimate","Margin Of Error","Estimate","Margin Of Error","Estimate","Margin Of Error","Estimate","Margin Of Error"]
[null,"Total:",927,278,4829,22,12827,26,1914,235,796,166,1058,316,3394,23,717,196,957,200,6213,20,2358,26,933,398,3357,18,1271,198,1042,173]
[null,"In family households:",871,282,4128,231,9602,456,1500,214,712,159,924,319,3148,174,654,196,828,194,4448,464,2131,89,836,403,2691,285,1045,183,966,167]
[null,"In married-couple family:",637,256,2968,526,5320,786,1249,195,498,142,728,292,2576,478,624,195,554,181,3157,619,1781,183,711,364,2315,324,796,158,795,152]
[null,"Relatives",631,253,2824,499,5235,774,1233,193,498,142,660,264,2576,478,624,195,541,180,3061,581,1781,183,711,364,2054,345,783,156,795,152]
[null,"Nonrelatives",6,8,144,158,85,97,16,18,0,12,68,92,0,12,0,12,13,14,96,93,0,12,0,12,261,269,13,18,0,12]
[null,"In male householder, no spouse present, family:",141,104,412,328,862,389,99,66,103,82,32,32,572,459,0,12,110,99,250,230,139,117,0,12,192,136,165,95,84,62]
[null,"Relatives",135,99,310,242,770,345,92,60,101,82,32,32,572,459,0,12,110,99,238,228,127,103,0,12,168,126,141,86,72,54]
[null,"Nonrelatives",6,7,102,97,92,83,7,8,2,3,0,12,0,12,0,12,0,12,12,20,12,16,0,12,24,28,24,25,12,14]
[null,"In female householder, no spouse present, family:",93,86,748,402,3420,811,152,90,111,86,164,75,0,12,30,22,164,90,1041,506,211,131,125,137,184,144,84,57,87,59]
[null,"Relatives",93,86,661,346,3030,688,144,88,93,74,139,61,0,12,28,20,138,76,765,335,209,131,105,110,158,124,77,54,87,59]
[null,"Nonrelatives",0,12,87,93,390,202,8,8,18,16,25,29,0,12,2,3,26,18,276,224,2,5,20,31,26,29,7,10,0,12]
[null,"In nonfamily households",56,27,701,231,3225,460,414,147,84,43,134,35,246,173,63,27,129,47,1765,467,227,89,97,42,666,286,226,76,76,34]
[]
[]
[]
[null,"Calculated Average  Household Size by Household Type"]
[null,"Universe:  POPULATION IN HOUSEHOLDS"]
[null,"Data Set: 2018-2022 American Community Survey 5-Year Estimates"]
[]
[null,null,"Acworth",null,"Charlestown",null,"Claremont",null,"Cornish",null,"Croydon",null,"Goshen",null,"Grantham",null,"Langdon",null,"Lempster",null,"Newport",null,"Plainfield",null,"Springfield",null,"Sunapee",null,"Unity",null,"Washington"]
[null,null,"Estimate","Margin Of Error","Estimate","Margin Of Error","Estimate","Margin Of Error","Estimate","Margin Of Error","Estimate","Margin Of Error","Estimate","Margin Of Error","Estimate","Margin Of Error","Estimate","Margin Of Error","Estimate","Margin Of Error","Estimate","Margin Of Error","Estimate","Margin Of Error","Estimate","Margin Of Error","Estimate","Margin Of Error","Estimate","Margin Of Error","Estimate","Margin Of Error"]
[null,"Total:",{"$f":"C39/C7","v":3.8786610878661087},{"$f":"D73","v":1.07},{"$f":"E39/E7","v":2.6145100162425554},{"$f":"(SQRT((F$39^2)+((E$39^2)/(E$7^2))*(F$7^2)))/E$7","v":0.29608840640369721},{"$f":"G39/G7","v":2.4653084758793002},{"$f":"(SQRT((H$39^2)+((G$39^2)/(G$7^2))*(H$7^2)))/G$7","v":0.15407399530381971},{"$f":"I39/I7","v":2.5118110236220472},{"$f":"(SQRT((J$39^2)+((I$39^2)/(I$7^2))*(J$7^2)))/I$7","v":0.5743781109716104},{"$f":"K39/K7","v":3.4310344827586206},{"$f":"(SQRT((L$39^2)+((K$39^2)/(K$7^2))*(L$7^2)))/K$7","v":1.0183782941130874},{"$f":"M39/M7","v":3.4917491749174916},{"$f":"(SQRT((N$39^2)+((M$39^2)/(M$7^2))*(N$7^2)))/M$7","v":1.3326998583631537},{"$f":"O39/O7","v":2.9538729329852047},{"$f":"(SQRT((P$39^2)+((O$39^2)/(O$7^2))*(P$7^2)))/O$7","v":0.32967332264929938},{"$f":"Q39/Q7","v":3.1725663716814161},{"$f":"(SQRT((R$39^2)+((Q$39^2)/(Q$7^2))*(R$7^2)))/Q$7","v":1.0729334359048925},{"$f":"S39/S7","v":3.028481012658228},{"$f":"(SQRT((T$39^2)+((S$39^2)/(S$7^2))*(T$7^2)))/S$7","v":0.86159609756154798},{"$f":"U39/U7","v":2.5072639225181597},{"$f":"(SQRT((V$39^2)+((U$39^2)/(U$7^2))*(V$7^2)))/U$7","v":0.22678898869169689},{"$f":"W39/W7","v":2.8375451263537905},{"$f":"(SQRT((X$39^2)+((W$39^2)/(W$7^2))*(X$7^2)))/W$7","v":0.28852907018855417},{"$f":"Y39/Y7","v":3.1734693877551021},{"$f":"(SQRT((Z$39^2)+((Y$39^2)/(Y$7^2))*(Z$7^2)))/Y$7","v":1.6233524948337035},{"$f":"AA39/AA7","v":2.9919786096256686},{"$f":"(SQRT((AB$39^2)+((AA$39^2)/(AA$7^2))*(AB$7^2)))/AA$7","v":0.43229469393353315},{"$f":"AC39/AC7","v":2.6589958158995817},{"$f":"(SQRT((AD$39^2)+((AC$39^2)/(AC$7^2))*(AD$7^2)))/AC$7","v":0.59586189691670799},{"$f":"AE39/AE7","v":2.5230024213075062},{"$f":"(SQRT((AF$39^2)+((AE$39^2)/(AE$7^2))*(AF$7^2)))/AE$7","v":0.60298672732611014}]
[null,"In family households:",{"$f":"C40/C8","v":4.682795698924731},{"$f":"(SQRT((D$40^2)+((C$40^2)/(C$8^2))*(D$8^2)))/C$8","v":1.7535991518875897},{"$f":"E40/E8","v":3.5221843003412969},{"$f":"(SQRT((F$40^2)+((E$40^2)/(E$8^2))*(F$8^2)))/E$8","v":0.45105489878669658},{"$f":"G40/G8","v":3.3977353149327674},{"$f":"(SQRT((H$40^2)+((G$40^2)/(G$8^2))*(H$8^2)))/G$8","v":0.37875046157161457},{"$f":"I40/I8","v":3.5714285714285716},{"$f":"(SQRT((J$40^2)+((I$40^2)/(I$8^2))*(J$8^2)))/I$8","v":0.73318880859756008},{"$f":"K40/K8","v":3.977653631284916},{"$f":"(SQRT((L$40^2)+((K$40^2)/(K$8^2))*(L$8^2)))/K$8","v":1.2884397754263843},{"$f":"M40/M8","v":4.5742574257425739},{"$f":"(SQRT((N$40^2)+((M$40^2)/(M$8^2))*(N$8^2)))/M$8","v":2.1434272231279081},{"$f":"O40/O8","v":3.2155260469867213},{"$f":"(SQRT((P$40^2)+((O$40^2)/(O$8^2))*(P$8^2)))/O$8","v":0.44738174152150068},{"$f":"Q40/Q8","v":3.6949152542372881},{"$f":"(SQRT((R$40^2)+((Q$40^2)/(Q$8^2))*(R$8^2)))/Q$8","v":1.4254684607841503},{"$f":"S40/S8","v":3.8691588785046731},{"$f":"(SQRT((T$40^2)+((S$40^2)/(S$8^2))*(T$8^2)))/S$8","v":1.230253641613932},{"$f":"U40/U8","v":3.314456035767511},{"$f":"(SQRT((V$40^2)+((U$40^2)/(U$8^2))*(V$8^2)))/U$8","v":0.60699533709908682},{"$f":"W40/W8","v":3.2190332326283988},{"$f":"(SQRT((X$40^2)+((W$40^2)/(W$8^2))*(X$8^2)))/W$8","v":0.40699061893147248},{"$f":"Y40/Y8","v":3.9065420560747666},{"$f":"(SQRT((Z$40^2)+((Y$40^2)/(Y$8^2))*(Z$8^2)))/Y$8","v":2.3282685002721548},{"$f":"AA40/AA8","v":3.7323162274618586},{"$f":"(SQRT((AB$40^2)+((AA$40^2)/(AA$8^2))*(AB$8^2)))/AA$8","v":0.68047679294452657},{"$f":"AC40/AC8","v":3.1666666666666665},{"$f":"(SQRT((AD$40^2)+((AC$40^2)/(AC$8^2))*(AD$8^2)))/AC$8","v":0.76555211701952353},{"$f":"AE40/AE8","v":2.8245614035087718},{"$f":"(SQRT((AF$40^2)+((AE$40^2)/(AE$8^2))*(AF$8^2)))/AE$8","v":0.71960419141548015}]
[null,"In nonfamily households",{"$f":"C50/C13","v":1.0566037735849056},{"$f":"(SQRT((D$50^2)+((C$50^2)/(C$13^2))*(D$13^2)))/C$13","v":0.74111901204333697},{"$f":"E50/E13","v":1.0385185185185186},{"$f":"(SQRT((F$50^2)+((E$50^2)/(E$13^2))*(F$13^2)))/E$13","v":0.48241966751139731},{"$f":"G50/G13","v":1.3567522086663861},{"$f":"(SQRT((H$50^2)+((G$50^2)/(G$13^2))*(H$13^2)))/G$13","v":0.2645428703568708},{"$f":"I50/I13","v":1.2105263157894737},{"$f":"(SQRT((J$50^2)+((I$50^2)/(I$13^2))*(J$13^2)))/I$13","v":0.64271267595328796},{"$f":"K50/K13","v":1.5849056603773586},{"$f":"(SQRT((L$50^2)+((K$50^2)/(K$13^2))*(L$13^2)))/K$13","v":1.0445355547162301},{"$f":"M50/M13","v":1.3267326732673268},{"$f":"(SQRT((N$50^2)+((M$50^2)/(M$13^2))*(N$13^2)))/M$13","v":0.53470581174335874},{"$f":"O50/O13","v":1.4470588235294117},{"$f":"(SQRT((P$50^2)+((O$50^2)/(O$13^2))*(P$13^2)))/O$13","v":1.4298542878361533},{"$f":"Q50/Q13","v":1.2857142857142858},{"$f":"(SQRT((R$50^2)+((Q$50^2)/(Q$13^2))*(R$13^2)))/Q$13","v":0.72573673570527109},{"$f":"S50/S13","v":1.2647058823529411},{"$f":"(SQRT((T$50^2)+((S$50^2)/(S$13^2))*(T$13^2)))/S$13","v":0.65902851320846134},{"$f":"U50/U13","v":1.5536971830985915},{"$f":"(SQRT((V$50^2)+((U$50^2)/(U$13^2))*(V$13^2)))/U$13","v":0.54624385810996501},{"$f":"W50/W13","v":1.3431952662721893},{"$f":"(SQRT((X$50^2)+((W$50^2)/(W$13^2))*(X$13^2)))/W$13","v":0.77769209710419451},{"$f":"Y50/Y13","v":1.2124999999999999},{"$f":"(SQRT((Z$50^2)+((Y$50^2)/(Y$13^2))*(Z$13^2)))/Y$13","v":0.73564391702524801},{"$f":"AA50/AA13","v":1.6608478802992519},{"$f":"(SQRT((AB$50^2)+((AA$50^2)/(AA$13^2))*(AB$13^2)))/AA$13","v":0.95682177177903915},{"$f":"AC50/AC13","v":1.527027027027027},{"$f":"(SQRT((AD$50^2)+((AC$50^2)/(AC$13^2))*(AD$13^2)))/AC$13","v":0.69229290437174817},{"$f":"AE50/AE13","v":1.0704225352112675},{"$f":"(SQRT((AF$50^2)+((AE$50^2)/(AE$13^2))*(AF$13^2)))/AE$13","v":0.67975859945813177}]
[]
[]
[]
[null,"B25010. AVERAGE HOUSEHOLD SIZE OF OCCUPIED HOUSING UNITS BY TENURE"]
[null,"Universe:  OCCUPIED HOUSING UNITS"]
[null,"Data Set: 2018-2022 American Community Survey 5-Year Estimates"]
[]
[null,null,"Acworth",null,"Charlestown",null,"Claremont",null,"Cornish",null,"Croydon",null,"Goshen",null,"Grantham",null,"Langdon",null,"Lempster",null,"Newport",null,"Plainfield",null,"Springfield",null,"Sunapee",null,"Unity",null,"Washington"]
[null,null,"Estimate","Margin Of Error","Estimate","Margin Of Error","Estimate","Margin Of Error","Estimate","Margin Of Error","Estimate","Margin Of Error","Estimate","Margin Of Error","Estimate","Margin Of Error","Estimate","Margin Of Error","Estimate","Margin Of Error","Estimate","Margin Of Error","Estimate","Margin Of Error","Estimate","Margin Of Error","Estimate","Margin Of Error","Estimate","Margin Of Error","Estimate","Margin Of Error"]
[null,"Average household size --"]
[null,"Total:",3.88,1.07,2.61,0.28999999999999998,2.4700000000000002,0.15,2.5099999999999998,0.37,3.43,0.61,3.49,0.77,2.95,0.32,3.17,0.55000000000000004,3.03,0.49,2.5099999999999998,0.22,2.84,0.28000000000000003,3.17,1.2,2.99,0.43,2.66,0.36,2.52,0.28000000000000003]
[null,"Owner occupied",3.9,1.07,2.72,0.37,2.7,0.24,2.48,0.38,3.39,0.64,3.67,0.88,2.79,0.4,3.07,0.52,3.14,0.5,2.67,0.3,2.92,0.31,3.2,1.34,3.14,0.52,2.65,0.37,2.5299999999999998,0.28999999999999998]
[null,"Renter occupied",3.65,3.36,2.34,0.56999999999999995,2.12,0.24,3.36,2.29,3.86,2.2200000000000002,2.64,0.86,5.97,2.5099999999999998,4.1399999999999997,3.11,"-","**",2.2599999999999998,0.37,1.96,0.39,2.93,1.37,2.41,0.56000000000000005,2.74,1.02,2.41,0.78]
[]
[]
[]
[]
[]
[]
[null,"B11001. HOUSEHOLD TYPE (INCLUDING LIVING ALONE)"]
[null,"Universe:  HOUSEHOLDS"]
[null,"Data Set: 2013-2017 American Community Survey 5-Year Estimates"]
[]
[null,null,"Acworth",null,"Charlestown",null,"Claremont",null,"Cornish",null,"Croydon",null,"Goshen",null,"Grantham",null,"Langdon",null,"Lempster",null,"Newport",null,"Plainfield",null,"Springfield",null,"Sunapee",null,"Unity",null,"Washington"]
[null,null,"Estimate","Margin Of Error","Estimate","Margin Of Error","Estimate","Margin Of Error","Estimate","Margin Of Error","Estimate","Margin Of Error","Estimate","Margin Of Error","Estimate","Margin Of Error","Estimate","Margin Of Error","Estimate","Margin Of Error","Estimate","Margin Of Error","Estimate","Margin Of Error","Estimate","Margin Of Error","Estimate","Margin Of Error","Estimate","Margin Of Error","Estimate","Margin Of Error"]
[null,"Total:",427,62,2102,160,5567,221,722,71,274,49,271,48,1153,125,292,38,409,63,2573,202,920,83,435,74,1553,140,526,60,556,85]
[null,"Family households:",301,51,1375,110,3293,274,518,60,194,42,187,41,868,97,218,35,238,49,1707,152,692,80,326,60,894,96,371,54,417,82]
[null,"Married-couple family",249,47,1087,160,2320,247,434,55,160,41,124,29,729,108,200,34,202,51,1007,200,557,79,279,57,673,117,326,46,351,77]
[null,"Other family:",52,21,288,110,973,219,84,36,34,20,63,27,139,82,18,12,36,19,700,207,135,52,47,25,221,86,45,24,66,39]
[null,"Male householder, no wife present",16,11,135,74,179,81,46,31,12,15,34,22,93,75,2,3,10,8,128,96,63,38,26,21,99,73,20,14,41,37]
[null,"Female householder, no husband present",36,20,153,75,794,223,38,21,22,17,29,16,46,42,16,12,26,17,572,191,72,38,21,19,122,53,25,18,25,16]
[null,"Nonfamily households:",126,36,727,189,2274,299,204,49,80,30,84,27,285,117,74,24,171,47,866,228,228,55,109,49,659,161,155,40,139,42]
[null,"Householder living alone",101,33,607,164,1837,288,180,48,58,25,58,23,255,109,47,20,148,47,715,217,194,56,72,34,532,161,90,31,126,44]
[null,"Householder not living alone",25,14,120,74,437,141,24,14,22,15,26,17,30,29,27,17,23,12,151,98,34,19,37,33,127,88,65,29,13,12]
[]
[]
[]
[]
[]
[]
[]
[]
[]
[]
[]
[]
[]
[]
[]
[]
[]
[null,"B11002. HOUSEHOLD TYPE BY RELATIVES AND NONRELATIVES FOR POPULATION IN HOUSEHOLDS "]
[null,"Universe:  POPULATION IN HOUSEHOLDS"]
[null,"Data Set: 2013-2017 American Community Survey 5-Year Estimates"]
[]
[null,null,"Acworth",null,"Charlestown",null,"Claremont",null,"Cornish",null,"Croydon",null,"Goshen",null,"Grantham",null,"Langdon",null,"Lempster",null,"Newport",null,"Plainfield",null,"Springfield",null,"Sunapee",null,"Unity",null,"Washington"]
[null,null,"Estimate","Margin Of Error","Estimate","Margin Of Error","Estimate","Margin Of Error","Estimate","Margin Of Error","Estimate","Margin Of Error","Estimate","Margin Of Error","Estimate","Margin Of Error","Estimate","Margin Of Error","Estimate","Margin Of Error","Estimate","Margin Of Error","Estimate","Margin Of Error","Estimate","Margin Of Error","Estimate","Margin Of Error","Estimate","Margin Of Error","Estimate","Margin Of Error"]
[null,"Total:",1031,143,4985,29,12894,92,1777,205,809,193,722,143,2941,35,887,143,858,129,6240,67,2323,244,1011,183,3383,21,1227,157,1265,206]
[null,"In family households:",868,139,4135,237,9974,453,1533,199,704,194,601,136,2622,140,776,144,656,130,5155,325,2046,247,860,173,2598,205,994,156,1110,207]
[null,"In married-couple family:",689,125,3095,412,6880,686,1299,204,549,194,377,98,2151,327,701,137,533,125,2872,615,1692,264,739,163,1987,310,844,127,913,189]
[null,"Relatives",689,125,3039,420,6848,684,1299,204,532,189,355,85,2151,327,699,137,525,124,2872,615,1692,264,727,160,1964,309,838,127,910,189]
[null,"Nonrelatives",0,11,56,73,32,28,0,11,17,18,22,35,0,11,2,4,8,8,0,16,0,11,12,15,23,36,6,8,3,5]
[null,"In male householder, no wife present, family:",49,26,448,272,557,307,125,82,46,64,134,89,323,263,4,5,31,27,380,264,175,99,55,46,287,210,67,44,100,95]
[null,"Relatives",39,23,421,265,461,247,114,79,46,64,101,74,295,251,4,5,22,18,349,247,138,83,55,46,272,201,53,35,93,87]
[null,"Nonrelatives",10,8,27,27,96,79,11,11,0,11,33,22,28,44,0,11,9,10,31,52,37,27,0,11,15,26,14,11,7,9]
[null,"In female householder, no husband present, family:",130,70,592,328,2537,701,109,61,109,93,90,49,148,131,71,53,92,57,1903,663,179,90,66,66,324,153,83,59,97,72]
[null,"Relatives",100,51,512,269,2202,598,100,50,104,91,82,47,117,104,59,43,78,54,1590,539,179,90,66,66,289,130,66,47,66,39]
[null,"Nonrelatives",30,25,80,70,335,151,9,16,5,9,8,6,31,46,12,11,14,11,313,165,0,11,0,11,35,32,17,18,31,42]
[null,"In nonfamily households",163,48,850,236,2920,441,244,59,105,46,121,46,319,134,111,44,202,53,1085,329,277,65,151,78,785,203,233,66,155,43]
[]
[]
[]
[null,"Calculated Average  Household Size by Household Type"]
[null,"Universe:  POPULATION IN HOUSEHOLDS"]
[null,"Data Set: 2013-2017 American Community Survey 5-Year Estimates"]
[]
[null,null,"Acworth",null,"Charlestown",null,"Claremont",null,"Cornish",null,"Croydon",null,"Goshen",null,"Grantham",null,"Langdon",null,"Lempster",null,"Newport",null,"Plainfield",null,"Springfield",null,"Sunapee",null,"Unity",null,"Washington"]
[null,null,"Estimate","Margin Of Error","Estimate","Margin Of Error","Estimate","Margin Of Error","Estimate","Margin Of Error","Estimate","Margin Of Error","Estimate","Margin Of Error","Estimate","Margin Of Error","Estimate","Margin Of Error","Estimate","Margin Of Error","Estimate","Margin Of Error","Estimate","Margin Of Error","Estimate","Margin Of Error","Estimate","Margin Of Error","Estimate","Margin Of Error","Estimate","Margin Of Error"]
[]
[null,"Total:",2.4145199063231848,0.23,2.3715509039010465,0.18104411008632679,2.3161487336087658,9.3420316006919815E-2,2.4612188365650969,0.37309161313644468,2.9525547445255476,0.88031064567631256,2.6642066420664205,0.70789859823806611,2.5507372072853425,0.27819376561791354,3.0376712328767121,0.62936813552771576,2.097799511002445,0.45154646602579152,2.4251846094053633,0.192167792569826,2.5249999999999999,0.34961780480129118,2.3241379310344827,0.57731940020599792,2.1783644558918223,0.19684043032814502,2.332699619771863,0.39986532098660327,2.2751798561151078,0.50818759364669774]
[null,"In family households:",2.8837209302325579,0.67230013161906366,3.0072727272727273,0.29595410857118587,3.0288490737928941,0.28712106681908589,2.9594594594594597,0.51487337381247511,3.6288659793814433,1.2716979676704325,3.213903743315508,1.0126505007749189,3.0207373271889399,0.37412386287009741,3.5596330275229358,0.87346435316164683,2.7563025210084033,0.78764295948622443,3.0199179847686,0.3294864400124799,2.9566473988439306,0.49420336100098117,2.6380368098159508,0.71927287706100751,2.9060402684563758,0.38724884800046605,2.6792452830188678,0.57348511088767462,2.6618705035971222,0.72138927930119368]
[null,"In nonfamily households",1.2936507936507937,0.5307914886120042,1.1691884456671251,0.44471229443709159,1.2840809146877747,0.25713039663557724,1.196078431372549,0.40765571429995917,1.3125,0.75688409625004671,1.4404761904761905,0.71712277219379095,1.119298245614035,0.65742411418695823,1.5,0.76825245424604838,1.1812865497076024,0.44886697562371108,1.2528868360277137,0.50312721315555009,1.2149122807017543,0.40885888328718528,1.3853211009174311,0.94863423596014673,1.1911987860394537,0.42377298575402028,1.5032258064516129,0.57602103240488844,1.1151079136690647,0.45741329806551978]
[]
[]
[null,"B25010. AVERAGE HOUSEHOLD SIZE OF OCCUPIED HOUSING UNITS BY TENURE"]
[null,"Universe:  OCCUPIED HOUSING UNITS"]
[null,"Data Set: 2013-2017 American Community Survey 5-Year Estimates"]
[]
[null,null,"Acworth",null,"Charlestown",null,"Claremont",null,"Cornish",null,"Croydon",null,"Goshen",null,"Grantham",null,"Langdon",null,"Lempster",null,"Newport",null,"Plainfield",null,"Springfield",null,"Sunapee",null,"Unity",null,"Washington"]
[null,null,"Estimate","Margin Of Error","Estimate","Margin Of Error","Estimate","Margin Of Error","Estimate","Margin Of Error","Estimate","Margin Of Error","Estimate","Margin Of Error","Estimate","Margin Of Error","Estimate","Margin Of Error","Estimate","Margin Of Error","Estimate","Margin Of Error","Estimate","Margin Of Error","Estimate","Margin Of Error","Estimate","Margin Of Error","Estimate","Margin Of Error","Estimate","Margin Of Error"]
[null,"Average household size --"]
[null,"Total:",2.41,0.23,2.37,0.18,2.3199999999999998,0.09,2.46,0.21,2.95,0.49,2.66,0.33,2.5499999999999998,0.27,3.04,0.35,2.1,0.22,2.4300000000000002,0.19,2.5299999999999998,0.22,2.3199999999999998,0.19,2.1800000000000002,0.2,2.33,0.15,2.2799999999999998,0.16]
[null,"Owner occupied",2.42,0.24,2.41,0.19,2.4300000000000002,0.12,2.52,0.25,3,0.55000000000000004,2.4900000000000002,0.42,2.61,0.28999999999999998,3.06,0.35,2.1,0.22,2.44,0.22,2.38,0.16,2.34,0.19,2.52,0.24,2.3199999999999998,0.16,2.25,0.18]
[null,"Renter occupied",2.38,0.84,2.23,0.63,2.16,0.18,1.99,0.46,2.58,0.5,3.22,0.57999999999999996,1.98,0.77,2.81,1.19,2.14,0.55000000000000004,2.39,0.41,3.74,1.62,2.2200000000000002,0.59,1.47,0.25,2.5099999999999998,0.91,2.4900000000000002,0.53]
[]
[]
[]
[]
[]
[]
[null,"B11001. HOUSEHOLD TYPE (INCLUDING LIVING ALONE)"]
[null,"Universe:  HOUSEHOLDS"]
[null,"Data Set: 2008-2012 American Community Survey 5-Year Estimates"]
[]
[null,null,"Acworth",null,"Charlestown",null,"Claremont",null,"Cornish",null,"Croydon",null,"Goshen",null,"Grantham",null,"Langdon",null,"Lempster",null,"Newport",null,"Plainfield",null,"Springfield",null,"Sunapee",null,"Unity",null,"Washington"]
[null,null,"Estimate","Margin Of Error","Estimate","Margin Of Error","Estimate","Margin Of Error","Estimate","Margin Of Error","Estimate","Margin Of Error","Estimate","Margin Of Error","Estimate","Margin Of Error","Estimate","Margin Of Error","Estimate","Margin Of Error","Estimate","Margin Of Error","Estimate","Margin Of Error","Estimate","Margin Of Error","Estimate","Margin Of Error","Estimate","Margin Of Error","Estimate","Margin Of Error"]
[null,"Total:",746,184,5057,35,13185,65,1665,226,612,113,763,114,2936,33,776,133,1212,178,6379,68,2488,212,1354,195,3339,28,1349,139,1071,171]
[null,"In family households:",630,175,4226,208,10610,353,1440,233,488,107,606,108,2607,124,676,139,1142,182,5262,306,2207,217,1224,195,2766,195,1097,153,929,172]
[null,"In married-couple family:",502,131,3302,397,6949,700,1269,210,415,96,470,89,2571,129,565,131,978,166,4398,485,1894,244,1091,189,2314,264,929,141,788,140]
[null,"Relatives",502,131,3302,397,6913,697,1258,211,415,96,444,85,2546,137,565,131,978,166,4368,485,1894,244,1083,186,2314,264,926,140,765,132]
[null,"Nonrelatives",0,11,0,16,36,32,11,12,0,11,26,26,25,37,0,11,0,11,30,37,0,11,8,12,0,11,3,5,23,22]
[null,"In male householder, no wife present, family:",117,122,321,233,1189,451,77,78,56,50,55,55,14,19,0,11,57,50,162,135,76,58,14,19,219,217,103,77,52,41]
[null,"Relatives",61,48,239,180,1000,370,60,67,48,39,48,46,14,19,0,11,44,36,131,112,62,47,14,19,183,171,69,49,52,41]
[null,"Nonrelatives",56,82,82,94,189,96,17,19,8,13,7,11,0,11,0,11,13,16,31,32,14,13,0,11,36,55,34,36,0,11]
[null,"In female householder, no husband present, family:",11,11,603,307,2472,635,94,70,17,16,81,41,22,24,111,82,107,54,702,335,237,130,119,86,233,116,65,44,89,58]
[null,"Relatives",8,9,564,286,2164,551,80,54,17,16,74,39,22,24,101,69,82,41,671,312,208,105,119,86,225,114,57,41,78,56]
[null,"Nonrelatives",3,4,39,62,308,147,14,19,0,11,7,7,0,11,10,16,25,16,31,55,29,35,0,11,8,12,8,8,11,10]
[]
[null,"Calculated Average  Household Size by Household Type"]
[null,"Universe:  POPULATION IN HOUSEHOLDS"]
[null,"Data Set: 2008-2012 American Community Survey 5-Year Estimates"]
[]
[null,null,"Acworth",null,"Charlestown",null,"Claremont",null,"Cornish",null,"Croydon",null,"Goshen",null,"Grantham",null,"Langdon",null,"Lempster",null,"Newport",null,"Plainfield",null,"Springfield",null,"Sunapee",null,"Unity",null,"Washington"]
[null,null,"Estimate","Margin Of Error","Estimate","Margin Of Error","Estimate","Margin Of Error","Estimate","Margin Of Error","Estimate","Margin Of Error","Estimate","Margin Of Error","Estimate","Margin Of Error","Estimate","Margin Of Error","Estimate","Margin Of Error","Estimate","Margin Of Error","Estimate","Margin Of Error","Estimate","Margin Of Error","Estimate","Margin Of Error","Estimate","Margin Of Error","Estimate","Margin Of Error"]
[null,"Total:",{"$f":"C200","v":2.54},0.4,2.19,0.1,2.2999999999999998,0.1,2.5299999999999998,0.23,2.12,0.2,2.31,0.23,2.62,0.18,2.79,0.24,2.84,0.23,2.38,0.16,2.7,0.19,2.72,0.24,2.29,0.15,2.25,0.2,2.2999999999999998,0.2]
[null,"In family households:",{"$f":"C201","v":2.23},0.27,2.29,0.12,2.42,0.11,2.4500000000000002,0.24,2.13,0.21,2.16,0.24,2.59,0.18,2.85,0.27,2.76,0.23,2.5299999999999998,0.23,2.74,0.2,2.81,0.25,2.3199999999999998,0.15,2.2999999999999998,0.18,2.2200000000000002,0.19]
[null,"In nonfamily households",{"$f":"C202","v":3.5},1.1000000000000001,1.78,0.28000000000000003,2.13,0.17,2.95,0.56000000000000005,2.08,0.64,3,0.67,2.91,1.07,2.3199999999999998,0.61,3.32,0.81,2.0699999999999998,0.25,2.39,0.74,1.89,0.36,2.2000000000000002,0.48,1.79,0.8,3.3,1.05]
[]
[]
[]
[null,"B25010. AVERAGE HOUSEHOLD SIZE OF OCCUPIED HOUSING UNITS BY TENURE"]
[null,"Universe:  OCCUPIED HOUSING UNITS"]
[null,"Data Set: 2008-2012 American Community Survey 5-Year Estimates"]
[]
[null,null,"Acworth",null,"Charlestown",null,"Claremont",null,"Cornish",null,"Croydon",null,"Goshen",null,"Grantham",null,"Langdon",null,"Lempster",null,"Newport",null,"Plainfield",null,"Springfield",null,"Sunapee",null,"Unity",null,"Washington"]
[null,null,"Estimate","Margin Of Error","Estimate","Margin Of Error","Estimate","Margin Of Error","Estimate","Margin Of Error","Estimate","Margin Of Error","Estimate","Margin Of Error","Estimate","Margin Of Error","Estimate","Margin Of Error","Estimate","Margin Of Error","Estimate","Margin Of Error","Estimate","Margin Of Error","Estimate","Margin Of Error","Estimate","Margin Of Error","Estimate","Margin Of Error","Estimate","Margin Of Error"]
[null,"Average household size --"]
[null,"Total:",2.54,0.4,2.19,0.1,2.2999999999999998,0.1,2.5299999999999998,0.23,2.12,0.2,2.31,0.23,2.62,0.18,2.79,0.24,2.84,0.23,2.38,0.16,2.7,0.19,2.72,0.24,2.29,0.15,2.25,0.2,2.2999999999999998,0.2]
[null,"Owner occupied",2.23,0.27,2.29,0.12,2.42,0.11,2.4500000000000002,0.24,2.13,0.21,2.16,0.24,2.59,0.18,2.85,0.27,2.76,0.23,2.5299999999999998,0.23,2.74,0.2,2.81,0.25,2.3199999999999998,0.15,2.2999999999999998,0.18,2.2200000000000002,0.19]
[null,"Renter occupied",3.5,1.1000000000000001,1.78,0.28000000000000003,2.13,0.17,2.95,0.56000000000000005,2.08,0.64,3,0.67,2.91,1.07,2.3199999999999998,0.61,3.32,0.81,2.0699999999999998,0.25,2.39,0.74,1.89,0.36,2.2000000000000002,0.48,1.79,0.8,3.3,1.05]

{"sheet":"ACS_Table_B19001","index":25,"n_rows":162,"n_cols":32,"rows_kept":162,"cut":false,"hidden":true,"merged":[]}
[null,"B19001. HOUSEHOLD INCOME IN THE PAST 12 MONTHS (IN 2022 INFLATION-ADJUSTED DOLLARS)"]
[null,"Universe:  HOUSEHOLDS"]
[null,"Data Set: 2018-2022 American Community Survey 5-Year Estimates"]
[]
[null,null,"Acworth",null,"Charlestown",null,"Claremont",null,"Cornish",null,"Croydon",null,"Goshen",null,"Grantham",null,"Langdon",null,"Lempster",null,"Newport",null,"Plainfield",null,null,null,"Sunapee",null,"Unity",null,"Washington"]
[null,null,"Estimate","Margin Of Error","Estimate","Margin Of Error","Estimate","Margin Of Error","Estimate","Margin Of Error","Estimate","Margin Of Error","Estimate","Margin Of Error","Estimate","Margin Of Error","Estimate","Margin Of Error","Estimate","Margin Of Error","Estimate","Margin Of Error","Estimate","Margin Of Error","Estimate","Margin Of Error","Estimate","Margin Of Error","Estimate","Margin Of Error","Estimate","Margin Of Error"]
[null,"Total Households",239,42,1847,209,5203,325,762,147,232,49,303,72,1149,128,226,45,316,61,2478,224,831,84,294,83,1122,162,478,77,413,71]
[null,"Households With"]
[null,"Income Less than $10,000 ",9,10,215,132,321,155,4,6,12,12,21,16,0,12,4,4,8,8,228,148,25,28,21,19,83,66,32,18,13,17]
[null,"Income $10,000 to $14,999 ",9,12,120,97,222,120,66,67,4,7,9,12,0,12,1,3,3,5,81,78,19,16,3,5,10,16,6,7,0,12]
[null,"Income $15,000 to $19,999 ",3,6,124,91,219,122,12,10,3,5,15,13,50,76,0,12,9,14,156,107,4,6,0,12,0,12,20,19,17,18]
[null,"Income $20,000 to $24,999 ",3,5,59,56,324,136,32,29,6,7,7,6,0,12,6,7,10,12,35,40,6,9,0,12,12,13,25,17,0,12]
[null,"Income $25,000 to $29,999 ",3,5,67,70,347,149,6,6,6,6,10,9,0,12,2,3,24,19,68,55,19,16,16,15,16,27,28,25,12,14]
[null,"Income $30,000 to $34,999 ",3,4,77,84,224,168,25,18,2,4,6,8,91,92,10,6,4,5,184,120,35,37,4,6,35,45,19,14,19,16]
[null,"Income $35,000 to $39,999 ",13,14,102,86,281,143,4,6,3,5,12,10,0,12,5,5,14,12,87,83,5,8,18,19,76,91,17,9,19,18]
[null,"Income $40,000 to $44,999 ",3,4,105,77,131,68,3,5,4,5,15,18,37,44,29,19,2,4,27,34,11,12,3,4,0,12,11,11,17,21]
[null,"Income $45,000 to $49,999 ",0,12,83,67,338,161,11,10,4,4,32,37,0,12,1,2,11,8,128,98,21,21,9,15,40,43,12,13,18,17]
[null,"Income $50,000 to $59,999 ",34,23,82,58,501,182,46,18,23,15,25,19,131,91,13,8,32,20,28,31,3,6,10,12,43,28,49,20,22,17]
[null,"Income $60,000 to $74,999 ",34,17,155,101,547,197,64,30,19,11,24,13,88,67,21,14,19,14,250,128,33,22,20,19,99,50,56,22,40,23]
[null,"Income $75,000 to $99,999 ",50,25,227,101,716,228,183,138,33,15,33,23,101,88,22,12,51,23,452,168,165,80,49,32,113,55,62,23,49,20]
[null,"Income $100,000 to $124,999 ",46,22,186,94,443,167,89,36,51,32,52,22,106,80,28,14,59,30,280,127,133,56,47,32,135,64,40,21,46,27]
[null,"Income $125,000 to $149,999 ",2,3,106,74,239,109,38,16,46,22,19,9,46,42,32,19,46,23,82,75,119,70,48,41,144,89,59,31,47,37]
[null,"Income $150,000 to $199,999 ",15,13,10,17,141,74,90,33,11,8,17,14,283,156,17,14,13,13,210,115,95,39,31,30,153,78,25,14,48,26]
[null,"Income $200,000 or more ",12,8,129,76,209,119,89,33,5,6,6,5,216,152,35,23,11,10,182,115,138,54,15,13,163,62,17,12,46,25]
[]
[]
[]
[]
[null,{"$f":"\"Calculated \"&B1","v":"Calculated B19001. HOUSEHOLD INCOME IN THE PAST 12 MONTHS (IN 2022 INFLATION-ADJUSTED DOLLARS)"}]
[null,"Universe:  HOUSEHOLDS"]
[null,"Data Set: 2018-2022 American Community Survey 5-Year Estimates"]
[null,null,"Acworth",null,"Charlestown",null,"Claremont",null,"Cornish",null,"Croydon",null,"Goshen",null,"Grantham",null,"Langdon",null,"Lempster",null,"Newport",null,"Plainfield",null,"Springfield",null,"Sunapee",null,"Unity",null,"Washington"]
[null,null,"Estimate","Margin Of Error","Estimate","Margin Of Error","Estimate","Margin Of Error","Estimate","Margin Of Error","Estimate","Margin Of Error","Estimate","Margin Of Error","Estimate","Margin Of Error","Estimate","Margin Of Error","Estimate","Margin Of Error","Estimate","Margin Of Error","Estimate","Margin Of Error","Estimate","Margin Of Error","Estimate","Margin Of Error","Estimate","Margin Of Error","Estimate","Margin Of Error"]
[null,"Total Households",{"$f":"$C$7","v":239},{"$f":"$D$7","v":42},{"$f":"$E$7","v":1847},{"$f":"$F$7","v":209},{"$f":"$G$7","v":5203},{"$f":"$H$7","v":325},{"$f":"$I$7","v":762},{"$f":"$J$7","v":147},{"$f":"$K$7","v":232},{"$f":"$L$7","v":49},{"$f":"$M$7","v":303},{"$f":"$N$7","v":72},{"$f":"$O$7","v":1149},{"$f":"$P$7","v":128},{"$f":"$Q$7","v":226},{"$f":"R7","v":45},316,61,2478,224,831,84,{"$f":"Y7","v":294},83,1122,162,478,77,413,71]
[null,"Households With"]
[null,"Income Less than $10,000 ",{"$f":"$C$9","v":9},{"$f":"$D$9","v":10},{"$f":"$E$9","v":215},{"$f":"$F$9","v":132},{"$f":"$G$9","v":321},{"$f":"$H$9","v":155},{"$f":"$I$9","v":4},{"$f":"$J$9","v":6},{"$f":"$K$9","v":12},{"$f":"$L$9","v":12},{"$f":"$M$9","v":21},{"$f":"$N$9","v":16},{"$f":"$O$9","v":0},{"$f":"$P$9","v":12},{"$f":"$Q$9","v":4},{"$f":"R9","v":4},8,8,228,148,25,28,{"$f":"Y9","v":21},19,83,66,{"$f":"AC9","v":32},18,13,17]
[null,"Income $10,000 to $14,999 ",{"$f":"$C$10","v":9},{"$f":"$D$10","v":12},{"$f":"$E$10","v":120},{"$f":"$F$10","v":97},{"$f":"$G$10","v":222},{"$f":"$H$10","v":120},{"$f":"$I$10","v":66},{"$f":"$J$10","v":67},{"$f":"$K$10","v":4},{"$f":"$L$10","v":7},{"$f":"$M$10","v":9},{"$f":"$N$10","v":12},{"$f":"$O$10","v":0},{"$f":"$P$10","v":12},{"$f":"$Q$10","v":1},3,3,5,81,78,19,16,3,5,10,16,6,7,0,12]
[null,"Income $15,000 to $24,999 ",{"$f":"$C$11+$C$12","v":6},{"$f":"SQRT(($D$11^2)+($D$12^2))","v":7.810249675906654},{"$f":"$E$11+$E$12","v":183},{"$f":"SQRT(($F$11^2)+($F$12^2))","v":106.85036265731624},{"$f":"$G$11+$G$12","v":543},{"$f":"SQRT(($H$11^2)+($H$12^2))","v":182.70194306574848},{"$f":"$I$11+$I$12","v":44},{"$f":"SQRT(($J$11^2)+($J$12^2))","v":30.675723300355934},{"$f":"$K$11+$K$12","v":9},{"$f":"SQRT(($L$11^2)+($L$12^2))","v":8.6023252670426267},{"$f":"$M$11+$M$12","v":22},{"$f":"SQRT(($N$11^2)+($N$12^2))","v":14.317821063276353},{"$f":"$O$11+$O$12","v":50},{"$f":"SQRT(($P$11^2)+($P$12^2))","v":76.941536246685374},{"$f":"Q11+Q12","v":6},{"$f":"SQRT((R11^2)+(R12^2))","v":13.892443989449804},{"$f":"S11+S12","v":19},{"$f":"SQRT((T11^2)+(T12^2))","v":18.439088914585774},{"$f":"U11+U12","v":191},{"$f":"SQRT((V11^2)+(V12^2))","v":114.23221962301179},{"$f":"W11+W12","v":10},{"$f":"SQRT((X11^2)+(X12^2))","v":10.816653826391969},{"$f":"Y11+Y12","v":0},{"$f":"SQRT((Z11^2)+(Z12^2))","v":16.970562748477139},{"$f":"AA11+AA12","v":12},{"$f":"SQRT((AB11^2)+(AB12^2))","v":17.691806012954132},{"$f":"AC11+AC12","v":45},{"$f":"SQRT((AD11^2)+(AD12^2))","v":25.495097567963924},{"$f":"AE11+AE12","v":17},{"$f":"SQRT((AF11^2)+(AF12^2))","v":21.633307652783937}]
[null,"Income $25,000 to $34,999 ",{"$f":"$C$13+$C$14","v":6},{"$f":"SQRT(($D$13^2)+($D$14^2))","v":6.4031242374328485},{"$f":"$E$13+$E$14","v":144},{"$f":"SQRT(($F$13^2)+($F$14^2))","v":109.34349546269316},{"$f":"$G$13+$G$14","v":571},{"$f":"SQRT(($H$13^2)+($H$14^2))","v":224.55511572885621},{"$f":"$I$13+$I$14","v":31},{"$f":"SQRT(($J$13^2)+($J$14^2))","v":18.973665961010276},{"$f":"$K$13+$K$14","v":8},{"$f":"SQRT(($L$13^2)+($L$14^2))","v":7.2111025509279782},{"$f":"$M$13+$M$14","v":16},{"$f":"SQRT(($N$13^2)+($N$14^2))","v":12.041594578792296},{"$f":"$O$13+$O$14","v":91},{"$f":"SQRT(($P$13^2)+($P$14^2))","v":92.779308037945611},{"$f":"Q13+Q14","v":12},{"$f":"SQRT((R13^2)+(R14^2))","v":6.7082039324993694},{"$f":"S13+S14","v":28},{"$f":"SQRT((T13^2)+(T14^2))","v":19.646882704388499},{"$f":"U13+U14","v":252},{"$f":"SQRT((V13^2)+(V14^2))","v":132.00378782444085},{"$f":"W13+W14","v":54},{"$f":"SQRT((X13^2)+(X14^2))","v":40.311288741492746},{"$f":"Y13+Y14","v":20},{"$f":"SQRT((Z13^2)+(Z14^2))","v":16.15549442140351},{"$f":"AA13+AA14","v":51},{"$f":"SQRT((AB13^2)+(AB14^2))","v":52.478567053607705},{"$f":"AC13+AC14","v":47},{"$f":"SQRT((AD13^2)+(AD14^2))","v":28.653097563788805},{"$f":"AE13+AE14","v":31},{"$f":"SQRT((AF13^2)+(AF14^2))","v":21.2602916254693}]
[null,"Income $35,000 to $49,999 ",{"$f":"$C$15+$C$16+$C$17","v":16},{"$f":"SQRT(($D$15^2)+($D$16^2)+($D$17^2))","v":18.867962264113206},{"$f":"$E$15+$E$16+$E$17","v":290},{"$f":"SQRT(($F$15^2)+($F$16^2)+($F$17^2))","v":133.46909754696028},{"$f":"$G$15+$G$16+$G$17","v":750},{"$f":"SQRT(($H$15^2)+($H$16^2)+($H$17^2))","v":225.81851119870575},{"$f":"$I$15+$I$16+$I$17","v":18},{"$f":"SQRT(($J$15^2)+($J$16^2)+($J$17^2))","v":12.68857754044952},{"$f":"$K$15+$K$16+$K$17","v":11},{"$f":"SQRT(($L$15^2)+($L$16^2)+($L$17^2))","v":8.1240384046359608},{"$f":"$M$15+$M$16+$M$17","v":59},{"$f":"SQRT(($N$15^2)+($N$16^2)+($N$17^2))","v":42.343830719480259},{"$f":"$O$15+$O$16+$O$17","v":37},{"$f":"SQRT(($P$15^2)+($P$16^2)+($P$17^2))","v":47.159304490206381},{"$f":"Q15+Q16+Q17","v":35},{"$f":"SQRT((R15^2)+(R16^2)+(R17^2))","v":19.748417658131498},{"$f":"S15+S16+S17","v":27},{"$f":"SQRT((T15^2)+(T16^2)+(T17^2))","v":14.966629547095765},{"$f":"U15+U16+U17","v":242},{"$f":"SQRT((V15^2)+(V16^2)+(V17^2))","v":132.84953895290718},{"$f":"W15+W16+W17","v":37},{"$f":"SQRT((X15^2)+(X16^2)+(X17^2))","v":25.475478405713993},{"$f":"Y15+Y16+Y17","v":30},{"$f":"SQRT((Z15^2)+(Z16^2)+(Z17^2))","v":24.535688292770594},{"$f":"AA15+AA16+AA17","v":116},{"$f":"SQRT((AB15^2)+(AB16^2)+(AB17^2))","v":101.36074190730847},{"$f":"AC15+AC16+AC17","v":40},{"$f":"SQRT((AD15^2)+(AD16^2)+(AD17^2))","v":19.261360284258224},{"$f":"AE15+AE16+AE17","v":54},{"$f":"SQRT((AF15^2)+(AF16^2)+(AF17^2))","v":32.465366161495851}]
[null,"Income $50,000 to $74,999 ",{"$f":"$C$18+$C$19","v":68},{"$f":"SQRT(($D$18^2)+($D$19^2))","v":28.600699292150182},{"$f":"$E$18+$E$19","v":237},{"$f":"SQRT(($F$18^2)+($F$19^2))","v":116.46887996370532},{"$f":"$G$18+$G$19","v":1048},{"$f":"SQRT(($H$18^2)+($H$19^2))","v":268.20328111341217},{"$f":"$I$18+$I$19","v":110},{"$f":"SQRT(($J$18^2)+($J$19^2))","v":34.985711369071801},{"$f":"$K$18+$K$19","v":42},{"$f":"SQRT(($L$18^2)+($L$19^2))","v":18.601075237738275},{"$f":"$M$18+$M$19","v":49},{"$f":"SQRT(($N$18^2)+($N$19^2))","v":23.021728866442675},{"$f":"$O$18+$O$19","v":219},{"$f":"SQRT(($P$18^2)+($P$19^2))","v":113.00442469213318},{"$f":"Q18+Q19","v":34},{"$f":"SQRT((R18^2)+(R19^2))","v":16.124515496597098},{"$f":"S18+S19","v":51},{"$f":"SQRT((T18^2)+(T19^2))","v":24.413111231467404},{"$f":"U18+U19","v":278},{"$f":"SQRT((V18^2)+(V19^2))","v":131.70041761513136},{"$f":"W18+W19","v":36},{"$f":"SQRT((X18^2)+(X19^2))","v":22.803508501982758},{"$f":"Y18+Y19","v":30},{"$f":"SQRT((Z18^2)+(Z19^2))","v":22.472205054244231},{"$f":"AA18+AA19","v":142},{"$f":"SQRT((AB18^2)+(AB19^2))","v":57.30619512757761},{"$f":"AC18+AC19","v":105},{"$f":"SQRT((AD18^2)+(AD19^2))","v":29.732137494637012},{"$f":"AE18+AE19","v":62},{"$f":"SQRT((AF18^2)+(AF19^2))","v":28.600699292150182}]
[null,"Income $75,000 to $99,999 ",{"$f":"$C$20","v":50},{"$f":"$D$20","v":25},{"$f":"$E$20","v":227},{"$f":"$F$20","v":101},{"$f":"$G$20","v":716},{"$f":"$H$20","v":228},{"$f":"$I$20","v":183},{"$f":"$J$20","v":138},{"$f":"$K$20","v":33},{"$f":"$L$20","v":15},{"$f":"$M$20","v":33},{"$f":"$N$20","v":23},{"$f":"$O$20","v":101},{"$f":"$P$20","v":88},{"$f":"Q20","v":22},12,51,23,452,168,165,80,{"$f":"Y20","v":49},32,113,55,62,23,49,20]
[null,"Income $100,000 to $149,999 ",{"$f":"$C$21+$C$22","v":48},{"$f":"SQRT(($D$21^2)+($D$22^2))","v":22.203603311174518},{"$f":"$E$21+$E$22","v":292},{"$f":"SQRT(($F$21^2)+($F$22^2))","v":119.63277142990545},{"$f":"$G$21+$G$22","v":682},{"$f":"SQRT(($H$21^2)+($H$22^2))","v":199.42417105255822},{"$f":"$I$21+$I$22","v":127},{"$f":"SQRT(($J$21^2)+($J$22^2))","v":39.395431207184416},{"$f":"$K$21+$K$22","v":97},{"$f":"SQRT(($L$21^2)+($L$22^2))","v":38.832975677895199},{"$f":"$M$21+$M$22","v":71},{"$f":"SQRT(($N$21^2)+($N$22^2))","v":23.769728648009426},{"$f":"$O$21+$O$22","v":152},{"$f":"SQRT(($P$21^2)+($P$22^2))","v":90.354855984612144},{"$f":"Q21+Q22","v":60},{"$f":"SQRT((R21^2)+(R22^2))","v":23.600847442411894},{"$f":"S21+S22","v":105},{"$f":"SQRT((T21^2)+(T22^2))","v":37.802116342871599},{"$f":"U21+U22","v":362},{"$f":"SQRT((V21^2)+(V22^2))","v":147.49237268414933},{"$f":"W21+W22","v":252},{"$f":"SQRT((X21^2)+(X22^2))","v":89.643739324059879},{"$f":"Y21+Y22","v":95},{"$f":"SQRT((Z21^2)+(Z22^2))","v":52.009614495783374},{"$f":"AA21+AA22","v":279},{"$f":"SQRT((AB21^2)+(AB22^2))","v":109.62207806824317},{"$f":"AC21+AC22","v":99},{"$f":"SQRT((AD21^2)+(AD22^2))","v":37.443290453698111},{"$f":"AE21+AE22","v":93},{"$f":"SQRT((AF21^2)+(AF22^2))","v":45.803929962395145}]
[null,"Income $150,000 to $199,999 ",{"$f":"$C$23","v":15},{"$f":"$D$23","v":13},{"$f":"$E$23","v":10},{"$f":"$F$23","v":17},{"$f":"$G$23","v":141},{"$f":"$H$23","v":74},{"$f":"$I$23","v":90},{"$f":"$J$23","v":33},{"$f":"$K$23","v":11},{"$f":"$L$23","v":8},{"$f":"$M$23","v":17},{"$f":"$N$23","v":14},{"$f":"$O$23","v":283},{"$f":"$P$23","v":156},{"$f":"Q23","v":17},14,13,13,210,115,95,39,{"$f":"Y23","v":31},30,153,78,{"$f":"AC23","v":25},14,48,26]
[null,"Income $200,000 or more ",{"$f":"$C$24","v":12},{"$f":"$D$24","v":8},{"$f":"$E$24","v":129},{"$f":"$F$24","v":76},{"$f":"$G$24","v":209},{"$f":"$H$24","v":119},{"$f":"$I$24","v":89},{"$f":"$J$24","v":33},{"$f":"$K$24","v":5},{"$f":"$L$24","v":6},{"$f":"$M$24","v":6},{"$f":"$N$24","v":5},{"$f":"$O$24","v":216},{"$f":"$P$24","v":152},35,23,11,10,182,115,138,54,15,13,163,62,17,12,46,25]
[]
[]
[]
[]
[]
[]
[]
[]
[]
[]
[]
[]
[]
[]
[]
[]
[]
[]
[]
[]
[]
[]
[]
[]
[null,"B19001. HOUSEHOLD INCOME IN THE PAST 12 MONTHS (IN 2017 INFLATION-ADJUSTED DOLLARS)",null,null,null,null,null,null,null,null,null,null,null,null,{"$f":"B70","v":"B19001. HOUSEHOLD INCOME IN THE PAST 12 MONTHS (IN 2017 INFLATION-ADJUSTED DOLLARS)"}]
[null,"Universe:  HOUSEHOLDS",null,null,null,null,null,null,null,null,null,null,null,null,"Universe:  HOUSEHOLDS"]
[null,"Data Set: 2013-2017 American Community Survey 5-Year Estimates",null,null,null,null,null,null,null,null,null,null,null,null,{"$f":"B72","v":"Data Set: 2013-2017 American Community Survey 5-Year Estimates"}]
[]
[null,null,"Acworth",null,"Charlestown",null,"Claremont",null,"Cornish",null,"Croydon",null,"Goshen",null,"Grantham",null,"Langdon",null,"Lempster",null,"Newport",null,"Plainfield",null,"Springfield",null,"Sunapee",null,"Unity",null,"Washington"]
[null,null,"Estimate","Margin Of Error","Estimate","Margin Of Error","Estimate","Margin Of Error","Estimate","Margin Of Error","Estimate","Margin Of Error","Estimate","Margin Of Error","Estimate","Margin Of Error","Estimate","Margin Of Error","Estimate","Margin Of Error","Estimate","Margin Of Error","Estimate","Margin Of Error","Estimate","Margin Of Error","Estimate","Margin Of Error","Estimate","Margin Of Error","Estimate","Margin Of Error"]
[null,"Total Households",427,62,2102,160,5567,221,722,71,274,49,271,48,1153,125,292,38,409,63,2573,202,920,83,435,74,1553,140,526,60,556,85]
[null,"Households With"]
[null,"Income Less than $10,000 ",10,10,63,43,411,196,19,12,1,3,5,6,0,11,16,15,7,7,201,107,22,17,7,11,53,60,13,13,21,18]
[null,"Income $10,000 to $14,999 ",13,8,122,79,386,145,10,9,14,13,4,4,0,11,7,6,19,19,72,61,0,11,10,10,67,66,26,19,18,17]
[null,"Income $15,000 to $19,999 ",34,25,202,102,259,89,26,17,7,8,2,3,34,38,4,5,16,9,113,87,0,11,16,14,62,42,7,6,18,10]
[null,"Income $20,000 to $24,999 ",13,12,137,85,445,154,14,10,16,13,13,11,0,11,7,6,39,27,96,53,16,13,3,4,136,91,41,22,21,10]
[null,"Income $25,000 to $29,999 ",21,15,131,86,309,110,26,24,6,6,23,18,51,52,7,7,11,10,115,72,68,38,24,19,59,59,29,18,31,22]
[null,"Income $30,000 to $34,999 ",13,11,97,67,347,115,44,29,6,6,22,19,12,18,6,9,23,12,119,71,26,16,26,22,88,65,19,12,23,18]
[null,"Income $35,000 to $39,999 ",25,15,140,90,166,81,47,26,12,12,18,14,0,11,2,4,11,9,112,67,42,31,7,8,29,28,3,4,28,16]
[null,"Income $40,000 to $44,999 ",23,13,99,83,334,147,14,11,14,10,7,5,81,79,7,6,22,13,50,41,27,17,15,17,70,69,27,15,15,10]
[null,"Income $45,000 to $49,999 ",23,14,53,38,318,101,28,15,3,4,20,16,26,33,9,6,22,16,185,101,33,32,14,16,76,59,43,21,9,8]
[null,"Income $50,000 to $59,999 ",42,19,199,104,526,137,36,21,27,16,20,16,43,34,23,12,20,17,290,154,65,32,31,23,70,54,22,12,37,16]
[null,"Income $60,000 to $74,999 ",64,26,255,129,585,177,87,40,34,18,58,25,152,90,35,20,51,31,305,125,102,36,36,24,233,94,75,21,63,22]
[null,"Income $75,000 to $99,999 ",51,21,390,142,818,199,99,31,54,24,44,20,138,68,66,23,76,35,405,150,143,37,131,48,197,88,72,28,86,35]
[null,"Income $100,000 to $124,999 ",34,12,75,64,269,102,113,30,15,14,16,9,258,109,46,24,49,23,104,78,114,36,40,25,187,79,73,33,73,41]
[null,"Income $125,000 to $149,999 ",15,10,99,72,179,89,67,29,35,23,11,7,153,91,26,14,4,5,189,107,90,36,53,30,164,74,53,27,51,19]
[null,"Income $150,000 to $199,999 ",11,11,24,28,172,76,46,23,23,21,2,3,65,37,14,16,21,18,163,98,80,38,4,6,15,26,19,10,6,6]
[null,"Income $200,000 or more ",35,18,16,27,43,36,46,23,7,10,6,10,140,72,17,12,18,18,54,44,92,44,18,15,47,34,4,6,56,59]
[]
[]
[]
[]
[null,{"$f":"\"Calculated \"&B70","v":"Calculated B19001. HOUSEHOLD INCOME IN THE PAST 12 MONTHS (IN 2017 INFLATION-ADJUSTED DOLLARS)"}]
[null,"Universe:  HOUSEHOLDS"]
[null,{"$f":"B72","v":"Data Set: 2013-2017 American Community Survey 5-Year Estimates"}]
[null,null,"Acworth",null,"Charlestown",null,"Claremont",null,"Cornish",null,"Croydon",null,"Goshen",null,"Grantham",null,"Langdon",null,"Lempster",null,"Newport",null,"Plainfield",null,"Springfield",null,"Sunapee",null,"Unity",null,"Washington"]
[null,null,"Estimate","Margin Of Error","Estimate","Margin Of Error","Estimate","Margin Of Error","Estimate","Margin Of Error","Estimate","Margin Of Error","Estimate","Margin Of Error","Estimate","Margin Of Error","Estimate","Margin Of Error","Estimate","Margin Of Error","Estimate","Margin Of Error","Estimate","Margin Of Error","Estimate","Margin Of Error","Estimate","Margin Of Error","Estimate","Margin Of Error","Estimate","Margin Of Error"]
[null,"Total Households",{"$f":"C76","v":427},62,2102,160,5567,221,722,71,274,49,271,48,1153,125,292,{"$f":"R76","v":38},409,63,2573,202,920,83,435,74,1553,140,526,60,556,85]
[null,"Households With"]
[null,"Income Less than $10,000 ",{"$f":"C78","v":10},10,63,43,411,196,19,12,1,3,5,6,0,11,16,{"$f":"R78","v":15},7,7,201,107,22,17,7,11,53,60,13,13,21,18]
[null,"Income $10,000 to $14,999 ",{"$f":"C79","v":13},8,122,79,386,145,10,9,14,13,4,4,0,11,7,6,19,19,72,61,0,11,10,10,67,66,26,19,18,17]
[null,"Income $15,000 to $24,999 ",{"$f":"C80+C81","v":47},{"$f":"SQRT((D80^2)+(D81^2))","v":27.730849247724095},{"$f":"E80+E81","v":339},{"$f":"SQRT((F80^2)+(F81^2))","v":132.77424449041311},{"$f":"G80+G81","v":704},{"$f":"SQRT((H80^2)+(H81^2))","v":177.86792853125601},{"$f":"I80+I81","v":40},{"$f":"SQRT((J80^2)+(J81^2))","v":19.723082923316021},{"$f":"K80+K81","v":23},{"$f":"SQRT((L80^2)+(L81^2))","v":15.264337522473747},{"$f":"M80+M81","v":15},{"$f":"SQRT((N80^2)+(N81^2))","v":11.401754250991379},{"$f":"O80+O81","v":34},{"$f":"SQRT((P80^2)+(P81^2))","v":39.560080889704963},{"$f":"Q80+Q81","v":11},{"$f":"SQRT((R80^2)+(R81^2))","v":7.810249675906654},{"$f":"S80+S81","v":55},{"$f":"SQRT((T80^2)+(T81^2))","v":28.460498941515414},{"$f":"U80+U81","v":209},{"$f":"SQRT((V80^2)+(V81^2))","v":101.87246929372037},{"$f":"W80+W81","v":16},{"$f":"SQRT((X80^2)+(X81^2))","v":17.029386365926403},{"$f":"Y80+Y81","v":19},{"$f":"SQRT((Z80^2)+(Z81^2))","v":14.560219778561036},{"$f":"AA80+AA81","v":198},{"$f":"SQRT((AB80^2)+(AB81^2))","v":100.22474744293447},{"$f":"AC80+AC81","v":48},{"$f":"SQRT((AD80^2)+(AD81^2))","v":22.803508501982758},{"$f":"AE80+AE81","v":39},{"$f":"SQRT((AF80^2)+(AF81^2))","v":14.142135623730951}]
[null,"Income $25,000 to $34,999 ",{"$f":"C82+C83","v":34},{"$f":"SQRT((D82^2)+(D83^2))","v":18.601075237738275},{"$f":"E82+E83","v":228},{"$f":"SQRT((F82^2)+(F83^2))","v":109.01834707974616},{"$f":"G82+G83","v":656},{"$f":"SQRT((H82^2)+(H83^2))","v":159.13830462839547},{"$f":"I82+I83","v":70},{"$f":"SQRT((J82^2)+(J83^2))","v":37.643060449437421},{"$f":"K82+K83","v":12},{"$f":"SQRT((L82^2)+(L83^2))","v":8.4852813742385695},{"$f":"M82+M83","v":45},{"$f":"SQRT((N82^2)+(N83^2))","v":26.172504656604801},{"$f":"O82+O83","v":63},{"$f":"SQRT((P82^2)+(P83^2))","v":55.027265968790417},{"$f":"Q82+Q83","v":13},{"$f":"SQRT((R82^2)+(R83^2))","v":11.401754250991379},{"$f":"S82+S83","v":34},{"$f":"SQRT((T82^2)+(T83^2))","v":15.620499351813308},{"$f":"U82+U83","v":234},{"$f":"SQRT((V82^2)+(V83^2))","v":101.11874208078342},{"$f":"W82+W83","v":94},{"$f":"SQRT((X82^2)+(X83^2))","v":41.231056256176608},{"$f":"Y82+Y83","v":50},{"$f":"SQRT((Z82^2)+(Z83^2))","v":29.068883707497267},{"$f":"AA82+AA83","v":147},{"$f":"SQRT((AB82^2)+(AB83^2))","v":87.783825389418979},{"$f":"AC82+AC83","v":48},{"$f":"SQRT((AD82^2)+(AD83^2))","v":21.633307652783937},{"$f":"AE82+AE83","v":54},{"$f":"SQRT((AF82^2)+(AF83^2))","v":28.42534080710379}]
[null,"Income $35,000 to $49,999 ",{"$f":"C84+C85+C86","v":71},{"$f":"SQRT((D84^2)+(D85^2)+(D86^2))","v":24.289915602982237},{"$f":"E84+E85+E86","v":292},{"$f":"SQRT((F84^2)+(F85^2)+(F86^2))","v":128.191263352851},{"$f":"G84+G85+G86","v":818},{"$f":"SQRT((H84^2)+(H85^2)+(H86^2))","v":195.88517044431924},{"$f":"I84+I85+I86","v":89},{"$f":"SQRT((J84^2)+(J85^2)+(J86^2))","v":31.968734726291562},{"$f":"K84+K85+K86","v":29},{"$f":"SQRT((L84^2)+(L85^2)+(L86^2))","v":16.124515496597098},{"$f":"M84+M85+M86","v":45},{"$f":"SQRT((N84^2)+(N85^2)+(N86^2))","v":21.840329667841555},{"$f":"O84+O85+O86","v":107},{"$f":"SQRT((P84^2)+(P85^2)+(P86^2))","v":86.319175158246267},{"$f":"Q84+Q85+Q86","v":18},{"$f":"SQRT((R84^2)+(R85^2)+(R86^2))","v":9.3808315196468595},{"$f":"S84+S85+S86","v":55},{"$f":"SQRT((T84^2)+(T85^2)+(T86^2))","v":22.494443758403985},{"$f":"U84+U85+U86","v":347},{"$f":"SQRT((V84^2)+(V85^2)+(V86^2))","v":127.94920867281672},{"$f":"W84+W85+W86","v":102},{"$f":"SQRT((X84^2)+(X85^2)+(X86^2))","v":47.686476070265456},{"$f":"Y84+Y85+Y86","v":36},{"$f":"SQRT((Z84^2)+(Z85^2)+(Z86^2))","v":24.677925358506133},{"$f":"AA84+AA85+AA86","v":175},{"$f":"SQRT((AB84^2)+(AB85^2)+(AB86^2))","v":95.005263012108969},{"$f":"AC84+AC85+AC86","v":73},{"$f":"SQRT((AD84^2)+(AD85^2)+(AD86^2))","v":26.115129714401192},{"$f":"AE84+AE85+AE86","v":52},{"$f":"SQRT((AF84^2)+(AF85^2)+(AF86^2))","v":20.493901531919196}]
[null,"Income $50,000 to $74,999 ",{"$f":"C87+C88","v":106},{"$f":"SQRT((D87^2)+(D88^2))","v":32.202484376209235},{"$f":"E87+E88","v":454},{"$f":"SQRT((F87^2)+(F88^2))","v":165.70153891862321},{"$f":"G87+G88","v":1111},{"$f":"SQRT((H87^2)+(H88^2))","v":223.82582514088941},{"$f":"I87+I88","v":123},{"$f":"SQRT((J87^2)+(J88^2))","v":45.177427992306072},{"$f":"K87+K88","v":61},{"$f":"SQRT((L87^2)+(L88^2))","v":24.083189157584592},{"$f":"M87+M88","v":78},{"$f":"SQRT((N87^2)+(N88^2))","v":29.681644159311659},{"$f":"O87+O88","v":195},{"$f":"SQRT((P87^2)+(P88^2))","v":96.208107766445551},{"$f":"Q87+Q88","v":58},{"$f":"SQRT((R87^2)+(R88^2))","v":23.323807579381203},{"$f":"S87+S88","v":71},{"$f":"SQRT((T87^2)+(T88^2))","v":35.355339059327378},{"$f":"U87+U88","v":595},{"$f":"SQRT((V87^2)+(V88^2))","v":198.3456578803781},{"$f":"W87+W88","v":167},{"$f":"SQRT((X87^2)+(X88^2))","v":48.166378315169183},{"$f":"Y87+Y88","v":67},{"$f":"SQRT((Z87^2)+(Z88^2))","v":33.241540277189323},{"$f":"AA87+AA88","v":303},{"$f":"SQRT((AB87^2)+(AB88^2))","v":108.40664186294121},{"$f":"AC87+AC88","v":97},{"$f":"SQRT((AD87^2)+(AD88^2))","v":24.186773244895647},{"$f":"AE87+AE88","v":100},{"$f":"SQRT((AF87^2)+(AF88^2))","v":27.202941017470888}]
[null,"Income $75,000 to $99,999 ",{"$f":"C89","v":51},21,390,142,818,199,99,31,54,24,44,20,138,68,{"$f":"Q89","v":66},23,76,35,405,150,143,37,131,48,197,88,72,28,86,35]
[null,"Income $100,000 to $149,999 ",{"$f":"C90+C91","v":49},{"$f":"SQRT((D90^2)+(D91^2))","v":15.620499351813308},{"$f":"E90+E91","v":174},{"$f":"SQRT((F90^2)+(F91^2))","v":96.332756630338366},{"$f":"G90+G91","v":448},{"$f":"SQRT((H90^2)+(H91^2))","v":135.36986370680884},{"$f":"I90+I91","v":180},{"$f":"SQRT((J90^2)+(J91^2))","v":41.725292090050132},{"$f":"K90+K91","v":50},{"$f":"SQRT((L90^2)+(L91^2))","v":26.92582403567252},{"$f":"M90+M91","v":27},{"$f":"SQRT((N90^2)+(N91^2))","v":11.401754250991379},{"$f":"O90+O91","v":411},{"$f":"SQRT((P90^2)+(P91^2))","v":141.99295757184581},{"$f":"Q90+Q91","v":72},{"$f":"SQRT((R90^2)+(R91^2))","v":27.784887978899608},{"$f":"S90+S91","v":53},{"$f":"SQRT((T90^2)+(T91^2))","v":23.53720459187964},{"$f":"U90+U91","v":293},{"$f":"SQRT((V90^2)+(V91^2))","v":132.41223508422476},{"$f":"W90+W91","v":204},{"$f":"SQRT((X90^2)+(X91^2))","v":50.911688245431421},{"$f":"Y90+Y91","v":93},{"$f":"SQRT((Z90^2)+(Z91^2))","v":39.05124837953327},{"$f":"AA90+AA91","v":351},{"$f":"SQRT((AB90^2)+(AB91^2))","v":108.2450922675019},{"$f":"AC90+AC91","v":126},{"$f":"SQRT((AD90^2)+(AD91^2))","v":42.638011210655684},{"$f":"AE90+AE91","v":124},{"$f":"SQRT((AF90^2)+(AF91^2))","v":45.188494110780013}]
[null,"Income $150,000 to $199,999 ",{"$f":"C92","v":11},11,24,28,172,76,46,23,23,21,2,3,65,37,{"$f":"Q92","v":14},16,21,18,163,98,80,38,4,6,15,26,19,10,6,6]
[null,"Income $200,000 or more ",{"$f":"C93","v":35},18,16,27,43,36,46,23,7,10,6,10,140,72,17,12,18,18,54,44,92,44,18,15,47,34,4,6,56,59]
[]
[]
[]
[null,"B19001. HOUSEHOLD INCOME IN THE PAST 12 MONTHS (IN 2012 INFLATION-ADJUSTED DOLLARS)",null,null,null,null,null,null,null,null,null,null,null,null,{"$f":"B118","v":"B19001. HOUSEHOLD INCOME IN THE PAST 12 MONTHS (IN 2012 INFLATION-ADJUSTED DOLLARS)"}]
[null,"Universe:  HOUSEHOLDS",null,null,null,null,null,null,null,null,null,null,null,null,{"$f":"B120","v":"Data Set: 2008-2012 American Community Survey 5-Year Estimates"}]
[null,"Data Set: 2008-2012 American Community Survey 5-Year Estimates"]
[]
[null,null,"Acworth",null,"Charlestown",null,"Claremont",null,"Cornish",null,"Croydon",null,"Goshen",null,"Grantham",null,"Langdon",null,"Lempster",null,"Newport",null,"Plainfield",null,"Springfield",null,"Sunapee",null,"Unity",null,"Washington"]
[null,null,"Estimate","Margin Of Error","Estimate","Margin Of Error","Estimate","Margin Of Error","Estimate","Margin Of Error","Estimate","Margin Of Error","Estimate","Margin Of Error","Estimate","Margin Of Error","Estimate","Margin Of Error","Estimate","Margin Of Error","Estimate","Margin Of Error","Estimate","Margin Of Error","Estimate","Margin Of Error","Estimate","Margin Of Error","Estimate","Margin Of Error","Estimate","Margin Of Error"]
[null,"Total Households",294,54,2310,107,5721,232,657,69,289,43,331,48,1119,80,278,45,427,58,2684,193,920,76,497,60,1458,100,599,58,465,69]
[null,"Households With"]
[null,"Income Less than $10,000 ",15,13,133,93,420,147,20,12,10,10,13,12,9,15,6,9,16,13,293,163,7,11,20,19,39,50,3,4,20,22]
[null,"Income $10,000 to $14,999 ",11,9,71,53,535,182,19,17,21,20,16,12,20,24,6,5,17,13,268,104,0,11,5,7,13,16,15,10,12,9]
[null,"Income $15,000 to $19,999 ",5,8,183,93,301,110,8,7,8,8,8,9,9,13,7,6,13,15,125,64,9,11,14,11,63,53,24,14,39,22]
[null,"Income $20,000 to $24,999 ",28,21,157,92,287,101,44,28,10,11,20,17,14,14,12,11,34,19,69,51,36,20,16,13,82,69,8,8,22,14]
[null,"Income $25,000 to $29,999 ",13,14,102,71,418,130,31,20,24,17,14,9,6,8,7,7,17,13,47,35,38,27,9,14,9,15,67,32,28,19]
[null,"Income $30,000 to $34,999 ",36,23,144,93,397,132,21,13,13,9,10,6,25,32,21,16,6,7,92,64,59,32,16,12,64,44,38,20,27,13]
[null,"Income $35,000 to $39,999 ",7,8,171,118,415,148,9,8,11,13,29,18,100,49,21,18,17,9,132,77,21,18,33,25,59,50,16,11,23,17]
[null,"Income $40,000 to $44,999 ",11,11,131,100,276,98,44,24,9,9,23,12,33,21,0,11,39,21,226,127,41,26,17,18,14,23,36,22,11,9]
[null,"Income $45,000 to $49,999 ",8,10,66,49,269,127,9,14,7,6,14,13,56,34,23,17,18,13,220,106,10,15,25,18,50,40,52,42,34,23]
[null,"Income $50,000 to $59,999 ",48,25,292,122,418,136,47,22,6,6,43,26,44,24,12,11,47,23,268,114,50,29,36,23,133,73,76,30,44,25]
[null,"Income $60,000 to $74,999 ",42,26,333,132,570,141,106,38,32,17,28,17,125,51,50,27,52,28,229,87,71,35,89,43,214,103,90,27,54,22]
[null,"Income $75,000 to $99,999 ",43,22,307,97,619,137,120,31,55,20,55,26,194,71,71,35,90,37,376,160,123,44,75,34,219,93,97,35,53,22]
[null,"Income $100,000 to $124,999 ",20,20,186,97,433,145,73,27,64,25,16,9,157,58,12,11,39,18,165,104,179,73,49,26,144,69,65,30,32,23]
[null,"Income $125,000 to $149,999 ",0,11,22,28,188,78,61,27,9,10,17,16,170,63,22,14,7,11,59,54,102,40,61,32,139,68,5,7,25,19]
[null,"Income $150,000 to $199,999 ",7,11,12,20,119,69,26,16,0,11,17,16,77,46,3,4,4,5,81,52,73,30,25,25,110,76,4,6,9,7]
[null,"Income $200,000 or more ",0,11,0,16,56,43,19,13,10,9,8,9,80,38,5,7,11,12,34,34,101,44,7,9,106,56,3,4,32,19]
[]
[]
[]
[]
[null,{"$f":"\"Calculated \"&B118","v":"Calculated B19001. HOUSEHOLD INCOME IN THE PAST 12 MONTHS (IN 2012 INFLATION-ADJUSTED DOLLARS)"}]
[null,"Universe:  HOUSEHOLDS"]
[null,{"$f":"B120","v":"Data Set: 2008-2012 American Community Survey 5-Year Estimates"}]
[null,null,"Acworth",null,"Charlestown",null,"Claremont",null,"Cornish",null,"Croydon",null,"Goshen",null,"Grantham",null,"Langdon",null,"Lempster",null,"Newport",null,"Plainfield",null,"Springfield",null,"Sunapee",null,"Unity",null,"Washington"]
[null,null,"Estimate","Margin Of Error","Estimate","Margin Of Error","Estimate","Margin Of Error","Estimate","Margin Of Error","Estimate","Margin Of Error","Estimate","Margin Of Error","Estimate","Margin Of Error","Estimate","Margin Of Error","Estimate","Margin Of Error","Estimate","Margin Of Error","Estimate","Margin Of Error","Estimate","Margin Of Error","Estimate","Margin Of Error","Estimate","Margin Of Error","Estimate","Margin Of Error"]
[null,"Total Households",{"$f":"C124","v":294},54,2310,107,5721,232,657,69,289,43,331,48,1119,80,278,{"$f":"R124","v":45},427,58,2684,193,920,76,497,60,1458,100,599,58,465,69]
[null,"Households With"]
[null,"Income Less than $10,000 ",{"$f":"C126","v":15},13,133,93,420,147,20,12,10,10,13,12,9,15,6,{"$f":"R126","v":9},16,13,293,163,7,11,20,19,39,50,3,4,20,22]
[null,"Income $10,000 to $14,999 ",{"$f":"C127","v":11},9,71,53,535,182,19,17,21,20,16,12,20,24,6,5,17,13,268,104,0,11,5,7,13,16,15,10,12,9]
[null,"Income $15,000 to $24,999 ",{"$f":"C128+C129","v":33},{"$f":"SQRT((D128^2)+(D129^2))","v":22.472205054244231},{"$f":"E128+E129","v":340},{"$f":"SQRT((F128^2)+(F129^2))","v":130.81666560496029},{"$f":"G128+G129","v":588},{"$f":"SQRT((H128^2)+(H129^2))","v":149.33519344079613},{"$f":"I128+I129","v":52},{"$f":"SQRT((J128^2)+(J129^2))","v":28.861739379323623},{"$f":"K128+K129","v":18},{"$f":"SQRT((L128^2)+(L129^2))","v":13.601470508735444},{"$f":"M128+M129","v":28},{"$f":"SQRT((N128^2)+(N129^2))","v":19.235384061671343},{"$f":"O128+O129","v":23},{"$f":"SQRT((P128^2)+(P129^2))","v":19.104973174542799},{"$f":"Q128+Q129","v":19},{"$f":"SQRT((R128^2)+(R129^2))","v":12.529964086141668},{"$f":"S128+S129","v":47},{"$f":"SQRT((T128^2)+(T129^2))","v":24.207436873820409},{"$f":"U128+U129","v":194},{"$f":"SQRT((V128^2)+(V129^2))","v":81.835200250259064},{"$f":"W128+W129","v":45},{"$f":"SQRT((X128^2)+(X129^2))","v":22.825424421026653},{"$f":"Y128+Y129","v":30},{"$f":"SQRT((Z128^2)+(Z129^2))","v":17.029386365926403},{"$f":"AA128+AA129","v":145},{"$f":"SQRT((AB128^2)+(AB129^2))","v":87.005746936624831},{"$f":"AC128+AC129","v":32},{"$f":"SQRT((AD128^2)+(AD129^2))","v":16.124515496597098},{"$f":"AE128+AE129","v":61},{"$f":"SQRT((AF128^2)+(AF129^2))","v":26.076809620810597}]
[null,"Income $25,000 to $34,999 ",{"$f":"C130+C131","v":49},{"$f":"SQRT((D130^2)+(D131^2))","v":26.92582403567252},{"$f":"E130+E131","v":246},{"$f":"SQRT((F130^2)+(F131^2))","v":117.00427342623003},{"$f":"G130+G131","v":815},{"$f":"SQRT((H130^2)+(H131^2))","v":185.26737435393204},{"$f":"I130+I131","v":52},{"$f":"SQRT((J130^2)+(J131^2))","v":23.853720883753127},{"$f":"K130+K131","v":37},{"$f":"SQRT((L130^2)+(L131^2))","v":19.235384061671343},{"$f":"M130+M131","v":24},{"$f":"SQRT((N130^2)+(N131^2))","v":10.816653826391969},{"$f":"O130+O131","v":31},{"$f":"SQRT((P130^2)+(P131^2))","v":32.984845004941285},{"$f":"Q130+Q131","v":28},{"$f":"SQRT((R130^2)+(R131^2))","v":17.464249196572979},{"$f":"S130+S131","v":23},{"$f":"SQRT((T130^2)+(T131^2))","v":14.7648230602334},{"$f":"U130+U131","v":139},{"$f":"SQRT((V130^2)+(V131^2))","v":72.945184899347538},{"$f":"W130+W131","v":97},{"$f":"SQRT((X130^2)+(X131^2))","v":41.868842830916641},{"$f":"Y130+Y131","v":25},{"$f":"SQRT((Z130^2)+(Z131^2))","v":18.439088914585774},{"$f":"AA130+AA131","v":73},{"$f":"SQRT((AB130^2)+(AB131^2))","v":46.486557196677836},{"$f":"AC130+AC131","v":105},{"$f":"SQRT((AD130^2)+(AD131^2))","v":37.735924528226413},{"$f":"AE130+AE131","v":55},{"$f":"SQRT((AF130^2)+(AF131^2))","v":23.021728866442675}]
[null,"Income $35,000 to $49,999 ",{"$f":"C132+C133+C134","v":26},{"$f":"SQRT((D132^2)+(D133^2)+(D134^2))","v":16.881943016134134},{"$f":"E132+E133+E134","v":368},{"$f":"SQRT((F132^2)+(F133^2)+(F134^2))","v":162.24980739587951},{"$f":"G132+G133+G134","v":960},{"$f":"SQRT((H132^2)+(H133^2)+(H134^2))","v":218.25902043214617},{"$f":"I132+I133+I134","v":62},{"$f":"SQRT((J132^2)+(J133^2)+(J134^2))","v":28.913664589601922},{"$f":"K132+K133+K134","v":27},{"$f":"SQRT((L132^2)+(L133^2)+(L134^2))","v":16.911534525287763},{"$f":"M132+M133+M134","v":66},{"$f":"SQRT((N132^2)+(N133^2)+(N134^2))","v":25.238858928247925},{"$f":"O132+O133+O134","v":189},{"$f":"SQRT((P132^2)+(P133^2)+(P134^2))","v":63.229739838148944},{"$f":"Q132+Q133+Q134","v":44},{"$f":"SQRT((R132^2)+(R133^2)+(R134^2))","v":27.092434368288131},{"$f":"S132+S133+S134","v":74},{"$f":"SQRT((T132^2)+(T133^2)+(T134^2))","v":26.28687885618983},{"$f":"U132+U133+U134","v":578},{"$f":"SQRT((V132^2)+(V133^2)+(V134^2))","v":182.46643526961336},{"$f":"W132+W133+W134","v":72},{"$f":"SQRT((X132^2)+(X133^2)+(X134^2))","v":35},{"$f":"Y132+Y133+Y134","v":75},{"$f":"SQRT((Z132^2)+(Z133^2)+(Z134^2))","v":35.679125549822544},{"$f":"AA132+AA133+AA134","v":123},{"$f":"SQRT((AB132^2)+(AB133^2)+(AB134^2))","v":68.036754772696213},{"$f":"AC132+AC133+AC134","v":104},{"$f":"SQRT((AD132^2)+(AD133^2)+(AD134^2))","v":48.672374094551827},{"$f":"AE132+AE133+AE134","v":68},{"$f":"SQRT((AF132^2)+(AF133^2)+(AF134^2))","v":29.983328701129899}]
[null,"Income $50,000 to $74,999 ",{"$f":"C135+C136","v":90},{"$f":"SQRT((D135^2)+(D136^2))","v":36.069377593742864},{"$f":"E135+E136","v":625},{"$f":"SQRT((F135^2)+(F136^2))","v":179.74426277353055},{"$f":"G135+G136","v":988},{"$f":"SQRT((H135^2)+(H136^2))","v":195.90048494069634},{"$f":"I135+I136","v":153},{"$f":"SQRT((J135^2)+(J136^2))","v":43.908996800200299},{"$f":"K135+K136","v":38},{"$f":"SQRT((L135^2)+(L136^2))","v":18.027756377319946},{"$f":"M135+M136","v":71},{"$f":"SQRT((N135^2)+(N136^2))","v":31.064449134018133},{"$f":"O135+O136","v":169},{"$f":"SQRT((P135^2)+(P136^2))","v":56.36488268416781},{"$f":"Q135+Q136","v":62},{"$f":"SQRT((R135^2)+(R136^2))","v":29.154759474226502},{"$f":"S135+S136","v":99},{"$f":"SQRT((T135^2)+(T136^2))","v":36.235341863986875},{"$f":"U135+U136","v":497},{"$f":"SQRT((V135^2)+(V136^2))","v":143.40502083260543},{"$f":"W135+W136","v":121},{"$f":"SQRT((X135^2)+(X136^2))","v":45.453272709454048},{"$f":"Y135+Y136","v":125},{"$f":"SQRT((Z135^2)+(Z136^2))","v":48.764741360946438},{"$f":"AA135+AA136","v":347},{"$f":"SQRT((AB135^2)+(AB136^2))","v":126.24579200908045},{"$f":"AC135+AC136","v":166},{"$f":"SQRT((AD135^2)+(AD136^2))","v":40.36087214122113},{"$f":"AE135+AE136","v":98},{"$f":"SQRT((AF135^2)+(AF136^2))","v":33.301651610693426}]
[null,"Income $75,000 to $99,999 ",{"$f":"C137","v":43},22,307,97,619,137,120,31,55,20,55,26,194,71,{"$f":"Q137","v":71},35,90,37,376,160,123,44,75,34,219,93,97,35,53,22]
[null,"Income $100,000 to $149,999 ",{"$f":"C138+C139","v":20},{"$f":"SQRT((D138^2)+(D139^2))","v":22.825424421026653},{"$f":"E138+E139","v":208},{"$f":"SQRT((F138^2)+(F139^2))","v":100.96038827183659},{"$f":"G138+G139","v":621},{"$f":"SQRT((H138^2)+(H139^2))","v":164.64810961562844},{"$f":"I138+I139","v":134},{"$f":"SQRT((J138^2)+(J139^2))","v":38.183766184073569},{"$f":"K138+K139","v":73},{"$f":"SQRT((L138^2)+(L139^2))","v":26.92582403567252},{"$f":"M138+M139","v":33},{"$f":"SQRT((N138^2)+(N139^2))","v":18.357559750685819},{"$f":"O138+O139","v":327},{"$f":"SQRT((P138^2)+(P139^2))","v":85.632937588290176},{"$f":"Q138+Q139","v":34},{"$f":"SQRT((R138^2)+(R139^2))","v":17.804493814764857},{"$f":"S138+S139","v":46},{"$f":"SQRT((T138^2)+(T139^2))","v":21.095023109728988},{"$f":"U138+U139","v":224},{"$f":"SQRT((V138^2)+(V139^2))","v":117.18361660232202},{"$f":"W138+W139","v":281},{"$f":"SQRT((X138^2)+(X139^2))","v":83.240615086627031},{"$f":"Y138+Y139","v":110},{"$f":"SQRT((Z138^2)+(Z139^2))","v":41.231056256176608},{"$f":"AA138+AA139","v":283},{"$f":"SQRT((AB138^2)+(AB139^2))","v":96.876209669866839},{"$f":"AC138+AC139","v":70},{"$f":"SQRT((AD138^2)+(AD139^2))","v":30.805843601498726},{"$f":"AE138+AE139","v":57},{"$f":"SQRT((AF138^2)+(AF139^2))","v":29.832867780352597}]
[null,"Income $150,000 to $199,999 ",{"$f":"C140","v":7},11,12,20,119,69,26,16,0,11,17,16,77,46,{"$f":"Q140","v":3},4,4,5,81,52,73,30,25,25,110,76,4,6,9,7]
[null,"Income $200,000 or more ",{"$f":"C141","v":0},11,0,16,56,43,19,13,10,9,8,9,80,38,5,7,11,12,34,34,101,44,7,9,106,56,3,4,32,19]

{"sheet":"ACS_Table_B19037","index":26,"n_rows":253,"n_cols":32,"rows_kept":253,"cut":false,"hidden":true,"merged":[]}
[null,"B19037. AGE OF HOUSEHOLDER BY HOUSEHOLD INCOME IN THE PAST 12 MONTHS (IN 2022 INFLATION-ADJUSTED DOLLARS)"]
[null,"Universe:  HOUSEHOLDS"]
[null,"Data Set: 2018-2022 American Community Survey 5-Year Estimates"]
[]
[null,null,"Acworth",null,"Charlestown",null,"Claremont",null,"Cornish",null,"Croydon",null,"Goshen",null,"Grantham",null,"Langdon",null,"Lempster",null,"Newport",null,"Plainfield",null,null,null,"Sunapee",null,"Unity",null,"Washington"]
[null,null,"Estimate","Margin Of Error","Estimate","Margin Of Error","Estimate","Margin Of Error","Estimate","Margin Of Error","Estimate","Margin Of Error","Estimate","Margin Of Error","Estimate","Margin Of Error","Estimate","Margin Of Error","Estimate","Margin Of Error","Estimate","Margin Of Error","Estimate","Margin Of Error","Estimate","Margin Of Error","Estimate","Margin Of Error","Estimate","Margin Of Error","Estimate","Margin Of Error"]
[null,"Total:",239,42,1847,209,5203,325,762,147,232,49,303,72,1149,128,226,45,316,61,2478,224,831,84,294,83,1122,162,478,77,413,71]
[null,"Householder under 25 years:",1,2,0,12,148,78,2,3,3,4,1,2,13,22,0,12,0,12,112,110,6,10,0,12,0,12,7,12,0,12]
[null,"Less than $10,000",0,12,0,12,26,28,0,12,0,12,0,12,0,12,0,12,0,12,14,23,0,12,0,12,0,12,7,12,0,12]
[null,"$10,000 to $14,999",0,12,0,12,0,19,0,12,0,12,0,12,0,12,0,12,0,12,0,17,0,12,0,12,0,12,0,12,0,12]
[null,"$15,000 to $19,999",0,12,0,12,26,31,0,12,0,12,0,12,0,12,0,12,0,12,0,17,0,12,0,12,0,12,0,12,0,12]
[null,"$20,000 to $24,999",0,12,0,12,6,14,0,12,0,12,0,12,0,12,0,12,0,12,0,17,0,12,0,12,0,12,0,12,0,12]
[null,"$25,000 to $29,999",0,12,0,12,0,19,0,12,0,12,0,12,0,12,0,12,0,12,0,17,0,12,0,12,0,12,0,12,0,12]
[null,"$30,000 to $34,999",0,12,0,12,22,33,0,12,0,12,0,12,0,12,0,12,0,12,0,17,0,12,0,12,0,12,0,12,0,12]
[null,"$35,000 to $39,999",0,12,0,12,4,7,0,12,1,2,0,12,0,12,0,12,0,12,0,17,0,12,0,12,0,12,0,12,0,12]
[null,"$40,000 to $44,999",1,2,0,12,0,19,0,12,0,12,1,2,0,12,0,12,0,12,11,19,0,12,0,12,0,12,0,12,0,12]
[null,"$45,000 to $49,999",0,12,0,12,3,6,0,12,0,12,0,12,0,12,0,12,0,12,0,17,0,12,0,12,0,12,0,12,0,12]
[null,"$50,000 to $59,999",0,12,0,12,0,19,2,3,0,12,0,12,0,12,0,12,0,12,0,17,0,12,0,12,0,12,0,12,0,12]
[null,"$60,000 to $74,999",0,12,0,12,16,20,0,12,0,12,0,12,13,22,0,12,0,12,0,17,0,12,0,12,0,12,0,12,0,12]
[null,"$75,000 to $99,999",0,12,0,12,9,12,0,12,2,4,0,12,0,12,0,12,0,12,87,110,6,10,0,12,0,12,0,12,0,12]
[null,"$100,000 to $124,999",0,12,0,12,36,54,0,12,0,12,0,12,0,12,0,12,0,12,0,17,0,12,0,12,0,12,0,12,0,12]
[null,"$125,000 to $149,999",0,12,0,12,0,19,0,12,0,12,0,12,0,12,0,12,0,12,0,17,0,12,0,12,0,12,0,12,0,12]
[null,"$150,000 to $199,999",0,12,0,12,0,19,0,12,0,12,0,12,0,12,0,12,0,12,0,17,0,12,0,12,0,12,0,12,0,12]
[null,"$200,000 or more",0,12,0,12,0,19,0,12,0,12,0,12,0,12,0,12,0,12,0,17,0,12,0,12,0,12,0,12,0,12]
[null,"Householder 25 to 44 years:",48,25,467,119,1639,257,126,39,47,22,75,32,209,136,58,31,81,31,852,224,208,96,67,46,322,99,78,27,48,24]
[null,"Less than $10,000",7,10,92,86,63,79,4,6,0,12,5,8,0,12,0,12,3,4,82,97,0,12,0,12,0,12,7,10,0,12]
[null,"$10,000 to $14,999",0,12,40,51,63,66,0,12,0,12,0,12,0,12,0,12,0,12,0,17,0,12,3,5,10,16,4,5,0,12]
[null,"$15,000 to $19,999",0,12,0,12,52,63,0,12,0,12,0,12,0,12,0,12,0,12,74,72,0,12,0,12,0,12,0,12,9,14]
[null,"$20,000 to $24,999",0,12,0,12,50,56,0,12,0,12,1,4,0,12,1,2,0,12,0,17,0,12,0,12,0,12,0,12,0,12]
[null,"$25,000 to $29,999",0,12,0,12,39,43,0,12,0,12,0,12,0,12,0,12,0,12,0,17,0,12,0,12,0,12,0,12,0,12]
[null,"$30,000 to $34,999",0,12,0,12,64,72,0,12,2,4,4,6,0,12,2,3,0,12,77,96,3,5,0,12,0,12,0,12,4,6]
[null,"$35,000 to $39,999",3,4,26,40,28,49,0,12,0,12,4,5,0,12,0,12,0,12,0,17,0,12,0,12,0,12,0,12,0,12]
[null,"$40,000 to $44,999",0,12,36,57,56,58,0,12,0,12,0,12,0,12,9,11,0,12,0,17,0,12,0,12,0,12,0,12,0,12]
[null,"$45,000 to $49,999",0,12,0,12,131,110,5,7,0,12,0,12,0,12,0,12,0,12,88,89,15,18,0,12,15,18,0,12,0,12]
[null,"$50,000 to $59,999",2,3,14,23,128,85,4,6,0,12,15,18,0,12,3,4,2,4,0,17,0,12,6,11,12,14,14,14,6,6]
[null,"$60,000 to $74,999",2,3,44,65,188,151,12,15,1,3,4,6,18,27,1,2,0,12,141,113,7,11,0,12,29,31,7,7,0,12]
[null,"$75,000 to $99,999",17,21,91,58,374,160,21,18,12,10,13,18,0,12,9,9,15,12,151,96,56,70,9,14,18,23,31,18,14,14]
[null,"$100,000 to $124,999",9,10,36,42,216,111,34,21,22,17,16,14,17,26,2,3,17,13,137,82,36,23,15,20,41,33,0,12,2,5]
[null,"$125,000 to $149,999",2,3,52,70,119,81,6,7,5,6,11,8,0,12,7,6,36,24,0,17,68,69,31,38,87,81,7,10,6,8]
[null,"$150,000 to $199,999",0,12,10,17,47,47,16,10,5,6,0,12,69,73,2,3,4,5,14,24,15,15,0,12,76,68,5,6,0,12]
[null,"$200,000 or more",6,6,26,29,21,20,24,18,0,12,2,3,105,122,22,23,4,6,88,86,8,10,3,5,34,32,3,4,7,10]
[null,"Householder 45 to 64 years:",105,36,620,179,1925,263,336,142,105,38,118,59,515,150,95,29,137,42,752,136,350,79,125,48,345,88,202,45,219,66]
[null,"Less than $10,000",0,12,66,79,154,120,0,12,10,12,0,12,0,12,1,4,5,7,13,20,6,9,0,12,49,54,6,7,13,17]
[null,"$10,000 to $14,999",0,12,80,95,133,96,4,5,0,12,4,8,0,12,0,12,3,5,0,17,9,13,0,12,0,12,2,5,0,12]
[null,"$15,000 to $19,999",0,12,34,39,52,69,0,12,0,12,7,9,0,12,0,12,0,12,0,17,0,12,0,12,0,12,13,17,0,12]
[null,"$20,000 to $24,999",0,12,16,26,85,75,0,12,3,4,0,12,0,12,0,12,8,12,0,17,0,12,0,12,0,12,14,15,0,12]
[null,"$25,000 to $29,999",0,12,0,12,115,79,3,6,2,3,5,7,0,12,2,3,9,8,0,17,10,14,8,12,0,12,0,12,0,12]
[null,"$30,000 to $34,999",0,12,14,23,109,146,18,19,0,12,0,12,20,30,2,3,0,12,95,69,10,9,4,6,5,9,11,13,2,3]
[null,"$35,000 to $39,999",8,13,45,69,55,48,0,12,0,12,1,3,0,12,0,12,7,9,44,68,0,12,3,5,0,12,6,6,10,13]
[null,"$40,000 to $44,999",0,12,3,5,33,40,0,12,0,12,12,17,37,44,20,16,0,12,16,27,0,12,0,12,0,12,0,12,12,19]
[null,"$45,000 to $49,999",0,12,29,35,113,119,0,12,0,12,29,37,0,12,0,12,8,6,27,29,6,9,9,15,0,12,0,12,0,12]
[null,"$50,000 to $59,999",24,17,27,34,211,143,17,14,14,13,2,3,0,12,2,4,13,17,0,17,3,6,1,3,17,19,9,8,0,12]
[null,"$60,000 to $74,999",19,14,76,69,220,120,18,14,7,5,15,10,0,12,11,11,12,13,86,61,7,8,7,8,31,29,25,12,21,18]
[null,"$75,000 to $99,999",16,15,78,65,236,143,136,136,12,8,7,9,101,88,2,3,26,19,142,91,72,41,25,21,33,30,18,12,21,12]
[null,"$100,000 to $124,999",23,16,61,56,156,98,33,20,25,24,16,15,0,12,9,8,22,21,40,41,48,22,19,20,51,38,30,19,40,24]
[null,"$125,000 to $149,999",0,12,48,46,81,57,18,10,25,19,8,6,32,36,19,18,10,7,82,75,20,13,15,15,57,39,44,26,36,33]
[null,"$150,000 to $199,999",11,12,0,12,94,61,54,26,4,5,10,10,214,141,14,12,9,12,156,100,62,37,31,30,39,30,12,9,36,24]
[null,"$200,000 or more",4,6,43,42,78,76,35,24,3,5,2,3,111,87,13,7,5,7,51,53,97,57,3,5,63,42,12,9,28,19]
[null,"Householder 65 years and over:",85,26,760,198,1491,281,298,95,77,23,109,29,412,141,73,20,98,35,762,202,267,90,102,38,455,122,191,47,146,35]
[null,"Less than $10,000",2,3,57,57,78,69,0,12,2,3,16,14,0,12,3,4,0,12,119,97,19,27,21,19,34,44,12,8,0,12]
[null,"$10,000 to $14,999",9,12,0,12,26,28,62,67,4,7,5,8,0,12,1,3,0,12,81,78,10,9,0,12,0,12,0,12,0,12]
[null,"$15,000 to $19,999",3,6,90,83,89,57,12,10,3,5,8,10,50,76,0,12,9,14,82,88,4,6,0,12,0,12,7,6,8,13]
[null,"$20,000 to $24,999",3,5,43,50,183,107,32,29,3,5,6,5,0,12,5,8,2,4,35,40,6,9,0,12,12,13,11,7,0,12]
[null,"$25,000 to $29,999",3,5,67,70,193,122,3,4,4,5,5,6,0,12,0,12,15,17,68,55,9,9,8,9,16,27,28,25,12,14]
[null,"$30,000 to $34,999",3,4,63,81,29,29,7,7,0,12,2,5,71,87,6,5,4,5,12,20,22,32,0,12,30,45,8,6,13,14]
[null,"$35,000 to $39,999",2,3,31,38,194,123,4,6,2,5,7,9,0,12,5,5,7,8,43,51,5,8,15,19,76,91,11,8,9,13]
[null,"$40,000 to $44,999",2,3,66,53,42,36,3,5,4,5,2,3,0,12,0,12,2,4,0,17,11,12,3,4,0,12,11,11,5,9]
[null,"$45,000 to $49,999",0,12,54,59,91,55,6,7,4,4,3,4,0,12,1,2,3,4,13,19,0,12,0,12,25,39,12,13,18,17]
[null,"$50,000 to $59,999",8,9,41,41,162,71,23,12,9,8,8,8,131,91,8,5,17,13,28,31,0,12,3,5,14,16,26,15,16,16]
[null,"$60,000 to $74,999",13,10,35,41,123,70,34,19,11,8,5,5,57,58,9,7,7,6,23,25,19,17,13,16,39,34,24,18,19,13]
[null,"$75,000 to $99,999",17,13,58,57,97,66,26,12,7,7,13,9,0,12,11,7,10,11,72,50,31,27,15,17,62,37,13,10,14,8]
[null,"$100,000 to $124,999",14,12,89,80,35,33,22,17,4,6,20,13,89,72,17,12,20,15,103,98,49,46,13,15,43,43,10,7,4,6]
[null,"$125,000 to $149,999",0,12,6,10,39,36,14,10,16,12,0,12,14,21,6,6,0,12,0,17,31,26,2,4,0,12,8,8,5,6]
[null,"$150,000 to $199,999",4,4,0,12,0,19,20,15,2,3,7,10,0,12,1,4,0,12,40,62,18,12,0,12,38,33,8,9,12,9]
[null,"$200,000 or more",2,3,60,60,110,89,30,15,2,3,2,3,0,12,0,12,2,3,43,41,33,24,9,12,66,36,2,4,11,9]
[]
[]
[]
[]
[]
[]
[]
[]
[]
[]
[]
[]
[]
[]
[null,"B19037. AGE OF HOUSEHOLDER BY HOUSEHOLD INCOME IN THE PAST 12 MONTHS (IN 2017 INFLATION-ADJUSTED DOLLARS)"]
[null,"Universe:  HOUSEHOLDS"]
[null,"Data Set: 2013-2017 American Community Survey 5-Year Estimates"]
[]
[null,null,"Acworth",null,"Charlestown",null,"Claremont",null,"Cornish",null,"Croydon",null,"Goshen",null,"Grantham",null,"Langdon",null,"Lempster",null,"Newport",null,"Plainfield",null,"Springfield",null,"Sunapee",null,"Unity",null,"Washington"]
[null,null,"Estimate","Margin Of Error","Estimate","Margin Of Error","Estimate","Margin Of Error","Estimate","Margin Of Error","Estimate","Margin Of Error","Estimate","Margin Of Error","Estimate","Margin Of Error","Estimate","Margin Of Error","Estimate","Margin Of Error","Estimate","Margin Of Error","Estimate","Margin Of Error","Estimate","Margin Of Error","Estimate","Margin Of Error","Estimate","Margin Of Error","Estimate","Margin Of Error"]
[null,"Total:",427,62,2102,160,5567,221,722,71,274,49,271,48,1153,125,292,38,409,63,2573,202,920,83,435,74,1553,140,526,60,556,85]
[null,"Householder under 25 years:",0,11,34,41,369,150,0,11,0,11,7,10,22,35,5,8,3,4,149,83,5,7,9,14,60,61,0,11,3,5]
[null,"Less than $10,000",0,11,8,11,71,102,0,11,0,11,0,11,0,11,5,8,0,11,73,64,0,11,0,11,7,12,0,11,0,11]
[null,"$10,000 to $14,999",0,11,0,16,20,31,0,11,0,11,0,11,0,11,0,11,0,11,0,16,0,11,0,11,0,11,0,11,0,11]
[null,"$15,000 to $19,999",0,11,13,22,9,14,0,11,0,11,0,11,0,11,0,11,0,11,0,16,0,11,0,11,0,11,0,11,0,11]
[null,"$20,000 to $24,999",0,11,0,16,68,67,0,11,0,11,0,11,0,11,0,11,0,11,0,16,0,11,0,11,7,13,0,11,0,11]
[null,"$25,000 to $29,999",0,11,13,29,33,40,0,11,0,11,0,11,0,11,0,11,0,11,0,16,0,11,0,11,0,11,0,11,0,11]
[null,"$30,000 to $34,999",0,11,0,16,0,18,0,11,0,11,0,11,0,11,0,11,0,11,22,31,5,7,0,11,35,53,0,11,0,11]
[null,"$35,000 to $39,999",0,11,0,16,17,27,0,11,0,11,0,11,0,11,0,11,0,11,0,16,0,11,0,11,0,11,0,11,0,11]
[null,"$40,000 to $44,999",0,11,0,16,7,11,0,11,0,11,0,11,0,11,0,11,0,11,0,16,0,11,0,11,0,11,0,11,0,11]
[null,"$45,000 to $49,999",0,11,0,16,20,25,0,11,0,11,0,11,0,11,0,11,0,11,13,21,0,11,0,11,0,11,0,11,0,11]
[null,"$50,000 to $59,999",0,11,0,16,0,18,0,11,0,11,0,11,0,11,0,11,0,11,31,41,0,11,0,11,0,11,0,11,3,5]
[null,"$60,000 to $74,999",0,11,0,16,48,55,0,11,0,11,7,10,0,11,0,11,3,4,0,16,0,11,0,11,0,11,0,11,0,11]
[null,"$75,000 to $99,999",0,11,0,16,67,97,0,11,0,11,0,11,0,11,0,11,0,11,10,16,0,11,9,14,0,11,0,11,0,11]
[null,"$100,000 to $124,999",0,11,0,16,9,16,0,11,0,11,0,11,22,35,0,11,0,11,0,16,0,11,0,11,11,17,0,11,0,11]
[null,"$125,000 to $149,999",0,11,0,16,0,18,0,11,0,11,0,11,0,11,0,11,0,11,0,16,0,11,0,11,0,11,0,11,0,11]
[null,"$150,000 to $199,999",0,11,0,16,0,18,0,11,0,11,0,11,0,11,0,11,0,11,0,16,0,11,0,11,0,11,0,11,0,11]
[null,"$200,000 or more",0,11,0,16,0,18,0,11,0,11,0,11,0,11,0,11,0,11,0,16,0,11,0,11,0,11,0,11,0,11]
[null,"Householder 25 to 44 years:",72,24,405,106,1554,186,113,36,57,28,67,24,244,103,97,26,89,36,739,184,186,49,58,36,373,122,87,28,120,65]
[null,"Less than $10,000",0,11,13,21,64,50,4,6,0,11,3,5,0,11,0,11,0,11,41,64,0,11,7,11,0,11,0,11,0,11]
[null,"$10,000 to $14,999",2,4,0,16,75,67,3,5,0,11,0,11,0,11,0,11,9,13,14,22,0,11,3,5,0,11,0,11,0,11]
[null,"$15,000 to $19,999",0,11,36,40,10,15,0,11,0,11,0,11,0,11,0,11,0,11,0,16,0,11,0,11,0,11,3,4,0,11]
[null,"$20,000 to $24,999",0,11,25,40,146,99,0,11,0,11,7,11,0,11,0,11,0,11,31,26,0,11,0,11,73,77,0,11,0,11]
[null,"$25,000 to $29,999",0,11,0,16,45,51,10,15,0,11,2,3,0,11,0,11,4,5,0,16,0,11,0,11,0,11,0,11,0,11]
[null,"$30,000 to $34,999",0,11,37,43,30,27,0,11,0,11,3,4,0,11,6,9,0,11,12,20,0,11,8,13,10,16,6,8,0,11]
[null,"$35,000 to $39,999",3,5,42,45,67,51,7,8,2,3,0,11,0,11,0,11,6,6,28,31,6,8,0,11,18,22,0,11,0,11]
[null,"$40,000 to $44,999",10,10,0,16,97,68,0,11,3,5,0,11,0,11,1,4,0,11,0,16,9,10,0,11,0,11,0,11,0,11]
[null,"$45,000 to $49,999",10,9,0,16,80,66,0,11,1,2,9,12,17,28,0,11,7,5,43,70,0,11,0,11,31,49,26,19,0,11]
[null,"$50,000 to $59,999",5,7,18,27,163,81,3,4,6,7,8,10,0,11,0,11,0,11,151,126,19,26,13,16,10,15,0,11,4,6]
[null,"$60,000 to $74,999",11,10,97,85,227,127,23,17,12,15,7,6,54,60,24,17,4,6,95,103,19,17,9,9,79,50,17,14,22,20]
[null,"$75,000 to $99,999",10,10,128,93,344,117,3,5,20,17,18,14,32,33,18,13,29,23,202,121,35,18,11,15,59,56,15,12,15,16]
[null,"$100,000 to $124,999",4,5,9,17,92,69,37,17,2,4,5,5,104,79,24,16,12,9,62,63,27,21,0,11,54,53,7,8,16,17]
[null,"$125,000 to $149,999",4,5,0,16,20,21,13,10,8,11,3,5,0,11,10,8,0,11,60,75,24,20,4,6,39,34,5,6,19,17]
[null,"$150,000 to $199,999",0,11,0,16,85,60,10,16,3,6,2,3,18,18,8,12,3,4,0,16,18,28,0,11,0,11,8,8,0,11]
[null,"$200,000 or more",13,15,0,16,9,17,0,11,0,11,0,11,19,22,6,9,15,18,0,16,29,17,3,6,0,11,0,11,44,57]
[null,"Householder 45 to 64 years:",187,36,1035,145,2306,222,348,57,139,42,128,34,568,110,123,31,222,46,949,191,445,65,235,56,650,137,282,50,264,57]
[null,"Less than $10,000",8,10,12,22,248,155,12,11,0,11,0,11,0,11,9,13,7,7,45,43,17,15,0,11,46,59,10,14,16,18]
[null,"$10,000 to $14,999",7,5,30,45,138,86,4,6,12,12,4,4,0,11,5,5,3,5,47,49,0,11,4,6,51,61,20,18,4,5]
[null,"$15,000 to $19,999",5,5,30,35,143,80,9,8,2,4,2,3,24,34,2,4,7,6,28,32,0,11,10,10,24,31,4,5,7,6]
[null,"$20,000 to $24,999",0,11,82,70,115,97,3,5,0,11,0,11,0,11,3,4,24,21,16,24,5,7,0,11,10,15,17,18,9,8]
[null,"$25,000 to $29,999",9,11,83,62,86,55,4,5,2,3,11,14,0,11,0,11,7,8,28,31,29,30,7,9,0,11,14,15,21,20]
[null,"$30,000 to $34,999",9,10,18,29,175,78,14,22,3,5,10,12,0,11,0,11,9,7,15,25,10,11,11,13,0,11,6,7,6,6]
[null,"$35,000 to $39,999",5,6,27,44,50,48,21,21,0,11,17,14,0,11,0,11,2,5,47,45,21,28,4,6,11,18,0,11,17,16]
[null,"$40,000 to $44,999",8,10,99,83,90,57,0,11,5,6,1,3,69,76,3,4,12,13,38,36,13,12,9,14,60,67,19,15,10,8]
[null,"$45,000 to $49,999",2,3,27,32,101,47,9,8,2,4,2,3,0,11,2,3,6,6,82,63,12,19,14,16,23,27,4,6,3,5]
[null,"$50,000 to $59,999",16,9,125,87,256,105,6,6,13,13,12,13,11,16,8,6,17,16,55,67,28,18,3,4,34,51,7,7,10,9]
[null,"$60,000 to $74,999",24,17,116,91,213,92,34,23,17,13,32,18,98,65,4,5,32,23,68,48,31,25,6,9,99,59,44,17,23,11]
[null,"$75,000 to $99,999",35,20,181,79,338,125,70,30,20,14,18,11,44,43,37,19,41,23,134,78,64,25,73,37,105,67,44,23,62,30]
[null,"$100,000 to $124,999",19,10,66,59,125,70,69,23,10,10,9,7,98,91,20,16,30,19,27,31,74,31,32,21,96,51,42,27,45,37]
[null,"$125,000 to $149,999",11,9,99,72,132,77,31,19,27,20,4,4,95,78,13,11,4,5,129,66,66,33,45,28,76,57,42,27,20,12]
[null,"$150,000 to $199,999",9,10,24,28,72,44,29,16,20,20,0,11,35,32,6,9,18,18,163,98,42,24,4,6,15,26,5,6,3,4]
[null,"$200,000 or more",20,12,16,27,24,27,33,20,6,10,6,10,94,61,11,8,3,4,27,31,33,21,13,13,0,11,4,6,8,8]
[null,"Householder 65 years and over:",168,47,628,120,1338,183,261,49,78,29,69,21,319,93,67,16,95,30,736,159,284,65,133,43,470,92,157,32,169,30]
[null,"Less than $10,000",2,3,30,33,28,27,3,5,1,3,2,3,0,11,2,3,0,11,42,68,5,7,0,11,0,11,3,5,5,5]
[null,"$10,000 to $14,999",4,4,92,64,153,72,3,4,2,3,0,11,0,11,2,3,7,12,11,18,0,11,3,7,16,21,6,7,14,17]
[null,"$15,000 to $19,999",29,24,123,84,97,47,17,16,5,7,0,11,10,15,2,3,9,7,85,80,0,11,6,10,38,31,0,11,11,6]
[null,"$20,000 to $24,999",13,12,30,34,116,55,11,10,16,13,6,5,0,11,4,5,15,15,49,40,11,11,3,4,46,44,24,18,12,7]
[null,"$25,000 to $29,999",12,10,35,57,145,75,12,17,4,4,10,11,51,52,7,7,0,11,87,66,39,27,17,18,59,59,15,10,10,9]
[null,"$30,000 to $34,999",4,6,42,39,142,81,30,22,3,4,9,11,12,18,0,11,14,10,70,49,11,11,7,13,43,39,7,6,17,17]
[null,"$35,000 to $39,999",17,13,71,71,32,28,19,12,10,12,1,4,0,11,2,4,3,4,37,35,15,13,3,5,0,11,3,4,11,7]
[null,"$40,000 to $44,999",5,5,0,16,140,94,14,11,6,6,6,5,12,19,3,4,10,8,12,20,5,7,6,8,10,16,8,6,5,6]
[null,"$45,000 to $49,999",11,10,26,29,117,58,19,12,0,11,9,9,9,15,7,6,9,14,47,34,21,25,0,11,22,18,13,9,6,6]
[null,"$50,000 to $59,999",21,15,56,49,107,59,27,20,8,8,0,11,32,29,15,9,3,4,53,62,18,15,15,17,26,19,15,10,20,11]
[null,"$60,000 to $74,999",29,18,42,51,97,58,30,28,5,8,12,8,0,11,7,6,12,14,142,106,52,31,21,20,55,42,14,10,18,9]
[null,"$75,000 to $99,999",6,6,81,58,69,43,26,13,14,13,8,10,62,50,11,8,6,6,59,49,44,27,38,27,33,31,13,10,9,7]
[null,"$100,000 to $124,999",11,9,0,16,43,34,7,7,3,6,2,3,34,28,2,4,7,7,15,24,13,11,8,12,26,19,24,16,12,8]
[null,"$125,000 to $149,999",0,11,0,16,27,32,23,21,0,11,4,4,58,50,3,4,0,11,0,16,0,11,4,6,49,33,6,9,12,9]
[null,"$150,000 to $199,999",2,3,0,16,15,24,7,7,0,11,0,11,12,17,0,11,0,11,0,16,20,12,0,11,0,11,6,7,3,4]
[null,"$200,000 or more",2,3,0,16,10,17,13,9,1,2,0,11,27,29,0,11,0,11,27,31,30,32,2,4,47,34,0,11,4,5]
[]
[]
[]
[]
[]
[]
[]
[]
[]
[]
[]
[]
[]
[]
[null,"B19037. AGE OF HOUSEHOLDER BY HOUSEHOLD INCOME IN THE PAST 12 MONTHS (IN 2012 INFLATION-ADJUSTED DOLLARS)"]
[null,"Universe:  HOUSEHOLDS"]
[null,"Data Set: 2008-2012 American Community Survey 5-Year Estimates"]
[]
[null,null,"Acworth",null,"Charlestown",null,"Claremont",null,"Cornish",null,"Croydon",null,"Goshen",null,"Grantham",null,"Langdon",null,"Lempster",null,"Newport",null,"Plainfield",null,"Springfield",null,"Sunapee",null,"Unity",null,"Washington"]
[null,null,"Estimate","Margin Of Error","Estimate","Margin Of Error","Estimate","Margin Of Error","Estimate","Margin Of Error","Estimate","Margin Of Error","Estimate","Margin Of Error","Estimate","Margin Of Error","Estimate","Margin Of Error","Estimate","Margin Of Error","Estimate","Margin Of Error","Estimate","Margin Of Error","Estimate","Margin Of Error","Estimate","Margin Of Error","Estimate","Margin Of Error","Estimate","Margin Of Error"]
[null,"Total:",294,54,2310,107,5721,232,657,69,289,43,331,48,1119,80,278,45,427,58,2684,193,920,76,497,60,1458,100,599,58,465,69]
[null,"Householder under 25 years:",15,14,0,16,349,117,11,13,0,11,9,10,0,11,0,11,2,4,104,73,0,11,0,11,79,64,22,14,0,11]
[null,"Less than $10,000",0,11,0,16,111,84,0,11,0,11,5,7,0,11,0,11,0,11,28,45,0,11,0,11,31,49,0,11,0,11]
[null,"$10,000 to $14,999",0,11,0,16,24,28,0,11,0,11,0,11,0,11,0,11,0,11,37,38,0,11,0,11,0,11,0,11,0,11]
[null,"$15,000 to $19,999",0,11,0,16,7,12,0,11,0,11,0,11,0,11,0,11,0,11,0,16,0,11,0,11,9,15,0,11,0,11]
[null,"$20,000 to $24,999",0,11,0,16,38,48,0,11,0,11,0,11,0,11,0,11,0,11,3,7,0,11,0,11,27,40,0,11,0,11]
[null,"$25,000 to $29,999",0,11,0,16,63,55,3,4,0,11,0,11,0,11,0,11,0,11,0,16,0,11,0,11,0,11,5,9,0,11]
[null,"$30,000 to $34,999",9,12,0,16,8,16,0,11,0,11,0,11,0,11,0,11,0,11,0,16,0,11,0,11,7,11,0,11,0,11]
[null,"$35,000 to $39,999",4,6,0,16,34,32,0,11,0,11,0,11,0,11,0,11,2,4,0,16,0,11,0,11,0,11,4,6,0,11]
[null,"$40,000 to $44,999",0,11,0,16,31,44,0,11,0,11,0,11,0,11,0,11,0,11,0,16,0,11,0,11,0,11,0,11,0,11]
[null,"$45,000 to $49,999",0,11,0,16,0,18,0,11,0,11,0,11,0,11,0,11,0,11,26,44,0,11,0,11,0,11,10,11,0,11]
[null,"$50,000 to $59,999",2,4,0,16,0,18,0,11,0,11,4,7,0,11,0,11,0,11,10,18,0,11,0,11,0,11,3,5,0,11]
[null,"$60,000 to $74,999",0,11,0,16,10,16,8,12,0,11,0,11,0,11,0,11,0,11,0,16,0,11,0,11,0,11,0,11,0,11]
[null,"$75,000 to $99,999",0,11,0,16,23,36,0,11,0,11,0,11,0,11,0,11,0,11,0,16,0,11,0,11,5,9,0,11,0,11]
[null,"$100,000 to $124,999",0,11,0,16,0,18,0,11,0,11,0,11,0,11,0,11,0,11,0,16,0,11,0,11,0,11,0,11,0,11]
[null,"$125,000 to $149,999",0,11,0,16,0,18,0,11,0,11,0,11,0,11,0,11,0,11,0,16,0,11,0,11,0,11,0,11,0,11]
[null,"$150,000 to $199,999",0,11,0,16,0,18,0,11,0,11,0,11,0,11,0,11,0,11,0,16,0,11,0,11,0,11,0,11,0,11]
[null,"$200,000 or more",0,11,0,16,0,18,0,11,0,11,0,11,0,11,0,11,0,11,0,16,0,11,0,11,0,11,0,11,0,11]
[null,"Householder 25 to 44 years:",80,37,689,132,1910,169,147,52,81,30,72,30,300,68,101,42,149,44,806,161,207,55,211,51,324,89,144,51,107,40]
[null,"Less than $10,000",0,11,52,78,86,68,0,11,0,11,0,11,0,11,0,11,0,11,151,130,7,11,0,11,8,13,0,11,0,11]
[null,"$10,000 to $14,999",0,11,0,16,193,139,8,9,0,11,6,9,0,11,2,3,0,11,41,47,0,11,0,11,0,11,3,5,0,11]
[null,"$15,000 to $19,999",0,11,58,65,67,46,0,11,6,7,0,11,0,11,0,11,0,11,44,37,0,11,0,11,0,11,0,11,10,9]
[null,"$20,000 to $24,999",0,11,0,16,45,46,10,15,2,5,0,11,0,11,7,9,4,6,36,39,7,10,0,11,31,40,0,11,6,6]
[null,"$25,000 to $29,999",6,9,0,16,137,93,3,5,0,11,2,4,0,11,0,11,7,10,0,16,14,23,0,11,0,11,6,10,0,11]
[null,"$30,000 to $34,999",0,11,24,28,147,86,0,11,0,11,0,11,19,30,2,3,3,6,25,39,0,11,4,7,0,11,18,19,4,6]
[null,"$35,000 to $39,999",0,11,70,69,137,106,0,11,8,11,20,15,12,19,0,11,3,4,59,51,0,11,12,18,4,7,0,11,13,16]
[null,"$40,000 to $44,999",5,9,18,29,33,32,4,7,0,11,0,11,12,20,0,11,20,15,86,89,0,11,13,17,0,11,10,11,0,11]
[null,"$45,000 to $49,999",0,11,0,16,87,73,0,11,0,11,3,5,21,24,11,9,0,11,81,84,0,11,0,11,16,24,26,38,13,11]
[null,"$50,000 to $59,999",13,13,131,92,243,127,9,11,0,11,14,19,0,11,0,11,21,21,40,49,7,11,21,18,49,55,7,9,13,18]
[null,"$60,000 to $74,999",16,19,96,57,189,92,39,25,15,14,1,4,17,28,13,18,33,27,37,46,4,6,44,29,49,47,29,18,10,9]
[null,"$75,000 to $99,999",28,17,151,87,250,100,27,23,17,12,23,21,58,51,52,35,45,27,175,128,32,22,46,27,104,61,13,13,19,14]
[null,"$100,000 to $124,999",12,19,64,69,185,100,24,20,33,20,0,11,37,35,2,4,6,8,31,37,54,49,21,19,11,13,28,20,9,13]
[null,"$125,000 to $149,999",0,11,13,24,48,38,23,21,0,11,0,11,73,45,6,5,7,11,0,16,29,21,33,21,27,29,0,11,3,4]
[null,"$150,000 to $199,999",0,11,12,20,36,43,0,11,0,11,0,11,30,26,3,4,0,11,0,16,34,22,17,21,8,15,4,6,5,5]
[null,"$200,000 or more",0,11,0,16,27,33,0,11,0,11,3,4,21,17,3,6,0,11,0,16,19,17,0,11,17,23,0,11,2,4]
[null,"Householder 45 to 64 years:",131,36,1118,166,2147,165,355,57,145,31,156,34,492,74,112,31,194,34,1123,131,498,79,177,50,624,120,308,44,184,37]
[null,"Less than $10,000",11,11,39,38,139,83,13,10,4,8,4,7,9,15,6,9,12,11,74,51,0,11,17,18,0,11,0,11,11,18]
[null,"$10,000 to $14,999",11,9,14,22,122,71,3,4,3,5,0,11,0,11,4,4,9,7,28,33,0,11,0,11,6,11,6,6,6,6]
[null,"$15,000 to $19,999",5,8,0,16,90,58,5,6,0,11,7,9,0,11,5,5,0,11,49,44,9,11,6,9,4,7,7,8,20,17]
[null,"$20,000 to $24,999",20,20,82,62,59,36,23,21,6,9,0,11,7,10,0,11,12,16,30,34,9,10,4,7,0,11,0,11,16,13]
[null,"$25,000 to $29,999",0,11,71,64,146,82,17,16,8,7,6,6,6,8,2,3,3,4,0,16,9,10,0,11,0,11,28,22,6,6]
[null,"$30,000 to $34,999",24,20,68,64,102,73,13,11,9,8,7,6,0,11,9,10,3,4,18,22,39,29,2,4,28,31,18,15,10,8]
[null,"$35,000 to $39,999",3,5,92,93,163,85,9,8,2,3,9,9,57,37,11,15,9,7,36,51,8,10,19,17,55,51,9,7,0,11]
[null,"$40,000 to $44,999",3,5,74,73,128,64,18,15,9,9,9,7,7,10,0,11,19,14,25,28,20,18,0,11,14,23,23,15,3,5]
[null,"$45,000 to $49,999",0,11,41,38,115,86,9,14,7,6,11,12,18,27,9,14,11,10,77,54,10,15,14,15,10,14,16,14,3,4]
[null,"$50,000 to $59,999",15,12,141,78,114,60,29,19,4,5,19,14,14,14,8,8,16,10,189,103,32,22,15,14,43,36,51,27,22,16]
[null,"$60,000 to $74,999",16,15,237,108,289,89,35,19,14,9,20,13,61,34,22,14,16,10,167,70,44,29,18,14,99,53,39,18,17,10]
[null,"$75,000 to $99,999",11,11,128,73,285,99,77,23,32,18,23,12,106,49,11,8,45,24,190,94,74,39,18,14,47,49,70,29,17,12]
[null,"$100,000 to $124,999",5,5,122,74,175,76,31,19,28,16,14,8,74,40,10,10,24,13,123,90,86,51,26,17,77,41,33,20,18,15]
[null,"$125,000 to $149,999",0,11,9,15,131,75,36,19,9,10,17,16,63,31,13,12,0,11,49,51,56,34,28,22,105,62,5,7,7,6]
[null,"$150,000 to $199,999",7,11,0,16,72,51,26,16,0,11,5,8,25,25,0,11,4,5,46,41,32,21,8,12,91,73,0,11,4,5]
[null,"$200,000 or more",0,11,0,16,17,21,11,9,10,9,5,7,45,29,2,3,11,12,22,28,70,39,2,6,45,35,3,4,24,18]
[null,"Householder 65 years and over:",68,27,503,105,1315,150,144,43,63,24,94,28,327,60,65,25,82,32,651,136,215,54,109,33,431,111,125,35,174,35]
[null,"Less than $10,000",4,5,42,35,84,52,7,8,6,7,4,6,0,11,0,11,4,6,40,37,0,11,3,4,0,11,3,4,9,9]
[null,"$10,000 to $14,999",0,11,57,47,196,76,8,14,18,19,10,8,20,24,0,11,8,13,162,70,0,11,5,7,7,12,6,6,6,7]
[null,"$15,000 to $19,999",0,11,125,67,137,69,3,4,2,3,1,4,9,13,2,3,13,15,32,30,0,11,8,7,50,50,17,11,9,9]
[null,"$20,000 to $24,999",8,9,75,60,145,70,11,10,2,3,20,17,7,10,5,5,18,13,0,16,20,13,12,11,24,27,8,8,0,11]
[null,"$25,000 to $29,999",7,10,31,29,72,44,8,10,16,14,6,6,0,11,5,6,7,9,47,35,15,13,9,14,9,15,28,21,22,19]
[null,"$30,000 to $34,999",3,4,52,59,140,74,8,8,4,4,3,4,6,9,10,12,0,11,49,45,20,16,10,9,29,28,2,4,13,10]
[null,"$35,000 to $39,999",0,11,9,16,81,44,0,11,1,4,0,11,31,29,10,11,3,6,37,35,13,15,2,3,0,11,3,4,10,8]
[null,"$40,000 to $44,999",3,4,39,53,84,41,22,16,0,11,14,11,14,13,0,11,0,11,115,85,21,27,4,6,0,11,3,4,8,8]
[null,"$45,000 to $49,999",8,10,25,29,67,44,0,11,0,11,0,11,17,18,3,4,7,8,36,33,0,11,11,12,24,29,0,11,18,19]
[null,"$50,000 to $59,999",18,16,20,22,61,47,9,8,2,3,6,6,30,20,4,7,10,13,29,31,11,17,0,11,41,42,15,14,9,7]
[null,"$60,000 to $74,999",10,11,0,16,82,56,24,18,3,5,7,9,47,33,15,17,3,4,25,28,23,17,27,20,66,79,22,20,27,14]
[null,"$75,000 to $99,999",4,7,28,29,61,39,16,15,6,7,9,8,30,24,8,7,0,11,11,18,17,15,11,12,63,43,14,11,17,12]
[null,"$100,000 to $124,999",3,4,0,16,73,57,18,16,3,6,2,3,46,36,0,11,9,13,11,17,39,32,2,5,56,52,4,5,5,8]
[null,"$125,000 to $149,999",0,11,0,16,9,15,2,5,0,11,0,11,34,32,3,4,0,11,10,18,17,15,0,11,7,11,0,11,15,18]
[null,"$150,000 to $199,999",0,11,0,16,11,17,0,11,0,11,12,14,22,28,0,11,0,11,35,34,7,12,0,11,11,16,0,11,0,11]
[null,"$200,000 or more",0,11,0,16,12,21,8,10,0,11,0,11,14,14,0,11,0,11,12,19,12,13,5,7,44,37,0,11,6,6]

{"sheet":"DisabilityByAge","index":27,"n_rows":72,"n_cols":15,"rows_kept":72,"cut":false,"hidden":true,"merged":[[51,11,51,12],[51,13,51,14],[28,13,28,14],[51,3,51,4],[51,5,51,6],[51,7,51,8],[51,9,51,10],[28,3,28,4],[28,5,28,6],[28,7,28,8],[28,9,28,10],[28,11,28,12]]}
[]
[]
[]
[]
[null,{"$f":"CntyDataLink!A20","v":"Grantham"}]
[null,"SOCIAL CHARACTERISTICS"]
[]
[null,"Disabilities By Age"]
[null,null,"Universe: Civilian Non-institutionalized Population"]
[]
[]
[]
[]
[]
[]
[]
[]
[]
[]
[]
[]
[]
[]
[]
[]
[]
[]
[]
[null,null,null,"Under 5",null,"5 to 17 years",null,"18 to 34 years",null,"35 to 64 years",null,"65 to 74 years",null,"75 years and older"]
[null,null,null,"Estimate","Margin of Error","Estimate","Margin of Error","Estimate","Margin of Error","Estimate","Margin of Error","Estimate","Margin of Error","Estimate","Margin of Error"]
[null,"Total ",null,{"$f":"CntyDataLink!D112","v":0},{"$f":"CntyDataLink!E112","v":16.970562748477139},{"$f":"CntyDataLink!J112","v":758},{"$f":"CntyDataLink!K112","v":203.29535164385831},{"$f":"CntyDataLink!P112","v":298},{"$f":"CntyDataLink!Q112","v":140.52046114356443},{"$f":"CntyDataLink!V112","v":1474},{"$f":"CntyDataLink!W112","v":234.01922997907673},{"$f":"CntyDataLink!AB112","v":417},{"$f":"CntyDataLink!AC112","v":165.8493292117879},{"$f":"CntyDataLink!AH112","v":447},{"$f":"CntyDataLink!AI112","v":172.73389939441535}]
[]
[null,"With a disability:",null,{"$f":"CntyDataLink!F112","v":0},{"$f":"CntyDataLink!G112","v":16.970562748477139},{"$f":"CntyDataLink!L112","v":0},{"$f":"CntyDataLink!M112","v":16.970562748477139},{"$f":"CntyDataLink!R112","v":0},{"$f":"CntyDataLink!S112","v":16.970562748477139},{"$f":"CntyDataLink!X112","v":44},{"$f":"CntyDataLink!Y112","v":63.150613615387776},{"$f":"CntyDataLink!AD112","v":100},{"$f":"CntyDataLink!AE112","v":81.859635963031252},{"$f":"CntyDataLink!AJ112","v":145},{"$f":"CntyDataLink!AK112","v":139.08630414242805}]
[]
[]
[]
[null,"Type of disability"]
[null,null,"Hearing disability",{"$f":"CntyDataLink!AN112","v":0},{"$f":"CntyDataLink!AO112","v":16.970562748477139},{"$f":"CntyDataLink!AP112","v":0},{"$f":"CntyDataLink!AQ112","v":16.970562748477139},{"$f":"CntyDataLink!AR112","v":0},{"$f":"CntyDataLink!AS112","v":16.970562748477139},{"$f":"CntyDataLink!AT112","v":44},{"$f":"CntyDataLink!AU112","v":63.150613615387776},{"$f":"CntyDataLink!AV112","v":82},{"$f":"CntyDataLink!AW112","v":76.478755219995577},{"$f":"CntyDataLink!AX112","v":109},{"$f":"CntyDataLink!AY112","v":124.57929201917949}]
[null,null,"Visual disability",{"$f":"CntyDataLink!AZ112","v":0},{"$f":"CntyDataLink!BA112","v":16.970562748477139},{"$f":"CntyDataLink!BB112","v":0},{"$f":"CntyDataLink!BC112","v":16.970562748477139},{"$f":"CntyDataLink!BD112","v":0},{"$f":"CntyDataLink!BE112","v":16.970562748477139},{"$f":"CntyDataLink!BF112","v":0},{"$f":"CntyDataLink!BG112","v":16.970562748477139},{"$f":"CntyDataLink!BH112","v":18},{"$f":"CntyDataLink!BI112","v":29.546573405388315},{"$f":"CntyDataLink!BJ112","v":0},{"$f":"CntyDataLink!BK112","v":16.970562748477139}]
[null,null,"Cognitive disability","NA","NA",{"$f":"CntyDataLink!BL112","v":0},{"$f":"CntyDataLink!BM112","v":16.970562748477139},{"$f":"CntyDataLink!BN112","v":0},{"$f":"CntyDataLink!BO112","v":16.970562748477139},{"$f":"CntyDataLink!BP112","v":0},{"$f":"CntyDataLink!BQ112","v":16.970562748477139},{"$f":"CntyDataLink!BR112","v":48},{"$f":"CntyDataLink!BS112","v":69.050706006528273},{"$f":"CntyDataLink!BT112","v":0},{"$f":"CntyDataLink!BU112","v":16.970562748477139}]
[null,null,"Ambulatory disability","NA","NA",{"$f":"CntyDataLink!BV112","v":0},{"$f":"CntyDataLink!BW112","v":16.970562748477139},{"$f":"CntyDataLink!BX112","v":0},{"$f":"CntyDataLink!BY112","v":16.970562748477139},{"$f":"CntyDataLink!BZ112","v":0},{"$f":"CntyDataLink!CA112","v":16.970562748477139},{"$f":"CntyDataLink!CB112","v":36},{"$f":"CntyDataLink!CC112","v":38.897300677553446},{"$f":"CntyDataLink!CD112","v":36},{"$f":"CntyDataLink!CE112","v":64.132674979295857}]
[null,null,"Self-care disability","NA","NA",{"$f":"CntyDataLink!CF112","v":0},{"$f":"CntyDataLink!CG112","v":16.970562748477139},{"$f":"CntyDataLink!CH112","v":0},{"$f":"CntyDataLink!CI112","v":16.970562748477139},{"$f":"CntyDataLink!CJ112","v":0},{"$f":"CntyDataLink!CK112","v":16.970562748477139},{"$f":"CntyDataLink!CL112","v":0},{"$f":"CntyDataLink!CM112","v":16.970562748477139},{"$f":"CntyDataLink!CN112","v":0},{"$f":"CntyDataLink!CO112","v":16.970562748477139}]
[null,null,"Independent living disability","NA","NA","NA","NA",{"$f":"CntyDataLink!CP112","v":0},{"$f":"CntyDataLink!CQ112","v":15.556349186104045},{"$f":"CntyDataLink!CR112","v":14},{"$f":"CntyDataLink!CS112","v":15},{"$f":"CntyDataLink!CT112","v":12},{"$f":"CntyDataLink!CU112","v":21.095023109728988},{"$f":"CntyDataLink!CV112","v":50},{"$f":"CntyDataLink!CW112","v":49.365980188789933}]
[]
[null,"With two or more types of disability:",null,{"$f":"CntyDataLink!CZ112","v":0},{"$f":"CntyDataLink!DA112","v":12},{"$f":"CntyDataLink!DD112","v":0},{"$f":"CntyDataLink!DE112","v":12},{"$f":"CntyDataLink!DH112","v":102},{"$f":"CntyDataLink!DI112","v":98},{"$f":"CntyDataLink!DL112","v":0},{"$f":"CntyDataLink!DM112","v":0},{"$f":"CntyDataLink!DP112","v":0},{"$f":"CntyDataLink!DQ112","v":0},{"$f":"CntyDataLink!DT112","v":0},{"$f":"CntyDataLink!DU112","v":0}]
[]
[null,"No disability",null,{"$f":"CntyDataLink!H112","v":0},{"$f":"CntyDataLink!I112","v":16.970562748477139},{"$f":"CntyDataLink!N112","v":758},{"$f":"CntyDataLink!O112","v":203.29535164385831},{"$f":"CntyDataLink!T112","v":298},{"$f":"CntyDataLink!U112","v":140.52046114356443},{"$f":"CntyDataLink!Z112","v":1430},{"$f":"CntyDataLink!AA112","v":240.05207768315609},{"$f":"CntyDataLink!AF112","v":317},{"$f":"CntyDataLink!AG112","v":151.38031576133008},{"$f":"CntyDataLink!AL112","v":302},{"$f":"CntyDataLink!AM112","v":133.64505228402584}]
[null,"Source: 2018-2022 American Community Survey Tables B18101;  B18102; B18103; B18104; B18105; B18106; and B18107."]
[null,"NA indicates that the American Community Survey does not calculate the number for that disability."]
[null,"Percent of Population with Disabilities"]
[]
[null,null,null,"Under 5",null,"5 to 17 years",null,"18 to 34 years",null,"35 to 64 years",null,"65 to 74 years",null,"75 years and older"]
[]
[null,"With a disability:",null,{"$f":"D33/D$31","v":{"$error":"#DIV/0!"}},null,{"$f":"F33/F$31","v":0},null,{"$f":"H33/H$31","v":0},null,{"$f":"J33/J$31","v":2.9850746268656716E-2},null,{"$f":"L33/L$31","v":0.23980815347721823},null,{"$f":"N33/N$31","v":0.32438478747203581}]
[]
[null,"Type of disability"]
[null,null,"Hearing disability",{"$f":"D38/D$31","v":{"$error":"#DIV/0!"}},null,{"$f":"F38/F$31","v":0},null,{"$f":"H38/H$31","v":0},null,2.9850746268656716E-2,null,{"$f":"L38/L$31","v":0.19664268585131894},null,{"$f":"N38/N$31","v":0.24384787472035793}]
[null,null,"Visual disability",{"$f":"D39/D$31","v":{"$error":"#DIV/0!"}},null,{"$f":"F39/F$31","v":0},null,0,null,0,null,4.3165467625899283E-2,null,0]
[null,null,"Cognitive disability","NA",null,{"$f":"F40/F$31","v":0},null,0,null,0,null,0.11510791366906475,null,0]
[null,null,"Ambulatory disability","NA",null,{"$f":"F41/F$31","v":0},null,0,null,0,null,8.6330935251798566E-2,null,8.0536912751677847E-2]
[null,null,"Self-care disability","NA",null,{"$f":"F42/F$31","v":0},null,0,null,0,null,0,null,0]
[null,null,"Independent living disability","NA",null,"NA",null,0,null,9.497964721845319E-3,null,2.8776978417266189E-2,null,0.11185682326621924]
[]
[]
[]
[null,"No disability",null,{"$f":"D47/D$31","v":{"$error":"#DIV/0!"}},null,{"$f":"F47/F$31","v":1},null,{"$f":"H47/H$31","v":1},null,{"$f":"J47/J$31","v":0.97014925373134331},null,{"$f":"L47/L$31","v":0.76019184652278182},null,{"$f":"N47/N$31","v":0.67561521252796419}]
[]
[]
[null,"Source: 2018-2022 American Community Survey Tables B18101;  B18102; B18103; B18104; B18105; B18106; and B18107."]
[null,"NA indicates that the American Community Survey does not calculate the number for that disability."]
[]
[null,"Data from the American Community Survey are estimates."]

{"sheet":"DisabilityByAgePrior5YearEst","index":28,"n_rows":72,"n_cols":15,"rows_kept":72,"cut":false,"hidden":true,"merged":[[51,13,51,14],[28,3,28,4],[28,5,28,6],[28,7,28,8],[28,9,28,10],[28,11,28,12],[28,13,28,14],[51,3,51,4],[51,5,51,6],[51,7,51,8],[51,9,51,10],[51,11,51,12]]}
[]
[]
[]
[]
[null,{"$f":"CntyDataLink!A20","v":"Grantham"}]
[null,"SOCIAL CHARACTERISTICS"]
[]
[null,"Disabilities By Age"]
[null,null,"Universe: Civilian Non-institutionalized Population"]
[]
[]
[]
[]
[]
[]
[]
[]
[]
[]
[]
[]
[]
[]
[]
[]
[]
[]
[]
[null,null,null,"Under 5",null,"5 to 17 years",null,"18 to 34 years",null,"35 to 64 years",null,"65 to 74 years",null,"75 years and older"]
[null,null,null,"Estimate","Margin of Error","Estimate","Margin of Error","Estimate","Margin of Error","Estimate","Margin of Error","Estimate","Margin of Error","Estimate","Margin of Error"]
[null,"Total ",null,{"$f":"CntyDataLinkPrior5YearEstimates!D112","v":100},{"$f":"CntyDataLinkPrior5YearEstimates!E112","v":80.212218520621903},{"$f":"CntyDataLinkPrior5YearEstimates!J112","v":513},{"$f":"CntyDataLinkPrior5YearEstimates!K112","v":222.71955459725578},{"$f":"CntyDataLinkPrior5YearEstimates!P112","v":320},{"$f":"CntyDataLinkPrior5YearEstimates!Q112","v":100.65783625729296},{"$f":"CntyDataLinkPrior5YearEstimates!V112","v":1428},{"$f":"CntyDataLinkPrior5YearEstimates!W112","v":154.67385040788247},{"$f":"CntyDataLinkPrior5YearEstimates!AB112","v":258},{"$f":"CntyDataLinkPrior5YearEstimates!AC112","v":88.391176030189797},{"$f":"CntyDataLinkPrior5YearEstimates!AH112","v":314},{"$f":"CntyDataLinkPrior5YearEstimates!AI112","v":101.6070863670443}]
[]
[null,"With a disability:",null,{"$f":"CntyDataLinkPrior5YearEstimates!F112","v":0},{"$f":"CntyDataLinkPrior5YearEstimates!G112","v":15.556349186104045},{"$f":"CntyDataLinkPrior5YearEstimates!L112","v":44},{"$f":"CntyDataLinkPrior5YearEstimates!M112","v":54.12947441089743},{"$f":"CntyDataLinkPrior5YearEstimates!R112","v":0},{"$f":"CntyDataLinkPrior5YearEstimates!S112","v":15.556349186104045},{"$f":"CntyDataLinkPrior5YearEstimates!X112","v":176},{"$f":"CntyDataLinkPrior5YearEstimates!Y112","v":104.7377677822093},{"$f":"CntyDataLinkPrior5YearEstimates!AD112","v":41},{"$f":"CntyDataLinkPrior5YearEstimates!AE112","v":48.270073544588683},{"$f":"CntyDataLinkPrior5YearEstimates!AJ112","v":94},{"$f":"CntyDataLinkPrior5YearEstimates!AK112","v":72.73238618387272}]
[]
[null,"With one disability:",null,{"$f":"CntyDataLinkPrior5YearEstimates!CX112","v":13},{"$f":"CntyDataLinkPrior5YearEstimates!CY112","v":19},{"$f":"CntyDataLinkPrior5YearEstimates!DB112","v":145},{"$f":"CntyDataLinkPrior5YearEstimates!DC112","v":108},{"$f":"CntyDataLinkPrior5YearEstimates!DF112","v":51},{"$f":"CntyDataLinkPrior5YearEstimates!DG112","v":49},{"$f":"CntyDataLinkPrior5YearEstimates!DJ112","v":751},{"$f":"CntyDataLinkPrior5YearEstimates!DK112","v":211},{"$f":"CntyDataLinkPrior5YearEstimates!DN112","v":0},{"$f":"CntyDataLinkPrior5YearEstimates!DO112","v":0},{"$f":"CntyDataLinkPrior5YearEstimates!DR112","v":0},{"$f":"CntyDataLinkPrior5YearEstimates!DS112","v":0}]
[]
[null,"Type of disability"]
[null,null,"Hearing disability",{"$f":"CntyDataLinkPrior5YearEstimates!AN112","v":0},{"$f":"CntyDataLinkPrior5YearEstimates!AO112","v":15.556349186104045},{"$f":"CntyDataLinkPrior5YearEstimates!AP112","v":31},{"$f":"CntyDataLinkPrior5YearEstimates!AQ112","v":50.219518117958877},{"$f":"CntyDataLinkPrior5YearEstimates!AR112","v":0},{"$f":"CntyDataLinkPrior5YearEstimates!AS112","v":15.556349186104045},{"$f":"CntyDataLinkPrior5YearEstimates!AT112","v":79},{"$f":"CntyDataLinkPrior5YearEstimates!AU112","v":71.847059786744225},{"$f":"CntyDataLinkPrior5YearEstimates!AV112","v":0},{"$f":"CntyDataLinkPrior5YearEstimates!AW112","v":15.556349186104045},{"$f":"CntyDataLinkPrior5YearEstimates!AX112","v":84},{"$f":"CntyDataLinkPrior5YearEstimates!AY112","v":70.837842993699354}]
[null,null,"Visual disability",{"$f":"CntyDataLinkPrior5YearEstimates!AZ112","v":0},{"$f":"CntyDataLinkPrior5YearEstimates!BA112","v":15.556349186104045},{"$f":"CntyDataLinkPrior5YearEstimates!BB112","v":31},{"$f":"CntyDataLinkPrior5YearEstimates!BC112","v":50.219518117958877},{"$f":"CntyDataLinkPrior5YearEstimates!BD112","v":0},{"$f":"CntyDataLinkPrior5YearEstimates!BE112","v":15.556349186104045},{"$f":"CntyDataLinkPrior5YearEstimates!BF112","v":0},{"$f":"CntyDataLinkPrior5YearEstimates!BG112","v":15.556349186104045},{"$f":"CntyDataLinkPrior5YearEstimates!BH112","v":0},{"$f":"CntyDataLinkPrior5YearEstimates!BI112","v":15.556349186104045},{"$f":"CntyDataLinkPrior5YearEstimates!BJ112","v":55},{"$f":"CntyDataLinkPrior5YearEstimates!BK112","v":66.483080554378645}]
[null,null,"Cognitive disability","NA","NA",{"$f":"CntyDataLinkPrior5YearEstimates!BL112","v":44},{"$f":"CntyDataLinkPrior5YearEstimates!BM112","v":54.12947441089743},{"$f":"CntyDataLinkPrior5YearEstimates!BN112","v":0},{"$f":"CntyDataLinkPrior5YearEstimates!BO112","v":15.556349186104045},{"$f":"CntyDataLinkPrior5YearEstimates!BP112","v":73},{"$f":"CntyDataLinkPrior5YearEstimates!BQ112","v":68.8839603971781},{"$f":"CntyDataLinkPrior5YearEstimates!BR112","v":0},{"$f":"CntyDataLinkPrior5YearEstimates!BS112","v":15.556349186104045},{"$f":"CntyDataLinkPrior5YearEstimates!BT112","v":52},{"$f":"CntyDataLinkPrior5YearEstimates!BU112","v":65.924198895398035}]
[null,null,"Ambulatory disability","NA","NA",{"$f":"CntyDataLinkPrior5YearEstimates!BV112","v":31},{"$f":"CntyDataLinkPrior5YearEstimates!BW112","v":50.219518117958877},{"$f":"CntyDataLinkPrior5YearEstimates!BX112","v":0},{"$f":"CntyDataLinkPrior5YearEstimates!BY112","v":15.556349186104045},{"$f":"CntyDataLinkPrior5YearEstimates!BZ112","v":0},{"$f":"CntyDataLinkPrior5YearEstimates!CA112","v":15.556349186104045},{"$f":"CntyDataLinkPrior5YearEstimates!CB112","v":29},{"$f":"CntyDataLinkPrior5YearEstimates!CC112","v":46.324939287601879},{"$f":"CntyDataLinkPrior5YearEstimates!CD112","v":53},{"$f":"CntyDataLinkPrior5YearEstimates!CE112","v":64.938432380216881}]
[null,null,"Self-care disability","NA","NA",{"$f":"CntyDataLinkPrior5YearEstimates!CF112","v":31},{"$f":"CntyDataLinkPrior5YearEstimates!CG112","v":50.219518117958877},{"$f":"CntyDataLinkPrior5YearEstimates!CH112","v":0},{"$f":"CntyDataLinkPrior5YearEstimates!CI112","v":15.556349186104045},{"$f":"CntyDataLinkPrior5YearEstimates!CJ112","v":0},{"$f":"CntyDataLinkPrior5YearEstimates!CK112","v":15.556349186104045},{"$f":"CntyDataLinkPrior5YearEstimates!CL112","v":0},{"$f":"CntyDataLinkPrior5YearEstimates!CM112","v":15.556349186104045},{"$f":"CntyDataLinkPrior5YearEstimates!CN112","v":43},{"$f":"CntyDataLinkPrior5YearEstimates!CO112","v":64.938432380216881}]
[null,null,"Independent living disability","NA","NA","NA","NA",{"$f":"CntyDataLinkPrior5YearEstimates!CP112","v":0},{"$f":"CntyDataLinkPrior5YearEstimates!CQ112","v":15.556349186104045},{"$f":"CntyDataLinkPrior5YearEstimates!CR112","v":16},{"$f":"CntyDataLinkPrior5YearEstimates!CS112","v":17.029386365926403},{"$f":"CntyDataLinkPrior5YearEstimates!CT112","v":12},{"$f":"CntyDataLinkPrior5YearEstimates!CU112","v":20.248456731316587},{"$f":"CntyDataLinkPrior5YearEstimates!CV112","v":19},{"$f":"CntyDataLinkPrior5YearEstimates!CW112","v":14.7648230602334}]
[]
[null,"With two or more types of disability:",null,{"$f":"CntyDataLinkPrior5YearEstimates!CZ112","v":31},{"$f":"CntyDataLinkPrior5YearEstimates!DA112","v":49},{"$f":"CntyDataLinkPrior5YearEstimates!DD112","v":31},{"$f":"CntyDataLinkPrior5YearEstimates!DE112","v":49},{"$f":"CntyDataLinkPrior5YearEstimates!DH112","v":84},{"$f":"CntyDataLinkPrior5YearEstimates!DI112","v":69},{"$f":"CntyDataLinkPrior5YearEstimates!DL112","v":0},{"$f":"CntyDataLinkPrior5YearEstimates!DM112","v":0},{"$f":"CntyDataLinkPrior5YearEstimates!DP112","v":0},{"$f":"CntyDataLinkPrior5YearEstimates!DQ112","v":0},{"$f":"CntyDataLinkPrior5YearEstimates!DT112","v":0},{"$f":"CntyDataLinkPrior5YearEstimates!DU112","v":0}]
[]
[null,"No disability",null,{"$f":"CntyDataLinkPrior5YearEstimates!H112","v":100},{"$f":"CntyDataLinkPrior5YearEstimates!I112","v":80.212218520621903},{"$f":"CntyDataLinkPrior5YearEstimates!N112","v":469},{"$f":"CntyDataLinkPrior5YearEstimates!O112","v":215.77998053572995},{"$f":"CntyDataLinkPrior5YearEstimates!T112","v":320},{"$f":"CntyDataLinkPrior5YearEstimates!U112","v":100.65783625729296},{"$f":"CntyDataLinkPrior5YearEstimates!Z112","v":1252},{"$f":"CntyDataLinkPrior5YearEstimates!AA112","v":178.33115263464205},{"$f":"CntyDataLinkPrior5YearEstimates!AF112","v":217},{"$f":"CntyDataLinkPrior5YearEstimates!AG112","v":78.409183135650636},{"$f":"CntyDataLinkPrior5YearEstimates!AL112","v":220},{"$f":"CntyDataLinkPrior5YearEstimates!AM112","v":85.586213843118443}]
[null,"Source: 2013-2017 American Community Survey Tables B18101;  B18102; B18103; B18104; B18105; B18106;  and B18107"]
[null,"NA indicates that the American Community Survey does not calculate the number for that disability."]
[null,"Percent of Population with Disabilities"]
[]
[null,null,null,"Under 5",null,"5 to 17 years",null,"18 to 34 years",null,"35 to 64 years",null,"65 to 74 years",null,"75 years and older"]
[]
[null,"With a disability:",null,{"$f":"D33/D$31","v":0},null,{"$f":"F33/F$31","v":8.5769980506822607E-2},null,{"$f":"H33/H$31","v":0},null,{"$f":"J33/J$31","v":0.12324929971988796},null,{"$f":"L33/L$31","v":0.15891472868217055},null,{"$f":"N33/N$31","v":0.29936305732484075}]
[]
[null,"Type of disability"]
[null,null,"Hearing disability",{"$f":"D38/D$31","v":0},null,{"$f":"F38/F$31","v":6.042884990253411E-2},null,{"$f":"H38/H$31","v":0},null,{"$f":"J38/J$31","v":5.5322128851540614E-2},null,{"$f":"L38/L$31","v":0},null,{"$f":"N38/N$31","v":0.26751592356687898}]
[null,null,"Visual disability",{"$f":"D39/D$31","v":0},null,{"$f":"F39/F$31","v":6.042884990253411E-2},null,0,null,0,null,0,null,0.1751592356687898]
[null,null,"Cognitive disability","NA",null,{"$f":"F40/F$31","v":8.5769980506822607E-2},null,0,null,5.1120448179271707E-2,null,0,null,0.16560509554140126]
[null,null,"Ambulatory disability","NA",null,{"$f":"F41/F$31","v":6.042884990253411E-2},null,0,null,0,null,0.1124031007751938,null,0.16878980891719744]
[null,null,"Self-care disability","NA",null,{"$f":"F42/F$31","v":6.042884990253411E-2},null,0,null,0,null,0,null,0.13694267515923567]
[null,null,"Independent living disability","NA",null,"NA",null,0,null,1.1204481792717087E-2,null,4.6511627906976744E-2,null,6.0509554140127389E-2]
[]
[]
[]
[null,"No disability",null,{"$f":"D47/D$31","v":1},null,{"$f":"F47/F$31","v":0.91423001949317739},null,{"$f":"H47/H$31","v":1},null,{"$f":"J47/J$31","v":0.87675070028011204},null,{"$f":"L47/L$31","v":0.84108527131782951},null,{"$f":"N47/N$31","v":0.70063694267515919}]
[]
[]
[null,"Source: 2013-2017 American Community Survey Tables B18101;  B18102; B18103; B18104; B18105; B18106;  and B18107"]
[null,"NA indicates that the American Community Survey does not calculate the number for that disability."]
[]
[null,"Data from the American Community Survey are estimates."]

{"sheet":"DisabilityByAgePrior10YearEst","index":29,"n_rows":72,"n_cols":15,"rows_kept":72,"cut":false,"hidden":true,"merged":[[51,13,51,14],[28,3,28,4],[28,5,28,6],[28,7,28,8],[28,9,28,10],[28,11,28,12],[28,13,28,14],[51,3,51,4],[51,5,51,6],[51,7,51,8],[51,9,51,10],[51,11,51,12]]}
[]
[]
[]
[]
[null,{"$f":"CntyDataLink!A20","v":"Grantham"}]
[null,"SOCIAL CHARACTERISTICS"]
[]
[null,"Disabilities By Age"]
[null,null,"Universe: Civilian Non-institutionalized Population"]
[]
[]
[]
[]
[]
[]
[]
[]
[]
[]
[]
[]
[]
[]
[]
[]
[]
[]
[]
[null,null,null,"Under 5",null,"5 to 17 years",null,"18 to 34 years",null,"35 to 64 years",null,"65 to 74 years",null,"75 years and older"]
[null,null,null,"Estimate","Margin of Error","Estimate","Margin of Error","Estimate","Margin of Error","Estimate","Margin of Error","Estimate","Margin of Error","Estimate","Margin of Error"]
[null,"Total ",null,{"$f":"CntyDataLinkPrior10YearEstimate!D112","v":138},{"$f":"CntyDataLinkPrior10YearEstimate!E112","v":64.350602172784676},{"$f":"CntyDataLinkPrior10YearEstimate!J112","v":446},{"$f":"CntyDataLinkPrior10YearEstimate!K112","v":99.724620831567975},{"$f":"CntyDataLinkPrior10YearEstimate!P112","v":342},{"$f":"CntyDataLinkPrior10YearEstimate!Q112","v":97.744565066299216},{"$f":"CntyDataLinkPrior10YearEstimate!V112","v":1408},{"$f":"CntyDataLinkPrior10YearEstimate!W112","v":104.66135867644753},{"$f":"CntyDataLinkPrior10YearEstimate!AB112","v":284},{"$f":"CntyDataLinkPrior10YearEstimate!AC112","v":79.39773296511683},{"$f":"CntyDataLinkPrior10YearEstimate!AH112","v":318},{"$f":"CntyDataLinkPrior10YearEstimate!AI112","v":73.409808608931812}]
[]
[null,"With a disability:",null,{"$f":"CntyDataLinkPrior10YearEstimate!F112","v":0},{"$f":"CntyDataLinkPrior10YearEstimate!G112","v":15.556349186104045},{"$f":"CntyDataLinkPrior10YearEstimate!L112","v":11},{"$f":"CntyDataLinkPrior10YearEstimate!M112","v":11.313708498984761},{"$f":"CntyDataLinkPrior10YearEstimate!R112","v":17},{"$f":"CntyDataLinkPrior10YearEstimate!S112","v":19.697715603592208},{"$f":"CntyDataLinkPrior10YearEstimate!X112","v":35},{"$f":"CntyDataLinkPrior10YearEstimate!Y112","v":26.92582403567252},{"$f":"CntyDataLinkPrior10YearEstimate!AD112","v":40},{"$f":"CntyDataLinkPrior10YearEstimate!AE112","v":26.627053911388696},{"$f":"CntyDataLinkPrior10YearEstimate!AJ112","v":64},{"$f":"CntyDataLinkPrior10YearEstimate!AK112","v":39}]
[]
[null,"With one disability:",null,{"$f":"CntyDataLinkPrior10YearEstimate!CX112","v":11},{"$f":"CntyDataLinkPrior10YearEstimate!CY112","v":12},{"$f":"CntyDataLinkPrior10YearEstimate!DB112","v":11},{"$f":"CntyDataLinkPrior10YearEstimate!DC112","v":12},{"$f":"CntyDataLinkPrior10YearEstimate!DF112","v":49},{"$f":"CntyDataLinkPrior10YearEstimate!DG112","v":31},{"$f":"CntyDataLinkPrior10YearEstimate!DJ112","v":0},{"$f":"CntyDataLinkPrior10YearEstimate!DK112","v":0},{"$f":"CntyDataLinkPrior10YearEstimate!DN112","v":0},{"$f":"CntyDataLinkPrior10YearEstimate!DO112","v":0},{"$f":"CntyDataLinkPrior10YearEstimate!DR112","v":0},{"$f":"CntyDataLinkPrior10YearEstimate!DS112","v":0}]
[]
[null,"Type of disability"]
[null,null,"Hearing disability",{"$f":"CntyDataLinkPrior10YearEstimate!AN112","v":0},{"$f":"CntyDataLinkPrior10YearEstimate!AO112","v":15.556349186104045},{"$f":"CntyDataLinkPrior10YearEstimate!AP112","v":0},{"$f":"CntyDataLinkPrior10YearEstimate!AQ112","v":15.556349186104045},{"$f":"CntyDataLinkPrior10YearEstimate!AR112","v":12},{"$f":"CntyDataLinkPrior10YearEstimate!AS112","v":21.095023109728988},{"$f":"CntyDataLinkPrior10YearEstimate!AT112","v":13},{"$f":"CntyDataLinkPrior10YearEstimate!AU112","v":21.95449840010015},{"$f":"CntyDataLinkPrior10YearEstimate!AV112","v":5},{"$f":"CntyDataLinkPrior10YearEstimate!AW112","v":13.038404810405298},{"$f":"CntyDataLinkPrior10YearEstimate!AX112","v":45},{"$f":"CntyDataLinkPrior10YearEstimate!AY112","v":37.363083384538811}]
[null,null,"Visual disability",{"$f":"CntyDataLinkPrior10YearEstimate!AZ112","v":0},{"$f":"CntyDataLinkPrior10YearEstimate!BA112","v":15.556349186104045},{"$f":"CntyDataLinkPrior10YearEstimate!BB112","v":0},{"$f":"CntyDataLinkPrior10YearEstimate!BC112","v":15.556349186104045},{"$f":"CntyDataLinkPrior10YearEstimate!BD112","v":12},{"$f":"CntyDataLinkPrior10YearEstimate!BE112","v":21.095023109728988},{"$f":"CntyDataLinkPrior10YearEstimate!BF112","v":0},{"$f":"CntyDataLinkPrior10YearEstimate!BG112","v":15.556349186104045},{"$f":"CntyDataLinkPrior10YearEstimate!BH112","v":8},{"$f":"CntyDataLinkPrior10YearEstimate!BI112","v":16.278820596099706},{"$f":"CntyDataLinkPrior10YearEstimate!BJ112","v":6},{"$f":"CntyDataLinkPrior10YearEstimate!BK112","v":14.866068747318506}]
[null,null,"Cognitive disability","NA","NA",{"$f":"CntyDataLinkPrior10YearEstimate!BL112","v":11},{"$f":"CntyDataLinkPrior10YearEstimate!BM112","v":11.313708498984761},{"$f":"CntyDataLinkPrior10YearEstimate!BN112","v":5},{"$f":"CntyDataLinkPrior10YearEstimate!BO112","v":13.601470508735444},{"$f":"CntyDataLinkPrior10YearEstimate!BP112","v":29},{"$f":"CntyDataLinkPrior10YearEstimate!BQ112","v":25.495097567963924},{"$f":"CntyDataLinkPrior10YearEstimate!BR112","v":0},{"$f":"CntyDataLinkPrior10YearEstimate!BS112","v":15.556349186104045},{"$f":"CntyDataLinkPrior10YearEstimate!BT112","v":37},{"$f":"CntyDataLinkPrior10YearEstimate!BU112","v":35.171010790137949}]
[null,null,"Ambulatory disability","NA","NA",{"$f":"CntyDataLinkPrior10YearEstimate!BV112","v":0},{"$f":"CntyDataLinkPrior10YearEstimate!BW112","v":15.556349186104045},{"$f":"CntyDataLinkPrior10YearEstimate!BX112","v":12},{"$f":"CntyDataLinkPrior10YearEstimate!BY112","v":21.095023109728988},{"$f":"CntyDataLinkPrior10YearEstimate!BZ112","v":13},{"$f":"CntyDataLinkPrior10YearEstimate!CA112","v":17.804493814764857},{"$f":"CntyDataLinkPrior10YearEstimate!CB112","v":15},{"$f":"CntyDataLinkPrior10YearEstimate!CC112","v":14.7648230602334},{"$f":"CntyDataLinkPrior10YearEstimate!CD112","v":27},{"$f":"CntyDataLinkPrior10YearEstimate!CE112","v":18.601075237738275}]
[null,null,"Self-care disability","NA","NA",{"$f":"CntyDataLinkPrior10YearEstimate!CF112","v":0},{"$f":"CntyDataLinkPrior10YearEstimate!CG112","v":15.556349186104045},{"$f":"CntyDataLinkPrior10YearEstimate!CH112","v":12},{"$f":"CntyDataLinkPrior10YearEstimate!CI112","v":21.095023109728988},{"$f":"CntyDataLinkPrior10YearEstimate!CJ112","v":0},{"$f":"CntyDataLinkPrior10YearEstimate!CK112","v":15.556349186104045},{"$f":"CntyDataLinkPrior10YearEstimate!CL112","v":3},{"$f":"CntyDataLinkPrior10YearEstimate!CM112","v":12.083045973594572},{"$f":"CntyDataLinkPrior10YearEstimate!CN112","v":0},{"$f":"CntyDataLinkPrior10YearEstimate!CO112","v":15.556349186104045}]
[null,null,"Independent living disability","NA","NA","NA","NA",{"$f":"CntyDataLinkPrior10YearEstimate!CP112","v":0},{"$f":"CntyDataLinkPrior10YearEstimate!CQ112","v":15.556349186104045},{"$f":"CntyDataLinkPrior10YearEstimate!CR112","v":16},{"$f":"CntyDataLinkPrior10YearEstimate!CS112","v":17.029386365926403},{"$f":"CntyDataLinkPrior10YearEstimate!CT112","v":12},{"$f":"CntyDataLinkPrior10YearEstimate!CU112","v":20.248456731316587},{"$f":"CntyDataLinkPrior10YearEstimate!CV112","v":19},{"$f":"CntyDataLinkPrior10YearEstimate!CW112","v":14.7648230602334}]
[]
[null,"With two or more types of disability:",null,{"$f":"CntyDataLinkPrior10YearEstimate!CZ112","v":0},{"$f":"CntyDataLinkPrior10YearEstimate!DA112","v":11},{"$f":"CntyDataLinkPrior10YearEstimate!DD112","v":41},{"$f":"CntyDataLinkPrior10YearEstimate!DE112","v":43},{"$f":"CntyDataLinkPrior10YearEstimate!DH112","v":55},{"$f":"CntyDataLinkPrior10YearEstimate!DI112","v":36},{"$f":"CntyDataLinkPrior10YearEstimate!DL112","v":0},{"$f":"CntyDataLinkPrior10YearEstimate!DM112","v":0},{"$f":"CntyDataLinkPrior10YearEstimate!DP112","v":0},{"$f":"CntyDataLinkPrior10YearEstimate!DQ112","v":0},{"$f":"CntyDataLinkPrior10YearEstimate!DT112","v":0},{"$f":"CntyDataLinkPrior10YearEstimate!DU112","v":0}]
[]
[null,"No disability",null,{"$f":"CntyDataLinkPrior10YearEstimate!H112","v":138},{"$f":"CntyDataLinkPrior10YearEstimate!I112","v":64.350602172784676},{"$f":"CntyDataLinkPrior10YearEstimate!N112","v":435},{"$f":"CntyDataLinkPrior10YearEstimate!O112","v":101.13851887386922},{"$f":"CntyDataLinkPrior10YearEstimate!T112","v":325},{"$f":"CntyDataLinkPrior10YearEstimate!U112","v":97},{"$f":"CntyDataLinkPrior10YearEstimate!Z112","v":1373},{"$f":"CntyDataLinkPrior10YearEstimate!AA112","v":106.06601717798213},{"$f":"CntyDataLinkPrior10YearEstimate!AF112","v":244},{"$f":"CntyDataLinkPrior10YearEstimate!AG112","v":75.604232685743199},{"$f":"CntyDataLinkPrior10YearEstimate!AL112","v":254},{"$f":"CntyDataLinkPrior10YearEstimate!AM112","v":71.028163428319047}]
[null,"Source: 2008-2012 American Community Survey Tables B18101;  B18102; B18103; B18104; B18105; B18106;  and B18107"]
[null,"NA indicates that the American Community Survey does not calculate the number for that disability."]
[null,"Percent of Population with Disabilities"]
[]
[null,null,null,"Under 5",null,"5 to 17 years",null,"18 to 34 years",null,"35 to 64 years",null,"65 to 74 years",null,"75 years and older"]
[]
[null,"With a disability:",null,{"$f":"D33/D$31","v":0},null,{"$f":"F33/F$31","v":2.4663677130044841E-2},null,{"$f":"H33/H$31","v":4.9707602339181284E-2},null,{"$f":"J33/J$31","v":2.4857954545454544E-2},null,{"$f":"L33/L$31","v":0.14084507042253522},null,{"$f":"N33/N$31","v":0.20125786163522014}]
[]
[null,"Type of disability"]
[null,null,"Hearing disability",{"$f":"D38/D$31","v":0},null,{"$f":"F38/F$31","v":0},null,{"$f":"H38/H$31","v":3.5087719298245612E-2},null,{"$f":"J38/J$31","v":9.2329545454545459E-3},null,{"$f":"L38/L$31","v":1.7605633802816902E-2},null,{"$f":"N38/N$31","v":0.14150943396226415}]
[null,null,"Visual disability",{"$f":"D39/D$31","v":0},null,{"$f":"F39/F$31","v":0},null,3.5087719298245612E-2,null,0,null,2.8169014084507043E-2,null,1.8867924528301886E-2]
[null,null,"Cognitive disability","NA",null,{"$f":"F40/F$31","v":2.4663677130044841E-2},null,1.4619883040935672E-2,null,2.0596590909090908E-2,null,0,null,0.11635220125786164]
[null,null,"Ambulatory disability","NA",null,{"$f":"F41/F$31","v":0},null,3.5087719298245612E-2,null,9.2329545454545459E-3,null,5.2816901408450703E-2,null,8.4905660377358486E-2]
[null,null,"Self-care disability","NA",null,{"$f":"F42/F$31","v":0},null,3.5087719298245612E-2,null,0,null,1.0563380281690141E-2,null,0]
[null,null,"Independent living disability","NA",null,"NA",null,0,null,1.1363636363636364E-2,null,4.2253521126760563E-2,null,5.9748427672955975E-2]
[]
[]
[]
[null,"No disability",null,{"$f":"D47/D$31","v":1},null,{"$f":"F47/F$31","v":0.9753363228699552},null,{"$f":"H47/H$31","v":0.95029239766081874},null,{"$f":"J47/J$31","v":0.97514204545454541},null,{"$f":"L47/L$31","v":0.85915492957746475},null,{"$f":"N47/N$31","v":0.79874213836477992}]
[]
[]
[null,"Source: 2008-2012 American Community Survey Tables B18101;  B18102; B18103; B18104; B18105; B18106;  and B18107"]
[null,"NA indicates that the American Community Survey does not calculate the number for that disability."]
[]
[null,"Data from the American Community Survey are estimates."]

{"sheet":"ACS_Table_B18101","index":30,"n_rows":155,"n_cols":32,"rows_kept":155,"cut":false,"hidden":true,"merged":[]}
["B18101. SEX BY AGE BY DISABILITY STATUS\n"]
["Universe:  Civilian non-institutionalized population"]
["Data Set: 2018-2022 American Community Survey 5-Year Estimates"]
[]
[null,null,"Acworth",null,"Charlestown",null,"Claremont",null,"Cornish",null,"Croydon",null,"Goshen",null,"Grantham",null,"Langdon",null,"Lempster",null,"Newport",null,"Plainfield",null,"Springfield",null,"Sunapee",null,"Unity",null,"Washington"]
[null,null,"Estimate","Margin Of Error","Estimate","Margin Of Error","Estimate","Margin Of Error","Estimate","Margin Of Error","Estimate","Margin Of Error","Estimate","Margin Of Error","Estimate","Margin Of Error","Estimate","Margin Of Error","Estimate","Margin Of Error","Estimate","Margin Of Error","Estimate","Margin Of Error","Estimate","Margin Of Error","Estimate","Margin Of Error","Estimate","Margin Of Error","Estimate","Margin Of Error"]
[null,"Total",927,278,4839,21,12966,26,1914,235,796,166,1060,316,3394,23,717,196,957,200,6202,68,2473,17,939,398,3377,18,1271,198,1042,173]
[null,"Male:",439,104,2401,227,6543,290,947,143,426,91,449,133,1458,156,376,135,455,101,3309,235,1175,108,563,294,1987,168,610,95,500,99]
[null,"Under 5 years:",20,14,152,112,328,146,36,25,19,16,32,48,0,12,43,33,48,30,100,80,80,64,4,7,23,33,11,11,4,7]
[null,"With a disability",0,12,0,12,0,19,0,12,0,12,0,12,0,12,0,12,0,12,0,17,0,12,0,12,0,12,0,12,0,12]
[null,"No disability",20,14,152,112,328,146,36,25,19,16,32,48,0,12,43,33,48,30,100,80,80,64,4,7,23,33,11,11,4,7]
[null,"5 to 17 years:",81,68,299,157,874,187,118,54,56,36,80,49,422,152,63,51,62,38,381,140,168,78,88,77,217,75,85,49,35,25]
[null,"With a disability",0,12,0,12,138,98,9,8,0,12,0,12,0,12,0,12,4,5,100,99,0,12,3,6,0,12,7,12,0,12]
[null,"No disability",81,68,299,157,736,173,109,53,56,36,80,49,422,152,63,51,58,38,281,122,168,78,85,76,217,75,78,45,35,25]
[null,"18 to 34 years:",82,51,453,189,1355,203,121,43,57,31,47,25,63,39,84,50,38,23,1290,256,258,90,98,62,396,135,59,25,69,32]
[null,"With a disability",37,39,115,96,237,121,0,12,1,2,0,12,0,12,5,7,0,12,94,82,27,26,0,12,0,12,2,4,0,12]
[null,"No disability",45,25,338,147,1118,203,121,43,56,31,47,25,63,39,79,48,38,23,1196,268,231,86,98,62,396,135,57,24,69,32]
[null,"35 to 64 years:",174,52,869,189,2744,270,366,79,188,64,200,66,557,138,121,45,201,53,1102,241,401,80,291,236,937,263,255,56,255,80]
[null,"With a disability",9,11,174,135,434,149,69,57,22,17,46,44,44,62,24,34,19,13,167,128,21,19,11,10,298,267,50,25,31,34]
[null,"No disability",165,51,695,157,2310,291,297,72,166,62,154,44,513,148,97,28,182,52,935,242,380,80,280,237,639,143,205,50,224,72]
[null,"65 to 74 years:",47,24,384,126,894,207,199,70,74,38,52,34,209,125,45,19,90,35,276,119,179,68,55,27,271,87,140,43,94,26]
[null,"With a disability",6,9,0,12,258,118,21,14,12,13,15,13,66,74,20,14,18,16,45,29,53,32,9,9,54,39,40,24,17,10]
[null,"No disability",41,22,384,126,636,212,178,70,62,35,37,32,143,104,25,13,72,29,231,119,126,57,46,26,217,78,100,34,77,27]
[null,"75 years and over:",35,20,244,202,348,120,107,70,32,17,38,22,207,109,20,12,16,10,160,106,89,59,27,21,143,96,60,23,43,23]
[null,"With a disability",15,12,156,150,235,101,31,29,19,13,16,13,36,63,5,5,10,8,98,61,64,55,0,12,11,12,16,11,21,14]
[null,"No disability",20,13,88,66,113,79,76,65,13,9,22,15,171,94,15,12,6,5,62,83,25,18,27,21,132,94,44,20,22,17]
[null,"Female:",488,197,2438,227,6423,285,967,156,370,91,611,226,1936,154,341,86,502,132,2893,234,1298,110,376,132,1390,166,661,125,542,117]
[null,"Under 5 years:",12,16,161,106,381,124,54,30,30,36,7,8,0,12,2,3,23,20,90,60,149,73,15,25,47,38,0,12,18,17]
[null,"With a disability",0,12,0,12,0,19,0,12,0,12,0,12,0,12,0,12,0,12,0,17,0,12,0,12,0,12,0,12,0,12]
[null,"No disability",12,16,161,106,381,124,54,30,30,36,7,8,0,12,2,3,23,20,90,60,149,73,15,25,47,38,0,12,18,17]
[null,"5 to 17 years:",111,126,383,140,979,191,82,32,36,24,111,73,336,135,52,44,100,58,155,117,144,61,11,12,111,52,97,54,57,48]
[null,"With a disability",0,12,19,33,12,21,0,12,2,3,3,6,0,12,0,12,0,12,0,17,0,12,0,12,0,12,4,5,9,14]
[null,"No disability",111,126,364,137,967,195,82,32,34,24,108,73,336,135,52,44,100,58,155,117,144,61,11,12,111,52,93,53,48,36]
[null,"18 to 34 years:",76,51,290,107,1195,223,161,63,68,39,93,48,235,135,87,43,96,57,490,171,291,127,75,49,315,121,142,65,79,39]
[null,"With a disability",0,12,40,51,259,155,3,4,0,12,1,3,0,12,14,14,7,9,110,68,58,91,0,12,36,38,16,14,2,3]
[null,"No disability",76,51,250,109,936,224,158,64,68,39,92,48,235,135,73,41,89,56,380,167,233,91,75,49,279,113,126,61,77,37]
[null,"35 to 64 years:",189,71,1036,168,2495,259,422,147,135,41,189,68,917,189,120,31,197,62,1511,239,464,83,191,98,444,111,251,47,218,57]
[null,"With a disability",6,9,116,84,552,204,21,18,4,4,30,32,0,12,2,3,12,13,167,107,9,11,18,17,30,30,9,6,4,4]
[null,"No disability",183,69,920,175,1943,282,401,148,131,40,159,50,917,189,118,32,185,58,1344,246,455,84,173,99,414,110,242,46,214,56]
[null,"65 to 74 years:",75,30,405,132,929,190,145,44,46,18,47,21,208,109,47,16,46,20,306,152,165,76,59,34,321,94,101,34,136,39]
[null,"With a disability",10,9,28,34,133,93,32,23,4,5,18,12,34,35,6,5,5,6,60,61,34,31,7,11,5,9,11,9,25,21]
[null,"No disability",65,29,377,135,796,188,113,36,42,17,29,15,174,110,41,16,41,20,246,144,131,68,52,31,316,93,90,32,111,37]
[null,"75 years and over:",25,18,163,79,444,149,103,44,55,51,164,103,240,134,33,25,40,38,341,149,85,41,25,21,152,111,70,35,34,22]
[null,"With a disability",2,2,67,49,100,77,26,19,43,51,117,105,109,124,8,8,7,7,139,90,16,20,8,13,40,50,20,14,18,19]
[null,"No disability",23,17,96,75,344,127,77,37,12,8,47,30,131,95,25,24,33,37,202,118,69,35,17,15,112,99,50,29,16,11]
[]
[]
[{"$f":"A1& \"-Calculated\"","v":"B18101. SEX BY AGE BY DISABILITY STATUS\n-Calculated"}]
[{"$f":"A2","v":"Universe:  Civilian non-institutionalized population"}]
[{"$f":"A3","v":"Data Set: 2018-2022 American Community Survey 5-Year Estimates"}]
[]
[]
[null,null,"Acworth",null,"Charlestown",null,"Claremont",null,"Cornish",null,"Croydon",null,"Goshen",null,"Grantham",null,"Langdon",null,"Lempster",null,"Newport",null,"Plainfield",null,"Springfield",null,"Sunapee",null,"Unity",null,"Washington"]
[null,null,"Estimate","Margin Of Error","Estimate","Margin Of Error","Estimate","Margin Of Error","Estimate","Margin Of Error","Estimate","Margin Of Error","Estimate","Margin Of Error","Estimate","Margin Of Error","Estimate","Margin Of Error","Estimate","Margin Of Error","Estimate","Margin Of Error","Estimate","Margin Of Error","Estimate","Margin Of Error","Estimate","Margin Of Error","Estimate","Margin Of Error","Estimate","Margin Of Error"]
[null,"Total",{"$f":"C7","v":927},278,4839,21,12966,26,1914,235,796,166,1060,316,3394,23,717,196,957,200,6202,68,2473,17,{"$f":"Y7","v":939},398,3377,18,1271,198,1042,173]
[null,"Under 5 years:",{"$f":"C28+C9","v":32},{"$f":"SQRT((D28^2)+(D9^2))","v":21.2602916254693},{"$f":"E28+E9","v":313},{"$f":"SQRT((F28^2)+(F9^2))","v":154.20765220960988},{"$f":"G28+G9","v":709},{"$f":"SQRT((H28^2)+(H9^2))","v":191.55155963865187},{"$f":"I28+I9","v":90},{"$f":"SQRT((J28^2)+(J9^2))","v":39.05124837953327},{"$f":"K28+K9","v":49},{"$f":"SQRT((L28^2)+(L9^2))","v":39.395431207184416},{"$f":"M28+M9","v":39},{"$f":"SQRT((N28^2)+(N9^2))","v":48.662100242385755},{"$f":"O28+O9","v":0},{"$f":"SQRT((P28^2)+(P9^2))","v":16.970562748477139},{"$f":"Q28+Q9","v":45},{"$f":"SQRT((R28^2)+(R9^2))","v":33.136083051561783},{"$f":"S28+S9","v":71},{"$f":"SQRT((T28^2)+(T9^2))","v":36.055512754639892},{"$f":"U28+U9","v":190},{"$f":"SQRT((V28^2)+(V9^2))","v":100},{"$f":"W28+W9","v":229},{"$f":"SQRT((X28^2)+(X9^2))","v":97.082439194738001},19,25.96150997149434,{"$f":"AA28+AA9","v":70},{"$f":"SQRT((AB28^2)+(AB9^2))","v":50.328918128646478},11,16.278820596099706,{"$f":"AE28+AE9","v":22},{"$f":"SQRT((AF28^2)+(AF9^2))","v":18.384776310850235}]
[null,"With a disability",{"$f":"C29+C10","v":0},{"$f":"SQRT((D29^2)+(D10^2))","v":16.970562748477139},{"$f":"E29+E10","v":0},{"$f":"SQRT((F29^2)+(F10^2))","v":16.970562748477139},{"$f":"G29+G10","v":0},{"$f":"SQRT((H29^2)+(H10^2))","v":26.870057685088806},{"$f":"I29+I10","v":0},{"$f":"SQRT((J29^2)+(J10^2))","v":16.970562748477139},{"$f":"K29+K10","v":0},{"$f":"SQRT((L29^2)+(L10^2))","v":16.970562748477139},{"$f":"M29+M10","v":0},{"$f":"SQRT((N29^2)+(N10^2))","v":16.970562748477139},{"$f":"O29+O10","v":0},{"$f":"SQRT((P29^2)+(P10^2))","v":16.970562748477139},{"$f":"Q29+Q10","v":0},{"$f":"SQRT((R29^2)+(R10^2))","v":16.970562748477139},{"$f":"S29+S10","v":0},{"$f":"SQRT((T29^2)+(T10^2))","v":16.970562748477139},{"$f":"U29+U10","v":0},{"$f":"SQRT((V29^2)+(V10^2))","v":24.041630560342615},0,16.970562748477139,0,16.970562748477139,0,16.970562748477139,0,16.970562748477139,0,16.970562748477139]
[null,"No disability",{"$f":"C30+C11","v":32},21.2602916254693,313,154.20765220960988,709,191.55155963865187,90,39.05124837953327,49,39.395431207184416,39,48.662100242385755,0,16.970562748477139,45,33.136083051561783,71,36.055512754639892,190,100,229,97.082439194738001,19,25.96150997149434,70,50.328918128646478,11,16.278820596099706,22,18.384776310850235]
[null,"5 to 17 years:",192,143.17821063276352,682,210.35446275275456,1853,267.30132809247317,200,62.769419305900861,92,43.266615305567875,191,87.920418561333065,758,203.29535164385831,115,67.357256476195644,162,69.339743293438858,536,182.45273360517237,312,99.02019995940222,99,77.929455278476055,328,91.263355187062899,182,72.917761896536561,92,54.120236510939236]
[null,"With a disability",0,16.970562748477139,19,35.114099732158877,150,100.22474744293447,9,14.422205101855956,2,12.369316876852981,3,13.416407864998739,0,16.970562748477139,0,16.970562748477139,4,13,100,100.44899203078147,0,16.970562748477139,3,13.416407864998739,0,16.970562748477139,11,13,9,18.439088914585774]
[null,"No disability",192,143.17821063276352,663,208.36986346398561,1703,260.67988031300001,191,61.911226768656427,90,43.266615305567875,188,87.920418561333065,758,203.29535164385831,115,67.357256476195644,158,69.339743293438858,436,169.03549923019128,312,99.02019995940222,96,76.941536246685374,328,91.263355187062899,171,69.526973183074787,83,43.829214001622255]
[null,"18 to 34 years:",158,72.124891681027847,743,217.18655575334307,2550,301.55928107090318,282,76.275815302099531,125,49.819674828324601,140,54.120236510939236,298,140.52046114356443,171,65.946948375190189,134,61.465437442517235,1780,307.85873383745343,549,155.65667348366404,173,79.025312400521386,711,181.28982321134299,201,69.641941385920603,148,50.447993022517757]
[null,"With a disability",37,40.80441152620633,155,108.70602559196064,496,196.63672088396919,3,12.649110640673518,1,12.165525060596439,1,12.369316876852981,0,16.970562748477139,19,15.652475842498529,7,15,204,106.5269918846862,85,94.641428560646744,0,16.970562748477139,36,39.849717690342551,18,14.560219778561036,2,12.369316876852981]
[null,"No disability",121,56.797887284651708,588,183.00273222004091,2054,302.29952034364857,279,77.103826104804938,124,49.819674828324601,139,54.120236510939236,298,140.52046114356443,152,63.126856408346519,127,60.539243470661241,1576,315.77365311247866,464,125.2078272313676,173,79.025312400521386,675,176.05112893702216,183,65.551506466289538,146,48.918299234540036]
[null,"35 to 64 years:",363,88.0056816347672,1905,252.87348615463821,5239,374.14034799791375,788,166.88319268278636,323,76.006578662639456,389,94.762861923857074,1474,234.01922997907673,241,54.644304369257,398,81.565924257621205,2613,339.41420123501018,865,115.27792503337315,482,255.53864678361276,1381,285.4645336990219,506,73.109506905736964,473,98.229323524088258]
[null,"With a disability",15,14.212670403551895,290,159,986,252.62026838715852,90,59.774576535513823,26,17.464249196572979,76,54.405882034941776,44,63.150613615387776,26,34.132096331752024,31,18.384776310850235,334,166.83225107874077,30,21.95449840010015,29,19.723082923316021,328,268.68010719068877,59,25.709920264364882,35,34.23448553724738]
[null,"No disability",348,85.802097876450546,1615,235.10423220350586,4253,405.22216128933519,698,164.58432489152787,297,73.783466982786862,313,66.603303221386852,1430,240.05207768315609,215,42.5205832509386,367,77.89736837660179,2279,345.07970093878311,835,116,453,256.8462575160479,1053,180.41341413542398,447,67.94115100585212,438,91.214034007931033]
[null,"65 to 74 years:",122,38.418745424597091,789,182.4828759089466,1823,280.97864687552328,344,82.680106434377549,120,42.047592083257278,99,39.962482405376171,417,165.8493292117879,92,24.839484696748443,136,40.311288741492746,582,193.04144632694815,344,101.9803902718557,114,43.416586692184822,592,128.08200498118384,241,54.817880294662984,230,46.872166581031863]
[null,"With a disability",16,12.727922061357855,28,36.055512754639892,391,150.24313628249379,53,26.92582403567252,16,13.928388277184119,33,17.691806012954132,100,81.859635963031252,26,14.866068747318506,23,17.088007490635061,105,67.542579163073128,87,44.553338819890925,16,14.212670403551895,59,40.024992192379003,51,25.632011235952593,42,23.259406699226016]
[null,"No disability",106,36.400549446402593,761,184.66456075814872,1432,283.35137197479742,291,78.714674616617714,104,38.910152916687437,66,35.341194094144583,317,151.38031576133008,66,20.615528128088304,113,35.227829907617071,477,186.80738743422327,257,88.729927307532492,98,40.459856648287818,533,121.37956994486346,190,46.690470119715009,188,45.803929962395145]
[null,"75 years and over:",60,26.90724809414742,407,216.89859381747959,792,191.31387822110554,210,82.680106434377549,87,53.758720222862451,202,105.32331175955302,447,172.73389939441535,53,27.730849247724095,56,39.293765408776999,501,182.8578683021324,174,71.847059786744225,52,29.698484809834994,295,146.75489770362009,130,41.880783182743848,77,31.827660925679098]
[null,"With a disability",17,12.165525060596439,223,157.8005069700348,335,127.00393694685216,57,34.669871646719429,62,52.630789467763066,133,105.80170130957252,145,139.08630414242805,13,9.4339811320566032,17,10.63014581273465,237,108.72442227944924,80,58.523499553598128,8,17.691806012954132,51,51.419840528729765,36,17.804493814764857,39,23.600847442411894]
[null,"No disability",43,21.400934559032695,184,99.904954832080278,457,149.56603892595405,153,74.793047805260613,25,12.041594578792296,69,33.541019662496844,302,133.64505228402584,40,26.832815729997478,39,37.336309405188942,264,144.26711336961034,94,39.357337308308857,44,25.80697580112788,244,136.517398158623,94,35.227829907617071,38,20.248456731316587]
[]
[]
[]
[]
[]
[]
[]
[]
[]
[]
[]
[]
[]
[]
[]
[]
[]
[]
[]
[]
[]
[]
[]
[]
[]
[]
["B18101. SEX BY AGE BY DISABILITY STATUS\n-Calculated"]
["Universe:  Civilian non-institutionalized population"]
["Data Set: 2013-2017 American Community Survey 5-Year Estimates"]
[]
[]
[null,null,"Acworth",null,"Charlestown",null,"Claremont",null,"Cornish",null,"Croydon",null,"Goshen",null,"Grantham",null,"Langdon",null,"Lempster",null,"Newport",null,"Plainfield",null,"Springfield",null,"Sunapee",null,"Unity",null,"Washington"]
[null,null,"Estimate","Margin Of Error","Estimate","Margin Of Error","Estimate","Margin Of Error","Estimate","Margin Of Error","Estimate","Margin Of Error","Estimate","Margin Of Error","Estimate","Margin Of Error","Estimate","Margin Of Error","Estimate","Margin Of Error","Estimate","Margin Of Error","Estimate","Margin Of Error","Estimate","Margin Of Error","Estimate","Margin Of Error","Estimate","Margin Of Error","Estimate","Margin Of Error"]
[null,"Total",1031,143,5008,21,12948,46,1777,205,809,193,722,143,2933,35,887,143,858,129,6262,48,2439,249,1011,183,3404,16,1227,157,1265,206]
[null,"Under 5 years:",50,22.360679774997898,363,105.19030373565806,771,154.20765220960988,48,20,28,23.600847442411894,61,27.202941017470888,100,80.212218520621903,32,18.384776310850235,40,18.601075237738275,286,135.91541487263319,91,56.859475903318,12,14.560219778561036,148,73.824115301166998,32,23.706539182259394,0,15.556349186104045]
[null,"With a disability",0,15.556349186104045,25,44.944410108488462,0,25.45584412271571,0,15.556349186104045,0,15.556349186104045,0,15.556349186104045,0,15.556349186104045,0,15.556349186104045,2,12.083045973594572,0,22.627416997969522,0,15.556349186104045,0,15.556349186104045,0,15.556349186104045,0,15.556349186104045,0,15.556349186104045]
[null,"No disability",50,22.360679774997898,338,100.72239075796404,771,154.20765220960988,48,20,28,23.600847442411894,61,27.202941017470888,100,80.212218520621903,32,18.384776310850235,38,18.027756377319946,286,135.91541487263319,91,56.859475903318,12,14.560219778561036,148,73.824115301166998,32,23.706539182259394,0,15.556349186104045]
[null,"5 to 17 years:",86,34.058772731852805,644,153.71727293964071,1999,243.47895186237352,340,115.69356075426151,79,34.409301068170507,123,43.600458713183279,513,222.71955459725578,217,79.32212806020776,89,45.880278987817846,1017,253.17977802344325,364,90.443352436760108,128,45.276925690687087,461,117.32433677630571,112,41.036569057366385,151,63.812224534175265]
[null,"With a disability",0,15.556349186104045,18,40.311288741492746,88,56.080299571239813,9,10,10,12.041594578792296,13,8.4852813742385695,44,54.12947441089743,14,14.317821063276353,9,8.9442719099991592,66,65.79513659838392,11,15.556349186104045,12,12.529964086141668,0,15.556349186104045,4,12.529964086141668,6,12.529964086141668]
[null,"No disability",86,34.058772731852805,626,154.46682491719702,1911,238.75719884434898,331,116.61903789690601,69,32.756678708318397,110,43.011626335213137,469,215.77998053572995,203,76.850504227363402,80,44.384682042344295,951,232.80034364235806,353,89.627004859026727,116,40.8166632639171,461,117.32433677630571,108,40.36087214122113,145,63.812224534175265]
[null,"18 to 34 years:",157,42.449970553582247,958,183.21844885272881,2858,292.86515668477875,220,57.008771254956898,211,93.621578709184348,124,40.459856648287818,320,100.65783625729296,113,33.97057550292606,96,39.11521443121589,1070,223.45021816950637,416,101.9803902718557,124,47.423622805517503,574,148.8086019019062,146,44.654227123532216,162,58.137767414994535]
[null,"With a disability",25,17.691806012954132,28,34.713109915419565,265,103.07764064044152,13,16.278820596099706,8,15.556349186104045,10,7.810249675906654,0,15.556349186104045,7,13.038404810405298,9,7.2111025509279782,63,54.378304497290095,13,18.357559750685819,5,14.212670403551895,0,15.556349186104045,4,13.038404810405298,9,14.866068747318506]
[null,"No disability",132,37.536648758246919,930,180.69310999592651,2593,299.89664886423787,207,54.671747731346578,203,92.477024173575131,114,39.824615503479755,320,100.65783625729296,106,33.97057550292606,87,38.587562763149478,1007,223.48601745970598,403,101.31633629380802,119,47.423622805517503,574,148.8086019019062,142,43.829214001622255,153,57.245087125446844]
[null,"35 to 64 years:",452,62.201286160335947,2039,232.81967270830015,5207,316.81224723801319,787,85.702975444263316,365,65.192024052026483,278,51.039200620699383,1428,154.67385040788247,393,58,474,69.354163537598808,2650,278.21754078418564,1127,99.03534722511958,513,82.03657720797473,1480,193.82982226685345,665,70.178344238091,676,118.40608092492548]
[null,"With a disability",32,14.866068747318506,301,111.39569111954016,978,191.70028690641024,76,30.413812651491099,35,23.430749027719962,30,19.723082923316021,176,104.7377677822093,29,14.422205101855956,80,31.144823004794873,353,144.51643505151932,67,30.413812651491099,22,15.811388300841896,121,94.339811320566042,86,38.418745424597091,45,22.472205054244231]
[null,"No disability",420,59.816385714952723,1738,237.05906437004259,4229,316.78699468254689,711,83.450584180100265,330,60.959002616512684,248,46.400431032480725,1252,178.33115263464205,364,55.865910893853687,394,64.381674411279491,2297,274.97272592022648,1060,101.17806086301516,491,80.622577482985491,1359,181.06904760339356,579,67.896980787071826,631,119.01680553602503]
[null,"65 to 74 years:",192,42.449970553582247,521,161.44348856488452,1252,165.60193235587562,257,54.203320931470607,90,27.658633371878661,86,30.528675044947494,258,88.391176030189797,99,23.345235059857504,111,32.649655434629018,856,196.02550854416882,330,69.31089380465383,175,50.931326312987373,345,102.7277956543408,202,39.698866482558415,204,37.013511046643494]
[null,"With a disability",58,25.238858928247925,125,73.246160308919954,294,134.6291201783626,45,25.942243542145693,16,10,16,13.341664064126334,41,48.270073544588683,22,9.2195444572928871,46,25.612496949731394,342,162.73291000900832,68,27.658633371878661,8,7.810249675906654,16,15.811388300841896,46,21.931712199461309,28,14.142135623730951]
[null,"No disability",134,33.837848631377263,396,166.29191201017565,958,153.80832227158581,212,46.400431032480725,74,24.041630560342615,70,25.612496949731394,217,78.409183135650636,77,20.518284528683193,65,21.095023109728988,514,157.78466338652817,262,63.702433234531945,167,50.931326312987373,329,102.06860437960343,156,36.796738985948195,176,35.608987629529715]
[null,"75 years and over:",94,35.510561809129406,483,128.41339493993607,861,121.43310915891102,125,40.459856648287818,36,17.204650534085253,50,22.671568097509269,314,101.6070863670443,33,17.204650534085253,48,21.95449840010015,383,139.34489585198304,111,46.669047558312137,59,30.886890422961002,396,95.587656106842587,70,19.849433241279208,72,19.849433241279208]
[null,"With a disability",40,27.856776554368238,188,94.047860156411858,498,118.53269591129698,35,14.866068747318506,23,13.892443989449804,13,13,94,72.73238618387272,16,10.816653826391969,25,13.45362404707371,245,122.42957159118053,36,28.861739379323623,27,20.615528128088304,221,81.301906496711382,40,17.029386365926403,18,10.63014581273465]
[null,"No disability",54,20,295,111.40017953306898,363,86.05230967266364,90,35.468295701936398,13,8.4852813742385695,37,16.401219466856727,220,85.586213843118443,17,10.63014581273465,23,15.652475842498529,138,72.111025509279784,75,37.12142238654117,32,22.022715545545239,175,64.350602172784676,30,13.892443989449804,54,15.620499351813308]
[]
[]
[]
[]
["B18101. SEX BY AGE BY DISABILITY STATUS\n-Calculated"]
["Universe:  Civilian non-institutionalized population"]
["Data Set: 2008-2012 American Community Survey 5-Year Estimates"]
[]
[]
[null,null,"Acworth",null,"Charlestown",null,"Claremont",null,"Cornish",null,"Croydon",null,"Goshen",null,"Grantham",null,"Langdon",null,"Lempster",null,"Newport",null,"Plainfield",null,"Springfield",null,"Sunapee",null,"Unity",null,"Washington"]
[null,null,"Estimate","Margin Of Error","Estimate","Margin Of Error","Estimate","Margin Of Error","Estimate","Margin Of Error","Estimate","Margin Of Error","Estimate","Margin Of Error","Estimate","Margin Of Error","Estimate","Margin Of Error","Estimate","Margin Of Error","Estimate","Margin Of Error","Estimate","Margin Of Error","Estimate","Margin Of Error","Estimate","Margin Of Error","Estimate","Margin Of Error","Estimate","Margin Of Error"]
[null,"Total",746,184,5070,20,13226,55,1665,226,615,113,767,114,2936,33,776,133,1212,178,6425,61,2570,212,1354,195,3349,23,1349,139,1071,171]
[null,"Under 5 years:",48,39,258,113.17243480636087,932,138.62178760930766,109,45.967379738244816,23,20.248456731316587,17,15.556349186104045,138,64.350602172784676,30,33.241540277189323,50,27.202941017470888,227,135.11846653955189,106,54.12947441089743,92,47.801673610868477,83,59.464274989274024,46,21.400934559032695,47,24.186773244895647]
[null,"With a disability",0,15.556349186104045,13,27.202941017470888,0,25.45584412271571,0,15.556349186104045,0,15.556349186104045,2,11.401754250991379,0,15.556349186104045,0,15.556349186104045,0,15.556349186104045,0,22.627416997969522,0,15.556349186104045,0,15.556349186104045,0,15.556349186104045,0,15.556349186104045,0,15.556349186104045]
[null,"No disability",48,39,245,113.17243480636087,932,138.62178760930766,109,45.967379738244816,23,20.248456731316587,15,14.866068747318506,138,64.350602172784676,30,33.241540277189323,50,27.202941017470888,227,135.11846653955189,106,54.12947441089743,92,47.801673610868477,83,59.464274989274024,46,21.400934559032695,47,24.186773244895647]
[null,"5 to 17 years:",110,49.406477308142499,706,149.40214188558343,1993,216.4162655624572,266,79.81227975693966,79,29.410882339705484,57,30.413812651491099,446,99.724620831567975,131,53.712196007983138,259,70.035705179572517,1209,231.31147831441481,500,95.015788161757627,277,70.710678118654755,551,139.08630414242805,127,46.690470119715009,134,53.235326616824658]
[null,"With a disability",2,11.401754250991379,62,62.177166226839255,197,101.31633629380802,0,15.556349186104045,0,15.556349186104045,7,14.866068747318506,11,11.313708498984761,11,14.212670403551895,46,29.154759474226502,68,78.644770964127048,8,15.556349186104045,3,12.083045973594572,27,22.022715545545239,3,12.083045973594572,24,21.023796041628639]
[null,"No disability",108,49.406477308142499,644,134.71451295239129,1796,206.49455198624491,266,79.81227975693966,79,29.410882339705484,50,28.460498941515414,435,101.13851887386922,120,52.201532544552748,213,57.628118136895637,1141,237.92856070678022,492,95.015788161757627,274,70.710678118654755,524,139.08630414242805,124,46.690470119715009,110,46.065171225124082]
[null,"18 to 34 years:",146,60.21627686929839,901,205.08047201037937,2727,261.08427758101408,247,54.561891462814962,91,40.311288741492746,145,46.010868281309364,342,97.744565066299216,195,65.192024052026483,141,44.598206241955516,1138,230.05434140654683,384,92.097774131626011,155,46.75467891024384,532,114.69088891450794,211,49.819674828324601,109,36.891733491393431]
[null,"With a disability",8,8.9442719099991592,18,33.120990323358392,350,133.9589489358587,9,14.866068747318506,1,11.401754250991379,22,18.357559750685819,17,19.697715603592208,35,31.016124838541646,19,18.601075237738275,98,71.505244562899023,9,17.029386365926403,0,15.556349186104045,0,15.556349186104045,33,21.2602916254693,16,13.601470508735444]
[null,"No disability",138,58.249463516842795,883,207.88939366884497,2377,245.66033460858105,238,54.561891462814962,90,40.311288741492746,123,45.254833995939045,325,97,160,60.802960454241045,122,43.278170016764804,1040,235.03191272676142,375,90.785461391128038,155,46.75467891024384,532,114.69088891450794,178,49.406477308142499,93,34.985711369071801]
[null,"35 to 64 years:",310,55.317266743757322,2417,216.37467504308356,5512,267.8245694479877,833,88.729927307532492,320,50.219518117958877,391,50.447993022517757,1408,104.66135867644753,308,50.209560842532767,622,79.195959492893323,2923,234.18155350069739,1249,120.20815280171308,629,82.734515167492219,1455,159.80613254815975,778,80.212218520621903,492,68.117545463705611]
[null,"With a disability",19,13.601470508735444,364,120.50726119201282,1019,200.38463014912097,106,32.802438933713454,32,16.124515496597098,72,25.612496949731394,35,26.92582403567252,25,14.212670403551895,73,30.610455730027933,504,159.92810884894499,144,59.363288318623319,65,31.11269837220809,120,70.880180586677398,118,39.204591567825318,110,39.05124837953327]
[null,"No disability",291,53.263495942343098,2053,207.24140512938047,4493,295.84455377782433,727,84.958813551037778,288,51.039200620699383,319,47.507894080878813,1373,106.06601717798213,283,49.497474683058329,549,78.568441501661468,2419,246.47920804806233,1105,122.34786471369249,564,82.807004534640669,1335,168.34488409215172,660,79.05694150420949,382,62.008063991709982]
[null,"65 to 74 years:",116,43.416586692184822,434,138.05795884337854,1024,157.69908052997647,147,43.600458713183279,57,19.104973174542799,84,31.11269837220809,284,79.39773296511683,70,27.018512172212592,67,25.495097567963924,573,136.03308421115798,217,57.008771254956898,143,41.880783182743848,458,107.48953437428223,141,38.288379438153292,183,39.408120990476064]
[null,"With a disability",40,22.671568097509269,196,109.04127658827184,251,98.737024463977036,28,19.723082923316021,11,14.212670403551895,10,9.2195444572928871,40,26.627053911388696,8,6.4031242374328485,19,12.041594578792296,178,104.00480758118829,43,25.059928172283335,36,22.203603311174518,101,69.814038702828242,27,18.027756377319946,49,29]
[null,"No disability",76,37.802116342871599,238,102.55242561733974,773,133.79461872586654,119,38.587562763149478,46,17.691806012954132,74,29.698484809834994,244,75.604232685743199,62,27.658633371878661,48,25.238858928247925,395,114.85643212288984,174,52.40229002629561,107,37.802116342871599,357,102.53292154230269,114,34.655446902326915,134,34.655446902326915]
[null,"75 years and over:",16,9.8994949366116654,354,110,1038,136.60527076214885,63,22.671568097509269,45,26.076809620810597,73,26.419689627245813,318,73.409808608931812,42,21.931712199461309,73,33.97057550292606,355,99.744674043279119,114,48.846698967279252,58,24.413111231467404,270,91.678787077491378,46,17.691806012954132,106,31.144823004794873]
[null,"With a disability",8,6.7082039324993694,231,100.40418317978589,657,124.90796611905904,30,17.029386365926403,21,17.804493814764857,33,20.615528128088304,64,39,6,6.4031242374328485,55,29.068883707497267,185,76.557168181692816,33,24.083189157584592,37,21.633307652783937,100,52.886671288709408,14,10.770329614269007,37,20.615528128088304]
[null,"No disability",8,7.2111025509279782,123,72.622310621461224,381,115.10864433221339,33,15,24,18.867962264113206,40,15.620499351813308,254,71.028163428319047,36,21.931712199461309,18,15.652475842498529,170,68.505474233815804,81,42.201895692018383,21,10.63014581273465,170,75.663729752107784,32,15.264337522473747,69,27.018512172212592]

{"sheet":"ACS_Table_B18102","index":31,"n_rows":155,"n_cols":32,"rows_kept":155,"cut":false,"hidden":true,"merged":[]}
["B18102. SEX BY AGE BY HEARING DIFFICULTY\n\n"]
["Universe:  Civilian non-institutionalized population"]
["Data Set: 2018-2022 American Community Survey 5-Year Estimates"]
[]
[null,null,"Acworth",null,"Charlestown",null,"Claremont",null,"Cornish",null,"Croydon",null,"Goshen",null,"Grantham",null,"Langdon",null,"Lempster",null,"Newport",null,"Plainfield",null,"Springfield",null,"Sunapee",null,"Unity",null,"Washington"]
[null,null,"Estimate","Margin Of Error","Estimate","Margin Of Error","Estimate","Margin Of Error","Estimate","Margin Of Error","Estimate","Margin Of Error","Estimate","Margin Of Error","Estimate","Margin Of Error","Estimate","Margin Of Error","Estimate","Margin Of Error","Estimate","Margin Of Error","Estimate","Margin Of Error","Estimate","Margin Of Error","Estimate","Margin Of Error","Estimate","Margin Of Error","Estimate","Margin Of Error"]
[null,"Total:",927,278,4839,21,12966,26,1914,235,796,166,1060,316,3394,23,717,196,957,200,6202,68,2473,17,939,398,3377,18,1271,198,1042,173]
[null,"Male:",439,104,2401,227,6543,290,947,143,426,91,449,133,1458,156,376,135,455,101,3309,235,1175,108,563,294,1987,168,610,95,500,99]
[null,"Under 5 years:",20,14,152,112,328,146,36,25,19,16,32,48,0,12,43,33,48,30,100,80,80,64,4,7,23,33,11,11,4,7]
[null,"With hearing difficulty",0,12,0,12,0,19,0,12,0,12,0,12,0,12,0,12,0,12,0,17,0,12,0,12,0,12,0,12,0,12]
[null,"With no hearing difficulty",20,14,152,112,328,146,36,25,19,16,32,48,0,12,43,33,48,30,100,80,80,64,4,7,23,33,11,11,4,7]
[null,"5 to 17  years:",81,68,299,157,874,187,118,54,56,36,80,49,422,152,63,51,62,38,381,140,168,78,88,77,217,75,85,49,35,25]
[null,"With hearing difficulty",0,12,0,12,0,19,0,12,0,12,0,12,0,12,0,12,0,12,0,17,0,12,0,12,0,12,7,12,0,12]
[null,"With no hearing difficulty",81,68,299,157,874,187,118,54,56,36,80,49,422,152,63,51,62,38,381,140,168,78,88,77,217,75,78,45,35,25]
[null,"18 to 34  years:",82,51,453,189,1355,203,121,43,57,31,47,25,63,39,84,50,38,23,1290,256,258,90,98,62,396,135,59,25,69,32]
[null,"With hearing difficulty",0,12,0,12,66,81,0,12,0,12,0,12,0,12,0,12,0,12,0,17,0,12,0,12,0,12,0,12,0,12]
[null,"With no hearing difficulty",82,51,453,189,1289,210,121,43,57,31,47,25,63,39,84,50,38,23,1290,256,258,90,98,62,396,135,59,25,69,32]
[null,"35 to 64  years:",174,52,869,189,2744,270,366,79,188,64,200,66,557,138,121,45,201,53,1102,241,401,80,291,236,937,263,255,56,255,80]
[null,"With hearing difficulty",0,12,46,71,24,47,14,10,0,12,6,8,44,62,1,2,3,4,19,30,6,7,4,6,0,12,21,20,4,5]
[null,"With no hearing difficulty",174,52,823,183,2720,269,352,81,188,64,194,63,513,148,120,45,198,53,1083,241,395,78,287,236,937,263,234,53,251,80]
[null,"65 to 74  years:",47,24,384,126,894,207,199,70,74,38,52,34,209,125,45,19,90,35,276,119,179,68,55,27,271,87,140,43,94,26]
[null,"With hearing difficulty",0,12,0,12,146,99,14,10,10,10,8,9,48,68,12,12,18,16,9,17,20,15,6,8,36,34,29,18,14,10]
[null,"With no hearing difficulty",47,24,384,126,748,209,185,70,64,36,44,33,161,108,33,15,72,29,267,119,159,66,49,26,235,75,111,39,80,26]
[null,"75  years and Older:",35,20,244,202,348,120,107,70,32,17,38,22,207,109,20,12,16,10,160,106,89,59,27,21,143,96,60,23,43,23]
[null,"With hearing difficulty",10,11,156,150,153,84,20,25,12,9,16,13,0,12,5,5,8,7,23,36,46,46,0,12,11,12,9,8,11,9]
[null,"With no hearing difficulty",25,15,88,66,195,87,87,61,20,13,22,15,207,109,15,12,8,6,137,100,43,31,27,21,132,94,51,21,32,22]
[null,"Female:",488,197,2438,227,6423,285,967,156,370,91,611,226,1936,154,341,86,502,132,2893,234,1298,110,376,132,1390,166,661,125,542,117]
[null,"Under 5 years:",12,16,161,106,381,124,54,30,30,36,7,8,0,12,2,3,23,20,90,60,149,73,15,25,47,38,0,12,18,17]
[null,"With hearing difficulty",0,12,0,12,0,19,0,12,0,12,0,12,0,12,0,12,0,12,0,17,0,12,0,12,0,12,0,12,0,12]
[null,"With no hearing difficulty",12,16,161,106,381,124,54,30,30,36,7,8,0,12,2,3,23,20,90,60,149,73,15,25,47,38,0,12,18,17]
[null,"5 to 17  years:",111,126,383,140,979,191,82,32,36,24,111,73,336,135,52,44,100,58,155,117,144,61,11,12,111,52,97,54,57,48]
[null,"With hearing difficulty",0,12,0,12,0,19,0,12,0,12,0,12,0,12,0,12,0,12,0,17,0,12,0,12,0,12,0,12,0,12]
[null,"With no hearing difficulty",111,126,383,140,979,191,82,32,36,24,111,73,336,135,52,44,100,58,155,117,144,61,11,12,111,52,97,54,57,48]
[null,"18 to 34  years:",76,51,290,107,1195,223,161,63,68,39,93,48,235,135,87,43,96,57,490,171,291,127,75,49,315,121,142,65,79,39]
[null,"With hearing difficulty",0,12,0,12,0,19,0,12,0,12,0,12,0,12,14,14,0,12,14,24,0,12,0,12,0,12,0,12,0,12]
[null,"With no hearing difficulty",76,51,290,107,1195,223,161,63,68,39,93,48,235,135,73,41,96,57,476,168,291,127,75,49,315,121,142,65,79,39]
[null,"35 to 64  years:",189,71,1036,168,2495,259,422,147,135,41,189,68,917,189,120,31,197,62,1511,239,464,83,191,98,444,111,251,47,218,57]
[null,"With hearing difficulty",6,9,16,27,153,148,0,12,0,12,21,29,0,12,0,12,0,12,0,17,0,12,9,13,13,20,0,12,2,3]
[null,"With no hearing difficulty",183,69,1020,166,2342,254,422,147,135,41,168,52,917,189,120,31,197,62,1511,239,464,83,182,98,431,109,251,47,216,56]
[null,"65 to 74  years:",75,30,405,132,929,190,145,44,46,18,47,21,208,109,47,16,46,20,306,152,165,76,59,34,321,94,101,34,136,39]
[null,"With hearing difficulty",6,8,17,27,43,42,3,4,4,5,4,5,34,35,4,4,0,12,0,17,0,12,7,11,0,12,3,4,3,4]
[null,"With no hearing difficulty",69,29,388,132,886,194,142,44,42,17,43,21,174,110,43,17,46,20,306,152,165,76,52,31,321,94,98,33,133,39]
[null,"75  years and Older:",25,18,163,79,444,149,103,44,55,51,164,103,240,134,33,25,40,38,341,149,85,41,25,21,152,111,70,35,34,22]
[null,"With hearing difficulty",2,2,17,27,19,25,26,19,34,50,108,108,109,124,8,8,3,4,6,16,12,18,0,12,27,43,3,4,8,13]
[null,"With no hearing difficulty",23,17,146,74,425,147,77,37,21,13,56,30,131,95,25,24,37,38,335,147,73,35,25,21,125,103,67,34,26,19]
[]
[]
[{"$f":"A1& \"-Calculated\"","v":"B18102. SEX BY AGE BY HEARING DIFFICULTY\n\n-Calculated"}]
[{"$f":"A2","v":"Universe:  Civilian non-institutionalized population"}]
[{"$f":"A3","v":"Data Set: 2018-2022 American Community Survey 5-Year Estimates"}]
[]
[]
[null,null,"Acworth",null,"Charlestown",null,"Claremont",null,"Cornish",null,"Croydon",null,"Goshen",null,"Grantham",null,"Langdon",null,"Lempster",null,"Newport",null,"Plainfield",null,"Springfield",null,"Sunapee",null,"Unity",null,"Washington"]
[null,null,"Estimate","Margin Of Error","Estimate","Margin Of Error","Estimate","Margin Of Error","Estimate","Margin Of Error","Estimate","Margin Of Error","Estimate","Margin Of Error","Estimate","Margin Of Error","Estimate","Margin Of Error","Estimate","Margin Of Error","Estimate","Margin Of Error","Estimate","Margin Of Error","Estimate","Margin Of Error","Estimate","Margin Of Error","Estimate","Margin Of Error","Estimate","Margin Of Error"]
[null,"Total",{"$f":"C7","v":927},278,4839,21,12966,26,1914,235,796,166,1060,316,3394,23,717,196,957,200,6202,68,2473,17,{"$f":"Y7","v":939},398,3377,18,1271,198,1042,173]
[null,"Under 5 years:",{"$f":"C28+C9","v":32},{"$f":"SQRT((D28^2)+(D9^2))","v":21.2602916254693},{"$f":"E28+E9","v":313},{"$f":"SQRT((F28^2)+(F9^2))","v":154.20765220960988},{"$f":"G28+G9","v":709},{"$f":"SQRT((H28^2)+(H9^2))","v":191.55155963865187},{"$f":"I28+I9","v":90},{"$f":"SQRT((J28^2)+(J9^2))","v":39.05124837953327},{"$f":"K28+K9","v":49},{"$f":"SQRT((L28^2)+(L9^2))","v":39.395431207184416},{"$f":"M28+M9","v":39},{"$f":"SQRT((N28^2)+(N9^2))","v":48.662100242385755},{"$f":"O28+O9","v":0},{"$f":"SQRT((P28^2)+(P9^2))","v":16.970562748477139},{"$f":"Q28+Q9","v":45},{"$f":"SQRT((R28^2)+(R9^2))","v":33.136083051561783},{"$f":"S28+S9","v":71},{"$f":"SQRT((T28^2)+(T9^2))","v":36.055512754639892},{"$f":"U28+U9","v":190},{"$f":"SQRT((V28^2)+(V9^2))","v":100},{"$f":"W28+W9","v":229},{"$f":"SQRT((X28^2)+(X9^2))","v":97.082439194738001},{"$f":"Y28+Y9","v":19},{"$f":"SQRT((Z28^2)+(Z9^2))","v":25.96150997149434},{"$f":"AA28+AA9","v":70},{"$f":"SQRT((AB28^2)+(AB9^2))","v":50.328918128646478},11,16.278820596099706,{"$f":"AE28+AE9","v":22},{"$f":"SQRT((AF28^2)+(AF9^2))","v":18.384776310850235}]
[null,"With hearing difficulty",{"$f":"C29+C10","v":0},{"$f":"SQRT((D29^2)+(D10^2))","v":16.970562748477139},{"$f":"E29+E10","v":0},{"$f":"SQRT((F29^2)+(F10^2))","v":16.970562748477139},{"$f":"G29+G10","v":0},{"$f":"SQRT((H29^2)+(H10^2))","v":26.870057685088806},{"$f":"I29+I10","v":0},{"$f":"SQRT((J29^2)+(J10^2))","v":16.970562748477139},{"$f":"K29+K10","v":0},{"$f":"SQRT((L29^2)+(L10^2))","v":16.970562748477139},{"$f":"M29+M10","v":0},{"$f":"SQRT((N29^2)+(N10^2))","v":16.970562748477139},{"$f":"O29+O10","v":0},{"$f":"SQRT((P29^2)+(P10^2))","v":16.970562748477139},{"$f":"Q29+Q10","v":0},{"$f":"SQRT((R29^2)+(R10^2))","v":16.970562748477139},{"$f":"S29+S10","v":0},{"$f":"SQRT((T29^2)+(T10^2))","v":16.970562748477139},{"$f":"U29+U10","v":0},{"$f":"SQRT((V29^2)+(V10^2))","v":24.041630560342615},{"$f":"W29+W10","v":0},{"$f":"SQRT((X29^2)+(X10^2))","v":16.970562748477139},0,16.970562748477139,0,16.970562748477139,0,16.970562748477139,0,16.970562748477139]
[null,"With no hearing difficulty",32,21.2602916254693,313,154.20765220960988,709,191.55155963865187,90,39.05124837953327,49,39.395431207184416,39,48.662100242385755,0,16.970562748477139,45,33.136083051561783,71,36.055512754639892,190,100,229,97.082439194738001,19,25.96150997149434,70,50.328918128646478,11,16.278820596099706,22,18.384776310850235]
[null,"5 to 17 years:",192,143.17821063276352,682,210.35446275275456,1853,267.30132809247317,200,62.769419305900861,92,43.266615305567875,191,87.920418561333065,758,203.29535164385831,115,67.357256476195644,162,69.339743293438858,536,182.45273360517237,312,99.02019995940222,99,77.929455278476055,328,91.263355187062899,182,72.917761896536561,92,54.120236510939236]
[null,"With hearing difficulty",0,16.970562748477139,0,16.970562748477139,0,26.870057685088806,0,16.970562748477139,0,16.970562748477139,0,16.970562748477139,0,16.970562748477139,0,16.970562748477139,0,16.970562748477139,0,24.041630560342615,0,16.970562748477139,0,16.970562748477139,0,16.970562748477139,7,16.970562748477139,0,16.970562748477139]
[null,"With no hearing difficulty",192,143.17821063276352,682,210.35446275275456,1853,267.30132809247317,200,62.769419305900861,92,43.266615305567875,191,87.920418561333065,758,203.29535164385831,115,67.357256476195644,162,69.339743293438858,536,182.45273360517237,312,99.02019995940222,99,77.929455278476055,328,91.263355187062899,175,70.292247083159893,92,54.120236510939236]
[null,"18 to 34 years:",158,72.124891681027847,743,217.18655575334307,2550,301.55928107090318,282,76.275815302099531,125,49.819674828324601,140,54.120236510939236,298,140.52046114356443,171,65.946948375190189,134,61.465437442517235,1780,307.85873383745343,549,155.65667348366404,173,79.025312400521386,711,181.28982321134299,201,69.641941385920603,148,50.447993022517757]
[null,"With hearing difficulty",0,16.970562748477139,0,16.970562748477139,66,83.198557679805958,0,16.970562748477139,0,16.970562748477139,0,16.970562748477139,0,16.970562748477139,14,18.439088914585774,0,16.970562748477139,14,29.410882339705484,0,16.970562748477139,0,16.970562748477139,0,16.970562748477139,0,16.970562748477139,0,16.970562748477139]
[null,"With no hearing difficulty",158,72.124891681027847,743,217.18655575334307,2484,306.31519714176767,282,76.275815302099531,125,49.819674828324601,140,54.120236510939236,298,140.52046114356443,157,64.660652641308843,134,61.465437442517235,1766,306.20254734407422,549,155.65667348366404,173,79.025312400521386,711,181.28982321134299,201,69.641941385920603,148,50.447993022517757]
[null,"35 to 64 years:",363,88.0056816347672,1905,252.87348615463821,5239,374.14034799791375,788,166.88319268278636,323,76.006578662639456,389,94.762861923857074,1474,234.01922997907673,241,54.644304369257,398,81.565924257621205,2613,339.41420123501018,865,115.27792503337315,482,255.53864678361276,1381,285.4645336990219,506,73.109506905736964,473,98.229323524088258]
[null,"With hearing difficulty",6,15,62,75.960516059331766,177,155.283611498445,14,15.620499351813308,0,16.970562748477139,27,30.083217912982647,44,63.150613615387776,1,12.165525060596439,3,12.649110640673518,19,34.481879299133332,6,13.892443989449804,13,14.317821063276353,13,23.323807579381203,21,23.323807579381203,6,5.8309518948453007]
[null,"With no hearing difficulty",357,86.400231481171389,1843,247.07286374670934,5062,369.96891761335843,774,167.83920876839238,323,76.006578662639456,362,81.688432473637292,1430,240.05207768315609,240,54.644304369257,395,81.565924257621205,2594,339.41420123501018,859,113.89907813498755,469,255.53864678361276,1368,284.6928169097352,485,70.837842993699354,467,97.652444925869617]
[null,"65 to 74 years:",122,38.418745424597091,789,182.4828759089466,1823,280.97864687552328,344,82.680106434377549,120,42.047592083257278,99,39.962482405376171,417,165.8493292117879,92,24.839484696748443,136,40.311288741492746,582,193.04144632694815,344,101.9803902718557,114,43.416586692184822,592,128.08200498118384,241,54.817880294662984,230,46.872166581031863]
[null,"With hearing difficulty",6,14.422205101855956,17,29.546573405388315,189,107.54068997360952,17,10.770329614269007,14,11.180339887498949,12,10.295630140987001,82,76.478755219995577,16,12.649110640673518,18,20,9,24.041630560342615,20,19.209372712298546,13,13.601470508735444,36,36.055512754639892,32,18.439088914585774,17,10.770329614269007]
[null,"With no hearing difficulty",116,37.643060449437421,772,182.4828759089466,1634,285.16135783096558,327,82.680106434377549,106,39.812058474788763,87,39.11521443121589,335,154.15576538034509,76,22.671568097509269,118,35.227829907617071,573,193.04144632694815,324,100.65783625729296,101,40.459856648287818,556,120.25389806571761,209,51.088159097779204,213,46.872166581031863]
[null,"75 years and over:",60,26.90724809414742,407,216.89859381747959,792,191.31387822110554,210,82.680106434377549,87,53.758720222862451,202,105.32331175955302,447,172.73389939441535,53,27.730849247724095,56,39.293765408776999,501,182.8578683021324,174,71.847059786744225,52,29.698484809834994,295,146.75489770362009,130,41.880783182743848,77,31.827660925679098]
[null,"With hearing difficulty",12,11.180339887498949,173,152.41062955056645,172,87.641314458421945,46,31.400636936215164,46,50.803543183522152,124,108.77959367454909,109,124.57929201917949,13,9.4339811320566032,11,8.0622577482985491,29,39.395431207184416,58,49.396356140913873,0,16.970562748477139,38,44.643028571099428,12,8.9442719099991592,19,15.811388300841896]
[null,"With no hearing difficulty",48,22.671568097509269,234,99.156442049924323,620,170.8156901458411,164,71.344235926947874,41,18.384776310850235,78,33.541019662496844,338,144.58907289280197,40,26.832815729997478,45,38.470768123342687,472,177.78920102188434,116,46.75467891024384,52,29.698484809834994,257,139.44532978913278,118,39.962482405376171,58,29.068883707497267]
[]
[]
[]
[]
[]
[]
[]
[]
[]
[]
[]
[]
[]
[]
[]
[]
[]
[]
[]
[]
[]
[]
[]
[]
[]
[]
["B18102. SEX BY AGE BY HEARING DIFFICULTY\n\n-Calculated"]
["Universe:  Civilian non-institutionalized population"]
["Data Set: 2013-2017 American Community Survey 5-Year Estimates"]
[]
[]
[null,null,"Acworth",null,"Charlestown",null,"Claremont",null,"Cornish",null,"Croydon",null,"Goshen",null,"Grantham",null,"Langdon",null,"Lempster",null,"Newport",null,"Plainfield",null,"Springfield",null,"Sunapee",null,"Unity",null,"Washington"]
[null,null,"Estimate","Margin Of Error","Estimate","Margin Of Error","Estimate","Margin Of Error","Estimate","Margin Of Error","Estimate","Margin Of Error","Estimate","Margin Of Error","Estimate","Margin Of Error","Estimate","Margin Of Error","Estimate","Margin Of Error","Estimate","Margin Of Error","Estimate","Margin Of Error","Estimate","Margin Of Error","Estimate","Margin Of Error","Estimate","Margin Of Error","Estimate","Margin Of Error"]
[null,"Total",1031,143,5008,21,12948,46,1777,205,809,193,722,143,2933,35,887,143,858,129,6262,48,2439,249,1011,183,3404,16,1227,157,1265,206]
[null,"Under 5 years:",50,22.360679774997898,363,105.19030373565806,771,154.20765220960988,48,20,28,23.600847442411894,61,27.202941017470888,100,80.212218520621903,32,18.384776310850235,40,18.601075237738275,286,135.91541487263319,91,56.859475903318,12,14.560219778561036,148,73.824115301166998,32,23.706539182259394,0,15.556349186104045]
[null,"With hearing difficulty",0,15.556349186104045,0,22.627416997969522,0,25.45584412271571,0,15.556349186104045,0,15.556349186104045,0,15.556349186104045,0,15.556349186104045,0,15.556349186104045,2,12.083045973594572,0,22.627416997969522,0,15.556349186104045,0,15.556349186104045,0,15.556349186104045,0,15.556349186104045,0,15.556349186104045]
[null,"With no hearing difficulty",50,22.360679774997898,363,105.19030373565806,771,154.20765220960988,48,20,28,23.600847442411894,61,27.202941017470888,100,80.212218520621903,32,18.384776310850235,38,18.027756377319946,286,135.91541487263319,91,56.859475903318,12,14.560219778561036,148,73.824115301166998,32,23.706539182259394,0,15.556349186104045]
[null,"5 to 17 years:",86,34.058772731852805,644,153.71727293964071,1999,243.47895186237352,340,115.69356075426151,79,34.409301068170507,123,43.600458713183279,513,222.71955459725578,217,79.32212806020776,89,45.880278987817846,1017,253.17977802344325,364,90.443352436760108,128,45.276925690687087,461,117.32433677630571,112,41.036569057366385,151,63.812224534175265]
[null,"With hearing difficulty",0,15.556349186104045,0,22.627416997969522,0,25.45584412271571,0,15.556349186104045,0,15.556349186104045,0,15.556349186104045,31,50.219518117958877,0,15.556349186104045,0,15.556349186104045,0,22.627416997969522,0,15.556349186104045,0,15.556349186104045,0,15.556349186104045,0,15.556349186104045,0,15.556349186104045]
[null,"With no hearing difficulty",86,34.058772731852805,644,153.71727293964071,1999,243.47895186237352,340,115.69356075426151,79,34.409301068170507,123,43.600458713183279,482,216.5386801474508,217,79.32212806020776,89,45.880278987817846,1017,253.17977802344325,364,90.443352436760108,128,45.276925690687087,461,117.32433677630571,112,41.036569057366385,151,63.812224534175265]
[null,"18 to 34 years:",157,42.449970553582247,958,183.21844885272881,2858,292.86515668477875,220,57.008771254956898,211,93.621578709184348,124,40.459856648287818,320,100.65783625729296,113,33.97057550292606,96,39.11521443121589,1070,223.45021816950637,416,101.9803902718557,124,47.423622805517503,574,148.8086019019062,146,44.654227123532216,162,58.137767414994535]
[null,"With hearing difficulty",7,14.866068747318506,0,22.627416997969522,26,30.805843601498726,5,13.601470508735444,0,15.556349186104045,2,11.401754250991379,0,15.556349186104045,3,11.704699910719626,3,11.704699910719626,44,48.703182647543684,0,15.556349186104045,5,14.212670403551895,0,15.556349186104045,4,13.038404810405298,0,15.556349186104045]
[null,"With no hearing difficulty",150,42.449970553582247,958,183.21844885272881,2832,297.71294899617652,215,55.443665102516448,211,93.621578709184348,122,40.459856648287818,320,100.65783625729296,110,33.97057550292606,93,38.587562763149478,1026,224.87774456357391,416,101.9803902718557,119,47.423622805517503,574,148.8086019019062,142,43.829214001622255,162,58.137767414994535]
[null,"35 to 64 years:",452,62.201286160335947,2039,232.81967270830015,5207,316.81224723801319,787,85.702975444263316,365,65.192024052026483,278,51.039200620699383,1428,154.67385040788247,393,58,474,69.354163537598808,2650,278.21754078418564,1127,99.03534722511958,513,82.03657720797473,1480,193.82982226685345,665,70.178344238091,676,118.40608092492548]
[null,"With hearing difficulty",13,12.806248474865697,82,66.640828326184547,161,71.512236715124502,35,23.430749027719962,0,15.556349186104045,10,12.369316876852981,79,71.847059786744225,15,12.529964086141668,19,16.643316977093239,131,118.06777714516353,30,20.248456731316587,2,11.704699910719626,0,15.556349186104045,34,26.172504656604801,16,10.63014581273465]
[null,"With no hearing difficulty",439,60.605280298007038,1957,241.01452238402564,5046,323.85799357125649,752,82.879430499973878,365,65.192024052026483,268,50,1349,169.01183390520322,378,55.865910893853687,455,70.724818840347695,2519,293.61539469176341,1097,100.44899203078147,511,82.03657720797473,1480,193.82982226685345,631,71.589105316381762,660,118.40608092492548]
[null,"65 to 74 years:",192,42.449970553582247,521,161.44348856488452,1252,165.60193235587562,257,54.203320931470607,90,27.658633371878661,86,30.528675044947494,258,88.391176030189797,99,23.345235059857504,111,32.649655434629018,856,196.02550854416882,330,69.31089380465383,175,50.931326312987373,345,102.7277956543408,202,39.698866482558415,204,37.013511046643494]
[null,"With hearing difficulty",18,13.038404810405298,79,59.059292240933601,47,44.944410108488462,21,21.377558326431949,10,13.038404810405298,14,12.369316876852981,0,15.556349186104045,14,7.810249675906654,22,19.416487838947599,88,79.699435380685102,6,13.601470508735444,8,7.810249675906654,0,15.556349186104045,16,9.8488578017961039,19,11.180339887498949]
[null,"With no hearing difficulty",174,40.459856648287818,442,168.43990026119107,1205,165.80108564180151,236,49.678969393496885,80,25.45584412271571,72,25.612496949731394,258,88.391176030189797,85,21.213203435596427,89,27.658633371878661,768,192.62658175859323,324,68.622153857191051,167,50.931326312987373,345,102.7277956543408,186,40.36087214122113,185,35.608987629529715]
[null,"75 years and over:",94,35.510561809129406,483,128.41339493993607,861,121.43310915891102,125,40.459856648287818,36,17.204650534085253,50,22.671568097509269,314,101.6070863670443,33,17.204650534085253,48,21.95449840010015,383,139.34489585198304,111,46.669047558312137,59,30.886890422961002,396,95.587656106842587,70,19.849433241279208,72,19.849433241279208]
[null,"With hearing difficulty",13,8.0622577482985491,137,86.092973000123536,284,103.12128781197411,27,13.601470508735444,6,5.8309518948453007,4,12.083045973594572,84,70.837842993699354,16,10.816653826391969,20,12.041594578792296,100,68.622153857191051,15,12.206555615733702,9,13.601470508735444,164,77.369244535538797,23,12.806248474865697,7,7.810249675906654]
[null,"With no hearing difficulty",81,34.985711369071801,346,111.82575731914361,577,102.92715870944851,98,37.802116342871599,30,16.643316977093239,46,21.400934559032695,230,86.313382508160345,17,10.63014581273465,28,16.643316977093239,283,130.38404810405297,96,44.598206241955516,50,29.154759474226502,232,72.069410986909006,47,17.804493814764857,65,16.401219466856727]
[]
[]
[]
[]
["B18102. SEX BY AGE BY HEARING DIFFICULTY\n\n-Calculated"]
["Universe:  Civilian non-institutionalized population"]
["Data Set: 2008-2012 American Community Survey 5-Year Estimates"]
[]
[]
[null,null,"Acworth",null,"Charlestown",null,"Claremont",null,"Cornish",null,"Croydon",null,"Goshen",null,"Grantham",null,"Langdon",null,"Lempster",null,"Newport",null,"Plainfield",null,"Springfield",null,"Sunapee",null,"Unity",null,"Washington"]
[null,null,"Estimate","Margin Of Error","Estimate","Margin Of Error","Estimate","Margin Of Error","Estimate","Margin Of Error","Estimate","Margin Of Error","Estimate","Margin Of Error","Estimate","Margin Of Error","Estimate","Margin Of Error","Estimate","Margin Of Error","Estimate","Margin Of Error","Estimate","Margin Of Error","Estimate","Margin Of Error","Estimate","Margin Of Error","Estimate","Margin Of Error","Estimate","Margin Of Error"]
[null,"Total",746,184,5070,20,13226,55,1665,226,615,113,767,114,2936,33,776,133,1212,178,6425,61,2570,212,1354,195,3349,23,1349,139,1071,171]
[null,"Under 5 years:",48,39,258,113.17243480636087,932,138.62178760930766,109,45.967379738244816,23,20.248456731316587,17,15.556349186104045,138,64.350602172784676,30,33.241540277189323,50,27.202941017470888,227,135.11846653955189,106,54.12947441089743,92,47.801673610868477,83,59.464274989274024,46,21.400934559032695,47,24.186773244895647]
[null,"With hearing difficulty",0,15.556349186104045,0,22.627416997969522,0,25.45584412271571,0,15.556349186104045,0,15.556349186104045,2,11.401754250991379,0,15.556349186104045,0,15.556349186104045,0,15.556349186104045,0,22.627416997969522,0,15.556349186104045,0,15.556349186104045,0,15.556349186104045,0,15.556349186104045,0,15.556349186104045]
[null,"With no hearing difficulty",48,39,258,113.17243480636087,932,138.62178760930766,109,45.967379738244816,23,20.248456731316587,15,14.866068747318506,138,64.350602172784676,30,33.241540277189323,50,27.202941017470888,227,135.11846653955189,106,54.12947441089743,92,47.801673610868477,83,59.464274989274024,46,21.400934559032695,47,24.186773244895647]
[null,"5 to 17 years:",110,49.406477308142499,706,149.40214188558343,1993,216.4162655624572,266,79.81227975693966,79,29.410882339705484,57,30.413812651491099,446,99.724620831567975,131,53.712196007983138,259,70.035705179572517,1209,231.31147831441481,500,95.015788161757627,277,70.710678118654755,551,139.08630414242805,127,46.690470119715009,134,53.235326616824658]
[null,"With hearing difficulty",0,15.556349186104045,9,21.931712199461309,49,41.593268686170845,0,15.556349186104045,0,15.556349186104045,0,15.556349186104045,0,15.556349186104045,4,12.083045973594572,3,12.083045973594572,57,80.603970125546539,0,15.556349186104045,0,15.556349186104045,0,15.556349186104045,0,15.556349186104045,0,15.556349186104045]
[null,"With no hearing difficulty",110,49.406477308142499,697,148.21943192442751,1944,216.44860821913363,266,79.81227975693966,79,29.410882339705484,57,30.413812651491099,446,99.724620831567975,127,53.310411741047361,256,69.354163537598808,1152,237.18558134928861,500,95.015788161757627,277,70.710678118654755,551,139.08630414242805,127,46.690470119715009,134,53.235326616824658]
[null,"18 to 34 years:",146,60.21627686929839,901,205.08047201037937,2727,261.08427758101408,247,54.561891462814962,91,40.311288741492746,145,46.010868281309364,342,97.744565066299216,195,65.192024052026483,141,44.598206241955516,1138,230.05434140654683,384,92.097774131626011,155,46.75467891024384,532,114.69088891450794,211,49.819674828324601,109,36.891733491393431]
[null,"With hearing difficulty",0,15.556349186104045,18,33.120990323358392,83,66.098411478642959,0,15.556349186104045,0,15.556349186104045,7,8.0622577482985491,12,21.095023109728988,17,27.313000567495326,8,16.278820596099706,38,47.75981574503821,0,15.556349186104045,0,15.556349186104045,0,15.556349186104045,5,13.601470508735444,10,10.63014581273465]
[null,"With no hearing difficulty",146,60.21627686929839,883,207.88939366884497,2644,259.18719104153274,247,54.561891462814962,91,40.311288741492746,138,46.690470119715009,330,97.744565066299216,178,62.625873247404705,133,44.598206241955516,1100,236.02754076590298,384,92.097774131626011,155,46.75467891024384,532,114.69088891450794,206,50.447993022517757,99,37.589892258425003]
[null,"35 to 64 years:",310,55.317266743757322,2417,216.37467504308356,5512,267.8245694479877,833,88.729927307532492,320,50.219518117958877,391,50.447993022517757,1408,104.66135867644753,308,50.209560842532767,622,79.195959492893323,2923,234.18155350069739,1249,120.20815280171308,629,82.734515167492219,1455,159.80613254815975,778,80.212218520621903,492,68.117545463705611]
[null,"With hearing difficulty",13,17.029386365926403,56,43.278170016764804,374,147.20054347725758,41,22.847319317591726,17,12.083045973594572,13,7.2111025509279782,13,21.95449840010015,10,8.5440037453175304,14,15.556349186104045,113,70.802542327235685,32,23.706539182259394,25,22.022715545545239,11,17.804493814764857,23,17.204650534085253,42,26.076809620810597]
[null,"With no hearing difficulty",297,54.037024344425184,2361,213.55093069335942,5138,292.86515668477875,792,90.027773492406226,303,51.61395160225576,378,51.088159097779204,1395,106.06601717798213,298,50.911688245431421,608,80.622577482985491,2810,248.27605603440699,1217,120.91732712891069,604,82.758685344802331,1444,159.80613254815975,755,80.802227692063042,450,64.202803677098089]
[null,"65 to 74 years:",116,43.416586692184822,434,138.05795884337854,1024,157.69908052997647,147,43.600458713183279,57,19.104973174542799,84,31.11269837220809,284,79.39773296511683,70,27.018512172212592,67,25.495097567963924,573,136.03308421115798,217,57.008771254956898,143,41.880783182743848,458,107.48953437428223,141,38.288379438153292,183,39.408120990476064]
[null,"With hearing difficulty",16,15.264337522473747,128,91.967385523347346,133,68.796802251267465,11,10.63014581273465,9,13.601470508735444,7,8.6023252670426267,5,13.038404810405298,8,6.4031242374328485,10,13.038404810405298,66,58.240879114244144,25,18.867962264113206,30,23.706539182259394,29,31.064449134018133,12,14.866068747318506,21,21.540659228538015]
[null,"With no hearing difficulty",100,40.80441152620633,306,113.07077429645558,891,141.53444810363305,136,41.400483088968905,48,17.691806012954132,77,29.698484809834994,279,78.746428490440124,62,27.658633371878661,57,24.207436873820409,507,129.8345100502944,192,55.443665102516448,113,37.802116342871599,429,106.7941945987702,129,36.124783736376884,162,40.607881008493905]
[null,"75 years and over:",16,9.8994949366116654,354,110,1038,136.60527076214885,63,22.671568097509269,45,26.076809620810597,73,26.419689627245813,318,73.409808608931812,42,21.931712199461309,73,33.97057550292606,355,99.744674043279119,114,48.846698967279252,58,24.413111231467404,270,91.678787077491378,46,17.691806012954132,106,31.144823004794873]
[null,"With hearing difficulty",8,6.7082039324993694,138,90.443352436760108,306,91.214034007931033,24,15.811388300841896,12,13.038404810405298,11,8.6023252670426267,45,37.363083384538811,4,5.8309518948453007,39,23.769728648009426,101,53.488316481265329,9,15.556349186104045,24,16.970562748477139,81,50.219518117958877,2,11.704699910719626,14,11.704699910719626]
[null,"With no hearing difficulty",8,7.2111025509279782,216,84.219950130595535,732,138.92443989449805,39,16.643316977093239,33,22.360679774997898,62,23.853720883753127,273,71.61005515987263,38,21.931712199461309,34,22.135943621178654,254,86.608313688698502,105,47.434164902525687,34,17.888543819998318,189,80.622577482985491,44,17.691806012954132,92,31.11269837220809]

{"sheet":"ACS_Table_B18103","index":32,"n_rows":155,"n_cols":32,"rows_kept":155,"cut":false,"hidden":true,"merged":[]}
["B18103. SEX BY AGE BY VISION DIFFICULTY\n\n\n"]
["Universe:  Civilian non-institutionalized population"]
["Data Set: 2018-2022 American Community Survey 5-Year Estimates"]
[]
[null,null,"Acworth",null,"Charlestown",null,"Claremont",null,"Cornish",null,"Croydon",null,"Goshen",null,"Grantham",null,"Langdon",null,"Lempster",null,"Newport",null,"Plainfield",null,"Springfield",null,"Sunapee",null,"Unity",null,"Washington"]
[null,null,"Estimate","Margin Of Error","Estimate","Margin Of Error","Estimate","Margin Of Error","Estimate","Margin Of Error","Estimate","Margin Of Error","Estimate","Margin Of Error","Estimate","Margin Of Error","Estimate","Margin Of Error","Estimate","Margin Of Error","Estimate","Margin Of Error","Estimate","Margin Of Error","Estimate","Margin Of Error","Estimate","Margin Of Error","Estimate","Margin Of Error","Estimate","Margin Of Error"]
[null,"Total:",927,278,4839,21,12966,26,1914,235,796,166,1060,316,3394,23,717,196,957,200,6202,68,2473,17,939,398,3377,18,1271,198,1042,173]
[null,"Male:",439,104,2401,227,6543,290,947,143,426,91,449,133,1458,156,376,135,455,101,3309,235,1175,108,563,294,1987,168,610,95,500,99]
[null,"Under 5 years:",20,14,152,112,328,146,36,25,19,16,32,48,0,12,43,33,48,30,100,80,80,64,4,7,23,33,11,11,4,7]
[null,"With vision difficulty",0,12,0,12,0,19,0,12,0,12,0,12,0,12,0,12,0,12,0,17,0,12,0,12,0,12,0,12,0,12]
[null,"With no vision difficulty",20,14,152,112,328,146,36,25,19,16,32,48,0,12,43,33,48,30,100,80,80,64,4,7,23,33,11,11,4,7]
[null,"5 to 17  years:",81,68,299,157,874,187,118,54,56,36,80,49,422,152,63,51,62,38,381,140,168,78,88,77,217,75,85,49,35,25]
[null,"With vision difficulty",0,12,0,12,19,31,0,12,0,12,0,12,0,12,0,12,0,12,27,33,0,12,0,12,0,12,0,12,0,12]
[null,"With no vision difficulty",81,68,299,157,855,189,118,54,56,36,80,49,422,152,63,51,62,38,354,139,168,78,88,77,217,75,85,49,35,25]
[null,"18 to 34  years:",82,51,453,189,1355,203,121,43,57,31,47,25,63,39,84,50,38,23,1290,256,258,90,98,62,396,135,59,25,69,32]
[null,"With vision difficulty",0,12,0,12,15,25,0,12,0,12,0,12,0,12,0,12,0,12,0,17,5,8,0,12,0,12,0,12,0,12]
[null,"With no vision difficulty",82,51,453,189,1340,203,121,43,57,31,47,25,63,39,84,50,38,23,1290,256,253,89,98,62,396,135,59,25,69,32]
[null,"35 to 64  years:",174,52,869,189,2744,270,366,79,188,64,200,66,557,138,121,45,201,53,1102,241,401,80,291,236,937,263,255,56,255,80]
[null,"With vision difficulty",0,12,57,89,87,85,11,10,0,12,7,11,0,12,0,12,3,4,30,34,4,5,0,12,0,12,0,12,27,33]
[null,"With no vision difficulty",174,52,812,170,2657,266,355,79,188,64,193,64,557,138,121,45,198,53,1072,242,397,80,291,236,937,263,255,56,228,72]
[null,"65 to 74  years:",47,24,384,126,894,207,199,70,74,38,52,34,209,125,45,19,90,35,276,119,179,68,55,27,271,87,140,43,94,26]
[null,"With vision difficulty",0,12,0,12,64,73,0,12,0,12,0,12,0,12,2,3,0,12,6,10,0,12,3,5,5,9,0,12,0,12]
[null,"With no vision difficulty",47,24,384,126,830,206,199,70,74,38,52,34,209,125,43,18,90,35,270,118,179,68,52,26,266,87,140,43,94,26]
[null,"75  years and Older:",35,20,244,202,348,120,107,70,32,17,38,22,207,109,20,12,16,10,160,106,89,59,27,21,143,96,60,23,43,23]
[null,"With vision difficulty",0,12,111,154,12,22,0,12,0,12,1,2,0,12,2,3,4,4,49,46,0,12,0,12,0,12,3,4,1,2]
[null,"With no vision difficulty",35,20,133,74,336,120,107,70,32,17,37,21,207,109,18,12,12,8,111,95,89,59,27,21,143,96,57,22,42,23]
[null,"Female:",488,197,2438,227,6423,285,967,156,370,91,611,226,1936,154,341,86,502,132,2893,234,1298,110,376,132,1390,166,661,125,542,117]
[null,"Under 5 years:",12,16,161,106,381,124,54,30,30,36,7,8,0,12,2,3,23,20,90,60,149,73,15,25,47,38,0,12,18,17]
[null,"With vision difficulty",0,12,0,12,0,19,0,12,0,12,0,12,0,12,0,12,0,12,0,17,0,12,0,12,0,12,0,12,0,12]
[null,"With no vision difficulty",12,16,161,106,381,124,54,30,30,36,7,8,0,12,2,3,23,20,90,60,149,73,15,25,47,38,0,12,18,17]
[null,"5 to 17  years:",111,126,383,140,979,191,82,32,36,24,111,73,336,135,52,44,100,58,155,117,144,61,11,12,111,52,97,54,57,48]
[null,"With vision difficulty",0,12,0,12,8,18,0,12,0,12,0,12,0,12,0,12,0,12,0,17,0,12,0,12,0,12,0,12,0,12]
[null,"With no vision difficulty",111,126,383,140,971,193,82,32,36,24,111,73,336,135,52,44,100,58,155,117,144,61,11,12,111,52,97,54,57,48]
[null,"18 to 34  years:",76,51,290,107,1195,223,161,63,68,39,93,48,235,135,87,43,96,57,490,171,291,127,75,49,315,121,142,65,79,39]
[null,"With vision difficulty",0,12,0,12,0,19,0,12,0,12,1,3,0,12,0,12,0,12,0,17,58,91,0,12,0,12,0,12,0,12]
[null,"With no vision difficulty",76,51,290,107,1195,223,161,63,68,39,92,48,235,135,87,43,96,57,490,171,233,91,75,49,315,121,142,65,79,39]
[null,"35 to 64  years:",189,71,1036,168,2495,259,422,147,135,41,189,68,917,189,120,31,197,62,1511,239,464,83,191,98,444,111,251,47,218,57]
[null,"With vision difficulty",0,12,36,57,0,19,0,12,0,12,24,29,0,12,0,12,2,4,48,68,6,9,6,10,10,16,0,12,0,12]
[null,"With no vision difficulty",189,71,1000,181,2495,259,422,147,135,41,165,52,917,189,120,31,195,62,1463,259,458,83,185,97,434,113,251,47,218,57]
[null,"65 to 74  years:",75,30,405,132,929,190,145,44,46,18,47,21,208,109,47,16,46,20,306,152,165,76,59,34,321,94,101,34,136,39]
[null,"With vision difficulty",2,3,17,27,37,61,3,4,2,4,2,3,18,27,2,3,0,12,9,16,4,6,7,11,0,12,0,12,2,4]
[null,"With no vision difficulty",73,30,388,132,892,183,142,44,44,18,45,21,190,106,45,16,46,20,297,153,161,76,52,31,321,94,101,34,134,38]
[null,"75  years and Older:",25,18,163,79,444,149,103,44,55,51,164,103,240,134,33,25,40,38,341,149,85,41,25,21,152,111,70,35,34,22]
[null,"With vision difficulty",0,12,17,27,54,72,0,12,2,3,99,109,0,12,5,8,4,6,41,40,12,18,0,12,0,12,2,3,10,15]
[null,"With no vision difficulty",25,18,146,74,390,136,103,44,53,51,65,32,240,134,28,24,36,38,300,147,73,35,25,21,152,111,68,33,24,17]
[]
[]
[{"$f":"A1& \"-Calculated\"","v":"B18103. SEX BY AGE BY VISION DIFFICULTY\n\n\n-Calculated"}]
[{"$f":"A2","v":"Universe:  Civilian non-institutionalized population"}]
[{"$f":"A3","v":"Data Set: 2018-2022 American Community Survey 5-Year Estimates"}]
[]
[]
[null,null,"Acworth",null,"Charlestown",null,"Claremont",null,"Cornish",null,"Croydon",null,"Goshen",null,"Grantham",null,"Langdon",null,"Lempster",null,"Newport",null,"Plainfield",null,"Springfield",null,"Sunapee",null,"Unity",null,"Washington"]
[null,null,"Estimate","Margin Of Error","Estimate","Margin Of Error","Estimate","Margin Of Error","Estimate","Margin Of Error","Estimate","Margin Of Error","Estimate","Margin Of Error","Estimate","Margin Of Error","Estimate","Margin Of Error","Estimate","Margin Of Error","Estimate","Margin Of Error","Estimate","Margin Of Error","Estimate","Margin Of Error","Estimate","Margin Of Error","Estimate","Margin Of Error","Estimate","Margin Of Error"]
[null,"Total",{"$f":"C7","v":927},278,4839,21,12966,26,1914,235,796,166,1060,316,3394,23,717,196,957,200,6202,68,2473,17,{"$f":"Y7","v":939},398,3377,18,1271,198,1042,173]
[null,"Under 5 years:",{"$f":"C28+C9","v":32},{"$f":"SQRT((D28^2)+(D9^2))","v":21.2602916254693},{"$f":"E28+E9","v":313},{"$f":"SQRT((F28^2)+(F9^2))","v":154.20765220960988},{"$f":"G28+G9","v":709},{"$f":"SQRT((H28^2)+(H9^2))","v":191.55155963865187},{"$f":"I28+I9","v":90},{"$f":"SQRT((J28^2)+(J9^2))","v":39.05124837953327},{"$f":"K28+K9","v":49},{"$f":"SQRT((L28^2)+(L9^2))","v":39.395431207184416},{"$f":"M28+M9","v":39},{"$f":"SQRT((N28^2)+(N9^2))","v":48.662100242385755},{"$f":"O28+O9","v":0},{"$f":"SQRT((P28^2)+(P9^2))","v":16.970562748477139},{"$f":"Q28+Q9","v":45},{"$f":"SQRT((R28^2)+(R9^2))","v":33.136083051561783},{"$f":"S28+S9","v":71},{"$f":"SQRT((T28^2)+(T9^2))","v":36.055512754639892},{"$f":"U28+U9","v":190},{"$f":"SQRT((V28^2)+(V9^2))","v":100},{"$f":"W28+W9","v":229},{"$f":"SQRT((X28^2)+(X9^2))","v":97.082439194738001},{"$f":"Y28+Y9","v":19},{"$f":"SQRT((Z28^2)+(Z9^2))","v":25.96150997149434},{"$f":"AA28+AA9","v":70},{"$f":"SQRT((AB28^2)+(AB9^2))","v":50.328918128646478},11,16.278820596099706,{"$f":"AE28+AE9","v":22},{"$f":"SQRT((AF28^2)+(AF9^2))","v":18.384776310850235}]
[null,"With vision difficulty",{"$f":"C29+C10","v":0},{"$f":"SQRT((D29^2)+(D10^2))","v":16.970562748477139},{"$f":"E29+E10","v":0},{"$f":"SQRT((F29^2)+(F10^2))","v":16.970562748477139},{"$f":"G29+G10","v":0},{"$f":"SQRT((H29^2)+(H10^2))","v":26.870057685088806},{"$f":"I29+I10","v":0},{"$f":"SQRT((J29^2)+(J10^2))","v":16.970562748477139},{"$f":"K29+K10","v":0},{"$f":"SQRT((L29^2)+(L10^2))","v":16.970562748477139},{"$f":"M29+M10","v":0},{"$f":"SQRT((N29^2)+(N10^2))","v":16.970562748477139},{"$f":"O29+O10","v":0},{"$f":"SQRT((P29^2)+(P10^2))","v":16.970562748477139},{"$f":"Q29+Q10","v":0},{"$f":"SQRT((R29^2)+(R10^2))","v":16.970562748477139},{"$f":"S29+S10","v":0},{"$f":"SQRT((T29^2)+(T10^2))","v":16.970562748477139},{"$f":"U29+U10","v":0},{"$f":"SQRT((V29^2)+(V10^2))","v":24.041630560342615},{"$f":"W29+W10","v":0},{"$f":"SQRT((X29^2)+(X10^2))","v":16.970562748477139},0,16.970562748477139,0,16.970562748477139,0,16.970562748477139,0,16.970562748477139]
[null,"With no vision difficulty",32,21.2602916254693,313,154.20765220960988,709,191.55155963865187,90,39.05124837953327,49,39.395431207184416,39,48.662100242385755,0,16.970562748477139,45,33.136083051561783,71,36.055512754639892,190,100,229,97.082439194738001,19,25.96150997149434,70,50.328918128646478,11,16.278820596099706,22,18.384776310850235]
[null,"5 to 17 years:",192,143.17821063276352,682,210.35446275275456,1853,267.30132809247317,200,62.769419305900861,92,43.266615305567875,191,87.920418561333065,758,203.29535164385831,115,67.357256476195644,162,69.339743293438858,536,182.45273360517237,312,99.02019995940222,99,77.929455278476055,328,91.263355187062899,182,72.917761896536561,92,54.120236510939236]
[null,"With vision difficulty",0,16.970562748477139,0,16.970562748477139,27,35.846896657869841,0,16.970562748477139,0,16.970562748477139,0,16.970562748477139,0,16.970562748477139,0,16.970562748477139,0,16.970562748477139,27,37.12142238654117,0,16.970562748477139,0,16.970562748477139,0,16.970562748477139,0,16.970562748477139,0,16.970562748477139]
[null,"With no vision difficulty",192,143.17821063276352,682,210.35446275275456,1826,270.12959852633696,200,62.769419305900861,92,43.266615305567875,191,87.920418561333065,758,203.29535164385831,115,67.357256476195644,162,69.339743293438858,509,181.68654325513489,312,99.02019995940222,99,77.929455278476055,328,91.263355187062899,182,72.917761896536561,92,54.120236510939236]
[null,"18 to 34 years:",158,72.124891681027847,743,217.18655575334307,2550,301.55928107090318,282,76.275815302099531,125,49.819674828324601,140,54.120236510939236,298,140.52046114356443,171,65.946948375190189,134,61.465437442517235,1780,307.85873383745343,549,155.65667348366404,173,79.025312400521386,711,181.28982321134299,201,69.641941385920603,148,50.447993022517757]
[null,"With vision difficulty",0,16.970562748477139,0,16.970562748477139,15,31.400636936215164,0,16.970562748477139,0,16.970562748477139,1,12.369316876852981,0,16.970562748477139,0,16.970562748477139,0,16.970562748477139,0,24.041630560342615,63,91.35097153287424,0,16.970562748477139,0,16.970562748477139,0,16.970562748477139,0,16.970562748477139]
[null,"With no vision difficulty",158,72.124891681027847,743,217.18655575334307,2535,301.55928107090318,282,76.275815302099531,125,49.819674828324601,139,54.120236510939236,298,140.52046114356443,171,65.946948375190189,134,61.465437442517235,1780,307.85873383745343,486,127.28707711311466,173,79.025312400521386,711,181.28982321134299,201,69.641941385920603,148,50.447993022517757]
[null,"35 to 64 years:",363,88.0056816347672,1905,252.87348615463821,5239,374.14034799791375,788,166.88319268278636,323,76.006578662639456,389,94.762861923857074,1474,234.01922997907673,241,54.644304369257,398,81.565924257621205,2613,339.41420123501018,865,115.27792503337315,482,255.53864678361276,1381,285.4645336990219,506,73.109506905736964,473,98.229323524088258]
[null,"With vision difficulty",0,16.970562748477139,93,105.6882207249228,87,87.097646351666697,11,15.620499351813308,0,16.970562748477139,31,31.016124838541646,0,16.970562748477139,0,16.970562748477139,5,5.6568542494923806,78,76.026311234992846,10,10.295630140987001,6,15.620499351813308,10,20,0,16.970562748477139,27,35.114099732158877]
[null,"With no vision difficulty",363,88.0056816347672,1812,248.31633051412467,5152,371.26405697293131,777,166.88319268278636,323,76.006578662639456,358,82.462112512353215,1474,234.01922997907673,241,54.644304369257,393,81.565924257621205,2535,354.46438467073108,855,115.27792503337315,476,255.15681452785068,1371,286.24814409878712,506,73.109506905736964,446,91.831367190083796]
[null,"65 to 74 years:",122,38.418745424597091,789,182.4828759089466,1823,280.97864687552328,344,82.680106434377549,120,42.047592083257278,99,39.962482405376171,417,165.8493292117879,92,24.839484696748443,136,40.311288741492746,582,193.04144632694815,344,101.9803902718557,114,43.416586692184822,592,128.08200498118384,241,54.817880294662984,230,46.872166581031863]
[null,"With vision difficulty",2,12.369316876852981,17,29.546573405388315,101,95.131487952202235,3,12.649110640673518,2,12.649110640673518,2,12.369316876852981,18,29.546573405388315,4,4.2426406871192848,0,16.970562748477139,15,18.867962264113206,4,13.416407864998739,10,12.083045973594572,5,15,0,16.970562748477139,2,12.649110640673518]
[null,"With no vision difficulty",120,38.418745424597091,772,182.4828759089466,1722,275.54491466909707,341,82.680106434377549,118,42.047592083257278,97,39.962482405376171,399,163.89325794552991,88,24.083189157584592,136,40.311288741492746,567,193.21749403198459,340,101.9803902718557,104,40.459856648287818,587,128.08200498118384,241,54.817880294662984,228,46.043457732885351]
[null,"75 years and over:",60,26.90724809414742,407,216.89859381747959,792,191.31387822110554,210,82.680106434377549,87,53.758720222862451,202,105.32331175955302,447,172.73389939441535,53,27.730849247724095,56,39.293765408776999,501,182.8578683021324,174,71.847059786744225,52,29.698484809834994,295,146.75489770362009,130,41.880783182743848,77,31.827660925679098]
[null,"With vision difficulty",0,16.970562748477139,128,156.34896865665601,66,75.286120898874842,0,16.970562748477139,2,12.369316876852981,100,109.01834707974616,0,16.970562748477139,7,8.5440037453175304,8,7.2111025509279782,90,60.959002616512684,12,21.633307652783937,0,16.970562748477139,0,16.970562748477139,5,5,11,15.132745950421556]
[null,"With no vision difficulty",60,26.90724809414742,279,104.65180361560904,726,181.37254478007415,210,82.680106434377549,85,53.758720222862451,102,38.275318418009277,447,172.73389939441535,46,26.832815729997478,48,38.832975677895199,411,175.025712396779,162,68.600291544569984,52,29.698484809834994,295,146.75489770362009,125,39.66106403010388,66,28.600699292150182]
[]
[]
[]
[]
[]
[]
[]
[]
[]
[]
[]
[]
[]
[]
[]
[]
[]
[]
[]
[]
[]
[]
[]
[]
[]
[]
["B18103. SEX BY AGE BY VISION DIFFICULTY\n\n\n-Calculated"]
["Universe:  Civilian non-institutionalized population"]
["Data Set: 2013-2017 American Community Survey 5-Year Estimates"]
[]
[]
[null,null,"Acworth",null,"Charlestown",null,"Claremont",null,"Cornish",null,"Croydon",null,"Goshen",null,"Grantham",null,"Langdon",null,"Lempster",null,"Newport",null,"Plainfield",null,"Springfield",null,"Sunapee",null,"Unity",null,"Washington"]
[null,null,"Estimate","Margin Of Error","Estimate","Margin Of Error","Estimate","Margin Of Error","Estimate","Margin Of Error","Estimate","Margin Of Error","Estimate","Margin Of Error","Estimate","Margin Of Error","Estimate","Margin Of Error","Estimate","Margin Of Error","Estimate","Margin Of Error","Estimate","Margin Of Error","Estimate","Margin Of Error","Estimate","Margin Of Error","Estimate","Margin Of Error","Estimate","Margin Of Error"]
[null,"Total",1031,143,5008,21,12948,46,1777,205,809,193,722,143,2933,35,887,143,858,129,6262,48,2439,249,1011,183,3404,16,1227,157,1265,206]
[null,"Under 5 years:",50,22.360679774997898,363,105.19030373565806,771,154.20765220960988,48,20,28,23.600847442411894,61,27.202941017470888,100,80.212218520621903,32,18.384776310850235,40,18.601075237738275,286,135.91541487263319,91,56.859475903318,12,14.560219778561036,148,73.824115301166998,32,23.706539182259394,0,15.556349186104045]
[null,"With vision difficulty",0,15.556349186104045,25,44.944410108488462,0,25.45584412271571,0,15.556349186104045,0,15.556349186104045,0,15.556349186104045,0,15.556349186104045,0,15.556349186104045,0,15.556349186104045,0,22.627416997969522,0,15.556349186104045,0,15.556349186104045,0,15.556349186104045,0,15.556349186104045,0,15.556349186104045]
[null,"With no vision difficulty",50,22.360679774997898,338,100.72239075796404,771,154.20765220960988,48,20,28,23.600847442411894,61,27.202941017470888,100,80.212218520621903,32,18.384776310850235,40,18.601075237738275,286,135.91541487263319,91,56.859475903318,12,14.560219778561036,148,73.824115301166998,32,23.706539182259394,0,15.556349186104045]
[null,"5 to 17 years:",86,34.058772731852805,644,153.71727293964071,1999,243.47895186237352,340,115.69356075426151,79,34.409301068170507,123,43.600458713183279,513,222.71955459725578,217,79.32212806020776,89,45.880278987817846,1017,253.17977802344325,364,90.443352436760108,128,45.276925690687087,461,117.32433677630571,112,41.036569057366385,151,63.812224534175265]
[null,"With vision difficulty",0,15.556349186104045,0,22.627416997969522,20,38.470768123342687,0,15.556349186104045,0,15.556349186104045,0,15.556349186104045,31,50.219518117958877,0,15.556349186104045,3,11.704699910719626,50,62.096698785040097,0,15.556349186104045,0,15.556349186104045,0,15.556349186104045,0,15.556349186104045,3,11.704699910719626]
[null,"With no vision difficulty",86,34.058772731852805,644,153.71727293964071,1979,246.61102976144437,340,115.69356075426151,79,34.409301068170507,123,43.600458713183279,482,216.5386801474508,217,79.32212806020776,86,44.922154890432402,967,229.61707253599414,364,90.443352436760108,128,45.276925690687087,461,117.32433677630571,112,41.036569057366385,148,63.812224534175265]
[null,"18 to 34 years:",157,42.449970553582247,958,183.21844885272881,2858,292.86515668477875,220,57.008771254956898,211,93.621578709184348,124,40.459856648287818,320,100.65783625729296,113,33.97057550292606,96,39.11521443121589,1070,223.45021816950637,416,101.9803902718557,124,47.423622805517503,574,148.8086019019062,146,44.654227123532216,162,58.137767414994535]
[null,"With vision difficulty",7,14.866068747318506,0,22.627416997969522,0,25.45584412271571,0,15.556349186104045,0,15.556349186104045,2,11.401754250991379,0,15.556349186104045,0,15.556349186104045,0,15.556349186104045,31,44.011362169330773,0,15.556349186104045,0,15.556349186104045,0,15.556349186104045,0,15.556349186104045,0,15.556349186104045]
[null,"With no vision difficulty",150,42.449970553582247,958,183.21844885272881,2858,292.86515668477875,220,57.008771254956898,211,93.621578709184348,122,40.459856648287818,320,100.65783625729296,113,33.97057550292606,96,39.11521443121589,1039,222.03152929257593,416,101.9803902718557,124,47.423622805517503,574,148.8086019019062,146,44.654227123532216,162,58.137767414994535]
[null,"35 to 64 years:",452,62.201286160335947,2039,232.81967270830015,5207,316.81224723801319,787,85.702975444263316,365,65.192024052026483,278,51.039200620699383,1428,154.67385040788247,393,58,474,69.354163537598808,2650,278.21754078418564,1127,99.03534722511958,513,82.03657720797473,1480,193.82982226685345,665,70.178344238091,676,118.40608092492548]
[null,"With vision difficulty",2,11.401754250991379,47,63.063460101710248,236,98.229323524088258,3,13.038404810405298,0,15.556349186104045,0,15.556349186104045,0,15.556349186104045,4,5,10,10.295630140987001,93,73.756355658343097,5,13.601470508735444,3,12.083045973594572,14,22.825424421026653,19,14.212670403551895,6,7.0710678118654755]
[null,"With no vision difficulty",450,61.400325732035007,1992,243.24884377936928,4971,314.67125702866474,784,86.371291526756735,365,65.192024052026483,278,51.039200620699383,1428,154.67385040788247,389,58,464,68.01470429252781,2557,269.41603515752359,1122,99.03534722511958,510,82.734515167492219,1466,193.82982226685345,646,68.680419334771102,670,118.40608092492548]
[null,"65 to 74 years:",192,42.449970553582247,521,161.44348856488452,1252,165.60193235587562,257,54.203320931470607,90,27.658633371878661,86,30.528675044947494,258,88.391176030189797,99,23.345235059857504,111,32.649655434629018,856,196.02550854416882,330,69.31089380465383,175,50.931326312987373,345,102.7277956543408,202,39.698866482558415,204,37.013511046643494]
[null,"With vision difficulty",6,14.866068747318506,37,42.638011210655684,21,29.206163733020468,7,6.4031242374328485,4,5,7,15.556349186104045,0,15.556349186104045,0,15.556349186104045,12,18.601075237738275,20,35.777087639996637,0,15.556349186104045,3,12.083045973594572,7,14.212670403551895,21,18.439088914585774,10,8.4852813742385695]
[null,"With no vision difficulty",186,41.773197148410844,484,156.54072952429985,1231,166.4001201922643,250,53.600373133029585,86,26.90724809414742,79,26.40075756488817,258,88.391176030189797,99,23.345235059857504,99,30.232432915661949,836,197.3068675946177,330,69.31089380465383,172,51.662365412357957,338,102.7277956543408,181,39.623225512317902,194,36.235341863986875]
[null,"75 years and over:",94,35.510561809129406,483,128.41339493993607,861,121.43310915891102,125,40.459856648287818,36,17.204650534085253,50,22.671568097509269,314,101.6070863670443,33,17.204650534085253,48,21.95449840010015,383,139.34489585198304,111,46.669047558312137,59,30.886890422961002,396,95.587656106842587,70,19.849433241279208,72,19.849433241279208]
[null,"With vision difficulty",0,15.556349186104045,54,64.884512790033341,101,53.366656256505337,13,8.9442719099991592,2,11.401754250991379,2,11.401754250991379,55,66.483080554378645,5,12.083045973594572,14,10.295630140987001,24,31.384709652950431,0,15.556349186104045,9,8.6023252670426267,22,30.083217912982647,3,11.704699910719626,2,11.704699910719626]
[null,"With no vision difficulty",94,35.510561809129406,429,122.20065466273084,760,117.66052864066182,112,39.05124837953327,34,16.401219466856727,48,22.022715545545239,259,89.375611886017325,28,16.124515496597098,34,19.235384061671343,359,138.62178760930766,111,46.669047558312137,50,28.653097563788805,374,91.219515455849688,67,19.849433241279208,70,19.849433241279208]
[]
[]
[]
[]
["B18103. SEX BY AGE BY VISION DIFFICULTY\n\n\n-Calculated"]
["Universe:  Civilian non-institutionalized population"]
["Data Set: 2008-2012 American Community Survey 5-Year Estimates"]
[]
[]
[null,null,"Acworth",null,"Charlestown",null,"Claremont",null,"Cornish",null,"Croydon",null,"Goshen",null,"Grantham",null,"Langdon",null,"Lempster",null,"Newport",null,"Plainfield",null,"Springfield",null,"Sunapee",null,"Unity",null,"Washington"]
[null,null,"Estimate","Margin Of Error","Estimate","Margin Of Error","Estimate","Margin Of Error","Estimate","Margin Of Error","Estimate","Margin Of Error","Estimate","Margin Of Error","Estimate","Margin Of Error","Estimate","Margin Of Error","Estimate","Margin Of Error","Estimate","Margin Of Error","Estimate","Margin Of Error","Estimate","Margin Of Error","Estimate","Margin Of Error","Estimate","Margin Of Error","Estimate","Margin Of Error"]
[null,"Total",746,184,5070,20,13226,55,1665,226,615,113,767,114,2936,33,776,133,1212,178,6425,61,2570,212,1354,195,3349,23,1349,139,1071,171]
[null,"Under 5 years:",48,39,258,113.17243480636087,932,138.62178760930766,109,45.967379738244816,23,20.248456731316587,17,15.556349186104045,138,64.350602172784676,30,33.241540277189323,50,27.202941017470888,227,135.11846653955189,106,54.12947441089743,92,47.801673610868477,83,59.464274989274024,46,21.400934559032695,47,24.186773244895647]
[null,"With vision difficulty",0,15.556349186104045,13,27.202941017470888,0,25.45584412271571,0,15.556349186104045,0,15.556349186104045,0,15.556349186104045,0,15.556349186104045,0,15.556349186104045,0,15.556349186104045,0,22.627416997969522,0,15.556349186104045,0,15.556349186104045,0,15.556349186104045,0,15.556349186104045,0,15.556349186104045]
[null,"With no vision difficulty",48,39,245,113.17243480636087,932,138.62178760930766,109,45.967379738244816,23,20.248456731316587,17,15.556349186104045,138,64.350602172784676,30,33.241540277189323,50,27.202941017470888,227,135.11846653955189,106,54.12947441089743,92,47.801673610868477,83,59.464274989274024,46,21.400934559032695,47,24.186773244895647]
[null,"5 to 17 years:",110,49.406477308142499,706,149.40214188558343,1993,216.4162655624572,266,79.81227975693966,79,29.410882339705484,57,30.413812651491099,446,99.724620831567975,131,53.712196007983138,259,70.035705179572517,1209,231.31147831441481,500,95.015788161757627,277,70.710678118654755,551,139.08630414242805,127,46.690470119715009,134,53.235326616824658]
[null,"With vision difficulty",0,15.556349186104045,35,56.320511361314892,26,38.470768123342687,0,15.556349186104045,0,15.556349186104045,0,15.556349186104045,0,15.556349186104045,0,15.556349186104045,0,15.556349186104045,11,21.931712199461309,0,15.556349186104045,0,15.556349186104045,0,15.556349186104045,0,15.556349186104045,0,15.556349186104045]
[null,"With no vision difficulty",110,49.406477308142499,671,139.94641831786907,1967,216.4162655624572,266,79.81227975693966,79,29.410882339705484,57,30.413812651491099,446,99.724620831567975,131,53.712196007983138,259,70.035705179572517,1198,233.49946466748057,500,95.015788161757627,277,70.710678118654755,551,139.08630414242805,127,46.690470119715009,134,53.235326616824658]
[null,"18 to 34 years:",146,60.21627686929839,901,205.08047201037937,2727,261.08427758101408,247,54.561891462814962,91,40.311288741492746,145,46.010868281309364,342,97.744565066299216,195,65.192024052026483,141,44.598206241955516,1138,230.05434140654683,384,92.097774131626011,155,46.75467891024384,532,114.69088891450794,211,49.819674828324601,109,36.891733491393431]
[null,"With vision difficulty",0,15.556349186104045,0,22.627416997969522,0,25.45584412271571,4,12.529964086141668,0,15.556349186104045,0,15.556349186104045,12,21.095023109728988,0,15.556349186104045,11,17.029386365926403,0,22.627416997969522,0,15.556349186104045,0,15.556349186104045,0,15.556349186104045,0,15.556349186104045,0,15.556349186104045]
[null,"With no vision difficulty",146,60.21627686929839,901,205.08047201037937,2727,261.08427758101408,243,54.561891462814962,91,40.311288741492746,145,46.010868281309364,330,97.744565066299216,195,65.192024052026483,130,43.931765272977593,1138,230.05434140654683,384,92.097774131626011,155,46.75467891024384,532,114.69088891450794,211,49.819674828324601,109,36.891733491393431]
[null,"35 to 64 years:",310,55.317266743757322,2417,216.37467504308356,5512,267.8245694479877,833,88.729927307532492,320,50.219518117958877,391,50.447993022517757,1408,104.66135867644753,308,50.209560842532767,622,79.195959492893323,2923,234.18155350069739,1249,120.20815280171308,629,82.734515167492219,1455,159.80613254815975,778,80.212218520621903,492,68.117545463705611]
[null,"With vision difficulty",0,15.556349186104045,79,68.425141578224014,171,90.271811768680038,21,18.439088914585774,2,11.704699910719626,5,5.8309518948453007,0,15.556349186104045,7,13.601470508735444,6,13.601470508735444,32,35.383612025908263,0,15.556349186104045,3,11.704699910719626,13,20.248456731316587,12,17.029386365926403,3,12.083045973594572]
[null,"With no vision difficulty",310,55.317266743757322,2338,209.53758612716717,5341,266.24800468735913,812,87.114866699088736,318,50.219518117958877,386,49.678969393496885,1408,104.66135867644753,301,50.209560842532767,616,79.906195003891909,2891,230.72927859289987,1249,120.20815280171308,626,82.03657720797473,1442,161.94134740701648,766,79.05694150420949,489,68.8839603971781]
[null,"65 to 74 years:",116,43.416586692184822,434,138.05795884337854,1024,157.69908052997647,147,43.600458713183279,57,19.104973174542799,84,31.11269837220809,284,79.39773296511683,70,27.018512172212592,67,25.495097567963924,573,136.03308421115798,217,57.008771254956898,143,41.880783182743848,458,107.48953437428223,141,38.288379438153292,183,39.408120990476064]
[null,"With vision difficulty",5,13.601470508735444,0,22.627416997969522,34,33.301651610693426,0,15.556349186104045,2,11.401754250991379,0,15.556349186104045,8,16.278820596099706,0,15.556349186104045,3,11.704699910719626,13,26.40075756488817,7,16.278820596099706,21,21.95449840010015,9,17.804493814764857,0,15.556349186104045,5,12.529964086141668]
[null,"With no vision difficulty",111,44.045431091090478,434,138.05795884337854,990,154.85799947048264,147,43.600458713183279,55,19.104973174542799,84,31.11269837220809,276,79.39773296511683,70,27.018512172212592,64,24.839484696748443,560,134.80726983364065,210,55.443665102516448,122,37.802116342871599,449,107.48953437428223,141,38.288379438153292,178,38.600518131237564]
[null,"75 years and over:",16,9.8994949366116654,354,110,1038,136.60527076214885,63,22.671568097509269,45,26.076809620810597,73,26.419689627245813,318,73.409808608931812,42,21.931712199461309,73,33.97057550292606,355,99.744674043279119,114,48.846698967279252,58,24.413111231467404,270,91.678787077491378,46,17.691806012954132,106,31.144823004794873]
[null,"With vision difficulty",0,15.556349186104045,9,21.931712199461309,84,46.324939287601879,2,11.704699910719626,0,15.556349186104045,8,6.7082039324993694,6,14.866068747318506,4,11.704699910719626,8,13.601470508735444,44,34.655446902326915,0,15.556349186104045,0,15.556349186104045,13,23.706539182259394,0,15.556349186104045,2,11.704699910719626]
[null,"With no vision difficulty",16,9.8994949366116654,345,112.4144118874444,954,137.41178988718545,61,22.671568097509269,45,26.076809620810597,65,23.853720883753127,312,72.201108024738787,38,21.931712199461309,65,32.526911934581186,311,94.540996398387932,114,48.846698967279252,58,24.413111231467404,257,91.678787077491378,46,17.691806012954132,104,31.827660925679098]

{"sheet":"ACS_Table_B18104","index":33,"n_rows":152,"n_cols":32,"rows_kept":152,"cut":false,"hidden":true,"merged":[]}
["B18104. SEX BY AGE BY COGNITIVE DIFFICULTY\n\n"]
["Universe:  Civilian non-institutionalized population 5 years and over"]
["Data Set: 2018-2022 American Community Survey 5-Year Estimates"]
[]
[null,null,"Acworth",null,"Charlestown",null,"Claremont",null,"Cornish",null,"Croydon",null,"Goshen",null,"Grantham",null,"Langdon",null,"Lempster",null,"Newport",null,"Plainfield",null,"Springfield",null,"Sunapee",null,"Unity",null,"Washington"]
[null,null,"Estimate","Margin Of Error","Estimate","Margin Of Error","Estimate","Margin Of Error","Estimate","Margin Of Error","Estimate","Margin Of Error","Estimate","Margin Of Error","Estimate","Margin Of Error","Estimate","Margin Of Error","Estimate","Margin Of Error","Estimate","Margin Of Error","Estimate","Margin Of Error","Estimate","Margin Of Error","Estimate","Margin Of Error","Estimate","Margin Of Error","Estimate","Margin Of Error"]
[null,"Total:",895,272,4526,147,12257,192,1824,226,747,156,1021,297,3394,23,672,173,886,174,6012,142,2244,114,920,398,3307,46,1260,198,1020,167]
[null,"Male:",419,101,2249,229,6215,276,911,142,407,88,417,107,1458,156,333,113,407,85,3209,251,1095,132,559,294,1964,169,599,95,496,99]
[null,"5 to 17  years:",81,68,299,157,874,187,118,54,56,36,80,49,422,152,63,51,62,38,381,140,168,78,88,77,217,75,85,49,35,25]
[null,"With cognitive difficulty",0,12,0,12,123,95,9,8,0,12,0,12,0,12,0,12,4,5,9,25,0,12,3,6,0,12,0,12,0,12]
[null,"With no cognitive difficulty",81,68,299,157,751,173,109,53,56,36,80,49,422,152,63,51,58,38,372,137,168,78,85,76,217,75,85,49,35,25]
[null,"18 to 34  years:",82,51,453,189,1355,203,121,43,57,31,47,25,63,39,84,50,38,23,1290,256,258,90,98,62,396,135,59,25,69,32]
[null,"With cognitive difficulty",37,39,98,94,168,117,0,12,0,12,0,12,0,12,5,7,0,12,27,34,27,26,0,12,0,12,2,4,0,12]
[null,"With no cognitive difficulty",45,25,355,162,1187,202,121,43,57,31,47,25,63,39,79,48,38,23,1263,257,231,86,98,62,396,135,57,24,69,32]
[null,"35 to 64  years:",174,52,869,189,2744,270,366,79,188,64,200,66,557,138,121,45,201,53,1102,241,401,80,291,236,937,263,255,56,255,80]
[null,"With cognitive difficulty",7,10,156,132,245,122,13,10,10,10,15,15,0,12,23,34,7,8,86,92,4,5,7,7,267,269,17,14,24,32]
[null,"With no cognitive difficulty",167,51,713,160,2499,298,353,80,178,63,185,63,557,138,98,28,194,53,1016,238,397,80,284,236,670,165,238,56,231,72]
[null,"65 to 74  years:",47,24,384,126,894,207,199,70,74,38,52,34,209,125,45,19,90,35,276,119,179,68,55,27,271,87,140,43,94,26]
[null,"With cognitive difficulty",6,9,0,12,23,38,0,12,4,5,0,12,48,68,2,4,0,12,9,17,18,15,3,5,0,12,14,17,3,4]
[null,"With no cognitive difficulty",41,22,384,126,871,208,199,70,70,37,52,34,161,108,43,18,90,35,267,119,161,68,52,27,271,87,126,38,91,27]
[null,"75  years and Older:",35,20,244,202,348,120,107,70,32,17,38,22,207,109,20,12,16,10,160,106,89,59,27,21,143,96,60,23,43,23]
[null,"With cognitive difficulty",2,3,124,153,54,47,0,12,0,12,0,12,0,12,1,2,2,4,0,17,18,26,0,12,6,10,2,3,0,12]
[null,"With no cognitive difficulty",33,19,120,72,294,117,107,70,32,17,38,22,207,109,19,12,14,9,160,106,71,52,27,21,137,95,58,22,43,23]
[null,"Female:",476,195,2277,228,6042,287,913,151,340,80,604,225,1936,154,339,87,479,122,2803,223,1149,100,361,127,1343,163,661,125,524,108]
[null,"5 to 17  years:",111,126,383,140,979,191,82,32,36,24,111,73,336,135,52,44,100,58,155,117,144,61,11,12,111,52,97,54,57,48]
[null,"With cognitive difficulty",0,12,19,33,12,21,0,12,2,3,3,6,0,12,0,12,0,12,0,17,0,12,0,12,0,12,0,12,0,12]
[null,"With no cognitive difficulty",111,126,364,137,967,195,82,32,34,24,108,73,336,135,52,44,100,58,155,117,144,61,11,12,111,52,97,54,57,48]
[null,"18 to 34  years:",76,51,290,107,1195,223,161,63,68,39,93,48,235,135,87,43,96,57,490,171,291,127,75,49,315,121,142,65,79,39]
[null,"With cognitive difficulty",0,12,40,51,259,155,3,4,0,12,0,12,0,12,14,14,7,9,62,51,0,12,0,12,12,22,16,14,2,3]
[null,"With no cognitive difficulty",76,51,250,109,936,224,158,64,68,39,93,48,235,135,73,41,89,56,428,175,291,127,75,49,303,121,126,61,77,37]
[null,"35 to 64  years:",189,71,1036,168,2495,259,422,147,135,41,189,68,917,189,120,31,197,62,1511,239,464,83,191,98,444,111,251,47,218,57]
[null,"With cognitive difficulty",0,12,87,77,212,139,14,16,0,12,7,9,0,12,0,12,9,12,110,88,6,9,3,5,7,12,6,7,0,12]
[null,"With no cognitive difficulty",189,71,949,175,2283,266,408,148,135,41,182,66,917,189,120,31,188,58,1401,251,458,83,188,100,437,111,245,46,218,57]
[null,"65 to 74  years:",75,30,405,132,929,190,145,44,46,18,47,21,208,109,47,16,46,20,306,152,165,76,59,34,321,94,101,34,136,39]
[null,"With cognitive difficulty",2,3,17,27,47,64,14,14,0,12,7,10,0,12,0,12,0,12,35,51,0,12,7,11,0,12,2,4,5,5]
[null,"With no cognitive difficulty",73,30,388,132,882,181,131,41,46,18,40,17,208,109,47,16,46,20,271,145,165,76,52,31,321,94,99,34,131,38]
[null,"75  years and Older:",25,18,163,79,444,149,103,44,55,51,164,103,240,134,33,25,40,38,341,149,85,41,25,21,152,111,70,35,34,22]
[null,"With cognitive difficulty",2,2,17,27,46,72,8,11,0,12,104,105,0,12,5,8,3,4,19,26,12,18,0,12,27,43,12,12,0,12]
[null,"With no cognitive difficulty",23,17,146,74,398,137,95,39,55,51,60,29,240,134,28,24,37,38,322,146,73,35,25,21,125,103,58,31,34,22]
[]
[]
[{"$f":"A1& \"-Calculated\"","v":"B18104. SEX BY AGE BY COGNITIVE DIFFICULTY\n\n-Calculated"}]
[{"$f":"A2","v":"Universe:  Civilian non-institutionalized population 5 years and over"}]
[{"$f":"A3","v":"Data Set: 2018-2022 American Community Survey 5-Year Estimates"}]
[]
[]
[null,null,"Acworth",null,"Charlestown",null,"Claremont",null,"Cornish",null,"Croydon",null,"Goshen",null,"Grantham",null,"Langdon",null,"Lempster",null,"Newport",null,"Plainfield",null,"Springfield",null,"Sunapee",null,"Unity",null,"Washington"]
[null,null,"Estimate","Margin Of Error","Estimate","Margin Of Error","Estimate","Margin Of Error","Estimate","Margin Of Error","Estimate","Margin Of Error","Estimate","Margin Of Error","Estimate","Margin Of Error","Estimate","Margin Of Error","Estimate","Margin Of Error","Estimate","Margin Of Error","Estimate","Margin Of Error","Estimate","Margin Of Error","Estimate","Margin Of Error","Estimate","Margin Of Error","Estimate","Margin Of Error"]
[null,"Total:",{"$f":"C7","v":895},272,4526,147,12257,192,1824,226,747,156,1021,297,3394,23,672,173,886,174,6012,142,2244,114,{"$f":"Y7","v":920},398,3307,46,1260,198,1020,167]
[null,"5 to 17  years:",{"$f":"C25+C9","v":192},{"$f":"SQRT((D25^2)+(D9^2))","v":143.17821063276352},{"$f":"E25+E9","v":682},{"$f":"SQRT((F25^2)+(F9^2))","v":210.35446275275456},{"$f":"G25+G9","v":1853},{"$f":"SQRT((H25^2)+(H9^2))","v":267.30132809247317},{"$f":"I25+I9","v":200},{"$f":"SQRT((J25^2)+(J9^2))","v":62.769419305900861},{"$f":"K25+K9","v":92},{"$f":"SQRT((L25^2)+(L9^2))","v":43.266615305567875},{"$f":"M25+M9","v":191},{"$f":"SQRT((N25^2)+(N9^2))","v":87.920418561333065},{"$f":"O25+O9","v":758},{"$f":"SQRT((P25^2)+(P9^2))","v":203.29535164385831},{"$f":"Q25+Q9","v":115},{"$f":"SQRT((R25^2)+(R9^2))","v":67.357256476195644},{"$f":"S25+S9","v":162},{"$f":"SQRT((T25^2)+(T9^2))","v":69.339743293438858},{"$f":"U25+U9","v":536},{"$f":"SQRT((V25^2)+(V9^2))","v":182.45273360517237},{"$f":"W25+W9","v":312},{"$f":"SQRT((X25^2)+(X9^2))","v":99.02019995940222},99,77.929455278476055,{"$f":"AA25+AA9","v":328},{"$f":"SQRT((AB25^2)+(AB9^2))","v":91.263355187062899},182,72.917761896536561,{"$f":"AE25+AE9","v":92},{"$f":"SQRT((AF25^2)+(AF9^2))","v":54.120236510939236}]
[null,"With cognitive difficulty",0,16.970562748477139,19,35.114099732158877,135,97.293370791642332,9,14.422205101855956,2,12.369316876852981,3,13.416407864998739,0,16.970562748477139,0,16.970562748477139,4,13,9,30.232432915661949,0,16.970562748477139,3,13.416407864998739,0,16.970562748477139,0,16.970562748477139,0,16.970562748477139]
[null,"With no cognitive difficulty",192,143.17821063276352,663,208.36986346398561,1718,260.67988031300001,191,61.911226768656427,90,43.266615305567875,188,87.920418561333065,758,203.29535164385831,115,67.357256476195644,158,69.339743293438858,527,180.16103907338012,312,99.02019995940222,96,76.941536246685374,328,91.263355187062899,182,72.917761896536561,92,54.120236510939236]
[null,"18 to 34  years:",158,72.124891681027847,743,217.18655575334307,2550,301.55928107090318,282,76.275815302099531,125,49.819674828324601,140,54.120236510939236,298,140.52046114356443,171,65.946948375190189,134,61.465437442517235,1780,307.85873383745343,549,155.65667348366404,173,79.025312400521386,711,181.28982321134299,201,69.641941385920603,148,50.447993022517757]
[null,"With cognitive difficulty",37,40.80441152620633,138,106.94391053257777,427,194.20092687729377,3,12.649110640673518,0,16.970562748477139,0,16.970562748477139,0,16.970562748477139,19,15.652475842498529,7,15,89,61.294371682887821,27,28.635642126552707,0,16.970562748477139,12,25.059928172283335,18,14.560219778561036,2,12.369316876852981]
[null,"With no cognitive difficulty",121,56.797887284651708,605,195.25624189766637,2123,301.62891108114951,279,77.103826104804938,125,49.819674828324601,140,54.120236510939236,298,140.52046114356443,152,63.126856408346519,127,60.539243470661241,1691,310.92442811718735,522,153.37861650177967,173,79.025312400521386,699,181.28982321134299,183,65.551506466289538,146,48.918299234540036]
[null,"35 to 64  years:",363,88.0056816347672,1905,252.87348615463821,5239,374.14034799791375,788,166.88319268278636,323,76.006578662639456,389,94.762861923857074,1474,234.01922997907673,241,54.644304369257,398,81.565924257621205,2613,339.41420123501018,865,115.27792503337315,482,255.53864678361276,1381,285.4645336990219,506,73.109506905736964,473,98.229323524088258]
[null,"With cognitive difficulty",7,15.620499351813308,243,152.81688388394784,457,184.94593804677083,27,18.867962264113206,10,15.620499351813308,22,17.4928556845359,0,16.970562748477139,23,36.055512754639892,16,14.422205101855956,196,127.31064370271639,10,10.295630140987001,10,8.6023252670426267,274,269.26752496355738,23,15.652475842498529,24,34.176014981270121]
[null,"With no cognitive difficulty",356,87.418533504057365,1662,237.11811402758752,4782,399.4496213541828,761,168.23792675850473,313,75.166481891864535,367,91.241437954473298,1474,234.01922997907673,218,41.773197148410844,382,78.568441501661468,2417,345.89738362699421,855,115.27792503337315,472,256.31230949761272,1107,198.8617610301186,483,72.47068372797375,449,91.831367190083796]
[null,"65 to 74  years:",122,38.418745424597091,789,182.4828759089466,1823,280.97864687552328,344,82.680106434377549,120,42.047592083257278,99,39.962482405376171,417,165.8493292117879,92,24.839484696748443,136,40.311288741492746,582,193.04144632694815,344,101.9803902718557,114,43.416586692184822,592,128.08200498118384,241,54.817880294662984,230,46.872166581031863]
[null,"With cognitive difficulty",8,9.4868329805051381,17,29.546573405388315,70,74.431176263713581,14,18.439088914585774,4,13,7,15.620499351813308,48,69.050706006528273,2,12.649110640673518,0,16.970562748477139,44,53.758720222862451,18,19.209372712298546,10,12.083045973594572,0,16.970562748477139,16,17.464249196572979,8,6.4031242374328485]
[null,"With no cognitive difficulty",114,37.20215047547655,772,182.4828759089466,1753,275.72631357924473,330,81.123362849428275,116,41.146081222881968,92,38.013155617496423,369,153.44380078712857,90,24.083189157584592,136,40.311288741492746,538,187.57931655702342,{"$f":"W36+W20","v":326},101.9803902718557,{"$f":"Y36+Y20","v":104},41.109609582188931,592,128.08200498118384,225,50.990195135927848,222,46.61544808322666]
[null,"75  years and Older:",60,26.90724809414742,407,216.89859381747959,792,191.31387822110554,210,82.680106434377549,87,53.758720222862451,202,105.32331175955302,447,172.73389939441535,53,27.730849247724095,56,39.293765408776999,501,182.8578683021324,{"$f":"W37+W21","v":174},71.847059786744225,{"$f":"Y37+Y21","v":52},29.698484809834994,295,146.75489770362009,130,41.880783182743848,77,31.827660925679098]
[null,"With cognitive difficulty",4,3.6055512754639891,141,155.36408851468863,100,85.982556370463882,8,16.278820596099706,0,16.970562748477139,104,105.68348972285122,0,16.970562748477139,6,8.2462112512353212,5,5.6568542494923806,19,31.064449134018133,{"$f":"W38+W22","v":30},31.622776601683793,{"$f":"Y38+Y22","v":0},16.970562748477139,33,44.147480109288232,14,12.369316876852981,0,16.970562748477139]
[null,"With no cognitive difficulty",56,25.495097567963924,266,103.24727599312246,692,180.16103907338012,202,80.131142510262507,87,53.758720222862451,98,36.400549446402593,447,172.73389939441535,47,26.832815729997478,51,39.05124837953327,482,180.42172818150257,{"$f":"W39+W23","v":144},62.681735776859277,{"$f":"Y39+Y23","v":52},29.698484809834994,262,140.12137595670404,116,38.013155617496423,77,31.827660925679098]
[]
[]
[]
[]
[]
[]
[]
[]
[]
[]
[]
[]
[]
[]
[]
[]
[]
[]
[]
[]
[]
[]
[]
[]
[]
[]
[]
[]
[]
[]
[]
[]
[]
[]
[]
["B18104. SEX BY AGE BY COGNITIVE DIFFICULTY\n\n-Calculated"]
["Universe:  Civilian non-institutionalized population 5 years and over"]
["Data Set: 2013-2017 American Community Survey 5-Year Estimates"]
[]
[]
[null,null,"Acworth",null,"Charlestown",null,"Claremont",null,"Cornish",null,"Croydon",null,"Goshen",null,"Grantham",null,"Langdon",null,"Lempster",null,"Newport",null,"Plainfield",null,"Springfield",null,"Sunapee",null,"Unity",null,"Washington"]
[null,null,"Estimate","Margin Of Error","Estimate","Margin Of Error","Estimate","Margin Of Error","Estimate","Margin Of Error","Estimate","Margin Of Error","Estimate","Margin Of Error","Estimate","Margin Of Error","Estimate","Margin Of Error","Estimate","Margin Of Error","Estimate","Margin Of Error","Estimate","Margin Of Error","Estimate","Margin Of Error","Estimate","Margin Of Error","Estimate","Margin Of Error","Estimate","Margin Of Error"]
[null,"Total:",981,133,4645,119,12177,173,1729,205,781,188,661,122,2833,92,855,143,818,122,5976,139,2348,226,999,179,3256,75,1195,148,1265,206]
[null,"5 to 17  years:",86,34.058772731852805,644,153.71727293964071,1999,243.47895186237352,340,115.69356075426151,79,34.409301068170507,123,43.600458713183279,513,222.71955459725578,217,79.32212806020776,89,45.880278987817846,1017,253.17977802344325,364,90.443352436760108,128,45.276925690687087,461,117.32433677630571,112,41.036569057366385,151,63.812224534175265]
[null,"With cognitive difficulty",0,15.556349186104045,18,40.311288741492746,68,45.607017003965517,9,10,5,14.212670403551895,13,8.4852813742385695,44,54.12947441089743,14,14.317821063276353,9,8.9442719099991592,66,65.79513659838392,11,15.556349186104045,12,12.529964086141668,0,15.556349186104045,0,15.556349186104045,3,12.083045973594572]
[null,"With no cognitive difficulty",86,34.058772731852805,626,154.46682491719702,1931,235.47823678633233,331,116.61903789690601,74,34.409301068170507,110,43.011626335213137,469,215.77998053572995,203,76.850504227363402,80,44.384682042344295,951,232.80034364235806,353,89.627004859026727,116,40.8166632639171,461,117.32433677630571,112,41.036569057366385,148,63.812224534175265]
[null,"18 to 34  years:",157,42.449970553582247,958,183.21844885272881,2858,292.86515668477875,220,57.008771254956898,211,93.621578709184348,124,40.459856648287818,320,100.65783625729296,113,33.97057550292606,96,39.11521443121589,1070,223.45021816950637,416,101.9803902718557,124,47.423622805517503,574,148.8086019019062,146,44.654227123532216,162,58.137767414994535]
[null,"With cognitive difficulty",16,15.620499351813308,28,34.713109915419565,163,68.505474233815804,13,16.278820596099706,3,12.083045973594572,2,11.401754250991379,0,15.556349186104045,7,13.038404810405298,2,11.401754250991379,19,33.120990323358392,7,19.416487838947599,5,14.212670403551895,0,15.556349186104045,0,15.556349186104045,9,14.866068747318506]
[null,"With no cognitive difficulty",141,39.824615503479755,930,180.69310999592651,2695,294.37391188758556,207,54.671747731346578,208,93.23089616645332,122,40.459856648287818,320,100.65783625729296,106,33.97057550292606,94,39.11521443121589,1051,222.04954402114859,409,101.9803902718557,119,47.423622805517503,574,148.8086019019062,146,44.654227123532216,153,57.245087125446844]
[null,"35 to 64  years:",452,62.201286160335947,2039,232.81967270830015,5207,316.81224723801319,787,85.702975444263316,365,65.192024052026483,278,51.039200620699383,1428,154.67385040788247,393,58,474,69.354163537598808,2650,278.21754078418564,1127,99.03534722511958,513,82.03657720797473,1480,193.82982226685345,665,70.178344238091,676,118.40608092492548]
[null,"With cognitive difficulty",6,5,159,86.977008456258133,349,134.41726079637243,12,8.4852813742385695,3,11.704699910719626,6,12.529964086141668,73,68.8839603971781,12,13.601470508735444,28,13.601470508735444,148,117.66052864066182,10,14.866068747318506,7,14.212670403551895,70,72.835430938520574,34,20.808652046684813,17,22.825424421026653]
[null,"With no cognitive difficulty",446,62.201286160335947,1880,236.24140195994434,4858,301.34697609234445,775,86.371291526756735,362,64.443773942872099,272,51.039200620699383,1355,161.64467204334326,381,58,446,68.767724987816777,2502,274.72167733908441,1117,99.03534722511958,506,81.320354155647891,1410,181.1573901335521,631,67.208630398186216,659,119.63277142990545]
[null,"65 to 74  years:",192,42.449970553582247,521,161.44348856488452,1252,165.60193235587562,257,54.203320931470607,90,27.658633371878661,86,30.528675044947494,258,88.391176030189797,99,23.345235059857504,111,32.649655434629018,856,196.02550854416882,330,69.31089380465383,175,50.931326312987373,345,102.7277956543408,202,39.698866482558415,204,37.013511046643494]
[null,"With cognitive difficulty",8,15.556349186104045,14,27.202941017470888,143,116.29703349613007,3,12.083045973594572,3,4.4721359549995796,5,12.083045973594572,0,15.556349186104045,2,11.401754250991379,0,15.556349186104045,94,84.599054368237475,21,15.620499351813308,0,15.556349186104045,9,17.029386365926403,14,17.464249196572979,3,12.083045973594572]
[null,"With no cognitive difficulty",184,41.109609582188931,507,162.18816233005415,1109,159.40200751558933,254,53.600373133029585,87,26.90724809414742,81,29.681644159311659,258,88.391176030189797,97,23.345235059857504,111,32.649655434629018,762,187.21111078138497,309,68.622153857191051,175,50.931326312987373,336,102.06860437960343,188,38.897300677553446,201,37.013511046643494]
[null,"75  years and Older:",94,35.510561809129406,483,128.41339493993607,861,121.43310915891102,125,40.459856648287818,36,17.204650534085253,50,22.671568097509269,314,101.6070863670443,33,17.204650534085253,48,21.95449840010015,383,139.34489585198304,111,46.669047558312137,59,30.886890422961002,396,95.587656106842587,70,19.849433241279208,72,19.849433241279208]
[null,"With cognitive difficulty",9,9.8488578017961039,13,27.202941017470888,88,45.793012567421243,7,13.601470508735444,5,12.529964086141668,2,11.401754250991379,52,65.924198895398035,3,11.704699910719626,13,9.8994949366116654,78,88.865066252155572,7,13.601470508735444,18,18.681541692269406,16,17.029386365926403,5,12.529964086141668,0,15.556349186104045]
[null,"With no cognitive difficulty",85,34,470,129.24782396620841,773,124.90796611905904,118,39.824615503479755,31,16.643316977093239,48,22.022715545545239,262,89.196412483911033,30,17.204650534085253,35,18.788294228055936,305,113.64858116140297,104,44.598206241955516,41,22.803508501982758,380,94.260277954183863,65,19.849433241279208,72,19.849433241279208]
[]
[]
[]
[]
[]
[]
[]
["B18104. SEX BY AGE BY COGNITIVE DIFFICULTY\n\n-Calculated"]
["Universe:  Civilian non-institutionalized population 5 years and over"]
["Data Set: 2008-2012 American Community Survey 5-Year Estimates"]
[]
[]
[null,null,"Acworth",null,"Charlestown",null,"Claremont",null,"Cornish",null,"Croydon",null,"Goshen",null,"Grantham",null,"Langdon",null,"Lempster",null,"Newport",null,"Plainfield",null,"Springfield",null,"Sunapee",null,"Unity",null,"Washington"]
[null,null,"Estimate","Margin Of Error","Estimate","Margin Of Error","Estimate","Margin Of Error","Estimate","Margin Of Error","Estimate","Margin Of Error","Estimate","Margin Of Error","Estimate","Margin Of Error","Estimate","Margin Of Error","Estimate","Margin Of Error","Estimate","Margin Of Error","Estimate","Margin Of Error","Estimate","Margin Of Error","Estimate","Margin Of Error","Estimate","Margin Of Error","Estimate","Margin Of Error"]
[null,"Total:",698,155,4812,105,12294,143,1556,215,592,104,750,110,2798,71,746,121,1162,177,6198,169,2464,204,1262,170,3266,60,1303,136,1024,162]
[null,"5 to 17  years:",110,49.406477308142499,706,149.40214188558343,1993,216.4162655624572,266,79.81227975693966,79,29.410882339705484,57,30.413812651491099,446,99.724620831567975,131,53.712196007983138,259,70.035705179572517,1209,231.31147831441481,500,95.015788161757627,277,70.710678118654755,551,139.08630414242805,127,46.690470119715009,134,53.235326616824658]
[null,"With cognitive difficulty",2,11.401754250991379,18,22.022715545545239,197,101.31633629380802,0,15.556349186104045,0,15.556349186104045,7,14.866068747318506,11,11.313708498984761,7,13.601470508735444,43,28.301943396169811,0,22.627416997969522,2,12.529964086141668,0,15.556349186104045,27,22.022715545545239,3,12.083045973594572,24,21.023796041628639]
[null,"With no cognitive difficulty",108,49.406477308142499,688,145,1796,206.49455198624491,266,79.81227975693966,79,29.410882339705484,50,28.460498941515414,435,101.13851887386922,124,53.310411741047361,216,58.258046654518033,1209,231.31147831441481,498,95.015788161757627,277,70.710678118654755,524,139.08630414242805,124,46.690470119715009,110,46.065171225124082]
[null,"18 to 34  years:",146,60.21627686929839,901,205.08047201037937,2727,261.08427758101408,247,54.561891462814962,91,40.311288741492746,145,46.010868281309364,342,97.744565066299216,195,65.192024052026483,141,44.598206241955516,1138,230.05434140654683,384,92.097774131626011,155,46.75467891024384,532,114.69088891450794,211,49.819674828324601,109,36.891733491393431]
[null,"With cognitive difficulty",8,8.9442719099991592,0,22.627416997969522,278,120.96693763173474,5,13.601470508735444,1,11.401754250991379,15,16.552945357246848,5,13.601470508735444,35,31.016124838541646,12,16.278820596099706,42,50.596442562694072,9,17.029386365926403,0,15.556349186104045,0,15.556349186104045,22,19.209372712298546,0,15.556349186104045]
[null,"With no cognitive difficulty",138,58.249463516842795,901,205.08047201037937,2449,247.6327926588076,242,54.561891462814962,90,40.311288741492746,130,44.553338819890925,337,97,160,60.802960454241045,129,43.931765272977593,1096,232.08619088605855,375,90.785461391128038,155,46.75467891024384,532,114.69088891450794,189,47.634021455258214,109,36.891733491393431]
[null,"35 to 64  years:",310,55.317266743757322,2417,216.37467504308356,5512,267.8245694479877,833,88.729927307532492,320,50.219518117958877,391,50.447993022517757,1408,104.66135867644753,308,50.209560842532767,622,79.195959492893323,2923,234.18155350069739,1249,120.20815280171308,629,82.734515167492219,1455,159.80613254815975,778,80.212218520621903,492,68.117545463705611]
[null,"With cognitive difficulty",9,8.9442719099991592,133,85.586213843118443,417,149.49581933953871,23,17.4928556845359,10,9.2195444572928871,40,20.615528128088304,29,25.495097567963924,11,8.6023252670426267,31,17,221,111.48542505637228,40,27.784887978899608,7,13.601470508735444,92,68.8839603971781,27,21.400934559032695,18,9.4339811320566032]
[null,"With no cognitive difficulty",301,54.561891462814962,2284,219.20766409959302,5095,280.16602220826138,810,86.556340033529608,310,49.648766349225639,351,47.507894080878813,1379,106.06601717798213,297,49.51767361255979,591,79.195959492893323,2702,234.29255216502295,1209,120.21647141718975,622,82.734515167492219,1363,166.29191201017565,751,79.881161734166085,474,67.357256476195644]
[null,"65 to 74  years:",116,43.416586692184822,434,138.05795884337854,1024,157.69908052997647,147,43.600458713183279,57,19.104973174542799,84,31.11269837220809,284,79.39773296511683,70,27.018512172212592,67,25.495097567963924,573,136.03308421115798,217,57.008771254956898,143,41.880783182743848,458,107.48953437428223,141,38.288379438153292,183,39.408120990476064]
[null,"With cognitive difficulty",4,13.038404810405298,33,55.362442142665635,39,33.120990323358392,4,13.038404810405298,0,15.556349186104045,4,7.0710678118654755,0,15.556349186104045,0,15.556349186104045,4,12.529964086141668,45,52.038447325030752,0,15.556349186104045,12,17.804493814764857,29,40.521599178709621,3,12.083045973594572,7,14.212670403551895]
[null,"With no cognitive difficulty",112,42.638011210655684,401,130.91982279242512,985,155.56991997169632,143,42.01190307520001,57,19.104973174542799,80,29.698484809834994,284,79.39773296511683,70,27.018512172212592,63,25.495097567963924,528,132.90974381135493,217,57.008771254956898,131,40.224370722237531,429,100.56838469419701,138,38.288379438153292,176,37.013511046643494]
[null,"75  years and Older:",16,9.8994949366116654,354,110,1038,136.60527076214885,63,22.671568097509269,45,26.076809620810597,73,26.419689627245813,318,73.409808608931812,42,21.931712199461309,73,33.97057550292606,355,99.744674043279119,114,48.846698967279252,58,24.413111231467404,270,91.678787077491378,46,17.691806012954132,106,31.144823004794873]
[null,"With cognitive difficulty",2,11.401754250991379,66,75.709972922990801,185,85.422479477008864,0,15.556349186104045,2,12.083045973594572,29,20.615528128088304,37,35.171010790137949,4,11.704699910719626,16,17.691806012954132,22,28.844410203711913,5,13.038404810405298,10,16.278820596099706,18,22.825424421026653,0,15.556349186104045,8,8.9442719099991592]
[null,"With no cognitive difficulty",14,9.2195444572928871,288,93.338095116624274,853,135.87126259809321,63,22.671568097509269,43,25.238858928247925,44,16.278820596099706,281,72.201108024738787,38,21.931712199461309,57,26.90724809414742,333,96.150923032490951,109,48.104053883222775,48,20.518284528683193,252,90.906545418908095,46,17.691806012954132,98,30.413812651491099]

{"sheet":"ACS_Table_B18105","index":34,"n_rows":152,"n_cols":32,"rows_kept":152,"cut":false,"hidden":true,"merged":[]}
["B18105. SEX BY AGE BY AMBULATORY DIFFICULTY\n\n"]
["Universe:  Civilian non-institutionalized population 5 years and over"]
["Data Set: 2018-2022 American Community Survey 5-Year Estimates"]
[]
[null,null,"Acworth",null,"Charlestown",null,"Claremont",null,"Cornish",null,"Croydon",null,"Goshen",null,"Grantham",null,"Langdon",null,"Lempster",null,"Newport",null,"Plainfield",null,"Springfield",null,"Sunapee",null,"Unity",null,"Washington"]
[null,null,"Estimate","Margin Of Error","Estimate","Margin Of Error","Estimate","Margin Of Error","Estimate","Margin Of Error","Estimate","Margin Of Error","Estimate","Margin Of Error","Estimate","Margin Of Error","Estimate","Margin Of Error","Estimate","Margin Of Error","Estimate","Margin Of Error","Estimate","Margin Of Error","Estimate","Margin Of Error","Estimate","Margin Of Error","Estimate","Margin Of Error","Estimate","Margin Of Error"]
[null,"Total:",895,272,4526,147,12257,192,1824,226,747,156,1021,297,3394,23,672,173,886,174,6012,142,2244,114,920,398,3307,46,1260,198,1020,167]
[null,"Male:",419,101,2249,229,6215,276,911,142,407,88,417,107,1458,156,333,113,407,85,3209,251,1095,132,559,294,1964,169,599,95,496,99]
[null,"5 to 17  years:",81,68,299,157,874,187,118,54,56,36,80,49,422,152,63,51,62,38,381,140,168,78,88,77,217,75,85,49,35,25]
[null,"With ambulatory difficulty",0,12,0,12,23,36,0,12,0,12,0,12,0,12,0,12,0,12,64,90,0,12,0,12,0,12,0,12,0,12]
[null,"With no ambulatory difficulty",81,68,299,157,851,185,118,54,56,36,80,49,422,152,63,51,62,38,317,124,168,78,88,77,217,75,85,49,35,25]
[null,"18 to 34  years:",82,51,453,189,1355,203,121,43,57,31,47,25,63,39,84,50,38,23,1290,256,258,90,98,62,396,135,59,25,69,32]
[null,"With ambulatory difficulty",0,12,0,12,74,76,0,12,1,2,0,12,0,12,5,7,0,12,62,73,0,12,0,12,0,12,0,12,0,12]
[null,"With no ambulatory difficulty",82,51,453,189,1281,192,121,43,56,31,47,25,63,39,79,48,38,23,1228,265,258,90,98,62,396,135,59,25,69,32]
[null,"35 to 64  years:",174,52,869,189,2744,270,366,79,188,64,200,66,557,138,121,45,201,53,1102,241,401,80,291,236,937,263,255,56,255,80]
[null,"With ambulatory difficulty",2,5,75,93,138,103,9,9,12,11,33,39,0,12,0,12,3,4,89,97,15,17,4,5,292,266,16,11,6,6]
[null,"With no ambulatory difficulty",172,52,794,168,2606,283,357,78,176,64,167,46,557,138,121,45,198,53,1013,245,386,81,287,236,645,143,239,56,249,80]
[null,"65 to 74  years:",47,24,384,126,894,207,199,70,74,38,52,34,209,125,45,19,90,35,276,119,179,68,55,27,271,87,140,43,94,26]
[null,"With ambulatory difficulty",0,12,0,12,56,45,10,9,2,3,9,11,18,28,2,3,9,14,30,25,23,16,0,12,13,20,3,4,0,12]
[null,"With no ambulatory difficulty",47,24,384,126,838,215,189,68,72,37,43,33,191,121,43,18,81,31,246,120,156,67,55,27,258,90,137,42,94,26]
[null,"75  years and Older:",35,20,244,202,348,120,107,70,32,17,38,22,207,109,20,12,16,10,160,106,89,59,27,21,143,96,60,23,43,23]
[null,"With ambulatory difficulty",5,5,141,152,76,56,11,13,13,11,0,12,36,63,3,3,4,4,84,58,22,25,0,12,11,12,6,6,16,15]
[null,"With no ambulatory difficulty",30,18,103,69,272,118,96,73,19,11,38,22,171,94,17,12,12,8,76,88,67,51,27,21,132,94,54,22,27,19]
[null,"Female:",476,195,2277,228,6042,287,913,151,340,80,604,225,1936,154,339,87,479,122,2803,223,1149,100,361,127,1343,163,661,125,524,108]
[null,"5 to 17  years:",111,126,383,140,979,191,82,32,36,24,111,73,336,135,52,44,100,58,155,117,144,61,11,12,111,52,97,54,57,48]
[null,"With ambulatory difficulty",0,12,0,12,8,18,0,12,0,12,0,12,0,12,0,12,0,12,0,17,0,12,0,12,0,12,4,5,9,14]
[null,"With no ambulatory difficulty",111,126,383,140,971,193,82,32,36,24,111,73,336,135,52,44,100,58,155,117,144,61,11,12,111,52,93,53,48,36]
[null,"18 to 34  years:",76,51,290,107,1195,223,161,63,68,39,93,48,235,135,87,43,96,57,490,171,291,127,75,49,315,121,142,65,79,39]
[null,"With ambulatory difficulty",0,12,40,51,55,56,3,4,0,12,0,12,0,12,0,12,0,12,0,17,0,12,0,12,12,22,14,14,0,12]
[null,"With no ambulatory difficulty",76,51,250,109,1140,227,158,64,68,39,93,48,235,135,87,43,96,57,490,171,291,127,75,49,303,121,128,61,79,39]
[null,"35 to 64  years:",189,71,1036,168,2495,259,422,147,135,41,189,68,917,189,120,31,197,62,1511,239,464,83,191,98,444,111,251,47,218,57]
[null,"With ambulatory difficulty",0,12,67,63,205,96,3,5,2,3,28,32,0,12,2,3,1,2,86,80,3,6,0,12,0,12,3,4,0,12]
[null,"With no ambulatory difficulty",189,71,969,176,2290,284,419,147,133,41,161,50,917,189,118,32,196,62,1425,229,461,83,191,98,444,111,248,47,218,57]
[null,"65 to 74  years:",75,30,405,132,929,190,145,44,46,18,47,21,208,109,47,16,46,20,306,152,165,76,59,34,321,94,101,34,136,39]
[null,"With ambulatory difficulty",0,12,28,34,90,79,10,15,4,5,5,5,18,27,4,4,5,6,16,27,30,30,0,12,5,9,8,8,22,20]
[null,"With no ambulatory difficulty",75,30,377,135,839,182,135,40,42,17,42,20,190,106,43,16,41,20,290,149,135,68,59,34,316,93,93,33,114,37]
[null,"75  years and Older:",25,18,163,79,444,149,103,44,55,51,164,103,240,134,33,25,40,38,341,149,85,41,25,21,152,111,70,35,34,22]
[null,"With ambulatory difficulty",0,12,62,52,89,75,18,18,34,50,115,106,0,12,8,8,4,6,123,100,12,18,8,13,40,50,20,14,18,19]
[null,"With no ambulatory difficulty",25,18,101,78,355,128,85,37,21,13,49,30,240,134,25,24,36,38,218,124,73,35,17,15,112,99,50,29,16,11]
[]
[]
[{"$f":"A1& \"-Calculated\"","v":"B18105. SEX BY AGE BY AMBULATORY DIFFICULTY\n\n-Calculated"}]
[{"$f":"A2","v":"Universe:  Civilian non-institutionalized population 5 years and over"}]
[{"$f":"A3","v":"Data Set: 2018-2022 American Community Survey 5-Year Estimates"}]
[]
[]
[null,null,"Acworth",null,"Charlestown",null,"Claremont",null,"Cornish",null,"Croydon",null,"Goshen",null,"Grantham",null,"Langdon",null,"Lempster",null,"Newport",null,"Plainfield",null,"Springfield",null,"Sunapee",null,"Unity",null,"Washington"]
[null,null,"Estimate","Margin Of Error","Estimate","Margin Of Error","Estimate","Margin Of Error","Estimate","Margin Of Error","Estimate","Margin Of Error","Estimate","Margin Of Error","Estimate","Margin Of Error","Estimate","Margin Of Error","Estimate","Margin Of Error","Estimate","Margin Of Error","Estimate","Margin Of Error","Estimate","Margin Of Error","Estimate","Margin Of Error","Estimate","Margin Of Error","Estimate","Margin Of Error"]
[null,"Total:",{"$f":"C7","v":895},272,4526,147,12257,192,1824,226,747,156,1021,297,3394,23,672,173,886,174,6012,142,2244,114,{"$f":"Y7","v":920},398,3307,46,1260,198,1020,167]
[null,"5 to 17  years:",{"$f":"C25+C9","v":192},{"$f":"SQRT((D25^2)+(D9^2))","v":143.17821063276352},{"$f":"E25+E9","v":682},{"$f":"SQRT((F25^2)+(F9^2))","v":210.35446275275456},{"$f":"G25+G9","v":1853},{"$f":"SQRT((H25^2)+(H9^2))","v":267.30132809247317},{"$f":"I25+I9","v":200},{"$f":"SQRT((J25^2)+(J9^2))","v":62.769419305900861},{"$f":"K25+K9","v":92},{"$f":"SQRT((L25^2)+(L9^2))","v":43.266615305567875},{"$f":"M25+M9","v":191},{"$f":"SQRT((N25^2)+(N9^2))","v":87.920418561333065},{"$f":"O25+O9","v":758},{"$f":"SQRT((P25^2)+(P9^2))","v":203.29535164385831},{"$f":"Q25+Q9","v":115},{"$f":"SQRT((R25^2)+(R9^2))","v":67.357256476195644},{"$f":"S25+S9","v":162},{"$f":"SQRT((T25^2)+(T9^2))","v":69.339743293438858},{"$f":"U25+U9","v":536},{"$f":"SQRT((V25^2)+(V9^2))","v":182.45273360517237},{"$f":"W25+W9","v":312},{"$f":"SQRT((X25^2)+(X9^2))","v":99.02019995940222},{"$f":"Y25+Y9","v":99},{"$f":"SQRT((Z25^2)+(Z9^2))","v":77.929455278476055},{"$f":"AA25+AA9","v":328},{"$f":"SQRT((AB25^2)+(AB9^2))","v":91.263355187062899},182,72.917761896536561,{"$f":"AE25+AE9","v":92},{"$f":"SQRT((AF25^2)+(AF9^2))","v":54.120236510939236}]
[null,"With ambulatory difficulty",0,16.970562748477139,0,16.970562748477139,31,40.249223594996216,0,16.970562748477139,0,16.970562748477139,0,16.970562748477139,0,16.970562748477139,0,16.970562748477139,0,16.970562748477139,64,91.591484320323147,0,16.970562748477139,0,16.970562748477139,0,16.970562748477139,4,13,9,18.439088914585774]
[null,"With no ambulatory difficulty",192,143.17821063276352,682,210.35446275275456,1822,267.34621747838514,200,62.769419305900861,92,43.266615305567875,191,87.920418561333065,758,203.29535164385831,115,67.357256476195644,162,69.339743293438858,472,170.48460341039598,312,99.02019995940222,99,77.929455278476055,328,91.263355187062899,178,72.180329730474355,83,43.829214001622255]
[null,"18 to 34  years:",158,72.124891681027847,743,217.18655575334307,2550,301.55928107090318,282,76.275815302099531,125,49.819674828324601,140,54.120236510939236,298,140.52046114356443,171,65.946948375190189,134,61.465437442517235,1780,307.85873383745343,549,155.65667348366404,173,79.025312400521386,711,181.28982321134299,201,69.641941385920603,148,50.447993022517757]
[null,"With ambulatory difficulty",0,16.970562748477139,40,52.392747589718944,129,94.403389769647575,3,12.649110640673518,1,12.165525060596439,0,16.970562748477139,0,16.970562748477139,5,13.892443989449804,0,16.970562748477139,62,74.953318805774032,0,16.970562748477139,0,16.970562748477139,12,25.059928172283335,14,18.439088914585774,0,16.970562748477139]
[null,"With no ambulatory difficulty",158,72.124891681027847,703,218.17882573705452,2421,297.30960293942746,279,77.103826104804938,124,49.819674828324601,140,54.120236510939236,298,140.52046114356443,166,64.443773942872099,134,61.465437442517235,1718,315.38230768386484,549,155.65667348366404,173,79.025312400521386,699,181.28982321134299,187,65.924198895398035,148,50.447993022517757]
[null,"35 to 64  years:",363,88.0056816347672,1905,252.87348615463821,5239,374.14034799791375,788,166.88319268278636,323,76.006578662639456,389,94.762861923857074,1474,234.01922997907673,241,54.644304369257,398,81.565924257621205,2613,339.41420123501018,865,115.27792503337315,482,255.53864678361276,1381,285.4645336990219,506,73.109506905736964,473,98.229323524088258]
[null,"With ambulatory difficulty",2,13,142,112.32987136109433,343,140.80127840328723,12,10.295630140987001,14,11.401754250991379,61,50.447993022517757,0,16.970562748477139,2,12.369316876852981,4,4.4721359549995796,175,125.73384588089239,18,18.027756377319946,4,13,292,266.27053911388697,19,11.704699910719626,6,13.416407864998739]
[null,"With no ambulatory difficulty",361,88.0056816347672,1763,243.31050121192879,4896,400.930168483241,776,166.41213898030395,309,76.006578662639456,328,67.94115100585212,1474,234.01922997907673,239,55.21775076911409,394,81.565924257621205,2438,335.35950858742621,847,115.97413504743201,478,255.53864678361276,1089,181.02486017119307,487,73.109506905736964,467,98.229323524088258]
[null,"65 to 74  years:",122,38.418745424597091,789,182.4828759089466,1823,280.97864687552328,344,82.680106434377549,120,42.047592083257278,99,39.962482405376171,417,165.8493292117879,92,24.839484696748443,136,40.311288741492746,582,193.04144632694815,344,101.9803902718557,114,43.416586692184822,592,128.08200498118384,241,54.817880294662984,230,46.872166581031863]
[null,"With ambulatory difficulty",0,16.970562748477139,28,36.055512754639892,146,90.917545061445651,20,17.4928556845359,6,5.8309518948453007,14,12.083045973594572,36,38.897300677553446,6,5,14,15.231546211727817,46,36.796738985948195,53,34,0,16.970562748477139,18,21.931712199461309,11,8.9442719099991592,22,23.323807579381203]
[null,"With no ambulatory difficulty",122,38.418745424597091,761,184.66456075814872,1677,281.6895454219059,324,78.892331693264083,114,40.718546143004666,85,38.587562763149478,381,160.86329600005092,86,24.083189157584592,122,36.891733491393431,536,191.31387822110554,291,95.462034338264544,114,43.416586692184822,574,129.41792766073794,230,53.413481444294568,208,45.221676218380054]
[null,"75  years and Older:",60,26.90724809414742,407,216.89859381747959,792,191.31387822110554,210,82.680106434377549,87,53.758720222862451,202,105.32331175955302,447,172.73389939441535,53,27.730849247724095,56,39.293765408776999,501,182.8578683021324,174,71.847059786744225,52,29.698484809834994,295,146.75489770362009,130,41.880783182743848,77,31.827660925679098]
[null,"With ambulatory difficulty",5,13,203,160.64868502418562,165,93.60021367496978,29,22.203603311174518,47,51.195702944680818,115,106.6770828247567,36,64.132674979295857,11,8.5440037453175304,8,7.2111025509279782,207,115.6027681329474,34,30.805843601498726,8,17.691806012954132,51,51.419840528729765,26,15.231546211727817,34,24.207436873820409]
[null,"With no ambulatory difficulty",55,25.45584412271571,204,104.1393297462587,627,174.0919297382851,181,81.841309862440497,40,17.029386365926403,87,37.20215047547655,411,163.68261972488099,42,26.832815729997478,48,38.832975677895199,294,152.05262246998569,140,61.854668376768458,44,25.80697580112788,244,136.517398158623,104,36.400549446402593,43,21.95449840010015]
[]
[]
[]
[]
[]
[]
[]
[]
[]
[]
[]
[]
[]
[]
[]
[]
[]
[]
[]
[]
[]
[]
[]
[]
[]
[]
[]
[]
[]
[]
[]
[]
[]
[]
[]
["B18105. SEX BY AGE BY AMBULATORY DIFFICULTY\n\n-Calculated"]
["Universe:  Civilian non-institutionalized population 5 years and over"]
["Data Set: 2013-2017 American Community Survey 5-Year Estimates"]
[]
[]
[null,null,"Acworth",null,"Charlestown",null,"Claremont",null,"Cornish",null,"Croydon",null,"Goshen",null,"Grantham",null,"Langdon",null,"Lempster",null,"Newport",null,"Plainfield",null,"Springfield",null,"Sunapee",null,"Unity",null,"Washington"]
[null,null,"Estimate","Margin Of Error","Estimate","Margin Of Error","Estimate","Margin Of Error","Estimate","Margin Of Error","Estimate","Margin Of Error","Estimate","Margin Of Error","Estimate","Margin Of Error","Estimate","Margin Of Error","Estimate","Margin Of Error","Estimate","Margin Of Error","Estimate","Margin Of Error","Estimate","Margin Of Error","Estimate","Margin Of Error","Estimate","Margin Of Error","Estimate","Margin Of Error"]
[null,"Total:",981,133,4645,119,12177,173,1729,205,781,188,661,122,2833,92,855,143,818,122,5976,139,2348,226,999,179,3256,75,1195,148,1265,206]
[null,"5 to 17  years:",86,34.058772731852805,644,153.71727293964071,1999,243.47895186237352,340,115.69356075426151,79,34.409301068170507,123,43.600458713183279,513,222.71955459725578,217,79.32212806020776,89,45.880278987817846,1017,253.17977802344325,364,90.443352436760108,128,45.276925690687087,461,117.32433677630571,112,41.036569057366385,151,63.812224534175265]
[null,"With ambulatory difficulty",0,15.556349186104045,0,22.627416997969522,0,25.45584412271571,0,15.556349186104045,0,15.556349186104045,0,15.556349186104045,31,50.219518117958877,2,11.401754250991379,3,11.704699910719626,50,62.096698785040097,0,15.556349186104045,0,15.556349186104045,0,15.556349186104045,4,12.529964086141668,0,15.556349186104045]
[null,"With no ambulatory difficulty",86,34.058772731852805,644,153.71727293964071,1999,243.47895186237352,340,115.69356075426151,79,34.409301068170507,123,43.600458713183279,482,216.5386801474508,215,78.492037812761623,86,44.922154890432402,967,229.61707253599414,364,90.443352436760108,128,45.276925690687087,461,117.32433677630571,108,40.36087214122113,151,63.812224534175265]
[null,"18 to 34  years:",157,42.449970553582247,958,183.21844885272881,2858,292.86515668477875,220,57.008771254956898,211,93.621578709184348,124,40.459856648287818,320,100.65783625729296,113,33.97057550292606,96,39.11521443121589,1070,223.45021816950637,416,101.9803902718557,124,47.423622805517503,574,148.8086019019062,146,44.654227123532216,162,58.137767414994535]
[null,"With ambulatory difficulty",11,12.083045973594572,0,22.627416997969522,44,39.357337308308857,0,15.556349186104045,0,15.556349186104045,0,15.556349186104045,0,15.556349186104045,4,12.083045973594572,0,15.556349186104045,0,22.627416997969522,6,14.212670403551895,0,15.556349186104045,0,15.556349186104045,0,15.556349186104045,0,15.556349186104045]
[null,"With no ambulatory difficulty",146,39.824615503479755,958,183.21844885272881,2814,292.13866570517501,220,57.008771254956898,211,93.621578709184348,124,40.459856648287818,320,100.65783625729296,109,33.97057550292606,96,39.11521443121589,1070,223.45021816950637,410,101.31633629380802,124,47.423622805517503,574,148.8086019019062,146,44.654227123532216,162,58.137767414994535]
[null,"35 to 64  years:",452,62.201286160335947,2039,232.81967270830015,5207,316.81224723801319,787,85.702975444263316,365,65.192024052026483,278,51.039200620699383,1428,154.67385040788247,393,58,474,69.354163537598808,2650,278.21754078418564,1127,99.03534722511958,513,82.03657720797473,1480,193.82982226685345,665,70.178344238091,676,118.40608092492548]
[null,"With ambulatory difficulty",17,9.8994949366116654,185,104.48444860360799,563,161.60445538412608,35,17.691806012954132,22,20.248456731316587,22,17.888543819998318,0,15.556349186104045,8,6.4031242374328485,40,22.472205054244231,236,120.10412149464314,17,13.892443989449804,6,14.212670403551895,72,68.447059834590405,44,26.570660511172846,29,21.540659228538015]
[null,"With no ambulatory difficulty",435,60,1854,241.83051916579925,4644,323.85799357125649,752,86.313382508160345,343,61.619802012015583,256,47.010637094172637,1428,154.67385040788247,385,57.314919523628397,434,61.522353661088097,2414,267.66023238426737,1110,99.724620831567975,507,82.03657720797473,1408,181.76083186429358,621,69.426219830839131,647,118.84864324004712]
[null,"65 to 74  years:",192,42.449970553582247,521,161.44348856488452,1252,165.60193235587562,257,54.203320931470607,90,27.658633371878661,86,30.528675044947494,258,88.391176030189797,99,23.345235059857504,111,32.649655434629018,856,196.02550854416882,330,69.31089380465383,175,50.931326312987373,345,102.7277956543408,202,39.698866482558415,204,37.013511046643494]
[null,"With ambulatory difficulty",48,21.095023109728988,29,31.11269837220809,197,115.15641536623133,17,11.661903789690601,12,10,7,15.556349186104045,29,46.324939287601879,10,6.7082039324993694,15,14.866068747318506,221,140.80127840328723,41,23.021728866442675,0,15.556349186104045,0,15.556349186104045,30,19.235384061671343,11,8.4852813742385695]
[null,"With no ambulatory difficulty",144,33.837848631377263,492,161.52399202595259,1055,157.11460785044781,240,51.61395160225576,78,24.758836806279895,79,26.40075756488817,229,80.280757345705197,89,21.931712199461309,96,31.064449134018133,635,167.0748335327616,289,65.79513659838392,175,50.931326312987373,345,102.7277956543408,172,36.796738985948195,193,36.235341863986875]
[null,"75  years and Older:",94,35.510561809129406,483,128.41339493993607,861,121.43310915891102,125,40.459856648287818,36,17.204650534085253,50,22.671568097509269,314,101.6070863670443,33,17.204650534085253,48,21.95449840010015,383,139.34489585198304,111,46.669047558312137,59,30.886890422961002,396,95.587656106842587,70,19.849433241279208,72,19.849433241279208]
[null,"With ambulatory difficulty",14,10.295630140987001,100,61.220911460055866,311,107.56393447619885,15,11.313708498984761,11,11.704699910719626,9,16.278820596099706,53,64.938432380216881,7,5.8309518948453007,10,8.0622577482985491,156,108.72442227944924,15,16.278820596099706,15,17.720045146669349,47,36.674241641784498,18,11.401754250991379,16,9.8994949366116654]
[null,"With no ambulatory difficulty",80,34,383,125.93649193144932,550,100.43903623591775,110,38.288379438153292,25,12.727922061357855,41,18.027756377319946,261,88.459030064770658,26,15.264337522473747,38,19.723082923316021,227,93.941471140279674,96,43.931765272977593,44,23.600847442411894,349,90.027773492406226,52,17.204650534085253,56,17.204650534085253]
[]
[]
[]
[]
[]
[]
[]
["B18105. SEX BY AGE BY AMBULATORY DIFFICULTY\n\n-Calculated"]
["Universe:  Civilian non-institutionalized population 5 years and over"]
["Data Set: 2008-2012 American Community Survey 5-Year Estimates"]
[]
[]
[null,null,"Acworth",null,"Charlestown",null,"Claremont",null,"Cornish",null,"Croydon",null,"Goshen",null,"Grantham",null,"Langdon",null,"Lempster",null,"Newport",null,"Plainfield",null,"Springfield",null,"Sunapee",null,"Unity",null,"Washington"]
[null,null,"Estimate","Margin Of Error","Estimate","Margin Of Error","Estimate","Margin Of Error","Estimate","Margin Of Error","Estimate","Margin Of Error","Estimate","Margin Of Error","Estimate","Margin Of Error","Estimate","Margin Of Error","Estimate","Margin Of Error","Estimate","Margin Of Error","Estimate","Margin Of Error","Estimate","Margin Of Error","Estimate","Margin Of Error","Estimate","Margin Of Error","Estimate","Margin Of Error"]
[null,"Total:",698,155,4812,105,12294,143,1556,215,592,104,750,110,2798,71,746,121,1162,177,6198,169,2464,204,1262,170,3266,60,1303,136,1024,162]
[null,"5 to 17  years:",110,49.406477308142499,706,149.40214188558343,1993,216.4162655624572,266,79.81227975693966,79,29.410882339705484,57,30.413812651491099,446,99.724620831567975,131,53.712196007983138,259,70.035705179572517,1209,231.31147831441481,500,95.015788161757627,277,70.710678118654755,551,139.08630414242805,127,46.690470119715009,134,53.235326616824658]
[null,"With ambulatory difficulty",0,15.556349186104045,0,22.627416997969522,38,38.948684188300895,0,15.556349186104045,0,15.556349186104045,0,15.556349186104045,0,15.556349186104045,5,13.038404810405298,3,12.083045973594572,0,22.627416997969522,2,12.529964086141668,3,12.083045973594572,5,15.556349186104045,0,15.556349186104045,0,15.556349186104045]
[null,"With no ambulatory difficulty",110,49.406477308142499,706,149.40214188558343,1955,215.72436116489024,266,79.81227975693966,79,29.410882339705484,57,30.413812651491099,446,99.724620831567975,126,53.310411741047361,256,70.035705179572517,1209,231.31147831441481,498,95.015788161757627,274,70.710678118654755,546,139.97856978837868,127,46.690470119715009,134,53.235326616824658]
[null,"18 to 34  years:",146,60.21627686929839,901,205.08047201037937,2727,261.08427758101408,247,54.561891462814962,91,40.311288741492746,145,46.010868281309364,342,97.744565066299216,195,65.192024052026483,141,44.598206241955516,1138,230.05434140654683,384,92.097774131626011,155,46.75467891024384,532,114.69088891450794,211,49.819674828324601,109,36.891733491393431]
[null,"With ambulatory difficulty",0,15.556349186104045,0,22.627416997969522,1,18.248287590894659,0,15.556349186104045,0,15.556349186104045,0,15.556349186104045,12,21.095023109728988,17,27.313000567495326,4,12.529964086141668,18,32.249030993194197,0,15.556349186104045,0,15.556349186104045,0,15.556349186104045,10,11.180339887498949,0,15.556349186104045]
[null,"With no ambulatory difficulty",146,60.21627686929839,901,205.08047201037937,2726,261.08427758101408,247,54.561891462814962,91,40.311288741492746,145,46.010868281309364,330,97.744565066299216,178,62.625873247404705,137,44.598206241955516,1120,226.38462845343543,384,92.097774131626011,155,46.75467891024384,532,114.69088891450794,201,51.400389103585589,109,36.891733491393431]
[null,"35 to 64  years:",310,55.317266743757322,2417,216.37467504308356,5512,267.8245694479877,833,88.729927307532492,320,50.219518117958877,391,50.447993022517757,1408,104.66135867644753,308,50.209560842532767,622,79.195959492893323,2923,234.18155350069739,1249,120.20815280171308,629,82.734515167492219,1455,159.80613254815975,778,80.212218520621903,492,68.117545463705611]
[null,"With ambulatory difficulty",4,4.2426406871192848,284,113.14592347937243,507,146.03081866510234,61,27.802877548915689,7,13.038404810405298,27,15.620499351813308,13,17.804493814764857,2,11.401754250991379,32,23.430749027719962,250,97.744565066299216,98,54.203320931470607,30,21.95449840010015,41,55.578772926361012,81,32.202484376209235,65,28.42534080710379]
[null,"With no ambulatory difficulty",306,54.561891462814962,2133,213.10326135467753,5005,265.88719412562915,772,84.291162051546067,313,49.648766349225639,364,49.819674828324601,1395,104.66135867644753,306,50.209560842532767,590,78.517513969814402,2673,246.08941464435239,1151,122.42957159118053,599,84.148677945645701,1414,169.9941175452845,697,79.630396206473819,427,67.357256476195644]
[null,"65 to 74  years:",116,43.416586692184822,434,138.05795884337854,1024,157.69908052997647,147,43.600458713183279,57,19.104973174542799,84,31.11269837220809,284,79.39773296511683,70,27.018512172212592,67,25.495097567963924,573,136.03308421115798,217,57.008771254956898,143,41.880783182743848,458,107.48953437428223,141,38.288379438153292,183,39.408120990476064]
[null,"With ambulatory difficulty",16,13.928388277184119,123,84.958813551037778,158,90.553851381374173,17,17.464249196572979,4,12.083045973594572,3,11.704699910719626,15,14.7648230602334,5,5,13,11.313708498984761,119,94.641428560646744,25,19.209372712298546,23,19.235384061671343,34,38.600518131237564,13,9.8488578017961039,30,21.540659228538015]
[null,"With no ambulatory difficulty",100,40.459856648287818,311,122.00409829181969,866,141.59802258506295,130,39.962482405376171,53,19.104973174542799,81,30.413812651491099,269,77.006493232713822,65,27.018512172212592,54,26.40075756488817,454,119.03780911962384,192,54.671747731346578,120,37.802116342871599,424,106.10372283760829,128,38.288379438153292,153,33.97057550292606]
[null,"75  years and Older:",16,9.8994949366116654,354,110,1038,136.60527076214885,63,22.671568097509269,45,26.076809620810597,73,26.419689627245813,318,73.409808608931812,42,21.931712199461309,73,33.97057550292606,355,99.744674043279119,114,48.846698967279252,58,24.413111231467404,270,91.678787077491378,46,17.691806012954132,106,31.144823004794873]
[null,"With ambulatory difficulty",5,5,117,57.008771254956898,420,102.57680049601859,13,9.2195444572928871,21,17.804493814764857,12,9.4868329805051381,27,18.601075237738275,4,11.704699910719626,43,26.90724809414742,94,60.440052945046304,33,24.083189157584592,17,15.811388300841896,17,19.104973174542799,12,8.9442719099991592,20,15.524174696260024]
[null,"With no ambulatory difficulty",11,8.4852813742385695,237,101.51847122568385,618,130.43005788544295,50,20.518284528683193,24,18.867962264113206,61,21.400934559032695,291,71.61005515987263,38,21.931712199461309,30,20.518284528683193,261,84.599054368237475,81,42.201895692018383,41,19.416487838947599,253,87.80091115700337,34,15.811388300841896,86,29.206163733020468]

{"sheet":"ACS_Table_B18106","index":35,"n_rows":152,"n_cols":76,"rows_kept":152,"cut":false,"hidden":true,"merged":[]}
["B18106. SEX BY AGE BY SELF-CARE DIFFICULTY\n\n\n\n"]
["Universe:  Civilian non-institutionalized population 5 years and over"]
["Data Set: 2018-2022 American Community Survey 5-Year Estimates"]
[]
[null,null,"Acworth",null,"Charlestown",null,"Claremont",null,"Cornish",null,"Croydon",null,"Goshen",null,"Grantham",null,"Langdon",null,"Lempster",null,"Newport",null,"Plainfield",null,"Springfield",null,"Sunapee",null,"Unity",null,"Washington"]
[null,null,"Estimate","Margin Of Error","Estimate","Margin Of Error","Estimate","Margin Of Error","Estimate","Margin Of Error","Estimate","Margin Of Error","Estimate","Margin Of Error","Estimate","Margin Of Error","Estimate","Margin Of Error","Estimate","Margin Of Error","Estimate","Margin Of Error","Estimate","Margin Of Error","Estimate","Margin Of Error","Estimate","Margin Of Error","Estimate","Margin Of Error","Estimate","Margin Of Error"]
[null,"Total:",895,272,4526,147,12257,192,1824,226,747,156,1021,297,3394,23,672,173,886,174,6012,142,2244,114,920,398,3307,46,1260,198,1020,167]
[null,"Male:",419,101,2249,229,6215,276,911,142,407,88,417,107,1458,156,333,113,407,85,3209,251,1095,132,559,294,1964,169,599,95,496,99]
[null,"5 to 17  years:",81,68,299,157,874,187,118,54,56,36,80,49,422,152,63,51,62,38,381,140,168,78,88,77,217,75,85,49,35,25]
[null,"With self care difficulty",0,12,0,12,23,36,0,12,0,12,0,12,0,12,0,12,0,12,0,17,0,12,0,12,0,12,0,12,0,12]
[null,"With no self care difficulty",81,68,299,157,851,185,118,54,56,36,80,49,422,152,63,51,62,38,381,140,168,78,88,77,217,75,85,49,35,25]
[null,"18 to 34  years:",82,51,453,189,1355,203,121,43,57,31,47,25,63,39,84,50,38,23,1290,256,258,90,98,62,396,135,59,25,69,32]
[null,"With self care difficulty",20,29,0,12,40,54,0,12,1,2,0,12,0,12,0,12,0,12,69,74,0,12,0,12,0,12,0,12,0,12]
[null,"With no self care difficulty",62,43,453,189,1315,197,121,43,56,31,47,25,63,39,84,50,38,23,1221,265,258,90,98,62,396,135,59,25,69,32]
[null,"35 to 64  years:",174,52,869,189,2744,270,366,79,188,64,200,66,557,138,121,45,201,53,1102,241,401,80,291,236,937,263,255,56,255,80]
[null,"With self care difficulty",0,12,57,89,86,58,3,4,0,12,7,11,0,12,0,12,0,12,9,14,0,12,4,5,292,266,9,8,6,6]
[null,"With no self care difficulty",174,52,812,170,2658,272,363,80,188,64,193,64,557,138,121,45,201,53,1093,241,401,80,287,236,645,143,246,55,249,80]
[null,"65 to 74  years:",47,24,384,126,894,207,199,70,74,38,52,34,209,125,45,19,90,35,276,119,179,68,55,27,271,87,140,43,94,26]
[null,"With self care difficulty",0,12,0,12,36,43,0,12,2,3,0,12,0,12,0,12,0,12,0,17,18,15,0,12,0,12,3,4,0,12]
[null,"With no self care difficulty",47,24,384,126,858,210,199,70,72,37,52,34,209,125,45,19,90,35,276,119,161,68,55,27,271,87,137,42,94,26]
[null,"75  years and Older:",35,20,244,202,348,120,107,70,32,17,38,22,207,109,20,12,16,10,160,106,89,59,27,21,143,96,60,23,43,23]
[null,"With self care difficulty",3,5,13,19,15,24,0,12,4,7,0,12,0,12,1,2,0,12,23,36,22,25,0,12,6,10,2,4,0,12]
[null,"With no self care difficulty",32,19,231,203,333,118,107,70,28,16,38,22,207,109,19,12,16,10,137,100,67,51,27,21,137,95,58,23,43,23]
[null,"Female:",476,195,2277,228,6042,287,913,151,340,80,604,225,1936,154,339,87,479,122,2803,223,1149,100,361,127,1343,163,661,125,524,108]
[null,"5 to 17  years:",111,126,383,140,979,191,82,32,36,24,111,73,336,135,52,44,100,58,155,117,144,61,11,12,111,52,97,54,57,48]
[null,"With self care difficulty",0,12,19,33,8,18,0,12,0,12,0,12,0,12,0,12,0,12,0,17,0,12,0,12,0,12,0,12,0,12]
[null,"With no self care difficulty",111,126,364,137,971,193,82,32,36,24,111,73,336,135,52,44,100,58,155,117,144,61,11,12,111,52,97,54,57,48]
[null,"18 to 34  years:",76,51,290,107,1195,223,161,63,68,39,93,48,235,135,87,43,96,57,490,171,291,127,75,49,315,121,142,65,79,39]
[null,"With self care difficulty",0,12,0,12,24,37,3,4,0,12,0,12,0,12,0,12,0,12,0,17,0,12,0,12,0,12,0,12,0,12]
[null,"With no self care difficulty",76,51,290,107,1171,226,158,64,68,39,93,48,235,135,87,43,96,57,490,171,291,127,75,49,315,121,142,65,79,39]
[null,"35 to 64  years:",189,71,1036,168,2495,259,422,147,135,41,189,68,917,189,120,31,197,62,1511,239,464,83,191,98,444,111,251,47,218,57]
[null,"With self care difficulty",0,12,17,27,10,70,4,7,2,3,0,12,0,12,0,12,1,2,11,19,0,12,0,12,0,12,0,12,0,12]
[null,"With no self care difficulty",189,71,1019,166,2485,272,418,147,133,40,189,68,917,189,120,31,196,62,1500,239,464,83,191,98,444,111,251,47,218,57]
[null,"65 to 74  years:",75,30,405,132,929,190,145,44,46,18,47,21,208,109,47,16,46,20,306,152,165,76,59,34,321,94,101,34,136,39]
[null,"With self care difficulty",2,3,28,34,40,69,2,4,0,12,2,3,0,12,0,12,0,12,0,17,20,27,0,12,0,12,2,4,0,12]
[null,"With no self care difficulty",73,30,377,135,889,185,143,44,46,18,45,20,208,109,47,16,46,20,306,152,145,70,59,34,321,94,99,34,136,39]
[null,"75  years and Older:",25,18,163,79,444,149,103,44,55,51,164,103,240,134,33,25,40,38,341,149,85,41,25,21,152,111,70,35,34,22]
[null,"With self care difficulty",0,12,17,27,46,72,8,11,0,12,99,108,0,12,6,8,0,12,71,82,12,18,8,13,13,24,11,12,10,15]
[null,"With no self care difficulty",25,18,146,74,398,137,95,39,55,51,65,30,240,134,27,24,40,38,270,131,73,35,17,15,139,106,59,30,24,17]
[]
[]
[{"$f":"A1& \"-Calculated\"","v":"B18106. SEX BY AGE BY SELF-CARE DIFFICULTY\n\n\n\n-Calculated"}]
[{"$f":"A2","v":"Universe:  Civilian non-institutionalized population 5 years and over"}]
[{"$f":"A3","v":"Data Set: 2018-2022 American Community Survey 5-Year Estimates"}]
[]
[]
[null,null,"Acworth",null,"Charlestown",null,"Claremont",null,"Cornish",null,"Croydon",null,"Goshen",null,"Grantham",null,"Langdon",null,"Lempster",null,"Newport",null,"Plainfield",null,"Springfield",null,"Sunapee",null,"Unity",null,"Washington"]
[null,null,"Estimate","Margin Of Error","Estimate","Margin Of Error","Estimate","Margin Of Error","Estimate","Margin Of Error","Estimate","Margin Of Error","Estimate","Margin Of Error","Estimate","Margin Of Error","Estimate","Margin Of Error","Estimate","Margin Of Error","Estimate","Margin Of Error","Estimate","Margin Of Error","Estimate","Margin Of Error","Estimate","Margin Of Error","Estimate","Margin Of Error","Estimate","Margin Of Error"]
[null,"Total:",{"$f":"C7","v":895},272,4526,147,12257,192,1824,226,747,156,1021,297,3394,23,672,173,886,174,6012,142,2244,114,{"$f":"Y7","v":920},398,3307,46,1260,198,1020,167]
[null,"5 to 17  years:",{"$f":"C25+C9","v":192},{"$f":"SQRT((D25^2)+(D9^2))","v":143.17821063276352},{"$f":"E25+E9","v":682},{"$f":"SQRT((F25^2)+(F9^2))","v":210.35446275275456},{"$f":"G25+G9","v":1853},{"$f":"SQRT((H25^2)+(H9^2))","v":267.30132809247317},{"$f":"I25+I9","v":200},{"$f":"SQRT((J25^2)+(J9^2))","v":62.769419305900861},{"$f":"K25+K9","v":92},{"$f":"SQRT((L25^2)+(L9^2))","v":43.266615305567875},{"$f":"M25+M9","v":191},{"$f":"SQRT((N25^2)+(N9^2))","v":87.920418561333065},{"$f":"O25+O9","v":758},{"$f":"SQRT((P25^2)+(P9^2))","v":203.29535164385831},{"$f":"Q25+Q9","v":115},{"$f":"SQRT((R25^2)+(R9^2))","v":67.357256476195644},{"$f":"S25+S9","v":162},{"$f":"SQRT((T25^2)+(T9^2))","v":69.339743293438858},{"$f":"U25+U9","v":536},{"$f":"SQRT((V25^2)+(V9^2))","v":182.45273360517237},{"$f":"W25+W9","v":312},{"$f":"SQRT((X25^2)+(X9^2))","v":99.02019995940222},99,77.929455278476055,{"$f":"AA25+AA9","v":328},{"$f":"SQRT((AB25^2)+(AB9^2))","v":91.263355187062899},182,72.917761896536561,{"$f":"AE25+AE9","v":92},{"$f":"SQRT((AF25^2)+(AF9^2))","v":54.120236510939236}]
[null,"With self care difficulty",0,16.970562748477139,19,35.114099732158877,31,40.249223594996216,0,16.970562748477139,0,16.970562748477139,0,16.970562748477139,0,16.970562748477139,0,16.970562748477139,0,16.970562748477139,0,24.041630560342615,0,16.970562748477139,0,16.970562748477139,0,16.970562748477139,0,16.970562748477139,0,16.970562748477139]
[null,"With no self care difficulty",192,143.17821063276352,663,208.36986346398561,1822,267.34621747838514,200,62.769419305900861,92,43.266615305567875,191,87.920418561333065,758,203.29535164385831,115,67.357256476195644,162,69.339743293438858,536,182.45273360517237,312,99.02019995940222,99,77.929455278476055,328,91.263355187062899,182,72.917761896536561,92,54.120236510939236]
[null,"18 to 34  years:",158,72.124891681027847,743,217.18655575334307,2550,301.55928107090318,282,76.275815302099531,125,49.819674828324601,140,54.120236510939236,298,140.52046114356443,171,65.946948375190189,134,61.465437442517235,1780,307.85873383745343,549,155.65667348366404,173,79.025312400521386,711,181.28982321134299,201,69.641941385920603,148,50.447993022517757]
[null,"With self care difficulty",20,31.384709652950431,0,16.970562748477139,64,65.459911396212561,3,12.649110640673518,1,12.165525060596439,0,16.970562748477139,0,16.970562748477139,0,16.970562748477139,0,16.970562748477139,69,75.927597090912869,0,16.970562748477139,0,16.970562748477139,0,16.970562748477139,0,16.970562748477139,0,16.970562748477139]
[null,"With no self care difficulty",138,66.708320320631671,743,217.18655575334307,2486,299.80827206733306,279,77.103826104804938,124,49.819674828324601,140,54.120236510939236,298,140.52046114356443,171,65.946948375190189,134,61.465437442517235,1711,315.38230768386484,549,155.65667348366404,173,79.025312400521386,711,181.28982321134299,201,69.641941385920603,148,50.447993022517757]
[null,"35 to 64  years:",363,88.0056816347672,1905,252.87348615463821,5239,374.14034799791375,788,166.88319268278636,323,76.006578662639456,389,94.762861923857074,1474,234.01922997907673,241,54.644304369257,398,81.565924257621205,2613,339.41420123501018,865,115.27792503337315,482,255.53864678361276,1381,285.4645336990219,506,73.109506905736964,473,98.229323524088258]
[null,"With self care difficulty",0,16.970562748477139,74,93.005376188691372,96,90.906545418908095,7,8.0622577482985491,2,12.369316876852981,7,16.278820596099706,0,16.970562748477139,0,16.970562748477139,1,12.165525060596439,20,23.600847442411894,0,16.970562748477139,4,13,292,266.27053911388697,9,14.422205101855956,6,13.416407864998739]
[null,"With no self care difficulty",363,88.0056816347672,1831,237.60471375795558,5143,384.66608896548183,781,167.35889578985635,321,75.471849056452825,382,93.380940239430018,1474,234.01922997907673,241,54.644304369257,397,81.565924257621205,2593,339.41420123501018,865,115.27792503337315,478,255.53864678361276,1089,181.02486017119307,497,72.346388990743691,467,98.229323524088258]
[null,"65 to 74  years:",122,38.418745424597091,789,182.4828759089466,1823,280.97864687552328,344,82.680106434377549,120,42.047592083257278,99,39.962482405376171,417,165.8493292117879,92,24.839484696748443,136,40.311288741492746,582,193.04144632694815,344,101.9803902718557,114,43.416586692184822,592,128.08200498118384,241,54.817880294662984,230,46.872166581031863]
[null,"With self care difficulty",2,12.369316876852981,28,36.055512754639892,76,81.301906496711382,2,12.649110640673518,2,12.369316876852981,2,12.369316876852981,0,16.970562748477139,0,16.970562748477139,0,16.970562748477139,0,24.041630560342615,38,30.886890422961002,0,16.970562748477139,0,16.970562748477139,5,5.6568542494923806,0,16.970562748477139]
[null,"With no self care difficulty",120,38.418745424597091,761,184.66456075814872,1747,279.86603938313061,342,82.680106434377549,118,41.146081222881968,97,39.446165846632042,417,165.8493292117879,92,24.839484696748443,136,40.311288741492746,582,193.04144632694815,306,97.590983190046813,114,43.416586692184822,592,128.08200498118384,236,54.037024344425184,230,46.872166581031863]
[null,"75  years and Older:",60,26.90724809414742,407,216.89859381747959,792,191.31387822110554,210,82.680106434377549,87,53.758720222862451,202,105.32331175955302,447,172.73389939441535,53,27.730849247724095,56,39.293765408776999,501,182.8578683021324,174,71.847059786744225,52,29.698484809834994,295,146.75489770362009,130,41.880783182743848,77,31.827660925679098]
[null,"With self care difficulty",3,13,30,33.015148038438355,61,75.894663844041105,8,16.278820596099706,4,13.892443989449804,99,108.66462165764899,0,16.970562748477139,7,8.2462112512353212,0,16.970562748477139,94,89.554452708952439,34,30.805843601498726,8,17.691806012954132,19,26,13,12.649110640673518,10,19.209372712298546]
[null,"With no self care difficulty",57,26.172504656604801,377,216.06711920141851,731,180.81205712009361,202,80.131142510262507,83,53.450912059571067,103,37.20215047547655,447,172.73389939441535,46,26.832815729997478,56,39.293765408776999,407,164.80594649465777,140,61.854668376768458,44,25.80697580112788,276,142.3411395205195,117,37.802116342871599,67,28.600699292150182]
[]
[]
[]
[]
[]
[]
[]
[]
[]
[]
[]
[]
[]
[]
[]
[]
[]
[]
[]
[]
[]
[]
[]
[]
[]
[]
[]
[]
[]
[]
[]
[]
[]
[]
[]
["B18106. SEX BY AGE BY SELF-CARE DIFFICULTY\n\n\n\n-Calculated"]
["Universe:  Civilian non-institutionalized population 5 years and over"]
["Data Set: 2013-2017 American Community Survey 5-Year Estimates"]
[]
[]
[null,null,"Acworth",null,"Charlestown",null,"Claremont",null,"Cornish",null,"Croydon",null,"Goshen",null,"Grantham",null,"Langdon",null,"Lempster",null,"Newport",null,"Plainfield",null,"Springfield",null,"Sunapee",null,"Unity",null,"Washington"]
[null,null,"Estimate","Margin Of Error","Estimate","Margin Of Error","Estimate","Margin Of Error","Estimate","Margin Of Error","Estimate","Margin Of Error","Estimate","Margin Of Error","Estimate","Margin Of Error","Estimate","Margin Of Error","Estimate","Margin Of Error","Estimate","Margin Of Error","Estimate","Margin Of Error","Estimate","Margin Of Error","Estimate","Margin Of Error","Estimate","Margin Of Error","Estimate","Margin Of Error"]
[null,"Total:",981,133,4645,119,12177,173,1729,205,781,188,661,122,2833,92,855,143,818,122,5976,139,2348,226,999,179,3256,75,1195,148,1265,206]
[null,"5 to 17  years:",86,34.058772731852805,644,153.71727293964071,1999,243.47895186237352,340,115.69356075426151,79,34.409301068170507,123,43.600458713183279,513,222.71955459725578,217,79.32212806020776,89,45.880278987817846,1017,253.17977802344325,364,90.443352436760108,128,45.276925690687087,461,117.32433677630571,112,41.036569057366385,151,63.812224534175265]
[null,"With self care difficulty",0,15.556349186104045,0,22.627416997969522,23,27.202941017470888,0,15.556349186104045,0,15.556349186104045,3,11.704699910719626,31,50.219518117958877,0,15.556349186104045,3,11.704699910719626,16,31.384709652950431,6,14.212670403551895,0,15.556349186104045,0,15.556349186104045,4,12.529964086141668,3,11.704699910719626]
[null,"With no self care difficulty",86,34.058772731852805,644,153.71727293964071,1976,240.35390573069537,340,115.69356075426151,79,34.409301068170507,120,43.600458713183279,482,216.5386801474508,217,79.32212806020776,86,44.922154890432402,1001,256.07030284669872,358,90.443352436760108,128,45.276925690687087,461,117.32433677630571,108,40.36087214122113,148,63.812224534175265]
[null,"18 to 34  years:",157,42.449970553582247,958,183.21844885272881,2858,292.86515668477875,220,57.008771254956898,211,93.621578709184348,124,40.459856648287818,320,100.65783625729296,113,33.97057550292606,96,39.11521443121589,1070,223.45021816950637,416,101.9803902718557,124,47.423622805517503,574,148.8086019019062,146,44.654227123532216,162,58.137767414994535]
[null,"With self care difficulty",7,14.866068747318506,0,22.627416997969522,52,59.774576535513823,0,15.556349186104045,0,15.556349186104045,0,15.556349186104045,0,15.556349186104045,0,15.556349186104045,0,15.556349186104045,0,22.627416997969522,0,15.556349186104045,0,15.556349186104045,0,15.556349186104045,0,15.556349186104045,0,15.556349186104045]
[null,"With no self care difficulty",150,42.449970553582247,958,183.21844885272881,2806,286.38610301479366,220,57.008771254956898,211,93.621578709184348,124,40.459856648287818,320,100.65783625729296,113,33.97057550292606,96,39.11521443121589,1070,223.45021816950637,416,101.9803902718557,124,47.423622805517503,574,148.8086019019062,146,44.654227123532216,162,58.137767414994535]
[null,"35 to 64  years:",452,62.201286160335947,2039,232.81967270830015,5207,316.81224723801319,787,85.702975444263316,365,65.192024052026483,278,51.039200620699383,1428,154.67385040788247,393,58,474,69.354163537598808,2650,278.21754078418564,1127,99.03534722511958,513,82.03657720797473,1480,193.82982226685345,665,70.178344238091,676,118.40608092492548]
[null,"With self care difficulty",8,13.038404810405298,94,64.513564465157245,213,105.54619841567009,3,11.704699910719626,0,15.556349186104045,0,15.556349186104045,0,15.556349186104045,6,12.083045973594572,10,14.866068747318506,99,92.395887354362259,6,13.601470508735444,0,15.556349186104045,23,37.643060449437421,16,11.180339887498949,0,15.556349186104045]
[null,"With no self care difficulty",444,60.605280298007038,1945,238.42189496772312,4994,313.95859599635111,784,85.702975444263316,365,65.192024052026483,278,51.039200620699383,1428,154.67385040788247,387,58.728187440104094,464,67.357256476195644,2551,272.34720486907884,1121,99.03534722511958,513,82.03657720797473,1457,189.50989420080418,649,69.426219830839131,676,118.40608092492548]
[null,"65 to 74  years:",192,42.449970553582247,521,161.44348856488452,1252,165.60193235587562,257,54.203320931470607,90,27.658633371878661,86,30.528675044947494,258,88.391176030189797,99,23.345235059857504,111,32.649655434629018,856,196.02550854416882,330,69.31089380465383,175,50.931326312987373,345,102.7277956543408,202,39.698866482558415,204,37.013511046643494]
[null,"With self care difficulty",3,11.704699910719626,0,22.627416997969522,82,101.11874208078342,0,15.556349186104045,2,11.704699910719626,2,11.401754250991379,0,15.556349186104045,2,11.401754250991379,0,15.556349186104045,12,25.612496949731394,10,15.556349186104045,0,15.556349186104045,9,17.029386365926403,0,15.556349186104045,3,12.083045973594572]
[null,"With no self care difficulty",189,42.449970553582247,521,161.44348856488452,1170,162.88953311984167,257,54.203320931470607,88,27.658633371878661,84,29.681644159311659,258,88.391176030189797,97,23.345235059857504,111,32.649655434629018,844,197.3068675946177,320,67.94115100585212,175,50.931326312987373,336,102.06860437960343,202,39.698866482558415,201,37.013511046643494]
[null,"75  years and Older:",94,35.510561809129406,483,128.41339493993607,861,121.43310915891102,125,40.459856648287818,36,17.204650534085253,50,22.671568097509269,314,101.6070863670443,33,17.204650534085253,48,21.95449840010015,383,139.34489585198304,111,46.669047558312137,59,30.886890422961002,396,95.587656106842587,70,19.849433241279208,72,19.849433241279208]
[null,"With self care difficulty",9,9.8488578017961039,32,36.400549446402593,63,40.8166632639171,3,11.704699910719626,2,12.083045973594572,0,15.556349186104045,43,64.938432380216881,0,15.556349186104045,4,12.083045973594572,96,91.983694207180008,16,24.596747752497688,3,12.083045973594572,0,15.556349186104045,0,15.556349186104045,0,15.556349186104045]
[null,"With no self care difficulty",85,34,451,128.70120434556935,798,122.29881438509533,122,40.459856648287818,34,17.804493814764857,50,22.671568097509269,271,90.686272390037075,33,17.204650534085253,44,21.095023109728988,287,110.4943437466371,95,38.587562763149478,56,30.413812651491099,396,95.587656106842587,70,19.849433241279208,72,19.849433241279208]
[]
[]
[]
[]
[]
[]
[]
["B18106. SEX BY AGE BY SELF-CARE DIFFICULTY\n\n\n\n-Calculated"]
["Universe:  Civilian non-institutionalized population 5 years and over"]
["Data Set: 2008-2012 American Community Survey 5-Year Estimates"]
[]
[]
[null,null,"Acworth",null,"Charlestown",null,"Claremont",null,"Cornish",null,"Croydon",null,"Goshen",null,"Grantham",null,"Langdon",null,"Lempster",null,"Newport",null,"Plainfield",null,"Springfield",null,"Sunapee",null,"Unity",null,"Washington"]
[null,null,"Estimate","Margin Of Error","Estimate","Margin Of Error","Estimate","Margin Of Error","Estimate","Margin Of Error","Estimate","Margin Of Error","Estimate","Margin Of Error","Estimate","Margin Of Error","Estimate","Margin Of Error","Estimate","Margin Of Error","Estimate","Margin Of Error","Estimate","Margin Of Error","Estimate","Margin Of Error","Estimate","Margin Of Error","Estimate","Margin Of Error","Estimate","Margin Of Error",null,null,null,null,null,null,null,null,null,null,"Estimate","Margin Of Error","Estimate","Margin Of Error","Estimate","Margin Of Error","Estimate","Margin Of Error","Estimate","Margin Of Error","Estimate","Margin Of Error","Estimate","Margin Of Error","Estimate","Margin Of Error","Estimate","Margin Of Error","Estimate","Margin Of Error","Estimate","Margin Of Error","Estimate","Margin Of Error","Estimate","Margin Of Error","Estimate","Margin Of Error","Estimate","Margin Of Error","Estimate","Margin Of Error","Estimate","Margin Of Error"]
[null,"Total:",698,155,4812,105,12294,143,1556,215,592,104,750,110,2798,71,746,121,1162,177,6198,169,2464,204,1262,170,3266,60,1303,136,1024,162]
[null,"5 to 17  years:",110,49.406477308142499,706,149.40214188558343,1993,216.4162655624572,266,79.81227975693966,79,29.410882339705484,57,30.413812651491099,446,99.724620831567975,131,53.712196007983138,259,70.035705179572517,1209,231.31147831441481,500,95.015788161757627,277,70.710678118654755,551,139.08630414242805,127,46.690470119715009,134,53.235326616824658]
[null,"With self care difficulty",0,15.556349186104045,10,23.345235059857504,26,38.470768123342687,0,15.556349186104045,0,15.556349186104045,0,15.556349186104045,0,15.556349186104045,2,11.401754250991379,3,12.083045973594572,0,22.627416997969522,2,12.529964086141668,0,15.556349186104045,5,15.556349186104045,0,15.556349186104045,0,15.556349186104045]
[null,"With no self care difficulty",110,49.406477308142499,696,146.20875486782589,1967,216.4162655624572,266,79.81227975693966,79,29.410882339705484,57,30.413812651491099,446,99.724620831567975,129,53.310411741047361,256,70.035705179572517,1209,231.31147831441481,498,95.015788161757627,277,70.710678118654755,546,139.97856978837868,127,46.690470119715009,134,53.235326616824658]
[null,"18 to 34  years:",146,60.21627686929839,901,205.08047201037937,2727,261.08427758101408,247,54.561891462814962,91,40.311288741492746,145,46.010868281309364,342,97.744565066299216,195,65.192024052026483,141,44.598206241955516,1138,230.05434140654683,384,92.097774131626011,155,46.75467891024384,532,114.69088891450794,211,49.819674828324601,109,36.891733491393431]
[null,"With self care difficulty",0,15.556349186104045,0,22.627416997969522,0,25.45584412271571,0,15.556349186104045,0,15.556349186104045,0,15.556349186104045,12,21.095023109728988,0,15.556349186104045,8,16.278820596099706,0,22.627416997969522,0,15.556349186104045,0,15.556349186104045,0,15.556349186104045,0,15.556349186104045,0,15.556349186104045]
[null,"With no self care difficulty",146,60.21627686929839,901,205.08047201037937,2727,261.08427758101408,247,54.561891462814962,91,40.311288741492746,145,46.010868281309364,330,97.744565066299216,195,65.192024052026483,133,44.598206241955516,1138,230.05434140654683,384,92.097774131626011,155,46.75467891024384,532,114.69088891450794,211,49.819674828324601,109,36.891733491393431]
[null,"35 to 64  years:",310,55.317266743757322,2417,216.37467504308356,5512,267.8245694479877,833,88.729927307532492,320,50.219518117958877,391,50.447993022517757,1408,104.66135867644753,308,50.209560842532767,622,79.195959492893323,2923,234.18155350069739,1249,120.20815280171308,629,82.734515167492219,1455,159.80613254815975,778,80.212218520621903,492,68.117545463705611]
[null,"With self care difficulty",2,11.401754250991379,62,60.728905802755904,127,70.682388188289167,34,21.931712199461309,0,15.556349186104045,2,11.704699910719626,0,15.556349186104045,6,14.212670403551895,6,12.529964086141668,45,46.324939287601879,42,38.209946349085598,7,15.556349186104045,4,13.601470508735444,0,15.556349186104045,30,18.384776310850235]
[null,"With no self care difficulty",308,54.561891462814962,2355,217.83020910791964,5385,273.4702908909851,799,86.556340033529608,320,50.219518117958877,389,51.088159097779204,1408,104.66135867644753,302,50.209560842532767,616,79.195959492893323,2878,235.49309968659378,1207,120.91732712891069,622,83.450584180100265,1451,159.80613254815975,778,80.212218520621903,462,64.443773942872099]
[null,"65 to 74  years:",116,43.416586692184822,434,138.05795884337854,1024,157.69908052997647,147,43.600458713183279,57,19.104973174542799,84,31.11269837220809,284,79.39773296511683,70,27.018512172212592,67,25.495097567963924,573,136.03308421115798,217,57.008771254956898,143,41.880783182743848,458,107.48953437428223,141,38.288379438153292,183,39.408120990476064]
[null,"With self care difficulty",0,15.556349186104045,38,56.320511361314892,25,30.413812651491099,4,13.038404810405298,2,11.401754250991379,0,15.556349186104045,3,12.083045973594572,0,15.556349186104045,0,15.556349186104045,1,16.124515496597098,7,16.278820596099706,8,16.278820596099706,17,30.083217912982647,0,15.556349186104045,7,14.212670403551895]
[null,"With no self care difficulty",116,43.416586692184822,396,130.3572015655445,999,157.72444325468391,143,42.80186911806539,55,19.104973174542799,84,31.11269837220809,281,78.10249675906654,70,27.018512172212592,67,25.495097567963924,572,136.03308421115798,210,55.443665102516448,135,41.048751503547585,441,104.7377677822093,141,38.288379438153292,176,37.013511046643494]
[null,"75  years and Older:",16,9.8994949366116654,354,110,1038,136.60527076214885,63,22.671568097509269,45,26.076809620810597,73,26.419689627245813,318,73.409808608931812,42,21.931712199461309,73,33.97057550292606,355,99.744674043279119,114,48.846698967279252,58,24.413111231467404,270,91.678787077491378,46,17.691806012954132,106,31.144823004794873]
[null,"With self care difficulty",2,11.401754250991379,56,40.853396431630991,144,69.634761434214738,5,12.529964086141668,12,17.804493814764857,10,15.556349186104045,0,15.556349186104045,2,11.401754250991379,8,17.029386365926403,26,29.068883707497267,17,17.029386365926403,9,9.8488578017961039,9,17.804493814764857,6,5.6568542494923806,4,12.529964086141668]
[null,"With no self care difficulty",14,9.2195444572928871,298,110.11357772772621,894,129.80754985747168,58,22.022715545545239,33,22.022715545545239,63,19.849433241279208,318,73.409808608931812,40,21.931712199461309,65,29.206163733020468,329,90.801982357215081,97,44.598206241955516,49,22.825424421026653,261,88.600225733346747,40,17.029386365926403,102,31.144823004794873]

{"sheet":"ACS_Table_B18107","index":36,"n_rows":149,"n_cols":32,"rows_kept":149,"cut":false,"hidden":true,"merged":[]}
["B18107. SEX BY AGE BY INDEPENDENT LIVING DIFFICULTY\n\n\n"]
["Universe:  Civilian non-institutionalized population 18 years and over"]
["Data Set: 2018-2022 American Community Survey 5-Year Estimates"]
[]
[null,null,"Acworth",null,"Charlestown",null,"Claremont",null,"Cornish",null,"Croydon",null,"Goshen",null,"Grantham",null,"Langdon",null,"Lempster",null,"Newport",null,"Plainfield",null,"Springfield",null,"Sunapee",null,"Unity",null,"Washington"]
[null,null,"Estimate","Margin Of Error","Estimate","Margin Of Error","Estimate","Margin Of Error","Estimate","Margin Of Error","Estimate","Margin Of Error","Estimate","Margin Of Error","Estimate","Margin Of Error","Estimate","Margin Of Error","Estimate","Margin Of Error","Estimate","Margin Of Error","Estimate","Margin Of Error","Estimate","Margin Of Error","Estimate","Margin Of Error","Estimate","Margin Of Error","Estimate","Margin Of Error"]
[null,"Total:",703,160,3844,226,10404,279,1624,224,655,144,830,225,2636,157,557,118,724,131,5476,224,1932,118,821,381,2979,96,1078,172,928,146]
[null,"Male:",338,76,1950,221,5341,288,793,142,351,82,337,88,1036,109,270,78,345,65,2828,289,927,120,471,281,1747,186,514,81,461,90]
[null,"18 to 34  years:",82,51,453,189,1355,203,121,43,57,31,47,25,63,39,84,50,38,23,1290,256,258,90,98,62,396,135,59,25,69,32]
[null,"With independent living difficulty",20,29,93,91,222,116,0,12,1,2,0,12,0,12,5,7,0,12,5,9,0,12,0,12,0,12,0,12,0,12]
[null,"With no independent living difficulty",62,43,360,149,1133,201,121,43,56,31,47,25,63,39,79,48,38,23,1285,258,258,90,98,62,396,135,59,25,69,32]
[null,"35 to 64  years:",174,52,869,189,2744,270,366,79,188,64,200,66,557,138,121,45,201,53,1102,241,401,80,291,236,937,263,255,56,255,80]
[null,"With independent living difficulty",0,12,103,114,268,138,50,56,3,8,17,16,0,12,0,12,6,8,18,25,4,5,0,12,292,266,19,14,24,32]
[null,"With no independent living difficulty",174,52,766,165,2476,298,316,71,185,63,183,62,557,138,121,45,195,54,1084,241,397,80,291,236,645,143,236,53,231,72]
[null,"65 to 74  years:",47,24,384,126,894,207,199,70,74,38,52,34,209,125,45,19,90,35,276,119,179,68,55,27,271,87,140,43,94,26]
[null,"With independent living difficulty",0,12,0,12,36,43,7,8,2,3,0,12,0,12,2,3,9,14,12,20,28,31,3,5,0,12,0,12,0,12]
[null,"With no independent living difficulty",47,24,384,126,858,210,192,68,72,37,52,34,209,125,43,18,81,31,264,118,151,61,52,27,271,87,140,43,94,26]
[null,"75  years and Older:",35,20,244,202,348,120,107,70,32,17,38,22,207,109,20,12,16,10,160,106,89,59,27,21,143,96,60,23,43,23]
[null,"With independent living difficulty",11,11,13,19,24,29,0,12,4,7,0,12,36,63,1,2,2,4,49,45,22,25,0,12,6,10,4,6,5,8]
[null,"With no independent living difficulty",24,14,231,203,324,120,107,70,28,16,38,22,171,94,19,12,14,9,111,93,67,51,27,21,137,95,56,22,38,22]
[null,"Female:",365,108,1894,229,5063,251,831,150,304,72,493,171,1600,146,287,62,379,103,2648,246,1005,105,350,128,1232,157,564,112,467,83]
[null,"18 to 34  years:",76,51,290,107,1195,223,161,63,68,39,93,48,235,135,87,43,96,57,490,171,291,127,75,49,315,121,142,65,79,39]
[null,"With independent living difficulty",0,12,40,51,96,105,3,4,0,12,0,12,0,12,14,14,0,12,55,51,0,12,0,12,24,35,16,14,2,3]
[null,"With no independent living difficulty",76,51,250,109,1099,226,158,64,68,39,93,48,235,135,73,41,96,57,435,166,291,127,75,49,291,114,126,61,77,37]
[null,"35 to 64  years:",189,71,1036,168,2495,259,422,147,135,41,189,68,917,189,120,31,197,62,1511,239,464,83,191,98,444,111,251,47,218,57]
[null,"With independent living difficulty",0,12,67,65,244,142,0,12,2,3,5,8,0,12,0,12,10,12,47,62,6,9,3,5,7,12,2,4,2,3]
[null,"With no independent living difficulty",189,71,969,180,2251,271,422,147,133,40,184,67,917,189,120,31,187,58,1464,231,458,83,188,100,437,111,249,47,216,57]
[null,"65 to 74  years:",75,30,405,132,929,190,145,44,46,18,47,21,208,109,47,16,46,20,306,152,165,76,59,34,321,94,101,34,136,39]
[null,"With independent living difficulty",2,3,28,34,3,32,8,8,0,12,9,11,0,12,0,12,0,12,0,17,20,27,0,12,5,9,2,4,22,20]
[null,"With no independent living difficulty",73,30,377,135,926,192,137,43,46,18,38,16,208,109,47,16,46,20,306,152,145,70,59,34,316,93,99,34,114,37]
[null,"75  years and Older:",25,18,163,79,444,149,103,44,55,51,164,103,240,134,33,25,40,38,341,149,85,41,25,21,152,111,70,35,34,22]
[null,"With independent living difficulty",0,12,50,43,90,75,18,18,5,8,106,108,0,12,6,8,3,4,92,89,16,20,8,13,40,50,14,12,10,15]
[null,"With no independent living difficulty",25,18,113,78,354,128,85,37,50,51,58,30,240,134,27,24,37,38,249,129,69,35,17,15,112,99,56,30,24,17]
[]
[]
[{"$f":"A1& \"-Calculated\"","v":"B18107. SEX BY AGE BY INDEPENDENT LIVING DIFFICULTY\n\n\n-Calculated"}]
[{"$f":"A2","v":"Universe:  Civilian non-institutionalized population 18 years and over"}]
[{"$f":"A3","v":"Data Set: 2018-2022 American Community Survey 5-Year Estimates"}]
[]
[]
[null,null,"Acworth",null,"Charlestown",null,"Claremont",null,"Cornish",null,"Croydon",null,"Goshen",null,"Grantham",null,"Langdon",null,"Lempster",null,"Newport",null,"Plainfield",null,"Springfield",null,"Sunapee",null,"Unity",null,"Washington"]
[null,null,"Estimate","Margin Of Error","Estimate","Margin Of Error","Estimate","Margin Of Error","Estimate","Margin Of Error","Estimate","Margin Of Error","Estimate","Margin Of Error","Estimate","Margin Of Error","Estimate","Margin Of Error","Estimate","Margin Of Error","Estimate","Margin Of Error","Estimate","Margin Of Error","Estimate","Margin Of Error","Estimate","Margin Of Error","Estimate","Margin Of Error","Estimate","Margin Of Error"]
[null,"Total:",685,117,4116,161,10164,243,1288,122,513,89,636,98,2306,122,587,89,895,122,5106,247,1933,164,1001,164,2790,91,1178,123,900,144]
[null,"18 to 34  years:",162,42.01190307520001,886,201.67548190099856,2911,250.80071770232237,221,53.758720222862451,117,46.227697325304881,131,43.829214001622255,330,97.8008179924892,160,56.586217403180434,143,44.407206622349037,1041,229.1025971044414,387,91.438503924769023,173,56.603886792339623,470,125.1758762701504,219,56.400354608814297,88,34.409301068170507]
[null,"With independent living difficulty",13,12.649110640673518,0,15.556349186104045,84,52.630789467763066,0,15.556349186104045,0,15.556349186104045,2,11.704699910719626,0,15.556349186104045,3,12.083045973594572,5,12.529964086141668,41,41.725292090050132,0,15.556349186104045,0,15.556349186104045,0,15.556349186104045,0,15.556349186104045,6,13.601470508735444]
[null,"With no independent living difficulty",149,40.80441152620633,886,201.67548190099856,2827,243.82370680473218,221,53.758720222862451,117,46.227697325304881,129,43.011626335213137,330,97.8008179924892,157,56.586217403180434,138,43.829214001622255,1000,229.86300267768192,387,91.438503924769023,173,56.603886792339623,470,125.1758762701504,219,56.400354608814297,82,31.240998703626616]
[null,"35 to 64  years:",348,56.727418414731339,2391,210.35446275275456,5160,278.40258619488435,866,84.504437753291981,310,58.137767414994535,358,56.0357029044876,1434,118.92854997854805,309,46.010868281309364,604,74.4043009509531,3059,220.62184841941652,1182,96.208107766445551,627,87.206651122491792,1508,152.10851389715174,798,67.882250993908556,542,83.486525858967212]
[null,"With independent living difficulty",3,11.704699910719626,177,96.829747495281637,312,99.724620831567975,36,21.931712199461309,3,12.083045973594572,20,11.661903789690601,14,15,16,10.295630140987001,15,11.704699910719626,134,84.480767041972342,11,12.206555615733702,15,13,72,63.529520697074361,11,11.401754250991379,35,21.2602916254693]
[null,"With no independent living difficulty",345,56.727418414731339,2214,203.34207631476571,4848,281.40007107319644,830,82.462112512353215,307,58.137767414994535,338,56.0357029044876,1420,118.92854997854805,293,45.967379738244816,589,75,2925,212.8966885604377,1171,96.260064408871031,612,87.863530545955186,1436,164.54178800535746,787,68.622153857191051,507,79.309520235593411]
[null,"65 to 74  years:",132,48.259714048054619,482,139.34489585198304,1064,144.58907289280197,156,43.139309220245984,53,18.384776310850235,78,29.698484809834994,249,77.077882690172544,80,27.586228448267445,85,28.42534080710379,625,164.26807358704855,254,59.665735560705194,146,41.880783182743848,479,110.34491379306978,107,32.526911934581186,167,37.483329627982627]
[null,"With independent living difficulty",5,12.529964086141668,0,15.556349186104045,71,47.801673610868477,5,13.601470508735444,2,11.401754250991379,2,11.401754250991379,12,21.095023109728988,0,15.556349186104045,0,15.556349186104045,52,61.465437442517235,18,15.556349186104045,7,16.278820596099706,27,28.319604517012593,6,13.038404810405298,16,13.892443989449804]
[null,"With no independent living difficulty",127,47.707441767506253,482,139.34489585198304,993,144.97241116847025,151,43.139309220245984,51,17.691806012954132,76,29.698484809834994,237,75.690157880665041,80,27.586228448267445,85,28.42534080710379,573,160.52725625263767,236,57.201398584300364,139,40.224370722237531,452,113.21660655575224,101,31.827660925679098,151,34.655446902326915]
[null,"75  years and Older:",43,19.235384061671343,357,116.04309544302927,1029,136.65284482951682,45,19.849433241279208,33,22.203603311174518,69,21.023796041628639,293,86.278618440491968,38,19.849433241279208,63,28.319604517012593,381,106.94391053257777,110,39.357337308308857,55,26.248809496813376,333,103.47946656221224,54,20.248456731316587,103,31.144823004794873]
[null,"With independent living difficulty",15,19.416487838947599,55,43.011626335213137,286,82.758685344802331,8,8.0622577482985491,3,12.083045973594572,20,14.317821063276353,50,49.365980188789933,4,11.704699910719626,23,15.524174696260024,94,63.063460101710248,26,20.615528128088304,20,16.643316977093239,40,33.421549934136806,14,8.9442719099991592,9,7.810249675906654]
[null,"With no independent living difficulty",28,12.041594578792296,302,112.43220179290273,743,115.80155439371269,37,16.970562748477139,30,22.203603311174518,49,15.811388300841896,243,78.746428490440124,34,19.104973174542799,40,22.203603311174518,287,94.031909477581067,84,34.481879299133332,35,17.691806012954132,293,101.67103815738285,40,18.601075237738275,94,29.698484809834994]
[]
[]
[]
[]
[]
[]
[]
[]
[]
[]
[]
[]
[]
[]
[]
[]
[]
[]
[]
[]
[]
[]
[]
[]
[]
[]
[]
[]
[]
[]
[]
[]
[]
[]
[]
[]
[]
[]
[]
[]
[]
[]
[]
[]
["B18107. SEX BY AGE BY INDEPENDENT LIVING DIFFICULTY\n\n\n-Calculated"]
["Universe:  Civilian non-institutionalized population 18 years and over"]
["Data Set: 2013-2017 American Community Survey 5-Year Estimates"]
[]
[]
[null,null,"Acworth",null,"Charlestown",null,"Claremont",null,"Cornish",null,"Croydon",null,"Goshen",null,"Grantham",null,"Langdon",null,"Lempster",null,"Newport",null,"Plainfield",null,"Springfield",null,"Sunapee",null,"Unity",null,"Washington"]
[null,null,"Estimate","Margin Of Error","Estimate","Margin Of Error","Estimate","Margin Of Error","Estimate","Margin Of Error","Estimate","Margin Of Error","Estimate","Margin Of Error","Estimate","Margin Of Error","Estimate","Margin Of Error","Estimate","Margin Of Error","Estimate","Margin Of Error","Estimate","Margin Of Error","Estimate","Margin Of Error","Estimate","Margin Of Error","Estimate","Margin Of Error","Estimate","Margin Of Error"]
[null,"Total:",588,122,4106,172,10301,220,1290,148,513,85,693,96,2352,107,615,94,903,122,4989,268,1964,164,985,123,2715,137,1176,110,890,124]
[null,"18 to 34  years:",146,60.21627686929839,901,205.08047201037937,2727,261.08427758101408,247,54.561891462814962,91,40.311288741492746,145,46.010868281309364,342,97.744565066299216,195,65.192024052026483,141,44.598206241955516,1138,230.05434140654683,384,92.097774131626011,155,46.75467891024384,532,114.69088891450794,211,49.819674828324601,109,36.891733491393431]
[null,"With independent living difficulty",3,11.704699910719626,0,22.627416997969522,58,47.434164902525687,4,12.529964086141668,0,15.556349186104045,0,15.556349186104045,0,15.556349186104045,21,28.231188426986208,12,16.278820596099706,38,42.5205832509386,0,15.556349186104045,0,15.556349186104045,0,15.556349186104045,0,15.556349186104045,6,13.601470508735444]
[null,"With no independent living difficulty",143,59.405386961116584,901,205.08047201037937,2669,256.68852720758673,243,54.561891462814962,91,40.311288741492746,145,46.010868281309364,342,97.744565066299216,174,65.192024052026483,129,43.931765272977593,1100,231.23364807051763,384,92.097774131626011,155,46.75467891024384,532,114.69088891450794,211,49.819674828324601,103,34.409301068170507]
[null,"35 to 64  years:",310,55.317266743757322,2417,216.37467504308356,5512,267.8245694479877,833,88.729927307532492,320,50.219518117958877,391,50.447993022517757,1408,104.66135867644753,308,50.209560842532767,622,79.195959492893323,2923,234.18155350069739,1249,120.20815280171308,629,82.734515167492219,1455,159.80613254815975,778,80.212218520621903,492,68.117545463705611]
[null,"With independent living difficulty",0,15.556349186104045,154,86.371291526756735,250,85.796270315206598,32,21.931712199461309,4,12.529964086141668,24,17.088007490635061,16,17.029386365926403,9,7.810249675906654,15,13,139,92.021736562618727,26,27.658633371878661,6,7.810249675906654,55,58.189346103904619,9,9.8994949366116654,36,21.2602916254693]
[null,"With no independent living difficulty",310,55.317266743757322,2263,212.84031572989173,5262,280.24275191340809,801,85.912746434973201,316,50.219518117958877,367,50.447993022517757,1392,104.66135867644753,299,49.51767361255979,607,79.195959492893323,2784,236.32604596192948,1223,119.5198728245642,623,83.438600180012614,1400,172.00290695217916,769,79.630396206473819,456,65.855903304107827]
[null,"65 to 74  years:",116,43.416586692184822,434,138.05795884337854,1024,157.69908052997647,147,43.600458713183279,57,19.104973174542799,84,31.11269837220809,284,79.39773296511683,70,27.018512172212592,67,25.495097567963924,573,136.03308421115798,217,57.008771254956898,143,41.880783182743848,458,107.48953437428223,141,38.288379438153292,183,39.408120990476064]
[null,"With independent living difficulty",3,11.704699910719626,0,22.627416997969522,78,53.823786563191554,9,10.63014581273465,2,11.401754250991379,3,11.704699910719626,12,20.248456731316587,0,15.556349186104045,0,15.556349186104045,33,48.041648597857254,7,16.278820596099706,8,16.278820596099706,17,30.083217912982647,5,13.038404810405298,11,11.401754250991379]
[null,"With no independent living difficulty",113,43.416586692184822,434,138.05795884337854,946,153.44380078712857,138,42.80186911806539,55,19.104973174542799,81,30.413812651491099,272,78.644770964127048,70,27.018512172212592,67,25.495097567963924,540,133.68619973654722,210,55.443665102516448,135,41.048751503547585,441,104.7377677822093,136,37.536648758246919,172,37.013511046643494]
[null,"75  years and Older:",16,9.8994949366116654,354,110,1038,136.60527076214885,63,22.671568097509269,45,26.076809620810597,73,26.419689627245813,318,73.409808608931812,42,21.931712199461309,73,33.97057550292606,355,99.744674043279119,114,48.846698967279252,58,24.413111231467404,270,91.678787077491378,46,17.691806012954132,106,31.144823004794873]
[null,"With independent living difficulty",2,11.401754250991379,56,46.486557196677836,305,92.660671268883007,8,7.2111025509279782,12,13.038404810405298,23,18.681541692269406,19,14.7648230602334,4,11.704699910719626,23,20.615528128088304,47,42.154477816715982,13,14.7648230602334,19,16.643316977093239,32,30.413812651491099,9,8.0622577482985491,12,8.4852813742385695]
[null,"With no independent living difficulty",14,9.2195444572928871,298,109.55363982999378,733,121.82774724995944,55,21.2602916254693,33,22.360679774997898,50,17.691806012954132,299,72.201108024738787,38,21.931712199461309,50,26.627053911388696,308,88.192970241397362,101,45.310043036836767,39,19.416487838947599,238,87.80091115700337,37,16.401219466856727,94,31.11269837220809]
[]
[]
[]
[]
[]
[]
[]
[]
[]
[]
["B18107. SEX BY AGE BY INDEPENDENT LIVING DIFFICULTY\n\n\n-Calculated"]
["Universe:  Civilian non-institutionalized population 18 years and over"]
["Data Set: 2008-2012 American Community Survey 5-Year Estimates"]
[]
[]
[null,null,"Acworth",null,"Charlestown",null,"Claremont",null,"Cornish",null,"Croydon",null,"Goshen",null,"Grantham",null,"Langdon",null,"Lempster",null,"Newport",null,"Plainfield",null,"Springfield",null,"Sunapee",null,"Unity",null,"Washington"]
[null,null,"Estimate","Margin Of Error","Estimate","Margin Of Error","Estimate","Margin Of Error","Estimate","Margin Of Error","Estimate","Margin Of Error","Estimate","Margin Of Error","Estimate","Margin Of Error","Estimate","Margin Of Error","Estimate","Margin Of Error","Estimate","Margin Of Error","Estimate","Margin Of Error","Estimate","Margin Of Error","Estimate","Margin Of Error","Estimate","Margin Of Error","Estimate","Margin Of Error"]
[null,"Total:",588,122,4106,172,10301,220,1290,148,513,85,693,96,2352,107,615,94,903,122,4989,268,1964,164,985,123,2715,137,1176,110,890,124]
[null,"18 to 34  years:",146,60.21627686929839,901,205.08047201037937,2727,261.08427758101408,247,54.561891462814962,91,40.311288741492746,145,46.010868281309364,342,97.744565066299216,195,65.192024052026483,141,44.598206241955516,1138,230.05434140654683,384,92.097774131626011,155,46.75467891024384,532,114.69088891450794,211,49.819674828324601,109,36.891733491393431]
[null,"With independent living difficulty",3,11.704699910719626,0,22.627416997969522,58,47.434164902525687,4,12.529964086141668,0,15.556349186104045,0,15.556349186104045,0,15.556349186104045,21,28.231188426986208,12,16.278820596099706,38,42.5205832509386,0,15.556349186104045,0,15.556349186104045,0,15.556349186104045,0,15.556349186104045,6,13.601470508735444]
[null,"With no independent living difficulty",143,59.405386961116584,901,205.08047201037937,2669,256.68852720758673,243,54.561891462814962,91,40.311288741492746,145,46.010868281309364,342,97.744565066299216,174,65.192024052026483,129,43.931765272977593,1100,231.23364807051763,384,92.097774131626011,155,46.75467891024384,532,114.69088891450794,211,49.819674828324601,103,34.409301068170507]
[null,"35 to 64  years:",310,55.317266743757322,2417,216.37467504308356,5512,267.8245694479877,833,88.729927307532492,320,50.219518117958877,391,50.447993022517757,1408,104.66135867644753,308,50.209560842532767,622,79.195959492893323,2923,234.18155350069739,1249,120.20815280171308,629,82.734515167492219,1455,159.80613254815975,778,80.212218520621903,492,68.117545463705611]
[null,"With independent living difficulty",0,15.556349186104045,154,86.371291526756735,250,85.796270315206598,32,21.931712199461309,4,12.529964086141668,24,17.088007490635061,16,17.029386365926403,9,7.810249675906654,15,13,139,92.021736562618727,26,27.658633371878661,6,7.810249675906654,55,58.189346103904619,9,9.8994949366116654,36,21.2602916254693]
[null,"With no independent living difficulty",310,55.317266743757322,2263,212.84031572989173,5262,280.24275191340809,801,85.912746434973201,316,50.219518117958877,367,50.447993022517757,1392,104.66135867644753,299,49.51767361255979,607,79.195959492893323,2784,236.32604596192948,1223,119.5198728245642,623,83.438600180012614,1400,172.00290695217916,769,79.630396206473819,456,65.855903304107827]
[null,"65 to 74  years:",116,43.416586692184822,434,138.05795884337854,1024,157.69908052997647,147,43.600458713183279,57,19.104973174542799,84,31.11269837220809,284,79.39773296511683,70,27.018512172212592,67,25.495097567963924,573,136.03308421115798,217,57.008771254956898,143,41.880783182743848,458,107.48953437428223,141,38.288379438153292,183,39.408120990476064]
[null,"With independent living difficulty",3,11.704699910719626,0,22.627416997969522,78,53.823786563191554,9,10.63014581273465,2,11.401754250991379,3,11.704699910719626,12,20.248456731316587,0,15.556349186104045,0,15.556349186104045,33,48.041648597857254,7,16.278820596099706,8,16.278820596099706,17,30.083217912982647,5,13.038404810405298,11,11.401754250991379]
[null,"With no independent living difficulty",113,43.416586692184822,434,138.05795884337854,946,153.44380078712857,138,42.80186911806539,55,19.104973174542799,81,30.413812651491099,272,78.644770964127048,70,27.018512172212592,67,25.495097567963924,540,133.68619973654722,210,55.443665102516448,135,41.048751503547585,441,104.7377677822093,136,37.536648758246919,172,37.013511046643494]
[null,"75  years and Older:",16,9.8994949366116654,354,110,1038,136.60527076214885,63,22.671568097509269,45,26.076809620810597,73,26.419689627245813,318,73.409808608931812,42,21.931712199461309,73,33.97057550292606,355,99.744674043279119,114,48.846698967279252,58,24.413111231467404,270,91.678787077491378,46,17.691806012954132,106,31.144823004794873]
[null,"With independent living difficulty",2,11.401754250991379,56,46.486557196677836,305,92.660671268883007,8,7.2111025509279782,12,13.038404810405298,23,18.681541692269406,19,14.7648230602334,4,11.704699910719626,23,20.615528128088304,47,42.154477816715982,13,14.7648230602334,19,16.643316977093239,32,30.413812651491099,9,8.0622577482985491,12,8.4852813742385695]
[null,"With no independent living difficulty",14,9.2195444572928871,298,109.55363982999378,733,121.82774724995944,55,21.2602916254693,33,22.360679774997898,50,17.691806012954132,299,72.201108024738787,38,21.931712199461309,50,26.627053911388696,308,88.192970241397362,101,45.310043036836767,39,19.416487838947599,238,87.80091115700337,37,16.401219466856727,94,31.11269837220809]

{"sheet":"ACS_Table_C18108","index":37,"n_rows":148,"n_cols":76,"rows_kept":148,"cut":false,"hidden":true,"merged":[]}
["B18108. AGE BY NUMBER OF DISABILITIES\n\n"]
["Universe:  Civilian non-institutionalized population"]
["Data Set: 2018-2022 American Community Survey 5-Year Estimates"]
[]
[null,null,"Acworth",null,"Charlestown",null,"Claremont",null,"Cornish",null,"Croydon",null,"Goshen",null,"Grantham",null,"Langdon",null,"Lempster",null,"Newport",null,"Plainfield",null,"Springfield",null,"Sunapee",null,"Unity",null,"Washington"]
[null,null,"Estimate","Margin Of Error","Estimate","Margin Of Error","Estimate","Margin Of Error","Estimate","Margin Of Error","Estimate","Margin Of Error","Estimate","Margin Of Error","Estimate","Margin Of Error","Estimate","Margin Of Error","Estimate","Margin Of Error","Estimate","Margin Of Error","Estimate","Margin Of Error","Estimate","Margin Of Error","Estimate","Margin Of Error","Estimate","Margin Of Error","Estimate","Margin Of Error"]
[null,"Total:",927,278,4839,21,12966,26,1914,235,796,166,1060,316,3394,23,717,196,957,200,6202,68,2473,17,939,398,3377,18,1271,198,1042,173]
[null,"Under 18 years:",224,187,995,224,2562,276,290,81,141,75,230,138,758,157,160,106,233,115,726,201,541,117,118,83,398,95,193,91,114,67]
[null,"With one type of disability",0,12,0,12,77,91,9,8,2,3,3,6,0,12,0,12,4,5,100,99,0,12,3,6,0,12,4,5,9,14]
[null,"With two or more types of disability",0,12,19,33,73,65,0,12,0,12,0,12,0,12,0,12,0,12,0,17,0,12,0,12,0,12,7,12,0,12]
[null,"No disability",224,187,976,222,2412,272,281,80,139,75,227,138,758,157,160,106,229,115,626,187,541,117,115,81,398,95,182,89,105,56]
[null,"18 to 64  years:",521,149,2648,271,7789,391,1070,187,448,114,529,141,1772,226,412,110,532,109,4393,300,1414,158,655,357,2092,201,707,130,621,134]
[null,"With one type of disability",32,31,173,102,688,238,74,59,21,17,32,39,44,62,26,34,25,17,292,158,100,95,22,18,53,51,40,21,7,6]
[null,"With two or more types of disability",20,29,272,181,794,286,19,11,6,6,45,39,0,12,19,17,13,13,246,122,15,14,7,7,311,268,37,20,30,33]
[null,"No disability",469,140,2203,238,6307,496,977,187,421,110,452,100,1728,231,367,96,494,111,3855,343,1299,160,626,356,1728,245,630,119,584,132]
[null,"65 years and over:",182,50,1196,297,2615,330,554,131,207,77,301,115,864,238,145,44,192,57,1083,314,518,163,166,64,887,210,371,82,307,69]
[null,"With one type of disability",16,13,37,39,492,168,77,36,32,19,39,19,143,131,24,15,20,11,155,87,95,60,3,5,54,39,58,26,32,15]
[null,"With two or more types of disability",17,13,214,162,234,133,33,22,46,52,127,106,102,98,15,9,20,15,187,118,72,44,21,17,56,51,29,17,49,29]
[null,"No disability",149,44,945,199,1889,312,444,119,129,47,135,57,619,208,106,43,152,52,741,304,351,121,142,58,777,201,284,71,226,51]
[]
[]
[]
[]
[]
[]
[]
[]
[]
[]
[]
[]
[]
[]
[]
[]
[]
[]
[]
[]
[]
[]
[]
[]
[]
[]
[]
[]
[]
[]
[]
[]
[]
[]
[]
[]
[]
[]
[]
[]
[]
[]
[]
[]
[]
[]
[]
[]
[]
[]
[]
[]
[]
[]
[]
[]
[]
[]
[]
[]
[]
[]
[]
[]
[]
[]
[]
[]
[]
[]
[]
[]
[]
[]
[]
[]
[]
[]
[]
[]
["B18108. AGE BY NUMBER OF DISABILITIES\n\n"]
["Universe:  Civilian non-institutionalized population"]
["Data Set: 2013-2017 American Community Survey 5-Year Estimates"]
[]
[null,null,"Acworth",null,"Charlestown",null,"Claremont",null,"Cornish",null,"Croydon",null,"Goshen",null,"Grantham",null,"Langdon",null,"Lempster",null,"Newport",null,"Plainfield",null,"Springfield",null,"Sunapee",null,"Unity",null,"Washington"]
[null,null,"Estimate","Margin Of Error","Estimate","Margin Of Error","Estimate","Margin Of Error","Estimate","Margin Of Error","Estimate","Margin Of Error","Estimate","Margin Of Error","Estimate","Margin Of Error","Estimate","Margin Of Error","Estimate","Margin Of Error","Estimate","Margin Of Error","Estimate","Margin Of Error","Estimate","Margin Of Error","Estimate","Margin Of Error","Estimate","Margin Of Error","Estimate","Margin Of Error",null,null,null,null,null,null,null,null,null,null,"Estimate","Margin Of Error","Estimate","Margin Of Error","Estimate","Margin Of Error","Estimate","Margin Of Error","Estimate","Margin Of Error","Estimate","Margin Of Error","Estimate","Margin Of Error","Estimate","Margin Of Error","Estimate","Margin Of Error","Estimate","Margin Of Error","Estimate","Margin Of Error","Estimate","Margin Of Error","Estimate","Margin Of Error","Estimate","Margin Of Error","Estimate","Margin Of Error","Estimate","Margin Of Error","Estimate","Margin Of Error"]
[null,"Total:",1031,143,5008,21,12948,46,1777,205,809,193,722,143,2933,35,887,143,858,129,6262,48,2439,249,1011,183,3404,16,1227,157,1265,206]
[null,"Under 18 years:",136,43,1007,200,2770,234,388,132,107,43,184,70,613,148,249,86,129,56,1303,258,455,113,140,51,609,139,144,56,151,56]
[null,"With one type of disability",0,11,43,50,65,48,9,10,10,12,7,10,13,19,12,13,5,6,0,16,5,7,10,12,0,11,0,11,3,5]
[null,"With two or more types of disability",0,11,0,16,23,27,0,11,0,11,6,7,31,49,2,3,6,8,66,66,6,9,2,5,0,11,4,6,3,4]
[null,"No disability",136,43,964,202,2682,227,379,132,97,38,171,69,569,154,235,85,118,54,1237,252,444,114,128,46,609,139,140,54,145,56]
[null,"18 to 64  years:",609,101,2997,235,8065,274,1007,119,576,158,402,86,1748,154,506,84,570,105,3720,217,1543,173,637,135,2054,146,811,120,838,177]
[null,"With one type of disability",24,15,128,83,592,180,64,27,41,29,25,15,145,108,15,13,69,24,217,118,74,33,16,10,51,42,60,33,21,10]
[null,"With two or more types of disability",33,19,201,105,651,171,25,18,2,4,15,14,31,49,21,10,20,14,199,121,6,8,11,13,70,72,30,19,33,21]
[null,"No disability",552,92,2668,236,6822,351,918,113,533,153,362,81,1572,201,470,80,481,98,3304,240,1463,175,610,130,1933,143,721,112,784,178]
[null,"65 years and over:",286,65,1004,204,2113,238,382,68,126,40,136,41,572,147,132,30,159,42,1239,286,441,92,234,74,741,133,272,53,276,37]
[null,"With one type of disability",63,32,152,100,339,127,47,27,19,13,13,13,51,49,21,12,54,32,192,105,58,25,14,10,149,59,48,18,29,15]
[null,"With two or more types of disability",35,19,161,82,453,163,33,15,20,12,16,13,84,69,17,10,17,12,395,172,46,31,21,19,88,46,38,20,17,11]
[null,"No disability",188,46,691,192,1321,203,302,57,87,32,107,32,437,133,94,23,88,26,652,194,337,71,199,66,504,108,186,49,230,35]
[]
[]
[]
[]
[]
[]
[]
[]
[]
[]
[]
["B18108. AGE BY NUMBER OF DISABILITIES\n\n"]
["Universe:  Civilian non-institutionalized population"]
["Data Set: 2008-2012 American Community Survey 5-Year Estimates"]
[]
[null,null,"Acworth",null,"Charlestown",null,"Claremont",null,"Cornish",null,"Croydon",null,"Goshen",null,"Grantham",null,"Langdon",null,"Lempster",null,"Newport",null,"Plainfield",null,"Springfield",null,"Sunapee",null,"Unity",null,"Washington"]
[null,null,"Estimate","Margin Of Error","Estimate","Margin Of Error","Estimate","Margin Of Error","Estimate","Margin Of Error","Estimate","Margin Of Error","Estimate","Margin Of Error","Estimate","Margin Of Error","Estimate","Margin Of Error","Estimate","Margin Of Error","Estimate","Margin Of Error","Estimate","Margin Of Error","Estimate","Margin Of Error","Estimate","Margin Of Error","Estimate","Margin Of Error","Estimate","Margin Of Error",null,null,null,null,null,null,null,null,null,null,"Estimate","Margin Of Error","Estimate","Margin Of Error","Estimate","Margin Of Error","Estimate","Margin Of Error","Estimate","Margin Of Error","Estimate","Margin Of Error","Estimate","Margin Of Error","Estimate","Margin Of Error","Estimate","Margin Of Error","Estimate","Margin Of Error","Estimate","Margin Of Error","Estimate","Margin Of Error","Estimate","Margin Of Error","Estimate","Margin Of Error","Estimate","Margin Of Error","Estimate","Margin Of Error","Estimate","Margin Of Error"]
[null,"Total:",746,184,5070,20,13226,55,1665,226,615,113,767,114,2936,33,776,133,1212,178,6425,61,2570,212,1354,195,3349,23,1349,139,1071,171]
[null,"Under 18 years:",158,98,964,168,2925,222,375,111,102,40,74,36,584,101,161,61,309,80,1436,248,606,96,369,112,634,136,173,62,181,68]
[null,"With one type of disability",2,3,56,57,137,104,0,11,0,11,9,11,11,12,4,5,39,31,68,77,6,9,3,5,22,16,3,5,17,19]
[null,"With two or more types of disability",0,11,19,31,60,49,0,11,0,11,0,11,0,11,7,8,7,8,0,16,2,6,0,11,5,11,0,11,7,9]
[null,"No disability",156,98,889,148,2728,205,375,111,102,40,65,29,573,104,150,60,263,63,1368,247,598,98,366,112,607,135,170,63,157,63]
[null,"18 to 64  years:",456,103,3318,214,8239,217,1080,145,411,76,536,82,1750,119,503,92,763,116,4061,249,1633,162,784,114,1987,151,989,109,601,100]
[null,"With one type of disability",17,13,126,65,850,193,68,26,25,15,60,26,11,12,24,19,66,30,356,142,84,45,52,28,61,44,122,42,80,37]
[null,"With two or more types of disability",10,10,256,114,519,172,47,27,8,7,34,20,41,43,36,25,26,17,246,109,69,43,13,13,59,70,29,18,46,26]
[null,"No disability",429,97,2936,197,6870,305,965,138,378,75,442,79,1698,133,443,82,671,110,3459,278,1480,151,719,114,1867,187,838,99,475,86]
[null,"65 years and over:",132,57,788,177,2062,203,210,51,102,38,157,46,602,115,112,46,140,49,928,168,331,77,201,58,728,147,187,44,289,57]
[null,"With one type of disability",39,23,247,95,358,95,35,22,7,8,11,10,49,31,5,6,24,17,215,102,45,26,33,19,144,71,29,20,53,27]
[null,"With two or more types of disability",9,9,180,106,550,126,23,15,25,18,32,23,55,36,9,8,50,34,148,84,31,23,40,24,57,42,12,10,33,15]
[null,"No disability",84,43,361,120,1154,188,152,45,70,29,114,40,498,109,98,44,66,27,565,144,255,71,128,46,527,127,146,41,203,46]

{"sheet":"ACS_Table_B19049","index":38,"n_rows":56,"n_cols":32,"rows_kept":56,"cut":false,"hidden":true,"merged":[]}
[null,"B19049. MEDIAN HOUSEHOLD INCOME IN THE PAST 12 MONTHS (IN 2022 INFLATION-ADJUSTED DOLLARS) BY AGE OF HOUSEHOLDER "]
[null,"Universe:  HOUSEHOLDS"]
[null,"Data Set: 2018-2022 American Community Survey 5-Year Estimates"]
[]
[null,null,"Acworth",null,"Charlestown",null,"Claremont",null,"Cornish",null,"Croydon",null,"Goshen",null,"Grantham",null,"Langdon",null,"Lempster",null,"Newport",null,"Plainfield",null,null,null,"Sunapee",null,"Unity",null,"Washington"]
[null,null,"Estimate","Margin Of Error","Estimate","Margin Of Error","Estimate","Margin Of Error","Estimate","Margin Of Error","Estimate","Margin Of Error","Estimate","Margin Of Error","Estimate","Margin Of Error","Estimate","Margin Of Error","Estimate","Margin Of Error","Estimate","Margin Of Error","Estimate","Margin Of Error","Estimate","Margin Of Error","Estimate","Margin Of Error","Estimate","Margin Of Error","Estimate","Margin Of Error"]
[null,"Median household income in the past 12 months"]
[null,"Total:",76719,8210,46642,13671,53697,6712,86779,3422,96875,23712,59896,8716,114132,45553,99500,24187,89000,13409,74263,9694,115257,10342,95833,23497,102361,14815,65833,14872,84886,22711]
[null,"Householder under 25 years","-","**","-","**","-","**","-","**","-","**","-","**","-","**","-","**","-","**",98313,44667,"-","**","-","**","-","**","-","**","-","**"]
[null,"Householder 25 to 44 years",79583,29614,63949,38928,70688,11294,109688,21092,115625,5408,83365,34773,237552,133359,133750,120622,127188,19411,74000,10091,123194,39328,125045,41355,128952,16001,80750,9438,76786,16424]
[null,"Householder 45 to 64 years",75536,21340,56786,32061,52930,12362,87117,33307,110625,30481,58750,27395,175687,26891,116750,33488,81094,28999,93769,15916,127000,46079,109583,32265,123015,26176,98500,23194,121016,15765]
[null,"Householder 65 years and over",70536,16955,42197,10422,38860,4254,58750,19386,66875,18093,52679,26051,58991,11528,66875,29230,53500,13472,29800,25265,99375,42068,60417,39043,65188,28243,49063,8438,55833,15889]
[]
[]
[]
[]
[]
[]
[]
[]
[]
[]
[]
[]
[]
[]
[]
[]
[]
[null,"B19049. MEDIAN HOUSEHOLD INCOME IN THE PAST 12 MONTHS (IN 2017 INFLATION-ADJUSTED DOLLARS) BY AGE OF HOUSEHOLDER "]
[null,"Universe:  HOUSEHOLDS"]
[null,"Data Set: 2013-2017 American Community Survey 5-Year Estimates"]
[]
[null,null,"Acworth",null,"Charlestown",null,"Claremont",null,"Cornish",null,"Croydon",null,"Goshen",null,"Grantham",null,"Langdon",null,"Lempster",null,"Newport",null,"Plainfield",null,"Springfield",null,"Sunapee",null,"Unity",null,"Washington"]
[null,null,"Estimate","Margin Of Error","Estimate","Margin Of Error","Estimate","Margin Of Error","Estimate","Margin Of Error","Estimate","Margin Of Error","Estimate","Margin Of Error","Estimate","Margin Of Error","Estimate","Margin Of Error","Estimate","Margin Of Error","Estimate","Margin Of Error","Estimate","Margin Of Error","Estimate","Margin Of Error","Estimate","Margin Of Error","Estimate","Margin Of Error","Estimate","Margin Of Error"]
[null,"Median household income in the past 12 months"]
[null,"Total:",57125,9416,50297,9482,46639,4119,77667,10360,74063,12699,60417,11839,104962,25696,82778,9572,63646,10090,58193,10828,83362,4722,77375,5636,63750,7660,66458,6735,73333,8518]
[null,"Householder under 25 years","-","**",16731,16015,"-","**","-","**","-","**","-","**","-","**","-","**","-","**","-","**","-","**","-","**",31143,2132,"-","**","-","**"]
[null,"Householder 25 to 44 years",72917,26303,70581,20962,60000,6596,103958,43355,86125,13662,66875,27586,103929,27844,92083,41263,87212,15258,72580,20980,101136,30185,54500,26532,66078,11761,67639,20015,127500,54097]
[null,"Householder 45 to 64 years",77708,19677,56453,13215,50318,8837,95000,14031,95179,31235,66250,18080,112317,29836,93250,12404,66538,9043,75917,20642,93750,20541,93750,10893,70809,16730,73750,14258,76000,11875]
[null,"Householder 65 years and over",43333,12560,30435,13478,34167,9484,50446,9517,37000,11684,45139,11263,80464,16967,54063,10222,37083,16111,38700,16009,63654,8029,64125,16551,50357,19289,49821,9465,44375,12461]
[]
[]
[]
[null,"B19049. MEDIAN HOUSEHOLD INCOME IN THE PAST 12 MONTHS (IN 2012 INFLATION-ADJUSTED DOLLARS) BY AGE OF HOUSEHOLDER "]
[null,"Universe:  HOUSEHOLDS"]
[null,"Data Set: 2008-2012 American Community Survey 5-Year Estimates"]
[]
[null,null,"Acworth",null,"Charlestown",null,"Claremont",null,"Cornish",null,"Croydon",null,"Goshen",null,"Grantham",null,"Langdon",null,"Lempster",null,"Newport",null,"Plainfield",null,"Springfield",null,"Sunapee",null,"Unity",null,"Washington"]
[null,null,"Estimate","Margin Of Error","Estimate","Margin Of Error","Estimate","Margin Of Error","Estimate","Margin Of Error","Estimate","Margin Of Error","Estimate","Margin Of Error","Estimate","Margin Of Error","Estimate","Margin Of Error","Estimate","Margin Of Error","Estimate","Margin Of Error","Estimate","Margin Of Error","Estimate","Margin Of Error","Estimate","Margin Of Error","Estimate","Margin Of Error","Estimate","Margin Of Error"]
[null,"Median household income in the past 12 months"]
[null,"Total:",52976,6870,49688,8745,41350,4389,69196,8500,68958,15344,55063,6516,89157,7657,70982,5338,58950,8096,46940,5037,99432,12155,69792,8611,74052,11741,56250,7870,52292,10619]
[null,"Householder under 25 years",34464,2311,"-","**",22138,11116,69583,32133,"-","**","2,500-","***","-","**","-","**","-","**",11622,35409,"-","**","-","**",19861,26889,48000,20172,"-","**"]
[null,"Householder 25 to 44 years",75000,5348,59683,12738,51402,9055,75313,14231,89583,21238,55893,19569,115909,28184,86417,11006,69125,9058,41366,9332,113063,18551,79712,20700,77667,9040,61000,20737,56705,17370]
[null,"Householder 45 to 64 years",33036,18004,55811,9895,50679,11961,76094,16667,77321,21361,61500,11505,88083,9651,62500,19457,63438,16589,61455,6412,99432,15559,69583,26777,101500,43568,59630,13925,52361,15561]
[null,"Householder 65 years and over",50357,9264,21091,2499,30699,3986,55833,26080,27596,10776,41500,23503,69583,17250,45417,31327,24615,9068,33750,9742,61875,31692,45750,20947,65230,15701,30625,32625,47500,9784]

{"sheet":"ACS_Table_B25118","index":39,"n_rows":191,"n_cols":76,"rows_kept":191,"cut":false,"hidden":true,"merged":[]}
[null,"B25118. TENURE BY HOUSEHOLD INCOME IN THE PAST 12 MONTHS (IN 2022 INFLATION-ADJUSTED DOLLARS) "]
[null,"Universe:  OCCUPIED HOUSING UNITS"]
[null,"Data Set: 2018-2022 American Community Survey 5-Year Estimates"]
[]
[null,null,"Acworth",null,"Charlestown",null,"Claremont",null,"Cornish",null,"Croydon",null,"Goshen",null,"Grantham",null,"Langdon",null,"Lempster",null,"Newport",null,"Plainfield",null,"Springfield",null,"Sunapee",null,"Unity",null,"Washington"]
[null,null,"Estimate","Margin Of Error","Estimate","Margin Of Error","Estimate","Margin Of Error","Estimate","Margin Of Error","Estimate","Margin Of Error","Estimate","Margin Of Error","Estimate","Margin Of Error","Estimate","Margin Of Error","Estimate","Margin Of Error","Estimate","Margin Of Error","Estimate","Margin Of Error","Estimate","Margin Of Error","Estimate","Margin Of Error","Estimate","Margin Of Error","Estimate","Margin Of Error"]
[null,"Total:",239,42,1847,209,5203,325,762,147,232,49,303,72,1149,128,226,45,316,61,2478,224,831,84,294,83,1122,162,478,77,413,71]
[null,"Owner occupied:",216,40,1328,180,3082,304,737,146,211,47,250,71,1091,138,205,43,299,59,1479,250,760,85,264,79,894,149,447,72,381,68]
[null,"Less than $5,000",2,3,123,96,99,98,0,12,0,12,1,3,0,12,4,4,8,8,128,122,21,27,3,5,28,44,16,13,13,17]
[null,"$5,000 to $9,999",0,12,0,12,0,19,4,6,5,9,6,9,0,12,0,12,0,12,0,17,4,8,10,12,0,12,5,6,0,12]
[null,"$10,000 to $14,999",9,12,57,89,28,33,60,66,4,7,9,12,0,12,1,3,3,5,40,57,19,16,0,12,0,12,6,7,0,12]
[null,"$15,000 to $19,999",3,6,54,66,7,13,9,8,1,4,15,13,50,76,0,12,9,14,21,24,4,6,0,12,0,12,20,19,8,13]
[null,"$20,000 to $24,999",3,5,16,26,64,47,32,29,6,7,7,6,0,12,6,7,10,12,12,22,6,9,0,12,12,13,25,17,0,12]
[null,"$25,000 to $34,999",6,7,92,87,229,130,27,18,6,6,16,12,91,92,7,6,21,18,109,84,39,35,20,16,51,52,44,28,27,20]
[null,"$35,000 to $49,999",11,14,270,121,371,147,18,14,10,8,53,42,37,44,26,17,27,14,160,105,28,19,30,24,83,91,28,14,54,25]
[null,"$50,000 to $74,999",64,28,173,104,744,204,107,33,42,20,39,22,206,105,29,15,41,19,145,66,29,20,24,20,104,50,103,30,45,16]
[null,"$75,000 to $99,999",47,25,213,97,589,205,179,138,24,12,23,15,101,88,22,12,51,23,259,112,159,81,49,32,95,50,59,23,47,20]
[null,"$100,000 to $149,999",48,22,235,102,622,174,125,40,97,37,58,20,152,84,58,23,105,36,250,115,234,76,82,49,212,83,99,38,93,47]
[null,"$150,000 or more",23,16,95,56,329,148,176,43,16,10,23,14,454,167,52,26,24,16,355,151,217,65,46,31,309,88,42,17,94,33]
[null,"Renter occupied:",23,14,519,167,2121,312,25,13,21,13,53,22,58,72,21,15,17,19,999,259,71,37,30,24,228,97,31,19,32,23]
[null,"Less than $5,000",7,10,92,86,210,127,0,12,7,8,5,8,0,12,0,12,0,12,53,53,0,12,8,14,28,30,11,14,0,12]
[null,"$5,000 to $9,999",0,12,0,12,12,17,0,12,0,12,9,11,0,12,0,12,0,12,47,54,0,12,0,12,27,43,0,12,0,12]
[null,"$10,000 to $14,999",0,12,63,60,194,115,6,6,0,12,0,12,0,12,0,12,0,12,41,64,0,12,3,5,10,16,0,12,0,12]
[null,"$15,000 to $19,999",0,12,70,64,212,120,3,4,2,3,0,12,0,12,0,12,0,12,135,110,0,12,0,12,0,12,0,12,9,14]
[null,"$20,000 to $24,999",0,12,43,50,260,127,0,12,0,12,0,12,0,12,0,12,0,12,23,34,0,12,0,12,0,12,0,12,0,12]
[null,"$25,000 to $34,999",0,12,52,64,342,179,4,5,2,4,0,12,0,12,5,5,7,8,143,107,15,17,0,12,0,12,3,4,4,6]
[null,"$35,000 to $49,999",5,5,20,33,379,155,0,12,1,2,6,9,0,12,9,11,0,12,82,85,9,15,0,12,33,41,12,11,0,12]
[null,"$50,000 to $74,999",4,3,64,61,304,141,3,4,0,12,10,9,13,22,5,5,10,16,133,120,7,11,6,11,38,27,2,4,17,18]
[null,"$75,000 to $99,999",3,4,14,23,127,68,4,5,9,10,10,17,0,12,0,12,0,12,193,142,6,10,0,12,18,23,3,4,2,3]
[null,"$100,000 to $149,999",0,12,57,69,60,57,2,3,0,12,13,11,0,12,2,3,0,12,112,95,18,14,13,16,67,78,0,12,0,12]
[null,"$150,000 or more",4,6,44,57,21,20,3,4,0,12,0,12,45,65,0,12,0,12,37,39,16,15,0,12,7,11,0,12,0,12]
[]
[]
[]
[]
[]
[null,{"$f":"\"Calculated \"&B1","v":"Calculated B25118. TENURE BY HOUSEHOLD INCOME IN THE PAST 12 MONTHS (IN 2022 INFLATION-ADJUSTED DOLLARS) "}]
[null,"Universe:  OCCUPIED HOUSING UNITS"]
[null,"Data Set: 2018-2022 American Community Survey 5-Year Estimates"]
[null,null,"Acworth",null,"Charlestown",null,"Claremont",null,"Cornish",null,"Croydon",null,"Goshen",null,"Grantham",null,"Langdon",null,"Lempster",null,"Newport",null,"Plainfield",null,"Springfield",null,"Sunapee",null,"Unity",null,"Washington"]
[null,null,"Estimate","Margin Of Error","Estimate","Margin Of Error","Estimate","Margin Of Error","Estimate","Margin Of Error","Estimate","Margin Of Error","Estimate","Margin Of Error","Estimate","Margin Of Error","Estimate","Margin Of Error","Estimate","Margin Of Error","Estimate","Margin Of Error","Estimate","Margin Of Error","Estimate","Margin Of Error","Estimate","Margin Of Error","Estimate","Margin Of Error","Estimate","Margin Of Error"]
[null,{"$f":"B7","v":"Total:"},239,42,1847,209,5203,325,762,147,232,49,303,72,1149,128,226,45,316,61,2478,224,831,84,{"$f":"Y7","v":294},83,1122,162,478,77,413,71]
[null,"Less than $5,000",{"$f":"C9+C21","v":9},{"$f":"SQRT((D9^2)+(D21^2))","v":10.440306508910551},{"$f":"E9+E21","v":215},{"$f":"SQRT((F9^2)+(F21^2))","v":128.8875478857442},{"$f":"G9+G21","v":309},{"$f":"SQRT((H9^2)+(H21^2))","v":160.41508657230466},{"$f":"I9+I21","v":0},{"$f":"SQRT((J9^2)+(J21^2))","v":16.970562748477139},{"$f":"K9+K21","v":7},{"$f":"SQRT((L9^2)+(L21^2))","v":14.422205101855956},{"$f":"M9+M21","v":6},{"$f":"SQRT((N9^2)+(N21^2))","v":8.5440037453175304},{"$f":"O9+O21","v":0},{"$f":"SQRT((P9^2)+(P21^2))","v":16.970562748477139},{"$f":"Q9+Q21","v":4},{"$f":"SQRT((R9^2)+(R21^2))","v":12.649110640673518},{"$f":"S9+S21","v":8},{"$f":"SQRT((T9^2)+(T21^2))","v":14.422205101855956},{"$f":"U9+U21","v":181},{"$f":"SQRT((V9^2)+(V21^2))","v":133.01503674397117},{"$f":"W9+W21","v":21},{"$f":"SQRT((X9^2)+(X21^2))","v":29.546573405388315},{"$f":"Y9+Y21","v":11},{"$f":"SQRT((Z9^2)+(Z21^2))","v":14.866068747318506},{"$f":"AA9+AA21","v":56},{"$f":"SQRT((AB9^2)+(AB21^2))","v":53.254107822777392},27,19.104973174542799,{"$f":"AE16","v":45},{"$f":"AF16","v":16}]
[null,"$5,000 to $9,999",{"$f":"C10+C22","v":0},{"$f":"SQRT((D10^2)+(D22^2))","v":16.970562748477139},{"$f":"E10+E22","v":0},16.970562748477139,{"$f":"G10+G22","v":12},25.495097567963924,{"$f":"I10+I22","v":4},13.416407864998739,{"$f":"K10+K22","v":5},15,{"$f":"M10+M22","v":15},14.212670403551895,{"$f":"O10+O22","v":0},16.970562748477139,{"$f":"Q10+Q22","v":0},16.970562748477139,0,16.970562748477139,47,56.612719418872643,4,14.422205101855956,10,16.970562748477139,27,44.643028571099428,5,13.416407864998739,{"$f":"AE17","v":47},{"$f":"AF17","v":20}]
[null,"$10,000 to $14,999",{"$f":"C11+C23","v":9},16.970562748477139,{"$f":"E11+E23","v":120},107.33592129385204,{"$f":"G11+G23","v":222},119.64113005150027,{"$f":"I11+I23","v":66},66.272166103123567,{"$f":"K11+K23","v":4},13.892443989449804,{"$f":"M11+M23","v":9},16.970562748477139,{"$f":"O11+O23","v":0},16.970562748477139,{"$f":"Q11+Q23","v":1},12.369316876852981,3,13,81,85.702975444263316,19,20,3,13,10,20,6,13.892443989449804,{"$f":"AE18+AE19","v":187},{"$f":"SQRT((AF18^2)+(AF19^2))","v":57.428216061444921}]
[null,"$15,000 to $19,999",{"$f":"C12+C24","v":3},13.416407864998739,124,91.934759476489631,219,120.70211265756701,12,8.9442719099991592,3,5,15,17.691806012954132,50,76.941536246685374,0,16.970562748477139,9,18.439088914585774,156,112.58774356030055,4,13.416407864998739,0,16.970562748477139,0,16.970562748477139,20,22.472205054244231,{"$f":"AE20+AE21","v":32},{"$f":"SQRT((AF20^2)+(AF21^2))","v":25.942243542145693}]
[null,"$20,000 to $24,999",3,13,59,56.356011214421486,324,135.41787178950938,32,31.384709652950431,6,13.892443989449804,7,13.416407864998739,0,16.970562748477139,6,13.892443989449804,10,16.970562748477139,35,40.496913462633174,6,15,0,16.970562748477139,12,17.691806012954132,25,20.808652046684813,{"$f":"AE22+AE23+AE24","v":9},{"$f":"SQRT((AF22^2)+(AF23^2)+(AF24^2))","v":22}]
[null,"$25,000 to $34,999",6,13.892443989449804,144,108.00462953040486,571,221.22612865572637,31,18.681541692269406,8,7.2111025509279782,16,16.970562748477139,91,92.779308037945611,12,7.810249675906654,28,19.697715603592208,252,136.03308421115798,54,38.910152916687437,20,20,51,53.366656256505337,47,28.284271247461902,{"$f":"AE25+AE26","v":4},{"$f":"SQRT((AF25^2)+(AF26^2))","v":13.416407864998739}]
[null,"$35,000 to $49,999",16,14.866068747318506,290,125.41929676090518,750,213.62116000059544,18,18.439088914585774,11,8.2462112512353212,59,42.953463189829058,37,45.607017003965517,35,20.248456731316587,27,18.439088914585774,242,135.09256086106296,37,24.207436873820409,30,26.832815729997478,116,99.809819156233317,40,17.804493814764857,{"$f":"AE27","v":0},{"$f":"AF27","v":12}]
[null,"$50,000 to $74,999",68,28.160255680657446,237,120.56948204251356,1048,247.98588669519077,110,33.241540277189323,42,23.323807579381203,49,23.769728648009426,219,107.28000745712129,34,15.811388300841896,51,24.839484696748443,278,136.95254652615992,36,22.825424421026653,30,22.825424421026653,142,56.824290580701486,105,30.265491900843113,{"$f":"AE28+AE29","v":19},{"$f":"SQRT((AF28^2)+(AF29^2))","v":18.248287590894659}]
[null,"$75,000 to $99,999",50,25.317977802344327,227,99.689518004652825,716,215.9837956884729,183,138.0905500025255,33,15.620499351813308,33,22.671568097509269,101,88.814413244698073,22,16.970562748477139,51,25.942243542145693,452,180.85353189805281,165,81.614949610962825,49,34.176014981270121,113,55.036351623268054,62,23.345235059857504,{"$f":"AE30","v":0},{"$f":"AF30","v":12}]
[null,"$100,000 to $149,999",48,25.059928172283335,292,123.14625451064275,682,183.09833423600554,127,40.11234224026316,97,38.897300677553446,71,22.825424421026653,152,84.852813742385706,60,23.194827009486403,105,37.947331922020552,362,149.16433890176299,252,77.278716345446625,95,51.546095875439491,279,113.89907813498755,99,39.849717690342551,{"$f":"AE31","v":0},{"$f":"AF31","v":12}]
[null,"$150,000 or more",27,17.088007490635061,{"$f":"E19+E31","v":139},79.906195003891909,350,149.34523762075577,179,43.185645763378368,16,15.620499351813308,23,18.439088914585774,499,179.20379460268134,52,28.635642126552707,24,20,392,155.95512174981621,233,66.708320320631671,46,33.241540277189323,316,88.68483523128404,42,20.808652046684813,{"$f":"AE19+AE31","v":94},{"$f":"SQRT((AF19^2)+(AF31^2))","v":35.114099732158877}]
[]
[]
[]
[]
[]
[]
[]
[]
[]
[]
[]
[]
[]
[]
[]
[]
[null,"B25118. TENURE BY HOUSEHOLD INCOME IN THE PAST 12 MONTHS (IN 2017 INFLATION-ADJUSTED DOLLARS) "]
[null,"Universe:  OCCUPIED HOUSING UNITS"]
[null,"Data Set: 2013-2017 American Community Survey 5-Year Estimates"]
[]
[null,null,"Acworth",null,"Charlestown",null,"Claremont",null,"Cornish",null,"Croydon",null,"Goshen",null,"Grantham",null,"Langdon",null,"Lempster",null,"Newport",null,"Plainfield",null,"Springfield",null,"Sunapee",null,"Unity",null,"Washington"]
[null,null,"Estimate","Margin Of Error","Estimate","Margin Of Error","Estimate","Margin Of Error","Estimate","Margin Of Error","Estimate","Margin Of Error","Estimate","Margin Of Error","Estimate","Margin Of Error","Estimate","Margin Of Error","Estimate","Margin Of Error","Estimate","Margin Of Error","Estimate","Margin Of Error","Estimate","Margin Of Error","Estimate","Margin Of Error","Estimate","Margin Of Error","Estimate","Margin Of Error",null,null,null,null,null,null,null,null,null,null,null,null,null,null,null,null,null,null,null,null,null,null,null,null,null,null,null,null,null,null,null,null,null,null,null,null,"Estimate","Margin Of Error","Estimate","Margin Of Error","Estimate","Margin Of Error","Estimate","Margin Of Error"]
[null,"Total:",427,62,2102,160,5567,221,722,71,274,49,271,48,1153,125,292,38,409,63,2573,202,920,83,435,74,1553,140,526,60,556,85,null,null,null,null,null,null,null,null,null,null,null,null,null,null,null,null,null,null,null,null,null,null,null,null,null,null,null,null,null,null,null,null,null,null,null,null,3846,231,321,42,2717,107,4364,175]
[null,"Owner occupied:",388,61,1673,187,3163,298,641,70,241,43,206,37,1050,136,266,37,387,62,1793,232,821,94,380,67,1049,117,489,56,507,82,null,null,null,null,null,null,null,null,null,null,null,null,null,null,null,null,null,null,null,null,null,null,null,null,null,null,null,null,null,null,null,null,null,null,null,null,2686,223,288,36,2540,143,4088,189]
[null,"Less than $5,000",8,10,43,39,76,74,9,10,1,3,3,5,0,11,2,3,4,5,0,16,5,7,0,11,18,22,3,5,11,10,null,null,null,null,null,null,null,null,null,null,null,null,null,null,null,null,null,null,null,null,null,null,null,null,null,null,null,null,null,null,null,null,null,null,null,null,12,18,2,5,14,23,44,55]
[null,"$5,000 to $9,999",0,11,12,22,66,72,6,7,0,11,0,11,0,11,9,13,3,4,14,22,12,12,0,11,0,11,10,14,10,15,null,null,null,null,null,null,null,null,null,null,null,null,null,null,null,null,null,null,null,null,null,null,null,null,null,null,null,null,null,null,null,null,null,null,null,null,11,18,6,7,11,20,14,22]
[null,"$10,000 to $14,999",13,8,43,40,87,66,4,6,12,13,2,3,0,11,7,6,19,19,15,24,0,11,10,10,7,13,26,19,15,17,null,null,null,null,null,null,null,null,null,null,null,null,null,null,null,null,null,null,null,null,null,null,null,null,null,null,null,null,null,null,null,null,null,null,null,null,41,38,7,7,9,15,41,32]
[null,"$15,000 to $19,999",34,25,118,77,156,81,18,16,5,7,2,3,34,38,4,5,16,9,57,47,0,11,16,14,62,42,7,6,15,10,null,null,null,null,null,null,null,null,null,null,null,null,null,null,null,null,null,null,null,null,null,null,null,null,null,null,null,null,null,null,null,null,null,null,null,null,207,100,11,9,29,32,42,44]
[null,"$20,000 to $24,999",7,7,97,68,129,75,11,10,16,13,2,3,0,11,7,6,36,26,53,40,16,13,3,4,56,46,33,22,21,10,null,null,null,null,null,null,null,null,null,null,null,null,null,null,null,null,null,null,null,null,null,null,null,null,null,null,null,null,null,null,null,null,null,null,null,null,215,104,9,8,43,43,85,61]
[null,"$25,000 to $34,999",32,19,177,100,373,98,67,38,12,8,45,23,63,55,13,10,31,14,106,71,89,39,50,28,80,64,39,19,47,27,null,null,null,null,null,null,null,null,null,null,null,null,null,null,null,null,null,null,null,null,null,null,null,null,null,null,null,null,null,null,null,null,null,null,null,null,249,113,22,11,143,73,192,78]
[null,"$35,000 to $49,999",63,23,264,123,340,100,86,29,29,15,31,13,90,80,18,11,47,21,275,114,87,43,22,18,85,56,66,25,52,21,null,null,null,null,null,null,null,null,null,null,null,null,null,null,null,null,null,null,null,null,null,null,null,null,null,null,null,null,null,null,null,null,null,null,null,null,398,139,40,32,98,61,241,81]
[null,"$50,000 to $74,999",93,31,364,127,693,156,83,34,50,22,57,23,195,99,45,17,68,35,480,148,124,36,58,34,183,81,88,23,90,24,null,null,null,null,null,null,null,null,null,null,null,null,null,null,null,null,null,null,null,null,null,null,null,null,null,null,null,null,null,null,null,null,null,null,null,null,570,177,28,14,345,110,497,122]
[null,"$75,000 to $99,999",43,19,341,129,682,180,92,34,43,20,33,17,119,69,66,23,76,35,311,133,139,37,116,45,167,74,72,28,86,35,null,null,null,null,null,null,null,null,null,null,null,null,null,null,null,null,null,null,null,null,null,null,null,null,null,null,null,null,null,null,null,null,null,null,null,null,387,140,37,16,442,115,531,137]
[null,"$100,000 to $149,999",49,16,174,88,354,120,173,41,43,22,23,11,344,104,72,23,53,23,280,131,181,41,83,39,340,81,122,40,98,28,null,null,null,null,null,null,null,null,null,null,null,null,null,null,null,null,null,null,null,null,null,null,null,null,null,null,null,null,null,null,null,null,null,null,null,null,462,164,58,24,687,127,1129,161]
[null,"$150,000 or more",46,21,40,39,207,79,92,31,30,27,8,10,205,76,23,15,34,30,202,110,168,58,22,15,51,38,23,11,62,58,null,null,null,null,null,null,null,null,null,null,null,null,null,null,null,null,null,null,null,null,null,null,null,null,null,null,null,null,null,null,null,null,null,null,null,null,134,106,68,26,719,143,1272,162]
[null,"Renter occupied:",39,20,429,133,2404,276,81,38,33,21,65,32,103,80,26,18,22,14,780,174,99,45,55,34,504,158,37,19,49,36,null,null,null,null,null,null,null,null,null,null,null,null,null,null,null,null,null,null,null,null,null,null,null,null,null,null,null,null,null,null,null,null,null,null,null,null,1160,200,33,30,177,114,276,108]
[null,"Less than $5,000",2,3,8,11,137,100,4,6,0,11,2,3,0,11,5,8,0,11,55,63,0,11,0,11,0,11,0,11,0,11,null,null,null,null,null,null,null,null,null,null,null,null,null,null,null,null,null,null,null,null,null,null,null,null,null,null,null,null,null,null,null,null,null,null,null,null,46,48,0,114,0,114,0,114]
[null,"$5,000 to $9,999",0,11,0,16,132,113,0,11,0,11,0,11,0,11,0,11,0,11,132,87,5,8,7,11,35,57,0,11,0,11,null,null,null,null,null,null,null,null,null,null,null,null,null,null,null,null,null,null,null,null,null,null,null,null,null,null,null,null,null,null,null,null,null,null,null,null,16,28,0,114,18,29,0,114]
[null,"$10,000 to $14,999",0,11,79,75,299,130,6,7,2,4,2,4,0,11,0,11,0,11,57,52,0,11,0,11,60,64,0,11,3,4,null,null,null,null,null,null,null,null,null,null,null,null,null,null,null,null,null,null,null,null,null,null,null,null,null,null,null,null,null,null,null,null,null,null,null,null,105,73,0,114,0,114,29,21]
[null,"$15,000 to $19,999",0,11,84,76,103,55,8,7,2,4,0,11,0,11,0,11,0,11,56,73,0,11,0,11,0,11,0,11,3,4,null,null,null,null,null,null,null,null,null,null,null,null,null,null,null,null,null,null,null,null,null,null,null,null,null,null,null,null,null,null,null,null,null,null,null,null,260,142,0,114,34,49,31,49]
[null,"$20,000 to $24,999",6,10,40,40,316,127,3,5,0,11,11,11,0,11,0,11,3,4,43,34,0,11,0,11,80,79,8,12,0,11,null,null,null,null,null,null,null,null,null,null,null,null,null,null,null,null,null,null,null,null,null,null,null,null,null,null,null,null,null,null,null,null,null,null,null,null,25,29,0,114,0,114,21,31]
[null,"$25,000 to $34,999",2,3,51,56,283,100,3,5,0,11,0,11,0,11,0,11,3,4,128,80,5,7,0,11,67,63,9,9,7,7,null,null,null,null,null,null,null,null,null,null,null,null,null,null,null,null,null,null,null,null,null,null,null,null,null,null,null,null,null,null,null,null,null,null,null,null,84,59,2,3,0,114,0,114]
[null,"$35,000 to $49,999",8,6,28,34,478,180,3,5,0,11,14,16,17,28,0,11,8,6,72,79,15,10,14,16,90,74,7,9,0,11,null,null,null,null,null,null,null,null,null,null,null,null,null,null,null,null,null,null,null,null,null,null,null,null,null,null,null,null,null,null,null,null,null,null,null,null,229,115,0,114,0,114,67,60]
[null,"$50,000 to $74,999",13,12,90,74,418,170,40,35,11,15,21,18,0,11,13,13,3,4,115,98,43,35,9,9,120,68,9,9,10,8,null,null,null,null,null,null,null,null,null,null,null,null,null,null,null,null,null,null,null,null,null,null,null,null,null,null,null,null,null,null,null,null,null,null,null,null,293,141,25,31,0,114,40,49]
[null,"$75,000 to $99,999",8,10,49,55,136,103,7,10,11,13,11,12,19,23,0,11,0,11,94,68,4,6,15,17,30,48,0,11,0,11,null,null,null,null,null,null,null,null,null,null,null,null,null,null,null,null,null,null,null,null,null,null,null,null,null,null,null,null,null,null,null,null,null,null,null,null,92,69,6,6,72,81,19,21]
[null,"$100,000 to $149,999",0,11,0,16,94,82,7,7,7,10,4,7,67,72,0,11,0,11,13,21,23,24,10,15,11,18,4,7,26,35,null,null,null,null,null,null,null,null,null,null,null,null,null,null,null,null,null,null,null,null,null,null,null,null,null,null,null,null,null,null,null,null,null,null,null,null,10,17,0,114,53,51,20,24]
[null,"$150,000 or more",0,11,0,16,8,14,0,11,0,11,0,11,0,11,8,12,5,9,15,27,4,6,0,11,11,18,0,11,0,11,null,null,null,null,null,null,null,null,null,null,null,null,null,null,null,null,null,null,null,null,null,null,null,null,null,null,null,null,null,null,null,null,null,null,null,null,0,114,0,114,0,114,49,50]
[]
[]
[]
[]
[]
[null,{"$f":"\"Calculated \"&B70","v":"Calculated B25118. TENURE BY HOUSEHOLD INCOME IN THE PAST 12 MONTHS (IN 2017 INFLATION-ADJUSTED DOLLARS) "}]
[null,{"$f":"B71","v":"Universe:  OCCUPIED HOUSING UNITS"}]
[null,{"$f":"B72","v":"Data Set: 2013-2017 American Community Survey 5-Year Estimates"}]
[null,null,"Acworth",null,"Charlestown",null,"Claremont",null,"Cornish",null,"Croydon",null,"Goshen",null,"Grantham",null,"Langdon",null,"Lempster",null,"Newport",null,"Plainfield",null,"Springfield",null,"Sunapee",null,"Unity",null,"Washington"]
[null,null,"Estimate","Margin Of Error","Estimate","Margin Of Error","Estimate","Margin Of Error","Estimate","Margin Of Error","Estimate","Margin Of Error","Estimate","Margin Of Error","Estimate","Margin Of Error","Estimate","Margin Of Error","Estimate","Margin Of Error","Estimate","Margin Of Error","Estimate","Margin Of Error","Estimate","Margin Of Error","Estimate","Margin Of Error","Estimate","Margin Of Error","Estimate","Margin Of Error",null,null,null,null,null,null,null,null,null,null,null,null,null,null,null,null,null,null,null,null,null,null,null,null,null,null,null,null,null,null,null,null,null,null,null,null,"Estimate","Margin Of Error","Estimate","Margin Of Error","Estimate","Margin Of Error","Estimate","Margin Of Error"]
[null,"Total:",{"$f":"C76","v":427},62,2102,160,5567,221,722,71,274,49,271,48,1153,125,292,38,409,63,2573,202,920,83,435,74,1553,140,526,60,556,85]
[null,"Less than $5,000",{"$f":"C78+C90","v":10},{"$f":"SQRT((D78^2)+(D90^2))","v":10.440306508910551},{"$f":"E78+E90","v":51},{"$f":"SQRT((F78^2)+(F90^2))","v":40.521599178709621},{"$f":"G78+G90","v":213},{"$f":"SQRT((H78^2)+(H90^2))","v":124.40257232067189},{"$f":"I78+I90","v":13},{"$f":"SQRT((J78^2)+(J90^2))","v":11.661903789690601},{"$f":"K78+K90","v":1},{"$f":"SQRT((L78^2)+(L90^2))","v":11.401754250991379},{"$f":"M78+M90","v":5},{"$f":"SQRT((N78^2)+(N90^2))","v":5.8309518948453007},{"$f":"O78+O90","v":0},{"$f":"SQRT((P78^2)+(P90^2))","v":15.556349186104045},{"$f":"Q78+Q90","v":7},{"$f":"SQRT((R78^2)+(R90^2))","v":8.5440037453175304},{"$f":"S78+S90","v":4},{"$f":"SQRT((T78^2)+(T90^2))","v":12.083045973594572},{"$f":"U78+U90","v":55},{"$f":"SQRT((V78^2)+(V90^2))","v":65},{"$f":"W78+W90","v":5},{"$f":"SQRT((X78^2)+(X90^2))","v":13.038404810405298},{"$f":"Y78+Y90","v":0},{"$f":"SQRT((Z78^2)+(Z90^2))","v":15.556349186104045},{"$f":"AA78+AA90","v":18},{"$f":"SQRT((AB78^2)+(AB90^2))","v":24.596747752497688},3,12.083045973594572,{"$f":"AE85","v":90},{"$f":"AF85","v":24}]
[null,"$5,000 to $9,999",{"$f":"C79+C91","v":0},{"$f":"SQRT((D79^2)+(D91^2))","v":15.556349186104045},{"$f":"E79+E91","v":12},27.202941017470888,{"$f":"G79+G91","v":198},133.98880550254935,{"$f":"I79+I91","v":6},13.038404810405298,{"$f":"K79+K91","v":0},15.556349186104045,{"$f":"M79+M91","v":0},15.556349186104045,{"$f":"O79+O91","v":0},15.556349186104045,{"$f":"Q79+Q91","v":9},17.029386365926403,3,11.704699910719626,146,89.738509013689324,17,14.422205101855956,7,15.556349186104045,35,58.051701094799967,10,17.804493814764857,{"$f":"AE86","v":86},{"$f":"AF86","v":35}]
[null,"$10,000 to $14,999",{"$f":"C80+C92","v":13},13.601470508735444,{"$f":"E80+E92","v":122},85,{"$f":"G80+G92","v":386},145.79437574886077,{"$f":"I80+I92","v":10},9.2195444572928871,{"$f":"K80+K92","v":14},13.601470508735444,{"$f":"M80+M92","v":4},5,{"$f":"O80+O92","v":0},15.556349186104045,{"$f":"Q80+Q92","v":7},12.529964086141668,19,21.95449840010015,72,57.271284253105414,0,15.556349186104045,10,14.866068747318506,67,65.30696746902278,26,21.95449840010015,{"$f":"AE87+AE88","v":160},{"$f":"SQRT((AF87^2)+(AF88^2))","v":64.404968752418469}]
[null,"$15,000 to $19,999",{"$f":"C81+C93","v":34},27.313000567495326,202,108.18964830333815,259,97.908120194394499,26,17.464249196572979,7,8.0622577482985491,2,11.401754250991379,34,39.560080889704963,4,12.083045973594572,16,14.212670403551895,113,86.821656284592962,0,15.556349186104045,16,17.804493814764857,62,43.416586692184822,7,12.529964086141668,{"$f":"AE89+AE90","v":49},{"$f":"SQRT((AF89^2)+(AF90^2))","v":37.643060449437421}]
[null,"$20,000 to $24,999",13,12.206555615733702,137,78.892331693264083,445,147.49237268414933,14,11.180339887498949,16,17.029386365926403,13,11.401754250991379,0,15.556349186104045,7,12.529964086141668,39,26.305892875931811,96,52.497618993626752,16,17.029386365926403,3,11.704699910719626,136,91.4166286842826,41,25.059928172283335,{"$f":"AE91+AE92+AE93","v":6},{"$f":"SQRT((AF91^2)+(AF92^2)+(AF93^2))","v":12.369316876852981}]
[null,"$25,000 to $34,999",34,19.235384061671343,228,114.61239025515522,656,140.01428498549711,70,38.327535793473601,12,13.601470508735444,45,25.495097567963924,63,56.089214649520635,13,14.866068747318506,34,14.560219778561036,234,106.96261028976434,94,39.623225512317902,50,30.083217912982647,147,89.805345052507874,48,21.023796041628639,{"$f":"AE94+AE95","v":7},{"$f":"SQRT((AF94^2)+(AF95^2))","v":13.038404810405298}]
[null,"$35,000 to $49,999",71,23.769728648009426,292,127.61269529321916,818,205.91260281974002,89,29.427877939124322,29,18.601075237738275,45,20.615528128088304,107,84.758480401668365,18,15.556349186104045,55,21.840329667841555,347,138.69751259485514,102,44.147480109288232,36,24.083189157584592,175,92.80086206496145,73,26.570660511172846,{"$f":"AE96","v":0},{"$f":"AF96","v":11}]
[null,"$50,000 to $74,999",106,33.241540277189323,454,146.98639392814562,1111,230.72927859289987,123,48.795491595023407,61,26.627053911388696,78,29.206163733020468,195,99.609236519511583,58,21.400934559032695,71,35.227829907617071,595,177.50492950901392,167,50.209560842532767,67,35.171010790137949,303,105.75916035975324,97,24.698178070456937,{"$f":"AE97+AE98","v":10},{"$f":"SQRT((AF97^2)+(AF98^2))","v":13.601470508735444}]
[null,"$75,000 to $99,999",51,21.470910553583888,390,140.23551618616449,818,207.38611332488009,99,35.440090293338699,54,23.853720883753127,44,20.808652046684813,138,72.73238618387272,66,25.495097567963924,76,36.687872655688281,405,149.37536610833797,143,37.483329627982627,131,48.104053883222775,197,88.204308284799779,72,30.083217912982647,{"$f":"AE99","v":26},{"$f":"AF99","v":35}]
[null,"$100,000 to $149,999",49,19.416487838947599,174,89.442719099991592,448,145.34097839219331,180,41.593268686170845,50,24.166091947189145,27,13.038404810405298,411,126.49110640673517,72,25.495097567963924,53,25.495097567963924,293,132.67252918370102,204,47.507894080878813,93,41.785164831552358,351,82.97590011563598,126,40.607881008493905,{"$f":"AE100","v":0},{"$f":"AF100","v":11}]
[null,"$150,000 or more",46,23.706539182259394,{"$f":"E88+E100","v":40},42.154477816715982,215,80.230916734136841,92,32.893768406797051,30,29.154759474226502,8,14.866068747318506,205,76.791926658991954,31,19.209372712298546,39,31.32091952673165,217,113.26517558367179,172,58.309518948453004,22,18.601075237738275,62,42.047592083257278,23,15.556349186104045,{"$f":"AE88+AE100","v":62},{"$f":"SQRT((AF88^2)+(AF100^2))","v":59.033888572581766}]
[]
[]
[]
[]
[]
[]
[]
[]
[]
[]
[]
[]
[]
[]
[]
[]
[null,"B25118. TENURE BY HOUSEHOLD INCOME IN THE PAST 12 MONTHS (IN 2012 INFLATION-ADJUSTED DOLLARS) "]
[null,"Universe:  OCCUPIED HOUSING UNITS"]
[null,"Data Set: 2007-2011 American Community Survey 5-Year Estimates"]
[]
[null,null,"Acworth",null,"Charlestown",null,"Claremont",null,"Cornish",null,"Croydon",null,"Goshen",null,"Grantham",null,"Langdon",null,"Lempster",null,"Newport",null,"Plainfield",null,"Springfield",null,"Sunapee",null,"Unity",null,"Washington"]
[null,null,"Estimate","Margin Of Error","Estimate","Margin Of Error","Estimate","Margin Of Error","Estimate","Margin Of Error","Estimate","Margin Of Error","Estimate","Margin Of Error","Estimate","Margin Of Error","Estimate","Margin Of Error","Estimate","Margin Of Error","Estimate","Margin Of Error","Estimate","Margin Of Error","Estimate","Margin Of Error","Estimate","Margin Of Error","Estimate","Margin Of Error","Estimate","Margin Of Error"]
[null,"Total:",294,54,2310,107,5721,232,657,69,289,43,331,48,1119,80,278,45,427,58,2684,193,920,76,497,60,1458,100,599,58,465,69,null,null,null,null,null,null,null,null,null,null,null,null,null,null,null,null,null,null,null,null,null,null,null,null,null,null,null,null,null,null,null,null,null,null,null,null,3846,231,321,42,2717,107,4364,175]
[null,"Owner occupied:",222,44,1843,158,3466,228,552,65,240,40,273,44,1003,96,247,44,365,56,1786,194,817,78,453,59,1098,155,546,50,428,64,null,null,null,null,null,null,null,null,null,null,null,null,null,null,null,null,null,null,null,null,null,null,null,null,null,null,null,null,null,null,null,null,null,null,null,null,2686,223,288,36,2540,143,4088,189]
[null,"Less than $5,000",6,6,25,28,39,42,9,8,7,8,4,7,9,15,6,9,0,11,20,29,7,11,10,16,0,11,3,4,17,21,null,null,null,null,null,null,null,null,null,null,null,null,null,null,null,null,null,null,null,null,null,null,null,null,null,null,null,null,null,null,null,null,null,null,null,null,12,18,2,5,14,23,44,55]
[null,"$5,000 to $9,999",7,10,45,40,70,47,11,10,0,11,4,6,0,11,0,11,12,11,118,95,0,11,7,9,0,11,0,11,0,11,null,null,null,null,null,null,null,null,null,null,null,null,null,null,null,null,null,null,null,null,null,null,null,null,null,null,null,null,null,null,null,null,null,null,null,null,11,18,6,7,11,20,14,22]
[null,"$10,000 to $14,999",11,9,46,44,210,116,11,15,21,20,16,12,20,24,4,4,17,13,102,71,0,11,5,7,6,11,15,10,12,9,null,null,null,null,null,null,null,null,null,null,null,null,null,null,null,null,null,null,null,null,null,null,null,null,null,null,null,null,null,null,null,null,null,null,null,null,41,38,7,7,9,15,41,32]
[null,"$15,000 to $19,999",5,8,88,69,127,76,8,7,6,7,8,9,9,13,7,6,13,15,34,32,9,11,9,10,54,50,24,14,33,20,null,null,null,null,null,null,null,null,null,null,null,null,null,null,null,null,null,null,null,null,null,null,null,null,null,null,null,null,null,null,null,null,null,null,null,null,207,100,11,9,29,32,42,44]
[null,"$20,000 to $24,999",18,13,91,56,118,60,34,22,10,11,20,17,14,14,7,6,24,13,30,34,24,15,16,13,34,32,8,8,19,13,null,null,null,null,null,null,null,null,null,null,null,null,null,null,null,null,null,null,null,null,null,null,null,null,null,null,null,null,null,null,null,null,null,null,null,null,215,104,9,8,43,43,85,61]
[null,"$25,000 to $34,999",37,22,203,104,302,87,49,23,35,18,22,10,31,33,28,16,16,12,126,69,72,34,25,19,66,44,97,36,47,23,null,null,null,null,null,null,null,null,null,null,null,null,null,null,null,null,null,null,null,null,null,null,null,null,null,null,null,null,null,null,null,null,null,null,null,null,249,113,22,11,143,73,192,78]
[null,"$35,000 to $49,999",22,16,285,124,563,140,50,23,15,8,51,22,153,58,40,24,57,25,263,106,64,37,63,33,103,58,68,28,55,25,null,null,null,null,null,null,null,null,null,null,null,null,null,null,null,null,null,null,null,null,null,null,null,null,null,null,null,null,null,null,null,null,null,null,null,null,398,139,40,32,98,61,241,81]
[null,"$50,000 to $74,999",62,27,589,161,704,178,116,34,27,14,53,24,152,50,51,24,90,39,440,120,121,47,122,48,250,100,163,38,96,33,null,null,null,null,null,null,null,null,null,null,null,null,null,null,null,null,null,null,null,null,null,null,null,null,null,null,null,null,null,null,null,null,null,null,null,null,570,177,28,14,345,110,497,122]
[null,"$75,000 to $99,999",39,21,281,98,596,130,97,25,52,20,42,17,182,66,62,33,75,32,314,160,110,41,61,29,158,78,91,33,51,22,null,null,null,null,null,null,null,null,null,null,null,null,null,null,null,null,null,null,null,null,null,null,null,null,null,null,null,null,null,null,null,null,null,null,null,null,387,140,37,16,442,115,531,137]
[null,"$100,000 to $149,999",8,7,178,92,569,176,125,39,64,27,28,17,276,76,34,17,46,20,224,114,241,71,103,39,276,84,70,31,57,30,null,null,null,null,null,null,null,null,null,null,null,null,null,null,null,null,null,null,null,null,null,null,null,null,null,null,null,null,null,null,null,null,null,null,null,null,462,164,58,24,687,127,1129,161]
[null,"$150,000 or more",7,11,12,20,168,73,42,20,3,5,25,18,157,57,8,8,15,11,115,61,169,49,32,26,151,67,7,7,41,21,null,null,null,null,null,null,null,null,null,null,null,null,null,null,null,null,null,null,null,null,null,null,null,null,null,null,null,null,null,null,null,null,null,null,null,null,134,106,68,26,719,143,1272,162]
[null,"Renter occupied:",72,39,467,158,2255,221,105,42,49,23,58,32,116,57,31,24,62,28,898,206,103,58,44,27,360,127,53,43,37,21,null,null,null,null,null,null,null,null,null,null,null,null,null,null,null,null,null,null,null,null,null,null,null,null,null,null,null,null,null,null,null,null,null,null,null,null,1160,200,33,30,177,114,276,108]
[null,"Less than $5,000",0,11,63,81,99,79,0,11,0,11,5,7,0,11,0,11,4,6,27,29,0,11,0,11,39,50,0,11,0,11,null,null,null,null,null,null,null,null,null,null,null,null,null,null,null,null,null,null,null,null,null,null,null,null,null,null,null,null,null,null,null,null,null,null,null,null,46,48,0,114,0,114,0,114]
[null,"$5,000 to $9,999",2,3,0,16,212,105,0,11,3,5,0,11,0,11,0,11,0,11,128,112,0,11,3,4,0,11,0,11,3,6,null,null,null,null,null,null,null,null,null,null,null,null,null,null,null,null,null,null,null,null,null,null,null,null,null,null,null,null,null,null,null,null,null,null,null,null,16,28,0,114,18,29,0,114]
[null,"$10,000 to $14,999",0,11,25,30,325,106,8,9,0,11,0,11,0,11,2,3,0,11,166,73,0,11,0,11,7,12,0,11,0,11,null,null,null,null,null,null,null,null,null,null,null,null,null,null,null,null,null,null,null,null,null,null,null,null,null,null,null,null,null,null,null,null,null,null,null,null,105,73,0,114,0,114,29,21]
[null,"$15,000 to $19,999",0,11,95,65,174,80,0,11,2,3,0,11,0,11,0,11,0,11,91,55,0,11,5,8,9,15,0,11,6,7,null,null,null,null,null,null,null,null,null,null,null,null,null,null,null,null,null,null,null,null,null,null,null,null,null,null,null,null,null,null,null,null,null,null,null,null,260,142,0,114,34,49,31,49]
[null,"$20,000 to $24,999",10,16,66,62,169,80,10,15,0,11,0,11,0,11,5,9,10,15,39,39,12,12,0,11,48,54,0,11,3,4,null,null,null,null,null,null,null,null,null,null,null,null,null,null,null,null,null,null,null,null,null,null,null,null,null,null,null,null,null,null,null,null,null,null,null,null,25,29,0,114,0,114,21,31]
[null,"$25,000 to $34,999",12,15,43,56,513,137,3,4,2,4,2,3,0,11,0,11,7,9,13,20,25,25,0,11,7,11,8,11,8,8,null,null,null,null,null,null,null,null,null,null,null,null,null,null,null,null,null,null,null,null,null,null,null,null,null,null,null,null,null,null,null,null,null,null,null,null,84,59,2,3,0,114,0,114]
[null,"$35,000 to $49,999",4,6,83,78,397,139,12,14,12,13,15,14,36,33,4,5,17,15,315,150,8,13,12,18,20,25,36,40,13,16,null,null,null,null,null,null,null,null,null,null,null,null,null,null,null,null,null,null,null,null,null,null,null,null,null,null,null,null,null,null,null,null,null,null,null,null,229,115,0,114,0,114,67,60]
[null,"$50,000 to $74,999",28,24,36,39,284,100,37,28,11,12,18,20,17,28,11,17,9,10,57,46,0,11,3,5,97,69,3,5,2,4,null,null,null,null,null,null,null,null,null,null,null,null,null,null,null,null,null,null,null,null,null,null,null,null,null,null,null,null,null,null,null,null,null,null,null,null,293,141,25,31,0,114,40,49]
[null,"$75,000 to $99,999",4,4,26,29,23,36,23,21,3,4,13,20,12,18,9,11,15,19,62,64,13,13,14,17,61,61,6,10,2,4,null,null,null,null,null,null,null,null,null,null,null,null,null,null,null,null,null,null,null,null,null,null,null,null,null,null,null,null,null,null,null,null,null,null,null,null,92,69,6,6,72,81,19,21]
[null,"$100,000 to $149,999",12,19,30,50,52,30,9,8,9,11,5,7,51,40,0,11,0,11,0,16,40,48,7,8,7,12,0,11,0,11,null,null,null,null,null,null,null,null,null,null,null,null,null,null,null,null,null,null,null,null,null,null,null,null,null,null,null,null,null,null,null,null,null,null,null,null,10,17,0,114,53,51,20,24]
[null,"$150,000 or more",0,11,0,16,7,11,3,5,7,9,0,11,0,11,0,11,0,11,0,16,5,8,0,11,65,69,0,11,0,11,null,null,null,null,null,null,null,null,null,null,null,null,null,null,null,null,null,null,null,null,null,null,null,null,null,null,null,null,null,null,null,null,null,null,null,null,0,114,0,114,0,114,49,50]
[]
[]
[]
[]
[]
[null,{"$f":"\"Calculated \"&B139","v":"Calculated B25118. TENURE BY HOUSEHOLD INCOME IN THE PAST 12 MONTHS (IN 2012 INFLATION-ADJUSTED DOLLARS) "}]
[null,{"$f":"B140","v":"Universe:  OCCUPIED HOUSING UNITS"}]
[null,{"$f":"B141","v":"Data Set: 2007-2011 American Community Survey 5-Year Estimates"}]
[null,null,"Acworth",null,"Charlestown",null,"Claremont",null,"Cornish",null,"Croydon",null,"Goshen",null,"Grantham",null,"Langdon",null,"Lempster",null,"Newport",null,"Plainfield",null,"Springfield",null,"Sunapee",null,"Unity",null,"Washington"]
[null,null,"Estimate","Margin Of Error","Estimate","Margin Of Error","Estimate","Margin Of Error","Estimate","Margin Of Error","Estimate","Margin Of Error","Estimate","Margin Of Error","Estimate","Margin Of Error","Estimate","Margin Of Error","Estimate","Margin Of Error","Estimate","Margin Of Error","Estimate","Margin Of Error","Estimate","Margin Of Error","Estimate","Margin Of Error","Estimate","Margin Of Error","Estimate","Margin Of Error"]
[null,"Total:",{"$f":"C145","v":294},54,2310,107,5721,232,657,69,289,43,331,48,1119,80,278,45,427,58,2684,193,920,76,497,60,1458,100,599,58,465,69]
[null,"Less than $5,000",{"$f":"C147+C159","v":6},{"$f":"SQRT((D147^2)+(D159^2))","v":12.529964086141668},{"$f":"E147+E159","v":88},{"$f":"SQRT((F147^2)+(F159^2))","v":85.702975444263316},{"$f":"G147+G159","v":138},{"$f":"SQRT((H147^2)+(H159^2))","v":89.470665583754325},{"$f":"I147+I159","v":9},{"$f":"SQRT((J147^2)+(J159^2))","v":13.601470508735444},{"$f":"K147+K159","v":7},{"$f":"SQRT((L147^2)+(L159^2))","v":13.601470508735444},{"$f":"M147+M159","v":9},{"$f":"SQRT((N147^2)+(N159^2))","v":9.8994949366116654},{"$f":"O147+O159","v":9},{"$f":"SQRT((P147^2)+(P159^2))","v":18.601075237738275},{"$f":"Q147+Q159","v":6},{"$f":"SQRT((R147^2)+(R159^2))","v":14.212670403551895},{"$f":"S147+S159","v":4},{"$f":"SQRT((T147^2)+(T159^2))","v":12.529964086141668},{"$f":"U147+U159","v":47},{"$f":"SQRT((V147^2)+(V159^2))","v":41.012193308819754},{"$f":"W147+W159","v":7},{"$f":"SQRT((X147^2)+(X159^2))","v":15.556349186104045},{"$f":"Y147+Y159","v":10},{"$f":"SQRT((Z147^2)+(Z159^2))","v":19.416487838947599},{"$f":"AA147+AA159","v":39},{"$f":"SQRT((AB147^2)+(AB159^2))","v":51.195702944680818},{"$f":"AC147+AC159","v":3},{"$f":"SQRT((AD147^2)+(AD159^2))","v":11.704699910719626},{"$f":"AE154","v":96},33]
[null,"$5,000 to $9,999",{"$f":"C148+C160","v":9},{"$f":"SQRT((D148^2)+(D160^2))","v":10.440306508910551},{"$f":"E148+E160","v":45},{"$f":"SQRT((F148^2)+(F160^2))","v":43.08131845707603},{"$f":"G148+G160","v":282},{"$f":"SQRT((H148^2)+(H160^2))","v":115.03912377969506},{"$f":"I148+I160","v":11},{"$f":"SQRT((J148^2)+(J160^2))","v":14.866068747318506},{"$f":"K148+K160","v":3},{"$f":"SQRT((L148^2)+(L160^2))","v":12.083045973594572},{"$f":"M148+M160","v":4},{"$f":"SQRT((N148^2)+(N160^2))","v":12.529964086141668},{"$f":"O148+O160","v":0},{"$f":"SQRT((P148^2)+(P160^2))","v":15.556349186104045},{"$f":"Q148+Q160","v":0},{"$f":"SQRT((R148^2)+(R160^2))","v":15.556349186104045},12,15.556349186104045,246,{"$f":"SQRT((V148^2)+(V160^2))","v":146.86388255796589},0,{"$f":"SQRT((X148^2)+(X160^2))","v":15.556349186104045},10,9.8488578017961039,0,15.556349186104045,0,15.556349186104045,51,22]
[null,"$10,000 to $14,999",{"$f":"C149+C161","v":11},14.212670403551895,{"$f":"E149+E161","v":71},53.254107822777392,{"$f":"G149+G161","v":535},157.13688300332294,{"$f":"I149+I161","v":19},17.4928556845359,{"$f":"K149+K161","v":21},22.825424421026653,{"$f":"M149+M161","v":16},16.278820596099706,{"$f":"O149+O161","v":20},26.40075756488817,{"$f":"Q149+Q161","v":6},5,17,17.029386365926403,268,101.83319694480774,0,15.556349186104045,5,13.038404810405298,13,16.278820596099706,15,14.866068747318506,{"$f":"AE156+AE157","v":98},{"$f":"SQRT((AF156^2)+(AF157^2))","v":36.61966684720111}]
[null,"$15,000 to $19,999",{"$f":"C150+C162","v":5},13.601470508735444,{"$f":"E150+E162","v":183},94.794514609232536,{"$f":"G150+G162","v":301},110.34491379306978,{"$f":"I150+I162","v":8},13.038404810405298,{"$f":"K150+K162","v":8},7.6157731058639087,{"$f":"M150+M162","v":8},14.212670403551895,{"$f":"O150+O162","v":9},17.029386365926403,{"$f":"Q150+Q162","v":7},12.529964086141668,13,18.601075237738275,125,63.631753079732135,9,15.556349186104045,14,12.806248474865697,63,52.201532544552748,24,17.804493814764857,{"$f":"AE158+AE159","v":37},{"$f":"SQRT((AF158^2)+(AF159^2))","v":23.706539182259394}]
[null,"$20,000 to $24,999",28,20.615528128088304,157,83.546394296821688,287,100,44,26.627053911388696,10,15.556349186104045,20,20.248456731316587,14,17.804493814764857,12,10.816653826391969,34,19.849433241279208,69,51.739733281106119,36,19.209372712298546,16,17.029386365926403,82,62.769419305900861,8,13.601470508735444,{"$f":"AE160+AE161+AE162","v":9},{"$f":"SQRT((AF160^2)+(AF161^2)+(AF162^2))","v":14.352700094407323}]
[null,"$25,000 to $34,999",49,26.627053911388696,246,118.1185844818672,815,162.28986413205232,52,23.345235059857504,37,18.439088914585774,24,10.440306508910551,31,34.785054261852174,28,19.416487838947599,23,15,139,71.840100222647237,97,42.201895692018383,25,21.95449840010015,73,45.354161881794269,105,37.643060449437421,{"$f":"AE163+AE164","v":11},{"$f":"SQRT((AF163^2)+(AF164^2))","v":8.9442719099991592}]
[null,"$35,000 to $49,999",26,17.088007490635061,368,146.49232061783991,960,197.28405916343064,62,26.92582403567252,27,15.264337522473747,66,26.076809620810597,189,66.730802482811484,44,24.515301344262525,74,29.154759474226502,578,183.67362358270171,72,39.217343102255157,75,37.589892258425003,123,63.158530698552511,104,48.826222462934808,{"$f":"AE165","v":13},{"$f":"AF165","v":16}]
[null,"$50,000 to $74,999",90,36.124783736376884,625,165.65627063289816,988,204.16659863944446,153,44.045431091090478,38,18.439088914585774,71,31.240998703626616,169,57.30619512757761,62,29.410882339705484,99,40.26164427839479,497,128.51459061133875,121,48.270073544588683,125,48.259714048054619,347,121.49485585818027,166,38.327535793473601,{"$f":"AE166+AE167","v":4},{"$f":"SQRT((AF166^2)+(AF167^2))","v":5.6568542494923806}]
[null,"$75,000 to $99,999",43,21.377558326431949,307,102.20078277586722,619,134.89254983133799,120,32.649655434629018,55,20.396078054371138,55,26.248809496813376,194,68.410525505948286,71,34.785054261852174,90,37.215588131856791,376,172.32527382830412,123,43.011626335213137,75,33.61547262794322,219,99.02019995940222,97,34.481879299133332,{"$f":"AE168","v":0},11]
[null,"$100,000 to $149,999",20,20.248456731316587,208,104.70912090166739,621,178.53851125177448,134,39.812058474788763,73,29.154759474226502,33,18.384776310850235,327,85.883642214335552,34,20.248456731316587,46,22.825424421026653,224,115.11733144926528,281,85.702975444263316,110,39.812058474788763,283,84.852813742385706,70,32.893768406797051,0,11]
[null,"$150,000 or more",7,15.556349186104045,{"$f":"E157+E169","v":12},25.612496949731394,175,73.824115301166998,45,20.615528128088304,10,10.295630140987001,25,21.095023109728988,157,58.051701094799967,8,13.601470508735444,15,15.556349186104045,115,63.063460101710248,174,49.648766349225639,32,28.231188426986208,216,96.176920308356728,7,13.038404810405298,{"$f":"AE157+AE169","v":41},{"$f":"SQRT((AF157^2)+(AF169^2))","v":23.706539182259394}]

{"sheet":"ACS_TableB19201_ACS_Tbl_B19202","index":40,"n_rows":130,"n_cols":32,"rows_kept":130,"cut":false,"hidden":true,"merged":[]}
[null,"B19102. NON-FAMILY INCOME IN THE PAST 12 MONTHS (IN 2022 INFLATION-ADJUSTED DOLLARS)"]
[null,"Universe:  FAMILIES"]
[null,"Data Set: 2018-2022 American Community Survey 5-Year Estimates"]
[]
[null,null,"Acworth",null,"Charlestown",null,"Claremont",null,"Cornish",null,"Croydon",null,"Goshen",null,"Grantham",null,"Langdon",null,"Lempster",null,"Newport",null,"Plainfield",null,null,null,"Sunapee",null,"Unity",null,"Washington"]
[null,null,"Estimate","Margin Of Error","Estimate","Margin Of Error","Estimate","Margin Of Error","Estimate","Margin Of Error","Estimate","Margin Of Error","Estimate","Margin Of Error","Estimate","Margin Of Error","Estimate","Margin Of Error","Estimate","Margin Of Error","Estimate","Margin Of Error","Estimate","Margin Of Error","Estimate","Margin Of Error","Estimate","Margin Of Error","Estimate","Margin Of Error","Estimate","Margin Of Error"]
[null,"Total:",53,27,675,221,2377,316,342,135,53,22,101,31,170,118,49,18,102,38,1136,263,169,72,80,34,401,154,148,45,71,32]
[null,"Less than $10,000",7,10,157,114,161,109,0,12,7,9,21,16,0,12,0,12,8,8,133,101,0,12,18,19,62,63,23,16,3,4]
[null,"$10,000 to $14,999",2,4,80,95,211,119,62,67,4,7,9,12,0,12,1,3,3,5,81,78,10,9,3,5,0,12,0,12,0,12]
[null,"$15,000 to $19,999",3,6,88,69,167,100,7,7,3,5,3,5,50,76,0,12,9,14,147,105,0,12,0,12,0,12,20,19,17,18]
[null,"$20,000 to $24,999",0,12,16,26,196,109,29,28,6,7,6,5,0,12,6,7,10,12,35,40,6,9,0,12,12,13,8,7,0,12]
[null,"$25,000 to $29,999",0,12,67,70,213,123,6,6,4,4,8,8,0,12,2,3,24,19,52,47,10,14,12,13,16,27,28,25,0,12]
[null,"$30,000 to $34,999",3,4,63,81,140,149,7,7,0,12,4,6,36,63,7,6,0,12,96,97,13,14,4,6,0,12,8,7,2,4]
[null,"$35,000 to $39,999",10,14,17,29,93,64,4,6,3,5,8,9,0,12,2,3,7,9,35,51,5,8,3,5,76,91,6,5,9,13]
[null,"$40,000 to $44,999",1,2,37,40,64,41,3,5,2,4,3,3,0,12,11,12,0,12,11,19,6,10,3,4,0,12,3,5,17,21]
[null,"$45,000 to $49,999",0,12,37,43,223,127,0,12,0,12,2,3,0,12,0,12,5,5,23,29,9,15,0,12,40,43,0,12,6,6]
[null,"$50,000 to $59,999",17,16,40,39,243,151,18,13,9,12,9,8,54,46,2,3,25,19,0,17,0,12,1,3,11,13,20,14,3,5]
[null,"$60,000 to $74,999",8,10,0,12,221,150,41,24,2,3,9,8,13,22,5,5,0,12,94,101,21,19,10,13,46,34,8,8,2,3]
[null,"$75,000 to $99,999",0,12,58,55,206,97,134,134,11,7,8,8,0,12,4,4,0,12,275,152,32,33,17,20,34,29,14,14,4,4]
[null,"$100,000 to $124,999",2,3,0,12,98,70,13,9,0,12,5,5,0,12,9,8,10,14,48,45,5,7,2,5,17,20,0,12,0,12]
[null,"$125,000 to $149,999",0,12,0,12,13,23,3,5,2,3,2,3,0,12,0,12,0,12,0,17,16,12,7,7,67,78,7,7,0,12]
[null,"$150,000 to $199,999",0,12,0,12,28,33,7,7,0,12,4,7,0,12,0,12,0,12,78,84,10,13,0,12,0,12,3,4,3,4]
[null,"$200,000 or more",0,12,15,23,100,91,8,8,0,12,0,12,17,26,0,12,1,3,28,34,26,30,0,12,20,25,0,12,5,6]
[]
[]
[null,"B19112. MEDIAN NON-FAMILY INCOME IN THE PAST 12 MONTHS (IN 2021 INFLATION-ADJUSTED DOLLARS)"]
[null,"Universe:  FAMILIES"]
[null,"Data Set: 2018-2022 American Community Survey 5-Year Estimates"]
[]
[null,null,"Acworth",null,"Charlestown",null,"Claremont",null,"Cornish",null,"Croydon",null,"Goshen",null,"Grantham",null,"Langdon",null,"Lempster",null,"Newport",null,"Plainfield",null,"Springfield",null,"Sunapee",null,"Unity",null,"Washington"]
[null,null,"Estimate","Margin Of Error","Estimate","Margin Of Error","Estimate","Margin Of Error","Estimate","Margin Of Error","Estimate","Margin Of Error","Estimate","Margin Of Error","Estimate","Margin Of Error","Estimate","Margin Of Error","Estimate","Margin Of Error","Estimate","Margin Of Error","Estimate","Margin Of Error","Estimate","Margin Of Error","Estimate","Margin Of Error","Estimate","Margin Of Error","Estimate","Margin Of Error"]
[null,"Median family income in the past 12 months",52604,26213,24453,14935,40391,9950,69821,43759,39375,23555,34688,12902,"-","**",41477,16611,28929,21809,"-","**",78365,18741,"-","**",48036,33806,27300,11929,42250,7815]
[]
[]
[]
[]
[]
[]
[]
[]
[]
[]
[]
[]
[]
[]
[]
[]
[]
[null,"B19102. NON-FAMILY INCOME IN THE PAST 12 MONTHS (IN 2017 INFLATION-ADJUSTED DOLLARS)"]
[null,"Universe:  FAMILIES"]
[null,"Data Set: 2013-2017 American Community Survey 5-Year Estimates"]
[]
[null,null,"Acworth",null,"Charlestown",null,"Claremont",null,"Cornish",null,"Croydon",null,"Goshen",null,"Grantham",null,"Langdon",null,"Lempster",null,"Newport",null,"Plainfield",null,"Springfield",null,"Sunapee",null,"Unity",null,"Washington"]
[null,null,"Estimate","Margin Of Error","Estimate","Margin Of Error","Estimate","Margin Of Error","Estimate","Margin Of Error","Estimate","Margin Of Error","Estimate","Margin Of Error","Estimate","Margin Of Error","Estimate","Margin Of Error","Estimate","Margin Of Error","Estimate","Margin Of Error","Estimate","Margin Of Error","Estimate","Margin Of Error","Estimate","Margin Of Error","Estimate","Margin Of Error","Estimate","Margin Of Error"]
[null,"Total:",126,36,727,189,2274,299,204,49,80,30,84,27,285,117,74,24,171,47,866,228,228,55,109,49,659,161,155,40,139,42]
[null,"Less than $10,000",0,11,30,33,320,173,16,11,1,3,2,3,0,11,14,15,7,7,84,66,12,12,7,11,35,57,13,13,10,15]
[null,"$10,000 to $14,999",10,7,108,76,346,142,6,7,8,11,2,4,0,11,7,6,10,13,72,61,0,11,6,9,67,66,23,18,14,17]
[null,"$15,000 to $19,999",30,25,132,91,232,82,23,17,5,8,0,11,10,15,2,4,13,8,99,84,0,11,3,5,56,41,7,6,9,7]
[null,"$20,000 to $24,999",5,5,101,64,352,127,11,10,14,12,6,5,0,11,3,4,33,25,64,47,5,7,3,4,101,78,31,20,6,6]
[null,"$25,000 to $29,999",14,13,94,74,176,94,26,24,6,6,20,18,51,52,5,6,7,8,54,42,35,27,17,18,22,30,4,5,12,15]
[null,"$30,000 to $34,999",2,3,66,58,163,70,3,4,2,4,3,5,12,18,0,11,9,8,16,26,17,14,16,19,63,58,12,10,17,17]
[null,"$35,000 to $39,999",7,7,18,30,89,62,28,23,3,5,1,4,0,11,2,4,3,5,51,41,15,12,0,11,9,16,3,4,10,9]
[null,"$40,000 to $44,999",2,3,15,25,59,36,6,7,7,8,4,4,69,76,0,11,4,5,26,30,11,11,12,16,60,67,5,5,2,4]
[null,"$45,000 to $49,999",14,10,0,16,106,69,9,8,0,11,2,3,17,28,0,11,5,6,52,51,12,19,14,16,45,51,0,11,0,11]
[null,"$50,000 to $59,999",18,12,36,40,66,49,15,17,9,11,16,16,0,11,3,4,20,17,60,75,12,12,0,11,51,54,3,5,3,4]
[null,"$60,000 to $74,999",12,9,23,36,168,92,14,12,10,12,22,16,30,40,11,10,9,13,133,83,26,23,0,11,87,56,17,12,12,10]
[null,"$75,000 to $99,999",8,9,71,58,77,48,22,17,8,10,0,11,14,22,15,15,29,25,80,64,32,27,17,19,30,48,4,5,33,27]
[null,"$100,000 to $124,999",4,5,33,40,39,57,5,6,0,11,2,3,40,49,12,13,17,17,0,16,11,13,0,11,17,19,10,15,6,6]
[null,"$125,000 to $149,999",0,11,0,16,57,53,13,10,0,11,4,4,10,15,0,11,0,11,60,73,0,11,11,17,16,18,19,20,5,5]
[null,"$150,000 to $199,999",0,11,0,16,0,18,7,8,3,6,0,11,0,11,0,11,5,6,15,24,10,10,0,11,0,11,0,11,0,11]
[null,"$200,000 or more",0,11,0,16,24,27,0,11,4,8,0,11,32,29,0,11,0,11,0,16,30,31,3,6,0,11,4,6,0,11]
[]
[]
[null,"B19112. MEDIAN NON-FAMILY INCOME IN THE PAST 12 MONTHS (IN 2017 INFLATION-ADJUSTED DOLLARS)"]
[null,"Universe:  FAMILIES"]
[null,"Data Set: 2013-2017 American Community Survey 5-Year Estimates"]
[]
[null,null,"Acworth",null,"Charlestown",null,"Claremont",null,"Cornish",null,"Croydon",null,"Goshen",null,"Grantham",null,"Langdon",null,"Lempster",null,"Newport",null,"Plainfield",null,"Springfield",null,"Sunapee",null,"Unity",null,"Washington"]
[null,null,"Estimate","Margin Of Error","Estimate","Margin Of Error","Estimate","Margin Of Error","Estimate","Margin Of Error","Estimate","Margin Of Error","Estimate","Margin Of Error","Estimate","Margin Of Error","Estimate","Margin Of Error","Estimate","Margin Of Error","Estimate","Margin Of Error","Estimate","Margin Of Error","Estimate","Margin Of Error","Estimate","Margin Of Error","Estimate","Margin Of Error","Estimate","Margin Of Error"]
[null,"Median family income in the past 12 months",36667,17746,24653,3958,22197,2899,37237,8288,40500,23372,51000,21744,47574,20612,65357,38044,44688,24803,39300,13042,55000,21297,40521,15387,31925,17804,29688,12438,35750,21359]
[]
[]
[]
[]
[]
[]
[]
[]
[]
[]
[]
[]
[]
[]
[]
[]
[]
[null,"B19102. NON-FAMILY INCOME IN THE PAST 12 MONTHS (IN 2012 INFLATION-ADJUSTED DOLLARS)"]
[null,"Universe:  FAMILIES"]
[null,"Data Set: 2008-2012 American Community Survey 5-Year Estimates"]
[]
[null,null,"Acworth",null,"Charlestown",null,"Claremont",null,"Cornish",null,"Croydon",null,"Goshen",null,"Grantham",null,"Langdon",null,"Lempster",null,"Newport",null,"Plainfield",null,"Springfield",null,"Sunapee",null,"Unity",null,"Washington"]
[null,null,"Estimate","Margin Of Error","Estimate","Margin Of Error","Estimate","Margin Of Error","Estimate","Margin Of Error","Estimate","Margin Of Error","Estimate","Margin Of Error","Estimate","Margin Of Error","Estimate","Margin Of Error","Estimate","Margin Of Error","Estimate","Margin Of Error","Estimate","Margin Of Error","Estimate","Margin Of Error","Estimate","Margin Of Error","Estimate","Margin Of Error","Estimate","Margin Of Error"]
[null,"Total:",88,31,739,156,2111,259,183,48,98,33,114,42,201,77,52,28,60,28,909,220,202,54,93,31,424,128,192,54,120,37]
[null,"Less than $10,000",8,6,29,29,341,133,14,11,6,7,4,6,0,11,0,11,4,6,211,113,0,11,5,5,31,49,3,4,9,9]
[null,"$10,000 to $14,999",6,8,57,48,319,96,16,17,18,19,13,12,15,23,6,5,11,13,194,80,0,11,2,5,13,16,9,7,9,7]
[null,"$15,000 to $19,999",5,8,74,43,186,78,6,6,2,3,3,4,0,11,5,5,0,11,58,42,0,11,11,12,63,53,14,10,29,18]
[null,"$20,000 to $24,999",22,20,102,77,140,69,31,23,1,3,17,16,4,6,7,9,9,10,22,32,16,13,9,10,69,61,3,4,3,4]
[null,"$25,000 to $29,999",11,13,56,57,179,81,9,10,9,8,9,7,0,11,2,3,4,7,11,19,27,25,0,11,9,15,34,25,17,16]
[null,"$30,000 to $34,999",13,9,60,64,191,99,9,6,4,5,1,4,25,32,0,11,3,6,9,15,38,27,8,9,50,38,35,19,10,9]
[null,"$35,000 to $39,999",4,6,42,47,193,105,6,6,3,5,18,14,18,21,0,11,5,6,30,37,12,14,23,23,29,36,6,6,3,5]
[null,"$40,000 to $44,999",0,11,62,68,65,43,9,10,8,9,10,10,0,11,0,11,4,6,156,122,15,16,14,17,14,23,12,14,7,7]
[null,"$45,000 to $49,999",0,11,56,43,121,83,0,11,2,3,7,11,18,27,5,5,4,4,80,95,0,11,9,13,8,13,29,39,5,7]
[null,"$50,000 to $59,999",10,11,92,71,93,51,26,19,2,3,18,20,11,17,0,11,8,9,52,44,12,13,0,11,31,33,12,11,4,6]
[null,"$60,000 to $74,999",0,11,51,43,104,61,22,18,14,14,3,6,34,32,18,19,0,11,40,36,0,11,8,8,27,37,21,21,9,7]
[null,"$75,000 to $99,999",9,9,28,34,45,44,13,10,8,12,6,7,43,35,9,11,5,5,15,24,30,23,0,11,80,60,14,14,3,4]
[null,"$100,000 to $124,999",0,11,30,50,48,57,16,16,12,11,0,11,20,18,0,11,0,11,31,37,29,30,4,6,0,11,0,11,0,11]
[null,"$125,000 to $149,999",0,11,0,16,46,54,3,5,0,11,0,11,0,11,0,11,0,11,0,16,6,9,0,11,0,11,0,11,0,11]
[null,"$150,000 to $199,999",0,11,0,16,18,20,3,5,0,11,0,11,13,20,0,11,0,11,0,16,0,11,0,11,0,11,0,11,0,11]
[null,"$200,000 or more",0,11,0,16,22,25,0,11,9,9,5,7,0,11,0,11,3,4,0,16,17,15,0,11,0,11,0,11,12,15]
[]
[]
[null,"B19112. MEDIAN NON-FAMILY INCOME IN THE PAST 12 MONTHS (IN 2012 INFLATION-ADJUSTED DOLLARS)"]
[null,"Universe:  FAMILIES"]
[null,"Data Set: 2008-2012 American Community Survey 5-Year Estimates"]
[]
[null,null,"Acworth",null,"Charlestown",null,"Claremont",null,"Cornish",null,"Croydon",null,"Goshen",null,"Grantham",null,"Langdon",null,"Lempster",null,"Newport",null,"Plainfield",null,"Springfield",null,"Sunapee",null,"Unity",null,"Washington"]
[null,null,"Estimate","Margin Of Error","Estimate","Margin Of Error","Estimate","Margin Of Error","Estimate","Margin Of Error","Estimate","Margin Of Error","Estimate","Margin Of Error","Estimate","Margin Of Error","Estimate","Margin Of Error","Estimate","Margin Of Error","Estimate","Margin Of Error","Estimate","Margin Of Error","Estimate","Margin Of Error","Estimate","Margin Of Error","Estimate","Margin Of Error","Estimate","Margin Of Error"]
[null,"Median family income in the past 12 months",25682,4351,32146,10636,27145,4421,42639,17179,44375,26006,37500,6422,65880,17894,70227,60391,34167,10283,19115,20195,41333,25931,37396,6064,32045,7718,34737,9265,26923,5550]

{"sheet":"ACS_TableB19101_ACS_Tbl_B19113","index":41,"n_rows":130,"n_cols":32,"rows_kept":130,"cut":false,"hidden":true,"merged":[]}
[null,"B19101. FAMILY INCOME IN THE PAST 12 MONTHS (IN 2022 INFLATION-ADJUSTED DOLLARS)"]
[null,"Universe:  FAMILIES"]
[null,"Data Set: 2018-2022 American Community Survey 5-Year Estimates"]
[]
[null,null,"Acworth",null,"Charlestown",null,"Claremont",null,"Cornish",null,"Croydon",null,"Goshen",null,"Grantham",null,"Langdon",null,"Lempster",null,"Newport",null,"Plainfield",null,null,null,"Sunapee",null,"Unity",null,"Washington"]
[null,null,"Estimate","Margin Of Error","Estimate","Margin Of Error","Estimate","Margin Of Error","Estimate","Margin Of Error","Estimate","Margin Of Error","Estimate","Margin Of Error","Estimate","Margin Of Error","Estimate","Margin Of Error","Estimate","Margin Of Error","Estimate","Margin Of Error","Estimate","Margin Of Error","Estimate","Margin Of Error","Estimate","Margin Of Error","Estimate","Margin Of Error","Estimate","Margin Of Error"]
[null,"Total",186,35,1172,135,2826,285,420,62,179,42,202,64,979,125,177,43,214,46,1342,202,662,79,214,75,721,107,330,55,342,64]
[null,"Less than $10,000",2,3,58,63,182,123,4,6,10,11,0,12,0,12,4,4,0,12,95,99,25,28,3,4,21,33,9,9,10,17]
[null,"$10,000 to $14,999",7,12,40,51,11,20,4,5,0,12,0,12,0,12,0,12,5,8,25,35,9,13,0,12,10,16,6,7,0,12]
[null,"$15,000 to $19,999",0,12,36,60,121,95,5,6,0,12,12,11,0,12,3,4,0,12,9,15,4,6,0,12,0,12,0,12,0,12]
[null,"$20,000 to $24,999",3,5,43,50,121,92,3,4,0,12,1,4,0,12,0,12,0,12,52,69,0,12,0,12,0,12,17,16,0,12]
[null,"$25,000 to $29,999",3,5,0,12,148,110,0,12,2,3,2,3,0,12,0,12,0,12,30,37,11,10,4,7,0,12,0,12,12,14]
[null,"$30,000 to $34,999",0,12,51,57,70,58,18,18,2,4,2,5,55,63,3,5,6,6,63,68,22,31,0,12,35,45,11,12,26,16]
[null,"$35,000 to $39,999",3,4,85,82,188,115,0,12,0,12,4,5,0,12,3,4,7,8,8,14,0,12,15,19,0,12,11,8,10,13]
[null,"$40,000 to $44,999",2,3,99,75,64,59,4,6,2,3,14,17,37,44,18,15,2,4,20,29,5,7,0,12,0,12,10,10,0,12]
[null,"$45,000 to $49,999",0,12,9,16,115,82,14,11,4,4,30,37,0,12,1,2,6,6,101,95,12,14,9,15,0,12,12,13,12,14]
[null,"$50,000 to $59,999",19,14,42,41,342,141,28,15,16,10,21,19,77,78,8,6,7,6,38,36,3,6,9,12,32,27,31,15,19,16]
[null,"$60,000 to $74,999",26,15,155,101,290,141,23,17,15,10,13,9,75,64,16,12,22,14,132,65,10,10,38,41,53,39,48,23,29,19]
[null,"$75,000 to $99,999",48,25,155,79,442,173,45,25,18,12,22,21,101,88,18,12,55,26,185,100,133,75,32,25,97,52,46,19,45,19]
[null,"$100,000 to $124,999",48,22,210,113,320,138,78,35,53,31,45,22,106,80,19,13,41,24,232,124,128,55,45,32,125,61,40,21,46,27]
[null,"$125,000 to $149,999",2,3,76,46,199,95,30,14,43,23,17,9,46,42,32,19,44,23,66,70,103,70,13,14,59,41,52,29,47,37]
[null,"$150,000 to $199,999",17,13,10,17,121,74,83,31,9,7,13,12,283,156,17,14,14,13,155,93,85,39,31,30,155,78,20,13,45,25]
[null,"$200,000 or more",6,7,103,69,92,78,81,32,5,6,6,5,199,153,35,23,5,7,131,96,112,44,15,13,134,58,17,12,41,24]
[]
[]
[null,"B19113. MEDIAN FAMILY INCOME IN THE PAST 12 MONTHS (IN 2022 INFLATION-ADJUSTED DOLLARS)"]
[null,"Universe:  FAMILIES"]
[null,"Data Set: 2018-2022 American Community Survey 5-Year Estimates"]
[]
[null,null,"Acworth",null,"Charlestown",null,"Claremont",null,"Cornish",null,"Croydon",null,"Goshen",null,"Grantham",null,"Langdon",null,"Lempster",null,"Newport",null,"Plainfield",null,"Springfield",null,"Sunapee",null,"Unity",null,"Washington"]
[null,null,"Estimate","Margin Of Error","Estimate","Margin Of Error","Estimate","Margin Of Error","Estimate","Margin Of Error","Estimate","Margin Of Error","Estimate","Margin Of Error","Estimate","Margin Of Error","Estimate","Margin Of Error","Estimate","Margin Of Error","Estimate","Margin Of Error","Estimate","Margin Of Error","Estimate","Margin Of Error","Estimate","Margin Of Error","Estimate","Margin Of Error","Estimate","Margin Of Error"]
[null,"Median family income in the past 12 months",88250,14222,70278,21338,62161,7476,121333,14808,115903,6819,81667,36503,128828,72833,123393,24160,98500,12835,92537,33242,118500,16032,96667,26281,123922,24523,80385,14039,101538,22699]
[]
[]
[]
[]
[]
[]
[]
[]
[]
[]
[]
[]
[]
[]
[]
[]
[]
[null,"B19101. FAMILY INCOME IN THE PAST 12 MONTHS (IN 2017 INFLATION-ADJUSTED DOLLARS)"]
[null,"Universe:  FAMILIES"]
[null,"Data Set: 2013-2017 American Community Survey 5-Year Estimates"]
[]
[null,null,"Acworth",null,"Charlestown",null,"Claremont",null,"Cornish",null,"Croydon",null,"Goshen",null,"Grantham",null,"Langdon",null,"Lempster",null,"Newport",null,"Plainfield",null,"Springfield",null,"Sunapee",null,"Unity",null,"Washington"]
[null,null,"Estimate","Margin Of Error","Estimate","Margin Of Error","Estimate","Margin Of Error","Estimate","Margin Of Error","Estimate","Margin Of Error","Estimate","Margin Of Error","Estimate","Margin Of Error","Estimate","Margin Of Error","Estimate","Margin Of Error","Estimate","Margin Of Error","Estimate","Margin Of Error","Estimate","Margin Of Error","Estimate","Margin Of Error","Estimate","Margin Of Error","Estimate","Margin Of Error"]
[null,"Total",301,51,1375,110,3293,274,518,60,194,42,187,41,868,97,218,35,238,49,1707,152,692,80,326,60,894,96,371,54,417,82]
[null,"Less than $10,000",15,11,48,38,101,63,3,5,0,11,3,5,0,11,2,3,3,4,117,89,10,11,0,11,27,26,0,11,11,10]
[null,"$10,000 to $14,999",0,11,14,23,71,60,4,6,6,6,2,3,0,11,0,11,9,13,0,16,0,11,4,6,0,11,3,5,4,5]
[null,"$15,000 to $19,999",2,3,55,51,71,69,3,5,2,4,2,3,24,34,2,3,6,6,14,22,0,11,13,14,6,10,5,6,9,6]
[null,"$20,000 to $24,999",10,11,36,44,168,102,3,5,2,4,18,15,0,11,10,11,9,8,63,54,11,11,0,11,35,52,19,14,15,9]
[null,"$25,000 to $29,999",12,10,37,44,108,50,0,11,0,11,8,6,0,11,4,4,4,5,61,60,33,31,7,9,37,52,36,22,19,15]
[null,"$30,000 to $34,999",11,11,31,35,184,93,41,29,4,5,19,17,0,11,6,9,11,9,146,102,9,10,10,13,55,47,7,6,6,6]
[null,"$35,000 to $39,999",21,15,122,85,84,53,19,12,9,9,14,13,0,11,0,11,8,7,103,73,27,28,7,8,11,18,0,11,20,15]
[null,"$40,000 to $44,999",23,14,95,79,286,134,8,8,7,7,5,5,12,19,7,6,18,12,24,28,16,13,3,4,10,16,13,11,41,36]
[null,"$45,000 to $49,999",2,3,53,38,198,77,30,20,8,9,16,15,9,15,9,6,18,16,137,91,21,25,0,11,44,37,27,14,9,8]
[null,"$50,000 to $59,999",24,15,234,111,432,129,25,15,18,12,8,10,67,56,20,11,0,11,199,132,65,33,33,24,34,28,22,12,41,19]
[null,"$60,000 to $74,999",49,24,150,100,339,122,65,37,24,15,37,19,98,65,21,14,41,24,130,83,76,32,43,28,102,60,58,20,49,24]
[null,"$75,000 to $99,999",41,20,340,127,766,184,74,27,48,23,32,17,124,68,46,18,44,21,329,111,134,37,105,43,167,74,67,28,53,28]
[null,"$100,000 to $124,999",30,12,42,41,209,84,104,26,18,15,14,9,231,108,34,18,29,14,68,54,91,35,40,25,170,79,61,28,32,18]
[null,"$125,000 to $149,999",15,10,78,63,122,72,54,27,25,19,7,6,143,91,26,14,4,5,114,61,67,29,42,25,134,69,34,20,46,20]
[null,"$150,000 to $199,999",11,11,24,28,135,68,39,21,20,20,2,3,52,29,14,16,16,17,148,98,70,37,4,6,15,26,19,10,6,6]
[null,"$200,000 or more",35,18,16,27,19,24,46,23,3,5,0,11,108,66,17,12,18,18,54,44,62,27,15,13,47,34,0,11,56,59]
[]
[]
[null,"B19113. MEDIAN FAMILY INCOME IN THE PAST 12 MONTHS (IN 2017 INFLATION-ADJUSTED DOLLARS)"]
[null,"Universe:  FAMILIES"]
[null,"Data Set: 2013-2017 American Community Survey 5-Year Estimates"]
[]
[null,null,"Acworth",null,"Charlestown",null,"Claremont",null,"Cornish",null,"Croydon",null,"Goshen",null,"Grantham",null,"Langdon",null,"Lempster",null,"Newport",null,"Plainfield",null,"Springfield",null,"Sunapee",null,"Unity",null,"Washington"]
[null,null,"Estimate","Margin Of Error","Estimate","Margin Of Error","Estimate","Margin Of Error","Estimate","Margin Of Error","Estimate","Margin Of Error","Estimate","Margin Of Error","Estimate","Margin Of Error","Estimate","Margin Of Error","Estimate","Margin Of Error","Estimate","Margin Of Error","Estimate","Margin Of Error","Estimate","Margin Of Error","Estimate","Margin Of Error","Estimate","Margin Of Error","Estimate","Margin Of Error"]
[null,"Median family income in the past 12 months",67014,7565,55980,11570,57469,9307,95000,20735,81250,14380,55625,22653,113400,11503,89500,10565,68000,12291,59715,13890,85909,8166,86667,11589,90809,10588,74063,12065,71620,14392]
[]
[]
[]
[]
[]
[]
[]
[]
[]
[]
[]
[]
[]
[]
[]
[]
[]
[null,"B19101. FAMILY INCOME IN THE PAST 12 MONTHS (IN 2012 INFLATION-ADJUSTED DOLLARS)"]
[null,"Universe:  FAMILIES"]
[null,"Data Set: 2008-2012 American Community Survey 5-Year Estimates"]
[]
[null,null,"Acworth",null,"Charlestown",null,"Claremont",null,"Cornish",null,"Croydon",null,"Goshen",null,"Grantham",null,"Langdon",null,"Lempster",null,"Newport",null,"Plainfield",null,"Springfield",null,"Sunapee",null,"Unity",null,"Washington"]
[null,null,"Esitimate","Margin Of Error","Esitimate","Margin Of Error","Esitimate","Margin Of Error","Esitimate","Margin Of Error","Esitimate","Margin Of Error","Esitimate","Margin Of Error","Esitimate","Margin Of Error","Esitimate","Margin Of Error","Esitimate","Margin Of Error","Esitimate","Margin Of Error","Esitimate","Margin Of Error","Esitimate","Margin Of Error","Esitimate","Margin Of Error","Esitimate","Margin Of Error","Esitimate","Margin Of Error"]
[null,"Total",206,45,1571,112,3610,209,474,68,191,36,217,39,918,73,226,45,367,56,1775,144,718,75,404,53,1034,78,407,54,345,61]
[null,"Less than $10,000",7,10,140,100,236,123,6,6,4,8,9,10,9,15,6,9,23,15,82,89,7,11,15,18,8,13,5,9,11,18]
[null,"$10,000 to $14,999",5,5,14,23,188,129,3,4,3,5,3,5,5,7,0,11,3,4,74,60,0,11,3,5,0,11,9,8,3,6]
[null,"$15,000 to $19,999",0,11,109,92,118,65,2,4,6,7,5,9,9,13,2,3,25,20,67,50,9,11,3,5,0,11,7,6,10,12]
[null,"$20,000 to $24,999",6,7,55,44,163,77,13,16,15,14,11,12,10,12,5,5,25,21,47,43,20,15,7,8,13,20,8,9,19,13]
[null,"$25,000 to $29,999",2,3,46,41,223,97,22,17,15,13,11,8,6,8,5,6,24,20,55,47,11,11,9,14,0,11,28,19,11,9]
[null,"$30,000 to $34,999",23,20,84,66,274,111,27,22,9,8,9,6,0,11,21,16,3,4,64,52,21,16,8,7,14,23,9,10,17,10]
[null,"$35,000 to $39,999",3,5,93,87,260,131,6,6,2,3,5,5,82,45,21,18,10,8,111,75,9,11,10,12,30,40,19,17,27,20]
[null,"$40,000 to $44,999",16,11,86,66,211,92,35,21,1,3,13,8,33,21,11,18,26,15,70,41,26,28,3,4,0,11,24,15,4,6]
[null,"$45,000 to $49,999",8,10,10,16,110,67,9,14,5,5,7,7,38,28,18,16,14,11,131,65,16,17,23,17,42,38,23,18,22,19]
[null,"$50,000 to $59,999",38,21,183,99,239,101,21,13,4,5,27,17,33,24,12,11,39,21,216,109,46,29,36,23,130,74,61,27,42,24]
[null,"$60,000 to $74,999",56,33,282,124,429,131,74,30,18,12,25,15,91,43,32,20,46,26,189,80,104,57,74,38,166,78,63,21,43,20]
[null,"$75,000 to $99,999",27,17,279,95,539,122,106,29,47,19,44,25,151,62,51,29,71,33,361,156,87,40,75,34,139,72,74,30,62,28]
[null,"$100,000 to $124,999",8,7,156,89,355,125,50,24,52,24,11,8,137,56,12,11,39,18,134,93,114,53,45,25,137,66,65,30,32,23]
[null,"$125,000 to $149,999",0,11,22,28,130,58,61,27,9,10,17,16,170,63,22,14,7,11,59,54,96,38,61,32,139,68,5,7,13,8]
[null,"$150,000 to $199,999",7,11,12,20,101,62,20,15,0,11,17,16,64,41,3,4,4,5,81,52,73,30,25,25,110,76,4,6,9,7]
[null,"$200,000 or more",0,11,0,16,34,36,19,13,1,3,3,4,80,38,5,7,8,11,34,34,79,40,7,9,106,56,3,4,20,12]
[]
[]
[null,"B19113. MEDIAN FAMILY INCOME IN THE PAST 12 MONTHS (IN 2012 INFLATION-ADJUSTED DOLLARS)"]
[null,"Universe:  FAMILIES"]
[null,"Data Set: 2008-2012 American Community Survey 5-Year Estimates"]
[]
[null,null,"Acworth",null,"Charlestown",null,"Claremont",null,"Cornish",null,"Croydon",null,"Goshen",null,"Grantham",null,"Langdon",null,"Lempster",null,"Newport",null,"Plainfield",null,"Springfield",null,"Sunapee",null,"Unity",null,"Washington"]
[null,null,"Estimate","Margin Of Error","Estimate","Margin Of Error","Estimate","Margin Of Error","Estimate","Margin Of Error","Estimate","Margin Of Error","Estimate","Margin Of Error","Estimate","Margin Of Error","Estimate","Margin Of Error","Estimate","Margin Of Error","Estimate","Margin Of Error","Estimate","Margin Of Error","Estimate","Margin Of Error","Estimate","Margin Of Error","Estimate","Margin Of Error","Estimate","Margin Of Error"]
[null,"Median family income in the past 12 months",56964,11269,58802,11189,50618,6876,78500,7533,79531,11924,62125,15177,96894,15462,69500,13756,59076,8973,57083,8106,101500,15865,78654,13417,94375,17692,65347,9357,65096,13588]

{"sheet":"ACS_Table_B25119","index":42,"n_rows":68,"n_cols":32,"rows_kept":68,"cut":false,"hidden":true,"merged":[[48917,18,48917,19],[48917,20,48917,21],[48917,22,48917,23],[48911,18,48911,19],[48911,20,48911,21],[48911,22,48911,23],[48917,4,48917,5],[48917,6,48917,7],[48917,8,48917,9],[48917,10,48917,11],[48917,12,48917,13],[48917,16,48917,17],[48917,14,48917,15],[48911,10,48911,11],[48911,12,48911,13],[48911,14,48911,15],[48911,16,48911,17],[48911,2,48911,3],[48911,4,48911,5],[48911,6,48911,7],[48911,8,48911,9],[48917,2,48917,3],[48905,18,48905,19],[48905,20,48905,21],[48905,22,48905,23],[48899,18,48899,19],[48899,20,48899,21],[48899,22,48899,23],[48905,4,48905,5],[48905,6,48905,7],[48905,8,48905,9],[48905,12,48905,13],[48905,16,48905,17],[48905,14,48905,15],[48899,10,48899,11],[48899,12,48899,13],[48899,14,48899,15],[48899,16,48899,17],[48899,2,48899,3],[48899,4,48899,5],[48899,6,48899,7],[48899,8,48899,9],[48905,2,48905,3],[48893,18,48893,19],[48893,16,48893,17],[48893,14,48893,15],[48893,2,48893,3],[48905,10,48905,11],[48893,20,48893,21],[48893,22,48893,23],[48887,18,48887,19],[48887,20,48887,21],[48887,22,48887,23],[48893,4,48893,5],[48893,6,48893,7],[48893,8,48893,9],[48893,10,48893,11],[48893,12,48893,13],[48887,10,48887,11],[48887,12,48887,13],[48887,14,48887,15],[48887,16,48887,17],[48887,2,48887,3],[48887,4,48887,5],[48887,6,48887,7],[48887,8,48887,9],[48881,18,48881,19],[48881,20,48881,21],[48881,22,48881,23],[48875,18,48875,19],[48875,20,48875,21],[48875,22,48875,23],[48881,4,48881,5],[48881,6,48881,7],[48881,8,48881,9],[48881,10,48881,11],[48881,12,48881,13],[48881,16,48881,17],[48881,14,48881,15],[48875,10,48875,11],[48875,12,48875,13],[48875,14,48875,15],[48875,16,48875,17],[48875,2,48875,3],[48875,4,48875,5],[48875,6,48875,7],[48875,8,48875,9],[48881,2,48881,3],[48869,18,48869,19],[48869,20,48869,21],[48869,22,48869,23],[48863,18,48863,19],[48863,20,48863,21],[48863,22,48863,23],[48869,4,48869,5],[48869,6,48869,7],[48869,8,48869,9],[48869,12,48869,13],[48869,16,48869,17],[48869,14,48869,15],[48863,10,48863,11],[48863,12,48863,13],[48863,14,48863,15],[48863,16,48863,17],[48863,2,48863,3],[48863,4,48863,5],[48863,6,48863,7],[48863,8,48863,9],[48869,2,48869,3],[48857,18,48857,19],[48857,16,48857,17],[48857,14,48857,15],[48857,2,48857,3],[48869,10,48869,11],[48857,20,48857,21],[48857,22,48857,23],[48851,18,48851,19],[48851,20,48851,21],[48851,22,48851,23],[48857,4,48857,5],[48857,6,48857,7],[48857,8,48857,9],[48857,10,48857,11],[48857,12,48857,13],[48851,10,48851,11],[48851,12,48851,13],[48851,14,48851,15],[48851,16,48851,17],[48851,2,48851,3],[48851,4,48851,5],[48851,6,48851,7],[48851,8,48851,9],[48845,18,48845,19],[48845,20,48845,21],[48845,22,48845,23],[48839,18,48839,19],[48839,20,48839,21],[48839,22,48839,23],[48845,4,48845,5],[48845,6,48845,7],[48845,8,48845,9],[48845,10,48845,11],[48845,12,48845,13],[48845,16,48845,17],[48845,14,48845,15],[48839,10,48839,11],[48839,12,48839,13],[48839,14,48839,15],[48839,16,48839,17],[48839,2,48839,3],[48839,4,48839,5],[48839,6,48839,7],[48839,8,48839,9],[48845,2,48845,3],[48833,18,48833,19],[48833,20,48833,21],[48833,22,48833,23],[48827,18,48827,19],[48827,20,48827,21],[48827,22,48827,23],[48833,4,48833,5],[48833,6,48833,7],[48833,8,48833,9],[48833,12,48833,13],[48833,16,48833,17],[48833,14,48833,15],[48827,10,48827,11],[48827,12,48827,13],[48827,14,48827,15],[48827,16,48827,17],[48827,2,48827,3],[48827,4,48827,5],[48827,6,48827,7],[48827,8,48827,9],[48833,2,48833,3],[48821,18,48821,19],[48821,16,48821,17],[48821,14,48821,15],[48821,2,48821,3],[48833,10,48833,11],[48821,20,48821,21],[48821,22,48821,23],[48815,18,48815,19],[48815,20,48815,21],[48815,22,48815,23],[48821,4,48821,5],[48821,6,48821,7],[48821,8,48821,9],[48821,10,48821,11],[48821,12,48821,13],[48815,10,48815,11],[48815,12,48815,13],[48815,14,48815,15],[48815,16,48815,17],[48815,2,48815,3],[48815,4,48815,5],[48815,6,48815,7],[48815,8,48815,9],[48809,18,48809,19],[48809,20,48809,21],[48809,22,48809,23],[48803,18,48803,19],[48803,20,48803,21],[48803,22,48803,23],[48809,4,48809,5],[48809,6,48809,7],[48809,8,48809,9],[48809,10,48809,11],[48809,12,48809,13],[48809,16,48809,17],[48809,14,48809,15],[48803,10,48803,11],[48803,12,48803,13],[48803,14,48803,15],[48803,16,48803,17],[48803,2,48803,3],[48803,4,48803,5],[48803,6,48803,7],[48803,8,48803,9],[48809,2,48809,3],[48797,18,48797,19],[48797,20,48797,21],[48797,22,48797,23],[48791,18,48791,19],[48791,20,48791,21],[48791,22,48791,23],[48797,4,48797,5],[48797,6,48797,7],[48797,8,48797,9],[48797,12,48797,13],[48797,16,48797,17],[48797,14,48797,15],[48791,10,48791,11],[48791,12,48791,13],[48791,14,48791,15],[48791,16,48791,17],[48791,2,48791,3],[48791,4,48791,5],[48791,6,48791,7],[48791,8,48791,9],[48797,2,48797,3],[48785,18,48785,19],[48785,16,48785,17],[48785,14,48785,15],[48785,2,48785,3],[48797,10,48797,11],[48785,20,48785,21],[48785,22,48785,23],[48779,18,48779,19],[48779,20,48779,21],[48779,22,48779,23],[48785,4,48785,5],[48785,6,48785,7],[48785,8,48785,9],[48785,10,48785,11],[48785,12,48785,13],[48779,10,48779,11],[48779,12,48779,13],[48779,14,48779,15],[48779,16,48779,17],[48779,2,48779,3],[48779,4,48779,5],[48779,6,48779,7],[48779,8,48779,9],[48773,18,48773,19],[48773,20,48773,21],[48773,22,48773,23],[48767,18,48767,19],[48767,20,48767,21],[48767,22,48767,23],[48773,4,48773,5],[48773,6,48773,7],[48773,8,48773,9],[48773,10,48773,11],[48773,12,48773,13],[48773,16,48773,17],[48773,14,48773,15],[48767,10,48767,11],[48767,12,48767,13],[48767,14,48767,15],[48767,16,48767,17],[48767,2,48767,3],[48767,4,48767,5],[48767,6,48767,7],[48767,8,48767,9],[48773,2,48773,3],[48761,18,48761,19],[48761,20,48761,21],[48761,22,48761,23],[48755,18,48755,19],[48755,20,48755,21],[48755,22,48755,23],[48761,4,48761,5],[48761,6,48761,7],[48761,8,48761,9],[48761,12,48761,13],[48761,16,48761,17],[48761,14,48761,15],[48755,10,48755,11],[48755,12,48755,13],[48755,14,48755,15],[48755,16,48755,17],[48755,2,48755,3],[48755,4,48755,5],[48755,6,48755,7],[48755,8,48755,9],[48761,2,48761,3],[48749,18,48749,19],[48749,16,48749,17],[48749,14,48749,15],[48749,2,48749,3],[48761,10,48761,11],[48749,20,48749,21],[48749,22,48749,23],[48743,18,48743,19],[48743,20,48743,21],[48743,22,48743,23],[48749,4,48749,5],[48749,6,48749,7],[48749,8,48749,9],[48749,10,48749,11],[48749,12,48749,13],[48743,10,48743,11],[48743,12,48743,13],[48743,14,48743,15],[48743,16,48743,17],[48743,2,48743,3],[48743,4,48743,5],[48743,6,48743,7],[48743,8,48743,9],[48737,18,48737,19],[48737,20,48737,21],[48737,22,48737,23],[48731,18,48731,19],[48731,20,48731,21],[48731,22,48731,23],[48737,4,48737,5],[48737,6,48737,7],[48737,8,48737,9],[48737,10,48737,11],[48737,12,48737,13],[48737,16,48737,17],[48737,14,48737,15],[48731,10,48731,11],[48731,12,48731,13],[48731,14,48731,15],[48731,16,48731,17],[48731,2,48731,3],[48731,4,48731,5],[48731,6,48731,7],[48731,8,48731,9],[48737,2,48737,3],[48725,18,48725,19],[48725,20,48725,21],[48725,22,48725,23],[48719,18,48719,19],[48719,20,48719,21],[48719,22,48719,23],[48725,4,48725,5],[48725,6,48725,7],[48725,8,48725,9],[48725,12,48725,13],[48725,16,48725,17],[48725,14,48725,15],[48719,10,48719,11],[48719,12,48719,13],[48719,14,48719,15],[48719,16,48719,17],[48719,2,48719,3],[48719,4,48719,5],[48719,6,48719,7],[48719,8,48719,9],[48725,2,48725,3],[48713,18,48713,19],[48713,16,48713,17],[48713,14,48713,15],[48713,2,48713,3],[48725,10,48725,11],[48713,20,48713,21],[48713,22,48713,23],[48707,18,48707,19],[48707,20,48707,21],[48707,22,48707,23],[48713,4,48713,5],[48713,6,48713,7],[48713,8,48713,9],[48713,10,48713,11],[48713,12,48713,13],[48707,10,48707,11],[48707,12,48707,13],[48707,14,48707,15],[48707,16,48707,17],[48707,2,48707,3],[48707,4,48707,5],[48707,6,48707,7],[48707,8,48707,9],[48701,18,48701,19],[48701,20,48701,21],[48701,22,48701,23],[48695,18,48695,19],[48695,20,48695,21],[48695,22,48695,23],[48701,4,48701,5],[48701,6,48701,7],[48701,8,48701,9],[48701,10,48701,11],[48701,12,48701,13],[48701,16,48701,17],[48701,14,48701,15],[48695,10,48695,11],[48695,12,48695,13],[48695,14,48695,15],[48695,16,48695,17],[48695,2,48695,3],[48695,4,48695,5],[48695,6,48695,7],[48695,8,48695,9],[48701,2,48701,3],[48689,18,48689,19],[48689,20,48689,21],[48689,22,48689,23],[48683,18,48683,19],[48683,20,48683,21],[48683,22,48683,23],[48689,4,48689,5],[48689,6,48689,7],[48689,8,48689,9],[48689,12,48689,13],[48689,16,48689,17],[48689,14,48689,15],[48683,10,48683,11],[48683,12,48683,13],[48683,14,48683,15],[48683,16,48683,17],[48683,2,48683,3],[48683,4,48683,5],[48683,6,48683,7],[48683,8,48683,9],[48689,2,48689,3],[48677,18,48677,19],[48677,16,48677,17],[48677,14,48677,15],[48677,2,48677,3],[48689,10,48689,11],[48677,20,48677,21],[48677,22,48677,23],[48671,18,48671,19],[48671,20,48671,21],[48671,22,48671,23],[48677,4,48677,5],[48677,6,48677,7],[48677,8,48677,9],[48677,10,48677,11],[48677,12,48677,13],[48671,10,48671,11],[48671,12,48671,13],[48671,14,48671,15],[48671,16,48671,17],[48671,2,48671,3],[48671,4,48671,5],[48671,6,48671,7],[48671,8,48671,9],[48665,18,48665,19],[48665,20,48665,21],[48665,22,48665,23],[48659,18,48659,19],[48659,20,48659,21],[48659,22,48659,23],[48665,4,48665,5],[48665,6,48665,7],[48665,8,48665,9],[48665,10,48665,11],[48665,12,48665,13],[48665,16,48665,17],[48665,14,48665,15],[48659,10,48659,11],[48659,12,48659,13],[48659,14,48659,15],[48659,16,48659,17],[48659,2,48659,3],[48659,4,48659,5],[48659,6,48659,7],[48659,8,48659,9],[48665,2,48665,3],[48653,18,48653,19],[48653,20,48653,21],[48653,22,48653,23],[48647,18,48647,19],[48647,20,48647,21],[48647,22,48647,23],[48653,4,48653,5],[48653,6,48653,7],[48653,8,48653,9],[48653,12,48653,13],[48653,16,48653,17],[48653,14,48653,15],[48647,10,48647,11],[48647,12,48647,13],[48647,14,48647,15],[48647,16,48647,17],[48647,2,48647,3],[48647,4,48647,5],[48647,6,48647,7],[48647,8,48647,9],[48653,2,48653,3],[48641,18,48641,19],[48641,16,48641,17],[48641,14,48641,15],[48641,2,48641,3],[48653,10,48653,11],[48641,20,48641,21],[48641,22,48641,23],[48635,18,48635,19],[48635,20,48635,21],[48635,22,48635,23],[48641,4,48641,5],[48641,6,48641,7],[48641,8,48641,9],[48641,10,48641,11],[48641,12,48641,13],[48635,10,48635,11],[48635,12,48635,13],[48635,14,48635,15],[48635,16,48635,17],[48635,2,48635,3],[48635,4,48635,5],[48635,6,48635,7],[48635,8,48635,9],[48629,18,48629,19],[48629,20,48629,21],[48629,22,48629,23],[48623,18,48623,19],[48623,20,48623,21],[48623,22,48623,23],[48629,4,48629,5],[48629,6,48629,7],[48629,8,48629,9],[48629,10,48629,11],[48629,12,48629,13],[48629,16,48629,17],[48629,14,48629,15],[48623,10,48623,11],[48623,12,48623,13],[48623,14,48623,15],[48623,16,48623,17],[48623,2,48623,3],[48623,4,48623,5],[48623,6,48623,7],[48623,8,48623,9],[48629,2,48629,3],[48617,18,48617,19],[48617,20,48617,21],[48617,22,48617,23],[48611,18,48611,19],[48611,20,48611,21],[48611,22,48611,23],[48617,4,48617,5],[48617,6,48617,7],[48617,8,48617,9],[48617,12,48617,13],[48617,16,48617,17],[48617,14,48617,15],[48611,10,48611,11],[48611,12,48611,13],[48611,14,48611,15],[48611,16,48611,17],[48611,2,48611,3],[48611,4,48611,5],[48611,6,48611,7],[48611,8,48611,9],[48617,2,48617,3],[48605,18,48605,19],[48605,16,48605,17],[48605,14,48605,15],[48605,2,48605,3],[48617,10,48617,11],[48605,20,48605,21],[48605,22,48605,23],[48599,18,48599,19],[48599,20,48599,21],[48599,22,48599,23],[48605,4,48605,5],[48605,6,48605,7],[48605,8,48605,9],[48605,10,48605,11],[48605,12,48605,13],[48599,10,48599,11],[48599,12,48599,13],[48599,14,48599,15],[48599,16,48599,17],[48599,2,48599,3],[48599,4,48599,5],[48599,6,48599,7],[48599,8,48599,9],[48593,18,48593,19],[48593,20,48593,21],[48593,22,48593,23],[48587,18,48587,19],[48587,20,48587,21],[48587,22,48587,23],[48593,4,48593,5],[48593,6,48593,7],[48593,8,48593,9],[48593,10,48593,11],[48593,12,48593,13],[48593,16,48593,17],[48593,14,48593,15],[48587,10,48587,11],[48587,12,48587,13],[48587,14,48587,15],[48587,16,48587,17],[48587,2,48587,3],[48587,4,48587,5],[48587,6,48587,7],[48587,8,48587,9],[48593,2,48593,3],[48581,18,48581,19],[48581,20,48581,21],[48581,22,48581,23],[48575,18,48575,19],[48575,20,48575,21],[48575,22,48575,23],[48581,4,48581,5],[48581,6,48581,7],[48581,8,48581,9],[48581,12,48581,13],[48581,16,48581,17],[48581,14,48581,15],[48575,10,48575,11],[48575,12,48575,13],[48575,14,48575,15],[48575,16,48575,17],[48575,2,48575,3],[48575,4,48575,5],[48575,6,48575,7],[48575,8,48575,9],[48581,2,48581,3],[48569,18,48569,19],[48569,16,48569,17],[48569,14,48569,15],[48569,2,48569,3],[48581,10,48581,11],[48569,20,48569,21],[48569,22,48569,23],[48563,18,48563,19],[48563,20,48563,21],[48563,22,48563,23],[48569,4,48569,5],[48569,6,48569,7],[48569,8,48569,9],[48569,10,48569,11],[48569,12,48569,13],[48563,10,48563,11],[48563,12,48563,13],[48563,14,48563,15],[48563,16,48563,17],[48563,2,48563,3],[48563,4,48563,5],[48563,6,48563,7],[48563,8,48563,9],[48557,18,48557,19],[48557,20,48557,21],[48557,22,48557,23],[48551,18,48551,19],[48551,20,48551,21],[48551,22,48551,23],[48557,4,48557,5],[48557,6,48557,7],[48557,8,48557,9],[48557,10,48557,11],[48557,12,48557,13],[48557,16,48557,17],[48557,14,48557,15],[48551,10,48551,11],[48551,12,48551,13],[48551,14,48551,15],[48551,16,48551,17],[48551,2,48551,3],[48551,4,48551,5],[48551,6,48551,7],[48551,8,48551,9],[48557,2,48557,3],[48545,18,48545,19],[48545,20,48545,21],[48545,22,48545,23],[48539,18,48539,19],[48539,20,48539,21],[48539,22,48539,23],[48545,4,48545,5],[48545,6,48545,7],[48545,8,48545,9],[48545,12,48545,13],[48545,16,48545,17],[48545,14,48545,15],[48539,10,48539,11],[48539,12,48539,13],[48539,14,48539,15],[48539,16,48539,17],[48539,2,48539,3],[48539,4,48539,5],[48539,6,48539,7],[48539,8,48539,9],[48545,2,48545,3],[48533,18,48533,19],[48533,16,48533,17],[48533,14,48533,15],[48533,2,48533,3],[48545,10,48545,11],[48533,20,48533,21],[48533,22,48533,23],[48527,18,48527,19],[48527,20,48527,21],[48527,22,48527,23],[48533,4,48533,5],[48533,6,48533,7],[48533,8,48533,9],[48533,10,48533,11],[48533,12,48533,13],[48527,10,48527,11],[48527,12,48527,13],[48527,14,48527,15],[48527,16,48527,17],[48527,2,48527,3],[48527,4,48527,5],[48527,6,48527,7],[48527,8,48527,9],[48521,18,48521,19],[48521,20,48521,21],[48521,22,48521,23],[48515,18,48515,19],[48515,20,48515,21],[48515,22,48515,23],[48521,4,48521,5],[48521,6,48521,7],[48521,8,48521,9],[48521,10,48521,11],[48521,12,48521,13],[48521,16,48521,17],[48521,14,48521,15],[48515,10,48515,11],[48515,12,48515,13],[48515,14,48515,15],[48515,16,48515,17],[48515,2,48515,3],[48515,4,48515,5],[48515,6,48515,7],[48515,8,48515,9],[48521,2,48521,3],[48509,18,48509,19],[48509,20,48509,21],[48509,22,48509,23],[48503,18,48503,19],[48503,20,48503,21],[48503,22,48503,23],[48509,4,48509,5],[48509,6,48509,7],[48509,8,48509,9],[48509,12,48509,13],[48509,16,48509,17],[48509,14,48509,15],[48503,10,48503,11],[48503,12,48503,13],[48503,14,48503,15],[48503,16,48503,17],[48503,2,48503,3],[48503,4,48503,5],[48503,6,48503,7],[48503,8,48503,9],[48509,2,48509,3],[48497,18,48497,19],[48497,16,48497,17],[48497,14,48497,15],[48497,2,48497,3],[48509,10,48509,11],[48497,20,48497,21],[48497,22,48497,23],[48491,18,48491,19],[48491,20,48491,21],[48491,22,48491,23],[48497,4,48497,5],[48497,6,48497,7],[48497,8,48497,9],[48497,10,48497,11],[48497,12,48497,13],[48491,10,48491,11],[48491,12,48491,13],[48491,14,48491,15],[48491,16,48491,17],[48491,2,48491,3],[48491,4,48491,5],[48491,6,48491,7],[48491,8,48491,9],[48485,18,48485,19],[48485,20,48485,21],[48485,22,48485,23],[48479,18,48479,19],[48479,20,48479,21],[48479,22,48479,23],[48485,4,48485,5],[48485,6,48485,7],[48485,8,48485,9],[48485,10,48485,11],[48485,12,48485,13],[48485,16,48485,17],[48485,14,48485,15],[48479,10,48479,11],[48479,12,48479,13],[48479,14,48479,15],[48479,16,48479,17],[48479,2,48479,3],[48479,4,48479,5],[48479,6,48479,7],[48479,8,48479,9],[48485,2,48485,3],[48473,18,48473,19],[48473,20,48473,21],[48473,22,48473,23],[48467,18,48467,19],[48467,20,48467,21],[48467,22,48467,23],[48473,4,48473,5],[48473,6,48473,7],[48473,8,48473,9],[48473,12,48473,13],[48473,16,48473,17],[48473,14,48473,15],[48467,10,48467,11],[48467,12,48467,13],[48467,14,48467,15],[48467,16,48467,17],[48467,2,48467,3],[48467,4,48467,5],[48467,6,48467,7],[48467,8,48467,9],[48473,2,48473,3],[48461,18,48461,19],[48461,16,48461,17],[48461,14,48461,15],[48461,2,48461,3],[48473,10,48473,11],[48461,20,48461,21],[48461,22,48461,23],[48455,18,48455,19],[48455,20,48455,21],[48455,22,48455,23],[48461,4,48461,5],[48461,6,48461,7],[48461,8,48461,9],[48461,10,48461,11],[48461,12,48461,13],[48455,10,48455,11],[48455,12,48455,13],[48455,14,48455,15],[48455,16,48455,17],[48455,2,48455,3],[48455,4,48455,5],[48455,6,48455,7],[48455,8,48455,9],[48449,18,48449,19],[48449,20,48449,21],[48449,22,48449,23],[48443,18,48443,19],[48443,20,48443,21],[48443,22,48443,23],[48449,4,48449,5],[48449,6,48449,7],[48449,8,48449,9],[48449,10,48449,11],[48449,12,48449,13],[48449,16,48449,17],[48449,14,48449,15],[48443,10,48443,11],[48443,12,48443,13],[48443,14,48443,15],[48443,16,48443,17],[48443,2,48443,3],[48443,4,48443,5],[48443,6,48443,7],[48443,8,48443,9],[48449,2,48449,3],[48437,18,48437,19],[48437,20,48437,21],[48437,22,48437,23],[48431,18,48431,19],[48431,20,48431,21],[48431,22,48431,23],[48437,4,48437,5],[48437,6,48437,7],[48437,8,48437,9],[48437,12,48437,13],[48437,16,48437,17],[48437,14,48437,15],[48431,10,48431,11],[48431,12,48431,13],[48431,14,48431,15],[48431,16,48431,17],[48431,2,48431,3],[48431,4,48431,5],[48431,6,48431,7],[48431,8,48431,9],[48437,2,48437,3],[48425,18,48425,19],[48425,16,48425,17],[48425,14,48425,15],[48425,2,48425,3],[48437,10,48437,11],[48425,20,48425,21],[48425,22,48425,23],[48419,18,48419,19],[48419,20,48419,21],[48419,22,48419,23],[48425,4,48425,5],[48425,6,48425,7],[48425,8,48425,9],[48425,10,48425,11],[48425,12,48425,13],[48419,10,48419,11],[48419,12,48419,13],[48419,14,48419,15],[48419,16,48419,17],[48419,2,48419,3],[48419,4,48419,5],[48419,6,48419,7],[48419,8,48419,9],[48413,18,48413,19],[48413,20,48413,21],[48413,22,48413,23],[48407,18,48407,19],[48407,20,48407,21],[48407,22,48407,23],[48413,4,48413,5],[48413,6,48413,7],[48413,8,48413,9],[48413,10,48413,11],[48413,12,48413,13],[48413,16,48413,17],[48413,14,48413,15],[48407,10,48407,11],[48407,12,48407,13],[48407,14,48407,15],[48407,16,48407,17],[48407,2,48407,3],[48407,4,48407,5],[48407,6,48407,7],[48407,8,48407,9],[48413,2,48413,3],[48401,18,48401,19],[48401,20,48401,21],[48401,22,48401,23],[48395,18,48395,19],[48395,20,48395,21],[48395,22,48395,23],[48401,4,48401,5],[48401,6,48401,7],[48401,8,48401,9],[48401,12,48401,13],[48401,16,48401,17],[48401,14,48401,15],[48395,10,48395,11],[48395,12,48395,13],[48395,14,48395,15],[48395,16,48395,17],[48395,2,48395,3],[48395,4,48395,5],[48395,6,48395,7],[48395,8,48395,9],[48401,2,48401,3],[48389,18,48389,19],[48389,16,48389,17],[48389,14,48389,15],[48389,2,48389,3],[48401,10,48401,11],[48389,20,48389,21],[48389,22,48389,23],[48383,18,48383,19],[48383,20,48383,21],[48383,22,48383,23],[48389,4,48389,5],[48389,6,48389,7],[48389,8,48389,9],[48389,10,48389,11],[48389,12,48389,13],[48383,10,48383,11],[48383,12,48383,13],[48383,14,48383,15],[48383,16,48383,17],[48383,2,48383,3],[48383,4,48383,5],[48383,6,48383,7],[48383,8,48383,9],[48377,18,48377,19],[48377,20,48377,21],[48377,22,48377,23],[48371,18,48371,19],[48371,20,48371,21],[48371,22,48371,23],[48377,4,48377,5],[48377,6,48377,7],[48377,8,48377,9],[48377,10,48377,11]],"merged_total":89628,"flags":["merged_cut"]}
[null,"B25119. MEDIAN HOUSEHOLD INCOME THE PAST 12 MONTHS (IN 2022 INFLATION-ADJUSTED DOLLARS) BY TENURE"]
[null," Universe:  OCCUPIED HOUSING UNITS"]
[null,"Data Set: 2018-2022 American Community Survey 5-Year Estimates"]
[]
[null,null,"Acworth",null,"Charlestown",null,"Claremont",null,"Cornish",null,"Croydon",null,"Goshen",null,"Grantham",null,"Langdon",null,"Lempster",null,"Newport",null,"Plainfield",null,null,null,"Sunapee",null,"Unity",null,"Washington"]
[null,null,"Estimate","Margin Of Error","Estimate","Margin Of Error","Estimate","Margin Of Error","Estimate","Margin Of Error","Estimate","Margin Of Error","Estimate","Margin Of Error","Estimate","Margin Of Error","Estimate","Margin Of Error","Estimate","Margin Of Error","Estimate","Margin Of Error","Estimate","Margin Of Error","Estimate","Margin Of Error","Estimate","Margin Of Error","Estimate","Margin Of Error","Estimate","Margin Of Error"]
[null,"Median household income in the past 12 months"]
[null,"Total:",76719,8210,46642,13671,53697,6712,86779,3422,96875,23712,59896,8716,114132,45553,99500,24187,89000,13409,74263,9694,115257,10342,95833,23497,102361,14815,65833,14872,84886,22711]
[null,"Owner occupied (dollars)",77917,11198,56071,20312,74881,11559,86903,4703,111875,26867,60000,10106,113021,34366,112679,25914,93068,12303,84769,20215,115368,11697,96389,23318,109048,20401,71417,10410,96625,19407]
[null,"Renter occupied (dollars)","-","**",24267,13477,31941,7205,"-","**","-","**",59375,44131,"-","**",43750,4320,"-","**",48844,38626,76875,71462,"-","**",57083,39887,"-","**",63438,42518]
[]
[]
[]
[]
[]
[]
[]
[]
[]
[]
[]
[]
[]
[]
[]
[]
[]
[]
[]
[null,"B25119. MEDIAN HOUSEHOLD INCOME THE PAST 12 MONTHS (IN 2017 INFLATION-ADJUSTED DOLLARS) BY TENURE"]
[null," Universe:  OCCUPIED HOUSING UNITS"]
[null,"Data Set: 2013-2017 American Community Survey 5-Year Estimates"]
[]
[null,null,"Acworth",null,"Charlestown",null,"Claremont",null,"Cornish",null,"Croydon",null,"Goshen",null,"Grantham",null,"Langdon",null,"Lempster",null,"Newport",null,"Plainfield",null,"Springfield",null,"Sunapee",null,"Unity",null,"Washington"]
[null,null,"Estimate","Margin Of Error","Estimate","Margin Of Error","Estimate","Margin Of Error","Estimate","Margin Of Error","Estimate","Margin Of Error","Estimate","Margin Of Error","Estimate","Margin Of Error","Estimate","Margin Of Error","Estimate","Margin Of Error","Estimate","Margin Of Error","Estimate","Margin Of Error","Estimate","Margin Of Error","Estimate","Margin Of Error","Estimate","Margin Of Error","Estimate","Margin Of Error"]
[null,"Median household income in the past 12 months"]
[null,"Total:",57125,9416,50297,9482,46639,4119,77667,10360,74063,12699,60417,11839,104962,25696,82778,9572,63646,10090,58193,10828,83362,4722,77375,5636,63750,7660,66458,6735,73333,8518]
[null,"Owner occupied (dollars)",60625,7749,53168,9277,56949,9365,84050,10672,73594,12660,66000,8238,103788,28731,84167,8962,64271,9764,69176,6660,85398,5757,78333,12988,82989,17438,68365,8715,72917,7943]
[null,"Renter occupied (dollars)",50938,12073,28173,13459,32006,8747,69583,36733,85750,41116,51750,11485,121292,46567,"-","**",46000,21732,27398,11440,59766,16094,62188,34215,37778,17947,48036,26185,105144,75845]
[]
[]
[]
[]
[]
[]
[]
[]
[]
[]
[]
[]
[]
[]
[]
[]
[]
[]
[]
[null,"B25119. MEDIAN HOUSEHOLD INCOME THE PAST 12 MONTHS (IN 2011 INFLATION-ADJUSTED DOLLARS) BY TENURE"]
[null," Universe:  OCCUPIED HOUSING UNITS"]
[null,"Data Set: 2008-2012 American Community Survey 5-Year Estimates"]
[]
[null,null,"Acworth",null,"Charlestown",null,"Claremont",null,"Cornish",null,"Croydon",null,"Goshen",null,"Grantham",null,"Langdon",null,"Lempster",null,"Newport",null,"Plainfield",null,"Springfield",null,"Sunapee",null,"Unity",null,"Washington"]
[null,null,"Estimate","Margin Of Error","Estimate","Margin Of Error","Estimate","Margin Of Error","Estimate","Margin Of Error","Estimate","Margin Of Error","Estimate","Margin Of Error","Estimate","Margin Of Error","Estimate","Margin Of Error","Estimate","Margin Of Error","Estimate","Margin Of Error","Estimate","Margin Of Error","Estimate","Margin Of Error","Estimate","Margin Of Error","Estimate","Margin Of Error","Estimate","Margin Of Error"]
[null,"Median household income in the past 12 months"]
[null,"Total:",52976,6870,49688,8745,41350,4389,69196,8500,68958,15344,55063,6516,89157,7657,70982,5338,58950,8096,46940,5037,99432,12155,69792,8611,74052,11741,56250,7870,52292,10619]
[null,"Owner occupied (dollars)",51786,7728,55964,8405,62394,6162,68864,12813,71875,16012,54432,7690,89564,7633,70956,8309,59943,8046,56950,7675,100750,14441,69931,8171,79222,15279,58897,6855,57143,10086]
[null,"Renter occupied (dollars)",68250,42708,21913,8066,27569,2323,70125,10325,60536,25414,55625,19398,76042,51462,71023,36191,41667,15216,23333,27850,77321,76333,61667,62151,54943,28882,48317,8563,34531,7052]

{"sheet":"ACS_Table_B25001","index":43,"n_rows":29,"n_cols":32,"rows_kept":29,"cut":false,"hidden":true,"merged":[]}
[null,"B25001. HOUSING UNITS"]
[null,"Universe:  HOUSING UNITS"]
[null,"Data Set: 2018-2022 American Community Survey 5-Year Estimates"]
[]
[null,null,"Acworth",null,"Charlestown",null,"Claremont",null,"Cornish",null,"Croydon",null,"Goshen",null,"Grantham",null,"Langdon",null,"Lempster",null,"Newport",null,"Plainfield",null,"Springfield",null,"Sunapee",null,"Unity",null,"Washington"]
[null,null,"Estimate","Margin Of Error","Estimate","Margin Of Error","Estimate","Margin Of Error","Estimate","Margin Of Error","Estimate","Margin Of Error","Estimate","Margin Of Error","Estimate","Margin Of Error","Estimate","Margin Of Error","Estimate","Margin Of Error","Estimate","Margin Of Error","Estimate","Margin Of Error","Estimate","Margin Of Error","Estimate","Margin Of Error","Estimate","Margin Of Error","Estimate","Margin Of Error"]
[null,"Total",511,63,2216,224,5955,256,840,150,409,61,458,84,2039,186,273,51,655,98,2859,252,1043,101,596,119,2367,193,661,80,988,83]
[]
[]
[]
[]
[null,"B25001. HOUSING UNITS"]
[null,"Universe:  HOUSING UNITS"]
[null,"Data Set: 2013-2017 American Community Survey 5-Year Estimates"]
[]
[null,null,"Acworth",null,"Charlestown",null,"Claremont",null,"Cornish",null,"Croydon",null,"Goshen",null,"Grantham",null,"Langdon",null,"Lempster",null,"Newport",null,"Plainfield",null,"Springfield",null,"Sunapee",null,"Unity",null,"Washington"]
[null,null,"Estimate","Margin Of Error","Estimate","Margin Of Error","Estimate","Margin Of Error","Estimate","Margin Of Error","Estimate","Margin Of Error","Estimate","Margin Of Error","Estimate","Margin Of Error","Estimate","Margin Of Error","Estimate","Margin Of Error","Estimate","Margin Of Error","Estimate","Margin Of Error","Estimate","Margin Of Error","Estimate","Margin Of Error","Estimate","Margin Of Error","Estimate","Margin Of Error"]
[null,"Total",619,58,2338,190,6317,221,826,70,414,68,405,59,1670,179,354,39,687,87,2742,249,1015,80,680,92,2632,170,673,66,1194,93]
[]
[]
[]
[]
[null,"B25001. HOUSING UNITS"]
[null,"Universe:  HOUSING UNITS"]
[null,"Data Set: 2008-2012 American Community Survey 5-Year Estimates"]
[]
[null,null,"Acworth",null,"Charlestown",null,"Claremont",null,"Cornish",null,"Croydon",null,"Goshen",null,"Grantham",null,"Langdon",null,"Lempster",null,"Newport",null,"Plainfield",null,"Springfield",null,"Sunapee",null,"Unity",null,"Washington"]
[null,null,"Estimate","Margin Of Error","Estimate","Margin Of Error","Estimate","Margin Of Error","Estimate","Margin Of Error","Estimate","Margin Of Error","Estimate","Margin Of Error","Estimate","Margin Of Error","Estimate","Margin Of Error","Estimate","Margin Of Error","Estimate","Margin Of Error","Estimate","Margin Of Error","Estimate","Margin Of Error","Estimate","Margin Of Error","Estimate","Margin Of Error","Estimate","Margin Of Error"]
[null,"Total",482,62,2452,125,6408,215,745,70,392,54,394,53,1662,138,306,47,602,67,2997,217,939,75,678,70,2427,139,724,61,1080,78]

{"sheet":"ACS_Table_B25003","index":44,"n_rows":42,"n_cols":32,"rows_kept":42,"cut":false,"hidden":true,"merged":[]}
[null,"B25003. TENURE"]
[null,"Universe:  OCCUPIED HOUSING UNITS"]
[null,"Data Set: 2018-2022 American Community Survey 5-Year Estimates"]
[]
[null,null,"Acworth",null,"Charlestown",null,"Claremont",null,"Cornish",null,"Croydon",null,"Goshen",null,"Grantham",null,"Langdon",null,"Lempster",null,"Newport",null,"Plainfield",null,"Springfield",null,"Sunapee",null,"Unity",null,"Washington"]
[null,null,"Estimate","Margin Of Error","Estimate","Margin Of Error","Estimate","Margin Of Error","Estimate","Margin Of Error","Estimate","Margin Of Error","Estimate","Margin Of Error","Estimate","Margin Of Error","Estimate","Margin Of Error","Estimate","Margin Of Error","Estimate","Margin Of Error","Estimate","Margin Of Error","Estimate","Margin Of Error","Estimate","Margin Of Error","Estimate","Margin Of Error","Estimate","Margin Of Error"]
[null,"Total:",239,42,1847,209,5203,325,762,147,232,49,303,72,1149,128,226,45,316,61,2478,224,831,84,294,83,1122,162,478,77,413,71]
[null,"Owner occupied",216,40,1328,180,3082,304,737,146,211,47,250,71,1091,138,205,43,299,59,1479,250,760,85,264,79,894,149,447,72,381,68]
[null,"Renter occupied",23,14,519,167,2121,312,25,13,21,13,53,22,58,72,21,15,17,19,999,259,71,37,30,24,228,97,31,19,32,23]
[]
[]
[]
[]
[]
[]
[]
[]
[]
[]
[]
[]
[null,"B25003. TENURE"]
[null,"Universe:  OCCUPIED HOUSING UNITS"]
[null,"Data Set: 2013-2017 American Community Survey 5-Year Estimates"]
[]
[null,null,"Acworth",null,"Charlestown",null,"Claremont",null,"Cornish",null,"Croydon",null,"Goshen",null,"Grantham",null,"Langdon",null,"Lempster",null,"Newport",null,"Plainfield",null,"Springfield",null,"Sunapee",null,"Unity",null,"Washington"]
[null,null,"Estimate","Margin Of Error","Estimate","Margin Of Error","Estimate","Margin Of Error","Estimate","Margin Of Error","Estimate","Margin Of Error","Estimate","Margin Of Error","Estimate","Margin Of Error","Estimate","Margin Of Error","Estimate","Margin Of Error","Estimate","Margin Of Error","Estimate","Margin Of Error","Estimate","Margin Of Error","Estimate","Margin Of Error","Estimate","Margin Of Error","Estimate","Margin Of Error"]
[null,"Total:",427,62,2102,160,5567,221,722,71,274,49,271,48,1153,125,292,38,409,63,2573,202,920,83,435,74,1553,140,526,60,556,85]
[null,"Owner occupied",388,61,1673,187,3163,298,641,70,241,43,206,37,1050,136,266,37,387,62,1793,232,821,94,380,67,1049,117,489,56,507,82]
[null,"Renter occupied",39,20,429,133,2404,276,81,38,33,21,65,32,103,80,26,18,22,14,780,174,99,45,55,34,504,158,37,19,49,36]
[]
[]
[]
[null,"B25003. TENURE"]
[null,"Universe:  OCCUPIED HOUSING UNITS"]
[null,"Data Set: 2008-2012 American Community Survey 5-Year Estimates"]
[]
[null,null,"Acworth",null,"Charlestown",null,"Claremont",null,"Cornish",null,"Croydon",null,"Goshen",null,"Grantham",null,"Langdon",null,"Lempster",null,"Newport",null,"Plainfield",null,"Springfield",null,"Sunapee",null,"Unity",null,"Washington"]
[null,null,"Estimate","Margin Of Error","Estimate","Margin Of Error","Estimate","Margin Of Error","Estimate","Margin Of Error","Estimate","Margin Of Error","Estimate","Margin Of Error","Estimate","Margin Of Error","Estimate","Margin Of Error","Estimate","Margin Of Error","Estimate","Margin Of Error","Estimate","Margin Of Error","Estimate","Margin Of Error","Estimate","Margin Of Error","Estimate","Margin Of Error","Estimate","Margin Of Error"]
[null,"Total:",294,54,2310,107,5721,232,657,69,289,43,331,48,1119,80,278,45,427,58,2684,193,920,76,497,60,1458,100,599,58,465,69]
[null,"Owner occupied",222,44,1843,158,3466,228,552,65,240,40,273,44,1003,96,247,44,365,56,1786,194,817,78,453,59,1098,155,546,50,428,64]
[null,"Renter occupied",72,39,467,158,2255,221,105,42,49,23,58,32,116,57,31,24,62,28,898,206,103,58,44,27,360,127,53,43,37,21]

{"sheet":"ACS_Table_B25004","index":45,"n_rows":56,"n_cols":32,"rows_kept":56,"cut":false,"hidden":true,"merged":[]}
[null,"B25004. VACANCY STATUS"]
[null,"Universe:  VACANT HOUSING UNITS"]
[null,"Data Set: 2018-2022 American Community Survey 5-Year Estimates"]
[]
[null,null,"Acworth",null,"Charlestown",null,"Claremont",null,"Cornish",null,"Croydon",null,"Goshen",null,"Grantham",null,"Langdon",null,"Lempster",null,"Newport",null,"Plainfield",null,"Springfield",null,"Sunapee",null,"Unity",null,"Washington"]
[null,null,"Estimate","Margin Of Error","Estimate","Margin Of Error","Estimate","Margin Of Error","Estimate","Margin Of Error","Estimate","Margin Of Error","Estimate","Margin Of Error","Estimate","Margin Of Error","Estimate","Margin Of Error","Estimate","Margin Of Error","Estimate","Margin Of Error","Estimate","Margin Of Error","Estimate","Margin Of Error","Estimate","Margin Of Error","Estimate","Margin Of Error","Estimate","Margin Of Error"]
[null,"Total:",272,51,369,173,752,215,78,40,177,43,155,47,890,165,47,27,339,74,381,162,212,74,302,79,1245,164,183,49,575,84]
[null,"For rent",4,6,0,12,185,112,0,12,0,12,10,12,70,105,0,12,0,12,0,17,18,28,8,13,22,35,0,12,0,12]
[null,"Rented, not occupied",0,12,33,53,37,54,0,12,0,12,0,12,0,12,0,12,10,15,0,17,0,12,0,12,0,12,0,12,0,12]
[null,"For sale only",0,12,0,12,0,19,12,18,0,12,0,12,0,12,0,12,3,4,0,17,14,21,0,12,0,12,0,12,9,12]
[null,"Sold, not occupied",0,12,79,84,52,71,0,12,5,9,0,12,0,12,6,9,19,21,53,84,0,12,0,12,0,12,0,12,0,12]
[null,"For seasonal, recreational, or occasional use",231,49,174,120,180,138,50,32,159,40,123,43,820,168,32,20,257,62,253,149,125,56,266,71,1202,173,175,47,530,82]
[null,"For migrant workers",0,12,0,12,0,19,0,12,0,12,0,12,0,12,0,12,0,12,0,17,0,12,0,12,0,12,0,12,0,12]
[null,"Other vacant",37,20,83,123,298,162,16,18,13,14,22,20,0,12,9,12,50,35,75,87,55,39,28,24,21,33,8,12,36,27]
[]
[]
[]
[]
[]
[]
[]
[null,"B25004. VACANCY STATUS"]
[null,"Universe:  VACANT HOUSING UNITS"]
[null,"Data Set: 2013-2017 American Community Survey 5-Year Estimates"]
[]
[null,null,"Acworth",null,"Charlestown",null,"Claremont",null,"Cornish",null,"Croydon",null,"Goshen",null,"Grantham",null,"Langdon",null,"Lempster",null,"Newport",null,"Plainfield",null,"Springfield",null,"Sunapee",null,"Unity",null,"Washington"]
[null,null,"Estimate","Margin Of Error","Estimate","Margin Of Error","Estimate","Margin Of Error","Estimate","Margin Of Error","Estimate","Margin Of Error","Estimate","Margin Of Error","Estimate","Margin Of Error","Estimate","Margin Of Error","Estimate","Margin Of Error","Estimate","Margin Of Error","Estimate","Margin Of Error","Estimate","Margin Of Error","Estimate","Margin Of Error","Estimate","Margin Of Error","Estimate","Margin Of Error"]
[null,"Total:",192,39,236,127,750,181,104,44,140,54,134,37,517,153,62,30,278,62,169,134,95,45,245,63,1079,159,147,42,638,84]
[null,"For rent",0,11,35,56,201,130,0,11,0,11,6,9,0,11,0,11,0,11,40,64,16,25,9,14,29,45,8,12,3,4]
[null,"Rented, not occupied",0,11,0,16,0,18,0,11,0,11,0,11,0,11,0,11,10,15,0,16,0,11,0,11,0,11,0,11,0,11]
[null,"For sale only",5,9,33,54,89,71,25,23,4,6,16,13,10,16,17,19,3,5,0,16,9,9,0,11,0,11,4,6,11,17]
[null,"Sold, not occupied",6,9,0,16,0,18,9,15,21,31,7,10,39,59,0,11,9,14,0,16,0,11,0,11,21,25,4,6,0,11]
[null,"For seasonal, recreational, or occasional use",168,38,94,85,160,116,61,35,105,37,93,35,468,157,34,21,227,57,85,96,52,30,199,58,962,161,123,37,586,79]
[null,"For migrant workers",0,11,0,16,0,18,0,11,0,11,0,11,0,11,0,11,0,11,0,16,0,11,0,11,0,11,0,11,0,11]
[null,"Other vacant",13,12,74,81,300,132,9,14,10,11,12,13,0,11,11,12,29,23,44,71,18,18,37,23,67,63,8,12,38,27]
[]
[]
[]
[]
[]
[]
[]
[null,"B25004. VACANCY STATUS"]
[null,"Universe:  VACANT HOUSING UNITS"]
[null,"Data Set: 2008-2012 American Community Survey 5-Year Estimates"]
[]
[null,null,"Acworth",null,"Charlestown",null,"Claremont",null,"Cornish",null,"Croydon",null,"Goshen",null,"Grantham",null,"Langdon",null,"Lempster",null,"Newport",null,"Plainfield",null,"Springfield",null,"Sunapee",null,"Unity",null,"Washington"]
[null,null,"Estimate","Margin Of Error","Estimate","Margin Of Error","Estimate","Margin Of Error","Estimate","Margin Of Error","Estimate","Margin Of Error","Estimate","Margin Of Error","Estimate","Margin Of Error","Estimate","Margin Of Error","Estimate","Margin Of Error","Estimate","Margin Of Error","Estimate","Margin Of Error","Estimate","Margin Of Error","Estimate","Margin Of Error","Estimate","Margin Of Error","Estimate","Margin Of Error"]
[null,"Total:",188,42,142,81,687,170,88,42,103,36,63,33,543,113,28,20,175,48,313,152,19,13,181,45,969,126,125,39,615,83]
[null,"For rent",0,11,30,48,125,90,0,11,0,11,0,11,0,11,6,8,0,11,40,64,0,11,7,11,6,10,0,11,0,11]
[null,"Rented, not occupied",0,11,0,16,0,18,0,11,0,11,0,11,18,29,0,11,0,11,0,16,0,11,0,11,53,62,0,11,4,8]
[null,"For sale only",11,12,0,16,124,85,0,11,7,10,0,11,19,30,0,11,14,17,38,60,0,11,17,16,28,43,5,8,12,15]
[null,"Sold, not occupied",0,11,0,16,0,18,0,11,0,11,0,11,21,25,0,11,0,11,0,16,0,11,0,11,0,11,0,11,0,11]
[null,"For seasonal, recreational, or occasional use",168,40,112,69,105,67,50,33,87,33,63,33,460,108,18,18,153,43,110,89,5,8,143,40,854,135,90,33,587,78]
[null,"For migrant workers",0,11,0,16,0,18,0,11,0,11,0,11,0,11,0,11,0,11,0,16,0,11,0,11,0,11,0,11,0,11]
[null,"Other vacant",9,9,0,16,333,146,38,29,9,11,0,11,25,27,4,6,8,12,125,110,14,11,14,17,28,40,30,25,12,14]

{"sheet":"ACS_Table_B25008","index":46,"n_rows":51,"n_cols":32,"rows_kept":51,"cut":false,"hidden":true,"merged":[]}
[null,"B25008. TOTAL POPULATION IN OCCUPIED HOUSING UNITS BY TENURE"]
[null,"Universe:  TOTAL POPULATION IN OCCUPIED HOUSING UNITS"]
[null,"Data Set: 2018-2022 American Community Survey 5-Year Estimates"]
[]
[null,null,"Acworth",null,"Charlestown",null,"Claremont",null,"Cornish",null,"Croydon",null,"Goshen",null,"Grantham",null,"Langdon",null,"Lempster",null,"Newport",null,"Plainfield",null,"Springfield",null,"Sunapee",null,"Unity",null,"Washington"]
[null,null,"Estimate","Margin Of Error","Estimate","Margin Of Error","Estimate","Margin Of Error","Estimate","Margin Of Error","Estimate","Margin Of Error","Estimate","Margin Of Error","Estimate","Margin Of Error","Estimate","Margin Of Error","Estimate","Margin Of Error","Estimate","Margin Of Error","Estimate","Margin Of Error","Estimate","Margin Of Error","Estimate","Margin Of Error","Estimate","Margin Of Error","Estimate","Margin Of Error"]
[null,"Total:",927,278,4829,22,12827,26,1914,235,796,166,1058,316,3394,23,717,196,957,200,6213,20,2358,26,933,398,3357,18,1271,198,1042,173]
[null,"Owner occupied",843,261,3613,422,8329,637,1830,223,715,165,918,310,3048,461,630,168,940,201,3952,589,2219,76,845,396,2807,218,1186,188,965,169]
[null,"Renter occupied",84,76,1216,421,4498,640,84,58,81,72,140,72,346,460,87,100,17,19,2261,591,139,73,88,77,550,222,85,48,77,58]
[]
[]
[]
[]
[]
[]
[]
[]
[]
[]
[]
[]
[null,"B25008. TOTAL POPULATION IN OCCUPIED HOUSING UNITS BY TENURE"]
[null,"Universe:  TOTAL POPULATION IN OCCUPIED HOUSING UNITS"]
[null,"Data Set: 2013-2017 American Community Survey 5-Year Estimates"]
[]
[null,null,"Acworth",null,"Charlestown",null,"Claremont",null,"Cornish",null,"Croydon",null,"Goshen",null,"Grantham",null,"Langdon",null,"Lempster",null,"Newport",null,"Plainfield",null,"Springfield",null,"Sunapee",null,"Unity",null,"Washington"]
[null,null,"Estimate","Margin Of Error","Estimate","Margin Of Error","Estimate","Margin Of Error","Estimate","Margin Of Error","Estimate","Margin Of Error","Estimate","Margin Of Error","Estimate","Margin Of Error","Estimate","Margin Of Error","Estimate","Margin Of Error","Estimate","Margin Of Error","Estimate","Margin Of Error","Estimate","Margin Of Error","Estimate","Margin Of Error","Estimate","Margin Of Error","Estimate","Margin Of Error"]
[null,"Total:",1031,143,4985,29,12894,92,1777,205,809,193,722,143,2941,35,887,143,858,129,6240,67,2323,244,1011,183,3383,21,1227,157,1265,206]
[null,"Owner occupied",938,141,4030,391,7691,650,1616,202,724,191,513,106,2737,173,814,136,811,132,4377,537,1953,228,889,170,2640,220,1134,147,1143,203]
[null,"Renter occupied",93,51,955,395,5203,637,161,92,85,52,209,116,204,175,73,56,47,28,1863,530,370,239,122,82,743,219,93,52,122,89]
[]
[]
[]
[]
[]
[]
[]
[]
[]
[]
[]
[]
[null,"B25008. TOTAL POPULATION IN OCCUPIED HOUSING UNITS BY TENURE"]
[null,"Universe:  TOTAL POPULATION IN OCCUPIED HOUSING UNITS"]
[null,"Data Set: 2008-2012 American Community Survey 5-Year Estimates"]
[]
[null,null,"Acworth",null,"Charlestown",null,"Claremont",null,"Cornish",null,"Croydon",null,"Goshen",null,"Grantham",null,"Langdon",null,"Lempster",null,"Newport",null,"Plainfield",null,"Springfield",null,"Sunapee",null,"Unity",null,"Washington"]
[null,null,"Estimate","Margin Of Error","Estimate","Margin Of Error","Estimate","Margin Of Error","Estimate","Margin Of Error","Estimate","Margin Of Error","Estimate","Margin Of Error","Estimate","Margin Of Error","Estimate","Margin Of Error","Estimate","Margin Of Error","Estimate","Margin Of Error","Estimate","Margin Of Error","Estimate","Margin Of Error","Estimate","Margin Of Error","Estimate","Margin Of Error","Estimate","Margin Of Error"]
[null,"Total:",746,184,5057,35,13185,65,1665,226,612,113,763,114,2936,33,776,133,1212,178,6379,68,2488,212,1354,195,3339,28,1349,139,1071,171]
[null,"Owner occupied",494,114,4228,327,8392,506,1355,196,510,105,589,98,2598,205,704,135,1006,162,4520,491,2242,228,1271,199,2546,307,1254,145,949,147]
[null,"Renter occupied",252,160,829,322,4793,502,310,140,102,58,174,89,338,196,72,51,206,99,1859,489,246,163,83,52,793,307,95,62,122,72]

{"sheet":"ACS_Table_B25024","index":47,"n_rows":78,"n_cols":32,"rows_kept":78,"cut":false,"hidden":true,"merged":[]}
[null,"B25024. UNITS IN STRUCTURE "]
[null,"Universe:  HOUSING UNITS"]
[null,"Data Set: 2018-2022 American Community Survey 5-Year Estimates"]
[]
[null,null,"Acworth",null,"Charlestown",null,"Claremont",null,"Cornish",null,"Croydon",null,"Goshen",null,"Grantham",null,"Langdon",null,"Lempster",null,"Newport",null,"Plainfield",null,"Springfield",null,"Sunapee",null,"Unity",null,"Washington"]
[null,null,"Estimate","Margin Of Error","Estimate","Margin Of Error","Estimate","Margin Of Error","Estimate","Margin Of Error","Estimate","Margin Of Error","Estimate","Margin Of Error","Estimate","Margin Of Error","Estimate","Margin Of Error","Estimate","Margin Of Error","Estimate","Margin Of Error","Estimate","Margin Of Error","Estimate","Margin Of Error","Estimate","Margin Of Error","Estimate","Margin Of Error","Estimate","Margin Of Error"]
[null,"Total:",511,63,2216,224,5955,256,840,150,409,61,458,84,2039,186,273,51,655,98,2859,252,1043,101,596,119,2367,193,661,80,988,83]
[null,"1, detached",482,62,1204,227,3061,344,754,148,379,58,410,82,1848,192,255,50,586,95,1711,267,900,94,533,117,1905,227,557,78,928,85]
[null,"1, attached",2,3,9,16,202,124,3,5,5,5,3,4,50,76,0,12,6,7,37,58,10,11,0,12,44,40,0,12,0,12]
[null,2,3,5,15,25,426,162,8,6,0,12,7,9,37,58,2,3,0,12,102,78,28,25,13,15,161,112,7,7,19,19]
[null,"3 or 4",0,12,176,104,601,166,11,14,0,12,11,14,0,12,0,12,0,12,261,148,28,28,0,12,27,37,0,12,8,13]
[null,"5 to 9",0,12,83,69,532,173,0,12,0,12,7,10,73,82,0,12,0,12,178,134,16,28,0,12,64,62,0,12,0,12]
[null,"10 to 19",0,12,14,21,230,134,0,12,0,12,0,12,31,48,0,12,0,12,139,106,5,7,0,12,15,26,0,12,0,12]
[null,"20 to 49",0,12,74,58,155,99,0,12,0,12,0,12,0,12,0,12,0,12,80,81,0,12,0,12,0,12,0,12,0,12]
[null,"50 or more",0,12,0,12,244,93,0,12,0,12,0,12,0,12,0,12,3,4,29,35,0,12,0,12,89,87,0,12,0,12]
[null,"Mobile home",24,19,641,165,504,185,64,64,25,17,20,13,0,12,16,11,60,31,322,149,56,28,50,29,62,65,97,36,33,24]
[null,"Boat, RV, van, etc.",0,12,0,12,0,19,0,12,0,12,0,12,0,12,0,12,0,12,0,17,0,12,0,12,0,12,0,12,0,12]
[]
[]
[null,"Calculated B25024. UNITS IN STRUCTURE "]
[null,"Universe:  HOUSING UNITS"]
[null,"Data Set: 2018-2022 American Community Survey 5-Year Estimates"]
[]
[null,null,"Acworth",null,"Charlestown",null,"Claremont",null,"Cornish",null,"Croydon",null,"Goshen",null,"Grantham",null,"Langdon",null,"Lempster",null,"Newport",null,"Plainfield",null,"Springfield",null,"Sunapee",null,"Unity",null,"Washington"]
[null,null,"Estimate","Margin Of Error","Estimate","Margin Of Error","Estimate","Margin Of Error","Estimate","Margin Of Error","Estimate","Margin Of Error","Estimate","Margin Of Error","Estimate","Margin Of Error","Estimate","Margin Of Error","Estimate","Margin Of Error","Estimate","Margin Of Error","Estimate","Margin Of Error","Estimate","Margin Of Error","Estimate","Margin Of Error","Estimate","Margin Of Error","Estimate","Margin Of Error"]
[null,"Total:",{"$f":"C7","v":511},63,2216,224,5955,256,840,150,409,61,458,84,2039,186,273,51,655,98,2859,252,1043,101,{"$f":"Y7","v":596},119,2367,193,{"$f":"AC7","v":661},80,988,83]
[null,"Single Family",{"$f":"C8","v":482},62,1204,227,3061,344,754,148,379,58,410,82,1848,192,255,50,586,95,1711,267,900,94,533,117,1905,227,557,78,928,85]
[null,"Multi-Family",{"$f":"C9+C10+C11+C12+C13+C14+C15","v":5},{"$f":"SQRT((D9^2)+(D10^2)+(D11^2)+(D12^2)+(D13^2)+(D14^2)+(D15^2))","v":27.459060435491963},{"$f":"E9+E10+E11+E12+E13+E14+E15","v":371},{"$f":"SQRT((F9^2)+(F10^2)+(F11^2)+(F12^2)+(F13^2)+(F14^2)+(F15^2))","v":142.85307137055193},{"$f":"G9+G10+G11+G12+G13+G14+G15","v":2390},{"$f":"SQRT((H9^2)+(H10^2)+(H11^2)+(H12^2)+(H13^2)+(H14^2)+(H15^2))","v":368.118187543077},{"$f":"I9+I10+I11+I12+I13+I14+I15","v":22},{"$f":"SQRT((J9^2)+(J10^2)+(J11^2)+(J12^2)+(J13^2)+(J14^2)+(J15^2))","v":28.861739379323623},{"$f":"K9+K10+K11+K12+K13+K14+K15","v":5},{"$f":"SQRT((L9^2)+(L10^2)+(L11^2)+(L12^2)+(L13^2)+(L14^2)+(L15^2))","v":29.816103031751148},{"$f":"M9+M10+M11+M12+M13+M14+M15","v":28},{"$f":"SQRT((N9^2)+(N10^2)+(N11^2)+(N12^2)+(N13^2)+(N14^2)+(N15^2))","v":28.722813232690143},{"$f":"O9+O10+O11+O12+O13+O14+O15","v":191},{"$f":"SQRT((P9^2)+(P10^2)+(P11^2)+(P12^2)+(P13^2)+(P14^2)+(P15^2))","v":136.38181696985856},{"$f":"Q9+Q10+Q11+Q12+Q13+Q14+Q15","v":2},{"$f":"SQRT((R9^2)+(R10^2)+(R11^2)+(R12^2)+(R13^2)+(R14^2)+(R15^2))","v":29.546573405388315},{"$f":"S9+S10+S11+S12+S13+S14+S15","v":9},{"$f":"SQRT((T9^2)+(T10^2)+(T11^2)+(T12^2)+(T13^2)+(T14^2)+(T15^2))","v":28.0178514522438},{"$f":"U9+U10+U11+U12+U13+U14+U15","v":826},{"$f":"SQRT((V9^2)+(V10^2)+(V11^2)+(V12^2)+(V13^2)+(V14^2)+(V15^2))","v":261.40007651108289},{"$f":"W9+W10+W11+W12+W13+W14+W15","v":87},{"$f":"SQRT((X9^2)+(X10^2)+(X11^2)+(X12^2)+(X13^2)+(X14^2)+(X15^2))","v":51.487862647424002},{"$f":"Y9+Y10+Y11+Y12+Y13+Y14+Y15","v":13},{"$f":"SQRT((Z9^2)+(Z10^2)+(Z11^2)+(Z12^2)+(Z13^2)+(Z14^2)+(Z15^2))","v":33},{"$f":"AA9+AA10+AA11+AA12+AA13+AA14+AA15","v":400},{"$f":"SQRT((AB9^2)+(AB10^2)+(AB11^2)+(AB12^2)+(AB13^2)+(AB14^2)+(AB15^2))","v":166.57130605239308},{"$f":"AC9+AC10+AC11+AC12+AC13+AC14+AC15","v":7},{"$f":"SQRT((AD9^2)+(AD10^2)+(AD11^2)+(AD12^2)+(AD13^2)+(AD14^2)+(AD15^2))","v":30.215889859476256},{"$f":"AE9+AE10+AE11+AE12+AE13+AE14+AE15","v":27},{"$f":"SQRT((AF9^2)+(AF10^2)+(AF11^2)+(AF12^2)+(AF13^2)+(AF14^2)+(AF15^2))","v":35.355339059327378}]
[null,"Mobile Home & Other",{"$f":"C16+C17","v":24},{"$f":"SQRT((D16^2)+(D17^2))","v":22.472205054244231},{"$f":"E16+E17","v":641},{"$f":"SQRT((F16^2)+(F17^2))","v":165.43578814754684},{"$f":"G16+G17","v":504},{"$f":"SQRT((H16^2)+(H17^2))","v":185.97311633674369},{"$f":"I16+I17","v":64},{"$f":"SQRT((J16^2)+(J17^2))","v":65.115282384398824},{"$f":"K16+K17","v":25},{"$f":"SQRT((L16^2)+(L17^2))","v":20.808652046684813},{"$f":"M16+M17","v":20},{"$f":"SQRT((N16^2)+(N17^2))","v":17.691806012954132},{"$f":"O16+O17","v":0},{"$f":"SQRT((P16^2)+(P17^2))","v":16.970562748477139},{"$f":"Q16+Q17","v":16},{"$f":"SQRT((R16^2)+(R17^2))","v":16.278820596099706},{"$f":"S16+S17","v":60},{"$f":"SQRT((T16^2)+(T17^2))","v":33.241540277189323},{"$f":"U16+U17","v":322},{"$f":"SQRT((V16^2)+(V17^2))","v":149.96666296213968},{"$f":"W16+W17","v":56},{"$f":"SQRT((X16^2)+(X17^2))","v":30.463092423455635},{"$f":"Y16+Y17","v":50},{"$f":"SQRT((Z16^2)+(Z17^2))","v":31.384709652950431},{"$f":"AA16+AA17","v":62},{"$f":"SQRT((AB16^2)+(AB17^2))","v":66.098411478642959},{"$f":"AC16+AC17","v":97},{"$f":"SQRT((AD16^2)+(AD17^2))","v":37.947331922020552},{"$f":"AE16+AE17","v":33},{"$f":"SQRT((AF16^2)+(AF17^2))","v":26.832815729997478}]
[]
[]
[]
[]
[]
[]
[]
[]
[]
[]
[]
[]
[]
[]
[]
[]
[]
[]
[]
[]
[]
[]
[]
[]
[]
[]
[]
[null,"Calculated B25024. UNITS IN STRUCTURE "]
[null,"Universe:  HOUSING UNITS"]
[null,"Data Set: 2013-2017 American Community Survey 5-Year Estimates"]
[]
[null,null,"Acworth",null,"Charlestown",null,"Claremont",null,"Cornish",null,"Croydon",null,"Goshen",null,"Grantham",null,"Langdon",null,"Lempster",null,"Newport",null,"Plainfield",null,"Springfield",null,"Sunapee",null,"Unity",null,"Washington"]
[null,null,"Estimate","Margin Of Error","Estimate","Margin Of Error","Estimate","Margin Of Error","Estimate","Margin Of Error","Estimate","Margin Of Error","Estimate","Margin Of Error","Estimate","Margin Of Error","Estimate","Margin Of Error","Estimate","Margin Of Error","Estimate","Margin Of Error","Estimate","Margin Of Error","Estimate","Margin Of Error","Estimate","Margin Of Error","Estimate","Margin Of Error","Estimate","Margin Of Error"]
[null,"Total:",619,58,2338,190,6317,221,826,70,414,68,405,59,1670,179,354,39,687,87,2742,249,1015,80,680,92,2632,170,673,66,1194,93]
[null,"Single Family",588,61,1409,230,3105,302,759,68,363,62,333,53,1375,194,329,40,586,81,1792,229,880,89,572,87,2074,187,588,67,1129,90]
[null,"Multi-Family",4,25.099800796022265,330,142.80756282494286,2816,388.84958531545328,45,34.423828956117013,10,26.870057685088806,28,25.96150997149434,295,154.95160534825058,7,28.407745422683583,17,25.219040425836983,723,213.85275308024444,83,39.357337308308857,17,28.687976575562104,508,175.76973573399945,11,27.658633371878661,7,27.838821814150108]
[null,"Mobile Home & Other",27,18.248287590894659,599,139.91783303067555,396,127.27922061357856,22,16.278820596099706,41,27.313000567495326,44,26.40075756488817,0,15.556349186104045,18,17.029386365926403,84,39.560080889704963,227,121.06196760337245,52,26.40075756488817,91,42.449970553582247,50,54.12947441089743,74,30.083217912982647,58,32.893768406797051]
[]
[]
[null,"Calculated B25024. UNITS IN STRUCTURE "]
[null,"Universe:  HOUSING UNITS"]
[null,"Data Set: 2008-2012 American Community Survey 5-Year Estimates"]
[]
[null,null,"Acworth",null,"Charlestown",null,"Claremont",null,"Cornish",null,"Croydon",null,"Goshen",null,"Grantham",null,"Langdon",null,"Lempster",null,"Newport",null,"Plainfield",null,"Springfield",null,"Sunapee",null,"Unity",null,"Washington"]
[null,null,"Estimate","Margin Of Error","Estimate","Margin Of Error","Estimate","Margin Of Error","Estimate","Margin Of Error","Estimate","Margin Of Error","Estimate","Margin Of Error","Estimate","Margin Of Error","Estimate","Margin Of Error","Estimate","Margin Of Error","Estimate","Margin Of Error","Estimate","Margin Of Error","Estimate","Margin Of Error","Estimate","Margin Of Error","Estimate","Margin Of Error","Estimate","Margin Of Error"]
[null,"Total:",482,62,2452,125,6408,215,745,70,392,54,394,53,1662,138,306,47,602,67,2997,217,939,75,678,70,2427,139,724,61,1080,78]
[null,"Single Family",415,64,1336,185,3300,242,637,74,366,53,355,50,1364,141,271,48,528,61,1697,231,820,75,639,70,1989,163,597,56,1026,80]
[null,"Multi-Family",19,26.851443164195103,339,146.84345405907612,2684,336.02083268749868,47,36.235341863986875,8,27.110883423451916,13,23.958297101421877,285,120.12077255828818,20,36.083237105337432,16,30.364452901377952,1013,232.90985380614535,49,41.109609582188931,5,27.838821814150108,357,128.76723185655581,26,46.583258795408462,16,30.413812651491099]
[null,"Mobile Home & Other",48,26.40075756488817,777,149.85659811966906,424,102.59142264341595,61,32.893768406797051,18,15.556349186104045,26,20.248456731316587,13,22.825424421026653,15,17.804493814764857,58,26.40075756488817,287,128.99612397277679,70,31.953090617340916,34,23.706539182259394,81,59.033888572581766,101,35.735136770411273,38,27.313000567495326]

{"sheet":"ACS_Table_B25032","index":48,"n_rows":119,"n_cols":32,"rows_kept":119,"cut":false,"hidden":true,"merged":[]}
[null,"B25032. TENURE BY UNITS IN STRUCTURE "]
[null,"Universe:  OCCUPIED HOUSING UNITS"]
[null,"Data Set: 2018-2022 American Community Survey 5-Year Estimates"]
[]
[null,null,"Acworth",null,"Charlestown",null,"Claremont",null,"Cornish",null,"Croydon",null,"Goshen",null,"Grantham",null,"Langdon",null,"Lempster",null,"Newport",null,"Plainfield",null,"Springfield",null,"Sunapee",null,"Unity",null,"Washington"]
[null,null,"Estimate","Margin Of Error","Estimate","Margin Of Error","Estimate","Margin Of Error","Estimate","Margin Of Error","Estimate","Margin Of Error","Estimate","Margin Of Error","Estimate","Margin Of Error","Estimate","Margin Of Error","Estimate","Margin Of Error","Estimate","Margin Of Error","Estimate","Margin Of Error","Estimate","Margin Of Error","Estimate","Margin Of Error","Estimate","Margin Of Error","Estimate","Margin Of Error"]
[null,"Total:",239,42,1847,209,5203,325,762,147,232,49,303,72,1149,128,226,45,316,61,2478,224,831,84,294,83,1122,162,478,77,413,71]
[null,"Owner-occupied housing units:",216,40,1328,180,3082,304,737,146,211,47,250,71,1091,138,205,43,299,59,1479,250,760,85,264,79,894,149,447,72,381,68]
[null,"1, detached",196,38,802,167,2481,273,669,144,188,44,226,69,1041,136,200,44,278,57,1175,245,694,79,238,78,832,167,387,71,359,71]
[null,"1, attached",2,3,9,16,138,114,3,5,3,4,3,4,50,76,0,12,6,7,3,13,5,7,0,12,44,40,0,12,0,12]
[null,2,0,12,15,25,57,57,2,3,0,12,7,9,0,12,0,12,0,12,38,45,5,7,0,12,12,15,3,4,10,13]
[null,"3 or 4",0,12,14,25,16,26,3,5,0,12,0,12,0,12,0,12,0,12,0,17,0,12,0,12,0,12,0,12,0,12]
[null,"5 to 9",0,12,0,12,0,19,0,12,0,12,0,12,0,12,0,12,0,12,0,17,16,28,0,12,0,12,0,12,0,12]
[null,"10 to 19",0,12,0,12,0,19,0,12,0,12,0,12,0,12,0,12,0,12,0,17,0,12,0,12,0,12,0,12,0,12]
[null,"20 to 49",0,12,0,12,0,19,0,12,0,12,0,12,0,12,0,12,0,12,0,17,0,12,0,12,0,12,0,12,0,12]
[null,"50 or more",0,12,0,12,0,19,0,12,0,12,0,12,0,12,0,12,0,12,0,17,0,12,0,12,0,12,0,12,0,12]
[null,"Mobile home",18,16,488,138,390,166,60,64,20,14,14,12,0,12,5,5,15,15,263,141,40,19,26,22,6,11,57,22,12,12]
[null,"Boat, RV, van, etc.",0,12,0,12,0,19,0,12,0,12,0,12,0,12,0,12,0,12,0,17,0,12,0,12,0,12,0,12,0,12]
[null,"Renter-occupied housing units:",23,14,519,167,2121,312,25,13,21,13,53,22,58,72,21,15,17,19,999,259,71,37,30,24,228,97,31,19,32,23]
[null,"1, detached",23,14,172,108,278,194,15,10,14,10,37,22,58,72,14,12,17,19,248,127,28,20,21,20,75,49,27,18,23,20]
[null,"1, attached",0,12,0,12,64,86,0,12,2,3,0,12,0,12,0,12,0,12,0,17,5,7,0,12,0,12,0,12,0,12]
[null,2,0,12,0,12,253,129,6,6,0,12,0,12,0,12,2,3,0,12,64,59,23,23,6,11,0,12,4,6,9,14]
[null,"3 or 4",0,12,162,102,494,136,0,12,0,12,5,8,0,12,0,12,0,12,261,148,10,14,0,12,5,9,0,12,0,12]
[null,"5 to 9",0,12,83,69,379,119,0,12,0,12,7,10,0,12,0,12,0,12,178,134,0,12,0,12,10,16,0,12,0,12]
[null,"10 to 19",0,12,14,21,188,120,0,12,0,12,0,12,0,12,0,12,0,12,139,106,5,7,0,12,15,26,0,12,0,12]
[null,"20 to 49",0,12,74,58,155,99,0,12,0,12,0,12,0,12,0,12,0,12,80,81,0,12,0,12,0,12,0,12,0,12]
[null,"50 or more",0,12,0,12,244,93,0,12,0,12,0,12,0,12,0,12,0,12,29,35,0,12,0,12,89,87,0,12,0,12]
[null,"Mobile home",0,12,14,23,66,68,4,5,5,7,4,4,0,12,5,5,0,12,0,17,0,12,3,5,34,31,0,12,0,12]
[null,"Boat, RV, van, etc.",0,12,0,12,0,19,0,12,0,12,0,12,0,12,0,12,0,12,0,17,0,12,0,12,0,12,0,12,0,12]
[]
[]
[null,"Calculated B25032. TENURE BY UNITS IN STRUCTURE "]
[null,"Universe:  OCCUPIED HOUSING UNITS"]
[null,"Data Set: 2018-2022 American Community Survey 5-Year Estimates"]
[]
[null,null,"Acworth",null,"Charlestown",null,"Claremont",null,"Cornish",null,"Croydon",null,"Goshen",null,"Grantham",null,"Langdon",null,"Lempster",null,"Newport",null,"Plainfield",null,"Springfield",null,"Sunapee",null,"Unity",null,"Washington"]
[null,null,"Estimate","Margin Of Error","Estimate","Margin Of Error","Estimate","Margin Of Error","Estimate","Margin Of Error","Estimate","Margin Of Error","Estimate","Margin Of Error","Estimate","Margin Of Error","Estimate","Margin Of Error","Estimate","Margin Of Error","Estimate","Margin Of Error","Estimate","Margin Of Error","Estimate","Margin Of Error","Estimate","Margin Of Error","Estimate","Margin Of Error","Estimate","Margin Of Error"]
[null,"Total:",{"$f":"C7","v":239},42,1847,209,5203,325,762,147,232,49,303,72,1149,128,226,45,{"$f":"S7","v":316},61,2478,224,831,84,294,83,1122,162,{"$f":"AC7","v":478},77,413,71]
[null,"Owner-occupied housing units:",216,40,1328,180,3082,304,737,146,211,47,250,71,1091,138,205,43,299,59,1479,250,760,85,264,79,894,149,447,72,381,68]
[null,"Single Family",{"$f":"C9","v":196},38,{"$f":"E9","v":802},167,{"$f":"G9","v":2481},273,{"$f":"I9","v":669},144,{"$f":"K9","v":188},44,{"$f":"M9","v":226},69,{"$f":"O9","v":1041},136,{"$f":"Q9","v":200},44,{"$f":"S9","v":278},57,{"$f":"U9","v":1175},245,{"$f":"W9","v":694},79,{"$f":"Y9","v":238},78,{"$f":"AA9","v":832},167,387,71,359,71]
[null,"Multi-Family",{"$f":"C10+C11+C12+C13+C14+C15+C16","v":2},{"$f":"SQRT((D10^2)+(D11^2)+(D12^2)+(D13^2)+(D14^2)+(D15^2)+(D16^2))","v":29.546573405388315},{"$f":"E10+E11+E12+E13+E14+E15+E16","v":38},{"$f":"SQRT((F10^2)+(F11^2)+(F12^2)+(F13^2)+(F14^2)+(F15^2)+(F16^2))","v":45.628938186199335},{"$f":"G10+G11+G12+G13+G14+G15+G16","v":211},{"$f":"SQRT((H10^2)+(H11^2)+(H12^2)+(H13^2)+(H14^2)+(H15^2)+(H16^2))","v":135.51752654177244},{"$f":"I10+I11+I12+I13+I14+I15+I16","v":8},{"$f":"SQRT((J10^2)+(J11^2)+(J12^2)+(J13^2)+(J14^2)+(J15^2)+(J16^2))","v":25.199206336708304},{"$f":"K10+K11+K12+K13+K14+K15+K16","v":3},{"$f":"SQRT((L10^2)+(L11^2)+(L12^2)+(L13^2)+(L14^2)+(L15^2)+(L16^2))","v":29.664793948382652},{"$f":"M10+M11+M12+M13+M14+M15+M16","v":10},{"$f":"SQRT((N10^2)+(N11^2)+(N12^2)+(N13^2)+(N14^2)+(N15^2)+(N16^2))","v":28.583211855912904},{"$f":"O10+O11+O12+O13+O14+O15+O16","v":50},{"$f":"SQRT((P10^2)+(P11^2)+(P12^2)+(P13^2)+(P14^2)+(P15^2)+(P16^2))","v":81.486195149853444},{"$f":"Q10+Q11+Q12+Q13+Q14+Q15+Q16","v":0},{"$f":"SQRT((R10^2)+(R11^2)+(R12^2)+(R13^2)+(R14^2)+(R15^2)+(R16^2))","v":31.749015732775089},{"$f":"S10+S11+S12+S13+S14+S15+S16","v":6},{"$f":"SQRT((T10^2)+(T11^2)+(T12^2)+(T13^2)+(T14^2)+(T15^2)+(T16^2))","v":30.215889859476256},{"$f":"U10+U11+U12+U13+U14+U15+U16","v":41},{"$f":"SQRT((V10^2)+(V11^2)+(V12^2)+(V13^2)+(V14^2)+(V15^2)+(V16^2))","v":60.32412452742269},{"$f":"W10+W11+W12+W13+W14+W15+W16","v":26},{"$f":"SQRT((X10^2)+(X11^2)+(X12^2)+(X13^2)+(X14^2)+(X15^2)+(X16^2))","v":38.183766184073569},{"$f":"Y10+Y11+Y12+Y13+Y14+Y15+Y16","v":0},{"$f":"SQRT((Z10^2)+(Z11^2)+(Z12^2)+(Z13^2)+(Z14^2)+(Z15^2)+(Z16^2))","v":31.749015732775089},{"$f":"AA10+AA11+AA12+AA13+AA14+AA15+AA16","v":56},{"$f":"SQRT((AB10^2)+(AB11^2)+(AB12^2)+(AB13^2)+(AB14^2)+(AB15^2)+(AB16^2))","v":50.447993022517757},{"$f":"AC10+AC11+AC12+AC13+AC14+AC15+AC16","v":3},{"$f":"SQRT((AD10^2)+(AD11^2)+(AD12^2)+(AD13^2)+(AD14^2)+(AD15^2)+(AD16^2))","v":29.664793948382652},{"$f":"AE10+AE11+AE12+AE13+AE14+AE15+AE16","v":10},{"$f":"SQRT((AF10^2)+(AF11^2)+(AF12^2)+(AF13^2)+(AF14^2)+(AF15^2)+(AF16^2))","v":32.140317359976393}]
[null,"Mobile Home & Other",{"$f":"C17+C18","v":18},{"$f":"SQRT((D17^2)+(D18^2))","v":20},{"$f":"E17+E18","v":488},{"$f":"SQRT((F17^2)+(F18^2))","v":138.52075656738234},{"$f":"G17+G18","v":390},{"$f":"SQRT((H17^2)+(H18^2))","v":167.08381130438698},{"$f":"I17+I18","v":60},{"$f":"SQRT((J17^2)+(J18^2))","v":65.115282384398824},{"$f":"K17+K18","v":20},{"$f":"SQRT((L17^2)+(L18^2))","v":18.439088914585774},{"$f":"M17+M18","v":14},{"$f":"SQRT((N17^2)+(N18^2))","v":16.970562748477139},{"$f":"O17+O18","v":0},{"$f":"SQRT((P17^2)+(P18^2))","v":16.970562748477139},{"$f":"Q17+Q18","v":5},{"$f":"SQRT((R17^2)+(R18^2))","v":13},{"$f":"S17+S18","v":15},{"$f":"SQRT((T17^2)+(T18^2))","v":19.209372712298546},{"$f":"U17+U18","v":263},{"$f":"SQRT((V17^2)+(V18^2))","v":142.02112518917741},{"$f":"W17+W18","v":40},{"$f":"SQRT((X17^2)+(X18^2))","v":22.472205054244231},{"$f":"Y17+Y18","v":26},{"$f":"SQRT((Z17^2)+(Z18^2))","v":25.059928172283335},{"$f":"AA17+AA18","v":6},{"$f":"SQRT((AB17^2)+(AB18^2))","v":16.278820596099706},{"$f":"AC17+AC18","v":57},{"$f":"SQRT((AD17^2)+(AD18^2))","v":25.059928172283335},{"$f":"AE17+AE18","v":12},{"$f":"SQRT((AF17^2)+(AF18^2))","v":16.970562748477139}]
[null,"Renter-occupied housing units:",{"$f":"C19","v":23},14,519,167,2121,312,25,13,21,13,53,22,58,72,21,15,{"$f":"S19","v":17},19,999,259,71,37,30,24,228,97,{"$f":"AC19","v":31},19,32,23]
[null,"Single Family",23,14,172,108,278,194,15,10,14,10,37,22,58,72,14,12,17,19,248,127,28,20,21,20,75,49,27,18,23,20]
[null,"Multi-Family",{"$f":"C21+C22+C23+C24+C25+C26+C27","v":0},{"$f":"SQRT((D21^2)+(D22^2)+(D23^2)+(D24^2)+(D25^2)+(D26^2)+(D27^2))","v":31.749015732775089},{"$f":"E21+E22+E23+E24+E25+E26+E27","v":333},{"$f":"SQRT((F21^2)+(F22^2)+(F23^2)+(F24^2)+(F25^2)+(F26^2)+(F27^2))","v":139.29106216839614},{"$f":"G21+G22+G23+G24+G25+G26+G27","v":1777},{"$f":"SQRT((H21^2)+(H22^2)+(H23^2)+(H24^2)+(H25^2)+(H26^2)+(H27^2))","v":299.23903488682754},{"$f":"I21+I22+I23+I24+I25+I26+I27","v":6},{"$f":"SQRT((J21^2)+(J22^2)+(J23^2)+(J24^2)+(J25^2)+(J26^2)+(J27^2))","v":30},{"$f":"K21+K22+K23+K24+K25+K26+K27","v":2},{"$f":"SQRT((L21^2)+(L22^2)+(L23^2)+(L24^2)+(L25^2)+(L26^2)+(L27^2))","v":29.546573405388315},{"$f":"M21+M22+M23+M24+M25+M26+M27","v":12},{"$f":"SQRT((N21^2)+(N22^2)+(N23^2)+(N24^2)+(N25^2)+(N26^2)+(N27^2))","v":29.732137494637012},{"$f":"O21+O22+O23+O24+O25+O26+O27","v":0},{"$f":"SQRT((P21^2)+(P22^2)+(P23^2)+(P24^2)+(P25^2)+(P26^2)+(P27^2))","v":31.749015732775089},{"$f":"Q21+Q22+Q23+Q24+Q25+Q26+Q27","v":2},{"$f":"SQRT((R21^2)+(R22^2)+(R23^2)+(R24^2)+(R25^2)+(R26^2)+(R27^2))","v":29.546573405388315},{"$f":"S21+S22+S23+S24+S25+S26+S27","v":0},{"$f":"SQRT((T21^2)+(T22^2)+(T23^2)+(T24^2)+(T25^2)+(T26^2)+(T27^2))","v":31.749015732775089},{"$f":"U21+U22+U23+U24+U25+U26+U27","v":751},{"$f":"SQRT((V21^2)+(V22^2)+(V23^2)+(V24^2)+(V25^2)+(V26^2)+(V27^2))","v":250.30381539241466},{"$f":"W21+W22+W23+W24+W25+W26+W27","v":43},{"$f":"SQRT((X21^2)+(X22^2)+(X23^2)+(X24^2)+(X25^2)+(X26^2)+(X27^2))","v":35.425979167836701},{"$f":"Y21+Y22+Y23+Y24+Y25+Y26+Y27","v":6},{"$f":"SQRT((Z21^2)+(Z22^2)+(Z23^2)+(Z24^2)+(Z25^2)+(Z26^2)+(Z27^2))","v":31.384709652950431},{"$f":"AA21+AA22+AA23+AA24+AA25+AA26+AA27","v":119},{"$f":"SQRT((AB21^2)+(AB22^2)+(AB23^2)+(AB24^2)+(AB25^2)+(AB26^2)+(AB27^2))","v":94.942087611343368},{"$f":"AC21+AC22+AC23+AC24+AC25+AC26+AC27","v":4},{"$f":"SQRT((AD21^2)+(AD22^2)+(AD23^2)+(AD24^2)+(AD25^2)+(AD26^2)+(AD27^2))","v":30},{"$f":"AE21+AE22+AE23+AE24+AE25+AE26+AE27","v":9},{"$f":"SQRT((AF21^2)+(AF22^2)+(AF23^2)+(AF24^2)+(AF25^2)+(AF26^2)+(AF27^2))","v":32.557641192199412}]
[null,"Mobile Home & Other",{"$f":"C28+C29","v":0},{"$f":"SQRT((D28^2)+(D29^2))","v":16.970562748477139},{"$f":"E28+E29","v":14},{"$f":"SQRT((F28^2)+(F29^2))","v":25.942243542145693},{"$f":"G28+G29","v":66},{"$f":"SQRT((H28^2)+(H29^2))","v":70.604532432415411},{"$f":"I28+I29","v":4},{"$f":"SQRT((J28^2)+(J29^2))","v":13},{"$f":"K28+K29","v":5},{"$f":"SQRT((L28^2)+(L29^2))","v":13.892443989449804},{"$f":"M28+M29","v":4},{"$f":"SQRT((N28^2)+(N29^2))","v":12.649110640673518},{"$f":"O28+O29","v":0},{"$f":"SQRT((P28^2)+(P29^2))","v":16.970562748477139},{"$f":"Q28+Q29","v":5},{"$f":"SQRT((R28^2)+(R29^2))","v":13},{"$f":"S28+S29","v":0},{"$f":"SQRT((T28^2)+(T29^2))","v":16.970562748477139},{"$f":"U28+U29","v":0},{"$f":"SQRT((V28^2)+(V29^2))","v":24.041630560342615},{"$f":"W28+W29","v":0},{"$f":"SQRT((X28^2)+(X29^2))","v":16.970562748477139},{"$f":"Y28+Y29","v":3},{"$f":"SQRT((Z28^2)+(Z29^2))","v":13},{"$f":"AA28+AA29","v":34},{"$f":"SQRT((AB28^2)+(AB29^2))","v":33.241540277189323},{"$f":"AC28+AC29","v":0},{"$f":"SQRT((AD28^2)+(AD29^2))","v":16.970562748477139},{"$f":"AE28+AE29","v":0},{"$f":"SQRT((AF28^2)+(AF29^2))","v":16.970562748477139}]
[]
[]
[]
[]
[]
[]
[]
[]
[]
[]
[]
[]
[]
[]
[]
[]
[]
[]
[]
[]
[]
[]
[]
[]
[]
[]
[]
[]
[]
[]
[]
[]
[]
[]
[]
[]
[]
[]
[]
[]
[null,"Calculated B25032. TENURE BY UNITS IN STRUCTURE "]
[null,"Universe:  OCCUPIED HOUSING UNITS"]
[null,"Data Set: 2013-2017 American Community Survey 5-Year Estimates"]
[]
[null,null,"Acworth",null,"Charlestown",null,"Claremont",null,"Cornish",null,"Croydon",null,"Goshen",null,"Grantham",null,"Langdon",null,"Lempster",null,"Newport",null,"Plainfield",null,"Springfield",null,"Sunapee",null,"Unity",null,"Washington"]
[null,null,"Estimate","Margin Of Error","Estimate","Margin Of Error","Estimate","Margin Of Error","Estimate","Margin Of Error","Estimate","Margin Of Error","Estimate","Margin Of Error","Estimate","Margin Of Error","Estimate","Margin Of Error","Estimate","Margin Of Error","Estimate","Margin Of Error","Estimate","Margin Of Error","Estimate","Margin Of Error","Estimate","Margin Of Error","Estimate","Margin Of Error","Estimate","Margin Of Error"]
[null,"Total:",427,62,2102,160,5567,221,722,71,274,49,271,48,1153,125,292,38,409,63,2573,202,920,83,435,74,1553,140,526,60,556,85]
[null,"Owner-occupied housing units:",388,61,1673,187,3163,298,641,70,241,43,206,37,1050,136,266,37,387,62,1793,232,821,94,380,67,1049,117,489,56,507,82]
[null,"Single Family",371,61,1109,205,2607,284,601,68,213,40,182,36,1012,134,252,37,360,61,1508,225,740,96,299,61,993,105,432,55,500,81]
[null,"Multi-Family",0,29.103264421710495,46,70,298,118.56221995222593,18,24.79919353527449,8,26.49528259898354,8,27.110883423451916,38,48.723710860319329,2,27.110883423451916,13,23.685438564654021,58,56.595052787324086,34,27.982137159266443,6,27.838821814150108,49,60.348985078458448,3,27.239676943752471,4,27.404379212089442]
[null,"Mobile Home & Other",17,11.401754250991379,518,130.98091464026353,258,88.842557369765089,22,16.278820596099706,20,20.248456731316587,16,19.416487838947599,0,15.556349186104045,12,14.212670403551895,14,14.212670403551895,227,121.06196760337245,47,24.596747752497688,75,42.449970553582247,7,17.029386365926403,54,25.495097567963924,3,11.704699910719626]
[null,"Renter-occupied housing units:",39,20,429,133,2404,276,81,38,33,21,65,32,103,80,26,18,22,14,780,174,99,45,55,34,504,158,37,19,49,36]
[null,"Single Family",35,19,87,66,291,117,64,31,23,18,40,24,55,56,21,18,16,12,155,100,57,36,44,29,258,115,22,14,42,35]
[null,"Multi-Family",4,25.099800796022265,284,133.52527850560733,2046,330.59643071273473,17,30.166206257996713,2,27.239676943752471,14,28.740215726399828,48,63.757352517180323,5,28.407745422683583,0,29.103264421710495,625,197.15476154534031,37,33.660065359413672,11,29.916550603303182,231,116.37439580938755,8,29.49576240750525,3,27.239676943752471]
[null,"Mobile Home & Other",0,15.556349186104045,58,58.240879114244144,67,77.129760793094647,0,15.556349186104045,8,14.866068747318506,11,16.278820596099706,0,15.556349186104045,0,15.556349186104045,6,12.529964086141668,0,22.627416997969522,5,13.038404810405298,0,15.556349186104045,15,25.495097567963924,7,14.212670403551895,4,12.083045973594572]
[]
[]
[]
[null,"Calculated B25032. TENURE BY UNITS IN STRUCTURE "]
[null,"Universe:  OCCUPIED HOUSING UNITS"]
[null,"Data Set: 2008-2012 American Community Survey 5-Year Estimates"]
[]
[null,null,"Acworth",null,"Charlestown",null,"Claremont",null,"Cornish",null,"Croydon",null,"Goshen",null,"Grantham",null,"Langdon",null,"Lempster",null,"Newport",null,"Plainfield",null,"Springfield",null,"Sunapee",null,"Unity",null,"Washington"]
[null,null,"Esitimate","Margin Of Error","Esitimate","Margin Of Error","Esitimate","Margin Of Error","Esitimate","Margin Of Error","Esitimate","Margin Of Error","Esitimate","Margin Of Error","Esitimate","Margin Of Error","Esitimate","Margin Of Error","Esitimate","Margin Of Error","Esitimate","Margin Of Error","Esitimate","Margin Of Error","Esitimate","Margin Of Error","Esitimate","Margin Of Error","Esitimate","Margin Of Error","Esitimate","Margin Of Error"]
[null,"Total:",277,53,2336,120,5928,244,641,71,335,54,379,49,1130,74,297,64,454,63,2655,183,915,90,357,55,1393,114,658,70,472,64]
[null,"Owner-occupied housing units:",230,47,1799,162,3536,244,550,73,286,45,331,49,1024,72,266,59,385,59,1768,185,828,89,340,54,1059,147,578,62,453,65]
[null,"Single Family",197,45,1101,159,2708,253,502,68,279,45,287,47,899,82,252,57,334,61,1445,203,716,83,318,54,1022,151,513,65,407,63]
[null,"Multi-Family",3,279.28659115682586,25,256.48001871490885,385,233.67070847669376,7,255.05293568198741,0,301.61564946136332,30,198.20443990990717,125,236.96624232155938,0,301.61564946136332,7,279.32955446926843,102,237.31413780051116,59,232.17450333746814,6,279.38682860865151,30,282.09218351453836,0,301.61564946136332,6,254.9745085297744]
[null,"Mobile Home & Other",30,115.7410903698423,673,187.60863519571799,443,164.07315441594946,41,117.38824472663352,7,114.28035701729323,14,115.26057435220423,0,161.22034611053283,14,114.9826073804208,44,115.57248807566617,221,144.62710672622887,53,116.10340218959993,16,114.85643212288984,7,114.62983904725679,65,118.40608092492548,40,117.15374513859982]
[null,"Renter-occupied housing units:",47,32,537,165,2392,259,91,40,49,31,48,29,106,47,31,27,69,32,887,200,87,43,17,16,334,92,80,45,19,12]
[null,"Single Family",34,27,199,102,229,130,57,29,26,23,36,26,85,40,9,10,43,25,32,36,87,43,9,13,153,69,21,18,13,10]
[null,"Multi-Family",10,279.69983911328944,251,208.73428084528905,2149,319.91405095744074,22,255.67166444485005,0,301.61564946136332,3,279.27047821064082,21,281.42672225643395,12,279.95713957675736,10,279.59256070217606,806,248.86140721293046,0,301.61564946136332,4,279.30628349537716,118,208.94496883150836,25,280.74365531566337,3,279.27047821064082]
[null,"Mobile Home & Other",3,114.10959644131601,87,137.01094846763161,14,115.91807451816995,12,115.91807451816995,23,116.10340218959993,9,114.43775600735974,0,161.22034611053283,10,114.9826073804208,16,114.9826073804208,49,121.49074038789952,0,161.22034611053283,4,114.15778554264269,63,126.57408897558773,34,117.63077828527702,3,114.0701538527936]

{"sheet":"ACS_Table_B25034","index":49,"n_rows":58,"n_cols":32,"rows_kept":58,"cut":false,"hidden":true,"merged":[]}
[null,"B25034. YEAR STRUCTURE BUILT"]
[null,"Universe:  HOUSING UNITS"]
[null,"Data Set: 2018-2022 American Community Survey 5-Year Estimates"]
[]
[null,null,"Acworth",null,"Charlestown",null,"Claremont",null,"Cornish",null,"Croydon",null,"Goshen",null,"Grantham",null,"Langdon",null,"Lempster",null,"Newport",null,"Plainfield",null,"Springfield",null,"Sunapee",null,"Unity",null,"Washington"]
[null,null,"Estimate","Margin Of Error","Estimate","Margin Of Error","Estimate","Margin Of Error","Estimate","Margin Of Error","Estimate","Margin Of Error","Estimate","Margin Of Error","Estimate","Margin Of Error","Estimate","Margin Of Error","Estimate","Margin Of Error","Estimate","Margin Of Error","Estimate","Margin Of Error","Estimate","Margin Of Error","Estimate","Margin Of Error","Estimate","Margin Of Error","Estimate","Margin Of Error"]
[null,"Total:",511,63,2216,224,5955,256,840,150,409,61,458,84,2039,186,273,51,655,98,2859,252,1043,101,596,119,2367,193,661,80,988,83]
[null,"Built 2020 or later",0,12,0,12,0,19,0,12,0,12,0,12,0,12,0,12,2,4,0,17,13,11,0,12,9,14,0,12,0,12]
[null,"Built 2010 or 2019",15,11,74,78,62,71,17,12,21,20,4,6,122,92,12,10,29,21,68,60,22,29,15,13,114,69,40,21,54,29]
[null,"Built 2000 to 2009",45,32,101,66,155,92,94,36,71,31,39,20,314,127,37,19,92,37,256,131,82,42,99,41,331,110,83,30,128,39]
[null,"Built 1990 to 1999",34,19,230,118,207,121,65,32,78,32,42,21,313,141,50,27,29,20,251,119,94,40,87,43,373,149,98,34,85,39]
[null,"Built 1980 to 1989",78,28,626,175,671,179,218,136,60,23,55,22,675,228,53,17,92,37,461,151,238,84,119,57,326,108,146,39,229,62]
[null,"Built 1970 to 1979",59,31,281,124,976,256,125,70,36,19,76,34,521,178,31,17,187,57,374,155,203,88,89,40,346,133,118,36,179,51]
[null,"Built 1960 to 1969",26,16,241,119,577,233,63,38,29,18,23,16,0,12,13,10,32,24,212,106,107,58,40,27,94,67,40,21,95,37]
[null,"Built 1950 to 1959",45,23,171,116,549,217,36,27,29,19,97,54,27,45,6,6,19,18,286,165,12,10,13,12,161,89,30,22,56,34]
[null,"Built 1940 to 1949",14,12,39,46,504,164,17,15,7,10,26,23,0,12,20,16,2,4,245,139,7,9,4,6,71,59,24,21,12,15]
[null,"Built 1939 or earlier",195,55,453,176,2254,293,205,48,78,32,96,39,67,61,51,23,171,58,706,210,265,69,130,54,542,128,82,29,150,48]
[]
[]
[]
[]
[null,"B25034. YEAR STRUCTURE BUILT"]
[null,"Universe:  HOUSING UNITS"]
[null,"Data Set: 2013-2017 American Community Survey 5-Year Estimates"]
[]
[null,null,"Acworth",null,"Charlestown",null,"Claremont",null,"Cornish",null,"Croydon",null,"Goshen",null,"Grantham",null,"Langdon",null,"Lempster",null,"Newport",null,"Plainfield",null,"Springfield",null,"Sunapee",null,"Unity",null,"Washington"]
[null,null,"Estimate","Margin Of Error","Estimate","Margin Of Error","Estimate","Margin Of Error","Estimate","Margin Of Error","Estimate","Margin Of Error","Estimate","Margin Of Error","Estimate","Margin Of Error","Estimate","Margin Of Error","Estimate","Margin Of Error","Estimate","Margin Of Error","Estimate","Margin Of Error","Estimate","Margin Of Error","Estimate","Margin Of Error","Estimate","Margin Of Error","Estimate","Margin Of Error"]
[null,"Total:",619,58,2338,190,6317,221,826,70,414,68,405,59,1670,179,354,39,687,87,2742,249,1015,80,680,92,2632,170,673,66,1194,93]
[null,"Built 2014 or later",8,9,0,16,0,18,0,11,1,3,0,11,0,11,3,4,0,11,0,16,0,11,3,4,6,8,0,11,26,35]
[null,"Built 2010 or 2013",31,20,0,16,18,21,20,19,7,10,2,3,0,11,0,11,14,16,27,31,17,14,8,14,41,43,20,17,86,63]
[null,"Built 2000 to 2009",86,29,131,75,209,87,96,33,74,25,39,20,206,86,81,27,152,46,250,108,97,37,189,63,516,155,179,35,225,60]
[null,"Built 1990 to 1999",52,21,210,88,135,66,78,30,55,27,30,20,327,129,45,18,56,24,152,96,117,37,94,41,394,121,53,22,66,35]
[null,"Built 1980 to 1989",69,20,358,146,571,142,121,43,93,36,96,32,606,167,67,25,183,45,542,165,188,54,90,36,373,123,123,41,253,55]
[null,"Built 1970 to 1979",99,34,541,164,849,178,84,40,51,34,68,26,356,146,36,19,95,37,288,132,199,67,121,48,462,139,96,32,193,50]
[null,"Built 1960 to 1969",60,33,210,104,619,174,46,24,24,17,14,11,11,19,18,11,50,29,318,124,25,16,41,25,161,93,31,18,99,40]
[null,"Built 1950 to 1959",55,26,192,115,684,145,43,21,20,15,46,20,55,44,8,9,38,25,172,104,39,19,52,30,114,69,48,25,72,33]
[null,"Built 1940 to 1949",20,17,97,71,679,161,28,25,18,17,5,8,9,15,21,15,0,11,153,80,35,19,2,5,24,21,29,23,14,10]
[null,"Built 1939 or earlier",139,37,599,161,2553,270,310,61,71,26,105,28,100,68,75,25,99,39,840,225,298,76,80,38,541,158,94,33,160,48]
[]
[]
[]
[]
[null,"B25034. YEAR STRUCTURE BUILT"]
[null,"Universe:  HOUSING UNITS"]
[null,"Data Set: 2008-2012 American Community Survey 5-Year Estimates"]
[]
[null,null,"Acworth",null,"Charlestown",null,"Claremont",null,"Cornish",null,"Croydon",null,"Goshen",null,"Grantham",null,"Langdon",null,"Lempster",null,"Newport",null,"Plainfield",null,"Springfield",null,"Sunapee",null,"Unity",null,"Washington"]
[null,null,"Esitimate","Margin Of Error","Esitimate","Margin Of Error","Esitimate","Margin Of Error","Esitimate","Margin Of Error","Esitimate","Margin Of Error","Esitimate","Margin Of Error","Esitimate","Margin Of Error","Esitimate","Margin Of Error","Esitimate","Margin Of Error","Esitimate","Margin Of Error","Esitimate","Margin Of Error","Esitimate","Margin Of Error","Esitimate","Margin Of Error","Esitimate","Margin Of Error","Esitimate","Margin Of Error"]
[null,"Total:",482,62,2452,125,6408,215,745,70,392,54,394,53,1662,138,306,47,602,67,2997,217,939,75,678,70,2427,139,724,61,1080,78]
[null,"Built 2010 or later",0,11,0,16,0,18,0,11,3,6,0,11,0,11,0,11,0,11,11,18,0,11,0,11,21,24,0,11,3,4]
[null,"Built 2000 to 2009",72,32,264,103,160,80,59,24,47,25,37,18,190,65,23,11,67,28,394,156,71,26,64,31,318,131,61,27,134,41]
[null,"Built 1990 to 1999",27,18,294,106,289,124,82,30,68,21,30,16,355,132,70,32,79,30,194,86,133,49,131,47,324,135,151,45,120,42]
[null,"Built 1980 to 1989",49,28,475,146,567,143,136,42,69,26,98,36,546,121,47,24,131,44,291,115,193,62,141,39,483,121,142,43,210,56]
[null,"Built 1970 to 1979",64,30,375,141,884,171,87,32,38,19,93,34,484,99,42,26,120,46,282,111,174,65,92,30,337,131,117,36,182,47]
[null,"Built 1960 to 1969",24,16,205,99,541,178,32,22,21,12,40,21,12,13,9,8,46,24,189,93,57,38,55,32,73,57,49,25,136,47]
[null,"Built 1950 to 1959",69,36,99,54,700,156,31,18,26,20,37,23,21,24,30,22,20,17,291,113,26,17,35,26,208,98,70,52,133,61]
[null,"Built 1940 to 1949",45,26,137,78,421,131,21,15,28,20,11,8,9,11,23,17,27,22,157,97,50,44,23,17,117,68,47,20,20,17]
[null,"Built 1939 or earlier",132,34,603,167,2846,274,297,65,92,33,48,16,45,24,62,23,112,33,1188,193,235,64,137,41,546,130,87,34,142,42]

{"sheet":"ACS_Table_B25041","index":50,"n_rows":73,"n_cols":32,"rows_kept":73,"cut":false,"hidden":true,"merged":[]}
[null,"B25041. BEDROOMS "]
[null,"Universe:  HOUSING UNITS"]
[null,"Data Set: 2018-2022 American Community Survey 5-Year Estimates"]
[]
[null,null,"Acworth",null,"Charlestown",null,"Claremont",null,"Cornish",null,"Croydon",null,"Goshen",null,"Grantham",null,"Langdon",null,"Lempster",null,"Newport",null,"Plainfield",null,"Springfield",null,"Sunapee",null,"Unity",null,"Washington"]
[null,null,"Estimate","Margin Of Error","Estimate","Margin Of Error","Estimate","Margin Of Error","Estimate","Margin Of Error","Estimate","Margin Of Error","Estimate","Margin Of Error","Estimate","Margin Of Error","Estimate","Margin Of Error","Estimate","Margin Of Error","Estimate","Margin Of Error","Estimate","Margin Of Error","Estimate","Margin Of Error","Estimate","Margin Of Error","Estimate","Margin Of Error","Estimate","Margin Of Error"]
[null,"Total:",511,63,2216,224,5955,256,840,150,409,61,458,84,2039,186,273,51,655,98,2859,252,1043,101,596,119,2367,193,661,80,988,83]
[null,"No bedroom",23,16,15,23,31,31,3,5,0,12,7,10,0,12,0,12,4,7,0,17,22,22,8,12,50,56,6,9,48,28]
[null,"1 bedroom",71,35,142,90,1186,248,39,27,52,26,70,36,32,50,15,11,90,36,403,161,52,39,52,33,275,126,81,32,42,30]
[null,"2 bedrooms",144,41,990,221,2070,326,197,74,141,34,192,65,351,168,86,31,232,60,950,209,231,88,193,55,482,139,236,51,428,77]
[null,"3 bedrooms",213,47,777,240,1899,298,432,139,155,41,126,36,1428,241,116,36,227,59,1048,220,518,117,233,76,998,223,280,56,368,68]
[null,"4 bedrooms",34,19,211,126,684,171,144,37,48,27,44,21,112,96,39,19,72,28,326,169,184,80,95,39,490,144,45,24,88,34]
[null,"5 or more bedrooms",26,17,81,51,85,94,25,22,13,12,19,13,116,103,17,14,30,20,132,113,36,25,15,18,72,50,13,12,14,14]
[]
[]
[null,"Calculated B25041. BEDROOMS "]
[null,"Universe:  HOUSING UNITS"]
[null,"Data Set: 2018-2022 American Community Survey 5-Year Estimates"]
[]
[null,null,"Acworth",null,"Charlestown",null,"Claremont",null,"Cornish",null,"Croydon",null,"Goshen",null,"Grantham",null,"Langdon",null,"Lempster",null,"Newport",null,"Plainfield",null,"Springfield",null,"Sunapee",null,"Unity",null,"Washington"]
[null,null,"Estimate","Margin Of Error","Estimate","Margin Of Error","Estimate","Margin Of Error","Estimate","Margin Of Error","Estimate","Margin Of Error","Estimate","Margin Of Error","Estimate","Margin Of Error","Estimate","Margin Of Error","Estimate","Margin Of Error","Estimate","Margin Of Error","Estimate","Margin Of Error","Estimate","Margin Of Error","Estimate","Margin Of Error","Estimate","Margin Of Error","Estimate","Margin Of Error"]
[null,"Total:",{"$f":"C7","v":511},{"$f":"D7","v":63},2216,224,5955,256,840,150,409,61,458,84,2039,186,273,51,655,98,2859,252,1043,101,{"$f":"Y7","v":596},119,2367,193,{"$f":"AC7","v":661},80,988,83]
[null,"No bedroom",{"$f":"C8","v":23},16,15,23,31,31,3,5,0,12,7,10,0,12,0,12,4,7,0,17,22,22,8,12,50,56,6,9,48,28]
[null,"1 bedroom",{"$f":"C9","v":71},{"$f":"D9","v":35},142,90,1186,248,39,27,{"$f":"K9","v":52},26,70,36,32,50,15,11,90,36,403,161,52,39,52,33,275,126,81,32,42,30]
[null,"2 bedrooms",{"$f":"C10","v":144},41,990,221,2070,326,197,74,141,34,192,65,351,168,86,31,232,60,950,209,231,88,193,55,482,139,236,51,428,77]
[null,"3 bedrooms",{"$f":"C11","v":213},47,777,240,1899,298,432,139,155,41,126,36,1428,241,116,36,227,59,1048,220,518,117,233,76,998,223,280,56,368,68]
[null,"4 + bedrooms",{"$f":"C12+C13","v":60},{"$f":"SQRT((D12^2)+(D13^2))","v":25.495097567963924},{"$f":"E12+E13","v":292},{"$f":"SQRT((F12^2)+(F13^2))","v":135.93012911051031},{"$f":"G12+G13","v":769},{"$f":"SQRT((H12^2)+(H13^2))","v":195.13328778042973},{"$f":"I12+I13","v":169},{"$f":"SQRT((J12^2)+(J13^2))","v":43.046486500061768},{"$f":"K12+K13","v":61},{"$f":"SQRT((L12^2)+(L13^2))","v":29.546573405388315},{"$f":"M12+M13","v":63},{"$f":"SQRT((N12^2)+(N13^2))","v":24.698178070456937},{"$f":"O12+O13","v":228},{"$f":"SQRT((P12^2)+(P13^2))","v":140.80127840328723},{"$f":"Q12+Q13","v":56},{"$f":"SQRT((R12^2)+(R13^2))","v":23.600847442411894},{"$f":"S12+S13","v":102},{"$f":"SQRT((T12^2)+(T13^2))","v":34.409301068170507},{"$f":"U12+U13","v":458},{"$f":"SQRT((V12^2)+(V13^2))","v":203.29781110479277},{"$f":"W12+W13","v":220},{"$f":"SQRT((X12^2)+(X13^2))","v":83.815273071201048},{"$f":"Y12+Y13","v":110},{"$f":"SQRT((Z12^2)+(Z13^2))","v":42.953463189829058},{"$f":"AA12+AA13","v":562},{"$f":"SQRT((AB12^2)+(AB13^2))","v":152.43359209832983},{"$f":"AC12+AC13","v":58},{"$f":"SQRT((AD12^2)+(AD13^2))","v":26.832815729997478},{"$f":"AE12+AE13","v":102},{"$f":"SQRT((AF12^2)+(AF13^2))","v":36.76955262170047}]
[]
[]
[]
[]
[]
[]
[]
[]
[]
[]
[]
[]
[]
[]
[]
[]
[]
[]
[]
[null,"Calculated B25041. BEDROOMS "]
[null,"Universe:  HOUSING UNITS"]
[null,"Data Set: 2013-2017 American Community Survey 5-Year Estimates"]
[]
[null,null,"Acworth",null,"Charlestown",null,"Claremont",null,"Cornish",null,"Croydon",null,"Goshen",null,"Grantham",null,"Langdon",null,"Lempster",null,"Newport",null,"Plainfield",null,"Springfield",null,"Sunapee",null,"Unity",null,"Washington"]
[null,null,"Estimate","Margin Of Error","Estimate","Margin Of Error","Estimate","Margin Of Error","Estimate","Margin Of Error","Estimate","Margin Of Error","Estimate","Margin Of Error","Estimate","Margin Of Error","Estimate","Margin Of Error","Estimate","Margin Of Error","Estimate","Margin Of Error","Estimate","Margin Of Error","Estimate","Margin Of Error","Estimate","Margin Of Error","Estimate","Margin Of Error","Estimate","Margin Of Error"]
[null,"Total:",619,58,2338,190,6317,221,826,70,414,68,405,59,1670,179,354,39,687,87,2742,249,1015,80,680,92,2632,170,673,66,1194,93]
[null,"No bedroom",25,18,86,92,137,104,3,5,9,10,12,12,0,11,0,11,52,27,35,42,4,7,9,14,27,44,16,16,24,20]
[null,"1 bedroom",64,24,236,110,1149,227,59,34,26,18,31,18,64,67,29,20,114,44,220,105,73,35,41,31,154,94,23,12,146,46]
[null,"2 bedrooms",158,37,883,182,2057,302,164,36,126,48,142,39,287,135,105,27,200,57,817,179,217,68,211,69,691,159,228,51,409,95]
[null,"3 bedrooms",247,49,811,180,2180,280,343,67,165,46,154,42,1054,205,134,35,248,64,1137,196,414,76,327,68,1051,172,296,54,427,67]
[null,"4 + bedrooms",125,33.61547262794322,322,129.63024338479042,794,194.19577750301369,257,54.12947441089743,88,32.310988842807021,66,25,265,118.00423721205946,86,27.730849247724095,73,29.832867780352597,533,191.34262462922368,307,74.793047805260613,92,35.341194094144583,709,169.30741271426953,110,34.669871646719429,188,50.960769224963627]
[]
[]
[]
[null,"Calculated B25041. BEDROOMS "]
[null,"Universe:  HOUSING UNITS"]
[null,"Data Set: 2008-2012 American Community Survey 5-Year Estimates"]
[]
[null,null,"Acworth",null,"Charlestown",null,"Claremont",null,"Cornish",null,"Croydon",null,"Goshen",null,"Grantham",null,"Langdon",null,"Lempster",null,"Newport",null,"Plainfield",null,"Springfield",null,"Sunapee",null,"Unity",null,"Washington"]
[null,null,"Estimate","Margin Of Error","Estimate","Margin Of Error","Estimate","Margin Of Error","Estimate","Margin Of Error","Estimate","Margin Of Error","Estimate","Margin Of Error","Estimate","Margin Of Error","Estimate","Margin Of Error","Estimate","Margin Of Error","Estimate","Margin Of Error","Estimate","Margin Of Error","Estimate","Margin Of Error","Estimate","Margin Of Error","Estimate","Margin Of Error","Estimate","Margin Of Error"]
[null,"Total:",482,62,2452,125,6408,215,745,70,392,54,394,53,1662,138,306,47,602,67,2997,217,939,75,678,70,2427,139,724,61,1080,78]
[null,"No bedroom",24,21,20,33,117,84,0,11,5,9,0,11,0,11,5,9,11,10,72,69,0,11,0,11,83,72,10,16,33,26]
[null,"1 bedroom",49,31,258,117,1111,175,44,29,34,18,59,29,17,22,9,8,33,20,462,146,23,24,59,30,79,59,56,42,150,50]
[null,"2 bedrooms",176,43,829,180,2050,239,195,51,134,35,161,46,278,101,104,38,195,45,931,230,191,57,156,45,594,158,256,54,323,66]
[null,"3 bedrooms",158,47,1049,180,2328,234,361,52,183,45,119,28,1009,150,137,42,274,62,1202,187,413,63,303,65,1165,180,332,54,419,66]
[null,"4 + bedrooms",75,31.304951684997057,296,110.05453193758083,802,184.29595763336752,145,50.24937810560445,36,23.409399821439251,55,21.931712199461309,358,102.18121158021175,51,22.135943621178654,89,36.715119501371639,330,107.33592129385204,312,76.485292703891773,160,53.338541412378348,506,148.94629904767692,70,26.92582403567252,155,69.856996786291916]

{"sheet":"PovertyCharacteristics","index":51,"n_rows":82,"n_cols":17,"rows_kept":82,"cut":false,"hidden":true,"merged":[[77,2,78,3],[77,6,78,9],[77,11,78,13],[21,11,21,13],[30,2,31,4],[30,7,31,9],[30,11,31,13],[49,11,49,14],[21,3,21,5],[21,7,21,9],[21,15,21,16],[49,15,49,16],[64,15,64,16],[64,3,64,5],[64,7,64,9],[64,11,64,14]]}
[]
[null,null,{"$f":"CntyDataLink!A86","v":"Grantham"}]
[null,null,"POVERTY CHARACTERISTICS"]
[]
[]
[]
[]
[]
[]
[]
[]
[]
[]
[]
[]
[]
[]
[null,null,null,null,null,null,null,null,null,null,null,null,"2012 Income (2008-2012 ACS)"]
[null,null,null,null,null,null,null,null,null,null,null,null,"2017 Income (2013-2017 ACS)"]
[null,null,null,null,null,null,null,null,null,null,null,null,"2022 Income (2018-2022 ACS)"]
[]
[null,null,null,"2012 Inc below Poverty Level",null,null,null,"2017 Inc below Poverty Level",null,null,null,"2022 Inc below Poverty Level",null,null,null,"Statistically Significant Change"]
[null,null,"Population","Estimate","Margin of Error","% of Population in Poverty",null,"Estimate","Margin of Error","% of Population in Poverty",null,"Estimate","Margin of Error","% of Population in Poverty",null,"2012-2022","2018-2022"]
[null,null," Total Individuals living Poverty",{"$f":"CntyDataLinkPrior10YearEstimate!$D$124","v":161},{"$f":"CntyDataLinkPrior10YearEstimate!$E$124","v":113},{"$f":"D24/CntyDataLinkPrior10YearEstimate!$B$124","v":4.8074051955807703E-2},null,{"$f":"CntyDataLinkPrior5YearEstimates!$D$124","v":190},{"$f":"CntyDataLinkPrior5YearEstimates!$E$124","v":102},{"$f":"H24/CntyDataLinkPrior5YearEstimates!$B$124","v":5.5816686251468857E-2},null,{"$f":"CntyDataLink!$D$124","v":477},{"$f":"CntyDataLink!$E$124","v":288},{"$f":"L24/CntyDataLink!$B$124","v":0.1424731182795699},null,{"$f":"StatisticallySignificantCalcs!$A112","v":"N"},{"$f":"StatisticallySignificantCalcs!$J$112","v":"N"}]
[null,null,"Under 5 yrs.",{"$f":"CntyDataLinkPrior10YearEstimate!$F$124","v":8},{"$f":"CntyDataLinkPrior10YearEstimate!$G$124","v":17.029386365926403},{"$f":"D25/(CntyDataLinkPrior10YearEstimate!$F$124+CntyDataLinkPrior10YearEstimate!$R$124)","v":9.6385542168674704E-2},null,{"$f":"CntyDataLinkPrior5YearEstimates!$F$124","v":11},{"$f":"CntyDataLinkPrior5YearEstimates!$G$124","v":64.288412641781719},{"$f":"H25/(CntyDataLinkPrior5YearEstimates!$F$124+CntyDataLinkPrior5YearEstimates!$R$124)","v":7.4324324324324328E-2},null,{"$f":"CntyDataLink!$F$124","v":7},{"$f":"CntyDataLink!$G$124","v":37},{"$f":"L25/(CntyDataLink!$F$124+CntyDataLink!$R$124)","v":7.2916666666666671E-2},null,{"$f":"StatisticallySignificantCalcs!$A113","v":"N"},{"$f":"StatisticallySignificantCalcs!$J$113","v":"N"}]
[null,null,"5 to 17 yrs.",{"$f":"CntyDataLinkPrior10YearEstimate!$H$124","v":26},{"$f":"CntyDataLinkPrior10YearEstimate!$I$124","v":42.871902220452036},{"$f":"D26/(CntyDataLinkPrior10YearEstimate!$H$124+CntyDataLinkPrior10YearEstimate!$T$124)","v":4.7186932849364795E-2},null,{"$f":"CntyDataLinkPrior5YearEstimates!$H$124","v":11},{"$f":"CntyDataLinkPrior5YearEstimates!$I$124","v":35.608987629529715},{"$f":"H26/(CntyDataLinkPrior5YearEstimates!$H$124+CntyDataLinkPrior5YearEstimates!$T$124)","v":2.3861171366594359E-2},null,{"$f":"CntyDataLink!$H$124","v":54},{"$f":"CntyDataLink!$I$124","v":68.154236845554948},{"$f":"L26/(CntyDataLink!$H$124+CntyDataLink!$T$124)","v":0.13810741687979539},null,{"$f":"StatisticallySignificantCalcs!$A114","v":"N"},{"$f":"StatisticallySignificantCalcs!$J$114","v":"N"}]
[null,null,"18 to 64 yrs.",{"$f":"CntyDataLinkPrior10YearEstimate!$J$124","v":127},{"$f":"CntyDataLinkPrior10YearEstimate!$K$124","v":95.310020459550842},{"$f":"D27/(CntyDataLinkPrior10YearEstimate!$J$124+CntyDataLinkPrior10YearEstimate!$V$124)","v":6.3915450427780574E-2},null,{"$f":"CntyDataLinkPrior5YearEstimates!$J$124","v":161},{"$f":"CntyDataLinkPrior5YearEstimates!$K$124","v":103.00970828033637},{"$f":"H27/(CntyDataLinkPrior5YearEstimates!$J$124+CntyDataLinkPrior5YearEstimates!$V$124)","v":7.8383641674780916E-2},null,{"$f":"CntyDataLink!$J$124","v":388},{"$f":"CntyDataLink!$K$124","v":277.82728447724497},{"$f":"L27/(CntyDataLink!$J$124+CntyDataLink!$V$124)","v":0.19969119917653114},null,{"$f":"StatisticallySignificantCalcs!$A115","v":"N"},{"$f":"StatisticallySignificantCalcs!$J$115","v":"N"}]
[null,null,"65 to 74 yrs.",{"$f":"CntyDataLinkPrior10YearEstimate!$L$124","v":0},{"$f":"CntyDataLinkPrior10YearEstimate!$M$124","v":15.556349186104045},{"$f":"D28/(CntyDataLinkPrior10YearEstimate!$L$124+CntyDataLinkPrior10YearEstimate!$X$124)","v":0},null,{"$f":"CntyDataLinkPrior5YearEstimates!$L$124","v":7},{"$f":"CntyDataLinkPrior5YearEstimates!$M$124","v":17.029386365926403},{"$f":"H28/(CntyDataLinkPrior5YearEstimates!$L$124+CntyDataLinkPrior5YearEstimates!$X$124)","v":2.0289855072463767E-2},null,{"$f":"CntyDataLink!$L$124","v":0},{"$f":"CntyDataLink!$M$124","v":16.970562748477139},{"$f":"L28/(CntyDataLink!$L$124+CntyDataLink!$X$124)","v":0},null,{"$f":"StatisticallySignificantCalcs!$A116","v":"N"},{"$f":"StatisticallySignificantCalcs!$J$116","v":"N"}]
[null,null,"75 yrs. & Over",{"$f":"CntyDataLinkPrior10YearEstimate!$N$124","v":0},{"$f":"CntyDataLinkPrior10YearEstimate!$O$124","v":15.556349186104045},{"$f":"D29/(CntyDataLinkPrior10YearEstimate!$N$124+CntyDataLinkPrior10YearEstimate!$Z$124)","v":0},null,{"$f":"CntyDataLinkPrior5YearEstimates!$N$124","v":0},{"$f":"CntyDataLinkPrior5YearEstimates!$O$124","v":15.556349186104045},{"$f":"H29/(CntyDataLinkPrior5YearEstimates!$N$124+CntyDataLinkPrior5YearEstimates!$Z$124)","v":0},null,{"$f":"CntyDataLink!$N$124","v":28},{"$f":"CntyDataLink!$O$124","v":45.607017003965517},{"$f":"L29/(CntyDataLink!$N$124+CntyDataLink!$Z$124)","v":8.4337349397590355E-2},null,{"$f":"StatisticallySignificantCalcs!$A117","v":"N"},{"$f":"StatisticallySignificantCalcs!$J$117","v":"N"}]
[]
[null,null,"Source: 2008-2012 American Community Survey  Table B1701",null,null,null,null,"Source: 2013-2017 American Community Survey  Table B1701",null,null,null,"Source: 2018-2022 American Community Survey  Table B1701"]
[]
[]
[]
[]
[]
[]
[]
[]
[]
[]
[]
[]
[]
[]
[]
[]
[]
[]
[null,null,null,{"$f":"D22","v":"2012 Inc below Poverty Level"},null,null,null,{"$f":"H22","v":"2017 Inc below Poverty Level"},null,null,null,{"$f":"L22","v":"2022 Inc below Poverty Level"},null,null,null,"Statistically Significant Change"]
[null,null,null,"Estimate","Margin of Error","% of Family Type in Poverty",null,"Estimate","Margin of Error ","% of Family Type in Poverty",null,"Estimate","Margin of Error ","% of Family Type in Poverty",null,{"$f":"P23","v":"2012-2022"},{"$f":"Q23","v":"2018-2022"}]
[]
[]
[null,null,"Total Households",{"$f":"CntyDataLinkPrior10YearEstimate!$AD$124","v":61},{"$f":"CntyDataLinkPrior10YearEstimate!$AE$124","v":56},{"$f":"$D54/($D54+$D68)","v":4.1838134430727023E-2},null,{"$f":"CntyDataLinkPrior5YearEstimates!$AD$124","v":120},{"$f":"CntyDataLinkPrior5YearEstimates!$AE$124","v":86},{"$f":"$H54/($H54+$H68)","v":7.7269800386349008E-2},null,{"$f":"CntyDataLink!$AD$124","v":96},{"$f":"CntyDataLink!$AE$124","v":73},{"$f":"$L54/($L54+$L68)","v":8.4880636604774531E-2},null,{"$f":"StatisticallySignificantCalcs!$A$94","v":"N"},{"$f":"StatisticallySignificantCalcs!$J$94","v":"N"}]
[null,null,"Family Households",{"$f":"CntyDataLinkPrior10YearEstimate!$AF$124","v":8},{"$f":"CntyDataLinkPrior10YearEstimate!$AG$124","v":13},{"$f":"$D55/($D55+$D69)","v":7.7369439071566732E-3},null,{"$f":"CntyDataLinkPrior5YearEstimates!$AF$124","v":27},{"$f":"CntyDataLinkPrior5YearEstimates!$AG$124","v":26},{"$f":"$H55/($H55+$H69)","v":3.0201342281879196E-2},null,{"$f":"CntyDataLink!$AF$124","v":43},{"$f":"CntyDataLink!$AG$124","v":40},{"$f":"$L55/($L55+$L69)","v":5.8904109589041097E-2},null,{"$f":"StatisticallySignificantCalcs!$A$95","v":"N"},{"$f":"StatisticallySignificantCalcs!$J$95","v":"N"}]
[null,null,"Married Couple Fam HH",{"$f":"CntyDataLinkPrior10YearEstimate!$AH$124","v":0},{"$f":"CntyDataLinkPrior10YearEstimate!$AI$124","v":11},{"$f":"$D56/($D56+$D70)","v":0},null,{"$f":"CntyDataLinkPrior5YearEstimates!$AH$124","v":11},{"$f":"CntyDataLinkPrior5YearEstimates!$AI$124","v":17},1.6344725111441308E-2,null,{"$f":"CntyDataLink!$AH$124","v":28},{"$f":"CntyDataLink!$AI$124","v":35},4.4871794871794872E-2,null,{"$f":"StatisticallySignificantCalcs!$A$96","v":"N"},{"$f":"StatisticallySignificantCalcs!$J$96","v":"N"}]
[null,null,"M C Fam HH w/Children",{"$f":"CntyDataLinkPrior10YearEstimate!$BN$124","v":0},{"$f":"CntyDataLinkPrior10YearEstimate!$BO$124","v":11},0,null,{"$f":"CntyDataLinkPrior5YearEstimates!$BN$124","v":0},{"$f":"CntyDataLinkPrior5YearEstimates!$BO$124","v":11},0,null,{"$f":"CntyDataLink!$BN$124","v":21},{"$f":"CntyDataLink!$BO$124","v":33},0.1044776119402985,null,{"$f":"StatisticallySignificantCalcs!$A$97","v":"N"},{"$f":"StatisticallySignificantCalcs!$J$97","v":"N"}]
[null,null,"Male Head of Family HH ",{"$f":"CntyDataLinkPrior10YearEstimate!$AL$124","v":0},{"$f":"CntyDataLinkPrior10YearEstimate!$AM$124","v":11},0,null,{"$f":"CntyDataLinkPrior5YearEstimates!$AL$124","v":7},{"$f":"CntyDataLinkPrior5YearEstimates!$AM$124","v":12},7.0707070707070704E-2,null,{"$f":"CntyDataLink!$AL$124","v":8},{"$f":"CntyDataLink!$AM$124","v":12},0.14545454545454545,null,{"$f":"StatisticallySignificantCalcs!$A$98","v":"N"},{"$f":"StatisticallySignificantCalcs!$J$98","v":"N"}]
[null,null,"Male Head of HH w/Children",{"$f":"CntyDataLinkPrior10YearEstimate!$BP$124","v":0},{"$f":"CntyDataLinkPrior10YearEstimate!$BQ$124","v":11},0,null,{"$f":"CntyDataLinkPrior5YearEstimates!$BP$124","v":7},{"$f":"CntyDataLinkPrior5YearEstimates!$BQ$124","v":12},0.33333333333333331,null,{"$f":"CntyDataLink!$BP$124","v":8},{"$f":"CntyDataLink!$BQ$124","v":12},0.53333333333333333,null,{"$f":"StatisticallySignificantCalcs!$A$99","v":"N"},{"$f":"StatisticallySignificantCalcs!$J$99","v":"N"}]
[null,null,"Female Head of Family HH ",{"$f":"CntyDataLinkPrior10YearEstimate!$AN$124","v":8},{"$f":"CntyDataLinkPrior10YearEstimate!$AO$124","v":13},0.10126582278481013,null,{"$f":"CntyDataLinkPrior5YearEstimates!$AN$124","v":9},{"$f":"CntyDataLinkPrior5YearEstimates!$AO$124","v":14},7.3770491803278687E-2,null,{"$f":"CntyDataLink!$AN$124","v":7},{"$f":"CntyDataLink!$AO$124","v":13},0.13725490196078433,null,{"$f":"StatisticallySignificantCalcs!$A$100","v":"N"},{"$f":"StatisticallySignificantCalcs!$J$100","v":"N"}]
[null,null,"Female Head of HH w/Children",{"$f":"CntyDataLinkPrior10YearEstimate!$BR$124","v":8},{"$f":"CntyDataLinkPrior10YearEstimate!$BS$124","v":13},0.2,null,{"$f":"CntyDataLinkPrior5YearEstimates!$BR$124","v":9},{"$f":"CntyDataLinkPrior5YearEstimates!$BS$124","v":14},0.12676056338028169,null,{"$f":"CntyDataLink!$BR$124","v":7},{"$f":"CntyDataLink!$BS$124","v":13},0.23333333333333334,null,{"$f":"StatisticallySignificantCalcs!$A$101","v":"N"},{"$f":"StatisticallySignificantCalcs!$J$101","v":"N"}]
[null,null,"Non-Family HH ",{"$f":"CntyDataLinkPrior10YearEstimate!$AP$124","v":53},{"$f":"CntyDataLinkPrior10YearEstimate!$AQ$124","v":54},0.125,null,{"$f":"CntyDataLinkPrior5YearEstimates!$AP$124","v":93},{"$f":"CntyDataLinkPrior5YearEstimates!$AQ$124","v":85},0.14112291350531109,null,{"$f":"CntyDataLink!$AP$124","v":53},{"$f":"CntyDataLink!$AQ$124","v":62},0.13216957605985039,null,{"$f":"StatisticallySignificantCalcs!$A$102","v":"N"},{"$f":"StatisticallySignificantCalcs!$J$102","v":"N"}]
[]
[null,"Data from the American Community Survey are estimates."]
[null,null,null,"2012  Inc at or Above Poverty Level",null,null,null,"2017 Inc at or Above Poverty Level",null,null,null,"2022 Inc at or above Poverty Level",null,null,null,"Statistically Significant Change"]
[null,null,"Households","Estimate","Margin of Error","% of Family Type above Poverty",null,"Estimate","Margin of Error","% of Family Type above Poverty",null,"Estimate","Margin of Error","% of Family Type above Poverty",null,{"$f":"P51","v":"2012-2022"},{"$f":"Q51","v":"2018-2022"}]
[]
[null,null,"Total Households",{"$f":"CntyDataLinkPrior10YearEstimate!$AV$124","v":1397},{"$f":"CntyDataLinkPrior10YearEstimate!$AW$124","v":107},{"$f":"$D68/($D68+$D54)","v":0.95816186556927296},null,{"$f":"CntyDataLinkPrior5YearEstimates!$AV$124","v":1433},{"$f":"CntyDataLinkPrior5YearEstimates!$AW$124","v":133},{"$f":"$H68/($H68+$H54)","v":0.92273019961365099},null,{"$f":"CntyDataLink!$AV$124","v":1035},{"$f":"CntyDataLink!$AW$124","v":150},{"$f":"$L68/($L68+$L54)","v":0.91511936339522548},null,{"$f":"StatisticallySignificantCalcs!$A$103","v":"Y"},{"$f":"StatisticallySignificantCalcs!$J$103","v":"Y"}]
[null,null,"Family Households",{"$f":"CntyDataLinkPrior10YearEstimate!$AX$124","v":1026},{"$f":"CntyDataLinkPrior10YearEstimate!$AY$124","v":79},{"$f":"$D69/($D69+$D55)","v":0.99226305609284338},null,{"$f":"CntyDataLinkPrior5YearEstimates!$AX$124","v":867},{"$f":"CntyDataLinkPrior5YearEstimates!$AY$124","v":91},{"$f":"$H69/($H69+$H55)","v":0.96979865771812079},null,{"$f":"CntyDataLink!$AX$124","v":687},{"$f":"CntyDataLink!$AY$124","v":104},{"$f":"$L69/($L69+$L55)","v":0.94109589041095887},null,{"$f":"StatisticallySignificantCalcs!$A$104","v":"Y"},{"$f":"StatisticallySignificantCalcs!$J$104","v":"Y"}]
[null,null,"Married Couple Fam HH",{"$f":"CntyDataLinkPrior10YearEstimate!$AZ$124","v":872},{"$f":"CntyDataLinkPrior10YearEstimate!$BA$124","v":102},{"$f":"$D70/($D70+$D56)","v":1},null,{"$f":"CntyDataLinkPrior5YearEstimates!$AZ$124","v":662},{"$f":"CntyDataLinkPrior5YearEstimates!$BA$124","v":114},{"$f":"$H70/($H70+$H56)","v":0.98365527488855864},null,{"$f":"CntyDataLink!$AZ$124","v":596},{"$f":"CntyDataLink!$BA$124","v":102},0.95512820512820518,null,{"$f":"StatisticallySignificantCalcs!$A$105","v":"Y"},{"$f":"StatisticallySignificantCalcs!$J$105","v":"N"}]
[null,null,"M C Fam HH w/Children",{"$f":"CntyDataLinkPrior10YearEstimate!$BT$124","v":236},{"$f":"CntyDataLinkPrior10YearEstimate!$BU$124","v":67},1,null,{"$f":"CntyDataLinkPrior5YearEstimates!$BT$124","v":241},{"$f":"CntyDataLinkPrior5YearEstimates!$BU$124","v":61},1,null,{"$f":"CntyDataLink!$BT$124","v":180},{"$f":"CntyDataLink!$BU$124","v":50},0.89552238805970152,null,{"$f":"StatisticallySignificantCalcs!$A$106","v":"N"},{"$f":"StatisticallySignificantCalcs!$J$106","v":"N"}]
[null,null,"Male Head of Family HH ",{"$f":"CntyDataLinkPrior10YearEstimate!$BD$124","v":83},{"$f":"CntyDataLinkPrior10YearEstimate!$BE$124","v":82},1,null,{"$f":"CntyDataLinkPrior5YearEstimates!$BD$124","v":92},{"$f":"CntyDataLinkPrior5YearEstimates!$BE$124","v":72},0.92929292929292928,null,{"$f":"CntyDataLink!$BD$124","v":47},{"$f":"CntyDataLink!$BE$124","v":38},0.8545454545454545,null,{"$f":"StatisticallySignificantCalcs!$A$107","v":"N"},{"$f":"StatisticallySignificantCalcs!$J$107","v":"N"}]
[null,null,"Male Head of HH w/Children",{"$f":"CntyDataLinkPrior10YearEstimate!$BV$124","v":83},{"$f":"CntyDataLinkPrior10YearEstimate!$BW$124","v":82},1,null,{"$f":"CntyDataLinkPrior5YearEstimates!$BV$124","v":14},{"$f":"CntyDataLinkPrior5YearEstimates!$BW$124","v":23},0.66666666666666663,null,{"$f":"CntyDataLink!$BV$124","v":7},{"$f":"CntyDataLink!$BW$124","v":12},0.46666666666666667,null,{"$f":"StatisticallySignificantCalcs!$A$108","v":"N"},{"$f":"StatisticallySignificantCalcs!$J$108","v":"N"}]
[null,null,"Female Head of Family HH ",{"$f":"CntyDataLinkPrior10YearEstimate!$BF$124","v":71},{"$f":"CntyDataLinkPrior10YearEstimate!$BG$124","v":41},0.89873417721518989,null,{"$f":"CntyDataLinkPrior5YearEstimates!$BF$124","v":113},{"$f":"CntyDataLinkPrior5YearEstimates!$BG$124","v":52},0.92622950819672134,null,{"$f":"CntyDataLink!$BF$124","v":44},{"$f":"CntyDataLink!$BG$124","v":29},0.86274509803921573,null,{"$f":"StatisticallySignificantCalcs!$A$109","v":"N"},{"$f":"StatisticallySignificantCalcs!$J$109","v":"Y"}]
[null,null,"Female Head of HH w/Children",{"$f":"CntyDataLinkPrior10YearEstimate!$BX$124","v":32},{"$f":"CntyDataLinkPrior10YearEstimate!$BY$124","v":28},0.8,null,{"$f":"CntyDataLinkPrior5YearEstimates!$BX$124","v":62},{"$f":"CntyDataLinkPrior5YearEstimates!$BY$124","v":42},0.87323943661971826,null,{"$f":"CntyDataLink!$BX$124","v":23},{"$f":"CntyDataLink!$BY$124","v":24},0.76666666666666672,null,{"$f":"StatisticallySignificantCalcs!$A$110","v":"N"},{"$f":"StatisticallySignificantCalcs!$J$110","v":"N"}]
[null,null,"Non-Family HH ",{"$f":"CntyDataLinkPrior10YearEstimate!$BH$124","v":371},{"$f":"CntyDataLinkPrior10YearEstimate!$BI$124","v":123},0.875,null,{"$f":"CntyDataLinkPrior5YearEstimates!$BH$124","v":566},{"$f":"CntyDataLinkPrior5YearEstimates!$BI$124","v":159},0.85887708649468897,null,{"$f":"CntyDataLink!$BH$124","v":348},{"$f":"CntyDataLink!$BI$124","v":139},0.86783042394014964,null,{"$f":"StatisticallySignificantCalcs!$A$111","v":"N"},{"$f":"StatisticallySignificantCalcs!$J$111","v":"Y"}]
[]
[null,null,"Source: 2008-2012 American Community Survey ",null,null,null,"Source: 2013-2017 American Community Survey",null,null,null,null,"Source: 2018-2022 American Community Survey"]
[]
[null,null,"Tables B17010; and B17017",null,null,null,"Tables B17010; and B17017",null,null,null,null,"Tables B17010; and B17017"]
[]
[null,null,"Data from the American Community Survey are estimates."]

{"sheet":"ACS_Table_ B17001","index":52,"n_rows":210,"n_cols":32,"rows_kept":210,"cut":false,"hidden":true,"merged":[]}
[null,"B17001. POVERTY STATUS IN THE PAST 12 MONTHS BY SEX BY AGE"]
[null,"Universe:  POPULATION FOR WHOM POVERTY STATUS IS DETERMINED"]
[null,"Data Set: 2018-2022 American Community Survey 5-Year Estimates"]
[]
[null,null,"Acworth",null,"Charlestown",null,"Claremont",null,"Cornish",null,"Croydon",null,"Goshen",null,"Grantham",null,"Langdon",null,"Lempster",null,"Newport",null,"Plainfield",null,"Springfield",null,"Sunapee",null,"Unity",null,"Washington"]
[null,null,"Estimate","Margin Of Error","Estimate","Margin Of Error","Estimate","Margin Of Error","Estimate","Margin Of Error","Estimate","Margin Of Error","Estimate","Margin Of Error","Estimate","Margin Of Error","Estimate","Margin Of Error","Estimate","Margin Of Error","Estimate","Margin Of Error","Estimate","Margin Of Error","Estimate","Margin Of Error","Estimate","Margin Of Error","Estimate","Margin Of Error","Estimate","Margin Of Error"]
[null,"Total:",927,278,4839,21,12940,47,1902,236,794,165,1002,291,3346,75,717,196,957,200,6231,38,2387,26,933,398,3377,18,1258,195,1042,173]
[null,"Income in the past 12 months below poverty level:",76,71,783,283,2051,563,100,71,81,68,67,37,0,12,89,99,70,47,842,308,147,79,35,23,457,285,164,82,28,35]
[null,"Male:",57,53,447,191,991,327,61,64,51,49,29,32,0,12,38,48,39,28,328,162,113,52,24,19,340,269,39,23,10,17]
[null,"Under 5 years",0,12,92,115,147,120,0,12,6,11,0,12,0,12,9,14,6,8,0,17,0,12,0,12,0,12,0,12,0,12]
[null,"5 years",0,12,0,12,0,19,0,12,0,12,0,12,0,12,0,12,0,12,0,17,0,12,0,12,0,12,0,12,0,12]
[null,"6 to 11 years",0,12,0,12,119,51,0,12,0,12,0,12,0,12,19,24,0,12,0,17,0,12,0,12,0,12,0,12,0,12]
[null,"12 to 14 years",0,12,0,12,0,19,0,12,18,30,0,12,0,12,0,12,0,12,0,17,0,12,0,12,0,12,0,12,0,12]
[null,"15 years",15,30,0,12,0,19,0,12,0,12,0,12,0,12,0,12,0,12,0,17,0,12,0,12,0,12,7,12,0,12]
[null,"16 and 17 years",0,12,0,12,22,26,0,12,0,12,0,12,0,12,0,12,0,12,3,8,0,12,0,12,0,12,0,12,0,12]
[null,"18 to 24 years",0,12,29,58,125,95,3,4,1,2,1,3,0,12,1,2,0,12,99,84,0,12,0,12,0,12,0,12,0,12]
[null,"25 to 34 years",20,29,41,60,103,80,0,12,0,12,0,12,0,12,7,10,0,12,78,92,13,19,0,12,9,14,0,12,0,12]
[null,"35 to 44 years",7,10,50,53,107,87,6,8,0,12,6,9,0,12,2,3,3,4,15,24,29,5,3,5,0,12,3,4,0,12]
[null,"45 to 54 years",0,12,26,44,159,146,0,12,15,25,1,3,0,12,0,12,5,7,3,8,0,12,0,12,8,21,7,10,0,12]
[null,"55 to 64 years",0,12,57,89,204,123,7,7,6,9,2,4,0,12,0,12,3,5,68,88,30,25,0,12,316,271,13,16,10,17]
[null,"65 to 74 years",11,14,41,50,5,10,7,7,0,12,18,29,0,12,0,12,22,21,14,23,37,36,14,16,7,11,9,7,0,12]
[null,"75 years and over",4,5,111,154,0,19,38,63,5,9,1,3,0,12,0,12,0,12,48,80,4,6,7,12,0,12,0,12,0,12]
[null,"Female:",19,28,336,182,1060,347,39,24,30,24,38,22,0,12,51,53,31,24,514,218,34,33,11,13,117,89,125,70,18,20]
[null,"Under 5 years",0,12,0,12,109,70,4,6,0,12,0,12,0,12,0,12,0,12,24,31,0,12,0,12,11,18,0,12,0,12]
[null,"5 years",0,12,0,12,0,19,0,12,0,12,0,12,0,12,0,12,0,12,0,17,0,12,0,12,0,12,0,12,0,12]
[null,"6 to 11 years",0,12,47,62,80,70,4,7,0,12,0,12,0,12,19,26,11,15,55,86,0,12,0,12,0,12,0,12,0,12]
[null,"12 to 14 years",0,12,0,12,77,39,0,12,6,11,0,12,0,12,8,13,0,12,0,17,0,12,0,12,29,45,0,12,0,12]
[null,"15 years",0,12,0,12,4,13,0,12,0,12,2,3,0,12,0,12,0,12,0,17,0,12,0,12,0,12,0,12,0,12]
[null,"16 and 17 years",0,12,0,12,14,25,4,6,0,12,2,4,0,12,0,12,0,12,0,17,0,12,0,12,0,12,0,12,0,12]
[null,"18 to 24 years",0,12,0,12,25,27,0,12,0,12,0,12,0,12,0,12,0,12,33,34,0,12,0,12,12,22,42,34,0,12]
[null,"25 to 34 years",0,12,40,51,143,134,14,14,0,12,0,12,0,12,19,17,5,8,33,42,0,12,0,12,10,16,26,28,4,6]
[null,"35 to 44 years",0,12,86,80,212,140,3,6,10,12,0,12,0,12,0,12,0,12,50,76,0,12,0,12,0,12,26,21,0,12]
[null,"45 to 54 years",0,12,86,97,181,121,4,5,0,12,7,10,0,12,1,4,0,12,69,76,6,11,8,12,0,12,4,6,0,12]
[null,"55 to 64 years",17,28,56,72,126,114,0,12,10,12,5,8,0,12,0,12,11,12,57,61,9,13,0,12,21,33,15,14,14,19]
[null,"65 to 74 years",2,3,16,29,33,40,2,3,2,3,20,16,0,12,3,4,4,8,71,65,19,27,0,12,7,11,12,10,0,12]
[null,"75 years and over",0,12,5,9,56,60,4,6,2,3,2,3,0,12,1,3,0,12,122,107,0,12,3,4,27,43,0,12,0,12]
[null,"Income in the past 12 months at or above poverty level:",851,289,4056,284,10889,565,1802,240,713,159,935,275,3346,75,628,167,887,196,5389,310,2240,79,898,401,2920,283,1094,180,1014,173]
[null,"Male:",382,108,1954,223,5526,422,874,149,375,85,380,90,1458,156,338,126,416,97,3010,263,1039,123,539,297,1647,199,561,88,490,97]
[null,"Under 5 years",20,14,60,93,166,109,36,25,13,11,17,24,0,12,34,30,42,29,100,80,80,64,4,7,23,33,11,11,4,7]
[null,"5 years",4,6,50,78,25,46,13,10,5,7,0,12,49,57,29,41,0,12,59,56,0,12,0,12,0,12,0,12,2,3]
[null,"6 to 11 years",55,58,56,55,338,132,55,41,21,15,34,24,278,146,7,6,42,31,51,54,54,38,57,67,115,63,41,39,20,21]
[null,"12 to 14 years",7,11,39,58,181,107,22,15,6,6,0,12,95,85,2,3,6,6,29,29,55,42,6,9,50,36,17,14,13,12]
[null,"15 years",0,12,34,41,0,19,9,13,6,7,8,13,0,12,6,9,8,14,27,33,0,12,0,12,24,23,3,4,0,12]
[null,"16 and 17 years",0,12,120,90,178,117,7,8,0,12,13,13,0,12,0,12,6,7,195,121,59,49,25,27,28,29,7,12,0,12]
[null,"18 to 24 years",12,14,134,70,381,153,38,26,12,13,12,15,39,40,6,6,9,11,492,203,78,38,41,46,82,42,13,11,29,26]
[null,"25 to 34 years",50,34,249,156,746,190,80,35,44,26,34,21,24,42,70,49,29,18,621,194,139,78,57,40,305,127,46,21,40,19]
[null,"35 to 44 years",26,21,250,120,849,211,110,56,53,29,51,24,97,71,43,35,63,32,183,121,83,39,32,33,164,82,37,19,64,52]
[null,"45 to 54 years",38,33,238,111,898,200,86,34,36,18,44,29,266,120,25,13,51,25,446,122,104,56,82,76,252,101,71,38,52,27]
[null,"55 to 64 years",103,42,248,114,527,149,157,64,78,49,96,50,194,124,51,23,76,35,433,226,160,64,174,172,197,80,124,44,129,57]
[null,"65 to 74 years",36,19,343,129,889,207,192,69,74,38,34,17,209,125,45,19,68,30,262,115,142,60,41,23,264,87,131,43,94,26]
[null,"75 years and over",31,18,133,74,348,120,69,35,27,17,37,22,207,109,20,12,16,10,112,68,85,58,20,20,143,96,60,23,43,23]
[null,"Female:",469,198,2102,285,5363,423,928,156,338,92,555,214,1888,166,290,67,471,131,2379,257,1201,107,359,132,1273,167,533,106,524,117]
[null,"Under 5 years",12,16,161,106,272,112,50,29,30,36,7,8,0,12,2,3,23,20,66,55,149,73,15,25,36,33,0,12,18,17]
[null,"5 years",0,12,59,97,118,123,13,11,3,4,0,12,47,51,7,9,5,7,0,17,7,10,0,12,8,13,0,12,2,4]
[null,"6 to 11 years",69,70,132,106,256,129,38,21,18,19,22,17,44,47,8,13,45,36,56,76,59,38,4,6,28,28,58,37,11,14]
[null,"12 to 14 years",42,57,96,65,191,94,18,14,5,6,13,11,0,12,9,10,20,19,44,51,11,11,4,6,15,19,31,26,30,29]
[null,"15 years",0,12,34,36,52,46,0,12,0,12,11,17,41,48,0,12,0,12,0,17,18,22,0,12,7,12,2,4,8,13]
[null,"16 and 17 years",0,12,15,23,187,88,5,6,2,3,43,60,156,120,1,4,19,20,0,17,49,42,3,5,24,24,3,4,6,10]
[null,"18 to 24 years",24,30,45,60,403,131,16,17,19,19,23,31,235,135,15,24,23,17,147,117,23,27,10,16,85,50,45,40,24,29]
[null,"25 to 34 years",52,43,205,107,624,164,131,59,49,35,70,37,0,12,53,31,68,54,277,123,205,119,59,46,208,112,29,19,51,28]
[null,"35 to 44 years",71,55,194,99,440,133,78,34,41,26,67,31,223,147,23,16,68,41,403,139,141,73,31,40,145,69,27,15,25,18]
[null,"45 to 54 years",29,22,198,98,785,179,110,40,31,21,23,15,180,96,17,9,69,43,452,171,137,56,122,83,87,41,84,34,85,39]
[null,"55 to 64 years",72,35,416,166,751,199,227,138,43,21,87,43,514,195,79,27,49,24,480,225,171,50,30,22,191,72,95,27,94,35]
[null,"65 to 74 years",73,30,389,126,896,191,143,44,44,17,27,12,208,109,44,16,42,19,235,142,146,71,59,34,314,92,89,29,136,39]
[null,"75 years and over",25,18,158,78,388,141,99,43,53,52,162,103,240,134,32,25,40,38,219,97,85,41,22,20,125,103,70,35,34,22]
[]
[]
[]
[null,"Calculated Table B17001. POVERTY STATUS IN THE PAST 12 MONTHS BY SEX BY AGE"]
[null,"Universe:  POPULATION FOR WHOM POVERTY STATUS IS DETERMINED"]
[null,"Data Set: 2018-2022 American Community Survey 5-Year Estimates"]
[]
[null,null,"Acworth",null,"Charlestown",null,"Claremont",null,"Cornish",null,"Croydon",null,"Goshen",null,"Grantham",null,"Langdon",null,"Lempster",null,"Newport",null,"Plainfield",null,"Springfield",null,"Sunapee",null,"Unity",null,"Washington"]
[null,null,"Estimate","Margin Of Error","Estimate","Margin Of Error","Estimate","Margin Of Error","Estimate","Margin Of Error","Estimate","Margin Of Error","Estimate","Margin Of Error","Estimate","Margin Of Error","Estimate","Margin Of Error","Estimate","Margin Of Error","Estimate","Margin Of Error","Estimate","Margin Of Error","Estimate","Margin Of Error","Estimate","Margin Of Error","Estimate","Margin Of Error","Estimate","Margin Of Error"]
[null,"Total:",{"$f":"C7","v":927},{"$f":"D7","v":278},4839,21,12940,47,1902,236,794,165,1002,291,3346,75,717,196,957,200,6231,38,2387,26,933,398,3377,18,1258,195,1042,173]
[null,"Income in the past 12 months below poverty level:",{"$f":"C8","v":76},71,783,283,2051,563,100,71,81,68,67,37,0,12,89,99,70,47,842,308,147,79,35,23,457,285,164,82,28,35]
[null,"Under 5 years",{"$f":"C10+C24","v":0},{"$f":"SQRT(((D10^2))+((D34^2)))","v":30.463092423455635},{"$f":"E10+E24","v":92},{"$f":"SQRT(((F10^2))+((F34^2)))","v":135.67977004697494},{"$f":"G10+G24","v":256},{"$f":"SQRT(((H10^2))+((H34^2)))","v":165.51737068960466},{"$f":"I10+I24","v":4},{"$f":"SQRT(((J10^2))+((J34^2)))","v":16.970562748477139},{"$f":"K10+K24","v":6},{"$f":"SQRT(((L10^2))+((L34^2)))","v":16.278820596099706},{"$f":"M10+M24","v":0},{"$f":"SQRT(((N10^2))+((N34^2)))","v":14.422205101855956},{"$f":"O10+O24","v":0},{"$f":"SQRT(((P10^2))+((P34^2)))","v":16.970562748477139},{"$f":"Q10+Q24","v":9},{"$f":"SQRT(((R10^2))+((R34^2)))","v":18.439088914585774},{"$f":"S10+S24","v":6},{"$f":"SQRT(((T10^2))+((T34^2)))","v":14.422205101855956},{"$f":"U10+U24","v":24},{"$f":"SQRT(((V10^2))+((V34^2)))","v":63.324560795950255},{"$f":"W10+W24","v":0},{"$f":"SQRT(((X10^2))+((X34^2)))","v":17.691806012954132},{"$f":"Y10+Y24","v":0},{"$f":"SQRT(((Z10^2))+((Z34^2)))","v":16.970562748477139},{"$f":"AA10+AA24","v":11},{"$f":"SQRT(((AB10^2))+((AB34^2)))","v":35.114099732158877},{"$f":"AC10+AC24","v":0},{"$f":"SQRT(((AD10^2))+((AD34^2)))","v":18.439088914585774},{"$f":"AE10+AE24","v":0},{"$f":"SQRT(((AF10^2))+((AF34^2)))","v":22.472205054244231}]
[null,"5 to 17 years",{"$f":"C11+C12+C13+C14+C15+C25+C26+C27+C28+C29","v":15},{"$f":"SQRT((D11^2)+(D12^2)+(D13^2)+(D14^2)+(D15^2)+(D25^2)+(D26^2)+(D27^2)+(D28)+(D29^2))","v":45.431266766402189},{"$f":"E11+E12+E13+E14+E15+E25+E26+E27+E28+E29","v":47},{"$f":"SQRT((F11^2)+(F12^2)+(F13^2)+(F14^2)+(F15^2)+(F25^2)+(F26^2)+(F27^2)+(F28)+(F29^2))","v":70.767224051816527},{"$f":"G11+G12+G13+G14+G15+G25+G26+G27+G28+G29","v":316},{"$f":"SQRT((H11^2)+(H12^2)+(H13^2)+(H14^2)+(H15^2)+(H25^2)+(H26^2)+(H27^2)+(H28)+(H29^2))","v":108.53570840972108},{"$f":"I11+I12+I13+I14+I15+I25+I26+I27+I28+I29","v":8},{"$f":"SQRT((J11^2)+(J12^2)+(J13^2)+(J14^2)+(J15^2)+(J25^2)+(J26^2)+(J27^2)+(J28)+(J29^2))","v":33.241540277189323},{"$f":"K11+K12+K13+K14+K15+K25+K26+K27+K28+K29","v":24},{"$f":"SQRT((L11^2)+(L12^2)+(L13^2)+(L14^2)+(L15^2)+(L25^2)+(L26^2)+(L27^2)+(L28)+(L29^2))","v":45.177427992306072},{"$f":"M11+M12+M13+M14+M15+M25+M26+M27+M28+M29","v":4},{"$f":"SQRT((N11^2)+(N12^2)+(N13^2)+(N14^2)+(N15^2)+(N25^2)+(N26^2)+(N27^2)+(N28)+(N29^2))","v":34.219877264537345},{"$f":"O11+O12+O13+O14+O15+O25+O26+O27+O28+O29","v":0},{"$f":"SQRT((P11^2)+(P12^2)+(P13^2)+(P14^2)+(P15^2)+(P25^2)+(P26^2)+(P27^2)+(P28)+(P29^2))","v":36.166282640050248},{"$f":"Q11+Q12+Q13+Q14+Q15+Q25+Q26+Q27+Q28+Q29","v":46},{"$f":"SQRT((R11^2)+(R12^2)+(R13^2)+(R14^2)+(R15^2)+(R25^2)+(R26^2)+(R27^2)+(R28)+(R29^2))","v":47.927027865287037},{"$f":"S11+S12+S13+S14+S15+S25+S26+S27+S28+S29","v":11},{"$f":"SQRT((T11^2)+(T12^2)+(T13^2)+(T14^2)+(T15^2)+(T25^2)+(T26^2)+(T27^2)+(T28)+(T29^2))","v":37.269290307168447},{"$f":"U11+U12+U13+U14+U15+U25+U26+U27+U28+U29","v":58},{"$f":"SQRT((V11^2)+(V12^2)+(V13^2)+(V14^2)+(V15^2)+(V25^2)+(V26^2)+(V27^2)+(V28)+(V29^2))","v":97.467943448089642},{"$f":"W11+W12+W13+W14+W15+W25+W26+W27+W28+W29","v":0},{"$f":"SQRT((X11^2)+(X12^2)+(X13^2)+(X14^2)+(X15^2)+(X25^2)+(X26^2)+(X27^2)+(X28)+(X29^2))","v":36.166282640050248},{"$f":"Y11+Y12+Y13+Y14+Y15+Y25+Y26+Y27+Y28+Y29","v":0},{"$f":"SQRT((Z11^2)+(Z12^2)+(Z13^2)+(Z14^2)+(Z15^2)+(Z25^2)+(Z26^2)+(Z27^2)+(Z28)+(Z29^2))","v":36.166282640050248},{"$f":"AA11+AA12+AA13+AA14+AA15+AA25+AA26+AA27+AA28+AA29","v":29},{"$f":"SQRT((AB11^2)+(AB12^2)+(AB13^2)+(AB14^2)+(AB15^2)+(AB25^2)+(AB26^2)+(AB27^2)+(AB28)+(AB29^2))","v":56.471231613981999},{"$f":"AC11+AC12+AC13+AC14+AC15+AC25+AC26+AC27+AC28+AC29","v":7},{"$f":"SQRT((AD11^2)+(AD12^2)+(AD13^2)+(AD14^2)+(AD15^2)+(AD25^2)+(AD26^2)+(AD27^2)+(AD28)+(AD29^2))","v":36.166282640050248},{"$f":"AE11+AE12+AE13+AE14+AE15+AE25+AE26+AE27+AE28+AE29","v":0},{"$f":"SQRT((AF11^2)+(AF12^2)+(AF13^2)+(AF14^2)+(AF15^2)+(AF25^2)+(AF26^2)+(AF27^2)+(AF28)+(AF29^2))","v":36.166282640050248}]
[null,"18 to 64 years",{"$f":"C16+C17+C18+C19+C20+C30+C31+C32+C33+C34","v":44},{"$f":"SQRT((D16^2)+(D17^2)+(D18^2)+(D19^2)+(D20^2)+(D30^2)+(D31^2)+(D32^2)+(D33^2)+(D34^2))","v":52.278102490430925},{"$f":"E16+E17+E18+E19+E20+E30+E31+E32+E33+E34","v":471},{"$f":"SQRT((F16^2)+(F17^2)+(F18^2)+(F19^2)+(F20^2)+(F30^2)+(F31^2)+(F32^2)+(F33^2)+(F34^2))","v":208.24984993992192},{"$f":"G16+G17+G18+G19+G20+G30+G31+G32+G33+G34","v":1385},{"$f":"SQRT((H16^2)+(H17^2)+(H18^2)+(H19^2)+(H20^2)+(H30^2)+(H31^2)+(H32^2)+(H33^2)+(H34^2))","v":354.06355361714373},{"$f":"I16+I17+I18+I19+I20+I30+I31+I32+I33+I34","v":37},{"$f":"SQRT((J16^2)+(J17^2)+(J18^2)+(J19^2)+(J20^2)+(J30^2)+(J31^2)+(J32^2)+(J33^2)+(J34^2))","v":31.016124838541646},{"$f":"K16+K17+K18+K19+K20+K30+K31+K32+K33+K34","v":42},{"$f":"SQRT((L16^2)+(L17^2)+(L18^2)+(L19^2)+(L20^2)+(L30^2)+(L31^2)+(L32^2)+(L33^2)+(L34^2))","v":41.448763552125413},{"$f":"M16+M17+M18+M19+M20+M30+M31+M32+M33+M34","v":22},{"$f":"SQRT((N16^2)+(N17^2)+(N18^2)+(N19^2)+(N20^2)+(N30^2)+(N31^2)+(N32^2)+(N33^2)+(N34^2))","v":29.240383034426891},{"$f":"O16+O17+O18+O19+O20+O30+O31+O32+O33+O34","v":0},{"$f":"SQRT((P16^2)+(P17^2)+(P18^2)+(P19^2)+(P20^2)+(P30^2)+(P31^2)+(P32^2)+(P33^2)+(P34^2))","v":37.947331922020552},{"$f":"Q16+Q17+Q18+Q19+Q20+Q30+Q31+Q32+Q33+Q34","v":30},{"$f":"SQRT((R16^2)+(R17^2)+(R18^2)+(R19^2)+(R20^2)+(R30^2)+(R31^2)+(R32^2)+(R33^2)+(R34^2))","v":33.734255586865999},{"$f":"S16+S17+S18+S19+S20+S30+S31+S32+S33+S34","v":27},{"$f":"SQRT((T16^2)+(T17^2)+(T18^2)+(T19^2)+(T20^2)+(T30^2)+(T31^2)+(T32^2)+(T33^2)+(T34^2))","v":31.906112267087632},{"$f":"U16+U17+U18+U19+U20+U30+U31+U32+U33+U34","v":505},{"$f":"SQRT((V16^2)+(V17^2)+(V18^2)+(V19^2)+(V20^2)+(V30^2)+(V31^2)+(V32^2)+(V33^2)+(V34^2))","v":205.17553460390934},{"$f":"W16+W17+W18+W19+W20+W30+W31+W32+W33+W34","v":87},{"$f":"SQRT((X16^2)+(X17^2)+(X18^2)+(X19^2)+(X20^2)+(X30^2)+(X31^2)+(X32^2)+(X33^2)+(X34^2))","v":44.955533585978046},{"$f":"Y16+Y17+Y18+Y19+Y20+Y30+Y31+Y32+Y33+Y34","v":11},{"$f":"SQRT((Z16^2)+(Z17^2)+(Z18^2)+(Z19^2)+(Z20^2)+(Z30^2)+(Z31^2)+(Z32^2)+(Z33^2)+(Z34^2))","v":36.345563690772494},{"$f":"AA16+AA17+AA18+AA19+AA20+AA30+AA31+AA32+AA33+AA34","v":376},{"$f":"SQRT((AB16^2)+(AB17^2)+(AB18^2)+(AB19^2)+(AB20^2)+(AB30^2)+(AB31^2)+(AB32^2)+(AB33^2)+(AB34^2))","v":276.55560019641621},{"$f":"AC16+AC17+AC18+AC19+AC20+AC30+AC31+AC32+AC33+AC34","v":136},{"$f":"SQRT((AD16^2)+(AD17^2)+(AD18^2)+(AD19^2)+(AD20^2)+(AD30^2)+(AD31^2)+(AD32^2)+(AD33^2)+(AD34^2))","v":57.210138961551209},{"$f":"AE16+AE17+AE18+AE19+AE20+AE30+AE31+AE32+AE33+AE34","v":28},{"$f":"SQRT((AF16^2)+(AF17^2)+(AF18^2)+(AF19^2)+(AF20^2)+(AF30^2)+(AF31^2)+(AF32^2)+(AF33^2)+(AF34^2))","v":41.158231254513353}]
[null,"65 to 74 years",{"$f":"C21+C35","v":13},{"$f":"SQRT((D21^2)+(D35^2))","v":14.317821063276353},{"$f":"E21+E35","v":57},{"$f":"SQRT((F21^2)+(F35^2))","v":57.801384066473702},{"$f":"G21+G35","v":38},{"$f":"SQRT((H21^2)+(H35^2))","v":41.231056256176608},{"$f":"I21+I35","v":9},{"$f":"SQRT((J21^2)+(J35^2))","v":7.6157731058639087},{"$f":"K21+K35","v":2},{"$f":"SQRT((L21^2)+(L35^2))","v":12.369316876852981},{"$f":"M21+M35","v":38},{"$f":"SQRT((N21^2)+(N35^2))","v":33.120990323358392},{"$f":"O21+O35","v":0},{"$f":"SQRT((P21^2)+(P35^2))","v":16.970562748477139},{"$f":"Q21+Q35","v":3},{"$f":"SQRT((R21^2)+(R35^2))","v":12.649110640673518},{"$f":"S21+S35","v":26},{"$f":"SQRT((T21^2)+(T35^2))","v":22.472205054244231},{"$f":"U21+U35","v":85},{"$f":"SQRT((V21^2)+(V35^2))","v":68.949256703752795},{"$f":"W21+W35","v":56},{"$f":"SQRT((X21^2)+(X35^2))","v":45},{"$f":"Y21+Y35","v":14},{"$f":"SQRT((Z21^2)+(Z35^2))","v":20},{"$f":"AA21+AA35","v":14},{"$f":"SQRT((AB21^2)+(AB35^2))","v":15.556349186104045},{"$f":"AC21+AC35","v":21},{"$f":"SQRT((AD21^2)+(AD35^2))","v":12.206555615733702},{"$f":"AE21+AE35","v":0},{"$f":"SQRT((AF21^2)+(AF35^2))","v":16.970562748477139}]
[null,"75 years and over",{"$f":"C22+C36","v":4},{"$f":"SQRT((D22^2)+(D36^2))","v":13},{"$f":"E22+E36","v":116},{"$f":"SQRT((F22^2)+(F36^2))","v":154.26276284314372},{"$f":"G22+G36","v":56},{"$f":"SQRT((H22^2)+(H36^2))","v":62.936475910238251},{"$f":"I22+I36","v":42},{"$f":"SQRT((J22^2)+(J36^2))","v":63.28506932918696},{"$f":"K22+K36","v":7},{"$f":"SQRT((L22^2)+(L36^2))","v":9.4868329805051381},{"$f":"M22+M36","v":3},{"$f":"SQRT((N22^2)+(N36^2))","v":4.2426406871192848},{"$f":"O22+O36","v":0},{"$f":"SQRT((P22^2)+(P36^2))","v":16.970562748477139},{"$f":"Q22+Q36","v":1},{"$f":"SQRT((R22^2)+(R36^2))","v":12.369316876852981},{"$f":"S22+S36","v":0},{"$f":"SQRT((T22^2)+(T36^2))","v":16.970562748477139},{"$f":"U22+U36","v":170},{"$f":"SQRT((V22^2)+(V36^2))","v":133.60014970051492},{"$f":"W22+W36","v":4},{"$f":"SQRT((X22^2)+(X36^2))","v":13.416407864998739},{"$f":"Y22+Y36","v":10},{"$f":"SQRT((Z22^2)+(Z36^2))","v":12.649110640673518},{"$f":"AA22+AA36","v":27},{"$f":"SQRT((AB22^2)+(AB36^2))","v":44.643028571099428},{"$f":"AC22+AC36","v":0},{"$f":"SQRT((AD22^2)+(AD36^2))","v":16.970562748477139},{"$f":"AE22+AE36","v":0},{"$f":"SQRT((AF22^2)+(AF36^2))","v":16.970562748477139}]
[null," Income in the past 12 months at or above poverty level ",{"$f":"C37","v":851},289,4056,284,10889,565,1802,240,713,159,935,275,3346,75,628,167,887,196,5389,310,2240,79,898,401,2920,283,1094,180,1014,173]
[null,"Under 5 years",{"$f":"C39+C53","v":32},{"$f":"SQRT(((D39))^2+((D53))^2)","v":21.2602916254693},{"$f":"E39+E53","v":221},{"$f":"SQRT(((F39))^2+((F53))^2)","v":141.01418368376991},{"$f":"G39+G53","v":438},{"$f":"SQRT(((H39))^2+((H53))^2)","v":156.28499608087785},{"$f":"I39+I53","v":86},{"$f":"SQRT(((J39))^2+((J53))^2)","v":38.288379438153292},{"$f":"K39+K53","v":43},{"$f":"SQRT(((L39))^2+((L53))^2)","v":37.643060449437421},{"$f":"M39+M53","v":24},{"$f":"SQRT(((N39))^2+((N53))^2)","v":25.298221281347036},{"$f":"O39+O53","v":0},{"$f":"SQRT(((P39))^2+((P53))^2)","v":16.970562748477139},{"$f":"Q39+Q53","v":36},{"$f":"SQRT(((R39))^2+((R53))^2)","v":30.14962686336267},{"$f":"S39+S53","v":65},{"$f":"SQRT(((T39))^2+((T53))^2)","v":35.227829907617071},{"$f":"U39+U53","v":166},{"$f":"SQRT(((V39))^2+((V53))^2)","v":97.082439194738001},{"$f":"W39+W53","v":229},{"$f":"SQRT(((X39))^2+((X53))^2)","v":97.082439194738001},{"$f":"Y39+Y53","v":19},{"$f":"SQRT(((Z39))^2+((Z53))^2)","v":25.96150997149434},{"$f":"AA39+AA53","v":59},{"$f":"SQRT(((AB39))^2+((AB53))^2)","v":46.669047558312137},{"$f":"AC39+AC53","v":11},{"$f":"SQRT(((AD39))^2+((AD53))^2)","v":16.278820596099706},{"$f":"AE39+AE53","v":22},{"$f":"SQRT(((AF39))^2+((AF53))^2)","v":18.384776310850235}]
[null,"5 to 17 years",{"$f":"((C40)+(C41)+(C42)+(C43)+(C44)+(C54)+(C55)+(C56)+(C57)+(C58))","v":177},{"$f":"SQRT((D40^2)+(D41^2)+(D42^2)+(D43^2)+(D44^2)+(D54^2)+(D55^2)+(D56^2)+(D57^2)+(D58^2))","v":111.31037687475504},{"$f":"((E40)+(E41)+(E42)+(E43)+(E44)+(E54)+(E55)+(E56)+(E57)+(E58))","v":635},{"$f":"SQRT((F40^2)+(F41^2)+(F42^2)+(F43^2)+(F44^2)+(F54^2)+(F55^2)+(F56^2)+(F57^2)+(F58^2))","v":221.24420896376023},{"$f":"((G40)+(G41)+(G42)+(G43)+(G44)+(G54)+(G55)+(G56)+(G57)+(G58))","v":1526},{"$f":"SQRT((H40^2)+(H41^2)+(H42^2)+(H43^2)+(H44^2)+(H54^2)+(H55^2)+(H56^2)+(H57^2)+(H58^2))","v":309.03883251138524},{"$f":"((I40)+(I41)+(I42)+(I43)+(I44)+(I54)+(I55)+(I56)+(I57)+(I58))","v":180},{"$f":"SQRT((J40^2)+(J41^2)+(J42^2)+(J43^2)+(J44^2)+(J54^2)+(J55^2)+(J56^2)+(J57^2)+(J58^2))","v":56.36488268416781},{"$f":"((K40)+(K41)+(K42)+(K43)+(K44)+(K54)+(K55)+(K56)+(K57)+(K58))","v":66},{"$f":"SQRT((L40^2)+(L41^2)+(L42^2)+(L43^2)+(L44^2)+(L54^2)+(L55^2)+(L56^2)+(L57^2)+(L58^2))","v":32.695565448543633},{"$f":"((M40)+(M41)+(M42)+(M43)+(M44)+(M54)+(M55)+(M56)+(M57)+(M58))","v":144},{"$f":"SQRT((N40^2)+(N41^2)+(N42^2)+(N43^2)+(N44^2)+(N54^2)+(N55^2)+(N56^2)+(N57^2)+(N58^2))","v":75.133215025047349},{"$f":"((O40)+(O41)+(O42)+(O43)+(O44)+(O54)+(O55)+(O56)+(O57)+(O58))","v":710},{"$f":"SQRT((P40^2)+(P41^2)+(P42^2)+(P43^2)+(P44^2)+(P54^2)+(P55^2)+(P56^2)+(P57^2)+(P58^2))","v":231.81026724457223},{"$f":"((Q40)+(Q41)+(Q42)+(Q43)+(Q44)+(Q54)+(Q55)+(Q56)+(Q57)+(Q58))","v":69},{"$f":"SQRT((R40^2)+(R41^2)+(R42^2)+(R43^2)+(R44^2)+(R54^2)+(R55^2)+(R56^2)+(R57^2)+(R58^2))","v":49.608467019249851},{"$f":"((S40)+(S41)+(S42)+(S43)+(S44)+(S54)+(S55)+(S56)+(S57)+(S58))","v":151},{"$f":"SQRT((T40^2)+(T41^2)+(T42^2)+(T43^2)+(T44^2)+(T54^2)+(T55^2)+(T56^2)+(T57^2)+(T58^2))","v":60.29925372672534},{"$f":"((U40)+(U41)+(U42)+(U43)+(U44)+(U54)+(U55)+(U56)+(U57)+(U58))","v":461},{"$f":"SQRT((V40^2)+(V41^2)+(V42^2)+(V43^2)+(V44^2)+(V54^2)+(V55^2)+(V56^2)+(V57^2)+(V58^2))","v":178.51330482627898},{"$f":"((W40)+(W41)+(W42)+(W43)+(W44)+(W54)+(W55)+(W56)+(W57)+(W58))","v":312},{"$f":"SQRT((X40^2)+(X41^2)+(X42^2)+(X43^2)+(X44^2)+(X54^2)+(X55^2)+(X56^2)+(X57^2)+(X58^2))","v":99.045444115315064},{"$f":"((Y40)+(Y41)+(Y42)+(Y43)+(Y44)+(Y54)+(Y55)+(Y56)+(Y57)+(Y58))","v":99},{"$f":"SQRT((Z40^2)+(Z41^2)+(Z42^2)+(Z43^2)+(Z44^2)+(Z54^2)+(Z55^2)+(Z56^2)+(Z57^2)+(Z58^2))","v":77.278716345446625},{"$f":"((AA40)+(AA41)+(AA42)+(AA43)+(AA44)+(AA54)+(AA55)+(AA56)+(AA57)+(AA58))","v":299},{"$f":"SQRT((AB40^2)+(AB41^2)+(AB42^2)+(AB43^2)+(AB44^2)+(AB54^2)+(AB55^2)+(AB56^2)+(AB57^2)+(AB58^2))","v":93.87757985802574},{"$f":"((AC40)+(AC41)+(AC42)+(AC43)+(AC44)+(AC54)+(AC55)+(AC56)+(AC57)+(AC58))","v":162},{"$f":"SQRT((AD40^2)+(AD41^2)+(AD42^2)+(AD43^2)+(AD44^2)+(AD54^2)+(AD55^2)+(AD56^2)+(AD57^2)+(AD58^2))","v":65.130637951735125},{"$f":"((AE40)+(AE41)+(AE42)+(AE43)+(AE44)+(AE54)+(AE55)+(AE56)+(AE57)+(AE58))","v":92},{"$f":"SQRT((AF40^2)+(AF41^2)+(AF42^2)+(AF43^2)+(AF44^2)+(AF54^2)+(AF55^2)+(AF56^2)+(AF57^2)+(AF58^2))","v":46.94677837722201}]
[null,"18 to 64 years",{"$f":"((C45)+(C46)+(C47)+(C48)+(C49)+(C59)+(C60)+(C61)+(C62)+(C63))","v":477},{"$f":"SQRT((D45^2)+(D46^2)+(D47^2)+(D48^2)+(D49^2)+(D59^2)+(D60^2)+(D61^2)+(D62^2)+(D63^2))","v":110.13173929435601},{"$f":"((E45)+(E46)+(E47)+(E48)+(E49)+(E59)+(E60)+(E61)+(E62)+(E63))","v":2177},{"$f":"SQRT((F45^2)+(F46^2)+(F47^2)+(F48^2)+(F49^2)+(F59^2)+(F60^2)+(F61^2)+(F62^2)+(F63^2))","v":361.88810425323459},{"$f":"((G45)+(G46)+(G47)+(G48)+(G49)+(G59)+(G60)+(G61)+(G62)+(G63))","v":6404},{"$f":"SQRT((H45^2)+(H46^2)+(H47^2)+(H48^2)+(H49^2)+(H59^2)+(H60^2)+(H61^2)+(H62^2)+(H63^2))","v":547.37464318325885},{"$f":"((I45)+(I46)+(I47)+(I48)+(I49)+(I59)+(I60)+(I61)+(I62)+(I63))","v":1033},{"$f":"SQRT((J45^2)+(J46^2)+(J47^2)+(J48^2)+(J49^2)+(J59^2)+(J60^2)+(J61^2)+(J62^2)+(J63^2))","v":189.36472744415735},{"$f":"((K45)+(K46)+(K47)+(K48)+(K49)+(K59)+(K60)+(K61)+(K62)+(K63))","v":406},{"$f":"SQRT((L45^2)+(L46^2)+(L47^2)+(L48^2)+(L49^2)+(L59^2)+(L60^2)+(L61^2)+(L62^2)+(L63^2))","v":86.919502989835365},{"$f":"((M45)+(M46)+(M47)+(M48)+(M49)+(M59)+(M60)+(M61)+(M62)+(M63))","v":507},{"$f":"SQRT((N45^2)+(N46^2)+(N47^2)+(N48^2)+(N49^2)+(N59^2)+(N60^2)+(N61^2)+(N62^2)+(N63^2))","v":99.739661118333458},{"$f":"((O45)+(O46)+(O47)+(O48)+(O49)+(O59)+(O60)+(O61)+(O62)+(O63))","v":1772},{"$f":"SQRT((P45^2)+(P46^2)+(P47^2)+(P48^2)+(P49^2)+(P59^2)+(P60^2)+(P61^2)+(P62^2)+(P63^2))","v":354.11862419251548},{"$f":"((Q45)+(Q46)+(Q47)+(Q48)+(Q49)+(Q59)+(Q60)+(Q61)+(Q62)+(Q63))","v":382},{"$f":"SQRT((R45^2)+(R46^2)+(R47^2)+(R48^2)+(R49^2)+(R59^2)+(R60^2)+(R61^2)+(R62^2)+(R63^2))","v":83.444592395193595},{"$f":"((S45)+(S46)+(S47)+(S48)+(S49)+(S59)+(S60)+(S61)+(S62)+(S63))","v":505},{"$f":"SQRT((T45^2)+(T46^2)+(T47^2)+(T48^2)+(T49^2)+(T59^2)+(T60^2)+(T61^2)+(T62^2)+(T63^2))","v":103.10189135025604},{"$f":"((U45)+(U46)+(U47)+(U48)+(U49)+(U59)+(U60)+(U61)+(U62)+(U63))","v":3934},{"$f":"SQRT((V45^2)+(V46^2)+(V47^2)+(V48^2)+(V49^2)+(V59^2)+(V60^2)+(V61^2)+(V62^2)+(V63^2))","v":536.14457005550287},{"$f":"((W45)+(W46)+(W47)+(W48)+(W49)+(W59)+(W60)+(W61)+(W62)+(W63))","v":1241},{"$f":"SQRT((X45^2)+(X46^2)+(X47^2)+(X48^2)+(X49^2)+(X59^2)+(X60^2)+(X61^2)+(X62^2)+(X63^2))","v":205.2705531731232},{"$f":"((Y45)+(Y46)+(Y47)+(Y48)+(Y49)+(Y59)+(Y60)+(Y61)+(Y62)+(Y63))","v":638},{"$f":"SQRT((Z45^2)+(Z46^2)+(Z47^2)+(Z48^2)+(Z49^2)+(Z59^2)+(Z60^2)+(Z61^2)+(Z62^2)+(Z63^2))","v":226.95814592122485},{"$f":"((AA45)+(AA46)+(AA47)+(AA48)+(AA49)+(AA59)+(AA60)+(AA61)+(AA62)+(AA63))","v":1716},{"$f":"SQRT((AB45^2)+(AB46^2)+(AB47^2)+(AB48^2)+(AB49^2)+(AB59^2)+(AB60^2)+(AB61^2)+(AB62^2)+(AB63^2))","v":260.55325751178009},{"$f":"((AC45)+(AC46)+(AC47)+(AC48)+(AC49)+(AC59)+(AC60)+(AC61)+(AC62)+(AC63))","v":571},{"$f":"SQRT((AD45^2)+(AD46^2)+(AD47^2)+(AD48^2)+(AD49^2)+(AD59^2)+(AD60^2)+(AD61^2)+(AD62^2)+(AD63^2))","v":91.509562341866769},{"$f":"((AE45)+(AE46)+(AE47)+(AE48)+(AE49)+(AE59)+(AE60)+(AE61)+(AE62)+(AE63))","v":593},{"$f":"SQRT((AF45^2)+(AF46^2)+(AF47^2)+(AF48^2)+(AF49^2)+(AF59^2)+(AF60^2)+(AF61^2)+(AF62^2)+(AF63^2))","v":111.41813137905338}]
[null,"65 to 74 years",{"$f":"((C50)+(C64))","v":109},{"$f":"SQRT((D50^2)+(D64^2))","v":35.510561809129406},{"$f":"((E50)+(E64))","v":732},{"$f":"SQRT((F50^2)+(F64^2))","v":180.32470712578461},{"$f":"((G50)+(G64))","v":1785},{"$f":"SQRT((H50^2)+(H64^2))","v":281.65581833152322},{"$f":"((I50)+(I64))","v":335},{"$f":"SQRT((J50^2)+(J64^2))","v":81.835200250259064},{"$f":"((K50)+(K64))","v":118},{"$f":"SQRT((L50^2)+(L64^2))","v":41.629316592997299},{"$f":"((M50)+(M64))","v":61},{"$f":"SQRT((N50^2)+(N64^2))","v":20.808652046684813},{"$f":"((O50)+(O64))","v":417},{"$f":"SQRT((P50^2)+(P64^2))","v":165.8493292117879},{"$f":"((Q50)+(Q64))","v":89},{"$f":"SQRT((R50^2)+(R64^2))","v":24.839484696748443},{"$f":"((S50)+(S64))","v":110},{"$f":"SQRT((T50^2)+(T64^2))","v":35.510561809129406},{"$f":"((U50)+(U64))","v":497},{"$f":"SQRT((V50^2)+(V64^2))","v":182.72657168567466},{"$f":"((W50)+(W64))","v":288},{"$f":"SQRT((X50^2)+(X64^2))","v":92.956979296876895},{"$f":"((Y50)+(Y64))","v":100},{"$f":"SQRT((Z50^2)+(Z64^2))","v":41.048751503547585},{"$f":"((AA50)+(AA64))","v":578},{"$f":"SQRT((AB50^2)+(AB64^2))","v":126.62148316932637},{"$f":"((AC50)+(AC64))","v":220},{"$f":"SQRT((AD50^2)+(AD64^2))","v":51.86520991955976},{"$f":"((AE50)+(AE64))","v":230},{"$f":"SQRT((AF50^2)+(AF64^2))","v":46.872166581031863}]
[null,"75 years and over",{"$f":"((C51)+(C65))","v":56},{"$f":"SQRT((D51^2)+(D65^2))","v":25.45584412271571},{"$f":"((E51)+(E65))","v":291},{"$f":"SQRT((F51^2)+(F65^2))","v":107.5174404457249},{"$f":"((G51)+(G65))","v":736},{"$f":"SQRT((H51^2)+(H65^2))","v":185.15128949051368},{"$f":"((I51)+(I65))","v":168},{"$f":"SQRT((J51^2)+(J65^2))","v":55.443665102516448},{"$f":"((K51)+(K65))","v":80},{"$f":"SQRT((L51^2)+(L65^2))","v":54.708317466359723},{"$f":"((M51)+(M65))","v":199},{"$f":"SQRT((N51^2)+(N65^2))","v":105.32331175955302},{"$f":"((O51)+(O65))","v":447},{"$f":"SQRT((P51^2)+(P65^2))","v":172.73389939441535},{"$f":"((Q51)+(Q65))","v":52},{"$f":"SQRT((R51^2)+(R65^2))","v":27.730849247724095},{"$f":"((S51)+(S65))","v":56},{"$f":"SQRT((T51^2)+(T65^2))","v":39.293765408776999},{"$f":"((U51)+(U65))","v":331},{"$f":"SQRT((V51^2)+(V65^2))","v":118.46096403457132},{"$f":"((W51)+(W65))","v":170},{"$f":"SQRT((X51^2)+(X65^2))","v":71.028163428319047},{"$f":"((Y51)+(Y65))","v":42},{"$f":"SQRT((Z51^2)+(Z65^2))","v":28.284271247461902},{"$f":"((AA51)+(AA65))","v":268},{"$f":"SQRT((AB51^2)+(AB65^2))","v":140.80127840328723},{"$f":"((AC51)+(AC65))","v":130},{"$f":"SQRT((AD51^2)+(AD65^2))","v":41.880783182743848},{"$f":"((AE51)+(AE65))","v":77},{"$f":"SQRT((AF51^2)+(AF65^2))","v":31.827660925679098}]
[]
[]
[]
[]
[]
[]
[]
[]
[]
[]
[]
[]
[]
[]
[]
[]
[]
[]
[]
[]
[]
[]
[]
[]
[]
[]
[]
[]
[]
[]
[]
[]
[]
[]
[]
[]
[]
[]
[]
[]
[]
[]
[]
[null,"Calculated Table B17001. POVERTY STATUS IN THE PAST 12 MONTHS BY SEX BY AGE"]
[null,"Universe:  POPULATION FOR WHOM POVERTY STATUS IS DETERMINED"]
[null,"Data Set: 2013-2017 American Community Survey 5-Year Estimates"]
[]
[null,null,"Acworth",null,"Charlestown",null,"Claremont",null,"Cornish",null,"Croydon",null,"Goshen",null,"Grantham",null,"Langdon",null,"Lempster",null,"Newport",null,"Plainfield",null,"Springfield",null,"Sunapee",null,"Unity",null,"Washington"]
[null,null,"Estimate","Margin Of Error","Estimate","Margin Of Error","Estimate","Margin Of Error","Estimate","Margin Of Error","Estimate","Margin Of Error","Estimate","Margin Of Error","Estimate","Margin Of Error","Estimate","Margin Of Error","Estimate","Margin Of Error","Estimate","Margin Of Error","Estimate","Margin Of Error","Estimate","Margin Of Error","Estimate","Margin Of Error","Estimate","Margin Of Error","Estimate","Margin Of Error"]
[null,"Total:",1015,140,4997,24,12856,74,1777,205,805,192,716,143,2941,35,880,142,858,129,6204,99,2309,242,1011,183,3404,16,1227,157,1265,206]
[null,"Income in the past 12 months below poverty level:",52,27,599,340,1692,531,166,157,18,15,76,53,62,52,72,46,68,25,711,390,50,29,60,48,190,102,85,42,52,31]
[null,"Under 5 years",0,11.704699910719626,64,72.180329730474355,126,115.24755962709145,0,13.601470508735444,0,13.038404810405298,14,12.529964086141668,0,15.556349186104045,2,17.804493814764857,3,12.529964086141668,67,75.584389922787622,0,13.038404810405298,0,15.556349186104045,11,64.288412641781719,0,22.825424421026653,0,15.556349186104045]
[null,"5 to 17 years",3,31.54362059117501,115,80.783661714482832,312,143.71499573809268,91,68.912988616080199,0,33.166247903554002,19,29.983328701129899,10,35.142566781611158,25,34.612136599753562,4,31.685959035509718,111,103.23759005323593,0,33.166247903554002,10,30.951575081084322,11,35.608987629529715,9,33.882148692194832,0,33.166247903554002]
[null,"18 to 64 years",42,21.61018278497431,350,156.24659996300718,1131,254.78618486880328,69,36.837480912787726,17,29.189039038652847,39,30.28200785945344,52,63.718129288295962,35,27.802877548915689,44,31.54362059117501,491,186.04569331215382,34,31.874754901018456,47,41.809089920733747,161,103.00970828033637,70,37.49666651850535,28,35.566838487557476]
[null,"65 to 74 years",3,11.704699910719626,0,22.627416997969522,46,30.413812651491099,3,12.083045973594572,1,11.401754250991379,4,11.704699910719626,0,15.556349186104045,8,5.8309518948453007,4,12.529964086141668,42,69.856996786291916,11,15.556349186104045,3,13.038404810405298,7,17.029386365926403,3,12.083045973594572,20,17.888543819998318]
[null,"75 years and over",4,4.2426406871192848,70,52.497618993626752,77,62.625873247404705,3,11.704699910719626,0,15.556349186104045,0,15.556349186104045,0,15.556349186104045,2,11.401754250991379,13,13.928388277184119,0,22.627416997969522,5,13.038404810405298,0,15.556349186104045,0,15.556349186104045,3,11.401754250991379,4,6.4031242374328485]
[null," Income in the past 12 months at or above poverty level ",963,138,4398,339,11164,543,1611,169,787,191,640,125,2879,66,808,132,790,129,5493,399,2259,242,951,178,3214,104,1142,150,1213,208]
[null,"Under 5 years",43,20.615528128088304,288,120.06664815842908,610,157.61027885261799,48,20,28,23.600847442411894,47,23.323807579381203,100,80.212218520621903,30,19.313207915827967,37,17.804493814764857,219,123.00406497347964,91,56.859475903318,12,14.560219778561036,137,73.824115301166998,32,23.706539182259394,0,15.556349186104045]
[null,"5 to 17 years",74,36.414282912066248,529,175.62744660217547,1630,253.97243944963793,249,66.693328002132262,75,34.394767043839678,98,37.148351242013419,503,187.38729946290383,185,58.060313467979142,85,42.508822613664563,848,245.61555325345338,350,83.74365647617735,118,43.439613257946945,450,153.06534552275377,103,40.447496832313369,151,55.695601262577284]
[null,"18 to 64 years",567,74.739547764219182,2647,348.40206658399717,6934,480.01666637732484,938,104.3982758478319,559,116.98717878468563,363,63.7808748764079,1704,255,471,67.029844099475568,526,85.656289903310665,3229,371.08624334512859,1393,157.68639763784319,590,104.58489374665922,1893,268.01679051880313,741,88.039763743435842,810,137.70620901034201]
[null,"65 to 74 years",189,42.449970553582247,521,161.44348856488452,1206,165,254,53.600373133029585,89,27.658633371878661,82,29.681644159311659,258,88.391176030189797,91,23.345235059857504,107,32.649655434629018,814,192.20041623263984,319,68.622153857191051,172,50.209560842532767,338,101.23734488813898,199,39.05124837953327,184,34.713109915419565]
[null,"75 years and over",90,34.985711369071801,413,129.24782396620841,784,127.26350615946427,122,39.698866482558415,36,17.204650534085253,50,22.671568097509269,314,101.6070863670443,31,16.643316977093239,35,14.866068747318506,383,139.34489585198304,106,45.276925690687087,59,30.886890422961002,396,95.587656106842587,67,20.518284528683193,68,18.439088914585774]
[]
[]
[]
[]
[]
[]
[]
[]
[]
[]
[]
[]
[]
[]
[]
[]
[]
[]
[]
[]
[]
[]
[]
[]
[]
[]
[]
[]
[]
[]
[]
[]
[]
[]
[]
[]
[]
[]
[]
[]
[]
[]
[null,"Calculated Table B17001. POVERTY STATUS IN THE PAST 12 MONTHS BY SEX BY AGE"]
[null,"Universe:  POPULATION FOR WHOM POVERTY STATUS IS DETERMINED"]
[null,"Data Set: 2008-2012 American Community Survey 5-Year Estimates"]
[]
[null,null,"Acworth",null,"Charlestown",null,"Claremont",null,"Cornish",null,"Croydon",null,"Goshen",null,"Grantham",null,"Langdon",null,"Lempster",null,"Newport",null,"Plainfield",null,"Springfield",null,"Sunapee",null,"Unity",null,"Washington"]
[null,null,"Estimate","Margin Of Error","Estimate","Margin Of Error","Estimate","Margin Of Error","Estimate","Margin Of Error","Estimate","Margin Of Error","Estimate","Margin Of Error","Estimate","Margin Of Error","Estimate","Margin Of Error","Estimate","Margin Of Error","Estimate","Margin Of Error","Estimate","Margin Of Error","Estimate","Margin Of Error","Estimate","Margin Of Error","Estimate","Margin Of Error","Estimate","Margin Of Error"]
[null,"Total:",705,157,5070,20,13222,56,1654,227,615,113,757,108,2936,33,770,133,1212,178,6425,61,2474,211,1354,195,3349,23,1342,135,1067,171]
[null,"Income in the past 12 months below poverty level:",59,36,457,242,1974,526,49,22,40,27,89,47,104,61,34,24,132,68,959,413,55,48,71,44,161,113,80,38,120,58]
[null,"Under 5 years",0,11.704699910719626,77,71.021123618258812,238,96.79876032264049,3,8.9442719099991592,0,15.556349186104045,6,11.401754250991379,0,18.601075237738275,0,14.866068747318506,6,6.4031242374328485,17,37.576588456111871,0,14.866068747318506,0,15.556349186104045,8,17.029386365926403,4,11.704699910719626,13,13.601470508735444]
[null,"5 to 17 years",4,31.304951684997057,53,75.504966724050675,414,184.36105879496353,3,31.54362059117501,11,32.062439083762797,17,35.805027579936315,0,33.166247903554002,0,33.166247903554002,50,35.52463933666322,271,163.40134638368193,26,40.64480286580315,11,35.142566781611158,26,42.871902220452036,3,31.54362059117501,13,27.239676943752471]
[null,"18 to 64 years",51,32.908965343808667,242,134.08579343092242,1202,248.47333861000058,33,27.166155414412248,23,29.444863728670914,52,27.748873851023216,93,49.638694583963428,34,34.438350715445125,63,28.530685235374211,547,186.33571852975479,22,31.921779399024736,50,41.557189510360296,127,95.310020459550842,62,40.224370722237531,71,33.555923471125034]
[null,"65 to 74 years",4,12.083045973594572,35,35.777087639996637,23,20.615528128088304,7,8.0622577482985491,2,11.401754250991379,7,13.601470508735444,0,15.556349186104045,0,15.556349186104045,13,11.661903789690601,85,62.169124169478209,7,16.278820596099706,7,7.0710678118654755,0,15.556349186104045,8,8.0622577482985491,7,14.212670403551895]
[null,"75 years and over",0,15.556349186104045,50,37.643060449437421,97,53.141321022345693,3,11.704699910719626,4,13.038404810405298,7,6.4031242374328485,11,20.248456731316587,0,15.556349186104045,0,15.556349186104045,39,35.355339059327378,0,15.556349186104045,3,11.704699910719626,0,15.556349186104045,3,11.704699910719626,16,11.661903789690601]
[null," Income in the past 12 months at or above poverty level ",646,144,4613,245,11248,525,1605,225,575,113,668,92,2832,74,736,132,1080,168,5466,414,2419,209,1283,203,3188,114,1262,132,947,163]
[null,"Under 5 years",38,26.627053911388696,181,84.811555816409836,694,150.07331541616585,95,45.967379738244816,23,20.248456731316587,11,12.083045973594572,138,64.350602172784676,30,33.241540277189323,44,25.80697580112788,210,136.88316185711082,106,54.12947441089743,92,47.801673610868477,75,57.974132162542979,39,19.849433241279208,30,19.416487838947599]
[null,"5 to 17 years",75,34.785054261852174,653,160.15929570274716,1575,243.77448594961697,263,67.394361781976983,68,31.144823004794873,30,26.19160170741759,446,100.78194282707592,125,54.083269131959838,209,54.157178656204017,938,269.35478462429438,382,83.695878034703711,266,65.429351211822365,525,148.13169816079204,120,43.623388222374473,121,46.054315758677816]
[null,"18 to 64 years",405,75.868306953562637,3076,330.40278449189861,7037,402.40526835517448,1047,112.4144118874444,388,68.352029962540243,484,71.888803022445714,1657,183.19388636087177,469,82.407523928340424,700,93.701654200979831,3514,369.98513483652283,1607,165.7407614318216,734,99.894944817042671,1860,240.29357045081335,927,111.43608033307704,530,77.090855488832133]
[null,"65 to 74 years",112,42.80186911806539,399,145.2067491544384,1001,159.11316727411344,140,42.01190307520001,55,19.104973174542799,77,29.732137494637012,284,79.39773296511683,70,27.018512172212592,54,24.041630560342615,488,131.65485179058157,210,55.443665102516448,136,41.340053217188775,458,107.48953437428223,133,38.288379438153292,176,37.013511046643494]
[null,"75 years and over",16,9.8994949366116654,304,105.94810050208545,941,133.843191832831,60,21.931712199461309,41,25.238858928247925,66,23.323807579381203,307,73.409808608931812,42,21.931712199461309,73,33.97057550292606,316,93.021502890460766,114,48.846698967279252,55,24.413111231467404,270,91.678787077491378,43,17.691806012954132,90,31.827660925679098]

{"sheet":"ACS_Table_B17010","index":53,"n_rows":156,"n_cols":32,"rows_kept":156,"cut":false,"hidden":true,"merged":[]}
[null,"B17010. POVERTY STATUS IN THE PAST 12 MONTHS OF FAMILIES BY FAMILY TYPE BY PRESENCE OF RELATED CHILDREN UNDER 18 YEARS"]
[null,"Universe: FAMILIES"]
[null,"Data Set: 2018-2022 American Community Survey 5-Year Estimates"]
[]
[null,null,"Acworth",null,"Charlestown",null,"Claremont",null,"Cornish",null,"Croydon",null,"Goshen",null,"Grantham",null,"Langdon",null,"Lempster",null,"Newport",null,"Plainfield",null,"Springfield",null,"Sunapee",null,"Unity",null,"Washington"]
[null,null,"Estimate","Margin Of Error","Estimate","Margin Of Error","Estimate","Margin Of Error","Estimate","Margin Of Error","Estimate","Margin Of Error","Estimate","Margin Of Error","Estimate","Margin Of Error","Estimate","Margin Of Error","Estimate","Margin Of Error","Estimate","Margin Of Error","Estimate","Margin Of Error","Estimate","Margin Of Error","Estimate","Margin Of Error"]
[null,"Total:",186,35,1172,135,2826,285,420,62,179,42,202,64,979,125,177,43,214,46,1342,202,662,79,214,75,721,107,330,55,342,64]
[null,"Income in the past 12 months below poverty level:",12,13,98,68,364,157,8,8,10,11,3,7,0,12,14,12,5,8,164,118,34,32,3,4,31,36,26,19,10,17]
[null,"Married-couple family:",5,5,32,48,130,112,4,6,5,7,0,12,0,12,8,11,0,12,78,91,28,31,3,4,21,33,22,18,10,17]
[null,"With related children under 18 years:",3,5,0,12,3,12,4,6,0,12,0,12,0,12,7,10,0,12,0,17,0,12,0,12,21,33,0,12,0,12]
[null,"Under 5 years only",0,12,0,12,0,19,0,12,0,12,0,12,0,12,0,12,0,12,0,17,0,12,0,12,0,12,0,12,0,12]
[null,"Under 5 years and 5 to 17 years",0,12,0,12,0,19,4,6,0,12,0,12,0,12,7,10,0,12,0,17,0,12,0,12,0,12,0,12,0,12]
[null,"5 to 17 years only",3,5,0,12,3,12,0,12,0,12,0,12,0,12,0,12,0,12,0,17,0,12,0,12,21,33,0,12,0,12]
[null,"No related children under 18 years",2,3,32,48,127,113,0,12,5,7,0,12,0,12,1,4,0,12,78,91,28,31,3,4,0,12,22,18,10,17]
[null,"Other family:",7,12,66,64,234,116,4,5,5,8,3,7,0,12,6,6,5,8,86,79,6,9,0,12,10,16,4,6,0,12]
[null,"Male householder, no spouse present:",7,12,26,44,21,29,0,12,0,12,3,7,0,12,0,12,0,12,0,17,6,9,0,12,0,12,0,12,0,12]
[null,"With related children under 18 years:",0,12,0,12,21,29,0,12,0,12,1,4,0,12,0,12,0,12,0,17,0,12,0,12,0,12,0,12,0,12]
[null,"Under 5 years only",0,12,0,12,2,3,0,12,0,12,0,12,0,12,0,12,0,12,0,17,0,12,0,12,0,12,0,12,0,12]
[null,"Under 5 years and 5 to 17 years",0,12,0,12,19,28,0,12,0,12,0,12,0,12,0,12,0,12,0,17,0,12,0,12,0,12,0,12,0,12]
[null,"5 to 17 years only",0,12,0,12,0,19,0,12,0,12,1,4,0,12,0,12,0,12,0,17,0,12,0,12,0,12,0,12,0,12]
[null,"No related children under 18 years",7,12,26,44,0,19,0,12,0,12,2,4,0,12,0,12,0,12,0,17,6,9,0,12,0,12,0,12,0,12]
[null,"Female householder, no spouse present:",0,12,40,51,213,115,4,5,5,8,0,12,0,12,6,6,5,8,86,79,0,12,0,12,10,16,4,6,0,12]
[null,"With related children under 18 years:",0,12,40,51,171,103,4,5,5,8,0,12,0,12,3,4,5,8,61,75,0,12,0,12,10,16,0,12,0,12]
[null,"Under 5 years only",0,12,0,12,65,58,0,12,0,12,0,12,0,12,0,12,0,12,17,30,0,12,0,12,10,16,0,12,0,12]
[null,"Under 5 years and 5 to 17 years",0,12,40,51,70,80,0,12,5,8,0,12,0,12,0,12,5,8,0,17,0,12,0,12,0,12,0,12,0,12]
[null,"5 to 17 years only",0,12,0,12,36,29,4,5,0,12,0,12,0,12,3,4,0,12,44,68,0,12,0,12,0,12,0,12,0,12]
[null,"No related children under 18 years",0,12,0,12,42,61,0,12,0,12,0,12,0,12,3,4,0,12,25,35,0,12,0,12,0,12,4,6,0,12]
[null,"Income in the past 12 months at or above poverty level:",174,36,1074,134,2462,275,412,62,169,41,199,61,979,125,163,41,209,46,1178,202,628,79,211,75,690,105,304,54,332,64]
[null,"Married-couple family:",142,32,885,153,1745,275,366,58,129,35,158,54,867,162,161,41,166,43,989,203,534,93,172,55,600,105,269,55,297,62]
[null,"With related children under 18 years:",36,24,227,109,431,128,79,25,33,21,76,45,259,153,49,29,53,31,281,114,229,95,33,25,139,48,24,14,39,22]
[null,"Under 5 years only",6,5,57,66,66,60,32,18,21,18,9,11,0,12,4,4,14,18,38,34,113,96,6,11,0,12,3,4,11,10]
[null,"Under 5 years and 5 to 17 years",9,10,70,73,72,73,12,9,0,12,8,8,0,12,27,25,20,16,26,41,14,13,3,4,30,29,2,4,10,11]
[null,"5 to 17 years only",21,21,100,73,293,106,35,16,12,10,59,43,259,153,18,13,19,15,217,114,102,37,24,20,109,50,19,13,18,16]
[null,"No related children under 18 years",106,27,658,142,1314,227,287,52,96,31,82,31,608,149,112,29,113,36,708,212,305,87,139,52,461,99,245,50,258,60]
[null,"Other family:",32,21,189,91,717,165,46,20,40,27,41,23,112,89,2,3,43,22,189,107,94,56,39,42,90,52,35,16,35,23]
[null,"Male householder, no spouse present:",15,11,70,72,171,82,20,13,31,26,10,17,112,89,0,12,23,18,38,33,40,41,0,12,53,39,25,15,21,20]
[null,"With related children under 18 years:",13,11,70,72,103,68,9,8,10,9,0,12,71,60,0,12,10,13,8,14,36,41,0,12,9,15,15,12,13,15]
[null,"Under 5 years only",7,8,0,12,0,19,0,12,0,12,0,12,0,12,0,12,0,12,8,14,36,41,0,12,0,12,0,12,0,12]
[null,"Under 5 years and 5 to 17 years",6,7,14,23,0,19,7,7,0,12,0,12,0,12,0,12,0,12,0,17,0,12,0,12,0,12,0,12,0,12]
[null,"5 to 17 years only",0,12,56,69,103,68,2,3,10,9,0,12,71,60,0,12,10,13,0,17,0,12,0,12,9,15,15,12,13,15]
[null,"No related children under 18 years",2,3,0,12,68,52,11,9,21,23,10,17,41,62,0,12,13,12,30,39,4,7,0,12,44,37,10,7,8,13]
[null,"Female householder, no spouse present:",17,16,119,59,546,148,26,15,9,8,31,16,0,12,2,3,20,11,151,99,54,40,39,42,37,35,10,7,14,13]
[null,"With related children under 18 years:",0,12,53,48,420,144,15,12,5,6,15,11,0,12,0,12,19,11,85,84,41,36,28,39,30,33,2,4,4,5]
[null,"Under 5 years only",0,12,0,12,55,52,0,12,0,12,0,12,0,12,0,12,0,12,22,31,0,12,0,12,18,27,0,12,0,12]
[null,"Under 5 years and 5 to 17 years",0,12,14,22,74,55,3,4,0,12,0,12,0,12,0,12,7,8,0,17,0,12,0,12,0,12,0,12,0,12]
[null,"5 to 17 years only",0,12,39,46,291,147,12,10,5,6,15,11,0,12,0,12,12,9,63,79,41,36,28,39,12,17,2,4,4,5]
[null,"No related children under 18 years",17,16,66,54,126,64,11,8,4,5,16,11,0,12,2,3,1,2,66,48,13,13,11,15,7,11,8,6,10,14]
[]
[]
[]
[]
[]
[]
[]
[]
[]
[]
[]
[]
[null,"B17010. POVERTY STATUS IN THE PAST 12 MONTHS OF FAMILIES BY FAMILY TYPE BY PRESENCE OF RELATED CHILDREN UNDER 18 YEARS"]
[null,"Universe: FAMILIES"]
[null,"Data Set: 2013-2017 American Community Survey 5-Year Estimates"]
[]
[null,null,"Acworth",null,"Charlestown",null,"Claremont",null,"Cornish",null,"Croydon",null,"Goshen",null,"Grantham",null,"Langdon",null,"Lempster",null,"Newport",null,"Plainfield",null,"Springfield",null,"Sunapee",null,"Unity",null,"Washington"]
[null,null,"Estimate","Margin Of Error","Estimate","Margin Of Error","Estimate","Margin Of Error","Estimate","Margin Of Error","Estimate","Margin Of Error","Estimate","Margin Of Error","Estimate","Margin Of Error","Estimate","Margin Of Error","Estimate","Margin Of Error","Estimate","Margin Of Error","Estimate","Margin Of Error","Estimate","Margin Of Error","Estimate","Margin Of Error"]
[null,"Total:",301,51,1375,110,3293,274,518,60,194,42,187,41,868,97,218,35,238,49,1707,152,692,80,326,60,894,96,371,54,417,82]
[null,"Income in the past 12 months below poverty level:",15,11,107,66,202,96,24,23,6,6,14,12,24,34,12,11,12,12,131,93,10,11,11,11,27,26,8,8,15,12]
[null,"Married-couple family:",10,10,49,47,117,72,20,23,6,6,5,5,0,11,4,4,9,13,28,32,5,8,11,11,11,17,3,5,11,10]
[null,"With related children under 18 years:",0,11,37,43,95,68,17,22,0,11,1,3,0,11,2,3,0,11,14,22,0,11,11,11,0,11,0,11,0,11]
[null,"Under 5 years only",0,11,0,16,0,18,0,11,0,11,0,11,0,11,0,11,0,11,14,22,0,11,0,11,0,11,0,11,0,11]
[null,"Under 5 years and 5 to 17 years",0,11,37,43,36,42,0,11,0,11,0,11,0,11,0,11,0,11,0,16,0,11,0,11,0,11,0,11,0,11]
[null,"5 to 17 years only",0,11,0,16,59,52,17,22,0,11,1,3,0,11,2,3,0,11,0,16,0,11,11,11,0,11,0,11,0,11]
[null,"No related children under 18 years",10,10,12,22,22,25,3,5,6,6,4,4,0,11,2,3,9,13,14,22,5,8,0,11,11,17,3,5,11,10]
[null,"Other family:",5,5,58,48,85,70,4,6,0,11,9,11,24,34,8,10,3,4,103,89,5,7,0,11,16,19,5,6,4,5]
[null,"Male householder, no wife present:",2,3,8,11,10,17,4,6,0,11,7,10,0,11,0,11,0,11,14,22,0,11,0,11,7,12,5,6,4,5]
[null,"With related children under 18 years:",0,11,8,11,0,18,4,6,0,11,7,10,0,11,0,11,0,11,14,22,0,11,0,11,7,12,5,6,0,11]
[null,"Under 5 years only",0,11,0,16,0,18,0,11,0,11,0,11,0,11,0,11,0,11,0,16,0,11,0,11,0,11,0,11,0,11]
[null,"Under 5 years and 5 to 17 years",0,11,0,16,0,18,0,11,0,11,7,10,0,11,0,11,0,11,0,16,0,11,0,11,0,11,0,11,0,11]
[null,"5 to 17 years only",0,11,8,11,0,18,4,6,0,11,0,11,0,11,0,11,0,11,14,22,0,11,0,11,7,12,5,6,0,11]
[null,"No related children under 18 years",2,3,0,16,10,17,0,11,0,11,0,11,0,11,0,11,0,11,0,16,0,11,0,11,0,11,0,11,4,5]
[null,"Female householder, no husband present:",3,4,50,45,75,65,0,11,0,11,2,3,24,34,8,10,3,4,89,85,5,7,0,11,9,14,0,11,0,11]
[null,"With related children under 18 years:",3,4,36,40,67,64,0,11,0,11,2,3,24,34,8,10,3,4,74,82,0,11,0,11,9,14,0,11,0,11]
[null,"Under 5 years only",0,11,0,16,57,60,0,11,0,11,2,3,0,11,0,11,3,4,0,16,0,11,0,11,9,14,0,11,0,11]
[null,"Under 5 years and 5 to 17 years",0,11,0,16,0,18,0,11,0,11,0,11,0,11,2,3,0,11,41,64,0,11,0,11,0,11,0,11,0,11]
[null,"5 to 17 years only",3,4,36,40,10,16,0,11,0,11,0,11,24,34,6,10,0,11,33,54,0,11,0,11,0,11,0,11,0,11]
[null,"No related children under 18 years",0,11,14,23,8,14,0,11,0,11,0,11,0,11,0,11,0,11,15,24,5,7,0,11,0,11,0,11,0,11]
[null,"Income in the past 12 months at or above poverty level:",286,49,1268,128,3091,278,494,64,188,41,173,38,844,96,206,34,226,47,1576,167,682,79,315,59,867,91,363,52,402,82]
[null,"Married-couple family:",239,45,1038,165,2203,254,414,55,154,40,119,29,729,108,196,34,193,50,979,191,552,79,268,56,662,114,323,45,340,77]
[null,"With related children under 18 years:",58,26,219,89,726,170,107,37,49,28,34,16,264,95,88,22,40,18,320,131,177,43,52,26,241,61,61,25,67,30]
[null,"Under 5 years only",23,18,30,52,113,68,17,10,10,11,10,11,28,30,7,6,7,7,24,30,30,27,3,5,6,13,9,9,0,11]
[null,"Under 5 years and 5 to 17 years",6,8,86,54,113,94,16,11,0,11,9,7,5,9,18,14,19,13,75,78,31,23,2,4,63,58,4,6,0,11]
[null,"5 to 17 years only",29,19,103,71,500,135,74,33,39,28,15,12,231,99,63,20,14,9,221,97,116,35,47,26,172,54,48,25,67,30]
[null,"No related children under 18 years",181,38,819,146,1477,237,307,46,105,33,85,28,465,110,108,27,153,48,659,157,375,70,216,51,421,117,262,46,273,73]
[null,"Other family:",47,21,230,101,888,203,80,36,34,20,54,24,115,80,10,7,33,19,597,189,130,52,47,25,205,82,40,22,62,39]
[null,"Male householder, no wife present:",14,12,127,76,169,79,42,31,12,15,27,20,93,75,2,3,10,8,114,93,63,38,26,21,92,72,15,13,37,37]
[null,"With related children under 18 years:",4,5,81,72,144,77,23,23,12,15,17,16,93,75,0,11,7,7,35,37,18,18,17,19,14,23,12,12,4,5]
[null,"Under 5 years only",0,11,25,40,17,21,4,6,9,14,2,4,24,39,0,11,3,4,22,31,0,11,0,11,0,11,0,11,0,11]
[null,"Under 5 years and 5 to 17 years",2,3,38,58,0,18,0,11,0,11,6,10,0,11,0,11,0,11,0,16,0,11,0,11,14,23,0,11,0,11]
[null,"5 to 17 years only",2,4,18,27,127,74,19,23,3,4,9,11,69,66,0,11,4,6,13,21,18,18,17,19,0,11,12,12,4,5]
[null,"No related children under 18 years",10,10,46,37,25,24,19,21,0,11,10,12,0,11,2,3,3,4,79,86,45,33,9,10,78,70,3,5,33,37]
[null,"Female householder, no husband present:",33,19,103,62,719,205,38,21,22,17,27,15,22,24,8,6,23,17,483,175,67,38,21,19,113,52,25,18,25,16]
[null,"With related children under 18 years:",22,18,88,60,454,158,27,19,17,15,17,13,9,14,3,4,15,15,251,132,31,30,17,19,62,42,25,18,17,14]
[null,"Under 5 years only",3,4,0,16,167,103,0,11,0,11,0,11,0,11,0,11,3,4,90,82,0,11,8,13,29,32,11,14,0,11]
[null,"Under 5 years and 5 to 17 years",2,3,71,76,31,27,4,5,10,13,7,11,0,11,0,11,0,11,0,16,7,10,0,11,0,11,7,9,0,11]
[null,"5 to 17 years only",17,16,17,35,256,126,23,18,7,9,10,8,9,14,3,4,12,14,161,117,24,29,9,14,33,33,7,8,17,14]
[null,"No related children under 18 years",11,8,15,24,265,108,11,9,5,7,10,7,13,20,5,5,8,6,232,124,36,26,4,6,51,32,0,11,8,7]
[]
[]
[]
[null,"B17010. POVERTY STATUS IN THE PAST 12 MONTHS OF FAMILIES BY FAMILY TYPE BY PRESENCE OF RELATED CHILDREN UNDER 18 YEARS"]
[null,"Universe: FAMILIES"]
[null,"Data Set: 2008-2012 American Community Survey 5-Year Estimates"]
[]
[null,null,"Acworth",null,"Charlestown",null,"Claremont",null,"Cornish",null,"Croydon",null,"Goshen",null,"Grantham",null,"Langdon",null,"Lempster",null,"Newport",null,"Plainfield",null,"Springfield",null,"Sunapee",null,"Unity",null,"Washington"]
[null,null,"Estimate","Margin Of Error","Estimate","Margin Of Error","Estimate","Margin Of Error","Estimate","Margin Of Error","Estimate","Margin Of Error","Estimate","Margin Of Error","Estimate","Margin Of Error","Estimate","Margin Of Error","Estimate","Margin Of Error","Estimate","Margin Of Error","Estimate","Margin Of Error","Estimate","Margin Of Error","Estimate","Margin Of Error","Estimate","Margin Of Error","Estimate","Margin Of Error"]
[null,"Total:",206,45,1571,112,3610,209,474,68,191,36,217,39,918,73,226,45,367,56,1775,144,718,75,404,53,1034,78,407,54,345,61]
[null,"Income in the past 12 months below poverty level:",12,11,154,103,481,184,9,7,11,9,19,15,9,15,6,9,38,20,156,105,11,13,18,19,8,13,14,12,24,21]
[null,"Married-couple family:",10,11,52,43,64,51,6,6,8,9,7,8,9,15,6,9,16,13,43,46,4,6,3,5,0,11,6,6,24,21]
[null,"With related children under 18 years:",0,11,0,16,24,30,0,11,4,6,0,11,0,11,0,11,9,10,43,46,4,6,0,11,0,11,0,11,10,8]
[null,"Under 5 years only",0,11,0,16,0,18,0,11,0,11,0,11,0,11,0,11,0,11,18,26,0,11,0,11,0,11,0,11,0,11]
[null,"Under 5 years and 5 to 17 years",0,11,0,16,0,18,0,11,0,11,0,11,0,11,0,11,0,11,0,16,0,11,0,11,0,11,0,11,7,7]
[null,"5 to 17 years only",0,11,0,16,24,30,0,11,4,6,0,11,0,11,0,11,9,10,25,38,4,6,0,11,0,11,0,11,3,4]
[null,"No related children under 18 years",10,11,52,43,40,43,6,6,4,8,7,8,9,15,6,9,7,8,0,16,0,11,3,5,0,11,6,6,14,20]
[null,"Other family:",2,3,102,95,417,181,3,4,3,5,12,13,0,11,0,11,22,13,113,96,7,11,15,18,8,13,8,10,0,11]
[null,"Male householder, no wife present:",2,3,0,16,76,68,0,11,3,5,7,10,0,11,0,11,3,5,0,16,0,11,5,9,0,11,3,4,0,11]
[null,"With related children under 18 years:",2,3,0,16,76,68,0,11,3,5,7,10,0,11,0,11,3,5,0,16,0,11,0,11,0,11,3,4,0,11]
[null,"Under 5 years only",0,11,0,16,64,63,0,11,0,11,0,11,0,11,0,11,0,11,0,16,0,11,0,11,0,11,0,11,0,11]
[null,"Under 5 years and 5 to 17 years",0,11,0,16,0,18,0,11,0,11,0,11,0,11,0,11,0,11,0,16,0,11,0,11,0,11,0,11,0,11]
[null,"5 to 17 years only",2,3,0,16,12,20,0,11,3,5,7,10,0,11,0,11,3,5,0,16,0,11,0,11,0,11,3,4,0,11]
[null,"No related children under 18 years",0,11,0,16,0,18,0,11,0,11,0,11,0,11,0,11,0,11,0,16,0,11,5,9,0,11,0,11,0,11]
[null,"Female householder, no husband present:",0,11,102,95,341,161,3,4,0,11,5,7,0,11,0,11,19,12,113,96,7,11,10,16,8,13,5,9,0,11]
[null,"With related children under 18 years:",0,11,88,92,326,160,3,4,0,11,5,7,0,11,0,11,11,10,113,96,7,11,10,16,8,13,5,9,0,11]
[null,"Under 5 years only",0,11,36,56,119,82,0,11,0,11,5,7,0,11,0,11,2,4,0,16,0,11,0,11,0,11,5,9,0,11]
[null,"Under 5 years and 5 to 17 years",0,11,52,78,15,27,3,4,0,11,0,11,0,11,0,11,0,11,0,16,0,11,0,11,8,13,0,11,0,11]
[null,"5 to 17 years only",0,11,0,16,192,134,0,11,0,11,0,11,0,11,0,11,9,9,113,96,7,11,10,16,0,11,0,11,0,11]
[null,"No related children under 18 years",0,11,14,23,15,23,0,11,0,11,0,11,0,11,0,11,8,8,0,16,0,11,0,11,0,11,0,11,0,11]
[null,"Income in the past 12 months at or above poverty level:",194,43,1417,137,3129,222,465,66,180,36,198,36,909,73,220,44,329,55,1619,180,707,75,386,56,1026,79,393,54,321,59]
[null,"Married-couple family:",164,39,1185,163,2338,221,422,59,158,32,169,32,892,75,193,41,303,51,1427,174,598,76,352,54,872,102,350,53,269,48]
[null,"With related children under 18 years:",44,26,375,79,863,168,151,50,48,24,26,13,302,59,58,25,138,38,494,138,227,54,154,45,236,67,91,32,63,26]
[null,"Under 5 years only",9,10,54,52,172,82,31,21,12,18,7,10,56,36,21,21,29,19,67,73,24,23,28,24,15,22,15,13,16,13]
[null,"Under 5 years and 5 to 17 years",18,20,112,53,199,107,27,19,3,5,2,3,60,34,3,4,3,4,61,66,44,27,28,22,15,18,8,8,11,15]
[null,"5 to 17 years only",17,14,209,85,492,120,93,39,33,17,17,9,186,57,34,14,106,39,366,142,159,49,98,33,206,68,68,27,36,16]
[null,"No related children under 18 years",120,35,810,157,1475,170,271,48,110,26,143,29,590,102,135,37,165,37,933,146,371,72,198,47,636,112,259,48,206,40]
[null,"Other family:",30,24,232,124,791,173,43,27,22,16,29,18,17,14,27,22,26,22,192,81,109,48,34,22,154,87,43,22,52,29]
[null,"Male householder, no wife present:",26,24,114,89,280,112,16,17,16,14,9,11,7,9,0,11,17,18,65,53,25,17,2,4,83,82,24,20,23,20]
[null,"With related children under 18 years:",17,20,52,48,190,101,13,16,11,14,0,11,7,9,0,11,14,17,53,49,21,16,0,11,83,82,12,14,11,17]
[null,"Under 5 years only",12,19,0,16,112,82,0,11,0,11,0,11,0,11,0,11,11,16,0,16,13,13,0,11,28,43,0,11,0,11]
[null,"Under 5 years and 5 to 17 years",0,11,0,16,14,22,5,9,6,11,0,11,0,11,0,11,0,11,0,16,0,11,0,11,0,11,0,11,0,11]
[null,"5 to 17 years only",5,7,52,48,64,49,8,10,5,8,0,11,7,9,0,11,3,4,53,49,8,11,0,11,55,51,12,14,11,17]
[null,"No related children under 18 years",9,11,62,81,90,55,3,5,5,5,9,11,0,11,0,11,3,5,12,20,4,6,2,4,0,11,12,13,12,9]
[null,"Female householder, no husband present:",4,4,118,86,511,133,27,20,6,7,20,12,10,11,27,22,9,13,127,64,84,48,32,21,71,41,19,16,29,20]
[null,"With related children under 18 years:",2,3,98,84,279,108,17,17,4,6,8,7,0,11,19,19,9,13,64,50,39,43,24,18,32,28,6,6,10,15]
[null,"Under 5 years only",0,11,0,16,11,18,0,11,0,11,3,4,0,11,0,11,0,11,0,16,0,11,10,15,0,11,6,6,0,11]
[null,"Under 5 years and 5 to 17 years",0,11,39,59,37,57,3,4,2,5,0,11,0,11,0,11,0,11,15,23,0,11,0,11,7,12,0,11,0,11]
[null,"5 to 17 years only",2,3,59,56,231,91,14,17,2,3,5,6,0,11,19,19,9,13,49,41,39,43,14,10,25,30,0,11,10,15]
[null,"No related children under 18 years",2,3,20,33,232,90,10,10,2,3,12,11,10,11,8,10,0,11,63,43,45,32,8,12,39,31,13,15,19,13]

{"sheet":"ACS_Table_B17017","index":54,"n_rows":213,"n_cols":32,"rows_kept":213,"cut":false,"hidden":true,"merged":[]}
[null,"B17017. POVERTY STATUS IN THE PAST 12 MONTHS BY HOUSEHOLD TYPE BY AGE OF HOUSEHOLDER"]
[null,"Universe: HOUSEHOLDS"]
[null,"Data Set: 2018-2022 American Community Survey 5-Year Estimates"]
[]
[null,null,"Acworth",null,"Charlestown",null,"Claremont",null,"Cornish",null,"Croydon",null,"Goshen",null,"Grantham",null,"Langdon",null,"Lempster",null,"Newport",null,"Plainfield",null,"Springfield",null,"Sunapee",null,"Unity",null,"Washington"]
[null,null,"Estimate","Margin Of Error","Estimate","Margin Of Error","Estimate","Margin Of Error","Estimate","Margin Of Error","Estimate","Margin Of Error","Estimate","Margin Of Error","Estimate","Margin Of Error","Estimate","Margin Of Error","Estimate","Margin Of Error","Estimate","Margin Of Error","Estimate","Margin Of Error","Estimate","Margin Of Error","Estimate","Margin Of Error","Estimate","Margin Of Error","Estimate","Margin Of Error"]
[null,"Total:",239,42,1847,209,5203,325,762,147,232,49,303,72,1149,128,226,45,316,61,2478,224,831,84,294,83,1122,162,478,77,413,71]
[null,"Income in the past 12 months below poverty level:",21,17,351,171,828,268,59,64,23,17,33,23,0,12,15,12,16,12,389,166,50,36,24,19,93,67,49,25,13,17]
[null,"Family households:",12,13,98,68,364,157,8,8,10,11,3,7,0,12,14,12,5,8,164,118,34,32,3,4,31,36,26,19,10,17]
[null,"Married-couple family:",5,5,32,48,130,112,4,6,5,7,0,12,0,12,8,11,0,12,78,91,28,31,3,4,21,33,22,18,10,17]
[null,"Householder under 25 years",0,12,0,12,0,19,0,12,0,12,0,12,0,12,0,12,0,12,0,17,0,12,0,12,0,12,0,12,0,12]
[null,"Householder 25 to 44 years",0,12,32,48,45,71,4,6,0,12,0,12,0,12,7,10,0,12,0,17,0,12,0,12,0,12,4,5,0,12]
[null,"Householder 45 to 64 years",0,12,0,12,85,92,0,12,5,7,0,12,0,12,1,4,0,12,13,20,9,13,0,12,21,33,15,16,10,17]
[null,"Householder 65 years and over",5,5,0,12,0,19,0,12,0,12,0,12,0,12,0,12,0,12,65,89,19,27,3,4,0,12,3,5,0,12]
[null,"Other family:",7,12,66,64,234,116,4,5,5,8,3,7,0,12,6,6,5,8,86,79,6,9,0,12,10,16,4,6,0,12]
[null,"Male householder, no spouse present:",7,12,26,44,21,29,0,12,0,12,3,7,0,12,0,12,0,12,0,17,6,9,0,12,0,12,0,12,0,12]
[null,"Householder under 25 years",0,12,0,12,2,3,0,12,0,12,0,12,0,12,0,12,0,12,0,17,0,12,0,12,0,12,0,12,0,12]
[null,"Householder 25 to 44 years",0,12,0,12,19,28,0,12,0,12,1,4,0,12,0,12,0,12,0,17,0,12,0,12,0,12,0,12,0,12]
[null,"Householder 45 to 64 years",0,12,26,44,0,19,0,12,0,12,2,4,0,12,0,12,0,12,0,17,6,9,0,12,0,12,0,12,0,12]
[null,"Householder 65 years and over",7,12,0,12,0,19,0,12,0,12,0,12,0,12,0,12,0,12,0,17,0,12,0,12,0,12,0,12,0,12]
[null,"Female householder, no spouse present:",0,12,40,51,213,115,4,5,5,8,0,12,0,12,6,6,5,8,86,79,0,12,0,12,10,16,4,6,0,12]
[null,"Householder under 25 years",0,12,0,12,16,24,0,12,0,12,0,12,0,12,0,12,0,12,0,17,0,12,0,12,0,12,0,12,0,12]
[null,"Householder 25 to 44 years",0,12,40,51,142,100,0,12,5,8,0,12,0,12,3,4,5,8,17,30,0,12,0,12,10,16,0,12,0,12]
[null,"Householder 45 to 64 years",0,12,0,12,52,65,4,5,0,12,0,12,0,12,0,12,0,12,69,76,0,12,0,12,0,12,4,6,0,12]
[null,"Householder 65 years and over",0,12,0,12,3,5,0,12,0,12,0,12,0,12,3,4,0,12,0,17,0,12,0,12,0,12,0,12,0,12]
[null,"Nonfamily households:",9,11,253,156,464,212,51,64,13,14,30,21,0,12,1,3,11,9,225,130,16,13,21,19,62,63,23,16,3,4]
[null,"Male householder:",9,11,158,126,108,65,45,63,6,9,6,9,0,12,0,12,11,9,15,24,10,9,21,19,28,44,10,13,0,12]
[null,"Householder under 25 years",0,12,0,12,17,17,0,12,1,2,0,12,0,12,0,12,0,12,0,17,0,12,0,12,0,12,7,12,0,12]
[null,"Householder 25 to 44 years",7,10,60,69,29,31,0,12,0,12,5,8,0,12,0,12,3,4,15,24,0,12,3,5,0,12,0,12,0,12]
[null,"Householder 45 to 64 years",0,12,57,89,62,47,0,12,0,12,0,12,0,12,0,12,8,9,0,17,0,12,0,12,28,44,0,12,0,12]
[null,"Householder 65 years and over",2,4,41,50,0,19,45,63,5,9,1,3,0,12,0,12,0,12,0,17,10,9,18,19,0,12,3,5,0,12]
[null,"Female householder:",0,12,95,89,356,201,6,6,7,9,24,18,0,12,1,3,0,12,210,123,6,11,0,12,34,44,13,12,3,4]
[null,"Householder under 25 years",0,12,0,12,0,19,0,12,0,12,0,12,0,12,0,12,0,12,25,30,0,12,0,12,0,12,0,12,0,12]
[null,"Householder 25 to 44 years",0,12,0,12,118,128,0,12,0,12,0,12,0,12,0,12,0,12,50,76,0,12,0,12,0,12,7,10,0,12]
[null,"Householder 45 to 64 years",0,12,79,81,152,120,0,12,5,9,4,8,0,12,0,12,0,12,0,17,6,11,0,12,0,12,0,12,3,4]
[null,"Householder 65 years and over",0,12,16,29,86,69,6,6,2,3,20,16,0,12,1,3,0,12,135,92,0,12,0,12,34,44,6,6,0,12]
[null,"Income in the past 12 months at or above poverty level:",218,41,1496,188,4375,408,703,144,209,46,270,67,1149,128,211,43,300,61,2089,227,781,80,270,77,1029,158,429,72,400,70]
[null,"Family households:",174,36,1074,134,2462,275,412,62,169,41,199,61,979,125,163,41,209,46,1178,202,628,79,211,75,690,105,304,54,332,64]
[null,"Married-couple family:",142,32,885,153,1745,275,366,58,129,35,158,54,867,162,161,41,166,43,989,203,534,93,172,55,600,105,269,55,297,62]
[null,"Householder under 25 years",0,12,0,12,0,19,2,3,0,12,0,12,0,12,0,12,0,12,0,17,6,10,0,12,0,12,0,12,0,12]
[null,"Householder 25 to 44 years",31,21,210,96,431,131,67,25,33,20,58,28,191,136,42,27,45,23,372,143,167,96,36,27,168,80,24,14,28,17]
[null,"Householder 45 to 64 years",61,25,326,124,845,184,158,42,51,23,69,45,445,144,72,25,79,29,374,133,196,45,86,40,209,60,143,42,166,52]
[null,"Householder 65 years and over",50,19,349,126,469,146,139,39,45,19,31,20,231,100,47,18,42,16,243,134,165,77,50,27,223,70,102,28,103,29]
[null,"Other family:",32,21,189,91,717,165,46,20,40,27,41,23,112,89,2,3,43,22,189,107,94,56,39,42,90,52,35,16,35,23]
[null,"Male householder, no spouse present:",15,11,70,72,171,82,20,13,31,26,10,17,112,89,0,12,23,18,38,33,40,41,0,12,53,39,25,15,21,20]
[null,"Householder under 25 years",0,12,0,12,0,19,0,12,0,12,0,12,0,12,0,12,0,12,0,17,0,12,0,12,0,12,0,12,0,12]
[null,"Householder 25 to 44 years",8,8,70,72,104,71,7,7,6,7,0,12,18,27,0,12,12,14,0,17,0,12,0,12,7,11,15,12,11,13]
[null,"Householder 45 to 64 years",7,8,0,12,50,51,13,10,21,23,10,17,53,50,0,12,8,11,31,30,40,41,0,12,21,25,7,7,9,14]
[null,"Householder 65 years and over",0,12,0,12,17,27,0,12,4,5,0,12,41,62,0,12,3,4,7,15,0,12,0,12,25,27,3,4,1,4]
[null,"Female householder, no spouse present:",17,16,119,59,546,148,26,15,9,8,31,16,0,12,2,3,20,11,151,99,54,40,39,42,37,35,10,7,14,13]
[null,"Householder under 25 years",0,12,0,12,0,19,0,12,0,12,0,12,0,12,0,12,0,12,0,17,0,12,0,12,0,12,0,12,0,12]
[null,"Householder 25 to 44 years",0,12,25,28,340,136,5,7,0,12,4,5,0,12,0,12,16,11,75,82,6,10,28,39,18,27,0,12,0,12]
[null,"Householder 45 to 64 years",8,13,39,46,92,72,13,11,5,6,11,11,0,12,2,3,3,4,37,35,34,35,3,6,12,17,2,4,14,13]
[null,"Householder 65 years and over",9,9,55,55,114,58,8,8,4,5,16,10,0,12,0,12,1,2,39,38,14,12,8,13,7,11,8,6,0,12]
[null,"Nonfamily households:",44,25,422,168,1913,294,291,131,40,17,71,23,170,118,48,18,91,39,911,234,153,69,59,28,339,146,125,42,68,32]
[null,"Male householder:",36,23,131,92,1149,248,89,32,18,11,34,14,53,71,12,9,71,35,478,199,56,39,30,21,230,136,82,38,34,24]
[null,"Householder under 25 years",1,2,0,12,22,21,0,12,2,4,1,2,0,12,0,12,0,12,4,8,0,12,0,12,0,12,0,12,0,12]
[null,"Householder 25 to 44 years",2,3,0,12,285,119,34,22,0,12,0,12,0,12,3,3,0,12,266,155,25,24,0,12,70,78,16,14,9,14]
[null,"Householder 45 to 64 years",27,22,16,21,403,221,24,16,7,7,16,12,17,26,7,7,37,25,106,74,20,25,20,17,19,22,24,19,14,20]
[null,"Householder 65 years and over",6,5,115,89,439,171,31,20,9,8,17,11,36,63,2,3,34,25,102,71,11,11,10,12,141,108,42,26,11,9]
[null,"Female householder:",8,8,291,118,764,188,202,130,22,14,37,19,117,87,36,16,20,14,433,160,97,47,29,20,109,57,43,19,34,21]
[null,"Householder under 25 years",0,12,0,12,91,68,0,12,0,12,0,12,13,22,0,12,0,12,83,110,0,12,0,12,0,12,0,12,0,12]
[null,"Householder 25 to 44 years",0,12,30,33,126,77,9,9,3,4,7,9,0,12,3,3,0,12,57,48,10,13,0,12,49,42,12,14,0,12]
[null,"Householder 45 to 64 years",2,3,77,47,184,108,124,133,11,12,6,9,0,12,13,12,2,3,122,89,39,28,16,14,35,28,7,6,3,4]
[null,"Householder 65 years and over",6,7,184,99,363,128,69,31,8,6,24,13,104,83,20,11,18,14,171,96,48,32,13,14,25,21,24,11,31,21]
[]
[]
[]
[]
[]
[]
[]
[]
[]
[null,"B17017. POVERTY STATUS IN THE PAST 12 MONTHS BY HOUSEHOLD TYPE BY AGE OF HOUSEHOLDER"]
[null,"Universe: HOUSEHOLDS"]
[null,"Data Set: 2013-2017 American Community Survey 5-Year Estimates"]
[]
[null,null,"Acworth",null,"Charlestown",null,"Claremont",null,"Cornish",null,"Croydon",null,"Goshen",null,"Grantham",null,"Langdon",null,"Lempster",null,"Newport",null,"Plainfield",null,"Springfield",null,"Sunapee",null,"Unity",null,"Washington"]
[null,null,"Estimate","Margin Of Error","Estimate","Margin Of Error","Estimate","Margin Of Error","Estimate","Margin Of Error","Estimate","Margin Of Error","Estimate","Margin Of Error","Estimate","Margin Of Error","Estimate","Margin Of Error","Estimate","Margin Of Error","Estimate","Margin Of Error","Estimate","Margin Of Error","Estimate","Margin Of Error","Estimate","Margin Of Error"]
[null,"Total:",427,62,2102,160,5567,221,722,71,274,49,271,48,1153,125,292,38,409,63,2573,202,920,83,435,74,1553,140,526,60,556,85]
[null,"Income in the past 12 months below poverty level:",23,13,197,94,715,231,43,27,9,7,23,18,24,34,31,19,31,19,257,117,28,19,21,17,120,86,43,23,35,24]
[null,"Family households:",15,11,107,66,202,96,24,23,6,6,14,12,24,34,12,11,12,12,131,93,10,11,11,11,27,26,8,8,15,12]
[null,"Married-couple family:",10,10,49,47,117,72,20,23,6,6,5,5,0,11,4,4,9,13,28,32,5,8,11,11,11,17,3,5,11,10]
[null,"Householder under 25 years",0,11,0,16,0,18,0,11,0,11,0,11,0,11,0,11,0,11,14,22,0,11,0,11,0,11,0,11,0,11]
[null,"Householder 25 to 44 years",0,11,13,21,59,52,0,11,0,11,1,3,0,11,0,11,9,13,0,16,0,11,0,11,0,11,0,11,0,11]
[null,"Householder 45 to 64 years",8,10,36,43,36,42,20,23,6,6,4,4,0,11,0,11,0,11,14,22,5,8,11,11,11,17,3,5,6,9]
[null,"Householder 65 years and over",2,3,0,16,22,25,0,11,0,11,0,11,0,11,4,4,0,11,0,16,0,11,0,11,0,11,0,11,5,5]
[null,"Other family:",5,5,58,48,85,70,4,6,0,11,9,11,24,34,8,10,3,4,103,89,5,7,0,11,16,19,5,6,4,5]
[null,"Male householder, no wife present:",2,3,8,11,10,17,4,6,0,11,7,10,0,11,0,11,0,11,14,22,0,11,0,11,7,12,5,6,4,5]
[null,"Householder under 25 years",0,11,8,11,0,18,0,11,0,11,7,10,0,11,0,11,0,11,0,16,0,11,0,11,7,12,0,11,0,11]
[null,"Householder 25 to 44 years",0,11,0,16,0,18,0,11,0,11,0,11,0,11,0,11,0,11,0,16,0,11,0,11,0,11,5,6,0,11]
[null,"Householder 45 to 64 years",2,3,0,16,10,17,4,6,0,11,0,11,0,11,0,11,0,11,14,22,0,11,0,11,0,11,0,11,4,5]
[null,"Householder 65 years and over",0,11,0,16,0,18,0,11,0,11,0,11,0,11,0,11,0,11,0,16,0,11,0,11,0,11,0,11,0,11]
[null,"Female householder, no husband present:",3,4,50,45,75,65,0,11,0,11,2,3,24,34,8,10,3,4,89,85,5,7,0,11,9,14,0,11,0,11]
[null,"Householder under 25 years",0,11,0,16,0,18,0,11,0,11,0,11,0,11,0,11,0,11,33,54,0,11,0,11,0,11,0,11,0,11]
[null,"Householder 25 to 44 years",0,11,36,40,67,64,0,11,0,11,2,3,0,11,6,10,3,4,41,64,0,11,0,11,9,14,0,11,0,11]
[null,"Householder 45 to 64 years",3,4,0,16,0,18,0,11,0,11,0,11,24,34,2,3,0,11,15,24,0,11,0,11,0,11,0,11,0,11]
[null,"Householder 65 years and over",0,11,14,23,8,14,0,11,0,11,0,11,0,11,0,11,0,11,0,16,5,7,0,11,0,11,0,11,0,11]
[null,"Nonfamily households:",8,6,90,67,513,196,19,12,3,5,9,12,0,11,19,15,19,15,126,76,18,15,10,14,93,85,35,21,20,21]
[null,"Male householder:",8,6,30,45,216,126,7,8,0,11,2,3,0,11,2,3,9,8,58,59,7,10,10,14,50,61,13,10,18,21]
[null,"Householder under 25 years",0,11,0,16,80,103,0,11,0,11,0,11,0,11,0,11,0,11,0,16,0,11,0,11,0,11,0,11,0,11]
[null,"Householder 25 to 44 years",2,4,0,16,0,18,4,6,0,11,0,11,0,11,0,11,0,11,0,16,0,11,7,11,0,11,5,6,0,11]
[null,"Householder 45 to 64 years",4,4,30,45,126,83,3,6,0,11,0,11,0,11,2,3,9,8,16,26,7,10,0,11,50,61,8,11,10,15]
[null,"Householder 65 years and over",2,3,0,16,10,16,0,11,0,11,2,3,0,11,0,11,0,11,42,68,0,11,3,7,0,11,0,11,8,15]
[null,"Female householder:",0,11,60,49,297,133,12,9,3,5,7,12,0,11,17,15,10,13,68,49,11,11,0,11,43,61,22,18,2,4]
[null,"Householder under 25 years",0,11,0,16,20,31,0,11,0,11,0,11,0,11,5,8,0,11,26,29,0,11,0,11,0,11,0,11,0,11]
[null,"Householder 25 to 44 years",0,11,0,16,48,49,0,11,0,11,0,11,0,11,0,11,0,11,15,25,0,11,0,11,0,11,0,11,0,11]
[null,"Householder 45 to 64 years",0,11,15,25,167,108,6,6,2,4,7,12,0,11,12,14,3,4,27,31,5,7,0,11,36,58,19,19,0,11]
[null,"Householder 65 years and over",0,11,45,41,62,60,6,6,1,3,0,11,0,11,0,11,7,12,0,16,6,8,0,11,7,13,3,5,2,4]
[null,"Income in the past 12 months at or above poverty level:",404,62,1905,165,4852,292,679,71,265,49,248,45,1129,123,261,37,378,63,2316,223,892,83,414,71,1433,133,483,55,521,86]
[null,"Family households:",286,49,1268,128,3091,278,494,64,188,41,173,38,844,96,206,34,226,47,1576,167,682,79,315,59,867,91,363,52,402,82]
[null,"Married-couple family:",239,45,1038,165,2203,254,414,55,154,40,119,29,729,108,196,34,193,50,979,191,552,79,268,56,662,114,323,45,340,77]
[null,"Householder under 25 years",0,11,0,16,99,117,0,11,0,11,0,11,0,11,0,11,3,4,0,16,5,7,0,11,11,17,0,11,3,5]
[null,"Householder 25 to 44 years",40,22,165,79,572,138,65,25,34,22,26,11,88,50,74,23,49,24,213,111,146,47,27,20,159,77,45,22,107,63]
[null,"Householder 45 to 64 years",116,32,642,122,975,148,209,39,76,29,57,20,438,95,80,25,96,33,552,143,264,52,149,43,307,88,155,41,146,35]
[null,"Householder 65 years and over",83,29,231,93,557,122,140,35,44,21,36,18,203,72,42,14,45,20,214,80,137,42,92,32,185,65,123,27,84,22]
[null,"Other family:",47,21,230,101,888,203,80,36,34,20,54,24,115,80,10,7,33,19,597,189,130,52,47,25,205,82,40,22,62,39]
[null,"Male householder, no wife present:",14,12,127,76,169,79,42,31,12,15,27,20,93,75,2,3,10,8,114,93,63,38,26,21,92,72,15,13,37,37]
[null,"Householder under 25 years",0,11,0,16,9,16,0,11,0,11,0,11,22,35,0,11,0,11,35,37,0,11,0,11,0,11,0,11,0,11]
[null,"Householder 25 to 44 years",4,5,43,47,104,69,4,5,2,3,17,16,60,67,2,3,7,7,48,77,6,9,10,15,14,23,3,5,0,11]
[null,"Householder 45 to 64 years",6,9,84,68,52,38,19,22,10,15,10,12,11,19,0,11,0,11,16,26,52,36,16,15,45,48,12,12,37,37]
[null,"Householder 65 years and over",4,5,0,16,4,8,19,21,0,11,0,11,0,11,0,11,3,4,15,26,5,8,0,11,33,52,0,11,0,11]
[null,"Female householder, no husband present:",33,19,103,62,719,205,38,21,22,17,27,15,22,24,8,6,23,17,483,175,67,38,21,19,113,52,25,18,25,16]
[null,"Householder under 25 years",0,11,0,16,7,12,0,11,0,11,0,11,0,11,0,11,0,11,31,41,0,11,0,11,0,11,0,11,0,11]
[null,"Householder 25 to 44 years",10,9,71,76,354,126,18,17,5,8,13,12,0,11,0,11,3,4,189,128,13,14,0,11,45,35,20,17,13,14]
[null,"Householder 45 to 64 years",17,15,17,35,161,84,17,11,12,12,12,10,13,20,3,4,17,15,95,75,18,27,11,14,17,27,5,7,7,6]
[null,"Householder 65 years and over",6,6,15,24,197,112,3,4,5,8,2,3,9,14,5,5,3,4,168,108,36,26,10,14,51,32,0,11,5,7]
[null,"Nonfamily households:",118,36,637,178,1761,281,185,48,77,29,75,26,285,117,55,21,152,47,740,203,210,57,99,47,566,159,120,38,119,40]
[null,"Male householder:",66,27,238,119,856,216,60,29,52,27,38,24,98,64,30,20,85,35,325,142,91,43,66,40,245,122,66,28,73,32]
[null,"Householder under 25 years",0,11,13,29,101,82,0,11,0,11,0,11,0,11,0,11,0,11,0,16,0,11,9,14,35,53,0,11,0,11]
[null,"Householder 25 to 44 years",16,11,68,58,179,107,13,16,12,12,4,8,66,59,11,13,5,7,162,109,10,9,14,15,136,100,0,11,0,11]
[null,"Householder 45 to 64 years",20,13,63,48,388,133,25,15,22,16,25,20,0,11,12,14,71,33,63,53,25,18,20,23,27,26,40,25,36,26]
[null,"Householder 65 years and over",30,20,94,77,188,69,22,17,18,14,9,11,32,28,7,8,9,13,100,83,56,39,23,22,47,39,26,18,37,19]
[null,"Female householder:",52,30,399,147,905,201,125,37,25,15,37,15,187,97,25,12,67,30,415,145,119,43,33,21,321,109,54,25,46,22]
[null,"Householder under 25 years",0,11,13,22,53,50,0,11,0,11,0,11,0,11,0,11,0,11,10,16,0,11,0,11,7,13,0,11,0,11]
[null,"Householder 25 to 44 years",0,11,9,17,171,103,9,8,4,6,4,4,30,40,4,5,13,18,71,77,11,8,0,11,10,16,9,9,0,11]
[null,"Householder 45 to 64 years",11,10,148,97,391,126,45,27,11,13,13,11,82,79,12,10,26,16,137,62,69,33,28,21,157,85,40,22,18,17]
[null,"Householder 65 years and over",41,28,229,105,290,99,71,28,10,8,20,12,75,62,9,7,28,17,197,94,39,25,5,8,147,67,5,6,28,13]
[]
[]
[]
[]
[]
[]
[]
[]
[]
[null,"B17017. POVERTY STATUS IN THE PAST 12 MONTHS BY HOUSEHOLD TYPE BY AGE OF HOUSEHOLDER"]
[null,"Universe: HOUSEHOLDS"]
[null,"Data Set: 2008-2012 American Community Survey 5-Year Estimates"]
[]
[null,null,"Acworth",null,"Charlestown",null,"Claremont",null,"Cornish",null,"Croydon",null,"Goshen",null,"Grantham",null,"Langdon",null,"Lempster",null,"Newport",null,"Plainfield",null,"Springfield",null,"Sunapee",null,"Unity",null,"Washington"]
[null,null,"Estimate","Margin Of Error","Estimate","Margin Of Error","Estimate","Margin Of Error","Estimate","Margin Of Error","Estimate","Margin Of Error","Estimate","Margin Of Error","Estimate","Margin Of Error","Estimate","Margin Of Error","Estimate","Margin Of Error","Estimate","Margin Of Error","Estimate","Margin Of Error","Estimate","Margin Of Error","Estimate","Margin Of Error","Estimate","Margin Of Error","Estimate","Margin Of Error"]
[null,"Total:",294,54,2310,107,5721,232,657,69,289,43,331,48,1119,80,278,45,427,58,2684,193,920,76,497,60,1458,100,599,58,465,69]
[null,"Income in the past 12 months below poverty level:",28,14,194,107,883,228,31,15,17,12,29,17,22,20,10,10,42,20,446,189,18,18,44,25,61,56,38,25,39,23]
[null,"Family households:",12,11,154,103,481,184,9,7,11,9,19,15,9,15,6,9,38,20,156,105,11,13,18,19,8,13,14,12,24,21]
[null,"Married-couple family:",10,11,52,43,64,51,6,6,8,9,7,8,9,15,6,9,16,13,43,46,4,6,3,5,0,11,6,6,24,21]
[null,"Householder under 25 years",0,11,0,16,0,18,0,11,0,11,0,11,0,11,0,11,0,11,18,26,0,11,0,11,0,11,0,11,0,11]
[null,"Householder 25 to 44 years",0,11,0,16,20,23,0,11,4,6,0,11,0,11,0,11,4,6,25,38,0,11,0,11,0,11,0,11,6,6]
[null,"Householder 45 to 64 years",10,11,31,36,38,45,6,6,4,8,4,7,9,15,6,9,8,9,0,16,4,6,0,11,0,11,3,4,15,19]
[null,"Householder 65 years and over",0,11,21,23,6,9,0,11,0,11,3,5,0,11,0,11,4,6,0,16,0,11,3,5,0,11,3,4,3,6]
[null,"Other family:",2,3,102,95,417,181,3,4,3,5,12,13,0,11,0,11,22,13,113,96,7,11,15,18,8,13,8,10,0,11]
[null,"Male householder, no wife present:",2,3,0,16,76,68,0,11,3,5,7,10,0,11,0,11,3,5,0,16,0,11,5,9,0,11,3,4,0,11]
[null,"Householder under 25 years",0,11,0,16,12,21,0,11,0,11,0,11,0,11,0,11,0,11,0,16,0,11,0,11,0,11,0,11,0,11]
[null,"Householder 25 to 44 years",0,11,0,16,52,59,0,11,0,11,7,10,0,11,0,11,3,5,0,16,0,11,0,11,0,11,0,11,0,11]
[null,"Householder 45 to 64 years",2,3,0,16,12,20,0,11,3,5,0,11,0,11,0,11,0,11,0,16,0,11,5,9,0,11,0,11,0,11]
[null,"Householder 65 years and over",0,11,0,16,0,18,0,11,0,11,0,11,0,11,0,11,0,11,0,16,0,11,0,11,0,11,3,4,0,11]
[null,"Female householder, no husband present:",0,11,102,95,341,161,3,4,0,11,5,7,0,11,0,11,19,12,113,96,7,11,10,16,8,13,5,9,0,11]
[null,"Householder under 25 years",0,11,0,16,80,58,0,11,0,11,5,7,0,11,0,11,2,4,0,16,0,11,0,11,0,11,5,9,0,11]
[null,"Householder 25 to 44 years",0,11,88,92,247,149,0,11,0,11,0,11,0,11,0,11,6,9,98,93,7,11,0,11,8,13,0,11,0,11]
[null,"Householder 45 to 64 years",0,11,0,16,14,21,3,4,0,11,0,11,0,11,0,11,6,6,15,26,0,11,10,16,0,11,0,11,0,11]
[null,"Householder 65 years and over",0,11,14,23,0,18,0,11,0,11,0,11,0,11,0,11,5,7,0,16,0,11,0,11,0,11,0,11,0,11]
[null,"Nonfamily households:",16,11,40,35,402,144,22,14,6,7,10,6,13,14,4,4,4,6,290,136,7,12,26,17,53,54,24,22,15,10]
[null,"Male householder:",2,3,7,13,158,87,13,11,2,3,0,11,7,10,0,11,4,6,163,105,7,12,21,17,53,54,18,21,9,9]
[null,"Householder under 25 years",0,11,0,16,42,50,0,11,0,11,0,11,0,11,0,11,0,11,0,16,0,11,0,11,31,49,0,11,0,11]
[null,"Householder 25 to 44 years",0,11,0,16,27,30,5,8,0,11,0,11,0,11,0,11,0,11,69,76,0,11,12,18,0,11,0,11,0,11]
[null,"Householder 45 to 64 years",2,3,0,16,80,58,5,6,0,11,0,11,7,10,0,11,4,6,36,36,0,11,9,13,22,29,18,21,0,11]
[null,"Householder 65 years and over",0,11,7,13,9,13,3,4,2,3,0,11,0,11,0,11,0,11,58,56,7,12,0,11,0,11,0,11,9,9]
[null,"Female householder:",14,11,33,33,244,110,9,9,4,7,10,6,6,10,4,4,0,11,127,75,0,11,5,5,0,11,6,6,6,6]
[null,"Householder under 25 years",4,6,0,16,15,18,0,11,0,11,0,11,0,11,0,11,0,11,28,45,0,11,0,11,0,11,0,11,0,11]
[null,"Householder 25 to 44 years",0,11,0,16,60,66,0,11,0,11,2,3,0,11,0,11,0,11,0,16,0,11,0,11,0,11,0,11,3,4]
[null,"Householder 45 to 64 years",6,8,8,14,94,63,5,6,0,11,0,11,6,10,4,4,0,11,38,35,0,11,2,3,0,11,3,4,3,4]
[null,"Householder 65 years and over",4,5,25,29,75,51,4,7,4,7,8,6,0,11,0,11,0,11,61,44,0,11,3,4,0,11,3,4,0,11]
[null,"Income in the past 12 months at or above poverty level:",266,50,2116,164,4838,256,626,69,272,45,302,46,1097,77,268,44,385,61,2238,199,902,76,453,61,1397,107,561,60,426,67]
[null,"Family households:",194,43,1417,137,3129,222,465,66,180,36,198,36,909,73,220,44,329,55,1619,180,707,75,386,56,1026,79,393,54,321,59]
[null,"Married-couple family:",164,39,1185,163,2338,221,422,59,158,32,169,32,892,75,193,41,303,51,1427,174,598,76,352,54,872,102,350,53,269,48]
[null,"Householder under 25 years",2,4,0,16,43,49,6,8,0,11,0,11,0,11,0,11,0,11,26,44,0,11,0,11,0,11,10,11,0,11]
[null,"Householder 25 to 44 years",46,26,400,108,840,175,95,41,53,22,24,22,212,59,57,30,113,40,317,141,126,36,164,44,191,74,76,29,67,24]
[null,"Householder 45 to 64 years",59,26,615,143,977,145,244,46,75,20,103,25,420,63,83,29,139,31,845,118,374,79,119,39,418,102,199,39,98,27]
[null,"Householder 65 years and over",57,25,170,88,478,100,77,32,30,15,42,19,260,65,53,25,51,25,239,76,98,35,69,27,263,71,65,25,104,30]
[null,"Other family:",30,24,232,124,791,173,43,27,22,16,29,18,17,14,27,22,26,22,192,81,109,48,34,22,154,87,43,22,52,29]
[null,"Male householder, no wife present:",26,24,114,89,280,112,16,17,16,14,9,11,7,9,0,11,17,18,65,53,25,17,2,4,83,82,24,20,23,20]
[null,"Householder under 25 years",7,11,0,16,41,52,0,11,0,11,4,7,0,11,0,11,0,11,0,16,0,11,0,11,0,11,0,11,0,11]
[null,"Householder 25 to 44 years",17,20,35,39,81,58,5,9,6,11,0,11,0,11,0,11,11,16,65,53,21,16,0,11,28,43,15,17,11,17]
[null,"Householder 45 to 64 years",2,3,79,81,139,75,3,4,7,8,5,9,7,9,0,11,6,6,0,16,4,6,2,4,55,51,9,14,7,7]
[null,"Householder 65 years and over",0,11,0,16,19,21,8,10,3,5,0,11,0,11,0,11,0,11,0,16,0,11,0,11,0,11,0,11,5,6]
[null,"Female householder, no husband present:",4,4,118,86,511,133,27,20,6,7,20,12,10,11,27,22,9,13,127,64,84,48,32,21,71,41,19,16,29,20]
[null,"Householder under 25 years",0,11,0,16,21,24,0,11,0,11,0,11,0,11,0,11,0,11,0,16,0,11,0,11,0,11,7,8,0,11]
[null,"Householder 25 to 44 years",2,3,83,71,275,115,13,16,4,6,8,7,0,11,15,18,9,13,45,42,32,43,16,16,32,28,0,11,13,16]
[null,"Householder 45 to 64 years",2,3,35,52,86,62,7,8,2,3,10,11,0,11,10,11,0,11,52,36,19,14,8,7,25,22,3,4,14,10]
[null,"Householder 65 years and over",0,11,0,16,129,60,7,8,0,11,2,3,10,11,2,3,0,11,30,32,33,30,8,12,14,23,9,14,2,4]
[null,"Nonfamily households:",72,27,699,157,1709,264,161,45,92,34,104,41,188,74,48,28,56,28,619,199,195,55,67,28,371,123,168,54,105,35]
[null,"Male householder:",45,24,274,130,732,188,81,36,48,24,57,30,106,53,39,28,29,20,177,104,138,52,56,27,205,103,102,46,67,26]
[null,"Householder under 25 years",2,3,0,16,43,50,5,8,0,11,0,11,0,11,0,11,0,11,19,30,0,11,0,11,27,40,0,11,0,11]
[null,"Householder 25 to 44 years",10,11,58,61,160,95,12,14,14,14,28,24,88,47,25,25,3,6,50,49,14,23,14,18,31,40,50,43,7,7]
[null,"Householder 45 to 64 years",33,22,138,79,332,113,46,26,24,15,13,10,7,8,9,8,16,12,59,46,76,37,16,14,54,52,47,18,26,14]
[null,"Householder 65 years and over",0,11,78,68,197,89,18,18,10,10,16,16,11,17,5,5,10,13,49,62,48,33,26,16,93,66,5,5,34,20]
[null,"Female householder:",27,17,425,124,977,185,80,28,44,25,47,22,82,48,9,7,27,16,442,168,57,27,11,11,166,79,66,31,38,20]
[null,"Householder under 25 years",0,11,0,16,52,45,0,11,0,11,0,11,0,11,0,11,0,11,13,20,0,11,0,11,21,22,0,11,0,11]
[null,"Householder 25 to 44 years",5,9,25,43,148,83,17,14,0,11,3,5,0,11,4,4,0,11,137,123,7,10,5,7,34,47,3,5,0,11]
[null,"Householder 45 to 64 years",15,10,212,88,375,114,36,18,30,20,21,15,36,35,0,11,15,10,78,57,21,17,6,9,50,44,26,19,21,17]
[null,"Householder 65 years and over",7,10,188,85,402,96,27,17,14,17,23,15,46,31,5,5,12,13,214,97,29,18,0,11,61,43,37,23,17,9]

{"sheet":"ACS_Table_B03002","index":55,"n_rows":108,"n_cols":32,"rows_kept":108,"cut":false,"hidden":true,"merged":[]}
[null,"B03002. HISPANIC OR LATINO ORIGIN BY RACE"]
[null,"Universe:  TOTAL POPULATION"]
[null,"Data Set: 2018-2022 American Community Survey 5-Year Estimates"]
[]
[null,null,"Acworth",null,"Charlestown",null,"Claremont",null,"Cornish",null,"Croydon",null,"Goshen",null,"Grantham",null,"Langdon",null,"Lempster",null,"Newport",null,"Plainfield",null,"Springfield",null,"Sunapee",null,"Unity",null,"Washington"]
[null,null,"Estimate","Margin Of Error","Estimate","Margin Of Error","Estimate","Margin Of Error","Estimate","Margin Of Error","Estimate","Margin Of Error","Estimate","Margin Of Error","Estimate","Margin Of Error","Estimate","Margin Of Error","Estimate","Margin Of Error","Estimate","Margin Of Error","Estimate","Margin Of Error","Estimate","Margin Of Error","Estimate","Margin Of Error","Estimate","Margin Of Error","Estimate","Margin Of Error"]
[null,"Total:",927,278,4855,16,13018,24,1914,235,796,166,1077,316,3394,23,717,196,957,200,6347,17,2478,16,939,398,3377,18,1518,200,1042,173]
[null,"Not Hispanic or Latino:",924,279,4814,55,12807,163,1892,234,796,166,1037,311,3370,44,715,196,953,200,6061,178,2467,26,939,398,3297,74,1437,193,1037,173]
[null,"White alone",863,272,4585,169,11782,333,1711,221,760,160,1019,313,3370,44,690,184,942,201,5841,200,2271,107,933,398,3196,87,1397,194,1008,174]
[null,"Black or African American alone",0,12,0,12,240,75,0,12,10,22,0,12,0,12,5,9,0,12,18,21,7,17,0,12,0,12,21,22,0,12]
[null,"American Indian and Alaska Native alone",0,12,0,12,0,19,0,12,0,12,4,7,0,12,0,12,0,12,82,105,0,12,0,12,0,12,0,12,4,5]
[null,"Asian alone",5,10,87,113,123,115,24,25,0,12,0,12,0,12,0,12,0,12,0,17,60,59,0,12,27,42,1,2,0,12]
[null,"Native Hawaiian and Other Pacific Islander alone",0,12,0,12,0,19,0,12,6,10,0,12,0,12,0,12,0,12,0,17,0,12,0,12,0,12,0,12,0,12]
[null,"Some other race alone",0,12,2,6,0,19,114,132,0,12,0,12,0,12,0,12,0,12,0,17,0,12,0,12,0,12,0,12,0,12]
[null,"Two or more races:",56,64,140,111,662,286,43,32,20,19,14,16,0,12,20,23,11,12,120,86,129,82,6,7,74,69,18,20,25,32]
[null,"Two races including Some other race",0,12,50,85,296,239,0,12,10,13,0,12,0,12,19,23,0,12,0,17,13,14,3,5,22,28,0,12,0,12]
[null,"Two races excluding Some other race, and three or more races",56,64,90,75,366,125,43,32,10,12,14,16,0,12,1,2,11,12,120,86,116,80,3,5,52,70,18,20,25,32]
[null,"Hispanic or Latino:",3,5,41,50,211,162,22,27,0,12,40,51,24,42,2,3,4,8,286,177,11,17,0,12,80,75,81,54,5,9]
[null,"White alone",0,12,41,50,186,155,0,12,0,12,30,47,24,42,2,3,0,12,255,170,0,12,0,12,62,77,74,52,0,12]
[null,"Black or African American alone",0,12,0,12,25,30,0,12,0,12,0,12,0,12,0,12,0,12,0,17,0,12,0,12,0,12,0,12,0,12]
[null,"American Indian and Alaska Native alone",0,12,0,12,0,19,0,12,0,12,0,12,0,12,0,12,0,12,0,17,0,12,0,12,0,12,0,12,0,12]
[null,"Asian alone",0,12,0,12,0,19,0,12,0,12,0,12,0,12,0,12,0,12,0,17,0,12,0,12,0,12,0,12,0,12]
[null,"Native Hawaiian and Other Pacific Islander alone",0,12,0,12,0,19,0,12,0,12,0,12,0,12,0,12,0,12,0,17,0,12,0,12,0,12,0,12,0,12]
[null,"Some other race alone",3,5,0,12,0,19,0,12,0,12,0,12,0,12,0,12,0,12,31,54,0,12,0,12,0,12,0,12,5,9]
[null,"Two or more races:",0,12,0,12,0,19,22,27,0,12,10,17,0,12,0,12,4,8,0,17,11,17,0,12,18,29,7,12,0,12]
[null,"Two races including Some other race",0,12,0,12,0,19,17,25,0,12,10,17,0,12,0,12,4,8,0,17,0,12,0,12,18,29,0,12,0,12]
[null,"Two races excluding Some other race, and three or more races",0,12,0,12,0,19,5,9,0,12,0,12,0,12,0,12,0,12,0,17,11,17,0,12,0,12,7,12,0,12]
[]
[]
[]
[null,null,"Acworth",null,"Charlestown",null,"Claremont",null,"Cornish",null,"Croydon",null,"Goshen",null,"Grantham",null,"Langdon",null,"Lempster",null,"Newport",null,"Plainfield",null,"Springfield",null,"Sunapee",null,"Unity",null,"Washington"]
[null,null,"Estimate","Margin Of Error","Estimate","Margin Of Error","Estimate","Margin Of Error","Estimate","Margin Of Error","Estimate","Margin Of Error","Estimate","Margin Of Error","Estimate","Margin Of Error","Estimate","Margin Of Error","Estimate","Margin Of Error","Estimate","Margin Of Error","Estimate","Margin Of Error","Estimate","Margin Of Error","Estimate","Margin Of Error","Estimate","Margin Of Error","Estimate","Margin Of Error"]
[null,"Total:",{"$f":"C7","v":927},278,4855,16,13018,24,1914,235,796,166,1077,316,3394,23,717,196,957,200,6347,17,2478,16,{"$f":"Y7","v":939},398,3377,18,{"$f":"AC7","v":1518},200,1042,173]
[null,"Not Hispanic or Latino:",{"$f":"C8","v":924},279,4814,55,12807,163,1892,234,796,166,1037,311,3370,44,715,196,{"$f":"S8","v":953},200,6061,178,2467,26,939,398,3297,74,1437,193,1037,173]
[null,"White",863,272,4585,169,11782,333,1711,221,760,160,1019,313,3370,44,690,184,942,201,5841,200,2271,107,933,398,3196,87,1397,194,1008,174]
[null,"Black",0,12,0,12,240,75,0,12,10,22,0,12,0,12,5,9,0,12,18,21,7,17,0,12,0,12,21,22,0,12]
[null,"American Indian",{"$f":"$C$11","v":0},{"$f":"D11","v":12},{"$f":"E11","v":0},12,0,19,0,12,0,12,4,7,0,12,0,12,0,12,82,105,0,12,0,12,0,12,0,12,4,5]
[null,"Asian &Pacific Is.",{"$f":"C12+C13","v":5},{"$f":"SQRT((D12^2)+(D13^2))","v":15.620499351813308},{"$f":"E12+E13","v":87},{"$f":"SQRT((F12^2)+(F13^2))","v":113.63538181394033},{"$f":"G12+G13","v":123},{"$f":"SQRT((H12^2)+(H13^2))","v":116.55899793666725},{"$f":"I12+I13","v":24},{"$f":"SQRT((J12^2)+(J13^2))","v":27.730849247724095},{"$f":"K12+K13","v":6},{"$f":"SQRT((L12^2)+(L13^2))","v":15.620499351813308},{"$f":"M12+M13","v":0},{"$f":"SQRT((N12^2)+(N13^2))","v":16.970562748477139},{"$f":"O12+O13","v":0},{"$f":"SQRT((P12^2)+(P13^2))","v":16.970562748477139},{"$f":"Q12+Q13","v":0},{"$f":"SQRT((R12^2)+(R13^2))","v":16.970562748477139},{"$f":"S12+S13","v":0},{"$f":"SQRT((T12^2)+(T13^2))","v":16.970562748477139},{"$f":"U12+U13","v":0},{"$f":"SQRT((V12^2)+(V13^2))","v":24.041630560342615},{"$f":"W12+W13","v":60},{"$f":"SQRT((X12^2)+(X13^2))","v":60.207972893961475},{"$f":"Y12+Y13","v":0},{"$f":"SQRT((Z12^2)+(Z13^2))","v":16.970562748477139},{"$f":"AA12+AA13","v":27},{"$f":"SQRT((AB12^2)+(AB13^2))","v":43.68065933568311},{"$f":"AC12+AC13","v":1},{"$f":"SQRT((AD12^2)+(AD13^2))","v":12.165525060596439},{"$f":"AE12+AE13","v":0},{"$f":"SQRT((AF12^2)+(AF13^2))","v":16.970562748477139}]
[null,"Other*",{"$f":"C14+C15","v":56},{"$f":"SQRT((D14^2)+(D15^2))","v":65.115282384398824},{"$f":"E14+E15","v":142},{"$f":"SQRT((F14^2)+(F15^2))","v":111.16204388189342},{"$f":"G14+G15","v":662},{"$f":"SQRT((H14^2)+(H15^2))","v":286.63042406555519},{"$f":"I14+I15","v":157},{"$f":"SQRT((J14^2)+(J15^2))","v":135.82341477079717},{"$f":"K14+K15","v":20},{"$f":"SQRT((L14^2)+(L15^2))","v":22.472205054244231},{"$f":"M14+M15","v":14},{"$f":"SQRT((N14^2)+(N15^2))","v":20},{"$f":"O14+O15","v":0},{"$f":"SQRT((P14^2)+(P15^2))","v":16.970562748477139},{"$f":"Q14+Q15","v":20},{"$f":"SQRT((R14^2)+(R15^2))","v":25.942243542145693},{"$f":"S14+S15","v":11},{"$f":"SQRT((T14^2)+(T15^2))","v":16.970562748477139},{"$f":"U14+U15","v":120},{"$f":"SQRT((V14^2)+(V15^2))","v":87.664131775772461},{"$f":"W14+W15","v":129},{"$f":"SQRT((X14^2)+(X15^2))","v":82.87339742040264},{"$f":"Y14+Y15","v":6},{"$f":"SQRT((Z14^2)+(Z15^2))","v":13.892443989449804},{"$f":"AA14+AA15","v":74},{"$f":"SQRT((AB14^2)+(AB15^2))","v":70.035705179572517},{"$f":"AC14+AC15","v":18},{"$f":"SQRT((AD14^2)+(AD15^2))","v":23.323807579381203},{"$f":"AE14+AE15","v":25},{"$f":"SQRT((AF14^2)+(AF15^2))","v":34.176014981270121}]
[null,"Hispanic or Latino:",{"$f":"C18","v":3},{"$f":"D18","v":5},{"$f":"E18","v":41},50,211,162,22,27,0,12,40,51,24,42,2,3,4,8,286,177,11,17,{"$f":"Y18","v":0},12,80,75,81,54,5,9]
[]
[]
[]
[]
[]
[]
[]
[]
[]
[]
[]
[]
[]
[]
[]
[]
[]
[]
[]
[]
[]
[]
[]
[]
[]
[]
[]
[]
[]
[]
[]
[]
[]
[]
[]
[]
[]
[null,"B03002. HISPANIC OR LATINO ORIGIN BY RACE"]
[null,"Universe:  TOTAL POPULATION"]
[null,"Data Set: 2013-2017 American Community Survey 5-Year Estimates"]
[]
[null,null,"Acworth",null,"Charlestown",null,"Claremont",null,"Cornish",null,"Croydon",null,"Goshen",null,"Grantham",null,"Langdon",null,"Lempster",null,"Newport",null,"Plainfield",null,"Springfield",null,"Sunapee",null,"Unity",null,"Washington"]
[null,null,"Estimate","Margin Of Error","Estimate","Margin Of Error","Estimate","Margin Of Error","Estimate","Margin Of Error","Estimate","Margin Of Error","Estimate","Margin Of Error","Estimate","Margin Of Error","Estimate","Margin Of Error","Estimate","Margin Of Error","Estimate","Margin Of Error","Estimate","Margin Of Error","Estimate","Margin Of Error","Estimate","Margin Of Error","Estimate","Margin Of Error","Estimate","Margin Of Error"]
[null,"Total:",1031,143,5008,21,13028,23,1777,205,809,193,732,141,2941,35,887,143,858,129,6385,18,2439,249,1011,183,3404,16,1498,193,1265,206]
[null,"Not Hispanic or Latino:",1015,144,4895,70,12715,82,1772,205,806,193,702,131,2928,40,871,142,858,129,6348,47,2427,251,1009,183,3393,21,1477,190,1237,204]
[null,"White",972,135,4817,91,12459,134,1689,201,769,187,679,130,2907,49,802,139,830,132,5974,199,2326,247,1006,183,3308,81,1438,193,1129,190]
[null,"Black",0,11,0,16,66,73,12,17,0,11,0,11,0,11,28,29,0,11,2,3,6,12,0,11,35,52,6,12,29,41]
[null,"American Indian",0,11,9,17,0,18,8,10,0,11,3,4,11,19,0,11,0,11,112,142,0,11,0,11,0,11,2,4,0,11]
[null,"Asian &Pacific Is.",18,27.313000567495326,0,22.627416997969522,69,53.851648071345039,51,45.354161881794269,0,15.556349186104045,0,15.556349186104045,0,15.556349186104045,8,14.866068747318506,20,35.735136770411273,56,52.497618993626752,38,35.735136770411273,0,15.556349186104045,24,32.893768406797051,0,15.556349186104045,0,15.556349186104045]
[null,"Other*",25,27.313000567495326,69,79.624116949577527,121,83.952367447261423,12,17.804493814764857,37,53.150729063673246,20,22.825424421026653,10,19.416487838947599,33,40.521599178709621,8,14.866068747318506,204,141.90489773083945,57,64.938432380216881,3,12.529964086141668,26,42.449970553582247,31,36.687872655688281,79,91.087869664407023]
[null,"Hispanic or Latino:",16,15,113,64,313,76,5,7,3,6,30,46,13,20,16,17,0,11,37,46,12,18,2,4,11,13,21,14,28,26]
[]
["`"]
[]
[null,"B03002. HISPANIC OR LATINO ORIGIN BY RACE"]
[null,"Universe:  TOTAL POPULATION"]
[null,"Data Set: 2008-2012 American Community Survey 5-Year Estimates"]
[]
[null,null,"Acworth",null,"Charlestown",null,"Claremont",null,"Cornish",null,"Croydon",null,"Goshen",null,"Grantham",null,"Langdon",null,"Lempster",null,"Newport",null,"Plainfield",null,"Springfield",null,"Sunapee",null,"Unity",null,"Washington"]
[null,null,"Estimate","Margin Of Error","Estimate","Margin Of Error","Estimate","Margin Of Error","Estimate","Margin Of Error","Estimate","Margin Of Error","Estimate","Margin Of Error","Estimate","Margin Of Error","Estimate","Margin Of Error","Estimate","Margin Of Error","Estimate","Margin Of Error","Estimate","Margin Of Error","Estimate","Margin Of Error","Estimate","Margin Of Error","Estimate","Margin Of Error","Estimate","Margin Of Error"]
[null,"Total:",746,184,5081,16,13304,16,1665,226,615,113,767,114,2936,33,776,133,1212,178,6498,22,2570,212,1354,195,3349,23,1590,160,1071,171]
[null,"Not Hispanic or Latino:",746,184,5074,20,13172,91,1659,226,614,113,767,114,2904,39,741,122,1189,178,6398,101,2501,215,1354,195,3287,70,1575,158,1048,170]
[null,"White",728,180,4834,120,13020,139,1558,212,604,115,718,112,2831,62,706,128,1185,179,6199,165,2371,212,1334,198,3186,117,1547,160,1013,169]
[null,"Black",0,11,83,61,40,34,0,11,0,11,2,5,12,16,0,11,0,11,0,16,14,22,0,11,0,11,5,12,0,11]
[null,"American Indian",0,11,0,16,0,18,11,12,7,9,8,13,0,11,5,7,0,11,31,36,0,11,0,11,0,11,0,11,0,11]
[null,"Asian &Pacific Is.",9,17.029386365926403,15,31.384709652950431,24,32.449961479175904,0,15.556349186104045,0,15.556349186104045,0,15.556349186104045,53,44.384682042344295,5,13.038404810405298,4,12.529964086141668,99,83.677954085888118,14,21.95449840010015,12,21.095023109728988,25,31.953090617340916,5,13.038404810405298,0,15.556349186104045]
[null,"Other*",9,14.212670403551895,142,98.310731865854805,88,82.292162445763935,90,63.953107821277925,3,12.083045973594572,39,36.687872655688281,8,17.029386365926403,25,31.953090617340916,0,15.556349186104045,69,84.528101836016646,102,79.511005527536881,8,15.556349186104045,76,89.560035730229586,18,26.40075756488817,35,41.484937025383083]
[null,"Hispanic or Latino:",0,11,7,10,132,89,6,11,1,3,0,11,32,29,35,32,23,26,100,99,69,56,0,11,62,66,15,23,23,26]

{"sheet":"RentalHousingCost","index":56,"n_rows":124,"n_cols":21,"rows_kept":124,"cut":false,"hidden":true,"merged":[]}
[]
[null,null,"HIDE THIS COLUMN",{"$f":"CntyDataLink!A70","v":"Grantham"}]
[]
[null,null,null,"RENTAL HOUSING COST CHARACTERISTICS"]
[]
[]
[]
[]
[]
[]
[]
[]
[]
[]
[]
[]
[]
[]
[]
[]
[]
[]
[]
[]
[]
[]
[]
[]
[]
[]
[]
[]
[]
[]
[]
[]
[]
[]
[null,null,null,"Source:  2018-2022 American Community Survey Table B25074"]
[]
[null,null,null,"Income in 2022 Inflation Adjusted Dollars"]
[null,null,null,"Data from the American Community Survey are estimates"]
[null,null,null,{"$f":"CntyDataLink!A70","v":"Grantham"}]
[]
[null,null,null,{"$f":"D4","v":"RENTAL HOUSING COST CHARACTERISTICS"}]
[]
[null,null,null,"Renter Households by "]
[null,null,null,"Gross Rent as a Percent of 2022 Household Income"]
[null,null,null,null,null,null,"By Household Income"]
[null,null,{"$f":"CntyDataLink!AO$69","v":"H73RenterOccHU"},null,"Specified Renter Occ Housing Units",{"$f":"\"Margin of Error Renter Occupied Units\"","v":"Margin of Error Renter Occupied Units"},null,"Less than $10,000",{"$f":"\"Margin of Error \"&H50","v":"Margin of Error Less than $10,000"},"$10,000 to $19,999",{"$f":"\"Margin of Error \"&J50","v":"Margin of Error $10,000 to $19,999"},"$20,000 to $34,999",{"$f":"\"Margin of Error \"&L50","v":"Margin of Error $20,000 to $34,999"},"$35,000 to $49,999",{"$f":"\"Margin of Error \"&N50","v":"Margin of Error $35,000 to $49,999"},"$50,000 to $74,999",{"$f":"\"Margin of Error \"&P50","v":"Margin of Error $50,000 to $74,999"},"$75,000 to $99,999",{"$f":"\"Margin of Error \"&R50","v":"Margin of Error $75,000 to $99,999"},"$100,000 or More",{"$f":"\"Margin of Error \"&T50","v":"Margin of Error $100,000 or More"}]
[]
[null,null,null,"All Renter Households",{"$f":"CntyDataLink!$B$156","v":2324},{"$f":"CntyDataLink!$C$156","v":297},null,{"$f":"CntyDataLink!$BH$148","v":243},{"$f":"CntyDataLink!$BI$148","v":135},{"$f":"CntyDataLink!$BZ$148","v":378},{"$f":"CntyDataLink!$CA$148","v":127},{"$f":"CntyDataLink!$CR$148","v":727},{"$f":"CntyDataLink!$CS$148","v":225},{"$f":"CntyDataLink!$DJ$148","v":533},{"$f":"CntyDataLink!$DK$148","v":239},{"$f":"CntyDataLink!$EB$148","v":229},{"$f":"CntyDataLink!$EC$148","v":106},{"$f":"CntyDataLink!$ET$148","v":166},{"$f":"CntyDataLink!$EU$148","v":81},{"$f":"CntyDataLink!$FL$148","v":48},{"$f":"CntyDataLink!$FM$148","v":36}]
[null,null,null,"Rent Less than 20% of HH Income",{"$f":"CntyDataLink!$D$156","v":376},{"$f":"CntyDataLink!$E$156","v":144.91721774861674},null,{"$f":"CntyDataLink!$BJ$148","v":0},{"$f":"CntyDataLink!$BK$148","v":19},{"$f":"CntyDataLink!$CB$148","v":24},{"$f":"CntyDataLink!$CC$148","v":29},{"$f":"CntyDataLink!$CT$148","v":21},{"$f":"CntyDataLink!$CU$148","v":27},{"$f":"CntyDataLink!$DL$148","v":72},{"$f":"CntyDataLink!$DM$148","v":91},{"$f":"CntyDataLink!$ED$148","v":45},{"$f":"CntyDataLink!$EE$148","v":29},{"$f":"CntyDataLink!$EV$148","v":166},{"$f":"CntyDataLink!$EW$148","v":81},{"$f":"CntyDataLink!$FN$148","v":48},{"$f":"CntyDataLink!$FO$148","v":36}]
[null,null,null,"Rent 20% to 24.9% of HH Income",{"$f":"CntyDataLink!$F$156","v":276},{"$f":"CntyDataLink!$G$156","v":107},null,{"$f":"CntyDataLink!$BL$148","v":9},{"$f":"CntyDataLink!$BM$148","v":14},{"$f":"CntyDataLink!$CD$148","v":0},{"$f":"CntyDataLink!$CE$148","v":19},{"$f":"CntyDataLink!$CV$148","v":48},{"$f":"CntyDataLink!$CW$148","v":36},{"$f":"CntyDataLink!$DN$148","v":73},{"$f":"CntyDataLink!$DO$148","v":63},{"$f":"CntyDataLink!$EF$148","v":146},{"$f":"CntyDataLink!$EG$148","v":89},{"$f":"CntyDataLink!$EX$148","v":0},{"$f":"CntyDataLink!$EY$148","v":19},{"$f":"CntyDataLink!$FP$148","v":0},{"$f":"CntyDataLink!$FQ$148","v":19}]
[null,null,null,"Rent 25% to 29.9% of HH Income",{"$f":"CntyDataLink!$H$156","v":196},{"$f":"CntyDataLink!$I$156","v":105},null,{"$f":"CntyDataLink!$BN$148","v":0},{"$f":"CntyDataLink!$BO$148","v":19},{"$f":"CntyDataLink!$CF$148","v":48},{"$f":"CntyDataLink!$CG$148","v":57},{"$f":"CntyDataLink!$CX$148","v":16},{"$f":"CntyDataLink!$CY$148","v":19},{"$f":"CntyDataLink!$DP$148","v":104},{"$f":"CntyDataLink!$DQ$148","v":88},{"$f":"CntyDataLink!$EH$148","v":28},{"$f":"CntyDataLink!$EI$148","v":35},{"$f":"CntyDataLink!$EZ$148","v":0},{"$f":"CntyDataLink!$FA$148","v":19},{"$f":"CntyDataLink!$FR$148","v":0},{"$f":"CntyDataLink!$FS$148","v":19}]
[null,null,null,"Rent Less Than 30% of HH Income",{"$f":"CntyDataLink!$J$156","v":848},{"$f":"CntyDataLink!$K$156","v":208.50659461993044},null,{"$f":"SUM(H53:H55)","v":9},{"$f":"SQRT((I53^2)+(I54^2)+(I55^2))","v":30.298514815086232},{"$f":"SUM(J53:J55)","v":72},{"$f":"SQRT((K53^2)+(K54^2)+(K55^2))","v":66.715815216483719},{"$f":"SUM(L53:L55)","v":85},{"$f":"SQRT((M53^2)+(M54^2)+(M55^2))","v":48.846698967279252},{"$f":"SUM(N53:N55)","v":249},{"$f":"SQRT((O53^2)+(O54^2)+(O55^2))","v":141.40014144264495},{"$f":"SUM(P53:P55)","v":219},{"$f":"SQRT((Q53^2)+(Q54^2)+(Q55^2))","v":99.934978861257576},{"$f":"SUM(R53:R55)","v":166},{"$f":"SQRT((S53^2)+(S54^2)+(S55^2))","v":85.340494491185126},{"$f":"SUM(T53:T55)","v":48},{"$f":"SQRT((U53^2)+(U54^2)+(U55^2))","v":44.922154890432402}]
[null,null,null,"Rent 30% or More of HH Income",{"$f":"CntyDataLink!$L$156","v":1441},{"$f":"CntyDataLink!$M$156","v":325.80055248571938},null,{"$f":"H60+H58","v":199},{"$f":"SQRT((I58^2)+(I60^2))","v":126.36059512363813},{"$f":"J60+J58","v":306},{"$f":"SQRT((K58^2)+(K60^2))","v":140.7373440135915},{"$f":"L60+L58","v":642},{"$f":"SQRT((M58^2)+(M60^2))","v":236.72557952194353},{"$f":"N60+N58","v":284},{"$f":"SQRT((O58^2)+(O60^2))","v":158.79231719450408},10,{"$f":"SQRT((Q58^2)+(Q60^2))","v":40.149719799769464},{"$f":"R60+R58","v":0},{"$f":"SQRT((S58^2)+(S60^2))","v":38},0,{"$f":"SQRT((U58^2)+(U60^2))","v":38}]
[null,null,null,"Rent 30% to 34.9% of HH Income",{"$f":"CntyDataLink!$N$156","v":169},{"$f":"CntyDataLink!$O$156","v":121},null,{"$f":"CntyDataLink!$BP$148","v":0},{"$f":"CntyDataLink!$BQ$148","v":19},{"$f":"CntyDataLink!$CH$148","v":93},{"$f":"CntyDataLink!$CI$148","v":77},{"$f":"CntyDataLink!$CZ$148","v":7},{"$f":"CntyDataLink!$DA$148","v":10},{"$f":"CntyDataLink!$DR$148","v":59},{"$f":"CntyDataLink!$DS$148","v":74},{"$f":"CntyDataLink!$EJ$148","v":10},{"$f":"CntyDataLink!$EK$148","v":23},{"$f":"CntyDataLink!$FB$148","v":0},{"$f":"CntyDataLink!$FC$148","v":19},{"$f":"CntyDataLink!$FT$148","v":0},{"$f":"CntyDataLink!$FU$148","v":19}]
[null,null,null,"Rent Less Than 35% of HH Income",{"$f":"CntyDataLink!$P$156","v":1017},{"$f":"CntyDataLink!$Q$156","v":241.0726031717416},null,{"$f":"SUM(H56,H58)","v":9},{"$f":"SQRT((I56^2)+(I58^2))","v":35.763109484495331},{"$f":"SUM(J56,J58)","v":165},{"$f":"SQRT((K56^2)+(K58^2))","v":101.88228501560023},{"$f":"SUM(L56,L58)","v":92},{"$f":"SQRT((M56^2)+(M58^2))","v":49.859803449271638},308,215.40014144264495,229,{"$f":"SQRT((Q58^2)+(Q56^2))","v":102.54754994635415},{"$f":"SUM(R56,R58)","v":166},{"$f":"SQRT((S58^2)+(S56^2))","v":87.429971977577566},48,{"$f":"SQRT((U58^2)+(U56^2))","v":48.774993593028796}]
[null,null,null,"Rent 35% or More of HH Income",{"$f":"CntyDataLink!$R$156","v":1272},{"$f":"CntyDataLink!$S$156","v":302.49793387724156},null,{"$f":"CntyDataLink!$BR$148+CntyDataLink!$BT$148+CntyDataLink!$BV$148","v":199},{"$f":"SQRT((CntyDataLink!$BS$148^2)+(CntyDataLink!$BU$148^2)+(CntyDataLink!$BW$148^2))","v":124.92397688194208},{"$f":"CntyDataLink!$CJ$148+CntyDataLink!$CL$148+CntyDataLink!$CN$148","v":213},{"$f":"SQRT((CntyDataLink!$CK$148^2)+(CntyDataLink!$CM$148^2)+(CntyDataLink!$CO$148^2))","v":117.80492349643117},{"$f":"CntyDataLink!$DB$148+CntyDataLink!$DD$148+CntyDataLink!$DF$148","v":635},{"$f":"SQRT((CntyDataLink!$DC$148^2)+(CntyDataLink!$DE$148^2)+(CntyDataLink!$DG$148^2))","v":236.51427018258329},{"$f":"CntyDataLink!$DT$148+CntyDataLink!$DV$148+CntyDataLink!$DX$148","v":225},{"$f":"SQRT((CntyDataLink!$DU$148^2)+(CntyDataLink!$DW$148^2)+(CntyDataLink!$DY$148^2))","v":140.49555153100044},{"$f":"CntyDataLink!$EL$148+CntyDataLink!$EN$148+CntyDataLink!$EP$148","v":0},{"$f":"SQRT((CntyDataLink!$EM$148^2)+(CntyDataLink!$EO$148^2)+(CntyDataLink!$EQ$148^2))","v":32.908965343808667},{"$f":"CntyDataLink!$FD$148+CntyDataLink!$FF$148+CntyDataLink!$FH$148","v":0},{"$f":"SQRT((CntyDataLink!$FE$148^2)+(CntyDataLink!$FG$148^2)+(CntyDataLink!$FI$148^2))","v":32.908965343808667},{"$f":"CntyDataLink!$FV$148+CntyDataLink!$FX$148+CntyDataLink!$FZ$148","v":0},{"$f":"SQRT((CntyDataLink!$FW$148^2)+(CntyDataLink!$FY$148^2)+(CntyDataLink!$GA$148^2))","v":32.908965343808667}]
[null,null,null,"Rent 50% or More of HH Income",{"$f":"CntyDataLink!$T$156","v":661},{"$f":"CntyDataLink!$U$156","v":200},null,{"$f":"CntyDataLink!$BV$148","v":199},{"$f":"CntyDataLink!$BW$148","v":122},{"$f":"CntyDataLink!$CN$148","v":186},{"$f":"CntyDataLink!$CO$148","v":114},{"$f":"CntyDataLink!$DF$148","v":276},{"$f":"CntyDataLink!$DG$148","v":133},{"$f":"CntyDataLink!$DX$148","v":0},{"$f":"CntyDataLink!$DY$148","v":19},{"$f":"CntyDataLink!$EP$148","v":0},{"$f":"CntyDataLink!$EQ$148","v":19},{"$f":"CntyDataLink!$FH$148","v":0},{"$f":"CntyDataLink!$FI$148","v":19},{"$f":"CntyDataLink!$FZ$148","v":0},{"$f":"CntyDataLink!$GA$148","v":19}]
[null,null,null,"Percent not computed",{"$f":"CntyDataLink!$V$156","v":35},{"$f":"CntyDataLink!$W$156","v":55},null,{"$f":"CntyDataLink!$BX$148","v":35},{"$f":"CntyDataLink!$BY$148","v":55},{"$f":"CntyDataLink!$CP$148","v":0},{"$f":"CntyDataLink!$CQ$148","v":19},{"$f":"CntyDataLink!$DH$148","v":0},{"$f":"CntyDataLink!$DI$148","v":19},{"$f":"CntyDataLink!$DZ$148","v":0},{"$f":"CntyDataLink!$EA$148","v":19},{"$f":"CntyDataLink!$ER$148","v":0},{"$f":"CntyDataLink!$ES$148","v":19},{"$f":"CntyDataLink!$FJ$148","v":0},{"$f":"CntyDataLink!$FK$148","v":19},{"$f":"CntyDataLink!$GB$148","v":0},{"$f":"CntyDataLink!$GC$148","v":19}]
[]
[]
[]
[null,null,null,"Percent of Households Paying ",null,null,null,"By Household Income"]
[null,null,null,{"$f":"D56","v":"Rent Less Than 30% of HH Income"},{"$f":"E56/E$52","v":0.3648881239242685},null,null,{"$f":"H56/H$52","v":3.7037037037037035E-2},null,{"$f":"J56/J$52","v":0.19047619047619047},null,{"$f":"L56/L$52","v":0.11691884456671252},null,{"$f":"N56/N$52","v":0.46716697936210133},null,{"$f":"P56/P$52","v":0.95633187772925765},null,{"$f":"R56/R$52","v":1},null,{"$f":"T56/T$52","v":1}]
[null,null,null,{"$f":"D57","v":"Rent 30% or More of HH Income"},{"$f":"E57/E$52","v":0.62005163511187611},null,null,{"$f":"H57/H$52","v":0.81893004115226342},null,{"$f":"J57/J$52","v":0.80952380952380953},null,{"$f":"L57/L$52","v":0.88308115543328747},null,{"$f":"N57/N$52","v":0.53283302063789872},null,{"$f":"P57/P$52","v":4.3668122270742356E-2},null,{"$f":"R57/R$52","v":0},null,{"$f":"T57/T$52","v":0}]
[null,null,null,{"$f":"D59","v":"Rent Less Than 35% of HH Income"},{"$f":"E59/E$52","v":0.4376075731497418},null,null,{"$f":"H59/H$52","v":3.7037037037037035E-2},null,{"$f":"J59/J$52","v":0.43650793650793651},null,{"$f":"L59/L$52","v":0.12654745529573591},null,{"$f":"N59/N$52","v":0.57786116322701686},null,{"$f":"P59/P$52","v":1},null,{"$f":"R59/R$52","v":1},null,{"$f":"T59/T$52","v":1}]
[null,null,null,{"$f":"D60","v":"Rent 35% or More of HH Income"},{"$f":"E60/E$52","v":0.54733218588640276},null,null,{"$f":"H60/H$52","v":0.81893004115226342},null,{"$f":"J60/J$52","v":0.56349206349206349},null,{"$f":"L60/L$52","v":0.87345254470426414},null,{"$f":"N60/N$52","v":0.42213883677298314},null,{"$f":"P60/P$52","v":0},null,{"$f":"R60/R$52","v":0},null,{"$f":"T60/T$52","v":0}]
[null,null,null,"Rent 50% or More of HH Income",{"$f":"E61/E$52","v":0.2844234079173838},null,null,{"$f":"H61/H$52","v":0.81893004115226342},null,{"$f":"J61/J$52","v":0.49206349206349204},null,{"$f":"L61/L$52","v":0.37964236588720768},null,{"$f":"N61/N$52","v":0},null,{"$f":"P61/P$52","v":0},null,{"$f":"R61/R$52","v":0},null,{"$f":"T61/T$52","v":0}]
[null,null,null,"Percent not computed",{"$f":"E62/E$52","v":1.5060240963855422E-2},null,null,{"$f":"H62/H$52","v":0.1440329218106996},null,{"$f":"J62/J$52","v":0},null,{"$f":"L62/L$52","v":0},null,{"$f":"N62/N$52","v":0},null,{"$f":"P62/P$52","v":0},null,{"$f":"R62/R$52","v":0},null,{"$f":"T62/T$52","v":0}]
[]
[]
[null,null,null,"Source:  2018-2022 American Community Survey Table B25070; B25074"]
[]
[null,null,null,{"$f":"D41","v":"Income in 2022 Inflation Adjusted Dollars"}]
[null,null,null,"Data from the American Community Survey are estimates"]
[]
[null,null,null,{"$f":"CntyDataLink!A70","v":"Grantham"}]
[null,null,null,{"$f":"D4","v":"RENTAL HOUSING COST CHARACTERISTICS"}]
[]
[null,null,null,"Rental Housing Costs"]
[]
[null,null,null,"Renter Occupied Housing Units By Gross Rent "]
[]
[null,null,null,null,"Units","Margin of Error"]
[null,null,{"$f":"CntyDataLink!E$69","v":"H62RntrOccHU"},"Specified Renter Occ Housing Units",{"$f":"CntyDataLink!$B$148","v":2324},{"$f":"CntyDataLink!$C$148","v":297}]
[null,null,{"$f":"CntyDataLink!F$69","v":"H62RntrOccHUwRent"},"Renter Occ. Housing Units w/ Cash Rent",{"$f":"CntyDataLink!$D$148","v":2324},{"$f":"CntyDataLink!$E$148","v":297}]
[]
[null,null,{"$f":"CntyDataLink!G$69","v":"H62ROHUGRent<100"},"Gross Rent","Units","Margin of Error 2018-2022"]
[null,null,{"$f":"CntyDataLink!H$69","v":"H62ROHUGRent100to149"},"Less than $100",{"$f":"CntyDataLink!$F$148","v":0},{"$f":"CntyDataLink!$G$148","v":19}]
[null,null,{"$f":"CntyDataLink!I$69","v":"H62ROHUGRent150to199"},"$100 to $149",{"$f":"CntyDataLink!$H$148","v":0},{"$f":"CntyDataLink!$I$148","v":19}]
[null,null,{"$f":"CntyDataLink!J$69","v":"H62ROHUGRent200to249"},"$150 to $199",{"$f":"CntyDataLink!J$148","v":19},{"$f":"CntyDataLink!$K$148","v":21}]
[null,null,{"$f":"CntyDataLink!K$69","v":"H62ROHUGRent250to299"},"$200 to $249",{"$f":"CntyDataLink!$L$148","v":46},{"$f":"CntyDataLink!$M$148","v":39}]
[null,null,{"$f":"CntyDataLink!L$69","v":"H62ROHUGRent300to349"},"$250 to $299",{"$f":"CntyDataLink!$N$148","v":92},{"$f":"CntyDataLink!$O$148","v":78}]
[null,null,{"$f":"CntyDataLink!M$69","v":"H62ROHUGRent350to399"},"$300 to $349",{"$f":"CntyDataLink!$P$148","v":30},{"$f":"CntyDataLink!$Q$148","v":37}]
[null,null,{"$f":"CntyDataLink!N$69","v":"H62ROHUGRent400to449"},"$350 to $399",{"$f":"CntyDataLink!$R$148","v":65},{"$f":"CntyDataLink!$S$148","v":63}]
[null,null,{"$f":"CntyDataLink!O$69","v":"H62ROHUGRent450to499"},"$400 to $449",{"$f":"CntyDataLink!$T$148","v":18},{"$f":"CntyDataLink!$U$148","v":30}]
[null,null,{"$f":"CntyDataLink!P$69","v":"H62ROHUGRent500to549"},"$450 to $499",{"$f":"CntyDataLink!$V$148","v":46},{"$f":"CntyDataLink!$W$148","v":52}]
[null,null,{"$f":"CntyDataLink!Q$69","v":"H62ROHUGRent550to599"},"$500 to $549",{"$f":"CntyDataLink!$X$148","v":27},{"$f":"CntyDataLink!$Y$148","v":23}]
[null,null,{"$f":"CntyDataLink!R$69","v":"H62ROHUGRent600to649"},"$550 to $599",{"$f":"CntyDataLink!$Z$148","v":10},{"$f":"CntyDataLink!$AA$148","v":17}]
[null,null,{"$f":"CntyDataLink!S$69","v":"H62ROHUGRent650to699"},"$600 to $649",{"$f":"CntyDataLink!$AB$148","v":14},{"$f":"CntyDataLink!$AC$148","v":15}]
[null,null,{"$f":"CntyDataLink!T$69","v":"H62ROHUGRent700to749"},"$650 to $699",{"$f":"CntyDataLink!$AD$148","v":130},{"$f":"CntyDataLink!$AE$148","v":111}]
[null,null,{"$f":"CntyDataLink!U$69","v":"H62ROHUGRent750to799"},"$700 to $749",{"$f":"CntyDataLink!$AF$148","v":31},{"$f":"CntyDataLink!$AG$148","v":33}]
[null,null,{"$f":"CntyDataLink!V$69","v":"H62ROHUGRent800to899"},"$750 to $799",{"$f":"CntyDataLink!$AH$148","v":146},{"$f":"CntyDataLink!$AI$148","v":103}]
[null,null,{"$f":"CntyDataLink!W$69","v":"H62ROHUGRent900to999"},"$800 to $899",{"$f":"CntyDataLink!$AJ$148","v":146},{"$f":"CntyDataLink!$AK$148","v":84}]
[null,null,{"$f":"CntyDataLink!X$69","v":"H62ROHUGRent1000to1249"},"$900 to $999",{"$f":"CntyDataLink!$AL$148","v":360},{"$f":"CntyDataLink!$AM$148","v":188}]
[null,null,{"$f":"CntyDataLink!Y$69","v":"H62ROHUGRent1250to1499"},"$1000 to $1249",{"$f":"CntyDataLink!$AN$148","v":663},{"$f":"CntyDataLink!$AO$148","v":184}]
[null,null,{"$f":"CntyDataLink!Z$69","v":"H62ROHUGRent1500to1999"},"$1250 to $1499",{"$f":"CntyDataLink!$AP$148","v":422},{"$f":"CntyDataLink!$AQ$148","v":179}]
[null,null,{"$f":"CntyDataLink!AA$69","v":"H62ROHUGRent2000>"},"$1500 to $1999",{"$f":"CntyDataLink!$AR$148","v":59},{"$f":"CntyDataLink!$AS$148","v":71}]
[null,null,{"$f":"CntyDataLink!AB$69","v":"H62ROHUNoGRent"},"$2,000 to $2,499",{"$f":"CntyDataLink!$AT$148","v":0},{"$f":"CntyDataLink!$AU$148","v":19}]
[null,null,{"$f":"CntyDataLink!AC$69","v":"H63MedianGrossRnt"},"$2,500 to $2,999",{"$f":"CntyDataLink!$AV$148","v":0},{"$f":"CntyDataLink!$AW$148","v":19}]
[null,null,null,"$3,000 to $3,499",{"$f":"CntyDataLink!$AX$148","v":0},{"$f":"CntyDataLink!$AY$148","v":19}]
[null,null,null,"$3,500 or more",{"$f":"CntyDataLink!$AZ$148","v":0},{"$f":"CntyDataLink!$BA$148","v":19}]
[null,null,null,"Renter Occ. Housing Units w/ No Cash Rent",{"$f":"CntyDataLink!$BB$148","v":0},{"$f":"CntyDataLink!$BC$148","v":19}]
[]
[null,null,null,"Median Gross Rent",{"$f":"CntyDataLink!$BD$148","v":995},{"$f":"CntyDataLink!$BE$148","v":58}]
[]
[]
[]
[]
[null,null,null,"Source: 2018-2022 American Community Survey Table B25063; B25064"]
[null,null,null,"Data from the American Community Survey are estimates"]

{"sheet":"RentalHousingCost-Prior5Yr","index":57,"n_rows":125,"n_cols":21,"rows_kept":125,"cut":false,"hidden":true,"merged":[]}
[]
[null,null,"HIDE THIS COLUMN",{"$f":"CntyDataLink!A70","v":"Grantham"}]
[]
[null,null,null,"RENTAL HOUSING COST CHARACTERISTICS"]
[]
[]
[]
[]
[]
[]
[]
[]
[]
[]
[]
[]
[]
[]
[]
[]
[]
[]
[]
[]
[]
[]
[]
[]
[]
[]
[]
[]
[]
[]
[]
[]
[]
[]
[null,null,null,"Source:  2013-2017 American Community Survey Table B25074"]
[]
[null,null,null,"Income in 2017 Inflation Adjusted Dollars"]
[null,null,null,"Data from the American Community Survey are estimates"]
[null,null,null,{"$f":"CntyDataLinkPrior5YearEstimates!A120","v":"Grantham"}]
[]
[null,null,null,{"$f":"D4","v":"RENTAL HOUSING COST CHARACTERISTICS"}]
[]
[null,null,null,"Renter Households by "]
[null,null,null,"Gross Rent as a Percent of 2017 Household Income"]
[null,null,null,null,null,null,"By Household Income"]
[null,null,{"$f":"CntyDataLinkPrior5YearEstimates!AO$69","v":"H73RenterOccHU"},null,"Specified Renter Occ Housing Units",{"$f":"\"Margin of Error Renter Occupied Units\"","v":"Margin of Error Renter Occupied Units"},null,"Less than $10,000",{"$f":"\"Margin of Error \"&H50","v":"Margin of Error Less than $10,000"},"$10,000 to $19,999",{"$f":"\"Margin of Error \"&J50","v":"Margin of Error $10,000 to $19,999"},"$20,000 to $34,999",{"$f":"\"Margin of Error \"&L50","v":"Margin of Error $20,000 to $34,999"},"$35,000 to $49,999",{"$f":"\"Margin of Error \"&N50","v":"Margin of Error $35,000 to $49,999"},"$50,000 to $74,999",{"$f":"\"Margin of Error \"&P50","v":"Margin of Error $50,000 to $74,999"},"$75,000 to $99,999",{"$f":"\"Margin of Error \"&R50","v":"Margin of Error $75,000 to $99,999"},"$100,000 or More",{"$f":"\"Margin of Error \"&T50","v":"Margin of Error $100,000 or More"}]
[]
[null,null,null,"All Renter Households",{"$f":"CntyDataLinkPrior5YearEstimates!$B$156","v":2404},{"$f":"CntyDataLinkPrior5YearEstimates!$C$156","v":276},null,{"$f":"CntyDataLinkPrior5YearEstimates!$BH$148","v":269},{"$f":"CntyDataLinkPrior5YearEstimates!$BI$148","v":155},{"$f":"CntyDataLinkPrior5YearEstimates!$BZ$148","v":402},{"$f":"CntyDataLinkPrior5YearEstimates!$CA$148","v":137},{"$f":"CntyDataLinkPrior5YearEstimates!$CR$148","v":599},{"$f":"CntyDataLinkPrior5YearEstimates!$CS$148","v":160},{"$f":"CntyDataLinkPrior5YearEstimates!$DJ$148","v":478},{"$f":"CntyDataLinkPrior5YearEstimates!$DK$148","v":180},{"$f":"CntyDataLinkPrior5YearEstimates!$EB$148","v":418},{"$f":"CntyDataLinkPrior5YearEstimates!$EC$148","v":170},{"$f":"CntyDataLinkPrior5YearEstimates!$ET$148","v":136},{"$f":"CntyDataLinkPrior5YearEstimates!$EU$148","v":103},{"$f":"CntyDataLinkPrior5YearEstimates!$FL$148","v":102},{"$f":"CntyDataLinkPrior5YearEstimates!$FM$148","v":83}]
[null,null,null,"Rent Less than 20% of HH Income",{"$f":"CntyDataLinkPrior5YearEstimates!$D$156","v":552},{"$f":"CntyDataLinkPrior5YearEstimates!$E$156","v":176.42278764377349},null,{"$f":"CntyDataLinkPrior5YearEstimates!$BJ$148","v":9},{"$f":"CntyDataLinkPrior5YearEstimates!$BK$148","v":15},{"$f":"CntyDataLinkPrior5YearEstimates!$CB$148","v":0},{"$f":"CntyDataLinkPrior5YearEstimates!$CC$148","v":18},{"$f":"CntyDataLinkPrior5YearEstimates!$CT$148","v":20},{"$f":"CntyDataLinkPrior5YearEstimates!$CU$148","v":25},{"$f":"CntyDataLinkPrior5YearEstimates!$DL$148","v":46},{"$f":"CntyDataLinkPrior5YearEstimates!$DM$148","v":38},{"$f":"CntyDataLinkPrior5YearEstimates!$ED$148","v":270},{"$f":"CntyDataLinkPrior5YearEstimates!$EE$148","v":160},{"$f":"CntyDataLinkPrior5YearEstimates!$EV$148","v":105},{"$f":"CntyDataLinkPrior5YearEstimates!$EW$148","v":92},{"$f":"CntyDataLinkPrior5YearEstimates!$FN$148","v":102},{"$f":"CntyDataLinkPrior5YearEstimates!$FO$148","v":83}]
[null,null,null,"Rent 20% to 24.9% of HH Income",{"$f":"CntyDataLinkPrior5YearEstimates!$F$156","v":297},{"$f":"CntyDataLinkPrior5YearEstimates!$G$156","v":109},null,{"$f":"CntyDataLinkPrior5YearEstimates!$BL$148","v":0},{"$f":"CntyDataLinkPrior5YearEstimates!$BM$148","v":18},{"$f":"CntyDataLinkPrior5YearEstimates!$CD$148","v":35},{"$f":"CntyDataLinkPrior5YearEstimates!$CE$148","v":47},{"$f":"CntyDataLinkPrior5YearEstimates!$CV$148","v":28},{"$f":"CntyDataLinkPrior5YearEstimates!$CW$148","v":26},{"$f":"CntyDataLinkPrior5YearEstimates!$DN$148","v":97},{"$f":"CntyDataLinkPrior5YearEstimates!$DO$148","v":63},{"$f":"CntyDataLinkPrior5YearEstimates!$EF$148","v":122},{"$f":"CntyDataLinkPrior5YearEstimates!$EG$148","v":66},{"$f":"CntyDataLinkPrior5YearEstimates!$EX$148","v":15},{"$f":"CntyDataLinkPrior5YearEstimates!$EY$148","v":25},{"$f":"CntyDataLinkPrior5YearEstimates!$FP$148","v":0},{"$f":"CntyDataLinkPrior5YearEstimates!$FQ$148","v":18}]
[null,null,null,"Rent 25% to 29.9% of HH Income",{"$f":"CntyDataLinkPrior5YearEstimates!$H$156","v":310},{"$f":"CntyDataLinkPrior5YearEstimates!$I$156","v":99},null,{"$f":"CntyDataLinkPrior5YearEstimates!$BN$148","v":15},{"$f":"CntyDataLinkPrior5YearEstimates!$BO$148","v":25},{"$f":"CntyDataLinkPrior5YearEstimates!$CF$148","v":57},{"$f":"CntyDataLinkPrior5YearEstimates!$CG$148","v":49},{"$f":"CntyDataLinkPrior5YearEstimates!$CX$148","v":42},{"$f":"CntyDataLinkPrior5YearEstimates!$CY$148","v":30},{"$f":"CntyDataLinkPrior5YearEstimates!$DP$148","v":163},{"$f":"CntyDataLinkPrior5YearEstimates!$DQ$148","v":80},{"$f":"CntyDataLinkPrior5YearEstimates!$EH$148","v":26},{"$f":"CntyDataLinkPrior5YearEstimates!$EI$148","v":23},{"$f":"CntyDataLinkPrior5YearEstimates!$EZ$148","v":7},{"$f":"CntyDataLinkPrior5YearEstimates!$FA$148","v":13},{"$f":"CntyDataLinkPrior5YearEstimates!$FR$148","v":0},{"$f":"CntyDataLinkPrior5YearEstimates!$FS$148","v":18}]
[null,null,null,"Rent Less Than 30% of HH Income",{"$f":"CntyDataLinkPrior5YearEstimates!$J$156","v":1159},{"$f":"CntyDataLinkPrior5YearEstimates!$K$156","v":229.79773715160906},null,{"$f":"SUM(H53:H55)","v":24},{"$f":"SQRT((I53^2)+(I54^2)+(I55^2))","v":34.26368339802363},{"$f":"SUM(J53:J55)","v":92},{"$f":"SQRT((K53^2)+(K54^2)+(K55^2))","v":70.242437315343778},{"$f":"SUM(L53:L55)","v":90},{"$f":"SQRT((M53^2)+(M54^2)+(M55^2))","v":46.914816422959603},{"$f":"SUM(N53:N55)","v":306},{"$f":"SQRT((O53^2)+(O54^2)+(O55^2))","v":108.68762579061151},{"$f":"SUM(P53:P55)","v":418},{"$f":"SQRT((Q53^2)+(Q54^2)+(Q55^2))","v":174.5995418092499},{"$f":"SUM(R53:R55)","v":127},{"$f":"SQRT((S53^2)+(S54^2)+(S55^2))","v":96.218501339399381},{"$f":"SUM(T53:T55)","v":102},{"$f":"SQRT((U53^2)+(U54^2)+(U55^2))","v":86.815897161752588}]
[null,null,null,"Rent 30% or More of HH Income",{"$f":"CntyDataLinkPrior5YearEstimates!$L$156","v":1078},{"$f":"CntyDataLinkPrior5YearEstimates!$M$156","v":236.64530420018903},null,{"$f":"H60+H58","v":128},{"$f":"SQRT((I58^2)+(I60^2))","v":110.55315463612968},{"$f":"J60+J58","v":310},{"$f":"SQRT((K58^2)+(K60^2))","v":102.9805806936434},{"$f":"L60+L58","v":479},{"$f":"SQRT((M58^2)+(M60^2))","v":156.81198933755033},{"$f":"N60+N58","v":161},{"$f":"SQRT((O58^2)+(O60^2))","v":111.00450441310929},0,{"$f":"SQRT((Q58^2)+(Q60^2))","v":36},{"$f":"R60+R58","v":0},{"$f":"SQRT((S58^2)+(S60^2))","v":36},0,{"$f":"SQRT((U58^2)+(U60^2))","v":36}]
[null,null,null,"Rent 30% to 34.9% of HH Income",{"$f":"CntyDataLinkPrior5YearEstimates!$N$156","v":371},{"$f":"CntyDataLinkPrior5YearEstimates!$O$156","v":146},null,{"$f":"CntyDataLinkPrior5YearEstimates!$BP$148","v":82},{"$f":"CntyDataLinkPrior5YearEstimates!$BQ$148","v":104},{"$f":"CntyDataLinkPrior5YearEstimates!$CH$148","v":36},{"$f":"CntyDataLinkPrior5YearEstimates!$CI$148","v":28},{"$f":"CntyDataLinkPrior5YearEstimates!$CZ$148","v":134},{"$f":"CntyDataLinkPrior5YearEstimates!$DA$148","v":81},{"$f":"CntyDataLinkPrior5YearEstimates!$DR$148","v":119},{"$f":"CntyDataLinkPrior5YearEstimates!$DS$148","v":93},{"$f":"CntyDataLinkPrior5YearEstimates!$EJ$148","v":0},{"$f":"CntyDataLinkPrior5YearEstimates!$EK$148","v":18},{"$f":"CntyDataLinkPrior5YearEstimates!$FB$148","v":0},{"$f":"CntyDataLinkPrior5YearEstimates!$FC$148","v":18},{"$f":"CntyDataLinkPrior5YearEstimates!$FT$148","v":0},{"$f":"CntyDataLinkPrior5YearEstimates!$FU$148","v":18}]
[null,null,null,"Rent Less Than 35% of HH Income",{"$f":"CntyDataLinkPrior5YearEstimates!$P$156","v":1530},{"$f":"CntyDataLinkPrior5YearEstimates!$Q$156","v":272.25539480421685},null,{"$f":"SUM(H56,H58)","v":106},{"$f":"SQRT((I56^2)+(I58^2))","v":109.4988584415381},{"$f":"SUM(J56,J58)","v":128},{"$f":"SQRT((K56^2)+(K58^2))","v":75.617458301638251},{"$f":"SUM(L56,L58)","v":224},{"$f":"SQRT((M56^2)+(M58^2))","v":93.605555390692487},425,201.68762579061149,418,{"$f":"SQRT((Q58^2)+(Q56^2))","v":175.52492700468503},{"$f":"SUM(R56,R58)","v":127},{"$f":"SQRT((S58^2)+(S56^2))","v":97.887690748122154},102,{"$f":"SQRT((U58^2)+(U56^2))","v":88.662280593271461}]
[null,null,null,"Rent 35% or More of HH Income",{"$f":"CntyDataLinkPrior5YearEstimates!$R$156","v":707},{"$f":"CntyDataLinkPrior5YearEstimates!$S$156","v":186.23909364040622},null,{"$f":"CntyDataLinkPrior5YearEstimates!$BR$148+CntyDataLinkPrior5YearEstimates!$BT$148+CntyDataLinkPrior5YearEstimates!$BV$148","v":46},{"$f":"SQRT((CntyDataLinkPrior5YearEstimates!$BS$148^2)+(CntyDataLinkPrior5YearEstimates!$BU$148^2)+(CntyDataLinkPrior5YearEstimates!$BW$148^2))","v":37.49666651850535},{"$f":"CntyDataLinkPrior5YearEstimates!$CJ$148+CntyDataLinkPrior5YearEstimates!$CL$148+CntyDataLinkPrior5YearEstimates!$CN$148","v":274},{"$f":"SQRT((CntyDataLinkPrior5YearEstimates!$CK$148^2)+(CntyDataLinkPrior5YearEstimates!$CM$148^2)+(CntyDataLinkPrior5YearEstimates!$CO$148^2))","v":99.100958623012318},{"$f":"CntyDataLinkPrior5YearEstimates!$DB$148+CntyDataLinkPrior5YearEstimates!$DD$148+CntyDataLinkPrior5YearEstimates!$DF$148","v":345},{"$f":"SQRT((CntyDataLinkPrior5YearEstimates!$DC$148^2)+(CntyDataLinkPrior5YearEstimates!$DE$148^2)+(CntyDataLinkPrior5YearEstimates!$DG$148^2))","v":134.27211177307072},{"$f":"CntyDataLinkPrior5YearEstimates!$DT$148+CntyDataLinkPrior5YearEstimates!$DV$148+CntyDataLinkPrior5YearEstimates!$DX$148","v":42},{"$f":"SQRT((CntyDataLinkPrior5YearEstimates!$DU$148^2)+(CntyDataLinkPrior5YearEstimates!$DW$148^2)+(CntyDataLinkPrior5YearEstimates!$DY$148^2))","v":60.605280298007038},{"$f":"CntyDataLinkPrior5YearEstimates!$EL$148+CntyDataLinkPrior5YearEstimates!$EN$148+CntyDataLinkPrior5YearEstimates!$EP$148","v":0},{"$f":"SQRT((CntyDataLinkPrior5YearEstimates!$EM$148^2)+(CntyDataLinkPrior5YearEstimates!$EO$148^2)+(CntyDataLinkPrior5YearEstimates!$EQ$148^2))","v":31.176914536239792},{"$f":"CntyDataLinkPrior5YearEstimates!$FD$148+CntyDataLinkPrior5YearEstimates!$FF$148+CntyDataLinkPrior5YearEstimates!$FH$148","v":0},{"$f":"SQRT((CntyDataLinkPrior5YearEstimates!$FE$148^2)+(CntyDataLinkPrior5YearEstimates!$FG$148^2)+(CntyDataLinkPrior5YearEstimates!$FI$148^2))","v":31.176914536239792},{"$f":"CntyDataLinkPrior5YearEstimates!$FV$148+CntyDataLinkPrior5YearEstimates!$FX$148+CntyDataLinkPrior5YearEstimates!$FZ$148","v":0},{"$f":"SQRT((CntyDataLinkPrior5YearEstimates!$FW$148^2)+(CntyDataLinkPrior5YearEstimates!$FY$148^2)+(CntyDataLinkPrior5YearEstimates!$GA$148^2))","v":31.176914536239792}]
[null,null,null,"Rent 50% or More of HH Income",{"$f":"CntyDataLinkPrior5YearEstimates!$T$156","v":363},{"$f":"CntyDataLinkPrior5YearEstimates!$U$156","v":125},null,{"$f":"CntyDataLinkPrior5YearEstimates!$BV$148","v":39},{"$f":"CntyDataLinkPrior5YearEstimates!$BW$148","v":31},{"$f":"CntyDataLinkPrior5YearEstimates!$CN$148","v":193},{"$f":"CntyDataLinkPrior5YearEstimates!$CO$148","v":76},{"$f":"CntyDataLinkPrior5YearEstimates!$DF$148","v":131},{"$f":"CntyDataLinkPrior5YearEstimates!$DG$148","v":92},{"$f":"CntyDataLinkPrior5YearEstimates!$DX$148","v":0},{"$f":"CntyDataLinkPrior5YearEstimates!$DY$148","v":18},{"$f":"CntyDataLinkPrior5YearEstimates!$EP$148","v":0},{"$f":"CntyDataLinkPrior5YearEstimates!$EQ$148","v":18},{"$f":"CntyDataLinkPrior5YearEstimates!$FH$148","v":0},{"$f":"CntyDataLinkPrior5YearEstimates!$FI$148","v":18},{"$f":"CntyDataLinkPrior5YearEstimates!$FZ$148","v":0},{"$f":"CntyDataLinkPrior5YearEstimates!$GA$148","v":18}]
[null,null,null,"Percent not computed",{"$f":"CntyDataLinkPrior5YearEstimates!$V$156","v":167},{"$f":"CntyDataLinkPrior5YearEstimates!$W$156","v":103},null,{"$f":"CntyDataLinkPrior5YearEstimates!$BX$148","v":117},{"$f":"CntyDataLinkPrior5YearEstimates!$BY$148","v":99},{"$f":"CntyDataLinkPrior5YearEstimates!$CP$148","v":0},{"$f":"CntyDataLinkPrior5YearEstimates!$CQ$148","v":18},{"$f":"CntyDataLinkPrior5YearEstimates!$DH$148","v":30},{"$f":"CntyDataLinkPrior5YearEstimates!$DI$148","v":29},{"$f":"CntyDataLinkPrior5YearEstimates!$DZ$148","v":11},{"$f":"CntyDataLinkPrior5YearEstimates!$EA$148","v":19},{"$f":"CntyDataLinkPrior5YearEstimates!$ER$148","v":0},{"$f":"CntyDataLinkPrior5YearEstimates!$ES$148","v":18},{"$f":"CntyDataLinkPrior5YearEstimates!$FJ$148","v":9},{"$f":"CntyDataLinkPrior5YearEstimates!$FK$148","v":15},{"$f":"CntyDataLinkPrior5YearEstimates!$GB$148","v":0},{"$f":"CntyDataLinkPrior5YearEstimates!$GC$148","v":18}]
[]
[]
[null,null,null,"Percent of Households Paying ",null,null,null,"By Household Income"]
[null,null,null,{"$f":"D56","v":"Rent Less Than 30% of HH Income"},{"$f":"E56/E$52","v":0.48211314475873546},null,null,{"$f":"H56/H$52","v":8.9219330855018583E-2},null,{"$f":"J56/J$52","v":0.22885572139303484},null,{"$f":"L56/L$52","v":0.15025041736227046},null,{"$f":"N56/N$52","v":0.64016736401673635},null,{"$f":"P56/P$52","v":1},null,{"$f":"R56/R$52","v":0.93382352941176472},null,{"$f":"T56/T$52","v":1}]
[null,null,null,{"$f":"D57","v":"Rent 30% or More of HH Income"},{"$f":"E57/E$52","v":0.44841930116472545},null,null,{"$f":"H57/H$52","v":0.47583643122676578},null,{"$f":"J57/J$52","v":0.77114427860696522},null,{"$f":"L57/L$52","v":0.79966611018363942},null,{"$f":"N57/N$52","v":0.33682008368200839},null,{"$f":"P57/P$52","v":0},null,{"$f":"R57/R$52","v":0},null,{"$f":"T57/T$52","v":0}]
[null,null,null,{"$f":"D59","v":"Rent Less Than 35% of HH Income"},{"$f":"E59/E$52","v":0.63643926788685523},null,null,{"$f":"H59/H$52","v":0.39405204460966542},null,{"$f":"J59/J$52","v":0.31840796019900497},null,{"$f":"L59/L$52","v":0.37395659432387313},null,{"$f":"N59/N$52","v":0.88912133891213385},null,{"$f":"P59/P$52","v":1},null,{"$f":"R59/R$52","v":0.93382352941176472},null,{"$f":"T59/T$52","v":1}]
[null,null,null,{"$f":"D60","v":"Rent 35% or More of HH Income"},{"$f":"E60/E$52","v":0.29409317803660567},null,null,{"$f":"H60/H$52","v":0.17100371747211895},null,{"$f":"J60/J$52","v":0.68159203980099503},null,{"$f":"L60/L$52","v":0.57595993322203676},null,{"$f":"N60/N$52","v":8.7866108786610872E-2},null,{"$f":"P60/P$52","v":0},null,{"$f":"R60/R$52","v":0},null,{"$f":"T60/T$52","v":0}]
[null,null,null,"Rent 50% or More of HH Income",{"$f":"E60/E$52","v":0.29409317803660567},null,null,{"$f":"H60/H$52","v":0.17100371747211895},null,{"$f":"J60/J$52","v":0.68159203980099503},null,{"$f":"L60/L$52","v":0.57595993322203676},null,{"$f":"N60/N$52","v":8.7866108786610872E-2},null,{"$f":"P60/P$52","v":0},null,{"$f":"R60/R$52","v":0},null,{"$f":"T60/T$52","v":0}]
[null,null,null,"Percent not computed",{"$f":"E621/E$52","v":0},null,null,{"$f":"H621/H$52","v":0},null,{"$f":"J621/J$52","v":0},null,{"$f":"L621/L$52","v":0},null,{"$f":"N621/N$52","v":0},null,{"$f":"P621/P$52","v":0},null,{"$f":"R621/R$52","v":0},null,{"$f":"T621/T$52","v":0}]
[]
[]
[null,null,null,"Source:  2013-2017 American Community Survey Table B25070; B25074"]
[]
[null,null,null,{"$f":"D41","v":"Income in 2017 Inflation Adjusted Dollars"}]
[null,null,null,"Data from the American Community Survey are estimates"]
[]
[]
[]
[null,null,null,{"$f":"CntyDataLink!A70","v":"Grantham"}]
[null,null,null,{"$f":"D4","v":"RENTAL HOUSING COST CHARACTERISTICS"}]
[]
[null,null,null,"Rental Housing Costs"]
[]
[null,null,null,"Renter Occupied Housing Units By Gross Rent "]
[]
[null,null,null,null,"Units","Margin of Error"]
[null,null,{"$f":"CntyDataLinkPrior5YearEstimates!E$69","v":"H62RntrOccHU"},"Specified Renter Occ Housing Units",{"$f":"CntyDataLinkPrior5YearEstimates!$B$148","v":2404},{"$f":"CntyDataLinkPrior5YearEstimates!$C$148","v":276}]
[null,null,{"$f":"CntyDataLinkPrior5YearEstimates!F$69","v":"H62RntrOccHUwRent"},"Renter Occ. Housing Units w/ Cash Rent",{"$f":"CntyDataLinkPrior5YearEstimates!$D$148","v":2354},{"$f":"CntyDataLinkPrior5YearEstimates!$E$148","v":275}]
[]
[null,null,{"$f":"CntyDataLinkPrior5YearEstimates!G$69","v":"H62ROHUGRent<100"},"Gross Rent","Units","Margin of Error 2013-2017"]
[null,null,{"$f":"CntyDataLinkPrior5YearEstimates!H$69","v":"H62ROHUGRent100to149"},"Less than $100",{"$f":"CntyDataLinkPrior5YearEstimates!$F$148","v":9},{"$f":"CntyDataLinkPrior5YearEstimates!$G$148","v":15}]
[null,null,{"$f":"CntyDataLinkPrior5YearEstimates!I$69","v":"H62ROHUGRent150to199"},"$100 to $149",{"$f":"CntyDataLinkPrior5YearEstimates!$H$148","v":0},{"$f":"CntyDataLinkPrior5YearEstimates!$I$148","v":18}]
[null,null,{"$f":"CntyDataLinkPrior5YearEstimates!J$69","v":"H62ROHUGRent200to249"},"$150 to $199",{"$f":"CntyDataLinkPrior5YearEstimates!J$148","v":19},{"$f":"CntyDataLinkPrior5YearEstimates!$K$148","v":30}]
[null,null,{"$f":"CntyDataLinkPrior5YearEstimates!K$69","v":"H62ROHUGRent250to299"},"$200 to $249",{"$f":"CntyDataLinkPrior5YearEstimates!$L$148","v":191},{"$f":"CntyDataLinkPrior5YearEstimates!$M$148","v":130}]
[null,null,{"$f":"CntyDataLinkPrior5YearEstimates!L$69","v":"H62ROHUGRent300to349"},"$250 to $299",{"$f":"CntyDataLinkPrior5YearEstimates!$N$148","v":43},{"$f":"CntyDataLinkPrior5YearEstimates!$O$148","v":49}]
[null,null,{"$f":"CntyDataLinkPrior5YearEstimates!M$69","v":"H62ROHUGRent350to399"},"$300 to $349",{"$f":"CntyDataLinkPrior5YearEstimates!$P$148","v":73},{"$f":"CntyDataLinkPrior5YearEstimates!$Q$148","v":66}]
[null,null,{"$f":"CntyDataLinkPrior5YearEstimates!N$69","v":"H62ROHUGRent400to449"},"$350 to $399",{"$f":"CntyDataLinkPrior5YearEstimates!$R$148","v":46},{"$f":"CntyDataLinkPrior5YearEstimates!$S$148","v":30}]
[null,null,{"$f":"CntyDataLinkPrior5YearEstimates!O$69","v":"H62ROHUGRent450to499"},"$400 to $449",{"$f":"CntyDataLinkPrior5YearEstimates!$T$148","v":54},{"$f":"CntyDataLinkPrior5YearEstimates!$U$148","v":68}]
[null,null,{"$f":"CntyDataLinkPrior5YearEstimates!P$69","v":"H62ROHUGRent500to549"},"$450 to $499",{"$f":"CntyDataLinkPrior5YearEstimates!$V$148","v":18},{"$f":"CntyDataLinkPrior5YearEstimates!$W$148","v":14}]
[null,null,{"$f":"CntyDataLinkPrior5YearEstimates!Q$69","v":"H62ROHUGRent550to599"},"$500 to $549",{"$f":"CntyDataLinkPrior5YearEstimates!$X$148","v":71},{"$f":"CntyDataLinkPrior5YearEstimates!$Y$148","v":53}]
[null,null,{"$f":"CntyDataLinkPrior5YearEstimates!R$69","v":"H62ROHUGRent600to649"},"$550 to $599",{"$f":"CntyDataLinkPrior5YearEstimates!$Z$148","v":84},{"$f":"CntyDataLinkPrior5YearEstimates!$AA$148","v":62}]
[null,null,{"$f":"CntyDataLinkPrior5YearEstimates!S$69","v":"H62ROHUGRent650to699"},"$600 to $649",{"$f":"CntyDataLinkPrior5YearEstimates!$AB$148","v":75},{"$f":"CntyDataLinkPrior5YearEstimates!$AC$148","v":55}]
[null,null,{"$f":"CntyDataLinkPrior5YearEstimates!T$69","v":"H62ROHUGRent700to749"},"$650 to $699",{"$f":"CntyDataLinkPrior5YearEstimates!$AD$148","v":46},{"$f":"CntyDataLinkPrior5YearEstimates!$AE$148","v":47}]
[null,null,{"$f":"CntyDataLinkPrior5YearEstimates!U$69","v":"H62ROHUGRent750to799"},"$700 to $749",{"$f":"CntyDataLinkPrior5YearEstimates!$AF$148","v":138},{"$f":"CntyDataLinkPrior5YearEstimates!$AG$148","v":87}]
[null,null,{"$f":"CntyDataLinkPrior5YearEstimates!V$69","v":"H62ROHUGRent800to899"},"$750 to $799",{"$f":"CntyDataLinkPrior5YearEstimates!$AH$148","v":133},{"$f":"CntyDataLinkPrior5YearEstimates!$AI$148","v":90}]
[null,null,{"$f":"CntyDataLinkPrior5YearEstimates!W$69","v":"H62ROHUGRent900to999"},"$800 to $899",{"$f":"CntyDataLinkPrior5YearEstimates!$AJ$148","v":288},{"$f":"CntyDataLinkPrior5YearEstimates!$AK$148","v":103}]
[null,null,{"$f":"CntyDataLinkPrior5YearEstimates!X$69","v":"H62ROHUGRent1000to1249"},"$900 to $999",{"$f":"CntyDataLinkPrior5YearEstimates!$AL$148","v":234},{"$f":"CntyDataLinkPrior5YearEstimates!$AM$148","v":110}]
[null,null,{"$f":"CntyDataLinkPrior5YearEstimates!Y$69","v":"H62ROHUGRent1250to1499"},"$1000 to $1249",{"$f":"CntyDataLinkPrior5YearEstimates!$AN$148","v":696},{"$f":"CntyDataLinkPrior5YearEstimates!$AO$148","v":159}]
[null,null,{"$f":"CntyDataLinkPrior5YearEstimates!Z$69","v":"H62ROHUGRent1500to1999"},"$1250 to $1499",{"$f":"CntyDataLinkPrior5YearEstimates!$AP$148","v":66},{"$f":"CntyDataLinkPrior5YearEstimates!$AQ$148","v":61}]
[null,null,{"$f":"CntyDataLinkPrior5YearEstimates!AA$69","v":"H62ROHUGRent2000>"},"$1500 to $1999",{"$f":"CntyDataLinkPrior5YearEstimates!$AR$148","v":70},{"$f":"CntyDataLinkPrior5YearEstimates!$AS$148","v":56}]
[null,null,{"$f":"CntyDataLinkPrior5YearEstimates!AB$69","v":"H62ROHUNoGRent"},"$2,000 to $2,499",{"$f":"CntyDataLinkPrior5YearEstimates!$AT$148","v":0},{"$f":"CntyDataLinkPrior5YearEstimates!$AU$148","v":18}]
[null,null,{"$f":"CntyDataLinkPrior5YearEstimates!AC$69","v":"H63MedianGrossRnt"},"$2,500 to $2,999",{"$f":"CntyDataLinkPrior5YearEstimates!$AV$148","v":0},{"$f":"CntyDataLinkPrior5YearEstimates!$AW$148","v":18}]
[null,null,null,"$3,000 to $3,499",{"$f":"CntyDataLinkPrior5YearEstimates!$AX$148","v":0},{"$f":"CntyDataLinkPrior5YearEstimates!$AY$148","v":18}]
[null,null,null,"$3,500 or more",{"$f":"CntyDataLinkPrior5YearEstimates!$AZ$148","v":0},{"$f":"CntyDataLinkPrior5YearEstimates!$BA$148","v":18}]
[null,null,null,"Renter Occ. Housing Units w/ No Cash Rent",{"$f":"CntyDataLinkPrior5YearEstimates!$BB$148","v":50},{"$f":"CntyDataLinkPrior5YearEstimates!$BC$148","v":37}]
[]
[null,null,null,"Median Gross Rent",{"$f":"CntyDataLinkPrior5YearEstimates!$BD$148","v":861},{"$f":"CntyDataLinkPrior5YearEstimates!$BE$148","v":53}]
[]
[]
[]
[]
[null,null,null,"Source: 2013-2017 American Community Survey Table B25063; B25064"]
[null,null,null,"Data from the American Community Survey are estimates"]

{"sheet":"RentalHousingCost-Prior10Yr","index":58,"n_rows":125,"n_cols":21,"rows_kept":125,"cut":false,"hidden":true,"merged":[]}
[]
[null,null,"HIDE THIS COLUMN",{"$f":"CntyDataLink!A70","v":"Grantham"}]
[]
[null,null,null,"RENTAL HOUSING COST CHARACTERISTICS"]
[]
[]
[]
[]
[]
[]
[]
[]
[]
[]
[]
[]
[]
[]
[]
[]
[]
[]
[]
[]
[]
[]
[]
[]
[]
[]
[]
[]
[]
[]
[]
[]
[]
[]
[null,null,null,"Source:  2008-2012 American Community Survey Table B25074"]
[]
[null,null,null,"Income in 2012 Inflation Adjusted Dollars"]
[null,null,null,"Data from the American Community Survey are estimates"]
[null,null,null,{"$f":"CntyDataLinkPrior10YearEstimate!A120","v":"Grantham"}]
[]
[null,null,null,{"$f":"D4","v":"RENTAL HOUSING COST CHARACTERISTICS"}]
[]
[null,null,null,"Renter Households by "]
[null,null,null,"Gross Rent as a Percent of 2012 Household Income"]
[null,null,null,null,null,null,"By Household Income"]
[null,null,{"$f":"CntyDataLinkPrior10YearEstimate!AO$69","v":"H73RenterOccHU"},null,"Specified Renter Occ Housing Units",{"$f":"\"Margin of Error Renter Occupied Units\"","v":"Margin of Error Renter Occupied Units"},null,"Less than $10,000",{"$f":"\"Margin of Error \"&H50","v":"Margin of Error Less than $10,000"},"$10,000 to $19,999",{"$f":"\"Margin of Error \"&J50","v":"Margin of Error $10,000 to $19,999"},"$20,000 to $34,999",{"$f":"\"Margin of Error \"&L50","v":"Margin of Error $20,000 to $34,999"},"$35,000 to $49,999",{"$f":"\"Margin of Error \"&N50","v":"Margin of Error $35,000 to $49,999"},"$50,000 to $74,999",{"$f":"\"Margin of Error \"&P50","v":"Margin of Error $50,000 to $74,999"},"$75,000 to $99,999",{"$f":"\"Margin of Error \"&R50","v":"Margin of Error $75,000 to $99,999"},"$100,000 or More",{"$f":"\"Margin of Error \"&T50","v":"Margin of Error $100,000 or More"}]
[]
[null,null,null,"All Renter Households",{"$f":"CntyDataLinkPrior10YearEstimate!$B$156","v":2255},{"$f":"CntyDataLinkPrior10YearEstimate!$C$156","v":221},null,{"$f":"CntyDataLinkPrior10YearEstimate!$BH$148","v":311},{"$f":"CntyDataLinkPrior10YearEstimate!$BI$148","v":128},{"$f":"CntyDataLinkPrior10YearEstimate!$BZ$148","v":499},{"$f":"CntyDataLinkPrior10YearEstimate!$CA$148","v":123},{"$f":"CntyDataLinkPrior10YearEstimate!$CR$148","v":682},{"$f":"CntyDataLinkPrior10YearEstimate!$CS$148","v":146},{"$f":"CntyDataLinkPrior10YearEstimate!$DJ$148","v":397},{"$f":"CntyDataLinkPrior10YearEstimate!$DK$148","v":139},{"$f":"CntyDataLinkPrior10YearEstimate!$EB$148","v":284},{"$f":"CntyDataLinkPrior10YearEstimate!$EC$148","v":100},{"$f":"CntyDataLinkPrior10YearEstimate!$ET$148","v":23},{"$f":"CntyDataLinkPrior10YearEstimate!$EU$148","v":36},{"$f":"CntyDataLinkPrior10YearEstimate!$FL$148","v":59},{"$f":"CntyDataLinkPrior10YearEstimate!$FM$148","v":33}]
[null,null,null,"Rent Less than 20% of HH Income",{"$f":"CntyDataLinkPrior10YearEstimate!$D$156","v":403},{"$f":"CntyDataLinkPrior10YearEstimate!$E$156","v":133.36791218280356},null,{"$f":"CntyDataLinkPrior10YearEstimate!$BJ$148","v":25},{"$f":"CntyDataLinkPrior10YearEstimate!$BK$148","v":30},{"$f":"CntyDataLinkPrior10YearEstimate!$CB$148","v":29},{"$f":"CntyDataLinkPrior10YearEstimate!$CC$148","v":32},{"$f":"CntyDataLinkPrior10YearEstimate!$CT$148","v":20},{"$f":"CntyDataLinkPrior10YearEstimate!$CU$148","v":15},{"$f":"CntyDataLinkPrior10YearEstimate!$DL$148","v":107},{"$f":"CntyDataLinkPrior10YearEstimate!$DM$148","v":96},{"$f":"CntyDataLinkPrior10YearEstimate!$ED$148","v":163},{"$f":"CntyDataLinkPrior10YearEstimate!$EE$148","v":93},{"$f":"CntyDataLinkPrior10YearEstimate!$EV$148","v":0},{"$f":"CntyDataLinkPrior10YearEstimate!$EW$148","v":18},{"$f":"CntyDataLinkPrior10YearEstimate!$FN$148","v":59},{"$f":"CntyDataLinkPrior10YearEstimate!$FO$148","v":33}]
[null,null,null,"Rent 20% to 24.9% of HH Income",{"$f":"CntyDataLinkPrior10YearEstimate!$F$156","v":208},{"$f":"CntyDataLinkPrior10YearEstimate!$G$156","v":95},null,{"$f":"CntyDataLinkPrior10YearEstimate!$BL$148","v":0},{"$f":"CntyDataLinkPrior10YearEstimate!$BM$148","v":18},{"$f":"CntyDataLinkPrior10YearEstimate!$CD$148","v":22},{"$f":"CntyDataLinkPrior10YearEstimate!$CE$148","v":24},{"$f":"CntyDataLinkPrior10YearEstimate!$CV$148","v":9},{"$f":"CntyDataLinkPrior10YearEstimate!$CW$148","v":15},{"$f":"CntyDataLinkPrior10YearEstimate!$DN$148","v":65},{"$f":"CntyDataLinkPrior10YearEstimate!$DO$148","v":52},{"$f":"CntyDataLinkPrior10YearEstimate!$EF$148","v":89},{"$f":"CntyDataLinkPrior10YearEstimate!$EG$148","v":58},{"$f":"CntyDataLinkPrior10YearEstimate!$EX$148","v":23},{"$f":"CntyDataLinkPrior10YearEstimate!$EY$148","v":36},{"$f":"CntyDataLinkPrior10YearEstimate!$FP$148","v":0},{"$f":"CntyDataLinkPrior10YearEstimate!$FQ$148","v":18}]
[null,null,null,"Rent 25% to 29.9% of HH Income",{"$f":"CntyDataLinkPrior10YearEstimate!$H$156","v":413},{"$f":"CntyDataLinkPrior10YearEstimate!$I$156","v":119},null,{"$f":"CntyDataLinkPrior10YearEstimate!$BN$148","v":10},{"$f":"CntyDataLinkPrior10YearEstimate!$BO$148","v":15},{"$f":"CntyDataLinkPrior10YearEstimate!$CF$148","v":102},{"$f":"CntyDataLinkPrior10YearEstimate!$CG$148","v":60},{"$f":"CntyDataLinkPrior10YearEstimate!$CX$148","v":163},{"$f":"CntyDataLinkPrior10YearEstimate!$CY$148","v":98},{"$f":"CntyDataLinkPrior10YearEstimate!$DP$148","v":106},{"$f":"CntyDataLinkPrior10YearEstimate!$DQ$148","v":59},{"$f":"CntyDataLinkPrior10YearEstimate!$EH$148","v":32},{"$f":"CntyDataLinkPrior10YearEstimate!$EI$148","v":46},{"$f":"CntyDataLinkPrior10YearEstimate!$EZ$148","v":0},{"$f":"CntyDataLinkPrior10YearEstimate!$FA$148","v":18},{"$f":"CntyDataLinkPrior10YearEstimate!$FR$148","v":0},{"$f":"CntyDataLinkPrior10YearEstimate!$FS$148","v":18}]
[null,null,null,"Rent Less Than 30% of HH Income",{"$f":"CntyDataLinkPrior10YearEstimate!$J$156","v":1024},{"$f":"CntyDataLinkPrior10YearEstimate!$K$156","v":202.41788458533006},null,{"$f":"SUM(H53:H55)","v":35},{"$f":"SQRT((I53^2)+(I54^2)+(I55^2))","v":38.065732621348559},{"$f":"SUM(J53:J55)","v":153},{"$f":"SQRT((K53^2)+(K54^2)+(K55^2))","v":72.111025509279784},{"$f":"SUM(L53:L55)","v":192},{"$f":"SQRT((M53^2)+(M54^2)+(M55^2))","v":100.269636480841},{"$f":"SUM(N53:N55)","v":278},{"$f":"SQRT((O53^2)+(O54^2)+(O55^2))","v":124.10076550932311},{"$f":"SUM(P53:P55)","v":284},{"$f":"SQRT((Q53^2)+(Q54^2)+(Q55^2))","v":118.86547017532047},{"$f":"SUM(R53:R55)","v":23},{"$f":"SQRT((S53^2)+(S54^2)+(S55^2))","v":44.090815370097204},{"$f":"SUM(T53:T55)","v":59},{"$f":"SQRT((U53^2)+(U54^2)+(U55^2))","v":41.677331968349414}]
[null,null,null,"Rent 30% or More of HH Income",{"$f":"CntyDataLinkPrior10YearEstimate!$L$156","v":1167},{"$f":"CntyDataLinkPrior10YearEstimate!$M$156","v":236.37893307145626},null,{"$f":"H60+H58","v":248},{"$f":"SQRT((I58^2)+(I60^2))","v":112.89375536317321},{"$f":"J60+J58","v":337},{"$f":"SQRT((K58^2)+(K60^2))","v":110.86027241532469},{"$f":"L60+L58","v":483},{"$f":"SQRT((M58^2)+(M60^2))","v":151.16216457830973},{"$f":"N60+N58","v":99},{"$f":"SQRT((O58^2)+(O60^2))","v":79.511005527536881},0,{"$f":"SQRT((Q58^2)+(Q60^2))","v":25.45584412271571},{"$f":"R60+R58","v":0},{"$f":"SQRT((S58^2)+(S60^2))","v":25.45584412271571},0,{"$f":"SQRT((U58^2)+(U60^2))","v":25.45584412271571}]
[null,null,null,"Rent 30% to 34.9% of HH Income",{"$f":"CntyDataLinkPrior10YearEstimate!$N$156","v":238},{"$f":"CntyDataLinkPrior10YearEstimate!$O$156","v":100},null,{"$f":"CntyDataLinkPrior10YearEstimate!$BP$148","v":67},{"$f":"CntyDataLinkPrior10YearEstimate!$BQ$148","v":64},{"$f":"CntyDataLinkPrior10YearEstimate!$CH$148","v":45},{"$f":"CntyDataLinkPrior10YearEstimate!$CI$148","v":41},{"$f":"CntyDataLinkPrior10YearEstimate!$CZ$148","v":83},{"$f":"CntyDataLinkPrior10YearEstimate!$DA$148","v":49},{"$f":"CntyDataLinkPrior10YearEstimate!$DR$148","v":43},{"$f":"CntyDataLinkPrior10YearEstimate!$DS$148","v":51},{"$f":"CntyDataLinkPrior10YearEstimate!$EJ$148","v":0},{"$f":"CntyDataLinkPrior10YearEstimate!$EK$148","v":18},{"$f":"CntyDataLinkPrior10YearEstimate!$FB$148","v":0},{"$f":"CntyDataLinkPrior10YearEstimate!$FC$148","v":18},{"$f":"CntyDataLinkPrior10YearEstimate!$FT$148","v":0},{"$f":"CntyDataLinkPrior10YearEstimate!$FU$148","v":18}]
[null,null,null,"Rent Less Than 35% of HH Income",{"$f":"CntyDataLinkPrior10YearEstimate!$P$156","v":1262},{"$f":"CntyDataLinkPrior10YearEstimate!$Q$156","v":225.77200889392822},null,{"$f":"SUM(H56,H58)","v":102},{"$f":"SQRT((I56^2)+(I58^2))","v":74.464756764525859},{"$f":"SUM(J56,J58)","v":198},{"$f":"SQRT((K56^2)+(K58^2))","v":82.951793229561957},{"$f":"SUM(L56,L58)","v":275},{"$f":"SQRT((M56^2)+(M58^2))","v":111.60197130875422},321,175.10076550932311,284,{"$f":"SQRT((Q58^2)+(Q56^2))","v":120.22063050907694},{"$f":"SUM(R56,R58)","v":23},{"$f":"SQRT((S58^2)+(S56^2))","v":47.623523599162631},59,{"$f":"SQRT((U58^2)+(U56^2))","v":45.398237851264668}]
[null,null,null,"Rent 35% or More of HH Income",{"$f":"CntyDataLinkPrior10YearEstimate!$R$156","v":929},{"$f":"CntyDataLinkPrior10YearEstimate!$S$156","v":214.18449990603895},null,{"$f":"CntyDataLinkPrior10YearEstimate!$BR$148+CntyDataLinkPrior10YearEstimate!$BT$148+CntyDataLinkPrior10YearEstimate!$BV$148","v":181},{"$f":"SQRT((CntyDataLinkPrior10YearEstimate!$BS$148^2)+(CntyDataLinkPrior10YearEstimate!$BU$148^2)+(CntyDataLinkPrior10YearEstimate!$BW$148^2))","v":93},{"$f":"CntyDataLinkPrior10YearEstimate!$CJ$148+CntyDataLinkPrior10YearEstimate!$CL$148+CntyDataLinkPrior10YearEstimate!$CN$148","v":292},{"$f":"SQRT((CntyDataLinkPrior10YearEstimate!$CK$148^2)+(CntyDataLinkPrior10YearEstimate!$CM$148^2)+(CntyDataLinkPrior10YearEstimate!$CO$148^2))","v":103},{"$f":"CntyDataLinkPrior10YearEstimate!$DB$148+CntyDataLinkPrior10YearEstimate!$DD$148+CntyDataLinkPrior10YearEstimate!$DF$148","v":400},{"$f":"SQRT((CntyDataLinkPrior10YearEstimate!$DC$148^2)+(CntyDataLinkPrior10YearEstimate!$DE$148^2)+(CntyDataLinkPrior10YearEstimate!$DG$148^2))","v":143},{"$f":"CntyDataLinkPrior10YearEstimate!$DT$148+CntyDataLinkPrior10YearEstimate!$DV$148+CntyDataLinkPrior10YearEstimate!$DX$148","v":56},{"$f":"SQRT((CntyDataLinkPrior10YearEstimate!$DU$148^2)+(CntyDataLinkPrior10YearEstimate!$DW$148^2)+(CntyDataLinkPrior10YearEstimate!$DY$148^2))","v":61},{"$f":"CntyDataLinkPrior10YearEstimate!$EL$148+CntyDataLinkPrior10YearEstimate!$EN$148+CntyDataLinkPrior10YearEstimate!$EP$148","v":0},{"$f":"SQRT((CntyDataLinkPrior10YearEstimate!$EM$148^2)+(CntyDataLinkPrior10YearEstimate!$EO$148^2)+(CntyDataLinkPrior10YearEstimate!$EQ$148^2))","v":18},{"$f":"CntyDataLinkPrior10YearEstimate!$FD$148+CntyDataLinkPrior10YearEstimate!$FF$148+CntyDataLinkPrior10YearEstimate!$FH$148","v":0},{"$f":"SQRT((CntyDataLinkPrior10YearEstimate!$FE$148^2)+(CntyDataLinkPrior10YearEstimate!$FG$148^2)+(CntyDataLinkPrior10YearEstimate!$FI$148^2))","v":18},{"$f":"CntyDataLinkPrior10YearEstimate!$FV$148+CntyDataLinkPrior10YearEstimate!$FX$148+CntyDataLinkPrior10YearEstimate!$FZ$148","v":0},{"$f":"SQRT((CntyDataLinkPrior10YearEstimate!$FW$148^2)+(CntyDataLinkPrior10YearEstimate!$FY$148^2)+(CntyDataLinkPrior10YearEstimate!$GA$148^2))","v":18}]
[null,null,null,"Rent 50% or More of HH Income",{"$f":"CntyDataLinkPrior10YearEstimate!$T$156","v":468},{"$f":"CntyDataLinkPrior10YearEstimate!$U$156","v":143},null,{"$f":"CntyDataLinkPrior10YearEstimate!$BV$148","v":0},{"$f":"CntyDataLinkPrior10YearEstimate!$BW$148","v":0},{"$f":"CntyDataLinkPrior10YearEstimate!$CN$148","v":0},{"$f":"CntyDataLinkPrior10YearEstimate!$CO$148","v":0},{"$f":"CntyDataLinkPrior10YearEstimate!$DF$148","v":0},{"$f":"CntyDataLinkPrior10YearEstimate!$DG$148","v":0},{"$f":"CntyDataLinkPrior10YearEstimate!$DX$148","v":0},{"$f":"CntyDataLinkPrior10YearEstimate!$DY$148","v":0},{"$f":"CntyDataLinkPrior10YearEstimate!$EP$148","v":0},{"$f":"CntyDataLinkPrior10YearEstimate!$EQ$148","v":0},{"$f":"CntyDataLinkPrior10YearEstimate!$FH$148","v":0},{"$f":"CntyDataLinkPrior10YearEstimate!$FI$148","v":0},{"$f":"CntyDataLinkPrior10YearEstimate!$FZ$148","v":0},{"$f":"CntyDataLinkPrior10YearEstimate!$GA$148","v":0}]
[null,null,null,"Percent not computed",{"$f":"CntyDataLinkPrior10YearEstimate!$V$156","v":64},{"$f":"CntyDataLinkPrior10YearEstimate!$W$156","v":53},null,{"$f":"CntyDataLinkPrior10YearEstimate!$BX$148","v":28},{"$f":"CntyDataLinkPrior10YearEstimate!$BY$148","v":44},{"$f":"CntyDataLinkPrior10YearEstimate!$CP$148","v":9},{"$f":"CntyDataLinkPrior10YearEstimate!$CQ$148","v":14},{"$f":"CntyDataLinkPrior10YearEstimate!$DH$148","v":7},{"$f":"CntyDataLinkPrior10YearEstimate!$DI$148","v":12},{"$f":"CntyDataLinkPrior10YearEstimate!$DZ$148","v":20},{"$f":"CntyDataLinkPrior10YearEstimate!$EA$148","v":21},{"$f":"CntyDataLinkPrior10YearEstimate!$ER$148","v":0},{"$f":"CntyDataLinkPrior10YearEstimate!$ES$148","v":18},{"$f":"CntyDataLinkPrior10YearEstimate!$FJ$148","v":0},{"$f":"CntyDataLinkPrior10YearEstimate!$FK$148","v":18},{"$f":"CntyDataLinkPrior10YearEstimate!$GB$148","v":0},{"$f":"CntyDataLinkPrior10YearEstimate!$GC$148","v":18}]
[]
[]
[null,null,null,"Percent of Households Paying ",null,null,null,"By Household Income"]
[null,null,null,{"$f":"D56","v":"Rent Less Than 30% of HH Income"},{"$f":"E56/E$52","v":0.4541019955654102},null,null,{"$f":"H56/H$52","v":0.11254019292604502},null,{"$f":"J56/J$52","v":0.30661322645290578},null,{"$f":"L56/L$52","v":0.28152492668621704},null,{"$f":"N56/N$52","v":0.7002518891687658},null,{"$f":"P56/P$52","v":1},null,{"$f":"R56/R$52","v":1},null,{"$f":"T56/T$52","v":1}]
[null,null,null,{"$f":"D57","v":"Rent 30% or More of HH Income"},{"$f":"E57/E$52","v":0.51751662971175161},null,null,{"$f":"H57/H$52","v":0.797427652733119},null,{"$f":"J57/J$52","v":0.67535070140280562},null,{"$f":"L57/L$52","v":0.7082111436950147},null,{"$f":"N57/N$52","v":0.24937027707808565},null,{"$f":"P57/P$52","v":0},null,{"$f":"R57/R$52","v":0},null,{"$f":"T57/T$52","v":0}]
[null,null,null,{"$f":"D59","v":"Rent Less Than 35% of HH Income"},{"$f":"E59/E$52","v":0.55964523281596457},null,null,{"$f":"H59/H$52","v":0.32797427652733119},null,{"$f":"J59/J$52","v":0.39679358717434871},null,{"$f":"L59/L$52","v":0.40322580645161288},null,{"$f":"N59/N$52","v":0.80856423173803527},null,{"$f":"P59/P$52","v":1},null,{"$f":"R59/R$52","v":1},null,{"$f":"T59/T$52","v":1}]
[null,null,null,{"$f":"D60","v":"Rent 35% or More of HH Income"},{"$f":"E60/E$52","v":0.41197339246119735},null,null,{"$f":"H60/H$52","v":0.58199356913183276},null,{"$f":"J60/J$52","v":0.58517034068136276},null,{"$f":"L60/L$52","v":0.5865102639296188},null,{"$f":"N60/N$52","v":0.14105793450881612},null,{"$f":"P60/P$52","v":0},null,{"$f":"R60/R$52","v":0},null,{"$f":"T60/T$52","v":0}]
[null,null,null,"Rent 50% or More of HH Income",{"$f":"E61/E$52","v":0.20753880266075389},null,null,{"$f":"H61/H$52","v":0},null,{"$f":"J61/J$52","v":0},null,{"$f":"L61/L$52","v":0},null,{"$f":"N61/N$52","v":0},null,{"$f":"P61/P$52","v":0},null,{"$f":"R61/R$52","v":0},null,{"$f":"T61/T$52","v":0}]
[null,null,null,"Percent not computed",{"$f":"E62/E$52","v":2.8381374722838137E-2},null,null,{"$f":"H62/H$52","v":9.0032154340836015E-2},null,{"$f":"J62/J$52","v":1.8036072144288578E-2},null,{"$f":"L62/L$52","v":1.0263929618768328E-2},null,{"$f":"N62/N$52","v":5.0377833753148617E-2},null,{"$f":"P62/P$52","v":0},null,{"$f":"R62/R$52","v":0},null,{"$f":"T62/T$52","v":0}]
[]
[]
[null,null,null,"Source:  2008-2012 American Community Survey Table B25070; B25074"]
[]
[null,null,null,{"$f":"D41","v":"Income in 2012 Inflation Adjusted Dollars"}]
[null,null,null,"Data from the American Community Survey are estimates"]
[]
[]
[]
[null,null,null,{"$f":"CntyDataLink!A70","v":"Grantham"}]
[null,null,null,{"$f":"D4","v":"RENTAL HOUSING COST CHARACTERISTICS"}]
[]
[null,null,null,"Rental Housing Costs"]
[]
[null,null,null,"Renter Occupied Housing Units By Gross Rent "]
[]
[null,null,null,null,"Units","Margin of Error"]
[null,null,{"$f":"CntyDataLinkPrior10YearEstimate!E$69","v":"H62RntrOccHU"},"Specified Renter Occ Housing Units",{"$f":"CntyDataLinkPrior10YearEstimate!$B$148","v":2255},{"$f":"CntyDataLinkPrior10YearEstimate!$C$148","v":221}]
[null,null,{"$f":"CntyDataLinkPrior10YearEstimate!F$69","v":"H62RntrOccHUwRent"},"Renter Occ. Housing Units w/ Cash Rent",{"$f":"CntyDataLinkPrior10YearEstimate!$D$148","v":2219},{"$f":"CntyDataLinkPrior10YearEstimate!$E$148","v":218}]
[]
[null,null,{"$f":"CntyDataLinkPrior10YearEstimate!G$69","v":"H62ROHUGRent<100"},"Gross Rent","Units","Margin of Error 2008-2012"]
[null,null,{"$f":"CntyDataLinkPrior10YearEstimate!H$69","v":"H62ROHUGRent100to149"},"Less than $100",{"$f":"CntyDataLinkPrior10YearEstimate!$F$148","v":37},{"$f":"CntyDataLinkPrior10YearEstimate!$G$148","v":35}]
[null,null,{"$f":"CntyDataLinkPrior10YearEstimate!I$69","v":"H62ROHUGRent150to199"},"$100 to $149",{"$f":"CntyDataLinkPrior10YearEstimate!$H$148","v":0},{"$f":"CntyDataLinkPrior10YearEstimate!$I$148","v":18}]
[null,null,{"$f":"CntyDataLinkPrior10YearEstimate!J$69","v":"H62ROHUGRent200to249"},"$150 to $199",{"$f":"CntyDataLinkPrior10YearEstimate!J$148","v":34},{"$f":"CntyDataLinkPrior10YearEstimate!$K$148","v":35}]
[null,null,{"$f":"CntyDataLinkPrior10YearEstimate!K$69","v":"H62ROHUGRent250to299"},"$200 to $249",{"$f":"CntyDataLinkPrior10YearEstimate!$L$148","v":137},{"$f":"CntyDataLinkPrior10YearEstimate!$M$148","v":71}]
[null,null,{"$f":"CntyDataLinkPrior10YearEstimate!L$69","v":"H62ROHUGRent300to349"},"$250 to $299",{"$f":"CntyDataLinkPrior10YearEstimate!$N$148","v":56},{"$f":"CntyDataLinkPrior10YearEstimate!$O$148","v":50}]
[null,null,{"$f":"CntyDataLinkPrior10YearEstimate!M$69","v":"H62ROHUGRent350to399"},"$300 to $349",{"$f":"CntyDataLinkPrior10YearEstimate!$P$148","v":99},{"$f":"CntyDataLinkPrior10YearEstimate!$Q$148","v":79}]
[null,null,{"$f":"CntyDataLinkPrior10YearEstimate!N$69","v":"H62ROHUGRent400to449"},"$350 to $399",{"$f":"CntyDataLinkPrior10YearEstimate!$R$148","v":40},{"$f":"CntyDataLinkPrior10YearEstimate!$S$148","v":36}]
[null,null,{"$f":"CntyDataLinkPrior10YearEstimate!O$69","v":"H62ROHUGRent450to499"},"$400 to $449",{"$f":"CntyDataLinkPrior10YearEstimate!$T$148","v":73},{"$f":"CntyDataLinkPrior10YearEstimate!$U$148","v":53}]
[null,null,{"$f":"CntyDataLinkPrior10YearEstimate!P$69","v":"H62ROHUGRent500to549"},"$450 to $499",{"$f":"CntyDataLinkPrior10YearEstimate!$V$148","v":20},{"$f":"CntyDataLinkPrior10YearEstimate!$W$148","v":22}]
[null,null,{"$f":"CntyDataLinkPrior10YearEstimate!Q$69","v":"H62ROHUGRent550to599"},"$500 to $549",{"$f":"CntyDataLinkPrior10YearEstimate!$X$148","v":31},{"$f":"CntyDataLinkPrior10YearEstimate!$Y$148","v":34}]
[null,null,{"$f":"CntyDataLinkPrior10YearEstimate!R$69","v":"H62ROHUGRent600to649"},"$550 to $599",{"$f":"CntyDataLinkPrior10YearEstimate!$Z$148","v":23},{"$f":"CntyDataLinkPrior10YearEstimate!$AA$148","v":30}]
[null,null,{"$f":"CntyDataLinkPrior10YearEstimate!S$69","v":"H62ROHUGRent650to699"},"$600 to $649",{"$f":"CntyDataLinkPrior10YearEstimate!$AB$148","v":118},{"$f":"CntyDataLinkPrior10YearEstimate!$AC$148","v":81}]
[null,null,{"$f":"CntyDataLinkPrior10YearEstimate!T$69","v":"H62ROHUGRent700to749"},"$650 to $699",{"$f":"CntyDataLinkPrior10YearEstimate!$AD$148","v":146},{"$f":"CntyDataLinkPrior10YearEstimate!$AE$148","v":93}]
[null,null,{"$f":"CntyDataLinkPrior10YearEstimate!U$69","v":"H62ROHUGRent750to799"},"$700 to $749",{"$f":"CntyDataLinkPrior10YearEstimate!$AF$148","v":223},{"$f":"CntyDataLinkPrior10YearEstimate!$AG$148","v":97}]
[null,null,{"$f":"CntyDataLinkPrior10YearEstimate!V$69","v":"H62ROHUGRent800to899"},"$750 to $799",{"$f":"CntyDataLinkPrior10YearEstimate!$AH$148","v":91},{"$f":"CntyDataLinkPrior10YearEstimate!$AI$148","v":55}]
[null,null,{"$f":"CntyDataLinkPrior10YearEstimate!W$69","v":"H62ROHUGRent900to999"},"$800 to $899",{"$f":"CntyDataLinkPrior10YearEstimate!$AJ$148","v":383},{"$f":"CntyDataLinkPrior10YearEstimate!$AK$148","v":132}]
[null,null,{"$f":"CntyDataLinkPrior10YearEstimate!X$69","v":"H62ROHUGRent1000to1249"},"$900 to $999",{"$f":"CntyDataLinkPrior10YearEstimate!$AL$148","v":160},{"$f":"CntyDataLinkPrior10YearEstimate!$AM$148","v":72}]
[null,null,{"$f":"CntyDataLinkPrior10YearEstimate!Y$69","v":"H62ROHUGRent1250to1499"},"$1000 to $1249",{"$f":"CntyDataLinkPrior10YearEstimate!$AN$148","v":433},{"$f":"CntyDataLinkPrior10YearEstimate!$AO$148","v":149}]
[null,null,{"$f":"CntyDataLinkPrior10YearEstimate!Z$69","v":"H62ROHUGRent1500to1999"},"$1250 to $1499",{"$f":"CntyDataLinkPrior10YearEstimate!$AP$148","v":115},{"$f":"CntyDataLinkPrior10YearEstimate!$AQ$148","v":83}]
[null,null,{"$f":"CntyDataLinkPrior10YearEstimate!AA$69","v":"H62ROHUGRent2000>"},"$1500 to $1999",{"$f":"CntyDataLinkPrior10YearEstimate!$AR$148","v":0},{"$f":"CntyDataLinkPrior10YearEstimate!$AS$148","v":18}]
[null,null,{"$f":"CntyDataLinkPrior10YearEstimate!AB$69","v":"H62ROHUNoGRent"},"$2,000 to $2,499",{"$f":"CntyDataLinkPrior10YearEstimate!$AT$148","v":0},{"$f":"CntyDataLinkPrior10YearEstimate!$AU$148","v":18}]
[null,null,{"$f":"CntyDataLinkPrior10YearEstimate!AC$69","v":"H63MedianGrossRnt"},"$2,500 to $2,999",{"$f":"CntyDataLinkPrior10YearEstimate!$AV$148","v":0},{"$f":"CntyDataLinkPrior10YearEstimate!$AW$148","v":0}]
[null,null,null,"$3,000 to $3,499",{"$f":"CntyDataLinkPrior10YearEstimate!$AX$148","v":0},{"$f":"CntyDataLinkPrior10YearEstimate!$AY$148","v":0}]
[null,null,null,"$3,500 or more",{"$f":"CntyDataLinkPrior10YearEstimate!$AZ$148","v":0},{"$f":"CntyDataLinkPrior10YearEstimate!$BA$148","v":0}]
[null,null,null,"Renter Occ. Housing Units w/ No Cash Rent",{"$f":"CntyDataLinkPrior10YearEstimate!$BB$148","v":36},{"$f":"CntyDataLinkPrior10YearEstimate!$BC$148","v":27}]
[]
[null,null,null,"Median Gross Rent",{"$f":"CntyDataLinkPrior10YearEstimate!$BD$148","v":790},{"$f":"CntyDataLinkPrior10YearEstimate!$BE$148","v":66}]
[]
[]
[]
[]
[null,null,null,"Source: 2008-2012 American Community Survey Table B25063; B25064"]
[null,null,null,"Data from the American Community Survey are estimates"]

{"sheet":"ACS_Table_B25063_&_B25064","index":59,"n_rows":159,"n_cols":32,"rows_kept":159,"cut":false,"hidden":true,"merged":[]}
[null,"B25063. GROSS RENT"]
[null,"Universe:  RENTER-OCCUPIED HOUSING UNITS"]
[null,"Data Set: 2018-2022 American Community Survey 5-Year Estimates"]
[]
[null,null,"Acworth",null,"Charlestown",null,"Claremont",null,"Cornish",null,"Croydon",null,"Goshen",null,"Grantham",null,"Langdon",null,"Lempster",null,"Newport",null,"Plainfield",null,"Springfield",null,"Sunapee",null,"Unity",null,"Washington"]
[null,null,"Estimate","Margin Of Error","Estimate","Margin Of Error","Estimate","Margin Of Error","Estimate","Margin Of Error","Estimate","Margin Of Error","Estimate","Margin Of Error","Estimate","Margin Of Error","Estimate","Margin Of Error","Estimate","Margin Of Error","Estimate","Margin Of Error","Estimate","Margin Of Error","Estimate","Margin Of Error","Estimate","Margin Of Error","Estimate","Margin Of Error","Estimate","Margin Of Error"]
[null,"Total:",23,14,519,167,2121,312,25,13,21,13,53,22,58,72,21,15,17,19,999,259,71,37,30,24,228,97,31,19,32,23]
[null,"With cash rent:",20,13,497,162,2121,312,19,11,15,12,44,23,58,72,19,14,17,19,985,258,71,37,30,24,228,97,12,9,32,23]
[null,"Less than $100",0,12,0,12,0,19,0,12,0,12,0,12,0,12,0,12,0,12,0,17,0,12,0,12,0,12,0,12,0,12]
[null,"$100 to $149",0,12,0,12,0,19,0,12,0,12,0,12,0,12,0,12,0,12,33,49,0,12,0,12,0,12,0,12,0,12]
[null,"$150 to $199",0,12,0,12,9,17,0,12,0,12,0,12,0,12,0,12,0,12,0,17,0,12,0,12,0,12,0,12,0,12]
[null,"$200 to $249",0,12,0,12,24,30,0,12,0,12,0,12,0,12,0,12,0,12,0,17,0,12,0,12,0,12,0,12,0,12]
[null,"$250 to $299",0,12,16,26,138,86,0,12,0,12,0,12,0,12,0,12,0,12,0,17,0,12,0,12,0,12,0,12,0,12]
[null,"$300 to $349",0,12,0,12,8,14,0,12,0,12,0,12,0,12,0,12,0,12,57,69,0,12,0,12,0,12,0,12,0,12]
[null,"$350 to $399",0,12,23,36,112,95,0,12,0,12,0,12,0,12,0,12,0,12,37,40,0,12,8,14,0,12,0,12,0,12]
[null,"$400 to $449",0,12,11,19,55,50,0,12,0,12,0,12,0,12,0,12,0,12,0,17,0,12,0,12,0,12,0,12,0,12]
[null,"$450 to $499",0,12,14,21,46,55,0,12,0,12,7,10,0,12,0,12,0,12,0,17,0,12,0,12,0,12,0,12,0,12]
[null,"$500 to $549",0,12,19,31,18,19,0,12,0,12,0,12,0,12,0,12,0,12,0,17,0,12,0,12,0,12,0,12,0,12]
[null,"$550 to $599",0,12,0,12,22,26,0,12,0,12,0,12,0,12,2,3,0,12,0,17,0,12,0,12,0,12,0,12,0,12]
[null,"$600 to $649",0,12,17,27,7,12,0,12,0,12,0,12,0,12,0,12,7,8,43,47,0,12,0,12,6,9,0,12,0,12]
[null,"$650 to $699",0,12,0,12,6,10,0,12,0,12,0,12,0,12,0,12,0,12,0,17,0,12,0,12,0,12,0,12,4,6]
[null,"$700 to $749",0,12,0,12,141,109,0,12,0,12,0,12,0,12,0,12,0,12,0,17,0,12,6,11,0,12,0,12,0,12]
[null,"$750 to $799",2,3,23,39,32,37,0,12,0,12,0,12,0,12,0,12,0,12,0,17,0,12,0,12,8,13,0,12,0,12]
[null,"$800 to $899",3,4,35,57,101,83,0,12,0,12,0,12,0,12,0,12,0,12,73,72,0,12,0,12,0,12,4,6,0,12]
[null,"$900 to $999",0,12,0,12,149,103,0,12,0,12,5,8,0,12,0,12,0,12,144,121,0,12,6,11,25,30,0,12,2,3]
[null,"$1,000 to $1,249",7,10,213,104,675,249,6,6,5,7,3,5,45,65,12,12,10,16,180,140,6,11,0,12,38,45,0,12,17,18]
[null,"$1,250 to $1,499",2,3,0,12,442,171,3,4,2,4,7,6,0,12,3,4,0,12,123,78,13,17,0,12,51,49,5,6,9,14]
[null,"$1,500 to $1,999",6,6,126,99,136,100,10,8,8,9,16,18,0,12,2,3,0,12,173,127,33,23,10,12,31,26,0,12,0,12]
[null,"$2,000 to $2,499",0,12,0,12,0,19,0,12,0,12,6,9,13,22,0,12,0,12,106,113,12,12,0,12,62,77,3,4,0,12]
[null,"$2,500 to $2,999",0,12,0,12,0,19,0,12,0,12,0,12,0,12,0,12,0,12,0,17,7,11,0,12,0,12,0,12,0,12]
[null,"$3,000 to $3,499",0,12,0,12,0,19,0,12,0,12,0,12,0,12,0,12,0,12,0,17,0,12,0,12,0,12,0,12,0,12]
[null,"$3,500 or more",0,12,0,12,0,19,0,12,0,12,0,12,0,12,0,12,0,12,16,27,0,12,0,12,7,11,0,12,0,12]
[null,"No cash rent",3,4,22,35,0,19,6,7,6,4,9,8,0,12,2,3,0,12,14,23,0,12,0,12,0,12,19,16,0,12]
[]
[]
[]
[null,"B25064. MEDIAN GROSS RENT (DOLLARS)"]
[null,"Universe:  RENTER-OCCUPIED HOUSING UNITS PAYING CASH RENT"]
[null,"Data Set: 2018-2022 American Community Survey 5-Year Estimates"]
[null,{"$f":"RentalHousingCost!D41","v":"Income in 2022 Inflation Adjusted Dollars"}]
[null,null,"Acworth",null,"Charlestown",null,"Claremont",null,"Cornish",null,"Croydon",null,"Goshen",null,"Grantham",null,"Langdon",null,"Lempster",null,"Newport",null,"Plainfield",null,"Springfield",null,"Sunapee",null,"Unity",null,"Washington"]
[null,null,"Estimate","Margin Of Error","Estimate","Margin Of Error","Estimate","Margin Of Error","Estimate","Margin Of Error","Estimate","Margin Of Error","Estimate","Margin Of Error","Estimate","Margin Of Error","Estimate","Margin Of Error","Estimate","Margin Of Error","Estimate","Margin Of Error","Estimate","Margin Of Error","Estimate","Margin Of Error","Estimate","Margin Of Error","Estimate","Margin Of Error","Estimate","Margin Of Error"]
[null,"Median gross rent",1179,311,1106,91,1071,67,1525,362,1531,395,1500,398,"-","**",1156,74,"-","**",1147,198,1750,202,917,620,1431,400,1350,395,1147,137]
[]
[]
[null,null,null,296,1094,92,964,378,960,275,1024,177,1162,258,891,47,906,124,939,623,917,201,761,95]
[]
[]
[]
[]
[]
[]
[]
[]
[]
[]
[]
[]
[]
[]
[]
[]
[]
[]
[]
[]
[]
[]
[]
[null,"B25063. GROSS RENT"]
[null,"Universe:  RENTER-OCCUPIED HOUSING UNITS"]
[null,"Data Set: 2013-2017 American Community Survey 5-Year Estimates"]
[]
[null,null,"Acworth",null,"Charlestown",null,"Claremont",null,"Cornish",null,"Croydon",null,"Goshen",null,"Grantham",null,"Langdon",null,"Lempster",null,"Newport",null,"Plainfield",null,"Springfield",null,"Sunapee",null,"Unity",null,"Washington"]
[null,null,"Estimate","Margin Of Error","Estimate","Margin Of Error","Estimate","Margin Of Error","Estimate","Margin Of Error","Estimate","Margin Of Error","Estimate","Margin Of Error","Estimate","Margin Of Error","Estimate","Margin Of Error","Estimate","Margin Of Error","Estimate","Margin Of Error","Estimate","Margin Of Error","Estimate","Margin Of Error","Estimate","Margin Of Error","Estimate","Margin Of Error","Estimate","Margin Of Error"]
[null,"Total:",39,20,429,133,2404,276,81,38,33,21,65,32,103,80,26,18,22,14,780,174,99,45,55,34,504,158,37,19,49,36]
[null,"With cash rent:",33,19,395,122,2354,275,78,38,33,21,61,33,103,80,26,18,14,9,708,164,94,44,41,30,501,157,30,19,34,35]
[null,"Less than $100",0,11,0,16,9,15,0,11,0,11,0,11,0,11,0,11,0,11,29,32,0,11,0,11,0,11,0,11,0,11]
[null,"$100 to $149",0,11,0,16,0,18,0,11,0,11,0,11,0,11,0,11,0,11,0,16,0,11,0,11,0,11,0,11,0,11]
[null,"$150 to $199",0,11,0,16,19,30,0,11,0,11,0,11,0,11,0,11,0,11,15,25,0,11,0,11,0,11,0,11,0,11]
[null,"$200 to $249",0,11,15,24,191,130,0,11,0,11,0,11,0,11,0,11,0,11,0,16,0,11,0,11,0,11,0,11,0,11]
[null,"$250 to $299",0,11,0,16,43,49,0,11,0,11,0,11,0,11,0,11,0,11,42,68,0,11,0,11,0,11,0,11,0,11]
[null,"$300 to $349",0,11,0,16,73,66,0,11,0,11,0,11,17,28,0,11,0,11,26,30,0,11,0,11,0,11,0,11,0,11]
[null,"$350 to $399",0,11,0,16,46,30,0,11,0,11,0,11,0,11,0,11,0,11,0,16,0,11,0,11,12,20,0,11,0,11]
[null,"$400 to $449",0,11,35,56,54,68,0,11,0,11,0,11,0,11,0,11,0,11,0,16,0,11,0,11,0,11,0,11,0,11]
[null,"$450 to $499",0,11,13,29,18,14,0,11,0,11,0,11,0,11,0,11,0,11,45,71,0,11,0,11,0,11,0,11,0,11]
[null,"$500 to $549",0,11,0,16,71,53,3,5,0,11,0,11,0,11,0,11,2,3,0,16,0,11,0,11,0,11,0,11,0,11]
[null,"$550 to $599",0,11,29,33,84,62,0,11,0,11,0,11,0,11,0,11,0,11,0,16,0,11,0,11,0,11,0,11,0,11]
[null,"$600 to $649",0,11,43,31,75,55,8,9,0,11,0,11,0,11,0,11,0,11,0,16,0,11,0,11,0,11,0,11,0,11]
[null,"$650 to $699",0,11,0,16,46,47,0,11,0,11,0,11,0,11,0,11,3,4,16,26,0,11,0,11,0,11,0,11,0,11]
[null,"$700 to $749",0,11,0,16,138,87,0,11,2,4,0,11,0,11,0,11,0,11,47,58,0,11,0,11,9,15,0,11,26,35]
[null,"$750 to $799",0,11,105,92,133,90,3,5,0,11,0,11,0,11,0,11,0,11,62,67,0,11,0,11,49,56,0,11,0,11]
[null,"$800 to $899",6,10,45,51,288,103,3,5,6,10,11,12,0,11,19,18,0,11,170,113,10,10,9,14,77,80,0,11,0,11]
[null,"$900 to $999",3,4,48,44,234,110,14,17,7,11,18,17,11,18,2,3,3,4,134,96,5,9,9,14,73,83,0,11,0,11]
[null,"$1,000 to $1,249",12,11,62,60,696,159,22,17,2,4,24,19,0,11,0,11,3,4,36,43,22,20,10,15,179,84,12,11,4,5]
[null,"$1,250 to $1,499",3,6,0,16,66,61,3,5,9,14,8,12,0,11,5,9,3,4,44,49,10,11,0,11,40,52,18,16,0,11]
[null,"$1,500 to $1,999",9,10,0,16,70,56,22,23,7,10,0,11,67,72,0,11,0,11,29,35,29,25,13,16,40,38,0,11,4,5]
[null,"$2,000 to $2,499",0,11,0,16,0,18,0,11,0,11,0,11,8,12,0,11,0,11,13,29,4,6,0,11,11,17,0,11,0,11]
[null,"$2,500 to $2,999",0,11,0,16,0,18,0,11,0,11,0,11,0,11,0,11,0,11,0,16,14,22,0,11,0,11,0,11,0,11]
[null,"$3,000 to $3,499",0,11,0,16,0,18,0,11,0,11,0,11,0,11,0,11,0,11,0,16,0,11,0,11,0,11,0,11,0,11]
[null,"$3,500 or more",0,11,0,16,0,18,0,11,0,11,0,11,0,11,0,11,0,11,0,16,0,11,0,11,11,18,0,11,0,11]
[null,"No cash rent",6,7,34,39,50,37,3,5,0,11,4,4,0,11,0,11,8,9,72,63,5,8,14,14,3,6,7,8,15,9]
[]
[]
[]
[null,"B25064. MEDIAN GROSS RENT (DOLLARS)"]
[null,"Universe:  RENTER-OCCUPIED HOUSING UNITS PAYING CASH RENT"]
[null,"Data Set: 2013-2017 American Community Survey 5-Year Estimates"]
[null,{"$f":"'RentalHousingCost-Prior5Yr'!D41","v":"Income in 2017 Inflation Adjusted Dollars"}]
[null,null,"Acworth",null,"Charlestown",null,"Claremont",null,"Cornish",null,"Croydon",null,"Goshen",null,"Grantham",null,"Langdon",null,"Lempster",null,"Newport",null,"Plainfield",null,"Springfield",null,"Sunapee",null,"Unity",null,"Washington"]
[null,null,"Estimate","Margin Of Error","Estimate","Margin Of Error","Estimate","Margin Of Error","Estimate","Margin Of Error","Estimate","Margin Of Error","Estimate","Margin Of Error","Estimate","Margin Of Error","Estimate","Margin Of Error","Estimate","Margin Of Error","Estimate","Margin Of Error","Estimate","Margin Of Error","Estimate","Margin Of Error","Estimate","Margin Of Error","Estimate","Margin Of Error","Estimate","Margin Of Error"]
[null,"Median gross rent",1156,259,780,83,861,53,1091,199,1188,556,1016,117,1675,402,868,48,967,246,842,60,1500,398,1063,500,1043,106,1292,110,733,55]
[]
[]
[]
[]
[null,"B25063. GROSS RENT"]
[null,"Universe:  RENTER-OCCUPIED HOUSING UNITS"]
[null,"Data Set: 2008-2012 American Community Survey 5-Year Estimates"]
[]
[null,null,"Acworth",null,"Charlestown",null,"Claremont",null,"Cornish",null,"Croydon",null,"Goshen",null,"Grantham",null,"Langdon",null,"Lempster",null,"Newport",null,"Plainfield",null,"Springfield",null,"Sunapee",null,"Unity",null,"Washington"]
[null,null,"Estimate","Margin Of Error","Estimate","Margin Of Error","Estimate","Margin Of Error","Estimate","Margin Of Error","Estimate","Margin Of Error","Estimate","Margin Of Error","Estimate","Margin Of Error","Estimate","Margin Of Error","Estimate","Margin Of Error","Estimate","Margin Of Error","Estimate","Margin Of Error","Estimate","Margin Of Error","Estimate","Margin Of Error","Estimate","Margin Of Error","Estimate","Margin Of Error"]
[null,"Total:",72,39,467,158,2255,221,105,42,49,23,58,32,116,57,31,24,62,28,898,206,103,58,44,27,360,127,53,43,37,21]
[null,"With cash rent:",72,39,405,146,2219,218,93,41,43,23,53,32,97,52,26,22,56,28,885,203,72,51,42,27,321,121,45,42,25,18]
[null,"Less than $100",0,11,0,16,37,35,0,11,0,11,0,11,0,11,2,4,0,11,0,16,0,11,0,11,0,11,0,11,0,11]
[null,"$100 to $149",0,11,0,16,0,18,0,11,0,11,0,11,0,11,0,11,0,11,0,16,0,11,0,11,0,11,0,11,0,11]
[null,"$150 to $199",0,11,0,16,34,35,0,11,0,11,0,11,0,11,0,11,0,11,114,97,0,11,0,11,0,11,0,11,0,11]
[null,"$200 to $249",0,11,0,16,137,71,0,11,0,11,0,11,0,11,0,11,0,11,30,32,0,11,0,11,0,11,0,11,0,11]
[null,"$250 to $299",0,11,11,19,56,50,0,11,0,11,0,11,0,11,0,11,0,11,19,21,0,11,3,4,0,11,0,11,0,11]
[null,"$300 to $349",0,11,0,16,99,79,0,11,0,11,0,11,0,11,0,11,0,11,29,33,0,11,0,11,0,11,0,11,0,11]
[null,"$350 to $399",0,11,38,29,40,36,0,11,2,3,0,11,0,11,0,11,0,11,56,38,0,11,0,11,0,11,0,11,0,11]
[null,"$400 to $449",10,16,14,23,73,53,0,11,0,11,0,11,0,11,0,11,0,11,0,16,0,11,0,11,0,11,0,11,0,11]
[null,"$450 to $499",0,11,0,16,20,22,0,11,0,11,0,11,0,11,0,11,0,11,0,16,0,11,0,11,0,11,0,11,0,11]
[null,"$500 to $549",0,11,74,81,31,34,0,11,0,11,0,11,0,11,0,11,0,11,0,16,5,7,0,11,0,11,0,11,0,11]
[null,"$550 to $599",2,3,31,49,23,30,0,11,0,11,0,11,0,11,0,11,4,6,0,16,14,23,0,11,0,11,0,11,0,11]
[null,"$600 to $649",0,11,42,39,118,81,10,15,2,3,0,11,0,11,0,11,0,11,28,45,0,11,0,11,0,11,0,11,0,11]
[null,"$650 to $699",7,11,32,52,146,93,5,8,0,11,0,11,0,11,0,11,0,11,0,16,0,11,0,11,48,54,26,38,0,11]
[null,"$700 to $749",0,11,0,16,223,97,0,11,0,11,0,11,0,11,0,11,0,11,113,96,0,11,0,11,33,43,6,10,4,6]
[null,"$750 to $799",0,11,0,16,91,55,0,11,2,3,0,11,12,20,0,11,8,14,92,86,0,11,5,8,0,11,0,11,0,11]
[null,"$800 to $899",18,20,52,78,383,132,9,10,3,5,2,3,0,11,0,11,17,20,81,58,0,11,17,19,4,8,0,11,14,16]
[null,"$900 to $999",4,4,0,16,160,72,8,10,2,4,18,21,17,28,11,17,0,11,40,44,0,11,0,11,20,25,3,5,3,4]
[null,"$1,000 to $1,249",17,16,54,50,433,149,32,26,12,13,13,13,0,11,0,11,16,13,185,101,13,13,7,7,163,103,10,12,0,11]
[null,"$1,250 to $1,499",2,3,27,30,115,83,14,16,7,10,20,21,19,23,9,11,3,4,98,78,7,10,0,11,5,9,0,11,2,4]
[null,"$1,500 to $1,999",12,19,0,16,0,18,12,16,13,13,0,11,37,34,4,5,8,9,0,16,33,42,10,16,48,48,0,11,0,11]
[null,"$2,000 to $2,499",0,11,30,50,0,18,3,5,0,11,0,11,12,18,0,11,0,11,0,16,0,11,0,11,0,11,0,11,2,4]
[null,"$2,500 to $2,999"]
[null,"$3,000 to $3,499"]
[null,"$3,500 or more"]
[null,"No cash rent",0,11,62,61,36,27,12,10,6,6,5,7,19,27,5,9,6,6,13,20,31,24,2,5,39,50,8,11,12,10]
[]
[]
[]
[null,"B25064. MEDIAN GROSS RENT (DOLLARS)"]
[null,"Universe:  RENTER-OCCUPIED HOUSING UNITS PAYING CASH RENT"]
[null,"Data Set: 2008-2012 American Community Survey 5-Year Estimates"]
[null,{"$f":"'RentalHousingCost-Prior10Yr'!D41","v":"Income in 2012 Inflation Adjusted Dollars"}]
[null,null,"Acworth",null,"Charlestown",null,"Claremont",null,"Cornish",null,"Croydon",null,"Goshen",null,"Grantham",null,"Langdon",null,"Lempster",null,"Newport",null,"Plainfield",null,"Springfield",null,"Sunapee",null,"Unity",null,"Washington"]
[null,null,"Esitimate","Margin Of Error","Esitimate","Margin Of Error","Esitimate","Margin Of Error","Esitimate","Margin Of Error","Esitimate","Margin Of Error","Esitimate","Margin Of Error","Esitimate","Margin Of Error","Esitimate","Margin Of Error","Esitimate","Margin Of Error","Esitimate","Margin Of Error","Esitimate","Margin Of Error","Esitimate","Margin Of Error","Esitimate","Margin Of Error","Esitimate","Margin Of Error","Esitimate","Margin Of Error"]
[null,"Median gross rent",894,197,641,152,790,66,1113,164,1219,215,1125,258,1507,417,1125,544,894,289,779,85,1393,641,876,390,1085,84,693,223,861,73]

{"sheet":"ACS_Table_B25070","index":60,"n_rows":141,"n_cols":32,"rows_kept":141,"cut":false,"hidden":true,"merged":[]}
[null,"B25070. GROSS RENT AS A PERCENTAGE OF HOUSEHOLD INCOME IN THE PAST 12 MONTHS"]
[null,"Universe:  RENTER-OCCUPIED HOUSING UNITS"]
[null,"Data Set: 2018-2022 American Community Survey 5-Year Estimates"]
[]
[null,null,"Acworth",null,"Charlestown",null,"Claremont",null,"Cornish",null,"Croydon",null,"Goshen",null,"Grantham",null,"Langdon",null,"Lempster",null,"Newport",null,"Plainfield",null,"Springfield",null,"Sunapee",null,"Unity",null,"Washington"]
[null,null,"Estimate","Margin Of Error","Estimate","Margin Of Error","Estimate","Margin Of Error","Estimate","Margin Of Error","Estimate","Margin Of Error","Estimate","Margin Of Error","Estimate","Margin Of Error","Estimate","Margin Of Error","Estimate","Margin Of Error","Estimate","Margin Of Error","Estimate","Margin Of Error","Estimate","Margin Of Error","Estimate","Margin Of Error","Estimate","Margin Of Error","Estimate","Margin Of Error"]
[null,"Total:",23,14,519,167,2121,312,25,13,21,13,53,22,58,72,21,15,17,19,999,259,71,37,30,24,228,97,31,19,32,23]
[null,"Less than 10.0 percent",0,12,44,57,36,32,0,12,0,12,0,12,45,65,0,12,0,12,0,17,0,12,6,11,0,12,0,12,0,12]
[null,"10.0 to 14.9 percent",7,7,57,69,72,61,0,12,0,12,7,8,0,12,0,12,0,12,180,115,16,15,0,12,11,12,0,12,2,3]
[null,"15.0 to 19.9 percent",0,12,14,23,224,101,4,4,2,4,6,7,0,12,2,3,0,12,139,90,12,12,7,11,15,26,0,12,0,12]
[null,"20.0 to 24.9 percent",0,12,44,45,272,127,2,3,0,12,0,12,0,12,0,12,10,16,115,104,6,8,6,11,76,78,2,4,17,18]
[null,"25.0 to 29.9 percent",4,4,76,55,182,113,0,12,5,8,3,4,0,12,7,10,0,12,83,110,6,10,0,12,7,11,3,4,4,6]
[null,"30.0 to 34.9 percent",0,12,23,36,233,133,0,12,0,12,10,17,0,12,3,4,7,8,86,82,9,15,0,12,23,25,0,12,0,12]
[null,"35.0 to 39.9 percent",2,3,35,57,266,192,0,12,0,12,0,12,13,22,0,12,0,12,39,38,0,12,0,12,31,41,0,12,0,12]
[null,"40.0 to 49.9 percent",0,12,0,12,154,112,0,12,0,12,0,12,0,12,7,6,0,12,158,132,11,14,0,12,0,12,3,4,0,12]
[null,"50.0 percent or more",0,12,112,81,682,236,13,9,3,4,13,14,0,12,0,12,0,12,164,109,11,14,3,5,44,47,4,6,9,14]
[null,"Not computed",10,11,114,94,0,19,6,7,11,9,14,8,0,12,2,3,0,12,35,38,0,12,8,14,21,33,19,16,0,12]
[]
[]
[]
[]
[]
[]
[]
[]
[]
[]
[]
[]
[]
[]
[]
[]
[]
[null,"Calculated B25070. GROSS RENT AS A PERCENTAGE OF HOUSEHOLD INCOME IN THE PAST 12 MONTHS"]
[null,"Universe:  RENTER-OCCUPIED HOUSING UNITS"]
[null,"Data Set: 2018-2022 American Community Survey 5-Year Estimates"]
[null,{"$f":"RentalHousingCost!D41","v":"Income in 2022 Inflation Adjusted Dollars"}]
[null,null,"Acworth",null,"Charlestown",null,"Claremont",null,"Cornish",null,"Croydon",null,"Goshen",null,"Grantham",null,"Langdon",null,"Lempster",null,"Newport",null,"Plainfield",null,"Springfield",null,"Sunapee",null,"Unity",null,"Washington"]
[null,null,"Estimate","Margin of Error","Estimate","Margin of Error","Estimate","Margin of Error","Estimate","Margin of Error","Estimate","Margin of Error","Estimate","Margin of Error","Estimate","Margin of Error","Estimate","Margin of Error","Estimate","Margin of Error","Estimate","Margin of Error","Estimate","Margin of Error","Estimate","Margin of Error","Estimate","Margin of Error","Estimate","Margin of Error","Estimate","Margin of Error"]
[null,{"$f":"B7","v":"Total:"},23,14,519,167,2121,312,25,13,21,13,53,22,58,72,21,15,17,19,999,259,71,37,30,24,228,97,{"$f":"AC7","v":31},{"$f":"AD7","v":19},{"$f":"AE7","v":32},{"$f":"AF7","v":23}]
[null," Less Than 20% of HH Income",{"$f":"C8+C9+C10","v":7},{"$f":"SQRT((D8^2)+(D9^2)+(D10^2))","v":18.357559750685819},{"$f":"E8+E9+E10","v":115},{"$f":"SQRT((F8^2)+(F9^2)+(F10^2))","v":92.406709713093889},{"$f":"G8+G9+G10","v":332},{"$f":"SQRT((H8^2)+(H9^2)+(H10^2))","v":122.25383429569807},{"$f":"I8+I9+I10","v":4},{"$f":"SQRT((J8^2)+(J9^2)+(J10^2))","v":17.435595774162696},{"$f":"K8+K9+K10","v":2},{"$f":"SQRT((L8^2)+(L9^2)+(L10^2))","v":17.435595774162696},{"$f":"M8+M9+M10","v":13},{"$f":"SQRT((N8^2)+(N9^2)+(N10^2))","v":16.031219541881399},{"$f":"O8+O9+O10","v":45},{"$f":"SQRT((P8^2)+(P9^2)+(P10^2))","v":67.178865724273734},{"$f":"Q8+Q9+Q10","v":2},{"$f":"SQRT((R8^2)+(R9^2)+(R10^2))","v":17.233687939614086},{"$f":"S8+S9+S10","v":0},{"$f":"SQRT((T8^2)+(T9^2)+(T10^2))","v":20.784609690826528},{"$f":"U8+U9+U10","v":319},{"$f":"SQRT((V8^2)+(V9^2)+(V10^2))","v":147.01700581905482},{"$f":"W8+W9+W10","v":28},{"$f":"SQRT((X8^2)+(X9^2)+(X10^2))","v":22.649503305812249},{"$f":"Y8+Y9+Y10","v":13},{"$f":"SQRT((Z8^2)+(Z9^2)+(Z10^2))","v":19.646882704388499},{"$f":"AA8+AA9+AA10","v":26},{"$f":"SQRT((AB8^2)+(AB9^2)+(AB10^2))","v":31.048349392520048},{"$f":"AC8+AC9+AC10","v":0},{"$f":"SQRT((AD8^2)+(AD9^2)+(AD10^2))","v":20.784609690826528},{"$f":"AE8+AE9+AE10","v":2},{"$f":"SQRT((AF8^2)+(AF9^2)+(AF10^2))","v":17.233687939614086}]
[null," 20% to 24.9% of HH Income",{"$f":"C11","v":0},{"$f":"D11","v":12},{"$f":"E11","v":44},45,272,127,2,3,0,12,0,12,0,12,0,12,10,16,115,104,6,8,{"$f":"Y11","v":6},11,76,78,{"$f":"AC11","v":2},4,17,18]
[null," 25% to 29.9% of HH Income",{"$f":"C12","v":4},{"$f":"D12","v":4},76,55,182,113,0,12,5,8,3,4,0,12,7,10,0,12,83,110,6,10,0,12,7,11,3,4,4,6]
[null," Less Than 30% of HH Income",{"$f":"C12+C11+C10+C9+C8","v":11},{"$f":"SQRT((D12^2)+(D11^2)+(D10^2)+(D9^2)+(D8^2))","v":22.293496809607955},{"$f":"E12+E11+E10+E9+E8","v":235},{"$f":"SQRT((F12^2)+(F11^2)+(F10^2)+(F9^2)+(F8^2))","v":116.57186624567696},{"$f":"G12+G11+G10+G9+G8","v":786},{"$f":"SQRT((H12^2)+(H11^2)+(H10^2)+(H9^2)+(H8^2))","v":209.3895890439637},{"$f":"I12+I11+I10+I9+I8","v":6},{"$f":"SQRT((J12^2)+(J11^2)+(J10^2)+(J9^2)+(J8^2))","v":21.377558326431949},{"$f":"K12+K11+K10+K9+K8","v":7},{"$f":"SQRT((L12^2)+(L11^2)+(L10^2)+(L9^2)+(L8^2))","v":22.627416997969522},{"$f":"M12+M11+M10+M9+M8","v":16},{"$f":"SQRT((N12^2)+(N11^2)+(N10^2)+(N9^2)+(N8^2))","v":20.420577856662138},{"$f":"O12+O11+O10+O9+O8","v":45},{"$f":"SQRT((P12^2)+(P11^2)+(P10^2)+(P9^2)+(P8^2))","v":69.289248805280025},{"$f":"Q12+Q11+Q10+Q9+Q8","v":9},{"$f":"SQRT((R12^2)+(R11^2)+(R10^2)+(R9^2)+(R8^2))","v":23.259406699226016},{"$f":"S12+S11+S10+S9+S8","v":10},{"$f":"SQRT((T12^2)+(T11^2)+(T10^2)+(T9^2)+(T8^2))","v":28.844410203711913},{"$f":"U12+U11+U10+U9+U8","v":517},{"$f":"SQRT((V12^2)+(V11^2)+(V10^2)+(V9^2)+(V8^2))","v":211.02132593650339},{"$f":"W12+W11+W10+W9+W8","v":40},{"$f":"SQRT((X12^2)+(X11^2)+(X10^2)+(X9^2)+(X8^2))","v":26.019223662515376},{"$f":"Y12+Y11+Y10+Y9+Y8","v":19},{"$f":"SQRT((Z12^2)+(Z11^2)+(Z10^2)+(Z9^2)+(Z8^2))","v":25.514701644346147},{"$f":"AA12+AA11+AA10+AA9+AA8","v":109},{"$f":"SQRT((AB12^2)+(AB11^2)+(AB10^2)+(AB9^2)+(AB8^2))","v":84.669947442997739},{"$f":"AC12+AC11+AC10+AC9+AC8","v":5},{"$f":"SQRT((AD12^2)+(AD11^2)+(AD10^2)+(AD9^2)+(AD8^2))","v":21.540659228538015},{"$f":"AE12+AE11+AE10+AE9+AE8","v":23},{"$f":"SQRT((AF12^2)+(AF11^2)+(AF10^2)+(AF9^2)+(AF8^2))","v":25.632011235952593}]
[null," 30% or More of HH Income",{"$f":"C13+C14+C15+C16","v":2},{"$f":"SQRT((D13^2)+(D14^2)+(D15^2)+(D16^2))","v":21},{"$f":"E13+E14+E15+E16","v":170},{"$f":"SQRT((F13^2)+(F14^2)+(F15^2)+(F16^2))","v":106.06601717798213},{"$f":"G13+G14+G15+G16","v":1335},{"$f":"SQRT((H13^2)+(H14^2)+(H15^2)+(H16^2))","v":350.41832143881976},{"$f":"I13+I14+I15+I16","v":13},{"$f":"SQRT((J13^2)+(J14^2)+(J15^2)+(J16^2))","v":22.649503305812249},{"$f":"K13+K14+K15+K16","v":3},{"$f":"SQRT((L13^2)+(L14^2)+(L15^2)+(L16^2))","v":21.166010488516726},{"$f":"M13+M14+M15+M16","v":23},{"$f":"SQRT((N13^2)+(N14^2)+(N15^2)+(N16^2))","v":27.802877548915689},{"$f":"O13+O14+O15+O16","v":13},{"$f":"SQRT((P13^2)+(P14^2)+(P15^2)+(P16^2))","v":30.265491900843113},{"$f":"Q13+Q14+Q15+Q16","v":10},{"$f":"SQRT((R13^2)+(R14^2)+(R15^2)+(R16^2))","v":18.439088914585774},{"$f":"S13+S14+S15+S16","v":7},{"$f":"SQRT((T13^2)+(T14^2)+(T15^2)+(T16^2))","v":22.271057451320086},{"$f":"U13+U14+U15+U16","v":447},{"$f":"SQRT((V13^2)+(V14^2)+(V15^2)+(V16^2))","v":193.57944105715359},{"$f":"W13+W14+W15+W16","v":31},{"$f":"SQRT((X13^2)+(X14^2)+(X15^2)+(X16^2))","v":27.586228448267445},{"$f":"Y13+Y14+Y15+Y16","v":3},{"$f":"SQRT((Z13^2)+(Z14^2)+(Z15^2)+(Z16^2))","v":21.377558326431949},{"$f":"AA13+AA14+AA15+AA16","v":98},{"$f":"SQRT((AB13^2)+(AB14^2)+(AB15^2)+(AB16^2))","v":68.256867786326083},{"$f":"AC13+AC14+AC15+AC16","v":7},{"$f":"SQRT((AD13^2)+(AD14^2)+(AD15^2)+(AD16^2))","v":18.439088914585774},{"$f":"AE13+AE14+AE15+AE16","v":9},{"$f":"SQRT((AF13^2)+(AF14^2)+(AF15^2)+(AF16^2))","v":25.059928172283335}]
[null," 30% to 34.9% of HH Income",{"$f":"C13","v":0},{"$f":"D13","v":12},{"$f":"E13","v":23},36,233,133,0,12,0,12,10,17,0,12,3,4,7,8,86,82,9,15,{"$f":"Y13","v":0},12,23,25,0,12,0,12]
[null," Less Than 35% of HH Income",{"$f":"C13+C12+C11+C10+C9+C8","v":11},{"$f":"SQRT((D13^2)+(D12^2)+(D11^2)+(D10^2)+(D9^2)+(D8^2))","v":25.317977802344327},{"$f":"E13+E12+E11+E10+E9+E8","v":258},{"$f":"SQRT((F13^2)+(F12^2)+(F11^2)+(F10^2)+(F9^2)+(F8^2))","v":122.00409829181969},{"$f":"G13+G12+G11+G10+G9+G8","v":1019},{"$f":"SQRT((H13^2)+(H12^2)+(H11^2)+(H10^2)+(H9^2)+(H8^2))","v":248.05846085146945},{"$f":"I13+I12+I11+I10+I9+I8","v":6},{"$f":"SQRT((J13^2)+(J12^2)+(J11^2)+(J10^2)+(J9^2)+(J8^2))","v":24.515301344262525},{"$f":"K13+K12+K11+K10+K9+K8","v":7},{"$f":"SQRT((L13^2)+(L12^2)+(L11^2)+(L10^2)+(L9^2)+(L8^2))","v":25.612496949731394},{"$f":"M13+M12+M11+M10+M9+M8","v":26},{"$f":"SQRT((N13^2)+(N12^2)+(N11^2)+(N10^2)+(N9^2)+(N8^2))","v":26.570660511172846},{"$f":"O13+O12+O11+O10+O9+O8","v":45},{"$f":"SQRT((P13^2)+(P12^2)+(P11^2)+(P10^2)+(P9^2)+(P8^2))","v":70.320693966996657},{"$f":"Q13+Q12+Q11+Q10+Q9+Q8","v":12},{"$f":"SQRT((R13^2)+(R12^2)+(R11^2)+(R10^2)+(R9^2)+(R8^2))","v":23.600847442411894},{"$f":"S13+S12+S11+S10+S9+S8","v":17},{"$f":"SQRT((T13^2)+(T12^2)+(T11^2)+(T10^2)+(T9^2)+(T8^2))","v":29.933259094191531},{"$f":"U13+U12+U11+U10+U9+U8","v":603},{"$f":"SQRT((V13^2)+(V12^2)+(V11^2)+(V10^2)+(V9^2)+(V8^2))","v":226.3934628031472},{"$f":"W13+W12+W11+W10+W9+W8","v":49},{"$f":"SQRT((X13^2)+(X12^2)+(X11^2)+(X10^2)+(X9^2)+(X8^2))","v":30.033314835362415},{"$f":"Y13+Y12+Y11+Y10+Y9+Y8","v":19},{"$f":"SQRT((Z13^2)+(Z12^2)+(Z11^2)+(Z10^2)+(Z9^2)+(Z8^2))","v":28.195744359743369},{"$f":"AA13+AA12+AA11+AA10+AA9+AA8","v":132},{"$f":"SQRT((AB13^2)+(AB12^2)+(AB11^2)+(AB10^2)+(AB9^2)+(AB8^2))","v":88.283633817372973},{"$f":"AC13+AC12+AC11+AC10+AC9+AC8","v":5},{"$f":"SQRT((AD13^2)+(AD12^2)+(AD11^2)+(AD10^2)+(AD9^2)+(AD8^2))","v":24.657656011875904},{"$f":"AE13+AE12+AE11+AE10+AE9+AE8","v":23},{"$f":"SQRT((AF13^2)+(AF12^2)+(AF11^2)+(AF10^2)+(AF9^2)+(AF8^2))","v":28.301943396169811}]
[null," 35% or More of HH Income",{"$f":"C14+C15+C16","v":2},{"$f":"SQRT((D14^2)+(D15^2)+(D16^2))","v":17.233687939614086},{"$f":"E14+E15+E16","v":147},{"$f":"SQRT((F14^2)+(F15^2)+(F16^2))","v":99.769734889895346},{"$f":"G14+G15+G16","v":1102},{"$f":"SQRT((H14^2)+(H15^2)+(H16^2))","v":324.1974706872341},{"$f":"I14+I15+I16","v":13},{"$f":"SQRT((J14^2)+(J15^2)+(J16^2))","v":19.209372712298546},{"$f":"K14+K15+K16","v":3},{"$f":"SQRT((L14^2)+(L15^2)+(L16^2))","v":17.435595774162696},{"$f":"M14+M15+M16","v":13},{"$f":"SQRT((N14^2)+(N15^2)+(N16^2))","v":22},{"$f":"O14+O15+O16","v":13},{"$f":"SQRT((P14^2)+(P15^2)+(P16^2))","v":27.784887978899608},{"$f":"Q14+Q15+Q16","v":7},{"$f":"SQRT((R14^2)+(R15^2)+(R16^2))","v":18},{"$f":"S14+S15+S16","v":0},{"$f":"SQRT((T14^2)+(T15^2)+(T16^2))","v":20.784609690826528},{"$f":"U14+U15+U16","v":361},{"$f":"SQRT((V14^2)+(V15^2)+(V16^2))","v":175.35392781457733},{"$f":"W14+W15+W16","v":22},{"$f":"SQRT((X14^2)+(X15^2)+(X16^2))","v":23.151673805580451},{"$f":"Y14+Y15+Y16","v":3},{"$f":"SQRT((Z14^2)+(Z15^2)+(Z16^2))","v":17.691806012954132},{"$f":"AA14+AA15+AA16","v":75},{"$f":"SQRT((AB14^2)+(AB15^2)+(AB16^2))","v":63.513778032801667},{"$f":"AC14+AC15+AC16","v":7},{"$f":"SQRT((AD14^2)+(AD15^2)+(AD16^2))","v":14},{"$f":"AE14+AE15+AE16","v":9},{"$f":"SQRT((AF14^2)+(AF15^2)+(AF16^2))","v":22}]
[null," 50% or More of HH Income",{"$f":"C16","v":0},{"$f":"D16","v":12},{"$f":"E16","v":112},81,682,236,13,9,3,4,13,14,0,12,0,12,0,12,164,109,11,14,{"$f":"Y16","v":3},5,44,47,{"$f":"AC16","v":4},6,9,14]
[null,"Not computed",{"$f":"C17","v":10},{"$f":"D17","v":11},114,94,0,19,6,7,11,9,14,8,0,12,2,3,0,12,35,38,0,12,8,14,21,33,19,16,0,12]
[]
[]
[]
[]
[]
[]
[]
[]
[]
[]
[]
[]
[]
[]
[]
[]
[]
[]
[]
[]
[]
[]
[]
[]
[]
[]
[]
[]
[]
[]
[]
[]
[]
[]
[]
[]
[]
[]
[]
[]
[]
[]
[]
[]
[]
[]
[]
[]
[]
[]
[]
[]
[null,"Calculated B25070. GROSS RENT AS A PERCENTAGE OF HOUSEHOLD INCOME IN THE PAST 12 MONTHS"]
[null,"Universe:  RENTER-OCCUPIED HOUSING UNITS"]
[null,"Data Set: 2013-2017 American Community Survey 5-Year Estimates"]
[null,{"$f":"'RentalHousingCost-Prior5Yr'!D41","v":"Income in 2017 Inflation Adjusted Dollars"}]
[null,null,"Acworth",null,"Charlestown",null,"Claremont",null,"Cornish",null,"Croydon",null,"Goshen",null,"Grantham",null,"Langdon",null,"Lempster",null,"Newport",null,"Plainfield",null,"Springfield",null,"Sunapee",null,"Unity",null,"Washington"]
[null,null,"Estimate","Margin of Error","Estimate","Margin of Error","Estimate","Margin of Error","Estimate","Margin of Error","Estimate","Margin of Error","Estimate","Margin of Error","Estimate","Margin of Error","Estimate","Margin of Error","Estimate","Margin of Error","Estimate","Margin of Error","Estimate","Margin of Error","Estimate","Margin of Error","Estimate","Margin of Error","Estimate","Margin of Error","Estimate","Margin of Error"]
[null,"Total:",39,20,429,133,2404,276,81,38,33,21,65,32,103,80,26,18,22,14,780,174,99,45,55,34,504,158,37,19,49,36]
[null," Less Than 20% of HH Income",0,19.05255888325765,146,100.01999800039989,552,176.42278764377349,13,11.180339887498949,18,19.748417658131498,24,20.273134932713294,95,80.124902496040519,16,19.104973174542799,5,12.083045973594572,165,85.906926379658117,30,26.19160170741759,19,23.280893453645632,121,81.271151093115449,0,19.05255888325765,26,38.301436004411116]
[null," 20% to 24.9% of HH Income",8,8,48,45,297,109,26,28,9,14,7,12,0,11,5,9,3,4,144,116,9,10,9,14,35,30,5,6,4,5]
[null," 25% to 29.9% of HH Income",12,13,19,31,310,99,18,23,2,4,5,8,8,12,0,11,3,4,45,46,4,7,8,13,7,11,11,10,4,5]
[null," Less Than 30% of HH Income",20,24.413111231467404,213,113.97368117245314,1159,229.79773715160906,57,37.920970451717082,29,24.535688292770594,36,24.879710609249457,103,81.761849294154302,21,23.811761799581316,11,13.341664064126334,354,151.49917491524499,43,28.89636655359978,36,30.116440692751194,163,87.326971778483198,16,22.338307903688676,34,38.948684188300895]
[null," 30% or More of HH Income",11,15.459624833740307,174,108.39741694339399,1078,236.64530420018903,21,20.273134932713294,4,16.552945357246848,25,22,0,22,5,20.663978319771825,3,19.467922333931785,354,149.53594885511643,51,37.709415269929607,5,20.663978319771825,338,157.72761330851361,14,21.213203435596427,0,22]
[null," 30% to 34.9% of HH Income",2,3,51,62,371,146,0,11,0,11,7,11,0,11,0,11,0,11,51,48,25,24,0,11,95,88,0,11,0,11]
[null," Less Than 35% of HH Income",22,24.596747752497688,264,129.74590552306458,1530,272.25539480421685,57,39.484174044799268,29,26.888659319497503,43,27.202941017470888,103,82.498484834571357,21,26.229754097208001,11,17.291616465790582,405,158.92136420255144,68,37.563279941985897,36,32.062439083762797,258,123.97580409095961,16,24.899799195977465,34,40.472212689696121]
[null," 35% or More of HH Income",9,15.165750888103101,123,88.915690403887666,707,186.23909364040622,21,17.029386365926403,4,12.369316876852981,18,19.05255888325765,0,19.05255888325765,5,17.4928556845359,3,16.06237840420901,303,141.62273828732447,26,29.086079144497972,5,17.4928556845359,243,130.89690599857585,14,18.138357147217054,0,19.05255888325765]
[null," 50% or More of HH Income",1,3,103,81,363,125,18,12,2,4,11,11,0,11,5,8,0,11,189,99,0,11,0,11,194,126,8,12,0,11]
[null,"Not computed",8,7,42,42,167,103,3,5,0,11,4,4,0,11,0,11,8,9,72,63,5,8,14,14,3,6,7,8,15,9]
[]
[]
[]
[]
[null,"Calculated B25070. GROSS RENT AS A PERCENTAGE OF HOUSEHOLD INCOME IN THE PAST 12 MONTHS"]
[null,"Universe:  RENTER-OCCUPIED HOUSING UNITS"]
[null,"Data Set: 2008-2012 American Community Survey 5-Year Estimates"]
[null,{"$f":"'RentalHousingCost-Prior10Yr'!D41","v":"Income in 2012 Inflation Adjusted Dollars"}]
[null,null,"Acworth",null,"Charlestown",null,"Claremont",null,"Cornish",null,"Croydon",null,"Goshen",null,"Grantham",null,"Langdon",null,"Lempster",null,"Newport",null,"Plainfield",null,"Springfield",null,"Sunapee",null,"Unity",null,"Washington"]
[null,null,"Estimate","Margin Of Error","Estimate","Margin Of Error","Estimate","Margin Of Error","Estimate","Margin Of Error","Estimate","Margin Of Error","Estimate","Margin Of Error","Estimate","Margin Of Error","Estimate","Margin Of Error","Estimate","Margin Of Error","Estimate","Margin Of Error","Estimate","Margin Of Error","Estimate","Margin Of Error","Estimate","Margin Of Error","Estimate","Margin Of Error","Estimate","Margin Of Error"]
[null,"Total:",72,39,467,158,2255,221,105,42,49,23,58,32,116,57,31,24,62,28,898,206,103,58,44,27,360,127,53,43,37,21]
[null," Less Than 20% of HH Income",37,31.208973068654469,83,66.91038783328041,403,133.36791218280356,40,26.038433132583073,14,10.862780491200215,13,25.337718918639855,24,32.388269481403292,13,20.639767440550294,15,24.556058315617349,181,115.55950847939775,39,45.617978911828175,9,13.964240043768941,132,93.989361100073452,32,42.918527467749868,0,19.05255888325765]
[null," 20% to 24.9% of HH Income",24,22,42,54,208,95,14,17,8,10,0,11,37,35,7,11,0,11,205,129,12,15,13,17,57,51,9,11,2,4]
[null," 25% to 29.9% of HH Income",0,11,24,27,413,119,0,11,7,10,14,19,0,11,0,11,0,11,101,76,14,23,12,18,43,56,0,11,14,16]
[null," Less Than 30% of HH Income",61,39.736632972611055,149,90.122139344336475,1024,202.41788458533006,54,32.984845004941285,29,17.832554500127006,27,33.526109228480422,61,48.938737212968626,20,25.845695966640172,15,29.068883707497267,487,189.13222887704782,65,53.244718047896548,34,28.42534080710379,232,120.71039723238425,41,45.650848842053307,16,25.199206336708304]
[null," 30% or More of HH Income",11,15.716233645501712,245,133,1167,236.37893307145626,39,31.606961258558215,14,21.071307505705477,21,19.28730152198591,36,34.161381705077446,6,16.61324772583615,37,20.904544960366874,385,140.87583185202493,7,21.517434791350013,8,17.944358444926362,89,61.02458520956943,4,19.974984355438178,9,17.776388834631177]
[null," 30% to 34.9% of HH Income",0,11,63,70,238,100,31,26,8,9,10,11,12,18,0,11,18,12,73,44,0,11,3,4,25,35,4,6,4,5]
[null," Less Than 35% of HH Income",61,41.231056256176608,212,114.11397810960759,1262,225.77200889392822,85,42,37,19.974984355438178,37,35.284557528754704,73,52.14403129793476,20,28.089143810376278,33,31.448370387032774,560,194.18290346989872,65,54.369108876272747,37,28.705400188814647,257,125.6821387469198,45,46.043457732885351,20,25.690465157330259]
[null," 35% or More of HH Income",11,11.224972160321824,182,113.08846094982458,929,214.18449990603895,8,17.972200755611428,6,19.05255888325765,11,15.842979517754859,24,29.03446228191595,6,12.449899597988733,19,17.11724276862369,312,133.82824813917276,7,18.493242008906929,5,17.4928556845359,64,49.989998999799951,0,19.05255888325765,5,17.058722109231979]
[null," 50% or More of HH Income",2,3,106,90,468,143,8,9,0,11,2,3,12,19,2,3,2,4,175,85,7,10,5,8,16,23,0,11,5,7]
[null,"Not computed",0,11,73,64,64,53,12,10,6,6,10,10,19,27,5,9,10,9,26,29,31,24,2,5,39,50,8,11,12,10]

{"sheet":"ACS_Table_B25074","index":61,"n_rows":485,"n_cols":32,"rows_kept":485,"cut":false,"hidden":true,"merged":[]}
[null,"B25074. HOUSEHOLD INCOME BY GROSS RENT AS A PERCENTAGE OF HOUSEHOLD INCOME IN THE PAST 12 MONTHS"]
[null,"Universe:  RENTER-OCCUPIED HOUSING UNITS",null,null,null,null,{"$f":"RentalHousingCost!D41","v":"Income in 2022 Inflation Adjusted Dollars"}]
[null,"Data Set: 2018-2022 American Community Survey 5-Year Estimates"]
[]
[null,null,"Acworth",null,"Charlestown",null,"Claremont",null,"Cornish",null,"Croydon",null,"Goshen",null,"Grantham",null,"Langdon",null,"Lempster",null,"Newport",null,"Plainfield",null,"Springfield",null,"Sunapee",null,"Unity",null,"Washington"]
[null,null,"Estimate","Margin Of Error","Estimate","Margin Of Error","Estimate","Margin Of Error","Estimate","Margin Of Error","Estimate","Margin Of Error","Estimate","Margin Of Error","Estimate","Margin Of Error","Estimate","Margin Of Error","Estimate","Margin Of Error","Estimate","Margin Of Error","Estimate","Margin Of Error","Estimate","Margin Of Error","Estimate","Margin Of Error","Estimate","Margin Of Error","Estimate","Margin Of Error"]
[null,"Total:",23,14,519,167,2121,312,25,13,21,13,53,22,58,72,21,15,17,19,999,259,71,37,30,24,228,97,31,19,32,23]
[null,"Less than $10,000:",7,10,92,86,222,128,0,12,7,8,14,13,0,12,0,12,0,12,100,69,0,12,8,14,55,50,11,14,0,12]
[null,"Less than 20.0 percent",0,12,0,12,0,19,0,12,0,12,0,12,0,12,0,12,0,12,33,49,0,12,0,12,0,12,0,12,0,12]
[null,"20.0 to 24.9 percent",0,12,0,12,0,19,0,12,0,12,0,12,0,12,0,12,0,12,0,17,0,12,0,12,0,12,0,12,0,12]
[null,"25.0 to 29.9 percent",0,12,0,12,0,19,0,12,0,12,0,12,0,12,0,12,0,12,0,17,0,12,0,12,0,12,0,12,0,12]
[null,"30.0 to 34.9 percent",0,12,0,12,0,19,0,12,0,12,0,12,0,12,0,12,0,12,0,17,0,12,0,12,0,12,0,12,0,12]
[null,"35.0 to 39.9 percent",0,12,0,12,0,19,0,12,0,12,0,12,0,12,0,12,0,12,0,17,0,12,0,12,0,12,0,12,0,12]
[null,"40.0 to 49.9 percent",0,12,0,12,0,19,0,12,0,12,0,12,0,12,0,12,0,12,0,17,0,12,0,12,0,12,0,12,0,12]
[null,"50.0 percent or more",0,12,0,12,222,128,0,12,0,12,7,10,0,12,0,12,0,12,32,39,0,12,0,12,34,44,4,6,0,12]
[null,"Not computed",7,10,92,86,0,19,0,12,7,8,7,9,0,12,0,12,0,12,35,38,0,12,8,14,21,33,7,12,0,12]
[null,"$10,000 to $19,999:",0,12,133,87,406,152,9,7,2,3,0,12,0,12,0,12,0,12,176,123,0,12,3,5,10,16,0,12,9,14]
[null,"Less than 20.0 percent",0,12,0,12,32,37,0,12,0,12,0,12,0,12,0,12,0,12,0,17,0,12,0,12,0,12,0,12,0,12]
[null,"20.0 to 24.9 percent",0,12,16,26,17,22,0,12,0,12,0,12,0,12,0,12,0,12,0,17,0,12,0,12,0,12,0,12,0,12]
[null,"25.0 to 29.9 percent",0,12,11,19,57,73,0,12,0,12,0,12,0,12,0,12,0,12,0,17,0,12,0,12,0,12,0,12,0,12]
[null,"30.0 to 34.9 percent",0,12,23,36,114,81,0,12,0,12,0,12,0,12,0,12,0,12,41,64,0,12,0,12,0,12,0,12,0,12]
[null,"35.0 to 39.9 percent",0,12,0,12,13,21,0,12,0,12,0,12,0,12,0,12,0,12,0,17,0,12,0,12,0,12,0,12,0,12]
[null,"40.0 to 49.9 percent",0,12,0,12,0,19,0,12,0,12,0,12,0,12,0,12,0,12,20,31,0,12,0,12,0,12,0,12,0,12]
[null,"50.0 percent or more",0,12,83,72,173,109,9,7,0,12,0,12,0,12,0,12,0,12,115,105,0,12,3,5,10,16,0,12,9,14]
[null,"Not computed",0,12,0,12,0,19,0,12,2,3,0,12,0,12,0,12,0,12,0,17,0,12,0,12,0,12,0,12,0,12]
[null,"$20,000 to $34,999:",0,12,95,81,602,218,4,5,2,4,0,12,0,12,5,5,7,8,166,112,15,17,0,12,0,12,3,4,4,6]
[null,"Less than 20.0 percent",0,12,0,12,22,36,0,12,0,12,0,12,0,12,0,12,0,12,32,37,0,12,0,12,0,12,0,12,0,12]
[null,"20.0 to 24.9 percent",0,12,0,12,47,44,0,12,0,12,0,12,0,12,0,12,0,12,0,17,0,12,0,12,0,12,0,12,0,12]
[null,"25.0 to 29.9 percent",0,12,31,26,25,22,0,12,0,12,0,12,0,12,0,12,0,12,0,17,0,12,0,12,0,12,0,12,4,6]
[null,"30.0 to 34.9 percent",0,12,0,12,15,19,0,12,0,12,0,12,0,12,0,12,7,8,9,22,0,12,0,12,0,12,0,12,0,12]
[null,"35.0 to 39.9 percent",0,12,35,57,142,149,0,12,0,12,0,12,0,12,0,12,0,12,23,34,0,12,0,12,0,12,0,12,0,12]
[null,"40.0 to 49.9 percent",0,12,0,12,107,87,0,12,0,12,0,12,0,12,5,5,0,12,89,101,4,7,0,12,0,12,0,12,0,12]
[null,"50.0 percent or more",0,12,29,47,244,140,4,5,2,4,0,12,0,12,0,12,0,12,13,22,11,14,0,12,0,12,0,12,0,12]
[null,"Not computed",0,12,0,12,0,19,0,12,0,12,0,12,0,12,0,12,0,12,0,17,0,12,0,12,0,12,3,4,0,12]
[null,"$35,000 to $49,999:",5,5,20,33,379,155,0,12,1,2,6,9,0,12,9,11,0,12,82,85,9,15,0,12,33,41,12,11,0,12]
[null,"Less than 20.0 percent",0,12,0,12,25,31,0,12,0,12,0,12,0,12,2,3,0,12,0,17,0,12,0,12,0,12,0,12,0,12]
[null,"20.0 to 24.9 percent",0,12,0,12,50,54,0,12,0,12,0,12,0,12,0,12,0,12,13,22,0,12,0,12,8,13,0,12,0,12]
[null,"25.0 to 29.9 percent",2,3,20,33,70,71,0,12,0,12,0,12,0,12,7,10,0,12,0,17,0,12,0,12,0,12,0,12,0,12]
[null,"30.0 to 34.9 percent",0,12,0,12,64,86,0,12,0,12,0,12,0,12,0,12,0,12,0,17,9,15,0,12,0,12,0,12,0,12]
[null,"Income in 2009 Inflation Adjusted Dollars",0,12,0,12,80,77,0,12,0,12,0,12,0,12,0,12,0,12,16,27,0,12,0,12,25,39,0,12,0,12]
[null,"40.0 to 49.9 percent",0,12,0,12,47,64,0,12,0,12,0,12,0,12,0,12,0,12,49,78,0,12,0,12,0,12,3,4,0,12]
[null,"50.0 percent or more",0,12,0,12,43,54,0,12,1,2,6,9,0,12,0,12,0,12,4,9,0,12,0,12,0,12,0,12,0,12]
[null,"Not computed",3,4,0,12,0,19,0,12,0,12,0,12,0,12,0,12,0,12,0,17,0,12,0,12,0,12,9,10,0,12]
[null,"$50,000 to $74,999:",4,3,64,61,304,141,3,4,0,12,10,9,13,22,5,5,10,16,133,120,7,11,6,11,38,27,2,4,17,18]
[null,"Less than 20.0 percent",0,12,0,12,65,88,0,12,0,12,0,12,0,12,0,12,0,12,21,30,0,12,0,12,21,27,0,12,0,12]
[null,"20.0 to 24.9 percent",0,12,28,48,138,105,0,12,0,12,0,12,0,12,0,12,10,16,76,97,0,12,6,11,6,10,2,4,17,18]
[null,"25.0 to 29.9 percent",2,3,14,23,30,38,0,12,0,12,3,4,0,12,0,12,0,12,0,17,0,12,0,12,0,12,0,12,0,12]
[null,"30.0 to 34.9 percent",0,12,0,12,40,56,0,12,0,12,0,12,0,12,3,4,0,12,36,49,0,12,0,12,5,8,0,12,0,12]
[null,"35.0 to 39.9 percent",2,3,0,12,31,43,0,12,0,12,0,12,13,22,0,12,0,12,0,17,0,12,0,12,6,11,0,12,0,12]
[null,"40.0 to 49.9 percent",0,12,0,12,0,19,0,12,0,12,0,12,0,12,2,3,0,12,0,17,7,11,0,12,0,12,0,12,0,12]
[null,"50.0 percent or more",0,12,0,12,0,19,0,12,0,12,0,12,0,12,0,12,0,12,0,17,0,12,0,12,0,12,0,12,0,12]
[null,"Not computed",0,12,22,35,0,19,3,4,0,12,7,7,0,12,0,12,0,12,0,17,0,12,0,12,0,12,0,12,0,12]
[null,"$75,000 to $99,999:",3,4,14,23,127,68,4,5,9,10,10,17,0,12,0,12,0,12,193,142,6,10,0,12,18,23,3,4,2,3]
[null,"Less than 20.0 percent",3,4,14,23,107,64,2,4,2,4,0,12,0,12,0,12,0,12,100,88,0,12,0,12,0,12,0,12,2,3]
[null,"20.0 to 24.9 percent",0,12,0,12,20,27,2,3,0,12,0,12,0,12,0,12,0,12,10,18,0,12,0,12,0,12,0,12,0,12]
[null,"25.0 to 29.9 percent",0,12,0,12,0,19,0,12,5,8,0,12,0,12,0,12,0,12,83,110,6,10,0,12,0,12,3,4,0,12]
[null,"30.0 to 34.9 percent",0,12,0,12,0,19,0,12,0,12,10,17,0,12,0,12,0,12,0,17,0,12,0,12,18,23,0,12,0,12]
[null,"35.0 to 39.9 percent",0,12,0,12,0,19,0,12,0,12,0,12,0,12,0,12,0,12,0,17,0,12,0,12,0,12,0,12,0,12]
[null,"40.0 to 49.9 percent",0,12,0,12,0,19,0,12,0,12,0,12,0,12,0,12,0,12,0,17,0,12,0,12,0,12,0,12,0,12]
[null,"50.0 percent or more",0,12,0,12,0,19,0,12,0,12,0,12,0,12,0,12,0,12,0,17,0,12,0,12,0,12,0,12,0,12]
[null,"Not computed",0,12,0,12,0,19,0,12,2,3,0,12,0,12,0,12,0,12,0,17,0,12,0,12,0,12,0,12,0,12]
[null,"$100,000 or more:",4,6,101,83,81,58,5,6,0,12,13,11,45,65,2,3,0,12,149,105,34,21,13,16,74,76,0,12,0,12]
[null,"Less than 20.0 percent",4,6,101,83,81,58,2,3,0,12,13,11,45,65,0,12,0,12,133,101,28,20,13,16,5,9,0,12,0,12]
[null,"20.0 to 24.9 percent",0,12,0,12,0,19,0,12,0,12,0,12,0,12,0,12,0,12,16,27,6,8,0,12,62,77,0,12,0,12]
[null,"25.0 to 29.9 percent",0,12,0,12,0,19,0,12,0,12,0,12,0,12,0,12,0,12,0,17,0,12,0,12,7,11,0,12,0,12]
[null,"30.0 to 34.9 percent",0,12,0,12,0,19,0,12,0,12,0,12,0,12,0,12,0,12,0,17,0,12,0,12,0,12,0,12,0,12]
[null,"35.0 to 39.9 percent",0,12,0,12,0,19,0,12,0,12,0,12,0,12,0,12,0,12,0,17,0,12,0,12,0,12,0,12,0,12]
[null,"40.0 to 49.9 percent",0,12,0,12,0,19,0,12,0,12,0,12,0,12,0,12,0,12,0,17,0,12,0,12,0,12,0,12,0,12]
[null,"50.0 percent or more",0,12,0,12,0,19,0,12,0,12,0,12,0,12,0,12,0,12,0,17,0,12,0,12,0,12,0,12,0,12]
[null,"Not computed",0,12,0,12,0,19,3,4,0,12,0,12,0,12,2,3,0,12,0,17,0,12,0,12,0,12,0,12,0,12]
[]
[]
[]
[]
[]
[]
[]
[]
[]
[]
[]
[]
[]
[]
[]
[null,"Calculated B25074. HOUSEHOLD INCOME BY GROSS RENT AS A PERCENTAGE OF HOUSEHOLD INCOME IN THE PAST 12 MONTHS"]
[null,"Universe:  RENTER-OCCUPIED HOUSING UNITS"]
[null,"Data Set: 2018-2022 American Community Survey 5-Year Estimates"]
[]
[null,null,"Acworth",null,"Charlestown",null,"Claremont",null,"Cornish",null,"Croydon",null,"Goshen",null,"Grantham",null,"Langdon",null,"Lempster",null,"Newport",null,"Plainfield",null,"Springfield",null,"Sunapee",null,"Unity",null,"Washington"]
[null,null,"Estimate","Margin Of Error","Estimate","Margin Of Error","Estimate","Margin Of Error","Estimate","Margin Of Error","Estimate","Margin Of Error","Estimate","Margin Of Error","Estimate","Margin Of Error","Estimate","Margin Of Error","Estimate","Margin Of Error","Estimate","Margin Of Error","Estimate","Margin Of Error","Estimate","Margin Of Error","Estimate","Margin Of Error","Estimate","Margin Of Error","Estimate","Margin Of Error"]
[null,"Total:",{"$f":"C7","v":23},{"$f":"D7","v":14},{"$f":"E7","v":519},167,2121,312,25,13,21,13,53,22,58,72,21,15,{"$f":"S7","v":17},19,999,259,71,37,30,24,228,97,31,19,32,23]
[null,"Less than $10,000:",{"$f":"C8","v":7},{"$f":"D8","v":10},92,86,222,128,0,12,7,8,14,13,0,12,0,12,0,12,100,69,0,12,8,14,55,50,11,14,0,12]
[null,"Less than 30.0 percent",{"$f":"C9+C10+C11","v":0},{"$f":"SQRT((D9^2)+(D10^2)+(D11^2))","v":20.784609690826528},{"$f":"E9+E10+E11","v":0},{"$f":"SQRT((F9^2)+(F10^2)+(F11^2))","v":20.784609690826528},{"$f":"G9+G10+G11","v":0},{"$f":"SQRT((H9^2)+(H10^2)+(H11^2))","v":32.908965343808667},{"$f":"I9+I10+I11","v":0},{"$f":"SQRT((J9^2)+(J10^2)+(J11^2))","v":20.784609690826528},{"$f":"K9+K10+K11","v":0},{"$f":"SQRT((L9^2)+(L10^2)+(L11^2))","v":20.784609690826528},{"$f":"M9+M10+M11","v":0},{"$f":"SQRT((N9^2)+(N10^2)+(N11^2))","v":20.784609690826528},{"$f":"O9+O10+O11","v":0},{"$f":"SQRT((P9^2)+(P10^2)+(P11^2))","v":20.784609690826528},{"$f":"Q9+Q10+Q11","v":0},{"$f":"SQRT((R9^2)+(R10^2)+(R11^2))","v":20.784609690826528},{"$f":"S9+S10+S11","v":0},{"$f":"SQRT((T9^2)+(T10^2)+(T11^2))","v":20.784609690826528},{"$f":"U9+U10+U11","v":33},{"$f":"SQRT((V9^2)+(V10^2)+(V11^2))","v":54.580216195980753},{"$f":"W9+W10+W11","v":0},{"$f":"SQRT((X9^2)+(X10^2)+(X11^2))","v":20.784609690826528},{"$f":"Y9+Y10+Y11","v":0},{"$f":"SQRT((Z9^2)+(Z10^2)+(Z11^2))","v":20.784609690826528},{"$f":"AA9+AA10+AA11","v":0},{"$f":"SQRT((AB9^2)+(AB10^2)+(AB11^2))","v":20.784609690826528},{"$f":"AC9+AC10+AC11","v":0},{"$f":"SQRT((AD9^2)+(AD10^2)+(AD11^2))","v":20.784609690826528},{"$f":"AE9+AE10+AE11","v":0},{"$f":"SQRT((AF9^2)+(AF10^2)+(AF11^2))","v":20.784609690826528}]
[null,"More than 30.0 percent",{"$f":"C12+C13+C14+C15","v":0},{"$f":"SQRT((D12^2)+(D13^2)+(D14^2)+(D15^2))","v":24},{"$f":"E12+E13+E14+E15","v":0},{"$f":"SQRT((F12^2)+(F13^2)+(F14^2)+(F15^2))","v":24},{"$f":"G12+G13+G14+G15","v":222},{"$f":"SQRT((H12^2)+(H13^2)+(H14^2)+(H15^2))","v":132.16277842115758},{"$f":"I12+I13+I14+I15","v":0},{"$f":"SQRT((J12^2)+(J13^2)+(J14^2)+(J15^2))","v":24},{"$f":"K12+K13+K14+K15","v":0},{"$f":"SQRT((L12^2)+(L13^2)+(L14^2)+(L15^2))","v":24},{"$f":"M12+M13+M14+M15","v":7},{"$f":"SQRT((N12^2)+(N13^2)+(N14^2)+(N15^2))","v":23.065125189341593},{"$f":"O12+O13+O14+O15","v":0},{"$f":"SQRT((P12^2)+(P13^2)+(P14^2)+(P15^2))","v":24},{"$f":"Q12+Q13+Q14+Q15","v":0},{"$f":"SQRT((R12^2)+(R13^2)+(R14^2)+(R15^2))","v":24},{"$f":"S12+S13+S14+S15","v":0},{"$f":"SQRT((T12^2)+(T13^2)+(T14^2)+(T15^2))","v":24},{"$f":"U12+U13+U14+U15","v":32},{"$f":"SQRT((V12^2)+(V13^2)+(V14^2)+(V15^2))","v":48.867166891482462},{"$f":"W12+W13+W14+W15","v":0},{"$f":"SQRT((X12^2)+(X13^2)+(X14^2)+(X15^2))","v":24},{"$f":"Y12+Y13+Y14+Y15","v":0},{"$f":"SQRT((Z12^2)+(Z13^2)+(Z14^2)+(Z15^2))","v":24},{"$f":"AA12+AA13+AA14+AA15","v":34},{"$f":"SQRT((AB12^2)+(AB13^2)+(AB14^2)+(AB15^2))","v":48.662100242385755},{"$f":"AC12+AC13+AC14+AC15","v":4},{"$f":"SQRT((AD12^2)+(AD13^2)+(AD14^2)+(AD15^2))","v":21.633307652783937},{"$f":"AE12+AE13+AE14+AE15","v":0},{"$f":"SQRT((AF12^2)+(AF13^2)+(AF14^2)+(AF15^2))","v":24}]
[null,"Less Than 35% of HH Income",{"$f":"C9+C10+C11+C12","v":0},{"$f":"SQRT((D9^2)+(D10^2)+(D11^2)+(D12^2))","v":24},{"$f":"E9+E10+E11+E12","v":0},{"$f":"SQRT((F9^2)+(F10^2)+(F11^2)+(F12^2))","v":24},{"$f":"G9+G10+G11+G12","v":0},{"$f":"SQRT((H9^2)+(H10^2)+(H11^2)+(H12^2))","v":38},{"$f":"I9+I10+I11+I12","v":0},{"$f":"SQRT((J9^2)+(J10^2)+(J11^2)+(J12^2))","v":24},{"$f":"K9+K10+K11+K12","v":0},{"$f":"SQRT((L9^2)+(L10^2)+(L11^2)+(L12^2))","v":24},{"$f":"M9+M10+M11+M12","v":0},{"$f":"SQRT((N9^2)+(N10^2)+(N11^2)+(N12^2))","v":24},{"$f":"O9+O10+O11+O12","v":0},{"$f":"SQRT((P9^2)+(P10^2)+(P11^2)+(P12^2))","v":24},{"$f":"Q9+Q10+Q11+Q12","v":0},{"$f":"SQRT((R9^2)+(R10^2)+(R11^2)+(R12^2))","v":24},{"$f":"S9+S10+S11+S12","v":0},{"$f":"SQRT((T9^2)+(T10^2)+(T11^2)+(T12^2))","v":24},{"$f":"U9+U10+U11+U12","v":33},{"$f":"SQRT((V9^2)+(V10^2)+(V11^2)+(V12^2))","v":57.166423711825807},{"$f":"W9+W10+W11+W12","v":0},{"$f":"SQRT((X9^2)+(X10^2)+(X11^2)+(X12^2))","v":24},{"$f":"Y9+Y10+Y11+Y12","v":0},{"$f":"SQRT((Z9^2)+(Z10^2)+(Z11^2)+(Z12^2))","v":24},{"$f":"AA9+AA10+AA11+AA12","v":0},{"$f":"SQRT((AB9^2)+(AB10^2)+(AB11^2)+(AB12^2))","v":24},{"$f":"AC9+AC10+AC11+AC12","v":0},{"$f":"SQRT((AD9^2)+(AD10^2)+(AD11^2)+(AD12^2))","v":24},{"$f":"AE9+AE10+AE11+AE12","v":0},{"$f":"SQRT((AF9^2)+(AF10^2)+(AF11^2)+(AF12^2))","v":24}]
[null,"35.0 percent or more",{"$f":"C13+C14++C15","v":0},{"$f":"SQRT((D13^2)+(D14^2)+(D15^2))","v":20.784609690826528},{"$f":"E13+E14++E15","v":0},{"$f":"SQRT((F13^2)+(F14^2)+(F15^2))","v":20.784609690826528},{"$f":"G13+G14++G15","v":222},{"$f":"SQRT((H13^2)+(H14^2)+(H15^2))","v":130.78990786754153},{"$f":"I13+I14++I15","v":0},{"$f":"SQRT((J13^2)+(J14^2)+(J15^2))","v":20.784609690826528},{"$f":"K13+K14++K15","v":0},{"$f":"SQRT((L13^2)+(L14^2)+(L15^2))","v":20.784609690826528},{"$f":"M13+M14++M15","v":7},{"$f":"SQRT((N13^2)+(N14^2)+(N15^2))","v":19.697715603592208},{"$f":"O13+O14++O15","v":0},{"$f":"SQRT((P13^2)+(P14^2)+(P15^2))","v":20.784609690826528},{"$f":"Q13+Q14++Q15","v":0},{"$f":"SQRT((R13^2)+(R14^2)+(R15^2))","v":20.784609690826528},{"$f":"S13+S14++S15","v":0},{"$f":"SQRT((T13^2)+(T14^2)+(T15^2))","v":20.784609690826528},{"$f":"U13+U14++U15","v":32},{"$f":"SQRT((V13^2)+(V14^2)+(V15^2))","v":45.814844755821227},{"$f":"W13+W14++W15","v":0},{"$f":"SQRT((X13^2)+(X14^2)+(X15^2))","v":20.784609690826528},{"$f":"Y13+Y14++Y15","v":0},{"$f":"SQRT((Z13^2)+(Z14^2)+(Z15^2))","v":20.784609690826528},{"$f":"AA13+AA14++AA15","v":34},{"$f":"SQRT((AB13^2)+(AB14^2)+(AB15^2))","v":47.159304490206381},{"$f":"AC13+AC14++AC15","v":4},{"$f":"SQRT((AD13^2)+(AD14^2)+(AD15^2))","v":18},{"$f":"AE13+AE14++AE15","v":0},{"$f":"SQRT((AF13^2)+(AF14^2)+(AF15^2))","v":20.784609690826528}]
[null,"50.0 percent or more",{"$f":"C15","v":0},12,0,12,222,128,0,12,0,12,7,10,0,12,0,12,0,12,32,39,0,12,0,12,34,44,4,6,0,12]
[null,"Not Computed",{"$f":"C16","v":7},10,92,86,0,19,0,12,7,8,7,9,0,12,0,12,0,12,35,38,0,12,8,14,21,33,7,12,0,12]
[null,"$10,000 to $19,999:",{"$f":"C17","v":0},{"$f":"D17","v":12},{"$f":"E17","v":133},87,406,152,9,7,2,3,0,12,0,12,0,12,0,12,176,123,0,12,3,5,10,16,0,12,9,14]
[null,"Less than 30.0 percent",{"$f":"C18+C19+C20","v":0},{"$f":"SQRT((D18^2)+(D19^2)+(D20^2))","v":20.784609690826528},{"$f":"E18+E19+E20","v":27},{"$f":"SQRT((F18^2)+(F19^2)+(F20^2))","v":34.365680554879162},{"$f":"G18+G19+G20","v":106},{"$f":"SQRT((H18^2)+(H19^2)+(H20^2))","v":84.74668135095321},{"$f":"I18+I19+I20","v":0},{"$f":"SQRT((J18^2)+(J19^2)+(J20^2))","v":20.784609690826528},{"$f":"K18+K19+K20","v":0},{"$f":"SQRT((L18^2)+(L19^2)+(L20^2))","v":20.784609690826528},{"$f":"M18+M19+M20","v":0},{"$f":"SQRT((N18^2)+(N19^2)+(N20^2))","v":20.784609690826528},{"$f":"O18+O19+O20","v":0},{"$f":"SQRT((P18^2)+(P19^2)+(P20^2))","v":20.784609690826528},{"$f":"Q18+Q19+Q20","v":0},{"$f":"SQRT((R18^2)+(R19^2)+(R20^2))","v":20.784609690826528},{"$f":"S18+S19+S20","v":0},{"$f":"SQRT((T18^2)+(T19^2)+(T20^2))","v":20.784609690826528},{"$f":"U18+U19+U20","v":0},{"$f":"SQRT((V18^2)+(V19^2)+(V20^2))","v":29.444863728670914},{"$f":"W18+W19+W20","v":0},{"$f":"SQRT((X18^2)+(X19^2)+(X20^2))","v":20.784609690826528},{"$f":"Y18+Y19+Y20","v":0},{"$f":"SQRT((Z18^2)+(Z19^2)+(Z20^2))","v":20.784609690826528},{"$f":"AA18+AA19+AA20","v":0},{"$f":"SQRT((AB18^2)+(AB19^2)+(AB20^2))","v":20.784609690826528},{"$f":"AC18+AC19+AC20","v":0},{"$f":"SQRT((AD18^2)+(AD19^2)+(AD20^2))","v":20.784609690826528},{"$f":"AE18+AE19+AE20","v":0},{"$f":"SQRT((AF18^2)+(AF19^2)+(AF20^2))","v":20.784609690826528}]
[null,"More than 30.0 percent",{"$f":"C21+C22+C23+C24","v":0},{"$f":"SQRT((D21^2)+(D22^2)+(D23^2)+(D24^2))","v":24},{"$f":"E21+E22+E23+E24","v":106},{"$f":"SQRT((F21^2)+(F22^2)+(F23^2)+(F24^2))","v":82.267855204812534},{"$f":"G21+G22+G23+G24","v":300},{"$f":"SQRT((H21^2)+(H22^2)+(H23^2)+(H24^2))","v":138.72274507087869},{"$f":"I21+I22+I23+I24","v":9},{"$f":"SQRT((J21^2)+(J22^2)+(J23^2)+(J24^2))","v":21.931712199461309},{"$f":"K21+K22+K23+K24","v":0},{"$f":"SQRT((L21^2)+(L22^2)+(L23^2)+(L24^2))","v":24},{"$f":"M21+M22+M23+M24","v":0},{"$f":"SQRT((N21^2)+(N22^2)+(N23^2)+(N24^2))","v":24},{"$f":"O21+O22+O23+O24","v":0},{"$f":"SQRT((P21^2)+(P22^2)+(P23^2)+(P24^2))","v":24},{"$f":"Q21+Q22+Q23+Q24","v":0},{"$f":"SQRT((R21^2)+(R22^2)+(R23^2)+(R24^2))","v":24},{"$f":"S21+S22+S23+S24","v":0},{"$f":"SQRT((T21^2)+(T22^2)+(T23^2)+(T24^2))","v":24},{"$f":"U21+U22+U23+U24","v":176},{"$f":"SQRT((V21^2)+(V22^2)+(V23^2)+(V24^2))","v":127.94920867281672},{"$f":"W21+W22+W23+W24","v":0},{"$f":"SQRT((X21^2)+(X22^2)+(X23^2)+(X24^2))","v":24},{"$f":"Y21+Y22+Y23+Y24","v":3},{"$f":"SQRT((Z21^2)+(Z22^2)+(Z23^2)+(Z24^2))","v":21.377558326431949},{"$f":"AA21+AA22+AA23+AA24","v":10},{"$f":"SQRT((AB21^2)+(AB22^2)+(AB23^2)+(AB24^2))","v":26.229754097208001},{"$f":"AC21+AC22+AC23+AC24","v":0},{"$f":"SQRT((AD21^2)+(AD22^2)+(AD23^2)+(AD24^2))","v":24},{"$f":"AE21+AE22+AE23+AE24","v":9},{"$f":"SQRT((AF21^2)+(AF22^2)+(AF23^2)+(AF24^2))","v":25.059928172283335}]
[null,"Less Than 35% of HH Income",{"$f":"C18+C19+C20+C21","v":0},{"$f":"SQRT((D18^2)+(D19^2)+(D20^2)+(D21^2))","v":24},{"$f":"E18+E19+E20+E21","v":50},{"$f":"SQRT((F18^2)+(F19^2)+(F20^2)+(F21^2))","v":49.769468552517218},{"$f":"G18+G19+G20+G21","v":220},{"$f":"SQRT((H18^2)+(H19^2)+(H20^2)+(H21^2))","v":117.23054209547954},{"$f":"I18+I19+I20+I21","v":0},{"$f":"SQRT((J18^2)+(J19^2)+(J20^2)+(J21^2))","v":24},{"$f":"K18+K19+K20+K21","v":0},{"$f":"SQRT((L18^2)+(L19^2)+(L20^2)+(L21^2))","v":24},{"$f":"M18+M19+M20+M21","v":0},{"$f":"SQRT((N18^2)+(N19^2)+(N20^2)+(N21^2))","v":24},{"$f":"O18+O19+O20+O21","v":0},{"$f":"SQRT((P18^2)+(P19^2)+(P20^2)+(P21^2))","v":24},{"$f":"Q18+Q19+Q20+Q21","v":0},{"$f":"SQRT((R18^2)+(R19^2)+(R20^2)+(R21^2))","v":24},{"$f":"S18+S19+S20+S21","v":0},{"$f":"SQRT((T18^2)+(T19^2)+(T20^2)+(T21^2))","v":24},{"$f":"U18+U19+U20+U21","v":41},{"$f":"SQRT((V18^2)+(V19^2)+(V20^2)+(V21^2))","v":70.448562795844168},{"$f":"W18+W19+W20+W21","v":0},{"$f":"SQRT((X18^2)+(X19^2)+(X20^2)+(X21^2))","v":24},{"$f":"Y18+Y19+Y20+Y21","v":0},{"$f":"SQRT((Z18^2)+(Z19^2)+(Z20^2)+(Z21^2))","v":24},{"$f":"AA18+AA19+AA20+AA21","v":0},{"$f":"SQRT((AB18^2)+(AB19^2)+(AB20^2)+(AB21^2))","v":24},{"$f":"AC18+AC19+AC20+AC21","v":0},{"$f":"SQRT((AD18^2)+(AD19^2)+(AD20^2)+(AD21^2))","v":24},{"$f":"AE18+AE19+AE20+AE21","v":0},{"$f":"SQRT((AF18^2)+(AF19^2)+(AF20^2)+(AF21^2))","v":24}]
[null,"35.0 percent or more",{"$f":"C22+C23++C24","v":0},{"$f":"SQRT((D22^2)+(D23^2)+(D24^2))","v":20.784609690826528},{"$f":"E22+E23++E24","v":83},{"$f":"SQRT((F22^2)+(F23^2)+(F24^2))","v":73.972968035627716},{"$f":"G22+G23++G24","v":186},{"$f":"SQRT((H22^2)+(H23^2)+(H24^2))","v":112.61882613488741},{"$f":"I22+I23++I24","v":9},{"$f":"SQRT((J22^2)+(J23^2)+(J24^2))","v":18.357559750685819},{"$f":"K22+K23++K24","v":0},{"$f":"SQRT((L22^2)+(L23^2)+(L24^2))","v":20.784609690826528},{"$f":"M22+M23++M24","v":0},{"$f":"SQRT((N22^2)+(N23^2)+(N24^2))","v":20.784609690826528},{"$f":"O22+O23++O24","v":0},{"$f":"SQRT((P22^2)+(P23^2)+(P24^2))","v":20.784609690826528},{"$f":"Q22+Q23++Q24","v":0},{"$f":"SQRT((R22^2)+(R23^2)+(R24^2))","v":20.784609690826528},{"$f":"S22+S23++S24","v":0},{"$f":"SQRT((T22^2)+(T23^2)+(T24^2))","v":20.784609690826528},{"$f":"U22+U23++U24","v":135},{"$f":"SQRT((V22^2)+(V23^2)+(V24^2))","v":110.7925990308017},{"$f":"W22+W23++W24","v":0},{"$f":"SQRT((X22^2)+(X23^2)+(X24^2))","v":20.784609690826528},{"$f":"Y22+Y23++Y24","v":3},{"$f":"SQRT((Z22^2)+(Z23^2)+(Z24^2))","v":17.691806012954132},{"$f":"AA22+AA23++AA24","v":10},{"$f":"SQRT((AB22^2)+(AB23^2)+(AB24^2))","v":23.323807579381203},{"$f":"AC22+AC23++AC24","v":0},{"$f":"SQRT((AD22^2)+(AD23^2)+(AD24^2))","v":20.784609690826528},{"$f":"AE22+AE23++AE24","v":9},{"$f":"SQRT((AF22^2)+(AF23^2)+(AF24^2))","v":22}]
[null,"50.0 percent or more",{"$f":"C24","v":0},{"$f":"D24","v":12},{"$f":"E24","v":83},{"$f":"F24","v":72},{"$f":"G24","v":173},109,{"$f":"I24","v":9},7,{"$f":"K24","v":0},12,{"$f":"M24","v":0},12,{"$f":"O24","v":0},12,{"$f":"Q24","v":0},12,{"$f":"S24","v":0},12,{"$f":"U24","v":115},105,{"$f":"W24","v":0},12,{"$f":"Y24","v":3},5,{"$f":"AA24","v":10},16,{"$f":"AC24","v":0},12,{"$f":"AE24","v":9},14]
[null,"Not Computed",{"$f":"C25","v":0},{"$f":"D25","v":12},{"$f":"E25","v":0},12,0,19,0,12,2,3,0,12,0,12,0,12,{"$f":"S25","v":0},12,0,17,0,12,0,12,0,12,0,12,0,12]
[null,"$20,000 to $34,999:",{"$f":"C26","v":0},{"$f":"D26","v":12},95,81,602,218,4,5,2,4,0,12,0,12,5,5,7,8,166,112,15,17,0,12,0,12,3,4,4,6]
[null,"Less than 30.0 percent",{"$f":"C27+C28+C29","v":0},{"$f":"SQRT((D27^2)+(D28^2)+(D29^2))","v":20.784609690826528},{"$f":"E27+E28+E29","v":31},{"$f":"SQRT((F27^2)+(F28^2)+(F29^2))","v":31.048349392520048},{"$f":"G27+G28+G29","v":94},{"$f":"SQRT((H27^2)+(H28^2)+(H29^2))","v":60.959002616512684},{"$f":"I27+I28+I29","v":0},{"$f":"SQRT((J27^2)+(J28^2)+(J29^2))","v":20.784609690826528},{"$f":"K27+K28+K29","v":0},{"$f":"SQRT((L27^2)+(L28^2)+(L29^2))","v":20.784609690826528},{"$f":"M27+M28+M29","v":0},{"$f":"SQRT((N27^2)+(N28^2)+(N29^2))","v":20.784609690826528},{"$f":"O27+O28+O29","v":0},{"$f":"SQRT((P27^2)+(P28^2)+(P29^2))","v":20.784609690826528},{"$f":"Q27+Q28+Q29","v":0},{"$f":"SQRT((R27^2)+(R28^2)+(R29^2))","v":20.784609690826528},{"$f":"S27+S28+S29","v":0},{"$f":"SQRT((T27^2)+(T28^2)+(T29^2))","v":20.784609690826528},{"$f":"U27+U28+U29","v":32},{"$f":"SQRT((V27^2)+(V28^2)+(V29^2))","v":44.124822945820419},{"$f":"W27+W28+W29","v":0},{"$f":"SQRT((X27^2)+(X28^2)+(X29^2))","v":20.784609690826528},{"$f":"Y27+Y28+Y29","v":0},{"$f":"SQRT((Z27^2)+(Z28^2)+(Z29^2))","v":20.784609690826528},{"$f":"AA27+AA28+AA29","v":0},{"$f":"SQRT((AB27^2)+(AB28^2)+(AB29^2))","v":20.784609690826528},{"$f":"AC27+AC28+AC29","v":0},{"$f":"SQRT((AD27^2)+(AD28^2)+(AD29^2))","v":20.784609690826528},{"$f":"AE27+AE28+AE29","v":4},{"$f":"SQRT((AF27^2)+(AF28^2)+(AF29^2))","v":18}]
[null,"More than 30.0 percent",{"$f":"C30+C31+C32+C33","v":0},{"$f":"SQRT((D30^2)+(D31^2)+(D32^2)+(D33^2))","v":24},{"$f":"E30+E31+E32+E33","v":64},{"$f":"SQRT((F30^2)+(F31^2)+(F32^2)+(F33^2))","v":75.802374632988901},{"$f":"G30+G31+G32+G33","v":508},{"$f":"SQRT((H30^2)+(H31^2)+(H32^2)+(H33^2))","v":223.00448425984621},{"$f":"I30+I31+I32+I33","v":4},{"$f":"SQRT((J30^2)+(J31^2)+(J32^2)+(J33^2))","v":21.377558326431949},{"$f":"K30+K31+K32+K33","v":2},{"$f":"SQRT((L30^2)+(L31^2)+(L32^2)+(L33^2))","v":21.166010488516726},{"$f":"M30+M31+M32+M33","v":0},{"$f":"SQRT((N30^2)+(N31^2)+(N32^2)+(N33^2))","v":24},{"$f":"O30+O31+O32+O33","v":0},{"$f":"SQRT((P30^2)+(P31^2)+(P32^2)+(P33^2))","v":24},{"$f":"Q30+Q31+Q32+Q33","v":5},{"$f":"SQRT((R30^2)+(R31^2)+(R32^2)+(R33^2))","v":21.377558326431949},{"$f":"S30+S31+S32+S33","v":7},{"$f":"SQRT((T30^2)+(T31^2)+(T32^2)+(T33^2))","v":22.271057451320086},{"$f":"U30+U31+U32+U33","v":134},{"$f":"SQRT((V30^2)+(V31^2)+(V32^2)+(V33^2))","v":111.01801655587259},{"$f":"W30+W31+W32+W33","v":15},{"$f":"SQRT((X30^2)+(X31^2)+(X32^2)+(X33^2))","v":23.086792761230392},{"$f":"Y30+Y31+Y32+Y33","v":0},{"$f":"SQRT((Z30^2)+(Z31^2)+(Z32^2)+(Z33^2))","v":24},{"$f":"AA30+AA31+AA32+AA33","v":0},{"$f":"SQRT((AB30^2)+(AB31^2)+(AB32^2)+(AB33^2))","v":24},{"$f":"AC30+AC31+AC32+AC33","v":0},{"$f":"SQRT((AD30^2)+(AD31^2)+(AD32^2)+(AD33^2))","v":24},{"$f":"AE30+AE31+AE32+AE33","v":0},{"$f":"SQRT((AF30^2)+(AF31^2)+(AF32^2)+(AF33^2))","v":24}]
[null,"Less Than 35% of HH Income",{"$f":"C27+C28+C29+C30","v":0},{"$f":"SQRT((D27^2)+(D28^2)+(D29^2)+(D30^2))","v":24},{"$f":"E27+E28+E29+E30","v":31},{"$f":"SQRT((F27^2)+(F28^2)+(F29^2)+(F30^2))","v":33.286633954186478},{"$f":"G27+G28+G29+G30","v":109},{"$f":"SQRT((H27^2)+(H28^2)+(H29^2)+(H30^2))","v":63.851389961378288},{"$f":"I27+I28+I29+I30","v":0},{"$f":"SQRT((J27^2)+(J28^2)+(J29^2)+(J30^2))","v":24},{"$f":"K27+K28+K29+K30","v":0},{"$f":"SQRT((L27^2)+(L28^2)+(L29^2)+(L30^2))","v":24},{"$f":"M27+M28+M29+M30","v":0},{"$f":"SQRT((N27^2)+(N28^2)+(N29^2)+(N30^2))","v":24},{"$f":"O27+O28+O29+O30","v":0},{"$f":"SQRT((P27^2)+(P28^2)+(P29^2)+(P30^2))","v":24},{"$f":"Q27+Q28+Q29+Q30","v":0},{"$f":"SQRT((R27^2)+(R28^2)+(R29^2)+(R30^2))","v":24},{"$f":"S27+S28+S29+S30","v":7},{"$f":"SQRT((T27^2)+(T28^2)+(T29^2)+(T30^2))","v":22.271057451320086},{"$f":"U27+U28+U29+U30","v":41},{"$f":"SQRT((V27^2)+(V28^2)+(V29^2)+(V30^2))","v":49.305172142484203},{"$f":"W27+W28+W29+W30","v":0},{"$f":"SQRT((X27^2)+(X28^2)+(X29^2)+(X30^2))","v":24},{"$f":"Y27+Y28+Y29+Y30","v":0},{"$f":"SQRT((Z27^2)+(Z28^2)+(Z29^2)+(Z30^2))","v":24},{"$f":"AA27+AA28+AA29+AA30","v":0},{"$f":"SQRT((AB27^2)+(AB28^2)+(AB29^2)+(AB30^2))","v":24},{"$f":"AC27+AC28+AC29+AC30","v":0},{"$f":"SQRT((AD27^2)+(AD28^2)+(AD29^2)+(AD30^2))","v":24},{"$f":"AE27+AE28+AE29+AE30","v":4},{"$f":"SQRT((AF27^2)+(AF28^2)+(AF29^2)+(AF30^2))","v":21.633307652783937}]
[null,"35.0 percent or more",{"$f":"C31+C32+C33","v":0},{"$f":"SQRT((D31^2)+(D32^2)+(D33^2))","v":20.784609690826528},{"$f":"E31+E32+E33","v":64},{"$f":"SQRT((F31^2)+(F32^2)+(F33^2))","v":74.846509604656916},{"$f":"G31+G32+G33","v":493},{"$f":"SQRT((H31^2)+(H32^2)+(H33^2))","v":222.19360926903366},{"$f":"I31+I32+I33","v":4},{"$f":"SQRT((J31^2)+(J32^2)+(J33^2))","v":17.691806012954132},{"$f":"K31+K32+K33","v":2},{"$f":"SQRT((L31^2)+(L32^2)+(L33^2))","v":17.435595774162696},{"$f":"M31+M32+M33","v":0},{"$f":"SQRT((N31^2)+(N32^2)+(N33^2))","v":20.784609690826528},{"$f":"O31+O32+O33","v":0},{"$f":"SQRT((P31^2)+(P32^2)+(P33^2))","v":20.784609690826528},{"$f":"Q31+Q32+Q33","v":5},{"$f":"SQRT((R31^2)+(R32^2)+(R33^2))","v":17.691806012954132},{"$f":"S31+S32+S33","v":0},{"$f":"SQRT((T31^2)+(T32^2)+(T33^2))","v":20.784609690826528},{"$f":"U31+U32+U33","v":125},{"$f":"SQRT((V31^2)+(V32^2)+(V33^2))","v":108.816359064251},{"$f":"W31+W32+W33","v":15},{"$f":"SQRT((X31^2)+(X32^2)+(X33^2))","v":19.723082923316021},{"$f":"Y31+Y32+Y33","v":0},{"$f":"SQRT((Z31^2)+(Z32^2)+(Z33^2))","v":20.784609690826528},{"$f":"AA31+AA32+AA33","v":0},{"$f":"SQRT((AB31^2)+(AB32^2)+(AB33^2))","v":20.784609690826528},{"$f":"AC31+AC32+AC33","v":0},{"$f":"SQRT((AD31^2)+(AD32^2)+(AD33^2))","v":20.784609690826528},{"$f":"AE31+AE32+AE33","v":0},{"$f":"SQRT((AF31^2)+(AF32^2)+(AF33^2))","v":20.784609690826528}]
[null,"50.0 percent or more",{"$f":"C33","v":0},12,{"$f":"E33","v":29},47,244,140,4,5,2,4,0,12,0,12,0,12,{"$f":"S33","v":0},12,13,22,11,14,0,12,0,12,0,12,0,12]
[null,"Not Computed",0,12,0,12,0,19,0,12,0,12,0,12,0,12,0,12,0,12,0,17,0,12,0,12,0,12,3,4,0,12]
[null,"$35,000 to $49,999:",5,5,20,33,379,155,0,12,1,2,6,9,0,12,9,11,0,12,82,85,9,15,0,12,33,41,12,11,0,12]
[null,"Less than 30.0 percent",{"$f":"C36+C37+C38","v":2},{"$f":"SQRT((D36^2)+(D37^2)+(D38^2))","v":17.233687939614086},{"$f":"E36+E37+E38","v":20},{"$f":"SQRT((F36^2)+(F37^2)+(F38^2))","v":37.107950630558946},{"$f":"G36+G37+G38","v":145},{"$f":"SQRT((H36^2)+(H37^2)+(H38^2))","v":94.435162942624288},{"$f":"I36+I37+I38","v":0},{"$f":"SQRT((J36^2)+(J37^2)+(J38^2))","v":20.784609690826528},{"$f":"K36+K37+K38","v":0},{"$f":"SQRT((L36^2)+(L37^2)+(L38^2))","v":20.784609690826528},{"$f":"M36+M37+M38","v":0},{"$f":"SQRT((N36^2)+(N37^2)+(N38^2))","v":20.784609690826528},{"$f":"O36+O37+O38","v":0},{"$f":"SQRT((P36^2)+(P37^2)+(P38^2))","v":20.784609690826528},{"$f":"Q36+Q37+Q38","v":9},{"$f":"SQRT((R36^2)+(R37^2)+(R38^2))","v":15.905973720586866},{"$f":"S36+S37+S38","v":0},{"$f":"SQRT((T36^2)+(T37^2)+(T38^2))","v":20.784609690826528},{"$f":"U36+U37+U38","v":13},{"$f":"SQRT((V36^2)+(V37^2)+(V38^2))","v":32.58834147360065},{"$f":"W36+W37+W38","v":0},{"$f":"SQRT((X36^2)+(X37^2)+(X38^2))","v":20.784609690826528},{"$f":"Y36+Y37+Y38","v":0},{"$f":"SQRT((Z36^2)+(Z37^2)+(Z38^2))","v":20.784609690826528},{"$f":"AA36+AA37+AA38","v":8},{"$f":"SQRT((AB36^2)+(AB37^2)+(AB38^2))","v":21.377558326431949},{"$f":"AC36+AC37+AC38","v":0},{"$f":"SQRT((AD36^2)+(AD37^2)+(AD38^2))","v":20.784609690826528},{"$f":"AE36+AE37+AE38","v":0},{"$f":"SQRT((AF36^2)+(AF37^2)+(AF38^2))","v":20.784609690826528}]
[null,"More than 30.0 percent",{"$f":"C39+C40+C41+C42","v":0},{"$f":"SQRT((D39^2)+(D40^2)+(D41^2)+(D42^2))","v":24},{"$f":"E39+E40+E41+E42","v":0},{"$f":"SQRT((F39^2)+(F40^2)+(F41^2)+(F42^2))","v":24},{"$f":"G39+G40+G41+G42","v":234},{"$f":"SQRT((H39^2)+(H40^2)+(H41^2)+(H42^2))","v":142.60785392116384},{"$f":"I39+I40+I41+I42","v":0},{"$f":"SQRT((J39^2)+(J40^2)+(J41^2)+(J42^2))","v":24},{"$f":"K39+K40+K41+K42","v":1},{"$f":"SQRT((L39^2)+(L40^2)+(L41^2)+(L42^2))","v":20.880613017821101},{"$f":"M39+M40+M41+M42","v":6},{"$f":"SQRT((N39^2)+(N40^2)+(N41^2)+(N42^2))","v":22.649503305812249},{"$f":"O39+O40+O41+O42","v":0},{"$f":"SQRT((P39^2)+(P40^2)+(P41^2)+(P42^2))","v":24},{"$f":"Q39+Q40+Q41+Q42","v":0},{"$f":"SQRT((R39^2)+(R40^2)+(R41^2)+(R42^2))","v":24},{"$f":"S39+S40+S41+S42","v":0},{"$f":"SQRT((T39^2)+(T40^2)+(T41^2)+(T42^2))","v":24},{"$f":"U39+U40+U41+U42","v":69},{"$f":"SQRT((V39^2)+(V40^2)+(V41^2)+(V42^2))","v":84.752581081640216},{"$f":"W39+W40+W41+W42","v":9},{"$f":"SQRT((X39^2)+(X40^2)+(X41^2)+(X42^2))","v":25.632011235952593},{"$f":"Y39+Y40+Y41+Y42","v":0},{"$f":"SQRT((Z39^2)+(Z40^2)+(Z41^2)+(Z42^2))","v":24},{"$f":"AA39+AA40+AA41+AA42","v":25},{"$f":"SQRT((AB39^2)+(AB40^2)+(AB41^2)+(AB42^2))","v":44.192759587968709},{"$f":"AC39+AC40+AC41+AC42","v":3},{"$f":"SQRT((AD39^2)+(AD40^2)+(AD41^2)+(AD42^2))","v":21.166010488516726},{"$f":"AE39+AE40+AE41+AE42","v":0},{"$f":"SQRT((AF39^2)+(AF40^2)+(AF41^2)+(AF42^2))","v":24}]
[null,"Less Than 35% of HH Income",{"$f":"C36+C37+C38+C39","v":2},{"$f":"SQRT((D36^2)+(D37^2)+(D38^2)+(D39^2))","v":21},{"$f":"E36+E37+E38+E39","v":20},{"$f":"SQRT((F36^2)+(F37^2)+(F38^2)+(F39^2))","v":39},{"$f":"G36+G37+G38+G39","v":209},{"$f":"SQRT((H36^2)+(H37^2)+(H38^2)+(H39^2))","v":127.72626981165621},{"$f":"I36+I37+I38+I39","v":0},{"$f":"SQRT((J36^2)+(J37^2)+(J38^2)+(J39^2))","v":24},{"$f":"K36+K37+K38+K39","v":0},{"$f":"SQRT((L36^2)+(L37^2)+(L38^2)+(L39^2))","v":24},{"$f":"M36+M37+M38+M39","v":0},{"$f":"SQRT((N36^2)+(N37^2)+(N38^2)+(N39^2))","v":24},{"$f":"O36+O37+O38+O39","v":0},{"$f":"SQRT((P36^2)+(P37^2)+(P38^2)+(P39^2))","v":24},{"$f":"Q36+Q37+Q38+Q39","v":9},{"$f":"SQRT((R36^2)+(R37^2)+(R38^2)+(R39^2))","v":19.924858845171276},{"$f":"S36+S37+S38+S39","v":0},{"$f":"SQRT((T36^2)+(T37^2)+(T38^2)+(T39^2))","v":24},{"$f":"U36+U37+U38+U39","v":13},{"$f":"SQRT((V36^2)+(V37^2)+(V38^2)+(V39^2))","v":36.755951898978211},{"$f":"W36+W37+W38+W39","v":9},{"$f":"SQRT((X36^2)+(X37^2)+(X38^2)+(X39^2))","v":25.632011235952593},{"$f":"Y36+Y37+Y38+Y39","v":0},{"$f":"SQRT((Z36^2)+(Z37^2)+(Z38^2)+(Z39^2))","v":24},{"$f":"AA36+AA37+AA38+AA39","v":8},{"$f":"SQRT((AB36^2)+(AB37^2)+(AB38^2)+(AB39^2))","v":24.515301344262525},{"$f":"AC36+AC37+AC38+AC39","v":0},{"$f":"SQRT((AD36^2)+(AD37^2)+(AD38^2)+(AD39^2))","v":24},{"$f":"AE36+AE37+AE38+AE39","v":0},{"$f":"SQRT((AF36^2)+(AF37^2)+(AF38^2)+(AF39^2))","v":24}]
[null,"35.0 percent or more",{"$f":"C40+C41+C42","v":0},{"$f":"SQRT((D40^2)+(D41^2)+(D42^2))","v":20.784609690826528},{"$f":"E40+E41+E42","v":0},{"$f":"SQRT((F40^2)+(F41^2)+(F42^2))","v":20.784609690826528},{"$f":"G40+G41+G42","v":170},{"$f":"SQRT((H40^2)+(H41^2)+(H42^2))","v":113.75851616472501},{"$f":"I40+I41+I42","v":0},{"$f":"SQRT((J40^2)+(J41^2)+(J42^2))","v":20.784609690826528},{"$f":"K40+K41+K42","v":1},{"$f":"SQRT((L40^2)+(L41^2)+(L42^2))","v":17.088007490635061},{"$f":"M40+M41+M42","v":6},{"$f":"SQRT((N40^2)+(N41^2)+(N42^2))","v":19.209372712298546},{"$f":"O40+O41+O42","v":0},{"$f":"SQRT((P40^2)+(P41^2)+(P42^2))","v":20.784609690826528},{"$f":"Q40+Q41+Q42","v":0},{"$f":"SQRT((R40^2)+(R41^2)+(R42^2))","v":20.784609690826528},{"$f":"S40+S41+S42","v":0},{"$f":"SQRT((T40^2)+(T41^2)+(T42^2))","v":20.784609690826528},{"$f":"U40+U41+U42","v":69},{"$f":"SQRT((V40^2)+(V41^2)+(V42^2))","v":83.03011501858829},{"$f":"W40+W41+W42","v":0},{"$f":"SQRT((X40^2)+(X41^2)+(X42^2))","v":20.784609690826528},{"$f":"Y40+Y41+Y42","v":0},{"$f":"SQRT((Z40^2)+(Z41^2)+(Z42^2))","v":20.784609690826528},{"$f":"AA40+AA41+AA42","v":25},{"$f":"SQRT((AB40^2)+(AB41^2)+(AB42^2))","v":42.532340636273474},{"$f":"AC40+AC41+AC42","v":3},{"$f":"SQRT((AD40^2)+(AD41^2)+(AD42^2))","v":17.435595774162696},{"$f":"AE40+AE41+AE42","v":0},{"$f":"SQRT((AF40^2)+(AF41^2)+(AF42^2))","v":20.784609690826528}]
[null,"50.0 percent or more",{"$f":"C42","v":0},12,0,{"$f":"F42","v":12},{"$f":"G42","v":43},54,{"$f":"I42","v":0},12,{"$f":"K42","v":1},2,{"$f":"M42","v":6},9,{"$f":"O42","v":0},12,{"$f":"Q42","v":0},12,{"$f":"S42","v":0},12,{"$f":"U42","v":4},9,{"$f":"W42","v":0},12,{"$f":"Y42","v":0},12,{"$f":"AA42","v":0},12,{"$f":"AC42","v":0},12,{"$f":"AE42","v":0},12]
[null,"Not Computed",3,4,0,12,{"$f":"G43","v":0},19,{"$f":"I43","v":0},12,{"$f":"K43","v":0},12,{"$f":"M43","v":0},12,{"$f":"O43","v":0},12,{"$f":"Q43","v":0},12,{"$f":"S43","v":0},12,{"$f":"U43","v":0},17,{"$f":"W43","v":0},12,{"$f":"Y43","v":0},12,{"$f":"AA43","v":0},12,{"$f":"AC43","v":9},10,{"$f":"AE43","v":0},12]
[null,"$50,000 to $74,999:",{"$f":"C44","v":4},{"$f":"D44","v":3},{"$f":"E44","v":64},61,304,141,3,4,0,12,10,9,13,22,5,5,10,16,133,120,7,11,6,11,38,27,2,4,17,18]
[null,"Less than 30.0 percent",{"$f":"C45+C46+C47","v":2},{"$f":"SQRT((D45^2)+(D46^2)+(D47^2))","v":17.233687939614086},{"$f":"E45+E46+E47","v":42},{"$f":"SQRT((F45^2)+(F46^2)+(F47^2))","v":54.561891462814962},{"$f":"G45+G46+G47","v":233},{"$f":"SQRT((H45^2)+(H46^2)+(H47^2))","v":142.1724305201258},{"$f":"I45+I46+I47","v":0},{"$f":"SQRT((J45^2)+(J46^2)+(J47^2))","v":20.784609690826528},{"$f":"K45+K46+K47","v":0},{"$f":"SQRT((L45^2)+(L46^2)+(L47^2))","v":20.784609690826528},{"$f":"M45+M46+M47","v":3},{"$f":"SQRT((N45^2)+(N46^2)+(N47^2))","v":17.435595774162696},{"$f":"O45+O46+O47","v":0},{"$f":"SQRT((P45^2)+(P46^2)+(P47^2))","v":20.784609690826528},{"$f":"Q45+Q46+Q47","v":0},{"$f":"SQRT((R45^2)+(R46^2)+(R47^2))","v":20.784609690826528},{"$f":"S45+S46+S47","v":10},{"$f":"SQRT((T45^2)+(T46^2)+(T47^2))","v":23.323807579381203},{"$f":"U45+U46+U47","v":97},{"$f":"SQRT((V45^2)+(V46^2)+(V47^2))","v":102.9465880930495},{"$f":"W45+W46+W47","v":0},{"$f":"SQRT((X45^2)+(X46^2)+(X47^2))","v":20.784609690826528},{"$f":"Y45+Y46+Y47","v":6},{"$f":"SQRT((Z45^2)+(Z46^2)+(Z47^2))","v":20.223748416156685},{"$f":"AA45+AA46+AA47","v":27},{"$f":"SQRT((AB45^2)+(AB46^2)+(AB47^2))","v":31.192947920964443},{"$f":"AC45+AC46+AC47","v":2},{"$f":"SQRT((AD45^2)+(AD46^2)+(AD47^2))","v":17.435595774162696},{"$f":"AE45+AE46+AE47","v":17},{"$f":"SQRT((AF45^2)+(AF46^2)+(AF47^2))","v":24.738633753705962}]
[null,"More than 30.0 percent",{"$f":"C48+C49+C50+C51","v":2},{"$f":"SQRT((D48^2)+(D49^2)+(D50^2)+(D51^2))","v":21},{"$f":"E48+E49+E50+E51","v":0},{"$f":"SQRT((F48^2)+(F49^2)+(F50^2)+(F51^2))","v":24},{"$f":"G48+G49+G50+G51","v":71},{"$f":"SQRT((H48^2)+(H49^2)+(H50^2)+(H51^2))","v":75.544688761024091},{"$f":"I48+I49+I50+I51","v":0},{"$f":"SQRT((J48^2)+(J49^2)+(J50^2)+(J51^2))","v":24},{"$f":"K48+K49+K50+K51","v":0},{"$f":"SQRT((L48^2)+(L49^2)+(L50^2)+(L51^2))","v":24},{"$f":"M48+M49+M50+M51","v":0},{"$f":"SQRT((N48^2)+(N49^2)+(N50^2)+(N51^2))","v":24},{"$f":"O48+O49+O50+O51","v":13},{"$f":"SQRT((P48^2)+(P49^2)+(P50^2)+(P51^2))","v":30.265491900843113},{"$f":"Q48+Q49+Q50+Q51","v":5},{"$f":"SQRT((R48^2)+(R49^2)+(R50^2)+(R51^2))","v":17.691806012954132},{"$f":"S48+S49+S50+S51","v":0},{"$f":"SQRT((T48^2)+(T49^2)+(T50^2)+(T51^2))","v":24},{"$f":"U48+U49+U50+U51","v":36},{"$f":"SQRT((V48^2)+(V49^2)+(V50^2)+(V51^2))","v":57.166423711825807},{"$f":"W48+W49+W50+W51","v":7},{"$f":"SQRT((X48^2)+(X49^2)+(X50^2)+(X51^2))","v":23.515952032609693},{"$f":"Y48+Y49+Y50+Y51","v":0},{"$f":"SQRT((Z48^2)+(Z49^2)+(Z50^2)+(Z51^2))","v":24},{"$f":"AA48+AA49+AA50+AA51","v":11},{"$f":"SQRT((AB48^2)+(AB49^2)+(AB50^2)+(AB51^2))","v":21.748563170931547},{"$f":"AC48+AC49+AC50+AC51","v":0},{"$f":"SQRT((AD48^2)+(AD49^2)+(AD50^2)+(AD51^2))","v":24},{"$f":"AE48+AE49+AE50+AE51","v":0},{"$f":"SQRT((AF48^2)+(AF49^2)+(AF50^2)+(AF51^2))","v":24}]
[null,"Less Than 35% of HH Income",{"$f":"C48+C47+C46+C45","v":2},{"$f":"SQRT((D48^2)+(D47^2)+(D46^2)+(D45^2))","v":21},{"$f":"E48+E47+E46+E45","v":42},{"$f":"SQRT((F48^2)+(F47^2)+(F46^2)+(F45^2))","v":55.865910893853687},{"$f":"G48+G47+G46+G45","v":273},{"$f":"SQRT((H48^2)+(H47^2)+(H46^2)+(H45^2))","v":152.8037957643723},{"$f":"I48+I47+I46+I45","v":0},{"$f":"SQRT((J48^2)+(J47^2)+(J46^2)+(J45^2))","v":24},{"$f":"K48+K47+K46+K45","v":0},{"$f":"SQRT((L48^2)+(L47^2)+(L46^2)+(L45^2))","v":24},{"$f":"M48+M47+M46+M45","v":3},{"$f":"SQRT((N48^2)+(N47^2)+(N46^2)+(N45^2))","v":21.166010488516726},{"$f":"O48+O47+O46+O45","v":0},{"$f":"SQRT((P48^2)+(P47^2)+(P46^2)+(P45^2))","v":24},{"$f":"Q48+Q47+Q46+Q45","v":3},{"$f":"SQRT((R48^2)+(R47^2)+(R46^2)+(R45^2))","v":21.166010488516726},{"$f":"S48+S47+S46+S45","v":10},{"$f":"SQRT((T48^2)+(T47^2)+(T46^2)+(T45^2))","v":26.229754097208001},{"$f":"U48+U47+U46+U45","v":133},{"$f":"SQRT((V48^2)+(V47^2)+(V46^2)+(V45^2))","v":114.01315713548152},{"$f":"W48+W47+W46+W45","v":0},{"$f":"SQRT((X48^2)+(X47^2)+(X46^2)+(X45^2))","v":24},{"$f":"Y48+Y47+Y46+Y45","v":6},{"$f":"SQRT((Z48^2)+(Z47^2)+(Z46^2)+(Z45^2))","v":23.515952032609693},{"$f":"AA48+AA47+AA46+AA45","v":32},{"$f":"SQRT((AB48^2)+(AB47^2)+(AB46^2)+(AB45^2))","v":32.202484376209235},{"$f":"AC48+AC47+AC46+AC45","v":2},{"$f":"SQRT((AD48^2)+(AD47^2)+(AD46^2)+(AD45^2))","v":21.166010488516726},{"$f":"AE48+AE47+AE46+AE45","v":17},{"$f":"SQRT((AF48^2)+(AF47^2)+(AF46^2)+(AF45^2))","v":27.495454169735041}]
[null,"35.0 percent or more",{"$f":"C49+C50+C51","v":2},{"$f":"SQRT((D49^2)+(D50^2)+(D51^2))","v":17.233687939614086},{"$f":"E49+E50+E51","v":0},{"$f":"SQRT((F49^2)+(F50^2)+(F51^2))","v":20.784609690826528},{"$f":"G49+G50+G51","v":31},{"$f":"SQRT((H49^2)+(H50^2)+(H51^2))","v":50.705029336348872},{"$f":"I49+I50+I51","v":0},{"$f":"SQRT((J49^2)+(J50^2)+(J51^2))","v":20.784609690826528},{"$f":"K49+K50+K51","v":0},{"$f":"SQRT((L49^2)+(L50^2)+(L51^2))","v":20.784609690826528},{"$f":"M49+M50+M51","v":0},{"$f":"SQRT((N49^2)+(N50^2)+(N51^2))","v":20.784609690826528},{"$f":"O49+O50+O51","v":13},{"$f":"SQRT((P49^2)+(P50^2)+(P51^2))","v":27.784887978899608},{"$f":"Q49+Q50+Q51","v":2},{"$f":"SQRT((R49^2)+(R50^2)+(R51^2))","v":17.233687939614086},{"$f":"S49+S50+S51","v":0},{"$f":"SQRT((T49^2)+(T50^2)+(T51^2))","v":20.784609690826528},{"$f":"U49+U50+U51","v":0},{"$f":"SQRT((V49^2)+(V50^2)+(V51^2))","v":29.444863728670914},{"$f":"W49+W50+W51","v":7},{"$f":"SQRT((X49^2)+(X50^2)+(X51^2))","v":20.223748416156685},{"$f":"Y49+Y50+Y51","v":0},{"$f":"SQRT((Z49^2)+(Z50^2)+(Z51^2))","v":20.784609690826528},{"$f":"AA49+AA50+AA51","v":6},{"$f":"SQRT((AB49^2)+(AB50^2)+(AB51^2))","v":20.223748416156685},{"$f":"AC49+AC50+AC51","v":0},{"$f":"SQRT((AD49^2)+(AD50^2)+(AD51^2))","v":20.784609690826528},{"$f":"AE49+AE50+AE51","v":0},{"$f":"SQRT((AF49^2)+(AF50^2)+(AF51^2))","v":20.784609690826528}]
[null,"50.0 percent or more",{"$f":"C51","v":0},12,0,{"$f":"F51","v":12},{"$f":"G51","v":0},19,{"$f":"I51","v":0},12,{"$f":"K51","v":0},12,{"$f":"M51","v":0},12,{"$f":"O51","v":0},12,{"$f":"Q51","v":0},12,{"$f":"S51","v":0},12,{"$f":"U51","v":0},17,{"$f":"W51","v":0},12,{"$f":"Y51","v":0},12,{"$f":"AA51","v":0},12,{"$f":"AC51","v":0},12,{"$f":"AE51","v":0},12]
[null,"Not Computed",0,12,22,35,{"$f":"G52","v":0},19,{"$f":"I52","v":3},4,{"$f":"K52","v":0},12,{"$f":"M52","v":7},7,{"$f":"O52","v":0},12,{"$f":"Q52","v":0},12,{"$f":"S52","v":0},12,{"$f":"U52","v":0},17,{"$f":"W52","v":0},12,{"$f":"Y52","v":0},12,{"$f":"AA52","v":0},12,{"$f":"AC52","v":0},12,{"$f":"AE52","v":0},12]
[null,"$75,000 to $99,999:",3,4,14,23,{"$f":"G53","v":127},68,{"$f":"I53","v":4},5,{"$f":"K53","v":9},10,{"$f":"M53","v":10},17,{"$f":"O53","v":0},12,{"$f":"Q53","v":0},12,{"$f":"S53","v":0},12,{"$f":"U53","v":193},142,{"$f":"W53","v":6},10,{"$f":"Y53","v":0},12,{"$f":"AA53","v":18},23,{"$f":"AC53","v":3},4,{"$f":"AE53","v":2},3]
[null,"Less than 30.0 percent",{"$f":"C54+C55+C56","v":3},{"$f":"SQRT((D54^2)+(D55^2)+(D56^2))","v":17.435595774162696},{"$f":"E54+E55+E56","v":14},{"$f":"SQRT((F54^2)+(F55^2)+(F56^2))","v":28.583211855912904},{"$f":"G54+G55+G56","v":127},{"$f":"SQRT((H54^2)+(H55^2)+(H56^2))","v":72.013887549555335},{"$f":"I54+I55+I56","v":4},{"$f":"SQRT((J54^2)+(J55^2)+(J56^2))","v":13},{"$f":"K54+K55+K56","v":7},{"$f":"SQRT((L54^2)+(L55^2)+(L56^2))","v":14.966629547095765},{"$f":"M54+M55+M56","v":0},{"$f":"SQRT((N54^2)+(N55^2)+(N56^2))","v":20.784609690826528},{"$f":"O54+O55+O56","v":0},{"$f":"SQRT((P54^2)+(P55^2)+(P56^2))","v":20.784609690826528},{"$f":"Q54+Q55+Q56","v":0},{"$f":"SQRT((R54^2)+(R55^2)+(R56^2))","v":20.784609690826528},{"$f":"S54+S55+S56","v":0},{"$f":"SQRT((T54^2)+(T55^2)+(T56^2))","v":20.784609690826528},{"$f":"U54+U55+U56","v":193},{"$f":"SQRT((V54^2)+(V55^2)+(V56^2))","v":142.01408380861386},{"$f":"W54+W55+W56","v":6},{"$f":"SQRT((X54^2)+(X55^2)+(X56^2))","v":19.697715603592208},{"$f":"Y54+Y55+Y56","v":0},{"$f":"SQRT((Z54^2)+(Z55^2)+(Z56^2))","v":20.784609690826528},{"$f":"AA54+AA55+AA56","v":0},{"$f":"SQRT((AB54^2)+(AB55^2)+(AB56^2))","v":20.784609690826528},{"$f":"AC54+AC55+AC56","v":3},{"$f":"SQRT((AD54^2)+(AD55^2)+(AD56^2))","v":17.435595774162696},{"$f":"AE54+AE55+AE56","v":2},{"$f":"SQRT((AF54^2)+(AF55^2)+(AF56^2))","v":17.233687939614086}]
[null,"More than 30.0 percent",{"$f":"C57+C58+C59+C60","v":0},{"$f":"SQRT((D57^2)+(D58^2)+(D59^2)+(D60^2))","v":24},{"$f":"E57+E58+E59+E60","v":0},{"$f":"SQRT((F57^2)+(F58^2)+(F59^2)+(F60^2))","v":24},{"$f":"G57+G58+G59+G60","v":0},{"$f":"SQRT((H57^2)+(H58^2)+(H59^2)+(H60^2))","v":38},{"$f":"I57+I58+I59+I60","v":0},{"$f":"SQRT((J57^2)+(J58^2)+(J59^2)+(J60^2))","v":24},{"$f":"K57+K58+K59+K60","v":0},{"$f":"SQRT((L57^2)+(L58^2)+(L59^2)+(L60^2))","v":24},{"$f":"M57+M58+M59+M60","v":10},{"$f":"SQRT((N57^2)+(N58^2)+(N59^2)+(N60^2))","v":26.851443164195103},{"$f":"O57+O58+O59+O60","v":0},{"$f":"SQRT((P57^2)+(P58^2)+(P59^2)+(P60^2))","v":24},{"$f":"Q57+Q58+Q59+Q60","v":0},{"$f":"SQRT((R57^2)+(R58^2)+(R59^2)+(R60^2))","v":24},{"$f":"S57+S58+S59+S60","v":0},{"$f":"SQRT((T57^2)+(T58^2)+(T59^2)+(T60^2))","v":24},{"$f":"U57+U58+U59+U60","v":0},{"$f":"SQRT((V57^2)+(V58^2)+(V59^2)+(V60^2))","v":34},{"$f":"W57+W58+W59+W60","v":0},{"$f":"SQRT((X57^2)+(X58^2)+(X59^2)+(X60^2))","v":24},{"$f":"Y57+Y58+Y59+Y60","v":0},{"$f":"SQRT((Z57^2)+(Z58^2)+(Z59^2)+(Z60^2))","v":24},{"$f":"AA57+AA58+AA59+AA60","v":18},{"$f":"SQRT((AB57^2)+(AB58^2)+(AB59^2)+(AB60^2))","v":31},{"$f":"AC57+AC58+AC59+AC60","v":0},{"$f":"SQRT((AD57^2)+(AD58^2)+(AD59^2)+(AD60^2))","v":24},{"$f":"AE57+AE58+AE59+AE60","v":0},{"$f":"SQRT((AF57^2)+(AF58^2)+(AF59^2)+(AF60^2))","v":24}]
[null,"Less Than 35% of HH Income",{"$f":"C54+C55+C56+C57","v":3},{"$f":"SQRT((D54^2)+(D55^2)+(D56^2)+(D57^2))","v":21.166010488516726},{"$f":"E54+E55+E56+E57","v":14},{"$f":"SQRT((F54^2)+(F55^2)+(F56^2)+(F57^2))","v":31},{"$f":"G54+G55+G56+G57","v":127},{"$f":"SQRT((H54^2)+(H55^2)+(H56^2)+(H57^2))","v":74.47818472546173},{"$f":"I54+I55+I56+I57","v":4},{"$f":"SQRT((J54^2)+(J55^2)+(J56^2)+(J57^2))","v":17.691806012954132},{"$f":"K54+K55+K56+K57","v":7},{"$f":"SQRT((L54^2)+(L55^2)+(L56^2)+(L57^2))","v":19.183326093250876},{"$f":"M54+M55+M56+M57","v":10},{"$f":"SQRT((N54^2)+(N55^2)+(N56^2)+(N57^2))","v":26.851443164195103},{"$f":"O54+O55+O56+O57","v":0},{"$f":"SQRT((P54^2)+(P55^2)+(P56^2)+(P57^2))","v":24},{"$f":"Q54+Q55+Q56+Q57","v":0},{"$f":"SQRT((R54^2)+(R55^2)+(R56^2)+(R57^2))","v":24},{"$f":"S54+S55+S56+S57","v":0},{"$f":"SQRT((T54^2)+(T55^2)+(T56^2)+(T57^2))","v":24},{"$f":"U54+U55+U56+U57","v":193},{"$f":"SQRT((V54^2)+(V55^2)+(V56^2)+(V57^2))","v":143.02796929272262},{"$f":"W54+W55+W56+W57","v":6},{"$f":"SQRT((X54^2)+(X55^2)+(X56^2)+(X57^2))","v":23.065125189341593},{"$f":"Y54+Y55+Y56+Y57","v":0},{"$f":"SQRT((Z54^2)+(Z55^2)+(Z56^2)+(Z57^2))","v":24},{"$f":"AA54+AA55+AA56+AA57","v":18},{"$f":"SQRT((AB54^2)+(AB55^2)+(AB56^2)+(AB57^2))","v":31},{"$f":"AC54+AC55+AC56+AC57","v":3},{"$f":"SQRT((AD54^2)+(AD55^2)+(AD56^2)+(AD57^2))","v":21.166010488516726},{"$f":"AE54+AE55+AE56+AE57","v":2},{"$f":"SQRT((AF54^2)+(AF55^2)+(AF56^2)+(AF57^2))","v":21}]
[null,"35.0 percent or more",{"$f":"C58+C59+C60","v":0},{"$f":"SQRT((D58^2)+(D59^2)+(D60^2))","v":20.784609690826528},{"$f":"E58+E59+E60","v":0},{"$f":"SQRT((F58^2)+(F59^2)+(F60^2))","v":20.784609690826528},{"$f":"G58+G59+G60","v":0},{"$f":"SQRT((H58^2)+(H59^2)+(H60^2))","v":32.908965343808667},{"$f":"I58+I59+I60","v":0},{"$f":"SQRT((J58^2)+(J59^2)+(J60^2))","v":20.784609690826528},{"$f":"K58+K59+K60","v":0},{"$f":"SQRT((L58^2)+(L59^2)+(L60^2))","v":20.784609690826528},{"$f":"M58+M59+M60","v":0},{"$f":"SQRT((N58^2)+(N59^2)+(N60^2))","v":20.784609690826528},{"$f":"O58+O59+O60","v":0},{"$f":"SQRT((P58^2)+(P59^2)+(P60^2))","v":20.784609690826528},{"$f":"Q58+Q59+Q60","v":0},{"$f":"SQRT((R58^2)+(R59^2)+(R60^2))","v":20.784609690826528},{"$f":"S58+S59+S60","v":0},{"$f":"SQRT((T58^2)+(T59^2)+(T60^2))","v":20.784609690826528},{"$f":"U58+U59+U60","v":0},{"$f":"SQRT((V58^2)+(V59^2)+(V60^2))","v":29.444863728670914},{"$f":"W58+W59+W60","v":0},{"$f":"SQRT((X58^2)+(X59^2)+(X60^2))","v":20.784609690826528},{"$f":"Y58+Y59+Y60","v":0},{"$f":"SQRT((Z58^2)+(Z59^2)+(Z60^2))","v":20.784609690826528},{"$f":"AA58+AA59+AA60","v":0},{"$f":"SQRT((AB58^2)+(AB59^2)+(AB60^2))","v":20.784609690826528},{"$f":"AC58+AC59+AC60","v":0},{"$f":"SQRT((AD58^2)+(AD59^2)+(AD60^2))","v":20.784609690826528},{"$f":"AE58+AE59+AE60","v":0},{"$f":"SQRT((AF58^2)+(AF59^2)+(AF60^2))","v":20.784609690826528}]
[null,"50.0 percent or more",{"$f":"C60","v":0},12,{"$f":"E60","v":0},12,0,19,0,12,0,12,0,12,0,12,0,12,{"$f":"S60","v":0},12,0,17,0,12,0,12,0,12,0,12,0,12]
[null,"Not Computed",0,12,0,12,0,19,0,12,2,3,0,12,0,12,0,12,0,12,0,17,0,12,0,12,0,12,0,12,0,12]
[null,"$100,000 or more:",4,6,101,83,81,58,5,6,0,12,13,11,45,65,2,3,0,12,149,105,34,21,13,16,74,76,0,12,0,12]
[null,"Less than 30.0 percent",{"$f":"C63+C64+C65","v":4},{"$f":"SQRT((D63^2)+(D64^2)+(D65^2))","v":18},{"$f":"E63+E64+E65","v":101},{"$f":"SQRT((F63^2)+(F64^2)+(F65^2))","v":84.717176534631989},{"$f":"G63+G64+G65","v":81},{"$f":"SQRT((H63^2)+(H64^2)+(H65^2))","v":63.921827257987552},{"$f":"I63+I64+I65","v":2},{"$f":"SQRT((J63^2)+(J64^2)+(J65^2))","v":17.233687939614086},{"$f":"K63+K64+K65","v":0},{"$f":"SQRT((L63^2)+(L64^2)+(L65^2))","v":20.784609690826528},{"$f":"M63+M64+M65","v":13},{"$f":"SQRT((N63^2)+(N64^2)+(N65^2))","v":20.223748416156685},{"$f":"O63+O64+O65","v":45},{"$f":"SQRT((P63^2)+(P64^2)+(P65^2))","v":67.178865724273734},{"$f":"Q63+Q64+Q65","v":0},{"$f":"SQRT((R63^2)+(R64^2)+(R65^2))","v":20.784609690826528},{"$f":"S63+S64+S65","v":0},{"$f":"SQRT((T63^2)+(T64^2)+(T65^2))","v":20.784609690826528},{"$f":"U63+U64+U65","v":149},{"$f":"SQRT((V63^2)+(V64^2)+(V65^2))","v":105.9197809665409},{"$f":"W63+W64+W65","v":34},{"$f":"SQRT((X63^2)+(X64^2)+(X65^2))","v":24.657656011875904},{"$f":"Y63+Y64+Y65","v":13},{"$f":"SQRT((Z63^2)+(Z64^2)+(Z65^2))","v":23.323807579381203},{"$f":"AA63+AA64+AA65","v":74},{"$f":"SQRT((AB63^2)+(AB64^2)+(AB65^2))","v":78.300702423413796},{"$f":"AC63+AC64+AC65","v":0},{"$f":"SQRT((AD63^2)+(AD64^2)+(AD65^2))","v":20.784609690826528},{"$f":"AE63+AE64+AE65","v":0},{"$f":"SQRT((AF63^2)+(AF64^2)+(AF65^2))","v":20.784609690826528}]
[null,"More than 30.0 percent",{"$f":"C66+C67+C68+C69","v":0},{"$f":"SQRT((D66^2)+(D67^2)+(D68^2)+(D69^2))","v":24},{"$f":"E66+E67+E68+E69","v":0},{"$f":"SQRT((F66^2)+(F67^2)+(F68^2)+(F69^2))","v":24},{"$f":"G66+G67+G68+G69","v":0},{"$f":"SQRT((H66^2)+(H67^2)+(H68^2)+(H69^2))","v":38},{"$f":"I66+I67+I68+I69","v":0},{"$f":"SQRT((J66^2)+(J67^2)+(J68^2)+(J69^2))","v":24},{"$f":"K66+K67+K68+K69","v":0},{"$f":"SQRT((L66^2)+(L67^2)+(L68^2)+(L69^2))","v":24},{"$f":"M66+M67+M68+M69","v":0},{"$f":"SQRT((N66^2)+(N67^2)+(N68^2)+(N69^2))","v":24},{"$f":"O66+O67+O68+O69","v":0},{"$f":"SQRT((P66^2)+(P67^2)+(P68^2)+(P69^2))","v":24},{"$f":"Q66+Q67+Q68+Q69","v":0},{"$f":"SQRT((R66^2)+(R67^2)+(R68^2)+(R69^2))","v":24},{"$f":"S66+S67+S68+S69","v":0},{"$f":"SQRT((T66^2)+(T67^2)+(T68^2)+(T69^2))","v":24},{"$f":"U66+U67+U68+U69","v":0},{"$f":"SQRT((V66^2)+(V67^2)+(V68^2)+(V69^2))","v":34},{"$f":"W66+W67+W68+W69","v":0},{"$f":"SQRT((X66^2)+(X67^2)+(X68^2)+(X69^2))","v":24},{"$f":"Y66+Y67+Y68+Y69","v":0},{"$f":"SQRT((Z66^2)+(Z67^2)+(Z68^2)+(Z69^2))","v":24},{"$f":"AA66+AA67+AA68+AA69","v":0},{"$f":"SQRT((AB66^2)+(AB67^2)+(AB68^2)+(AB69^2))","v":24},{"$f":"AC66+AC67+AC68+AC69","v":0},{"$f":"SQRT((AD66^2)+(AD67^2)+(AD68^2)+(AD69^2))","v":24},{"$f":"AE66+AE67+AE68+AE69","v":0},{"$f":"SQRT((AF66^2)+(AF67^2)+(AF68^2)+(AF69^2))","v":24}]
[null,"Less Than 35% of HH Income",{"$f":"C63+C64+C65+C66","v":4},{"$f":"SQRT(((D63^2)+(D64^2)+(D65^2)+(D66^2)))","v":21.633307652783937},{"$f":"E63+E64+E65+E66","v":101},{"$f":"SQRT(((F63^2)+(F64^2)+(F65^2)+(F66^2)))","v":85.562842402528915},{"$f":"G63+G64+G65+G66","v":81},{"$f":"SQRT(((H63^2)+(H64^2)+(H65^2)+(H66^2)))","v":66.685830578916836},{"$f":"I63+I64+I65+I66","v":2},{"$f":"SQRT(((J63^2)+(J64^2)+(J65^2)+(J66^2)))","v":21},{"$f":"K63+K64+K65+K66","v":0},{"$f":"SQRT(((L63^2)+(L64^2)+(L65^2)+(L66^2)))","v":24},{"$f":"M63+M64+M65+M66","v":13},{"$f":"SQRT(((N63^2)+(N64^2)+(N65^2)+(N66^2)))","v":23.515952032609693},{"$f":"O63+O64+O65+O66","v":45},{"$f":"SQRT(((P63^2)+(P64^2)+(P65^2)+(P66^2)))","v":68.24221567329127},{"$f":"Q63+Q64+Q65+Q66","v":0},{"$f":"SQRT(((R63^2)+(R64^2)+(R65^2)+(R66^2)))","v":24},{"$f":"S63+S64+S65+S66","v":0},{"$f":"SQRT(((T63^2)+(T64^2)+(T65^2)+(T66^2)))","v":24},{"$f":"U63+U64+U65+U66","v":149},{"$f":"SQRT(((V63^2)+(V64^2)+(V65^2)+(V66^2)))","v":107.27534665523109},{"$f":"W63+W64+W65+W66","v":34},{"$f":"SQRT(((X63^2)+(X64^2)+(X65^2)+(X66^2)))","v":27.422618401604176},{"$f":"Y63+Y64+Y65+Y66","v":13},{"$f":"SQRT(((Z63^2)+(Z64^2)+(Z65^2)+(Z66^2)))","v":26.229754097208001},{"$f":"AA63+AA64+AA65+AA66","v":74},{"$f":"SQRT(((AB63^2)+(AB64^2)+(AB65^2)+(AB66^2)))","v":79.214897588774292},{"$f":"AC63+AC64+AC65+AC66","v":0},{"$f":"SQRT(((AD63^2)+(AD64^2)+(AD65^2)+(AD66^2)))","v":24},{"$f":"AE63+AE64+AE65+AE66","v":0},{"$f":"SQRT(((AF63^2)+(AF64^2)+(AF65^2)+(AF66^2)))","v":24}]
[null,"35.0 percent or more",{"$f":"C67+C68+C69","v":0},{"$f":"SQRT((D67^2)+(D68^2)+(D69^2))","v":20.784609690826528},{"$f":"E67+E68+E69","v":0},{"$f":"SQRT((F67^2)+(F68^2)+(F69^2))","v":20.784609690826528},{"$f":"G67+G68+G69","v":0},{"$f":"SQRT((H67^2)+(H68^2)+(H69^2))","v":32.908965343808667},{"$f":"I67+I68+I69","v":0},{"$f":"SQRT((J67^2)+(J68^2)+(J69^2))","v":20.784609690826528},{"$f":"K67+K68+K69","v":0},{"$f":"SQRT((L67^2)+(L68^2)+(L69^2))","v":20.784609690826528},{"$f":"M67+M68+M69","v":0},{"$f":"SQRT((N67^2)+(N68^2)+(N69^2))","v":20.784609690826528},{"$f":"O67+O68+O69","v":0},{"$f":"SQRT((P67^2)+(P68^2)+(P69^2))","v":20.784609690826528},{"$f":"Q67+Q68+Q69","v":0},{"$f":"SQRT((R67^2)+(R68^2)+(R69^2))","v":20.784609690826528},{"$f":"S67+S68+S69","v":0},{"$f":"SQRT((T67^2)+(T68^2)+(T69^2))","v":20.784609690826528},{"$f":"U67+U68+U69","v":0},{"$f":"SQRT((V67^2)+(V68^2)+(V69^2))","v":29.444863728670914},{"$f":"W67+W68+W69","v":0},{"$f":"SQRT((X67^2)+(X68^2)+(X69^2))","v":20.784609690826528},{"$f":"Y67+Y68+Y69","v":0},{"$f":"SQRT((Z67^2)+(Z68^2)+(Z69^2))","v":20.784609690826528},{"$f":"AA67+AA68+AA69","v":0},{"$f":"SQRT((AB67^2)+(AB68^2)+(AB69^2))","v":20.784609690826528},{"$f":"AC67+AC68+AC69","v":0},{"$f":"SQRT((AD67^2)+(AD68^2)+(AD69^2))","v":20.784609690826528},{"$f":"AE67+AE68+AE69","v":0},{"$f":"SQRT((AF67^2)+(AF68^2)+(AF69^2))","v":20.784609690826528}]
[null,"50.0 percent or more",{"$f":"C69","v":0},12,0,{"$f":"F69","v":12},{"$f":"G69","v":0},19,{"$f":"I69","v":0},12,{"$f":"K69","v":0},12,{"$f":"M69","v":0},12,{"$f":"O69","v":0},12,{"$f":"Q69","v":0},12,{"$f":"S69","v":0},12,{"$f":"U69","v":0},17,{"$f":"W69","v":0},12,{"$f":"Y69","v":0},12,{"$f":"AA69","v":0},12,{"$f":"AC69","v":0},12,{"$f":"AE69","v":0},12]
[null,"Not Computed",0,12,0,12,{"$f":"G70","v":0},19,{"$f":"I70","v":3},4,{"$f":"K70","v":0},12,{"$f":"M70","v":0},12,{"$f":"O70","v":0},12,{"$f":"Q70","v":2},3,{"$f":"S70","v":0},12,{"$f":"U70","v":0},17,{"$f":"W70","v":0},12,{"$f":"Y70","v":0},12,{"$f":"AA70","v":0},12,{"$f":"AC70","v":0},12,{"$f":"AE70","v":0},12]
[]
[]
[null,"Calculated GROSS RENT AS A PERCENTAGE OF HOUSEHOLD INCOME IN THE PAST 12 MONTHS"]
[null,"Universe:  RENTER-OCCUPIED HOUSING UNITS"]
[null,"Data Set: 2018-2022 American Community Survey 5-Year Estimates"]
[]
[null,null,"Acworth",null,"Charlestown",null,"Claremont",null,"Cornish",null,"Croydon",null,"Goshen",null,"Grantham",null,"Langdon",null,"Lempster",null,"Newport",null,"Plainfield",null,"Springfield",null,"Sunapee",null,"Unity",null,"Washington"]
[null,null,"Estimate","Margin Of Error","Estimate","Margin Of Error","Estimate","Margin Of Error","Estimate","Margin Of Error","Estimate","Margin Of Error","Estimate","Margin Of Error","Estimate","Margin Of Error","Estimate","Margin Of Error","Estimate","Margin Of Error","Estimate","Margin Of Error","Estimate","Margin Of Error","Estimate","Margin Of Error","Estimate","Margin Of Error","Estimate","Margin Of Error"]
[null,{"$f":"B92","v":"Total:"},{"$f":"C92","v":23},{"$f":"D92","v":14},{"$f":"E92","v":519},167,2121,312,25,13,21,13,53,22,58,72,21,15,17,19,999,259,71,37,30,24,228,97,31,19,32,23]
[null,"Less than 30.0 percent",{"$f":"C136+C129+C122+C115+C108+C101+C94","v":11},{"$f":"SQRT((D136^2)+(D129^2)+(D122^2)+(D115^2)+(D108^2)+(D101^2)+(D94^2))","v":50.179677161177509},{"$f":"E136+E129+E122+E115+E108+E101+E94","v":235},{"$f":"SQRT((F136^2)+(F129^2)+(F122^2)+(F115^2)+(F108^2)+(F101^2)+(F94^2))","v":122.16791722870617},{"$f":"G136+G129+G122+G115+G108+G101+G94","v":786},{"$f":"SQRT((H136^2)+(H129^2)+(H122^2)+(H115^2)+(H108^2)+(H101^2)+(H94^2))","v":224.4638055455712},{"$f":"I136+I129+I122+I115+I108+I101+I94","v":6},{"$f":"SQRT((J136^2)+(J129^2)+(J122^2)+(J115^2)+(J108^2)+(J101^2)+(J94^2))","v":51.244511901275828},{"$f":"K136+K129+K122+K115+K108+K101+K94","v":7},{"$f":"SQRT((L136^2)+(L129^2)+(L122^2)+(L115^2)+(L108^2)+(L101^2)+(L94^2))","v":53.065996645686397},{"$f":"M136+M129+M122+M115+M108+M101+M94","v":16},{"$f":"SQRT((N136^2)+(N129^2)+(N122^2)+(N115^2)+(N108^2)+(N101^2)+(N94^2))","v":53.600373133029585},{"$f":"O136+O129+O122+O115+O108+O101+O94","v":45},{"$f":"SQRT((P136^2)+(P129^2)+(P122^2)+(P115^2)+(P108^2)+(P101^2)+(P94^2))","v":84.291162051546067},{"$f":"Q136+Q129+Q122+Q115+Q108+Q101+Q94","v":9},{"$f":"SQRT((R136^2)+(R129^2)+(R122^2)+(R115^2)+(R108^2)+(R101^2)+(R94^2))","v":53.338541412378348},{"$f":"S136+S129+S122+S115+S108+S101+S94","v":10},{"$f":"SQRT((T136^2)+(T129^2)+(T122^2)+(T115^2)+(T108^2)+(T101^2)+(T94^2))","v":56},{"$f":"U136+U129+U122+U115+U108+U101+U94","v":517},{"$f":"SQRT((V136^2)+(V129^2)+(V122^2)+(V115^2)+(V108^2)+(V101^2)+(V94^2))","v":220.99773754498031},{"$f":"W136+W129+W122+W115+W108+W101+W94","v":40},{"$f":"SQRT((X136^2)+(X129^2)+(X122^2)+(X115^2)+(X108^2)+(X101^2)+(X94^2))","v":56.178287620752556},{"$f":"Y136+Y129+Y122+Y115+Y108+Y101+Y94","v":19},{"$f":"SQRT((Z136^2)+(Z129^2)+(Z122^2)+(Z115^2)+(Z108^2)+(Z101^2)+(Z94^2))","v":55.794264938253285},{"$f":"AA136+AA129+AA122+AA115+AA108+AA101+AA94","v":109},{"$f":"SQRT((AB136^2)+(AB129^2)+(AB122^2)+(AB115^2)+(AB108^2)+(AB101^2)+(AB94^2))","v":96.379458392335863},{"$f":"AC136+AC129+AC122+AC115+AC108+AC101+AC94","v":5},{"$f":"SQRT((AD136^2)+(AD129^2)+(AD122^2)+(AD115^2)+(AD108^2)+(AD101^2)+(AD94^2))","v":52.611785751863621},{"$f":"AE136+AE129+AE122+AE115+AE108+AE101+AE94","v":23},{"$f":"SQRT((AF136^2)+(AF129^2)+(AF122^2)+(AF115^2)+(AF108^2)+(AF101^2)+(AF94^2))","v":54.415071441651165}]
[null,"More than 30.0 percent",{"$f":"C137+C130+C123+C116+C109+C102+C95","v":2},{"$f":"SQRT((D137^2)+(D130^2)+(D123^2)+(D116^2)+(D109^2)+(D102^2)+(D95^2))","v":62.425956140054431},{"$f":"E137+E130+E123+E116+E109+E102+E95","v":170},{"$f":"SQRT((F137^2)+(F130^2)+(F123^2)+(F116^2)+(F109^2)+(F102^2)+(F95^2))","v":124.0725594158515},{"$f":"G137+G130+G123+G116+G109+G102+G95","v":1335},{"$f":"SQRT((H137^2)+(H130^2)+(H123^2)+(H116^2)+(H109^2)+(H102^2)+(H95^2))","v":339.66748446090628},{"$f":"I137+I130+I123+I116+I109+I102+I95","v":13},{"$f":"SQRT((J137^2)+(J130^2)+(J123^2)+(J116^2)+(J109^2)+(J102^2)+(J95^2))","v":61.789966823101629},{"$f":"K137+K130+K123+K116+K109+K102+K95","v":3},{"$f":"SQRT((L137^2)+(L130^2)+(L123^2)+(L116^2)+(L109^2)+(L102^2)+(L95^2))","v":61.351446600711867},{"$f":"M137+M130+M123+M116+M109+M102+M95","v":23},{"$f":"SQRT((N137^2)+(N130^2)+(N123^2)+(N116^2)+(N109^2)+(N102^2)+(N95^2))","v":63.796551630946325},{"$f":"O137+O130+O123+O116+O109+O102+O95","v":13},{"$f":"SQRT((P137^2)+(P130^2)+(P123^2)+(P116^2)+(P109^2)+(P102^2)+(P95^2))","v":66.121101019266163},{"$f":"Q137+Q130+Q123+Q116+Q109+Q102+Q95","v":10},{"$f":"SQRT((R137^2)+(R130^2)+(R123^2)+(R116^2)+(R109^2)+(R102^2)+(R95^2))","v":60.415229867972862},{"$f":"S137+S130+S123+S116+S109+S102+S95","v":7},{"$f":"SQRT((T137^2)+(T130^2)+(T123^2)+(T116^2)+(T109^2)+(T102^2)+(T95^2))","v":62.864934582006846},{"$f":"U137+U130+U123+U116+U109+U102+U95","v":447},{"$f":"SQRT((V137^2)+(V130^2)+(V123^2)+(V116^2)+(V109^2)+(V102^2)+(V95^2))","v":209.39675260137153},{"$f":"W137+W130+W123+W116+W109+W102+W95","v":31},{"$f":"SQRT((X137^2)+(X130^2)+(X123^2)+(X116^2)+(X109^2)+(X102^2)+(X95^2))","v":63.616035714275689},{"$f":"Y137+Y130+Y123+Y116+Y109+Y102+Y95","v":3},{"$f":"SQRT((Z137^2)+(Z130^2)+(Z123^2)+(Z116^2)+(Z109^2)+(Z102^2)+(Z95^2))","v":62.553976692133652},{"$f":"AA137+AA130+AA123+AA116+AA109+AA102+AA95","v":98},{"$f":"SQRT((AB137^2)+(AB130^2)+(AB123^2)+(AB116^2)+(AB109^2)+(AB102^2)+(AB95^2))","v":87.149297185921128},{"$f":"AC137+AC130+AC123+AC116+AC109+AC102+AC95","v":7},{"$f":"SQRT((AD137^2)+(AD130^2)+(AD123^2)+(AD116^2)+(AD109^2)+(AD102^2)+(AD95^2))","v":61.611687202997452},{"$f":"AE137+AE130+AE123+AE116+AE109+AE102+AE95","v":9},{"$f":"SQRT((AF137^2)+(AF130^2)+(AF123^2)+(AF116^2)+(AF109^2)+(AF102^2)+(AF95^2))","v":63.906181234681831}]
[null,"Less Than 35% of HH Income",{"$f":"C138+C131+C124+C117+C110+C103+C96","v":11},{"$f":"SQRT((D138^2)+(D131^2)+(D124^2)+(D117^2)+(D110^2)+(D103^2)+(D96^2))","v":59.38013135721409},{"$f":"E138+E131+E124+E117+E110+E103+E96","v":258},{"$f":"SQRT((F138^2)+(F131^2)+(F124^2)+(F117^2)+(F110^2)+(F103^2)+(F96^2))","v":130.70960178961604},{"$f":"G138+G131+G124+G117+G110+G103+G96","v":1019},{"$f":"SQRT((H138^2)+(H131^2)+(H124^2)+(H117^2)+(H110^2)+(H103^2)+(H96^2))","v":262.52809373474679},{"$f":"I138+I131+I124+I117+I110+I103+I96","v":6},{"$f":"SQRT((J138^2)+(J131^2)+(J124^2)+(J117^2)+(J110^2)+(J103^2)+(J96^2))","v":60.282667492406141},{"$f":"K138+K131+K124+K117+K110+K103+K96","v":7},{"$f":"SQRT((L138^2)+(L131^2)+(L124^2)+(L117^2)+(L110^2)+(L103^2)+(L96^2))","v":61.838499334961227},{"$f":"M138+M131+M124+M117+M110+M103+M96","v":26},{"$f":"SQRT((N138^2)+(N131^2)+(N124^2)+(N117^2)+(N110^2)+(N103^2)+(N96^2))","v":63.450768316861222},{"$f":"O138+O131+O124+O117+O110+O103+O96","v":45},{"$f":"SQRT((P138^2)+(P131^2)+(P124^2)+(P117^2)+(P110^2)+(P103^2)+(P96^2))","v":90.072193267400792},{"$f":"Q138+Q131+Q124+Q117+Q110+Q103+Q96","v":12},{"$f":"SQRT((R138^2)+(R131^2)+(R124^2)+(R117^2)+(R110^2)+(R103^2)+(R96^2))","v":61.032778078668514},{"$f":"S138+S131+S124+S117+S110+S103+S96","v":17},{"$f":"SQRT((T138^2)+(T131^2)+(T124^2)+(T117^2)+(T110^2)+(T103^2)+(T96^2))","v":63.749509802036911},{"$f":"U138+U131+U124+U117+U110+U103+U96","v":603},{"$f":"SQRT((V138^2)+(V131^2)+(V124^2)+(V117^2)+(V110^2)+(V103^2)+(V96^2))","v":238.69855466675955},{"$f":"W138+W131+W124+W117+W110+W103+W96","v":49},{"$f":"SQRT((X138^2)+(X131^2)+(X124^2)+(X117^2)+(X110^2)+(X103^2)+(X96^2))","v":65.153664517047702},{"$f":"Y138+Y131+Y124+Y117+Y110+Y103+Y96","v":19},{"$f":"SQRT((Z138^2)+(Z131^2)+(Z124^2)+(Z117^2)+(Z110^2)+(Z103^2)+(Z96^2))","v":64.195015382816138},{"$f":"AA138+AA131+AA124+AA117+AA110+AA103+AA96","v":132},{"$f":"SQRT((AB138^2)+(AB131^2)+(AB124^2)+(AB117^2)+(AB110^2)+(AB103^2)+(AB96^2))","v":102.96601381038307},{"$f":"AC138+AC131+AC124+AC117+AC110+AC103+AC96","v":5},{"$f":"SQRT((AD138^2)+(AD131^2)+(AD124^2)+(AD117^2)+(AD110^2)+(AD103^2)+(AD96^2))","v":61.449165982948863},{"$f":"AE138+AE131+AE124+AE117+AE110+AE103+AE96","v":23},{"$f":"SQRT((AF138^2)+(AF131^2)+(AF124^2)+(AF117^2)+(AF110^2)+(AF103^2)+(AF96^2))","v":63}]
[null,"35.0 percent or more",{"$f":"C139+C132+C125+C118+C111+C104+C97","v":2},{"$f":"SQRT((D139^2)+(D132^2)+(D125^2)+(D118^2)+(D111^2)+(D104^2)+(D97^2))","v":53.749418601506754},{"$f":"E139+E132+E125+E118+E111+E104+E97","v":147},{"$f":"SQRT((F139^2)+(F132^2)+(F125^2)+(F118^2)+(F111^2)+(F104^2)+(F97^2))","v":115.03912377969506},{"$f":"G139+G132+G125+G118+G111+G104+G97","v":1102},{"$f":"SQRT((H139^2)+(H132^2)+(H125^2)+(H118^2)+(H111^2)+(H104^2)+(H97^2))","v":311.18643929323139},{"$f":"I139+I132+I125+I118+I111+I104+I97","v":13},{"$f":"SQRT((J139^2)+(J132^2)+(J125^2)+(J118^2)+(J111^2)+(J104^2)+(J97^2))","v":53.009433122794285},{"$f":"K139+K132+K125+K118+K111+K104+K97","v":3},{"$f":"SQRT((L139^2)+(L132^2)+(L125^2)+(L118^2)+(L111^2)+(L104^2)+(L97^2))","v":52.497618993626752},{"$f":"M139+M132+M125+M118+M111+M104+M97","v":13},{"$f":"SQRT((N139^2)+(N132^2)+(N125^2)+(N118^2)+(N111^2)+(N104^2)+(N97^2))","v":54.009258465563107},{"$f":"O139+O132+O125+O118+O111+O104+O97","v":13},{"$f":"SQRT((P139^2)+(P132^2)+(P125^2)+(P118^2)+(P111^2)+(P104^2)+(P97^2))","v":58},{"$f":"Q139+Q132+Q125+Q118+Q111+Q104+Q97","v":7},{"$f":"SQRT((R139^2)+(R132^2)+(R125^2)+(R118^2)+(R111^2)+(R104^2)+(R97^2))","v":52.630789467763066},{"$f":"S139+S132+S125+S118+S111+S104+S97","v":0},{"$f":"SQRT((T139^2)+(T132^2)+(T125^2)+(T118^2)+(T111^2)+(T104^2)+(T97^2))","v":54.990908339470082},{"$f":"U139+U132+U125+U118+U111+U104+U97","v":361},{"$f":"SQRT((V139^2)+(V132^2)+(V125^2)+(V118^2)+(V111^2)+(V104^2)+(V97^2))","v":188.9708972302349},{"$f":"W139+W132+W125+W118+W111+W104+W97","v":22},{"$f":"SQRT((X139^2)+(X132^2)+(X125^2)+(X118^2)+(X111^2)+(X104^2)+(X97^2))","v":54.38749856354859},{"$f":"Y139+Y132+Y125+Y118+Y111+Y104+Y97","v":3},{"$f":"SQRT((Z139^2)+(Z132^2)+(Z125^2)+(Z118^2)+(Z111^2)+(Z104^2)+(Z97^2))","v":53.898051912847464},{"$f":"AA139+AA132+AA125+AA118+AA111+AA104+AA97","v":75},{"$f":"SQRT((AB139^2)+(AB132^2)+(AB125^2)+(AB118^2)+(AB111^2)+(AB104^2)+(AB97^2))","v":79.259068881737434},{"$f":"AC139+AC132+AC125+AC118+AC111+AC104+AC97","v":7},{"$f":"SQRT((AD139^2)+(AD132^2)+(AD125^2)+(AD118^2)+(AD111^2)+(AD104^2)+(AD97^2))","v":52.801515129776341},{"$f":"AE139+AE132+AE125+AE118+AE111+AE104+AE97","v":9},{"$f":"SQRT((AF139^2)+(AF132^2)+(AF125^2)+(AF118^2)+(AF111^2)+(AF104^2)+(AF97^2))","v":55.461698495448189}]
[null,"50.0 percent or more",{"$f":"C140+C133+C126+C119+C112+C105+C98","v":0},{"$f":"SQRT((D140^2)+(D133^2)+(D126^2)+(D119^2)+(D112^2)+(D105^2)+(D98^2))","v":31.749015732775089},{"$f":"E140+E133+E126+E119+E112+E105+E98","v":112},{"$f":"SQRT((F140^2)+(F133^2)+(F126^2)+(F119^2)+(F112^2)+(F105^2)+(F98^2))","v":90.072193267400792},{"$f":"G140+G133+G126+G119+G112+G105+G98","v":682},{"$f":"SQRT((H140^2)+(H133^2)+(H126^2)+(H119^2)+(H112^2)+(H105^2)+(H98^2))","v":227.73669006113178},{"$f":"I140+I133+I126+I119+I112+I105+I98","v":13},{"$f":"SQRT((J140^2)+(J133^2)+(J126^2)+(J119^2)+(J112^2)+(J105^2)+(J98^2))","v":28.178005607210743},{"$f":"K140+K133+K126+K119+K112+K105+K98","v":3},{"$f":"SQRT((L140^2)+(L133^2)+(L126^2)+(L119^2)+(L112^2)+(L105^2)+(L98^2))","v":27.202941017470888},{"$f":"M140+M133+M126+M119+M112+M105+M98","v":13},{"$f":"SQRT((N140^2)+(N133^2)+(N126^2)+(N119^2)+(N112^2)+(N105^2)+(N98^2))","v":30.016662039607269},{"$f":"O140+O133+O126+O119+O112+O105+O98","v":0},{"$f":"SQRT((P140^2)+(P133^2)+(P126^2)+(P119^2)+(P112^2)+(P105^2)+(P98^2))","v":31.749015732775089},{"$f":"Q140+Q133+Q126+Q119+Q112+Q105+Q98","v":0},{"$f":"SQRT((R140^2)+(R133^2)+(R126^2)+(R119^2)+(R112^2)+(R105^2)+(R98^2))","v":31.749015732775089},{"$f":"S140+S133+S126+S119+S112+S105+S98","v":0},{"$f":"SQRT((T140^2)+(T133^2)+(T126^2)+(T119^2)+(T112^2)+(T105^2)+(T98^2))","v":31.749015732775089},{"$f":"U140+U133+U126+U119+U112+U105+U98","v":164},{"$f":"SQRT((V140^2)+(V133^2)+(V126^2)+(V119^2)+(V112^2)+(V105^2)+(V98^2))","v":118.2285921425101},{"$f":"W140+W133+W126+W119+W112+W105+W98","v":11},{"$f":"SQRT((X140^2)+(X133^2)+(X126^2)+(X119^2)+(X112^2)+(X105^2)+(X98^2))","v":32.557641192199412},{"$f":"Y140+Y133+Y126+Y119+Y112+Y105+Y98","v":3},{"$f":"SQRT((Z140^2)+(Z133^2)+(Z126^2)+(Z119^2)+(Z112^2)+(Z105^2)+(Z98^2))","v":29.816103031751148},{"$f":"AA140+AA133+AA126+AA119+AA112+AA105+AA98","v":44},{"$f":"SQRT((AB140^2)+(AB133^2)+(AB126^2)+(AB119^2)+(AB112^2)+(AB105^2)+(AB98^2))","v":53.962950252928167},{"$f":"AC140+AC133+AC126+AC119+AC112+AC105+AC98","v":4},{"$f":"SQRT((AD140^2)+(AD133^2)+(AD126^2)+(AD119^2)+(AD112^2)+(AD105^2)+(AD98^2))","v":30},{"$f":"AE140+AE133+AE126+AE119+AE112+AE105+AE98","v":9},{"$f":"SQRT((AF140^2)+(AF133^2)+(AF126^2)+(AF119^2)+(AF112^2)+(AF105^2)+(AF98^2))","v":32.557641192199412}]
[null,"Not Computed",{"$f":"C140+C134+C127+C120+C113+C106+C99","v":10},{"$f":"SQRT((D140^2)+(D134^2)+(D127^2)+(D120^2)+(D113^2)+(D106^2)+(D99^2))","v":28.913664589601922},{"$f":"E140+E134+E127+E120+E113+E106+E99","v":114},{"$f":"SQRT((F140^2)+(F134^2)+(F127^2)+(F120^2)+(F113^2)+(F106^2)+(F99^2))","v":96.648848932617923},{"$f":"G140+G134+G127+G120+G113+G106+G99","v":0},{"$f":"SQRT((H140^2)+(H134^2)+(H127^2)+(H120^2)+(H113^2)+(H106^2)+(H99^2))","v":50.269274910227224},{"$f":"I140+I134+I127+I120+I113+I106+I99","v":3},{"$f":"SQRT((J140^2)+(J134^2)+(J127^2)+(J120^2)+(J113^2)+(J106^2)+(J99^2))","v":29.664793948382652},{"$f":"K140+K134+K127+K120+K113+K106+K99","v":11},{"$f":"SQRT((L140^2)+(L134^2)+(L127^2)+(L120^2)+(L113^2)+(L106^2)+(L99^2))","v":25.651510676761319},{"$f":"M140+M134+M127+M120+M113+M106+M99","v":14},{"$f":"SQRT((N140^2)+(N134^2)+(N127^2)+(N120^2)+(N113^2)+(N106^2)+(N99^2))","v":29.154759474226502},{"$f":"O140+O134+O127+O120+O113+O106+O99","v":0},{"$f":"SQRT((P140^2)+(P134^2)+(P127^2)+(P120^2)+(P113^2)+(P106^2)+(P99^2))","v":31.749015732775089},{"$f":"Q140+Q134+Q127+Q120+Q113+Q106+Q99","v":0},{"$f":"SQRT((R140^2)+(R134^2)+(R127^2)+(R120^2)+(R113^2)+(R106^2)+(R99^2))","v":31.749015732775089},{"$f":"S140+S134+S127+S120+S113+S106+S99","v":0},{"$f":"SQRT((T140^2)+(T134^2)+(T127^2)+(T120^2)+(T113^2)+(T106^2)+(T99^2))","v":31.749015732775089},{"$f":"U140+U134+U127+U120+U113+U106+U99","v":35},{"$f":"SQRT((V140^2)+(V134^2)+(V127^2)+(V120^2)+(V113^2)+(V106^2)+(V99^2))","v":56.373752757821613},{"$f":"W140+W134+W127+W120+W113+W106+W99","v":0},{"$f":"SQRT((X140^2)+(X134^2)+(X127^2)+(X120^2)+(X113^2)+(X106^2)+(X99^2))","v":31.749015732775089},{"$f":"Y140+Y134+Y127+Y120+Y113+Y106+Y99","v":8},{"$f":"SQRT((Z140^2)+(Z134^2)+(Z127^2)+(Z120^2)+(Z113^2)+(Z106^2)+(Z99^2))","v":32.557641192199412},{"$f":"AA140+AA134+AA127+AA120+AA113+AA106+AA99","v":21},{"$f":"SQRT((AB140^2)+(AB134^2)+(AB127^2)+(AB120^2)+(AB113^2)+(AB106^2)+(AB99^2))","v":44.192759587968709},{"$f":"AC140+AC134+AC127+AC120+AC113+AC106+AC99","v":19},{"$f":"SQRT((AD140^2)+(AD134^2)+(AD127^2)+(AD120^2)+(AD113^2)+(AD106^2)+(AD99^2))","v":28.913664589601922},{"$f":"AE140+AE134+AE127+AE120+AE113+AE106+AE99","v":0},{"$f":"SQRT((AF140^2)+(AF134^2)+(AF127^2)+(AF120^2)+(AF113^2)+(AF106^2)+(AF99^2))","v":31.749015732775089}]
[]
[]
[]
[]
[]
[]
[]
[]
[]
[]
[]
[null,"B25074. HOUSEHOLD INCOME BY GROSS RENT AS A PERCENTAGE OF HOUSEHOLD INCOME IN THE PAST 12 MONTHS"]
[null,"Universe:  RENTER-OCCUPIED HOUSING UNITS"]
[null,"Data Set: 2013-2017 American Community Survey 5-Year Estimates",null,null,null,null,{"$f":"'RentalHousingCost-Prior5Yr'!D41","v":"Income in 2017 Inflation Adjusted Dollars"}]
[]
[null,null,"Acworth",null,"Charlestown",null,"Claremont",null,"Cornish",null,"Croydon",null,"Goshen",null,"Grantham",null,"Langdon",null,"Lempster",null,"Newport",null,"Plainfield",null,"Springfield",null,"Sunapee",null,"Unity",null,"Washington"]
[null,null,"Estimate","Margin Of Error","Estimate","Margin Of Error","Estimate","Margin Of Error","Estimate","Margin Of Error","Estimate","Margin Of Error","Estimate","Margin Of Error","Estimate","Margin Of Error","Estimate","Margin Of Error","Estimate","Margin Of Error","Estimate","Margin Of Error","Estimate","Margin Of Error","Estimate","Margin Of Error","Estimate","Margin Of Error","Estimate","Margin Of Error","Estimate","Margin Of Error"]
[null,"Total:",39,20,429,133,2404,276,81,38,33,21,65,32,103,80,26,18,22,14,780,174,99,45,55,34,504,158,37,19,49,36]
[null,"Less than $10,000:",2,3,8,11,269,155,4,6,0,11,2,3,0,11,5,8,0,11,187,104,5,8,7,11,35,57,0,11,0,11]
[null,"Less than 20.0 percent",0,11,0,16,9,15,0,11,0,11,0,11,0,11,0,11,0,11,29,32,0,11,0,11,0,11,0,11,0,11]
[null,"20.0 to 24.9 percent",0,11,0,16,0,18,0,11,0,11,0,11,0,11,0,11,0,11,0,16,0,11,0,11,0,11,0,11,0,11]
[null,"25.0 to 29.9 percent",0,11,0,16,15,25,0,11,0,11,0,11,0,11,0,11,0,11,0,16,0,11,0,11,0,11,0,11,0,11]
[null,"30.0 to 34.9 percent",0,11,0,16,82,104,0,11,0,11,0,11,0,11,0,11,0,11,0,16,0,11,0,11,0,11,0,11,0,11]
[null,"35.0 to 39.9 percent",0,11,0,16,7,11,0,11,0,11,0,11,0,11,0,11,0,11,42,68,0,11,0,11,0,11,0,11,0,11]
[null,"40.0 to 49.9 percent",0,11,0,16,0,18,0,11,0,11,0,11,0,11,0,11,0,11,0,16,0,11,0,11,0,11,0,11,0,11]
[null,"50.0 percent or more",0,11,0,16,39,31,4,6,0,11,2,3,0,11,5,8,0,11,116,89,0,11,0,11,35,57,0,11,0,11]
[null,"Not computed",2,3,8,11,117,99,0,11,0,11,0,11,0,11,0,11,0,11,0,16,5,8,7,11,0,11,0,11,0,11]
[null,"$10,000 to $19,999:",0,11,163,95,402,137,14,11,4,6,2,4,0,11,0,11,0,11,113,90,0,11,0,11,60,64,0,11,6,6]
[null,"Less than 20.0 percent",0,11,0,16,0,18,0,11,0,11,0,11,0,11,0,11,0,11,0,16,0,11,0,11,0,11,0,11,0,11]
[null,"20.0 to 24.9 percent",0,11,15,24,35,47,0,11,0,11,0,11,0,11,0,11,0,11,0,16,0,11,0,11,0,11,0,11,0,11]
[null,"25.0 to 29.9 percent",0,11,0,16,57,49,0,11,0,11,0,11,0,11,0,11,0,11,14,22,0,11,0,11,0,11,0,11,0,11]
[null,"30.0 to 34.9 percent",0,11,35,56,36,28,0,11,0,11,0,11,0,11,0,11,0,11,0,16,0,11,0,11,0,11,0,11,0,11]
[null,"35.0 to 39.9 percent",0,11,0,16,49,51,0,11,0,11,0,11,0,11,0,11,0,11,45,71,0,11,0,11,0,11,0,11,0,11]
[null,"40.0 to 49.9 percent",0,11,0,16,32,38,0,11,2,4,0,11,0,11,0,11,0,11,0,16,0,11,0,11,0,11,0,11,0,11]
[null,"50.0 percent or more",0,11,79,76,193,76,11,9,2,4,2,4,0,11,0,11,0,11,31,39,0,11,0,11,60,64,0,11,0,11]
[null,"Not computed",0,11,34,39,0,18,3,5,0,11,0,11,0,11,0,11,0,11,23,26,0,11,0,11,0,11,0,11,6,6]
[null,"$20,000 to $34,999:",8,10,91,63,599,160,6,7,0,11,11,11,0,11,0,11,6,6,171,92,5,7,0,11,147,106,17,13,7,7]
[null,"Less than 20.0 percent",0,11,13,29,20,25,0,11,0,11,0,11,0,11,0,11,0,11,15,25,0,11,0,11,0,11,0,11,0,11]
[null,"20.0 to 24.9 percent",0,11,18,29,28,26,0,11,0,11,0,11,0,11,0,11,3,4,0,16,0,11,0,11,0,11,0,11,0,11]
[null,"25.0 to 29.9 percent",0,11,0,16,42,30,0,11,0,11,0,11,0,11,0,11,0,11,0,16,0,11,0,11,0,11,0,11,0,11]
[null,"30.0 to 34.9 percent",0,11,16,27,134,81,0,11,0,11,0,11,0,11,0,11,0,11,38,40,0,11,0,11,35,53,0,11,0,11]
[null,"35.0 to 39.9 percent",0,11,20,33,87,59,0,11,0,11,0,11,0,11,0,11,0,11,27,31,0,11,0,11,0,11,0,11,0,11]
[null,"40.0 to 49.9 percent",8,10,0,16,127,78,3,5,0,11,0,11,0,11,0,11,0,11,0,16,5,7,0,11,10,16,6,8,0,11]
[null,"50.0 percent or more",0,11,24,30,131,92,3,5,0,11,7,11,0,11,0,11,0,11,42,40,0,11,0,11,99,85,8,12,0,11]
[null,"Not computed",0,11,0,16,30,29,0,11,0,11,4,4,0,11,0,11,3,4,49,58,0,11,0,11,3,6,3,4,7,7]
[null,"$35,000 to $49,999:",8,6,28,34,478,180,3,5,0,11,14,16,17,28,0,11,8,6,72,79,15,10,14,16,90,74,7,9,0,11]
[null,"Less than 20.0 percent",0,11,13,21,46,38,3,5,0,11,0,11,17,28,0,11,2,3,12,20,0,11,0,11,12,20,0,11,0,11]
[null,"20.0 to 24.9 percent",3,4,15,25,97,63,0,11,0,11,0,11,0,11,0,11,0,11,60,76,0,11,9,14,0,11,0,11,0,11]
[null,"25.0 to 29.9 percent",0,11,0,16,163,80,0,11,0,11,0,11,0,11,0,11,3,4,0,16,4,7,0,11,0,11,7,9,0,11]
[null,"30.0 to 34.9 percent",2,3,0,16,119,93,0,11,0,11,7,11,0,11,0,11,0,11,0,16,6,8,0,11,60,68,0,11,0,11]
[null,"Income in 2009 Inflation Adjusted Dollars",0,11,0,16,42,55,0,11,0,11,7,11,0,11,0,11,0,11,0,16,0,11,0,11,9,16,0,11,0,11]
[null,"40.0 to 49.9 percent",0,11,0,16,0,18,0,11,0,11,0,11,0,11,0,11,3,4,0,16,5,7,5,8,9,14,0,11,0,11]
[null,"50.0 percent or more",1,3,0,16,0,18,0,11,0,11,0,11,0,11,0,11,0,11,0,16,0,11,0,11,0,11,0,11,0,11]
[null,"Not computed",2,3,0,16,11,19,0,11,0,11,0,11,0,11,0,11,0,11,0,16,0,11,0,11,0,11,0,11,0,11]
[null,"$50,000 to $74,999:",13,12,90,74,418,170,40,35,11,15,21,18,0,11,13,13,3,4,115,98,43,35,9,9,120,68,9,9,10,8]
[null,"Less than 20.0 percent",0,11,71,76,270,160,3,5,0,11,9,11,0,11,8,10,3,4,0,16,17,21,0,11,68,61,0,11,0,11]
[null,"20.0 to 24.9 percent",3,6,0,16,122,66,22,27,9,14,7,12,0,11,5,9,0,11,84,92,5,8,0,11,24,26,5,6,4,5]
[null,"25.0 to 29.9 percent",6,10,19,31,26,23,15,22,2,4,5,8,0,11,0,11,0,11,31,41,0,11,2,5,7,11,4,7,4,5]
[null,"30.0 to 34.9 percent",0,11,0,16,0,18,0,11,0,11,0,11,0,11,0,11,0,11,0,16,5,8,0,11,0,11,0,11,0,11]
[null,"35.0 to 39.9 percent",0,11,0,16,0,18,0,11,0,11,0,11,0,11,0,11,0,11,0,16,16,25,0,11,11,17,0,11,0,11]
[null,"40.0 to 49.9 percent",0,11,0,16,0,18,0,11,0,11,0,11,0,11,0,11,0,11,0,16,0,11,0,11,10,15,0,11,0,11]
[null,"50.0 percent or more",0,11,0,16,0,18,0,11,0,11,0,11,0,11,0,11,0,11,0,16,0,11,0,11,0,11,0,11,0,11]
[null,"Not computed",4,6,0,16,0,18,0,11,0,11,0,11,0,11,0,11,0,11,0,16,0,11,7,8,0,11,0,11,2,4]
[null,"$75,000 to $99,999:",8,10,49,55,136,103,7,10,11,13,11,12,19,23,0,11,0,11,94,68,4,6,15,17,30,48,0,11,0,11]
[null,"Less than 20.0 percent",0,11,49,55,105,92,4,8,11,13,11,12,11,18,0,11,0,11,81,65,0,11,9,14,30,48,0,11,0,11]
[null,"20.0 to 24.9 percent",2,4,0,16,15,25,0,11,0,11,0,11,0,11,0,11,0,11,0,16,4,6,0,11,0,11,0,11,0,11]
[null,"25.0 to 29.9 percent",6,9,0,16,7,13,3,4,0,11,0,11,8,12,0,11,0,11,0,16,0,11,6,11,0,11,0,11,0,11]
[null,"30.0 to 34.9 percent",0,11,0,16,0,18,0,11,0,11,0,11,0,11,0,11,0,11,13,29,0,11,0,11,0,11,0,11,0,11]
[null,"35.0 to 39.9 percent",0,11,0,16,0,18,0,11,0,11,0,11,0,11,0,11,0,11,0,16,0,11,0,11,0,11,0,11,0,11]
[null,"40.0 to 49.9 percent",0,11,0,16,0,18,0,11,0,11,0,11,0,11,0,11,0,11,0,16,0,11,0,11,0,11,0,11,0,11]
[null,"50.0 percent or more",0,11,0,16,0,18,0,11,0,11,0,11,0,11,0,11,0,11,0,16,0,11,0,11,0,11,0,11,0,11]
[null,"Not computed",0,11,0,16,9,15,0,11,0,11,0,11,0,11,0,11,0,11,0,16,0,11,0,11,0,11,0,11,0,11]
[null,"$100,000 or more:",0,11,0,16,102,83,7,7,7,10,4,7,67,72,8,12,5,9,28,34,27,25,10,15,22,26,4,7,26,35]
[null,"Less than 20.0 percent",0,11,0,16,102,83,3,4,7,10,4,7,67,72,8,12,0,11,28,34,13,13,10,15,11,18,0,11,26,35]
[null,"20.0 to 24.9 percent",0,11,0,16,0,18,4,6,0,11,0,11,0,11,0,11,0,11,0,16,0,11,0,11,11,18,0,11,0,11]
[null,"25.0 to 29.9 percent",0,11,0,16,0,18,0,11,0,11,0,11,0,11,0,11,0,11,0,16,0,11,0,11,0,11,0,11,0,11]
[null,"30.0 to 34.9 percent",0,11,0,16,0,18,0,11,0,11,0,11,0,11,0,11,0,11,0,16,14,22,0,11,0,11,0,11,0,11]
[null,"35.0 to 39.9 percent",0,11,0,16,0,18,0,11,0,11,0,11,0,11,0,11,0,11,0,16,0,11,0,11,0,11,0,11,0,11]
[null,"40.0 to 49.9 percent",0,11,0,16,0,18,0,11,0,11,0,11,0,11,0,11,0,11,0,16,0,11,0,11,0,11,0,11,0,11]
[null,"50.0 percent or more",0,11,0,16,0,18,0,11,0,11,0,11,0,11,0,11,0,11,0,16,0,11,0,11,0,11,0,11,0,11]
[null,"Not computed",0,11,0,16,0,18,0,11,0,11,0,11,0,11,0,11,5,9,0,16,0,11,0,11,0,11,4,7,0,11]
[]
[]
[]
[]
[]
[]
[]
[]
[]
[]
[]
[]
[]
[]
[]
[null,"Calculated B25074. HOUSEHOLD INCOME BY GROSS RENT AS A PERCENTAGE OF HOUSEHOLD INCOME IN THE PAST 12 MONTHS"]
[null,"Universe:  RENTER-OCCUPIED HOUSING UNITS"]
[null,{"$f":"B170","v":"Data Set: 2013-2017 American Community Survey 5-Year Estimates"}]
[]
[null,null,"Acworth",null,"Charlestown",null,"Claremont",null,"Cornish",null,"Croydon",null,"Goshen",null,"Grantham",null,"Langdon",null,"Lempster",null,"Newport",null,"Plainfield",null,"Springfield",null,"Sunapee",null,"Unity",null,"Washington"]
[null,null,"Estimate","Margin Of Error","Estimate","Margin Of Error","Estimate","Margin Of Error","Estimate","Margin Of Error","Estimate","Margin Of Error","Estimate","Margin Of Error","Estimate","Margin Of Error","Estimate","Margin Of Error","Estimate","Margin Of Error","Estimate","Margin Of Error","Estimate","Margin Of Error","Estimate","Margin Of Error","Estimate","Margin Of Error","Estimate","Margin Of Error","Estimate","Margin Of Error"]
[null,"Total:",{"$f":"C174","v":39},20,429,133,2404,276,81,38,33,21,65,32,103,80,26,18,22,14,780,174,99,45,55,34,504,158,37,19,49,36]
[null,"Less than $10,000:",2,3,8,11,269,155,4,6,0,11,2,3,0,11,5,8,0,11,187,104,5,8,7,11,35,57,0,11,0,11]
[null,"Less than 30.0 percent",{"$f":"C176+C177+C178","v":0},{"$f":"SQRT((D176^2)+(D177^2)+(D178^2))","v":19.05255888325765},{"$f":"E176+E177+E178","v":0},{"$f":"SQRT((F176^2)+(F177^2)+(F178^2))","v":27.712812921102035},{"$f":"G176+G177+G178","v":24},{"$f":"SQRT((H176^2)+(H177^2)+(H178^2))","v":34.26368339802363},{"$f":"I176+I177+I178","v":0},{"$f":"SQRT((J176^2)+(J177^2)+(J178^2))","v":19.05255888325765},{"$f":"K176+K177+K178","v":0},{"$f":"SQRT((L176^2)+(L177^2)+(L178^2))","v":19.05255888325765},{"$f":"M176+M177+M178","v":0},{"$f":"SQRT((N176^2)+(N177^2)+(N178^2))","v":19.05255888325765},{"$f":"O176+O177+O178","v":0},{"$f":"SQRT((P176^2)+(P177^2)+(P178^2))","v":19.05255888325765},{"$f":"Q176+Q177+Q178","v":0},{"$f":"SQRT((R176^2)+(R177^2)+(R178^2))","v":19.05255888325765},{"$f":"S176+S177+S178","v":0},{"$f":"SQRT((T176^2)+(T177^2)+(T178^2))","v":19.05255888325765},{"$f":"U176+U177+U178","v":29},{"$f":"SQRT((V176^2)+(V177^2)+(V178^2))","v":39.191835884530846},{"$f":"W176+W177+W178","v":0},{"$f":"SQRT((X176^2)+(X177^2)+(X178^2))","v":19.05255888325765},{"$f":"Y176+Y177+Y178","v":0},{"$f":"SQRT((Z176^2)+(Z177^2)+(Z178^2))","v":19.05255888325765},{"$f":"AA176+AA177+AA178","v":0},{"$f":"SQRT((AB176^2)+(AB177^2)+(AB178^2))","v":19.05255888325765},{"$f":"AC176+AC177+AC178","v":0},{"$f":"SQRT((AD176^2)+(AD177^2)+(AD178^2))","v":19.05255888325765},{"$f":"AE176+AE177+AE178","v":0},{"$f":"SQRT((AF176^2)+(AF177^2)+(AF178^2))","v":19.05255888325765}]
[null,"More than 30.0 percent",{"$f":"C179+C180+C181+C182","v":0},{"$f":"SQRT((D179^2)+(D180^2)+(D181^2)+(D182^2))","v":22},{"$f":"E179+E180+E181+E182","v":0},{"$f":"SQRT((F179^2)+(F180^2)+(F181^2)+(F182^2))","v":32},{"$f":"G179+G180+G181+G182","v":128},{"$f":"SQRT((H179^2)+(H180^2)+(H181^2)+(H182^2))","v":110.55315463612968},{"$f":"I179+I180+I181+I182","v":4},{"$f":"SQRT((J179^2)+(J180^2)+(J181^2)+(J182^2))","v":19.974984355438178},{"$f":"K179+K180+K181+K182","v":0},{"$f":"SQRT((L179^2)+(L180^2)+(L181^2)+(L182^2))","v":22},{"$f":"M179+M180+M181+M182","v":2},{"$f":"SQRT((N179^2)+(N180^2)+(N181^2)+(N182^2))","v":19.28730152198591},{"$f":"O179+O180+O181+O182","v":0},{"$f":"SQRT((P179^2)+(P180^2)+(P181^2)+(P182^2))","v":22},{"$f":"Q179+Q180+Q181+Q182","v":5},{"$f":"SQRT((R179^2)+(R180^2)+(R181^2)+(R182^2))","v":20.663978319771825},{"$f":"S179+S180+S181+S182","v":0},{"$f":"SQRT((T179^2)+(T180^2)+(T181^2)+(T182^2))","v":22},{"$f":"U179+U180+U181+U182","v":158},{"$f":"SQRT((V179^2)+(V180^2)+(V181^2)+(V182^2))","v":114.26723064816089},{"$f":"W179+W180+W181+W182","v":0},{"$f":"SQRT((X179^2)+(X180^2)+(X181^2)+(X182^2))","v":22},{"$f":"Y179+Y180+Y181+Y182","v":0},{"$f":"SQRT((Z179^2)+(Z180^2)+(Z181^2)+(Z182^2))","v":22},{"$f":"AA179+AA180+AA181+AA182","v":35},{"$f":"SQRT((AB179^2)+(AB180^2)+(AB181^2)+(AB182^2))","v":60.099916805266879},{"$f":"AC179+AC180+AC181+AC182","v":0},{"$f":"SQRT((AD179^2)+(AD180^2)+(AD181^2)+(AD182^2))","v":22},{"$f":"AE179+AE180+AE181+AE182","v":0},{"$f":"SQRT((AF179^2)+(AF180^2)+(AF181^2)+(AF182^2))","v":22}]
[null,"Less Than 35% of HH Income",{"$f":"C176+C177+C178+C179","v":0},{"$f":"SQRT((D176^2)+(D177^2)+(D178^2)+(D179^2))","v":22},{"$f":"E176+E177+E178+E179","v":0},{"$f":"SQRT((F176^2)+(F177^2)+(F178^2)+(F179^2))","v":32},{"$f":"G176+G177+G178+G179","v":106},{"$f":"SQRT((H176^2)+(H177^2)+(H178^2)+(H179^2))","v":109.4988584415381},{"$f":"I176+I177+I178+I179","v":0},{"$f":"SQRT((J176^2)+(J177^2)+(J178^2)+(J179^2))","v":22},{"$f":"K176+K177+K178+K179","v":0},{"$f":"SQRT((L176^2)+(L177^2)+(L178^2)+(L179^2))","v":22},{"$f":"M176+M177+M178+M179","v":0},{"$f":"SQRT((N176^2)+(N177^2)+(N178^2)+(N179^2))","v":22},{"$f":"O176+O177+O178+O179","v":0},{"$f":"SQRT((P176^2)+(P177^2)+(P178^2)+(P179^2))","v":22},{"$f":"Q176+Q177+Q178+Q179","v":0},{"$f":"SQRT((R176^2)+(R177^2)+(R178^2)+(R179^2))","v":22},{"$f":"S176+S177+S178+S179","v":0},{"$f":"SQRT((T176^2)+(T177^2)+(T178^2)+(T179^2))","v":22},{"$f":"U176+U177+U178+U179","v":29},{"$f":"SQRT((V176^2)+(V177^2)+(V178^2)+(V179^2))","v":42.332020977033451},{"$f":"W176+W177+W178+W179","v":0},{"$f":"SQRT((X176^2)+(X177^2)+(X178^2)+(X179^2))","v":22},{"$f":"Y176+Y177+Y178+Y179","v":0},{"$f":"SQRT((Z176^2)+(Z177^2)+(Z178^2)+(Z179^2))","v":22},{"$f":"AA176+AA177+AA178+AA179","v":0},{"$f":"SQRT((AB176^2)+(AB177^2)+(AB178^2)+(AB179^2))","v":22},{"$f":"AC176+AC177+AC178+AC179","v":0},{"$f":"SQRT((AD176^2)+(AD177^2)+(AD178^2)+(AD179^2))","v":22},{"$f":"AE176+AE177+AE178+AE179","v":0},{"$f":"SQRT((AF176^2)+(AF177^2)+(AF178^2)+(AF179^2))","v":22}]
[null,"35.0 percent or more",{"$f":"C180+C181++C182","v":0},{"$f":"SQRT((D180^2)+(D181^2)+(D182^2))","v":19.05255888325765},{"$f":"E180+E181++E182","v":0},{"$f":"SQRT((F180^2)+(F181^2)+(F182^2))","v":27.712812921102035},{"$f":"G180+G181++G182","v":46},{"$f":"SQRT((H180^2)+(H181^2)+(H182^2))","v":37.49666651850535},{"$f":"I180+I181++I182","v":4},{"$f":"SQRT((J180^2)+(J181^2)+(J182^2))","v":16.673332000533065},{"$f":"K180+K181++K182","v":0},{"$f":"SQRT((L180^2)+(L181^2)+(L182^2))","v":19.05255888325765},{"$f":"M180+M181++M182","v":2},{"$f":"SQRT((N180^2)+(N181^2)+(N182^2))","v":15.842979517754859},{"$f":"O180+O181++O182","v":0},{"$f":"SQRT((P180^2)+(P181^2)+(P182^2))","v":19.05255888325765},{"$f":"Q180+Q181++Q182","v":5},{"$f":"SQRT((R180^2)+(R181^2)+(R182^2))","v":17.4928556845359},{"$f":"S180+S181++S182","v":0},{"$f":"SQRT((T180^2)+(T181^2)+(T182^2))","v":19.05255888325765},{"$f":"U180+U181++U182","v":158},{"$f":"SQRT((V180^2)+(V181^2)+(V182^2))","v":113.14150432091665},{"$f":"W180+W181++W182","v":0},{"$f":"SQRT((X180^2)+(X181^2)+(X182^2))","v":19.05255888325765},{"$f":"Y180+Y181++Y182","v":0},{"$f":"SQRT((Z180^2)+(Z181^2)+(Z182^2))","v":19.05255888325765},{"$f":"AA180+AA181++AA182","v":35},{"$f":"SQRT((AB180^2)+(AB181^2)+(AB182^2))","v":59.084684986889791},{"$f":"AC180+AC181++AC182","v":0},{"$f":"SQRT((AD180^2)+(AD181^2)+(AD182^2))","v":19.05255888325765},{"$f":"AE180+AE181++AE182","v":0},{"$f":"SQRT((AF180^2)+(AF181^2)+(AF182^2))","v":19.05255888325765}]
[null,"50.0 percent or more",{"$f":"C182","v":0},11,0,16,39,31,4,6,0,11,2,3,0,11,5,8,0,11,116,89,0,11,0,11,35,57,0,11,0,11]
[null,"Not Computed",2,3,8,11,117,99,0,11,0,11,0,11,0,11,0,11,0,11,0,16,5,8,7,11,0,11,0,11,0,11]
[null,"$10,000 to $19,999:",0,11,163,95,402,137,14,11,4,6,2,4,0,11,0,11,0,11,113,90,0,11,0,11,60,64,0,11,6,6]
[null,"Less than 30.0 percent",{"$f":"C185+C186+C187","v":0},{"$f":"SQRT((D185^2)+(D186^2)+(D187^2))","v":19.05255888325765},{"$f":"E185+E186+E187","v":15},{"$f":"SQRT((F185^2)+(F186^2)+(F187^2))","v":32.984845004941285},{"$f":"G185+G186+G187","v":92},{"$f":"SQRT((H185^2)+(H186^2)+(H187^2))","v":70.242437315343778},{"$f":"I185+I186+I187","v":0},{"$f":"SQRT((J185^2)+(J186^2)+(J187^2))","v":19.05255888325765},{"$f":"K185+K186+K187","v":0},{"$f":"SQRT((L185^2)+(L186^2)+(L187^2))","v":19.05255888325765},{"$f":"M185+M186+M187","v":0},{"$f":"SQRT((N185^2)+(N186^2)+(N187^2))","v":19.05255888325765},{"$f":"O185+O186+O187","v":0},{"$f":"SQRT((P185^2)+(P186^2)+(P187^2))","v":19.05255888325765},{"$f":"Q185+Q186+Q187","v":0},{"$f":"SQRT((R185^2)+(R186^2)+(R187^2))","v":19.05255888325765},{"$f":"S185+S186+S187","v":0},{"$f":"SQRT((T185^2)+(T186^2)+(T187^2))","v":19.05255888325765},{"$f":"U185+U186+U187","v":14},{"$f":"SQRT((V185^2)+(V186^2)+(V187^2))","v":31.559467676118999},{"$f":"W185+W186+W187","v":0},{"$f":"SQRT((X185^2)+(X186^2)+(X187^2))","v":19.05255888325765},{"$f":"Y185+Y186+Y187","v":0},{"$f":"SQRT((Z185^2)+(Z186^2)+(Z187^2))","v":19.05255888325765},{"$f":"AA185+AA186+AA187","v":0},{"$f":"SQRT((AB185^2)+(AB186^2)+(AB187^2))","v":19.05255888325765},{"$f":"AC185+AC186+AC187","v":0},{"$f":"SQRT((AD185^2)+(AD186^2)+(AD187^2))","v":19.05255888325765},{"$f":"AE185+AE186+AE187","v":0},{"$f":"SQRT((AF185^2)+(AF186^2)+(AF187^2))","v":19.05255888325765}]
[null,"More than 30.0 percent",{"$f":"C188+C189+C190+C191","v":0},{"$f":"SQRT((D188^2)+(D189^2)+(D190^2)+(D191^2))","v":22},{"$f":"E188+E189+E190+E191","v":114},{"$f":"SQRT((F188^2)+(F189^2)+(F190^2)+(F191^2))","v":97.077288796092773},{"$f":"G188+G189+G190+G191","v":310},{"$f":"SQRT((H188^2)+(H189^2)+(H190^2)+(H191^2))","v":102.9805806936434},{"$f":"I188+I189+I190+I191","v":11},{"$f":"SQRT((J188^2)+(J189^2)+(J190^2)+(J191^2))","v":21.071307505705477},{"$f":"K188+K189+K190+K191","v":4},{"$f":"SQRT((L188^2)+(L189^2)+(L190^2)+(L191^2))","v":16.552945357246848},{"$f":"M188+M189+M190+M191","v":2},{"$f":"SQRT((N188^2)+(N189^2)+(N190^2)+(N191^2))","v":19.467922333931785},{"$f":"O188+O189+O190+O191","v":0},{"$f":"SQRT((P188^2)+(P189^2)+(P190^2)+(P191^2))","v":22},{"$f":"Q188+Q189+Q190+Q191","v":0},{"$f":"SQRT((R188^2)+(R189^2)+(R190^2)+(R191^2))","v":22},{"$f":"S188+S189+S190+S191","v":0},{"$f":"SQRT((T188^2)+(T189^2)+(T190^2)+(T191^2))","v":22},{"$f":"U188+U189+U190+U191","v":76},{"$f":"SQRT((V188^2)+(V189^2)+(V190^2)+(V191^2))","v":84.107074613257112},{"$f":"W188+W189+W190+W191","v":0},{"$f":"SQRT((X188^2)+(X189^2)+(X190^2)+(X191^2))","v":22},{"$f":"Y188+Y189+Y190+Y191","v":0},{"$f":"SQRT((Z188^2)+(Z189^2)+(Z190^2)+(Z191^2))","v":22},{"$f":"AA188+AA189+AA190+AA191","v":60},{"$f":"SQRT((AB188^2)+(AB189^2)+(AB190^2)+(AB191^2))","v":66.775744099186198},{"$f":"AC188+AC189+AC190+AC191","v":0},{"$f":"SQRT((AD188^2)+(AD189^2)+(AD190^2)+(AD191^2))","v":22},{"$f":"AE188+AE189+AE190+AE191","v":0},{"$f":"SQRT((AF188^2)+(AF189^2)+(AF190^2)+(AF191^2))","v":22}]
[null,"Less Than 35% of HH Income",{"$f":"C185+C186+C187+C188","v":0},{"$f":"SQRT((D185^2)+(D186^2)+(D187^2)+(D188^2))","v":22},{"$f":"E185+E186+E187+E188","v":50},{"$f":"SQRT((F185^2)+(F186^2)+(F187^2)+(F188^2))","v":64.992307237087687},{"$f":"G185+G186+G187+G188","v":128},{"$f":"SQRT((H185^2)+(H186^2)+(H187^2)+(H188^2))","v":75.617458301638251},{"$f":"I185+I186+I187+I188","v":0},{"$f":"SQRT((J185^2)+(J186^2)+(J187^2)+(J188^2))","v":22},{"$f":"K185+K186+K187+K188","v":0},{"$f":"SQRT((L185^2)+(L186^2)+(L187^2)+(L188^2))","v":22},{"$f":"M185+M186+M187+M188","v":0},{"$f":"SQRT((N185^2)+(N186^2)+(N187^2)+(N188^2))","v":22},{"$f":"O185+O186+O187+O188","v":0},{"$f":"SQRT((P185^2)+(P186^2)+(P187^2)+(P188^2))","v":22},{"$f":"Q185+Q186+Q187+Q188","v":0},{"$f":"SQRT((R185^2)+(R186^2)+(R187^2)+(R188^2))","v":22},{"$f":"S185+S186+S187+S188","v":0},{"$f":"SQRT((T185^2)+(T186^2)+(T187^2)+(T188^2))","v":22},{"$f":"U185+U186+U187+U188","v":14},{"$f":"SQRT((V185^2)+(V186^2)+(V187^2)+(V188^2))","v":35.383612025908263},{"$f":"W185+W186+W187+W188","v":0},{"$f":"SQRT((X185^2)+(X186^2)+(X187^2)+(X188^2))","v":22},{"$f":"Y185+Y186+Y187+Y188","v":0},{"$f":"SQRT((Z185^2)+(Z186^2)+(Z187^2)+(Z188^2))","v":22},{"$f":"AA185+AA186+AA187+AA188","v":0},{"$f":"SQRT((AB185^2)+(AB186^2)+(AB187^2)+(AB188^2))","v":22},{"$f":"AC185+AC186+AC187+AC188","v":0},{"$f":"SQRT((AD185^2)+(AD186^2)+(AD187^2)+(AD188^2))","v":22},{"$f":"AE185+AE186+AE187+AE188","v":0},{"$f":"SQRT((AF185^2)+(AF186^2)+(AF187^2)+(AF188^2))","v":22}]
[null,"35.0 percent or more",{"$f":"C189+C190++C191","v":0},{"$f":"SQRT((D189^2)+(D190^2)+(D191^2))","v":19.05255888325765},{"$f":"E189+E190++E191","v":79},{"$f":"SQRT((F189^2)+(F190^2)+(F191^2))","v":79.296910406396037},{"$f":"G189+G190++G191","v":274},{"$f":"SQRT((H189^2)+(H190^2)+(H191^2))","v":99.100958623012318},{"$f":"I189+I190++I191","v":11},{"$f":"SQRT((J189^2)+(J190^2)+(J191^2))","v":17.972200755611428},{"$f":"K189+K190++K191","v":4},{"$f":"SQRT((L189^2)+(L190^2)+(L191^2))","v":12.369316876852981},{"$f":"M189+M190++M191","v":2},{"$f":"SQRT((N189^2)+(N190^2)+(N191^2))","v":16.06237840420901},{"$f":"O189+O190++O191","v":0},{"$f":"SQRT((P189^2)+(P190^2)+(P191^2))","v":19.05255888325765},{"$f":"Q189+Q190++Q191","v":0},{"$f":"SQRT((R189^2)+(R190^2)+(R191^2))","v":19.05255888325765},{"$f":"S189+S190++S191","v":0},{"$f":"SQRT((T189^2)+(T190^2)+(T191^2))","v":19.05255888325765},{"$f":"U189+U190++U191","v":76},{"$f":"SQRT((V189^2)+(V190^2)+(V191^2))","v":82.571181413372059},{"$f":"W189+W190++W191","v":0},{"$f":"SQRT((X189^2)+(X190^2)+(X191^2))","v":19.05255888325765},{"$f":"Y189+Y190++Y191","v":0},{"$f":"SQRT((Z189^2)+(Z190^2)+(Z191^2))","v":19.05255888325765},{"$f":"AA189+AA190++AA191","v":60},{"$f":"SQRT((AB189^2)+(AB190^2)+(AB191^2))","v":65.863495200300449},{"$f":"AC189+AC190++AC191","v":0},{"$f":"SQRT((AD189^2)+(AD190^2)+(AD191^2))","v":19.05255888325765},{"$f":"AE189+AE190++AE191","v":0},{"$f":"SQRT((AF189^2)+(AF190^2)+(AF191^2))","v":19.05255888325765}]
[null,"50.0 percent or more",{"$f":"C191","v":0},{"$f":"D191","v":11},{"$f":"E191","v":79},{"$f":"F191","v":76},{"$f":"G191","v":193},76,{"$f":"I191","v":11},9,{"$f":"K191","v":2},4,{"$f":"M191","v":2},4,{"$f":"O191","v":0},11,{"$f":"Q191","v":0},11,{"$f":"S191","v":0},11,{"$f":"U191","v":31},39,{"$f":"W191","v":0},11,{"$f":"Y191","v":0},11,{"$f":"AA191","v":60},64,{"$f":"AC191","v":0},11,{"$f":"AE191","v":0},11]
[null,"Not Computed",{"$f":"C192","v":0},11,34,39,0,18,3,5,0,11,0,11,0,11,0,11,0,11,23,26,0,11,0,11,0,11,0,11,6,6]
[null,"$20,000 to $34,999:",8,10,91,63,599,160,6,7,0,11,11,11,0,11,0,11,6,6,171,92,5,7,0,11,147,106,17,13,7,7]
[null,"Less than 30.0 percent",{"$f":"C194+C195+C196","v":0},{"$f":"SQRT((D194^2)+(D195^2)+(D196^2))","v":19.05255888325765},{"$f":"E194+E195+E196","v":31},{"$f":"SQRT((F194^2)+(F195^2)+(F196^2))","v":44.022721406110279},{"$f":"G194+G195+G196","v":90},{"$f":"SQRT((H194^2)+(H195^2)+(H196^2))","v":46.914816422959603},{"$f":"I194+I195+I196","v":0},{"$f":"SQRT((J194^2)+(J195^2)+(J196^2))","v":19.05255888325765},{"$f":"K194+K195+K196","v":0},{"$f":"SQRT((L194^2)+(L195^2)+(L196^2))","v":19.05255888325765},{"$f":"M194+M195+M196","v":0},{"$f":"SQRT((N194^2)+(N195^2)+(N196^2))","v":19.05255888325765},{"$f":"O194+O195+O196","v":0},{"$f":"SQRT((P194^2)+(P195^2)+(P196^2))","v":19.05255888325765},{"$f":"Q194+Q195+Q196","v":0},{"$f":"SQRT((R194^2)+(R195^2)+(R196^2))","v":19.05255888325765},{"$f":"S194+S195+S196","v":3},{"$f":"SQRT((T194^2)+(T195^2)+(T196^2))","v":16.06237840420901},{"$f":"U194+U195+U196","v":15},{"$f":"SQRT((V194^2)+(V195^2)+(V196^2))","v":33.719430600174732},{"$f":"W194+W195+W196","v":0},{"$f":"SQRT((X194^2)+(X195^2)+(X196^2))","v":19.05255888325765},{"$f":"Y194+Y195+Y196","v":0},{"$f":"SQRT((Z194^2)+(Z195^2)+(Z196^2))","v":19.05255888325765},{"$f":"AA194+AA195+AA196","v":0},{"$f":"SQRT((AB194^2)+(AB195^2)+(AB196^2))","v":19.05255888325765},{"$f":"AC194+AC195+AC196","v":0},{"$f":"SQRT((AD194^2)+(AD195^2)+(AD196^2))","v":19.05255888325765},{"$f":"AE194+AE195+AE196","v":0},{"$f":"SQRT((AF194^2)+(AF195^2)+(AF196^2))","v":19.05255888325765}]
[null,"More than 30.0 percent",{"$f":"C197+C198+C199+C200","v":8},{"$f":"SQRT((D197^2)+(D198^2)+(D199^2)+(D200^2))","v":21.517434791350013},{"$f":"E197+E198+E199+E200","v":60},{"$f":"SQRT((F197^2)+(F198^2)+(F199^2)+(F200^2))","v":54.534392817743921},{"$f":"G197+G198+G199+G200","v":479},{"$f":"SQRT((H197^2)+(H198^2)+(H199^2)+(H200^2))","v":156.81198933755033},{"$f":"I197+I198+I199+I200","v":6},{"$f":"SQRT((J197^2)+(J198^2)+(J199^2)+(J200^2))","v":17.088007490635061},{"$f":"K197+K198+K199+K200","v":0},{"$f":"SQRT((L197^2)+(L198^2)+(L199^2)+(L200^2))","v":22},{"$f":"M197+M198+M199+M200","v":7},{"$f":"SQRT((N197^2)+(N198^2)+(N199^2)+(N200^2))","v":22},{"$f":"O197+O198+O199+O200","v":0},{"$f":"SQRT((P197^2)+(P198^2)+(P199^2)+(P200^2))","v":22},{"$f":"Q197+Q198+Q199+Q200","v":0},{"$f":"SQRT((R197^2)+(R198^2)+(R199^2)+(R200^2))","v":22},{"$f":"S197+S198+S199+S200","v":0},{"$f":"SQRT((T197^2)+(T198^2)+(T199^2)+(T200^2))","v":22},{"$f":"U197+U198+U199+U200","v":107},{"$f":"SQRT((V197^2)+(V198^2)+(V199^2)+(V200^2))","v":66.460514593253038},{"$f":"W197+W198+W199+W200","v":5},{"$f":"SQRT((X197^2)+(X198^2)+(X199^2)+(X200^2))","v":20.297783130184438},{"$f":"Y197+Y198+Y199+Y200","v":0},{"$f":"SQRT((Z197^2)+(Z198^2)+(Z199^2)+(Z200^2))","v":22},{"$f":"AA197+AA198+AA199+AA200","v":144},{"$f":"SQRT((AB197^2)+(AB198^2)+(AB199^2)+(AB200^2))","v":102.03430795570674},{"$f":"AC197+AC198+AC199+AC200","v":14},{"$f":"SQRT((AD197^2)+(AD198^2)+(AD199^2)+(AD200^2))","v":21.213203435596427},{"$f":"AE197+AE198+AE199+AE200","v":0},{"$f":"SQRT((AF197^2)+(AF198^2)+(AF199^2)+(AF200^2))","v":22}]
[null,"Less Than 35% of HH Income",{"$f":"C194+C195+C196+C197","v":0},{"$f":"SQRT((D194^2)+(D195^2)+(D196^2)+(D197^2))","v":22},{"$f":"E194+E195+E196+E197","v":47},{"$f":"SQRT((F194^2)+(F195^2)+(F196^2)+(F197^2))","v":51.643005334701428},{"$f":"G194+G195+G196+G197","v":224},{"$f":"SQRT((H194^2)+(H195^2)+(H196^2)+(H197^2))","v":93.605555390692487},{"$f":"I194+I195+I196+I197","v":0},{"$f":"SQRT((J194^2)+(J195^2)+(J196^2)+(J197^2))","v":22},{"$f":"K194+K195+K196+K197","v":0},{"$f":"SQRT((L194^2)+(L195^2)+(L196^2)+(L197^2))","v":22},{"$f":"M194+M195+M196+M197","v":0},{"$f":"SQRT((N194^2)+(N195^2)+(N196^2)+(N197^2))","v":22},{"$f":"O194+O195+O196+O197","v":0},{"$f":"SQRT((P194^2)+(P195^2)+(P196^2)+(P197^2))","v":22},{"$f":"Q194+Q195+Q196+Q197","v":0},{"$f":"SQRT((R194^2)+(R195^2)+(R196^2)+(R197^2))","v":22},{"$f":"S194+S195+S196+S197","v":3},{"$f":"SQRT((T194^2)+(T195^2)+(T196^2)+(T197^2))","v":19.467922333931785},{"$f":"U194+U195+U196+U197","v":53},{"$f":"SQRT((V194^2)+(V195^2)+(V196^2)+(V197^2))","v":52.316345438113316},{"$f":"W194+W195+W196+W197","v":0},{"$f":"SQRT((X194^2)+(X195^2)+(X196^2)+(X197^2))","v":22},{"$f":"Y194+Y195+Y196+Y197","v":0},{"$f":"SQRT((Z194^2)+(Z195^2)+(Z196^2)+(Z197^2))","v":22},{"$f":"AA194+AA195+AA196+AA197","v":35},{"$f":"SQRT((AB194^2)+(AB195^2)+(AB196^2)+(AB197^2))","v":56.320511361314892},{"$f":"AC194+AC195+AC196+AC197","v":0},{"$f":"SQRT((AD194^2)+(AD195^2)+(AD196^2)+(AD197^2))","v":22},{"$f":"AE194+AE195+AE196+AE197","v":0},{"$f":"SQRT((AF194^2)+(AF195^2)+(AF196^2)+(AF197^2))","v":22}]
[null,"35.0 percent or more",{"$f":"C198+C199+C200","v":8},{"$f":"SQRT((D198^2)+(D199^2)+(D200^2))","v":18.493242008906929},{"$f":"E198+E199+E200","v":44},{"$f":"SQRT((F198^2)+(F199^2)+(F200^2))","v":47.381430961928537},{"$f":"G198+G199+G200","v":345},{"$f":"SQRT((H198^2)+(H199^2)+(H200^2))","v":134.27211177307072},{"$f":"I198+I199+I200","v":6},{"$f":"SQRT((J198^2)+(J199^2)+(J200^2))","v":13.076696830622021},{"$f":"K198+K199+K200","v":0},{"$f":"SQRT((L198^2)+(L199^2)+(L200^2))","v":19.05255888325765},{"$f":"M198+M199+M200","v":7},{"$f":"SQRT((N198^2)+(N199^2)+(N200^2))","v":19.05255888325765},{"$f":"O198+O199+O200","v":0},{"$f":"SQRT((P198^2)+(P199^2)+(P200^2))","v":19.05255888325765},{"$f":"Q198+Q199+Q200","v":0},{"$f":"SQRT((R198^2)+(R199^2)+(R200^2))","v":19.05255888325765},{"$f":"S198+S199+S200","v":0},{"$f":"SQRT((T198^2)+(T199^2)+(T200^2))","v":19.05255888325765},{"$f":"U198+U199+U200","v":69},{"$f":"SQRT((V198^2)+(V199^2)+(V200^2))","v":53.075418038862395},{"$f":"W198+W199+W200","v":5},{"$f":"SQRT((X198^2)+(X199^2)+(X200^2))","v":17.058722109231979},{"$f":"Y198+Y199+Y200","v":0},{"$f":"SQRT((Z198^2)+(Z199^2)+(Z200^2))","v":19.05255888325765},{"$f":"AA198+AA199+AA200","v":109},{"$f":"SQRT((AB198^2)+(AB199^2)+(AB200^2))","v":87.189448902949266},{"$f":"AC198+AC199+AC200","v":14},{"$f":"SQRT((AD198^2)+(AD199^2)+(AD200^2))","v":18.138357147217054},{"$f":"AE198+AE199+AE200","v":0},{"$f":"SQRT((AF198^2)+(AF199^2)+(AF200^2))","v":19.05255888325765}]
[null,"50.0 percent or more",{"$f":"C200","v":0},11,24,30,131,92,3,5,0,11,7,11,0,11,0,11,0,11,42,40,0,11,0,11,99,85,8,12,0,11]
[null,"Not Computed",0,11,0,16,30,29,0,11,0,11,4,4,0,11,0,11,3,4,49,58,0,11,0,11,3,6,3,4,7,7]
[null,"$35,000 to $49,999:",8,6,28,34,478,180,3,5,0,11,14,16,17,28,0,11,8,6,72,79,15,10,14,16,90,74,7,9,0,11]
[null,"Less than 30.0 percent",{"$f":"C203+C204+C205","v":3},{"$f":"SQRT((D203^2)+(D204^2)+(D205^2))","v":16.06237840420901},{"$f":"E203+E204+E205","v":28},{"$f":"SQRT((F203^2)+(F204^2)+(F205^2))","v":36.359317925395686},{"$f":"G203+G204+G205","v":306},{"$f":"SQRT((H203^2)+(H204^2)+(H205^2))","v":108.68762579061151},{"$f":"I203+I204+I205","v":3},{"$f":"SQRT((J203^2)+(J204^2)+(J205^2))","v":16.340134638368191},{"$f":"K203+K204+K205","v":0},{"$f":"SQRT((L203^2)+(L204^2)+(L205^2))","v":19.05255888325765},{"$f":"M203+M204+M205","v":0},{"$f":"SQRT((N203^2)+(N204^2)+(N205^2))","v":19.05255888325765},{"$f":"O203+O204+O205","v":17},{"$f":"SQRT((P203^2)+(P204^2)+(P205^2))","v":32.03123475609393},{"$f":"Q203+Q204+Q205","v":0},{"$f":"SQRT((R203^2)+(R204^2)+(R205^2))","v":19.05255888325765},{"$f":"S203+S204+S205","v":5},{"$f":"SQRT((T203^2)+(T204^2)+(T205^2))","v":12.083045973594572},{"$f":"U203+U204+U205","v":72},{"$f":"SQRT((V203^2)+(V204^2)+(V205^2))","v":80.199750623053689},{"$f":"W203+W204+W205","v":4},{"$f":"SQRT((X203^2)+(X204^2)+(X205^2))","v":17.058722109231979},{"$f":"Y203+Y204+Y205","v":9},{"$f":"SQRT((Z203^2)+(Z204^2)+(Z205^2))","v":20.928449536456348},{"$f":"AA203+AA204+AA205","v":12},{"$f":"SQRT((AB203^2)+(AB204^2)+(AB205^2))","v":25.337718918639855},{"$f":"AC203+AC204+AC205","v":7},{"$f":"SQRT((AD203^2)+(AD204^2)+(AD205^2))","v":17.972200755611428},{"$f":"AE203+AE204+AE205","v":0},{"$f":"SQRT((AF203^2)+(AF204^2)+(AF205^2))","v":19.05255888325765}]
[null,"More than 30.0 percent",{"$f":"C206+C207+C208+C209","v":3},{"$f":"SQRT((D206^2)+(D207^2)+(D208^2)+(D209^2))","v":16.124515496597098},{"$f":"E206+E207+E208+E209","v":0},{"$f":"SQRT((F206^2)+(F207^2)+(F208^2)+(F209^2))","v":32},{"$f":"G206+G207+G208+G209","v":161},{"$f":"SQRT((H206^2)+(H207^2)+(H208^2)+(H209^2))","v":111.00450441310929},{"$f":"I206+I207+I208+I209","v":0},{"$f":"SQRT((J206^2)+(J207^2)+(J208^2)+(J209^2))","v":22},{"$f":"K206+K207+K208+K209","v":0},{"$f":"SQRT((L206^2)+(L207^2)+(L208^2)+(L209^2))","v":22},{"$f":"M206+M207+M208+M209","v":14},{"$f":"SQRT((N206^2)+(N207^2)+(N208^2)+(N209^2))","v":22},{"$f":"O206+O207+O208+O209","v":0},{"$f":"SQRT((P206^2)+(P207^2)+(P208^2)+(P209^2))","v":22},{"$f":"Q206+Q207+Q208+Q209","v":0},{"$f":"SQRT((R206^2)+(R207^2)+(R208^2)+(R209^2))","v":22},{"$f":"S206+S207+S208+S209","v":3},{"$f":"SQRT((T206^2)+(T207^2)+(T208^2)+(T209^2))","v":19.467922333931785},{"$f":"U206+U207+U208+U209","v":0},{"$f":"SQRT((V206^2)+(V207^2)+(V208^2)+(V209^2))","v":32},{"$f":"W206+W207+W208+W209","v":11},{"$f":"SQRT((X206^2)+(X207^2)+(X208^2)+(X209^2))","v":18.841443681416774},{"$f":"Y206+Y207+Y208+Y209","v":5},{"$f":"SQRT((Z206^2)+(Z207^2)+(Z208^2)+(Z209^2))","v":20.663978319771825},{"$f":"AA206+AA207+AA208+AA209","v":78},{"$f":"SQRT((AB206^2)+(AB207^2)+(AB208^2)+(AB209^2))","v":72.090221250874237},{"$f":"AC206+AC207+AC208+AC209","v":0},{"$f":"SQRT((AD206^2)+(AD207^2)+(AD208^2)+(AD209^2))","v":22},{"$f":"AE206+AE207+AE208+AE209","v":0},{"$f":"SQRT((AF206^2)+(AF207^2)+(AF208^2)+(AF209^2))","v":22}]
[null,"Less Than 35% of HH Income",{"$f":"C203+C204+C205+C206","v":5},{"$f":"SQRT((D203^2)+(D204^2)+(D205^2)+(D206^2))","v":16.340134638368191},{"$f":"E203+E204+E205+E206","v":28},{"$f":"SQRT((F203^2)+(F204^2)+(F205^2)+(F206^2))","v":39.724048132082409},{"$f":"G203+G204+G205+G206","v":425},{"$f":"SQRT((H203^2)+(H204^2)+(H205^2)+(H206^2))","v":143.04544732356916},{"$f":"I203+I204+I205+I206","v":3},{"$f":"SQRT((J203^2)+(J204^2)+(J205^2)+(J206^2))","v":19.697715603592208},{"$f":"K203+K204+K205+K206","v":0},{"$f":"SQRT((L203^2)+(L204^2)+(L205^2)+(L206^2))","v":22},{"$f":"M203+M204+M205+M206","v":7},{"$f":"SQRT((N203^2)+(N204^2)+(N205^2)+(N206^2))","v":22},{"$f":"O203+O204+O205+O206","v":17},{"$f":"SQRT((P203^2)+(P204^2)+(P205^2)+(P206^2))","v":33.867388443752198},{"$f":"Q203+Q204+Q205+Q206","v":0},{"$f":"SQRT((R203^2)+(R204^2)+(R205^2)+(R206^2))","v":22},{"$f":"S203+S204+S205+S206","v":5},{"$f":"SQRT((T203^2)+(T204^2)+(T205^2)+(T206^2))","v":16.340134638368191},{"$f":"U203+U204+U205+U206","v":72},{"$f":"SQRT((V203^2)+(V204^2)+(V205^2)+(V206^2))","v":81.780193201043488},{"$f":"W203+W204+W205+W206","v":10},{"$f":"SQRT((X203^2)+(X204^2)+(X205^2)+(X206^2))","v":18.841443681416774},{"$f":"Y203+Y204+Y205+Y206","v":9},{"$f":"SQRT((Z203^2)+(Z204^2)+(Z205^2)+(Z206^2))","v":23.643180835073778},{"$f":"AA203+AA204+AA205+AA206","v":72},{"$f":"SQRT((AB203^2)+(AB204^2)+(AB205^2)+(AB206^2))","v":72.567210226106937},{"$f":"AC203+AC204+AC205+AC206","v":7},{"$f":"SQRT((AD203^2)+(AD204^2)+(AD205^2)+(AD206^2))","v":21.071307505705477},{"$f":"AE203+AE204+AE205+AE206","v":0},{"$f":"SQRT((AF203^2)+(AF204^2)+(AF205^2)+(AF206^2))","v":22}]
[null,"35.0 percent or more",{"$f":"C207+C208+C209","v":1},{"$f":"SQRT((D207^2)+(D208^2)+(D209^2))","v":15.842979517754859},{"$f":"E207+E208+E209","v":0},{"$f":"SQRT((F207^2)+(F208^2)+(F209^2))","v":27.712812921102035},{"$f":"G207+G208+G209","v":42},{"$f":"SQRT((H207^2)+(H208^2)+(H209^2))","v":60.605280298007038},{"$f":"I207+I208+I209","v":0},{"$f":"SQRT((J207^2)+(J208^2)+(J209^2))","v":19.05255888325765},{"$f":"K207+K208+K209","v":0},{"$f":"SQRT((L207^2)+(L208^2)+(L209^2))","v":19.05255888325765},{"$f":"M207+M208+M209","v":7},{"$f":"SQRT((N207^2)+(N208^2)+(N209^2))","v":19.05255888325765},{"$f":"O207+O208+O209","v":0},{"$f":"SQRT((P207^2)+(P208^2)+(P209^2))","v":19.05255888325765},{"$f":"Q207+Q208+Q209","v":0},{"$f":"SQRT((R207^2)+(R208^2)+(R209^2))","v":19.05255888325765},{"$f":"S207+S208+S209","v":3},{"$f":"SQRT((T207^2)+(T208^2)+(T209^2))","v":16.06237840420901},{"$f":"U207+U208+U209","v":0},{"$f":"SQRT((V207^2)+(V208^2)+(V209^2))","v":27.712812921102035},{"$f":"W207+W208+W209","v":5},{"$f":"SQRT((X207^2)+(X208^2)+(X209^2))","v":17.058722109231979},{"$f":"Y207+Y208+Y209","v":5},{"$f":"SQRT((Z207^2)+(Z208^2)+(Z209^2))","v":17.4928556845359},{"$f":"AA207+AA208+AA209","v":18},{"$f":"SQRT((AB207^2)+(AB208^2)+(AB209^2))","v":23.937418407171648},{"$f":"AC207+AC208+AC209","v":0},{"$f":"SQRT((AD207^2)+(AD208^2)+(AD209^2))","v":19.05255888325765},{"$f":"AE207+AE208+AE209","v":0},{"$f":"SQRT((AF207^2)+(AF208^2)+(AF209^2))","v":19.05255888325765}]
[null,"50.0 percent or more",{"$f":"C209","v":1},3,0,{"$f":"F209","v":16},{"$f":"G209","v":0},18,{"$f":"I209","v":0},11,{"$f":"K209","v":0},11,{"$f":"M209","v":0},11,{"$f":"O209","v":0},11,{"$f":"Q209","v":0},11,{"$f":"S209","v":0},11,{"$f":"U209","v":0},16,{"$f":"W209","v":0},11,{"$f":"Y209","v":0},11,{"$f":"AA209","v":0},11,{"$f":"AC209","v":0},11,{"$f":"AE209","v":0},11]
[null,"Not Computed",2,3,0,16,{"$f":"G210","v":11},19,{"$f":"I210","v":0},11,{"$f":"K210","v":0},11,{"$f":"M210","v":0},11,{"$f":"O210","v":0},11,{"$f":"Q210","v":0},11,{"$f":"S210","v":0},11,{"$f":"U210","v":0},16,{"$f":"W210","v":0},11,{"$f":"Y210","v":0},11,{"$f":"AA210","v":0},11,{"$f":"AC210","v":0},11,{"$f":"AE210","v":0},11]
[null,"$50,000 to $74,999:",{"$f":"C211","v":13},12,90,74,418,170,40,35,11,15,21,18,0,11,13,13,3,4,115,98,43,35,9,9,120,68,9,9,10,8]
[null,"Less than 30.0 percent",{"$f":"C212+C213+C214","v":9},{"$f":"SQRT((D212^2)+(D213^2)+(D214^2))","v":16.031219541881399},{"$f":"E212+E213+E214","v":90},{"$f":"SQRT((F212^2)+(F213^2)+(F214^2))","v":83.624159188598128},{"$f":"G212+G213+G214","v":418},{"$f":"SQRT((H212^2)+(H213^2)+(H214^2))","v":174.5995418092499},{"$f":"I212+I213+I214","v":40},{"$f":"SQRT((J212^2)+(J213^2)+(J214^2))","v":35.185224171518364},{"$f":"K212+K213+K214","v":11},{"$f":"SQRT((L212^2)+(L213^2)+(L214^2))","v":18.248287590894659},{"$f":"M212+M213+M214","v":21},{"$f":"SQRT((N212^2)+(N213^2)+(N214^2))","v":18.138357147217054},{"$f":"O212+O213+O214","v":0},{"$f":"SQRT((P212^2)+(P213^2)+(P214^2))","v":19.05255888325765},{"$f":"Q212+Q213+Q214","v":13},{"$f":"SQRT((R212^2)+(R213^2)+(R214^2))","v":17.378147196982766},{"$f":"S212+S213+S214","v":3},{"$f":"SQRT((T212^2)+(T213^2)+(T214^2))","v":16.06237840420901},{"$f":"U212+U213+U214","v":115},{"$f":"SQRT((V212^2)+(V213^2)+(V214^2))","v":101.98529305738157},{"$f":"W212+W213+W214","v":22},{"$f":"SQRT((X212^2)+(X213^2)+(X214^2))","v":25.019992006393608},{"$f":"Y212+Y213+Y214","v":2},{"$f":"SQRT((Z212^2)+(Z213^2)+(Z214^2))","v":16.340134638368191},{"$f":"AA212+AA213+AA214","v":99},{"$f":"SQRT((AB212^2)+(AB213^2)+(AB214^2))","v":67.216069507224233},{"$f":"AC212+AC213+AC214","v":9},{"$f":"SQRT((AD212^2)+(AD213^2)+(AD214^2))","v":14.352700094407323},{"$f":"AE212+AE213+AE214","v":8},{"$f":"SQRT((AF212^2)+(AF213^2)+(AF214^2))","v":13.076696830622021}]
[null,"More than 30.0 percent",{"$f":"C215+C216+C217+C218","v":0},{"$f":"SQRT((D215^2)+(D216^2)+(D217^2)+(D218^2))","v":22},{"$f":"E215+E216+E217+E218","v":0},{"$f":"SQRT((F215^2)+(F216^2)+(F217^2)+(F218^2))","v":32},{"$f":"G215+G216+G217+G218","v":0},{"$f":"SQRT((H215^2)+(H216^2)+(H217^2)+(H218^2))","v":36},{"$f":"I215+I216+I217+I218","v":0},{"$f":"SQRT((J215^2)+(J216^2)+(J217^2)+(J218^2))","v":22},{"$f":"K215+K216+K217+K218","v":0},{"$f":"SQRT((L215^2)+(L216^2)+(L217^2)+(L218^2))","v":22},{"$f":"M215+M216+M217+M218","v":0},{"$f":"SQRT((N215^2)+(N216^2)+(N217^2)+(N218^2))","v":22},{"$f":"O215+O216+O217+O218","v":0},{"$f":"SQRT((P215^2)+(P216^2)+(P217^2)+(P218^2))","v":22},{"$f":"Q215+Q216+Q217+Q218","v":0},{"$f":"SQRT((R215^2)+(R216^2)+(R217^2)+(R218^2))","v":22},{"$f":"S215+S216+S217+S218","v":0},{"$f":"SQRT((T215^2)+(T216^2)+(T217^2)+(T218^2))","v":22},{"$f":"U215+U216+U217+U218","v":0},{"$f":"SQRT((V215^2)+(V216^2)+(V217^2)+(V218^2))","v":32},{"$f":"W215+W216+W217+W218","v":21},{"$f":"SQRT((X215^2)+(X216^2)+(X217^2)+(X218^2))","v":30.512292604784715},{"$f":"Y215+Y216+Y217+Y218","v":0},{"$f":"SQRT((Z215^2)+(Z216^2)+(Z217^2)+(Z218^2))","v":22},{"$f":"AA215+AA216+AA217+AA218","v":21},{"$f":"SQRT((AB215^2)+(AB216^2)+(AB217^2)+(AB218^2))","v":27.495454169735041},{"$f":"AC215+AC216+AC217+AC218","v":0},{"$f":"SQRT((AD215^2)+(AD216^2)+(AD217^2)+(AD218^2))","v":22},{"$f":"AE215+AE216+AE217+AE218","v":0},{"$f":"SQRT((AF215^2)+(AF216^2)+(AF217^2)+(AF218^2))","v":22}]
[null,"Less Than 35% of HH Income",{"$f":"C215+C214+C213+C212","v":9},{"$f":"SQRT((D215^2)+(D214^2)+(D213^2)+(D212^2))","v":19.442222095223581},{"$f":"E215+E214+E213+E212","v":90},{"$f":"SQRT((F215^2)+(F214^2)+(F213^2)+(F212^2))","v":85.141059424933161},{"$f":"G215+G214+G213+G212","v":418},{"$f":"SQRT((H215^2)+(H214^2)+(H213^2)+(H212^2))","v":175.524927004685},{"$f":"I215+I214+I213+I212","v":40},{"$f":"SQRT((J215^2)+(J214^2)+(J213^2)+(J212^2))","v":36.864617182333525},{"$f":"K215+K214+K213+K212","v":11},{"$f":"SQRT((L215^2)+(L214^2)+(L213^2)+(L212^2))","v":21.307275752662516},{"$f":"M215+M214+M213+M212","v":21},{"$f":"SQRT((N215^2)+(N214^2)+(N213^2)+(N212^2))","v":21.213203435596427},{"$f":"O215+O214+O213+O212","v":0},{"$f":"SQRT((P215^2)+(P214^2)+(P213^2)+(P212^2))","v":22},{"$f":"Q215+Q214+Q213+Q212","v":13},{"$f":"SQRT((R215^2)+(R214^2)+(R213^2)+(R212^2))","v":20.566963801203133},{"$f":"S215+S214+S213+S212","v":3},{"$f":"SQRT((T215^2)+(T214^2)+(T213^2)+(T212^2))","v":19.467922333931785},{"$f":"U215+U214+U213+U212","v":115},{"$f":"SQRT((V215^2)+(V214^2)+(V213^2)+(V212^2))","v":103.23274674249446},{"$f":"W215+W214+W213+W212","v":27},{"$f":"SQRT((X215^2)+(X214^2)+(X213^2)+(X212^2))","v":26.267851073127396},{"$f":"Y215+Y214+Y213+Y212","v":2},{"$f":"SQRT((Z215^2)+(Z214^2)+(Z213^2)+(Z212^2))","v":19.697715603592208},{"$f":"AA215+AA214+AA213+AA212","v":99},{"$f":"SQRT((AB215^2)+(AB214^2)+(AB213^2)+(AB212^2))","v":68.110204815431288},{"$f":"AC215+AC214+AC213+AC212","v":9},{"$f":"SQRT((AD215^2)+(AD214^2)+(AD213^2)+(AD212^2))","v":18.083141320025124},{"$f":"AE215+AE214+AE213+AE212","v":8},{"$f":"SQRT((AF215^2)+(AF214^2)+(AF213^2)+(AF212^2))","v":17.088007490635061}]
[null,"35.0 percent or more",{"$f":"C216+C217+C218","v":0},{"$f":"SQRT((D216^2)+(D217^2)+(D218^2))","v":19.05255888325765},{"$f":"E216+E217+E218","v":0},{"$f":"SQRT((F216^2)+(F217^2)+(F218^2))","v":27.712812921102035},{"$f":"G216+G217+G218","v":0},{"$f":"SQRT((H216^2)+(H217^2)+(H218^2))","v":31.176914536239792},{"$f":"I216+I217+I218","v":0},{"$f":"SQRT((J216^2)+(J217^2)+(J218^2))","v":19.05255888325765},{"$f":"K216+K217+K218","v":0},{"$f":"SQRT((L216^2)+(L217^2)+(L218^2))","v":19.05255888325765},{"$f":"M216+M217+M218","v":0},{"$f":"SQRT((N216^2)+(N217^2)+(N218^2))","v":19.05255888325765},{"$f":"O216+O217+O218","v":0},{"$f":"SQRT((P216^2)+(P217^2)+(P218^2))","v":19.05255888325765},{"$f":"Q216+Q217+Q218","v":0},{"$f":"SQRT((R216^2)+(R217^2)+(R218^2))","v":19.05255888325765},{"$f":"S216+S217+S218","v":0},{"$f":"SQRT((T216^2)+(T217^2)+(T218^2))","v":19.05255888325765},{"$f":"U216+U217+U218","v":0},{"$f":"SQRT((V216^2)+(V217^2)+(V218^2))","v":27.712812921102035},{"$f":"W216+W217+W218","v":16},{"$f":"SQRT((X216^2)+(X217^2)+(X218^2))","v":29.444863728670914},{"$f":"Y216+Y217+Y218","v":0},{"$f":"SQRT((Z216^2)+(Z217^2)+(Z218^2))","v":19.05255888325765},{"$f":"AA216+AA217+AA218","v":21},{"$f":"SQRT((AB216^2)+(AB217^2)+(AB218^2))","v":25.199206336708304},{"$f":"AC216+AC217+AC218","v":0},{"$f":"SQRT((AD216^2)+(AD217^2)+(AD218^2))","v":19.05255888325765},{"$f":"AE216+AE217+AE218","v":0},{"$f":"SQRT((AF216^2)+(AF217^2)+(AF218^2))","v":19.05255888325765}]
[null,"50.0 percent or more",{"$f":"C218","v":0},11,0,{"$f":"F218","v":16},{"$f":"G218","v":0},18,{"$f":"I218","v":0},11,{"$f":"K218","v":0},11,{"$f":"M218","v":0},11,{"$f":"O218","v":0},11,{"$f":"Q218","v":0},11,{"$f":"S218","v":0},11,{"$f":"U218","v":0},16,{"$f":"W218","v":0},11,{"$f":"Y218","v":0},11,{"$f":"AA218","v":0},11,{"$f":"AC218","v":0},11,{"$f":"AE218","v":0},11]
[null,"Not Computed",4,6,0,16,{"$f":"G219","v":0},18,{"$f":"I219","v":0},11,{"$f":"K219","v":0},11,{"$f":"M219","v":0},11,{"$f":"O219","v":0},11,{"$f":"Q219","v":0},11,{"$f":"S219","v":0},11,{"$f":"U219","v":0},16,{"$f":"W219","v":0},11,{"$f":"Y219","v":7},8,{"$f":"AA219","v":0},11,{"$f":"AC219","v":0},11,{"$f":"AE219","v":2},4]
[null,"$75,000 to $99,999:",8,10,49,55,{"$f":"G220","v":136},103,{"$f":"I220","v":7},10,{"$f":"K220","v":11},13,{"$f":"M220","v":11},12,{"$f":"O220","v":19},23,{"$f":"Q220","v":0},11,{"$f":"S220","v":0},11,{"$f":"U220","v":94},68,{"$f":"W220","v":4},6,{"$f":"Y220","v":15},17,{"$f":"AA220","v":30},48,{"$f":"AC220","v":0},11,{"$f":"AE220","v":0},11]
[null,"Less than 30.0 percent",{"$f":"C221+C222+C223","v":8},{"$f":"SQRT((D221^2)+(D222^2)+(D223^2))","v":14.7648230602334},{"$f":"E221+E222+E223","v":49},{"$f":"SQRT((F221^2)+(F222^2)+(F223^2))","v":59.472682804797024},{"$f":"G221+G222+G223","v":127},{"$f":"SQRT((H221^2)+(H222^2)+(H223^2))","v":96.218501339399381},{"$f":"I221+I222+I223","v":7},{"$f":"SQRT((J221^2)+(J222^2)+(J223^2))","v":14.177446878757825},{"$f":"K221+K222+K223","v":11},{"$f":"SQRT((L221^2)+(L222^2)+(L223^2))","v":20.273134932713294},{"$f":"M221+M222+M223","v":11},{"$f":"SQRT((N221^2)+(N222^2)+(N223^2))","v":19.646882704388499},{"$f":"O221+O222+O223","v":19},{"$f":"SQRT((P221^2)+(P222^2)+(P223^2))","v":24.269322199023193},{"$f":"Q221+Q222+Q223","v":0},{"$f":"SQRT((R221^2)+(R222^2)+(R223^2))","v":19.05255888325765},{"$f":"S221+S222+S223","v":0},{"$f":"SQRT((T221^2)+(T222^2)+(T223^2))","v":19.05255888325765},{"$f":"U221+U222+U223","v":81},{"$f":"SQRT((V221^2)+(V222^2)+(V223^2))","v":68.825867230279059},{"$f":"W221+W222+W223","v":4},{"$f":"SQRT((X221^2)+(X222^2)+(X223^2))","v":16.673332000533065},{"$f":"Y221+Y222+Y223","v":15},{"$f":"SQRT((Z221^2)+(Z222^2)+(Z223^2))","v":20.928449536456348},{"$f":"AA221+AA222+AA223","v":30},{"$f":"SQRT((AB221^2)+(AB222^2)+(AB223^2))","v":50.457903246171455},{"$f":"AC221+AC222+AC223","v":0},{"$f":"SQRT((AD221^2)+(AD222^2)+(AD223^2))","v":19.05255888325765},{"$f":"AE221+AE222+AE223","v":0},{"$f":"SQRT((AF221^2)+(AF222^2)+(AF223^2))","v":19.05255888325765}]
[null,"More than 30.0 percent",{"$f":"C224+C225+C226+C227","v":0},{"$f":"SQRT((D224^2)+(D225^2)+(D226^2)+(D227^2))","v":22},{"$f":"E224+E225+E226+E227","v":0},{"$f":"SQRT((F224^2)+(F225^2)+(F226^2)+(F227^2))","v":32},{"$f":"G224+G225+G226+G227","v":0},{"$f":"SQRT((H224^2)+(H225^2)+(H226^2)+(H227^2))","v":36},{"$f":"I224+I225+I226+I227","v":0},{"$f":"SQRT((J224^2)+(J225^2)+(J226^2)+(J227^2))","v":22},{"$f":"K224+K225+K226+K227","v":0},{"$f":"SQRT((L224^2)+(L225^2)+(L226^2)+(L227^2))","v":22},{"$f":"M224+M225+M226+M227","v":0},{"$f":"SQRT((N224^2)+(N225^2)+(N226^2)+(N227^2))","v":22},{"$f":"O224+O225+O226+O227","v":0},{"$f":"SQRT((P224^2)+(P225^2)+(P226^2)+(P227^2))","v":22},{"$f":"Q224+Q225+Q226+Q227","v":0},{"$f":"SQRT((R224^2)+(R225^2)+(R226^2)+(R227^2))","v":22},{"$f":"S224+S225+S226+S227","v":0},{"$f":"SQRT((T224^2)+(T225^2)+(T226^2)+(T227^2))","v":22},{"$f":"U224+U225+U226+U227","v":13},{"$f":"SQRT((V224^2)+(V225^2)+(V226^2)+(V227^2))","v":40.11234224026316},{"$f":"W224+W225+W226+W227","v":0},{"$f":"SQRT((X224^2)+(X225^2)+(X226^2)+(X227^2))","v":22},{"$f":"Y224+Y225+Y226+Y227","v":0},{"$f":"SQRT((Z224^2)+(Z225^2)+(Z226^2)+(Z227^2))","v":22},{"$f":"AA224+AA225+AA226+AA227","v":0},{"$f":"SQRT((AB224^2)+(AB225^2)+(AB226^2)+(AB227^2))","v":22},{"$f":"AC224+AC225+AC226+AC227","v":0},{"$f":"SQRT((AD224^2)+(AD225^2)+(AD226^2)+(AD227^2))","v":22},{"$f":"AE224+AE225+AE226+AE227","v":0},{"$f":"SQRT((AF224^2)+(AF225^2)+(AF226^2)+(AF227^2))","v":22}]
[null,"Less Than 35% of HH Income",{"$f":"C221+C222+C223+C224","v":8},{"$f":"SQRT((D221^2)+(D222^2)+(D223^2)+(D224^2))","v":18.411952639521967},{"$f":"E221+E222+E223+E224","v":49},{"$f":"SQRT((F221^2)+(F222^2)+(F223^2)+(F224^2))","v":61.587336360651285},{"$f":"G221+G222+G223+G224","v":127},{"$f":"SQRT((H221^2)+(H222^2)+(H223^2)+(H224^2))","v":97.887690748122154},{"$f":"I221+I222+I223+I224","v":7},{"$f":"SQRT((J221^2)+(J222^2)+(J223^2)+(J224^2))","v":17.944358444926362},{"$f":"K221+K222+K223+K224","v":11},{"$f":"SQRT((L221^2)+(L222^2)+(L223^2)+(L224^2))","v":23.065125189341593},{"$f":"M221+M222+M223+M224","v":11},{"$f":"SQRT((N221^2)+(N222^2)+(N223^2)+(N224^2))","v":22.516660498395403},{"$f":"O221+O222+O223+O224","v":19},{"$f":"SQRT((P221^2)+(P222^2)+(P223^2)+(P224^2))","v":26.645825188948457},{"$f":"Q221+Q222+Q223+Q224","v":0},{"$f":"SQRT((R221^2)+(R222^2)+(R223^2)+(R224^2))","v":22},{"$f":"S221+S222+S223+S224","v":0},{"$f":"SQRT((T221^2)+(T222^2)+(T223^2)+(T224^2))","v":22},{"$f":"U221+U222+U223+U224","v":94},{"$f":"SQRT((V221^2)+(V222^2)+(V223^2)+(V224^2))","v":74.686009399351363},{"$f":"W221+W222+W223+W224","v":4},{"$f":"SQRT((X221^2)+(X222^2)+(X223^2)+(X224^2))","v":19.974984355438178},{"$f":"Y221+Y222+Y223+Y224","v":15},{"$f":"SQRT((Z221^2)+(Z222^2)+(Z223^2)+(Z224^2))","v":23.643180835073778},{"$f":"AA221+AA222+AA223+AA224","v":30},{"$f":"SQRT((AB221^2)+(AB222^2)+(AB223^2)+(AB224^2))","v":51.643005334701428},{"$f":"AC221+AC222+AC223+AC224","v":0},{"$f":"SQRT((AD221^2)+(AD222^2)+(AD223^2)+(AD224^2))","v":22},{"$f":"AE221+AE222+AE223+AE224","v":0},{"$f":"SQRT((AF221^2)+(AF222^2)+(AF223^2)+(AF224^2))","v":22}]
[null,"35.0 percent or more",{"$f":"C225+C226+C227","v":0},{"$f":"SQRT((D225^2)+(D226^2)+(D227^2))","v":19.05255888325765},{"$f":"E225+E226+E227","v":0},{"$f":"SQRT((F225^2)+(F226^2)+(F227^2))","v":27.712812921102035},{"$f":"G225+G226+G227","v":0},{"$f":"SQRT((H225^2)+(H226^2)+(H227^2))","v":31.176914536239792},{"$f":"I225+I226+I227","v":0},{"$f":"SQRT((J225^2)+(J226^2)+(J227^2))","v":19.05255888325765},{"$f":"K225+K226+K227","v":0},{"$f":"SQRT((L225^2)+(L226^2)+(L227^2))","v":19.05255888325765},{"$f":"M225+M226+M227","v":0},{"$f":"SQRT((N225^2)+(N226^2)+(N227^2))","v":19.05255888325765},{"$f":"O225+O226+O227","v":0},{"$f":"SQRT((P225^2)+(P226^2)+(P227^2))","v":19.05255888325765},{"$f":"Q225+Q226+Q227","v":0},{"$f":"SQRT((R225^2)+(R226^2)+(R227^2))","v":19.05255888325765},{"$f":"S225+S226+S227","v":0},{"$f":"SQRT((T225^2)+(T226^2)+(T227^2))","v":19.05255888325765},{"$f":"U225+U226+U227","v":0},{"$f":"SQRT((V225^2)+(V226^2)+(V227^2))","v":27.712812921102035},{"$f":"W225+W226+W227","v":0},{"$f":"SQRT((X225^2)+(X226^2)+(X227^2))","v":19.05255888325765},{"$f":"Y225+Y226+Y227","v":0},{"$f":"SQRT((Z225^2)+(Z226^2)+(Z227^2))","v":19.05255888325765},{"$f":"AA225+AA226+AA227","v":0},{"$f":"SQRT((AB225^2)+(AB226^2)+(AB227^2))","v":19.05255888325765},{"$f":"AC225+AC226+AC227","v":0},{"$f":"SQRT((AD225^2)+(AD226^2)+(AD227^2))","v":19.05255888325765},{"$f":"AE225+AE226+AE227","v":0},{"$f":"SQRT((AF225^2)+(AF226^2)+(AF227^2))","v":19.05255888325765}]
[null,"50.0 percent or more",{"$f":"C227","v":0},11,0,16,0,18,0,11,0,11,0,11,0,11,0,11,0,11,0,16,0,11,0,11,0,11,0,11,0,11]
[null,"Not Computed",0,11,0,16,9,15,0,11,0,11,0,11,0,11,0,11,0,11,0,16,0,11,0,11,0,11,0,11,0,11]
[null,"$100,000 or more:",0,11,0,16,102,83,7,7,7,10,4,7,67,72,8,12,5,9,28,34,27,25,10,15,22,26,4,7,26,35]
[null,"Less than 30.0 percent",{"$f":"C230+C231+C232","v":0},{"$f":"SQRT((D230^2)+(D231^2)+(D232^2))","v":19.05255888325765},{"$f":"E230+E231+E232","v":0},{"$f":"SQRT((F230^2)+(F231^2)+(F232^2))","v":27.712812921102035},{"$f":"G230+G231+G232","v":102},{"$f":"SQRT((H230^2)+(H231^2)+(H232^2))","v":86.815897161752588},{"$f":"I230+I231+I232","v":7},{"$f":"SQRT((J230^2)+(J231^2)+(J232^2))","v":13.152946437965905},{"$f":"K230+K231+K232","v":7},{"$f":"SQRT((L230^2)+(L231^2)+(L232^2))","v":18.493242008906929},{"$f":"M230+M231+M232","v":4},{"$f":"SQRT((N230^2)+(N231^2)+(N232^2))","v":17.058722109231979},{"$f":"O230+O231+O232","v":67},{"$f":"SQRT((P230^2)+(P231^2)+(P232^2))","v":73.661387442811588},{"$f":"Q230+Q231+Q232","v":8},{"$f":"SQRT((R230^2)+(R231^2)+(R232^2))","v":19.646882704388499},{"$f":"S230+S231+S232","v":0},{"$f":"SQRT((T230^2)+(T231^2)+(T232^2))","v":19.05255888325765},{"$f":"U230+U231+U232","v":28},{"$f":"SQRT((V230^2)+(V231^2)+(V232^2))","v":40.841155713324277},{"$f":"W230+W231+W232","v":13},{"$f":"SQRT((X230^2)+(X231^2)+(X232^2))","v":20.273134932713294},{"$f":"Y230+Y231+Y232","v":10},{"$f":"SQRT((Z230^2)+(Z231^2)+(Z232^2))","v":21.61018278497431},{"$f":"AA230+AA231+AA232","v":22},{"$f":"SQRT((AB230^2)+(AB231^2)+(AB232^2))","v":27.730849247724095},{"$f":"AC230+AC231+AC232","v":0},{"$f":"SQRT((AD230^2)+(AD231^2)+(AD232^2))","v":19.05255888325765},{"$f":"AE230+AE231+AE232","v":26},{"$f":"SQRT((AF230^2)+(AF231^2)+(AF232^2))","v":38.301436004411116}]
[null,"More than 30.0 percent",{"$f":"C233+C234+C235+C236","v":0},{"$f":"SQRT((D233^2)+(D234^2)+(D235^2)+(D236^2))","v":22},{"$f":"E233+E234+E235+E236","v":0},{"$f":"SQRT((F233^2)+(F234^2)+(F235^2)+(F236^2))","v":32},{"$f":"G233+G234+G235+G236","v":0},{"$f":"SQRT((H233^2)+(H234^2)+(H235^2)+(H236^2))","v":36},{"$f":"I233+I234+I235+I236","v":0},{"$f":"SQRT((J233^2)+(J234^2)+(J235^2)+(J236^2))","v":22},{"$f":"K233+K234+K235+K236","v":0},{"$f":"SQRT((L233^2)+(L234^2)+(L235^2)+(L236^2))","v":22},{"$f":"M233+M234+M235+M236","v":0},{"$f":"SQRT((N233^2)+(N234^2)+(N235^2)+(N236^2))","v":22},{"$f":"O233+O234+O235+O236","v":0},{"$f":"SQRT((P233^2)+(P234^2)+(P235^2)+(P236^2))","v":22},{"$f":"Q233+Q234+Q235+Q236","v":0},{"$f":"SQRT((R233^2)+(R234^2)+(R235^2)+(R236^2))","v":22},{"$f":"S233+S234+S235+S236","v":0},{"$f":"SQRT((T233^2)+(T234^2)+(T235^2)+(T236^2))","v":22},{"$f":"U233+U234+U235+U236","v":0},{"$f":"SQRT((V233^2)+(V234^2)+(V235^2)+(V236^2))","v":32},{"$f":"W233+W234+W235+W236","v":14},{"$f":"SQRT((X233^2)+(X234^2)+(X235^2)+(X236^2))","v":29.103264421710495},{"$f":"Y233+Y234+Y235+Y236","v":0},{"$f":"SQRT((Z233^2)+(Z234^2)+(Z235^2)+(Z236^2))","v":22},{"$f":"AA233+AA234+AA235+AA236","v":0},{"$f":"SQRT((AB233^2)+(AB234^2)+(AB235^2)+(AB236^2))","v":22},{"$f":"AC233+AC234+AC235+AC236","v":0},{"$f":"SQRT((AD233^2)+(AD234^2)+(AD235^2)+(AD236^2))","v":22},{"$f":"AE233+AE234+AE235+AE236","v":0},{"$f":"SQRT((AF233^2)+(AF234^2)+(AF235^2)+(AF236^2))","v":22}]
[null,"Less Than 35% of HH Income",{"$f":"C230+C231+C232+C233","v":0},{"$f":"SQRT(((D230^2)+(D231^2)+(D232^2)+(D233^2)))","v":22},{"$f":"E230+E231+E232+E233","v":0},{"$f":"SQRT(((F230^2)+(F231^2)+(F232^2)+(F233^2)))","v":32},{"$f":"G230+G231+G232+G233","v":102},{"$f":"SQRT(((H230^2)+(H231^2)+(H232^2)+(H233^2)))","v":88.662280593271461},{"$f":"I230+I231+I232+I233","v":7},{"$f":"SQRT(((J230^2)+(J231^2)+(J232^2)+(J233^2)))","v":17.146428199482248},{"$f":"K230+K231+K232+K233","v":7},{"$f":"SQRT(((L230^2)+(L231^2)+(L232^2)+(L233^2)))","v":21.517434791350013},{"$f":"M230+M231+M232+M233","v":4},{"$f":"SQRT(((N230^2)+(N231^2)+(N232^2)+(N233^2)))","v":20.297783130184438},{"$f":"O230+O231+O232+O233","v":67},{"$f":"SQRT(((P230^2)+(P231^2)+(P232^2)+(P233^2)))","v":74.47818472546173},{"$f":"Q230+Q231+Q232+Q233","v":8},{"$f":"SQRT(((R230^2)+(R231^2)+(R232^2)+(R233^2)))","v":22.516660498395403},{"$f":"S230+S231+S232+S233","v":0},{"$f":"SQRT(((T230^2)+(T231^2)+(T232^2)+(T233^2)))","v":22},{"$f":"U230+U231+U232+U233","v":28},{"$f":"SQRT(((V230^2)+(V231^2)+(V232^2)+(V233^2)))","v":43.863424398922618},{"$f":"W230+W231+W232+W233","v":27},{"$f":"SQRT(((X230^2)+(X231^2)+(X232^2)+(X233^2)))","v":29.916550603303182},{"$f":"Y230+Y231+Y232+Y233","v":10},{"$f":"SQRT(((Z230^2)+(Z231^2)+(Z232^2)+(Z233^2)))","v":24.248711305964282},{"$f":"AA230+AA231+AA232+AA233","v":22},{"$f":"SQRT(((AB230^2)+(AB231^2)+(AB232^2)+(AB233^2)))","v":29.832867780352597},{"$f":"AC230+AC231+AC232+AC233","v":0},{"$f":"SQRT(((AD230^2)+(AD231^2)+(AD232^2)+(AD233^2)))","v":22},{"$f":"AE230+AE231+AE232+AE233","v":26},{"$f":"SQRT(((AF230^2)+(AF231^2)+(AF232^2)+(AF233^2)))","v":39.849717690342551}]
[null,"35.0 percent or more",{"$f":"C234+C235+C236","v":0},{"$f":"SQRT((D234^2)+(D235^2)+(D236^2))","v":19.05255888325765},{"$f":"E234+E235+E236","v":0},{"$f":"SQRT((F234^2)+(F235^2)+(F236^2))","v":27.712812921102035},{"$f":"G234+G235+G236","v":0},{"$f":"SQRT((H234^2)+(H235^2)+(H236^2))","v":31.176914536239792},{"$f":"I234+I235+I236","v":0},{"$f":"SQRT((J234^2)+(J235^2)+(J236^2))","v":19.05255888325765},{"$f":"K234+K235+K236","v":0},{"$f":"SQRT((L234^2)+(L235^2)+(L236^2))","v":19.05255888325765},{"$f":"M234+M235+M236","v":0},{"$f":"SQRT((N234^2)+(N235^2)+(N236^2))","v":19.05255888325765},{"$f":"O234+O235+O236","v":0},{"$f":"SQRT((P234^2)+(P235^2)+(P236^2))","v":19.05255888325765},{"$f":"Q234+Q235+Q236","v":0},{"$f":"SQRT((R234^2)+(R235^2)+(R236^2))","v":19.05255888325765},{"$f":"S234+S235+S236","v":0},{"$f":"SQRT((T234^2)+(T235^2)+(T236^2))","v":19.05255888325765},{"$f":"U234+U235+U236","v":0},{"$f":"SQRT((V234^2)+(V235^2)+(V236^2))","v":27.712812921102035},{"$f":"W234+W235+W236","v":0},{"$f":"SQRT((X234^2)+(X235^2)+(X236^2))","v":19.05255888325765},{"$f":"Y234+Y235+Y236","v":0},{"$f":"SQRT((Z234^2)+(Z235^2)+(Z236^2))","v":19.05255888325765},{"$f":"AA234+AA235+AA236","v":0},{"$f":"SQRT((AB234^2)+(AB235^2)+(AB236^2))","v":19.05255888325765},{"$f":"AC234+AC235+AC236","v":0},{"$f":"SQRT((AD234^2)+(AD235^2)+(AD236^2))","v":19.05255888325765},{"$f":"AE234+AE235+AE236","v":0},{"$f":"SQRT((AF234^2)+(AF235^2)+(AF236^2))","v":19.05255888325765}]
[null,"50.0 percent or more",{"$f":"C236","v":0},11,0,{"$f":"F236","v":16},{"$f":"G236","v":0},18,{"$f":"I236","v":0},11,{"$f":"K236","v":0},11,{"$f":"M236","v":0},11,{"$f":"O236","v":0},11,{"$f":"Q236","v":0},11,{"$f":"S236","v":0},11,{"$f":"U236","v":0},16,{"$f":"W236","v":0},11,{"$f":"Y236","v":0},11,{"$f":"AA236","v":0},11,{"$f":"AC236","v":0},11,{"$f":"AE236","v":0},11]
[null,"Not Computed",0,11,0,16,{"$f":"G237","v":0},18,{"$f":"I237","v":0},11,{"$f":"K237","v":0},11,{"$f":"M237","v":0},11,{"$f":"O237","v":0},11,{"$f":"Q237","v":0},11,{"$f":"S237","v":5},9,{"$f":"U237","v":0},16,{"$f":"W237","v":0},11,{"$f":"Y237","v":0},11,{"$f":"AA237","v":0},11,{"$f":"AC237","v":4},7,{"$f":"AE237","v":0},11]
[]
[]
[null,"Calculated GROSS RENT AS A PERCENTAGE OF HOUSEHOLD INCOME IN THE PAST 12 MONTHS"]
[null,"Universe:  RENTER-OCCUPIED HOUSING UNITS"]
[null,{"$f":"B170","v":"Data Set: 2013-2017 American Community Survey 5-Year Estimates"}]
[]
[null,null,"Acworth",null,"Charlestown",null,"Claremont",null,"Cornish",null,"Croydon",null,"Goshen",null,"Grantham",null,"Langdon",null,"Lempster",null,"Newport",null,"Plainfield",null,"Springfield",null,"Sunapee",null,"Unity",null,"Washington"]
[null,null,"Estimate","Margin Of Error","Estimate","Margin Of Error","Estimate","Margin Of Error","Estimate","Margin Of Error","Estimate","Margin Of Error","Estimate","Margin Of Error","Estimate","Margin Of Error","Estimate","Margin Of Error","Estimate","Margin Of Error","Estimate","Margin Of Error","Estimate","Margin Of Error","Estimate","Margin Of Error","Estimate","Margin Of Error","Estimate","Margin Of Error","Estimate","Margin Of Error"]
[null,{"$f":"B259","v":"Total:"},39,20,429,133,2404,276,81,38,33,21,65,32,103,80,26,18,22,14,780,174,99,45,55,34,504,158,37,19,49,36]
[null,"Less than 30.0 percent",{"$f":"C303+C296+C289+C282+C275+C268+C261","v":20},{"$f":"SQRT((D303^2)+(D296^2)+(D289^2)+(D282^2)+(D275^2)+(D268^2)+(D261^2))","v":46.743983570080971},{"$f":"E303+E296+E289+E282+E275+E268+E261","v":213},{"$f":"SQRT((F303^2)+(F296^2)+(F289^2)+(F282^2)+(F275^2)+(F268^2)+(F261^2))","v":128.11713390487628},{"$f":"G303+G296+G289+G282+G275+G268+G261","v":1159},{"$f":"SQRT((H303^2)+(H296^2)+(H289^2)+(H282^2)+(H275^2)+(H268^2)+(H261^2))","v":259.61895154244809},{"$f":"I303+I296+I289+I282+I275+I268+I261","v":57},{"$f":"SQRT((J303^2)+(J296^2)+(J289^2)+(J282^2)+(J275^2)+(J268^2)+(J261^2))","v":54.479353887504942},{"$f":"K303+K296+K289+K282+K275+K268+K261","v":29},{"$f":"SQRT((L303^2)+(L296^2)+(L289^2)+(L282^2)+(L275^2)+(L268^2)+(L261^2))","v":50.378566871239997},{"$f":"M303+M296+M289+M282+M275+M268+M261","v":36},{"$f":"SQRT((N303^2)+(N296^2)+(N289^2)+(N282^2)+(N275^2)+(N268^2)+(N261^2))","v":49.578221024962161},{"$f":"O303+O296+O289+O282+O275+O268+O261","v":103},{"$f":"SQRT((P303^2)+(P296^2)+(P289^2)+(P282^2)+(P275^2)+(P268^2)+(P261^2))","v":92.157473923713866},{"$f":"Q303+Q296+Q289+Q282+Q275+Q268+Q261","v":21},{"$f":"SQRT((R303^2)+(R296^2)+(R289^2)+(R282^2)+(R275^2)+(R268^2)+(R261^2))","v":50.029991005395956},{"$f":"S303+S296+S289+S282+S275+S268+S261","v":11},{"$f":"SQRT((T303^2)+(T296^2)+(T289^2)+(T282^2)+(T275^2)+(T268^2)+(T261^2))","v":45.978255730290599},{"$f":"U303+U296+U289+U282+U275+U268+U261","v":354},{"$f":"SQRT((V303^2)+(V296^2)+(V289^2)+(V282^2)+(V275^2)+(V268^2)+(V261^2))","v":164.03353315709566},{"$f":"W303+W296+W289+W282+W275+W268+W261","v":43},{"$f":"SQRT((X303^2)+(X296^2)+(X289^2)+(X282^2)+(X275^2)+(X268^2)+(X261^2))","v":51.913389409669641},{"$f":"Y303+Y296+Y289+Y282+Y275+Y268+Y261","v":36},{"$f":"SQRT((Z303^2)+(Z296^2)+(Z289^2)+(Z282^2)+(Z275^2)+(Z268^2)+(Z261^2))","v":51.951900831442153},{"$f":"AA303+AA296+AA289+AA282+AA275+AA268+AA261","v":163},{"$f":"SQRT((AB303^2)+(AB296^2)+(AB289^2)+(AB282^2)+(AB275^2)+(AB268^2)+(AB261^2))","v":97.795705427181204},{"$f":"AC303+AC296+AC289+AC282+AC275+AC268+AC261","v":16},{"$f":"SQRT((AD303^2)+(AD296^2)+(AD289^2)+(AD282^2)+(AD275^2)+(AD268^2)+(AD261^2))","v":48.414873747640819},{"$f":"AE303+AE296+AE289+AE282+AE275+AE268+AE261","v":34},{"$f":"SQRT((AF303^2)+(AF296^2)+(AF289^2)+(AF282^2)+(AF275^2)+(AF268^2)+(AF261^2))","v":58.762232769015846}]
[null,"More than 30.0 percent",{"$f":"C304+C297+C290+C283+C276+C269+C262","v":11},{"$f":"SQRT((D304^2)+(D297^2)+(D290^2)+(D283^2)+(D276^2)+(D269^2)+(D262^2))","v":56.062465161639118},{"$f":"E304+E297+E290+E283+E276+E269+E262","v":174},{"$f":"SQRT((F304^2)+(F297^2)+(F290^2)+(F283^2)+(F276^2)+(F269^2)+(F262^2))","v":132.3555816730069},{"$f":"G304+G297+G290+G283+G276+G269+G262","v":1078},{"$f":"SQRT((H304^2)+(H297^2)+(H290^2)+(H283^2)+(H276^2)+(H269^2)+(H262^2))","v":252.24392956025721},{"$f":"I304+I297+I290+I283+I276+I269+I262","v":21},{"$f":"SQRT((J304^2)+(J297^2)+(J290^2)+(J283^2)+(J276^2)+(J269^2)+(J262^2))","v":55.416604009989641},{"$f":"K304+K297+K290+K283+K276+K269+K262","v":4},{"$f":"SQRT((L304^2)+(L297^2)+(L290^2)+(L283^2)+(L276^2)+(L269^2)+(L262^2))","v":56.373752757821613},{"$f":"M304+M297+M290+M283+M276+M269+M262","v":25},{"$f":"SQRT((N304^2)+(N297^2)+(N290^2)+(N283^2)+(N276^2)+(N269^2)+(N262^2))","v":56.311632901204348},{"$f":"O304+O297+O290+O283+O276+O269+O262","v":0},{"$f":"SQRT((P304^2)+(P297^2)+(P290^2)+(P283^2)+(P276^2)+(P269^2)+(P262^2))","v":58.20652884342099},{"$f":"Q304+Q297+Q290+Q283+Q276+Q269+Q262","v":5},{"$f":"SQRT((R304^2)+(R297^2)+(R290^2)+(R283^2)+(R276^2)+(R269^2)+(R262^2))","v":57.714816122032303},{"$f":"S304+S297+S290+S283+S276+S269+S262","v":3},{"$f":"SQRT((T304^2)+(T297^2)+(T290^2)+(T283^2)+(T276^2)+(T269^2)+(T262^2))","v":57.297469403107151},{"$f":"U304+U297+U290+U283+U276+U269+U262","v":354},{"$f":"SQRT((V304^2)+(V297^2)+(V290^2)+(V283^2)+(V276^2)+(V269^2)+(V262^2))","v":170.96490868011483},{"$f":"W304+W297+W290+W283+W276+W269+W262","v":51},{"$f":"SQRT((X304^2)+(X297^2)+(X290^2)+(X283^2)+(X276^2)+(X269^2)+(X262^2))","v":63.221831672294975},{"$f":"Y304+Y297+Y290+Y283+Y276+Y269+Y262","v":5},{"$f":"SQRT((Z304^2)+(Z297^2)+(Z290^2)+(Z283^2)+(Z276^2)+(Z269^2)+(Z262^2))","v":57.714816122032303},{"$f":"AA304+AA297+AA290+AA283+AA276+AA269+AA262","v":338},{"$f":"SQRT((AB304^2)+(AB297^2)+(AB290^2)+(AB283^2)+(AB276^2)+(AB269^2)+(AB262^2))","v":159.38318606427717},{"$f":"AC304+AC297+AC290+AC283+AC276+AC269+AC262","v":14},{"$f":"SQRT((AD304^2)+(AD297^2)+(AD290^2)+(AD283^2)+(AD276^2)+(AD269^2)+(AD262^2))","v":57.913728942281033},{"$f":"AE304+AE297+AE290+AE283+AE276+AE269+AE262","v":0},{"$f":"SQRT((AF304^2)+(AF297^2)+(AF290^2)+(AF283^2)+(AF276^2)+(AF269^2)+(AF262^2))","v":58.20652884342099}]
[null,"Less Than 35% of HH Income",{"$f":"C305+C298+C291+C284+C277+C270+C263","v":22},{"$f":"SQRT((D305^2)+(D298^2)+(D291^2)+(D284^2)+(D277^2)+(D270^2)+(D263^2))","v":54.037024344425184},{"$f":"E305+E298+E291+E284+E277+E270+E263","v":264},{"$f":"SQRT((F305^2)+(F298^2)+(F291^2)+(F284^2)+(F277^2)+(F270^2)+(F263^2))","v":146.82983348080185},{"$f":"G305+G298+G291+G284+G277+G270+G263","v":1530},{"$f":"SQRT((H305^2)+(H298^2)+(H291^2)+(H284^2)+(H277^2)+(H270^2)+(H263^2))","v":308.51904317237859},{"$f":"I305+I298+I291+I284+I277+I270+I263","v":57},{"$f":"SQRT((J305^2)+(J298^2)+(J291^2)+(J284^2)+(J277^2)+(J270^2)+(J263^2))","v":61.765686266729041},{"$f":"K305+K298+K291+K284+K277+K270+K263","v":29},{"$f":"SQRT((L305^2)+(L298^2)+(L291^2)+(L284^2)+(L277^2)+(L270^2)+(L263^2))","v":58.180752831155424},{"$f":"M305+M298+M291+M284+M277+M270+M263","v":43},{"$f":"SQRT((N305^2)+(N298^2)+(N291^2)+(N284^2)+(N277^2)+(N270^2)+(N263^2))","v":57.489129407219238},{"$f":"O305+O298+O291+O284+O277+O270+O263","v":103},{"$f":"SQRT((P305^2)+(P298^2)+(P291^2)+(P284^2)+(P277^2)+(P270^2)+(P263^2))","v":96.643675426796548},{"$f":"Q305+Q298+Q291+Q284+Q277+Q270+Q263","v":21},{"$f":"SQRT((R305^2)+(R298^2)+(R291^2)+(R284^2)+(R277^2)+(R270^2)+(R263^2))","v":57.879184513951124},{"$f":"S305+S298+S291+S284+S277+S270+S263","v":11},{"$f":"SQRT((T305^2)+(T298^2)+(T291^2)+(T284^2)+(T277^2)+(T270^2)+(T263^2))","v":54.415071441651165},{"$f":"U305+U298+U291+U284+U277+U270+U263","v":405},{"$f":"SQRT((V305^2)+(V298^2)+(V291^2)+(V284^2)+(V277^2)+(V270^2)+(V263^2))","v":175.00857121866918},{"$f":"W305+W298+W291+W284+W277+W270+W263","v":68},{"$f":"SQRT((X305^2)+(X298^2)+(X291^2)+(X284^2)+(X277^2)+(X270^2)+(X263^2))","v":61.571097115448573},{"$f":"Y305+Y298+Y291+Y284+Y277+Y270+Y263","v":36},{"$f":"SQRT((Z305^2)+(Z298^2)+(Z291^2)+(Z284^2)+(Z277^2)+(Z270^2)+(Z263^2))","v":59.548299723837623},{"$f":"AA305+AA298+AA291+AA284+AA277+AA270+AA263","v":258},{"$f":"SQRT((AB305^2)+(AB298^2)+(AB291^2)+(AB284^2)+(AB277^2)+(AB270^2)+(AB263^2))","v":132.67252918370102},{"$f":"AC305+AC298+AC291+AC284+AC277+AC270+AC263","v":16},{"$f":"SQRT((AD305^2)+(AD298^2)+(AD291^2)+(AD284^2)+(AD277^2)+(AD270^2)+(AD263^2))","v":56.488936969994398},{"$f":"AE305+AE298+AE291+AE284+AE277+AE270+AE263","v":34},{"$f":"SQRT((AF305^2)+(AF298^2)+(AF291^2)+(AF284^2)+(AF277^2)+(AF270^2)+(AF263^2))","v":65.574385243020004}]
[null,"35.0 percent or more",{"$f":"C306+C299+C292+C285+C278+C271+C264","v":9},{"$f":"SQRT((D306^2)+(D299^2)+(D292^2)+(D285^2)+(D278^2)+(D271^2)+(D264^2))","v":49.071376585541188},{"$f":"E306+E299+E292+E285+E278+E271+E264","v":123},{"$f":"SQRT((F306^2)+(F299^2)+(F292^2)+(F285^2)+(F278^2)+(F271^2)+(F264^2))","v":111.23398761170077},{"$f":"G306+G299+G292+G285+G278+G271+G264","v":707},{"$f":"SQRT((H306^2)+(H299^2)+(H292^2)+(H285^2)+(H278^2)+(H271^2)+(H264^2))","v":189.32775813387747},{"$f":"I306+I299+I292+I285+I278+I271+I264","v":21},{"$f":"SQRT((J306^2)+(J299^2)+(J292^2)+(J285^2)+(J278^2)+(J271^2)+(J264^2))","v":47.159304490206381},{"$f":"K306+K299+K292+K285+K278+K271+K264","v":4},{"$f":"SQRT((L306^2)+(L299^2)+(L292^2)+(L285^2)+(L278^2)+(L271^2)+(L264^2))","v":48.28043081829324},{"$f":"M306+M299+M292+M285+M278+M271+M264","v":18},{"$f":"SQRT((N306^2)+(N299^2)+(N292^2)+(N285^2)+(N278^2)+(N271^2)+(N264^2))","v":48.207883172775801},{"$f":"O306+O299+O292+O285+O278+O271+O264","v":0},{"$f":"SQRT((P306^2)+(P299^2)+(P292^2)+(P285^2)+(P278^2)+(P271^2)+(P264^2))","v":50.408332644514239},{"$f":"Q306+Q299+Q292+Q285+Q278+Q271+Q264","v":5},{"$f":"SQRT((R306^2)+(R299^2)+(R292^2)+(R285^2)+(R278^2)+(R271^2)+(R264^2))","v":49.839743177508446},{"$f":"S306+S299+S292+S285+S278+S271+S264","v":3},{"$f":"SQRT((T306^2)+(T299^2)+(T292^2)+(T285^2)+(T278^2)+(T271^2)+(T264^2))","v":49.355850717012267},{"$f":"U306+U299+U292+U285+U278+U271+U264","v":303},{"$f":"SQRT((V306^2)+(V299^2)+(V292^2)+(V285^2)+(V278^2)+(V271^2)+(V264^2))","v":159.71224123403942},{"$f":"W306+W299+W292+W285+W278+W271+W264","v":26},{"$f":"SQRT((X306^2)+(X299^2)+(X292^2)+(X285^2)+(X278^2)+(X271^2)+(X264^2))","v":53.860932037980923},{"$f":"Y306+Y299+Y292+Y285+Y278+Y271+Y264","v":5},{"$f":"SQRT((Z306^2)+(Z299^2)+(Z292^2)+(Z285^2)+(Z278^2)+(Z271^2)+(Z264^2))","v":49.839743177508446},{"$f":"AA306+AA299+AA292+AA285+AA278+AA271+AA264","v":243},{"$f":"SQRT((AB306^2)+(AB299^2)+(AB292^2)+(AB285^2)+(AB278^2)+(AB271^2)+(AB264^2))","v":131.77632564311392},{"$f":"AC306+AC299+AC292+AC285+AC278+AC271+AC264","v":14},{"$f":"SQRT((AD306^2)+(AD299^2)+(AD292^2)+(AD285^2)+(AD278^2)+(AD271^2)+(AD264^2))","v":50.069951068480187},{"$f":"AE306+AE299+AE292+AE285+AE278+AE271+AE264","v":0},{"$f":"SQRT((AF306^2)+(AF299^2)+(AF292^2)+(AF285^2)+(AF278^2)+(AF271^2)+(AF264^2))","v":50.408332644514239}]
[null,"50.0 percent or more",{"$f":"C307+C300+C293+C286+C279+C272+C265","v":1},{"$f":"SQRT((D307^2)+(D300^2)+(D293^2)+(D286^2)+(D279^2)+(D272^2)+(D265^2))","v":27.110883423451916},{"$f":"E307+E300+E293+E286+E279+E272+E265","v":103},{"$f":"SQRT((F307^2)+(F300^2)+(F293^2)+(F286^2)+(F279^2)+(F272^2)+(F265^2))","v":89.196412483911033},{"$f":"G307+G300+G293+G286+G279+G272+G265","v":363},{"$f":"SQRT((H307^2)+(H300^2)+(H293^2)+(H286^2)+(H279^2)+(H272^2)+(H265^2))","v":128.44064777164587},{"$f":"I307+I300+I293+I286+I279+I272+I265","v":18},{"$f":"SQRT((J307^2)+(J300^2)+(J293^2)+(J286^2)+(J279^2)+(J272^2)+(J265^2))","v":25.019992006393608},{"$f":"K307+K300+K293+K286+K279+K272+K265","v":2},{"$f":"SQRT((L307^2)+(L300^2)+(L293^2)+(L286^2)+(L279^2)+(L272^2)+(L265^2))","v":27.239676943752471},{"$f":"M307+M300+M293+M286+M279+M272+M265","v":11},{"$f":"SQRT((N307^2)+(N300^2)+(N293^2)+(N286^2)+(N279^2)+(N272^2)+(N265^2))","v":25.099800796022265},{"$f":"O307+O300+O293+O286+O279+O272+O265","v":0},{"$f":"SQRT((P307^2)+(P300^2)+(P293^2)+(P286^2)+(P279^2)+(P272^2)+(P265^2))","v":29.103264421710495},{"$f":"Q307+Q300+Q293+Q286+Q279+Q272+Q265","v":5},{"$f":"SQRT((R307^2)+(R300^2)+(R293^2)+(R286^2)+(R279^2)+(R272^2)+(R265^2))","v":28.106938645110393},{"$f":"S307+S300+S293+S286+S279+S272+S265","v":0},{"$f":"SQRT((T307^2)+(T300^2)+(T293^2)+(T286^2)+(T279^2)+(T272^2)+(T265^2))","v":29.103264421710495},{"$f":"U307+U300+U293+U286+U279+U272+U265","v":189},{"$f":"SQRT((V307^2)+(V300^2)+(V293^2)+(V286^2)+(V279^2)+(V272^2)+(V265^2))","v":109.8453458276681},{"$f":"W307+W300+W293+W286+W279+W272+W265","v":0},{"$f":"SQRT((X307^2)+(X300^2)+(X293^2)+(X286^2)+(X279^2)+(X272^2)+(X265^2))","v":29.103264421710495},{"$f":"Y307+Y300+Y293+Y286+Y279+Y272+Y265","v":0},{"$f":"SQRT((Z307^2)+(Z300^2)+(Z293^2)+(Z286^2)+(Z279^2)+(Z272^2)+(Z265^2))","v":29.103264421710495},{"$f":"AA307+AA300+AA293+AA286+AA279+AA272+AA265","v":194},{"$f":"SQRT((AB307^2)+(AB300^2)+(AB293^2)+(AB286^2)+(AB279^2)+(AB272^2)+(AB265^2))","v":122.69474316367429},{"$f":"AC307+AC300+AC293+AC286+AC279+AC272+AC265","v":8},{"$f":"SQRT((AD307^2)+(AD300^2)+(AD293^2)+(AD286^2)+(AD279^2)+(AD272^2)+(AD265^2))","v":29.49576240750525},{"$f":"AE307+AE300+AE293+AE286+AE279+AE272+AE265","v":0},{"$f":"SQRT((AF307^2)+(AF300^2)+(AF293^2)+(AF286^2)+(AF279^2)+(AF272^2)+(AF265^2))","v":29.103264421710495}]
[null,"Not Computed",{"$f":"C307+C301+C294+C287+C280+C273+C266","v":8},{"$f":"SQRT((D307^2)+(D301^2)+(D294^2)+(D287^2)+(D280^2)+(D273^2)+(D266^2))","v":23.194827009486403},{"$f":"E307+E301+E294+E287+E280+E273+E266","v":42},{"$f":"SQRT((F307^2)+(F301^2)+(F294^2)+(F287^2)+(F280^2)+(F273^2)+(F266^2))","v":54.055527006958314},{"$f":"G307+G301+G294+G287+G280+G273+G266","v":167},{"$f":"SQRT((H307^2)+(H301^2)+(H294^2)+(H287^2)+(H280^2)+(H273^2)+(H266^2))","v":110.45361017187261},{"$f":"I307+I301+I294+I287+I280+I273+I266","v":3},{"$f":"SQRT((J307^2)+(J301^2)+(J294^2)+(J287^2)+(J280^2)+(J273^2)+(J266^2))","v":27.404379212089442},{"$f":"K307+K301+K294+K287+K280+K273+K266","v":0},{"$f":"SQRT((L307^2)+(L301^2)+(L294^2)+(L287^2)+(L280^2)+(L273^2)+(L266^2))","v":29.103264421710495},{"$f":"M307+M301+M294+M287+M280+M273+M266","v":4},{"$f":"SQRT((N307^2)+(N301^2)+(N294^2)+(N287^2)+(N280^2)+(N273^2)+(N266^2))","v":27.239676943752471},{"$f":"O307+O301+O294+O287+O280+O273+O266","v":0},{"$f":"SQRT((P307^2)+(P301^2)+(P294^2)+(P287^2)+(P280^2)+(P273^2)+(P266^2))","v":29.103264421710495},{"$f":"Q307+Q301+Q294+Q287+Q280+Q273+Q266","v":0},{"$f":"SQRT((R307^2)+(R301^2)+(R294^2)+(R287^2)+(R280^2)+(R273^2)+(R266^2))","v":29.103264421710495},{"$f":"S307+S301+S294+S287+S280+S273+S266","v":3},{"$f":"SQRT((T307^2)+(T301^2)+(T294^2)+(T287^2)+(T280^2)+(T273^2)+(T266^2))","v":27.239676943752471},{"$f":"U307+U301+U294+U287+U280+U273+U266","v":72},{"$f":"SQRT((V307^2)+(V301^2)+(V294^2)+(V287^2)+(V280^2)+(V273^2)+(V266^2))","v":72.938330115241882},{"$f":"W307+W301+W294+W287+W280+W273+W266","v":5},{"$f":"SQRT((X307^2)+(X301^2)+(X294^2)+(X287^2)+(X280^2)+(X273^2)+(X266^2))","v":28.106938645110393},{"$f":"Y307+Y301+Y294+Y287+Y280+Y273+Y266","v":14},{"$f":"SQRT((Z307^2)+(Z301^2)+(Z294^2)+(Z287^2)+(Z280^2)+(Z273^2)+(Z266^2))","v":28.106938645110393},{"$f":"AA307+AA301+AA294+AA287+AA280+AA273+AA266","v":3},{"$f":"SQRT((AB307^2)+(AB301^2)+(AB294^2)+(AB287^2)+(AB280^2)+(AB273^2)+(AB266^2))","v":27.604347483684521},{"$f":"AC307+AC301+AC294+AC287+AC280+AC273+AC266","v":3},{"$f":"SQRT((AD307^2)+(AD301^2)+(AD294^2)+(AD287^2)+(AD280^2)+(AD273^2)+(AD266^2))","v":27.239676943752471},{"$f":"AE307+AE301+AE294+AE287+AE280+AE273+AE266","v":15},{"$f":"SQRT((AF307^2)+(AF301^2)+(AF294^2)+(AF287^2)+(AF280^2)+(AF273^2)+(AF266^2))","v":24.186773244895647}]
[]
[]
[]
[]
[]
[]
[]
[]
[]
[]
[]
[]
[]
[]
[]
[]
[]
[]
[]
[]
[null,"B25074. HOUSEHOLD INCOME BY GROSS RENT AS A PERCENTAGE OF HOUSEHOLD INCOME IN THE PAST 12 MONTHS"]
[null,"Universe:  RENTEROCCUPIED HOUSING UNITS"]
[null,"Data Set: 2008-2012 American Community Survey 5-Year Estimates",null,null,null,null,{"$f":"'RentalHousingCost-Prior10Yr'!D41","v":"Income in 2012 Inflation Adjusted Dollars"}]
[]
[null,null,"Acworth",null,"Charlestown",null,"Claremont",null,"Cornish",null,"Croydon",null,"Goshen",null,"Grantham",null,"Langdon",null,"Lempster",null,"Newport",null,"Plainfield",null,"Springfield",null,"Sunapee",null,"Unity",null,"Washington"]
[null,null,"Estimate","Margin Of Error","Estimate","Margin Of Error","Estimate","Margin Of Error","Estimate","Margin Of Error","Estimate","Margin Of Error","Estimate","Margin Of Error","Estimate","Margin Of Error","Estimate","Margin Of Error","Estimate","Margin Of Error","Estimate","Margin Of Error","Estimate","Margin Of Error","Estimate","Margin Of Error","Estimate","Margin Of Error","Estimate","Margin Of Error","Estimate","Margin Of Error"]
[null,"Total:",72,39,467,158,2255,221,105,42,49,23,58,32,116,57,31,24,62,28,898,206,103,58,44,27,360,127,53,43,37,21]
[null,"Less than $10,000:",2,3,63,81,311,128,0,11,3,5,5,7,0,11,0,11,4,6,155,120,0,11,3,4,39,50,0,11,3,6]
[null,"Less than 20.0 percent",0,11,0,16,25,30,0,11,0,11,0,11,0,11,0,11,0,11,0,16,0,11,0,11,0,11,0,11,0,11]
[null,"20.0 to 24.9 percent",0,11,0,16,0,18,0,11,0,11,0,11,0,11,0,11,0,11,59,82,0,11,0,11,0,11,0,11,0,11]
[null,"25.0 to 29.9 percent",0,11,0,16,10,15,0,11,0,11,0,11,0,11,0,11,0,11,0,16,0,11,0,11,0,11,0,11,0,11]
[null,"30.0 to 34.9 percent",0,11,0,16,67,64,0,11,0,11,0,11,0,11,0,11,0,11,0,16,0,11,3,4,0,11,0,11,0,11]
[null,"35.0 percent or more",2,3,52,78,181,93,0,11,0,11,0,11,0,11,0,11,0,11,83,68,0,11,0,11,0,11,0,11,0,11]
[]
[]
[null,"Not computed",0,11,11,18,28,44,0,11,3,5,5,7,0,11,0,11,4,6,13,20,0,11,0,11,39,50,0,11,3,6]
[null,"$10,000 to $19,999:",0,11,120,69,499,123,8,9,2,3,0,11,0,11,2,3,0,11,257,94,0,11,5,8,16,23,0,11,6,7]
[null,"Less than 20.0 percent",0,11,0,16,29,32,0,11,0,11,0,11,0,11,0,11,0,11,23,34,0,11,0,11,0,11,0,11,0,11]
[null,"20.0 to 24.9 percent",0,11,12,20,22,24,0,11,2,3,0,11,0,11,0,11,0,11,72,62,0,11,0,11,0,11,0,11,0,11]
[null,"25.0 to 29.9 percent",0,11,24,27,102,60,0,11,0,11,0,11,0,11,0,11,0,11,0,16,0,11,0,11,0,11,0,11,0,11]
[null,"30.0 to 34.9 percent",0,11,0,16,45,41,0,11,0,11,0,11,0,11,0,11,0,11,46,29,0,11,0,11,0,11,0,11,0,11]
[null,"35.0 percent or more",0,11,84,67,292,103,8,9,0,11,0,11,0,11,2,3,0,11,116,67,0,11,5,8,16,23,0,11,0,11]
[]
[]
[null,"Not computed",0,11,0,16,9,14,0,11,0,11,0,11,0,11,0,11,0,11,0,16,0,11,0,11,0,11,0,11,6,7]
[null,"$20,000 to $34,999:",22,23,109,84,682,146,13,16,2,4,2,3,0,11,5,9,17,18,52,43,37,28,0,11,55,55,8,11,11,9]
[null,"Less than 20.0 percent",0,11,0,16,20,15,0,11,0,11,0,11,0,11,0,11,0,11,0,16,0,11,0,11,0,11,0,11,0,11]
[null,"20.0 to 24.9 percent",17,20,0,16,9,15,0,11,0,11,0,11,0,11,0,11,0,11,0,16,5,7,0,11,0,11,0,11,0,11]
[null,"25.0 to 29.9 percent",0,11,0,16,163,98,0,11,0,11,0,11,0,11,0,11,0,11,0,16,14,23,0,11,0,11,0,11,4,6]
[null,"30.0 to 34.9 percent",0,11,63,70,83,49,10,15,2,4,0,11,0,11,0,11,0,11,0,16,0,11,0,11,21,34,0,11,4,5]
[null,"35.0 percent or more",5,9,46,47,400,143,0,11,0,11,2,3,0,11,0,11,14,16,39,39,7,10,0,11,34,41,0,11,3,4]
[]
[]
[null,"Not computed",0,11,0,16,7,12,3,4,0,11,0,11,0,11,5,9,3,5,13,20,11,11,0,11,0,11,8,11,0,11]
[null,"$35,000 to $49,999:",4,6,83,78,397,139,12,14,12,13,15,14,36,33,4,5,17,15,315,150,8,13,12,18,20,25,36,40,13,16]
[null,"Less than 20.0 percent",0,11,48,57,107,96,0,11,0,11,0,11,0,11,0,11,0,11,64,91,0,11,0,11,0,11,26,38,0,11]
[null,"20.0 to 24.9 percent",0,11,0,16,65,52,0,11,0,11,0,11,12,20,0,11,0,11,74,76,0,11,0,11,16,24,6,10,0,11]
[null,"25.0 to 29.9 percent",0,11,0,16,106,59,0,11,0,11,0,11,0,11,0,11,0,11,89,74,0,11,12,18,0,11,0,11,10,15]
[null,"30.0 to 34.9 percent",0,11,0,16,43,51,9,14,6,9,6,8,0,11,0,11,12,14,14,21,0,11,0,11,4,7,4,6,0,11]
[null,"35.0 percent or more",4,6,0,16,56,61,0,11,6,11,9,11,24,27,4,5,5,5,74,90,0,11,0,11,0,11,0,11,0,11]
[]
[]
[null,"Not computed",0,11,35,52,20,21,3,5,0,11,0,11,0,11,0,11,0,11,0,16,8,13,0,11,0,11,0,11,3,5]
[null,"$50,000 to $74,999:",28,24,36,39,284,100,37,28,11,12,18,20,17,28,11,17,9,10,57,46,0,11,3,5,97,69,3,5,2,4]
[null,"Less than 20.0 percent",23,24,19,30,163,93,8,9,4,5,0,11,17,28,11,17,0,11,32,30,0,11,0,11,4,8,0,11,0,11]
[null,"20.0 to 24.9 percent",5,7,0,16,89,58,14,17,0,11,0,11,0,11,0,11,0,11,0,16,0,11,3,5,36,44,3,5,0,11]
[null,"25.0 to 29.9 percent",0,11,0,16,32,46,0,11,7,10,14,19,0,11,0,11,0,11,12,22,0,11,0,11,43,56,0,11,0,11]
[null,"30.0 to 34.9 percent",0,11,0,16,0,18,12,16,0,11,4,7,0,11,0,11,6,9,13,24,0,11,0,11,0,11,0,11,0,11]
[null,"35.0 percent or more",0,11,0,16,0,18,0,11,0,11,0,11,0,11,0,11,0,11,0,16,0,11,0,11,14,16,0,11,2,4]
[]
[]
[null,"Not computed",0,11,17,27,0,18,3,4,0,11,0,11,0,11,0,11,3,4,0,16,0,11,0,11,0,11,0,11,0,11]
[null,"$75,000 to $99,999:",4,4,26,29,23,36,23,21,3,4,13,20,12,18,9,11,15,19,62,64,13,13,14,17,61,61,6,10,2,4]
[null,"Less than 20.0 percent",2,3,16,25,0,18,23,21,0,11,13,20,0,11,2,4,15,19,62,64,6,9,4,5,56,61,6,10,0,11]
[null,"20.0 to 24.9 percent",2,3,0,16,23,36,0,11,0,11,0,11,0,11,7,11,0,11,0,16,7,10,10,16,5,9,0,11,2,4]
[null,"25.0 to 29.9 percent",0,11,0,16,0,18,0,11,0,11,0,11,0,11,0,11,0,11,0,16,0,11,0,11,0,11,0,11,0,11]
[null,"30.0 to 34.9 percent",0,11,0,16,0,18,0,11,0,11,0,11,12,18,0,11,0,11,0,16,0,11,0,11,0,11,0,11,0,11]
[null,"35.0 percent or more",0,11,0,16,0,18,0,11,0,11,0,11,0,11,0,11,0,11,0,16,0,11,0,11,0,11,0,11,0,11]
[]
[]
[null,"Not computed",0,11,10,15,0,18,0,11,3,4,0,11,0,11,0,11,0,11,0,16,0,11,0,11,0,11,0,11,0,11]
[null,"$100,000 or more:",12,19,30,50,59,33,12,10,16,14,5,7,51,40,0,11,0,11,0,16,45,48,7,8,72,71,0,11,0,11]
[null,"Less than 20.0 percent",12,19,0,16,59,33,9,9,10,10,0,11,7,12,0,11,0,11,0,16,33,42,5,7,72,71,0,11,0,11]
[null,"20.0 to 24.9 percent",0,11,30,50,0,18,0,11,6,9,0,11,25,29,0,11,0,11,0,16,0,11,0,11,0,11,0,11,0,11]
[null,"25.0 to 29.9 percent",0,11,0,16,0,18,0,11,0,11,0,11,0,11,0,11,0,11,0,16,0,11,0,11,0,11,0,11,0,11]
[null,"30.0 to 34.9 percent",0,11,0,16,0,18,0,11,0,11,0,11,0,11,0,11,0,11,0,16,0,11,0,11,0,11,0,11,0,11]
[null,"35.0 percent or more",0,11,0,16,0,18,0,11,0,11,0,11,0,11,0,11,0,11,0,16,0,11,0,11,0,11,0,11,0,11]
[]
[]
[null,"Not computed",0,11,0,16,0,18,3,4,0,11,5,7,19,27,0,11,0,11,0,16,12,19,2,5,0,11,0,11,0,11]
[]
[null,"Calculated B25074. HOUSEHOLD INCOME BY GROSS RENT AS A PERCENTAGE OF HOUSEHOLD INCOME IN THE PAST 12 MONTHS"]
[null,"Universe:  RENTER OCCUPIED HOUSING UNITS"]
[null,{"$f":"B346","v":"Data Set: 2008-2012 American Community Survey 5-Year Estimates"}]
[]
[null,null,"Acworth",null,"Charlestown",null,"Claremont",null,"Cornish",null,"Croydon",null,"Goshen",null,"Grantham",null,"Langdon",null,"Lempster",null,"Newport",null,"Plainfield",null,"Springfield",null,"Sunapee",null,"Unity",null,"Washington"]
[null,null,"Estimate","Margin Of Error","Estimate","Margin Of Error","Estimate","Margin Of Error","Estimate","Margin Of Error","Estimate","Margin Of Error","Estimate","Margin Of Error","Estimate","Margin Of Error","Estimate","Margin Of Error","Estimate","Margin Of Error","Estimate","Margin Of Error","Estimate","Margin Of Error","Estimate","Margin Of Error","Estimate","Margin Of Error","Estimate","Margin Of Error","Estimate","Margin Of Error"]
[null,"Total:",{"$f":"C350","v":72},{"$f":"D350","v":39},{"$f":"E350","v":467},158,2255,221,105,42,49,23,58,32,116,57,31,24,62,28,898,206,103,58,44,27,360,127,53,43,37,21]
[null,"Less than $10,000:",{"$f":"C351","v":2},{"$f":"D351","v":3},{"$f":"E351","v":63},81,311,128,0,11,3,5,5,7,0,11,0,11,4,6,155,120,0,11,3,4,39,50,0,11,3,6]
[null,"Less than 30.0 percent",{"$f":"C352+C353+C354","v":0},{"$f":"SQRT((D352^2)+(D353^2)+(D355^2))","v":19.05255888325765},{"$f":"E352+E353+E354","v":0},{"$f":"SQRT((F352^2)+(F353^2)+(F355^2))","v":27.712812921102035},{"$f":"G352+G353+G354","v":35},{"$f":"SQRT((H352^2)+(H353^2)+(H355^2))","v":72.938330115241882},{"$f":"I352+I353+I354","v":0},{"$f":"SQRT((J352^2)+(J353^2)+(J355^2))","v":19.05255888325765},{"$f":"K352+K353+K354","v":0},{"$f":"SQRT((L352^2)+(L353^2)+(L355^2))","v":19.05255888325765},{"$f":"M352+M353+M354","v":0},{"$f":"SQRT((N352^2)+(N353^2)+(N355^2))","v":19.05255888325765},{"$f":"O352+O353+O354","v":0},{"$f":"SQRT((P352^2)+(P353^2)+(P355^2))","v":19.05255888325765},{"$f":"Q352+Q353+Q354","v":0},{"$f":"SQRT((R352^2)+(R353^2)+(R355^2))","v":19.05255888325765},{"$f":"S352+S353+S354","v":0},{"$f":"SQRT((T352^2)+(T353^2)+(T355^2))","v":19.05255888325765},{"$f":"U352+U353+U354","v":59},{"$f":"SQRT((V352^2)+(V353^2)+(V355^2))","v":85.064681272546949},{"$f":"W352+W353+W354","v":0},{"$f":"SQRT((X352^2)+(X353^2)+(X355^2))","v":19.05255888325765},{"$f":"Y352+Y353+Y354","v":0},{"$f":"SQRT((Z352^2)+(Z353^2)+(Z355^2))","v":16.06237840420901},{"$f":"AA352+AA353+AA354","v":0},{"$f":"SQRT((AB352^2)+(AB353^2)+(AB355^2))","v":19.05255888325765},{"$f":"AC352+AC353+AC354","v":0},{"$f":"SQRT((AD352^2)+(AD353^2)+(AD355^2))","v":19.05255888325765},{"$f":"AE352+AE353+AE354","v":0},{"$f":"SQRT((AF352^2)+(AF353^2)+(AF355^2))","v":19.05255888325765}]
[null,"More than 30.0 percent",{"$f":"C355+C356+C357+C358","v":2},{"$f":"SQRT((D355^2)+(D356^2)+(D357^2)+(D358^2))","v":11.401754250991379},{"$f":"E355+E356+E357+E358","v":52},{"$f":"SQRT((F355^2)+(F356^2)+(F357^2)+(F358^2))","v":79.624116949577527},{"$f":"G355+G356+G357+G358","v":248},{"$f":"SQRT((H355^2)+(H356^2)+(H357^2)+(H358^2))","v":112.89375536317321},{"$f":"I355+I356+I357+I358","v":0},{"$f":"SQRT((J355^2)+(J356^2)+(J357^2)+(J358^2))","v":15.556349186104045},{"$f":"K355+K356+K357+K358","v":0},{"$f":"SQRT((L355^2)+(L356^2)+(L357^2)+(L358^2))","v":15.556349186104045},{"$f":"M355+M356+M357+M358","v":0},{"$f":"SQRT((N355^2)+(N356^2)+(N357^2)+(N358^2))","v":15.556349186104045},{"$f":"O355+O356+O357+O358","v":0},{"$f":"SQRT((P355^2)+(P356^2)+(P357^2)+(P358^2))","v":15.556349186104045},{"$f":"Q355+Q356+Q357+Q358","v":0},{"$f":"SQRT((R355^2)+(R356^2)+(R357^2)+(R358^2))","v":15.556349186104045},{"$f":"S355+S356+S357+S358","v":0},{"$f":"SQRT((T355^2)+(T356^2)+(T357^2)+(T358^2))","v":15.556349186104045},{"$f":"U355+U356+U357+U358","v":83},{"$f":"SQRT((V355^2)+(V356^2)+(V357^2)+(V358^2))","v":69.856996786291916},{"$f":"W355+W356+W357+W358","v":0},{"$f":"SQRT((X355^2)+(X356^2)+(X357^2)+(X358^2))","v":15.556349186104045},{"$f":"Y355+Y356+Y357+Y358","v":3},{"$f":"SQRT((Z355^2)+(Z356^2)+(Z357^2)+(Z358^2))","v":11.704699910719626},{"$f":"AA355+AA356+AA357+AA358","v":0},{"$f":"SQRT((AB355^2)+(AB356^2)+(AB357^2)+(AB358^2))","v":15.556349186104045},{"$f":"AC355+AC356+AC357+AC358","v":0},{"$f":"SQRT((AD355^2)+(AD356^2)+(AD357^2)+(AD358^2))","v":15.556349186104045},{"$f":"AE355+AE356+AE357+AE358","v":0},{"$f":"SQRT((AF355^2)+(AF356^2)+(AF357^2)+(AF358^2))","v":15.556349186104045}]
[null,"Less Than 35% of HH Income",{"$f":"C352+C353+C354+C355","v":0},{"$f":"SQRT((D352^2)+(D353^2)+(D354^2)+(D355^2))","v":22},{"$f":"E352+E353+E354+E355","v":0},{"$f":"SQRT((F352^2)+(F353^2)+(F354^2)+(F355^2))","v":32},{"$f":"G352+G353+G354+G355","v":102},{"$f":"SQRT((H352^2)+(H353^2)+(H354^2)+(H355^2))","v":74.464756764525859},{"$f":"I352+I353+I354+I355","v":0},{"$f":"SQRT((J352^2)+(J353^2)+(J354^2)+(J355^2))","v":22},{"$f":"K352+K353+K354+K355","v":0},{"$f":"SQRT((L352^2)+(L353^2)+(L354^2)+(L355^2))","v":22},{"$f":"M352+M353+M354+M355","v":0},{"$f":"SQRT((N352^2)+(N353^2)+(N354^2)+(N355^2))","v":22},{"$f":"O352+O353+O354+O355","v":0},{"$f":"SQRT((P352^2)+(P353^2)+(P354^2)+(P355^2))","v":22},{"$f":"Q352+Q353+Q354+Q355","v":0},{"$f":"SQRT((R352^2)+(R353^2)+(R354^2)+(R355^2))","v":22},{"$f":"S352+S353+S354+S355","v":0},{"$f":"SQRT((T352^2)+(T353^2)+(T354^2)+(T355^2))","v":22},{"$f":"U352+U353+U354+U355","v":59},{"$f":"SQRT((V352^2)+(V353^2)+(V354^2)+(V355^2))","v":86.556340033529608},{"$f":"W352+W353+W354+W355","v":0},{"$f":"SQRT((X352^2)+(X353^2)+(X354^2)+(X355^2))","v":22},{"$f":"Y352+Y353+Y354+Y355","v":3},{"$f":"SQRT((Z352^2)+(Z353^2)+(Z354^2)+(Z355^2))","v":19.467922333931785},{"$f":"AA352+AA353+AA354+AA355","v":0},{"$f":"SQRT((AB352^2)+(AB353^2)+(AB354^2)+(AB355^2))","v":22},{"$f":"AC352+AC353+AC354+AC355","v":0},{"$f":"SQRT((AD352^2)+(AD353^2)+(AD354^2)+(AD355^2))","v":22},{"$f":"AE352+AE353+AE354+AE355","v":0},{"$f":"SQRT((AF352^2)+(AF353^2)+(AF354^2)+(AF355^2))","v":22}]
[null,"35.0 percent or more",{"$f":"C355+C356+C357+C358","v":2},{"$f":"SQRT((D355^2)+(D356^2)+(D357^2)+(D358^2))","v":11.401754250991379},{"$f":"E355+E356+E357+E358","v":52},{"$f":"SQRT((F355^2)+(F356^2)+(F357^2)+(F358^2))","v":79.624116949577527},{"$f":"G355+G356+G357+G358","v":248},{"$f":"SQRT((H355^2)+(H356^2)+(H357^2)+(H358^2))","v":112.89375536317321},{"$f":"I355+I356+I357+I358","v":0},{"$f":"SQRT((J355^2)+(J356^2)+(J357^2)+(J358^2))","v":15.556349186104045},{"$f":"K355+K356+K357+K358","v":0},{"$f":"SQRT((L355^2)+(L356^2)+(L357^2)+(L358^2))","v":15.556349186104045},{"$f":"M355+M356+M357+M358","v":0},{"$f":"SQRT((N355^2)+(N356^2)+(N357^2)+(N358^2))","v":15.556349186104045},{"$f":"O355+O356+O357+O358","v":0},{"$f":"SQRT((P355^2)+(P356^2)+(P357^2)+(P358^2))","v":15.556349186104045},{"$f":"Q355+Q356+Q357+Q358","v":0},{"$f":"SQRT((R355^2)+(R356^2)+(R357^2)+(R358^2))","v":15.556349186104045},{"$f":"S355+S356+S357+S358","v":0},{"$f":"SQRT((T355^2)+(T356^2)+(T357^2)+(T358^2))","v":15.556349186104045},{"$f":"U355+U356+U357+U358","v":83},{"$f":"SQRT((V355^2)+(V356^2)+(V357^2)+(V358^2))","v":69.856996786291916},{"$f":"W355+W356+W357+W358","v":0},{"$f":"SQRT((X355^2)+(X356^2)+(X357^2)+(X358^2))","v":15.556349186104045},{"$f":"Y355+Y356+Y357+Y358","v":3},{"$f":"SQRT((Z355^2)+(Z356^2)+(Z357^2)+(Z358^2))","v":11.704699910719626},{"$f":"AA355+AA356+AA357+AA358","v":0},{"$f":"SQRT((AB355^2)+(AB356^2)+(AB357^2)+(AB358^2))","v":15.556349186104045},{"$f":"AC355+AC356+AC357+AC358","v":0},{"$f":"SQRT((AD355^2)+(AD356^2)+(AD357^2)+(AD358^2))","v":15.556349186104045},{"$f":"AE355+AE356+AE357+AE358","v":0},{"$f":"SQRT((AF355^2)+(AF356^2)+(AF357^2)+(AF358^2))","v":15.556349186104045}]
[null,"50.0 percent or more",{"$f":"C358","v":0},0,{"$f":"E358","v":0},0,0,0,0,0,0,0,0,0,0,0,0,0,0,0,0,0,0,0,0,0,0,0,0,0,0,0]
[null,"Not Computed",0,11,{"$f":"E359","v":11},18,28,44,0,11,3,5,5,7,0,11,0,11,4,6,13,20,0,11,0,11,39,50,0,11,3,6]
[null,"$10,000 to $19,999:",0,11,{"$f":"E360","v":120},69,499,123,8,9,2,3,0,11,0,11,2,3,0,11,257,94,0,11,5,8,16,23,0,11,6,7]
[null,"Less than 30.0 percent",{"$f":"C361+C362+C363","v":0},{"$f":"SQRT((D361^2)+(D362^2)+(D363^2))","v":19.05255888325765},{"$f":"E361+E362+E363","v":36},{"$f":"SQRT((F361^2)+(F362^2)+(F363^2))","v":37.215588131856791},{"$f":"G361+G362+G363","v":153},{"$f":"SQRT((H361^2)+(H362^2)+(H363^2))","v":72.111025509279784},{"$f":"I361+I362+I363","v":0},{"$f":"SQRT((J361^2)+(J362^2)+(J363^2))","v":19.05255888325765},{"$f":"K361+K362+K363","v":2},{"$f":"SQRT((L361^2)+(L362^2)+(L363^2))","v":15.842979517754859},{"$f":"M361+M362+M363","v":0},{"$f":"SQRT((N361^2)+(N362^2)+(N363^2))","v":19.05255888325765},{"$f":"O361+O362+O363","v":0},{"$f":"SQRT((P361^2)+(P362^2)+(P363^2))","v":19.05255888325765},{"$f":"Q361+Q362+Q363","v":0},{"$f":"SQRT((R361^2)+(R362^2)+(R363^2))","v":19.05255888325765},{"$f":"S361+S362+S363","v":0},{"$f":"SQRT((T361^2)+(T362^2)+(T363^2))","v":19.05255888325765},{"$f":"U361+U362+U363","v":95},{"$f":"SQRT((V361^2)+(V362^2)+(V363^2))","v":72.498275841567434},{"$f":"W361+W362+W363","v":0},{"$f":"SQRT((X361^2)+(X362^2)+(X363^2))","v":19.05255888325765},{"$f":"Y361+Y362+Y363","v":0},{"$f":"SQRT((Z361^2)+(Z362^2)+(Z363^2))","v":19.05255888325765},{"$f":"AA361+AA362+AA363","v":0},{"$f":"SQRT((AB361^2)+(AB362^2)+(AB363^2))","v":19.05255888325765},{"$f":"AC361+AC362+AC363","v":0},{"$f":"SQRT((AD361^2)+(AD362^2)+(AD363^2))","v":19.05255888325765},{"$f":"AE361+AE362+AE363","v":0},{"$f":"SQRT((AF361^2)+(AF362^2)+(AF363^2))","v":19.05255888325765}]
[null,"More than 30.0 percent",{"$f":"C364+C365+C366+C367","v":0},{"$f":"SQRT((D364^2)+(D365^2)+(D366^2)+(D367^2))","v":15.556349186104045},{"$f":"E364+E365+E366+E367","v":84},{"$f":"SQRT((F364^2)+(F365^2)+(F366^2)+(F367^2))","v":68.8839603971781},{"$f":"G364+G365+G366+G367","v":337},{"$f":"SQRT((H364^2)+(H365^2)+(H366^2)+(H367^2))","v":110.86027241532469},{"$f":"I364+I365+I366+I367","v":8},{"$f":"SQRT((J364^2)+(J365^2)+(J366^2)+(J367^2))","v":14.212670403551895},{"$f":"K364+K365+K366+K367","v":0},{"$f":"SQRT((L364^2)+(L365^2)+(L366^2)+(L367^2))","v":15.556349186104045},{"$f":"M364+M365+M366+M367","v":0},{"$f":"SQRT((N364^2)+(N365^2)+(N366^2)+(N367^2))","v":15.556349186104045},{"$f":"O364+O365+O366+O367","v":0},{"$f":"SQRT((P364^2)+(P365^2)+(P366^2)+(P367^2))","v":15.556349186104045},{"$f":"Q364+Q365+Q366+Q367","v":2},{"$f":"SQRT((R364^2)+(R365^2)+(R366^2)+(R367^2))","v":11.401754250991379},{"$f":"S364+S365+S366+S367","v":0},{"$f":"SQRT((T364^2)+(T365^2)+(T366^2)+(T367^2))","v":15.556349186104045},{"$f":"U364+U365+U366+U367","v":162},{"$f":"SQRT((V364^2)+(V365^2)+(V366^2)+(V367^2))","v":73.006848993775918},{"$f":"W364+W365+W366+W367","v":0},{"$f":"SQRT((X364^2)+(X365^2)+(X366^2)+(X367^2))","v":15.556349186104045},{"$f":"Y364+Y365+Y366+Y367","v":5},{"$f":"SQRT((Z364^2)+(Z365^2)+(Z366^2)+(Z367^2))","v":13.601470508735444},{"$f":"AA364+AA365+AA366+AA367","v":16},{"$f":"SQRT((AB364^2)+(AB365^2)+(AB366^2)+(AB367^2))","v":25.495097567963924},{"$f":"AC364+AC365+AC366+AC367","v":0},{"$f":"SQRT((AD364^2)+(AD365^2)+(AD366^2)+(AD367^2))","v":15.556349186104045},{"$f":"AE364+AE365+AE366+AE367","v":0},{"$f":"SQRT((AF364^2)+(AF365^2)+(AF366^2)+(AF367^2))","v":15.556349186104045}]
[null,"Less Than 35% of HH Income",{"$f":"C361+C362+C363+C364","v":0},{"$f":"SQRT((D361^2)+(D362^2)+(D363^2)+(D364^2))","v":22},{"$f":"E361+E362+E363+E364","v":36},{"$f":"SQRT((F361^2)+(F362^2)+(F363^2)+(F364^2))","v":40.509258201058188},{"$f":"G361+G362+G363+G364","v":198},{"$f":"SQRT((H361^2)+(H362^2)+(H363^2)+(H364^2))","v":82.951793229561957},{"$f":"I361+I362+I363+I364","v":0},{"$f":"SQRT((J361^2)+(J362^2)+(J363^2)+(J364^2))","v":22},{"$f":"K361+K362+K363+K364","v":2},{"$f":"SQRT((L361^2)+(L362^2)+(L363^2)+(L364^2))","v":19.28730152198591},{"$f":"M361+M362+M363+M364","v":0},{"$f":"SQRT((N361^2)+(N362^2)+(N363^2)+(N364^2))","v":22},{"$f":"O361+O362+O363+O364","v":0},{"$f":"SQRT((P361^2)+(P362^2)+(P363^2)+(P364^2))","v":22},{"$f":"Q361+Q362+Q363+Q364","v":0},{"$f":"SQRT((R361^2)+(R362^2)+(R363^2)+(R364^2))","v":22},{"$f":"S361+S362+S363+S364","v":0},{"$f":"SQRT((T361^2)+(T362^2)+(T363^2)+(T364^2))","v":22},{"$f":"U361+U362+U363+U364","v":141},{"$f":"SQRT((V361^2)+(V362^2)+(V363^2)+(V364^2))","v":78.083288865159872},{"$f":"W361+W362+W363+W364","v":0},{"$f":"SQRT((X361^2)+(X362^2)+(X363^2)+(X364^2))","v":22},{"$f":"Y361+Y362+Y363+Y364","v":0},{"$f":"SQRT((Z361^2)+(Z362^2)+(Z363^2)+(Z364^2))","v":22},{"$f":"AA361+AA362+AA363+AA364","v":0},{"$f":"SQRT((AB361^2)+(AB362^2)+(AB363^2)+(AB364^2))","v":22},{"$f":"AC361+AC362+AC363+AC364","v":0},{"$f":"SQRT((AD361^2)+(AD362^2)+(AD363^2)+(AD364^2))","v":22},{"$f":"AE361+AE362+AE363+AE364","v":0},{"$f":"SQRT((AF361^2)+(AF362^2)+(AF363^2)+(AF364^2))","v":22}]
[null,"35.0 percent or more",{"$f":"C365+C366+C367","v":0},{"$f":"SQRT((D365^2)+(D366^2)+(D367^2))","v":11},{"$f":"E365+E366+E367","v":84},{"$f":"SQRT((F365^2)+(F366^2)+(F367^2))","v":67},{"$f":"G365+G366+G367","v":292},{"$f":"SQRT((H365^2)+(H366^2)+(H367^2))","v":103},{"$f":"I365+I366+I367","v":8},{"$f":"SQRT((J365^2)+(J366^2)+(J367^2))","v":9},{"$f":"K365+K366+K367","v":0},{"$f":"SQRT((L365^2)+(L366^2)+(L367^2))","v":11},{"$f":"M365+M366+M367","v":0},{"$f":"SQRT((N365^2)+(N366^2)+(N367^2))","v":11},{"$f":"O365+O366+O367","v":0},{"$f":"SQRT((P365^2)+(P366^2)+(P367^2))","v":11},{"$f":"Q365+Q366+Q367","v":2},{"$f":"SQRT((R365^2)+(R366^2)+(R367^2))","v":3},{"$f":"S365+S366+S367","v":0},{"$f":"SQRT((T365^2)+(T366^2)+(T367^2))","v":11},{"$f":"U365+U366+U367","v":116},{"$f":"SQRT((V365^2)+(V366^2)+(V367^2))","v":67},{"$f":"W365+W366+W367","v":0},{"$f":"SQRT((X365^2)+(X366^2)+(X367^2))","v":11},{"$f":"Y365+Y366+Y367","v":5},{"$f":"SQRT((Z365^2)+(Z366^2)+(Z367^2))","v":8},{"$f":"AA365+AA366+AA367","v":16},{"$f":"SQRT((AB365^2)+(AB366^2)+(AB367^2))","v":23},{"$f":"AC365+AC366+AC367","v":0},{"$f":"SQRT((AD365^2)+(AD366^2)+(AD367^2))","v":11},{"$f":"AE365+AE366+AE367","v":0},{"$f":"SQRT((AF365^2)+(AF366^2)+(AF367^2))","v":11}]
[null,"50.0 percent or more",{"$f":"C367","v":0},0,{"$f":"E367","v":0},0,0,0,0,0,0,0,0,0,0,0,0,0,0,0,0,0,0,0,0,0,0,0,0,0,0,0]
[null,"Not Computed",0,11,{"$f":"E368","v":0},16,9,14,0,11,0,11,0,11,0,11,0,11,0,11,0,16,0,11,0,11,0,11,0,11,6,7]
[null,"$20,000 to $34,999:",22,23,{"$f":"E369","v":109},84,682,146,13,16,2,4,2,3,0,11,5,9,17,18,52,43,37,28,0,11,55,55,8,11,11,9]
[null,"Less than 30.0 percent",0,{"$f":"D370","v":11},{"$f":"E370","v":0},16,20,15,0,11,0,11,0,11,0,11,0,11,0,11,0,16,0,11,0,11,0,11,0,11,0,11]
[null,"More than 30.0 percent",{"$f":"C373+C374+C375+C376","v":5},{"$f":"SQRT((D373^2)+(D374^2)+(D375^2)+(D376^2))","v":14.212670403551895},{"$f":"E373+E374+E375+E376","v":109},{"$f":"SQRT((F373^2)+(F374^2)+(F375^2)+(F376^2))","v":84.314885992925355},{"$f":"G373+G374+G375+G376","v":483},{"$f":"SQRT((H373^2)+(H374^2)+(H375^2)+(H376^2))","v":151.16216457830973},{"$f":"I373+I374+I375+I376","v":10},{"$f":"SQRT((J373^2)+(J374^2)+(J375^2)+(J376^2))","v":18.601075237738275},{"$f":"K373+K374+K375+K376","v":2},{"$f":"SQRT((L373^2)+(L374^2)+(L375^2)+(L376^2))","v":11.704699910719626},{"$f":"M373+M374+M375+M376","v":2},{"$f":"SQRT((N373^2)+(N374^2)+(N375^2)+(N376^2))","v":11.401754250991379},{"$f":"O373+O374+O375+O376","v":0},{"$f":"SQRT((P373^2)+(P374^2)+(P375^2)+(P376^2))","v":15.556349186104045},{"$f":"Q373+Q374+Q375+Q376","v":0},{"$f":"SQRT((R373^2)+(R374^2)+(R375^2)+(R376^2))","v":15.556349186104045},{"$f":"S373+S374+S375+S376","v":14},{"$f":"SQRT((T373^2)+(T374^2)+(T375^2)+(T376^2))","v":19.416487838947599},{"$f":"U373+U374+U375+U376","v":39},{"$f":"SQRT((V373^2)+(V374^2)+(V375^2)+(V376^2))","v":42.154477816715982},{"$f":"W373+W374+W375+W376","v":7},{"$f":"SQRT((X373^2)+(X374^2)+(X375^2)+(X376^2))","v":14.866068747318506},{"$f":"Y373+Y374+Y375+Y376","v":0},{"$f":"SQRT((Z373^2)+(Z374^2)+(Z375^2)+(Z376^2))","v":15.556349186104045},{"$f":"AA373+AA374+AA375+AA376","v":55},{"$f":"SQRT((AB373^2)+(AB374^2)+(AB375^2)+(AB376^2))","v":53.263495942343098},{"$f":"AC373+AC374+AC375+AC376","v":0},{"$f":"SQRT((AD373^2)+(AD374^2)+(AD375^2)+(AD376^2))","v":15.556349186104045},{"$f":"AE373+AE374+AE375+AE376","v":7},{"$f":"SQRT((AF373^2)+(AF374^2)+(AF375^2)+(AF376^2))","v":6.4031242374328485}]
[null,"Less Than 35% of HH Income",{"$f":"C370+C371+C372+C373","v":17},{"$f":"SQRT((D372^2)+(D373^2)+(D374^2)+(D375^2))","v":17.972200755611428},{"$f":"E370+E371+E372+E373","v":63},{"$f":"SQRT((F372^2)+(F373^2)+(F374^2)+(F375^2))","v":85.819578185866192},{"$f":"G370+G371+G372+G373","v":275},{"$f":"SQRT((H372^2)+(H373^2)+(H374^2)+(H375^2))","v":180.14993755202914},{"$f":"I370+I371+I372+I373","v":10},{"$f":"SQRT((J372^2)+(J373^2)+(J374^2)+(J375^2))","v":21.61018278497431},{"$f":"K370+K371+K372+K373","v":2},{"$f":"SQRT((L372^2)+(L373^2)+(L374^2)+(L375^2))","v":16.06237840420901},{"$f":"M370+M371+M372+M373","v":0},{"$f":"SQRT((N372^2)+(N373^2)+(N374^2)+(N375^2))","v":15.842979517754859},{"$f":"O370+O371+O372+O373","v":0},{"$f":"SQRT((P372^2)+(P373^2)+(P374^2)+(P375^2))","v":19.05255888325765},{"$f":"Q370+Q371+Q372+Q373","v":0},{"$f":"SQRT((R372^2)+(R373^2)+(R374^2)+(R375^2))","v":19.05255888325765},{"$f":"S370+S371+S372+S373","v":0},{"$f":"SQRT((T372^2)+(T373^2)+(T374^2)+(T375^2))","v":22.315913604421397},{"$f":"U370+U371+U372+U373","v":0},{"$f":"SQRT((V372^2)+(V373^2)+(V374^2)+(V375^2))","v":45.088801270381985},{"$f":"W370+W371+W372+W373","v":19},{"$f":"SQRT((X372^2)+(X373^2)+(X374^2)+(X375^2))","v":27.386127875258307},{"$f":"Y370+Y371+Y372+Y373","v":0},{"$f":"SQRT((Z372^2)+(Z373^2)+(Z374^2)+(Z375^2))","v":19.05255888325765},{"$f":"AA370+AA371+AA372+AA373","v":21},{"$f":"SQRT((AB372^2)+(AB373^2)+(AB374^2)+(AB375^2))","v":54.38749856354859},{"$f":"AC370+AC371+AC372+AC373","v":0},{"$f":"SQRT((AD372^2)+(AD373^2)+(AD374^2)+(AD375^2))","v":19.05255888325765},{"$f":"AE370+AE371+AE372+AE373","v":8},{"$f":"SQRT((AF372^2)+(AF373^2)+(AF374^2)+(AF375^2))","v":8.7749643873921226}]
[null,"35.0 percent or more",{"$f":"C374+C375+C376","v":5},{"$f":"SQRT((D369^2)+(D370^2)+(D371^2)+(D372^2))","v":34.219877264537345},{"$f":"E374+E375+E376","v":46},{"$f":"SQRT((F369^2)+(F370^2)+(F371^2)+(F372^2))","v":88.453377549983927},{"$f":"G374+G375+G376","v":400},{"$f":"SQRT((H369^2)+(H370^2)+(H371^2)+(H372^2))","v":177.11578134090706},{"$f":"I374+I375+I376","v":0},{"$f":"SQRT((J369^2)+(J370^2)+(J371^2)+(J372^2))","v":24.879710609249457},{"$f":"K374+K375+K376","v":0},{"$f":"SQRT((L369^2)+(L370^2)+(L371^2)+(L372^2))","v":19.467922333931785},{"$f":"M374+M375+M376","v":2},{"$f":"SQRT((N369^2)+(N370^2)+(N371^2)+(N372^2))","v":19.28730152198591},{"$f":"O374+O375+O376","v":0},{"$f":"SQRT((P369^2)+(P370^2)+(P371^2)+(P372^2))","v":22},{"$f":"Q374+Q375+Q376","v":0},{"$f":"SQRT((R369^2)+(R370^2)+(R371^2)+(R372^2))","v":21.071307505705477},{"$f":"S374+S375+S376","v":14},{"$f":"SQRT((T369^2)+(T370^2)+(T371^2)+(T372^2))","v":26.210684844162312},{"$f":"U374+U375+U376","v":39},{"$f":"SQRT((V369^2)+(V370^2)+(V371^2)+(V372^2))","v":51.156622249714651},{"$f":"W374+W375+W376","v":7},{"$f":"SQRT((X369^2)+(X370^2)+(X371^2)+(X372^2))","v":38.509739027939411},{"$f":"Y374+Y375+Y376","v":0},{"$f":"SQRT((Z369^2)+(Z370^2)+(Z371^2)+(Z372^2))","v":22},{"$f":"AA374+AA375+AA376","v":34},{"$f":"SQRT((AB369^2)+(AB370^2)+(AB371^2)+(AB372^2))","v":58.20652884342099},{"$f":"AC374+AC375+AC376","v":0},{"$f":"SQRT((AD369^2)+(AD370^2)+(AD371^2)+(AD372^2))","v":22},{"$f":"AE374+AE375+AE376","v":3},{"$f":"SQRT((AF369^2)+(AF370^2)+(AF371^2)+(AF372^2))","v":18.947295321496416}]
[null,"50.0 percent or more",{"$f":"C376","v":0},{"$f":"SQRT((D373^2)+(D374^2)+(D375^2))","v":14.212670403551895},{"$f":"E376","v":0},{"$f":"SQRT((F373^2)+(F374^2)+(F375^2))","v":84.314885992925355},{"$f":"G376","v":0},{"$f":"SQRT((H373^2)+(H374^2)+(H375^2))","v":151.16216457830973},{"$f":"I376","v":0},{"$f":"SQRT((J373^2)+(J374^2)+(J375^2))","v":18.601075237738275},{"$f":"K376","v":0},{"$f":"SQRT((L373^2)+(L374^2)+(L375^2))","v":11.704699910719626},{"$f":"M376","v":0},{"$f":"SQRT((N373^2)+(N374^2)+(N375^2))","v":11.401754250991379},{"$f":"O376","v":0},{"$f":"SQRT((P373^2)+(P374^2)+(P375^2))","v":15.556349186104045},{"$f":"Q376","v":0},{"$f":"SQRT((R373^2)+(R374^2)+(R375^2))","v":15.556349186104045},{"$f":"S376","v":0},{"$f":"SQRT((T373^2)+(T374^2)+(T375^2))","v":19.416487838947599},{"$f":"U376","v":0},{"$f":"SQRT((V373^2)+(V374^2)+(V375^2))","v":42.154477816715982},{"$f":"W376","v":0},{"$f":"SQRT((X373^2)+(X374^2)+(X375^2))","v":14.866068747318506},{"$f":"Y376","v":0},{"$f":"SQRT((Z373^2)+(Z374^2)+(Z375^2))","v":15.556349186104045},{"$f":"AA376","v":0},{"$f":"SQRT((AB373^2)+(AB374^2)+(AB375^2))","v":53.263495942343098},{"$f":"AC376","v":0},{"$f":"SQRT((AD373^2)+(AD374^2)+(AD375^2))","v":15.556349186104045},{"$f":"AE376","v":0},{"$f":"SQRT((AF373^2)+(AF374^2)+(AF375^2))","v":6.4031242374328485}]
[null,"Not Computed",0,11,{"$f":"E377","v":0},16,7,12,3,4,0,11,0,11,0,11,5,9,3,5,13,20,11,11,0,11,0,11,8,11,0,11]
[null,"$35,000 to $49,999:",4,6,{"$f":"E378","v":83},78,397,139,12,14,12,13,15,14,36,33,4,5,17,15,315,150,8,13,12,18,20,25,36,40,13,16]
[null,"Less than 30.0 percent",{"$f":"C379+C380+C381","v":0},11,{"$f":"E379+E380+E381","v":48},{"$f":"F379","v":57},{"$f":"G379+G380+G381","v":278},{"$f":"H379","v":96},{"$f":"I379+I380+I381","v":0},{"$f":"J379","v":11},{"$f":"K379+K380+K381","v":0},{"$f":"L379","v":11},{"$f":"M379+M380+M381","v":0},{"$f":"N379","v":11},{"$f":"O379+O380+O381","v":12},{"$f":"P379","v":11},{"$f":"Q379+Q380+Q381","v":0},{"$f":"R379","v":11},{"$f":"S379+S380+S381","v":0},{"$f":"T379","v":11},{"$f":"U379+U380+U381","v":227},{"$f":"V379","v":91},{"$f":"W379+W380+W381","v":0},{"$f":"X379","v":11},{"$f":"Y379+Y380+Y381","v":12},{"$f":"Z379","v":11},{"$f":"AA379+AA380+AA381","v":16},{"$f":"AB379","v":11},{"$f":"AC379+AC380+AC381","v":32},{"$f":"AD379","v":38},{"$f":"AE379+AE380+AE381","v":10},{"$f":"AF379","v":11}]
[null,"More than 30.0 percent",{"$f":"C382+C383+C384+C385","v":4},{"$f":"SQRT((D382^2)+(D383^2)+(D384^2)+(D385^2))","v":12.529964086141668},{"$f":"E382+E383+E384+E385","v":0},{"$f":"SQRT((F382^2)+(F383^2)+(F384^2)+(F385^2))","v":22.627416997969522},{"$f":"G382+G383+G384+G385","v":99},{"$f":"SQRT((H382^2)+(H383^2)+(H384^2)+(H385^2))","v":79.511005527536881},{"$f":"I382+I383+I384+I385","v":9},{"$f":"SQRT((J382^2)+(J383^2)+(J384^2)+(J385^2))","v":17.804493814764857},{"$f":"K382+K383+K384+K385","v":12},{"$f":"SQRT((L382^2)+(L383^2)+(L384^2)+(L385^2))","v":14.212670403551895},{"$f":"M382+M383+M384+M385","v":15},{"$f":"SQRT((N382^2)+(N383^2)+(N384^2)+(N385^2))","v":13.601470508735444},{"$f":"O382+O383+O384+O385","v":24},{"$f":"SQRT((P382^2)+(P383^2)+(P384^2)+(P385^2))","v":29.154759474226502},{"$f":"Q382+Q383+Q384+Q385","v":4},{"$f":"SQRT((R382^2)+(R383^2)+(R384^2)+(R385^2))","v":12.083045973594572},{"$f":"S382+S383+S384+S385","v":17},{"$f":"SQRT((T382^2)+(T383^2)+(T384^2)+(T385^2))","v":14.866068747318506},{"$f":"U382+U383+U384+U385","v":88},{"$f":"SQRT((V382^2)+(V383^2)+(V384^2)+(V385^2))","v":92.417530804496181},{"$f":"W382+W383+W384+W385","v":0},{"$f":"SQRT((X382^2)+(X383^2)+(X384^2)+(X385^2))","v":15.556349186104045},{"$f":"Y382+Y383+Y384+Y385","v":0},{"$f":"SQRT((Z382^2)+(Z383^2)+(Z384^2)+(Z385^2))","v":15.556349186104045},{"$f":"AA382+AA383+AA384+AA385","v":4},{"$f":"SQRT((AB382^2)+(AB383^2)+(AB384^2)+(AB385^2))","v":13.038404810405298},{"$f":"AC382+AC383+AC384+AC385","v":4},{"$f":"SQRT((AD382^2)+(AD383^2)+(AD384^2)+(AD385^2))","v":12.529964086141668},{"$f":"AE382+AE383+AE384+AE385","v":0},{"$f":"SQRT((AF382^2)+(AF383^2)+(AF384^2)+(AF385^2))","v":15.556349186104045}]
[null,"Less Than 35% of HH Income",{"$f":"C379+C380+C381+C382","v":0},{"$f":"SQRT((D379^2)+(D380^2)+(D381^2)+(D382^2))","v":22},{"$f":"E379+E380+E381+E382","v":48},{"$f":"SQRT((F379^2)+(F380^2)+(F381^2)+(F382^2))","v":63.3798075099633},{"$f":"G379+G380+G381+G382","v":321},{"$f":"SQRT((H379^2)+(H380^2)+(H381^2)+(H382^2))","v":134.17153200288055},{"$f":"I379+I380+I381+I382","v":9},{"$f":"SQRT((J379^2)+(J380^2)+(J381^2)+(J382^2))","v":23.643180835073778},{"$f":"K379+K380+K381+K382","v":6},{"$f":"SQRT((L379^2)+(L380^2)+(L381^2)+(L382^2))","v":21.071307505705477},{"$f":"M379+M380+M381+M382","v":6},{"$f":"SQRT((N379^2)+(N380^2)+(N381^2)+(N382^2))","v":20.663978319771825},{"$f":"O379+O380+O381+O382","v":12},{"$f":"SQRT((P379^2)+(P380^2)+(P381^2)+(P382^2))","v":27.622454633866266},{"$f":"Q379+Q380+Q381+Q382","v":0},{"$f":"SQRT((R379^2)+(R380^2)+(R381^2)+(R382^2))","v":22},{"$f":"S379+S380+S381+S382","v":12},{"$f":"SQRT((T379^2)+(T380^2)+(T381^2)+(T382^2))","v":23.643180835073778},{"$f":"U379+U380+U381+U382","v":241},{"$f":"SQRT((V379^2)+(V380^2)+(V381^2)+(V382^2))","v":141.32940246105903},{"$f":"W379+W380+W381+W382","v":0},{"$f":"SQRT((X379^2)+(X380^2)+(X381^2)+(X382^2))","v":22},{"$f":"Y379+Y380+Y381+Y382","v":12},{"$f":"SQRT((Z379^2)+(Z380^2)+(Z381^2)+(Z382^2))","v":26.210684844162312},{"$f":"AA379+AA380+AA381+AA382","v":20},{"$f":"SQRT((AB379^2)+(AB380^2)+(AB381^2)+(AB382^2))","v":29.444863728670914},{"$f":"AC379+AC380+AC381+AC382","v":36},{"$f":"SQRT((AD379^2)+(AD380^2)+(AD381^2)+(AD382^2))","v":41.243181254602561},{"$f":"AE379+AE380+AE381+AE382","v":10},{"$f":"SQRT((AF379^2)+(AF380^2)+(AF381^2)+(AF382^2))","v":24.248711305964282}]
[null,"35.0 percent or more",{"$f":"C383+C384+C385","v":4},{"$f":"SQRT((D383^2)+(D384^2)+(D385^2))","v":6},{"$f":"E383+E384+E385","v":0},{"$f":"SQRT((F383^2)+(F384^2)+(F385^2))","v":16},{"$f":"G383+G384+G385","v":56},{"$f":"SQRT((H383^2)+(H384^2)+(H385^2))","v":61},{"$f":"I383+I384+I385","v":0},{"$f":"SQRT((J383^2)+(J384^2)+(J385^2))","v":11},{"$f":"K383+K384+K385","v":6},{"$f":"SQRT((L383^2)+(L384^2)+(L385^2))","v":11},{"$f":"M383+M384+M385","v":9},{"$f":"SQRT((N383^2)+(N384^2)+(N385^2))","v":11},{"$f":"O383+O384+O385","v":24},{"$f":"SQRT((P383^2)+(P384^2)+(P385^2))","v":27},{"$f":"Q383+Q384+Q385","v":4},{"$f":"SQRT((R383^2)+(R384^2)+(R385^2))","v":5},{"$f":"S383+S384+S385","v":5},{"$f":"SQRT((T383^2)+(T384^2)+(T385^2))","v":5},{"$f":"U383+U384+U385","v":74},{"$f":"SQRT((V383^2)+(V384^2)+(V385^2))","v":90},{"$f":"W383+W384+W385","v":0},{"$f":"SQRT((X383^2)+(X384^2)+(X385^2))","v":11},{"$f":"Y383+Y384+Y385","v":0},{"$f":"SQRT((Z383^2)+(Z384^2)+(Z385^2))","v":11},{"$f":"AA383+AA384+AA385","v":0},{"$f":"SQRT((AB383^2)+(AB384^2)+(AB385^2))","v":11},{"$f":"AC383+AC384+AC385","v":0},{"$f":"SQRT((AD383^2)+(AD384^2)+(AD385^2))","v":11},{"$f":"AE383+AE384+AE385","v":0},{"$f":"SQRT((AF383^2)+(AF384^2)+(AF385^2))","v":11}]
[null,"50.0 percent or more",{"$f":"C385","v":0},0,{"$f":"E385","v":0},0,0,0,0,0,0,0,0,0,0,0,0,0,0,0,0,0,0,0,0,0,0,0,0,0,0,0]
[null,"Not Computed",0,11,{"$f":"E386","v":35},52,20,21,3,5,0,11,0,11,0,11,0,11,0,11,0,16,8,13,0,11,0,11,0,11,3,5]
[null,"$50,000 to $74,999:",28,24,{"$f":"E387","v":36},39,284,100,37,28,11,12,18,20,17,28,11,17,9,10,57,46,0,11,3,5,97,69,3,5,2,4]
[null,"Less than 30.0 percent",{"$f":"C388+C389+C390","v":28},{"$f":"SQRT((D388^2)+(D389^2)+(D390^2))","v":27.313000567495326},{"$f":"E388+E389+E390","v":19},{"$f":"SQRT((F388^2)+(F389^2)+(F390^2))","v":37.576588456111871},{"$f":"G388+G389+G390","v":284},{"$f":"SQRT((H388^2)+(H389^2)+(H390^2))","v":118.86547017532047},{"$f":"I388+I389+I390","v":22},{"$f":"SQRT((J388^2)+(J389^2)+(J390^2))","v":22.158519806160339},{"$f":"K388+K389+K390","v":11},{"$f":"SQRT((L388^2)+(L389^2)+(L390^2))","v":15.684387141358123},{"$f":"M388+M389+M390","v":14},{"$f":"SQRT((N388^2)+(N389^2)+(N390^2))","v":24.556058315617349},{"$f":"O388+O389+O390","v":17},{"$f":"SQRT((P388^2)+(P389^2)+(P390^2))","v":32.03123475609393},{"$f":"Q388+Q389+Q390","v":11},{"$f":"SQRT((R388^2)+(R389^2)+(R390^2))","v":23.043437243605826},{"$f":"S388+S389+S390","v":0},{"$f":"SQRT((T388^2)+(T389^2)+(T390^2))","v":19.05255888325765},{"$f":"U388+U389+U390","v":44},{"$f":"SQRT((V388^2)+(V389^2)+(V390^2))","v":40.496913462633174},{"$f":"W388+W389+W390","v":0},{"$f":"SQRT((X388^2)+(X389^2)+(X390^2))","v":19.05255888325765},{"$f":"Y388+Y389+Y390","v":3},{"$f":"SQRT((Z388^2)+(Z389^2)+(Z390^2))","v":16.340134638368191},{"$f":"AA388+AA389+AA390","v":83},{"$f":"SQRT((AB388^2)+(AB389^2)+(AB390^2))","v":71.665891468675667},{"$f":"AC388+AC389+AC390","v":3},{"$f":"SQRT((AD388^2)+(AD389^2)+(AD390^2))","v":16.340134638368191},{"$f":"AE388+AE389+AE390","v":0},{"$f":"SQRT((AF388^2)+(AF389^2)+(AF390^2))","v":19.05255888325765}]
[null,"More than 30.0 percent",{"$f":"C391+C392+C393+C394","v":0},{"$f":"SQRT((D391^2)+(D392^2)+(D393^2)+(D394^2))","v":15.556349186104045},{"$f":"E391+E392+E393+E394","v":0},{"$f":"SQRT((F391^2)+(F392^2)+(F393^2)+(F394^2))","v":22.627416997969522},{"$f":"G391+G392+G393+G394","v":0},{"$f":"SQRT((H391^2)+(H392^2)+(H393^2)+(H394^2))","v":25.45584412271571},{"$f":"I391+I392+I393+I394","v":12},{"$f":"SQRT((J391^2)+(J392^2)+(J393^2)+(J394^2))","v":19.416487838947599},{"$f":"K391+K392+K393+K394","v":0},{"$f":"SQRT((L391^2)+(L392^2)+(L393^2)+(L394^2))","v":15.556349186104045},{"$f":"M391+M392+M393+M394","v":4},{"$f":"SQRT((N391^2)+(N392^2)+(N393^2)+(N394^2))","v":13.038404810405298},{"$f":"O391+O392+O393+O394","v":0},{"$f":"SQRT((P391^2)+(P392^2)+(P393^2)+(P394^2))","v":15.556349186104045},{"$f":"Q391+Q392+Q393+Q394","v":0},{"$f":"SQRT((R391^2)+(R392^2)+(R393^2)+(R394^2))","v":15.556349186104045},{"$f":"S391+S392+S393+S394","v":6},{"$f":"SQRT((T391^2)+(T392^2)+(T393^2)+(T394^2))","v":14.212670403551895},{"$f":"U391+U392+U393+U394","v":13},{"$f":"SQRT((V391^2)+(V392^2)+(V393^2)+(V394^2))","v":28.844410203711913},{"$f":"W391+W392+W393+W394","v":0},{"$f":"SQRT((X391^2)+(X392^2)+(X393^2)+(X394^2))","v":15.556349186104045},{"$f":"Y391+Y392+Y393+Y394","v":0},{"$f":"SQRT((Z391^2)+(Z392^2)+(Z393^2)+(Z394^2))","v":15.556349186104045},{"$f":"AA391+AA392+AA393+AA394","v":14},{"$f":"SQRT((AB391^2)+(AB392^2)+(AB393^2)+(AB394^2))","v":19.416487838947599},{"$f":"AC391+AC392+AC393+AC394","v":0},{"$f":"SQRT((AD391^2)+(AD392^2)+(AD393^2)+(AD394^2))","v":15.556349186104045},{"$f":"AE391+AE392+AE393+AE394","v":2},{"$f":"SQRT((AF391^2)+(AF392^2)+(AF393^2)+(AF394^2))","v":11.704699910719626}]
[null,"Less Than 35% of HH Income",{"$f":"C388+C389+C390+C391","v":28},{"$f":"SQRT((D388^2)+(D389^2)+(D390^2)+(D391^2))","v":29.444863728670914},{"$f":"E388+E389+E390+E391","v":19},{"$f":"SQRT((F388^2)+(F389^2)+(F390^2)+(F391^2))","v":40.841155713324277},{"$f":"G388+G389+G390+G391","v":284},{"$f":"SQRT((H388^2)+(H389^2)+(H390^2)+(H391^2))","v":120.22063050907694},{"$f":"I388+I389+I390+I391","v":34},{"$f":"SQRT((J388^2)+(J389^2)+(J390^2)+(J391^2))","v":27.331300737432898},{"$f":"K388+K389+K390+K391","v":11},{"$f":"SQRT((L388^2)+(L389^2)+(L390^2)+(L391^2))","v":19.157244060668017},{"$f":"M388+M389+M390+M391","v":18},{"$f":"SQRT((N388^2)+(N389^2)+(N390^2)+(N391^2))","v":25.534290669607408},{"$f":"O388+O389+O390+O391","v":17},{"$f":"SQRT((P388^2)+(P389^2)+(P390^2)+(P391^2))","v":33.867388443752198},{"$f":"Q388+Q389+Q390+Q391","v":11},{"$f":"SQRT((R388^2)+(R389^2)+(R390^2)+(R391^2))","v":25.534290669607408},{"$f":"S388+S389+S390+S391","v":6},{"$f":"SQRT((T388^2)+(T389^2)+(T390^2)+(T391^2))","v":21.071307505705477},{"$f":"U388+U389+U390+U391","v":57},{"$f":"SQRT((V388^2)+(V389^2)+(V390^2)+(V391^2))","v":47.074409183759279},{"$f":"W388+W389+W390+W391","v":0},{"$f":"SQRT((X388^2)+(X389^2)+(X390^2)+(X391^2))","v":22},{"$f":"Y388+Y389+Y390+Y391","v":3},{"$f":"SQRT((Z388^2)+(Z389^2)+(Z390^2)+(Z391^2))","v":19.697715603592208},{"$f":"AA388+AA389+AA390+AA391","v":83},{"$f":"SQRT((AB388^2)+(AB389^2)+(AB390^2)+(AB391^2))","v":72.505172229296861},{"$f":"AC388+AC389+AC390+AC391","v":3},{"$f":"SQRT((AD388^2)+(AD389^2)+(AD390^2)+(AD391^2))","v":19.697715603592208},{"$f":"AE388+AE389+AE390+AE391","v":0},{"$f":"SQRT((AF388^2)+(AF389^2)+(AF390^2)+(AF391^2))","v":22}]
[null,"35.0 percent or more",{"$f":"C392+C393+C394","v":0},{"$f":"SQRT((D392^2)+(D393^2)+(D394^2))","v":11},{"$f":"E392+E393+E394","v":0},{"$f":"SQRT((F392^2)+(F393^2)+(F394^2))","v":16},{"$f":"G392+G393+G394","v":0},{"$f":"SQRT((H392^2)+(H393^2)+(H394^2))","v":18},{"$f":"I392+I393+I394","v":0},{"$f":"SQRT((J392^2)+(J393^2)+(J394^2))","v":11},{"$f":"K392+K393+K394","v":0},{"$f":"SQRT((L392^2)+(L393^2)+(L394^2))","v":11},{"$f":"M392+M393+M394","v":0},{"$f":"SQRT((N392^2)+(N393^2)+(N394^2))","v":11},{"$f":"O392+O393+O394","v":0},{"$f":"SQRT((P392^2)+(P393^2)+(P394^2))","v":11},{"$f":"Q392+Q393+Q394","v":0},{"$f":"SQRT((R392^2)+(R393^2)+(R394^2))","v":11},{"$f":"S392+S393+S394","v":0},{"$f":"SQRT((T392^2)+(T393^2)+(T394^2))","v":11},{"$f":"U392+U393+U394","v":0},{"$f":"SQRT((V392^2)+(V393^2)+(V394^2))","v":16},{"$f":"W392+W393+W394","v":0},{"$f":"SQRT((X392^2)+(X393^2)+(X394^2))","v":11},{"$f":"Y392+Y393+Y394","v":0},{"$f":"SQRT((Z392^2)+(Z393^2)+(Z394^2))","v":11},{"$f":"AA392+AA393+AA394","v":14},{"$f":"SQRT((AB392^2)+(AB393^2)+(AB394^2))","v":16},{"$f":"AC392+AC393+AC394","v":0},{"$f":"SQRT((AD392^2)+(AD393^2)+(AD394^2))","v":11},{"$f":"AE392+AE393+AE394","v":2},{"$f":"SQRT((AF392^2)+(AF393^2)+(AF394^2))","v":4}]
[null,"50.0 percent or more",{"$f":"C394","v":0},0,{"$f":"E394","v":0},0,0,0,0,0,0,0,0,0,0,0,0,0,0,0,0,0,0,0,0,0,0,0,0,0,0,0]
[null,"Not Computed",0,11,{"$f":"E395","v":17},27,0,18,3,4,0,11,0,11,0,11,0,11,3,4,0,16,0,11,0,11,0,11,0,11,0,11]
[null,"$75,000 to $99,999:",4,4,{"$f":"E396","v":26},29,23,36,23,21,3,4,13,20,12,18,9,11,15,19,62,64,13,13,14,17,61,61,6,10,2,4]
[null,"Less than 30.0 percent",{"$f":"C397+C398+C399","v":4},{"$f":"SQRT((D397^2)+(D398^2)+(D399^2))","v":11.789826122551595},{"$f":"E397+E398+E399","v":16},{"$f":"SQRT((F397^2)+(F398^2)+(F399^2))","v":33.719430600174732},{"$f":"G397+G398+G399","v":23},{"$f":"SQRT((H397^2)+(H398^2)+(H399^2))","v":44.090815370097204},{"$f":"I397+I398+I399","v":23},{"$f":"SQRT((J397^2)+(J398^2)+(J399^2))","v":26.134268690743959},{"$f":"K397+K398+K399","v":0},{"$f":"SQRT((L397^2)+(L398^2)+(L399^2))","v":19.05255888325765},{"$f":"M397+M398+M399","v":13},{"$f":"SQRT((N397^2)+(N398^2)+(N399^2))","v":25.337718918639855},{"$f":"O397+O398+O399","v":0},{"$f":"SQRT((P397^2)+(P398^2)+(P399^2))","v":19.05255888325765},{"$f":"Q397+Q398+Q399","v":9},{"$f":"SQRT((R397^2)+(R398^2)+(R399^2))","v":16.06237840420901},{"$f":"S397+S398+S399","v":15},{"$f":"SQRT((T397^2)+(T398^2)+(T399^2))","v":24.556058315617349},{"$f":"U397+U398+U399","v":62},{"$f":"SQRT((V397^2)+(V398^2)+(V399^2))","v":67.882250993908556},{"$f":"W397+W398+W399","v":13},{"$f":"SQRT((X397^2)+(X398^2)+(X399^2))","v":17.378147196982766},{"$f":"Y397+Y398+Y399","v":14},{"$f":"SQRT((Z397^2)+(Z398^2)+(Z399^2))","v":20.049937655763422},{"$f":"AA397+AA398+AA399","v":61},{"$f":"SQRT((AB397^2)+(AB398^2)+(AB399^2))","v":62.63385665915839},{"$f":"AC397+AC398+AC399","v":6},{"$f":"SQRT((AD397^2)+(AD398^2)+(AD399^2))","v":18.493242008906929},{"$f":"AE397+AE398+AE399","v":2},{"$f":"SQRT((AF397^2)+(AF398^2)+(AF399^2))","v":16.06237840420901}]
[null,"More than 30.0 percent",{"$f":"C391+C392+C393+C394","v":0},{"$f":"SQRT((D391^2)+(D392^2)+(D393^2)+(D394^2))","v":15.556349186104045},{"$f":"E391+E392+E393+E394","v":0},{"$f":"SQRT((F391^2)+(F392^2)+(F393^2)+(F394^2))","v":22.627416997969522},{"$f":"G391+G392+G393+G394","v":0},{"$f":"SQRT((H391^2)+(H392^2)+(H393^2)+(H394^2))","v":25.45584412271571},{"$f":"I391+I392+I393+I394","v":12},{"$f":"SQRT((J391^2)+(J392^2)+(J393^2)+(J394^2))","v":19.416487838947599},{"$f":"K391+K392+K393+K394","v":0},{"$f":"SQRT((L391^2)+(L392^2)+(L393^2)+(L394^2))","v":15.556349186104045},{"$f":"M391+M392+M393+M394","v":4},{"$f":"SQRT((N391^2)+(N392^2)+(N393^2)+(N394^2))","v":13.038404810405298},{"$f":"O391+O392+O393+O394","v":0},{"$f":"SQRT((P391^2)+(P392^2)+(P393^2)+(P394^2))","v":15.556349186104045},{"$f":"Q391+Q392+Q393+Q394","v":0},{"$f":"SQRT((R391^2)+(R392^2)+(R393^2)+(R394^2))","v":15.556349186104045},{"$f":"S391+S392+S393+S394","v":6},{"$f":"SQRT((T391^2)+(T392^2)+(T393^2)+(T394^2))","v":14.212670403551895},{"$f":"U391+U392+U393+U394","v":13},{"$f":"SQRT((V391^2)+(V392^2)+(V393^2)+(V394^2))","v":28.844410203711913},{"$f":"W391+W392+W393+W394","v":0},{"$f":"SQRT((X391^2)+(X392^2)+(X393^2)+(X394^2))","v":15.556349186104045},{"$f":"Y391+Y392+Y393+Y394","v":0},{"$f":"SQRT((Z391^2)+(Z392^2)+(Z393^2)+(Z394^2))","v":15.556349186104045},{"$f":"AA391+AA392+AA393+AA394","v":14},{"$f":"SQRT((AB391^2)+(AB392^2)+(AB393^2)+(AB394^2))","v":19.416487838947599},{"$f":"AC391+AC392+AC393+AC394","v":0},{"$f":"SQRT((AD391^2)+(AD392^2)+(AD393^2)+(AD394^2))","v":15.556349186104045},{"$f":"AE391+AE392+AE393+AE394","v":2},{"$f":"SQRT((AF391^2)+(AF392^2)+(AF393^2)+(AF394^2))","v":11.704699910719626}]
[null,"Less Than 35% of HH Income",{"$f":"C388+C389+C390++C391","v":28},{"$f":"SQRT((D388^2)+(D389^2)+(D390^2)+(D391^2))","v":29.444863728670914},{"$f":"E388+E389+E390++E391","v":19},{"$f":"SQRT((F388^2)+(F389^2)+(F390^2)+(F391^2))","v":40.841155713324277},{"$f":"G388+G389+G390++G391","v":284},{"$f":"SQRT((H388^2)+(H389^2)+(H390^2)+(H391^2))","v":120.22063050907694},{"$f":"I388+I389+I390++I391","v":34},{"$f":"SQRT((J388^2)+(J389^2)+(J390^2)+(J391^2))","v":27.331300737432898},{"$f":"K388+K389+K390++K391","v":11},{"$f":"SQRT((L388^2)+(L389^2)+(L390^2)+(L391^2))","v":19.157244060668017},{"$f":"M388+M389+M390++M391","v":18},{"$f":"SQRT((N388^2)+(N389^2)+(N390^2)+(N391^2))","v":25.534290669607408},{"$f":"O388+O389+O390++O391","v":17},{"$f":"SQRT((P388^2)+(P389^2)+(P390^2)+(P391^2))","v":33.867388443752198},{"$f":"Q388+Q389+Q390++Q391","v":11},{"$f":"SQRT((R388^2)+(R389^2)+(R390^2)+(R391^2))","v":25.534290669607408},{"$f":"S388+S389+S390++S391","v":6},{"$f":"SQRT((T388^2)+(T389^2)+(T390^2)+(T391^2))","v":21.071307505705477},{"$f":"U388+U389+U390++U391","v":57},{"$f":"SQRT((V388^2)+(V389^2)+(V390^2)+(V391^2))","v":47.074409183759279},{"$f":"W388+W389+W390++W391","v":0},{"$f":"SQRT((X388^2)+(X389^2)+(X390^2)+(X391^2))","v":22},{"$f":"Y388+Y389+Y390++Y391","v":3},{"$f":"SQRT((Z388^2)+(Z389^2)+(Z390^2)+(Z391^2))","v":19.697715603592208},{"$f":"AA388+AA389+AA390++AA391","v":83},{"$f":"SQRT((AB388^2)+(AB389^2)+(AB390^2)+(AB391^2))","v":72.505172229296861},{"$f":"AC388+AC389+AC390++AC391","v":3},{"$f":"SQRT((AD388^2)+(AD389^2)+(AD390^2)+(AD391^2))","v":19.697715603592208},{"$f":"AE388+AE389+AE390++AE391","v":0},{"$f":"SQRT((AF388^2)+(AF389^2)+(AF390^2)+(AF391^2))","v":22}]
[null,"35.0 percent or more",{"$f":"C392+C393+C394","v":0},{"$f":"SQRT((D392^2)+(D393^2)+(D394^2))","v":11},{"$f":"E392+E393+E394","v":0},{"$f":"SQRT((F392^2)+(F393^2)+(F394^2))","v":16},{"$f":"G392+G393+G394","v":0},{"$f":"SQRT((H392^2)+(H393^2)+(H394^2))","v":18},{"$f":"I392+I393+I394","v":0},{"$f":"SQRT((J392^2)+(J393^2)+(J394^2))","v":11},{"$f":"K392+K393+K394","v":0},{"$f":"SQRT((L392^2)+(L393^2)+(L394^2))","v":11},{"$f":"M392+M393+M394","v":0},{"$f":"SQRT((N392^2)+(N393^2)+(N394^2))","v":11},{"$f":"O392+O393+O394","v":0},{"$f":"SQRT((P392^2)+(P393^2)+(P394^2))","v":11},{"$f":"Q392+Q393+Q394","v":0},{"$f":"SQRT((R392^2)+(R393^2)+(R394^2))","v":11},{"$f":"S392+S393+S394","v":0},{"$f":"SQRT((T392^2)+(T393^2)+(T394^2))","v":11},{"$f":"U392+U393+U394","v":0},{"$f":"SQRT((V392^2)+(V393^2)+(V394^2))","v":16},{"$f":"W392+W393+W394","v":0},{"$f":"SQRT((X392^2)+(X393^2)+(X394^2))","v":11},{"$f":"Y392+Y393+Y394","v":0},{"$f":"SQRT((Z392^2)+(Z393^2)+(Z394^2))","v":11},{"$f":"AA392+AA393+AA394","v":14},{"$f":"SQRT((AB392^2)+(AB393^2)+(AB394^2))","v":16},{"$f":"AC392+AC393+AC394","v":0},{"$f":"SQRT((AD392^2)+(AD393^2)+(AD394^2))","v":11},{"$f":"AE392+AE393+AE394","v":2},{"$f":"SQRT((AF392^2)+(AF393^2)+(AF394^2))","v":4}]
[null,"50.0 percent or more",{"$f":"C403","v":0},0,{"$f":"E403","v":0},0,0,0,0,0,0,0,0,0,0,0,0,0,0,0,0,0,0,0,0,0,0,0,0,0,0,0]
[null,"Not Computed",0,11,{"$f":"E404","v":10},15,0,18,0,11,3,4,0,11,0,11,0,11,0,11,0,16,0,11,0,11,0,11,0,11,0,11]
[null,"$100,000 or more:",12,19,{"$f":"E405","v":30},50,59,33,12,10,16,14,5,7,51,40,0,11,0,11,0,16,45,48,7,8,72,71,0,11,0,11]
[null,"Less than 30.0 percent",{"$f":"C406+C407+C408","v":12},{"$f":"SQRT((D406^2)+(D407^2)+(D408^2))","v":24.556058315617349},{"$f":"E406+E407+E408","v":30},{"$f":"SQRT((F406^2)+(F407^2)+(F408^2))","v":54.881690936048976},{"$f":"G406+G407+G408","v":59},{"$f":"SQRT((H406^2)+(H407^2)+(H408^2))","v":41.677331968349414},{"$f":"I406+I407+I408","v":9},{"$f":"SQRT((J406^2)+(J407^2)+(J408^2))","v":17.972200755611428},{"$f":"K406+K407+K408","v":16},{"$f":"SQRT((L406^2)+(L407^2)+(L408^2))","v":17.378147196982766},{"$f":"M406+M407+M408","v":0},{"$f":"SQRT((N406^2)+(N407^2)+(N408^2))","v":19.05255888325765},{"$f":"O406+O407+O408","v":32},{"$f":"SQRT((P406^2)+(P407^2)+(P408^2))","v":33.25657829663178},{"$f":"Q406+Q407+Q408","v":0},{"$f":"SQRT((R406^2)+(R407^2)+(R408^2))","v":19.05255888325765},{"$f":"S406+S407+S408","v":0},{"$f":"SQRT((T406^2)+(T407^2)+(T408^2))","v":19.05255888325765},{"$f":"U406+U407+U408","v":0},{"$f":"SQRT((V406^2)+(V407^2)+(V408^2))","v":27.712812921102035},{"$f":"W406+W407+W408","v":33},{"$f":"SQRT((X406^2)+(X407^2)+(X408^2))","v":44.788391353117383},{"$f":"Y406+Y407+Y408","v":5},{"$f":"SQRT((Z406^2)+(Z407^2)+(Z408^2))","v":17.058722109231979},{"$f":"AA406+AA407+AA408","v":72},{"$f":"SQRT((AB406^2)+(AB407^2)+(AB408^2))","v":72.684248637514301},{"$f":"AC406+AC407+AC408","v":0},{"$f":"SQRT((AD406^2)+(AD407^2)+(AD408^2))","v":19.05255888325765},{"$f":"AE406+AE407+AE408","v":0},{"$f":"SQRT((AF406^2)+(AF407^2)+(AF408^2))","v":19.05255888325765}]
[null,"More than 30.0 percent",{"$f":"C409+C410+C411+C412","v":0},{"$f":"SQRT((D409^2)+(D410^2)+(D411^2)+(D412^2))","v":15.556349186104045},{"$f":"E409+E410+E411+E412","v":0},{"$f":"SQRT((F409^2)+(F410^2)+(F411^2)+(F412^2))","v":22.627416997969522},{"$f":"G409+G410+G411+G412","v":0},{"$f":"SQRT((H409^2)+(H410^2)+(H411^2)+(H412^2))","v":25.45584412271571},{"$f":"I409+I410+I411+I412","v":0},{"$f":"SQRT((J409^2)+(J410^2)+(J411^2)+(J412^2))","v":15.556349186104045},{"$f":"K409+K410+K411+K412","v":0},{"$f":"SQRT((L409^2)+(L410^2)+(L411^2)+(L412^2))","v":15.556349186104045},{"$f":"M409+M410+M411+M412","v":0},{"$f":"SQRT((N409^2)+(N410^2)+(N411^2)+(N412^2))","v":15.556349186104045},{"$f":"O409+O410+O411+O412","v":0},{"$f":"SQRT((P409^2)+(P410^2)+(P411^2)+(P412^2))","v":15.556349186104045},{"$f":"Q409+Q410+Q411+Q412","v":0},{"$f":"SQRT((R409^2)+(R410^2)+(R411^2)+(R412^2))","v":15.556349186104045},{"$f":"S409+S410+S411+S412","v":0},{"$f":"SQRT((T409^2)+(T410^2)+(T411^2)+(T412^2))","v":15.556349186104045},{"$f":"U409+U410+U411+U412","v":0},{"$f":"SQRT((V409^2)+(V410^2)+(V411^2)+(V412^2))","v":22.627416997969522},{"$f":"W409+W410+W411+W412","v":0},{"$f":"SQRT((X409^2)+(X410^2)+(X411^2)+(X412^2))","v":15.556349186104045},{"$f":"Y409+Y410+Y411+Y412","v":0},{"$f":"SQRT((Z409^2)+(Z410^2)+(Z411^2)+(Z412^2))","v":15.556349186104045},{"$f":"AA409+AA410+AA411+AA412","v":0},{"$f":"SQRT((AB409^2)+(AB410^2)+(AB411^2)+(AB412^2))","v":15.556349186104045},{"$f":"AC409+AC410+AC411+AC412","v":0},{"$f":"SQRT((AD409^2)+(AD410^2)+(AD411^2)+(AD412^2))","v":15.556349186104045},{"$f":"AE409+AE410+AE411+AE412","v":0},{"$f":"SQRT((AF409^2)+(AF410^2)+(AF411^2)+(AF412^2))","v":15.556349186104045}]
[null,"Less Than 35% of HH Income",{"$f":"C406+C407+C408+C409","v":12},{"$f":"SQRT((D406^2)+(D407^2)+(D408^2)+(D409^2))","v":26.90724809414742},{"$f":"E406+E407+E408+E409","v":30},{"$f":"SQRT((F406^2)+(F407^2)+(F408^2)+(F409^2))","v":57.166423711825807},{"$f":"G406+G407+G408+G409","v":59},{"$f":"SQRT((H406^2)+(H407^2)+(H408^2)+(H409^2))","v":45.398237851264668},{"$f":"I406+I407+I408+I409","v":9},{"$f":"SQRT((J406^2)+(J407^2)+(J408^2)+(J409^2))","v":21.071307505705477},{"$f":"K406+K407+K408+K409","v":16},{"$f":"SQRT((L406^2)+(L407^2)+(L408^2)+(L409^2))","v":20.566963801203133},{"$f":"M406+M407+M408+M409","v":0},{"$f":"SQRT((N406^2)+(N407^2)+(N408^2)+(N409^2))","v":22},{"$f":"O406+O407+O408+O409","v":32},{"$f":"SQRT((P406^2)+(P407^2)+(P408^2)+(P409^2))","v":35.028559776273987},{"$f":"Q406+Q407+Q408+Q409","v":0},{"$f":"SQRT((R406^2)+(R407^2)+(R408^2)+(R409^2))","v":22},{"$f":"S406+S407+S408+S409","v":0},{"$f":"SQRT((T406^2)+(T407^2)+(T408^2)+(T409^2))","v":22},{"$f":"U406+U407+U408+U409","v":0},{"$f":"SQRT((V406^2)+(V407^2)+(V408^2)+(V409^2))","v":32},{"$f":"W406+W407+W408+W409","v":33},{"$f":"SQRT((X406^2)+(X407^2)+(X408^2)+(X409^2))","v":46.119410230400824},{"$f":"Y406+Y407+Y408+Y409","v":5},{"$f":"SQRT((Z406^2)+(Z407^2)+(Z408^2)+(Z409^2))","v":20.297783130184438},{"$f":"AA406+AA407+AA408+AA409","v":72},{"$f":"SQRT((AB406^2)+(AB407^2)+(AB408^2)+(AB409^2))","v":73.511903797956421},{"$f":"AC406+AC407+AC408+AC409","v":0},{"$f":"SQRT((AD406^2)+(AD407^2)+(AD408^2)+(AD409^2))","v":22},{"$f":"AE406+AE407+AE408+AE409","v":0},{"$f":"SQRT((AF406^2)+(AF407^2)+(AF408^2)+(AF409^2))","v":22}]
[null,"35.0 percent or more",{"$f":"C410+C411+C412","v":0},{"$f":"SQRT((D410^2)+(D411^2)+(D412^2))","v":11},{"$f":"E410+E411+E412","v":0},{"$f":"SQRT((F410^2)+(F411^2)+(F412^2))","v":16},{"$f":"G410+G411+G412","v":0},{"$f":"SQRT((H410^2)+(H411^2)+(H412^2))","v":18},{"$f":"I410+I411+I412","v":0},{"$f":"SQRT((J410^2)+(J411^2)+(J412^2))","v":11},{"$f":"K410+K411+K412","v":0},{"$f":"SQRT((L410^2)+(L411^2)+(L412^2))","v":11},{"$f":"M410+M411+M412","v":0},{"$f":"SQRT((N410^2)+(N411^2)+(N412^2))","v":11},{"$f":"O410+O411+O412","v":0},{"$f":"SQRT((P410^2)+(P411^2)+(P412^2))","v":11},{"$f":"Q410+Q411+Q412","v":0},{"$f":"SQRT((R410^2)+(R411^2)+(R412^2))","v":11},{"$f":"S410+S411+S412","v":0},{"$f":"SQRT((T410^2)+(T411^2)+(T412^2))","v":11},{"$f":"U410+U411+U412","v":0},{"$f":"SQRT((V410^2)+(V411^2)+(V412^2))","v":16},{"$f":"W410+W411+W412","v":0},{"$f":"SQRT((X410^2)+(X411^2)+(X412^2))","v":11},{"$f":"Y410+Y411+Y412","v":0},{"$f":"SQRT((Z410^2)+(Z411^2)+(Z412^2))","v":11},{"$f":"AA410+AA411+AA412","v":0},{"$f":"SQRT((AB410^2)+(AB411^2)+(AB412^2))","v":11},{"$f":"AC410+AC411+AC412","v":0},{"$f":"SQRT((AD410^2)+(AD411^2)+(AD412^2))","v":11},{"$f":"AE410+AE411+AE412","v":0},{"$f":"SQRT((AF410^2)+(AF411^2)+(AF412^2))","v":11}]
[null,"50.0 percent or more",{"$f":"C412","v":0},{"$f":"D412","v":0},{"$f":"E412","v":0},0,0,0,0,0,0,0,0,0,0,0,0,0,0,0,0,0,0,0,0,0,0,0,0,0,0,0]
[null,"Not Computed",{"$f":"C413","v":0},{"$f":"D413","v":11},{"$f":"E413","v":0},16,0,18,3,4,0,11,5,7,19,27,0,11,0,11,0,16,12,19,2,5,0,11,0,11,0,11]
[]
[]
[null,"Calculated GROSS RENT AS A PERCENTAGE OF HOUSEHOLD INCOME IN THE PAST 12 MONTHS"]
[null,"Universe:  RENTER-OCCUPIED HOUSING UNITS"]
[null,{"$f":"B346","v":"Data Set: 2008-2012 American Community Survey 5-Year Estimates"}]
[]
[null,null,"Acworth",null,"Charlestown",null,"Claremont",null,"Cornish",null,"Croydon",null,"Goshen",null,"Grantham",null,"Langdon",null,"Lempster",null,"Newport",null,"Plainfield",null,"Springfield",null,"Sunapee",null,"Unity",null,"Washington"]
[null,null,"Estimate","Margin Of Error","Estimate","Margin Of Error","Estimate","Margin Of Error","Estimate","Margin Of Error","Estimate","Margin Of Error","Estimate","Margin Of Error","Estimate","Margin Of Error","Estimate","Margin Of Error","Estimate","Margin Of Error","Estimate","Margin Of Error","Estimate","Margin Of Error","Estimate","Margin Of Error","Estimate","Margin Of Error","Estimate","Margin Of Error","Estimate","Margin Of Error"]
[null,"Total:",{"$f":"C421","v":72},{"$f":"D421","v":39},{"$f":"E421","v":467},158,2255,221,105,42,49,23,58,32,116,57,31,24,62,28,898,206,103,58,44,27,360,127,53,43,37,21]
[null,"Less than 30.0 percent",{"$f":"C465+C458+C450+C444+C437+C430+C423","v":44},{"$f":"SQRT((D465^2)+(D458^2)+(D450^2)+(D444^2)+(D437^2)+(D430^2)+(D423^2))","v":47.81213235152768},{"$f":"E465+E458+E450+E444+E437+E430+E423","v":166},{"$f":"SQRT((F465^2)+(F458^2)+(F450^2)+(F444^2)+(F437^2)+(F430^2)+(F423^2))","v":106.43307756520056},{"$f":"G465+G458+G450+G444+G437+G430+G423","v":852},{"$f":"SQRT((H465^2)+(H458^2)+(H450^2)+(H444^2)+(H437^2)+(H430^2)+(H423^2))","v":183.41755641159327},{"$f":"I465+I458+I450+I444+I437+I430+I423","v":69},{"$f":"SQRT((J465^2)+(J458^2)+(J450^2)+(J444^2)+(J437^2)+(J430^2)+(J423^2))","v":52.516664022003532},{"$f":"K465+K458+K450+K444+K437+K430+K423","v":29},{"$f":"SQRT((L465^2)+(L458^2)+(L450^2)+(L444^2)+(L437^2)+(L430^2)+(L423^2))","v":40.80441152620633},{"$f":"M465+M458+M450+M444+M437+M430+M423","v":31},{"$f":"SQRT((N465^2)+(N458^2)+(N450^2)+(N444^2)+(N437^2)+(N430^2)+(N423^2))","v":48.713447835274401},{"$f":"O465+O458+O450+O444+O437+O430+O423","v":61},{"$f":"SQRT((P465^2)+(P458^2)+(P450^2)+(P444^2)+(P437^2)+(P430^2)+(P423^2))","v":56.753854494650845},{"$f":"Q465+Q458+Q450+Q444+Q437+Q430+Q423","v":20},{"$f":"SQRT((R465^2)+(R458^2)+(R450^2)+(R444^2)+(R437^2)+(R430^2)+(R423^2))","v":43.335897360040903},{"$f":"S465+S458+S450+S444+S437+S430+S423","v":24},{"$f":"SQRT((T465^2)+(T458^2)+(T450^2)+(T444^2)+(T437^2)+(T430^2)+(T423^2))","v":45.099889135118723},{"$f":"U465+U458+U450+U444+U437+U430+U423","v":500},{"$f":"SQRT((V465^2)+(V458^2)+(V450^2)+(V444^2)+(V437^2)+(V430^2)+(V423^2))","v":168.88161534045085},{"$f":"W465+W458+W450+W444+W437+W430+W423","v":46},{"$f":"SQRT((X465^2)+(X458^2)+(X450^2)+(X444^2)+(X437^2)+(X430^2)+(X423^2))","v":58.283788483591216},{"$f":"Y465+Y458+Y450+Y444+Y437+Y430+Y423","v":34},{"$f":"SQRT((Z465^2)+(Z458^2)+(Z450^2)+(Z444^2)+(Z437^2)+(Z430^2)+(Z423^2))","v":39.761790704142086},{"$f":"AA465+AA458+AA450+AA444+AA437+AA430+AA423","v":246},{"$f":"SQRT((AB465^2)+(AB458^2)+(AB450^2)+(AB444^2)+(AB437^2)+(AB430^2)+(AB423^2))","v":122.20883765096532},{"$f":"AC465+AC458+AC450+AC444+AC437+AC430+AC423","v":41},{"$f":"SQRT((AD465^2)+(AD458^2)+(AD450^2)+(AD444^2)+(AD437^2)+(AD430^2)+(AD423^2))","v":54.963624334645182},{"$f":"AE465+AE458+AE450+AE444+AE437+AE430+AE423","v":14},{"$f":"SQRT((AF465^2)+(AF458^2)+(AF450^2)+(AF444^2)+(AF437^2)+(AF430^2)+(AF423^2))","v":40.06245124802026}]
[null,"More than 30.0 percent",{"$f":"C466+C459+C452+C445+C438+C431+C424","v":11},{"$f":"SQRT((D466^2)+(D459^2)+(D452^2)+(D445^2)+(D438^2)+(D431^2)+(D424^2))","v":38.17066936798463},{"$f":"E466+E459+E452+E445+E438+E431+E424","v":245},{"$f":"SQRT((F466^2)+(F459^2)+(F452^2)+(F445^2)+(F438^2)+(F431^2)+(F424^2))","v":142.27438279606065},{"$f":"G466+G459+G452+G445+G438+G431+G424","v":1167},{"$f":"SQRT((H466^2)+(H459^2)+(H452^2)+(H445^2)+(H438^2)+(H431^2)+(H424^2))","v":236.96202227361243},{"$f":"I466+I459+I452+I445+I438+I431+I424","v":51},{"$f":"SQRT((J466^2)+(J459^2)+(J452^2)+(J445^2)+(J438^2)+(J431^2)+(J424^2))","v":45.858477951192405},{"$f":"K466+K459+K452+K445+K438+K431+K424","v":14},{"$f":"SQRT((L466^2)+(L459^2)+(L452^2)+(L445^2)+(L438^2)+(L431^2)+(L424^2))","v":39.357337308308857},{"$f":"M466+M459+M452+M445+M438+M431+M424","v":25},{"$f":"SQRT((N466^2)+(N459^2)+(N452^2)+(N445^2)+(N438^2)+(N431^2)+(N424^2))","v":37.161808352124091},{"$f":"O466+O459+O452+O445+O438+O431+O424","v":24},{"$f":"SQRT((P466^2)+(P459^2)+(P452^2)+(P445^2)+(P438^2)+(P431^2)+(P424^2))","v":47.979162143580623},{"$f":"Q466+Q459+Q452+Q445+Q438+Q431+Q424","v":6},{"$f":"SQRT((R466^2)+(R459^2)+(R452^2)+(R445^2)+(R438^2)+(R431^2)+(R424^2))","v":38.548670534792763},{"$f":"S466+S459+S452+S445+S438+S431+S424","v":43},{"$f":"SQRT((T466^2)+(T459^2)+(T452^2)+(T445^2)+(T438^2)+(T431^2)+(T424^2))","v":41.569219381653056},{"$f":"U466+U459+U452+U445+U438+U431+U424","v":398},{"$f":"SQRT((V466^2)+(V459^2)+(V452^2)+(V445^2)+(V438^2)+(V431^2)+(V424^2))","v":150.67846561469889},{"$f":"W466+W459+W452+W445+W438+W431+W424","v":7},{"$f":"SQRT((X466^2)+(X459^2)+(X452^2)+(X445^2)+(X438^2)+(X431^2)+(X424^2))","v":40.902322672435119},{"$f":"Y466+Y459+Y452+Y445+Y438+Y431+Y424","v":8},{"$f":"SQRT((Z466^2)+(Z459^2)+(Z452^2)+(Z445^2)+(Z438^2)+(Z431^2)+(Z424^2))","v":39.14077158156185},{"$f":"AA466+AA459+AA452+AA445+AA438+AA431+AA424","v":103},{"$f":"SQRT((AB466^2)+(AB459^2)+(AB452^2)+(AB445^2)+(AB438^2)+(AB431^2)+(AB424^2))","v":69.964276598847221},{"$f":"AC466+AC459+AC452+AC445+AC438+AC431+AC424","v":4},{"$f":"SQRT((AD466^2)+(AD459^2)+(AD452^2)+(AD445^2)+(AD438^2)+(AD431^2)+(AD424^2))","v":40.112342240263153},{"$f":"AE466+AE459+AE452+AE445+AE438+AE431+AE424","v":11},{"$f":"SQRT((AF466^2)+(AF459^2)+(AF452^2)+(AF445^2)+(AF438^2)+(AF431^2)+(AF424^2))","v":35.818989377144632}]
[null,"Less Than 35% of HH Income",{"$f":"C467+C460+C453+C446+C439+C432+C425","v":85},{"$f":"SQRT((D467^2)+(D460^2)+(D453^2)+(D446^2)+(D439^2)+(D432^2)+(D425^2))","v":65.061509358452483},{"$f":"E467+E460+E453+E446+E439+E432+E425","v":215},{"$f":"SQRT((F467^2)+(F460^2)+(F453^2)+(F446^2)+(F439^2)+(F432^2)+(F425^2))","v":143.70455803487931},{"$f":"G467+G460+G453+G446+G439+G432+G425","v":1523},{"$f":"SQRT((H467^2)+(H460^2)+(H453^2)+(H446^2)+(H439^2)+(H432^2)+(H425^2))","v":306.34784151353182},{"$f":"I467+I460+I453+I446+I439+I432+I425","v":96},{"$f":"SQRT((J467^2)+(J460^2)+(J453^2)+(J446^2)+(J439^2)+(J432^2)+(J425^2))","v":62.705661626363529},{"$f":"K467+K460+K453+K446+K439+K432+K425","v":48},{"$f":"SQRT((L467^2)+(L460^2)+(L453^2)+(L446^2)+(L439^2)+(L432^2)+(L425^2))","v":52.105661880452111},{"$f":"M467+M460+M453+M446+M439+M432+M425","v":42},{"$f":"SQRT((N467^2)+(N460^2)+(N453^2)+(N446^2)+(N439^2)+(N432^2)+(N425^2))","v":58.600341295934449},{"$f":"O467+O460+O453+O446+O439+O432+O425","v":78},{"$f":"SQRT((P467^2)+(P460^2)+(P453^2)+(P446^2)+(P439^2)+(P432^2)+(P425^2))","v":74.933303677336951},{"$f":"Q467+Q460+Q453+Q446+Q439+Q432+Q425","v":22},{"$f":"SQRT((R467^2)+(R460^2)+(R453^2)+(R446^2)+(R439^2)+(R432^2)+(R425^2))","v":60.024994793835674},{"$f":"S467+S460+S453+S446+S439+S432+S425","v":24},{"$f":"SQRT((T467^2)+(T460^2)+(T453^2)+(T446^2)+(T439^2)+(T432^2)+(T425^2))","v":58.283788483591216},{"$f":"U467+U460+U453+U446+U439+U432+U425","v":555},{"$f":"SQRT((V467^2)+(V460^2)+(V453^2)+(V446^2)+(V439^2)+(V432^2)+(V425^2))","v":202.61293147279619},{"$f":"W467+W460+W453+W446+W439+W432+W425","v":52},{"$f":"SQRT((X467^2)+(X460^2)+(X453^2)+(X446^2)+(X439^2)+(X432^2)+(X425^2))","v":72.780491891715045},{"$f":"Y467+Y460+Y453+Y446+Y439+Y432+Y425","v":26},{"$f":"SQRT((Z467^2)+(Z460^2)+(Z453^2)+(Z446^2)+(Z439^2)+(Z432^2)+(Z425^2))","v":55.686623169303417},{"$f":"AA467+AA460+AA453+AA446+AA439+AA432+AA425","v":279},{"$f":"SQRT((AB467^2)+(AB460^2)+(AB453^2)+(AB446^2)+(AB439^2)+(AB432^2)+(AB425^2))","v":143.91316826475608},{"$f":"AC467+AC460+AC453+AC446+AC439+AC432+AC425","v":42},{"$f":"SQRT((AD467^2)+(AD460^2)+(AD453^2)+(AD446^2)+(AD439^2)+(AD432^2)+(AD425^2))","v":65.513357416636794},{"$f":"AE467+AE460+AE453+AE446+AE439+AE432+AE425","v":18},{"$f":"SQRT((AF467^2)+(AF460^2)+(AF453^2)+(AF446^2)+(AF439^2)+(AF432^2)+(AF425^2))","v":55.542776307995261}]
[null,"35.0 percent or more",{"$f":"C468+C461+C454+C447+C440+C433+C426","v":11},{"$f":"SQRT((D468^2)+(D461^2)+(D454^2)+(D447^2)+(D440^2)+(D433^2)+(D426^2))","v":42.67317658670374},{"$f":"E468+E461+E454+E447+E440+E433+E426","v":182},{"$f":"SQRT((F468^2)+(F461^2)+(F454^2)+(F447^2)+(F440^2)+(F433^2)+(F426^2))","v":140.27473043994775},{"$f":"G468+G461+G454+G447+G440+G433+G426","v":996},{"$f":"SQRT((H468^2)+(H461^2)+(H454^2)+(H447^2)+(H440^2)+(H433^2)+(H426^2))","v":243.75602556654883},{"$f":"I468+I461+I454+I447+I440+I433+I426","v":8},{"$f":"SQRT((J468^2)+(J461^2)+(J454^2)+(J447^2)+(J440^2)+(J433^2)+(J426^2))","v":37.76241517699841},{"$f":"K468+K461+K454+K447+K440+K433+K426","v":6},{"$f":"SQRT((L468^2)+(L461^2)+(L454^2)+(L447^2)+(L440^2)+(L433^2)+(L426^2))","v":35.014282800023196},{"$f":"M468+M461+M454+M447+M440+M433+M426","v":11},{"$f":"SQRT((N468^2)+(N461^2)+(N454^2)+(N447^2)+(N440^2)+(N433^2)+(N426^2))","v":34.914180500192181},{"$f":"O468+O461+O454+O447+O440+O433+O426","v":24},{"$f":"SQRT((P468^2)+(P461^2)+(P454^2)+(P447^2)+(P440^2)+(P433^2)+(P426^2))","v":44.034077712607996},{"$f":"Q468+Q461+Q454+Q447+Q440+Q433+Q426","v":6},{"$f":"SQRT((R468^2)+(R461^2)+(R454^2)+(R447^2)+(R440^2)+(R433^2)+(R426^2))","v":32.908965343808667},{"$f":"S468+S461+S454+S447+S440+S433+S426","v":19},{"$f":"SQRT((T468^2)+(T461^2)+(T454^2)+(T447^2)+(T440^2)+(T433^2)+(T426^2))","v":37.920970451717082},{"$f":"U468+U461+U454+U447+U440+U433+U426","v":312},{"$f":"SQRT((V468^2)+(V461^2)+(V454^2)+(V447^2)+(V440^2)+(V433^2)+(V426^2))","v":144.40914098491135},{"$f":"W468+W461+W454+W447+W440+W433+W426","v":7},{"$f":"SQRT((X468^2)+(X461^2)+(X454^2)+(X447^2)+(X440^2)+(X433^2)+(X426^2))","v":48.270073544588683},{"$f":"Y468+Y461+Y454+Y447+Y440+Y433+Y426","v":8},{"$f":"SQRT((Z468^2)+(Z461^2)+(Z454^2)+(Z447^2)+(Z440^2)+(Z433^2)+(Z426^2))","v":34.190641994557517},{"$f":"AA468+AA461+AA454+AA447+AA440+AA433+AA426","v":78},{"$f":"SQRT((AB468^2)+(AB461^2)+(AB454^2)+(AB447^2)+(AB440^2)+(AB433^2)+(AB426^2))","v":70.092795635500224},{"$f":"AC468+AC461+AC454+AC447+AC440+AC433+AC426","v":0},{"$f":"SQRT((AD468^2)+(AD461^2)+(AD454^2)+(AD447^2)+(AD440^2)+(AD433^2)+(AD426^2))","v":36.4828726939094},{"$f":"AE468+AE461+AE454+AE447+AE440+AE433+AE426","v":7},{"$f":"SQRT((AF468^2)+(AF461^2)+(AF454^2)+(AF447^2)+(AF440^2)+(AF433^2)+(AF426^2))","v":31.559467676118999}]
[null,"50.0 percent or more",{"$f":"C469+C462+C455+C448+C441+C434+C427","v":0},{"$f":"SQRT((D469^2)+(D462^2)+(D455^2)+(D448^2)+(D441^2)+(D434^2)+(D427^2))","v":14.212670403551895},{"$f":"E469+E462+E455+E448+E441+E434+E427","v":0},{"$f":"SQRT((F469^2)+(F462^2)+(F455^2)+(F448^2)+(F441^2)+(F434^2)+(F427^2))","v":84.314885992925355},{"$f":"G469+G462+G455+G448+G441+G434+G427","v":0},{"$f":"SQRT((H469^2)+(H462^2)+(H455^2)+(H448^2)+(H441^2)+(H434^2)+(H427^2))","v":151.16216457830973},{"$f":"I469+I462+I455+I448+I441+I434+I427","v":0},{"$f":"SQRT((J469^2)+(J462^2)+(J455^2)+(J448^2)+(J441^2)+(J434^2)+(J427^2))","v":18.601075237738275},{"$f":"K469+K462+K455+K448+K441+K434+K427","v":0},{"$f":"SQRT((L469^2)+(L462^2)+(L455^2)+(L448^2)+(L441^2)+(L434^2)+(L427^2))","v":11.704699910719626},{"$f":"M469+M462+M455+M448+M441+M434+M427","v":0},{"$f":"SQRT((N469^2)+(N462^2)+(N455^2)+(N448^2)+(N441^2)+(N434^2)+(N427^2))","v":11.401754250991379},{"$f":"O469+O462+O455+O448+O441+O434+O427","v":0},{"$f":"SQRT((P469^2)+(P462^2)+(P455^2)+(P448^2)+(P441^2)+(P434^2)+(P427^2))","v":15.556349186104045},{"$f":"Q469+Q462+Q455+Q448+Q441+Q434+Q427","v":0},{"$f":"SQRT((R469^2)+(R462^2)+(R455^2)+(R448^2)+(R441^2)+(R434^2)+(R427^2))","v":15.556349186104045},{"$f":"S469+S462+S455+S448+S441+S434+S427","v":0},{"$f":"SQRT((T469^2)+(T462^2)+(T455^2)+(T448^2)+(T441^2)+(T434^2)+(T427^2))","v":19.416487838947599},{"$f":"U469+U462+U455+U448+U441+U434+U427","v":0},{"$f":"SQRT((V469^2)+(V462^2)+(V455^2)+(V448^2)+(V441^2)+(V434^2)+(V427^2))","v":42.154477816715982},{"$f":"W469+W462+W455+W448+W441+W434+W427","v":0},{"$f":"SQRT((X469^2)+(X462^2)+(X455^2)+(X448^2)+(X441^2)+(X434^2)+(X427^2))","v":14.866068747318506},{"$f":"Y469+Y462+Y455+Y448+Y441+Y434+Y427","v":0},{"$f":"SQRT((Z469^2)+(Z462^2)+(Z455^2)+(Z448^2)+(Z441^2)+(Z434^2)+(Z427^2))","v":15.556349186104045},{"$f":"AA469+AA462+AA455+AA448+AA441+AA434+AA427","v":0},{"$f":"SQRT((AB469^2)+(AB462^2)+(AB455^2)+(AB448^2)+(AB441^2)+(AB434^2)+(AB427^2))","v":53.263495942343098},{"$f":"AC469+AC462+AC455+AC448+AC441+AC434+AC427","v":0},{"$f":"SQRT((AD469^2)+(AD462^2)+(AD455^2)+(AD448^2)+(AD441^2)+(AD434^2)+(AD427^2))","v":15.556349186104045},{"$f":"AE469+AE462+AE455+AE448+AE441+AE434+AE427","v":0},{"$f":"SQRT((AF469^2)+(AF462^2)+(AF455^2)+(AF448^2)+(AF441^2)+(AF434^2)+(AF427^2))","v":6.4031242374328485}]
[null,"Not Computed",{"$f":"C469+C463+C456+C449+C442+C435+C428","v":0},{"$f":"SQRT((D469^2)+(D463^2)+(D456^2)+(D449^2)+(D442^2)+(D435^2)+(D428^2))","v":26.944387170614959},{"$f":"E469+E463+E456+E449+E442+E435+E428","v":73},{"$f":"SQRT((F469^2)+(F463^2)+(F456^2)+(F449^2)+(F442^2)+(F435^2)+(F428^2))","v":67.037303048377481},{"$f":"G469+G463+G456+G449+G442+G435+G428","v":64},{"$f":"SQRT((H469^2)+(H463^2)+(H456^2)+(H449^2)+(H442^2)+(H435^2)+(H428^2))","v":58.008620049092706},{"$f":"I469+I463+I456+I449+I442+I435+I428","v":9},{"$f":"SQRT((J469^2)+(J463^2)+(J456^2)+(J449^2)+(J442^2)+(J435^2)+(J428^2))","v":20.493901531919196},{"$f":"K469+K463+K456+K449+K442+K435+K428","v":6},{"$f":"SQRT((L469^2)+(L463^2)+(L456^2)+(L449^2)+(L442^2)+(L435^2)+(L428^2))","v":22.912878474779198},{"$f":"M469+M463+M456+M449+M442+M435+M428","v":5},{"$f":"SQRT((N469^2)+(N463^2)+(N456^2)+(N449^2)+(N442^2)+(N435^2)+(N428^2))","v":25.573423705088842},{"$f":"O469+O463+O456+O449+O442+O435+O428","v":0},{"$f":"SQRT((P469^2)+(P463^2)+(P456^2)+(P449^2)+(P442^2)+(P435^2)+(P428^2))","v":26.944387170614959},{"$f":"Q469+Q463+Q456+Q449+Q442+Q435+Q428","v":5},{"$f":"SQRT((R469^2)+(R463^2)+(R456^2)+(R449^2)+(R442^2)+(R435^2)+(R428^2))","v":26.19160170741759},{"$f":"S469+S463+S456+S449+S442+S435+S428","v":10},{"$f":"SQRT((T469^2)+(T463^2)+(T456^2)+(T449^2)+(T442^2)+(T435^2)+(T428^2))","v":20.976176963403031},{"$f":"U469+U463+U456+U449+U442+U435+U428","v":26},{"$f":"SQRT((V469^2)+(V463^2)+(V456^2)+(V449^2)+(V442^2)+(V435^2)+(V428^2))","v":42.708313008125245},{"$f":"W469+W463+W456+W449+W442+W435+W428","v":19},{"$f":"SQRT((X469^2)+(X463^2)+(X456^2)+(X449^2)+(X442^2)+(X435^2)+(X428^2))","v":27.820855486487112},{"$f":"Y469+Y463+Y456+Y449+Y442+Y435+Y428","v":0},{"$f":"SQRT((Z469^2)+(Z463^2)+(Z456^2)+(Z449^2)+(Z442^2)+(Z435^2)+(Z428^2))","v":26.944387170614959},{"$f":"AA469+AA463+AA456+AA449+AA442+AA435+AA428","v":39},{"$f":"SQRT((AB469^2)+(AB463^2)+(AB456^2)+(AB449^2)+(AB442^2)+(AB435^2)+(AB428^2))","v":55.722526863020128},{"$f":"AC469+AC463+AC456+AC449+AC442+AC435+AC428","v":8},{"$f":"SQRT((AD469^2)+(AD463^2)+(AD456^2)+(AD449^2)+(AD442^2)+(AD435^2)+(AD428^2))","v":26.944387170614959},{"$f":"AE469+AE463+AE456+AE449+AE442+AE435+AE428","v":12},{"$f":"SQRT((AF469^2)+(AF463^2)+(AF456^2)+(AF449^2)+(AF442^2)+(AF435^2)+(AF428^2))","v":21.748563170931547}]

{"sheet":"PlaceOfBirthAndPriorRes","index":62,"n_rows":57,"n_cols":16,"rows_kept":57,"cut":false,"hidden":true,"merged":[[40,11,40,13],[53,2,54,14],[4,3,4,5],[4,7,4,9],[40,3,40,5],[40,7,40,9],[4,11,4,13],[4,14,4,15],[40,14,40,15]]}
[]
[null,null,{"$f":"CntyDataLink!A50","v":"Grantham"}]
[null,null,"SOCIAL CHARACTERISTICS"]
[]
[null,null,"Place of Birth","2008-2012",null,null,null,"2013-2017",null,null,null,"2018-2022",null,null,"Statistically Significant Change "]
[null,null,"Universe: Total Population","Estimate","Margin of Error",null,null,"Estimate","Margin of Error",null,null,"Estimate","Margin of Error",null,"2012-2022","2017-2022"]
[null,null,"  Total:",{"$f":"CntyDataLinkPrior10YearEstimate!$B$136","v":13304},{"$f":"CntyDataLinkPrior10YearEstimate!$C$136","v":16},null,null,{"$f":"CntyDataLinkPrior5YearEstimates!$B$136","v":13028},{"$f":"CntyDataLinkPrior5YearEstimates!$C$136","v":23},null,null,{"$f":"CntyDataLink!$B$136","v":12955},{"$f":"CntyDataLink!$C$136","v":37}]
[null,null,"   United States Native",{"$f":"CntyDataLinkPrior10YearEstimate!$D$136","v":13061},{"$f":"CntyDataLinkPrior10YearEstimate!$E$136","v":99},{"$f":"D8/$D$7","v":0.98173481659651229},null,{"$f":"CntyDataLinkPrior5YearEstimates!$D$136","v":12776},{"$f":"CntyDataLinkPrior5YearEstimates!$E$136","v":120},{"$f":"H8/$H$7","v":0.98065704636168249},null,{"$f":"CntyDataLink!$D$136","v":12475},{"$f":"CntyDataLink!$E$136","v":165},{"$f":"L8/$L$7","v":0.96294866846777305},{"$f":"StatisticallySignificantCalcs!A26","v":"Y"},{"$f":"StatisticallySignificantCalcs!J26","v":"Y"}]
[null,null,"      New Hampshire Native",{"$f":"CntyDataLinkPrior10YearEstimate!$F$136","v":7509},{"$f":"CntyDataLinkPrior10YearEstimate!$G$136","v":440},{"$f":"D9/$D$7","v":0.56441671677690919},null,{"$f":"CntyDataLinkPrior5YearEstimates!$F$136","v":7440},{"$f":"CntyDataLinkPrior5YearEstimates!$G$136","v":525},{"$f":"H9/$H$7","v":0.57107767884556337},null,{"$f":"CntyDataLink!$F$136","v":7208},{"$f":"CntyDataLink!$G$136","v":595},{"$f":"L9/$L$7","v":0.55638749517560793},{"$f":"StatisticallySignificantCalcs!A27","v":"N"},{"$f":"StatisticallySignificantCalcs!J27","v":"N"}]
[null,null,"      Born in Different State",{"$f":"CntyDataLinkPrior10YearEstimate!$H$136","v":5498},{"$f":"CntyDataLinkPrior10YearEstimate!$I$136","v":441},0.41325917017438363,null,{"$f":"CntyDataLinkPrior5YearEstimates!$H$136","v":5265},{"$f":"CntyDataLinkPrior5YearEstimates!$I$136","v":554},0.40412956708627573,null,{"$f":"CntyDataLink!$H$136","v":5156},{"$f":"CntyDataLink!$I$136","v":554},0.39799305287533771,{"$f":"StatisticallySignificantCalcs!A28","v":"N"},{"$f":"StatisticallySignificantCalcs!J28","v":"N"}]
[null,null,"          Northeast",{"$f":"CntyDataLinkPrior10YearEstimate!$J$136","v":4472},{"$f":"CntyDataLinkPrior10YearEstimate!$K$136","v":433},0.33613950691521349,null,{"$f":"CntyDataLinkPrior5YearEstimates!$J$136","v":3988},{"$f":"CntyDataLinkPrior5YearEstimates!$K$136","v":505},0.30610991710162727,null,{"$f":"CntyDataLink!$J$136","v":4096},{"$f":"CntyDataLink!$K$136","v":573},0.31617136240833654,{"$f":"StatisticallySignificantCalcs!A29","v":"N"},{"$f":"StatisticallySignificantCalcs!J29","v":"N"}]
[null,null,"          Midwest",{"$f":"CntyDataLinkPrior10YearEstimate!$L$136","v":252},{"$f":"CntyDataLinkPrior10YearEstimate!$M$136","v":95},1.8941671677690921E-2,null,{"$f":"CntyDataLinkPrior5YearEstimates!$L$136","v":403},{"$f":"CntyDataLinkPrior5YearEstimates!$M$136","v":179},3.093337427080135E-2,null,{"$f":"CntyDataLink!$L$136","v":231},{"$f":"CntyDataLink!$M$136","v":109},1.7830953299884215E-2,{"$f":"StatisticallySignificantCalcs!A30","v":"N"},{"$f":"StatisticallySignificantCalcs!J30","v":"N"}]
[null,null,"          South",{"$f":"CntyDataLinkPrior10YearEstimate!$N$136","v":431},{"$f":"CntyDataLinkPrior10YearEstimate!$O$136","v":143},3.2396271797955505E-2,null,{"$f":"CntyDataLinkPrior5YearEstimates!$N$136","v":494},{"$f":"CntyDataLinkPrior5YearEstimates!$O$136","v":163},3.791832975130488E-2,null,{"$f":"CntyDataLink!$N$136","v":364},{"$f":"CntyDataLink!$O$136","v":141},2.8097259745272097E-2,{"$f":"StatisticallySignificantCalcs!A31","v":"N"},{"$f":"StatisticallySignificantCalcs!J31","v":"N"}]
[null,null,"          West",{"$f":"CntyDataLinkPrior10YearEstimate!$P$136","v":343},{"$f":"CntyDataLinkPrior10YearEstimate!$Q$136","v":133},2.5781719783523751E-2,null,{"$f":"CntyDataLinkPrior5YearEstimates!$P$136","v":380},{"$f":"CntyDataLinkPrior5YearEstimates!$Q$136","v":158},2.9167945962542217E-2,null,{"$f":"CntyDataLink!$P$136","v":465},{"$f":"CntyDataLink!$Q$136","v":208},3.5893477421844851E-2,{"$f":"StatisticallySignificantCalcs!A32","v":"N"},{"$f":"StatisticallySignificantCalcs!J32","v":"N"}]
[null,null,"      Native Born Outside US",{"$f":"CntyDataLinkPrior10YearEstimate!$R136","v":54},{"$f":"CntyDataLinkPrior10YearEstimate!$S$136","v":41},4.0589296452194831E-3,null,{"$f":"CntyDataLinkPrior5YearEstimates!$R136","v":71},{"$f":"CntyDataLinkPrior5YearEstimates!$S$136","v":66},5.4498004298434138E-3,null,{"$f":"CntyDataLink!$R136","v":111},{"$f":"CntyDataLink!$S$136","v":106},8.568120416827479E-3,{"$f":"StatisticallySignificantCalcs!A33","v":"N"},{"$f":"StatisticallySignificantCalcs!J33","v":"N"}]
[null,null,"   Foreign Born",{"$f":"CntyDataLinkPrior10YearEstimate!$Z136","v":243},{"$f":"CntyDataLinkPrior10YearEstimate!$AA$136","v":99},1.8265183403487671E-2,null,{"$f":"CntyDataLinkPrior5YearEstimates!$Z136","v":252},{"$f":"CntyDataLinkPrior5YearEstimates!$AA$136","v":115},1.9342953638317471E-2,null,{"$f":"CntyDataLink!$Z136","v":480},{"$f":"CntyDataLink!$AA$136","v":156},3.7051331532226936E-2,{"$f":"StatisticallySignificantCalcs!A34","v":"Y"},{"$f":"StatisticallySignificantCalcs!J34","v":"Y"}]
[null,null,"      Naturalized Citizen",{"$f":"CntyDataLinkPrior10YearEstimate!$AB136","v":166},{"$f":"CntyDataLinkPrior10YearEstimate!$AC$136","v":88},{"$f":"D17/$L$7","v":1.2813585488228483E-2},null,{"$f":"CntyDataLinkPrior5YearEstimates!$AB136","v":140},{"$f":"CntyDataLinkPrior5YearEstimates!$AC$136","v":88},1.0746085354620816E-2,null,{"$f":"CntyDataLink!$AB136","v":352},{"$f":"CntyDataLink!$AC$136","v":123},2.7170976456966422E-2,{"$f":"StatisticallySignificantCalcs!A35","v":"Y"},{"$f":"StatisticallySignificantCalcs!J35","v":"Y"}]
[null,null,"      Not a Citizen",{"$f":"CntyDataLinkPrior10YearEstimate!$AD$136","v":77},{"$f":"CntyDataLinkPrior10YearEstimate!$AE$136","v":56},{"$f":"D18/$L$7","v":5.9436510999614049E-3},null,{"$f":"CntyDataLinkPrior5YearEstimates!$AD$136","v":112},{"$f":"CntyDataLinkPrior5YearEstimates!$AE$136","v":71},8.5968682836966535E-3,null,{"$f":"CntyDataLink!$AD$136","v":128},{"$f":"CntyDataLink!$AE$136","v":101},9.880355075260517E-3,{"$f":"StatisticallySignificantCalcs!A36","v":"N"},{"$f":"StatisticallySignificantCalcs!J36","v":"N"}]
[null,null,null,{"$f":"\"Source: \"&D41&\", \"&H41&\" and \"&L41& \" American Community Survey Table B05002.\"","v":"Source: 2008-2012, 2013-2017 and 2018-2022 American Community Survey Table B05002."}]
[]
[]
[]
[]
[]
[]
[]
[]
[]
[]
[]
[]
[]
[]
[]
[]
[]
[]
[]
[]
[null,null,"Place of Residence Prior year for Population"]
[null,null,"Universe: Population",{"$f":"D5","v":"2008-2012"},null,null,null,{"$f":"H5","v":"2013-2017"},null,null,null,{"$f":"L5","v":"2018-2022"},null,null,"Statistically Significant Change "]
[null,null,null,"Estimate","Margin of Error",null,null,"Estimate","Margin of Error",null,null,"Estimate","Margin of Error",null,{"$f":"O6","v":"2012-2022"},{"$f":"P6","v":"2017-2022"}]
[null,null,"  Total:",{"$f":"CntyDataLinkPrior10YearEstimate!$AF$136","v":13173},{"$f":"CntyDataLinkPrior10YearEstimate!$AG$136","v":78},null,null,{"$f":"CntyDataLinkPrior5YearEstimates!$AF$136","v":10983},{"$f":"CntyDataLinkPrior5YearEstimates!$AG$136","v":515},null,null,{"$f":"CntyDataLink!$AF$136","v":12832},{"$f":"CntyDataLink!$AG$136","v":72},null,{"$f":"StatisticallySignificantCalcs!$A37","v":"Y"},{"$f":"StatisticallySignificantCalcs!$J37","v":"Y"}]
["Same House",null,"    Same House ",{"$f":"CntyDataLinkPrior10YearEstimate!$AH$136","v":10816},{"$f":"CntyDataLinkPrior10YearEstimate!$AI$136","v":612},{"$f":"IF($D$44=\"-\",\"-\",VALUE(D44/$D$43))","v":0.82107340772792836},null,{"$f":"CntyDataLinkPrior5YearEstimates!$AH$136","v":1967},{"$f":"CntyDataLinkPrior5YearEstimates!$AI$136","v":478.95511271934453},{"$f":"IF($H$44=\"-\",\"-\",VALUE($H$44/$H$43))","v":0.17909496494582536},null,{"$f":"CntyDataLink!$AH$136","v":11177},{"$f":"CntyDataLink!$AI$136","v":585},{"$f":"IF($L$44=\"-\",\"-\",VALUE($L$44/$L$43))","v":0.87102556109725682},{"$f":"StatisticallySignificantCalcs!$A38","v":"Y"},{"$f":"StatisticallySignificantCalcs!$J38","v":"Y"}]
["Different House",null,"    Different House 1  ",{"$f":"CntyDataLinkPrior10YearEstimate!$AJ$136","v":2357},{"$f":"CntyDataLinkPrior10YearEstimate!$AK$136","v":597.16245695790349},{"$f":"IF($D$45=\"-\",\"-\",VALUE(D45/$D$43))","v":0.17892659227207167},null,{"$f":"CntyDataLinkPrior5YearEstimates!$AJ$136","v":1545},{"$f":"CntyDataLinkPrior5YearEstimates!$AK$136","v":442.32680226276136},{"$f":"IF($H$45=\"-\",\"-\",VALUE($H$45/$H$43))","v":0.14067194755531276},null,{"$f":"CntyDataLink!$AJ$136","v":1655},{"$f":"CntyDataLink!$AK$136","v":585.33323842064533},{"$f":"IF($L$45=\"-\",\"-\",VALUE($L$45/$L$43))","v":0.12897443890274315},{"$f":"StatisticallySignificantCalcs!$A39","v":"Y"},{"$f":"StatisticallySignificantCalcs!$J39","v":"N"}]
[null,null,"      in New Hampshire",{"$f":"CntyDataLinkPrior10YearEstimate!$AL$136","v":2090},{"$f":"CntyDataLinkPrior10YearEstimate!$AM$136","v":570.20171869260446},{"$f":"IF($D$46=\"-\",\"-\",VALUE(D46/$D$43))","v":0.15865786077582936},null,{"$f":"CntyDataLinkPrior5YearEstimates!$AL$136","v":1279},{"$f":"CntyDataLinkPrior5YearEstimates!$AM$136","v":398},{"$f":"IF($H$46=\"-\",\"-\",VALUE($H$46/$H$43))","v":0.1164526996266958},null,{"$f":"CntyDataLink!$AL$136","v":1481},{"$f":"CntyDataLink!$AM$136","v":571.94842424820092},{"$f":"IF($L$46=\"-\",\"-\",VALUE($L$46/$L$43))","v":0.11541458852867831},{"$f":"StatisticallySignificantCalcs!$A40","v":"Y"},{"$f":"StatisticallySignificantCalcs!$J40","v":"N"}]
[null,null,"          Same county",{"$f":"CntyDataLinkPrior10YearEstimate!$AN$136","v":1432},{"$f":"CntyDataLinkPrior10YearEstimate!$AO$136","v":341},{"$f":"IF($D$47=\"-\",\"-\",VALUE(D47/$D$43))","v":0.10870720412965915},null,{"$f":"CntyDataLinkPrior5YearEstimates!$AN$136","v":266},{"$f":"CntyDataLinkPrior5YearEstimates!$AO$136","v":193},{"$f":"IF($H$47=\"-\",\"-\",VALUE($H$47/$H$43))","v":2.4219247928616953E-2},null,{"$f":"CntyDataLink!$AN$136","v":1044},{"$f":"CntyDataLink!$AO$136","v":490},{"$f":"IF($L$47=\"-\",\"-\",VALUE($L$47/$L$43))","v":8.1359102244389025E-2},{"$f":"StatisticallySignificantCalcs!$A41","v":"Y"},{"$f":"StatisticallySignificantCalcs!$J41","v":"N"}]
[null,null,"          Different county",{"$f":"CntyDataLinkPrior10YearEstimate!$AP$136","v":658},{"$f":"CntyDataLinkPrior10YearEstimate!$AQ$136","v":457},{"$f":"IF($D$48=\"-\",\"-\",VALUE(D48/$D$43))","v":4.9950656646170197E-2},null,{"$f":"CntyDataLinkPrior5YearEstimates!$AP$136","v":411},{"$f":"CntyDataLinkPrior5YearEstimates!$AQ$136","v":183},{"$f":"IF($H$48=\"-\",\"-\",VALUE($H$48/$H$43))","v":3.7421469543840478E-2},null,{"$f":"CntyDataLink!$AP$136","v":437},{"$f":"CntyDataLink!$AQ$136","v":295},{"$f":"IF($L$48=\"-\",\"-\",VALUE($L$48/$L$43))","v":3.4055486284289276E-2},{"$f":"StatisticallySignificantCalcs!$A42","v":"N"},{"$f":"StatisticallySignificantCalcs!$J42","v":"N"}]
["Different State",null,"      in Different state",{"$f":"CntyDataLinkPrior10YearEstimate!$AR$136","v":259},{"$f":"CntyDataLinkPrior10YearEstimate!$AS$136","v":177},{"$f":"IF($D$49=\"-\",\"-\",VALUE(D49/$D$43))","v":1.9661428679875501E-2},null,{"$f":"CntyDataLinkPrior5YearEstimates!$AR$136","v":11},{"$f":"CntyDataLinkPrior5YearEstimates!$AS$136","v":16},{"$f":"IF($H$49=\"-\",\"-\",VALUE($H$49/$H$43))","v":1.0015478466721297E-3},null,{"$f":"CntyDataLink!$AR$136","v":174},{"$f":"CntyDataLink!$AS$136","v":123},{"$f":"IF($L$49=\"-\",\"-\",VALUE($L$49/$L$43))","v":1.3559850374064838E-2},{"$f":"StatisticallySignificantCalcs!$A43","v":"Y"},{"$f":"StatisticallySignificantCalcs!$J43","v":"N"}]
["Eleswhere",null,"       Elsewhere",{"$f":"CntyDataLinkPrior10YearEstimate!$AT$136","v":8},{"$f":"CntyDataLinkPrior10YearEstimate!$AU$136","v":12},{"$f":"IF($D$50=\"-\",\"-\",VALUE(D50/$D$43))","v":6.0730281636681095E-4},null,{"$f":"CntyDataLinkPrior5YearEstimates!$AT$136","v":0},{"$f":"CntyDataLinkPrior5YearEstimates!$AU$136","v":0},{"$f":"IF($H$50=\"-\",\"-\",VALUE($H$50/$H$43))","v":0},null,{"$f":"CntyDataLink!$AT$136","v":0},{"$f":"CntyDataLink!$AU$136","v":0},{"$f":"IF($L$50=\"-\",\"-\",VALUE($L$50/$L$43))","v":0},{"$f":"StatisticallySignificantCalcs!$A44","v":"N"},{"$f":"StatisticallySignificantCalcs!$J44","v":"N"}]
[]
[null,null,"Data from the American Community Survey are estimates"]
[]
[null,null,"1   The number for Different House was calculated by adding In New Hampshire, In Different State, and Elsewhere totals. The number is not located in the source Table B07003."]
[]
[]
[null,null,{"$f":"\"Source: \"&D41&\", \"&H41&\" and \"&L41& \" American Community Survey Table B07003.\"","v":"Source: 2008-2012, 2013-2017 and 2018-2022 American Community Survey Table B07003."}]

{"sheet":"ACS_Table_B05002","index":63,"n_rows":84,"n_cols":32,"rows_kept":84,"cut":false,"hidden":true,"merged":[]}
[null,"B05002. PLACE OF BIRTH BY CITIZENSHIP STATUS"]
[null,"Universe: TOTAL POPULATION"]
[null,"Data Set: 2018-2022 American Community Survey 5-Year Estimates"]
[]
[null,null,"Acworth",null,"Charlestown",null,"Claremont",null,"Cornish",null,"Croydon",null,"Goshen",null,"Grantham",null,"Langdon",null,"Lempster",null,"Newport",null,"Plainfield",null,"Springfield",null,"Sunapee",null,"Unity",null,"Washington"]
[null,null,"Estimate","Margin Of Error","Estimate","Margin Of Error","Estimate","Margin Of Error","Estimate","Margin Of Error","Estimate","Margin Of Error","Estimate","Margin Of Error","Estimate","Margin Of Error","Estimate","Margin Of Error","Estimate","Margin Of Error","Estimate","Margin Of Error","Estimate","Margin Of Error","Estimate","Margin Of Error","Estimate","Margin Of Error","Estimate","Margin Of Error","Estimate","Margin Of Error"]
[null,"Total:",927,278,4855,16,13018,24,1914,235,796,166,1077,316,3394,23,717,196,957,200,6347,17,2478,16,939,398,3377,18,1518,200,1042,173]
[null,"Native:",893,275,4742,106,12573,129,1848,233,777,161,1062,316,3335,68,713,195,946,200,6260,75,2361,74,922,398,3308,60,1475,196,994,169]
[null,"Born in state of residence",518,253,2380,362,7800,506,836,156,548,137,423,135,1719,343,279,125,414,126,4569,343,1066,170,487,246,1848,279,720,152,356,94]
[null,"Born in other state in the United States:",375,107,2346,357,4626,495,972,193,226,76,637,241,1616,333,434,132,529,123,1664,338,1281,167,432,185,1440,278,742,110,631,138]
[null,"Northeast",341,102,1964,296,3688,473,769,189,190,72,535,234,1133,324,375,114,438,116,880,218,980,170,375,178,1057,223,596,97,523,114]
[null,"Midwest",14,12,112,102,207,110,81,36,8,7,48,54,208,124,10,8,9,11,283,135,99,35,10,13,126,84,39,20,20,14]
[null,"South",12,11,194,128,375,210,87,33,10,12,10,8,148,98,46,30,38,23,397,203,151,61,37,30,97,62,64,37,69,59]
[null,"West",8,10,76,92,356,172,35,22,18,13,44,40,127,130,3,4,44,35,104,100,51,24,10,16,160,86,43,30,19,22]
[null,"Born outside the United States:",0,12,16,26,147,132,40,29,3,5,2,3,0,12,0,12,3,4,27,32,14,23,3,5,20,19,13,18,7,7]
[null,"Puerto Rico",0,12,0,12,0,19,0,12,0,12,0,12,0,12,0,12,0,12,0,17,0,12,0,12,0,12,13,18,0,12]
[null,"U.S. Island Areas",0,12,0,12,0,19,0,12,0,12,0,12,0,12,0,12,0,12,0,17,0,12,0,12,0,12,0,12,0,12]
[null,"Born abroad of American parent(s)",0,12,16,26,147,132,40,29,3,5,2,3,0,12,0,12,3,4,27,32,14,23,3,5,20,19,0,12,7,7]
[null,"Foreign born:",34,32,113,107,445,129,66,32,19,22,15,13,59,65,4,6,11,10,87,74,117,71,17,16,69,56,43,32,48,24]
[null,"Naturalized U.S. citizen",5,10,98,114,412,134,58,32,10,11,15,13,16,23,1,3,2,3,71,72,99,63,0,12,49,49,33,26,45,25]
[null,"Europe",0,12,0,12,33,41,13,9,2,4,6,6,16,23,0,12,2,3,71,72,31,31,0,12,17,24,32,25,35,23]
[null,"Asia",5,10,98,114,117,107,31,29,0,12,0,12,0,12,0,12,0,12,0,17,53,55,0,12,27,42,1,2,0,12]
[null,"Africa",0,12,0,12,144,141,0,12,0,12,0,12,0,12,1,3,0,12,0,17,0,12,0,12,0,12,0,12,0,12]
[null,"Oceania",0,12,0,12,0,19,0,12,0,12,0,12,0,12,0,12,0,12,0,17,0,12,0,12,0,12,0,12,0,12]
[null,"Latin America",0,12,0,12,92,116,0,12,0,12,0,12,0,12,0,12,0,12,0,17,11,17,0,12,5,9,0,12,0,12]
[null,"Northern America",0,12,0,12,26,30,14,16,8,9,9,12,0,12,0,12,0,12,0,17,4,6,0,12,0,12,0,12,10,8]
[null,"Not a U.S. citizen",29,31,15,23,33,48,8,8,9,13,0,12,43,60,3,5,9,10,16,21,18,17,17,16,20,32,10,19,3,3]
[null,"Europe",12,13,0,12,0,19,8,8,9,13,0,12,43,60,1,4,2,4,0,17,11,12,17,16,0,12,0,12,1,3]
[null,"Asia",17,28,0,12,33,48,0,12,0,12,0,12,0,12,0,12,0,12,0,17,7,11,0,12,0,12,0,12,0,12]
[null,"Africa",0,12,0,12,0,19,0,12,0,12,0,12,0,12,0,12,7,10,7,16,0,12,0,12,0,12,0,12,0,12]
[null,"Oceania",0,12,0,12,0,19,0,12,0,12,0,12,0,12,0,12,0,12,9,15,0,12,0,12,0,12,0,12,0,12]
[null,"Latin America",0,12,1,3,0,19,0,12,0,12,0,12,0,12,0,12,0,12,0,17,0,12,0,12,0,12,10,19,0,12]
[null,"Northern America",0,12,14,23,0,19,0,12,0,12,0,12,0,12,2,3,0,12,0,17,0,12,0,12,20,32,0,12,2,3]
[]
[]
[]
[]
[]
[]
[null,"B05002. PLACE OF BIRTH BY CITIZENSHIP STATUS"]
[null,"Universe: TOTAL POPULATION"]
[null,"Data Set: 2013-2017 American Community Survey 5-Year Estimates"]
[]
[null,null,"Acworth",null,"Charlestown",null,"Claremont",null,"Cornish",null,"Croydon",null,"Goshen",null,"Grantham",null,"Langdon",null,"Lempster",null,"Newport",null,"Plainfield",null,"Springfield",null,"Sunapee",null,"Unity",null,"Washington"]
[null,null,"Estimate","Margin Of Error","Estimate","Margin Of Error","Estimate","Margin Of Error","Estimate","Margin Of Error","Estimate","Margin Of Error","Estimate","Margin Of Error","Estimate","Margin Of Error","Estimate","Margin Of Error","Estimate","Margin Of Error","Estimate","Margin Of Error","Estimate","Margin Of Error","Estimate","Margin Of Error","Estimate","Margin Of Error","Estimate","Margin Of Error","Estimate","Margin Of Error"]
[null,"Total:",1031,143,5008,21,13028,23,1777,205,809,193,732,141,2941,35,887,143,858,129,6385,18,2439,249,1011,183,3404,16,1498,193,1265,206]
[null,"Native:",976,137,4952,70,12776,120,1750,207,798,194,710,136,2838,107,836,134,831,130,6323,50,2304,240,992,180,3309,83,1483,195,1196,201]
[null,"Born in state of residence",381,86,2401,305,7440,525,822,166,586,158,438,108,1025,230,296,100,384,89,3951,439,1233,240,506,125,1500,184,837,144,498,159]
[null,"Born in other state in the United States:",591,88,2532,290,5265,554,900,118,211,64,265,56,1750,221,536,82,447,102,2281,436,1042,137,473,110,1801,185,633,103,698,127]
[null,"Northeast",494,77,2079,329,3988,505,618,91,171,59,226,51,1168,263,419,69,361,91,1632,348,815,115,376,86,1361,166,509,84,586,119]
[null,"Midwest",33,16,196,165,403,179,88,37,13,13,6,6,226,136,35,17,34,30,100,63,75,39,54,39,188,76,44,25,23,19]
[null,"South",41,26,161,125,494,163,124,55,14,15,27,18,139,98,63,31,31,25,220,192,100,46,26,26,148,94,55,34,68,48]
[null,"West",23,17,96,70,380,158,70,36,13,13,6,4,217,106,19,16,21,21,329,203,52,24,17,19,104,58,25,19,21,21]
[null,"Born outside the United States:",4,6,19,31,71,66,28,22,1,3,7,6,63,68,4,6,0,11,91,71,29,30,13,18,8,12,13,15,0,11]
[null,"Puerto Rico",0,11,0,16,1,4,0,11,0,11,0,11,0,11,0,11,0,11,0,16,0,11,0,11,0,11,0,11,0,11]
[null,"U.S. Island Areas",0,11,0,16,0,18,0,11,0,11,0,11,0,11,0,11,0,11,0,16,0,11,0,11,0,11,0,11,0,11]
[null,"Born abroad of American parent(s)",4,6,19,31,70,66,28,22,1,3,7,6,63,68,4,6,0,11,91,71,29,30,13,18,8,12,13,15,0,11]
[null,"Foreign born:",55,36,56,66,252,115,27,18,11,8,22,18,103,96,51,31,27,33,62,48,135,60,19,24,95,82,15,11,69,45]
[null,"Naturalized U.S. citizen",43,35,56,66,140,88,18,14,6,7,19,17,103,96,36,28,23,34,38,39,110,56,5,6,18,33,11,10,66,45]
[null,"Not a U.S. citizen",12,11,0,16,112,71,9,9,5,7,3,4,0,11,15,14,4,5,24,29,25,19,14,23,77,72,4,5,3,4]
[]
[]
[]
[null,"B05002. PLACE OF BIRTH BY CITIZENSHIP STATUS"]
[null,"Universe: TOTAL POPULATION"]
[null,"Data Set: 2008-2012 American Community Survey 5-Year Estimates"]
[]
[null,null,"Acworth",null,"Charlestown",null,"Claremont",null,"Cornish",null,"Croydon",null,"Goshen",null,"Grantham",null,"Langdon",null,"Lempster",null,"Newport",null,"Plainfield",null,"Springfield",null,"Sunapee",null,"Unity",null,"Washington"]
[null,null,"Estimate","Margin Of Error","Estimate","Margin Of Error","Estimate","Margin Of Error","Estimate","Margin Of Error","Estimate","Margin Of Error","Estimate","Margin Of Error","Estimate","Margin Of Error","Estimate","Margin Of Error","Estimate","Margin Of Error","Estimate","Margin Of Error","Estimate","Margin Of Error","Estimate","Margin Of Error","Estimate","Margin Of Error","Estimate","Margin Of Error","Estimate","Margin Of Error"]
[null,"Total:",746,184,5081,16,13304,16,1665,226,615,113,767,114,2936,33,776,133,1212,178,6498,22,2570,212,1354,195,3349,23,1590,160,1071,171]
[null,"Native:",728,180,4973,66,13061,99,1642,224,603,111,746,114,2807,67,717,123,1183,176,6251,114,2501,212,1299,193,3250,63,1573,156,1042,173]
[null,"Born in state of residence",359,145,2310,278,7509,440,793,142,360,88,321,96,1031,177,287,104,659,136,3624,352,1268,171,693,166,1373,196,790,117,420,109]
[null,"Born in other state in the United States:",369,91,2658,272,5498,441,813,152,243,51,407,88,1776,190,430,73,524,82,2584,358,1218,163,575,92,1826,190,765,99,622,105]
[null,"Northeast",316,86,2195,284,4472,433,602,108,207,49,328,76,1220,165,325,53,408,73,1940,291,893,129,397,85,1237,196,657,92,535,103]
[null,"Midwest",27,22,190,127,252,95,32,18,20,15,23,14,236,89,28,15,52,35,88,55,173,70,103,61,197,100,34,24,12,13]
[null,"South",13,9,131,88,431,143,81,43,16,12,20,14,211,89,56,30,32,19,260,173,96,55,31,21,198,96,21,12,41,22]
[null,"West",13,13,142,82,343,133,98,99,0,11,36,41,109,50,21,17,32,22,296,188,56,41,44,22,194,81,53,28,34,24]
[null,"Born outside the United States:",0,11,5,14,54,41,36,27,0,11,18,12,0,11,0,11,0,11,43,39,15,15,31,20,51,43,18,15,0,11]
[null,"Puerto Rico",0,11,0,16,0,18,0,11,0,11,0,11,0,11,0,11,0,11,0,16,0,11,0,11,0,11,8,15,0,11]
[null,"U.S. Island Areas",0,11,0,16,0,18,0,11,0,11,0,11,0,11,0,11,0,11,14,21,0,11,4,7,0,11,0,11,0,11]
[null,"Born abroad of American parent(s)",0,11,5,14,54,41,36,27,0,11,18,12,0,11,0,11,0,11,29,33,15,15,27,19,51,43,10,13,0,11]
[null,"Foreign born:",18,17,108,66,243,99,23,17,12,11,21,18,129,61,59,55,29,19,247,115,69,41,55,42,99,60,17,14,29,18]
[null,"Naturalized U.S. citizen",6,8,35,36,166,88,6,7,4,6,21,18,97,55,54,55,9,8,167,97,21,15,36,28,66,49,12,9,22,14]
[null,"Not a U.S. citizen",12,14,73,53,77,56,17,16,8,10,0,11,32,26,5,7,20,15,80,66,48,38,19,27,33,31,5,10,7,7]

{"sheet":"ACS_Table_B07003","index":64,"n_rows":89,"n_cols":32,"rows_kept":89,"cut":false,"hidden":true,"merged":[]}
[null,"B07003. GEOGRAPHICAL MOBILITY IN THE PAST YEAR BY SEX FOR CURRENT RESIDENCE IN THE UNITED STATES - Universe:  POPULATION 1 YEAR AND OVER IN THE UNITED STATES"]
[null,"Data Set: 2018-2022 American Community Survey 5-Year Estimates"]
[]
[]
[null,null,"Acworth",null,"Charlestown",null,"Claremont",null,"Cornish",null,"Croydon",null,"Goshen",null,"Grantham",null,"Langdon",null,"Lempster",null,"Newport",null,"Plainfield",null,"Springfield",null,"Sunapee",null,"Unity",null,"Washington"]
[null,null,"Estimate","Margin Of Error","Estimate","Margin Of Error","Estimate","Margin Of Error","Estimate","Margin Of Error","Estimate","Margin Of Error","Estimate","Margin Of Error","Estimate","Margin Of Error","Estimate","Margin Of Error","Estimate","Margin Of Error","Estimate","Margin Of Error","Estimate","Margin Of Error","Estimate","Margin Of Error","Estimate","Margin Of Error","Estimate","Margin Of Error","Estimate","Margin Of Error"]
[null,"Total:",921,276,4792,65,12879,95,1878,230,782,162,1077,316,3394,23,717,196,946,190,6331,24,2437,50,939,398,3366,25,1514,200,1042,173]
[null,"Male",439,104,2356,227,6508,277,942,143,424,91,457,134,1458,156,376,135,444,94,3373,234,1176,111,563,294,1987,168,706,104,500,99]
[null,"Female",482,195,2436,229,6371,299,936,153,358,85,620,228,1936,154,341,86,502,132,2958,233,1261,108,376,132,1379,165,808,130,542,117]
[null,"Same house 1 year ago:",868,259,4523,182,11251,536,1802,219,742,160,1006,311,3294,146,681,194,902,184,5709,327,2309,86,918,398,3131,146,1341,196,942,162]
[null,"Male",422,101,2266,242,5614,385,880,133,400,90,438,133,1387,172,363,134,410,93,2974,301,1119,116,556,294,1817,202,599,99,415,81]
[null,"Female",446,182,2257,255,5637,426,922,152,342,84,568,223,1907,168,318,84,492,129,2735,270,1190,109,362,131,1314,171,742,128,527,117]
[null,"Moved within same county:",46,69,201,180,1004,476,2,5,14,14,40,39,79,138,20,18,12,17,424,235,55,35,15,23,97,87,70,28,6,9]
[null,"Male",12,17,73,77,680,339,2,5,9,12,9,11,63,109,5,7,10,16,221,138,37,15,7,11,67,78,50,42,6,9]
[null,"Female",34,52,128,140,324,185,0,12,5,7,31,28,16,30,15,16,2,4,203,130,18,27,8,13,30,30,20,24,0,12]
[null,"Moved from different county within same state:",2,4,31,36,453,284,48,50,10,11,15,14,0,12,8,9,8,12,147,104,38,47,6,3,8,12,59,56,40,28]
[null,"Male",2,4,0,12,159,119,46,49,8,9,4,5,0,12,8,9,0,12,147,104,10,11,0,12,0,12,29,36,33,26]
[null,"Female",0,12,31,36,294,180,2,4,2,4,11,12,0,12,0,12,8,12,0,17,28,41,6,3,8,12,30,28,7,7]
[null,"Moved from different state:",5,6,37,44,171,111,26,28,14,23,16,13,21,33,8,7,24,19,31,36,35,29,0,12,130,94,28,20,54,39]
[null,"Male",3,5,17,29,55,49,14,16,7,11,6,7,8,12,0,12,24,19,31,36,10,11,0,12,103,82,18,14,46,39]
[null,"Female",2,3,20,33,116,80,12,14,7,13,10,11,13,22,8,7,0,12,0,17,25,22,0,12,27,26,10,9,8,6]
[null,"Moved from abroad:",0,12,0,12,0,19,0,12,2,4,0,12,0,12,0,12,0,12,20,33,0,12,0,12,0,12,16,20,0,12]
[null,"Male",0,12,0,12,0,19,0,12,0,12,0,12,0,12,0,12,0,12,0,17,0,12,0,12,0,12,10,19,0,12]
[null,"Female",0,12,0,12,0,19,0,12,2,4,0,12,0,12,0,12,0,12,20,33,0,12,0,12,0,12,6,7,0,12]
[]
[null,"Calculated B07003. GEOGRAPHICAL MOBILITY IN THE PAST YEAR BY SEX FOR CURRENT RESIDENCE IN THE UNITED STATES "]
[null,null,{"$f":"C5","v":"Acworth"},null,"Charlestown",null,"Claremont",null,"Cornish",null,{"$f":"K5","v":"Croydon"},null,{"$f":"M5","v":"Goshen"},null,{"$f":"O5","v":"Grantham"},null,{"$f":"Q5","v":"Langdon"},null,{"$f":"S5","v":"Lempster"},null,{"$f":"U5","v":"Newport"},null,{"$f":"W5","v":"Plainfield"},null,{"$f":"Y5","v":"Springfield"},null,{"$f":"AA5","v":"Sunapee"},null,{"$f":"AC5","v":"Unity"},null,{"$f":"AE5","v":"Washington"}]
[null,null,"Estimate","Margin Of Error","Estimate","Margin Of Error","Estimate","Margin Of Error","Estimate","Margin Of Error",{"$f":"K6","v":"Estimate"},"Margin Of Error","Estimate","Margin Of Error","Estimate","Margin Of Error","Estimate","Margin Of Error","Estimate","Margin Of Error","Estimate","Margin Of Error","Estimate","Margin Of Error","Estimate","Margin Of Error","Estimate","Margin Of Error","Estimate","Margin Of Error","Estimate","Margin Of Error"]
[]
[null,"  Total:",{"$f":"C7","v":921},{"$f":"D7","v":276},{"$f":"E7","v":4792},65,12879,95,1878,230,{"$f":"K7","v":782},162,1077,316,3394,23,717,196,946,190,6331,24,2437,50,939,398,3366,25,1514,200,1042,173]
[null,"    Same house ",{"$f":"C10","v":868},{"$f":"D10","v":259},{"$f":"E10","v":4523},182,11251,536,1802,219,{"$f":"K10","v":742},160,1006,311,3294,146,681,194,902,184,5709,327,2309,86,918,398,3131,146,1341,196,942,162]
[null,"    Different house 2",{"$f":"C13+C16+C19+C22","v":53},{"$f":"SQRT((D13^2)+(D16^2)+(D19^2)+(D22^2))","v":70.405965656327737},{"$f":"E13+E16+E19+E22","v":269},{"$f":"SQRT((F13^2)+(F16^2)+(F19^2)+(F22^2))","v":189.14544668059023},{"$f":"G13+G16+G19+G22","v":1628},{"$f":"SQRT((H13^2)+(H16^2)+(H19^2)+(H22^2))","v":565.60940586238485},{"$f":"I13+I16+I19+I22","v":76},{"$f":"SQRT((J13^2)+(J16^2)+(J19^2)+(J22^2))","v":58.762232769015846},{"$f":"K13+K16+K19+K22","v":40},{"$f":"SQRT((L13^2)+(L16^2)+(L19^2)+(L22^2))","v":29.359836511806396},{"$f":"M13+M16+M19+M22","v":71},{"$f":"SQRT((N13^2)+(N16^2)+(N19^2)+(N22^2))","v":45.055521304275238},{"$f":"O13+O16+O19+O22","v":100},{"$f":"SQRT((P13^2)+(P16^2)+(P19^2)+(P22^2))","v":142.90206436577463},{"$f":"Q13+Q16+Q19+Q22","v":36},{"$f":"SQRT((R13^2)+(R16^2)+(R19^2)+(R22^2))","v":24.454038521274967},{"$f":"S13+S16+S19+S22","v":44},{"$f":"SQRT((T13^2)+(T16^2)+(T19^2)+(T22^2))","v":30.62678566222711},{"$f":"U13+U16+U19+U22","v":622},{"$f":"SQRT((V13^2)+(V16^2)+(V19^2)+(V22^2))","v":261.58363863208263},{"$f":"W13+W16+W19+W22","v":128},{"$f":"SQRT((X13^2)+(X16^2)+(X19^2)+(X22^2))","v":66.475559418481012},{"$f":"Y13+Y16+Y19+Y22","v":21},{"$f":"SQRT((Z13^2)+(Z16^2)+(Z19^2)+(Z22^2))","v":28.740215726399828},{"$f":"AA13+AA16+AA19+AA22","v":235},{"$f":"SQRT((AB13^2)+(AB16^2)+(AB19^2)+(AB22^2))","v":129.20139318134306},{"$f":"AC13+AC16+AC19+AC22","v":173},{"$f":"SQRT((AD13^2)+(AD16^2)+(AD19^2)+(AD22^2))","v":68.702256149270667},{"$f":"AE13+AE16+AE19+AE22","v":100},{"$f":"SQRT((AF13^2)+(AF16^2)+(AF19^2)+(AF22^2))","v":50.299105359837164}]
[null,"      in New Hampshire",{"$f":"C16+C13","v":48},{"$f":"SQRT((D16^2)+(D13^2))","v":69.115844782509896},{"$f":"E16+E13","v":232},{"$f":"SQRT((F16^2)+(F13^2))","v":183.56470248934025},{"$f":"G16+G13","v":1457},{"$f":"SQRT((H16^2)+(H13^2))","v":554.28512518378125},{"$f":"I16+I13","v":50},{"$f":"SQRT((J16^2)+(J13^2))","v":50.24937810560445},{"$f":"K16+K13","v":24},{"$f":"SQRT((L16^2)+(L13^2))","v":17.804493814764857},{"$f":"M16+M13","v":55},{"$f":"SQRT((N16^2)+(N13^2))","v":41.43669871020132},{"$f":"O16+O13","v":79},{"$f":"SQRT((P16^2)+(P13^2))","v":138.52075656738234},{"$f":"Q16+Q13","v":28},{"$f":"SQRT((R16^2)+(R13^2))","v":20.124611797498108},{"$f":"S16+S13","v":20},{"$f":"SQRT((T16^2)+(T13^2))","v":20.808652046684813},{"$f":"U16+U13","v":571},{"$f":"SQRT((V16^2)+(V13^2))","v":256.98443532634423},{"$f":"W16+W13","v":93},{"$f":"SQRT((X16^2)+(X13^2))","v":58.600341295934449},{"$f":"Y16+Y13","v":21},{"$f":"SQRT((Z16^2)+(Z13^2))","v":23.194827009486403},{"$f":"AA16+AA13","v":105},{"$f":"SQRT((AB16^2)+(AB13^2))","v":87.823687009826685},{"$f":"AC16+AC13","v":129},{"$f":"SQRT((AD16^2)+(AD13^2))","v":62.609903369994115},{"$f":"AE16+AE13","v":46},{"$f":"SQRT((AF16^2)+(AF13^2))","v":29.410882339705484}]
[null,"          Same county",{"$f":"C13","v":46},{"$f":"D13","v":69},{"$f":"E13","v":201},180,1004,476,2,5,{"$f":"K13","v":14},14,40,39,79,138,20,18,12,17,424,235,55,35,15,23,97,87,70,28,6,9]
[null,"          Different county",{"$f":"C16","v":2},{"$f":"D16","v":4},{"$f":"E16","v":31},36,453,284,48,50,{"$f":"K16","v":10},11,15,14,0,12,8,9,8,12,147,104,38,47,6,3,8,12,59,56,40,28]
[null,"      in Different state",{"$f":"C19","v":5},{"$f":"D19","v":6},{"$f":"E19","v":37},44,171,111,26,28,{"$f":"K19","v":14},23,16,13,21,33,8,7,24,19,31,36,35,29,0,12,130,94,28,20,54,39]
[]
[]
[]
[]
[]
[]
[]
[]
[]
[]
[]
[]
[]
[]
[]
[]
[]
[]
[]
[]
[]
[]
[]
[null,"Calculated GEOGRAPHICAL MOBILITY IN THE PAST YEAR BY SEX FOR CURRENT RESIDENCE IN THE UNITED STATES"]
[null,"Universe:  POPULATION 1 YEAR AND OVER IN THE UNITED STATES"]
[null,"Data Set: 2013-2017 American Community Survey 5-Year Estimates"]
[null,null,"Acworth",null,"Charlestown",null,"Claremont",null,"Cornish",null,"Croydon",null,"Goshen",null,"Grantham",null,"Langdon",null,"Lempster",null,"Newport",null,"Plainfield",null,"Springfield",null,"Sunapee",null,"Unity",null,"Washington"]
[null,null,"Estimate","Margin Of Error","Estimate","Margin Of Error","Estimate","Margin Of Error","Estimate","Margin Of Error","Estimate","Margin Of Error","Estimate","Margin Of Error","Estimate","Margin Of Error","Estimate","Margin Of Error","Estimate","Margin Of Error","Estimate","Margin Of Error","Estimate","Margin Of Error","Estimate","Margin Of Error","Estimate","Margin Of Error","Estimate","Margin Of Error","Estimate","Margin Of Error"]
[null,"  Total:",1024,142,4938,74,12950,70,1766,205,803,192,720,134,2907,53,884,143,853,129,6370,28,2429,247,1009,183,3372,39,1484,188,1265,206]
[null,"    Same house ",986,137,3812,378,10983,515,1653,196,758,189,630,114,2616,197,855,143,761,126,5492,382,2245,251,968,176,3014,160,1317,169,1115,202]
[null,"    Different house 2",38,26.608269391300141,1126,443.75781683256014,1967,478.95511271934453,113,57.887822553625213,45,29.103264421710495,90,62.112800613078136,291,206.07765526616416,29,21.213203435596427,92,44.620623034646208,878,348.77069831050886,184,92.579695398073113,41,37.013511046643494,358,158.57490343683014,167,79.26537705707328,150,92.671462705624762]
[null,"      in New Hampshire",36,23.706539182259394,1108,442.76404551408643,1545,442.32680226276136,94,56.302753041036986,37,24.596747752497688,74,56.222771187482387,235,187.40864441108366,24,16.278820596099706,68,40.521599178709621,712,331.88702897220918,107,65,32,32.449961479175904,266,139.8177385026664,163,78.339006886735547,127,91.411159056211517]
[null,"          Same county",21,21,980,418,1279,398,73,53,37,22,72,56,88,81,10,12,68,39,545,282,83,60,11,18,122,90,135,76,23,16]
[null,"          Different county",15,11,128,146,266,193,21,19,0,11,2,5,147,169,14,11,0,11,167,175,24,25,21,27,144,107,28,19,104,90]
[null,"      in Different state",0,11,18,25,411,183,10,9,8,11,16,24,56,85,0,11,20,18,166,106,77,65,9,14,92,74,0,11,18,14]
[null,"       Elsewhere",2,5,0,16,11,16,9,10,0,11,0,11,0,11,5,8,4,5,0,16,0,11,0,11,0,11,4,5,5,6]
[]
[]
[]
[]
[null,"Calculated GEOGRAPHICAL MOBILITY IN THE PAST YEAR BY SEX FOR CURRENT RESIDENCE IN THE UNITED STATES"]
[null,"Universe:  POPULATION 1 YEAR AND OVER IN THE UNITED STATES"]
[null,"Data Set: 2008-2012 American Community Survey 5-Year Estimates"]
[null,null,"Acworth",null,"Charlestown",null,"Claremont",null,"Cornish",null,"Croydon",null,"Goshen",null,"Grantham",null,"Langdon",null,"Lempster",null,"Newport",null,"Plainfield",null,"Springfield",null,"Sunapee",null,"Unity",null,"Washington"]
[null,null,"Estimate","Margin Of Error","Estimate","Margin Of Error","Estimate","Margin Of Error","Estimate","Margin Of Error","Estimate","Margin Of Error","Estimate","Margin Of Error","Estimate","Margin Of Error","Estimate","Margin Of Error","Estimate","Margin Of Error","Estimate","Margin Of Error","Estimate","Margin Of Error","Estimate","Margin Of Error","Estimate","Margin Of Error","Estimate","Margin Of Error","Estimate","Margin Of Error"]
[null,"Total",722,170,5011,43,13173,78,1639,224,601,107,765,114,2897,51,776,133,1206,178,6438,70,2516,204,1334,189,3349,23,1583,160,1059,170]
[null,"    Same house ",633,154,4606,250,10816,612,1504,199,547,101,614,88,2575,126,721,130,1143,172,5364,345,2344,196,1139,195,3000,191,1425,145,904,125]
[null,"    Different house ",89,52.933921071464184,405,240.93775129688581,2357,597.16245695790349,135,86.982756911930551,54,36.249137920783717,151,75.624070242218522,322,137.1459077041674,55,37.403208418530092,63,63.906181234681831,1074,314.55047289743504,172,74.040529441651074,195,101.83319694480774,349,221.28262471328381,158,74.639131827748372,155,86.573668052127715]
[null,"      in New Hampshire",45,30.463092423455635,328,229.68238939892626,2090,570.20171869260446,110,85.796270315206598,40,31.575306807693888,132,73.498299300051841,85,65.115282384398824,46,34.014702703389901,53,61.98386886924694,980,304.65882557378836,77,47.010637094172637,142,94.403389769647575,219,178.05897899291685,114,65,133,82.734515167492219]
[null,"          Same county",34,28,307,227,1432,341,58,56,6,6,109,71,8,12,19,14,53,61,778,276,62,43,70,76,136,148,86,60,0,11]
[null,"          Different county",11,12,21,35,658,457,52,65,34,31,23,19,77,64,27,31,0,11,202,129,15,19,72,56,83,99,28,25,133,82]
[null,"      in Different state",41,43,77,71,259,177,21,13,14,14,19,14,197,112,9,11,10,11,86,77,56,46,34,27,125,131,44,35,22,23]
[null,"       Elsewhere",3,5,0,16,8,12,4,6,0,11,0,11,40,45,0,11,0,11,8,14,39,34,19,27,5,10,0,11,0,11]

{"sheet":"ACS_Table_B14001","index":65,"n_rows":98,"n_cols":32,"rows_kept":98,"cut":false,"hidden":true,"merged":[]}
[null,"B14001. SCHOOL ENROLLMENT BY LEVEL OF SCHOOL FOR THE POPULATION 3 YEARS AND OVER"]
[null,"Universe: POPULATION 3 YEARS AND OVER"]
[null,"Data Set: 2018-2022 American Community Survey 5-Year Estimates"]
[]
[null,null,"Acworth",null,"Charlestown",null,"Claremont",null,"Cornish",null,"Croydon",null,"Goshen",null,"Grantham",null,"Langdon",null,"Lempster",null,"Newport",null,"Plainfield",null,"Springfield",null,"Sunapee",null,"Unity",null,"Washington"]
[null,null,"Estimate","Margin Of Error","Estimate","Margin Of Error","Estimate","Margin Of Error","Estimate","Margin Of Error","Estimate","Margin Of Error","Estimate","Margin Of Error","Estimate","Margin Of Error","Estimate","Margin Of Error","Estimate","Margin Of Error","Estimate","Margin Of Error","Estimate","Margin Of Error","Estimate","Margin Of Error","Estimate","Margin Of Error","Estimate","Margin Of Error","Estimate","Margin Of Error"]
[null,"Total:",915,276,4757,77,12605,136,1855,228,759,158,1058,306,3394,23,687,179,919,187,6234,83,2329,76,931,398,3352,33,1514,200,1038,172]
[null,"Enrolled in school:",224,190,790,210,2487,294,239,75,131,64,242,130,995,182,150,93,227,98,702,218,587,145,119,80,547,127,213,90,133,65]
[null,"Enrolled in nursery school, preschool",9,11,46,58,130,102,31,21,3,5,20,26,72,69,20,16,15,16,77,56,76,62,11,15,45,40,0,12,6,7]
[null,"Enrolled in kindergarten",0,12,72,98,148,98,14,10,7,8,0,12,66,62,34,42,11,15,59,56,11,11,0,12,8,13,0,12,4,5]
[null,"Enrolled in grade 1 to grade 4",67,60,180,108,623,144,66,34,28,21,85,72,178,77,32,28,45,26,171,120,87,48,58,68,89,45,52,35,29,25]
[null,"Enrolled in grade 5 to grade 8",106,125,146,103,507,196,78,42,49,45,29,21,226,129,28,38,52,39,84,59,81,44,9,15,130,68,89,47,33,20]
[null,"Enrolled in grade 9 to grade 12",18,31,276,148,642,194,30,19,15,15,97,81,216,115,17,13,37,30,188,116,139,77,32,29,106,46,39,25,26,22]
[null,"Enrolled in college, undergraduate years",24,30,56,54,306,154,20,16,11,11,8,7,189,156,15,11,33,22,110,112,179,76,9,6,149,91,33,26,33,27]
[null,"Graduate or professional school",0,12,14,23,131,107,0,12,18,24,3,4,48,75,4,8,34,24,13,22,14,11,0,12,20,20,0,12,2,5]
[null,"Not enrolled in school",691,163,3967,235,10118,318,1616,225,628,136,816,222,2399,184,537,115,692,136,5532,223,1742,136,812,381,2805,129,1301,173,905,140]
[]
[]
[]
[null,"B14001. Calculated  SCHOOL ENROLLMENT BY LEVEL OF SCHOOL FOR THE POPULATION 3 YEARS AND OVER "]
[null,"Universe: POPULATION 3 YEARS AND OVER"]
[null,"Data Set: 2018-2022 American Community Survey 5-Year Estimates"]
[]
[null,null,"Acworth",null,"Charlestown",null,"Claremont",null,"Cornish",null,"Croydon",null,"Goshen",null,"Grantham",null,"Langdon",null,"Lempster",null,"Newport",null,"Plainfield",null,"Springfield",null,"Sunapee",null,"Unity",null,"Washington"]
[null,null,"Estimate","Margin Of Error","Estimate","Margin Of Error","Estimate","Margin Of Error","Estimate","Margin Of Error","Estimate","Margin Of Error","Estimate","Margin Of Error","Estimate","Margin Of Error","Estimate","Margin Of Error","Estimate","Margin Of Error","Estimate","Margin Of Error","Estimate","Margin Of Error","Estimate","Margin Of Error","Estimate","Margin Of Error","Estimate","Margin Of Error","Estimate","Margin Of Error"]
[null,"Total:",{"$f":"C7","v":915},{"$f":"D7","v":276},{"$f":"E7","v":4757},77,12605,136,1855,228,759,158,1058,306,3394,23,687,179,919,187,6234,83,2329,76,931,398,3352,33,{"$f":"AC7","v":1514},200,1038,172]
[null,"Enrolled in school:",{"$f":"C8","v":224},{"$f":"D8","v":190},{"$f":"E8","v":790},210,2487,294,239,75,131,64,242,130,995,182,150,93,227,98,702,218,587,145,119,80,547,127,213,90,133,65]
[null,"Enrolled in nursery school, preschool, and Kindergarten",{"$f":"C9+C10","v":9},{"$f":"SQRT((D9^2)+(D10^2))","v":16.278820596099706},{"$f":"E9+E10","v":118},{"$f":"SQRT((F9^2)+(F10^2))","v":113.87712676389407},{"$f":"G9+G10","v":278},{"$f":"SQRT((H9^2)+(H10^2))","v":141.44963768069539},{"$f":"I9+I10","v":45},{"$f":"SQRT((J9^2)+(J10^2))","v":23.259406699226016},{"$f":"K9+K10","v":10},{"$f":"SQRT((L9^2)+(L10^2))","v":9.4339811320566032},{"$f":"M9+M10","v":20},{"$f":"SQRT((N9^2)+(N10^2))","v":28.635642126552707},{"$f":"O9+O10","v":138},{"$f":"SQRT((P9^2)+(P10^2))","v":92.763139231054481},{"$f":"Q9+Q10","v":54},{"$f":"SQRT((R9^2)+(R10^2))","v":44.944410108488462},{"$f":"S9+S10","v":26},{"$f":"SQRT((T9^2)+(T10^2))","v":21.931712199461309},{"$f":"U9+U10","v":136},{"$f":"SQRT((V9^2)+(V10^2))","v":79.195959492893323},{"$f":"W9+W10","v":87},{"$f":"SQRT((X9^2)+(X10^2))","v":62.968245965724662},{"$f":"Y9+Y10","v":11},{"$f":"SQRT((Z9^2)+(Z10^2))","v":19.209372712298546},{"$f":"AA9+AA10","v":53},{"$f":"SQRT((AB9^2)+(AB10^2))","v":42.059481689626182},{"$f":"AC9+AC10","v":0},{"$f":"SQRT((AD9^2)+(AD10^2))","v":16.970562748477139},{"$f":"AE9+AE10","v":10},{"$f":"SQRT((AF9^2)+(AF10^2))","v":8.6023252670426267}]
[null,{"$f":"B9","v":"Enrolled in nursery school, preschool"},9,11,{"$f":"E9","v":46},58,130,102,31,21,3,5,20,26,72,69,20,16,15,16,77,56,76,62,11,15,45,40,{"$f":"AC9","v":0},12,6,7]
[null,"Enrolled in kindergarten",0,12,{"$f":"E10","v":72},98,148,98,14,10,7,8,0,12,66,62,34,42,11,15,59,56,11,11,0,12,8,13,0,12,4,5]
[null,"Enrolled in grade Elementary School (grade 1 to grade 8)",{"$f":"C11+C12","v":173},{"$f":"SQRT((D11^2)+(D12^2))","v":138.65424623862049},{"$f":"E11+E12","v":326},{"$f":"SQRT((F11^2)+(F12^2))","v":149.24141516348604},{"$f":"G11+G12","v":1130},{"$f":"SQRT((H11^2)+(H12^2))","v":243.21184181696418},{"$f":"I11+I12","v":144},{"$f":"SQRT((J11^2)+(J12^2))","v":54.037024344425184},{"$f":"K11+K12","v":77},{"$f":"SQRT((L11^2)+(L12^2))","v":49.658836071740545},{"$f":"M11+M12","v":114},{"$f":"SQRT((N11^2)+(N12^2))","v":75},{"$f":"O11+O12","v":404},{"$f":"SQRT((P11^2)+(P12^2))","v":150.23315213360866},{"$f":"Q11+Q12","v":60},{"$f":"SQRT((R11^2)+(R12^2))","v":47.201694884823787},{"$f":"S11+S12","v":97},{"$f":"SQRT((T11^2)+(T12^2))","v":46.872166581031863},{"$f":"U11+U12","v":255},{"$f":"SQRT((V11^2)+(V12^2))","v":133.71985641631537},{"$f":"W11+W12","v":168},{"$f":"SQRT((X11^2)+(X12^2))","v":65.115282384398824},{"$f":"Y11+Y12","v":67},{"$f":"SQRT((Z11^2)+(Z12^2))","v":69.634761434214738},{"$f":"AA11+AA12","v":219},{"$f":"SQRT((AB11^2)+(AB12^2))","v":81.541400527584756},{"$f":"AC11+AC12","v":141},{"$f":"SQRT((AD11^2)+(AD12^2))","v":58.600341295934449},{"$f":"AE11+AE12","v":62},{"$f":"SQRT((AF11^2)+(AF12^2))","v":32.015621187164243}]
[null,"Enrolled in grade 9 to grade 12",{"$f":"C13","v":18},{"$f":"D13","v":31},{"$f":"E13","v":276},148,642,194,30,19,15,15,97,81,216,115,17,13,37,30,188,116,139,77,32,29,106,46,{"$f":"AC13","v":39},{"$f":"AD13","v":25},{"$f":"AE13","v":26},{"$f":"AF13","v":22}]
[null,"Enrolled in Elementary and High School",{"$f":"C11+C12+C13","v":191},{"$f":"SQRT((D11^2)+(D12^2)+(D13^2))","v":142.07744367069671},{"$f":"E11+E12+E13","v":602},{"$f":"SQRT((F11^2)+(F12^2)+(F13^2))","v":210.18325337666653},{"$f":"G11+G12+G13","v":1772},{"$f":"SQRT((H11^2)+(H12^2)+(H13^2))","v":311.10769839398063},{"$f":"I11+I12+I13","v":174},{"$f":"SQRT((J11^2)+(J12^2)+(J13^2))","v":57.280013966478741},{"$f":"K11+K12+K13","v":92},{"$f":"SQRT((L11^2)+(L12^2)+(L13^2))","v":51.874849397371747},{"$f":"M11+M12+M13","v":211},{"$f":"SQRT((N11^2)+(N12^2)+(N13^2))","v":110.39021695784459},{"$f":"O11+O12+O13","v":620},{"$f":"SQRT((P11^2)+(P12^2)+(P13^2))","v":189.19566591230361},{"$f":"Q11+Q12+Q13","v":77},{"$f":"SQRT((R11^2)+(R12^2)+(R13^2))","v":48.959166659574592},{"$f":"S11+S12+S13","v":134},{"$f":"SQRT((T11^2)+(T12^2)+(T13^2))","v":55.65069631190611},{"$f":"U11+U12+U13","v":443},{"$f":"SQRT((V11^2)+(V12^2)+(V13^2))","v":177.02259742756007},{"$f":"W11+W12+W13","v":307},{"$f":"SQRT((X11^2)+(X12^2)+(X13^2))","v":100.84145972763385},{"$f":"Y11+Y12+Y13","v":99},{"$f":"SQRT((Z11^2)+(Z12^2)+(Z13^2))","v":75.432088662584434},{"$f":"AA11+AA12+AA13","v":325},{"$f":"SQRT((AB11^2)+(AB12^2)+(AB13^2))","v":93.621578709184348},{"$f":"AC11+AC12+AC13","v":180},{"$f":"SQRT((AD11^2)+(AD12^2)+(AD13^2))","v":63.710281744785902},{"$f":"AE11+AE12+AE13","v":88},{"$f":"SQRT((AF11^2)+(AF12^2)+(AF13^2))","v":38.845849199110063}]
[null,"Enrolled in College or Graduate School",{"$f":"C14+C15","v":24},{"$f":"SQRT((D14^2)+(D15^2))","v":32.310988842807021},{"$f":"E14+E15","v":70},{"$f":"SQRT((F14^2)+(F15^2))","v":58.694122363316758},{"$f":"G14+G15","v":437},{"$f":"SQRT((H14^2)+(H15^2))","v":187.52333188166213},{"$f":"I14+I15","v":20},{"$f":"SQRT((J14^2)+(J15^2))","v":20},{"$f":"K14+K15","v":29},{"$f":"SQRT((L14^2)+(L15^2))","v":26.40075756488817},{"$f":"M14+M15","v":11},{"$f":"SQRT((N14^2)+(N15^2))","v":8.0622577482985491},{"$f":"O14+O15","v":237},{"$f":"SQRT((P14^2)+(P15^2))","v":173.09246084101989},{"$f":"Q14+Q15","v":19},{"$f":"SQRT((R14^2)+(R15^2))","v":13.601470508735444},{"$f":"S14+S15","v":67},{"$f":"SQRT((T14^2)+(T15^2))","v":32.557641192199412},{"$f":"U14+U15","v":123},{"$f":"SQRT((V14^2)+(V15^2))","v":114.1402645870422},{"$f":"W14+W15","v":193},{"$f":"SQRT((X14^2)+(X15^2))","v":76.791926658991954},{"$f":"Y14+Y15","v":9},{"$f":"SQRT((Z14^2)+(Z15^2))","v":13.416407864998739},{"$f":"AA14+AA15","v":169},{"$f":"SQRT((AB14^2)+(AB15^2))","v":93.171884171138231},{"$f":"AC14+AC15","v":33},{"$f":"SQRT((AD14^2)+(AD15^2))","v":28.635642126552707},{"$f":"AE14+AE15","v":35},{"$f":"SQRT((AF14^2)+(AF15^2))","v":27.459060435491963}]
[null,"Not enrolled in school",{"$f":"C16","v":691},{"$f":"D16","v":163},{"$f":"E16","v":3967},235,10118,318,1616,225,628,136,816,222,2399,184,537,115,692,136,5532,223,1742,136,812,381,2805,129,{"$f":"AC16","v":1301},{"$f":"AD16","v":173},{"$f":"AE16","v":905},{"$f":"AF16","v":140}]
[]
[]
[null,"B14001. Calculated  SCHOOL ENROLLMENT BY LEVEL OF SCHOOL FOR THE POPULATION 3 YEARS AND OVER "]
[null,"Universe: POPULATION 3 YEARS AND OVER"]
[null,"Data Set: 2013-2017 American Community Survey 5-Year Estimates"]
[]
[null,null,"Acworth",null,"Charlestown",null,"Claremont",null,"Cornish",null,"Croydon",null,"Goshen",null,"Grantham",null,"Langdon",null,"Lempster",null,"Newport",null,"Plainfield",null,"Springfield",null,"Sunapee",null,"Unity",null,"Washington"]
[null,null,"Estimate","Margin Of Error","Estimate","Margin Of Error","Estimate","Margin Of Error","Estimate","Margin Of Error","Estimate","Margin Of Error","Estimate","Margin Of Error","Estimate","Margin Of Error","Estimate","Margin Of Error","Estimate","Margin Of Error","Estimate","Margin Of Error","Estimate","Margin Of Error","Estimate","Margin Of Error","Estimate","Margin Of Error","Estimate","Margin Of Error","Estimate","Margin Of Error"]
[null,"Total:",1005,138,4870,91,12556,130,1760,206,793,189,711,135,2853,91,879,144,845,128,6332,50,2402,247,1001,179,3302,76,1470,187,1265,206]
[null,"Enrolled in school:",124,41,845,160,2433,254,423,135,143,91,171,61,646,174,254,86,140,61,1363,285,668,170,152,49,707,135,173,59,197,62]
[null,"Enrolled in nursery school, preschool, and Kindergarten",28,17.4928556845359,158,80.721744282442259,319,131.40015220691336,38,18.384776310850235,6,13.601470508735444,41,24.758836806279895,43,53.150729063673246,35,18.973665961010276,39,20.518284528683193,158,100.41912168506553,46,30.870698080866262,11,11.180339887498949,93,63.513778032801667,9,13.601470508735444,4,12.083045973594572]
[null,"Enrolled in nursery school, preschool",22,15,74,60,199,105,17,13,0,11,26,17,0,11,31,18,20,14,71,70,12,13,8,10,30,35,9,8,4,5]
[null,"Enrolled in kindergarten",6,9,84,54,120,79,21,13,6,8,15,18,43,52,4,6,19,15,87,72,34,28,3,5,63,53,0,11,0,11]
[null,"Enrolled in grade Elementary School (grade 1 to grade 8)",42,18.027756377319946,481,151.55856953666461,1297,232.39836488237177,242,87.206651122491792,49,29.546573405388315,67,31.064449134018133,311,141.44963768069539,136,56.222771187482387,31,16.278820596099706,629,231.74123500145589,238,60.811183182043088,82,34.669871646719429,200,77.233412458598508,74,34.205262752974143,94,34.409301068170507]
[null,"Enrolled in grade 9 to grade 12",38,23,79,67,557,140,101,43,39,30,42,23,203,91,60,23,47,36,359,152,124,101,41,22,215,80,47,20,66,28]
[null,"Enrolled in Elementary and High School",80,29.223278392404914,560,165.70757375569772,1854,271.30978603802703,343,97.231682079453918,88,42.107006542854599,109,38.652296180175377,514,168.19334112859522,196,60.745370193949761,78,39.509492530276823,988,277.14256259189062,362,117.89402020458883,123,41.060930335295616,415,111.19802156513397,121,39.623225512317902,160,44.362146025637671]
[null,"Enrolled in College or Graduate School",16,14.212670403551895,127,87.200917426366559,260,89.587945617700157,42,18.973665961010276,49,45.354161881794269,21,10.816653826391969,89,62.393909959225986,23,14.422205101855956,23,14.422205101855956,217,124.67958934805648,260,77.878109889750149,18,21.95449840010015,199,89.627004859026727,43,27.202941017470888,33,19.697715603592208]
[null,"Not enrolled in school",881,121,4025,156,10123,247,1337,122,650,138,540,101,2207,147,625,83,705,108,4969,285,1734,147,849,153,2595,175,1297,164,1068,173]
[]
[]
[]
[]
[]
[]
[]
[]
[]
[]
[]
[]
[]
[]
[]
[]
[]
[]
[]
[]
[]
[]
[]
[]
[]
[]
[]
[]
[]
[null,"B14001.Calculated  SCHOOL ENROLLMENT BY LEVEL OF SCHOOL FOR THE POPULATION 3 YEARS AND OVER "]
[null,"Universe: POPULATION 3 YEARS AND OVER"]
[null,"Data Set: 2008-2012 American Community Survey 5-Year Estimates"]
[]
[null,null,"Acworth",null,"Charlestown",null,"Claremont",null,"Cornish",null,"Croydon",null,"Goshen",null,"Grantham",null,"Langdon",null,"Lempster",null,"Newport",null,"Plainfield",null,"Springfield",null,"Sunapee",null,"Unity",null,"Washington"]
[null,null,"Estimate","Margin Of Error","Estimate","Margin Of Error","Estimate","Margin Of Error","Estimate","Margin Of Error","Estimate","Margin Of Error","Estimate","Margin Of Error","Estimate","Margin Of Error","Estimate","Margin Of Error","Estimate","Margin Of Error","Estimate","Margin Of Error","Estimate","Margin Of Error","Estimate","Margin Of Error","Estimate","Margin Of Error","Estimate","Margin Of Error","Estimate","Margin Of Error"]
[null,"Total:",712,162,4973,60,12764,126,1594,223,595,105,758,113,2877,58,759,126,1188,179,6358,102,2508,205,1318,183,3288,62,1571,159,1052,169]
[null,"Enrolled in school:",139,79,858,173,2529,282,358,115,94,38,88,38,593,110,175,56,291,79,1788,317,705,112,309,101,814,181,191,64,206,80]
[null,"Enrolled in nursery school, preschool, and Kindergarten",8,8.9442719099991592,91,72.180329730474355,362,143.83671297690307,27,18.027756377319946,2,11.704699910719626,0,15.556349186104045,48,35.171010790137949,19,19.723082923316021,13,13.038404810405298,75,71.554175279993274,45,25,34,22.627416997969522,61,37.443290453698111,17,17.804493814764857,29,21.095023109728988]
[null,"Enrolled in nursery school, preschool",3,4,42,49,183,108,16,15,0,11,0,11,41,34,13,17,7,11,32,32,27,20,18,16,22,21,17,14,29,18]
[null,"Enrolled in kindergarten",5,8,49,53,179,95,11,10,2,4,0,11,7,9,6,10,6,7,43,64,18,15,16,16,39,31,0,11,0,11]
[null,"Enrolled in grade Elementary School (grade 1 to grade 8)",62,31.89043743820395,375,125.4312560727987,1178,247.24279564832622,152,47.381430961928537,52,25.238858928247925,44,27.658633371878661,243,77.025969646606853,80,46.486557196677836,163,54.120236510939236,927,246.22144504490262,298,74.330343736592525,170,56.080299571239813,377,122.38055401083949,56,22.472205054244231,81,33.941125496954278]
[null,"Enrolled in grade 9 to grade 12",46,26,299,126,567,166,99,44,21,13,22,17,182,65,71,36,79,36,320,135,164,69,76,40,173,73,74,36,58,34]
[null,"Enrolled in Elementary and High School",108,41.146081222881968,674,177.78920102188434,1745,297.80026863654774,251,64.660652641308843,73,28.390139133156779,66,32.465366161495851,425,100.7869039111729,151,58.796258384356399,242,65,1247,280.80242164197944,462,101.41991914806479,246,68.8839603971781,550,142.49912280431764,130,42.43819034784589,139,48.041648597857254]
[null,"Enrolled in College or Graduate School",23,24.596747752497688,93,69.339743293438858,422,157.8005069700348,80,37.013511046643494,19,17.464249196572979,22,13.038404810405298,120,53.535035257296691,5,13.038404810405298,36,19.924858845171276,466,184.85940603604675,198,54.918120870983927,29,20,203,120.41594578792295,44,35.693136595149497,38,23.53720459187964]
[null,"Not enrolled in school",573,124,4115,167,10235,294,1236,145,501,84,670,96,2284,112,584,93,897,131,4570,292,1803,151,1009,146,2474,201,1380,131,846,113]

{"sheet":"ACS_Table_B15002","index":66,"n_rows":141,"n_cols":32,"rows_kept":141,"cut":false,"hidden":true,"merged":[]}
[null,"B15002. SEX BY EDUCATIONAL ATTAINMENT FOR THE POPULATION 25 YEARS AND OVER"]
[null,"Universe: Population 25 years an over"]
[null,"Data Set: 2018-2022 American Community Survey 5-Year Estimates"]
[]
[null,null,"Acworth",null,"Charlestown",null,"Claremont",null,"Cornish",null,"Croydon",null,"Goshen",null,"Grantham",null,"Langdon",null,"Lempster",null,"Newport",null,"Plainfield",null,"Springfield",null,"Sunapee",null,"Unity",null,"Washington"]
[null,null,"Estimate","Margin Of Error","Estimate","Margin Of Error","Estimate","Margin Of Error","Estimate","Margin Of Error","Estimate","Margin Of Error","Estimate","Margin Of Error","Estimate","Margin Of Error","Estimate","Margin Of Error","Estimate","Margin Of Error","Estimate","Margin Of Error","Estimate","Margin Of Error","Estimate","Margin Of Error","Estimate","Margin Of Error","Estimate","Margin Of Error","Estimate","Margin Of Error"]
[null,"Total:",667,154,3652,221,9522,307,1567,229,623,134,811,223,2362,192,535,113,692,127,4835,328,1745,128,764,348,2800,135,1198,153,875,139]
[null,"Male:",326,72,1788,205,4857,310,752,144,338,80,332,89,997,114,263,78,336,63,2293,255,826,126,430,247,1665,195,574,87,432,85]
[null,"No schooling completed",0,12,0,12,34,32,0,12,0,12,7,9,0,12,0,12,14,15,0,17,5,7,0,12,266,270,16,15,0,12]
[null,"Nursery to 4th grade",0,12,0,12,0,19,0,12,0,12,0,12,0,12,0,12,0,12,0,17,0,12,0,12,0,12,0,12,0,12]
[null,"5th and 6th grade",0,12,0,12,23,37,0,12,6,9,0,12,0,12,0,12,0,12,11,20,0,12,8,12,0,12,0,12,0,12]
[null,"7th and 8th grade",0,12,3,6,73,63,0,12,2,3,7,11,0,12,0,12,2,4,20,31,4,8,0,12,6,10,32,29,0,12]
[null,"9th grade",4,6,168,136,18,40,0,12,0,12,0,12,0,12,0,12,22,23,0,17,0,12,7,11,24,40,20,17,10,10]
[null,"10th grade",17,27,15,25,182,155,8,13,18,14,7,7,0,12,0,12,10,16,65,94,0,12,4,6,17,29,5,5,0,12]
[null,"11th grade",0,12,15,24,132,126,9,10,3,8,1,3,0,12,24,34,6,6,117,127,6,8,0,12,0,12,33,21,2,3]
[null,"12th grade, no diploma",2,3,11,18,163,130,14,12,9,11,1,2,0,12,2,3,6,8,22,27,0,12,0,12,0,12,7,7,0,12]
[null,"High school graduate, GED, or alternative",159,62,816,228,2197,304,244,67,167,58,142,46,194,87,98,31,146,37,887,238,227,65,221,243,409,153,264,72,167,60]
[null,"Some college, less than 1 year",7,8,40,46,187,113,38,20,29,29,28,30,75,78,27,18,8,7,45,43,26,16,0,12,59,46,21,15,35,23]
[null,"Some college, 1 or more years, no degree",47,32,204,104,401,138,48,28,20,14,52,33,42,54,36,27,30,20,320,168,85,69,3,5,113,68,75,46,54,36]
[null,"Associate's degree",30,22,255,135,305,115,98,49,29,24,12,13,58,57,30,19,21,17,263,125,51,25,63,42,204,99,19,13,11,10]
[null,"Bachelor's degree",37,19,200,117,715,265,206,97,38,20,50,43,250,137,31,21,33,19,500,206,235,77,79,52,247,99,54,23,114,49]
[null,"Master's degree",11,11,60,80,334,168,62,22,16,13,18,15,289,133,13,8,22,17,17,27,115,54,38,27,296,127,24,17,24,12]
[null,"Professional school degree",8,7,1,4,5,13,10,10,1,4,7,9,89,112,2,3,11,12,0,17,56,43,7,12,24,32,4,5,9,8]
[null,"Doctorate degree",4,5,0,12,88,75,15,10,0,12,0,12,0,12,0,12,5,5,26,31,16,15,0,12,0,12,0,12,6,5]
[null,"Female:",341,102,1864,211,4665,247,815,150,285,67,479,168,1365,157,272,54,356,100,2542,272,919,106,334,125,1135,155,624,101,443,77]
[null,"No schooling completed",0,12,0,12,121,114,0,12,0,12,0,12,0,12,0,12,0,12,0,17,0,12,0,12,0,12,26,21,2,3]
[null,"Nursery to 4th grade",0,12,17,27,0,19,0,12,0,12,0,12,0,12,0,12,9,12,0,17,0,12,0,12,0,12,0,12,0,12]
[null,"5th and 6th grade",0,12,0,12,0,19,8,11,0,12,3,4,0,12,0,12,0,12,0,17,0,12,0,12,0,12,0,12,0,12]
[null,"7th and 8th grade",2,3,0,12,69,62,0,12,2,3,0,12,0,12,0,12,0,12,50,70,4,6,0,12,5,9,22,20,2,4]
[null,"9th grade",12,18,16,26,37,50,0,12,2,3,4,5,0,12,0,12,0,12,67,72,3,6,0,12,0,12,23,20,0,12]
[null,"10th grade",0,12,45,73,110,110,0,12,16,15,26,16,0,12,8,13,0,12,14,22,0,12,0,12,42,50,3,4,0,12]
[null,"11th grade",12,19,44,65,49,54,6,6,0,12,24,35,0,12,3,4,2,4,60,86,0,12,7,11,0,12,6,6,0,12]
[null,"12th grade, no diploma",2,3,0,12,109,124,0,12,0,12,4,4,34,49,2,3,2,3,54,69,4,6,0,12,6,11,13,11,8,8]
[null,"High school graduate, GED, or alternative",83,50,505,163,1934,292,228,67,135,53,276,154,206,210,85,39,149,77,978,186,165,62,107,90,337,139,208,58,173,51]
[null,"Some college, less than 1 year",33,45,96,63,381,168,29,13,10,9,12,12,19,28,9,6,59,55,55,44,46,30,4,5,15,18,79,49,26,16]
[null,"Some college, 1 or more years, no degree",83,47,216,117,351,123,38,23,30,18,40,28,179,182,21,13,11,10,267,169,103,91,12,15,139,76,58,33,37,19]
[null,"Associate's degree",28,18,451,156,433,207,150,134,36,17,19,13,151,103,33,18,38,32,217,111,163,69,20,23,36,27,50,28,45,31]
[null,"Bachelor's degree",41,22,356,152,738,191,186,49,33,21,49,27,438,190,69,32,51,22,495,237,193,60,137,76,209,81,101,43,101,44]
[null,"Master's degree",21,17,58,52,266,100,133,44,16,17,18,14,338,153,35,21,25,12,257,163,197,96,26,18,253,130,22,16,44,21]
[null,"Professional school degree",22,28,43,56,28,32,27,26,2,3,2,3,0,12,4,5,7,11,0,17,27,29,16,18,47,38,13,33,2,5]
[null,"Doctorate degree",2,3,17,27,39,40,10,8,3,4,2,3,0,12,3,4,3,4,28,34,14,14,5,9,46,36,0,12,3,4]
[]
[]
[]
[]
[]
[]
[null,"Calculated B15002. SEX BY EDUCATIONAL ATTAINMENT FOR THE POPULATION 25 YEARS AND OVER"]
[null,"Universe: Population 25 years an over"]
[null,"Data Set: 2018-2022 American Community Survey 5-Year Estimates"]
[]
[null,null,"Acworth",null,"Charlestown",null,"Claremont",null,"Cornish",null,"Croydon",null,"Goshen",null,"Grantham",null,"Langdon",null,"Lempster",null,"Newport",null,"Plainfield",null,"Springfield",null,"Sunapee",null,"Unity",null,"Washington"]
[null,null,"Estimate","Margin Of Error","Estimate","Margin Of Error","Estimate","Margin Of Error","Estimate","Margin Of Error","Estimate","Margin Of Error","Estimate","Margin Of Error","Estimate","Margin Of Error","Estimate","Margin Of Error","Estimate","Margin Of Error","Estimate","Margin Of Error","Estimate","Margin Of Error","Estimate","Margin Of Error","Estimate","Margin Of Error","Estimate","Margin Of Error","Estimate","Margin Of Error"]
[null,"Total:",{"$f":"C7","v":667},{"$f":"D7","v":154},{"$f":"E7","v":3652},{"$f":"F7","v":221},{"$f":"G7","v":9522},307,1567,229,623,134,811,223,2362,192,535,113,692,127,4835,328,1745,128,764,348,2800,135,{"$f":"AC7","v":1198},{"$f":"AD7","v":153},{"$f":"AE7","v":875},{"$f":"AF7","v":139}]
[null,"Less than 9th grade",{"$f":"(C12+C11+C10)+(C27+C28+C29)","v":2},{"$f":"SQRT((D12^2)+(D11^2)+(D10^2)+(D27^2)+(D28^2)+(D29^2))","v":27},{"$f":"(E12+E11+E10)+(E27+E28+E29)","v":20},{"$f":"SQRT((F12^2)+(F11^2)+(F10^2)+(F27^2)+(F28^2)+(F29^2))","v":36.61966684720111},{"$f":"(G12+G11+G10)+(G27+G28+G29)","v":165},{"$f":"SQRT((H12^2)+(H11^2)+(H10^2)+(H27^2)+(H28^2)+(H29^2))","v":101.31633629380802},{"$f":"(I12+I11+I10)+(I27+I28+I29)","v":8},{"$f":"SQRT((J12^2)+(J11^2)+(J10^2)+(J27^2)+(J28^2)+(J29^2))","v":29},{"$f":"(K12+K11+K10)+(K27+K28+K29)","v":10},{"$f":"SQRT((L12^2)+(L11^2)+(L10^2)+(L27^2)+(L28^2)+(L29^2))","v":23.043437243605826},{"$f":"(M12+M11+M10)+(M27+M28+M29)","v":10},{"$f":"SQRT((N12^2)+(N11^2)+(N10^2)+(N27^2)+(N28^2)+(N29^2))","v":26.702059845637379},{"$f":"(O12+O11+O10)+(O27+O28+O29)","v":0},{"$f":"SQRT((P12^2)+(P11^2)+(P10^2)+(P27^2)+(P28^2)+(P29^2))","v":29.393876913398138},{"$f":"(Q12+Q11+Q10)+(Q27+Q28+Q29)","v":0},{"$f":"SQRT((R12^2)+(R11^2)+(R10^2)+(R27^2)+(R28^2)+(R29^2))","v":29.393876913398138},{"$f":"(S12+S11+S10)+(S27+S28+S29)","v":11},{"$f":"SQRT((T12^2)+(T11^2)+(T10^2)+(T27^2)+(T28^2)+(T29^2))","v":27.129319932501073},{"$f":"(U12+U11+U10)+(U27+U28+U29)","v":81},{"$f":"SQRT((V12^2)+(V11^2)+(V10^2)+(V27^2)+(V28^2)+(V29^2))","v":84.427483676821737},{"$f":"(W12+W11+W10)+(W27+W28+W29)","v":8},{"$f":"SQRT((X12^2)+(X11^2)+(X10^2)+(X27^2)+(X28^2)+(X29^2))","v":26},{"$f":"(Y12+Y11+Y10)+(Y27+Y28+Y29)","v":8},{"$f":"SQRT((Z12^2)+(Z11^2)+(Z10^2)+(Z27^2)+(Z28^2)+(Z29^2))","v":29.393876913398138},{"$f":"(AA12+AA11+AA10)+(AA27+AA28+AA29)","v":11},{"$f":"SQRT((AB12^2)+(AB11^2)+(AB10^2)+(AB27^2)+(AB28^2)+(AB29^2))","v":27.513632984395208},{"$f":"(AC12+AC11+AC10)+(AC27+AC28+AC29)","v":54},{"$f":"SQRT((AD12^2)+(AD11^2)+(AD10^2)+(AD27^2)+(AD28^2)+(AD29^2))","v":42.626282971894227},{"$f":"(AE12+AE11+AE10)+(AE27+AE28+AE29)","v":2},{"$f":"SQRT((AF12^2)+(AF11^2)+(AF10^2)+(AF27^2)+(AF28^2)+(AF29^2))","v":27.129319932501073}]
[null,"9th to 12th grade, no diploma",{"$f":"(C13+C14+C15+C16)+(C30+C31+C32+C33)","v":49},{"$f":"SQRT((D13^2)+(D14^2)+(D15^2)+(D16^2)+(D30^2)+(D31^2)+(D32^2)+(D33^2))","v":41.904653679513928},{"$f":"(E13+E14+E15+E16)+(E30+E31+E32+E33)","v":314},{"$f":"SQRT((F13^2)+(F14^2)+(F15^2)+(F16^2)+(F30^2)+(F31^2)+(F32^2)+(F33^2))","v":174.34161866863573},{"$f":"(G13+G14+G15+G16)+(G30+G31+G32+G33)","v":800},{"$f":"SQRT((H13^2)+(H14^2)+(H15^2)+(H16^2)+(H30^2)+(H31^2)+(H32^2)+(H33^2))","v":302.14731506336443},{"$f":"(I13+I14+I15+I16)+(I30+I31+I32+I33)","v":37},{"$f":"SQRT((J13^2)+(J14^2)+(J15^2)+(J16^2)+(J30^2)+(J31^2)+(J32^2)+(J33^2))","v":32.015621187164243},{"$f":"(K13+K14+K15+K16)+(K30+K31+K32+K33)","v":48},{"$f":"SQRT((L13^2)+(L14^2)+(L15^2)+(L16^2)+(L30^2)+(L31^2)+(L32^2)+(L33^2))","v":32.357379374726875},{"$f":"(M13+M14+M15+M16)+(M30+M31+M32+M33)","v":67},{"$f":"SQRT((N13^2)+(N14^2)+(N15^2)+(N16^2)+(N30^2)+(N31^2)+(N32^2)+(N33^2))","v":41.569219381653056},{"$f":"(O13+O14+O15+O16)+(O30+O31+O32+O33)","v":34},{"$f":"SQRT((P13^2)+(P14^2)+(P15^2)+(P16^2)+(P30^2)+(P31^2)+(P32^2)+(P33^2))","v":58.386642307979997},{"$f":"(Q13+Q14+Q15+Q16)+(Q30+Q31+Q32+Q33)","v":39},{"$f":"SQRT((R13^2)+(R14^2)+(R15^2)+(R16^2)+(R30^2)+(R31^2)+(R32^2)+(R33^2))","v":42.320207938997655},{"$f":"(S13+S14+S15+S16)+(S30+S31+S32+S33)","v":48},{"$f":"SQRT((T13^2)+(T14^2)+(T15^2)+(T16^2)+(T30^2)+(T31^2)+(T32^2)+(T33^2))","v":34.612136599753562},{"$f":"(U13+U14+U15+U16)+(U30+U31+U32+U33)","v":399},{"$f":"SQRT((V13^2)+(V14^2)+(V15^2)+(V16^2)+(V30^2)+(V31^2)+(V32^2)+(V33^2))","v":209.30360723121808},{"$f":"(W13+W14+W15+W16)+(W30+W31+W32+W33)","v":13},{"$f":"SQRT((X13^2)+(X14^2)+(X15^2)+(X16^2)+(X30^2)+(X31^2)+(X32^2)+(X33^2))","v":29.257477676655586},{"$f":"(Y13+Y14+Y15+Y16)+(Y30+Y31+Y32+Y33)","v":18},{"$f":"SQRT((Z13^2)+(Z14^2)+(Z15^2)+(Z16^2)+(Z30^2)+(Z31^2)+(Z32^2)+(Z33^2))","v":31.591137997862628},{"$f":"(AA13+AA14+AA15+AA16)+(AA30+AA31+AA32+AA33)","v":89},{"$f":"SQRT((AB13^2)+(AB14^2)+(AB15^2)+(AB16^2)+(AB30^2)+(AB31^2)+(AB32^2)+(AB33^2))","v":75.08661665037252},{"$f":"(AC13+AC14+AC15+AC16)+(AC30+AC31+AC32+AC33)","v":110},{"$f":"SQRT((AD13^2)+(AD14^2)+(AD15^2)+(AD16^2)+(AD30^2)+(AD31^2)+(AD32^2)+(AD33^2))","v":37.107950630558946},{"$f":"(AE13+AE14+AE15+AE16)+(AE30+AE31+AE32+AE33)","v":20},{"$f":"SQRT((AF13^2)+(AF14^2)+(AF15^2)+(AF16^2)+(AF30^2)+(AF31^2)+(AF32^2)+(AF33^2))","v":29.883105594967869}]
[null,"High school graduate (includes equivalency)",{"$f":"C17+C34","v":242},{"$f":"SQRT((D17^2)+(D34^2))","v":79.649231006959511},{"$f":"E17+E34","v":1321},{"$f":"SQRT((F17^2)+(F34^2))","v":280.2730811191114},{"$f":"G17+G34","v":4131},{"$f":"SQRT((H17^2)+(H34^2))","v":421.52105522737531},{"$f":"I17+I34","v":472},{"$f":"SQRT((J17^2)+(J34^2))","v":94.752308678997366},{"$f":"K17+K34","v":302},{"$f":"SQRT((L17^2)+(L34^2))","v":78.568441501661468},{"$f":"M17+M34","v":418},{"$f":"SQRT((N17^2)+(N34^2))","v":160.72336482291553},{"$f":"O17+O34","v":400},{"$f":"SQRT((P17^2)+(P34^2))","v":227.3081608741754},{"$f":"Q17+Q34","v":183},{"$f":"SQRT((R17^2)+(R34^2))","v":49.819674828324601},{"$f":"S17+S34","v":295},{"$f":"SQRT((T17^2)+(T34^2))","v":85.428332536694171},{"$f":"U17+U34","v":1865},{"$f":"SQRT((V17^2)+(V34^2))","v":302.0595967685847},{"$f":"W17+W34","v":392},{"$f":"SQRT((X17^2)+(X34^2))","v":89.827612681179502},{"$f":"Y17+Y34","v":328},{"$f":"SQRT((Z17^2)+(Z34^2))","v":259.13124087998347},{"$f":"AA17+AA34","v":746},{"$f":"SQRT((AB17^2)+(AB34^2))","v":206.71236053995418},{"$f":"AC17+AC34","v":472},{"$f":"SQRT((AD17^2)+(AD34^2))","v":92.455394650609762},{"$f":"AE17+AE34","v":340},{"$f":"SQRT((AF17^2)+(AF34^2))","v":78.746428490440124}]
[null,"Some college, no degree",{"$f":"(C18+C19)+(C35+C36)","v":170},{"$f":"SQRT((D18^2)+(D19^2)+(D35^2)+(D36^2))","v":72.952039039357899},{"$f":"(E18+E19)+(E35+E36)","v":556},{"$f":"SQRT((F18^2)+(F19^2)+(F35^2)+(F36^2))","v":174.89997141223321},{"$f":"(G18+G19)+(G35+G36)","v":1320},{"$f":"SQRT((H18^2)+(H19^2)+(H35^2)+(H36^2))","v":274.16418438592592},{"$f":"(I18+I19)+(I35+I36)","v":153},{"$f":"SQRT((J18^2)+(J19^2)+(J35^2)+(J36^2))","v":43.382023926967726},{"$f":"(K18+K19)+(K35+K36)","v":89},{"$f":"SQRT((L18^2)+(L19^2)+(L35^2)+(L36^2))","v":37.97367509209505},{"$f":"(M18+M19)+(M35+M36)","v":132},{"$f":"SQRT((N18^2)+(N19^2)+(N35^2)+(N36^2))","v":54.009258465563107},{"$f":"(O18+O19)+(O35+O36)","v":315},{"$f":"SQRT((P18^2)+(P19^2)+(P35^2)+(P36^2))","v":207.14246305381232},{"$f":"(Q18+Q19)+(Q35+Q36)","v":93},{"$f":"SQRT((R18^2)+(R19^2)+(R35^2)+(R36^2))","v":35.468295701936398},{"$f":"(S18+S19)+(S35+S36)","v":108},{"$f":"SQRT((T18^2)+(T19^2)+(T35^2)+(T36^2))","v":59.782940710540494},{"$f":"(U18+U19)+(U35+U36)","v":687},{"$f":"SQRT((V18^2)+(V19^2)+(V35^2)+(V36^2))","v":246.1097316239242},{"$f":"(W18+W19)+(W35+W36)","v":260},{"$f":"SQRT((X18^2)+(X19^2)+(X35^2)+(X36^2))","v":119.15536076903967},{"$f":"(Y18+Y19)+(Y35+Y36)","v":19},{"$f":"SQRT((Z18^2)+(Z19^2)+(Z35^2)+(Z36^2))","v":20.46948949045872},{"$f":"(AA18+AA19)+(AA35+AA36)","v":326},{"$f":"SQRT((AB18^2)+(AB19^2)+(AB35^2)+(AB36^2))","v":113.31372379372236},{"$f":"(AC18+AC19)+(AC35+AC36)","v":233},{"$f":"SQRT((AD18^2)+(AD19^2)+(AD35^2)+(AD36^2))","v":76.360984802450005},{"$f":"(AE18+AE19)+(AE35+AE36)","v":152},{"$f":"SQRT((AF18^2)+(AF19^2)+(AF35^2)+(AF36^2))","v":49.416596402423345}]
[null,"Associate's degree",{"$f":"C20+C37","v":58},{"$f":"SQRT((D20^2)+(D37^2))","v":28.42534080710379},{"$f":"E20+E37","v":706},{"$f":"SQRT((F20^2)+(F37^2))","v":206.30317496345035},{"$f":"G20+G37","v":738},{"$f":"SQRT((H20^2)+(H37^2))","v":236.799493242701},{"$f":"I20+I37","v":248},{"$f":"SQRT((J20^2)+(J37^2))","v":142.67795905464865},{"$f":"K20+K37","v":65},{"$f":"SQRT((L20^2)+(L37^2))","v":29.410882339705484},{"$f":"M20+M37","v":31},{"$f":"SQRT((N20^2)+(N37^2))","v":18.384776310850235},{"$f":"O20+O37","v":209},{"$f":"SQRT((P20^2)+(P37^2))","v":117.72000679578642},{"$f":"Q20+Q37","v":63},{"$f":"SQRT((R20^2)+(R37^2))","v":26.172504656604801},{"$f":"S20+S37","v":59},{"$f":"SQRT((T20^2)+(T37^2))","v":36.235341863986875},{"$f":"U20+U37","v":480},{"$f":"SQRT((V20^2)+(V37^2))","v":167.17057157286985},{"$f":"W20+W37","v":214},{"$f":"SQRT((X20^2)+(X37^2))","v":73.389372527635089},{"$f":"Y20+Y37","v":83},{"$f":"SQRT((Z20^2)+(Z37^2))","v":47.885279575251516},{"$f":"AA20+AA37","v":240},{"$f":"SQRT((AB20^2)+(AB37^2))","v":102.61578825892242},{"$f":"AC20+AC37","v":69},{"$f":"SQRT((AD20^2)+(AD37^2))","v":30.870698080866262},{"$f":"AE20+AE37","v":56},{"$f":"SQRT((AF20^2)+(AF37^2))","v":32.572994949804659}]
[null,"Bachelor's degree",{"$f":"C21+C38","v":78},{"$f":"SQRT((D21^2)+(D38^2))","v":29.068883707497267},{"$f":"E21+E38","v":556},{"$f":"SQRT((F21^2)+(F38^2))","v":191.81501505356664},{"$f":"G21+G38","v":1453},{"$f":"SQRT((H21^2)+(H38^2))","v":326.65884344373717},{"$f":"I21+I38","v":392},{"$f":"SQRT((J21^2)+(J38^2))","v":108.67382389517726},{"$f":"K21+K38","v":71},{"$f":"SQRT((L21^2)+(L38^2))","v":29},{"$f":"M21+M38","v":99},{"$f":"SQRT((N21^2)+(N38^2))","v":50.774009099144415},{"$f":"O21+O38","v":688},{"$f":"SQRT((P21^2)+(P38^2))","v":234.24132854814499},{"$f":"Q21+Q38","v":100},{"$f":"SQRT((R21^2)+(R38^2))","v":38.275318418009277},{"$f":"S21+S38","v":84},{"$f":"SQRT((T21^2)+(T38^2))","v":29.068883707497267},{"$f":"U21+U38","v":995},{"$f":"SQRT((V21^2)+(V38^2))","v":314.01433088316207},{"$f":"W21+W38","v":428},{"$f":"SQRT((X21^2)+(X38^2))","v":97.616596949494195},{"$f":"Y21+Y38","v":216},{"$f":"SQRT((Z21^2)+(Z38^2))","v":92.086915465770701},{"$f":"AA21+AA38","v":456},{"$f":"SQRT((AB21^2)+(AB38^2))","v":127.91403363196706},{"$f":"AC21+AC38","v":155},{"$f":"SQRT((AD21^2)+(AD38^2))","v":48.764741360946438},{"$f":"AE21+AE38","v":215},{"$f":"SQRT((AF21^2)+(AF38^2))","v":65.855903304107827}]
[null,"Graduate or professional degree",{"$f":"(C22+C23+C24)+(C39+C40+C41)","v":68},{"$f":"SQRT((D22^2)+(D23^2)+(D24^2)+(D39^2)+(D41^2)+(D40^2))","v":35.735136770411273},{"$f":"(E22+E23+E24)+(E39+E40+E41)","v":179},{"$f":"SQRT((F22^2)+(F23^2)+(F24^2)+(F39^2)+(F41^2)+(F40^2))","v":114.58184847522752},{"$f":"(G22+G23+G24)+(G39+G40+G41)","v":760},{"$f":"SQRT((H22^2)+(H23^2)+(H24^2)+(H39^2)+(H41^2)+(H40^2))","v":215.96759016111653},{"$f":"(I22+I23+I24)+(I39+I40+I41)","v":257},{"$f":"SQRT((J22^2)+(J23^2)+(J24^2)+(J39^2)+(J41^2)+(J40^2))","v":57.965506984757752},{"$f":"(K22+K23+K24)+(K39+K40+K41)","v":38},{"$f":"SQRT((L22^2)+(L23^2)+(L24^2)+(L39^2)+(L41^2)+(L40^2))","v":25.357444666211933},{"$f":"(M22+M23+M24)+(M39+M40+M41)","v":47},{"$f":"SQRT((N22^2)+(N23^2)+(N24^2)+(N39^2)+(N41^2)+(N40^2))","v":25.768197453450252},{"$f":"(O22+O23+O24)+(O39+O40+O41)","v":716},{"$f":"SQRT((P22^2)+(P23^2)+(P24^2)+(P39^2)+(P41^2)+(P40^2))","v":232.53816890996626},{"$f":"(Q22+Q23+Q24)+(Q39+Q40+Q41)","v":57},{"$f":"SQRT((R22^2)+(R23^2)+(R24^2)+(R39^2)+(R41^2)+(R40^2))","v":26.438608132804571},{"$f":"(S22+S23+S24)+(S39+S40+S41)","v":73},{"$f":"SQRT((T22^2)+(T23^2)+(T24^2)+(T39^2)+(T41^2)+(T40^2))","v":27.184554438136374},{"$f":"(U22+U23+U24)+(U39+U40+U41)","v":328},{"$f":"SQRT((V22^2)+(V23^2)+(V24^2)+(V39^2)+(V41^2)+(V40^2))","v":173.18487231857176},{"$f":"(W22+W23+W24)+(W39+W40+W41)","v":425},{"$f":"SQRT((X22^2)+(X23^2)+(X24^2)+(X39^2)+(X41^2)+(X40^2))","v":123.46254492760143},{"$f":"(Y22+Y23+Y24)+(Y39+Y40+Y41)","v":92},{"$f":"SQRT((Z22^2)+(Z23^2)+(Z24^2)+(Z39^2)+(Z41^2)+(Z40^2))","v":41.785164831552358},{"$f":"(AA22+AA23+AA24)+(AA39+AA40+AA41)","v":666},{"$f":"SQRT((AB22^2)+(AB23^2)+(AB24^2)+(AB39^2)+(AB41^2)+(AB40^2))","v":192.1900101462092},{"$f":"(AC22+AC23+AC24)+(AC39+AC40+AC41)","v":63},{"$f":"SQRT((AD22^2)+(AD23^2)+(AD24^2)+(AD39^2)+(AD41^2)+(AD40^2))","v":44.124822945820419},{"$f":"(AE22+AE23+AE24)+(AE39+AE40+AE41)","v":88},{"$f":"SQRT((AF22^2)+(AF23^2)+(AF24^2)+(AF39^2)+(AF41^2)+(AF40^2))","v":26.739483914241877}]
[]
[]
[]
[]
[]
[]
[]
[]
[]
[]
[]
[]
[]
[]
[]
[]
[]
[]
[]
[]
[]
[]
[]
[]
[]
[]
[]
[null,"Calculated B15002. SEX BY EDUCATIONAL ATTAINMENT FOR THE POPULATION 25 YEARS AND OVER"]
[null,"Universe: Population 25 years an over"]
[null,"Data Set: 2013-2017 American Community Survey 5-Year Estimates"]
[null,null,"Acworth",null,"Charlestown",null,"Claremont",null,"Cornish",null,"Croydon",null,"Goshen",null,"Grantham",null,"Langdon",null,"Lempster",null,"Newport",null,"Plainfield",null,"Springfield",null,"Sunapee",null,"Unity",null,"Washington"]
[null,null,"Estimate","Margin Of Error","Estimate","Margin Of Error","Estimate","Margin Of Error","Estimate","Margin Of Error","Estimate","Margin Of Error","Estimate","Margin Of Error","Estimate","Margin Of Error","Estimate","Margin Of Error","Estimate","Margin Of Error","Estimate","Margin Of Error","Estimate","Margin Of Error","Estimate","Margin Of Error","Estimate","Margin Of Error","Estimate","Margin Of Error","Estimate","Margin Of Error"]
[null,"Total:",840,111,3747,200,9218,269,1272,115,576,114,513,82,2216,142,599,80,699,101,4522,308,1725,148,813,146,2550,153,1234,144,1016,163]
[null,"Less than 9th grade",18,23.45207879911715,28,48,228,100.05498488331304,9,23.151673805580451,10,22.090722034374522,15,28.231188426986208,0,26.944387170614959,9,17.088007490635061,29,24.166091947189145,122,79.862381632405629,11,24.433583445741231,15,30.479501308256342,46,40.865633483405098,83,55.596762495670554,0,26.944387170614959]
[null,"9th to 12th grade, no diploma",37,27.073972741361768,253,122.42140335741949,848,213.87613237572816,43,26.795522013948524,77,34.132096331752024,57,31.733263305244861,41,47.053161424074368,45,26.134268690743959,42,25.45584412271571,402,215.19990706317697,80,46.216880033165374,41,33,0,31.11269837220809,126,43.56604182158393,47,30.854497241083024]
[null,"High school graduate (includes equivalency)",353,68.767724987816777,1955,274.5359721420856,4066,341.62113517755307,291,54.488530903301111,231,55.803225713214822,186,43.863424398922618,406,133.22161986704711,169,38.183766184073569,305,56.568542494923804,1643,260.27677575995904,490,86.838931361457924,301,81.024687595818591,655,196.59603251337501,475,83.486525858967212,315,61.294371682887821]
[null,"Some college, no degree",118,32.480763537823428,655,191.723759612626,1749,270.74157419945686,221,58.642987645582998,76,32.969683043669072,88,31.843366656181317,243,126.41598000252975,95,29.427877939124322,145,42.848570571257099,941,271.12174387164157,219,51.942275652882209,152,52.990565197967079,519,149.20120642943877,239,54.470175325585288,274,100.29955134495867]
[null,"Associate's degree",65,22.803508501982758,427,157.13688300332294,698,159.76232346833217,148,43.139309220245984,87,38.209946349085598,56,26.870057685088806,181,87.464278422679513,79,26.90724809414742,44,24.351591323771842,417,149.01342221424215,136,51.039200620699383,49,25.238858928247925,224,97.943861471763512,103,35.383612025908263,143,45.803929962395145]
[null,"Bachelor's degree",165,45.793012567421243,353,131.94695904036593,1285,230.28894893155424,318,75.802374632988901,67,34,63,21.931712199461309,792,193.14502323383846,137,39.11521443121589,99,36.124783736376884,527,160.41508657230466,327,67.178865724273734,163,48.166378315169183,659,154.15900881881669,121,37.802116342871599,156,43.863424398922618]
[null,"Graduate or professional degree",84,25.845695966640172,76,74.411020689142546,335,101.7742600071354,242,51.788029504896208,28,20.808652046684813,45,22.538855339169288,553,153.35579545618745,57,20.542638584174139,26,20.46948949045872,377,153.18616125486008,457,92.795474027562364,92,37.76241517699841,421,120.90078577081292,87,39.534794801541594,70,21.307275752662516]
[]
[]
[]
[]
[]
[]
[]
[]
[]
[]
[]
[]
[]
[]
[]
[]
[]
[]
[]
[]
[]
[]
[]
[]
[]
[]
[]
["B15002. SEX BY EDUCATIONAL ATTAINMENT FOR THE POPULATION 25 YEARS AND OVER"]
["Universe: Population 25 years an over"]
["Data Set: 2008-2012 American Community Survey 5-Year Estimates"]
[null,null,"Acworth",null,"Charlestown",null,"Claremont",null,"Cornish",null,"Croydon",null,"Goshen",null,"Grantham",null,"Langdon",null,"Lempster",null,"Newport",null,"Plainfield",null,"Springfield",null,"Sunapee",null,"Unity",null,"Washington"]
[null,null,"Estimate","Margin Of Error","Estimate","Margin Of Error","Estimate","Margin Of Error","Estimate","Margin Of Error","Estimate","Margin Of Error","Estimate","Margin Of Error","Estimate","Margin Of Error","Estimate","Margin Of Error","Estimate","Margin Of Error","Estimate","Margin Of Error","Estimate","Margin Of Error","Estimate","Margin Of Error","Estimate","Margin Of Error","Estimate","Margin Of Error","Estimate","Margin Of Error"]
[null,"Total:",549,117,3895,173,9317,271,1187,132,503,84,622,84,2231,108,534,84,841,111,4476,270,1789,158,941,118,2453,119,1261,127,834,117]
[null,"Less than 9th grade",10,28.301943396169811,114,96.674712308855618,338,112.88489712977551,9,25.573423705088842,25,28.24889378365107,13,24.433583445741231,31,34.380226875342167,16,26.248809496813376,35,27.294688127912362,254,112.04909638189859,34,33.570820663189039,5,22.912878474779198,21,33.674916480965472,42,29.206163733020468,18,28.809720581775867]
[null,"9th to 12th grade, no diploma",35,32.695565448543633,405,150.89400253157845,814,191.50456913609136,46,22.978250586152114,35,18.165902124584949,80,28.284271247461902,52,40.336088060197412,25,28.0178514522438,77,30.463092423455635,256,96.010416101587651,45,42.261093218230876,26,27.129319932501073,22,36.796738985948195,90,38.845849199110063,47,24.535688292770594]
[null,"High school graduate (includes equivalency)",265,62.481997407253232,1724,230.85276693165278,4252,362.80159867343474,369,70.767224051816527,187,46.400431032480725,225,47.169905660283021,404,99.005050376230813,211,48.795491595023407,346,70.604532432415411,1760,246.08941464435239,365,68.767724987816777,273,63.126856408346519,394,148.71785366928881,609,93.722996110879848,262,52.009614495783374]
[null,"Some college, no degree",98,34.856850115866749,841,198.01515093547766,1870,270.47180999135566,259,52.134441590948299,82,29.154759474226502,105,33.421549934136806,220,78.555712713971346,77,32.015621187164243,154,46.281745861624536,764,210.01190442448734,321,86.284413424441851,164,46.010868281309364,447,126.51482126612676,242,55.515763527128037,182,45.4972526643093]
[null,"Associate's degree",49,24.083189157584592,300,123.14625451064275,834,203.65166338628319,118,33.301651610693426,53,23.600847442411894,32,13.892443989449804,214,69.526973183074787,53,26.92582403567252,66,27.658633371878661,449,171.72361514946044,126,64.350602172784676,115,41.868842830916641,151,72.670489196096653,84,34.985711369071801,62,34.713109915419565]
[null,"Bachelor's degree",78,27.658633371878661,369,118.92854997854805,834,185.82787734890587,204,48.414873747640819,88,36.878177829171548,125,38.209946349085598,748,130.11533345459327,94,35.608987629529715,95,32.557641192199412,603,194.75625792256329,538,100.00499987500625,213,55.865910893853687,756,181.04419349981927,158,50.209560842532767,125,37.443290453698111]
[null,"Graduate or professional degree",2,19.28730152198591,44,55.785302723925412,249,96.239285117876889,72,27.331300737432898,22,23.065125189341593,28,21.494185260204677,319,83.797374660546495,30,19.672315572906001,33,23.194827009486403,93,60.983604353957304,194,60.083275543199207,70,30.446674695276659,345,106.16025621672171,15,14.212670403551895,84,37.054014627297811]

{"sheet":"ACS_Table_B25075_&_B25077","index":67,"n_rows":160,"n_cols":32,"rows_kept":160,"cut":false,"hidden":true,"merged":[]}
[null,"B25075. VALUE"]
[null,"Universe:  OWNER-OCCUPIED HOUSING UNITS"]
[null,"Data Set: 2018-2022 American Community Survey 5-Year Estimates"]
[]
[null,null,"Acworth",null,"Charlestown",null,"Claremont",null,"Cornish",null,"Croydon",null,"Goshen",null,"Grantham",null,"Langdon",null,"Lempster",null,"Newport",null,"Plainfield",null,"Springfield",null,"Sunapee",null,"Unity",null,"Washington"]
[null,null,"Estimate","Margin Of Error","Estimate","Margin Of Error","Estimate","Margin Of Error","Estimate","Margin Of Error","Estimate","Margin Of Error","Estimate","Margin Of Error","Estimate","Margin Of Error","Estimate","Margin Of Error","Estimate","Margin Of Error","Estimate","Margin Of Error","Estimate","Margin Of Error","Estimate","Margin Of Error","Estimate","Margin Of Error","Estimate","Margin Of Error","Estimate","Margin Of Error"]
[null,"Total:",216,40,1328,180,3082,304,737,146,211,47,250,71,1091,138,205,43,299,59,1479,250,760,85,264,79,894,149,447,72,381,68]
[null,"Less than $10,000",0,12,17,28,27,36,3,4,0,12,0,12,0,12,0,12,0,12,0,17,4,6,0,12,0,12,2,5,0,12]
[null,"$10,000 to $14,999",0,12,31,37,98,99,0,12,0,12,0,12,0,12,0,12,0,12,18,27,0,12,9,14,0,12,0,12,0,12]
[null,"$15,000 to $19,999",2,3,20,32,15,24,3,4,4,4,2,3,0,12,0,12,2,3,18,26,0,12,8,12,0,12,2,4,0,12]
[null,"$20,000 to $24,999",0,12,109,90,0,19,2,5,0,12,1,3,0,12,0,12,0,12,0,17,6,9,0,12,0,12,0,12,0,12]
[null,"$25,000 to $29,999",1,2,30,35,24,29,0,12,0,12,1,3,0,12,0,12,0,12,0,17,5,7,0,12,0,12,0,12,9,14]
[null,"$30,000 to $34,999",0,12,17,27,12,20,0,12,0,12,0,12,0,12,0,12,0,12,0,17,0,12,0,12,7,13,0,12,4,5]
[null,"$35,000 to $39,999",0,12,26,44,37,59,0,12,0,12,0,12,0,12,0,12,0,12,17,28,0,12,0,12,0,12,0,12,0,12]
[null,"$40,000 to $49,999",0,12,41,51,42,37,0,12,0,12,0,12,0,12,2,3,0,12,0,17,0,12,0,12,0,12,6,6,0,12]
[null,"$50,000 to $59,999",0,12,16,29,83,79,5,6,0,12,0,12,0,12,0,12,0,12,21,28,0,12,0,12,0,12,0,12,3,4]
[null,"$60,000 to $69,999",0,12,16,26,32,32,0,12,0,12,4,8,0,12,0,12,0,12,10,18,0,12,0,12,0,12,3,4,0,12]
[null,"$70,000 to $79,999",0,12,57,75,22,26,10,17,0,12,13,18,0,12,1,4,15,16,71,60,0,12,0,12,0,12,0,12,2,4]
[null,"$80,000 to $89,999",0,12,94,79,46,43,0,12,2,3,2,3,0,12,1,2,0,12,22,26,4,8,9,14,0,12,6,6,19,21]
[null,"$90,000 to $99,999",4,5,20,32,130,130,10,10,2,3,3,6,0,12,7,8,0,12,6,10,5,8,0,12,0,12,24,12,0,12]
[null,"$100,000 to $124,999",32,22,133,103,319,128,6,7,7,6,28,35,0,12,14,15,18,16,121,82,16,13,0,12,24,29,21,14,26,21]
[null,"$125,000 to $149,999",17,14,99,82,455,158,52,63,0,12,19,11,0,12,7,7,30,20,159,113,14,23,7,11,15,15,43,20,8,9]
[null,"$150,000 to $174,999",10,8,79,65,626,185,12,9,22,16,22,17,18,27,20,14,20,14,329,169,11,13,9,11,7,11,43,21,9,6]
[null,"$175,000 to $199,999",28,21,138,90,333,158,48,26,15,10,15,11,42,58,19,12,61,28,75,52,55,70,2,5,125,95,37,19,28,20]
[null,"$200,000 to $249,999",43,21,154,73,404,166,195,138,32,16,45,25,154,136,36,17,66,31,257,155,35,20,53,44,77,58,89,40,65,23]
[null,"$250,000 to $299,999",20,15,152,77,209,92,58,25,23,13,28,14,180,112,43,26,40,21,117,82,68,34,26,28,91,76,87,33,46,38]
[null,"$300,000 to $399,999",14,11,51,42,71,48,152,43,84,37,40,20,281,140,33,14,31,20,100,62,179,73,62,36,242,75,53,20,68,34]
[null,"$400,000 to $499,999",25,19,11,18,61,76,84,34,13,13,13,14,168,89,8,5,8,7,49,52,190,76,39,26,126,66,21,14,37,22]
[null,"$500,000 to $749,999",19,12,17,27,36,43,67,37,6,6,11,12,132,87,10,8,8,8,89,82,88,30,32,27,80,49,10,7,43,18]
[null,"$750,000 to $999,999",1,3,0,12,0,19,23,14,0,12,3,4,43,60,1,2,0,12,0,17,21,17,0,12,20,18,0,12,14,17]
[null,"$1,000,000 to $1,499,999",0,12,0,12,0,19,7,8,0,12,0,12,73,81,0,12,0,12,0,17,23,29,0,12,16,28,0,12,0,12]
[null,"$1,500,000 to $1,999,999",0,12,0,12,0,19,0,12,0,12,0,12,0,12,3,4,0,12,0,17,36,41,8,13,18,22,0,12,0,12]
[null,"$2,000,000 or more",0,12,0,12,0,19,0,12,1,4,0,12,0,12,0,12,0,12,0,17,0,12,0,12,46,34,0,12,0,12]
[]
[]
[null,"B25077. MEDIAN VALUE (Dollars)"]
[null,"Universe:  OWNER-OCCUPIED HOUSING UNITS"]
[null,"Data Set: 2018-2022 American Community Survey 5-Year Estimates"]
[]
[null,null,"Acworth",null,"Charlestown",null,"Claremont",null,"Cornish",null,"Croydon",null,"Goshen",null,"Grantham",null,"Langdon",null,"Lempster",null,"Newport",null,"Plainfield",null,"Springfield",null,"Sunapee",null,"Unity",null,"Washington"]
[null,null,"Estimate","Margin Of Error","Estimate","Margin Of Error","Estimate","Margin Of Error","Estimate","Margin Of Error","Estimate","Margin Of Error","Estimate","Margin Of Error","Estimate","Margin Of Error","Estimate","Margin Of Error","Estimate","Margin Of Error","Estimate","Margin Of Error","Estimate","Margin Of Error","Estimate","Margin Of Error","Estimate","Margin Of Error","Estimate","Margin Of Error","Estimate","Margin Of Error"]
[]
[null,"Median value (dollars)",216300,30628,134300,31844,157900,8186,269400,71410,296700,47540,216700,30322,353900,43460,243800,22695,202700,17442,171000,19411,387700,39209,314500,58989,341700,37568,220500,17320,269000,36936]
[]
[]
[]
[null,"Total:",794,509,922,89,1173,77,1239,160,1315,108,1019,218,1606,209,1133,221,1027,191,1183,124,1312,190,1140,281,1610,133,1117,167,1005,136]
[null,"Housing units with a mortgage (dollars)",1411,138,1156,99,1477,76,1509,99,1460,148,1461,236,1969,185,1450,183,1407,184,1450,159,1804,294,1649,90,1965,276,1457,94,1506,155]
[null,"Housing units without a mortgage (dollars)",561,93,529,41,617,57,598,60,432,145,581,41,817,129,617,170,522,84,642,96,781,59,663,58,773,131,527,36,624,61]
[]
[]
[]
[]
[]
[]
[]
[]
[]
[]
[]
[]
[]
[]
[]
[]
[]
[]
[]
[]
[null,"B25075. VALUE"]
[null,"Universe:  OWNER-OCCUPIED HOUSING UNITS"]
[null,"Data Set: 2013-2017 American Community Survey 5-Year Estimates"]
[]
[null,null,"Acworth",null,"Charlestown",null,"Claremont",null,"Cornish",null,"Croydon",null,"Goshen",null,"Grantham",null,"Langdon",null,"Lempster",null,"Newport",null,"Plainfield",null,"Springfield",null,"Sunapee",null,"Unity",null,"Washington"]
[null,null,"Estimate","Margin Of Error","Estimate","Margin Of Error","Estimate","Margin Of Error","Estimate","Margin Of Error","Estimate","Margin Of Error","Estimate","Margin Of Error","Estimate","Margin Of Error","Estimate","Margin Of Error","Estimate","Margin Of Error","Estimate","Margin Of Error","Estimate","Margin Of Error","Estimate","Margin Of Error","Estimate","Margin Of Error","Estimate","Margin Of Error","Estimate","Margin Of Error"]
[null,"Total:",388,61,1673,187,3163,298,641,70,241,43,206,37,1050,136,266,37,387,62,1793,232,821,94,380,67,1049,117,489,56,507,82]
[null,"Less than $10,000",0,11,32,38,17,27,9,14,4,6,0,11,0,11,0,11,3,4,30,34,12,12,0,11,7,13,13,14,4,5]
[null,"$10,000 to $14,999",5,5,73,65,31,31,0,11,0,11,0,11,0,11,0,11,0,11,14,23,0,11,0,11,9,13,0,11,0,11]
[null,"$15,000 to $19,999",2,4,75,79,0,18,0,11,0,11,2,3,0,11,5,6,0,11,14,22,5,7,0,11,0,11,5,6,0,11]
[null,"$20,000 to $24,999",0,11,0,16,0,18,0,11,0,11,0,11,0,11,0,11,0,11,0,16,10,9,0,11,0,11,0,11,0,11]
[null,"$25,000 to $29,999",0,11,47,43,17,28,3,6,0,11,0,11,0,11,0,11,0,11,0,16,3,5,0,11,0,11,0,11,0,11]
[null,"$30,000 to $34,999",0,11,38,37,23,27,0,11,1,3,0,11,0,11,0,11,0,11,14,21,0,11,0,11,0,11,0,11,0,11]
[null,"$35,000 to $39,999",0,11,0,16,26,43,4,6,0,11,0,11,0,11,0,11,0,11,0,16,5,7,0,11,0,11,0,11,0,11]
[null,"$40,000 to $49,999",6,9,15,24,27,27,4,6,2,3,0,11,0,11,0,11,0,11,129,108,9,10,12,18,24,31,8,11,0,11]
[null,"$50,000 to $59,999",2,3,91,81,59,45,0,11,0,11,10,10,0,11,0,11,10,8,15,25,6,8,0,11,15,17,0,11,8,15]
[null,"$60,000 to $69,999",5,5,86,71,108,54,3,5,0,11,0,11,0,11,0,11,3,4,0,16,6,9,0,11,0,11,4,5,16,15]
[null,"$70,000 to $79,999",8,9,60,63,126,65,6,6,0,11,15,15,0,11,2,3,3,4,59,50,0,11,0,11,0,11,28,20,0,11]
[null,"$80,000 to $89,999",5,6,55,62,208,88,0,11,13,12,3,4,0,11,4,4,17,17,27,32,5,8,18,15,0,11,20,11,3,4]
[null,"$90,000 to $99,999",10,12,33,40,233,104,3,6,10,7,4,6,0,11,12,11,18,18,42,40,9,9,9,10,0,11,0,11,6,6]
[null,"$100,000 to $124,999",58,25,150,87,540,152,29,18,16,15,12,8,45,39,12,8,37,19,169,76,27,18,15,15,27,31,19,12,12,9]
[null,"$125,000 to $149,999",29,15,205,112,555,137,29,21,18,17,38,20,88,80,25,11,36,22,305,132,44,31,25,23,39,39,23,16,46,23]
[null,"$150,000 to $174,999",85,37,232,110,594,173,28,17,13,8,18,10,65,63,19,12,77,28,350,133,46,26,30,20,129,60,34,20,102,38]
[null,"$175,000 to $199,999",32,19,104,68,267,107,46,30,32,19,21,12,99,79,39,19,60,28,129,73,25,17,50,23,12,19,88,27,36,19]
[null,"$200,000 to $249,999",19,13,214,110,212,96,114,36,35,15,38,17,275,115,63,25,56,30,293,151,136,49,38,25,201,87,82,32,145,66]
[null,"$250,000 to $299,999",47,19,93,65,84,45,128,39,50,24,22,16,64,45,33,18,40,24,85,58,116,41,49,26,124,74,82,31,35,20]
[null,"$300,000 to $399,999",40,20,70,51,15,24,131,40,12,11,20,14,260,93,15,10,15,15,86,68,162,55,79,33,149,61,48,22,69,22]
[null,"$400,000 to $499,999",20,18,0,16,9,17,52,20,19,12,3,5,89,66,22,15,6,6,0,16,66,25,45,25,124,88,30,20,10,8]
[null,"$500,000 to $749,999",8,6,0,16,0,18,34,16,8,9,0,11,65,36,11,10,0,11,32,25,104,44,10,8,54,37,5,6,13,9]
[null,"$750,000 to $999,999",2,4,0,16,0,18,6,5,5,10,0,11,0,11,2,4,0,11,0,16,20,16,0,11,72,47,0,11,2,4]
[null,"$1,000,000 to $1,499,999",5,5,0,16,0,18,0,11,0,11,0,11,0,11,2,3,6,4,0,16,5,8,0,11,34,25,0,11,0,11]
[null,"$1,500,000 to $1,999,999",0,11,0,16,12,20,9,8,0,11,0,11,0,11,0,11,0,11,0,16,0,11,0,11,0,11,0,11,0,11]
[null,"$2,000,000 or more",0,11,0,16,0,18,3,4,3,4,0,11,0,11,0,11,0,11,0,16,0,11,0,11,29,20,0,11,0,11]
[]
[]
[null,"B25077. MEDIAN VALUE (Dollars)"]
[null,"Universe:  OWNER-OCCUPIED HOUSING UNITS"]
[null,"Data Set: 2013-2017 American Community Survey 5-Year Estimates"]
[]
[null,null,"Acworth",null,"Charlestown",null,"Claremont",null,"Cornish",null,"Croydon",null,"Goshen",null,"Grantham",null,"Langdon",null,"Lempster",null,"Newport",null,"Plainfield",null,"Springfield",null,"Sunapee",null,"Unity",null,"Washington"]
[null,null,"Estimate","Margin Of Error","Estimate","Margin Of Error","Estimate","Margin Of Error","Estimate","Margin Of Error","Estimate","Margin Of Error","Estimate","Margin Of Error","Estimate","Margin Of Error","Estimate","Margin Of Error","Estimate","Margin Of Error","Estimate","Margin Of Error","Estimate","Margin Of Error","Estimate","Margin Of Error","Estimate","Margin Of Error","Estimate","Margin Of Error","Estimate","Margin Of Error"]
[]
[null,"Median value (dollars)",168800,9730,134900,17700,132500,7762,266600,16764,216400,41494,176200,28941,241500,27031,211900,16658,171600,10660,155600,9785,276900,25396,240800,43071,274800,40002,201500,15904,207100,14085]
[]
[]
[]
[]
[]
[null,"B25075. VALUE"]
[null,"Universe:  OWNER-OCCUPIED HOUSING UNITS"]
[null,"Data Set: 2008-2012 American Community Survey 5-Year Estimates"]
[]
[null,null,"Acworth",null,"Charlestown",null,"Claremont",null,"Cornish",null,"Croydon",null,"Goshen",null,"Grantham",null,"Langdon",null,"Lempster",null,"Newport",null,"Plainfield",null,"Springfield",null,"Sunapee",null,"Unity",null,"Washington"]
[null,null,"Estimate","Margin Of Error","Estimate","Margin Of Error","Estimate","Margin Of Error","Estimate","Margin Of Error","Estimate","Margin Of Error","Estimate","Margin Of Error","Estimate","Margin Of Error","Estimate","Margin Of Error","Estimate","Margin Of Error","Estimate","Margin Of Error","Estimate","Margin Of Error","Estimate","Margin Of Error","Estimate","Margin Of Error","Estimate","Margin Of Error","Estimate","Margin Of Error"]
[null,null,222,44,1843,158,3466,228,552,65,240,40,273,44,1003,96,247,44,365,56,1786,194,817,78,453,59,1098,155,546,50,428,64]
[null,"Less than $10,000",0,11,7,10,29,28,3,4,0,11,1,3,0,11,4,5,0,11,13,22,7,7,0,11,0,11,2,5,0,11]
[null,"$10,000 to $14,999",3,4,71,49,24,24,0,11,2,3,0,11,0,11,0,11,4,6,10,16,3,6,2,3,0,11,0,11,0,11]
[null,"$15,000 to $19,999",0,11,133,93,43,42,9,9,4,6,0,11,0,11,2,3,4,6,24,27,0,11,8,8,0,11,3,5,3,4]
[null,"$20,000 to $24,999",0,11,62,61,31,26,0,11,0,11,0,11,0,11,0,11,6,7,71,78,5,8,2,3,0,11,0,11,0,11]
[null,"$25,000 to $29,999",0,11,41,45,48,38,0,11,0,11,0,11,0,11,2,3,7,10,15,24,0,11,4,7,0,11,3,4,3,4]
[null,"$30,000 to $34,999",0,11,64,51,18,28,3,4,0,11,0,11,0,11,0,11,0,11,0,16,4,7,0,11,0,11,0,11,5,8]
[null,"$35,000 to $39,999",0,11,49,48,0,18,2,4,3,6,2,3,0,11,0,11,3,5,25,39,5,7,0,11,0,11,0,11,0,11]
[null,"$40,000 to $49,999",0,11,29,29,33,37,3,4,0,11,0,11,0,11,0,11,4,6,28,33,6,10,11,17,7,12,0,11,3,5]
[null,"$50,000 to $59,999",0,11,51,39,35,34,11,15,4,5,6,10,0,11,0,11,8,8,28,30,5,7,3,5,0,11,9,14,3,4]
[null,"$60,000 to $69,999",0,11,95,67,79,58,0,11,0,11,0,11,19,30,0,11,0,11,12,20,0,11,6,11,0,11,3,4,0,11]
[null,"$70,000 to $79,999",4,4,108,79,122,63,0,11,0,11,13,15,0,11,0,11,3,4,38,37,32,31,0,11,0,11,3,4,0,11]
[null,"$80,000 to $89,999",9,10,36,36,180,91,12,15,5,6,8,7,0,11,3,4,22,22,85,121,0,11,10,16,0,11,14,10,0,11]
[null,"$90,000 to $99,999",4,4,42,41,146,77,0,11,3,5,0,11,4,7,18,15,6,8,34,42,14,12,0,11,18,21,12,9,0,11]
[null,"$100,000 to $124,999",16,16,97,71,399,114,21,12,19,17,19,9,12,12,17,16,31,22,193,86,66,51,10,11,30,31,68,31,23,14]
[null,"$125,000 to $149,999",29,18,269,107,682,174,27,22,20,16,20,13,19,23,17,15,33,19,159,100,28,20,36,23,23,26,60,24,39,23]
[null,"$150,000 to $174,999",36,17,300,135,680,156,56,25,28,17,37,18,7,9,29,18,68,28,225,87,24,14,29,18,37,34,66,25,41,15]
[null,"$175,000 to $199,999",26,16,134,80,368,109,74,31,14,11,13,12,9,10,28,23,50,27,134,67,47,27,26,14,43,27,48,22,69,33]
[null,"$200,000 to $249,999",45,23,135,73,225,71,102,32,71,29,70,21,218,81,42,21,49,27,335,109,75,35,76,36,134,74,130,41,67,24]
[null,"$250,000 to $299,999",25,21,79,53,119,50,74,28,34,16,25,14,168,56,27,17,30,18,214,86,80,37,108,44,184,86,51,20,42,17]
[null,"$300,000 to $399,999",14,10,19,26,186,97,99,31,23,16,37,17,388,76,38,22,23,17,103,71,204,63,87,34,225,88,45,23,53,30]
[null,"$400,000 to $499,999",0,11,8,14,0,18,19,13,6,7,11,7,51,32,15,19,9,13,24,29,76,38,6,8,152,89,21,18,33,25]
[null,"$500,000 to $749,999",0,11,14,23,16,19,21,16,0,11,0,11,92,53,5,8,5,5,16,26,99,41,14,13,68,43,3,4,23,13]
[null,"$750,000 to $999,999",8,9,0,16,0,18,7,8,0,11,11,14,7,10,0,11,0,11,0,16,10,12,13,16,34,31,5,7,17,19]
[null,"$1,000,000 or more",3,4,0,16,3,7,9,8,4,8,0,11,9,11,0,11,0,11,0,16,27,19,2,6,143,63,0,11,4,6]
[null,null,16,16,97,71,399,114,21,12,19,17,19,9,12,12,17,16,31,22,193,86,66,51,10,11,30,31,68,31,23,14]
[]
[]
[]
[null,"B25077.MEDIAN VALUE (Dollars)"]
[null,"Universe:  OWNER-OCCUPIED HOUSING UNITS"]
[null,"Data Set: 2008-2012 American Community Survey 5-Year Estimates"]
[]
[null,null,"Acworth",null,"Charlestown",null,"Claremont",null,"Cornish",null,"Croydon",null,"Goshen",null,"Grantham",null,"Langdon",null,"Lempster",null,"Newport",null,"Plainfield",null,"Springfield",null,"Sunapee",null,"Unity",null,"Washington"]
[null,null,"Esitimate","Margin Of Error","Esitimate","Margin Of Error","Esitimate","Margin Of Error","Esitimate","Margin Of Error","Esitimate","Margin Of Error","Esitimate","Margin Of Error","Esitimate","Margin Of Error","Esitimate","Margin Of Error","Esitimate","Margin Of Error","Esitimate","Margin Of Error","Esitimate","Margin Of Error","Esitimate","Margin Of Error","Esitimate","Margin Of Error","Esitimate","Margin Of Error","Esitimate","Margin Of Error"]
[]
[null,"Median value (dollars)",184600,21867,128400,18784,145000,6698,227000,16527,212700,17704,212500,14559,311700,17844,204200,28622,168900,10722,167600,16785,303700,33800,251600,23449,332400,35605,190600,18309,218700,23909]

{"sheet":"ACS_Table_B25088","index":68,"n_rows":62,"n_cols":32,"rows_kept":62,"cut":false,"hidden":true,"merged":[]}
[null,"B25088. MEDIAN SELECTED MONTHLY OWNER COSTS (DOLLARS) BY MORTGAGE STATUS"]
[null,"Universe:  OWNER-OCCUPIED HOUSING UNITS"]
[null,"Data Set: 2018-2022 American Community Survey 5-Year Estimates"]
[]
[null,null,"Acworth",null,"Charlestown",null,"Claremont",null,"Cornish",null,"Croydon",null,"Goshen",null,"Grantham",null,"Langdon",null,"Lempster",null,"Newport",null,"Plainfield",null,"Springfield",null,"Sunapee",null,"Unity",null,"Washington"]
[null,null,"Estimate","Margin Of Error","Estimate","Margin Of Error","Estimate","Margin Of Error","Estimate","Margin Of Error","Estimate","Margin Of Error","Estimate","Margin Of Error","Estimate","Margin Of Error","Estimate","Margin Of Error","Estimate","Margin Of Error","Estimate","Margin Of Error","Estimate","Margin Of Error","Estimate","Margin Of Error","Estimate","Margin Of Error","Estimate","Margin Of Error","Estimate","Margin Of Error"]
[]
[null,"Total:",1447,320,966,132,1266,138,1477,256,1508,321,1289,144,1449,341,1382,310,1138,244,1116,134,1897,212,1410,206,1525,227,1091,212,1086,182]
[null,"Housing units with a mortgage (dollars)",1701,209,1435,120,1721,97,1821,368,1900,191,1572,257,2370,390,1864,325,1625,238,1434,166,2598,239,1839,560,1865,168,1573,135,1711,206]
[null,"Housing units without a mortgage (dollars)",755,82,749,91,863,56,890,82,726,94,661,64,1001,95,636,207,655,92,794,70,902,110,957,172,776,115,749,63,708,84]
[]
[]
[]
[]
[]
[]
[]
[]
[]
[]
[]
[]
[]
[]
[]
[]
[]
[]
[]
[]
[]
[]
[]
[]
[]
[]
[]
[]
[]
[null,"B25088. MEDIAN SELECTED MONTHLY OWNER COSTS (DOLLARS) BY MORTGAGE STATUS"]
[null,"Universe:  OWNER-OCCUPIED HOUSING UNITS"]
[null,"Data Set: 2013-2017 American Community Survey 5-Year Estimates"]
[]
[null,null,"Acworth",null,"Charlestown",null,"Claremont",null,"Cornish",null,"Croydon",null,"Goshen",null,"Grantham",null,"Langdon",null,"Lempster",null,"Newport",null,"Plainfield",null,"Springfield",null,"Sunapee",null,"Unity",null,"Washington"]
[null,null,"Estimate","Margin Of Error","Estimate","Margin Of Error","Estimate","Margin Of Error","Estimate","Margin Of Error","Estimate","Margin Of Error","Estimate","Margin Of Error","Estimate","Margin Of Error","Estimate","Margin Of Error","Estimate","Margin Of Error","Estimate","Margin Of Error","Estimate","Margin Of Error","Estimate","Margin Of Error","Estimate","Margin Of Error","Estimate","Margin Of Error","Estimate","Margin Of Error"]
[]
[null,"Total:",884,99,849,116,1242,100,1232,181,1112,328,1017,127,1568,132,1302,114,819,98,1274,196,1268,159,1205,186,1636,238,1218,116,1289,124]
[null,"Housing units with a mortgage (dollars)",1489,148,1518,147,1490,76,1564,173,1580,78,1216,105,1723,227,1458,135,1283,139,1659,119,1718,126,1561,179,1903,252,1575,147,1561,152]
[null,"Housing units without a mortgage (dollars)",629,35,558,85,757,37,759,61,505,121,684,85,845,110,732,82,557,41,630,81,849,46,729,173,830,212,769,102,623,67]
[]
[]
[]
[null,"B25088. MEDIAN SELECTED MONTHLY OWNER COSTS (DOLLARS) BY MORTGAGE STATUS"]
[null,"Universe:  OWNER-OCCUPIED HOUSING UNITS"]
[null,"Data Set: 2008-2012 American Community Survey 5-Year Estimates"]
[]
[null,null,"Acworth",null,"Charlestown",null,"Claremont",null,"Cornish",null,"Croydon",null,"Goshen",null,"Grantham",null,"Langdon",null,"Lempster",null,"Newport",null,"Plainfield",null,"Springfield",null,"Sunapee",null,"Unity",null,"Washington"]
[null,null,"Estimate","Margin Of Error","Estimate","Margin Of Error","Estimate","Margin Of Error","Estimate","Margin Of Error","Estimate","Margin Of Error","Estimate","Margin Of Error","Estimate","Margin Of Error","Estimate","Margin Of Error","Estimate","Margin Of Error","Estimate","Margin Of Error","Estimate","Margin Of Error","Estimate","Margin Of Error","Estimate","Margin Of Error","Estimate","Margin Of Error","Estimate","Margin Of Error"]
[]
[null,"Total:",794,509,922,89,1173,77,1239,160,1315,108,1019,218,1606,209,1133,221,1027,191,1183,124,1312,190,1140,281,1610,133,1117,167,1005,136]
[null,"Housing units with a mortgage (dollars)",1411,138,1156,99,1477,76,1509,99,1460,148,1461,236,1969,185,1450,183,1407,184,1450,159,1804,294,1649,90,1965,276,1457,94,1506,155]
[null,"Housing units without a mortgage (dollars)",561,93,529,41,617,57,598,60,432,145,581,41,817,129,617,170,522,84,642,96,781,59,663,58,773,131,527,36,624,61]

{"sheet":"ACS_Table_B25091","index":69,"n_rows":220,"n_cols":32,"rows_kept":220,"cut":false,"hidden":true,"merged":[]}
[null,"B25091. MORTGAGE STATUS BY SELECTED MONTHLY OWNER COSTS AS A PERCENTAGE OF HOUSEHOLD INCOME IN THE PAST 12 MONTHS "]
[null,"Universe:  OWNER-OCCUPIED HOUSING UNITS"]
[null,"Data Set: 2018-2022 American Community Survey 5-Year Estimates"]
[]
[null,null,"Acworth",null,"Charlestown",null,"Claremont",null,"Cornish",null,"Croydon",null,"Goshen",null,"Grantham",null,"Langdon",null,"Lempster",null,"Newport",null,"Plainfield",null,"Springfield",null,"Sunapee",null,"Unity",null,"Washington"]
[null,null,"Estimate","Margin Of Error","Estimate","Margin Of Error","Estimate","Margin Of Error","Estimate","Margin Of Error","Estimate","Margin Of Error","Estimate","Margin Of Error","Estimate","Margin Of Error","Estimate","Margin Of Error","Estimate","Margin Of Error","Estimate","Margin Of Error","Estimate","Margin Of Error","Estimate","Margin Of Error","Estimate","Margin Of Error"]
[null,null,216,40,1328,180,3082,304,737,146,211,47,250,71,1091,138,205,43,299,59,1479,250,760,85,264,79,894,149,447,72,381,68]
[null,"Housing units with a mortgage:",133,40,591,147,1730,261,405,137,138,41,149,57,564,152,118,37,169,44,872,202,491,94,142,56,527,108,210,52,161,40]
[null,"Less than 10.0 percent",8,13,42,39,58,49,6,6,6,6,2,4,196,159,31,23,15,18,95,83,15,12,3,5,46,37,5,6,6,6]
[null,"10.0 to 14.9 percent",13,13,79,58,250,111,52,25,13,9,19,12,60,62,8,6,24,18,162,103,59,27,44,41,96,63,41,20,31,16]
[null,"15.0 to 19.9 percent",12,8,98,75,298,153,40,20,32,17,14,8,38,41,26,14,41,24,198,82,122,63,23,27,106,62,41,26,19,19]
[null,"20.0 to 24.9 percent",22,23,30,36,361,162,184,129,7,6,4,4,99,62,29,18,35,19,107,101,114,71,14,15,55,37,38,19,26,19]
[null,"25.0 to 29.9 percent",25,16,89,59,196,132,25,19,43,31,30,22,0,12,10,8,24,19,19,22,97,75,7,8,75,48,20,13,20,14]
[null,"30.0 to 34.9 percent",10,12,22,31,177,124,39,24,10,11,31,36,71,55,2,3,7,7,78,65,2,5,0,12,35,36,10,10,31,21]
[null,"35.0 to 39.9 percent",14,10,44,49,138,93,21,16,6,6,14,16,0,12,2,3,6,5,59,51,48,35,9,13,12,18,7,6,14,11]
[null,"40.0 to 49.9 percent",5,5,130,101,83,69,12,9,5,4,10,8,0,12,2,4,14,11,70,80,9,9,7,11,25,33,18,13,7,7]
[null,"50.0 percent or more",24,24,57,54,169,109,26,22,16,11,25,18,100,84,8,10,3,5,34,34,25,20,35,25,49,44,30,19,7,6]
[null,"Not computed",0,12,0,12,0,19,0,12,0,12,0,12,0,12,0,12,0,12,50,76,0,12,0,12,28,44,0,12,0,12]
[null,"Housing units without a mortgage:",83,26,737,161,1352,239,332,92,73,27,101,33,527,190,87,24,130,41,607,188,269,76,122,47,367,121,237,55,220,51]
[null,"Less than 10.0 percent",32,16,129,70,261,132,117,36,28,15,48,23,170,135,30,15,40,21,226,112,58,29,53,27,125,59,43,20,104,43]
[null,"10.0 to 14.9 percent",25,17,164,109,128,76,59,25,12,10,5,6,108,76,15,10,9,9,130,86,93,57,13,16,76,50,56,28,13,9]
[null,"15.0 to 19.9 percent",4,4,162,123,370,175,35,23,8,7,8,9,51,47,26,16,19,11,19,27,19,17,3,5,23,30,29,15,48,22]
[null,"20.0 to 24.9 percent",3,5,120,105,143,71,15,12,9,8,3,4,41,62,2,3,40,27,31,35,5,7,10,12,92,91,30,17,17,16]
[null,"25.0 to 29.9 percent",2,3,0,12,109,67,4,6,2,4,8,9,0,12,8,6,2,3,20,24,8,9,20,18,11,13,18,18,8,7]
[null,"30.0 to 34.9 percent",0,12,17,29,107,71,14,11,5,6,12,11,36,54,0,12,4,6,65,60,30,35,0,12,16,27,8,6,8,13]
[null,"35.0 to 39.9 percent",0,12,9,16,32,38,3,5,0,12,2,3,0,12,2,3,0,12,0,17,15,14,8,13,0,12,14,15,0,12]
[null,"40.0 to 49.9 percent",3,4,18,29,32,31,21,22,0,12,7,9,36,63,0,12,8,12,0,17,0,12,0,12,19,24,10,8,10,13]
[null,"50.0 percent or more",12,12,36,60,80,78,64,68,9,12,8,11,85,91,4,4,3,4,65,66,41,32,15,17,5,9,18,10,2,3]
[null,"Not computed",2,3,82,85,90,97,0,12,0,12,0,12,0,12,0,12,5,7,51,86,0,12,0,12,0,12,11,11,10,17]
[]
[]
[]
[null,"Calculated B25091. MORTGAGE STATUS BY SELECTED MONTHLY OWNER COSTS AS A PERCENTAGE OF HOUSEHOLD INCOME IN THE PAST 12 MONTHS "]
[null,"Universe:  OWNER-OCCUPIED HOUSING UNITS"]
[null,"Data Set: 2018-2022 American Community Survey 5-Year Estimates"]
[]
[null,null,"Acworth",null,"Charlestown",null,"Claremont",null,"Cornish",null,"Croydon",null,"Goshen",null,"Grantham",null,"Langdon",null,"Lempster",null,"Newport",null,"Plainfield",null,"Springfield",null,"Sunapee",null,"Unity",null,"Washington"]
[null,null,"Estimate","Margin Of Error","Estimate","Margin Of Error","Estimate","Margin Of Error","Estimate","Margin Of Error","Estimate","Margin Of Error","Estimate","Margin Of Error","Estimate","Margin Of Error","Estimate","Margin Of Error","Estimate","Margin Of Error","Estimate","Margin Of Error","Estimate","Margin Of Error","Estimate","Margin Of Error","Estimate","Margin Of Error","Estimate","Margin Of Error","Estimate","Margin Of Error"]
[null,"Total:",{"$f":"C7","v":216},{"$f":"D7","v":40},{"$f":"E7","v":1328},180,3082,304,737,146,211,47,250,71,1091,138,205,43,299,59,1479,250,760,85,264,79,894,149,447,72,381,68]
[null,"Less than 10.0 percent",{"$f":"C9+C20","v":40},{"$f":"SQRT((D9^2)+(D20^2))","v":20.615528128088304},{"$f":"E9+E20","v":171},{"$f":"SQRT((F9^2)+(F20^2))","v":80.131142510262507},{"$f":"G9+G20","v":319},{"$f":"SQRT((H9^2)+(H20^2))","v":140.80127840328723},{"$f":"I9+I20","v":123},{"$f":"SQRT((J9^2)+(J20^2))","v":36.496575181789318},{"$f":"K9+K20","v":34},{"$f":"SQRT((L9^2)+(L20^2))","v":16.15549442140351},{"$f":"M9+M20","v":50},{"$f":"SQRT((N9^2)+(N20^2))","v":23.345235059857504},{"$f":"O9+O20","v":366},{"$f":"SQRT((P9^2)+(P20^2))","v":208.58091954922435},{"$f":"Q9+Q20","v":61},{"$f":"SQRT((R9^2)+(R20^2))","v":27.459060435491963},{"$f":"S9+S20","v":55},{"$f":"SQRT((T9^2)+(T20^2))","v":27.658633371878661},{"$f":"U9+U20","v":321},{"$f":"SQRT((V9^2)+(V20^2))","v":139.40229553346674},{"$f":"W9+W20","v":73},{"$f":"SQRT((X9^2)+(X20^2))","v":31.384709652950431},{"$f":"Y9+Y20","v":56},{"$f":"SQRT((Z9^2)+(Z20^2))","v":27.459060435491963},{"$f":"AA9+AA20","v":171},{"$f":"SQRT((AB9^2)+(AB20^2))","v":69.641941385920603},{"$f":"AC9+AC20","v":48},{"$f":"SQRT((AD9^2)+(AD20^2))","v":20.880613017821101},{"$f":"AE9+AE20","v":110},{"$f":"SQRT((AF9^2)+(AF20^2))","v":43.416586692184822}]
[null,"10.0 to 14.9 percent",38,21.400934559032695,243,123.47064428438041,378,134.52509059651288,111,35.355339059327378,25,13.45362404707371,24,13.416407864998739,168,98.081598681913832,23,11.661903789690601,33,20.124611797498108,292,134.18271125595876,152,63.071388124885914,57,44.011362169330773,172,80.430093870391573,97,34.409301068170507,44,18.357559750685819]
[null,"15.0 to 19.9 percent",16,8.9442719099991592,260,144.06248644251562,668,232.4521456128121,75,30.479501308256342,40,18.384776310850235,22,12.041594578792296,89,62.369864518050704,52,21.2602916254693,60,26.40075756488817,217,86.330759292386631,141,65.253352404301808,26,27.459060435491963,129,68.87670143089025,70,30.016662039607269,67,29.068883707497267]
[null,"20.0 to 24.9 percent",25,23.53720459187964,150,111,504,176.87566254292872,199,129.5569372901351,16,10,7,5.6568542494923806,140,87.681240867131891,31,18.248287590894659,75,33.015148038438355,138,106.89246933250256,119,71.344235926947874,24,19.209372712298546,147,98.2344135219425,68,25.495097567963924,43,24.839484696748443]
[null,"25.0 to 29.9 percent",27,16.278820596099706,89,60.207972893961475,305,148.03040228277433,29,19.924858845171276,45,31.256999216175569,38,23.769728648009426,0,16.970562748477139,18,10,26,19.235384061671343,39,32.557641192199412,105,75.538069872085032,27,19.697715603592208,86,49.729267036625423,38,22.203603311174518,28,15.652475842498529]
[null,"30.0 to 34.9 percent",10,16.970562748477139,39,42.449970553582247,284,142.88806808127822,53,26.40075756488817,15,12.529964086141668,43,37.643060449437421,107,77.077882690172544,2,12.369316876852981,11,9.2195444572928871,143,88.459030064770658,32,35.355339059327378,0,16.970562748477139,51,45,18,11.661903789690601,39,24.698178070456937]
[null,"35.0 to 39.9 percent",14,15.620499351813308,53,51.546095875439491,170,100.46392387319938,24,16.763054614240211,6,13.416407864998739,16,16.278820596099706,0,16.970562748477139,4,4.2426406871192848,6,13,59,53.758720222862451,63,37.696153649941529,17,18.384776310850235,12,21.633307652783937,21,16.15549442140351,14,16.278820596099706]
[null,"40.0 to 49.9 percent",8,6.4031242374328485,148,105.08092119885512,115,75.643902596309772,33,23.769728648009426,5,12.649110640673518,17,12.041594578792296,36,64.132674979295857,2,12.649110640673518,22,16.278820596099706,70,81.786306922369349,9,15,7,16.278820596099706,44,40.80441152620633,28,15.264337522473747,17,14.7648230602334]
[null,"50.0 percent or more",36,26.832815729997478,93,80.721744282442259,249,134.03357788255897,90,71.470273540822546,25,16.278820596099706,33,21.095023109728988,185,123.84264209067892,12,10.770329614269007,6,6.4031242374328485,99,74.242844773082339,66,37.735924528226413,50,30.232432915661949,54,44.911023145771239,48,21.470910553583888,9,6.7082039324993694]
[null,"Not computed",{"$f":"C29","v":2},{"$f":"D29","v":3},{"$f":"E29","v":82},85,90,97,0,12,0,12,0,12,0,12,0,12,5,7,51,86,0,12,0,12,0,12,11,11,10,17]
[]
[]
[]
[]
[null,"Calculated MONTHLY OWNER COSTS AS A PERCENTAGE OF HOUSEHOLD INCOME IN THE PAST 12 MONTHS "]
[null,"Universe:  OWNER-OCCUPIED HOUSING UNITS"]
[null,"Data Set: 2018-2022 American Community Survey 5-Year Estimates"]
[null,null,"Acworth",null,"Charlestown",null,"Claremont",null,"Cornish",null,"Croydon",null,"Goshen",null,"Grantham",null,"Langdon",null,"Lempster",null,"Newport",null,"Plainfield",null,"Springfield",null,"Sunapee",null,"Unity",null,"Washington"]
[null,null,"Estimate","Margin Of Error","Estimate","Margin Of Error","Estimate","Margin Of Error","Estimate","Margin Of Error","Estimate","Margin Of Error","Estimate","Margin Of Error","Estimate","Margin Of Error","Estimate","Margin Of Error","Estimate","Margin Of Error","Estimate","Margin Of Error","Estimate","Margin Of Error","Estimate","Margin Of Error","Estimate","Margin Of Error","Estimate","Margin Of Error","Estimate","Margin Of Error"]
[null,"Total:",{"$f":"C39","v":216},{"$f":"D39","v":40},1328,180,3082,304,737,146,211,47,250,71,1091,138,205,43,299,59,1479,250,760,85,{"$f":"Y39","v":264},79,894,149,447,72,381,68]
[null,"Less than 20% of HH Income",{"$f":"C40+C41+C42","v":94},{"$f":"SQRT((D40^2)+(D41^2)+(D42^2))","v":31.0322412983658},{"$f":"E40+E41+E42","v":674},{"$f":"SQRT((F40^2)+(F41^2)+(F42^2))","v":205.96116138728681},{"$f":"G40+G41+G42","v":1365},{"$f":"SQRT((H40^2)+(H41^2)+(H42^2))","v":303.2424772356274},{"$f":"I40+I41+I42","v":309},{"$f":"SQRT((J40^2)+(J41^2)+(J42^2))","v":59.253691868102194},{"$f":"K40+K41+K42","v":99},{"$f":"SQRT((L40^2)+(L41^2)+(L42^2))","v":27.928480087537881},{"$f":"M40+M41+M42","v":96},{"$f":"SQRT((N40^2)+(N41^2)+(N42^2))","v":29.49576240750525},{"$f":"O40+O41+O42","v":623},{"$f":"SQRT((P40^2)+(P41^2)+(P42^2))","v":238.78023368779921},{"$f":"Q40+Q41+Q42","v":136},{"$f":"SQRT((R40^2)+(R41^2)+(R42^2))","v":36.63331816802841},{"$f":"S40+S41+S42","v":148},{"$f":"SQRT((T40^2)+(T41^2)+(T42^2))","v":43.208795400936602},{"$f":"U40+U41+U42","v":830},{"$f":"SQRT((V40^2)+(V41^2)+(V42^2))","v":211.87496312684044},{"$f":"W40+W41+W42","v":366},{"$f":"SQRT((X40^2)+(X41^2)+(X42^2))","v":96.026038135497402},{"$f":"Y40+Y41+Y42","v":139},{"$f":"SQRT((Z40^2)+(Z41^2)+(Z42^2))","v":58.694122363316758},{"$f":"AA40+AA41+AA42","v":472},{"$f":"SQRT((AB40^2)+(AB41^2)+(AB42^2))","v":126.73989111562311},{"$f":"AC40+AC41+AC42","v":215},{"$f":"SQRT((AD40^2)+(AD41^2)+(AD42^2))","v":50.209560842532767},{"$f":"AE40+AE41+AE42","v":221},{"$f":"SQRT((AF40^2)+(AF41^2)+(AF42^2))","v":55.380501984001555}]
[null," 20% to 29.9% of HH Income",{"$f":"C43+C44","v":52},{"$f":"SQRT((D43^2)+(D44^2))","v":28.61817604250837},{"$f":"E43+E44","v":239},{"$f":"SQRT((F43^2)+(F44^2))","v":126.2774722585149},{"$f":"G43+G44","v":809},{"$f":"SQRT((H43^2)+(H44^2))","v":230.64691630281987},{"$f":"I43+I44","v":228},{"$f":"SQRT((J43^2)+(J44^2))","v":131.08012816594282},{"$f":"K43+K44","v":61},{"$f":"SQRT((L43^2)+(L44^2))","v":32.817678162843876},{"$f":"M43+M44","v":45},{"$f":"SQRT((N43^2)+(N44^2))","v":24.433583445741231},{"$f":"O43+O44","v":140},{"$f":"SQRT((P43^2)+(P44^2))","v":89.308454247064432},{"$f":"Q43+Q44","v":49},{"$f":"SQRT((R43^2)+(R44^2))","v":20.808652046684813},{"$f":"S43+S44","v":101},{"$f":"SQRT((T43^2)+(T44^2))","v":38.209946349085598},{"$f":"U43+U44","v":177},{"$f":"SQRT((V43^2)+(V44^2))","v":111.74077143102244},{"$f":"W43+W44","v":224},{"$f":"SQRT((X43^2)+(X44^2))","v":103.90380166288431},{"$f":"Y43+Y44","v":51},{"$f":"SQRT((Z43^2)+(Z44^2))","v":27.513632984395208},{"$f":"AA43+AA44","v":233},{"$f":"SQRT((AB43^2)+(AB44^2))","v":110.1044958210154},{"$f":"AC43+AC44","v":106},{"$f":"SQRT((AD43^2)+(AD44^2))","v":33.808283008753932},{"$f":"AE43+AE44","v":71},{"$f":"SQRT((AF43^2)+(AF44^2))","v":29.3598365118064}]
[null," Less Than 30% of HH Income",{"$f":"C40+C41+C42+C43+C44","v":146},{"$f":"SQRT((D40^2)+(D41^2)+(D42^2)+(D43^2)+(D44^2))","v":42.213741838410868},{"$f":"E40+E41+E42+E43+E44","v":913},{"$f":"SQRT((F40^2)+(F41^2)+(F42^2)+(F43^2)+(F44^2))","v":241.59056272959009},{"$f":"G40+G41+G42+G43+G44","v":2174},{"$f":"SQRT((H40^2)+(H41^2)+(H42^2)+(H43^2)+(H44^2))","v":380.99081353754451},{"$f":"I40+I41+I42+I43+I44","v":537},{"$f":"SQRT((J40^2)+(J41^2)+(J42^2)+(J43^2)+(J44^2))","v":143.85061696079026},{"$f":"K40+K41+K42+K43+K44","v":160},{"$f":"SQRT((L40^2)+(L41^2)+(L42^2)+(L43^2)+(L44^2))","v":43.092922852830483},{"$f":"M40+M41+M42+M43+M44","v":141},{"$f":"SQRT((N40^2)+(N41^2)+(N42^2)+(N43^2)+(N44^2))","v":38.301436004411116},{"$f":"O40+O41+O42+O43+O44","v":763},{"$f":"SQRT((P40^2)+(P41^2)+(P42^2)+(P43^2)+(P44^2))","v":254.93528590605106},{"$f":"Q40+Q41+Q42+Q43+Q44","v":185},{"$f":"SQRT((R40^2)+(R41^2)+(R42^2)+(R43^2)+(R44^2))","v":42.130748865881799},{"$f":"S40+S41+S42+S43+S44","v":249},{"$f":"SQRT((T40^2)+(T41^2)+(T42^2)+(T43^2)+(T44^2))","v":57.680152565678952},{"$f":"U40+U41+U42+U43+U44","v":1007},{"$f":"SQRT((V40^2)+(V41^2)+(V42^2)+(V43^2)+(V44^2))","v":239.53496613229561},{"$f":"W40+W41+W42+W43+W44","v":590},{"$f":"SQRT((X40^2)+(X41^2)+(X42^2)+(X43^2)+(X44^2))","v":141.4814475470194},{"$f":"Y40+Y41+Y42+Y43+Y44","v":190},{"$f":"SQRT((Z40^2)+(Z41^2)+(Z42^2)+(Z43^2)+(Z44^2))","v":64.822835482567413},{"$f":"AA40+AA41+AA42+AA43+AA44","v":705},{"$f":"SQRT((AB40^2)+(AB41^2)+(AB42^2)+(AB43^2)+(AB44^2))","v":167.88686666919483},{"$f":"AC40+AC41+AC42+AC43+AC44","v":321},{"$f":"SQRT((AD40^2)+(AD41^2)+(AD42^2)+(AD43^2)+(AD44^2))","v":60.530983801686226},{"$f":"AE40+AE41+AE42+AE43+AE44","v":292},{"$f":"SQRT((AF40^2)+(AF41^2)+(AF42^2)+(AF43^2)+(AF44^2))","v":62.681735776859277}]
[null," 30% or More of HH Income",{"$f":"C45+C46+C47+C48","v":68},{"$f":"SQRT((D45^2)+(D46^2)+(D47^2)+(D48^2))","v":35.958309192730404},{"$f":"E45+E46+E47+E48","v":333},{"$f":"SQRT((F45^2)+(F46^2)+(F47^2)+(F48^2))","v":148.38126566382968},{"$f":"G45+G46+G47+G48","v":818},{"$f":"SQRT((H45^2)+(H46^2)+(H47^2)+(H48^2))","v":232.8024913956034},{"$f":"I45+I46+I47+I48","v":200},{"$f":"SQRT((J45^2)+(J46^2)+(J47^2)+(J48^2))","v":81.553663314409121},{"$f":"K45+K46+K47+K48","v":51},{"$f":"SQRT((L45^2)+(L46^2)+(L47^2)+(L48^2))","v":27.604347483684521},{"$f":"M45+M46+M47+M48","v":109},{"$f":"SQRT((N45^2)+(N46^2)+(N47^2)+(N48^2))","v":47.665501151251938},{"$f":"O45+O46+O47+O48","v":328},{"$f":"SQRT((P45^2)+(P46^2)+(P47^2)+(P48^2))","v":160.2466848331035},{"$f":"Q45+Q46+Q47+Q48","v":20},{"$f":"SQRT((R45^2)+(R46^2)+(R47^2)+(R48^2))","v":21.142374511865974},{"$f":"S45+S46+S47+S48","v":45},{"$f":"SQRT((T45^2)+(T46^2)+(T47^2)+(T48^2))","v":23.664319132398465},{"$f":"U45+U46+U47+U48","v":371},{"$f":"SQRT((V45^2)+(V46^2)+(V47^2)+(V48^2))","v":151.38031576133008},{"$f":"W45+W46+W47+W48","v":170},{"$f":"SQRT((X45^2)+(X46^2)+(X47^2)+(X48^2))","v":65.726706900619931},{"$f":"Y45+Y46+Y47+Y48","v":74},{"$f":"SQRT((Z45^2)+(Z46^2)+(Z47^2)+(Z48^2))","v":42.485291572496003},{"$f":"AA45+AA46+AA47+AA48","v":161},{"$f":"SQRT((AB45^2)+(AB46^2)+(AB47^2)+(AB48^2))","v":78.581168227508556},{"$f":"AC45+AC46+AC47+AC48","v":115},{"$f":"SQRT((AD45^2)+(AD46^2)+(AD47^2)+(AD48^2))","v":33.030289129827487},{"$f":"AE45+AE46+AE47+AE48","v":79},{"$f":"SQRT((AF45^2)+(AF46^2)+(AF47^2)+(AF48^2))","v":33.734255586865999}]
[null," 30% to 34.9% of HH Income",{"$f":"C45","v":10},{"$f":"D45","v":16.970562748477139},{"$f":"E45","v":39},42.449970553582247,284,142.88806808127822,53,26.40075756488817,15,12.529964086141668,43,37.643060449437421,107,77.077882690172544,2,12.369316876852981,11,9.2195444572928871,143,88.459030064770658,32,35.355339059327378,{"$f":"Y45","v":0},16.970562748477139,51,45,18,11.661903789690601,39,24.698178070456937]
[null," Less Than 35% of HH Income",{"$f":"C40+C41+C42+C43+C44+C45","v":156},{"$f":"SQRT((D40^2)+(D41^2)+(D42^2)+(D43^2)+(D44^2)+(D45^2))","v":45.4972526643093},{"$f":"E40+E41+E42+E43+E44+E45","v":952},{"$f":"SQRT((F40^2)+(F41^2)+(F42^2)+(F43^2)+(F44^2)+(F45^2))","v":245.29166312779569},{"$f":"G40+G41+G42+G43+G44+G45","v":2458},{"$f":"SQRT((H40^2)+(H41^2)+(H42^2)+(H43^2)+(H44^2)+(H45^2))","v":406.90416562134135},{"$f":"I40+I41+I42+I43+I44+I45","v":590},{"$f":"SQRT((J40^2)+(J41^2)+(J42^2)+(J43^2)+(J44^2)+(J45^2))","v":146.25320509308503},{"$f":"K40+K41+K42+K43+K44+K45","v":175},{"$f":"SQRT((L40^2)+(L41^2)+(L42^2)+(L43^2)+(L44^2)+(L45^2))","v":44.877611344633749},{"$f":"M40+M41+M42+M43+M44+M45","v":184},{"$f":"SQRT((N40^2)+(N41^2)+(N42^2)+(N43^2)+(N44^2)+(N45^2))","v":53.702886328390207},{"$f":"O40+O41+O42+O43+O44+O45","v":870},{"$f":"SQRT((P40^2)+(P41^2)+(P42^2)+(P43^2)+(P44^2)+(P45^2))","v":266.33249895572266},{"$f":"Q40+Q41+Q42+Q43+Q44+Q45","v":187},{"$f":"SQRT((R40^2)+(R41^2)+(R42^2)+(R43^2)+(R44^2)+(R45^2))","v":43.908996800200299},{"$f":"S40+S41+S42+S43+S44+S45","v":260},{"$f":"SQRT((T40^2)+(T41^2)+(T42^2)+(T43^2)+(T44^2)+(T45^2))","v":58.412327466040935},{"$f":"U40+U41+U42+U43+U44+U45","v":1150},{"$f":"SQRT((V40^2)+(V41^2)+(V42^2)+(V43^2)+(V44^2)+(V45^2))","v":255.34682296829149},{"$f":"W40+W41+W42+W43+W44+W45","v":622},{"$f":"SQRT((X40^2)+(X41^2)+(X42^2)+(X43^2)+(X44^2)+(X45^2))","v":145.83209523283961},{"$f":"Y40+Y41+Y42+Y43+Y44+Y45","v":190},{"$f":"SQRT((Z40^2)+(Z41^2)+(Z42^2)+(Z43^2)+(Z44^2)+(Z45^2))","v":67.007462271003817},{"$f":"AA40+AA41+AA42+AA43+AA44+AA45","v":756},{"$f":"SQRT((AB40^2)+(AB41^2)+(AB42^2)+(AB43^2)+(AB44^2)+(AB45^2))","v":173.81311803198284},{"$f":"AC40+AC41+AC42+AC43+AC44+AC45","v":339},{"$f":"SQRT((AD40^2)+(AD41^2)+(AD42^2)+(AD43^2)+(AD44^2)+(AD45^2))","v":61.644140029689765},{"$f":"AE40+AE41+AE42+AE43+AE44+AE45","v":331},{"$f":"SQRT((AF40^2)+(AF41^2)+(AF42^2)+(AF43^2)+(AF44^2)+(AF45^2))","v":67.372101050805895}]
[null," 35% or More of HH Income",{"$f":"C46+C47+C48","v":58},{"$f":"SQRT((D46^2)+(D47^2)+(D48^2))","v":31.701734968294719},{"$f":"E46+E47+E48","v":294},{"$f":"SQRT((F46^2)+(F47^2)+(F48^2))","v":142.17946405863259},{"$f":"G46+G47+G48","v":534},{"$f":"SQRT((H46^2)+(H47^2)+(H48^2))","v":183.79336223052235},{"$f":"I46+I47+I48","v":147},{"$f":"SQRT((J46^2)+(J47^2)+(J48^2))","v":77.1621668954417},{"$f":"K46+K47+K48","v":36},{"$f":"SQRT((L46^2)+(L47^2)+(L48^2))","v":24.596747752497688},{"$f":"M46+M47+M48","v":66},{"$f":"SQRT((N46^2)+(N47^2)+(N48^2))","v":29.240383034426891},{"$f":"O46+O47+O48","v":221},{"$f":"SQRT((P46^2)+(P47^2)+(P48^2))","v":140.49199265438583},{"$f":"Q46+Q47+Q48","v":18},{"$f":"SQRT((R46^2)+(R47^2)+(R48^2))","v":17.146428199482248},{"$f":"S46+S47+S48","v":34},{"$f":"SQRT((T46^2)+(T47^2)+(T48^2))","v":21.794494717703369},{"$f":"U46+U47+U48","v":228},{"$f":"SQRT((V46^2)+(V47^2)+(V48^2))","v":122.84543133547946},{"$f":"W46+W47+W48","v":138},{"$f":"SQRT((X46^2)+(X47^2)+(X48^2))","v":55.407580708780273},{"$f":"Y46+Y47+Y48","v":74},{"$f":"SQRT((Z46^2)+(Z47^2)+(Z48^2))","v":38.948684188300895},{"$f":"AA46+AA47+AA48","v":110},{"$f":"SQRT((AB46^2)+(AB47^2)+(AB48^2))","v":64.420493633625625},{"$f":"AC46+AC47+AC48","v":97},{"$f":"SQRT((AD46^2)+(AD47^2)+(AD48^2))","v":30.903074280724887},{"$f":"AE46+AE47+AE48","v":40},{"$f":"SQRT((AF46^2)+(AF47^2)+(AF48^2))","v":22.978250586152114}]
[null," 50% or More of HH Income",{"$f":"C48","v":36},{"$f":"D48","v":26.832815729997478},{"$f":"E48","v":93},80.721744282442259,249,134.03357788255897,90,71.470273540822546,25,16.278820596099706,33,21.095023109728988,185,123.84264209067892,12,10.770329614269007,6,6.4031242374328485,99,74.242844773082339,66,37.735924528226413,{"$f":"Y48","v":50},30.232432915661949,54,44.911023145771239,{"$f":"AC48","v":48},21.470910553583888,9,6.7082039324993694]
[null,"Not computed",{"$f":"C49","v":2},{"$f":"D49","v":3},{"$f":"E49","v":82},85,90,97,0,12,0,12,0,12,0,12,0,12,5,7,51,86,0,12,0,12,0,12,11,11,10,17]
[]
[]
[]
[]
[]
[]
[]
[]
[]
[]
[]
[]
[null,"B25091. MORTGAGE STATUS BY SELECTED MONTHLY OWNER COSTS AS A PERCENTAGE OF HOUSEHOLD INCOME IN THE PAST 12 MONTHS "]
[null,"Universe:  OWNER-OCCUPIED HOUSING UNITS"]
[null,"Data Set: 2013-2017 American Community Survey 5-Year Estimates"]
[]
[null,null,"Acworth",null,"Charlestown",null,"Claremont",null,"Cornish",null,"Croydon",null,"Goshen",null,"Grantham",null,"Langdon",null,"Lempster",null,"Newport",null,"Plainfield",null,"Springfield",null,"Sunapee",null,"Unity",null,"Washington"]
[null,null,"Estimate","Margin Of Error","Estimate","Margin Of Error","Estimate","Margin Of Error","Estimate","Margin Of Error","Estimate","Margin Of Error","Estimate","Margin Of Error","Estimate","Margin Of Error","Estimate","Margin Of Error","Estimate","Margin Of Error","Estimate","Margin Of Error","Estimate","Margin Of Error","Estimate","Margin Of Error","Estimate","Margin Of Error"]
[null,"Total:",388,61,1673,187,3163,298,641,70,241,43,206,37,1050,136,266,37,387,62,1793,232,821,94,380,67,1049,117,489,56,507,82]
[null,"Housing units with a mortgage:",186,37,858,183,2085,265,353,65,140,35,127,41,769,156,187,35,193,46,1097,205,447,78,240,55,687,109,325,55,328,76]
[null,"Less than 10.0 percent",9,8,15,24,65,61,25,19,5,9,6,10,20,23,9,11,22,23,51,38,10,10,6,11,13,16,10,9,10,9]
[null,"10.0 to 14.9 percent",22,11,102,65,238,86,77,34,28,22,13,9,129,72,33,17,43,21,201,114,79,33,21,19,23,28,52,30,68,60]
[null,"15.0 to 19.9 percent",45,25,25,29,238,90,47,20,44,22,32,15,174,89,33,16,12,8,302,111,109,47,60,28,168,71,33,22,62,26]
[null,"20.0 to 24.9 percent",37,18,104,67,431,177,51,26,18,14,31,20,167,93,41,19,33,19,122,83,85,33,35,23,78,47,85,34,67,29]
[null,"25.0 to 29.9 percent",23,17,172,110,323,115,61,29,3,4,7,9,139,90,19,11,27,18,66,56,43,22,18,17,38,37,17,9,13,10]
[null,"30.0 to 34.9 percent",7,5,154,96,199,96,8,9,6,7,5,5,10,15,2,3,19,20,127,106,20,16,18,19,92,63,23,18,13,11]
[null,"35.0 to 39.9 percent",14,12,68,58,153,76,24,19,7,9,9,11,54,48,20,11,12,10,47,73,36,31,6,6,103,79,10,9,0,11]
[null,"40.0 to 49.9 percent",18,13,57,56,124,68,42,28,12,12,12,13,35,54,6,9,6,6,95,81,19,14,32,26,104,88,17,16,22,12]
[null,"50.0 percent or more",11,7,161,80,314,127,18,11,17,15,12,8,41,38,24,15,19,11,86,55,46,36,44,23,68,50,78,31,70,30]
[null,"Not computed",0,11,0,16,0,18,0,11,0,11,0,11,0,11,0,11,0,11,0,16,0,11,0,11,0,11,0,11,3,4]
[null,"Housing units without a mortgage:",202,48,815,187,1078,182,288,55,101,28,79,26,281,93,79,24,194,50,696,173,374,79,140,44,362,83,164,37,179,44]
[null,"Less than 10.0 percent",45,17,249,124,118,54,72,27,24,15,15,10,123,61,34,17,60,29,92,85,104,39,58,32,93,49,13,9,69,30]
[null,"10.0 to 14.9 percent",40,17,179,107,187,69,38,18,22,12,17,14,38,27,21,13,48,29,176,101,99,39,33,23,49,29,56,24,25,17]
[null,"15.0 to 19.9 percent",30,17,127,93,185,69,64,35,29,17,20,16,26,29,7,6,10,8,205,108,73,32,18,16,32,27,22,12,15,9]
[null,"20.0 to 24.9 percent",13,10,56,54,133,61,37,23,9,7,6,5,11,17,0,11,6,6,60,53,37,30,3,4,31,28,38,18,6,6]
[null,"25.0 to 29.9 percent",9,7,24,28,81,62,10,9,7,9,12,12,0,11,3,4,31,23,52,43,23,18,5,7,49,37,6,8,16,16]
[null,"30.0 to 34.9 percent",8,7,51,59,81,60,21,17,8,8,3,4,30,47,3,4,3,4,25,29,17,14,13,16,19,30,0,11,9,15]
[null,"35.0 to 39.9 percent",11,10,47,46,66,62,12,15,2,3,0,11,9,14,0,11,0,11,16,25,0,11,0,11,0,11,4,5,3,4]
[null,"40.0 to 49.9 percent",36,25,13,21,56,38,6,7,0,11,0,11,44,25,3,4,11,13,14,22,0,11,3,4,15,17,10,7,11,9]
[null,"50.0 percent or more",4,4,69,49,103,55,28,16,0,11,4,4,0,11,6,5,21,16,56,39,21,14,7,9,63,50,15,15,17,17]
[null,"Not computed",6,9,0,16,68,71,0,11,0,11,2,3,0,11,2,3,4,5,0,16,0,11,0,11,11,17,0,11,8,10]
[]
[]
[]
[null,"Calculated B25091. MORTGAGE STATUS BY SELECTED MONTHLY OWNER COSTS AS A PERCENTAGE OF HOUSEHOLD INCOME IN THE PAST 12 MONTHS "]
[null,"Universe:  OWNER-OCCUPIED HOUSING UNITS"]
[null,{"$f":"B83","v":"Data Set: 2013-2017 American Community Survey 5-Year Estimates"}]
[]
[null,null,"Acworth",null,"Charlestown",null,"Claremont",null,"Cornish",null,"Croydon",null,"Goshen",null,"Grantham",null,"Langdon",null,"Lempster",null,"Newport",null,"Plainfield",null,"Springfield",null,"Sunapee",null,"Unity",null,"Washington"]
[null,null,"Estimate","Margin Of Error","Estimate","Margin Of Error","Estimate","Margin Of Error","Estimate","Margin Of Error","Estimate","Margin Of Error","Estimate","Margin Of Error","Estimate","Margin Of Error","Estimate","Margin Of Error","Estimate","Margin Of Error","Estimate","Margin Of Error","Estimate","Margin Of Error","Estimate","Margin Of Error","Estimate","Margin Of Error","Estimate","Margin Of Error","Estimate","Margin Of Error"]
[null,"Total:",{"$f":"C87","v":388},{"$f":"D87","v":61},{"$f":"E87","v":1673},187,3163,298,641,70,241,43,206,37,1050,136,266,37,387,62,1793,232,821,94,380,67,1049,117,489,56,507,82]
[null,"Less than 10.0 percent",{"$f":"C89+C100","v":54},{"$f":"SQRT((D89^2)+(D100^2))","v":18.788294228055936},{"$f":"E89+E100","v":264},{"$f":"SQRT((F89^2)+(F100^2))","v":126.30122723077555},{"$f":"G89+G100","v":183},{"$f":"SQRT((H89^2)+(H100^2))","v":81.467785044151043},{"$f":"I89+I100","v":97},{"$f":"SQRT((J89^2)+(J100^2))","v":33.015148038438355},{"$f":"K89+K100","v":29},{"$f":"SQRT((L89^2)+(L100^2))","v":17.4928556845359},{"$f":"M89+M100","v":21},{"$f":"SQRT((N89^2)+(N100^2))","v":14.142135623730951},{"$f":"O89+O100","v":143},{"$f":"SQRT((P89^2)+(P100^2))","v":65.192024052026483},{"$f":"Q89+Q100","v":43},{"$f":"SQRT((R89^2)+(R100^2))","v":20.248456731316587},{"$f":"S89+S100","v":82},{"$f":"SQRT((T89^2)+(T100^2))","v":37.013511046643494},{"$f":"U89+U100","v":143},{"$f":"SQRT((V89^2)+(V100^2))","v":93.107464792034804},{"$f":"W89+W100","v":114},{"$f":"SQRT((X89^2)+(X100^2))","v":40.26164427839479},64,{"$f":"SQRT((Z89^2)+(Z100^2))","v":33.837848631377263},{"$f":"AA89+AA100","v":106},{"$f":"SQRT((AB89^2)+(AB100^2))","v":51.546095875439491},23,12.727922061357855,{"$f":"AE89+AE100","v":79},{"$f":"SQRT((AF89^2)+(AF100^2))","v":31.32091952673165}]
[null,"10.0 to 14.9 percent",62,20.248456731316587,281,125.19584657647394,425,110.25878649794764,115,38.470768123342687,50,25.059928172283335,30,16.643316977093239,167,76.896033707857782,54,21.400934559032695,91,35.805027579936315,377,152.30561381643159,178,{"$f":"SQRT((X90^2)+(X101^2))","v":51.088159097779204},54,29.832867780352597,72,40.311288741492746,108,38.418745424597091,93,62.361847310675458]
[null,"15.0 to 19.9 percent",75,30.232432915661949,152,97.416631023660429,423,113.4063490286148,111,40.311288741492746,73,27.802877548915689,52,21.931712199461309,200,93.605555390692487,40,17.088007490635061,22,11.313708498984761,507,154.87091398968369,182,56.859475903318,78,32.249030993194197,200,75.960516059331766,55,25.059928172283335,77,27.513632984395208]
[null,"20.0 to 24.9 percent",50,20.591260281974002,160,86.05230967266364,564,187.21645226849054,88,34.713109915419565,27,15.652475842498529,37,20.615528128088304,178,94.540996398387932,41,21.95449840010015,39,19.924858845171276,182,98.478424032881435,122,44.598206241955516,38,23.345235059857504,109,54.708317466359723,123,38.470768123342687,73,29.614185789921695]
[null,"25.0 to 29.9 percent",32,18.384776310850235,196,113.50770898930169,404,130.64838307457157,71,30.364452901377952,10,9.8488578017961039,19,15,139,90.669730340395304,22,11.704699910719626,58,29.206163733020468,118,70.604532432415411,66,28.42534080710379,23,18.384776310850235,87,52.32590180780452,23,12.041594578792296,29,18.867962264113206]
[null,"30.0 to 34.9 percent",15,8.6023252670426267,205,112.6809655620682,280,113.20777358467925,29,19.235384061671343,14,10.63014581273465,8,6.4031242374328485,40,49.33558553417604,5,5,22,20.396078054371138,152,109.89540481748998,37,21.2602916254693,31,24.839484696748443,111,69.778220097678044,23,21.095023109728988,22,18.601075237738275]
[null,"35.0 to 39.9 percent",25,15.620499351813308,115,74.027022093286988,219,98.081598681913832,36,24.207436873820409,9,9.4868329805051381,9,15.556349186104045,63,50,20,15.556349186104045,12,14.866068747318506,63,77.1621668954417,36,32.893768406797051,6,12.529964086141668,103,79.762146410437069,14,10.295630140987001,3,11.704699910719626]
[null,"40.0 to 49.9 percent",54,28.178005607210743,70,59.808026217222718,180,77.89736837660179,48,28.861739379323623,12,16.278820596099706,12,17.029386365926403,79,59.506302187247357,9,9.8488578017961039,17,14.317821063276353,109,83.93449827097318,19,17.804493814764857,35,26.305892875931811,119,89.627004859026727,27,17.464249196572979,33,15]
[null,"50.0 percent or more",15,8.0622577482985491,230,93.813645062965122,417,138.39797686382559,46,19.416487838947599,17,18.601075237738275,16,8.9442719099991592,41,39.560080889704963,30,15.811388300841896,40,19.416487838947599,142,67.424031324150292,67,38.626415831655933,51,24.698178070456937,131,70.710678118654755,93,34.438350715445125,87,34.481879299133332]
[null,"Not computed",6,14.212670403551895,0,22.627416997969522,68,73.246160308919954,0,15.556349186104045,0,15.556349186104045,2,11.401754250991379,0,15.556349186104045,2,11.401754250991379,4,12.083045973594572,0,22.627416997969522,0,15.556349186104045,0,15.556349186104045,11,20.248456731316587,0,15.556349186104045,11,10.770329614269007]
[]
[]
[]
[]
[null,"Calculated MONTHLY OWNER COSTS AS A PERCENTAGE OF HOUSEHOLD INCOME IN THE PAST 12 MONTHS "]
[null,"Universe:  OWNER-OCCUPIED HOUSING UNITS"]
[null,{"$f":"B83","v":"Data Set: 2013-2017 American Community Survey 5-Year Estimates"}]
[null,null,"Acworth",null,"Charlestown",null,"Claremont",null,"Cornish",null,"Croydon",null,"Goshen",null,"Grantham",null,"Langdon",null,"Lempster",null,"Newport",null,"Plainfield",null,"Springfield",null,"Sunapee",null,"Unity",null,"Washington"]
[null,null,"Estimate","Margin Of Error","Estimate","Margin Of Error","Estimate","Margin Of Error","Estimate","Margin Of Error","Estimate","Margin Of Error","Estimate","Margin Of Error","Estimate","Margin Of Error","Estimate","Margin Of Error","Estimate","Margin Of Error","Estimate","Margin Of Error","Estimate","Margin Of Error","Estimate","Margin Of Error","Estimate","Margin Of Error","Estimate","Margin Of Error","Estimate","Margin Of Error"]
[null,"Total:",{"$f":"C119","v":388},{"$f":"D119","v":61},1673,187,3163,298,641,70,241,43,206,37,1050,136,266,37,387,62,1793,232,821,94,380,67,1049,117,489,56,507,82]
[null,"Less than 20% of HH Income",{"$f":"C120+C121+C122","v":191},{"$f":"SQRT((D120^2)+(D121^2)+(D122^2))","v":40.951190458886543},{"$f":"E120+E121+E122","v":697},{"$f":"SQRT((F120^2)+(F121^2)+(F122^2))","v":202.77080657727828},{"$f":"G120+G121+G122","v":1031},{"$f":"SQRT((H120^2)+(H121^2)+(H122^2))","v":177.91852067730329},{"$f":"I120+I121+I122","v":323},{"$f":"SQRT((J120^2)+(J121^2)+(J122^2))","v":64.768819658845104},{"$f":"K120+K121+K122","v":152},{"$f":"SQRT((L120^2)+(L121^2)+(L122^2))","v":41.315856520227193},{"$f":"M120+M121+M122","v":103},{"$f":"SQRT((N120^2)+(N121^2)+(N122^2))","v":30.951575081084322},{"$f":"O120+O121+O122","v":510},{"$f":"SQRT((P120^2)+(P121^2)+(P122^2))","v":137.56816492197603},{"$f":"Q120+Q121+Q122","v":137},{"$f":"SQRT((R120^2)+(R121^2)+(R122^2))","v":34.058772731852805},{"$f":"S120+S121+S122","v":195},{"$f":"SQRT((T120^2)+(T121^2)+(T122^2))","v":52.725705305856273},{"$f":"U120+U121+U122","v":1027},{"$f":"SQRT((V120^2)+(V121^2)+(V122^2))","v":236.32816167355088},{"$f":"W120+W121+W122","v":474},{"$f":"SQRT((X120^2)+(X121^2)+(X122^2))","v":86.394444265820709},{"$f":"Y120+Y121+Y122","v":196},{"$f":"SQRT((Z120^2)+(Z121^2)+(Z122^2))","v":55.452682532047085},{"$f":"AA120+AA121+AA122","v":378},{"$f":"SQRT((AB120^2)+(AB121^2)+(AB122^2))","v":100.25966287595426},{"$f":"AC120+AC121+AC122","v":186},{"$f":"SQRT((AD120^2)+(AD121^2)+(AD122^2))","v":47.602520941647619},{"$f":"AE120+AE121+AE122","v":249},{"$f":"SQRT((AF120^2)+(AF121^2)+(AF122^2))","v":75.013332148358799}]
[null," 20% to 29.9% of HH Income",{"$f":"C123+C124","v":82},{"$f":"SQRT((D123^2)+(D124^2))","v":27.604347483684521},{"$f":"E123+E124","v":356},{"$f":"SQRT((F123^2)+(F124^2))","v":142.43946082459033},{"$f":"G123+G124","v":968},{"$f":"SQRT((H123^2)+(H124^2))","v":228.29586067206736},{"$f":"I123+I124","v":159},{"$f":"SQRT((J123^2)+(J124^2))","v":46.119410230400824},{"$f":"K123+K124","v":37},{"$f":"SQRT((L123^2)+(L124^2))","v":18.493242008906929},{"$f":"M123+M124","v":56},{"$f":"SQRT((N123^2)+(N124^2))","v":25.495097567963924},{"$f":"O123+O124","v":317},{"$f":"SQRT((P123^2)+(P124^2))","v":130.99236618978986},{"$f":"Q123+Q124","v":63},{"$f":"SQRT((R123^2)+(R124^2))","v":24.879710609249457},{"$f":"S123+S124","v":97},{"$f":"SQRT((T123^2)+(T124^2))","v":35.355339059327378},{"$f":"U123+U124","v":300},{"$f":"SQRT((V123^2)+(V124^2))","v":121.17342943071307},{"$f":"W123+W124","v":188},{"$f":"SQRT((X123^2)+(X124^2))","v":52.886671288709408},{"$f":"Y123+Y124","v":61},{"$f":"SQRT((Z123^2)+(Z124^2))","v":29.715315916207253},{"$f":"AA123+AA124","v":196},{"$f":"SQRT((AB123^2)+(AB124^2))","v":75.703368485160553},{"$f":"AC123+AC124","v":146},{"$f":"SQRT((AD123^2)+(AD124^2))","v":40.311288741492746},{"$f":"AE123+AE124","v":102},{"$f":"SQRT((AF123^2)+(AF124^2))","v":35.114099732158877}]
[null," Less Than 30% of HH Income",{"$f":"C120+C121+C122+C123+C124","v":273},{"$f":"SQRT((D120^2)+(D121^2)+(D122^2)+(D123^2)+(D124^2))","v":49.386232899462982},{"$f":"E120+E121+E122+E123+E124","v":1053},{"$f":"SQRT((F120^2)+(F121^2)+(F122^2)+(F123^2)+(F124^2))","v":247.8003228407905},{"$f":"G120+G121+G122+G123+G124","v":1999},{"$f":"SQRT((H120^2)+(H121^2)+(H122^2)+(H123^2)+(H124^2))","v":289.43738528393322},{"$f":"I120+I121+I122+I123+I124","v":482},{"$f":"SQRT((J120^2)+(J121^2)+(J122^2)+(J123^2)+(J124^2))","v":79.511005527536881},{"$f":"K120+K121+K122+K123+K124","v":189},{"$f":"SQRT((L120^2)+(L121^2)+(L122^2)+(L123^2)+(L124^2))","v":45.265881191025102},{"$f":"M120+M121+M122+M123+M124","v":159},{"$f":"SQRT((N120^2)+(N121^2)+(N122^2)+(N123^2)+(N124^2))","v":40.099875311526844},{"$f":"O120+O121+O122+O123+O124","v":827},{"$f":"SQRT((P120^2)+(P121^2)+(P122^2)+(P123^2)+(P124^2))","v":189.9578900704048},{"$f":"Q120+Q121+Q122+Q123+Q124","v":200},{"$f":"SQRT((R120^2)+(R121^2)+(R122^2)+(R123^2)+(R124^2))","v":42.178193417926281},{"$f":"S120+S121+S122+S123+S124","v":292},{"$f":"SQRT((T120^2)+(T121^2)+(T122^2)+(T123^2)+(T124^2))","v":63.482280992415511},{"$f":"U120+U121+U122+U123+U124","v":1327},{"$f":"SQRT((V120^2)+(V121^2)+(V122^2)+(V123^2)+(V124^2))","v":265.58237893354294},{"$f":"W120+W121+W122+W123+W124","v":662},{"$f":"SQRT((X120^2)+(X121^2)+(X122^2)+(X123^2)+(X124^2))","v":101.29659421717987},{"$f":"Y120+Y121+Y122+Y123+Y124","v":257},{"$f":"SQRT((Z120^2)+(Z121^2)+(Z122^2)+(Z123^2)+(Z124^2))","v":62.912637840103322},{"$f":"AA120+AA121+AA122+AA123+AA124","v":574},{"$f":"SQRT((AB120^2)+(AB121^2)+(AB122^2)+(AB123^2)+(AB124^2))","v":125.63041033125698},{"$f":"AC120+AC121+AC122+AC123+AC124","v":332},{"$f":"SQRT((AD120^2)+(AD121^2)+(AD122^2)+(AD123^2)+(AD124^2))","v":62.377880695002773},{"$f":"AE120+AE121+AE122+AE123+AE124","v":351},{"$f":"SQRT((AF120^2)+(AF121^2)+(AF122^2)+(AF123^2)+(AF124^2))","v":82.82511696339462}]
[null," 30% or More of HH Income",{"$f":"C125+C126+C127+C128","v":109},{"$f":"SQRT((D125^2)+(D126^2)+(D127^2)+(D128^2))","v":34.307433596816885},{"$f":"E125+E126+E127+E128","v":620},{"$f":"SQRT((F125^2)+(F126^2)+(F127^2)+(F128^2))","v":174.79988558348657},{"$f":"G125+G126+G127+G128","v":1096},{"$f":"SQRT((H125^2)+(H126^2)+(H127^2)+(H128^2))","v":218.30712310870663},{"$f":"I125+I126+I127+I128","v":159},{"$f":"SQRT((J125^2)+(J126^2)+(J127^2)+(J128^2))","v":46.540305112880382},{"$f":"K125+K126+K127+K128","v":52},{"$f":"SQRT((L125^2)+(L126^2)+(L127^2)+(L128^2))","v":28.530685235374211},{"$f":"M125+M126+M127+M128","v":45},{"$f":"SQRT((N125^2)+(N126^2)+(N127^2)+(N128^2))","v":25.553864678361276},{"$f":"O125+O126+O127+O128","v":223},{"$f":"SQRT((P125^2)+(P126^2)+(P127^2)+(P128^2))","v":100.1998003990028},{"$f":"Q125+Q126+Q127+Q128","v":64},{"$f":"SQRT((R125^2)+(R126^2)+(R127^2)+(R128^2))","v":24.779023386727733},{"$f":"S125+S126+S127+S128","v":91},{"$f":"SQRT((T125^2)+(T126^2)+(T127^2)+(T128^2))","v":34.914180500192181},{"$f":"U125+U126+U127+U128","v":466},{"$f":"SQRT((V125^2)+(V126^2)+(V127^2)+(V128^2))","v":172.11042966653704},{"$f":"W125+W126+W127+W128","v":159},{"$f":"SQRT((X125^2)+(X126^2)+(X127^2)+(X128^2))","v":57.818682101895057},{"$f":"Y125+Y126+Y127+Y128","v":123},{"$f":"SQRT((Z125^2)+(Z126^2)+(Z127^2)+(Z128^2))","v":45.563142999578069},{"$f":"AA125+AA126+AA127+AA128","v":464},{"$f":"SQRT((AB125^2)+(AB126^2)+(AB127^2)+(AB128^2))","v":155.76905982896602},{"$f":"AC125+AC126+AC127+AC128","v":157},{"$f":"SQRT((AD125^2)+(AD126^2)+(AD127^2)+(AD128^2))","v":45.188494110780013},{"$f":"AE125+AE126+AE127+AE128","v":145},{"$f":"SQRT((AF125^2)+(AF126^2)+(AF127^2)+(AF128^2))","v":43.554563480765133}]
[null," 30% to 34.9% of HH Income",{"$f":"C125","v":15},{"$f":"D125","v":8.6023252670426267},{"$f":"E125","v":205},112.6809655620682,280,113.20777358467925,29,19.235384061671343,14,10.63014581273465,8,6.4031242374328485,40,49.33558553417604,5,5,22,20.396078054371138,152,109.89540481748998,37,21.2602916254693,31,24.839484696748443,111,69.778220097678044,23,21.095023109728988,22,18.601075237738275]
[null," Less Than 35% of HH Income",{"$f":"C120+C121+C122+C123+C124+C125","v":288},{"$f":"SQRT((D120^2)+(D121^2)+(D122^2)+(D123^2)+(D124^2)+(D125^2))","v":50.129831437977131},{"$f":"E120+E121+E122+E123+E124+E125","v":1258},{"$f":"SQRT((F120^2)+(F121^2)+(F122^2)+(F123^2)+(F124^2)+(F125^2))","v":272.21682534332808},{"$f":"G120+G121+G122+G123+G124+G125","v":2279},{"$f":"SQRT((H120^2)+(H121^2)+(H122^2)+(H123^2)+(H124^2)+(H125^2))","v":310.78931770574098},{"$f":"I120+I121+I122+I123+I124+I125","v":511},{"$f":"SQRT((J120^2)+(J121^2)+(J122^2)+(J123^2)+(J124^2)+(J125^2))","v":81.804645344870238},{"$f":"K120+K121+K122+K123+K124+K125","v":203},{"$f":"SQRT((L120^2)+(L121^2)+(L122^2)+(L123^2)+(L124^2)+(L125^2))","v":46.497311750250681},{"$f":"M120+M121+M122+M123+M124+M125","v":167},{"$f":"SQRT((N120^2)+(N121^2)+(N122^2)+(N123^2)+(N124^2)+(N125^2))","v":40.607881008493905},{"$f":"O120+O121+O122+O123+O124+O125","v":867},{"$f":"SQRT((P120^2)+(P121^2)+(P122^2)+(P123^2)+(P124^2)+(P125^2))","v":196.26003159074443},{"$f":"Q120+Q121+Q122+Q123+Q124+Q125","v":205},{"$f":"SQRT((R120^2)+(R121^2)+(R122^2)+(R123^2)+(R124^2)+(R125^2))","v":42.473521163190604},{"$f":"S120+S121+S122+S123+S124+S125","v":314},{"$f":"SQRT((T120^2)+(T121^2)+(T122^2)+(T123^2)+(T124^2)+(T125^2))","v":66.678332312678606},{"$f":"U120+U121+U122+U123+U124+U125","v":1479},{"$f":"SQRT((V120^2)+(V121^2)+(V122^2)+(V123^2)+(V124^2)+(V125^2))","v":287.4212935744323},{"$f":"W120+W121+W122+W123+W124+W125","v":699},{"$f":"SQRT((X120^2)+(X121^2)+(X122^2)+(X123^2)+(X124^2)+(X125^2))","v":103.50362312499017},{"$f":"Y120+Y121+Y122+Y123+Y124+Y125","v":288},{"$f":"SQRT((Z120^2)+(Z121^2)+(Z122^2)+(Z123^2)+(Z124^2)+(Z125^2))","v":67.638746292343413},{"$f":"AA120+AA121+AA122+AA123+AA124+AA125","v":685},{"$f":"SQRT((AB120^2)+(AB121^2)+(AB122^2)+(AB123^2)+(AB124^2)+(AB125^2))","v":143.70803735351757},{"$f":"AC120+AC121+AC122+AC123+AC124+AC125","v":355},{"$f":"SQRT((AD120^2)+(AD121^2)+(AD122^2)+(AD123^2)+(AD124^2)+(AD125^2))","v":65.848310532617319},{"$f":"AE120+AE121+AE122+AE123+AE124+AE125","v":373},{"$f":"SQRT((AF120^2)+(AF121^2)+(AF122^2)+(AF123^2)+(AF124^2)+(AF125^2))","v":84.888161718816832}]
[null," 35% or More of HH Income",{"$f":"C126+C127+C128","v":94},{"$f":"SQRT((D126^2)+(D127^2)+(D128^2))","v":33.211443810831227},{"$f":"E126+E127+E128","v":415},{"$f":"SQRT((F126^2)+(F127^2)+(F128^2))","v":133.63382805263043},{"$f":"G126+G127+G128","v":816},{"$f":"SQRT((H126^2)+(H127^2)+(H128^2))","v":186.66011893278116},{"$f":"I126+I127+I128","v":130},{"$f":"SQRT((J126^2)+(J127^2)+(J128^2))","v":42.379240200834182},{"$f":"K126+K127+K128","v":38},{"$f":"SQRT((L126^2)+(L127^2)+(L128^2))","v":26.476404589747453},{"$f":"M126+M127+M128","v":37},{"$f":"SQRT((N126^2)+(N127^2)+(N128^2))","v":24.738633753705962},{"$f":"O126+O127+O128","v":183},{"$f":"SQRT((P126^2)+(P127^2)+(P128^2))","v":87.212384441660575},{"$f":"Q126+Q127+Q128","v":59},{"$f":"SQRT((R126^2)+(R127^2)+(R128^2))","v":24.269322199023193},{"$f":"S126+S127+S128","v":69},{"$f":"SQRT((T126^2)+(T127^2)+(T128^2))","v":28.337254630609507},{"$f":"U126+U127+U128","v":314},{"$f":"SQRT((V126^2)+(V127^2)+(V128^2))","v":132.45754036671525},{"$f":"W126+W127+W128","v":122},{"$f":"SQRT((X126^2)+(X127^2)+(X128^2))","v":53.768020235080257},{"$f":"Y126+Y127+Y128","v":92},{"$f":"SQRT((Z126^2)+(Z127^2)+(Z128^2))","v":38.196858509568557},{"$f":"AA126+AA127+AA128","v":353},{"$f":"SQRT((AB126^2)+(AB127^2)+(AB128^2))","v":139.26593266122194},{"$f":"AC126+AC127+AC128","v":134},{"$f":"SQRT((AD126^2)+(AD127^2)+(AD128^2))","v":39.962482405376164},{"$f":"AE126+AE127+AE128","v":123},{"$f":"SQRT((AF126^2)+(AF127^2)+(AF128^2))","v":39.382737335030427}]
[null," 50% or More of HH Income",{"$f":"C128","v":15},{"$f":"D128","v":8.0622577482985491},{"$f":"E128","v":230},93.813645062965122,417,138.39797686382559,46,19.416487838947599,17,18.601075237738275,16,8.9442719099991592,41,39.560080889704963,30,15.811388300841896,40,19.416487838947599,142,67.424031324150292,67,38.626415831655933,51,24.698178070456937,131,70.710678118654755,93,34.438350715445125,87,34.481879299133332]
[null,"Not computed",{"$f":"C129","v":6},{"$f":"D129","v":14.212670403551895},{"$f":"E129","v":0},22.627416997969522,68,73.246160308919954,0,15.556349186104045,0,15.556349186104045,2,11.401754250991379,0,15.556349186104045,2,11.401754250991379,4,12.083045973594572,0,22.627416997969522,0,15.556349186104045,0,15.556349186104045,11,20.248456731316587,0,15.556349186104045,11,10.770329614269007]
[]
[]
[]
[null,"B25091. MORTGAGE STATUS BY SELECTED MONTHLY OWNER COSTS AS A PERCENTAGE OF HOUSEHOLD INCOME IN THE PAST 12 MONTHS "]
[null,"Universe:  OWNER-OCCUPIED HOUSING UNITS"]
[null,"Data Set: 2008-2012 American Community Survey 5-Year Estimates"]
[]
[null,null,"Acworth",null,"Charlestown",null,"Claremont",null,"Cornish",null,"Croydon",null,"Goshen",null,"Grantham",null,"Langdon",null,"Lempster",null,"Newport",null,"Plainfield",null,"Springfield",null,"Sunapee",null,"Unity",null,"Washington"]
[null,null,"Esitimate","Margin Of Error","Esitimate","Margin Of Error","Esitimate","Margin Of Error","Esitimate","Margin Of Error","Esitimate","Margin Of Error","Esitimate","Margin Of Error","Esitimate","Margin Of Error","Esitimate","Margin Of Error","Esitimate","Margin Of Error","Esitimate","Margin Of Error","Esitimate","Margin Of Error","Esitimate","Margin Of Error","Esitimate","Margin Of Error","Esitimate","Margin Of Error","Esitimate","Margin Of Error"]
[null,null,222,44,1843,158,3466,228,552,65,240,40,273,44,1003,96,247,44,365,56,1786,194,817,78,453,59,1098,155,546,50,428,64]
[null,"Housing units with a mortgage:",108,35,1240,155,2307,220,382,62,161,35,152,32,649,100,164,42,257,55,1237,193,528,68,289,59,687,124,338,57,256,55]
[null,"Less than 10.0 percent",7,11,20,34,56,49,19,13,2,3,5,5,16,16,7,7,7,7,46,41,30,33,11,13,70,49,0,11,10,8]
[null,"10.0 to 14.9 percent",3,5,148,99,218,105,41,22,18,12,18,14,90,47,5,8,33,32,127,135,56,26,66,28,69,37,18,13,34,18]
[null,"15.0 to 19.9 percent",10,10,279,108,439,140,81,35,48,27,10,7,135,60,56,29,44,24,178,92,147,50,31,22,100,63,30,18,26,23]
[null,"20.0 to 24.9 percent",23,15,118,65,387,101,49,19,29,14,17,10,96,43,36,25,46,25,293,116,123,40,50,24,90,62,75,35,49,23]
[null,"25.0 to 29.9 percent",4,3,149,88,382,144,33,20,11,10,21,15,71,38,20,18,22,15,182,88,44,29,54,28,112,56,39,24,24,16]
[null,"30.0 to 34.9 percent",18,14,202,105,222,105,30,21,11,8,10,7,55,33,9,9,34,21,75,65,62,37,18,13,57,44,54,27,27,21]
[null,"35.0 to 39.9 percent",9,11,92,65,140,67,42,19,8,7,36,22,84,57,3,4,38,21,39,45,17,17,0,11,26,28,25,16,3,4]
[null,"40.0 to 49.9 percent",6,7,114,64,165,83,20,14,13,9,19,9,23,29,17,14,16,9,166,93,16,13,23,14,31,25,39,22,26,13]
[null,"50.0 percent or more",28,15,118,86,298,133,67,28,21,12,16,13,79,49,11,8,17,12,131,84,33,19,36,24,132,73,58,24,57,27]
[null,"Not computed",0,11,0,16,0,18,0,11,0,11,0,11,0,11,0,11,0,11,0,16,0,11,0,11,0,11,0,11,0,11]
[null,"Housing units without a mortgage:",114,35,603,131,1159,171,170,44,79,28,121,33,354,90,83,28,108,35,549,142,289,64,164,35,411,101,208,44,172,42]
[null,"Less than 10.0 percent",12,12,162,93,176,74,70,32,23,16,48,25,94,58,8,7,28,21,89,50,87,49,37,22,84,57,80,27,25,17]
[null,"10.0 to 14.9 percent",31,15,77,57,221,77,44,23,20,12,13,8,77,43,32,18,28,17,106,57,60,37,41,20,91,62,50,21,50,23]
[null,"15.0 to 19.9 percent",34,19,100,88,248,85,24,16,7,11,13,10,79,38,13,16,16,11,77,50,53,29,12,13,68,49,19,11,37,23]
[null,"20.0 to 24.9 percent",0,11,83,57,144,79,3,4,2,3,8,7,14,14,6,6,7,8,42,40,38,21,22,19,32,32,10,9,10,8]
[null,"25.0 to 29.9 percent",19,17,43,45,64,34,7,8,7,11,4,5,19,14,9,12,3,4,37,35,32,21,10,12,32,37,19,21,12,13]
[null,"30.0 to 34.9 percent",2,3,38,35,58,41,3,4,4,5,5,5,7,11,0,11,3,4,11,17,8,8,3,4,15,19,12,10,0,11]
[null,"35.0 to 39.9 percent",3,4,29,34,20,20,2,4,0,11,2,3,0,11,4,4,5,7,21,25,4,6,9,9,45,44,6,6,12,12]
[null,"40.0 to 49.9 percent",2,3,20,24,111,73,0,11,0,11,4,5,32,28,1,4,11,13,66,79,0,11,6,9,16,24,0,11,6,6]
[null,"50.0 percent or more",11,12,51,36,100,52,14,12,16,18,24,14,23,25,10,10,7,8,100,63,7,10,24,19,28,28,9,8,9,9]
[null,"Not computed",0,11,0,16,17,20,3,4,0,11,0,11,9,15,0,11,0,11,0,16,0,11,0,11,0,11,3,4,11,18]
[]
[]
[]
[null,"Calculated B25091. MORTGAGE STATUS BY SELECTED MONTHLY OWNER COSTS AS A PERCENTAGE OF HOUSEHOLD INCOME IN THE PAST 12 MONTHS "]
[null,"Universe:  OWNER-OCCUPIED HOUSING UNITS"]
[null,{"$f":"B154","v":"Data Set: 2008-2012 American Community Survey 5-Year Estimates"}]
[]
[null,null,"Acworth",null,"Charlestown",null,"Claremont",null,"Cornish",null,"Croydon",null,"Goshen",null,"Grantham",null,"Langdon",null,"Lempster",null,"Newport",null,"Plainfield",null,"Springfield",null,"Sunapee",null,"Unity",null,"Washington"]
[null," ","Estimate","Margin of Error","Estimate","Margin of Error","Estimate","Margin of Error","Estimate","Margin of Error","Estimate","Margin of Error","Estimate","Margin of Error","Estimate","Margin of Error","Estimate","Margin of Error","Estimate","Margin of Error","Estimate","Margin of Error","Estimate","Margin of Error","Estimate","Margin of Error","Estimate","Margin of Error","Estimate","Margin of Error","Estimate","Margin of Error"]
[null,"Total:",{"$f":"C158","v":222},{"$f":"D158","v":44},{"$f":"E158","v":1843},158,3466,228,552,65,240,40,273,44,1003,96,247,44,365,56,1786,194,817,78,{"$f":"Y158","v":453},59,1098,155,546,50,428,64]
[null,"Less than 10.0 percent",{"$f":"C160+C171","v":19},{"$f":"SQRT((D160^2)+(D171^2))","v":16.278820596099706},{"$f":"E160+E171","v":182},{"$f":"SQRT((F160^2)+(F171^2))","v":99.02019995940222},{"$f":"G160+G171","v":232},{"$f":"SQRT((H160^2)+(H171^2))","v":88.75246475450696},{"$f":"I160+I171","v":89},{"$f":"SQRT((J160^2)+(J171^2))","v":34.539832078341085},{"$f":"K160+K171","v":25},{"$f":"SQRT((L160^2)+(L171^2))","v":16.278820596099706},{"$f":"M160+M171","v":53},{"$f":"SQRT((N160^2)+(N171^2))","v":25.495097567963924},{"$f":"O160+O171","v":110},{"$f":"SQRT((P160^2)+(P171^2))","v":60.166435825965294},{"$f":"Q160+Q171","v":15},{"$f":"SQRT((R160^2)+(R171^2))","v":9.8994949366116654},{"$f":"S160+S171","v":35},{"$f":"SQRT((T160^2)+(T171^2))","v":22.135943621178654},{"$f":"U160+U171","v":135},{"$f":"SQRT((V160^2)+(V171^2))","v":64.660652641308843},{"$f":"W160+W171","v":117},{"$f":"SQRT((X160^2)+(X171^2))","v":59.076221950967721},48,{"$f":"SQRT((Z160^2)+(Z171^2))","v":25.553864678361276},154,{"$f":"SQRT((AB160^2)+(AB171^2))","v":75.166481891864535},80,{"$f":"SQRT((AD160^2)+(AD171^2))","v":29.154759474226502},35,{"$f":"SQRT((AF160^2)+(AF171^2))","v":18.788294228055936}]
[null,"10.0 to 14.9 percent",34,15.811388300841896,225,114.23659658795863,439,130.20752666416791,85,31.827660925679098,38,16.970562748477139,31,16.124515496597098,167,63.702433234531945,37,19.697715603592208,61,36.235341863986875,233,146.54009690183776,116,{"$f":"SQRT((X161^2)+(X172^2))","v":45.221676218380054},107,34.409301068170507,160,72.201108024738787,68,24.698178070456937,84,29.206163733020468]
[null,"15.0 to 19.9 percent",44,21.470910553583888,379,139.31259813814398,687,163.78339354159201,105,38.483762809787713,55,29.154759474226502,23,12.206555615733702,214,71.021123618258812,69,33.120990323358392,60,26.40075756488817,255,104.70912090166739,200,57.801384066473702,43,25.553864678361276,168,79.81227975693966,49,21.095023109728988,63,32.526911934581186]
[null,"20.0 to 24.9 percent",23,18.601075237738275,201,86.452298986203942,531,128.22636234409833,52,19.416487838947599,31,14.317821063276353,25,12.206555615733702,110,45.221676218380054,42,25.709920264364882,53,26.248809496813376,335,122.70289320142373,161,45.177427992306072,72,30.610455730027933,122,69.771054170049638,85,36.138621999185304,59,24.351591323771842]
[null,"25.0 to 29.9 percent",23,17.262676501632068,192,98.838251704489394,446,147.95945390545344,40,21.540659228538015,18,14.866068747318506,25,15.811388300841896,90,40.496913462633174,29,21.633307652783937,25,15.524174696260024,219,94.70480452437458,76,35.805027579936315,64,30.463092423455635,144,67.119296778199342,58,31.89043743820395,36,20.615528128088304]
[null,"30.0 to 34.9 percent",20,14.317821063276353,240,110.67971810589327,280,112.72089424769483,33,21.377558326431949,15,9.4339811320566032,15,8.6023252670426267,62,34.785054261852174,9,14.212670403551895,37,21.377558326431949,86,67.186308128963304,70,37.8549864614954,21,13.601470508735444,72,47.927027865287037,66,28.792360097775937,27,23.706539182259394]
[null,"35.0 to 39.9 percent",12,11.704699910719626,121,73.355299740373226,160,69.921384425653358,44,19.416487838947599,8,13.038404810405298,38,22.203603311174518,84,58.051701094799967,7,5.6568542494923806,43,22.135943621178654,60,51.478150704935004,21,18.027756377319946,9,14.212670403551895,71,52.153619241621193,31,17.088007490635061,15,12.649110640673518]
[null,"40.0 to 49.9 percent",8,7.6157731058639087,134,68.352029962540243,276,110.53506231056279,20,17.804493814764857,13,14.212670403551895,23,10.295630140987001,55,40.311288741492746,18,14.560219778561036,27,15.811388300841896,232,122.0245876862528,16,17.029386365926403,29,16.643316977093239,47,34.655446902326915,39,24.596747752497688,32,14.317821063276353]
[null,"50.0 percent or more",{"$f":"C168+C179","v":39},19.209372712298546,169,93.23089616645332,398,142.80406156688963,81,30.463092423455635,37,21.633307652783937,40,19.104973174542799,102,55.009090157900268,21,12.806248474865697,24,14.422205101855956,231,105,40,21.470910553583888,60,30.610455730027933,160,78.185676437567508,67,25.298221281347036,66,28.460498941515414]
[null,"Not computed",0,15.556349186104045,0,22.627416997969522,17,26.90724809414742,3,11.704699910719626,0,15.556349186104045,0,15.556349186104045,9,18.601075237738275,0,15.556349186104045,0,15.556349186104045,0,22.627416997969522,0,15.556349186104045,0,15.556349186104045,0,15.556349186104045,3,11.704699910719626,11,21.095023109728988]
[]
[]
[]
[]
[null,"Calculated MONTHLY OWNER COSTS AS A PERCENTAGE OF HOUSEHOLD INCOME IN THE PAST 12 MONTHS "]
[null,"Universe:  OWNER-OCCUPIED HOUSING UNITS"]
[null,{"$f":"B154","v":"Data Set: 2008-2012 American Community Survey 5-Year Estimates"}]
[null,null,"Acworth",null,"Charlestown",null,"Claremont",null,"Cornish",null,"Croydon",null,"Goshen",null,"Grantham",null,"Langdon",null,"Lempster",null,"Newport",null,"Plainfield",null,"Springfield",null,"Sunapee",null,"Unity",null,"Washington"]
[null," ","Estimate","Margin of Error","Estimate","Margin of Error","Estimate","Margin of Error","Estimate","Margin of Error","Estimate","Margin of Error","Estimate","Margin of Error","Estimate","Margin of Error","Estimate","Margin of Error","Estimate","Margin of Error","Estimate","Margin of Error","Estimate","Margin of Error","Estimate","Margin of Error","Estimate","Margin of Error","Estimate","Margin of Error","Estimate","Margin of Error"]
[null,"Total:",{"$f":"C190","v":222},44,1843,158,3466,228,552,65,240,40,273,44,1003,96,247,44,365,56,1786,194,817,78,{"$f":"Y190","v":453},59,1098,155,546,50,428,64]
[null,"Less than 20% of HH Income",{"$f":"C191+C192+C193","v":97},{"$f":"SQRT((D191^2)+(D192^2)+(D193^2))","v":31.240998703626616},{"$f":"E191+E192+E193","v":786},{"$f":"SQRT((F191^2)+(F192^2)+(F193^2))","v":205.57966825539921},{"$f":"G191+G192+G193","v":1358},{"$f":"SQRT((H191^2)+(H192^2)+(H193^2))","v":227.27956353354782},{"$f":"I191+I192+I193","v":279},{"$f":"SQRT((J191^2)+(J192^2)+(J193^2))","v":60.720671933041061},{"$f":"K191+K192+K193","v":118},{"$f":"SQRT((L191^2)+(L192^2)+(L193^2))","v":37.456641600656084},{"$f":"M191+M192+M193","v":107},{"$f":"SQRT((N191^2)+(N192^2)+(N193^2))","v":32.542280190545959},{"$f":"O191+O192+O193","v":491},{"$f":"SQRT((P191^2)+(P192^2)+(P193^2))","v":112.79184367674819},{"$f":"Q191+Q192+Q193","v":121},{"$f":"SQRT((R191^2)+(R192^2)+(R193^2))","v":39.786932528155525},{"$f":"S191+S192+S193","v":156},{"$f":"SQRT((T191^2)+(T192^2)+(T193^2))","v":50},{"$f":"U191+U192+U193","v":623},{"$f":"SQRT((V191^2)+(V192^2)+(V193^2))","v":191.36091554964926},{"$f":"W191+W192+W193","v":433},{"$f":"SQRT((X191^2)+(X192^2)+(X193^2))","v":94.212525706511016},{"$f":"Y191+Y192+Y193","v":198},{"$f":"SQRT((Z191^2)+(Z192^2)+(Z193^2))","v":49.899899799498598},{"$f":"AA191+AA192+AA193","v":482},{"$f":"SQRT((AB191^2)+(AB192^2)+(AB193^2))","v":131.27452151883853},{"$f":"AC191+AC192+AC193","v":197},{"$f":"SQRT((AD191^2)+(AD192^2)+(AD193^2))","v":43.646305685590391},{"$f":"AE191+AE192+AE193","v":182},{"$f":"SQRT((AF191^2)+(AF192^2)+(AF193^2))","v":47.581509013481273}]
[null," 20% to 29.9% of HH Income",{"$f":"C194+C195","v":46},{"$f":"SQRT((D194^2)+(D195^2))","v":25.37715508089904},{"$f":"E194+E195","v":393},{"$f":"SQRT((F194^2)+(F195^2))","v":131.31260411704582},{"$f":"G194+G195","v":977},{"$f":"SQRT((H194^2)+(H195^2))","v":195.79070458017154},{"$f":"I194+I195","v":92},{"$f":"SQRT((J194^2)+(J195^2))","v":29},{"$f":"K194+K195","v":49},{"$f":"SQRT((L194^2)+(L195^2))","v":20.639767440550294},{"$f":"M194+M195","v":50},{"$f":"SQRT((N194^2)+(N195^2))","v":19.974984355438178},{"$f":"O194+O195","v":200},{"$f":"SQRT((P194^2)+(P195^2))","v":60.704200843104758},{"$f":"Q194+Q195","v":71},{"$f":"SQRT((R194^2)+(R195^2))","v":33.600595232822883},{"$f":"S194+S195","v":78},{"$f":"SQRT((T194^2)+(T195^2))","v":30.495901363953813},{"$f":"U194+U195","v":554},{"$f":"SQRT((V194^2)+(V195^2))","v":155},{"$f":"W194+W195","v":237},{"$f":"SQRT((X194^2)+(X195^2))","v":57.645468165329355},{"$f":"Y194+Y195","v":136},{"$f":"SQRT((Z194^2)+(Z195^2))","v":43.185645763378368},{"$f":"AA194+AA195","v":266},{"$f":"SQRT((AB194^2)+(AB195^2))","v":96.81425514871249},{"$f":"AC194+AC195","v":143},{"$f":"SQRT((AD194^2)+(AD195^2))","v":48.19751030914356},{"$f":"AE194+AE195","v":95},{"$f":"SQRT((AF194^2)+(AF195^2))","v":31.906112267087636}]
[null," Less Than 30% of HH Income",{"$f":"C191+C192+C193+C194+C195","v":143},{"$f":"SQRT((D191^2)+(D192^2)+(D193^2)+(D194^2)+(D195^2))","v":40.249223594996216},{"$f":"E191+E192+E193+E194+E195","v":1179},{"$f":"SQRT((F191^2)+(F192^2)+(F193^2)+(F194^2)+(F195^2))","v":243.93851684389654},{"$f":"G191+G192+G193+G194+G195","v":2335},{"$f":"SQRT((H191^2)+(H192^2)+(H193^2)+(H194^2)+(H195^2))","v":299.98333287034467},{"$f":"I191+I192+I193+I194+I195","v":371},{"$f":"SQRT((J191^2)+(J192^2)+(J193^2)+(J194^2)+(J195^2))","v":67.29041536504289},{"$f":"K191+K192+K193+K194+K195","v":167},{"$f":"SQRT((L191^2)+(L192^2)+(L193^2)+(L194^2)+(L195^2))","v":42.766809560686191},{"$f":"M191+M192+M193+M194+M195","v":157},{"$f":"SQRT((N191^2)+(N192^2)+(N193^2)+(N194^2)+(N195^2))","v":38.183766184073569},{"$f":"O191+O192+O193+O194+O195","v":691},{"$f":"SQRT((P191^2)+(P192^2)+(P193^2)+(P194^2)+(P195^2))","v":128.08981224125515},{"$f":"Q191+Q192+Q193+Q194+Q195","v":192},{"$f":"SQRT((R191^2)+(R192^2)+(R193^2)+(R194^2)+(R195^2))","v":52.076866265166146},{"$f":"S191+S192+S193+S194+S195","v":234},{"$f":"SQRT((T191^2)+(T192^2)+(T193^2)+(T194^2)+(T195^2))","v":58.566201857385288},{"$f":"U191+U192+U193+U194+U195","v":1177},{"$f":"SQRT((V191^2)+(V192^2)+(V193^2)+(V194^2)+(V195^2))","v":246.26002517664128},{"$f":"W191+W192+W193+W194+W195","v":670},{"$f":"SQRT((X191^2)+(X192^2)+(X193^2)+(X194^2)+(X195^2))","v":110.44908329180464},{"$f":"Y191+Y192+Y193+Y194+Y195","v":334},{"$f":"SQRT((Z191^2)+(Z192^2)+(Z193^2)+(Z194^2)+(Z195^2))","v":65.992423807585666},{"$f":"AA191+AA192+AA193+AA194+AA195","v":748},{"$f":"SQRT((AB191^2)+(AB192^2)+(AB193^2)+(AB194^2)+(AB195^2))","v":163.11345744603662},{"$f":"AC191+AC192+AC193+AC194+AC195","v":340},{"$f":"SQRT((AD191^2)+(AD192^2)+(AD193^2)+(AD194^2)+(AD195^2))","v":65.023072828035438},{"$f":"AE191+AE192+AE193+AE194+AE195","v":277},{"$f":"SQRT((AF191^2)+(AF192^2)+(AF193^2)+(AF194^2)+(AF195^2))","v":57.288742349610018}]
[null," 30% or More of HH Income",{"$f":"C196+C197+C198+C199","v":79},{"$f":"SQRT((D196^2)+(D197^2)+(D198^2)+(D199^2))","v":27.730849247724095},{"$f":"E196+E197+E198+E199","v":664},{"$f":"SQRT((F196^2)+(F197^2)+(F198^2)+(F199^2))","v":176.05396899814556},{"$f":"G196+G197+G198+G199","v":1114},{"$f":"SQRT((H196^2)+(H197^2)+(H198^2)+(H199^2))","v":224.06695427929571},{"$f":"I196+I197+I198+I199","v":178},{"$f":"SQRT((J196^2)+(J197^2)+(J198^2)+(J199^2))","v":45.596052460711988},{"$f":"K196+K197+K198+K199","v":73},{"$f":"SQRT((L196^2)+(L197^2)+(L198^2)+(L199^2))","v":30.479501308256342},{"$f":"M196+M197+M198+M199","v":116},{"$f":"SQRT((N196^2)+(N197^2)+(N198^2)+(N199^2))","v":32.218007387174026},{"$f":"O196+O197+O198+O199","v":303},{"$f":"SQRT((P196^2)+(P197^2)+(P198^2)+(P199^2))","v":96.0780932366999},{"$f":"Q196+Q197+Q198+Q199","v":55},{"$f":"SQRT((R196^2)+(R197^2)+(R198^2)+(R199^2))","v":24.698178070456937},{"$f":"S196+S197+S198+S199","v":131},{"$f":"SQRT((T196^2)+(T197^2)+(T198^2)+(T199^2))","v":37.483329627982627},{"$f":"U196+U197+U198+U199","v":609},{"$f":"SQRT((V196^2)+(V197^2)+(V198^2)+(V199^2))","v":181.87633161024553},{"$f":"W196+W197+W198+W199","v":147},{"$f":"SQRT((X196^2)+(X197^2)+(X198^2)+(X199^2))","v":50.089919145472777},{"$f":"Y196+Y197+Y198+Y199","v":119},{"$f":"SQRT((Z196^2)+(Z197^2)+(Z198^2)+(Z199^2))","v":40.01249804748511},{"$f":"AA196+AA197+AA198+AA199","v":350},{"$f":"SQRT((AB196^2)+(AB197^2)+(AB198^2)+(AB199^2))","v":111.04503590885997},{"$f":"AC196+AC197+AC198+AC199","v":203},{"$f":"SQRT((AD196^2)+(AD197^2)+(AD198^2)+(AD199^2))","v":48.641546028061235},{"$f":"AE196+AE197+AE198+AE199","v":140},{"$f":"SQRT((AF196^2)+(AF197^2)+(AF198^2)+(AF199^2))","v":41.677331968349414}]
[null," 30% to 34.9% of HH Income",{"$f":"C196","v":20},{"$f":"D196","v":14.317821063276353},{"$f":"E196","v":240},110.67971810589327,280,112.72089424769483,33,21.377558326431949,15,9.4339811320566032,15,8.6023252670426267,62,34.785054261852174,9,14.212670403551895,37,21.377558326431949,86,67.186308128963304,70,37.8549864614954,{"$f":"Y196","v":21},13.601470508735444,72,47.927027865287037,66,28.792360097775937,27,23.706539182259394]
[null," Less Than 35% of HH Income",{"$f":"C191+C192+C193+C194+C195+C196","v":163},{"$f":"SQRT((D191^2)+(D192^2)+(D193^2)+(D194^2)+(D195^2)+(D196^2))","v":42.720018726587654},{"$f":"E191+E192+E193+E194+E195+E196","v":1419},{"$f":"SQRT((F191^2)+(F192^2)+(F193^2)+(F194^2)+(F195^2)+(F196^2))","v":267.8731042863393},{"$f":"G191+G192+G193+G194+G195+G196","v":2615},{"$f":"SQRT((H191^2)+(H192^2)+(H193^2)+(H194^2)+(H195^2)+(H196^2))","v":320.46216625367805},{"$f":"I191+I192+I193+I194+I195+I196","v":404},{"$f":"SQRT((J191^2)+(J192^2)+(J193^2)+(J194^2)+(J195^2)+(J196^2))","v":70.604532432415411},{"$f":"K191+K192+K193+K194+K195+K196","v":182},{"$f":"SQRT((L191^2)+(L192^2)+(L193^2)+(L194^2)+(L195^2)+(L196^2))","v":43.79497688091638},{"$f":"M191+M192+M193+M194+M195+M196","v":172},{"$f":"SQRT((N191^2)+(N192^2)+(N193^2)+(N194^2)+(N195^2)+(N196^2))","v":39.14077158156185},{"$f":"O191+O192+O193+O194+O195+O196","v":753},{"$f":"SQRT((P191^2)+(P192^2)+(P193^2)+(P194^2)+(P195^2)+(P196^2))","v":132.72904731067726},{"$f":"Q191+Q192+Q193+Q194+Q195+Q196","v":201},{"$f":"SQRT((R191^2)+(R192^2)+(R193^2)+(R194^2)+(R195^2)+(R196^2))","v":53.981478305063121},{"$f":"S191+S192+S193+S194+S195+S196","v":271},{"$f":"SQRT((T191^2)+(T192^2)+(T193^2)+(T194^2)+(T195^2)+(T196^2))","v":62.345809803065357},{"$f":"U191+U192+U193+U194+U195+U196","v":1263},{"$f":"SQRT((V191^2)+(V192^2)+(V193^2)+(V194^2)+(V195^2)+(V196^2))","v":255.26065110000798},{"$f":"W191+W192+W193+W194+W195+W196","v":740},{"$f":"SQRT((X191^2)+(X192^2)+(X193^2)+(X194^2)+(X195^2)+(X196^2))","v":116.75615615461139},{"$f":"Y191+Y192+Y193+Y194+Y195+Y196","v":355},{"$f":"SQRT((Z191^2)+(Z192^2)+(Z193^2)+(Z194^2)+(Z195^2)+(Z196^2))","v":67.379522111692069},{"$f":"AA191+AA192+AA193+AA194+AA195+AA196","v":820},{"$f":"SQRT((AB191^2)+(AB192^2)+(AB193^2)+(AB194^2)+(AB195^2)+(AB196^2))","v":170.00882330043933},{"$f":"AC191+AC192+AC193+AC194+AC195+AC196","v":406},{"$f":"SQRT((AD191^2)+(AD192^2)+(AD193^2)+(AD194^2)+(AD195^2)+(AD196^2))","v":71.112586790244109},{"$f":"AE191+AE192+AE193+AE194+AE195+AE196","v":304},{"$f":"SQRT((AF191^2)+(AF192^2)+(AF193^2)+(AF194^2)+(AF195^2)+(AF196^2))","v":62}]
[null," 35% or More of HH Income",{"$f":"C197+C198+C199","v":59},{"$f":"SQRT((D197^2)+(D198^2)+(D199^2))","v":23.748684174075834},{"$f":"E197+E198+E199","v":424},{"$f":"SQRT((F197^2)+(F198^2)+(F199^2))","v":136.91238074038446},{"$f":"G197+G198+G199","v":834},{"$f":"SQRT((H197^2)+(H198^2)+(H199^2))","v":193.64916731037084},{"$f":"I197+I198+I199","v":145},{"$f":"SQRT((J197^2)+(J198^2)+(J199^2))","v":40.274061131204533},{"$f":"K197+K198+K199","v":58},{"$f":"SQRT((L197^2)+(L198^2)+(L199^2))","v":28.982753492378876},{"$f":"M197+M198+M199","v":101},{"$f":"SQRT((N197^2)+(N198^2)+(N199^2))","v":31.048349392520048},{"$f":"O197+O198+O199","v":241},{"$f":"SQRT((P197^2)+(P198^2)+(P199^2))","v":89.560035730229586},{"$f":"Q197+Q198+Q199","v":46},{"$f":"SQRT((R197^2)+(R198^2)+(R199^2))","v":20.199009876724155},{"$f":"S197+S198+S199","v":94},{"$f":"SQRT((T197^2)+(T198^2)+(T199^2))","v":30.789608636681304},{"$f":"U197+U198+U199","v":523},{"$f":"SQRT((V197^2)+(V198^2)+(V199^2))","v":169.01183390520322},{"$f":"W197+W198+W199","v":77},{"$f":"SQRT((X197^2)+(X198^2)+(X199^2))","v":32.802438933713454},{"$f":"Y197+Y198+Y199","v":98},{"$f":"SQRT((Z197^2)+(Z198^2)+(Z199^2))","v":37.629775444453557},{"$f":"AA197+AA198+AA199","v":278},{"$f":"SQRT((AB197^2)+(AB198^2)+(AB199^2))","v":100.16985574512923},{"$f":"AC197+AC198+AC199","v":137},{"$f":"SQRT((AD197^2)+(AD198^2)+(AD199^2))","v":39.204591567825318},{"$f":"AE197+AE198+AE199","v":113},{"$f":"SQRT((AF197^2)+(AF198^2)+(AF199^2))","v":34.278273002005221}]
[null," 50% or More of HH Income",{"$f":"C199","v":39},19.209372712298546,{"$f":"E199","v":169},93.23089616645332,398,142.80406156688963,81,30.463092423455635,37,21.633307652783937,40,19.104973174542799,102,55.009090157900268,21,12.806248474865697,24,14.422205101855956,231,105,40,21.470910553583888,{"$f":"Y199","v":60},30.610455730027933,160,78.185676437567508,67,25.298221281347036,66,28.460498941515414]
[null,"Not computed",0,15.556349186104045,0,22.627416997969522,17,26.90724809414742,3,11.704699910719626,0,15.556349186104045,0,15.556349186104045,9,18.601075237738275,0,15.556349186104045,0,15.556349186104045,0,22.627416997969522,0,15.556349186104045,{"$f":"Y200","v":0},15.556349186104045,0,15.556349186104045,3,11.704699910719626,11,21.095023109728988]
[null,"Not computed",0,0,{"$f":"E201","v":0},0,0,0,0,0,0,0,0,0,0,0,0,0,0,0,0,0,0,0,{"$f":"Y201","v":0},0,0,0,0,0,0,0]

{"sheet":"ACS_Table_B25106","index":70,"n_rows":255,"n_cols":56,"rows_kept":255,"cut":false,"hidden":true,"merged":[]}
[null,"B25106. TENURE BY HOUSING COSTS AS A PERCENTAGE OF HOUSEHOLD INCOME IN THE PAST 12 MONTHS"]
[null,"Universe:  OCCUPIED HOUSING UNITS"]
[null,"Data Set: 2018-2022 American Community Survey 5-Year Estimates"]
[]
[null,null,"Acworth",null,"Charlestown",null,"Claremont",null,"Cornish",null,"Croydon",null,"Goshen",null,"Grantham",null,"Langdon",null,"Lempster",null,"Newport",null,"Plainfield",null,"Springfield",null,"Sunapee",null,"Unity",null,"Washington"]
[null,null,"Estimate","Margin of Error","Estimate","Margin of Error","Estimate","Margin of Error","Estimate","Margin of Error","Estimate","Margin of Error","Estimate","Margin of Error","Estimate","Margin of Error","Estimate","Margin of Error","Estimate","Margin of Error","Estimate","Margin of Error","Estimate","Margin of Error","Estimate","Margin of Error","Estimate","Margin of Error","Estimate","Margin of Error","Estimate","Margin of Error"]
[null,"Total:",239,42,1847,209,5203,325,762,147,232,49,303,72,1149,128,226,45,316,61,2478,224,831,84,294,83,1122,162,478,77,413,71]
[null,"Owner occupied housing units:",216,40,1328,180,3082,304,737,146,211,47,250,71,1091,138,205,43,299,59,1479,250,760,85,264,79,894,149,447,72,381,68]
[null,"Less than $20,000:",12,14,152,123,44,38,73,67,10,13,31,23,50,76,5,5,15,13,88,73,48,33,13,13,0,12,36,20,11,13]
[null,"Less than 20 percent",0,12,0,12,0,19,0,12,0,12,4,8,0,12,0,12,0,12,0,17,0,12,0,12,0,12,13,17,0,12]
[null,"20 to 29 percent",0,12,57,89,0,19,0,12,0,12,0,12,0,12,0,12,9,14,0,17,4,6,0,12,0,12,0,12,0,12]
[null,"30 percent or more",12,14,95,83,44,38,73,67,10,13,27,19,50,76,5,5,6,7,88,73,44,34,13,13,0,12,23,12,11,13]
[null,"$20,000 to $34,999:",9,9,108,92,293,139,59,34,12,10,23,14,91,92,13,10,31,22,121,87,45,36,20,16,63,53,69,33,27,20]
[null,"Less than 20 percent",0,12,63,81,0,19,13,17,2,3,0,12,0,12,1,4,2,4,0,17,0,12,0,12,0,12,8,12,8,13]
[null,"20 to 29 percent",3,5,29,34,41,37,0,12,2,3,7,8,0,12,4,4,15,17,30,35,4,6,8,9,6,11,11,17,0,12]
[null,"30 percent or more",6,7,16,26,252,137,46,29,8,8,16,12,91,92,8,8,14,14,91,74,41,36,12,13,57,50,50,25,19,15]
[null,"$35,000 to $49,999:",11,14,270,121,371,147,18,14,10,8,53,42,37,44,26,17,27,14,160,105,28,19,30,24,83,91,28,14,54,25]
[null,"Less than 20 percent",3,4,84,67,41,36,2,3,2,5,12,18,0,12,20,16,11,8,10,15,0,12,0,12,0,12,5,5,34,22]
[null,"20 to 29 percent",0,12,34,39,176,113,4,6,2,4,5,5,0,12,2,3,2,4,21,23,5,7,3,5,83,91,13,11,18,13]
[null,"30 percent or more",8,13,152,99,154,89,12,12,6,6,36,36,37,44,4,4,14,11,129,105,23,20,27,24,0,12,10,7,2,4]
[null,"$50,000 to $74,999:",64,28,173,104,744,204,107,33,42,20,39,22,206,105,29,15,41,19,145,66,29,20,24,20,104,50,103,30,45,16]
[null,"Less than 20 percent",17,13,105,91,347,177,70,26,13,8,7,7,93,71,21,13,9,7,131,63,4,6,7,8,4,8,41,21,21,15]
[null,"20 to 29 percent",15,12,20,24,148,91,11,10,16,12,12,12,41,62,5,4,29,18,0,17,0,12,16,16,43,26,34,16,13,13]
[null,"30 percent or more",32,22,48,47,249,123,26,12,13,8,20,18,72,62,3,4,3,4,14,24,25,18,1,3,57,41,28,15,11,8]
[null,"$75,000 or more:",118,34,543,122,1540,255,480,141,137,38,104,30,707,164,132,36,180,44,864,197,610,86,177,71,616,120,200,45,234,58]
[null,"Less than 20 percent",74,27,422,111,977,224,224,46,82,25,73,21,530,170,94,30,126,39,689,192,362,87,132,59,468,114,148,41,158,50]
[null,"20 to 29 percent",34,25,99,67,444,165,213,132,41,30,21,18,99,62,38,20,46,25,126,104,211,97,24,21,101,57,48,23,40,22]
[null,"30 percent or more",10,12,22,31,119,95,43,26,14,12,10,14,78,72,0,12,8,7,49,46,37,33,21,20,47,33,4,5,36,23]
[null,"Zero or negative income",2,3,82,85,90,97,0,12,0,12,0,12,0,12,0,12,5,7,101,114,0,12,0,12,28,44,11,11,10,17]
[null,"Renter occupied housing units:",23,14,519,167,2121,312,25,13,21,13,53,22,58,72,21,15,17,19,999,259,71,37,30,24,228,97,31,19,32,23]
[null,"Less than $20,000:",0,12,133,87,628,189,9,7,0,12,7,10,0,12,0,12,0,12,241,132,0,12,3,5,44,47,4,6,9,14]
[null,"Less than 20 percent",0,12,0,12,32,37,0,12,0,12,0,12,0,12,0,12,0,12,33,49,0,12,0,12,0,12,0,12,0,12]
[null,"20 to 29 percent",0,12,27,33,74,77,0,12,0,12,0,12,0,12,0,12,0,12,0,17,0,12,0,12,0,12,0,12,0,12]
[null,"30 percent or more",0,12,106,77,522,188,9,7,0,12,7,10,0,12,0,12,0,12,208,118,0,12,3,5,44,47,4,6,9,14]
[null,"$20,000 to $34,999:",0,12,95,81,602,218,4,5,2,4,0,12,0,12,5,5,7,8,166,112,15,17,0,12,0,12,0,12,4,6]
[null,"Less than 20 percent",0,12,0,12,22,36,0,12,0,12,0,12,0,12,0,12,0,12,32,37,0,12,0,12,0,12,0,12,0,12]
[null,"20 to 29 percent",0,12,31,26,72,49,0,12,0,12,0,12,0,12,0,12,0,12,0,17,0,12,0,12,0,12,0,12,4,6]
[null,"30 percent or more",0,12,64,74,508,213,4,5,2,4,0,12,0,12,5,5,7,8,134,113,15,17,0,12,0,12,0,12,0,12]
[null,"$35,000 to $49,999:",2,3,20,33,379,155,0,12,1,2,6,9,0,12,9,11,0,12,82,85,9,15,0,12,33,41,3,4,0,12]
[null,"Less than 20 percent",0,12,0,12,25,31,0,12,0,12,0,12,0,12,2,3,0,12,0,17,0,12,0,12,0,12,0,12,0,12]
[null,"20 to 29 percent",2,3,20,33,120,91,0,12,0,12,0,12,0,12,7,10,0,12,13,22,0,12,0,12,8,13,0,12,0,12]
[null,"30 percent or more",0,12,0,12,234,121,0,12,1,2,6,9,0,12,0,12,0,12,69,83,9,15,0,12,25,39,3,4,0,12]
[null,"$50,000 to $74,999:",4,3,42,51,304,141,0,12,0,12,3,4,13,22,5,5,10,16,133,120,7,11,6,11,38,27,2,4,17,18]
[null,"Less than 20 percent",0,12,0,12,65,88,0,12,0,12,0,12,0,12,0,12,0,12,21,30,0,12,0,12,21,27,0,12,0,12]
[null,"20 to 29 percent",2,3,42,51,168,115,0,12,0,12,3,4,0,12,0,12,10,16,76,97,0,12,6,11,6,10,2,4,17,18]
[null,"30 percent or more",2,3,0,12,71,70,0,12,0,12,0,12,13,22,5,5,0,12,36,49,7,11,0,12,11,14,0,12,0,12]
[null,"$75,000 or more:",7,7,115,85,208,87,6,5,7,9,23,19,45,65,0,12,0,12,342,184,40,23,13,16,92,79,3,4,2,3]
[null,"Less than 20 percent",7,7,115,85,188,80,4,4,2,4,13,11,45,65,0,12,0,12,233,118,28,20,13,16,5,9,0,12,2,3]
[null,"20 to 29 percent",0,12,0,12,20,27,2,3,5,8,0,12,0,12,0,12,0,12,109,117,12,13,0,12,69,76,3,4,0,12]
[null,"30 percent or more",0,12,0,12,0,19,0,12,0,12,10,17,0,12,0,12,0,12,0,17,0,12,0,12,18,23,0,12,0,12]
[null,"Zero or negative income",7,10,92,86,0,19,0,12,5,7,5,8,0,12,0,12,0,12,21,32,0,12,8,14,21,33,0,12,0,12]
[null,"No cash rent",3,4,22,35,0,19,6,7,6,4,9,8,0,12,2,3,0,12,14,23,0,12,0,12,0,12,19,16,0,12]
[]
[]
[]
[]
[]
[]
[null,"Calculated B25106. TENURE BY HOUSING COSTS AS A PERCENTAGE OF HOUSEHOLD INCOME IN THE PAST 12 MONTHS"]
[null,"Universe:  OCCUPIED HOUSING UNITS"]
[null,"Data Set: 2018-2022 American Community Survey 5-Year Estimates"]
[]
[null,null,"Acworth",null,"Charlestown",null,"Claremont",null,"Cornish",null,"Croydon",null,"Goshen",null,"Grantham",null,"Langdon",null,"Lempster",null,"Newport",null,"Plainfield",null,"Springfield",null,"Sunapee",null,"Unity",null,"Washington"]
[null,null,"Estimate","Margin of Error","Estimate","Margin of Error","Estimate","Margin of Error","Estimate","Margin of Error","Estimate","Margin of Error","Estimate","Margin of Error","Estimate","Margin of Error","Estimate","Margin of Error","Estimate","Margin of Error","Estimate","Margin of Error","Estimate","Margin of Error","Estimate","Margin of Error","Estimate","Margin of Error","Estimate","Margin of Error","Estimate","Margin of Error"]
[null,{"$f":"B7","v":"Total:"},239,42,1847,209,5203,325,762,147,232,49,303,72,1149,128,226,45,316,61,2478,224,831,84,{"$f":"Y7","v":294},83,1122,162,478,77,413,71,0,0,0,0,0,0,0,0,0,0,0,0,0,0,0,0,0,0,0,0,0,0,0,0]
[null,"Owner occupied housing units:",216,40,1328,180,3082,304,737,146,211,47,250,71,1091,138,205,43,299,59,1479,250,760,85,264,79,894,149,447,72,381,68,0,0,0,0,0,0,0,0,0,0,0,0,0,0,0,0,0,0,0,0,0,0,0,0]
[null,"Less than 20 percent",{"$f":"C10+C14+C18+C22+C26","v":94},{"$f":"SQRT((D10^2)+(D14^2)+(D18^2)+(D22^2)+(D26^2))","v":34.669871646719429},{"$f":"SQRT((E10^2)+(E14^2)+(E18^2)+(E22^2)+(E26^2))","v":447.36338696858058},178.31432920547917,1037.6025250547534,289.00346018689811,235.05105828308879,56.868268832451726,83.072257703760528,29.444863728670914,74.417739820556221,31.968734726291562,538.09757479475786,185.39956850003725,98.376826539587057,38.535697735995385,126.81482563170601,42.355637169094742,701.41428556880703,204.04901371974333,362.0220987729893,89.649316784903604,132.18547575282241,63.063460101710248,468.01709370492011,116.15506876585283,154.41178711484432,50.793700396801178,163.1716887208072,59.346440499831161,0,0,0,0,0,0,0,0,0,0,0,0,0,0,0,0,0,0,0,0,0,0,0,0]
[null,"20 to 29 percent",{"$f":"C11+C15+C19+C23+C27","v":52},{"$f":"SQRT((D11^2)+(D15^2)+(D19^2)+(D23^2)+(D27^2))","v":32.893768406797051},124.28596059088895,125.15190769620733,501.69412992380126,223.61797781037194,213.32135383031863,133.59640713731787,44.10215414239989,34.828149534535996,25.670995305986871,26.476404589747453,107.15409464878138,90.111042608550477,38.587562763149478,24.186773244895647,57.157676649772952,38.078865529319543,131.21356637177422,114.66472866579331,211.13502788500065,98.356494447494413,30.083217912982647,30.773365106858236,137.7497731395591,111.67363162358427,61.237243569579455,36.592348927063973,45.749316934791494,33.316662497915367,0,0,0,0,0,0,0,0,0,0,0,0,0,0,0,0,0,0,0,0,0,0,0,0]
[null,"30 percent or more",{"$f":"C12+C16+C20+C24+C28","v":68},{"$f":"SQRT((D12^2)+(D16^2)+(D20^2)+(D24^2)+(D28^2))","v":32.280024783137947},187.5446613476374,143.30387294138285,406.59316275608967,228.66569484730323,100.56838469419701,79.334733881194808,23.769728648009426,21.840329667841555,52.735187493740838,48.176757881783615,153.02940893828219,158.75767697972907,10.677078252031311,16.278820596099706,22.383029285599392,20.760539492026695,187.78445090049388,156.59501907787489,78.358152096638932,65.30696746902278,38.522720568516448,36.373066958946424,93.311306924723752,74.55199527846321,62.681735776859277,32.680269276736382,43.623388222374473,31.670175244226233,0,0,0,0,0,0,0,0,0,0,0,0,0,0,0,0,0,0,0,0,0,0,0,0]
[null,"Zero or negative income",{"$f":"C29","v":2},{"$f":"D29","v":3},{"$f":"E29","v":82},85,90,97,0,12,0,12,0,12,0,12,0,12,5,7,101,114,0,12,0,12,28,44,11,11,10,17,0,0,0,0,0,0,0,0,0,0,0,0,0,0,0,0,0,0,0,0,0,0,0,0]
[null,"Renter occupied housing units:",{"$f":"C30","v":23},{"$f":"D30","v":14},519,167,2121,312,25,13,21,13,53,22,58,72,21,15,17,19,999,259,71,37,30,24,228,97,31,19,32,23,0,0,0,0,0,0,0,0,0,0,0,0,0,0,0,0,0,0,0,0,0,0,0,0]
[null,"Less than 20 percent",{"$f":"C32+C36+C40+C44+C48","v":7},{"$f":"SQRT((D32^2)+(D36^2)+(D40^2)+(D44^2)+(D48^2))","v":25},{"$f":"SQRT((E32^2)+(E36^2)+(E40^2)+(E44^2)+(E48^2))","v":115},88.323269867006175,204.21067552897424,133.30416347586447,4,24.331050121192877,2,24.331050121192877,13,26.40075756488817,45,69.289248805280025,2,24.186773244895647,0,26.832815729997478,238.41770068516306,137.41542853697325,28,31.240998703626616,13,28.844410203711913,21.587033144922902,35.242020373412188,0,26.832815729997478,2,24.186773244895647,0,0,0,0,0,0,0,0,0,0,0,0,0,0,0,0,0,0,0,0,0,0,0,0]
[null,"20 to 29 percent",{"$f":"C33+C37+C41+C45+C49","v":4},{"$f":"SQRT((D33^2)+(D37^2)+(D41^2)+(D45^2)+(D49^2))","v":21.213203435596427},62.080592780675026,74.82646590612174,231.69807940507405,174.82848738120455,2,24.186773244895647,5,25.298221281347036,3,24.331050121192877,0,26.832815729997478,7,26,10,28.844410203711913,133.51404420509476,155.43487382180359,12,27.294688127912362,6,26.40075756488817,69.72087205421343,79.58014827832379,3.6055512754639891,21.540659228538015,17.464249196572979,28.142494558940577,0,0,0,0,0,0,0,0,0,0,0,0,0,0,0,0,0,0,0,0,0,0,0,0]
[null,"30 percent or more",{"$f":"C34+C38+C42+C46+C50","v":2},{"$f":"SQRT((D34^2)+(D38^2)+(D42^2)+(D46^2)+(D50^2))","v":24.186773244895647},123.82245353731285,108.79797792238604,768.33911783795054,317.19867591148613,9.8488578017961039,22.494443758403985,2.2360679774997898,21.2602916254693,13.601470508735444,27.531799795872409,13,32.557641192199412,7.0710678118654755,21.95449840010015,7,25.298221281347036,259.37810239108467,190.45209371387861,18.841443681416774,30.380915061926625,3,24.515301344262525,54.827000647491197,67.815927332743897,5,22,9,27.784887978899608,0,0,0,0,0,0,0,0,0,0,0,0,0,0,0,0,0,0,0,0,0,0,0,0]
[null,"Zero or negative income",{"$f":"C51","v":7},{"$f":"D51","v":10},{"$f":"E51","v":92},86,0,19,0,12,5,7,5,8,0,12,0,12,0,12,21,32,0,12,8,14,21,33,0,12,0,12,0,0,0,0,0,0,0,0,0,0,0,0,0,0,0,0,0,0,0,0,0,0,0,0]
[null,"No cash rent",{"$f":"C52","v":3},{"$f":"D52","v":4},22,35,0,19,6,7,6,4,9,8,0,12,2,3,0,12,14,23,0,12,0,12,0,12,19,16,0,12,0,0,0,0,0,0,0,0,0,0,0,0,0,0,0,0,0,0,0,0,0,0,0,0]
[]
[]
[]
[]
[]
[]
[]
[]
[]
[]
[]
[]
[]
[]
[]
[]
[]
[]
[]
[]
[]
[]
[]
[null,"B25106. TENURE BY HOUSING COSTS AS A PERCENTAGE OF HOUSEHOLD INCOME IN THE PAST 12 MONTHS"]
[null,"Universe:  OCCUPIED HOUSING UNITS"]
[null,"Data Set: 2013-2017 American Community Survey 5-Year Estimates"]
[]
[null,null,"Acworth",null,"Charlestown",null,"Claremont",null,"Cornish",null,"Croydon",null,"Goshen",null,"Grantham",null,"Langdon",null,"Lempster",null,"Newport",null,"Plainfield",null,"Springfield",null,"Sunapee",null,"Unity",null,"Washington"]
[null,null,"Estimate","Margin of Error","Estimate","Margin of Error","Estimate","Margin of Error","Estimate","Margin of Error","Estimate","Margin of Error","Estimate","Margin of Error","Estimate","Margin of Error","Estimate","Margin of Error","Estimate","Margin of Error","Estimate","Margin of Error","Estimate","Margin of Error","Estimate","Margin of Error","Estimate","Margin of Error","Estimate","Margin of Error","Estimate","Margin of Error"]
[null,"Total:",427,62,2102,160,5567,221,722,71,274,49,271,48,1153,125,292,38,409,63,2573,202,920,83,435,74,1553,140,526,60,556,85]
[null,"Owner occupied housing units:",388,61,1673,187,3163,298,641,70,241,43,206,37,1050,136,266,37,387,62,1793,232,821,94,380,67,1049,117,489,56,507,82]
[null,"Less than $20,000:",49,26,216,94,317,114,37,21,18,15,5,5,34,38,20,15,38,22,86,59,17,14,26,17,76,47,46,23,40,23]
[null,"Less than 20 percent",3,4,0,16,0,18,0,11,2,4,0,11,0,11,0,11,0,11,15,25,0,11,0,11,0,11,3,5,0,11]
[null,"20 to 29 percent",2,3,0,16,19,21,0,11,0,11,0,11,0,11,0,11,7,12,28,32,0,11,0,11,18,28,8,11,8,15]
[null,"30 percent or more",44,25,216,94,298,113,37,21,16,14,5,5,34,38,20,15,31,17,43,40,17,14,26,17,58,42,35,20,32,20]
[null,"$20,000 to $34,999:",39,19,274,121,502,124,78,37,28,17,47,22,63,55,20,11,67,31,159,81,105,41,53,29,136,77,72,29,68,31]
[null,"Less than 20 percent",2,3,88,74,50,40,23,25,16,14,9,11,0,11,2,3,21,20,41,38,6,8,3,4,12,14,4,6,0,11]
[null,"20 to 29 percent",8,7,44,43,92,75,19,19,4,5,17,11,11,17,3,4,15,15,12,19,22,17,13,14,27,32,6,6,6,6]
[null,"30 percent or more",29,18,142,79,360,123,36,22,8,7,21,15,52,52,15,10,31,18,106,70,77,40,37,25,97,71,62,28,62,31]
[null,"$35,000 to $49,999:",63,23,264,123,340,100,86,29,29,15,31,13,90,80,18,11,47,21,275,114,87,43,22,18,85,56,66,25,52,21]
[null,"Less than 20 percent",29,17,114,95,46,32,12,9,8,7,16,11,12,19,3,6,18,16,90,66,31,23,4,6,22,18,9,8,16,15]
[null,"20 to 29 percent",14,10,71,59,134,62,34,21,9,7,2,3,43,55,2,4,17,13,72,51,32,27,0,11,0,11,16,10,8,8]
[null,"30 percent or more",20,15,79,56,160,86,40,20,12,11,13,8,35,54,13,8,12,9,113,71,24,27,18,17,63,57,41,23,28,16]
[null,"$50,000 to $74,999:",93,31,364,127,693,156,83,34,50,22,57,23,195,99,45,17,68,35,480,148,124,36,58,34,183,81,88,23,90,24]
[null,"Less than 20 percent",60,26,161,105,304,98,44,24,33,18,23,13,22,24,15,9,25,18,205,123,71,31,15,15,28,23,40,15,44,17]
[null,"20 to 29 percent",31,18,42,34,227,108,14,11,7,11,28,19,89,71,23,14,33,24,71,75,31,17,20,16,62,40,29,16,30,22]
[null,"30 percent or more",2,3,161,97,162,95,25,21,10,10,6,6,84,52,7,6,10,16,204,139,22,18,23,21,93,69,19,12,16,10]
[null,"$75,000 or more:",138,34,555,157,1243,218,357,61,116,35,64,23,668,116,161,33,163,49,793,169,488,79,221,51,558,101,217,43,246,77]
[null,"Less than 20 percent",97,31,334,117,631,138,244,49,93,32,55,21,476,102,117,33,131,48,676,176,366,71,174,51,316,86,130,40,189,74]
[null,"20 to 29 percent",27,15,199,121,496,178,92,35,17,13,9,9,174,103,35,16,25,12,117,72,103,35,28,22,89,49,87,33,50,29]
[null,"30 percent or more",14,9,22,26,116,73,21,13,6,9,0,11,18,20,9,9,7,11,0,16,19,16,19,19,153,99,0,11,7,8]
[null,"Zero or negative income",6,9,0,16,68,71,0,11,0,11,2,3,0,11,2,3,4,5,0,16,0,11,0,11,11,17,0,11,11,10]
[null,"Renter occupied housing units:",39,20,429,133,2404,276,81,38,33,21,65,32,103,80,26,18,22,14,780,174,99,45,55,34,504,158,37,19,49,36]
[null,"Less than $20,000:",0,11,129,80,554,174,15,11,4,6,4,5,0,11,5,8,0,11,277,137,0,11,0,11,95,84,0,11,0,11]
[null,"Less than 20 percent",0,11,0,16,9,15,0,11,0,11,0,11,0,11,0,11,0,11,29,32,0,11,0,11,0,11,0,11,0,11]
[null,"20 to 29 percent",0,11,15,24,107,73,0,11,0,11,0,11,0,11,0,11,0,11,14,22,0,11,0,11,0,11,0,11,0,11]
[null,"30 percent or more",0,11,114,77,438,154,15,11,4,6,4,5,0,11,5,8,0,11,234,131,0,11,0,11,95,84,0,11,0,11]
[null,"$20,000 to $34,999:",8,10,91,63,569,161,6,7,0,11,7,11,0,11,0,11,3,4,122,62,5,7,0,11,144,105,14,14,0,11]
[null,"Less than 20 percent",0,11,13,29,20,25,0,11,0,11,0,11,0,11,0,11,0,11,15,25,0,11,0,11,0,11,0,11,0,11]
[null,"20 to 29 percent",0,11,18,29,70,40,0,11,0,11,0,11,0,11,0,11,3,4,0,16,0,11,0,11,0,11,0,11,0,11]
[null,"30 percent or more",8,10,60,44,479,156,6,7,0,11,7,11,0,11,0,11,0,11,107,63,5,7,0,11,144,105,14,14,0,11]
[null,"$35,000 to $49,999:",6,5,28,34,467,179,3,5,0,11,14,16,17,28,0,11,8,6,72,79,15,10,14,16,90,74,7,9,0,11]
[null,"Less than 20 percent",0,11,13,21,46,38,3,5,0,11,0,11,17,28,0,11,2,3,12,20,0,11,0,11,12,20,0,11,0,11]
[null,"20 to 29 percent",3,4,15,25,260,110,0,11,0,11,0,11,0,11,0,11,3,4,60,76,4,7,9,14,0,11,7,9,0,11]
[null,"30 percent or more",3,4,0,16,161,112,0,11,0,11,14,16,0,11,0,11,3,4,0,16,11,8,5,8,78,71,0,11,0,11]
[null,"$50,000 to $74,999:",9,11,90,74,418,170,40,35,11,15,21,18,0,11,13,13,3,4,115,98,43,35,2,5,120,68,9,9,8,8]
[null,"Less than 20 percent",0,11,71,76,270,160,3,5,0,11,9,11,0,11,8,10,3,4,0,16,17,21,0,11,68,61,0,11,0,11]
[null,"20 to 29 percent",9,11,19,31,148,65,37,34,11,15,12,13,0,11,5,9,0,11,115,98,5,8,2,5,31,28,9,9,8,8]
[null,"30 percent or more",0,11,0,16,0,18,0,11,0,11,0,11,0,11,0,11,0,11,0,16,21,25,0,11,21,23,0,11,0,11]
[null,"$75,000 or more:",8,10,49,55,229,112,14,12,18,15,15,13,86,75,8,12,0,11,122,75,31,26,25,23,52,53,0,11,26,35]
[null,"Less than 20 percent",0,11,49,55,207,104,7,9,18,15,15,13,78,74,8,12,0,11,109,73,13,13,19,21,41,52,0,11,26,35]
[null,"20 to 29 percent",8,10,0,16,22,29,7,7,0,11,0,11,8,12,0,11,0,11,0,16,4,6,6,11,11,18,0,11,0,11]
[null,"30 percent or more",0,11,0,16,0,18,0,11,0,11,0,11,0,11,0,11,0,11,13,29,14,22,0,11,0,11,0,11,0,11]
[null,"Zero or negative income",2,3,8,11,117,99,0,11,0,11,0,11,0,11,0,11,0,11,0,16,0,11,0,11,0,11,0,11,0,11]
[null,"No cash rent",6,7,34,39,50,37,3,5,0,11,4,4,0,11,0,11,8,9,72,63,5,8,14,14,3,6,7,8,15,9]
[]
[]
[]
[]
[]
[]
[null,"Calculated B25106. TENURE BY HOUSING COSTS AS A PERCENTAGE OF HOUSEHOLD INCOME IN THE PAST 12 MONTHS"]
[null,"Universe:  OCCUPIED HOUSING UNITS"]
[null,{"$f":"B102","v":"Data Set: 2013-2017 American Community Survey 5-Year Estimates"}]
[]
[null,null,"Acworth",null,"Charlestown",null,"Claremont",null,"Cornish",null,"Croydon",null,"Goshen",null,"Grantham",null,"Langdon",null,"Lempster",null,"Newport",null,"Plainfield",null,"Springfield",null,"Sunapee",null,"Unity",null,"Washington"]
[null,null,"Estimate","Margin of Error","Estimate","Margin of Error","Estimate","Margin of Error","Estimate","Margin of Error","Estimate","Margin of Error","Estimate","Margin of Error","Estimate","Margin of Error","Estimate","Margin of Error","Estimate","Margin of Error","Estimate","Margin of Error","Estimate","Margin of Error","Estimate","Margin of Error","Estimate","Margin of Error","Estimate","Margin of Error","Estimate","Margin of Error"]
[null,"Total:",{"$f":"C106","v":427},62,2102,160,5567,221,722,71,274,49,271,48,1153,125,292,38,409,63,2573,202,920,83,435,74,1553,140,526,60,556,85]
[null,"Owner occupied housing units:",388,61,1673,187,3163,298,641,70,241,43,206,37,1050,136,266,37,387,62,1793,232,821,94,380,67,1049,117,489,56,507,82]
[null,"Less than 20 percent",{"$f":"C109+C113+C117+C121+C125","v":191},{"$f":"SQRT((D109^2)+(D113^2)+(D117^2)+(D121^2)+(D125^2))","v":44.170125650715555},{"$f":"SQRT((E109^2)+(E113^2)+(E117^2)+(E121^2)+(E125^2))","v":397.76500600228775},198.67309832989469,703.69950973409095,177.75263711123949,249.28898892650673,61.676575780437098,100.30952098380293,40.11234224026316,62.377880695002773,31.192947920964443,476.65920740084317,107.62434668791258,118.0127111797708,36.551333764994133,136.20205578477882,58.352377843580634,713.44726504486653,229.19424076533861,374.1577207542295,81.951204994191514,174.71691389215871,54.763126280372269,318.22633454822687,92.552687697332701,136.40381226344078,44.158804331639232,194.71260873400058,78.943017423962203]
[null,"20 to 29 percent",{"$f":"C110+C114+C118+C122+C126","v":82},{"$f":"SQRT((D110^2)+(D114^2)+(D118^2)+(D122^2)+(D126^2))","v":26.589471600616662},219.86814230351791,146.2292720353897,569.49626864449249,230.77694858889177,100.88111815399351,47.634021455258214,20.85665361461421,22.022715545545239,34.02939905434711,26.324893162176366,200.41706514166901,138.14847085653898,42.035699113967404,24.596747752497688,47.7179211617606,35.468295701936398,157.61345120261785,121.63469899662678,114.35908359199107,51.507281038703645,36.783148315499041,34.322004603461025,113.21660655575224,77.006493232713822,93.626919205963404,40.024992192379003,59.6992462263972,40.620192023179804]
[null,"30 percent or more",{"$f":"C111+C115+C119+C123+C127","v":109},{"$f":"SQRT((D111^2)+(D115^2)+(D119^2)+(D123^2)+(D127^2))","v":35.552777669262355},315.38230768386484,168.22009392459628,532.6387143270756,222.81831163528727,73.013697345087238,43.988634895845543,24.494897427831781,23.388031127053001,25.903667693977237,21.702534414210707,111.64676439557037,100.83650132764424,30.397368307141328,22.494443758403985,47.063786503000372,32.726136343907143,259.74987969198366,176.40294782117445,87.401372986927385,55.722526863020128,57.087651904768336,44.77722635447622,220.90722034374522,156.8948692596415,84.326745460737428,44.474711915874174,77.181604025829884,42.201895692018383]
[null,"Zero or negative income",{"$f":"C128","v":6},{"$f":"D128","v":9},{"$f":"E128","v":0},16,68,71,0,11,0,11,2,3,0,11,2,3,4,5,0,16,0,11,0,11,11,17,0,11,11,10]
[null,"Renter occupied housing units:",{"$f":"C129","v":39},{"$f":"D129","v":20},429,133,2404,276,81,38,33,21,65,32,103,80,26,18,22,14,780,174,99,45,55,34,504,158,37,19,49,36]
[null,"Less than 20 percent",{"$f":"C131+C135+C139+C143+C147","v":0},{"$f":"SQRT((D131^2)+(D135^2)+(D139^2)+(D143^2)+(D147^2))","v":24.596747752497688},{"$f":"SQRT((E131^2)+(E135^2)+(E139^2)+(E143^2)+(E147^2))","v":88.204308284799779},101.68087332433765,344.01453457666582,196.74857051577274,8.1853527718724504,19.313207915827967,18,26.627053911388696,17.4928556845359,25.553864678361276,79.831071645068121,81.381816150783948,11.313708498984761,24.637369989509839,3.6055512754639891,19.697715603592208,114.41590798486021,87.372764635211126,21.400934559032695,31.192947920964443,19,30.413812651491099,80.305666051655408,84.065450691708065,0,24.596747752497688,26,41.340053217188775]
[null,"20 to 29 percent",{"$f":"C132+C136+C140+C144+C148","v":20},{"$f":"SQRT((D132^2)+(D136^2)+(D140^2)+(D144^2)+(D148^2))","v":21.88606862823929},33.689761055846034,57.087651904768336,326.09354486098005,155.22564221158822,37.656340767525464,39.597979746446661,11,26.627053911388696,12,25.553864678361276,8,25.059928172283335,5,23.769728648009426,4.2426406871192848,19.874606914351791,130.46455457326331,127.96874618437113,7.5498344352707498,19.773719933285189,11,24.166091947189145,32.893768406797051,38.353617821530214,11.401754250991379,22.912878474779198,8,23.409399821439251]
[null,"30 percent or more",{"$f":"C133+C137+C141+C145+C149","v":11},{"$f":"SQRT((D133^2)+(D137^2)+(D141^2)+(D145^2)+(D149^2))","v":21.88606862823929},128.82546332150332,92.913938674452936,668.73462599150639,247.47525128788132,16.15549442140351,23.086792761230392,4,22.803508501982758,16.15549442140351,25.37715508089904,0,24.596747752497688,5,23.409399821439251,3,22.360679774997898,257.63151981075606,149.9433226255841,27.982137159266443,36.646964403617389,5,23.409399821439251,190.4888448177478,154.18171097766427,14,26.076809620810597,0,24.596747752497688]
[null,"Zero or negative income",{"$f":"C150","v":2},{"$f":"D150","v":3},{"$f":"E150","v":8},11,117,99,0,11,0,11,0,11,0,11,0,11,0,11,0,16,0,11,0,11,0,11,0,11,0,11]
[null,"No cash rent",{"$f":"C151","v":6},{"$f":"D151","v":7},34,39,50,37,3,5,0,11,4,4,0,11,0,11,8,9,72,63,5,8,14,14,3,6,7,8,15,9]
[]
[]
[]
[]
[null,"B25106. TENURE BY HOUSING COSTS AS A PERCENTAGE OF HOUSEHOLD INCOME IN THE PAST 12 MONTHS"]
[null,"Universe:  OCCUPIED HOUSING UNITS"]
[null,"Data Set: 2008-2012 American Community Survey 5-Year Estimates"]
[]
[null,null,"Acworth",null,"Charlestown",null,"Claremont",null,"Cornish",null,"Croydon",null,"Goshen",null,"Grantham",null,"Langdon",null,"Lempster",null,"Newport",null,"Plainfield",null,"Springfield",null,"Sunapee",null,"Unity",null,"Washington"]
[null,null,"Estimate","Margin of Error","Estimate","Margin of Error","Estimate","Margin of Error","Estimate","Margin of Error","Estimate","Margin of Error","Estimate","Margin of Error","Estimate","Margin of Error","Estimate","Margin of Error","Estimate","Margin of Error","Estimate","Margin of Error","Estimate","Margin of Error","Estimate","Margin of Error","Estimate","Margin of Error","Estimate","Margin of Error","Estimate","Margin of Error"]
[null,"Total:",294,54,2310,107,5721,232,657,69,289,43,331,48,1119,80,278,45,427,58,2684,193,920,76,497,60,1458,100,599,58,465,69]
[null,"Owner occupied housing units:",222,44,1843,158,3466,228,552,65,240,40,273,44,1003,96,247,44,365,56,1786,194,817,78,453,59,1098,155,546,50,428,64]
[null,"Less than $20,000:",29,16,204,84,429,150,36,21,34,20,32,18,29,26,17,12,42,23,274,127,16,15,31,21,60,52,39,18,51,21]
[null,"Less than 20 percent",0,11,0,16,49,51,11,15,0,11,5,9,0,11,0,11,8,13,22,25,0,11,0,11,0,11,5,7,0,11]
[null,"20 to 29 percent",0,11,53,49,44,45,0,11,7,11,1,4,9,13,0,11,0,11,0,16,2,5,3,5,0,11,3,5,0,11]
[null,"30 percent or more",29,16,151,72,336,140,25,16,27,18,26,15,20,24,17,12,34,19,252,117,14,14,28,21,60,52,31,16,51,21]
[null,"$20,000 to $34,999:",55,22,294,115,420,93,83,33,45,21,42,19,45,36,35,17,40,18,156,65,96,38,41,19,100,57,105,36,66,28]
[null,"Less than 20 percent",17,14,60,60,65,38,12,9,21,14,3,5,0,11,12,12,10,10,9,15,20,24,3,4,14,20,25,17,15,17]
[null,"20 to 29 percent",17,17,53,48,74,43,11,11,2,3,6,5,29,32,3,4,3,5,54,50,31,20,11,15,15,18,35,28,19,14]
[null,"30 percent or more",21,13,181,89,281,88,60,29,22,14,33,18,16,15,20,13,27,15,93,59,45,22,27,17,71,48,45,22,32,14]
[null,"$35,000 to $49,999:",22,16,285,124,563,140,50,23,15,8,51,22,153,58,40,24,57,25,263,106,64,37,63,33,103,58,68,28,55,25]
[null,"Less than 20 percent",16,14,112,71,157,78,9,10,2,3,15,14,30,23,11,15,11,11,131,88,0,11,17,15,16,25,13,9,27,20]
[null,"20 to 29 percent",0,11,69,55,167,70,3,4,1,4,9,11,11,12,23,19,20,15,76,51,17,15,28,24,0,11,5,6,6,6]
[null,"30 percent or more",6,7,104,68,239,109,38,23,12,7,27,11,112,50,6,9,26,13,56,40,47,34,18,15,87,55,50,26,22,12]
[null,"$50,000 to $74,999:",62,27,589,161,704,178,116,34,27,14,53,24,152,50,51,24,90,39,440,120,121,47,122,48,250,100,163,38,96,33]
[null,"Less than 20 percent",39,22,264,113,242,93,51,26,17,12,26,18,74,39,37,23,51,31,105,50,76,38,71,38,139,91,58,26,36,16]
[null,"20 to 29 percent",4,4,156,78,295,112,22,13,10,8,13,12,15,18,2,4,16,18,184,81,34,19,19,19,64,54,45,25,37,20]
[null,"30 percent or more",19,15,169,94,167,94,43,22,0,11,14,11,63,30,12,9,23,18,151,99,11,13,32,23,47,40,60,27,23,19]
[null,"$75,000 or more:",54,25,471,134,1333,206,264,52,119,30,95,29,615,95,104,37,136,39,653,180,520,81,196,51,585,113,168,39,149,39]
[null,"Less than 20 percent",25,19,350,117,845,196,196,46,78,29,58,23,387,92,61,27,76,31,356,164,337,75,107,39,313,98,96,28,104,33]
[null,"20 to 29 percent",25,15,62,49,397,129,56,25,29,16,21,12,136,50,43,27,39,18,240,110,153,46,75,30,187,90,55,27,33,20]
[null,"30 percent or more",4,7,59,52,91,49,12,10,12,9,16,14,92,58,0,11,21,15,57,63,30,21,14,13,85,55,17,20,12,9]
[null,"Zero or negative income",0,11,0,16,17,20,3,4,0,11,0,11,9,15,0,11,0,11,0,16,0,11,0,11,0,11,3,4,11,18]
[null,"Renter occupied housing units:",72,39,467,158,2255,221,105,42,49,23,58,32,116,57,31,24,62,28,898,206,103,58,44,27,360,127,53,43,37,21]
[null,"Less than $20,000:",2,3,172,101,773,156,8,9,2,3,0,11,0,11,2,3,0,11,399,143,0,11,8,9,16,23,0,11,0,11]
[null,"Less than 20 percent",0,11,0,16,54,43,0,11,0,11,0,11,0,11,0,11,0,11,23,34,0,11,0,11,0,11,0,11,0,11]
[null,"20 to 29 percent",0,11,36,33,134,64,0,11,2,3,0,11,0,11,0,11,0,11,131,107,0,11,0,11,0,11,0,11,0,11]
[null,"30 percent or more",2,3,136,102,585,151,8,9,0,11,0,11,0,11,2,3,0,11,245,95,0,11,8,9,16,23,0,11,0,11]
[null,"$20,000 to $34,999:",22,23,109,84,675,146,10,15,2,4,2,3,0,11,0,11,14,16,39,39,26,25,0,11,55,55,0,11,11,9]
[null,"Less than 20 percent",0,11,0,16,20,15,0,11,0,11,0,11,0,11,0,11,0,11,0,16,0,11,0,11,0,11,0,11,0,11]
[null,"20 to 29 percent",17,20,0,16,172,95,0,11,0,11,0,11,0,11,0,11,0,11,0,16,19,24,0,11,0,11,0,11,4,6]
[null,"30 percent or more",5,9,109,84,483,143,10,15,2,4,2,3,0,11,0,11,14,16,39,39,7,10,0,11,55,55,0,11,7,6]
[null,"$35,000 to $49,999:",4,6,48,57,377,141,9,14,12,13,15,14,36,33,4,5,17,15,315,150,0,11,12,18,20,25,36,40,10,15]
[null,"Less than 20 percent",0,11,48,57,107,96,0,11,0,11,0,11,0,11,0,11,0,11,64,91,0,11,0,11,0,11,26,38,0,11]
[null,"20 to 29 percent",0,11,0,16,171,77,0,11,0,11,0,11,12,20,0,11,0,11,163,101,0,11,12,18,16,24,6,10,10,15]
[null,"30 percent or more",4,6,0,16,99,78,9,14,12,13,15,14,24,27,4,5,17,15,88,91,0,11,0,11,4,7,4,6,0,11]
[null,"$50,000 to $74,999:",28,24,19,30,284,100,34,28,11,12,18,20,17,28,11,17,6,9,57,46,0,11,3,5,97,69,3,5,2,4]
[null,"Less than 20 percent",23,24,19,30,163,93,8,9,4,5,0,11,17,28,11,17,0,11,32,30,0,11,0,11,4,8,0,11,0,11]
[null,"20 to 29 percent",5,7,0,16,121,69,14,17,7,10,14,19,0,11,0,11,0,11,12,22,0,11,3,5,79,69,3,5,0,11]
[null,"30 percent or more",0,11,0,16,0,18,12,16,0,11,4,7,0,11,0,11,6,9,13,24,0,11,0,11,14,16,0,11,2,4]
[null,"$75,000 or more:",16,19,46,55,82,56,32,24,16,14,13,20,44,36,9,11,15,19,62,64,46,44,19,18,133,88,6,10,2,4]
[null,"Less than 20 percent",14,19,16,25,59,33,32,24,10,10,13,20,7,12,2,4,15,19,62,64,39,44,9,9,128,88,6,10,0,11]
[null,"20 to 29 percent",2,3,30,50,23,36,0,11,6,9,0,11,25,29,7,11,0,11,0,16,7,10,10,16,5,9,0,11,2,4]
[null,"30 percent or more",0,11,0,16,0,18,0,11,0,11,0,11,12,18,0,11,0,11,0,16,0,11,0,11,0,11,0,11,0,11]
[null,"Zero or negative income",0,11,11,18,28,44,0,11,0,11,5,7,0,11,0,11,4,6,13,20,0,11,0,11,0,11,0,11,0,11]
[null,"No cash rent",0,11,62,61,36,27,12,10,6,6,5,7,19,27,5,9,6,6,13,20,31,24,2,5,39,50,8,11,12,10]
[]
[]
[]
[]
[]
[]
[null,"Calculated B25106. TENURE BY HOUSING COSTS AS A PERCENTAGE OF HOUSEHOLD INCOME IN THE PAST 12 MONTHS"]
[null,"Universe:  OCCUPIED HOUSING UNITS"]
[null,{"$f":"B182","v":"Data Set: 2008-2012 American Community Survey 5-Year Estimates"}]
[]
[null,null,"Acworth",null,"Charlestown",null,"Claremont",null,"Cornish",null,"Croydon",null,"Goshen",null,"Grantham",null,"Langdon",null,"Lempster",null,"Newport",null,"Plainfield",null,"Springfield",null,"Sunapee",null,"Unity",null,"Washington"]
[null,null,"Estimate","Margin of Error","Estimate","Margin of Error","Estimate","Margin of Error","Estimate","Margin of Error","Estimate","Margin of Error","Estimate","Margin of Error","Estimate","Margin of Error","Estimate","Margin of Error","Estimate","Margin of Error","Estimate","Margin of Error","Estimate","Margin of Error","Estimate","Margin of Error","Estimate","Margin of Error","Estimate","Margin of Error","Estimate","Margin of Error"]
[null,"Total:",{"$f":"C186","v":294},54,2310,107,5721,232,657,69,289,43,331,48,1119,80,278,45,427,58,2684,193,920,76,497,60,1458,100,599,58,465,69]
[null,"Owner occupied housing units:",222,44,1843,158,3466,228,552,65,240,40,273,44,1003,96,247,44,365,56,1786,194,817,78,453,59,1098,155,546,50,428,64]
[null,"Less than 20 percent",{"$f":"C189+C193+C197+C201+C205","v":97},{"$f":"SQRT((D189^2)+(D193^2)+(D197^2)+(D201^2)+(D205^2))","v":36.851051545376556},{"$f":"SQRT((E189^2)+(E193^2)+(E197^2)+(E201^2)+(E205^2))","v":456.44276749664903},188.02925304324324,896.58463069584229,239.15267090291925,203.37895663022761,56.550862062394771,82.571181413372059,36.207733980463345,65.566759871142025,33.985290935932859,395.15186953878884,103.71113729971339,73.177865505902801,41.809089920733747,93.069866229623429,48.083261120685229,394.31839926637963,194.91023574969068,346.04190497683948,88.808783349396251,129.56851469396415,57.680152565678952,343.13554173241806,137.95289050976785,115.75404960518659,43.347433603386484,114.30660523346846,46.421977553740639]
[null,"20 to 29 percent",{"$f":"C190+C194+C198+C202+C206","v":46},{"$f":"SQRT((D190^2)+(D194^2)+(D198^2)+(D202^2)+(D206^2))","v":27.784887978899608},196.36445706899198,127.33813254481157,529.08883942113164,194.83069573350087,61.237243569579455,32.434549480453711,31.54362059117501,21.587033144922902,26.981475126464083,21.213203435596427,140.58449416631979,64.505813691480554,48.897852713590602,35.256205127608389,46.75467891024384,31.921779399024736,316.46168804454038,154.97741770980699,160.68291757371099,55.91958512006326,83.066238629180745,45.68369512200168,198.21705274773913,107.61970079869205,79.429213769242352,46.893496350773418,53.432200029570183,33.955853692699293]
[null,"30 percent or more",{"$f":"C191+C195+C199+C203+C207","v":79},{"$f":"SQRT((D191^2)+(D195^2)+(D199^2)+(D203^2)+(D207^2))","v":27.349588662354687},313.71962004312064,171.0818517552344,533.99250931075801,224.63748574091548,87.532850976076404,47.010637094172637,38.742741255621034,27.766886753829642,54.277066980447643,31.416556144810016,160.10309178776029,86.977008456258133,29.478805945967352,24.413111231467404,59.422218066982317,36.110940170535578,318.33787082280992,180.38846969803808,73.830887845128885,49.457052075512955,55.290143787116342,40.657102700512247,160.13744096868788,112.50777750893491,96.824583655185421,50.447993022517757,69.15200647848188,34.97141690009142]
[null,"Zero or negative income",{"$f":"C208","v":0},{"$f":"D208","v":11},{"$f":"E208","v":0},16,17,20,3,4,0,11,0,11,9,15,0,11,0,11,0,16,0,11,0,11,0,11,3,4,11,18]
[null,"Renter occupied housing units:",{"$f":"C209","v":72},{"$f":"D209","v":39},467,158,2255,221,105,42,49,23,58,32,116,57,31,24,62,28,898,206,103,58,44,27,360,127,53,43,37,21]
[null,"Less than 20 percent",{"$f":"C211+C215+C219+C223+C227","v":37},{"$f":"SQRT((D211^2)+(D215^2)+(D219^2)+(D223^2)+(D227^2))","v":36.055512754639892},{"$f":"SQRT((E211^2)+(E215^2)+(E219^2)+(E223^2)+(E227^2))","v":54.046276467486642},72.704882917174146,211.69553608897851,145.01034445859372,32.984845004941285,31.937438845342623,10.770329614269007,22.090722034374522,13,29.732137494637012,18.384776310850235,35.930488446443363,11.180339887498949,25.845695966640172,15,29.068883707497267,97.43202758846806,121.19818480488888,39,49.193495504995376,9,23.769728648009426,128.06248474865697,90.393583843102491,26.683328128252668,43.669211121796096,0,24.596747752497688]
[null,"20 to 29 percent",{"$f":"C212+C216+C220+C224+C228","v":24},{"$f":"SQRT((D212^2)+(D216^2)+(D220^2)+(D224^2)+(D228^2))","v":26.457513110645905},46.861498055439924,66.007575322836999,303.23423289595786,158.45188544160652,14,27.802877548915689,9.4339811320566032,20.784609690826528,14,29.068883707497267,27.730849247724095,40.049968789001575,7,24.596747752497688,0,24.596747752497688,209.4612135933524,150.48587973627292,20.248456731316587,32.233522922572398,15.905973720586866,29.103264421710495,80.758900438279866,75.232971495216105,6.7082039324993694,22.090722034374522,10.954451150103322,22.781571499789035]
[null,"30 percent or more",{"$f":"C213+C217+C221+C225+C229","v":11},{"$f":"SQRT((D213^2)+(D217^2)+(D221^2)+(D225^2)+(D229^2))","v":19.183326093250876},174.28998823799375,135.01111065390137,765.05882126801203,223.56654490330166,19.723082923316021,29.647934160747187,12.165525060596439,23.409399821439251,15.652475842498529,22.271057451320086,26.832815729997478,37.629775444453557,4.4721359549995796,19.924858845171276,22.825424421026653,28.354893757515651,263.55075412527282,140.21055595068441,7,24.166091947189145,8,23.769728648009426,59.10160742314882,63.08724118235002,4,22.803508501982758,7.2801098892805181,20.371548787463361]
[null,"Zero or negative income",{"$f":"C230","v":0},{"$f":"D230","v":11},{"$f":"E230","v":11},18,28,44,0,11,0,11,5,7,0,11,0,11,4,6,13,20,0,11,0,11,0,11,0,11,0,11]
[null,"No cash rent",{"$f":"C231","v":0},{"$f":"D231","v":11},62,61,36,27,12,10,6,6,5,7,19,27,5,9,6,6,13,20,31,24,2,5,39,50,8,11,12,10]

{"sheet":"PopComparison","index":71,"n_rows":48,"n_cols":14,"rows_kept":48,"cut":false,"hidden":true,"merged":[[45,1,45,2],[26,12,26,14],[27,7,27,8],[38,1,38,2],[39,1,39,2],[40,1,40,2],[41,1,41,2],[42,1,42,2],[43,1,43,2],[32,1,32,2],[33,1,33,2],[34,1,34,2],[35,1,35,2],[36,1,36,2],[37,1,37,2],[27,3,27,4],[27,5,27,6],[27,9,27,10],[29,1,29,2],[30,1,30,2],[31,1,31,2]]}
[]
[]
[]
[]
[]
[]
[]
[]
[]
[]
[]
[]
[]
[]
[]
[]
[]
[]
[]
[]
[]
[]
[]
[]
[]
[]
[]
[null,null,null,2000,null,2010,null,2020,null,2030,null,null,"2000-2010","2010-2020"]
[null,null,null,"#","%","#","%","#","%","#","%",null,"% Change","% Change"]
[null,"Acworth",null,{"$f":"CntyQuery!G118","v":836},{"$f":"D30/$D$46","v":2.0663404023926048E-2},{"$f":"CntyQuery!H118","v":891},{"$f":"F30/$F$46","v":2.0369438983128343E-2},{"$f":"CntyQuery!$I118","v":853},{"$f":"H30/$J$46","v":1.9411952118701926E-2},{"$f":"CntyQuery!J118","v":870},{"$f":"J30/$J$46","v":1.9798825724819079E-2},null,{"$f":"(F30-D30)/D30","v":6.5789473684210523E-2},{"$f":"(H30-F30)/F30","v":-4.2648709315375982E-2}]
[null,"Charlestown",null,{"$f":"CntyQuery!G119","v":4749},0.11738098769093876,{"$f":"CntyQuery!H119","v":5114},0.11691280691326414,{"$f":"CntyQuery!$I119","v":4806},0.10937144417641437,{"$f":"CntyQuery!J119","v":4904},0.11160165672932502,null,{"$f":"(F31-D31)/D31","v":7.6858285954937877E-2},{"$f":"(H31-F31)/F31","v":-6.022682831443097E-2}]
[null,"Claremont",null,{"$f":"CntyQuery!G120","v":13151},0.32505314152948739,{"$f":"CntyQuery!H120","v":13355},0.30531297151479125,{"$f":"CntyQuery!$I120","v":12949},0.29468390150653134,{"$f":"CntyQuery!J120","v":13214},0.30071457830776932,null,1.5512128355258155E-2,-3.0400599026581803E-2]
[null,"Cornish",null,{"$f":"CntyQuery!G121","v":1661},4.1054921152800433E-2,{"$f":"CntyQuery!H121","v":1640},3.7492570069955648E-2,{"$f":"CntyQuery!$I121","v":1616},3.6775749852077738E-2,{"$f":"CntyQuery!J121","v":1649},3.7526739793363982E-2,null,-1.2642986152919929E-2,-1.4634146341463415E-2]
[null,"Croydon",null,{"$f":"CntyQuery!G122","v":661},1.6337930693558753E-2,{"$f":"CntyQuery!H122","v":764},1.7466050935028118E-2,{"$f":"CntyQuery!$I122","v":801},1.8228574029402395E-2,{"$f":"CntyQuery!J122","v":817},1.8592690364571479E-2,null,0.15582450832072617,4.8429319371727751E-2]
[null,"Goshen",null,{"$f":"CntyQuery!G123","v":741},1.8315289930298087E-2,{"$f":"CntyQuery!H123","v":810},1.8517671802843947E-2,{"$f":"CntyQuery!$I123","v":796},1.8114787674662056E-2,{"$f":"CntyQuery!J123","v":812},1.847890400983114E-2,null,9.3117408906882596E-2,-1.7283950617283949E-2]
[null,"Grantham",null,{"$f":"CntyQuery!G124","v":2167},5.3561718325176727E-2,{"$f":"CntyQuery!H124","v":2985},6.8241049791961952E-2,{"$f":"CntyQuery!$I124","v":3404},7.7465750307223163E-2,{"$f":"CntyQuery!J124","v":3474},7.9058759273587909E-2,null,0.37748038763267189,0.14036850921273031]
[null,"Langdon",null,{"$f":"CntyQuery!G125","v":586},1.4484156409115627E-2,{"$f":"CntyQuery!H125","v":688},1.5728590370810664E-2,{"$f":"CntyQuery!$I125","v":651},1.4814983387192207E-2,{"$f":"CntyQuery!J125","v":664},1.511082790951709E-2,null,0.17406143344709898,-5.3779069767441859E-2]
[null,"Lempster",null,{"$f":"CntyQuery!G126","v":971},2.4000197735923674E-2,{"$f":"CntyQuery!H126","v":1154},2.6381966988249281E-2,{"$f":"CntyQuery!$I126","v":1118},2.5442628919939921E-2,{"$f":"CntyQuery!J126","v":1141},2.5966046151745484E-2,null,0.18846549948506694,{"$f":"(H38-F38)/F38","v":-3.1195840554592721E-2}]
[null,"Newport",null,{"$f":"CntyQuery!G127","v":6269},0.1549508131889861,{"$f":"CntyQuery!H127","v":6507},0.14875863014951304,{"$f":"CntyQuery!$I127","v":6299},0.14334804970187975,{"$f":"CntyQuery!J127","v":6428},0.14628373765418051,null,3.7964587653533256E-2,-3.1965575534040266E-2]
[null,"Plainfield",null,{"$f":"CntyQuery!G128","v":2241},5.5390775619160608E-2,{"$f":"CntyQuery!H128","v":2364},5.4044168076448268E-2,{"$f":"CntyQuery!$I128","v":2459},5.5960129261298987E-2,{"$f":"CntyQuery!J128","v":2509},5.7097992808702383E-2,null,5.4886211512717539E-2,4.018612521150592E-2]
[null,"Springfield",null,{"$f":"CntyQuery!G129","v":945},2.335755598398339E-2,{"$f":"CntyQuery!H129","v":1311},2.997119473275113E-2,{"$f":"CntyQuery!$I129","v":1259},2.8651404123617497E-2,{"$f":"CntyQuery!J129","v":1285},2.9243093168267262E-2,null,0.38730158730158731,-3.9664378337147213E-2]
[null,"Sunapee",null,{"$f":"CntyQuery!G130","v":3055},7.5510405852983339E-2,{"$f":"CntyQuery!H130","v":3365},7.6928352613049242E-2,{"$f":"CntyQuery!$I130","v":3342},7.6054799508442947E-2,{"$f":"CntyQuery!J130","v":3410},7.760229393291157E-2,null,0.10147299509001637,-6.8350668647845468E-3]
[null,"Unity",null,{"$f":"CntyQuery!G131","v":1530},{"$f":"D43/$D$46","v":3.7816995402639775E-2},{"$f":"CntyQuery!H131","v":1671},{"$f":"F43/$F$46","v":3.8201271089570665E-2},{"$f":"CntyQuery!$I131","v":1518},{"$f":"H43/$J$46","v":3.4545537299167081E-2},{"$f":"CntyQuery!J131","v":1549},{"$f":"J43/$J$46","v":3.5251012698557189E-2},null,{"$f":"(F43-D43)/D43","v":9.2156862745098045E-2},-9.1561938958707359E-2]
[null,"Washington",null,{"$f":"CntyQuery!G132","v":895},{"$f":"D44/$D$46","v":2.2121706461021306E-2},{"$f":"CntyQuery!H132","v":1123},{"$f":"F44/$F$46","v":2.5673265968634264E-2},{"$f":"CntyQuery!$I132","v":1192},{"$f":"H44/$J$46","v":2.7126666970096944E-2},{"$f":"CntyQuery!J132","v":1216},{"$f":"J44/$J$46","v":2.7672841472850575E-2},null,{"$f":"(F44-D44)/D44","v":0.25474860335195532},6.1442564559216387E-2]
[]
[null,"Sullivan County",null,{"$f":"SUM(D30:D44)","v":40458},null,{"$f":"SUM(F30:F44)","v":43742},null,{"$f":"SUM(H30:H44)","v":43063},null,{"$f":"SUM(J30:J44)","v":43942},null,null,{"$f":"(F46-D46)/D46","v":8.1170596668149686E-2},{"$f":"(H46-F46)/F46","v":-1.5522838461890174E-2}]
[]
[null,"Source: US Census and  Office of Planning and Devolpment, NH BEA"]

{"sheet":"HousingComparison","index":72,"n_rows":52,"n_cols":15,"rows_kept":52,"cut":false,"hidden":true,"merged":[[28,3,28,4],[28,5,28,8],[28,9,28,14],[29,5,29,6],[29,7,29,8],[29,9,29,10],[29,11,29,12],[29,13,29,14]]}
[]
[]
[]
[]
[]
[]
[]
[]
[]
[]
[]
[]
[]
[]
[]
[]
[]
[]
[]
[]
[]
[]
[]
[]
[]
[]
[]
[null,"Housing Units",null,"In 2022"]
[null,null,null,"Total Units",null,"Occupied Units",null,null,null,"Vacant Units"]
[null,null,null,null,null,"Owner",null,"Renter",null,"For Sale",null,"For Rent",null,"Seasonal"]
[null,null,null,"#","%","#","%","#","%","#","%","#","%","#","%"]
[]
[null,"Acworth",null,{"$f":"ACS_Table_B25001!$C$7","v":511},{"$f":"D33/D$49","v":2.3365340649291265E-2},{"$f":"ACS_Table_B25003!$C$8","v":216},{"$f":"F33/$F$49","v":1.8550326348333906E-2},{"$f":"ACS_Table_B25003!$C$9","v":23},{"$f":"H33/$H$49","v":5.4130383619675222E-3},{"$f":"ACS_Table_B25004!$C$10","v":0},{"$f":"J33/$J$49","v":0},{"$f":"ACS_Table_B25004!$C$8","v":4},{"$f":"L33/$L$49","v":1.1799410029498525E-2},{"$f":"ACS_Table_B25004!$C$12","v":231},{"$f":"N33/$N$49","v":5.0469740004369677E-2}]
[null,"Charlestown",null,{"$f":"ACS_Table_B25001!$E$7","v":2216},0.10132601737540009,{"$f":"ACS_Table_B25003!$E$8","v":1328},0.1140501545860529,{"$f":"ACS_Table_B25003!$E$9","v":519},0.12214638738526712,{"$f":"ACS_Table_B25004!$E$10","v":0},0,{"$f":"ACS_Table_B25004!$E$8","v":0},0,{"$f":"ACS_Table_B25004!$E$12","v":174},3.8016167795499232E-2]
[null,"Claremont",null,{"$f":"ACS_Table_B25001!$G$7","v":5955},0.27229080932784638,{"$f":"ACS_Table_B25003!$G$8","v":3082},0.26468567502576434,{"$f":"ACS_Table_B25003!$G$9","v":2121},0.49917627677100496,{"$f":"ACS_Table_B25004!$G$10","v":0},0,{"$f":"ACS_Table_B25004!$G$8","v":185},0.54572271386430682,{"$f":"ACS_Table_B25004!$G$12","v":180},3.932707013327507E-2]
[null,"Cornish",null,{"$f":"ACS_Table_B25001!$I$7","v":840},3.8408779149519894E-2,{"$f":"ACS_Table_B25003!$I$8","v":737},6.3294400549639293E-2,{"$f":"ACS_Table_B25003!$I$9","v":25},5.8837373499646978E-3,{"$f":"ACS_Table_B25004!$I$10","v":12},0.31578947368421051,{"$f":"ACS_Table_B25004!$I$8","v":0},0,{"$f":"ACS_Table_B25004!$I$12","v":50},1.0924186148131964E-2]
[null,"Croydon",null,{"$f":"ACS_Table_B25001!$K$7","v":409},1.8701417466849564E-2,{"$f":"ACS_Table_B25003!$K$8","v":211},1.8120920645826176E-2,{"$f":"ACS_Table_B25003!$K$9","v":21},4.9423393739703456E-3,{"$f":"ACS_Table_B25004!$K$10","v":0},0,{"$f":"ACS_Table_B25004!$K$8","v":0},0,{"$f":"ACS_Table_B25004!$K$12","v":159},3.4738911951059645E-2]
[null,"Goshen",null,{"$f":"ACS_Table_B25001!$M$7","v":458},2.0941929583904891E-2,{"$f":"ACS_Table_B25003!$M$8","v":250},2.1470285125386464E-2,{"$f":"ACS_Table_B25003!$M$9","v":53},1.2473523181925159E-2,{"$f":"ACS_Table_B25004!$M$10","v":0},0,{"$f":"ACS_Table_B25004!$M$8","v":10},2.9498525073746312E-2,{"$f":"ACS_Table_B25004!$M$12","v":123},2.6873497924404632E-2]
[null,"Grantham",null,{"$f":"ACS_Table_B25001!$O$7","v":2039},9.3232738911751253E-2,{"$f":"ACS_Table_B25003!$O$8","v":1091},9.3696324287186536E-2,{"$f":"ACS_Table_B25003!$O$9","v":58},1.3650270651918098E-2,{"$f":"ACS_Table_B25004!$O$10","v":0},0,{"$f":"ACS_Table_B25004!$O$8","v":70},0.20648967551622419,{"$f":"ACS_Table_B25004!$O$12","v":820},0.17915665282936422]
[null,"Langdon",null,{"$f":"ACS_Table_B25001!$Q$7","v":273},1.2482853223593965E-2,{"$f":"ACS_Table_B25003!$Q$8","v":205},1.7605633802816902E-2,{"$f":"ACS_Table_B25003!$Q$9","v":21},4.9423393739703456E-3,{"$f":"ACS_Table_B25004!$Q$10","v":0},0,{"$f":"ACS_Table_B25004!$Q$8","v":0},0,{"$f":"ACS_Table_B25004!$Q$12","v":32},6.9914791348044568E-3]
[null,"Lempster",null,{"$f":"ACS_Table_B25001!$S$7","v":655},2.9949702789208964E-2,{"$f":"ACS_Table_B25003!$S$8","v":299},2.5678461009962211E-2,{"$f":"ACS_Table_B25003!$S$9","v":17},4.0009413979759942E-3,{"$f":"ACS_Table_B25004!$S$10","v":3},7.8947368421052627E-2,{"$f":"ACS_Table_B25004!$S$8","v":0},0,{"$f":"ACS_Table_B25004!$S$12","v":257},5.6150316801398294E-2]
[null,"Newport",null,{"$f":"ACS_Table_B25001!$U$7","v":2859},0.13072702331961591,{"$f":"ACS_Table_B25003!$U$8","v":1479},0.12701820680178633,{"$f":"ACS_Table_B25003!$U$9","v":999},0.23511414450458931,{"$f":"ACS_Table_B25004!$U$10","v":0},0,{"$f":"ACS_Table_B25004!$U$8","v":0},0,{"$f":"ACS_Table_B25004!$U$12","v":253},5.5276381909547742E-2]
[null,"Plainfield",null,{"$f":"ACS_Table_B25001!$W$7","v":1043},4.7690900777320529E-2,{"$f":"ACS_Table_B25003!$W$8","v":760},6.5269666781174851E-2,{"$f":"ACS_Table_B25003!$W$9","v":71},1.670981407389974E-2,{"$f":"ACS_Table_B25004!$W$10","v":14},0.36842105263157893,{"$f":"ACS_Table_B25004!$W$8","v":18},5.3097345132743362E-2,{"$f":"ACS_Table_B25004!$W$12","v":125},2.7310465370329912E-2]
[null,"Springfield",null,{"$f":"ACS_Table_B25001!$Y$7","v":596},2.7251943301326017E-2,{"$f":"ACS_Table_B25003!$Y$8","v":264},2.2672621092408106E-2,{"$f":"ACS_Table_B25003!$Y$9","v":30},7.0604848199576371E-3,{"$f":"ACS_Table_B25004!$Y$10","v":0},0,{"$f":"ACS_Table_B25004!$Y$8","v":8},2.359882005899705E-2,{"$f":"ACS_Table_B25004!$Y$12","v":266},5.811667030806205E-2]
[null,"Sunapee",null,{"$f":"ACS_Table_B25001!$AA$7","v":2367},0.10823045267489712,{"$f":"ACS_Table_B25003!$AA$8","v":894},7.6777739608381995E-2,{"$f":"ACS_Table_B25003!$AA$9","v":228},5.3659684631678042E-2,{"$f":"ACS_Table_B25004!$AA$10","v":0},0,{"$f":"ACS_Table_B25004!$AA$8","v":22},6.4896755162241887E-2,{"$f":"ACS_Table_B25004!$AA$12","v":1202},0.26261743500109241]
[null,"Unity",null,{"$f":"ACS_Table_B25001!$AC$7","v":661},3.0224051211705533E-2,{"$f":"ACS_Table_B25003!$AC$8","v":447},3.8388869804190998E-2,{"$f":"ACS_Table_B25003!$AC$9","v":31},7.2958343139562249E-3,{"$f":"ACS_Table_B25004!$AC$10","v":0},0,{"$f":"ACS_Table_B25004!$AC$8","v":0},0,{"$f":"ACS_Table_B25004!$AC$12","v":175},3.8234651518461872E-2]
[null,"Washington",null,{"$f":"ACS_Table_B25001!$AE$7","v":988},4.5176040237768632E-2,{"$f":"ACS_Table_B25003!$AE$8","v":381},3.2720714531088976E-2,{"$f":"ACS_Table_B25003!$AE$9","v":32},7.5311838079548128E-3,{"$f":"ACS_Table_B25004!$AE$10","v":9},0.23684210526315788,{"$f":"ACS_Table_B25004!$AA$8","v":22},6.4896755162241887E-2,{"$f":"ACS_Table_B25004!$AE$12","v":530},0.11579637317019882]
[]
[null,"Sullivan County",null,{"$f":"SUM(D33:D47)","v":21870},null,{"$f":"SUM(F33:F47)","v":11644},null,{"$f":"SUM(H33:H47)","v":4249},null,{"$f":"SUM(J33:J47)","v":38},null,{"$f":"SUM(L33:L47)","v":339},null,{"$f":"SUM(N33:N47)","v":4577}]
[]
[null,"Source: 2018-2022 American Community Survey Tables B25001; B25003; and B25004"]
[null,"Margin of error is not displayed.  The American Community Survey data are estimates only."]

{"sheet":"Housing_EmploymentComparison","index":73,"n_rows":54,"n_cols":11,"rows_kept":54,"cut":false,"hidden":true,"merged":[[51,2,51,13],[52,2,52,13],[53,2,53,13],[28,3,28,4],[28,5,28,10],[29,3,29,4],[29,5,29,6],[29,7,29,8],[29,9,29,10]]}
[]
[]
[]
[]
[]
[]
[]
[]
[]
[]
[]
[]
[]
[]
[]
[]
[]
[]
[]
[]
[]
[]
[]
[]
[]
[]
[]
[null,null,null,"In 2022"]
[null,null,null,"Total Units",null,"Employment"]
[null,null,null,null,null,"Total Private",null,"Goods Producing",null,"Service Providing"]
[null,null,null,"#","%","#","%","#","%","#","%"]
[]
[null,"Acworth",null,{"$f":"ACS_Table_B25001!$C$7","v":511},{"$f":"D33/D$49","v":2.3365340649291265E-2},{"$f":"CntyQuery!FB171","v":98},{"$f":"IF(F33=\"n\",\"n\",F33/$F$49)","v":8.6040386303775241E-3},{"$f":"CntyQuery!FD171","v":"n"},{"$f":"IF(H33=\"n\",\"n\",H33/$F$49)","v":"n"},{"$f":"CntyQuery!FE171","v":"n"},{"$f":"IF(J33=\"n\",\"n\",J33/$F$49)","v":"n"}]
[null,"Charlestown",null,{"$f":"ACS_Table_B25001!$E$7","v":2216},0.10132601737540009,{"$f":"CntyQuery!FB172","v":1696},{"$f":"IF(F34=\"n\",\"n\",F34/$F$49)","v":0.14890254609306408},{"$f":"CntyQuery!FD172","v":1145},{"$f":"IF(H34=\"n\",\"n\",H34/$F$49)","v":0.10052677787532924},{"$f":"CntyQuery!FE172","v":552},{"$f":"IF(J34=\"n\",\"n\",J34/$F$49)","v":4.8463564530289729E-2}]
[null,"Claremont",null,{"$f":"ACS_Table_B25001!$G$7","v":5955},0.27229080932784638,{"$f":"CntyQuery!FB173","v":4813},0.42256365232660226,{"$f":"CntyQuery!FD173","v":"n"},"n",{"$f":"CntyQuery!FE173","v":"n"},"n"]
[null,"Cornish",null,{"$f":"ACS_Table_B25001!$I$7","v":840},3.8408779149519894E-2,{"$f":"CntyQuery!FB174","v":54},4.7410008779631254E-3,{"$f":"CntyQuery!FD174","v":26},2.2827041264266903E-3,{"$f":"CntyQuery!FE174","v":27},2.3705004389815627E-3]
[null,"Croydon",null,{"$f":"ACS_Table_B25001!K$7","v":409},1.8701417466849564E-2,{"$f":"CntyQuery!FB175","v":77},6.7603160667251971E-3,{"$f":"CntyQuery!FD175","v":16},1.4047410008779632E-3,{"$f":"CntyQuery!FE175","v":61},5.3555750658472344E-3]
[null,"Goshen",null,{"$f":"ACS_Table_B25001!$M$7","v":458},2.0941929583904891E-2,{"$f":"CntyQuery!FB176","v":25},2.1949078138718174E-3,{"$f":"CntyQuery!FD176","v":"n"},"n",{"$f":"CntyQuery!FE176","v":"n"},"n"]
[null,"Grantham",null,{"$f":"ACS_Table_B25001!$O$7","v":2039},9.3232738911751253E-2,{"$f":"CntyQuery!FB177","v":256},2.2475856014047411E-2,{"$f":"CntyQuery!FD177","v":39},3.424056189640035E-3,{"$f":"CntyQuery!FE177","v":217},1.9051799824407373E-2]
[null,"Langdon",null,{"$f":"ACS_Table_B25001!$Q$7","v":273},1.2482853223593965E-2,{"$f":"CntyQuery!FB178","v":47},4.1264266900790164E-3,{"$f":"CntyQuery!FD178","v":"n"},"n",{"$f":"CntyQuery!FE178","v":"n"},"n"]
[null,"Lempster",null,{"$f":"ACS_Table_B25001!$S$7","v":655},2.9949702789208964E-2,{"$f":"CntyQuery!FB179","v":94},8.2528533801580328E-3,{"$f":"CntyQuery!FD179","v":"n"},"n",{"$f":"CntyQuery!FE179","v":"n"},"n"]
[null,"Newport",null,{"$f":"ACS_Table_B25001!$U$7","v":2859},0.13072702331961591,{"$f":"CntyQuery!FB180","v":2710},0.23792800702370501,{"$f":"CntyQuery!FD180","v":1136},9.9736611062335376E-2,{"$f":"CntyQuery!FE180","v":1574},0.13819139596136962]
[null,"Plainfield",null,{"$f":"ACS_Table_B25001!$W$7","v":1043},4.7690900777320529E-2,{"$f":"CntyQuery!FB181","v":465},4.0825285338015806E-2,{"$f":"CntyQuery!FD181","v":118},1.0359964881474977E-2,{"$f":"CntyQuery!FE181","v":346},3.0377524143985951E-2]
[null,"Springfield",null,{"$f":"ACS_Table_B25001!$Y$7","v":596},2.7251943301326017E-2,{"$f":"CntyQuery!FB182","v":106},9.3064091308165051E-3,{"$f":"CntyQuery!FD182","v":29},2.5460930640913084E-3,{"$f":"CntyQuery!FE182","v":77},6.7603160667251971E-3]
[null,"Sunapee",null,{"$f":"ACS_Table_B25001!$AA$7","v":2367},0.10823045267489712,{"$f":"CntyQuery!FB183","v":423},3.7137840210711148E-2,{"$f":"CntyQuery!FD183","v":112},9.8331870061457421E-3,{"$f":"CntyQuery!FE183","v":311},2.7304653204565408E-2]
[null,"Unity",null,{"$f":"ACS_Table_B25001!$AC$7","v":661},3.0224051211705533E-2,{"$f":"CntyQuery!FB184","v":8},7.0237050043898161E-4,{"$f":"CntyQuery!FD184","v":"n"},"n",{"$f":"CntyQuery!FE184","v":"n"},"n"]
[null,"Washington",null,{"$f":"ACS_Table_B25001!$AE$7","v":988},{"$f":"D47/D$49","v":4.5176040237768632E-2},{"$f":"CntyQuery!FB185","v":26},2.2827041264266903E-3,{"$f":"CntyQuery!FD185","v":12},1.0535557506584723E-3,{"$f":"CntyQuery!FE185","v":14},1.2291483757682178E-3]
[]
[null,"Sullivan County",null,{"$f":"SUM(D33:D48)","v":21870},null,{"$f":"CntyQuery!$ER$201","v":11390},null,{"$f":"CntyQuery!$ET$201","v":3818},null,{"$f":"CntyQuery!$EU$201","v":7573}]
[]
[null,"Source: ","2018-2022 American Community Survey Table B25001"]
[null,null,"Employment data provided by NH Department of Employment Security 2022 Covered Private Employment."]
[null,null,"Margin of error is not displayed.  The American Community Survey data are estimates only. Total Employment "]
[null,null,"at the county level is the number provided by NH Department of Employment Security."]

{"sheet":"DropDownList","index":74,"n_rows":47,"n_cols":3,"rows_kept":47,"cut":false,"hidden":true,"merged":[]}
["List Range for Combo Box on Start Page"]
["Acworth"]
["Charlestown"]
["Claremont"]
["Cornish"]
["Croydon"]
["Goshen"]
["Grantham"]
["Langdon"]
["Lempster"]
["Newport"]
["Plainfield"]
["Springfield"]
["Sunapee"]
["Unity"]
["Washington"]
[]
[]
[]
[]
[]
[]
[]
[]
[]
[]
[]
[]
[]
[]
[]
[]
[]
[]
[]
[]
[]
[]
[]
[]
[]
[]
[]
[]
[]
[]
[{"$f":"B47","v":"Grantham"},"Grantham","Sunapee"]

{"sheet":"CntyQryCensus","index":75,"n_rows":544,"n_cols":216,"rows_kept":544,"cut":false,"hidden":true,"merged":[]}
[]
["Census 2000 SF1   -           Query Name:  TownAllQuery3"]
["NAME","COUNTY","LOGRECNO","COUSUB","TRACT","AREALAND","AREAWATR","POP100","HU100","P01TotalPopulation","P03PopOfOneRace","P03PopWhite","P03PopBlack","P03PopAmIndian","P03PopAsian","P03PopHawaiian","P03PopOtherRace","P03Pop2orMoreRaces","P04PopHispanicLatino","P04PopNotHispanicLatino","P12PopMale","P12PopMale<15","P12PopMale15to24","P12PopMale25to34","P12PopMale35to44","P12PopMale45to54","P12PopMale55to64","P12PopMale65to74","P12PopMale75to84","P12PopMale85andOver","P12PopFemale","P12PopFemale<15","P12PopFemale15to24","P12PopFemale25to34","P12PopFemale35t44","P12PopFemale45to54","P12PopFemale55to64","P12PopFemale65to74","P12PopFemale75to84","P12PopFemale85andOver","P15Households2000","P16PopInHH","P17AvgHHSize","P18HHs1Person","P18HHs2orMorePerson","P18HHsFamily","P18HHMarriedCoupleFam","P18HHSingleParentFam","P18HHsNonFamily","P31Families","P32PopInFam","P33AvgFamSize","H01TotHsUnits","H04OccHsUnits","H04OwnerOccHU","H04RenterOccHU","H05VctHsUnits","H05VctHUForRent","H05VctHUForSale","H05VctHUSeasonal","H10PopInOccHU","H11PopInOwnOccHU","H11PopInRntOccHU","H12AvgHHSize2","H12AvgHHSizOwnOcc","H12AvgHHSizRntOcc","H14OwnOccWhtHsHldr","H14OwnOccBlkHsHldr","H14OwnOccAmIHsHldr","H14OwnOccAsnHsHldr","H14OwnOccPIsHsHldr","H14OwnOccORHsHldr","H14OwnOcc2RcHsHldr","H14RntOccWhtHsHldr","H14RntOccBlkHsHldr","H14RntOccAmIHsHldr","H14RntOccAsnHsHldr","H14RntOccPIsHsHldr","H14RntOccORHsHldr","H14RntOcc2RcHsHldr","H16OwnOccHH15to24","H16OwnOccHH25to34","H16OwnOccHH35to44","H16OwnOccHH45to54","H16OwnOccHH55to64","H16OwnOccHH65to74","H16OwnOccHH75to84","H16OwnOccHH85Over","H16RntOccHH15to24","H16RntOccHH25to34","H16RntOccHH35to44","H16RntOccHH45to54","H16RntOccHH55to64","H16RntOccHH65to74","H16RntOccHH75to84","H16RntOccHH85Over","P27TotalPop","P27PopInHseHlds","P27PopInGrpQtrs","CNTY_NAME","P13MedianPopMale","P13MedianPopFemale"]
["Acworth","019","0035914","00260","","     100723552","        634512",836,"      512",836,825,809,7,7,2,0,0,11,9,827,421,89,42,32,67,83,50,40,13,5,415,86,37,30,72,73,48,44,19,6,318,836,2.63,63,255,234,193,41,21,234,716,3.06,512,318,267,51,194,6,1,172,836,682,154,2.63,2.5499999999999998,3.02,263,0,2,2,0,0,0,45,1,0,0,0,0,5,2,16,53,80,45,51,14,6,1,10,15,6,8,6,2,3,836,836,0,"Sullivan",36.6,36.6]
["Charlestown","019","0036069","11380","","      92753742","       5569974",4749,"     2067",4749,4716,4679,15,12,7,0,3,33,28,4721,2313,468,296,270,357,376,264,152,106,24,2436,471,249,270,403,382,265,206,141,49,1920,4729,2.46,459,1461,1332,1068,264,129,1332,3859,2.9,2067,1920,1469,451,147,43,21,49,4729,3790,939,2.46,2.58,2.08,1459,4,2,1,0,0,3,442,1,3,1,0,0,4,25,177,313,350,272,180,122,30,51,86,88,71,52,49,39,15,4749,4729,20,"Sullivan",34.299999999999997,36.6]
["Claremont","019","0036288","12900","","     111684026","       2496735",13151,"     6074",13151,13030,12845,41,43,81,4,16,121,66,13085,6323,1306,727,872,1030,919,609,463,310,87,6828,1243,810,828,1021,908,661,609,568,180,5685,12970,2.2799999999999998,1831,3854,3428,2587,841,426,3428,9810,2.86,6074,5685,3271,2414,389,131,66,64,12970,8059,4911,2.2799999999999998,2.46,2.0299999999999998,3233,2,6,8,0,3,19,2345,16,13,10,0,3,27,46,350,666,696,545,477,385,106,263,530,474,363,236,218,255,75,13151,12970,181,"Sullivan",21.6,20.9]
["Cornish","019","0036648","15060","","     109093811","       1875877",1661,"      697",1661,1642,1623,null,5,2,2,5,19,8,1653,831,172,77,76,135,181,92,56,36,6,830,177,67,84,143,161,94,61,31,12,645,1660,2.57,137,508,466,406,60,42,466,1406,3.02,697,645,563,82,52,5,2,35,1660,1476,184,2.57,2.62,2.2400000000000002,557,1,0,0,1,0,4,80,0,1,0,0,0,1,0,44,111,181,99,66,48,14,3,26,27,13,5,5,3,0,1661,1660,1,"Sullivan",36,36.1]
["Croydon","019","0036771","16340","","      96047850","       2000207",661,"      354",661,653,644,0,3,1,0,5,8,4,657,345,66,32,51,58,59,44,23,12,0,316,53,30,37,55,56,39,23,18,5,264,660,2.5,51,213,194,153,41,19,194,526,2.71,354,264,237,27,90,1,9,72,660,592,68,2.5,2.5,2.52,232,0,1,0,0,1,3,27,0,0,0,0,0,0,3,34,54,55,44,29,15,3,0,8,5,6,5,1,2,0,661,660,1,"Sullivan",34.9,35.799999999999997]
["Goshen","019","0036818","30500","","      58245997","        226530",741,"      389",741,733,719,0,12,1,0,1,8,3,738,366,67,52,33,68,58,41,30,15,2,375,74,45,32,71,52,47,28,20,6,279,733,2.63,48,231,219,180,39,12,219,648,2.96,389,279,251,28,110,0,6,97,733,656,77,2.63,2.61,2.75,245,0,2,0,0,1,3,27,0,0,0,0,0,1,4,23,58,64,49,31,20,2,4,4,8,4,2,3,2,1,741,733,8,"Sullivan",36,36.4]
["Grantham","019","0036868","31220","","      69361907","       2257377",2167,"     1513",2167,2149,2130,6,2,9,0,2,18,12,2155,1062,175,65,120,154,171,123,166,77,11,1105,178,77,110,174,168,181,153,57,7,924,2167,2.35,177,747,708,649,59,39,708,1889,2.67,1513,924,819,105,589,7,25,533,2167,1915,252,2.35,2.34,2.4,812,2,0,2,0,0,3,101,1,0,2,0,0,1,3,66,144,178,147,182,88,11,9,33,25,19,13,3,2,1,2167,2167,0,"Sullivan",36.799999999999997,36.299999999999997]
["Langdon","019","0037011","40900","","      42137071","        154483",586,"      269",586,585,584,0,0,0,0,1,1,1,585,311,56,37,34,57,60,36,20,8,3,275,42,21,31,55,60,27,21,15,3,237,586,2.4700000000000002,50,187,175,155,20,12,175,499,2.85,269,237,210,27,32,1,3,25,586,532,54,2.4700000000000002,2.5299999999999998,2,209,0,0,0,0,1,0,27,0,0,0,0,0,0,3,23,48,63,28,27,14,4,0,8,8,2,2,6,1,0,586,586,0,"Sullivan",37.4,37.299999999999997]
["Lempster","019","0037069","41700","","      83765657","       1113916",971,"      577",971,947,944,0,1,1,1,0,24,2,969,494,100,43,58,74,102,47,38,22,10,477,100,44,48,96,80,42,38,16,13,387,971,2.5099999999999998,85,302,276,232,44,26,276,800,2.9,577,387,345,42,190,8,10,159,971,866,105,2.5099999999999998,2.5099999999999998,2.5,338,0,0,0,0,0,7,40,0,0,1,0,0,1,4,39,68,107,43,47,26,11,3,9,11,5,5,4,2,3,971,971,0,"Sullivan",38.5,37.799999999999997]
["Newport","019","0037184","52580","","     112839717","        206599",6269,"     2633",6269,6195,6144,9,13,22,0,7,74,35,6234,3086,765,372,406,488,402,250,225,141,37,3183,625,345,429,510,445,271,275,192,91,2473,6150,2.4900000000000002,636,1837,1656,1264,392,181,1656,4892,2.95,2633,2473,1637,836,160,24,19,46,6150,4127,2023,2.4900000000000002,2.52,2.42,1618,0,1,5,0,1,12,816,4,3,2,0,0,11,22,198,359,353,228,257,172,48,109,222,194,114,71,59,50,17,6269,6150,119,"Sullivan",35.5,37.799999999999997]
["Plainfield","019","0037383","62340","","     135086943","       1939624",2241,"      877",2241,2229,2198,6,9,9,1,6,12,8,2233,1136,254,116,124,205,205,120,73,30,9,1105,216,94,113,241,219,106,65,42,9,844,2241,2.66,137,707,663,574,89,44,663,1975,2.98,877,844,729,115,33,3,2,19,2241,1973,268,2.66,2.71,2.33,718,1,2,2,0,2,4,110,1,0,0,0,0,4,4,71,191,204,128,81,41,9,7,29,28,30,8,6,5,2,2241,2241,0,"Sullivan",36.1,38]
["Springfield","019","0037495","72740","","     112018016","       2296579",945,"      534",945,941,934,0,3,2,0,2,4,7,938,466,97,33,65,79,87,51,36,12,6,479,89,43,68,82,86,48,35,19,9,386,945,2.4500000000000002,77,309,286,252,34,23,286,802,2.8,534,386,328,58,148,2,6,129,945,814,131,2.4500000000000002,2.48,2.2599999999999998,327,0,1,0,0,0,0,58,0,0,0,0,0,0,1,49,67,88,53,45,17,8,4,16,17,14,3,0,3,1,945,945,0,"Sullivan",33.700000000000003,35.799999999999997]
["Sunapee","019","0037583","75060","","      54697288","      10572221",3055,"     2143",3055,3027,2993,6,6,11,1,10,28,14,3041,1544,307,182,150,237,246,157,167,82,16,1511,249,170,143,262,251,182,156,74,24,1294,3055,2.36,334,960,879,735,144,81,879,2489,2.83,2143,1294,972,322,849,25,7,783,3055,2390,665,2.36,2.46,2.0699999999999998,958,2,1,0,0,1,10,316,0,0,2,0,0,4,6,80,198,216,164,184,100,24,39,71,87,65,30,16,8,6,3055,3055,0,"Sullivan",37.200000000000003,37.6]
["Unity","019","0037730","77940","","      95672016","        613018",1530,"      594",1530,1523,1520,1,0,2,0,0,7,11,1519,772,133,94,100,123,132,78,66,26,20,758,119,50,89,108,124,65,56,72,75,504,1303,2.59,86,418,385,335,50,33,385,1113,2.89,594,504,467,37,90,4,6,71,1303,1209,94,2.59,2.59,2.54,467,0,0,0,0,0,0,36,0,0,0,0,0,1,7,63,100,130,79,63,23,2,4,12,8,8,3,2,0,0,1530,1303,227,"Sullivan"]
["Washington","019","0037812","78980","","     117668540","       5701755",895,"      925",895,882,879,0,3,0,0,0,13,13,882,458,93,26,48,63,80,65,60,21,2,437,72,36,44,65,68,75,53,18,6,370,895,2.42,72,298,278,251,27,20,278,760,2.73,925,370,338,32,555,3,14,511,895,815,80,2.42,2.41,2.5,333,0,1,0,0,0,4,31,0,0,0,0,0,1,5,31,57,74,71,70,27,3,1,11,4,7,3,5,1,0,895,895,0,"Sullivan"]
[]
[]
[]
[]
[]
[]
[]
[]
[]
[]
[]
[]
[]
[]
[]
[]
[]
[]
[]
[]
[]
[]
[]
[]
[]
[]
[]
[]
[]
[]
[]
[]
["Census 2000 DemoProfile Sample Data Tables 2&3   -  DPTab23TownQry"]
[]
["TOWN_NAME","COUSUB","AREANAME","PopInSchool","Preschool","Kindergarten","Elementary","HighSchool","College","Pop25andOver","HighSchoolGrad","SomeCollege","AssocDegree","BachelDegree","GradDegree","HSGradorHigher","CollegeGradorHigher","Pop5to20yrs","Pop5to20wDis","Pop21to64","Pop21to64wDis","Pop65over","Pop65overwDis","Pop5yrsOver","SameHUin95","DiffHUinUSin95","HUinSameCountyin95","HUinSameStatein95","TotalPop","NativePop","NatPopBornUS","NatPopBornInStatRes","NatPopBornDiffState","NatPopBornOutUS","FornBornPop","FornPopEnt90to00","FornPopNatCit","FornPopNotCit","Households","HHIncLessThn10k","HHInc10to15K","HHInc15to25K","HHInc25to35K","HHInc35to50K","HHInc50to75K","HHInc75to100K","HHInc100to150K","HHInc150to200K","HHIncOver200K","MedianHHInc","HHwithPubAssistInc","MeanPubAssist","FamilyHH","FHHIncLessThn10k","FHHInc10to15K","FHHInc15to25K","FHHInc25to35K","FHHInc35to50K","FHHInc50to75K","FHHInc75to100K","FHHInc100to150K","FHHInc150to200K","FHHIncOver200K","MedianFHHInc","PerCapitaInc","PovStatFamilies","PovStatFHHwChilUnd18","PovStatFHHwChilUnd5","PovStFmalHH","DP3088","DP3089","PovStatIndiv","PovStatIndiv18yrOver","PovStatIndiv65yrOver","DP3093","DP3094","DP3095","CNTY_NAME"]
["Acworth","00260","Acworth town, Sullivan County, New Hampshire",214,13,5,115,58,23,580,205,100,27,110,56,498,166,197,2,472,84,130,29,799,588,203,84,119,840,812,807,283,524,5,28,8,12,16,325,25,12,55,60,70,60,26,11,2,4,37386,5,2220,237,12,6,39,35,58,46,26,11,0,4,41397,18132,24,18,8,7,7,2,131,75,7,55,45,28,"Sullivan"]
["Charlestown","11380","Charlestown town, Sullivan County, New Hampshire",1061,67,50,575,304,65,3262,1507,638,157,245,108,2655,353,1064,129,2738,534,653,362,4474,2573,1890,1196,694,4749,4662,4651,1902,2749,11,87,4,62,25,1911,126,84,306,338,411,407,161,54,0,24,38024,55,12967,1333,19,55,171,223,312,370,130,48,0,5,45172,18654,46,36,13,20,20,13,306,242,67,64,53,159,"Sullivan"]
["Claremont","12900","Claremont city, New Hampshire",2820,156,146,1374,752,392,9044,3811,1597,550,787,369,7114,1156,2740,208,7434,1628,2135,944,12392,7359,4920,3097,1823,13151,12688,12603,7692,4911,85,463,137,217,246,5679,620,401,981,841,1043,1139,389,156,17,92,34949,433,2242,3447,98,185,483,494,746,894,351,123,17,56,42849,20267,187,144,77,101,93,55,1305,1014,241,274,187,732,"Sullivan"]
["Cornish","15060","Cornish town, Sullivan County, New Hampshire",418,16,27,205,123,47,1167,323,264,106,200,138,1031,338,390,28,991,119,201,75,1582,1136,437,212,225,1661,1620,1603,857,746,17,41,14,25,16,648,30,34,70,57,96,188,80,66,19,8,53393,6,850,466,8,7,36,45,71,142,78,52,19,8,60313,23165,13,9,9,5,5,5,74,44,11,24,14,29,"Sullivan"]
["Croydon","16340","Croydon town, Sullivan County, New Hampshire",138,2,4,67,50,15,492,246,76,37,42,23,424,65,143,16,438,75,72,37,653,458,195,126,69,685,670,668,419,249,2,15,0,11,4,262,8,11,22,49,42,71,35,17,5,2,49688,9,3978,200,3,1,15,37,42,55,29,13,5,0,50556,21403,5,5,0,3,3,0,33,23,7,7,7,19,"Sullivan"]
["Goshen","30500","Goshen town, Sullivan County, New Hampshire",165,6,7,86,38,28,539,225,66,43,63,17,414,80,156,11,433,67,121,40,710,458,252,145,107,755,737,734,456,278,3,18,2,16,2,295,17,16,38,38,64,72,22,18,2,8,42625,5,3420,233,11,7,23,33,53,59,22,15,2,8,45208,20561,16,7,3,2,2,0,66,48,26,18,14,21,"Sullivan"]
["Grantham","31220","Grantham town, Sullivan County, New Hampshire",434,32,32,193,104,73,1672,291,343,127,491,365,1617,856,350,19,1236,92,478,82,2064,940,1095,303,792,2173,2083,2058,720,1338,25,90,26,40,50,933,36,12,52,68,147,259,163,129,35,32,63239,4,1475,709,7,12,26,44,103,211,148,105,29,24,69271,32174,10,8,8,5,5,5,54,46,18,8,0,31,"Sullivan"]
["Langdon","40900","Langdon town, Sullivan County, New Hampshire",145,13,4,70,34,24,419,178,92,30,62,14,376,76,125,15,363,53,73,22,561,382,174,52,122,582,562,549,185,364,13,20,2,16,4,233,9,7,26,39,60,47,20,8,7,10,42083,4,7200,180,3,3,17,37,49,39,19,3,7,3,43125,24572,6,0,0,3,0,0,22,22,9,0,0,8,"Sullivan"]
["Lempster","41700","Lempster town, Sullivan County, New Hampshire",226,12,7,128,49,30,686,260,148,48,59,46,561,105,212,33,577,83,133,52,922,572,348,144,204,971,945,938,480,458,7,26,0,19,7,393,21,18,44,78,109,88,17,8,6,4,40458,9,3389,282,5,1,26,48,91,81,14,6,6,4,45385,19172,9,9,5,3,3,3,70,46,7,18,12,40,"Sullivan"]
["Newport","52580","Newport town, Sullivan County, New Hampshire",1502,97,111,808,337,149,4166,1774,671,312,313,178,3248,491,1416,273,3469,787,912,370,5859,3285,2545,1773,772,6269,6102,6075,4077,1998,27,167,77,57,110,2460,279,188,296,340,551,517,173,100,9,7,37442,185,3134,1660,115,113,153,217,338,453,165,90,9,7,45508,16964,180,148,96,99,82,69,890,517,91,296,196,308,"Sullivan"]
["Plainfield","62340","Plainfield town, Sullivan County, New Hampshire",504,27,25,246,141,65,1576,498,217,118,339,263,1435,602,469,22,1391,145,235,69,2097,1428,657,190,467,2241,2170,2157,1119,1038,13,71,15,39,32,852,24,21,85,74,168,220,123,69,40,28,57083,14,3521,669,8,10,45,49,137,200,99,59,34,28,61205,26062,12,4,2,6,4,2,63,52,11,9,6,33,"Sullivan"]
["Springfield","72740","Springfield town, Sullivan County, New Hampshire",184,0,7,115,44,18,664,246,113,44,118,70,591,188,179,10,564,59,126,48,869,520,349,152,197,915,901,897,490,407,4,14,3,8,6,391,18,19,23,72,86,85,55,21,8,4,44659,8,4238,287,2,14,11,49,54,87,41,18,8,3,58068,23263,10,2,0,0,0,0,47,42,10,5,5,22,"Sullivan"]
["Sunapee","75060","Sunapee town, Sullivan County, New Hampshire",663,3,48,363,190,59,2150,590,449,147,480,317,1983,797,670,41,1727,181,526,94,2923,1735,1174,564,610,3055,2969,2969,1438,1531,0,86,17,53,33,1292,43,44,144,127,303,303,138,115,33,42,49353,17,1535,878,31,2,79,72,189,227,106,111,19,42,55909,29184,33,26,10,22,22,10,158,104,22,45,22,66,"Sullivan"]
["Unity","77940","Unity town, Sullivan County, New Hampshire",282,11,10,143,77,41,1135,497,180,66,102,47,892,149,251,15,825,164,147,64,1452,894,547,345,202,1530,1488,1483,811,672,5,42,2,33,9,501,24,29,69,53,126,127,41,23,7,2,41594,7,4286,380,16,18,38,42,88,111,38,23,4,2,47045,17908,26,22,10,8,6,4,104,59,2,45,27,20,"Sullivan"]
["Washington","78980","Washington town, Sullivan County, New Hampshire",192,5,12,117,34,24,647,215,171,54,82,56,578,138,190,14,515,71,140,29,845,427,416,84,332,881,865,855,354,501,10,16,2,12,4,352,13,10,53,59,64,95,33,15,4,6,43125,5,1280,258,5,3,21,44,56,77,27,15,4,6,50000,20540,8,6,4,2,2,2,44,26,8,16,9,16,"Sullivan"]
[]
[]
[]
[]
[]
[]
[]
[]
[]
[]
[]
[]
[]
[]
[]
[]
[]
[]
[]
[]
[]
[]
[]
[]
[]
[]
[]
[]
[]
[]
[]
[]
["Census 2000 DemoProfile Sample Data Table 4   -  DPTab4TownQry"]
[]
["TOWN_NAME","COUSUB","TotHousingUnits","1UnitDet","1UnitAtt","2Units","3to4Units","5to9Units","10to19Units","20orMoreUnits","MobileHomes","BoatRvVan","SingleFamilyUnits","MultiFamUnits","MobileHomeUnits","YearBuilt99to00","YearBuilt95to98","YearBUilt90to94","YearBuilt80to89","YearBuilt70to79","YearBuilt60to69","YearBuilt40to59","YearBuilt39orEarlier","Rooms1","Rooms2","Rooms3","Rooms4","Rooms5","Rooms6","Rooms7","Rooms8","Rooms9orMore","MedianRooms","OccHU1","YrHHMvdIn99to00","YrHHMvdIn95to98","YrHHMvdIn90to94","YrHHMvdIn80to89","YrHHMvdIn70to79","YrHHMvdIn69orBefore","HeatFuelNatGas","HeatFuelBotGas","HeatFuelElectric","HeatFuelOil","HeatFuelCoal","HeatFuelWood","HeatFuelSolar","HeatFuelOther","HeatFuelNone","LackCompPlumb","LackCompKit","NoTelephone","OccHU","OccPerRm1orLess","OccPerRm1to1_5","OccPerRm1_5orMore","SpecOwnOccUnits","Value<50K","Value50to100K","Value100to150K","Value150to200K","Value200to300K","Value300to500K","Value500Kto1mil","Value1MilorMore","MedianValue","WithMortg","MnthOwnCst<300","MnthOwnCst300to500","MnthOwnCst500to700","MnthOwnCst700to1000","MnthOwnCst1000to1500","MnthOwnCst1500to2000","MnthOwnCst2000orMore","MediMnthOwnCst","NotMrtg","NotMrtgMediMnthOwnCst","OwnCst%HHInc<15","OwnCst%HHInc15to20","OwnCst%HHInc20to25","OwnCst%HHInc25to30","OwnCst%HHInc30to35","OwnCst%HHInc35orMor","NotComputed","SpecRntOccUnits","Rnt<200","Rnt200to300","Rnt300to500","Rnt500to750","Rnt750to1000","Rnt1000to1500","Rnt1500orMore","NoRent","MedianRent","Rnt%HHInc<15","Rnt%HHInc15to20","Rnt%HHInc20to25","Rnt%HHInc25to30","Rnt%HHInc30to35","Rnt%HHInc35orMore","Rnt%NotCompute","CNTY_NAME"]
["Acworth","00260",515,458,4,9,0,0,0,0,40,4,458,13,44,5,17,32,68,59,41,74,219,16,30,63,95,85,59,71,54,42,5.0999999999999996,319,34,53,57,94,43,38,3,35,0,149,0,132,0,0,0,11,18,5,319,307,5,7,124,12,61,34,9,6,0,2,0,92700,68,0,2,13,27,22,2,2,870,56,407,43,22,17,23,8,10,1,33,0,2,6,15,2,0,0,8,613,7,2,3,4,2,4,11,"Sullivan"]
["Charlestown","11380",2067,1084,14,77,108,97,8,49,630,0,1084,353,630,48,125,121,319,515,161,262,516,20,49,196,489,529,284,227,153,120,5,1920,294,518,247,421,233,207,0,174,89,1494,0,158,0,5,0,6,6,73,1920,1873,35,12,761,39,546,141,17,14,0,4,0,81500,502,0,12,118,239,120,6,7,867,259,423,237,185,133,69,47,84,6,437,25,23,188,165,13,8,7,8,464,107,82,66,14,58,85,25,"Sullivan"]
["Claremont","12900",6074,3011,147,579,712,377,154,630,464,0,3011,2599,464,21,122,128,560,1043,482,1584,2134,79,307,624,1176,1320,1104,655,441,368,5.0999999999999996,5685,946,1589,832,912,588,818,153,379,314,4514,0,187,0,97,41,13,6,239,5685,5633,31,21,2355,123,1680,448,65,13,20,6,0,79800,1465,0,52,206,660,446,63,38,910,890,395,726,447,448,257,163,306,8,2389,280,183,698,1014,90,52,0,72,499,459,361,426,281,125,655,82,"Sullivan"]
["Cornish","15060",697,605,5,28,11,0,0,0,48,0,605,44,48,2,14,49,98,127,44,61,302,2,0,33,79,150,149,118,58,108,6.1,645,64,119,102,198,106,56,0,112,12,413,0,108,0,0,0,4,6,8,645,641,4,0,298,13,125,111,34,15,0,0,0,104400,209,0,5,24,75,82,14,9,1002,89,378,89,49,61,27,13,56,3,52,0,2,6,20,10,6,0,8,640,12,13,4,6,3,6,8,"Sullivan"]
["Croydon","16340",347,294,0,2,0,0,0,0,51,0,294,2,51,19,14,28,88,49,24,44,81,0,10,9,55,85,64,52,38,34,5.7,268,39,41,60,78,39,11,0,60,2,161,4,41,0,0,0,2,0,0,268,262,6,0,150,4,59,70,10,5,2,0,0,106500,115,0,16,10,42,42,2,3,905,35,338,49,30,18,13,14,26,0,16,0,0,0,11,5,0,0,0,729,0,5,2,0,2,7,0,"Sullivan"]
["Goshen","30500",390,336,5,2,6,0,0,0,35,6,336,13,41,0,16,40,68,74,39,62,91,6,9,26,75,73,89,47,35,30,5.6,280,36,56,51,53,45,39,0,51,4,164,0,61,0,0,0,0,0,7,280,275,5,0,159,10,88,51,10,0,0,0,0,92300,117,0,2,20,57,36,2,0,867,42,383,44,26,26,22,15,24,2,26,0,0,2,14,8,0,0,2,630,0,7,9,2,0,6,2,"Sullivan"]
["Grantham","31220",1518,1168,296,19,9,0,0,0,26,0,1168,324,26,24,124,192,672,338,44,49,75,10,5,23,158,291,459,248,195,129,6.1,925,173,332,156,170,65,29,9,436,47,340,0,93,0,0,0,0,5,10,925,923,2,0,710,5,93,228,155,150,72,7,0,159200,459,0,2,32,60,226,97,42,1300,251,510,252,111,132,73,38,97,7,103,0,0,6,17,19,52,4,5,1040,26,15,10,20,2,22,8,"Sullivan"]
["Langdon","40900",266,220,2,2,3,0,0,0,39,0,220,7,39,2,17,41,51,36,32,19,68,0,2,10,35,80,35,45,28,31,5.7,236,14,51,39,80,23,29,2,8,2,146,0,78,0,0,0,0,2,2,236,230,6,0,120,2,61,35,15,4,3,0,0,96300,84,0,6,14,29,27,5,3,936,36,330,43,10,22,17,6,20,2,18,0,0,0,13,0,0,0,5,606,2,4,0,5,2,0,5,"Sullivan"]
["Lempster","41700",577,471,1,8,0,0,0,0,88,9,471,9,97,5,43,39,120,119,51,94,106,8,16,35,184,113,109,51,35,26,4.9000000000000004,387,55,94,60,111,49,18,0,74,6,217,0,90,0,0,0,15,10,7,387,382,5,0,159,35,89,28,5,2,0,0,0,83300,100,0,2,26,37,35,0,0,900,59,392,50,29,32,12,11,23,2,37,2,2,4,18,3,0,0,8,541,5,9,4,5,0,6,8,"Sullivan"]
["Newport","52580",2633,1465,57,235,366,155,46,42,267,0,1465,901,267,101,50,83,406,303,297,430,963,11,24,151,539,594,543,394,195,182,5.5,2473,418,647,376,541,158,333,62,392,52,1855,8,87,0,17,0,0,10,52,2473,2449,16,8,1162,66,803,236,48,9,0,0,0,80900,733,0,19,86,359,238,23,8,913,429,384,381,217,177,124,48,215,0,832,42,97,153,387,125,9,9,10,552,110,143,154,92,57,234,42,"Sullivan"]
["Plainfield","62340",877,726,17,45,3,4,6,0,76,0,726,75,76,24,29,69,201,168,65,90,231,4,10,20,110,211,162,127,114,119,6,844,93,199,108,213,127,104,3,140,5,563,0,130,3,0,0,11,10,13,844,835,6,3,368,10,130,131,58,39,0,0,0,113800,281,0,7,26,86,101,46,15,1074,87,446,85,70,76,37,39,57,4,72,2,0,12,23,17,12,0,6,728,16,12,12,9,9,8,6,"Sullivan"]
["Springfield","72740",536,455,2,4,4,0,0,0,71,0,455,10,71,18,37,57,95,116,66,38,109,18,27,23,73,120,105,52,52,66,5.6,381,53,105,56,91,53,23,0,100,12,198,0,71,0,0,0,13,8,6,381,368,9,4,183,3,56,66,33,23,2,0,0,118100,141,0,4,17,32,78,10,0,1084,42,488,64,21,46,8,9,32,3,49,0,0,12,14,8,7,0,8,716,8,16,6,0,7,4,8,"Sullivan"]
["Sunapee","75060",2143,1715,68,63,101,98,18,7,73,0,1715,355,73,20,128,132,356,483,225,364,435,18,57,92,230,444,444,414,190,254,6,1294,243,323,216,283,151,78,13,326,70,798,5,74,0,0,8,0,4,0,1294,1284,10,0,784,14,206,235,120,88,72,29,20,136100,440,0,12,27,158,185,35,23,1052,344,432,277,162,145,57,33,106,4,315,0,5,48,130,60,45,7,20,693,47,64,59,28,26,71,20,"Sullivan"]
["Unity","77940",594,473,2,4,3,0,0,0,112,0,473,9,112,7,50,45,137,144,58,50,103,3,8,34,140,164,118,89,22,16,5.2,504,47,122,83,154,59,39,5,90,3,318,2,86,0,0,0,15,8,9,504,491,12,1,213,5,142,44,15,5,2,0,0,88100,154,0,7,27,72,40,8,0,870,59,353,55,44,31,28,16,39,0,30,0,0,8,10,9,0,0,3,722,0,0,7,5,2,13,3,"Sullivan"]
["Washington","78980",924,859,10,12,0,0,0,0,41,2,859,22,43,34,30,168,167,123,68,146,188,13,77,84,184,246,138,86,56,40,4.9000000000000004,369,64,130,44,88,31,12,8,154,5,120,3,77,0,2,0,11,7,2,369,355,12,2,252,20,83,90,29,30,0,0,0,110500,160,0,5,22,48,60,18,7,1033,92,436,64,53,47,26,15,47,0,23,0,0,0,15,3,0,0,5,658,2,2,2,4,0,8,5,"Sullivan"]
[]
[]
[]
[]
[]
[]
[]
[]
[]
[]
[]
[]
[]
[]
[]
[]
[]
[]
[]
[]
[]
[]
[]
[]
[]
[]
[]
[]
[]
[]
[]
[]
[]
[]
["Census 2000 SummaryFile3 Sample Data  -  SF3TownQry1SocialChar"]
[]
["TOWN_NAME","LOGRECNO","COUSUB","P01TotalPopulation","P02SampleCountOfPop","P03Pop100pctCount","P05UrbanPopulation","P05RuralPopulation","P06WhiteAlone","P06BlackOrAfAm","P06AmIndAlone","P06AsianAlone","P06HawaiianOrPI","P06OtherRace","P06TwoPlusRaces","P07NotHispanicOrLatino","P07HispanicOrLatino","P08MalePop","P08FemalePop","P09PopInHouseholds","P09PopInFamHH","P09PopInNonFamHH","P09PopInGroupQtr","P13TotalHH","P13FamilyHH","P13FamHHolder15to24yrs","P13FamHHolder25to34yrs","P13FamHHolder35to44yrs","P13FamHHolder45to54yrs","P13FamHHolder55to64yrs","P13FamHHolder65to74yrs","P13FamHHolder75to84yrs","P13FamHHolder85yrsOver","P13NonFamilyHH","P13NonFamHHolder15to24yrs","P13NonFamHHolder25to34yrs","P13NonFamHHolder35to44yrs","P13NonFamHHolder45to54yrs","P13NonFamHHolder55to64yrs","P13NonFamHHolder65to74yrs","P13NonFamHHolder75to84yrs","P13NonFamHHolder85yrsOver","P18Pop15yrsOver","P18MaritalStatNeverMarried","P18MaritalStatNowMarried","P18MaritalStatSeparated","P18MaritalStatWidowed","P18MaritalStatWidowFemale","P18MaritalStatDivorced","P18MaritalStatDivorcedFemale","P21NativeBornPop","P21NatPopBornInState","P21NatPopBornOtherState","P021005","P021006","P021007","P021008","P21NatPopBornOutUS","P21ForeignBornPop","P021014","P021015","P24Pop5YrsPlus","P24ResSameHouseIn95","P24ResDiffHouseIn95","P24ResDiffHouseInUSIn95","P24ResDiffHouseSameCountyIn95","P24ResDiffHouseDiffCountyIn95","P24ResDiffHouseDiffCntySamStIn95","P24ResDiffHouseDiffCntyDifStIn95","P24ResDiffHouseDiffCntyNEStIn95","P24ResDiffHouseDiffCntyMWStIn95","P24ResDiffHouseDiffCntySoStIn95","P24ResDiffHouseDiffCntyWstStIn95","P24ResDiffInPR","P24ResDiffElsewhereIn95","P26Workers16yrsOver","P26WorkedInState","P26WorkedInCnty","P26WorkedOutsideCnty","P26WorkedOutsideState","P30Workers16Over","P30TranspToWrkCar","P30TranspToWrkPublic","P30TranspToWrkOther","P30WrkdAtHome","P31WrkrsNotWrkAtHom","P31TravTim<5min","P31TravTim5to9Min","P31TravTim10to14Min","P31TravTim15to19Min","P31TravTim20to24Min","P31TravTim25to29Min","P31TravTim30to34Min","P31TravTim35to39Min","P31TravTim40to44Min","P31TravTim45to59Min","P31TravTim60to89Min","P31TravTim90MinMore","P31WorkAtHome","P36SchEnrlPop3yrOver","P36NurserSchEnrl","P36KinderSchEnrl","P36ElemSchEnrl","P36HighSchEnrl","P36CollGradSchEnrl","P37Pop25yrsOver","P37EduAtain<9grd","P37EduAtainHSnoDip","P37EduAtainHSgrad","P37EduAtainCollNoDeg","P37EduAtainAssocDeg","P37EduAtainBachDeg","P37EduAtainGradProfDeg","P42NIPop5to15","P42NIPop5to15wDisabl","P42NIPop16to20","P42NIPop16to20wDisab","P42NIPop16to20wDisEmp","P42NIPop16to21NoDis","P42NIPop16to21NoDisEmpl","P42NIPop21to64","P42NIPop21to64wDis","P42NIPop21to64wDisEmp","P42NIPop21to64NoDis","P42NIPop21to64NoDisEmp","P42NIPop65to74","P42NIPop65to74wDis","P42NIPop75Over","P42NIPop75OverwDis","P43Pop16YrsOver","P43Pop16OvrInLaborForce","P43Pop16OvrCivlLabFrc","P43Pop16OvrCivlLbrFrcEmp","P48Families","P48MarriedFam","P48MarrFamNoWorkers","P48MarrFam1Worker","P48MarrFam2Worker","P48MarrFamHusbWifeWorked","P48MarrFamOther","P48MarrFam3PlusWorker","P48MarrFam3WorkHsbWif","P48MarrFam3PlsWrkOther","P48OtherFam","P48MaleHHNoWif","P48MaleHHNoWifNoWorker","P48MaleHHNoWif1Worker","P48MaleHHNoWif2Worker","P48MaleHHNoWif3PlusWorker","P48FemaleHHNoHsb","P48FemaleHHNoHsbNoWorker","P48FemaleHHNoHsb1Worker","P48FemaleHHNoHsb2Worker","P48FemaleHHNoHsb3Worker","P49EmpCivPop16YrOver","P49IndustAgricult","P49IndustConst","P49IndustMnftg","P49IndustWhlslTrd","P49IndustRtlTrd","P49IndustTrspWrhsUtlt","P49IndustInfrm","P49IndustFinInsRE","P49IndustPrfsScntfMngmt","P49IndustEduHlthSocSrv","P49IndustArtsEntRec","P49IndustOthrSrvc","P49IndustPubAdm","P50OccupMngmtProfs","P50OccupService","P50OccupSalesOff","P50OccupFarmFishForest","P50OccupConstExtrctMaint","P50OccupPrdctTrnspMatMv"]
["Acworth","0004141","00260",840,376,836,0,840,825,0,0,0,0,0,15,837,3,436,404,840,736,104,0,325,237,0,16,55,72,40,32,17,5,88,2,10,7,9,32,21,3,4,667,137,410,5,30,28,85,33,812,283,524,423,36,39,26,5,28,12,16,799,588,211,203,84,119,41,78,68,2,5,3,0,8,403,349,222,127,54,403,335,4,2,54,349,10,17,13,37,52,29,67,20,17,46,30,11,54,814,13,5,115,58,23,580,19,63,205,100,27,110,56,142,0,55,2,0,53,30,472,84,48,388,311,83,12,47,17,657,421,421,416,237,197,34,23,115,98,17,25,20,5,40,16,3,8,5,0,24,11,4,7,2,416,27,63,83,9,45,35,8,15,14,69,14,22,12,118,25,103,8,74,88]
["Charlestown","0004146","11380",4749,786,4749,2670,2079,4715,0,0,4,0,0,30,4745,4,2346,2403,4730,4015,715,19,1911,1333,68,219,302,325,203,109,68,39,578,30,34,86,91,148,101,62,26,3807,782,2240,54,251,212,480,257,4662,1902,2749,2502,98,108,41,11,87,62,25,4474,2573,1901,1890,1196,694,178,516,397,26,78,15,0,11,2396,1923,1621,302,473,2396,2249,0,9,86,2310,149,286,327,389,430,99,212,59,88,208,50,13,86,4574,67,50,575,304,65,3262,204,403,1507,638,157,245,108,740,63,324,66,23,258,136,2738,534,278,2204,1914,351,176,302,186,3734,2560,2560,2430,1333,1088,152,195,621,598,23,120,109,11,245,100,5,54,32,9,145,16,92,25,12,2430,69,221,603,120,343,98,37,111,96,451,121,89,71,536,393,594,29,298,580]
["Claremont","0004169","12900",13151,1599,13151,9108,4043,12869,41,61,103,0,15,62,13099,52,6320,6831,12973,10284,2689,178,5679,3447,176,516,863,763,495,349,226,59,2232,130,234,344,348,324,311,429,112,10606,2495,5553,141,1042,776,1375,783,12688,7692,4911,4139,209,345,218,85,463,217,246,12392,7359,5033,4920,3097,1823,297,1526,909,19,369,229,9,104,6456,5821,4820,1001,635,6456,5990,60,43,221,6235,342,1246,1185,810,838,280,719,125,193,353,24,120,221,12664,156,146,1374,752,392,9044,613,1317,3811,1597,550,787,369,1990,120,750,88,61,662,446,7434,1628,880,5806,4983,1059,351,1076,593,10402,6851,6851,6581,3447,2675,419,432,1433,1384,49,391,380,11,772,220,7,170,37,6,552,89,273,169,21,6581,75,287,1826,183,922,188,89,191,409,1420,388,335,268,1453,947,1708,67,613,1793]
["Cornish","0004197","15060",1661,794,1661,0,1661,1617,4,14,4,0,6,16,1650,11,823,838,1661,1433,228,0,648,466,0,47,114,151,77,47,22,8,182,2,14,35,38,37,15,27,14,1315,230,832,16,84,57,153,76,1620,857,746,621,58,37,30,17,41,25,16,1582,1136,446,437,212,225,88,137,118,4,3,12,0,9,916,759,407,352,157,916,850,0,0,47,869,30,47,110,123,142,105,157,49,19,45,24,18,47,1622,16,27,205,123,47,1167,49,87,323,264,106,200,138,291,18,99,10,10,89,47,991,119,63,872,777,119,23,82,52,1291,966,966,941,466,402,46,67,216,206,10,73,72,1,64,28,0,25,3,0,36,0,20,15,1,941,30,61,161,18,114,31,14,31,56,296,52,38,39,372,121,210,15,97,126]
["Croydon","0004202","16340",685,282,661,0,685,676,0,4,0,3,0,2,685,0,352,333,684,604,80,1,262,200,0,42,46,53,39,15,5,0,62,2,10,11,11,9,10,7,2,571,140,332,8,20,16,71,37,670,419,249,212,10,11,16,2,15,11,4,653,458,195,195,126,69,23,46,21,0,13,12,0,0,369,357,231,126,12,369,347,0,0,16,353,14,35,40,46,57,37,47,4,14,20,11,28,16,668,2,4,67,50,15,492,21,47,246,76,37,42,23,92,7,51,9,7,42,21,438,75,35,363,311,36,18,36,19,561,384,384,377,200,162,21,37,81,78,3,23,23,0,38,24,4,12,8,0,14,0,8,6,0,377,5,52,94,10,41,19,4,13,10,78,12,23,16,66,47,98,1,78,87]
["Goshen","0004207","30500",755,323,741,0,755,752,0,0,0,0,0,3,755,0,366,389,747,668,79,8,295,233,4,25,63,50,40,27,22,2,62,2,3,9,14,9,20,5,0,614,119,413,2,28,23,52,34,737,456,278,237,14,23,4,3,18,16,2,710,458,252,252,145,107,18,89,65,0,20,4,0,0,391,377,280,97,14,391,378,0,0,13,378,3,16,78,78,31,26,52,8,17,38,20,11,13,726,6,7,86,38,28,539,34,91,225,66,43,63,17,103,6,53,5,2,48,32,433,67,49,366,301,73,23,48,17,607,413,413,402,233,195,31,55,85,82,3,24,24,0,38,10,2,4,4,0,28,0,25,0,3,402,5,33,115,11,43,4,2,15,34,80,31,17,12,139,54,53,4,39,113]
["Grantham","0004212","31220",2173,973,2167,0,2173,2133,2,0,9,0,11,18,2165,8,1068,1105,2173,1899,274,0,933,709,7,89,135,148,114,149,63,4,224,8,16,23,55,42,37,31,12,1817,239,1336,3,87,59,152,84,2083,720,1338,965,174,125,74,25,90,40,50,2064,940,1124,1095,303,792,281,511,285,54,109,63,0,29,1051,948,341,607,103,1051,937,13,10,82,969,29,50,59,118,254,175,110,22,31,40,19,62,82,2113,32,32,193,104,73,1672,16,39,291,343,127,491,365,276,14,74,5,5,69,37,1236,92,62,1144,903,326,34,152,48,1788,1091,1091,1077,709,656,153,127,322,306,16,54,49,5,53,17,3,4,8,2,36,2,22,10,2,1077,13,54,147,37,141,47,31,58,102,324,42,48,33,516,93,287,4,78,99]
["Langdon","0004218","40900",582,270,586,0,582,572,0,0,0,0,6,4,576,6,288,294,582,512,70,0,233,180,2,16,59,50,17,26,4,6,53,0,6,10,12,9,9,7,0,481,98,300,4,30,23,49,28,562,185,364,339,11,9,5,13,20,16,4,561,382,179,174,52,122,71,51,46,5,0,0,0,5,334,266,122,144,68,334,311,0,5,16,318,8,46,47,53,21,14,42,21,28,24,2,12,16,573,13,4,70,34,24,419,12,31,178,92,30,62,14,86,12,39,3,1,36,24,363,53,39,310,259,45,8,28,14,475,351,351,339,180,148,11,28,91,86,5,18,14,4,32,9,0,3,6,0,23,0,15,8,0,339,22,41,69,10,56,9,3,13,27,60,6,15,8,85,34,92,8,49,71]
["Lempster","0004223","41700",971,456,971,0,971,956,0,0,0,0,0,15,971,0,502,469,971,824,147,0,393,282,4,49,59,84,37,25,14,10,111,4,5,23,23,10,23,12,11,773,153,476,11,58,36,75,36,945,480,458,376,26,45,11,7,26,19,7,922,572,350,348,144,204,119,85,62,4,14,5,0,2,495,475,328,147,20,495,439,0,0,38,457,24,24,35,29,94,34,73,10,13,58,45,18,38,942,12,7,128,49,30,686,43,82,260,148,48,59,46,166,30,46,3,1,43,29,577,83,48,494,413,69,21,64,31,756,513,513,504,282,243,25,50,132,126,6,36,34,2,39,15,3,11,1,0,24,3,10,11,0,504,15,51,151,15,62,7,2,12,20,101,18,33,17,120,68,94,5,59,158]
["Newport","0004228","52580",6269,755,6269,3130,3139,6093,30,9,48,0,0,89,6240,29,3076,3193,6152,5151,1001,117,2460,1660,73,333,438,366,168,169,88,25,800,52,82,67,155,129,151,124,40,4877,996,2713,57,448,357,663,330,6102,4077,1998,1637,72,201,88,27,167,57,110,5859,3285,2574,2545,1773,772,322,450,269,63,83,35,0,29,2822,2717,2162,555,105,2822,2595,7,13,94,2728,108,600,494,335,319,131,305,92,57,138,76,73,94,5987,97,111,808,337,149,4166,286,632,1774,671,312,313,178,1092,186,324,87,19,237,142,3469,787,419,2682,2195,486,175,426,195,4767,3026,3021,2876,1660,1281,139,255,739,719,20,148,148,0,379,103,7,84,12,0,276,68,150,44,14,2876,28,144,984,65,408,66,31,96,101,462,187,205,99,660,400,634,0,269,913]
["Plainfield","0004254","62340",2241,1049,2241,0,2241,2183,11,5,12,5,5,20,2232,9,1135,1106,2241,2017,224,0,852,669,6,75,184,193,109,79,14,9,183,2,31,32,30,33,21,30,4,1771,330,1189,16,77,61,159,101,2170,1119,1038,804,83,96,55,13,71,39,32,2097,1428,669,657,190,467,202,265,189,20,29,27,0,12,1293,1138,370,768,155,1293,1153,4,16,81,1212,47,60,101,287,341,124,150,21,19,20,15,27,81,2158,27,25,246,141,65,1576,64,77,498,217,118,339,263,356,18,113,4,3,109,57,1391,145,101,1246,1103,147,37,88,32,1741,1329,1327,1306,669,581,47,92,350,334,16,92,89,3,88,29,0,12,11,6,59,4,37,14,4,1306,22,90,191,30,201,58,40,48,98,379,49,63,37,517,116,336,13,121,203]
["Springfield","0004260","72740",915,358,945,0,915,903,0,7,0,0,0,5,912,3,452,463,915,789,126,0,391,287,4,45,72,65,52,30,16,3,104,5,11,13,28,12,12,18,5,729,107,504,5,33,31,80,41,901,490,407,311,52,23,21,4,14,8,6,869,520,349,349,152,197,128,69,52,0,15,2,0,0,515,488,211,277,27,515,462,0,5,36,479,40,19,34,80,87,60,78,21,5,29,23,3,36,877,0,7,115,44,18,664,20,53,246,113,44,118,70,153,10,26,0,0,26,19,564,59,40,505,454,78,24,48,24,716,537,537,531,287,257,35,41,167,161,6,14,14,0,30,8,0,2,6,0,22,2,13,7,0,531,3,83,83,17,34,24,8,39,38,131,26,23,22,163,88,105,3,95,77]
["Sunapee","0004265","75060",3055,644,3055,38,3017,3000,9,0,9,0,0,37,3055,0,1525,1530,3055,2542,513,0,1292,878,38,88,242,180,110,138,69,13,414,29,38,34,107,83,78,36,9,2494,514,1501,48,147,124,284,161,2969,1438,1531,1247,145,93,46,0,86,53,33,2923,1735,1188,1174,564,610,304,306,193,33,72,8,0,14,1553,1456,840,616,97,1553,1421,0,5,100,1453,49,189,280,223,150,84,151,67,57,121,28,54,100,2971,3,48,363,190,59,2150,65,102,590,449,147,480,317,475,19,195,22,4,173,94,1727,181,109,1546,1337,329,45,197,49,2448,1613,1613,1594,878,734,108,160,385,375,10,81,81,0,144,15,0,13,0,2,129,11,58,52,8,1594,13,117,262,20,194,39,47,121,162,358,151,74,36,674,195,383,13,130,199]
["Unity","0004274","77940",1530,608,1530,0,1530,1522,0,2,0,0,0,6,1510,20,772,758,1301,1127,174,229,501,380,6,53,83,103,58,69,6,2,121,3,13,31,34,26,9,5,0,1279,240,790,7,104,90,138,66,1488,811,672,566,25,56,25,5,42,33,9,1452,894,558,547,345,202,28,174,107,2,52,13,0,11,680,626,507,119,54,680,655,0,3,12,668,30,31,59,127,130,54,91,8,27,65,28,18,12,1482,11,10,143,77,41,1135,93,150,497,180,66,102,47,193,8,58,7,3,51,34,825,164,95,661,547,115,52,32,12,1259,706,706,691,380,329,40,70,180,178,2,39,37,2,51,25,6,9,10,0,26,2,15,6,3,691,17,50,188,23,70,21,8,23,24,163,29,36,39,138,126,129,0,104,194]
["Washington","0004279","78980",881,415,895,0,881,871,0,6,0,0,0,4,852,29,462,419,881,755,126,0,352,258,4,24,49,60,51,55,13,2,94,0,24,6,22,11,20,11,0,705,106,504,7,29,21,59,26,865,354,501,413,22,40,26,10,16,12,4,845,427,418,416,84,332,181,151,99,13,19,20,0,2,405,372,116,256,33,405,358,0,4,33,372,16,16,34,34,48,29,39,20,9,66,38,23,33,856,5,12,117,34,24,647,13,56,215,171,54,82,56,152,10,38,4,0,34,19,515,71,27,444,347,103,17,37,12,693,432,432,418,258,240,49,40,129,124,5,22,21,1,18,4,1,3,0,0,14,3,10,1,0,418,21,47,88,24,59,11,4,14,19,64,27,27,13,154,40,82,3,73,66]
[]
[]
[]
[]
[]
[]
[]
[]
[]
[]
[]
[]
[]
[]
[]
[]
[]
[]
[]
[]
[]
[]
[]
[]
[]
[]
[]
[]
[]
[]
[]
[]
["Census 2000 SummaryFile3 Sample Data  -  SF3TownQry2aIncomeChar"]
[]
["TOWN_NAME","LOGRECNO","COUSUB","TotalPop","P52Households1","P52HHInc<10K","P52HHInc10to15K","P52HHInc15to20K","P52HHInc20to25K","P52HHInc25to30K","P52HHInc30to35K","P52HHInc35to40K","P52HHInc40to45K","P52HHInc45to50K","P52HHInc50to60K","P52HHInc60to75K","P52HHInc75to100K","P52HHInc100to125K","P52HHInc125to150K","P52HHInc150to200K","P52HHInc>200K","P53MedianHHInc","P54AggregHHInc","P55Households2","P55HHUnder25yrs","P55HH<25HHInc<10K","P55HH<25HHInc10to15K","P55HH<25HHInc15to20K","P55HH<25HHInc20to25K","P55HH<25HHInc25to30K","P55HH<25HHInc30to35K","P55HH<25HHInc35to40K","P55HH<25HHInc40to45K","P55HH<25HHInc45to50K","P55HH<25HHInc50to60K","P55HH<25HHInc60to75K","P55HH<25HHInc75to100K","P55HH<25HHInc100to125K","P55HH<25HHInc125to150K","P55HH<25HHInc150to200K","P55HH<25HHInc>200K","P55HH25to34yrs","P55HH25to34HHInc<10K","P55HH25to34HHInc10to15K","P55HH25to34HHInc15to20K","P55HH25to34HHInc20to25K","P55HH25to34HHInc25to30K","P55HH25to34HHInc30to35K","P55HH25to34HHInc35to40K","P55HH25to34HHInc40to45K","P55HH25to34HHInc45to50K","P55HH25to34HHInc50to60K","P55HH25to34HHInc60to75K","P55HH25to34HHInc75to100K","P55HH25to34HHInc100to125K","P55HH25to34HHInc125to150K","P55HH25to34HHInc150to200K","P55HH25to34HHInc>200K","P55HH35to44yrs","P55HH35to44HHInc<10K","P55HH35to44HHInc10to15K","P55HH35to44HHInc15to20K","P55HH35to44HHInc20to25K","P55HH35to44HHInc25to30K","P55HH35to44HHInc30to35K","P55HH35to44HHInc35to40K","P55HH35to44HHInc40to45K","P55HH35to44HHInc45to50K","P55HH35to44HHInc50to60K","P55HH35to44HHInc60to75K","P55HH35to44HHInc75to100K","P55HH35to44HHInc100to125K","P55HH35to44HHInc125to150K","P55HH35to44HHInc150to200K","P55HH35to44HHInc>200K","P55HH45to54yrs","P55HH45to55HHInc<10K","P55HH45to55HHInc10to15K","P55HH45to55HHInc15to20K","P55HH45to55HHInc20to25K","P55HH45to55HHInc25to30K","P55HH45to55HHInc30to35K","P55HH45to55HHInc35to40K","P55HH45to55HHInc40to45K","P55HH45to55HHInc45to50K","P55HH45to55HHInc50to60K","P55HH45to55HHInc60to75K","P55HH45to55HHInc75to100K","P55HH45to55HHInc100to125K","P55HH45to55HHInc125to150K","P55HH45to55HHInc150to200K","P55HH45to55HHInc>200K","P55HH55to64yrs","P55HH55to64HHInc<10K","P55HH55to64HHInc10to15K","P55HH55to64HHInc15to20K","P55HH55to64HHInc20to25K","P55HH55to64HHInc25to30K","P55HH55to64HHInc30to35K","P55HH55to64HHInc35to40K","P55HH55to64HHInc40to45K","P55HH55to64HHInc45to50K","P55HH55to64HHInc50to60K","P55HH55to64HHInc60to75K","P55HH55to64HHInc75to100K","P55HH55to64HHInc100to125K","P55HH55to64HHInc125to150K","P55HH55to64HHInc150to200K","P55HH55to64HHInc>200K","P55HH65to74yrs","P55HH65to74HHInc<10K","P55HH65to74HHInc10to15K","P55HH65to74HHInc15to20K","P55HH65to74HHInc20to25K","P55HH65to74HHInc25to30K","P55HH65to74HHInc30to35K","P55HH65to74HHInc35to40K","P55HH65to74HHInc40to45K","P55HH65to74HHInc45to50K","P55HH65to74HHInc50to60K","P55HH65to74HHInc60to75K","P55HH65to74HHInc75to100K","P55HH65to74HHInc100to125K","P55HH65to74HHInc125to150K","P55HH65to74HHInc150to200K","P55HH65to74HHInc>200K","P55HH>75yrs","P55HH>75HHInc<10K","P55HH>75HHInc10to15K","P55HH>75HHInc15to20K","P55HH>75HHInc20to25K","P55HH>75HHInc25to30K","P55HH>75HHInc30to35K","P55HH>75HHInc35to40K","P55HH>75HHInc40to45K","P55HH>75HHInc45to50K","P55HH>75HHInc50to60K","P55HH>75HHInc60to75K","P55HH>75HHInc75to100K","P55HH>75HHInc100to125K","P55HH>75HHInc125to150K","P55HH>75HHInc150to200K","P55HH>75HHInc>200K","P56MedHHInc","P56MedHHIncHH<25y","P56MedHHIncHH25to34y","P56MedHHIncHH35to44y","P56MedHHIncHH45to54y","P56MedHHIncHH55to64y","P56MedHHIncHH65to74y","P56MedHHIncHH>75y","P58Households3","P58HHwithEarnings","P58HHNoEarnings","P59HHwWageSalInc","P59HHNoWageSalInc","P60HHwSelfEmpInc","P60HHNoSelfEmpInc","P61HHwIndDivInc","P61HHNoIndDivInc","P62HHwSocSecInc","P62HHNoSocSecInc","P63HHwSSI","P63HHNoSSI","P64HHwPubAssInc","P64HHNoPubAssInc","P65HHwRetInc","P65HHNoRetInc","P66HHwOtherTypInc","P66HHNoOtherTypInc","P67AggregEarnings","P68AggregWageSalInc","P69AggregSelfEmpInc","P70AggregIntDivInc","P71AggregSocSecInc","P72AggregSSIInc","P73AggregPublicAssInc","P74AggregRetireInc","P76Families1","P76FamInc<10K","P76FamInc10to15K","P76FamInc15to20K","P76FamInc20to25K","P76FamInc25to30K","P76FamInc30to35K","P76FamInc35to40K","P76FamInc40to45K","P76FamInc45to50K","P76FamInc50to60K","P76FamInc60to75K","P76FamInc75to100K","P76FamInc100to125K","P76FamInc125to150K","P76FamInc150to200K","P76FamInc>200K","P77MedFamInc","P78AggregFamInc","P79NonFamHH","P79NonFamHHwInc<10K","P79NonFamHHwInc10to15K","P79NonFamHHwInc15to20K","P79NonFamHHwInc20to25K","P79NonFamHHwInc25to30K","P79NonFamHHwInc30to35K","P79NonFamHHwInc35to40K","P79NonFamHHwInc40to45K","P79NonFamHHwInc45to50K","P79NonFamHHwInc50to60K","P79NonFamHHwInc60to75K","P79NonFamHHwInc75to100K","P79NonFamHHwInc100to125K","P79NonFamHHwInc125to150K","P79NonFamHHwInc150to200K","P79NonFamHHwInc200KorMore","P80MedNonFamInc","P82PerCapitaInc"]
["Acworth","0004141","00260",836,325,25,12,38,17,36,24,19,29,22,30,30,26,4,7,2,4,37386,14932900,325,2,0,0,0,0,2,0,0,0,0,0,0,0,0,0,0,0,26,0,0,0,0,5,3,3,4,2,4,5,0,0,0,0,0,62,9,0,5,4,3,2,4,2,3,8,9,9,0,2,0,2,81,3,3,2,4,10,9,4,11,8,9,6,8,2,0,0,2,72,6,4,12,2,4,6,2,10,4,2,9,5,2,4,0,0,53,4,5,8,6,9,0,6,2,2,6,0,2,0,1,2,0,29,3,0,11,1,3,4,0,0,3,1,1,2,0,0,0,0,37386,26250,42500,46667,41528,38750,27188,23750,325,262,63,229,96,94,231,154,171,101,224,10,315,5,320,63,262,36,289,10630300,8885300,1745100,1892700,1170100,47000,11100,965300,237,12,6,30,9,21,14,17,30,11,24,22,26,4,7,0,4,41397,11973900,88,15,6,10,8,13,10,5,2,11,6,0,0,0,0,2,0,27083,18132]
["Charlestown","0004146","11380",4749,1911,126,84,174,132,171,167,160,110,141,254,153,161,48,6,0,24,38024,88361900,1911,98,0,0,19,9,36,0,9,0,0,25,0,0,0,0,0,0,253,0,13,23,16,10,26,25,9,30,23,48,21,0,0,0,9,388,0,13,31,44,14,38,58,31,11,70,29,37,12,0,0,0,416,16,7,12,10,35,49,24,33,42,32,63,59,23,6,0,5,351,29,15,21,21,41,32,17,22,46,49,13,38,7,0,0,0,210,27,18,32,25,26,13,14,15,0,30,0,0,0,0,0,10,195,54,18,36,7,9,9,13,0,12,25,0,6,6,0,0,0,38024,27188,45750,39600,47200,39861,25625,18542,1911,1533,378,1454,457,246,1665,763,1148,541,1370,68,1843,55,1856,340,1571,275,1636,65960200,61102800,4857400,4904000,6222900,575400,713200,8268000,1333,19,55,88,83,123,100,115,80,117,228,142,130,42,6,0,5,45172,63607200,578,120,35,91,66,66,37,48,21,19,24,17,18,6,0,0,10,23663,18654]
["Claremont","0004169","12900",13151,5679,620,401,523,458,407,434,432,306,305,611,528,389,117,39,17,92,34949,263265000,5679,306,40,49,33,63,37,18,26,7,0,16,6,11,0,0,0,0,750,78,41,64,50,32,50,65,41,126,103,64,31,0,5,0,0,1207,79,62,75,58,55,110,87,88,55,194,204,90,18,0,0,32,1111,65,45,74,48,52,115,87,88,63,159,141,99,55,5,10,5,819,61,51,72,43,53,75,63,46,34,73,60,122,35,7,7,17,660,97,66,102,89,82,31,62,14,9,40,14,18,9,14,0,13,826,200,87,103,107,96,35,42,22,18,26,39,18,0,8,0,25,34949,21987,39342,44375,43899,39241,22857,20913,5679,4158,1521,4050,1629,649,5030,1899,3780,1919,3760,278,5401,433,5246,1167,4512,679,5000,188611400,173458900,15152500,16765700,21687100,1910500,970800,28362000,3447,98,185,233,250,253,241,297,262,187,442,452,351,116,7,17,56,42849,193128600,2232,528,251,296,198,190,220,85,69,99,121,77,34,11,17,0,36,21192,20267]
["Cornish","0004197","15060",1661,648,30,34,40,30,29,28,22,35,39,86,102,80,43,23,19,8,53393,39187700,648,2,0,0,2,0,0,0,0,0,0,0,0,0,0,0,0,0,61,0,0,2,4,7,4,0,7,6,19,4,4,2,0,0,2,149,2,4,6,4,12,12,5,2,11,24,39,12,10,4,2,0,189,2,7,4,3,3,8,4,12,10,20,29,46,19,12,6,4,114,5,8,10,6,3,2,13,10,1,5,20,12,10,7,2,0,62,4,3,4,13,4,2,0,0,2,14,4,6,2,0,2,2,71,17,12,12,0,0,0,0,4,9,4,6,0,0,0,7,0,53393,18750,50179,55781,72250,45000,48750,18036,648,550,98,505,143,163,485,284,364,175,473,16,632,6,642,123,525,77,571,31207700,25947500,5260200,3945900,1996100,190400,5100,1361600,466,8,7,14,22,21,24,17,22,32,64,78,78,34,18,19,8,60313,32168400,182,24,30,26,12,9,4,9,14,5,16,27,4,0,2,0,0,24643,23165]
["Croydon","0004202","16340",661,262,8,11,8,14,17,32,15,15,12,44,27,35,16,1,5,2,49688,14559600,262,2,0,0,0,0,0,0,0,0,0,2,0,0,0,0,0,0,52,0,0,0,4,8,22,3,0,0,9,0,0,5,1,0,0,57,0,3,0,7,1,3,1,8,5,7,1,14,3,0,2,2,64,0,0,0,1,0,2,4,5,4,16,14,13,5,0,0,0,48,2,2,4,0,5,3,2,2,0,8,9,8,0,0,3,0,25,2,1,4,2,3,2,3,0,3,2,0,0,3,0,0,0,14,4,5,0,0,0,0,2,0,0,0,3,0,0,0,0,0,49688,51250,32333,51250,60000,55500,30625,13333,262,214,48,198,64,44,218,110,152,68,194,21,241,9,253,46,216,39,223,11235300,9606600,1628700,1253600,808900,139000,35800,748000,200,3,1,8,7,17,20,17,13,12,32,23,29,12,1,5,0,50556,11273300,62,8,10,3,4,1,13,2,0,0,8,5,3,3,0,0,2,30962,21403]
["Goshen","0004207","30500",741,295,17,16,26,12,23,15,25,23,16,41,31,22,18,0,2,8,42625,15679100,295,6,0,2,0,0,0,0,0,2,2,0,0,0,0,0,0,0,28,0,3,3,3,0,3,2,2,0,2,7,3,0,0,0,0,72,2,0,6,3,4,0,3,3,10,22,6,9,4,0,0,0,64,3,0,3,0,9,2,8,12,2,4,9,4,6,0,2,0,49,0,2,4,0,7,5,4,2,0,13,6,3,0,0,0,3,47,6,6,8,4,2,2,2,2,2,0,3,0,5,0,0,5,29,6,3,2,2,1,3,6,0,0,0,0,3,3,0,0,0,42625,41250,41250,52500,42188,50417,24375,30417,295,240,55,213,82,63,232,118,177,101,194,14,281,5,290,39,256,43,252,11633600,9508100,2125500,745100,1153800,65000,17100,1778300,233,11,7,16,7,22,11,28,14,11,36,23,22,15,0,2,8,45208,13471000,62,6,9,10,5,5,4,0,7,5,0,8,0,3,0,0,0,25500,20561]
["Grantham","0004212","31220",2167,933,36,12,14,38,42,26,48,59,40,113,146,163,84,45,35,32,63239,70319700,933,15,3,0,0,3,4,0,0,0,0,3,2,0,0,0,0,0,105,0,0,0,0,2,0,9,10,6,9,26,22,5,7,7,2,158,5,3,5,8,2,3,6,4,9,31,21,40,12,0,6,3,203,5,0,3,5,8,4,8,8,7,25,41,33,24,16,9,7,156,5,0,0,5,7,8,9,11,9,16,23,24,16,8,5,10,186,13,5,6,7,16,11,10,4,7,22,16,33,16,6,6,8,110,5,4,0,10,3,0,6,22,2,7,17,11,11,8,2,2,63239,25938,72031,60833,67159,67000,55000,52500,933,695,238,659,274,169,764,586,347,327,606,8,925,4,929,246,687,120,813,46919500,40081600,6837900,9066700,4370300,48700,5900,8358900,709,7,12,9,17,22,22,31,42,30,96,115,148,70,35,29,24,69271,56337300,224,29,3,5,24,20,4,14,17,12,16,31,13,12,10,6,8,44000,32174]
["Langdon","0004218","40900",586,233,9,7,21,5,22,17,28,16,16,22,25,20,5,3,7,10,42083,14338700,233,2,0,0,2,0,0,0,0,0,0,0,0,0,0,0,0,0,22,0,0,0,1,0,3,2,3,0,6,2,2,3,0,0,0,69,0,2,7,2,4,2,4,9,6,2,15,8,0,0,5,3,62,0,3,6,1,7,3,10,4,4,5,6,6,0,3,2,2,26,1,0,2,0,2,3,8,0,0,6,2,0,0,0,0,2,35,4,0,2,1,7,4,2,0,6,3,0,2,2,0,0,2,17,4,2,2,0,2,2,2,0,0,0,0,2,0,0,0,1,42083,16250,51667,49063,41250,37500,32188,26250,233,209,24,202,31,39,194,104,129,58,175,9,224,4,229,33,200,29,204,11329800,10742000,587800,1484200,722000,95000,28800,377500,180,3,3,9,8,21,16,22,11,16,14,25,19,0,3,7,3,43125,10663500,53,6,4,12,2,2,3,3,2,0,8,0,1,5,0,0,5,30417,24572]
["Lempster","0004223","41700",971,393,21,18,25,19,49,29,30,45,34,46,42,17,4,4,6,4,40458,18841000,393,8,0,3,0,0,0,1,0,0,4,0,0,0,0,0,0,0,54,2,0,0,5,10,6,4,7,0,9,8,3,0,0,0,0,82,7,0,4,0,8,11,12,10,11,14,3,0,2,0,0,0,107,3,0,3,2,8,7,6,19,10,13,18,9,0,4,3,2,47,0,3,2,4,3,2,3,4,5,6,7,4,2,0,2,0,48,4,3,10,5,4,0,2,2,4,4,6,1,0,0,1,2,47,5,9,6,3,16,2,3,3,0,0,0,0,0,0,0,0,40458,41250,40000,39167,48393,47917,26667,25125,393,322,71,296,97,74,319,132,261,115,278,15,378,9,384,74,319,42,351,13933400,12236900,1696600,1976800,1453200,145500,30500,694600,282,5,1,16,10,35,13,27,32,32,46,35,14,4,2,6,4,45385,15445500,111,16,18,14,9,14,13,3,12,2,3,4,1,0,2,0,0,24375,19172]
["Newport","0004228","52580",6269,2460,279,188,112,184,181,159,246,151,154,241,276,173,74,26,9,7,37442,105517400,2460,125,22,9,0,9,9,39,16,13,0,0,8,0,0,0,0,0,415,38,37,13,31,41,31,44,72,14,48,20,26,0,0,0,0,505,29,24,20,39,16,34,27,33,56,77,89,45,7,9,0,0,521,44,10,33,19,24,13,58,17,40,30,102,74,38,10,9,0,297,35,8,0,8,49,15,42,11,29,29,28,15,21,7,0,0,320,54,39,14,49,24,19,32,5,7,28,29,13,0,0,0,7,277,57,61,32,29,18,8,27,0,8,29,0,0,8,0,0,0,37442,31350,38090,47875,51042,37639,26429,19102,2460,1930,530,1835,625,347,2113,867,1593,718,1742,159,2301,185,2275,510,1950,293,2167,84725200,78717200,6008100,4624000,7711600,1036000,579900,5159400,1660,115,113,78,75,95,122,134,85,119,229,224,165,64,26,9,7,45508,82292800,800,173,92,50,110,67,37,125,49,43,0,46,8,0,0,0,0,23798,16964]
["Plainfield","0004254","62340",2241,852,24,21,39,46,37,37,65,53,50,83,137,123,55,14,40,28,57083,58989600,852,8,0,0,2,2,0,0,0,0,0,0,4,0,0,0,0,0,106,2,0,0,7,2,6,11,7,9,13,28,11,5,0,5,0,216,3,3,0,4,16,10,7,18,15,34,30,41,10,4,11,10,223,0,8,6,7,3,2,20,17,12,20,38,37,28,4,13,8,142,8,3,11,9,9,2,13,4,9,6,25,25,4,4,0,10,100,7,2,11,6,7,6,9,7,5,5,12,9,6,0,8,0,57,4,5,9,11,0,11,5,0,0,5,0,0,2,2,3,0,57083,42500,58333,59375,65313,55625,40714,24821,852,750,102,717,135,207,645,427,425,183,669,13,839,14,838,136,716,109,743,47687600,43847200,3840300,6263600,2318700,68400,49300,1795800,669,8,10,12,33,22,27,48,39,50,72,128,99,45,14,34,28,61205,50663000,183,16,13,29,13,17,10,15,14,2,9,12,20,7,0,6,0,31458,26062]
["Springfield","0004260","72740",945,391,18,19,10,13,38,34,37,28,21,19,66,55,12,9,8,4,44659,21517100,391,9,0,0,0,0,2,2,0,0,3,0,0,0,2,0,0,0,56,0,0,0,0,1,15,8,0,7,3,12,10,0,0,0,0,85,0,5,0,4,18,2,4,9,5,10,13,9,4,0,2,0,93,6,0,0,2,6,8,17,12,3,3,9,15,3,9,0,0,64,0,3,4,0,3,2,7,2,0,3,17,14,0,0,6,3,42,1,3,0,7,3,0,1,5,3,0,11,4,3,0,0,1,42,11,8,6,0,5,5,0,0,0,0,4,3,0,0,0,0,44659,45417,48929,45250,43125,63333,48333,18333,391,325,66,300,91,111,280,190,201,100,291,5,386,8,383,71,320,53,338,16621300,13481200,3140000,2273900,1118300,21500,33900,1118500,287,2,14,5,6,26,23,19,20,15,22,65,41,9,9,8,3,58068,16939100,104,16,5,7,7,12,11,16,8,6,0,0,12,3,0,0,1,32857,23263]
["Sunapee","0004265","75060",3055,1292,43,44,77,67,45,82,93,107,103,156,147,138,76,39,33,42,49353,88835900,1292,67,20,6,12,3,8,4,4,4,0,6,0,0,0,0,0,0,126,0,3,7,7,0,8,6,20,17,19,14,21,4,0,0,0,276,0,0,16,4,23,18,14,45,23,24,34,41,21,4,9,0,287,9,6,17,11,5,17,20,23,21,41,29,31,28,9,9,11,193,0,0,6,9,0,0,26,8,20,44,19,29,0,7,9,16,216,10,24,3,15,9,22,23,4,22,4,23,16,11,15,0,15,127,4,5,16,18,0,13,0,3,0,18,28,0,12,4,6,0,49353,16563,49265,47917,54583,54417,43750,55089,1292,1064,228,988,304,248,1044,688,604,409,883,5,1287,17,1275,290,1002,137,1155,63441300,58524900,4916400,9379600,5334400,160000,26100,9700300,878,31,2,43,36,31,41,56,61,72,96,131,106,66,45,19,42,55909,70771100,414,31,42,30,35,15,35,33,47,27,56,16,29,10,0,8,0,38056,29184]
["Unity","0004274","77940",1530,501,24,29,24,45,20,33,50,47,29,58,69,41,20,3,7,2,41594,24531600,501,9,0,0,5,0,0,3,0,0,0,1,0,0,0,0,0,0,66,3,0,3,8,4,2,7,4,14,9,12,0,0,0,0,0,114,3,6,2,11,5,4,8,8,4,21,22,13,5,0,0,2,137,7,3,4,2,5,10,20,22,5,13,20,17,6,3,0,0,84,9,4,2,11,4,2,5,4,0,12,10,9,9,0,3,0,78,2,13,8,11,2,10,10,6,3,2,5,2,0,0,4,0,13,0,3,0,2,0,2,0,3,3,0,0,0,0,0,0,0,41594,19375,45556,51500,41989,50313,33250,31875,501,432,69,414,87,99,402,237,264,142,359,13,488,7,494,93,408,66,435,20312100,19164800,1147300,1040000,1793000,63700,30000,851900,380,16,18,15,23,21,21,33,34,21,51,60,38,20,3,4,2,47045,20111000,121,12,11,9,22,4,12,15,13,8,3,6,3,0,0,3,0,30893,17908]
["Washington","0004279","78980",895,352,13,10,36,17,41,18,23,21,20,58,37,33,15,0,4,6,43125,17553000,352,4,0,0,0,0,3,0,0,0,0,1,0,0,0,0,0,0,48,0,0,3,3,3,3,4,3,2,8,12,5,0,0,2,0,55,1,0,3,2,12,0,3,6,2,14,2,5,5,0,0,0,82,2,2,7,0,8,11,5,6,4,9,11,11,2,0,2,2,62,2,2,7,0,3,0,6,2,7,10,6,7,8,0,0,2,75,6,3,11,7,10,4,2,4,5,12,4,5,0,0,0,2,26,2,3,5,5,2,0,3,0,0,4,2,0,0,0,0,0,43125,29167,51250,48125,45000,51250,30313,24000,352,270,82,247,105,66,286,137,215,127,225,19,333,5,347,89,263,56,296,12477500,10923300,1554100,978300,1556100,139100,6400,1729600,258,5,3,11,10,33,11,18,18,20,48,29,27,15,0,4,6,50000,14578000,94,10,8,25,7,5,7,7,3,0,8,10,4,0,0,0,0,21667,20540]
[]
[]
[]
[]
[]
[]
[]
[]
[]
[]
[]
[]
[]
[]
[]
[]
[]
[]
[]
[]
[]
[]
[]
[]
[]
[]
[]
[]
[]
[]
[]
[]
["Census 2000 SummaryFile3 Sample Data  -  SF3TownQry2bPovertyChar"]
[]
["TOWN_NAME","LOGRECNO","COUSUB","TotalPop","P52Households1","P82PerCapitaInc","P87PopForPovStatus","P87PopWIncBelowPovStatus","P87PopUnder5yrBelowPoverty","P87Pop5yrBelowPoverty","P87Pop5to11yrBelowPoverty","P87Pop12to17yrBelowPoverty","P87Pop18to64yrBelowPoverty","P87Pop65to74yrBelowPoverty","P87PopOver75yrBelowPoverty","P87PopWIncAbovePovStatus","P87PopUnder5yrAbovePoverty","P87Pop5yrAbovePoverty","P87Pop5to11yrAbovePoverty","P87Pop12to17yrAbovePoverty","P87Pop18to64yrAbovePoverty","P87Pop65to74yrAbovePoverty","P87PopOver75yrAbovePoverty","P90Families","P90FamWIncBelowPov","P90MarCupFamWIncBelowPov","P90MCFamWRltdChld<18WIncBelowPov","P90MCFamWRltdChld<5WIncBelowPov","P90MaleHhlrWIncBelowPov","P90MaleHhlrWRltdChld<18yrWIncBelowPov","P90MaleHhlrWRltdChld<5yrWIncBelowPov","P90FemaleHhlrWIncBelowPov","P90FemaleHhlrWRltdChld<18yWIncBelowPov","P90FemaleHhlrWRltdChld<5yWIncBelowPov","P90FamWIncAbovePov","P90MarCupFamWIncAbovePov","P90MCFamWRltdChld<18WIncAbovePov","P90MCFamWRltdChld<5WIncAbovePov","P90MaleHhlrWIncAbovePov","P90MaleHhlrWRltdChld<18yrWIncAbovePov","P90MaleHhlrWRltdChld<5yrWIncAbovePov","P90FemaleHhlrWIncAbovePov","P90FemaleHhlrWRltdChld<18yWIncAbovePov","P90FemaleHhlrWRltdChld<5yWIncAbovePov","P92Households","P92HHwIncBelowPov","P92FamHHwIncBelowPov","P92MCFamHHwIncBelowPov","P92MaleFamHHwIncBelowPov","P92FemaleFamHHwIncBelowPov","P92NonFamHHwIncBelowPov","P92NonFamMaleHHwIncBelowPov","P92NonFamFemaleHHwIncBelowPov","P92HHwIncAbovePov","P92FamHHwIncAbovePov","P92MCFamHHwIncAbovePov","P92MaleFamHHwIncAbovePov","P92FemaleFamHHwIncAbovePov","P92NonFamHHwIncAbovePov","P92NonFamMaleHHwIncAbovePov","P92NonFamFemaleHHwIncAbovePov"]
["Acworth","0004141","00260",836,325,18132,838,131,10,0,20,26,68,7,0,707,29,9,53,61,432,76,47,237,24,15,9,0,2,2,0,7,7,2,213,182,76,10,14,6,2,17,6,0,325,34,24,15,2,7,10,4,6,291,213,182,14,17,78,47,31]
["Charlestown","0004146","11380",4749,1911,18654,4674,306,11,0,39,14,175,33,34,4368,245,53,338,418,2728,318,268,1333,46,21,11,0,5,5,0,20,20,8,1287,1067,420,123,95,77,0,125,100,6,1911,117,46,21,5,20,71,35,36,1794,1287,1067,95,125,507,223,284]
["Claremont","0004169","12900",13151,5679,20267,12990,1305,87,18,110,76,773,111,130,11685,650,110,945,992,7094,948,946,3447,187,81,46,4,5,5,0,101,93,13,3260,2594,1073,274,215,173,21,451,222,34,5679,678,187,81,5,101,491,199,292,5001,3260,2594,215,451,1741,855,886]
["Cornish","0004197","15060",1661,648,23165,1652,74,10,2,8,10,33,4,7,1578,66,20,133,174,995,115,75,466,13,8,4,0,0,0,0,5,5,5,453,394,158,18,28,24,2,31,17,3,648,31,13,8,0,5,18,6,12,617,453,394,28,31,164,80,84]
["Croydon","0004202","16340",661,262,21403,667,33,0,0,2,8,16,0,7,634,27,8,32,67,435,36,29,200,5,2,2,0,0,0,0,3,3,0,195,160,49,11,24,16,8,11,9,0,262,9,5,2,0,3,4,4,0,253,195,160,24,11,58,26,32]
["Goshen","0004207","30500",741,295,20561,753,66,4,0,7,7,22,10,16,687,39,3,58,48,444,63,32,233,16,12,3,0,2,2,0,2,2,0,217,183,69,14,8,6,4,26,19,2,295,22,16,12,2,2,6,3,3,273,217,183,8,26,56,24,32]
["Grantham","0004212","31220",2167,933,32174,2173,54,8,0,0,0,28,13,5,2119,101,30,164,132,1232,313,147,709,10,3,3,3,2,0,0,5,5,5,699,653,204,42,15,5,0,31,21,0,933,39,10,3,2,5,29,5,24,894,699,653,15,31,195,93,102]
["Langdon","0004218","40900",586,233,24572,579,22,0,0,0,0,13,4,5,557,21,2,59,43,368,41,23,180,6,3,0,0,0,0,0,3,0,0,174,145,63,9,9,7,0,20,7,0,233,10,6,3,0,3,4,0,4,223,174,145,9,20,49,28,21]
["Lempster","0004223","41700",971,393,19172,964,70,6,0,6,12,39,2,5,894,42,12,80,73,561,67,59,282,9,4,4,0,2,2,2,3,3,0,273,239,106,19,13,3,1,21,13,1,393,26,9,4,2,3,17,10,7,367,273,239,13,21,94,55,39]
["Newport","0004228","52580",6269,2460,16964,6172,890,100,33,117,123,426,13,78,5282,294,101,497,346,3223,473,348,1660,180,65,50,9,16,16,0,99,82,22,1480,1216,546,86,87,60,19,177,118,17,2460,331,180,65,16,99,151,25,126,2129,1480,1216,87,177,649,350,299]
["Plainfield","0004254","62340",2241,852,26062,2236,63,3,2,2,4,41,7,4,2173,141,30,186,188,1404,140,84,669,12,6,0,0,0,0,0,6,4,0,657,575,275,62,29,18,2,53,44,2,852,25,12,6,0,6,13,7,6,827,657,575,29,53,170,88,82]
["Springfield","0004260","72740",945,391,23263,915,47,0,0,5,0,32,1,9,868,46,5,87,67,547,77,39,287,10,10,2,0,0,0,0,0,0,0,277,247,91,21,8,8,6,22,19,6,391,25,10,10,0,0,15,5,10,366,277,247,8,22,89,46,43]
["Sunapee","0004265","75060",3055,1292,29184,3044,158,23,3,2,26,82,18,4,2886,108,30,257,239,1748,311,193,878,33,7,0,0,4,4,0,22,22,10,845,727,275,44,11,6,0,107,74,27,1292,60,33,7,4,22,27,4,23,1232,845,727,11,107,387,182,205]
["Unity","0004274","77940",1530,501,17908,1286,104,18,2,6,19,57,2,0,1182,52,14,82,99,790,113,32,380,26,9,7,2,9,9,3,8,6,4,354,320,125,19,16,5,3,18,10,0,501,42,26,9,9,8,16,4,12,459,354,320,16,18,105,67,38]
["Washington","0004279","78980",895,352,20540,873,44,7,2,4,5,18,6,2,829,27,8,79,68,515,97,35,258,8,4,2,0,2,2,1,2,2,2,250,236,83,6,2,2,0,12,9,0,352,20,8,4,2,2,12,8,4,332,250,236,2,12,82,56,26]
[]
[]
[]
[]
[]
[]
[]
[]
[]
[]
[]
[]
[]
[]
[]
[]
[]
[]
[]
[]
[]
[]
[]
[]
[]
[]
[]
[]
[]
[]
[]
[]
["Census 2000 SummaryFile3 Sample Data  -  SF3TownQry7HousingA"]
[]
["TOWN_NAME","LOGRECNO","COUSUB","TotalPop","H1HousingUnitsTotal","H2SampleHU","H2SampleOccHU","H2SampleVacHU","H3HU100pctCount","H5HUTotal","H5HUUrban","H5HUUrbanInUrbanAreas","H5HUUrbanInUrbanClusters","H5HURural","H5HURuralFarm","H5HURuralNonFarm","H7HUOcc","H7HUOwnrOcc","H7HURentrOcc","H8HUVacant","H8HUVacantForRent","H8HUVacantForSale","H8HUVacRentedorSold","H8HUVacSeasonal","H8HUVacForMigrantWrkrs","H8HUOtherVacant","H14OccHUa","H14OwnerOccHU","H14OwnOccHuHh15to24","H14OwnOccHuHh25to34","H14OwnOccHuHh35to44","H14OwnOccHuHh45to54","H14OwnOccHuHh55to59","H14OwnOccHuHh60to64","H14OwnOccHuHh65to74","H14OwnOccHuHh75to84","H14OwnOccHuHh85Over","H14RenterOccHU1","H14RntrOccHuHh15to24","H14RntrOccHuHh25to34","H14RntrOccHuHh35to44","H14RntrOccHuHh45to54","H14RntrOccHuHh55to59","H14RntrOccHuHh60to64","H14RntrOccHuHh65to74","H14RntrOccHuHh75to84","H14RntrOccHuHh85Over","H15PopInOccHU","H15PopInOwnOccHU1","H15PopInRentOccHU1","H17OccupHUb","H17OwnOccHU2","H17OwnOccHU1PersonHH","H17OwnOccHU2PersonHH","H17OwnOccHU3PersonHH","H17OwnOccHU4PersonHH","H17OwnOccHU5PersonHH","H17OwnOccHU6PersonHH","H17OwnOccHU7PlusPersonHH","H17RentOccHU2","H17RntOccHU1PersonHH","H17RntOccHU2PersonHH","H17RntOccHU3PersonHH","H17RntOccHU4PersonHH","H17RntOccHU5PersonHH","H17RntOccHU6PersonHH","H17RntOccHU7PlusPersonHH","H18AvgHHSize","H18AvgHHSizeOwnOcc","H18AvgHHSizeRentOcc","H23TotHU","H23HU1Room","H23HU2Room","H23HU3Room","H23HU4Room","H23HU5Room","H23HU6Room","H23HU7Room","H23HU8Room","H23HU9orMoreRoom","H24MedianNumRooms","H25AggregNumRooms","H30TotalHU","H30Det1HU","H30Att1HU","H30Units2","H30Units3or4","H30Units5to9","H30Units10to19","H30Units20to49","H30Units50orMore","H30UnitsMobileHome","H30UnitsBoatRv","H32OccHUcTotal","H32OwnerOccHU3","H32OwnOccHU1Det","H32OwnOccHU1Att","H32OwnOccHU2Unit","H32OwnOccHU3to4Unit","H32OwnOccHU5to9Unit","H32OwnOccHU10to19Unit","H32OwnOccHU20to49Unit","H32OwnOccHU50plusUnit","H32OwnOccHUMobHom","H32OwnOccHUBoatRVOth","H32RentrOccHU3","H32RntrOccHU1Det","H32RntrOccHU1Att","H32RntrOccHU2Unit","H32RntrOccHU3to4Unit","H32RntrOccHU5to9Unit","H32RntrOccHU10to19Unit","H32RntrOccHU20to49Unit","H32RntrOccHU50PlusUnit","H32RntrOccHUMobHom","H32RntrOccHUBoatRVOth","H33TotPopInOccHU","H33PopInOwnOccHU2","H33PopInOOHU1Det","H33PopInOOHU1Att","H33PopInOOHU2unit","H33PopInOOHU3to4Unit","H33PopInOOHU5to9Unit","H33PopInOOHU10to19Unit","H33PopInOOHU20to49Unit","H33PopInOOHU50PlusUnit","H33PopInOOHUMobilHome","H33PopInOOHUOtherUnit","H33PopInRentOccHU2","H33PopInROHU1Det","H33PopInROHU1Att","H33PopInROHU2Unit","H33PopInROHU3to4Unit","H33PopInROHU5to9Unit","H33PopInROHU10to19Unit","H33PopInROHU20to49Unit","H33PopInROHU50PlusUnit","H33PopInROHUMobilHome","H33PopInROHUOtherUnit","H36OccHousingUnitsdTotal","H36OwnerOccHU4","H36OOHUBuilt99to0300","H36OOHUBuilt95to98","H36OOHUBuilt90to94","H36OOHUBuilt80to89","H36OOHUBuilt70to79","H36OOHUBuilt60to69","H36OOHUBuilt50to59","H36OOHUBuilt40to49","H36OOHUBuilt39Earlier","H36RentOccHU4","H36ROHUBuilt99to0300","H36ROHUBuilt95to98","H36ROHUBuilt90to94","H36ROHUBuilt80to89","H36ROHUBuilt70to79","H36ROHUBuilt60to69","H36ROHUBuilt50to59","H36ROHUBuilt40to49","H36ROHUBuilt39Earlier","H40OccupHousUnitse","H40HeatFuelUtilGas","H40HeatFuelBotGas","H40HeatFuelElect","H40HeatFuelOilKero","H40HeatFuelCoal","H40HeatFuelWood","H40HeatFuelSolar","H40HeatFuelOther","H40HeatFuelNone","H41TotalHU","H41HUNoBdrm","H41HU1Bdrm","H41HU2Bdrm","H41HU3Bdrm","H41HU4Bdrm","H41HU5MoreBdrm","H42OccuHousUnitf","H42OwnerOccHU5","H42OOHUNoBdrm","H42OOHU1Bdrm","H42OOHU2Bdrm","H42OOHU3Bdrm","H42OOHU4Bdrm","H42OOHU5PlusBdrm","H42RentOccHU5","H42ROHUNoBdrm","H42ROHU1Bdrm","H42ROHU2Bdrm","H42ROHU3Bdrm","H42ROHU4Bdrm","H42ROHU5PlusBdrm","H48OccupHousUnitsg","H48OwnerOccHU6","H48OOHUwCompltPlumFacil","H48OOHULackCompltPlumFacil","H48RentOccHU6","H48ROHUwCompltPlumFacil","H48ROHULackCompltPlumFacil","H51OccupHousUnitf","H51OwnerOccHU7","H51OOHUwCompleteKitFacil","H51OOHULackCompleteKitFacil","H51RenterOccHU7","H51ROHUwCompleteKitFacil","H51ROHULackCompleteKitFacil"]
["Acworth","0004141","00260",836,515,241,152,89,512,515,0,0,0,515,18,497,319,263,56,196,5,2,4,170,0,15,319,263,0,16,48,61,38,22,46,22,10,56,2,8,13,8,4,6,9,4,2,840,700,140,319,263,52,107,44,34,20,3,3,56,18,20,3,10,3,0,2,3,3,2,515,16,30,63,95,85,59,71,54,42,5,2773,515,458,4,9,0,0,0,0,0,40,4,319,263,240,0,2,0,0,0,0,0,21,0,56,44,2,4,0,0,0,0,0,6,0,840,700,638,0,5,0,0,0,0,0,57,0,140,121,2,8,0,0,0,0,0,9,0,319,263,0,8,11,54,44,18,9,14,105,56,0,0,2,2,4,4,7,2,35,319,3,35,0,149,0,132,0,0,0,515,16,95,170,148,62,24,319,263,1,19,82,108,34,19,56,0,10,22,16,5,3,319,263,256,7,56,52,4,319,263,254,9,56,47,9]
["Charlestown","0004146","11380",4749,2067,344,319,25,2067,2067,1188,0,1188,879,7,872,1920,1464,456,147,43,21,21,59,0,3,1920,1464,35,175,277,350,120,159,196,110,42,456,53,84,116,44,17,12,71,37,22,4730,3726,1004,1920,1464,284,628,245,188,81,31,7,456,172,119,76,53,29,0,7,2,3,2,2067,20,49,196,489,529,284,227,153,120,5,11024,2067,1084,14,77,108,97,8,49,0,630,0,1920,1464,886,6,23,12,7,0,0,0,530,0,456,121,8,35,96,82,0,49,0,65,0,4730,3726,2266,9,65,23,28,0,0,0,1335,0,1004,388,14,92,149,109,0,90,0,162,0,1920,1464,48,109,76,240,400,126,125,70,270,456,0,0,42,56,71,35,30,32,190,1920,0,174,89,1494,0,158,0,5,0,2067,20,224,775,773,218,57,1920,1464,0,64,534,641,185,40,456,16,128,186,102,7,17,1920,1464,1458,6,456,456,0,1920,1464,1458,6,456,456,0]
["Claremont","0004169","12900",13151,6074,719,697,22,6074,6074,4351,0,4351,1723,36,1687,5685,3279,2406,389,184,51,0,61,0,93,5685,3279,48,303,649,625,300,211,575,441,127,2406,265,428,549,409,126,156,200,231,42,12973,8199,4774,5685,3279,741,1345,500,437,193,63,0,2406,1095,666,316,205,84,40,0,2,2,2,6074,79,307,624,1176,1320,1104,655,441,368,5,32286,6074,3011,147,579,712,377,154,277,353,464,0,5685,3279,2575,77,148,99,0,8,0,0,372,0,2406,347,70,357,496,331,123,269,346,67,0,12973,8199,6711,199,324,193,0,14,0,0,758,0,4774,983,178,739,1092,670,172,368,412,160,0,5685,3279,21,117,100,285,480,229,554,414,1079,2406,0,5,28,250,501,243,145,365,869,5685,153,379,314,4514,0,187,0,97,41,6074,99,982,1964,2094,765,170,5685,3279,0,41,873,1556,665,144,2406,99,842,890,473,76,26,5685,3279,3279,0,2406,2393,13,5685,3279,3279,0,2406,2400,6]
["Cornish","0004197","15060",1661,697,332,301,31,697,697,0,0,0,697,21,676,645,564,81,52,5,1,0,41,0,5,645,564,0,43,137,170,66,44,58,31,15,81,2,25,21,23,4,2,2,2,0,1661,1472,189,645,564,117,215,90,88,40,6,8,81,20,27,12,18,2,0,2,3,3,2,697,2,0,33,79,150,149,118,58,108,6,4431,697,605,5,28,11,0,0,0,0,48,0,645,564,504,4,14,3,0,0,0,0,39,0,81,60,0,11,4,0,0,0,0,6,0,1661,1472,1329,14,45,2,0,0,0,0,82,0,189,148,0,17,10,0,0,0,0,14,0,645,564,2,14,40,88,112,35,26,21,226,81,0,0,4,4,10,8,6,5,44,645,0,112,12,413,0,108,0,0,0,697,2,55,179,306,106,49,645,564,0,39,131,272,92,30,81,0,9,37,22,6,7,645,564,560,4,81,81,0,645,564,558,6,81,81,0]
["Croydon","0004202","16340",661,347,133,112,21,354,347,0,0,0,347,17,330,268,246,22,79,2,14,4,59,0,0,268,246,3,39,60,65,16,27,23,11,2,22,0,2,7,5,4,2,2,0,0,684,600,84,268,246,46,105,53,28,4,4,6,22,2,6,3,4,4,3,0,3,2,4,347,0,10,9,55,85,64,52,38,34,6,2084,347,294,0,2,0,0,0,0,0,51,0,268,246,200,0,2,0,0,0,0,0,44,0,22,22,0,0,0,0,0,0,0,0,0,684,600,499,0,5,0,0,0,0,0,96,0,84,84,0,0,0,0,0,0,0,0,0,268,246,7,14,28,69,42,18,11,6,51,22,0,0,0,4,0,0,5,2,11,268,0,60,2,161,4,41,0,0,0,347,0,17,100,184,31,15,268,246,0,6,75,125,25,15,22,0,0,4,12,6,0,268,246,244,2,22,22,0,268,246,246,0,22,22,0]
["Goshen","0004207","30500",741,390,180,124,56,389,390,0,0,0,390,2,388,280,252,28,110,0,9,0,97,0,4,280,252,3,19,51,70,21,26,38,22,2,28,4,4,10,2,0,2,4,2,0,747,650,97,280,252,40,123,38,24,20,5,2,28,4,6,12,4,2,0,0,3,3,3,390,6,9,26,75,73,89,47,35,30,6,2210,390,336,5,2,6,0,0,0,0,35,6,280,252,226,5,0,0,0,0,0,0,21,0,28,16,0,0,6,0,0,0,0,6,0,747,650,584,9,0,0,0,0,0,0,57,0,97,53,0,0,15,0,0,0,0,29,0,280,252,0,10,23,46,58,15,21,15,64,28,0,2,0,6,4,6,2,0,8,280,0,51,4,164,0,61,0,0,0,390,6,39,150,132,49,14,280,252,0,8,86,109,35,14,28,0,4,10,6,8,0,280,252,252,0,28,28,0,280,252,252,0,28,28,0]
["Grantham","0004212","31220",2167,1518,666,418,248,1513,1518,0,0,0,1518,5,1513,925,816,109,593,2,28,12,548,0,3,925,816,5,80,125,177,67,83,179,84,16,109,8,38,26,16,14,2,3,2,0,2173,1914,259,925,816,152,433,96,93,32,8,2,109,23,44,20,14,4,2,2,2,2,2,1518,10,5,23,158,291,459,248,195,129,6,9516,1518,1168,296,19,9,0,0,0,0,26,0,925,816,735,62,0,0,0,0,0,0,19,0,109,75,16,10,5,0,0,0,0,3,0,2173,1914,1770,99,0,0,0,0,0,0,45,0,259,200,26,21,10,0,0,0,0,2,0,925,816,22,102,112,281,181,20,26,12,60,109,2,7,13,27,37,10,2,3,8,925,9,436,47,340,0,93,0,0,0,1518,10,23,310,936,203,36,925,816,0,9,127,515,140,25,109,6,3,37,59,4,0,925,816,816,0,109,109,0,925,816,811,5,109,109,0]
["Langdon","0004218","40900",586,266,127,109,18,269,266,0,0,0,266,2,264,236,211,25,30,1,3,0,25,0,1,236,211,2,14,61,54,16,9,33,15,7,25,0,9,10,2,0,2,2,0,0,582,525,57,236,211,37,89,39,25,21,0,0,25,4,12,0,3,6,0,0,2,2,2,266,0,2,10,35,80,35,45,28,31,6,1633,266,220,2,2,3,0,0,0,0,39,0,236,211,182,2,2,0,0,0,0,0,25,0,25,14,0,0,3,0,0,0,0,8,0,582,525,443,4,8,0,0,0,0,0,70,0,57,34,0,0,9,0,0,0,0,14,0,236,211,2,15,34,43,33,19,6,7,52,25,0,0,0,4,0,8,3,0,10,236,2,8,2,146,0,78,0,0,0,266,0,14,96,90,57,9,236,211,0,10,75,75,45,6,25,0,2,8,5,7,3,236,211,211,0,25,25,0,236,211,209,2,25,25,0]
["Lempster","0004223","41700",971,577,251,180,71,577,577,0,0,0,577,8,569,387,340,47,190,6,12,0,170,0,2,387,340,2,46,64,98,22,16,57,19,16,47,6,9,7,8,2,0,5,5,5,971,861,110,387,340,68,136,60,44,25,6,1,47,14,17,8,6,2,0,0,3,3,2,577,8,16,35,184,113,109,51,35,26,5,2997,577,471,1,8,0,0,0,0,0,88,9,387,340,277,1,0,0,0,0,0,0,59,3,47,30,0,3,0,0,0,0,0,14,0,971,861,674,3,0,0,0,0,0,0,171,13,110,81,0,4,0,0,0,0,0,25,0,387,340,2,34,28,69,68,43,11,7,78,47,0,3,0,18,16,2,0,1,7,387,0,74,6,217,0,90,0,0,0,577,8,70,230,195,59,15,387,340,2,23,101,153,51,10,47,0,3,26,16,2,0,387,340,327,13,47,45,2,387,340,330,10,47,47,0]
["Newport","0004228","52580",6269,2633,295,280,15,2633,2633,1347,0,1347,1286,8,1278,2473,1641,832,160,33,10,13,70,0,34,2473,1641,7,190,329,375,153,115,273,155,44,832,93,161,139,167,47,31,98,74,22,6152,4282,1870,2473,1641,316,638,283,254,116,7,27,832,315,225,143,101,17,15,16,2,3,2,2633,11,24,151,539,594,543,394,195,182,6,15034,2633,1465,57,235,366,155,46,42,0,267,0,2473,1641,1288,17,94,10,0,0,0,0,232,0,832,93,28,131,318,155,41,42,0,24,0,6152,4282,3571,32,225,9,0,0,0,0,445,0,1870,274,74,352,683,306,54,47,0,80,0,2473,1641,43,40,48,258,209,226,155,95,567,832,0,10,35,136,89,45,130,22,365,2473,62,392,52,1855,8,87,0,17,0,2633,11,193,921,1026,380,102,2473,1641,0,38,406,805,308,84,832,11,127,455,161,60,18,2473,1641,1641,0,832,832,0,2473,1641,1641,0,832,822,10]
["Plainfield","0004254","62340",2241,877,403,387,16,877,877,0,0,0,877,22,855,844,741,103,33,4,1,0,16,0,12,844,741,4,72,183,198,88,51,93,40,12,103,4,36,26,22,5,4,2,2,2,2241,1978,263,844,741,111,280,165,132,44,8,1,103,29,30,15,25,4,0,0,3,3,3,877,4,10,20,110,211,162,127,114,119,6,5542,877,726,17,45,3,4,6,0,0,76,0,844,741,640,10,26,1,2,2,0,0,60,0,103,65,5,12,2,2,4,0,0,13,0,2241,1978,1696,31,93,7,2,4,0,0,145,0,263,179,14,23,6,6,6,0,0,29,0,844,741,24,27,50,171,144,55,51,25,194,103,0,2,13,25,18,8,8,5,24,844,3,140,5,563,0,130,3,0,0,877,4,46,217,428,137,45,844,741,2,33,159,377,127,43,103,0,7,48,40,6,2,844,741,734,7,103,99,4,844,741,735,6,103,99,4]
["Springfield","0004260","72740",945,536,232,154,78,534,536,0,0,0,536,0,536,381,319,62,155,0,4,0,140,0,11,381,319,3,37,71,79,41,20,39,24,5,62,7,16,19,12,0,2,0,4,2,915,757,158,381,319,59,149,58,36,17,0,0,62,16,25,8,6,4,0,3,2,2,3,536,18,27,23,73,120,105,52,52,66,6,3103,536,455,2,4,4,0,0,0,0,71,0,381,319,265,0,0,0,0,0,0,0,54,0,62,47,0,2,4,0,0,0,0,9,0,915,757,623,0,0,0,0,0,0,0,134,0,158,117,0,8,8,0,0,0,0,25,0,381,319,14,23,39,62,71,42,8,3,57,62,2,12,2,10,11,3,4,0,18,381,0,100,12,198,0,71,0,0,0,536,18,45,159,217,66,31,381,319,0,19,104,137,40,19,62,0,16,10,27,9,0,381,319,308,11,62,60,2,381,319,313,6,62,60,2]
["Sunapee","0004265","75060",3055,2143,450,270,180,2143,2143,11,0,11,2132,10,2122,1294,973,321,849,17,15,20,791,0,6,1294,973,5,93,203,222,50,52,223,102,23,321,75,50,68,74,12,5,19,18,0,3055,2466,589,1294,973,219,431,131,111,63,18,0,321,110,106,50,50,0,0,5,2,3,2,2143,18,57,92,230,444,444,414,190,254,6,13170,2143,1715,68,63,101,98,18,7,0,73,0,1294,973,865,24,8,9,14,0,0,0,53,0,321,135,5,49,51,46,13,7,0,15,0,3055,2466,2213,49,25,21,21,0,0,0,137,0,589,237,12,104,111,81,15,8,0,21,0,1294,973,12,48,53,209,279,70,72,37,193,321,0,0,5,48,84,26,34,18,106,1294,13,326,70,798,5,74,0,0,8,2143,26,113,499,987,399,119,1294,973,4,34,216,468,183,68,321,14,41,118,120,23,5,1294,973,973,0,321,321,0,1294,973,969,4,321,321,0]
["Unity","0004274","77940",1530,594,247,216,31,594,594,0,0,0,594,9,585,504,468,36,90,0,6,0,81,0,3,504,468,6,64,115,120,58,28,64,11,2,36,2,13,6,10,0,2,3,0,0,1301,1208,93,504,468,76,208,76,75,23,7,3,36,7,10,10,7,0,2,0,3,3,3,594,3,8,34,140,164,118,89,22,16,5,3168,594,473,2,4,3,0,0,0,0,112,0,504,468,365,2,2,0,0,0,0,0,99,0,36,27,0,2,3,0,0,0,0,4,0,1301,1208,922,12,9,0,0,0,0,0,265,0,93,77,0,2,2,0,0,0,0,12,0,504,468,5,48,41,119,110,36,19,16,74,36,2,2,4,0,10,0,3,3,12,504,5,90,3,318,2,86,0,0,0,594,5,44,241,253,45,6,504,468,0,39,187,194,42,6,36,2,2,10,22,0,0,504,468,460,8,36,29,7,504,468,464,4,36,32,4]
["Washington","0004279","78980",895,924,424,161,263,925,924,0,0,0,924,3,921,369,338,31,555,2,12,9,518,0,14,369,338,4,37,46,91,34,27,72,24,3,31,2,10,6,2,2,0,6,3,0,881,797,84,369,338,68,150,47,49,15,5,4,31,7,12,8,0,3,0,1,2,2,3,924,13,77,84,184,246,138,86,56,40,5,4663,924,859,10,12,0,0,0,0,0,41,2,369,338,310,2,4,0,0,0,0,0,22,0,31,24,0,4,0,0,0,0,0,3,0,881,797,732,8,9,0,0,0,0,0,48,0,84,59,0,10,0,0,0,0,0,15,0,369,338,11,16,30,76,77,18,30,7,73,31,0,2,0,9,9,2,0,0,9,369,8,154,5,120,3,77,0,2,0,924,30,160,365,270,79,20,369,338,2,28,128,129,42,9,31,0,9,6,14,0,2,369,338,329,9,31,29,2,369,338,331,7,31,31,0]
[]
[]
[]
[]
[]
[]
[]
[]
[]
[]
[]
[]
[]
[]
[]
[]
[]
[]
[]
[]
[]
[]
[]
[]
[]
[]
[]
[]
[]
[]
[]
[]
[]
["Census 2000 SummaryFile3 Sample Data  -  SF3TownQry8HousingCostA"]
[]
["TOWN_NAME","LOGRECNO","COUSUB","TotalPop","H62RntrOccHU","H62RntrOccHUwRent","H62ROHUGRent<100","H62ROHUGRent100to149","H62ROHUGRent150to199","H62ROHUGRent200to249","H62ROHUGRent250to299","H62ROHUGRent300to349","H62ROHUGRent350to399","H62ROHUGRent400to449","H62ROHUGRent450to499","H62ROHUGRent500to549","H62ROHUGRent550to599","H62ROHUGRent600to649","H62ROHUGRent650to699","H62ROHUGRent700to749","H62ROHUGRent750to799","H62ROHUGRent800to899","H62ROHUGRent900to999","H62ROHUGRent1000to1249","H62ROHUGRent1250to1499","H62ROHUGRent1500to1999","H62ROHUGRent2000>","H62ROHUNoGRent","H63MedianGrossRnt","H69RenterOccHsU","H69GRnt<10PctHHInc","H69GRnt10to15PctHHInc","H69GRnt15to20PctHHInc","H69GRnt20to25PctHHInc","H69GRnt25to30PctHHInc","H69GRnt30to35PctHHInc","H69GRnt35to40PctHHInc","H69GRnt40to50PctHHInc","H69GRnt>50PctHHInc","H69GRntPctNotcomputed","H73RenterOccHU","H73ROHUHhInc<10k","H73ROHUHhInc<10kRnt<20pct","H73ROHUHhInc<10kRnt20to25pct","H73ROHUHhInc<10kRnt25to30pct","H73ROHUHhInc<10kRnt30to35pct","H73ROHUHhInc<10kRnt>35pct","H73ROHUHhInc<10kPctNotComput","H73ROHUHhInc10to20k","H73ROHUHhInc10to20kRnt<20pct","H73ROHUHhInc10to20kRnt20to25pct","H73ROHUHhInc10to20kRnt25to30pct","H73ROHUHhInc10to20kRnt30to35pct","H73ROHUHhInc10to20kRnt>35pct","H73ROHUHhInc10to20kRntPctNC","H73ROHUHhInc20to35k","H73ROHUHhInc20to35kRnt<20pct","H73ROHUHhInc20to35kRnt20to25pct","H73ROHUHhInc20to35kRnt25to30pct","H73ROHUHhInc20to35kRnt30to35pct","H73ROHUHhInc20to35kRnt>35pct","H73ROHUHhInc20to35kRntPctNC","H73ROHUHhInc35to40k","H73ROHUHhInc35to40kRnt<20pct","H73ROHUHhInc35to40kRnt20to25pct","H73ROHUHhInc35to40kRnt25to30pct","H73ROHUHhInc35to40kRnt30to35pct","H73ROHUHhInc35to40kRnt>35pct","H73ROHUHhInc35to40kRntPctNC","H73ROHUHhInc50to75k","H73ROHUHhInc50to75kRnt<20pct","H73ROHUHhInc50to75kRnt20to25pct","H73ROHUHhInc50to75kRnt25to30pct","H73ROHUHhInc50to75kRnt30to35pct","H73ROHUHhInc50to75kRnt>35pct","H73ROHUHhInc50to75kRntPctNC","H73ROHUHhInc75to100k","H73ROHUHhInc75to100kRnt<20pct","H73ROHUHhInc75to100kRnt20to25pct","H73ROHUHhInc75to100kRnt25to30pct","H73ROHUHhInc75to100kRnt30to35pct","H73ROHUHhInc75to100kRnt>35pct","H73ROHUHhInc75to100kRntPctNC","H73ROHUHhInc>100k","H73ROHUHhInc>100kRnt<20pct","H73ROHUHhInc>100kRnt20to25pct","H73ROHUHhInc>100kRnt25to30pct","H73ROHUHhInc>100kRnt30to35pct","H73ROHUHhInc>100kRnt>35pct","H73ROHUHhInc>100kRntPctNC"]
["Acworth","0004141","00260",836,33,25,0,0,0,0,2,0,0,6,0,0,4,2,0,9,2,0,0,0,0,0,0,8,613,33,7,0,2,3,4,2,0,0,4,11,33,9,0,0,0,0,4,5,2,0,0,0,2,0,0,10,0,0,4,0,0,6,3,0,3,0,0,0,0,6,6,0,0,0,0,0,3,3,0,0,0,0,0,0,0,0,0,0,0,0]
["Charlestown","0004146","11380",4749,437,429,0,0,25,12,11,43,59,56,30,49,49,30,20,17,0,13,0,0,8,0,7,8,464,437,33,74,82,66,14,58,12,36,37,25,437,48,0,0,0,6,25,17,120,14,13,7,39,47,0,126,38,47,7,13,13,8,69,63,6,0,0,0,0,56,56,0,0,0,0,0,5,5,0,0,0,0,0,13,13,0,0,0,0,0]
["Claremont","0004169","12900",13151,2389,2317,10,100,170,97,86,160,144,227,167,216,224,238,213,123,35,55,0,34,18,0,0,72,499,2389,149,310,361,426,281,125,136,146,373,82,2389,479,23,61,78,0,297,20,573,80,44,86,62,301,0,647,167,213,117,63,57,30,312,246,66,0,0,0,0,301,238,42,0,0,0,21,37,37,0,0,0,0,0,40,29,0,0,0,0,11]
["Cornish","0004197","15060",1661,52,44,0,0,0,0,2,0,0,2,4,8,2,5,2,3,2,4,4,6,0,0,0,8,640,52,2,10,13,4,6,3,0,2,4,8,52,0,0,0,0,0,0,0,4,0,0,0,0,4,0,15,4,0,4,1,2,4,19,13,0,2,2,0,2,12,6,4,0,0,0,2,0,0,0,0,0,0,0,2,2,0,0,0,0,0]
["Croydon","0004202","16340",661,16,16,0,0,0,0,0,0,0,0,0,2,2,0,0,7,3,2,0,0,0,0,0,0,729,16,0,0,5,2,0,2,2,3,2,0,16,0,0,0,0,0,0,0,4,0,0,0,0,4,0,7,0,2,0,2,3,0,0,0,0,0,0,0,0,5,5,0,0,0,0,0,0,0,0,0,0,0,0,0,0,0,0,0,0,0]
["Goshen","0004207","30500",741,26,24,0,0,0,0,0,0,0,2,0,3,4,5,0,2,2,4,2,0,0,0,0,2,630,26,0,0,7,9,2,0,0,2,4,2,26,4,0,0,0,0,4,0,4,0,0,0,0,2,2,5,0,3,2,0,0,0,11,7,4,0,0,0,0,2,0,2,0,0,0,0,0,0,0,0,0,0,0,0,0,0,0,0,0,0]
["Grantham","0004212","31220",2167,103,98,0,0,0,0,0,0,0,3,3,3,5,3,2,4,4,8,7,44,8,2,2,5,1040,103,7,19,15,10,20,2,7,2,13,8,103,8,0,0,0,0,5,3,6,0,0,0,0,6,0,13,0,0,6,2,5,0,17,2,2,5,0,6,2,28,14,5,9,0,0,0,27,21,3,0,0,0,3,4,4,0,0,0,0,0]
["Langdon","0004218","40900",586,18,13,0,0,0,0,0,0,0,0,0,4,2,4,0,3,0,0,0,0,0,0,0,5,606,18,0,2,4,0,5,2,0,0,0,5,18,0,0,0,0,0,0,0,4,0,0,0,2,0,2,5,0,0,2,0,0,3,3,0,0,3,0,0,0,6,6,0,0,0,0,0,0,0,0,0,0,0,0,0,0,0,0,0,0,0]
["Lempster","0004223","41700",971,37,29,0,0,2,2,0,0,4,0,0,8,6,0,2,2,3,0,0,0,0,0,0,8,541,37,3,2,9,4,5,0,0,0,6,8,37,2,0,0,0,0,0,2,13,4,0,0,0,6,3,8,3,0,5,0,0,0,9,2,4,0,0,0,3,3,3,0,0,0,0,0,0,0,0,0,0,0,0,2,2,0,0,0,0,0]
["Newport","0004228","52580",6269,832,822,10,11,21,41,56,48,41,0,64,115,96,30,102,44,0,73,52,0,9,9,0,10,552,832,50,60,143,154,92,57,46,27,161,42,832,185,0,11,10,0,132,32,155,10,31,17,29,68,0,196,49,48,45,28,16,10,206,113,55,20,0,18,0,73,64,9,0,0,0,0,8,8,0,0,0,0,0,9,9,0,0,0,0,0]
["Plainfield","0004254","62340",2241,72,66,0,0,2,0,0,2,4,4,2,0,6,6,2,9,4,4,9,10,2,0,0,6,728,72,8,8,12,12,9,9,0,4,4,6,72,2,0,0,0,0,2,0,11,0,2,0,0,4,5,11,0,2,5,2,2,0,19,10,0,2,7,0,0,20,10,8,2,0,0,0,7,6,0,0,0,0,1,2,2,0,0,0,0,0]
["Springfield","0004260","72740",945,49,41,0,0,0,0,0,2,2,0,8,2,0,0,4,8,2,2,4,7,0,0,0,8,716,49,0,8,16,6,0,7,0,4,0,8,49,0,0,0,0,0,0,0,4,0,0,0,0,2,2,15,2,0,0,7,2,4,14,8,6,0,0,0,0,11,9,0,0,0,0,2,2,2,0,0,0,0,0,3,3,0,0,0,0,0]
["Sunapee","0004265","75060",3055,315,295,0,0,0,0,5,0,6,13,29,29,46,4,18,33,25,25,10,39,6,7,0,20,693,315,10,37,64,59,28,26,10,4,57,20,315,22,0,0,0,0,22,0,53,0,0,0,13,29,11,80,10,30,15,0,20,5,66,40,7,13,6,0,0,63,34,22,0,7,0,0,31,27,0,0,0,0,4,0,0,0,0,0,0,0]
["Unity","0004274","77940",1530,30,27,0,0,0,0,0,3,0,2,3,0,0,2,0,8,2,7,0,0,0,0,0,3,722,30,0,0,0,7,5,2,0,6,7,3,30,5,0,0,0,0,5,0,12,0,0,3,0,6,3,4,0,0,0,2,2,0,9,0,7,2,0,0,0,0,0,0,0,0,0,0,0,0,0,0,0,0,0,0,0,0,0,0,0,0]
["Washington","0004279","78980",895,23,18,0,0,0,0,0,0,0,0,0,4,2,2,6,1,3,0,0,0,0,0,0,5,658,23,0,2,2,2,4,0,2,5,1,5,23,1,0,0,0,0,1,0,5,0,0,0,0,5,0,8,0,2,4,0,2,0,7,2,0,0,0,0,5,2,2,0,0,0,0,0,0,0,0,0,0,0,0,0,0,0,0,0,0,0]
[]
[]
[]
[]
[]
[]
[]
[]
[]
[]
[]
[]
[]
[]
[]
[]
[]
[]
[]
[]
[]
[]
[]
[]
[]
[]
[]
[]
[]
[]
[]
[]
[]
["Census 2000 SummaryFile3 Sample Data  -  SF3TownQry8HousingCostB"]
[]
["TOWN_NAME","LOGRECNO","COUSUB","TotalPop","H74SpecOwnerOccHU","H74OOHU<10k","H74OOHU10to15k","H74OOHU15to20k","H74OOHU20to25k","H74OOHU25to30k","H74OOHU30to35k","H74OOHU35to40k","H74OOHU40to50k","H74OOHU50to60k","H74OOHU60to70k","H74OOHU70to80k","H74OOHU80to90k","H74OOHU90to100k","H74OOHU100to125k","H74OOHU125to150k","H74OOHU150to175k","H74OOHU175to200k","H74OOHU200to250k","H74OOHU250to300k","H74OOHU300to400k","H74OOHU400to500k","H74OOHU500to750k","H74OOHU750to1000k","H74OOHU1000kmore","H76OOHUMedianVal","H84OwnerOccHU","H84AllOOHU<10k","H84AllOOHU10to15k","H84AllOOHU15to20k","H84AllOOHU20to25k","H84AllOOHU25to30k","H84AllOOHU30to35k","H84AllOOHU35to40k","H84AllOOHU40to50k","H84AllOOHU50to60k","H84AllOOHU60to70k","H84AllOOHU70to80k","H84AllOOHU80to90k","H84AllOOHU90to100k","H84AllOOHU100to125k","H84AllOOHU125to150k","H84AllOOHU150to175k","H84AllOOHU175to200k","H84AllOOHU200to250k","H84AllOOHU250to300k","H84AllOOHU300to400k","H84AllOOHU400to500k","H84AllOOHU500to750k","H84AllOOHU750to1000k","H84AllOOHU1000kmore","H85OOHUMedVal","H90SOOHU","H90HUwMorgt","H90HUwMtgHC<200","H90HUwMtgHC200to300","H90HUwMtgHC300to400","H90HUwMtgHC400to500","H90HUwMtgHC500to600","H90HUwMtgHC600to700","H90HUwMtgHC700to800","H90HUwMtgHC800to900","H90HUwMtgHC900to1000","H90HUwMtgHC1000to1250","H90HUwMtgHC1250to1500","H90HUwMtgHC1500to2000","H90HUwMtgHC2000to2500","H90HUwMtgHC2500to3000","H90HUwMtgHC3000orMore","H90HUwOutMorgt","H90HUwOutMtgHC<100","H90HUwOutMtgHC100to150","H90HUwOutMtgHC150to200","H90HUwOutMtgHC200to250","H90HUwOutMtgHC250to300","H90HUwOutMtgHC300to350","H90HUwOutMtgHC350to400","H90HUwOutMtgHC400to500","H90HUwOutMtgHC500to600","H90HUwOutMtgHC600to700","H90HUwOutMtgHC700to800","H90HUwOutMtgHC800to900","H90HUwOutMtgHC900to1000","H90HUwOutMtgHC1000orMore","H91MedianOCHUwMtg","H91MedianOCHUwOutMtg","H94SpecOOHU","H94HUwMortg","H94HUwMtgHC<10pct","H94HUwMtgHC10to15pct","H94HUwMtgHC15to20pct","H94HUwMtgHC20to25pct","H94HUwMtgHC25to30pct","H94HUwMtgHC30to35pct","H94HUwMtgHC35to40pct","H94HUwMtgHC40to50pct","H94HUwMtgHC50pctOrMore","H94HUwMtgHCpctNotComp","H94HUWOutMortg","H94HUWOutMortgHC<10pct","H94HUWOutMortgHC10to15pct","H94HUWOutMortgHC15to20pct","H94HUWOutMortgHC20to25pct","H94HUWOutMortgHC25to30pct","H94HUWOutMortgHC30to35pct","H94HUWOutMortgHC35to40pct","H94HUWOutMortgHC40to50pct","H94HUWOutMortgHC50pctOrMore","H94HUWOutMortgHCpctNotComp","H97SpecifOwnOccHU","H97SOOHUInc<10k","H97SOOHUInc<10kHC<20pct","H97SOOHUInc<10kHC20to25pct","H97SOOHUInc<10kHC25to30pct","H97SOOHUInc<10kHC30to35pct","H97SOOHUInc<10kHC>35pct","H97SOOHUInc<10kHCpctNotComput","H97SOOHUInc10to20k","H97SOOHUInc10to20kHC<20pct","H97SOOHUInc10to20kHC20to25pct","H97SOOHUInc10to20kHC25to30pct","H97SOOHUInc10to20kHC30to35pct","H97SOOHUInc10to20kHC>35pct","H97SOOHUInc10to20kHCpctNotComput","H97SOOHUInc20to35k","H97SOOHUInc20to35kRC<20pct","H97SOOHUInc20to35kRC20to25pct","H97SOOHUInc20to35kRC25to30pct","H97SOOHUInc20to35kRC30to35pct","H97SOOHUInc20to35kRC>35pct","H97SOOHUInc20to35kRCpctNotComput","H97SOOHUInc35to50k","H97SOOHUInc35to50kRC<20pct","H97SOOHUInc35to50kRC20to25pct","H97SOOHUInc35to50kRC25to30pct","H97SOOHUInc35to50kRC30to35pct","H97SOOHUInc35to50kRC>35pct","H97SOOHUInc35to50kRCpctNotCompute","H97SOOHUInc50to75k","H97SOOHUInc50to75kRC<20pct","H97SOOHUInc50to75kRC20to25pct","H97SOOHUInc50to75kRC25to30pct","H97SOOHUInc50to75kRC30to35pct","H97SOOHUInc50to75kRC>35pct","H97SOOHUInc50to75kRCpctNotComput","H97SOOHUInc75to100k","H97SOOHUInc75to100kRC<20pct","H97SOOHUInc75to100kRC20to25pct","H97SOOHUInc75to100kRC25to30pct","H97SOOHUInc75to100kRC30to35pct","H97SOOHUInc75to100kRC>35pct","H97SOOHUInc75to100kRCpctNotCompute","H97SOOHUInc100to150k","H97SOOHUInc100to150kRC<20pct","H97SOOHUInc100to150kRC20to25pct","H97SOOHUInc100to150kRC25to30pct","H97SOOHUInc100to150kRC30to35pct","H97SOOHUInc100to150kRC>35pct","H97SOOHUInc100to150kRCpctNotCompute","H97SOOHUInc>150k","H97SOOHUInc>150kRC<20pct","H97SOOHUInc>150kRC20to25pct","H97SOOHUInc>150kRC25to30pct","H97SOOHUInc>150kRC30to35pct","H97SOOHUInc>150kRC>35pct","H97SOOHUInc>150kRCpctNotCompute"]
["Acworth","0004141","00260",836,124,0,0,0,5,0,1,2,4,4,7,18,17,15,25,9,2,7,2,4,0,0,2,0,0,92700,263,0,0,3,7,6,1,8,9,8,18,27,33,27,48,19,9,13,17,8,0,0,2,0,0,94300,124,68,0,0,0,2,9,4,5,20,2,18,4,2,2,0,0,56,0,0,4,7,11,3,2,14,9,6,0,0,0,0,870,407,124,68,2,15,12,12,19,6,0,0,2,0,56,18,8,10,5,4,2,0,2,6,1,124,9,0,0,0,0,8,1,9,4,1,2,2,0,0,23,10,4,7,2,0,0,29,14,4,7,2,2,0,35,20,8,5,2,0,0,15,13,0,2,0,0,0,4,4,0,0,0,0,0,0,0,0,0,0,0,0]
["Charlestown","0004146","11380",4749,761,0,0,0,0,6,0,6,27,53,101,171,113,108,67,74,12,5,7,7,0,0,0,4,0,81500,1464,96,49,70,54,6,52,33,82,104,146,214,150,128,123,87,31,16,7,7,5,0,0,4,0,71900,761,502,0,0,0,12,45,73,48,109,82,66,54,6,7,0,0,259,0,0,0,20,29,49,19,55,60,11,0,16,0,0,867,423,761,502,28,96,122,99,52,41,17,29,12,6,259,53,60,63,34,17,6,6,5,15,0,761,27,0,0,0,0,21,6,59,9,10,11,6,23,0,138,48,22,23,12,33,0,203,124,32,24,23,0,0,216,129,63,11,6,7,0,77,71,6,0,0,0,0,35,35,0,0,0,0,0,6,6,0,0,0,0,0]
["Claremont","0004169","12900",13151,2355,0,0,6,0,22,0,15,80,130,386,548,357,259,313,135,33,32,13,0,15,5,0,6,0,79800,3279,13,25,29,18,121,0,68,137,216,499,626,424,338,372,176,77,51,39,0,39,5,0,6,0,78200,2355,1465,0,0,13,39,100,106,153,302,205,370,76,63,32,6,0,890,0,8,0,11,88,179,177,228,148,30,21,0,0,0,910,395,2355,1465,79,213,287,354,217,110,36,89,80,0,890,199,235,160,94,40,53,6,31,64,8,2355,114,0,8,0,8,98,0,191,17,16,35,38,85,0,402,176,82,21,44,79,0,559,246,101,119,58,35,0,694,402,193,75,15,9,0,247,213,27,7,0,0,0,104,83,21,0,0,0,0,44,36,0,0,0,0,8]
["Cornish","0004197","15060",1661,298,0,0,0,0,5,0,2,6,9,19,28,43,26,63,48,16,18,9,6,0,0,0,0,0,104400,564,0,2,0,0,9,3,4,13,13,28,40,59,51,86,87,47,33,35,22,13,9,4,4,2,117400,298,209,0,0,3,2,2,22,16,24,35,63,19,14,9,0,0,89,0,0,8,9,9,9,17,19,9,5,0,4,0,0,1002,378,298,209,18,24,42,55,25,10,6,16,13,0,89,30,17,7,6,2,3,6,7,8,3,298,23,0,0,2,0,18,3,21,4,3,0,3,11,0,41,9,3,4,4,21,0,40,18,10,4,4,4,0,104,57,32,11,2,2,0,34,18,10,6,0,0,0,26,23,3,0,0,0,0,9,9,0,0,0,0,0]
["Croydon","0004202","16340",661,150,0,0,0,0,0,0,0,4,4,13,9,13,20,46,24,8,2,5,0,2,0,0,0,0,106500,246,0,0,0,0,3,5,6,9,12,18,24,22,24,53,34,10,7,11,0,2,2,2,0,2,100000,150,115,0,0,2,14,6,4,17,14,11,27,15,2,3,0,0,35,0,0,0,2,8,10,4,4,5,2,0,0,0,0,905,338,150,115,9,23,22,14,9,14,12,10,2,0,35,15,2,8,4,4,0,2,0,0,0,150,2,0,0,0,0,2,0,10,2,0,4,4,0,0,32,8,4,0,4,16,0,25,9,7,0,3,6,0,57,41,5,6,3,2,0,18,16,2,0,0,0,0,6,3,0,3,0,0,0,0,0,0,0,0,0,0]
["Goshen","0004207","30500",741,159,2,0,0,0,2,0,0,6,15,15,16,18,24,30,21,7,3,0,0,0,0,0,0,0,92300,252,2,0,0,0,2,2,2,14,15,18,18,28,34,41,35,19,10,5,0,3,2,2,0,0,97400,159,117,0,0,2,0,7,13,19,26,12,23,13,2,0,0,0,42,0,0,6,0,6,7,3,13,2,2,0,0,0,3,867,383,159,117,5,15,24,26,20,8,0,2,17,0,42,10,14,2,0,2,7,0,2,3,2,159,6,0,0,2,0,2,2,20,0,0,0,7,13,0,28,7,3,6,5,7,0,38,12,14,7,3,2,0,46,30,9,7,0,0,0,11,11,0,0,0,0,0,8,8,0,0,0,0,0,2,2,0,0,0,0,0]
["Grantham","0004212","31220",2167,710,0,0,0,0,0,0,0,5,3,11,16,20,43,89,139,79,76,81,69,46,26,5,2,0,159200,816,0,0,0,0,0,0,10,7,6,13,19,22,43,97,150,91,83,98,78,57,28,12,2,0,161300,710,459,0,0,2,0,13,19,15,19,26,113,113,97,25,7,10,251,0,2,2,5,19,22,6,59,51,38,20,19,6,2,1300,521,710,459,35,51,79,110,71,38,18,25,29,3,251,95,71,32,22,2,0,6,5,14,4,710,25,0,0,0,0,18,7,14,2,0,0,0,12,0,80,16,23,10,0,31,0,101,52,11,15,6,17,0,211,84,46,38,26,17,0,120,75,39,4,2,0,0,103,80,11,6,4,2,0,56,54,2,0,0,0,0]
["Langdon","0004218","40900",586,120,0,0,0,0,2,0,0,0,11,4,8,30,8,24,11,13,2,4,0,3,0,0,0,0,96300,211,0,0,0,0,2,2,0,2,26,6,17,35,8,50,17,19,4,8,2,7,0,6,0,0,103800,120,84,0,0,2,4,4,10,9,9,11,19,8,5,3,0,0,36,0,0,4,2,3,15,0,6,5,1,0,0,0,0,936,330,120,84,4,17,5,20,16,2,6,4,10,0,36,12,10,5,2,1,4,0,0,0,2,120,4,0,0,0,0,2,2,12,0,2,0,2,8,0,25,12,2,3,4,4,0,37,17,9,5,0,6,0,29,11,9,9,0,0,0,2,2,0,0,0,0,0,0,0,0,0,0,0,0,11,11,0,0,0,0,0]
["Lempster","0004223","41700",971,159,2,2,2,6,0,0,4,19,2,12,22,26,27,17,11,5,0,2,0,0,0,0,0,0,83300,340,2,2,8,6,1,6,6,32,9,27,41,39,46,61,23,11,0,14,0,2,0,2,0,2,87700,159,100,0,0,2,0,11,15,6,16,15,28,7,0,0,0,0,59,2,0,0,14,1,5,9,17,10,1,0,0,0,0,900,392,159,100,3,11,20,27,10,11,5,4,7,2,59,23,13,9,5,2,0,4,0,3,0,159,7,2,0,0,0,3,2,12,0,2,2,0,8,0,41,16,7,6,5,7,0,40,14,11,4,6,5,0,41,29,12,0,0,0,0,10,10,0,0,0,0,0,2,2,0,0,0,0,0,6,6,0,0,0,0,0]
["Newport","0004228","52580",6269,1162,8,0,0,0,17,0,8,33,95,227,177,172,132,190,46,32,16,9,0,0,0,0,0,0,80900,1641,44,9,35,9,41,29,16,115,95,238,205,228,165,216,94,48,45,9,0,0,0,0,0,0,79200,1162,733,0,0,0,19,54,32,87,160,112,159,79,23,8,0,0,429,0,0,10,9,66,67,91,89,81,16,0,0,0,0,913,384,1162,733,33,110,159,138,106,40,42,35,70,0,429,159,79,58,39,18,8,11,48,9,0,1162,58,0,0,0,0,58,0,108,0,19,9,8,72,0,207,78,20,17,23,69,0,207,72,59,51,9,16,0,378,269,62,47,0,0,0,123,107,8,0,8,0,0,74,65,9,0,0,0,0,7,7,0,0,0,0,0]
["Plainfield","0004254","62340",2241,368,0,0,0,0,0,2,2,6,0,9,30,43,48,80,51,34,24,27,12,0,0,0,0,0,113800,741,3,0,6,6,5,7,2,8,11,30,39,53,61,128,83,80,63,71,56,15,8,2,2,2,128500,368,281,0,0,0,7,11,15,15,23,48,73,28,46,15,0,0,87,2,0,0,5,3,10,11,27,11,12,2,4,0,0,1074,446,368,281,18,26,54,64,34,39,13,15,18,0,87,23,18,16,12,3,0,3,3,5,4,368,10,0,0,0,0,6,4,27,3,2,3,0,19,0,46,13,13,3,2,15,0,87,20,18,16,24,9,0,98,45,29,12,4,8,0,54,31,11,3,9,0,0,29,26,3,0,0,0,0,17,17,0,0,0,0,0]
["Springfield","0004260","72740",945,183,0,0,0,0,0,3,0,0,2,10,10,18,16,45,21,16,17,19,4,2,0,0,0,0,118100,319,6,0,7,3,0,3,5,21,17,12,10,22,19,62,35,23,26,30,11,7,0,0,0,0,113900,183,141,0,0,2,2,11,6,6,14,12,52,26,10,0,0,0,42,0,0,0,0,7,2,5,8,8,10,2,0,0,0,1084,488,183,141,5,28,19,46,5,7,7,9,12,3,42,10,21,2,0,3,2,2,2,0,0,183,7,0,0,0,0,4,3,8,0,0,0,2,6,0,37,8,7,6,0,16,0,25,8,8,0,3,6,0,51,23,24,0,4,0,0,37,30,5,2,0,0,0,8,6,2,0,0,0,0,10,10,0,0,0,0,0]
["Sunapee","0004265","75060",3055,784,0,0,0,0,0,5,4,5,16,22,21,94,53,122,113,84,36,58,30,50,22,29,0,20,136100,973,0,6,4,0,18,12,4,9,21,33,26,106,57,128,131,97,40,85,52,53,31,35,0,25,136900,784,440,0,0,7,5,9,18,54,63,41,111,74,35,9,4,10,344,4,0,5,0,58,56,21,88,24,0,20,29,9,30,1052,432,784,440,19,42,123,118,38,18,21,41,20,0,344,134,82,39,27,19,15,0,5,19,4,784,13,0,0,0,0,9,4,57,0,9,10,5,33,0,111,46,13,6,9,37,0,184,89,34,29,9,23,0,199,123,59,3,10,4,0,87,71,16,0,0,0,0,90,77,9,4,0,0,0,43,33,5,5,0,0,0]
["Unity","0004274","77940",1530,213,0,0,0,0,0,0,2,3,4,35,23,49,31,33,11,8,7,3,2,2,0,0,0,0,88100,468,3,0,2,2,4,11,14,30,22,59,45,62,41,76,33,15,18,16,8,7,0,0,0,0,86800,213,154,0,0,0,7,9,18,22,30,20,31,9,8,0,0,0,59,0,2,0,3,5,19,8,19,3,0,0,0,0,0,870,353,213,154,4,14,41,29,23,10,7,10,16,0,59,24,13,3,2,5,6,0,0,6,0,213,6,0,0,0,0,6,0,20,0,0,0,6,14,0,36,5,6,12,2,11,0,55,23,9,12,8,3,0,75,50,16,4,0,5,0,16,16,0,0,0,0,0,5,5,0,0,0,0,0,0,0,0,0,0,0,0]
["Washington","0004279","78980",895,252,0,3,0,0,0,7,3,7,11,14,15,11,32,55,35,20,9,19,11,0,0,0,0,0,110500,338,0,3,2,0,4,10,3,10,11,16,27,22,35,70,43,22,9,22,23,6,0,0,0,0,109300,252,160,0,0,0,5,8,14,18,16,14,38,22,18,7,0,0,92,0,3,5,11,6,4,7,28,14,10,2,2,0,0,1033,436,252,160,2,19,39,37,19,13,9,8,14,0,92,25,18,14,10,7,2,4,0,12,0,252,11,0,0,0,0,11,0,27,7,2,5,2,11,0,56,18,8,4,6,20,0,35,17,10,2,4,2,0,77,36,25,10,3,3,0,21,18,0,3,0,0,0,17,13,2,2,0,0,0,8,8,0,0,0,0,0]
[]
[]
[]
[]
[]
[]
[]
[]
[]
[]
[]
[]
[]
[]
[]
[]
[]
[]
[]
[]
[]
[]
[]
[]
[]
[]
[]
[]
[]
[]
[]
[]
[]
["Census 2000 SummaryFile3 Sample Data  -  SF3TownQry9HHIncomeByTenure"]
[]
["TOWN_NAME","LOGRECNO","COUSUB","NAME","COUNTY","TotalPop","HCT11OccHU","HCT11OwnOccHU","HCT11OOHUInc<5K","HCT11OOHUInc5to10K","HCT11OOHUInc10to15K","HCT11OOHUInc15to20K","HCT11OOHUInc20to25K","HCT11OOHUInc25to35K","HCT11OOHUInc35to50K","HCT11OOHUInc50to75K","HCT11OOHUInc75to100K","HCT11OOHUInc100to150K","HCT11OOHUInc>150K","HCT11RentOccHU","HCT11ROHUInc<5K","HCT11ROHUInc5to10K","HCT11ROHUInc10to15K","HCT11ROHUInc15to20K","HCT11ROHUInc20to25K","HCT11ROHUInc25to35K","HCT11ROHUInc35to50K","HCT11ROHUInc50to75K","HCT11ROHUInc75to100K","HCT11ROHUInc100to150K","HCT11ROHUInc>150K","HCT12MedHHInc","HCT12MedOwnOccHHInc","HCT12MedRentOccHHInc","SummaryLevel"]
["Acworth","0004141","00260","Acworth town","019",836,319,263,5,8,7,36,15,43,59,53,21,12,4,56,7,4,6,5,2,12,9,6,3,0,2,37375,40078,26667,"060"]
["Charlestown","0004146","11380","Charlestown town","019",4749,1920,1464,24,58,58,90,61,282,341,334,154,51,11,456,17,31,32,95,73,59,75,56,5,0,13,37381,41768,23780,"060"]
["Claremont","0004169","12900","Claremont city","019",13151,5685,3279,50,108,151,211,210,435,703,844,352,127,88,2406,59,420,240,333,242,405,329,301,37,25,15,34658,44048,23363,"060"]
["Cornish","0004197","15060","Cornish town","019",1661,645,564,8,19,26,29,21,52,76,169,79,64,21,81,0,0,6,8,8,12,21,24,0,0,2,53250,55800,40893,"060"]
["Croydon","0004202","16340","Croydon town","019",661,268,246,0,8,12,5,13,39,43,72,28,19,7,22,0,0,0,4,3,4,2,5,4,0,0,50167,50500,32500,"060"]
["Goshen","0004207","30500","Goshen town","019",741,280,252,2,7,12,23,8,34,54,68,18,16,10,28,0,4,2,2,2,3,13,2,0,0,0,42500,44000,36250,"060"]
["Grantham","0004212","31220","Grantham town","019",2167,925,816,15,10,9,12,32,62,124,229,135,124,64,109,8,0,3,3,7,6,23,28,27,2,2,63207,64342,56250,"060"]
["Langdon","0004218","40900","Langdon town","019",586,236,211,6,4,6,14,7,36,54,41,18,8,17,25,2,0,0,4,2,3,6,6,2,0,0,42500,43250,36250,"060"]
["Lempster","0004223","41700","Lempster town","019",971,387,340,6,15,8,22,21,68,86,79,18,6,11,47,0,2,8,5,0,10,12,8,0,2,0,40216,41019,28125,"060"]
["Newport","0004228","52580","Newport town","019",6269,2473,1641,10,78,65,88,155,190,344,443,162,99,7,832,51,134,124,31,28,168,206,73,8,0,9,36961,44911,27983,"060"]
["Plainfield","0004254","62340","Plainfield town","019",2241,844,741,9,10,20,26,35,62,139,195,116,67,62,103,3,4,4,11,8,9,28,24,7,2,3,57069,59813,38750,"060"]
["Springfield","0004260","72740","Springfield town","019",945,381,319,3,10,13,7,9,58,61,72,60,13,13,62,0,4,2,2,2,13,21,11,2,5,0,45972,49375,37857,"060"]
["Sunapee","0004265","75060","Sunapee town","019",3055,1294,973,13,10,33,44,52,82,225,233,102,116,63,321,8,14,17,36,20,60,66,69,31,0,0,48527,52589,36964,"060"]
["Unity","0004274","77940","Unity town","019",1530,504,468,5,13,27,14,44,48,113,135,44,18,7,36,5,2,2,12,2,2,11,0,0,0,0,42014,44500,19063,"060"]
["Washington","0004279","78980","Washington town","019",895,369,338,9,4,10,30,15,56,57,98,32,17,10,31,1,0,0,7,2,6,9,4,2,0,0,45104,47000,29688,"060"]
[]
[]
[]
[]
[]
[]
[]
[]
[]
[]
[]
[]
[]
[]
[]
[]
[]
[]
[]
[]
[]
[]
[]
[]
[]
[]
[]
[]
[]
[null,null,null,null,null,null,null,null,null,null,null,null,null,null,null,null,null,null,null,null,null,null,null,null,null,null,null,null,null,null,null,null,null,null,null,null,null,null,null,null,null,null,null,null,null,null,null,null,null,null,null,null,null,null,null,null,null,null,null,null,null,null,null,null,null,null,null,null,null,null,null,null,null,null,null,null,null,null,null,null,null,null,null,null,null,null,null,null,null,null,null,null,null,null,null,null,null,null,null,null,0,7,3,4,28]
[null,null,null,null,null,null,null,null,null,null,null,null,null,null,null,null,null,null,null,null,null,null,null,null,null,null,null,null,null,null,null,null,null,null,null,null,null,null,null,null,null,null,null,null,null,null,null,null,null,null,null,null,null,null,null,null,null,null,null,null,null,null,null,null,null,null,null,null,null,null,null,null,null,null,null,null,null,null,null,null,null,null,null,null,null,null,null,null,null,null,null,null,null,null,null,null,null,null,null,null,3,20,7,13,29]
[null,null,null,null,null,null,null,null,null,null,null,null,null,null,null,null,null,null,null,null,null,null,null,null,null,null,null,null,null,null,null,null,null,null,null,null,null,null,null,null,null,null,null,null,null,null,null,null,null,null,null,null,null,null,null,null,null,null,null,null,null,null,null,null,null,null,null,null,null,null,null,null,null,null,null,null,null,null,null,null,null,null,null,null,null,null,null,null,null,null,null,null,null,null,null,null,null,null,null,null,0,0,0,0,0]
[null,null,null,null,null,null,null,null,null,null,null,null,null,null,null,null,null,null,null,null,null,null,null,null,null,null,null,null,null,null,null,null,null,null,null,null,null,null,null,null,null,null,null,null,null,null,null,null,null,null,null,null,null,null,null,null,null,null,null,null,null,null,null,null,null,null,null,null,null,null,null,null,null,null,null,null,null,null,null,null,null,null,null,null,null,null,null,null,null,null,null,null,null,null,null,null,null,null,null,null,0,0,0,0,0]
["Census 2000 SummaryFile3 Sample Data - SF3TownQry10aDisabil",null,null,null,null,null,null,null,null,null,null,null,null,null,null,null,null,null,null,null,null,null,null,null,null,null,null,null,null,null,null,null,null,null,null,null,null,null,null,null,null,null,null,null,null,null,null,null,null,null,null,null,null,null,null,null,null,null,null,null,null,null,null,null,null,null,null,null,null,null,null,null,null,null,null,null,null,null,null,null,null,null,null,null,null,null,null,null,null,null,null,null,null,null,null,null,null,null,null,null,0,0,0,0,0]
[null,null,null,null,null,null,null,null,null,null,null,null,null,null,null,null,null,null,null,null,null,null,null,null,null,null,null,null,null,null,null,null,null,null,null,null,null,null,null,null,null,null,null,null,null,null,null,null,null,null,null,null,null,null,null,null,null,null,null,null,null,null,null,null,null,null,null,null,null,null,null,null,null,null,null,null,null,null,null,null,null,null,null,null,null,null,null,null,null,null,null,null,null,null,null,null,null,null,null,null,2,38,9,29,98]
["TOWN_NAME","LOGRECNO","COUSUB","TotalPop","PCT026001","PCT026002","PCT026003","PCT026004","PCT026005","PCT026006","PCT026007","PCT026008","PCT026009","PCT026010","PCT026011","PCT026012","PCT026013","PCT026014","PCT026015","PCT026016","PCT026017","PCT026018","PCT026019","PCT026020","PCT026021","PCT026022","PCT026023","PCT026024","PCT026025","PCT026026","PCT026027","PCT026028","PCT026029","PCT026030","PCT026031","PCT026032","PCT026033","PCT026034","PCT026035","PCT026036","PCT026037","PCT026038","PCT026039","PCT026040","PCT026041","PCT026042","PCT026043","PCT026044","PCT026045","PCT026046","PCT026047","PCT026048","PCT026049","PCT026050","PCT026051","PCT026052","PCT026053","PCT026054","PCT026055","PCT026056","PCT026057","PCT026058","PCT026059","PCT026060","PCT026061","PCT026062","PCT026063","PCT026064","PCT026065","PCT026066","PCT026067","PCT026068","PCT026069","PCT026070","PCT026071","PCT026072","PCT026073","PCT026074","PCT026075","PCT026076","PCT026077","PCT026078","PCT026079","PCT026080","PCT026081","PCT026082","PCT026083","PCT026084","PCT026085","PCT026086","PCT026087","PCT026088","PCT026089","PCT026090","PCT026091","PCT026092","PCT026093","PCT026094","PCT026095","PCT026096","PCT026097","PCT026098","PCT026099","PCT026100","PCT026101"]
["Acworth","0004141","00260",836,799,416,75,0,0,0,0,0,0,0,0,75,31,2,0,0,2,0,0,0,0,0,0,0,0,29,248,32,3,12,5,0,0,12,25,7,18,8,10,191,62,13,1,10,0,0,2,2,2,0,47,383,67,0,0,0,0,0,0,0,0,67,24,0,0,0,0,0,0,0,0,0,0,0,0,24,224,15,0,3,0,0,0,12,12,6,6,0,6,197,68,4,0,4,0,0,0,10,1,9,54]
["Charlestown","0004146","11380",4749,4455,2199,348,20,0,0,20,0,14,7,7,314,194,29,0,0,7,0,0,22,14,0,14,14,0,151,1377,187,19,36,23,0,0,109,136,23,113,43,70,1054,280,70,24,20,6,0,20,90,11,79,120,2256,392,29,0,0,29,0,0,0,0,363,130,13,5,4,0,0,0,4,10,0,10,4,6,107,1361,99,11,24,0,0,7,57,112,32,80,22,58,1150,373,91,5,35,23,0,28,111,72,39,171]
["Claremont","0004169","12900",13151,12309,5924,1000,87,18,0,64,5,12,7,5,901,389,24,0,0,0,0,0,24,24,5,19,0,19,341,3682,549,62,117,80,0,0,290,348,71,277,38,239,2785,853,167,38,98,0,0,31,186,37,149,500,6385,990,15,6,0,9,0,6,6,0,969,361,18,0,13,0,0,0,5,22,0,22,0,22,321,3752,377,65,86,22,0,12,192,354,48,306,9,297,3021,1282,310,60,152,12,6,80,281,68,213,691]
["Cornish","0004197","15060",1661,1582,781,139,4,0,0,4,0,3,3,0,132,52,7,0,0,7,0,0,0,0,0,0,0,0,45,493,25,1,18,0,0,0,6,45,13,32,0,32,423,97,34,13,19,2,0,0,11,4,7,52,801,152,11,0,2,9,0,0,0,0,141,47,3,0,0,0,0,0,3,0,0,0,0,0,44,498,26,4,5,8,0,2,7,23,4,19,5,14,449,104,11,6,5,0,0,0,19,2,17,74]
["Croydon","0004202","16340",661,653,331,47,3,0,3,0,0,4,2,2,40,24,4,0,0,0,0,0,4,2,0,2,0,2,18,231,21,0,2,4,0,0,15,23,9,14,3,11,187,29,11,0,8,3,0,0,8,3,5,10,322,45,0,0,0,0,0,0,0,0,45,27,0,0,0,0,0,0,0,3,3,0,0,0,24,207,17,0,7,1,0,0,9,14,2,12,2,10,176,43,5,0,5,0,0,0,13,7,6,25]
["Goshen","0004207","30500",741,710,344,56,4,2,0,2,0,0,0,0,52,32,3,0,0,3,0,0,0,2,0,2,0,2,27,198,26,5,7,3,0,0,11,9,0,9,0,9,163,58,15,3,6,0,0,6,5,0,5,38,366,47,0,0,0,0,0,2,2,0,45,21,0,0,0,0,0,0,0,0,0,0,0,0,21,235,25,5,5,0,0,0,15,7,2,5,0,5,203,63,12,0,9,0,0,3,8,6,2,43]
["Grantham","0004212","31220",2167,2064,1025,150,9,0,0,9,0,3,3,0,138,32,2,0,0,2,0,0,0,0,0,0,0,0,30,583,26,9,2,0,2,2,11,24,10,14,6,8,533,260,38,16,22,0,0,0,14,8,6,208,1039,126,2,0,0,2,0,0,0,0,124,42,3,0,0,3,0,0,0,0,0,0,0,0,39,653,26,2,4,0,0,2,18,16,3,13,2,11,611,218,15,2,9,0,0,4,15,4,11,188]
["Langdon","0004218","40900",586,561,275,46,10,0,0,10,0,0,0,0,36,20,2,2,0,0,0,0,0,1,0,1,1,0,17,178,17,7,3,2,0,0,5,8,0,8,0,8,153,31,9,3,4,2,0,0,2,2,0,20,286,40,2,0,0,2,0,0,0,0,38,19,0,0,0,0,0,0,0,0,0,0,0,0,19,185,11,4,2,0,0,0,5,17,4,13,7,6,157,42,4,0,2,2,0,0,7,5,2,31]
["Lempster","0004223","41700",971,922,476,79,18,0,3,15,0,0,0,0,61,21,0,0,0,0,0,0,0,0,0,0,0,0,21,306,42,7,13,4,0,0,18,19,7,12,2,10,245,70,9,3,6,0,0,0,16,2,14,45,446,87,12,2,0,10,0,0,0,0,75,25,3,3,0,0,0,0,0,0,0,0,0,0,22,271,2,0,2,0,0,0,0,20,6,14,3,11,249,63,14,2,8,0,0,4,13,1,12,36]
["Newport","0004228","52580",6269,5797,2842,605,94,0,0,94,0,41,15,26,470,171,14,0,0,14,0,0,0,35,0,35,0,35,122,1679,216,59,43,10,0,9,95,195,39,156,54,102,1268,387,97,38,29,8,0,22,49,8,41,241,2955,487,41,0,0,41,0,10,0,10,436,153,6,0,0,0,0,6,0,32,0,32,10,22,115,1790,153,21,40,10,7,11,64,223,83,140,24,116,1414,525,85,15,54,0,0,16,139,58,81,301]
["Plainfield","0004254","62340",2241,2095,1053,192,5,0,0,5,0,5,2,3,182,61,3,0,0,3,0,0,0,1,1,0,0,0,57,684,42,5,14,4,2,0,17,30,4,26,3,23,612,116,21,11,6,2,2,0,14,11,3,81,1042,164,5,0,0,4,1,3,0,3,156,52,0,0,0,0,0,0,0,0,0,0,0,0,52,707,43,5,11,4,0,0,23,30,10,20,6,14,634,119,15,5,5,0,0,5,19,7,12,85]
["Springfield","0004260","72740",945,869,428,75,0,0,0,0,0,0,0,0,75,17,0,0,0,0,0,0,0,0,0,0,0,0,17,279,9,3,4,0,0,0,2,12,5,7,2,5,258,57,3,0,3,0,0,0,19,6,13,35,441,78,10,0,0,10,0,0,0,0,68,9,0,0,0,0,0,0,0,0,0,0,0,0,9,285,23,5,9,1,0,0,8,15,5,10,0,10,247,69,14,0,9,2,0,3,12,9,3,43]
["Sunapee","0004265","75060",3055,2923,1463,249,10,0,0,10,0,0,0,0,239,110,17,0,0,10,0,0,7,5,0,5,0,5,88,833,51,20,17,0,0,0,14,40,10,30,10,20,742,271,16,8,4,0,0,4,15,0,15,240,1460,226,9,4,0,5,0,0,0,0,217,85,0,0,0,0,0,0,0,0,0,0,0,0,85,894,58,12,19,0,0,7,20,32,9,23,9,14,804,255,45,22,23,0,0,0,18,4,14,192]
["Unity","0004274","77940",1530,1223,635,101,3,0,0,3,0,3,1,2,95,31,0,0,0,0,0,0,0,0,0,0,0,0,31,423,45,12,13,6,0,0,14,45,12,33,6,27,333,80,24,6,15,3,0,0,9,5,4,47,588,92,0,0,0,0,0,2,0,2,90,27,5,0,0,2,0,0,3,2,0,2,0,2,20,402,45,0,11,7,0,0,27,29,7,22,5,17,328,67,2,0,0,0,0,2,29,9,20,36]
["Washington","0004279","78980",895,845,439,80,5,2,0,3,0,0,0,0,75,23,0,0,0,0,0,0,0,2,2,0,0,0,21,260,26,8,2,4,0,0,12,23,4,19,3,16,211,76,19,10,9,0,0,0,0,0,0,57,406,72,5,0,0,5,0,0,0,0,67,15,2,0,0,2,0,0,0,0,0,0,0,0,13,255,7,0,7,0,0,0,0,15,5,10,0,10,233,64,5,2,1,2,0,0,5,1,4,54]
[]
[]
[]
["2010 Census Demographic Profile Data -  QRY_CountyState"]
["TownName","LOGRECNO","COUNTY","TotalPop","TotalPop1Race","TotalPopWhite","TotalPopAfricanAmerican","TotalPopAmericanIndAlaska","TotalPopAsian","TotalPopNativeHawaiianPIsland","TotalPopSomeOtherRace","TotalPopTwoOrMoreRaces","TotalPopHispanicLatino","TotalNonHispanicLatino","TotPopUnder15yrs","TotPop15to24yrs","TotPop25to34yrs","TotPop35to44yrs","TotPop45to54yrs","TotPop55to64yrs","TotPop65to74yrs","TotPopOver74yrs","MedianAge","MedianAgeMale","MedianAgeFemale","TotalHH","TotalPopInHouseholds","TotalPopInFamilyHH","TotalPopInNonFamilyHH","AvgHHSize","TotalFamilyHH","TotalFamilyHHSpouse","TotalSingleParentHH","TotalNonFamilyHH","AvgFamilyHHSize","AvgNonFamilyHHSize","AverageHHSizeOwnerOccupied","AverageHHSizeRentalOccupied","TotalHousingUnits","TotalOccupiedHU","TotalOwnerOccupiedHUs","TotalRentalOccupiedHU","TotalVacantHU","VacantHUForRent","VacantHURentNotOccupied","VacantHUForSale","VacantHUsSoldNotOccupied","VacantHUSeasonalRecreational","VacantHUsAllOtherVacants","HomeOwnerVacancyRate","HomeRentalVacancyRate","TotalHousingUnits2010","SingFamHU2010","MultiFamHU2010","MobileHom2010"]
["Acworth","0000227","019",891,880,859,1,6,13,0,1,11,7,884,112,95,67,98,177,180,102,60,49.2,48.6,50.4,380,891,456,435,2.34,265,224,41,115,2.72,3.7826086956521738,2.29,2.76,556,380,339,41,176,3,4,6,0,146,17,1.7,6.3,556,479,22,55]
["Charlestown","0000228","019",5114,5061,5002,20,12,21,0,6,53,41,5073,842,607,507,677,880,775,499,327,43.9,43.4,44.6,2117,5032,2571,2461,2.38,1399,1066,333,718,2.84,3.4275766016713094,2.48,2.02,2263,2117,1621,496,146,23,1,21,1,50,50,1.3,4.4000000000000004,2263,1233,313,717]
["Claremont","0000257","019",13355,13120,12808,85,44,126,4,53,235,171,13184,2482,1518,1714,1766,2110,1712,1047,1006,40.6,39.4,41.7,5697,13175,6345,6830,2.31,3461,2397,1064,2236,2.83,3.0545617173524149,2.4500000000000002,2.12,6293,5697,3264,2433,596,286,23,63,17,62,145,1.9,10.4,6293,3241,2636,416]
["Cornish","0000229","019",1640,1615,1590,6,9,6,0,4,25,15,1625,249,145,128,197,307,365,150,99,48.6,48.6,48.6,687,1640,876,764,2.39,496,421,75,191,2.77,4,2.41,2.2599999999999998,747,687,581,106,60,8,2,6,1,28,15,1,6.9,747,639,47,61]
["Croydon","0000230","019",764,746,731,4,5,4,0,2,18,5,759,98,67,84,101,155,138,80,41,48,48.5,46.4,324,764,390,374,2.36,227,185,42,97,2.72,3.8556701030927836,2.36,2.37,396,324,272,52,72,0,1,4,2,62,3,1.4,0,396,370,8,18]
["Goshen","0000231","019",810,798,793,4,1,0,0,0,12,1,809,124,73,75,104,161,131,76,66,47,47.3,46.5,344,810,411,399,2.35,237,185,52,107,2.73,3.7289719626168223,2.31,2.58,444,344,287,57,100,3,1,7,1,80,8,2.4,4.9000000000000004,444,400,15,29]
["Grantham","0000232","019",2985,2959,2898,13,1,29,0,18,26,53,2932,539,192,237,432,468,492,371,254,47.3,47,47.6,1249,2985,1602,1383,2.39,919,822,97,330,2.74,4.1909090909090905,2.4,2.33,1773,1249,1094,155,524,7,0,24,7,475,11,2.1,4.3,1773,1455,304,14]
["Langdon","0000233","019",688,686,679,1,3,2,0,1,2,11,677,121,63,63,91,109,121,75,45,45.5,46.2,45.3,282,688,368,320,2.44,202,162,40,80,2.82,4,2.4700000000000002,2.21,306,282,253,29,24,0,0,2,0,14,8,0.8,0,306,271,20,15]
["Lempster","0000234","019",1154,1139,1132,2,3,0,0,2,15,14,1140,181,116,118,143,231,220,85,60,46.1,46.2,46.1,479,1154,585,569,2.41,324,266,58,155,2.81,3.6709677419354838,2.37,2.68,679,479,414,65,200,1,1,6,3,160,29,1.4,1.5,679,596,18,65]
["Newport","0000235","019",6507,6401,6324,18,15,26,0,18,106,71,6436,1193,842,676,824,1032,901,487,552,41.7,39.4,44,2629,6379,3230,3149,2.4300000000000002,1706,1211,495,923,2.89,3.4117009750812568,2.5299999999999998,2.2400000000000002,2938,2629,1703,926,309,125,6,54,5,45,74,3.1,11.8,2938,1664,993,281]
["Plainfield","0000236","019",2364,2342,2316,11,2,12,0,1,22,27,2337,426,217,191,339,482,394,189,126,45.2,44.6,45.7,923,2318,1286,1032,2.5099999999999998,684,586,98,239,2.88,4.3179916317991633,2.57,2.17,984,923,788,135,61,5,0,10,2,27,17,1.3,3.6,984,859,51,73]
["Springfield","0000237","019",1311,1295,1286,2,5,2,0,0,16,22,1289,260,123,114,219,200,206,124,65,42.3,42.1,42.5,512,1311,735,576,2.56,380,330,50,132,2.93,4.3636363636363633,2.57,2.4500000000000002,702,512,454,58,190,20,1,12,3,140,14,2.6,25.3,702,662,5,35]
["Sunapee","0000238","019",3365,3330,3283,7,11,19,1,9,35,26,3339,540,345,323,409,559,545,363,281,46.2,45.4,47.3,1443,3340,1695,1645,2.31,973,797,176,470,2.74,3.5,2.4,2.0499999999999998,2431,1443,1081,362,988,46,13,29,7,855,38,2.6,10.9,2431,1992,358,81]
["Unity","0000239","019",1671,1644,1628,7,3,5,0,1,27,14,1657,192,153,147,235,274,312,171,187,49.7,47.5,52.1,601,1431,726,705,2.38,416,354,62,185,2.75,3.810810810810811,2.37,2.5499999999999998,736,601,550,51,135,1,0,5,1,114,14,0.9,1.9,736,607,26,103]
["Washington","0000240","019",1123,1112,1092,4,9,6,0,1,11,15,1108,175,121,83,149,202,164,152,77,46.5,46.4,46.6,459,1123,592,531,2.4500000000000002,336,286,50,123,2.76,4.3170731707317076,2.44,2.5099999999999998,1093,459,420,39,634,2,0,16,4,591,21,3.6,4.9000000000000004,1093,1038,16,38]

{"sheet":"SmallTownEmploymentandWages","index":76,"n_rows":77,"n_cols":14,"rows_kept":77,"cut":false,"hidden":true,"merged":[[66,1,67,3],[73,1,73,2],[35,1,35,2]]}
[]
[null,{"$f":"CntyDataLink!A35","v":"Grantham"}]
[]
[null,"EMPLOYMENT CHARACTERISTICS"]
[]
[]
[]
[]
[]
[]
[]
[]
[]
[]
[]
[]
[]
[]
[]
[]
[]
[]
[]
[]
[]
[]
[]
[]
[null,"Annual Average Covered Private Employment "]
[null,null,"Source: New Hampshire Department of Employment Security, Covered Private Employment by location of employment"]
[null,null,2012,2013,2014,2015,2016,2017,2018,2019,2020,2021,{"$f":"L31+1","v":2022},"Total Change  "]
[null,"Goods Producing",137,139,155,164,144,126,125,117,112,117,{"$f":"IF((CntyDataLink!$FX$25)=\"n\",NA(),IF(VALUE(CntyDataLink!$FX$25)=\"\",NA(),VALUE(CntyDataLink!$FX$25)))","v":27},{"$f":"$M32-C32","v":-110}]
[null,"Service Providing",260,265,280,295,300,307,333,338,311,335,{"$f":"IF((CntyDataLink!$FY$25)=\"n\",NA(),IF(VALUE(CntyDataLink!$FY$25)=\"\",NA(),VALUE(CntyDataLink!$FY$25)))","v":291},{"$f":"$M33-C33","v":31}]
[null,"Total Private Emp",397,404,436,459,444,434,458,455,423,452,{"$f":"IF((CntyDataLink!$FV$25)=\"n\",NA(),IF(VALUE(CntyDataLink!$FV$25)=\"\",NA(),VALUE(CntyDataLink!$FV$25)))","v":318},{"$f":"$M34-C34","v":-79}]
[]
[null,"% Change from prior Year",null,"12-13","13-14","14-15","15-16","16-17","17-18","18-19","19-20","20-21","21-22","Total % Change"]
[null,"Goods Producing",null,{"$f":"(D32-C32)/C32","v":1.4598540145985401E-2},0.11510791366906475,5.8064516129032261E-2,-0.12195121951219512,-0.125,{"$f":"(I32-H32)/H32","v":-7.9365079365079361E-3},-6.4000000000000001E-2,-4.2735042735042736E-2,4.4642857142857144E-2,-0.76923076923076927,{"$f":"N32/C32","v":-0.8029197080291971}]
[null,"Service Providing",null,1.9230769230769232E-2,5.6603773584905662E-2,5.3571428571428568E-2,{"$f":"(G33-F33)/F33","v":1.6949152542372881E-2},2.3333333333333334E-2,8.4690553745928335E-2,1.5015015015015015E-2,-7.9881656804733733E-2,7.7170418006430874E-2,-0.13134328358208955,{"$f":"N33/C33","v":0.11923076923076924}]
[null,"Total Private Emp",null,1.7632241813602016E-2,7.9207920792079209E-2,5.2752293577981654E-2,-3.2679738562091505E-2,-2.2522522522522521E-2,5.5299539170506916E-2,-6.5502183406113534E-3,-7.032967032967033E-2,6.8557919621749411E-2,-0.29646017699115046,{"$f":"N34/C34","v":-0.19899244332493704}]
[]
[]
[null,"EMPLOYMENT CHARACTERISTICS"]
[]
[]
[]
[]
[]
[]
[]
[]
[]
[]
[]
[]
[]
[]
[]
[]
[]
[]
[]
[]
[]
[]
[]
[]
[null,"Covered Private Employment Average Wages",null,null,"Source: NH Department of Employment Security, Covered Private Employment"]
[]
[null,null,2012,{"$f":"C69+1","v":2013},{"$f":"D69+1","v":2014},{"$f":"E69+1","v":2015},{"$f":"F69+1","v":2016},{"$f":"G69+1","v":2017},{"$f":"H69+1","v":2018},{"$f":"I69+1","v":2019},{"$f":"J69+1","v":2020},{"$f":"K69+1","v":2021},{"$f":"L69+1","v":2022},"Total $ Change"]
[null,"Goods Producing",{"$f":"IF((CntyDataLink!$CS$25)=\"n\",NA(),IF(VALUE(CntyDataLink!$CS$25)=\"\",NA(),VALUE(CntyDataLink!$CS$25)))","v":713.75},{"$f":"IF((CntyDataLink!$DA$25)=\"n\",NA(),IF(VALUE(CntyDataLink!$DA$25)=\"\",NA(),VALUE(CntyDataLink!$DA$25)))","v":885.64},{"$f":"IF((CntyDataLink!$DI$25)=\"n\",NA(),IF(VALUE(CntyDataLink!$DI$25)=\"\",NA(),VALUE(CntyDataLink!$DI$25)))","v":770.97},{"$f":"IF((CntyDataLink!$DQ$25)=\"n\",NA(),IF(VALUE(CntyDataLink!$DQ$25)=\"\",NA(),VALUE(CntyDataLink!$DQ$25)))","v":829.78},{"$f":"IF((CntyDataLink!$DY$25)=\"n\",NA(),IF(VALUE(CntyDataLink!$DY$25)=\"\",NA(),VALUE(CntyDataLink!$DY$25)))","v":823.99},{"$f":"IF((CntyDataLink!$EG$25)=\"n\",NA(),IF(VALUE(CntyDataLink!$EG$25)=\"\",NA(),VALUE(CntyDataLink!$EG$25)))","v":853.2},{"$f":"IF((CntyDataLink!$EO$25)=\"n\",NA(),IF(VALUE(CntyDataLink!$EO$25)=\"\",NA(),VALUE(CntyDataLink!$EO$25)))","v":908.77},{"$f":"IF((CntyDataLink!$EY$25)=\"n\",NA(),IF(VALUE(CntyDataLink!$EY$25)=\"\",NA(),VALUE(CntyDataLink!$EY$25)))","v":914.68},{"$f":"IF((CntyDataLink!$FI$25)=\"n\",NA(),IF(VALUE(CntyDataLink!$FI$25)=\"\",NA(),VALUE(CntyDataLink!$FI$25)))","v":1051.57},{"$f":"IF((CntyDataLink!$FS$25)=\"n\",NA(),IF(VALUE(CntyDataLink!$FS$25)=\"\",NA(),VALUE(CntyDataLink!$FS$25)))","v":941.04},{"$f":"IF((CntyDataLink!$GCS$25)=\"n\",NA(),IF(VALUE(CntyDataLink!$GC$25)=\"\",NA(),VALUE(CntyDataLink!$GC$25)))","v":1012},{"$f":"M70-C70","v":298.25}]
[null,"Service Providing",{"$f":"IF((CntyDataLink!$CT$25)=\"n\",NA(),IF(VALUE(CntyDataLink!$CT$25)=\"\",NA(),VALUE(CntyDataLink!$CT$25)))","v":706.36},{"$f":"IF((CntyDataLink!$DB$25)=\"n\",NA(),IF(VALUE(CntyDataLink!$DB$25)=\"\",NA(),VALUE(CntyDataLink!$DB$25)))","v":698.82},{"$f":"IF((CntyDataLink!$DJ$25)=\"n\",NA(),IF(VALUE(CntyDataLink!$DJ$25)=\"\",NA(),VALUE(CntyDataLink!$DJ$25)))","v":701},{"$f":"IF((CntyDataLink!$DR$25)=\"n\",NA(),IF(VALUE(CntyDataLink!$DR$25)=\"\",NA(),VALUE(CntyDataLink!$DR$25)))","v":633.16},{"$f":"IF((CntyDataLink!$DZ$25)=\"n\",NA(),IF(VALUE(CntyDataLink!$DZ$25)=\"\",NA(),VALUE(CntyDataLink!$DZ$25)))","v":590.66999999999996},{"$f":"IF((CntyDataLink!ED$25)=\"n\",NA(),IF(VALUE(CntyDataLink!$EE$25)=\"\",NA(),VALUE(CntyDataLink!$EE$25)))","v":626.41999999999996},{"$f":"IF((CntyDataLink!EL$25)=\"n\",NA(),IF(VALUE(CntyDataLink!$EM$25)=\"\",NA(),VALUE(CntyDataLink!$EM$25)))","v":694.36},{"$f":"IF((CntyDataLink!EY$25)=\"n\",NA(),IF(VALUE(CntyDataLink!$EZ$25)=\"\",NA(),VALUE(CntyDataLink!$EZ$25)))","v":656.28},{"$f":"IF((CntyDataLink!FI$25)=\"n\",NA(),IF(VALUE(CntyDataLink!$FJ$25)=\"\",NA(),VALUE(CntyDataLink!$FJ$25)))","v":783.25},{"$f":"IF((CntyDataLink!FS$25)=\"n\",NA(),IF(VALUE(CntyDataLink!$FT$25)=\"\",NA(),VALUE(CntyDataLink!$FT$25)))","v":776.72},{"$f":"IF((CntyDataLink!GD$25)=\"n\",NA(),IF(VALUE(CntyDataLink!$GD$25)=\"\",NA(),VALUE(CntyDataLink!$GD$25)))","v":785},{"$f":"M71-C71","v":78.639999999999986}]
[null,"Total Private Emp",{"$f":"IF((CntyDataLink!$CR$25)=\"n\",NA(),IF(VALUE(CntyDataLink!$CR$25)=\"\",NA(),VALUE(CntyDataLink!$CR$25)))","v":707.19},{"$f":"IF((CntyDataLink!$CZ$25)=\"n\",NA(),IF(VALUE(CntyDataLink!$CZ$25)=\"\",NA(),VALUE(CntyDataLink!$CZ$25)))","v":726.57},{"$f":"IF((CntyDataLink!$DH$25)=\"n\",NA(),IF(VALUE(CntyDataLink!$DH$25)=\"\",NA(),VALUE(CntyDataLink!$DH$25)))","v":712.76},{"$f":"IF((CntyDataLink!$DP$25)=\"n\",NA(),IF(VALUE(CntyDataLink!$DP$25)=\"\",NA(),VALUE(CntyDataLink!$DP$25)))","v":663.48},{"$f":"IF((CntyDataLink!$DX$25)=\"n\",NA(),IF(VALUE(CntyDataLink!$DX$25)=\"\",NA(),VALUE(CntyDataLink!$DX$25)))","v":625.71},{"$f":"IF((CntyDataLink!$EF$25)=\"n\",NA(),IF(VALUE(CntyDataLink!$EF$25)=\"\",NA(),VALUE(CntyDataLink!$EF$25)))","v":621.05999999999995},{"$f":"IF((CntyDataLink!$EN$25)=\"n\",NA(),IF(VALUE(CntyDataLink!$EN$25)=\"\",NA(),VALUE(CntyDataLink!$EN$25)))","v":700.3},{"$f":"IF((CntyDataLink!$EW$25)=\"n\",NA(),IF(VALUE(CntyDataLink!$EW$25)=\"\",NA(),VALUE(CntyDataLink!$EW$25)))","v":702.55},{"$f":"IF((CntyDataLink!$FG$25)=\"n\",NA(),IF(VALUE(CntyDataLink!$FG$25)=\"\",NA(),VALUE(CntyDataLink!$FG$25)))","v":823.72},{"$f":"IF((CntyDataLink!$FQ$25)=\"n\",NA(),IF(VALUE(CntyDataLink!$FQ$25)=\"\",NA(),VALUE(CntyDataLink!$FQ$25)))","v":793.58},{"$f":"IF((CntyDataLink!$GA$25)=\"n\",NA(),IF(VALUE(CntyDataLink!$GA$25)=\"\",NA(),VALUE(CntyDataLink!$GA$25)))","v":804},{"$f":"M72-C72","v":96.809999999999945}]
[]
[null,"% Change from prior Year",null,{"$f":"D36","v":"12-13"},"13-14","14-15","15-16","16-17","17-18","18-19","19-20","20-21","21-22","Total % Change"]
[null,"Goods Producing",null,{"$f":"(D70-C70)/C70","v":0.2408266199649737},-0.12947698839257482,7.6280529722297805E-2,-6.9777531393863E-3,3.5449459338098809E-2,6.5131270511017275E-2,6.503295663369134E-3,0.14965889710062535,-0.10510950293370863,{"$f":"(M70-L70)/L70","v":7.5405933860409807E-2},{"$f":"N70/C70","v":0.4178633975481611}]
[null,"Service Providing",null,-1.0674443626479364E-2,3.1195443748031678E-3,-9.6776034236804614E-2,-6.7107840040432132E-2,6.0524489139451812E-2,0.10845758436831528,-5.4841868771242641E-2,0.19346925092948136,-8.3370571337375975E-3,1.0660212174271259E-2,{"$f":"N71/C71","v":0.11133133246503198}]
[null,"Total Private Emp",null,2.7404233657150119E-2,-1.9007115625473192E-2,-6.913968236152418E-2,-5.6927111593416499E-2,-7.4315577503956953E-3,0.12758831674878438,3.2129087533914039E-3,0.1724717101985625,-3.6590103433205443E-2,1.3130371229113584E-2,{"$f":"N72/C72","v":0.13689390404276069}]